{"text_format":"1","workbook":"xlsx","n_sheets":58,"sheets":["Inicio","Glosario","Recursos","Agricultura","Mitigación-Agricultura","Adaptación-Agricultura","Indice de género-Agricultura","Agriculltura-NDS","Forestal","Mitigación-Forestal","Adaptación-Forestal","Indice de género-Forestal","Forestal-NDS","Ganadería","Mitigación-Ganadería","Adaptación-Ganadería","Indice de género-Ganadería","Ganadería-NDS","Energía","Mitigación-Energía","Adaptación-Energía","Indice de género-Energía","Energía-NDS","Agua","Mitigación-Agua","Adaptación-Agua","Indice de género-Agua","Agua-NDS","Construcción","Mitigación-Construcción","Adaptación-Construcción","Indice de género-Construcción","Construcción-NDS","Manufactura","Mitigación-Manufactura","Adaptación-Manufactura","Indice de género-Manufactura","Manufactura-NDS","Transporte","Mitigación-Transporte","Adaptación-Transporte","Indice de género-Transporte","Transporte-NDS","Residuos","Mitigación-Residuos","Adaptación-Residuos","Indice de género-Residuos","Residuos-NDS","Género-General","Indice de género-General","Base-datos","NDS_Género","Salvaguardas mínimas","Instituciones-crédito","Fondos-Inversionistas","Empresas","Seguros_fianzas","Otro"],"not_rendered":{"charts":0,"images":4,"macros":1,"external_links":0,"defined_names":6,"comments":0,"pivot_tables":0},"unopened":[],"bounds":{"document_bytes":16777216,"sheet_cells":100000,"rows_first":2000,"rows_last":500,"rows_between":2000,"halvings":0,"cell_chars":16384,"cell_head_chars":4096},"cells_cut":0,"cells_raw":0,"read":"whole","date_system":"1900"}

{"sheet":"Inicio","index":0,"n_rows":34,"n_cols":10,"rows_kept":34,"cut":false,"hidden":false,"merged":[[26,0,26,10],[28,0,28,10],[6,0,7,10],[8,0,8,8],[3,0,4,10],[10,0,12,10],[18,0,18,10],[25,0,25,10]]}
[]
[]
[]
["Aplicación para la implementación de la Taxonomía Sostenible de México"]
[]
[]
["Objetivo: Esta hoja de cálculo tiene como objetivo ser una herramienta dinámica en donde las instituciones inversionistas, emisoras e intermediarios financieros, puedan conocer el nivel de alineación de sus operaciones financieras y/o proyectos con la Taxonomía Sostenible de México. La SHCP te invita a utilizar la hoja de cálculo siguiendo las indicaciones establecidas en cada hoja. "]
[]
["No olvides revisar el resumen de la Taxonomía Sostenible de México en la parte de abajo. Para dudas o comentarios por favor enviar un correo a -------> ",null,null,null,null,null,null,null,null,"taxonomia_sost@hacienda.gob.mx"]
[]
["Instrucciones: La hoja se compone de varias pestañas que te dirigirán de manera interactiva para evaluar la alineación de operaciones financieras y/o proyectos a la Taxonomía Sostenible de México. Cada hoja contiene instrucciones y preguntas específicas que será necesario responder o seleccionar la opción adecuada. Este libro de Excel funciona ocultando y mostrando las preguntas específicas para los proyectos que se quieran evaluar.  El código de colores es el siguiente:"]
[]
[]
[]
[null,"<---- Instrucciones"]
[null,"<----- Persona usuaria coloca datos de forma libre"]
["Seleccionar","<----- Persona usuaria selecciona opción de lista desplegable"]
[null,"<----- Se plantean preguntas o introducciones"]
["Da click en siguiente botón para iniciar la evaluación de operaciones financieras y/o proyectos y su alineación con la Taxonomía Sostenible de México."]
[]
[]
[]
[]
[]
[]
["¿Qué es la Taxonomía Sostenible de México?\nLa Taxonomía Sostenible de México es un instrumento de política pública que permite identificar de manera efectiva las actividades etiquetadas como sostenibles, además de facilitar la movilización de los flujos de financiamiento y capitales hacia inversiones en actividades que contribuyan positivamente a objetivos medioambientales y sociales. De igual forma, la Taxonomía Sostenible permite generar información confiable a fin de contribuir a mitigar el riesgo de greenwashing y brindar mayor certidumbre y transparencia a los mercados. La Taxonomía Sostenible de México involucra 6 sectores y 124 actividades: \n\n- Agricultura, cría y explotación de animales y aprovechamiento forestal.\n- Generación, transmisión, distribución y comercialización de energía eléctrica y suministro de agua.\n- Construcción.\n- Industrias manufactureras.\n- Transporte.\n- Manejo de residuos y servicios de remediación.\n\nLas actividades que pretendan alinearse a la Taxonomía deben de estar establecidas bajo un eje de mitigación o adaptación al cambio climático, además de cumplir con las condiciones de No Daño Significativo, las salvaguardas mínimas y el Índice de Igualdad de Género.\n\n\n\n"]
["En este sitio puedes encontrar la Taxonomía Sostenible de México e información relacionada"]
[]
["En este apartado puedes inscribirte al curso en línea sobre la Taxonomía Sostenible de México"]
[]
[]
[]
[]
[null,null,null,null,null,null,"V2.0 Desarrollado por el Global Green Growth Institute (GGGI México) con financiamiento de UKPACT México. agosto 2024"]

{"sheet":"Glosario","index":1,"n_rows":129,"n_cols":8,"rows_kept":129,"cut":false,"hidden":false,"merged":[[109,1,109,6],[53,0,53,6],[5,0,5,6],[108,0,108,6],[126,1,126,6],[127,1,127,6],[128,1,128,6],[80,1,80,6],[81,1,81,6],[82,1,82,6],[83,1,83,6],[84,1,84,6],[85,1,85,6],[86,1,86,6],[87,1,87,6],[88,1,88,6],[89,1,89,6],[90,1,90,6],[91,1,91,6],[92,1,92,6],[125,1,125,6],[121,1,121,6],[122,1,122,6],[123,1,123,6],[124,1,124,6],[120,1,120,6],[110,1,110,6],[111,1,111,6],[112,1,112,6],[113,1,113,6],[114,1,114,6],[119,1,119,6],[115,1,115,6],[118,1,118,6],[116,1,116,6],[117,1,117,6],[79,1,79,6],[103,1,103,6],[98,1,98,6],[99,1,99,6],[100,1,100,6],[101,1,101,6],[102,1,102,6],[93,1,93,6],[94,1,94,6],[95,1,95,6],[96,1,96,6],[97,1,97,6],[17,1,17,6],[18,1,18,6],[19,1,19,6],[20,1,20,6],[21,1,21,6],[22,1,22,6],[64,1,64,6],[65,1,65,6],[66,1,66,6],[59,1,59,6],[60,1,60,6],[61,1,61,6],[62,1,62,6],[63,1,63,6],[23,1,23,6],[24,1,24,6],[25,1,25,6],[26,1,26,6],[27,1,27,6],[39,1,39,6],[29,1,29,6],[30,1,30,6],[31,1,31,6],[32,1,32,6],[16,1,16,6],[1,0,1,6],[6,1,6,6],[7,1,7,6],[8,1,8,6],[9,1,9,6],[10,1,10,6],[11,1,11,6],[12,1,12,6],[13,1,13,6],[14,1,14,6],[15,1,15,6],[28,1,28,6],[104,1,104,6],[105,1,105,6],[51,1,51,6],[40,1,40,6],[41,1,41,6],[42,1,42,6],[43,1,43,6],[44,1,44,6],[45,1,45,6],[46,1,46,6],[47,1,47,6],[48,1,48,6],[49,1,49,6],[50,1,50,6],[54,1,54,6],[55,1,55,6],[56,1,56,6],[77,1,77,6],[78,1,78,6],[69,1,69,6],[70,1,70,6],[71,1,71,6],[72,1,72,6],[57,1,57,6],[58,1,58,6],[67,1,67,6],[68,1,68,6],[74,1,74,6],[75,1,75,6],[76,1,76,6],[33,1,33,6],[34,1,34,6],[35,1,35,6],[36,1,36,6],[37,1,37,6],[38,1,38,6],[73,1,73,6]]}
[]
["Glosario conceptos clave Taxonomía Sostenible de México"]
[]
["Glosario general",null,"Glosario del índice de género",null,"Glosario conceptos financieros aplicables"]
[]
["Glosario general de la Taxonomía"]
["Agricultura sostenible"," Aquella que contribuye en el largo plazo a mejorar la calidad ambiental y los recursos básicos de los cuales depende la agricultura (TSM, 2023)."]
["Aprovechamiento forestal sustentable","La extracción realizada en los términos de esta Ley, de los recursos forestales del medio en que se encuentren, incluyendo los maderables y los no maderables, en forma que se respete la integridad funcional y las capacidades de carga de los ecosistemas de los que forman parte dichos recursos por periodos indefinidos (Art. 7, Fracc. III de la LGDFS)."]
["Biocombustible","Cualquier combustible obtenido a partir del tratamiento de biomasa vegetal, el cual es mucho menos contaminante que los combustibles de origen fósil (TSM, 2023)."]
["Biodegradable","Producto o sustancia que puede desintegrarse o descomponerse en los elementos químicos que lo conforman, debido a la acción de agentes biológicos y bajo condiciones ambientales naturales (TSM, 2023)."]
["Biodiversidad","Diversidad de plantas y animales dentro de una región, lo que incluye ecosistemas terrestres y acuáticos, como así también los complejos ecológicos de los que forman parte (TSM, 2023)."]
["Calentamiento global"," Aumento a largo plazo de la temperatura media de la atmosfera terrestre y los océanos."]
["Cambio climático"," Modificación del clima con respecto al historial climático a una escala global o regional (TSM, 2023)."]
["Deforestación","Proceso de desaparición de bosques o masas forestales, fundamentalmente causada por la actividad humana (TSM, 2023)."]
["Cercas vivas o corredores biológicos","Las cercas vivas, llamadas así porque están compuestas de árboles, son plantaciones lineales de una o varias especies que soportan el alambre de púas y conforman una barrera alrededor de los lotes finqueros (TSM, 2023)."]
["Combustibles fósiles","Aquel que procede de la biomasa producida en eras pasadas, que ha sufrido enterramiento y tras él, procesos de transformación, por aumento de presión y temperatura, hasta la formación de sustancias de gran contenido energético, como el carbón, el petróleo, o el gas natural. Al no ser energía renovable, no se considera como energía de la biomasa, aunque su origen sea orgánico o de biomasa (TSM, 2023)."]
["Cultivos de cobertura","Son cultivos adicionales que se pueden integrar junto con el cultivo principal o se pueden establecer para cubrir la tierra a fin de proteger al suelo de los efectos erosivos del viento, la lluvia y las altas temperaturas fuera del ciclo productivo principal (TSM, 2023)."]
["Degradación ambiental","Deterioro progresivo del medioambiente a partir del agotamiento de recursos (TSM, 2023)."]
["Degradación de suelos","Se refiere básicamente a los procesos desencadenados por las actividades humanas que reducen su capacidad actual y/o futura para sostener ecosistemas naturales o manejados, para mantener o mejorar la calidad del aire y agua, y para preservar la salud humana (TSM, 2023)."]
["Desarrollo sostenible","Desarrollo que satisface las necesidades de la generación presente sin comprometer la capacidad de las generaciones futuras para satisfacer sus propias necesidades, lo que incluye lo social, económico y medioambiental (TSM, 2023)."]
["Desarrollo sustentable","Desarrollo que se enfoca únicamente en los recursos naturales y el medioambiente, tratando de preservarlos, conservarlos y protegerlos en beneficio de las generaciones actuales y venideras. No se tienen en cuenta las necesidades económicas y sociales especificas del ser humano (TSM, 2023)."]
["Disponibilidad de agua. ","Volumen total de líquido que hay en una región (TSM, 2023)."]
["Economía circular","Estrategia que busca reducir tanto la entrada de los materiales vírgenes como la producción de desechos, cerrando los flujos económicos y ecológicos de los recursos (TSM, 2023)."]
["Economía sostenible","Aquella que logra perdurabilidad e incrementa el capital de una organización sin descuidar lo social, medioambiental y económico de la comunidad donde desarrolla su actividad (TSM, 2023)."]
["Ecosistema forestal","La unidad funcional básica de interacción de los recursos forestales entre sí y de estos con el ambiente, en un espacio y tiempo determinados (Art. 7, Fracc. XXIII de la LGDFS)."]
["Efecto invernadero","Fenómeno por el cual ciertos gases retienen parte de la energía emitida por el suelo tras haber sido calentada por la radiación solar, por lo que se produce un aumento de la temperatura (TSM, 2023)."]
["Emisiones de GEI","Componente gaseoso de la atmosfera, natural o antropógeno, que absorbe y emite radiación en determinadas longitudes de onda del espectro de radiación terrestre emitida por la superficie de la Tierra, por la propia atmosfera y por las nubes (TSM, 2023)."]
["Erosión","La remoción acelerada de la capa superior del suelo de la superficie terrestre a través del agua, el viento y la labranza (TSM, 2023)."]
["Fertilizante","Material orgánico o inorgánico que se adiciona al suelo con el propósito de suplir determinados elementos esenciales para el crecimiento de las plantas (TSM, 2023)."]
["Fertilizantes sintéticos","Es el abono manufacturado mediante un proceso industrial. Como ya se indicó, los fertilizantes complejos son sintéticos, al igual que una gran variedad de fertilizantes simples, como la urea, superfosfatos, nitrato de amonio, etc. Una variante del origen sintético es el de los subproductos (TSM, 2023)."]
["Frontera agrícola","La zona de división entre las tierras ocupadas con cultivos y aquellas que nunca antes fueron cultivadas, donde se desarrollan actividades no agrícolas y solo crece vegetación natural, que puede ser aprovechada para la caza, la recolección de frutos o alguna otra actividad (TSM, 2023)."]
["Incorporación de materia orgánica al suelo","Cuando se realizan residuos de cosecha, composta, etc. (TSM, 2023)."]
["Labranza cero","Técnica de cultivo sin alteración del suelo mediante arado (TSM, 2023)."]
["Labranza media","Sistema de labranza en el cual por lo menos 30 % de la superficie del suelo debe quedar cubierta de residuos de plantas después de la siembra, con el fin de controlar la erosión  (TSM, 2023)."]
["Labranza profunda"," Es la operación de la agricultura que consiste en trazar surcos profundos en el suelo con maquinaria agrícola o mediante herramientas o con un arado (TSM, 2023)."]
["Labranza reducida","El sistema de labranza propuesto para la renovación rápida y económica de las plantaciones de caña se ha denominado “Labranza reducida (LBR)” (TSM, 2023)."]
["Masa vegetal","Arbustos, la vegetación herbácea y la parte aérea de los árboles, durante su proceso de actividad vital a través de la fotosíntesis fijan el carbono. En la capa de masa orgánica no descompuesta que se encuentra en el suelo como son las hojas, ramas y semillas (TSM, 2023)."]
["Materiales no reciclables","Materiales que por su composición no son reutilizables en la elaboración de subproductos (TSM, 2023)."]
["Mitigación de gases","Intervención humana encaminada a reducir las fuentes o potenciar los sumideros de gases de efecto invernadero (TSM, 2023)."]
["Obras de conservación de suelos","Cuando se realizan terrazas, presas de gavión, curvas de nivel, drenaje de suelos."]
["Perennes","Aquellos que tienen ciclos muy largos, ya que su periodo de vida vegetativo se puede extender más allá de 25 años continuos, tiempo durante el cual, una vez realizada la siembra, pueden obtenerse varias cosechas, ya sea cíclicas o continuas, dependiendo del tipo de plantación (TSM, 2023)."]
["Reconversión productiva","Cuando se realiza cambio de un cultivo a otro para incrementar la productividad de un predio (TSM, 2023)."]
["Residuos de cosecha","Los residuos agrícolas que genera, se pueden utilizar para la alimentación animal, reciclar nutrientes y en forma de materia orgánica dentro del agro sistema, como cobertura vegetal del suelo para mantener la humedad y evitar la erosión, controlar plantas indeseables, así como la generación de energía (TSM, 2023)."]
["Plantación forestal comercial","Es el cultivo de especies forestales establecidas en terrenos temporalmente forestales o preferentemente forestales, con propósitos mercantiles (Art. 7, Fracc. XL de la LGDFS)."]
["Unidades de manejo para la conservación de vida silvestre","Los predios e instalaciones registrados que operan de conformidad con un plan de manejo aprobado y dentro de los cuales se da seguimiento permanente al estado del hábitat y de poblaciones o ejemplares que ahí se distribuyen (Art. 7, Fracc. XLVIII de la LGVS)."]
["Recursos forestales no maderables","Se refiere a la parte no leñosa de la vegetación de un ecosistema forestal, y susceptibles de aprovechamiento o uso, incluyendo líquenes, musgos, hongos y resinas, así como los suelos de terrenos forestales y preferentemente forestales (Art. 7, Fracc. XLIX de la LGDFS)."]
["Recursos forestales maderables","Los constituidos por vegetación leñosa susceptibles de aprovechamiento o uso (Art. 7, Fracc. XLVIII de la LGDFS)."]
["Rotación de cultivos","Cuando un cultivo que se siembra regularmente cambia a otro en el mismo predio (TSM, 2023)."]
["Serie III del SIAP 2018","Serie número tres de las clasificaciones de frontera agrícola según SIAP para marcar una distribución de la superficie con actividad agrícola, de las características del territorio y dinámica de cada temporalidad, emitida en el año 2018."]
["Silvicultura","La teoría y práctica de controlar el establecimiento, composición, constitución, crecimiento y desarrollo de los ecosistemas forestales para la continua producción de bienes y servicios (Art. 7, Fracc. LXIV de la LGDFS)."]
["Sistema agroforestal","Conjunto de técnicas de manejo de tierras que implica la combinación simultanea o escalonada en tiempo y espacio de los árboles forestales con la ganadería y/o los cultivos (TSM, 2023)."]
["Sitio de disposición temporal de residuos","Son instalaciones de almacenamiento temporal de los residuos para ser transportados posteriormente a un sitio de disposición final; eventualmente, podría aplicarse algún otro proceso a los materiales recibidos, como la separación, compactación y trituración (TSM, 2023)."]
[]
["Glosario del Índice de Género",null,null,null,null,null,null,"Volver arriba"]
["Acceso igualitario","Es el resultado de aquellas decisiones, acciones y medidas pertinentes, que brindan a niñas y mujeres, la misma oportunidad que tienen los niños y hombres de acceder a educación, salud, trabajo digno y empleos, posiciones de liderazgo, participación en la vida política, bienes, servicios, financiamiento, recursos y tecnología; en respeto a su dignidad, derechos humanos y libertades, con el propósito de que desarrollen su potencial como personas y para garantizar la igualdad entre hombres y mujeres en el goce de todos los derechos económicos, sociales, culturales, civiles y políticos (ONU, 1979)."]
["Acción comunitaria","Estrategia de intervención o de participación amplia desarrollada por una diversidad de actores, cuya finalidad es dar respuesta a necesidades concretas, para espacios y escenarios compartidos dentro de los entornos rurales o urbanos (TSM, 2023)."]
["Acciones afirmativas","Es el conjunto de medidas de carácter temporal correctivo, compensatorio y/o de promoción, encaminadas a acelerar la igualdad sustantiva entre mujeres y hombres (EPIC, s.f.)."]
["Acoso sexual","Es una forma de violencia en la que, si bien no existe la subordinación, hay un ejercicio abusivo de poder que conlleva a un estado de indefensión y de riesgo  para la víctima, independientemente de que se realice en uno o varios eventos (Gobierno de México, 2012)."]
["Ajustes Razonables","Se entenderán las modificaciones y adaptaciones necesarias y adecuadas a un proyecto, actividad, bien o servicio, que no impongan una carga desproporcionada o indebida, cuando se requieran en un caso particular, para garantizar a las niñas y mujeres el goce o ejercicio, en igualdad de condiciones con los niños y hombres, de todos los derechos humanos y libertades fundamentales (TSM, 2023)."]
["Alfabetización digital","La habilidad de utilizar tecnología digital, herramientas de comunicación o redes para localizar, evaluar, usar y crear información. También se refiere a la habilidad para entender y usar la información en múltiples formatos de una gran gama de recursos que se presentan por medio de la computadora, o la habilidad de una persona para desempeñar tareas eficientemente en un ambiente digital. La alfabetización digital incluye la habilidad de leer e interpretar los medios, reproducir datos e imágenes a través de la manipulación digital y evaluar y aplicar el nuevo conocimiento obtenido en los ambientes digitales (UNESCO, 2011)."]
["Autonomía económica","La autonomía económica es un pilar fundamental de la autonomía de las mujeres y, por definición, requiere que estas perciban ingresos que les permitan superar la pobreza y disponer de su tiempo libremente para capacitarse, acceder al mercado laboral, desarrollarse profesional y personalmente, participar de manera activa de la vida social y política, y dedicarse a sus seres queridos sin que ello se transforme en una barrera para el logro de sus propias aspiraciones (CEPAL, 2016)."]
["Brecha de género","Las brechas de desigualdad de género son una medida estadística que da cuenta de la distancia de mujeres y hombres con respecto a un mismo indicador. La cuantificación de las brechas ha estimulado el desarrollo de estadísticas y la formulación de indicadores para comprender las dimensiones de la desigualdad y monitorear los efectos de las políticas sobre su erradicación, así como los avances en la eliminación de la desigualdad comparativamente a través del tiempo. Algunos ejemplos de estas brechas son: salariales, de participación laboral, de uso de tiempo, entre otras (INMUJERES, s.f.)."]
["Brecha salarial","La brecha salarial es la diferencia entre el promedio de salario de los hombres y de las mujeres dentro de una organización, sector o país. La brecha salarial, al ser la diferencia entre el promedio salarial, lo que realmente nos deja ver es la distribución de hombres y mujeres dentro del centro de trabajo. Por lo general, la brecha se explica debido a que los hombres ocupan en mayor proporción cargos de alto nivel –y por ende mejor pagados– que las mujeres, quienes mayoritariamente ocupan cargos de bajo nivel dentro de las organizaciones (Embajada Británica, s.f.)."]
["Capacitación en igualdad de género","Una herramienta, estrategia o mecanismo que pretende generar efectos de transformación a nivel individual y colectivo sobre la igualdad de género por medio de la concientización, la sensibilización, el empoderamiento del aprendizaje, la construcción de conocimiento, y desarrollo de habilidades. Forma parte de una estrategia de integración de la perspectiva de género (EIGE, 2019)."]
["Clima laboral","Conjunto de características, condiciones, cualidades, atributos o propiedades de un ambiente de trabajo concreto que son percibidos, sentidos o experimentados por las personas que conforman el centro de trabajo, que influyen en la conducta y/o eficacia y eficiencia de las trabajadoras y los trabajadores (SE, 2015)."]
["Consentimiento libre, previo e informado","Es un derecho específico de los Pueblos Indígenas, a través del cual pueden dar o negar su consentimiento a un proyecto que les afecte a ellos o sus territorios. Una vez que hayan dado su consentimiento, pueden retirarlo en cualquier etapa del proceso. Por otra parte, el CLPI les permite negociar las condiciones bajo las cuales se diseñan, implementan, supervisan y evalúan los proyectos. Este principio está consagrado dentro del derecho universal a la libre determinación (ONU, s.f.)."]
["Corresponsabilidad","Es el reparto equilibrado de las tareas domésticas y de las responsabilidades familiares, tales como la organización, el cuidado, la educación y el afecto de personas dependientes dentro del hogar, con el fin de distribuir de manera justa los tiempos de vida de mujeres y hombres (Senado de la República, s.f.)."]
["Cuidados","Todas aquellas actividades cotidianas que se realizan dentro y fuera de los hogares para brindar bienestar a las personas que carecen de autonomía, y que logren vivir bien y desarrollar sus capacidades; también se refiere a las actividades de reproducción de la vida cotidiana, es decir, aquellas que se realizan de manera reiterada para el sostenimiento de la vida diaria (Gobierno de México, s.f.)."]
["Cultura de paz","Consiste en una serie de valores, actitudes y comportamientos que rechazan la violencia y previenen los conflictos tratando de atacar sus causas para solucionar los problemas mediante el diálogo y la negociación entre las personas, los grupos y las naciones (UNESCO, 1999)."]
["Discriminación","Se entenderá por discriminación toda distinción, exclusión, restricción o preferencia que, por acción u omisión, con intención o sin ella, no sea objetiva, racional ni proporcional y tenga por objeto o resultado obstaculizar, restringir, impedir, menoscabar o anular el reconocimiento, goce o ejercicio de los derechos humanos y libertades, cuando se base en uno o más de los siguientes motivos: el origen étnico o nacional, el color de piel, la cultura, el sexo, el género, la edad, las discapacidades, la condición social, económica, de salud o jurídica, la religión, la apariencia física, las características genéticas, la situación migratoria, el embarazo,\nla lengua, las opiniones, las preferencias sexuales, la identidad o filiación política, el estado civil, la situación familiar, las responsabilidades familiares, el idioma, los antecedentes penales o cualquier otro motivo (Gobierno de México, 2023)."]
["Discriminación contra las mujeres","Toda distinción, exclusión o restricción basada en el sexo que tenga por objeto\no por resultado menoscabar o anular el reconocimiento, goce o ejercicio por la mujer, independientemente de su estado civil, sobre la base de la igualdad del hombre y la mujer, de los derechos humanos y las libertades fundamentales en las esferas política, económica, social, cultural y civil o en cualquier otra esfera (Gobierno de México, 2022)."]
["Discriminación positiva/acciones afirmativas","Las acciones afirmativas son políticas públicas cuyo objetivo es compensar las condiciones que discriminan a ciertos grupos sociales del ejercicio de sus derechos. Se les conoce también como “acciones positivas”, “medidas positivas”, “discriminación en sentido inverso” y “discriminación positiva”. Este tipo de acciones son recomendadas para grupos sociales en desventaja, en el caso de las mujeres son obligatorias ya que su condición de género es un factor que limita su acceso a los recursos económicos, culturales y políticos importantes para su desarrollo; su aplicación a favor de las mujeres no constituye discriminación para los hombres ya que para éstos el género no representa una limitante para el ejercicio de sus derechos (INMUJERES, s.f.)."]
["Empleos verdes","Se refiere a la transformación de las economías, las empresas, los entornos de trabajo y los mercados laborales hacia una economía sostenible que proporciona un trabajo decente con bajo consumo de carbono (OIT, s.f.)."]
["Empoderamiento económico y social","Es un proceso por medio del cual las mujeres transitan de cualquier situación de opresión, desigualdad, discriminación, explotación o exclusión a un estadio de conciencia, autodeterminación y autonomía, el cual se manifiesta en el ejercicio del poder democrático que emana del goce pleno de sus derechos y libertades (Gobierno de México, 2012)."]
["Empresas de mujeres","El Banco Interamericano de Desarrollo (BID) define una empresa de mujeres desde dos criterios: propiedad de la empresa y presencia de mujeres en puestos de liderazgo. Según la Corporación Financiera Internacional (CFI), “es aquella en la que al menos el 51% del capital está en manos de mujeres; o aquella en la que una o varias mujeres poseen al menos el 20% del capital, tiene al menos una mujer en los puestos de CEO, COO, Presidencia o Vicepresidencia de la empresa, y al menos el 30% del Directorio está compuesto por mujeres (TSM, 2023)."]
["Estereotipos de género","Son las ideas, cualidades y expectativas que la sociedad atribuye a mujeres y hombres; son representaciones simbólicas de lo que mujeres y hombres deberían ser y sentir; son ideas excluyentes entre sí que al asignarnos una u otra reafirman un modelo de feminidad y otro de masculinidad. Con frecuencia los estereotipos se usan para justificar la discriminación de género y pueden reforzarse con teorías tradicionales o modernas, incluso a través de leyes o de prácticas institucionales (INMUJERES, s.f.)."]
["Evaluación de impacto de género","Una evaluación, análisis o valoración ex-ante de un reglamento, política o programa que permita identificar, desde una perspectiva preventiva, la probabilidad de\nque una determinada decisión tenga consecuencias negativas para el estado de igualdad entre hombres y mujeres (EIGE, 2019)."]
["Género","Alude a los significados que la sociedad asigna a mujeres y hombres a través de la diferenciación de los roles, actitudes, conductas y responsabilidades definidas como “propias” de unas y otros. Esta categoría se centra en las relaciones sociales entre hombres y mujeres (relaciones de género), por ello es preciso subrayar que género no es sinónimo de mujeres (Scott, 1990)."]
["Igualdad de género","La situación en la cual mujeres y hombres acceden con las mismas posibilidades y oportunidades al uso, control y beneficio de bienes servicios y recursos de la sociedad, así como a la toma de decisiones en todos los ámbitos de la vida social, económica, política, cultural y familiar (Gobierno de México, 2022)."]
["Igualdad de oportunidades","El enfoque de Igualdad de Oportunidades busca nivelar las oportunidades para que el género, la raza o etnicidad, el lugar de nacimiento, el entorno familiar y otras características que están fuera del control del individuo, no influyan en los resultados de una persona. El éxito en la vida debe depender de decisiones de los individuos, el esfuerzo y talento, no en sus circunstancias al nacer (Banco Mundial, s.f.)."]
["Igualdad de remuneración","El principio de igual salario por igual trabajo busca asegurar que las mujeres y los hombres que realizan trabajos idénticos o similares reciban la misma remuneración (EPIC, s.f.)."]
["Inclusión financiera de las mujeres","Se define como el acceso al uso de productos y servicios financieros formales bajo una regulación apropiada que garantice esquemas de protección a las personas usuarias y promueva la educación financiera para mejorar la capacidad financiera de todos los segmentos de la población. Comisión Nacional Bancaria y de Valores (CNBV). El acceso y uso de productos y servicios financieros facilitan la vida diaria y ayudan a las mujeres a planificar, desde metas a largo plazo hasta emergencias\ninesperadas. Es probable que las mujeres al iniciar con el uso de una cuenta, utilicen otros servicios financieros, como el crédito o los seguros, para iniciar o expandir negocios, invertir en educación o salud, gestionar el riesgo y superar las crisis financieras, que pueden mejorar la calidad de sus vidas (TSM, 2023)."]
["Inclusión social","Es el proceso de mejorar la habilidad, la oportunidad y la dignidad de las personas que se encuentran en desventaja debido a su identidad, para que pueda  participar en la sociedad (Banco Mundial, 2021)."]
["Interseccionalidad","Categoría de análisis para referir los componentes que confluyen en un mismo caso, política o mecanismo multiplicando las desventajas y discriminaciones. Este enfoque permite contemplar los problemas desde una perspectiva integral, evitando simplificar las conclusiones y, por lo tanto, el abordaje de dicha realidad (INMUJERES, s.f.)."]
["Institucionalización de la perspectiva de género","Proceso sistemático de integración de un nuevo valor en las rutinas del quehacer de una organización, mediante el cual las demandas de las mujeres por la igualdad sustantiva se insertan en los procesos y procedimientos regulares y a las normas institucionales. Como resultado, se generan prácticas, reglas y sanciones, mantenidas por la voluntad general de la organización, para propiciar la igualdad, combatir la violencia contra las mujeres y contrarrestar las desventajas sociales que se asocian a la condición sexo genérica. Implica el desarrollo de diversas acciones:\n1. Formular políticas, reglamentos y acciones específicas de intervención para lograr relaciones igualitarias.\n2. Desarrollar instrumentos técnicos y metodológicos capaces de incorporar la perspectiva de género en la planeación, seguimiento y evaluación de programas.\n3. Sensibilizar y capacitar en temas de perspectiva de género al personal, para que puedan identificar las asimetrías culturales, sociales, y económicas entre mujeres y hombres y actuar en consecuencia.\n4. Disponer de recursos económicos suficientes para la planeación, ejecución, seguimiento y evaluación de las políticas institucionales para la igualdad entre mujeres y hombres (INMUJERES, s.f.)."]
["Movilidad horizontal y vertical","La movilidad se puede presentar dentro de un mismo estrato socioeconómico,\ncomo cuando una persona cambia de trabajo, pero sus ingresos o su nuevo puesto\nse mantienen prácticamente al mismo nivel del anterior. A esto le llamamos movilidad horizontal. Ahora, cuando una persona pasa a una posición en la que sus ingresos o el papel que juega en estas nuevas circunstancias corresponden a un estrato distinto al original, está teniendo movilidad vertical. En este caso, la movilidad puede ser ascendente o descendente (CEEY, s.f.)."]
["Necesidades básicas","Son aquellas cuya satisfacción es indispensable para la existencia humana, independientemente del medio social en que se desenvuelve la persona. Las necesidades consideradas suelen limitarse a las siguientes cuatro categorías:\ni) Acceso a una vivienda que asegure un estándar mínimo de habitabilidad para el hogar.\nii) Acceso a servicios básicos que aseguren un nivel sanitario adecuado.\niii) Acceso a educación básica.\niv) Capacidad económica para alcanzar niveles mínimos de consumo (CEPAL, 2021)."]
["Organización","En el contexto de la Taxonomía, se refiere al usuario final que implementa el cuestionario del IIG y que pudiera ser cualquier entidad del sector público, empresa del sector privado, institución financiera (ej. banca comercial y banca de desarrollo), órgano de gobierno, representantes del gobierno federal, estatal(es) o municipal(es), entre otros usuarios (TSM, 2023)."]
["Opciones diferenciadas de financiamiento","De manera genérica, son aquellas fuentes de financiamiento independientes de la banca y de los mercados tradicionales (ej. servicios de las compañías fintech), y aquellas ofrecidas por la banca y mercados tradicionales ajustadas a las necesidades específicas de sus beneficiarias, ofreciendo plazos flexibles, tasas preferenciales, entre otros elementos (TSM, 2023)."]
["Paridad de género","La paridad de género se refiere a una participación y representación equilibrada de mujeres y hombres en los puestos de poder y de toma de decisiones en todas las esferas de la vida (política, económica y social) (INMUJERES, 2020)."]
["Plan de igualdad de género","Conjunto de acciones que buscan: realizar evaluaciones de impacto/auditorías de conductas, procedimientos y prácticas dedicadas a la identificación de sesgos de género; identifican e implementan estrategias innovadoras para corregir cualquier sesgo; y establece objetivos concretos con seguimiento monitoreado por indicadores de progreso (EIGE, 2019)."]
["Políticas de conciliación","La conciliación de la vida laboral, familiar y personal es una línea de trabajo que se impulsa como parte de las políticas de igualdad con el propósito de transformar la desigual distribución de las tareas domésticas y de cuidado socialmente asignado a las mujeres.\nLa conciliación se impulsa mediante acciones que, desde el sector privado, coadyuven a que las personas puedan erradicar las tensiones entre el trabajo, la vida personal y familiar, a través por ejemplo de: horarios mixtos, compactados o flexibles, guarderías, lactarios, permisos de maternidad, paternidad o redes de cuidado comunitario o en la que se corresponsabilicen el sector público y privado, entre otras (INMUJERES, s.f.)."]
["Precio asequible por razón de género","Se refiere a la cantidad de dinero a pagar para la adquisición o uso de un bien o servicio, que resulte alcanzable tanto para hombres como para mujeres, determinada conforme a una práctica comercial aceptable, sin elementos discriminatorios que constituyan una barrera que impida el acceso a la adquisición o uso del bien o servicio por razones de género (TSM, 2023)."]
["Progresividad","El principio de progresividad implica el gradual progreso para lograr el cumplimiento de los derechos lo más expedita y eficazmente posible. El principio de progresividad se ha relacionado particularmente con los derechos económicos, sociales y culturales, pero aplica también para los civiles y políticos, procurando por todos los medios posibles su satisfacción en cada momento. Para efectos de esta Taxonomía este principio se relaciona con el progreso gradual y continuo para la consecución de los objetivos del índice y, al mismo tiempo, con la prohibición de retrocesos injustificados en los niveles de cumplimiento alcanzados (CNDH, 2016)."]
["Resiliencia","Se define como la habilidad de un individuo, comunidad, sociedad o sistema expuestos a una amenaza para resistir, absorber, adaptarse y recuperarse de sus efectos de manera oportuna y eficaz. La construcción de la resiliencia significa hacer mayor énfasis en qué es lo que las personas y las comunidades pueden hacer por sí mismas y cómo se pueden fortalecer sus capacidades, antes que concentrarse en su vulnerabilidad frente al desastre o sus necesidades en una emergencia (UNICEF, 2015)."]
["Salud y género","Se refiere a la vinculación entre la calidad de vida y la salud integral de las mujeres desde una perspectiva amplia, factible e inclusiva. Dicha vinculación incluye la relación entre la visibilización de la salud sexual y reproductiva de las mujeres y el acceso a los servicios sociales como factores determinantes en la mejora de su calidad de vida, así como, la incorporación del enfoque de género y la consideración específica de las necesidades de las mujeres en la atención sociosanitaria y la comprensión de los entornos vitales, territorio y comunidad para la transformación de los programas de asistencia médica (TSM, 2023)."]
["Segregación horizontal y vertical","La Organización Mundial del Trabajo, explica la segregación ocupacional como una prueba de desigualdad, que incluye estratificación social en cuanto al poder, las cualificaciones y las ganancias; es decir, es la asignación de las tareas laborales estereotipadas. Esta diferenciación impide a las personas desarrollarse laboral o profesionalmente en actividades no atribuibles a su sexo/género.\nEsta forma de desigualdad que afecta principalmente a las mujeres puede ser horizontal; es decir cuando los trabajos “para hombres” están ocupados por ellos (minería, construcción, servicios financieros, entre otros) y los trabajos “para mujeres”, están ocupados por ellas (servicios comunales y sociales, secretariales, servicios educativos, de salud y asistencia social, entre otros). También existe la segregación vertical, cuando hombres y mujeres tienden a ocupar categorías diferentes dentro de un mismo trabajo (cargos de dirección, coordinación de áreas, altos mandos y subordinados), donde ellos ocupan, por lo general, jerarquías más altas y con mejores salarios (INMUJERES, s.f.)."]
["Sesgos de género/sexistas","Se refiere a la omisión que se hace sobre cómo son conceptualizadas las mujeres, los hombres y las relaciones de género en un determinado objeto de estudio o problemática. La ceguera o el sesgo de género constituye un grave defecto al diseñar programas o políticas públicas que omiten o marginan el análisis de género en las diferentes fases de dicha formulación y por tanto excluyen las necesidades y los impactos de las decisiones y acciones en la vida de las mujeres (INMUJERES, s.f.)."]
["Sistema sexo género","Es el conjunto de creencias, valores, costumbres, normas, prácticas, oportunidades y comportamientos sociales diferentes, que inciden y regulan la vida de una persona, dependiendo de si es mujer o si es hombre” (Colín, 2017). La antropóloga Gayle Rubin formuló la categoría de sistema sexo-género, que se refiere “al conjunto de disposiciones por el que una sociedad transforma la sexualidad biológica en productos de la actividad humana, y en el cual se satisfacen esas necesidades transformadas” (Bravo, 2008). En este sistema, que es el predominante en todo el mundo, las mujeres y los hombres desempeñan papeles distintos (roles de género) que están a su vez llenos de “etiquetas” (estereotipos).\nLas palabras sexo y género suelen ser utilizadas como sinónimos, pero no lo son. Mientras el sexo tiene que ver con las características biológicas, el concepto de género hace referencia a todas aquellas prácticas, valores, costumbres y tareas que la sociedad, y no la naturaleza, ha asignado de forma distinta a cada uno de los sexos (UNWOMEN Training Centre, s.f.)."]
["Teletrabajo","Es una forma de organización laboral subordinada que consiste en el desempeño de actividades remuneradas, en lugares distintos al establecimiento o establecimientos del patrón, por lo que no se requiere la presencia física de la persona trabajadora bajo la modalidad de teletrabajo, en el centro de trabajo, utilizando primordialmente las tecnologías de la información y comunicación, para el contacto y mando entre la persona trabajadora bajo la modalidad de teletrabajo y el patrón. La persona trabajadora bajo la modalidad de teletrabajo será quien preste sus servicios personal, remunerado y subordinado en lugar distinto a las instalaciones de la empresa o fuente de trabajo del patrón y utilice las tecnologías de la información y la comunicación. Para efectos de la modalidad de teletrabajo, se entenderá por tecnologías de la información y la comunicación, al conjunto de servicios, infraestructura, redes, software, aplicaciones informáticas y dispositivos que tienen como propósito facilitar las tareas y funciones en los centros de trabajo, así como las que se necesitan para la gestión y transformación de la información, en particular los componentes tecnológicos que permiten crear, modificar, almacenar, proteger y recuperar esa información (Gobierno de México, 2021)."]
["Trabajo digno","Se entiende por trabajo digno o decente aquél en el que se respeta plenamente la dignidad humana del trabajador; no existe discriminación por origen étnico o nacional, género, edad, discapacidad, condición social, condiciones de salud, religión, condición migratoria, opiniones, preferencias sexuales o estado civil; se tiene acceso a la seguridad social y se percibe un salario remunerador; se recibe capacitación continua para el incremento de la productividad con beneficios compartidos, y se cuenta con condiciones óptimas de seguridad e higiene para prevenir riesgos de trabajo. El trabajo digno o decente también incluye el respeto irrestricto a los derechos colectivos de los trabajadores, tales como la libertad de asociación, autonomía, el derecho de huelga y de contratación colectiva (Gobierno de México, 2022)."]
["Trabajo flexible","Práctica laboral que permite al personal empleado un cierto grado de libertad para decidir cómo se realizará el trabajo y cómo se coordinarán los horarios empleados. Los arreglos de trabajo flexible incluyen cualquier tipo de arreglo de tiempo y/o espacio para realizar el trabajo, como esquemas de horario flexible, tiempo parcial, trabajo remoto/teletrabajo (EIGE, 2019)."]
["Transición justa","El concepto de transición justa es una herramienta privilegiada para abordar la intersección entre el mundo del trabajo y el ambiente: sin una producción más responsable desde el punto de vista ecológico, no podrá haber un mejor futuro para las personas trabajadoras y sus comunidades, y sin puestos de trabajo decentes, no podrá haber una sociedad y una producción sostenibles. Las directrices de políticas para una Transición justa de la OIT brindan un conjunto de orientaciones acerca de las políticas necesarias para proteger el empleo y generar nuevas oportunidades laborales en condiciones de trabajo decente, a la vez que se preserva el ambiente (OIT, 2021)."]
["Transversalidad","Es el proceso que permite garantizar la incorporación de la perspectiva de género con el objetivo de valorar las implicaciones que tiene para las mujeres y los hombres cualquier acción que se programe, tratándose de legislación, políticas públicas, actividades administrativas, económicas y culturales en las instituciones públicas y privadas (Gobierno de México, 2022)."]
["Uso del tiempo","El uso que le damos al tiempo o la manera en que lo distribuimos en nuestra vida cotidiana. En general, depende de varios factores de diferenciación social, tales como: género, clase social, etnia, región de residencia, e inciden en el tipo de actividades que realizamos, como: trabajo remunerado, doméstico, actividades recreativas, de ocio, de cuidado (INEGI, 2019)."]
["Violencia contra las mujeres","Cualquier acción u omisión, basada en su género, que les cause daño o sufrimiento psicológico, físico, patrimonial, económico, sexual o la muerte tanto en el ámbito privado como en el público (Gobierno de México, 2012)."]
[]
[]
["Glosario sobre conceptos financieros aplicables",null,null,null,null,null,null,"Volver arriba"]
["Green Asset Ratio","El Green Asset Ratio o en español, Ratio de Activos Verdes es una métrica financiera que evalúa la proporción de activos financieros relacionados con inversiones sostenibles o ambientalmente responsables en una cartera de inversión. Se utiliza para medir el compromiso de una entidad financiera o inversor con prácticas de inversión sostenible. (S&P Global, 2024).\n\nEjemplo: Si una cartera de inversión tiene $100,000 y $30,000 de esos fondos están invertidos en empresas o activos que promueven prácticas verdes o sostenibles, el Ratio de Activos Verdes sería del 30% ($30,000/$100,000).\n\nEste ratio ayuda a los inversores y empresas a cuantificar su contribución a la sostenibilidad y atraer a inversores que priorizan las inversiones responsables."]
["Administradores de Fondos e Inversionistas Institucionales","Entidades especializadas que gestionan grandes sumas de dinero en nombre de inversores, como fondos de pensiones, compañías de seguros y fondos de inversión. Su objetivo principal es tomar decisiones de inversión estratégicas con el fin de obtener rendimientos y maximizar el valor de los activos bajo su gestión (Banco de México, 2014)."]
["Cartera de Crédito","Conjunto de documentos que amparan los activos financieros o las operaciones de financiamiento hacia un tercero y que el tenedor de dicho (s) documento (s) o cartera se reserva el derecho de hacer valer las obligaciones estipuladas en su texto (CNBV, s.f.)."]
["Créditos a la vivienda","Es un préstamo que se usa para comprar o remodelar una casa, adquirir un terreno u obtener liquidez para cubrir alguna otra necesidad financiera. El crédito se debe pagar en un periodo establecido de tiempo a través de pagos mensuales (Banco de México, s.f.)."]
["Créditos comerciales","Son los créditos directos o contingentes, incluyendo créditos puente, así como los intereses que generen, otorgados a personas morales o personas físicas con actividad empresarial y destinados a su giro comercial o financiero; incluyendo los otorgados a entidades financieras distintos de los de préstamos interbancarios menores a 3 días hábiles; las operaciones de factoraje y operaciones de arrendamiento financiero que sean celebradas con dichas personas morales o físicas; los créditos otorgados a fiduciarios que actúen al amparo de fideicomisos y los esquemas de crédito comúnmente conocidos como “estructurados”. Asimismo, quedarán comprendidos los créditos concedidos a entidades federativas, municipios y sus organismos descentralizados, cuando sean objeto de calificación de conformidad con las disposiciones aplicables (CNBV, s.f.)."]
["Créditos personal","Un Crédito personal es aquel en donde la entidad financiera pone a disposición del cliente una suma de dinero que podrá usar libremente, sin necesidad de destinarlo al consumo de un bien o asunto específico (CONDUSEF, s.f.)."]
["Empresas Cotizadas y Grandes Empresas","Empresas cuyas acciones o valores están registrados en una bolsa de valores y se negocian públicamente en el mercado abierto. Los inversores y el público en general pueden comprar y vender acciones de estas empresas en el mercado bursátil. Estas empresas están sujetas a regulaciones financieras y deben proporcionar información periódica sobre sus operaciones y resultados financieros al público y a las autoridades reguladoras (TSM, 2023)."]
["Gastos operativos (OPEX)","Los gastos necesarios para operar el negocio, es decir, aquellos sin los cuales no puedes realizar normalmente tus actividades, por ejemplo, los gastos de administración (pago de sueldo al contador, secretaria, teléfono, luz, etc.), gastos de venta (pago de publicidad, sueldo o comisiones a vendedores, desgaste de la camioneta que reparte el producto, etcétera) (NAFIN, s.f.)."]
["Ingresos por ventas de bienes y servicios","Recursos económicos que una empresa gana al vender sus productos o servicios a los clientes. Es la cantidad total de dinero que la empresa recibe por sus actividades comerciales principales(TSM, 2023)."]
["Instituciones de crédito","Entidades que ofrecen el servicio de banca y crédito, entendiéndose por este a la captación de recursos del público en el mercado nacional para su colocación en el público, mediante actos causantes de pasivo directo o contingente, quedando el intermediario obligado a cubrir el principal y, en su caso, los accesorios financieros de los recursos captados, de conformidad con el artículo 2 de la Ley de Instituciones de Crédito (CNBV, s.f.)."]
["Instrumentos etiquetados","Activos financieros que han sido designados o etiquetados de manera específica para cumplir con ciertos requisitos o restricciones regulatorias o para fines contables o de cumplimiento de estrategias particulares. Estos instrumentos pueden incluir acciones, bonos, derivados u otros valores financieros que se han asignado a una categoría o clasificación particular según ciertas normativas o estándares contables (TSM, 2023)."]
["Inversiones en activo fijo (CAPEX)","Desembolsos financieros realizados por una empresa para adquirir, mejorar o mantener activos a largo plazo, como propiedades, maquinaria, equipos o tecnología. Estos gastos están destinados a generar beneficios a largo plazo y no se consideran gastos operativos regulares (TSM, 2023)."]
["Inversiones en capital accionario corporativo","Acciones de una empresa que son adquiridas por inversionistas o accionistas externos, lo que les otorga propiedad parcial de la empresa y derechos sobre sus ganancias y decisiones corporativas (TSM, 2023)."]
["Inversiones en valores","Se refiere a la compra de instrumentos financieros, como acciones, bonos u otros activos negociables, con el propósito de generar ganancias a través de la apreciación del valor de estos activos o a través de pagos de intereses o dividendos (TSM, 2023)."]
["Inversiones permanentes","Activos que una entidad o empresa planea mantener a largo plazo en lugar de vender a corto plazo, con el objetivo de generar ingresos a largo plazo o beneficiarse de la apreciación del valor (TSM, 2023)."]
["Otros activos","Inversiones en activos generales y que no cuentan con una característica particular (TSM, 2023)."]
["Otros títulos de emisores \"totalmente alineados\"","Valores emitidos por empresas o entidades que están comprometidas con prácticas sostenibles y ambientalmente responsables en sus operaciones y que utilizan los fondos recaudados para financiar proyectos o actividades que promueven la sostenibilidad (TSM, 2023)."]
["Otros títulos de otros emisores","Valores emitidos por empresas o entidades (TSM, 2023)."]
["Títulos de deuda del sector privado","Instrumentos financieros emitidos por empresas no gubernamentales para obtener financiamiento. Estos títulos representan deudas que la empresa debe pagar a los inversionistas en el futuro, generalmente con intereses (TSM, 2023)."]
["Títulos de deuda soberana etiquetada","Bonos emitidos por un gobierno y destinados específicamente a financiar proyectos o gastos relacionados con una causa particular, como la sostenibilidad, la educación, la salud o la infraestructura. Estos bonos están \"etiquetados\" para indicar su uso específico y se emiten con la promesa de que los ingresos se destinarán a esa área designada (TSM, 2023)."]

{"sheet":"Recursos","index":2,"n_rows":47,"n_cols":3,"rows_kept":47,"cut":false,"hidden":true,"merged":[[46,1,47,1],[3,0,4,6],[16,0,16,1],[35,1,38,1],[41,1,44,1],[33,0,33,1],[18,2,26,2],[6,3,9,3],[35,2,44,2],[46,2,47,2]]}
[]
[null,"Definición de condiciones generales"]
[]
["Instrucciones: Por favor, responde las siguientes preguntas, escribiendo con texto libre en las casillas amarillas o seleccionando una opción de las listas desplegables en las casillas azules. En la presente hoja se deben establecer las características iniciales de las operaciones financieras y/o proyectos. En la primera caja se establecen cuestiones generales para identificar la evaluación (ID), como el  nombre de la institución,  operaciones financieras y/o proyectos, fecha en que se está completando la evaluación o el periodo que comprende el desembolso de recursos de las operaciones financieras y/o proyectos. "]
[]
[null,null,"Ejemplos y descripciones"]
["Fecha de llenado de la evaluación ",null,"2023-06-22"]
["Institución que realiza la evaluación",null,"Nombre de la institución"]
["Nombre del proyecto o ID",null,"Evaluación de financiamiento carretera México - Querétaro (Año - Clave de Proyecto - Nombre)"]
["Rango de fecha que comprende las operaciones financieras y/o proyectos evaluados",null,"Periodo en el que se desembolsan los recursos en el proyecto por ejemplo de 01/2019 a 12/2024"]
[]
["Selecciona el tipo de institución desde la que evaluarás la alineación a la Taxonomía Sostenible de México. ","Seleccione","En función del tipo de institución que selecciones, los resultados serán presentados en el formato adecuado. Si deseas saber a qué se refiere cada institución, consulta el glosario "]
[]
[]
[]
[]
["Indica en la siguiente lista los sectores incluidos en las operaciones financieras y/o proyectos"]
["Sectores ambientales:"]
["Agricultura","Seleccione","Puedes seleccionar uno o varios sectores dependiendo de la cantidad de proyectos que estarás evaluando. En función de la cantidad de sectores, se activarán, una por una, las evaluaciones de contribución sustancial para las actividades.\n\nLos sectores se habilitarán en nuevas pestañas cuyos colores reflejan lo presentado en el documento de la Taxonomía Sostenible de México"]
["Cría y explotación de animales","Seleccione"]
["Aprovechamiento forestal","Seleccione"]
["Generación, transmisión, distribución y comercialización de energía eléctrica","Seleccione"]
["Comercialización y suministro de agua","Seleccione"]
["Construcción","Seleccione"]
["Industrias manufactureras","Seleccione"]
["Transporte","Seleccione"]
["Manejo de residuos y servicios de remediación","Seleccione"]
[]
[]
[null,"Seleccione"]
[]
[]
[]
["La Taxonomía Sostenible de México tiene tres objetivos principales. Según los objetivos con los que se desee alinear el proyecto en cuestión, será necesario seleccionar las casillas correspondientes."]
[]
[null,"¿Qué involucra la mitigación?\nMitigación, en este contexto, considera las actividades que tienen un impacto tangible en la reducción o captura de emisiones de Gases de Efecto Invernadero.","Recuerda que los proyectos de mitigación involucran cuestiones de adaptación a través del cumplimiento de criterios de No Daño Significativo. De igual forma, los proyectos de adaptación, contemplan cuestiones de mitigación mediante el cumplimento de criterios de No Daño Significativo. En esta herramienta, la definición de proyectos de mitigación y adaptación se deberá de hacer de forma separada."]
[]
["Mitigación"]
[]
[]
[]
[null,"¿Qué involucra la Adaptación?\nAdaptación, en este contexto, involucra fomentar que las inversiones estén destinadas a mejorar la capacidad de los activos y sistemas para persistir, adaptarse o transformarse frente a los impactos relacionados con el clima, de manera oportuna y eficiente, al mismo tiempo que se generan co-beneficios económicos y sociales para el país."]
[]
["Adaptación"]
[]
[]
["          Igualdad de género","¿Qué involucra la Igualdad de género? \nLa situación en la cual mujeres y hombres acceden con las mismas posibilidades y oportunidades al uso, control y beneficio de bienes, servicios y recursos de la sociedad, así como a la toma de decisiones en todos los ámbitos de la vida social, económica, política, cultural y familiar.","Si deseas evaluar la alineación al objetivo de Igualdad de Género de una actividad fuera de las 124 actividades que tienen criterios específicos, usa esta opción. "]

{"sheet":"Agricultura","index":3,"n_rows":50,"n_cols":6,"rows_kept":50,"cut":false,"hidden":true,"merged":[[3,0,3,7],[49,0,49,8],[47,5,47,7],[1,0,1,7]]}
[]
["Actividades del sector agricultura"]
[]
["Dentro de la categoría de agricultura de la Taxonomía Sostenible de México se consideran 53 actividades. En este apartado es necesario seleccionar, de esas 53 actividades, las que estarán siendo financiadas en el presente proyecto o las que se consideren dentro de las operaciones financieras y/o proyectos. En esta versión del Excel, es posible evaluar hasta 20 actividades que se establecen en las cajas de abajo. Recuerda establecer los montos en la casilla amarilla (con número MXN) y elegir las actividades en la lista desplegable azul. Si es necesario incluir más de una actividad, da click en el botón de \"Añade una nueva actividad\". En caso de que la actividad que deseas evaluar no se encuentre en la lista, significa que no está considerada en este momento por la Taxonomía Sostenible de México. En este caso, puedes  mandar un correo a taxonomia_sost@hacienda.gob.mx para conocer más al respecto. "]
["Objetivos que deberás considerar:",{"$f":"IF('Base-datos'!$C$705=TRUE,\"Mitigación\",\"\")","v":""},{"$f":"IF('Base-datos'!$C$706=TRUE,\"Adaptación\",\"\")","v":""},{"$f":"IF('Base-datos'!$C$707=TRUE,\"Género\",\"\")","v":""}]
[]
[]
["Definición de actividades"]
[null,"Cantidad de recursos ↓","Actividad en la que se colocarán los recursos ↓","Alineación a un objetivo","Tipo de recurso evaluado ↓","Da click para añadir más actividades ↓"]
["Establece por favor en la casilla amarilla con número (MXN) la cantidad de recursos que serán destinados a la actividad que selecciones en la casilla azul ",null,"Seleccione","Seleccione","Seleccione"]
[]
["Establece por favor en la casilla amarilla con número (MXN) la cantidad de recursos que serán destinados a la actividad que selecciones en la casilla azul ",null,"Seleccione","Seleccione","Seleccione"]
[]
["Establece por favor en la casilla amarilla la cantidad de recursos que serán destinados a la actividad que selecciones en la casilla azul ",null,"Seleccione","Seleccione","Seleccione"]
[]
["Establece por favor en la casilla amarilla la cantidad de recursos que serán destinados a la actividad que selecciones en la casilla azul ",null,"Seleccione","Seleccione","Seleccione"]
[]
["Establece por favor en la casilla amarilla la cantidad de recursos que serán destinados a la actividad que selecciones en la casilla azul ",null,"Seleccione","Seleccione","Seleccione"]
[]
["Establece por favor en la casilla amarilla la cantidad de recursos que serán destinados a la actividad que selecciones en la casilla azul ",null,"Seleccione","Seleccione","Seleccione"]
[]
["Establece por favor en la casilla amarilla la cantidad de recursos que serán destinados a la actividad que selecciones en la casilla azul ",null,"Seleccione","Seleccione","Seleccione"]
[]
["Establece por favor en la casilla amarilla la cantidad de recursos que serán destinados a la actividad que selecciones en la casilla azul ",null,"Seleccione","Seleccione","Seleccione"]
[]
["Establece por favor en la casilla amarilla la cantidad de recursos que serán destinados a la actividad que selecciones en la casilla azul ",null,"Seleccione","Seleccione","Seleccione"]
[]
["Establece por favor en la casilla amarilla la cantidad de recursos que serán destinados a la actividad que selecciones en la casilla azul ",null,"Seleccione","Seleccione","Seleccione"]
[]
["Establece por favor en la casilla amarilla la cantidad de recursos que serán destinados a la actividad que selecciones en la casilla azul ",null,"Seleccione","Seleccione","Seleccione"]
[]
["Establece por favor en la casilla amarilla la cantidad de recursos que serán destinados a la actividad que selecciones en la casilla azul ",null,"Seleccione","Seleccione","Seleccione"]
[]
["Establece por favor en la casilla amarilla la cantidad de recursos que serán destinados a la actividad que selecciones en la casilla azul ",null,"Seleccione","Seleccione","Seleccione"]
[]
["Establece por favor en la casilla amarilla la cantidad de recursos que serán destinados a la actividad que selecciones en la casilla azul ",null,"Seleccione","Seleccione","Seleccione"]
[]
["Establece por favor en la casilla amarilla la cantidad de recursos que serán destinados a la actividad que selecciones en la casilla azul ",null,"Seleccione","Seleccione","Seleccione"]
[]
["Establece por favor en la casilla amarilla la cantidad de recursos que serán destinados a la actividad que selecciones en la casilla azul ",null,"Seleccione","Seleccione","Seleccione"]
[]
["Establece por favor en la casilla amarilla la cantidad de recursos que serán destinados a la actividad que selecciones en la casilla azul ",null,"Seleccione","Seleccione","Seleccione"]
[]
["Establece por favor en la casilla amarilla la cantidad de recursos que serán destinados a la actividad que selecciones en la casilla azul ",null,"Seleccione","Seleccione","Seleccione"]
[]
["Establece por favor en la casilla amarilla la cantidad de recursos que serán destinados a la actividad que selecciones en la casilla azul ",null,"Seleccione","Seleccione","Seleccione"]
[]
["Establece por favor en la casilla amarilla la cantidad de recursos que serán destinados a la actividad que selecciones en la casilla azul ",null,"Seleccione","Seleccione","Seleccione","Por el momento, solo es posible evaluar 20 actividades. Si tu proyecto involucra más actividades, por favor escribe un corrreo a taxonomia_sost@hacienda.gob.mx"]
[]
["Al haber concluido el llenado de las actividades y los tipos de recursos que estarás evaluando, por favor da click en el siguiente botón para evaluar la contribución sustancial de las actividades"]

{"sheet":"Mitigación-Agricultura","index":4,"n_rows":25,"n_cols":4,"rows_kept":25,"cut":false,"hidden":true,"merged":[[21,0,23,2],[24,0,24,2],[1,0,1,6],[3,0,3,6],[12,0,12,3],[15,1,16,1],[5,0,5,2],[15,2,16,2],[14,0,14,2]]}
[]
["Mitigación al cambio climático de actividades de agricultura"]
[]
["La Taxonomía Sostenible de México contiene métricas y umbrales que evalúan la contribución sustancial de cada una de las actividades económicas para determinar si dichas actividades contribuyen sustancialmente a la sostenibilidad. Las métricas corresponden a las unidades en las que se evalúan los umbrales. Por otro lado, los umbrales son los niveles mínimos que tienen que cumplir cada una de las actividades para argumentar que cuentan con contribución sustancial."]
[]
["Por favor, selecciona la opción más adecuada para cada pregunta de las listas desplegables. "]
[]
["¿El Predio se encuentra ubicado dentro de la frontera agrícola conforme a la Serie III del SIAP, 2018? En caso de que el predio se ubique en una entidad federativa que cuente con una línea base de frontera agrícola, se respetará esa frontera, por ejemplo, a través de validación geoespacial. ","Sí",{"$f":"IF(B8=\"Sí\",\"Sí contribuye sustancialmente a la sostenibilidad\",IF(B8=\"No\",\"No genera contribución sustancial\",IF(B8=\"seleccione\",\"Por definir\",\"Se deberá confirmar a través de validación geoespacial\")))","v":"Sí contribuye sustancialmente a la sostenibilidad"},"Enlace para conocer la frontera agrícola SIAP 2018"]
[]
["¿El proyecto cuenta con un sitio de disposición temporal de residuos inorgánicos de la actividad agrícola?","Sí",{"$f":"IF(B10=\"Sí\",\"Sí contribuye sustancialmente a la sostenibilidad. Debe verificarse con evidencia, por ejemplo, con una fotografía\",IF(B10=\"No\",\"No genera contribución sustancial\",\"Por definir\"))","v":"Sí contribuye sustancialmente a la sostenibilidad. Debe verificarse con evidencia, por ejemplo, con una fotografía"}]
[]
["¿El proyecto cuenta  con un plan de transición que considere al menos dos prácticas de mejoramiento  lista de abajo? (Básicas y/o Avanzadas-transformativas) ↓","Sí",{"$f":"IF(B12=\"Sí\",\"Sí contribuye sustancialmente a la sostenibilidad\",IF(B12=\"No\",\"No genera contribución sustancial\",\"Por definir\"))","v":"Sí contribuye sustancialmente a la sostenibilidad"}]
["Básicas\n     •Rotación de cultivos. (mejora la calidad de suelos e incremento de productividad) \n     •Integración de cultivos de cobertura. \n     •Conservación de fragmentos y corredores lineales de vegetación nativa y fomentar cercas vivas diversificadas y multiestrato. Análisis de suelos para el uso óptimo de fertilizantes. (reduce costos). \n     •Planeación en la aplicación de fertilizantes. \n     •Sustitución de fertilizantes sintéticos por fertilizantes orgánicos o bioinsumos. \n     •Realización de obras de conservación de suelos (terrazas, presas de gavión, curvas de nivel, drenaje de suelos). \n     •Incorporación de materia orgánica al suelo (residuos de cosecha, composta, etcétera). \n     •Integración de sistema agroforestal, policultivo o cultivos asociados en cultivos permanentes. \n     •Aplicación de labranza mínima o reducida. \n     •Reconversión productiva (si requiere menos insumos). \n     •Reducción de la quema de los residuos de las cosechas o de partes vegetales para facilitar la cosecha. \n     •Incrementar especies arbóreas (nativas o no invasoras) en las parcelas.\n\nAvanzadas o transformativas\n     •Instalación de agricultura protegida con materiales reciclables.\n     •Restauración de los suelos degradados. \n     •Certificaciones o distintivos de producción sustentable. Por ejemplo: Primus GFS, Global Gap, orgánicos, USDA, SENASICA, Rainforest Alliance, RSPO, (HACCP), BRC, ISO 14001, ISEAL ALLIANCE u otras que garanticen la mitigación de GEI.\n"]
[]
["Selecciona al menos dos prácticas de mejoramiento que incluye el plan de transición del proyecto:"]
["Sustitución de fertilizantes sintéticos por fertilizantes orgánicos o bioinsumos.",{"$f":"IF(OR(A16=\"Selecciona la medida 1\",A17=\"Selecciona la medida 2\"),\"Por definir\",IF(OR(A16=\"Ninguna\",A17=\"Ninguna\"),\"La actividad no genera contribución sustancial\",\"La actividad genera contribución sustancial a la sostenibilidad\"))","v":"La actividad genera contribución sustancial a la sostenibilidad"},"El proyecto debe considerar dos prácticas para contribuir sustancialmente a la sostenibilidad"]
["Sustitución de fertilizantes sintéticos por fertilizantes orgánicos o bioinsumos."]
[]
["¿La actividad considera más prácticas de las listas desplegables de la pregunta anterior?","No",{"$f":"IF(B19=\"Sí\",\"Las actividades deberán ser descritas en el informe complementario\",IF(B19=\"No\",\"Por favor, continúa con el cuestionario\",\"Por definir\"))","v":"Por favor, continúa con el cuestionario"}]
[]
["¿Se destinan recursos a alguno de los conceptos de inversión mencionados abajo?","Sí",{"$f":"IF(B21=\"Sí\",\"Contribuye sustancialmente a la sostenibilidad\",IF(B21=\"No\",\"No genera contribución sustancial\",\"Por definir\"))","v":"Contribuye sustancialmente a la sostenibilidad"}]
["     •Constitución y fortalecimiento de organizaciones que implementen prácticas sostenibles básicas. \n     •Equipos de cogeneración de energía\n     •Luminarias LED\n     •Calderas eficientes\n     •Motores eficientes\n     •Sistemas de bombeo eficientes\n     •Modernización del sistema de enfriamiento\n     •Equipo de cogeneración de energía\n     •Equipo de energía solar\n     •Calentadores de energía solar\n     •Generadores eólicos\n     •Equipo para generación de energía geotérmica\n     •Instalaciones de fuentes renovables de bioenergía\n     •Sistemas solares térmicos\n     •Sistemas fotovoltaicos\n      •Drones de uso agrícola \n      •Sembradoras de precisión \n      •Maquinaria y accesorios que faciliten la labranza mínima y de conservación \n      •Maquinaria y accesorios que brinden alternativas a la quema de residuos \n      •Macrotúneles \n      •Invernaderos (siempre y cuando el material sea reciclable) \n      •Producción de biocombustibles bioenergéticos \n      •Maquinaria y equipo de producción biocombustibles, como biodigestores \n      •Agricultura protegida \n      •Motores eficientes \n     • Sistemas de bombeo eficientes \n      •Modernización del sistema de enfriamiento \n      •Establecimiento de plantaciones forestales \n      •Mantenimiento de plantaciones forestales \n      •Cercas vivas \n      •Labranza de conservación \n      •Sistemas agrosilvopastoriles \n      •Sistemas agrosilvícolas \n     • Producción bajo sombra \n      •Sistemas silvopastoriles "]
[]
[]
[{"$f":"IF(OR('Mitigación-Agricultura'!$B$8=\"seleccione\",'Mitigación-Agricultura'!$B$10=\"Seleccione\",'Mitigación-Agricultura'!$B$12=\"Seleccione\",'Mitigación-Agricultura'!$A$16=\"Selecciona la medida 1\",'Mitigación-Agricultura'!$A$17=\"Selecciona la medida 2\",'Mitigación-Agricultura'!$B$19=\"Seleccione\",'Mitigación-Agricultura'!$B$21=\"Seleccione\"),\"No se han respondido todas las preguntas\",IF(AND('Mitigación-Agricultura'!$C$8=\"Sí contribuye sustancialmente a la sostenibilidad\",'Mitigación-Agricultura'!$C$10=\"Sí contribuye sustancialmente a la sostenibilidad. Debe verificarse con evidencia, por ejemplo, con una fotografía\",'Mitigación-Agricultura'!$C$12=\"Sí contribuye sustancialmente a la sostenibilidad\",'Mitigación-Agricultura'!$C$21=\"Contribuye sustancialmente a la sostenibilidad\"),\"La actividad sí contribuye sustancialmente a la sostenibilidad\",IF(AND('Mitigación-Agricultura'!$C$8=\"Se deberá confirmar a través de validación geoespacial\",'Mitigación-Agricultura'!$C$10=\"Sí contribuye sustancialmente a la sostenibilidad. Debe verificarse con evidencia, por ejemplo, con una fotografía\",'Mitigación-Agricultura'!$C$12=\"Sí contribuye sustancialmente a la sostenibilidad\",'Mitigación-Agricultura'!$C$21=\"Contribuye sustancialmente a la sostenibilidad\"),\"La actividad sí contribuye sustancialmente a la sostenibilidad\",\"La actividad no genera contribución sustancial a la sostenibilidad\")))","v":"La actividad sí contribuye sustancialmente a la sostenibilidad"}]

{"sheet":"Adaptación-Agricultura","index":5,"n_rows":44,"n_cols":8,"rows_kept":44,"cut":false,"hidden":true,"merged":[[27,0,27,5],[37,0,37,5],[21,0,21,5],[31,0,31,5],[28,0,28,4],[23,0,23,4],[1,0,1,6],[3,0,3,6],[13,0,13,1],[20,0,20,1],[14,0,14,5],[15,0,15,4],[18,0,18,6],[5,0,5,5],[9,0,9,3],[10,0,10,3],[7,0,7,2],[40,2,41,2],[15,7,17,8],[22,7,23,8],[32,7,34,8],[22,0,22,4],[17,0,17,4],[16,0,16,4],[24,0,24,6],[26,0,26,1],[38,0,38,5],[40,1,41,1],[32,0,32,4],[33,0,33,4],[34,0,34,4],[35,0,35,6],[30,0,30,1]]}
[]
["Adaptación al cambio climático de actividades del sector de agricultura"]
[]
["La Taxonomía Sostenible de México reconoce que el país está expuesto a riesgos climáticos y ambientales heterogéneos no lineales que tienen múltiples canales de transmisión y, por ende, que el cambio climático afecta en distinta medida a todos los sectores de la economía. En este sentido, a través de la Taxonomía se busca que las actividades económicas contribuyan sustancialmente, no sólo a la mitigación, sino también a la adaptación del cambio climático. "]
[]
["Responde las siguientes preguntas seleccionando una respuesta de la lista"]
[]
["1. La actividad que estás evaluando es una actividad adaptada o una actividad que facilita la adaptación?",null,null,"Actividad adaptada"]
[]
["¿Qué es una actividad adaptada?\nUna actividad económica se adapta a los riesgos climáticos físicos materiales, si integra medidas y/o soluciones para reducirlos, mientras garantiza que la actividad económica pueda funcionar bien en un clima cambiante. Estas actividades de adaptación se desarrollan a partir de la evaluación de riesgos actuales y futuros, ya sean climáticos, crónicos y/o agudos, así como la escala temporal y geográfica de la actividad económica."]
["¿Qué es una actividad que facilita la adaptación? \nUna actividad económica posibilita la adaptación si reduce el riesgo climático físico material y la vulnerabilidad en otras actividades económicas, comunidades, ecosistemas o ciudades, y/o aborda los obstáculos sistémicos a la adaptación. Esto es posible a través del uso de la tecnología y la creación de un producto o servicio especializado."]
[]
[]
["A1. Reducción de los riesgos climáticos físicos materiales."]
["La actividad económica debe reducir todos los riesgos climáticos físicos materiales para las actividades evaluadas, en la medida de lo posible y sobre la base del mejor esfuerzo. Selecciona las respuestas en las listas desplegables"]
["¿La actividad económica integra medidas destinadas a reducir, en la medida de lo posible y sobre la base del mejor esfuerzo, los riesgos climáticos físicos materiales para esa actividad, que han sido identificados mediante una evaluación de riesgos?",null,null,null,null,"Seleccione",{"$f":"IF(F16=\"Seleccione\",\"Por definir\",IF(F16=\"Sí\",\"El primer criterio se cumple satisfactoriamente\",\"Al no cumplir con este criterio, no es posible generar contribución sustancial\"))","v":"Por definir"},"Las tres condiciones deben cumplirse para argumentar que la actividad tiene contribución sustancial"]
["¿Esta evaluación considera tanto la variabilidad meteorológica actual, como el cambio climático futuro, incluidos los escenarios climáticos, así como la incertidumbre?",null,null,null,null,"Seleccione",{"$f":"IF(F17=\"Seleccione\",\"Por definir\",IF(F17=\"Sí\",\"El segundo criterio se cumple satisfactoriamente\",\"Al no cumplir con este criterio, no es posible generar contribución sustancial\"))","v":"Por definir"}]
["¿Igualmente la evaluación se basa en un sólido análisis de los datos e información disponible sobre los distintos escenarios climáticos, y es coherente con la duración prevista de la actividad?",null,null,null,null,"Selecciona",{"$f":"IF(F18=\"Seleccione\",\"Por definir\",IF(F18=\"Sí\",\"El tercer criterio se cumple satisfactoriamente\",\"Al no cumplir con este criterio, no es posible generar contribución sustancial\"))","v":"Al no cumplir con este criterio, no es posible generar contribución sustancial"}]
[{"$f":"IF(OR(F16=\"Seleccione\",F17=\"Seleccione\",F18=\"Seleccione\"),\"Por definir\",IF(OR(F16=\"No\",F17=\"No\",F18=\"No\"),\"La actividad no genera contribución sustancial\", \"La actividad sí contribuye sustancialmente a la sostenibilidad\"))","v":"Por definir"}]
[]
["A2. Apoyo a la adaptación del sistema. "]
["La actividad económica y sus medidas de adaptación no afectan negativamente los esfuerzos de adaptación de otras personas, la naturaleza y los bienes. Selecciona las respuestas en las listas desplegables"]
["¿La actividad económica y sus medidas de adaptación no aumentan los riesgos de un impacto climático adverso sobre otras personas, la naturaleza y los bienes?",null,null,null,null,"Selecciona",{"$f":"IF(F23=\"Seleccione\",\"Por definir\",IF(F23=\"Sí\",\"El primer criterio se cumple satisfactoriamente\",\"Al no cumplir con este criterio, no es posible generar contribución sustancial\"))","v":"Al no cumplir con este criterio, no es posible generar contribución sustancial"},"Las dos condiciones deben cumplirse para argumentar que la actividad tiene contribución sustancial"]
["¿La actividad económica y sus medidas de adaptación son consistentes con los esfuerzos de adaptación a nivel sectorial, regional y/o nacional?",null,null,null,null,"Selecciona",{"$f":"IF(F24=\"Seleccione\",\"Por definir\",IF(F24=\"Sí\",\"El segundo criterio se cumple satisfactoriamente\",\"Al no cumplir con este criterio, no es posible generar contribución sustancial\"))","v":"Al no cumplir con este criterio, no es posible generar contribución sustancial"}]
[{"$f":"IF(OR(F23=\"Seleccione\",F24=\"Seleccione\"),\"Por definir\",IF(OR(F23=\"No\",F24=\"No\"),\"La actividad no genera contribución sustancial\", \"La actividad sí contribuye sustancialmente a la sostenibilidad\"))","v":"La actividad sí contribuye sustancialmente a la sostenibilidad"}]
[]
["A3. Monitoreo de los resultados de adaptación."]
["En el contexto de la actividad evaluada, la reducción de los riesgos físicos se puede medir. Selecciona las respuestas en las listas desplegables"]
[" Los resultados de adaptación pueden ser monitoreados y medidos con base en indicadores. Considerando que los riesgos físicos evolucionan con el tiempo, el análisis de riesgos físicos debe llevarse a cabo con la frecuencia adecuada.  ¿Esto se evalúa dentro de las operaciones financieras y/o proyectos?",null,null,null,null,"Selecciona",{"$f":"IF(F29=\"Seleccione\",\"Por definir\",IF(F29=\"Sí\",\"La actividad sí contribuye sustancialmente a la sostenbilidad\",\"La actividad no genera contribución sustancial\"))","v":"La actividad no genera contribución sustancial"}]
[]
["B1. Apoyar a la adaptación de otras actividades económicas."]
["La actividad económica reduce el riesgo climático físico material en otras actividades económicas y/o aborda los obstáculos sistémicos para la adaptación. Las actividades que permiten la adaptación incluyen, pero no se limitan a, actividades que promueven una tecnología, un producto, una práctica, un proceso de gobernanza o usos innovadores de tecnologías, productos o prácticas existentes (incluidos los relacionados con las infraestructuras naturales). Además, eliminan las barreras de información, financieras, tecnológicas y de capacidad para la adaptación de otros. Selecciona las respuestas en las listas desplegables"]
["¿Se realiza una evaluación de los riesgos resultantes, con base en datos sólidos, tanto de la variabilidad  meteorológica actual como del cambio climático futuro, incluidos los escenarios climáticos, así como  la incertidumbre, que la actividad económica contribuirá a abordar?",null,null,null,null,"Selecciona",{"$f":"IF(F33=\"Seleccione\",\"Por definir\",IF(F33=\"Sí\",\"El primer criterio se cumple satisfactoriamente\",\"Al no cumplir con este criterio, no es posible generar contribución sustancial\"))","v":"Al no cumplir con este criterio, no es posible generar contribución sustancial"},"Las tres condiciones en caso de que apliquen deben cumplirse para argumentar que la actividad tiene contribución sustancial. La tercera opción podría no aplicar. En este caso se evaluaran las primeras dos cuestiones"]
["¿Se realiza una evaluación de la eficacia de la contribución de la actividad económica a la reducción de los riesgos físicos, teniendo en cuenta la escala de exposición y la vulnerabilidad a los mismos?",null,null,null,null,"Selecciona",{"$f":"IF(F34=\"Seleccione\",\"Por definir\",IF(F34=\"Sí\",\"El segundo criterio se cumple satisfactoriamente\",\"Al no cumplir con este criterio, no es posible generar contribución sustancial\"))","v":"Al no cumplir con este criterio, no es posible generar contribución sustancial"}]
["En el caso de una infraestructura vinculada a una actividad que permita la adaptación, dicha infraestructura debe cumplir también los criterios de selección A1, A2 y A3. ¿Esto se cumple en el contexto del proyecto?",null,null,null,null,"Selecciona",{"$f":"IF(F35=\"Seleccione\",\"Por definir\",IF(F35=\"Sí\",\"El tercer criterio se cumple satisfactoriamente\",IF(F35=\"No aplica\",\"No aplica\",\"El proyecto no genera contribución sustancial\")))","v":"El proyecto no genera contribución sustancial"}]
[{"$f":"IF(OR(F33=\"Seleccione\",F34=\"Seleccione\",F35=\"Seleccione\"),\"Por definir\",IF(OR(F33=\"No\",F34=\"No\",F35=\"No\"),\"La actividad no genera contribución sustancial\",\"La actividad sí contribuye sustancialmente a la sostenibilidad\"))","v":"La actividad sí contribuye sustancialmente a la sostenibilidad"}]
[]
["Prácticas con impacto sobre la adaptación al cambio climático para el subsector Agrícola."]
["En las actividades del subsector de Agricultura deberán atenderse prácticas específicas para asegurar su contribución a la adaptación."]
["Selecciona al menos dos prácticas de mejoramiento que incluye el plan de transición del proyecto:"]
["Selecciona",{"$f":"IF(OR(A41=\"Seleccione la primera medida\",A42=\"Seleccione la segunda medida\"),\"Por definir\",IF(OR(A41=\"Ninguna\",A42=\"Ninguna\"),\"La actividad no genera contribución sustancial\",\"La actividad genera contribución sustancial a la sostenibilidad\"))","v":"La actividad genera contribución sustancial a la sostenibilidad"},"Deben ser contempladas dos medidas para argumentar contribución sustancial"]
["Selecciona"]
[]
["¿La actividad considera más practicas de las listas desplegables de la pregunta anterior?","Selecciona",{"$f":"IF(B44=\"Sí\",\"Las actividades complementarias deberán ser descritas en el informe complementario\",IF(B44=\"No\",\"Continua con el siguiente cuestionario\",\"Por definir\"))","v":"Por definir"}]

{"sheet":"Indice de género-Agricultura","index":6,"n_rows":82,"n_cols":11,"rows_kept":82,"cut":false,"hidden":true,"merged":[[1,1,1,8],[3,0,3,8],[5,0,5,8],[7,0,9,0],[7,1,9,1],[7,2,7,5],[7,8,9,8],[8,2,8,5],[9,2,9,5],[12,0,15,0],[12,1,15,1],[12,2,12,5],[12,8,15,8],[13,2,13,5],[14,2,14,5],[15,2,15,5],[18,0,20,0],[18,1,20,1],[18,2,18,5],[18,8,20,8],[19,2,19,5],[20,2,20,5],[23,0,25,0],[23,1,25,1],[23,2,23,5],[23,8,25,8],[24,2,24,5],[25,2,25,5],[28,0,30,0],[28,1,30,1],[28,2,28,5],[28,8,30,8],[29,2,29,5],[30,2,30,5],[33,0,35,0],[33,1,35,1],[33,2,33,5],[33,8,35,8],[34,2,34,5],[35,2,35,5],[38,0,40,0],[38,1,40,1],[38,2,38,5],[38,8,40,8],[39,2,39,5],[40,2,40,5],[43,0,45,0],[43,1,45,1],[43,2,43,5],[43,8,45,8],[44,2,44,5],[45,2,45,5],[48,0,50,0],[48,1,50,1],[48,2,48,5],[48,8,50,8],[49,2,49,5],[50,2,50,5],[53,0,55,0],[53,1,55,1],[53,2,53,5],[53,8,55,8],[54,2,54,5],[55,2,55,5],[58,0,60,0],[58,1,60,1],[58,2,58,5],[58,8,60,8],[59,2,59,5],[60,2,60,5],[63,0,65,0],[63,1,65,1],[63,2,63,5],[63,8,65,8],[64,2,64,5],[65,2,65,5],[68,0,70,0],[68,1,70,1],[68,2,68,5],[68,8,70,8],[69,2,69,5],[70,2,70,5],[73,0,75,0],[73,1,75,1],[73,2,73,5],[73,8,75,8],[74,2,74,5],[75,2,75,5],[77,4,77,7],[78,4,78,7],[79,4,79,7],[80,4,80,7],[81,4,81,7]]}
[]
[null,"Índice de Igualdad de Género"]
[]
["La Igualdad de Género es considerada como un objetivo prioritario en la Taxonomía Sostenible de México. Es así que se han generado Criterios de Evaluación Técnica que permitan identificar inversiones que contribuyan al cierre de brechas de género. Al mismo tiempo, las métricas propuestas servirán como guía orientadora para los usuarios potenciales de la Taxonomía, de forma que puedan dirigir esfuerzos para generar una contribución sustancial a la igualdad de género. Este índice refleja, en una escala numérica, la contribución de las organizaciones a tres pilares de igualdad de género: 1) Trabajo Digno, 2) Bienestar e 3) Inclusión Social. Ello permite traducir los criterios cualitativos de estos tres pilares, a una métrica cuantitativa, a la cual es posible asignar un umbral para determinar un nivel de contribución sustancial para un objetivo social."]
[]
["Por favor, selecciona alguna de las opciones descritas en las casillas azules para cada pregunta. En función de la respuesta, se asignará un puntaje por bloque de preguntas, que al final será evaluado para conocer si el proyecto cumple con las condiciones presentes en el índice de igualdad de género"]
["Pilar",null,null,null,null,null,null,"Puntaje",null,null,{"$f":"IF(G7=\"No\",0,IF(G7=\"Sí de alcance parcial dentro de la organización\",1,IF(G7=\"Sí de alcance integral en la organización\",2,IF(G7=\"Sí de alcance que se extiende dentro y fuera de la organización\",3,\"\"))))","v":""}]
["1.1.1","Igualdad de remuneración","¿Existe una política y/o tabulador para todo el personal que establezca la igualdad de remuneración por un trabajo equivalente, conforme a la Ley Federal del Trabajo, y donde se puedan consultar los rangos salariales para los diferentes niveles dentro del centro de trabajo?",null,null,null,"Sí de alcance que se extiende dentro y fuera de la organización",{"$f":"IF(G8=\"No\",0,IF(G8=\"Sí de alcance parcial dentro de la organización\",1,IF(G8=\"Sí de alcance integral en la organización\",2,IF(G8=\"Sí de alcance que se extiende dentro y fuera de la organización\",3,\"\"))))","v":3},{"$f":"IF(OR(G8=\"Seleccione\",G9=\"Seleccione\",G10=\"Seleccione\"),\"Por favor completa las preguntas de este apartado del Índice\",IF(H11<3,\"Es necesario incrementar la ambición en alguno de los ejes evaluados para que el proyecto esté alineado al Índice de Igualdad de Género de la Taxonomía Sostenible de México\",\"El proyecto cuenta con la ambición necesaria para cerrar las brechas de género conforme al Índice de Igualdad de Género de la Taxonomía Sostenible de México\"))","v":"El proyecto cuenta con la ambición necesaria para cerrar las brechas de género conforme al Índice de Igualdad de Género de la Taxonomía Sostenible de México"}]
[null,null,"¿La organización realiza un análisis sistemático y periódico de las brechas de género en salarios, prestaciones y compensaciones de su personal?",null,null,null,"Sí de alcance que se extiende dentro y fuera de la organización",{"$f":"IF(G9=\"No\",0,IF(G9=\"Sí de alcance parcial dentro de la organización\",1,IF(G9=\"Sí de alcance integral en la organización\",2,IF(G9=\"Sí de alcance que se extiende dentro y fuera de la organización\",3,\"\"))))","v":3}]
[null,null,"¿La organización cuenta con un mecanismo para corregir los casos identificados con desigualdad en la remuneración?",null,null,null,"Sí de alcance integral en la organización",{"$f":"IF(G10=\"No\",0,IF(G10=\"Sí de alcance parcial dentro de la organización\",1,IF(G10=\"Sí de alcance integral en la organización\",2,\"\")))","v":2}]
[null,null,null,null,null,null,null,{"$f":"SUM(H8:H10)","v":8}]
[]
["1.2.1","Posibilidades de acceso, contratación, participación, permanencia y promoción","¿Tiene la organización una política o mecanismo que garantice la no discriminación e igualdad de oportunidades en el acceso, permanencia y desarrollo laboral?",null,null,null,"Sí de alcance que se extiende dentro y fuera de la organización",{"$f":"IF(G13=\"No\",0,IF(G13=\"Sí de alcance parcial dentro de la organización\",1,IF(G13=\"Sí de alcance integral en la organización\",2,IF(G13=\"Sí de alcance que se extiende dentro y fuera de la organización\",3,\"\"))))","v":3},{"$f":"IF(OR(G13=\"Seleccione\",G14=\"Seleccione\",G15=\"Seleccione\",G16=\"Seleccione\"),\"Por favor completa las preguntas de este apartado del Índice\",IF(H17<4,\"Es necesario incrementar la ambición en alguno de los ejes evaluados para que el proyecto esté alineado al Índice de Igualdad de Género de la Taxonomía Sostenible de México\",\"El proyecto cuenta con la ambición necesaria para cerrar las brechas de género conforme al Índice de Igualdad de Género de la Taxonomía Sostenible de México\"))","v":"El proyecto cuenta con la ambición necesaria para cerrar las brechas de género conforme al Índice de Igualdad de Género de la Taxonomía Sostenible de México"}]
[null,null,"¿Existen perfiles de puestos, anuncios de vacantes u ofertas de trabajo, documentación para entrevista de ingreso estructurada y/o exámenes o evaluaciones libres de sesgos sexistas o de discriminación?",null,null,null,"Sí de alcance parcial dentro de la organización",{"$f":"IF(G14=\"No\",0,IF(G14=\"Sí de alcance parcial dentro de la organización\",1,IF(G14=\"Sí de alcance integral en la organización\",2,IF(G14=\"Sí de alcance que se extiende dentro y fuera de la organización\",3,\"\"))))","v":1}]
[null,null,"¿Se cuenta con procesos transparentes y accesibles de movilidad horizontal y vertical libres de sesgos sexistas o discriminatorios?",null,null,null,"Sí de alcance que se extiende dentro y fuera de la organización",{"$f":"IF(G15=\"No\",0,IF(G15=\"Sí de alcance parcial dentro de la organización\",1,IF(G15=\"Sí de alcance integral en la organización\",2,IF(G15=\"Sí de alcance que se extiende dentro y fuera de la organización\",3,\"\"))))","v":3}]
[null,null,"¿La organización lleva a cabo capacitaciones extensivas al personal candidato o de la propia empresa como mecanismo de corrección (distintas al plan de capacitación) sobre sesgos de género para entrevistas laborales, para evaluaciones de desempeño o para procesos de reclutamiento, movilidad y  promoción?",null,null,null,"Sí de alcance que se extiende dentro y fuera de la organización",{"$f":"IF(G16=\"No\",0,IF(G16=\"Sí de alcance parcial dentro de la organización\",1,IF(G16=\"Sí de alcance integral en la organización\",2,IF(G16=\"Sí de alcance que se extiende dentro y fuera de la organización\",3,\"\"))))","v":3}]
[null,null,null,null,null,null,null,{"$f":"SUM(H13:H16)","v":10}]
[]
["1.2.2","Segregación Vertical y Horizontal","¿La organización cuenta con metas institucionales sobre diversidad de género en los diferentes equipos de trabajo?",null,null,null,"Sí de alcance que se extiende dentro y fuera de la organización",{"$f":"IF(G19=\"No\",0,IF(G19=\"Sí de alcance parcial dentro de la organización\",1,IF(G19=\"Sí de alcance integral en la organización\",2,IF(G19=\"Sí de alcance que se extiende dentro y fuera de la organización\",3,\"\"))))","v":3},{"$f":"IF(OR(G19=\"Seleccione\",G20=\"Seleccione\",G21=\"Seleccione\"),\"Por favor completa las preguntas de este apartado del Índice\",IF(H22<3,\"Es necesario incrementar la ambición en alguno de los ejes evaluados para que el proyecto esté alineado al Índice de Igualdad de Género de la Taxonomía Sostenible de México\",\"El proyecto cuenta con la ambición necesaria para cerrar las brechas de género conforme al Índice de Igualdad de Género de la Taxonomía Sostenible de México\"))","v":"El proyecto cuenta con la ambición necesaria para cerrar las brechas de género conforme al Índice de Igualdad de Género de la Taxonomía Sostenible de México"}]
[null,"1.2.2.2","¿La organización cuenta con un plan de acción para cerrar la brecha de participación laboral entre hombres y mujeres, entre los niveles jerárquicos, en el proceso de contratación y en las oportunidades de promoción?",null,null,null,"Sí de alcance integral en la organización",{"$f":"IF(G20=\"No\",0,IF(G20=\"Sí de alcance parcial dentro de la organización\",1,IF(G20=\"Sí de alcance integral en la organización\",2,\"\")))","v":2}]
[null,"1.2.2.3","¿El despliegue de los mecanismos de corrección para cerrar la brecha de participación se realiza conforme a la evaluación o medición continua de las brechas de género?",null,null,null,"Sí de alcance integral en la organización",{"$f":"IF(G21=\"No\",0,IF(G21=\"Sí de alcance parcial dentro de la organización\",1,IF(G21=\"Sí de alcance integral en la organización\",2,\"\")))","v":2}]
[null,null,null,null,null,null,null,{"$f":"SUM(H19:H21)","v":7}]
[]
["1.2.3","Igualdad de representatividad de mujeres y hombres en órganos de gobernanza corporativa","¿Existe una política de paridad entre mujeres y hombres (reglamentos, normas, documentos o protocolos internos) en el órgano de gobernanza corporativa (junta de gobierno) o en puestos de toma de decisión?",null,null,null,"Sí de alcance que se extiende dentro y fuera de la organización",{"$f":"IF(G24=\"No\",0,IF(G24=\"Sí de alcance parcial dentro de la organización\",1,IF(G24=\"Sí de alcance integral en la organización\",2,IF(G24=\"Sí de alcance que se extiende dentro y fuera de la organización\",3,\"\"))))","v":3},{"$f":"IF(OR(G24=\"Seleccione\",G25=\"Seleccione\",G26=\"Seleccione\"),\"Por favor completa las preguntas de este apartado del Índice\",IF(H27<2,\"Es necesario incrementar la ambición en alguno de los ejes evaluados para que el proyecto esté alineado al Índice de Igualdad de Género de la Taxonomía Sostenible de México\",\"El proyecto cuenta con la ambición necesaria para cerrar las brechas de género conforme al Índice de Igualdad de Género de la Taxonomía Sostenible de México\"))","v":"El proyecto cuenta con la ambición necesaria para cerrar las brechas de género conforme al Índice de Igualdad de Género de la Taxonomía Sostenible de México"}]
[null,"1.2.3.2","¿Existen mecanismos o acciones para promover la rotación hacia puestos directivos o de toma de decisión con perspectiva de género, o en su caso el proceso de designación no tienes sesgos de género?",null,null,null,"Sí de alcance integral en la organización",{"$f":"IF(G25=\"No\",0,IF(G25=\"Sí de alcance parcial dentro de la organización\",1,IF(G25=\"Sí de alcance integral en la organización\",2,\"\")))","v":2}]
[null,"1.2.3.3","¿La organización se somete a un análisis, interno o externo, de paridad de género institucional en sus puestos de alta dirección o gobierno corporativo, acorde a la política de transparencia que la rige?",null,null,null,"Sí de alcance integral en la organización",{"$f":"IF(G26=\"No\",0,IF(G26=\"Sí de alcance parcial dentro de la organización\",1,IF(G26=\"Sí de alcance integral en la organización\",2,IF(G26=\"Sí de alcance que se extiende dentro y fuera de la organización\",3,\"\"))))","v":2}]
[null,null,null,null,null,null,null,{"$f":"SUM(H24:H26)","v":7}]
[]
["1.2.4","Clima laboral y espacios de trabajo libres de violencia","¿La organización cuenta con políticas o áreas especializadas en diversidad e inclusión que promuevan relaciones igualitarias acompañadas de la implementación de prácticas de prevención contra la violencia de género (hostigamiento, acoso u otro)?",null,null,null,"No",{"$f":"IF(G29=\"No\",0,IF(G29=\"Sí de alcance parcial dentro de la organización\",1,IF(G29=\"Sí de alcance integral en la organización\",2,\"\")))","v":0},{"$f":"IF(OR(G29=\"Seleccione\",G30=\"Seleccione\",G31=\"Seleccione\"),\"Por favor completa las preguntas de este apartado del Índice\",IF(H32<2,\"Es necesario incrementar la ambición en alguno de los ejes evaluados para que el proyecto esté alineado al Índice de Igualdad de Género de la Taxonomía Sostenible de México\",\"El proyecto cuenta con la ambición necesaria para cerrar las brechas de género conforme al Índice de Igualdad de Género de la Taxonomía Sostenible de México\"))","v":"Es necesario incrementar la ambición en alguno de los ejes evaluados para que el proyecto esté alineado al Índice de Igualdad de Género de la Taxonomía Sostenible de México"}]
[null,"1.2.4.2","¿La organización cuenta con un grupo, comisión o Comité encargado de la vigilancia del desarrollo e implementación de prácticas contra la violencia y la discriminación de género en el centro de trabajo?",null,null,null,"No",{"$f":"IF(G30=\"No\",0,IF(G30=\"Sí de alcance parcial dentro de la organización\",1,IF(G30=\"Sí de alcance integral en la organización\",2,\"\")))","v":0}]
[null,"1.2.4.3","¿La organización cuenta con mecanismos de atención a actos de violencia detectados o de reparación de daños, cuyos resultados salvaguarden la integridad de las víctimas y eviten la revictimización?",null,null,null,"No",{"$f":"IF(G31=\"No\",0,IF(G31=\"Sí de alcance parcial dentro de la organización\",1,IF(G31=\"Sí de alcance integral en la organización\",2,\"\")))","v":0}]
[null,null,null,null,null,null,null,{"$f":"SUM(H29:H31)","v":0}]
[]
["1.2.5","Capacitaciones para la igualdad laboral","¿La organización cuenta con un plan de capacitación, sensibilización y difusión como parte de sus objetivos de la agenda de género?",null,null,null,"No",{"$f":"IF(G34=\"No\",0,IF(G34=\"Sí de alcance parcial dentro de la organización\",1,IF(G34=\"Sí de alcance integral en la organización\",2,IF(G34=\"Sí de alcance que se extiende dentro y fuera de la organización\",3,\"\"))))","v":0},{"$f":"IF(OR(G34=\"Seleccione\",G35=\"Seleccione\",G36=\"Seleccione\"),\"Por favor completa las preguntas de este apartado del Índice\",IF(H37<3,\"Es necesario incrementar la ambición en alguno de los ejes evaluados para que el proyecto esté alineado al Índice de Igualdad de Género de la Taxonomía Sostenible de México\",\"El proyecto cuenta con la ambición necesaria para cerrar las brechas de género conforme al Índice de Igualdad de Género de la Taxonomía Sostenible de México\"))","v":"Es necesario incrementar la ambición en alguno de los ejes evaluados para que el proyecto esté alineado al Índice de Igualdad de Género de la Taxonomía Sostenible de México"}]
[null,"1.2.5.2","¿La organización ofrece capacitación continua para el desarrollo de habilidades requeridas para la movilidad laboral, tales como mentoría o patrocinio; incluyendo el desarrollo de capacidades para los nuevos empleos verdes que promuevan la transición justa?",null,null,null,"No",{"$f":"IF(G35=\"No\",0,IF(G35=\"Sí de alcance parcial dentro de la organización\",1,IF(G35=\"Sí de alcance integral en la organización\",2,IF(G35=\"Sí de alcance que se extiende dentro y fuera de la organización\",3,\"\"))))","v":0}]
[null,"1.2.5.3","¿La organización cuenta con mecanismos de evaluación o mejora de su plan de implementación de capacitaciones, asesorías o mentorías, que sean extensivos a otros actores que interactúan con la organización o a la comunidad externa (más allá del personal de la organización)?",null,null,null,"No",{"$f":"IF(G36=\"No\",0,IF(G36=\"Sí de alcance parcial dentro de la organización\",1,IF(G36=\"Sí de alcance integral en la organización\",2,IF(G36=\"Sí de alcance que se extiende dentro y fuera de la organización\",3,\"\"))))","v":0}]
[null,null,null,null,null,null,null,{"$f":"SUM(H34:H36)","v":0}]
[]
["1.3.1","Esquemas de trabajo flexible y políticas de conciliación","¿Existen medidas de flexibilidad laboral, como horarios flexibles o escalonados, semanas de trabajo comprimidas, teletrabajo o licencias con y sin goce de sueldo?",null,null,null,"No",{"$f":"IF(G39=\"No\",0,IF(G39=\"Sí de alcance parcial dentro de la organización\",1,IF(G39=\"Sí de alcance integral en la organización\",2,\"\")))","v":0},{"$f":"IF(OR(G39=\"Seleccione\",G40=\"Seleccione\",G41=\"Seleccione\"),\"Por favor completa las preguntas de este apartado del Índice\",IF(H42<4,\"Es necesario incrementar la ambición en alguno de los ejes evaluados para que el proyecto esté alineado al Índice de Igualdad de Género de la Taxonomía Sostenible de México\",\"El proyecto cuenta con la ambición necesaria para cerrar las brechas de género conforme al Índice de Igualdad de Género de la Taxonomía Sostenible de México\"))","v":"Es necesario incrementar la ambición en alguno de los ejes evaluados para que el proyecto esté alineado al Índice de Igualdad de Género de la Taxonomía Sostenible de México"}]
[null,"1.3.1.2","¿Existe una duración definida de la jornada laboral que se acompañe con una política de desconexión, sin importar que el esquema sea presencial, híbrido o por teletrabajo?",null,null,null,"No",{"$f":"IF(G40=\"No\",0,IF(G40=\"Sí de alcance parcial dentro de la organización\",1,IF(G40=\"Sí de alcance integral en la organización\",2,\"\")))","v":0}]
[null,"1.3.1.3","¿La organización despliega y difunde mecanismos de corrección al interior y al exterior, en función de la información estadística analizada y desagregada por sexo, sobre el cumplimento de los horarios de trabajo conforme al derecho de las y los trabajadores a la desconexión?",null,null,null,"No",{"$f":"IF(G41=\"No\",0,IF(G41=\"Sí de alcance parcial dentro de la organización\",1,IF(G41=\"Sí de alcance integral en la organización\",2,IF(G41=\"Sí de alcance que se extiende dentro y fuera de la organización\",3,\"\"))))","v":0}]
[null,null,null,null,null,null,null,{"$f":"SUM(H39:H41)","v":0}]
[]
["1.3.2","Oferta complementaria de servicios de cuidados (ludoteca, casas de día, estancias infantiles adicionales, entre otros)","¿La organización tiene políticas que le permitan desarrollar una oferta complementaria de servicios de cuidado (guarderías propias, salas de lactancia, etc.), asequible para todo el personal de la organización, incluyendo licencias de maternidad y paternidad con duración superior a la Ley?",null,null,null,"No",{"$f":"IF(G44=\"No\",0,IF(G44=\"Sí de alcance parcial dentro de la organización\",1,IF(G44=\"Sí de alcance integral en la organización\",2,IF(G44=\"Sí de alcance que se extiende dentro y fuera de la organización\",3,\"\"))))","v":0},{"$f":"IF(OR(G44=\"Seleccione\",G45=\"Seleccione\",G46=\"Seleccione\"),\"Por favor completa las preguntas de este apartado del Índice\",IF(H47<3,\"Es necesario incrementar la ambición en alguno de los ejes evaluados para que el proyecto esté alineado al Índice de Igualdad de Género de la Taxonomía Sostenible de México\",\"El proyecto cuenta con la ambición necesaria para cerrar las brechas de género conforme al Índice de Igualdad de Género de la Taxonomía Sostenible de México\"))","v":"Es necesario incrementar la ambición en alguno de los ejes evaluados para que el proyecto esté alineado al Índice de Igualdad de Género de la Taxonomía Sostenible de México"}]
[null,"1.3.2.2","¿Se proporciona una oferta de servicios de cuidado adicional a los servicios de seguridad social (IMSS, ISSSTE y otros) o se ofrecen permisos con o sin goce de sueldo para la atención de responsabilidades de cuidado?",null,null,null,"No",{"$f":"IF(G45=\"No\",0,IF(G45=\"Sí de alcance parcial dentro de la organización\",1,IF(G45=\"Sí de alcance integral en la organización\",2,IF(G45=\"Sí de alcance que se extiende dentro y fuera de la organización\",3,\"\"))))","v":0}]
[null,"1.3.2.3","¿La organización realiza y difunde evaluaciones de las necesidades de cuidado de su personal y sus dependientes, al interior y al exterior?",null,null,null,"No",{"$f":"IF(G46=\"No\",0,IF(G46=\"Sí de alcance parcial dentro de la organización\",1,IF(G46=\"Sí de alcance integral en la organización\",2,IF(G46=\"Sí de alcance que se extiende dentro y fuera de la organización\",3,\"\"))))","v":0}]
[null,null,null,null,null,null,null,{"$f":"SUM(H44:H46)","v":0}]
[]
["2.1.1","Desarrollo y provisión de infraestructura, bienes y servicios con impacto social positivo y perspectiva de género","¿La organización tiene como política realizar diagnósticos con perspectiva de género para el diseño y operación del proyecto, actividad, desarrollo de infraestructura o la provisión de bienes y servicios?",null,null,null,"Sí de alcance que se extiende dentro y fuera de la organización",{"$f":"IF(G49=\"No\",0,IF(G49=\"Sí de alcance parcial dentro de la organización\",2,IF(G49=\"Sí de alcance integral en la organización\",4,IF(G49=\"Sí de alcance que se extiende dentro y fuera de la organización\",6,\"\"))))","v":6},{"$f":"IF(OR(G49=\"Seleccione\",G50=\"Seleccione\",G51=\"Seleccione\"),\"Por favor completa las preguntas de este apartado del Índice\",IF(H52<8,\"Es necesario incrementar la ambición en alguno de los ejes evaluados para que el proyecto esté alineado al Índice de Igualdad de Género de la Taxonomía Sostenible de México\",\"El proyecto cuenta con la ambición necesaria para cerrar las brechas de género conforme al Índice de Igualdad de Género de la Taxonomía Sostenible de México\"))","v":"El proyecto cuenta con la ambición necesaria para cerrar las brechas de género conforme al Índice de Igualdad de Género de la Taxonomía Sostenible de México"}]
[null,"2.1.1.2","¿El proyecto de infraestructura, actividad, bien o servicio, considera ajustes razonables para atender las necesidades de las mujeres o contribuye a la reducción o eliminación de una situación de exclusión, desigualdad o violencia de género, y privilegia su acceso a precios asequibles por razón de género?",null,null,null,"Sí de alcance que se extiende dentro y fuera de la organización",{"$f":"IF(G50=\"No\",0,IF(G50=\"Sí de alcance parcial dentro de la organización\",2,IF(G50=\"Sí de alcance integral en la organización\",4,IF(G50=\"Sí de alcance que se extiende dentro y fuera de la organización\",6,\"\"))))","v":6}]
[null,"2.1.1.3","¿Se cuenta con un plan de actividades de igualdad entre mujeres y hombres, que incluya presupuesto e indicadores de cumplimiento sobre el impacto en la vida de las mujeres, y en su caso, en el medio ambiente en el uso de la infraestructura, productos o servicios a desarrollar?",null,null,null,"Sí de alcance que se extiende dentro y fuera de la organización",{"$f":"IF(G51=\"No\",0,IF(G51=\"Sí de alcance parcial dentro de la organización\",2,IF(G51=\"Sí de alcance integral en la organización\",4,IF(G51=\"Sí de alcance que se extiende dentro y fuera de la organización\",6,\"\"))))","v":6}]
[null,null,null,null,null,null,null,{"$f":"SUM(H49:H51)","v":18}]
[]
["2.2.1","No afectación a la salud de las mujeres","¿La organización tiene como procedimientos la elaboración de diagnósticos con perspectiva de género sobre los impactos potenciales en salud del proyecto de infraestructura, actividad, bien o servicio, para la promoción de la salud en las mujeres o asegurar la no afectación a esta?",null,null,null,"Sí de alcance que se extiende dentro y fuera de la organización",{"$f":"IF(G54=\"No\",0,IF(G54=\"Sí de alcance parcial dentro de la organización\",2,IF(G54=\"Sí de alcance integral en la organización\",4,IF(G54=\"Sí de alcance que se extiende dentro y fuera de la organización\",6,\"\"))))","v":6},{"$f":"IF(OR(G54=\"Seleccione\",G55=\"Seleccione\",G56=\"Seleccione\"),\"Por favor completa las preguntas de este apartado del Índice\",IF(H57<8,\"Es necesario incrementar la ambición en alguno de los ejes evaluados para que el proyecto esté alineado al Índice de Igualdad de Género de la Taxonomía Sostenible de México\",\"El proyecto cuenta con la ambición necesaria para cerrar las brechas de género conforme al Índice de Igualdad de Género de la Taxonomía Sostenible de México\"))","v":"El proyecto cuenta con la ambición necesaria para cerrar las brechas de género conforme al Índice de Igualdad de Género de la Taxonomía Sostenible de México"}]
[null,"2.2.1.2","¿El proyecto, actividad, bien o servicio, considera ajustes razonables para atender las necesidades diferenciadas de salud en hombres y mujeres y privilegia el acceso desde una perspectiva de género a precios asequibles?",null,null,null,"Sí de alcance que se extiende dentro y fuera de la organización",{"$f":"IF(G55=\"No\",0,IF(G55=\"Sí de alcance parcial dentro de la organización\",2,IF(G55=\"Sí de alcance integral en la organización\",4,IF(G55=\"Sí de alcance que se extiende dentro y fuera de la organización\",6,\"\"))))","v":6}]
[null,"2.2.1.3","¿Se realizan estudios de los efectos en la salud de la actividad, productos o servicios desagregados sexo, y se cuenta con un plan de actividades para la corrección o mejora que incluya presupuesto e indicadores de cumplimiento?",null,null,null,"Sí de alcance que se extiende dentro y fuera de la organización",{"$f":"IF(G56=\"No\",0,IF(G56=\"Sí de alcance parcial dentro de la organización\",2,IF(G56=\"Sí de alcance integral en la organización\",4,IF(G56=\"Sí de alcance que se extiende dentro y fuera de la organización\",6,\"\"))))","v":6}]
[null,null,null,null,null,null,null,{"$f":"SUM(H54:H56)","v":18}]
[]
["2.3.1","Promoción de autonomía de las mujeres y financiamiento flexible con perspectiva de género","¿La organización tiene como política visibilizar las necesidades diferenciadas entre mujeres y hombres en las estrategias de comercialización de los productos o servicios ofrecidos?",null,null,null,"Sí de alcance parcial dentro de la organización",{"$f":"IF(G59=\"No\",0,IF(G59=\"Sí de alcance parcial dentro de la organización\",2,IF(G59=\"Sí de alcance integral en la organización\",4,IF(G59=\"Sí de alcance que se extiende dentro y fuera de la organización\",6,\"\"))))","v":2},{"$f":"IF(OR(G59=\"Seleccione\",G60=\"Seleccione\",G61=\"Seleccione\"),\"Por favor completa las preguntas de este apartado del Índice\",IF(H62<8,\"Es necesario incrementar la ambición en alguno de los ejes evaluados para que el proyecto esté alineado al Índice de Igualdad de Género de la Taxonomía Sostenible de México\",\"El proyecto cuenta con la ambición necesaria para cerrar las brechas de género conforme al Índice de Igualdad de Género de la Taxonomía Sostenible de México\"))","v":"Es necesario incrementar la ambición en alguno de los ejes evaluados para que el proyecto esté alineado al Índice de Igualdad de Género de la Taxonomía Sostenible de México"}]
[null,"2.3.1.2","¿La organización garantiza la accesibilidad de los productos o servicios para las mujeres, ofreciendo opciones diferenciadas de financiación?",null,null,null,"Sí de alcance parcial dentro de la organización",{"$f":"IF(G60=\"No\",0,IF(G60=\"Sí de alcance parcial dentro de la organización\",2,IF(G60=\"Sí de alcance integral en la organización\",4,IF(G60=\"Sí de alcance que se extiende dentro y fuera de la organización\",6,\"\"))))","v":2}]
[null,"2.3.1.3","¿Se realiza una evaluación de efectos diferenciados de los productos y servicios ofrecidos desagregada sexo que visibilicen que son utilizados por mujeres y/o benefician más que proporcionalmente a las mujeres?",null,null,null,"Sí de alcance parcial dentro de la organización",{"$f":"IF(G61=\"No\",0,IF(G61=\"Sí de alcance parcial dentro de la organización\",2,IF(G61=\"Sí de alcance integral en la organización\",4,IF(G61=\"Sí de alcance que se extiende dentro y fuera de la organización\",6,\"\"))))","v":2}]
[null,null,null,null,null,null,null,{"$f":"SUM(H59:H61)","v":6}]
[]
["3.1.1","Promoción de cultura de paz y no violencia","¿La organización o proyecto considera dentro de sus objetivos la reducción o erradicación de la violencia contra las mujeres o el desarrollo de espacios de paz y no violencia; o bien, cuenta con un protocolo o procedimiento para la resolución de conflictos con la comunidad, que considere una perspectiva de género y de derechos humanos?",null,null,null,"Toda la información relacionada es pública",{"$f":"IF(G64=\"No se cuenta con un protocolo o procedimiento o no se comunica\",0,IF(G64=\"Comunicación del objetivo protocolo parcial dentro de la organización\",2,IF(G64=\"Sí de alcance integral en la organización\",2,IF(G64=\"Protocolo de conocimiento de toda la organización\",4,IF(G64=\"Toda la información relacionada es pública\",6,\"\")))))","v":6},{"$f":"IF(OR(G64=\"Seleccione\",G65=\"Seleccione\",G66=\"Seleccione\"),\"Por favor completa las preguntas de este apartado del Índice\",IF(H67<8,\"Es necesario incrementar la ambición en alguno de los ejes evaluados para que el proyecto esté alineado al Índice de Igualdad de Género de la Taxonomía Sostenible de México\",\"El proyecto cuenta con la ambición necesaria para cerrar las brechas de género conforme al Índice de Igualdad de Género de la Taxonomía Sostenible de México\"))","v":"El proyecto cuenta con la ambición necesaria para cerrar las brechas de género conforme al Índice de Igualdad de Género de la Taxonomía Sostenible de México"}]
[null,"3.1.1.2","¿Se han desarrollado acciones para la prevención, atención, sanción y erradicación de la violencia contra niñas, niños, adolescentes y mujeres en la comunidad o espacios públicos?",null,null,null,"Las acciones consideran la prevención atención sanción y erradicación de la violencia",{"$f":"IF(G65=\"No se han desarrollado acciones\",0,IF(G65=\"Las acciones abordan solo alguno(s) de los aspectos enunciados (prevención atención sanción y erradicación de la violencia)\",4,IF(G65=\"Las acciones consideran la prevención atención sanción y erradicación de la violencia\",6,\"\")))","v":6}]
[null,"3.1.1.3","¿La organización o proyecto cuenta con evidencia de su contribución a la reducción de la violencia contra niñas, niños, adolescentes y mujeres; o bien, ha documentado y difundido casos de éxito sobre la resolución de conflictos con la comunidad o sobre el desarrollo de espacios de paz y no violencia de forma participativa?",null,null,null,"La información es pública",{"$f":"IF(G66=\"No existe evidencia o no se comunica\",0,IF(G66=\"La comunicación de la evidencia es parcial dentro de la organización\",2,IF(G66=\"La evidencia es de conocimiento de toda la organización\",4,IF(G66=\"La información es pública\",6,\"\"))))","v":6}]
[null,null,null,null,null,null,null,{"$f":"SUM(H64:H66)","v":18}]
[]
["3.2.1","Vinculación con empresas locales propiedad o con participación de mujeres","¿Existen políticas, procesos o mecanismos de adquisición de productos y servicios que incentiven la contratación de empresas locales propiedad o con alta participación de mujeres?",null,null,null,"La información es pública",{"$f":"IF(G69=\"No existen políticas o procesos o mecanismos o no se comunican\",0,IF(G69=\"La comunicación es parcial dentro de la organización\",2,IF(G69=\"Sí y es de conocimiento de toda la organización\",4,IF(G69=\"La información es pública\",6,\"\"))))","v":6},{"$f":"IF(OR(G69=\"Seleccione\",G70=\"Seleccione\",G71=\"Seleccione\"),\"Por favor completa las preguntas de este apartado del Índice\",IF(H72<8,\"Es necesario incrementar la ambición en alguno de los ejes evaluados para que el proyecto esté alineado al Índice de Igualdad de Género de la Taxonomía Sostenible de México\",\"El proyecto cuenta con la ambición necesaria para cerrar las brechas de género conforme al Índice de Igualdad de Género de la Taxonomía Sostenible de México\"))","v":"El proyecto cuenta con la ambición necesaria para cerrar las brechas de género conforme al Índice de Igualdad de Género de la Taxonomía Sostenible de México"}]
[null,"3.2.1.2","¿Se presenta evidencia de alianzas comerciales y de contratos recurrentes o multianuales con empresas locales con propiedad o participación importante de mujeres?",null,null,null,"Se presenta evidencia completa de una relación comercial recurrente",{"$f":"IF(G70=\"No se han desarrollado alianzas comerciales o contratos\",0,IF(G70=\"Se presenta evidencia de esfuerzos para establecer alianzas comerciales pero que aún no se formalizan\",4,IF(G70=\"Se presenta evidencia completa de una relación comercial recurrente\",6,\"\")))","v":6}]
[null,"3.2.1.3","¿Existe evidencia de que se contribuye al fortalecimiento del liderazgo de empresas locales encabezadas por mujeres o al desarrollo de la estrategia de sostenibilidad de empresas locales (por ejemplo, en el acceso a financiamiento, en la adopción de tecnología sostenible, etc.) propiedad o con participación de mujeres, más allá de la compra de bienes y servicios?",null,null,null,"No existe evidencia o no se comunica",{"$f":"IF(G71=\"No existe evidencia o no se comunica\",0,IF(G71=\"La comunicación de la evidencia es parcial dentro de la organización\",2,IF(G71=\"La evidencia es de conocimiento de toda la organización\",4,IF(G71=\"La información es pública\",6,\"\"))))","v":0}]
[null,null,null,null,null,null,null,{"$f":"SUM(H69:H71)","v":12}]
[]
["3.3.1","Involucramiento de organizaciones y redes comunitarias que representen los intereses de las mujeres","¿Existe una política para fomentar la participación de las comunidades, bajo el marco del consentimiento libre, previo e informado, para la realización del proyecto o actividad económica, o bien en la planeación y gestión participativa de este, que contribuya a la preservación del territorio; al bienestar de ellas y su comunidad; al cuidado del medio ambiente o a una transición justa?",null,null,null,"No existen políticas o procesos o mecanismos o no se comunican",{"$f":"IF(G74=\"No existen políticas o procesos o mecanismos o no se comunican\",0,IF(G74=\"La comunicación es parcial dentro de la organización\",2,IF(G74=\"Sí y es de conocimiento de toda la organización\",4,IF(G74=\"La información es pública\",6,\"\"))))","v":0},{"$f":"IF(OR(G74=\"Seleccione\",G75=\"Seleccione\",G76=\"Seleccione\"),\"Por favor completa las preguntas de este apartado del Índice\",IF(H77<8,\"Es necesario incrementar la ambición en alguno de los ejes evaluados para que el proyecto esté alineado al Índice de Igualdad de Género de la Taxonomía Sostenible de México\",\"El proyecto cuenta con la ambición necesaria para cerrar las brechas de género conforme al Índice de Igualdad de Género de la Taxonomía Sostenible de México\"))","v":"Es necesario incrementar la ambición en alguno de los ejes evaluados para que el proyecto esté alineado al Índice de Igualdad de Género de la Taxonomía Sostenible de México"}]
[null,"3.3.1.2","¿Las acciones de involucramiento y consulta consideraron una perspectiva de género en su implementación para asegurar una participación en igualdad de condiciones de las mujeres (horarios adecuados, dinámicas para promover la participación, facilidades para el cuidado de infantes, un lugar de fácil acceso para ellas) y cuentan con un mecanismo de monitoreo que dé seguimiento a la incorporación de las opiniones de las mujeres?",null,null,null,"No se han desarrollado acciones",{"$f":"IF(G75=\"No se han desarrollado acciones\",0,IF(G75=\"Las acciones abordan parcialmente los aspectos requeridos por la pregunta\",4,IF(G75=\"Las acciones consideran una perspectiva de género e incluyen un mecanismo de monitoreo\",6,\"\")))","v":0}]
[null,"3.3.1.3","¿Existe evidencia de que la actividad económica o proyecto contribuye a la formación o fortalecimiento de alianzas entre mujeres y de organizaciones que trabajen por sus derechos, la igualdad de género, la conservación del territorio o del medio ambiente, y una transición justa?",null,null,null,"No existe evidencia o no se comunica",{"$f":"IF(G76=\"No existe evidencia o no se comunica\",0,IF(G76=\"La comunicación de la evidencia es parcial dentro de la organización\",2,IF(G76=\"La evidencia es de conocimiento de toda la organización\",4,IF(G76=\"La información es pública\",6,\"\"))))","v":0}]
[null,null,null,null,null,null,null,{"$f":"SUM(H74:H76)","v":0}]
[null,null,"Resumen:","Puntaje obtenido en cada pilar","Alineación"]
[null,null,"Resultados pilar 1: Trabajo digo",{"$f":"SUM(H11,H17,H22,H27,H32,H37,H42,H47)","v":32},{"$f":"IF(D79<24,\"Es necesario incrementar la ambición en el pilar 1 de trabajo digno\",\"El proyecto contribuye al cierre de brechas de género, conforme a la Taxonomía Sostenible de México\")","v":"El proyecto contribuye al cierre de brechas de género, conforme a la Taxonomía Sostenible de México"}]
[null,null,"Resultados pilar 2: Bienestar",{"$f":"SUM(H52,H57,H62)","v":42},{"$f":"IF(D80<24,\"Es necesario incrementar la ambición en el pilar 2 de bienestar\",\"El proyecto contribuye al cierre de brechas de género, conforme a la Taxonomía Sostenible de México\")","v":"El proyecto contribuye al cierre de brechas de género, conforme a la Taxonomía Sostenible de México"}]
[null,null,"Resultados pilar 3: Inclusión social",{"$f":"SUM(H77,H72,H67)","v":30},{"$f":"IF(D81<24,\"Es necesario incrementar la ambición en el pilar 3 de inclusión social\",\"El proyecto contribuye al cierre de brechas de género, conforme a la Taxonomía Sostenible de México\")","v":"El proyecto contribuye al cierre de brechas de género, conforme a la Taxonomía Sostenible de México"}]
[null,null,"Total",{"$f":"SUM(D79:D81)","v":104},{"$f":"IF((COUNTIF(G8:G76,\"Seleccione\"))>1,\"Por definir\",IF(AND(E79=\"El proyecto contribuye al cierre de brechas de género, conforme a la Taxonomía Sostenible de México\",E80=\"El proyecto contribuye al cierre de brechas de género, conforme a la Taxonomía Sostenible de México\",E81=\"El proyecto contribuye al cierre de brechas de género, conforme a la Taxonomía Sostenible de México\",D82>=72),\"Sí cumple con el índice de igualdad de género\",\"No cumple con el índice de igualdad de género\"))","v":"Sí cumple con el índice de igualdad de género"}]

{"sheet":"Agriculltura-NDS","index":7,"n_rows":57,"n_cols":8,"rows_kept":57,"cut":false,"hidden":true,"merged":[[44,7,49,7],[52,7,54,7],[8,7,20,7],[23,7,26,7],[27,7,29,7],[38,7,40,7],[56,0,56,5],[50,0,50,5],[51,0,51,5],[52,0,52,5],[53,0,53,5],[54,0,54,5],[55,0,55,5],[18,0,18,5],[19,0,19,5],[3,0,3,6],[8,0,8,5],[9,0,9,5],[10,0,10,5],[34,0,34,5],[30,0,30,5],[20,0,20,5],[6,0,6,6],[23,0,23,5],[11,0,11,5],[27,0,27,5],[25,0,25,5],[26,0,26,5],[24,0,24,5],[12,0,12,5],[13,0,13,5],[14,0,14,5],[15,0,15,5],[16,0,16,5],[17,0,17,5],[1,0,1,6],[35,0,35,5],[38,0,38,5],[39,0,39,5],[49,0,49,5],[37,0,37,2],[41,0,41,5],[44,0,44,5],[45,0,45,5],[47,0,47,5],[46,0,46,5],[48,0,48,5],[40,0,40,5],[28,0,28,5],[29,0,29,5],[33,0,33,5]]}
[]
["Evaluación de No Daño Significativo de actividades del sector agricultura"]
[]
["El principio de No Daño Significativo (NDS) se compone de una serie de criterios medioambientales que permiten asegurar que una actividad económica, con contribución sustancial, no tenga efectos negativos en ninguno de los otros objetivos de la Taxonomía, distintos al parámetro principal. De esta manera, se asegura que el progreso en algunos objetivos no se haga a expensas de otros objetivos medioambientales. Los criterios de NDS se enfocan en 5 ejes principales: Agua, Adaptación, Biodiversidad, Prevención y Control de la Contaminación, y Economía Circular. Para contar con más detalle, por favor consulta el documento de la Taxonomía Sostenible de México."]
[]
[]
["Asegúrate de responder todas las preguntas. En este apartado aparecerán solo los criterios de No Daño Significativo relacionados a las actividades que se establecieron anteriormente. Al final, se evaluará el porcentaje de criterios de No Daño Significativo que se cumplan. Por favor responde si la actividad cumple con los criterios."]
["Agua"]
["¿La operación financiera y/o proyecto identifica factores que permitan dar certeza sobre un menor impacto en el uso de recursos hídricos (que no se incremente el consumo de agua por unidad económica), que se establezca la producción agrícola acorde a las características geográficas del sitio, que disminuya la demanda de productos que multiplican la demanda de agua, que no se amplíe la superficie de riego)?",null,null,null,null,null,"Seleccione","Incluir estos elementos dentro de la MIA. Apartados sobre la descripción y análisis del medio, sobre los recursos hídricos, medidas de prevención y mitigación y en la vinculación y conocimiento de las normas aplicables."]
["¿La operación financiera y/o proyecto previene la contaminación de cuerpos de agua por escorrentía, lixiviación, filtración o deposición atmosférica, cambiando el uso de agroquímicos por plaguicidas y fertilizantes orgánicos?",null,null,null,null,null,"Seleccione"]
["¿La operación financiera y/o proyecto cumple con los requerimientos de ley para el uso y almacenamiento de agua para diferentes usos (potable, riego, industria, etc.)?",null,null,null,null,null,"Seleccione"]
["¿La operación financiera y/o proyecto cumple con la condición de no desviar cauces de agua?",null,null,null,null,null,"Seleccione"]
["¿La operación financiera y/o proyecto trabaja la tierra a más de cuatro metros de un cuerpo de agua manteniendo la vegetación riparia correspondiente?",null,null,null,null,null,"Seleccione"]
["¿La operación financiera y/o proyecto incrementa la eficiencia en el uso del agua adoptando nuevas técnicas de riego que permitan el ahorro de recursos hídricos (controlar la cantidad de agua utilizada, evitar pérdidas en el sistema de riego o métodos de retención de agua)?",null,null,null,null,null,"Seleccione"]
["¿La operación financiera y/o proyecto usa índices de evaluación del daño no significativo, tales como la huella hídrica, relación extracción/recarga, estado de conservación, disponibilidad media anual de agua subterránea y superficial, así como métricas de eficiencia hídrica?",null,null,null,null,null,"Seleccione"]
["¿La operación financiera y/o proyecto cumple con la regulación establecida por la Ley de Aguas Nacionales sobre uso y reúso en materia de agua. Además cuenta con título de concesión expedido por CONAGUA. Aplica en pozos profundos, no es común en caso de ríos y canales. En particular, alinearse al régimen de concesiones para explotación, uso o aprovechamiento del agua conforme a lo dispuesto en el Artículo 113 y 118 de la Ley de Aguas Nacionales?",null,null,null,null,null,"Seleccione"]
["¿La operación financiera y/o proyecto cumple con la Ley de Aguas Nacionales (LAN): El agua es un bien de dominio público federal, vital, vulnerable y finito, con valor social, económico y ambiental, cuya preservación en cantidad y calidad y sustentabilidad es tarea fundamental del Estado y la Sociedad, así como prioridad y asunto de seguridad nacional (TITULO “Política Hídrica Nacional”, Art. 14 BIS 5)?",null,null,null,null,null,"Seleccione"]
["¿La operación financiera y/o proyecto sigue lo establecido en otros instrumentos normativos para preservar el recurso hídrico tales como vedas, reglamentos, zonas reglamentadas y zonas de reserva?",null,null,null,null,null,"Seleccione"]
["¿La operación financiera y/o proyecto cumple con el Programa Nacional Hídrico 2020-2024, así como con las estrategias y planes de gestión hídrica estatales y municipales, y atender las recomendaciones de los Consejos de Cuenca por cuenca hidrológica o por región hidrológica?",null,null,null,null,null,"Seleccione"]
["¿La operación financiera y/o proyecto identifica la disponibilidad de agua y los riesgos de contaminación de agua, tanto de aguas superficiales como los acuíferos, y en particular las fuentes de agua utilizadas para consumo humano, en la cuenca hidrológica y en la región hidrológica de que se trate?",null,null,null,null,null,"Seleccione"]
["Dentro del proyecto, es relevante la captación de agua pluvial y el reúso del agua en las instalaciones, así como el cumplimiento de la NOM-001-SEMARNAT-2021, que establece los límites permisibles de contaminantes en las descargas de aguas residuales en cuerpos receptores propiedad de la nación. ¿Esto es considerado por la operación financiera y/o proyecto?",null,null,null,null,null,"Seleccione"]
[]
["Adaptación"]
["¿La operación financiera y/o proyecto cumple con la condición de que está prohibido trabajar la tierra en pendientes mayores a 20% sin obras de conservación de suelos (terrazas, presas de gavión, etc.)?",null,null,null,null,null,"Seleccione","Incluir el conocimiento y las acciones llevadas a cabo en este rubro dentro de la MIA, se pueden apoyar en documentos como: https://www.fao.org/3/i8864es/I8864ES.pdf."]
["¿La operación financiera y/o proyecto cumple con la condición de que está prohibido drenar suelos inundables (histosoles, gleysoles y umbrisoles de acuerdo con mapa de tipos de suelos de INEGI)?",null,null,null,null,null,"Seleccione"]
["¿La operación financiera y/o proyecto realiza actividades agrícolas que atiendan la necesidad de cuidado y protección de los recursos naturales, así como los impactos al medio ambiente, mediante buenas prácticas de manejo en la producción agrícola?",null,null,null,null,null,"Seleccione"]
["¿La operación financiera y/o proyecto fomenta aquellas actividades que sean resilientes y adaptables a los fenómenos climáticos originados por el cambio climático en el planeta?",null,null,null,null,null,"Seleccione"]
["¿La operación financiera y/o proyecto considera acciones en favor de la agricultura resiliente al clima, con base a Adaptación basada en Ecosistemas (AbE)?",null,null,null,null,null,"Seleccione","Presentar ficha de recopilación sistematizada para IACC. ENCC, Visión 10-20-40 y la Metodología para la Priorización de Medidas de Adaptación frente al Cambio Climático (SEMARNAT-GIZ, 2015)."]
["¿La operación financiera y/o proyecto considera acciones en favor de la agricultura resiliente al clima, con base a Adaptación basada en Comunidades (AbC)?",null,null,null,null,null,"Seleccione"]
["¿La operación financiera y/o proyecto considera acciones en favor de la agricultura resiliente al clima, con base a Adaptación basada en la Reducción del Riesgo de Desastres?",null,null,null,null,null,"Seleccione"]
["¿La operación financiera y/o proyecto demuestra que evaluó la dimensión de las alteraciones e impactos que podrían afectar en los municipios vulnerables al cambio climático, revisando de forma enunciativa, más no limitativa en el Atlas Nacional de Vulnerabilidad al Cambio Climático y el Atlas Nacional de Riesgos?",null,null,null,null,null,"Seleccione","Incluir en la MIA. Detallar la evaluación de la dimensión de las alteraciones e impactos dentro de los datos del proyecto."]
[]
["Biodiversidad"]
["¿La operación financiera y/o proyecto intensifica las medidas de Protección y Restauración de la biodiversidad y los ecosistemas, basados en la legislación nacional, así como fomentar el uso de bioinsumos que no destruyan los ecosistemas actuales en México?",null,null,null,null,null,"Seleccione","Describir en la MIA las medidas llevadas a cabo. Tomar en cuenta la Ley General de Equilibrio Ecológico y Protección al Ambiente (LGEEPA), Ley General de Desarrollo Forestal Sustentable (LGDFS), la Ley General de Vida Silvestre (LGVS), la Ley de Bioseguridad de Organismos Geéticamente Modificados (LBOGM), así como normativas que se consideren pertinentes. "]
["Los sistemas de monocultivos deberán contar con parches, corredores o cercas vivas con plantas nativas. ¿Esto se cumple en el contexto del proyecto o de la operación financiera y/o proyecto?",null,null,null,null,null,"Seleccione","Describir en la MIA en el apartado de medidas de prevención y mitigación."]
["En caso de que aplique, el uso de organismos genéticamente modificados deberá sujetarse a la Ley de Bioseguridad de Organismos Genéticamente Modificados y su respectivo Reglamento. ¿Esto se cumple en el contexto del proyecto?",null,null,null,null,null,"Seleccione","Describir la vinculación a esta Ley y su Reglamento en la MIA."]
[]
["Prevención y Control de la Contaminación"]
["¿La operación financiera y/o proyecto fomenta la cultura de prevención y control de la contaminación a la atmósfera, el agua o el suelo, limitando el uso de insecticidas y herbicidas químicos, así como fomentar y dar preferencia al uso de insecticidas de origen biológico con microrganismos para el combate de plagas y así evitar pesticidas, y herbicidas?",null,null,null,null,null,"Seleccione","Incluir y especificar en la MIA. Dentro de los apartados de medidas de prevención y mitigación para mostrar acciones de control prevención de la contaminación en dichos elementos, dentro de los cuales se puede incluir el uso preferente de dicho tipo de pesticidas. "]
["¿La operación financiera y/o proyecto cumple con la condición de que está prohibido llevar a cabo quemas en el predio?",null,null,null,null,null,"Seleccione"]
["¿La operación financiera y/o proyecto cumple con la condición de que está prohibido utilizar pesticidas con etiqueta amarilla o roja según el registro sanitario de plaguicidas emitido por la COFEPRIS?",null,null,null,null,null,"Seleccione"]
["El uso de plaguicidas y herbicidas deberá asegurar el cumplimiento de las instrucciones del etiquetado de los productos, así como del Manual para el Buen Uso y Manejo de Plaguicidas en Campo publicado y difundido por SENASICA. Asimismo, los agroinsumos mencionados deberán pertenecer a las clases III y IV de acuerdo a la clasificación toxicológica de la OMS (poco peligroso (III) y productos que normalmente no ofrecen peligro (IV)). ¿Esto sucede en el contexto de la operación financiera y/o proyecto?",null,null,null,null,null,"Seleccione","Asegurar el cumplimiento de las instrucciones del etiquetado de los productos, así como del Manual para el Buen Uso y Manejo de Plaguicidas en Campo publicado y difundido por SENASICA. Tener en cuenta la NOM-232-SSA1-2009."]
[]
["Economía Circular"]
["¿La operación financiera y/o proyecto cuenta con un uso eficiente de los recursos naturales?",null,null,null,null,null,"Seleccione","Detallar la inclusión de estos elementos dentro de la MIA."]
["¿La operación financiera y/o proyecto implementa nuevos modos de producción sostenibles, como son la concordancia de los cultivos con la topografía, tipo de suelo y condiciones climáticas de la región, rotación de cultivos y la policultura?",null,null,null,null,null,"Seleccione"]
["¿La operación financiera y/o proyecto emplea fuentes de energía renovables?",null,null,null,null,null,"Seleccione"]
["¿La operación financiera y/o proyecto contribuye a la reducción de residuos y restricciones en la extracción de nuevos materiales, utilizando materias primas que permitan su correcto aprovechamiento en términos de durabilidad y de posibilidades de reparación, actualización, reutilización o reciclado?",null,null,null,null,null,"Seleccione"]
["¿La operación financiera y/o proyecto contribuye a la introducción de nuevas tecnologías para la incineración de residuos peligrosos no reciclables?",null,null,null,null,null,"Seleccione"]
["¿La operación financiera y/o proyecto fomenta el consumo de productos locales y de temporada?",null,null,null,null,null,"Seleccione"]
[]
["Mitigación"]
["Para el cumplimiento de este criterio,  la operación financiera y/o proyecto no debe afectar la habilidad presente y futura de los bosques y tierras de cultivo que sirven como sumideros de carbono. ¿Esto se cumple en el contexto de la operación financiera y/o proyecto?",null,null,null,null,null,"Seleccione","Incluir en la MIA el cumplimiento o una alineación con la LGDFS donde detalle el conocimiento y de los puntos mencionados que pueden ser verificables por la autoridad correspondiente. A partir del análisis e identificación de estos recursos, poder cumplir con mantener por lo menos dichos niveles. "]
["Para el cumplimiento de este criterio, la operación financiera y/o proyecto no debe disminuir los niveles de reservas y sumideros de carbono en los bosques en el largo plazo. Evitar la quema de precosecha y de residuos agrícolas. ¿Esto se cumple en el contexto de la operación financiera y/o proyecto?",null,null,null,null,null,"Seleccione"]
["Para el cumplimiento de este criterio, la operación financiera y/o proyecto no debe propiciar el cambio de uso, degradación y pérdida de suelo, de acuerdo con lo establecido en la Ley General de Desarrollo Forestal Sustentable. ¿Esto se cumple en el contexto de la operación financiera y/o proyecto?",null,null,null,null,null,"Seleccione"]
["¿La operación financiera y/o proyecto utiliza productos para el control de plagas y enfermedades autorizados por la COFEPRIS, y prioriza el uso de plaguicidas biológicos o insecticidas orgánicos?",null,null,null,null,null,"Seleccione","Incluir en la MIA. Vincular los productos usados a las recomendaciones de la COFEPRIS y el uso prioritario como parte de las medidas de prevención y mitigación. "]
["¿La operación financiera y/o proyecto realiza un manejo adecuado de residuos agrícolas y pecuarios, en concordancia con lo establecido en la NOM-161-SEMARNAT-2011?",null,null,null,null,null,"Seleccione","Presentar el certificado de cumplimiento de la NOM-161-SEMARNAT-2011."]

{"sheet":"Forestal","index":8,"n_rows":50,"n_cols":6,"rows_kept":50,"cut":false,"hidden":true,"merged":[[3,0,3,7],[47,5,47,7],[49,0,49,8],[1,0,1,7]]}
[]
["Actividades del sector de aprovechamiento forestal"]
[]
["Dentro de la categoría de aprovechamiento forestal de la Taxonomía Sostenible de México se consideran 4 actividades. En este apartado es necesario seleccionar, de esas 4 actividades, las que estarán siendo financiadas en  las presentes operaciones financieras y/o proyectos. En esta versión del Excel, es posible evaluar hasta 20 actividades que se establecen en las cajas de abajo. Recuerda establecer los montos en la casilla amarilla (con número MXN) y elegir las actividades en la lista desplegable azul. Si es necesario incluir más de una actividad, da click en el botón de \"Añade una nueva actividad\". En caso de que la actividad que deseas evaluar no se encuentre en la lista, significa que no está considerada en este momento por la Taxonomía Sostenible de México. En este caso, puedes  mandar un correo a taxonomia_sost@hacienda.gob.mx para conocer más al respecto. "]
["Objetivos que deberás considerar:",{"$f":"IF('Base-datos'!$C$705=TRUE,\"Mitigación\",\"\")","v":""},{"$f":"IF('Base-datos'!$C$706=TRUE,\"Adaptación\",\"\")","v":""},{"$f":"IF('Base-datos'!$C$707=TRUE,\"Género\",\"\")","v":""}]
[]
[]
["Definición de actividades"]
[null,"Cantidad de recursos ↓","Actividad en la que se colocarán los recursos ↓","Alineación a un objetivo","Tipo de recurso evaluado ↓","Da click para añadir más actividades ↓"]
["Establece por favor en la casilla amarilla la cantidad de recursos que serán destinados a la actividad que selecciones en la casilla azul ",null,"Seleccione","Seleccione","Seleccione"]
[]
["Establece por favor en la casilla amarilla la cantidad de recursos que serán destinados a la actividad que selecciones en la casilla azul ",null,"Seleccione","Seleccione","Seleccione"]
[]
["Establece por favor en la casilla amarilla la cantidad de recursos que serán destinados a la actividad que selecciones en la casilla azul ",null,"Seleccione","Seleccione","Seleccione"]
[]
["Establece por favor en la casilla amarilla la cantidad de recursos que serán destinados a la actividad que selecciones en la casilla azul ",null,"Seleccione","Seleccione","Seleccione"]
[]
["Establece por favor en la casilla amarilla la cantidad de recursos que serán destinados a la actividad que selecciones en la casilla azul ",null,"Seleccione","Seleccione","Seleccione"]
[]
["Establece por favor en la casilla amarilla la cantidad de recursos que serán destinados a la actividad que selecciones en la casilla azul ",null,"Seleccione","Seleccione","Seleccione"]
[]
["Establece por favor en la casilla amarilla la cantidad de recursos que serán destinados a la actividad que selecciones en la casilla azul ",null,"Seleccione","Seleccione","Seleccione"]
[]
["Establece por favor en la casilla amarilla la cantidad de recursos que serán destinados a la actividad que selecciones en la casilla azul ",null,"Seleccione","Seleccione","Seleccione"]
[]
["Establece por favor en la casilla amarilla la cantidad de recursos que serán destinados a la actividad que selecciones en la casilla azul ",null,"Seleccione","Seleccione","Seleccione"]
[]
["Establece por favor en la casilla amarilla la cantidad de recursos que serán destinados a la actividad que selecciones en la casilla azul ",null,"Seleccione","Seleccione","Seleccione"]
[]
["Establece por favor en la casilla amarilla la cantidad de recursos que serán destinados a la actividad que selecciones en la casilla azul ",null,"Seleccione","Seleccione","Seleccione"]
[]
["Establece por favor en la casilla amarilla la cantidad de recursos que serán destinados a la actividad que selecciones en la casilla azul ",null,"Seleccione","Seleccione","Seleccione"]
[]
["Establece por favor en la casilla amarilla la cantidad de recursos que serán destinados a la actividad que selecciones en la casilla azul ",null,"Seleccione","Seleccione","Seleccione"]
[]
["Establece por favor en la casilla amarilla la cantidad de recursos que serán destinados a la actividad que selecciones en la casilla azul ",null,"Seleccione","Seleccione","Seleccione"]
[]
["Establece por favor en la casilla amarilla la cantidad de recursos que serán destinados a la actividad que selecciones en la casilla azul ",null,"Seleccione","Seleccione","Seleccione"]
[]
["Establece por favor en la casilla amarilla la cantidad de recursos que serán destinados a la actividad que selecciones en la casilla azul ",null,"Seleccione","Seleccione","Seleccione"]
[]
["Establece por favor en la casilla amarilla la cantidad de recursos que serán destinados a la actividad que selecciones en la casilla azul ",null,"Seleccione","Seleccione","Seleccione"]
[]
["Establece por favor en la casilla amarilla la cantidad de recursos que serán destinados a la actividad que selecciones en la casilla azul ",null,"Seleccione","Seleccione","Seleccione"]
[]
["Establece por favor en la casilla amarilla la cantidad de recursos que serán destinados a la actividad que selecciones en la casilla azul ",null,"Seleccione","Seleccione","Seleccione"]
[]
["Establece por favor en la casilla amarilla la cantidad de recursos que serán destinados a la actividad que selecciones en la casilla azul ",null,"Seleccione","Seleccione","Seleccione","Por el momento, solo es posible evaluar 20 actividades. Si tu proyecto involucra más actividades, por favor escribe un corrreo a taxonomia_sost@hacienda.gob.mx"]
[]
["Al haber concluido el llenado de las actividades y los tipos de recursos que estarás evaluando, por favor da click en el siguiente botón para evaluar la contribución sustancial de las actividades"]

{"sheet":"Mitigación-Forestal","index":9,"n_rows":64,"n_cols":8,"rows_kept":64,"cut":false,"hidden":true,"merged":[[13,0,13,4],[14,0,14,4],[28,0,31,0],[40,1,40,4],[18,0,18,2],[42,0,42,6],[36,0,36,4],[37,0,37,4],[27,7,28,7],[46,6,47,6],[47,1,47,4],[39,0,40,0],[39,1,39,4],[39,5,40,5],[39,6,40,6],[41,1,41,4],[63,0,63,6],[38,0,38,4],[32,1,32,4],[35,0,35,4],[46,1,46,4],[46,5,47,5],[62,0,62,4],[55,1,55,4],[56,0,58,0],[56,1,56,4],[56,5,58,5],[57,1,57,4],[58,1,58,4],[54,1,54,4],[44,0,44,4],[33,0,33,6],[3,0,3,6],[8,0,8,2],[9,0,9,2],[10,0,10,2],[12,0,12,4],[7,0,7,2],[1,0,1,6],[53,5,54,5],[46,0,47,0],[16,0,16,4],[22,0,22,4],[24,0,24,4],[29,1,29,4],[31,1,31,4],[25,0,25,6],[30,1,30,6],[28,1,28,6],[27,0,27,6],[53,6,54,6],[49,0,49,6],[15,0,15,4],[45,0,45,4],[52,7,62,7],[20,5,20,6],[11,5,16,6],[23,0,23,6],[29,7,32,7],[39,7,41,7],[59,1,59,4],[60,0,60,4],[61,0,61,4],[56,6,58,6],[48,1,48,4],[52,1,52,4],[53,0,54,0],[53,1,53,4],[46,7,48,7],[20,0,20,3]]}
[]
["Mitigación al cambio climático actividades de aprovechamiento forestal"]
[]
["La Taxonomía Sostenible de México contiene métricas y umbrales que evalúan la contribución sustancial de cada una de las actividades económicas para determinar si dichas actividades contribuyen sustancialmente a la sostenibilidad. Las métricas corresponden a las unidades en las que se evalúan los umbrales. Por otro lado, los umbrales son los niveles mínimos que tienen que cumplir cada una de las actividades para argumentar que cuentan con contribución sustancial."]
[]
[]
[]
[" 113110. Silvicultura "]
[" 113212. Aprovechamiento de recursos forestales no maderables (Recolección de productos forestales sensu SCIAN) "]
[" 113310. Aprovechamiento de recursos forestales maderables (Tala de árboles sensu SCIAN) "]
[]
["Considera los siguientes criterios antes de contestar las preguntas",null,null,null,null,"No es necesario realizar algún cambio en los conceptos de la derecha. \n<------------\n\nEsta es información funciona para ser considerada en las respuestas que se presentarán más adelante."]
["a. Manejo Forestal Sustentable (MFS) es cuando unproyecto cuenta con un programa de MFS (PMFS) que debe estar aprobado por la SEMARNAT."]
["b. Certificación del manejo forestal (CMF)."]
["MFS: Es el proceso que comprende el conjunto de acciones y procedimientos que tiene por objeto la ordenación, el cultivo, la protección, la conservación, la restauración y el aprovechamiento de los recursos y servicios ambientales de un ecosistema forestal, considerando los principios ecológicos, respetando la integralidad funcional e interdependencia de recursos y sin que disminuya o ponga en riesgo la capacidad productiva de los ecosistemas y recursos existentes en la misma."]
["PMF: Es el instrumento técnico de planeación y seguimiento que describe las acciones y procedimientos de manejo forestal sustentable."]
["CMF: Es la certificación del manejo forestal es un medio para acreditar el adecuado manejo forestal, mejorar la protección de los ecosistemas forestales y facilitar el acceso a mercados nacionales e internacionales."]
[]
["Por favor, selecciona la opción más adecuada para las siguientes preguntas"]
[]
["Antes de comenzar, observa las actividades A, B y C establecidas abajo. Selecciona por favor en la casilla de la derecha, las actividades que serán aplicadas en la evaluación de las operaciones financieras y/o proyectos --->",null,null,null,"A","Observa las opciones A,B y C de abajo. Selecciona alguna de la lista desplegable y da click en siguiente. En función del tipo de actividad, se presentarán preguntas específicas"]
[]
["A. Silvicultura de ecosistemas forestales naturales para el aprovechamiento maderable y aprovechamiento de recursos forestales no maderables y maderables en ecosistemas naturales. "]
["Con certificación"]
["La actividad económica cuenta con una certificación vigente del MFS como lo son: i) la Auditoría Técnica Preventiva, ii) NMX-AA-143-SCFI-2015 o iii) Certificación internacional FSC. ",null,null,null,null,"Sí",{"$f":"IF(F25=\"Seleccione\",\"Por definir\",IF(F25=\"Sí\",\"La actividad cumple con los criterios como actividad que contribuye sustancialmente a la sostenibilidad. No es necesario responder las preguntas de abajo que tienen que ver con proyectos sin certificación\",\"Por favor, continua con las preguntas de abajo para conocer si el proyecto presenta contribución sustancial.\"))","v":"La actividad cumple con los criterios como actividad que contribuye sustancialmente a la sostenibilidad. No es necesario responder las preguntas de abajo que tienen que ver con proyectos sin certificación"},"Deberás continuar a la siguiente pregunta de no contar con certificación"]
[{"$f":"IF(F25=\"Seleccione\",\"Por definir\",IF(F25=\"Sí\",\"La actividad sí contribuye sustancialmente a la sostenibilidad\",\"Por favor contesta la pregunta de abajo\"))","v":"La actividad sí contribuye sustancialmente a la sostenibilidad"}]
[]
["Sin certificación",null,null,null,null,null,null,"En caso de contar con certificación, no es necesario contestar las preguntas de la derecha. "]
["(i) La actividad económica cuenta con un instrumento técnico de planeación y seguimiento que describe las acciones y procedimientos de la silvicultura de ecosistemas forestales naturales para el aprovechamiento maderable, el cual está vigente y ha sido autorizado por la SEMARNAT de conformidad con la normatividad correspondiente.","Silvicultura y Aprovechamiento de recursos forestales maderables"]
[null,"Oficio de Autorización de Aprovechamiento de Recursos Forestales Maderables, y el  Programa de Manejo Forestal expedidos y autorizados por la SEMARNAT.",null,null,null,"Sí",{"$f":"IF(F30=\"Seleccione\",\"Por definir\",IF(F30=\"Sí\",\"El primer criterio se cumple satisfactoriamente\",IF(F30=\"No\",\"Al no cumplir con este criterio, la actividad no genera contribución sustancial\",\"Por favor, responde las preguntas posteriores\")))","v":"El primer criterio se cumple satisfactoriamente"},"Para el caso de proyectos sin certificación, es necesario contestar las tres preguntas de la derecha. Para generar contribución sustancial, la tercer respuesta debe ser positiva, así como las previas que apliquen."]
[null,"Aprovechamiento de recursos forestales no maderables "]
[null,"Aviso o Autorización de Aprovechamiento de Recursos Forestales No Maderables, y estudio técnico o programa de Manejo forestal expedido y autorizado por la SEMARNAT",null,null,null,"Sí",{"$f":"IF(F32=\"Seleccione\",\"Por definir\",IF(F32=\"Sí\",\"El primer criterio se cumple satisfactoriamente\",IF(F32=\"No\",\"Al no cumplir con este criterio, la actividad no genera contribución sustancial\",\"Por favor, contesta la pregunta anterior\")))","v":"El primer criterio se cumple satisfactoriamente"}]
["(ii) Presentación de informes periódicos sobre la ejecución, el desarrollo y cumplimiento del instrumento técnico referido en el criterio (i) ante la SEMARNAT.","Informes anuales sobre la ejecución, desarrollo y cumplimiento del programa de aprovechamiento forestal, recibido por SEMARNAT.",null,null,null,"Sí",{"$f":"IF(F33=\"Seleccione\",\"Por definir\",IF(F33=\"Sí\",\"El segundo criterio se cumple satisfactoriamente\",\"Al no cumplir con este criterio, la actividad no genera contribución sustancial\"))","v":"El segundo criterio se cumple satisfactoriamente"}]
[{"$f":"IF(A26=\"La actividad sí contribuye sustancialmente a la sostenibilidad\",\"La actividad sí contribuye sustancialmente a la sostenibilidad\",IF(F33=\"Seleccione\",\"Por definir\",IF(AND(F30=\"Sí\",F33=\"Sí\"),\"La actividad sí contribuye sustancialmente a la sostenibilidad\",IF(AND(F32=\"Sí\",F33=\"Sí\"),\"La actividad sí contribuye sustancialmente a la sostenibilidad\",\"La actividad no genera contribución sustancial\"))))","v":"La actividad sí contribuye sustancialmente a la sostenibilidad"}]
[]
["B. Silvicultura de plantaciones forestales comerciales maderables y plantaciones forestales comerciales no maderables (Esta subactividad debe ser considerada en 111999, Otros cultivos) y maderables. "]
["Con certificación"]
["La actividad económica cuenta con una certificación vigente de la Plantación Forestal Comercial (PFC), a través de la Certificación internacional FSC. ",null,null,null,null,"Seleccione",{"$f":"IF(F38=\"Seleccione\",\"Por definir\",IF(F38=\"Sí\",\"La actividad cumple con los criterios para considerarse como actividad sostenible\",\"Por favor, continua con las preguntas de abajo para conocer si el proyecto presenta contribución sustancial.\"))","v":"Por definir"}]
["Sin certificación"]
["i) La actividad económica cuenta con un instrumento técnico de planeación y seguimiento que describe las acciones y procedimientos de la silvicultura de PFC maderables, el cual está vigente y ha sido autorizado por la SEMARNAT de conformidad con la normatividad correspondiente. ","Constancia de Plantación Forestal Comercial emitida por la SEMARNAT.",null,null,null,"Seleccione",{"$f":"IF(F40=\"Seleccione\",\"Por definir\",IF(F40=\"Sí\",\"Cumplir ambos requisitos garantiza cumplir con el primer criterio\",\"Al no cumplir con este criterio, la actividad no genera contribución sustancial\"))","v":"Por definir"}]
[null,"Aviso de Plantación Forestal Comercial emitida por la SEMARNAT."]
["(ii) Presentación de informes periódicos sobre la ejecución, el desarrollo y cumplimiento del instrumento técnico referido en el criterio (i) ante la SEMARNAT.","Informes anuales de aprovechamiento de materias primas de PFC recibido por la SEMARNAT.",null,null,null,"Seleccione",{"$f":"IF(F42=\"Seleccione\",\"Por definir\",IF(F42=\"Sí\",\"El segundo criterio se cumple satisfactoriamente\",\"Al no cumplir con este criterio, la actividad no genera contribución sustancial\"))","v":"Por definir"}]
[{"$f":"IF(OR(F38=\"Seleccione\",F40=\"Seleccione\",F42=\"Seleccione\"),\"Por definir\",IF(F38=\"Sí\",\"La actividad sí contribuye sustancialmente a la sostenibilidad\",IF(AND(F40=\"Sí\",F42=\"Sí\"),\"La actividad sí contribuye sustancialmente a la sostenibilidad\",\"La actividad no genera contribución sustancial\")))","v":"Por definir"}]
[]
["C. Silvicultura en predios con aprovechamiento maderable de especies enlistadas en la NOM-059-SEMARNAT-2010 y aprovechamiento no maderable y maderable de especies enlistadas en la NOM-059-SEMARNAT-2010. "]
["Criterios"]
["(i) La actividad económica cuenta con un instrumento técnico de planeación y seguimiento que describe las acciones y procedimientos de la silvicultura en predios con aprovechamiento maderable de especies enlistadas en la NOM-059-SEMARNAT-2010, el cual está vigente y ha sido autorizado por la SEMARNAT de conformidad con la normatividad correspondiente."," Plan de Manejo de la Unidad de Manejo para la Conservación de la Vida Silvestre, autorizado por la SEMARNAT.",null,null,null,"Seleccione",{"$f":"IF(F47=\"Seleccione\",\"Por definir\",IF(F47=\"Sí\",\"Se cumple el primer criterio. Cumplir con la siguiente pregunta garantiza la contribución sustancial\",\"Al no cumplir con este criterio, la actividad no genera contribución sustancial\"))","v":"Por definir"}]
[null,"Oficio de Autorización de aprovechamiento de la Unidad de Manejo para la Conservación de la Vida Silvestre vigente, expedido por SEMARNAT."]
["(ii) Presentación de informes periódicos sobre la ejecución, el desarrollo y cumplimiento del instrumento técnico referido en el criterio (i) ante la SEMARNAT.","El proyecto informará anualmente sobre las actividades de conservación y aprovechamiento sustentable de la vida silvestre a ser entregado a SEMARNAT. ",null,null,null,"Seleccione",{"$f":"IF(F49=\"Seleccione\",\"Por definir\",IF(F49=\"Sí\",\"El segundo criterio se cumple satisfactoriamente\",\"Al no cumplir con este criterio, la actividad no genera contribución sustancial\"))","v":"Por definir"}]
[{"$f":"IF(OR(F47=\"Seleccione\",F49=\"Seleccione\"),\"Por definir\",IF(AND(F47=\"Sí\",F49=\"Sí\"), \"La actividad sí contribuye sustancialmente a la sostenibilidad\",\"La actividad no genera contribución sustancial\"))","v":"Por definir"}]
[]
[" 113211. Viveros forestales"]
["(i) Si el vivero se encuentra en un terreno forestal.","¿Cuenta con autorización por cambio de uso de suelo de los terrenos forestales (Art. 93 de la LGDFS).?",null,null,null,"Sí",{"$f":"IF(F53=\"Seleccione\",\"Por definir\",IF(F53=\"El vivero no se encuentra en un terreno forestal\",\"Continuar con las siguientes preguntas\",IF(F53=\"Sí\",\"Cumplir estos requisitos garantiza cumplir con este criterio\",\"Al no cumplir con este criterio, la actividad no genera contribución sustancial\")))","v":"Cumplir estos requisitos garantiza cumplir con este criterio"},"Todos los criterios deben ser cumplidos para lograr la contribución sustancial"]
["(ii) Abasto de agua, que garantice permanentemente en el ciclo de producción.","El proyecto cuenta con permisos para el aprovechamiento de las fuentes de abastecimiento de agua que se utilizan en el vivero, según el caso, son los siguientes: i) Permiso de la Comisión Nacional del Agua, ii)Recibo o contrato de la Red Pública municipal o iii) Derecho de explotación o uso de aguas nacionales para ejido o pequeña propiedad, según corresponda.",null,null,null,"Sí",{"$f":"IF(F54=\"Seleccione\",\"Por definir\",IF(F54=\"Sí\",\"Cumplir estos requisitos garantiza cumplir con este criterio\",\"Al no cumplir con este criterio, la actividad no genera contribución sustancial\"))","v":"Cumplir estos requisitos garantiza cumplir con este criterio"}]
[null,"Los permisos obtenidos en el contexto del proyecto están al corriente respecto a los pagos."]
["(iii) Información de funcionamiento necesaria para el proyecto, definiendo los objetivos, los procesos y los tiempos de entrega. "," Presentar \"Protocolo de Producción de Planta\" incluyendo: (i) Objetivos y metas; Localización; Infraestructura; Fichas técnicas de especies a producir; Calendario de siembra y cosecha; Prevención y control de enfermedades; Fertilización; Organigrama de la plantilla laboral durante el ciclo de producción. (ii) Bitácora de seguimiento de actividades diarias. ",null,null,null,"Sí",{"$f":"IF(F56=\"Seleccione\",\"Por definir\",IF(F56=\"Sí\",\"Cumplir estos requisitos garantiza cumplir con este criterio\",\"Al no cumplir con este criterio, la actividad no genera contribución sustancial\"))","v":"Cumplir estos requisitos garantiza cumplir con este criterio"}]
["(iv) El uso de germoplasma forestal y su procedencia legal, así como el abasto de germoplasma con fines de conservación y restauración.","Códigos de identificación y Permiso de la legal procedencia de Germoplasma forestal para Reforestación y Forestación con fines de conservación o restauración (Art. 128 de la LGDFS y Art. 88 de su Reglamento).",null,null,null,"Sí",{"$f":"IF(F57=\"Seleccione\",\"Por definir\",IF(F57=\"Sí\",\"Cumplir estos requisitos garantiza cumplir con este criterio\",\"Al no cumplir con este criterio, la actividad no genera contribución sustancial\"))","v":"Cumplir estos requisitos garantiza cumplir con este criterio"}]
[null,"Documentación que avale el origen del germoplasma a utilizar en la producción de planta, conforme lo establece la Norma Mexicana NMX-AA-169-SCFI-2014, o la que la sustituya: (i) Unidad Productora de Germoplasma Forestal (UPGF) deberá presentar remisiones forestales y ficha de atributos de la semilla. (ii) Centro de Acopio (CABGF) deberá presentar factura y la ficha de atributos de la semilla."]
[null,"Si la especie está en el listado de especies en riesgo de la NOM-059, SEMARNAT-2010, contar con el permiso como Unidad de Manejo para la Conservación de la Vida Silvestre."]
["(v) Origen y abasto de sustratos y medios de crecimiento para la meta de producción propuesta. ","Sección Cuarta Del Aprovechamiento de los Recursos Forestales No Maderables de la LGDFS (Art. 85): Se requiere autorización para el aprovechamiento en los casos siguientes: (i) Tierra de monte y de hoja; (ii) Para el caso de “tepezil”, “jal”, “tezontle”, o cualquier otro material, copia del permiso de aprovechamiento de banco de explotación o extracción, con la “Manifestación de Impacto Ambiental” expedido por SEMARNAT.",null,null,null,"Sí",{"$f":"IF(F60=\"Seleccione\",\"Por definir\",IF(F60=\"Sí\",\"Cumplir estos requisitos garantiza cumplir con este criterio\",\"Al no cumplir con este criterio, la actividad no genera contribución sustancial\"))","v":"Cumplir estos requisitos garantiza cumplir con este criterio"}]
["(vi) Descripción de plaguicidas e insecticidas con su grado de toxicidad a utilizar para prevención y combate de plagas y enfermedades, priorizando el uso de productos biológicos. ",null,null,null,null,"Sí",{"$f":"IF(F61=\"Seleccione\",\"Por definir\",IF(F61=\"Sí\",\"Cumplir estos requisitos garantiza cumplir con este criterio\",\"Al no cumplir con este criterio, la actividad no genera contribución sustancial\"))","v":"Cumplir estos requisitos garantiza cumplir con este criterio"}]
[" (vii) Manejo de envases vacíos de químicos utilizados en el proceso de producción.",null,null,null,null,"Sí",{"$f":"IF(F62=\"Seleccione\",\"Por definir\",IF(F62=\"Sí\",\"Cumplir estos requisitos garantiza cumplir con este criterio\",\"Al no cumplir con este criterio, la actividad no genera contribución sustancial\"))","v":"Cumplir estos requisitos garantiza cumplir con este criterio"}]
["(viii) Cumplimiento de del título IV del artículo 132 de la Ley Federal del Trabajo para el personal jornalero contratado durante el ciclo de producción de planta. ",null,null,null,null,"Sí",{"$f":"IF(F63=\"Seleccione\",\"Por definir\",IF(F63=\"Sí\",\"Cumplir estos requisitos garantiza cumplir con este criterio\",\"Al no cumplir con este criterio, la actividad no genera contribución sustancial\"))","v":"Cumplir estos requisitos garantiza cumplir con este criterio"}]
[{"$f":"IF(OR(F53=\"Seleccione\",F54=\"Seleccione\",F56=\"Seleccione\",F57=\"Seleccione\",F60=\"Seleccione\",F61=\"Seleccione\",F62=\"Seleccione\",F63=\"Seleccione\"),\"Por definir\",IF(OR(F53=\"No\",F54=\"No\",F56=\"No\",F57=\"No\",F60=\"No\",F61=\"No\",F62=\"No\",F63=\"No\"),\"La actividad no genera contribución sustancial\", \"La actividad sí contribuye sustancialmente a la sostenibilidad\"))","v":"La actividad sí contribuye sustancialmente a la sostenibilidad"}]

{"sheet":"Adaptación-Forestal","index":10,"n_rows":74,"n_cols":8,"rows_kept":74,"cut":false,"hidden":true,"merged":[[19,7,21,8],[26,7,27,8],[36,7,38,8],[27,0,27,4],[20,0,20,4],[21,0,21,4],[22,0,22,6],[24,0,24,1],[25,0,25,5],[26,0,26,4],[36,0,36,4],[1,0,1,6],[3,0,3,6],[17,0,17,1],[18,0,18,5],[19,0,19,4],[5,0,5,2],[6,0,6,2],[7,0,7,2],[13,0,13,3],[14,0,14,3],[43,0,43,5],[45,0,45,2],[9,0,9,5],[37,0,37,4],[38,0,38,4],[39,0,39,6],[28,0,28,6],[30,0,30,1],[31,0,31,5],[32,0,32,4],[34,0,34,1],[35,0,35,5],[11,0,11,2],[47,0,47,3],[48,0,48,3],[51,0,51,1],[52,0,52,5],[53,0,53,4],[53,7,55,8],[54,0,54,4],[55,0,55,4],[56,0,56,6],[58,0,58,1],[59,0,59,5],[60,0,60,4],[60,7,61,8],[61,0,61,4],[62,0,62,6],[64,0,64,1],[65,0,65,5],[66,0,66,4],[68,0,68,1],[69,0,69,5],[70,0,70,4],[70,7,72,8],[71,0,71,4],[72,0,72,4],[73,0,73,6]]}
[]
["Adaptación al cambio climático actividades de aprovechamiento forestal"]
[]
["La Taxonomía Sostenible de México reconoce que el país está expuesto a riesgos climáticos y ambientales heterogéneos no lineales que tienen múltiples canales de transmisión y, por ende, que el cambio climático afecta en distinta medida a todos los sectores de la economía. En este sentido, a través de la Taxonomía se busca que las actividades económicas contribuyan sustancialmente, no sólo a la mitigación, sino también a la adaptación del cambio climático. "]
[]
[" 113110. Silvicultura "]
[" 113212. Aprovechamiento de recursos forestales no maderables (Recolección de productos forestales sensu SCIAN) "]
[" 113310. Aprovechamiento de recursos forestales maderables (Tala de árboles sensu SCIAN) "]
[]
["Responde las siguientes preguntas seleccionando una respuesta de la lista"]
[]
["1. La actividad que estás evaluando es una actividad adaptada o una actividad que facilita la adaptación?",null,null,"Actividad que facilita la adaptación e incluye desarrollo de infraestructura"]
[]
["¿Qué es una actividad adaptada?\nUna actividad económica se adapta a los riesgos climáticos físicos materiales, si integra medidas y/o soluciones para reducirlos, mientras garantiza que la actividad económica pueda funcionar bien en un clima cambiante. Estas actividades de adaptación se desarrollan a partir de la evaluación de riesgos actuales y futuros, ya sean climáticos, crónicos y/o agudos, así como la escala temporal y geográfica de la actividad económica."]
["¿Qué es una actividad que facilita la adaptación? \nUna actividad económica posibilita la adaptación si reduce el riesgo climático físico material y la vulnerabilidad en otras actividades económicas, comunidades, ecosistemas o ciudades, y/o aborda los obstáculos sistémicos a la adaptación. Esto es posible a través del uso de la tecnología y la creación de un producto o servicio especializado."]
[]
[]
["A1. Reducción de los riesgos climáticos físicos materiales."]
["La actividad económica debe reducir todos los riesgos climáticos físicos materiales para las actividades evaluadas, en la medida de lo posible y sobre la base del mejor esfuerzo. Selecciona las respuestas en las listas desplegables"]
["¿La actividad económica integra medidas destinadas a reducir, en la medida de lo posible y sobre la base del mejor esfuerzo, los riesgos climáticos físicos materiales para esa actividad, que han sido identificados mediante una evaluación de riesgos?",null,null,null,null,"Sí",{"$f":"IF(F20=\"Seleccione\",\"Por definir\",IF(F20=\"Sí\",\"El primer criterio se cumple satisfactoriamente\",\"Al no cumplir con este criterio, no es posible generar contribución sustancial\"))","v":"El primer criterio se cumple satisfactoriamente"},"Las tres condiciones deben cumplirse para argumentar que la actividad tiene contribución sustancial"]
["¿Esta evaluación considera tanto la variabilidad meteorológica actual, como el cambio climático futuro, incluidos los escenarios climáticos, así como la incertidumbre?",null,null,null,null,"Sí",{"$f":"IF(F21=\"Seleccione\",\"Por definir\",IF(F21=\"Sí\",\"El segundo criterio se cumple satisfactoriamente\",\"Al no cumplir con este criterio, no es posible generar contribución sustancial\"))","v":"El segundo criterio se cumple satisfactoriamente"}]
["¿Igualmente la evaluación se basa en un sólido análisis de los datos e información disponible sobre los distintos escenarios climáticos, y es coherente con la duración prevista de la actividad?",null,null,null,null,"Sí",{"$f":"IF(F22=\"Seleccione\",\"Por definir\",IF(F22=\"Sí\",\"El tercer criterio se cumple satisfactoriamente\",\"Al no cumplir con este criterio, no es posible generar contribución sustancial\"))","v":"El tercer criterio se cumple satisfactoriamente"}]
[{"$f":"IF(OR(F20=\"Seleccione\",F21=\"Seleccione\",F22=\"Seleccione\"),\"Por definir\",IF(OR(F20=\"No\",F21=\"No\",F22=\"No\"),\"La actividad no genera contribución sustancial\", \"La actividad sí contribuye sustancialmente a la sostenibilidad\"))","v":"La actividad sí contribuye sustancialmente a la sostenibilidad"}]
[]
["A2. Apoyo a la adaptación del sistema. "]
["La actividad económica y sus medidas de adaptación no afectan negativamente los esfuerzos de adaptación de otras personas, la naturaleza y los bienes. Selecciona las respuestas en las listas desplegables"]
["¿La actividad económica y sus medidas de adaptación no aumentan los riesgos de un impacto climático adverso sobre otras personas, la naturaleza y los bienes?",null,null,null,null,"Sí",{"$f":"IF(F27=\"Seleccione\",\"Por definir\",IF(F27=\"Sí\",\"El primer criterio se cumple satisfactoriamente\",\"Al no cumplir con este criterio, no es posible generar contribución sustancial\"))","v":"El primer criterio se cumple satisfactoriamente"},"Las dos condiciones deben cumplirse para argumentar que la actividad tiene contribución sustancial"]
["¿La actividad económica y sus medidas de adaptación son consistentes con los esfuerzos de adaptación a nivel sectorial, regional y/o nacional?",null,null,null,null,"Sí",{"$f":"IF(F28=\"Seleccione\",\"Por definir\",IF(F28=\"Sí\",\"El segundo criterio se cumple satisfactoriamente\",\"Al no cumplir con este criterio, no es posible generar contribución sustancial\"))","v":"El segundo criterio se cumple satisfactoriamente"}]
[{"$f":"IF(OR(F27=\"Seleccione\",F28=\"Seleccione\"),\"Por definir\",IF(OR(F27=\"No\",F28=\"No\"),\"La actividad no genera contribución sustancial\", \"La actividad sí contribuye sustancialmente a la sostenibilidad\"))","v":"La actividad sí contribuye sustancialmente a la sostenibilidad"}]
[]
["A3. Monitoreo de los resultados de adaptación."]
["En el contexto de la actividad evaluada, la reducción de los riesgos físicos se puede medir. Selecciona las respuestas en las listas desplegables"]
[" Los resultados de adaptación pueden ser monitoreados y medidos con base en indicadores. Considerando que los riesgos físicos evolucionan con el tiempo, el análisis de riesgos físicos debe llevarse a cabo con la frecuencia adecuada.  ¿Esto se evalúa dentro de la operación financiera y/o proyecto?",null,null,null,null,"Sí",{"$f":"IF(F33=\"Seleccione\",\"Por definir\",IF(F33=\"Sí\",\"La actividad sí contribuye sustancialmente a la sostenbilidad\",\"El proyecto no genera contribución sustancial\"))","v":"La actividad sí contribuye sustancialmente a la sostenbilidad"}]
[]
["B1. Apoyar a la adaptación de otras actividades económicas."]
["La actividad económica reduce el riesgo climático físico material en otras actividades económicas y/o aborda los obstáculos sistémicos para la adaptación. Las actividades que permiten la adaptación incluyen, pero no se limitan a, actividades que promueven una tecnología, un producto, una práctica, un proceso de gobernanza o usos innovadores de tecnologías, productos o prácticas existentes (incluidos los relacionados con las infraestructuras naturales). Además, eliminan las barreras de información, financieras, tecnológicas y de capacidad para la adaptación de otros. Selecciona las respuestas en las listas desplegables"]
["¿Se realiza una evaluación de los riesgos resultantes, con base en datos sólidos, tanto de la variabilidad  meteorológica actual como del cambio climático futuro, incluidos los escenarios climáticos, así como  la incertidumbre, que la actividad económica contribuirá a abordar?",null,null,null,null,"Sí",{"$f":"IF(F37=\"Seleccione\",\"Por definir\",IF(F37=\"Sí\",\"El primer criterio se cumple satisfactoriamente\",\"Al no cumplir con este criterio, no es posible generar contribución sustancial\"))","v":"El primer criterio se cumple satisfactoriamente"},"Las tres condiciones en caso de que apliquen deben cumplirse para argumentar que la actividad tiene contribución sustancial. La tercera opción podría no aplicar. En este caso se evaluaran las primeras dos cuestiones"]
["¿Se realiza una evaluación de la eficacia de la contribución de la actividad económica a la reducción de los riesgos físicos, teniendo en cuenta la escala de exposición y la vulnerabilidad a los mismos?",null,null,null,null,"Sí",{"$f":"IF(F38=\"Seleccione\",\"Por definir\",IF(F38=\"Sí\",\"El segundo criterio se cumple satisfactoriamente\",\"Al no cumplir con este criterio, no es posible generar contribución sustancial\"))","v":"El segundo criterio se cumple satisfactoriamente"}]
["En el caso de una infraestructura vinculada a una actividad que permita la adaptación, dicha infraestructura debe cumplir también los criterios de selección A1, A2 y A3. ¿Esto se cumple en el contexto del proyecto?",null,null,null,null,"Sí",{"$f":"IF(F39=\"Seleccione\",\"Por definir\",IF(F39=\"Sí\",\"El tercer criterio se cumple satisfactoriamente\",IF(F39=\"No aplica\",\"No aplica\",\"El proyecto no genera contribución sustancial\")))","v":"El tercer criterio se cumple satisfactoriamente"}]
[{"$f":"IF(OR(F37=\"Seleccione\",F38=\"Seleccione\",F39=\"Seleccione\"),\"Por definir\",IF(OR(F37=\"No\",F38=\"No\",F39=\"No\"),\"La actividad no genera contribución sustancial\",\"La actividad sí contribuye sustancialmente a la sostenibilidad\"))","v":"La actividad sí contribuye sustancialmente a la sostenibilidad"}]
[]
[" 113211. Viveros forestales"]
[]
["Responde las siguientes preguntas seleccionando una respuesta de la lista"]
[]
["1. La actividad que estás evaluando es una actividad adaptada o una actividad que facilita la adaptación?",null,null,"Actividad adaptada"]
[]
["¿Qué es una actividad adaptada?\nUna actividad económica se adapta a los riesgos climáticos físicos materiales, si integra medidas y/o soluciones para reducirlos, mientras garantiza que la actividad económica pueda funcionar bien en un clima cambiante. Estas actividades de adaptación se desarrollan a partir de la evaluación de riesgos actuales y futuros, ya sean climáticos, crónicos y/o agudos, así como la escala temporal y geográfica de la actividad económica."]
["¿Qué es una actividad que facilita la adaptación? \nUna actividad económica posibilita la adaptación si reduce el riesgo climático físico material y la vulnerabilidad en otras actividades económicas, comunidades, ecosistemas o ciudades, y/o aborda los obstáculos sistémicos a la adaptación. Esto es posible a través del uso de la tecnología y la creación de un producto o servicio especializado."]
[]
[]
["A1. Reducción de los riesgos climáticos físicos materiales."]
["La actividad económica debe reducir todos los riesgos climáticos físicos materiales para las actividades evaluadas, en la medida de lo posible y sobre la base del mejor esfuerzo. Selecciona las respuestas en las listas desplegables"]
["¿La actividad económica integra medidas destinadas a reducir, en la medida de lo posible y sobre la base del mejor esfuerzo, los riesgos climáticos físicos materiales para esa actividad, que han sido identificados mediante una evaluación de riesgos?",null,null,null,null,"Sí",{"$f":"IF(F54=\"Seleccione\",\"Por definir\",IF(F54=\"Sí\",\"El primer criterio se cumple satisfactoriamente\",\"Al no cumplir con este criterio, no es posible generar contribución sustancial\"))","v":"El primer criterio se cumple satisfactoriamente"},"Las tres condiciones deben cumplirse para argumentar que la actividad tiene contribución sustancial"]
["¿Esta evaluación considera tanto la variabilidad meteorológica actual, como el cambio climático futuro, incluidos los escenarios climáticos, así como la incertidumbre?",null,null,null,null,"Sí",{"$f":"IF(F55=\"Seleccione\",\"Por definir\",IF(F55=\"Sí\",\"El segundo criterio se cumple satisfactoriamente\",\"Al no cumplir con este criterio, no es posible generar contribución sustancial\"))","v":"El segundo criterio se cumple satisfactoriamente"}]
["¿Igualmente la evaluación se basa en un sólido análisis de los datos e información disponible sobre los distintos escenarios climáticos, y es coherente con la duración prevista de la actividad?",null,null,null,null,"Sí",{"$f":"IF(F56=\"Seleccione\",\"Por definir\",IF(F56=\"Sí\",\"El tercer criterio se cumple satisfactoriamente\",\"Al no cumplir con este criterio, no es posible generar contribución sustancial\"))","v":"El tercer criterio se cumple satisfactoriamente"}]
[{"$f":"IF(OR(F54=\"Seleccione\",F55=\"Seleccione\",F56=\"Seleccione\"),\"Por definir\",IF(OR(F54=\"No\",F55=\"No\",F56=\"No\"),\"La actividad no genera contribución sustancial\", \"La actividad sí contribuye sustancialmente a la sostenibilidad\"))","v":"La actividad sí contribuye sustancialmente a la sostenibilidad"}]
[]
["A2. Apoyo a la adaptación del sistema. "]
["La actividad económica y sus medidas de adaptación no afectan negativamente los esfuerzos de adaptación de otras personas, la naturaleza y los bienes. Selecciona las respuestas en las listas desplegables"]
["¿La actividad económica y sus medidas de adaptación no aumentan los riesgos de un impacto climático adverso sobre otras personas, la naturaleza y los bienes?",null,null,null,null,"Sí",{"$f":"IF(F61=\"Seleccione\",\"Por definir\",IF(F61=\"Sí\",\"El primer criterio se cumple satisfactoriamente\",\"Al no cumplir con este criterio, no es posible generar contribución sustancial\"))","v":"El primer criterio se cumple satisfactoriamente"},"Las dos condiciones deben cumplirse para argumentar que la actividad tiene contribución sustancial"]
["¿La actividad económica y sus medidas de adaptación son consistentes con los esfuerzos de adaptación a nivel sectorial, regional y/o nacional?",null,null,null,null,"Sí",{"$f":"IF(F62=\"Seleccione\",\"Por definir\",IF(F62=\"Sí\",\"El segundo criterio se cumple satisfactoriamente\",\"Al no cumplir con este criterio, no es posible generar contribución sustancial\"))","v":"El segundo criterio se cumple satisfactoriamente"}]
[{"$f":"IF(OR(F61=\"Seleccione\",F62=\"Seleccione\"),\"Por definir\",IF(OR(F61=\"No\",F62=\"No\"),\"La actividad no genera contribución sustancial\", \"La actividad sí contribuye sustancialmente a la sostenibilidad\"))","v":"La actividad sí contribuye sustancialmente a la sostenibilidad"}]
[]
["A3. Monitoreo de los resultados de adaptación."]
["En el contexto de la actividad evaluada, la reducción de los riesgos físicos se puede medir. Selecciona las respuestas en las listas desplegables"]
[" Los resultados de adaptación pueden ser monitoreados y medidos con base en indicadores. Considerando que los riesgos físicos evolucionan con el tiempo, el análisis de riesgos físicos debe llevarse a cabo con la frecuencia adecuada.  ¿Esto se evalúa dentro de la operación financiera y/o proyecto?",null,null,null,null,"Sí",{"$f":"IF(F67=\"Seleccione\",\"Por definir\",IF(F67=\"Sí\",\"La actividad sí contribuye sustancialmente a la sostenbilidad\",\"El proyecto no genera contribución sustancial\"))","v":"La actividad sí contribuye sustancialmente a la sostenbilidad"}]
[]
["B1. Apoyar a la adaptación de otras actividades económicas."]
["La actividad económica reduce el riesgo climático físico material en otras actividades económicas y/o aborda los obstáculos sistémicos para la adaptación. Las actividades que permiten la adaptación incluyen, pero no se limitan a, actividades que promueven una tecnología, un producto, una práctica, un proceso de gobernanza o usos innovadores de tecnologías, productos o prácticas existentes (incluidos los relacionados con las infraestructuras naturales). Además, eliminan las barreras de información, financieras, tecnológicas y de capacidad para la adaptación de otros. Selecciona las respuestas en las listas desplegables"]
["¿Se realiza una evaluación de los riesgos resultantes, con base en datos sólidos, tanto de la variabilidad  meteorológica actual como del cambio climático futuro, incluidos los escenarios climáticos, así como  la incertidumbre, que la actividad económica contribuirá a abordar?",null,null,null,null,"Sí",{"$f":"IF(F71=\"Seleccione\",\"Por definir\",IF(F71=\"Sí\",\"El primer criterio se cumple satisfactoriamente\",\"Al no cumplir con este criterio, no es posible generar contribución sustancial\"))","v":"El primer criterio se cumple satisfactoriamente"},"Las tres condiciones en caso de que apliquen deben cumplirse para argumentar que la actividad tiene contribución sustancial. La tercera opción podría no aplicar. En este caso se evaluaran las primeras dos cuestiones"]
["¿Se realiza una evaluación de la eficacia de la contribución de la actividad económica a la reducción de los riesgos físicos, teniendo en cuenta la escala de exposición y la vulnerabilidad a los mismos?",null,null,null,null,"Sí",{"$f":"IF(F72=\"Seleccione\",\"Por definir\",IF(F72=\"Sí\",\"El segundo criterio se cumple satisfactoriamente\",\"Al no cumplir con este criterio, no es posible generar contribución sustancial\"))","v":"El segundo criterio se cumple satisfactoriamente"}]
["En el caso de una infraestructura vinculada a una actividad que permita la adaptación, dicha infraestructura debe cumplir también los criterios de selección A1, A2 y A3. ¿Esto se cumple en el contexto del proyecto?",null,null,null,null,"Sí",{"$f":"IF(F73=\"Seleccione\",\"Por definir\",IF(F73=\"Sí\",\"El tercer criterio se cumple satisfactoriamente\",IF(F73=\"No aplica\",\"No aplica\",\"El proyecto no genera contribución sustancial\")))","v":"El tercer criterio se cumple satisfactoriamente"}]
[{"$f":"IF(OR(F71=\"Seleccione\",F72=\"Seleccione\",F73=\"Seleccione\"),\"Por definir\",IF(OR(F71=\"No\",F72=\"No\",F73=\"No\"),\"La actividad no genera contribución sustancial\",\"La actividad sí contribuye sustancialmente a la sostenibilidad\"))","v":"La actividad sí contribuye sustancialmente a la sostenibilidad"}]

{"sheet":"Indice de género-Forestal","index":11,"n_rows":82,"n_cols":11,"rows_kept":82,"cut":false,"hidden":true,"merged":[[1,1,1,8],[3,0,3,8],[5,0,5,8],[7,0,9,0],[7,1,9,1],[7,2,7,5],[7,8,9,8],[8,2,8,5],[9,2,9,5],[12,0,15,0],[12,1,15,1],[12,2,12,5],[12,8,15,8],[13,2,13,5],[14,2,14,5],[15,2,15,5],[18,0,20,0],[18,1,20,1],[18,2,18,5],[18,8,20,8],[19,2,19,5],[20,2,20,5],[23,0,25,0],[23,1,25,1],[23,2,23,5],[23,8,25,8],[24,2,24,5],[25,2,25,5],[28,0,30,0],[28,1,30,1],[28,2,28,5],[28,8,30,8],[29,2,29,5],[30,2,30,5],[33,0,35,0],[33,1,35,1],[33,2,33,5],[33,8,35,8],[34,2,34,5],[35,2,35,5],[38,0,40,0],[38,1,40,1],[38,2,38,5],[38,8,40,8],[39,2,39,5],[40,2,40,5],[43,0,45,0],[43,1,45,1],[43,2,43,5],[43,8,45,8],[44,2,44,5],[45,2,45,5],[48,0,50,0],[48,1,50,1],[48,2,48,5],[48,8,50,8],[49,2,49,5],[50,2,50,5],[53,0,55,0],[53,1,55,1],[53,2,53,5],[53,8,55,8],[54,2,54,5],[55,2,55,5],[58,0,60,0],[58,1,60,1],[58,2,58,5],[58,8,60,8],[59,2,59,5],[60,2,60,5],[63,0,65,0],[63,1,65,1],[63,2,63,5],[63,8,65,8],[64,2,64,5],[65,2,65,5],[68,0,70,0],[68,1,70,1],[68,2,68,5],[68,8,70,8],[69,2,69,5],[70,2,70,5],[73,0,75,0],[73,1,75,1],[73,2,73,5],[73,8,75,8],[74,2,74,5],[75,2,75,5],[77,4,77,7],[78,4,78,7],[79,4,79,7],[80,4,80,7],[81,4,81,7]]}
[]
[null,"Índice de Igualdad de Género"]
[]
["La Igualdad de Género es considerada como un objetivo prioritario en la Taxonomía Sostenible de México. Es así que se han generado Criterios de Evaluación Técnica que permitan identificar inversiones que contribuyan al cierre de brechas de género. Al mismo tiempo, las métricas propuestas servirán como guía orientadora para los usuarios potenciales de la Taxonomía, de forma que puedan dirigir esfuerzos para generar una contribución sustancial a la igualdad de género. Este índice refleja, en una escala numérica, la contribución de las organizaciones a tres pilares de igualdad de género: 1) Trabajo Digno, 2) Bienestar e 3) Inclusión Social. Ello permite traducir los criterios cualitativos de estos tres pilares, a una métrica cuantitativa, a la cual es posible asignar un umbral para determinar un nivel de contribución sustancial para un objetivo social."]
[]
["Por favor, selecciona alguna de las opciones descritas en las casillas azules para cada pregunta. En función de la respuesta, se asignará un puntaje por bloque de preguntas, que al final será evaluado para conocer si el proyecto cumple con las condiciones presentes en el índice de igualdad de género"]
["Pilar",null,null,null,null,null,null,"Puntaje",null,null,{"$f":"IF(G7=\"No\",0,IF(G7=\"Sí de alcance parcial dentro de la organización\",1,IF(G7=\"Sí de alcance integral en la organización\",2,IF(G7=\"Sí de alcance que se extiende dentro y fuera de la organización\",3,\"\"))))","v":""}]
["1.1.1","Igualdad de remuneración","¿Existe una política y/o tabulador para todo el personal que establezca la igualdad de remuneración por un trabajo equivalente, conforme a la Ley Federal del Trabajo, y donde se puedan consultar los rangos salariales para los diferentes niveles dentro del centro de trabajo?",null,null,null,"Seleccione",{"$f":"IF(G8=\"No\",0,IF(G8=\"Sí de alcance parcial dentro de la organización\",1,IF(G8=\"Sí de alcance integral en la organización\",2,IF(G8=\"Sí de alcance que se extiende dentro y fuera de la organización\",3,\"\"))))","v":""},{"$f":"IF(OR(G8=\"Seleccione\",G9=\"Seleccione\",G10=\"Seleccione\"),\"Por favor completa las preguntas de este apartado del Índice\",IF(H11<3,\"Es necesario incrementar la ambición en alguno de los ejes evaluados para que el proyecto esté alineado al Índice de Igualdad de Género de la Taxonomía Sostenible de México\",\"El proyecto cuenta con la ambición necesaria para cerrar las brechas de género conforme al Índice de Igualdad de Género de la Taxonomía Sostenible de México\"))","v":"Por favor completa las preguntas de este apartado del Índice"}]
[null,null,"¿La organización realiza un análisis sistemático y periódico de las brechas de género en salarios, prestaciones y compensaciones de su personal?",null,null,null,"Seleccione",{"$f":"IF(G9=\"No\",0,IF(G9=\"Sí de alcance parcial dentro de la organización\",1,IF(G9=\"Sí de alcance integral en la organización\",2,IF(G9=\"Sí de alcance que se extiende dentro y fuera de la organización\",3,\"\"))))","v":""}]
[null,null,"¿La organización cuenta con un mecanismo para corregir los casos identificados con desigualdad en la remuneración?",null,null,null,"Seleccione",{"$f":"IF(G10=\"No\",0,IF(G10=\"Sí de alcance parcial dentro de la organización\",1,IF(G10=\"Sí de alcance integral en la organización\",2,\"\")))","v":""}]
[null,null,null,null,null,null,null,{"$f":"SUM(H8:H10)","v":0}]
[]
["1.2.1","Posibilidades de acceso, contratación, participación, permanencia y promoción","¿Tiene la organización una política o mecanismo que garantice la no discriminación e igualdad de oportunidades en el acceso, permanencia y desarrollo laboral?",null,null,null,"Seleccione",{"$f":"IF(G13=\"No\",0,IF(G13=\"Sí de alcance parcial dentro de la organización\",1,IF(G13=\"Sí de alcance integral en la organización\",2,IF(G13=\"Sí de alcance que se extiende dentro y fuera de la organización\",3,\"\"))))","v":""},{"$f":"IF(OR(G13=\"Seleccione\",G14=\"Seleccione\",G15=\"Seleccione\",G16=\"Seleccione\"),\"Por favor completa las preguntas de este apartado del Índice\",IF(H17<4,\"Es necesario incrementar la ambición en alguno de los ejes evaluados para que el proyecto esté alineado al Índice de Igualdad de Género de la Taxonomía Sostenible de México\",\"El proyecto cuenta con la ambición necesaria para cerrar las brechas de género conforme al Índice de Igualdad de Género de la Taxonomía Sostenible de México\"))","v":"Por favor completa las preguntas de este apartado del Índice"}]
[null,null,"¿Existen perfiles de puestos, anuncios de vacantes u ofertas de trabajo, documentación para entrevista de ingreso estructurada y/o exámenes o evaluaciones libres de sesgos sexistas o de discriminación?",null,null,null,"Seleccione",{"$f":"IF(G14=\"No\",0,IF(G14=\"Sí de alcance parcial dentro de la organización\",1,IF(G14=\"Sí de alcance integral en la organización\",2,IF(G14=\"Sí de alcance que se extiende dentro y fuera de la organización\",3,\"\"))))","v":""}]
[null,null,"¿Se cuenta con procesos transparentes y accesibles de movilidad horizontal y vertical libres de sesgos sexistas o discriminatorios?",null,null,null,"Seleccione",{"$f":"IF(G15=\"No\",0,IF(G15=\"Sí de alcance parcial dentro de la organización\",1,IF(G15=\"Sí de alcance integral en la organización\",2,IF(G15=\"Sí de alcance que se extiende dentro y fuera de la organización\",3,\"\"))))","v":""}]
[null,null,"¿La organización lleva a cabo capacitaciones extensivas al personal candidato o de la propia empresa como mecanismo de corrección (distintas al plan de capacitación) sobre sesgos de género para entrevistas laborales, para evaluaciones de desempeño o para procesos de reclutamiento, movilidad y  promoción?",null,null,null,"Seleccione",{"$f":"IF(G16=\"No\",0,IF(G16=\"Sí de alcance parcial dentro de la organización\",1,IF(G16=\"Sí de alcance integral en la organización\",2,IF(G16=\"Sí de alcance que se extiende dentro y fuera de la organización\",3,\"\"))))","v":""}]
[null,null,null,null,null,null,null,{"$f":"SUM(H13:H16)","v":0}]
[]
["1.2.2","Segregación Vertical y Horizontal","¿La organización cuenta con metas institucionales sobre diversidad de género en los diferentes equipos de trabajo?",null,null,null,"Seleccione",{"$f":"IF(G19=\"No\",0,IF(G19=\"Sí de alcance parcial dentro de la organización\",1,IF(G19=\"Sí de alcance integral en la organización\",2,IF(G19=\"Sí de alcance que se extiende dentro y fuera de la organización\",3,\"\"))))","v":""},{"$f":"IF(OR(G19=\"Seleccione\",G20=\"Seleccione\",G21=\"Seleccione\"),\"Por favor completa las preguntas de este apartado del Índice\",IF(H22<3,\"Es necesario incrementar la ambición en alguno de los ejes evaluados para que el proyecto esté alineado al Índice de Igualdad de Género de la Taxonomía Sostenible de México\",\"El proyecto cuenta con la ambición necesaria para cerrar las brechas de género conforme al Índice de Igualdad de Género de la Taxonomía Sostenible de México\"))","v":"Por favor completa las preguntas de este apartado del Índice"}]
[null,"1.2.2.2","¿La organización cuenta con un plan de acción para cerrar la brecha de participación laboral entre hombres y mujeres, entre los niveles jerárquicos, en el proceso de contratación y en las oportunidades de promoción?",null,null,null,"Seleccione",{"$f":"IF(G20=\"No\",0,IF(G20=\"Sí de alcance parcial dentro de la organización\",1,IF(G20=\"Sí de alcance integral en la organización\",2,\"\")))","v":""}]
[null,"1.2.2.3","¿El despliegue de los mecanismos de corrección para cerrar la brecha de participación se realiza conforme a la evaluación o medición continua de las brechas de género?",null,null,null,"Seleccione",{"$f":"IF(G21=\"No\",0,IF(G21=\"Sí de alcance parcial dentro de la organización\",1,IF(G21=\"Sí de alcance integral en la organización\",2,\"\")))","v":""}]
[null,null,null,null,null,null,null,{"$f":"SUM(H19:H21)","v":0}]
[]
["1.2.3","Igualdad de representatividad de mujeres y hombres en órganos de gobernanza corporativa","¿Existe una política de paridad entre mujeres y hombres (reglamentos, normas, documentos o protocolos internos) en el órgano de gobernanza corporativa (junta de gobierno) o en puestos de toma de decisión?",null,null,null,"Seleccione",{"$f":"IF(G24=\"No\",0,IF(G24=\"Sí de alcance parcial dentro de la organización\",1,IF(G24=\"Sí de alcance integral en la organización\",2,IF(G24=\"Sí de alcance que se extiende dentro y fuera de la organización\",3,\"\"))))","v":""},{"$f":"IF(OR(G24=\"Seleccione\",G25=\"Seleccione\",G26=\"Seleccione\"),\"Por favor completa las preguntas de este apartado del Índice\",IF(H27<2,\"Es necesario incrementar la ambición en alguno de los ejes evaluados para que el proyecto esté alineado al Índice de Igualdad de Género de la Taxonomía Sostenible de México\",\"El proyecto cuenta con la ambición necesaria para cerrar las brechas de género conforme al Índice de Igualdad de Género de la Taxonomía Sostenible de México\"))","v":"Por favor completa las preguntas de este apartado del Índice"}]
[null,"1.2.3.2","¿Existen mecanismos o acciones para promover la rotación hacia puestos directivos o de toma de decisión con perspectiva de género, o en su caso el proceso de designación no tienes sesgos de género?",null,null,null,"Seleccione",{"$f":"IF(G25=\"No\",0,IF(G25=\"Sí de alcance parcial dentro de la organización\",1,IF(G25=\"Sí de alcance integral en la organización\",2,\"\")))","v":""}]
[null,"1.2.3.3","¿La organización se somete a un análisis, interno o externo, de paridad de género institucional en sus puestos de alta dirección o gobierno corporativo, acorde a la política de transparencia que la rige?",null,null,null,"Seleccione",{"$f":"IF(G26=\"No\",0,IF(G26=\"Sí de alcance parcial dentro de la organización\",1,IF(G26=\"Sí de alcance integral en la organización\",2,IF(G26=\"Sí de alcance que se extiende dentro y fuera de la organización\",3,\"\"))))","v":""}]
[null,null,null,null,null,null,null,{"$f":"SUM(H24:H26)","v":0}]
[]
["1.2.4","Clima laboral y espacios de trabajo libres de violencia","¿La organización cuenta con políticas o áreas especializadas en diversidad e inclusión que promuevan relaciones igualitarias acompañadas de la implementación de prácticas de prevención contra la violencia de género (hostigamiento, acoso u otro)?",null,null,null,"Seleccione",{"$f":"IF(G29=\"No\",0,IF(G29=\"Sí de alcance parcial dentro de la organización\",1,IF(G29=\"Sí de alcance integral en la organización\",2,\"\")))","v":""},{"$f":"IF(OR(G29=\"Seleccione\",G30=\"Seleccione\",G31=\"Seleccione\"),\"Por favor completa las preguntas de este apartado del Índice\",IF(H32<2,\"Es necesario incrementar la ambición en alguno de los ejes evaluados para que el proyecto esté alineado al Índice de Igualdad de Género de la Taxonomía Sostenible de México\",\"El proyecto cuenta con la ambición necesaria para cerrar las brechas de género conforme al Índice de Igualdad de Género de la Taxonomía Sostenible de México\"))","v":"Por favor completa las preguntas de este apartado del Índice"}]
[null,"1.2.4.2","¿La organización cuenta con un grupo, comisión o Comité encargado de la vigilancia del desarrollo e implementación de prácticas contra la violencia y la discriminación de género en el centro de trabajo?",null,null,null,"Seleccione",{"$f":"IF(G30=\"No\",0,IF(G30=\"Sí de alcance parcial dentro de la organización\",1,IF(G30=\"Sí de alcance integral en la organización\",2,\"\")))","v":""}]
[null,"1.2.4.3","¿La organización cuenta con mecanismos de atención a actos de violencia detectados o de reparación de daños, cuyos resultados salvaguarden la integridad de las víctimas y eviten la revictimización?",null,null,null,"Seleccione",{"$f":"IF(G31=\"No\",0,IF(G31=\"Sí de alcance parcial dentro de la organización\",1,IF(G31=\"Sí de alcance integral en la organización\",2,\"\")))","v":""}]
[null,null,null,null,null,null,null,{"$f":"SUM(H29:H31)","v":0}]
[]
["1.2.5","Capacitaciones para la igualdad laboral","¿La organización cuenta con un plan de capacitación, sensibilización y difusión como parte de sus objetivos de la agenda de género?",null,null,null,"Seleccione",{"$f":"IF(G34=\"No\",0,IF(G34=\"Sí de alcance parcial dentro de la organización\",1,IF(G34=\"Sí de alcance integral en la organización\",2,IF(G34=\"Sí de alcance que se extiende dentro y fuera de la organización\",3,\"\"))))","v":""},{"$f":"IF(OR(G34=\"Seleccione\",G35=\"Seleccione\",G36=\"Seleccione\"),\"Por favor completa las preguntas de este apartado del Índice\",IF(H37<3,\"Es necesario incrementar la ambición en alguno de los ejes evaluados para que el proyecto esté alineado al Índice de Igualdad de Género de la Taxonomía Sostenible de México\",\"El proyecto cuenta con la ambición necesaria para cerrar las brechas de género conforme al Índice de Igualdad de Género de la Taxonomía Sostenible de México\"))","v":"Por favor completa las preguntas de este apartado del Índice"}]
[null,"1.2.5.2","¿La organización ofrece capacitación continua para el desarrollo de habilidades requeridas para la movilidad laboral, tales como mentoría o patrocinio; incluyendo el desarrollo de capacidades para los nuevos empleos verdes que promuevan la transición justa?",null,null,null,"Seleccione",{"$f":"IF(G35=\"No\",0,IF(G35=\"Sí de alcance parcial dentro de la organización\",1,IF(G35=\"Sí de alcance integral en la organización\",2,IF(G35=\"Sí de alcance que se extiende dentro y fuera de la organización\",3,\"\"))))","v":""}]
[null,"1.2.5.3","¿La organización cuenta con mecanismos de evaluación o mejora de su plan de implementación de capacitaciones, asesorías o mentorías, que sean extensivos a otros actores que interactúan con la organización o a la comunidad externa (más allá del personal de la organización)?",null,null,null,"Seleccione",{"$f":"IF(G36=\"No\",0,IF(G36=\"Sí de alcance parcial dentro de la organización\",1,IF(G36=\"Sí de alcance integral en la organización\",2,IF(G36=\"Sí de alcance que se extiende dentro y fuera de la organización\",3,\"\"))))","v":""}]
[null,null,null,null,null,null,null,{"$f":"SUM(H34:H36)","v":0}]
[]
["1.3.1","Esquemas de trabajo flexible y políticas de conciliación","¿Existen medidas de flexibilidad laboral, como horarios flexibles o escalonados, semanas de trabajo comprimidas, teletrabajo o licencias con y sin goce de sueldo?",null,null,null,"Seleccione",{"$f":"IF(G39=\"No\",0,IF(G39=\"Sí de alcance parcial dentro de la organización\",1,IF(G39=\"Sí de alcance integral en la organización\",2,\"\")))","v":""},{"$f":"IF(OR(G39=\"Seleccione\",G40=\"Seleccione\",G41=\"Seleccione\"),\"Por favor completa las preguntas de este apartado del Índice\",IF(H42<4,\"Es necesario incrementar la ambición en alguno de los ejes evaluados para que el proyecto esté alineado al Índice de Igualdad de Género de la Taxonomía Sostenible de México\",\"El proyecto cuenta con la ambición necesaria para cerrar las brechas de género conforme al Índice de Igualdad de Género de la Taxonomía Sostenible de México\"))","v":"Por favor completa las preguntas de este apartado del Índice"}]
[null,"1.3.1.2","¿Existe una duración definida de la jornada laboral que se acompañe con una política de desconexión, sin importar que el esquema sea presencial, híbrido o por teletrabajo?",null,null,null,"Seleccione",{"$f":"IF(G40=\"No\",0,IF(G40=\"Sí de alcance parcial dentro de la organización\",1,IF(G40=\"Sí de alcance integral en la organización\",2,\"\")))","v":""}]
[null,"1.3.1.3","¿La organización despliega y difunde mecanismos de corrección al interior y al exterior, en función de la información estadística analizada y desagregada por sexo, sobre el cumplimento de los horarios de trabajo conforme al derecho de las y los trabajadores a la desconexión?",null,null,null,"Seleccione",{"$f":"IF(G41=\"No\",0,IF(G41=\"Sí de alcance parcial dentro de la organización\",1,IF(G41=\"Sí de alcance integral en la organización\",2,IF(G41=\"Sí de alcance que se extiende dentro y fuera de la organización\",3,\"\"))))","v":""}]
[null,null,null,null,null,null,null,{"$f":"SUM(H39:H41)","v":0}]
[]
["1.3.2","Oferta complementaria de servicios de cuidados (ludoteca, casas de día, estancias infantiles adicionales, entre otros)","¿La organización tiene políticas que le permitan desarrollar una oferta complementaria de servicios de cuidado (guarderías propias, salas de lactancia, etc.), asequible para todo el personal de la organización, incluyendo licencias de maternidad y paternidad con duración superior a la Ley?",null,null,null,"Seleccione",{"$f":"IF(G44=\"No\",0,IF(G44=\"Sí de alcance parcial dentro de la organización\",1,IF(G44=\"Sí de alcance integral en la organización\",2,IF(G44=\"Sí de alcance que se extiende dentro y fuera de la organización\",3,\"\"))))","v":""},{"$f":"IF(OR(G44=\"Seleccione\",G45=\"Seleccione\",G46=\"Seleccione\"),\"Por favor completa las preguntas de este apartado del Índice\",IF(H47<3,\"Es necesario incrementar la ambición en alguno de los ejes evaluados para que el proyecto esté alineado al Índice de Igualdad de Género de la Taxonomía Sostenible de México\",\"El proyecto cuenta con la ambición necesaria para cerrar las brechas de género conforme al Índice de Igualdad de Género de la Taxonomía Sostenible de México\"))","v":"Por favor completa las preguntas de este apartado del Índice"}]
[null,"1.3.2.2","¿Se proporciona una oferta de servicios de cuidado adicional a los servicios de seguridad social (IMSS, ISSSTE y otros) o se ofrecen permisos con o sin goce de sueldo para la atención de responsabilidades de cuidado?",null,null,null,"Seleccione",{"$f":"IF(G45=\"No\",0,IF(G45=\"Sí de alcance parcial dentro de la organización\",1,IF(G45=\"Sí de alcance integral en la organización\",2,IF(G45=\"Sí de alcance que se extiende dentro y fuera de la organización\",3,\"\"))))","v":""}]
[null,"1.3.2.3","¿La organización realiza y difunde evaluaciones de las necesidades de cuidado de su personal y sus dependientes, al interior y al exterior?",null,null,null,"Seleccione",{"$f":"IF(G46=\"No\",0,IF(G46=\"Sí de alcance parcial dentro de la organización\",1,IF(G46=\"Sí de alcance integral en la organización\",2,IF(G46=\"Sí de alcance que se extiende dentro y fuera de la organización\",3,\"\"))))","v":""}]
[null,null,null,null,null,null,null,{"$f":"SUM(H44:H46)","v":0}]
[]
["2.1.1","Desarrollo y provisión de infraestructura, bienes y servicios con impacto social positivo y perspectiva de género","¿La organización tiene como política realizar diagnósticos con perspectiva de género para el diseño y operación del proyecto, actividad, desarrollo de infraestructura o la provisión de bienes y servicios?",null,null,null,"Seleccione",{"$f":"IF(G49=\"No\",0,IF(G49=\"Sí de alcance parcial dentro de la organización\",2,IF(G49=\"Sí de alcance integral en la organización\",4,IF(G49=\"Sí de alcance que se extiende dentro y fuera de la organización\",6,\"\"))))","v":""},{"$f":"IF(OR(G49=\"Seleccione\",G50=\"Seleccione\",G51=\"Seleccione\"),\"Por favor completa las preguntas de este apartado del Índice\",IF(H52<8,\"Es necesario incrementar la ambición en alguno de los ejes evaluados para que el proyecto esté alineado al Índice de Igualdad de Género de la Taxonomía Sostenible de México\",\"El proyecto cuenta con la ambición necesaria para cerrar las brechas de género conforme al Índice de Igualdad de Género de la Taxonomía Sostenible de México\"))","v":"Por favor completa las preguntas de este apartado del Índice"}]
[null,"2.1.1.2","¿El proyecto de infraestructura, actividad, bien o servicio, considera ajustes razonables para atender las necesidades de las mujeres o contribuye a la reducción o eliminación de una situación de exclusión, desigualdad o violencia de género, y privilegia su acceso a precios asequibles por razón de género?",null,null,null,"Seleccione",{"$f":"IF(G50=\"No\",0,IF(G50=\"Sí de alcance parcial dentro de la organización\",2,IF(G50=\"Sí de alcance integral en la organización\",4,IF(G50=\"Sí de alcance que se extiende dentro y fuera de la organización\",6,\"\"))))","v":""}]
[null,"2.1.1.3","¿Se cuenta con un plan de actividades de igualdad entre mujeres y hombres, que incluya presupuesto e indicadores de cumplimiento sobre el impacto en la vida de las mujeres, y en su caso, en el medio ambiente en el uso de la infraestructura, productos o servicios a desarrollar?",null,null,null,"Seleccione",{"$f":"IF(G51=\"No\",0,IF(G51=\"Sí de alcance parcial dentro de la organización\",2,IF(G51=\"Sí de alcance integral en la organización\",4,IF(G51=\"Sí de alcance que se extiende dentro y fuera de la organización\",6,\"\"))))","v":""}]
[null,null,null,null,null,null,null,{"$f":"SUM(H49:H51)","v":0}]
[]
["2.2.1","No afectación a la salud de las mujeres","¿La organización tiene como procedimientos la elaboración de diagnósticos con perspectiva de género sobre los impactos potenciales en salud del proyecto de infraestructura, actividad, bien o servicio, para la promoción de la salud en las mujeres o asegurar la no afectación a esta?",null,null,null,"Seleccione",{"$f":"IF(G54=\"No\",0,IF(G54=\"Sí de alcance parcial dentro de la organización\",2,IF(G54=\"Sí de alcance integral en la organización\",4,IF(G54=\"Sí de alcance que se extiende dentro y fuera de la organización\",6,\"\"))))","v":""},{"$f":"IF(OR(G54=\"Seleccione\",G55=\"Seleccione\",G56=\"Seleccione\"),\"Por favor completa las preguntas de este apartado del Índice\",IF(H57<8,\"Es necesario incrementar la ambición en alguno de los ejes evaluados para que el proyecto esté alineado al Índice de Igualdad de Género de la Taxonomía Sostenible de México\",\"El proyecto cuenta con la ambición necesaria para cerrar las brechas de género conforme al Índice de Igualdad de Género de la Taxonomía Sostenible de México\"))","v":"Por favor completa las preguntas de este apartado del Índice"}]
[null,"2.2.1.2","¿El proyecto, actividad, bien o servicio, considera ajustes razonables para atender las necesidades diferenciadas de salud en hombres y mujeres y privilegia el acceso desde una perspectiva de género a precios asequibles?",null,null,null,"Seleccione",{"$f":"IF(G55=\"No\",0,IF(G55=\"Sí de alcance parcial dentro de la organización\",2,IF(G55=\"Sí de alcance integral en la organización\",4,IF(G55=\"Sí de alcance que se extiende dentro y fuera de la organización\",6,\"\"))))","v":""}]
[null,"2.2.1.3","¿Se realizan estudios de los efectos en la salud de la actividad, productos o servicios desagregados sexo, y se cuenta con un plan de actividades para la corrección o mejora que incluya presupuesto e indicadores de cumplimiento?",null,null,null,"Seleccione",{"$f":"IF(G56=\"No\",0,IF(G56=\"Sí de alcance parcial dentro de la organización\",2,IF(G56=\"Sí de alcance integral en la organización\",4,IF(G56=\"Sí de alcance que se extiende dentro y fuera de la organización\",6,\"\"))))","v":""}]
[null,null,null,null,null,null,null,{"$f":"SUM(H54:H56)","v":0}]
[]
["2.3.1","Promoción de autonomía de las mujeres y financiamiento flexible con perspectiva de género","¿La organización tiene como política visibilizar las necesidades diferenciadas entre mujeres y hombres en las estrategias de comercialización de los productos o servicios ofrecidos?",null,null,null,"Seleccione",{"$f":"IF(G59=\"No\",0,IF(G59=\"Sí de alcance parcial dentro de la organización\",2,IF(G59=\"Sí de alcance integral en la organización\",4,IF(G59=\"Sí de alcance que se extiende dentro y fuera de la organización\",6,\"\"))))","v":""},{"$f":"IF(OR(G59=\"Seleccione\",G60=\"Seleccione\",G61=\"Seleccione\"),\"Por favor completa las preguntas de este apartado del Índice\",IF(H62<8,\"Es necesario incrementar la ambición en alguno de los ejes evaluados para que el proyecto esté alineado al Índice de Igualdad de Género de la Taxonomía Sostenible de México\",\"El proyecto cuenta con la ambición necesaria para cerrar las brechas de género conforme al Índice de Igualdad de Género de la Taxonomía Sostenible de México\"))","v":"Por favor completa las preguntas de este apartado del Índice"}]
[null,"2.3.1.2","¿La organización garantiza la accesibilidad de los productos o servicios para las mujeres, ofreciendo opciones diferenciadas de financiación?",null,null,null,"Seleccione",{"$f":"IF(G60=\"No\",0,IF(G60=\"Sí de alcance parcial dentro de la organización\",2,IF(G60=\"Sí de alcance integral en la organización\",4,IF(G60=\"Sí de alcance que se extiende dentro y fuera de la organización\",6,\"\"))))","v":""}]
[null,"2.3.1.3","¿Se realiza una evaluación de efectos diferenciados de los productos y servicios ofrecidos desagregada sexo que visibilicen que son utilizados por mujeres y/o benefician más que proporcionalmente a las mujeres?",null,null,null,"Seleccione",{"$f":"IF(G61=\"No\",0,IF(G61=\"Sí de alcance parcial dentro de la organización\",2,IF(G61=\"Sí de alcance integral en la organización\",4,IF(G61=\"Sí de alcance que se extiende dentro y fuera de la organización\",6,\"\"))))","v":""}]
[null,null,null,null,null,null,null,{"$f":"SUM(H59:H61)","v":0}]
[]
["3.1.1","Promoción de cultura de paz y no violencia","¿La organización o proyecto considera dentro de sus objetivos la reducción o erradicación de la violencia contra las mujeres o el desarrollo de espacios de paz y no violencia; o bien, cuenta con un protocolo o procedimiento para la resolución de conflictos con la comunidad, que considere una perspectiva de género y de derechos humanos?",null,null,null,"Seleccione",{"$f":"IF(G64=\"No se cuenta con un protocolo o procedimiento o no se comunica\",0,IF(G64=\"Comunicación del objetivo protocolo parcial dentro de la organización\",2,IF(G64=\"Sí de alcance integral en la organización\",2,IF(G64=\"Protocolo de conocimiento de toda la organización\",4,IF(G64=\"Toda la información relacionada es pública\",6,\"\")))))","v":""},{"$f":"IF(OR(G64=\"Seleccione\",G65=\"Seleccione\",G66=\"Seleccione\"),\"Por favor completa las preguntas de este apartado del Índice\",IF(H67<8,\"Es necesario incrementar la ambición en alguno de los ejes evaluados para que el proyecto esté alineado al Índice de Igualdad de Género de la Taxonomía Sostenible de México\",\"El proyecto cuenta con la ambición necesaria para cerrar las brechas de género conforme al Índice de Igualdad de Género de la Taxonomía Sostenible de México\"))","v":"Por favor completa las preguntas de este apartado del Índice"}]
[null,"3.1.1.2","¿Se han desarrollado acciones para la prevención, atención, sanción y erradicación de la violencia contra niñas, niños, adolescentes y mujeres en la comunidad o espacios públicos?",null,null,null,"Seleccione",{"$f":"IF(G65=\"No se han desarrollado acciones\",0,IF(G65=\"Las acciones abordan solo alguno(s) de los aspectos enunciados (prevención atención sanción y erradicación de la violencia)\",4,IF(G65=\"Las acciones consideran la prevención atención sanción y erradicación de la violencia\",6,\"\")))","v":""}]
[null,"3.1.1.3","¿La organización o proyecto cuenta con evidencia de su contribución a la reducción de la violencia contra niñas, niños, adolescentes y mujeres; o bien, ha documentado y difundido casos de éxito sobre la resolución de conflictos con la comunidad o sobre el desarrollo de espacios de paz y no violencia de forma participativa?",null,null,null,"Seleccione",{"$f":"IF(G66=\"No existe evidencia o no se comunica\",0,IF(G66=\"La comunicación de la evidencia es parcial dentro de la organización\",2,IF(G66=\"La evidencia es de conocimiento de toda la organización\",4,IF(G66=\"La información es pública\",6,\"\"))))","v":""}]
[null,null,null,null,null,null,null,{"$f":"SUM(H64:H66)","v":0}]
[]
["3.2.1","Vinculación con empresas locales propiedad o con participación de mujeres","¿Existen políticas, procesos o mecanismos de adquisición de productos y servicios que incentiven la contratación de empresas locales propiedad o con alta participación de mujeres?",null,null,null,"Seleccione",{"$f":"IF(G69=\"No existen políticas o procesos o mecanismos o no se comunican\",0,IF(G69=\"La comunicación es parcial dentro de la organización\",2,IF(G69=\"Sí y es de conocimiento de toda la organización\",4,IF(G69=\"La información es pública\",6,\"\"))))","v":""},{"$f":"IF(OR(G69=\"Seleccione\",G70=\"Seleccione\",G71=\"Seleccione\"),\"Por favor completa las preguntas de este apartado del Índice\",IF(H72<8,\"Es necesario incrementar la ambición en alguno de los ejes evaluados para que el proyecto esté alineado al Índice de Igualdad de Género de la Taxonomía Sostenible de México\",\"El proyecto cuenta con la ambición necesaria para cerrar las brechas de género conforme al Índice de Igualdad de Género de la Taxonomía Sostenible de México\"))","v":"Por favor completa las preguntas de este apartado del Índice"}]
[null,"3.2.1.2","¿Se presenta evidencia de alianzas comerciales y de contratos recurrentes o multianuales con empresas locales con propiedad o participación importante de mujeres?",null,null,null,"Seleccione",{"$f":"IF(G70=\"No se han desarrollado alianzas comerciales o contratos\",0,IF(G70=\"Se presenta evidencia de esfuerzos para establecer alianzas comerciales pero que aún no se formalizan\",4,IF(G70=\"Se presenta evidencia completa de una relación comercial recurrente\",6,\"\")))","v":""}]
[null,"3.2.1.3","¿Existe evidencia de que se contribuye al fortalecimiento del liderazgo de empresas locales encabezadas por mujeres o al desarrollo de la estrategia de sostenibilidad de empresas locales (por ejemplo, en el acceso a financiamiento, en la adopción de tecnología sostenible, etc.) propiedad o con participación de mujeres, más allá de la compra de bienes y servicios?",null,null,null,"Seleccione",{"$f":"IF(G71=\"No existe evidencia o no se comunica\",0,IF(G71=\"La comunicación de la evidencia es parcial dentro de la organización\",2,IF(G71=\"La evidencia es de conocimiento de toda la organización\",4,IF(G71=\"La información es pública\",6,\"\"))))","v":""}]
[null,null,null,null,null,null,null,{"$f":"SUM(H69:H71)","v":0}]
[]
["3.3.1","Involucramiento de organizaciones y redes comunitarias que representen los intereses de las mujeres","¿Existe una política para fomentar la participación de las comunidades, bajo el marco del consentimiento libre, previo e informado, para la realización del proyecto o actividad económica, o bien en la planeación y gestión participativa de este, que contribuya a la preservación del territorio; al bienestar de ellas y su comunidad; al cuidado del medio ambiente o a una transición justa?",null,null,null,"Seleccione",{"$f":"IF(G74=\"No existen políticas o procesos o mecanismos o no se comunican\",0,IF(G74=\"La comunicación es parcial dentro de la organización\",2,IF(G74=\"Sí y es de conocimiento de toda la organización\",4,IF(G74=\"La información es pública\",6,\"\"))))","v":""},{"$f":"IF(OR(G74=\"Seleccione\",G75=\"Seleccione\",G76=\"Seleccione\"),\"Por favor completa las preguntas de este apartado del Índice\",IF(H77<8,\"Es necesario incrementar la ambición en alguno de los ejes evaluados para que el proyecto esté alineado al Índice de Igualdad de Género de la Taxonomía Sostenible de México\",\"El proyecto cuenta con la ambición necesaria para cerrar las brechas de género conforme al Índice de Igualdad de Género de la Taxonomía Sostenible de México\"))","v":"Por favor completa las preguntas de este apartado del Índice"}]
[null,"3.3.1.2","¿Las acciones de involucramiento y consulta consideraron una perspectiva de género en su implementación para asegurar una participación en igualdad de condiciones de las mujeres (horarios adecuados, dinámicas para promover la participación, facilidades para el cuidado de infantes, un lugar de fácil acceso para ellas) y cuentan con un mecanismo de monitoreo que dé seguimiento a la incorporación de las opiniones de las mujeres?",null,null,null,"Seleccione",{"$f":"IF(G75=\"No se han desarrollado acciones\",0,IF(G75=\"Las acciones abordan parcialmente los aspectos requeridos por la pregunta\",4,IF(G75=\"Las acciones consideran una perspectiva de género e incluyen un mecanismo de monitoreo\",6,\"\")))","v":""}]
[null,"3.3.1.3","¿Existe evidencia de que la actividad económica o proyecto contribuye a la formación o fortalecimiento de alianzas entre mujeres y de organizaciones que trabajen por sus derechos, la igualdad de género, la conservación del territorio o del medio ambiente, y una transición justa?",null,null,null,"Seleccione",{"$f":"IF(G76=\"No existe evidencia o no se comunica\",0,IF(G76=\"La comunicación de la evidencia es parcial dentro de la organización\",2,IF(G76=\"La evidencia es de conocimiento de toda la organización\",4,IF(G76=\"La información es pública\",6,\"\"))))","v":""}]
[null,null,null,null,null,null,null,{"$f":"SUM(H74:H76)","v":0}]
[null,null,"Resumen:","Puntaje obtenido en cada pilar","Alineación"]
[null,null,"Resultados pilar 1: Trabajo digo",{"$f":"SUM(H11,H17,H22,H27,H32,H37,H42,H47)","v":0},{"$f":"IF(D79<24,\"Es necesario incrementar la ambición en el pilar 1 de trabajo digno\",\"El proyecto contribuye al cierre de brechas de género, conforme a la Taxonomía Sostenible de México\")","v":"Es necesario incrementar la ambición en el pilar 1 de trabajo digno"}]
[null,null,"Resultados pilar 2: Bienestar",{"$f":"SUM(H52,H57,H62)","v":0},{"$f":"IF(D80<24,\"Es necesario incrementar la ambición en el pilar 2 de bienestar\",\"El proyecto contribuye al cierre de brechas de género, conforme a la Taxonomía Sostenible de México\")","v":"Es necesario incrementar la ambición en el pilar 2 de bienestar"}]
[null,null,"Resultados pilar 3: Inclusión social",{"$f":"SUM(H77,H72,H67)","v":0},{"$f":"IF(D81<24,\"Es necesario incrementar la ambición en el pilar 3 de inclusión social\",\"El proyecto contribuye al cierre de brechas de género, conforme a la Taxonomía Sostenible de México\")","v":"Es necesario incrementar la ambición en el pilar 3 de inclusión social"}]
[null,null,"Total",{"$f":"SUM(D79:D81)","v":0},{"$f":"IF((COUNTIF(G8:G76,\"Seleccione\"))>1,\"Por definir\",IF(AND(E79=\"El proyecto contribuye al cierre de brechas de género, conforme a la Taxonomía Sostenible de México\",E80=\"El proyecto contribuye al cierre de brechas de género, conforme a la Taxonomía Sostenible de México\",E81=\"El proyecto contribuye al cierre de brechas de género, conforme a la Taxonomía Sostenible de México\",D82>=72),\"Sí cumple con el índice de igualdad de género\",\"No cumple con el índice de igualdad de género\"))","v":"Por definir"}]

{"sheet":"Forestal-NDS","index":12,"n_rows":46,"n_cols":10,"rows_kept":46,"cut":false,"hidden":true,"merged":[[25,9,26,9],[37,9,38,9],[41,9,43,9],[40,0,40,5],[41,0,41,7],[42,0,42,7],[43,0,43,7],[38,0,38,7],[44,0,44,7],[45,0,45,7],[1,0,1,8],[2,0,2,8],[9,0,9,7],[5,0,5,7],[6,0,6,7],[7,0,7,7],[8,0,8,7],[25,0,25,7],[10,0,10,7],[11,0,11,7],[12,0,12,7],[13,0,13,7],[14,0,14,7],[17,0,17,7],[18,0,18,7],[0,0,0,8],[4,0,4,8],[36,0,36,7],[37,0,37,7],[26,0,26,7],[28,0,28,7],[29,0,29,7],[31,0,31,7],[32,0,32,7],[33,0,33,7],[19,0,19,7],[22,0,22,7],[23,0,23,7],[24,0,24,7],[34,0,34,7]]}
["Evaluación de No Daño Significativo de actividades de aprovechamiento forestal"]
[]
["El principio de No Daño Significativo (NDS) se compone de una serie de criterios medioambientales que permiten asegurar que una actividad económica, con contribución sustancial, no tenga efectos negativos en ninguno de los otros objetivos de la Taxonomía, distintos al parámetro principal. De esta manera, se asegura que el progreso en algunos objetivos no se haga a expensas de otros objetivos medioambientales. Los criterios de NDS se enfocan en 5 ejes principales: Agua, Adaptación, Biodiversidad, Prevención y Control de la Contaminación y, Economía Circular. Para contar con más detalle, por favor consulta el documento de la Taxonomía Sostenible de México"]
[]
["Asegúrate de responder todas las preguntas. En este apartado aparecerán solo los criterios de No Daño Significativo relacionados a las actividades que se establecieron anteriormente. Al final, se evaluará el porcentaje de criterios de No Daño Significativo que se cumplan. Por favor responde si la actividad cumple con los siguientes criterios."]
["Agua"]
["¿La operación financiera y/o proyecto cumple con la legislación mexicana sobre uso y reúso en materia de agua. Ley de Aguas Nacionales (LAN): El agua es un bien de dominio público federal, vital, vulnerable y finito, con valor social, económico y ambiental, cuya preservación en cantidad y calidad y sustentabilidad es tarea fundamental del Estado y la Sociedad, así como prioridad y asunto de seguridad nacional (Titulo “Política Hídrica Nacional”, Art. 14 BIS 5)?",null,null,null,null,null,null,null,"Seleccionar","Incluir en la MIA. Demostrar congruencia del proyecto con lo dispuesto en Leyes y políticas en la matería, “Política Hídrica Nacional”, Art. 14 BIS 5."]
["¿La operación financiera y/o proyecto  cumple con la condición de que no causa daños significativos al recurso hídrico para contar con la autorización para el aprovechamiento de los recursos forestales maderables, expedida por la SEMARNAT. Lo anterior, con base en lo establecido en la Sección Segunda Del Aprovechamiento de Recursos Forestales Maderables de la LGDFS. En donde también se establece que la Secretaría sólo podrá negar la autorización solicitada cuando se contravenga lo establecido en esta Ley, su Reglamento, las Normas Oficiales Mexicanas o en las disposiciones jurídicas aplicables (Art. 77, fracc. I de la LGDFS)?",null,null,null,null,null,null,null,"Seleccionar","Contar con autorización de la SEMARNAT para el aprovechamiento de recursos forestales, dicha autorización se otorga con la información de la MIA. En un ejemplo de MIA se hace un análisis de impactos Significativos, No Significativos o No Impacto sobre diferentes elementos, donde se encuentran los recursos hídricos."]
["¿El PMF del proyecto cumple con la NOM-152-SEMARNAT-2006, numeral 5.2.6.4. sobre Hidrología, en donde se establece que los programas de manejo forestal (PMF) deberán indicar la información siguiente para predio o conjunto de predios por aprovechar: a)Región Hidrológica y Cuenca, indicando nombres y claves; b) Subcuenca; c) Microcuenca; d) Corrientes permanentes e intermitentes y su longitud en kilómetros, y e) Cuerpos de agua, en m2. La información de los incisos a), b) y c) debe tener como base la versión más actualizada del INEGI?",null,null,null,null,null,null,null,"Seleccionar","Presentar certificado de cumplimiento de la NOM-152-SEMARNAT-2006, numeral 5.2.6.4 en el Programa de Manejo Forestal."]
["¿El PMF del proyecto cumple con la NOM-152-SEMARNAT-2006, numeral 5.2.13, en donde se establece que los PMF deberán contener una descripción y programación de las medidas de prevención y mitigación de los impactos ambientales, indicando los recursos afectados (entre ellos, el agua), la etapa del aprovechamiento en la que se presenta el impacto, duración del impacto, medidas de prevención, mitigación y periodo de inicio y conclusión de las medidas?",null,null,null,null,null,null,null,"Seleccionar","Presentar certificado de cumplimiento de la NOM-152-SEMARNAT-2006, numeral 5.2.13 en el Programa de Manejo Forestal."]
["¿Respecto a as plantaciones forestales comerciales, el proyecto cumple con la condición de que no causará daños (al menos no daños significativos) al recurso hídrico si cuenta con la autorización o constancia señalada en las evidencias documentales de la sección 2.3. expedida por la SEMARNAT, en apego a los criterios técnicos establecidos en la LGDFS. Además, con base en la literatura científica se considera que las PFC tienen un efecto positivo en el recurso hídrico ya que éstas se establecen en terrenos desprovistos de vegetación forestal natural (Terrenos Preferentemente Forestales o Temporalmente Forestales) en los que se incrementa la infiltración, se reduce la escorrentía y se incrementa la calidad del agua (Ceccon, E. y Martínez, M., 1999)?",null,null,null,null,null,null,null,"Seleccionar","Autorización o constancia señalada en las evidencias documentales de la sección 2.3. expedida por la SEMARNAT, en apego a los criterios técnicos establecidos en la LGDFS."]
["¿El proyecto cumple con el Programa Nacional Hídrico 2020-2024, así como con las estrategias y planes de gestión hídrica estatales y municipales, y atender las recomendaciones de los Consejos de Cuenca por cuenca hidrológica o por región hidrológica?",null,null,null,null,null,null,null,"Seleccionar","Incluir en la MIA. Demostrar vinculación del proyecto con lo dispuesto en Leyes y polítitcas de la matería, “Política Hídrica Nacional”, Art. 14 BIS 5."]
["¿La operación financiera y/o proyecto identifica la disponibilidad de agua y los riesgos de contaminación de agua, tanto de aguas superficiales como los acuíferos, y en particular las fuentes de agua utilizadas para consumo humano, en la cuenca hidrológica y en la región hidrológica de que se trate?",null,null,null,null,null,null,null,"Seleccionar","Incuir en la MIA. Desarrollar el análisis en el apartado correspondiente de la MIA para la descripción del sistema ambiental y los riesgos de impacto. "]
["¿Es relevante la captación de agua pluvial y el reúso del agua en las instalaciones en el contexto de la operación financiera y/o proyecto?",null,null,null,null,null,null,null,"Seleccionar","Incuir en la MIA. Desarrollar el análisis en el apartado correspondiente de la MIA para la descripción del sistema ambiental y los riesgos de impacto. "]
["¿El proyecto cumple con lo establecido en la NOM-001-SEMARNAT-2021, que establece los límites permisibles de contaminantes en las descargas de aguas residuales en cuerpos receptores propiedad de la nación?",null,null,null,null,null,null,null,"Seleccionar","Incluir certificado de cumplimiento de la NOM-001-SEMARNAT-2021. Dentro de la MIA se puede analizar exponer de manera concisa y objetiva cuáles son las especificaciones establecidas en las normas oficiales mexicanas vigentes que deberán aplicar a las obras y actividades proyectadas y cómo cumple el proyecto cada una de ellas en su vinculación."]
[]
["Adaptación"]
["¿La operación financiera y/o proyecto contribuye a mantener e incrementar los acervos de carbono, reducir las emisiones provenientes de la deforestación y degradación forestal, así como reducir la vulnerabilidad y fortalecer la resiliencia y la adaptación al cambio climático de acuerdo los objetivos de la LGDFS (Art. 2, fracc. XXXIX) (promoción del manejo forestal sustentable)?",null,null,null,null,null,null,null,"Seleccionar","Solicitar que esta información se detalle en la elaboración del PMF."]
["¿La operación financiera y/o proyecto  contribuye mediante el manejo forestal sustentable contribuye reducir la vulnerabilidad tanto de las comunidades locales como de los ecosistemas forestales, y a aumentar la capacidad adaptativa de los socio-ecosistemas, a través de los enfoques de Adaptación basada en Ecosistemas (AbE), Adaptación basada en Comunidades (AbC) y Adaptación basada en la Reducción del Riesgo de Desastres (AbRRD)?",null,null,null,null,null,null,null,"Seleccionar","Presentar la ficha de recopilación sistematizada para IACC. ENCC, Visión 10-20-40 y la Metodología para la Priorización de Medidas de Adaptación frente al Cambio Climático (SEMARNAT-GIZ, 2015)."]
["¿La operación financiera y/o proyecto  demuestra que evaluó la dimensión de las alteraciones e impactos que podrían afectar a los municipios vulnerables al cambio climático, revisando de forma enunciativa, más no limitativa de la Atlas Nacional de Vulnerabilidad al Cambio Climático y Atlas Nacional de Riesgos?",null,null,null,null,null,null,null,"Seleccionar","Incluir en la MIA. El desarrollo de cualquier obra o actividad deberá considerar acciones para la disminución de emisiones de compuestos y gases de efecto invernadero, como medidas de mitigación para la adaptación al cambio climático, así como tener en cuenta la resiliencia ecosistémica y la vulnerabilidad de la población, infraestructura y servicios ambientales ante el cambio climático, proponiendo para ello medidas de mitigación y adaptación ante el cambio climático. Solicitar que sea explícita la consideración del NDS en el análisis."]
[]
["Biodiversidad"]
["¿La operación financiera y/o proyecto cumple con la condición de que no se causan daños significativos a la biodiversidad para contar con la autorización para el aprovechamiento de los recursos forestales maderables, expedida por la SEMARNAT. Lo anterior, con base en lo establecido en la Sección Segunda Del Aprovechamiento de Recursos Forestales Maderables de la LGDFS. En donde también se establece que la Secretaría sólo podrá negar la autorización solicitada cuando: Se comprometa la biodiversidad de la zona y la regeneración y capacidad productiva de los terrenos en cuestión (Art. 77, fracc. II de la LGDFS)?",null,null,null,null,null,null,null,"Seleccionar","Autorización por parte de la SEMARNAT con base en lo establecido en la Sección Segunda Del Aprovechamiento de Recursos Forestales Maderables de la LGDFS."]
["¿El PMF cuenta con una descripción y programación de las medidas de prevención y mitigación de los impactos ambientales, indicando los recursos afectados (entre ellos, la flora y la fauna), la etapa del aprovechamiento en la que se presenta el impacto, duración del impacto, medidas de prevención y mitigación y periodo de inicio y conclusión de las medidas, lo anterior de acuerdo con la NOM-152-SEMARNAT-2006, numeral 5.2.13?",null,null,null,null,null,null,null,"Seleccionar","Incluir en el PMF. Es necesario realizar la descripción y programación de las medidas de prevención y mitigación de los impactos ambientales, y estás se deberán identificar en la etapa del aprovechamiento en la que se presentan: derribo, extracción, transporte y construcción y rehabilitación de infraestructura caminera, y también con base en los recursos afectados, flora, fauna, agua y suelo. "]
["En los casos en los que la actividad económica requiera la aplicación de la normatividad en materia de impacto ambiental (por ejemplo, silvicultura en ANPs), se considerará que dicha actividad no causa daño significativo a la biodiversidad si cuenta con la autorización de la SEMARNAT en materia de impacto ambiental (lo que forma parte del proceso de autorización del aprovechamiento), con base en lo estipulado en la Sección V de la Ley General del Equilibrio Ecológico y la Protección al Ambiente (LGEEPA) y en el Reglamento de dicha Ley en materia de evaluación del impacto ambiental. ¿Esto se cumple en el contexto de la operación financiera y/o proyecto?",null,null,null,null,null,null,null,"Seleccionar","Incluir en la MIA. Con base en lo estipulado en la Sección V de la Ley General del Equilibrio Ecológico y la Protección al Ambiente (LGEEPA) y en el Reglamento de dicha Ley en materia de evaluación del impacto ambiental."]
["Respecto a las plantaciones forestales comerciales, según el Art. 79 de la LGDFS, se promoverá su establecimiento en terrenos temporalmente forestales y preferentemente forestales, y además se promoverá de manera primordial la utilización de especies nativas, que tecnológica y económicamente sean viables. La autoridad tendrá en todo momento la facultad de supervisar el manejo de la plantación, cuidando especialmente los posibles impactos ambientales adversos. ¿Esto se cumple en el contexto de la operación financiera y/o proyecto?",null,null,null,null,null,null,null,"Seleccionar","Describir el cumplimiento de la normativa por medio de lo contemplado en la MIA y el PMF. Artículos 79 y 78 de la LGDFS. "]
["El Art. 78 de la LGDFS indica que queda prohibido el establecimiento de plantaciones forestales comerciales en sustitución de la vegetación forestal de los terrenos forestales. ¿Esto se cumple en el contexto de la operación financiera y/o proyecto?",null,null,null,null,null,null,null,"Seleccionar"]
[]
["Aprovechamiento de recursos forestales no maderable"]
["¿La operación financiera y/o proyecto considera la descripción o el diagnóstico general de las características físicas, biológicas y ecológicas del predio, estimación de la estructura poblacional y de las existencias reales de las especies o partes por aprovechar con nombre científico y común, así como las superficies en hectáreas y las cantidades por aprovechar anualmente en metros cúbicos, litros o kilogramos; y la definición y justificación del periodo de recuperación al que quedarán sujetas las áreas intervenidas, de acuerdo con las características de reproducción y desarrollo de las especies bajo aprovechamiento, lo anterior de acuerdo con los Arts. 71 y 73 del reglamento de la LGDFS?",null,null,null,null,null,null,null,"Seleccionar","Presentar el aviso de aprovechamiento de recursos forestales no maderables y el Programa de Manejo Forestal con los elementos señalados de acuerdo con los Artículos 71 y 73 del reglamento de la LGDFS."]
[]
["Prevención y control de la contaminación"]
["¿Los vehículos y maquinaria de combustión interna que son utilizados en la implementación de actividades de manejo forestal, en las que se incluyen acciones relativas al aprovechamiento, protección, conservación y restauración, cumplen con la normatividad relativa a límites de emisiones y/o con los lineamientos normativos relativos a verificación de emisiones vehiculares o similares emitidas por la autoridad competente en la materia, ya sea de nivel federal o estatal?",null,null,null,null,null,null,null,"Seleccionar","Cumplimiento o verificación vehicular de emisiones para aquella maquinaria que tenga uso dentro del proyecto."]
["¿En el contexto de la operación financiera y/o proyecto, se establecen las actividades para reducir las afectaciones por el uso del fuego y de los incendios forestales, incluidas de las relativas a contaminación del aire, entre otras, conforme a lo establecido en la Ley de Desarrollo Forestal y su Reglamento, así como en lo establecido en la NOM-152-SEMARNAT-2006, que establece los lineamientos, criterios y especificaciones de los contenidos de los programas de manejo forestal para el aprovechamiento de recursos forestales maderables en bosques, selvas y vegetación de zonas áridas?",null,null,null,null,null,null,null,"Seleccionar","Presentar el certificado de cumplimiento de la NOM-152-SEMARNAT-2006 y/o Programa de manejo forestal o documento técnico autorizado por la SEMARNAT, como la MIA, para realizar el aprovechamiento forestal (maderable o no maderable) donde se establecen las actividades para reducir las afectaciones por el uso del fuego y de los incendios forestales, incluidas de las relativas a contaminación del aire (medidas de prevención y mitigación). "]
["Si las actividades en las que se requiera del uso del fuego como herramienta de manejo forestal sustentable, ¿Éstas se llevan a cabo de conformidad con lo establecido en la NOM-015-SEMARNAT/SAGARPA-2007, que establece las especificaciones técnicas de métodos de uso del fuego en los terrenos forestales y en los terrenos de uso agropecuario, en particular lo relativo a las especificaciones para el uso del fuego en terrenos forestales que se describen en la sección 5 de la citada norma?",null,null,null,null,null,null,null,"Seleccionar","Presentar el certificado de cumplimiento de la NOM-015-SEMARNAT/SAGARPA.2007."]
[]
["Economía circular"]
["Las cadenas de valor de productos maderables que integran productos al final de su vida útil promueven la economía circular, ya que los residuos maderables pueden ser revalorizados como productos secundarios o reciclados para la generación de biomasa y composta. ¿Esto se cumple en el contexto de la operación financiera y/o proyecto?",null,null,null,null,null,null,null,"Seleccionar","Incluir en la MIA o en Programa de Manejo Forestal. Como parte de medidad de prevención y mitigación para el aprovechamiento de recursos."]
["Las actividades económicas consistentes con el Manejo Forestal Sustentable fomentan la economía circular al optimizar el aprovechamiento de los materiales, en tanto que no se disminuye o pone en riesgo la capacidad productiva de los ecosistemas y recursos existentes en los mismos.  ¿Esto se cumple en el contexto del proyecto?",null,null,null,null,null,null,null,"Seleccionar"]
[]
["Mitigación"]
["Para el cumplimiento de este criterio, la operación financiera y/o proyecto no debe afectar la habilidad presente y futura de los bosques y tierras de cultivo que sirven como sumideros de carbono. ¿Esto se cumple en el contexto de la operación financiera y/o proyecto?",null,null,null,null,null,null,null,"Seleccionar","Incluir en la MIA un cumplimiento o una alineación con la LGDFS donde detalle el conocimiento y de los puntos mencionados que pueden ser verificables por la autoridad correspondiente. A partir del análisis e identificación de estos recursos, poder cumplir con mantener por lo menos dichos niveles. "]
["Para el cumplimiento de este criterio, la operación financiera y/o proyecto no debe disminuir los niveles de reservas y sumideros de carbono en los bosques en el largo plazo. Evitar la quema de precosecha y de residuos agrícolas. ¿Esto se cumple en el contexto de la operación financiera y/o proyecto?",null,null,null,null,null,null,null,"Seleccionar"]
["Para el cumplimiento de este criterio, la operación financiera y/o proyecto no debe propiciar el cambio de uso, degradación y pérdida de suelo, de acuerdo con lo establecido en la Ley General de Desarrollo Forestal Sustentable. ¿Esto se cumple en el contexto de la operación financiera y/o proyecto? ",null,null,null,null,null,null,null,"Seleccionar"]
["¿La operación financiera y/o proyecto utiliza productos para el control de plagas y enfermedades autorizados por la COFEPRIS, y prioriza el uso de plaguicidas biológicos o insecticidas orgánicos?",null,null,null,null,null,null,null,"Seleccionar","Incluir en la MIA. Describir dentro de las medidas de prevención y mitigación donde se señale la vinculación de los productos con los autorizados por la COFEPRIS."]
["¿La operación financiera y/o proyecto realiza un manejo adecuado de residuos agrícolas y pecuarios, en concordancia con lo establecido en la NOM-161-SEMARNAT-2011?",null,null,null,null,null,null,null,"Seleccionar","Presentar certificado de cumplimiento de la NOM-161-SEMARNAT-2011."]

{"sheet":"Ganadería","index":13,"n_rows":50,"n_cols":6,"rows_kept":50,"cut":false,"hidden":true,"merged":[[47,5,47,7],[49,0,49,8],[3,0,3,7],[1,0,1,7]]}
[]
["Actividades del sector de cría y explotación de animales "]
[]
["Dentro de la categoría de cría y explotación de animales de la Taxonomía Sostenible de México se consideran 7 actividades. En este apartado es necesario seleccionar, de esas 7 actividades, las que estarán siendo financiadas en las presentes operaciones financieras y/o proyectos. En esta versión del Excel, es posible evaluar hasta 20 actividades que se establecen en las cajas de abajo. Recuerda establecer los montos en la casilla amarilla (con número MXN) y elegir las actividades en la lista desplegable azul. Si es necesario incluir más de una actividad, da click en el botón de \"Añade una nueva actividad\". En caso de que la actividad que deseas evaluar no se encuentre en la lista, significa que no está considerada en este momento por la Taxonomía Sostenible de México. En este caso, puedes  mandar un correo a taxonomia_sost@hacienda.gob.mx para conocer más al respecto. "]
["Objetivos que deberás considerar:",{"$f":"IF('Base-datos'!$C$705=TRUE,\"Mitigación\",\"\")","v":""},{"$f":"IF('Base-datos'!$C$706=TRUE,\"Adaptación\",\"\")","v":""},{"$f":"IF('Base-datos'!$C$707=TRUE,\"Género\",\"\")","v":""}]
[]
[]
["Definición de actividades"]
[null,"Cantidad de recursos ↓","Actividad en la que se colocarán los recursos ↓","Alineación a un objetivo","Tipo de recurso evaluado ↓","Da click para añadir más actividades ↓"]
["Establece por favor en la casilla amarilla la cantidad de recursos que serán destinados a la actividad que selecciones en la casilla azul ",null,"Seleccione","Seleccione","Seleccione"]
[]
["Establece por favor en la casilla amarilla la cantidad de recursos que serán destinados a la actividad que selecciones en la casilla azul ",null,"Seleccione","Seleccione","Seleccione"]
[]
["Establece por favor en la casilla amarilla la cantidad de recursos que serán destinados a la actividad que selecciones en la casilla azul ",null,"Seleccione","Seleccione","Seleccione"]
[]
["Establece por favor en la casilla amarilla la cantidad de recursos que serán destinados a la actividad que selecciones en la casilla azul ",null,"Seleccione","Seleccione","Seleccione"]
[]
["Establece por favor en la casilla amarilla la cantidad de recursos que serán destinados a la actividad que selecciones en la casilla azul ",null,"Seleccione","Seleccione","Seleccione"]
[]
["Establece por favor en la casilla amarilla la cantidad de recursos que serán destinados a la actividad que selecciones en la casilla azul ",null,"Seleccione","Seleccione","Seleccione"]
[]
["Establece por favor en la casilla amarilla la cantidad de recursos que serán destinados a la actividad que selecciones en la casilla azul ",null,"Seleccione","Seleccione","Seleccione"]
[]
["Establece por favor en la casilla amarilla la cantidad de recursos que serán destinados a la actividad que selecciones en la casilla azul ",null,"Seleccione","Seleccione","Seleccione"]
[]
["Establece por favor en la casilla amarilla la cantidad de recursos que serán destinados a la actividad que selecciones en la casilla azul ",null,"Seleccione","Seleccione","Seleccione"]
[]
["Establece por favor en la casilla amarilla la cantidad de recursos que serán destinados a la actividad que selecciones en la casilla azul ",null,"Seleccione","Seleccione","Seleccione"]
[]
["Establece por favor en la casilla amarilla la cantidad de recursos que serán destinados a la actividad que selecciones en la casilla azul ",null,"Seleccione","Seleccione","Seleccione"]
[]
["Establece por favor en la casilla amarilla la cantidad de recursos que serán destinados a la actividad que selecciones en la casilla azul ",null,"Seleccione","Seleccione","Seleccione"]
[]
["Establece por favor en la casilla amarilla la cantidad de recursos que serán destinados a la actividad que selecciones en la casilla azul ",null,"Seleccione","Seleccione","Seleccione"]
[]
["Establece por favor en la casilla amarilla la cantidad de recursos que serán destinados a la actividad que selecciones en la casilla azul ",null,"Seleccione","Seleccione","Seleccione"]
[]
["Establece por favor en la casilla amarilla la cantidad de recursos que serán destinados a la actividad que selecciones en la casilla azul ",null,"Seleccione","Seleccione","Seleccione"]
[]
["Establece por favor en la casilla amarilla la cantidad de recursos que serán destinados a la actividad que selecciones en la casilla azul ",null,"Seleccione","Seleccione","Seleccione"]
[]
["Establece por favor en la casilla amarilla la cantidad de recursos que serán destinados a la actividad que selecciones en la casilla azul ",null,"Seleccione","Seleccione","Seleccione"]
[]
["Establece por favor en la casilla amarilla la cantidad de recursos que serán destinados a la actividad que selecciones en la casilla azul ",null,"Seleccione","Seleccione","Seleccione"]
[]
["Establece por favor en la casilla amarilla la cantidad de recursos que serán destinados a la actividad que selecciones en la casilla azul ",null,"Seleccione","Seleccione","Seleccione"]
[]
["Establece por favor en la casilla amarilla la cantidad de recursos que serán destinados a la actividad que selecciones en la casilla azul ",null,"Seleccione","Seleccione","Seleccione","Por el momento, solo es posible evaluar 20 actividades. Si tu proyecto involucra más actividades, por favor escribe un corrreo a taxonomia_sost@hacienda.gob.mx"]
[]
["Al haber concluido el llenado de las actividades y los tipos de recursos que estarás evaluando, por favor da click en el siguiente botón para evaluar la contribución sustancial de las actividades"]

{"sheet":"Mitigación-Ganadería","index":14,"n_rows":58,"n_cols":3,"rows_kept":58,"cut":false,"hidden":true,"merged":[[1,0,1,6],[8,2,16,2],[7,0,7,1],[21,0,21,1],[20,0,20,1],[3,0,3,6],[5,0,5,2],[17,0,17,1]]}
[]
["Mitigación al cambio climático de actividades de cría y explotación de animales"]
[]
["La Taxonomía Sostenible de México contiene métricas y umbrales que evalúan la contribución sustancial de cada una de las actividades económicas para determinar si dichas actividades contribuyen sustancialmente a la sostenibilidad. Las métricas corresponden a las unidades en las que se evalúan los umbrales. Por otro lado, los umbrales son los niveles mínimos que tienen que cumplir cada una de las actividades para argumentar que cuentan con contribución sustancial."]
[]
["Todoslos criterios que se mencionan adelante aplican para todas las actividades de cría y explitación de animales. Para que  las actividades considerarse con contribución sustancial a la sostenibilidad, estas deben involucrar el cumplimiento de al menos dos de los siguientes criterios:"]
[]
["Selecciona de la siguiente lista, las actividades que sean desarrolladas dentro de proyecto. Recuerda responder todas las preguntas"]
["¿El proyecto evita o reduce las emisiones de GEI a través de la implementación de buenas prácticas agrícolas y la movilización de recursos hacia conceptos de inversión listados en la parte de abajo?. De no ser así, ¿demuestra una reducción de al menos un 8% de las emisiones de GEI (gCO2e) tendenciales a 2030 en comparación con las emisiones de 2020 para el sector agropecuario?","Sí","Al menos dos  opciones deben atenderse para considerar que el proyecto tiene contribución sustancial a la sostenibilidad"]
["El proyecto mantiene y aumenta las reservas de carbono durante un periodo igual o superior a 20 años a través de la aplicación de buenas prácticas (descritas en la tabla de abajo)","Sí"]
["El proyecto muestra evidencia de potencial secuestro de carbono del suelo en el tiempo","Sí"]
["El proyecto cuenta con certificaciones de bienestar animal en aquellas actividades o explotaciones de baja capacidad de almacenamiento de carbono","Sí"]
["¿El proyecto cuenta con sellos nacionales e internacionales y/o certificaciones?","Sello Colectivo Sustentabilidad en Calakmul"]
["Reportar información al Padrón Nacional Ganadero de la SADER, a fin de fomentar el reporte y seguimiento de la información y mejorar las estadísticas nacionales sobre el sector ganadero en México. ","Sí"]
["En el contexto del proyecto, se realizan pagos por servicios ambientales ","Sí"]
["El proyecto dedica o destina un porcentaje del predio para regeneración o conservación.","Sí"]
["El proyecto impulsa y protege las reservas rurales, ecológicas y áreas destinadas voluntariamente a la conservación, las zonas de amortiguamiento de ANP, así como los terrenos en los que se pueda utilizar y manejar un mayor número de especies forrajeras (herbáceas, arbustivas, arbóreas) nativas de la región, como parte de una estrategia de manejo del paisaje que, en el marco de las actividades productivas, contribuye de manera significativa a su sustentabilidad","Sí"]
[{"$f":"IF(COUNTIF(B9:B17,\"Seleccione\")>0,\"Por definir\",IF(COUNTIF(B9:B17,\"<>No\")>1,\"El proyecto cumple con el primer umbral\",\"El proyecto no cubre más de dos actividades por lo tanto, no genera contribución sustancial a la sosteniblidad\"))","v":"El proyecto cumple con el primer umbral"}]
[]
["¿Dentro de la operación financiera y/o proyecto, se encuentra en alguna de las situaciones descritas en la caja de abajo?","Sí"]
["     •El proyecto se encuentra fuera de la frontera agrícola\n     •El proyecto se encuentra en terrenos con cambios recientes de uso de suelo (después de 2018)\n     •El proyecto se encuentra en zonas boscosas continuas \n     •El proyecto se encuentra en un humedal \n     •El proyecto se encuentra en una Zona Núcleo de un Área Natural protegida\n     •Terrenos sin vocación para la ganadería cuyo mejor uso es el forestal\n",null,"En caso de que se presente alguna situación descrita aquí\n<-------\nEl proyecto no se puede considerar que tiene contribución sustancial a la sostenibilidad"]
[{"$f":"IF(B20=\"Seleccione\",\"Por definir\",IF(A18=\"El proyecto no cubre más de dos actividades por lo tanto, no genera contribución sustancial a la sosteniblidad\",\"La actividad no genera contribución sustancial\",IF(AND(A18=\"El proyecto no cubre más de dos actividades por lo tanto, no genera contribución sustancial a la sosteniblidad\",B20=\"No\"),\"La actividad no genera contribución sustancial\",IF(AND(A18=\"El proyecto cumple con el primer umbral\",B20=\"No\"),\"La actividad sí contribuye sustancialmente a la sostenibilidad\",\"La actividad no genera contribución sustancial\"))))","v":"La actividad no genera contribución sustancial"}]
[]
[]
[]
[]
[]
["Información complementaria: "]
[]
["Listado de buenas prácticas agrícolas:"]
["Conservación: El predio incluye un área dedicada a la conservación y/o mantenimiento de ecosistemas forestales funcionales con la condición de mantener y aumentar las reservas de carbono durante un periodo igual o superior a 20 años a través de la aplicación de buenas prácticas."]
["Aumento en la biomasa aérea y subterránea: Incluye la Implementación de sistemas agroforestales, Creación de viveros de árboles, arbustos o plantas similares de importancia agroforestal, preferentemente con especies locales y, Establecimiento de cultivos de cobertura, de preferencia con especies de fácil manejo."]
["Diversificación de actividades productivas: Incluye la diversificación a partir de tierras de terrenos dedicados al pastoreo, a partir de terrenos con plantaciones forestales, frutales o pastizales y, Producción bajo sombra."]
["Gestión del pastoreo:  Inluye el cálculo de la carga animal, manejo de pastizales (rotacional, diferido, PARI, PRV) y las explotaciones multiespecies de ganado."]
["Gestión de la alimentación del ganado: Uso de alimentos de alta calidad nutricional y, evitar uso de hormonas en la engorda."]
["Manejo de residuos: Manejo de estiércol, manejo de basura."]
["Recuperación de suelos degradados: incluye la labranza cero, labranza de conservación, Cultivos de cobertura, Subsoleo y/o barbecho donde sea justificable para romper capas endurecidas que limitan la infiltración y el desarrollo de raíces, Fuego controlado para la rehabilitación de praderas degradadas, Encalado, Riego de auxilio y, Sistema de manejo de pastoreo racional voisin."]
[]
[]
["Listado de conceptos de Inversión elegibles a los que se destinen los recursos en la rama de ganadería:"]
["Equipos de cogeneración de energía"]
["Luminaria LED"]
["Otros cultivos producción de biocombustibles bioenergéticos"]
["Maquinaria y equipos de producción con biocombustibles"]
["Viveros"]
["Motores eficientes"]
["Sistemas de bombeo eficientes"]
["Modernización del sistema de enfriamiento"]
["Biodigestores"]
["Equipo de energía solar"]
["Calentadores de agua solar"]
["Equipo para generación de energía geotérmica"]
["Sistemas solares térmicos"]
["Generadores eólicos"]
["Establecimiento plantaciones forestales (acciones de compensación)"]
["Instalaciones fuentes renovables bioenergía"]
["Mantenimiento plantaciones forestales"]
["Sistemas fotovoltaicos"]

{"sheet":"Adaptación-Ganadería","index":15,"n_rows":45,"n_cols":8,"rows_kept":45,"cut":false,"hidden":true,"merged":[[5,0,5,5],[38,0,38,5],[39,0,39,5],[41,1,42,1],[32,0,32,4],[33,0,33,4],[34,0,34,4],[35,0,35,6],[24,0,24,6],[26,0,26,1],[27,0,27,5],[28,0,28,4],[30,0,30,1],[7,0,7,2],[9,0,9,3],[10,0,10,3],[15,7,17,8],[22,7,23,8],[32,7,34,8],[16,0,16,4],[1,0,1,6],[3,0,3,6],[13,0,13,1],[14,0,14,5],[15,0,15,4],[31,0,31,5],[17,0,17,4],[18,0,18,6],[20,0,20,1],[21,0,21,5],[22,0,22,4],[23,0,23,4]]}
[]
["Adaptación al cambio climático de actividades de cría y explotación de animales"]
[]
["La Taxonomía Sostenible de México reconoce que el país está expuesto a riesgos climáticos y ambientales heterogéneos no lineales que tienen múltiples canales de transmisión y, por ende, que el cambio climático afecta en distinta medida a todos los sectores de la economía. En este sentido, a través de la Taxonomía se busca que las actividades económicas contribuyan sustancialmente, no sólo a la mitigación, sino también a la adaptación del cambio climático. "]
[]
["Responde las siguientes preguntas seleccionando una respuesta de la lista"]
[]
["1. La actividad que estás evaluando es una actividad adaptada o una actividad que facilita la adaptación?",null,null,"Actividad que facilita la adaptación e incluye desarrollo de infraestructura"]
[]
["¿Qué es una actividad adaptada?\nUna actividad económica se adapta a los riesgos climáticos físicos materiales, si integra medidas y/o soluciones para reducirlos, mientras garantiza que la actividad económica pueda funcionar bien en un clima cambiante. Estas actividades de adaptación se desarrollan a partir de la evaluación de riesgos actuales y futuros, ya sean climáticos, crónicos y/o agudos, así como la escala temporal y geográfica de la actividad económica."]
["¿Qué es una actividad que facilita la adaptación? \nUna actividad económica posibilita la adaptación si reduce el riesgo climático físico material y la vulnerabilidad en otras actividades económicas, comunidades, ecosistemas o ciudades, y/o aborda los obstáculos sistémicos a la adaptación. Esto es posible a través del uso de la tecnología y la creación de un producto o servicio especializado."]
[]
[]
["A1. Reducción de los riesgos climáticos físicos materiales."]
["La actividad económica debe reducir todos los riesgos climáticos físicos materiales para las actividades evaluadas, en la medida de lo posible y sobre la base del mejor esfuerzo. Selecciona las respuestas en las listas desplegables"]
["¿La actividad económica integra medidas destinadas a reducir, en la medida de lo posible y sobre la base del mejor esfuerzo, los riesgos climáticos físicos materiales para esa actividad, que han sido identificados mediante una evaluación de riesgos?",null,null,null,null,"Seleccione",{"$f":"IF(F16=\"Seleccione\",\"Por definir\",IF(F16=\"Sí\",\"El primer criterio se cumple satisfactoriamente\",\"Al no cumplir con este criterio, no es posible generar contribución sustancial\"))","v":"Por definir"},"Las tres condiciones deben cumplirse para argumentar que la actividad tiene contribución sustancial"]
["¿Esta evaluación considera tanto la variabilidad meteorológica actual, como el cambio climático futuro, incluidos los escenarios climáticos, así como la incertidumbre?",null,null,null,null,"Seleccione",{"$f":"IF(F17=\"Seleccione\",\"Por definir\",IF(F17=\"Sí\",\"El segundo criterio se cumple satisfactoriamente\",\"Al no cumplir con este criterio, no es posible generar contribución sustancial\"))","v":"Por definir"}]
["¿Igualmente la evaluación se basa en un sólido análisis de los datos e información disponible sobre los distintos escenarios climáticos, y es coherente con la duración prevista de la actividad?",null,null,null,null,"Seleccione",{"$f":"IF(F18=\"Seleccione\",\"Por definir\",IF(F18=\"Sí\",\"El tercer criterio se cumple satisfactoriamente\",\"Al no cumplir con este criterio, no es posible generar contribución sustancial\"))","v":"Por definir"}]
[{"$f":"IF(OR(F16=\"Seleccione\",F17=\"Seleccione\",F18=\"Seleccione\"),\"Por definir\",IF(OR(F16=\"No\",F17=\"No\",F18=\"No\"),\"La actividad no genera contribución sustancial\", \"La actividad sí contribuye sustancialmente a la sostenibilidad\"))","v":"Por definir"}]
[]
["A2. Apoyo a la adaptación del sistema. "]
["La actividad económica y sus medidas de adaptación no afectan negativamente los esfuerzos de adaptación de otras personas, la naturaleza y los bienes. Selecciona las respuestas en las listas desplegables"]
["¿La actividad económica y sus medidas de adaptación no aumentan los riesgos de un impacto climático adverso sobre otras personas, la naturaleza y los bienes?",null,null,null,null,"Seleccione",{"$f":"IF(F23=\"Seleccione\",\"Por definir\",IF(F23=\"Sí\",\"El primer criterio se cumple satisfactoriamente\",\"Al no cumplir con este criterio, no es posible generar contribución sustancial\"))","v":"Por definir"},"Las dos condiciones deben cumplirse para argumentar que la actividad tiene contribución sustancial"]
["¿La actividad económica y sus medidas de adaptación son consistentes con los esfuerzos de adaptación a nivel sectorial, regional y/o nacional?",null,null,null,null,"Seleccione",{"$f":"IF(F24=\"Seleccione\",\"Por definir\",IF(F24=\"Sí\",\"El segundo criterio se cumple satisfactoriamente\",\"Al no cumplir con este criterio, no es posible generar contribución sustancial\"))","v":"Por definir"}]
[{"$f":"IF(OR(F23=\"Seleccione\",F24=\"Seleccione\"),\"Por definir\",IF(OR(F23=\"No\",F24=\"No\"),\"La actividad no genera contribución sustancial\", \"La actividad sí contribuye sustancialmente a la sostenibilidad\"))","v":"Por definir"}]
[]
["A3. Monitoreo de los resultados de adaptación."]
["En el contexto de la actividad evaluada, la reducción de los riesgos físicos se puede medir. Selecciona las respuestas en las listas desplegables"]
[" Los resultados de adaptación pueden ser monitoreados y medidos con base en indicadores. Considerando que los riesgos físicos evolucionan con el tiempo, el análisis de riesgos físicos debe llevarse a cabo con la frecuencia adecuada.  ¿Esto se evalúa dentro de la operación financiera y/o proyecto?",null,null,null,null,"Seleccione",{"$f":"IF(F29=\"Seleccione\",\"Por definir\",IF(F29=\"Sí\",\"La actividad sí contribuye sustancialmente a la sostenbilidad\",\"El proyecto no genera contribución sustancial\"))","v":"Por definir"}]
[]
["B1. Apoyar a la adaptación de otras actividades económicas."]
["La actividad económica reduce el riesgo climático físico material en otras actividades económicas y/o aborda los obstáculos sistémicos para la adaptación. Las actividades que permiten la adaptación incluyen, pero no se limitan a, actividades que promueven una tecnología, un producto, una práctica, un proceso de gobernanza o usos innovadores de tecnologías, productos o prácticas existentes (incluidos los relacionados con las infraestructuras naturales). Además, eliminan las barreras de información, financieras, tecnológicas y de capacidad para la adaptación de otros. Selecciona las respuestas en las listas desplegables"]
["¿Se realiza una evaluación de los riesgos resultantes, con base en datos sólidos, tanto de la variabilidad  meteorológica actual como del cambio climático futuro, incluidos los escenarios climáticos, así como  la incertidumbre, que la actividad económica contribuirá a abordar?",null,null,null,null,"Seleccione",{"$f":"IF(F33=\"Seleccione\",\"Por definir\",IF(F33=\"Sí\",\"El primer criterio se cumple satisfactoriamente\",\"Al no cumplir con este criterio, no es posible generar contribución sustancial\"))","v":"Por definir"},"Las tres condiciones en caso de que apliquen deben cumplirse para argumentar que la actividad tiene contribución sustancial. La tercera opción podría no aplicar. En este caso se evaluaran las primeras dos cuestiones"]
["¿Se realiza una evaluación de la eficacia de la contribución de la actividad económica a la reducción de los riesgos físicos, teniendo en cuenta la escala de exposición y la vulnerabilidad a los mismos?",null,null,null,null,"Seleccione",{"$f":"IF(F34=\"Seleccione\",\"Por definir\",IF(F34=\"Sí\",\"El segundo criterio se cumple satisfactoriamente\",\"Al no cumplir con este criterio, no es posible generar contribución sustancial\"))","v":"Por definir"}]
["En el caso de una infraestructura vinculada a una actividad que permita la adaptación, dicha infraestructura debe cumplir también los criterios de selección A1, A2 y A3. ¿Esto se cumple en el contexto del proyecto?",null,null,null,null,"Seleccione",{"$f":"IF(F35=\"Seleccione\",\"Por definir\",IF(F35=\"Sí\",\"El tercer criterio se cumple satisfactoriamente\",IF(F35=\"No aplica\",\"No aplica\",\"El proyecto no genera contribución sustancial\")))","v":"Por definir"}]
["Seleccione la primera medida"]
[]
[]
["Prácticas con impacto sobre la adaptación al cambio climático para el subsector de Cría y Explotación de animales.  "]
["En las actividades del subsector de Cría y Explotación de animales deberán atenderse prácticas específicas para asegurar su contribución a la adaptación."]
["Selecciona al menos dos prácticas de mejoramiento que incluye el plan de transición del proyecto:"]
["Seleccione la primera medida",{"$f":"IF(OR(A42=\"Seleccione la primera medida\",A43=\"Seleccione la segunda medida\"),\"Por definir\",IF(OR(A42=\"Ninguna\",A43=\"Ninguna\"),\"La actividad no genera contribución sustancial\",\"La actividad genera contribución sustancial a la sostenibilidad\"))","v":"Por definir"}]
["Seleccione la segunda medida"]
[]
["¿La actividad considera más practicas de las listas desplegables de la pregunta anterior?","Seleccione",{"$f":"IF(B45=\"Sí\",\"Las actividades complementarias deberán ser descritas en el informe complementario\",IF(B45=\"No\",\"Continua con el siguiente cuestionario\",\"Por definir\"))","v":"Por definir"}]

{"sheet":"Indice de género-Ganadería","index":16,"n_rows":82,"n_cols":11,"rows_kept":82,"cut":false,"hidden":true,"merged":[[1,1,1,8],[3,0,3,8],[5,0,5,8],[7,0,9,0],[7,1,9,1],[7,2,7,5],[7,8,9,8],[8,2,8,5],[9,2,9,5],[12,0,15,0],[12,1,15,1],[12,2,12,5],[12,8,15,8],[13,2,13,5],[14,2,14,5],[15,2,15,5],[18,0,20,0],[18,1,20,1],[18,2,18,5],[18,8,20,8],[19,2,19,5],[20,2,20,5],[23,0,25,0],[23,1,25,1],[23,2,23,5],[23,8,25,8],[24,2,24,5],[25,2,25,5],[28,0,30,0],[28,1,30,1],[28,2,28,5],[28,8,30,8],[29,2,29,5],[30,2,30,5],[33,0,35,0],[33,1,35,1],[33,2,33,5],[33,8,35,8],[34,2,34,5],[35,2,35,5],[38,0,40,0],[38,1,40,1],[38,2,38,5],[38,8,40,8],[39,2,39,5],[40,2,40,5],[43,0,45,0],[43,1,45,1],[43,2,43,5],[43,8,45,8],[44,2,44,5],[45,2,45,5],[48,0,50,0],[48,1,50,1],[48,2,48,5],[48,8,50,8],[49,2,49,5],[50,2,50,5],[53,0,55,0],[53,1,55,1],[53,2,53,5],[53,8,55,8],[54,2,54,5],[55,2,55,5],[58,0,60,0],[58,1,60,1],[58,2,58,5],[58,8,60,8],[59,2,59,5],[60,2,60,5],[63,0,65,0],[63,1,65,1],[63,2,63,5],[63,8,65,8],[64,2,64,5],[65,2,65,5],[68,0,70,0],[68,1,70,1],[68,2,68,5],[68,8,70,8],[69,2,69,5],[70,2,70,5],[73,0,75,0],[73,1,75,1],[73,2,73,5],[73,8,75,8],[74,2,74,5],[75,2,75,5],[77,4,77,7],[78,4,78,7],[79,4,79,7],[80,4,80,7],[81,4,81,7]]}
[]
[null,"Índice de Igualdad de Género"]
[]
["La Igualdad de Género es considerada como un objetivo prioritario en la Taxonomía Sostenible de México. Es así que se han generado Criterios de Evaluación Técnica que permitan identificar inversiones que contribuyan al cierre de brechas de género. Al mismo tiempo, las métricas propuestas servirán como guía orientadora para los usuarios potenciales de la Taxonomía, de forma que puedan dirigir esfuerzos para generar una contribución sustancial a la igualdad de género. Este índice refleja, en una escala numérica, la contribución de las organizaciones a tres pilares de igualdad de género: 1) Trabajo Digno, 2) Bienestar e 3) Inclusión Social. Ello permite traducir los criterios cualitativos de estos tres pilares, a una métrica cuantitativa, a la cual es posible asignar un umbral para determinar un nivel de contribución sustancial para un objetivo social."]
[]
["Por favor, selecciona alguna de las opciones descritas en las casillas azules para cada pregunta. En función de la respuesta, se asignará un puntaje por bloque de preguntas, que al final será evaluado para conocer si el proyecto cumple con las condiciones presentes en el índice de igualdad de género"]
["Pilar",null,null,null,null,null,null,"Puntaje",null,null,{"$f":"IF(G7=\"No\",0,IF(G7=\"Sí de alcance parcial dentro de la organización\",1,IF(G7=\"Sí de alcance integral en la organización\",2,IF(G7=\"Sí de alcance que se extiende dentro y fuera de la organización\",3,\"\"))))","v":""}]
["1.1.1","Igualdad de remuneración","¿Existe una política y/o tabulador para todo el personal que establezca la igualdad de remuneración por un trabajo equivalente, conforme a la Ley Federal del Trabajo, y donde se puedan consultar los rangos salariales para los diferentes niveles dentro del centro de trabajo?",null,null,null,"Sí de alcance que se extiende dentro y fuera de la organización",{"$f":"IF(G8=\"No\",0,IF(G8=\"Sí de alcance parcial dentro de la organización\",1,IF(G8=\"Sí de alcance integral en la organización\",2,IF(G8=\"Sí de alcance que se extiende dentro y fuera de la organización\",3,\"\"))))","v":3},{"$f":"IF(OR(G8=\"Seleccione\",G9=\"Seleccione\",G10=\"Seleccione\"),\"Por favor completa las preguntas de este apartado del Índice\",IF(H11<3,\"Es necesario incrementar la ambición en alguno de los ejes evaluados para que el proyecto esté alineado al Índice de Igualdad de Género de la Taxonomía Sostenible de México\",\"El proyecto cuenta con la ambición necesaria para cerrar las brechas de género conforme al Índice de Igualdad de Género de la Taxonomía Sostenible de México\"))","v":"El proyecto cuenta con la ambición necesaria para cerrar las brechas de género conforme al Índice de Igualdad de Género de la Taxonomía Sostenible de México"}]
[null,null,"¿La organización realiza un análisis sistemático y periódico de las brechas de género en salarios, prestaciones y compensaciones de su personal?",null,null,null,"Sí de alcance que se extiende dentro y fuera de la organización",{"$f":"IF(G9=\"No\",0,IF(G9=\"Sí de alcance parcial dentro de la organización\",1,IF(G9=\"Sí de alcance integral en la organización\",2,IF(G9=\"Sí de alcance que se extiende dentro y fuera de la organización\",3,\"\"))))","v":3}]
[null,null,"¿La organización cuenta con un mecanismo para corregir los casos identificados con desigualdad en la remuneración?",null,null,null,"Sí de alcance integral en la organización",{"$f":"IF(G10=\"No\",0,IF(G10=\"Sí de alcance parcial dentro de la organización\",1,IF(G10=\"Sí de alcance integral en la organización\",2,\"\")))","v":2}]
[null,null,null,null,null,null,null,{"$f":"SUM(H8:H10)","v":8}]
[]
["1.2.1","Posibilidades de acceso, contratación, participación, permanencia y promoción","¿Tiene la organización una política o mecanismo que garantice la no discriminación e igualdad de oportunidades en el acceso, permanencia y desarrollo laboral?",null,null,null,"Sí de alcance que se extiende dentro y fuera de la organización",{"$f":"IF(G13=\"No\",0,IF(G13=\"Sí de alcance parcial dentro de la organización\",1,IF(G13=\"Sí de alcance integral en la organización\",2,IF(G13=\"Sí de alcance que se extiende dentro y fuera de la organización\",3,\"\"))))","v":3},{"$f":"IF(OR(G13=\"Seleccione\",G14=\"Seleccione\",G15=\"Seleccione\",G16=\"Seleccione\"),\"Por favor completa las preguntas de este apartado del Índice\",IF(H17<4,\"Es necesario incrementar la ambición en alguno de los ejes evaluados para que el proyecto esté alineado al Índice de Igualdad de Género de la Taxonomía Sostenible de México\",\"El proyecto cuenta con la ambición necesaria para cerrar las brechas de género conforme al Índice de Igualdad de Género de la Taxonomía Sostenible de México\"))","v":"El proyecto cuenta con la ambición necesaria para cerrar las brechas de género conforme al Índice de Igualdad de Género de la Taxonomía Sostenible de México"}]
[null,null,"¿Existen perfiles de puestos, anuncios de vacantes u ofertas de trabajo, documentación para entrevista de ingreso estructurada y/o exámenes o evaluaciones libres de sesgos sexistas o de discriminación?",null,null,null,"Sí de alcance que se extiende dentro y fuera de la organización",{"$f":"IF(G14=\"No\",0,IF(G14=\"Sí de alcance parcial dentro de la organización\",1,IF(G14=\"Sí de alcance integral en la organización\",2,IF(G14=\"Sí de alcance que se extiende dentro y fuera de la organización\",3,\"\"))))","v":3}]
[null,null,"¿Se cuenta con procesos transparentes y accesibles de movilidad horizontal y vertical libres de sesgos sexistas o discriminatorios?",null,null,null,"Sí de alcance que se extiende dentro y fuera de la organización",{"$f":"IF(G15=\"No\",0,IF(G15=\"Sí de alcance parcial dentro de la organización\",1,IF(G15=\"Sí de alcance integral en la organización\",2,IF(G15=\"Sí de alcance que se extiende dentro y fuera de la organización\",3,\"\"))))","v":3}]
[null,null,"¿La organización lleva a cabo capacitaciones extensivas al personal candidato o de la propia empresa como mecanismo de corrección (distintas al plan de capacitación) sobre sesgos de género para entrevistas laborales, para evaluaciones de desempeño o para procesos de reclutamiento, movilidad y  promoción?",null,null,null,"Sí de alcance que se extiende dentro y fuera de la organización",{"$f":"IF(G16=\"No\",0,IF(G16=\"Sí de alcance parcial dentro de la organización\",1,IF(G16=\"Sí de alcance integral en la organización\",2,IF(G16=\"Sí de alcance que se extiende dentro y fuera de la organización\",3,\"\"))))","v":3}]
[null,null,null,null,null,null,null,{"$f":"SUM(H13:H16)","v":12}]
[]
["1.2.2","Segregación Vertical y Horizontal","¿La organización cuenta con metas institucionales sobre diversidad de género en los diferentes equipos de trabajo?",null,null,null,"Sí de alcance que se extiende dentro y fuera de la organización",{"$f":"IF(G19=\"No\",0,IF(G19=\"Sí de alcance parcial dentro de la organización\",1,IF(G19=\"Sí de alcance integral en la organización\",2,IF(G19=\"Sí de alcance que se extiende dentro y fuera de la organización\",3,\"\"))))","v":3},{"$f":"IF(OR(G19=\"Seleccione\",G20=\"Seleccione\",G21=\"Seleccione\"),\"Por favor completa las preguntas de este apartado del Índice\",IF(H22<3,\"Es necesario incrementar la ambición en alguno de los ejes evaluados para que el proyecto esté alineado al Índice de Igualdad de Género de la Taxonomía Sostenible de México\",\"El proyecto cuenta con la ambición necesaria para cerrar las brechas de género conforme al Índice de Igualdad de Género de la Taxonomía Sostenible de México\"))","v":"El proyecto cuenta con la ambición necesaria para cerrar las brechas de género conforme al Índice de Igualdad de Género de la Taxonomía Sostenible de México"}]
[null,"1.2.2.2","¿La organización cuenta con un plan de acción para cerrar la brecha de participación laboral entre hombres y mujeres, entre los niveles jerárquicos, en el proceso de contratación y en las oportunidades de promoción?",null,null,null,"Sí de alcance integral en la organización",{"$f":"IF(G20=\"No\",0,IF(G20=\"Sí de alcance parcial dentro de la organización\",1,IF(G20=\"Sí de alcance integral en la organización\",2,\"\")))","v":2}]
[null,"1.2.2.3","¿El despliegue de los mecanismos de corrección para cerrar la brecha de participación se realiza conforme a la evaluación o medición continua de las brechas de género?",null,null,null,"Sí de alcance integral en la organización",{"$f":"IF(G21=\"No\",0,IF(G21=\"Sí de alcance parcial dentro de la organización\",1,IF(G21=\"Sí de alcance integral en la organización\",2,\"\")))","v":2}]
[null,null,null,null,null,null,null,{"$f":"SUM(H19:H21)","v":7}]
[]
["1.2.3","Igualdad de representatividad de mujeres y hombres en órganos de gobernanza corporativa","¿Existe una política de paridad entre mujeres y hombres (reglamentos, normas, documentos o protocolos internos) en el órgano de gobernanza corporativa (junta de gobierno) o en puestos de toma de decisión?",null,null,null,"Sí de alcance que se extiende dentro y fuera de la organización",{"$f":"IF(G24=\"No\",0,IF(G24=\"Sí de alcance parcial dentro de la organización\",1,IF(G24=\"Sí de alcance integral en la organización\",2,IF(G24=\"Sí de alcance que se extiende dentro y fuera de la organización\",3,\"\"))))","v":3},{"$f":"IF(OR(G24=\"Seleccione\",G25=\"Seleccione\",G26=\"Seleccione\"),\"Por favor completa las preguntas de este apartado del Índice\",IF(H27<2,\"Es necesario incrementar la ambición en alguno de los ejes evaluados para que el proyecto esté alineado al Índice de Igualdad de Género de la Taxonomía Sostenible de México\",\"El proyecto cuenta con la ambición necesaria para cerrar las brechas de género conforme al Índice de Igualdad de Género de la Taxonomía Sostenible de México\"))","v":"El proyecto cuenta con la ambición necesaria para cerrar las brechas de género conforme al Índice de Igualdad de Género de la Taxonomía Sostenible de México"}]
[null,"1.2.3.2","¿Existen mecanismos o acciones para promover la rotación hacia puestos directivos o de toma de decisión con perspectiva de género, o en su caso el proceso de designación no tienes sesgos de género?",null,null,null,"Sí de alcance integral en la organización",{"$f":"IF(G25=\"No\",0,IF(G25=\"Sí de alcance parcial dentro de la organización\",1,IF(G25=\"Sí de alcance integral en la organización\",2,\"\")))","v":2}]
[null,"1.2.3.3","¿La organización se somete a un análisis, interno o externo, de paridad de género institucional en sus puestos de alta dirección o gobierno corporativo, acorde a la política de transparencia que la rige?",null,null,null,"Sí de alcance que se extiende dentro y fuera de la organización",{"$f":"IF(G26=\"No\",0,IF(G26=\"Sí de alcance parcial dentro de la organización\",1,IF(G26=\"Sí de alcance integral en la organización\",2,IF(G26=\"Sí de alcance que se extiende dentro y fuera de la organización\",3,\"\"))))","v":3}]
[null,null,null,null,null,null,null,{"$f":"SUM(H24:H26)","v":8}]
[]
["1.2.4","Clima laboral y espacios de trabajo libres de violencia","¿La organización cuenta con políticas o áreas especializadas en diversidad e inclusión que promuevan relaciones igualitarias acompañadas de la implementación de prácticas de prevención contra la violencia de género (hostigamiento, acoso u otro)?",null,null,null,"Sí de alcance integral en la organización",{"$f":"IF(G29=\"No\",0,IF(G29=\"Sí de alcance parcial dentro de la organización\",1,IF(G29=\"Sí de alcance integral en la organización\",2,\"\")))","v":2},{"$f":"IF(OR(G29=\"Seleccione\",G30=\"Seleccione\",G31=\"Seleccione\"),\"Por favor completa las preguntas de este apartado del Índice\",IF(H32<2,\"Es necesario incrementar la ambición en alguno de los ejes evaluados para que el proyecto esté alineado al Índice de Igualdad de Género de la Taxonomía Sostenible de México\",\"El proyecto cuenta con la ambición necesaria para cerrar las brechas de género conforme al Índice de Igualdad de Género de la Taxonomía Sostenible de México\"))","v":"El proyecto cuenta con la ambición necesaria para cerrar las brechas de género conforme al Índice de Igualdad de Género de la Taxonomía Sostenible de México"}]
[null,"1.2.4.2","¿La organización cuenta con un grupo, comisión o Comité encargado de la vigilancia del desarrollo e implementación de prácticas contra la violencia y la discriminación de género en el centro de trabajo?",null,null,null,"Sí de alcance integral en la organización",{"$f":"IF(G30=\"No\",0,IF(G30=\"Sí de alcance parcial dentro de la organización\",1,IF(G30=\"Sí de alcance integral en la organización\",2,\"\")))","v":2}]
[null,"1.2.4.3","¿La organización cuenta con mecanismos de atención a actos de violencia detectados o de reparación de daños, cuyos resultados salvaguarden la integridad de las víctimas y eviten la revictimización?",null,null,null,"Sí de alcance integral en la organización",{"$f":"IF(G31=\"No\",0,IF(G31=\"Sí de alcance parcial dentro de la organización\",1,IF(G31=\"Sí de alcance integral en la organización\",2,\"\")))","v":2}]
[null,null,null,null,null,null,null,{"$f":"SUM(H29:H31)","v":6}]
[]
["1.2.5","Capacitaciones para la igualdad laboral","¿La organización cuenta con un plan de capacitación, sensibilización y difusión como parte de sus objetivos de la agenda de género?",null,null,null,"No",{"$f":"IF(G34=\"No\",0,IF(G34=\"Sí de alcance parcial dentro de la organización\",1,IF(G34=\"Sí de alcance integral en la organización\",2,IF(G34=\"Sí de alcance que se extiende dentro y fuera de la organización\",3,\"\"))))","v":0},{"$f":"IF(OR(G34=\"Seleccione\",G35=\"Seleccione\",G36=\"Seleccione\"),\"Por favor completa las preguntas de este apartado del Índice\",IF(H37<3,\"Es necesario incrementar la ambición en alguno de los ejes evaluados para que el proyecto esté alineado al Índice de Igualdad de Género de la Taxonomía Sostenible de México\",\"El proyecto cuenta con la ambición necesaria para cerrar las brechas de género conforme al Índice de Igualdad de Género de la Taxonomía Sostenible de México\"))","v":"Es necesario incrementar la ambición en alguno de los ejes evaluados para que el proyecto esté alineado al Índice de Igualdad de Género de la Taxonomía Sostenible de México"}]
[null,"1.2.5.2","¿La organización ofrece capacitación continua para el desarrollo de habilidades requeridas para la movilidad laboral, tales como mentoría o patrocinio; incluyendo el desarrollo de capacidades para los nuevos empleos verdes que promuevan la transición justa?",null,null,null,"No",{"$f":"IF(G35=\"No\",0,IF(G35=\"Sí de alcance parcial dentro de la organización\",1,IF(G35=\"Sí de alcance integral en la organización\",2,IF(G35=\"Sí de alcance que se extiende dentro y fuera de la organización\",3,\"\"))))","v":0}]
[null,"1.2.5.3","¿La organización cuenta con mecanismos de evaluación o mejora de su plan de implementación de capacitaciones, asesorías o mentorías, que sean extensivos a otros actores que interactúan con la organización o a la comunidad externa (más allá del personal de la organización)?",null,null,null,"No",{"$f":"IF(G36=\"No\",0,IF(G36=\"Sí de alcance parcial dentro de la organización\",1,IF(G36=\"Sí de alcance integral en la organización\",2,IF(G36=\"Sí de alcance que se extiende dentro y fuera de la organización\",3,\"\"))))","v":0}]
[null,null,null,null,null,null,null,{"$f":"SUM(H34:H36)","v":0}]
[]
["1.3.1","Esquemas de trabajo flexible y políticas de conciliación","¿Existen medidas de flexibilidad laboral, como horarios flexibles o escalonados, semanas de trabajo comprimidas, teletrabajo o licencias con y sin goce de sueldo?",null,null,null,"No",{"$f":"IF(G39=\"No\",0,IF(G39=\"Sí de alcance parcial dentro de la organización\",1,IF(G39=\"Sí de alcance integral en la organización\",2,\"\")))","v":0},{"$f":"IF(OR(G39=\"Seleccione\",G40=\"Seleccione\",G41=\"Seleccione\"),\"Por favor completa las preguntas de este apartado del Índice\",IF(H42<4,\"Es necesario incrementar la ambición en alguno de los ejes evaluados para que el proyecto esté alineado al Índice de Igualdad de Género de la Taxonomía Sostenible de México\",\"El proyecto cuenta con la ambición necesaria para cerrar las brechas de género conforme al Índice de Igualdad de Género de la Taxonomía Sostenible de México\"))","v":"Es necesario incrementar la ambición en alguno de los ejes evaluados para que el proyecto esté alineado al Índice de Igualdad de Género de la Taxonomía Sostenible de México"}]
[null,"1.3.1.2","¿Existe una duración definida de la jornada laboral que se acompañe con una política de desconexión, sin importar que el esquema sea presencial, híbrido o por teletrabajo?",null,null,null,"No",{"$f":"IF(G40=\"No\",0,IF(G40=\"Sí de alcance parcial dentro de la organización\",1,IF(G40=\"Sí de alcance integral en la organización\",2,\"\")))","v":0}]
[null,"1.3.1.3","¿La organización despliega y difunde mecanismos de corrección al interior y al exterior, en función de la información estadística analizada y desagregada por sexo, sobre el cumplimento de los horarios de trabajo conforme al derecho de las y los trabajadores a la desconexión?",null,null,null,"No",{"$f":"IF(G41=\"No\",0,IF(G41=\"Sí de alcance parcial dentro de la organización\",1,IF(G41=\"Sí de alcance integral en la organización\",2,IF(G41=\"Sí de alcance que se extiende dentro y fuera de la organización\",3,\"\"))))","v":0}]
[null,null,null,null,null,null,null,{"$f":"SUM(H39:H41)","v":0}]
[]
["1.3.2","Oferta complementaria de servicios de cuidados (ludoteca, casas de día, estancias infantiles adicionales, entre otros)","¿La organización tiene políticas que le permitan desarrollar una oferta complementaria de servicios de cuidado (guarderías propias, salas de lactancia, etc.), asequible para todo el personal de la organización, incluyendo licencias de maternidad y paternidad con duración superior a la Ley?",null,null,null,"No",{"$f":"IF(G44=\"No\",0,IF(G44=\"Sí de alcance parcial dentro de la organización\",1,IF(G44=\"Sí de alcance integral en la organización\",2,IF(G44=\"Sí de alcance que se extiende dentro y fuera de la organización\",3,\"\"))))","v":0},{"$f":"IF(OR(G44=\"Seleccione\",G45=\"Seleccione\",G46=\"Seleccione\"),\"Por favor completa las preguntas de este apartado del Índice\",IF(H47<3,\"Es necesario incrementar la ambición en alguno de los ejes evaluados para que el proyecto esté alineado al Índice de Igualdad de Género de la Taxonomía Sostenible de México\",\"El proyecto cuenta con la ambición necesaria para cerrar las brechas de género conforme al Índice de Igualdad de Género de la Taxonomía Sostenible de México\"))","v":"Es necesario incrementar la ambición en alguno de los ejes evaluados para que el proyecto esté alineado al Índice de Igualdad de Género de la Taxonomía Sostenible de México"}]
[null,"1.3.2.2","¿Se proporciona una oferta de servicios de cuidado adicional a los servicios de seguridad social (IMSS, ISSSTE y otros) o se ofrecen permisos con o sin goce de sueldo para la atención de responsabilidades de cuidado?",null,null,null,"No",{"$f":"IF(G45=\"No\",0,IF(G45=\"Sí de alcance parcial dentro de la organización\",1,IF(G45=\"Sí de alcance integral en la organización\",2,IF(G45=\"Sí de alcance que se extiende dentro y fuera de la organización\",3,\"\"))))","v":0}]
[null,"1.3.2.3","¿La organización realiza y difunde evaluaciones de las necesidades de cuidado de su personal y sus dependientes, al interior y al exterior?",null,null,null,"No",{"$f":"IF(G46=\"No\",0,IF(G46=\"Sí de alcance parcial dentro de la organización\",1,IF(G46=\"Sí de alcance integral en la organización\",2,IF(G46=\"Sí de alcance que se extiende dentro y fuera de la organización\",3,\"\"))))","v":0}]
[null,null,null,null,null,null,null,{"$f":"SUM(H44:H46)","v":0}]
[]
["2.1.1","Desarrollo y provisión de infraestructura, bienes y servicios con impacto social positivo y perspectiva de género","¿La organización tiene como política realizar diagnósticos con perspectiva de género para el diseño y operación del proyecto, actividad, desarrollo de infraestructura o la provisión de bienes y servicios?",null,null,null,"Sí de alcance que se extiende dentro y fuera de la organización",{"$f":"IF(G49=\"No\",0,IF(G49=\"Sí de alcance parcial dentro de la organización\",2,IF(G49=\"Sí de alcance integral en la organización\",4,IF(G49=\"Sí de alcance que se extiende dentro y fuera de la organización\",6,\"\"))))","v":6},{"$f":"IF(OR(G49=\"Seleccione\",G50=\"Seleccione\",G51=\"Seleccione\"),\"Por favor completa las preguntas de este apartado del Índice\",IF(H52<8,\"Es necesario incrementar la ambición en alguno de los ejes evaluados para que el proyecto esté alineado al Índice de Igualdad de Género de la Taxonomía Sostenible de México\",\"El proyecto cuenta con la ambición necesaria para cerrar las brechas de género conforme al Índice de Igualdad de Género de la Taxonomía Sostenible de México\"))","v":"El proyecto cuenta con la ambición necesaria para cerrar las brechas de género conforme al Índice de Igualdad de Género de la Taxonomía Sostenible de México"}]
[null,"2.1.1.2","¿El proyecto de infraestructura, actividad, bien o servicio, considera ajustes razonables para atender las necesidades de las mujeres o contribuye a la reducción o eliminación de una situación de exclusión, desigualdad o violencia de género, y privilegia su acceso a precios asequibles por razón de género?",null,null,null,"Sí de alcance que se extiende dentro y fuera de la organización",{"$f":"IF(G50=\"No\",0,IF(G50=\"Sí de alcance parcial dentro de la organización\",2,IF(G50=\"Sí de alcance integral en la organización\",4,IF(G50=\"Sí de alcance que se extiende dentro y fuera de la organización\",6,\"\"))))","v":6}]
[null,"2.1.1.3","¿Se cuenta con un plan de actividades de igualdad entre mujeres y hombres, que incluya presupuesto e indicadores de cumplimiento sobre el impacto en la vida de las mujeres, y en su caso, en el medio ambiente en el uso de la infraestructura, productos o servicios a desarrollar?",null,null,null,"Sí de alcance que se extiende dentro y fuera de la organización",{"$f":"IF(G51=\"No\",0,IF(G51=\"Sí de alcance parcial dentro de la organización\",2,IF(G51=\"Sí de alcance integral en la organización\",4,IF(G51=\"Sí de alcance que se extiende dentro y fuera de la organización\",6,\"\"))))","v":6}]
[null,null,null,null,null,null,null,{"$f":"SUM(H49:H51)","v":18}]
[]
["2.2.1","No afectación a la salud de las mujeres","¿La organización tiene como procedimientos la elaboración de diagnósticos con perspectiva de género sobre los impactos potenciales en salud del proyecto de infraestructura, actividad, bien o servicio, para la promoción de la salud en las mujeres o asegurar la no afectación a esta?",null,null,null,"Sí de alcance que se extiende dentro y fuera de la organización",{"$f":"IF(G54=\"No\",0,IF(G54=\"Sí de alcance parcial dentro de la organización\",2,IF(G54=\"Sí de alcance integral en la organización\",4,IF(G54=\"Sí de alcance que se extiende dentro y fuera de la organización\",6,\"\"))))","v":6},{"$f":"IF(OR(G54=\"Seleccione\",G55=\"Seleccione\",G56=\"Seleccione\"),\"Por favor completa las preguntas de este apartado del Índice\",IF(H57<8,\"Es necesario incrementar la ambición en alguno de los ejes evaluados para que el proyecto esté alineado al Índice de Igualdad de Género de la Taxonomía Sostenible de México\",\"El proyecto cuenta con la ambición necesaria para cerrar las brechas de género conforme al Índice de Igualdad de Género de la Taxonomía Sostenible de México\"))","v":"El proyecto cuenta con la ambición necesaria para cerrar las brechas de género conforme al Índice de Igualdad de Género de la Taxonomía Sostenible de México"}]
[null,"2.2.1.2","¿El proyecto, actividad, bien o servicio, considera ajustes razonables para atender las necesidades diferenciadas de salud en hombres y mujeres y privilegia el acceso desde una perspectiva de género a precios asequibles?",null,null,null,"Sí de alcance que se extiende dentro y fuera de la organización",{"$f":"IF(G55=\"No\",0,IF(G55=\"Sí de alcance parcial dentro de la organización\",2,IF(G55=\"Sí de alcance integral en la organización\",4,IF(G55=\"Sí de alcance que se extiende dentro y fuera de la organización\",6,\"\"))))","v":6}]
[null,"2.2.1.3","¿Se realizan estudios de los efectos en la salud de la actividad, productos o servicios desagregados sexo, y se cuenta con un plan de actividades para la corrección o mejora que incluya presupuesto e indicadores de cumplimiento?",null,null,null,"Sí de alcance que se extiende dentro y fuera de la organización",{"$f":"IF(G56=\"No\",0,IF(G56=\"Sí de alcance parcial dentro de la organización\",2,IF(G56=\"Sí de alcance integral en la organización\",4,IF(G56=\"Sí de alcance que se extiende dentro y fuera de la organización\",6,\"\"))))","v":6}]
[null,null,null,null,null,null,null,{"$f":"SUM(H54:H56)","v":18}]
[]
["2.3.1","Promoción de autonomía de las mujeres y financiamiento flexible con perspectiva de género","¿La organización tiene como política visibilizar las necesidades diferenciadas entre mujeres y hombres en las estrategias de comercialización de los productos o servicios ofrecidos?",null,null,null,"Sí de alcance que se extiende dentro y fuera de la organización",{"$f":"IF(G59=\"No\",0,IF(G59=\"Sí de alcance parcial dentro de la organización\",2,IF(G59=\"Sí de alcance integral en la organización\",4,IF(G59=\"Sí de alcance que se extiende dentro y fuera de la organización\",6,\"\"))))","v":6},{"$f":"IF(OR(G59=\"Seleccione\",G60=\"Seleccione\",G61=\"Seleccione\"),\"Por favor completa las preguntas de este apartado del Índice\",IF(H62<8,\"Es necesario incrementar la ambición en alguno de los ejes evaluados para que el proyecto esté alineado al Índice de Igualdad de Género de la Taxonomía Sostenible de México\",\"El proyecto cuenta con la ambición necesaria para cerrar las brechas de género conforme al Índice de Igualdad de Género de la Taxonomía Sostenible de México\"))","v":"El proyecto cuenta con la ambición necesaria para cerrar las brechas de género conforme al Índice de Igualdad de Género de la Taxonomía Sostenible de México"}]
[null,"2.3.1.2","¿La organización garantiza la accesibilidad de los productos o servicios para las mujeres, ofreciendo opciones diferenciadas de financiación?",null,null,null,"Sí de alcance que se extiende dentro y fuera de la organización",{"$f":"IF(G60=\"No\",0,IF(G60=\"Sí de alcance parcial dentro de la organización\",2,IF(G60=\"Sí de alcance integral en la organización\",4,IF(G60=\"Sí de alcance que se extiende dentro y fuera de la organización\",6,\"\"))))","v":6}]
[null,"2.3.1.3","¿Se realiza una evaluación de efectos diferenciados de los productos y servicios ofrecidos desagregada sexo que visibilicen que son utilizados por mujeres y/o benefician más que proporcionalmente a las mujeres?",null,null,null,"Sí de alcance que se extiende dentro y fuera de la organización",{"$f":"IF(G61=\"No\",0,IF(G61=\"Sí de alcance parcial dentro de la organización\",2,IF(G61=\"Sí de alcance integral en la organización\",4,IF(G61=\"Sí de alcance que se extiende dentro y fuera de la organización\",6,\"\"))))","v":6}]
[null,null,null,null,null,null,null,{"$f":"SUM(H59:H61)","v":18}]
[]
["3.1.1","Promoción de cultura de paz y no violencia","¿La organización o proyecto considera dentro de sus objetivos la reducción o erradicación de la violencia contra las mujeres o el desarrollo de espacios de paz y no violencia; o bien, cuenta con un protocolo o procedimiento para la resolución de conflictos con la comunidad, que considere una perspectiva de género y de derechos humanos?",null,null,null,"Toda la información relacionada es pública",{"$f":"IF(G64=\"No se cuenta con un protocolo o procedimiento o no se comunica\",0,IF(G64=\"Comunicación del objetivo protocolo parcial dentro de la organización\",2,IF(G64=\"Sí de alcance integral en la organización\",2,IF(G64=\"Protocolo de conocimiento de toda la organización\",4,IF(G64=\"Toda la información relacionada es pública\",6,\"\")))))","v":6},{"$f":"IF(OR(G64=\"Seleccione\",G65=\"Seleccione\",G66=\"Seleccione\"),\"Por favor completa las preguntas de este apartado del Índice\",IF(H67<8,\"Es necesario incrementar la ambición en alguno de los ejes evaluados para que el proyecto esté alineado al Índice de Igualdad de Género de la Taxonomía Sostenible de México\",\"El proyecto cuenta con la ambición necesaria para cerrar las brechas de género conforme al Índice de Igualdad de Género de la Taxonomía Sostenible de México\"))","v":"El proyecto cuenta con la ambición necesaria para cerrar las brechas de género conforme al Índice de Igualdad de Género de la Taxonomía Sostenible de México"}]
[null,"3.1.1.2","¿Se han desarrollado acciones para la prevención, atención, sanción y erradicación de la violencia contra niñas, niños, adolescentes y mujeres en la comunidad o espacios públicos?",null,null,null,"Las acciones consideran la prevención atención sanción y erradicación de la violencia",{"$f":"IF(G65=\"No se han desarrollado acciones\",0,IF(G65=\"Las acciones abordan solo alguno(s) de los aspectos enunciados (prevención atención sanción y erradicación de la violencia)\",4,IF(G65=\"Las acciones consideran la prevención atención sanción y erradicación de la violencia\",6,\"\")))","v":6}]
[null,"3.1.1.3","¿La organización o proyecto cuenta con evidencia de su contribución a la reducción de la violencia contra niñas, niños, adolescentes y mujeres; o bien, ha documentado y difundido casos de éxito sobre la resolución de conflictos con la comunidad o sobre el desarrollo de espacios de paz y no violencia de forma participativa?",null,null,null,"La información es pública",{"$f":"IF(G66=\"No existe evidencia o no se comunica\",0,IF(G66=\"La comunicación de la evidencia es parcial dentro de la organización\",2,IF(G66=\"La evidencia es de conocimiento de toda la organización\",4,IF(G66=\"La información es pública\",6,\"\"))))","v":6}]
[null,null,null,null,null,null,null,{"$f":"SUM(H64:H66)","v":18}]
[]
["3.2.1","Vinculación con empresas locales propiedad o con participación de mujeres","¿Existen políticas, procesos o mecanismos de adquisición de productos y servicios que incentiven la contratación de empresas locales propiedad o con alta participación de mujeres?",null,null,null,"Sí y es de conocimiento de toda la organización",{"$f":"IF(G69=\"No existen políticas o procesos o mecanismos o no se comunican\",0,IF(G69=\"La comunicación es parcial dentro de la organización\",2,IF(G69=\"Sí y es de conocimiento de toda la organización\",4,IF(G69=\"La información es pública\",6,\"\"))))","v":4},{"$f":"IF(OR(G69=\"Seleccione\",G70=\"Seleccione\",G71=\"Seleccione\"),\"Por favor completa las preguntas de este apartado del Índice\",IF(H72<8,\"Es necesario incrementar la ambición en alguno de los ejes evaluados para que el proyecto esté alineado al Índice de Igualdad de Género de la Taxonomía Sostenible de México\",\"El proyecto cuenta con la ambición necesaria para cerrar las brechas de género conforme al Índice de Igualdad de Género de la Taxonomía Sostenible de México\"))","v":"El proyecto cuenta con la ambición necesaria para cerrar las brechas de género conforme al Índice de Igualdad de Género de la Taxonomía Sostenible de México"}]
[null,"3.2.1.2","¿Se presenta evidencia de alianzas comerciales y de contratos recurrentes o multianuales con empresas locales con propiedad o participación importante de mujeres?",null,null,null,"Se presenta evidencia completa de una relación comercial recurrente",{"$f":"IF(G70=\"No se han desarrollado alianzas comerciales o contratos\",0,IF(G70=\"Se presenta evidencia de esfuerzos para establecer alianzas comerciales pero que aún no se formalizan\",4,IF(G70=\"Se presenta evidencia completa de una relación comercial recurrente\",6,\"\")))","v":6}]
[null,"3.2.1.3","¿Existe evidencia de que se contribuye al fortalecimiento del liderazgo de empresas locales encabezadas por mujeres o al desarrollo de la estrategia de sostenibilidad de empresas locales (por ejemplo, en el acceso a financiamiento, en la adopción de tecnología sostenible, etc.) propiedad o con participación de mujeres, más allá de la compra de bienes y servicios?",null,null,null,"No existe evidencia o no se comunica",{"$f":"IF(G71=\"No existe evidencia o no se comunica\",0,IF(G71=\"La comunicación de la evidencia es parcial dentro de la organización\",2,IF(G71=\"La evidencia es de conocimiento de toda la organización\",4,IF(G71=\"La información es pública\",6,\"\"))))","v":0}]
[null,null,null,null,null,null,null,{"$f":"SUM(H69:H71)","v":10}]
[]
["3.3.1","Involucramiento de organizaciones y redes comunitarias que representen los intereses de las mujeres","¿Existe una política para fomentar la participación de las comunidades, bajo el marco del consentimiento libre, previo e informado, para la realización del proyecto o actividad económica, o bien en la planeación y gestión participativa de este, que contribuya a la preservación del territorio; al bienestar de ellas y su comunidad; al cuidado del medio ambiente o a una transición justa?",null,null,null,"No existen políticas o procesos o mecanismos o no se comunican",{"$f":"IF(G74=\"No existen políticas o procesos o mecanismos o no se comunican\",0,IF(G74=\"La comunicación es parcial dentro de la organización\",2,IF(G74=\"Sí y es de conocimiento de toda la organización\",4,IF(G74=\"La información es pública\",6,\"\"))))","v":0},{"$f":"IF(OR(G74=\"Seleccione\",G75=\"Seleccione\",G76=\"Seleccione\"),\"Por favor completa las preguntas de este apartado del Índice\",IF(H77<8,\"Es necesario incrementar la ambición en alguno de los ejes evaluados para que el proyecto esté alineado al Índice de Igualdad de Género de la Taxonomía Sostenible de México\",\"El proyecto cuenta con la ambición necesaria para cerrar las brechas de género conforme al Índice de Igualdad de Género de la Taxonomía Sostenible de México\"))","v":"Es necesario incrementar la ambición en alguno de los ejes evaluados para que el proyecto esté alineado al Índice de Igualdad de Género de la Taxonomía Sostenible de México"}]
[null,"3.3.1.2","¿Las acciones de involucramiento y consulta consideraron una perspectiva de género en su implementación para asegurar una participación en igualdad de condiciones de las mujeres (horarios adecuados, dinámicas para promover la participación, facilidades para el cuidado de infantes, un lugar de fácil acceso para ellas) y cuentan con un mecanismo de monitoreo que dé seguimiento a la incorporación de las opiniones de las mujeres?",null,null,null,"No se han desarrollado acciones",{"$f":"IF(G75=\"No se han desarrollado acciones\",0,IF(G75=\"Las acciones abordan parcialmente los aspectos requeridos por la pregunta\",4,IF(G75=\"Las acciones consideran una perspectiva de género e incluyen un mecanismo de monitoreo\",6,\"\")))","v":0}]
[null,"3.3.1.3","¿Existe evidencia de que la actividad económica o proyecto contribuye a la formación o fortalecimiento de alianzas entre mujeres y de organizaciones que trabajen por sus derechos, la igualdad de género, la conservación del territorio o del medio ambiente, y una transición justa?",null,null,null,"No existe evidencia o no se comunica",{"$f":"IF(G76=\"No existe evidencia o no se comunica\",0,IF(G76=\"La comunicación de la evidencia es parcial dentro de la organización\",2,IF(G76=\"La evidencia es de conocimiento de toda la organización\",4,IF(G76=\"La información es pública\",6,\"\"))))","v":0}]
[null,null,null,null,null,null,null,{"$f":"SUM(H74:H76)","v":0}]
[null,null,"Resumen:","Puntaje obtenido en cada pilar","Alineación"]
[null,null,"Resultados pilar 1: Trabajo digo",{"$f":"SUM(H11,H17,H22,H27,H32,H37,H42,H47)","v":41},{"$f":"IF(D79<24,\"Es necesario incrementar la ambición en el pilar 1 de trabajo digno\",\"El proyecto contribuye al cierre de brechas de género, conforme a la Taxonomía Sostenible de México\")","v":"El proyecto contribuye al cierre de brechas de género, conforme a la Taxonomía Sostenible de México"}]
[null,null,"Resultados pilar 2: Bienestar",{"$f":"SUM(H52,H57,H62)","v":54},{"$f":"IF(D80<24,\"Es necesario incrementar la ambición en el pilar 2 de bienestar\",\"El proyecto contribuye al cierre de brechas de género, conforme a la Taxonomía Sostenible de México\")","v":"El proyecto contribuye al cierre de brechas de género, conforme a la Taxonomía Sostenible de México"}]
[null,null,"Resultados pilar 3: Inclusión social",{"$f":"SUM(H77,H72,H67)","v":28},{"$f":"IF(D81<24,\"Es necesario incrementar la ambición en el pilar 3 de inclusión social\",\"El proyecto contribuye al cierre de brechas de género, conforme a la Taxonomía Sostenible de México\")","v":"El proyecto contribuye al cierre de brechas de género, conforme a la Taxonomía Sostenible de México"}]
[null,null,"Total",{"$f":"SUM(D79:D81)","v":123},{"$f":"IF((COUNTIF(G8:G76,\"Seleccione\"))>1,\"Por definir\",IF(AND(E79=\"El proyecto contribuye al cierre de brechas de género, conforme a la Taxonomía Sostenible de México\",E80=\"El proyecto contribuye al cierre de brechas de género, conforme a la Taxonomía Sostenible de México\",E81=\"El proyecto contribuye al cierre de brechas de género, conforme a la Taxonomía Sostenible de México\",D82>=72),\"Sí cumple con el índice de igualdad de género\",\"No cumple con el índice de igualdad de género\"))","v":"Sí cumple con el índice de igualdad de género"}]

{"sheet":"Ganadería-NDS","index":17,"n_rows":59,"n_cols":8,"rows_kept":59,"cut":false,"hidden":true,"merged":[[32,7,35,7],[49,7,51,7],[54,7,56,7],[8,7,15,7],[16,7,17,7],[26,7,27,7],[38,7,43,7],[45,7,46,7],[48,0,48,2],[49,0,49,5],[50,0,50,5],[51,0,51,5],[58,0,58,5],[53,0,53,5],[54,0,54,5],[55,0,55,5],[56,0,56,5],[57,0,57,5],[32,0,32,5],[33,0,33,5],[35,0,35,5],[46,0,46,5],[34,0,34,5],[21,0,21,5],[22,0,22,5],[23,0,23,5],[45,0,45,5],[28,0,28,5],[29,0,29,5],[30,0,30,5],[31,0,31,5],[37,0,37,2],[39,0,39,5],[40,0,40,5],[41,0,41,5],[42,0,42,5],[43,0,43,5],[44,0,44,5],[38,0,38,5],[27,0,27,5],[16,0,16,5],[17,0,17,5],[26,0,26,5],[1,0,1,6],[15,0,15,5],[3,0,3,6],[5,0,5,6],[8,0,8,5],[9,0,9,5],[10,0,10,5],[11,0,11,5],[12,0,12,5],[13,0,13,5],[14,0,14,5],[18,0,18,5]]}
[]
["Evaluación de No Daño Significativo de actividades del sector de cría y explotación de animales"]
[]
["El principio de No Daño Significativo (NDS) se compone de una serie de criterios medioambientales que permiten asegurar que una actividad económica, con contribución sustancial, no tenga efectos negativos en ninguno de los otros objetivos de la Taxonomía, distintos al parámetro principal. De esta manera, se asegura que el progreso en algunos objetivos no se haga a expensas de otros objetivos medioambientales. Los criterios de NDS se enfocan en 5 ejes principales: Agua, Adaptación, Biodiversidad, Prevención y Control de la Contaminación y, Economía Circular. Para contar con más detalle, por favor consulta el documento de la Taxonomía Sostenible de México"]
[]
["Asegúrate de responder todas las preguntas. En este apartado aparecerán solo los criterios de No Daño Significativo relacionados a las actividades que se establecieron anteriormente. Al final, se evaluará el porcentaje de criterios de No Daño Significativo que se cumplan. Por favor responde si la actividad cumple con los siguientes criterios."]
[]
["Agua"]
["¿La operación financiera y/o proyecto favorece la conservación de la calidad y/o cantidad de agua a través de la protección de cuerpos de agua, cauces de agua y manantiales mediante reforestación-revegetación y cercado?",null,null,null,null,null,"Seleccione","Incluir en la MIA. Se deberán explicar las medidas de mitigación para disminuir los posibles impactos negativos de la obra. Considerar, además de las medidas seleccionadas a partir del análisis, aquellas detalladas en el NDS y justificar en caso de no relizar su inclusión. "]
["¿La operación financiera y/o proyecto favorece la conservación de la calidad y/o cantidad de agua a través de los planes de manejo del uso/conservación del agua, gestión integrada de los recursos hídricos?",null,null,null,null,null,"Seleccione"]
["¿La operación financiera y/o proyecto favorece la conservación de la calidad y/o cantidad de agua a través de obras de almacenamiento y captación de agua (p. ej. bordos, represas, aljibes, ollas de agua)?",null,null,null,null,null,"Seleccione"]
["¿La operación financiera y/o proyecto favorece la conservación de la calidad y/o cantidad de agua a través del tratamiento y reutilización de aguas residuales?",null,null,null,null,null,"Seleccione"]
["El proyecto favorece la conservación de la calidad y/o cantidad de agua a través del uso de bebederos, ollas de agua y líneas de conducción de agua a los potreros, para evitar que el ganado tome agua directamente de su fuente natural.",null,null,null,null,null,"Seleccione"]
["¿La operación financiera y/o proyecto favorece la conservación de la calidad y/o cantidad de agua a través del establecimiento de potreros a menos de 5 m de la ribera?",null,null,null,null,null,"Seleccione"]
["¿La operación financiera y/o proyecto favorece la conservación de la calidad y/o cantidad de agua a través de planes de manejo preventivo ante posibles sequías o estrés hídrico?",null,null,null,null,null,"Seleccione"]
["¿La operación financiera y/o proyecto favorece  la conservación de la calidad y/o cantidad de agua a través de cosecha de agua con sistemas de captación de agua de lluvia?",null,null,null,null,null,"Seleccione"]
["¿La operación financiera y/o proyecto favorece la conservación de la calidad y/o cantidad de agua a través la identificación de la disponibilidad de agua y los riesgos de contaminación de agua, tanto de aguas superficiales como los acuíferos, y en particular las fuentes de agua utilizadas para consumo humano, en la cuenca hidrológica y en la región hidrológica de que se trate?",null,null,null,null,null,"Seleccione","Incluir en la MIA. Señalar en los apartados de análsis del medio en el cual se desarrollará la actividad económica y en el análisis de immpactos sobre el recurso hídrico. "]
["¿La operación financiera y/o proyecto favorece la conservación de la calidad y/o cantidad de agua mediante el uso de índices de evaluación del daño no significativo, tales como la huella hídrica?",null,null,null,null,null,"Seleccione"]
["¿La operación financiera y/o proyecto cumple con la legislación mexicana sobre uso y reúso en materia de agua: Ley de Aguas Nacionales. Título de concesión expedido por CONAGUA? Aplica en pozos profundos, no es común en caso de ríos y canales, Programa Nacional Hídrico 2020-2024, así como con las estrategias y planes de gestión hídrica estatales y municipales, y atender las recomendaciones de los Consejos de Cuenca por cuenca hidrológica o por región hidrológica, NOM-001-SEMARNAT-2021, que establece los límites permisibles de contaminantes en las descargas de aguas residuales en cuerpos receptores propiedad de la nación.",null,null,null,null,null,"Seleccione","Presentar certificado de cumplimiento de la NOM-001-SEMARNAT-2021 "]
[]
["Adaptación"]
["¿La operación financiera y/o proyecto favorece la conservación, recuperación y/o mejoramiento de los ecosistemas y sistemas de producción, buscando reducir su sensibilidad o mejorar su resiliencia y la capacidad de adaptación a los desastres relacionados con cambio climático y potenciar sus servicios de regulación climática, a partir de Barreras vivas, estabulación o alimentación en corral en periodos críticos, así como la protección de humedales y bosques a partir de regular la concentración animal, sistemas ganaderos capaces de adaptarse a un clima cambiante, Llevar a cabo acciones de captación de agua de lluvia, Evitar la erosión del suelo y/o contribuir a la restauración de los ecosistemas?",null,null,null,null,null,"Seleccione","Incluir en la MIA. Se puede elaborar un apartado en las medidas de prevención, mitigación y adaptación consideranto las fichas de recopilación sistematizada para IACC, la ENCC, Visión 10-20-40 y la Metodología para la Priorización de Medidas de Adaptación frente al Cambio Climático (SEMARNAT-GIZ, 2015)*. Se pueden emplear los enfoques AbC, AbE y AbRRD para la Ganadería incluyendo las acciones mencionadas."]
["¿En el contexto del proyecto se desarrollan y difunden protocolos y programas de capacitación sobre cambio climático?",null,null,null,null,null,"Seleccione","Describir los planes y protocolos desarrollados o empleados dentro de las actividades de prevención, mitigaciónn y adaptación dentro de la MIA."]
["¿La operación financiera y/o proyecto se demuestra la evaluación de la dimensión de las alteraciones e impactos que podrían afectar en los en municipios vulnerables al cambio climático. Se deberá revisar de forma enunciativa, más no limitativa del Atlas Nacional de Vulnerabilidad y Atlas Nacional de Riesgos?",null,null,null,null,null,"Seleccione","Incluir análisis dentro de la MIA "]
[null,null,null,null,null,null,"Seleccione"]
["Biodiversidad",null,null,null,null,null,"Seleccione"]
["¿La operación financiera y/o proyecto reduce el número de prácticas que afecten los procesos, funciones y la biodiversidad de los ecosistemas (p. ej. quema, tala, sobrepastoreo, ganadería en zonas con pendientes mayores a 20°) así como los impactos negativos que deriven de ellas?",null,null,null,null,null,"Seleccione","Incluir en la MIA. Tomar en cuenta además, evidencia del Programa de Rescate de Flora y Fauna instrumentado previamente a las actividades de despalme, desmonte y/o remoción. "]
["¿En el contexto de la operación financiera y/o proyecto se fortalecen prácticas que permitan el uso sustentable de nutrientes y el control biológico de plagas, enfermedades o parásitos, promoviendo el desarrollo de organismos deseables que actúan como depredadores naturales, descomponedores, y parasitoides?",null,null,null,null,null,"Seleccione"]
["¿La operación financiera y/o proyecto contribuye a la conservación de especies nativas?",null,null,null,null,null,"Sí","Incluir en la MIA. La MIA contempla presentar un programa de protección para especies que se distribuyen en el sitio del proyecto con alguna categoría de protección. "]
["¿En el contexto del proyecto se detiene la expansión de los bosques para la producción de piensos y pastos?",null,null,null,null,null,"Sí","Incluir en la MIA. Medidas de prevención y mitigación de los impactos. "]
["¿La operación financiera y/o proyecto usa un inventario de especies indicadoras del estado de salud de los ecosistemas?",null,null,null,null,null,"Seleccione","Se considera la elaboración de un inventario en la MIA."]
["¿En el contexto de la operación financiera y/o proyecto se llevan a cabo las prácticas establecidas en la Estrategia Nacional para la conservación y aprovechamiento sustentable de polinizadores (ENCUSP), respecto al fomento a la producción Sustentable y Amigable con la Biodiversidad?",null,null,null,null,null,"Seleccione","Solicitar que la MIA incluya la vinculación o alineación con la ENCUSP"]
["¿La operación financiera y/o proyecto fomenta el aumento de la superficie de áreas naturales protegidas y otras medidas de conservación efectivas basadas en áreas?",null,null,null,null,null,"Seleccione","Describir el desarrollo de estas acciones dentro de la MIA"]
["¿La operación financiera y/o proyecto previene la introducción de especies exóticas y asegurar su efectivo manejo, control y erradicación?",null,null,null,null,null,"Seleccione"]
["¿En el contexto del proyecto se controla el uso de agroquímicos, evitando su uso no sustentable?",null,null,null,null,null,"Seleccione"]
["¿En la operación financiera y/o proyecto se favorece actividades de conservación de la vegetación nativa y su restauración y la recuperación de la conectividad ecológica?",null,null,null,null,null,"Seleccione"]
[]
["Prevención y control de la contaminación","Prevenir la degradación física: erosión y compactación del suelo."]
["¿En el contexto de la operación financiera y/o proyecto se previene la degradación física: erosión y compactación del suelo?",null,null,null,null,null,"Seleccione","Incluir en la MIA. Detallar estas acciones como parte de las medidas de prevención y mitigación para reducir los impactos en el suelo, considerar la presentación de un Programa de Conservación del Suelo.  "]
["¿La operación financiera y/o proyecto fomenta la implementación de estructuras para la conservación de suelo (p. ej. curvas o bordos a nivel, terrazas, surcado a contorno, represas, zanjas, etc.)?",null,null,null,null,null,"Seleccione"]
["¿La operación financiera y/o proyecto se maneja la escorrentía en periodos de altas precipitaciones (p. ej. barreras vivas usando agaves, cactáceas u otras especies vegetales leñosas con sistema radicular profundo y extenso o que crezcan naturalmente en esas condiciones)?",null,null,null,null,null,"Seleccione"]
["¿En la operación financiera y/o proyecto se reduce la deposición de sedimentos en cuerpos de agua por erosión del suelo?",null,null,null,null,null,"Seleccione"]
["¿En la operación financiera y/o proyecto se llevan a cabo prácticas sustentables (p. ej. rotación de cultivos, cero o mínima labranza, cultivos en franjas, abonos verdes, cultivos de cobertera, tratamiento del estiércol, etc.)?",null,null,null,null,null,"Seleccione"]
["¿En el proyecto se impide la degradación química: salinización, acidificación/alcalinización y contaminación del suelo?",null,null,null,null,null,"Seleccione"]
["¿La operación financiera y/o proyecto se utilizan fertilizantes tratando de reducir la pérdida del exceso de nutrientes por lixiviación, volatilización u oxidación y que los agroquímicos se apliquen de forma racional y selectiva (en el tiempo y en la superficie tratada); pero dar preferencia a los métodos biológicos, físicos u otros métodos no químicos sostenibles, si es posible?",null,null,null,null,null,"Seleccione","NOM-182-SSA1-2010: Esta norma se refiere al etiquetado de nutrientes vegetales. Establece los requisitos para el etiquetado de los nutrientes vegetales, incluyendo la indicación de la función del nutriente (por ejemplo, fertilizante orgánico, fertilizante inorgánico, mejorador de suelo orgánico).\n\nNOM-077-FITO-2000: Esta norma establece los requisitos y especificaciones para la realización de estudios de efectividad biológica de los insumos de nutrición vegetal."]
["¿En el contexto del proyecto se evita la degradación biológica: pérdida de materia orgánica, desequilibrio de la actividad biológica y procesos de mineralización (p. ej. evitar suelos desnudos, labranza)?",null,null,null,null,null,"Seleccione","Incluir en la MIA. Detallar estas acciones como parte de las medidas de prevención y mitigación para reducir los impactos negativos de la actividad."]
["¿En el contexto de la operación financiera y/o proyecto se reducen emisiones por uso del fuego y/o quema de recipientes de insumos?",null,null,null,null,null,"Sí"]
[]
["Economía circular",null,null,null,null,null,"Seleccione"]
["¿En la operación financiera y/o proyectose favorecen acciones y prácticas que disminuyan los efectos de las actividades desarrolladas en las cadenas productivas y de valor sobre el medio ambiente, a través del uso de residuos y subproductos y cualquier otra medida para minimizar el uso de materias primas primarias por unidad de producción, incluida la energía?",null,null,null,null,null,"Seleccione","Incluir en la MIA. Mencionar acciones dentro de las medidas de prevención y mitigación para disminuir o mitigar impactos negativos en el ambiente.  "]
["¿La operación financiera y/o proyecto se minimiza la pérdida de nutrientes del sistema de producción en el medio ambiente. El desarrollo de mercados locales y regionales fomenta el consumo y disminuye impactos por uso de energía para traslado y reparto de productos?",null,null,null,null,null,"Seleccione"]
["¿Dentro de la operación financiera y/o proyecto se hace un uso eficiente el uso de materiales y recursos naturales, como las fuentes de energía no renovables, las materias primas, el agua o el suelo en una o varias fases del ciclo de vida de los productos, en particular en términos de durabilidad y de posibilidades de reparación, actualización, reutilización o reciclado de los productos, minimiza la generación de residuos y realiza un adecuado manejo de ellos?",null,null,null,null,null,"Sí"]
[]
["Mitigación",null,null,null,null,null,"Seleccione"]
["Para el cumplimiento de este criterio, la operación financiera y/o proyecto no debe afectar la habilidad presente y futura de los bosques y tierras de cultivo que sirven como sumideros de carbono. ¿Esto se cumple en el contexto de la operación financiera y/o proyecto?",null,null,null,null,null,"Seleccione","Señalar en la MIA. Vinculación con la LGDFS y medidas de prevención y mitigación realizadas conforme a lo mencionado a través del análisis correspondiente en el estudio de impacto. "]
["Para el cumplimiento de este criterio, la operación financiera y/o proyecto no debe disminuir los niveles de reservas y sumideros de carbono en los bosques en el largo plazo. Evitar la quema de precosecha y de residuos agrícolas. ¿Esto se cumple en el contexto de la operación financiera y/o proyecto?",null,null,null,null,null,"Seleccione"]
["Para el cumplimiento de este criterio, la operación financiera y/o proyecto no debe propiciar el cambio de uso, degradación y pérdida de suelo, de acuerdo con lo establecido en la Ley General de Desarrollo Forestal Sustentable. ¿Esto se cumple en el contexto de la operación financiera y/o proyecto?",null,null,null,null,null,"Seleccione"]
["¿La operación financiera y/o proyecto utiliza productos para el control de plagas y enfermedades autorizados por la COFEPRIS, y prioriza el uso de plaguicidas biológicos o insecticidas orgánicos?",null,null,null,null,null,"Seleccione","Incluir en la MIA. Señalar la concordancia con los productos señalados por la COFEPRIS y la priorización dentro de medidas de prevención y mitigación. "]
["¿La operación financiera y/o proyecto realiza un manejo adecuado de residuos agrícolas y pecuarios, en concordancia con lo establecido en la NOM-161-SEMARNAT-2011?",null,null,null,null,null,"Sí","Presentar certificado de cumplimiento de la NOM-161-SEMARNAT-2011."]

{"sheet":"Energía","index":18,"n_rows":50,"n_cols":6,"rows_kept":50,"cut":false,"hidden":true,"merged":[[3,0,3,7],[47,5,47,7],[49,0,49,8],[1,0,1,7]]}
[]
["Actividades del sector de generación, distribución y transmisión de energía"]
[]
["Dentro de la categoría de generación, distribución y transmisión de energía de la Taxonomía Sostenible de México se consideran 11 actividades. En este apartado es necesario seleccionar, de esas 11 actividades, las que estarán siendo financiadas en las presentes operaciones financieras y/o proyectos. En esta versión del Excel, es posible evaluar hasta 20 actividades que se establecen en las cajas de abajo. Recuerda establecer los montos en la casilla amarilla (con número MXN) y elegir las actividades en la lista desplegable azul. Si es necesario incluir más de una actividad, da click en el botón de \"Añade una nueva actividad\". En caso de que la actividad que deseas evaluar no se encuentre en la lista, significa que no está considerada en este momento por la Taxonomía Sostenible de México. En este caso, puedes  mandar un correo a taxonomia_sost@hacienda.gob.mx para conocer más al respecto. "]
["Objetivos que deberás considerar:",{"$f":"IF('Base-datos'!$C$705=TRUE,\"Mitigación\",\"\")","v":""},{"$f":"IF('Base-datos'!$C$706=TRUE,\"Adaptación\",\"\")","v":""},{"$f":"IF('Base-datos'!$C$707=TRUE,\"Género\",\"\")","v":""}]
[]
[]
["Definición de actividades"]
[null,"Cantidad de recursos ↓","Actividad en la que se colocarán los recursos ↓","Alineación a un objetivo","Tipo de recurso evaluado ↓","Da click para añadir más actividades ↓"]
["Establece por favor en la casilla amarilla la cantidad de recursos que serán destinados a la actividad que selecciones en la casilla azul ",null,"Seleccione","Seleccione","Seleccione"]
[]
["Establece por favor en la casilla amarilla la cantidad de recursos que serán destinados a la actividad que selecciones en la casilla azul ",null,"Seleccione","Seleccione","Seleccione"]
[]
["Establece por favor en la casilla amarilla la cantidad de recursos que serán destinados a la actividad que selecciones en la casilla azul ",null,"Seleccione","Seleccione","Seleccione"]
[]
["Establece por favor en la casilla amarilla la cantidad de recursos que serán destinados a la actividad que selecciones en la casilla azul ",null,"Seleccione","Seleccione","Seleccione"]
[]
["Establece por favor en la casilla amarilla la cantidad de recursos que serán destinados a la actividad que selecciones en la casilla azul ",null,"Seleccione","Seleccione","Seleccione"]
[]
["Establece por favor en la casilla amarilla la cantidad de recursos que serán destinados a la actividad que selecciones en la casilla azul ",null,"Seleccione","Seleccione","Seleccione"]
[]
["Establece por favor en la casilla amarilla la cantidad de recursos que serán destinados a la actividad que selecciones en la casilla azul ",null,"Seleccione","Seleccione","Seleccione"]
[]
["Establece por favor en la casilla amarilla la cantidad de recursos que serán destinados a la actividad que selecciones en la casilla azul ",null,"Seleccione","Seleccione","Seleccione"]
[]
["Establece por favor en la casilla amarilla la cantidad de recursos que serán destinados a la actividad que selecciones en la casilla azul ",null,"Seleccione","Seleccione","Seleccione"]
[]
["Establece por favor en la casilla amarilla la cantidad de recursos que serán destinados a la actividad que selecciones en la casilla azul ",null,"Seleccione","Seleccione","Seleccione"]
[]
["Establece por favor en la casilla amarilla la cantidad de recursos que serán destinados a la actividad que selecciones en la casilla azul ",null,"Seleccione","Seleccione","Seleccione"]
[]
["Establece por favor en la casilla amarilla la cantidad de recursos que serán destinados a la actividad que selecciones en la casilla azul ",null,"Seleccione","Seleccione","Seleccione"]
[]
["Establece por favor en la casilla amarilla la cantidad de recursos que serán destinados a la actividad que selecciones en la casilla azul ",null,"Seleccione","Seleccione","Seleccione"]
[]
["Establece por favor en la casilla amarilla la cantidad de recursos que serán destinados a la actividad que selecciones en la casilla azul ",null,"Seleccione","Seleccione","Seleccione"]
[]
["Establece por favor en la casilla amarilla la cantidad de recursos que serán destinados a la actividad que selecciones en la casilla azul ",null,"Seleccione","Seleccione","Seleccione"]
[]
["Establece por favor en la casilla amarilla la cantidad de recursos que serán destinados a la actividad que selecciones en la casilla azul ",null,"Seleccione","Seleccione","Seleccione"]
[]
["Establece por favor en la casilla amarilla la cantidad de recursos que serán destinados a la actividad que selecciones en la casilla azul ",null,"Seleccione","Seleccione","Seleccione"]
[]
["Establece por favor en la casilla amarilla la cantidad de recursos que serán destinados a la actividad que selecciones en la casilla azul ",null,"Seleccione","Seleccione","Seleccione"]
[]
["Establece por favor en la casilla amarilla la cantidad de recursos que serán destinados a la actividad que selecciones en la casilla azul ",null,"Seleccione","Seleccione","Seleccione"]
[]
["Establece por favor en la casilla amarilla la cantidad de recursos que serán destinados a la actividad que selecciones en la casilla azul ",null,"Seleccione","Seleccione","Seleccione","Por el momento, solo es posible evaluar 20 actividades. Si tu proyecto involucra más actividades, por favor escribe un corrreo a taxonomia_sost@hacienda.gob.mx"]
[]
["Al haber concluido el llenado de las actividades y los tipos de recursos que estarás evaluando, por favor da click en el siguiente botón para evaluar la contribución sustancial de las actividades"]

{"sheet":"Mitigación-Energía","index":19,"n_rows":51,"n_cols":6,"rows_kept":51,"cut":false,"hidden":true,"merged":[[45,5,48,5],[46,0,46,2],[47,0,47,2],[48,0,48,2],[49,0,49,4],[50,0,50,4],[21,0,21,4],[24,0,24,4],[25,0,25,2],[27,0,27,4],[18,0,18,4],[45,0,45,2],[30,0,30,4],[31,0,31,4],[36,0,36,4],[37,0,37,2],[38,0,38,2],[39,0,39,2],[40,0,40,2],[42,0,42,4],[41,0,41,4],[33,0,33,4],[34,0,34,2],[37,5,40,5],[9,0,9,4],[3,0,3,6],[1,0,1,6],[6,0,6,2],[7,0,7,2],[8,0,8,2],[5,0,5,4],[6,5,8,5],[28,0,28,2],[13,0,13,4],[16,0,16,4],[12,0,12,4],[15,0,15,4],[19,0,19,4],[22,0,22,2]]}
[]
["Mitigación al cambio climático de actividades de Generación, Distribución y Transmisión de Energía"]
[]
["La Taxonomía Sostenible de México contiene métricas y umbrales que evalúan la contribución sustancial de cada una de las actividades económicas para determinar si dichas actividades contribuyen sustancialmente a la sostenibilidad. Las métricas corresponden a las unidades en las que se evalúan los umbrales. Por otro lado, los umbrales son los niveles mínimos que tienen que cumplir cada una de las actividades para argumentar que cuentan con contribución sustancial."]
[]
["221112. Generación de electricidad a partir de energía hidráulica"]
["El proyecto involucra que la actividad principal tiene una potencia por unidad de área mayor a 5 W/m2 o menor o igual a 100 gCO2e/Kwh",null,null,"Seleccione",{"$f":"IF(D7=\"Seleccione\",\"Por definir\",IF(D7=\"Sí\",\"La actividad es directamente elegible como actividad con contribución sustancial a la sostenibilidad y no deberá presentar un análisis de ciclo de vida o huella de carbono\",IF(D7=\"No\",\"Demostrar que el ciclo de vida de la energía producida es menor a 100gCO2e/kWh\",\"Asignar una respuesta en las preguntas posteriores\")))","v":"Por definir"},"Al menos una de las tres consideraciones debe ser positiva para que el proyecto genere contribución sustancial a la sostenibilidad"]
["También son elegibles las instalaciones de almacenamiento por bombeo. Para dicha actividad ¿El proyecto presenta una potencia por unidad de área mayor a 5W/m2 o menor o igual a 100 gCO2e/Kwh?",null,null,"Seleccione",{"$f":"IF(D8=\"Seleccione\",\"Por definir\",IF(D8=\"Sí\",\"La actividad es directamente elegible como actividad con contribución sustancial a la sostenibilidad y no deberá presentar un análisis de ciclo de vida o huella de carbono\",IF(D8=\"No\",\"Demostrar que el ciclo de vida de la energía producida es menor a 100gCO2e/kWh\",\"Asignar una respuesta a alguna de las preguntas posteriores\")))","v":"Por definir"}]
["También son elegibles las instalaciones de energía hidráulica a filo de agua. Si este es el caso del proyecto, ¿se cumple con la legislación local?",null,null,"Seleccione",{"$f":"IF(D9=\"Seleccione\",\"Por definir\",IF(D9=\"Sí\",\"La actividad es directamente elegible como actividad con contribución sustancial a la sostenibilidad y no deberá presentar un análisis de ciclo de vida o huella de carbono\",IF(D9=\"No\",\"Demostrar que el ciclo de vida de la energía producida es menor a 100gCO2e/kWh\",\"Responder alguna de las preguntas de arriba\")))","v":"Por definir"}]
[{"$f":"IF(OR(D7=\"Seleccione\",D8=\"Seleccione\",D9=\"Seleccione\"),\"Por definir\",IF(OR(D7=\"No\",D8=\"No\",D9=\"No\"),\"La actividad no genera contribución sustancial\",IF(AND(D7=\"La actividad no genera energía \",D8=\"La actividad no es de almacenamiento por bombeo\",D9=\"La actividad no es de energía hidráulica al filo de agua\"),\"La actividad no está consideranda dentro de la Taxonomía Sostenible de México\",\"La actividad sí contribuye sustancialmente a la sostenibilidad\")))","v":"Por definir"},null,null,null,null,"Herramientas para el cálculo de emisiones de gases de efecto invernadero"]
[]
[]
["221113. Generación de electricidad a partir de energía solar (sistemas fotovoltaicos) "]
["La actividad es directamente elegible como actividad con contribución sustancial a la sostenibilidad y no deberá presentar un análisis de ciclo de vida o huella de carbono. En caso necesario, se llevará a cabo una revisión periódica de acuerdo con el umbral ≤ 100 g de CO2e/kWh.",null,null,null,null,"Herramientas para el cálculo de emisiones de gases de efecto invernadero"]
[]
["221113. Generación de electricidad a partir de energía solar (concentradores solares)"]
["La actividad es directamente elegible como actividad con contribución sustancial a la sostenibilidad y no deberá presentar un análisis de ciclo de vida o huella de carbono. En caso necesario, se llevará a cabo una revisión periódica de acuerdo con el umbral ≤ 100 g de CO2e/kWh.",null,null,null,null,"Herramientas para el cálculo de emisiones de gases de efecto invernadero"]
[]
["221114. Generación de electricidad a partir de energía eólica"]
["La actividad es directamente elegible como actividad con contribución sustancial a la sostenibilidad y no deberá presentar un análisis de ciclo de vida o huella de carbono. En caso necesario, se llevará a cabo una revisión periódica de acuerdo con el umbral ≤ 100 g de CO2e/kWh.",null,null,null,null,"Herramientas para el cálculo de emisiones de gases de efecto invernadero"]
[]
["221119. Generación de electricidad a partir de otro tipo de energía (energía geotérmica)"]
["Este tipo de proyectos deben contar con un análisis de ciclo de vida ¿El  estudio de ciclo de vida demuestra que las emisiones de GEI son inferiores a 100 gCO2e/kWh?",null,null,"Seleccione",{"$f":"IF(D23=\"Seleccione\",\"Por definir\",IF(D23=\"Sí\",\"La actividad sí contribuye sustancialmente a la sostenibilidad\",\"La actividad no genera contribución sustancial\"))","v":"Por definir"},"Herramienta para el análisis de ciclo de vida"]
[]
["221119. Generación de electricidad a partir de otro tipo de energía (bioenergía)"]
["Este tipo de proyectos deben contar con un análisis de ciclo de vida ¿El  estudio de ciclo de vida demuestra que las emisiones de GEI son inferiores a 100 gCO2e/kWh?",null,null,"Seleccione",{"$f":"IF(D26=\"Seleccione\",\"Por definir\",IF(D26=\"Sí\",\"La actividad sí contribuye sustancialmente a la sostenibilidad\",\"La actividad no genera contribución sustancial\"))","v":"Por definir"},"Herramienta para el análisis de ciclo de vida"]
[]
["221119. Generación de electricidad a partir de otro tipo de energía (cogeneración a partir de biomasa)"]
["Este tipo de proyectos deben contar con un análisis de ciclo de vida ¿El  estudio de ciclo de vida demuestra que las emisiones de GEI son inferiores a 100 gCO2e/kWh?",null,null,"Seleccione",{"$f":"IF(D29=\"Seleccione\",\"Por definir\",IF(D29=\"Sí\",\"La actividad sí contribuye sustancialmente a la sostenibilidad\",\"La actividad no genera contribución sustancial\"))","v":"Por definir"},"Herramienta para el análisis de ciclo de vida"]
[]
["221119. Generación de electricidad a partir de otro tipo de energía (energía oceánica)"]
["La actividad es directamente elegible como sostenible y no deberá presentar un análisis de ciclo de vida o huella de carbono. En caso necesario, se llevará a cabo una revisión periódica de acuerdo con el umbral ≤ 100 g de CO2e/kWh.",null,null,null,null,"Herramientas para el cálculo de emisiones de gases de efecto invernadero"]
[]
["221119. Generación de electricidad a partir de otro tipo de energía (cogeneración eficiente)"]
["Este tipo de proyectos deben contar con un análisis de ciclo de vida ¿El  estudio de ciclo de vida demuestra que las emisiones de GEI son inferiores a 100 gCO2e/kWh?",null,null,"Seleccione",{"$f":"IF(D35=\"Seleccione\",\"Por definir\",IF(D35=\"Sí\",\"La actividad sí contribuye sustancialmente a la sostenibilidad\",\"La actividad no genera contribución sustancial\"))","v":"Por definir"},"Herramienta para el análisis de ciclo de vida"]
[]
["221121. Transmisión de energía eléctrica"]
["¿El proyecto reduce las pérdidas de energía en la transmisión en al menos un 20% comparado con la línea base en los sistemas de transmisión en cuestión?",null,null,"Seleccione",{"$f":"IF(D38=\"Seleccione\",\"Por definir\",IF(D38=\"Sí\",\"El primer umbral de cuatro se cumple, sin embargo, será necesario demostrar la reducción en las pérdidas a través de un cálculo elaborado por un consultor independiente o el inversionista \",\"Al no cumplir con este criterio, no es posible generar contribución sustancial\"))","v":"Por definir"},"Las cuatro opciones deben ser positivas para cumplir con la contribución sustancial a la sostenibilidad"]
["¿Más del 67% de la capacidad de generación recién conectada en el sistema está por debajo de 100 gCO2e/kWh (durante un período de cinco años) o el factor de emisión de la red es de menos de 100 gCO2e/kWh (durante un período promedio renovable de cinco años)?",null,null,"Seleccione",{"$f":"IF(D39=\"Seleccione\",\"Por definir\",IF(D39=\"Sí\",\"El segundo umbral de cuatro se cumple y la actividad se encuentra en una trayectoria de descarbonización total\",\"Al no cumplir con este criterio, no es posible generar contribución sustancial\"))","v":"Por definir"}]
["¿El subproyecto se refiere a la inversión en una línea de transmisión transfronteriza y, a largo plazo, no contribuye a aumentar el factor medio de emisión de carbono (gCO2 e/kWh) de los sistemas eléctricos afectados?",null,null,"Seleccione",{"$f":"IF(D40=\"Seleccione\",\"Por definir\",IF(D40=\"Sí\",\"El tercer umbral de cuatro se cumple\",\"Al no cumplir con este criterio, no es posible generar contribución sustancial\"))","v":"Por definir"}]
["Dentro del proyecto, se adquieren uno o varios equipos presentes en la siguiente lista:",null,null,"Seleccione",{"$f":"IF(D41=\"Seleccione\",\"Por definir\",IF(D41=\"Sí\",\"El cuarto umbral de cuatro se cumple\",\"Al no cumplir con este criterio, no es posible generar contribución sustancial\"))","v":"Por definir"}]
["     •Instalación de transformadores de distribución que cumplan con los requisitos de la NOM-002- SEDE/ENER-2014 de seguridad y eficiencia energética.\n     •Conexión directa de fuentes de energía renovables.\n     •Equipos cuyo objetivo principal es el aumento de la generación o el uso de la generación de electricidad renovable (conexión indirecta).\n     •Estaciones de recarga de vehículos e infraestructura eléctricos para el transporte público, incluidos los equipos de transmisión y distribución necesarios para el correcto funcionamiento de las estaciones de recarga.",null,null,null,null,"NOM-002-SEDE/ENER-2014"]
[{"$f":"IF(OR(D38,\"Seleccione\",D39=\"Seleccione\",D40=\"Seleccione\",D41=\"Seleccione\"),\"Por definir\",IF(COUNTIF(D38:D41,\"Sí\")=4,\"La actividad sí contribuye sustancialmente a la sostenibilidad\",\"La actividad no genera contribución sustancial\"))","v":"Por definir"}]
[]
["221122. Distribución de energía eléctrica"]
["¿El proyecto reduce las pérdidas de energía en la transmisión en al menos un 20% comparado con la línea base en los sistemas de transmisión en cuestión?",null,null,"Seleccione",{"$f":"IF(D46=\"Seleccione\",\"Por definir\",IF(D46=\"Sí\",\"El primer umbral de cuatro se cumple, sin embargo, será necesario demostrar la reducción en las pérdidas a través de un cálculo elaborado por un consultor independiente o el inversionista \",\"Al no cumplir con este criterio, no es posible generar contribución sustancial\"))","v":"Por definir"},"Las cuatro opciones deben ser positivas para cumplir con la contribución sustancial a la sostenibilidad"]
["¿Más del 67% de la capacidad de generación recién conectada en el sistema está por debajo de 100 gCO2e/kWh (durante un período de cinco años) o el factor de emisión de la red es de menos de 100 gCO2e/kWh (durante un período promedio renovable de cinco años)?",null,null,"Seleccione",{"$f":"IF(D47=\"Seleccione\",\"Por definir\",IF(D47=\"Sí\",\"El segundo umbral de cuatro se cumple y la actividad se encuentra en una trayectoria de descarbonización total\",\"Al no cumplir con este criterio, no es posible generar contribución sustancial\"))","v":"Por definir"}]
["¿El subproyecto se refiere a la inversión en una línea de transmisión transfronteriza y, a largo plazo, no contribuye a aumentar el factor medio de emisión de carbono (gCO2 e/kWh) de los sistemas eléctricos afectados?",null,null,"Seleccione",{"$f":"IF(D48=\"Seleccione\",\"Por definir\",IF(D48=\"Sí\",\"El tercer umbral de cuatro se cumple\",\"Al no cumplir con este criterio, no es posible generar contribución sustancial\"))","v":"Por definir"}]
["Dentro del proyecto, se adquieren uno o varios equipos presentes en la siguiente lista:",null,null,"Seleccione",{"$f":"IF(D49=\"Seleccione\",\"Por definir\",IF(D49=\"Sí\",\"El cuarto umbral de cuatro se cumple\",\"Al no cumplir con este criterio, no es posible generar contribución sustancial\"))","v":"Por definir"}]
["     •Instalación de transformadores de distribución que cumplan con los requisitos de la NOM-002- SEDE/ENER-2014 de seguridad y eficiencia energética.\n     •Conexión directa de fuentes de energía renovables.\n     •Equipos cuyo objetivo principal es el aumento de la generación o el uso de la generación de electricidad renovable (conexión indirecta).\n     •Estaciones de recarga de vehículos e infraestructura eléctricos para el transporte público, incluidos los equipos de transmisión y distribución necesarios para el correcto funcionamiento de las estaciones de recarga.",null,null,null,null,"NOM-002-SEDE/ENER-2014"]
[{"$f":"IF(OR(D46=\"Seleccione\",D47=\"Seleccione\",D48=\"Seleccione\",D49=\"Seleccione\"),\"Por definir\",IF(COUNTIF(D46:D49,\"Sí\")=4,\"La actividad sí contribuye sustancialmente a la sostenibilidad\",\"La actividad no genera contribución sustancial\"))","v":"Por definir"}]

{"sheet":"Adaptación-Energía","index":20,"n_rows":367,"n_cols":8,"rows_kept":367,"cut":false,"hidden":true,"merged":[[269,0,269,4],[6,0,6,5],[8,0,8,2],[10,0,10,3],[11,0,11,3],[41,0,41,2],[43,0,43,3],[44,0,44,3],[74,0,74,2],[76,0,76,3],[38,0,38,4],[71,0,71,4],[36,0,36,6],[32,0,32,5],[91,0,91,6],[93,0,93,1],[94,0,94,5],[95,0,95,4],[97,0,97,1],[102,0,102,6],[105,0,105,5],[113,0,113,1],[114,0,114,5],[98,0,98,5],[16,7,18,8],[23,7,24,8],[33,7,35,8],[24,0,24,4],[1,0,1,6],[3,0,3,6],[14,0,14,1],[15,0,15,5],[16,0,16,4],[17,0,17,4],[18,0,18,4],[19,0,19,6],[21,0,21,1],[22,0,22,5],[23,0,23,4],[33,0,33,4],[34,0,34,4],[35,0,35,4],[25,0,25,6],[27,0,27,1],[28,0,28,5],[29,0,29,4],[31,0,31,1],[5,0,5,4],[39,0,39,5],[47,0,47,1],[48,0,48,5],[49,0,49,4],[55,0,55,5],[56,0,56,4],[62,0,62,4],[64,0,64,1],[65,0,65,5],[234,0,234,6],[237,0,237,5],[245,0,245,1],[246,0,246,5],[247,0,247,4],[236,0,236,4],[253,0,253,5],[254,0,254,4],[267,0,267,6],[239,0,239,2],[241,0,241,3],[242,0,242,3],[187,0,187,5],[188,0,188,4],[194,0,194,4],[196,0,196,1],[197,0,197,5],[198,0,198,4],[212,0,212,1],[213,0,213,5],[214,0,214,4],[206,0,206,2],[208,0,208,3],[209,0,209,3],[56,7,57,8],[57,0,57,4],[58,0,58,6],[60,0,60,1],[61,0,61,5],[49,7,51,8],[50,0,50,4],[51,0,51,4],[52,0,52,6],[54,0,54,1],[89,7,90,8],[90,0,90,4],[81,0,81,5],[82,0,82,4],[82,7,84,8],[83,0,83,4],[84,0,84,4],[66,7,68,8],[67,0,67,4],[68,0,68,4],[69,0,69,6],[72,0,72,5],[85,0,85,6],[87,0,87,1],[88,0,88,5],[89,0,89,4],[77,0,77,3],[66,0,66,4],[80,0,80,1],[99,0,99,4],[99,7,101,8],[100,0,100,4],[101,0,101,4],[107,0,107,2],[109,0,109,3],[110,0,110,3],[121,0,121,5],[122,0,122,4],[122,7,123,8],[123,0,123,4],[104,0,104,4],[115,0,115,4],[124,0,124,6],[115,7,117,8],[116,0,116,4],[117,0,117,4],[118,0,118,6],[120,0,120,1],[132,0,132,4],[132,7,134,8],[133,0,133,4],[134,0,134,4],[135,0,135,6],[126,0,126,1],[127,0,127,5],[128,0,128,4],[130,0,130,1],[131,0,131,5],[151,0,151,6],[153,0,153,1],[154,0,154,5],[137,0,137,4],[155,0,155,4],[155,7,156,8],[156,0,156,4],[138,0,138,5],[146,0,146,1],[147,0,147,5],[148,0,148,4],[148,7,150,8],[149,0,149,4],[150,0,150,4],[140,0,140,2],[142,0,142,3],[143,0,143,3],[164,0,164,5],[165,0,165,4],[165,7,167,8],[166,0,166,4],[167,0,167,4],[157,0,157,6],[159,0,159,1],[160,0,160,5],[161,0,161,4],[163,0,163,1],[181,7,183,8],[182,0,182,4],[183,0,183,4],[184,0,184,6],[186,0,186,1],[168,0,168,6],[171,0,171,5],[179,0,179,1],[180,0,180,5],[181,0,181,4],[170,0,170,4],[173,0,173,2],[175,0,175,3],[176,0,176,3],[198,7,200,8],[199,0,199,4],[200,0,200,4],[201,0,201,6],[204,0,204,5],[188,7,189,8],[189,0,189,4],[190,0,190,6],[192,0,192,1],[193,0,193,5],[203,0,203,4],[231,7,233,8],[232,0,232,4],[233,0,233,4],[221,7,222,8],[222,0,222,4],[223,0,223,6],[225,0,225,1],[226,0,226,5],[214,7,216,8],[215,0,215,4],[216,0,216,4],[217,0,217,6],[219,0,219,1],[227,0,227,4],[229,0,229,1],[230,0,230,5],[231,0,231,4],[220,0,220,5],[221,0,221,4],[254,7,255,8],[255,0,255,4],[256,0,256,6],[247,7,249,8],[248,0,248,4],[249,0,249,4],[250,0,250,6],[252,0,252,1],[264,0,264,4],[264,7,266,8],[265,0,265,4],[266,0,266,4],[258,0,258,1],[259,0,259,5],[260,0,260,4],[262,0,262,1],[263,0,263,5],[287,7,288,8],[288,0,288,4],[270,0,270,5],[278,0,278,1],[279,0,279,5],[280,0,280,4],[280,7,282,8],[281,0,281,4],[282,0,282,4],[272,0,272,2],[274,0,274,3],[275,0,275,3],[293,0,293,4],[295,0,295,1],[283,0,283,6],[285,0,285,1],[286,0,286,5],[287,0,287,4],[300,0,300,6],[303,0,303,5],[311,0,311,1],[302,0,302,4],[289,0,289,6],[291,0,291,1],[292,0,292,5],[312,0,312,5],[313,0,313,4],[296,0,296,5],[297,0,297,4],[297,7,299,8],[298,0,298,4],[299,0,299,4],[319,0,319,5],[305,0,305,2],[307,0,307,3],[308,0,308,3],[320,0,320,4],[320,7,321,8],[321,0,321,4],[322,0,322,6],[313,7,315,8],[314,0,314,4],[315,0,315,4],[316,0,316,6],[318,0,318,1],[330,0,330,4],[330,7,332,8],[331,0,331,4],[332,0,332,4],[333,0,333,6],[324,0,324,1],[325,0,325,5],[326,0,326,4],[328,0,328,1],[329,0,329,5],[349,0,349,6],[351,0,351,1],[352,0,352,5],[353,0,353,4],[353,7,354,8],[354,0,354,4],[336,0,336,5],[344,0,344,1],[345,0,345,5],[346,0,346,4],[346,7,348,8],[347,0,347,4],[348,0,348,4],[338,0,338,2],[340,0,340,3],[341,0,341,3],[366,0,366,6],[362,0,362,5],[363,0,363,4],[363,7,365,8],[364,0,364,4],[365,0,365,4],[355,0,355,6],[357,0,357,1],[358,0,358,5],[359,0,359,4],[361,0,361,1]]}
[]
["Adaptación al cambio climático de actividades del sector de generación, distribución y transmisión de energía"]
[]
["La Taxonomía Sostenible de México reconoce que el país está expuesto a riesgos climáticos y ambientales heterogéneos no lineales que tienen múltiples canales de transmisión y, por ende, que el cambio climático afecta en distinta medida a todos los sectores de la economía. En este sentido, a través de la Taxonomía se busca que las actividades económicas contribuyan sustancialmente, no sólo a la mitigación, sino también a la adaptación del cambio climático. "]
[]
["221112. Generación de electricidad a partir de energía hidráulica"]
["Responde las siguientes preguntas seleccionando una respuesta de la lista"]
[]
["1. La actividad que estás evaluando es una actividad adaptada o una actividad que facilita la adaptación?",null,null,"Actividad que facilita la adaptación e incluye desarrollo de infraestructura"]
[]
["¿Qué es una actividad adaptada?\nUna actividad económica se adapta a los riesgos climáticos físicos materiales, si integra medidas y/o soluciones para reducirlos, mientras garantiza que la actividad económica pueda funcionar bien en un clima cambiante. Estas actividades de adaptación se desarrollan a partir de la evaluación de riesgos actuales y futuros, ya sean climáticos, crónicos y/o agudos, así como la escala temporal y geográfica de la actividad económica."]
["¿Qué es una actividad que facilita la adaptación? \nUna actividad económica posibilita la adaptación si reduce el riesgo climático físico material y la vulnerabilidad en otras actividades económicas, comunidades, ecosistemas o ciudades, y/o aborda los obstáculos sistémicos a la adaptación. Esto es posible a través del uso de la tecnología y la creación de un producto o servicio especializado."]
[]
[]
["A1. Reducción de los riesgos climáticos físicos materiales."]
["La actividad económica debe reducir todos los riesgos climáticos físicos materiales para las actividades evaluadas, en la medida de lo posible y sobre la base del mejor esfuerzo. Selecciona las respuestas en las listas desplegables"]
["¿La actividad económica integra medidas destinadas a reducir, en la medida de lo posible y sobre la base del mejor esfuerzo, los riesgos climáticos físicos materiales para esa actividad, que han sido identificados mediante una evaluación de riesgos?",null,null,null,null,"Sí",{"$f":"IF(F17=\"Seleccione\",\"Por definir\",IF(F17=\"Sí\",\"El primer criterio se cumple satisfactoriamente\",\"Al no cumplir con este criterio, no es posible generar contribución sustancial\"))","v":"El primer criterio se cumple satisfactoriamente"},"Las tres condiciones deben cumplirse para argumentar que la actividad tiene contribución sustancial"]
["¿Esta evaluación considera tanto la variabilidad meteorológica actual, como el cambio climático futuro, incluidos los escenarios climáticos, así como la incertidumbre?",null,null,null,null,"Sí",{"$f":"IF(F18=\"Seleccione\",\"Por definir\",IF(F18=\"Sí\",\"El segundo criterio se cumple satisfactoriamente\",\"Al no cumplir con este criterio, no es posible generar contribución sustancial\"))","v":"El segundo criterio se cumple satisfactoriamente"}]
["¿Igualmente la evaluación se basa en un sólido análisis de los datos e información disponible sobre los distintos escenarios climáticos, y es coherente con la duración prevista de la actividad?",null,null,null,null,"Sí",{"$f":"IF(F19=\"Seleccione\",\"Por definir\",IF(F19=\"Sí\",\"El tercer criterio se cumple satisfactoriamente\",\"Al no cumplir con este criterio, no es posible generar contribución sustancial\"))","v":"El tercer criterio se cumple satisfactoriamente"}]
[{"$f":"IF(OR(F17=\"Seleccione\",F18=\"Seleccione\",F19=\"Seleccione\"),\"Por definir\",IF(OR(F17=\"No\",F18=\"No\",F19=\"No\"),\"La actividad no genera contribución sustancial\", \"La actividad sí contribuye sustancialmente a la sostenibilidad\"))","v":"La actividad sí contribuye sustancialmente a la sostenibilidad"}]
[]
["A2. Apoyo a la adaptación del sistema. "]
["La actividad económica y sus medidas de adaptación no afectan negativamente los esfuerzos de adaptación de otras personas, la naturaleza y los bienes. Selecciona las respuestas en las listas desplegables"]
["¿La actividad económica y sus medidas de adaptación no aumentan los riesgos de un impacto climático adverso sobre otras personas, la naturaleza y los bienes?",null,null,null,null,"Sí",{"$f":"IF(F24=\"Seleccione\",\"Por definir\",IF(F24=\"Sí\",\"El primer criterio se cumple satisfactoriamente\",\"Al no cumplir con este criterio, no es posible generar contribución sustancial\"))","v":"El primer criterio se cumple satisfactoriamente"},"Las dos condiciones deben cumplirse para argumentar que la actividad tiene contribución sustancial"]
["¿La actividad económica y sus medidas de adaptación son consistentes con los esfuerzos de adaptación a nivel sectorial, regional y/o nacional?",null,null,null,null,"Sí",{"$f":"IF(F25=\"Seleccione\",\"Por definir\",IF(F25=\"Sí\",\"El segundo criterio se cumple satisfactoriamente\",\"Al no cumplir con este criterio, no es posible generar contribución sustancial\"))","v":"El segundo criterio se cumple satisfactoriamente"}]
[{"$f":"IF(OR(F24=\"Seleccione\",F25=\"Seleccione\"),\"Por definir\",IF(OR(F24=\"No\",F25=\"No\"),\"La actividad no genera contribución sustancial\", \"La actividad sí contribuye sustancialmente a la sostenibilidad\"))","v":"La actividad sí contribuye sustancialmente a la sostenibilidad"}]
[]
["A3. Monitoreo de los resultados de adaptación."]
["En el contexto de la actividad evaluada, la reducción de los riesgos físicos se puede medir. Selecciona las respuestas en las listas desplegables"]
[" Los resultados de adaptación pueden ser monitoreados y medidos con base en indicadores. Considerando que los riesgos físicos evolucionan con el tiempo, el análisis de riesgos físicos debe llevarse a cabo con la frecuencia adecuada.  ¿Esto se evalúa dentro del proyecto o portafolio?",null,null,null,null,"Sí",{"$f":"IF(F30=\"Seleccione\",\"Por definir\",IF(F30=\"Sí\",\"La actividad sí contribuye sustancialmente a la sostenbilidad\",\"El proyecto no genera contribución sustancial\"))","v":"La actividad sí contribuye sustancialmente a la sostenbilidad"}]
[]
["B1. Apoyar a la adaptación de otras actividades económicas."]
["La actividad económica reduce el riesgo climático físico material en otras actividades económicas y/o aborda los obstáculos sistémicos para la adaptación. Las actividades que permiten la adaptación incluyen, pero no se limitan a, actividades que promueven una tecnología, un producto, una práctica, un proceso de gobernanza o usos innovadores de tecnologías, productos o prácticas existentes (incluidos los relacionados con las infraestructuras naturales). Además, eliminan las barreras de información, financieras, tecnológicas y de capacidad para la adaptación de otros. Selecciona las respuestas en las listas desplegables"]
["¿Se realiza una evaluación de los riesgos resultantes, con base en datos sólidos, tanto de la variabilidad  meteorológica actual como del cambio climático futuro, incluidos los escenarios climáticos, así como  la incertidumbre, que la actividad económica contribuirá a abordar?",null,null,null,null,"Sí",{"$f":"IF(F34=\"Seleccione\",\"Por definir\",IF(F34=\"Sí\",\"El primer criterio se cumple satisfactoriamente\",\"Al no cumplir con este criterio, no es posible generar contribución sustancial\"))","v":"El primer criterio se cumple satisfactoriamente"},"Las tres condiciones en caso de que apliquen deben cumplirse para argumentar que la actividad tiene contribución sustancial. La tercera opción podría no aplicar. En este caso se evaluaran las primeras dos cuestiones"]
["¿Se realiza una evaluación de la eficacia de la contribución de la actividad económica a la reducción de los riesgos físicos, teniendo en cuenta la escala de exposición y la vulnerabilidad a los mismos?",null,null,null,null,"Sí",{"$f":"IF(F35=\"Seleccione\",\"Por definir\",IF(F35=\"Sí\",\"El segundo criterio se cumple satisfactoriamente\",\"Al no cumplir con este criterio, no es posible generar contribución sustancial\"))","v":"El segundo criterio se cumple satisfactoriamente"}]
["En el caso de una infraestructura vinculada a una actividad que permita la adaptación, dicha infraestructura debe cumplir también los criterios de selección A1, A2 y A3. ¿Esto se cumple en el contexto del proyecto?",null,null,null,null,"Sí",{"$f":"IF(F36=\"Seleccione\",\"Por definir\",IF(F36=\"Sí\",\"El tercer criterio se cumple satisfactoriamente\",IF(F36=\"No aplica\",\"No aplica\",\"El proyecto no genera contribución sustancial\")))","v":"El tercer criterio se cumple satisfactoriamente"}]
[{"$f":"IF(OR(F34=\"Seleccione\",F35=\"Seleccione\",F36=\"Seleccione\"),\"Por definir\",IF(OR(F34=\"No\",F35=\"No\",F36=\"No\"),\"La actividad no genera contribución sustancial\",\"La actividad sí contribuye sustancialmente a la sostenibilidad\"))","v":"La actividad sí contribuye sustancialmente a la sostenibilidad"}]
[]
["221113. Generación de electricidad a partir de energía solar (sistemas fotovoltaicos) "]
["Responde las siguientes preguntas seleccionando una respuesta de la lista"]
[]
["1. La actividad que estás evaluando es una actividad adaptada o una actividad que facilita la adaptación?",null,null,"Actividad que facilita la adaptación"]
[]
["¿Qué es una actividad adaptada?\nUna actividad económica se adapta a los riesgos climáticos físicos materiales, si integra medidas y/o soluciones para reducirlos, mientras garantiza que la actividad económica pueda funcionar bien en un clima cambiante. Estas actividades de adaptación se desarrollan a partir de la evaluación de riesgos actuales y futuros, ya sean climáticos, crónicos y/o agudos, así como la escala temporal y geográfica de la actividad económica."]
["¿Qué es una actividad que facilita la adaptación? \nUna actividad económica posibilita la adaptación si reduce el riesgo climático físico material y la vulnerabilidad en otras actividades económicas, comunidades, ecosistemas o ciudades, y/o aborda los obstáculos sistémicos a la adaptación. Esto es posible a través del uso de la tecnología y la creación de un producto o servicio especializado."]
[]
[]
["A1. Reducción de los riesgos climáticos físicos materiales."]
["La actividad económica debe reducir todos los riesgos climáticos físicos materiales para las actividades evaluadas, en la medida de lo posible y sobre la base del mejor esfuerzo. Selecciona las respuestas en las listas desplegables"]
["¿La actividad económica integra medidas destinadas a reducir, en la medida de lo posible y sobre la base del mejor esfuerzo, los riesgos climáticos físicos materiales para esa actividad, que han sido identificados mediante una evaluación de riesgos?",null,null,null,null,"Sí",{"$f":"IF(F50=\"Seleccione\",\"Por definir\",IF(F50=\"Sí\",\"El primer criterio se cumple satisfactoriamente\",\"Al no cumplir con este criterio, no es posible generar contribución sustancial\"))","v":"El primer criterio se cumple satisfactoriamente"},"Las tres condiciones deben cumplirse para argumentar que la actividad tiene contribución sustancial"]
["¿Esta evaluación considera tanto la variabilidad meteorológica actual, como el cambio climático futuro, incluidos los escenarios climáticos, así como la incertidumbre?",null,null,null,null,"Sí",{"$f":"IF(F51=\"Seleccione\",\"Por definir\",IF(F51=\"Sí\",\"El segundo criterio se cumple satisfactoriamente\",\"Al no cumplir con este criterio, no es posible generar contribución sustancial\"))","v":"El segundo criterio se cumple satisfactoriamente"}]
["¿Igualmente la evaluación se basa en un sólido análisis de los datos e información disponible sobre los distintos escenarios climáticos, y es coherente con la duración prevista de la actividad?",null,null,null,null,"Sí",{"$f":"IF(F52=\"Seleccione\",\"Por definir\",IF(F52=\"Sí\",\"El tercer criterio se cumple satisfactoriamente\",\"Al no cumplir con este criterio, no es posible generar contribución sustancial\"))","v":"El tercer criterio se cumple satisfactoriamente"}]
[{"$f":"IF(OR(F50=\"Seleccione\",F51=\"Seleccione\",F52=\"Seleccione\"),\"Por definir\",IF(OR(F50=\"No\",F51=\"No\",F52=\"No\"),\"La actividad no genera contribución sustancial\", \"La actividad sí contribuye sustancialmente a la sostenibilidad\"))","v":"La actividad sí contribuye sustancialmente a la sostenibilidad"}]
[]
["A2. Apoyo a la adaptación del sistema. "]
["La actividad económica y sus medidas de adaptación no afectan negativamente los esfuerzos de adaptación de otras personas, la naturaleza y los bienes. Selecciona las respuestas en las listas desplegables"]
["¿La actividad económica y sus medidas de adaptación no aumentan los riesgos de un impacto climático adverso sobre otras personas, la naturaleza y los bienes?",null,null,null,null,"Sí",{"$f":"IF(F57=\"Seleccione\",\"Por definir\",IF(F57=\"Sí\",\"El primer criterio se cumple satisfactoriamente\",\"Al no cumplir con este criterio, no es posible generar contribución sustancial\"))","v":"El primer criterio se cumple satisfactoriamente"},"Las dos condiciones deben cumplirse para argumentar que la actividad tiene contribución sustancial"]
["¿La actividad económica y sus medidas de adaptación son consistentes con los esfuerzos de adaptación a nivel sectorial, regional y/o nacional?",null,null,null,null,"Sí",{"$f":"IF(F58=\"Seleccione\",\"Por definir\",IF(F58=\"Sí\",\"El segundo criterio se cumple satisfactoriamente\",\"Al no cumplir con este criterio, no es posible generar contribución sustancial\"))","v":"El segundo criterio se cumple satisfactoriamente"}]
[{"$f":"IF(OR(F57=\"Seleccione\",F58=\"Seleccione\"),\"Por definir\",IF(OR(F57=\"No\",F58=\"No\"),\"La actividad no genera contribución sustancial\", \"La actividad sí contribuye sustancialmente a la sostenibilidad\"))","v":"La actividad sí contribuye sustancialmente a la sostenibilidad"}]
[]
["A3. Monitoreo de los resultados de adaptación."]
["En el contexto de la actividad evaluada, la reducción de los riesgos físicos se puede medir. Selecciona las respuestas en las listas desplegables"]
[" Los resultados de adaptación pueden ser monitoreados y medidos con base en indicadores. Considerando que los riesgos físicos evolucionan con el tiempo, el análisis de riesgos físicos debe llevarse a cabo con la frecuencia adecuada.  ¿Esto se evalúa dentro del proyecto o portafolio?",null,null,null,null,"Sí",{"$f":"IF(F63=\"Seleccione\",\"Por definir\",IF(F63=\"Sí\",\"La actividad sí contribuye sustancialmente a la sostenbilidad\",\"El proyecto no genera contribución sustancial\"))","v":"La actividad sí contribuye sustancialmente a la sostenbilidad"}]
[]
["B1. Apoyar a la adaptación de otras actividades económicas."]
["La actividad económica reduce el riesgo climático físico material en otras actividades económicas y/o aborda los obstáculos sistémicos para la adaptación. Las actividades que permiten la adaptación incluyen, pero no se limitan a, actividades que promueven una tecnología, un producto, una práctica, un proceso de gobernanza o usos innovadores de tecnologías, productos o prácticas existentes (incluidos los relacionados con las infraestructuras naturales). Además, eliminan las barreras de información, financieras, tecnológicas y de capacidad para la adaptación de otros. Selecciona las respuestas en las listas desplegables"]
["¿Se realiza una evaluación de los riesgos resultantes, con base en datos sólidos, tanto de la variabilidad  meteorológica actual como del cambio climático futuro, incluidos los escenarios climáticos, así como  la incertidumbre, que la actividad económica contribuirá a abordar?",null,null,null,null,"Sí",{"$f":"IF(F67=\"Seleccione\",\"Por definir\",IF(F67=\"Sí\",\"El primer criterio se cumple satisfactoriamente\",\"Al no cumplir con este criterio, no es posible generar contribución sustancial\"))","v":"El primer criterio se cumple satisfactoriamente"},"Las tres condiciones en caso de que apliquen deben cumplirse para argumentar que la actividad tiene contribución sustancial. La tercera opción podría no aplicar. En este caso se evaluaran las primeras dos cuestiones"]
["¿Se realiza una evaluación de la eficacia de la contribución de la actividad económica a la reducción de los riesgos físicos, teniendo en cuenta la escala de exposición y la vulnerabilidad a los mismos?",null,null,null,null,"Sí",{"$f":"IF(F68=\"Seleccione\",\"Por definir\",IF(F68=\"Sí\",\"El segundo criterio se cumple satisfactoriamente\",\"Al no cumplir con este criterio, no es posible generar contribución sustancial\"))","v":"El segundo criterio se cumple satisfactoriamente"}]
["En el caso de una infraestructura vinculada a una actividad que permita la adaptación, dicha infraestructura debe cumplir también los criterios de selección A1, A2 y A3. ¿Esto se cumple en el contexto del proyecto?",null,null,null,null,"Sí",{"$f":"IF(F69=\"Seleccione\",\"Por definir\",IF(F69=\"Sí\",\"El tercer criterio se cumple satisfactoriamente\",IF(F69=\"No aplica\",\"No aplica\",\"El proyecto no genera contribución sustancial\")))","v":"El tercer criterio se cumple satisfactoriamente"}]
[{"$f":"IF(OR(F67=\"Seleccione\",F68=\"Seleccione\",F69=\"Seleccione\"),\"Por definir\",IF(OR(F67=\"No\",F68=\"No\",F69=\"No\"),\"La actividad no genera contribución sustancial\",\"La actividad sí contribuye sustancialmente a la sostenibilidad\"))","v":"La actividad sí contribuye sustancialmente a la sostenibilidad"}]
[]
["221113. Generación de electricidad a partir de energía solar (concentradores solares)"]
["Responde las siguientes preguntas seleccionando una respuesta de la lista"]
[]
["1. La actividad que estás evaluando es una actividad adaptada o una actividad que facilita la adaptación?",null,null,"Actividad que facilita la adaptación e incluye desarrollo de infraestructura"]
[]
["¿Qué es una actividad adaptada?\nUna actividad económica se adapta a los riesgos climáticos físicos materiales, si integra medidas y/o soluciones para reducirlos, mientras garantiza que la actividad económica pueda funcionar bien en un clima cambiante. Estas actividades de adaptación se desarrollan a partir de la evaluación de riesgos actuales y futuros, ya sean climáticos, crónicos y/o agudos, así como la escala temporal y geográfica de la actividad económica."]
["¿Qué es una actividad que facilita la adaptación? \nUna actividad económica posibilita la adaptación si reduce el riesgo climático físico material y la vulnerabilidad en otras actividades económicas, comunidades, ecosistemas o ciudades, y/o aborda los obstáculos sistémicos a la adaptación. Esto es posible a través del uso de la tecnología y la creación de un producto o servicio especializado."]
[]
[]
["A1. Reducción de los riesgos climáticos físicos materiales."]
["La actividad económica debe reducir todos los riesgos climáticos físicos materiales para las actividades evaluadas, en la medida de lo posible y sobre la base del mejor esfuerzo. Selecciona las respuestas en las listas desplegables"]
["¿La actividad económica integra medidas destinadas a reducir, en la medida de lo posible y sobre la base del mejor esfuerzo, los riesgos climáticos físicos materiales para esa actividad, que han sido identificados mediante una evaluación de riesgos?",null,null,null,null,"Sí",{"$f":"IF(F83=\"Seleccione\",\"Por definir\",IF(F83=\"Sí\",\"El primer criterio se cumple satisfactoriamente\",\"Al no cumplir con este criterio, no es posible generar contribución sustancial\"))","v":"El primer criterio se cumple satisfactoriamente"},"Las tres condiciones deben cumplirse para argumentar que la actividad tiene contribución sustancial"]
["¿Esta evaluación considera tanto la variabilidad meteorológica actual, como el cambio climático futuro, incluidos los escenarios climáticos, así como la incertidumbre?",null,null,null,null,"Sí",{"$f":"IF(F84=\"Seleccione\",\"Por definir\",IF(F84=\"Sí\",\"El segundo criterio se cumple satisfactoriamente\",\"Al no cumplir con este criterio, no es posible generar contribución sustancial\"))","v":"El segundo criterio se cumple satisfactoriamente"}]
["¿Igualmente la evaluación se basa en un sólido análisis de los datos e información disponible sobre los distintos escenarios climáticos, y es coherente con la duración prevista de la actividad?",null,null,null,null,"Sí",{"$f":"IF(F85=\"Seleccione\",\"Por definir\",IF(F85=\"Sí\",\"El tercer criterio se cumple satisfactoriamente\",\"Al no cumplir con este criterio, no es posible generar contribución sustancial\"))","v":"El tercer criterio se cumple satisfactoriamente"}]
[{"$f":"IF(OR(F83=\"Seleccione\",F84=\"Seleccione\",F85=\"Seleccione\"),\"Por definir\",IF(OR(F83=\"No\",F84=\"No\",F85=\"No\"),\"La actividad no genera contribución sustancial\", \"La actividad sí contribuye sustancialmente a la sostenibilidad\"))","v":"La actividad sí contribuye sustancialmente a la sostenibilidad"}]
[]
["A2. Apoyo a la adaptación del sistema. "]
["La actividad económica y sus medidas de adaptación no afectan negativamente los esfuerzos de adaptación de otras personas, la naturaleza y los bienes. Selecciona las respuestas en las listas desplegables"]
["¿La actividad económica y sus medidas de adaptación no aumentan los riesgos de un impacto climático adverso sobre otras personas, la naturaleza y los bienes?",null,null,null,null,"Sí",{"$f":"IF(F90=\"Seleccione\",\"Por definir\",IF(F90=\"Sí\",\"El primer criterio se cumple satisfactoriamente\",\"Al no cumplir con este criterio, no es posible generar contribución sustancial\"))","v":"El primer criterio se cumple satisfactoriamente"},"Las dos condiciones deben cumplirse para argumentar que la actividad tiene contribución sustancial"]
["¿La actividad económica y sus medidas de adaptación son consistentes con los esfuerzos de adaptación a nivel sectorial, regional y/o nacional?",null,null,null,null,"Sí",{"$f":"IF(F91=\"Seleccione\",\"Por definir\",IF(F91=\"Sí\",\"El segundo criterio se cumple satisfactoriamente\",\"Al no cumplir con este criterio, no es posible generar contribución sustancial\"))","v":"El segundo criterio se cumple satisfactoriamente"}]
[{"$f":"IF(OR(F90=\"Seleccione\",F91=\"Seleccione\"),\"Por definir\",IF(OR(F90=\"No\",F91=\"No\"),\"La actividad no genera contribución sustancial\", \"La actividad sí contribuye sustancialmente a la sostenibilidad\"))","v":"La actividad sí contribuye sustancialmente a la sostenibilidad"}]
[]
["A3. Monitoreo de los resultados de adaptación."]
["En el contexto de la actividad evaluada, la reducción de los riesgos físicos se puede medir. Selecciona las respuestas en las listas desplegables"]
[" Los resultados de adaptación pueden ser monitoreados y medidos con base en indicadores. Considerando que los riesgos físicos evolucionan con el tiempo, el análisis de riesgos físicos debe llevarse a cabo con la frecuencia adecuada.  ¿Esto se evalúa dentro del proyecto o portafolio?",null,null,null,null,"Sí",{"$f":"IF(F96=\"Seleccione\",\"Por definir\",IF(F96=\"Sí\",\"La actividad sí contribuye sustancialmente a la sostenbilidad\",\"El proyecto no genera contribución sustancial\"))","v":"La actividad sí contribuye sustancialmente a la sostenbilidad"}]
[]
["B1. Apoyar a la adaptación de otras actividades económicas."]
["La actividad económica reduce el riesgo climático físico material en otras actividades económicas y/o aborda los obstáculos sistémicos para la adaptación. Las actividades que permiten la adaptación incluyen, pero no se limitan a, actividades que promueven una tecnología, un producto, una práctica, un proceso de gobernanza o usos innovadores de tecnologías, productos o prácticas existentes (incluidos los relacionados con las infraestructuras naturales). Además, eliminan las barreras de información, financieras, tecnológicas y de capacidad para la adaptación de otros. Selecciona las respuestas en las listas desplegables"]
["¿Se realiza una evaluación de los riesgos resultantes, con base en datos sólidos, tanto de la variabilidad  meteorológica actual como del cambio climático futuro, incluidos los escenarios climáticos, así como  la incertidumbre, que la actividad económica contribuirá a abordar?",null,null,null,null,"Sí",{"$f":"IF(F100=\"Seleccione\",\"Por definir\",IF(F100=\"Sí\",\"El primer criterio se cumple satisfactoriamente\",\"Al no cumplir con este criterio, no es posible generar contribución sustancial\"))","v":"El primer criterio se cumple satisfactoriamente"},"Las tres condiciones en caso de que apliquen deben cumplirse para argumentar que la actividad tiene contribución sustancial. La tercera opción podría no aplicar. En este caso se evaluaran las primeras dos cuestiones"]
["¿Se realiza una evaluación de la eficacia de la contribución de la actividad económica a la reducción de los riesgos físicos, teniendo en cuenta la escala de exposición y la vulnerabilidad a los mismos?",null,null,null,null,"Sí",{"$f":"IF(F101=\"Seleccione\",\"Por definir\",IF(F101=\"Sí\",\"El segundo criterio se cumple satisfactoriamente\",\"Al no cumplir con este criterio, no es posible generar contribución sustancial\"))","v":"El segundo criterio se cumple satisfactoriamente"}]
["En el caso de una infraestructura vinculada a una actividad que permita la adaptación, dicha infraestructura debe cumplir también los criterios de selección A1, A2 y A3. ¿Esto se cumple en el contexto del proyecto?",null,null,null,null,"Sí",{"$f":"IF(F102=\"Seleccione\",\"Por definir\",IF(F102=\"Sí\",\"El tercer criterio se cumple satisfactoriamente\",IF(F102=\"No aplica\",\"No aplica\",\"El proyecto no genera contribución sustancial\")))","v":"El tercer criterio se cumple satisfactoriamente"}]
[{"$f":"IF(OR(F100=\"Seleccione\",F101=\"Seleccione\",F102=\"Seleccione\"),\"Por definir\",IF(OR(F100=\"No\",F101=\"No\",F102=\"No\"),\"La actividad no genera contribución sustancial\",\"La actividad sí contribuye sustancialmente a la sostenibilidad\"))","v":"La actividad sí contribuye sustancialmente a la sostenibilidad"}]
[]
["221114. Generación de electricidad a partir de energía eólica"]
["Responde las siguientes preguntas seleccionando una respuesta de la lista"]
[]
["1. La actividad que estás evaluando es una actividad adaptada o una actividad que facilita la adaptación?",null,null,"Actividad adaptada"]
[]
["¿Qué es una actividad adaptada?\nUna actividad económica se adapta a los riesgos climáticos físicos materiales, si integra medidas y/o soluciones para reducirlos, mientras garantiza que la actividad económica pueda funcionar bien en un clima cambiante. Estas actividades de adaptación se desarrollan a partir de la evaluación de riesgos actuales y futuros, ya sean climáticos, crónicos y/o agudos, así como la escala temporal y geográfica de la actividad económica."]
["¿Qué es una actividad que facilita la adaptación? \nUna actividad económica posibilita la adaptación si reduce el riesgo climático físico material y la vulnerabilidad en otras actividades económicas, comunidades, ecosistemas o ciudades, y/o aborda los obstáculos sistémicos a la adaptación. Esto es posible a través del uso de la tecnología y la creación de un producto o servicio especializado."]
[]
[]
["A1. Reducción de los riesgos climáticos físicos materiales."]
["La actividad económica debe reducir todos los riesgos climáticos físicos materiales para las actividades evaluadas, en la medida de lo posible y sobre la base del mejor esfuerzo. Selecciona las respuestas en las listas desplegables"]
["¿La actividad económica integra medidas destinadas a reducir, en la medida de lo posible y sobre la base del mejor esfuerzo, los riesgos climáticos físicos materiales para esa actividad, que han sido identificados mediante una evaluación de riesgos?",null,null,null,null,"Sí",{"$f":"IF(F116=\"Seleccione\",\"Por definir\",IF(F116=\"Sí\",\"El primer criterio se cumple satisfactoriamente\",\"Al no cumplir con este criterio, no es posible generar contribución sustancial\"))","v":"El primer criterio se cumple satisfactoriamente"},"Las tres condiciones deben cumplirse para argumentar que la actividad tiene contribución sustancial"]
["¿Esta evaluación considera tanto la variabilidad meteorológica actual, como el cambio climático futuro, incluidos los escenarios climáticos, así como la incertidumbre?",null,null,null,null,"Sí",{"$f":"IF(F117=\"Seleccione\",\"Por definir\",IF(F117=\"Sí\",\"El segundo criterio se cumple satisfactoriamente\",\"Al no cumplir con este criterio, no es posible generar contribución sustancial\"))","v":"El segundo criterio se cumple satisfactoriamente"}]
["¿Igualmente la evaluación se basa en un sólido análisis de los datos e información disponible sobre los distintos escenarios climáticos, y es coherente con la duración prevista de la actividad?",null,null,null,null,"Sí",{"$f":"IF(F118=\"Seleccione\",\"Por definir\",IF(F118=\"Sí\",\"El tercer criterio se cumple satisfactoriamente\",\"Al no cumplir con este criterio, no es posible generar contribución sustancial\"))","v":"El tercer criterio se cumple satisfactoriamente"}]
[{"$f":"IF(OR(F116=\"Seleccione\",F117=\"Seleccione\",F118=\"Seleccione\"),\"Por definir\",IF(OR(F116=\"No\",F117=\"No\",F118=\"No\"),\"La actividad no genera contribución sustancial\", \"La actividad sí contribuye sustancialmente a la sostenibilidad\"))","v":"La actividad sí contribuye sustancialmente a la sostenibilidad"}]
[]
["A2. Apoyo a la adaptación del sistema. "]
["La actividad económica y sus medidas de adaptación no afectan negativamente los esfuerzos de adaptación de otras personas, la naturaleza y los bienes. Selecciona las respuestas en las listas desplegables"]
["¿La actividad económica y sus medidas de adaptación no aumentan los riesgos de un impacto climático adverso sobre otras personas, la naturaleza y los bienes?",null,null,null,null,"Sí",{"$f":"IF(F123=\"Seleccione\",\"Por definir\",IF(F123=\"Sí\",\"El primer criterio se cumple satisfactoriamente\",\"Al no cumplir con este criterio, no es posible generar contribución sustancial\"))","v":"El primer criterio se cumple satisfactoriamente"},"Las dos condiciones deben cumplirse para argumentar que la actividad tiene contribución sustancial"]
["¿La actividad económica y sus medidas de adaptación son consistentes con los esfuerzos de adaptación a nivel sectorial, regional y/o nacional?",null,null,null,null,"Sí",{"$f":"IF(F124=\"Seleccione\",\"Por definir\",IF(F124=\"Sí\",\"El segundo criterio se cumple satisfactoriamente\",\"Al no cumplir con este criterio, no es posible generar contribución sustancial\"))","v":"El segundo criterio se cumple satisfactoriamente"}]
[{"$f":"IF(OR(F123=\"Seleccione\",F124=\"Seleccione\"),\"Por definir\",IF(OR(F123=\"No\",F124=\"No\"),\"La actividad no genera contribución sustancial\", \"La actividad sí contribuye sustancialmente a la sostenibilidad\"))","v":"La actividad sí contribuye sustancialmente a la sostenibilidad"}]
[]
["A3. Monitoreo de los resultados de adaptación."]
["En el contexto de la actividad evaluada, la reducción de los riesgos físicos se puede medir. Selecciona las respuestas en las listas desplegables"]
[" Los resultados de adaptación pueden ser monitoreados y medidos con base en indicadores. Considerando que los riesgos físicos evolucionan con el tiempo, el análisis de riesgos físicos debe llevarse a cabo con la frecuencia adecuada.  ¿Esto se evalúa dentro del proyecto o portafolio?",null,null,null,null,"Sí",{"$f":"IF(F129=\"Seleccione\",\"Por definir\",IF(F129=\"Sí\",\"La actividad sí contribuye sustancialmente a la sostenbilidad\",\"El proyecto no genera contribución sustancial\"))","v":"La actividad sí contribuye sustancialmente a la sostenbilidad"}]
[]
["B1. Apoyar a la adaptación de otras actividades económicas."]
["La actividad económica reduce el riesgo climático físico material en otras actividades económicas y/o aborda los obstáculos sistémicos para la adaptación. Las actividades que permiten la adaptación incluyen, pero no se limitan a, actividades que promueven una tecnología, un producto, una práctica, un proceso de gobernanza o usos innovadores de tecnologías, productos o prácticas existentes (incluidos los relacionados con las infraestructuras naturales). Además, eliminan las barreras de información, financieras, tecnológicas y de capacidad para la adaptación de otros. Selecciona las respuestas en las listas desplegables"]
["¿Se realiza una evaluación de los riesgos resultantes, con base en datos sólidos, tanto de la variabilidad  meteorológica actual como del cambio climático futuro, incluidos los escenarios climáticos, así como  la incertidumbre, que la actividad económica contribuirá a abordar?",null,null,null,null,"Sí",{"$f":"IF(F133=\"Seleccione\",\"Por definir\",IF(F133=\"Sí\",\"El primer criterio se cumple satisfactoriamente\",\"Al no cumplir con este criterio, no es posible generar contribución sustancial\"))","v":"El primer criterio se cumple satisfactoriamente"},"Las tres condiciones en caso de que apliquen deben cumplirse para argumentar que la actividad tiene contribución sustancial. La tercera opción podría no aplicar. En este caso se evaluaran las primeras dos cuestiones"]
["¿Se realiza una evaluación de la eficacia de la contribución de la actividad económica a la reducción de los riesgos físicos, teniendo en cuenta la escala de exposición y la vulnerabilidad a los mismos?",null,null,null,null,"Sí",{"$f":"IF(F134=\"Seleccione\",\"Por definir\",IF(F134=\"Sí\",\"El segundo criterio se cumple satisfactoriamente\",\"Al no cumplir con este criterio, no es posible generar contribución sustancial\"))","v":"El segundo criterio se cumple satisfactoriamente"}]
["En el caso de una infraestructura vinculada a una actividad que permita la adaptación, dicha infraestructura debe cumplir también los criterios de selección A1, A2 y A3. ¿Esto se cumple en el contexto del proyecto?",null,null,null,null,"Sí",{"$f":"IF(F135=\"Seleccione\",\"Por definir\",IF(F135=\"Sí\",\"El tercer criterio se cumple satisfactoriamente\",IF(F135=\"No aplica\",\"No aplica\",\"El proyecto no genera contribución sustancial\")))","v":"El tercer criterio se cumple satisfactoriamente"}]
[{"$f":"IF(OR(F133=\"Seleccione\",F134=\"Seleccione\",F135=\"Seleccione\"),\"Por definir\",IF(OR(F133=\"No\",F134=\"No\",F135=\"No\"),\"La actividad no genera contribución sustancial\",\"La actividad sí contribuye sustancialmente a la sostenibilidad\"))","v":"La actividad sí contribuye sustancialmente a la sostenibilidad"}]
[]
["221119. Generación de electricidad a partir de otro tipo de energía (energía geotérmica)"]
["Responde las siguientes preguntas seleccionando una respuesta de la lista"]
[]
["1. La actividad que estás evaluando es una actividad adaptada o una actividad que facilita la adaptación?",null,null,"Actividad que facilita la adaptación e incluye desarrollo de infraestructura"]
[]
["¿Qué es una actividad adaptada?\nUna actividad económica se adapta a los riesgos climáticos físicos materiales, si integra medidas y/o soluciones para reducirlos, mientras garantiza que la actividad económica pueda funcionar bien en un clima cambiante. Estas actividades de adaptación se desarrollan a partir de la evaluación de riesgos actuales y futuros, ya sean climáticos, crónicos y/o agudos, así como la escala temporal y geográfica de la actividad económica."]
["¿Qué es una actividad que facilita la adaptación? \nUna actividad económica posibilita la adaptación si reduce el riesgo climático físico material y la vulnerabilidad en otras actividades económicas, comunidades, ecosistemas o ciudades, y/o aborda los obstáculos sistémicos a la adaptación. Esto es posible a través del uso de la tecnología y la creación de un producto o servicio especializado."]
[]
[]
["A1. Reducción de los riesgos climáticos físicos materiales."]
["La actividad económica debe reducir todos los riesgos climáticos físicos materiales para las actividades evaluadas, en la medida de lo posible y sobre la base del mejor esfuerzo. Selecciona las respuestas en las listas desplegables"]
["¿La actividad económica integra medidas destinadas a reducir, en la medida de lo posible y sobre la base del mejor esfuerzo, los riesgos climáticos físicos materiales para esa actividad, que han sido identificados mediante una evaluación de riesgos?",null,null,null,null,"Sí",{"$f":"IF(F149=\"Seleccione\",\"Por definir\",IF(F149=\"Sí\",\"El primer criterio se cumple satisfactoriamente\",\"Al no cumplir con este criterio, no es posible generar contribución sustancial\"))","v":"El primer criterio se cumple satisfactoriamente"},"Las tres condiciones deben cumplirse para argumentar que la actividad tiene contribución sustancial"]
["¿Esta evaluación considera tanto la variabilidad meteorológica actual, como el cambio climático futuro, incluidos los escenarios climáticos, así como la incertidumbre?",null,null,null,null,"Sí",{"$f":"IF(F150=\"Seleccione\",\"Por definir\",IF(F150=\"Sí\",\"El segundo criterio se cumple satisfactoriamente\",\"Al no cumplir con este criterio, no es posible generar contribución sustancial\"))","v":"El segundo criterio se cumple satisfactoriamente"}]
["¿Igualmente la evaluación se basa en un sólido análisis de los datos e información disponible sobre los distintos escenarios climáticos, y es coherente con la duración prevista de la actividad?",null,null,null,null,"Sí",{"$f":"IF(F151=\"Seleccione\",\"Por definir\",IF(F151=\"Sí\",\"El tercer criterio se cumple satisfactoriamente\",\"Al no cumplir con este criterio, no es posible generar contribución sustancial\"))","v":"El tercer criterio se cumple satisfactoriamente"}]
[{"$f":"IF(OR(F149=\"Seleccione\",F150=\"Seleccione\",F151=\"Seleccione\"),\"Por definir\",IF(OR(F149=\"No\",F150=\"No\",F151=\"No\"),\"La actividad no genera contribución sustancial\", \"La actividad sí contribuye sustancialmente a la sostenibilidad\"))","v":"La actividad sí contribuye sustancialmente a la sostenibilidad"}]
[]
["A2. Apoyo a la adaptación del sistema. "]
["La actividad económica y sus medidas de adaptación no afectan negativamente los esfuerzos de adaptación de otras personas, la naturaleza y los bienes. Selecciona las respuestas en las listas desplegables"]
["¿La actividad económica y sus medidas de adaptación no aumentan los riesgos de un impacto climático adverso sobre otras personas, la naturaleza y los bienes?",null,null,null,null,"Sí",{"$f":"IF(F156=\"Seleccione\",\"Por definir\",IF(F156=\"Sí\",\"El primer criterio se cumple satisfactoriamente\",\"Al no cumplir con este criterio, no es posible generar contribución sustancial\"))","v":"El primer criterio se cumple satisfactoriamente"},"Las dos condiciones deben cumplirse para argumentar que la actividad tiene contribución sustancial"]
["¿La actividad económica y sus medidas de adaptación son consistentes con los esfuerzos de adaptación a nivel sectorial, regional y/o nacional?",null,null,null,null,"Sí",{"$f":"IF(F157=\"Seleccione\",\"Por definir\",IF(F157=\"Sí\",\"El segundo criterio se cumple satisfactoriamente\",\"Al no cumplir con este criterio, no es posible generar contribución sustancial\"))","v":"El segundo criterio se cumple satisfactoriamente"}]
[{"$f":"IF(OR(F156=\"Seleccione\",F157=\"Seleccione\"),\"Por definir\",IF(OR(F156=\"No\",F157=\"No\"),\"La actividad no genera contribución sustancial\", \"La actividad sí contribuye sustancialmente a la sostenibilidad\"))","v":"La actividad sí contribuye sustancialmente a la sostenibilidad"}]
[]
["A3. Monitoreo de los resultados de adaptación."]
["En el contexto de la actividad evaluada, la reducción de los riesgos físicos se puede medir. Selecciona las respuestas en las listas desplegables"]
[" Los resultados de adaptación pueden ser monitoreados y medidos con base en indicadores. Considerando que los riesgos físicos evolucionan con el tiempo, el análisis de riesgos físicos debe llevarse a cabo con la frecuencia adecuada.  ¿Esto se evalúa dentro del proyecto o portafolio?",null,null,null,null,"Sí",{"$f":"IF(F162=\"Seleccione\",\"Por definir\",IF(F162=\"Sí\",\"La actividad sí contribuye sustancialmente a la sostenbilidad\",\"El proyecto no genera contribución sustancial\"))","v":"La actividad sí contribuye sustancialmente a la sostenbilidad"}]
[]
["B1. Apoyar a la adaptación de otras actividades económicas."]
["La actividad económica reduce el riesgo climático físico material en otras actividades económicas y/o aborda los obstáculos sistémicos para la adaptación. Las actividades que permiten la adaptación incluyen, pero no se limitan a, actividades que promueven una tecnología, un producto, una práctica, un proceso de gobernanza o usos innovadores de tecnologías, productos o prácticas existentes (incluidos los relacionados con las infraestructuras naturales). Además, eliminan las barreras de información, financieras, tecnológicas y de capacidad para la adaptación de otros. Selecciona las respuestas en las listas desplegables"]
["¿Se realiza una evaluación de los riesgos resultantes, con base en datos sólidos, tanto de la variabilidad  meteorológica actual como del cambio climático futuro, incluidos los escenarios climáticos, así como  la incertidumbre, que la actividad económica contribuirá a abordar?",null,null,null,null,"Sí",{"$f":"IF(F166=\"Seleccione\",\"Por definir\",IF(F166=\"Sí\",\"El primer criterio se cumple satisfactoriamente\",\"Al no cumplir con este criterio, no es posible generar contribución sustancial\"))","v":"El primer criterio se cumple satisfactoriamente"},"Las tres condiciones en caso de que apliquen deben cumplirse para argumentar que la actividad tiene contribución sustancial. La tercera opción podría no aplicar. En este caso se evaluaran las primeras dos cuestiones"]
["¿Se realiza una evaluación de la eficacia de la contribución de la actividad económica a la reducción de los riesgos físicos, teniendo en cuenta la escala de exposición y la vulnerabilidad a los mismos?",null,null,null,null,"Sí",{"$f":"IF(F167=\"Seleccione\",\"Por definir\",IF(F167=\"Sí\",\"El segundo criterio se cumple satisfactoriamente\",\"Al no cumplir con este criterio, no es posible generar contribución sustancial\"))","v":"El segundo criterio se cumple satisfactoriamente"}]
["En el caso de una infraestructura vinculada a una actividad que permita la adaptación, dicha infraestructura debe cumplir también los criterios de selección A1, A2 y A3. ¿Esto se cumple en el contexto del proyecto?",null,null,null,null,"Sí",{"$f":"IF(F168=\"Seleccione\",\"Por definir\",IF(F168=\"Sí\",\"El tercer criterio se cumple satisfactoriamente\",IF(F168=\"No aplica\",\"No aplica\",\"El proyecto no genera contribución sustancial\")))","v":"El tercer criterio se cumple satisfactoriamente"}]
[{"$f":"IF(OR(F166=\"Seleccione\",F167=\"Seleccione\",F168=\"Seleccione\"),\"Por definir\",IF(OR(F166=\"No\",F167=\"No\",F168=\"No\"),\"La actividad no genera contribución sustancial\",\"La actividad sí contribuye sustancialmente a la sostenibilidad\"))","v":"La actividad sí contribuye sustancialmente a la sostenibilidad"}]
[]
["221119. Generación de electricidad a partir de otro tipo de energía (bioenergía)"]
["Responde las siguientes preguntas seleccionando una respuesta de la lista"]
[]
["1. La actividad que estás evaluando es una actividad adaptada o una actividad que facilita la adaptación?",null,null,"Actividad que facilita la adaptación e incluye desarrollo de infraestructura"]
[]
["¿Qué es una actividad adaptada?\nUna actividad económica se adapta a los riesgos climáticos físicos materiales, si integra medidas y/o soluciones para reducirlos, mientras garantiza que la actividad económica pueda funcionar bien en un clima cambiante. Estas actividades de adaptación se desarrollan a partir de la evaluación de riesgos actuales y futuros, ya sean climáticos, crónicos y/o agudos, así como la escala temporal y geográfica de la actividad económica."]
["¿Qué es una actividad que facilita la adaptación? \nUna actividad económica posibilita la adaptación si reduce el riesgo climático físico material y la vulnerabilidad en otras actividades económicas, comunidades, ecosistemas o ciudades, y/o aborda los obstáculos sistémicos a la adaptación. Esto es posible a través del uso de la tecnología y la creación de un producto o servicio especializado."]
[]
[]
["A1. Reducción de los riesgos climáticos físicos materiales."]
["La actividad económica debe reducir todos los riesgos climáticos físicos materiales para las actividades evaluadas, en la medida de lo posible y sobre la base del mejor esfuerzo. Selecciona las respuestas en las listas desplegables"]
["¿La actividad económica integra medidas destinadas a reducir, en la medida de lo posible y sobre la base del mejor esfuerzo, los riesgos climáticos físicos materiales para esa actividad, que han sido identificados mediante una evaluación de riesgos?",null,null,null,null,"Sí",{"$f":"IF(F182=\"Seleccione\",\"Por definir\",IF(F182=\"Sí\",\"El primer criterio se cumple satisfactoriamente\",\"Al no cumplir con este criterio, no es posible generar contribución sustancial\"))","v":"El primer criterio se cumple satisfactoriamente"},"Las tres condiciones deben cumplirse para argumentar que la actividad tiene contribución sustancial"]
["¿Esta evaluación considera tanto la variabilidad meteorológica actual, como el cambio climático futuro, incluidos los escenarios climáticos, así como la incertidumbre?",null,null,null,null,"Sí",{"$f":"IF(F183=\"Seleccione\",\"Por definir\",IF(F183=\"Sí\",\"El segundo criterio se cumple satisfactoriamente\",\"Al no cumplir con este criterio, no es posible generar contribución sustancial\"))","v":"El segundo criterio se cumple satisfactoriamente"}]
["¿Igualmente la evaluación se basa en un sólido análisis de los datos e información disponible sobre los distintos escenarios climáticos, y es coherente con la duración prevista de la actividad?",null,null,null,null,"Sí",{"$f":"IF(F184=\"Seleccione\",\"Por definir\",IF(F184=\"Sí\",\"El tercer criterio se cumple satisfactoriamente\",\"Al no cumplir con este criterio, no es posible generar contribución sustancial\"))","v":"El tercer criterio se cumple satisfactoriamente"}]
[{"$f":"IF(OR(F182=\"Seleccione\",F183=\"Seleccione\",F184=\"Seleccione\"),\"Por definir\",IF(OR(F182=\"No\",F183=\"No\",F184=\"No\"),\"La actividad no genera contribución sustancial\", \"La actividad sí contribuye sustancialmente a la sostenibilidad\"))","v":"La actividad sí contribuye sustancialmente a la sostenibilidad"}]
[]
["A2. Apoyo a la adaptación del sistema. "]
["La actividad económica y sus medidas de adaptación no afectan negativamente los esfuerzos de adaptación de otras personas, la naturaleza y los bienes. Selecciona las respuestas en las listas desplegables"]
["¿La actividad económica y sus medidas de adaptación no aumentan los riesgos de un impacto climático adverso sobre otras personas, la naturaleza y los bienes?",null,null,null,null,"Sí",{"$f":"IF(F189=\"Seleccione\",\"Por definir\",IF(F189=\"Sí\",\"El primer criterio se cumple satisfactoriamente\",\"Al no cumplir con este criterio, no es posible generar contribución sustancial\"))","v":"El primer criterio se cumple satisfactoriamente"},"Las dos condiciones deben cumplirse para argumentar que la actividad tiene contribución sustancial"]
["¿La actividad económica y sus medidas de adaptación son consistentes con los esfuerzos de adaptación a nivel sectorial, regional y/o nacional?",null,null,null,null,"Sí",{"$f":"IF(F190=\"Seleccione\",\"Por definir\",IF(F190=\"Sí\",\"El segundo criterio se cumple satisfactoriamente\",\"Al no cumplir con este criterio, no es posible generar contribución sustancial\"))","v":"El segundo criterio se cumple satisfactoriamente"}]
[{"$f":"IF(OR(F189=\"Seleccione\",F190=\"Seleccione\"),\"Por definir\",IF(OR(F189=\"No\",F190=\"No\"),\"La actividad no genera contribución sustancial\", \"La actividad sí contribuye sustancialmente a la sostenibilidad\"))","v":"La actividad sí contribuye sustancialmente a la sostenibilidad"}]
[]
["A3. Monitoreo de los resultados de adaptación."]
["En el contexto de la actividad evaluada, la reducción de los riesgos físicos se puede medir. Selecciona las respuestas en las listas desplegables"]
[" Los resultados de adaptación pueden ser monitoreados y medidos con base en indicadores. Considerando que los riesgos físicos evolucionan con el tiempo, el análisis de riesgos físicos debe llevarse a cabo con la frecuencia adecuada.  ¿Esto se evalúa dentro del proyecto o portafolio?",null,null,null,null,"Sí",{"$f":"IF(F195=\"Seleccione\",\"Por definir\",IF(F195=\"Sí\",\"La actividad sí contribuye sustancialmente a la sostenbilidad\",\"El proyecto no genera contribución sustancial\"))","v":"La actividad sí contribuye sustancialmente a la sostenbilidad"}]
[]
["B1. Apoyar a la adaptación de otras actividades económicas."]
["La actividad económica reduce el riesgo climático físico material en otras actividades económicas y/o aborda los obstáculos sistémicos para la adaptación. Las actividades que permiten la adaptación incluyen, pero no se limitan a, actividades que promueven una tecnología, un producto, una práctica, un proceso de gobernanza o usos innovadores de tecnologías, productos o prácticas existentes (incluidos los relacionados con las infraestructuras naturales). Además, eliminan las barreras de información, financieras, tecnológicas y de capacidad para la adaptación de otros. Selecciona las respuestas en las listas desplegables"]
["¿Se realiza una evaluación de los riesgos resultantes, con base en datos sólidos, tanto de la variabilidad  meteorológica actual como del cambio climático futuro, incluidos los escenarios climáticos, así como  la incertidumbre, que la actividad económica contribuirá a abordar?",null,null,null,null,"Sí",{"$f":"IF(F199=\"Seleccione\",\"Por definir\",IF(F199=\"Sí\",\"El primer criterio se cumple satisfactoriamente\",\"Al no cumplir con este criterio, no es posible generar contribución sustancial\"))","v":"El primer criterio se cumple satisfactoriamente"},"Las tres condiciones en caso de que apliquen deben cumplirse para argumentar que la actividad tiene contribución sustancial. La tercera opción podría no aplicar. En este caso se evaluaran las primeras dos cuestiones"]
["¿Se realiza una evaluación de la eficacia de la contribución de la actividad económica a la reducción de los riesgos físicos, teniendo en cuenta la escala de exposición y la vulnerabilidad a los mismos?",null,null,null,null,"Sí",{"$f":"IF(F200=\"Seleccione\",\"Por definir\",IF(F200=\"Sí\",\"El segundo criterio se cumple satisfactoriamente\",\"Al no cumplir con este criterio, no es posible generar contribución sustancial\"))","v":"El segundo criterio se cumple satisfactoriamente"}]
["En el caso de una infraestructura vinculada a una actividad que permita la adaptación, dicha infraestructura debe cumplir también los criterios de selección A1, A2 y A3. ¿Esto se cumple en el contexto del proyecto?",null,null,null,null,"Sí",{"$f":"IF(F201=\"Seleccione\",\"Por definir\",IF(F201=\"Sí\",\"El tercer criterio se cumple satisfactoriamente\",IF(F201=\"No aplica\",\"No aplica\",\"El proyecto no genera contribución sustancial\")))","v":"El tercer criterio se cumple satisfactoriamente"}]
[{"$f":"IF(OR(F199=\"Seleccione\",F200=\"Seleccione\",F201=\"Seleccione\"),\"Por definir\",IF(OR(F199=\"No\",F200=\"No\",F201=\"No\"),\"La actividad no genera contribución sustancial\",\"La actividad sí contribuye sustancialmente a la sostenibilidad\"))","v":"La actividad sí contribuye sustancialmente a la sostenibilidad"}]
[]
["221119. Generación de electricidad a partir de otro tipo de energía (cogeneración a partir de biomasa)"]
["Responde las siguientes preguntas seleccionando una respuesta de la lista"]
[]
["1. La actividad que estás evaluando es una actividad adaptada o una actividad que facilita la adaptación?",null,null,"Actividad que facilita la adaptación e incluye desarrollo de infraestructura"]
[]
["¿Qué es una actividad adaptada?\nUna actividad económica se adapta a los riesgos climáticos físicos materiales, si integra medidas y/o soluciones para reducirlos, mientras garantiza que la actividad económica pueda funcionar bien en un clima cambiante. Estas actividades de adaptación se desarrollan a partir de la evaluación de riesgos actuales y futuros, ya sean climáticos, crónicos y/o agudos, así como la escala temporal y geográfica de la actividad económica."]
["¿Qué es una actividad que facilita la adaptación? \nUna actividad económica posibilita la adaptación si reduce el riesgo climático físico material y la vulnerabilidad en otras actividades económicas, comunidades, ecosistemas o ciudades, y/o aborda los obstáculos sistémicos a la adaptación. Esto es posible a través del uso de la tecnología y la creación de un producto o servicio especializado."]
[]
[]
["A1. Reducción de los riesgos climáticos físicos materiales."]
["La actividad económica debe reducir todos los riesgos climáticos físicos materiales para las actividades evaluadas, en la medida de lo posible y sobre la base del mejor esfuerzo. Selecciona las respuestas en las listas desplegables"]
["¿La actividad económica integra medidas destinadas a reducir, en la medida de lo posible y sobre la base del mejor esfuerzo, los riesgos climáticos físicos materiales para esa actividad, que han sido identificados mediante una evaluación de riesgos?",null,null,null,null,"Sí",{"$f":"IF(F215=\"Seleccione\",\"Por definir\",IF(F215=\"Sí\",\"El primer criterio se cumple satisfactoriamente\",\"Al no cumplir con este criterio, no es posible generar contribución sustancial\"))","v":"El primer criterio se cumple satisfactoriamente"},"Las tres condiciones deben cumplirse para argumentar que la actividad tiene contribución sustancial"]
["¿Esta evaluación considera tanto la variabilidad meteorológica actual, como el cambio climático futuro, incluidos los escenarios climáticos, así como la incertidumbre?",null,null,null,null,"Sí",{"$f":"IF(F216=\"Seleccione\",\"Por definir\",IF(F216=\"Sí\",\"El segundo criterio se cumple satisfactoriamente\",\"Al no cumplir con este criterio, no es posible generar contribución sustancial\"))","v":"El segundo criterio se cumple satisfactoriamente"}]
["¿Igualmente la evaluación se basa en un sólido análisis de los datos e información disponible sobre los distintos escenarios climáticos, y es coherente con la duración prevista de la actividad?",null,null,null,null,"Sí",{"$f":"IF(F217=\"Seleccione\",\"Por definir\",IF(F217=\"Sí\",\"El tercer criterio se cumple satisfactoriamente\",\"Al no cumplir con este criterio, no es posible generar contribución sustancial\"))","v":"El tercer criterio se cumple satisfactoriamente"}]
[{"$f":"IF(OR(F215=\"Seleccione\",F216=\"Seleccione\",F217=\"Seleccione\"),\"Por definir\",IF(OR(F215=\"No\",F216=\"No\",F217=\"No\"),\"La actividad no genera contribución sustancial\", \"La actividad sí contribuye sustancialmente a la sostenibilidad\"))","v":"La actividad sí contribuye sustancialmente a la sostenibilidad"}]
[]
["A2. Apoyo a la adaptación del sistema. "]
["La actividad económica y sus medidas de adaptación no afectan negativamente los esfuerzos de adaptación de otras personas, la naturaleza y los bienes. Selecciona las respuestas en las listas desplegables"]
["¿La actividad económica y sus medidas de adaptación no aumentan los riesgos de un impacto climático adverso sobre otras personas, la naturaleza y los bienes?",null,null,null,null,"Sí",{"$f":"IF(F222=\"Seleccione\",\"Por definir\",IF(F222=\"Sí\",\"El primer criterio se cumple satisfactoriamente\",\"Al no cumplir con este criterio, no es posible generar contribución sustancial\"))","v":"El primer criterio se cumple satisfactoriamente"},"Las dos condiciones deben cumplirse para argumentar que la actividad tiene contribución sustancial"]
["¿La actividad económica y sus medidas de adaptación son consistentes con los esfuerzos de adaptación a nivel sectorial, regional y/o nacional?",null,null,null,null,"Sí",{"$f":"IF(F223=\"Seleccione\",\"Por definir\",IF(F223=\"Sí\",\"El segundo criterio se cumple satisfactoriamente\",\"Al no cumplir con este criterio, no es posible generar contribución sustancial\"))","v":"El segundo criterio se cumple satisfactoriamente"}]
[{"$f":"IF(OR(F222=\"Seleccione\",F223=\"Seleccione\"),\"Por definir\",IF(OR(F222=\"No\",F223=\"No\"),\"La actividad no genera contribución sustancial\", \"La actividad sí contribuye sustancialmente a la sostenibilidad\"))","v":"La actividad sí contribuye sustancialmente a la sostenibilidad"}]
[]
["A3. Monitoreo de los resultados de adaptación."]
["En el contexto de la actividad evaluada, la reducción de los riesgos físicos se puede medir. Selecciona las respuestas en las listas desplegables"]
[" Los resultados de adaptación pueden ser monitoreados y medidos con base en indicadores. Considerando que los riesgos físicos evolucionan con el tiempo, el análisis de riesgos físicos debe llevarse a cabo con la frecuencia adecuada.  ¿Esto se evalúa dentro del proyecto o portafolio?",null,null,null,null,"Sí",{"$f":"IF(F228=\"Seleccione\",\"Por definir\",IF(F228=\"Sí\",\"La actividad sí contribuye sustancialmente a la sostenbilidad\",\"El proyecto no genera contribución sustancial\"))","v":"La actividad sí contribuye sustancialmente a la sostenbilidad"}]
[]
["B1. Apoyar a la adaptación de otras actividades económicas."]
["La actividad económica reduce el riesgo climático físico material en otras actividades económicas y/o aborda los obstáculos sistémicos para la adaptación. Las actividades que permiten la adaptación incluyen, pero no se limitan a, actividades que promueven una tecnología, un producto, una práctica, un proceso de gobernanza o usos innovadores de tecnologías, productos o prácticas existentes (incluidos los relacionados con las infraestructuras naturales). Además, eliminan las barreras de información, financieras, tecnológicas y de capacidad para la adaptación de otros. Selecciona las respuestas en las listas desplegables"]
["¿Se realiza una evaluación de los riesgos resultantes, con base en datos sólidos, tanto de la variabilidad  meteorológica actual como del cambio climático futuro, incluidos los escenarios climáticos, así como  la incertidumbre, que la actividad económica contribuirá a abordar?",null,null,null,null,"Sí",{"$f":"IF(F232=\"Seleccione\",\"Por definir\",IF(F232=\"Sí\",\"El primer criterio se cumple satisfactoriamente\",\"Al no cumplir con este criterio, no es posible generar contribución sustancial\"))","v":"El primer criterio se cumple satisfactoriamente"},"Las tres condiciones en caso de que apliquen deben cumplirse para argumentar que la actividad tiene contribución sustancial. La tercera opción podría no aplicar. En este caso se evaluaran las primeras dos cuestiones"]
["¿Se realiza una evaluación de la eficacia de la contribución de la actividad económica a la reducción de los riesgos físicos, teniendo en cuenta la escala de exposición y la vulnerabilidad a los mismos?",null,null,null,null,"Sí",{"$f":"IF(F233=\"Seleccione\",\"Por definir\",IF(F233=\"Sí\",\"El segundo criterio se cumple satisfactoriamente\",\"Al no cumplir con este criterio, no es posible generar contribución sustancial\"))","v":"El segundo criterio se cumple satisfactoriamente"}]
["En el caso de una infraestructura vinculada a una actividad que permita la adaptación, dicha infraestructura debe cumplir también los criterios de selección A1, A2 y A3. ¿Esto se cumple en el contexto del proyecto?",null,null,null,null,"Sí",{"$f":"IF(F234=\"Seleccione\",\"Por definir\",IF(F234=\"Sí\",\"El tercer criterio se cumple satisfactoriamente\",IF(F234=\"No aplica\",\"No aplica\",\"El proyecto no genera contribución sustancial\")))","v":"El tercer criterio se cumple satisfactoriamente"}]
[{"$f":"IF(OR(F232=\"Seleccione\",F233=\"Seleccione\",F234=\"Seleccione\"),\"Por definir\",IF(OR(F232=\"No\",F233=\"No\",F234=\"No\"),\"La actividad no genera contribución sustancial\",\"La actividad sí contribuye sustancialmente a la sostenibilidad\"))","v":"La actividad sí contribuye sustancialmente a la sostenibilidad"}]
[]
["221119. Generación de electricidad a partir de otro tipo de energía (energía oceánica)"]
["Responde las siguientes preguntas seleccionando una respuesta de la lista"]
[]
["1. La actividad que estás evaluando es una actividad adaptada o una actividad que facilita la adaptación?",null,null,"Actividad que facilita la adaptación e incluye desarrollo de infraestructura"]
[]
["¿Qué es una actividad adaptada?\nUna actividad económica se adapta a los riesgos climáticos físicos materiales, si integra medidas y/o soluciones para reducirlos, mientras garantiza que la actividad económica pueda funcionar bien en un clima cambiante. Estas actividades de adaptación se desarrollan a partir de la evaluación de riesgos actuales y futuros, ya sean climáticos, crónicos y/o agudos, así como la escala temporal y geográfica de la actividad económica."]
["¿Qué es una actividad que facilita la adaptación? \nUna actividad económica posibilita la adaptación si reduce el riesgo climático físico material y la vulnerabilidad en otras actividades económicas, comunidades, ecosistemas o ciudades, y/o aborda los obstáculos sistémicos a la adaptación. Esto es posible a través del uso de la tecnología y la creación de un producto o servicio especializado."]
[]
[]
["A1. Reducción de los riesgos climáticos físicos materiales."]
["La actividad económica debe reducir todos los riesgos climáticos físicos materiales para las actividades evaluadas, en la medida de lo posible y sobre la base del mejor esfuerzo. Selecciona las respuestas en las listas desplegables"]
["¿La actividad económica integra medidas destinadas a reducir, en la medida de lo posible y sobre la base del mejor esfuerzo, los riesgos climáticos físicos materiales para esa actividad, que han sido identificados mediante una evaluación de riesgos?",null,null,null,null,"Sí",{"$f":"IF(F248=\"Seleccione\",\"Por definir\",IF(F248=\"Sí\",\"El primer criterio se cumple satisfactoriamente\",\"Al no cumplir con este criterio, no es posible generar contribución sustancial\"))","v":"El primer criterio se cumple satisfactoriamente"},"Las tres condiciones deben cumplirse para argumentar que la actividad tiene contribución sustancial"]
["¿Esta evaluación considera tanto la variabilidad meteorológica actual, como el cambio climático futuro, incluidos los escenarios climáticos, así como la incertidumbre?",null,null,null,null,"Sí",{"$f":"IF(F249=\"Seleccione\",\"Por definir\",IF(F249=\"Sí\",\"El segundo criterio se cumple satisfactoriamente\",\"Al no cumplir con este criterio, no es posible generar contribución sustancial\"))","v":"El segundo criterio se cumple satisfactoriamente"}]
["¿Igualmente la evaluación se basa en un sólido análisis de los datos e información disponible sobre los distintos escenarios climáticos, y es coherente con la duración prevista de la actividad?",null,null,null,null,"Sí",{"$f":"IF(F250=\"Seleccione\",\"Por definir\",IF(F250=\"Sí\",\"El tercer criterio se cumple satisfactoriamente\",\"Al no cumplir con este criterio, no es posible generar contribución sustancial\"))","v":"El tercer criterio se cumple satisfactoriamente"}]
[{"$f":"IF(OR(F248=\"Seleccione\",F249=\"Seleccione\",F250=\"Seleccione\"),\"Por definir\",IF(OR(F248=\"No\",F249=\"No\",F250=\"No\"),\"La actividad no genera contribución sustancial\", \"La actividad sí contribuye sustancialmente a la sostenibilidad\"))","v":"La actividad sí contribuye sustancialmente a la sostenibilidad"}]
[]
["A2. Apoyo a la adaptación del sistema. "]
["La actividad económica y sus medidas de adaptación no afectan negativamente los esfuerzos de adaptación de otras personas, la naturaleza y los bienes. Selecciona las respuestas en las listas desplegables"]
["¿La actividad económica y sus medidas de adaptación no aumentan los riesgos de un impacto climático adverso sobre otras personas, la naturaleza y los bienes?",null,null,null,null,"Sí",{"$f":"IF(F255=\"Seleccione\",\"Por definir\",IF(F255=\"Sí\",\"El primer criterio se cumple satisfactoriamente\",\"Al no cumplir con este criterio, no es posible generar contribución sustancial\"))","v":"El primer criterio se cumple satisfactoriamente"},"Las dos condiciones deben cumplirse para argumentar que la actividad tiene contribución sustancial"]
["¿La actividad económica y sus medidas de adaptación son consistentes con los esfuerzos de adaptación a nivel sectorial, regional y/o nacional?",null,null,null,null,"Sí",{"$f":"IF(F256=\"Seleccione\",\"Por definir\",IF(F256=\"Sí\",\"El segundo criterio se cumple satisfactoriamente\",\"Al no cumplir con este criterio, no es posible generar contribución sustancial\"))","v":"El segundo criterio se cumple satisfactoriamente"}]
[{"$f":"IF(OR(F255=\"Seleccione\",F256=\"Seleccione\"),\"Por definir\",IF(OR(F255=\"No\",F256=\"No\"),\"La actividad no genera contribución sustancial\", \"La actividad sí contribuye sustancialmente a la sostenibilidad\"))","v":"La actividad sí contribuye sustancialmente a la sostenibilidad"}]
[]
["A3. Monitoreo de los resultados de adaptación."]
["En el contexto de la actividad evaluada, la reducción de los riesgos físicos se puede medir. Selecciona las respuestas en las listas desplegables"]
[" Los resultados de adaptación pueden ser monitoreados y medidos con base en indicadores. Considerando que los riesgos físicos evolucionan con el tiempo, el análisis de riesgos físicos debe llevarse a cabo con la frecuencia adecuada.  ¿Esto se evalúa dentro del proyecto o portafolio?",null,null,null,null,"Sí",{"$f":"IF(F261=\"Seleccione\",\"Por definir\",IF(F261=\"Sí\",\"La actividad sí contribuye sustancialmente a la sostenbilidad\",\"El proyecto no genera contribución sustancial\"))","v":"La actividad sí contribuye sustancialmente a la sostenbilidad"}]
[]
["B1. Apoyar a la adaptación de otras actividades económicas."]
["La actividad económica reduce el riesgo climático físico material en otras actividades económicas y/o aborda los obstáculos sistémicos para la adaptación. Las actividades que permiten la adaptación incluyen, pero no se limitan a, actividades que promueven una tecnología, un producto, una práctica, un proceso de gobernanza o usos innovadores de tecnologías, productos o prácticas existentes (incluidos los relacionados con las infraestructuras naturales). Además, eliminan las barreras de información, financieras, tecnológicas y de capacidad para la adaptación de otros. Selecciona las respuestas en las listas desplegables"]
["¿Se realiza una evaluación de los riesgos resultantes, con base en datos sólidos, tanto de la variabilidad  meteorológica actual como del cambio climático futuro, incluidos los escenarios climáticos, así como  la incertidumbre, que la actividad económica contribuirá a abordar?",null,null,null,null,"Sí",{"$f":"IF(F265=\"Seleccione\",\"Por definir\",IF(F265=\"Sí\",\"El primer criterio se cumple satisfactoriamente\",\"Al no cumplir con este criterio, no es posible generar contribución sustancial\"))","v":"El primer criterio se cumple satisfactoriamente"},"Las tres condiciones en caso de que apliquen deben cumplirse para argumentar que la actividad tiene contribución sustancial. La tercera opción podría no aplicar. En este caso se evaluaran las primeras dos cuestiones"]
["¿Se realiza una evaluación de la eficacia de la contribución de la actividad económica a la reducción de los riesgos físicos, teniendo en cuenta la escala de exposición y la vulnerabilidad a los mismos?",null,null,null,null,"Sí",{"$f":"IF(F266=\"Seleccione\",\"Por definir\",IF(F266=\"Sí\",\"El segundo criterio se cumple satisfactoriamente\",\"Al no cumplir con este criterio, no es posible generar contribución sustancial\"))","v":"El segundo criterio se cumple satisfactoriamente"}]
["En el caso de una infraestructura vinculada a una actividad que permita la adaptación, dicha infraestructura debe cumplir también los criterios de selección A1, A2 y A3. ¿Esto se cumple en el contexto del proyecto?",null,null,null,null,"Sí",{"$f":"IF(F267=\"Seleccione\",\"Por definir\",IF(F267=\"Sí\",\"El tercer criterio se cumple satisfactoriamente\",IF(F267=\"No aplica\",\"No aplica\",\"El proyecto no genera contribución sustancial\")))","v":"El tercer criterio se cumple satisfactoriamente"}]
[{"$f":"IF(OR(F265=\"Seleccione\",F266=\"Seleccione\",F267=\"Seleccione\"),\"Por definir\",IF(OR(F265=\"No\",F266=\"No\",F267=\"No\"),\"La actividad no genera contribución sustancial\",\"La actividad sí contribuye sustancialmente a la sostenibilidad\"))","v":"La actividad sí contribuye sustancialmente a la sostenibilidad"}]
[]
["221119. Generación de electricidad a partir de otro tipo de energía (cogeneración eficiente)"]
["Responde las siguientes preguntas seleccionando una respuesta de la lista"]
[]
["1. La actividad que estás evaluando es una actividad adaptada o una actividad que facilita la adaptación?",null,null,"Actividad que facilita la adaptación e incluye desarrollo de infraestructura"]
[]
["¿Qué es una actividad adaptada?\nUna actividad económica se adapta a los riesgos climáticos físicos materiales, si integra medidas y/o soluciones para reducirlos, mientras garantiza que la actividad económica pueda funcionar bien en un clima cambiante. Estas actividades de adaptación se desarrollan a partir de la evaluación de riesgos actuales y futuros, ya sean climáticos, crónicos y/o agudos, así como la escala temporal y geográfica de la actividad económica."]
["¿Qué es una actividad que facilita la adaptación? \nUna actividad económica posibilita la adaptación si reduce el riesgo climático físico material y la vulnerabilidad en otras actividades económicas, comunidades, ecosistemas o ciudades, y/o aborda los obstáculos sistémicos a la adaptación. Esto es posible a través del uso de la tecnología y la creación de un producto o servicio especializado."]
[]
[]
["A1. Reducción de los riesgos climáticos físicos materiales."]
["La actividad económica debe reducir todos los riesgos climáticos físicos materiales para las actividades evaluadas, en la medida de lo posible y sobre la base del mejor esfuerzo. Selecciona las respuestas en las listas desplegables"]
["¿La actividad económica integra medidas destinadas a reducir, en la medida de lo posible y sobre la base del mejor esfuerzo, los riesgos climáticos físicos materiales para esa actividad, que han sido identificados mediante una evaluación de riesgos?",null,null,null,null,"Sí",{"$f":"IF(F281=\"Seleccione\",\"Por definir\",IF(F281=\"Sí\",\"El primer criterio se cumple satisfactoriamente\",\"Al no cumplir con este criterio, no es posible generar contribución sustancial\"))","v":"El primer criterio se cumple satisfactoriamente"},"Las tres condiciones deben cumplirse para argumentar que la actividad tiene contribución sustancial"]
["¿Esta evaluación considera tanto la variabilidad meteorológica actual, como el cambio climático futuro, incluidos los escenarios climáticos, así como la incertidumbre?",null,null,null,null,"Sí",{"$f":"IF(F282=\"Seleccione\",\"Por definir\",IF(F282=\"Sí\",\"El segundo criterio se cumple satisfactoriamente\",\"Al no cumplir con este criterio, no es posible generar contribución sustancial\"))","v":"El segundo criterio se cumple satisfactoriamente"}]
["¿Igualmente la evaluación se basa en un sólido análisis de los datos e información disponible sobre los distintos escenarios climáticos, y es coherente con la duración prevista de la actividad?",null,null,null,null,"Sí",{"$f":"IF(F283=\"Seleccione\",\"Por definir\",IF(F283=\"Sí\",\"El tercer criterio se cumple satisfactoriamente\",\"Al no cumplir con este criterio, no es posible generar contribución sustancial\"))","v":"El tercer criterio se cumple satisfactoriamente"}]
[{"$f":"IF(OR(F281=\"Seleccione\",F282=\"Seleccione\",F283=\"Seleccione\"),\"Por definir\",IF(OR(F281=\"No\",F282=\"No\",F283=\"No\"),\"La actividad no genera contribución sustancial\", \"La actividad sí contribuye sustancialmente a la sostenibilidad\"))","v":"La actividad sí contribuye sustancialmente a la sostenibilidad"}]
[]
["A2. Apoyo a la adaptación del sistema. "]
["La actividad económica y sus medidas de adaptación no afectan negativamente los esfuerzos de adaptación de otras personas, la naturaleza y los bienes. Selecciona las respuestas en las listas desplegables"]
["¿La actividad económica y sus medidas de adaptación no aumentan los riesgos de un impacto climático adverso sobre otras personas, la naturaleza y los bienes?",null,null,null,null,"Sí",{"$f":"IF(F288=\"Seleccione\",\"Por definir\",IF(F288=\"Sí\",\"El primer criterio se cumple satisfactoriamente\",\"Al no cumplir con este criterio, no es posible generar contribución sustancial\"))","v":"El primer criterio se cumple satisfactoriamente"},"Las dos condiciones deben cumplirse para argumentar que la actividad tiene contribución sustancial"]
["¿La actividad económica y sus medidas de adaptación son consistentes con los esfuerzos de adaptación a nivel sectorial, regional y/o nacional?",null,null,null,null,"Sí",{"$f":"IF(F289=\"Seleccione\",\"Por definir\",IF(F289=\"Sí\",\"El segundo criterio se cumple satisfactoriamente\",\"Al no cumplir con este criterio, no es posible generar contribución sustancial\"))","v":"El segundo criterio se cumple satisfactoriamente"}]
[{"$f":"IF(OR(F288=\"Seleccione\",F289=\"Seleccione\"),\"Por definir\",IF(OR(F288=\"No\",F289=\"No\"),\"La actividad no genera contribución sustancial\", \"La actividad sí contribuye sustancialmente a la sostenibilidad\"))","v":"La actividad sí contribuye sustancialmente a la sostenibilidad"}]
[]
["A3. Monitoreo de los resultados de adaptación."]
["En el contexto de la actividad evaluada, la reducción de los riesgos físicos se puede medir. Selecciona las respuestas en las listas desplegables"]
[" Los resultados de adaptación pueden ser monitoreados y medidos con base en indicadores. Considerando que los riesgos físicos evolucionan con el tiempo, el análisis de riesgos físicos debe llevarse a cabo con la frecuencia adecuada.  ¿Esto se evalúa dentro del proyecto o portafolio?",null,null,null,null,"Sí",{"$f":"IF(F294=\"Seleccione\",\"Por definir\",IF(F294=\"Sí\",\"La actividad sí contribuye sustancialmente a la sostenbilidad\",\"El proyecto no genera contribución sustancial\"))","v":"La actividad sí contribuye sustancialmente a la sostenbilidad"}]
[]
["B1. Apoyar a la adaptación de otras actividades económicas."]
["La actividad económica reduce el riesgo climático físico material en otras actividades económicas y/o aborda los obstáculos sistémicos para la adaptación. Las actividades que permiten la adaptación incluyen, pero no se limitan a, actividades que promueven una tecnología, un producto, una práctica, un proceso de gobernanza o usos innovadores de tecnologías, productos o prácticas existentes (incluidos los relacionados con las infraestructuras naturales). Además, eliminan las barreras de información, financieras, tecnológicas y de capacidad para la adaptación de otros. Selecciona las respuestas en las listas desplegables"]
["¿Se realiza una evaluación de los riesgos resultantes, con base en datos sólidos, tanto de la variabilidad  meteorológica actual como del cambio climático futuro, incluidos los escenarios climáticos, así como  la incertidumbre, que la actividad económica contribuirá a abordar?",null,null,null,null,"Sí",{"$f":"IF(F298=\"Seleccione\",\"Por definir\",IF(F298=\"Sí\",\"El primer criterio se cumple satisfactoriamente\",\"Al no cumplir con este criterio, no es posible generar contribución sustancial\"))","v":"El primer criterio se cumple satisfactoriamente"},"Las tres condiciones en caso de que apliquen deben cumplirse para argumentar que la actividad tiene contribución sustancial. La tercera opción podría no aplicar. En este caso se evaluaran las primeras dos cuestiones"]
["¿Se realiza una evaluación de la eficacia de la contribución de la actividad económica a la reducción de los riesgos físicos, teniendo en cuenta la escala de exposición y la vulnerabilidad a los mismos?",null,null,null,null,"Sí",{"$f":"IF(F299=\"Seleccione\",\"Por definir\",IF(F299=\"Sí\",\"El segundo criterio se cumple satisfactoriamente\",\"Al no cumplir con este criterio, no es posible generar contribución sustancial\"))","v":"El segundo criterio se cumple satisfactoriamente"}]
["En el caso de una infraestructura vinculada a una actividad que permita la adaptación, dicha infraestructura debe cumplir también los criterios de selección A1, A2 y A3. ¿Esto se cumple en el contexto del proyecto?",null,null,null,null,"Sí",{"$f":"IF(F300=\"Seleccione\",\"Por definir\",IF(F300=\"Sí\",\"El tercer criterio se cumple satisfactoriamente\",IF(F300=\"No aplica\",\"No aplica\",\"El proyecto no genera contribución sustancial\")))","v":"El tercer criterio se cumple satisfactoriamente"}]
[{"$f":"IF(OR(F298=\"Seleccione\",F299=\"Seleccione\",F300=\"Seleccione\"),\"Por definir\",IF(OR(F298=\"No\",F299=\"No\",F300=\"No\"),\"La actividad no genera contribución sustancial\",\"La actividad sí contribuye sustancialmente a la sostenibilidad\"))","v":"La actividad sí contribuye sustancialmente a la sostenibilidad"}]
[]
["221121. Transmisión de energía eléctrica"]
["Responde las siguientes preguntas seleccionando una respuesta de la lista"]
[]
["1. La actividad que estás evaluando es una actividad adaptada o una actividad que facilita la adaptación?",null,null,"Actividad que facilita la adaptación e incluye desarrollo de infraestructura"]
[]
["¿Qué es una actividad adaptada?\nUna actividad económica se adapta a los riesgos climáticos físicos materiales, si integra medidas y/o soluciones para reducirlos, mientras garantiza que la actividad económica pueda funcionar bien en un clima cambiante. Estas actividades de adaptación se desarrollan a partir de la evaluación de riesgos actuales y futuros, ya sean climáticos, crónicos y/o agudos, así como la escala temporal y geográfica de la actividad económica."]
["¿Qué es una actividad que facilita la adaptación? \nUna actividad económica posibilita la adaptación si reduce el riesgo climático físico material y la vulnerabilidad en otras actividades económicas, comunidades, ecosistemas o ciudades, y/o aborda los obstáculos sistémicos a la adaptación. Esto es posible a través del uso de la tecnología y la creación de un producto o servicio especializado."]
[]
[]
["A1. Reducción de los riesgos climáticos físicos materiales."]
["La actividad económica debe reducir todos los riesgos climáticos físicos materiales para las actividades evaluadas, en la medida de lo posible y sobre la base del mejor esfuerzo. Selecciona las respuestas en las listas desplegables"]
["¿La actividad económica integra medidas destinadas a reducir, en la medida de lo posible y sobre la base del mejor esfuerzo, los riesgos climáticos físicos materiales para esa actividad, que han sido identificados mediante una evaluación de riesgos?",null,null,null,null,"Sí",{"$f":"IF(F314=\"Seleccione\",\"Por definir\",IF(F314=\"Sí\",\"El primer criterio se cumple satisfactoriamente\",\"Al no cumplir con este criterio, no es posible generar contribución sustancial\"))","v":"El primer criterio se cumple satisfactoriamente"},"Las tres condiciones deben cumplirse para argumentar que la actividad tiene contribución sustancial"]
["¿Esta evaluación considera tanto la variabilidad meteorológica actual, como el cambio climático futuro, incluidos los escenarios climáticos, así como la incertidumbre?",null,null,null,null,"Sí",{"$f":"IF(F315=\"Seleccione\",\"Por definir\",IF(F315=\"Sí\",\"El segundo criterio se cumple satisfactoriamente\",\"Al no cumplir con este criterio, no es posible generar contribución sustancial\"))","v":"El segundo criterio se cumple satisfactoriamente"}]
["¿Igualmente la evaluación se basa en un sólido análisis de los datos e información disponible sobre los distintos escenarios climáticos, y es coherente con la duración prevista de la actividad?",null,null,null,null,"Sí",{"$f":"IF(F316=\"Seleccione\",\"Por definir\",IF(F316=\"Sí\",\"El tercer criterio se cumple satisfactoriamente\",\"Al no cumplir con este criterio, no es posible generar contribución sustancial\"))","v":"El tercer criterio se cumple satisfactoriamente"}]
[{"$f":"IF(OR(F314=\"Seleccione\",F315=\"Seleccione\",F316=\"Seleccione\"),\"Por definir\",IF(OR(F314=\"No\",F315=\"No\",F316=\"No\"),\"La actividad no genera contribución sustancial\", \"La actividad sí contribuye sustancialmente a la sostenibilidad\"))","v":"La actividad sí contribuye sustancialmente a la sostenibilidad"}]
[]
["A2. Apoyo a la adaptación del sistema. "]
["La actividad económica y sus medidas de adaptación no afectan negativamente los esfuerzos de adaptación de otras personas, la naturaleza y los bienes. Selecciona las respuestas en las listas desplegables"]
["¿La actividad económica y sus medidas de adaptación no aumentan los riesgos de un impacto climático adverso sobre otras personas, la naturaleza y los bienes?",null,null,null,null,"Sí",{"$f":"IF(F321=\"Seleccione\",\"Por definir\",IF(F321=\"Sí\",\"El primer criterio se cumple satisfactoriamente\",\"Al no cumplir con este criterio, no es posible generar contribución sustancial\"))","v":"El primer criterio se cumple satisfactoriamente"},"Las dos condiciones deben cumplirse para argumentar que la actividad tiene contribución sustancial"]
["¿La actividad económica y sus medidas de adaptación son consistentes con los esfuerzos de adaptación a nivel sectorial, regional y/o nacional?",null,null,null,null,"Sí",{"$f":"IF(F322=\"Seleccione\",\"Por definir\",IF(F322=\"Sí\",\"El segundo criterio se cumple satisfactoriamente\",\"Al no cumplir con este criterio, no es posible generar contribución sustancial\"))","v":"El segundo criterio se cumple satisfactoriamente"}]
[{"$f":"IF(OR(F321=\"Seleccione\",F322=\"Seleccione\"),\"Por definir\",IF(OR(F321=\"No\",F322=\"No\"),\"La actividad no genera contribución sustancial\", \"La actividad sí contribuye sustancialmente a la sostenibilidad\"))","v":"La actividad sí contribuye sustancialmente a la sostenibilidad"}]
[]
["A3. Monitoreo de los resultados de adaptación."]
["En el contexto de la actividad evaluada, la reducción de los riesgos físicos se puede medir. Selecciona las respuestas en las listas desplegables"]
[" Los resultados de adaptación pueden ser monitoreados y medidos con base en indicadores. Considerando que los riesgos físicos evolucionan con el tiempo, el análisis de riesgos físicos debe llevarse a cabo con la frecuencia adecuada.  ¿Esto se evalúa dentro del proyecto o portafolio?",null,null,null,null,"Sí",{"$f":"IF(F327=\"Seleccione\",\"Por definir\",IF(F327=\"Sí\",\"La actividad sí contribuye sustancialmente a la sostenbilidad\",\"El proyecto no genera contribución sustancial\"))","v":"La actividad sí contribuye sustancialmente a la sostenbilidad"}]
[]
["B1. Apoyar a la adaptación de otras actividades económicas."]
["La actividad económica reduce el riesgo climático físico material en otras actividades económicas y/o aborda los obstáculos sistémicos para la adaptación. Las actividades que permiten la adaptación incluyen, pero no se limitan a, actividades que promueven una tecnología, un producto, una práctica, un proceso de gobernanza o usos innovadores de tecnologías, productos o prácticas existentes (incluidos los relacionados con las infraestructuras naturales). Además, eliminan las barreras de información, financieras, tecnológicas y de capacidad para la adaptación de otros. Selecciona las respuestas en las listas desplegables"]
["¿Se realiza una evaluación de los riesgos resultantes, con base en datos sólidos, tanto de la variabilidad  meteorológica actual como del cambio climático futuro, incluidos los escenarios climáticos, así como  la incertidumbre, que la actividad económica contribuirá a abordar?",null,null,null,null,"Sí",{"$f":"IF(F331=\"Seleccione\",\"Por definir\",IF(F331=\"Sí\",\"El primer criterio se cumple satisfactoriamente\",\"Al no cumplir con este criterio, no es posible generar contribución sustancial\"))","v":"El primer criterio se cumple satisfactoriamente"},"Las tres condiciones en caso de que apliquen deben cumplirse para argumentar que la actividad tiene contribución sustancial. La tercera opción podría no aplicar. En este caso se evaluaran las primeras dos cuestiones"]
["¿Se realiza una evaluación de la eficacia de la contribución de la actividad económica a la reducción de los riesgos físicos, teniendo en cuenta la escala de exposición y la vulnerabilidad a los mismos?",null,null,null,null,"Sí",{"$f":"IF(F332=\"Seleccione\",\"Por definir\",IF(F332=\"Sí\",\"El segundo criterio se cumple satisfactoriamente\",\"Al no cumplir con este criterio, no es posible generar contribución sustancial\"))","v":"El segundo criterio se cumple satisfactoriamente"}]
["En el caso de una infraestructura vinculada a una actividad que permita la adaptación, dicha infraestructura debe cumplir también los criterios de selección A1, A2 y A3. ¿Esto se cumple en el contexto del proyecto?",null,null,null,null,"Sí",{"$f":"IF(F333=\"Seleccione\",\"Por definir\",IF(F333=\"Sí\",\"El tercer criterio se cumple satisfactoriamente\",IF(F333=\"No aplica\",\"No aplica\",\"El proyecto no genera contribución sustancial\")))","v":"El tercer criterio se cumple satisfactoriamente"}]
[{"$f":"IF(OR(F331=\"Seleccione\",F332=\"Seleccione\",F333=\"Seleccione\"),\"Por definir\",IF(OR(F331=\"No\",F332=\"No\",F333=\"No\"),\"La actividad no genera contribución sustancial\",\"La actividad sí contribuye sustancialmente a la sostenibilidad\"))","v":"La actividad sí contribuye sustancialmente a la sostenibilidad"}]
[]
["221122. Distribución de energía eléctrica"]
["Responde las siguientes preguntas seleccionando una respuesta de la lista"]
[]
["1. La actividad que estás evaluando es una actividad adaptada o una actividad que facilita la adaptación?",null,null,"Actividad que facilita la adaptación e incluye desarrollo de infraestructura"]
[]
["¿Qué es una actividad adaptada?\nUna actividad económica se adapta a los riesgos climáticos físicos materiales, si integra medidas y/o soluciones para reducirlos, mientras garantiza que la actividad económica pueda funcionar bien en un clima cambiante. Estas actividades de adaptación se desarrollan a partir de la evaluación de riesgos actuales y futuros, ya sean climáticos, crónicos y/o agudos, así como la escala temporal y geográfica de la actividad económica."]
["¿Qué es una actividad que facilita la adaptación? \nUna actividad económica posibilita la adaptación si reduce el riesgo climático físico material y la vulnerabilidad en otras actividades económicas, comunidades, ecosistemas o ciudades, y/o aborda los obstáculos sistémicos a la adaptación. Esto es posible a través del uso de la tecnología y la creación de un producto o servicio especializado."]
[]
[]
["A1. Reducción de los riesgos climáticos físicos materiales."]
["La actividad económica debe reducir todos los riesgos climáticos físicos materiales para las actividades evaluadas, en la medida de lo posible y sobre la base del mejor esfuerzo. Selecciona las respuestas en las listas desplegables"]
["¿La actividad económica integra medidas destinadas a reducir, en la medida de lo posible y sobre la base del mejor esfuerzo, los riesgos climáticos físicos materiales para esa actividad, que han sido identificados mediante una evaluación de riesgos?",null,null,null,null,"Sí",{"$f":"IF(F347=\"Seleccione\",\"Por definir\",IF(F347=\"Sí\",\"El primer criterio se cumple satisfactoriamente\",\"Al no cumplir con este criterio, no es posible generar contribución sustancial\"))","v":"El primer criterio se cumple satisfactoriamente"},"Las tres condiciones deben cumplirse para argumentar que la actividad tiene contribución sustancial"]
["¿Esta evaluación considera tanto la variabilidad meteorológica actual, como el cambio climático futuro, incluidos los escenarios climáticos, así como la incertidumbre?",null,null,null,null,"Sí",{"$f":"IF(F348=\"Seleccione\",\"Por definir\",IF(F348=\"Sí\",\"El segundo criterio se cumple satisfactoriamente\",\"Al no cumplir con este criterio, no es posible generar contribución sustancial\"))","v":"El segundo criterio se cumple satisfactoriamente"}]
["¿Igualmente la evaluación se basa en un sólido análisis de los datos e información disponible sobre los distintos escenarios climáticos, y es coherente con la duración prevista de la actividad?",null,null,null,null,"Sí",{"$f":"IF(F349=\"Seleccione\",\"Por definir\",IF(F349=\"Sí\",\"El tercer criterio se cumple satisfactoriamente\",\"Al no cumplir con este criterio, no es posible generar contribución sustancial\"))","v":"El tercer criterio se cumple satisfactoriamente"}]
[{"$f":"IF(OR(F347=\"Seleccione\",F348=\"Seleccione\",F349=\"Seleccione\"),\"Por definir\",IF(OR(F347=\"No\",F348=\"No\",F349=\"No\"),\"La actividad no genera contribución sustancial\", \"La actividad sí contribuye sustancialmente a la sostenibilidad\"))","v":"La actividad sí contribuye sustancialmente a la sostenibilidad"}]
[]
["A2. Apoyo a la adaptación del sistema. "]
["La actividad económica y sus medidas de adaptación no afectan negativamente los esfuerzos de adaptación de otras personas, la naturaleza y los bienes. Selecciona las respuestas en las listas desplegables"]
["¿La actividad económica y sus medidas de adaptación no aumentan los riesgos de un impacto climático adverso sobre otras personas, la naturaleza y los bienes?",null,null,null,null,"Sí",{"$f":"IF(F354=\"Seleccione\",\"Por definir\",IF(F354=\"Sí\",\"El primer criterio se cumple satisfactoriamente\",\"Al no cumplir con este criterio, no es posible generar contribución sustancial\"))","v":"El primer criterio se cumple satisfactoriamente"},"Las dos condiciones deben cumplirse para argumentar que la actividad tiene contribución sustancial"]
["¿La actividad económica y sus medidas de adaptación son consistentes con los esfuerzos de adaptación a nivel sectorial, regional y/o nacional?",null,null,null,null,"Sí",{"$f":"IF(F355=\"Seleccione\",\"Por definir\",IF(F355=\"Sí\",\"El segundo criterio se cumple satisfactoriamente\",\"Al no cumplir con este criterio, no es posible generar contribución sustancial\"))","v":"El segundo criterio se cumple satisfactoriamente"}]
[{"$f":"IF(OR(F354=\"Seleccione\",F355=\"Seleccione\"),\"Por definir\",IF(OR(F354=\"No\",F355=\"No\"),\"La actividad no genera contribución sustancial\", \"La actividad sí contribuye sustancialmente a la sostenibilidad\"))","v":"La actividad sí contribuye sustancialmente a la sostenibilidad"}]
[]
["A3. Monitoreo de los resultados de adaptación."]
["En el contexto de la actividad evaluada, la reducción de los riesgos físicos se puede medir. Selecciona las respuestas en las listas desplegables"]
[" Los resultados de adaptación pueden ser monitoreados y medidos con base en indicadores. Considerando que los riesgos físicos evolucionan con el tiempo, el análisis de riesgos físicos debe llevarse a cabo con la frecuencia adecuada.  ¿Esto se evalúa dentro del proyecto o portafolio?",null,null,null,null,"Sí",{"$f":"IF(F360=\"Seleccione\",\"Por definir\",IF(F360=\"Sí\",\"La actividad sí contribuye sustancialmente a la sostenbilidad\",\"El proyecto no genera contribución sustancial\"))","v":"La actividad sí contribuye sustancialmente a la sostenbilidad"}]
[]
["B1. Apoyar a la adaptación de otras actividades económicas."]
["La actividad económica reduce el riesgo climático físico material en otras actividades económicas y/o aborda los obstáculos sistémicos para la adaptación. Las actividades que permiten la adaptación incluyen, pero no se limitan a, actividades que promueven una tecnología, un producto, una práctica, un proceso de gobernanza o usos innovadores de tecnologías, productos o prácticas existentes (incluidos los relacionados con las infraestructuras naturales). Además, eliminan las barreras de información, financieras, tecnológicas y de capacidad para la adaptación de otros. Selecciona las respuestas en las listas desplegables"]
["¿Se realiza una evaluación de los riesgos resultantes, con base en datos sólidos, tanto de la variabilidad  meteorológica actual como del cambio climático futuro, incluidos los escenarios climáticos, así como  la incertidumbre, que la actividad económica contribuirá a abordar?",null,null,null,null,"Sí",{"$f":"IF(F364=\"Seleccione\",\"Por definir\",IF(F364=\"Sí\",\"El primer criterio se cumple satisfactoriamente\",\"Al no cumplir con este criterio, no es posible generar contribución sustancial\"))","v":"El primer criterio se cumple satisfactoriamente"},"Las tres condiciones en caso de que apliquen deben cumplirse para argumentar que la actividad tiene contribución sustancial. La tercera opción podría no aplicar. En este caso se evaluaran las primeras dos cuestiones"]
["¿Se realiza una evaluación de la eficacia de la contribución de la actividad económica a la reducción de los riesgos físicos, teniendo en cuenta la escala de exposición y la vulnerabilidad a los mismos?",null,null,null,null,"Sí",{"$f":"IF(F365=\"Seleccione\",\"Por definir\",IF(F365=\"Sí\",\"El segundo criterio se cumple satisfactoriamente\",\"Al no cumplir con este criterio, no es posible generar contribución sustancial\"))","v":"El segundo criterio se cumple satisfactoriamente"}]
["En el caso de una infraestructura vinculada a una actividad que permita la adaptación, dicha infraestructura debe cumplir también los criterios de selección A1, A2 y A3. ¿Esto se cumple en el contexto del proyecto?",null,null,null,null,"Sí",{"$f":"IF(F366=\"Seleccione\",\"Por definir\",IF(F366=\"Sí\",\"El tercer criterio se cumple satisfactoriamente\",IF(F366=\"No aplica\",\"No aplica\",\"El proyecto no genera contribución sustancial\")))","v":"El tercer criterio se cumple satisfactoriamente"}]
[{"$f":"IF(OR(F364=\"Seleccione\",F365=\"Seleccione\",F366=\"Seleccione\"),\"Por definir\",IF(OR(F364=\"No\",F365=\"No\",F366=\"No\"),\"La actividad no genera contribución sustancial\",\"La actividad sí contribuye sustancialmente a la sostenibilidad\"))","v":"La actividad sí contribuye sustancialmente a la sostenibilidad"}]

{"sheet":"Indice de género-Energía","index":21,"n_rows":82,"n_cols":11,"rows_kept":82,"cut":false,"hidden":true,"merged":[[1,1,1,8],[3,0,3,8],[5,0,5,8],[7,0,9,0],[7,1,9,1],[7,2,7,5],[7,8,9,8],[8,2,8,5],[9,2,9,5],[12,0,15,0],[12,1,15,1],[12,2,12,5],[12,8,15,8],[13,2,13,5],[14,2,14,5],[15,2,15,5],[18,0,20,0],[18,1,20,1],[18,2,18,5],[18,8,20,8],[19,2,19,5],[20,2,20,5],[23,0,25,0],[23,1,25,1],[23,2,23,5],[23,8,25,8],[24,2,24,5],[25,2,25,5],[28,0,30,0],[28,1,30,1],[28,2,28,5],[28,8,30,8],[29,2,29,5],[30,2,30,5],[33,0,35,0],[33,1,35,1],[33,2,33,5],[33,8,35,8],[34,2,34,5],[35,2,35,5],[38,0,40,0],[38,1,40,1],[38,2,38,5],[38,8,40,8],[39,2,39,5],[40,2,40,5],[43,0,45,0],[43,1,45,1],[43,2,43,5],[43,8,45,8],[44,2,44,5],[45,2,45,5],[48,0,50,0],[48,1,50,1],[48,2,48,5],[48,8,50,8],[49,2,49,5],[50,2,50,5],[53,0,55,0],[53,1,55,1],[53,2,53,5],[53,8,55,8],[54,2,54,5],[55,2,55,5],[58,0,60,0],[58,1,60,1],[58,2,58,5],[58,8,60,8],[59,2,59,5],[60,2,60,5],[63,0,65,0],[63,1,65,1],[63,2,63,5],[63,8,65,8],[64,2,64,5],[65,2,65,5],[68,0,70,0],[68,1,70,1],[68,2,68,5],[68,8,70,8],[69,2,69,5],[70,2,70,5],[73,0,75,0],[73,1,75,1],[73,2,73,5],[73,8,75,8],[74,2,74,5],[75,2,75,5],[77,4,77,7],[78,4,78,7],[79,4,79,7],[80,4,80,7],[81,4,81,7]]}
[]
[null,"Índice de Igualdad de Género"]
[]
["La Igualdad de Género es considerada como un objetivo prioritario en la Taxonomía Sostenible de México. Es así que se han generado Criterios de Evaluación Técnica que permitan identificar inversiones que contribuyan al cierre de brechas de género. Al mismo tiempo, las métricas propuestas servirán como guía orientadora para los usuarios potenciales de la Taxonomía, de forma que puedan dirigir esfuerzos para generar una contribución sustancial a la igualdad de género. Este índice refleja, en una escala numérica, la contribución de las organizaciones a tres pilares de igualdad de género: 1) Trabajo Digno, 2) Bienestar e 3) Inclusión Social. Ello permite traducir los criterios cualitativos de estos tres pilares, a una métrica cuantitativa, a la cual es posible asignar un umbral para determinar un nivel de contribución sustancial para un objetivo social."]
[]
["Por favor, selecciona alguna de las opciones descritas en las casillas azules para cada pregunta. En función de la respuesta, se asignará un puntaje por bloque de preguntas, que al final será evaluado para conocer si el proyecto cumple con las condiciones presentes en el índice de igualdad de género"]
["Pilar",null,null,null,null,null,null,"Puntaje",null,null,{"$f":"IF(G7=\"No\",0,IF(G7=\"Sí de alcance parcial dentro de la organización\",1,IF(G7=\"Sí de alcance integral en la organización\",2,IF(G7=\"Sí de alcance que se extiende dentro y fuera de la organización\",3,\"\"))))","v":""}]
["1.1.1","Igualdad de remuneración","¿Existe una política y/o tabulador para todo el personal que establezca la igualdad de remuneración por un trabajo equivalente, conforme a la Ley Federal del Trabajo, y donde se puedan consultar los rangos salariales para los diferentes niveles dentro del centro de trabajo?",null,null,null,"Sí de alcance que se extiende dentro y fuera de la organización",{"$f":"IF(G8=\"No\",0,IF(G8=\"Sí de alcance parcial dentro de la organización\",1,IF(G8=\"Sí de alcance integral en la organización\",2,IF(G8=\"Sí de alcance que se extiende dentro y fuera de la organización\",3,\"\"))))","v":3},{"$f":"IF(OR(G8=\"Seleccione\",G9=\"Seleccione\",G10=\"Seleccione\"),\"Por favor completa las preguntas de este apartado del Índice\",IF(H11<3,\"Es necesario incrementar la ambición en alguno de los ejes evaluados para que el proyecto esté alineado al Índice de Igualdad de Género de la Taxonomía Sostenible de México\",\"El proyecto cuenta con la ambición necesaria para cerrar las brechas de género conforme al Índice de Igualdad de Género de la Taxonomía Sostenible de México\"))","v":"El proyecto cuenta con la ambición necesaria para cerrar las brechas de género conforme al Índice de Igualdad de Género de la Taxonomía Sostenible de México"}]
[null,null,"¿La organización realiza un análisis sistemático y periódico de las brechas de género en salarios, prestaciones y compensaciones de su personal?",null,null,null,"Sí de alcance que se extiende dentro y fuera de la organización",{"$f":"IF(G9=\"No\",0,IF(G9=\"Sí de alcance parcial dentro de la organización\",1,IF(G9=\"Sí de alcance integral en la organización\",2,IF(G9=\"Sí de alcance que se extiende dentro y fuera de la organización\",3,\"\"))))","v":3}]
[null,null,"¿La organización cuenta con un mecanismo para corregir los casos identificados con desigualdad en la remuneración?",null,null,null,"Sí de alcance integral en la organización",{"$f":"IF(G10=\"No\",0,IF(G10=\"Sí de alcance parcial dentro de la organización\",1,IF(G10=\"Sí de alcance integral en la organización\",2,\"\")))","v":2}]
[null,null,null,null,null,null,null,{"$f":"SUM(H8:H10)","v":8}]
[]
["1.2.1","Posibilidades de acceso, contratación, participación, permanencia y promoción","¿Tiene la organización una política o mecanismo que garantice la no discriminación e igualdad de oportunidades en el acceso, permanencia y desarrollo laboral?",null,null,null,"Sí de alcance que se extiende dentro y fuera de la organización",{"$f":"IF(G13=\"No\",0,IF(G13=\"Sí de alcance parcial dentro de la organización\",1,IF(G13=\"Sí de alcance integral en la organización\",2,IF(G13=\"Sí de alcance que se extiende dentro y fuera de la organización\",3,\"\"))))","v":3},{"$f":"IF(OR(G13=\"Seleccione\",G14=\"Seleccione\",G15=\"Seleccione\",G16=\"Seleccione\"),\"Por favor completa las preguntas de este apartado del Índice\",IF(H17<4,\"Es necesario incrementar la ambición en alguno de los ejes evaluados para que el proyecto esté alineado al Índice de Igualdad de Género de la Taxonomía Sostenible de México\",\"El proyecto cuenta con la ambición necesaria para cerrar las brechas de género conforme al Índice de Igualdad de Género de la Taxonomía Sostenible de México\"))","v":"El proyecto cuenta con la ambición necesaria para cerrar las brechas de género conforme al Índice de Igualdad de Género de la Taxonomía Sostenible de México"}]
[null,null,"¿Existen perfiles de puestos, anuncios de vacantes u ofertas de trabajo, documentación para entrevista de ingreso estructurada y/o exámenes o evaluaciones libres de sesgos sexistas o de discriminación?",null,null,null,"Sí de alcance que se extiende dentro y fuera de la organización",{"$f":"IF(G14=\"No\",0,IF(G14=\"Sí de alcance parcial dentro de la organización\",1,IF(G14=\"Sí de alcance integral en la organización\",2,IF(G14=\"Sí de alcance que se extiende dentro y fuera de la organización\",3,\"\"))))","v":3}]
[null,null,"¿Se cuenta con procesos transparentes y accesibles de movilidad horizontal y vertical libres de sesgos sexistas o discriminatorios?",null,null,null,"Sí de alcance que se extiende dentro y fuera de la organización",{"$f":"IF(G15=\"No\",0,IF(G15=\"Sí de alcance parcial dentro de la organización\",1,IF(G15=\"Sí de alcance integral en la organización\",2,IF(G15=\"Sí de alcance que se extiende dentro y fuera de la organización\",3,\"\"))))","v":3}]
[null,null,"¿La organización lleva a cabo capacitaciones extensivas al personal candidato o de la propia empresa como mecanismo de corrección (distintas al plan de capacitación) sobre sesgos de género para entrevistas laborales, para evaluaciones de desempeño o para procesos de reclutamiento, movilidad y  promoción?",null,null,null,"Sí de alcance que se extiende dentro y fuera de la organización",{"$f":"IF(G16=\"No\",0,IF(G16=\"Sí de alcance parcial dentro de la organización\",1,IF(G16=\"Sí de alcance integral en la organización\",2,IF(G16=\"Sí de alcance que se extiende dentro y fuera de la organización\",3,\"\"))))","v":3}]
[null,null,null,null,null,null,null,{"$f":"SUM(H13:H16)","v":12}]
[]
["1.2.2","Segregación Vertical y Horizontal","¿La organización cuenta con metas institucionales sobre diversidad de género en los diferentes equipos de trabajo?",null,null,null,"Sí de alcance parcial dentro de la organización",{"$f":"IF(G19=\"No\",0,IF(G19=\"Sí de alcance parcial dentro de la organización\",1,IF(G19=\"Sí de alcance integral en la organización\",2,IF(G19=\"Sí de alcance que se extiende dentro y fuera de la organización\",3,\"\"))))","v":1},{"$f":"IF(OR(G19=\"Seleccione\",G20=\"Seleccione\",G21=\"Seleccione\"),\"Por favor completa las preguntas de este apartado del Índice\",IF(H22<3,\"Es necesario incrementar la ambición en alguno de los ejes evaluados para que el proyecto esté alineado al Índice de Igualdad de Género de la Taxonomía Sostenible de México\",\"El proyecto cuenta con la ambición necesaria para cerrar las brechas de género conforme al Índice de Igualdad de Género de la Taxonomía Sostenible de México\"))","v":"El proyecto cuenta con la ambición necesaria para cerrar las brechas de género conforme al Índice de Igualdad de Género de la Taxonomía Sostenible de México"}]
[null,"1.2.2.2","¿La organización cuenta con un plan de acción para cerrar la brecha de participación laboral entre hombres y mujeres, entre los niveles jerárquicos, en el proceso de contratación y en las oportunidades de promoción?",null,null,null,"Sí de alcance parcial dentro de la organización",{"$f":"IF(G20=\"No\",0,IF(G20=\"Sí de alcance parcial dentro de la organización\",1,IF(G20=\"Sí de alcance integral en la organización\",2,\"\")))","v":1}]
[null,"1.2.2.3","¿El despliegue de los mecanismos de corrección para cerrar la brecha de participación se realiza conforme a la evaluación o medición continua de las brechas de género?",null,null,null,"Sí de alcance parcial dentro de la organización",{"$f":"IF(G21=\"No\",0,IF(G21=\"Sí de alcance parcial dentro de la organización\",1,IF(G21=\"Sí de alcance integral en la organización\",2,\"\")))","v":1}]
[null,null,null,null,null,null,null,{"$f":"SUM(H19:H21)","v":3}]
[]
["1.2.3","Igualdad de representatividad de mujeres y hombres en órganos de gobernanza corporativa","¿Existe una política de paridad entre mujeres y hombres (reglamentos, normas, documentos o protocolos internos) en el órgano de gobernanza corporativa (junta de gobierno) o en puestos de toma de decisión?",null,null,null,"Sí de alcance que se extiende dentro y fuera de la organización",{"$f":"IF(G24=\"No\",0,IF(G24=\"Sí de alcance parcial dentro de la organización\",1,IF(G24=\"Sí de alcance integral en la organización\",2,IF(G24=\"Sí de alcance que se extiende dentro y fuera de la organización\",3,\"\"))))","v":3},{"$f":"IF(OR(G24=\"Seleccione\",G25=\"Seleccione\",G26=\"Seleccione\"),\"Por favor completa las preguntas de este apartado del Índice\",IF(H27<2,\"Es necesario incrementar la ambición en alguno de los ejes evaluados para que el proyecto esté alineado al Índice de Igualdad de Género de la Taxonomía Sostenible de México\",\"El proyecto cuenta con la ambición necesaria para cerrar las brechas de género conforme al Índice de Igualdad de Género de la Taxonomía Sostenible de México\"))","v":"El proyecto cuenta con la ambición necesaria para cerrar las brechas de género conforme al Índice de Igualdad de Género de la Taxonomía Sostenible de México"}]
[null,"1.2.3.2","¿Existen mecanismos o acciones para promover la rotación hacia puestos directivos o de toma de decisión con perspectiva de género, o en su caso el proceso de designación no tienes sesgos de género?",null,null,null,"Sí de alcance integral en la organización",{"$f":"IF(G25=\"No\",0,IF(G25=\"Sí de alcance parcial dentro de la organización\",1,IF(G25=\"Sí de alcance integral en la organización\",2,\"\")))","v":2}]
[null,"1.2.3.3","¿La organización se somete a un análisis, interno o externo, de paridad de género institucional en sus puestos de alta dirección o gobierno corporativo, acorde a la política de transparencia que la rige?",null,null,null,"Sí de alcance que se extiende dentro y fuera de la organización",{"$f":"IF(G26=\"No\",0,IF(G26=\"Sí de alcance parcial dentro de la organización\",1,IF(G26=\"Sí de alcance integral en la organización\",2,IF(G26=\"Sí de alcance que se extiende dentro y fuera de la organización\",3,\"\"))))","v":3}]
[null,null,null,null,null,null,null,{"$f":"SUM(H24:H26)","v":8}]
[]
["1.2.4","Clima laboral y espacios de trabajo libres de violencia","¿La organización cuenta con políticas o áreas especializadas en diversidad e inclusión que promuevan relaciones igualitarias acompañadas de la implementación de prácticas de prevención contra la violencia de género (hostigamiento, acoso u otro)?",null,null,null,"Sí de alcance parcial dentro de la organización",{"$f":"IF(G29=\"No\",0,IF(G29=\"Sí de alcance parcial dentro de la organización\",1,IF(G29=\"Sí de alcance integral en la organización\",2,\"\")))","v":1},{"$f":"IF(OR(G29=\"Seleccione\",G30=\"Seleccione\",G31=\"Seleccione\"),\"Por favor completa las preguntas de este apartado del Índice\",IF(H32<2,\"Es necesario incrementar la ambición en alguno de los ejes evaluados para que el proyecto esté alineado al Índice de Igualdad de Género de la Taxonomía Sostenible de México\",\"El proyecto cuenta con la ambición necesaria para cerrar las brechas de género conforme al Índice de Igualdad de Género de la Taxonomía Sostenible de México\"))","v":"El proyecto cuenta con la ambición necesaria para cerrar las brechas de género conforme al Índice de Igualdad de Género de la Taxonomía Sostenible de México"}]
[null,"1.2.4.2","¿La organización cuenta con un grupo, comisión o Comité encargado de la vigilancia del desarrollo e implementación de prácticas contra la violencia y la discriminación de género en el centro de trabajo?",null,null,null,"Sí de alcance parcial dentro de la organización",{"$f":"IF(G30=\"No\",0,IF(G30=\"Sí de alcance parcial dentro de la organización\",1,IF(G30=\"Sí de alcance integral en la organización\",2,\"\")))","v":1}]
[null,"1.2.4.3","¿La organización cuenta con mecanismos de atención a actos de violencia detectados o de reparación de daños, cuyos resultados salvaguarden la integridad de las víctimas y eviten la revictimización?",null,null,null,"Sí de alcance parcial dentro de la organización",{"$f":"IF(G31=\"No\",0,IF(G31=\"Sí de alcance parcial dentro de la organización\",1,IF(G31=\"Sí de alcance integral en la organización\",2,\"\")))","v":1}]
[null,null,null,null,null,null,null,{"$f":"SUM(H29:H31)","v":3}]
[]
["1.2.5","Capacitaciones para la igualdad laboral","¿La organización cuenta con un plan de capacitación, sensibilización y difusión como parte de sus objetivos de la agenda de género?",null,null,null,"Sí de alcance parcial dentro de la organización",{"$f":"IF(G34=\"No\",0,IF(G34=\"Sí de alcance parcial dentro de la organización\",1,IF(G34=\"Sí de alcance integral en la organización\",2,IF(G34=\"Sí de alcance que se extiende dentro y fuera de la organización\",3,\"\"))))","v":1},{"$f":"IF(OR(G34=\"Seleccione\",G35=\"Seleccione\",G36=\"Seleccione\"),\"Por favor completa las preguntas de este apartado del Índice\",IF(H37<3,\"Es necesario incrementar la ambición en alguno de los ejes evaluados para que el proyecto esté alineado al Índice de Igualdad de Género de la Taxonomía Sostenible de México\",\"El proyecto cuenta con la ambición necesaria para cerrar las brechas de género conforme al Índice de Igualdad de Género de la Taxonomía Sostenible de México\"))","v":"El proyecto cuenta con la ambición necesaria para cerrar las brechas de género conforme al Índice de Igualdad de Género de la Taxonomía Sostenible de México"}]
[null,"1.2.5.2","¿La organización ofrece capacitación continua para el desarrollo de habilidades requeridas para la movilidad laboral, tales como mentoría o patrocinio; incluyendo el desarrollo de capacidades para los nuevos empleos verdes que promuevan la transición justa?",null,null,null,"Sí de alcance parcial dentro de la organización",{"$f":"IF(G35=\"No\",0,IF(G35=\"Sí de alcance parcial dentro de la organización\",1,IF(G35=\"Sí de alcance integral en la organización\",2,IF(G35=\"Sí de alcance que se extiende dentro y fuera de la organización\",3,\"\"))))","v":1}]
[null,"1.2.5.3","¿La organización cuenta con mecanismos de evaluación o mejora de su plan de implementación de capacitaciones, asesorías o mentorías, que sean extensivos a otros actores que interactúan con la organización o a la comunidad externa (más allá del personal de la organización)?",null,null,null,"Sí de alcance parcial dentro de la organización",{"$f":"IF(G36=\"No\",0,IF(G36=\"Sí de alcance parcial dentro de la organización\",1,IF(G36=\"Sí de alcance integral en la organización\",2,IF(G36=\"Sí de alcance que se extiende dentro y fuera de la organización\",3,\"\"))))","v":1}]
[null,null,null,null,null,null,null,{"$f":"SUM(H34:H36)","v":3}]
[]
["1.3.1","Esquemas de trabajo flexible y políticas de conciliación","¿Existen medidas de flexibilidad laboral, como horarios flexibles o escalonados, semanas de trabajo comprimidas, teletrabajo o licencias con y sin goce de sueldo?",null,null,null,"Sí de alcance parcial dentro de la organización",{"$f":"IF(G39=\"No\",0,IF(G39=\"Sí de alcance parcial dentro de la organización\",1,IF(G39=\"Sí de alcance integral en la organización\",2,\"\")))","v":1},{"$f":"IF(OR(G39=\"Seleccione\",G40=\"Seleccione\",G41=\"Seleccione\"),\"Por favor completa las preguntas de este apartado del Índice\",IF(H42<4,\"Es necesario incrementar la ambición en alguno de los ejes evaluados para que el proyecto esté alineado al Índice de Igualdad de Género de la Taxonomía Sostenible de México\",\"El proyecto cuenta con la ambición necesaria para cerrar las brechas de género conforme al Índice de Igualdad de Género de la Taxonomía Sostenible de México\"))","v":"Es necesario incrementar la ambición en alguno de los ejes evaluados para que el proyecto esté alineado al Índice de Igualdad de Género de la Taxonomía Sostenible de México"}]
[null,"1.3.1.2","¿Existe una duración definida de la jornada laboral que se acompañe con una política de desconexión, sin importar que el esquema sea presencial, híbrido o por teletrabajo?",null,null,null,"Sí de alcance parcial dentro de la organización",{"$f":"IF(G40=\"No\",0,IF(G40=\"Sí de alcance parcial dentro de la organización\",1,IF(G40=\"Sí de alcance integral en la organización\",2,\"\")))","v":1}]
[null,"1.3.1.3","¿La organización despliega y difunde mecanismos de corrección al interior y al exterior, en función de la información estadística analizada y desagregada por sexo, sobre el cumplimento de los horarios de trabajo conforme al derecho de las y los trabajadores a la desconexión?",null,null,null,"Sí de alcance parcial dentro de la organización",{"$f":"IF(G41=\"No\",0,IF(G41=\"Sí de alcance parcial dentro de la organización\",1,IF(G41=\"Sí de alcance integral en la organización\",2,IF(G41=\"Sí de alcance que se extiende dentro y fuera de la organización\",3,\"\"))))","v":1}]
[null,null,null,null,null,null,null,{"$f":"SUM(H39:H41)","v":3}]
[]
["1.3.2","Oferta complementaria de servicios de cuidados (ludoteca, casas de día, estancias infantiles adicionales, entre otros)","¿La organización tiene políticas que le permitan desarrollar una oferta complementaria de servicios de cuidado (guarderías propias, salas de lactancia, etc.), asequible para todo el personal de la organización, incluyendo licencias de maternidad y paternidad con duración superior a la Ley?",null,null,null,"Sí de alcance parcial dentro de la organización",{"$f":"IF(G44=\"No\",0,IF(G44=\"Sí de alcance parcial dentro de la organización\",1,IF(G44=\"Sí de alcance integral en la organización\",2,IF(G44=\"Sí de alcance que se extiende dentro y fuera de la organización\",3,\"\"))))","v":1},{"$f":"IF(OR(G44=\"Seleccione\",G45=\"Seleccione\",G46=\"Seleccione\"),\"Por favor completa las preguntas de este apartado del Índice\",IF(H47<3,\"Es necesario incrementar la ambición en alguno de los ejes evaluados para que el proyecto esté alineado al Índice de Igualdad de Género de la Taxonomía Sostenible de México\",\"El proyecto cuenta con la ambición necesaria para cerrar las brechas de género conforme al Índice de Igualdad de Género de la Taxonomía Sostenible de México\"))","v":"El proyecto cuenta con la ambición necesaria para cerrar las brechas de género conforme al Índice de Igualdad de Género de la Taxonomía Sostenible de México"}]
[null,"1.3.2.2","¿Se proporciona una oferta de servicios de cuidado adicional a los servicios de seguridad social (IMSS, ISSSTE y otros) o se ofrecen permisos con o sin goce de sueldo para la atención de responsabilidades de cuidado?",null,null,null,"Sí de alcance parcial dentro de la organización",{"$f":"IF(G45=\"No\",0,IF(G45=\"Sí de alcance parcial dentro de la organización\",1,IF(G45=\"Sí de alcance integral en la organización\",2,IF(G45=\"Sí de alcance que se extiende dentro y fuera de la organización\",3,\"\"))))","v":1}]
[null,"1.3.2.3","¿La organización realiza y difunde evaluaciones de las necesidades de cuidado de su personal y sus dependientes, al interior y al exterior?",null,null,null,"Sí de alcance parcial dentro de la organización",{"$f":"IF(G46=\"No\",0,IF(G46=\"Sí de alcance parcial dentro de la organización\",1,IF(G46=\"Sí de alcance integral en la organización\",2,IF(G46=\"Sí de alcance que se extiende dentro y fuera de la organización\",3,\"\"))))","v":1}]
[null,null,null,null,null,null,null,{"$f":"SUM(H44:H46)","v":3}]
[]
["2.1.1","Desarrollo y provisión de infraestructura, bienes y servicios con impacto social positivo y perspectiva de género","¿La organización tiene como política realizar diagnósticos con perspectiva de género para el diseño y operación del proyecto, actividad, desarrollo de infraestructura o la provisión de bienes y servicios?",null,null,null,"Sí de alcance que se extiende dentro y fuera de la organización",{"$f":"IF(G49=\"No\",0,IF(G49=\"Sí de alcance parcial dentro de la organización\",2,IF(G49=\"Sí de alcance integral en la organización\",4,IF(G49=\"Sí de alcance que se extiende dentro y fuera de la organización\",6,\"\"))))","v":6},{"$f":"IF(OR(G49=\"Seleccione\",G50=\"Seleccione\",G51=\"Seleccione\"),\"Por favor completa las preguntas de este apartado del Índice\",IF(H52<8,\"Es necesario incrementar la ambición en alguno de los ejes evaluados para que el proyecto esté alineado al Índice de Igualdad de Género de la Taxonomía Sostenible de México\",\"El proyecto cuenta con la ambición necesaria para cerrar las brechas de género conforme al Índice de Igualdad de Género de la Taxonomía Sostenible de México\"))","v":"El proyecto cuenta con la ambición necesaria para cerrar las brechas de género conforme al Índice de Igualdad de Género de la Taxonomía Sostenible de México"}]
[null,"2.1.1.2","¿El proyecto de infraestructura, actividad, bien o servicio, considera ajustes razonables para atender las necesidades de las mujeres o contribuye a la reducción o eliminación de una situación de exclusión, desigualdad o violencia de género, y privilegia su acceso a precios asequibles por razón de género?",null,null,null,"Sí de alcance que se extiende dentro y fuera de la organización",{"$f":"IF(G50=\"No\",0,IF(G50=\"Sí de alcance parcial dentro de la organización\",2,IF(G50=\"Sí de alcance integral en la organización\",4,IF(G50=\"Sí de alcance que se extiende dentro y fuera de la organización\",6,\"\"))))","v":6}]
[null,"2.1.1.3","¿Se cuenta con un plan de actividades de igualdad entre mujeres y hombres, que incluya presupuesto e indicadores de cumplimiento sobre el impacto en la vida de las mujeres, y en su caso, en el medio ambiente en el uso de la infraestructura, productos o servicios a desarrollar?",null,null,null,"Sí de alcance que se extiende dentro y fuera de la organización",{"$f":"IF(G51=\"No\",0,IF(G51=\"Sí de alcance parcial dentro de la organización\",2,IF(G51=\"Sí de alcance integral en la organización\",4,IF(G51=\"Sí de alcance que se extiende dentro y fuera de la organización\",6,\"\"))))","v":6}]
[null,null,null,null,null,null,null,{"$f":"SUM(H49:H51)","v":18}]
[]
["2.2.1","No afectación a la salud de las mujeres","¿La organización tiene como procedimientos la elaboración de diagnósticos con perspectiva de género sobre los impactos potenciales en salud del proyecto de infraestructura, actividad, bien o servicio, para la promoción de la salud en las mujeres o asegurar la no afectación a esta?",null,null,null,"Sí de alcance que se extiende dentro y fuera de la organización",{"$f":"IF(G54=\"No\",0,IF(G54=\"Sí de alcance parcial dentro de la organización\",2,IF(G54=\"Sí de alcance integral en la organización\",4,IF(G54=\"Sí de alcance que se extiende dentro y fuera de la organización\",6,\"\"))))","v":6},{"$f":"IF(OR(G54=\"Seleccione\",G55=\"Seleccione\",G56=\"Seleccione\"),\"Por favor completa las preguntas de este apartado del Índice\",IF(H57<8,\"Es necesario incrementar la ambición en alguno de los ejes evaluados para que el proyecto esté alineado al Índice de Igualdad de Género de la Taxonomía Sostenible de México\",\"El proyecto cuenta con la ambición necesaria para cerrar las brechas de género conforme al Índice de Igualdad de Género de la Taxonomía Sostenible de México\"))","v":"El proyecto cuenta con la ambición necesaria para cerrar las brechas de género conforme al Índice de Igualdad de Género de la Taxonomía Sostenible de México"}]
[null,"2.2.1.2","¿El proyecto, actividad, bien o servicio, considera ajustes razonables para atender las necesidades diferenciadas de salud en hombres y mujeres y privilegia el acceso desde una perspectiva de género a precios asequibles?",null,null,null,"Sí de alcance que se extiende dentro y fuera de la organización",{"$f":"IF(G55=\"No\",0,IF(G55=\"Sí de alcance parcial dentro de la organización\",2,IF(G55=\"Sí de alcance integral en la organización\",4,IF(G55=\"Sí de alcance que se extiende dentro y fuera de la organización\",6,\"\"))))","v":6}]
[null,"2.2.1.3","¿Se realizan estudios de los efectos en la salud de la actividad, productos o servicios desagregados sexo, y se cuenta con un plan de actividades para la corrección o mejora que incluya presupuesto e indicadores de cumplimiento?",null,null,null,"Sí de alcance que se extiende dentro y fuera de la organización",{"$f":"IF(G56=\"No\",0,IF(G56=\"Sí de alcance parcial dentro de la organización\",2,IF(G56=\"Sí de alcance integral en la organización\",4,IF(G56=\"Sí de alcance que se extiende dentro y fuera de la organización\",6,\"\"))))","v":6}]
[null,null,null,null,null,null,null,{"$f":"SUM(H54:H56)","v":18}]
[]
["2.3.1","Promoción de autonomía de las mujeres y financiamiento flexible con perspectiva de género","¿La organización tiene como política visibilizar las necesidades diferenciadas entre mujeres y hombres en las estrategias de comercialización de los productos o servicios ofrecidos?",null,null,null,"Sí de alcance parcial dentro de la organización",{"$f":"IF(G59=\"No\",0,IF(G59=\"Sí de alcance parcial dentro de la organización\",2,IF(G59=\"Sí de alcance integral en la organización\",4,IF(G59=\"Sí de alcance que se extiende dentro y fuera de la organización\",6,\"\"))))","v":2},{"$f":"IF(OR(G59=\"Seleccione\",G60=\"Seleccione\",G61=\"Seleccione\"),\"Por favor completa las preguntas de este apartado del Índice\",IF(H62<8,\"Es necesario incrementar la ambición en alguno de los ejes evaluados para que el proyecto esté alineado al Índice de Igualdad de Género de la Taxonomía Sostenible de México\",\"El proyecto cuenta con la ambición necesaria para cerrar las brechas de género conforme al Índice de Igualdad de Género de la Taxonomía Sostenible de México\"))","v":"Es necesario incrementar la ambición en alguno de los ejes evaluados para que el proyecto esté alineado al Índice de Igualdad de Género de la Taxonomía Sostenible de México"}]
[null,"2.3.1.2","¿La organización garantiza la accesibilidad de los productos o servicios para las mujeres, ofreciendo opciones diferenciadas de financiación?",null,null,null,"Sí de alcance parcial dentro de la organización",{"$f":"IF(G60=\"No\",0,IF(G60=\"Sí de alcance parcial dentro de la organización\",2,IF(G60=\"Sí de alcance integral en la organización\",4,IF(G60=\"Sí de alcance que se extiende dentro y fuera de la organización\",6,\"\"))))","v":2}]
[null,"2.3.1.3","¿Se realiza una evaluación de efectos diferenciados de los productos y servicios ofrecidos desagregada sexo que visibilicen que son utilizados por mujeres y/o benefician más que proporcionalmente a las mujeres?",null,null,null,"Sí de alcance parcial dentro de la organización",{"$f":"IF(G61=\"No\",0,IF(G61=\"Sí de alcance parcial dentro de la organización\",2,IF(G61=\"Sí de alcance integral en la organización\",4,IF(G61=\"Sí de alcance que se extiende dentro y fuera de la organización\",6,\"\"))))","v":2}]
[null,null,null,null,null,null,null,{"$f":"SUM(H59:H61)","v":6}]
[]
["3.1.1","Promoción de cultura de paz y no violencia","¿La organización o proyecto considera dentro de sus objetivos la reducción o erradicación de la violencia contra las mujeres o el desarrollo de espacios de paz y no violencia; o bien, cuenta con un protocolo o procedimiento para la resolución de conflictos con la comunidad, que considere una perspectiva de género y de derechos humanos?",null,null,null,"Toda la información relacionada es pública",{"$f":"IF(G64=\"No se cuenta con un protocolo o procedimiento o no se comunica\",0,IF(G64=\"Comunicación del objetivo protocolo parcial dentro de la organización\",2,IF(G64=\"Sí de alcance integral en la organización\",2,IF(G64=\"Protocolo de conocimiento de toda la organización\",4,IF(G64=\"Toda la información relacionada es pública\",6,\"\")))))","v":6},{"$f":"IF(OR(G64=\"Seleccione\",G65=\"Seleccione\",G66=\"Seleccione\"),\"Por favor completa las preguntas de este apartado del Índice\",IF(H67<8,\"Es necesario incrementar la ambición en alguno de los ejes evaluados para que el proyecto esté alineado al Índice de Igualdad de Género de la Taxonomía Sostenible de México\",\"El proyecto cuenta con la ambición necesaria para cerrar las brechas de género conforme al Índice de Igualdad de Género de la Taxonomía Sostenible de México\"))","v":"El proyecto cuenta con la ambición necesaria para cerrar las brechas de género conforme al Índice de Igualdad de Género de la Taxonomía Sostenible de México"}]
[null,"3.1.1.2","¿Se han desarrollado acciones para la prevención, atención, sanción y erradicación de la violencia contra niñas, niños, adolescentes y mujeres en la comunidad o espacios públicos?",null,null,null,"Las acciones consideran la prevención atención sanción y erradicación de la violencia",{"$f":"IF(G65=\"No se han desarrollado acciones\",0,IF(G65=\"Las acciones abordan solo alguno(s) de los aspectos enunciados (prevención atención sanción y erradicación de la violencia)\",4,IF(G65=\"Las acciones consideran la prevención atención sanción y erradicación de la violencia\",6,\"\")))","v":6}]
[null,"3.1.1.3","¿La organización o proyecto cuenta con evidencia de su contribución a la reducción de la violencia contra niñas, niños, adolescentes y mujeres; o bien, ha documentado y difundido casos de éxito sobre la resolución de conflictos con la comunidad o sobre el desarrollo de espacios de paz y no violencia de forma participativa?",null,null,null,"La información es pública",{"$f":"IF(G66=\"No existe evidencia o no se comunica\",0,IF(G66=\"La comunicación de la evidencia es parcial dentro de la organización\",2,IF(G66=\"La evidencia es de conocimiento de toda la organización\",4,IF(G66=\"La información es pública\",6,\"\"))))","v":6}]
[null,null,null,null,null,null,null,{"$f":"SUM(H64:H66)","v":18}]
[]
["3.2.1","Vinculación con empresas locales propiedad o con participación de mujeres","¿Existen políticas, procesos o mecanismos de adquisición de productos y servicios que incentiven la contratación de empresas locales propiedad o con alta participación de mujeres?",null,null,null,"La información es pública",{"$f":"IF(G69=\"No existen políticas o procesos o mecanismos o no se comunican\",0,IF(G69=\"La comunicación es parcial dentro de la organización\",2,IF(G69=\"Sí y es de conocimiento de toda la organización\",4,IF(G69=\"La información es pública\",6,\"\"))))","v":6},{"$f":"IF(OR(G69=\"Seleccione\",G70=\"Seleccione\",G71=\"Seleccione\"),\"Por favor completa las preguntas de este apartado del Índice\",IF(H72<8,\"Es necesario incrementar la ambición en alguno de los ejes evaluados para que el proyecto esté alineado al Índice de Igualdad de Género de la Taxonomía Sostenible de México\",\"El proyecto cuenta con la ambición necesaria para cerrar las brechas de género conforme al Índice de Igualdad de Género de la Taxonomía Sostenible de México\"))","v":"El proyecto cuenta con la ambición necesaria para cerrar las brechas de género conforme al Índice de Igualdad de Género de la Taxonomía Sostenible de México"}]
[null,"3.2.1.2","¿Se presenta evidencia de alianzas comerciales y de contratos recurrentes o multianuales con empresas locales con propiedad o participación importante de mujeres?",null,null,null,"Se presenta evidencia completa de una relación comercial recurrente",{"$f":"IF(G70=\"No se han desarrollado alianzas comerciales o contratos\",0,IF(G70=\"Se presenta evidencia de esfuerzos para establecer alianzas comerciales pero que aún no se formalizan\",4,IF(G70=\"Se presenta evidencia completa de una relación comercial recurrente\",6,\"\")))","v":6}]
[null,"3.2.1.3","¿Existe evidencia de que se contribuye al fortalecimiento del liderazgo de empresas locales encabezadas por mujeres o al desarrollo de la estrategia de sostenibilidad de empresas locales (por ejemplo, en el acceso a financiamiento, en la adopción de tecnología sostenible, etc.) propiedad o con participación de mujeres, más allá de la compra de bienes y servicios?",null,null,null,"La información es pública",{"$f":"IF(G71=\"No existe evidencia o no se comunica\",0,IF(G71=\"La comunicación de la evidencia es parcial dentro de la organización\",2,IF(G71=\"La evidencia es de conocimiento de toda la organización\",4,IF(G71=\"La información es pública\",6,\"\"))))","v":6}]
[null,null,null,null,null,null,null,{"$f":"SUM(H69:H71)","v":18}]
[]
["3.3.1","Involucramiento de organizaciones y redes comunitarias que representen los intereses de las mujeres","¿Existe una política para fomentar la participación de las comunidades, bajo el marco del consentimiento libre, previo e informado, para la realización del proyecto o actividad económica, o bien en la planeación y gestión participativa de este, que contribuya a la preservación del territorio; al bienestar de ellas y su comunidad; al cuidado del medio ambiente o a una transición justa?",null,null,null,"Sí y es de conocimiento de toda la organización",{"$f":"IF(G74=\"No existen políticas o procesos o mecanismos o no se comunican\",0,IF(G74=\"La comunicación es parcial dentro de la organización\",2,IF(G74=\"Sí y es de conocimiento de toda la organización\",4,IF(G74=\"La información es pública\",6,\"\"))))","v":4},{"$f":"IF(OR(G74=\"Seleccione\",G75=\"Seleccione\",G76=\"Seleccione\"),\"Por favor completa las preguntas de este apartado del Índice\",IF(H77<8,\"Es necesario incrementar la ambición en alguno de los ejes evaluados para que el proyecto esté alineado al Índice de Igualdad de Género de la Taxonomía Sostenible de México\",\"El proyecto cuenta con la ambición necesaria para cerrar las brechas de género conforme al Índice de Igualdad de Género de la Taxonomía Sostenible de México\"))","v":"El proyecto cuenta con la ambición necesaria para cerrar las brechas de género conforme al Índice de Igualdad de Género de la Taxonomía Sostenible de México"}]
[null,"3.3.1.2","¿Las acciones de involucramiento y consulta consideraron una perspectiva de género en su implementación para asegurar una participación en igualdad de condiciones de las mujeres (horarios adecuados, dinámicas para promover la participación, facilidades para el cuidado de infantes, un lugar de fácil acceso para ellas) y cuentan con un mecanismo de monitoreo que dé seguimiento a la incorporación de las opiniones de las mujeres?",null,null,null,"Las acciones abordan parcialmente los aspectos requeridos por la pregunta",{"$f":"IF(G75=\"No se han desarrollado acciones\",0,IF(G75=\"Las acciones abordan parcialmente los aspectos requeridos por la pregunta\",4,IF(G75=\"Las acciones consideran una perspectiva de género e incluyen un mecanismo de monitoreo\",6,\"\")))","v":4}]
[null,"3.3.1.3","¿Existe evidencia de que la actividad económica o proyecto contribuye a la formación o fortalecimiento de alianzas entre mujeres y de organizaciones que trabajen por sus derechos, la igualdad de género, la conservación del territorio o del medio ambiente, y una transición justa?",null,null,null,"No existe evidencia o no se comunica",{"$f":"IF(G76=\"No existe evidencia o no se comunica\",0,IF(G76=\"La comunicación de la evidencia es parcial dentro de la organización\",2,IF(G76=\"La evidencia es de conocimiento de toda la organización\",4,IF(G76=\"La información es pública\",6,\"\"))))","v":0}]
[null,null,null,null,null,null,null,{"$f":"SUM(H74:H76)","v":8}]
[null,null,"Resumen:","Puntaje obtenido en cada pilar","Alineación"]
[null,null,"Resultados pilar 1: Trabajo digo",{"$f":"SUM(H11,H17,H22,H27,H32,H37,H42,H47)","v":43},{"$f":"IF(D79<24,\"Es necesario incrementar la ambición en el pilar 1 de trabajo digno\",\"El proyecto contribuye al cierre de brechas de género, conforme a la Taxonomía Sostenible de México\")","v":"El proyecto contribuye al cierre de brechas de género, conforme a la Taxonomía Sostenible de México"}]
[null,null,"Resultados pilar 2: Bienestar",{"$f":"SUM(H52,H57,H62)","v":42},{"$f":"IF(D80<24,\"Es necesario incrementar la ambición en el pilar 2 de bienestar\",\"El proyecto contribuye al cierre de brechas de género, conforme a la Taxonomía Sostenible de México\")","v":"El proyecto contribuye al cierre de brechas de género, conforme a la Taxonomía Sostenible de México"}]
[null,null,"Resultados pilar 3: Inclusión social",{"$f":"SUM(H77,H72,H67)","v":44},{"$f":"IF(D81<24,\"Es necesario incrementar la ambición en el pilar 3 de inclusión social\",\"El proyecto contribuye al cierre de brechas de género, conforme a la Taxonomía Sostenible de México\")","v":"El proyecto contribuye al cierre de brechas de género, conforme a la Taxonomía Sostenible de México"}]
[null,null,"Total",{"$f":"SUM(D79:D81)","v":129},{"$f":"IF((COUNTIF(G8:G76,\"Seleccione\"))>1,\"Por definir\",IF(AND(E79=\"El proyecto contribuye al cierre de brechas de género, conforme a la Taxonomía Sostenible de México\",E80=\"El proyecto contribuye al cierre de brechas de género, conforme a la Taxonomía Sostenible de México\",E81=\"El proyecto contribuye al cierre de brechas de género, conforme a la Taxonomía Sostenible de México\",D82>=72),\"Sí cumple con el índice de igualdad de género\",\"No cumple con el índice de igualdad de género\"))","v":"Sí cumple con el índice de igualdad de género"}]

{"sheet":"Energía-NDS","index":22,"n_rows":75,"n_cols":8,"rows_kept":75,"cut":false,"hidden":true,"merged":[[49,7,50,7],[53,7,55,7],[74,0,74,5],[24,0,24,5],[46,0,46,5],[25,0,25,5],[26,0,26,5],[27,0,27,5],[71,0,71,5],[59,0,59,5],[62,0,62,5],[65,0,65,5],[68,0,68,5],[47,0,47,5],[55,0,55,5],[58,0,58,5],[48,0,48,5],[49,0,49,5],[30,0,30,5],[33,0,33,5],[36,0,36,5],[42,0,42,5],[41,0,41,5],[50,0,50,5],[53,0,53,5],[54,0,54,5],[1,1,1,4],[3,0,3,6],[5,0,5,6],[8,0,8,5],[13,0,13,5],[9,0,9,5],[16,0,16,5],[19,0,19,5],[22,0,22,5],[14,0,14,5],[45,0,45,5],[39,0,39,5],[40,0,40,5],[26,7,27,7],[45,7,46,7],[23,0,23,5],[10,0,10,5],[15,0,15,5],[22,7,23,7]]}
[]
[null,"Evaluación de No Daño Significativo de actividades de Generación, Distribución y Transmisión de Energía"]
[]
["El principio de No Daño Significativo (NDS) se compone de una serie de criterios medioambientales que permiten asegurar que una actividad económica, con contribución sustancial, no tenga efectos negativos en ninguno de los otros objetivos de la Taxonomía, distintos al parámetro principal. De esta manera, se asegura que el progreso en algunos objetivos no se haga a expensas de otros objetivos medioambientales. Los criterios de NDS se enfocan en 5 ejes principales: Agua, Adaptación, Biodiversidad, Prevención y Control de la Contaminación y, Economía Circular. Para contar con más detalle, por favor consulta el documento de la Taxonomía Sostenible de México"]
[]
["Asegúrate de responder todas las preguntas. En este apartado aparecerán solo los criterios de No Daño Significativo relacionados a las actividades que se establecieron anteriormente. Al final, se evaluará el porcentaje de criterios de No Daño Significativo que se cumplan. Por favor responde si la actividad cumple con los siguientes criterios."]
[]
["Agua"]
["¿La operación financiera y/o proyecto cumple con la Ley de Aguas Nacionales específicamente con el TITULO “Política Hídrica Nacional”, Art. 14 BIS 5?",null,null,null,null,null,"Seleccione","Incluir en la MIA. Demostrar vinculación del proyecto con lo dispuesto en Leyes y políticas de la matería, “Política Hídrica Nacional”, Art. 14 BIS 5."]
["¿La operación financiera y/o proyecto cumple con el Programa Nacional Hídrico 2020-2024, así como con las estrategias y planes de gestión hídrica estatales y municipales, y atender las recomendaciones de los Consejos de Cuenca por cuenca hidrológica o por región hidrológica?",null,null,null,null,null,"Seleccione","Incluir en la MIA. Detallar la vinculación del proyecto con lo dispuesto en el Programa Nacional Hídrico."]
["¿La operación financiera y/o proyecto cumple con la legislación mexicana en materia de agua aplicable?",null,null,null,null,null,"Seleccione","Presentar: Concesión aguas nacionales superficiales.\nConcesión aguas nacionales subterráneas.\nConcesión para la ocupación de terrenos federales.\nModificación de título o permiso.\nTransmisión de títulos y su registro.\nPrórroga de concesión y/o permisos de descarga.\nPermiso para realizar obras de infraestructura hidráulica."]
[]
["Todas, menos cogeneración eficiente, cogeneración biomasa y T&D"]
["¿En el contexto del proyecto, se monitorear la temperatura de las aguas que se descarguen, como criterio de calidad del agua para la protección de la vida acuática y para las fuentes de abastecimiento de agua potable?",null,null,null,null,null,"Seleccione","Incluir en la MIA. Detallar en la descripción del Sistema Ambiental Regional (SAR) y señalamiento de tendencia del desarrollo y deterioro de la región"]
["¿En el caso de descarga de aguas residuales en drenaje o alcantarillado municipal, la operación financiera y/o proyecto cuenta con los los permisos y autorizaciones requeridas por la ley?",null,null,null,null,null,"Seleccione","Incluir en la MIA. Demostrar el cumplimiento de los Criterios y Lineamientos para otorgar Permisos de Descarga de Aguas Residuales."]
["¿La operación financiera y/o proyecto cuenta con título de concesión de agua, expedido por la CONAGUA para uso en generación de energía hidráulica y debidamente registrado en el Registro Público de Derechos de Agua de la región hidrológica correspondiente (Descrito en los artículos 30 y 78 de la Ley de Aguas Nacionales)?",null,null,null,null,null,"Seleccione","Presentar el título de concesión de agua, expedido por la CONAGUA para uso en generación de energía hidráulica y debidamente registrado en el Registro Público de Derechos de Agua de la región hidrológica correspondiente (Descrito en los artículos 30 y 78 de la Ley de Aguas Nacionales)"]
["¿La operación financiera y/o proyecto cuenta con permisos de descarga de aguas residuales en cuerpos de agua nacional, debidamente registrados en el Registro Público de Derechos de Agua de la región hidrológica correspondiente (Art 30, LAN), cumpliendo la Norma Oficial Mexicana NOM-001-SEMARNAT-2021 que establece los límites permisibles de contaminantes en las descargas de aguas en cuerpos receptores propiedad de la nación?",null,null,null,null,null,"Seleccione","Presentar los permisos de descarga de aguas residuales en cuerpos de agua nacional, debidamente registrados en el Registro Público de Derechos de Agua de la región hidrológica correspondiente."]
[]
["221119. Generación de electricidad a partir de otro tipo de energía (cogeneración eficiente)"]
["¿En el contexto de la operación financiera y/o proyectose indica la escala, identificando la disponibilidad de agua y los riesgos de contaminación de agua, tanto de aguas superficiales como los acuíferos, y en particular las fuentes de agua utilizadas para consumo humano?",null,null,null,null,null,"Seleccione","Incluir en la MIA los elementos señalados."]
[]
["Adaptación"]
["¿En el contexto de la operación financiera y/o proyecto se establecen medidas de adaptación basada en comunidades humanas?",null,null,null,null,null,"Seleccione","Presentar ficha de recopilación sistematizada para IACC. ENCC, Visión 10-20-40 y la Metodología para la Priorización de Medidas de Adaptación frente al Cambio Climático (SEMARNAT-GIZ, 2015)."]
["¿En el contexto de la operación financiera y/o proyecto se establecen medidas de Adaptación basada en ecosistemas?",null,null,null,null,null,"Seleccione"]
[null,null,null,null,null,null,"Seleccione"]
["¿En el contexto de la operación financiera y/o proyecto se establecen adaptación basada en la Reducción del Riesgo de Desastres?",null,null,null,null,null,"Seleccione","Presentar la ficha de recopilación sistematizada para IACC. ENCC, Visión 10-20-40 y la Metodología para la Priorización de Medidas de Adaptación frente al Cambio Climático (SEMARNAT-GIZ, 2015)."]
["¿En el contexto de la operación financiera y/o proyecto se desarrollan criterios de gestión de riesgos y de adaptación al cambio climático en el diseño, construcción, reconstrucción, rehabilitación y mantenimiento de la infraestructura asociada?",null,null,null,null,null,"Seleccione","Incluir en la MIA. Detallar la evaluación de la dimensión de las alteraciones e impactos dentro de los datos del proyecto."]
["¿En el contexto de la operación financiera y/o proyecto se demuestra que se evaluó la dimensión de las alteraciones e impactos que podrían afectar en los en municipios vulnerables al cambio climático en el Atlas Nacional de Vulnerabilidad y el Atlas Nacional de Riesgos?",null,null,null,null,null,"Seleccione"]
[]
["Todas, menos generación de electricidad a partir de energía eólica "]
["¿En el contexto de la operación financiera y/o proyecto se establece la escala del proyecto, en específico ubicación en zonas de riesgo como paredes de cañones, lechos, cauces y arroyos zonas de fallas geológicas, de deslizamiento, de inundación, así como en zonas de litorales expuestas a oleaje de tormenta y procesos de erosión, en desembocaduras y ríos áreas identificadas como altamente vulnerables al cambio climático, incluyendo las zonas urbanas y periurbanas aledañas?",null,null,null,null,null,"Seleccione","Incluir en la MIA los elementos señalados."]
[]
["Generación de electricidad a partir de energía hidráulica"]
["¿En el contexto de la operación financiera y/o proyecto se identifica la disponibilidad de agua y los riesgos de contaminación de agua, tanto de aguas superficiales como los acuíferos, y en particular las fuentes de agua utilizadas para consumo humano, en la cuenca hidrológica y en la región hidrológica de que se trate?",null,null,null,null,null,"Seleccione","Incluir en la MIA los elementos señalados."]
[]
["Generación de electricidad a partir de energía eólica"]
["¿En el contexto de la operación financiera y/o proyecto se identifica la disponibilidad de agua y los riesgos de contaminación de agua, tanto de aguas superficiales como los acuíferos, y en particular las fuentes de agua utilizadas para consumo humano?",null,null,null,null,null,"Seleccione","Incluir en la MIA los elementos señalados."]
[]
["Biodiversidad "]
["La delimitación del proyecto debe de ser congruente con la magnitud de los impactos ambientales, cumpliendo instrumentos de planeación existentes; PDU, POET, cuencas hidrólógicas y otros ¿Esto se cumple en el contexto de la operación financiera y/o proyecto? ",null,null,null,null,null,"Seleccione","Incluir en la MIA. Detallar la vinculación del proyecto con los Programas de Desarrollo Urbano, Programa de Ordenamiento Ecológico General del Territorio: planes de ordenamiento territorial, regulaciones de uso de suelo, permisos y licencias ambientales.  "]
["¿En caso de aplicar, la operación financiera y/o proyecto cuenta con una autorización de cambio de uso de suelo de áreas forestales, así como de selvas o de zonas áridas, de conformidad con el artículo 68 de la Ley General de Desarrollo Forestal Sustentable?",null,null,null,null,null,"Seleccione","Presentar autorización de cambio de uso de suelo de áreas forestales, así como de selvas o de zonas áridas, de conformidad con el artículo 68 de la Ley General de Desarrollo Forestal Sustentable."]
["¿A nivel de sitio y locación específica, la operación financiera y/o proyecto consideraa la Estrategia Nacional sobre Biodiversidad de México (ENBioMex), Plan de Acción 2016-2030 y la Estrategia Nacional para la Conservación y Aprovechamiento Sustentable de Polinizadores, así como las Estrategias Estatales de Biodiversidad correspondientes?",null,null,null,null,null,"Seleccione","Incluir en la MIA la vinculación del proyecto con lo dispuesto en Estrategia Nacional sobre Biodiversidad de México (ENBioMex), Plan de Acción 2016-2030 y la Estrategia Nacional para la Conservación y Aprovechamiento Sustentable de Polinizadores, así como las Estrategias Estatales de Biodiversidad correspondientes."]
["¿La operación financiera y/o proyecto cuenta con una manifestación de impacto ambiental (MIA) o informe ambiental preventivo, autorizados por la autoridad competente (federal), con vigencia y e informes de cumplimiento de condicionantes ambientales?",null,null,null,null,null,"Seleccione","Presentar MIA aprobada por las autoridades ambientales."]
[]
["Prevención y control de la contaminación"]
["¿En el contexto de la operación financiera y/o proyecto se monitorear y se cumple con los límites máximos permisibles de emisiones contaminantes establecidos en las normas oficiales mexicanas (NOM) y en normas mexicanas en materia de aire, agua, suelo y olores y ruido y vibraciones?",null,null,null,null,null,"Seleccione","Presentar certificado de cumplimiento de la NOM-085-SEMARNAT-2011, así como de las normas mexicanas en materia de aire, agua, suelo y olores y ruido y vibraciones."]
["¿En el contexto de la operación financiera y/o proyecto, los vehículos utilizados en la recolección deben cumplen con los límites permisibles de contaminantes a la atmósfera?",null,null,null,null,null,"Seleccione"]
["Las prácticas de limpieza de los vehículos, equipos y herramientas de recolección deben utilizar preferentemente agua tratada, y realizarse en sitios destinados específicamente para esa tarea, cuidando que las aguas residuales se encaucen al drenaje y alcantarillado. Si las aguas residuales se descargan en cuerpos de aguas nacionales, contar con los permisos y autorizaciones de ley ¿Esto se cumple en el contexto del proyecto?",null,null,null,null,null,"Seleccione","Cumplir con los Permisos de Descarga de Aguas Residuales de CONAGUA."]
["¿La operación financiera y/o proyecto cuenta con un inventario que incluya clasificación y cuantificación detallada de RSU y RME y se evitar la incineración y quema de RSU a cielo abierto, para no generar carbono negro que produce calentamiento de la atmósfera, daños a ecosistemas y afectaciones a la salud humana?",null,null,null,null,null,"Seleccione","Incluir en la MIA. Detallar la inclusión de los elementos señalados respecto a RSU y RME. "]
["¿Como parte de la MIA autorizada, la operación financiera y/o proyecto evalua el impacto en el paisaje, incluyendo visibilidad, calidad paisajística y fragilidad visual?",null,null,null,null,null,"Seleccione","Incluir en la MIA los elementos señalados."]
["¿La operación financiera y/o proyecto cumple con las condicionantes establecidas en las autorizaciones en materia de impacto ambiental federales y estatales, así como con mejores prácticas internacionales respecto a paisaje, energía términa y lumínica?",null,null,null,null,null,"Seleccione"]
[]
["Economía Circular "]
["¿En el contexto de la operación financiera y/o proyecto se identifica el tipo de residuos generados durante las diferentes fases del proyecto, estimando el volumen que pudiera generarse?",null,null,null,null,null,"Seleccione","Incluir en la MIA los elementos señalados."]
["¿En el contexto de la operación financiera y/o proyecto se identifica y reportar la disponibilidad de servicios de infraestructura para el manejo y disposición final de los residuos, en la localidad y/o región, tales como: rellenos sanitarios, plantas de tratamiento de aguas residuales municipales, servicios de separación, manejo, tratamiento, reciclamiento o confinamiento de residuos, entre otros. En caso de hacer uso de ellos indicar si estos servicios son suficientes para cubrir las demandas presentes y futuras del proyecto y de otros proyectos presentes en la zona?",null,null,null,null,null,"Seleccione"]
["Con base a la estimación de vida útil del proyecto, se presentará un programa para el desmantelamiento y abandono, que incluya los procedimientos, manejo y destino de materiales y equipos y los programas de rehabilitación o restauración de los sitios ¿Esto se contempla dentro del proyecto?",null,null,null,null,null,"Seleccione"]
[]
["Generación de electricidad a partir de energía hidráulica"]
["¿En el proyecto se ha asegurado que las instalaciones de la central hidroeléctrica hayan sido diseñadas y fabricados para una alta durabilidad, fácil desmontaje, restauración y reciclaje?",null,null,null,null,null,"Seleccione","Incluir en la MIA los elementos señalados."]
["¿En el proyecto se ha asegurado la capacidad de la reparabilidad de las instalaciones de la central hidroeléctrica gracias a la accesibilidad e intercambiabilidad de los componentes?",null,null,null,null,null,"Seleccione","Presentar certificado de cumplimiento de la PROY-NOM-017-CRE-2018."]
[]
["Generación de electricidad a partir de energía solar (sistemas fotovoltaicos)"]
["¿La operación financiera y/o proyecto garantiza que los paneles fotovoltaicos y los componentes asociados han sido diseñados y fabricados para ofrecer una gran durabilidad, facilidad de desmontaje, reacondicionamiento y reciclaje?",null,null,null,null,null,"Seleccione","Presentar certificado de cumplimiento de la NMX-J-655/1-ANCE-2012, parte 1 y 2."]
[]
["Generación de electricidad a partir de energía solar (concentradores solares)"]
["¿La operación financiera y/o proyecto asegura que las instalaciones de Paneles Solares Concentrados se hayan diseñado y fabricado para una alta durabilidad, fácil desmontaje, renovación y reciclaje?",null,null,null,null,null,"Seleccione","Incluir en la MIA los elementoz señalados."]
[]
["Generación de electricidad a partir de energía eólica, océania, transmisión y disitribución "]
["¿La operación financiera y/o proyecto declara la ambición de maximizar el reciclado al final de la vida útil sobre la base de los planes de gestión de residuos, los procesos de desmantelamiento y clausura en el momento de la clausura?",null,null,null,null,null,"Seleccione","Incluir en la MIA los elementoz señalados."]
[]
["Genración de electricidad a partir de cogeneración eficiente y cogeneración con biomasa"]
["¿La operación financiera y/o proyecto aplica medidas relativas a la gestión de residuos exigidas por la NORMA Oficial Mexicana NOM-085-SEMARNAT-2011?",null,null,null,null,null,"Seleccione","Presentar certificado de cumplimiento de la NOM-085-SEMARNAT-2011"]
[]
["Mitigación"]
["Aquellas actividades que estén por debajo del umbral de emisiones de GEI ≤ a 100 gCO2 e/ kWh, no causan daño significativo en materia de mitigación del cambio climático. Aquellas actividades por encima del umbral de GEI deberán asegurar que, como resultado de la actividad de adaptación al cambio climático, no se incremente la intensidad de emisiones de la actividad económica. ¿Esto se cumple en el contexto de la operación financiera y/o proyecto?",null,null,null,null,null,"Seleccione","Incluir en la MIA los elementos señalados."]

{"sheet":"Agua","index":23,"n_rows":50,"n_cols":6,"rows_kept":50,"cut":false,"hidden":true,"merged":[[3,0,3,7],[47,5,47,7],[49,0,49,8],[1,0,1,7]]}
[]
["Actividades del sector de distribución y comercialización de agua"]
[]
["Dentro de la categoría de distribución y comercialización de agua de la Taxonomía Sostenible de México se consideran 5 actividades. En este apartado es necesario seleccionar, de esas 5 actividades, las que estarán siendo financiadas en las presentes operaciones financieras y/o proyectos. En esta versión del Excel, es posible evaluar hasta 20 actividades que se establecen en las cajas de abajo. Recuerda establecer los montos en la casilla amarilla (con número MXN) y elegir las actividades en la lista desplegable azul. Si es necesario incluir más de una actividad, da click en el botón de \"Añade una nueva actividad\".  En caso de que la actividad que deseas evaluar no se encuentre en la lista, significa que no está considerada en este momento por la Taxonomía Sostenible de México. En este caso, puedes  mandar un correo a taxonomia_sost@hacienda.gob.mx para conocer más al respecto. "]
["Objetivos que deberás considerar:",{"$f":"IF('Base-datos'!$C$705=TRUE,\"Mitigación\",\"\")","v":""},{"$f":"IF('Base-datos'!$C$706=TRUE,\"Adaptación\",\"\")","v":""},{"$f":"IF('Base-datos'!$C$707=TRUE,\"Género\",\"\")","v":""}]
[]
[]
["Definición de actividades"]
[null,"Cantidad de recursos ↓","Actividad en la que se colocarán los recursos ↓","Alineación a un objetivo","Tipo de recurso evaluado ↓","Da click para añadir más actividades ↓"]
["Establece por favor en la casilla amarilla la cantidad de recursos que serán destinados a la actividad que selecciones en la casilla azul ",null,"Seleccione","Seleccione","Seleccione"]
[]
["Establece por favor en la casilla amarilla la cantidad de recursos que serán destinados a la actividad que selecciones en la casilla azul ",null,"Seleccione","Seleccione","Seleccione"]
[]
["Establece por favor en la casilla amarilla la cantidad de recursos que serán destinados a la actividad que selecciones en la casilla azul ",null,"Seleccione","Seleccione","Seleccione"]
[]
["Establece por favor en la casilla amarilla la cantidad de recursos que serán destinados a la actividad que selecciones en la casilla azul ",null,"Seleccione","Seleccione","Seleccione"]
[]
["Establece por favor en la casilla amarilla la cantidad de recursos que serán destinados a la actividad que selecciones en la casilla azul ",null,"Seleccione","Seleccione","Seleccione"]
[]
["Establece por favor en la casilla amarilla la cantidad de recursos que serán destinados a la actividad que selecciones en la casilla azul ",null,"Seleccione","Seleccione","Seleccione"]
[]
["Establece por favor en la casilla amarilla la cantidad de recursos que serán destinados a la actividad que selecciones en la casilla azul ",null,"Seleccione","Seleccione","Seleccione"]
[]
["Establece por favor en la casilla amarilla la cantidad de recursos que serán destinados a la actividad que selecciones en la casilla azul ",null,"Seleccione","Seleccione","Seleccione"]
[]
["Establece por favor en la casilla amarilla la cantidad de recursos que serán destinados a la actividad que selecciones en la casilla azul ",null,"Seleccione","Seleccione","Seleccione"]
[]
["Establece por favor en la casilla amarilla la cantidad de recursos que serán destinados a la actividad que selecciones en la casilla azul ",null,"Seleccione","Seleccione","Seleccione"]
[]
["Establece por favor en la casilla amarilla la cantidad de recursos que serán destinados a la actividad que selecciones en la casilla azul ",null,"Seleccione","Seleccione","Seleccione"]
[]
["Establece por favor en la casilla amarilla la cantidad de recursos que serán destinados a la actividad que selecciones en la casilla azul ",null,"Seleccione","Seleccione","Seleccione"]
[]
["Establece por favor en la casilla amarilla la cantidad de recursos que serán destinados a la actividad que selecciones en la casilla azul ",null,"Seleccione","Seleccione","Seleccione"]
[]
["Establece por favor en la casilla amarilla la cantidad de recursos que serán destinados a la actividad que selecciones en la casilla azul ",null,"Seleccione","Seleccione","Seleccione"]
[]
["Establece por favor en la casilla amarilla la cantidad de recursos que serán destinados a la actividad que selecciones en la casilla azul ",null,"Seleccione","Seleccione","Seleccione"]
[]
["Establece por favor en la casilla amarilla la cantidad de recursos que serán destinados a la actividad que selecciones en la casilla azul ",null,"Seleccione","Seleccione","Seleccione"]
[]
["Establece por favor en la casilla amarilla la cantidad de recursos que serán destinados a la actividad que selecciones en la casilla azul ",null,"Seleccione","Seleccione","Seleccione"]
[]
["Establece por favor en la casilla amarilla la cantidad de recursos que serán destinados a la actividad que selecciones en la casilla azul ",null,"Seleccione","Seleccione","Seleccione"]
[]
["Establece por favor en la casilla amarilla la cantidad de recursos que serán destinados a la actividad que selecciones en la casilla azul ",null,"Seleccione","Seleccione","Seleccione"]
[]
["Establece por favor en la casilla amarilla la cantidad de recursos que serán destinados a la actividad que selecciones en la casilla azul ",null,"Seleccione","Seleccione","Seleccione","Por el momento, solo es posible evaluar 20 actividades. Si tu proyecto involucra más actividades, por favor escribe un corrreo a taxonomia_sost@hacienda.gob.mx"]
[]
["Al haber concluido el llenado de las actividades y los tipos de recursos que estarás evaluando, por favor da click en el siguiente botón para evaluar la contribución sustancial de las actividades"]

{"sheet":"Mitigación-Agua","index":24,"n_rows":28,"n_cols":6,"rows_kept":28,"cut":false,"hidden":true,"merged":[[6,5,8,5],[15,5,17,5],[1,0,1,6],[3,0,3,6],[6,0,6,2],[5,0,5,4],[21,0,21,2],[20,0,20,4],[7,0,7,2],[9,0,9,4],[8,0,8,2],[11,0,11,4],[12,0,12,2],[14,0,14,4],[15,0,15,2],[16,0,16,2],[17,0,17,2],[18,0,18,4],[22,0,22,2],[23,0,23,3],[24,0,24,3],[27,0,27,2],[26,0,26,4]]}
[]
["Mitigación al cambio climático de actividades de Distribución y comercialización de Agua"]
[]
["La Taxonomía Sostenible de México contiene métricas y umbrales que evalúan la contribución sustancial de cada una de las actividades económicas para determinar si dichas actividades contribuyen sustancialmente a la sostenibilidad. Las métricas corresponden a las unidades en las que se evalúan los umbrales. Por otro lado, los umbrales son los niveles mínimos que tienen que cumplir cada una de las actividades para argumentar que cuentan con contribución sustancial."]
[]
["221311. Captación, tratamiento y suministro de agua realizados por el sector privado (construcción, ampliación y explotación de sistemas de captación, depuración y distribución de agua)"]
["¿El consumo medio neto de energía para la extracción y la depuración es igual o inferior a 0.5 kWh por metro cúbico de agua suministrada? ",null,null,"Sí",{"$f":"IF(D7=\"Seleccione\",\"Por definir\",IF(D7=\"Sí\",\"El primer umbral de tres se cumple\",\"Al no cumplir con este criterio, no es posible generar contribución sustancial\"))","v":"El primer umbral de tres se cumple"},"Los tres criterios deben cumplirse para considerar que la actividad tiene contribución sustancial a la sostenibilidad. En caso de que la tercer pregunta no aplique, solamente se evaluarán las primeras dos"]
["¿Las fugas estructurales tienen un umbral igual o inferior a 1.5 por metro cúbico de agua suministrada de acuerdo con el Índice de Fugas Estructurales (ILI)?",null,null,"Sí",{"$f":"IF(D8=\"Seleccione\",\"Por definir\",IF(D8=\"Sí\",\"El segundo umbral de tres se cumple\",\"Al no cumplir con este criterio, no es posible generar contribución sustancial\"))","v":"El segundo umbral de tres se cumple"}]
["Si se utiliza una planta desalinizadora, ¿funciona bajo un umbral de 100gCO2 e/KWh?",null,null,"Sí",{"$f":"IF(D9=\"Seleccione\",\"Por definir\",IF(D9=\"Sí\",\"El tercer umbral de tres se cumple\",IF(D9=\"No cuenta con planta desalinizadora\",\"No aplica\",\"Al no cumplir con este criterio, no es posible generar contribución sustancial\")))","v":"El tercer umbral de tres se cumple"}]
[{"$f":"IF(OR(D7=\"Seleccione\",D8=\"Seleccione\",D9=\"Seleccione\"),\"Por definir\",IF(D9=\"No cuenta con planta desalinizadora\",(IF(COUNTIF(D7:D8,\"Sí\")=2,\"La actividad sí contribuye sustancialmente a la sostenibilidad\",\"La actividad no genera contribución sustancial\")),(IF(COUNTIF(D7:D9,\"Sí\")=3,\"La actividad sí contribuye sustancialmente a la sostenibilidad\",\"La actividad no genera contribución sustancial\"))))","v":"La actividad sí contribuye sustancialmente a la sostenibilidad"}]
[]
["221311. Captación, tratamiento y suministro de agua realizados por el sector privado (renovación de sistemas de captación, depuración y distribución de agua)"]
["La renovación de un sistema de captación, tratamiento y suministro de agua, o de una estación depuradora de aguas residuales que mejore la eficiencia energética, deberá reducir su consumo neto de energía en un 20% en comparación con su rendimiento de referencia promedio de los últimos tres años. ¿El proyecto reduce el consumo neto de energía en 20%?",null,null,"Seleccione",{"$f":"IF(D13=\"Seleccione\",\"Por definir\",IF(D13=\"Sí\",\"La actividad sí contribuye sustancialmente a la sostenibilidad\",\"La actividad no genera contribución sustancial\"))","v":"Por definir"}]
[]
["221312. Captación, tratamiento y suministro de agua realizados por el sector público (construcción, ampliación y explotación de sistemas de captación, depuración y distribución de agua)"]
["¿El consumo medio neto de energía para la extracción y la depuración es igual o inferior a 0.5 kWh por metro cúbico de agua suministrada? ",null,null,"Seleccione",{"$f":"IF(D16=\"Seleccione\",\"Por definir\",IF(D16=\"Sí\",\"El primer umbral de tres se cumple\",\"Al no cumplir con este criterio, no es posible generar contribución sustancial\"))","v":"Por definir"},"Los tres criterios deben cumplirse para considerar que la actividad tiene contribución sustancial a la sostenibilidad. En caso de que la tercer pregunta no aplique, solamente se evaluarán las primeras dos"]
["¿Las fugas estructurales tienen un umbral igual o inferior a 1.5 por metro cúbico de agua suministrada de acuerdo con el Índice de Fugas Estructurales (ILI)?",null,null,"Seleccione",{"$f":"IF(D17=\"Seleccione\",\"Por definir\",IF(D17=\"Sí\",\"El segundo umbral de tres se cumple\",\"Al no cumplir con este criterio, no es posible generar contribución sustancial\"))","v":"Por definir"}]
["Si se utiliza una planta desalinizadora, ¿funciona bajo un umbral de 100gCO2 e/KWh?",null,null,"Seleccione",{"$f":"IF(D18=\"Seleccione\",\"Por definir\",IF(D18=\"Sí\",\"El tercer umbral de tres se cumple\",IF(D18=\"No cuenta con planta desalinizadora\",\"No aplica\",\"Al no cumplir con este criterio, no es posible generar contribución sustancial\")))","v":"Por definir"}]
[{"$f":"IF(OR(D16=\"Seleccione\",D17=\"Seleccione\",D18=\"Seleccione\"),\"Por definir\",IF(D18=\"No cuenta con planta desalinizadora\",(IF(COUNTIF(D16:D17,\"Sí\")=2,\"La actividad sí contribuye sustancialmente a la sostenibilidad\",\"La actividad no genera contribución sustancial\")),(IF(COUNTIF(D16:D18,\"Sí\")=3,\"La actividad sí contribuye sustancialmente a la sostenibilidad\",\"La actividad no genera contribución sustancial\"))))","v":"Por definir"}]
[]
["221312. Captación, tratamiento y suministro de agua realizados por el sector público (construcción, ampliación y explotación de sistemas centralizados de aguas residuales)"]
["Define por favor la cantidad de habitantes (e-h) que se cubren con la capacidad del proyecto",null,null,"Seleccione","Responde en orden. En función de la primera respuesta se activará la segunda."]
[{"$f":"IF(D22=\"Seleccione\",\"Responde la pregunta de arriba\",CONCATENATE(IF(D22=\"Menos de diez mil\",\"El consumo de energía del proyecto debe de ser de menos de 35 kWh por habitante en referencia a la capacidad de la planta\",IF(D22=\"entre diez mil y cien mil\",\"El consumo de energía del proyecto debe de ser de menos de 25 kWh por habitante en referencia a la capacidad de la planta\", IF(D22=\"más de cien mil\", \"El consumo de energía del proyecto debe de ser de menos de 20 kWh por habitante en referencia a la capacidad de la planta\"))),\" ¿Esto se cubre a través del proyecto? \"))","v":"Responde la pregunta de arriba"},null,null,"Seleccione","Deberá ser positiva para que el proyecto se considere con contribución sustancial a la sostenibilidad"]
[{"$f":"IF(OR(D22=\"Seleccione\",D23=\"Seleccione\"),\"Por definir\",IF(D23=\"Sí\",\"La actividad sí contribuye sustancialmente a la sostenibilidad\",\"La actividad no genera contribución sustancial\"))","v":"Por definir"}]
["Tip: Para conocer el consumo de energía de la planta en relación a la capacidad de la planta debes dividir el total de la energía del proyecto (kWh) entre la cantidad de habitantes para los cuales tiene capacidad el proyecto (e-h)."]
[]
["221312. Captación, tratamiento y suministro de agua realizados por el sector público (renovación de sistemas centralizados de aguas residuales)"]
["La renovación de un sistema de captación, tratamiento y suministro de agua, o de una estación depuradora de aguas residuales que mejore la eficiencia energética, deberá reducir su consumo neto de energía en un 20% en comparación con su rendimiento de referencia promedio de los últimos tres años. ¿El proyecto reduce el consumo neto de energía en 20%?",null,null,"Seleccione",{"$f":"IF(D28=\"Seleccione\",\"Por definir\",IF(D28=\"Sí\",\"La actividad sí contribuye sustancialmente a la sostenibilidad\",\"La actividad no genera contribución sustancial\"))","v":"Por definir"}]

{"sheet":"Adaptación-Agua","index":25,"n_rows":169,"n_cols":8,"rows_kept":169,"cut":false,"hidden":true,"merged":[[36,0,36,6],[25,0,25,6],[27,0,27,1],[28,0,28,5],[29,0,29,4],[31,0,31,1],[32,0,32,5],[16,7,18,8],[23,7,24,8],[33,7,35,8],[33,0,33,4],[34,0,34,4],[35,0,35,4],[24,0,24,4],[17,0,17,4],[18,0,18,4],[19,0,19,6],[21,0,21,1],[22,0,22,5],[23,0,23,4],[1,0,1,6],[3,0,3,6],[14,0,14,1],[15,0,15,5],[16,0,16,4],[6,0,6,5],[8,0,8,2],[10,0,10,3],[11,0,11,3],[5,0,5,4],[38,0,38,4],[71,0,71,4],[104,0,104,4],[137,0,137,4],[39,0,39,5],[41,0,41,2],[43,0,43,3],[44,0,44,3],[47,0,47,1],[48,0,48,5],[49,0,49,4],[55,0,55,5],[56,0,56,4],[62,0,62,4],[64,0,64,1],[65,0,65,5],[72,0,72,5],[74,0,74,2],[76,0,76,3],[77,0,77,3],[80,0,80,1],[66,0,66,4],[98,0,98,5],[99,0,99,4],[56,7,57,8],[57,0,57,4],[58,0,58,6],[60,0,60,1],[61,0,61,5],[49,7,51,8],[50,0,50,4],[51,0,51,4],[52,0,52,6],[54,0,54,1],[66,7,68,8],[67,0,67,4],[68,0,68,4],[69,0,69,6],[85,0,85,6],[87,0,87,1],[88,0,88,5],[89,0,89,4],[89,7,90,8],[90,0,90,4],[81,0,81,5],[82,0,82,4],[82,7,84,8],[83,0,83,4],[84,0,84,4],[99,7,101,8],[100,0,100,4],[101,0,101,4],[91,0,91,6],[93,0,93,1],[94,0,94,5],[95,0,95,4],[97,0,97,1],[122,7,123,8],[123,0,123,4],[113,0,113,1],[114,0,114,5],[115,0,115,4],[115,7,117,8],[116,0,116,4],[117,0,117,4],[102,0,102,6],[105,0,105,5],[107,0,107,2],[109,0,109,3],[110,0,110,3],[124,0,124,6],[126,0,126,1],[127,0,127,5],[128,0,128,4],[130,0,130,1],[118,0,118,6],[120,0,120,1],[121,0,121,5],[122,0,122,4],[135,0,135,6],[138,0,138,5],[140,0,140,2],[142,0,142,3],[143,0,143,3],[131,0,131,5],[132,0,132,4],[132,7,134,8],[133,0,133,4],[134,0,134,4],[151,0,151,6],[153,0,153,1],[154,0,154,5],[155,0,155,4],[155,7,156,8],[156,0,156,4],[146,0,146,1],[147,0,147,5],[148,0,148,4],[148,7,150,8],[149,0,149,4],[150,0,150,4],[168,0,168,6],[164,0,164,5],[165,0,165,4],[165,7,167,8],[166,0,166,4],[167,0,167,4],[157,0,157,6],[159,0,159,1],[160,0,160,5],[161,0,161,4],[163,0,163,1]]}
[]
["Adaptación al cambio climático de actividades del sector de distribución y comercialización de Agua"]
[]
["La Taxonomía Sostenible de México reconoce que el país está expuesto a riesgos climáticos y ambientales heterogéneos no lineales que tienen múltiples canales de transmisión y, por ende, que el cambio climático afecta en distinta medida a todos los sectores de la economía. En este sentido, a través de la Taxonomía se busca que las actividades económicas contribuyan sustancialmente, no sólo a la mitigación, sino también a la adaptación del cambio climático. "]
[]
["221311. Captación, tratamiento y suministro de agua realizados por el sector privado (construcción, ampliación y explotación de sistemas de captación, depuración y distribución de agua)"]
["Responde las siguientes preguntas seleccionando una respuesta de la lista"]
[]
["1. La actividad que estás evaluando es una actividad adaptada o una actividad que facilita la adaptación?",null,null,"Actividad que facilita la adaptación e incluye desarrollo de infraestructura"]
[]
["¿Qué es una actividad adaptada?\nUna actividad económica se adapta a los riesgos climáticos físicos materiales, si integra medidas y/o soluciones para reducirlos, mientras garantiza que la actividad económica pueda funcionar bien en un clima cambiante. Estas actividades de adaptación se desarrollan a partir de la evaluación de riesgos actuales y futuros, ya sean climáticos, crónicos y/o agudos, así como la escala temporal y geográfica de la actividad económica."]
["¿Qué es una actividad que facilita la adaptación? \nUna actividad económica posibilita la adaptación si reduce el riesgo climático físico material y la vulnerabilidad en otras actividades económicas, comunidades, ecosistemas o ciudades, y/o aborda los obstáculos sistémicos a la adaptación. Esto es posible a través del uso de la tecnología y la creación de un producto o servicio especializado."]
[]
[]
["A1. Reducción de los riesgos climáticos físicos materiales."]
["La actividad económica debe reducir todos los riesgos climáticos físicos materiales para las actividades evaluadas, en la medida de lo posible y sobre la base del mejor esfuerzo. Selecciona las respuestas en las listas desplegables"]
["¿La actividad económica integra medidas destinadas a reducir, en la medida de lo posible y sobre la base del mejor esfuerzo, los riesgos climáticos físicos materiales para esa actividad, que han sido identificados mediante una evaluación de riesgos?",null,null,null,null,"Sí",{"$f":"IF(F17=\"Seleccione\",\"Por definir\",IF(F17=\"Sí\",\"El primer criterio se cumple satisfactoriamente\",\"Al no cumplir con este criterio, no es posible generar contribución sustancial\"))","v":"El primer criterio se cumple satisfactoriamente"},"Las tres condiciones deben cumplirse para argumentar que la actividad tiene contribución sustancial"]
["¿Esta evaluación considera tanto la variabilidad meteorológica actual, como el cambio climático futuro, incluidos los escenarios climáticos, así como la incertidumbre?",null,null,null,null,"Sí",{"$f":"IF(F18=\"Seleccione\",\"Por definir\",IF(F18=\"Sí\",\"El segundo criterio se cumple satisfactoriamente\",\"Al no cumplir con este criterio, no es posible generar contribución sustancial\"))","v":"El segundo criterio se cumple satisfactoriamente"}]
["¿Igualmente la evaluación se basa en un sólido análisis de los datos e información disponible sobre los distintos escenarios climáticos, y es coherente con la duración prevista de la actividad?",null,null,null,null,"Sí",{"$f":"IF(F19=\"Seleccione\",\"Por definir\",IF(F19=\"Sí\",\"El tercer criterio se cumple satisfactoriamente\",\"Al no cumplir con este criterio, no es posible generar contribución sustancial\"))","v":"El tercer criterio se cumple satisfactoriamente"}]
[{"$f":"IF(OR(F17=\"Seleccione\",F18=\"Seleccione\",F19=\"Seleccione\"),\"Por definir\",IF(OR(F17=\"No\",F18=\"No\",F19=\"No\"),\"La actividad no genera contribución sustancial\", \"La actividad sí contribuye sustancialmente a la sostenibilidad\"))","v":"La actividad sí contribuye sustancialmente a la sostenibilidad"}]
[]
["A2. Apoyo a la adaptación del sistema. "]
["La actividad económica y sus medidas de adaptación no afectan negativamente los esfuerzos de adaptación de otras personas, la naturaleza y los bienes. Selecciona las respuestas en las listas desplegables"]
["¿La actividad económica y sus medidas de adaptación no aumentan los riesgos de un impacto climático adverso sobre otras personas, la naturaleza y los bienes?",null,null,null,null,"Sí",{"$f":"IF(F24=\"Seleccione\",\"Por definir\",IF(F24=\"Sí\",\"El primer criterio se cumple satisfactoriamente\",\"Al no cumplir con este criterio, no es posible generar contribución sustancial\"))","v":"El primer criterio se cumple satisfactoriamente"},"Las dos condiciones deben cumplirse para argumentar que la actividad tiene contribución sustancial"]
["¿La actividad económica y sus medidas de adaptación son consistentes con los esfuerzos de adaptación a nivel sectorial, regional y/o nacional?",null,null,null,null,"Sí",{"$f":"IF(F25=\"Seleccione\",\"Por definir\",IF(F25=\"Sí\",\"El segundo criterio se cumple satisfactoriamente\",\"Al no cumplir con este criterio, no es posible generar contribución sustancial\"))","v":"El segundo criterio se cumple satisfactoriamente"}]
[{"$f":"IF(OR(F24=\"Seleccione\",F25=\"Seleccione\"),\"Por definir\",IF(OR(F24=\"No\",F25=\"No\"),\"La actividad no genera contribución sustancial\", \"La actividad sí contribuye sustancialmente a la sostenibilidad\"))","v":"La actividad sí contribuye sustancialmente a la sostenibilidad"}]
[]
["A3. Monitoreo de los resultados de adaptación."]
["En el contexto de la actividad evaluada, la reducción de los riesgos físicos se puede medir. Selecciona las respuestas en las listas desplegables"]
[" Los resultados de adaptación pueden ser monitoreados y medidos con base en indicadores. Considerando que los riesgos físicos evolucionan con el tiempo, el análisis de riesgos físicos debe llevarse a cabo con la frecuencia adecuada.  ¿Esto se evalúa dentro de la operación financiera y/o proyecto?",null,null,null,null,"Sí",{"$f":"IF(F30=\"Seleccione\",\"Por definir\",IF(F30=\"Sí\",\"La actividad sí contribuye sustancialmente a la sostenbilidad\",\"El proyecto no genera contribución sustancial\"))","v":"La actividad sí contribuye sustancialmente a la sostenbilidad"}]
[]
["B1. Apoyar a la adaptación de otras actividades económicas."]
["La actividad económica reduce el riesgo climático físico material en otras actividades económicas y/o aborda los obstáculos sistémicos para la adaptación. Las actividades que permiten la adaptación incluyen, pero no se limitan a, actividades que promueven una tecnología, un producto, una práctica, un proceso de gobernanza o usos innovadores de tecnologías, productos o prácticas existentes (incluidos los relacionados con las infraestructuras naturales). Además, eliminan las barreras de información, financieras, tecnológicas y de capacidad para la adaptación de otros. Selecciona las respuestas en las listas desplegables"]
["¿Se realiza una evaluación de los riesgos resultantes, con base en datos sólidos, tanto de la variabilidad  meteorológica actual como del cambio climático futuro, incluidos los escenarios climáticos, así como  la incertidumbre, que la actividad económica contribuirá a abordar?",null,null,null,null,"Sí",{"$f":"IF(F34=\"Seleccione\",\"Por definir\",IF(F34=\"Sí\",\"El primer criterio se cumple satisfactoriamente\",\"Al no cumplir con este criterio, no es posible generar contribución sustancial\"))","v":"El primer criterio se cumple satisfactoriamente"},"Las tres condiciones en caso de que apliquen deben cumplirse para argumentar que la actividad tiene contribución sustancial. La tercera opción podría no aplicar. En este caso se evaluaran las primeras dos cuestiones"]
["¿Se realiza una evaluación de la eficacia de la contribución de la actividad económica a la reducción de los riesgos físicos, teniendo en cuenta la escala de exposición y la vulnerabilidad a los mismos?",null,null,null,null,"Sí",{"$f":"IF(F35=\"Seleccione\",\"Por definir\",IF(F35=\"Sí\",\"El segundo criterio se cumple satisfactoriamente\",\"Al no cumplir con este criterio, no es posible generar contribución sustancial\"))","v":"El segundo criterio se cumple satisfactoriamente"}]
["En el caso de una infraestructura vinculada a una actividad que permita la adaptación, dicha infraestructura debe cumplir también los criterios de selección A1, A2 y A3. ¿Esto se cumple en el contexto del proyecto?",null,null,null,null,"Sí",{"$f":"IF(F36=\"Seleccione\",\"Por definir\",IF(F36=\"Sí\",\"El tercer criterio se cumple satisfactoriamente\",IF(F36=\"No aplica\",\"No aplica\",\"El proyecto no genera contribución sustancial\")))","v":"El tercer criterio se cumple satisfactoriamente"}]
[{"$f":"IF(OR(F34=\"Seleccione\",F35=\"Seleccione\",F36=\"Seleccione\"),\"Por definir\",IF(OR(F34=\"No\",F35=\"No\",F36=\"No\"),\"La actividad no genera contribución sustancial\",\"La actividad sí contribuye sustancialmente a la sostenibilidad\"))","v":"La actividad sí contribuye sustancialmente a la sostenibilidad"}]
[]
["221311. Captación, tratamiento y suministro de agua realizados por el sector privado (renovación de sistemas de captación, depuración y distribución de agua)"]
["Responde las siguientes preguntas seleccionando una respuesta de la lista"]
[]
["1. La actividad que estás evaluando es una actividad adaptada o una actividad que facilita la adaptación?",null,null,"Actividad que facilita la adaptación e incluye desarrollo de infraestructura"]
[]
["¿Qué es una actividad adaptada?\nUna actividad económica se adapta a los riesgos climáticos físicos materiales, si integra medidas y/o soluciones para reducirlos, mientras garantiza que la actividad económica pueda funcionar bien en un clima cambiante. Estas actividades de adaptación se desarrollan a partir de la evaluación de riesgos actuales y futuros, ya sean climáticos, crónicos y/o agudos, así como la escala temporal y geográfica de la actividad económica."]
["¿Qué es una actividad que facilita la adaptación? \nUna actividad económica posibilita la adaptación si reduce el riesgo climático físico material y la vulnerabilidad en otras actividades económicas, comunidades, ecosistemas o ciudades, y/o aborda los obstáculos sistémicos a la adaptación. Esto es posible a través del uso de la tecnología y la creación de un producto o servicio especializado."]
[]
[]
["A1. Reducción de los riesgos climáticos físicos materiales."]
["La actividad económica debe reducir todos los riesgos climáticos físicos materiales para las actividades evaluadas, en la medida de lo posible y sobre la base del mejor esfuerzo. Selecciona las respuestas en las listas desplegables"]
["¿La actividad económica integra medidas destinadas a reducir, en la medida de lo posible y sobre la base del mejor esfuerzo, los riesgos climáticos físicos materiales para esa actividad, que han sido identificados mediante una evaluación de riesgos?",null,null,null,null,"Sí",{"$f":"IF(F50=\"Seleccione\",\"Por definir\",IF(F50=\"Sí\",\"El primer criterio se cumple satisfactoriamente\",\"Al no cumplir con este criterio, no es posible generar contribución sustancial\"))","v":"El primer criterio se cumple satisfactoriamente"},"Las tres condiciones deben cumplirse para argumentar que la actividad tiene contribución sustancial"]
["¿Esta evaluación considera tanto la variabilidad meteorológica actual, como el cambio climático futuro, incluidos los escenarios climáticos, así como la incertidumbre?",null,null,null,null,"Sí",{"$f":"IF(F51=\"Seleccione\",\"Por definir\",IF(F51=\"Sí\",\"El segundo criterio se cumple satisfactoriamente\",\"Al no cumplir con este criterio, no es posible generar contribución sustancial\"))","v":"El segundo criterio se cumple satisfactoriamente"}]
["¿Igualmente la evaluación se basa en un sólido análisis de los datos e información disponible sobre los distintos escenarios climáticos, y es coherente con la duración prevista de la actividad?",null,null,null,null,"Sí",{"$f":"IF(F52=\"Seleccione\",\"Por definir\",IF(F52=\"Sí\",\"El tercer criterio se cumple satisfactoriamente\",\"Al no cumplir con este criterio, no es posible generar contribución sustancial\"))","v":"El tercer criterio se cumple satisfactoriamente"}]
[{"$f":"IF(OR(F50=\"Seleccione\",F51=\"Seleccione\",F52=\"Seleccione\"),\"Por definir\",IF(OR(F50=\"No\",F51=\"No\",F52=\"No\"),\"La actividad no genera contribución sustancial\", \"La actividad sí contribuye sustancialmente a la sostenibilidad\"))","v":"La actividad sí contribuye sustancialmente a la sostenibilidad"}]
[]
["A2. Apoyo a la adaptación del sistema. "]
["La actividad económica y sus medidas de adaptación no afectan negativamente los esfuerzos de adaptación de otras personas, la naturaleza y los bienes. Selecciona las respuestas en las listas desplegables"]
["¿La actividad económica y sus medidas de adaptación no aumentan los riesgos de un impacto climático adverso sobre otras personas, la naturaleza y los bienes?",null,null,null,null,"Sí",{"$f":"IF(F57=\"Seleccione\",\"Por definir\",IF(F57=\"Sí\",\"El primer criterio se cumple satisfactoriamente\",\"Al no cumplir con este criterio, no es posible generar contribución sustancial\"))","v":"El primer criterio se cumple satisfactoriamente"},"Las dos condiciones deben cumplirse para argumentar que la actividad tiene contribución sustancial"]
["¿La actividad económica y sus medidas de adaptación son consistentes con los esfuerzos de adaptación a nivel sectorial, regional y/o nacional?",null,null,null,null,"Sí",{"$f":"IF(F58=\"Seleccione\",\"Por definir\",IF(F58=\"Sí\",\"El segundo criterio se cumple satisfactoriamente\",\"Al no cumplir con este criterio, no es posible generar contribución sustancial\"))","v":"El segundo criterio se cumple satisfactoriamente"}]
[{"$f":"IF(OR(F57=\"Seleccione\",F58=\"Seleccione\"),\"Por definir\",IF(OR(F57=\"No\",F58=\"No\"),\"La actividad no genera contribución sustancial\", \"La actividad sí contribuye sustancialmente a la sostenibilidad\"))","v":"La actividad sí contribuye sustancialmente a la sostenibilidad"}]
[]
["A3. Monitoreo de los resultados de adaptación."]
["En el contexto de la actividad evaluada, la reducción de los riesgos físicos se puede medir. Selecciona las respuestas en las listas desplegables"]
[" Los resultados de adaptación pueden ser monitoreados y medidos con base en indicadores. Considerando que los riesgos físicos evolucionan con el tiempo, el análisis de riesgos físicos debe llevarse a cabo con la frecuencia adecuada.  ¿Esto se evalúa dentro de la operación financiera y/o proyecto?",null,null,null,null,"Sí",{"$f":"IF(F63=\"Seleccione\",\"Por definir\",IF(F63=\"Sí\",\"La actividad sí contribuye sustancialmente a la sostenbilidad\",\"El proyecto no genera contribución sustancial\"))","v":"La actividad sí contribuye sustancialmente a la sostenbilidad"}]
[]
["B1. Apoyar a la adaptación de otras actividades económicas."]
["La actividad económica reduce el riesgo climático físico material en otras actividades económicas y/o aborda los obstáculos sistémicos para la adaptación. Las actividades que permiten la adaptación incluyen, pero no se limitan a, actividades que promueven una tecnología, un producto, una práctica, un proceso de gobernanza o usos innovadores de tecnologías, productos o prácticas existentes (incluidos los relacionados con las infraestructuras naturales). Además, eliminan las barreras de información, financieras, tecnológicas y de capacidad para la adaptación de otros. Selecciona las respuestas en las listas desplegables"]
["¿Se realiza una evaluación de los riesgos resultantes, con base en datos sólidos, tanto de la variabilidad  meteorológica actual como del cambio climático futuro, incluidos los escenarios climáticos, así como  la incertidumbre, que la actividad económica contribuirá a abordar?",null,null,null,null,"Sí",{"$f":"IF(F67=\"Seleccione\",\"Por definir\",IF(F67=\"Sí\",\"El primer criterio se cumple satisfactoriamente\",\"Al no cumplir con este criterio, no es posible generar contribución sustancial\"))","v":"El primer criterio se cumple satisfactoriamente"},"Las tres condiciones en caso de que apliquen deben cumplirse para argumentar que la actividad tiene contribución sustancial. La tercera opción podría no aplicar. En este caso se evaluaran las primeras dos cuestiones"]
["¿Se realiza una evaluación de la eficacia de la contribución de la actividad económica a la reducción de los riesgos físicos, teniendo en cuenta la escala de exposición y la vulnerabilidad a los mismos?",null,null,null,null,"Sí",{"$f":"IF(F68=\"Seleccione\",\"Por definir\",IF(F68=\"Sí\",\"El segundo criterio se cumple satisfactoriamente\",\"Al no cumplir con este criterio, no es posible generar contribución sustancial\"))","v":"El segundo criterio se cumple satisfactoriamente"}]
["En el caso de una infraestructura vinculada a una actividad que permita la adaptación, dicha infraestructura debe cumplir también los criterios de selección A1, A2 y A3. ¿Esto se cumple en el contexto del proyecto?",null,null,null,null,"Sí",{"$f":"IF(F69=\"Seleccione\",\"Por definir\",IF(F69=\"Sí\",\"El tercer criterio se cumple satisfactoriamente\",IF(F69=\"No aplica\",\"No aplica\",\"El proyecto no genera contribución sustancial\")))","v":"El tercer criterio se cumple satisfactoriamente"}]
[{"$f":"IF(OR(F67=\"Seleccione\",F68=\"Seleccione\",F69=\"Seleccione\"),\"Por definir\",IF(OR(F67=\"No\",F68=\"No\",F69=\"No\"),\"La actividad no genera contribución sustancial\",\"La actividad sí contribuye sustancialmente a la sostenibilidad\"))","v":"La actividad sí contribuye sustancialmente a la sostenibilidad"}]
[]
["221312. Captación, tratamiento y suministro de agua realizados por el sector público (construcción, ampliación y explotación de sistemas de captación, depuración y distribución de agua)"]
["Responde las siguientes preguntas seleccionando una respuesta de la lista"]
[]
["1. La actividad que estás evaluando es una actividad adaptada o una actividad que facilita la adaptación?",null,null,"Actividad que facilita la adaptación e incluye desarrollo de infraestructura"]
[]
["¿Qué es una actividad adaptada?\nUna actividad económica se adapta a los riesgos climáticos físicos materiales, si integra medidas y/o soluciones para reducirlos, mientras garantiza que la actividad económica pueda funcionar bien en un clima cambiante. Estas actividades de adaptación se desarrollan a partir de la evaluación de riesgos actuales y futuros, ya sean climáticos, crónicos y/o agudos, así como la escala temporal y geográfica de la actividad económica."]
["¿Qué es una actividad que facilita la adaptación? \nUna actividad económica posibilita la adaptación si reduce el riesgo climático físico material y la vulnerabilidad en otras actividades económicas, comunidades, ecosistemas o ciudades, y/o aborda los obstáculos sistémicos a la adaptación. Esto es posible a través del uso de la tecnología y la creación de un producto o servicio especializado."]
[]
[]
["A1. Reducción de los riesgos climáticos físicos materiales."]
["La actividad económica debe reducir todos los riesgos climáticos físicos materiales para las actividades evaluadas, en la medida de lo posible y sobre la base del mejor esfuerzo. Selecciona las respuestas en las listas desplegables"]
["¿La actividad económica integra medidas destinadas a reducir, en la medida de lo posible y sobre la base del mejor esfuerzo, los riesgos climáticos físicos materiales para esa actividad, que han sido identificados mediante una evaluación de riesgos?",null,null,null,null,"Sí",{"$f":"IF(F83=\"Seleccione\",\"Por definir\",IF(F83=\"Sí\",\"El primer criterio se cumple satisfactoriamente\",\"Al no cumplir con este criterio, no es posible generar contribución sustancial\"))","v":"El primer criterio se cumple satisfactoriamente"},"Las tres condiciones deben cumplirse para argumentar que la actividad tiene contribución sustancial"]
["¿Esta evaluación considera tanto la variabilidad meteorológica actual, como el cambio climático futuro, incluidos los escenarios climáticos, así como la incertidumbre?",null,null,null,null,"Sí",{"$f":"IF(F84=\"Seleccione\",\"Por definir\",IF(F84=\"Sí\",\"El segundo criterio se cumple satisfactoriamente\",\"Al no cumplir con este criterio, no es posible generar contribución sustancial\"))","v":"El segundo criterio se cumple satisfactoriamente"}]
["¿Igualmente la evaluación se basa en un sólido análisis de los datos e información disponible sobre los distintos escenarios climáticos, y es coherente con la duración prevista de la actividad?",null,null,null,null,"Sí",{"$f":"IF(F85=\"Seleccione\",\"Por definir\",IF(F85=\"Sí\",\"El tercer criterio se cumple satisfactoriamente\",\"Al no cumplir con este criterio, no es posible generar contribución sustancial\"))","v":"El tercer criterio se cumple satisfactoriamente"}]
[{"$f":"IF(OR(F83=\"Seleccione\",F84=\"Seleccione\",F85=\"Seleccione\"),\"Por definir\",IF(OR(F83=\"No\",F84=\"No\",F85=\"No\"),\"La actividad no genera contribución sustancial\", \"La actividad sí contribuye sustancialmente a la sostenibilidad\"))","v":"La actividad sí contribuye sustancialmente a la sostenibilidad"}]
[]
["A2. Apoyo a la adaptación del sistema. "]
["La actividad económica y sus medidas de adaptación no afectan negativamente los esfuerzos de adaptación de otras personas, la naturaleza y los bienes. Selecciona las respuestas en las listas desplegables"]
["¿La actividad económica y sus medidas de adaptación no aumentan los riesgos de un impacto climático adverso sobre otras personas, la naturaleza y los bienes?",null,null,null,null,"Sí",{"$f":"IF(F90=\"Seleccione\",\"Por definir\",IF(F90=\"Sí\",\"El primer criterio se cumple satisfactoriamente\",\"Al no cumplir con este criterio, no es posible generar contribución sustancial\"))","v":"El primer criterio se cumple satisfactoriamente"},"Las dos condiciones deben cumplirse para argumentar que la actividad tiene contribución sustancial"]
["¿La actividad económica y sus medidas de adaptación son consistentes con los esfuerzos de adaptación a nivel sectorial, regional y/o nacional?",null,null,null,null,"Sí",{"$f":"IF(F91=\"Seleccione\",\"Por definir\",IF(F91=\"Sí\",\"El segundo criterio se cumple satisfactoriamente\",\"Al no cumplir con este criterio, no es posible generar contribución sustancial\"))","v":"El segundo criterio se cumple satisfactoriamente"}]
[{"$f":"IF(OR(F90=\"Seleccione\",F91=\"Seleccione\"),\"Por definir\",IF(OR(F90=\"No\",F91=\"No\"),\"La actividad no genera contribución sustancial\", \"La actividad sí contribuye sustancialmente a la sostenibilidad\"))","v":"La actividad sí contribuye sustancialmente a la sostenibilidad"}]
[]
["A3. Monitoreo de los resultados de adaptación."]
["En el contexto de la actividad evaluada, la reducción de los riesgos físicos se puede medir. Selecciona las respuestas en las listas desplegables"]
[" Los resultados de adaptación pueden ser monitoreados y medidos con base en indicadores. Considerando que los riesgos físicos evolucionan con el tiempo, el análisis de riesgos físicos debe llevarse a cabo con la frecuencia adecuada.  ¿Esto se evalúa dentro de la operación financiera y/o proyecto?",null,null,null,null,"Sí",{"$f":"IF(F96=\"Seleccione\",\"Por definir\",IF(F96=\"Sí\",\"La actividad sí contribuye sustancialmente a la sostenbilidad\",\"El proyecto no genera contribución sustancial\"))","v":"La actividad sí contribuye sustancialmente a la sostenbilidad"}]
[]
["B1. Apoyar a la adaptación de otras actividades económicas."]
["La actividad económica reduce el riesgo climático físico material en otras actividades económicas y/o aborda los obstáculos sistémicos para la adaptación. Las actividades que permiten la adaptación incluyen, pero no se limitan a, actividades que promueven una tecnología, un producto, una práctica, un proceso de gobernanza o usos innovadores de tecnologías, productos o prácticas existentes (incluidos los relacionados con las infraestructuras naturales). Además, eliminan las barreras de información, financieras, tecnológicas y de capacidad para la adaptación de otros. Selecciona las respuestas en las listas desplegables"]
["¿Se realiza una evaluación de los riesgos resultantes, con base en datos sólidos, tanto de la variabilidad  meteorológica actual como del cambio climático futuro, incluidos los escenarios climáticos, así como  la incertidumbre, que la actividad económica contribuirá a abordar?",null,null,null,null,"Sí",{"$f":"IF(F100=\"Seleccione\",\"Por definir\",IF(F100=\"Sí\",\"El primer criterio se cumple satisfactoriamente\",\"Al no cumplir con este criterio, no es posible generar contribución sustancial\"))","v":"El primer criterio se cumple satisfactoriamente"},"Las tres condiciones en caso de que apliquen deben cumplirse para argumentar que la actividad tiene contribución sustancial. La tercera opción podría no aplicar. En este caso se evaluaran las primeras dos cuestiones"]
["¿Se realiza una evaluación de la eficacia de la contribución de la actividad económica a la reducción de los riesgos físicos, teniendo en cuenta la escala de exposición y la vulnerabilidad a los mismos?",null,null,null,null,"Sí",{"$f":"IF(F101=\"Seleccione\",\"Por definir\",IF(F101=\"Sí\",\"El segundo criterio se cumple satisfactoriamente\",\"Al no cumplir con este criterio, no es posible generar contribución sustancial\"))","v":"El segundo criterio se cumple satisfactoriamente"}]
["En el caso de una infraestructura vinculada a una actividad que permita la adaptación, dicha infraestructura debe cumplir también los criterios de selección A1, A2 y A3. ¿Esto se cumple en el contexto del proyecto?",null,null,null,null,"Sí",{"$f":"IF(F102=\"Seleccione\",\"Por definir\",IF(F102=\"Sí\",\"El tercer criterio se cumple satisfactoriamente\",IF(F102=\"No aplica\",\"No aplica\",\"El proyecto no genera contribución sustancial\")))","v":"El tercer criterio se cumple satisfactoriamente"}]
[{"$f":"IF(OR(F100=\"Seleccione\",F101=\"Seleccione\",F102=\"Seleccione\"),\"Por definir\",IF(OR(F100=\"No\",F101=\"No\",F102=\"No\"),\"La actividad no genera contribución sustancial\",\"La actividad sí contribuye sustancialmente a la sostenibilidad\"))","v":"La actividad sí contribuye sustancialmente a la sostenibilidad"}]
[]
["221312. Captación, tratamiento y suministro de agua realizados por el sector público (construcción, ampliación y explotación de sistemas centralizados de aguas residuales)"]
["Responde las siguientes preguntas seleccionando una respuesta de la lista"]
[]
["1. La actividad que estás evaluando es una actividad adaptada o una actividad que facilita la adaptación?",null,null,"Actividad que facilita la adaptación e incluye desarrollo de infraestructura"]
[]
["¿Qué es una actividad adaptada?\nUna actividad económica se adapta a los riesgos climáticos físicos materiales, si integra medidas y/o soluciones para reducirlos, mientras garantiza que la actividad económica pueda funcionar bien en un clima cambiante. Estas actividades de adaptación se desarrollan a partir de la evaluación de riesgos actuales y futuros, ya sean climáticos, crónicos y/o agudos, así como la escala temporal y geográfica de la actividad económica."]
["¿Qué es una actividad que facilita la adaptación? \nUna actividad económica posibilita la adaptación si reduce el riesgo climático físico material y la vulnerabilidad en otras actividades económicas, comunidades, ecosistemas o ciudades, y/o aborda los obstáculos sistémicos a la adaptación. Esto es posible a través del uso de la tecnología y la creación de un producto o servicio especializado."]
[]
[]
["A1. Reducción de los riesgos climáticos físicos materiales."]
["La actividad económica debe reducir todos los riesgos climáticos físicos materiales para las actividades evaluadas, en la medida de lo posible y sobre la base del mejor esfuerzo. Selecciona las respuestas en las listas desplegables"]
["¿La actividad económica integra medidas destinadas a reducir, en la medida de lo posible y sobre la base del mejor esfuerzo, los riesgos climáticos físicos materiales para esa actividad, que han sido identificados mediante una evaluación de riesgos?",null,null,null,null,"Sí",{"$f":"IF(F116=\"Seleccione\",\"Por definir\",IF(F116=\"Sí\",\"El primer criterio se cumple satisfactoriamente\",\"Al no cumplir con este criterio, no es posible generar contribución sustancial\"))","v":"El primer criterio se cumple satisfactoriamente"},"Las tres condiciones deben cumplirse para argumentar que la actividad tiene contribución sustancial"]
["¿Esta evaluación considera tanto la variabilidad meteorológica actual, como el cambio climático futuro, incluidos los escenarios climáticos, así como la incertidumbre?",null,null,null,null,"Sí",{"$f":"IF(F117=\"Seleccione\",\"Por definir\",IF(F117=\"Sí\",\"El segundo criterio se cumple satisfactoriamente\",\"Al no cumplir con este criterio, no es posible generar contribución sustancial\"))","v":"El segundo criterio se cumple satisfactoriamente"}]
["¿Igualmente la evaluación se basa en un sólido análisis de los datos e información disponible sobre los distintos escenarios climáticos, y es coherente con la duración prevista de la actividad?",null,null,null,null,"Sí",{"$f":"IF(F118=\"Seleccione\",\"Por definir\",IF(F118=\"Sí\",\"El tercer criterio se cumple satisfactoriamente\",\"Al no cumplir con este criterio, no es posible generar contribución sustancial\"))","v":"El tercer criterio se cumple satisfactoriamente"}]
[{"$f":"IF(OR(F116=\"Seleccione\",F117=\"Seleccione\",F118=\"Seleccione\"),\"Por definir\",IF(OR(F116=\"No\",F117=\"No\",F118=\"No\"),\"La actividad no genera contribución sustancial\", \"La actividad sí contribuye sustancialmente a la sostenibilidad\"))","v":"La actividad sí contribuye sustancialmente a la sostenibilidad"}]
[]
["A2. Apoyo a la adaptación del sistema. "]
["La actividad económica y sus medidas de adaptación no afectan negativamente los esfuerzos de adaptación de otras personas, la naturaleza y los bienes. Selecciona las respuestas en las listas desplegables"]
["¿La actividad económica y sus medidas de adaptación no aumentan los riesgos de un impacto climático adverso sobre otras personas, la naturaleza y los bienes?",null,null,null,null,"Sí",{"$f":"IF(F123=\"Seleccione\",\"Por definir\",IF(F123=\"Sí\",\"El primer criterio se cumple satisfactoriamente\",\"Al no cumplir con este criterio, no es posible generar contribución sustancial\"))","v":"El primer criterio se cumple satisfactoriamente"},"Las dos condiciones deben cumplirse para argumentar que la actividad tiene contribución sustancial"]
["¿La actividad económica y sus medidas de adaptación son consistentes con los esfuerzos de adaptación a nivel sectorial, regional y/o nacional?",null,null,null,null,"Sí",{"$f":"IF(F124=\"Seleccione\",\"Por definir\",IF(F124=\"Sí\",\"El segundo criterio se cumple satisfactoriamente\",\"Al no cumplir con este criterio, no es posible generar contribución sustancial\"))","v":"El segundo criterio se cumple satisfactoriamente"}]
[{"$f":"IF(OR(F123=\"Seleccione\",F124=\"Seleccione\"),\"Por definir\",IF(OR(F123=\"No\",F124=\"No\"),\"La actividad no genera contribución sustancial\", \"La actividad sí contribuye sustancialmente a la sostenibilidad\"))","v":"La actividad sí contribuye sustancialmente a la sostenibilidad"}]
[]
["A3. Monitoreo de los resultados de adaptación."]
["En el contexto de la actividad evaluada, la reducción de los riesgos físicos se puede medir. Selecciona las respuestas en las listas desplegables"]
[" Los resultados de adaptación pueden ser monitoreados y medidos con base en indicadores. Considerando que los riesgos físicos evolucionan con el tiempo, el análisis de riesgos físicos debe llevarse a cabo con la frecuencia adecuada.  ¿Esto se evalúa dentro de la operación financiera y/o proyecto?",null,null,null,null,"Sí",{"$f":"IF(F129=\"Seleccione\",\"Por definir\",IF(F129=\"Sí\",\"La actividad sí contribuye sustancialmente a la sostenbilidad\",\"El proyecto no genera contribución sustancial\"))","v":"La actividad sí contribuye sustancialmente a la sostenbilidad"}]
[]
["B1. Apoyar a la adaptación de otras actividades económicas."]
["La actividad económica reduce el riesgo climático físico material en otras actividades económicas y/o aborda los obstáculos sistémicos para la adaptación. Las actividades que permiten la adaptación incluyen, pero no se limitan a, actividades que promueven una tecnología, un producto, una práctica, un proceso de gobernanza o usos innovadores de tecnologías, productos o prácticas existentes (incluidos los relacionados con las infraestructuras naturales). Además, eliminan las barreras de información, financieras, tecnológicas y de capacidad para la adaptación de otros. Selecciona las respuestas en las listas desplegables"]
["¿Se realiza una evaluación de los riesgos resultantes, con base en datos sólidos, tanto de la variabilidad  meteorológica actual como del cambio climático futuro, incluidos los escenarios climáticos, así como  la incertidumbre, que la actividad económica contribuirá a abordar?",null,null,null,null,"Sí",{"$f":"IF(F133=\"Seleccione\",\"Por definir\",IF(F133=\"Sí\",\"El primer criterio se cumple satisfactoriamente\",\"Al no cumplir con este criterio, no es posible generar contribución sustancial\"))","v":"El primer criterio se cumple satisfactoriamente"},"Las tres condiciones en caso de que apliquen deben cumplirse para argumentar que la actividad tiene contribución sustancial. La tercera opción podría no aplicar. En este caso se evaluaran las primeras dos cuestiones"]
["¿Se realiza una evaluación de la eficacia de la contribución de la actividad económica a la reducción de los riesgos físicos, teniendo en cuenta la escala de exposición y la vulnerabilidad a los mismos?",null,null,null,null,"Sí",{"$f":"IF(F134=\"Seleccione\",\"Por definir\",IF(F134=\"Sí\",\"El segundo criterio se cumple satisfactoriamente\",\"Al no cumplir con este criterio, no es posible generar contribución sustancial\"))","v":"El segundo criterio se cumple satisfactoriamente"}]
["En el caso de una infraestructura vinculada a una actividad que permita la adaptación, dicha infraestructura debe cumplir también los criterios de selección A1, A2 y A3. ¿Esto se cumple en el contexto del proyecto?",null,null,null,null,"Sí",{"$f":"IF(F135=\"Seleccione\",\"Por definir\",IF(F135=\"Sí\",\"El tercer criterio se cumple satisfactoriamente\",IF(F135=\"No aplica\",\"No aplica\",\"El proyecto no genera contribución sustancial\")))","v":"El tercer criterio se cumple satisfactoriamente"}]
[{"$f":"IF(OR(F133=\"Seleccione\",F134=\"Seleccione\",F135=\"Seleccione\"),\"Por definir\",IF(OR(F133=\"No\",F134=\"No\",F135=\"No\"),\"La actividad no genera contribución sustancial\",\"La actividad sí contribuye sustancialmente a la sostenibilidad\"))","v":"La actividad sí contribuye sustancialmente a la sostenibilidad"}]
[]
["221312. Captación, tratamiento y suministro de agua realizados por el sector público (renovación de sistemas centralizados de aguas residuales)"]
["Responde las siguientes preguntas seleccionando una respuesta de la lista"]
[]
["1. La actividad que estás evaluando es una actividad adaptada o una actividad que facilita la adaptación?",null,null,"Actividad que facilita la adaptación e incluye desarrollo de infraestructura"]
[]
["¿Qué es una actividad adaptada?\nUna actividad económica se adapta a los riesgos climáticos físicos materiales, si integra medidas y/o soluciones para reducirlos, mientras garantiza que la actividad económica pueda funcionar bien en un clima cambiante. Estas actividades de adaptación se desarrollan a partir de la evaluación de riesgos actuales y futuros, ya sean climáticos, crónicos y/o agudos, así como la escala temporal y geográfica de la actividad económica."]
["¿Qué es una actividad que facilita la adaptación? \nUna actividad económica posibilita la adaptación si reduce el riesgo climático físico material y la vulnerabilidad en otras actividades económicas, comunidades, ecosistemas o ciudades, y/o aborda los obstáculos sistémicos a la adaptación. Esto es posible a través del uso de la tecnología y la creación de un producto o servicio especializado."]
[]
[]
["A1. Reducción de los riesgos climáticos físicos materiales."]
["La actividad económica debe reducir todos los riesgos climáticos físicos materiales para las actividades evaluadas, en la medida de lo posible y sobre la base del mejor esfuerzo. Selecciona las respuestas en las listas desplegables"]
["¿La actividad económica integra medidas destinadas a reducir, en la medida de lo posible y sobre la base del mejor esfuerzo, los riesgos climáticos físicos materiales para esa actividad, que han sido identificados mediante una evaluación de riesgos?",null,null,null,null,"Sí",{"$f":"IF(F149=\"Seleccione\",\"Por definir\",IF(F149=\"Sí\",\"El primer criterio se cumple satisfactoriamente\",\"Al no cumplir con este criterio, no es posible generar contribución sustancial\"))","v":"El primer criterio se cumple satisfactoriamente"},"Las tres condiciones deben cumplirse para argumentar que la actividad tiene contribución sustancial"]
["¿Esta evaluación considera tanto la variabilidad meteorológica actual, como el cambio climático futuro, incluidos los escenarios climáticos, así como la incertidumbre?",null,null,null,null,"Sí",{"$f":"IF(F150=\"Seleccione\",\"Por definir\",IF(F150=\"Sí\",\"El segundo criterio se cumple satisfactoriamente\",\"Al no cumplir con este criterio, no es posible generar contribución sustancial\"))","v":"El segundo criterio se cumple satisfactoriamente"}]
["¿Igualmente la evaluación se basa en un sólido análisis de los datos e información disponible sobre los distintos escenarios climáticos, y es coherente con la duración prevista de la actividad?",null,null,null,null,"Sí",{"$f":"IF(F151=\"Seleccione\",\"Por definir\",IF(F151=\"Sí\",\"El tercer criterio se cumple satisfactoriamente\",\"Al no cumplir con este criterio, no es posible generar contribución sustancial\"))","v":"El tercer criterio se cumple satisfactoriamente"}]
[{"$f":"IF(OR(F149=\"Seleccione\",F150=\"Seleccione\",F151=\"Seleccione\"),\"Por definir\",IF(OR(F149=\"No\",F150=\"No\",F151=\"No\"),\"La actividad no genera contribución sustancial\", \"La actividad sí contribuye sustancialmente a la sostenibilidad\"))","v":"La actividad sí contribuye sustancialmente a la sostenibilidad"}]
[]
["A2. Apoyo a la adaptación del sistema. "]
["La actividad económica y sus medidas de adaptación no afectan negativamente los esfuerzos de adaptación de otras personas, la naturaleza y los bienes. Selecciona las respuestas en las listas desplegables"]
["¿La actividad económica y sus medidas de adaptación no aumentan los riesgos de un impacto climático adverso sobre otras personas, la naturaleza y los bienes?",null,null,null,null,"Sí",{"$f":"IF(F156=\"Seleccione\",\"Por definir\",IF(F156=\"Sí\",\"El primer criterio se cumple satisfactoriamente\",\"Al no cumplir con este criterio, no es posible generar contribución sustancial\"))","v":"El primer criterio se cumple satisfactoriamente"},"Las dos condiciones deben cumplirse para argumentar que la actividad tiene contribución sustancial"]
["¿La actividad económica y sus medidas de adaptación son consistentes con los esfuerzos de adaptación a nivel sectorial, regional y/o nacional?",null,null,null,null,"Sí",{"$f":"IF(F157=\"Seleccione\",\"Por definir\",IF(F157=\"Sí\",\"El segundo criterio se cumple satisfactoriamente\",\"Al no cumplir con este criterio, no es posible generar contribución sustancial\"))","v":"El segundo criterio se cumple satisfactoriamente"}]
[{"$f":"IF(OR(F156=\"Seleccione\",F157=\"Seleccione\"),\"Por definir\",IF(OR(F156=\"No\",F157=\"No\"),\"La actividad no genera contribución sustancial\", \"La actividad sí contribuye sustancialmente a la sostenibilidad\"))","v":"La actividad sí contribuye sustancialmente a la sostenibilidad"}]
[]
["A3. Monitoreo de los resultados de adaptación."]
["En el contexto de la actividad evaluada, la reducción de los riesgos físicos se puede medir. Selecciona las respuestas en las listas desplegables"]
[" Los resultados de adaptación pueden ser monitoreados y medidos con base en indicadores. Considerando que los riesgos físicos evolucionan con el tiempo, el análisis de riesgos físicos debe llevarse a cabo con la frecuencia adecuada.  ¿Esto se evalúa dentro de la operación financiera y/o proyecto?",null,null,null,null,"Sí",{"$f":"IF(F162=\"Seleccione\",\"Por definir\",IF(F162=\"Sí\",\"La actividad sí contribuye sustancialmente a la sostenbilidad\",\"El proyecto no genera contribución sustancial\"))","v":"La actividad sí contribuye sustancialmente a la sostenbilidad"}]
[]
["B1. Apoyar a la adaptación de otras actividades económicas."]
["La actividad económica reduce el riesgo climático físico material en otras actividades económicas y/o aborda los obstáculos sistémicos para la adaptación. Las actividades que permiten la adaptación incluyen, pero no se limitan a, actividades que promueven una tecnología, un producto, una práctica, un proceso de gobernanza o usos innovadores de tecnologías, productos o prácticas existentes (incluidos los relacionados con las infraestructuras naturales). Además, eliminan las barreras de información, financieras, tecnológicas y de capacidad para la adaptación de otros. Selecciona las respuestas en las listas desplegables"]
["¿Se realiza una evaluación de los riesgos resultantes, con base en datos sólidos, tanto de la variabilidad  meteorológica actual como del cambio climático futuro, incluidos los escenarios climáticos, así como  la incertidumbre, que la actividad económica contribuirá a abordar?",null,null,null,null,"Sí",{"$f":"IF(F166=\"Seleccione\",\"Por definir\",IF(F166=\"Sí\",\"El primer criterio se cumple satisfactoriamente\",\"Al no cumplir con este criterio, no es posible generar contribución sustancial\"))","v":"El primer criterio se cumple satisfactoriamente"},"Las tres condiciones en caso de que apliquen deben cumplirse para argumentar que la actividad tiene contribución sustancial. La tercera opción podría no aplicar. En este caso se evaluaran las primeras dos cuestiones"]
["¿Se realiza una evaluación de la eficacia de la contribución de la actividad económica a la reducción de los riesgos físicos, teniendo en cuenta la escala de exposición y la vulnerabilidad a los mismos?",null,null,null,null,"Sí",{"$f":"IF(F167=\"Seleccione\",\"Por definir\",IF(F167=\"Sí\",\"El segundo criterio se cumple satisfactoriamente\",\"Al no cumplir con este criterio, no es posible generar contribución sustancial\"))","v":"El segundo criterio se cumple satisfactoriamente"}]
["En el caso de una infraestructura vinculada a una actividad que permita la adaptación, dicha infraestructura debe cumplir también los criterios de selección A1, A2 y A3. ¿Esto se cumple en el contexto del proyecto?",null,null,null,null,"Sí",{"$f":"IF(F168=\"Seleccione\",\"Por definir\",IF(F168=\"Sí\",\"El tercer criterio se cumple satisfactoriamente\",IF(F168=\"No aplica\",\"No aplica\",\"El proyecto no genera contribución sustancial\")))","v":"El tercer criterio se cumple satisfactoriamente"}]
[{"$f":"IF(OR(F166=\"Seleccione\",F167=\"Seleccione\",F168=\"Seleccione\"),\"Por definir\",IF(OR(F166=\"No\",F167=\"No\",F168=\"No\"),\"La actividad no genera contribución sustancial\",\"La actividad sí contribuye sustancialmente a la sostenibilidad\"))","v":"La actividad sí contribuye sustancialmente a la sostenibilidad"}]

{"sheet":"Indice de género-Agua","index":26,"n_rows":82,"n_cols":11,"rows_kept":82,"cut":false,"hidden":true,"merged":[[1,1,1,8],[3,0,3,8],[5,0,5,8],[7,0,9,0],[7,1,9,1],[7,2,7,5],[7,8,9,8],[8,2,8,5],[9,2,9,5],[12,0,15,0],[12,1,15,1],[12,2,12,5],[12,8,15,8],[13,2,13,5],[14,2,14,5],[15,2,15,5],[18,0,20,0],[18,1,20,1],[18,2,18,5],[18,8,20,8],[19,2,19,5],[20,2,20,5],[23,0,25,0],[23,1,25,1],[23,2,23,5],[23,8,25,8],[24,2,24,5],[25,2,25,5],[28,0,30,0],[28,1,30,1],[28,2,28,5],[28,8,30,8],[29,2,29,5],[30,2,30,5],[33,0,35,0],[33,1,35,1],[33,2,33,5],[33,8,35,8],[34,2,34,5],[35,2,35,5],[38,0,40,0],[38,1,40,1],[38,2,38,5],[38,8,40,8],[39,2,39,5],[40,2,40,5],[43,0,45,0],[43,1,45,1],[43,2,43,5],[43,8,45,8],[44,2,44,5],[45,2,45,5],[48,0,50,0],[48,1,50,1],[48,2,48,5],[48,8,50,8],[49,2,49,5],[50,2,50,5],[53,0,55,0],[53,1,55,1],[53,2,53,5],[53,8,55,8],[54,2,54,5],[55,2,55,5],[58,0,60,0],[58,1,60,1],[58,2,58,5],[58,8,60,8],[59,2,59,5],[60,2,60,5],[63,0,65,0],[63,1,65,1],[63,2,63,5],[63,8,65,8],[64,2,64,5],[65,2,65,5],[68,0,70,0],[68,1,70,1],[68,2,68,5],[68,8,70,8],[69,2,69,5],[70,2,70,5],[73,0,75,0],[73,1,75,1],[73,2,73,5],[73,8,75,8],[74,2,74,5],[75,2,75,5],[77,4,77,7],[78,4,78,7],[79,4,79,7],[80,4,80,7],[81,4,81,7]]}
[]
[null,"Índice de Igualdad de Género"]
[]
["La Igualdad de Género es considerada como un objetivo prioritario en la Taxonomía Sostenible de México. Es así que se han generado Criterios de Evaluación Técnica que permitan identificar inversiones que contribuyan al cierre de brechas de género. Al mismo tiempo, las métricas propuestas servirán como guía orientadora para los usuarios potenciales de la Taxonomía, de forma que puedan dirigir esfuerzos para generar una contribución sustancial a la igualdad de género. Este índice refleja, en una escala numérica, la contribución de las organizaciones a tres pilares de igualdad de género: 1) Trabajo Digno, 2) Bienestar e 3) Inclusión Social. Ello permite traducir los criterios cualitativos de estos tres pilares, a una métrica cuantitativa, a la cual es posible asignar un umbral para determinar un nivel de contribución sustancial para un objetivo social."]
[]
["Por favor, selecciona alguna de las opciones descritas en las casillas azules para cada pregunta. En función de la respuesta, se asignará un puntaje por bloque de preguntas, que al final será evaluado para conocer si el proyecto cumple con las condiciones presentes en el índice de igualdad de género"]
["Pilar",null,null,null,null,null,null,"Puntaje",null,null,{"$f":"IF(G7=\"No\",0,IF(G7=\"Sí de alcance parcial dentro de la organización\",1,IF(G7=\"Sí de alcance integral en la organización\",2,IF(G7=\"Sí de alcance que se extiende dentro y fuera de la organización\",3,\"\"))))","v":""}]
["1.1.1","Igualdad de remuneración","¿Existe una política y/o tabulador para todo el personal que establezca la igualdad de remuneración por un trabajo equivalente, conforme a la Ley Federal del Trabajo, y donde se puedan consultar los rangos salariales para los diferentes niveles dentro del centro de trabajo?",null,null,null,"Seleccione",{"$f":"IF(G8=\"No\",0,IF(G8=\"Sí de alcance parcial dentro de la organización\",1,IF(G8=\"Sí de alcance integral en la organización\",2,IF(G8=\"Sí de alcance que se extiende dentro y fuera de la organización\",3,\"\"))))","v":""},{"$f":"IF(OR(G8=\"Seleccione\",G9=\"Seleccione\",G10=\"Seleccione\"),\"Por favor completa las preguntas de este apartado del Índice\",IF(H11<3,\"Es necesario incrementar la ambición en alguno de los ejes evaluados para que el proyecto esté alineado al Índice de Igualdad de Género de la Taxonomía Sostenible de México\",\"El proyecto cuenta con la ambición necesaria para cerrar las brechas de género conforme al Índice de Igualdad de Género de la Taxonomía Sostenible de México\"))","v":"Por favor completa las preguntas de este apartado del Índice"}]
[null,null,"¿La organización realiza un análisis sistemático y periódico de las brechas de género en salarios, prestaciones y compensaciones de su personal?",null,null,null,"Seleccione",{"$f":"IF(G9=\"No\",0,IF(G9=\"Sí de alcance parcial dentro de la organización\",1,IF(G9=\"Sí de alcance integral en la organización\",2,IF(G9=\"Sí de alcance que se extiende dentro y fuera de la organización\",3,\"\"))))","v":""}]
[null,null,"¿La organización cuenta con un mecanismo para corregir los casos identificados con desigualdad en la remuneración?",null,null,null,"Seleccione",{"$f":"IF(G10=\"No\",0,IF(G10=\"Sí de alcance parcial dentro de la organización\",1,IF(G10=\"Sí de alcance integral en la organización\",2,\"\")))","v":""}]
[null,null,null,null,null,null,null,{"$f":"SUM(H8:H10)","v":0}]
[]
["1.2.1","Posibilidades de acceso, contratación, participación, permanencia y promoción","¿Tiene la organización una política o mecanismo que garantice la no discriminación e igualdad de oportunidades en el acceso, permanencia y desarrollo laboral?",null,null,null,"Seleccione",{"$f":"IF(G13=\"No\",0,IF(G13=\"Sí de alcance parcial dentro de la organización\",1,IF(G13=\"Sí de alcance integral en la organización\",2,IF(G13=\"Sí de alcance que se extiende dentro y fuera de la organización\",3,\"\"))))","v":""},{"$f":"IF(OR(G13=\"Seleccione\",G14=\"Seleccione\",G15=\"Seleccione\",G16=\"Seleccione\"),\"Por favor completa las preguntas de este apartado del Índice\",IF(H17<4,\"Es necesario incrementar la ambición en alguno de los ejes evaluados para que el proyecto esté alineado al Índice de Igualdad de Género de la Taxonomía Sostenible de México\",\"El proyecto cuenta con la ambición necesaria para cerrar las brechas de género conforme al Índice de Igualdad de Género de la Taxonomía Sostenible de México\"))","v":"Por favor completa las preguntas de este apartado del Índice"}]
[null,null,"¿Existen perfiles de puestos, anuncios de vacantes u ofertas de trabajo, documentación para entrevista de ingreso estructurada y/o exámenes o evaluaciones libres de sesgos sexistas o de discriminación?",null,null,null,"Seleccione",{"$f":"IF(G14=\"No\",0,IF(G14=\"Sí de alcance parcial dentro de la organización\",1,IF(G14=\"Sí de alcance integral en la organización\",2,IF(G14=\"Sí de alcance que se extiende dentro y fuera de la organización\",3,\"\"))))","v":""}]
[null,null,"¿Se cuenta con procesos transparentes y accesibles de movilidad horizontal y vertical libres de sesgos sexistas o discriminatorios?",null,null,null,"Seleccione",{"$f":"IF(G15=\"No\",0,IF(G15=\"Sí de alcance parcial dentro de la organización\",1,IF(G15=\"Sí de alcance integral en la organización\",2,IF(G15=\"Sí de alcance que se extiende dentro y fuera de la organización\",3,\"\"))))","v":""}]
[null,null,"¿La organización lleva a cabo capacitaciones extensivas al personal candidato o de la propia empresa como mecanismo de corrección (distintas al plan de capacitación) sobre sesgos de género para entrevistas laborales, para evaluaciones de desempeño o para procesos de reclutamiento, movilidad y  promoción?",null,null,null,"Seleccione",{"$f":"IF(G16=\"No\",0,IF(G16=\"Sí de alcance parcial dentro de la organización\",1,IF(G16=\"Sí de alcance integral en la organización\",2,IF(G16=\"Sí de alcance que se extiende dentro y fuera de la organización\",3,\"\"))))","v":""}]
[null,null,null,null,null,null,null,{"$f":"SUM(H13:H16)","v":0}]
[]
["1.2.2","Segregación Vertical y Horizontal","¿La organización cuenta con metas institucionales sobre diversidad de género en los diferentes equipos de trabajo?",null,null,null,"Seleccione",{"$f":"IF(G19=\"No\",0,IF(G19=\"Sí de alcance parcial dentro de la organización\",1,IF(G19=\"Sí de alcance integral en la organización\",2,IF(G19=\"Sí de alcance que se extiende dentro y fuera de la organización\",3,\"\"))))","v":""},{"$f":"IF(OR(G19=\"Seleccione\",G20=\"Seleccione\",G21=\"Seleccione\"),\"Por favor completa las preguntas de este apartado del Índice\",IF(H22<3,\"Es necesario incrementar la ambición en alguno de los ejes evaluados para que el proyecto esté alineado al Índice de Igualdad de Género de la Taxonomía Sostenible de México\",\"El proyecto cuenta con la ambición necesaria para cerrar las brechas de género conforme al Índice de Igualdad de Género de la Taxonomía Sostenible de México\"))","v":"Por favor completa las preguntas de este apartado del Índice"}]
[null,"1.2.2.2","¿La organización cuenta con un plan de acción para cerrar la brecha de participación laboral entre hombres y mujeres, entre los niveles jerárquicos, en el proceso de contratación y en las oportunidades de promoción?",null,null,null,"Seleccione",{"$f":"IF(G20=\"No\",0,IF(G20=\"Sí de alcance parcial dentro de la organización\",1,IF(G20=\"Sí de alcance integral en la organización\",2,\"\")))","v":""}]
[null,"1.2.2.3","¿El despliegue de los mecanismos de corrección para cerrar la brecha de participación se realiza conforme a la evaluación o medición continua de las brechas de género?",null,null,null,"Seleccione",{"$f":"IF(G21=\"No\",0,IF(G21=\"Sí de alcance parcial dentro de la organización\",1,IF(G21=\"Sí de alcance integral en la organización\",2,\"\")))","v":""}]
[null,null,null,null,null,null,null,{"$f":"SUM(H19:H21)","v":0}]
[]
["1.2.3","Igualdad de representatividad de mujeres y hombres en órganos de gobernanza corporativa","¿Existe una política de paridad entre mujeres y hombres (reglamentos, normas, documentos o protocolos internos) en el órgano de gobernanza corporativa (junta de gobierno) o en puestos de toma de decisión?",null,null,null,"Seleccione",{"$f":"IF(G24=\"No\",0,IF(G24=\"Sí de alcance parcial dentro de la organización\",1,IF(G24=\"Sí de alcance integral en la organización\",2,IF(G24=\"Sí de alcance que se extiende dentro y fuera de la organización\",3,\"\"))))","v":""},{"$f":"IF(OR(G24=\"Seleccione\",G25=\"Seleccione\",G26=\"Seleccione\"),\"Por favor completa las preguntas de este apartado del Índice\",IF(H27<2,\"Es necesario incrementar la ambición en alguno de los ejes evaluados para que el proyecto esté alineado al Índice de Igualdad de Género de la Taxonomía Sostenible de México\",\"El proyecto cuenta con la ambición necesaria para cerrar las brechas de género conforme al Índice de Igualdad de Género de la Taxonomía Sostenible de México\"))","v":"Por favor completa las preguntas de este apartado del Índice"}]
[null,"1.2.3.2","¿Existen mecanismos o acciones para promover la rotación hacia puestos directivos o de toma de decisión con perspectiva de género, o en su caso el proceso de designación no tienes sesgos de género?",null,null,null,"Seleccione",{"$f":"IF(G25=\"No\",0,IF(G25=\"Sí de alcance parcial dentro de la organización\",1,IF(G25=\"Sí de alcance integral en la organización\",2,\"\")))","v":""}]
[null,"1.2.3.3","¿La organización se somete a un análisis, interno o externo, de paridad de género institucional en sus puestos de alta dirección o gobierno corporativo, acorde a la política de transparencia que la rige?",null,null,null,"Seleccione",{"$f":"IF(G26=\"No\",0,IF(G26=\"Sí de alcance parcial dentro de la organización\",1,IF(G26=\"Sí de alcance integral en la organización\",2,IF(G26=\"Sí de alcance que se extiende dentro y fuera de la organización\",3,\"\"))))","v":""}]
[null,null,null,null,null,null,null,{"$f":"SUM(H24:H26)","v":0}]
[]
["1.2.4","Clima laboral y espacios de trabajo libres de violencia","¿La organización cuenta con políticas o áreas especializadas en diversidad e inclusión que promuevan relaciones igualitarias acompañadas de la implementación de prácticas de prevención contra la violencia de género (hostigamiento, acoso u otro)?",null,null,null,"Seleccione",{"$f":"IF(G29=\"No\",0,IF(G29=\"Sí de alcance parcial dentro de la organización\",1,IF(G29=\"Sí de alcance integral en la organización\",2,\"\")))","v":""},{"$f":"IF(OR(G29=\"Seleccione\",G30=\"Seleccione\",G31=\"Seleccione\"),\"Por favor completa las preguntas de este apartado del Índice\",IF(H32<2,\"Es necesario incrementar la ambición en alguno de los ejes evaluados para que el proyecto esté alineado al Índice de Igualdad de Género de la Taxonomía Sostenible de México\",\"El proyecto cuenta con la ambición necesaria para cerrar las brechas de género conforme al Índice de Igualdad de Género de la Taxonomía Sostenible de México\"))","v":"Por favor completa las preguntas de este apartado del Índice"}]
[null,"1.2.4.2","¿La organización cuenta con un grupo, comisión o Comité encargado de la vigilancia del desarrollo e implementación de prácticas contra la violencia y la discriminación de género en el centro de trabajo?",null,null,null,"Seleccione",{"$f":"IF(G30=\"No\",0,IF(G30=\"Sí de alcance parcial dentro de la organización\",1,IF(G30=\"Sí de alcance integral en la organización\",2,\"\")))","v":""}]
[null,"1.2.4.3","¿La organización cuenta con mecanismos de atención a actos de violencia detectados o de reparación de daños, cuyos resultados salvaguarden la integridad de las víctimas y eviten la revictimización?",null,null,null,"Seleccione",{"$f":"IF(G31=\"No\",0,IF(G31=\"Sí de alcance parcial dentro de la organización\",1,IF(G31=\"Sí de alcance integral en la organización\",2,\"\")))","v":""}]
[null,null,null,null,null,null,null,{"$f":"SUM(H29:H31)","v":0}]
[]
["1.2.5","Capacitaciones para la igualdad laboral","¿La organización cuenta con un plan de capacitación, sensibilización y difusión como parte de sus objetivos de la agenda de género?",null,null,null,"Seleccione",{"$f":"IF(G34=\"No\",0,IF(G34=\"Sí de alcance parcial dentro de la organización\",1,IF(G34=\"Sí de alcance integral en la organización\",2,IF(G34=\"Sí de alcance que se extiende dentro y fuera de la organización\",3,\"\"))))","v":""},{"$f":"IF(OR(G34=\"Seleccione\",G35=\"Seleccione\",G36=\"Seleccione\"),\"Por favor completa las preguntas de este apartado del Índice\",IF(H37<3,\"Es necesario incrementar la ambición en alguno de los ejes evaluados para que el proyecto esté alineado al Índice de Igualdad de Género de la Taxonomía Sostenible de México\",\"El proyecto cuenta con la ambición necesaria para cerrar las brechas de género conforme al Índice de Igualdad de Género de la Taxonomía Sostenible de México\"))","v":"Por favor completa las preguntas de este apartado del Índice"}]
[null,"1.2.5.2","¿La organización ofrece capacitación continua para el desarrollo de habilidades requeridas para la movilidad laboral, tales como mentoría o patrocinio; incluyendo el desarrollo de capacidades para los nuevos empleos verdes que promuevan la transición justa?",null,null,null,"Seleccione",{"$f":"IF(G35=\"No\",0,IF(G35=\"Sí de alcance parcial dentro de la organización\",1,IF(G35=\"Sí de alcance integral en la organización\",2,IF(G35=\"Sí de alcance que se extiende dentro y fuera de la organización\",3,\"\"))))","v":""}]
[null,"1.2.5.3","¿La organización cuenta con mecanismos de evaluación o mejora de su plan de implementación de capacitaciones, asesorías o mentorías, que sean extensivos a otros actores que interactúan con la organización o a la comunidad externa (más allá del personal de la organización)?",null,null,null,"Seleccione",{"$f":"IF(G36=\"No\",0,IF(G36=\"Sí de alcance parcial dentro de la organización\",1,IF(G36=\"Sí de alcance integral en la organización\",2,IF(G36=\"Sí de alcance que se extiende dentro y fuera de la organización\",3,\"\"))))","v":""}]
[null,null,null,null,null,null,null,{"$f":"SUM(H34:H36)","v":0}]
[]
["1.3.1","Esquemas de trabajo flexible y políticas de conciliación","¿Existen medidas de flexibilidad laboral, como horarios flexibles o escalonados, semanas de trabajo comprimidas, teletrabajo o licencias con y sin goce de sueldo?",null,null,null,"Seleccione",{"$f":"IF(G39=\"No\",0,IF(G39=\"Sí de alcance parcial dentro de la organización\",1,IF(G39=\"Sí de alcance integral en la organización\",2,\"\")))","v":""},{"$f":"IF(OR(G39=\"Seleccione\",G40=\"Seleccione\",G41=\"Seleccione\"),\"Por favor completa las preguntas de este apartado del Índice\",IF(H42<4,\"Es necesario incrementar la ambición en alguno de los ejes evaluados para que el proyecto esté alineado al Índice de Igualdad de Género de la Taxonomía Sostenible de México\",\"El proyecto cuenta con la ambición necesaria para cerrar las brechas de género conforme al Índice de Igualdad de Género de la Taxonomía Sostenible de México\"))","v":"Por favor completa las preguntas de este apartado del Índice"}]
[null,"1.3.1.2","¿Existe una duración definida de la jornada laboral que se acompañe con una política de desconexión, sin importar que el esquema sea presencial, híbrido o por teletrabajo?",null,null,null,"Seleccione",{"$f":"IF(G40=\"No\",0,IF(G40=\"Sí de alcance parcial dentro de la organización\",1,IF(G40=\"Sí de alcance integral en la organización\",2,\"\")))","v":""}]
[null,"1.3.1.3","¿La organización despliega y difunde mecanismos de corrección al interior y al exterior, en función de la información estadística analizada y desagregada por sexo, sobre el cumplimento de los horarios de trabajo conforme al derecho de las y los trabajadores a la desconexión?",null,null,null,"Seleccione",{"$f":"IF(G41=\"No\",0,IF(G41=\"Sí de alcance parcial dentro de la organización\",1,IF(G41=\"Sí de alcance integral en la organización\",2,IF(G41=\"Sí de alcance que se extiende dentro y fuera de la organización\",3,\"\"))))","v":""}]
[null,null,null,null,null,null,null,{"$f":"SUM(H39:H41)","v":0}]
[]
["1.3.2","Oferta complementaria de servicios de cuidados (ludoteca, casas de día, estancias infantiles adicionales, entre otros)","¿La organización tiene políticas que le permitan desarrollar una oferta complementaria de servicios de cuidado (guarderías propias, salas de lactancia, etc.), asequible para todo el personal de la organización, incluyendo licencias de maternidad y paternidad con duración superior a la Ley?",null,null,null,"Seleccione",{"$f":"IF(G44=\"No\",0,IF(G44=\"Sí de alcance parcial dentro de la organización\",1,IF(G44=\"Sí de alcance integral en la organización\",2,IF(G44=\"Sí de alcance que se extiende dentro y fuera de la organización\",3,\"\"))))","v":""},{"$f":"IF(OR(G44=\"Seleccione\",G45=\"Seleccione\",G46=\"Seleccione\"),\"Por favor completa las preguntas de este apartado del Índice\",IF(H47<3,\"Es necesario incrementar la ambición en alguno de los ejes evaluados para que el proyecto esté alineado al Índice de Igualdad de Género de la Taxonomía Sostenible de México\",\"El proyecto cuenta con la ambición necesaria para cerrar las brechas de género conforme al Índice de Igualdad de Género de la Taxonomía Sostenible de México\"))","v":"Por favor completa las preguntas de este apartado del Índice"}]
[null,"1.3.2.2","¿Se proporciona una oferta de servicios de cuidado adicional a los servicios de seguridad social (IMSS, ISSSTE y otros) o se ofrecen permisos con o sin goce de sueldo para la atención de responsabilidades de cuidado?",null,null,null,"Seleccione",{"$f":"IF(G45=\"No\",0,IF(G45=\"Sí de alcance parcial dentro de la organización\",1,IF(G45=\"Sí de alcance integral en la organización\",2,IF(G45=\"Sí de alcance que se extiende dentro y fuera de la organización\",3,\"\"))))","v":""}]
[null,"1.3.2.3","¿La organización realiza y difunde evaluaciones de las necesidades de cuidado de su personal y sus dependientes, al interior y al exterior?",null,null,null,"Seleccione",{"$f":"IF(G46=\"No\",0,IF(G46=\"Sí de alcance parcial dentro de la organización\",1,IF(G46=\"Sí de alcance integral en la organización\",2,IF(G46=\"Sí de alcance que se extiende dentro y fuera de la organización\",3,\"\"))))","v":""}]
[null,null,null,null,null,null,null,{"$f":"SUM(H44:H46)","v":0}]
[]
["2.1.1","Desarrollo y provisión de infraestructura, bienes y servicios con impacto social positivo y perspectiva de género","¿La organización tiene como política realizar diagnósticos con perspectiva de género para el diseño y operación del proyecto, actividad, desarrollo de infraestructura o la provisión de bienes y servicios?",null,null,null,"Seleccione",{"$f":"IF(G49=\"No\",0,IF(G49=\"Sí de alcance parcial dentro de la organización\",2,IF(G49=\"Sí de alcance integral en la organización\",4,IF(G49=\"Sí de alcance que se extiende dentro y fuera de la organización\",6,\"\"))))","v":""},{"$f":"IF(OR(G49=\"Seleccione\",G50=\"Seleccione\",G51=\"Seleccione\"),\"Por favor completa las preguntas de este apartado del Índice\",IF(H52<8,\"Es necesario incrementar la ambición en alguno de los ejes evaluados para que el proyecto esté alineado al Índice de Igualdad de Género de la Taxonomía Sostenible de México\",\"El proyecto cuenta con la ambición necesaria para cerrar las brechas de género conforme al Índice de Igualdad de Género de la Taxonomía Sostenible de México\"))","v":"Por favor completa las preguntas de este apartado del Índice"}]
[null,"2.1.1.2","¿El proyecto de infraestructura, actividad, bien o servicio, considera ajustes razonables para atender las necesidades de las mujeres o contribuye a la reducción o eliminación de una situación de exclusión, desigualdad o violencia de género, y privilegia su acceso a precios asequibles por razón de género?",null,null,null,"Seleccione",{"$f":"IF(G50=\"No\",0,IF(G50=\"Sí de alcance parcial dentro de la organización\",2,IF(G50=\"Sí de alcance integral en la organización\",4,IF(G50=\"Sí de alcance que se extiende dentro y fuera de la organización\",6,\"\"))))","v":""}]
[null,"2.1.1.3","¿Se cuenta con un plan de actividades de igualdad entre mujeres y hombres, que incluya presupuesto e indicadores de cumplimiento sobre el impacto en la vida de las mujeres, y en su caso, en el medio ambiente en el uso de la infraestructura, productos o servicios a desarrollar?",null,null,null,"Seleccione",{"$f":"IF(G51=\"No\",0,IF(G51=\"Sí de alcance parcial dentro de la organización\",2,IF(G51=\"Sí de alcance integral en la organización\",4,IF(G51=\"Sí de alcance que se extiende dentro y fuera de la organización\",6,\"\"))))","v":""}]
[null,null,null,null,null,null,null,{"$f":"SUM(H49:H51)","v":0}]
[]
["2.2.1","No afectación a la salud de las mujeres","¿La organización tiene como procedimientos la elaboración de diagnósticos con perspectiva de género sobre los impactos potenciales en salud del proyecto de infraestructura, actividad, bien o servicio, para la promoción de la salud en las mujeres o asegurar la no afectación a esta?",null,null,null,"Seleccione",{"$f":"IF(G54=\"No\",0,IF(G54=\"Sí de alcance parcial dentro de la organización\",2,IF(G54=\"Sí de alcance integral en la organización\",4,IF(G54=\"Sí de alcance que se extiende dentro y fuera de la organización\",6,\"\"))))","v":""},{"$f":"IF(OR(G54=\"Seleccione\",G55=\"Seleccione\",G56=\"Seleccione\"),\"Por favor completa las preguntas de este apartado del Índice\",IF(H57<8,\"Es necesario incrementar la ambición en alguno de los ejes evaluados para que el proyecto esté alineado al Índice de Igualdad de Género de la Taxonomía Sostenible de México\",\"El proyecto cuenta con la ambición necesaria para cerrar las brechas de género conforme al Índice de Igualdad de Género de la Taxonomía Sostenible de México\"))","v":"Por favor completa las preguntas de este apartado del Índice"}]
[null,"2.2.1.2","¿El proyecto, actividad, bien o servicio, considera ajustes razonables para atender las necesidades diferenciadas de salud en hombres y mujeres y privilegia el acceso desde una perspectiva de género a precios asequibles?",null,null,null,"Seleccione",{"$f":"IF(G55=\"No\",0,IF(G55=\"Sí de alcance parcial dentro de la organización\",2,IF(G55=\"Sí de alcance integral en la organización\",4,IF(G55=\"Sí de alcance que se extiende dentro y fuera de la organización\",6,\"\"))))","v":""}]
[null,"2.2.1.3","¿Se realizan estudios de los efectos en la salud de la actividad, productos o servicios desagregados sexo, y se cuenta con un plan de actividades para la corrección o mejora que incluya presupuesto e indicadores de cumplimiento?",null,null,null,"Seleccione",{"$f":"IF(G56=\"No\",0,IF(G56=\"Sí de alcance parcial dentro de la organización\",2,IF(G56=\"Sí de alcance integral en la organización\",4,IF(G56=\"Sí de alcance que se extiende dentro y fuera de la organización\",6,\"\"))))","v":""}]
[null,null,null,null,null,null,null,{"$f":"SUM(H54:H56)","v":0}]
[]
["2.3.1","Promoción de autonomía de las mujeres y financiamiento flexible con perspectiva de género","¿La organización tiene como política visibilizar las necesidades diferenciadas entre mujeres y hombres en las estrategias de comercialización de los productos o servicios ofrecidos?",null,null,null,"Seleccione",{"$f":"IF(G59=\"No\",0,IF(G59=\"Sí de alcance parcial dentro de la organización\",2,IF(G59=\"Sí de alcance integral en la organización\",4,IF(G59=\"Sí de alcance que se extiende dentro y fuera de la organización\",6,\"\"))))","v":""},{"$f":"IF(OR(G59=\"Seleccione\",G60=\"Seleccione\",G61=\"Seleccione\"),\"Por favor completa las preguntas de este apartado del Índice\",IF(H62<8,\"Es necesario incrementar la ambición en alguno de los ejes evaluados para que el proyecto esté alineado al Índice de Igualdad de Género de la Taxonomía Sostenible de México\",\"El proyecto cuenta con la ambición necesaria para cerrar las brechas de género conforme al Índice de Igualdad de Género de la Taxonomía Sostenible de México\"))","v":"Por favor completa las preguntas de este apartado del Índice"}]
[null,"2.3.1.2","¿La organización garantiza la accesibilidad de los productos o servicios para las mujeres, ofreciendo opciones diferenciadas de financiación?",null,null,null,"Seleccione",{"$f":"IF(G60=\"No\",0,IF(G60=\"Sí de alcance parcial dentro de la organización\",2,IF(G60=\"Sí de alcance integral en la organización\",4,IF(G60=\"Sí de alcance que se extiende dentro y fuera de la organización\",6,\"\"))))","v":""}]
[null,"2.3.1.3","¿Se realiza una evaluación de efectos diferenciados de los productos y servicios ofrecidos desagregada sexo que visibilicen que son utilizados por mujeres y/o benefician más que proporcionalmente a las mujeres?",null,null,null,"Seleccione",{"$f":"IF(G61=\"No\",0,IF(G61=\"Sí de alcance parcial dentro de la organización\",2,IF(G61=\"Sí de alcance integral en la organización\",4,IF(G61=\"Sí de alcance que se extiende dentro y fuera de la organización\",6,\"\"))))","v":""}]
[null,null,null,null,null,null,null,{"$f":"SUM(H59:H61)","v":0}]
[]
["3.1.1","Promoción de cultura de paz y no violencia","¿La organización o proyecto considera dentro de sus objetivos la reducción o erradicación de la violencia contra las mujeres o el desarrollo de espacios de paz y no violencia; o bien, cuenta con un protocolo o procedimiento para la resolución de conflictos con la comunidad, que considere una perspectiva de género y de derechos humanos?",null,null,null,"Seleccione",{"$f":"IF(G64=\"No se cuenta con un protocolo o procedimiento o no se comunica\",0,IF(G64=\"Comunicación del objetivo protocolo parcial dentro de la organización\",2,IF(G64=\"Sí de alcance integral en la organización\",2,IF(G64=\"Protocolo de conocimiento de toda la organización\",4,IF(G64=\"Toda la información relacionada es pública\",6,\"\")))))","v":""},{"$f":"IF(OR(G64=\"Seleccione\",G65=\"Seleccione\",G66=\"Seleccione\"),\"Por favor completa las preguntas de este apartado del Índice\",IF(H67<8,\"Es necesario incrementar la ambición en alguno de los ejes evaluados para que el proyecto esté alineado al Índice de Igualdad de Género de la Taxonomía Sostenible de México\",\"El proyecto cuenta con la ambición necesaria para cerrar las brechas de género conforme al Índice de Igualdad de Género de la Taxonomía Sostenible de México\"))","v":"Por favor completa las preguntas de este apartado del Índice"}]
[null,"3.1.1.2","¿Se han desarrollado acciones para la prevención, atención, sanción y erradicación de la violencia contra niñas, niños, adolescentes y mujeres en la comunidad o espacios públicos?",null,null,null,"Seleccione",{"$f":"IF(G65=\"No se han desarrollado acciones\",0,IF(G65=\"Las acciones abordan solo alguno(s) de los aspectos enunciados (prevención atención sanción y erradicación de la violencia)\",4,IF(G65=\"Las acciones consideran la prevención atención sanción y erradicación de la violencia\",6,\"\")))","v":""}]
[null,"3.1.1.3","¿La organización o proyecto cuenta con evidencia de su contribución a la reducción de la violencia contra niñas, niños, adolescentes y mujeres; o bien, ha documentado y difundido casos de éxito sobre la resolución de conflictos con la comunidad o sobre el desarrollo de espacios de paz y no violencia de forma participativa?",null,null,null,"Seleccione",{"$f":"IF(G66=\"No existe evidencia o no se comunica\",0,IF(G66=\"La comunicación de la evidencia es parcial dentro de la organización\",2,IF(G66=\"La evidencia es de conocimiento de toda la organización\",4,IF(G66=\"La información es pública\",6,\"\"))))","v":""}]
[null,null,null,null,null,null,null,{"$f":"SUM(H64:H66)","v":0}]
[]
["3.2.1","Vinculación con empresas locales propiedad o con participación de mujeres","¿Existen políticas, procesos o mecanismos de adquisición de productos y servicios que incentiven la contratación de empresas locales propiedad o con alta participación de mujeres?",null,null,null,"Seleccione",{"$f":"IF(G69=\"No existen políticas o procesos o mecanismos o no se comunican\",0,IF(G69=\"La comunicación es parcial dentro de la organización\",2,IF(G69=\"Sí y es de conocimiento de toda la organización\",4,IF(G69=\"La información es pública\",6,\"\"))))","v":""},{"$f":"IF(OR(G69=\"Seleccione\",G70=\"Seleccione\",G71=\"Seleccione\"),\"Por favor completa las preguntas de este apartado del Índice\",IF(H72<8,\"Es necesario incrementar la ambición en alguno de los ejes evaluados para que el proyecto esté alineado al Índice de Igualdad de Género de la Taxonomía Sostenible de México\",\"El proyecto cuenta con la ambición necesaria para cerrar las brechas de género conforme al Índice de Igualdad de Género de la Taxonomía Sostenible de México\"))","v":"Por favor completa las preguntas de este apartado del Índice"}]
[null,"3.2.1.2","¿Se presenta evidencia de alianzas comerciales y de contratos recurrentes o multianuales con empresas locales con propiedad o participación importante de mujeres?",null,null,null,"Seleccione",{"$f":"IF(G70=\"No se han desarrollado alianzas comerciales o contratos\",0,IF(G70=\"Se presenta evidencia de esfuerzos para establecer alianzas comerciales pero que aún no se formalizan\",4,IF(G70=\"Se presenta evidencia completa de una relación comercial recurrente\",6,\"\")))","v":""}]
[null,"3.2.1.3","¿Existe evidencia de que se contribuye al fortalecimiento del liderazgo de empresas locales encabezadas por mujeres o al desarrollo de la estrategia de sostenibilidad de empresas locales (por ejemplo, en el acceso a financiamiento, en la adopción de tecnología sostenible, etc.) propiedad o con participación de mujeres, más allá de la compra de bienes y servicios?",null,null,null,"Seleccione",{"$f":"IF(G71=\"No existe evidencia o no se comunica\",0,IF(G71=\"La comunicación de la evidencia es parcial dentro de la organización\",2,IF(G71=\"La evidencia es de conocimiento de toda la organización\",4,IF(G71=\"La información es pública\",6,\"\"))))","v":""}]
[null,null,null,null,null,null,null,{"$f":"SUM(H69:H71)","v":0}]
[]
["3.3.1","Involucramiento de organizaciones y redes comunitarias que representen los intereses de las mujeres","¿Existe una política para fomentar la participación de las comunidades, bajo el marco del consentimiento libre, previo e informado, para la realización del proyecto o actividad económica, o bien en la planeación y gestión participativa de este, que contribuya a la preservación del territorio; al bienestar de ellas y su comunidad; al cuidado del medio ambiente o a una transición justa?",null,null,null,"Seleccione",{"$f":"IF(G74=\"No existen políticas o procesos o mecanismos o no se comunican\",0,IF(G74=\"La comunicación es parcial dentro de la organización\",2,IF(G74=\"Sí y es de conocimiento de toda la organización\",4,IF(G74=\"La información es pública\",6,\"\"))))","v":""},{"$f":"IF(OR(G74=\"Seleccione\",G75=\"Seleccione\",G76=\"Seleccione\"),\"Por favor completa las preguntas de este apartado del Índice\",IF(H77<8,\"Es necesario incrementar la ambición en alguno de los ejes evaluados para que el proyecto esté alineado al Índice de Igualdad de Género de la Taxonomía Sostenible de México\",\"El proyecto cuenta con la ambición necesaria para cerrar las brechas de género conforme al Índice de Igualdad de Género de la Taxonomía Sostenible de México\"))","v":"Por favor completa las preguntas de este apartado del Índice"}]
[null,"3.3.1.2","¿Las acciones de involucramiento y consulta consideraron una perspectiva de género en su implementación para asegurar una participación en igualdad de condiciones de las mujeres (horarios adecuados, dinámicas para promover la participación, facilidades para el cuidado de infantes, un lugar de fácil acceso para ellas) y cuentan con un mecanismo de monitoreo que dé seguimiento a la incorporación de las opiniones de las mujeres?",null,null,null,"Seleccione",{"$f":"IF(G75=\"No se han desarrollado acciones\",0,IF(G75=\"Las acciones abordan parcialmente los aspectos requeridos por la pregunta\",4,IF(G75=\"Las acciones consideran una perspectiva de género e incluyen un mecanismo de monitoreo\",6,\"\")))","v":""}]
[null,"3.3.1.3","¿Existe evidencia de que la actividad económica o proyecto contribuye a la formación o fortalecimiento de alianzas entre mujeres y de organizaciones que trabajen por sus derechos, la igualdad de género, la conservación del territorio o del medio ambiente, y una transición justa?",null,null,null,"Seleccione",{"$f":"IF(G76=\"No existe evidencia o no se comunica\",0,IF(G76=\"La comunicación de la evidencia es parcial dentro de la organización\",2,IF(G76=\"La evidencia es de conocimiento de toda la organización\",4,IF(G76=\"La información es pública\",6,\"\"))))","v":""}]
[null,null,null,null,null,null,null,{"$f":"SUM(H74:H76)","v":0}]
[null,null,"Resumen:","Puntaje obtenido en cada pilar","Alineación"]
[null,null,"Resultados pilar 1: Trabajo digo",{"$f":"SUM(H11,H17,H22,H27,H32,H37,H42,H47)","v":0},{"$f":"IF(D79<24,\"Es necesario incrementar la ambición en el pilar 1 de trabajo digno\",\"El proyecto contribuye al cierre de brechas de género, conforme a la Taxonomía Sostenible de México\")","v":"Es necesario incrementar la ambición en el pilar 1 de trabajo digno"}]
[null,null,"Resultados pilar 2: Bienestar",{"$f":"SUM(H52,H57,H62)","v":0},{"$f":"IF(D80<24,\"Es necesario incrementar la ambición en el pilar 2 de bienestar\",\"El proyecto contribuye al cierre de brechas de género, conforme a la Taxonomía Sostenible de México\")","v":"Es necesario incrementar la ambición en el pilar 2 de bienestar"}]
[null,null,"Resultados pilar 3: Inclusión social",{"$f":"SUM(H77,H72,H67)","v":0},{"$f":"IF(D81<24,\"Es necesario incrementar la ambición en el pilar 3 de inclusión social\",\"El proyecto contribuye al cierre de brechas de género, conforme a la Taxonomía Sostenible de México\")","v":"Es necesario incrementar la ambición en el pilar 3 de inclusión social"}]
[null,null,"Total",{"$f":"SUM(D79:D81)","v":0},{"$f":"IF((COUNTIF(G8:G76,\"Seleccione\"))>1,\"Por definir\",IF(AND(E79=\"El proyecto contribuye al cierre de brechas de género, conforme a la Taxonomía Sostenible de México\",E80=\"El proyecto contribuye al cierre de brechas de género, conforme a la Taxonomía Sostenible de México\",E81=\"El proyecto contribuye al cierre de brechas de género, conforme a la Taxonomía Sostenible de México\",D82>=72),\"Sí cumple con el índice de igualdad de género\",\"No cumple con el índice de igualdad de género\"))","v":"Por definir"}]

{"sheet":"Agua-NDS","index":27,"n_rows":44,"n_cols":8,"rows_kept":44,"cut":false,"hidden":true,"merged":[[34,7,35,7],[38,7,40,7],[43,0,43,5],[11,0,11,5],[12,0,12,5],[39,0,39,5],[40,0,40,5],[33,0,33,5],[34,0,34,5],[35,0,35,5],[38,0,38,5],[17,0,17,5],[18,0,18,5],[19,0,19,5],[20,0,20,5],[15,7,18,7],[32,0,32,5],[21,0,21,5],[24,0,24,5],[25,0,25,5],[26,0,26,5],[27,0,27,5],[30,0,30,5],[30,7,31,7],[3,0,3,6],[5,0,5,6],[1,0,1,6],[31,0,31,5],[8,0,8,5],[9,0,9,5],[10,0,10,5],[15,0,15,5],[16,0,16,5]]}
[]
["Evaluación de No Daño Significativo de actividades de distribución y comercialización de Agua"]
[]
["El principio de No Daño Significativo (NDS) se compone de una serie de criterios medioambientales que permiten asegurar que una actividad económica, con contribución sustancial, no tenga efectos negativos en ninguno de los otros objetivos de la Taxonomía, distintos al parámetro principal. De esta manera, se asegura que el progreso en algunos objetivos no se haga a expensas de otros objetivos medioambientales. Los criterios de NDS se enfocan en 5 ejes principales: Agua, Adaptación, Biodiversidad, Prevención y Control de la Contaminación y, Economía Circular. Para contar con más detalle, por favor consulta el documento de la Taxonomía Sostenible de México"]
[]
["Asegúrate de responder todas las preguntas. En este apartado aparecerán solo los criterios de No Daño Significativo relacionados a las actividades que se establecieron anteriormente. Al final, se evaluará el porcentaje de criterios de No Daño Significativo que se cumplan. Por favor responde si la actividad cumple con los siguientes criterios."]
[]
["Agua"]
["¿La operación financiera y/o proyecto cumple con la Ley de Aguas Nacionales especificmanete con el TITULO “Política Hídrica Nacional”, Art. 14 BIS 5?",null,null,null,null,null,"Seleccione","Incluir en la MIA. Demostrar vinculación del proyecto con lo dispuesto en Leyes y políticas de la matería, “Política Hídrica Nacional”, Art. 14 BIS 5."]
["¿La operación financiera y/o proyecto cumple con el Programa Nacional Hídrico 2020-2024, así como con las estrategias y planes de gestión hídrica estatales y municipales, y atender las recomendaciones de los Consejos de Cuenca por cuenca hidrológica o por región hidrológica?",null,null,null,null,null,"Seleccione","Incluir en la MIA. Detallar la vinculación del proyecto con lo dispuesto en el Programa Nacional Hídrico."]
["¿La operación financiera y/o proyecto cumple con la legislación mexicana en materia de agua aplicable?",null,null,null,null,null,"Seleccione","Presentar: Concesión aguas nacionales superficiales.\nConcesión aguas nacionales subterráneas.\nConcesión para la ocupación de terrenos federales.\nModificación de título o permiso.\nTransmisión de títulos y su registro.\nPrórroga de concesión y/o permisos de descarga.\nPermiso para realizar obras de infraestructura hidráulica."]
["¿La operación financiera y/o proyecto se monitorea la temperatura de las aguas que se descarguen, como criterio de calidad del agua para la protección de la vida acuática y para las fuentes de abastecimiento de agua potable?",null,null,null,null,null,"Seleccione","Incluir en la MIA. Detallar en la descripción del Sistema Ambiental Regional (SAR) y señalamiento de tendencia del desarrollo y deterioro de la región"]
["¿En el caso de descarga de aguas residuales en drenaje o alcantarillado municipal, la operación financiera y/o proyecto cuenta con los permisos y autorizaciones requeridas por la ley?",null,null,null,null,null,"Seleccione","Incluir en la MIA. Demostrar el cumplimiento de los Criterios y Lineamientos para otorgar Permisos de Descarga de Aguas Residuales."]
[]
["Adaptación"]
["¿En el contexto de la operación financiera y/o proyecto se establecen medidas de adaptación basada en comunidades humanas?",null,null,null,null,null,"Seleccione","Presentar ficha de recopilación sistematizada para IACC. ENCC, Visión 10-20-40 y la Metodología para la Priorización de Medidas de Adaptación frente al Cambio Climático (SEMARNAT-GIZ, 2015)."]
["¿En el contexto de la operación financiera y/o proyecto se establecen medidas de Adaptación basada en ecosistemas?",null,null,null,null,null,"Seleccione"]
["¿En el contexto de la operación financiera y/o proyecto se establecen medidas de Adaptación basada en ecosistemas?",null,null,null,null,null,"Seleccione"]
["¿En el contexto de la operación financiera y/o proyecto se establecen adaptación basada en la Reducción del Riesgo de Desastres?",null,null,null,null,null,"Seleccione"]
["¿En el contexto de la operación financiera y/o proyecto se desarrollan criterios de gestión de riesgos y de adaptación al cambio climático en el diseño, construcción, reconstrucción, rehabilitación y mantenimiento de la infraestructura asociada?",null,null,null,null,null,"Seleccione","Incluir en la MIA los elementos señalados."]
["¿En el contexto de la operación financiera y/o proyecto se demuestra que se evaluó la dimensión de las alteraciones e impactos que podrían afectar en los en municipios vulnerables al cambio climático en el Atlas Nacional de Vulnerabilidad y el Atlas Nacional de Riesgos?",null,null,null,null,null,"Seleccione","Incluir en la MIA. Detallar la evaluación de la dimensión de las alteraciones e impactos dentro de los datos del proyecto."]
["¿En la operación financiera y/o proyectoo se ha descrito la escala del proyecto, en específico ubicación en zonas de riesgo como paredes de cañones, lechos, cauces y arroyos zonas de fallas geológicas, de deslizamiento, de inundación, así como en zonas de litorales expuestas a oleaje de tormenta y procesos de erosión, en desembocaduras y ríos áreas identificadas como altamente vulnerables al cambio climático, incluyendo las zonas urbanas y periurbanas aledañas?",null,null,null,null,null,"Seleccione","Incluir en la MIA los elementos señalados."]
[]
["Biodiversidad "]
["La delimitación del proyecto debe de ser congruente con la magnitud de los impactos ambientales, cumpliendo instrumentos de planeación existentes; PDU, POET, cuencas hidrólógicas y otros ¿Esto se cumple en el contexto de la operación financiera y/o proyecto?",null,null,null,null,null,"Seleccione","Incluir en la MIA. Detallar la vinculación del proyecto con lo dispuesto en Programas de Desarrollo Urbano, Programa de Ordenamiento Ecológico General del Territorio: planes de ordenamiento territorial, regulaciones de uso de suelo, permisos y licencias ambientales. "]
["En caso de aplicar, ¿La operación financiera y/o proyecto cuenta con una autorización de cambio de uso de suelo de áreas forestales, así como de selvas o de zonas áridas, de conformidad con el artículo 68 de la Ley General de Desarrollo Forestal Sustentable?",null,null,null,null,null,"Seleccione","Incluir en la MIA la autorización de cambio de uso de suelo de áreas forestales, así como de selvas o de zonas áridas, de conformidad con el artículo 68 de la Ley General de Desarrollo Forestal Sustentable"]
["¿A nivel de sitio y locación específica la operación financiera y/o proyecto considera la Estrategia Nacional sobre Biodiversidad de México (ENBioMex), Plan de Acción 2016-2030 y la Estrategia Nacional para la Conservación y Aprovechamiento Sustentable de Polinizadores, así como las Estrategias Estatales de Biodiversidad correspondientes?",null,null,null,null,null,"Seleccione","Incluir en la MIA la vinculación del proyecto con lo dispuesto en Estrategia Nacional sobre Biodiversidad de México (ENBioMex), Plan de Acción 2016-2030 y la Estrategia Nacional para la Conservación y Aprovechamiento Sustentable de Polinizadores, así como las Estrategias Estatales de Biodiversidad correspondientes."]
["¿La operación financiera y/o proyecto cuenta con una manifestación de impacto ambiental (MIA) o informe ambiental preventivo, autorizados por la autoridad competente (federal), con vigencia y e informes de cumplimiento de condicionantes ambientales?",null,null,null,null,null,"Seleccione","Presentar MIA aprobada por las autoridades ambientales."]
[]
["Prevención y control de la contaminación"]
["¿La operación financiera y/o proyecto monitorea y cumple con los límites máximos permisibles de emisiones contaminantes establecidos en las normas oficiales mexicanas (NOM) y en normas mexicanas en materia de aire, agua, suelo y olores y ruido y vibraciones.",null,null,null,null,null,"Seleccione","Presentar el certificado de cumplimiento de las NOM correspondientes."]
["¿Los vehículos utilizados en la recolección cumplen con los límites permisibles de contaminantes a la atmósfera?",null,null,null,null,null,"Seleccione"]
["Las prácticas de limpieza de los vehículos, equipos y herramientas de recolección deben utilizar preferentemente agua tratada, y realizarse en sitios destinados específicamente para esa tarea, cuidando que las aguas residuales se encaucen al drenaje y alcantarillado. Si las aguas residuales se descargan en cuerpos de aguas nacionales, contar con los permisos y autorizaciones de ley ¿Esto se cumple en el contexto de la operación financiera y/o proyecto?",null,null,null,null,null,"Seleccione","Incluir en la MIA. Asegurar el cumplimiento de los Criterios y Lineamientos para otorgar Permisos de Descarga de Aguas Residuales."]
["¿La operación financiera y/o proyecto cuenta con un inventario que incluya clasificación y cuantificación detallada de RSU y RME; evitar la incineración y quema de RSU a cielo abierto, para no generar carbono negro que produce calentamiento de la atmósfera, daños a ecosistemas y afectaciones a la salud humana?",null,null,null,null,null,"Seleccione","Incluir en la MIA. Detallar la inclusión de los elementos señalados respecto a RSU y RME. ."]
["Como parte de la MIA autorizada, evaluar el impacto en el paisaje, incluyendo visibilidad, calidad paisajística y fragilidad visual ¿Esto se cumple en el contexto de la operación financiera y/o proyecto?",null,null,null,null,null,"Seleccione","Incluir en la MIA. Detallar el cumplimiento de las condicionantas establecidas en las autorizaciones en materia de impacto ambiental federales y estatales, así como con mejores prácticas internacionales respecto a paisaje, energía términa y lumínica"]
["¿La operación financiera y/o proyecto cumple con las condicionantes establecidas en las autorizaciones en materia de impacto ambiental federales y estatales, así como con mejores prácticas internacionales respecto a paisaje, energía términa y lumínica?",null,null,null,null,null,"Seleccione"]
[]
["Economía Circular "]
["¿En el contexto de la operación financiera y/o proyecto se identifica el tipo de residuos generados durante las diferentes fases del proyecto, estimando el volumen que pudiera generarse?",null,null,null,null,null,"Seleccione","Incluir en la MIA. Detallar los elementos señalados dentro de la descripción de las obras o actividades."]
["¿En el contexto de la operación financiera y/o proyecto se identifica y reportar la disponibilidad de servicios de infraestructura para el manejo y disposición final de los residuos, en la localidad y/o región, tales como: rellenos sanitarios, plantas de tratamiento de aguas residuales municipales, servicios de separación, manejo, tratamiento, reciclamiento o confinamiento de residuos, entre otros. En caso de hacer uso de ellos indicar si estos servicios son suficientes para cubrir las demandas presentes y futuras del proyecto y de otros proyectos presentes en la zona?",null,null,null,null,null,"Seleccione"]
["Con base a la estimación de vida útil del proyecto, se presentará un programa para el desmantelamiento y abandono, que incluya los procedimientos, manejo y destino de materiales y equipos y los programas de rehabilitación o restauración de los sitios ¿Esto se contempla dentro del proyecto?",null,null,null,null,null,"Seleccione"]
[]
["Mitigación"]
["Aquellas actividades que estén por debajo del umbral de emisiones de GEI ≤ a 100 gCO2 e/ kWh, no causan daño significativo en materia de mitigación del cambio climático. Aquellas actividades por encima del umbral de GEI deberán asegurar que, como resultado de la actividad de adaptación al cambio climático, no se incremente la intensidad de emisiones de la actividad económica. ¿Esto se cumple en el contexto de la operación financiera y/o proyecto?",null,null,null,null,null,"Seleccione","Incluir en la MIA los elementos señalados."]

{"sheet":"Construcción","index":28,"n_rows":50,"n_cols":6,"rows_kept":50,"cut":false,"hidden":true,"merged":[[3,0,3,7],[47,5,47,7],[49,0,49,6],[49,7,49,8],[1,0,1,7]]}
[]
["Actividades del sector de la construcción"]
[]
["Dentro de la categoría de construcción de la Taxonomía Sostenible de México se consideran 10 actividades. En este apartado es necesario seleccionar, de esas 10 actividades, las que estarán siendo financiadas en las presentes operaciones financieras y/o proyectos. En esta versión del Excel, es posible evaluar hasta 20 actividades que se establecen en las cajas de abajo. Recuerda establecer los montos en la casilla amarilla (con número MXN) y elegir las actividades en la lista desplegable azul. Si es necesario incluir más de una actividad, da click en el botón de \"Añade una nueva actividad\".  En caso de que la actividad que deseas evaluar no se encuentre en la lista, significa que no está considerada en este momento por la Taxonomía Sostenible de México. En este caso, puedes  mandar un correo a taxonomia_sost@hacienda.gob.mx para conocer más al respecto. "]
["Objetivos que deberás considerar:",{"$f":"IF('Base-datos'!$C$705=TRUE,\"Mitigación\",\"\")","v":""},{"$f":"IF('Base-datos'!$C$706=TRUE,\"Adaptación\",\"\")","v":""},{"$f":"IF('Base-datos'!$C$707=TRUE,\"Género\",\"\")","v":""}]
[]
[]
["Definición de actividades"]
[null,"Cantidad de recursos ↓","Actividad en la que se colocarán los recursos ↓","Alineación a un objetivo","Tipo de recurso evaluado ↓","Da click para añadir más actividades ↓"]
["Establece por favor en la casilla amarilla la cantidad de recursos que serán destinados a la actividad que selecciones en la casilla azul ",null,"Seleccione","Seleccione","Seleccione"]
[]
["Establece por favor en la casilla amarilla la cantidad de recursos que serán destinados a la actividad que selecciones en la casilla azul ",null,"Seleccione","Seleccione","Seleccione"]
[]
["Establece por favor en la casilla amarilla la cantidad de recursos que serán destinados a la actividad que selecciones en la casilla azul ",null,"Seleccione","Seleccione","Seleccione"]
[]
["Establece por favor en la casilla amarilla la cantidad de recursos que serán destinados a la actividad que selecciones en la casilla azul ",null,"Seleccione","Seleccione","Seleccione"]
[]
["Establece por favor en la casilla amarilla la cantidad de recursos que serán destinados a la actividad que selecciones en la casilla azul ",null,"Seleccione","Seleccione","Seleccione"]
[]
["Establece por favor en la casilla amarilla la cantidad de recursos que serán destinados a la actividad que selecciones en la casilla azul ",null,"Seleccione","Seleccione","Seleccione"]
[]
["Establece por favor en la casilla amarilla la cantidad de recursos que serán destinados a la actividad que selecciones en la casilla azul ",null,"Seleccione","Seleccione","Seleccione"]
[]
["Establece por favor en la casilla amarilla la cantidad de recursos que serán destinados a la actividad que selecciones en la casilla azul ",null,"Seleccione","Seleccione","Seleccione"]
[]
["Establece por favor en la casilla amarilla la cantidad de recursos que serán destinados a la actividad que selecciones en la casilla azul ",null,"Seleccione","Seleccione","Seleccione"]
[]
["Establece por favor en la casilla amarilla la cantidad de recursos que serán destinados a la actividad que selecciones en la casilla azul ",null,"Seleccione","Seleccione","Seleccione"]
[]
["Establece por favor en la casilla amarilla la cantidad de recursos que serán destinados a la actividad que selecciones en la casilla azul ",null,"Seleccione","Seleccione","Seleccione"]
[]
["Establece por favor en la casilla amarilla la cantidad de recursos que serán destinados a la actividad que selecciones en la casilla azul ",null,"Seleccione","Seleccione","Seleccione"]
[]
["Establece por favor en la casilla amarilla la cantidad de recursos que serán destinados a la actividad que selecciones en la casilla azul ",null,"Seleccione","Seleccione","Seleccione"]
[]
["Establece por favor en la casilla amarilla la cantidad de recursos que serán destinados a la actividad que selecciones en la casilla azul ",null,"Seleccione","Seleccione","Seleccione"]
[]
["Establece por favor en la casilla amarilla la cantidad de recursos que serán destinados a la actividad que selecciones en la casilla azul ",null,"Seleccione","Seleccione","Seleccione"]
[]
["Establece por favor en la casilla amarilla la cantidad de recursos que serán destinados a la actividad que selecciones en la casilla azul ",null,"Seleccione","Seleccione","Seleccione"]
[]
["Establece por favor en la casilla amarilla la cantidad de recursos que serán destinados a la actividad que selecciones en la casilla azul ",null,"Seleccione","Seleccione","Seleccione"]
[]
["Establece por favor en la casilla amarilla la cantidad de recursos que serán destinados a la actividad que selecciones en la casilla azul ",null,"Seleccione","Seleccione","Seleccione"]
[]
["Establece por favor en la casilla amarilla la cantidad de recursos que serán destinados a la actividad que selecciones en la casilla azul ",null,"Seleccione","Seleccione","Seleccione"]
[]
["Establece por favor en la casilla amarilla la cantidad de recursos que serán destinados a la actividad que selecciones en la casilla azul ",null,"Seleccione","Seleccione","Seleccione","Por el momento, solo es posible evaluar 20 actividades. Si tu proyecto involucra más actividades, por favor escribe un corrreo a taxonomia_sost@hacienda.gob.mx"]
[]
["Al haber concluido el llenado de las actividades y los tipos de recursos que estarás evaluando, por favor da click en el siguiente botón para evaluar la contribución sustancial de las actividades"]

{"sheet":"Mitigación-Construcción","index":29,"n_rows":156,"n_cols":11,"rows_kept":156,"cut":false,"hidden":true,"merged":[[150,4,154,4],[153,0,153,2],[154,0,154,2],[155,0,155,3],[145,0,145,2],[146,0,146,3],[150,0,150,2],[151,0,151,2],[152,0,152,2],[149,0,149,3],[141,0,141,2],[142,0,142,2],[143,0,143,2],[144,0,144,2],[112,0,112,6],[131,0,131,6],[135,0,135,2],[134,0,134,2],[136,0,136,3],[140,0,140,3],[127,4,129,4],[134,4,135,4],[137,0,137,4],[141,4,145,4],[116,7,116,8],[116,9,116,10],[127,0,127,2],[128,0,128,2],[129,0,129,2],[130,0,130,3],[108,0,108,2],[109,0,109,2],[111,0,111,3],[110,0,110,2],[115,0,115,6],[116,0,117,0],[116,1,116,2],[116,3,116,4],[116,5,116,6],[108,4,110,4],[97,0,98,0],[97,1,97,2],[97,3,97,4],[97,5,97,6],[97,7,97,8],[97,9,97,10],[90,0,90,2],[91,0,91,2],[92,0,92,3],[93,0,93,6],[96,0,96,6],[73,0,73,2],[74,0,74,2],[75,0,75,3],[78,0,78,6],[79,0,80,0],[79,1,79,2],[79,3,79,4],[62,0,64,0],[62,3,70,4],[62,5,70,6],[65,0,67,0],[68,0,70,0],[72,0,72,2],[72,4,74,4],[56,0,56,6],[59,0,59,6],[60,0,61,0],[60,1,61,2],[60,3,60,4],[60,5,60,6],[61,3,61,6],[44,0,46,0],[47,0,49,0],[51,0,51,2],[52,0,52,2],[53,0,53,2],[54,0,54,3],[51,4,53,4],[55,0,55,4],[36,0,36,2],[37,0,37,2],[38,0,38,3],[41,0,41,6],[42,0,43,0],[42,1,43,2],[42,3,42,4],[42,5,42,6],[25,0,27,0],[25,3,33,4],[25,5,33,6],[28,0,30,0],[31,0,33,0],[35,0,35,2],[35,4,37,4],[19,0,19,6],[22,0,22,6],[23,0,24,0],[23,1,24,2],[23,3,23,4],[23,5,23,6],[24,3,24,6],[14,0,14,2],[15,0,15,2],[17,0,17,3],[14,4,16,4],[18,0,18,4],[1,0,1,6],[3,0,3,6],[7,0,8,0],[7,1,8,2],[7,3,7,4],[7,5,7,6],[6,0,6,6],[16,0,16,2],[9,0,12,0],[11,1,12,1],[11,3,12,3],[11,4,12,4],[11,5,12,5],[11,6,12,6]]}
[]
["Mitigación al cambio climático de actividades del sector de construcción"]
[]
["La Taxonomía Sostenible de México contiene métricas y umbrales que evalúan la contribución sustancial de cada una de las actividades económicas para determinar si dichas actividades contribuyen sustancialmente a la sostenibilidad. Las métricas corresponden a las unidades en las que se evalúan los umbrales. Por otro lado, los umbrales son los niveles mínimos que tienen que cumplir cada una de las actividades para argumentar que cuentan con contribución sustancial."]
[]
["236111. Edificación de vivienda unifamiliar (construcción de vivienda nueva)"]
["Observa la siguiente tabla y define si la edificación se alinea a las consideraciones de demanda de energía primaria (DEP; en kWh/m2 por año) establecidas en la siguiente tabla:"]
["Tipología","Zona térmica",null,"Económica/Popular/Residencial/Media (Costo de venta de hasta 2.2 mdp)",null,"Residencial y Residencial plus (Costo de venta > 2.2 mdp)"]
[null,null,null,"DEP kWh/m²a","Porcentaje de ahorro","DEP kWh/m²a","Porcentaje de ahorro"]
["Unifamiliar/Aislada","Z1","Cálido húmedo Cálido subhúmedo",490,0.3,470,0.4]
[null,"Z2","Muy seco y semiseco",415,0.4,400,0.45]
[null,"Z3 y Z4","Templado húmedo\n Templado\nsubhúmedo",355,0.35,340,0.4]
[null,null,"Fríos de alta\nmontaña"]
[]
["¿La edificación considerada del proyecto está alineado a lo establecido en la tabla anterior?",null,null,"Seleccione","Al menos una de las dos primeras preguntas debe ser positiva, en conjunto con la tercera para que la actividad presente contribución sustancial. En caso de contar con otra certificación, esta deberá ser presentada en un reporte aparte para verificar que se encuentra en línea con la tabla de arriba"]
["¿La edificación cuenta con alguna certificación relacionada a la sostenibilidad? ",null,null,"Seleccione"]
["¿La edificación cumple con la NOM-020-ENER-2011?",null,null,"Seleccione"]
[{"$f":"IF(OR(D15=\"Seleccione\",D16=\"Seleccione\",D17=\"Seleccione\"),\"Por definir\",IF(AND(D15=\"Sí\",D17=\"Sí\"),\"La actividad sí contribuye sustancialmente a la sostenibilidad\",IF(AND(D15=\"No\",D17=\"Sí\",D16=\"Seleccione\"),\"Es necesario conocer si la construcción cuenta con una certificación alineada a los umbrales de la Taxonomía Sostenible de México. Por favor responde la pregunta de arriba\",IF(AND(D17=\"Sí\",D16<>\"No cuenta con certificación\",D16<>\"Seleccione\"),\"La actividad sí contribuye sustancialmente a la sostenibilidad\",\"La actividad no genera contribución sustancial\"))))","v":"Por definir"}]
["Tip: *Para el cálculo de la DEP kWh/m²a, se debe utilizar la herramienta de balance energético: Herramienta DEEVi 1.1, o alguna herramienta de cálculo dinámico",null,null,null,null,"Link a Ecocasa-DEEVI 1.1"]
["*Para el cálculo del porcentaje de ahorro se debe utilizar el Software EDGE (Excellence in Design for Greater Efficiencies) de manera cuasiestacionaria."]
[]
["236111. Edificación de vivienda unifamiliar (renovación de vivienda existente)"]
["Observa la siguiente tabla y define si el porcentaje de ahorro respecto a la facturación de consumo eléctrico con respecto al año del proyecto se alinea a lo establecido en la misma tabla:"]
["Tipología","Zona térmica",null,"Económica/Popular/Residencial/Media (Costo de venta de hasta 2.2 mdp)",null,"Residencial y Residencial plus (Costo de venta > 2.2 mdp)"]
[null,null,null,"Porcentaje de ahorro respecto a facturación de consumo eléctrico del año anterior"]
["Unifamiliar/Aislada","Z1","Cálido húmedo Cálido subhúmedo",0.2,null,0.3]
[null,"Z2","Muy seco, seco y semiseco"]
[null,"Z3 y Z4","Templado húmedo\n Templado\nsubhúmedo"]
["Multifamiliar adosada","Z1","Cálido húmedo Cálido subhúmedo"]
[null,"Z2","Muy seco, seco y semiseco"]
[null,"Z3 y Z4","Templado húmedo\n Templado\nsubhúmedo"]
["Multifamiliar vertical","Z1","Cálido húmedo Cálido subhúmedo"]
[null,"Z2","Muy seco, seco y semiseco"]
[null,"Z3 y Z4","Templado húmedo\n Templado\nsubhúmedo"]
[]
["La edificación considerada del proyecto está alineado a lo establecido en la tabla anterior?",null,null,"Seleccione","Al menos una de las dos primeras preguntas debe ser positiva, en conjunto con la tercera para que la actividad presente contribución sustancial. En caso de contar con otra certificación, esta deberá ser presentada en un reporte aparte para verificar que se encuentra en línea con la tabla de arriba"]
["¿La edificación cuenta con alguna certificación? ",null,null,"Seleccione"]
["¿La edificación cumple con la NOM-020-ENER-2011?",null,null,"Seleccione"]
[{"$f":"IF(OR(D36=\"Seleccione\",D37=\"Seleccione\",D38=\"Seleccione\"),\"Por definir\",IF(AND(D36=\"Sí\",D38=\"Sí\"),\"La actividad sí contribuye sustancialmente a la sostenibilidad\",IF(AND(D36=\"No\",D38=\"Sí\",D37=\"Seleccione\"),\"Es necesario conocer si la construcción cuenta con una certificación alineada a la Taxonomía Sostenible de México. Por favor responder la pregunta de arriba\",IF(AND(D38=\"Sí\",D37<>\"No cuenta con certificación\",D37<>\"Seleccione\"),\"La actividad sí contribuye sustancialmente a la sostenibilidad\",\"La actividad no genera contribución sustancial\"))))","v":"Por definir"}]
[]
["236112. Edificación de vivienda multifamiliar (construcción de vivienda nueva)"]
["Observa la siguiente tabla y define si la edificación se alinea a las consideraciones de demanda de energía primaria (DEP; en kWh/m2 por año) establecidas en la siguiente tabla:"]
["Tipología","Zona térmica",null,"Económica/Popular/Residencial/Media (Costo de venta de hasta 2.2 mdp)",null,"Residencial y Residencial plus (Costo de venta > 2.2 mdp)"]
[null,null,null,"DEP kWh/m²a","Porcentaje de ahorro","DEP kWh/m²a","Porcentaje de ahorro"]
["Multifamiliar/Adosada","Z1","Cálido húmedo Cálido subhúmedo",465,0.4,445,0.45]
[null,"Z2","Muy seco, seco y semiseco",360,0.35,340,0.4]
[null,"Z3 y Z4","Templado húmedo\n Templado\nsubhúmedo",210,0.3,200,0.4]
["Multifamiliar/vertical","Z1","Cálido húmedo Cálido subhúmedo",435,0.4,415,0.45]
[null,"Z2","Muy seco, seco y semiseco",215,0.4,200,0.45]
[null,"Z3 y Z4","Templado húmedo\n Templado\nsubhúmedo",220,0.35,210,0.4]
[]
["La edificación considerada del proyecto está alineado a lo establecido en la tabla anterior?",null,null,"Seleccione","Al menos una de las dos primeras preguntas debe ser positiva, en conjunto con la tercera para que la actividad presente contribución sustancial. En caso de contar con otra certificación, esta deberá ser presentada en un reporte aparte para verificar que se encuentra en línea con la tabla de arriba"]
["¿La edificación cuenta con alguna certificación? ",null,null,"Seleccione"]
["¿La edificación cumple con la NOM-020-ENER-2011?",null,null,"Seleccione"]
[{"$f":"IF(OR(D52=\"Seleccione\",D53=\"Seleccione\",D54=\"Seleccione\"),\"Por definir\",IF(AND(D52=\"Sí\",D54=\"Sí\"),\"La actividad sí contribuye sustancialmente a la sostenibilidad\",IF(AND(D52=\"No\",D54=\"Sí\",D53=\"Seleccione\"),\"Es necesario conocer si la construcción cuenta con una certificación alineada a los umbrales de la Taxonomía Sostenible de México. Por favor responde la pregunta de arriba\",IF(AND(D54=\"Sí\",D53<>\"No cuenta con certificación\",D53<>\"Seleccione\"),\"La actividad sí contribuye sustancialmente a la sostenibilidad\",\"La actividad no genera contribución sustancial\"))))","v":"Por definir"}]
["Tip: *Para el cálculo de la DEP kWh/m²a, se debe utilizar la herramienta de balance energético: Herramienta DEEVi 1.1, o alguna herramienta de cálculo dinámico",null,null,null,null,"Link a Ecocasa-DEEVI 1.1"]
["*Para el cálculo del porcentaje de ahorro se debe utilizar el Software EDGE (Excellence in Design for Greater Efficiencies) de manera cuasiestacionaria."]
[]
["236112. Edificación de vivienda multifamiliar (renovación de vivienda existente)"]
["Observa la siguiente tabla y define si el porcentaje de ahorro respecto a la facturación de consumo eléctrico con respecto al año del proyecto se alinea a lo establecido en la misma tabla:"]
["Tipología","Zona térmica",null,"Económica/Popular/Residencial/Media (Costo de venta de hasta 2.2 mdp)",null,"Residencial y Residencial plus (Costo de venta > 2.2 mdp)"]
[null,null,null,"Porcentaje de ahorro respecto a facturación de consumo eléctrico del año anterior"]
["Unifamiliar/Aislada","Z1","Cálido húmedo Cálido subhúmedo",0.2,null,0.3]
[null,"Z2","Muy seco, seco y semiseco"]
[null,"Z3 y Z4","Templado húmedo\n Templado\nsubhúmedo"]
["Multifamiliar adosada","Z1","Cálido húmedo Cálido subhúmedo"]
[null,"Z2","Muy seco, seco y semiseco"]
[null,"Z3 y Z4","Templado húmedo\n Templado\nsubhúmedo"]
["Multifamiliar vertical","Z1","Cálido húmedo Cálido subhúmedo"]
[null,"Z2","Muy seco, seco y semiseco"]
[null,"Z3 y Z4","Templado húmedo\n Templado\nsubhúmedo"]
[]
["La edificación considerada del proyecto está alineado a lo establecido en la tabla anterior?",null,null,"Sí","Al menos una de las dos primeras preguntas debe ser positiva, en conjunto con la tercera para que la actividad presente contribución sustancial. En caso de contar con otra certificación, esta deberá ser presentada en un reporte aparte para verificar que se encuentra en línea con la tabla de arriba"]
["¿La edificación cuenta con alguna certificación? ",null,null,"NMX-AA-164-SCFI-2011"]
["¿La edificación cumple con la NOM-020-ENER-2011?",null,null,"Sí"]
[{"$f":"IF(OR(D73=\"Seleccione\",D74=\"Seleccione\",D75=\"Seleccione\"),\"Por definir\",IF(AND(D73=\"Sí\",D75=\"Sí\"),\"La actividad sí contribuye sustancialmente a la sostenibilidad\",IF(AND(D73=\"No\",D75=\"Sí\",D74=\"Seleccione\"),\"Es necesario conocer si la construcción cuenta con una certificación alineada a la Taxonomía Sostenible de México. Por favor responder la pregunta de arriba\",IF(AND(D75=\"Sí\",D74<>\"No cuenta con certificación\",D74<>\"Seleccione\"),\"La actividad sí contribuye sustancialmente a la sostenibilidad\",\"La actividad no genera contribución sustancial\"))))","v":"La actividad sí contribuye sustancialmente a la sostenibilidad"}]
[]
["236211. Edificación de naves y plantas industriales, excepto la supervisión"]
["Observa la siguiente tabla y define si la edificación se alinea a las consideraciones de demanda de energía primaria (DEP; en kWh/m2 por año) establecidas en la siguiente tabla:"]
["Zona\nTérmica","Naves Industriales\n(Almacén/ Manufactura Ligera)",null,"Naves Industriales\n(sin proceso)"]
[null,"DEP kWh/m²a","DEP Porcentaje de\nahorro","DEP kWh/m²a","DEP Porcentaje de\nahorro"]
["1A",190,0.25,50,0.25]
["1B",190,0.25,50,0.25]
["2A",180,0.25,40,0.25]
["2B",180,0.25,40,0.2]
["3A",100,0.3,30,0.2]
["3B",110,0.2,40,0.2]
["3C",140,0.2,40,0.2]
["4A",120,0.25,40,0.25]
[]
["La edificación considerada del proyecto está alineado a lo establecido en la tabla anterior?",null,null,"Seleccione","Al menos una de las dos preguntas debe ser positiva para demostrar contribución sustancial a la sostenibilidad"]
["¿La edificación cuenta con alguna certificación? ",null,null,"Seleccione",{"$f":"IF(D92=\"Otra\",\"Será necesario proveer evidencia que la certificación se encuentra alineada a los umbrales establecidos en la tabla superior\",\"\")","v":""}]
[{"$f":"IF(OR(D91=\"Seleccione\",D92=\"Seleccione\"),\"Por definir\",IF(D91=\"Sí\",\"La actividad sí contribuye sustancialmente a la sostenibilidad\",IF(D92<>\"No cuenta con certificación\",CONCATENATE(\"Se definirá si el proyecto está alineado a la Taxonomía Sostenible después de enviar evidencia a la SHCP (a través del correo taxonomia_sost@hacienda.gob.mx) de que la certificación contempla lo establecido en la tabla de arriba\"),\"La actividad no genera contribución sustancial\")))","v":"Por definir"}]
["*Para el cálculo de la DEP kWh/m²a o el porcentaje de ahorro, es necesario realizar una simulación térmica dinámica"]
[]
["236221. Edificación de inmuebles comerciales y de servicios, excepto la supervisión (construcción de nuevos inmuebles)"]
["Observa la siguiente tabla y define si la edificación se alinea a las consideraciones de demanda de energía primaria (DEP; en kWh/m2 por año) y porcentajes de ahorro  establecidas en la siguiente tabla:"]
["Zona\nTérmica","Oficinas",null,"Centros de salud",null,"Educación",null,"Retail",null,"Hoteles"]
[null,"DEP kWh/m²a","DEP Porcentaje de\nahorro","DEP kWh/m²a","DEP Porcentaje de\nahorro","DEP kWh/m²a","DEP Porcentaje de\nahorro","DEP kWh/m²a","DEP Porcentaje de\nahorro","DEP kWh/m²a","DEP Porcentaje de\nahorro"]
["1A",180,0.3,350,0.2,120,0.25,290,0.2,20,0.2]
["1B",180,0.3,350,0.2,120,0.25,290,0.2,20,0.2]
["2A",160,0.2,140,0.2,80,0.2,280,0.2,190,0.2]
["2B",160,0.2,140,0.2,80,0.2,280,0.2,170,0.2]
["3A",130,0.2,220,0.2,70,0.2,170,0.2,120,0.2]
["3B",130,0.15,260,0.2,80,0.2,200,0.2,170,0.2]
["3C",130,0.15,280,0.2,100,0.25,200,0.2,190,0.2]
["4A",140,0.2,320,0.2,100,0.25,290,0.2,190,0.2]
[]
["La edificación considerada del proyecto está alineado a lo establecido en la tabla anterior?",null,null,"Seleccione","Al menos una de las dos primeras preguntas debe ser positiva, en conjunto con la tercera para que la actividad presente contribución sustancial. En caso de contar con otra certificación, esta deberá ser presentada en un reporte aparte para verificar que se encuentra en línea con la tabla de arriba"]
["¿La edificación cuenta con alguna certificación? ",null,null,"Seleccione"]
["¿La edificación cumple con la NOM-008-ENER-2001? ",null,null,"Seleccione"]
[{"$f":"IF(OR(D109=\"Seleccione\",D110=\"Seleccione\",D111=\"Seleccione\"),\"Por definir\",IF(AND(D109=\"Sí\",D111=\"Sí\"),\"La actividad sí contribuye sustancialmente a la sostenibilidad\",IF(AND(D109=\"No\",D111=\"Sí\",D110=\"Seleccione\"),\"Es necesario conocer si la construcción cuenta con una certificación alineada a la Taxonomía Sostenible de México. Por favor responder la pregunta de arriba\",IF(AND(D111=\"Sí\",D110<>\"No cuenta con certificación\",D110<>\"Seleccione\"),\"La actividad sí contribuye sustancialmente a la sostenibilidad\",\"La actividad no genera contribución sustancial\"))))","v":"Por definir"}]
["*Para el cálculo de la DEP kWh/m²a o el porcentaje de ahorro, es necesario realizar una simulación térmica dinámica"]
[]
["236221. Edificación de inmuebles comerciales y de servicios, excepto la supervisión (renovación de inmuebles)"]
["Observa la siguiente tabla y define si la edificación se alinea a las consideraciones de demanda de energía primaria (DEP; en kWh/m2 por año) y porcentajes de ahorro  establecidas en la siguiente tabla:"]
["Zona\nTérmica","Oficinas",null,"Centros de salud",null,"Educación",null,"Retail",null,"Hoteles"]
[null,"DEP kWh/m²a","DEP Porcentaje de\nahorro","DEP kWh/m²a","DEP Porcentaje de\nahorro","DEP kWh/m²a","DEP Porcentaje de\nahorro","DEP kWh/m²a","DEP Porcentaje de\nahorro","DEP kWh/m²a","DEP Porcentaje de\nahorro"]
["1A",180,0.3,350,0.2,120,0.25,290,0.2,20,0.2]
["1B",180,0.3,350,0.2,120,0.25,290,0.2,20,0.2]
["2A",160,0.2,140,0.2,80,0.2,280,0.2,190,0.2]
["2B",160,0.2,140,0.2,80,0.2,280,0.2,170,0.2]
["3A",130,0.2,220,0.2,70,0.2,170,0.2,120,0.2]
["3B",130,0.15,260,0.2,80,0.2,200,0.2,170,0.2]
["3C",130,0.15,280,0.2,100,0.25,200,0.2,190,0.2]
["4A",140,0.2,320,0.2,100,0.25,290,0.2,190,0.2]
[]
["La edificación considerada del proyecto está alineado a lo establecido en la tabla anterior?",null,null,"Seleccione","Al menos una de las dos primeras preguntas debe ser positiva, en conjunto con la tercera para que la actividad presente contribución sustancial. En caso de contar con otra certificación, esta deberá ser presentada en un reporte aparte para verificar que se encuentra en línea con la tabla de arriba"]
["¿La edificación cuenta con alguna certificación? ",null,null,"Seleccione"]
["¿La edificación cumple con la NOM-008-ENER-2001? ",null,null,"Seleccione"]
[{"$f":"IF(OR(D128=\"Seleccione\",D129=\"Seleccione\",D130=\"Seleccione\"),\"Por definir\",IF(AND(D128=\"Sí\",D130=\"Sí\"),\"La actividad sí contribuye sustancialmente a la sostenibilidad\",IF(AND(D128=\"No\",D130=\"Sí\",D129=\"Seleccione\"),\"Es necesario conocer si la construcción cuenta con una certificación alineada a la Taxonomía Sostenible de México. Por favor responder la pregunta de arriba\",IF(AND(D130=\"Sí\",D129<>\"No cuenta con certificación\",D129<>\"Seleccione\"),\"La actividad sí contribuye sustancialmente a la sostenibilidad\",\"La actividad no genera contribución sustancial\"))))","v":"Por definir"}]
["*Para el cálculo de la DEP kWh/m²a o el porcentaje de ahorro, es necesario realizar una simulación térmica dinámica"]
[]
["238222. Instalaciones de sistemas de aire acondicionado y calefacción"]
["¿El proyecto cumple con las eficiencias mínimas establecidas en el Código de Conservación de Energía para Edificaciones en México - IECC México en sus secciones NR403 y R403?",null,null,"Seleccione","Al menos una de las dos condiciones debe ser positiva para demostrar contribución sustancial a la sostenibilidad"]
["¿El proyecto cumple con las eficiencias mínimas indicadas en las normas NOM-011-ENER, NOM-021-ENER, NOM-023-ENER y NOM-026-ENER?",null,null,"Seleccione"]
[{"$f":"IF(OR(D135=\"Seleccione\",D136=\"Seleccione\"),\"Por definir\", IF(AND(D135=\"Sí\",D136=\"Sí\"),\"La actividad sí contribuye sustancialmente a la sostenibilidad\",\"La actividad no genera contribución sustancial\"))","v":"Por definir"}]
["*Es necesario a su vez documentar el complimiento de niveles de confor término de acuerdo con la NMX-C-7730-ONNCCE-2018",null,null,null,null,"Link a la NMX-C7730"]
[]
["237312. Construcción de carreteras, puentes y similares"]
["¿El proyecto involucra alguna de las siguientes actividades?"]
["Infraestructura necesaria para el transporte con cero emisiones directas (por ejemplo, puntos de carga eléctrica, mejoras en la conexión a la red eléctrica, estaciones de abastecimiento de hidrógeno o autopistas eléctricas)",null,null,"Seleccione","Al menos una actividad debe ser desarrollada para que el proyecto genere contribución sustancial"]
["Infraestructura y equipamiento (incluidas las flotas) para la movilidad activa (a pie, en bicicleta, en e-bicis y e-scooters)",null,null,"Seleccione"]
["Infraestructura que se utiliza predominantemente para el transporte con bajas emisiones de carbono si la flota que utiliza la infraestructura cumple con los umbrales de emisiones directas definidos en la actividad correspondiente - medidos en emisiones de CO2 por kilómetro (gCO2/ km), emisiones de CO2 e por tonelada - kilómetro (gCO2e/tkm), o emisiones de CO2 e por pasajerokilómetro (gCO2 e/pkm)",null,null,"Seleccione"]
["Infraestructura ferroviaria no electrificada con un plan existente de electrificación o de uso de trenes con motor alternativo",null,null,"Seleccione"]
["¿El proyecto se trata de infraestructura distinta a las actividades mencionadas en alguna de las preguntas anteriores?",null,null,"Seleccione"]
[{"$f":"IF(OR(D142=\"Seleccione\",D143=\"Seleccione\",D144=\"Seleccione\",D145=\"Seleccione\",D146=\"Seleccione\"),\"Por definir\",IF(OR(D142=\"Sí\",D143=\"Sí\",D144=\"Sí\",D145=\"Sí\"),\"La actividad sí contribuye sustancialmente a la sostenibilidad\",IF(D146=\"Sí\",\"Es necesario definir la actividad en un reporte independiente\",\"La actividad no genera contribución sustancial\")))","v":"Por definir"}]
[]
["237993,Construcción de obras para transporte eléctrico y ferroviario"]
["¿El proyecto involucra alguna de las siguientes actividades? Responde todas las preguntas"]
["Infraestructura necesaria para el transporte con cero emisiones directas (por ejemplo, puntos de carga eléctrica, mejoras en la conexión a la red eléctrica, estaciones de abastecimiento de hidrógeno o autopistas eléctricas)",null,null,"Seleccione","Al menos una actividad debe ser desarrollada para que el proyecto genere contribución sustancial"]
["Infraestructura y equipamiento (incluidas las flotas) para la movilidad activa (a pie, en bicicleta, en e-bicis y e-scooters)",null,null,"Seleccione"]
["Infraestructura que se utiliza predominantemente para el transporte con bajas emisiones de carbono si la flota que utiliza la infraestructura cumple con los umbrales de emisiones directas definidos en la actividad correspondiente - medidos en emisiones de CO2 por kilómetro (gCO2/ km), emisiones de CO2 e por tonelada - kilómetro (gCO2e/tkm), o emisiones de CO2 e por pasajerokilómetro (gCO2 e/pkm)",null,null,"Seleccione"]
["Infraestructura ferroviaria no electrificada con un plan existente de electrificación o de uso de trenes con motor alternativo",null,null,"Seleccione"]
["¿El proyecto se trata de infraestructura distinta a las actividades mencionadas en alguna de las preguntas anteriores?",null,null,"Seleccione"]
[{"$f":"IF(OR(D151=\"Seleccione\",D152=\"Seleccione\",D153=\"Seleccione\",D154=\"Seleccione\",D155=\"Seleccione\"),\"Por definir\",IF(OR(D151=\"Sí\",D152=\"Sí\",D153=\"Sí\",D154=\"Sí\",D155=\"Sí\"),\"La actividad sí contribuye sustancialmente a la sostenibilidad\",\"La actividad no genera contribución sustancial\"))","v":"Por definir"}]

{"sheet":"Adaptación-Construcción","index":30,"n_rows":334,"n_cols":8,"rows_kept":334,"cut":false,"hidden":true,"merged":[[1,0,1,6],[3,0,3,6],[23,7,24,8],[24,0,24,4],[15,0,15,5],[16,0,16,4],[16,7,18,8],[17,0,17,4],[18,0,18,4],[6,0,6,5],[8,0,8,2],[10,0,10,3],[11,0,11,3],[14,0,14,1],[25,0,25,6],[27,0,27,1],[28,0,28,5],[29,0,29,4],[31,0,31,1],[19,0,19,6],[21,0,21,1],[22,0,22,5],[23,0,23,4],[36,0,36,6],[39,0,39,5],[41,0,41,2],[43,0,43,3],[44,0,44,3],[32,0,32,5],[33,0,33,4],[33,7,35,8],[34,0,34,4],[35,0,35,4],[52,0,52,6],[54,0,54,1],[55,0,55,5],[56,0,56,4],[56,7,57,8],[57,0,57,4],[47,0,47,1],[48,0,48,5],[49,0,49,4],[49,7,51,8],[50,0,50,4],[51,0,51,4],[65,0,65,5],[66,0,66,4],[66,7,68,8],[67,0,67,4],[68,0,68,4],[58,0,58,6],[60,0,60,1],[61,0,61,5],[62,0,62,4],[64,0,64,1],[89,7,90,8],[90,0,90,4],[80,0,80,1],[81,0,81,5],[82,0,82,4],[82,7,84,8],[83,0,83,4],[84,0,84,4],[69,0,69,6],[72,0,72,5],[74,0,74,2],[76,0,76,3],[77,0,77,3],[91,0,91,6],[93,0,93,1],[94,0,94,5],[95,0,95,4],[97,0,97,1],[85,0,85,6],[87,0,87,1],[88,0,88,5],[89,0,89,4],[102,0,102,6],[105,0,105,5],[107,0,107,2],[109,0,109,3],[110,0,110,3],[98,0,98,5],[99,0,99,4],[99,7,101,8],[100,0,100,4],[101,0,101,4],[118,0,118,6],[120,0,120,1],[121,0,121,5],[122,0,122,4],[122,7,123,8],[123,0,123,4],[113,0,113,1],[114,0,114,5],[115,0,115,4],[115,7,117,8],[116,0,116,4],[117,0,117,4],[131,0,131,5],[132,0,132,4],[132,7,134,8],[133,0,133,4],[134,0,134,4],[124,0,124,6],[126,0,126,1],[127,0,127,5],[128,0,128,4],[130,0,130,1],[155,7,156,8],[156,0,156,4],[146,0,146,1],[147,0,147,5],[148,0,148,4],[148,7,150,8],[149,0,149,4],[150,0,150,4],[135,0,135,6],[138,0,138,5],[140,0,140,2],[142,0,142,3],[143,0,143,3],[157,0,157,6],[159,0,159,1],[160,0,160,5],[161,0,161,4],[163,0,163,1],[151,0,151,6],[153,0,153,1],[154,0,154,5],[155,0,155,4],[168,0,168,6],[171,0,171,5],[173,0,173,2],[175,0,175,3],[176,0,176,3],[164,0,164,5],[165,0,165,4],[165,7,167,8],[166,0,166,4],[167,0,167,4],[184,0,184,6],[186,0,186,1],[187,0,187,5],[188,0,188,4],[188,7,189,8],[189,0,189,4],[179,0,179,1],[180,0,180,5],[181,0,181,4],[181,7,183,8],[182,0,182,4],[183,0,183,4],[197,0,197,5],[198,0,198,4],[198,7,200,8],[199,0,199,4],[200,0,200,4],[190,0,190,6],[192,0,192,1],[193,0,193,5],[194,0,194,4],[196,0,196,1],[221,7,222,8],[222,0,222,4],[212,0,212,1],[213,0,213,5],[214,0,214,4],[214,7,216,8],[215,0,215,4],[216,0,216,4],[201,0,201,6],[204,0,204,5],[206,0,206,2],[208,0,208,3],[209,0,209,3],[223,0,223,6],[225,0,225,1],[226,0,226,5],[227,0,227,4],[229,0,229,1],[217,0,217,6],[219,0,219,1],[220,0,220,5],[221,0,221,4],[234,0,234,6],[237,0,237,5],[239,0,239,2],[241,0,241,3],[242,0,242,3],[230,0,230,5],[231,0,231,4],[231,7,233,8],[232,0,232,4],[233,0,233,4],[250,0,250,6],[252,0,252,1],[253,0,253,5],[254,0,254,4],[254,7,255,8],[255,0,255,4],[245,0,245,1],[246,0,246,5],[247,0,247,4],[247,7,249,8],[248,0,248,4],[249,0,249,4],[263,0,263,5],[264,0,264,4],[264,7,266,8],[265,0,265,4],[266,0,266,4],[256,0,256,6],[258,0,258,1],[259,0,259,5],[260,0,260,4],[262,0,262,1],[287,7,288,8],[288,0,288,4],[278,0,278,1],[279,0,279,5],[280,0,280,4],[280,7,282,8],[281,0,281,4],[282,0,282,4],[267,0,267,6],[270,0,270,5],[272,0,272,2],[274,0,274,3],[275,0,275,3],[289,0,289,6],[291,0,291,1],[292,0,292,5],[293,0,293,4],[295,0,295,1],[283,0,283,6],[285,0,285,1],[286,0,286,5],[287,0,287,4],[300,0,300,6],[303,0,303,5],[305,0,305,2],[307,0,307,3],[308,0,308,3],[296,0,296,5],[297,0,297,4],[297,7,299,8],[298,0,298,4],[299,0,299,4],[316,0,316,6],[318,0,318,1],[319,0,319,5],[320,0,320,4],[320,7,321,8],[321,0,321,4],[311,0,311,1],[312,0,312,5],[313,0,313,4],[313,7,315,8],[314,0,314,4],[315,0,315,4],[333,0,333,6],[329,0,329,5],[330,0,330,4],[330,7,332,8],[331,0,331,4],[332,0,332,4],[322,0,322,6],[324,0,324,1],[325,0,325,5],[326,0,326,4],[328,0,328,1]]}
[]
["Adaptación al cambio climático de actividades del sector de la construcción"]
[]
["La Taxonomía Sostenible de México reconoce que el país está expuesto a riesgos climáticos y ambientales heterogéneos no lineales que tienen múltiples canales de transmisión y, por ende, que el cambio climático afecta en distinta medida a todos los sectores de la economía. En este sentido, a través de la Taxonomía se busca que las actividades económicas contribuyan sustancialmente, no sólo a la mitigación, sino también a la adaptación del cambio climático. "]
[]
["236111. Edificación de vivienda unifamiliar (construcción de vivienda nueva)"]
["Responde las siguientes preguntas seleccionando una respuesta de la lista"]
[]
["1. La actividad que estás evaluando es una actividad adaptada o una actividad que facilita la adaptación?",null,null,"Actividad que facilita la adaptación e incluye desarrollo de infraestructura"]
[]
["¿Qué es una actividad adaptada?\nUna actividad económica se adapta a los riesgos climáticos físicos materiales, si integra medidas y/o soluciones para reducirlos, mientras garantiza que la actividad económica pueda funcionar bien en un clima cambiante. Estas actividades de adaptación se desarrollan a partir de la evaluación de riesgos actuales y futuros, ya sean climáticos, crónicos y/o agudos, así como la escala temporal y geográfica de la actividad económica."]
["¿Qué es una actividad que facilita la adaptación? \nUna actividad económica posibilita la adaptación si reduce el riesgo climático físico material y la vulnerabilidad en otras actividades económicas, comunidades, ecosistemas o ciudades, y/o aborda los obstáculos sistémicos a la adaptación. Esto es posible a través del uso de la tecnología y la creación de un producto o servicio especializado."]
[]
[]
["A1. Reducción de los riesgos climáticos físicos materiales."]
["La actividad económica debe reducir todos los riesgos climáticos físicos materiales para las actividades evaluadas, en la medida de lo posible y sobre la base del mejor esfuerzo. Selecciona las respuestas en las listas desplegables"]
["¿La actividad económica integra medidas destinadas a reducir, en la medida de lo posible y sobre la base del mejor esfuerzo, los riesgos climáticos físicos materiales para esa actividad, que han sido identificados mediante una evaluación de riesgos?",null,null,null,null,"Sí",{"$f":"IF(F17=\"Seleccione\",\"Por definir\",IF(F17=\"Sí\",\"El primer criterio se cumple satisfactoriamente\",\"Al no cumplir con este criterio, no es posible generar contribución sustancial\"))","v":"El primer criterio se cumple satisfactoriamente"},"Las tres condiciones deben cumplirse para argumentar que la actividad tiene contribución sustancial"]
["¿Esta evaluación considera tanto la variabilidad meteorológica actual, como el cambio climático futuro, incluidos los escenarios climáticos, así como la incertidumbre?",null,null,null,null,"Sí",{"$f":"IF(F18=\"Seleccione\",\"Por definir\",IF(F18=\"Sí\",\"El segundo criterio se cumple satisfactoriamente\",\"Al no cumplir con este criterio, no es posible generar contribución sustancial\"))","v":"El segundo criterio se cumple satisfactoriamente"}]
["¿Igualmente la evaluación se basa en un sólido análisis de los datos e información disponible sobre los distintos escenarios climáticos, y es coherente con la duración prevista de la actividad?",null,null,null,null,"Sí",{"$f":"IF(F19=\"Seleccione\",\"Por definir\",IF(F19=\"Sí\",\"El tercer criterio se cumple satisfactoriamente\",\"Al no cumplir con este criterio, no es posible generar contribución sustancial\"))","v":"El tercer criterio se cumple satisfactoriamente"}]
[{"$f":"IF(OR(F17=\"Seleccione\",F18=\"Seleccione\",F19=\"Seleccione\"),\"Por definir\",IF(OR(F17=\"No\",F18=\"No\",F19=\"No\"),\"La actividad no genera contribución sustancial\", \"La actividad sí contribuye sustancialmente a la sostenibilidad\"))","v":"La actividad sí contribuye sustancialmente a la sostenibilidad"}]
[]
["A2. Apoyo a la adaptación del sistema. "]
["La actividad económica y sus medidas de adaptación no afectan negativamente los esfuerzos de adaptación de otras personas, la naturaleza y los bienes. Selecciona las respuestas en las listas desplegables"]
["¿La actividad económica y sus medidas de adaptación no aumentan los riesgos de un impacto climático adverso sobre otras personas, la naturaleza y los bienes?",null,null,null,null,"Sí",{"$f":"IF(F24=\"Seleccione\",\"Por definir\",IF(F24=\"Sí\",\"El primer criterio se cumple satisfactoriamente\",\"Al no cumplir con este criterio, no es posible generar contribución sustancial\"))","v":"El primer criterio se cumple satisfactoriamente"},"Las dos condiciones deben cumplirse para argumentar que la actividad tiene contribución sustancial"]
["¿La actividad económica y sus medidas de adaptación son consistentes con los esfuerzos de adaptación a nivel sectorial, regional y/o nacional?",null,null,null,null,"Sí",{"$f":"IF(F25=\"Seleccione\",\"Por definir\",IF(F25=\"Sí\",\"El segundo criterio se cumple satisfactoriamente\",\"Al no cumplir con este criterio, no es posible generar contribución sustancial\"))","v":"El segundo criterio se cumple satisfactoriamente"}]
[{"$f":"IF(OR(F24=\"Seleccione\",F25=\"Seleccione\"),\"Por definir\",IF(OR(F24=\"No\",F25=\"No\"),\"La actividad no genera contribución sustancial\", \"La actividad sí contribuye sustancialmente a la sostenibilidad\"))","v":"La actividad sí contribuye sustancialmente a la sostenibilidad"}]
[]
["A3. Monitoreo de los resultados de adaptación."]
["En el contexto de la actividad evaluada, la reducción de los riesgos físicos se puede medir. Selecciona las respuestas en las listas desplegables"]
[" Los resultados de adaptación pueden ser monitoreados y medidos con base en indicadores. Considerando que los riesgos físicos evolucionan con el tiempo, el análisis de riesgos físicos debe llevarse a cabo con la frecuencia adecuada.  ¿Esto se evalúa dentro de la operación financiera y/o proyecto?",null,null,null,null,"Sí",{"$f":"IF(F30=\"Seleccione\",\"Por definir\",IF(F30=\"Sí\",\"La actividad sí contribuye sustancialmente a la sostenbilidad\",\"El proyecto no genera contribución sustancial\"))","v":"La actividad sí contribuye sustancialmente a la sostenbilidad"}]
[]
["B1. Apoyar a la adaptación de otras actividades económicas."]
["La actividad económica reduce el riesgo climático físico material en otras actividades económicas y/o aborda los obstáculos sistémicos para la adaptación. Las actividades que permiten la adaptación incluyen, pero no se limitan a, actividades que promueven una tecnología, un producto, una práctica, un proceso de gobernanza o usos innovadores de tecnologías, productos o prácticas existentes (incluidos los relacionados con las infraestructuras naturales). Además, eliminan las barreras de información, financieras, tecnológicas y de capacidad para la adaptación de otros. Selecciona las respuestas en las listas desplegables"]
["¿Se realiza una evaluación de los riesgos resultantes, con base en datos sólidos, tanto de la variabilidad  meteorológica actual como del cambio climático futuro, incluidos los escenarios climáticos, así como  la incertidumbre, que la actividad económica contribuirá a abordar?",null,null,null,null,"Sí",{"$f":"IF(F34=\"Seleccione\",\"Por definir\",IF(F34=\"Sí\",\"El primer criterio se cumple satisfactoriamente\",\"Al no cumplir con este criterio, no es posible generar contribución sustancial\"))","v":"El primer criterio se cumple satisfactoriamente"},"Las tres condiciones en caso de que apliquen deben cumplirse para argumentar que la actividad tiene contribución sustancial. La tercera opción podría no aplicar. En este caso se evaluaran las primeras dos cuestiones"]
["¿Se realiza una evaluación de la eficacia de la contribución de la actividad económica a la reducción de los riesgos físicos, teniendo en cuenta la escala de exposición y la vulnerabilidad a los mismos?",null,null,null,null,"Sí",{"$f":"IF(F35=\"Seleccione\",\"Por definir\",IF(F35=\"Sí\",\"El segundo criterio se cumple satisfactoriamente\",\"Al no cumplir con este criterio, no es posible generar contribución sustancial\"))","v":"El segundo criterio se cumple satisfactoriamente"}]
["En el caso de una infraestructura vinculada a una actividad que permita la adaptación, dicha infraestructura debe cumplir también los criterios de selección A1, A2 y A3. ¿Esto se cumple en el contexto del proyecto?",null,null,null,null,"Sí",{"$f":"IF(F36=\"Seleccione\",\"Por definir\",IF(F36=\"Sí\",\"El tercer criterio se cumple satisfactoriamente\",IF(F36=\"No aplica\",\"No aplica\",\"El proyecto no genera contribución sustancial\")))","v":"El tercer criterio se cumple satisfactoriamente"}]
[{"$f":"IF(OR(F34=\"Seleccione\",F35=\"Seleccione\",F36=\"Seleccione\"),\"Por definir\",IF(OR(F34=\"No\",F35=\"No\",F36=\"No\"),\"La actividad no genera contribución sustancial\",\"La actividad sí contribuye sustancialmente a la sostenibilidad\"))","v":"La actividad sí contribuye sustancialmente a la sostenibilidad"}]
[]
["236111. Edificación de vivienda unifamiliar (renovación de vivienda existente)"]
["Responde las siguientes preguntas seleccionando una respuesta de la lista"]
[]
["1. La actividad que estás evaluando es una actividad adaptada o una actividad que facilita la adaptación?",null,null,"Actividad que facilita la adaptación e incluye desarrollo de infraestructura"]
[]
["¿Qué es una actividad adaptada?\nUna actividad económica se adapta a los riesgos climáticos físicos materiales, si integra medidas y/o soluciones para reducirlos, mientras garantiza que la actividad económica pueda funcionar bien en un clima cambiante. Estas actividades de adaptación se desarrollan a partir de la evaluación de riesgos actuales y futuros, ya sean climáticos, crónicos y/o agudos, así como la escala temporal y geográfica de la actividad económica."]
["¿Qué es una actividad que facilita la adaptación? \nUna actividad económica posibilita la adaptación si reduce el riesgo climático físico material y la vulnerabilidad en otras actividades económicas, comunidades, ecosistemas o ciudades, y/o aborda los obstáculos sistémicos a la adaptación. Esto es posible a través del uso de la tecnología y la creación de un producto o servicio especializado."]
[]
[]
["A1. Reducción de los riesgos climáticos físicos materiales."]
["La actividad económica debe reducir todos los riesgos climáticos físicos materiales para las actividades evaluadas, en la medida de lo posible y sobre la base del mejor esfuerzo. Selecciona las respuestas en las listas desplegables"]
["¿La actividad económica integra medidas destinadas a reducir, en la medida de lo posible y sobre la base del mejor esfuerzo, los riesgos climáticos físicos materiales para esa actividad, que han sido identificados mediante una evaluación de riesgos?",null,null,null,null,"Sí",{"$f":"IF(F50=\"Seleccione\",\"Por definir\",IF(F50=\"Sí\",\"El primer criterio se cumple satisfactoriamente\",\"Al no cumplir con este criterio, no es posible generar contribución sustancial\"))","v":"El primer criterio se cumple satisfactoriamente"},"Las tres condiciones deben cumplirse para argumentar que la actividad tiene contribución sustancial"]
["¿Esta evaluación considera tanto la variabilidad meteorológica actual, como el cambio climático futuro, incluidos los escenarios climáticos, así como la incertidumbre?",null,null,null,null,"Sí",{"$f":"IF(F51=\"Seleccione\",\"Por definir\",IF(F51=\"Sí\",\"El segundo criterio se cumple satisfactoriamente\",\"Al no cumplir con este criterio, no es posible generar contribución sustancial\"))","v":"El segundo criterio se cumple satisfactoriamente"}]
["¿Igualmente la evaluación se basa en un sólido análisis de los datos e información disponible sobre los distintos escenarios climáticos, y es coherente con la duración prevista de la actividad?",null,null,null,null,"Sí",{"$f":"IF(F52=\"Seleccione\",\"Por definir\",IF(F52=\"Sí\",\"El tercer criterio se cumple satisfactoriamente\",\"Al no cumplir con este criterio, no es posible generar contribución sustancial\"))","v":"El tercer criterio se cumple satisfactoriamente"}]
[{"$f":"IF(OR(F50=\"Seleccione\",F51=\"Seleccione\",F52=\"Seleccione\"),\"Por definir\",IF(OR(F50=\"No\",F51=\"No\",F52=\"No\"),\"La actividad no genera contribución sustancial\", \"La actividad sí contribuye sustancialmente a la sostenibilidad\"))","v":"La actividad sí contribuye sustancialmente a la sostenibilidad"}]
[]
["A2. Apoyo a la adaptación del sistema. "]
["La actividad económica y sus medidas de adaptación no afectan negativamente los esfuerzos de adaptación de otras personas, la naturaleza y los bienes. Selecciona las respuestas en las listas desplegables"]
["¿La actividad económica y sus medidas de adaptación no aumentan los riesgos de un impacto climático adverso sobre otras personas, la naturaleza y los bienes?",null,null,null,null,"Sí",{"$f":"IF(F57=\"Seleccione\",\"Por definir\",IF(F57=\"Sí\",\"El primer criterio se cumple satisfactoriamente\",\"Al no cumplir con este criterio, no es posible generar contribución sustancial\"))","v":"El primer criterio se cumple satisfactoriamente"},"Las dos condiciones deben cumplirse para argumentar que la actividad tiene contribución sustancial"]
["¿La actividad económica y sus medidas de adaptación son consistentes con los esfuerzos de adaptación a nivel sectorial, regional y/o nacional?",null,null,null,null,"Sí",{"$f":"IF(F58=\"Seleccione\",\"Por definir\",IF(F58=\"Sí\",\"El segundo criterio se cumple satisfactoriamente\",\"Al no cumplir con este criterio, no es posible generar contribución sustancial\"))","v":"El segundo criterio se cumple satisfactoriamente"}]
[{"$f":"IF(OR(F57=\"Seleccione\",F58=\"Seleccione\"),\"Por definir\",IF(OR(F57=\"No\",F58=\"No\"),\"La actividad no genera contribución sustancial\", \"La actividad sí contribuye sustancialmente a la sostenibilidad\"))","v":"La actividad sí contribuye sustancialmente a la sostenibilidad"}]
[]
["A3. Monitoreo de los resultados de adaptación."]
["En el contexto de la actividad evaluada, la reducción de los riesgos físicos se puede medir. Selecciona las respuestas en las listas desplegables"]
[" Los resultados de adaptación pueden ser monitoreados y medidos con base en indicadores. Considerando que los riesgos físicos evolucionan con el tiempo, el análisis de riesgos físicos debe llevarse a cabo con la frecuencia adecuada.  ¿Esto se evalúa dentro de la operación financiera y/o proyecto?",null,null,null,null,"Sí",{"$f":"IF(F63=\"Seleccione\",\"Por definir\",IF(F63=\"Sí\",\"La actividad sí contribuye sustancialmente a la sostenbilidad\",\"El proyecto no genera contribución sustancial\"))","v":"La actividad sí contribuye sustancialmente a la sostenbilidad"}]
[]
["B1. Apoyar a la adaptación de otras actividades económicas."]
["La actividad económica reduce el riesgo climático físico material en otras actividades económicas y/o aborda los obstáculos sistémicos para la adaptación. Las actividades que permiten la adaptación incluyen, pero no se limitan a, actividades que promueven una tecnología, un producto, una práctica, un proceso de gobernanza o usos innovadores de tecnologías, productos o prácticas existentes (incluidos los relacionados con las infraestructuras naturales). Además, eliminan las barreras de información, financieras, tecnológicas y de capacidad para la adaptación de otros. Selecciona las respuestas en las listas desplegables"]
["¿Se realiza una evaluación de los riesgos resultantes, con base en datos sólidos, tanto de la variabilidad  meteorológica actual como del cambio climático futuro, incluidos los escenarios climáticos, así como  la incertidumbre, que la actividad económica contribuirá a abordar?",null,null,null,null,"Sí",{"$f":"IF(F67=\"Seleccione\",\"Por definir\",IF(F67=\"Sí\",\"El primer criterio se cumple satisfactoriamente\",\"Al no cumplir con este criterio, no es posible generar contribución sustancial\"))","v":"El primer criterio se cumple satisfactoriamente"},"Las tres condiciones en caso de que apliquen deben cumplirse para argumentar que la actividad tiene contribución sustancial. La tercera opción podría no aplicar. En este caso se evaluaran las primeras dos cuestiones"]
["¿Se realiza una evaluación de la eficacia de la contribución de la actividad económica a la reducción de los riesgos físicos, teniendo en cuenta la escala de exposición y la vulnerabilidad a los mismos?",null,null,null,null,"Sí",{"$f":"IF(F68=\"Seleccione\",\"Por definir\",IF(F68=\"Sí\",\"El segundo criterio se cumple satisfactoriamente\",\"Al no cumplir con este criterio, no es posible generar contribución sustancial\"))","v":"El segundo criterio se cumple satisfactoriamente"}]
["En el caso de una infraestructura vinculada a una actividad que permita la adaptación, dicha infraestructura debe cumplir también los criterios de selección A1, A2 y A3. ¿Esto se cumple en el contexto del proyecto?",null,null,null,null,"Sí",{"$f":"IF(F69=\"Seleccione\",\"Por definir\",IF(F69=\"Sí\",\"El tercer criterio se cumple satisfactoriamente\",IF(F69=\"No aplica\",\"No aplica\",\"El proyecto no genera contribución sustancial\")))","v":"El tercer criterio se cumple satisfactoriamente"}]
[{"$f":"IF(OR(F67=\"Seleccione\",F68=\"Seleccione\",F69=\"Seleccione\"),\"Por definir\",IF(OR(F67=\"No\",F68=\"No\",F69=\"No\"),\"La actividad no genera contribución sustancial\",\"La actividad sí contribuye sustancialmente a la sostenibilidad\"))","v":"La actividad sí contribuye sustancialmente a la sostenibilidad"}]
[]
["236112. Edificación de vivienda multifamiliar (construcción de vivienda nueva)"]
["Responde las siguientes preguntas seleccionando una respuesta de la lista"]
[]
["1. La actividad que estás evaluando es una actividad adaptada o una actividad que facilita la adaptación?",null,null,"Actividad que facilita la adaptación e incluye desarrollo de infraestructura"]
[]
["¿Qué es una actividad adaptada?\nUna actividad económica se adapta a los riesgos climáticos físicos materiales, si integra medidas y/o soluciones para reducirlos, mientras garantiza que la actividad económica pueda funcionar bien en un clima cambiante. Estas actividades de adaptación se desarrollan a partir de la evaluación de riesgos actuales y futuros, ya sean climáticos, crónicos y/o agudos, así como la escala temporal y geográfica de la actividad económica."]
["¿Qué es una actividad que facilita la adaptación? \nUna actividad económica posibilita la adaptación si reduce el riesgo climático físico material y la vulnerabilidad en otras actividades económicas, comunidades, ecosistemas o ciudades, y/o aborda los obstáculos sistémicos a la adaptación. Esto es posible a través del uso de la tecnología y la creación de un producto o servicio especializado."]
[]
[]
["A1. Reducción de los riesgos climáticos físicos materiales."]
["La actividad económica debe reducir todos los riesgos climáticos físicos materiales para las actividades evaluadas, en la medida de lo posible y sobre la base del mejor esfuerzo. Selecciona las respuestas en las listas desplegables"]
["¿La actividad económica integra medidas destinadas a reducir, en la medida de lo posible y sobre la base del mejor esfuerzo, los riesgos climáticos físicos materiales para esa actividad, que han sido identificados mediante una evaluación de riesgos?",null,null,null,null,"Sí",{"$f":"IF(F83=\"Seleccione\",\"Por definir\",IF(F83=\"Sí\",\"El primer criterio se cumple satisfactoriamente\",\"Al no cumplir con este criterio, no es posible generar contribución sustancial\"))","v":"El primer criterio se cumple satisfactoriamente"},"Las tres condiciones deben cumplirse para argumentar que la actividad tiene contribución sustancial"]
["¿Esta evaluación considera tanto la variabilidad meteorológica actual, como el cambio climático futuro, incluidos los escenarios climáticos, así como la incertidumbre?",null,null,null,null,"Sí",{"$f":"IF(F84=\"Seleccione\",\"Por definir\",IF(F84=\"Sí\",\"El segundo criterio se cumple satisfactoriamente\",\"Al no cumplir con este criterio, no es posible generar contribución sustancial\"))","v":"El segundo criterio se cumple satisfactoriamente"}]
["¿Igualmente la evaluación se basa en un sólido análisis de los datos e información disponible sobre los distintos escenarios climáticos, y es coherente con la duración prevista de la actividad?",null,null,null,null,"Sí",{"$f":"IF(F85=\"Seleccione\",\"Por definir\",IF(F85=\"Sí\",\"El tercer criterio se cumple satisfactoriamente\",\"Al no cumplir con este criterio, no es posible generar contribución sustancial\"))","v":"El tercer criterio se cumple satisfactoriamente"}]
[{"$f":"IF(OR(F83=\"Seleccione\",F84=\"Seleccione\",F85=\"Seleccione\"),\"Por definir\",IF(OR(F83=\"No\",F84=\"No\",F85=\"No\"),\"La actividad no genera contribución sustancial\", \"La actividad sí contribuye sustancialmente a la sostenibilidad\"))","v":"La actividad sí contribuye sustancialmente a la sostenibilidad"}]
[]
["A2. Apoyo a la adaptación del sistema. "]
["La actividad económica y sus medidas de adaptación no afectan negativamente los esfuerzos de adaptación de otras personas, la naturaleza y los bienes. Selecciona las respuestas en las listas desplegables"]
["¿La actividad económica y sus medidas de adaptación no aumentan los riesgos de un impacto climático adverso sobre otras personas, la naturaleza y los bienes?",null,null,null,null,"Sí",{"$f":"IF(F90=\"Seleccione\",\"Por definir\",IF(F90=\"Sí\",\"El primer criterio se cumple satisfactoriamente\",\"Al no cumplir con este criterio, no es posible generar contribución sustancial\"))","v":"El primer criterio se cumple satisfactoriamente"},"Las dos condiciones deben cumplirse para argumentar que la actividad tiene contribución sustancial"]
["¿La actividad económica y sus medidas de adaptación son consistentes con los esfuerzos de adaptación a nivel sectorial, regional y/o nacional?",null,null,null,null,"Sí",{"$f":"IF(F91=\"Seleccione\",\"Por definir\",IF(F91=\"Sí\",\"El segundo criterio se cumple satisfactoriamente\",\"Al no cumplir con este criterio, no es posible generar contribución sustancial\"))","v":"El segundo criterio se cumple satisfactoriamente"}]
[{"$f":"IF(OR(F90=\"Seleccione\",F91=\"Seleccione\"),\"Por definir\",IF(OR(F90=\"No\",F91=\"No\"),\"La actividad no genera contribución sustancial\", \"La actividad sí contribuye sustancialmente a la sostenibilidad\"))","v":"La actividad sí contribuye sustancialmente a la sostenibilidad"}]
[]
["A3. Monitoreo de los resultados de adaptación."]
["En el contexto de la actividad evaluada, la reducción de los riesgos físicos se puede medir. Selecciona las respuestas en las listas desplegables"]
[" Los resultados de adaptación pueden ser monitoreados y medidos con base en indicadores. Considerando que los riesgos físicos evolucionan con el tiempo, el análisis de riesgos físicos debe llevarse a cabo con la frecuencia adecuada.  ¿Esto se evalúa dentro de la operación financiera y/o proyecto?",null,null,null,null,"Sí",{"$f":"IF(F96=\"Seleccione\",\"Por definir\",IF(F96=\"Sí\",\"La actividad sí contribuye sustancialmente a la sostenbilidad\",\"El proyecto no genera contribución sustancial\"))","v":"La actividad sí contribuye sustancialmente a la sostenbilidad"}]
[]
["B1. Apoyar a la adaptación de otras actividades económicas."]
["La actividad económica reduce el riesgo climático físico material en otras actividades económicas y/o aborda los obstáculos sistémicos para la adaptación. Las actividades que permiten la adaptación incluyen, pero no se limitan a, actividades que promueven una tecnología, un producto, una práctica, un proceso de gobernanza o usos innovadores de tecnologías, productos o prácticas existentes (incluidos los relacionados con las infraestructuras naturales). Además, eliminan las barreras de información, financieras, tecnológicas y de capacidad para la adaptación de otros. Selecciona las respuestas en las listas desplegables"]
["¿Se realiza una evaluación de los riesgos resultantes, con base en datos sólidos, tanto de la variabilidad  meteorológica actual como del cambio climático futuro, incluidos los escenarios climáticos, así como  la incertidumbre, que la actividad económica contribuirá a abordar?",null,null,null,null,"Sí",{"$f":"IF(F100=\"Seleccione\",\"Por definir\",IF(F100=\"Sí\",\"El primer criterio se cumple satisfactoriamente\",\"Al no cumplir con este criterio, no es posible generar contribución sustancial\"))","v":"El primer criterio se cumple satisfactoriamente"},"Las tres condiciones en caso de que apliquen deben cumplirse para argumentar que la actividad tiene contribución sustancial. La tercera opción podría no aplicar. En este caso se evaluaran las primeras dos cuestiones"]
["¿Se realiza una evaluación de la eficacia de la contribución de la actividad económica a la reducción de los riesgos físicos, teniendo en cuenta la escala de exposición y la vulnerabilidad a los mismos?",null,null,null,null,"Sí",{"$f":"IF(F101=\"Seleccione\",\"Por definir\",IF(F101=\"Sí\",\"El segundo criterio se cumple satisfactoriamente\",\"Al no cumplir con este criterio, no es posible generar contribución sustancial\"))","v":"El segundo criterio se cumple satisfactoriamente"}]
["En el caso de una infraestructura vinculada a una actividad que permita la adaptación, dicha infraestructura debe cumplir también los criterios de selección A1, A2 y A3. ¿Esto se cumple en el contexto del proyecto?",null,null,null,null,"Sí",{"$f":"IF(F102=\"Seleccione\",\"Por definir\",IF(F102=\"Sí\",\"El tercer criterio se cumple satisfactoriamente\",IF(F102=\"No aplica\",\"No aplica\",\"El proyecto no genera contribución sustancial\")))","v":"El tercer criterio se cumple satisfactoriamente"}]
[{"$f":"IF(OR(F100=\"Seleccione\",F101=\"Seleccione\",F102=\"Seleccione\"),\"Por definir\",IF(OR(F100=\"No\",F101=\"No\",F102=\"No\"),\"La actividad no genera contribución sustancial\",\"La actividad sí contribuye sustancialmente a la sostenibilidad\"))","v":"La actividad sí contribuye sustancialmente a la sostenibilidad"}]
[]
["236112. Edificación de vivienda multifamiliar (renovación de vivienda existente)"]
["Responde las siguientes preguntas seleccionando una respuesta de la lista"]
[]
["1. La actividad que estás evaluando es una actividad adaptada o una actividad que facilita la adaptación?",null,null,"Actividad que facilita la adaptación"]
[]
["¿Qué es una actividad adaptada?\nUna actividad económica se adapta a los riesgos climáticos físicos materiales, si integra medidas y/o soluciones para reducirlos, mientras garantiza que la actividad económica pueda funcionar bien en un clima cambiante. Estas actividades de adaptación se desarrollan a partir de la evaluación de riesgos actuales y futuros, ya sean climáticos, crónicos y/o agudos, así como la escala temporal y geográfica de la actividad económica."]
["¿Qué es una actividad que facilita la adaptación? \nUna actividad económica posibilita la adaptación si reduce el riesgo climático físico material y la vulnerabilidad en otras actividades económicas, comunidades, ecosistemas o ciudades, y/o aborda los obstáculos sistémicos a la adaptación. Esto es posible a través del uso de la tecnología y la creación de un producto o servicio especializado."]
[]
[]
["A1. Reducción de los riesgos climáticos físicos materiales."]
["La actividad económica debe reducir todos los riesgos climáticos físicos materiales para las actividades evaluadas, en la medida de lo posible y sobre la base del mejor esfuerzo. Selecciona las respuestas en las listas desplegables"]
["¿La actividad económica integra medidas destinadas a reducir, en la medida de lo posible y sobre la base del mejor esfuerzo, los riesgos climáticos físicos materiales para esa actividad, que han sido identificados mediante una evaluación de riesgos?",null,null,null,null,"Sí",{"$f":"IF(F116=\"Seleccione\",\"Por definir\",IF(F116=\"Sí\",\"El primer criterio se cumple satisfactoriamente\",\"Al no cumplir con este criterio, no es posible generar contribución sustancial\"))","v":"El primer criterio se cumple satisfactoriamente"},"Las tres condiciones deben cumplirse para argumentar que la actividad tiene contribución sustancial"]
["¿Esta evaluación considera tanto la variabilidad meteorológica actual, como el cambio climático futuro, incluidos los escenarios climáticos, así como la incertidumbre?",null,null,null,null,"Sí",{"$f":"IF(F117=\"Seleccione\",\"Por definir\",IF(F117=\"Sí\",\"El segundo criterio se cumple satisfactoriamente\",\"Al no cumplir con este criterio, no es posible generar contribución sustancial\"))","v":"El segundo criterio se cumple satisfactoriamente"}]
["¿Igualmente la evaluación se basa en un sólido análisis de los datos e información disponible sobre los distintos escenarios climáticos, y es coherente con la duración prevista de la actividad?",null,null,null,null,"Sí",{"$f":"IF(F118=\"Seleccione\",\"Por definir\",IF(F118=\"Sí\",\"El tercer criterio se cumple satisfactoriamente\",\"Al no cumplir con este criterio, no es posible generar contribución sustancial\"))","v":"El tercer criterio se cumple satisfactoriamente"}]
[{"$f":"IF(OR(F116=\"Seleccione\",F117=\"Seleccione\",F118=\"Seleccione\"),\"Por definir\",IF(OR(F116=\"No\",F117=\"No\",F118=\"No\"),\"La actividad no genera contribución sustancial\", \"La actividad sí contribuye sustancialmente a la sostenibilidad\"))","v":"La actividad sí contribuye sustancialmente a la sostenibilidad"}]
[]
["A2. Apoyo a la adaptación del sistema. "]
["La actividad económica y sus medidas de adaptación no afectan negativamente los esfuerzos de adaptación de otras personas, la naturaleza y los bienes. Selecciona las respuestas en las listas desplegables"]
["¿La actividad económica y sus medidas de adaptación no aumentan los riesgos de un impacto climático adverso sobre otras personas, la naturaleza y los bienes?",null,null,null,null,"Sí",{"$f":"IF(F123=\"Seleccione\",\"Por definir\",IF(F123=\"Sí\",\"El primer criterio se cumple satisfactoriamente\",\"Al no cumplir con este criterio, no es posible generar contribución sustancial\"))","v":"El primer criterio se cumple satisfactoriamente"},"Las dos condiciones deben cumplirse para argumentar que la actividad tiene contribución sustancial"]
["¿La actividad económica y sus medidas de adaptación son consistentes con los esfuerzos de adaptación a nivel sectorial, regional y/o nacional?",null,null,null,null,"Sí",{"$f":"IF(F124=\"Seleccione\",\"Por definir\",IF(F124=\"Sí\",\"El segundo criterio se cumple satisfactoriamente\",\"Al no cumplir con este criterio, no es posible generar contribución sustancial\"))","v":"El segundo criterio se cumple satisfactoriamente"}]
[{"$f":"IF(OR(F123=\"Seleccione\",F124=\"Seleccione\"),\"Por definir\",IF(OR(F123=\"No\",F124=\"No\"),\"La actividad no genera contribución sustancial\", \"La actividad sí contribuye sustancialmente a la sostenibilidad\"))","v":"La actividad sí contribuye sustancialmente a la sostenibilidad"}]
[]
["A3. Monitoreo de los resultados de adaptación."]
["En el contexto de la actividad evaluada, la reducción de los riesgos físicos se puede medir. Selecciona las respuestas en las listas desplegables"]
[" Los resultados de adaptación pueden ser monitoreados y medidos con base en indicadores. Considerando que los riesgos físicos evolucionan con el tiempo, el análisis de riesgos físicos debe llevarse a cabo con la frecuencia adecuada.  ¿Esto se evalúa dentro de la operación financiera y/o proyecto?",null,null,null,null,"Sí",{"$f":"IF(F129=\"Seleccione\",\"Por definir\",IF(F129=\"Sí\",\"La actividad sí contribuye sustancialmente a la sostenbilidad\",\"El proyecto no genera contribución sustancial\"))","v":"La actividad sí contribuye sustancialmente a la sostenbilidad"}]
[]
["B1. Apoyar a la adaptación de otras actividades económicas."]
["La actividad económica reduce el riesgo climático físico material en otras actividades económicas y/o aborda los obstáculos sistémicos para la adaptación. Las actividades que permiten la adaptación incluyen, pero no se limitan a, actividades que promueven una tecnología, un producto, una práctica, un proceso de gobernanza o usos innovadores de tecnologías, productos o prácticas existentes (incluidos los relacionados con las infraestructuras naturales). Además, eliminan las barreras de información, financieras, tecnológicas y de capacidad para la adaptación de otros. Selecciona las respuestas en las listas desplegables"]
["¿Se realiza una evaluación de los riesgos resultantes, con base en datos sólidos, tanto de la variabilidad  meteorológica actual como del cambio climático futuro, incluidos los escenarios climáticos, así como  la incertidumbre, que la actividad económica contribuirá a abordar?",null,null,null,null,"Sí",{"$f":"IF(F133=\"Seleccione\",\"Por definir\",IF(F133=\"Sí\",\"El primer criterio se cumple satisfactoriamente\",\"Al no cumplir con este criterio, no es posible generar contribución sustancial\"))","v":"El primer criterio se cumple satisfactoriamente"},"Las tres condiciones en caso de que apliquen deben cumplirse para argumentar que la actividad tiene contribución sustancial. La tercera opción podría no aplicar. En este caso se evaluaran las primeras dos cuestiones"]
["¿Se realiza una evaluación de la eficacia de la contribución de la actividad económica a la reducción de los riesgos físicos, teniendo en cuenta la escala de exposición y la vulnerabilidad a los mismos?",null,null,null,null,"Sí",{"$f":"IF(F134=\"Seleccione\",\"Por definir\",IF(F134=\"Sí\",\"El segundo criterio se cumple satisfactoriamente\",\"Al no cumplir con este criterio, no es posible generar contribución sustancial\"))","v":"El segundo criterio se cumple satisfactoriamente"}]
["En el caso de una infraestructura vinculada a una actividad que permita la adaptación, dicha infraestructura debe cumplir también los criterios de selección A1, A2 y A3. ¿Esto se cumple en el contexto del proyecto?",null,null,null,null,"Sí",{"$f":"IF(F135=\"Seleccione\",\"Por definir\",IF(F135=\"Sí\",\"El tercer criterio se cumple satisfactoriamente\",IF(F135=\"No aplica\",\"No aplica\",\"El proyecto no genera contribución sustancial\")))","v":"El tercer criterio se cumple satisfactoriamente"}]
[{"$f":"IF(OR(F133=\"Seleccione\",F134=\"Seleccione\",F135=\"Seleccione\"),\"Por definir\",IF(OR(F133=\"No\",F134=\"No\",F135=\"No\"),\"La actividad no genera contribución sustancial\",\"La actividad sí contribuye sustancialmente a la sostenibilidad\"))","v":"La actividad sí contribuye sustancialmente a la sostenibilidad"}]
[]
["236211. Edificación de naves y plantas industriales, excepto la supervisión"]
["Responde las siguientes preguntas seleccionando una respuesta de la lista"]
[]
["1. La actividad que estás evaluando es una actividad adaptada o una actividad que facilita la adaptación?",null,null,"Actividad que facilita la adaptación e incluye desarrollo de infraestructura"]
[]
["¿Qué es una actividad adaptada?\nUna actividad económica se adapta a los riesgos climáticos físicos materiales, si integra medidas y/o soluciones para reducirlos, mientras garantiza que la actividad económica pueda funcionar bien en un clima cambiante. Estas actividades de adaptación se desarrollan a partir de la evaluación de riesgos actuales y futuros, ya sean climáticos, crónicos y/o agudos, así como la escala temporal y geográfica de la actividad económica."]
["¿Qué es una actividad que facilita la adaptación? \nUna actividad económica posibilita la adaptación si reduce el riesgo climático físico material y la vulnerabilidad en otras actividades económicas, comunidades, ecosistemas o ciudades, y/o aborda los obstáculos sistémicos a la adaptación. Esto es posible a través del uso de la tecnología y la creación de un producto o servicio especializado."]
[]
[]
["A1. Reducción de los riesgos climáticos físicos materiales."]
["La actividad económica debe reducir todos los riesgos climáticos físicos materiales para las actividades evaluadas, en la medida de lo posible y sobre la base del mejor esfuerzo. Selecciona las respuestas en las listas desplegables"]
["¿La actividad económica integra medidas destinadas a reducir, en la medida de lo posible y sobre la base del mejor esfuerzo, los riesgos climáticos físicos materiales para esa actividad, que han sido identificados mediante una evaluación de riesgos?",null,null,null,null,"Sí",{"$f":"IF(F149=\"Seleccione\",\"Por definir\",IF(F149=\"Sí\",\"El primer criterio se cumple satisfactoriamente\",\"Al no cumplir con este criterio, no es posible generar contribución sustancial\"))","v":"El primer criterio se cumple satisfactoriamente"},"Las tres condiciones deben cumplirse para argumentar que la actividad tiene contribución sustancial"]
["¿Esta evaluación considera tanto la variabilidad meteorológica actual, como el cambio climático futuro, incluidos los escenarios climáticos, así como la incertidumbre?",null,null,null,null,"Sí",{"$f":"IF(F150=\"Seleccione\",\"Por definir\",IF(F150=\"Sí\",\"El segundo criterio se cumple satisfactoriamente\",\"Al no cumplir con este criterio, no es posible generar contribución sustancial\"))","v":"El segundo criterio se cumple satisfactoriamente"}]
["¿Igualmente la evaluación se basa en un sólido análisis de los datos e información disponible sobre los distintos escenarios climáticos, y es coherente con la duración prevista de la actividad?",null,null,null,null,"Sí",{"$f":"IF(F151=\"Seleccione\",\"Por definir\",IF(F151=\"Sí\",\"El tercer criterio se cumple satisfactoriamente\",\"Al no cumplir con este criterio, no es posible generar contribución sustancial\"))","v":"El tercer criterio se cumple satisfactoriamente"}]
[{"$f":"IF(OR(F149=\"Seleccione\",F150=\"Seleccione\",F151=\"Seleccione\"),\"Por definir\",IF(OR(F149=\"No\",F150=\"No\",F151=\"No\"),\"La actividad no genera contribución sustancial\", \"La actividad sí contribuye sustancialmente a la sostenibilidad\"))","v":"La actividad sí contribuye sustancialmente a la sostenibilidad"}]
[]
["A2. Apoyo a la adaptación del sistema. "]
["La actividad económica y sus medidas de adaptación no afectan negativamente los esfuerzos de adaptación de otras personas, la naturaleza y los bienes. Selecciona las respuestas en las listas desplegables"]
["¿La actividad económica y sus medidas de adaptación no aumentan los riesgos de un impacto climático adverso sobre otras personas, la naturaleza y los bienes?",null,null,null,null,"Sí",{"$f":"IF(F156=\"Seleccione\",\"Por definir\",IF(F156=\"Sí\",\"El primer criterio se cumple satisfactoriamente\",\"Al no cumplir con este criterio, no es posible generar contribución sustancial\"))","v":"El primer criterio se cumple satisfactoriamente"},"Las dos condiciones deben cumplirse para argumentar que la actividad tiene contribución sustancial"]
["¿La actividad económica y sus medidas de adaptación son consistentes con los esfuerzos de adaptación a nivel sectorial, regional y/o nacional?",null,null,null,null,"Sí",{"$f":"IF(F157=\"Seleccione\",\"Por definir\",IF(F157=\"Sí\",\"El segundo criterio se cumple satisfactoriamente\",\"Al no cumplir con este criterio, no es posible generar contribución sustancial\"))","v":"El segundo criterio se cumple satisfactoriamente"}]
[{"$f":"IF(OR(F156=\"Seleccione\",F157=\"Seleccione\"),\"Por definir\",IF(OR(F156=\"No\",F157=\"No\"),\"La actividad no genera contribución sustancial\", \"La actividad sí contribuye sustancialmente a la sostenibilidad\"))","v":"La actividad sí contribuye sustancialmente a la sostenibilidad"}]
[]
["A3. Monitoreo de los resultados de adaptación."]
["En el contexto de la actividad evaluada, la reducción de los riesgos físicos se puede medir. Selecciona las respuestas en las listas desplegables"]
[" Los resultados de adaptación pueden ser monitoreados y medidos con base en indicadores. Considerando que los riesgos físicos evolucionan con el tiempo, el análisis de riesgos físicos debe llevarse a cabo con la frecuencia adecuada.  ¿Esto se evalúa dentro de la operación financiera y/o proyecto?",null,null,null,null,"Sí",{"$f":"IF(F162=\"Seleccione\",\"Por definir\",IF(F162=\"Sí\",\"La actividad sí contribuye sustancialmente a la sostenbilidad\",\"El proyecto no genera contribución sustancial\"))","v":"La actividad sí contribuye sustancialmente a la sostenbilidad"}]
[]
["B1. Apoyar a la adaptación de otras actividades económicas."]
["La actividad económica reduce el riesgo climático físico material en otras actividades económicas y/o aborda los obstáculos sistémicos para la adaptación. Las actividades que permiten la adaptación incluyen, pero no se limitan a, actividades que promueven una tecnología, un producto, una práctica, un proceso de gobernanza o usos innovadores de tecnologías, productos o prácticas existentes (incluidos los relacionados con las infraestructuras naturales). Además, eliminan las barreras de información, financieras, tecnológicas y de capacidad para la adaptación de otros. Selecciona las respuestas en las listas desplegables"]
["¿Se realiza una evaluación de los riesgos resultantes, con base en datos sólidos, tanto de la variabilidad  meteorológica actual como del cambio climático futuro, incluidos los escenarios climáticos, así como  la incertidumbre, que la actividad económica contribuirá a abordar?",null,null,null,null,"Sí",{"$f":"IF(F166=\"Seleccione\",\"Por definir\",IF(F166=\"Sí\",\"El primer criterio se cumple satisfactoriamente\",\"Al no cumplir con este criterio, no es posible generar contribución sustancial\"))","v":"El primer criterio se cumple satisfactoriamente"},"Las tres condiciones en caso de que apliquen deben cumplirse para argumentar que la actividad tiene contribución sustancial. La tercera opción podría no aplicar. En este caso se evaluaran las primeras dos cuestiones"]
["¿Se realiza una evaluación de la eficacia de la contribución de la actividad económica a la reducción de los riesgos físicos, teniendo en cuenta la escala de exposición y la vulnerabilidad a los mismos?",null,null,null,null,"Sí",{"$f":"IF(F167=\"Seleccione\",\"Por definir\",IF(F167=\"Sí\",\"El segundo criterio se cumple satisfactoriamente\",\"Al no cumplir con este criterio, no es posible generar contribución sustancial\"))","v":"El segundo criterio se cumple satisfactoriamente"}]
["En el caso de una infraestructura vinculada a una actividad que permita la adaptación, dicha infraestructura debe cumplir también los criterios de selección A1, A2 y A3. ¿Esto se cumple en el contexto del proyecto?",null,null,null,null,"Sí",{"$f":"IF(F168=\"Seleccione\",\"Por definir\",IF(F168=\"Sí\",\"El tercer criterio se cumple satisfactoriamente\",IF(F168=\"No aplica\",\"No aplica\",\"El proyecto no genera contribución sustancial\")))","v":"El tercer criterio se cumple satisfactoriamente"}]
[{"$f":"IF(OR(F166=\"Seleccione\",F167=\"Seleccione\",F168=\"Seleccione\"),\"Por definir\",IF(OR(F166=\"No\",F167=\"No\",F168=\"No\"),\"La actividad no genera contribución sustancial\",\"La actividad sí contribuye sustancialmente a la sostenibilidad\"))","v":"La actividad sí contribuye sustancialmente a la sostenibilidad"}]
[]
["236221. Edificación de inmuebles comerciales y de servicios, excepto la supervisión (construcción de nuevos inmuebles)"]
["Responde las siguientes preguntas seleccionando una respuesta de la lista"]
[]
["1. La actividad que estás evaluando es una actividad adaptada o una actividad que facilita la adaptación?",null,null,"Actividad que facilita la adaptación e incluye desarrollo de infraestructura"]
[]
["¿Qué es una actividad adaptada?\nUna actividad económica se adapta a los riesgos climáticos físicos materiales, si integra medidas y/o soluciones para reducirlos, mientras garantiza que la actividad económica pueda funcionar bien en un clima cambiante. Estas actividades de adaptación se desarrollan a partir de la evaluación de riesgos actuales y futuros, ya sean climáticos, crónicos y/o agudos, así como la escala temporal y geográfica de la actividad económica."]
["¿Qué es una actividad que facilita la adaptación? \nUna actividad económica posibilita la adaptación si reduce el riesgo climático físico material y la vulnerabilidad en otras actividades económicas, comunidades, ecosistemas o ciudades, y/o aborda los obstáculos sistémicos a la adaptación. Esto es posible a través del uso de la tecnología y la creación de un producto o servicio especializado."]
[]
[]
["A1. Reducción de los riesgos climáticos físicos materiales."]
["La actividad económica debe reducir todos los riesgos climáticos físicos materiales para las actividades evaluadas, en la medida de lo posible y sobre la base del mejor esfuerzo. Selecciona las respuestas en las listas desplegables"]
["¿La actividad económica integra medidas destinadas a reducir, en la medida de lo posible y sobre la base del mejor esfuerzo, los riesgos climáticos físicos materiales para esa actividad, que han sido identificados mediante una evaluación de riesgos?",null,null,null,null,"Sí",{"$f":"IF(F182=\"Seleccione\",\"Por definir\",IF(F182=\"Sí\",\"El primer criterio se cumple satisfactoriamente\",\"Al no cumplir con este criterio, no es posible generar contribución sustancial\"))","v":"El primer criterio se cumple satisfactoriamente"},"Las tres condiciones deben cumplirse para argumentar que la actividad tiene contribución sustancial"]
["¿Esta evaluación considera tanto la variabilidad meteorológica actual, como el cambio climático futuro, incluidos los escenarios climáticos, así como la incertidumbre?",null,null,null,null,"Sí",{"$f":"IF(F183=\"Seleccione\",\"Por definir\",IF(F183=\"Sí\",\"El segundo criterio se cumple satisfactoriamente\",\"Al no cumplir con este criterio, no es posible generar contribución sustancial\"))","v":"El segundo criterio se cumple satisfactoriamente"}]
["¿Igualmente la evaluación se basa en un sólido análisis de los datos e información disponible sobre los distintos escenarios climáticos, y es coherente con la duración prevista de la actividad?",null,null,null,null,"Sí",{"$f":"IF(F184=\"Seleccione\",\"Por definir\",IF(F184=\"Sí\",\"El tercer criterio se cumple satisfactoriamente\",\"Al no cumplir con este criterio, no es posible generar contribución sustancial\"))","v":"El tercer criterio se cumple satisfactoriamente"}]
[{"$f":"IF(OR(F182=\"Seleccione\",F183=\"Seleccione\",F184=\"Seleccione\"),\"Por definir\",IF(OR(F182=\"No\",F183=\"No\",F184=\"No\"),\"La actividad no genera contribución sustancial\", \"La actividad sí contribuye sustancialmente a la sostenibilidad\"))","v":"La actividad sí contribuye sustancialmente a la sostenibilidad"}]
[]
["A2. Apoyo a la adaptación del sistema. "]
["La actividad económica y sus medidas de adaptación no afectan negativamente los esfuerzos de adaptación de otras personas, la naturaleza y los bienes. Selecciona las respuestas en las listas desplegables"]
["¿La actividad económica y sus medidas de adaptación no aumentan los riesgos de un impacto climático adverso sobre otras personas, la naturaleza y los bienes?",null,null,null,null,"Sí",{"$f":"IF(F189=\"Seleccione\",\"Por definir\",IF(F189=\"Sí\",\"El primer criterio se cumple satisfactoriamente\",\"Al no cumplir con este criterio, no es posible generar contribución sustancial\"))","v":"El primer criterio se cumple satisfactoriamente"},"Las dos condiciones deben cumplirse para argumentar que la actividad tiene contribución sustancial"]
["¿La actividad económica y sus medidas de adaptación son consistentes con los esfuerzos de adaptación a nivel sectorial, regional y/o nacional?",null,null,null,null,"Sí",{"$f":"IF(F190=\"Seleccione\",\"Por definir\",IF(F190=\"Sí\",\"El segundo criterio se cumple satisfactoriamente\",\"Al no cumplir con este criterio, no es posible generar contribución sustancial\"))","v":"El segundo criterio se cumple satisfactoriamente"}]
[{"$f":"IF(OR(F189=\"Seleccione\",F190=\"Seleccione\"),\"Por definir\",IF(OR(F189=\"No\",F190=\"No\"),\"La actividad no genera contribución sustancial\", \"La actividad sí contribuye sustancialmente a la sostenibilidad\"))","v":"La actividad sí contribuye sustancialmente a la sostenibilidad"}]
[]
["A3. Monitoreo de los resultados de adaptación."]
["En el contexto de la actividad evaluada, la reducción de los riesgos físicos se puede medir. Selecciona las respuestas en las listas desplegables"]
[" Los resultados de adaptación pueden ser monitoreados y medidos con base en indicadores. Considerando que los riesgos físicos evolucionan con el tiempo, el análisis de riesgos físicos debe llevarse a cabo con la frecuencia adecuada.  ¿Esto se evalúa dentro de la operación financiera y/o proyecto?",null,null,null,null,"Sí",{"$f":"IF(F195=\"Seleccione\",\"Por definir\",IF(F195=\"Sí\",\"La actividad sí contribuye sustancialmente a la sostenbilidad\",\"El proyecto no genera contribución sustancial\"))","v":"La actividad sí contribuye sustancialmente a la sostenbilidad"}]
[]
["B1. Apoyar a la adaptación de otras actividades económicas."]
["La actividad económica reduce el riesgo climático físico material en otras actividades económicas y/o aborda los obstáculos sistémicos para la adaptación. Las actividades que permiten la adaptación incluyen, pero no se limitan a, actividades que promueven una tecnología, un producto, una práctica, un proceso de gobernanza o usos innovadores de tecnologías, productos o prácticas existentes (incluidos los relacionados con las infraestructuras naturales). Además, eliminan las barreras de información, financieras, tecnológicas y de capacidad para la adaptación de otros. Selecciona las respuestas en las listas desplegables"]
["¿Se realiza una evaluación de los riesgos resultantes, con base en datos sólidos, tanto de la variabilidad  meteorológica actual como del cambio climático futuro, incluidos los escenarios climáticos, así como  la incertidumbre, que la actividad económica contribuirá a abordar?",null,null,null,null,"Sí",{"$f":"IF(F199=\"Seleccione\",\"Por definir\",IF(F199=\"Sí\",\"El primer criterio se cumple satisfactoriamente\",\"Al no cumplir con este criterio, no es posible generar contribución sustancial\"))","v":"El primer criterio se cumple satisfactoriamente"},"Las tres condiciones en caso de que apliquen deben cumplirse para argumentar que la actividad tiene contribución sustancial. La tercera opción podría no aplicar. En este caso se evaluaran las primeras dos cuestiones"]
["¿Se realiza una evaluación de la eficacia de la contribución de la actividad económica a la reducción de los riesgos físicos, teniendo en cuenta la escala de exposición y la vulnerabilidad a los mismos?",null,null,null,null,"Sí",{"$f":"IF(F200=\"Seleccione\",\"Por definir\",IF(F200=\"Sí\",\"El segundo criterio se cumple satisfactoriamente\",\"Al no cumplir con este criterio, no es posible generar contribución sustancial\"))","v":"El segundo criterio se cumple satisfactoriamente"}]
["En el caso de una infraestructura vinculada a una actividad que permita la adaptación, dicha infraestructura debe cumplir también los criterios de selección A1, A2 y A3. ¿Esto se cumple en el contexto del proyecto?",null,null,null,null,"Sí",{"$f":"IF(F201=\"Seleccione\",\"Por definir\",IF(F201=\"Sí\",\"El tercer criterio se cumple satisfactoriamente\",IF(F201=\"No aplica\",\"No aplica\",\"El proyecto no genera contribución sustancial\")))","v":"El tercer criterio se cumple satisfactoriamente"}]
[{"$f":"IF(OR(F199=\"Seleccione\",F200=\"Seleccione\",F201=\"Seleccione\"),\"Por definir\",IF(OR(F199=\"No\",F200=\"No\",F201=\"No\"),\"La actividad no genera contribución sustancial\",\"La actividad sí contribuye sustancialmente a la sostenibilidad\"))","v":"La actividad sí contribuye sustancialmente a la sostenibilidad"}]
[]
["236221. Edificación de inmuebles comerciales y de servicios, excepto la supervisión (renovación de inmuebles)"]
["Responde las siguientes preguntas seleccionando una respuesta de la lista"]
[]
["1. La actividad que estás evaluando es una actividad adaptada o una actividad que facilita la adaptación?",null,null,"Actividad que facilita la adaptación e incluye desarrollo de infraestructura"]
[]
["¿Qué es una actividad adaptada?\nUna actividad económica se adapta a los riesgos climáticos físicos materiales, si integra medidas y/o soluciones para reducirlos, mientras garantiza que la actividad económica pueda funcionar bien en un clima cambiante. Estas actividades de adaptación se desarrollan a partir de la evaluación de riesgos actuales y futuros, ya sean climáticos, crónicos y/o agudos, así como la escala temporal y geográfica de la actividad económica."]
["¿Qué es una actividad que facilita la adaptación? \nUna actividad económica posibilita la adaptación si reduce el riesgo climático físico material y la vulnerabilidad en otras actividades económicas, comunidades, ecosistemas o ciudades, y/o aborda los obstáculos sistémicos a la adaptación. Esto es posible a través del uso de la tecnología y la creación de un producto o servicio especializado."]
[]
[]
["A1. Reducción de los riesgos climáticos físicos materiales."]
["La actividad económica debe reducir todos los riesgos climáticos físicos materiales para las actividades evaluadas, en la medida de lo posible y sobre la base del mejor esfuerzo. Selecciona las respuestas en las listas desplegables"]
["¿La actividad económica integra medidas destinadas a reducir, en la medida de lo posible y sobre la base del mejor esfuerzo, los riesgos climáticos físicos materiales para esa actividad, que han sido identificados mediante una evaluación de riesgos?",null,null,null,null,"Sí",{"$f":"IF(F215=\"Seleccione\",\"Por definir\",IF(F215=\"Sí\",\"El primer criterio se cumple satisfactoriamente\",\"Al no cumplir con este criterio, no es posible generar contribución sustancial\"))","v":"El primer criterio se cumple satisfactoriamente"},"Las tres condiciones deben cumplirse para argumentar que la actividad tiene contribución sustancial"]
["¿Esta evaluación considera tanto la variabilidad meteorológica actual, como el cambio climático futuro, incluidos los escenarios climáticos, así como la incertidumbre?",null,null,null,null,"Sí",{"$f":"IF(F216=\"Seleccione\",\"Por definir\",IF(F216=\"Sí\",\"El segundo criterio se cumple satisfactoriamente\",\"Al no cumplir con este criterio, no es posible generar contribución sustancial\"))","v":"El segundo criterio se cumple satisfactoriamente"}]
["¿Igualmente la evaluación se basa en un sólido análisis de los datos e información disponible sobre los distintos escenarios climáticos, y es coherente con la duración prevista de la actividad?",null,null,null,null,"Sí",{"$f":"IF(F217=\"Seleccione\",\"Por definir\",IF(F217=\"Sí\",\"El tercer criterio se cumple satisfactoriamente\",\"Al no cumplir con este criterio, no es posible generar contribución sustancial\"))","v":"El tercer criterio se cumple satisfactoriamente"}]
[{"$f":"IF(OR(F215=\"Seleccione\",F216=\"Seleccione\",F217=\"Seleccione\"),\"Por definir\",IF(OR(F215=\"No\",F216=\"No\",F217=\"No\"),\"La actividad no genera contribución sustancial\", \"La actividad sí contribuye sustancialmente a la sostenibilidad\"))","v":"La actividad sí contribuye sustancialmente a la sostenibilidad"}]
[]
["A2. Apoyo a la adaptación del sistema. "]
["La actividad económica y sus medidas de adaptación no afectan negativamente los esfuerzos de adaptación de otras personas, la naturaleza y los bienes. Selecciona las respuestas en las listas desplegables"]
["¿La actividad económica y sus medidas de adaptación no aumentan los riesgos de un impacto climático adverso sobre otras personas, la naturaleza y los bienes?",null,null,null,null,"Sí",{"$f":"IF(F222=\"Seleccione\",\"Por definir\",IF(F222=\"Sí\",\"El primer criterio se cumple satisfactoriamente\",\"Al no cumplir con este criterio, no es posible generar contribución sustancial\"))","v":"El primer criterio se cumple satisfactoriamente"},"Las dos condiciones deben cumplirse para argumentar que la actividad tiene contribución sustancial"]
["¿La actividad económica y sus medidas de adaptación son consistentes con los esfuerzos de adaptación a nivel sectorial, regional y/o nacional?",null,null,null,null,"Sí",{"$f":"IF(F223=\"Seleccione\",\"Por definir\",IF(F223=\"Sí\",\"El segundo criterio se cumple satisfactoriamente\",\"Al no cumplir con este criterio, no es posible generar contribución sustancial\"))","v":"El segundo criterio se cumple satisfactoriamente"}]
[{"$f":"IF(OR(F222=\"Seleccione\",F223=\"Seleccione\"),\"Por definir\",IF(OR(F222=\"No\",F223=\"No\"),\"La actividad no genera contribución sustancial\", \"La actividad sí contribuye sustancialmente a la sostenibilidad\"))","v":"La actividad sí contribuye sustancialmente a la sostenibilidad"}]
[]
["A3. Monitoreo de los resultados de adaptación."]
["En el contexto de la actividad evaluada, la reducción de los riesgos físicos se puede medir. Selecciona las respuestas en las listas desplegables"]
[" Los resultados de adaptación pueden ser monitoreados y medidos con base en indicadores. Considerando que los riesgos físicos evolucionan con el tiempo, el análisis de riesgos físicos debe llevarse a cabo con la frecuencia adecuada.  ¿Esto se evalúa dentro de la operación financiera y/o proyecto?",null,null,null,null,"Sí",{"$f":"IF(F228=\"Seleccione\",\"Por definir\",IF(F228=\"Sí\",\"La actividad sí contribuye sustancialmente a la sostenbilidad\",\"El proyecto no genera contribución sustancial\"))","v":"La actividad sí contribuye sustancialmente a la sostenbilidad"}]
[]
["B1. Apoyar a la adaptación de otras actividades económicas."]
["La actividad económica reduce el riesgo climático físico material en otras actividades económicas y/o aborda los obstáculos sistémicos para la adaptación. Las actividades que permiten la adaptación incluyen, pero no se limitan a, actividades que promueven una tecnología, un producto, una práctica, un proceso de gobernanza o usos innovadores de tecnologías, productos o prácticas existentes (incluidos los relacionados con las infraestructuras naturales). Además, eliminan las barreras de información, financieras, tecnológicas y de capacidad para la adaptación de otros. Selecciona las respuestas en las listas desplegables"]
["¿Se realiza una evaluación de los riesgos resultantes, con base en datos sólidos, tanto de la variabilidad  meteorológica actual como del cambio climático futuro, incluidos los escenarios climáticos, así como  la incertidumbre, que la actividad económica contribuirá a abordar?",null,null,null,null,"Sí",{"$f":"IF(F232=\"Seleccione\",\"Por definir\",IF(F232=\"Sí\",\"El primer criterio se cumple satisfactoriamente\",\"Al no cumplir con este criterio, no es posible generar contribución sustancial\"))","v":"El primer criterio se cumple satisfactoriamente"},"Las tres condiciones en caso de que apliquen deben cumplirse para argumentar que la actividad tiene contribución sustancial. La tercera opción podría no aplicar. En este caso se evaluaran las primeras dos cuestiones"]
["¿Se realiza una evaluación de la eficacia de la contribución de la actividad económica a la reducción de los riesgos físicos, teniendo en cuenta la escala de exposición y la vulnerabilidad a los mismos?",null,null,null,null,"Sí",{"$f":"IF(F233=\"Seleccione\",\"Por definir\",IF(F233=\"Sí\",\"El segundo criterio se cumple satisfactoriamente\",\"Al no cumplir con este criterio, no es posible generar contribución sustancial\"))","v":"El segundo criterio se cumple satisfactoriamente"}]
["En el caso de una infraestructura vinculada a una actividad que permita la adaptación, dicha infraestructura debe cumplir también los criterios de selección A1, A2 y A3. ¿Esto se cumple en el contexto del proyecto?",null,null,null,null,"Sí",{"$f":"IF(F234=\"Seleccione\",\"Por definir\",IF(F234=\"Sí\",\"El tercer criterio se cumple satisfactoriamente\",IF(F234=\"No aplica\",\"No aplica\",\"El proyecto no genera contribución sustancial\")))","v":"El tercer criterio se cumple satisfactoriamente"}]
[{"$f":"IF(OR(F232=\"Seleccione\",F233=\"Seleccione\",F234=\"Seleccione\"),\"Por definir\",IF(OR(F232=\"No\",F233=\"No\",F234=\"No\"),\"La actividad no genera contribución sustancial\",\"La actividad sí contribuye sustancialmente a la sostenibilidad\"))","v":"La actividad sí contribuye sustancialmente a la sostenibilidad"}]
[]
["238222. Instalaciones de sistemas de aire acondicionado y calefacción"]
["Responde las siguientes preguntas seleccionando una respuesta de la lista"]
[]
["1. La actividad que estás evaluando es una actividad adaptada o una actividad que facilita la adaptación?",null,null,"Actividad que facilita la adaptación e incluye desarrollo de infraestructura"]
[]
["¿Qué es una actividad adaptada?\nUna actividad económica se adapta a los riesgos climáticos físicos materiales, si integra medidas y/o soluciones para reducirlos, mientras garantiza que la actividad económica pueda funcionar bien en un clima cambiante. Estas actividades de adaptación se desarrollan a partir de la evaluación de riesgos actuales y futuros, ya sean climáticos, crónicos y/o agudos, así como la escala temporal y geográfica de la actividad económica."]
["¿Qué es una actividad que facilita la adaptación? \nUna actividad económica posibilita la adaptación si reduce el riesgo climático físico material y la vulnerabilidad en otras actividades económicas, comunidades, ecosistemas o ciudades, y/o aborda los obstáculos sistémicos a la adaptación. Esto es posible a través del uso de la tecnología y la creación de un producto o servicio especializado."]
[]
[]
["A1. Reducción de los riesgos climáticos físicos materiales."]
["La actividad económica debe reducir todos los riesgos climáticos físicos materiales para las actividades evaluadas, en la medida de lo posible y sobre la base del mejor esfuerzo. Selecciona las respuestas en las listas desplegables"]
["¿La actividad económica integra medidas destinadas a reducir, en la medida de lo posible y sobre la base del mejor esfuerzo, los riesgos climáticos físicos materiales para esa actividad, que han sido identificados mediante una evaluación de riesgos?",null,null,null,null,"Sí",{"$f":"IF(F248=\"Seleccione\",\"Por definir\",IF(F248=\"Sí\",\"El primer criterio se cumple satisfactoriamente\",\"Al no cumplir con este criterio, no es posible generar contribución sustancial\"))","v":"El primer criterio se cumple satisfactoriamente"},"Las tres condiciones deben cumplirse para argumentar que la actividad tiene contribución sustancial"]
["¿Esta evaluación considera tanto la variabilidad meteorológica actual, como el cambio climático futuro, incluidos los escenarios climáticos, así como la incertidumbre?",null,null,null,null,"Sí",{"$f":"IF(F249=\"Seleccione\",\"Por definir\",IF(F249=\"Sí\",\"El segundo criterio se cumple satisfactoriamente\",\"Al no cumplir con este criterio, no es posible generar contribución sustancial\"))","v":"El segundo criterio se cumple satisfactoriamente"}]
["¿Igualmente la evaluación se basa en un sólido análisis de los datos e información disponible sobre los distintos escenarios climáticos, y es coherente con la duración prevista de la actividad?",null,null,null,null,"Sí",{"$f":"IF(F250=\"Seleccione\",\"Por definir\",IF(F250=\"Sí\",\"El tercer criterio se cumple satisfactoriamente\",\"Al no cumplir con este criterio, no es posible generar contribución sustancial\"))","v":"El tercer criterio se cumple satisfactoriamente"}]
[{"$f":"IF(OR(F248=\"Seleccione\",F249=\"Seleccione\",F250=\"Seleccione\"),\"Por definir\",IF(OR(F248=\"No\",F249=\"No\",F250=\"No\"),\"La actividad no genera contribución sustancial\", \"La actividad sí contribuye sustancialmente a la sostenibilidad\"))","v":"La actividad sí contribuye sustancialmente a la sostenibilidad"}]
[]
["A2. Apoyo a la adaptación del sistema. "]
["La actividad económica y sus medidas de adaptación no afectan negativamente los esfuerzos de adaptación de otras personas, la naturaleza y los bienes. Selecciona las respuestas en las listas desplegables"]
["¿La actividad económica y sus medidas de adaptación no aumentan los riesgos de un impacto climático adverso sobre otras personas, la naturaleza y los bienes?",null,null,null,null,"Sí",{"$f":"IF(F255=\"Seleccione\",\"Por definir\",IF(F255=\"Sí\",\"El primer criterio se cumple satisfactoriamente\",\"Al no cumplir con este criterio, no es posible generar contribución sustancial\"))","v":"El primer criterio se cumple satisfactoriamente"},"Las dos condiciones deben cumplirse para argumentar que la actividad tiene contribución sustancial"]
["¿La actividad económica y sus medidas de adaptación son consistentes con los esfuerzos de adaptación a nivel sectorial, regional y/o nacional?",null,null,null,null,"Sí",{"$f":"IF(F256=\"Seleccione\",\"Por definir\",IF(F256=\"Sí\",\"El segundo criterio se cumple satisfactoriamente\",\"Al no cumplir con este criterio, no es posible generar contribución sustancial\"))","v":"El segundo criterio se cumple satisfactoriamente"}]
[{"$f":"IF(OR(F255=\"Seleccione\",F256=\"Seleccione\"),\"Por definir\",IF(OR(F255=\"No\",F256=\"No\"),\"La actividad no genera contribución sustancial\", \"La actividad sí contribuye sustancialmente a la sostenibilidad\"))","v":"La actividad sí contribuye sustancialmente a la sostenibilidad"}]
[]
["A3. Monitoreo de los resultados de adaptación."]
["En el contexto de la actividad evaluada, la reducción de los riesgos físicos se puede medir. Selecciona las respuestas en las listas desplegables"]
[" Los resultados de adaptación pueden ser monitoreados y medidos con base en indicadores. Considerando que los riesgos físicos evolucionan con el tiempo, el análisis de riesgos físicos debe llevarse a cabo con la frecuencia adecuada.  ¿Esto se evalúa dentro de la operación financiera y/o proyecto?",null,null,null,null,"Sí",{"$f":"IF(F261=\"Seleccione\",\"Por definir\",IF(F261=\"Sí\",\"La actividad sí contribuye sustancialmente a la sostenbilidad\",\"El proyecto no genera contribución sustancial\"))","v":"La actividad sí contribuye sustancialmente a la sostenbilidad"}]
[]
["B1. Apoyar a la adaptación de otras actividades económicas."]
["La actividad económica reduce el riesgo climático físico material en otras actividades económicas y/o aborda los obstáculos sistémicos para la adaptación. Las actividades que permiten la adaptación incluyen, pero no se limitan a, actividades que promueven una tecnología, un producto, una práctica, un proceso de gobernanza o usos innovadores de tecnologías, productos o prácticas existentes (incluidos los relacionados con las infraestructuras naturales). Además, eliminan las barreras de información, financieras, tecnológicas y de capacidad para la adaptación de otros. Selecciona las respuestas en las listas desplegables"]
["¿Se realiza una evaluación de los riesgos resultantes, con base en datos sólidos, tanto de la variabilidad  meteorológica actual como del cambio climático futuro, incluidos los escenarios climáticos, así como  la incertidumbre, que la actividad económica contribuirá a abordar?",null,null,null,null,"Sí",{"$f":"IF(F265=\"Seleccione\",\"Por definir\",IF(F265=\"Sí\",\"El primer criterio se cumple satisfactoriamente\",\"Al no cumplir con este criterio, no es posible generar contribución sustancial\"))","v":"El primer criterio se cumple satisfactoriamente"},"Las tres condiciones en caso de que apliquen deben cumplirse para argumentar que la actividad tiene contribución sustancial. La tercera opción podría no aplicar. En este caso se evaluaran las primeras dos cuestiones"]
["¿Se realiza una evaluación de la eficacia de la contribución de la actividad económica a la reducción de los riesgos físicos, teniendo en cuenta la escala de exposición y la vulnerabilidad a los mismos?",null,null,null,null,"Sí",{"$f":"IF(F266=\"Seleccione\",\"Por definir\",IF(F266=\"Sí\",\"El segundo criterio se cumple satisfactoriamente\",\"Al no cumplir con este criterio, no es posible generar contribución sustancial\"))","v":"El segundo criterio se cumple satisfactoriamente"}]
["En el caso de una infraestructura vinculada a una actividad que permita la adaptación, dicha infraestructura debe cumplir también los criterios de selección A1, A2 y A3. ¿Esto se cumple en el contexto del proyecto?",null,null,null,null,"Sí",{"$f":"IF(F267=\"Seleccione\",\"Por definir\",IF(F267=\"Sí\",\"El tercer criterio se cumple satisfactoriamente\",IF(F267=\"No aplica\",\"No aplica\",\"El proyecto no genera contribución sustancial\")))","v":"El tercer criterio se cumple satisfactoriamente"}]
[{"$f":"IF(OR(F265=\"Seleccione\",F266=\"Seleccione\",F267=\"Seleccione\"),\"Por definir\",IF(OR(F265=\"No\",F266=\"No\",F267=\"No\"),\"La actividad no genera contribución sustancial\",\"La actividad sí contribuye sustancialmente a la sostenibilidad\"))","v":"La actividad sí contribuye sustancialmente a la sostenibilidad"}]
[]
["237312. Construcción de carreteras, puentes y similares"]
["Responde las siguientes preguntas seleccionando una respuesta de la lista"]
[]
["1. La actividad que estás evaluando es una actividad adaptada o una actividad que facilita la adaptación?",null,null,"Actividad que facilita la adaptación e incluye desarrollo de infraestructura"]
[]
["¿Qué es una actividad adaptada?\nUna actividad económica se adapta a los riesgos climáticos físicos materiales, si integra medidas y/o soluciones para reducirlos, mientras garantiza que la actividad económica pueda funcionar bien en un clima cambiante. Estas actividades de adaptación se desarrollan a partir de la evaluación de riesgos actuales y futuros, ya sean climáticos, crónicos y/o agudos, así como la escala temporal y geográfica de la actividad económica."]
["¿Qué es una actividad que facilita la adaptación? \nUna actividad económica posibilita la adaptación si reduce el riesgo climático físico material y la vulnerabilidad en otras actividades económicas, comunidades, ecosistemas o ciudades, y/o aborda los obstáculos sistémicos a la adaptación. Esto es posible a través del uso de la tecnología y la creación de un producto o servicio especializado."]
[]
[]
["A1. Reducción de los riesgos climáticos físicos materiales."]
["La actividad económica debe reducir todos los riesgos climáticos físicos materiales para las actividades evaluadas, en la medida de lo posible y sobre la base del mejor esfuerzo. Selecciona las respuestas en las listas desplegables"]
["¿La actividad económica integra medidas destinadas a reducir, en la medida de lo posible y sobre la base del mejor esfuerzo, los riesgos climáticos físicos materiales para esa actividad, que han sido identificados mediante una evaluación de riesgos?",null,null,null,null,"Sí",{"$f":"IF(F281=\"Seleccione\",\"Por definir\",IF(F281=\"Sí\",\"El primer criterio se cumple satisfactoriamente\",\"Al no cumplir con este criterio, no es posible generar contribución sustancial\"))","v":"El primer criterio se cumple satisfactoriamente"},"Las tres condiciones deben cumplirse para argumentar que la actividad tiene contribución sustancial"]
["¿Esta evaluación considera tanto la variabilidad meteorológica actual, como el cambio climático futuro, incluidos los escenarios climáticos, así como la incertidumbre?",null,null,null,null,"Sí",{"$f":"IF(F282=\"Seleccione\",\"Por definir\",IF(F282=\"Sí\",\"El segundo criterio se cumple satisfactoriamente\",\"Al no cumplir con este criterio, no es posible generar contribución sustancial\"))","v":"El segundo criterio se cumple satisfactoriamente"}]
["¿Igualmente la evaluación se basa en un sólido análisis de los datos e información disponible sobre los distintos escenarios climáticos, y es coherente con la duración prevista de la actividad?",null,null,null,null,"Sí",{"$f":"IF(F283=\"Seleccione\",\"Por definir\",IF(F283=\"Sí\",\"El tercer criterio se cumple satisfactoriamente\",\"Al no cumplir con este criterio, no es posible generar contribución sustancial\"))","v":"El tercer criterio se cumple satisfactoriamente"}]
[{"$f":"IF(OR(F281=\"Seleccione\",F282=\"Seleccione\",F283=\"Seleccione\"),\"Por definir\",IF(OR(F281=\"No\",F282=\"No\",F283=\"No\"),\"La actividad no genera contribución sustancial\", \"La actividad sí contribuye sustancialmente a la sostenibilidad\"))","v":"La actividad sí contribuye sustancialmente a la sostenibilidad"}]
[]
["A2. Apoyo a la adaptación del sistema. "]
["La actividad económica y sus medidas de adaptación no afectan negativamente los esfuerzos de adaptación de otras personas, la naturaleza y los bienes. Selecciona las respuestas en las listas desplegables"]
["¿La actividad económica y sus medidas de adaptación no aumentan los riesgos de un impacto climático adverso sobre otras personas, la naturaleza y los bienes?",null,null,null,null,"Sí",{"$f":"IF(F288=\"Seleccione\",\"Por definir\",IF(F288=\"Sí\",\"El primer criterio se cumple satisfactoriamente\",\"Al no cumplir con este criterio, no es posible generar contribución sustancial\"))","v":"El primer criterio se cumple satisfactoriamente"},"Las dos condiciones deben cumplirse para argumentar que la actividad tiene contribución sustancial"]
["¿La actividad económica y sus medidas de adaptación son consistentes con los esfuerzos de adaptación a nivel sectorial, regional y/o nacional?",null,null,null,null,"Sí",{"$f":"IF(F289=\"Seleccione\",\"Por definir\",IF(F289=\"Sí\",\"El segundo criterio se cumple satisfactoriamente\",\"Al no cumplir con este criterio, no es posible generar contribución sustancial\"))","v":"El segundo criterio se cumple satisfactoriamente"}]
[{"$f":"IF(OR(F288=\"Seleccione\",F289=\"Seleccione\"),\"Por definir\",IF(OR(F288=\"No\",F289=\"No\"),\"La actividad no genera contribución sustancial\", \"La actividad sí contribuye sustancialmente a la sostenibilidad\"))","v":"La actividad sí contribuye sustancialmente a la sostenibilidad"}]
[]
["A3. Monitoreo de los resultados de adaptación."]
["En el contexto de la actividad evaluada, la reducción de los riesgos físicos se puede medir. Selecciona las respuestas en las listas desplegables"]
[" Los resultados de adaptación pueden ser monitoreados y medidos con base en indicadores. Considerando que los riesgos físicos evolucionan con el tiempo, el análisis de riesgos físicos debe llevarse a cabo con la frecuencia adecuada.  ¿Esto se evalúa dentro de la operación financiera y/o proyecto?",null,null,null,null,"Sí",{"$f":"IF(F294=\"Seleccione\",\"Por definir\",IF(F294=\"Sí\",\"La actividad sí contribuye sustancialmente a la sostenbilidad\",\"El proyecto no genera contribución sustancial\"))","v":"La actividad sí contribuye sustancialmente a la sostenbilidad"}]
[]
["B1. Apoyar a la adaptación de otras actividades económicas."]
["La actividad económica reduce el riesgo climático físico material en otras actividades económicas y/o aborda los obstáculos sistémicos para la adaptación. Las actividades que permiten la adaptación incluyen, pero no se limitan a, actividades que promueven una tecnología, un producto, una práctica, un proceso de gobernanza o usos innovadores de tecnologías, productos o prácticas existentes (incluidos los relacionados con las infraestructuras naturales). Además, eliminan las barreras de información, financieras, tecnológicas y de capacidad para la adaptación de otros. Selecciona las respuestas en las listas desplegables"]
["¿Se realiza una evaluación de los riesgos resultantes, con base en datos sólidos, tanto de la variabilidad  meteorológica actual como del cambio climático futuro, incluidos los escenarios climáticos, así como  la incertidumbre, que la actividad económica contribuirá a abordar?",null,null,null,null,"Sí",{"$f":"IF(F298=\"Seleccione\",\"Por definir\",IF(F298=\"Sí\",\"El primer criterio se cumple satisfactoriamente\",\"Al no cumplir con este criterio, no es posible generar contribución sustancial\"))","v":"El primer criterio se cumple satisfactoriamente"},"Las tres condiciones en caso de que apliquen deben cumplirse para argumentar que la actividad tiene contribución sustancial. La tercera opción podría no aplicar. En este caso se evaluaran las primeras dos cuestiones"]
["¿Se realiza una evaluación de la eficacia de la contribución de la actividad económica a la reducción de los riesgos físicos, teniendo en cuenta la escala de exposición y la vulnerabilidad a los mismos?",null,null,null,null,"Sí",{"$f":"IF(F299=\"Seleccione\",\"Por definir\",IF(F299=\"Sí\",\"El segundo criterio se cumple satisfactoriamente\",\"Al no cumplir con este criterio, no es posible generar contribución sustancial\"))","v":"El segundo criterio se cumple satisfactoriamente"}]
["En el caso de una infraestructura vinculada a una actividad que permita la adaptación, dicha infraestructura debe cumplir también los criterios de selección A1, A2 y A3. ¿Esto se cumple en el contexto del proyecto?",null,null,null,null,"Sí",{"$f":"IF(F300=\"Seleccione\",\"Por definir\",IF(F300=\"Sí\",\"El tercer criterio se cumple satisfactoriamente\",IF(F300=\"No aplica\",\"No aplica\",\"El proyecto no genera contribución sustancial\")))","v":"El tercer criterio se cumple satisfactoriamente"}]
[{"$f":"IF(OR(F298=\"Seleccione\",F299=\"Seleccione\",F300=\"Seleccione\"),\"Por definir\",IF(OR(F298=\"No\",F299=\"No\",F300=\"No\"),\"La actividad no genera contribución sustancial\",\"La actividad sí contribuye sustancialmente a la sostenibilidad\"))","v":"La actividad sí contribuye sustancialmente a la sostenibilidad"}]
[]
["237993,Construcción de obras para transporte eléctrico y ferroviario"]
["Responde las siguientes preguntas seleccionando una respuesta de la lista"]
[]
["1. La actividad que estás evaluando es una actividad adaptada o una actividad que facilita la adaptación?",null,null,"Actividad que facilita la adaptación e incluye desarrollo de infraestructura"]
[]
["¿Qué es una actividad adaptada?\nUna actividad económica se adapta a los riesgos climáticos físicos materiales, si integra medidas y/o soluciones para reducirlos, mientras garantiza que la actividad económica pueda funcionar bien en un clima cambiante. Estas actividades de adaptación se desarrollan a partir de la evaluación de riesgos actuales y futuros, ya sean climáticos, crónicos y/o agudos, así como la escala temporal y geográfica de la actividad económica."]
["¿Qué es una actividad que facilita la adaptación? \nUna actividad económica posibilita la adaptación si reduce el riesgo climático físico material y la vulnerabilidad en otras actividades económicas, comunidades, ecosistemas o ciudades, y/o aborda los obstáculos sistémicos a la adaptación. Esto es posible a través del uso de la tecnología y la creación de un producto o servicio especializado."]
[]
[]
["A1. Reducción de los riesgos climáticos físicos materiales."]
["La actividad económica debe reducir todos los riesgos climáticos físicos materiales para las actividades evaluadas, en la medida de lo posible y sobre la base del mejor esfuerzo. Selecciona las respuestas en las listas desplegables"]
["¿La actividad económica integra medidas destinadas a reducir, en la medida de lo posible y sobre la base del mejor esfuerzo, los riesgos climáticos físicos materiales para esa actividad, que han sido identificados mediante una evaluación de riesgos?",null,null,null,null,"Sí",{"$f":"IF(F314=\"Seleccione\",\"Por definir\",IF(F314=\"Sí\",\"El primer criterio se cumple satisfactoriamente\",\"Al no cumplir con este criterio, no es posible generar contribución sustancial\"))","v":"El primer criterio se cumple satisfactoriamente"},"Las tres condiciones deben cumplirse para argumentar que la actividad tiene contribución sustancial"]
["¿Esta evaluación considera tanto la variabilidad meteorológica actual, como el cambio climático futuro, incluidos los escenarios climáticos, así como la incertidumbre?",null,null,null,null,"Sí",{"$f":"IF(F315=\"Seleccione\",\"Por definir\",IF(F315=\"Sí\",\"El segundo criterio se cumple satisfactoriamente\",\"Al no cumplir con este criterio, no es posible generar contribución sustancial\"))","v":"El segundo criterio se cumple satisfactoriamente"}]
["¿Igualmente la evaluación se basa en un sólido análisis de los datos e información disponible sobre los distintos escenarios climáticos, y es coherente con la duración prevista de la actividad?",null,null,null,null,"Sí",{"$f":"IF(F316=\"Seleccione\",\"Por definir\",IF(F316=\"Sí\",\"El tercer criterio se cumple satisfactoriamente\",\"Al no cumplir con este criterio, no es posible generar contribución sustancial\"))","v":"El tercer criterio se cumple satisfactoriamente"}]
[{"$f":"IF(OR(F314=\"Seleccione\",F315=\"Seleccione\",F316=\"Seleccione\"),\"Por definir\",IF(OR(F314=\"No\",F315=\"No\",F316=\"No\"),\"La actividad no genera contribución sustancial\", \"La actividad sí contribuye sustancialmente a la sostenibilidad\"))","v":"La actividad sí contribuye sustancialmente a la sostenibilidad"}]
[]
["A2. Apoyo a la adaptación del sistema. "]
["La actividad económica y sus medidas de adaptación no afectan negativamente los esfuerzos de adaptación de otras personas, la naturaleza y los bienes. Selecciona las respuestas en las listas desplegables"]
["¿La actividad económica y sus medidas de adaptación no aumentan los riesgos de un impacto climático adverso sobre otras personas, la naturaleza y los bienes?",null,null,null,null,"Sí",{"$f":"IF(F321=\"Seleccione\",\"Por definir\",IF(F321=\"Sí\",\"El primer criterio se cumple satisfactoriamente\",\"Al no cumplir con este criterio, no es posible generar contribución sustancial\"))","v":"El primer criterio se cumple satisfactoriamente"},"Las dos condiciones deben cumplirse para argumentar que la actividad tiene contribución sustancial"]
["¿La actividad económica y sus medidas de adaptación son consistentes con los esfuerzos de adaptación a nivel sectorial, regional y/o nacional?",null,null,null,null,"Sí",{"$f":"IF(F322=\"Seleccione\",\"Por definir\",IF(F322=\"Sí\",\"El segundo criterio se cumple satisfactoriamente\",\"Al no cumplir con este criterio, no es posible generar contribución sustancial\"))","v":"El segundo criterio se cumple satisfactoriamente"}]
[{"$f":"IF(OR(F321=\"Seleccione\",F322=\"Seleccione\"),\"Por definir\",IF(OR(F321=\"No\",F322=\"No\"),\"La actividad no genera contribución sustancial\", \"La actividad sí contribuye sustancialmente a la sostenibilidad\"))","v":"La actividad sí contribuye sustancialmente a la sostenibilidad"}]
[]
["A3. Monitoreo de los resultados de adaptación."]
["En el contexto de la actividad evaluada, la reducción de los riesgos físicos se puede medir. Selecciona las respuestas en las listas desplegables"]
[" Los resultados de adaptación pueden ser monitoreados y medidos con base en indicadores. Considerando que los riesgos físicos evolucionan con el tiempo, el análisis de riesgos físicos debe llevarse a cabo con la frecuencia adecuada.  ¿Esto se evalúa dentro de la operación financiera y/o proyecto?",null,null,null,null,"Sí",{"$f":"IF(F327=\"Seleccione\",\"Por definir\",IF(F327=\"Sí\",\"La actividad sí contribuye sustancialmente a la sostenbilidad\",\"El proyecto no genera contribución sustancial\"))","v":"La actividad sí contribuye sustancialmente a la sostenbilidad"}]
[]
["B1. Apoyar a la adaptación de otras actividades económicas."]
["La actividad económica reduce el riesgo climático físico material en otras actividades económicas y/o aborda los obstáculos sistémicos para la adaptación. Las actividades que permiten la adaptación incluyen, pero no se limitan a, actividades que promueven una tecnología, un producto, una práctica, un proceso de gobernanza o usos innovadores de tecnologías, productos o prácticas existentes (incluidos los relacionados con las infraestructuras naturales). Además, eliminan las barreras de información, financieras, tecnológicas y de capacidad para la adaptación de otros. Selecciona las respuestas en las listas desplegables"]
["¿Se realiza una evaluación de los riesgos resultantes, con base en datos sólidos, tanto de la variabilidad  meteorológica actual como del cambio climático futuro, incluidos los escenarios climáticos, así como  la incertidumbre, que la actividad económica contribuirá a abordar?",null,null,null,null,"Sí",{"$f":"IF(F331=\"Seleccione\",\"Por definir\",IF(F331=\"Sí\",\"El primer criterio se cumple satisfactoriamente\",\"Al no cumplir con este criterio, no es posible generar contribución sustancial\"))","v":"El primer criterio se cumple satisfactoriamente"},"Las tres condiciones en caso de que apliquen deben cumplirse para argumentar que la actividad tiene contribución sustancial. La tercera opción podría no aplicar. En este caso se evaluaran las primeras dos cuestiones"]
["¿Se realiza una evaluación de la eficacia de la contribución de la actividad económica a la reducción de los riesgos físicos, teniendo en cuenta la escala de exposición y la vulnerabilidad a los mismos?",null,null,null,null,"Sí",{"$f":"IF(F332=\"Seleccione\",\"Por definir\",IF(F332=\"Sí\",\"El segundo criterio se cumple satisfactoriamente\",\"Al no cumplir con este criterio, no es posible generar contribución sustancial\"))","v":"El segundo criterio se cumple satisfactoriamente"}]
["En el caso de una infraestructura vinculada a una actividad que permita la adaptación, dicha infraestructura debe cumplir también los criterios de selección A1, A2 y A3. ¿Esto se cumple en el contexto del proyecto?",null,null,null,null,"Sí",{"$f":"IF(F333=\"Seleccione\",\"Por definir\",IF(F333=\"Sí\",\"El tercer criterio se cumple satisfactoriamente\",IF(F333=\"No aplica\",\"No aplica\",\"El proyecto no genera contribución sustancial\")))","v":"El tercer criterio se cumple satisfactoriamente"}]
[{"$f":"IF(OR(F331=\"Seleccione\",F332=\"Seleccione\",F333=\"Seleccione\"),\"Por definir\",IF(OR(F331=\"No\",F332=\"No\",F333=\"No\"),\"La actividad no genera contribución sustancial\",\"La actividad sí contribuye sustancialmente a la sostenibilidad\"))","v":"La actividad sí contribuye sustancialmente a la sostenibilidad"}]

{"sheet":"Indice de género-Construcción","index":31,"n_rows":82,"n_cols":11,"rows_kept":82,"cut":false,"hidden":true,"merged":[[1,1,1,8],[3,0,3,8],[5,0,5,8],[7,0,9,0],[7,1,9,1],[7,2,7,5],[7,8,9,8],[8,2,8,5],[9,2,9,5],[12,0,15,0],[12,1,15,1],[12,2,12,5],[12,8,15,8],[13,2,13,5],[14,2,14,5],[15,2,15,5],[18,0,20,0],[18,1,20,1],[18,2,18,5],[18,8,20,8],[19,2,19,5],[20,2,20,5],[23,0,25,0],[23,1,25,1],[23,2,23,5],[23,8,25,8],[24,2,24,5],[25,2,25,5],[28,0,30,0],[28,1,30,1],[28,2,28,5],[28,8,30,8],[29,2,29,5],[30,2,30,5],[33,0,35,0],[33,1,35,1],[33,2,33,5],[33,8,35,8],[34,2,34,5],[35,2,35,5],[38,0,40,0],[38,1,40,1],[38,2,38,5],[38,8,40,8],[39,2,39,5],[40,2,40,5],[43,0,45,0],[43,1,45,1],[43,2,43,5],[43,8,45,8],[44,2,44,5],[45,2,45,5],[48,0,50,0],[48,1,50,1],[48,2,48,5],[48,8,50,8],[49,2,49,5],[50,2,50,5],[53,0,55,0],[53,1,55,1],[53,2,53,5],[53,8,55,8],[54,2,54,5],[55,2,55,5],[58,0,60,0],[58,1,60,1],[58,2,58,5],[58,8,60,8],[59,2,59,5],[60,2,60,5],[63,0,65,0],[63,1,65,1],[63,2,63,5],[63,8,65,8],[64,2,64,5],[65,2,65,5],[68,0,70,0],[68,1,70,1],[68,2,68,5],[68,8,70,8],[69,2,69,5],[70,2,70,5],[73,0,75,0],[73,1,75,1],[73,2,73,5],[73,8,75,8],[74,2,74,5],[75,2,75,5],[77,4,77,7],[78,4,78,7],[79,4,79,7],[80,4,80,7],[81,4,81,7]]}
[]
[null,"Índice de Igualdad de Género"]
[]
["La Igualdad de Género es considerada como un objetivo prioritario en la Taxonomía Sostenible de México. Es así que se han generado Criterios de Evaluación Técnica que permitan identificar inversiones que contribuyan al cierre de brechas de género. Al mismo tiempo, las métricas propuestas servirán como guía orientadora para los usuarios potenciales de la Taxonomía, de forma que puedan dirigir esfuerzos para generar una contribución sustancial a la igualdad de género. Este índice refleja, en una escala numérica, la contribución de las organizaciones a tres pilares de igualdad de género: 1) Trabajo Digno, 2) Bienestar e 3) Inclusión Social. Ello permite traducir los criterios cualitativos de estos tres pilares, a una métrica cuantitativa, a la cual es posible asignar un umbral para determinar un nivel de contribución sustancial para un objetivo social."]
[]
["Por favor, selecciona alguna de las opciones descritas en las casillas azules para cada pregunta. En función de la respuesta, se asignará un puntaje por bloque de preguntas, que al final será evaluado para conocer si el proyecto cumple con las condiciones presentes en el índice de igualdad de género"]
["Pilar",null,null,null,null,null,null,"Puntaje",null,null,{"$f":"IF(G7=\"No\",0,IF(G7=\"Sí de alcance parcial dentro de la organización\",1,IF(G7=\"Sí de alcance integral en la organización\",2,IF(G7=\"Sí de alcance que se extiende dentro y fuera de la organización\",3,\"\"))))","v":""}]
["1.1.1","Igualdad de remuneración","¿Existe una política y/o tabulador para todo el personal que establezca la igualdad de remuneración por un trabajo equivalente, conforme a la Ley Federal del Trabajo, y donde se puedan consultar los rangos salariales para los diferentes niveles dentro del centro de trabajo?",null,null,null,"Seleccione",{"$f":"IF(G8=\"No\",0,IF(G8=\"Sí de alcance parcial dentro de la organización\",1,IF(G8=\"Sí de alcance integral en la organización\",2,IF(G8=\"Sí de alcance que se extiende dentro y fuera de la organización\",3,\"\"))))","v":""},{"$f":"IF(OR(G8=\"Seleccione\",G9=\"Seleccione\",G10=\"Seleccione\"),\"Por favor completa las preguntas de este apartado del Índice\",IF(H11<3,\"Es necesario incrementar la ambición en alguno de los ejes evaluados para que el proyecto esté alineado al Índice de Igualdad de Género de la Taxonomía Sostenible de México\",\"El proyecto cuenta con la ambición necesaria para cerrar las brechas de género conforme al Índice de Igualdad de Género de la Taxonomía Sostenible de México\"))","v":"Por favor completa las preguntas de este apartado del Índice"}]
[null,null,"¿La organización realiza un análisis sistemático y periódico de las brechas de género en salarios, prestaciones y compensaciones de su personal?",null,null,null,"Seleccione",{"$f":"IF(G9=\"No\",0,IF(G9=\"Sí de alcance parcial dentro de la organización\",1,IF(G9=\"Sí de alcance integral en la organización\",2,IF(G9=\"Sí de alcance que se extiende dentro y fuera de la organización\",3,\"\"))))","v":""}]
[null,null,"¿La organización cuenta con un mecanismo para corregir los casos identificados con desigualdad en la remuneración?",null,null,null,"Seleccione",{"$f":"IF(G10=\"No\",0,IF(G10=\"Sí de alcance parcial dentro de la organización\",1,IF(G10=\"Sí de alcance integral en la organización\",2,\"\")))","v":""}]
[null,null,null,null,null,null,null,{"$f":"SUM(H8:H10)","v":0}]
[]
["1.2.1","Posibilidades de acceso, contratación, participación, permanencia y promoción","¿Tiene la organización una política o mecanismo que garantice la no discriminación e igualdad de oportunidades en el acceso, permanencia y desarrollo laboral?",null,null,null,"Seleccione",{"$f":"IF(G13=\"No\",0,IF(G13=\"Sí de alcance parcial dentro de la organización\",1,IF(G13=\"Sí de alcance integral en la organización\",2,IF(G13=\"Sí de alcance que se extiende dentro y fuera de la organización\",3,\"\"))))","v":""},{"$f":"IF(OR(G13=\"Seleccione\",G14=\"Seleccione\",G15=\"Seleccione\",G16=\"Seleccione\"),\"Por favor completa las preguntas de este apartado del Índice\",IF(H17<4,\"Es necesario incrementar la ambición en alguno de los ejes evaluados para que el proyecto esté alineado al Índice de Igualdad de Género de la Taxonomía Sostenible de México\",\"El proyecto cuenta con la ambición necesaria para cerrar las brechas de género conforme al Índice de Igualdad de Género de la Taxonomía Sostenible de México\"))","v":"Por favor completa las preguntas de este apartado del Índice"}]
[null,null,"¿Existen perfiles de puestos, anuncios de vacantes u ofertas de trabajo, documentación para entrevista de ingreso estructurada y/o exámenes o evaluaciones libres de sesgos sexistas o de discriminación?",null,null,null,"Seleccione",{"$f":"IF(G14=\"No\",0,IF(G14=\"Sí de alcance parcial dentro de la organización\",1,IF(G14=\"Sí de alcance integral en la organización\",2,IF(G14=\"Sí de alcance que se extiende dentro y fuera de la organización\",3,\"\"))))","v":""}]
[null,null,"¿Se cuenta con procesos transparentes y accesibles de movilidad horizontal y vertical libres de sesgos sexistas o discriminatorios?",null,null,null,"Seleccione",{"$f":"IF(G15=\"No\",0,IF(G15=\"Sí de alcance parcial dentro de la organización\",1,IF(G15=\"Sí de alcance integral en la organización\",2,IF(G15=\"Sí de alcance que se extiende dentro y fuera de la organización\",3,\"\"))))","v":""}]
[null,null,"¿La organización lleva a cabo capacitaciones extensivas al personal candidato o de la propia empresa como mecanismo de corrección (distintas al plan de capacitación) sobre sesgos de género para entrevistas laborales, para evaluaciones de desempeño o para procesos de reclutamiento, movilidad y  promoción?",null,null,null,"Seleccione",{"$f":"IF(G16=\"No\",0,IF(G16=\"Sí de alcance parcial dentro de la organización\",1,IF(G16=\"Sí de alcance integral en la organización\",2,IF(G16=\"Sí de alcance que se extiende dentro y fuera de la organización\",3,\"\"))))","v":""}]
[null,null,null,null,null,null,null,{"$f":"SUM(H13:H16)","v":0}]
[]
["1.2.2","Segregación Vertical y Horizontal","¿La organización cuenta con metas institucionales sobre diversidad de género en los diferentes equipos de trabajo?",null,null,null,"Seleccione",{"$f":"IF(G19=\"No\",0,IF(G19=\"Sí de alcance parcial dentro de la organización\",1,IF(G19=\"Sí de alcance integral en la organización\",2,IF(G19=\"Sí de alcance que se extiende dentro y fuera de la organización\",3,\"\"))))","v":""},{"$f":"IF(OR(G19=\"Seleccione\",G20=\"Seleccione\",G21=\"Seleccione\"),\"Por favor completa las preguntas de este apartado del Índice\",IF(H22<3,\"Es necesario incrementar la ambición en alguno de los ejes evaluados para que el proyecto esté alineado al Índice de Igualdad de Género de la Taxonomía Sostenible de México\",\"El proyecto cuenta con la ambición necesaria para cerrar las brechas de género conforme al Índice de Igualdad de Género de la Taxonomía Sostenible de México\"))","v":"Por favor completa las preguntas de este apartado del Índice"}]
[null,"1.2.2.2","¿La organización cuenta con un plan de acción para cerrar la brecha de participación laboral entre hombres y mujeres, entre los niveles jerárquicos, en el proceso de contratación y en las oportunidades de promoción?",null,null,null,"Seleccione",{"$f":"IF(G20=\"No\",0,IF(G20=\"Sí de alcance parcial dentro de la organización\",1,IF(G20=\"Sí de alcance integral en la organización\",2,\"\")))","v":""}]
[null,"1.2.2.3","¿El despliegue de los mecanismos de corrección para cerrar la brecha de participación se realiza conforme a la evaluación o medición continua de las brechas de género?",null,null,null,"Seleccione",{"$f":"IF(G21=\"No\",0,IF(G21=\"Sí de alcance parcial dentro de la organización\",1,IF(G21=\"Sí de alcance integral en la organización\",2,\"\")))","v":""}]
[null,null,null,null,null,null,null,{"$f":"SUM(H19:H21)","v":0}]
[]
["1.2.3","Igualdad de representatividad de mujeres y hombres en órganos de gobernanza corporativa","¿Existe una política de paridad entre mujeres y hombres (reglamentos, normas, documentos o protocolos internos) en el órgano de gobernanza corporativa (junta de gobierno) o en puestos de toma de decisión?",null,null,null,"Seleccione",{"$f":"IF(G24=\"No\",0,IF(G24=\"Sí de alcance parcial dentro de la organización\",1,IF(G24=\"Sí de alcance integral en la organización\",2,IF(G24=\"Sí de alcance que se extiende dentro y fuera de la organización\",3,\"\"))))","v":""},{"$f":"IF(OR(G24=\"Seleccione\",G25=\"Seleccione\",G26=\"Seleccione\"),\"Por favor completa las preguntas de este apartado del Índice\",IF(H27<2,\"Es necesario incrementar la ambición en alguno de los ejes evaluados para que el proyecto esté alineado al Índice de Igualdad de Género de la Taxonomía Sostenible de México\",\"El proyecto cuenta con la ambición necesaria para cerrar las brechas de género conforme al Índice de Igualdad de Género de la Taxonomía Sostenible de México\"))","v":"Por favor completa las preguntas de este apartado del Índice"}]
[null,"1.2.3.2","¿Existen mecanismos o acciones para promover la rotación hacia puestos directivos o de toma de decisión con perspectiva de género, o en su caso el proceso de designación no tienes sesgos de género?",null,null,null,"Seleccione",{"$f":"IF(G25=\"No\",0,IF(G25=\"Sí de alcance parcial dentro de la organización\",1,IF(G25=\"Sí de alcance integral en la organización\",2,\"\")))","v":""}]
[null,"1.2.3.3","¿La organización se somete a un análisis, interno o externo, de paridad de género institucional en sus puestos de alta dirección o gobierno corporativo, acorde a la política de transparencia que la rige?",null,null,null,"Seleccione",{"$f":"IF(G26=\"No\",0,IF(G26=\"Sí de alcance parcial dentro de la organización\",1,IF(G26=\"Sí de alcance integral en la organización\",2,IF(G26=\"Sí de alcance que se extiende dentro y fuera de la organización\",3,\"\"))))","v":""}]
[null,null,null,null,null,null,null,{"$f":"SUM(H24:H26)","v":0}]
[]
["1.2.4","Clima laboral y espacios de trabajo libres de violencia","¿La organización cuenta con políticas o áreas especializadas en diversidad e inclusión que promuevan relaciones igualitarias acompañadas de la implementación de prácticas de prevención contra la violencia de género (hostigamiento, acoso u otro)?",null,null,null,"Seleccione",{"$f":"IF(G29=\"No\",0,IF(G29=\"Sí de alcance parcial dentro de la organización\",1,IF(G29=\"Sí de alcance integral en la organización\",2,\"\")))","v":""},{"$f":"IF(OR(G29=\"Seleccione\",G30=\"Seleccione\",G31=\"Seleccione\"),\"Por favor completa las preguntas de este apartado del Índice\",IF(H32<2,\"Es necesario incrementar la ambición en alguno de los ejes evaluados para que el proyecto esté alineado al Índice de Igualdad de Género de la Taxonomía Sostenible de México\",\"El proyecto cuenta con la ambición necesaria para cerrar las brechas de género conforme al Índice de Igualdad de Género de la Taxonomía Sostenible de México\"))","v":"Por favor completa las preguntas de este apartado del Índice"}]
[null,"1.2.4.2","¿La organización cuenta con un grupo, comisión o Comité encargado de la vigilancia del desarrollo e implementación de prácticas contra la violencia y la discriminación de género en el centro de trabajo?",null,null,null,"Seleccione",{"$f":"IF(G30=\"No\",0,IF(G30=\"Sí de alcance parcial dentro de la organización\",1,IF(G30=\"Sí de alcance integral en la organización\",2,\"\")))","v":""}]
[null,"1.2.4.3","¿La organización cuenta con mecanismos de atención a actos de violencia detectados o de reparación de daños, cuyos resultados salvaguarden la integridad de las víctimas y eviten la revictimización?",null,null,null,"Seleccione",{"$f":"IF(G31=\"No\",0,IF(G31=\"Sí de alcance parcial dentro de la organización\",1,IF(G31=\"Sí de alcance integral en la organización\",2,\"\")))","v":""}]
[null,null,null,null,null,null,null,{"$f":"SUM(H29:H31)","v":0}]
[]
["1.2.5","Capacitaciones para la igualdad laboral","¿La organización cuenta con un plan de capacitación, sensibilización y difusión como parte de sus objetivos de la agenda de género?",null,null,null,"Seleccione",{"$f":"IF(G34=\"No\",0,IF(G34=\"Sí de alcance parcial dentro de la organización\",1,IF(G34=\"Sí de alcance integral en la organización\",2,IF(G34=\"Sí de alcance que se extiende dentro y fuera de la organización\",3,\"\"))))","v":""},{"$f":"IF(OR(G34=\"Seleccione\",G35=\"Seleccione\",G36=\"Seleccione\"),\"Por favor completa las preguntas de este apartado del Índice\",IF(H37<3,\"Es necesario incrementar la ambición en alguno de los ejes evaluados para que el proyecto esté alineado al Índice de Igualdad de Género de la Taxonomía Sostenible de México\",\"El proyecto cuenta con la ambición necesaria para cerrar las brechas de género conforme al Índice de Igualdad de Género de la Taxonomía Sostenible de México\"))","v":"Por favor completa las preguntas de este apartado del Índice"}]
[null,"1.2.5.2","¿La organización ofrece capacitación continua para el desarrollo de habilidades requeridas para la movilidad laboral, tales como mentoría o patrocinio; incluyendo el desarrollo de capacidades para los nuevos empleos verdes que promuevan la transición justa?",null,null,null,"Seleccione",{"$f":"IF(G35=\"No\",0,IF(G35=\"Sí de alcance parcial dentro de la organización\",1,IF(G35=\"Sí de alcance integral en la organización\",2,IF(G35=\"Sí de alcance que se extiende dentro y fuera de la organización\",3,\"\"))))","v":""}]
[null,"1.2.5.3","¿La organización cuenta con mecanismos de evaluación o mejora de su plan de implementación de capacitaciones, asesorías o mentorías, que sean extensivos a otros actores que interactúan con la organización o a la comunidad externa (más allá del personal de la organización)?",null,null,null,"Seleccione",{"$f":"IF(G36=\"No\",0,IF(G36=\"Sí de alcance parcial dentro de la organización\",1,IF(G36=\"Sí de alcance integral en la organización\",2,IF(G36=\"Sí de alcance que se extiende dentro y fuera de la organización\",3,\"\"))))","v":""}]
[null,null,null,null,null,null,null,{"$f":"SUM(H34:H36)","v":0}]
[]
["1.3.1","Esquemas de trabajo flexible y políticas de conciliación","¿Existen medidas de flexibilidad laboral, como horarios flexibles o escalonados, semanas de trabajo comprimidas, teletrabajo o licencias con y sin goce de sueldo?",null,null,null,"Seleccione",{"$f":"IF(G39=\"No\",0,IF(G39=\"Sí de alcance parcial dentro de la organización\",1,IF(G39=\"Sí de alcance integral en la organización\",2,\"\")))","v":""},{"$f":"IF(OR(G39=\"Seleccione\",G40=\"Seleccione\",G41=\"Seleccione\"),\"Por favor completa las preguntas de este apartado del Índice\",IF(H42<4,\"Es necesario incrementar la ambición en alguno de los ejes evaluados para que el proyecto esté alineado al Índice de Igualdad de Género de la Taxonomía Sostenible de México\",\"El proyecto cuenta con la ambición necesaria para cerrar las brechas de género conforme al Índice de Igualdad de Género de la Taxonomía Sostenible de México\"))","v":"Por favor completa las preguntas de este apartado del Índice"}]
[null,"1.3.1.2","¿Existe una duración definida de la jornada laboral que se acompañe con una política de desconexión, sin importar que el esquema sea presencial, híbrido o por teletrabajo?",null,null,null,"Seleccione",{"$f":"IF(G40=\"No\",0,IF(G40=\"Sí de alcance parcial dentro de la organización\",1,IF(G40=\"Sí de alcance integral en la organización\",2,\"\")))","v":""}]
[null,"1.3.1.3","¿La organización despliega y difunde mecanismos de corrección al interior y al exterior, en función de la información estadística analizada y desagregada por sexo, sobre el cumplimento de los horarios de trabajo conforme al derecho de las y los trabajadores a la desconexión?",null,null,null,"Seleccione",{"$f":"IF(G41=\"No\",0,IF(G41=\"Sí de alcance parcial dentro de la organización\",1,IF(G41=\"Sí de alcance integral en la organización\",2,IF(G41=\"Sí de alcance que se extiende dentro y fuera de la organización\",3,\"\"))))","v":""}]
[null,null,null,null,null,null,null,{"$f":"SUM(H39:H41)","v":0}]
[]
["1.3.2","Oferta complementaria de servicios de cuidados (ludoteca, casas de día, estancias infantiles adicionales, entre otros)","¿La organización tiene políticas que le permitan desarrollar una oferta complementaria de servicios de cuidado (guarderías propias, salas de lactancia, etc.), asequible para todo el personal de la organización, incluyendo licencias de maternidad y paternidad con duración superior a la Ley?",null,null,null,"Seleccione",{"$f":"IF(G44=\"No\",0,IF(G44=\"Sí de alcance parcial dentro de la organización\",1,IF(G44=\"Sí de alcance integral en la organización\",2,IF(G44=\"Sí de alcance que se extiende dentro y fuera de la organización\",3,\"\"))))","v":""},{"$f":"IF(OR(G44=\"Seleccione\",G45=\"Seleccione\",G46=\"Seleccione\"),\"Por favor completa las preguntas de este apartado del Índice\",IF(H47<3,\"Es necesario incrementar la ambición en alguno de los ejes evaluados para que el proyecto esté alineado al Índice de Igualdad de Género de la Taxonomía Sostenible de México\",\"El proyecto cuenta con la ambición necesaria para cerrar las brechas de género conforme al Índice de Igualdad de Género de la Taxonomía Sostenible de México\"))","v":"Por favor completa las preguntas de este apartado del Índice"}]
[null,"1.3.2.2","¿Se proporciona una oferta de servicios de cuidado adicional a los servicios de seguridad social (IMSS, ISSSTE y otros) o se ofrecen permisos con o sin goce de sueldo para la atención de responsabilidades de cuidado?",null,null,null,"Seleccione",{"$f":"IF(G45=\"No\",0,IF(G45=\"Sí de alcance parcial dentro de la organización\",1,IF(G45=\"Sí de alcance integral en la organización\",2,IF(G45=\"Sí de alcance que se extiende dentro y fuera de la organización\",3,\"\"))))","v":""}]
[null,"1.3.2.3","¿La organización realiza y difunde evaluaciones de las necesidades de cuidado de su personal y sus dependientes, al interior y al exterior?",null,null,null,"Seleccione",{"$f":"IF(G46=\"No\",0,IF(G46=\"Sí de alcance parcial dentro de la organización\",1,IF(G46=\"Sí de alcance integral en la organización\",2,IF(G46=\"Sí de alcance que se extiende dentro y fuera de la organización\",3,\"\"))))","v":""}]
[null,null,null,null,null,null,null,{"$f":"SUM(H44:H46)","v":0}]
[]
["2.1.1","Desarrollo y provisión de infraestructura, bienes y servicios con impacto social positivo y perspectiva de género","¿La organización tiene como política realizar diagnósticos con perspectiva de género para el diseño y operación del proyecto, actividad, desarrollo de infraestructura o la provisión de bienes y servicios?",null,null,null,"Seleccione",{"$f":"IF(G49=\"No\",0,IF(G49=\"Sí de alcance parcial dentro de la organización\",2,IF(G49=\"Sí de alcance integral en la organización\",4,IF(G49=\"Sí de alcance que se extiende dentro y fuera de la organización\",6,\"\"))))","v":""},{"$f":"IF(OR(G49=\"Seleccione\",G50=\"Seleccione\",G51=\"Seleccione\"),\"Por favor completa las preguntas de este apartado del Índice\",IF(H52<8,\"Es necesario incrementar la ambición en alguno de los ejes evaluados para que el proyecto esté alineado al Índice de Igualdad de Género de la Taxonomía Sostenible de México\",\"El proyecto cuenta con la ambición necesaria para cerrar las brechas de género conforme al Índice de Igualdad de Género de la Taxonomía Sostenible de México\"))","v":"Por favor completa las preguntas de este apartado del Índice"}]
[null,"2.1.1.2","¿El proyecto de infraestructura, actividad, bien o servicio, considera ajustes razonables para atender las necesidades de las mujeres o contribuye a la reducción o eliminación de una situación de exclusión, desigualdad o violencia de género, y privilegia su acceso a precios asequibles por razón de género?",null,null,null,"Seleccione",{"$f":"IF(G50=\"No\",0,IF(G50=\"Sí de alcance parcial dentro de la organización\",2,IF(G50=\"Sí de alcance integral en la organización\",4,IF(G50=\"Sí de alcance que se extiende dentro y fuera de la organización\",6,\"\"))))","v":""}]
[null,"2.1.1.3","¿Se cuenta con un plan de actividades de igualdad entre mujeres y hombres, que incluya presupuesto e indicadores de cumplimiento sobre el impacto en la vida de las mujeres, y en su caso, en el medio ambiente en el uso de la infraestructura, productos o servicios a desarrollar?",null,null,null,"Seleccione",{"$f":"IF(G51=\"No\",0,IF(G51=\"Sí de alcance parcial dentro de la organización\",2,IF(G51=\"Sí de alcance integral en la organización\",4,IF(G51=\"Sí de alcance que se extiende dentro y fuera de la organización\",6,\"\"))))","v":""}]
[null,null,null,null,null,null,null,{"$f":"SUM(H49:H51)","v":0}]
[]
["2.2.1","No afectación a la salud de las mujeres","¿La organización tiene como procedimientos la elaboración de diagnósticos con perspectiva de género sobre los impactos potenciales en salud del proyecto de infraestructura, actividad, bien o servicio, para la promoción de la salud en las mujeres o asegurar la no afectación a esta?",null,null,null,"Seleccione",{"$f":"IF(G54=\"No\",0,IF(G54=\"Sí de alcance parcial dentro de la organización\",2,IF(G54=\"Sí de alcance integral en la organización\",4,IF(G54=\"Sí de alcance que se extiende dentro y fuera de la organización\",6,\"\"))))","v":""},{"$f":"IF(OR(G54=\"Seleccione\",G55=\"Seleccione\",G56=\"Seleccione\"),\"Por favor completa las preguntas de este apartado del Índice\",IF(H57<8,\"Es necesario incrementar la ambición en alguno de los ejes evaluados para que el proyecto esté alineado al Índice de Igualdad de Género de la Taxonomía Sostenible de México\",\"El proyecto cuenta con la ambición necesaria para cerrar las brechas de género conforme al Índice de Igualdad de Género de la Taxonomía Sostenible de México\"))","v":"Por favor completa las preguntas de este apartado del Índice"}]
[null,"2.2.1.2","¿El proyecto, actividad, bien o servicio, considera ajustes razonables para atender las necesidades diferenciadas de salud en hombres y mujeres y privilegia el acceso desde una perspectiva de género a precios asequibles?",null,null,null,"Seleccione",{"$f":"IF(G55=\"No\",0,IF(G55=\"Sí de alcance parcial dentro de la organización\",2,IF(G55=\"Sí de alcance integral en la organización\",4,IF(G55=\"Sí de alcance que se extiende dentro y fuera de la organización\",6,\"\"))))","v":""}]
[null,"2.2.1.3","¿Se realizan estudios de los efectos en la salud de la actividad, productos o servicios desagregados sexo, y se cuenta con un plan de actividades para la corrección o mejora que incluya presupuesto e indicadores de cumplimiento?",null,null,null,"Seleccione",{"$f":"IF(G56=\"No\",0,IF(G56=\"Sí de alcance parcial dentro de la organización\",2,IF(G56=\"Sí de alcance integral en la organización\",4,IF(G56=\"Sí de alcance que se extiende dentro y fuera de la organización\",6,\"\"))))","v":""}]
[null,null,null,null,null,null,null,{"$f":"SUM(H54:H56)","v":0}]
[]
["2.3.1","Promoción de autonomía de las mujeres y financiamiento flexible con perspectiva de género","¿La organización tiene como política visibilizar las necesidades diferenciadas entre mujeres y hombres en las estrategias de comercialización de los productos o servicios ofrecidos?",null,null,null,"Seleccione",{"$f":"IF(G59=\"No\",0,IF(G59=\"Sí de alcance parcial dentro de la organización\",2,IF(G59=\"Sí de alcance integral en la organización\",4,IF(G59=\"Sí de alcance que se extiende dentro y fuera de la organización\",6,\"\"))))","v":""},{"$f":"IF(OR(G59=\"Seleccione\",G60=\"Seleccione\",G61=\"Seleccione\"),\"Por favor completa las preguntas de este apartado del Índice\",IF(H62<8,\"Es necesario incrementar la ambición en alguno de los ejes evaluados para que el proyecto esté alineado al Índice de Igualdad de Género de la Taxonomía Sostenible de México\",\"El proyecto cuenta con la ambición necesaria para cerrar las brechas de género conforme al Índice de Igualdad de Género de la Taxonomía Sostenible de México\"))","v":"Por favor completa las preguntas de este apartado del Índice"}]
[null,"2.3.1.2","¿La organización garantiza la accesibilidad de los productos o servicios para las mujeres, ofreciendo opciones diferenciadas de financiación?",null,null,null,"Seleccione",{"$f":"IF(G60=\"No\",0,IF(G60=\"Sí de alcance parcial dentro de la organización\",2,IF(G60=\"Sí de alcance integral en la organización\",4,IF(G60=\"Sí de alcance que se extiende dentro y fuera de la organización\",6,\"\"))))","v":""}]
[null,"2.3.1.3","¿Se realiza una evaluación de efectos diferenciados de los productos y servicios ofrecidos desagregada sexo que visibilicen que son utilizados por mujeres y/o benefician más que proporcionalmente a las mujeres?",null,null,null,"Seleccione",{"$f":"IF(G61=\"No\",0,IF(G61=\"Sí de alcance parcial dentro de la organización\",2,IF(G61=\"Sí de alcance integral en la organización\",4,IF(G61=\"Sí de alcance que se extiende dentro y fuera de la organización\",6,\"\"))))","v":""}]
[null,null,null,null,null,null,null,{"$f":"SUM(H59:H61)","v":0}]
[]
["3.1.1","Promoción de cultura de paz y no violencia","¿La organización o proyecto considera dentro de sus objetivos la reducción o erradicación de la violencia contra las mujeres o el desarrollo de espacios de paz y no violencia; o bien, cuenta con un protocolo o procedimiento para la resolución de conflictos con la comunidad, que considere una perspectiva de género y de derechos humanos?",null,null,null,"Seleccione",{"$f":"IF(G64=\"No se cuenta con un protocolo o procedimiento o no se comunica\",0,IF(G64=\"Comunicación del objetivo protocolo parcial dentro de la organización\",2,IF(G64=\"Sí de alcance integral en la organización\",2,IF(G64=\"Protocolo de conocimiento de toda la organización\",4,IF(G64=\"Toda la información relacionada es pública\",6,\"\")))))","v":""},{"$f":"IF(OR(G64=\"Seleccione\",G65=\"Seleccione\",G66=\"Seleccione\"),\"Por favor completa las preguntas de este apartado del Índice\",IF(H67<8,\"Es necesario incrementar la ambición en alguno de los ejes evaluados para que el proyecto esté alineado al Índice de Igualdad de Género de la Taxonomía Sostenible de México\",\"El proyecto cuenta con la ambición necesaria para cerrar las brechas de género conforme al Índice de Igualdad de Género de la Taxonomía Sostenible de México\"))","v":"Por favor completa las preguntas de este apartado del Índice"}]
[null,"3.1.1.2","¿Se han desarrollado acciones para la prevención, atención, sanción y erradicación de la violencia contra niñas, niños, adolescentes y mujeres en la comunidad o espacios públicos?",null,null,null,"Seleccione",{"$f":"IF(G65=\"No se han desarrollado acciones\",0,IF(G65=\"Las acciones abordan solo alguno(s) de los aspectos enunciados (prevención atención sanción y erradicación de la violencia)\",4,IF(G65=\"Las acciones consideran la prevención atención sanción y erradicación de la violencia\",6,\"\")))","v":""}]
[null,"3.1.1.3","¿La organización o proyecto cuenta con evidencia de su contribución a la reducción de la violencia contra niñas, niños, adolescentes y mujeres; o bien, ha documentado y difundido casos de éxito sobre la resolución de conflictos con la comunidad o sobre el desarrollo de espacios de paz y no violencia de forma participativa?",null,null,null,"Seleccione",{"$f":"IF(G66=\"No existe evidencia o no se comunica\",0,IF(G66=\"La comunicación de la evidencia es parcial dentro de la organización\",2,IF(G66=\"La evidencia es de conocimiento de toda la organización\",4,IF(G66=\"La información es pública\",6,\"\"))))","v":""}]
[null,null,null,null,null,null,null,{"$f":"SUM(H64:H66)","v":0}]
[]
["3.2.1","Vinculación con empresas locales propiedad o con participación de mujeres","¿Existen políticas, procesos o mecanismos de adquisición de productos y servicios que incentiven la contratación de empresas locales propiedad o con alta participación de mujeres?",null,null,null,"Seleccione",{"$f":"IF(G69=\"No existen políticas o procesos o mecanismos o no se comunican\",0,IF(G69=\"La comunicación es parcial dentro de la organización\",2,IF(G69=\"Sí y es de conocimiento de toda la organización\",4,IF(G69=\"La información es pública\",6,\"\"))))","v":""},{"$f":"IF(OR(G69=\"Seleccione\",G70=\"Seleccione\",G71=\"Seleccione\"),\"Por favor completa las preguntas de este apartado del Índice\",IF(H72<8,\"Es necesario incrementar la ambición en alguno de los ejes evaluados para que el proyecto esté alineado al Índice de Igualdad de Género de la Taxonomía Sostenible de México\",\"El proyecto cuenta con la ambición necesaria para cerrar las brechas de género conforme al Índice de Igualdad de Género de la Taxonomía Sostenible de México\"))","v":"Por favor completa las preguntas de este apartado del Índice"}]
[null,"3.2.1.2","¿Se presenta evidencia de alianzas comerciales y de contratos recurrentes o multianuales con empresas locales con propiedad o participación importante de mujeres?",null,null,null,"Seleccione",{"$f":"IF(G70=\"No se han desarrollado alianzas comerciales o contratos\",0,IF(G70=\"Se presenta evidencia de esfuerzos para establecer alianzas comerciales pero que aún no se formalizan\",4,IF(G70=\"Se presenta evidencia completa de una relación comercial recurrente\",6,\"\")))","v":""}]
[null,"3.2.1.3","¿Existe evidencia de que se contribuye al fortalecimiento del liderazgo de empresas locales encabezadas por mujeres o al desarrollo de la estrategia de sostenibilidad de empresas locales (por ejemplo, en el acceso a financiamiento, en la adopción de tecnología sostenible, etc.) propiedad o con participación de mujeres, más allá de la compra de bienes y servicios?",null,null,null,"Seleccione",{"$f":"IF(G71=\"No existe evidencia o no se comunica\",0,IF(G71=\"La comunicación de la evidencia es parcial dentro de la organización\",2,IF(G71=\"La evidencia es de conocimiento de toda la organización\",4,IF(G71=\"La información es pública\",6,\"\"))))","v":""}]
[null,null,null,null,null,null,null,{"$f":"SUM(H69:H71)","v":0}]
[]
["3.3.1","Involucramiento de organizaciones y redes comunitarias que representen los intereses de las mujeres","¿Existe una política para fomentar la participación de las comunidades, bajo el marco del consentimiento libre, previo e informado, para la realización del proyecto o actividad económica, o bien en la planeación y gestión participativa de este, que contribuya a la preservación del territorio; al bienestar de ellas y su comunidad; al cuidado del medio ambiente o a una transición justa?",null,null,null,"Seleccione",{"$f":"IF(G74=\"No existen políticas o procesos o mecanismos o no se comunican\",0,IF(G74=\"La comunicación es parcial dentro de la organización\",2,IF(G74=\"Sí y es de conocimiento de toda la organización\",4,IF(G74=\"La información es pública\",6,\"\"))))","v":""},{"$f":"IF(OR(G74=\"Seleccione\",G75=\"Seleccione\",G76=\"Seleccione\"),\"Por favor completa las preguntas de este apartado del Índice\",IF(H77<8,\"Es necesario incrementar la ambición en alguno de los ejes evaluados para que el proyecto esté alineado al Índice de Igualdad de Género de la Taxonomía Sostenible de México\",\"El proyecto cuenta con la ambición necesaria para cerrar las brechas de género conforme al Índice de Igualdad de Género de la Taxonomía Sostenible de México\"))","v":"Por favor completa las preguntas de este apartado del Índice"}]
[null,"3.3.1.2","¿Las acciones de involucramiento y consulta consideraron una perspectiva de género en su implementación para asegurar una participación en igualdad de condiciones de las mujeres (horarios adecuados, dinámicas para promover la participación, facilidades para el cuidado de infantes, un lugar de fácil acceso para ellas) y cuentan con un mecanismo de monitoreo que dé seguimiento a la incorporación de las opiniones de las mujeres?",null,null,null,"Seleccione",{"$f":"IF(G75=\"No se han desarrollado acciones\",0,IF(G75=\"Las acciones abordan parcialmente los aspectos requeridos por la pregunta\",4,IF(G75=\"Las acciones consideran una perspectiva de género e incluyen un mecanismo de monitoreo\",6,\"\")))","v":""}]
[null,"3.3.1.3","¿Existe evidencia de que la actividad económica o proyecto contribuye a la formación o fortalecimiento de alianzas entre mujeres y de organizaciones que trabajen por sus derechos, la igualdad de género, la conservación del territorio o del medio ambiente, y una transición justa?",null,null,null,"Seleccione",{"$f":"IF(G76=\"No existe evidencia o no se comunica\",0,IF(G76=\"La comunicación de la evidencia es parcial dentro de la organización\",2,IF(G76=\"La evidencia es de conocimiento de toda la organización\",4,IF(G76=\"La información es pública\",6,\"\"))))","v":""}]
[null,null,null,null,null,null,null,{"$f":"SUM(H74:H76)","v":0}]
[null,null,"Resumen:","Puntaje obtenido en cada pilar","Alineación"]
[null,null,"Resultados pilar 1: Trabajo digo",{"$f":"SUM(H11,H17,H22,H27,H32,H37,H42,H47)","v":0},{"$f":"IF(D79<24,\"Es necesario incrementar la ambición en el pilar 1 de trabajo digno\",\"El proyecto contribuye al cierre de brechas de género, conforme a la Taxonomía Sostenible de México\")","v":"Es necesario incrementar la ambición en el pilar 1 de trabajo digno"}]
[null,null,"Resultados pilar 2: Bienestar",{"$f":"SUM(H52,H57,H62)","v":0},{"$f":"IF(D80<24,\"Es necesario incrementar la ambición en el pilar 2 de bienestar\",\"El proyecto contribuye al cierre de brechas de género, conforme a la Taxonomía Sostenible de México\")","v":"Es necesario incrementar la ambición en el pilar 2 de bienestar"}]
[null,null,"Resultados pilar 3: Inclusión social",{"$f":"SUM(H77,H72,H67)","v":0},{"$f":"IF(D81<24,\"Es necesario incrementar la ambición en el pilar 3 de inclusión social\",\"El proyecto contribuye al cierre de brechas de género, conforme a la Taxonomía Sostenible de México\")","v":"Es necesario incrementar la ambición en el pilar 3 de inclusión social"}]
[null,null,"Total",{"$f":"SUM(D79:D81)","v":0},{"$f":"IF((COUNTIF(G8:G76,\"Seleccione\"))>1,\"Por definir\",IF(AND(E79=\"El proyecto contribuye al cierre de brechas de género, conforme a la Taxonomía Sostenible de México\",E80=\"El proyecto contribuye al cierre de brechas de género, conforme a la Taxonomía Sostenible de México\",E81=\"El proyecto contribuye al cierre de brechas de género, conforme a la Taxonomía Sostenible de México\",D82>=72),\"Sí cumple con el índice de igualdad de género\",\"No cumple con el índice de igualdad de género\"))","v":"Por definir"}]

{"sheet":"Construcción-NDS","index":32,"n_rows":137,"n_cols":8,"rows_kept":137,"cut":false,"hidden":true,"merged":[[106,0,106,5],[107,0,107,5],[108,0,108,5],[112,0,112,5],[119,0,119,5],[134,0,134,5],[135,0,135,5],[123,0,123,5],[130,7,132,7],[136,0,136,5],[126,0,126,5],[130,0,130,5],[131,0,131,5],[132,0,132,5],[105,0,105,5],[87,0,87,5],[88,0,88,5],[89,0,89,5],[92,0,92,5],[98,0,98,5],[102,0,102,5],[79,0,79,5],[83,0,83,5],[84,0,84,5],[85,0,85,5],[86,0,86,5],[75,0,75,5],[47,0,47,5],[51,0,51,5],[52,0,52,5],[53,0,53,5],[54,0,54,5],[62,0,62,5],[63,0,63,5],[64,0,64,5],[65,0,65,5],[66,0,66,5],[71,0,71,5],[42,0,42,5],[16,0,16,5],[19,0,19,5],[23,0,23,5],[26,0,26,5],[27,0,27,5],[31,0,31,5],[32,0,32,5],[33,0,33,5],[34,0,34,5],[37,0,37,5],[41,0,41,5],[15,0,15,5],[1,0,1,6],[3,0,3,6],[5,0,5,6],[9,0,9,5],[10,0,10,5]]}
[]
["Evaluación de No Daño Significativo de actividades de Construcción"]
[]
["El principio de No Daño Significativo (NDS) se compone de una serie de criterios medioambientales que permiten asegurar que una actividad económica, con contribución sustancial, no tenga efectos negativos en ninguno de los otros objetivos de la Taxonomía, distintos al parámetro principal. De esta manera, se asegura que el progreso en algunos objetivos no se haga a expensas de otros objetivos medioambientales. Los criterios de NDS se enfocan en 5 ejes principales: Agua, Adaptación, Biodiversidad, Prevención y Control de la Contaminación y, Economía Circular. Para contar con más detalle, por favor consulta el documento de la Taxonomía Sostenible de México"]
[]
["Asegúrate de responder todas las preguntas. En este apartado aparecerán solo los criterios de No Daño Significativo relacionados a las actividades que se establecieron anteriormente. Al final, se evaluará el porcentaje de criterios de No Daño Significativo que se cumplan. Por favor responde si la actividad cumple con los siguientes criterios."]
[]
["Agua"]
["Vivienda unifamiliar y multifamilar (construcción y renovación)"]
["¿La operación financiera y/o proyecto cumple con la NMX-AA-164-SCFI-2013 - Edificación Sustentable - Criterios y Requerimientos Ambientales Mínimos en las secciones en su sección de Materiales y productos que se empleen en las instalaciones hidráulicas deben certificarse con criterios establecidos en NOM?",null,null,null,null,null,"Seleccione","Presentar certificado de cumplimiento de NMX-AA-164-SCFI-2013 - Edificación Sustentable - Criterios y Requerimientos Ambientales Mínimos en su sección de Materiales y productos que se empleen en las instalaciones hidráulicas deben certificarse con criterios establecidos en NOM"]
["¿En el contexto de la operación financiera y/o proyecto, se cumplen los requerimientos de Línea Base de equipamiento de agua aplicable a vivienda unifamiliar Económica/Popular/Residencial/Media (costo de venta de hasta 2.2 mdp) respecto a las normas NOM-002-CONAGUA-2021 (Aparatos y accesorios de uso sanitario), NOM-008-CNA-1998 (Regadera con grado ecolócico 3.8 pm), NMX-C-415-ONNCCE (Llaves ahorradoras en cocina y baño 6 pm), NOM-001-CONAGUA (Válvulas de seccionamiento) y NMX-AA-176-SCFI-2015 (instalaciones hidrosanitarias para la edificación de la vivienda)?",null,null,null,null,null,"Seleccione","Presentar certificado de cumplimiento de los requerimientos de Línea Base de equipamiento de agua aplicable a vivienda unifamiliar Económica/Popular/Residencial/Media (costo de venta de hasta 2.2 mdp) respecto a las normas NOM-002-CONAGUA-2021 (Aparatos y accesorios de uso sanitario), NOM-008-CNA-1998 (Regadera con grado ecolócico 3.8 pm), NMX-C-415-ONNCCE (Llaves ahorradoras en cocina y baño 6 pm), NOM-001-CONAGUA (Válvulas de seccionamiento) y NMX-AA-176-SCFI-2015 (instalaciones hidrosanitarias para la edificación de la vivienda)"]
[]
["Edificación de naves y plantas industriales, excepto supervisión"]
["Edificación (construcción) de inmuebles comerciales y de servicios, excepto supervisión "]
["Edificación (renovación) de inmuebles comerciales y de servicios, excepto supervisión "]
["¿En la operación financiera y/o proyecto se cumple la NMX-AA-164-SCFI-2013 - Edificación Sustentable - Criterios y Requerimientos Ambientales Mínimos en las secciones en su sección de Materiales y productos que se empleen en las instalaciones hidráulicas deben certificarse con criterios establecidos en NOM?",null,null,null,null,null,"Seleccione","Presentar certificado de cumplimiento de NMX-AA-164-SCFI-2013 - Edificación Sustentable - Criterios y Requerimientos Ambientales Mínimos en las secciones en su sección de Materiales y productos que se empleen en las instalaciones hidráulicas deben certificarse con criterios establecidos en NOM"]
["¿En la operación financiera y/o proyecto se cumple la NOM-002-CONAGUA-2021 (Aparatos y accesorios de uso sanitario), NOM-008-CNA-1998 (Regadera con grado ecolócico 3.8 pm), NMX-C-415-ONNCCE (Llaves ahorradoras en cocina y baño 6 pm), NOM-001-CONAGUA (Válvulas de seccionamiento)?",null,null,null,null,null,"Seleccione","Cumplimiento de Línea Base de equipamiento de agua aplicable a vivienda unifamiliar Económica/Popular/Residencial/Media (costo de venta de hasta 2.2 mdp): o NOM-002-CONAGUA-2021- Aparatos y accesorios de uso sanitario. o NOM-008-CNA-1998 - Regadera con grado ecológico (3.8lpm). o NMX-C-415-ONNCCE - Llaves ahorradoras en cocina y baño (6lpm). o NOM-001-CONAGUA - Válvulas de seccionamiento."]
[]
["Edificación de vivienda unifamiliar en construcción o renovación"]
["¿En la operación financiera y/o proyecto se cumple la NMX-AA-164-SCFI-2013 en sección de áreas libres mayor al valor mínimo establecido en la regulación local en un 10 %, que permitan la infiltración de agua a mantos acuíferos, Requerimientos de diseño y cumplimiento de normativa para proyectos con fuentes de abastecimiento de aguas subterráneas o superficiales, e instalación para la captación, almacenamiento y aprovechamiento del agua de lluvia?",null,null,null,null,null,"Seleccione","Presentar certificado de cumplimiento de NMX-AA-164-SCFI-2013 en sección de áreas libres mayor al valor mínimo establecido en la regulación local en un 10 %, que permitan la infiltración de agua a mantos acuíferos, "]
[]
["Edificación de inmuebles comerciales y de servicios en construcción y renovación "]
["Edificación de naves y plantas industriales, excepto la supervisión."]
["¿En la operación financiera y/o proyecto se cumple la NOM-001-SEMARNAT-1996, NOM-002-SEMARNAT-1996, NOM-003-SEMARNAT-1997, NOM-004-SEMARNAT-2002, NOM-001-CONAGUA-2011, NOM-003-CNA-1996?",null,null,null,null,null,"Seleccione","Cumplimiento de NOM-001-SEMARNAT-1996, NOM-002-SEMARNAT-1996, NOM-003-SEMARNAT-1997, NOM-004-SEMARNAT-2002, NOM-001-CONAGUA-2011, NOM-003-CNA-1996"]
[]
["Instalaciones de sistemas de aire acondicionado y calefacción."]
["¿En el contexto del proyecto se garantizar la no utilización de agua potable en los servicios de sistemas de aire acondicionado y calefacción se alcanzar un mínimo de 10 ciclos en torres de enfriamiento de sistemas centralizados con condensadores enfriados por agua",null,null,null,null,null,"Seleccione","N/A"]
["¿En la operación financiera y/o proyecto se cumplen los requerimientos mínimos de calidad del agua de acuerdo con cada fabricante de los Enfriadores tipo Evaporativo?",null,null,null,null,null,"Seleccione","Detallar la inclusión de estos elementos dentro de la MIA"]
[]
["Construcción de carreteras, puentes y similares"]
["Construcción de obras para transporte eléctrico y ferroviario"]
["¿En la operación financiera y/o proyecto se cumplen los requisitos de la legislación en materia de uso y reúso de agua?",null,null,null,null,null,"Seleccione","Cumplir con el permiso para aguas residuales de CONAGUA"]
["¿La operación financiera y/o proyecto cuenta con los permisos de descarga de aguas residuales en cuerpos de agua nacional, debidamente registrados en el Registro Público de Derechos de Agua de la región hidrológica correspondiente (Art. 30, LAN), cumpliendo la Norma Oficial Mexicana NOM- 001-SEMARNAT-2021?",null,null,null,null,null,"Seleccione","Presentar certificado de cumplimiento de NOM- 001-SEMARNAT-2021"]
["En el caso de descarga de aguas residuales en drenaje o alcantarillado municipal, ¿La operación financiera y/o proyecto cuenta con los permisos y autorizaciones requeridas por la ley?",null,null,null,null,null,"Seleccione","Cumplir con los criterios y lineamientos para otorgar Permisos de Descarga de Aguas Residuales de CONAGUA"]
["¿En la operación financiera y/o proyecto se cumple con el Programa Nacional Hídrico 2020-2024, así como con las estrategias y planes de gestión hídrica estatales y municipales, y atender las recomendaciones de los Consejos de Cuenca por cuenca hidrológica o por región hidrológica?",null,null,null,null,null,"Seleccione","N/A"]
[]
["Adaptación"]
["¿En el contexto de la operación financiera y/o proyecto se desarrollan criterios de gestión de riesgos y de adaptación al cambio climático en el diseño, construcción, reconstrucción, rehabilitación y mantenimiento de la infraestructura asociada?",null,null,null,null,null,"Seleccione","Incluir en la MIA. Demostrar la inclusión de estos elementos en la descripción del sistema ambiental y el señalamiento de la problemática ambiental detectada en el área de influencia del proyecto."]
[]
["Construcción de vivienda unifamiliar"]
["Construcción de vivienda multifamiliar"]
["¿En la operación financiera y/o proyecto se cumple el Código de Edificación de Vivienda respecto a Desarrollo Urbano, Conjuntos Habitacionales, Estructura Urbana, Lotificación y Donaciones, ingeniería urbana, Áreas verdes, Ubicación, y uso de suelo considerando no estén ubicadas en zonas como; Áreas Naturales Protegidas, Zonas de Riesgo, Zonas Inundables, Zonas Federales, Zonas identificadas como No Urbanizables o cerca de predios destinados a actividades riesgosas de acuerdo con la NMX-AA-164-SCFI-2013?",null,null,null,null,null,"Seleccione","Presentar certificado de cumplimiento del Código de Edificación de Vivienda respecto a Desarrollo Urbano, Conjuntos Habitacionales, Estructura Urbana, Lotificación y Donaciones, ingeniería urbana, áreas verdes, Ubicación, y uso de suelo considerando no estén ubicadas en zonas como; Áreas Naturales Protegidas, Zonas de Riesgo, Zonas Inundables, Zonas Federales, Zonas identificadas como No Urbanizables o cerca de predios destinados a actividades riesgosas de acuerdo con la NMX-AA-164-SCFI-2013."]
["¿La operación financiera y/o proyecto considera las recomendaciones del Atlas nacional de vulnerabilidad de cambio climático en sus capítulos de Vulnerabilidad de los asentamientos humanos por inundaciones y Vulnerabilidad de los asentamientos humanos por deslaves?",null,null,null,null,null,"Seleccione","Incluir en la MIA. Demostrar la evaluación de la dimensión de las alteraciones e impactos dentro de los datos del proyecto."]
[]
["Edificación de naves y plantas industriales, excepto la supervisión."]
["Edificación (construcción) de inmuebles comerciales y de servicios, excepto la supervisión"]
["Edificación (renovación) de inmuebles comerciales y de servicios, excepto la supervisión"]
["¿En la operación financiera y/o proyecto, se proporciona al menos una planta de tratamiento de agua al menos para el uso en baños y riego?",null,null,null,null,null,"Seleccione","Incluir en la MIA. Detallar la descripción de la planta de tratamiento de agua."]
[]
["Construcción de carreteras, puentes y similares."]
["Construcción de obras para transporte eléctrico y ferroviario."]
["¿En el contexto del proyecto se indica la escala del proyecto, considerando si el proyecto se ubica en zona de riesgo como paredes de cañones, lechos y cauces de arroyos, zonas de fallas geológicas, de deslizamiento, de inundación, así como en zonas de litorales expuestas a oleaje de tormenta y procesos de erosión, en desembocaduras y ríos áreas identificadas como altamente vulnerables al cambio climático, incluyendo las zonas urbanas y periurbanas aledañas cuando las hubiera?",null,null,null,null,null,"Seleccione","Incluir en la MIA. Detallar en la descripción del sistema ambiental y el señalamiento de la problemática ambiental detectada en el área de influencia del proyecto."]
["¿En el contexto del proyecto se identifica la disponibilidad de agua y los riesgos de contaminación de agua, tanto de aguas superficiales como los acuíferos, y en particular las fuentes de agua utilizadas para consumo humano, en la cuenca hidrológica y en la región hidrológica de que se trate?",null,null,null,null,null,"Seleccione","Incluir en la MIA. Detallar la inclusión de estos elementos dentro de la descripción del proyecto."]
["¿En el contexto del proyecto se establecen medidas de adaptación, con enfoque de equidad de género y derechos humanos y con el criterio fundamental e imprescindible, de reducir la vulnerabilidad al cambio climático a través de Adaptación basada en comunidades humanas, Adaptación basada en ecosistemas y Adaptación basada en la Reducción del Riesgo de Desastres?",null,null,null,null,null,"Seleccione","Presentar ficha de recopilación sistematizada para IACC. ENCC, Visión 10-20-40 y la Metodología para la Priorización de Medidas de Adaptación frente al Cambio Climático (SEMARNAT-GIZ, 2015)."]
["Cada proyecto deberá demostrar que evaluó la dimensión de las alteraciones e impactos que podrían afectar en los en municipios vulnerables al cambio climático, revisando de forma enunciativa, más no limitativa en el Atlas Nacional de Vulnerabilidad y el Atlas Nacional de Riesgos ¿Esto se cumple en el contexto de la operación financiera y/o proyecto?",null,null,null,null,null,"Seleccione","Incluir en la MIA. Detallar la evaluación de la dimensión de las alteraciones e impactos dentro de los datos del proyecto."]
[]
["Biodiversidad "]
["Edificación de vivienda unifamiliar (construcción y renovación)"]
["Edificación de vivienda multifamiliar (construcción y renovación)"]
["Edificación de naves y plantas industriales, excepto la supervisión"]
["Edificación (construcción y renovación) de inmuebles comerciales y de servicios, excepto la supervisión"]
["Instalaciones de sistemas de aire acondicionado y calefacción"]
["¿A nivel de sitio y localización específica la operación financiera y/o proyecto considera lo establecido en la Estrategia Nacional sobre Biodiversidad de México (ENBioMex), Plan de Acción 2016-2030 y la Estrategia Nacional para la Conservación y Aprovechamiento Sustentable de Polinizadores, así como las Estrategias Estatales de Biodiversidad correspondientes?",null,null,null,null,null,"Seleccione","Incluir en la MIA la vinculación del proyecto con lo dispuesto en Estrategia Nacional sobre Biodiversidad de México (ENBioMex), Plan de Acción 2016-2030 y la Estrategia Nacional para la Conservación y Aprovechamiento Sustentable de Polinizadores, así como las Estrategias Estatales de Biodiversidad correspondientes."]
["¿En el contexto del proyecto se demuestra que se evaluó la dimensión de las alteraciones e impactos que podrían afectar la protección ambiental de especies nativas de México de flora y fauna silvestres en categoría de riesgo, revisando de forma enunciativa, más no limitativa el Atlas de Naturaleza y Sociedad y el Mapa potencial de especies en riesgo de extinción en México?",null,null,null,null,null,"Seleccione","Incluir en la MIA. Detallar la evaluación de la dimensión de las alteraciones e impactos dentro de los datos del proyecto."]
["¿A nivel de sitio y localización específica, se cumple con la normatividad correspondiente para la poda y sustitución de árboles durante la construcción?",null,null,null,null,null,"Seleccione","Incluir en la MIA. Detallar el cumplimiento de la normativa correspondiente a nivel estatal para la poda y sustitución de árboles durante la construcción."]
["¿A nivel de sitio y localización específica, se cumple con la normatividad correspondiente en materia de contaminación lumínica, de acuerdo con lo establecido en la Ley General del Equilibrio Ecológico y Protección al Ambiente?",null,null,null,null,null,"Seleccione","Incluir en la MIA. Detallar el cumplimiento de la normatividad correspondiente en materia de contaminación lumínica, de acuerdo con lo establecido en la Ley General del Equilibrio Ecológico y Protección al Ambiente."]
["¿En la operación financiera y/o proyecto se cumple la NMX-AA-164-SCFI-2013 en las secciones de acciones de mitigación para evitar que la iluminación externa cause alteraciones en el medio natural o cambio en el comportamiento de los animales, cuando aplique, Protección de elementos naturales del entorno; flora, fauna, cuerpos de agua, etc. y En caso de removerse la vegetación del terreno no debe utilizarse fuego, ni agentes químicos?",null,null,null,null,null,"Seleccione","Presentar certificado de cumplimiento de la NMX-AA-164-SCFI-2013, en las secciones de acciones de mitigación para evitar que la iluminación externa cause alteraciones en el medio natural o cambio en el comportamiento de los animales, cuando aplique, Protección de elementos naturales del entorno; flora, fauna, cuerpos de agua, etc. y En caso de removerse la vegetación del terreno no debe utilizarse fuego, ni agentes químicos."]
[]
["Edificación de vivienda unifamiliar (construcción y renovación)"]
["Edificación de vivienda multifamiliar (construcción y renovación)"]
["Edificación (construcción y renovación) de inmuebles comerciales y de servicios, excepto la supervisión"]
["¿En la operación financiera y/o proyecto se cumple la NMX-AA-164-SCFI-2013 en lo referente a que Los productos y recursos forestales que se utilicen deben acreditar su legal procedencia y cumplir con las disposiciones de la Ley General de Desarrollo Forestal Sustentable y su Reglamento?",null,null,null,null,null,"Seleccione","Presentar certificado de cumplimiento de NMX-AA-164-SCFI-2013,  en lo referente a que los productos y recursos forestales que se utilicen deben acreditar su legal procedencia y cumplir con las disposiciones de la Ley General de Desarrollo Forestal Sustentable y su Reglamento."]
[]
["Edificación de vivienda unifamiliar (construcción y renovación)"]
["Edificación de vivienda multifamiliar (construcción y renovación)"]
["¿En la operación financiera y/o proyecto se cumple la NMX-AA-164-SCFI-2013, de Edificación Sustentable - Criterios y Requerimientos Ambientales Mínimos en las secciones de Áreas libre mayor al valor mínimo establecido en la regulación local en un 10%, que permitan la infiltración de agua a mantos acuíferos, y Ubicación de edificaciones fuera de zonas de riesgo, áreas naturales protegidas, formaciones geológicas y topográficas, zonas inundables, sobre manglares y humedales, etc?",null,null,null,null,null,"Seleccione","Presentar certificado de cumplimiento de NMX-AA-164-SCFI-2013."]
[]
["Edificación de naves y plantas industriales, excepto la supervisión"]
["Edificación (construcción y renovación) de inmuebles comerciales y de servicios, excepto la supervisión"]
["¿En la operación financiera y/o proyecto se cumple la NMX-R-046-SCFI-2011?",null,null,null,null,null,"Seleccione","Presentar certificado de cumplimiento de NMX-R-046-SCFI-2011."]
[]
["Construcción de carreteras, puentes y similares"]
["Construcción de obras para transporte eléctrico y ferroviario"]
["¿En la operación financiera y/o proyecto cuenta con una manifestación de impacto ambiental (MIA) autorizada por la autoridad competente (federal o estatal), con vigencia y e informes de cumplimiento de condicionantes ambientales?",null,null,null,null,null,"Seleccione","Presentar MIA aprobada por las autoridades ambientales."]
["La delimitación del proyecto debe de ser congruente con la magnitud de los impactos ambientales, cumpliendo instrumentos de planeación existentes (Programa de Ordenamiento Ecológico del Territorio (POET), Plan de Desarrollo Urbano (PDU), cuencas hidrológicas, entre otros) ¿Esto se cumple en el contexto de la operación financiera y/o proyecto?",null,null,null,null,null,"Seleccione","Incluir en la MIA los elementos señalados."]
["¿En su caso, el proyecto cuenta con una autorización de cambio de uso de suelo de áreas forestales, así como de selvas o de zonas áridas, de conformidad con el artículo 68 de la Ley General de Desarrollo Forestal Sustentable?",null,null,null,null,null,"Seleccione","Presentar  autorización de cambio de uso de suelo de áreas forestales, así como de selvas o de zonas áridas, de conformidad con el artículo 68 de la Ley General de Desarrollo Forestal Sustentable."]
["¿En la operación financiera y/o proyecto se consideran las acciones y especificaciones establecidas en las Estrategias Estatales de Biodiversidad que correspondan, la Estrategia Nacional para la Conservación y Aprovechamiento Sustentable de Polinizadores, así como la Estrategia Nacional de México (ENBioMex) y Plan de Acción 2016-2030 en materia de Uso ordenado del territorio y desarrollo urbano sustentable y la incorporación de criterios de conservación de la biodiversidad en las obras de construcción de infraestructura?",null,null,null,null,null,"Seleccione","Incluir en la MIA la vinculación del proyecto con lo dispuesto en Estrategia Nacional sobre Biodiversidad de México (ENBioMex), Plan de Acción 2016-2030 y la Estrategia Nacional para la Conservación y Aprovechamiento Sustentable de Polinizadores, así como las Estrategias Estatales de Biodiversidad correspondientes."]
["¿En la operación financiera y/o proyecto se demuestra que se evaluó la dimensión de las alteraciones e impactos que podrían afectar la protección ambiental de especies nativas de México de flora y fauna silvestres en categoría de riesgo, revisando de forma enunciativa, más no limitativa el Atlas de Naturaleza y Sociedad y el Mapa potencial de especies en riesgo de extinción en México?",null,null,null,null,null,"Seleccione","Incluir en la MIA. Detallar dentro de la evaluación de la dimensión de las alteraciones e impactos dentro de los datos del proyecto."]
["¿La operación financiera y/o proyecto contribuye a la restauración de los ecosistemas degradados",null,null,null,null,null,"Seleccione","Incluir en la MIA los elementos señalados."]
["¿La operación financiera y/o proyecto monitorea los ecosistemas y las especies de mayor fragilidad?",null,null,null,null,null,"Seleccione","Incluir en la MIA los elementos señalados."]
[]
["Prevención y control de la contaminación"]
["¿En la operación financiera y/o proyecto se cumple con los establecido en las Normas Oficiales Mexicanas relativa a los contaminantes de la industria a la atmósfera?",null,null,null,null,null,"Seleccione","Presentar el certificado de cumplimiento de las NOM relativas a los contaminantes de la industria a la atmósfera."]
[]
["Edificación de vivienda unifamiliar (construcción y renovación)"]
["Edificación de vivienda multifamiliar (construcción y renovación)"]
["Edificación de naves y plantas industriales, excepto la supervisión"]
["Edificación (construcción y renovación) de inmuebles comerciales y de servicios, excepto la supervisión"]
["¿En la operación financiera y/o proyecto se cumple la NMX-AA-164-SCFI-2013 en su sección de calidad del aire en interiores donde los niveles deben de permanecer en niveles de concentración por debajo de los estándares establecidos para ambientes exteriores, así como los criterios de la Organización Mundial de la Salud?",null,null,null,null,null,"Seleccione","Presentar certificado de cumplimiento de NMX-AA-164-SCFI-2013."]
[]
["Edificación de vivienda unifamiliar (construcción y renovación)"]
["Edificación de vivienda multifamiliar (construcción y renovación)"]
["¿En la operación financiera y/o proyecto cumple el Código de Edificación de Vivienda (CEV) respecto a compuestos orgánicos volátiles en pinturas y recubrimientos?",null,null,null,null,null,"Seleccione","Presentar lo establecido en la Guía de Implementación del CEV: Adaptación y Adopción Locales."]
[]
["Instalaciones de sistemas de aire acondicionado y calefacción."]
["¿En la operación financiera y/o proyecto se evita el uso refrigerantes que dañen la capa de ozono (CFC) en ninguno de los equipos y sistemas?",null,null,null,null,null,"Seleccione","Presentar certificado de cumplimiento de NOM-161-SEMARNAT-2009."]
["¿La operación financiera y/o proyecto se evita el uso de refrigerantes con un índice de Calentamiento Global (GWP) < 1000?",null,null,null,null,null,"Seleccione","Presentar certificado de cumplimiento de NOM-161-SEMARNAT-2010."]
["¿La operación financiera y/o proyecto cuenta con un plan de manejo de refrigerantes de acuerdo con la NOM-161-SEMARNAT-2011?",null,null,null,null,null,"Seleccione","Presentar certificado de cumplimiento de NOM-161-SEMARNAT-2011."]
["En caso de remoción de equipos con refrigerante, ya sea por sustitución, o eliminación, se deberá llevar a cabo el proceso de recuperación de los refrigerantes, de acuerdo con la NOM-162-SEMARNAT-2011 y comprobar el destino final del refrigerante a los centros de autorizados para su destrucción ¿Esto se cumple en el contexto de la operación financiera y/o proyecto?",null,null,null,null,null,"Seleccione","Presentar certificado de cumplimiento de NOM-161-SEMARNAT-2012."]
[]
["Construcción de carreteras, puentes y similares"]
["Construcción de obras para transporte eléctrico y ferroviario"]
["¿En el contexto de la operación financiera y/o proyecto se monitorea y cumple con los límites máximos permisibles de emisiones contaminantes establecidos en las normas oficiales mexicanas (NOM) y en normas mexicanas en materia de, agua, suelo y olores, ruido y vibraciones, paisaje y, energía térmica y lumínica?",null,null,null,null,null,"Seleccione","Presentar certificado de cumplimiento de las NOM correspondientes."]
[]
["Economía circular "]
["Edificación de vivienda unifamiliar (construcción y renovación)"]
["Edificación de vivienda multifamiliar (construcción y renovación)"]
["Edificación de naves y plantas industriales, excepto la supervisión"]
["Edificación (construcción y renovación) de inmuebles comerciales y de servicios, excepto la supervisión"]
["¿En el contexto de la operación financiera y/o proyecto se cumple con la NMX-AA-164-SCFI-2013 en cuanto a que el manejo de los residuos generados durante la construcción del edificio debe sujetarse a la normatividad local y federal en materia de manejo integral y que, Se debe hacer una selección de los residuos generados durante la obra, separando los residuos en aquellos que pueden ser reutilizados, los reciclables, los no reutilizables ni reciclables y los residuos tóxicos o peligrosos?",null,null,null,null,null,"Seleccione","Presentar certificado de cumplimiento de NMX-AA-164-SCFI-2013."]
[]
["Edificación de vivienda unifamiliar (construcción y renovación)"]
["Edificación de vivienda multifamiliar (construcción y renovación)"]
["Cumplimiento de Código de Edificación de Vivienda (CEV) en su sección de Gestión de residuos.",null,null,null,null,null,"Seleccione","Proporcionar documentos que acrediten el cumplimiento del CEV por parte de la OCAE o la instancia correspondiente. "]
[]
["Instalaciones de sistemas de aire acondicionado y calefacción"]
["¿En la operación financiera y/o proyecto cuenta con un plan de manejo de refrigerantes de acuerdo con la NOM-161-SEMARNAT-2011 para la limpieza y reúso de refrigerantes de los sistemas de enfriamiento y calefacción?",null,null,null,null,null,"Seleccione","Presentar certificado de cumplimiento de NOM-161-SEMARNAT-201."]
[]
["Construcción de carreteras, puentes y similares."]
["Construcción de obras para transporte eléctrico y ferroviario"]
["¿En el contexto de la operación financiera y/o proyecto se identifica el tipo de residuos generados durante las diferentes fases del proyecto, estimando el volumen que pudiera generarse?",null,null,null,null,null,"Seleccione","Incluir en la MIA los elementos señalados."]
["Con base a la estimación de vida útil del proyecto, ¿El proyecto cuenta con un programa para el desmantelamiento y abandono, que incluya los procedimientos, manejo y destino de materiales y equipos y los programas de rehabilitación o restauración de los equipos?",null,null,null,null,null,"Seleccione"]
["¿La operación financiera y/o proyecto identifica y reporta la disponibilidad de servicios de infraestructura para el manejo y disposición final de los residuos, en la localidad y/o región? por ejemplo: rellenos sanitarios, plantas de tratamiento de aguas residuales municipales, servicios de separación, manejo, tratamiento, reciclamiento o confinamiento de residuos, entre otros. En caso de hacer uso de ellos  ¿estos servicios son suficientes para cubrir las demandas presentes y futuras del proyecto y de otros proyectos presentes en la zona?",null,null,null,null,null,"Seleccione"]
[]
["Mitigación"]
["¿En el contexto de la operación financiera y/o proyecto se garantiza el cumplimiento de la NOM-040-ECOL-200, que establece los límites máximos permisibles de emisión provenientes de fuentes fijas dedicadas a la fabricación de cemento hidráulico, que utilicen combustibles convencionales o sus mezclas con otros materiales o residuos que son combustibles?",null,null,null,null,null,"Seleccione","Presentar certificado de cumplimiento de NOM-040-ECOL-200."]
["¿En el contexto de la operación financiera y/o proyecto se garantiza que la actividad económica se lleva a cabo utilizando las mejores tecnologías o materiales disponibles, en alineación con los compromisos de México en materia de mitigación de gases y compuestos de efecto invernadero?",null,null,null,null,null,"Seleccione","Describir los elementos que se consideren como parte de la justificación para este criterio en la MIA en el apartado de medidas de prevención y mitigación. "]

{"sheet":"Manufactura","index":33,"n_rows":50,"n_cols":6,"rows_kept":50,"cut":false,"hidden":true,"merged":[[3,0,3,7],[47,5,47,7],[49,0,49,6],[49,7,49,8],[1,0,1,7]]}
[]
["Actividades de la industria manufacturera"]
[]
["Dentro de la categoría de la industria manufacturera de la Taxonomía Sostenible de México se consideran 6 actividades. En este apartado es necesario seleccionar, de esas 6 actividades, las que estarán siendo financiadas en las operaciones financieras y/o proyectos. En esta versión del Excel, es posible evaluar hasta 20 actividades que se establecen en las cajas de abajo. Recuerda establecer los montos en la casilla amarilla (con número MXN) y elegir las actividades en la lista desplegable azul. Si es necesario incluir más de una actividad, da click en el botón de \"Añade una nueva actividad\".  En caso de que la actividad que deseas evaluar no se encuentre en la lista, significa que no está considerada en este momento por la Taxonomía Sostenible de México. En este caso, puedes  mandar un correo a taxonomia_sost@hacienda.gob.mx para conocer más al respecto. "]
["Objetivos que deberás considerar:",{"$f":"IF('Base-datos'!$C$705=TRUE,\"Mitigación\",\"\")","v":""},{"$f":"IF('Base-datos'!$C$706=TRUE,\"Adaptación\",\"\")","v":""},{"$f":"IF('Base-datos'!$C$707=TRUE,\"Género\",\"\")","v":""}]
[]
[]
["Definición de actividades"]
[null,"Cantidad de recursos ↓","Actividad en la que se colocarán los recursos ↓","Alineación a un objetivo","Tipo de recurso evaluado ↓","Da click para añadir más actividades ↓"]
["Establece por favor en la casilla amarilla la cantidad de recursos que serán destinados a la actividad que selecciones en la casilla azul ",null,"Seleccione","Seleccione","Seleccione"]
[]
["Establece por favor en la casilla amarilla la cantidad de recursos que serán destinados a la actividad que selecciones en la casilla azul ",null,"Seleccione","Seleccione","Seleccione"]
[]
["Establece por favor en la casilla amarilla la cantidad de recursos que serán destinados a la actividad que selecciones en la casilla azul ",null,"Seleccione","Seleccione","Seleccione"]
[]
["Establece por favor en la casilla amarilla la cantidad de recursos que serán destinados a la actividad que selecciones en la casilla azul ",null,"Seleccione","Seleccione","Seleccione"]
[]
["Establece por favor en la casilla amarilla la cantidad de recursos que serán destinados a la actividad que selecciones en la casilla azul ",null,"Seleccione","Seleccione","Seleccione"]
[]
["Establece por favor en la casilla amarilla la cantidad de recursos que serán destinados a la actividad que selecciones en la casilla azul ",null,"Seleccione","Seleccione","Seleccione"]
[]
["Establece por favor en la casilla amarilla la cantidad de recursos que serán destinados a la actividad que selecciones en la casilla azul ",null,"Seleccione","Seleccione","Seleccione"]
[]
["Establece por favor en la casilla amarilla la cantidad de recursos que serán destinados a la actividad que selecciones en la casilla azul ",null,"Seleccione","Seleccione","Seleccione"]
[]
["Establece por favor en la casilla amarilla la cantidad de recursos que serán destinados a la actividad que selecciones en la casilla azul ",null,"Seleccione","Seleccione","Seleccione"]
[]
["Establece por favor en la casilla amarilla la cantidad de recursos que serán destinados a la actividad que selecciones en la casilla azul ",null,"Seleccione","Seleccione","Seleccione"]
[]
["Establece por favor en la casilla amarilla la cantidad de recursos que serán destinados a la actividad que selecciones en la casilla azul ",null,"Seleccione","Seleccione","Seleccione"]
[]
["Establece por favor en la casilla amarilla la cantidad de recursos que serán destinados a la actividad que selecciones en la casilla azul ",null,"Seleccione","Seleccione","Seleccione"]
[]
["Establece por favor en la casilla amarilla la cantidad de recursos que serán destinados a la actividad que selecciones en la casilla azul ",null,"Seleccione","Seleccione","Seleccione"]
[]
["Establece por favor en la casilla amarilla la cantidad de recursos que serán destinados a la actividad que selecciones en la casilla azul ",null,"Seleccione","Seleccione","Seleccione"]
[]
["Establece por favor en la casilla amarilla la cantidad de recursos que serán destinados a la actividad que selecciones en la casilla azul ",null,"Seleccione","Seleccione","Seleccione"]
[]
["Establece por favor en la casilla amarilla la cantidad de recursos que serán destinados a la actividad que selecciones en la casilla azul ",null,"Seleccione","Seleccione","Seleccione"]
[]
["Establece por favor en la casilla amarilla la cantidad de recursos que serán destinados a la actividad que selecciones en la casilla azul ",null,"Seleccione","Seleccione","Seleccione"]
[]
["Establece por favor en la casilla amarilla la cantidad de recursos que serán destinados a la actividad que selecciones en la casilla azul ",null,"Seleccione","Seleccione","Seleccione"]
[]
["Establece por favor en la casilla amarilla la cantidad de recursos que serán destinados a la actividad que selecciones en la casilla azul ",null,"Seleccione","Seleccione","Seleccione"]
[]
["Establece por favor en la casilla amarilla la cantidad de recursos que serán destinados a la actividad que selecciones en la casilla azul ",null,"Seleccione","Seleccione","Seleccione","Por el momento, solo es posible evaluar 20 actividades. Si tu proyecto involucra más actividades, por favor escribe un corrreo a taxonomia_sost@hacienda.gob.mx"]
[]
["Al haber concluido el llenado de las actividades y los tipos de recursos que estarás evaluando, por favor da click en el siguiente botón para evaluar la contribución sustancial de las actividades"]

{"sheet":"Mitigación-Manufactura","index":34,"n_rows":35,"n_cols":5,"rows_kept":35,"cut":false,"hidden":true,"merged":[[8,0,8,3],[1,0,1,6],[3,0,3,6],[5,0,5,4],[6,0,6,2],[7,0,7,2],[6,4,7,4],[10,0,10,4],[11,0,11,2],[12,0,12,2],[13,0,13,3],[15,0,15,4],[11,4,12,4],[28,0,28,2],[16,0,16,2],[17,0,17,2],[18,0,18,3],[20,0,20,4],[22,0,22,2],[23,0,23,3],[21,0,21,3],[25,0,25,4],[26,0,26,2],[27,0,27,2],[16,4,17,4],[26,4,28,4],[29,0,29,3],[31,0,31,4],[32,0,32,2],[33,0,33,2],[34,0,34,3],[32,4,33,4]]}
[]
["Mitigación al cambio climático de actividades de la Industria Manufacturera"]
[]
["La Taxonomía Sostenible de México contiene métricas y umbrales que evalúan la contribución sustancial de cada una de las actividades económicas para determinar si dichas actividades contribuyen sustancialmente a la sostenibilidad. Las métricas corresponden a las unidades en las que se evalúan los umbrales. Por otro lado, los umbrales son los niveles mínimos que tienen que cumplir cada una de las actividades para argumentar que cuentan con contribución sustancial."]
[]
["327310. Fabricación de cemento y productos a base de cemento en plantas integradas"]
["¿El proyecto produce exclusivamente clinker de cemento?",null,null,"Seleccione","Contestar las preguntas en órden. La primera definirá la condición de la segunda."]
[{"$f":"IF(D7=\"Seleccione\",\"Responde la pregunta de arriba primero\",CONCATENATE(IF(D7=\"Sí\",\"Las emisiones directas netas asociadas a la producción de clínker deben ser inferiores a 0.8 toneladas de CO2 netos por cada tonelada de clínker gris\",\"Las emisiones directas netas asociadas a la producción de cemento gris deben ser inferiores a 0.6 toneladas de CO2 netos por cada tonelada de clínker gris\"),\" ¿Esto se cubre a través del proyecto? \"))","v":"Responde la pregunta de arriba primero"},null,null,"Seleccione"]
[{"$f":"IF(OR(D7=\"Seleccione\",D8=\"Seleccione\"),\"Por definir\",IF(D8=\"Sí\",\"La actividad sí contribuye sustancialmente a la sostenibilidad\",\"La actividad no genera contribución sustancial\"))","v":"Por definir"}]
[]
["331111. Complejos siderúrgicos"]
["¿A partir de cuál de las siguientes tecnologías es producido el hierro y acero dentro del proyecto en evaluación?",null,null,"Coque (excluido el coque de lignito)","Contestar las preguntas en órden. La primera definirá la condición de la segunda."]
[{"$f":"IF(D12=\"Seleccione\",\"Responde la pregunta anterior\",IF(D12=\"Otra tecnología distinta\",\"La taxonomía sostenible de México, solo acepta las tecnologías mencionadas en la lista de la pregunta anterior\",CONCATENATE(IF(D12=\"Mineral sinterizado\",\"Las emisiones directas netas asociadas a la producción deben ser inferiores a 0.163 toneladas de CO2e por cada tonelada de producto generado\",IF(D12=\"Horno de arco eléctrico (EAF)\",\"Las emisiones directas netas asociadas a la producción deben ser inferiores a 0.24 toneladas de CO2e por cada tonelada de producto generado\",IF(D12=\"Coque (excluido el coque de lignito)\",\"Las emisiones directas netas asociadas a la producción deben ser inferiores a 0.144 toneladas de CO2e por cada tonelada de producto generado\"))),\" ¿Esto se cubre a través del proyecto? \")))","v":"Las emisiones directas netas asociadas a la producción deben ser inferiores a 0.144 toneladas de CO2e por cada tonelada de producto generado ¿Esto se cubre a través del proyecto? "},null,null,"Sí"]
[{"$f":"IF(A13=\"La taxonomía sostenible de México, solo acepta las tecnologías mencionadas en la lista de la pregunta anterior\",\"La actividad no está contemplada dentro de la Taxonomía Sostenible de México\",IF(OR(D12=\"Seleccione\",D13=\"Seleccione\"),\"Por definir\",IF(D13=\"Sí\",\"La actividad sí contribuye sustancialmente a la sostenibilidad\",\"La actividad no genera contribución sustancial\")))","v":"La actividad sí contribuye sustancialmente a la sostenibilidad"}]
[]
["331310. Industria básica del aluminio"]
["¿El proyecto involucra la producción primaria de aluminio o se refiere a la producción de aluminio reciclado?",null,null,"Seleccione","Contestar las preguntas en órden. La primera definirá la condición de la segunda."]
[{"$f":"IF(D17=\"Producción de aluminio reciclado\",\"Actividad excenta de cumplir con umbrales y se considera alineada a la Taxonomía Sostenible de México (por favor, no ingreses ningún dato extra en la casilla de la derecha)\",\"Elige la opción que se alinee al proyecto en la casilla de la derecha -->\")","v":"Elige la opción que se alinee al proyecto en la casilla de la derecha -->"},null,null,"Seleccione"]
[{"$f":"IF(A18=\"Actividad excenta de cumplir con umbrales y se considera alineada a la Taxonomía Sostenible de México (por favor, no ingreses ningún dato extra en la casilla de la derecha)\",\"La actividad sí contribuye sustancialmente a la sostenibilidad\",IF(OR(D17=\"Seleccione\",D18=\"Seleccione\"),\"Por definir\",IF(D17=\"Producción de aluminio reciclado\",\"La actividad sí contribuye sustancialmente a la sostenibilidad\",IF(D18=\"Ninguna de las anteriores\",\"La actividad no genera contribución sustancial\",IF(D18=\"Selecciona en caso de que aplique\",\"\",\"La actividad sí contribuye sustancialmente a la sostenibilidad\")))))","v":"Por definir"}]
[]
["325120. Fabricación de gases industriales"]
["La siguiente actividad involucra la producción principalmente de hidrógeno. En caso de que la actividad incluya la producción de otro gas, por favor enviar un correo a taxonomia_sost@hacienda.gob.mx"]
["¿La producción de hidrógeno dentro del proyecto, genera emisiones directas iguales o inferiores a 3.0 toneladas de CO2e por tonelada de\nhidrógeno producido?",null,null,"Seleccione"]
[{"$f":"IF(D23=\"Seleccione\",\"Por definir\",IF(D23=\"Sí\",\"La actividad sí contribuye sustancialmente a la sostenibilidad\",\"La actividad no genera contribución sustancial\"))","v":"Por definir"}]
[]
["325180. Fabricación de otros productos químicos básicos inorgánicos"]
["¿El proyecto produce principalmente carbono negro con emisiones inferiores a 1.141 toneladas de CO2e por cada tonelada producida?",null,null,"Seleccione","En caso de que al menos una de las actividades que apliquen no cumplan con los umbrales, la actividad no se podrá considerar como sostenible"]
["El proyecto produce principalmente ceniza de sosa con emisiones inferiores a 0.789 toneladas de CO2e por cada tonelada producida?",null,null,"Seleccione"]
["El uso de electricidad para la fabricación de cloro es igual o inferior a 2.45 MWh/t Cloro (incluye tanto la electrólisis como el tratamiento del cloro, umbral sujeto a actualización periódica), además, la intensidad media de carbono de la electricidad utilizada para su fabricación es de 100 gCO2e/kWh.",null,null,"Seleccione"]
[{"$f":"IF(OR(D27=\"Seleccione\",D28=\"Seleccione\",D29=\"Seleccione\"),\"Por definir\",IF(AND(D27=\"Sí\",D28=\"El proyecto no tiene como objetivo principal la producción de ceniza de sosa\",D29=\"El proyecto no tiene como objetivo principal la producción de cloro\"),\"La actividad sí contribuye sustancialmente a la sostenibilidad\",IF(AND(D27=\"El proyecto no tiene como objetivo principal la producción de negro de humo\",D28=\"Sí\",D29=\"El proyecto no tiene como objetivo principal la producción de cloro\"),\"La actividad sí contribuye sustancialmente a la sostenibilidad\",IF(AND(D27=\"El proyecto no tiene como objetivo principal la producción de negro de humo\",D28=\"El proyecto no tiene como objetivo principal la producción de ceniza de sosa\",D29=\"Sí\"),\"La actividad sí contribuye sustancialmente a la sostenibilidad\",IF(AND(D27=\"Sí\",D28=\"Sí\",D29=\"El proyecto no tiene como objetivo principal la producción de cloro\"),\"La actividad sí contribuye sustancialmente a la sostenibilidad\",IF(AND(D27=\"El proyecto no tiene como objetivo principal la producción de negro de humo\",D28=\"Sí\",D29=\"Sí\"),\"La actividad sí contribuye sustancialmente a la sostenibilidad\",IF(AND(D27=\"Sí\",D28=\"El proyecto no tiene como objetivo principal la producción de ceniza de sosa\",D29=\"Sí\"),\"La actividad sí contribuye sustancialmente a la sostenibilidad\",IF(AND(D27=\"Sí\",D28=\"Sí\",D29=\"Sí\"),\"La actividad sí contribuye sustancialmente a la sostenibilidad\",IF(AND(D27=\"El proyecto no tiene como objetivo principal la producción de negro de humo\",D28=\"El proyecto no tiene como objetivo principal la producción de ceniza de sosa\",D29=\"El proyecto no tiene como objetivo principal la producción de cloro\"),\"La actividad no está incluida dentro de la Taxonomía Sostenible de México\",\"La actividad no genera contribución sustancial\")))))))))","v":"Por definir"}]
[]
["325190. Fabricación de otros productos químicos básicos orgánicos"]
["¿La fabricación de los productos químicos orgánicos está total o parcialmente basada en materias primas renovables (biomasa, biorresiduos industriales, biorresiduos municipales)?",null,null,"Seleccione","Ambas condiciones se deben cumplir para que la actividad contribuya sustancialmente a la sostenibilidad"]
["¿La huella de carbono del producto producido dentro del contexto del proyecto es menor a la huella de carbono del mismo producto fabricado a partir de materia prima fósil? Es necesario calcularlo en conformidad con la norma ISO 14067:2018 o con un protocolo similar. ",null,null,"Seleccione"]
[{"$f":"IF(OR(D33=\"Seleccione\",D34=\"Seleccione\"),\"Por definir\",IF(OR(D33=\"No\",D34=\"No\"),\"La actividad no genera contribución sustancial\",\"La actividad sí contribuye sustancialmente a la sostenibilidad\"))","v":"Por definir"}]

{"sheet":"Adaptación-Manufactura","index":35,"n_rows":202,"n_cols":8,"rows_kept":202,"cut":false,"hidden":true,"merged":[[16,7,18,8],[23,7,24,8],[33,7,35,8],[24,0,24,4],[1,0,1,6],[3,0,3,6],[14,0,14,1],[15,0,15,5],[16,0,16,4],[17,0,17,4],[18,0,18,4],[19,0,19,6],[21,0,21,1],[22,0,22,5],[23,0,23,4],[33,0,33,4],[6,0,6,5],[34,0,34,4],[35,0,35,4],[25,0,25,6],[27,0,27,1],[28,0,28,5],[29,0,29,4],[31,0,31,1],[5,0,5,4],[38,0,38,4],[71,0,71,4],[104,0,104,4],[137,0,137,4],[77,0,77,3],[80,0,80,1],[81,0,81,5],[82,0,82,4],[88,0,88,5],[89,0,89,4],[95,0,95,4],[97,0,97,1],[98,0,98,5],[99,0,99,4],[107,0,107,2],[36,0,36,6],[32,0,32,5],[8,0,8,2],[10,0,10,3],[11,0,11,3],[69,0,69,6],[72,0,72,5],[94,0,94,5],[49,7,51,8],[50,0,50,4],[51,0,51,4],[52,0,52,6],[54,0,54,1],[170,0,170,4],[39,0,39,5],[41,0,41,2],[43,0,43,3],[44,0,44,3],[47,0,47,1],[48,0,48,5],[49,0,49,4],[55,0,55,5],[56,0,56,4],[62,0,62,4],[64,0,64,1],[65,0,65,5],[66,0,66,4],[74,0,74,2],[76,0,76,3],[66,7,68,8],[67,0,67,4],[68,0,68,4],[56,7,57,8],[57,0,57,4],[58,0,58,6],[60,0,60,1],[61,0,61,5],[89,7,90,8],[90,0,90,4],[91,0,91,6],[93,0,93,1],[82,7,84,8],[83,0,83,4],[84,0,84,4],[85,0,85,6],[87,0,87,1],[109,0,109,3],[110,0,110,3],[113,0,113,1],[114,0,114,5],[115,0,115,4],[99,7,101,8],[100,0,100,4],[101,0,101,4],[102,0,102,6],[105,0,105,5],[121,0,121,5],[122,0,122,4],[122,7,123,8],[123,0,123,4],[124,0,124,6],[115,7,117,8],[116,0,116,4],[117,0,117,4],[118,0,118,6],[120,0,120,1],[132,0,132,4],[132,7,134,8],[133,0,133,4],[134,0,134,4],[135,0,135,6],[126,0,126,1],[127,0,127,5],[128,0,128,4],[130,0,130,1],[131,0,131,5],[155,7,156,8],[156,0,156,4],[147,0,147,5],[148,0,148,4],[148,7,150,8],[149,0,149,4],[150,0,150,4],[138,0,138,5],[140,0,140,2],[142,0,142,3],[143,0,143,3],[146,0,146,1],[157,0,157,6],[159,0,159,1],[160,0,160,5],[161,0,161,4],[163,0,163,1],[151,0,151,6],[153,0,153,1],[154,0,154,5],[155,0,155,4],[168,0,168,6],[171,0,171,5],[173,0,173,2],[175,0,175,3],[176,0,176,3],[164,0,164,5],[165,0,165,4],[165,7,167,8],[166,0,166,4],[167,0,167,4],[184,0,184,6],[186,0,186,1],[187,0,187,5],[188,0,188,4],[188,7,189,8],[189,0,189,4],[179,0,179,1],[180,0,180,5],[181,0,181,4],[181,7,183,8],[182,0,182,4],[183,0,183,4],[201,0,201,6],[197,0,197,5],[198,0,198,4],[198,7,200,8],[199,0,199,4],[200,0,200,4],[190,0,190,6],[192,0,192,1],[193,0,193,5],[194,0,194,4],[196,0,196,1]]}
[]
["Adaptación al cambio climático de actividades del sector de la Industria Manufacturera"]
[]
["La Taxonomía Sostenible de México reconoce que el país está expuesto a riesgos climáticos y ambientales heterogéneos no lineales que tienen múltiples canales de transmisión y, por ende, que el cambio climático afecta en distinta medida a todos los sectores de la economía. En este sentido, a través de la Taxonomía se busca que las actividades económicas contribuyan sustancialmente, no sólo a la mitigación, sino también a la adaptación del cambio climático. "]
[]
["327310. Fabricación de cemento y productos a base de cemento en plantas integradas"]
["Responde las siguientes preguntas seleccionando una respuesta de la lista"]
[]
["1. La actividad que estás evaluando es una actividad adaptada o una actividad que facilita la adaptación?",null,null,"Actividad que facilita la adaptación"]
[]
["¿Qué es una actividad adaptada?\nUna actividad económica se adapta a los riesgos climáticos físicos materiales, si integra medidas y/o soluciones para reducirlos, mientras garantiza que la actividad económica pueda funcionar bien en un clima cambiante. Estas actividades de adaptación se desarrollan a partir de la evaluación de riesgos actuales y futuros, ya sean climáticos, crónicos y/o agudos, así como la escala temporal y geográfica de la actividad económica."]
["¿Qué es una actividad que facilita la adaptación? \nUna actividad económica posibilita la adaptación si reduce el riesgo climático físico material y la vulnerabilidad en otras actividades económicas, comunidades, ecosistemas o ciudades, y/o aborda los obstáculos sistémicos a la adaptación. Esto es posible a través del uso de la tecnología y la creación de un producto o servicio especializado."]
[]
[]
["A1. Reducción de los riesgos climáticos físicos materiales."]
["La actividad económica debe reducir todos los riesgos climáticos físicos materiales para las actividades evaluadas, en la medida de lo posible y sobre la base del mejor esfuerzo. Selecciona las respuestas en las listas desplegables"]
["¿La actividad económica integra medidas destinadas a reducir, en la medida de lo posible y sobre la base del mejor esfuerzo, los riesgos climáticos físicos materiales para esa actividad, que han sido identificados mediante una evaluación de riesgos?",null,null,null,null,"Sí",{"$f":"IF(F17=\"Seleccione\",\"Por definir\",IF(F17=\"Sí\",\"El primer criterio se cumple satisfactoriamente\",\"Al no cumplir con este criterio, no es posible generar contribución sustancial\"))","v":"El primer criterio se cumple satisfactoriamente"},"Las tres condiciones deben cumplirse para argumentar que la actividad tiene contribución sustancial"]
["¿Esta evaluación considera tanto la variabilidad meteorológica actual, como el cambio climático futuro, incluidos los escenarios climáticos, así como la incertidumbre?",null,null,null,null,"Sí",{"$f":"IF(F18=\"Seleccione\",\"Por definir\",IF(F18=\"Sí\",\"El segundo criterio se cumple satisfactoriamente\",\"Al no cumplir con este criterio, no es posible generar contribución sustancial\"))","v":"El segundo criterio se cumple satisfactoriamente"}]
["¿Igualmente la evaluación se basa en un sólido análisis de los datos e información disponible sobre los distintos escenarios climáticos, y es coherente con la duración prevista de la actividad?",null,null,null,null,"Sí",{"$f":"IF(F19=\"Seleccione\",\"Por definir\",IF(F19=\"Sí\",\"El tercer criterio se cumple satisfactoriamente\",\"Al no cumplir con este criterio, no es posible generar contribución sustancial\"))","v":"El tercer criterio se cumple satisfactoriamente"}]
[{"$f":"IF(OR(F17=\"Seleccione\",F18=\"Seleccione\",F19=\"Seleccione\"),\"Por definir\",IF(OR(F17=\"No\",F18=\"No\",F19=\"No\"),\"La actividad no genera contribución sustancial\", \"La actividad sí contribuye sustancialmente a la sostenibilidad\"))","v":"La actividad sí contribuye sustancialmente a la sostenibilidad"}]
[]
["A2. Apoyo a la adaptación del sistema. "]
["La actividad económica y sus medidas de adaptación no afectan negativamente los esfuerzos de adaptación de otras personas, la naturaleza y los bienes. Selecciona las respuestas en las listas desplegables"]
["¿La actividad económica y sus medidas de adaptación no aumentan los riesgos de un impacto climático adverso sobre otras personas, la naturaleza y los bienes?",null,null,null,null,"Sí",{"$f":"IF(F24=\"Seleccione\",\"Por definir\",IF(F24=\"Sí\",\"El primer criterio se cumple satisfactoriamente\",\"Al no cumplir con este criterio, no es posible generar contribución sustancial\"))","v":"El primer criterio se cumple satisfactoriamente"},"Las dos condiciones deben cumplirse para argumentar que la actividad tiene contribución sustancial"]
["¿La actividad económica y sus medidas de adaptación son consistentes con los esfuerzos de adaptación a nivel sectorial, regional y/o nacional?",null,null,null,null,"Sí",{"$f":"IF(F25=\"Seleccione\",\"Por definir\",IF(F25=\"Sí\",\"El segundo criterio se cumple satisfactoriamente\",\"Al no cumplir con este criterio, no es posible generar contribución sustancial\"))","v":"El segundo criterio se cumple satisfactoriamente"}]
[{"$f":"IF(OR(F24=\"Seleccione\",F25=\"Seleccione\"),\"Por definir\",IF(OR(F24=\"No\",F25=\"No\"),\"La actividad no genera contribución sustancial\", \"La actividad sí contribuye sustancialmente a la sostenibilidad\"))","v":"La actividad sí contribuye sustancialmente a la sostenibilidad"}]
[]
["A3. Monitoreo de los resultados de adaptación."]
["En el contexto de la actividad evaluada, la reducción de los riesgos físicos se puede medir. Selecciona las respuestas en las listas desplegables"]
[" Los resultados de adaptación pueden ser monitoreados y medidos con base en indicadores. Considerando que los riesgos físicos evolucionan con el tiempo, el análisis de riesgos físicos debe llevarse a cabo con la frecuencia adecuada.  ¿Esto se evalúa dentro de la operación financiera y/o proyecto?",null,null,null,null,"Sí",{"$f":"IF(F30=\"Seleccione\",\"Por definir\",IF(F30=\"Sí\",\"La actividad sí contribuye sustancialmente a la sostenbilidad\",\"El proyecto no genera contribución sustancial\"))","v":"La actividad sí contribuye sustancialmente a la sostenbilidad"}]
[]
["B1. Apoyar a la adaptación de otras actividades económicas."]
["La actividad económica reduce el riesgo climático físico material en otras actividades económicas y/o aborda los obstáculos sistémicos para la adaptación. Las actividades que permiten la adaptación incluyen, pero no se limitan a, actividades que promueven una tecnología, un producto, una práctica, un proceso de gobernanza o usos innovadores de tecnologías, productos o prácticas existentes (incluidos los relacionados con las infraestructuras naturales). Además, eliminan las barreras de información, financieras, tecnológicas y de capacidad para la adaptación de otros. Selecciona las respuestas en las listas desplegables"]
["¿Se realiza una evaluación de los riesgos resultantes, con base en datos sólidos, tanto de la variabilidad  meteorológica actual como del cambio climático futuro, incluidos los escenarios climáticos, así como  la incertidumbre, que la actividad económica contribuirá a abordar?",null,null,null,null,"Sí",{"$f":"IF(F34=\"Seleccione\",\"Por definir\",IF(F34=\"Sí\",\"El primer criterio se cumple satisfactoriamente\",\"Al no cumplir con este criterio, no es posible generar contribución sustancial\"))","v":"El primer criterio se cumple satisfactoriamente"},"Las tres condiciones en caso de que apliquen deben cumplirse para argumentar que la actividad tiene contribución sustancial. La tercera opción podría no aplicar. En este caso se evaluaran las primeras dos cuestiones"]
["¿Se realiza una evaluación de la eficacia de la contribución de la actividad económica a la reducción de los riesgos físicos, teniendo en cuenta la escala de exposición y la vulnerabilidad a los mismos?",null,null,null,null,"Sí",{"$f":"IF(F35=\"Seleccione\",\"Por definir\",IF(F35=\"Sí\",\"El segundo criterio se cumple satisfactoriamente\",\"Al no cumplir con este criterio, no es posible generar contribución sustancial\"))","v":"El segundo criterio se cumple satisfactoriamente"}]
["En el caso de una infraestructura vinculada a una actividad que permita la adaptación, dicha infraestructura debe cumplir también los criterios de selección A1, A2 y A3. ¿Esto se cumple en el contexto del proyecto?",null,null,null,null,"Sí",{"$f":"IF(F36=\"Seleccione\",\"Por definir\",IF(F36=\"Sí\",\"El tercer criterio se cumple satisfactoriamente\",IF(F36=\"No aplica\",\"No aplica\",\"El proyecto no genera contribución sustancial\")))","v":"El tercer criterio se cumple satisfactoriamente"}]
[{"$f":"IF(OR(F34=\"Seleccione\",F35=\"Seleccione\",F36=\"Seleccione\"),\"Por definir\",IF(OR(F34=\"No\",F35=\"No\",F36=\"No\"),\"La actividad no genera contribución sustancial\",\"La actividad sí contribuye sustancialmente a la sostenibilidad\"))","v":"La actividad sí contribuye sustancialmente a la sostenibilidad"}]
[]
["331111. Complejos siderúrgicos"]
["Responde las siguientes preguntas seleccionando una respuesta de la lista"]
[]
["1. La actividad que estás evaluando es una actividad adaptada o una actividad que facilita la adaptación?",null,null,"Actividad que facilita la adaptación e incluye desarrollo de infraestructura"]
[]
["¿Qué es una actividad adaptada?\nUna actividad económica se adapta a los riesgos climáticos físicos materiales, si integra medidas y/o soluciones para reducirlos, mientras garantiza que la actividad económica pueda funcionar bien en un clima cambiante. Estas actividades de adaptación se desarrollan a partir de la evaluación de riesgos actuales y futuros, ya sean climáticos, crónicos y/o agudos, así como la escala temporal y geográfica de la actividad económica."]
["¿Qué es una actividad que facilita la adaptación? \nUna actividad económica posibilita la adaptación si reduce el riesgo climático físico material y la vulnerabilidad en otras actividades económicas, comunidades, ecosistemas o ciudades, y/o aborda los obstáculos sistémicos a la adaptación. Esto es posible a través del uso de la tecnología y la creación de un producto o servicio especializado."]
[]
[]
["A1. Reducción de los riesgos climáticos físicos materiales."]
["La actividad económica debe reducir todos los riesgos climáticos físicos materiales para las actividades evaluadas, en la medida de lo posible y sobre la base del mejor esfuerzo. Selecciona las respuestas en las listas desplegables"]
["¿La actividad económica integra medidas destinadas a reducir, en la medida de lo posible y sobre la base del mejor esfuerzo, los riesgos climáticos físicos materiales para esa actividad, que han sido identificados mediante una evaluación de riesgos?",null,null,null,null,"Sí",{"$f":"IF(F50=\"Seleccione\",\"Por definir\",IF(F50=\"Sí\",\"El primer criterio se cumple satisfactoriamente\",\"Al no cumplir con este criterio, no es posible generar contribución sustancial\"))","v":"El primer criterio se cumple satisfactoriamente"},"Las tres condiciones deben cumplirse para argumentar que la actividad tiene contribución sustancial"]
["¿Esta evaluación considera tanto la variabilidad meteorológica actual, como el cambio climático futuro, incluidos los escenarios climáticos, así como la incertidumbre?",null,null,null,null,"Sí",{"$f":"IF(F51=\"Seleccione\",\"Por definir\",IF(F51=\"Sí\",\"El segundo criterio se cumple satisfactoriamente\",\"Al no cumplir con este criterio, no es posible generar contribución sustancial\"))","v":"El segundo criterio se cumple satisfactoriamente"}]
["¿Igualmente la evaluación se basa en un sólido análisis de los datos e información disponible sobre los distintos escenarios climáticos, y es coherente con la duración prevista de la actividad?",null,null,null,null,"Sí",{"$f":"IF(F52=\"Seleccione\",\"Por definir\",IF(F52=\"Sí\",\"El tercer criterio se cumple satisfactoriamente\",\"Al no cumplir con este criterio, no es posible generar contribución sustancial\"))","v":"El tercer criterio se cumple satisfactoriamente"}]
[{"$f":"IF(OR(F50=\"Seleccione\",F51=\"Seleccione\",F52=\"Seleccione\"),\"Por definir\",IF(OR(F50=\"No\",F51=\"No\",F52=\"No\"),\"La actividad no genera contribución sustancial\", \"La actividad sí contribuye sustancialmente a la sostenibilidad\"))","v":"La actividad sí contribuye sustancialmente a la sostenibilidad"}]
[]
["A2. Apoyo a la adaptación del sistema. "]
["La actividad económica y sus medidas de adaptación no afectan negativamente los esfuerzos de adaptación de otras personas, la naturaleza y los bienes. Selecciona las respuestas en las listas desplegables"]
["¿La actividad económica y sus medidas de adaptación no aumentan los riesgos de un impacto climático adverso sobre otras personas, la naturaleza y los bienes?",null,null,null,null,"Sí",{"$f":"IF(F57=\"Seleccione\",\"Por definir\",IF(F57=\"Sí\",\"El primer criterio se cumple satisfactoriamente\",\"Al no cumplir con este criterio, no es posible generar contribución sustancial\"))","v":"El primer criterio se cumple satisfactoriamente"},"Las dos condiciones deben cumplirse para argumentar que la actividad tiene contribución sustancial"]
["¿La actividad económica y sus medidas de adaptación son consistentes con los esfuerzos de adaptación a nivel sectorial, regional y/o nacional?",null,null,null,null,"Sí",{"$f":"IF(F58=\"Seleccione\",\"Por definir\",IF(F58=\"Sí\",\"El segundo criterio se cumple satisfactoriamente\",\"Al no cumplir con este criterio, no es posible generar contribución sustancial\"))","v":"El segundo criterio se cumple satisfactoriamente"}]
[{"$f":"IF(OR(F57=\"Seleccione\",F58=\"Seleccione\"),\"Por definir\",IF(OR(F57=\"No\",F58=\"No\"),\"La actividad no genera contribución sustancial\", \"La actividad sí contribuye sustancialmente a la sostenibilidad\"))","v":"La actividad sí contribuye sustancialmente a la sostenibilidad"}]
[]
["A3. Monitoreo de los resultados de adaptación."]
["En el contexto de la actividad evaluada, la reducción de los riesgos físicos se puede medir. Selecciona las respuestas en las listas desplegables"]
[" Los resultados de adaptación pueden ser monitoreados y medidos con base en indicadores. Considerando que los riesgos físicos evolucionan con el tiempo, el análisis de riesgos físicos debe llevarse a cabo con la frecuencia adecuada.  ¿Esto se evalúa dentro de la operación financiera y/o proyecto?",null,null,null,null,"Sí",{"$f":"IF(F63=\"Seleccione\",\"Por definir\",IF(F63=\"Sí\",\"La actividad sí contribuye sustancialmente a la sostenbilidad\",\"El proyecto no genera contribución sustancial\"))","v":"La actividad sí contribuye sustancialmente a la sostenbilidad"}]
[]
["B1. Apoyar a la adaptación de otras actividades económicas."]
["La actividad económica reduce el riesgo climático físico material en otras actividades económicas y/o aborda los obstáculos sistémicos para la adaptación. Las actividades que permiten la adaptación incluyen, pero no se limitan a, actividades que promueven una tecnología, un producto, una práctica, un proceso de gobernanza o usos innovadores de tecnologías, productos o prácticas existentes (incluidos los relacionados con las infraestructuras naturales). Además, eliminan las barreras de información, financieras, tecnológicas y de capacidad para la adaptación de otros. Selecciona las respuestas en las listas desplegables"]
["¿Se realiza una evaluación de los riesgos resultantes, con base en datos sólidos, tanto de la variabilidad  meteorológica actual como del cambio climático futuro, incluidos los escenarios climáticos, así como  la incertidumbre, que la actividad económica contribuirá a abordar?",null,null,null,null,"Sí",{"$f":"IF(F67=\"Seleccione\",\"Por definir\",IF(F67=\"Sí\",\"El primer criterio se cumple satisfactoriamente\",\"Al no cumplir con este criterio, no es posible generar contribución sustancial\"))","v":"El primer criterio se cumple satisfactoriamente"},"Las tres condiciones en caso de que apliquen deben cumplirse para argumentar que la actividad tiene contribución sustancial. La tercera opción podría no aplicar. En este caso se evaluaran las primeras dos cuestiones"]
["¿Se realiza una evaluación de la eficacia de la contribución de la actividad económica a la reducción de los riesgos físicos, teniendo en cuenta la escala de exposición y la vulnerabilidad a los mismos?",null,null,null,null,"Sí",{"$f":"IF(F68=\"Seleccione\",\"Por definir\",IF(F68=\"Sí\",\"El segundo criterio se cumple satisfactoriamente\",\"Al no cumplir con este criterio, no es posible generar contribución sustancial\"))","v":"El segundo criterio se cumple satisfactoriamente"}]
["En el caso de una infraestructura vinculada a una actividad que permita la adaptación, dicha infraestructura debe cumplir también los criterios de selección A1, A2 y A3. ¿Esto se cumple en el contexto del proyecto?",null,null,null,null,"Sí",{"$f":"IF(F69=\"Seleccione\",\"Por definir\",IF(F69=\"Sí\",\"El tercer criterio se cumple satisfactoriamente\",IF(F69=\"No aplica\",\"No aplica\",\"El proyecto no genera contribución sustancial\")))","v":"El tercer criterio se cumple satisfactoriamente"}]
[{"$f":"IF(OR(F67=\"Seleccione\",F68=\"Seleccione\",F69=\"Seleccione\"),\"Por definir\",IF(OR(F67=\"No\",F68=\"No\",F69=\"No\"),\"La actividad no genera contribución sustancial\",\"La actividad sí contribuye sustancialmente a la sostenibilidad\"))","v":"La actividad sí contribuye sustancialmente a la sostenibilidad"}]
[]
["331310. Industria básica del aluminio"]
["Responde las siguientes preguntas seleccionando una respuesta de la lista"]
[]
["1. La actividad que estás evaluando es una actividad adaptada o una actividad que facilita la adaptación?",null,null,"Actividad que facilita la adaptación e incluye desarrollo de infraestructura"]
[]
["¿Qué es una actividad adaptada?\nUna actividad económica se adapta a los riesgos climáticos físicos materiales, si integra medidas y/o soluciones para reducirlos, mientras garantiza que la actividad económica pueda funcionar bien en un clima cambiante. Estas actividades de adaptación se desarrollan a partir de la evaluación de riesgos actuales y futuros, ya sean climáticos, crónicos y/o agudos, así como la escala temporal y geográfica de la actividad económica."]
["¿Qué es una actividad que facilita la adaptación? \nUna actividad económica posibilita la adaptación si reduce el riesgo climático físico material y la vulnerabilidad en otras actividades económicas, comunidades, ecosistemas o ciudades, y/o aborda los obstáculos sistémicos a la adaptación. Esto es posible a través del uso de la tecnología y la creación de un producto o servicio especializado."]
[]
[]
["A1. Reducción de los riesgos climáticos físicos materiales."]
["La actividad económica debe reducir todos los riesgos climáticos físicos materiales para las actividades evaluadas, en la medida de lo posible y sobre la base del mejor esfuerzo. Selecciona las respuestas en las listas desplegables"]
["¿La actividad económica integra medidas destinadas a reducir, en la medida de lo posible y sobre la base del mejor esfuerzo, los riesgos climáticos físicos materiales para esa actividad, que han sido identificados mediante una evaluación de riesgos?",null,null,null,null,"Sí",{"$f":"IF(F83=\"Seleccione\",\"Por definir\",IF(F83=\"Sí\",\"El primer criterio se cumple satisfactoriamente\",\"Al no cumplir con este criterio, no es posible generar contribución sustancial\"))","v":"El primer criterio se cumple satisfactoriamente"},"Las tres condiciones deben cumplirse para argumentar que la actividad tiene contribución sustancial"]
["¿Esta evaluación considera tanto la variabilidad meteorológica actual, como el cambio climático futuro, incluidos los escenarios climáticos, así como la incertidumbre?",null,null,null,null,"Sí",{"$f":"IF(F84=\"Seleccione\",\"Por definir\",IF(F84=\"Sí\",\"El segundo criterio se cumple satisfactoriamente\",\"Al no cumplir con este criterio, no es posible generar contribución sustancial\"))","v":"El segundo criterio se cumple satisfactoriamente"}]
["¿Igualmente la evaluación se basa en un sólido análisis de los datos e información disponible sobre los distintos escenarios climáticos, y es coherente con la duración prevista de la actividad?",null,null,null,null,"Sí",{"$f":"IF(F85=\"Seleccione\",\"Por definir\",IF(F85=\"Sí\",\"El tercer criterio se cumple satisfactoriamente\",\"Al no cumplir con este criterio, no es posible generar contribución sustancial\"))","v":"El tercer criterio se cumple satisfactoriamente"}]
[{"$f":"IF(OR(F83=\"Seleccione\",F84=\"Seleccione\",F85=\"Seleccione\"),\"Por definir\",IF(OR(F83=\"No\",F84=\"No\",F85=\"No\"),\"La actividad no genera contribución sustancial\", \"La actividad sí contribuye sustancialmente a la sostenibilidad\"))","v":"La actividad sí contribuye sustancialmente a la sostenibilidad"}]
[]
["A2. Apoyo a la adaptación del sistema. "]
["La actividad económica y sus medidas de adaptación no afectan negativamente los esfuerzos de adaptación de otras personas, la naturaleza y los bienes. Selecciona las respuestas en las listas desplegables"]
["¿La actividad económica y sus medidas de adaptación no aumentan los riesgos de un impacto climático adverso sobre otras personas, la naturaleza y los bienes?",null,null,null,null,"Sí",{"$f":"IF(F90=\"Seleccione\",\"Por definir\",IF(F90=\"Sí\",\"El primer criterio se cumple satisfactoriamente\",\"Al no cumplir con este criterio, no es posible generar contribución sustancial\"))","v":"El primer criterio se cumple satisfactoriamente"},"Las dos condiciones deben cumplirse para argumentar que la actividad tiene contribución sustancial"]
["¿La actividad económica y sus medidas de adaptación son consistentes con los esfuerzos de adaptación a nivel sectorial, regional y/o nacional?",null,null,null,null,"Sí",{"$f":"IF(F91=\"Seleccione\",\"Por definir\",IF(F91=\"Sí\",\"El segundo criterio se cumple satisfactoriamente\",\"Al no cumplir con este criterio, no es posible generar contribución sustancial\"))","v":"El segundo criterio se cumple satisfactoriamente"}]
[{"$f":"IF(OR(F90=\"Seleccione\",F91=\"Seleccione\"),\"Por definir\",IF(OR(F90=\"No\",F91=\"No\"),\"La actividad no genera contribución sustancial\", \"La actividad sí contribuye sustancialmente a la sostenibilidad\"))","v":"La actividad sí contribuye sustancialmente a la sostenibilidad"}]
[]
["A3. Monitoreo de los resultados de adaptación."]
["En el contexto de la actividad evaluada, la reducción de los riesgos físicos se puede medir. Selecciona las respuestas en las listas desplegables"]
[" Los resultados de adaptación pueden ser monitoreados y medidos con base en indicadores. Considerando que los riesgos físicos evolucionan con el tiempo, el análisis de riesgos físicos debe llevarse a cabo con la frecuencia adecuada.  ¿Esto se evalúa dentro de la operación financiera y/o proyecto?",null,null,null,null,"Sí",{"$f":"IF(F96=\"Seleccione\",\"Por definir\",IF(F96=\"Sí\",\"La actividad sí contribuye sustancialmente a la sostenbilidad\",\"El proyecto no genera contribución sustancial\"))","v":"La actividad sí contribuye sustancialmente a la sostenbilidad"}]
[]
["B1. Apoyar a la adaptación de otras actividades económicas."]
["La actividad económica reduce el riesgo climático físico material en otras actividades económicas y/o aborda los obstáculos sistémicos para la adaptación. Las actividades que permiten la adaptación incluyen, pero no se limitan a, actividades que promueven una tecnología, un producto, una práctica, un proceso de gobernanza o usos innovadores de tecnologías, productos o prácticas existentes (incluidos los relacionados con las infraestructuras naturales). Además, eliminan las barreras de información, financieras, tecnológicas y de capacidad para la adaptación de otros. Selecciona las respuestas en las listas desplegables"]
["¿Se realiza una evaluación de los riesgos resultantes, con base en datos sólidos, tanto de la variabilidad  meteorológica actual como del cambio climático futuro, incluidos los escenarios climáticos, así como  la incertidumbre, que la actividad económica contribuirá a abordar?",null,null,null,null,"Sí",{"$f":"IF(F100=\"Seleccione\",\"Por definir\",IF(F100=\"Sí\",\"El primer criterio se cumple satisfactoriamente\",\"Al no cumplir con este criterio, no es posible generar contribución sustancial\"))","v":"El primer criterio se cumple satisfactoriamente"},"Las tres condiciones en caso de que apliquen deben cumplirse para argumentar que la actividad tiene contribución sustancial. La tercera opción podría no aplicar. En este caso se evaluaran las primeras dos cuestiones"]
["¿Se realiza una evaluación de la eficacia de la contribución de la actividad económica a la reducción de los riesgos físicos, teniendo en cuenta la escala de exposición y la vulnerabilidad a los mismos?",null,null,null,null,"Sí",{"$f":"IF(F101=\"Seleccione\",\"Por definir\",IF(F101=\"Sí\",\"El segundo criterio se cumple satisfactoriamente\",\"Al no cumplir con este criterio, no es posible generar contribución sustancial\"))","v":"El segundo criterio se cumple satisfactoriamente"}]
["En el caso de una infraestructura vinculada a una actividad que permita la adaptación, dicha infraestructura debe cumplir también los criterios de selección A1, A2 y A3. ¿Esto se cumple en el contexto del proyecto?",null,null,null,null,"Sí",{"$f":"IF(F102=\"Seleccione\",\"Por definir\",IF(F102=\"Sí\",\"El tercer criterio se cumple satisfactoriamente\",IF(F102=\"No aplica\",\"No aplica\",\"El proyecto no genera contribución sustancial\")))","v":"El tercer criterio se cumple satisfactoriamente"}]
[{"$f":"IF(OR(F100=\"Seleccione\",F101=\"Seleccione\",F102=\"Seleccione\"),\"Por definir\",IF(OR(F100=\"No\",F101=\"No\",F102=\"No\"),\"La actividad no genera contribución sustancial\",\"La actividad sí contribuye sustancialmente a la sostenibilidad\"))","v":"La actividad sí contribuye sustancialmente a la sostenibilidad"}]
[]
["325120. Fabricación de gases industriales"]
["Responde las siguientes preguntas seleccionando una respuesta de la lista"]
[]
["1. La actividad que estás evaluando es una actividad adaptada o una actividad que facilita la adaptación?",null,null,"Actividad que facilita la adaptación e incluye desarrollo de infraestructura"]
[]
["¿Qué es una actividad adaptada?\nUna actividad económica se adapta a los riesgos climáticos físicos materiales, si integra medidas y/o soluciones para reducirlos, mientras garantiza que la actividad económica pueda funcionar bien en un clima cambiante. Estas actividades de adaptación se desarrollan a partir de la evaluación de riesgos actuales y futuros, ya sean climáticos, crónicos y/o agudos, así como la escala temporal y geográfica de la actividad económica."]
["¿Qué es una actividad que facilita la adaptación? \nUna actividad económica posibilita la adaptación si reduce el riesgo climático físico material y la vulnerabilidad en otras actividades económicas, comunidades, ecosistemas o ciudades, y/o aborda los obstáculos sistémicos a la adaptación. Esto es posible a través del uso de la tecnología y la creación de un producto o servicio especializado."]
[]
[]
["A1. Reducción de los riesgos climáticos físicos materiales."]
["La actividad económica debe reducir todos los riesgos climáticos físicos materiales para las actividades evaluadas, en la medida de lo posible y sobre la base del mejor esfuerzo. Selecciona las respuestas en las listas desplegables"]
["¿La actividad económica integra medidas destinadas a reducir, en la medida de lo posible y sobre la base del mejor esfuerzo, los riesgos climáticos físicos materiales para esa actividad, que han sido identificados mediante una evaluación de riesgos?",null,null,null,null,"Sí",{"$f":"IF(F116=\"Seleccione\",\"Por definir\",IF(F116=\"Sí\",\"El primer criterio se cumple satisfactoriamente\",\"Al no cumplir con este criterio, no es posible generar contribución sustancial\"))","v":"El primer criterio se cumple satisfactoriamente"},"Las tres condiciones deben cumplirse para argumentar que la actividad tiene contribución sustancial"]
["¿Esta evaluación considera tanto la variabilidad meteorológica actual, como el cambio climático futuro, incluidos los escenarios climáticos, así como la incertidumbre?",null,null,null,null,"Sí",{"$f":"IF(F117=\"Seleccione\",\"Por definir\",IF(F117=\"Sí\",\"El segundo criterio se cumple satisfactoriamente\",\"Al no cumplir con este criterio, no es posible generar contribución sustancial\"))","v":"El segundo criterio se cumple satisfactoriamente"}]
["¿Igualmente la evaluación se basa en un sólido análisis de los datos e información disponible sobre los distintos escenarios climáticos, y es coherente con la duración prevista de la actividad?",null,null,null,null,"Sí",{"$f":"IF(F118=\"Seleccione\",\"Por definir\",IF(F118=\"Sí\",\"El tercer criterio se cumple satisfactoriamente\",\"Al no cumplir con este criterio, no es posible generar contribución sustancial\"))","v":"El tercer criterio se cumple satisfactoriamente"}]
[{"$f":"IF(OR(F116=\"Seleccione\",F117=\"Seleccione\",F118=\"Seleccione\"),\"Por definir\",IF(OR(F116=\"No\",F117=\"No\",F118=\"No\"),\"La actividad no genera contribución sustancial\", \"La actividad sí contribuye sustancialmente a la sostenibilidad\"))","v":"La actividad sí contribuye sustancialmente a la sostenibilidad"}]
[]
["A2. Apoyo a la adaptación del sistema. "]
["La actividad económica y sus medidas de adaptación no afectan negativamente los esfuerzos de adaptación de otras personas, la naturaleza y los bienes. Selecciona las respuestas en las listas desplegables"]
["¿La actividad económica y sus medidas de adaptación no aumentan los riesgos de un impacto climático adverso sobre otras personas, la naturaleza y los bienes?",null,null,null,null,"Sí",{"$f":"IF(F123=\"Seleccione\",\"Por definir\",IF(F123=\"Sí\",\"El primer criterio se cumple satisfactoriamente\",\"Al no cumplir con este criterio, no es posible generar contribución sustancial\"))","v":"El primer criterio se cumple satisfactoriamente"},"Las dos condiciones deben cumplirse para argumentar que la actividad tiene contribución sustancial"]
["¿La actividad económica y sus medidas de adaptación son consistentes con los esfuerzos de adaptación a nivel sectorial, regional y/o nacional?",null,null,null,null,"Sí",{"$f":"IF(F124=\"Seleccione\",\"Por definir\",IF(F124=\"Sí\",\"El segundo criterio se cumple satisfactoriamente\",\"Al no cumplir con este criterio, no es posible generar contribución sustancial\"))","v":"El segundo criterio se cumple satisfactoriamente"}]
[{"$f":"IF(OR(F123=\"Seleccione\",F124=\"Seleccione\"),\"Por definir\",IF(OR(F123=\"No\",F124=\"No\"),\"La actividad no genera contribución sustancial\", \"La actividad sí contribuye sustancialmente a la sostenibilidad\"))","v":"La actividad sí contribuye sustancialmente a la sostenibilidad"}]
[]
["A3. Monitoreo de los resultados de adaptación."]
["En el contexto de la actividad evaluada, la reducción de los riesgos físicos se puede medir. Selecciona las respuestas en las listas desplegables"]
[" Los resultados de adaptación pueden ser monitoreados y medidos con base en indicadores. Considerando que los riesgos físicos evolucionan con el tiempo, el análisis de riesgos físicos debe llevarse a cabo con la frecuencia adecuada.  ¿Esto se evalúa dentro de la operación financiera y/o proyecto?",null,null,null,null,"Sí",{"$f":"IF(F129=\"Seleccione\",\"Por definir\",IF(F129=\"Sí\",\"La actividad sí contribuye sustancialmente a la sostenbilidad\",\"El proyecto no genera contribución sustancial\"))","v":"La actividad sí contribuye sustancialmente a la sostenbilidad"}]
[]
["B1. Apoyar a la adaptación de otras actividades económicas."]
["La actividad económica reduce el riesgo climático físico material en otras actividades económicas y/o aborda los obstáculos sistémicos para la adaptación. Las actividades que permiten la adaptación incluyen, pero no se limitan a, actividades que promueven una tecnología, un producto, una práctica, un proceso de gobernanza o usos innovadores de tecnologías, productos o prácticas existentes (incluidos los relacionados con las infraestructuras naturales). Además, eliminan las barreras de información, financieras, tecnológicas y de capacidad para la adaptación de otros. Selecciona las respuestas en las listas desplegables"]
["¿Se realiza una evaluación de los riesgos resultantes, con base en datos sólidos, tanto de la variabilidad  meteorológica actual como del cambio climático futuro, incluidos los escenarios climáticos, así como  la incertidumbre, que la actividad económica contribuirá a abordar?",null,null,null,null,"Sí",{"$f":"IF(F133=\"Seleccione\",\"Por definir\",IF(F133=\"Sí\",\"El primer criterio se cumple satisfactoriamente\",\"Al no cumplir con este criterio, no es posible generar contribución sustancial\"))","v":"El primer criterio se cumple satisfactoriamente"},"Las tres condiciones en caso de que apliquen deben cumplirse para argumentar que la actividad tiene contribución sustancial. La tercera opción podría no aplicar. En este caso se evaluaran las primeras dos cuestiones"]
["¿Se realiza una evaluación de la eficacia de la contribución de la actividad económica a la reducción de los riesgos físicos, teniendo en cuenta la escala de exposición y la vulnerabilidad a los mismos?",null,null,null,null,"Sí",{"$f":"IF(F134=\"Seleccione\",\"Por definir\",IF(F134=\"Sí\",\"El segundo criterio se cumple satisfactoriamente\",\"Al no cumplir con este criterio, no es posible generar contribución sustancial\"))","v":"El segundo criterio se cumple satisfactoriamente"}]
["En el caso de una infraestructura vinculada a una actividad que permita la adaptación, dicha infraestructura debe cumplir también los criterios de selección A1, A2 y A3. ¿Esto se cumple en el contexto del proyecto?",null,null,null,null,"Sí",{"$f":"IF(F135=\"Seleccione\",\"Por definir\",IF(F135=\"Sí\",\"El tercer criterio se cumple satisfactoriamente\",IF(F135=\"No aplica\",\"No aplica\",\"El proyecto no genera contribución sustancial\")))","v":"El tercer criterio se cumple satisfactoriamente"}]
[{"$f":"IF(OR(F133=\"Seleccione\",F134=\"Seleccione\",F135=\"Seleccione\"),\"Por definir\",IF(OR(F133=\"No\",F134=\"No\",F135=\"No\"),\"La actividad no genera contribución sustancial\",\"La actividad sí contribuye sustancialmente a la sostenibilidad\"))","v":"La actividad sí contribuye sustancialmente a la sostenibilidad"}]
[]
["325180. Fabricación de otros productos químicos básicos inorgánicos"]
["Responde las siguientes preguntas seleccionando una respuesta de la lista"]
[]
["1. La actividad que estás evaluando es una actividad adaptada o una actividad que facilita la adaptación?",null,null,"Actividad que facilita la adaptación e incluye desarrollo de infraestructura"]
[]
["¿Qué es una actividad adaptada?\nUna actividad económica se adapta a los riesgos climáticos físicos materiales, si integra medidas y/o soluciones para reducirlos, mientras garantiza que la actividad económica pueda funcionar bien en un clima cambiante. Estas actividades de adaptación se desarrollan a partir de la evaluación de riesgos actuales y futuros, ya sean climáticos, crónicos y/o agudos, así como la escala temporal y geográfica de la actividad económica."]
["¿Qué es una actividad que facilita la adaptación? \nUna actividad económica posibilita la adaptación si reduce el riesgo climático físico material y la vulnerabilidad en otras actividades económicas, comunidades, ecosistemas o ciudades, y/o aborda los obstáculos sistémicos a la adaptación. Esto es posible a través del uso de la tecnología y la creación de un producto o servicio especializado."]
[]
[]
["A1. Reducción de los riesgos climáticos físicos materiales."]
["La actividad económica debe reducir todos los riesgos climáticos físicos materiales para las actividades evaluadas, en la medida de lo posible y sobre la base del mejor esfuerzo. Selecciona las respuestas en las listas desplegables"]
["¿La actividad económica integra medidas destinadas a reducir, en la medida de lo posible y sobre la base del mejor esfuerzo, los riesgos climáticos físicos materiales para esa actividad, que han sido identificados mediante una evaluación de riesgos?",null,null,null,null,"Sí",{"$f":"IF(F149=\"Seleccione\",\"Por definir\",IF(F149=\"Sí\",\"El primer criterio se cumple satisfactoriamente\",\"Al no cumplir con este criterio, no es posible generar contribución sustancial\"))","v":"El primer criterio se cumple satisfactoriamente"},"Las tres condiciones deben cumplirse para argumentar que la actividad tiene contribución sustancial"]
["¿Esta evaluación considera tanto la variabilidad meteorológica actual, como el cambio climático futuro, incluidos los escenarios climáticos, así como la incertidumbre?",null,null,null,null,"Sí",{"$f":"IF(F150=\"Seleccione\",\"Por definir\",IF(F150=\"Sí\",\"El segundo criterio se cumple satisfactoriamente\",\"Al no cumplir con este criterio, no es posible generar contribución sustancial\"))","v":"El segundo criterio se cumple satisfactoriamente"}]
["¿Igualmente la evaluación se basa en un sólido análisis de los datos e información disponible sobre los distintos escenarios climáticos, y es coherente con la duración prevista de la actividad?",null,null,null,null,"Sí",{"$f":"IF(F151=\"Seleccione\",\"Por definir\",IF(F151=\"Sí\",\"El tercer criterio se cumple satisfactoriamente\",\"Al no cumplir con este criterio, no es posible generar contribución sustancial\"))","v":"El tercer criterio se cumple satisfactoriamente"}]
[{"$f":"IF(OR(F149=\"Seleccione\",F150=\"Seleccione\",F151=\"Seleccione\"),\"Por definir\",IF(OR(F149=\"No\",F150=\"No\",F151=\"No\"),\"La actividad no genera contribución sustancial\", \"La actividad sí contribuye sustancialmente a la sostenibilidad\"))","v":"La actividad sí contribuye sustancialmente a la sostenibilidad"}]
[]
["A2. Apoyo a la adaptación del sistema. "]
["La actividad económica y sus medidas de adaptación no afectan negativamente los esfuerzos de adaptación de otras personas, la naturaleza y los bienes. Selecciona las respuestas en las listas desplegables"]
["¿La actividad económica y sus medidas de adaptación no aumentan los riesgos de un impacto climático adverso sobre otras personas, la naturaleza y los bienes?",null,null,null,null,"Sí",{"$f":"IF(F156=\"Seleccione\",\"Por definir\",IF(F156=\"Sí\",\"El primer criterio se cumple satisfactoriamente\",\"Al no cumplir con este criterio, no es posible generar contribución sustancial\"))","v":"El primer criterio se cumple satisfactoriamente"},"Las dos condiciones deben cumplirse para argumentar que la actividad tiene contribución sustancial"]
["¿La actividad económica y sus medidas de adaptación son consistentes con los esfuerzos de adaptación a nivel sectorial, regional y/o nacional?",null,null,null,null,"Sí",{"$f":"IF(F157=\"Seleccione\",\"Por definir\",IF(F157=\"Sí\",\"El segundo criterio se cumple satisfactoriamente\",\"Al no cumplir con este criterio, no es posible generar contribución sustancial\"))","v":"El segundo criterio se cumple satisfactoriamente"}]
[{"$f":"IF(OR(F156=\"Seleccione\",F157=\"Seleccione\"),\"Por definir\",IF(OR(F156=\"No\",F157=\"No\"),\"La actividad no genera contribución sustancial\", \"La actividad sí contribuye sustancialmente a la sostenibilidad\"))","v":"La actividad sí contribuye sustancialmente a la sostenibilidad"}]
[]
["A3. Monitoreo de los resultados de adaptación."]
["En el contexto de la actividad evaluada, la reducción de los riesgos físicos se puede medir. Selecciona las respuestas en las listas desplegables"]
[" Los resultados de adaptación pueden ser monitoreados y medidos con base en indicadores. Considerando que los riesgos físicos evolucionan con el tiempo, el análisis de riesgos físicos debe llevarse a cabo con la frecuencia adecuada.  ¿Esto se evalúa dentro de la operación financiera y/o proyecto?",null,null,null,null,"Sí",{"$f":"IF(F162=\"Seleccione\",\"Por definir\",IF(F162=\"Sí\",\"La actividad sí contribuye sustancialmente a la sostenbilidad\",\"El proyecto no genera contribución sustancial\"))","v":"La actividad sí contribuye sustancialmente a la sostenbilidad"}]
[]
["B1. Apoyar a la adaptación de otras actividades económicas."]
["La actividad económica reduce el riesgo climático físico material en otras actividades económicas y/o aborda los obstáculos sistémicos para la adaptación. Las actividades que permiten la adaptación incluyen, pero no se limitan a, actividades que promueven una tecnología, un producto, una práctica, un proceso de gobernanza o usos innovadores de tecnologías, productos o prácticas existentes (incluidos los relacionados con las infraestructuras naturales). Además, eliminan las barreras de información, financieras, tecnológicas y de capacidad para la adaptación de otros. Selecciona las respuestas en las listas desplegables"]
["¿Se realiza una evaluación de los riesgos resultantes, con base en datos sólidos, tanto de la variabilidad  meteorológica actual como del cambio climático futuro, incluidos los escenarios climáticos, así como  la incertidumbre, que la actividad económica contribuirá a abordar?",null,null,null,null,"Sí",{"$f":"IF(F166=\"Seleccione\",\"Por definir\",IF(F166=\"Sí\",\"El primer criterio se cumple satisfactoriamente\",\"Al no cumplir con este criterio, no es posible generar contribución sustancial\"))","v":"El primer criterio se cumple satisfactoriamente"},"Las tres condiciones en caso de que apliquen deben cumplirse para argumentar que la actividad tiene contribución sustancial. La tercera opción podría no aplicar. En este caso se evaluaran las primeras dos cuestiones"]
["¿Se realiza una evaluación de la eficacia de la contribución de la actividad económica a la reducción de los riesgos físicos, teniendo en cuenta la escala de exposición y la vulnerabilidad a los mismos?",null,null,null,null,"Sí",{"$f":"IF(F167=\"Seleccione\",\"Por definir\",IF(F167=\"Sí\",\"El segundo criterio se cumple satisfactoriamente\",\"Al no cumplir con este criterio, no es posible generar contribución sustancial\"))","v":"El segundo criterio se cumple satisfactoriamente"}]
["En el caso de una infraestructura vinculada a una actividad que permita la adaptación, dicha infraestructura debe cumplir también los criterios de selección A1, A2 y A3. ¿Esto se cumple en el contexto del proyecto?",null,null,null,null,"Sí",{"$f":"IF(F168=\"Seleccione\",\"Por definir\",IF(F168=\"Sí\",\"El tercer criterio se cumple satisfactoriamente\",IF(F168=\"No aplica\",\"No aplica\",\"El proyecto no genera contribución sustancial\")))","v":"El tercer criterio se cumple satisfactoriamente"}]
[{"$f":"IF(OR(F166=\"Seleccione\",F167=\"Seleccione\",F168=\"Seleccione\"),\"Por definir\",IF(OR(F166=\"No\",F167=\"No\",F168=\"No\"),\"La actividad no genera contribución sustancial\",\"La actividad sí contribuye sustancialmente a la sostenibilidad\"))","v":"La actividad sí contribuye sustancialmente a la sostenibilidad"}]
[]
["325190. Fabricación de otros productos químicos básicos orgánicos"]
["Responde las siguientes preguntas seleccionando una respuesta de la lista"]
[]
["1. La actividad que estás evaluando es una actividad adaptada o una actividad que facilita la adaptación?",null,null,"Actividad que facilita la adaptación"]
[]
["¿Qué es una actividad adaptada?\nUna actividad económica se adapta a los riesgos climáticos físicos materiales, si integra medidas y/o soluciones para reducirlos, mientras garantiza que la actividad económica pueda funcionar bien en un clima cambiante. Estas actividades de adaptación se desarrollan a partir de la evaluación de riesgos actuales y futuros, ya sean climáticos, crónicos y/o agudos, así como la escala temporal y geográfica de la actividad económica."]
["¿Qué es una actividad que facilita la adaptación? \nUna actividad económica posibilita la adaptación si reduce el riesgo climático físico material y la vulnerabilidad en otras actividades económicas, comunidades, ecosistemas o ciudades, y/o aborda los obstáculos sistémicos a la adaptación. Esto es posible a través del uso de la tecnología y la creación de un producto o servicio especializado."]
[]
[]
["A1. Reducción de los riesgos climáticos físicos materiales."]
["La actividad económica debe reducir todos los riesgos climáticos físicos materiales para las actividades evaluadas, en la medida de lo posible y sobre la base del mejor esfuerzo. Selecciona las respuestas en las listas desplegables"]
["¿La actividad económica integra medidas destinadas a reducir, en la medida de lo posible y sobre la base del mejor esfuerzo, los riesgos climáticos físicos materiales para esa actividad, que han sido identificados mediante una evaluación de riesgos?",null,null,null,null,"Sí",{"$f":"IF(F182=\"Seleccione\",\"Por definir\",IF(F182=\"Sí\",\"El primer criterio se cumple satisfactoriamente\",\"Al no cumplir con este criterio, no es posible generar contribución sustancial\"))","v":"El primer criterio se cumple satisfactoriamente"},"Las tres condiciones deben cumplirse para argumentar que la actividad tiene contribución sustancial"]
["¿Esta evaluación considera tanto la variabilidad meteorológica actual, como el cambio climático futuro, incluidos los escenarios climáticos, así como la incertidumbre?",null,null,null,null,"Sí",{"$f":"IF(F183=\"Seleccione\",\"Por definir\",IF(F183=\"Sí\",\"El segundo criterio se cumple satisfactoriamente\",\"Al no cumplir con este criterio, no es posible generar contribución sustancial\"))","v":"El segundo criterio se cumple satisfactoriamente"}]
["¿Igualmente la evaluación se basa en un sólido análisis de los datos e información disponible sobre los distintos escenarios climáticos, y es coherente con la duración prevista de la actividad?",null,null,null,null,"Sí",{"$f":"IF(F184=\"Seleccione\",\"Por definir\",IF(F184=\"Sí\",\"El tercer criterio se cumple satisfactoriamente\",\"Al no cumplir con este criterio, no es posible generar contribución sustancial\"))","v":"El tercer criterio se cumple satisfactoriamente"}]
[{"$f":"IF(OR(F182=\"Seleccione\",F183=\"Seleccione\",F184=\"Seleccione\"),\"Por definir\",IF(OR(F182=\"No\",F183=\"No\",F184=\"No\"),\"La actividad no genera contribución sustancial\", \"La actividad sí contribuye sustancialmente a la sostenibilidad\"))","v":"La actividad sí contribuye sustancialmente a la sostenibilidad"}]
[]
["A2. Apoyo a la adaptación del sistema. "]
["La actividad económica y sus medidas de adaptación no afectan negativamente los esfuerzos de adaptación de otras personas, la naturaleza y los bienes. Selecciona las respuestas en las listas desplegables"]
["¿La actividad económica y sus medidas de adaptación no aumentan los riesgos de un impacto climático adverso sobre otras personas, la naturaleza y los bienes?",null,null,null,null,"Sí",{"$f":"IF(F189=\"Seleccione\",\"Por definir\",IF(F189=\"Sí\",\"El primer criterio se cumple satisfactoriamente\",\"Al no cumplir con este criterio, no es posible generar contribución sustancial\"))","v":"El primer criterio se cumple satisfactoriamente"},"Las dos condiciones deben cumplirse para argumentar que la actividad tiene contribución sustancial"]
["¿La actividad económica y sus medidas de adaptación son consistentes con los esfuerzos de adaptación a nivel sectorial, regional y/o nacional?",null,null,null,null,"Sí",{"$f":"IF(F190=\"Seleccione\",\"Por definir\",IF(F190=\"Sí\",\"El segundo criterio se cumple satisfactoriamente\",\"Al no cumplir con este criterio, no es posible generar contribución sustancial\"))","v":"El segundo criterio se cumple satisfactoriamente"}]
[{"$f":"IF(OR(F189=\"Seleccione\",F190=\"Seleccione\"),\"Por definir\",IF(OR(F189=\"No\",F190=\"No\"),\"La actividad no genera contribución sustancial\", \"La actividad sí contribuye sustancialmente a la sostenibilidad\"))","v":"La actividad sí contribuye sustancialmente a la sostenibilidad"}]
[]
["A3. Monitoreo de los resultados de adaptación."]
["En el contexto de la actividad evaluada, la reducción de los riesgos físicos se puede medir. Selecciona las respuestas en las listas desplegables"]
[" Los resultados de adaptación pueden ser monitoreados y medidos con base en indicadores. Considerando que los riesgos físicos evolucionan con el tiempo, el análisis de riesgos físicos debe llevarse a cabo con la frecuencia adecuada.  ¿Esto se evalúa dentro de la operación financiera y/o proyecto?",null,null,null,null,"Sí",{"$f":"IF(F195=\"Seleccione\",\"Por definir\",IF(F195=\"Sí\",\"La actividad sí contribuye sustancialmente a la sostenbilidad\",\"El proyecto no genera contribución sustancial\"))","v":"La actividad sí contribuye sustancialmente a la sostenbilidad"}]
[]
["B1. Apoyar a la adaptación de otras actividades económicas."]
["La actividad económica reduce el riesgo climático físico material en otras actividades económicas y/o aborda los obstáculos sistémicos para la adaptación. Las actividades que permiten la adaptación incluyen, pero no se limitan a, actividades que promueven una tecnología, un producto, una práctica, un proceso de gobernanza o usos innovadores de tecnologías, productos o prácticas existentes (incluidos los relacionados con las infraestructuras naturales). Además, eliminan las barreras de información, financieras, tecnológicas y de capacidad para la adaptación de otros. Selecciona las respuestas en las listas desplegables"]
["¿Se realiza una evaluación de los riesgos resultantes, con base en datos sólidos, tanto de la variabilidad  meteorológica actual como del cambio climático futuro, incluidos los escenarios climáticos, así como  la incertidumbre, que la actividad económica contribuirá a abordar?",null,null,null,null,"Sí",{"$f":"IF(F199=\"Seleccione\",\"Por definir\",IF(F199=\"Sí\",\"El primer criterio se cumple satisfactoriamente\",\"Al no cumplir con este criterio, no es posible generar contribución sustancial\"))","v":"El primer criterio se cumple satisfactoriamente"},"Las tres condiciones en caso de que apliquen deben cumplirse para argumentar que la actividad tiene contribución sustancial. La tercera opción podría no aplicar. En este caso se evaluaran las primeras dos cuestiones"]
["¿Se realiza una evaluación de la eficacia de la contribución de la actividad económica a la reducción de los riesgos físicos, teniendo en cuenta la escala de exposición y la vulnerabilidad a los mismos?",null,null,null,null,"Sí",{"$f":"IF(F200=\"Seleccione\",\"Por definir\",IF(F200=\"Sí\",\"El segundo criterio se cumple satisfactoriamente\",\"Al no cumplir con este criterio, no es posible generar contribución sustancial\"))","v":"El segundo criterio se cumple satisfactoriamente"}]
["En el caso de una infraestructura vinculada a una actividad que permita la adaptación, dicha infraestructura debe cumplir también los criterios de selección A1, A2 y A3. ¿Esto se cumple en el contexto del proyecto?",null,null,null,null,"Sí",{"$f":"IF(F201=\"Seleccione\",\"Por definir\",IF(F201=\"Sí\",\"El tercer criterio se cumple satisfactoriamente\",IF(F201=\"No aplica\",\"No aplica\",\"El proyecto no genera contribución sustancial\")))","v":"El tercer criterio se cumple satisfactoriamente"}]
[{"$f":"IF(OR(F199=\"Seleccione\",F200=\"Seleccione\",F201=\"Seleccione\"),\"Por definir\",IF(OR(F199=\"No\",F200=\"No\",F201=\"No\"),\"La actividad no genera contribución sustancial\",\"La actividad sí contribuye sustancialmente a la sostenibilidad\"))","v":"La actividad sí contribuye sustancialmente a la sostenibilidad"}]

{"sheet":"Indice de género-Manufactura","index":36,"n_rows":82,"n_cols":11,"rows_kept":82,"cut":false,"hidden":true,"merged":[[1,1,1,8],[3,0,3,8],[5,0,5,8],[7,0,9,0],[7,1,9,1],[7,2,7,5],[7,8,9,8],[8,2,8,5],[9,2,9,5],[12,0,15,0],[12,1,15,1],[12,2,12,5],[12,8,15,8],[13,2,13,5],[14,2,14,5],[15,2,15,5],[18,0,20,0],[18,1,20,1],[18,2,18,5],[18,8,20,8],[19,2,19,5],[20,2,20,5],[23,0,25,0],[23,1,25,1],[23,2,23,5],[23,8,25,8],[24,2,24,5],[25,2,25,5],[28,0,30,0],[28,1,30,1],[28,2,28,5],[28,8,30,8],[29,2,29,5],[30,2,30,5],[33,0,35,0],[33,1,35,1],[33,2,33,5],[33,8,35,8],[34,2,34,5],[35,2,35,5],[38,0,40,0],[38,1,40,1],[38,2,38,5],[38,8,40,8],[39,2,39,5],[40,2,40,5],[43,0,45,0],[43,1,45,1],[43,2,43,5],[43,8,45,8],[44,2,44,5],[45,2,45,5],[48,0,50,0],[48,1,50,1],[48,2,48,5],[48,8,50,8],[49,2,49,5],[50,2,50,5],[53,0,55,0],[53,1,55,1],[53,2,53,5],[53,8,55,8],[54,2,54,5],[55,2,55,5],[58,0,60,0],[58,1,60,1],[58,2,58,5],[58,8,60,8],[59,2,59,5],[60,2,60,5],[63,0,65,0],[63,1,65,1],[63,2,63,5],[63,8,65,8],[64,2,64,5],[65,2,65,5],[68,0,70,0],[68,1,70,1],[68,2,68,5],[68,8,70,8],[69,2,69,5],[70,2,70,5],[73,0,75,0],[73,1,75,1],[73,2,73,5],[73,8,75,8],[74,2,74,5],[75,2,75,5],[77,4,77,7],[78,4,78,7],[79,4,79,7],[80,4,80,7],[81,4,81,7]]}
[]
[null,"Índice de Igualdad de Género"]
[]
["La Igualdad de Género es considerada como un objetivo prioritario en la Taxonomía Sostenible de México. Es así que se han generado Criterios de Evaluación Técnica que permitan identificar inversiones que contribuyan al cierre de brechas de género. Al mismo tiempo, las métricas propuestas servirán como guía orientadora para los usuarios potenciales de la Taxonomía, de forma que puedan dirigir esfuerzos para generar una contribución sustancial a la igualdad de género. Este índice refleja, en una escala numérica, la contribución de las organizaciones a tres pilares de igualdad de género: 1) Trabajo Digno, 2) Bienestar e 3) Inclusión Social. Ello permite traducir los criterios cualitativos de estos tres pilares, a una métrica cuantitativa, a la cual es posible asignar un umbral para determinar un nivel de contribución sustancial para un objetivo social."]
[]
["Por favor, selecciona alguna de las opciones descritas en las casillas azules para cada pregunta. En función de la respuesta, se asignará un puntaje por bloque de preguntas, que al final será evaluado para conocer si el proyecto cumple con las condiciones presentes en el índice de igualdad de género"]
["Pilar",null,null,null,null,null,null,"Puntaje",null,null,{"$f":"IF(G7=\"No\",0,IF(G7=\"Sí de alcance parcial dentro de la organización\",1,IF(G7=\"Sí de alcance integral en la organización\",2,IF(G7=\"Sí de alcance que se extiende dentro y fuera de la organización\",3,\"\"))))","v":""}]
["1.1.1","Igualdad de remuneración","¿Existe una política y/o tabulador para todo el personal que establezca la igualdad de remuneración por un trabajo equivalente, conforme a la Ley Federal del Trabajo, y donde se puedan consultar los rangos salariales para los diferentes niveles dentro del centro de trabajo?",null,null,null,"Sí de alcance que se extiende dentro y fuera de la organización",{"$f":"IF(G8=\"No\",0,IF(G8=\"Sí de alcance parcial dentro de la organización\",1,IF(G8=\"Sí de alcance integral en la organización\",2,IF(G8=\"Sí de alcance que se extiende dentro y fuera de la organización\",3,\"\"))))","v":3},{"$f":"IF(OR(G8=\"Seleccione\",G9=\"Seleccione\",G10=\"Seleccione\"),\"Por favor completa las preguntas de este apartado del Índice\",IF(H11<3,\"Es necesario incrementar la ambición en alguno de los ejes evaluados para que el proyecto esté alineado al Índice de Igualdad de Género de la Taxonomía Sostenible de México\",\"El proyecto cuenta con la ambición necesaria para cerrar las brechas de género conforme al Índice de Igualdad de Género de la Taxonomía Sostenible de México\"))","v":"El proyecto cuenta con la ambición necesaria para cerrar las brechas de género conforme al Índice de Igualdad de Género de la Taxonomía Sostenible de México"}]
[null,null,"¿La organización realiza un análisis sistemático y periódico de las brechas de género en salarios, prestaciones y compensaciones de su personal?",null,null,null,"Sí de alcance que se extiende dentro y fuera de la organización",{"$f":"IF(G9=\"No\",0,IF(G9=\"Sí de alcance parcial dentro de la organización\",1,IF(G9=\"Sí de alcance integral en la organización\",2,IF(G9=\"Sí de alcance que se extiende dentro y fuera de la organización\",3,\"\"))))","v":3}]
[null,null,"¿La organización cuenta con un mecanismo para corregir los casos identificados con desigualdad en la remuneración?",null,null,null,"Sí de alcance integral en la organización",{"$f":"IF(G10=\"No\",0,IF(G10=\"Sí de alcance parcial dentro de la organización\",1,IF(G10=\"Sí de alcance integral en la organización\",2,\"\")))","v":2}]
[null,null,null,null,null,null,null,{"$f":"SUM(H8:H10)","v":8}]
[]
["1.2.1","Posibilidades de acceso, contratación, participación, permanencia y promoción","¿Tiene la organización una política o mecanismo que garantice la no discriminación e igualdad de oportunidades en el acceso, permanencia y desarrollo laboral?",null,null,null,"Sí de alcance que se extiende dentro y fuera de la organización",{"$f":"IF(G13=\"No\",0,IF(G13=\"Sí de alcance parcial dentro de la organización\",1,IF(G13=\"Sí de alcance integral en la organización\",2,IF(G13=\"Sí de alcance que se extiende dentro y fuera de la organización\",3,\"\"))))","v":3},{"$f":"IF(OR(G13=\"Seleccione\",G14=\"Seleccione\",G15=\"Seleccione\",G16=\"Seleccione\"),\"Por favor completa las preguntas de este apartado del Índice\",IF(H17<4,\"Es necesario incrementar la ambición en alguno de los ejes evaluados para que el proyecto esté alineado al Índice de Igualdad de Género de la Taxonomía Sostenible de México\",\"El proyecto cuenta con la ambición necesaria para cerrar las brechas de género conforme al Índice de Igualdad de Género de la Taxonomía Sostenible de México\"))","v":"El proyecto cuenta con la ambición necesaria para cerrar las brechas de género conforme al Índice de Igualdad de Género de la Taxonomía Sostenible de México"}]
[null,null,"¿Existen perfiles de puestos, anuncios de vacantes u ofertas de trabajo, documentación para entrevista de ingreso estructurada y/o exámenes o evaluaciones libres de sesgos sexistas o de discriminación?",null,null,null,"Sí de alcance que se extiende dentro y fuera de la organización",{"$f":"IF(G14=\"No\",0,IF(G14=\"Sí de alcance parcial dentro de la organización\",1,IF(G14=\"Sí de alcance integral en la organización\",2,IF(G14=\"Sí de alcance que se extiende dentro y fuera de la organización\",3,\"\"))))","v":3}]
[null,null,"¿Se cuenta con procesos transparentes y accesibles de movilidad horizontal y vertical libres de sesgos sexistas o discriminatorios?",null,null,null,"Sí de alcance que se extiende dentro y fuera de la organización",{"$f":"IF(G15=\"No\",0,IF(G15=\"Sí de alcance parcial dentro de la organización\",1,IF(G15=\"Sí de alcance integral en la organización\",2,IF(G15=\"Sí de alcance que se extiende dentro y fuera de la organización\",3,\"\"))))","v":3}]
[null,null,"¿La organización lleva a cabo capacitaciones extensivas al personal candidato o de la propia empresa como mecanismo de corrección (distintas al plan de capacitación) sobre sesgos de género para entrevistas laborales, para evaluaciones de desempeño o para procesos de reclutamiento, movilidad y  promoción?",null,null,null,"Sí de alcance que se extiende dentro y fuera de la organización",{"$f":"IF(G16=\"No\",0,IF(G16=\"Sí de alcance parcial dentro de la organización\",1,IF(G16=\"Sí de alcance integral en la organización\",2,IF(G16=\"Sí de alcance que se extiende dentro y fuera de la organización\",3,\"\"))))","v":3}]
[null,null,null,null,null,null,null,{"$f":"SUM(H13:H16)","v":12}]
[]
["1.2.2","Segregación Vertical y Horizontal","¿La organización cuenta con metas institucionales sobre diversidad de género en los diferentes equipos de trabajo?",null,null,null,"Sí de alcance que se extiende dentro y fuera de la organización",{"$f":"IF(G19=\"No\",0,IF(G19=\"Sí de alcance parcial dentro de la organización\",1,IF(G19=\"Sí de alcance integral en la organización\",2,IF(G19=\"Sí de alcance que se extiende dentro y fuera de la organización\",3,\"\"))))","v":3},{"$f":"IF(OR(G19=\"Seleccione\",G20=\"Seleccione\",G21=\"Seleccione\"),\"Por favor completa las preguntas de este apartado del Índice\",IF(H22<3,\"Es necesario incrementar la ambición en alguno de los ejes evaluados para que el proyecto esté alineado al Índice de Igualdad de Género de la Taxonomía Sostenible de México\",\"El proyecto cuenta con la ambición necesaria para cerrar las brechas de género conforme al Índice de Igualdad de Género de la Taxonomía Sostenible de México\"))","v":"El proyecto cuenta con la ambición necesaria para cerrar las brechas de género conforme al Índice de Igualdad de Género de la Taxonomía Sostenible de México"}]
[null,"1.2.2.2","¿La organización cuenta con un plan de acción para cerrar la brecha de participación laboral entre hombres y mujeres, entre los niveles jerárquicos, en el proceso de contratación y en las oportunidades de promoción?",null,null,null,"Sí de alcance integral en la organización",{"$f":"IF(G20=\"No\",0,IF(G20=\"Sí de alcance parcial dentro de la organización\",1,IF(G20=\"Sí de alcance integral en la organización\",2,\"\")))","v":2}]
[null,"1.2.2.3","¿El despliegue de los mecanismos de corrección para cerrar la brecha de participación se realiza conforme a la evaluación o medición continua de las brechas de género?",null,null,null,"Sí de alcance integral en la organización",{"$f":"IF(G21=\"No\",0,IF(G21=\"Sí de alcance parcial dentro de la organización\",1,IF(G21=\"Sí de alcance integral en la organización\",2,\"\")))","v":2}]
[null,null,null,null,null,null,null,{"$f":"SUM(H19:H21)","v":7}]
[]
["1.2.3","Igualdad de representatividad de mujeres y hombres en órganos de gobernanza corporativa","¿Existe una política de paridad entre mujeres y hombres (reglamentos, normas, documentos o protocolos internos) en el órgano de gobernanza corporativa (junta de gobierno) o en puestos de toma de decisión?",null,null,null,"Sí de alcance que se extiende dentro y fuera de la organización",{"$f":"IF(G24=\"No\",0,IF(G24=\"Sí de alcance parcial dentro de la organización\",1,IF(G24=\"Sí de alcance integral en la organización\",2,IF(G24=\"Sí de alcance que se extiende dentro y fuera de la organización\",3,\"\"))))","v":3},{"$f":"IF(OR(G24=\"Seleccione\",G25=\"Seleccione\",G26=\"Seleccione\"),\"Por favor completa las preguntas de este apartado del Índice\",IF(H27<2,\"Es necesario incrementar la ambición en alguno de los ejes evaluados para que el proyecto esté alineado al Índice de Igualdad de Género de la Taxonomía Sostenible de México\",\"El proyecto cuenta con la ambición necesaria para cerrar las brechas de género conforme al Índice de Igualdad de Género de la Taxonomía Sostenible de México\"))","v":"El proyecto cuenta con la ambición necesaria para cerrar las brechas de género conforme al Índice de Igualdad de Género de la Taxonomía Sostenible de México"}]
[null,"1.2.3.2","¿Existen mecanismos o acciones para promover la rotación hacia puestos directivos o de toma de decisión con perspectiva de género, o en su caso el proceso de designación no tienes sesgos de género?",null,null,null,"Sí de alcance integral en la organización",{"$f":"IF(G25=\"No\",0,IF(G25=\"Sí de alcance parcial dentro de la organización\",1,IF(G25=\"Sí de alcance integral en la organización\",2,\"\")))","v":2}]
[null,"1.2.3.3","¿La organización se somete a un análisis, interno o externo, de paridad de género institucional en sus puestos de alta dirección o gobierno corporativo, acorde a la política de transparencia que la rige?",null,null,null,"Sí de alcance que se extiende dentro y fuera de la organización",{"$f":"IF(G26=\"No\",0,IF(G26=\"Sí de alcance parcial dentro de la organización\",1,IF(G26=\"Sí de alcance integral en la organización\",2,IF(G26=\"Sí de alcance que se extiende dentro y fuera de la organización\",3,\"\"))))","v":3}]
[null,null,null,null,null,null,null,{"$f":"SUM(H24:H26)","v":8}]
[]
["1.2.4","Clima laboral y espacios de trabajo libres de violencia","¿La organización cuenta con políticas o áreas especializadas en diversidad e inclusión que promuevan relaciones igualitarias acompañadas de la implementación de prácticas de prevención contra la violencia de género (hostigamiento, acoso u otro)?",null,null,null,"Sí de alcance integral en la organización",{"$f":"IF(G29=\"No\",0,IF(G29=\"Sí de alcance parcial dentro de la organización\",1,IF(G29=\"Sí de alcance integral en la organización\",2,\"\")))","v":2},{"$f":"IF(OR(G29=\"Seleccione\",G30=\"Seleccione\",G31=\"Seleccione\"),\"Por favor completa las preguntas de este apartado del Índice\",IF(H32<2,\"Es necesario incrementar la ambición en alguno de los ejes evaluados para que el proyecto esté alineado al Índice de Igualdad de Género de la Taxonomía Sostenible de México\",\"El proyecto cuenta con la ambición necesaria para cerrar las brechas de género conforme al Índice de Igualdad de Género de la Taxonomía Sostenible de México\"))","v":"El proyecto cuenta con la ambición necesaria para cerrar las brechas de género conforme al Índice de Igualdad de Género de la Taxonomía Sostenible de México"}]
[null,"1.2.4.2","¿La organización cuenta con un grupo, comisión o Comité encargado de la vigilancia del desarrollo e implementación de prácticas contra la violencia y la discriminación de género en el centro de trabajo?",null,null,null,"Sí de alcance integral en la organización",{"$f":"IF(G30=\"No\",0,IF(G30=\"Sí de alcance parcial dentro de la organización\",1,IF(G30=\"Sí de alcance integral en la organización\",2,\"\")))","v":2}]
[null,"1.2.4.3","¿La organización cuenta con mecanismos de atención a actos de violencia detectados o de reparación de daños, cuyos resultados salvaguarden la integridad de las víctimas y eviten la revictimización?",null,null,null,"Sí de alcance integral en la organización",{"$f":"IF(G31=\"No\",0,IF(G31=\"Sí de alcance parcial dentro de la organización\",1,IF(G31=\"Sí de alcance integral en la organización\",2,\"\")))","v":2}]
[null,null,null,null,null,null,null,{"$f":"SUM(H29:H31)","v":6}]
[]
["1.2.5","Capacitaciones para la igualdad laboral","¿La organización cuenta con un plan de capacitación, sensibilización y difusión como parte de sus objetivos de la agenda de género?",null,null,null,"Sí de alcance que se extiende dentro y fuera de la organización",{"$f":"IF(G34=\"No\",0,IF(G34=\"Sí de alcance parcial dentro de la organización\",1,IF(G34=\"Sí de alcance integral en la organización\",2,IF(G34=\"Sí de alcance que se extiende dentro y fuera de la organización\",3,\"\"))))","v":3},{"$f":"IF(OR(G34=\"Seleccione\",G35=\"Seleccione\",G36=\"Seleccione\"),\"Por favor completa las preguntas de este apartado del Índice\",IF(H37<3,\"Es necesario incrementar la ambición en alguno de los ejes evaluados para que el proyecto esté alineado al Índice de Igualdad de Género de la Taxonomía Sostenible de México\",\"El proyecto cuenta con la ambición necesaria para cerrar las brechas de género conforme al Índice de Igualdad de Género de la Taxonomía Sostenible de México\"))","v":"El proyecto cuenta con la ambición necesaria para cerrar las brechas de género conforme al Índice de Igualdad de Género de la Taxonomía Sostenible de México"}]
[null,"1.2.5.2","¿La organización ofrece capacitación continua para el desarrollo de habilidades requeridas para la movilidad laboral, tales como mentoría o patrocinio; incluyendo el desarrollo de capacidades para los nuevos empleos verdes que promuevan la transición justa?",null,null,null,"Sí de alcance que se extiende dentro y fuera de la organización",{"$f":"IF(G35=\"No\",0,IF(G35=\"Sí de alcance parcial dentro de la organización\",1,IF(G35=\"Sí de alcance integral en la organización\",2,IF(G35=\"Sí de alcance que se extiende dentro y fuera de la organización\",3,\"\"))))","v":3}]
[null,"1.2.5.3","¿La organización cuenta con mecanismos de evaluación o mejora de su plan de implementación de capacitaciones, asesorías o mentorías, que sean extensivos a otros actores que interactúan con la organización o a la comunidad externa (más allá del personal de la organización)?",null,null,null,"Sí de alcance que se extiende dentro y fuera de la organización",{"$f":"IF(G36=\"No\",0,IF(G36=\"Sí de alcance parcial dentro de la organización\",1,IF(G36=\"Sí de alcance integral en la organización\",2,IF(G36=\"Sí de alcance que se extiende dentro y fuera de la organización\",3,\"\"))))","v":3}]
[null,null,null,null,null,null,null,{"$f":"SUM(H34:H36)","v":9}]
[]
["1.3.1","Esquemas de trabajo flexible y políticas de conciliación","¿Existen medidas de flexibilidad laboral, como horarios flexibles o escalonados, semanas de trabajo comprimidas, teletrabajo o licencias con y sin goce de sueldo?",null,null,null,"Sí de alcance integral en la organización",{"$f":"IF(G39=\"No\",0,IF(G39=\"Sí de alcance parcial dentro de la organización\",1,IF(G39=\"Sí de alcance integral en la organización\",2,\"\")))","v":2},{"$f":"IF(OR(G39=\"Seleccione\",G40=\"Seleccione\",G41=\"Seleccione\"),\"Por favor completa las preguntas de este apartado del Índice\",IF(H42<4,\"Es necesario incrementar la ambición en alguno de los ejes evaluados para que el proyecto esté alineado al Índice de Igualdad de Género de la Taxonomía Sostenible de México\",\"El proyecto cuenta con la ambición necesaria para cerrar las brechas de género conforme al Índice de Igualdad de Género de la Taxonomía Sostenible de México\"))","v":"El proyecto cuenta con la ambición necesaria para cerrar las brechas de género conforme al Índice de Igualdad de Género de la Taxonomía Sostenible de México"}]
[null,"1.3.1.2","¿Existe una duración definida de la jornada laboral que se acompañe con una política de desconexión, sin importar que el esquema sea presencial, híbrido o por teletrabajo?",null,null,null,"Sí de alcance integral en la organización",{"$f":"IF(G40=\"No\",0,IF(G40=\"Sí de alcance parcial dentro de la organización\",1,IF(G40=\"Sí de alcance integral en la organización\",2,\"\")))","v":2}]
[null,"1.3.1.3","¿La organización despliega y difunde mecanismos de corrección al interior y al exterior, en función de la información estadística analizada y desagregada por sexo, sobre el cumplimento de los horarios de trabajo conforme al derecho de las y los trabajadores a la desconexión?",null,null,null,"Sí de alcance que se extiende dentro y fuera de la organización",{"$f":"IF(G41=\"No\",0,IF(G41=\"Sí de alcance parcial dentro de la organización\",1,IF(G41=\"Sí de alcance integral en la organización\",2,IF(G41=\"Sí de alcance que se extiende dentro y fuera de la organización\",3,\"\"))))","v":3}]
[null,null,null,null,null,null,null,{"$f":"SUM(H39:H41)","v":7}]
[]
["1.3.2","Oferta complementaria de servicios de cuidados (ludoteca, casas de día, estancias infantiles adicionales, entre otros)","¿La organización tiene políticas que le permitan desarrollar una oferta complementaria de servicios de cuidado (guarderías propias, salas de lactancia, etc.), asequible para todo el personal de la organización, incluyendo licencias de maternidad y paternidad con duración superior a la Ley?",null,null,null,"Sí de alcance que se extiende dentro y fuera de la organización",{"$f":"IF(G44=\"No\",0,IF(G44=\"Sí de alcance parcial dentro de la organización\",1,IF(G44=\"Sí de alcance integral en la organización\",2,IF(G44=\"Sí de alcance que se extiende dentro y fuera de la organización\",3,\"\"))))","v":3},{"$f":"IF(OR(G44=\"Seleccione\",G45=\"Seleccione\",G46=\"Seleccione\"),\"Por favor completa las preguntas de este apartado del Índice\",IF(H47<3,\"Es necesario incrementar la ambición en alguno de los ejes evaluados para que el proyecto esté alineado al Índice de Igualdad de Género de la Taxonomía Sostenible de México\",\"El proyecto cuenta con la ambición necesaria para cerrar las brechas de género conforme al Índice de Igualdad de Género de la Taxonomía Sostenible de México\"))","v":"El proyecto cuenta con la ambición necesaria para cerrar las brechas de género conforme al Índice de Igualdad de Género de la Taxonomía Sostenible de México"}]
[null,"1.3.2.2","¿Se proporciona una oferta de servicios de cuidado adicional a los servicios de seguridad social (IMSS, ISSSTE y otros) o se ofrecen permisos con o sin goce de sueldo para la atención de responsabilidades de cuidado?",null,null,null,"Sí de alcance que se extiende dentro y fuera de la organización",{"$f":"IF(G45=\"No\",0,IF(G45=\"Sí de alcance parcial dentro de la organización\",1,IF(G45=\"Sí de alcance integral en la organización\",2,IF(G45=\"Sí de alcance que se extiende dentro y fuera de la organización\",3,\"\"))))","v":3}]
[null,"1.3.2.3","¿La organización realiza y difunde evaluaciones de las necesidades de cuidado de su personal y sus dependientes, al interior y al exterior?",null,null,null,"Sí de alcance integral en la organización",{"$f":"IF(G46=\"No\",0,IF(G46=\"Sí de alcance parcial dentro de la organización\",1,IF(G46=\"Sí de alcance integral en la organización\",2,IF(G46=\"Sí de alcance que se extiende dentro y fuera de la organización\",3,\"\"))))","v":2}]
[null,null,null,null,null,null,null,{"$f":"SUM(H44:H46)","v":8}]
[]
["2.1.1","Desarrollo y provisión de infraestructura, bienes y servicios con impacto social positivo y perspectiva de género","¿La organización tiene como política realizar diagnósticos con perspectiva de género para el diseño y operación del proyecto, actividad, desarrollo de infraestructura o la provisión de bienes y servicios?",null,null,null,"Sí de alcance que se extiende dentro y fuera de la organización",{"$f":"IF(G49=\"No\",0,IF(G49=\"Sí de alcance parcial dentro de la organización\",2,IF(G49=\"Sí de alcance integral en la organización\",4,IF(G49=\"Sí de alcance que se extiende dentro y fuera de la organización\",6,\"\"))))","v":6},{"$f":"IF(OR(G49=\"Seleccione\",G50=\"Seleccione\",G51=\"Seleccione\"),\"Por favor completa las preguntas de este apartado del Índice\",IF(H52<8,\"Es necesario incrementar la ambición en alguno de los ejes evaluados para que el proyecto esté alineado al Índice de Igualdad de Género de la Taxonomía Sostenible de México\",\"El proyecto cuenta con la ambición necesaria para cerrar las brechas de género conforme al Índice de Igualdad de Género de la Taxonomía Sostenible de México\"))","v":"El proyecto cuenta con la ambición necesaria para cerrar las brechas de género conforme al Índice de Igualdad de Género de la Taxonomía Sostenible de México"}]
[null,"2.1.1.2","¿El proyecto de infraestructura, actividad, bien o servicio, considera ajustes razonables para atender las necesidades de las mujeres o contribuye a la reducción o eliminación de una situación de exclusión, desigualdad o violencia de género, y privilegia su acceso a precios asequibles por razón de género?",null,null,null,"Sí de alcance que se extiende dentro y fuera de la organización",{"$f":"IF(G50=\"No\",0,IF(G50=\"Sí de alcance parcial dentro de la organización\",2,IF(G50=\"Sí de alcance integral en la organización\",4,IF(G50=\"Sí de alcance que se extiende dentro y fuera de la organización\",6,\"\"))))","v":6}]
[null,"2.1.1.3","¿Se cuenta con un plan de actividades de igualdad entre mujeres y hombres, que incluya presupuesto e indicadores de cumplimiento sobre el impacto en la vida de las mujeres, y en su caso, en el medio ambiente en el uso de la infraestructura, productos o servicios a desarrollar?",null,null,null,"Sí de alcance que se extiende dentro y fuera de la organización",{"$f":"IF(G51=\"No\",0,IF(G51=\"Sí de alcance parcial dentro de la organización\",2,IF(G51=\"Sí de alcance integral en la organización\",4,IF(G51=\"Sí de alcance que se extiende dentro y fuera de la organización\",6,\"\"))))","v":6}]
[null,null,null,null,null,null,null,{"$f":"SUM(H49:H51)","v":18}]
[]
["2.2.1","No afectación a la salud de las mujeres","¿La organización tiene como procedimientos la elaboración de diagnósticos con perspectiva de género sobre los impactos potenciales en salud del proyecto de infraestructura, actividad, bien o servicio, para la promoción de la salud en las mujeres o asegurar la no afectación a esta?",null,null,null,"Sí de alcance que se extiende dentro y fuera de la organización",{"$f":"IF(G54=\"No\",0,IF(G54=\"Sí de alcance parcial dentro de la organización\",2,IF(G54=\"Sí de alcance integral en la organización\",4,IF(G54=\"Sí de alcance que se extiende dentro y fuera de la organización\",6,\"\"))))","v":6},{"$f":"IF(OR(G54=\"Seleccione\",G55=\"Seleccione\",G56=\"Seleccione\"),\"Por favor completa las preguntas de este apartado del Índice\",IF(H57<8,\"Es necesario incrementar la ambición en alguno de los ejes evaluados para que el proyecto esté alineado al Índice de Igualdad de Género de la Taxonomía Sostenible de México\",\"El proyecto cuenta con la ambición necesaria para cerrar las brechas de género conforme al Índice de Igualdad de Género de la Taxonomía Sostenible de México\"))","v":"El proyecto cuenta con la ambición necesaria para cerrar las brechas de género conforme al Índice de Igualdad de Género de la Taxonomía Sostenible de México"}]
[null,"2.2.1.2","¿El proyecto, actividad, bien o servicio, considera ajustes razonables para atender las necesidades diferenciadas de salud en hombres y mujeres y privilegia el acceso desde una perspectiva de género a precios asequibles?",null,null,null,"Sí de alcance que se extiende dentro y fuera de la organización",{"$f":"IF(G55=\"No\",0,IF(G55=\"Sí de alcance parcial dentro de la organización\",2,IF(G55=\"Sí de alcance integral en la organización\",4,IF(G55=\"Sí de alcance que se extiende dentro y fuera de la organización\",6,\"\"))))","v":6}]
[null,"2.2.1.3","¿Se realizan estudios de los efectos en la salud de la actividad, productos o servicios desagregados sexo, y se cuenta con un plan de actividades para la corrección o mejora que incluya presupuesto e indicadores de cumplimiento?",null,null,null,"Sí de alcance que se extiende dentro y fuera de la organización",{"$f":"IF(G56=\"No\",0,IF(G56=\"Sí de alcance parcial dentro de la organización\",2,IF(G56=\"Sí de alcance integral en la organización\",4,IF(G56=\"Sí de alcance que se extiende dentro y fuera de la organización\",6,\"\"))))","v":6}]
[null,null,null,null,null,null,null,{"$f":"SUM(H54:H56)","v":18}]
[]
["2.3.1","Promoción de autonomía de las mujeres y financiamiento flexible con perspectiva de género","¿La organización tiene como política visibilizar las necesidades diferenciadas entre mujeres y hombres en las estrategias de comercialización de los productos o servicios ofrecidos?",null,null,null,"No",{"$f":"IF(G59=\"No\",0,IF(G59=\"Sí de alcance parcial dentro de la organización\",2,IF(G59=\"Sí de alcance integral en la organización\",4,IF(G59=\"Sí de alcance que se extiende dentro y fuera de la organización\",6,\"\"))))","v":0},{"$f":"IF(OR(G59=\"Seleccione\",G60=\"Seleccione\",G61=\"Seleccione\"),\"Por favor completa las preguntas de este apartado del Índice\",IF(H62<8,\"Es necesario incrementar la ambición en alguno de los ejes evaluados para que el proyecto esté alineado al Índice de Igualdad de Género de la Taxonomía Sostenible de México\",\"El proyecto cuenta con la ambición necesaria para cerrar las brechas de género conforme al Índice de Igualdad de Género de la Taxonomía Sostenible de México\"))","v":"Es necesario incrementar la ambición en alguno de los ejes evaluados para que el proyecto esté alineado al Índice de Igualdad de Género de la Taxonomía Sostenible de México"}]
[null,"2.3.1.2","¿La organización garantiza la accesibilidad de los productos o servicios para las mujeres, ofreciendo opciones diferenciadas de financiación?",null,null,null,"No",{"$f":"IF(G60=\"No\",0,IF(G60=\"Sí de alcance parcial dentro de la organización\",2,IF(G60=\"Sí de alcance integral en la organización\",4,IF(G60=\"Sí de alcance que se extiende dentro y fuera de la organización\",6,\"\"))))","v":0}]
[null,"2.3.1.3","¿Se realiza una evaluación de efectos diferenciados de los productos y servicios ofrecidos desagregada sexo que visibilicen que son utilizados por mujeres y/o benefician más que proporcionalmente a las mujeres?",null,null,null,"No",{"$f":"IF(G61=\"No\",0,IF(G61=\"Sí de alcance parcial dentro de la organización\",2,IF(G61=\"Sí de alcance integral en la organización\",4,IF(G61=\"Sí de alcance que se extiende dentro y fuera de la organización\",6,\"\"))))","v":0}]
[null,null,null,null,null,null,null,{"$f":"SUM(H59:H61)","v":0}]
[]
["3.1.1","Promoción de cultura de paz y no violencia","¿La organización o proyecto considera dentro de sus objetivos la reducción o erradicación de la violencia contra las mujeres o el desarrollo de espacios de paz y no violencia; o bien, cuenta con un protocolo o procedimiento para la resolución de conflictos con la comunidad, que considere una perspectiva de género y de derechos humanos?",null,null,null,"No se cuenta con un protocolo o procedimiento o no se comunica",{"$f":"IF(G64=\"No se cuenta con un protocolo o procedimiento o no se comunica\",0,IF(G64=\"Comunicación del objetivo protocolo parcial dentro de la organización\",2,IF(G64=\"Sí de alcance integral en la organización\",2,IF(G64=\"Protocolo de conocimiento de toda la organización\",4,IF(G64=\"Toda la información relacionada es pública\",6,\"\")))))","v":0},{"$f":"IF(OR(G64=\"Seleccione\",G65=\"Seleccione\",G66=\"Seleccione\"),\"Por favor completa las preguntas de este apartado del Índice\",IF(H67<8,\"Es necesario incrementar la ambición en alguno de los ejes evaluados para que el proyecto esté alineado al Índice de Igualdad de Género de la Taxonomía Sostenible de México\",\"El proyecto cuenta con la ambición necesaria para cerrar las brechas de género conforme al Índice de Igualdad de Género de la Taxonomía Sostenible de México\"))","v":"Es necesario incrementar la ambición en alguno de los ejes evaluados para que el proyecto esté alineado al Índice de Igualdad de Género de la Taxonomía Sostenible de México"}]
[null,"3.1.1.2","¿Se han desarrollado acciones para la prevención, atención, sanción y erradicación de la violencia contra niñas, niños, adolescentes y mujeres en la comunidad o espacios públicos?",null,null,null,"No se han desarrollado acciones",{"$f":"IF(G65=\"No se han desarrollado acciones\",0,IF(G65=\"Las acciones abordan solo alguno(s) de los aspectos enunciados (prevención atención sanción y erradicación de la violencia)\",4,IF(G65=\"Las acciones consideran la prevención atención sanción y erradicación de la violencia\",6,\"\")))","v":0}]
[null,"3.1.1.3","¿La organización o proyecto cuenta con evidencia de su contribución a la reducción de la violencia contra niñas, niños, adolescentes y mujeres; o bien, ha documentado y difundido casos de éxito sobre la resolución de conflictos con la comunidad o sobre el desarrollo de espacios de paz y no violencia de forma participativa?",null,null,null,"No existe evidencia o no se comunica",{"$f":"IF(G66=\"No existe evidencia o no se comunica\",0,IF(G66=\"La comunicación de la evidencia es parcial dentro de la organización\",2,IF(G66=\"La evidencia es de conocimiento de toda la organización\",4,IF(G66=\"La información es pública\",6,\"\"))))","v":0}]
[null,null,null,null,null,null,null,{"$f":"SUM(H64:H66)","v":0}]
[]
["3.2.1","Vinculación con empresas locales propiedad o con participación de mujeres","¿Existen políticas, procesos o mecanismos de adquisición de productos y servicios que incentiven la contratación de empresas locales propiedad o con alta participación de mujeres?",null,null,null,"La información es pública",{"$f":"IF(G69=\"No existen políticas o procesos o mecanismos o no se comunican\",0,IF(G69=\"La comunicación es parcial dentro de la organización\",2,IF(G69=\"Sí y es de conocimiento de toda la organización\",4,IF(G69=\"La información es pública\",6,\"\"))))","v":6},{"$f":"IF(OR(G69=\"Seleccione\",G70=\"Seleccione\",G71=\"Seleccione\"),\"Por favor completa las preguntas de este apartado del Índice\",IF(H72<8,\"Es necesario incrementar la ambición en alguno de los ejes evaluados para que el proyecto esté alineado al Índice de Igualdad de Género de la Taxonomía Sostenible de México\",\"El proyecto cuenta con la ambición necesaria para cerrar las brechas de género conforme al Índice de Igualdad de Género de la Taxonomía Sostenible de México\"))","v":"El proyecto cuenta con la ambición necesaria para cerrar las brechas de género conforme al Índice de Igualdad de Género de la Taxonomía Sostenible de México"}]
[null,"3.2.1.2","¿Se presenta evidencia de alianzas comerciales y de contratos recurrentes o multianuales con empresas locales con propiedad o participación importante de mujeres?",null,null,null,"Se presenta evidencia completa de una relación comercial recurrente",{"$f":"IF(G70=\"No se han desarrollado alianzas comerciales o contratos\",0,IF(G70=\"Se presenta evidencia de esfuerzos para establecer alianzas comerciales pero que aún no se formalizan\",4,IF(G70=\"Se presenta evidencia completa de una relación comercial recurrente\",6,\"\")))","v":6}]
[null,"3.2.1.3","¿Existe evidencia de que se contribuye al fortalecimiento del liderazgo de empresas locales encabezadas por mujeres o al desarrollo de la estrategia de sostenibilidad de empresas locales (por ejemplo, en el acceso a financiamiento, en la adopción de tecnología sostenible, etc.) propiedad o con participación de mujeres, más allá de la compra de bienes y servicios?",null,null,null,"La información es pública",{"$f":"IF(G71=\"No existe evidencia o no se comunica\",0,IF(G71=\"La comunicación de la evidencia es parcial dentro de la organización\",2,IF(G71=\"La evidencia es de conocimiento de toda la organización\",4,IF(G71=\"La información es pública\",6,\"\"))))","v":6}]
[null,null,null,null,null,null,null,{"$f":"SUM(H69:H71)","v":18}]
[]
["3.3.1","Involucramiento de organizaciones y redes comunitarias que representen los intereses de las mujeres","¿Existe una política para fomentar la participación de las comunidades, bajo el marco del consentimiento libre, previo e informado, para la realización del proyecto o actividad económica, o bien en la planeación y gestión participativa de este, que contribuya a la preservación del territorio; al bienestar de ellas y su comunidad; al cuidado del medio ambiente o a una transición justa?",null,null,null,"La información es pública",{"$f":"IF(G74=\"No existen políticas o procesos o mecanismos o no se comunican\",0,IF(G74=\"La comunicación es parcial dentro de la organización\",2,IF(G74=\"Sí y es de conocimiento de toda la organización\",4,IF(G74=\"La información es pública\",6,\"\"))))","v":6},{"$f":"IF(OR(G74=\"Seleccione\",G75=\"Seleccione\",G76=\"Seleccione\"),\"Por favor completa las preguntas de este apartado del Índice\",IF(H77<8,\"Es necesario incrementar la ambición en alguno de los ejes evaluados para que el proyecto esté alineado al Índice de Igualdad de Género de la Taxonomía Sostenible de México\",\"El proyecto cuenta con la ambición necesaria para cerrar las brechas de género conforme al Índice de Igualdad de Género de la Taxonomía Sostenible de México\"))","v":"El proyecto cuenta con la ambición necesaria para cerrar las brechas de género conforme al Índice de Igualdad de Género de la Taxonomía Sostenible de México"}]
[null,"3.3.1.2","¿Las acciones de involucramiento y consulta consideraron una perspectiva de género en su implementación para asegurar una participación en igualdad de condiciones de las mujeres (horarios adecuados, dinámicas para promover la participación, facilidades para el cuidado de infantes, un lugar de fácil acceso para ellas) y cuentan con un mecanismo de monitoreo que dé seguimiento a la incorporación de las opiniones de las mujeres?",null,null,null,"Las acciones consideran una perspectiva de género e incluyen un mecanismo de monitoreo",{"$f":"IF(G75=\"No se han desarrollado acciones\",0,IF(G75=\"Las acciones abordan parcialmente los aspectos requeridos por la pregunta\",4,IF(G75=\"Las acciones consideran una perspectiva de género e incluyen un mecanismo de monitoreo\",6,\"\")))","v":6}]
[null,"3.3.1.3","¿Existe evidencia de que la actividad económica o proyecto contribuye a la formación o fortalecimiento de alianzas entre mujeres y de organizaciones que trabajen por sus derechos, la igualdad de género, la conservación del territorio o del medio ambiente, y una transición justa?",null,null,null,"No existe evidencia o no se comunica",{"$f":"IF(G76=\"No existe evidencia o no se comunica\",0,IF(G76=\"La comunicación de la evidencia es parcial dentro de la organización\",2,IF(G76=\"La evidencia es de conocimiento de toda la organización\",4,IF(G76=\"La información es pública\",6,\"\"))))","v":0}]
[null,null,null,null,null,null,null,{"$f":"SUM(H74:H76)","v":12}]
[null,null,"Resumen:","Puntaje obtenido en cada pilar","Alineación"]
[null,null,"Resultados pilar 1: Trabajo digo",{"$f":"SUM(H11,H17,H22,H27,H32,H37,H42,H47)","v":65},{"$f":"IF(D79<24,\"Es necesario incrementar la ambición en el pilar 1 de trabajo digno\",\"El proyecto contribuye al cierre de brechas de género, conforme a la Taxonomía Sostenible de México\")","v":"El proyecto contribuye al cierre de brechas de género, conforme a la Taxonomía Sostenible de México"}]
[null,null,"Resultados pilar 2: Bienestar",{"$f":"SUM(H52,H57,H62)","v":36},{"$f":"IF(D80<24,\"Es necesario incrementar la ambición en el pilar 2 de bienestar\",\"El proyecto contribuye al cierre de brechas de género, conforme a la Taxonomía Sostenible de México\")","v":"El proyecto contribuye al cierre de brechas de género, conforme a la Taxonomía Sostenible de México"}]
[null,null,"Resultados pilar 3: Inclusión social",{"$f":"SUM(H77,H72,H67)","v":30},{"$f":"IF(D81<24,\"Es necesario incrementar la ambición en el pilar 3 de inclusión social\",\"El proyecto contribuye al cierre de brechas de género, conforme a la Taxonomía Sostenible de México\")","v":"El proyecto contribuye al cierre de brechas de género, conforme a la Taxonomía Sostenible de México"}]
[null,null,"Total",{"$f":"SUM(D79:D81)","v":131},{"$f":"IF((COUNTIF(G8:G76,\"Seleccione\"))>1,\"Por definir\",IF(AND(E79=\"El proyecto contribuye al cierre de brechas de género, conforme a la Taxonomía Sostenible de México\",E80=\"El proyecto contribuye al cierre de brechas de género, conforme a la Taxonomía Sostenible de México\",E81=\"El proyecto contribuye al cierre de brechas de género, conforme a la Taxonomía Sostenible de México\",D82>=72),\"Sí cumple con el índice de igualdad de género\",\"No cumple con el índice de igualdad de género\"))","v":"Sí cumple con el índice de igualdad de género"}]

{"sheet":"Manufactura-NDS","index":37,"n_rows":84,"n_cols":8,"rows_kept":84,"cut":false,"hidden":true,"merged":[[83,0,83,5],[72,0,72,5],[77,0,77,5],[80,0,80,5],[57,0,57,5],[59,0,59,5],[58,0,58,5],[60,0,60,5],[67,0,67,5],[68,0,68,5],[27,0,27,5],[55,7,60,7],[34,7,35,7],[46,7,47,7],[49,7,50,7],[28,0,28,5],[29,0,29,5],[30,0,30,5],[34,0,34,5],[56,0,56,5],[35,0,35,5],[38,0,38,5],[42,0,42,5],[45,0,45,5],[46,0,46,5],[47,0,47,5],[48,0,48,5],[49,0,49,5],[50,0,50,5],[51,0,51,5],[55,0,55,5],[1,0,1,6],[3,0,3,6],[5,0,5,6],[8,0,8,5],[9,0,9,5],[10,0,10,5],[18,0,18,5],[19,0,19,5],[20,0,20,5],[24,0,24,5],[15,0,15,5],[14,0,14,5],[13,0,13,5],[12,0,12,5],[11,0,11,5]]}
[]
["Evaluación de No Daño Significativo de actividades de la Industria Manufacturera"]
[]
["El principio de No Daño Significativo (NDS) se compone de una serie de criterios medioambientales que permiten asegurar que una actividad económica, con contribución sustancial, no tenga efectos negativos en ninguno de los otros objetivos de la Taxonomía, distintos al parámetro principal. De esta manera, se asegura que el progreso en algunos objetivos no se haga a expensas de otros objetivos medioambientales. Los criterios de NDS se enfocan en 5 ejes principales: Agua, Adaptación, Biodiversidad, Prevención y Control de la Contaminación y, Economía Circular. Para contar con más detalle, por favor consulta el documento de la Taxonomía Sostenible de México"]
[]
["Asegúrate de responder todas las preguntas. En este apartado aparecerán solo los criterios de No Daño Significativo relacionados a las actividades que se establecieron anteriormente. Al final, se evaluará el porcentaje de criterios de No Daño Significativo que se cumplan. Por favor responde si la actividad cumple con los siguientes criterios."]
[]
["Agua "]
["¿En el contexto de la operación financiera y/o proyecto se cumple con la legislación mexicana sobre uso y reúso en materia de agua, específicamente en  cuanto a la Ley de Aguas Nacionales (LAN), NOM-001 SEMARNAT-2021, NOM-002-ECOL-1996 y NOM-003-ECOL-1997?",null,null,null,null,null,"Seleccione","Presentar certificados de cumplimiento de las NOM-001 SEMARNAT-2021, NOM-002-ECOL-1996 y NOM-003-ECOL-1997, así como incluir en la MIA la vinculación correspondiente a LAN como parte de la sección de vinculación a los marcos normativos correspondientes. "]
["¿La operación financiera y/o proyecto cuenta con títulos de concesión de agua, expedidos por la CONAGUA para uso en generación de energía hidráulica y debidamente registrado en el Registro Público de Derechos de Agua de la región hidrológica correspondiente",null,null,null,null,null,"Seleccione","Contar con títulos de concesión de agua, expedidos por la CONAGUA para uso en generación de energía hidráulica y debidamente registrado en el Registro Público de Derechos de Agua de la región hidrológica correspondiente."]
["¿La operación financiera y/o proyecto cuenta con permisos de descarga de aguas residuales en cuerpos de agua nacional, debidamente registrados en el Registro Público de Derechos de Agua de la región hidrológica correspondiente?",null,null,null,null,null,"Seleccione","Contar con permisos de descarga de aguas residuales en cuerpos de agua nacional, debidamente registrados en el Registro Público de Derechos de Agua de la región hidrológica correspondiente. "]
["En el caso de descarga de aguas residuales en drenaje o alcantarillado municipal,¿El proyecto cuenta los permisos y autorizaciones requeridas por la ley?",null,null,null,null,null,"Seleccione","Contar con permisos de descarga de aguas residuales en drenaje o alcantarillado municipal. "]
["¿En el contexto de la operación financiera y/o proyecto se monitorea la temperatura de las aguas que se descarguen, como criterio de calidad del agua para la protección de la vida acuática y para las fuentes de abastecimiento de agua potable. Es también un parámetro establecido como límite máximo permitido en las descargas de aguas residuales y una especificación de importancia en los cálculos de balance de energía y de calor de los procesos industriales? (NMX-AA-007)",null,null,null,null,null,"Seleccione","Contar con certificado de cumpllimiento de la NMX-AA-007 por parte de la autoridad correspondiente donde se monitorea la temperatura de las aguas que se descarguen, como criterio de calidad del agua para la protección de la vida acuática y para las fuentes de abastecimiento de agua potable. Es también un parámetro establecido como límite máximo permitido en las descargas de aguas residuales y una especificación de importancia en los cálculos de balance de energía y de calor de los procesos industriales. "]
["¿La operación financiera y/o proyecto cumple con el Plan Nacional Hídrico, así como con las estrategias y planes de gestión hídrica estatales y municipales, y atender las recomendaciones de los Consejos de Cuenca por cuenca hidrológica o por región hidrológica?",null,null,null,null,null,"Seleccione","Incluir vinculación en la MIA como parte de la Política Hídrica Nacional. "]
["¿Es relevante la captación de agua pluvial y el reúso del agua en las instalaciones en el contexto de la operación financiera y/o proyecto?",null,null,null,null,null,"Seleccione","Incluir en la MIA. Detallar como parte de las meddas de prevención y mitigación. "]
["¿En el contexto de la operación financiera y/o proyecto se identifica la disponibilidad de agua y los riesgos de contaminación de agua, tanto de aguas superficiales como los acuíferos, y en particular las fuentes de agua utilizadas para consumo humano, en la cuenca hidrológica y en la región hidrológica de que se trate?",null,null,null,null,null,"Seleccione","Incluir información en el análisis de la MIA"]
[]
["Adaptación "]
["¿En el contexto de la operación financiera y/o proyecto se desarrollan criterios de gestión de riesgos y de adaptación al cambio climático en el diseño, construcción, reconstrucción, rehabilitación y mantenimiento de la infraestructura asociada?",null,null,null,null,null,"Seleccione","Incluir criterios en la MIA. Describir dentro de las medidas de prevención, mitigación y adaptación dentro de la MIA, así como desar"]
["¿En el contexto de la operación financiera y/o proyecto se establecen medidas de adaptación, con enfoque de equidad de género y derechos humanos y con el criterio fundamental e imprescindible, de reducir la vulnerabilidad al cambio climático en cuanto a Adaptación basada en comunidades humanas, Adaptación basada en ecosistemas y Adaptación basada en la Reducción del Riesgo de Desastres?",null,null,null,null,null,"Seleccione","Presentar ficha de recopilación sistematizada para IACC. ENCC, Visión 10-20-40 y la Metodología para la Priorización de Medidas de Adaptación frente al Cambio Climático (SEMARNAT-GIZ, 2015)."]
["¿En cada proyecto se demuestra que se evaluó la dimensión de las alteraciones e impactos que podrían afectar en los en municipios vulnerables al cambio climático, revisando de forma enunciativa, más no limitativa el Atlas Nacional de Vulnerabilidad al Cambio Climático y Atlas Nacional de Riesgos?",null,null,null,null,null,"Seleccione","Incluir en la MIA. Dentro del estudio de impacto considerar los elementos mencionados. "]
[]
["Complejos siderúrgicos"]
["Fabricación de gases industriales"]
["¿En el contexto de la operación financiera y/o proyecto se indica la escala, considerando si el proyecto se ubica en zona de riesgo como paredes de cañones, lechos y cauces de arroyos, zonas de fallas geológicas, de deslizamiento, de inundación, así como en zonas de litorales expuestas a oleaje de tormenta y procesos de erosión, en desembocaduras y ríos, áreas identificadas como altamente vulnerables al cambio climático, incluyendo las zonas urbanas y periurbanas aledañas cuando las hubiera?",null,null,null,null,null,"Seleccione","Incluir estos detalles de ubicación dentro de el análisis realizado en la MIA"]
[]
["Biodiversidad "]
["¿El proyecto cuenta con una manifestación de impacto ambiental (MIA) o informe ambiental preventivo, autorizados por la autoridad competente (federal y/o local), con vigencia y e informes de cumplimiento de condicionantes ambientales?",null,null,null,null,null,"Seleccione","Presentar la MIA autorizada por la autoridad competente."]
["La delimitación del proyecto debe de ser congruente con la magnitud de los impactos ambientales, cumpliendo instrumentos de planeación existentes (Programa de Ordenamiento Ecológico del Territorio (POET), Plan de Desarrollo Urbano (PDU), cuencas hidrológicas, entre otros). (Ver Ley General del Equilibrio Ecológico y la Protección al Ambiente (LGEEPA), Reglamento de la LGEEPA en Materia de Impacto Ambiental y Guías de Impacto Ambiental conforme al artículo 9 del Reglamento mencionado) ¿Esto se cumple en el contexto de la operación financiera y/o proyecto?",null,null,null,null,null,"Seleccione","Incluir en la MIA. Dentro de la delimitación del proyecto con los instrumentos mencionados, considerar el Artículo 9 de la LGEEPA en el desarrollo de estos instrumentos para ser considerados como inversión. "]
["En caso de aplicar, ¿la operación financiera y/o proyecto cuenta con una autorización de cambio de uso de suelo de áreas forestales, así como de selvas o de zonas áridas, de conformidad con el artículo 68 de la Ley General de Desarrollo Forestal Sustentable?",null,null,null,null,null,"Seleccione","Contar, en caso ncesario, con autorizacion para el cambio de uso de suelo de conformidad con el artículo 68 de la Ley General de Desarrollo Forestal Sustentable. "]
["A nivel de sitio y locación específica ¿la operación financiera y/o proyecto considera la Estrategia Nacional sobre Biodiversidad de México (ENBioMex), Plan de Acción 2016-2030 y la Estrategia Nacional para la Conservación y Aprovechamiento Sustentable de Polinizadores, así como las Estrategias Estatales de Biodiversidad correspondientes?",null,null,null,null,null,"Seleccione","Incluir en la MIA.  Considerar la Estrategia Nacional sobre Biodiversidad de México (ENBioMex), Plan de Acción 2016-2030 y la Estrategia Nacional para la Conservación y Aprovechamiento Sustentable de Polinizadores, así como las Estrategias Estatales de Biodiversidad correspondientes en su vinculación y diseño de acciones. "]
[]
["Fabricación de cemento y productos a base de cemento en plantas integradas"]
["Complejos siderúrgicos"]
["¿En el contexto de la operación financiera y/o proyecto se realizó un mapeo geográfico de los sitios y evaluación de su proximidad a áreas de alto valor de biodiversidad?",null,null,null,null,null,"Seleccione","Incluir en la MIA. Dentro de medidas de prevención y mitigación para los planes de manejo y el resto de los elementos dentro de los estudios de impacto. "]
["¿En el contexto de la operación financiera y/o proyecto se realizó una categorización de la superposición de los sitios de la industria con la importancia global, regional e importancia nacional y realización de planes de manejo para mejorar la gestión de la biodiversidad?",null,null,null,null,null,"Seleccione"]
[]
["Prevención y control de la contaminación"]
["¿En el contexto del proyecto se monitorea y cumple con los límites máximos permisibles de emisiones contaminantes establecidos en las normas oficiales mexicanas (NOM) y en normas mexicanas en materia de aire, suelo y olores, ruido y vibraciones, paisaje y, energía térmica y lumínica?",null,null,null,null,null,"Seleccione","Demostrar los certificados de cumplimiento con las NOM correspondientes    "]
[]
["Fabricación de cemento y productos a base de cemento en plantas integradas"]
["Complejos siderúrgicos"]
["¿En el contexto del proyecto, se presenta un cumplimiento estricto de las normas NOM-025-SSA1-2021, NOM-022-SSA1-2019, NOM-021-SSA1-2021, NOM-026-SSA1-2021, NOM-043-SEMARNAT-1993?",null,null,null,null,null,"Seleccione","Presentar certificado de cumplimiento estricto de las normas NOM-025-SSA1-2021, NOM-022-SSA1-2019, NOM-021-SSA1-2021, NOM-026-SSA1-2021, NOM-043-SEMARNAT-1993"]
[]
["Industria básica del aluminio"]
["¿En el proyecto se controlan las emisiones al aire procedentes de operaciones de fabricación y fundición de coque, especialmente partículas (polvo), óxidos de nitrógeno, dióxido de azufre, monóxido de carbono, cloruros, fluoruros, compuestos orgánicos volátiles, HAP, dibenzo, dioxinas, furanos policlorados y metales pesados?",null,null,null,null,null,"Seleccione","Entregar certificado que asegure el cumplimiento de la NOM-085-SEMARNAT-2011. Contaminación atmosférica-Niveles máximos permisibles de emisión de los equipos de combustión de calentamiento indirecto y su medición. Así como un certificado del cumplimiento de las normas oficiales mexicanas correspondientes en materia de aire, suelo y olores, ruido y vibraciones, paisaje y, energía térmica y lumínica."]
["¿En el contexto de la operación financiera y/o proyecto se realiza el mantenimiento preventivo y correctivo de los equipos que operan dentro de la empresa, para que los equipos funcionen correctamente y se evite la contaminación atmosférica?",null,null,null,null,null,"Seleccione","Incluir en la MIA. En la descripción se deberá señalar los puntos donde se generan contaminantes al aire, agua y suelo, así como las etapas del proceso en donde exista mayor riesgo de derrames, fugas, explosiones e incendio, entre otros, indicando los equipos para prevenir o reducir contaminantes, así como para el control y  prevención de riesgos.Particularmente, considerando las estrategias de mitigación de cambio climático y conforme al tipo de proceso a realizar, deberá especificar el tipo de emisiones que serán generadas, estableciendo las tecnologías consideradas para el control y reducción de  dichas emisiones."]
["¿En el contexto de la operación financiera y/o proyecto se monitorea el funcionamiento adecuado del equipo lavador de gases, con lo que se asegura que no se rebasan los límites máximos establecidos dentro de la normatividad, verificándolo mediante el estudio de emisiones que se realiza anualmente?",null,null,null,null,null,"Seleccione"]
["¿En el contexto de la operación financiera y/o proyecto, las actividades generadoras de ruido se realizan en instalaciones que reducen dicha externalidad?",null,null,null,null,null,"Seleccione","Entregar certificado que asegure el cumplimiento de la NOM-085-SEMARNAT-2011, Contaminación atmosférica-Niveles máximos permisibles de emisión de los equipos de combustión de calentamiento indirecto y su medición. Así como un certificado del cumplimiento de las normas oficiales mexicanas correspondientes en materia de aire, suelo y olores, ruido y vibraciones, paisaje y, energía térmica y lumínica."]
["¿Dentro de la operación financiera y/o proyecto se instalarán contenedores para el adecuado control y manejo de los residuos sólidos y peligrosos (contaminación del suelo), los cuales serán enviados a los diferentes proveedores con los que cuenta la empresa para su adecuado control y manejo, hasta su disposición final, el cual deberá otorgar un manifiesto de entrega transporte de residuos, donde especifique el destino final de los residuos?",null,null,null,null,null,"Seleccione","Incluir en la MIA. Dentro de medidas de prevención y mitigación. "]
["Los residuos peligrosos que se reciban dentro de la empresa para su reciclado, se destinarán al almacén de la empresa, el cual cuenta con piso de concreto, esto para evitar que, por alguna contingencia, algún lixiviado se infiltre en el suelo y lo contamine ¿Esto se cumple en el contexto de la operación financiera y/o proyecto?",null,null,null,null,null,"Seleccione"]
["¿En el contexto de la operación financiera y/o proyecto se aplica un plan de Vigilancia Ambiental con el objetivo de controlar y garantizar el cumplimiento de las medidas de prevención, mitigación y compensación, propuestas para minimizar los impactos ambientales negativos, ocasionados por el desarrollo del proyecto?",null,null,null,null,null,"Seleccione","Incluir en la MIA. Dentro de medidas de prevención y mitigación desarrollar un sistema de monitoreo. "]
[]
["Economía circular "]
["Fabricación de cemento y productos a base de cemento en plantas integradas"]
["¿En el contexto del proyecto, se ha cambiado la composición del cemento (cemento de sustitución por productos secundarios) con elementos que deriven de desechos o subproductos de actividades de empresas próximas?",null,null,null,null,null,"Seleccione","Incluir en la MIA. Describir dentro de las medidas de prevención y mitigación. "]
["¿En el contexto de la operación financiera y/o proyecto se ha asegurado una extensión de la vida útil de la construcción (mejora la resistencia estructural al deterioro)?",null,null,null,null,null,"Seleccione"]
["¿En el contexto de la operación financiera y/o proyecto se incluyen lineamientos para promover la captura de carbono (concentración de residuos del cemento)?",null,null,null,null,null,"Seleccione"]
["¿En el contexto de la operación financiera y/o proyecto se incluyen lineamientos para promover el uso de subproductos residuales de la industria que son reactivos en un ambiente alcalino para reemplazar parte del clínker en el cemento, conocidos como materiales cementosos suplementarios?",null,null,null,null,null,"Seleccione"]
["¿En el contexto de la operación financiera y/o proyecto se incluyen lineamientos para fomentar el potencial para el reaprovechamiento urbano de los residuos de construcción y demolición?",null,null,null,null,null,"Seleccione"]
["¿En el contexto de la operación financiera y/o proyecto se incluyen lineamientos para promover un mapeo del flujo de la materia prima, energía y residuos en el sector de la construcción, que permita identificar los beneficios esperados al incluir la circularidad en las diversas fases de la vida de la infraestructura, así como para los actores involucrados?",null,null,null,null,null,"Seleccione"]
[]
["Complejos siderúrgicos"]
["Industria básica del aluminio"]
["Fabricación de gases industriales"]
["Fabricación de otros productos químicos básicos inorgánicos"]
["Fabricación de otros productos químicos básicos orgánicos"]
["¿En el contexto de la operación financiera y/o proyecto se asegura que las instalaciones y plantas siderúrgicas hayan sido diseñadas y construidas para una alta durabilidad, fácil desmontaje, restauración y reciclaje?",null,null,null,null,null,"Sí","Incluir descripción de estas características dentro de la MIA"]
["¿En el contexto de la operación financiera y/o proyecto se identifica el tipo de residuos generados durante las diferentes fases del proyecto, estimando el volumen que pudiera generarse?",null,null,null,null,null,"Seleccione","Describir el manejo de desechos en la MIA"]
[]
["Complejos siderúrgicos"]
["Industria básica del aluminio"]
["¿En el contexto de la operación financiera y/o proyecto se identifica y reporta la disponibilidad de servicios de infraestructura para el manejo y disposición final de los residuos, en la localidad y/o región? por ejemplo: rellenos sanitarios, plantas de tratamiento de aguas residuales municipales, servicios de separación, manejo, tratamiento, reciclamiento o confinamiento de residuos, entre otros. En caso de hacer uso de ellos indicar si estos servicios son suficientes para cubrir las demandas presentes y futuras del proyecto y de otros proyectos presentes en la zona",null,null,null,null,null,"Seleccione","Describir el manejo de desechos en la MIA"]
[]
["Fabricación de gases industriales"]
["Fabricación de otros productos químicos básicos inorgánicos"]
["Fabricación de otros productos químicos básicos orgánicos"]
["¿Los residuos y subproductos del proceso de fabricación se tratan de acuerdo con la jerarquía de residuos, e idealmente reciclados en el mismo proceso (ciclo cerrado)?",null,null,null,null,null,"Seleccione","Incluir en la MIA. Describir dentro de las medidas de prevención y mitigación. "]
[]
["Industria básica del aluminio"]
["¿Se controlan los desechos y productos de las operaciones de coque y fundición, incluyendo alquitrán y benzola?",null,null,null,null,null,"Seleccione","Incluir en la MIA. Describir dentro de las medidas de prevención y mitigación. "]
[]
["Mitigación"]
["¿Se garantiza que la actividad económica se lleva a cabo utilizando las mejores tecnologías disponibles y en alineación con los compromisos de México en materia de mitigación de GyCEI?",null,null,null,null,null,"Seleccione","Incluir en la MIA. Describir dentro de las medidas de prevención y mitigación. "]

{"sheet":"Transporte","index":38,"n_rows":50,"n_cols":6,"rows_kept":50,"cut":false,"hidden":true,"merged":[[49,7,49,8],[3,0,3,7],[47,5,47,7],[1,0,1,7],[49,0,49,6]]}
[]
["Actividades del sector transporte"]
[]
["Dentro de la categoría de transporte de la Taxonomía Sostenible de México se consideran 18 actividades. En este apartado es necesario seleccionar, de esas 18 actividades, las que estarán siendo financiadas en las presentes operaciones financieras y/o proyectos. En esta versión del Excel, es posible evaluar hasta 20 actividades que se establecen en las cajas de abajo. Recuerda establecer los montos en la casilla amarilla (con número MXN) y elegir las actividades en la lista desplegable azul. Si es necesario incluir más de una actividad, da click en el botón de \"Añade una nueva actividad\".  En caso de que la actividad que deseas evaluar no se encuentre en la lista, significa que no está considerada en este momento por la Taxonomía Sostenible de México. En este caso, puedes  mandar un correo a taxonomia_sost@hacienda.gob.mx para conocer más al respecto. "]
["Objetivos que deberás considerar:",{"$f":"IF('Base-datos'!$C$705=TRUE,\"Mitigación\",\"\")","v":""},{"$f":"IF('Base-datos'!$C$706=TRUE,\"Adaptación\",\"\")","v":""},{"$f":"IF('Base-datos'!$C$707=TRUE,\"Género\",\"\")","v":""}]
[]
[]
["Definición de actividades"]
[null,"Cantidad de recursos ↓","Actividad en la que se colocarán los recursos ↓","Alineación a un objetivo","Tipo de recurso evaluado ↓","Da click para añadir más actividades ↓"]
["Establece por favor en la casilla amarilla la cantidad de recursos que serán destinados a la actividad que selecciones en la casilla azul ",null,"Seleccione","Seleccione","Seleccione"]
[]
["Establece por favor en la casilla amarilla la cantidad de recursos que serán destinados a la actividad que selecciones en la casilla azul ",null,"Seleccione","Seleccione","Seleccione"]
[]
["Establece por favor en la casilla amarilla la cantidad de recursos que serán destinados a la actividad que selecciones en la casilla azul ",null,"Seleccione","Seleccione","Seleccione"]
[]
["Establece por favor en la casilla amarilla la cantidad de recursos que serán destinados a la actividad que selecciones en la casilla azul ",null,"Seleccione","Seleccione","Seleccione"]
[]
["Establece por favor en la casilla amarilla la cantidad de recursos que serán destinados a la actividad que selecciones en la casilla azul ",null,"Seleccione","Seleccione","Seleccione"]
[]
["Establece por favor en la casilla amarilla la cantidad de recursos que serán destinados a la actividad que selecciones en la casilla azul ",null,"Seleccione","Seleccione","Seleccione"]
[]
["Establece por favor en la casilla amarilla la cantidad de recursos que serán destinados a la actividad que selecciones en la casilla azul ",null,"Seleccione","Seleccione","Seleccione"]
[]
["Establece por favor en la casilla amarilla la cantidad de recursos que serán destinados a la actividad que selecciones en la casilla azul ",null,"Seleccione","Seleccione","Seleccione"]
[]
["Establece por favor en la casilla amarilla la cantidad de recursos que serán destinados a la actividad que selecciones en la casilla azul ",null,"Seleccione","Seleccione","Seleccione"]
[]
["Establece por favor en la casilla amarilla la cantidad de recursos que serán destinados a la actividad que selecciones en la casilla azul ",null,"Seleccione","Seleccione","Seleccione"]
[]
["Establece por favor en la casilla amarilla la cantidad de recursos que serán destinados a la actividad que selecciones en la casilla azul ",null,"Seleccione","Seleccione","Seleccione"]
[]
["Establece por favor en la casilla amarilla la cantidad de recursos que serán destinados a la actividad que selecciones en la casilla azul ",null,"Seleccione","Seleccione","Seleccione"]
[]
["Establece por favor en la casilla amarilla la cantidad de recursos que serán destinados a la actividad que selecciones en la casilla azul ",null,"Seleccione","Seleccione","Seleccione"]
[]
["Establece por favor en la casilla amarilla la cantidad de recursos que serán destinados a la actividad que selecciones en la casilla azul ",null,"Seleccione","Seleccione","Seleccione"]
[]
["Establece por favor en la casilla amarilla la cantidad de recursos que serán destinados a la actividad que selecciones en la casilla azul ",null,"Seleccione","Seleccione","Seleccione"]
[]
["Establece por favor en la casilla amarilla la cantidad de recursos que serán destinados a la actividad que selecciones en la casilla azul ",null,"Seleccione","Seleccione","Seleccione"]
[]
["Establece por favor en la casilla amarilla la cantidad de recursos que serán destinados a la actividad que selecciones en la casilla azul ",null,"Seleccione","Seleccione","Seleccione"]
[]
["Establece por favor en la casilla amarilla la cantidad de recursos que serán destinados a la actividad que selecciones en la casilla azul ",null,"Seleccione","Seleccione","Seleccione"]
[]
["Establece por favor en la casilla amarilla la cantidad de recursos que serán destinados a la actividad que selecciones en la casilla azul ",null,"Seleccione","Seleccione","Seleccione"]
[]
["Establece por favor en la casilla amarilla la cantidad de recursos que serán destinados a la actividad que selecciones en la casilla azul ",null,"Seleccione","Seleccione","Seleccione","Por el momento, solo es posible evaluar 20 actividades. Si tu proyecto involucra más actividades, por favor escribe un corrreo a taxonomia_sost@hacienda.gob.mx"]
[]
["Al haber concluido el llenado de las actividades y los tipos de recursos que estarás evaluando, por favor da click en el siguiente botón para evaluar la contribución sustancial de las actividades"]

{"sheet":"Mitigación-Transporte","index":39,"n_rows":113,"n_cols":6,"rows_kept":113,"cut":false,"hidden":true,"merged":[[109,5,111,5],[84,5,86,5],[91,5,93,5],[103,5,105,5],[50,5,52,5],[56,5,58,5],[63,5,65,5],[70,5,72,5],[77,5,79,5],[27,5,28,5],[32,5,34,5],[38,5,40,5],[44,5,46,5],[70,0,70,2],[34,0,34,2],[33,0,33,2],[32,0,32,2],[52,0,52,2],[53,0,53,4],[44,0,44,2],[45,0,45,2],[46,0,46,2],[47,0,47,4],[29,0,29,4],[59,0,59,4],[71,0,71,2],[72,0,72,2],[73,0,73,4],[35,0,35,4],[62,0,62,4],[63,0,63,2],[64,0,64,2],[65,0,65,2],[66,0,66,4],[69,0,69,4],[38,0,38,2],[39,0,39,2],[40,0,40,2],[41,0,41,4],[50,0,50,2],[51,0,51,2],[76,0,76,4],[77,0,77,2],[78,0,78,2],[79,0,79,2],[80,0,80,4],[106,0,106,4],[97,0,97,2],[83,0,83,4],[84,0,84,2],[85,0,85,2],[86,0,86,2],[87,0,87,4],[94,0,94,4],[104,0,104,2],[1,0,1,6],[3,0,3,6],[5,0,5,4],[6,0,6,2],[7,0,7,2],[6,5,7,5],[8,0,8,4],[28,0,28,2],[11,0,11,2],[16,0,16,2],[12,0,12,2],[13,0,13,2],[14,0,14,2],[15,0,15,2],[20,0,20,2],[21,0,21,2],[22,0,22,2],[23,0,23,2],[27,0,27,2],[17,0,17,4],[24,0,24,4],[11,5,16,5],[112,0,112,4],[10,0,10,4],[90,0,90,4],[100,0,100,2],[109,0,109,2],[110,0,110,2],[56,0,56,2],[57,0,57,2],[58,0,58,2],[91,0,91,2],[92,0,92,2],[93,0,93,2],[111,0,111,2],[103,0,103,2],[105,0,105,2]]}
[]
["Mitigación al cambio climático de actividades del sector transporte"]
[]
["La Taxonomía Sostenible de México contiene métricas y umbrales que evalúan la contribución sustancial de cada una de las actividades económicas para determinar si dichas actividades contribuyen sustancialmente a la sostenibilidad. Las métricas corresponden a las unidades en las que se evalúan los umbrales. Por otro lado, los umbrales son los niveles mínimos que tienen que cumplir cada una de las actividades para argumentar que cuentan con contribución sustancial."]
[]
["482110. Transporte por ferrocarril (transporte de pasajeros)"]
["¿Son los trenes de cero emisiones?",null,null,"Seleccione",{"$f":"IF(D7=\"Seleccione\",\"Por definir\",IF(D7=\"Sí\",\"Es directamente elegible como actividad sostenible\",\"El proyecto no genera directamente contribución sustancial, revisa el siguiente criterio.\"))","v":"Por definir"},"Al menos uno de los dos criterios debe cumplirse para que la actividad contribuya sustancialmente a la sostenibilidad"]
["¿Tiene emisiones directas son inferiores a 50g de emisiones de CO2e por pasajero-kilómetro (gCO2e/pkm)? (Este criterio será permitido hasta 2025. Posteriormente se actualizará el umbral)",null,null,"Seleccione",{"$f":"IF(E7=\"Es directamente elegible como actividad sostenible\",\"La actividad es directamente elegible como sostenible\",IF(D8=\"Seleccione\",\"Por definir\",IF(D8=\"Sí\",\"Es elegible como actividad sostenible, pero este criterio solo es válido hasta 2025, no es elegible a partir de ese año. \",\"El proyecto no cumple con los criterios necesarios para contribuir sustancialmente a la sostenibilidad\")))","v":"Por definir"}]
[{"$f":"IF(AND(D7=\"Seleccione\",D8=\"Seleccione\"),\"Por definir\",IF(D7=\"Sí\",\"La actividad sí contribuye sustancialmente a la sostenibilidad\",IF(D8=\"Sí\",\"La actividad sí contribuye sustancialmente a la sostenibilidad\",\"El proyecto no genera contribución sustancial a la sostenibilidad.\")))","v":"Por definir"}]
[]
["482110. Transporte por ferrocarril (transporte de mercancías)"]
["¿Son los trenes es de cero emisiones? ",null,null,"Seleccione",{"$f":"IF(D12=\"Seleccione\",\"\",IF(D12=\"Sí\",\"Es elegible como actividad con contribución sustancial\",\"El proyecto no genera directamente contribución sustancial. Continua por favor revisando las siguientes preguntas\"))","v":""},"Al menos una actividad deberá ser considerada para argumentar que el proyecto tiene contribución sustancial"]
["¿Los ferrocarriles están dedicados exclusivamente al transporte de combustibles fósiles o de combustibles fósiles mezclados con combustibles alternativos?",null,null,"Seleccione",{"$f":"IF(D13=\"Seleccione\",\"\",IF(D13=\"Sí\",\"Al no cumplir con este criterio, la actividad no genera contribución sustancial\",\"Se cumple satisfactoriamente uno de los criterios para generar contirbución sustancial\"))","v":""}]
["¿La infraestructura y el material rodante de las líneas ferroviarias traslada combustibles fósiles?",null,null,"Seleccione",{"$f":"IF(D14=\"Seleccione\",\"\",IF(D14=\"Sí\",\"Al no cumplir con este criterio, la actividad no genera contribución sustancial\",\"Se cumple satisfactoriamente uno de los criterios para generar contirbución sustancial\"))","v":""}]
["¿Menos del 25% de la carga en tonelada kilómetro transportada por la línea se compone de combustibles fósiles?",null,null,"Seleccione",{"$f":"IF(D15=\"Seleccione\",\"\",IF(D15=\"Sí\",\"La actividad cumple con uno de los criterios necesarios para generar contribución sustancial a la sostenibilidad\",\"Al no cumplir con este criterio, la actividad no genera contribución sustancial\"))","v":""}]
["¿Menos del 25% del material rodante se dedica al transporte de combustibles fósiles?",null,null,"Seleccione",{"$f":"IF(D16=\"Seleccione\",\"\",IF(D16=\"Sí\",\"La actividad cumple con uno de los criterios necesarios para generar contribución sustancial a la sostenibilidad\",\"Al no cumplir con este criterio, la actividad no genera contribución sustancial\"))","v":""}]
["¿El transporte de mercancias se realiza generando menos de 25 gramos de CO2e por tonelada kilómetro desplazada?",null,null,"Seleccione",{"$f":"IF(D17=\"Seleccione\",\"\",IF(D17=\"Sí\",\"Cumplir con este criterio asegura que la actividad contribuye sustancialmente a la sostenibilidad, sin embago, a partir de 2025 estre criterio ya no será válido\",\"Al no cumplir con este criterio, la actividad no genera contribución sustancial\"))","v":""}]
[{"$f":"IF(AND(D12=\"No\",D17=\"No\",D13=\"No\",D14=\"No\",D15=\"No\",D16=\"No\"),\"La actividad no genera contribución sustancial\",IF(OR(D12=\"Seleccione\",D17=\"Seleccione\",D13=\"Seleccione\",D14=\"Seleccione\",D15=\"Seleccione\",D16=\"Seleccione\"),\"Por definir\",IF(D13=\"Sí\",\"La actividad no genera contribución sustancial\",IF(D12=\"Sí\",IF(D14=\"No\",\"La actividad sí contribuye sustancialmente a la sostenibilidad\",IF(OR(D15=\"Sí\",D16=\"Sí\"),\"La actividad sí contribuye sustancialmente a la sostenibilidad\",\"La actividad no genera contribución sustancial\")),IF(D17=\"Sí\",IF(D14=\"No\",\"La actividad sí contribuye sustancialmente a la sostenibilidad\",IF(OR(D15=\"Sí\",D16=\"Sí\"),\"La actividad sí contribuye sustancialmente a la sostenibilidad\",\"La actividad no genera contribución sustancial\")),IF(D14=\"No\",\"La actividad sí contribuye sustancialmente a la sostenibilidad\",IF(OR(D15=\"Sí\",D16=\"Sí\",),\"La actividad sí contribuye sustancialmente a la sostenibilidad\",\"La actividad no genera contribución sustancial\")))))))","v":"Por definir"}]
[]
["483210. Transporte por aguas interiores (transporte de mercancías)"]
["¿Son las embarcaciones fluviales, 50% más eficientes en comparación con un vehículo carretero respecto a las toneladas de CO2e (tCO2e) por cada tonelada kilómetro (tkm) o tCO2e por tonelada-milla náutica (tnm) según lo definido en el reglamento?",null,null,"Seleccione",{"$f":"IF(D21=\"Seleccione\",\"\",IF(D21=\"Sí\",\"La actividad cumple con uno de los criterios necesarios para generar contribución sustancial a la sostenibilidad\",\"Al no cumplir con este criterio, la actividad no genera contribución sustancial\"))","v":""}]
["¿La unidad de transporte está claramente descrita como transporte de combustibles fósiles por fuentes gubernamentales autorizadas?",null,null,"Seleccione",{"$f":"IF(D22=\"Seleccione\",\"\",IF(D22=\"Sí\",\"Al no cumplir con este criterio, la actividad no genera contribución sustancial\",\"Se cumple satisfactoriamente uno de los criterios para generar contirbución sustancial\"))","v":""}]
["¿Menos del 25% de la carga transportada en toneladas kilómetro, corresponde a combustibles fósiles?",null,null,"Seleccione",{"$f":"IF(D23=\"Seleccione\",\"\",IF(D23=\"Sí\",\"La actividad cumple con uno de los criterios necesarios para generar contribución sustancial a la sostenibilidad\",\"Al no cumplir con este criterio, la actividad no genera contribución sustancial\"))","v":""}]
["¿Menos del 25% del material rodante dedicado al transporte de combustibles fósiles?",null,null,"Seleccione",{"$f":"IF(D24=\"Seleccione\",\"\",IF(D24=\"Sí\",\"La actividad cumple con uno de los criterios necesarios para generar contribución sustancial a la sostenibilidad\",\"Al no cumplir con este criterio, la actividad no genera contribución sustancial\"))","v":""}]
[{"$f":"IF(OR(D22=\"Seleccione\",D23=\"Seleccione\",D24=\"Seleccione\",D21=\"Seleccione\"),\"Por definir\",IF(AND(D21=\"Sí\",D22=\"No\",D23=\"Sí\",D24=\"Sí\"),\"La actividad sí contribuye sustancialmente a la sostenibilidad\", \"La actividad no genera contribución sustancial\"))","v":"Por definir"},null,null,null,null,"Definición de condiciones en el reglamento de la EPA"]
[]
["483210. Transporte por aguas interiores (transporte de pasajeros)"]
["¿El proyecto de transporte presenta emisiones directas menores a 50 gCO2e/pkm o 92.6 gCO2e/pnm [los criterios se basan en ocupación real (pasajeros-km) y no en capacidad ofrecida (plazas-km)]?",null,null,"Seleccione",{"$f":"IF(D28=\"Seleccione\",\"\",IF(D28=\"Sí\",\"La actividad cumple con uno de los criterios necesarios para generar contribución sustancial a la sostenibilidad\",\"Al no cumplir con este criterio, la actividad no genera contribución sustancial\"))","v":""},"Al menos una condición debe cumplirse para que la actividad contribuya sustancialmente a la sostenibilidad"]
["¿Son las embarcaciones fluviales, 50% más eficientes en comparación con un vehículo carretero respecto a las toneladas de CO2e (tCO2e) por cada tonelada kilómetro (tkm) o tCO2e por tonelada-milla náutica (tnm) según lo definido en el reglamento?",null,null,"Seleccione",{"$f":"IF(D29=\"Seleccione\",\"\",IF(D29=\"Sí\",\"La actividad cumple con uno de los criterios necesarios para generar contribución sustancial a la sostenibilidad\",\"Al no cumplir con este criterio, la actividad no genera contribución sustancial\"))","v":""}]
[{"$f":"IF(OR(D28=\"Seleccione\",D29=\"Seleccione\"),\"Por definir\",IF(OR(D28=\"Sí\",D29=\"Sí\"),\"La actividad sí contribuye sustancialmente a la sostenibilidad\", \"La actividad no genera contribución sustancial\"))","v":"Por definir"},null,null,null,null,"Definición de condiciones en el reglamento de la EPA"]
[]
["484231. Autotransporte foráneo de materiales para la construcción"]
["¿El proyecto se trata de flotas o material rodante de cero emisiones directas (i.e. eléctricos o hidrógeno bajo en carbono)?",null,null,"Seleccione",{"$f":"IF(D33=\"Seleccione\",\"\",IF(D33=\"Sí\",\"Es elegible como actividad con contribución sustancial\",\"El proyecto no genera directamente contribución sustancial. Continua por favor revisando las siguientes preguntas\"))","v":""},"Al menos una condición debe cumplirse para que la actividad contribuya sustancialmente a la sostenibilidad"]
["¿ El proyecto involucra flotas o material rodante que utilizan biocombustibles sostenibles, DUBA, Diesel sintético o biogás garantizados por diseño tecnológico o por monitoreo continuo y verificación de terceros?",null,null,"Seleccione",{"$f":"IF(D34=\"Seleccione\",\"\",IF(D34=\"Sí\",\"Es elegible como actividad con contribución sustancial\",\"El proyecto no genera directamente contribución sustancial. Continua por favor revisando las siguientes preguntas\"))","v":""}]
["¿Se trata de otro tipo de transporte con emisiones directas menores a 50gCO2/tkm?  (hasta el 2025, no elegibles a partir de entonces)",null,null,"Seleccione",{"$f":"IF(D35=\"Seleccione\",\"\",IF(D35=\"Sí\",\"Es elegible como actividad con contribución sustancial hasta 2025\",\"El proyecto no genera directamente contribución sustancial. Continua por favor revisando las siguientes preguntas\"))","v":""}]
[{"$f":"IF(OR(D33=\"Seleccione\",D34=\"Seleccione\",D35=\"Seleccione\"),\"Por definir\",IF(OR(D33=\"Sí\",D34=\"Sí\",D35=\"Sí\"),\"La actividad sí contribuye sustancialmente a la sostenibilidad\", \"La actividad no genera contribución sustancial\"))","v":"Por definir"}]
[]
["484232. Autotransporte foráneo de materiales y residuos peligrosos"]
["¿El proyecto involucra flotas o material rodante de cero emisiones directas (i.e. eléctricos o hidrógeno bajo en carbono)?",null,null,"Seleccione",{"$f":"IF(D39=\"Seleccione\",\"\",IF(D39=\"Sí\",\"Es elegible como actividad con contribución sustancial\",\"El proyecto no genera directamente contribución sustancial. Continua por favor revisando las siguientes preguntas\"))","v":""},"Al menos una condición debe cumplirse para que la actividad contribuya sustancialmente a la sostenibilidad"]
["Flotas o material rodante que utilizan biocombustibles sostenibles, DUBA, Diesel sintético o biogás garantiados por diseño tecnológico o por monitoreo continuo y verificación de terceros?",null,null,"Seleccione",{"$f":"IF(D40=\"Seleccione\",\"\",IF(D40=\"Sí\",\"Es elegible como actividad con contribución sustancial\",\"El proyecto no genera directamente contribución sustancial. Continua por favor revisando las siguientes preguntas\"))","v":""}]
["¿Se trata de otro tipo de transporte con emisiones directas menores a 50gCO2/tkm? (hasta el 2025, no elegibles a partir de entonces)",null,null,"Seleccione",{"$f":"IF(D41=\"Seleccione\",\"\",IF(D41=\"Sí\",\"Es elegible como actividad con contribución sustancial hasta 2025\",\"El proyecto no genera directamente contribución sustancial. Continua por favor revisando las siguientes preguntas\"))","v":""}]
[{"$f":"IF(OR(D39=\"Seleccione\",D40=\"Seleccione\",D41=\"Seleccione\"),\"Por definir\",IF(OR(D39=\"Sí\",D40=\"Sí\",D41=\"Sí\"),\"La actividad sí contribuye sustancialmente a la sostenibilidad\", \"La actividad no genera contribución sustancial\"))","v":"Por definir"}]
[]
["484233. Autotransporte foráneo con refrigeración"]
["¿El proyecto se trata de flotas o material rodante de cero emisiones directas (i.e. eléctricos o hidrógeno bajo en carbono)?",null,null,"Seleccione",{"$f":"IF(D45=\"Seleccione\",\"\",IF(D45=\"Sí\",\"Es elegible como actividad con contribución sustancial\",\"El proyecto no genera directamente contribución sustancial. Continua por favor revisando las siguientes preguntas\"))","v":""},"Al menos una condición debe cumplirse para que la actividad contribuya sustancialmente a la sostenibilidad"]
["¿El proyecto involucra flotas o material rodante que utilizan biocombustibles sostenibles, DUBA, Diesel sintético o biogás garantizados por diseño tecnológico o por monitoreo continuo y verificación de terceros?",null,null,"Seleccione",{"$f":"IF(D46=\"Seleccione\",\"\",IF(D46=\"Sí\",\"Es elegible como actividad con contribución sustancial\",\"El proyecto no genera directamente contribución sustancial. Continua por favor revisando las siguientes preguntas\"))","v":""}]
["¿Se trata de otro tipo de transporte con emisiones directas menores a 50gCO2/tkm? (hasta el 2025, no elegibles a partir de entonces)",null,null,"Seleccione",{"$f":"IF(D47=\"Seleccione\",\"\",IF(D47=\"Sí\",\"Es elegible como actividad con contribución sustancial hasta 2025\",\"El proyecto no genera directamente contribución sustancial. Continua por favor revisando las siguientes preguntas\"))","v":""}]
[{"$f":"IF(OR(D45=\"Seleccione\",D46=\"Seleccione\",D47=\"Seleccione\"),\"Por definir\",IF(OR(D45=\"Sí\",D46=\"Sí\",D47=\"Sí\"),\"La actividad sí contribuye sustancialmente a la sostenibilidad\", \"La actividad no genera contribución sustancial\"))","v":"Por definir"}]
[]
["484234. Autotransporte foráneo de madera"]
["¿El proyecto se trata de flotas o material rodante de cero emisiones directas (i.e. eléctricos o hidrógeno bajo en carbono)?",null,null,"Seleccione",{"$f":"IF(D51=\"Seleccione\",\"\",IF(D51=\"Sí\",\"Es elegible como actividad con contribución sustancial\",\"El proyecto no genera directamente contribución sustancial. Continua por favor revisando las siguientes preguntas\"))","v":""},"Al menos una condición debe cumplirse para que la actividad contribuya sustancialmente a la sostenibilidad"]
["¿El proyecto involucra flotas o material rodante que utilizan biocombustibles sostenibles, DUBA, Diesel sintético o biogás garantizados por diseño tecnológico o por monitoreo continuo y verificación de terceros?",null,null,"Seleccione",{"$f":"IF(D52=\"Seleccione\",\"\",IF(D52=\"Sí\",\"Es elegible como actividad con contribución sustancial\",\"El proyecto no genera directamente contribución sustancial. Continua por favor revisando las siguientes preguntas\"))","v":""}]
["¿Se trata de otro tipo de transporte con emisiones directas menores a 50gCO2/tkm? (hasta el 2025, no elegibles a partir de entonces)",null,null,"Seleccione",{"$f":"IF(D53=\"Seleccione\",\"\",IF(D53=\"Sí\",\"Es elegible como actividad con contribución sustancial hasta 2025\",\"El proyecto no genera directamente contribución sustancial. Continua por favor revisando las siguientes preguntas\"))","v":""}]
[{"$f":"IF(OR(D51=\"Seleccione\",D52=\"Seleccione\",D53=\"Seleccione\"),\"Por definir\",IF(OR(D51=\"Sí\",D52=\"Sí\",D53=\"Sí\"),\"La actividad sí contribuye sustancialmente a la sostenibilidad\", \"La actividad no genera contribución sustancial\"))","v":"Por definir"}]
[]
["484239. Otro autotransporte foráneo de carga especializado"]
["¿El proyecto se trata de flotas o material rodante de cero emisiones directas (i.e. eléctricos o hidrógeno bajo en carbono)?",null,null,"Seleccione",{"$f":"IF(D57=\"Seleccione\",\"\",IF(D57=\"Sí\",\"Es elegible como actividad con contribución sustancial\",\"El proyecto no genera directamente contribución sustancial. Continua por favor revisando las siguientes preguntas\"))","v":""},"Al menos una condición debe cumplirse para que la actividad contribuya sustancialmente a la sostenibilidad"]
["¿El proyecto involucra flotas o material rodante que utilizan biocombustibles sostenibles, DUBA, Diesel sintético o biogás garantizados por diseño tecnológico o por monitoreo continuo y verificación de terceros?",null,null,"Seleccione",{"$f":"IF(D58=\"Seleccione\",\"\",IF(D58=\"Sí\",\"Es elegible como actividad con contribución sustancial\",\"El proyecto no genera directamente contribución sustancial. Continua por favor revisando las siguientes preguntas\"))","v":""}]
["¿Se trata de otro tipo de transporte con emisiones directas menores a 50gCO2/tkm? (hasta el 2025, no elegibles a partir de entonces)",null,null,"Seleccione",{"$f":"IF(D59=\"Seleccione\",\"\",IF(D59=\"Sí\",\"Es elegible como actividad con contribución sustancial hasta 2025\",\"El proyecto no genera directamente contribución sustancial. Continua por favor revisando las siguientes preguntas\"))","v":""}]
[{"$f":"IF(OR(D57=\"Seleccione\",D58=\"Seleccione\",D59=\"Seleccione\"),\"Por definir\",IF(OR(D57=\"Sí\",D58=\"Sí\",D59=\"Sí\"),\"La actividad sí contribuye sustancialmente a la sostenibilidad\", \"La actividad no genera contribución sustancial\"))","v":"Por definir"}]
[]
["485111. Transporte colectivo urbano y suburbano de pasajeros en autobuses de ruta fija (corredor de transporte)"]
["Nota: Los umbrales están establecidos en función de la capacidad real y no de la ofrecida"]
["¿La flota es nueva con emisiones directas de menos de 20 gCO2e/pkm? (hasta 2025, no elegibles después) ",null,null,"Seleccione",{"$f":"IF(D64=\"Seleccione\",\"\",IF(D64=\"Sí\",\"Es elegible como actividad con contribución sustancial\",\"El proyecto no genera directamente contribución sustancial. Continua por favor revisando las siguientes preguntas\"))","v":""},"Al menos una condición debe cumplirse para que la actividad contribuya sustancialmente a la sostenibilidad"]
["¿El proyecto se trata de renovación de flota que generará emisiones directas de menos de 30gCO2e/pkm?",null,null,"Seleccione",{"$f":"IF(D65=\"Seleccione\",\"\",IF(D65=\"Sí\",\"Es elegible como actividad con contribución sustancial\",\"El proyecto no genera directamente contribución sustancial. Continua por favor revisando las siguientes preguntas\"))","v":""}]
["¿El proyecto se trata de renovación con chatarrización en donde la nueva flota tendrá emisiones menores a 40gCO2e/pkm y la unidad reemplazada es chatarrizada?",null,null,"Seleccione",{"$f":"IF(D66=\"Seleccione\",\"\",IF(D66=\"Sí\",\"Es elegible como actividad con contribución sustancial\",\"El proyecto no genera directamente contribución sustancial. Continua por favor revisando las siguientes preguntas\"))","v":""}]
[{"$f":"IF(OR(D64=\"Seleccione\",D65=\"Seleccione\",D66=\"Seleccione\"),\"Por definir\",IF(OR(D64=\"Sí\",D65=\"Sí\",D66=\"Sí\"),\"La actividad sí contribuye sustancialmente a la sostenibilidad\", \"La actividad no genera contribución sustancial\"))","v":"Por definir"}]
[]
["485112. Transporte colectivo urbano y suburbano de pasajeros en automóviles de ruta fija"]
["Nota: Los umbrales están establecidos en función de la capacidad real y no de la ofrecida"]
["¿La flota es nueva con emisiones directas de menos de 20 gCO2e/pkm? (hasta 2025, no elegibles después) ",null,null,"Seleccione",{"$f":"IF(D71=\"Seleccione\",\"\",IF(D71=\"Sí\",\"Es elegible como actividad con contribución sustancial\",\"El proyecto no genera directamente contribución sustancial. Continua por favor revisando las siguientes preguntas\"))","v":""},"Al menos una condición debe cumplirse para que la actividad contribuya sustancialmente a la sostenibilidad"]
["¿El proyecto se trata de renovación de flota que generará emisiones directas de menos de 30gCO2e/pkm?",null,null,"Seleccione",{"$f":"IF(D72=\"Seleccione\",\"\",IF(D72=\"Sí\",\"Es elegible como actividad con contribución sustancial\",\"El proyecto no genera directamente contribución sustancial. Continua por favor revisando las siguientes preguntas\"))","v":""}]
["¿El proyecto se trata de renovación con chatarrización en donde la nueva flota tendrá emisiones menores a 40gCO2e/pkm y la unidad reemplazada es chatarrizada?",null,null,"Seleccione",{"$f":"IF(D73=\"Seleccione\",\"\",IF(D73=\"Sí\",\"Es elegible como actividad con contribución sustancial\",\"El proyecto no genera directamente contribución sustancial. Continua por favor revisando las siguientes preguntas\"))","v":""}]
[{"$f":"IF(OR(D71=\"Seleccione\",D72=\"Seleccione\",D73=\"Seleccione\"),\"Por definir\",IF(OR(D71=\"Sí\",D72=\"Sí\",D73=\"Sí\"),\"La actividad sí contribuye sustancialmente a la sostenibilidad\", \"La actividad no genera contribución sustancial\"))","v":"Por definir"}]
[]
["485210. Transporte colectivo foráneo de pasajeros de ruta fija"]
["Nota: Los umbrales están establecidos en función de la capacidad real y no de la ofrecida"]
["¿La flota es nueva con emisiones directas de menos de 20 gCO2e/pkm? (hasta 2025, no elegibles después) ",null,null,"Seleccione",{"$f":"IF(D78=\"Seleccione\",\"\",IF(D78=\"Sí\",\"Es elegible como actividad con contribución sustancial\",\"El proyecto no genera directamente contribución sustancial. Continua por favor revisando las siguientes preguntas\"))","v":""},"Al menos una condición debe cumplirse para que la actividad contribuya sustancialmente a la sostenibilidad"]
["¿El proyecto se trata de renovación de flota que generará emisiones directas de menos de 30gCO2e/pkm?",null,null,"Seleccione",{"$f":"IF(D79=\"Seleccione\",\"\",IF(D79=\"Sí\",\"Es elegible como actividad con contribución sustancial\",\"El proyecto no genera directamente contribución sustancial. Continua por favor revisando las siguientes preguntas\"))","v":""}]
["¿El proyecto se trata de renovación con chatarrización en donde la nueva flota tendrá emisiones menores a 40gCO2e/pkm y la unidad reemplazada es chatarrizada?",null,null,"Seleccione",{"$f":"IF(D80=\"Seleccione\",\"\",IF(D80=\"Sí\",\"Es elegible como actividad con contribución sustancial\",\"El proyecto no genera directamente contribución sustancial. Continua por favor revisando las siguientes preguntas\"))","v":""}]
[{"$f":"IF(OR(D78=\"Seleccione\",D79=\"Seleccione\",D80=\"Seleccione\"),\"Por definir\",IF(OR(D78=\"Sí\",D79=\"Sí\",D80=\"Sí\"),\"La actividad sí contribuye sustancialmente a la sostenibilidad\", \"La actividad no genera contribución sustancial\"))","v":"Por definir"}]
[]
["485115. Transporte colectivo urbano y suburbano de pasajeros en autobuses que transitan en carril exclusivo (BRT)"]
["Nota: Los umbrales están establecidos en función de la capacidad real y no de la ofrecida"]
["¿La flota es nueva con emisiones directas de menos de 20 gCO2e/pkm? (hasta 2025, no elegibles después) ",null,null,"Seleccione",{"$f":"IF(D85=\"Seleccione\",\"\",IF(D85=\"Sí\",\"Es elegible como actividad con contribución sustancial\",\"El proyecto no genera directamente contribución sustancial. Continua por favor revisando las siguientes preguntas\"))","v":""},"Al menos una condición debe cumplirse para que la actividad contribuya sustancialmente a la sostenibilidad"]
["¿El proyecto se trata de renovación de flota que generará emisiones directas de menos de 30gCO2e/pkm?",null,null,"Seleccione",{"$f":"IF(D86=\"Seleccione\",\"\",IF(D86=\"Sí\",\"Es elegible como actividad con contribución sustancial\",\"El proyecto no genera directamente contribución sustancial. Continua por favor revisando las siguientes preguntas\"))","v":""}]
["¿El proyecto se trata de renovación con chatarrización en donde la nueva flota tendrá emisiones menores a 40gCO2e/pkm y la unidad reemplazada es chatarrizada?",null,null,"Seleccione",{"$f":"IF(D87=\"Seleccione\",\"\",IF(D87=\"Sí\",\"Es elegible como actividad con contribución sustancial\",\"El proyecto no genera directamente contribución sustancial. Continua por favor revisando las siguientes preguntas\"))","v":""}]
[{"$f":"IF(OR(D85=\"Seleccione\",D86=\"Seleccione\",D87=\"Seleccione\"),\"Por definir\",IF(OR(D85=\"Sí\",D86=\"Sí\",D87=\"Sí\"),\"La actividad sí contribuye sustancialmente a la sostenibilidad\", \"La actividad no genera contribución sustancial\"))","v":"Por definir"}]
[]
["487110. Transporte turístico por tierra"]
["Nota: Los umbrales están establecidos en función de la capacidad real y no de la ofrecida"]
["¿La flota es nueva con emisiones directas de menos de 20 gCO2e/pkm? (hasta 2025, no elegibles después) ",null,null,"Seleccione",{"$f":"IF(D92=\"Seleccione\",\"\",IF(D92=\"Sí\",\"Es elegible como actividad con contribución sustancial\",\"El proyecto no genera directamente contribución sustancial. Continua por favor revisando las siguientes preguntas\"))","v":""},"Al menos una condición debe cumplirse para que la actividad contribuya sustancialmente a la sostenibilidad"]
["¿El proyecto se trata de renovación de flota que generará emisiones directas de menos de 30gCO2e/pkm?",null,null,"Seleccione",{"$f":"IF(D93=\"Seleccione\",\"\",IF(D93=\"Sí\",\"Es elegible como actividad con contribución sustancial\",\"El proyecto no genera directamente contribución sustancial. Continua por favor revisando las siguientes preguntas\"))","v":""}]
["¿El proyecto se trata de renovación con chatarrización en donde la nueva flota tendrá emisiones menores a 40gCO2e/pkm y la unidad reemplazada es chatarrizada?",null,null,"Seleccione",{"$f":"IF(D94=\"Seleccione\",\"\",IF(D94=\"Sí\",\"Es elegible como actividad con contribución sustancial\",\"El proyecto no genera directamente contribución sustancial. Continua por favor revisando las siguientes preguntas\"))","v":""}]
[{"$f":"IF(OR(D92=\"Seleccione\",D93=\"Seleccione\",D94=\"Seleccione\"),\"Por definir\",IF(OR(D92=\"Sí\",D93=\"Sí\",D94=\"Sí\"),\"La actividad sí contribuye sustancialmente a la sostenibilidad\", \"La actividad no genera contribución sustancial\"))","v":"Por definir"}]
[]
["485113. Transporte colectivo urbano y suburbano de pasajeros en trolebuses y trenes ligeros"]
["¿Las emisiones directas son inferiores a 50 gCO2e/pkm? (hasta 2025, no elegibles después) ",null,null,"Seleccione",{"$f":"IF(D98=\"Seleccione\",\"Por definir\",IF(D98=\"Sí\",\"Es elegible como actividad que contribuye sustancialmente a la sostenibilidad, pero este criterio solo es válido hasta 2025. A partir de ese año, la actividad no contribuirá sustancialmente a la sostenibilidad\",\"El proyecto no genera contribución sustancial\"))","v":"Por definir"}]
[]
["485114. Transporte colectivo urbano y suburbano de pasajeros en metro"]
["¿Las emisiones directas son inferiores a 50 gCO2e/pkm? (hasta 2025, no elegibles después) ",null,null,"Seleccione",{"$f":"IF(D101=\"Seleccione\",\"Por definir\",IF(D101=\"Sí\",\"Es elegible como actividad que contribuye sustancialmente a la sostenibilidad, pero este criterio solo es válido hasta 2025. A partir de ese año, la actividad no contribuirá sustancialmente a la sostenibilidad\",\"El proyecto no genera contribución sustancial\"))","v":"Por definir"}]
[]
["485311 (2). Vehículos ligeros"]
["¿Se trata de vehículos de cero emisiones? (i.e. eléctricos, hidrógeno)",null,null,"Seleccione",{"$f":"IF(D104=\"Seleccione\",\"Por definir\",IF(D104=\"Sí\",\"Es directamente elegible como actividad que contribuye sustancialmente a la sostenibilidad\",\"Evalúa las demás preguntas\"))","v":"Por definir"},"Al menos una condición debe cumplirse para que la actividad contribuya sustancialmente a la sostenibilidad"]
["¿Se trata de una flota de vehículos híbridos convencionales o híbridos conectables?",null,null,"Seleccione",{"$f":"IF(D105=\"Seleccione\",\"Por definir\",IF(D105=\"Sí\",\"La actividad es directamente elegible como actividad que contribuye sustancialmente a la sostenibilidad, sin embargo este criterio solo es válido hasta 2025 en el caso convencional y al 2030 para conectables\",\"El proyecto no genera contribución sustancial\"))","v":"Por definir"}]
["¿Se trata de vehículos híbridos que consumen diésel?",null,null,"Seleccione",{"$f":"IF(D106=\"Seleccione\",\"Por definir\",IF(D106=\"Sí\",\"Cumplir exclusivamente este criterio no asegura contribuir sustancialmente a la sostenibilidad\",\"Cumplir exclusivamente este criterio no asegura contribuir sustancialmente a la sostenibilidad\"))","v":"Por definir"}]
[{"$f":"IF(OR(D104=\"Seleccione\",D106=\"Seleccione\",D105=\"Seleccione\"),\"Por definir\",IF(D104=\"Sí\",\"La actividad sí contribuye sustancialmente a la sostenibilidad\",IF(D106=\"Sí\",\"La actividad no genera contribución sustancial\",IF(D105=\"Sí\",\"La actividad sí contribuye sustancialmente a la sostenibilidad\", \"La actividad no genera contribución sustancial\"))))","v":"Por definir"}]
[]
["485311. Transporte de pasajeros en taxis de sitio"]
["¿Se trata de vehículos de cero emisiones? (i.e. eléctricos, hidrógeno)",null,null,"Seleccione",{"$f":"IF(D110=\"Seleccione\",\"Por definir\",IF(D110=\"Sí\",\"Es directamente elegible como actividad que contribuye sustancialmente a la sostenibilidad\",\"Evalúa las demás preguntas\"))","v":"Por definir"},"Al menos una condición debe cumplirse para que la actividad contribuya sustancialmente a la sostenibilidad"]
["¿Se trata de una flota de vehículos híbridos convencionales o híbridos conectables?",null,null,"Seleccione",{"$f":"IF(D111=\"Seleccione\",\"Por definir\",IF(D111=\"Sí\",\"La actividad es directamente elegible como actividad que contribuye sustancialmente a la sostenibilidad, sin embargo este criterio solo es válido hasta 2025 en el caso convencional y al 2030 para conectables\",\"El proyecto no genera contribución sustancial\"))","v":"Por definir"}]
["¿Se trata de vehículos híbridos que consumen diésel?",null,null,"Seleccione",{"$f":"IF(D112=\"Seleccione\",\"Por definir\",IF(D112=\"Sí\",\"Cumplir exclusivamente este criterio no asegura contribuir sustancialmente a la sostenibilidad\",\"Cumplir exclusivamente este criterio no asegura contribuir sustancialmente a la sostenibilidad\"))","v":"Por definir"}]
[{"$f":"IF(OR(D110=\"Seleccione\",D112=\"Seleccione\",D111=\"Seleccione\"),\"Por definir\",IF(D110=\"Sí\",\"La actividad sí contribuye sustancialmente a la sostenibilidad\",IF(D112=\"Sí\",\"La actividad no genera contribución sustancial\",IF(D111=\"Sí\",\"La actividad sí contribuye sustancialmente a la sostenibilidad\", \"La actividad no genera contribución sustancial\"))))","v":"Por definir"}]

{"sheet":"Adaptación-Transporte","index":40,"n_rows":598,"n_cols":8,"rows_kept":598,"cut":false,"hidden":true,"merged":[[1,0,1,6],[3,0,3,6],[14,0,14,1],[15,0,15,5],[16,0,16,4],[17,0,17,4],[18,0,18,4],[19,0,19,6],[21,0,21,1],[6,0,6,5],[8,0,8,2],[10,0,10,3],[11,0,11,3],[5,0,5,4],[38,0,38,4],[39,0,39,5],[41,0,41,2],[43,0,43,3],[16,7,18,8],[23,7,24,8],[33,7,35,8],[24,0,24,4],[22,0,22,5],[23,0,23,4],[33,0,33,4],[34,0,34,4],[35,0,35,4],[36,0,36,6],[25,0,25,6],[27,0,27,1],[28,0,28,5],[29,0,29,4],[31,0,31,1],[32,0,32,5],[52,0,52,6],[54,0,54,1],[55,0,55,5],[56,0,56,4],[56,7,57,8],[57,0,57,4],[44,0,44,3],[47,0,47,1],[48,0,48,5],[49,0,49,4],[49,7,51,8],[50,0,50,4],[51,0,51,4],[65,0,65,5],[66,0,66,4],[66,7,68,8],[67,0,67,4],[68,0,68,4],[58,0,58,6],[60,0,60,1],[61,0,61,5],[62,0,62,4],[64,0,64,1],[89,7,90,8],[90,0,90,4],[80,0,80,1],[81,0,81,5],[82,0,82,4],[82,7,84,8],[83,0,83,4],[84,0,84,4],[69,0,69,6],[72,0,72,5],[74,0,74,2],[76,0,76,3],[77,0,77,3],[91,0,91,6],[93,0,93,1],[94,0,94,5],[95,0,95,4],[97,0,97,1],[85,0,85,6],[87,0,87,1],[88,0,88,5],[89,0,89,4],[102,0,102,6],[105,0,105,5],[107,0,107,2],[109,0,109,3],[110,0,110,3],[98,0,98,5],[99,0,99,4],[99,7,101,8],[100,0,100,4],[101,0,101,4],[118,0,118,6],[120,0,120,1],[121,0,121,5],[122,0,122,4],[122,7,123,8],[123,0,123,4],[113,0,113,1],[114,0,114,5],[115,0,115,4],[115,7,117,8],[116,0,116,4],[117,0,117,4],[131,0,131,5],[132,0,132,4],[132,7,134,8],[133,0,133,4],[134,0,134,4],[124,0,124,6],[126,0,126,1],[127,0,127,5],[128,0,128,4],[130,0,130,1],[155,7,156,8],[156,0,156,4],[146,0,146,1],[147,0,147,5],[148,0,148,4],[148,7,150,8],[149,0,149,4],[150,0,150,4],[135,0,135,6],[138,0,138,5],[140,0,140,2],[142,0,142,3],[143,0,143,3],[157,0,157,6],[159,0,159,1],[160,0,160,5],[161,0,161,4],[163,0,163,1],[151,0,151,6],[153,0,153,1],[154,0,154,5],[155,0,155,4],[168,0,168,6],[171,0,171,5],[173,0,173,2],[175,0,175,3],[176,0,176,3],[164,0,164,5],[165,0,165,4],[165,7,167,8],[166,0,166,4],[167,0,167,4],[184,0,184,6],[186,0,186,1],[187,0,187,5],[188,0,188,4],[188,7,189,8],[189,0,189,4],[179,0,179,1],[180,0,180,5],[181,0,181,4],[181,7,183,8],[182,0,182,4],[183,0,183,4],[197,0,197,5],[198,0,198,4],[198,7,200,8],[199,0,199,4],[200,0,200,4],[190,0,190,6],[192,0,192,1],[193,0,193,5],[194,0,194,4],[196,0,196,1],[221,7,222,8],[222,0,222,4],[212,0,212,1],[213,0,213,5],[214,0,214,4],[214,7,216,8],[215,0,215,4],[216,0,216,4],[201,0,201,6],[204,0,204,5],[206,0,206,2],[208,0,208,3],[209,0,209,3],[223,0,223,6],[225,0,225,1],[226,0,226,5],[227,0,227,4],[229,0,229,1],[217,0,217,6],[219,0,219,1],[220,0,220,5],[221,0,221,4],[234,0,234,6],[237,0,237,5],[239,0,239,2],[241,0,241,3],[242,0,242,3],[230,0,230,5],[231,0,231,4],[231,7,233,8],[232,0,232,4],[233,0,233,4],[250,0,250,6],[252,0,252,1],[253,0,253,5],[254,0,254,4],[254,7,255,8],[255,0,255,4],[245,0,245,1],[246,0,246,5],[247,0,247,4],[247,7,249,8],[248,0,248,4],[249,0,249,4],[263,0,263,5],[264,0,264,4],[264,7,266,8],[265,0,265,4],[266,0,266,4],[256,0,256,6],[258,0,258,1],[259,0,259,5],[260,0,260,4],[262,0,262,1],[287,7,288,8],[288,0,288,4],[278,0,278,1],[279,0,279,5],[280,0,280,4],[280,7,282,8],[281,0,281,4],[282,0,282,4],[267,0,267,6],[270,0,270,5],[272,0,272,2],[274,0,274,3],[275,0,275,3],[289,0,289,6],[291,0,291,1],[292,0,292,5],[293,0,293,4],[295,0,295,1],[283,0,283,6],[285,0,285,1],[286,0,286,5],[287,0,287,4],[300,0,300,6],[303,0,303,5],[305,0,305,2],[307,0,307,3],[308,0,308,3],[296,0,296,5],[297,0,297,4],[297,7,299,8],[298,0,298,4],[299,0,299,4],[316,0,316,6],[318,0,318,1],[319,0,319,5],[320,0,320,4],[320,7,321,8],[321,0,321,4],[311,0,311,1],[312,0,312,5],[313,0,313,4],[313,7,315,8],[314,0,314,4],[315,0,315,4],[329,0,329,5],[330,0,330,4],[330,7,332,8],[331,0,331,4],[332,0,332,4],[322,0,322,6],[324,0,324,1],[325,0,325,5],[326,0,326,4],[328,0,328,1],[353,7,354,8],[354,0,354,4],[344,0,344,1],[345,0,345,5],[346,0,346,4],[346,7,348,8],[347,0,347,4],[348,0,348,4],[333,0,333,6],[336,0,336,5],[338,0,338,2],[340,0,340,3],[341,0,341,3],[355,0,355,6],[357,0,357,1],[358,0,358,5],[359,0,359,4],[361,0,361,1],[349,0,349,6],[351,0,351,1],[352,0,352,5],[353,0,353,4],[366,0,366,6],[369,0,369,5],[371,0,371,2],[373,0,373,3],[374,0,374,3],[362,0,362,5],[363,0,363,4],[363,7,365,8],[364,0,364,4],[365,0,365,4],[382,0,382,6],[384,0,384,1],[385,0,385,5],[386,0,386,4],[386,7,387,8],[387,0,387,4],[377,0,377,1],[378,0,378,5],[379,0,379,4],[379,7,381,8],[380,0,380,4],[381,0,381,4],[395,0,395,5],[396,0,396,4],[396,7,398,8],[397,0,397,4],[398,0,398,4],[388,0,388,6],[390,0,390,1],[391,0,391,5],[392,0,392,4],[394,0,394,1],[419,7,420,8],[420,0,420,4],[410,0,410,1],[411,0,411,5],[412,0,412,4],[412,7,414,8],[413,0,413,4],[414,0,414,4],[399,0,399,6],[402,0,402,5],[404,0,404,2],[406,0,406,3],[407,0,407,3],[421,0,421,6],[423,0,423,1],[424,0,424,5],[425,0,425,4],[427,0,427,1],[415,0,415,6],[417,0,417,1],[418,0,418,5],[419,0,419,4],[432,0,432,6],[435,0,435,5],[437,0,437,2],[439,0,439,3],[440,0,440,3],[428,0,428,5],[429,0,429,4],[429,7,431,8],[430,0,430,4],[431,0,431,4],[448,0,448,6],[450,0,450,1],[451,0,451,5],[452,0,452,4],[452,7,453,8],[453,0,453,4],[443,0,443,1],[444,0,444,5],[445,0,445,4],[445,7,447,8],[446,0,446,4],[447,0,447,4],[461,0,461,5],[462,0,462,4],[462,7,464,8],[463,0,463,4],[464,0,464,4],[454,0,454,6],[456,0,456,1],[457,0,457,5],[458,0,458,4],[460,0,460,1],[485,7,486,8],[486,0,486,4],[476,0,476,1],[477,0,477,5],[478,0,478,4],[478,7,480,8],[479,0,479,4],[480,0,480,4],[465,0,465,6],[468,0,468,5],[470,0,470,2],[472,0,472,3],[473,0,473,3],[487,0,487,6],[489,0,489,1],[490,0,490,5],[491,0,491,4],[493,0,493,1],[481,0,481,6],[483,0,483,1],[484,0,484,5],[485,0,485,4],[498,0,498,6],[501,0,501,5],[503,0,503,2],[505,0,505,3],[506,0,506,3],[494,0,494,5],[495,0,495,4],[495,7,497,8],[496,0,496,4],[497,0,497,4],[514,0,514,6],[516,0,516,1],[517,0,517,5],[518,0,518,4],[518,7,519,8],[519,0,519,4],[509,0,509,1],[510,0,510,5],[511,0,511,4],[511,7,513,8],[512,0,512,4],[513,0,513,4],[527,0,527,5],[528,0,528,4],[528,7,530,8],[529,0,529,4],[530,0,530,4],[520,0,520,6],[522,0,522,1],[523,0,523,5],[524,0,524,4],[526,0,526,1],[551,7,552,8],[552,0,552,4],[542,0,542,1],[543,0,543,5],[544,0,544,4],[544,7,546,8],[545,0,545,4],[546,0,546,4],[531,0,531,6],[534,0,534,5],[536,0,536,2],[538,0,538,3],[539,0,539,3],[553,0,553,6],[555,0,555,1],[556,0,556,5],[557,0,557,4],[559,0,559,1],[547,0,547,6],[549,0,549,1],[550,0,550,5],[551,0,551,4],[564,0,564,6],[567,0,567,5],[569,0,569,2],[571,0,571,3],[572,0,572,3],[560,0,560,5],[561,0,561,4],[561,7,563,8],[562,0,562,4],[563,0,563,4],[580,0,580,6],[582,0,582,1],[583,0,583,5],[584,0,584,4],[584,7,585,8],[585,0,585,4],[575,0,575,1],[576,0,576,5],[577,0,577,4],[577,7,579,8],[578,0,578,4],[579,0,579,4],[597,0,597,6],[593,0,593,5],[594,0,594,4],[594,7,596,8],[595,0,595,4],[596,0,596,4],[586,0,586,6],[588,0,588,1],[589,0,589,5],[590,0,590,4],[592,0,592,1]]}
[]
["Adaptación al cambio climático de actividades del sector transporte"]
[]
["La Taxonomía Sostenible de México reconoce que el país está expuesto a riesgos climáticos y ambientales heterogéneos no lineales que tienen múltiples canales de transmisión y, por ende, que el cambio climático afecta en distinta medida a todos los sectores de la economía. En este sentido, a través de la Taxonomía se busca que las actividades económicas contribuyan sustancialmente, no sólo a la mitigación, sino también a la adaptación del cambio climático. "]
[]
["482110. Transporte por ferrocarril (transporte de pasajeros)"]
["Responde las siguientes preguntas seleccionando una respuesta de la lista"]
[]
["1. La actividad que estás evaluando es una actividad adaptada o una actividad que facilita la adaptación?",null,null,"Actividad que facilita la adaptación"]
[]
["¿Qué es una actividad adaptada?\nUna actividad económica se adapta a los riesgos climáticos físicos materiales, si integra medidas y/o soluciones para reducirlos, mientras garantiza que la actividad económica pueda funcionar bien en un clima cambiante. Estas actividades de adaptación se desarrollan a partir de la evaluación de riesgos actuales y futuros, ya sean climáticos, crónicos y/o agudos, así como la escala temporal y geográfica de la actividad económica."]
["¿Qué es una actividad que facilita la adaptación? \nUna actividad económica posibilita la adaptación si reduce el riesgo climático físico material y la vulnerabilidad en otras actividades económicas, comunidades, ecosistemas o ciudades, y/o aborda los obstáculos sistémicos a la adaptación. Esto es posible a través del uso de la tecnología y la creación de un producto o servicio especializado."]
[]
[]
["A1. Reducción de los riesgos climáticos físicos materiales."]
["La actividad económica debe reducir todos los riesgos climáticos físicos materiales para las actividades evaluadas, en la medida de lo posible y sobre la base del mejor esfuerzo. Selecciona las respuestas en las listas desplegables"]
["¿La actividad económica integra medidas destinadas a reducir, en la medida de lo posible y sobre la base del mejor esfuerzo, los riesgos climáticos físicos materiales para esa actividad, que han sido identificados mediante una evaluación de riesgos?",null,null,null,null,"Sí",{"$f":"IF(F17=\"Seleccione\",\"Por definir\",IF(F17=\"Sí\",\"El primer criterio se cumple satisfactoriamente\",\"Al no cumplir con este criterio, no es posible generar contribución sustancial\"))","v":"El primer criterio se cumple satisfactoriamente"},"Las tres condiciones deben cumplirse para argumentar que la actividad tiene contribución sustancial"]
["¿Esta evaluación considera tanto la variabilidad meteorológica actual, como el cambio climático futuro, incluidos los escenarios climáticos, así como la incertidumbre?",null,null,null,null,"Sí",{"$f":"IF(F18=\"Seleccione\",\"Por definir\",IF(F18=\"Sí\",\"El segundo criterio se cumple satisfactoriamente\",\"Al no cumplir con este criterio, no es posible generar contribución sustancial\"))","v":"El segundo criterio se cumple satisfactoriamente"}]
["¿Igualmente la evaluación se basa en un sólido análisis de los datos e información disponible sobre los distintos escenarios climáticos, y es coherente con la duración prevista de la actividad?",null,null,null,null,"Sí",{"$f":"IF(F19=\"Seleccione\",\"Por definir\",IF(F19=\"Sí\",\"El tercer criterio se cumple satisfactoriamente\",\"Al no cumplir con este criterio, no es posible generar contribución sustancial\"))","v":"El tercer criterio se cumple satisfactoriamente"}]
[{"$f":"IF(OR(F17=\"Seleccione\",F18=\"Seleccione\",F19=\"Seleccione\"),\"Por definir\",IF(OR(F17=\"No\",F18=\"No\",F19=\"No\"),\"La actividad no genera contribución sustancial\", \"La actividad sí contribuye sustancialmente a la sostenibilidad\"))","v":"La actividad sí contribuye sustancialmente a la sostenibilidad"}]
[]
["A2. Apoyo a la adaptación del sistema. "]
["La actividad económica y sus medidas de adaptación no afectan negativamente los esfuerzos de adaptación de otras personas, la naturaleza y los bienes. Selecciona las respuestas en las listas desplegables"]
["¿La actividad económica y sus medidas de adaptación no aumentan los riesgos de un impacto climático adverso sobre otras personas, la naturaleza y los bienes?",null,null,null,null,"Sí",{"$f":"IF(F24=\"Seleccione\",\"Por definir\",IF(F24=\"Sí\",\"El primer criterio se cumple satisfactoriamente\",\"Al no cumplir con este criterio, no es posible generar contribución sustancial\"))","v":"El primer criterio se cumple satisfactoriamente"},"Las dos condiciones deben cumplirse para argumentar que la actividad tiene contribución sustancial"]
["¿La actividad económica y sus medidas de adaptación son consistentes con los esfuerzos de adaptación a nivel sectorial, regional y/o nacional?",null,null,null,null,"Sí",{"$f":"IF(F25=\"Seleccione\",\"Por definir\",IF(F25=\"Sí\",\"El segundo criterio se cumple satisfactoriamente\",\"Al no cumplir con este criterio, no es posible generar contribución sustancial\"))","v":"El segundo criterio se cumple satisfactoriamente"}]
[{"$f":"IF(OR(F24=\"Seleccione\",F25=\"Seleccione\"),\"Por definir\",IF(OR(F24=\"No\",F25=\"No\"),\"La actividad no genera contribución sustancial\", \"La actividad sí contribuye sustancialmente a la sostenibilidad\"))","v":"La actividad sí contribuye sustancialmente a la sostenibilidad"}]
[]
["A3. Monitoreo de los resultados de adaptación."]
["En el contexto de la actividad evaluada, la reducción de los riesgos físicos se puede medir. Selecciona las respuestas en las listas desplegables"]
[" Los resultados de adaptación pueden ser monitoreados y medidos con base en indicadores. Considerando que los riesgos físicos evolucionan con el tiempo, el análisis de riesgos físicos debe llevarse a cabo con la frecuencia adecuada.  ¿Esto se evalúa dentro de la operación financiera y/o proyecto?",null,null,null,null,"Sí",{"$f":"IF(F30=\"Seleccione\",\"Por definir\",IF(F30=\"Sí\",\"La actividad sí contribuye sustancialmente a la sostenbilidad\",\"El proyecto no genera contribución sustancial\"))","v":"La actividad sí contribuye sustancialmente a la sostenbilidad"}]
[]
["B1. Apoyar a la adaptación de otras actividades económicas."]
["La actividad económica reduce el riesgo climático físico material en otras actividades económicas y/o aborda los obstáculos sistémicos para la adaptación. Las actividades que permiten la adaptación incluyen, pero no se limitan a, actividades que promueven una tecnología, un producto, una práctica, un proceso de gobernanza o usos innovadores de tecnologías, productos o prácticas existentes (incluidos los relacionados con las infraestructuras naturales). Además, eliminan las barreras de información, financieras, tecnológicas y de capacidad para la adaptación de otros. Selecciona las respuestas en las listas desplegables"]
["¿Se realiza una evaluación de los riesgos resultantes, con base en datos sólidos, tanto de la variabilidad  meteorológica actual como del cambio climático futuro, incluidos los escenarios climáticos, así como  la incertidumbre, que la actividad económica contribuirá a abordar?",null,null,null,null,"Sí",{"$f":"IF(F34=\"Seleccione\",\"Por definir\",IF(F34=\"Sí\",\"El primer criterio se cumple satisfactoriamente\",\"Al no cumplir con este criterio, no es posible generar contribución sustancial\"))","v":"El primer criterio se cumple satisfactoriamente"},"Las tres condiciones en caso de que apliquen deben cumplirse para argumentar que la actividad tiene contribución sustancial. La tercera opción podría no aplicar. En este caso se evaluaran las primeras dos cuestiones"]
["¿Se realiza una evaluación de la eficacia de la contribución de la actividad económica a la reducción de los riesgos físicos, teniendo en cuenta la escala de exposición y la vulnerabilidad a los mismos?",null,null,null,null,"Sí",{"$f":"IF(F35=\"Seleccione\",\"Por definir\",IF(F35=\"Sí\",\"El segundo criterio se cumple satisfactoriamente\",\"Al no cumplir con este criterio, no es posible generar contribución sustancial\"))","v":"El segundo criterio se cumple satisfactoriamente"}]
["En el caso de una infraestructura vinculada a una actividad que permita la adaptación, dicha infraestructura debe cumplir también los criterios de selección A1, A2 y A3. ¿Esto se cumple en el contexto del proyecto?",null,null,null,null,"Sí",{"$f":"IF(F36=\"Seleccione\",\"Por definir\",IF(F36=\"Sí\",\"El tercer criterio se cumple satisfactoriamente\",IF(F36=\"No aplica\",\"No aplica\",\"El proyecto no genera contribución sustancial\")))","v":"El tercer criterio se cumple satisfactoriamente"}]
[{"$f":"IF(OR(F34=\"Seleccione\",F35=\"Seleccione\",F36=\"Seleccione\"),\"Por definir\",IF(OR(F34=\"No\",F35=\"No\",F36=\"No\"),\"La actividad no genera contribución sustancial\",\"La actividad sí contribuye sustancialmente a la sostenibilidad\"))","v":"La actividad sí contribuye sustancialmente a la sostenibilidad"}]
[]
["482110. Transporte por ferrocarril (transporte de mercancías)"]
["Responde las siguientes preguntas seleccionando una respuesta de la lista"]
[]
["1. La actividad que estás evaluando es una actividad adaptada o una actividad que facilita la adaptación?",null,null,"Actividad que facilita la adaptación e incluye desarrollo de infraestructura"]
[]
["¿Qué es una actividad adaptada?\nUna actividad económica se adapta a los riesgos climáticos físicos materiales, si integra medidas y/o soluciones para reducirlos, mientras garantiza que la actividad económica pueda funcionar bien en un clima cambiante. Estas actividades de adaptación se desarrollan a partir de la evaluación de riesgos actuales y futuros, ya sean climáticos, crónicos y/o agudos, así como la escala temporal y geográfica de la actividad económica."]
["¿Qué es una actividad que facilita la adaptación? \nUna actividad económica posibilita la adaptación si reduce el riesgo climático físico material y la vulnerabilidad en otras actividades económicas, comunidades, ecosistemas o ciudades, y/o aborda los obstáculos sistémicos a la adaptación. Esto es posible a través del uso de la tecnología y la creación de un producto o servicio especializado."]
[]
[]
["A1. Reducción de los riesgos climáticos físicos materiales."]
["La actividad económica debe reducir todos los riesgos climáticos físicos materiales para las actividades evaluadas, en la medida de lo posible y sobre la base del mejor esfuerzo. Selecciona las respuestas en las listas desplegables"]
["¿La actividad económica integra medidas destinadas a reducir, en la medida de lo posible y sobre la base del mejor esfuerzo, los riesgos climáticos físicos materiales para esa actividad, que han sido identificados mediante una evaluación de riesgos?",null,null,null,null,"Sí",{"$f":"IF(F50=\"Seleccione\",\"Por definir\",IF(F50=\"Sí\",\"El primer criterio se cumple satisfactoriamente\",\"Al no cumplir con este criterio, no es posible generar contribución sustancial\"))","v":"El primer criterio se cumple satisfactoriamente"},"Las tres condiciones deben cumplirse para argumentar que la actividad tiene contribución sustancial"]
["¿Esta evaluación considera tanto la variabilidad meteorológica actual, como el cambio climático futuro, incluidos los escenarios climáticos, así como la incertidumbre?",null,null,null,null,"Sí",{"$f":"IF(F51=\"Seleccione\",\"Por definir\",IF(F51=\"Sí\",\"El segundo criterio se cumple satisfactoriamente\",\"Al no cumplir con este criterio, no es posible generar contribución sustancial\"))","v":"El segundo criterio se cumple satisfactoriamente"}]
["¿Igualmente la evaluación se basa en un sólido análisis de los datos e información disponible sobre los distintos escenarios climáticos, y es coherente con la duración prevista de la actividad?",null,null,null,null,"Sí",{"$f":"IF(F52=\"Seleccione\",\"Por definir\",IF(F52=\"Sí\",\"El tercer criterio se cumple satisfactoriamente\",\"Al no cumplir con este criterio, no es posible generar contribución sustancial\"))","v":"El tercer criterio se cumple satisfactoriamente"}]
[{"$f":"IF(OR(F50=\"Seleccione\",F51=\"Seleccione\",F52=\"Seleccione\"),\"Por definir\",IF(OR(F50=\"No\",F51=\"No\",F52=\"No\"),\"La actividad no genera contribución sustancial\", \"La actividad sí contribuye sustancialmente a la sostenibilidad\"))","v":"La actividad sí contribuye sustancialmente a la sostenibilidad"}]
[]
["A2. Apoyo a la adaptación del sistema. "]
["La actividad económica y sus medidas de adaptación no afectan negativamente los esfuerzos de adaptación de otras personas, la naturaleza y los bienes. Selecciona las respuestas en las listas desplegables"]
["¿La actividad económica y sus medidas de adaptación no aumentan los riesgos de un impacto climático adverso sobre otras personas, la naturaleza y los bienes?",null,null,null,null,"Sí",{"$f":"IF(F57=\"Seleccione\",\"Por definir\",IF(F57=\"Sí\",\"El primer criterio se cumple satisfactoriamente\",\"Al no cumplir con este criterio, no es posible generar contribución sustancial\"))","v":"El primer criterio se cumple satisfactoriamente"},"Las dos condiciones deben cumplirse para argumentar que la actividad tiene contribución sustancial"]
["¿La actividad económica y sus medidas de adaptación son consistentes con los esfuerzos de adaptación a nivel sectorial, regional y/o nacional?",null,null,null,null,"Sí",{"$f":"IF(F58=\"Seleccione\",\"Por definir\",IF(F58=\"Sí\",\"El segundo criterio se cumple satisfactoriamente\",\"Al no cumplir con este criterio, no es posible generar contribución sustancial\"))","v":"El segundo criterio se cumple satisfactoriamente"}]
[{"$f":"IF(OR(F57=\"Seleccione\",F58=\"Seleccione\"),\"Por definir\",IF(OR(F57=\"No\",F58=\"No\"),\"La actividad no genera contribución sustancial\", \"La actividad sí contribuye sustancialmente a la sostenibilidad\"))","v":"La actividad sí contribuye sustancialmente a la sostenibilidad"}]
[]
["A3. Monitoreo de los resultados de adaptación."]
["En el contexto de la actividad evaluada, la reducción de los riesgos físicos se puede medir. Selecciona las respuestas en las listas desplegables"]
[" Los resultados de adaptación pueden ser monitoreados y medidos con base en indicadores. Considerando que los riesgos físicos evolucionan con el tiempo, el análisis de riesgos físicos debe llevarse a cabo con la frecuencia adecuada.  ¿Esto se evalúa dentro de la operación financiera y/o proyecto?",null,null,null,null,"Sí",{"$f":"IF(F63=\"Seleccione\",\"Por definir\",IF(F63=\"Sí\",\"La actividad sí contribuye sustancialmente a la sostenbilidad\",\"El proyecto no genera contribución sustancial\"))","v":"La actividad sí contribuye sustancialmente a la sostenbilidad"}]
[]
["B1. Apoyar a la adaptación de otras actividades económicas."]
["La actividad económica reduce el riesgo climático físico material en otras actividades económicas y/o aborda los obstáculos sistémicos para la adaptación. Las actividades que permiten la adaptación incluyen, pero no se limitan a, actividades que promueven una tecnología, un producto, una práctica, un proceso de gobernanza o usos innovadores de tecnologías, productos o prácticas existentes (incluidos los relacionados con las infraestructuras naturales). Además, eliminan las barreras de información, financieras, tecnológicas y de capacidad para la adaptación de otros. Selecciona las respuestas en las listas desplegables"]
["¿Se realiza una evaluación de los riesgos resultantes, con base en datos sólidos, tanto de la variabilidad  meteorológica actual como del cambio climático futuro, incluidos los escenarios climáticos, así como  la incertidumbre, que la actividad económica contribuirá a abordar?",null,null,null,null,"Sí",{"$f":"IF(F67=\"Seleccione\",\"Por definir\",IF(F67=\"Sí\",\"El primer criterio se cumple satisfactoriamente\",\"Al no cumplir con este criterio, no es posible generar contribución sustancial\"))","v":"El primer criterio se cumple satisfactoriamente"},"Las tres condiciones en caso de que apliquen deben cumplirse para argumentar que la actividad tiene contribución sustancial. La tercera opción podría no aplicar. En este caso se evaluaran las primeras dos cuestiones"]
["¿Se realiza una evaluación de la eficacia de la contribución de la actividad económica a la reducción de los riesgos físicos, teniendo en cuenta la escala de exposición y la vulnerabilidad a los mismos?",null,null,null,null,"Sí",{"$f":"IF(F68=\"Seleccione\",\"Por definir\",IF(F68=\"Sí\",\"El segundo criterio se cumple satisfactoriamente\",\"Al no cumplir con este criterio, no es posible generar contribución sustancial\"))","v":"El segundo criterio se cumple satisfactoriamente"}]
["En el caso de una infraestructura vinculada a una actividad que permita la adaptación, dicha infraestructura debe cumplir también los criterios de selección A1, A2 y A3. ¿Esto se cumple en el contexto del proyecto?",null,null,null,null,"Sí",{"$f":"IF(F69=\"Seleccione\",\"Por definir\",IF(F69=\"Sí\",\"El tercer criterio se cumple satisfactoriamente\",IF(F69=\"No aplica\",\"No aplica\",\"El proyecto no genera contribución sustancial\")))","v":"El tercer criterio se cumple satisfactoriamente"}]
[{"$f":"IF(OR(F67=\"Seleccione\",F68=\"Seleccione\",F69=\"Seleccione\"),\"Por definir\",IF(OR(F67=\"No\",F68=\"No\",F69=\"No\"),\"La actividad no genera contribución sustancial\",\"La actividad sí contribuye sustancialmente a la sostenibilidad\"))","v":"La actividad sí contribuye sustancialmente a la sostenibilidad"}]
[]
["483210. Transporte por aguas interiores (transporte de mercancías)"]
["Responde las siguientes preguntas seleccionando una respuesta de la lista"]
[]
["1. La actividad que estás evaluando es una actividad adaptada o una actividad que facilita la adaptación?",null,null,"Actividad que facilita la adaptación e incluye desarrollo de infraestructura"]
[]
["¿Qué es una actividad adaptada?\nUna actividad económica se adapta a los riesgos climáticos físicos materiales, si integra medidas y/o soluciones para reducirlos, mientras garantiza que la actividad económica pueda funcionar bien en un clima cambiante. Estas actividades de adaptación se desarrollan a partir de la evaluación de riesgos actuales y futuros, ya sean climáticos, crónicos y/o agudos, así como la escala temporal y geográfica de la actividad económica."]
["¿Qué es una actividad que facilita la adaptación? \nUna actividad económica posibilita la adaptación si reduce el riesgo climático físico material y la vulnerabilidad en otras actividades económicas, comunidades, ecosistemas o ciudades, y/o aborda los obstáculos sistémicos a la adaptación. Esto es posible a través del uso de la tecnología y la creación de un producto o servicio especializado."]
[]
[]
["A1. Reducción de los riesgos climáticos físicos materiales."]
["La actividad económica debe reducir todos los riesgos climáticos físicos materiales para las actividades evaluadas, en la medida de lo posible y sobre la base del mejor esfuerzo. Selecciona las respuestas en las listas desplegables"]
["¿La actividad económica integra medidas destinadas a reducir, en la medida de lo posible y sobre la base del mejor esfuerzo, los riesgos climáticos físicos materiales para esa actividad, que han sido identificados mediante una evaluación de riesgos?",null,null,null,null,"Sí",{"$f":"IF(F83=\"Seleccione\",\"Por definir\",IF(F83=\"Sí\",\"El primer criterio se cumple satisfactoriamente\",\"Al no cumplir con este criterio, no es posible generar contribución sustancial\"))","v":"El primer criterio se cumple satisfactoriamente"},"Las tres condiciones deben cumplirse para argumentar que la actividad tiene contribución sustancial"]
["¿Esta evaluación considera tanto la variabilidad meteorológica actual, como el cambio climático futuro, incluidos los escenarios climáticos, así como la incertidumbre?",null,null,null,null,"Sí",{"$f":"IF(F84=\"Seleccione\",\"Por definir\",IF(F84=\"Sí\",\"El segundo criterio se cumple satisfactoriamente\",\"Al no cumplir con este criterio, no es posible generar contribución sustancial\"))","v":"El segundo criterio se cumple satisfactoriamente"}]
["¿Igualmente la evaluación se basa en un sólido análisis de los datos e información disponible sobre los distintos escenarios climáticos, y es coherente con la duración prevista de la actividad?",null,null,null,null,"Sí",{"$f":"IF(F85=\"Seleccione\",\"Por definir\",IF(F85=\"Sí\",\"El tercer criterio se cumple satisfactoriamente\",\"Al no cumplir con este criterio, no es posible generar contribución sustancial\"))","v":"El tercer criterio se cumple satisfactoriamente"}]
[{"$f":"IF(OR(F83=\"Seleccione\",F84=\"Seleccione\",F85=\"Seleccione\"),\"Por definir\",IF(OR(F83=\"No\",F84=\"No\",F85=\"No\"),\"La actividad no genera contribución sustancial\", \"La actividad sí contribuye sustancialmente a la sostenibilidad\"))","v":"La actividad sí contribuye sustancialmente a la sostenibilidad"}]
[]
["A2. Apoyo a la adaptación del sistema. "]
["La actividad económica y sus medidas de adaptación no afectan negativamente los esfuerzos de adaptación de otras personas, la naturaleza y los bienes. Selecciona las respuestas en las listas desplegables"]
["¿La actividad económica y sus medidas de adaptación no aumentan los riesgos de un impacto climático adverso sobre otras personas, la naturaleza y los bienes?",null,null,null,null,"Sí",{"$f":"IF(F90=\"Seleccione\",\"Por definir\",IF(F90=\"Sí\",\"El primer criterio se cumple satisfactoriamente\",\"Al no cumplir con este criterio, no es posible generar contribución sustancial\"))","v":"El primer criterio se cumple satisfactoriamente"},"Las dos condiciones deben cumplirse para argumentar que la actividad tiene contribución sustancial"]
["¿La actividad económica y sus medidas de adaptación son consistentes con los esfuerzos de adaptación a nivel sectorial, regional y/o nacional?",null,null,null,null,"Sí",{"$f":"IF(F91=\"Seleccione\",\"Por definir\",IF(F91=\"Sí\",\"El segundo criterio se cumple satisfactoriamente\",\"Al no cumplir con este criterio, no es posible generar contribución sustancial\"))","v":"El segundo criterio se cumple satisfactoriamente"}]
[{"$f":"IF(OR(F90=\"Seleccione\",F91=\"Seleccione\"),\"Por definir\",IF(OR(F90=\"No\",F91=\"No\"),\"La actividad no genera contribución sustancial\", \"La actividad sí contribuye sustancialmente a la sostenibilidad\"))","v":"La actividad sí contribuye sustancialmente a la sostenibilidad"}]
[]
["A3. Monitoreo de los resultados de adaptación."]
["En el contexto de la actividad evaluada, la reducción de los riesgos físicos se puede medir. Selecciona las respuestas en las listas desplegables"]
[" Los resultados de adaptación pueden ser monitoreados y medidos con base en indicadores. Considerando que los riesgos físicos evolucionan con el tiempo, el análisis de riesgos físicos debe llevarse a cabo con la frecuencia adecuada.  ¿Esto se evalúa dentro de la operación financiera y/o proyecto?",null,null,null,null,"Sí",{"$f":"IF(F96=\"Seleccione\",\"Por definir\",IF(F96=\"Sí\",\"La actividad sí contribuye sustancialmente a la sostenbilidad\",\"El proyecto no genera contribución sustancial\"))","v":"La actividad sí contribuye sustancialmente a la sostenbilidad"}]
[]
["B1. Apoyar a la adaptación de otras actividades económicas."]
["La actividad económica reduce el riesgo climático físico material en otras actividades económicas y/o aborda los obstáculos sistémicos para la adaptación. Las actividades que permiten la adaptación incluyen, pero no se limitan a, actividades que promueven una tecnología, un producto, una práctica, un proceso de gobernanza o usos innovadores de tecnologías, productos o prácticas existentes (incluidos los relacionados con las infraestructuras naturales). Además, eliminan las barreras de información, financieras, tecnológicas y de capacidad para la adaptación de otros. Selecciona las respuestas en las listas desplegables"]
["¿Se realiza una evaluación de los riesgos resultantes, con base en datos sólidos, tanto de la variabilidad  meteorológica actual como del cambio climático futuro, incluidos los escenarios climáticos, así como  la incertidumbre, que la actividad económica contribuirá a abordar?",null,null,null,null,"Sí",{"$f":"IF(F100=\"Seleccione\",\"Por definir\",IF(F100=\"Sí\",\"El primer criterio se cumple satisfactoriamente\",\"Al no cumplir con este criterio, no es posible generar contribución sustancial\"))","v":"El primer criterio se cumple satisfactoriamente"},"Las tres condiciones en caso de que apliquen deben cumplirse para argumentar que la actividad tiene contribución sustancial. La tercera opción podría no aplicar. En este caso se evaluaran las primeras dos cuestiones"]
["¿Se realiza una evaluación de la eficacia de la contribución de la actividad económica a la reducción de los riesgos físicos, teniendo en cuenta la escala de exposición y la vulnerabilidad a los mismos?",null,null,null,null,"Sí",{"$f":"IF(F101=\"Seleccione\",\"Por definir\",IF(F101=\"Sí\",\"El segundo criterio se cumple satisfactoriamente\",\"Al no cumplir con este criterio, no es posible generar contribución sustancial\"))","v":"El segundo criterio se cumple satisfactoriamente"}]
["En el caso de una infraestructura vinculada a una actividad que permita la adaptación, dicha infraestructura debe cumplir también los criterios de selección A1, A2 y A3. ¿Esto se cumple en el contexto del proyecto?",null,null,null,null,"Sí",{"$f":"IF(F102=\"Seleccione\",\"Por definir\",IF(F102=\"Sí\",\"El tercer criterio se cumple satisfactoriamente\",IF(F102=\"No aplica\",\"No aplica\",\"El proyecto no genera contribución sustancial\")))","v":"El tercer criterio se cumple satisfactoriamente"}]
[{"$f":"IF(OR(F100=\"Seleccione\",F101=\"Seleccione\",F102=\"Seleccione\"),\"Por definir\",IF(OR(F100=\"No\",F101=\"No\",F102=\"No\"),\"La actividad no genera contribución sustancial\",\"La actividad sí contribuye sustancialmente a la sostenibilidad\"))","v":"La actividad sí contribuye sustancialmente a la sostenibilidad"}]
[]
["483210. Transporte por aguas interiores (transporte de pasajeros)"]
["Responde las siguientes preguntas seleccionando una respuesta de la lista"]
[]
["1. La actividad que estás evaluando es una actividad adaptada o una actividad que facilita la adaptación?",null,null,"Actividad que facilita la adaptación e incluye desarrollo de infraestructura"]
[]
["¿Qué es una actividad adaptada?\nUna actividad económica se adapta a los riesgos climáticos físicos materiales, si integra medidas y/o soluciones para reducirlos, mientras garantiza que la actividad económica pueda funcionar bien en un clima cambiante. Estas actividades de adaptación se desarrollan a partir de la evaluación de riesgos actuales y futuros, ya sean climáticos, crónicos y/o agudos, así como la escala temporal y geográfica de la actividad económica."]
["¿Qué es una actividad que facilita la adaptación? \nUna actividad económica posibilita la adaptación si reduce el riesgo climático físico material y la vulnerabilidad en otras actividades económicas, comunidades, ecosistemas o ciudades, y/o aborda los obstáculos sistémicos a la adaptación. Esto es posible a través del uso de la tecnología y la creación de un producto o servicio especializado."]
[]
[]
["A1. Reducción de los riesgos climáticos físicos materiales."]
["La actividad económica debe reducir todos los riesgos climáticos físicos materiales para las actividades evaluadas, en la medida de lo posible y sobre la base del mejor esfuerzo. Selecciona las respuestas en las listas desplegables"]
["¿La actividad económica integra medidas destinadas a reducir, en la medida de lo posible y sobre la base del mejor esfuerzo, los riesgos climáticos físicos materiales para esa actividad, que han sido identificados mediante una evaluación de riesgos?",null,null,null,null,"Sí",{"$f":"IF(F116=\"Seleccione\",\"Por definir\",IF(F116=\"Sí\",\"El primer criterio se cumple satisfactoriamente\",\"Al no cumplir con este criterio, no es posible generar contribución sustancial\"))","v":"El primer criterio se cumple satisfactoriamente"},"Las tres condiciones deben cumplirse para argumentar que la actividad tiene contribución sustancial"]
["¿Esta evaluación considera tanto la variabilidad meteorológica actual, como el cambio climático futuro, incluidos los escenarios climáticos, así como la incertidumbre?",null,null,null,null,"Sí",{"$f":"IF(F117=\"Seleccione\",\"Por definir\",IF(F117=\"Sí\",\"El segundo criterio se cumple satisfactoriamente\",\"Al no cumplir con este criterio, no es posible generar contribución sustancial\"))","v":"El segundo criterio se cumple satisfactoriamente"}]
["¿Igualmente la evaluación se basa en un sólido análisis de los datos e información disponible sobre los distintos escenarios climáticos, y es coherente con la duración prevista de la actividad?",null,null,null,null,"Sí",{"$f":"IF(F118=\"Seleccione\",\"Por definir\",IF(F118=\"Sí\",\"El tercer criterio se cumple satisfactoriamente\",\"Al no cumplir con este criterio, no es posible generar contribución sustancial\"))","v":"El tercer criterio se cumple satisfactoriamente"}]
[{"$f":"IF(OR(F116=\"Seleccione\",F117=\"Seleccione\",F118=\"Seleccione\"),\"Por definir\",IF(OR(F116=\"No\",F117=\"No\",F118=\"No\"),\"La actividad no genera contribución sustancial\", \"La actividad sí contribuye sustancialmente a la sostenibilidad\"))","v":"La actividad sí contribuye sustancialmente a la sostenibilidad"}]
[]
["A2. Apoyo a la adaptación del sistema. "]
["La actividad económica y sus medidas de adaptación no afectan negativamente los esfuerzos de adaptación de otras personas, la naturaleza y los bienes. Selecciona las respuestas en las listas desplegables"]
["¿La actividad económica y sus medidas de adaptación no aumentan los riesgos de un impacto climático adverso sobre otras personas, la naturaleza y los bienes?",null,null,null,null,"Sí",{"$f":"IF(F123=\"Seleccione\",\"Por definir\",IF(F123=\"Sí\",\"El primer criterio se cumple satisfactoriamente\",\"Al no cumplir con este criterio, no es posible generar contribución sustancial\"))","v":"El primer criterio se cumple satisfactoriamente"},"Las dos condiciones deben cumplirse para argumentar que la actividad tiene contribución sustancial"]
["¿La actividad económica y sus medidas de adaptación son consistentes con los esfuerzos de adaptación a nivel sectorial, regional y/o nacional?",null,null,null,null,"Sí",{"$f":"IF(F124=\"Seleccione\",\"Por definir\",IF(F124=\"Sí\",\"El segundo criterio se cumple satisfactoriamente\",\"Al no cumplir con este criterio, no es posible generar contribución sustancial\"))","v":"El segundo criterio se cumple satisfactoriamente"}]
[{"$f":"IF(OR(F123=\"Seleccione\",F124=\"Seleccione\"),\"Por definir\",IF(OR(F123=\"No\",F124=\"No\"),\"La actividad no genera contribución sustancial\", \"La actividad sí contribuye sustancialmente a la sostenibilidad\"))","v":"La actividad sí contribuye sustancialmente a la sostenibilidad"}]
[]
["A3. Monitoreo de los resultados de adaptación."]
["En el contexto de la actividad evaluada, la reducción de los riesgos físicos se puede medir. Selecciona las respuestas en las listas desplegables"]
[" Los resultados de adaptación pueden ser monitoreados y medidos con base en indicadores. Considerando que los riesgos físicos evolucionan con el tiempo, el análisis de riesgos físicos debe llevarse a cabo con la frecuencia adecuada.  ¿Esto se evalúa dentro de la operación financiera y/o proyecto?",null,null,null,null,"Sí",{"$f":"IF(F129=\"Seleccione\",\"Por definir\",IF(F129=\"Sí\",\"La actividad sí contribuye sustancialmente a la sostenbilidad\",\"El proyecto no genera contribución sustancial\"))","v":"La actividad sí contribuye sustancialmente a la sostenbilidad"}]
[]
["B1. Apoyar a la adaptación de otras actividades económicas."]
["La actividad económica reduce el riesgo climático físico material en otras actividades económicas y/o aborda los obstáculos sistémicos para la adaptación. Las actividades que permiten la adaptación incluyen, pero no se limitan a, actividades que promueven una tecnología, un producto, una práctica, un proceso de gobernanza o usos innovadores de tecnologías, productos o prácticas existentes (incluidos los relacionados con las infraestructuras naturales). Además, eliminan las barreras de información, financieras, tecnológicas y de capacidad para la adaptación de otros. Selecciona las respuestas en las listas desplegables"]
["¿Se realiza una evaluación de los riesgos resultantes, con base en datos sólidos, tanto de la variabilidad  meteorológica actual como del cambio climático futuro, incluidos los escenarios climáticos, así como  la incertidumbre, que la actividad económica contribuirá a abordar?",null,null,null,null,"Sí",{"$f":"IF(F133=\"Seleccione\",\"Por definir\",IF(F133=\"Sí\",\"El primer criterio se cumple satisfactoriamente\",\"Al no cumplir con este criterio, no es posible generar contribución sustancial\"))","v":"El primer criterio se cumple satisfactoriamente"},"Las tres condiciones en caso de que apliquen deben cumplirse para argumentar que la actividad tiene contribución sustancial. La tercera opción podría no aplicar. En este caso se evaluaran las primeras dos cuestiones"]
["¿Se realiza una evaluación de la eficacia de la contribución de la actividad económica a la reducción de los riesgos físicos, teniendo en cuenta la escala de exposición y la vulnerabilidad a los mismos?",null,null,null,null,"Sí",{"$f":"IF(F134=\"Seleccione\",\"Por definir\",IF(F134=\"Sí\",\"El segundo criterio se cumple satisfactoriamente\",\"Al no cumplir con este criterio, no es posible generar contribución sustancial\"))","v":"El segundo criterio se cumple satisfactoriamente"}]
["En el caso de una infraestructura vinculada a una actividad que permita la adaptación, dicha infraestructura debe cumplir también los criterios de selección A1, A2 y A3. ¿Esto se cumple en el contexto del proyecto?",null,null,null,null,"Sí",{"$f":"IF(F135=\"Seleccione\",\"Por definir\",IF(F135=\"Sí\",\"El tercer criterio se cumple satisfactoriamente\",IF(F135=\"No aplica\",\"No aplica\",\"El proyecto no genera contribución sustancial\")))","v":"El tercer criterio se cumple satisfactoriamente"}]
[{"$f":"IF(OR(F133=\"Seleccione\",F134=\"Seleccione\",F135=\"Seleccione\"),\"Por definir\",IF(OR(F133=\"No\",F134=\"No\",F135=\"No\"),\"La actividad no genera contribución sustancial\",\"La actividad sí contribuye sustancialmente a la sostenibilidad\"))","v":"La actividad sí contribuye sustancialmente a la sostenibilidad"}]
[]
["484231. Autotransporte foráneo de materiales para la construcción"]
["Responde las siguientes preguntas seleccionando una respuesta de la lista"]
[]
["1. La actividad que estás evaluando es una actividad adaptada o una actividad que facilita la adaptación?",null,null,"Actividad que facilita la adaptación e incluye desarrollo de infraestructura"]
[]
["¿Qué es una actividad adaptada?\nUna actividad económica se adapta a los riesgos climáticos físicos materiales, si integra medidas y/o soluciones para reducirlos, mientras garantiza que la actividad económica pueda funcionar bien en un clima cambiante. Estas actividades de adaptación se desarrollan a partir de la evaluación de riesgos actuales y futuros, ya sean climáticos, crónicos y/o agudos, así como la escala temporal y geográfica de la actividad económica."]
["¿Qué es una actividad que facilita la adaptación? \nUna actividad económica posibilita la adaptación si reduce el riesgo climático físico material y la vulnerabilidad en otras actividades económicas, comunidades, ecosistemas o ciudades, y/o aborda los obstáculos sistémicos a la adaptación. Esto es posible a través del uso de la tecnología y la creación de un producto o servicio especializado."]
[]
[]
["A1. Reducción de los riesgos climáticos físicos materiales."]
["La actividad económica debe reducir todos los riesgos climáticos físicos materiales para las actividades evaluadas, en la medida de lo posible y sobre la base del mejor esfuerzo. Selecciona las respuestas en las listas desplegables"]
["¿La actividad económica integra medidas destinadas a reducir, en la medida de lo posible y sobre la base del mejor esfuerzo, los riesgos climáticos físicos materiales para esa actividad, que han sido identificados mediante una evaluación de riesgos?",null,null,null,null,"Sí",{"$f":"IF(F149=\"Seleccione\",\"Por definir\",IF(F149=\"Sí\",\"El primer criterio se cumple satisfactoriamente\",\"Al no cumplir con este criterio, no es posible generar contribución sustancial\"))","v":"El primer criterio se cumple satisfactoriamente"},"Las tres condiciones deben cumplirse para argumentar que la actividad tiene contribución sustancial"]
["¿Esta evaluación considera tanto la variabilidad meteorológica actual, como el cambio climático futuro, incluidos los escenarios climáticos, así como la incertidumbre?",null,null,null,null,"Sí",{"$f":"IF(F150=\"Seleccione\",\"Por definir\",IF(F150=\"Sí\",\"El segundo criterio se cumple satisfactoriamente\",\"Al no cumplir con este criterio, no es posible generar contribución sustancial\"))","v":"El segundo criterio se cumple satisfactoriamente"}]
["¿Igualmente la evaluación se basa en un sólido análisis de los datos e información disponible sobre los distintos escenarios climáticos, y es coherente con la duración prevista de la actividad?",null,null,null,null,"Sí",{"$f":"IF(F151=\"Seleccione\",\"Por definir\",IF(F151=\"Sí\",\"El tercer criterio se cumple satisfactoriamente\",\"Al no cumplir con este criterio, no es posible generar contribución sustancial\"))","v":"El tercer criterio se cumple satisfactoriamente"}]
[{"$f":"IF(OR(F149=\"Seleccione\",F150=\"Seleccione\",F151=\"Seleccione\"),\"Por definir\",IF(OR(F149=\"No\",F150=\"No\",F151=\"No\"),\"La actividad no genera contribución sustancial\", \"La actividad sí contribuye sustancialmente a la sostenibilidad\"))","v":"La actividad sí contribuye sustancialmente a la sostenibilidad"}]
[]
["A2. Apoyo a la adaptación del sistema. "]
["La actividad económica y sus medidas de adaptación no afectan negativamente los esfuerzos de adaptación de otras personas, la naturaleza y los bienes. Selecciona las respuestas en las listas desplegables"]
["¿La actividad económica y sus medidas de adaptación no aumentan los riesgos de un impacto climático adverso sobre otras personas, la naturaleza y los bienes?",null,null,null,null,"Sí",{"$f":"IF(F156=\"Seleccione\",\"Por definir\",IF(F156=\"Sí\",\"El primer criterio se cumple satisfactoriamente\",\"Al no cumplir con este criterio, no es posible generar contribución sustancial\"))","v":"El primer criterio se cumple satisfactoriamente"},"Las dos condiciones deben cumplirse para argumentar que la actividad tiene contribución sustancial"]
["¿La actividad económica y sus medidas de adaptación son consistentes con los esfuerzos de adaptación a nivel sectorial, regional y/o nacional?",null,null,null,null,"Sí",{"$f":"IF(F157=\"Seleccione\",\"Por definir\",IF(F157=\"Sí\",\"El segundo criterio se cumple satisfactoriamente\",\"Al no cumplir con este criterio, no es posible generar contribución sustancial\"))","v":"El segundo criterio se cumple satisfactoriamente"}]
[{"$f":"IF(OR(F156=\"Seleccione\",F157=\"Seleccione\"),\"Por definir\",IF(OR(F156=\"No\",F157=\"No\"),\"La actividad no genera contribución sustancial\", \"La actividad sí contribuye sustancialmente a la sostenibilidad\"))","v":"La actividad sí contribuye sustancialmente a la sostenibilidad"}]
[]
["A3. Monitoreo de los resultados de adaptación."]
["En el contexto de la actividad evaluada, la reducción de los riesgos físicos se puede medir. Selecciona las respuestas en las listas desplegables"]
[" Los resultados de adaptación pueden ser monitoreados y medidos con base en indicadores. Considerando que los riesgos físicos evolucionan con el tiempo, el análisis de riesgos físicos debe llevarse a cabo con la frecuencia adecuada.  ¿Esto se evalúa dentro de la operación financiera y/o proyecto?",null,null,null,null,"Sí",{"$f":"IF(F162=\"Seleccione\",\"Por definir\",IF(F162=\"Sí\",\"La actividad sí contribuye sustancialmente a la sostenbilidad\",\"El proyecto no genera contribución sustancial\"))","v":"La actividad sí contribuye sustancialmente a la sostenbilidad"}]
[]
["B1. Apoyar a la adaptación de otras actividades económicas."]
["La actividad económica reduce el riesgo climático físico material en otras actividades económicas y/o aborda los obstáculos sistémicos para la adaptación. Las actividades que permiten la adaptación incluyen, pero no se limitan a, actividades que promueven una tecnología, un producto, una práctica, un proceso de gobernanza o usos innovadores de tecnologías, productos o prácticas existentes (incluidos los relacionados con las infraestructuras naturales). Además, eliminan las barreras de información, financieras, tecnológicas y de capacidad para la adaptación de otros. Selecciona las respuestas en las listas desplegables"]
["¿Se realiza una evaluación de los riesgos resultantes, con base en datos sólidos, tanto de la variabilidad  meteorológica actual como del cambio climático futuro, incluidos los escenarios climáticos, así como  la incertidumbre, que la actividad económica contribuirá a abordar?",null,null,null,null,"Sí",{"$f":"IF(F166=\"Seleccione\",\"Por definir\",IF(F166=\"Sí\",\"El primer criterio se cumple satisfactoriamente\",\"Al no cumplir con este criterio, no es posible generar contribución sustancial\"))","v":"El primer criterio se cumple satisfactoriamente"},"Las tres condiciones en caso de que apliquen deben cumplirse para argumentar que la actividad tiene contribución sustancial. La tercera opción podría no aplicar. En este caso se evaluaran las primeras dos cuestiones"]
["¿Se realiza una evaluación de la eficacia de la contribución de la actividad económica a la reducción de los riesgos físicos, teniendo en cuenta la escala de exposición y la vulnerabilidad a los mismos?",null,null,null,null,"Sí",{"$f":"IF(F167=\"Seleccione\",\"Por definir\",IF(F167=\"Sí\",\"El segundo criterio se cumple satisfactoriamente\",\"Al no cumplir con este criterio, no es posible generar contribución sustancial\"))","v":"El segundo criterio se cumple satisfactoriamente"}]
["En el caso de una infraestructura vinculada a una actividad que permita la adaptación, dicha infraestructura debe cumplir también los criterios de selección A1, A2 y A3. ¿Esto se cumple en el contexto del proyecto?",null,null,null,null,"Sí",{"$f":"IF(F168=\"Seleccione\",\"Por definir\",IF(F168=\"Sí\",\"El tercer criterio se cumple satisfactoriamente\",IF(F168=\"No aplica\",\"No aplica\",\"El proyecto no genera contribución sustancial\")))","v":"El tercer criterio se cumple satisfactoriamente"}]
[{"$f":"IF(OR(F166=\"Seleccione\",F167=\"Seleccione\",F168=\"Seleccione\"),\"Por definir\",IF(OR(F166=\"No\",F167=\"No\",F168=\"No\"),\"La actividad no genera contribución sustancial\",\"La actividad sí contribuye sustancialmente a la sostenibilidad\"))","v":"La actividad sí contribuye sustancialmente a la sostenibilidad"}]
[]
["484232. Autotransporte foráneo de materiales y residuos peligrosos"]
["Responde las siguientes preguntas seleccionando una respuesta de la lista"]
[]
["1. La actividad que estás evaluando es una actividad adaptada o una actividad que facilita la adaptación?",null,null,"Actividad que facilita la adaptación"]
[]
["¿Qué es una actividad adaptada?\nUna actividad económica se adapta a los riesgos climáticos físicos materiales, si integra medidas y/o soluciones para reducirlos, mientras garantiza que la actividad económica pueda funcionar bien en un clima cambiante. Estas actividades de adaptación se desarrollan a partir de la evaluación de riesgos actuales y futuros, ya sean climáticos, crónicos y/o agudos, así como la escala temporal y geográfica de la actividad económica."]
["¿Qué es una actividad que facilita la adaptación? \nUna actividad económica posibilita la adaptación si reduce el riesgo climático físico material y la vulnerabilidad en otras actividades económicas, comunidades, ecosistemas o ciudades, y/o aborda los obstáculos sistémicos a la adaptación. Esto es posible a través del uso de la tecnología y la creación de un producto o servicio especializado."]
[]
[]
["A1. Reducción de los riesgos climáticos físicos materiales."]
["La actividad económica debe reducir todos los riesgos climáticos físicos materiales para las actividades evaluadas, en la medida de lo posible y sobre la base del mejor esfuerzo. Selecciona las respuestas en las listas desplegables"]
["¿La actividad económica integra medidas destinadas a reducir, en la medida de lo posible y sobre la base del mejor esfuerzo, los riesgos climáticos físicos materiales para esa actividad, que han sido identificados mediante una evaluación de riesgos?",null,null,null,null,"Sí",{"$f":"IF(F182=\"Seleccione\",\"Por definir\",IF(F182=\"Sí\",\"El primer criterio se cumple satisfactoriamente\",\"Al no cumplir con este criterio, no es posible generar contribución sustancial\"))","v":"El primer criterio se cumple satisfactoriamente"},"Las tres condiciones deben cumplirse para argumentar que la actividad tiene contribución sustancial"]
["¿Esta evaluación considera tanto la variabilidad meteorológica actual, como el cambio climático futuro, incluidos los escenarios climáticos, así como la incertidumbre?",null,null,null,null,"Sí",{"$f":"IF(F183=\"Seleccione\",\"Por definir\",IF(F183=\"Sí\",\"El segundo criterio se cumple satisfactoriamente\",\"Al no cumplir con este criterio, no es posible generar contribución sustancial\"))","v":"El segundo criterio se cumple satisfactoriamente"}]
["¿Igualmente la evaluación se basa en un sólido análisis de los datos e información disponible sobre los distintos escenarios climáticos, y es coherente con la duración prevista de la actividad?",null,null,null,null,"Sí",{"$f":"IF(F184=\"Seleccione\",\"Por definir\",IF(F184=\"Sí\",\"El tercer criterio se cumple satisfactoriamente\",\"Al no cumplir con este criterio, no es posible generar contribución sustancial\"))","v":"El tercer criterio se cumple satisfactoriamente"}]
[{"$f":"IF(OR(F182=\"Seleccione\",F183=\"Seleccione\",F184=\"Seleccione\"),\"Por definir\",IF(OR(F182=\"No\",F183=\"No\",F184=\"No\"),\"La actividad no genera contribución sustancial\", \"La actividad sí contribuye sustancialmente a la sostenibilidad\"))","v":"La actividad sí contribuye sustancialmente a la sostenibilidad"}]
[]
["A2. Apoyo a la adaptación del sistema. "]
["La actividad económica y sus medidas de adaptación no afectan negativamente los esfuerzos de adaptación de otras personas, la naturaleza y los bienes. Selecciona las respuestas en las listas desplegables"]
["¿La actividad económica y sus medidas de adaptación no aumentan los riesgos de un impacto climático adverso sobre otras personas, la naturaleza y los bienes?",null,null,null,null,"Sí",{"$f":"IF(F189=\"Seleccione\",\"Por definir\",IF(F189=\"Sí\",\"El primer criterio se cumple satisfactoriamente\",\"Al no cumplir con este criterio, no es posible generar contribución sustancial\"))","v":"El primer criterio se cumple satisfactoriamente"},"Las dos condiciones deben cumplirse para argumentar que la actividad tiene contribución sustancial"]
["¿La actividad económica y sus medidas de adaptación son consistentes con los esfuerzos de adaptación a nivel sectorial, regional y/o nacional?",null,null,null,null,"Sí",{"$f":"IF(F190=\"Seleccione\",\"Por definir\",IF(F190=\"Sí\",\"El segundo criterio se cumple satisfactoriamente\",\"Al no cumplir con este criterio, no es posible generar contribución sustancial\"))","v":"El segundo criterio se cumple satisfactoriamente"}]
[{"$f":"IF(OR(F189=\"Seleccione\",F190=\"Seleccione\"),\"Por definir\",IF(OR(F189=\"No\",F190=\"No\"),\"La actividad no genera contribución sustancial\", \"La actividad sí contribuye sustancialmente a la sostenibilidad\"))","v":"La actividad sí contribuye sustancialmente a la sostenibilidad"}]
[]
["A3. Monitoreo de los resultados de adaptación."]
["En el contexto de la actividad evaluada, la reducción de los riesgos físicos se puede medir. Selecciona las respuestas en las listas desplegables"]
[" Los resultados de adaptación pueden ser monitoreados y medidos con base en indicadores. Considerando que los riesgos físicos evolucionan con el tiempo, el análisis de riesgos físicos debe llevarse a cabo con la frecuencia adecuada.  ¿Esto se evalúa dentro de la operación financiera y/o proyecto?",null,null,null,null,"Sí",{"$f":"IF(F195=\"Seleccione\",\"Por definir\",IF(F195=\"Sí\",\"La actividad sí contribuye sustancialmente a la sostenbilidad\",\"El proyecto no genera contribución sustancial\"))","v":"La actividad sí contribuye sustancialmente a la sostenbilidad"}]
[]
["B1. Apoyar a la adaptación de otras actividades económicas."]
["La actividad económica reduce el riesgo climático físico material en otras actividades económicas y/o aborda los obstáculos sistémicos para la adaptación. Las actividades que permiten la adaptación incluyen, pero no se limitan a, actividades que promueven una tecnología, un producto, una práctica, un proceso de gobernanza o usos innovadores de tecnologías, productos o prácticas existentes (incluidos los relacionados con las infraestructuras naturales). Además, eliminan las barreras de información, financieras, tecnológicas y de capacidad para la adaptación de otros. Selecciona las respuestas en las listas desplegables"]
["¿Se realiza una evaluación de los riesgos resultantes, con base en datos sólidos, tanto de la variabilidad  meteorológica actual como del cambio climático futuro, incluidos los escenarios climáticos, así como  la incertidumbre, que la actividad económica contribuirá a abordar?",null,null,null,null,"Sí",{"$f":"IF(F199=\"Seleccione\",\"Por definir\",IF(F199=\"Sí\",\"El primer criterio se cumple satisfactoriamente\",\"Al no cumplir con este criterio, no es posible generar contribución sustancial\"))","v":"El primer criterio se cumple satisfactoriamente"},"Las tres condiciones en caso de que apliquen deben cumplirse para argumentar que la actividad tiene contribución sustancial. La tercera opción podría no aplicar. En este caso se evaluaran las primeras dos cuestiones"]
["¿Se realiza una evaluación de la eficacia de la contribución de la actividad económica a la reducción de los riesgos físicos, teniendo en cuenta la escala de exposición y la vulnerabilidad a los mismos?",null,null,null,null,"Sí",{"$f":"IF(F200=\"Seleccione\",\"Por definir\",IF(F200=\"Sí\",\"El segundo criterio se cumple satisfactoriamente\",\"Al no cumplir con este criterio, no es posible generar contribución sustancial\"))","v":"El segundo criterio se cumple satisfactoriamente"}]
["En el caso de una infraestructura vinculada a una actividad que permita la adaptación, dicha infraestructura debe cumplir también los criterios de selección A1, A2 y A3. ¿Esto se cumple en el contexto del proyecto?",null,null,null,null,"Sí",{"$f":"IF(F201=\"Seleccione\",\"Por definir\",IF(F201=\"Sí\",\"El tercer criterio se cumple satisfactoriamente\",IF(F201=\"No aplica\",\"No aplica\",\"El proyecto no genera contribución sustancial\")))","v":"El tercer criterio se cumple satisfactoriamente"}]
[{"$f":"IF(OR(F199=\"Seleccione\",F200=\"Seleccione\",F201=\"Seleccione\"),\"Por definir\",IF(OR(F199=\"No\",F200=\"No\",F201=\"No\"),\"La actividad no genera contribución sustancial\",\"La actividad sí contribuye sustancialmente a la sostenibilidad\"))","v":"La actividad sí contribuye sustancialmente a la sostenibilidad"}]
[]
["484233. Autotransporte foráneo con refrigeración"]
["Responde las siguientes preguntas seleccionando una respuesta de la lista"]
[]
["1. La actividad que estás evaluando es una actividad adaptada o una actividad que facilita la adaptación?",null,null,"Actividad que facilita la adaptación e incluye desarrollo de infraestructura"]
[]
["¿Qué es una actividad adaptada?\nUna actividad económica se adapta a los riesgos climáticos físicos materiales, si integra medidas y/o soluciones para reducirlos, mientras garantiza que la actividad económica pueda funcionar bien en un clima cambiante. Estas actividades de adaptación se desarrollan a partir de la evaluación de riesgos actuales y futuros, ya sean climáticos, crónicos y/o agudos, así como la escala temporal y geográfica de la actividad económica."]
["¿Qué es una actividad que facilita la adaptación? \nUna actividad económica posibilita la adaptación si reduce el riesgo climático físico material y la vulnerabilidad en otras actividades económicas, comunidades, ecosistemas o ciudades, y/o aborda los obstáculos sistémicos a la adaptación. Esto es posible a través del uso de la tecnología y la creación de un producto o servicio especializado."]
[]
[]
["A1. Reducción de los riesgos climáticos físicos materiales."]
["La actividad económica debe reducir todos los riesgos climáticos físicos materiales para las actividades evaluadas, en la medida de lo posible y sobre la base del mejor esfuerzo. Selecciona las respuestas en las listas desplegables"]
["¿La actividad económica integra medidas destinadas a reducir, en la medida de lo posible y sobre la base del mejor esfuerzo, los riesgos climáticos físicos materiales para esa actividad, que han sido identificados mediante una evaluación de riesgos?",null,null,null,null,"Sí",{"$f":"IF(F215=\"Seleccione\",\"Por definir\",IF(F215=\"Sí\",\"El primer criterio se cumple satisfactoriamente\",\"Al no cumplir con este criterio, no es posible generar contribución sustancial\"))","v":"El primer criterio se cumple satisfactoriamente"},"Las tres condiciones deben cumplirse para argumentar que la actividad tiene contribución sustancial"]
["¿Esta evaluación considera tanto la variabilidad meteorológica actual, como el cambio climático futuro, incluidos los escenarios climáticos, así como la incertidumbre?",null,null,null,null,"Sí",{"$f":"IF(F216=\"Seleccione\",\"Por definir\",IF(F216=\"Sí\",\"El segundo criterio se cumple satisfactoriamente\",\"Al no cumplir con este criterio, no es posible generar contribución sustancial\"))","v":"El segundo criterio se cumple satisfactoriamente"}]
["¿Igualmente la evaluación se basa en un sólido análisis de los datos e información disponible sobre los distintos escenarios climáticos, y es coherente con la duración prevista de la actividad?",null,null,null,null,"Sí",{"$f":"IF(F217=\"Seleccione\",\"Por definir\",IF(F217=\"Sí\",\"El tercer criterio se cumple satisfactoriamente\",\"Al no cumplir con este criterio, no es posible generar contribución sustancial\"))","v":"El tercer criterio se cumple satisfactoriamente"}]
[{"$f":"IF(OR(F215=\"Seleccione\",F216=\"Seleccione\",F217=\"Seleccione\"),\"Por definir\",IF(OR(F215=\"No\",F216=\"No\",F217=\"No\"),\"La actividad no genera contribución sustancial\", \"La actividad sí contribuye sustancialmente a la sostenibilidad\"))","v":"La actividad sí contribuye sustancialmente a la sostenibilidad"}]
[]
["A2. Apoyo a la adaptación del sistema. "]
["La actividad económica y sus medidas de adaptación no afectan negativamente los esfuerzos de adaptación de otras personas, la naturaleza y los bienes. Selecciona las respuestas en las listas desplegables"]
["¿La actividad económica y sus medidas de adaptación no aumentan los riesgos de un impacto climático adverso sobre otras personas, la naturaleza y los bienes?",null,null,null,null,"Sí",{"$f":"IF(F222=\"Seleccione\",\"Por definir\",IF(F222=\"Sí\",\"El primer criterio se cumple satisfactoriamente\",\"Al no cumplir con este criterio, no es posible generar contribución sustancial\"))","v":"El primer criterio se cumple satisfactoriamente"},"Las dos condiciones deben cumplirse para argumentar que la actividad tiene contribución sustancial"]
["¿La actividad económica y sus medidas de adaptación son consistentes con los esfuerzos de adaptación a nivel sectorial, regional y/o nacional?",null,null,null,null,"Sí",{"$f":"IF(F223=\"Seleccione\",\"Por definir\",IF(F223=\"Sí\",\"El segundo criterio se cumple satisfactoriamente\",\"Al no cumplir con este criterio, no es posible generar contribución sustancial\"))","v":"El segundo criterio se cumple satisfactoriamente"}]
[{"$f":"IF(OR(F222=\"Seleccione\",F223=\"Seleccione\"),\"Por definir\",IF(OR(F222=\"No\",F223=\"No\"),\"La actividad no genera contribución sustancial\", \"La actividad sí contribuye sustancialmente a la sostenibilidad\"))","v":"La actividad sí contribuye sustancialmente a la sostenibilidad"}]
[]
["A3. Monitoreo de los resultados de adaptación."]
["En el contexto de la actividad evaluada, la reducción de los riesgos físicos se puede medir. Selecciona las respuestas en las listas desplegables"]
[" Los resultados de adaptación pueden ser monitoreados y medidos con base en indicadores. Considerando que los riesgos físicos evolucionan con el tiempo, el análisis de riesgos físicos debe llevarse a cabo con la frecuencia adecuada.  ¿Esto se evalúa dentro de la operación financiera y/o proyecto?",null,null,null,null,"Sí",{"$f":"IF(F228=\"Seleccione\",\"Por definir\",IF(F228=\"Sí\",\"La actividad sí contribuye sustancialmente a la sostenbilidad\",\"El proyecto no genera contribución sustancial\"))","v":"La actividad sí contribuye sustancialmente a la sostenbilidad"}]
[]
["B1. Apoyar a la adaptación de otras actividades económicas."]
["La actividad económica reduce el riesgo climático físico material en otras actividades económicas y/o aborda los obstáculos sistémicos para la adaptación. Las actividades que permiten la adaptación incluyen, pero no se limitan a, actividades que promueven una tecnología, un producto, una práctica, un proceso de gobernanza o usos innovadores de tecnologías, productos o prácticas existentes (incluidos los relacionados con las infraestructuras naturales). Además, eliminan las barreras de información, financieras, tecnológicas y de capacidad para la adaptación de otros. Selecciona las respuestas en las listas desplegables"]
["¿Se realiza una evaluación de los riesgos resultantes, con base en datos sólidos, tanto de la variabilidad  meteorológica actual como del cambio climático futuro, incluidos los escenarios climáticos, así como  la incertidumbre, que la actividad económica contribuirá a abordar?",null,null,null,null,"Sí",{"$f":"IF(F232=\"Seleccione\",\"Por definir\",IF(F232=\"Sí\",\"El primer criterio se cumple satisfactoriamente\",\"Al no cumplir con este criterio, no es posible generar contribución sustancial\"))","v":"El primer criterio se cumple satisfactoriamente"},"Las tres condiciones en caso de que apliquen deben cumplirse para argumentar que la actividad tiene contribución sustancial. La tercera opción podría no aplicar. En este caso se evaluaran las primeras dos cuestiones"]
["¿Se realiza una evaluación de la eficacia de la contribución de la actividad económica a la reducción de los riesgos físicos, teniendo en cuenta la escala de exposición y la vulnerabilidad a los mismos?",null,null,null,null,"Sí",{"$f":"IF(F233=\"Seleccione\",\"Por definir\",IF(F233=\"Sí\",\"El segundo criterio se cumple satisfactoriamente\",\"Al no cumplir con este criterio, no es posible generar contribución sustancial\"))","v":"El segundo criterio se cumple satisfactoriamente"}]
["En el caso de una infraestructura vinculada a una actividad que permita la adaptación, dicha infraestructura debe cumplir también los criterios de selección A1, A2 y A3. ¿Esto se cumple en el contexto del proyecto?",null,null,null,null,"Sí",{"$f":"IF(F234=\"Seleccione\",\"Por definir\",IF(F234=\"Sí\",\"El tercer criterio se cumple satisfactoriamente\",IF(F234=\"No aplica\",\"No aplica\",\"El proyecto no genera contribución sustancial\")))","v":"El tercer criterio se cumple satisfactoriamente"}]
[{"$f":"IF(OR(F232=\"Seleccione\",F233=\"Seleccione\",F234=\"Seleccione\"),\"Por definir\",IF(OR(F232=\"No\",F233=\"No\",F234=\"No\"),\"La actividad no genera contribución sustancial\",\"La actividad sí contribuye sustancialmente a la sostenibilidad\"))","v":"La actividad sí contribuye sustancialmente a la sostenibilidad"}]
[]
["484234. Autotransporte foráneo de madera"]
["Responde las siguientes preguntas seleccionando una respuesta de la lista"]
[]
["1. La actividad que estás evaluando es una actividad adaptada o una actividad que facilita la adaptación?",null,null,"Actividad que facilita la adaptación e incluye desarrollo de infraestructura"]
[]
["¿Qué es una actividad adaptada?\nUna actividad económica se adapta a los riesgos climáticos físicos materiales, si integra medidas y/o soluciones para reducirlos, mientras garantiza que la actividad económica pueda funcionar bien en un clima cambiante. Estas actividades de adaptación se desarrollan a partir de la evaluación de riesgos actuales y futuros, ya sean climáticos, crónicos y/o agudos, así como la escala temporal y geográfica de la actividad económica."]
["¿Qué es una actividad que facilita la adaptación? \nUna actividad económica posibilita la adaptación si reduce el riesgo climático físico material y la vulnerabilidad en otras actividades económicas, comunidades, ecosistemas o ciudades, y/o aborda los obstáculos sistémicos a la adaptación. Esto es posible a través del uso de la tecnología y la creación de un producto o servicio especializado."]
[]
[]
["A1. Reducción de los riesgos climáticos físicos materiales."]
["La actividad económica debe reducir todos los riesgos climáticos físicos materiales para las actividades evaluadas, en la medida de lo posible y sobre la base del mejor esfuerzo. Selecciona las respuestas en las listas desplegables"]
["¿La actividad económica integra medidas destinadas a reducir, en la medida de lo posible y sobre la base del mejor esfuerzo, los riesgos climáticos físicos materiales para esa actividad, que han sido identificados mediante una evaluación de riesgos?",null,null,null,null,"Sí",{"$f":"IF(F248=\"Seleccione\",\"Por definir\",IF(F248=\"Sí\",\"El primer criterio se cumple satisfactoriamente\",\"Al no cumplir con este criterio, no es posible generar contribución sustancial\"))","v":"El primer criterio se cumple satisfactoriamente"},"Las tres condiciones deben cumplirse para argumentar que la actividad tiene contribución sustancial"]
["¿Esta evaluación considera tanto la variabilidad meteorológica actual, como el cambio climático futuro, incluidos los escenarios climáticos, así como la incertidumbre?",null,null,null,null,"Sí",{"$f":"IF(F249=\"Seleccione\",\"Por definir\",IF(F249=\"Sí\",\"El segundo criterio se cumple satisfactoriamente\",\"Al no cumplir con este criterio, no es posible generar contribución sustancial\"))","v":"El segundo criterio se cumple satisfactoriamente"}]
["¿Igualmente la evaluación se basa en un sólido análisis de los datos e información disponible sobre los distintos escenarios climáticos, y es coherente con la duración prevista de la actividad?",null,null,null,null,"Sí",{"$f":"IF(F250=\"Seleccione\",\"Por definir\",IF(F250=\"Sí\",\"El tercer criterio se cumple satisfactoriamente\",\"Al no cumplir con este criterio, no es posible generar contribución sustancial\"))","v":"El tercer criterio se cumple satisfactoriamente"}]
[{"$f":"IF(OR(F248=\"Seleccione\",F249=\"Seleccione\",F250=\"Seleccione\"),\"Por definir\",IF(OR(F248=\"No\",F249=\"No\",F250=\"No\"),\"La actividad no genera contribución sustancial\", \"La actividad sí contribuye sustancialmente a la sostenibilidad\"))","v":"La actividad sí contribuye sustancialmente a la sostenibilidad"}]
[]
["A2. Apoyo a la adaptación del sistema. "]
["La actividad económica y sus medidas de adaptación no afectan negativamente los esfuerzos de adaptación de otras personas, la naturaleza y los bienes. Selecciona las respuestas en las listas desplegables"]
["¿La actividad económica y sus medidas de adaptación no aumentan los riesgos de un impacto climático adverso sobre otras personas, la naturaleza y los bienes?",null,null,null,null,"Sí",{"$f":"IF(F255=\"Seleccione\",\"Por definir\",IF(F255=\"Sí\",\"El primer criterio se cumple satisfactoriamente\",\"Al no cumplir con este criterio, no es posible generar contribución sustancial\"))","v":"El primer criterio se cumple satisfactoriamente"},"Las dos condiciones deben cumplirse para argumentar que la actividad tiene contribución sustancial"]
["¿La actividad económica y sus medidas de adaptación son consistentes con los esfuerzos de adaptación a nivel sectorial, regional y/o nacional?",null,null,null,null,"Sí",{"$f":"IF(F256=\"Seleccione\",\"Por definir\",IF(F256=\"Sí\",\"El segundo criterio se cumple satisfactoriamente\",\"Al no cumplir con este criterio, no es posible generar contribución sustancial\"))","v":"El segundo criterio se cumple satisfactoriamente"}]
[{"$f":"IF(OR(F255=\"Seleccione\",F256=\"Seleccione\"),\"Por definir\",IF(OR(F255=\"No\",F256=\"No\"),\"La actividad no genera contribución sustancial\", \"La actividad sí contribuye sustancialmente a la sostenibilidad\"))","v":"La actividad sí contribuye sustancialmente a la sostenibilidad"}]
[]
["A3. Monitoreo de los resultados de adaptación."]
["En el contexto de la actividad evaluada, la reducción de los riesgos físicos se puede medir. Selecciona las respuestas en las listas desplegables"]
[" Los resultados de adaptación pueden ser monitoreados y medidos con base en indicadores. Considerando que los riesgos físicos evolucionan con el tiempo, el análisis de riesgos físicos debe llevarse a cabo con la frecuencia adecuada.  ¿Esto se evalúa dentro de la operación financiera y/o proyecto?",null,null,null,null,"Sí",{"$f":"IF(F261=\"Seleccione\",\"Por definir\",IF(F261=\"Sí\",\"La actividad sí contribuye sustancialmente a la sostenbilidad\",\"El proyecto no genera contribución sustancial\"))","v":"La actividad sí contribuye sustancialmente a la sostenbilidad"}]
[]
["B1. Apoyar a la adaptación de otras actividades económicas."]
["La actividad económica reduce el riesgo climático físico material en otras actividades económicas y/o aborda los obstáculos sistémicos para la adaptación. Las actividades que permiten la adaptación incluyen, pero no se limitan a, actividades que promueven una tecnología, un producto, una práctica, un proceso de gobernanza o usos innovadores de tecnologías, productos o prácticas existentes (incluidos los relacionados con las infraestructuras naturales). Además, eliminan las barreras de información, financieras, tecnológicas y de capacidad para la adaptación de otros. Selecciona las respuestas en las listas desplegables"]
["¿Se realiza una evaluación de los riesgos resultantes, con base en datos sólidos, tanto de la variabilidad  meteorológica actual como del cambio climático futuro, incluidos los escenarios climáticos, así como  la incertidumbre, que la actividad económica contribuirá a abordar?",null,null,null,null,"Sí",{"$f":"IF(F265=\"Seleccione\",\"Por definir\",IF(F265=\"Sí\",\"El primer criterio se cumple satisfactoriamente\",\"Al no cumplir con este criterio, no es posible generar contribución sustancial\"))","v":"El primer criterio se cumple satisfactoriamente"},"Las tres condiciones en caso de que apliquen deben cumplirse para argumentar que la actividad tiene contribución sustancial. La tercera opción podría no aplicar. En este caso se evaluaran las primeras dos cuestiones"]
["¿Se realiza una evaluación de la eficacia de la contribución de la actividad económica a la reducción de los riesgos físicos, teniendo en cuenta la escala de exposición y la vulnerabilidad a los mismos?",null,null,null,null,"Sí",{"$f":"IF(F266=\"Seleccione\",\"Por definir\",IF(F266=\"Sí\",\"El segundo criterio se cumple satisfactoriamente\",\"Al no cumplir con este criterio, no es posible generar contribución sustancial\"))","v":"El segundo criterio se cumple satisfactoriamente"}]
["En el caso de una infraestructura vinculada a una actividad que permita la adaptación, dicha infraestructura debe cumplir también los criterios de selección A1, A2 y A3. ¿Esto se cumple en el contexto del proyecto?",null,null,null,null,"Sí",{"$f":"IF(F267=\"Seleccione\",\"Por definir\",IF(F267=\"Sí\",\"El tercer criterio se cumple satisfactoriamente\",IF(F267=\"No aplica\",\"No aplica\",\"El proyecto no genera contribución sustancial\")))","v":"El tercer criterio se cumple satisfactoriamente"}]
[{"$f":"IF(OR(F265=\"Seleccione\",F266=\"Seleccione\",F267=\"Seleccione\"),\"Por definir\",IF(OR(F265=\"No\",F266=\"No\",F267=\"No\"),\"La actividad no genera contribución sustancial\",\"La actividad sí contribuye sustancialmente a la sostenibilidad\"))","v":"La actividad sí contribuye sustancialmente a la sostenibilidad"}]
[]
["484239. Otro autotransporte foráneo de carga especializado"]
["Responde las siguientes preguntas seleccionando una respuesta de la lista"]
[]
["1. La actividad que estás evaluando es una actividad adaptada o una actividad que facilita la adaptación?",null,null,"Actividad que facilita la adaptación e incluye desarrollo de infraestructura"]
[]
["¿Qué es una actividad adaptada?\nUna actividad económica se adapta a los riesgos climáticos físicos materiales, si integra medidas y/o soluciones para reducirlos, mientras garantiza que la actividad económica pueda funcionar bien en un clima cambiante. Estas actividades de adaptación se desarrollan a partir de la evaluación de riesgos actuales y futuros, ya sean climáticos, crónicos y/o agudos, así como la escala temporal y geográfica de la actividad económica."]
["¿Qué es una actividad que facilita la adaptación? \nUna actividad económica posibilita la adaptación si reduce el riesgo climático físico material y la vulnerabilidad en otras actividades económicas, comunidades, ecosistemas o ciudades, y/o aborda los obstáculos sistémicos a la adaptación. Esto es posible a través del uso de la tecnología y la creación de un producto o servicio especializado."]
[]
[]
["A1. Reducción de los riesgos climáticos físicos materiales."]
["La actividad económica debe reducir todos los riesgos climáticos físicos materiales para las actividades evaluadas, en la medida de lo posible y sobre la base del mejor esfuerzo. Selecciona las respuestas en las listas desplegables"]
["¿La actividad económica integra medidas destinadas a reducir, en la medida de lo posible y sobre la base del mejor esfuerzo, los riesgos climáticos físicos materiales para esa actividad, que han sido identificados mediante una evaluación de riesgos?",null,null,null,null,"Sí",{"$f":"IF(F281=\"Seleccione\",\"Por definir\",IF(F281=\"Sí\",\"El primer criterio se cumple satisfactoriamente\",\"Al no cumplir con este criterio, no es posible generar contribución sustancial\"))","v":"El primer criterio se cumple satisfactoriamente"},"Las tres condiciones deben cumplirse para argumentar que la actividad tiene contribución sustancial"]
["¿Esta evaluación considera tanto la variabilidad meteorológica actual, como el cambio climático futuro, incluidos los escenarios climáticos, así como la incertidumbre?",null,null,null,null,"Sí",{"$f":"IF(F282=\"Seleccione\",\"Por definir\",IF(F282=\"Sí\",\"El segundo criterio se cumple satisfactoriamente\",\"Al no cumplir con este criterio, no es posible generar contribución sustancial\"))","v":"El segundo criterio se cumple satisfactoriamente"}]
["¿Igualmente la evaluación se basa en un sólido análisis de los datos e información disponible sobre los distintos escenarios climáticos, y es coherente con la duración prevista de la actividad?",null,null,null,null,"Sí",{"$f":"IF(F283=\"Seleccione\",\"Por definir\",IF(F283=\"Sí\",\"El tercer criterio se cumple satisfactoriamente\",\"Al no cumplir con este criterio, no es posible generar contribución sustancial\"))","v":"El tercer criterio se cumple satisfactoriamente"}]
[{"$f":"IF(OR(F281=\"Seleccione\",F282=\"Seleccione\",F283=\"Seleccione\"),\"Por definir\",IF(OR(F281=\"No\",F282=\"No\",F283=\"No\"),\"La actividad no genera contribución sustancial\", \"La actividad sí contribuye sustancialmente a la sostenibilidad\"))","v":"La actividad sí contribuye sustancialmente a la sostenibilidad"}]
[]
["A2. Apoyo a la adaptación del sistema. "]
["La actividad económica y sus medidas de adaptación no afectan negativamente los esfuerzos de adaptación de otras personas, la naturaleza y los bienes. Selecciona las respuestas en las listas desplegables"]
["¿La actividad económica y sus medidas de adaptación no aumentan los riesgos de un impacto climático adverso sobre otras personas, la naturaleza y los bienes?",null,null,null,null,"Sí",{"$f":"IF(F288=\"Seleccione\",\"Por definir\",IF(F288=\"Sí\",\"El primer criterio se cumple satisfactoriamente\",\"Al no cumplir con este criterio, no es posible generar contribución sustancial\"))","v":"El primer criterio se cumple satisfactoriamente"},"Las dos condiciones deben cumplirse para argumentar que la actividad tiene contribución sustancial"]
["¿La actividad económica y sus medidas de adaptación son consistentes con los esfuerzos de adaptación a nivel sectorial, regional y/o nacional?",null,null,null,null,"Sí",{"$f":"IF(F289=\"Seleccione\",\"Por definir\",IF(F289=\"Sí\",\"El segundo criterio se cumple satisfactoriamente\",\"Al no cumplir con este criterio, no es posible generar contribución sustancial\"))","v":"El segundo criterio se cumple satisfactoriamente"}]
[{"$f":"IF(OR(F288=\"Seleccione\",F289=\"Seleccione\"),\"Por definir\",IF(OR(F288=\"No\",F289=\"No\"),\"La actividad no genera contribución sustancial\", \"La actividad sí contribuye sustancialmente a la sostenibilidad\"))","v":"La actividad sí contribuye sustancialmente a la sostenibilidad"}]
[]
["A3. Monitoreo de los resultados de adaptación."]
["En el contexto de la actividad evaluada, la reducción de los riesgos físicos se puede medir. Selecciona las respuestas en las listas desplegables"]
[" Los resultados de adaptación pueden ser monitoreados y medidos con base en indicadores. Considerando que los riesgos físicos evolucionan con el tiempo, el análisis de riesgos físicos debe llevarse a cabo con la frecuencia adecuada.  ¿Esto se evalúa dentro de la operación financiera y/o proyecto?",null,null,null,null,"Sí",{"$f":"IF(F294=\"Seleccione\",\"Por definir\",IF(F294=\"Sí\",\"La actividad sí contribuye sustancialmente a la sostenbilidad\",\"El proyecto no genera contribución sustancial\"))","v":"La actividad sí contribuye sustancialmente a la sostenbilidad"}]
[]
["B1. Apoyar a la adaptación de otras actividades económicas."]
["La actividad económica reduce el riesgo climático físico material en otras actividades económicas y/o aborda los obstáculos sistémicos para la adaptación. Las actividades que permiten la adaptación incluyen, pero no se limitan a, actividades que promueven una tecnología, un producto, una práctica, un proceso de gobernanza o usos innovadores de tecnologías, productos o prácticas existentes (incluidos los relacionados con las infraestructuras naturales). Además, eliminan las barreras de información, financieras, tecnológicas y de capacidad para la adaptación de otros. Selecciona las respuestas en las listas desplegables"]
["¿Se realiza una evaluación de los riesgos resultantes, con base en datos sólidos, tanto de la variabilidad  meteorológica actual como del cambio climático futuro, incluidos los escenarios climáticos, así como  la incertidumbre, que la actividad económica contribuirá a abordar?",null,null,null,null,"Sí",{"$f":"IF(F298=\"Seleccione\",\"Por definir\",IF(F298=\"Sí\",\"El primer criterio se cumple satisfactoriamente\",\"Al no cumplir con este criterio, no es posible generar contribución sustancial\"))","v":"El primer criterio se cumple satisfactoriamente"},"Las tres condiciones en caso de que apliquen deben cumplirse para argumentar que la actividad tiene contribución sustancial. La tercera opción podría no aplicar. En este caso se evaluaran las primeras dos cuestiones"]
["¿Se realiza una evaluación de la eficacia de la contribución de la actividad económica a la reducción de los riesgos físicos, teniendo en cuenta la escala de exposición y la vulnerabilidad a los mismos?",null,null,null,null,"Sí",{"$f":"IF(F299=\"Seleccione\",\"Por definir\",IF(F299=\"Sí\",\"El segundo criterio se cumple satisfactoriamente\",\"Al no cumplir con este criterio, no es posible generar contribución sustancial\"))","v":"El segundo criterio se cumple satisfactoriamente"}]
["En el caso de una infraestructura vinculada a una actividad que permita la adaptación, dicha infraestructura debe cumplir también los criterios de selección A1, A2 y A3. ¿Esto se cumple en el contexto del proyecto?",null,null,null,null,"Sí",{"$f":"IF(F300=\"Seleccione\",\"Por definir\",IF(F300=\"Sí\",\"El tercer criterio se cumple satisfactoriamente\",IF(F300=\"No aplica\",\"No aplica\",\"El proyecto no genera contribución sustancial\")))","v":"El tercer criterio se cumple satisfactoriamente"}]
[{"$f":"IF(OR(F298=\"Seleccione\",F299=\"Seleccione\",F300=\"Seleccione\"),\"Por definir\",IF(OR(F298=\"No\",F299=\"No\",F300=\"No\"),\"La actividad no genera contribución sustancial\",\"La actividad sí contribuye sustancialmente a la sostenibilidad\"))","v":"La actividad sí contribuye sustancialmente a la sostenibilidad"}]
[]
["485111. Transporte colectivo urbano y suburbano de pasajeros en autobuses de ruta fija (corredor de transporte)"]
["Responde las siguientes preguntas seleccionando una respuesta de la lista"]
[]
["1. La actividad que estás evaluando es una actividad adaptada o una actividad que facilita la adaptación?",null,null,"Actividad que facilita la adaptación e incluye desarrollo de infraestructura"]
[]
["¿Qué es una actividad adaptada?\nUna actividad económica se adapta a los riesgos climáticos físicos materiales, si integra medidas y/o soluciones para reducirlos, mientras garantiza que la actividad económica pueda funcionar bien en un clima cambiante. Estas actividades de adaptación se desarrollan a partir de la evaluación de riesgos actuales y futuros, ya sean climáticos, crónicos y/o agudos, así como la escala temporal y geográfica de la actividad económica."]
["¿Qué es una actividad que facilita la adaptación? \nUna actividad económica posibilita la adaptación si reduce el riesgo climático físico material y la vulnerabilidad en otras actividades económicas, comunidades, ecosistemas o ciudades, y/o aborda los obstáculos sistémicos a la adaptación. Esto es posible a través del uso de la tecnología y la creación de un producto o servicio especializado."]
[]
[]
["A1. Reducción de los riesgos climáticos físicos materiales."]
["La actividad económica debe reducir todos los riesgos climáticos físicos materiales para las actividades evaluadas, en la medida de lo posible y sobre la base del mejor esfuerzo. Selecciona las respuestas en las listas desplegables"]
["¿La actividad económica integra medidas destinadas a reducir, en la medida de lo posible y sobre la base del mejor esfuerzo, los riesgos climáticos físicos materiales para esa actividad, que han sido identificados mediante una evaluación de riesgos?",null,null,null,null,"Sí",{"$f":"IF(F314=\"Seleccione\",\"Por definir\",IF(F314=\"Sí\",\"El primer criterio se cumple satisfactoriamente\",\"Al no cumplir con este criterio, no es posible generar contribución sustancial\"))","v":"El primer criterio se cumple satisfactoriamente"},"Las tres condiciones deben cumplirse para argumentar que la actividad tiene contribución sustancial"]
["¿Esta evaluación considera tanto la variabilidad meteorológica actual, como el cambio climático futuro, incluidos los escenarios climáticos, así como la incertidumbre?",null,null,null,null,"Sí",{"$f":"IF(F315=\"Seleccione\",\"Por definir\",IF(F315=\"Sí\",\"El segundo criterio se cumple satisfactoriamente\",\"Al no cumplir con este criterio, no es posible generar contribución sustancial\"))","v":"El segundo criterio se cumple satisfactoriamente"}]
["¿Igualmente la evaluación se basa en un sólido análisis de los datos e información disponible sobre los distintos escenarios climáticos, y es coherente con la duración prevista de la actividad?",null,null,null,null,"Sí",{"$f":"IF(F316=\"Seleccione\",\"Por definir\",IF(F316=\"Sí\",\"El tercer criterio se cumple satisfactoriamente\",\"Al no cumplir con este criterio, no es posible generar contribución sustancial\"))","v":"El tercer criterio se cumple satisfactoriamente"}]
[{"$f":"IF(OR(F314=\"Seleccione\",F315=\"Seleccione\",F316=\"Seleccione\"),\"Por definir\",IF(OR(F314=\"No\",F315=\"No\",F316=\"No\"),\"La actividad no genera contribución sustancial\", \"La actividad sí contribuye sustancialmente a la sostenibilidad\"))","v":"La actividad sí contribuye sustancialmente a la sostenibilidad"}]
[]
["A2. Apoyo a la adaptación del sistema. "]
["La actividad económica y sus medidas de adaptación no afectan negativamente los esfuerzos de adaptación de otras personas, la naturaleza y los bienes. Selecciona las respuestas en las listas desplegables"]
["¿La actividad económica y sus medidas de adaptación no aumentan los riesgos de un impacto climático adverso sobre otras personas, la naturaleza y los bienes?",null,null,null,null,"Sí",{"$f":"IF(F321=\"Seleccione\",\"Por definir\",IF(F321=\"Sí\",\"El primer criterio se cumple satisfactoriamente\",\"Al no cumplir con este criterio, no es posible generar contribución sustancial\"))","v":"El primer criterio se cumple satisfactoriamente"},"Las dos condiciones deben cumplirse para argumentar que la actividad tiene contribución sustancial"]
["¿La actividad económica y sus medidas de adaptación son consistentes con los esfuerzos de adaptación a nivel sectorial, regional y/o nacional?",null,null,null,null,"Sí",{"$f":"IF(F322=\"Seleccione\",\"Por definir\",IF(F322=\"Sí\",\"El segundo criterio se cumple satisfactoriamente\",\"Al no cumplir con este criterio, no es posible generar contribución sustancial\"))","v":"El segundo criterio se cumple satisfactoriamente"}]
[{"$f":"IF(OR(F321=\"Seleccione\",F322=\"Seleccione\"),\"Por definir\",IF(OR(F321=\"No\",F322=\"No\"),\"La actividad no genera contribución sustancial\", \"La actividad sí contribuye sustancialmente a la sostenibilidad\"))","v":"La actividad sí contribuye sustancialmente a la sostenibilidad"}]
[]
["A3. Monitoreo de los resultados de adaptación."]
["En el contexto de la actividad evaluada, la reducción de los riesgos físicos se puede medir. Selecciona las respuestas en las listas desplegables"]
[" Los resultados de adaptación pueden ser monitoreados y medidos con base en indicadores. Considerando que los riesgos físicos evolucionan con el tiempo, el análisis de riesgos físicos debe llevarse a cabo con la frecuencia adecuada.  ¿Esto se evalúa dentro de la operación financiera y/o proyecto?",null,null,null,null,"Sí",{"$f":"IF(F327=\"Seleccione\",\"Por definir\",IF(F327=\"Sí\",\"La actividad sí contribuye sustancialmente a la sostenbilidad\",\"El proyecto no genera contribución sustancial\"))","v":"La actividad sí contribuye sustancialmente a la sostenbilidad"}]
[]
["B1. Apoyar a la adaptación de otras actividades económicas."]
["La actividad económica reduce el riesgo climático físico material en otras actividades económicas y/o aborda los obstáculos sistémicos para la adaptación. Las actividades que permiten la adaptación incluyen, pero no se limitan a, actividades que promueven una tecnología, un producto, una práctica, un proceso de gobernanza o usos innovadores de tecnologías, productos o prácticas existentes (incluidos los relacionados con las infraestructuras naturales). Además, eliminan las barreras de información, financieras, tecnológicas y de capacidad para la adaptación de otros. Selecciona las respuestas en las listas desplegables"]
["¿Se realiza una evaluación de los riesgos resultantes, con base en datos sólidos, tanto de la variabilidad  meteorológica actual como del cambio climático futuro, incluidos los escenarios climáticos, así como  la incertidumbre, que la actividad económica contribuirá a abordar?",null,null,null,null,"Sí",{"$f":"IF(F331=\"Seleccione\",\"Por definir\",IF(F331=\"Sí\",\"El primer criterio se cumple satisfactoriamente\",\"Al no cumplir con este criterio, no es posible generar contribución sustancial\"))","v":"El primer criterio se cumple satisfactoriamente"},"Las tres condiciones en caso de que apliquen deben cumplirse para argumentar que la actividad tiene contribución sustancial. La tercera opción podría no aplicar. En este caso se evaluaran las primeras dos cuestiones"]
["¿Se realiza una evaluación de la eficacia de la contribución de la actividad económica a la reducción de los riesgos físicos, teniendo en cuenta la escala de exposición y la vulnerabilidad a los mismos?",null,null,null,null,"Sí",{"$f":"IF(F332=\"Seleccione\",\"Por definir\",IF(F332=\"Sí\",\"El segundo criterio se cumple satisfactoriamente\",\"Al no cumplir con este criterio, no es posible generar contribución sustancial\"))","v":"El segundo criterio se cumple satisfactoriamente"}]
["En el caso de una infraestructura vinculada a una actividad que permita la adaptación, dicha infraestructura debe cumplir también los criterios de selección A1, A2 y A3. ¿Esto se cumple en el contexto del proyecto?",null,null,null,null,"Sí",{"$f":"IF(F333=\"Seleccione\",\"Por definir\",IF(F333=\"Sí\",\"El tercer criterio se cumple satisfactoriamente\",IF(F333=\"No aplica\",\"No aplica\",\"El proyecto no genera contribución sustancial\")))","v":"El tercer criterio se cumple satisfactoriamente"}]
[{"$f":"IF(OR(F331=\"Seleccione\",F332=\"Seleccione\",F333=\"Seleccione\"),\"Por definir\",IF(OR(F331=\"No\",F332=\"No\",F333=\"No\"),\"La actividad no genera contribución sustancial\",\"La actividad sí contribuye sustancialmente a la sostenibilidad\"))","v":"La actividad sí contribuye sustancialmente a la sostenibilidad"}]
[]
["485112. Transporte colectivo urbano y suburbano de pasajeros en automóviles de ruta fija"]
["Responde las siguientes preguntas seleccionando una respuesta de la lista"]
[]
["1. La actividad que estás evaluando es una actividad adaptada o una actividad que facilita la adaptación?",null,null,"Actividad que facilita la adaptación e incluye desarrollo de infraestructura"]
[]
["¿Qué es una actividad adaptada?\nUna actividad económica se adapta a los riesgos climáticos físicos materiales, si integra medidas y/o soluciones para reducirlos, mientras garantiza que la actividad económica pueda funcionar bien en un clima cambiante. Estas actividades de adaptación se desarrollan a partir de la evaluación de riesgos actuales y futuros, ya sean climáticos, crónicos y/o agudos, así como la escala temporal y geográfica de la actividad económica."]
["¿Qué es una actividad que facilita la adaptación? \nUna actividad económica posibilita la adaptación si reduce el riesgo climático físico material y la vulnerabilidad en otras actividades económicas, comunidades, ecosistemas o ciudades, y/o aborda los obstáculos sistémicos a la adaptación. Esto es posible a través del uso de la tecnología y la creación de un producto o servicio especializado."]
[]
[]
["A1. Reducción de los riesgos climáticos físicos materiales."]
["La actividad económica debe reducir todos los riesgos climáticos físicos materiales para las actividades evaluadas, en la medida de lo posible y sobre la base del mejor esfuerzo. Selecciona las respuestas en las listas desplegables"]
["¿La actividad económica integra medidas destinadas a reducir, en la medida de lo posible y sobre la base del mejor esfuerzo, los riesgos climáticos físicos materiales para esa actividad, que han sido identificados mediante una evaluación de riesgos?",null,null,null,null,"Sí",{"$f":"IF(F347=\"Seleccione\",\"Por definir\",IF(F347=\"Sí\",\"El primer criterio se cumple satisfactoriamente\",\"Al no cumplir con este criterio, no es posible generar contribución sustancial\"))","v":"El primer criterio se cumple satisfactoriamente"},"Las tres condiciones deben cumplirse para argumentar que la actividad tiene contribución sustancial"]
["¿Esta evaluación considera tanto la variabilidad meteorológica actual, como el cambio climático futuro, incluidos los escenarios climáticos, así como la incertidumbre?",null,null,null,null,"Sí",{"$f":"IF(F348=\"Seleccione\",\"Por definir\",IF(F348=\"Sí\",\"El segundo criterio se cumple satisfactoriamente\",\"Al no cumplir con este criterio, no es posible generar contribución sustancial\"))","v":"El segundo criterio se cumple satisfactoriamente"}]
["¿Igualmente la evaluación se basa en un sólido análisis de los datos e información disponible sobre los distintos escenarios climáticos, y es coherente con la duración prevista de la actividad?",null,null,null,null,"Sí",{"$f":"IF(F349=\"Seleccione\",\"Por definir\",IF(F349=\"Sí\",\"El tercer criterio se cumple satisfactoriamente\",\"Al no cumplir con este criterio, no es posible generar contribución sustancial\"))","v":"El tercer criterio se cumple satisfactoriamente"}]
[{"$f":"IF(OR(F347=\"Seleccione\",F348=\"Seleccione\",F349=\"Seleccione\"),\"Por definir\",IF(OR(F347=\"No\",F348=\"No\",F349=\"No\"),\"La actividad no genera contribución sustancial\", \"La actividad sí contribuye sustancialmente a la sostenibilidad\"))","v":"La actividad sí contribuye sustancialmente a la sostenibilidad"}]
[]
["A2. Apoyo a la adaptación del sistema. "]
["La actividad económica y sus medidas de adaptación no afectan negativamente los esfuerzos de adaptación de otras personas, la naturaleza y los bienes. Selecciona las respuestas en las listas desplegables"]
["¿La actividad económica y sus medidas de adaptación no aumentan los riesgos de un impacto climático adverso sobre otras personas, la naturaleza y los bienes?",null,null,null,null,"Sí",{"$f":"IF(F354=\"Seleccione\",\"Por definir\",IF(F354=\"Sí\",\"El primer criterio se cumple satisfactoriamente\",\"Al no cumplir con este criterio, no es posible generar contribución sustancial\"))","v":"El primer criterio se cumple satisfactoriamente"},"Las dos condiciones deben cumplirse para argumentar que la actividad tiene contribución sustancial"]
["¿La actividad económica y sus medidas de adaptación son consistentes con los esfuerzos de adaptación a nivel sectorial, regional y/o nacional?",null,null,null,null,"Sí",{"$f":"IF(F355=\"Seleccione\",\"Por definir\",IF(F355=\"Sí\",\"El segundo criterio se cumple satisfactoriamente\",\"Al no cumplir con este criterio, no es posible generar contribución sustancial\"))","v":"El segundo criterio se cumple satisfactoriamente"}]
[{"$f":"IF(OR(F354=\"Seleccione\",F355=\"Seleccione\"),\"Por definir\",IF(OR(F354=\"No\",F355=\"No\"),\"La actividad no genera contribución sustancial\", \"La actividad sí contribuye sustancialmente a la sostenibilidad\"))","v":"La actividad sí contribuye sustancialmente a la sostenibilidad"}]
[]
["A3. Monitoreo de los resultados de adaptación."]
["En el contexto de la actividad evaluada, la reducción de los riesgos físicos se puede medir. Selecciona las respuestas en las listas desplegables"]
[" Los resultados de adaptación pueden ser monitoreados y medidos con base en indicadores. Considerando que los riesgos físicos evolucionan con el tiempo, el análisis de riesgos físicos debe llevarse a cabo con la frecuencia adecuada.  ¿Esto se evalúa dentro de la operación financiera y/o proyecto?",null,null,null,null,"Sí",{"$f":"IF(F360=\"Seleccione\",\"Por definir\",IF(F360=\"Sí\",\"La actividad sí contribuye sustancialmente a la sostenbilidad\",\"El proyecto no genera contribución sustancial\"))","v":"La actividad sí contribuye sustancialmente a la sostenbilidad"}]
[]
["B1. Apoyar a la adaptación de otras actividades económicas."]
["La actividad económica reduce el riesgo climático físico material en otras actividades económicas y/o aborda los obstáculos sistémicos para la adaptación. Las actividades que permiten la adaptación incluyen, pero no se limitan a, actividades que promueven una tecnología, un producto, una práctica, un proceso de gobernanza o usos innovadores de tecnologías, productos o prácticas existentes (incluidos los relacionados con las infraestructuras naturales). Además, eliminan las barreras de información, financieras, tecnológicas y de capacidad para la adaptación de otros. Selecciona las respuestas en las listas desplegables"]
["¿Se realiza una evaluación de los riesgos resultantes, con base en datos sólidos, tanto de la variabilidad  meteorológica actual como del cambio climático futuro, incluidos los escenarios climáticos, así como  la incertidumbre, que la actividad económica contribuirá a abordar?",null,null,null,null,"Sí",{"$f":"IF(F364=\"Seleccione\",\"Por definir\",IF(F364=\"Sí\",\"El primer criterio se cumple satisfactoriamente\",\"Al no cumplir con este criterio, no es posible generar contribución sustancial\"))","v":"El primer criterio se cumple satisfactoriamente"},"Las tres condiciones en caso de que apliquen deben cumplirse para argumentar que la actividad tiene contribución sustancial. La tercera opción podría no aplicar. En este caso se evaluaran las primeras dos cuestiones"]
["¿Se realiza una evaluación de la eficacia de la contribución de la actividad económica a la reducción de los riesgos físicos, teniendo en cuenta la escala de exposición y la vulnerabilidad a los mismos?",null,null,null,null,"Sí",{"$f":"IF(F365=\"Seleccione\",\"Por definir\",IF(F365=\"Sí\",\"El segundo criterio se cumple satisfactoriamente\",\"Al no cumplir con este criterio, no es posible generar contribución sustancial\"))","v":"El segundo criterio se cumple satisfactoriamente"}]
["En el caso de una infraestructura vinculada a una actividad que permita la adaptación, dicha infraestructura debe cumplir también los criterios de selección A1, A2 y A3. ¿Esto se cumple en el contexto del proyecto?",null,null,null,null,"Sí",{"$f":"IF(F366=\"Seleccione\",\"Por definir\",IF(F366=\"Sí\",\"El tercer criterio se cumple satisfactoriamente\",IF(F366=\"No aplica\",\"No aplica\",\"El proyecto no genera contribución sustancial\")))","v":"El tercer criterio se cumple satisfactoriamente"}]
[{"$f":"IF(OR(F364=\"Seleccione\",F365=\"Seleccione\",F366=\"Seleccione\"),\"Por definir\",IF(OR(F364=\"No\",F365=\"No\",F366=\"No\"),\"La actividad no genera contribución sustancial\",\"La actividad sí contribuye sustancialmente a la sostenibilidad\"))","v":"La actividad sí contribuye sustancialmente a la sostenibilidad"}]
[]
["485210. Transporte colectivo foráneo de pasajeros de ruta fija"]
["Responde las siguientes preguntas seleccionando una respuesta de la lista"]
[]
["1. La actividad que estás evaluando es una actividad adaptada o una actividad que facilita la adaptación?",null,null,"Actividad que facilita la adaptación e incluye desarrollo de infraestructura"]
[]
["¿Qué es una actividad adaptada?\nUna actividad económica se adapta a los riesgos climáticos físicos materiales, si integra medidas y/o soluciones para reducirlos, mientras garantiza que la actividad económica pueda funcionar bien en un clima cambiante. Estas actividades de adaptación se desarrollan a partir de la evaluación de riesgos actuales y futuros, ya sean climáticos, crónicos y/o agudos, así como la escala temporal y geográfica de la actividad económica."]
["¿Qué es una actividad que facilita la adaptación? \nUna actividad económica posibilita la adaptación si reduce el riesgo climático físico material y la vulnerabilidad en otras actividades económicas, comunidades, ecosistemas o ciudades, y/o aborda los obstáculos sistémicos a la adaptación. Esto es posible a través del uso de la tecnología y la creación de un producto o servicio especializado."]
[]
[]
["A1. Reducción de los riesgos climáticos físicos materiales."]
["La actividad económica debe reducir todos los riesgos climáticos físicos materiales para las actividades evaluadas, en la medida de lo posible y sobre la base del mejor esfuerzo. Selecciona las respuestas en las listas desplegables"]
["¿La actividad económica integra medidas destinadas a reducir, en la medida de lo posible y sobre la base del mejor esfuerzo, los riesgos climáticos físicos materiales para esa actividad, que han sido identificados mediante una evaluación de riesgos?",null,null,null,null,"Sí",{"$f":"IF(F380=\"Seleccione\",\"Por definir\",IF(F380=\"Sí\",\"El primer criterio se cumple satisfactoriamente\",\"Al no cumplir con este criterio, no es posible generar contribución sustancial\"))","v":"El primer criterio se cumple satisfactoriamente"},"Las tres condiciones deben cumplirse para argumentar que la actividad tiene contribución sustancial"]
["¿Esta evaluación considera tanto la variabilidad meteorológica actual, como el cambio climático futuro, incluidos los escenarios climáticos, así como la incertidumbre?",null,null,null,null,"Sí",{"$f":"IF(F381=\"Seleccione\",\"Por definir\",IF(F381=\"Sí\",\"El segundo criterio se cumple satisfactoriamente\",\"Al no cumplir con este criterio, no es posible generar contribución sustancial\"))","v":"El segundo criterio se cumple satisfactoriamente"}]
["¿Igualmente la evaluación se basa en un sólido análisis de los datos e información disponible sobre los distintos escenarios climáticos, y es coherente con la duración prevista de la actividad?",null,null,null,null,"Sí",{"$f":"IF(F382=\"Seleccione\",\"Por definir\",IF(F382=\"Sí\",\"El tercer criterio se cumple satisfactoriamente\",\"Al no cumplir con este criterio, no es posible generar contribución sustancial\"))","v":"El tercer criterio se cumple satisfactoriamente"}]
[{"$f":"IF(OR(F380=\"Seleccione\",F381=\"Seleccione\",F382=\"Seleccione\"),\"Por definir\",IF(OR(F380=\"No\",F381=\"No\",F382=\"No\"),\"La actividad no genera contribución sustancial\", \"La actividad sí contribuye sustancialmente a la sostenibilidad\"))","v":"La actividad sí contribuye sustancialmente a la sostenibilidad"}]
[]
["A2. Apoyo a la adaptación del sistema. "]
["La actividad económica y sus medidas de adaptación no afectan negativamente los esfuerzos de adaptación de otras personas, la naturaleza y los bienes. Selecciona las respuestas en las listas desplegables"]
["¿La actividad económica y sus medidas de adaptación no aumentan los riesgos de un impacto climático adverso sobre otras personas, la naturaleza y los bienes?",null,null,null,null,"Sí",{"$f":"IF(F387=\"Seleccione\",\"Por definir\",IF(F387=\"Sí\",\"El primer criterio se cumple satisfactoriamente\",\"Al no cumplir con este criterio, no es posible generar contribución sustancial\"))","v":"El primer criterio se cumple satisfactoriamente"},"Las dos condiciones deben cumplirse para argumentar que la actividad tiene contribución sustancial"]
["¿La actividad económica y sus medidas de adaptación son consistentes con los esfuerzos de adaptación a nivel sectorial, regional y/o nacional?",null,null,null,null,"Sí",{"$f":"IF(F388=\"Seleccione\",\"Por definir\",IF(F388=\"Sí\",\"El segundo criterio se cumple satisfactoriamente\",\"Al no cumplir con este criterio, no es posible generar contribución sustancial\"))","v":"El segundo criterio se cumple satisfactoriamente"}]
[{"$f":"IF(OR(F387=\"Seleccione\",F388=\"Seleccione\"),\"Por definir\",IF(OR(F387=\"No\",F388=\"No\"),\"La actividad no genera contribución sustancial\", \"La actividad sí contribuye sustancialmente a la sostenibilidad\"))","v":"La actividad sí contribuye sustancialmente a la sostenibilidad"}]
[]
["A3. Monitoreo de los resultados de adaptación."]
["En el contexto de la actividad evaluada, la reducción de los riesgos físicos se puede medir. Selecciona las respuestas en las listas desplegables"]
[" Los resultados de adaptación pueden ser monitoreados y medidos con base en indicadores. Considerando que los riesgos físicos evolucionan con el tiempo, el análisis de riesgos físicos debe llevarse a cabo con la frecuencia adecuada.  ¿Esto se evalúa dentro de la operación financiera y/o proyecto?",null,null,null,null,"Sí",{"$f":"IF(F393=\"Seleccione\",\"Por definir\",IF(F393=\"Sí\",\"La actividad sí contribuye sustancialmente a la sostenbilidad\",\"El proyecto no genera contribución sustancial\"))","v":"La actividad sí contribuye sustancialmente a la sostenbilidad"}]
[]
["B1. Apoyar a la adaptación de otras actividades económicas."]
["La actividad económica reduce el riesgo climático físico material en otras actividades económicas y/o aborda los obstáculos sistémicos para la adaptación. Las actividades que permiten la adaptación incluyen, pero no se limitan a, actividades que promueven una tecnología, un producto, una práctica, un proceso de gobernanza o usos innovadores de tecnologías, productos o prácticas existentes (incluidos los relacionados con las infraestructuras naturales). Además, eliminan las barreras de información, financieras, tecnológicas y de capacidad para la adaptación de otros. Selecciona las respuestas en las listas desplegables"]
["¿Se realiza una evaluación de los riesgos resultantes, con base en datos sólidos, tanto de la variabilidad  meteorológica actual como del cambio climático futuro, incluidos los escenarios climáticos, así como  la incertidumbre, que la actividad económica contribuirá a abordar?",null,null,null,null,"Sí",{"$f":"IF(F397=\"Seleccione\",\"Por definir\",IF(F397=\"Sí\",\"El primer criterio se cumple satisfactoriamente\",\"Al no cumplir con este criterio, no es posible generar contribución sustancial\"))","v":"El primer criterio se cumple satisfactoriamente"},"Las tres condiciones en caso de que apliquen deben cumplirse para argumentar que la actividad tiene contribución sustancial. La tercera opción podría no aplicar. En este caso se evaluaran las primeras dos cuestiones"]
["¿Se realiza una evaluación de la eficacia de la contribución de la actividad económica a la reducción de los riesgos físicos, teniendo en cuenta la escala de exposición y la vulnerabilidad a los mismos?",null,null,null,null,"Sí",{"$f":"IF(F398=\"Seleccione\",\"Por definir\",IF(F398=\"Sí\",\"El segundo criterio se cumple satisfactoriamente\",\"Al no cumplir con este criterio, no es posible generar contribución sustancial\"))","v":"El segundo criterio se cumple satisfactoriamente"}]
["En el caso de una infraestructura vinculada a una actividad que permita la adaptación, dicha infraestructura debe cumplir también los criterios de selección A1, A2 y A3. ¿Esto se cumple en el contexto del proyecto?",null,null,null,null,"Sí",{"$f":"IF(F399=\"Seleccione\",\"Por definir\",IF(F399=\"Sí\",\"El tercer criterio se cumple satisfactoriamente\",IF(F399=\"No aplica\",\"No aplica\",\"El proyecto no genera contribución sustancial\")))","v":"El tercer criterio se cumple satisfactoriamente"}]
[{"$f":"IF(OR(F397=\"Seleccione\",F398=\"Seleccione\",F399=\"Seleccione\"),\"Por definir\",IF(OR(F397=\"No\",F398=\"No\",F399=\"No\"),\"La actividad no genera contribución sustancial\",\"La actividad sí contribuye sustancialmente a la sostenibilidad\"))","v":"La actividad sí contribuye sustancialmente a la sostenibilidad"}]
[]
["485115. Transporte colectivo urbano y suburbano de pasajeros en autobuses que transitan en carril exclusivo (BRT)"]
["Responde las siguientes preguntas seleccionando una respuesta de la lista"]
[]
["1. La actividad que estás evaluando es una actividad adaptada o una actividad que facilita la adaptación?",null,null,"Actividad que facilita la adaptación e incluye desarrollo de infraestructura"]
[]
["¿Qué es una actividad adaptada?\nUna actividad económica se adapta a los riesgos climáticos físicos materiales, si integra medidas y/o soluciones para reducirlos, mientras garantiza que la actividad económica pueda funcionar bien en un clima cambiante. Estas actividades de adaptación se desarrollan a partir de la evaluación de riesgos actuales y futuros, ya sean climáticos, crónicos y/o agudos, así como la escala temporal y geográfica de la actividad económica."]
["¿Qué es una actividad que facilita la adaptación? \nUna actividad económica posibilita la adaptación si reduce el riesgo climático físico material y la vulnerabilidad en otras actividades económicas, comunidades, ecosistemas o ciudades, y/o aborda los obstáculos sistémicos a la adaptación. Esto es posible a través del uso de la tecnología y la creación de un producto o servicio especializado."]
[]
[]
["A1. Reducción de los riesgos climáticos físicos materiales."]
["La actividad económica debe reducir todos los riesgos climáticos físicos materiales para las actividades evaluadas, en la medida de lo posible y sobre la base del mejor esfuerzo. Selecciona las respuestas en las listas desplegables"]
["¿La actividad económica integra medidas destinadas a reducir, en la medida de lo posible y sobre la base del mejor esfuerzo, los riesgos climáticos físicos materiales para esa actividad, que han sido identificados mediante una evaluación de riesgos?",null,null,null,null,"Sí",{"$f":"IF(F413=\"Seleccione\",\"Por definir\",IF(F413=\"Sí\",\"El primer criterio se cumple satisfactoriamente\",\"Al no cumplir con este criterio, no es posible generar contribución sustancial\"))","v":"El primer criterio se cumple satisfactoriamente"},"Las tres condiciones deben cumplirse para argumentar que la actividad tiene contribución sustancial"]
["¿Esta evaluación considera tanto la variabilidad meteorológica actual, como el cambio climático futuro, incluidos los escenarios climáticos, así como la incertidumbre?",null,null,null,null,"Sí",{"$f":"IF(F414=\"Seleccione\",\"Por definir\",IF(F414=\"Sí\",\"El segundo criterio se cumple satisfactoriamente\",\"Al no cumplir con este criterio, no es posible generar contribución sustancial\"))","v":"El segundo criterio se cumple satisfactoriamente"}]
["¿Igualmente la evaluación se basa en un sólido análisis de los datos e información disponible sobre los distintos escenarios climáticos, y es coherente con la duración prevista de la actividad?",null,null,null,null,"Sí",{"$f":"IF(F415=\"Seleccione\",\"Por definir\",IF(F415=\"Sí\",\"El tercer criterio se cumple satisfactoriamente\",\"Al no cumplir con este criterio, no es posible generar contribución sustancial\"))","v":"El tercer criterio se cumple satisfactoriamente"}]
[{"$f":"IF(OR(F413=\"Seleccione\",F414=\"Seleccione\",F415=\"Seleccione\"),\"Por definir\",IF(OR(F413=\"No\",F414=\"No\",F415=\"No\"),\"La actividad no genera contribución sustancial\", \"La actividad sí contribuye sustancialmente a la sostenibilidad\"))","v":"La actividad sí contribuye sustancialmente a la sostenibilidad"}]
[]
["A2. Apoyo a la adaptación del sistema. "]
["La actividad económica y sus medidas de adaptación no afectan negativamente los esfuerzos de adaptación de otras personas, la naturaleza y los bienes. Selecciona las respuestas en las listas desplegables"]
["¿La actividad económica y sus medidas de adaptación no aumentan los riesgos de un impacto climático adverso sobre otras personas, la naturaleza y los bienes?",null,null,null,null,"Sí",{"$f":"IF(F420=\"Seleccione\",\"Por definir\",IF(F420=\"Sí\",\"El primer criterio se cumple satisfactoriamente\",\"Al no cumplir con este criterio, no es posible generar contribución sustancial\"))","v":"El primer criterio se cumple satisfactoriamente"},"Las dos condiciones deben cumplirse para argumentar que la actividad tiene contribución sustancial"]
["¿La actividad económica y sus medidas de adaptación son consistentes con los esfuerzos de adaptación a nivel sectorial, regional y/o nacional?",null,null,null,null,"Sí",{"$f":"IF(F421=\"Seleccione\",\"Por definir\",IF(F421=\"Sí\",\"El segundo criterio se cumple satisfactoriamente\",\"Al no cumplir con este criterio, no es posible generar contribución sustancial\"))","v":"El segundo criterio se cumple satisfactoriamente"}]
[{"$f":"IF(OR(F420=\"Seleccione\",F421=\"Seleccione\"),\"Por definir\",IF(OR(F420=\"No\",F421=\"No\"),\"La actividad no genera contribución sustancial\", \"La actividad sí contribuye sustancialmente a la sostenibilidad\"))","v":"La actividad sí contribuye sustancialmente a la sostenibilidad"}]
[]
["A3. Monitoreo de los resultados de adaptación."]
["En el contexto de la actividad evaluada, la reducción de los riesgos físicos se puede medir. Selecciona las respuestas en las listas desplegables"]
[" Los resultados de adaptación pueden ser monitoreados y medidos con base en indicadores. Considerando que los riesgos físicos evolucionan con el tiempo, el análisis de riesgos físicos debe llevarse a cabo con la frecuencia adecuada.  ¿Esto se evalúa dentro de la operación financiera y/o proyecto?",null,null,null,null,"Sí",{"$f":"IF(F426=\"Seleccione\",\"Por definir\",IF(F426=\"Sí\",\"La actividad sí contribuye sustancialmente a la sostenbilidad\",\"El proyecto no genera contribución sustancial\"))","v":"La actividad sí contribuye sustancialmente a la sostenbilidad"}]
[]
["B1. Apoyar a la adaptación de otras actividades económicas."]
["La actividad económica reduce el riesgo climático físico material en otras actividades económicas y/o aborda los obstáculos sistémicos para la adaptación. Las actividades que permiten la adaptación incluyen, pero no se limitan a, actividades que promueven una tecnología, un producto, una práctica, un proceso de gobernanza o usos innovadores de tecnologías, productos o prácticas existentes (incluidos los relacionados con las infraestructuras naturales). Además, eliminan las barreras de información, financieras, tecnológicas y de capacidad para la adaptación de otros. Selecciona las respuestas en las listas desplegables"]
["¿Se realiza una evaluación de los riesgos resultantes, con base en datos sólidos, tanto de la variabilidad  meteorológica actual como del cambio climático futuro, incluidos los escenarios climáticos, así como  la incertidumbre, que la actividad económica contribuirá a abordar?",null,null,null,null,"Sí",{"$f":"IF(F430=\"Seleccione\",\"Por definir\",IF(F430=\"Sí\",\"El primer criterio se cumple satisfactoriamente\",\"Al no cumplir con este criterio, no es posible generar contribución sustancial\"))","v":"El primer criterio se cumple satisfactoriamente"},"Las tres condiciones en caso de que apliquen deben cumplirse para argumentar que la actividad tiene contribución sustancial. La tercera opción podría no aplicar. En este caso se evaluaran las primeras dos cuestiones"]
["¿Se realiza una evaluación de la eficacia de la contribución de la actividad económica a la reducción de los riesgos físicos, teniendo en cuenta la escala de exposición y la vulnerabilidad a los mismos?",null,null,null,null,"Sí",{"$f":"IF(F431=\"Seleccione\",\"Por definir\",IF(F431=\"Sí\",\"El segundo criterio se cumple satisfactoriamente\",\"Al no cumplir con este criterio, no es posible generar contribución sustancial\"))","v":"El segundo criterio se cumple satisfactoriamente"}]
["En el caso de una infraestructura vinculada a una actividad que permita la adaptación, dicha infraestructura debe cumplir también los criterios de selección A1, A2 y A3. ¿Esto se cumple en el contexto del proyecto?",null,null,null,null,"Sí",{"$f":"IF(F432=\"Seleccione\",\"Por definir\",IF(F432=\"Sí\",\"El tercer criterio se cumple satisfactoriamente\",IF(F432=\"No aplica\",\"No aplica\",\"El proyecto no genera contribución sustancial\")))","v":"El tercer criterio se cumple satisfactoriamente"}]
[{"$f":"IF(OR(F430=\"Seleccione\",F431=\"Seleccione\",F432=\"Seleccione\"),\"Por definir\",IF(OR(F430=\"No\",F431=\"No\",F432=\"No\"),\"La actividad no genera contribución sustancial\",\"La actividad sí contribuye sustancialmente a la sostenibilidad\"))","v":"La actividad sí contribuye sustancialmente a la sostenibilidad"}]
[]
["487110. Transporte turístico por tierra"]
["Responde las siguientes preguntas seleccionando una respuesta de la lista"]
[]
["1. La actividad que estás evaluando es una actividad adaptada o una actividad que facilita la adaptación?",null,null,"Actividad que facilita la adaptación e incluye desarrollo de infraestructura"]
[]
["¿Qué es una actividad adaptada?\nUna actividad económica se adapta a los riesgos climáticos físicos materiales, si integra medidas y/o soluciones para reducirlos, mientras garantiza que la actividad económica pueda funcionar bien en un clima cambiante. Estas actividades de adaptación se desarrollan a partir de la evaluación de riesgos actuales y futuros, ya sean climáticos, crónicos y/o agudos, así como la escala temporal y geográfica de la actividad económica."]
["¿Qué es una actividad que facilita la adaptación? \nUna actividad económica posibilita la adaptación si reduce el riesgo climático físico material y la vulnerabilidad en otras actividades económicas, comunidades, ecosistemas o ciudades, y/o aborda los obstáculos sistémicos a la adaptación. Esto es posible a través del uso de la tecnología y la creación de un producto o servicio especializado."]
[]
[]
["A1. Reducción de los riesgos climáticos físicos materiales."]
["La actividad económica debe reducir todos los riesgos climáticos físicos materiales para las actividades evaluadas, en la medida de lo posible y sobre la base del mejor esfuerzo. Selecciona las respuestas en las listas desplegables"]
["¿La actividad económica integra medidas destinadas a reducir, en la medida de lo posible y sobre la base del mejor esfuerzo, los riesgos climáticos físicos materiales para esa actividad, que han sido identificados mediante una evaluación de riesgos?",null,null,null,null,"Sí",{"$f":"IF(F446=\"Seleccione\",\"Por definir\",IF(F446=\"Sí\",\"El primer criterio se cumple satisfactoriamente\",\"Al no cumplir con este criterio, no es posible generar contribución sustancial\"))","v":"El primer criterio se cumple satisfactoriamente"},"Las tres condiciones deben cumplirse para argumentar que la actividad tiene contribución sustancial"]
["¿Esta evaluación considera tanto la variabilidad meteorológica actual, como el cambio climático futuro, incluidos los escenarios climáticos, así como la incertidumbre?",null,null,null,null,"Sí",{"$f":"IF(F447=\"Seleccione\",\"Por definir\",IF(F447=\"Sí\",\"El segundo criterio se cumple satisfactoriamente\",\"Al no cumplir con este criterio, no es posible generar contribución sustancial\"))","v":"El segundo criterio se cumple satisfactoriamente"}]
["¿Igualmente la evaluación se basa en un sólido análisis de los datos e información disponible sobre los distintos escenarios climáticos, y es coherente con la duración prevista de la actividad?",null,null,null,null,"Sí",{"$f":"IF(F448=\"Seleccione\",\"Por definir\",IF(F448=\"Sí\",\"El tercer criterio se cumple satisfactoriamente\",\"Al no cumplir con este criterio, no es posible generar contribución sustancial\"))","v":"El tercer criterio se cumple satisfactoriamente"}]
[{"$f":"IF(OR(F446=\"Seleccione\",F447=\"Seleccione\",F448=\"Seleccione\"),\"Por definir\",IF(OR(F446=\"No\",F447=\"No\",F448=\"No\"),\"La actividad no genera contribución sustancial\", \"La actividad sí contribuye sustancialmente a la sostenibilidad\"))","v":"La actividad sí contribuye sustancialmente a la sostenibilidad"}]
[]
["A2. Apoyo a la adaptación del sistema. "]
["La actividad económica y sus medidas de adaptación no afectan negativamente los esfuerzos de adaptación de otras personas, la naturaleza y los bienes. Selecciona las respuestas en las listas desplegables"]
["¿La actividad económica y sus medidas de adaptación no aumentan los riesgos de un impacto climático adverso sobre otras personas, la naturaleza y los bienes?",null,null,null,null,"Sí",{"$f":"IF(F453=\"Seleccione\",\"Por definir\",IF(F453=\"Sí\",\"El primer criterio se cumple satisfactoriamente\",\"Al no cumplir con este criterio, no es posible generar contribución sustancial\"))","v":"El primer criterio se cumple satisfactoriamente"},"Las dos condiciones deben cumplirse para argumentar que la actividad tiene contribución sustancial"]
["¿La actividad económica y sus medidas de adaptación son consistentes con los esfuerzos de adaptación a nivel sectorial, regional y/o nacional?",null,null,null,null,"Sí",{"$f":"IF(F454=\"Seleccione\",\"Por definir\",IF(F454=\"Sí\",\"El segundo criterio se cumple satisfactoriamente\",\"Al no cumplir con este criterio, no es posible generar contribución sustancial\"))","v":"El segundo criterio se cumple satisfactoriamente"}]
[{"$f":"IF(OR(F453=\"Seleccione\",F454=\"Seleccione\"),\"Por definir\",IF(OR(F453=\"No\",F454=\"No\"),\"La actividad no genera contribución sustancial\", \"La actividad sí contribuye sustancialmente a la sostenibilidad\"))","v":"La actividad sí contribuye sustancialmente a la sostenibilidad"}]
[]
["A3. Monitoreo de los resultados de adaptación."]
["En el contexto de la actividad evaluada, la reducción de los riesgos físicos se puede medir. Selecciona las respuestas en las listas desplegables"]
[" Los resultados de adaptación pueden ser monitoreados y medidos con base en indicadores. Considerando que los riesgos físicos evolucionan con el tiempo, el análisis de riesgos físicos debe llevarse a cabo con la frecuencia adecuada.  ¿Esto se evalúa dentro de la operación financiera y/o proyecto?",null,null,null,null,"Sí",{"$f":"IF(F459=\"Seleccione\",\"Por definir\",IF(F459=\"Sí\",\"La actividad sí contribuye sustancialmente a la sostenbilidad\",\"El proyecto no genera contribución sustancial\"))","v":"La actividad sí contribuye sustancialmente a la sostenbilidad"}]
[]
["B1. Apoyar a la adaptación de otras actividades económicas."]
["La actividad económica reduce el riesgo climático físico material en otras actividades económicas y/o aborda los obstáculos sistémicos para la adaptación. Las actividades que permiten la adaptación incluyen, pero no se limitan a, actividades que promueven una tecnología, un producto, una práctica, un proceso de gobernanza o usos innovadores de tecnologías, productos o prácticas existentes (incluidos los relacionados con las infraestructuras naturales). Además, eliminan las barreras de información, financieras, tecnológicas y de capacidad para la adaptación de otros. Selecciona las respuestas en las listas desplegables"]
["¿Se realiza una evaluación de los riesgos resultantes, con base en datos sólidos, tanto de la variabilidad  meteorológica actual como del cambio climático futuro, incluidos los escenarios climáticos, así como  la incertidumbre, que la actividad económica contribuirá a abordar?",null,null,null,null,"Sí",{"$f":"IF(F463=\"Seleccione\",\"Por definir\",IF(F463=\"Sí\",\"El primer criterio se cumple satisfactoriamente\",\"Al no cumplir con este criterio, no es posible generar contribución sustancial\"))","v":"El primer criterio se cumple satisfactoriamente"},"Las tres condiciones en caso de que apliquen deben cumplirse para argumentar que la actividad tiene contribución sustancial. La tercera opción podría no aplicar. En este caso se evaluaran las primeras dos cuestiones"]
["¿Se realiza una evaluación de la eficacia de la contribución de la actividad económica a la reducción de los riesgos físicos, teniendo en cuenta la escala de exposición y la vulnerabilidad a los mismos?",null,null,null,null,"Sí",{"$f":"IF(F464=\"Seleccione\",\"Por definir\",IF(F464=\"Sí\",\"El segundo criterio se cumple satisfactoriamente\",\"Al no cumplir con este criterio, no es posible generar contribución sustancial\"))","v":"El segundo criterio se cumple satisfactoriamente"}]
["En el caso de una infraestructura vinculada a una actividad que permita la adaptación, dicha infraestructura debe cumplir también los criterios de selección A1, A2 y A3. ¿Esto se cumple en el contexto del proyecto?",null,null,null,null,"Sí",{"$f":"IF(F465=\"Seleccione\",\"Por definir\",IF(F465=\"Sí\",\"El tercer criterio se cumple satisfactoriamente\",IF(F465=\"No aplica\",\"No aplica\",\"El proyecto no genera contribución sustancial\")))","v":"El tercer criterio se cumple satisfactoriamente"}]
[{"$f":"IF(OR(F463=\"Seleccione\",F464=\"Seleccione\",F465=\"Seleccione\"),\"Por definir\",IF(OR(F463=\"No\",F464=\"No\",F465=\"No\"),\"La actividad no genera contribución sustancial\",\"La actividad sí contribuye sustancialmente a la sostenibilidad\"))","v":"La actividad sí contribuye sustancialmente a la sostenibilidad"}]
[]
["485113. Transporte colectivo urbano y suburbano de pasajeros en trolebuses y trenes ligeros"]
["Responde las siguientes preguntas seleccionando una respuesta de la lista"]
[]
["1. La actividad que estás evaluando es una actividad adaptada o una actividad que facilita la adaptación?",null,null,"Actividad que facilita la adaptación e incluye desarrollo de infraestructura"]
[]
["¿Qué es una actividad adaptada?\nUna actividad económica se adapta a los riesgos climáticos físicos materiales, si integra medidas y/o soluciones para reducirlos, mientras garantiza que la actividad económica pueda funcionar bien en un clima cambiante. Estas actividades de adaptación se desarrollan a partir de la evaluación de riesgos actuales y futuros, ya sean climáticos, crónicos y/o agudos, así como la escala temporal y geográfica de la actividad económica."]
["¿Qué es una actividad que facilita la adaptación? \nUna actividad económica posibilita la adaptación si reduce el riesgo climático físico material y la vulnerabilidad en otras actividades económicas, comunidades, ecosistemas o ciudades, y/o aborda los obstáculos sistémicos a la adaptación. Esto es posible a través del uso de la tecnología y la creación de un producto o servicio especializado."]
[]
[]
["A1. Reducción de los riesgos climáticos físicos materiales."]
["La actividad económica debe reducir todos los riesgos climáticos físicos materiales para las actividades evaluadas, en la medida de lo posible y sobre la base del mejor esfuerzo. Selecciona las respuestas en las listas desplegables"]
["¿La actividad económica integra medidas destinadas a reducir, en la medida de lo posible y sobre la base del mejor esfuerzo, los riesgos climáticos físicos materiales para esa actividad, que han sido identificados mediante una evaluación de riesgos?",null,null,null,null,"Sí",{"$f":"IF(F479=\"Seleccione\",\"Por definir\",IF(F479=\"Sí\",\"El primer criterio se cumple satisfactoriamente\",\"Al no cumplir con este criterio, no es posible generar contribución sustancial\"))","v":"El primer criterio se cumple satisfactoriamente"},"Las tres condiciones deben cumplirse para argumentar que la actividad tiene contribución sustancial"]
["¿Esta evaluación considera tanto la variabilidad meteorológica actual, como el cambio climático futuro, incluidos los escenarios climáticos, así como la incertidumbre?",null,null,null,null,"Sí",{"$f":"IF(F480=\"Seleccione\",\"Por definir\",IF(F480=\"Sí\",\"El segundo criterio se cumple satisfactoriamente\",\"Al no cumplir con este criterio, no es posible generar contribución sustancial\"))","v":"El segundo criterio se cumple satisfactoriamente"}]
["¿Igualmente la evaluación se basa en un sólido análisis de los datos e información disponible sobre los distintos escenarios climáticos, y es coherente con la duración prevista de la actividad?",null,null,null,null,"Sí",{"$f":"IF(F481=\"Seleccione\",\"Por definir\",IF(F481=\"Sí\",\"El tercer criterio se cumple satisfactoriamente\",\"Al no cumplir con este criterio, no es posible generar contribución sustancial\"))","v":"El tercer criterio se cumple satisfactoriamente"}]
[{"$f":"IF(OR(F479=\"Seleccione\",F480=\"Seleccione\",F481=\"Seleccione\"),\"Por definir\",IF(OR(F479=\"No\",F480=\"No\",F481=\"No\"),\"La actividad no genera contribución sustancial\", \"La actividad sí contribuye sustancialmente a la sostenibilidad\"))","v":"La actividad sí contribuye sustancialmente a la sostenibilidad"}]
[]
["A2. Apoyo a la adaptación del sistema. "]
["La actividad económica y sus medidas de adaptación no afectan negativamente los esfuerzos de adaptación de otras personas, la naturaleza y los bienes. Selecciona las respuestas en las listas desplegables"]
["¿La actividad económica y sus medidas de adaptación no aumentan los riesgos de un impacto climático adverso sobre otras personas, la naturaleza y los bienes?",null,null,null,null,"Sí",{"$f":"IF(F486=\"Seleccione\",\"Por definir\",IF(F486=\"Sí\",\"El primer criterio se cumple satisfactoriamente\",\"Al no cumplir con este criterio, no es posible generar contribución sustancial\"))","v":"El primer criterio se cumple satisfactoriamente"},"Las dos condiciones deben cumplirse para argumentar que la actividad tiene contribución sustancial"]
["¿La actividad económica y sus medidas de adaptación son consistentes con los esfuerzos de adaptación a nivel sectorial, regional y/o nacional?",null,null,null,null,"Sí",{"$f":"IF(F487=\"Seleccione\",\"Por definir\",IF(F487=\"Sí\",\"El segundo criterio se cumple satisfactoriamente\",\"Al no cumplir con este criterio, no es posible generar contribución sustancial\"))","v":"El segundo criterio se cumple satisfactoriamente"}]
[{"$f":"IF(OR(F486=\"Seleccione\",F487=\"Seleccione\"),\"Por definir\",IF(OR(F486=\"No\",F487=\"No\"),\"La actividad no genera contribución sustancial\", \"La actividad sí contribuye sustancialmente a la sostenibilidad\"))","v":"La actividad sí contribuye sustancialmente a la sostenibilidad"}]
[]
["A3. Monitoreo de los resultados de adaptación."]
["En el contexto de la actividad evaluada, la reducción de los riesgos físicos se puede medir. Selecciona las respuestas en las listas desplegables"]
[" Los resultados de adaptación pueden ser monitoreados y medidos con base en indicadores. Considerando que los riesgos físicos evolucionan con el tiempo, el análisis de riesgos físicos debe llevarse a cabo con la frecuencia adecuada.  ¿Esto se evalúa dentro de la operación financiera y/o proyecto?",null,null,null,null,"Sí",{"$f":"IF(F492=\"Seleccione\",\"Por definir\",IF(F492=\"Sí\",\"La actividad sí contribuye sustancialmente a la sostenbilidad\",\"El proyecto no genera contribución sustancial\"))","v":"La actividad sí contribuye sustancialmente a la sostenbilidad"}]
[]
["B1. Apoyar a la adaptación de otras actividades económicas."]
["La actividad económica reduce el riesgo climático físico material en otras actividades económicas y/o aborda los obstáculos sistémicos para la adaptación. Las actividades que permiten la adaptación incluyen, pero no se limitan a, actividades que promueven una tecnología, un producto, una práctica, un proceso de gobernanza o usos innovadores de tecnologías, productos o prácticas existentes (incluidos los relacionados con las infraestructuras naturales). Además, eliminan las barreras de información, financieras, tecnológicas y de capacidad para la adaptación de otros. Selecciona las respuestas en las listas desplegables"]
["¿Se realiza una evaluación de los riesgos resultantes, con base en datos sólidos, tanto de la variabilidad  meteorológica actual como del cambio climático futuro, incluidos los escenarios climáticos, así como  la incertidumbre, que la actividad económica contribuirá a abordar?",null,null,null,null,"Sí",{"$f":"IF(F496=\"Seleccione\",\"Por definir\",IF(F496=\"Sí\",\"El primer criterio se cumple satisfactoriamente\",\"Al no cumplir con este criterio, no es posible generar contribución sustancial\"))","v":"El primer criterio se cumple satisfactoriamente"},"Las tres condiciones en caso de que apliquen deben cumplirse para argumentar que la actividad tiene contribución sustancial. La tercera opción podría no aplicar. En este caso se evaluaran las primeras dos cuestiones"]
["¿Se realiza una evaluación de la eficacia de la contribución de la actividad económica a la reducción de los riesgos físicos, teniendo en cuenta la escala de exposición y la vulnerabilidad a los mismos?",null,null,null,null,"Sí",{"$f":"IF(F497=\"Seleccione\",\"Por definir\",IF(F497=\"Sí\",\"El segundo criterio se cumple satisfactoriamente\",\"Al no cumplir con este criterio, no es posible generar contribución sustancial\"))","v":"El segundo criterio se cumple satisfactoriamente"}]
["En el caso de una infraestructura vinculada a una actividad que permita la adaptación, dicha infraestructura debe cumplir también los criterios de selección A1, A2 y A3. ¿Esto se cumple en el contexto del proyecto?",null,null,null,null,"Sí",{"$f":"IF(F498=\"Seleccione\",\"Por definir\",IF(F498=\"Sí\",\"El tercer criterio se cumple satisfactoriamente\",IF(F498=\"No aplica\",\"No aplica\",\"El proyecto no genera contribución sustancial\")))","v":"El tercer criterio se cumple satisfactoriamente"}]
[{"$f":"IF(OR(F496=\"Seleccione\",F497=\"Seleccione\",F498=\"Seleccione\"),\"Por definir\",IF(OR(F496=\"No\",F497=\"No\",F498=\"No\"),\"La actividad no genera contribución sustancial\",\"La actividad sí contribuye sustancialmente a la sostenibilidad\"))","v":"La actividad sí contribuye sustancialmente a la sostenibilidad"}]
[]
["485114. Transporte colectivo urbano y suburbano de pasajeros en metro"]
["Responde las siguientes preguntas seleccionando una respuesta de la lista"]
[]
["1. La actividad que estás evaluando es una actividad adaptada o una actividad que facilita la adaptación?",null,null,"Actividad que facilita la adaptación e incluye desarrollo de infraestructura"]
[]
["¿Qué es una actividad adaptada?\nUna actividad económica se adapta a los riesgos climáticos físicos materiales, si integra medidas y/o soluciones para reducirlos, mientras garantiza que la actividad económica pueda funcionar bien en un clima cambiante. Estas actividades de adaptación se desarrollan a partir de la evaluación de riesgos actuales y futuros, ya sean climáticos, crónicos y/o agudos, así como la escala temporal y geográfica de la actividad económica."]
["¿Qué es una actividad que facilita la adaptación? \nUna actividad económica posibilita la adaptación si reduce el riesgo climático físico material y la vulnerabilidad en otras actividades económicas, comunidades, ecosistemas o ciudades, y/o aborda los obstáculos sistémicos a la adaptación. Esto es posible a través del uso de la tecnología y la creación de un producto o servicio especializado."]
[]
[]
["A1. Reducción de los riesgos climáticos físicos materiales."]
["La actividad económica debe reducir todos los riesgos climáticos físicos materiales para las actividades evaluadas, en la medida de lo posible y sobre la base del mejor esfuerzo. Selecciona las respuestas en las listas desplegables"]
["¿La actividad económica integra medidas destinadas a reducir, en la medida de lo posible y sobre la base del mejor esfuerzo, los riesgos climáticos físicos materiales para esa actividad, que han sido identificados mediante una evaluación de riesgos?",null,null,null,null,"Sí",{"$f":"IF(F512=\"Seleccione\",\"Por definir\",IF(F512=\"Sí\",\"El primer criterio se cumple satisfactoriamente\",\"Al no cumplir con este criterio, no es posible generar contribución sustancial\"))","v":"El primer criterio se cumple satisfactoriamente"},"Las tres condiciones deben cumplirse para argumentar que la actividad tiene contribución sustancial"]
["¿Esta evaluación considera tanto la variabilidad meteorológica actual, como el cambio climático futuro, incluidos los escenarios climáticos, así como la incertidumbre?",null,null,null,null,"Sí",{"$f":"IF(F513=\"Seleccione\",\"Por definir\",IF(F513=\"Sí\",\"El segundo criterio se cumple satisfactoriamente\",\"Al no cumplir con este criterio, no es posible generar contribución sustancial\"))","v":"El segundo criterio se cumple satisfactoriamente"}]
["¿Igualmente la evaluación se basa en un sólido análisis de los datos e información disponible sobre los distintos escenarios climáticos, y es coherente con la duración prevista de la actividad?",null,null,null,null,"Sí",{"$f":"IF(F514=\"Seleccione\",\"Por definir\",IF(F514=\"Sí\",\"El tercer criterio se cumple satisfactoriamente\",\"Al no cumplir con este criterio, no es posible generar contribución sustancial\"))","v":"El tercer criterio se cumple satisfactoriamente"}]
[{"$f":"IF(OR(F512=\"Seleccione\",F513=\"Seleccione\",F514=\"Seleccione\"),\"Por definir\",IF(OR(F512=\"No\",F513=\"No\",F514=\"No\"),\"La actividad no genera contribución sustancial\", \"La actividad sí contribuye sustancialmente a la sostenibilidad\"))","v":"La actividad sí contribuye sustancialmente a la sostenibilidad"}]
[]
["A2. Apoyo a la adaptación del sistema. "]
["La actividad económica y sus medidas de adaptación no afectan negativamente los esfuerzos de adaptación de otras personas, la naturaleza y los bienes. Selecciona las respuestas en las listas desplegables"]
["¿La actividad económica y sus medidas de adaptación no aumentan los riesgos de un impacto climático adverso sobre otras personas, la naturaleza y los bienes?",null,null,null,null,"Sí",{"$f":"IF(F519=\"Seleccione\",\"Por definir\",IF(F519=\"Sí\",\"El primer criterio se cumple satisfactoriamente\",\"Al no cumplir con este criterio, no es posible generar contribución sustancial\"))","v":"El primer criterio se cumple satisfactoriamente"},"Las dos condiciones deben cumplirse para argumentar que la actividad tiene contribución sustancial"]
["¿La actividad económica y sus medidas de adaptación son consistentes con los esfuerzos de adaptación a nivel sectorial, regional y/o nacional?",null,null,null,null,"Sí",{"$f":"IF(F520=\"Seleccione\",\"Por definir\",IF(F520=\"Sí\",\"El segundo criterio se cumple satisfactoriamente\",\"Al no cumplir con este criterio, no es posible generar contribución sustancial\"))","v":"El segundo criterio se cumple satisfactoriamente"}]
[{"$f":"IF(OR(F519=\"Seleccione\",F520=\"Seleccione\"),\"Por definir\",IF(OR(F519=\"No\",F520=\"No\"),\"La actividad no genera contribución sustancial\", \"La actividad sí contribuye sustancialmente a la sostenibilidad\"))","v":"La actividad sí contribuye sustancialmente a la sostenibilidad"}]
[]
["A3. Monitoreo de los resultados de adaptación."]
["En el contexto de la actividad evaluada, la reducción de los riesgos físicos se puede medir. Selecciona las respuestas en las listas desplegables"]
[" Los resultados de adaptación pueden ser monitoreados y medidos con base en indicadores. Considerando que los riesgos físicos evolucionan con el tiempo, el análisis de riesgos físicos debe llevarse a cabo con la frecuencia adecuada.  ¿Esto se evalúa dentro de la operación financiera y/o proyecto?",null,null,null,null,"Sí",{"$f":"IF(F525=\"Seleccione\",\"Por definir\",IF(F525=\"Sí\",\"La actividad sí contribuye sustancialmente a la sostenbilidad\",\"El proyecto no genera contribución sustancial\"))","v":"La actividad sí contribuye sustancialmente a la sostenbilidad"}]
[]
["B1. Apoyar a la adaptación de otras actividades económicas."]
["La actividad económica reduce el riesgo climático físico material en otras actividades económicas y/o aborda los obstáculos sistémicos para la adaptación. Las actividades que permiten la adaptación incluyen, pero no se limitan a, actividades que promueven una tecnología, un producto, una práctica, un proceso de gobernanza o usos innovadores de tecnologías, productos o prácticas existentes (incluidos los relacionados con las infraestructuras naturales). Además, eliminan las barreras de información, financieras, tecnológicas y de capacidad para la adaptación de otros. Selecciona las respuestas en las listas desplegables"]
["¿Se realiza una evaluación de los riesgos resultantes, con base en datos sólidos, tanto de la variabilidad  meteorológica actual como del cambio climático futuro, incluidos los escenarios climáticos, así como  la incertidumbre, que la actividad económica contribuirá a abordar?",null,null,null,null,"Sí",{"$f":"IF(F529=\"Seleccione\",\"Por definir\",IF(F529=\"Sí\",\"El primer criterio se cumple satisfactoriamente\",\"Al no cumplir con este criterio, no es posible generar contribución sustancial\"))","v":"El primer criterio se cumple satisfactoriamente"},"Las tres condiciones en caso de que apliquen deben cumplirse para argumentar que la actividad tiene contribución sustancial. La tercera opción podría no aplicar. En este caso se evaluaran las primeras dos cuestiones"]
["¿Se realiza una evaluación de la eficacia de la contribución de la actividad económica a la reducción de los riesgos físicos, teniendo en cuenta la escala de exposición y la vulnerabilidad a los mismos?",null,null,null,null,"Sí",{"$f":"IF(F530=\"Seleccione\",\"Por definir\",IF(F530=\"Sí\",\"El segundo criterio se cumple satisfactoriamente\",\"Al no cumplir con este criterio, no es posible generar contribución sustancial\"))","v":"El segundo criterio se cumple satisfactoriamente"}]
["En el caso de una infraestructura vinculada a una actividad que permita la adaptación, dicha infraestructura debe cumplir también los criterios de selección A1, A2 y A3. ¿Esto se cumple en el contexto del proyecto?",null,null,null,null,"Sí",{"$f":"IF(F531=\"Seleccione\",\"Por definir\",IF(F531=\"Sí\",\"El tercer criterio se cumple satisfactoriamente\",IF(F531=\"No aplica\",\"No aplica\",\"El proyecto no genera contribución sustancial\")))","v":"El tercer criterio se cumple satisfactoriamente"}]
[{"$f":"IF(OR(F529=\"Seleccione\",F530=\"Seleccione\",F531=\"Seleccione\"),\"Por definir\",IF(OR(F529=\"No\",F530=\"No\",F531=\"No\"),\"La actividad no genera contribución sustancial\",\"La actividad sí contribuye sustancialmente a la sostenibilidad\"))","v":"La actividad sí contribuye sustancialmente a la sostenibilidad"}]
[]
["485311 (2). Vehículos ligeros"]
["Responde las siguientes preguntas seleccionando una respuesta de la lista"]
[]
["1. La actividad que estás evaluando es una actividad adaptada o una actividad que facilita la adaptación?",null,null,"Actividad que facilita la adaptación e incluye desarrollo de infraestructura"]
[]
["¿Qué es una actividad adaptada?\nUna actividad económica se adapta a los riesgos climáticos físicos materiales, si integra medidas y/o soluciones para reducirlos, mientras garantiza que la actividad económica pueda funcionar bien en un clima cambiante. Estas actividades de adaptación se desarrollan a partir de la evaluación de riesgos actuales y futuros, ya sean climáticos, crónicos y/o agudos, así como la escala temporal y geográfica de la actividad económica."]
["¿Qué es una actividad que facilita la adaptación? \nUna actividad económica posibilita la adaptación si reduce el riesgo climático físico material y la vulnerabilidad en otras actividades económicas, comunidades, ecosistemas o ciudades, y/o aborda los obstáculos sistémicos a la adaptación. Esto es posible a través del uso de la tecnología y la creación de un producto o servicio especializado."]
[]
[]
["A1. Reducción de los riesgos climáticos físicos materiales."]
["La actividad económica debe reducir todos los riesgos climáticos físicos materiales para las actividades evaluadas, en la medida de lo posible y sobre la base del mejor esfuerzo. Selecciona las respuestas en las listas desplegables"]
["¿La actividad económica integra medidas destinadas a reducir, en la medida de lo posible y sobre la base del mejor esfuerzo, los riesgos climáticos físicos materiales para esa actividad, que han sido identificados mediante una evaluación de riesgos?",null,null,null,null,"Sí",{"$f":"IF(F545=\"Seleccione\",\"Por definir\",IF(F545=\"Sí\",\"El primer criterio se cumple satisfactoriamente\",\"Al no cumplir con este criterio, no es posible generar contribución sustancial\"))","v":"El primer criterio se cumple satisfactoriamente"},"Las tres condiciones deben cumplirse para argumentar que la actividad tiene contribución sustancial"]
["¿Esta evaluación considera tanto la variabilidad meteorológica actual, como el cambio climático futuro, incluidos los escenarios climáticos, así como la incertidumbre?",null,null,null,null,"Sí",{"$f":"IF(F546=\"Seleccione\",\"Por definir\",IF(F546=\"Sí\",\"El segundo criterio se cumple satisfactoriamente\",\"Al no cumplir con este criterio, no es posible generar contribución sustancial\"))","v":"El segundo criterio se cumple satisfactoriamente"}]
["¿Igualmente la evaluación se basa en un sólido análisis de los datos e información disponible sobre los distintos escenarios climáticos, y es coherente con la duración prevista de la actividad?",null,null,null,null,"Sí",{"$f":"IF(F547=\"Seleccione\",\"Por definir\",IF(F547=\"Sí\",\"El tercer criterio se cumple satisfactoriamente\",\"Al no cumplir con este criterio, no es posible generar contribución sustancial\"))","v":"El tercer criterio se cumple satisfactoriamente"}]
[{"$f":"IF(OR(F545=\"Seleccione\",F546=\"Seleccione\",F547=\"Seleccione\"),\"Por definir\",IF(OR(F545=\"No\",F546=\"No\",F547=\"No\"),\"La actividad no genera contribución sustancial\", \"La actividad sí contribuye sustancialmente a la sostenibilidad\"))","v":"La actividad sí contribuye sustancialmente a la sostenibilidad"}]
[]
["A2. Apoyo a la adaptación del sistema. "]
["La actividad económica y sus medidas de adaptación no afectan negativamente los esfuerzos de adaptación de otras personas, la naturaleza y los bienes. Selecciona las respuestas en las listas desplegables"]
["¿La actividad económica y sus medidas de adaptación no aumentan los riesgos de un impacto climático adverso sobre otras personas, la naturaleza y los bienes?",null,null,null,null,"Sí",{"$f":"IF(F552=\"Seleccione\",\"Por definir\",IF(F552=\"Sí\",\"El primer criterio se cumple satisfactoriamente\",\"Al no cumplir con este criterio, no es posible generar contribución sustancial\"))","v":"El primer criterio se cumple satisfactoriamente"},"Las dos condiciones deben cumplirse para argumentar que la actividad tiene contribución sustancial"]
["¿La actividad económica y sus medidas de adaptación son consistentes con los esfuerzos de adaptación a nivel sectorial, regional y/o nacional?",null,null,null,null,"Sí",{"$f":"IF(F553=\"Seleccione\",\"Por definir\",IF(F553=\"Sí\",\"El segundo criterio se cumple satisfactoriamente\",\"Al no cumplir con este criterio, no es posible generar contribución sustancial\"))","v":"El segundo criterio se cumple satisfactoriamente"}]
[{"$f":"IF(OR(F552=\"Seleccione\",F553=\"Seleccione\"),\"Por definir\",IF(OR(F552=\"No\",F553=\"No\"),\"La actividad no genera contribución sustancial\", \"La actividad sí contribuye sustancialmente a la sostenibilidad\"))","v":"La actividad sí contribuye sustancialmente a la sostenibilidad"}]
[]
["A3. Monitoreo de los resultados de adaptación."]
["En el contexto de la actividad evaluada, la reducción de los riesgos físicos se puede medir. Selecciona las respuestas en las listas desplegables"]
[" Los resultados de adaptación pueden ser monitoreados y medidos con base en indicadores. Considerando que los riesgos físicos evolucionan con el tiempo, el análisis de riesgos físicos debe llevarse a cabo con la frecuencia adecuada.  ¿Esto se evalúa dentro de la operación financiera y/o proyecto?",null,null,null,null,"Sí",{"$f":"IF(F558=\"Seleccione\",\"Por definir\",IF(F558=\"Sí\",\"La actividad sí contribuye sustancialmente a la sostenbilidad\",\"El proyecto no genera contribución sustancial\"))","v":"La actividad sí contribuye sustancialmente a la sostenbilidad"}]
[]
["B1. Apoyar a la adaptación de otras actividades económicas."]
["La actividad económica reduce el riesgo climático físico material en otras actividades económicas y/o aborda los obstáculos sistémicos para la adaptación. Las actividades que permiten la adaptación incluyen, pero no se limitan a, actividades que promueven una tecnología, un producto, una práctica, un proceso de gobernanza o usos innovadores de tecnologías, productos o prácticas existentes (incluidos los relacionados con las infraestructuras naturales). Además, eliminan las barreras de información, financieras, tecnológicas y de capacidad para la adaptación de otros. Selecciona las respuestas en las listas desplegables"]
["¿Se realiza una evaluación de los riesgos resultantes, con base en datos sólidos, tanto de la variabilidad  meteorológica actual como del cambio climático futuro, incluidos los escenarios climáticos, así como  la incertidumbre, que la actividad económica contribuirá a abordar?",null,null,null,null,"Sí",{"$f":"IF(F562=\"Seleccione\",\"Por definir\",IF(F562=\"Sí\",\"El primer criterio se cumple satisfactoriamente\",\"Al no cumplir con este criterio, no es posible generar contribución sustancial\"))","v":"El primer criterio se cumple satisfactoriamente"},"Las tres condiciones en caso de que apliquen deben cumplirse para argumentar que la actividad tiene contribución sustancial. La tercera opción podría no aplicar. En este caso se evaluaran las primeras dos cuestiones"]
["¿Se realiza una evaluación de la eficacia de la contribución de la actividad económica a la reducción de los riesgos físicos, teniendo en cuenta la escala de exposición y la vulnerabilidad a los mismos?",null,null,null,null,"Sí",{"$f":"IF(F563=\"Seleccione\",\"Por definir\",IF(F563=\"Sí\",\"El segundo criterio se cumple satisfactoriamente\",\"Al no cumplir con este criterio, no es posible generar contribución sustancial\"))","v":"El segundo criterio se cumple satisfactoriamente"}]
["En el caso de una infraestructura vinculada a una actividad que permita la adaptación, dicha infraestructura debe cumplir también los criterios de selección A1, A2 y A3. ¿Esto se cumple en el contexto del proyecto?",null,null,null,null,"Sí",{"$f":"IF(F564=\"Seleccione\",\"Por definir\",IF(F564=\"Sí\",\"El tercer criterio se cumple satisfactoriamente\",IF(F564=\"No aplica\",\"No aplica\",\"El proyecto no genera contribución sustancial\")))","v":"El tercer criterio se cumple satisfactoriamente"}]
[{"$f":"IF(OR(F562=\"Seleccione\",F563=\"Seleccione\",F564=\"Seleccione\"),\"Por definir\",IF(OR(F562=\"No\",F563=\"No\",F564=\"No\"),\"La actividad no genera contribución sustancial\",\"La actividad sí contribuye sustancialmente a la sostenibilidad\"))","v":"La actividad sí contribuye sustancialmente a la sostenibilidad"}]
[]
["485311. Transporte de pasajeros en taxis de sitio"]
["Responde las siguientes preguntas seleccionando una respuesta de la lista"]
[]
["1. La actividad que estás evaluando es una actividad adaptada o una actividad que facilita la adaptación?",null,null,"Actividad que facilita la adaptación e incluye desarrollo de infraestructura"]
[]
["¿Qué es una actividad adaptada?\nUna actividad económica se adapta a los riesgos climáticos físicos materiales, si integra medidas y/o soluciones para reducirlos, mientras garantiza que la actividad económica pueda funcionar bien en un clima cambiante. Estas actividades de adaptación se desarrollan a partir de la evaluación de riesgos actuales y futuros, ya sean climáticos, crónicos y/o agudos, así como la escala temporal y geográfica de la actividad económica."]
["¿Qué es una actividad que facilita la adaptación? \nUna actividad económica posibilita la adaptación si reduce el riesgo climático físico material y la vulnerabilidad en otras actividades económicas, comunidades, ecosistemas o ciudades, y/o aborda los obstáculos sistémicos a la adaptación. Esto es posible a través del uso de la tecnología y la creación de un producto o servicio especializado."]
[]
[]
["A1. Reducción de los riesgos climáticos físicos materiales."]
["La actividad económica debe reducir todos los riesgos climáticos físicos materiales para las actividades evaluadas, en la medida de lo posible y sobre la base del mejor esfuerzo. Selecciona las respuestas en las listas desplegables"]
["¿La actividad económica integra medidas destinadas a reducir, en la medida de lo posible y sobre la base del mejor esfuerzo, los riesgos climáticos físicos materiales para esa actividad, que han sido identificados mediante una evaluación de riesgos?",null,null,null,null,"Sí",{"$f":"IF(F578=\"Seleccione\",\"Por definir\",IF(F578=\"Sí\",\"El primer criterio se cumple satisfactoriamente\",\"Al no cumplir con este criterio, no es posible generar contribución sustancial\"))","v":"El primer criterio se cumple satisfactoriamente"},"Las tres condiciones deben cumplirse para argumentar que la actividad tiene contribución sustancial"]
["¿Esta evaluación considera tanto la variabilidad meteorológica actual, como el cambio climático futuro, incluidos los escenarios climáticos, así como la incertidumbre?",null,null,null,null,"Sí",{"$f":"IF(F579=\"Seleccione\",\"Por definir\",IF(F579=\"Sí\",\"El segundo criterio se cumple satisfactoriamente\",\"Al no cumplir con este criterio, no es posible generar contribución sustancial\"))","v":"El segundo criterio se cumple satisfactoriamente"}]
["¿Igualmente la evaluación se basa en un sólido análisis de los datos e información disponible sobre los distintos escenarios climáticos, y es coherente con la duración prevista de la actividad?",null,null,null,null,"Sí",{"$f":"IF(F580=\"Seleccione\",\"Por definir\",IF(F580=\"Sí\",\"El tercer criterio se cumple satisfactoriamente\",\"Al no cumplir con este criterio, no es posible generar contribución sustancial\"))","v":"El tercer criterio se cumple satisfactoriamente"}]
[{"$f":"IF(OR(F578=\"Seleccione\",F579=\"Seleccione\",F580=\"Seleccione\"),\"Por definir\",IF(OR(F578=\"No\",F579=\"No\",F580=\"No\"),\"La actividad no genera contribución sustancial\", \"La actividad sí contribuye sustancialmente a la sostenibilidad\"))","v":"La actividad sí contribuye sustancialmente a la sostenibilidad"}]
[]
["A2. Apoyo a la adaptación del sistema. "]
["La actividad económica y sus medidas de adaptación no afectan negativamente los esfuerzos de adaptación de otras personas, la naturaleza y los bienes. Selecciona las respuestas en las listas desplegables"]
["¿La actividad económica y sus medidas de adaptación no aumentan los riesgos de un impacto climático adverso sobre otras personas, la naturaleza y los bienes?",null,null,null,null,"Sí",{"$f":"IF(F585=\"Seleccione\",\"Por definir\",IF(F585=\"Sí\",\"El primer criterio se cumple satisfactoriamente\",\"Al no cumplir con este criterio, no es posible generar contribución sustancial\"))","v":"El primer criterio se cumple satisfactoriamente"},"Las dos condiciones deben cumplirse para argumentar que la actividad tiene contribución sustancial"]
["¿La actividad económica y sus medidas de adaptación son consistentes con los esfuerzos de adaptación a nivel sectorial, regional y/o nacional?",null,null,null,null,"Sí",{"$f":"IF(F586=\"Seleccione\",\"Por definir\",IF(F586=\"Sí\",\"El segundo criterio se cumple satisfactoriamente\",\"Al no cumplir con este criterio, no es posible generar contribución sustancial\"))","v":"El segundo criterio se cumple satisfactoriamente"}]
[{"$f":"IF(OR(F585=\"Seleccione\",F586=\"Seleccione\"),\"Por definir\",IF(OR(F585=\"No\",F586=\"No\"),\"La actividad no genera contribución sustancial\", \"La actividad sí contribuye sustancialmente a la sostenibilidad\"))","v":"La actividad sí contribuye sustancialmente a la sostenibilidad"}]
[]
["A3. Monitoreo de los resultados de adaptación."]
["En el contexto de la actividad evaluada, la reducción de los riesgos físicos se puede medir. Selecciona las respuestas en las listas desplegables"]
[" Los resultados de adaptación pueden ser monitoreados y medidos con base en indicadores. Considerando que los riesgos físicos evolucionan con el tiempo, el análisis de riesgos físicos debe llevarse a cabo con la frecuencia adecuada.  ¿Esto se evalúa dentro de la operación financiera y/o proyecto?",null,null,null,null,"Sí",{"$f":"IF(F591=\"Seleccione\",\"Por definir\",IF(F591=\"Sí\",\"La actividad sí contribuye sustancialmente a la sostenbilidad\",\"El proyecto no genera contribución sustancial\"))","v":"La actividad sí contribuye sustancialmente a la sostenbilidad"}]
[]
["B1. Apoyar a la adaptación de otras actividades económicas."]
["La actividad económica reduce el riesgo climático físico material en otras actividades económicas y/o aborda los obstáculos sistémicos para la adaptación. Las actividades que permiten la adaptación incluyen, pero no se limitan a, actividades que promueven una tecnología, un producto, una práctica, un proceso de gobernanza o usos innovadores de tecnologías, productos o prácticas existentes (incluidos los relacionados con las infraestructuras naturales). Además, eliminan las barreras de información, financieras, tecnológicas y de capacidad para la adaptación de otros. Selecciona las respuestas en las listas desplegables"]
["¿Se realiza una evaluación de los riesgos resultantes, con base en datos sólidos, tanto de la variabilidad  meteorológica actual como del cambio climático futuro, incluidos los escenarios climáticos, así como  la incertidumbre, que la actividad económica contribuirá a abordar?",null,null,null,null,"Sí",{"$f":"IF(F595=\"Seleccione\",\"Por definir\",IF(F595=\"Sí\",\"El primer criterio se cumple satisfactoriamente\",\"Al no cumplir con este criterio, no es posible generar contribución sustancial\"))","v":"El primer criterio se cumple satisfactoriamente"},"Las tres condiciones en caso de que apliquen deben cumplirse para argumentar que la actividad tiene contribución sustancial. La tercera opción podría no aplicar. En este caso se evaluaran las primeras dos cuestiones"]
["¿Se realiza una evaluación de la eficacia de la contribución de la actividad económica a la reducción de los riesgos físicos, teniendo en cuenta la escala de exposición y la vulnerabilidad a los mismos?",null,null,null,null,"Sí",{"$f":"IF(F596=\"Seleccione\",\"Por definir\",IF(F596=\"Sí\",\"El segundo criterio se cumple satisfactoriamente\",\"Al no cumplir con este criterio, no es posible generar contribución sustancial\"))","v":"El segundo criterio se cumple satisfactoriamente"}]
["En el caso de una infraestructura vinculada a una actividad que permita la adaptación, dicha infraestructura debe cumplir también los criterios de selección A1, A2 y A3. ¿Esto se cumple en el contexto del proyecto?",null,null,null,null,"Sí",{"$f":"IF(F597=\"Seleccione\",\"Por definir\",IF(F597=\"Sí\",\"El tercer criterio se cumple satisfactoriamente\",IF(F597=\"No aplica\",\"No aplica\",\"El proyecto no genera contribución sustancial\")))","v":"El tercer criterio se cumple satisfactoriamente"}]
[{"$f":"IF(OR(F595=\"Seleccione\",F596=\"Seleccione\",F597=\"Seleccione\"),\"Por definir\",IF(OR(F595=\"No\",F596=\"No\",F597=\"No\"),\"La actividad no genera contribución sustancial\",\"La actividad sí contribuye sustancialmente a la sostenibilidad\"))","v":"La actividad sí contribuye sustancialmente a la sostenibilidad"}]

{"sheet":"Indice de género-Transporte","index":41,"n_rows":82,"n_cols":11,"rows_kept":82,"cut":false,"hidden":true,"merged":[[1,1,1,8],[3,0,3,8],[5,0,5,8],[7,0,9,0],[7,1,9,1],[7,2,7,5],[7,8,9,8],[8,2,8,5],[9,2,9,5],[12,0,15,0],[12,1,15,1],[12,2,12,5],[12,8,15,8],[13,2,13,5],[14,2,14,5],[15,2,15,5],[18,0,20,0],[18,1,20,1],[18,2,18,5],[18,8,20,8],[19,2,19,5],[20,2,20,5],[23,0,25,0],[23,1,25,1],[23,2,23,5],[23,8,25,8],[24,2,24,5],[25,2,25,5],[28,0,30,0],[28,1,30,1],[28,2,28,5],[28,8,30,8],[29,2,29,5],[30,2,30,5],[33,0,35,0],[33,1,35,1],[33,2,33,5],[33,8,35,8],[34,2,34,5],[35,2,35,5],[38,0,40,0],[38,1,40,1],[38,2,38,5],[38,8,40,8],[39,2,39,5],[40,2,40,5],[43,0,45,0],[43,1,45,1],[43,2,43,5],[43,8,45,8],[44,2,44,5],[45,2,45,5],[48,0,50,0],[48,1,50,1],[48,2,48,5],[48,8,50,8],[49,2,49,5],[50,2,50,5],[53,0,55,0],[53,1,55,1],[53,2,53,5],[53,8,55,8],[54,2,54,5],[55,2,55,5],[58,0,60,0],[58,1,60,1],[58,2,58,5],[58,8,60,8],[59,2,59,5],[60,2,60,5],[63,0,65,0],[63,1,65,1],[63,2,63,5],[63,8,65,8],[64,2,64,5],[65,2,65,5],[68,0,70,0],[68,1,70,1],[68,2,68,5],[68,8,70,8],[69,2,69,5],[70,2,70,5],[73,0,75,0],[73,1,75,1],[73,2,73,5],[73,8,75,8],[74,2,74,5],[75,2,75,5],[77,4,77,7],[78,4,78,7],[79,4,79,7],[80,4,80,7],[81,4,81,7]]}
[]
[null,"Índice de Igualdad de Género"]
[]
["La Igualdad de Género es considerada como un objetivo prioritario en la Taxonomía Sostenible de México. Es así que se han generado Criterios de Evaluación Técnica que permitan identificar inversiones que contribuyan al cierre de brechas de género. Al mismo tiempo, las métricas propuestas servirán como guía orientadora para los usuarios potenciales de la Taxonomía, de forma que puedan dirigir esfuerzos para generar una contribución sustancial a la igualdad de género. Este índice refleja, en una escala numérica, la contribución de las organizaciones a tres pilares de igualdad de género: 1) Trabajo Digno, 2) Bienestar e 3) Inclusión Social. Ello permite traducir los criterios cualitativos de estos tres pilares, a una métrica cuantitativa, a la cual es posible asignar un umbral para determinar un nivel de contribución sustancial para un objetivo social."]
[]
["Por favor, selecciona alguna de las opciones descritas en las casillas azules para cada pregunta. En función de la respuesta, se asignará un puntaje por bloque de preguntas, que al final será evaluado para conocer si el proyecto cumple con las condiciones presentes en el índice de igualdad de género"]
["Pilar",null,null,null,null,null,null,"Puntaje",null,null,{"$f":"IF(G7=\"No\",0,IF(G7=\"Sí de alcance parcial dentro de la organización\",1,IF(G7=\"Sí de alcance integral en la organización\",2,IF(G7=\"Sí de alcance que se extiende dentro y fuera de la organización\",3,\"\"))))","v":""}]
["1.1.1","Igualdad de remuneración","¿Existe una política y/o tabulador para todo el personal que establezca la igualdad de remuneración por un trabajo equivalente, conforme a la Ley Federal del Trabajo, y donde se puedan consultar los rangos salariales para los diferentes niveles dentro del centro de trabajo?",null,null,null,"Seleccione",{"$f":"IF(G8=\"No\",0,IF(G8=\"Sí de alcance parcial dentro de la organización\",1,IF(G8=\"Sí de alcance integral en la organización\",2,IF(G8=\"Sí de alcance que se extiende dentro y fuera de la organización\",3,\"\"))))","v":""},{"$f":"IF(OR(G8=\"Seleccione\",G9=\"Seleccione\",G10=\"Seleccione\"),\"Por favor completa las preguntas de este apartado del Índice\",IF(H11<3,\"Es necesario incrementar la ambición en alguno de los ejes evaluados para que el proyecto esté alineado al Índice de Igualdad de Género de la Taxonomía Sostenible de México\",\"El proyecto cuenta con la ambición necesaria para cerrar las brechas de género conforme al Índice de Igualdad de Género de la Taxonomía Sostenible de México\"))","v":"Por favor completa las preguntas de este apartado del Índice"}]
[null,null,"¿La organización realiza un análisis sistemático y periódico de las brechas de género en salarios, prestaciones y compensaciones de su personal?",null,null,null,"Seleccione",{"$f":"IF(G9=\"No\",0,IF(G9=\"Sí de alcance parcial dentro de la organización\",1,IF(G9=\"Sí de alcance integral en la organización\",2,IF(G9=\"Sí de alcance que se extiende dentro y fuera de la organización\",3,\"\"))))","v":""}]
[null,null,"¿La organización cuenta con un mecanismo para corregir los casos identificados con desigualdad en la remuneración?",null,null,null,"Seleccione",{"$f":"IF(G10=\"No\",0,IF(G10=\"Sí de alcance parcial dentro de la organización\",1,IF(G10=\"Sí de alcance integral en la organización\",2,\"\")))","v":""}]
[null,null,null,null,null,null,null,{"$f":"SUM(H8:H10)","v":0}]
[]
["1.2.1","Posibilidades de acceso, contratación, participación, permanencia y promoción","¿Tiene la organización una política o mecanismo que garantice la no discriminación e igualdad de oportunidades en el acceso, permanencia y desarrollo laboral?",null,null,null,"Seleccione",{"$f":"IF(G13=\"No\",0,IF(G13=\"Sí de alcance parcial dentro de la organización\",1,IF(G13=\"Sí de alcance integral en la organización\",2,IF(G13=\"Sí de alcance que se extiende dentro y fuera de la organización\",3,\"\"))))","v":""},{"$f":"IF(OR(G13=\"Seleccione\",G14=\"Seleccione\",G15=\"Seleccione\",G16=\"Seleccione\"),\"Por favor completa las preguntas de este apartado del Índice\",IF(H17<4,\"Es necesario incrementar la ambición en alguno de los ejes evaluados para que el proyecto esté alineado al Índice de Igualdad de Género de la Taxonomía Sostenible de México\",\"El proyecto cuenta con la ambición necesaria para cerrar las brechas de género conforme al Índice de Igualdad de Género de la Taxonomía Sostenible de México\"))","v":"Por favor completa las preguntas de este apartado del Índice"}]
[null,null,"¿Existen perfiles de puestos, anuncios de vacantes u ofertas de trabajo, documentación para entrevista de ingreso estructurada y/o exámenes o evaluaciones libres de sesgos sexistas o de discriminación?",null,null,null,"Seleccione",{"$f":"IF(G14=\"No\",0,IF(G14=\"Sí de alcance parcial dentro de la organización\",1,IF(G14=\"Sí de alcance integral en la organización\",2,IF(G14=\"Sí de alcance que se extiende dentro y fuera de la organización\",3,\"\"))))","v":""}]
[null,null,"¿Se cuenta con procesos transparentes y accesibles de movilidad horizontal y vertical libres de sesgos sexistas o discriminatorios?",null,null,null,"Seleccione",{"$f":"IF(G15=\"No\",0,IF(G15=\"Sí de alcance parcial dentro de la organización\",1,IF(G15=\"Sí de alcance integral en la organización\",2,IF(G15=\"Sí de alcance que se extiende dentro y fuera de la organización\",3,\"\"))))","v":""}]
[null,null,"¿La organización lleva a cabo capacitaciones extensivas al personal candidato o de la propia empresa como mecanismo de corrección (distintas al plan de capacitación) sobre sesgos de género para entrevistas laborales, para evaluaciones de desempeño o para procesos de reclutamiento, movilidad y  promoción?",null,null,null,"Seleccione",{"$f":"IF(G16=\"No\",0,IF(G16=\"Sí de alcance parcial dentro de la organización\",1,IF(G16=\"Sí de alcance integral en la organización\",2,IF(G16=\"Sí de alcance que se extiende dentro y fuera de la organización\",3,\"\"))))","v":""}]
[null,null,null,null,null,null,null,{"$f":"SUM(H13:H16)","v":0}]
[]
["1.2.2","Segregación Vertical y Horizontal","¿La organización cuenta con metas institucionales sobre diversidad de género en los diferentes equipos de trabajo?",null,null,null,"Seleccione",{"$f":"IF(G19=\"No\",0,IF(G19=\"Sí de alcance parcial dentro de la organización\",1,IF(G19=\"Sí de alcance integral en la organización\",2,IF(G19=\"Sí de alcance que se extiende dentro y fuera de la organización\",3,\"\"))))","v":""},{"$f":"IF(OR(G19=\"Seleccione\",G20=\"Seleccione\",G21=\"Seleccione\"),\"Por favor completa las preguntas de este apartado del Índice\",IF(H22<3,\"Es necesario incrementar la ambición en alguno de los ejes evaluados para que el proyecto esté alineado al Índice de Igualdad de Género de la Taxonomía Sostenible de México\",\"El proyecto cuenta con la ambición necesaria para cerrar las brechas de género conforme al Índice de Igualdad de Género de la Taxonomía Sostenible de México\"))","v":"Por favor completa las preguntas de este apartado del Índice"}]
[null,"1.2.2.2","¿La organización cuenta con un plan de acción para cerrar la brecha de participación laboral entre hombres y mujeres, entre los niveles jerárquicos, en el proceso de contratación y en las oportunidades de promoción?",null,null,null,"Seleccione",{"$f":"IF(G20=\"No\",0,IF(G20=\"Sí de alcance parcial dentro de la organización\",1,IF(G20=\"Sí de alcance integral en la organización\",2,\"\")))","v":""}]
[null,"1.2.2.3","¿El despliegue de los mecanismos de corrección para cerrar la brecha de participación se realiza conforme a la evaluación o medición continua de las brechas de género?",null,null,null,"Seleccione",{"$f":"IF(G21=\"No\",0,IF(G21=\"Sí de alcance parcial dentro de la organización\",1,IF(G21=\"Sí de alcance integral en la organización\",2,\"\")))","v":""}]
[null,null,null,null,null,null,null,{"$f":"SUM(H19:H21)","v":0}]
[]
["1.2.3","Igualdad de representatividad de mujeres y hombres en órganos de gobernanza corporativa","¿Existe una política de paridad entre mujeres y hombres (reglamentos, normas, documentos o protocolos internos) en el órgano de gobernanza corporativa (junta de gobierno) o en puestos de toma de decisión?",null,null,null,"Seleccione",{"$f":"IF(G24=\"No\",0,IF(G24=\"Sí de alcance parcial dentro de la organización\",1,IF(G24=\"Sí de alcance integral en la organización\",2,IF(G24=\"Sí de alcance que se extiende dentro y fuera de la organización\",3,\"\"))))","v":""},{"$f":"IF(OR(G24=\"Seleccione\",G25=\"Seleccione\",G26=\"Seleccione\"),\"Por favor completa las preguntas de este apartado del Índice\",IF(H27<2,\"Es necesario incrementar la ambición en alguno de los ejes evaluados para que el proyecto esté alineado al Índice de Igualdad de Género de la Taxonomía Sostenible de México\",\"El proyecto cuenta con la ambición necesaria para cerrar las brechas de género conforme al Índice de Igualdad de Género de la Taxonomía Sostenible de México\"))","v":"Por favor completa las preguntas de este apartado del Índice"}]
[null,"1.2.3.2","¿Existen mecanismos o acciones para promover la rotación hacia puestos directivos o de toma de decisión con perspectiva de género, o en su caso el proceso de designación no tienes sesgos de género?",null,null,null,"Seleccione",{"$f":"IF(G25=\"No\",0,IF(G25=\"Sí de alcance parcial dentro de la organización\",1,IF(G25=\"Sí de alcance integral en la organización\",2,\"\")))","v":""}]
[null,"1.2.3.3","¿La organización se somete a un análisis, interno o externo, de paridad de género institucional en sus puestos de alta dirección o gobierno corporativo, acorde a la política de transparencia que la rige?",null,null,null,"Seleccione",{"$f":"IF(G26=\"No\",0,IF(G26=\"Sí de alcance parcial dentro de la organización\",1,IF(G26=\"Sí de alcance integral en la organización\",2,IF(G26=\"Sí de alcance que se extiende dentro y fuera de la organización\",3,\"\"))))","v":""}]
[null,null,null,null,null,null,null,{"$f":"SUM(H24:H26)","v":0}]
[]
["1.2.4","Clima laboral y espacios de trabajo libres de violencia","¿La organización cuenta con políticas o áreas especializadas en diversidad e inclusión que promuevan relaciones igualitarias acompañadas de la implementación de prácticas de prevención contra la violencia de género (hostigamiento, acoso u otro)?",null,null,null,"Seleccione",{"$f":"IF(G29=\"No\",0,IF(G29=\"Sí de alcance parcial dentro de la organización\",1,IF(G29=\"Sí de alcance integral en la organización\",2,\"\")))","v":""},{"$f":"IF(OR(G29=\"Seleccione\",G30=\"Seleccione\",G31=\"Seleccione\"),\"Por favor completa las preguntas de este apartado del Índice\",IF(H32<2,\"Es necesario incrementar la ambición en alguno de los ejes evaluados para que el proyecto esté alineado al Índice de Igualdad de Género de la Taxonomía Sostenible de México\",\"El proyecto cuenta con la ambición necesaria para cerrar las brechas de género conforme al Índice de Igualdad de Género de la Taxonomía Sostenible de México\"))","v":"Por favor completa las preguntas de este apartado del Índice"}]
[null,"1.2.4.2","¿La organización cuenta con un grupo, comisión o Comité encargado de la vigilancia del desarrollo e implementación de prácticas contra la violencia y la discriminación de género en el centro de trabajo?",null,null,null,"Seleccione",{"$f":"IF(G30=\"No\",0,IF(G30=\"Sí de alcance parcial dentro de la organización\",1,IF(G30=\"Sí de alcance integral en la organización\",2,\"\")))","v":""}]
[null,"1.2.4.3","¿La organización cuenta con mecanismos de atención a actos de violencia detectados o de reparación de daños, cuyos resultados salvaguarden la integridad de las víctimas y eviten la revictimización?",null,null,null,"Seleccione",{"$f":"IF(G31=\"No\",0,IF(G31=\"Sí de alcance parcial dentro de la organización\",1,IF(G31=\"Sí de alcance integral en la organización\",2,\"\")))","v":""}]
[null,null,null,null,null,null,null,{"$f":"SUM(H29:H31)","v":0}]
[]
["1.2.5","Capacitaciones para la igualdad laboral","¿La organización cuenta con un plan de capacitación, sensibilización y difusión como parte de sus objetivos de la agenda de género?",null,null,null,"Seleccione",{"$f":"IF(G34=\"No\",0,IF(G34=\"Sí de alcance parcial dentro de la organización\",1,IF(G34=\"Sí de alcance integral en la organización\",2,IF(G34=\"Sí de alcance que se extiende dentro y fuera de la organización\",3,\"\"))))","v":""},{"$f":"IF(OR(G34=\"Seleccione\",G35=\"Seleccione\",G36=\"Seleccione\"),\"Por favor completa las preguntas de este apartado del Índice\",IF(H37<3,\"Es necesario incrementar la ambición en alguno de los ejes evaluados para que el proyecto esté alineado al Índice de Igualdad de Género de la Taxonomía Sostenible de México\",\"El proyecto cuenta con la ambición necesaria para cerrar las brechas de género conforme al Índice de Igualdad de Género de la Taxonomía Sostenible de México\"))","v":"Por favor completa las preguntas de este apartado del Índice"}]
[null,"1.2.5.2","¿La organización ofrece capacitación continua para el desarrollo de habilidades requeridas para la movilidad laboral, tales como mentoría o patrocinio; incluyendo el desarrollo de capacidades para los nuevos empleos verdes que promuevan la transición justa?",null,null,null,"Seleccione",{"$f":"IF(G35=\"No\",0,IF(G35=\"Sí de alcance parcial dentro de la organización\",1,IF(G35=\"Sí de alcance integral en la organización\",2,IF(G35=\"Sí de alcance que se extiende dentro y fuera de la organización\",3,\"\"))))","v":""}]
[null,"1.2.5.3","¿La organización cuenta con mecanismos de evaluación o mejora de su plan de implementación de capacitaciones, asesorías o mentorías, que sean extensivos a otros actores que interactúan con la organización o a la comunidad externa (más allá del personal de la organización)?",null,null,null,"Seleccione",{"$f":"IF(G36=\"No\",0,IF(G36=\"Sí de alcance parcial dentro de la organización\",1,IF(G36=\"Sí de alcance integral en la organización\",2,IF(G36=\"Sí de alcance que se extiende dentro y fuera de la organización\",3,\"\"))))","v":""}]
[null,null,null,null,null,null,null,{"$f":"SUM(H34:H36)","v":0}]
[]
["1.3.1","Esquemas de trabajo flexible y políticas de conciliación","¿Existen medidas de flexibilidad laboral, como horarios flexibles o escalonados, semanas de trabajo comprimidas, teletrabajo o licencias con y sin goce de sueldo?",null,null,null,"Seleccione",{"$f":"IF(G39=\"No\",0,IF(G39=\"Sí de alcance parcial dentro de la organización\",1,IF(G39=\"Sí de alcance integral en la organización\",2,\"\")))","v":""},{"$f":"IF(OR(G39=\"Seleccione\",G40=\"Seleccione\",G41=\"Seleccione\"),\"Por favor completa las preguntas de este apartado del Índice\",IF(H42<4,\"Es necesario incrementar la ambición en alguno de los ejes evaluados para que el proyecto esté alineado al Índice de Igualdad de Género de la Taxonomía Sostenible de México\",\"El proyecto cuenta con la ambición necesaria para cerrar las brechas de género conforme al Índice de Igualdad de Género de la Taxonomía Sostenible de México\"))","v":"Por favor completa las preguntas de este apartado del Índice"}]
[null,"1.3.1.2","¿Existe una duración definida de la jornada laboral que se acompañe con una política de desconexión, sin importar que el esquema sea presencial, híbrido o por teletrabajo?",null,null,null,"Seleccione",{"$f":"IF(G40=\"No\",0,IF(G40=\"Sí de alcance parcial dentro de la organización\",1,IF(G40=\"Sí de alcance integral en la organización\",2,\"\")))","v":""}]
[null,"1.3.1.3","¿La organización despliega y difunde mecanismos de corrección al interior y al exterior, en función de la información estadística analizada y desagregada por sexo, sobre el cumplimento de los horarios de trabajo conforme al derecho de las y los trabajadores a la desconexión?",null,null,null,"Seleccione",{"$f":"IF(G41=\"No\",0,IF(G41=\"Sí de alcance parcial dentro de la organización\",1,IF(G41=\"Sí de alcance integral en la organización\",2,IF(G41=\"Sí de alcance que se extiende dentro y fuera de la organización\",3,\"\"))))","v":""}]
[null,null,null,null,null,null,null,{"$f":"SUM(H39:H41)","v":0}]
[]
["1.3.2","Oferta complementaria de servicios de cuidados (ludoteca, casas de día, estancias infantiles adicionales, entre otros)","¿La organización tiene políticas que le permitan desarrollar una oferta complementaria de servicios de cuidado (guarderías propias, salas de lactancia, etc.), asequible para todo el personal de la organización, incluyendo licencias de maternidad y paternidad con duración superior a la Ley?",null,null,null,"Seleccione",{"$f":"IF(G44=\"No\",0,IF(G44=\"Sí de alcance parcial dentro de la organización\",1,IF(G44=\"Sí de alcance integral en la organización\",2,IF(G44=\"Sí de alcance que se extiende dentro y fuera de la organización\",3,\"\"))))","v":""},{"$f":"IF(OR(G44=\"Seleccione\",G45=\"Seleccione\",G46=\"Seleccione\"),\"Por favor completa las preguntas de este apartado del Índice\",IF(H47<3,\"Es necesario incrementar la ambición en alguno de los ejes evaluados para que el proyecto esté alineado al Índice de Igualdad de Género de la Taxonomía Sostenible de México\",\"El proyecto cuenta con la ambición necesaria para cerrar las brechas de género conforme al Índice de Igualdad de Género de la Taxonomía Sostenible de México\"))","v":"Por favor completa las preguntas de este apartado del Índice"}]
[null,"1.3.2.2","¿Se proporciona una oferta de servicios de cuidado adicional a los servicios de seguridad social (IMSS, ISSSTE y otros) o se ofrecen permisos con o sin goce de sueldo para la atención de responsabilidades de cuidado?",null,null,null,"Seleccione",{"$f":"IF(G45=\"No\",0,IF(G45=\"Sí de alcance parcial dentro de la organización\",1,IF(G45=\"Sí de alcance integral en la organización\",2,IF(G45=\"Sí de alcance que se extiende dentro y fuera de la organización\",3,\"\"))))","v":""}]
[null,"1.3.2.3","¿La organización realiza y difunde evaluaciones de las necesidades de cuidado de su personal y sus dependientes, al interior y al exterior?",null,null,null,"Seleccione",{"$f":"IF(G46=\"No\",0,IF(G46=\"Sí de alcance parcial dentro de la organización\",1,IF(G46=\"Sí de alcance integral en la organización\",2,IF(G46=\"Sí de alcance que se extiende dentro y fuera de la organización\",3,\"\"))))","v":""}]
[null,null,null,null,null,null,null,{"$f":"SUM(H44:H46)","v":0}]
[]
["2.1.1","Desarrollo y provisión de infraestructura, bienes y servicios con impacto social positivo y perspectiva de género","¿La organización tiene como política realizar diagnósticos con perspectiva de género para el diseño y operación del proyecto, actividad, desarrollo de infraestructura o la provisión de bienes y servicios?",null,null,null,"Seleccione",{"$f":"IF(G49=\"No\",0,IF(G49=\"Sí de alcance parcial dentro de la organización\",2,IF(G49=\"Sí de alcance integral en la organización\",4,IF(G49=\"Sí de alcance que se extiende dentro y fuera de la organización\",6,\"\"))))","v":""},{"$f":"IF(OR(G49=\"Seleccione\",G50=\"Seleccione\",G51=\"Seleccione\"),\"Por favor completa las preguntas de este apartado del Índice\",IF(H52<8,\"Es necesario incrementar la ambición en alguno de los ejes evaluados para que el proyecto esté alineado al Índice de Igualdad de Género de la Taxonomía Sostenible de México\",\"El proyecto cuenta con la ambición necesaria para cerrar las brechas de género conforme al Índice de Igualdad de Género de la Taxonomía Sostenible de México\"))","v":"Por favor completa las preguntas de este apartado del Índice"}]
[null,"2.1.1.2","¿El proyecto de infraestructura, actividad, bien o servicio, considera ajustes razonables para atender las necesidades de las mujeres o contribuye a la reducción o eliminación de una situación de exclusión, desigualdad o violencia de género, y privilegia su acceso a precios asequibles por razón de género?",null,null,null,"Seleccione",{"$f":"IF(G50=\"No\",0,IF(G50=\"Sí de alcance parcial dentro de la organización\",2,IF(G50=\"Sí de alcance integral en la organización\",4,IF(G50=\"Sí de alcance que se extiende dentro y fuera de la organización\",6,\"\"))))","v":""}]
[null,"2.1.1.3","¿Se cuenta con un plan de actividades de igualdad entre mujeres y hombres, que incluya presupuesto e indicadores de cumplimiento sobre el impacto en la vida de las mujeres, y en su caso, en el medio ambiente en el uso de la infraestructura, productos o servicios a desarrollar?",null,null,null,"Seleccione",{"$f":"IF(G51=\"No\",0,IF(G51=\"Sí de alcance parcial dentro de la organización\",2,IF(G51=\"Sí de alcance integral en la organización\",4,IF(G51=\"Sí de alcance que se extiende dentro y fuera de la organización\",6,\"\"))))","v":""}]
[null,null,null,null,null,null,null,{"$f":"SUM(H49:H51)","v":0}]
[]
["2.2.1","No afectación a la salud de las mujeres","¿La organización tiene como procedimientos la elaboración de diagnósticos con perspectiva de género sobre los impactos potenciales en salud del proyecto de infraestructura, actividad, bien o servicio, para la promoción de la salud en las mujeres o asegurar la no afectación a esta?",null,null,null,"Seleccione",{"$f":"IF(G54=\"No\",0,IF(G54=\"Sí de alcance parcial dentro de la organización\",2,IF(G54=\"Sí de alcance integral en la organización\",4,IF(G54=\"Sí de alcance que se extiende dentro y fuera de la organización\",6,\"\"))))","v":""},{"$f":"IF(OR(G54=\"Seleccione\",G55=\"Seleccione\",G56=\"Seleccione\"),\"Por favor completa las preguntas de este apartado del Índice\",IF(H57<8,\"Es necesario incrementar la ambición en alguno de los ejes evaluados para que el proyecto esté alineado al Índice de Igualdad de Género de la Taxonomía Sostenible de México\",\"El proyecto cuenta con la ambición necesaria para cerrar las brechas de género conforme al Índice de Igualdad de Género de la Taxonomía Sostenible de México\"))","v":"Por favor completa las preguntas de este apartado del Índice"}]
[null,"2.2.1.2","¿El proyecto, actividad, bien o servicio, considera ajustes razonables para atender las necesidades diferenciadas de salud en hombres y mujeres y privilegia el acceso desde una perspectiva de género a precios asequibles?",null,null,null,"Seleccione",{"$f":"IF(G55=\"No\",0,IF(G55=\"Sí de alcance parcial dentro de la organización\",2,IF(G55=\"Sí de alcance integral en la organización\",4,IF(G55=\"Sí de alcance que se extiende dentro y fuera de la organización\",6,\"\"))))","v":""}]
[null,"2.2.1.3","¿Se realizan estudios de los efectos en la salud de la actividad, productos o servicios desagregados sexo, y se cuenta con un plan de actividades para la corrección o mejora que incluya presupuesto e indicadores de cumplimiento?",null,null,null,"Seleccione",{"$f":"IF(G56=\"No\",0,IF(G56=\"Sí de alcance parcial dentro de la organización\",2,IF(G56=\"Sí de alcance integral en la organización\",4,IF(G56=\"Sí de alcance que se extiende dentro y fuera de la organización\",6,\"\"))))","v":""}]
[null,null,null,null,null,null,null,{"$f":"SUM(H54:H56)","v":0}]
[]
["2.3.1","Promoción de autonomía de las mujeres y financiamiento flexible con perspectiva de género","¿La organización tiene como política visibilizar las necesidades diferenciadas entre mujeres y hombres en las estrategias de comercialización de los productos o servicios ofrecidos?",null,null,null,"Seleccione",{"$f":"IF(G59=\"No\",0,IF(G59=\"Sí de alcance parcial dentro de la organización\",2,IF(G59=\"Sí de alcance integral en la organización\",4,IF(G59=\"Sí de alcance que se extiende dentro y fuera de la organización\",6,\"\"))))","v":""},{"$f":"IF(OR(G59=\"Seleccione\",G60=\"Seleccione\",G61=\"Seleccione\"),\"Por favor completa las preguntas de este apartado del Índice\",IF(H62<8,\"Es necesario incrementar la ambición en alguno de los ejes evaluados para que el proyecto esté alineado al Índice de Igualdad de Género de la Taxonomía Sostenible de México\",\"El proyecto cuenta con la ambición necesaria para cerrar las brechas de género conforme al Índice de Igualdad de Género de la Taxonomía Sostenible de México\"))","v":"Por favor completa las preguntas de este apartado del Índice"}]
[null,"2.3.1.2","¿La organización garantiza la accesibilidad de los productos o servicios para las mujeres, ofreciendo opciones diferenciadas de financiación?",null,null,null,"Seleccione",{"$f":"IF(G60=\"No\",0,IF(G60=\"Sí de alcance parcial dentro de la organización\",2,IF(G60=\"Sí de alcance integral en la organización\",4,IF(G60=\"Sí de alcance que se extiende dentro y fuera de la organización\",6,\"\"))))","v":""}]
[null,"2.3.1.3","¿Se realiza una evaluación de efectos diferenciados de los productos y servicios ofrecidos desagregada sexo que visibilicen que son utilizados por mujeres y/o benefician más que proporcionalmente a las mujeres?",null,null,null,"Seleccione",{"$f":"IF(G61=\"No\",0,IF(G61=\"Sí de alcance parcial dentro de la organización\",2,IF(G61=\"Sí de alcance integral en la organización\",4,IF(G61=\"Sí de alcance que se extiende dentro y fuera de la organización\",6,\"\"))))","v":""}]
[null,null,null,null,null,null,null,{"$f":"SUM(H59:H61)","v":0}]
[]
["3.1.1","Promoción de cultura de paz y no violencia","¿La organización o proyecto considera dentro de sus objetivos la reducción o erradicación de la violencia contra las mujeres o el desarrollo de espacios de paz y no violencia; o bien, cuenta con un protocolo o procedimiento para la resolución de conflictos con la comunidad, que considere una perspectiva de género y de derechos humanos?",null,null,null,"Seleccione",{"$f":"IF(G64=\"No se cuenta con un protocolo o procedimiento o no se comunica\",0,IF(G64=\"Comunicación del objetivo protocolo parcial dentro de la organización\",2,IF(G64=\"Sí de alcance integral en la organización\",2,IF(G64=\"Protocolo de conocimiento de toda la organización\",4,IF(G64=\"Toda la información relacionada es pública\",6,\"\")))))","v":""},{"$f":"IF(OR(G64=\"Seleccione\",G65=\"Seleccione\",G66=\"Seleccione\"),\"Por favor completa las preguntas de este apartado del Índice\",IF(H67<8,\"Es necesario incrementar la ambición en alguno de los ejes evaluados para que el proyecto esté alineado al Índice de Igualdad de Género de la Taxonomía Sostenible de México\",\"El proyecto cuenta con la ambición necesaria para cerrar las brechas de género conforme al Índice de Igualdad de Género de la Taxonomía Sostenible de México\"))","v":"Por favor completa las preguntas de este apartado del Índice"}]
[null,"3.1.1.2","¿Se han desarrollado acciones para la prevención, atención, sanción y erradicación de la violencia contra niñas, niños, adolescentes y mujeres en la comunidad o espacios públicos?",null,null,null,"Seleccione",{"$f":"IF(G65=\"No se han desarrollado acciones\",0,IF(G65=\"Las acciones abordan solo alguno(s) de los aspectos enunciados (prevención atención sanción y erradicación de la violencia)\",4,IF(G65=\"Las acciones consideran la prevención atención sanción y erradicación de la violencia\",6,\"\")))","v":""}]
[null,"3.1.1.3","¿La organización o proyecto cuenta con evidencia de su contribución a la reducción de la violencia contra niñas, niños, adolescentes y mujeres; o bien, ha documentado y difundido casos de éxito sobre la resolución de conflictos con la comunidad o sobre el desarrollo de espacios de paz y no violencia de forma participativa?",null,null,null,"Seleccione",{"$f":"IF(G66=\"No existe evidencia o no se comunica\",0,IF(G66=\"La comunicación de la evidencia es parcial dentro de la organización\",2,IF(G66=\"La evidencia es de conocimiento de toda la organización\",4,IF(G66=\"La información es pública\",6,\"\"))))","v":""}]
[null,null,null,null,null,null,null,{"$f":"SUM(H64:H66)","v":0}]
[]
["3.2.1","Vinculación con empresas locales propiedad o con participación de mujeres","¿Existen políticas, procesos o mecanismos de adquisición de productos y servicios que incentiven la contratación de empresas locales propiedad o con alta participación de mujeres?",null,null,null,"Seleccione",{"$f":"IF(G69=\"No existen políticas o procesos o mecanismos o no se comunican\",0,IF(G69=\"La comunicación es parcial dentro de la organización\",2,IF(G69=\"Sí y es de conocimiento de toda la organización\",4,IF(G69=\"La información es pública\",6,\"\"))))","v":""},{"$f":"IF(OR(G69=\"Seleccione\",G70=\"Seleccione\",G71=\"Seleccione\"),\"Por favor completa las preguntas de este apartado del Índice\",IF(H72<8,\"Es necesario incrementar la ambición en alguno de los ejes evaluados para que el proyecto esté alineado al Índice de Igualdad de Género de la Taxonomía Sostenible de México\",\"El proyecto cuenta con la ambición necesaria para cerrar las brechas de género conforme al Índice de Igualdad de Género de la Taxonomía Sostenible de México\"))","v":"Por favor completa las preguntas de este apartado del Índice"}]
[null,"3.2.1.2","¿Se presenta evidencia de alianzas comerciales y de contratos recurrentes o multianuales con empresas locales con propiedad o participación importante de mujeres?",null,null,null,"Seleccione",{"$f":"IF(G70=\"No se han desarrollado alianzas comerciales o contratos\",0,IF(G70=\"Se presenta evidencia de esfuerzos para establecer alianzas comerciales pero que aún no se formalizan\",4,IF(G70=\"Se presenta evidencia completa de una relación comercial recurrente\",6,\"\")))","v":""}]
[null,"3.2.1.3","¿Existe evidencia de que se contribuye al fortalecimiento del liderazgo de empresas locales encabezadas por mujeres o al desarrollo de la estrategia de sostenibilidad de empresas locales (por ejemplo, en el acceso a financiamiento, en la adopción de tecnología sostenible, etc.) propiedad o con participación de mujeres, más allá de la compra de bienes y servicios?",null,null,null,"Seleccione",{"$f":"IF(G71=\"No existe evidencia o no se comunica\",0,IF(G71=\"La comunicación de la evidencia es parcial dentro de la organización\",2,IF(G71=\"La evidencia es de conocimiento de toda la organización\",4,IF(G71=\"La información es pública\",6,\"\"))))","v":""}]
[null,null,null,null,null,null,null,{"$f":"SUM(H69:H71)","v":0}]
[]
["3.3.1","Involucramiento de organizaciones y redes comunitarias que representen los intereses de las mujeres","¿Existe una política para fomentar la participación de las comunidades, bajo el marco del consentimiento libre, previo e informado, para la realización del proyecto o actividad económica, o bien en la planeación y gestión participativa de este, que contribuya a la preservación del territorio; al bienestar de ellas y su comunidad; al cuidado del medio ambiente o a una transición justa?",null,null,null,"Seleccione",{"$f":"IF(G74=\"No existen políticas o procesos o mecanismos o no se comunican\",0,IF(G74=\"La comunicación es parcial dentro de la organización\",2,IF(G74=\"Sí y es de conocimiento de toda la organización\",4,IF(G74=\"La información es pública\",6,\"\"))))","v":""},{"$f":"IF(OR(G74=\"Seleccione\",G75=\"Seleccione\",G76=\"Seleccione\"),\"Por favor completa las preguntas de este apartado del Índice\",IF(H77<8,\"Es necesario incrementar la ambición en alguno de los ejes evaluados para que el proyecto esté alineado al Índice de Igualdad de Género de la Taxonomía Sostenible de México\",\"El proyecto cuenta con la ambición necesaria para cerrar las brechas de género conforme al Índice de Igualdad de Género de la Taxonomía Sostenible de México\"))","v":"Por favor completa las preguntas de este apartado del Índice"}]
[null,"3.3.1.2","¿Las acciones de involucramiento y consulta consideraron una perspectiva de género en su implementación para asegurar una participación en igualdad de condiciones de las mujeres (horarios adecuados, dinámicas para promover la participación, facilidades para el cuidado de infantes, un lugar de fácil acceso para ellas) y cuentan con un mecanismo de monitoreo que dé seguimiento a la incorporación de las opiniones de las mujeres?",null,null,null,"Seleccione",{"$f":"IF(G75=\"No se han desarrollado acciones\",0,IF(G75=\"Las acciones abordan parcialmente los aspectos requeridos por la pregunta\",4,IF(G75=\"Las acciones consideran una perspectiva de género e incluyen un mecanismo de monitoreo\",6,\"\")))","v":""}]
[null,"3.3.1.3","¿Existe evidencia de que la actividad económica o proyecto contribuye a la formación o fortalecimiento de alianzas entre mujeres y de organizaciones que trabajen por sus derechos, la igualdad de género, la conservación del territorio o del medio ambiente, y una transición justa?",null,null,null,"Seleccione",{"$f":"IF(G76=\"No existe evidencia o no se comunica\",0,IF(G76=\"La comunicación de la evidencia es parcial dentro de la organización\",2,IF(G76=\"La evidencia es de conocimiento de toda la organización\",4,IF(G76=\"La información es pública\",6,\"\"))))","v":""}]
[null,null,null,null,null,null,null,{"$f":"SUM(H74:H76)","v":0}]
[null,null,"Resumen:","Puntaje obtenido en cada pilar","Alineación"]
[null,null,"Resultados pilar 1: Trabajo digo",{"$f":"SUM(H11,H17,H22,H27,H32,H37,H42,H47)","v":0},{"$f":"IF(D79<24,\"Es necesario incrementar la ambición en el pilar 1 de trabajo digno\",\"El proyecto contribuye al cierre de brechas de género, conforme a la Taxonomía Sostenible de México\")","v":"Es necesario incrementar la ambición en el pilar 1 de trabajo digno"}]
[null,null,"Resultados pilar 2: Bienestar",{"$f":"SUM(H52,H57,H62)","v":0},{"$f":"IF(D80<24,\"Es necesario incrementar la ambición en el pilar 2 de bienestar\",\"El proyecto contribuye al cierre de brechas de género, conforme a la Taxonomía Sostenible de México\")","v":"Es necesario incrementar la ambición en el pilar 2 de bienestar"}]
[null,null,"Resultados pilar 3: Inclusión social",{"$f":"SUM(H77,H72,H67)","v":0},{"$f":"IF(D81<24,\"Es necesario incrementar la ambición en el pilar 3 de inclusión social\",\"El proyecto contribuye al cierre de brechas de género, conforme a la Taxonomía Sostenible de México\")","v":"Es necesario incrementar la ambición en el pilar 3 de inclusión social"}]
[null,null,"Total",{"$f":"SUM(D79:D81)","v":0},{"$f":"IF((COUNTIF(G8:G76,\"Seleccione\"))>1,\"Por definir\",IF(AND(E79=\"El proyecto contribuye al cierre de brechas de género, conforme a la Taxonomía Sostenible de México\",E80=\"El proyecto contribuye al cierre de brechas de género, conforme a la Taxonomía Sostenible de México\",E81=\"El proyecto contribuye al cierre de brechas de género, conforme a la Taxonomía Sostenible de México\",D82>=72),\"Sí cumple con el índice de igualdad de género\",\"No cumple con el índice de igualdad de género\"))","v":"Por definir"}]

{"sheet":"Transporte-NDS","index":42,"n_rows":83,"n_cols":8,"rows_kept":83,"cut":false,"hidden":true,"merged":[[12,7,13,7],[71,7,75,7],[82,0,82,5],[74,0,74,5],[75,0,75,5],[77,0,77,6],[78,0,78,5],[79,0,79,5],[73,0,73,5],[59,0,59,6],[60,0,60,5],[62,0,62,4],[63,0,63,5],[65,0,65,6],[66,0,66,6],[67,0,67,6],[68,0,68,5],[70,0,70,3],[71,0,71,5],[72,0,72,5],[58,0,58,6],[54,0,54,6],[55,0,55,6],[56,0,56,6],[45,0,45,6],[46,0,46,5],[48,0,48,6],[49,0,49,5],[51,0,51,6],[30,0,30,6],[57,0,57,6],[44,0,44,6],[32,0,32,6],[33,0,33,6],[34,0,34,6],[35,0,35,6],[36,0,36,6],[37,0,37,6],[38,0,38,6],[39,0,39,6],[40,0,40,6],[41,0,41,6],[42,0,42,5],[52,0,52,6],[53,0,53,6],[22,0,22,5],[25,0,25,5],[26,0,26,5],[28,0,28,6],[29,0,29,6],[78,7,79,7],[1,0,1,6],[15,0,15,5],[3,0,3,6],[5,0,5,6],[9,0,9,5],[11,0,11,2],[12,0,12,5],[13,0,13,5],[14,0,14,5],[31,0,31,6],[17,0,17,6],[18,0,18,6],[19,0,19,6],[20,0,20,6],[21,0,21,6]]}
[]
["Evaluación de No Daño Significativo de actividades del sector transporte"]
[]
["El principio de No Daño Significativo (NDS) se compone de una serie de criterios medioambientales que permiten asegurar que una actividad económica, con contribución sustancial, no tenga efectos negativos en ninguno de los otros objetivos de la Taxonomía, distintos al parámetro principal. De esta manera, se asegura que el progreso en algunos objetivos no se haga a expensas de otros objetivos medioambientales. Los criterios de NDS se enfocan en 5 ejes principales: Agua, Adaptación, Biodiversidad, Prevención y Control de la Contaminación y, Economía Circular. Para contar con más detalle, por favor consulta el documento de la Taxonomía Sostenible de México"]
[]
["Asegúrate de responder todas las preguntas. En este apartado aparecerán solo los criterios de No Daño Significativo relacionados a las actividades que se establecieron anteriormente. Al final, se evaluará el porcentaje de criterios de No Daño Significativo que se cumplan. Por favor responde si la actividad cumple con los siguientes criterios."]
[]
[]
["Agua"]
["¿La operación financiera y/o proyecto cumple con los requisitos de la legislación en materia de uso y reuso de agua, incluyendo normas oficiales mexicanas y normas mexicanas NOM-001-SEMARNAT-2021; NOM-002-SEMARNAT-1996; NOM-003-SEMARNAT-1997, NOM-003-CNA-1996, NOM-008-CNA-1998, NOM-009-CNA-2001, NOM- 010-CNA-2000, NMX-C-415-0NNCCE-2013?",null,null,null,null,null,"Seleccione","Incluir certificado de cumplimiento de NOM-001-SEMARNAT-2021, NOM-002-SEMARNAT-1996, NOM-003-SEMARNAT-1997, NOM-003-CNA-1996, NOM-008-CNA-1998, NOM-009-CNA-2001, NOM- 010-CNA-2000 y NMX-C-415-0NNCCE-2013."]
[]
["Adaptación "]
["¿En la operación financiera y/o proyecto se identifica la necesidad de desarrollar criterios de gestión de riesgos y de adaptación al cambio climático en el diseño, construcción, reconstrucción, rehabilitación y mantenimiento de infraestructura de transporte. Toda medida de adaptación debe tener como criterio fundamental e imprescindible, reducir vulnerabilidad al cambio climático de las poblaciones humanas, sistemas productivos, infraestructura estratégica y/o favorecer la resiliencia de los ecosistemas?",null,null,null,null,null,"Seleccione","Incluir en la MIA. Detallar en la descripción del sistema ambiental y el señalamiento de la problemática ambiental detectada en el área de influencia del proyecto."]
["¿En la operación financiera y/o proyecto se desarrollan criterios de gestión de riesgos y de adaptación al cambio climático en el diseño, construcción, reconstrucción, rehabilitación y mantenimiento de la infraestructura asociada?",null,null,null,null,null,"Seleccione"]
["¿En la operación financiera y/o proyecto se establecen medidas de adaptación con el criterio fundamental e imprescindible, reducir vulnerabilidad al cambio climático en cuestiónes de Adaptación basada en comunidades humanas, Adaptación basada en ecosistemas y, Adaptación basada en la Reducción del Riesgo de Desastres?",null,null,null,null,null,"Seleccione","Presentar la ficha de recopilación sistematizada para IACC. ENCC, Visión 10-20-40 y la Metodología para la Priorización de Medidas de Adaptación frente al Cambio Climático (SEMARNAT-GIZ, 2015)."]
["¿La operación financiera y/o proyecto demuestra que se  que evaluó la dimensión de las alteraciones e impactos que podrían afectar en los en municipios vulnerables al cambio climático, revisando de forma enunciativa, más no limitativa el Atlas Nacional de Vulnerabilidad al Cambio Climático y, el Atlas Nacional de Riesgos?",null,null,null,null,null,"Seleccione","Incluir en la MIA la evaluación de la dimensión de las alteraciones e impactos dentro de los datos del proyecto."]
[]
["Autotransporte foráneo de materiales para la construcción"]
["Autotransporte foráneo de materiales y residuos peligrosos"]
["Autotransporte foráneo con refrigeración"]
["Autotransporte foráneo de madera"]
["Otro autotransporte foráneo de carga especializado"]
["¿El proyecto induce cambios en el comportamiento de los actores principales, lo cual redunda en mejora de prácticas logísticas, en el uso de suelo y en incentivos para la mejora en el uso de la energía?",null,null,null,null,null,"Seleccione","Presentar un plan donde se detalle o proyecte la participación y cooperación de todos los actores principales para la implementación de prácticas de mejora logística y el uso de vehículos con energía más limpia o uso más eficiente para disminuir impactos en el uso del suelo para vías de transporte."]
[]
["Biodiversidad "]
["¿La operación financiera y/o proyecto cuenta con una manifestación de impacto ambiental (MIA) o informe ambiental preventivo, autorizados por la autoridad competente (federal), con vigencia y e informes de cumplimiento de condicionantes ambientales?",null,null,null,null,null,"Seleccione","Presentar MIA aprobada por las autorida.des ambientales."]
["A nivel de sitio y locación específica ¿La operación financiera y/o proyecto considera la Estrategia Nacional sobre Biodiversidad de México (ENBioMex), Plan de Acción 2016-2030 y la Estrategia Nacional para la Conservación y Aprovechamiento Sustentable de Polinizadores, así como las Estrategias Estatales de Biodiversidad correspondientes?",null,null,null,null,null,"Seleccione","Detallar en la MIA la vinculación del proyecto con lo dispuesto en Estrategia Nacional sobre Biodiversidad de México (ENBioMex), Plan de Acción 2016-2030 y la Estrategia Nacional para la Conservación y Aprovechamiento Sustentable de Polinizadores, así como las Estrategias Estatales de Biodiversidad correspondientes."]
[]
["Autotransporte foráneo de materiales para la construcción"]
["Autotransporte foráneo de materiales y residuos peligrosos"]
["Autotransporte foráneo con refrigeración"]
["Autotransporte foráneo de madera"]
["Otro autotransporte foráneo de carga especializado"]
["Transporte colectivo urbano y suburbano de pasajeros en trolebuses y trenes ligeros"]
["Transporte colectivo urbano y suburbano de pasajeros en metro"]
["Transporte turístico por tierra"]
["Transporte colectivo urbano y suburbano de pasajeros en autobuses de ruta fija (corredor de transporte"]
["Transporte colectivo urbano y suburbano de pasajeros en autobuses que transitan en carril exclusivo (BRT)"]
["Transporte colectivo foráneo de pasajeros de ruta fija"]
["Transporte colectivo urbano y suburbano de pasajeros en automóviles de ruta fija"]
["Transporte de pasajeros en taxis de sitio"]
["Vehículos ligeros"]
["¿El proyecto cumple en todas las ciudades con los programas de movilidad urbana por medio del uso de transporte público suficiente, eficiente, seguro, económico, financieramente factible y amigable con el ambiente?",null,null,null,null,null,"Seleccione","Incluir estos elementos dentro de la MIA."]
[]
["Transporte por aguas interiores (transporte de pasajeros)"]
["Transporte por aguas interiores (transporte de mercancías)"]
["La actividad no debe dar lugar a vertidos de agua de lastre que contengan especies acuáticas invasoras, incluyendo prevención, control y erradicación de dichas especies invasoras ¿Esto se cumple en el contexto de la operación financiera y/o proyecto?",null,null,null,null,null,"Seleccione","Incluir en la MIA. Detallar la vinculación del proyecto con lo dispuesto en la Ley de Vertimientos en las Zonas Marinas Mexicanas respecto a vertidos de agua de lastre."]
[]
["Autotransporte foráneo de madera"]
["Sólo se transportarán productos maderables con documentos que acrediten la legal procedencia de los productos forestales (remisiones forestales) (Ley General de Desarrollo Forestal Sustentable) ¿Esto se cumple en el contexto de la operación financiera y/o proyecto?",null,null,null,null,null,"Seleccione","Incluir en la MIA. Detallar la vinculación del proyecto con lo dispuesto en la Ley General de Desarrollo Forestal Sustentable."]
[]
["Transporte colectivo urbano y suburbano de pasajeros en trolebuses y trenes ligeros"]
["Transporte colectivo urbano y suburbano de pasajeros en metro"]
["Transporte turístico por tierra"]
["Transporte colectivo urbano y suburbano de pasajeros en autobuses de ruta fija (corredor de transporte)"]
["Transporte colectivo urbano y suburbano de pasajeros en autobuses que transitan en carril exclusivo (BRT)"]
["Transporte colectivo foráneo de pasajeros de ruta fija"]
["Transporte colectivo urbano y suburbano de pasajeros en automóviles de ruta fija"]
["Transporte de pasajeros en taxis de sitio"]
["Vehículos ligeros"]
["¿La operación financiera y/o proyecto realiza medidas para monitoreo y protección de los ecosistemas urbanos, en particular espacios públicos, áreas verdes urbanas y arbolado urbano?",null,null,null,null,null,"Seleccione","Incluir en la MIA. Describir los elementos dentro del apartado correspondiente al análisis de los riesgos y los impactos, así como considerar la mención de sí existe un monitoreo periódico."]
[]
["Prevención y control de la contaminación"]
["¿En el contexto de la operación financiera y/o proyecto se monitorea y cumple con los límites máximos permisibles de emisiones contaminantes establecidos en las normas oficiales mexicanas (NOM) y en normas mexicana en materia de aire, en específico NOM-042, NOM-044 y la NOM-076 y límites máximos permisibles de contaminantes de los ciclos de prueba de la US EPA, en tanto que no exista normativa nacional ,ara el caso del transporte por vía férrea y por aguas interiores, agua, suelo y olores, ruido y vibraciones, paisaje, energía términa y lumínica.?",null,null,null,null,null,"Seleccione","Entregar certificado que asegure el cumplimiento de la NOM-085-SEMARNAT-2011. Así como un certificado del cumplimiento de las normas oficiales mexicanas correspondientes en materia de aire, suelo y olores, ruido y vibraciones, paisaje y, energía térmica y lumínica."]
[]
["Transporte colectivo urbano y suburbano de pasajeros en autobuses de ruta fija (corredor de transporte)"]
["Transporte colectivo urbano y suburbano de pasajeros en autobuses que transitan en carril exclusivo (BRT)"]
["Transporte colectivo foráneo de pasajeros de ruta fija"]
["¿En el contexto de la operación financiera y/o proyecto se fomenta el cumplimiento de las certificaciones EPA 2010 o Euro VI en Regiones y “Corredores” en donde exista surtimiento de Diesel UBA, En regiones en las que no se distribuya diésel de bajo azufre, Regiones en dónde exista disponibilidad de Gas Natural?",null,null,null,null,null,"Seleccione","Entregar certificado que asegure el cumplimiento de la NOM-050-SEMARNAT-2018."]
[]
["Economía circular"]
["¿En el contexto de la operación financiera y/o proyecto se identifica el tipo de residuos generados durante las diferentes fases del proyecto, estimando el volumen que pudiera generarse?",null,null,null,null,null,"Seleccione","Incluir en la MIA. Detallar estos elementos dentro de la descripción de las obras  o actividades así como su vinculación con la Ley General para la Prevención y Gestión Integral de los Residuos (LGPGIR)."]
["¿En el contexto de la operación financiera y/o proyecto se identifica y reporta la disponibilidad de servicios de infraestructura para el manejo y disposición final de los residuos, en la localidad y/o región, tales como: rellenos sanitarios, plantas de tratamiento de aguas residuales municipales, servicios de separación, manejo, tratamiento, reciclamiento o confinamiento de residuos, entre otros. En caso de hacer uso de ellos indicar si estos servicios son suficientes para cubrir las demandas presentes y futuras del proyecto y de otros proyectos presentes en la zona?",null,null,null,null,null,"Seleccione"]
["¿En el contexto de la operación financiera y/o proyecto se contempla la chatarrización de los vehículos cuando aplique. Para el caso del transporte de pasajeros mejorar el reparto modal y mantener el número de pasajeros?",null,null,null,null,null,"Seleccione"]
["¿En el contexto de la operación financiera y/o proyecto se consideran medidas para gestionar los residuos en la actividad, de conformidad con la Ley General para la Prevención y Gestión Integral de los Residuos (LGPGIR), así como la normativa aplicable?",null,null,null,null,null,"Seleccione"]
["¿Con base a la estimación de vida útil del proyecto, se presenta un programa para el desmantelamiento y abandono, que incluya los procedimientos, manejo y destino de materiales y equipos y los programas de rehabilitación o restauración de los equipos?",null,null,null,null,null,"Seleccione"]
[]
["Transporte por ferrocarril (transporte de mercancías)"]
["¿En el contexto de la operación financiera y/o proyecto se consideran medidas de consolidación de envíos asi como medidas de eficiencia de última milla y calendarización de entregas?",null,null,null,null,null,"Seleccione","Incluir en la MIA. Detallar la inclusión de estos elementos y a los propios elementos de la MIA como parte de las medidas de prevención y mitigación. "]
["¿En el contexto de la operación financiera y/o proyecto se desarrollan sistemas logísticos abiertos y globales que integren información compleja en tiempo real, para traer mejoras en eficiencia a nivel sistema?",null,null,null,null,null,"Seleccione"]
[]
["Mitigación"]
["¿Se garantiza que la actividad económica se lleva a cabo utilizando las mejores tecnologías disponibles y en alineación con los compromisos de México en materia de mitigación de GyCEI?",null,null,null,null,null,"Seleccione","Incluir en la MIA. Describir los elementos que se consideren como parte de la justificación para este criterio en la MIA en el apartado de medidas de prevención y mitigación. "]

{"sheet":"Residuos","index":43,"n_rows":50,"n_cols":6,"rows_kept":50,"cut":false,"hidden":true,"merged":[[3,0,3,7],[47,5,47,7],[1,0,1,7],[49,0,49,6],[49,7,49,8]]}
[]
["Actividades del sector de manejo de residuos y servicios de remediación"]
[]
["Dentro de la categoría de manejo de residuos y servicios de remediación de la Taxonomía Sostenible de México se consideran 10 actividades. En este apartado es necesario seleccionar, de esas 10 actividades, las que estarán siendo financiadas en las presentes operaciones financieras y/o proyectos. En esta versión del Excel, es posible evaluar hasta 20 actividades que se establecen en las cajas de abajo. Recuerda establecer los montos en la casilla amarilla (con número MXN) y elegir las actividades en la lista desplegable azul. Si es necesario incluir más de una actividad, da click en el botón de \"Añade una nueva actividad\".  En caso de que la actividad que deseas evaluar no se encuentre en la lista, significa que no está considerada en este momento por la Taxonomía Sostenible de México. En este caso, puedes  mandar un correo a taxonomia_sost@hacienda.gob.mx para conocer más al respecto. "]
["Objetivos que deberás considerar:",{"$f":"IF('Base-datos'!$C$705=TRUE,\"Mitigación\",\"\")","v":""},{"$f":"IF('Base-datos'!$C$706=TRUE,\"Adaptación\",\"\")","v":""},{"$f":"IF('Base-datos'!$C$707=TRUE,\"Género\",\"\")","v":""}]
[]
[]
["Definición de actividades"]
[null,"Cantidad de recursos ↓","Actividad en la que se colocarán los recursos ↓","Alineación a un objetivo","Tipo de recurso evaluado ↓","Da click para añadir más actividades ↓"]
["Establece por favor en la casilla amarilla la cantidad de recursos que serán destinados a la actividad que selecciones en la casilla azul ",null,"Seleccione","Seleccione","Seleccione"]
[]
["Establece por favor en la casilla amarilla la cantidad de recursos que serán destinados a la actividad que selecciones en la casilla azul ",null,"Seleccione","Seleccione","Seleccione"]
[]
["Establece por favor en la casilla amarilla la cantidad de recursos que serán destinados a la actividad que selecciones en la casilla azul ",null,"Seleccione","Seleccione","Seleccione"]
[]
["Establece por favor en la casilla amarilla la cantidad de recursos que serán destinados a la actividad que selecciones en la casilla azul ",null,"Seleccione","Seleccione","Seleccione"]
[]
["Establece por favor en la casilla amarilla la cantidad de recursos que serán destinados a la actividad que selecciones en la casilla azul ",null,"Seleccione","Seleccione","Seleccione"]
[]
["Establece por favor en la casilla amarilla la cantidad de recursos que serán destinados a la actividad que selecciones en la casilla azul ",null,"Seleccione","Seleccione","Seleccione"]
[]
["Establece por favor en la casilla amarilla la cantidad de recursos que serán destinados a la actividad que selecciones en la casilla azul ",null,"Seleccione","Seleccione","Seleccione"]
[]
["Establece por favor en la casilla amarilla la cantidad de recursos que serán destinados a la actividad que selecciones en la casilla azul ",null,"Seleccione","Seleccione","Seleccione"]
[]
["Establece por favor en la casilla amarilla la cantidad de recursos que serán destinados a la actividad que selecciones en la casilla azul ",null,"Seleccione","Seleccione","Seleccione"]
[]
["Establece por favor en la casilla amarilla la cantidad de recursos que serán destinados a la actividad que selecciones en la casilla azul ",null,"Seleccione","Seleccione","Seleccione"]
[]
["Establece por favor en la casilla amarilla la cantidad de recursos que serán destinados a la actividad que selecciones en la casilla azul ",null,"Seleccione","Seleccione","Seleccione"]
[]
["Establece por favor en la casilla amarilla la cantidad de recursos que serán destinados a la actividad que selecciones en la casilla azul ",null,"Seleccione","Seleccione","Seleccione"]
[]
["Establece por favor en la casilla amarilla la cantidad de recursos que serán destinados a la actividad que selecciones en la casilla azul ",null,"Seleccione","Seleccione","Seleccione"]
[]
["Establece por favor en la casilla amarilla la cantidad de recursos que serán destinados a la actividad que selecciones en la casilla azul ",null,"Seleccione","Seleccione","Seleccione"]
[]
["Establece por favor en la casilla amarilla la cantidad de recursos que serán destinados a la actividad que selecciones en la casilla azul ",null,"Seleccione","Seleccione","Seleccione"]
[]
["Establece por favor en la casilla amarilla la cantidad de recursos que serán destinados a la actividad que selecciones en la casilla azul ",null,"Seleccione","Seleccione","Seleccione"]
[]
["Establece por favor en la casilla amarilla la cantidad de recursos que serán destinados a la actividad que selecciones en la casilla azul ",null,"Seleccione","Seleccione","Seleccione"]
[]
["Establece por favor en la casilla amarilla la cantidad de recursos que serán destinados a la actividad que selecciones en la casilla azul ",null,"Seleccione","Seleccione","Seleccione"]
[]
["Establece por favor en la casilla amarilla la cantidad de recursos que serán destinados a la actividad que selecciones en la casilla azul ",null,"Seleccione","Seleccione","Seleccione"]
[]
["Establece por favor en la casilla amarilla la cantidad de recursos que serán destinados a la actividad que selecciones en la casilla azul ",null,"Seleccione","Seleccione","Seleccione","Por el momento, solo es posible evaluar 20 actividades. Si tu proyecto involucra más actividades, por favor escribe un corrreo a taxonomia_sost@hacienda.gob.mx"]
[]
["Al haber concluido el llenado de las actividades y los tipos de recursos que estarás evaluando, por favor da click en el siguiente botón para evaluar la contribución sustancial de las actividades"]

{"sheet":"Mitigación-Residuos","index":44,"n_rows":76,"n_cols":5,"rows_kept":76,"cut":false,"hidden":true,"merged":[[40,4,42,4],[46,4,48,4],[52,4,54,4],[58,4,60,4],[20,4,26,4],[30,4,36,4],[75,0,75,3],[16,0,16,2],[58,0,58,2],[59,0,59,2],[30,0,30,2],[31,0,31,2],[32,0,32,2],[33,0,33,2],[34,0,34,2],[35,0,35,2],[37,0,37,3],[49,0,49,3],[43,0,43,3],[71,0,71,2],[72,0,72,2],[73,0,73,2],[64,4,67,4],[71,4,74,4],[1,0,1,6],[3,0,3,6],[13,0,13,2],[14,0,14,2],[15,0,15,2],[6,4,9,4],[13,4,16,4],[36,0,36,2],[46,0,46,2],[47,0,47,2],[48,0,48,2],[40,0,40,2],[41,0,41,2],[42,0,42,2],[74,0,74,2],[61,0,61,3],[64,0,64,2],[65,0,65,2],[66,0,66,2],[67,0,67,2],[68,0,68,3],[52,0,52,2],[53,0,53,2],[54,0,54,2],[55,0,55,3],[60,0,60,2],[27,0,27,3],[6,0,6,2],[7,0,7,2],[8,0,8,2],[9,0,9,2],[10,0,10,3],[17,0,17,3],[20,0,20,2],[21,0,21,2],[22,0,22,2],[23,0,23,2],[24,0,24,2],[25,0,25,2],[26,0,26,2]]}
[]
["Mitigación al cambio climático de actividades del sector de manejo de residuos y servicios de remediación"]
[]
["La Taxonomía Sostenible de México contiene métricas y umbrales que evalúan la contribución sustancial de cada una de las actividades económicas para determinar si dichas actividades contribuyen sustancialmente a la sostenibilidad. Las métricas corresponden a las unidades en las que se evalúan los umbrales. Por otro lado, los umbrales son los niveles mínimos que tienen que cumplir cada una de las actividades para argumentar que cuentan con contribución sustancial."]
[]
["562121. Recolección de residuos no peligrosos por el sector privado"]
["¿Los residuos sólidos urbanos y residuos de manejo especial son recolectados y separados desde la fuente, al menos en orgánicos e inorgánicos?",null,null,"Sí son separados en almenos orgánicos e inorgánicos","Todas las condiciones deben ser positivas para que la actividad contribuya sustancialmente a la sostenibilidad"]
["La separación de los residuos sucede desde la fuente de generación",null,null,"Seleccione"]
["¿La recolección y el transporte cumplen con las características mínimas (equipo y transporte) para su recolección y transporte hacia los diferentes puntos en la cadena de valorización y aprovechamiento de los residuos?",null,null,"Seleccione"]
["Para volúmenes, y flujos de residuos que por sus características sean clasificados como de manejo especial ¿Los procesos de generación, separación, recolección y transporte, están vinculados a un plan de manejo de residuos y, por lo tanto, cumplen con la regulación y normas aplicables a planes de manejo?",null,null,"Seleccione"]
[{"$f":"IF(OR(D7=\"Seleccione\",D8=\"Seleccione\",D9=\"Seleccione\",D10=\"Seleccione\"),\"Por definir\",IF(OR(D10=\"No\",D9=\"No\",D8=\"No\",D7=\"No son separados\"),\"La actividad no genera contribución sustancial\",\"La actividad sí contribuye sustancialmente a la sostenibilidad\"))","v":"Por definir"}]
[]
["562122. Recolección de residuos no peligrosos por el sector público"]
["¿Los residuos sólidos urbanos y residuos de manejo especial son recolectados y separados desde la fuente, al menos en orgánicos e inorgánicos?",null,null,"Sí son separados en almenos orgánicos e inorgánicos","Todas las condiciones que apliquen deben ser positivas para que la actividad contribuya sustancialmente a la sostenibilidad"]
["La separación de los residuos sucede desde la fuente de generación",null,null,"Sí"]
["¿La recolección y el transporte cumplen con las características mínimas (equipo y transporte) para su recolección y transporte hacia los diferentes puntos en la cadena de valorización y aprovechamiento de los residuos?",null,null,"Seleccione"]
["Para volúmenes, y flujos de residuos que por sus características sean clasificados como de manejo especial ¿Los procesos de generación, separación, recolección y transporte, están vinculados a un plan de manejo de residuos y, por lo tanto, cumplen con la regulación y normas aplicables a planes de manejo?",null,null,"Seleccione"]
[{"$f":"IF(OR(D14=\"Seleccione\",D15=\"Seleccione\",D16=\"Seleccione\",D17=\"Seleccione\"),\"Por definir\",IF(OR(D17=\"No\",D16=\"No\",D15=\"No\",D14=\"No son separados\"),\"La actividad no genera contribución sustancial\",\"La actividad sí contribuye sustancialmente a la sostenibilidad\"))","v":"Por definir"}]
[null,null,null,"Seleccione"]
["562221. Tratamiento y disposición final de residuos no peligrosos por el sector privado(Digestión anaeróbica)",null,null,"Seleccione"]
["¿El origen de los residuos a tratas proviene de fuentes alimentarias, agrícola, forestal o pecuaria?",null,null,"Seleccione","Todas las condiciones que apliquen deben ser positivas para que la actividad contribuya sustancialmente a la sostenibilidad"]
["¿Los biorresiduos están constituidos con al menos 70% de materia prima de entrada de fracción orgánica de los residuos sólidos urbanos (FORSU)? (medido en peso, como media anual)",null,null,"Seleccione"]
["La codigestión sólo es admisible con una parte menor (hasta el 30% de lodos provenientes de plantas de tratamiento de agua residual) y el resto con la FORSU, u otras corrientes de residuos que cumplan con las características similares de la FORSU. Otros sustratos favorables para la digestión anaerobia pueden ser: las excretas, el sargazo, los bagazos, etc. ¿Esto se cumple dentro del proyecto?",null,null,"Sí"]
["¿El proyecto cuenta con un plan de seguimiento y control de las emisiones de biogás (CH4) a través de un sistema MRV (monitoreo, reporte y verificación)?",null,null,"Sí"]
["¿El proyecto cuenta con un Plan de Manejo de Residuos para los Residuos de Manejo Especial que pasan por el proceso de digestión anaeróbica?",null,null,"Sí"]
["¿El digestato se utiliza como abono/mejorador de suelo o como materia prima dentro de otra cadena productiva?",null,null,"Sí"]
["¿El biogás producido se aprovecha para la generación de energía (térmica y/o eléctrica)?",null,null,"Seleccione"]
[{"$f":"IF(OR(D21=\"Seleccione\",D22=\"Seleccione\",D23=\"Seleccione\",D24=\"Seleccione\",D25=\"Seleccione\",D26=\"Seleccione\",D27=\"Seleccione\"),\"Por definir\",IF(OR(D21=\"No\",D22=\"No\",D23=\"No\",D24=\"No\",D27=\"No\",D26=\"No\",D25=\"No\",D25=\"No se tratan Resiudos de Manejo Especial\"),\"La actividad no genera contribución sustancial\",\"La actividad sí contribuye sustancialmente a la sostenibilidad\"))","v":"Por definir"}]
[null,null,null,"Seleccione"]
["562222. Tratamiento y disposición final de residuos no peligrosos por el sector público (Digestión anaeróbica)"]
["¿El origen de los residuos a tratas proviene de fuentes alimentarias, agrícola, forestal o pecuaria?",null,null,"Sí","Todas las condiciones que apliquen deben ser positivas para que la actividad contribuya sustancialmente a la sostenibilidad"]
["¿Los biorresiduos están constituidos con al menos 70% de materia prima de entrada de fracción orgánica de los residuos sólidos urbanos (FORSU)? (medido en peso, como media anual)",null,null,"Sí"]
["La codigestión sólo es admisible con una parte menor (hasta el 30% de lodos provenientes de plantas de tratamiento de agua residual) y el resto con la FORSU, u otras corrientes de residuos que cumplan con las características similares de la FORSU. Otros sustratos favorables para la digestión anaerobia pueden ser: las excretas, el sargazo, los bagazos, etc. ¿Esto se cumple dentro del proyecto?",null,null,"Sí"]
["¿El proyecto cuenta con un plan de seguimiento y control de las emisiones de biogás (CH4) a través de un sistema MRV (monitoreo, reporte y verificación)?",null,null,"Seleccione"]
["¿El proyecto cuenta con un Plan de Manejo de Residuos para los Residuos de Manejo Especial que pasan por el proceso de digestión anaeróbica?",null,null,"Seleccione"]
["¿El digestato se utiliza como abono/mejorador de suelo o como materia prima dentro de otra cadena productiva?",null,null,"Seleccione"]
["¿El biogás producido se aprovecha para la generación de energía (térmica y/o eléctrica)?",null,null,"Sí"]
[{"$f":"IF(OR(D31=\"Seleccione\",D32=\"Seleccione\",D33=\"Seleccione\",D34=\"Seleccione\",D35=\"Seleccione\",D36=\"Seleccione\",D37=\"Seleccione\"),\"Por definir\",IF(OR(D31=\"No\",D32=\"No\",D33=\"No\",D34=\"No\",D37=\"No\",D36=\"No\",D35=\"No\",D35=\"No se tratan Resiudos de Manejo Especial\"),\"La actividad no genera contribución sustancial\",\"La actividad sí contribuye sustancialmente a la sostenibilidad\"))","v":"Por definir"}]
[]
["562221. Tratamiento y disposición final de residuos no peligrosos por el sector privado (Compostaje)"]
["¿Sigue la jerarquía de gestión de residuos al utilizar el compostaje como el tratamiento principal para el digestato resultante del proceso de digestión anaerobia? En caso de que un residuo orgánico tenga prioridad para ser compostado antes de someterlo a procesos de digestión anaerobia, ¿está fomentando su aprovechamiento en procesos de compostaje?",null,null,"Seleccione","Todas las condiciones que apliquen deben ser positivas para que la actividad contribuya sustancialmente a la sostenibilidad"]
["¿El proyecto cuenta con un Plan de Manejo de Residuos para el caso de Residuos de Manejo Especial que pasan por el proceso de compostaje?",null,null,"Seleccione"]
["¿El producto de la composta se utiliza como abono/mejorador de suelo?",null,null,"Seleccione"]
[{"$f":"IF(OR(D41=\"Seleccione\",D42=\"Seleccione\",D43=\"Seleccione\"),\"Por definir\",IF(OR(D43=\"No\",D42=\"No\",D41=\"No\"),\"La actividad no genera contribución sustancial\",\"La actividad sí contribuye sustancialmente a la sostenibilidad\"))","v":"Por definir"}]
[]
["562222. Tratamiento y disposición final de residuos no peligrosos por el sector público (Compostaje)"]
["¿Sigue la jerarquía de gestión de residuos al utilizar el compostaje como el tratamiento principal para el digestato resultante del proceso de digestión anaerobia? En caso de que un residuo orgánico tenga prioridad para ser compostado antes de someterlo a procesos de digestión anaerobia, ¿está fomentando su aprovechamiento en procesos de compostaje?",null,null,"Sí","Todas las condiciones que apliquen deben ser positivas para que la actividad contribuya sustancialmente a la sostenibilidad"]
["¿El proyecto cuenta con un Plan de Manejo de Residuos para el caso de Residuos de Manejo Especial que pasan por el proceso de compostaje?",null,null,"Sí"]
["¿El producto de la composta se utiliza como abono/mejorador de suelo?",null,null,"Sí"]
[{"$f":"IF(OR(D47=\"Seleccione\",D48=\"Seleccione\",D49=\"Seleccione\"),\"Por definir\",IF(OR(D49=\"No\",D48=\"No\",D47=\"No\"),\"La actividad no genera contribución sustancial\",\"La actividad sí contribuye sustancialmente a la sostenibilidad\"))","v":"La actividad sí contribuye sustancialmente a la sostenibilidad"}]
[]
["562911. Servicios de remediación de residuos por el sector privado"]
["¿El proyecto cuenta con la autorización federal correspondiente en caso de que se atiendan residuos peligrosos en el contexto del proyecto?",null,null,"Sí","Todas las condiciones que apliquen deben ser positivas para que la actividad contribuya sustancialmente a la sostenibilidad"]
["Cuando se trate de un proceso de limpieza/tratamiento de agua, lodos y suelos de tipo anaerobio que pudiera generar emisiones e GEI se deberá contar con un plan de seguimiento y control de las emisiones a través de un sistema MRV",null,null,"Sí"]
["¿El proyecto cuenta con un Plan de Manejo de Residuos para el caso de Residuos de Manejo Especial que son tratados o remediados (incluyendo bioremediación) en el contexto del proyecto?",null,null,"Sí"]
[{"$f":"IF(OR(D53=\"Seleccione\",D54=\"Seleccione\",D55=\"Seleccione\"),\"Por definir\",IF(AND(D53=\"No se tratan Residuos Peligrosos\",D54=\"No se realizan procesos de limpieza/tratamiento de agua lodos o suelos\",D55=\"No se tratan Residuos de Manejo Especial\"),\"No hay condiciones para evaluar el proyecto\",IF(OR(D55=\"No\",D54=\"No\",D53=\"No\"),\"La actividad no genera contribución sustancial\",\"La actividad sí contribuye sustancialmente a la sostenibilidad\")))","v":"La actividad sí contribuye sustancialmente a la sostenibilidad"}]
[]
["562912. Servicios de remediación de residuos por el sector público"]
["¿El proyecto cuenta con la autorización federal correspondiente en caso de que se atiendan residuos peligrosos en el contexto del proyecto?",null,null,"Sí","Todas las condiciones que apliquen deben ser positivas para que la actividad contribuya sustancialmente a la sostenibilidad"]
["Cuando se trate de un proceso de limpieza/tratamiento de agua, lodos y suelos de tipo anaerobio que pudiera generar emisiones e GEI se deberá contar con un plan de seguimiento y control de las emisiones a través de un sistema MRV",null,null,"Sí"]
["¿El proyecto cuenta con un Plan de Manejo de Residuos para el caso de Residuos de Manejo Especial que son tratados o remediados (incluyendo bioremediación) en el contexto del proyecto?",null,null,"Sí"]
[{"$f":"IF(OR(D59=\"Seleccione\",D60=\"Seleccione\",D61=\"Seleccione\"),\"Por definir\",IF(AND(D59=\"No se tratan Residuos Peligrosos\",D60=\"No se realizan procesos de limpieza/tratamiento de agua lodos o suelos\",D61=\"No se tratan Residuos de Manejo Especial\"),\"No hay condiciones para evaluar el proyecto\",IF(OR(D61=\"No\",D60=\"No\",D59=\"No\"),\"La actividad no genera contribución sustancial\",\"La actividad sí contribuye sustancialmente a la sostenibilidad\")))","v":"La actividad sí contribuye sustancialmente a la sostenibilidad"}]
[]
["562921. Recuperación de residuos por el sector privado"]
["¿Existe separación desde la fuente de origen de los materiales a recuperar?",null,null,"Sí","Todas las condiciones deben ser positivas para que la actividad contribuya sustancialmente a la sostenibilidad"]
["¿Se producen materias primas secundarias o subproductos adecuados para la sustitución de materias primas vírgenes en los procesos de producción?",null,null,"Sí"]
["¿Al menos el 50%, en términos de peso, de los RSU/RME recogidos por separado y procesados se convierte en materias primas secundarias?",null,null,"Sí"]
["¿El proyecto cuenta con un Plan de Manejo de Residuos para el caso de Residuos de Manejo Especial que son recuperados (incluyendo bioremediación) en el contexto del proyecto?",null,null,"Sí"]
[{"$f":"IF(OR(D65=\"Seleccione\",D66=\"Seleccione\",D67=\"Seleccione\",D68=\"Seleccione\"),\"Por definir\",IF(OR(D68=\"No\",D67=\"No\",D66=\"No\",D65=\"No\"),\"La actividad no genera contribución sustancial\",\"La actividad sí contribuye sustancialmente a la sostenibilidad\"))","v":"La actividad sí contribuye sustancialmente a la sostenibilidad"}]
[]
["562922. Recuperación de residuos por el sector público"]
["¿Existe separación desde la fuente de origen de los materiales a recuperar?",null,null,"Sí","Todas las condiciones deben ser positivas para que la actividad contribuya sustancialmente a la sostenibilidad"]
["¿Se producen materias primas secundarias o subproductos adecuados para la sustitución de materias primas vírgenes en los procesos de producción?",null,null,"Sí"]
["¿Al menos el 50%, en términos de peso, de los RSU/RME recogidos por separado y procesados se convierte en materias primas secundarias?",null,null,"Sí"]
["¿El proyecto cuenta con un Plan de Manejo de Residuos para el caso de Residuos de Manejo Especial que son recuperados (incluyendo bioremediación) en el contexto del proyecto?",null,null,"No se recuperan Residuos de Manejo Especial"]
[{"$f":"IF(OR(D72=\"Seleccione\",D73=\"Seleccione\",D74=\"Seleccione\",D75=\"Seleccione\"),\"Por definir\",IF(OR(D75=\"No\",D74=\"No\",D73=\"No\",D72=\"No\"),\"La actividad no genera contribución sustancial\",\"La actividad sí contribuye sustancialmente a la sostenibilidad\"))","v":"La actividad sí contribuye sustancialmente a la sostenibilidad"}]

{"sheet":"Adaptación-Residuos","index":45,"n_rows":334,"n_cols":8,"rows_kept":334,"cut":false,"hidden":true,"merged":[[1,0,1,6],[3,0,3,6],[14,0,14,1],[15,0,15,5],[16,0,16,4],[17,0,17,4],[18,0,18,4],[19,0,19,6],[21,0,21,1],[6,0,6,5],[8,0,8,2],[10,0,10,3],[11,0,11,3],[39,0,39,5],[41,0,41,2],[43,0,43,3],[44,0,44,3],[47,0,47,1],[16,7,18,8],[23,7,24,8],[33,7,35,8],[24,0,24,4],[22,0,22,5],[23,0,23,4],[33,0,33,4],[34,0,34,4],[35,0,35,4],[36,0,36,6],[25,0,25,6],[27,0,27,1],[28,0,28,5],[29,0,29,4],[31,0,31,1],[32,0,32,5],[52,0,52,6],[54,0,54,1],[55,0,55,5],[56,0,56,4],[56,7,57,8],[57,0,57,4],[48,0,48,5],[49,0,49,4],[49,7,51,8],[50,0,50,4],[51,0,51,4],[65,0,65,5],[66,0,66,4],[66,7,68,8],[67,0,67,4],[68,0,68,4],[58,0,58,6],[60,0,60,1],[61,0,61,5],[62,0,62,4],[64,0,64,1],[89,7,90,8],[90,0,90,4],[80,0,80,1],[81,0,81,5],[82,0,82,4],[82,7,84,8],[83,0,83,4],[84,0,84,4],[69,0,69,6],[72,0,72,5],[74,0,74,2],[76,0,76,3],[77,0,77,3],[91,0,91,6],[93,0,93,1],[94,0,94,5],[95,0,95,4],[97,0,97,1],[85,0,85,6],[87,0,87,1],[88,0,88,5],[89,0,89,4],[102,0,102,6],[105,0,105,5],[107,0,107,2],[109,0,109,3],[110,0,110,3],[98,0,98,5],[99,0,99,4],[99,7,101,8],[100,0,100,4],[101,0,101,4],[118,0,118,6],[120,0,120,1],[121,0,121,5],[122,0,122,4],[122,7,123,8],[123,0,123,4],[113,0,113,1],[114,0,114,5],[115,0,115,4],[115,7,117,8],[116,0,116,4],[117,0,117,4],[131,0,131,5],[132,0,132,4],[132,7,134,8],[133,0,133,4],[134,0,134,4],[124,0,124,6],[126,0,126,1],[127,0,127,5],[128,0,128,4],[130,0,130,1],[155,7,156,8],[156,0,156,4],[146,0,146,1],[147,0,147,5],[148,0,148,4],[148,7,150,8],[149,0,149,4],[150,0,150,4],[135,0,135,6],[138,0,138,5],[140,0,140,2],[142,0,142,3],[143,0,143,3],[157,0,157,6],[159,0,159,1],[160,0,160,5],[161,0,161,4],[163,0,163,1],[151,0,151,6],[153,0,153,1],[154,0,154,5],[155,0,155,4],[168,0,168,6],[171,0,171,5],[173,0,173,2],[175,0,175,3],[176,0,176,3],[164,0,164,5],[165,0,165,4],[165,7,167,8],[166,0,166,4],[167,0,167,4],[184,0,184,6],[186,0,186,1],[187,0,187,5],[188,0,188,4],[188,7,189,8],[189,0,189,4],[179,0,179,1],[180,0,180,5],[181,0,181,4],[181,7,183,8],[182,0,182,4],[183,0,183,4],[197,0,197,5],[198,0,198,4],[198,7,200,8],[199,0,199,4],[200,0,200,4],[190,0,190,6],[192,0,192,1],[193,0,193,5],[194,0,194,4],[196,0,196,1],[221,7,222,8],[222,0,222,4],[212,0,212,1],[213,0,213,5],[214,0,214,4],[214,7,216,8],[215,0,215,4],[216,0,216,4],[201,0,201,6],[204,0,204,5],[206,0,206,2],[208,0,208,3],[209,0,209,3],[223,0,223,6],[225,0,225,1],[226,0,226,5],[227,0,227,4],[229,0,229,1],[217,0,217,6],[219,0,219,1],[220,0,220,5],[221,0,221,4],[234,0,234,6],[237,0,237,5],[239,0,239,2],[241,0,241,3],[242,0,242,3],[230,0,230,5],[231,0,231,4],[231,7,233,8],[232,0,232,4],[233,0,233,4],[250,0,250,6],[252,0,252,1],[253,0,253,5],[254,0,254,4],[254,7,255,8],[255,0,255,4],[245,0,245,1],[246,0,246,5],[247,0,247,4],[247,7,249,8],[248,0,248,4],[249,0,249,4],[263,0,263,5],[264,0,264,4],[264,7,266,8],[265,0,265,4],[266,0,266,4],[256,0,256,6],[258,0,258,1],[259,0,259,5],[260,0,260,4],[262,0,262,1],[287,7,288,8],[288,0,288,4],[278,0,278,1],[279,0,279,5],[280,0,280,4],[280,7,282,8],[281,0,281,4],[282,0,282,4],[267,0,267,6],[270,0,270,5],[272,0,272,2],[274,0,274,3],[275,0,275,3],[289,0,289,6],[291,0,291,1],[292,0,292,5],[293,0,293,4],[295,0,295,1],[283,0,283,6],[285,0,285,1],[286,0,286,5],[287,0,287,4],[300,0,300,6],[303,0,303,5],[305,0,305,2],[307,0,307,3],[308,0,308,3],[296,0,296,5],[297,0,297,4],[297,7,299,8],[298,0,298,4],[299,0,299,4],[316,0,316,6],[318,0,318,1],[319,0,319,5],[320,0,320,4],[320,7,321,8],[321,0,321,4],[311,0,311,1],[312,0,312,5],[313,0,313,4],[313,7,315,8],[314,0,314,4],[315,0,315,4],[333,0,333,6],[329,0,329,5],[330,0,330,4],[330,7,332,8],[331,0,331,4],[332,0,332,4],[322,0,322,6],[324,0,324,1],[325,0,325,5],[326,0,326,4],[328,0,328,1]]}
[]
["Adaptación al cambio climático de actividades del sector de manejo de residuos y servicios de remediación"]
[]
["La Taxonomía Sostenible de México reconoce que el país está expuesto a riesgos climáticos y ambientales heterogéneos no lineales que tienen múltiples canales de transmisión y, por ende, que el cambio climático afecta en distinta medida a todos los sectores de la economía. En este sentido, a través de la Taxonomía se busca que las actividades económicas contribuyan sustancialmente, no sólo a la mitigación, sino también a la adaptación del cambio climático. "]
[]
["562121. Recolección de residuos no peligrosos por el sector privado"]
["Responde las siguientes preguntas seleccionando una respuesta de la lista"]
[]
["1. La actividad que estás evaluando es una actividad adaptada o una actividad que facilita la adaptación?",null,null,"Actividad que facilita la adaptación e incluye desarrollo de infraestructura"]
[]
["¿Qué es una actividad adaptada?\nUna actividad económica se adapta a los riesgos climáticos físicos materiales, si integra medidas y/o soluciones para reducirlos, mientras garantiza que la actividad económica pueda funcionar bien en un clima cambiante. Estas actividades de adaptación se desarrollan a partir de la evaluación de riesgos actuales y futuros, ya sean climáticos, crónicos y/o agudos, así como la escala temporal y geográfica de la actividad económica."]
["¿Qué es una actividad que facilita la adaptación? \nUna actividad económica posibilita la adaptación si reduce el riesgo climático físico material y la vulnerabilidad en otras actividades económicas, comunidades, ecosistemas o ciudades, y/o aborda los obstáculos sistémicos a la adaptación. Esto es posible a través del uso de la tecnología y la creación de un producto o servicio especializado."]
[]
[]
["A1. Reducción de los riesgos climáticos físicos materiales."]
["La actividad económica debe reducir todos los riesgos climáticos físicos materiales para las actividades evaluadas, en la medida de lo posible y sobre la base del mejor esfuerzo. Selecciona las respuestas en las listas desplegables"]
["¿La actividad económica integra medidas destinadas a reducir, en la medida de lo posible y sobre la base del mejor esfuerzo, los riesgos climáticos físicos materiales para esa actividad, que han sido identificados mediante una evaluación de riesgos?",null,null,null,null,"Sí",{"$f":"IF(F17=\"Seleccione\",\"Por definir\",IF(F17=\"Sí\",\"El primer criterio se cumple satisfactoriamente\",\"Al no cumplir con este criterio, no es posible generar contribución sustancial\"))","v":"El primer criterio se cumple satisfactoriamente"},"Las tres condiciones deben cumplirse para argumentar que la actividad tiene contribución sustancial"]
["¿Esta evaluación considera tanto la variabilidad meteorológica actual, como el cambio climático futuro, incluidos los escenarios climáticos, así como la incertidumbre?",null,null,null,null,"Sí",{"$f":"IF(F18=\"Seleccione\",\"Por definir\",IF(F18=\"Sí\",\"El segundo criterio se cumple satisfactoriamente\",\"Al no cumplir con este criterio, no es posible generar contribución sustancial\"))","v":"El segundo criterio se cumple satisfactoriamente"}]
["¿Igualmente la evaluación se basa en un sólido análisis de los datos e información disponible sobre los distintos escenarios climáticos, y es coherente con la duración prevista de la actividad?",null,null,null,null,"Sí",{"$f":"IF(F19=\"Seleccione\",\"Por definir\",IF(F19=\"Sí\",\"El tercer criterio se cumple satisfactoriamente\",\"Al no cumplir con este criterio, no es posible generar contribución sustancial\"))","v":"El tercer criterio se cumple satisfactoriamente"}]
[{"$f":"IF(OR(F17=\"Seleccione\",F18=\"Seleccione\",F19=\"Seleccione\"),\"Por definir\",IF(OR(F17=\"No\",F18=\"No\",F19=\"No\"),\"La actividad no genera contribución sustancial\", \"La actividad sí contribuye sustancialmente a la sostenibilidad\"))","v":"La actividad sí contribuye sustancialmente a la sostenibilidad"}]
[]
["A2. Apoyo a la adaptación del sistema. "]
["La actividad económica y sus medidas de adaptación no afectan negativamente los esfuerzos de adaptación de otras personas, la naturaleza y los bienes. Selecciona las respuestas en las listas desplegables"]
[" La actividad económica y sus medidas de adaptación no aumentan los riesgos de un impacto climático adverso sobre otras personas, la naturaleza y los bienes",null,null,null,null,"Sí",{"$f":"IF(F24=\"Seleccione\",\"Por definir\",IF(F24=\"Sí\",\"El primer criterio se cumple satisfactoriamente\",\"Al no cumplir con este criterio, no es posible generar contribución sustancial\"))","v":"El primer criterio se cumple satisfactoriamente"},"Las dos condiciones deben cumplirse para argumentar que la actividad tiene contribución sustancial"]
["La actividad económica y sus medidas de adaptación son consistentes con los esfuerzos de adaptación a nivel sectorial, regional y/o nacional.",null,null,null,null,"Sí",{"$f":"IF(F25=\"Seleccione\",\"Por definir\",IF(F25=\"Sí\",\"El segundo criterio se cumple satisfactoriamente\",\"Al no cumplir con este criterio, no es posible generar contribución sustancial\"))","v":"El segundo criterio se cumple satisfactoriamente"}]
[{"$f":"IF(OR(F24=\"Seleccione\",F25=\"Seleccione\"),\"Por definir\",IF(OR(F24=\"No\",F25=\"No\"),\"La actividad no genera contribución sustancial\", \"La actividad sí contribuye sustancialmente a la sostenibilidad\"))","v":"La actividad sí contribuye sustancialmente a la sostenibilidad"}]
[]
["A3. Monitoreo de los resultados de adaptación."]
["En el contexto de la actividad evaluada, la reducción de los riesgos físicos se puede medir. Selecciona las respuestas en las listas desplegables"]
[" Los resultados de adaptación pueden ser monitoreados y medidos con base en indicadores. Considerando que los riesgos físicos evolucionan con el tiempo, el análisis de riesgos físicos debe llevarse a cabo con la frecuencia adecuada.  ¿Esto se evalúa dentro de la operación financiera y/o proyecto?",null,null,null,null,"Sí",{"$f":"IF(F30=\"Seleccione\",\"Por definir\",IF(F30=\"Sí\",\"La actividad sí contribuye sustancialmente a la sostenbilidad\",\"El proyecto no genera contribución sustancial\"))","v":"La actividad sí contribuye sustancialmente a la sostenbilidad"}]
[]
["B1. Apoyar a la adaptación de otras actividades económicas."]
["La actividad económica reduce el riesgo climático físico material en otras actividades económicas y/o aborda los obstáculos sistémicos para la adaptación. Las actividades que permiten la adaptación incluyen, pero no se limitan a, actividades que promueven una tecnología, un producto, una práctica, un proceso de gobernanza o usos innovadores de tecnologías, productos o prácticas existentes (incluidos los relacionados con las infraestructuras naturales). Además, eliminan las barreras de información, financieras, tecnológicas y de capacidad para la adaptación de otros. Selecciona las respuestas en las listas desplegables"]
["¿Se realiza una evaluación de los riesgos resultantes, con base en datos sólidos, tanto de la variabilidad  meteorológica actual como del cambio climático futuro, incluidos los escenarios climáticos, así como  la incertidumbre, que la actividad económica contribuirá a abordar?",null,null,null,null,"Sí",{"$f":"IF(F34=\"Seleccione\",\"Por definir\",IF(F34=\"Sí\",\"El primer criterio se cumple satisfactoriamente\",\"Al no cumplir con este criterio, no es posible generar contribución sustancial\"))","v":"El primer criterio se cumple satisfactoriamente"},"Las tres condiciones en caso de que apliquen deben cumplirse para argumentar que la actividad tiene contribución sustancial. La tercera opción podría no aplicar. En este caso se evaluaran las primeras dos cuestiones"]
["¿Se realiza una evaluación de la eficacia de la contribución de la actividad económica a la reducción de los riesgos físicos, teniendo en cuenta la escala de exposición y la vulnerabilidad a los mismos?",null,null,null,null,"Sí",{"$f":"IF(F35=\"Seleccione\",\"Por definir\",IF(F35=\"Sí\",\"El segundo criterio se cumple satisfactoriamente\",\"Al no cumplir con este criterio, no es posible generar contribución sustancial\"))","v":"El segundo criterio se cumple satisfactoriamente"}]
["En el caso de una infraestructura vinculada a una actividad que permita la adaptación, dicha infraestructura debe cumplir también los criterios de selección A1, A2 y A3. ¿Esto se cumple en el contexto del proyecto?",null,null,null,null,"Sí",{"$f":"IF(F36=\"Seleccione\",\"Por definir\",IF(F36=\"Sí\",\"El tercer criterio se cumple satisfactoriamente\",IF(F36=\"No aplica\",\"No aplica\",\"El proyecto no genera contribución sustancial\")))","v":"El tercer criterio se cumple satisfactoriamente"}]
[{"$f":"IF(OR(F34=\"Seleccione\",F35=\"Seleccione\",F36=\"Seleccione\"),\"Por definir\",IF(OR(F34=\"No\",F35=\"No\",F36=\"No\"),\"La actividad no genera contribución sustancial\",\"La actividad sí contribuye sustancialmente a la sostenibilidad\"))","v":"La actividad sí contribuye sustancialmente a la sostenibilidad"}]
[]
["562122. Recolección de residuos no peligrosos por el sector público"]
["Responde las siguientes preguntas seleccionando una respuesta de la lista"]
[]
["1. La actividad que estás evaluando es una actividad adaptada o una actividad que facilita la adaptación?",null,null,"Actividad que facilita la adaptación e incluye desarrollo de infraestructura"]
[]
["¿Qué es una actividad adaptada?\nUna actividad económica se adapta a los riesgos climáticos físicos materiales, si integra medidas y/o soluciones para reducirlos, mientras garantiza que la actividad económica pueda funcionar bien en un clima cambiante. Estas actividades de adaptación se desarrollan a partir de la evaluación de riesgos actuales y futuros, ya sean climáticos, crónicos y/o agudos, así como la escala temporal y geográfica de la actividad económica."]
["¿Qué es una actividad que facilita la adaptación? \nUna actividad económica posibilita la adaptación si reduce el riesgo climático físico material y la vulnerabilidad en otras actividades económicas, comunidades, ecosistemas o ciudades, y/o aborda los obstáculos sistémicos a la adaptación. Esto es posible a través del uso de la tecnología y la creación de un producto o servicio especializado."]
[]
[]
["A1. Reducción de los riesgos climáticos físicos materiales."]
["La actividad económica debe reducir todos los riesgos climáticos físicos materiales para las actividades evaluadas, en la medida de lo posible y sobre la base del mejor esfuerzo. Selecciona las respuestas en las listas desplegables"]
["¿La actividad económica integra medidas destinadas a reducir, en la medida de lo posible y sobre la base del mejor esfuerzo, los riesgos climáticos físicos materiales para esa actividad, que han sido identificados mediante una evaluación de riesgos?",null,null,null,null,"Sí",{"$f":"IF(F50=\"Seleccione\",\"Por definir\",IF(F50=\"Sí\",\"El primer criterio se cumple satisfactoriamente\",\"Al no cumplir con este criterio, no es posible generar contribución sustancial\"))","v":"El primer criterio se cumple satisfactoriamente"},"Las tres condiciones deben cumplirse para argumentar que la actividad tiene contribución sustancial"]
["¿Esta evaluación considera tanto la variabilidad meteorológica actual, como el cambio climático futuro, incluidos los escenarios climáticos, así como la incertidumbre?",null,null,null,null,"Sí",{"$f":"IF(F51=\"Seleccione\",\"Por definir\",IF(F51=\"Sí\",\"El segundo criterio se cumple satisfactoriamente\",\"Al no cumplir con este criterio, no es posible generar contribución sustancial\"))","v":"El segundo criterio se cumple satisfactoriamente"}]
["¿Igualmente la evaluación se basa en un sólido análisis de los datos e información disponible sobre los distintos escenarios climáticos, y es coherente con la duración prevista de la actividad?",null,null,null,null,"Sí",{"$f":"IF(F52=\"Seleccione\",\"Por definir\",IF(F52=\"Sí\",\"El tercer criterio se cumple satisfactoriamente\",\"Al no cumplir con este criterio, no es posible generar contribución sustancial\"))","v":"El tercer criterio se cumple satisfactoriamente"}]
[{"$f":"IF(OR(F50=\"Seleccione\",F51=\"Seleccione\",F52=\"Seleccione\"),\"Por definir\",IF(OR(F50=\"No\",F51=\"No\",F52=\"No\"),\"La actividad no genera contribución sustancial\", \"La actividad sí contribuye sustancialmente a la sostenibilidad\"))","v":"La actividad sí contribuye sustancialmente a la sostenibilidad"}]
[]
["A2. Apoyo a la adaptación del sistema. "]
["La actividad económica y sus medidas de adaptación no afectan negativamente los esfuerzos de adaptación de otras personas, la naturaleza y los bienes. Selecciona las respuestas en las listas desplegables"]
[" La actividad económica y sus medidas de adaptación no aumentan los riesgos de un impacto climático adverso sobre otras personas, la naturaleza y los bienes",null,null,null,null,"Sí",{"$f":"IF(F57=\"Seleccione\",\"Por definir\",IF(F57=\"Sí\",\"El primer criterio se cumple satisfactoriamente\",\"Al no cumplir con este criterio, no es posible generar contribución sustancial\"))","v":"El primer criterio se cumple satisfactoriamente"},"Las dos condiciones deben cumplirse para argumentar que la actividad tiene contribución sustancial"]
["La actividad económica y sus medidas de adaptación son consistentes con los esfuerzos de adaptación a nivel sectorial, regional y/o nacional.",null,null,null,null,"Sí",{"$f":"IF(F58=\"Seleccione\",\"Por definir\",IF(F58=\"Sí\",\"El segundo criterio se cumple satisfactoriamente\",\"Al no cumplir con este criterio, no es posible generar contribución sustancial\"))","v":"El segundo criterio se cumple satisfactoriamente"}]
[{"$f":"IF(OR(F57=\"Seleccione\",F58=\"Seleccione\"),\"Por definir\",IF(OR(F57=\"No\",F58=\"No\"),\"La actividad no genera contribución sustancial\", \"La actividad sí contribuye sustancialmente a la sostenibilidad\"))","v":"La actividad sí contribuye sustancialmente a la sostenibilidad"}]
[]
["A3. Monitoreo de los resultados de adaptación."]
["En el contexto de la actividad evaluada, la reducción de los riesgos físicos se puede medir. Selecciona las respuestas en las listas desplegables"]
[" Los resultados de adaptación pueden ser monitoreados y medidos con base en indicadores. Considerando que los riesgos físicos evolucionan con el tiempo, el análisis de riesgos físicos debe llevarse a cabo con la frecuencia adecuada.  ¿Esto se evalúa dentro de la operación financiera y/o proyecto?",null,null,null,null,"Sí",{"$f":"IF(F63=\"Seleccione\",\"Por definir\",IF(F63=\"Sí\",\"La actividad sí contribuye sustancialmente a la sostenbilidad\",\"El proyecto no genera contribución sustancial\"))","v":"La actividad sí contribuye sustancialmente a la sostenbilidad"}]
[]
["B1. Apoyar a la adaptación de otras actividades económicas."]
["La actividad económica reduce el riesgo climático físico material en otras actividades económicas y/o aborda los obstáculos sistémicos para la adaptación. Las actividades que permiten la adaptación incluyen, pero no se limitan a, actividades que promueven una tecnología, un producto, una práctica, un proceso de gobernanza o usos innovadores de tecnologías, productos o prácticas existentes (incluidos los relacionados con las infraestructuras naturales). Además, eliminan las barreras de información, financieras, tecnológicas y de capacidad para la adaptación de otros. Selecciona las respuestas en las listas desplegables"]
["¿Se realiza una evaluación de los riesgos resultantes, con base en datos sólidos, tanto de la variabilidad  meteorológica actual como del cambio climático futuro, incluidos los escenarios climáticos, así como  la incertidumbre, que la actividad económica contribuirá a abordar?",null,null,null,null,"Sí",{"$f":"IF(F67=\"Seleccione\",\"Por definir\",IF(F67=\"Sí\",\"El primer criterio se cumple satisfactoriamente\",\"Al no cumplir con este criterio, no es posible generar contribución sustancial\"))","v":"El primer criterio se cumple satisfactoriamente"},"Las tres condiciones en caso de que apliquen deben cumplirse para argumentar que la actividad tiene contribución sustancial. La tercera opción podría no aplicar. En este caso se evaluaran las primeras dos cuestiones"]
["¿Se realiza una evaluación de la eficacia de la contribución de la actividad económica a la reducción de los riesgos físicos, teniendo en cuenta la escala de exposición y la vulnerabilidad a los mismos?",null,null,null,null,"Sí",{"$f":"IF(F68=\"Seleccione\",\"Por definir\",IF(F68=\"Sí\",\"El segundo criterio se cumple satisfactoriamente\",\"Al no cumplir con este criterio, no es posible generar contribución sustancial\"))","v":"El segundo criterio se cumple satisfactoriamente"}]
["En el caso de una infraestructura vinculada a una actividad que permita la adaptación, dicha infraestructura debe cumplir también los criterios de selección A1, A2 y A3. ¿Esto se cumple en el contexto del proyecto?",null,null,null,null,"Sí",{"$f":"IF(F69=\"Seleccione\",\"Por definir\",IF(F69=\"Sí\",\"El tercer criterio se cumple satisfactoriamente\",IF(F69=\"No aplica\",\"No aplica\",\"El proyecto no genera contribución sustancial\")))","v":"El tercer criterio se cumple satisfactoriamente"}]
[{"$f":"IF(OR(F67=\"Seleccione\",F68=\"Seleccione\",F69=\"Seleccione\"),\"Por definir\",IF(OR(F67=\"No\",F68=\"No\",F69=\"No\"),\"La actividad no genera contribución sustancial\",\"La actividad sí contribuye sustancialmente a la sostenibilidad\"))","v":"La actividad sí contribuye sustancialmente a la sostenibilidad"}]
[]
["562221. Tratamiento y disposición final de residuos no peligrosos por el sector privado(Digestión anaeróbica)"]
["Responde las siguientes preguntas seleccionando una respuesta de la lista"]
[]
["1. La actividad que estás evaluando es una actividad adaptada o una actividad que facilita la adaptación?",null,null,"Actividad que facilita la adaptación e incluye desarrollo de infraestructura"]
[]
["¿Qué es una actividad adaptada?\nUna actividad económica se adapta a los riesgos climáticos físicos materiales, si integra medidas y/o soluciones para reducirlos, mientras garantiza que la actividad económica pueda funcionar bien en un clima cambiante. Estas actividades de adaptación se desarrollan a partir de la evaluación de riesgos actuales y futuros, ya sean climáticos, crónicos y/o agudos, así como la escala temporal y geográfica de la actividad económica."]
["¿Qué es una actividad que facilita la adaptación? \nUna actividad económica posibilita la adaptación si reduce el riesgo climático físico material y la vulnerabilidad en otras actividades económicas, comunidades, ecosistemas o ciudades, y/o aborda los obstáculos sistémicos a la adaptación. Esto es posible a través del uso de la tecnología y la creación de un producto o servicio especializado."]
[]
[]
["A1. Reducción de los riesgos climáticos físicos materiales."]
["La actividad económica debe reducir todos los riesgos climáticos físicos materiales para las actividades evaluadas, en la medida de lo posible y sobre la base del mejor esfuerzo. Selecciona las respuestas en las listas desplegables"]
["¿La actividad económica integra medidas destinadas a reducir, en la medida de lo posible y sobre la base del mejor esfuerzo, los riesgos climáticos físicos materiales para esa actividad, que han sido identificados mediante una evaluación de riesgos?",null,null,null,null,"Sí",{"$f":"IF(F83=\"Seleccione\",\"Por definir\",IF(F83=\"Sí\",\"El primer criterio se cumple satisfactoriamente\",\"Al no cumplir con este criterio, no es posible generar contribución sustancial\"))","v":"El primer criterio se cumple satisfactoriamente"},"Las tres condiciones deben cumplirse para argumentar que la actividad tiene contribución sustancial"]
["¿Esta evaluación considera tanto la variabilidad meteorológica actual, como el cambio climático futuro, incluidos los escenarios climáticos, así como la incertidumbre?",null,null,null,null,"Sí",{"$f":"IF(F84=\"Seleccione\",\"Por definir\",IF(F84=\"Sí\",\"El segundo criterio se cumple satisfactoriamente\",\"Al no cumplir con este criterio, no es posible generar contribución sustancial\"))","v":"El segundo criterio se cumple satisfactoriamente"}]
["¿Igualmente la evaluación se basa en un sólido análisis de los datos e información disponible sobre los distintos escenarios climáticos, y es coherente con la duración prevista de la actividad?",null,null,null,null,"Sí",{"$f":"IF(F85=\"Seleccione\",\"Por definir\",IF(F85=\"Sí\",\"El tercer criterio se cumple satisfactoriamente\",\"Al no cumplir con este criterio, no es posible generar contribución sustancial\"))","v":"El tercer criterio se cumple satisfactoriamente"}]
[{"$f":"IF(OR(F83=\"Seleccione\",F84=\"Seleccione\",F85=\"Seleccione\"),\"Por definir\",IF(OR(F83=\"No\",F84=\"No\",F85=\"No\"),\"La actividad no genera contribución sustancial\", \"La actividad sí contribuye sustancialmente a la sostenibilidad\"))","v":"La actividad sí contribuye sustancialmente a la sostenibilidad"}]
[]
["A2. Apoyo a la adaptación del sistema. "]
["La actividad económica y sus medidas de adaptación no afectan negativamente los esfuerzos de adaptación de otras personas, la naturaleza y los bienes. Selecciona las respuestas en las listas desplegables"]
[" La actividad económica y sus medidas de adaptación no aumentan los riesgos de un impacto climático adverso sobre otras personas, la naturaleza y los bienes",null,null,null,null,"Sí",{"$f":"IF(F90=\"Seleccione\",\"Por definir\",IF(F90=\"Sí\",\"El primer criterio se cumple satisfactoriamente\",\"Al no cumplir con este criterio, no es posible generar contribución sustancial\"))","v":"El primer criterio se cumple satisfactoriamente"},"Las dos condiciones deben cumplirse para argumentar que la actividad tiene contribución sustancial"]
["La actividad económica y sus medidas de adaptación son consistentes con los esfuerzos de adaptación a nivel sectorial, regional y/o nacional.",null,null,null,null,"Sí",{"$f":"IF(F91=\"Seleccione\",\"Por definir\",IF(F91=\"Sí\",\"El segundo criterio se cumple satisfactoriamente\",\"Al no cumplir con este criterio, no es posible generar contribución sustancial\"))","v":"El segundo criterio se cumple satisfactoriamente"}]
[{"$f":"IF(OR(F90=\"Seleccione\",F91=\"Seleccione\"),\"Por definir\",IF(OR(F90=\"No\",F91=\"No\"),\"La actividad no genera contribución sustancial\", \"La actividad sí contribuye sustancialmente a la sostenibilidad\"))","v":"La actividad sí contribuye sustancialmente a la sostenibilidad"}]
[]
["A3. Monitoreo de los resultados de adaptación."]
["En el contexto de la actividad evaluada, la reducción de los riesgos físicos se puede medir. Selecciona las respuestas en las listas desplegables"]
[" Los resultados de adaptación pueden ser monitoreados y medidos con base en indicadores. Considerando que los riesgos físicos evolucionan con el tiempo, el análisis de riesgos físicos debe llevarse a cabo con la frecuencia adecuada.  ¿Esto se evalúa dentro de la operación financiera y/o proyecto?",null,null,null,null,"Sí",{"$f":"IF(F96=\"Seleccione\",\"Por definir\",IF(F96=\"Sí\",\"La actividad sí contribuye sustancialmente a la sostenbilidad\",\"El proyecto no genera contribución sustancial\"))","v":"La actividad sí contribuye sustancialmente a la sostenbilidad"}]
[]
["B1. Apoyar a la adaptación de otras actividades económicas."]
["La actividad económica reduce el riesgo climático físico material en otras actividades económicas y/o aborda los obstáculos sistémicos para la adaptación. Las actividades que permiten la adaptación incluyen, pero no se limitan a, actividades que promueven una tecnología, un producto, una práctica, un proceso de gobernanza o usos innovadores de tecnologías, productos o prácticas existentes (incluidos los relacionados con las infraestructuras naturales). Además, eliminan las barreras de información, financieras, tecnológicas y de capacidad para la adaptación de otros. Selecciona las respuestas en las listas desplegables"]
["¿Se realiza una evaluación de los riesgos resultantes, con base en datos sólidos, tanto de la variabilidad  meteorológica actual como del cambio climático futuro, incluidos los escenarios climáticos, así como  la incertidumbre, que la actividad económica contribuirá a abordar?",null,null,null,null,"Sí",{"$f":"IF(F100=\"Seleccione\",\"Por definir\",IF(F100=\"Sí\",\"El primer criterio se cumple satisfactoriamente\",\"Al no cumplir con este criterio, no es posible generar contribución sustancial\"))","v":"El primer criterio se cumple satisfactoriamente"},"Las tres condiciones en caso de que apliquen deben cumplirse para argumentar que la actividad tiene contribución sustancial. La tercera opción podría no aplicar. En este caso se evaluaran las primeras dos cuestiones"]
["¿Se realiza una evaluación de la eficacia de la contribución de la actividad económica a la reducción de los riesgos físicos, teniendo en cuenta la escala de exposición y la vulnerabilidad a los mismos?",null,null,null,null,"Sí",{"$f":"IF(F101=\"Seleccione\",\"Por definir\",IF(F101=\"Sí\",\"El segundo criterio se cumple satisfactoriamente\",\"Al no cumplir con este criterio, no es posible generar contribución sustancial\"))","v":"El segundo criterio se cumple satisfactoriamente"}]
["En el caso de una infraestructura vinculada a una actividad que permita la adaptación, dicha infraestructura debe cumplir también los criterios de selección A1, A2 y A3. ¿Esto se cumple en el contexto del proyecto?",null,null,null,null,"Sí",{"$f":"IF(F102=\"Seleccione\",\"Por definir\",IF(F102=\"Sí\",\"El tercer criterio se cumple satisfactoriamente\",IF(F102=\"No aplica\",\"No aplica\",\"El proyecto no genera contribución sustancial\")))","v":"El tercer criterio se cumple satisfactoriamente"}]
[{"$f":"IF(OR(F100=\"Seleccione\",F101=\"Seleccione\",F102=\"Seleccione\"),\"Por definir\",IF(OR(F100=\"No\",F101=\"No\",F102=\"No\"),\"La actividad no genera contribución sustancial\",\"La actividad sí contribuye sustancialmente a la sostenibilidad\"))","v":"La actividad sí contribuye sustancialmente a la sostenibilidad"}]
[]
["562222. Tratamiento y disposición final de residuos no peligrosos por el sector público (Digestión anaeróbica)"]
["Responde las siguientes preguntas seleccionando una respuesta de la lista"]
[]
["1. La actividad que estás evaluando es una actividad adaptada o una actividad que facilita la adaptación?",null,null,"Actividad que facilita la adaptación e incluye desarrollo de infraestructura"]
[]
["¿Qué es una actividad adaptada?\nUna actividad económica se adapta a los riesgos climáticos físicos materiales, si integra medidas y/o soluciones para reducirlos, mientras garantiza que la actividad económica pueda funcionar bien en un clima cambiante. Estas actividades de adaptación se desarrollan a partir de la evaluación de riesgos actuales y futuros, ya sean climáticos, crónicos y/o agudos, así como la escala temporal y geográfica de la actividad económica."]
["¿Qué es una actividad que facilita la adaptación? \nUna actividad económica posibilita la adaptación si reduce el riesgo climático físico material y la vulnerabilidad en otras actividades económicas, comunidades, ecosistemas o ciudades, y/o aborda los obstáculos sistémicos a la adaptación. Esto es posible a través del uso de la tecnología y la creación de un producto o servicio especializado."]
[]
[]
["A1. Reducción de los riesgos climáticos físicos materiales."]
["La actividad económica debe reducir todos los riesgos climáticos físicos materiales para las actividades evaluadas, en la medida de lo posible y sobre la base del mejor esfuerzo. Selecciona las respuestas en las listas desplegables"]
["¿La actividad económica integra medidas destinadas a reducir, en la medida de lo posible y sobre la base del mejor esfuerzo, los riesgos climáticos físicos materiales para esa actividad, que han sido identificados mediante una evaluación de riesgos?",null,null,null,null,"Sí",{"$f":"IF(F116=\"Seleccione\",\"Por definir\",IF(F116=\"Sí\",\"El primer criterio se cumple satisfactoriamente\",\"Al no cumplir con este criterio, no es posible generar contribución sustancial\"))","v":"El primer criterio se cumple satisfactoriamente"},"Las tres condiciones deben cumplirse para argumentar que la actividad tiene contribución sustancial"]
["¿Esta evaluación considera tanto la variabilidad meteorológica actual, como el cambio climático futuro, incluidos los escenarios climáticos, así como la incertidumbre?",null,null,null,null,"Sí",{"$f":"IF(F117=\"Seleccione\",\"Por definir\",IF(F117=\"Sí\",\"El segundo criterio se cumple satisfactoriamente\",\"Al no cumplir con este criterio, no es posible generar contribución sustancial\"))","v":"El segundo criterio se cumple satisfactoriamente"}]
["¿Igualmente la evaluación se basa en un sólido análisis de los datos e información disponible sobre los distintos escenarios climáticos, y es coherente con la duración prevista de la actividad?",null,null,null,null,"Sí",{"$f":"IF(F118=\"Seleccione\",\"Por definir\",IF(F118=\"Sí\",\"El tercer criterio se cumple satisfactoriamente\",\"Al no cumplir con este criterio, no es posible generar contribución sustancial\"))","v":"El tercer criterio se cumple satisfactoriamente"}]
[{"$f":"IF(OR(F116=\"Seleccione\",F117=\"Seleccione\",F118=\"Seleccione\"),\"Por definir\",IF(OR(F116=\"No\",F117=\"No\",F118=\"No\"),\"La actividad no genera contribución sustancial\", \"La actividad sí contribuye sustancialmente a la sostenibilidad\"))","v":"La actividad sí contribuye sustancialmente a la sostenibilidad"}]
[]
["A2. Apoyo a la adaptación del sistema. "]
["La actividad económica y sus medidas de adaptación no afectan negativamente los esfuerzos de adaptación de otras personas, la naturaleza y los bienes. Selecciona las respuestas en las listas desplegables"]
[" La actividad económica y sus medidas de adaptación no aumentan los riesgos de un impacto climático adverso sobre otras personas, la naturaleza y los bienes",null,null,null,null,"Sí",{"$f":"IF(F123=\"Seleccione\",\"Por definir\",IF(F123=\"Sí\",\"El primer criterio se cumple satisfactoriamente\",\"Al no cumplir con este criterio, no es posible generar contribución sustancial\"))","v":"El primer criterio se cumple satisfactoriamente"},"Las dos condiciones deben cumplirse para argumentar que la actividad tiene contribución sustancial"]
["La actividad económica y sus medidas de adaptación son consistentes con los esfuerzos de adaptación a nivel sectorial, regional y/o nacional.",null,null,null,null,"Sí",{"$f":"IF(F124=\"Seleccione\",\"Por definir\",IF(F124=\"Sí\",\"El segundo criterio se cumple satisfactoriamente\",\"Al no cumplir con este criterio, no es posible generar contribución sustancial\"))","v":"El segundo criterio se cumple satisfactoriamente"}]
[{"$f":"IF(OR(F123=\"Seleccione\",F124=\"Seleccione\"),\"Por definir\",IF(OR(F123=\"No\",F124=\"No\"),\"La actividad no genera contribución sustancial\", \"La actividad sí contribuye sustancialmente a la sostenibilidad\"))","v":"La actividad sí contribuye sustancialmente a la sostenibilidad"}]
[]
["A3. Monitoreo de los resultados de adaptación."]
["En el contexto de la actividad evaluada, la reducción de los riesgos físicos se puede medir. Selecciona las respuestas en las listas desplegables"]
[" Los resultados de adaptación pueden ser monitoreados y medidos con base en indicadores. Considerando que los riesgos físicos evolucionan con el tiempo, el análisis de riesgos físicos debe llevarse a cabo con la frecuencia adecuada.  ¿Esto se evalúa dentro de la operación financiera y/o proyecto?",null,null,null,null,"Sí",{"$f":"IF(F129=\"Seleccione\",\"Por definir\",IF(F129=\"Sí\",\"La actividad sí contribuye sustancialmente a la sostenbilidad\",\"El proyecto no genera contribución sustancial\"))","v":"La actividad sí contribuye sustancialmente a la sostenbilidad"}]
[]
["B1. Apoyar a la adaptación de otras actividades económicas."]
["La actividad económica reduce el riesgo climático físico material en otras actividades económicas y/o aborda los obstáculos sistémicos para la adaptación. Las actividades que permiten la adaptación incluyen, pero no se limitan a, actividades que promueven una tecnología, un producto, una práctica, un proceso de gobernanza o usos innovadores de tecnologías, productos o prácticas existentes (incluidos los relacionados con las infraestructuras naturales). Además, eliminan las barreras de información, financieras, tecnológicas y de capacidad para la adaptación de otros. Selecciona las respuestas en las listas desplegables"]
["¿Se realiza una evaluación de los riesgos resultantes, con base en datos sólidos, tanto de la variabilidad  meteorológica actual como del cambio climático futuro, incluidos los escenarios climáticos, así como  la incertidumbre, que la actividad económica contribuirá a abordar?",null,null,null,null,"Sí",{"$f":"IF(F133=\"Seleccione\",\"Por definir\",IF(F133=\"Sí\",\"El primer criterio se cumple satisfactoriamente\",\"Al no cumplir con este criterio, no es posible generar contribución sustancial\"))","v":"El primer criterio se cumple satisfactoriamente"},"Las tres condiciones en caso de que apliquen deben cumplirse para argumentar que la actividad tiene contribución sustancial. La tercera opción podría no aplicar. En este caso se evaluaran las primeras dos cuestiones"]
["¿Se realiza una evaluación de la eficacia de la contribución de la actividad económica a la reducción de los riesgos físicos, teniendo en cuenta la escala de exposición y la vulnerabilidad a los mismos?",null,null,null,null,"Sí",{"$f":"IF(F134=\"Seleccione\",\"Por definir\",IF(F134=\"Sí\",\"El segundo criterio se cumple satisfactoriamente\",\"Al no cumplir con este criterio, no es posible generar contribución sustancial\"))","v":"El segundo criterio se cumple satisfactoriamente"}]
["En el caso de una infraestructura vinculada a una actividad que permita la adaptación, dicha infraestructura debe cumplir también los criterios de selección A1, A2 y A3. ¿Esto se cumple en el contexto del proyecto?",null,null,null,null,"Sí",{"$f":"IF(F135=\"Seleccione\",\"Por definir\",IF(F135=\"Sí\",\"El tercer criterio se cumple satisfactoriamente\",IF(F135=\"No aplica\",\"No aplica\",\"El proyecto no genera contribución sustancial\")))","v":"El tercer criterio se cumple satisfactoriamente"}]
[{"$f":"IF(OR(F133=\"Seleccione\",F134=\"Seleccione\",F135=\"Seleccione\"),\"Por definir\",IF(OR(F133=\"No\",F134=\"No\",F135=\"No\"),\"La actividad no genera contribución sustancial\",\"La actividad sí contribuye sustancialmente a la sostenibilidad\"))","v":"La actividad sí contribuye sustancialmente a la sostenibilidad"}]
[]
["562221. Tratamiento y disposición final de residuos no peligrosos por el sector privado (Compostaje)"]
["Responde las siguientes preguntas seleccionando una respuesta de la lista"]
[]
["1. La actividad que estás evaluando es una actividad adaptada o una actividad que facilita la adaptación?",null,null,"Actividad que facilita la adaptación e incluye desarrollo de infraestructura"]
[]
["¿Qué es una actividad adaptada?\nUna actividad económica se adapta a los riesgos climáticos físicos materiales, si integra medidas y/o soluciones para reducirlos, mientras garantiza que la actividad económica pueda funcionar bien en un clima cambiante. Estas actividades de adaptación se desarrollan a partir de la evaluación de riesgos actuales y futuros, ya sean climáticos, crónicos y/o agudos, así como la escala temporal y geográfica de la actividad económica."]
["¿Qué es una actividad que facilita la adaptación? \nUna actividad económica posibilita la adaptación si reduce el riesgo climático físico material y la vulnerabilidad en otras actividades económicas, comunidades, ecosistemas o ciudades, y/o aborda los obstáculos sistémicos a la adaptación. Esto es posible a través del uso de la tecnología y la creación de un producto o servicio especializado."]
[]
[]
["A1. Reducción de los riesgos climáticos físicos materiales."]
["La actividad económica debe reducir todos los riesgos climáticos físicos materiales para las actividades evaluadas, en la medida de lo posible y sobre la base del mejor esfuerzo. Selecciona las respuestas en las listas desplegables"]
["¿La actividad económica integra medidas destinadas a reducir, en la medida de lo posible y sobre la base del mejor esfuerzo, los riesgos climáticos físicos materiales para esa actividad, que han sido identificados mediante una evaluación de riesgos?",null,null,null,null,"Sí",{"$f":"IF(F149=\"Seleccione\",\"Por definir\",IF(F149=\"Sí\",\"El primer criterio se cumple satisfactoriamente\",\"Al no cumplir con este criterio, no es posible generar contribución sustancial\"))","v":"El primer criterio se cumple satisfactoriamente"},"Las tres condiciones deben cumplirse para argumentar que la actividad tiene contribución sustancial"]
["¿Esta evaluación considera tanto la variabilidad meteorológica actual, como el cambio climático futuro, incluidos los escenarios climáticos, así como la incertidumbre?",null,null,null,null,"Sí",{"$f":"IF(F150=\"Seleccione\",\"Por definir\",IF(F150=\"Sí\",\"El segundo criterio se cumple satisfactoriamente\",\"Al no cumplir con este criterio, no es posible generar contribución sustancial\"))","v":"El segundo criterio se cumple satisfactoriamente"}]
["¿Igualmente la evaluación se basa en un sólido análisis de los datos e información disponible sobre los distintos escenarios climáticos, y es coherente con la duración prevista de la actividad?",null,null,null,null,"Sí",{"$f":"IF(F151=\"Seleccione\",\"Por definir\",IF(F151=\"Sí\",\"El tercer criterio se cumple satisfactoriamente\",\"Al no cumplir con este criterio, no es posible generar contribución sustancial\"))","v":"El tercer criterio se cumple satisfactoriamente"}]
[{"$f":"IF(OR(F149=\"Seleccione\",F150=\"Seleccione\",F151=\"Seleccione\"),\"Por definir\",IF(OR(F149=\"No\",F150=\"No\",F151=\"No\"),\"La actividad no genera contribución sustancial\", \"La actividad sí contribuye sustancialmente a la sostenibilidad\"))","v":"La actividad sí contribuye sustancialmente a la sostenibilidad"}]
[]
["A2. Apoyo a la adaptación del sistema. "]
["La actividad económica y sus medidas de adaptación no afectan negativamente los esfuerzos de adaptación de otras personas, la naturaleza y los bienes. Selecciona las respuestas en las listas desplegables"]
[" La actividad económica y sus medidas de adaptación no aumentan los riesgos de un impacto climático adverso sobre otras personas, la naturaleza y los bienes",null,null,null,null,"Sí",{"$f":"IF(F156=\"Seleccione\",\"Por definir\",IF(F156=\"Sí\",\"El primer criterio se cumple satisfactoriamente\",\"Al no cumplir con este criterio, no es posible generar contribución sustancial\"))","v":"El primer criterio se cumple satisfactoriamente"},"Las dos condiciones deben cumplirse para argumentar que la actividad tiene contribución sustancial"]
["La actividad económica y sus medidas de adaptación son consistentes con los esfuerzos de adaptación a nivel sectorial, regional y/o nacional.",null,null,null,null,"Sí",{"$f":"IF(F157=\"Seleccione\",\"Por definir\",IF(F157=\"Sí\",\"El segundo criterio se cumple satisfactoriamente\",\"Al no cumplir con este criterio, no es posible generar contribución sustancial\"))","v":"El segundo criterio se cumple satisfactoriamente"}]
[{"$f":"IF(OR(F156=\"Seleccione\",F157=\"Seleccione\"),\"Por definir\",IF(OR(F156=\"No\",F157=\"No\"),\"La actividad no genera contribución sustancial\", \"La actividad sí contribuye sustancialmente a la sostenibilidad\"))","v":"La actividad sí contribuye sustancialmente a la sostenibilidad"}]
[]
["A3. Monitoreo de los resultados de adaptación."]
["En el contexto de la actividad evaluada, la reducción de los riesgos físicos se puede medir. Selecciona las respuestas en las listas desplegables"]
[" Los resultados de adaptación pueden ser monitoreados y medidos con base en indicadores. Considerando que los riesgos físicos evolucionan con el tiempo, el análisis de riesgos físicos debe llevarse a cabo con la frecuencia adecuada.  ¿Esto se evalúa dentro de la operación financiera y/o proyecto?",null,null,null,null,"Sí",{"$f":"IF(F162=\"Seleccione\",\"Por definir\",IF(F162=\"Sí\",\"La actividad sí contribuye sustancialmente a la sostenbilidad\",\"El proyecto no genera contribución sustancial\"))","v":"La actividad sí contribuye sustancialmente a la sostenbilidad"}]
[]
["B1. Apoyar a la adaptación de otras actividades económicas."]
["La actividad económica reduce el riesgo climático físico material en otras actividades económicas y/o aborda los obstáculos sistémicos para la adaptación. Las actividades que permiten la adaptación incluyen, pero no se limitan a, actividades que promueven una tecnología, un producto, una práctica, un proceso de gobernanza o usos innovadores de tecnologías, productos o prácticas existentes (incluidos los relacionados con las infraestructuras naturales). Además, eliminan las barreras de información, financieras, tecnológicas y de capacidad para la adaptación de otros. Selecciona las respuestas en las listas desplegables"]
["¿Se realiza una evaluación de los riesgos resultantes, con base en datos sólidos, tanto de la variabilidad  meteorológica actual como del cambio climático futuro, incluidos los escenarios climáticos, así como  la incertidumbre, que la actividad económica contribuirá a abordar?",null,null,null,null,"Sí",{"$f":"IF(F166=\"Seleccione\",\"Por definir\",IF(F166=\"Sí\",\"El primer criterio se cumple satisfactoriamente\",\"Al no cumplir con este criterio, no es posible generar contribución sustancial\"))","v":"El primer criterio se cumple satisfactoriamente"},"Las tres condiciones en caso de que apliquen deben cumplirse para argumentar que la actividad tiene contribución sustancial. La tercera opción podría no aplicar. En este caso se evaluaran las primeras dos cuestiones"]
["¿Se realiza una evaluación de la eficacia de la contribución de la actividad económica a la reducción de los riesgos físicos, teniendo en cuenta la escala de exposición y la vulnerabilidad a los mismos?",null,null,null,null,"Sí",{"$f":"IF(F167=\"Seleccione\",\"Por definir\",IF(F167=\"Sí\",\"El segundo criterio se cumple satisfactoriamente\",\"Al no cumplir con este criterio, no es posible generar contribución sustancial\"))","v":"El segundo criterio se cumple satisfactoriamente"}]
["En el caso de una infraestructura vinculada a una actividad que permita la adaptación, dicha infraestructura debe cumplir también los criterios de selección A1, A2 y A3. ¿Esto se cumple en el contexto del proyecto?",null,null,null,null,"Sí",{"$f":"IF(F168=\"Seleccione\",\"Por definir\",IF(F168=\"Sí\",\"El tercer criterio se cumple satisfactoriamente\",IF(F168=\"No aplica\",\"No aplica\",\"El proyecto no genera contribución sustancial\")))","v":"El tercer criterio se cumple satisfactoriamente"}]
[{"$f":"IF(OR(F166=\"Seleccione\",F167=\"Seleccione\",F168=\"Seleccione\"),\"Por definir\",IF(OR(F166=\"No\",F167=\"No\",F168=\"No\"),\"La actividad no genera contribución sustancial\",\"La actividad sí contribuye sustancialmente a la sostenibilidad\"))","v":"La actividad sí contribuye sustancialmente a la sostenibilidad"}]
[]
["562222. Tratamiento y disposición final de residuos no peligrosos por el sector público (Compostaje)"]
["Responde las siguientes preguntas seleccionando una respuesta de la lista"]
[]
["1. La actividad que estás evaluando es una actividad adaptada o una actividad que facilita la adaptación?",null,null,"Actividad que facilita la adaptación e incluye desarrollo de infraestructura"]
[]
["¿Qué es una actividad adaptada?\nUna actividad económica se adapta a los riesgos climáticos físicos materiales, si integra medidas y/o soluciones para reducirlos, mientras garantiza que la actividad económica pueda funcionar bien en un clima cambiante. Estas actividades de adaptación se desarrollan a partir de la evaluación de riesgos actuales y futuros, ya sean climáticos, crónicos y/o agudos, así como la escala temporal y geográfica de la actividad económica."]
["¿Qué es una actividad que facilita la adaptación? \nUna actividad económica posibilita la adaptación si reduce el riesgo climático físico material y la vulnerabilidad en otras actividades económicas, comunidades, ecosistemas o ciudades, y/o aborda los obstáculos sistémicos a la adaptación. Esto es posible a través del uso de la tecnología y la creación de un producto o servicio especializado."]
[]
[]
["A1. Reducción de los riesgos climáticos físicos materiales."]
["La actividad económica debe reducir todos los riesgos climáticos físicos materiales para las actividades evaluadas, en la medida de lo posible y sobre la base del mejor esfuerzo. Selecciona las respuestas en las listas desplegables"]
["¿La actividad económica integra medidas destinadas a reducir, en la medida de lo posible y sobre la base del mejor esfuerzo, los riesgos climáticos físicos materiales para esa actividad, que han sido identificados mediante una evaluación de riesgos?",null,null,null,null,"Sí",{"$f":"IF(F182=\"Seleccione\",\"Por definir\",IF(F182=\"Sí\",\"El primer criterio se cumple satisfactoriamente\",\"Al no cumplir con este criterio, no es posible generar contribución sustancial\"))","v":"El primer criterio se cumple satisfactoriamente"},"Las tres condiciones deben cumplirse para argumentar que la actividad tiene contribución sustancial"]
["¿Esta evaluación considera tanto la variabilidad meteorológica actual, como el cambio climático futuro, incluidos los escenarios climáticos, así como la incertidumbre?",null,null,null,null,"Sí",{"$f":"IF(F183=\"Seleccione\",\"Por definir\",IF(F183=\"Sí\",\"El segundo criterio se cumple satisfactoriamente\",\"Al no cumplir con este criterio, no es posible generar contribución sustancial\"))","v":"El segundo criterio se cumple satisfactoriamente"}]
["¿Igualmente la evaluación se basa en un sólido análisis de los datos e información disponible sobre los distintos escenarios climáticos, y es coherente con la duración prevista de la actividad?",null,null,null,null,"Sí",{"$f":"IF(F184=\"Seleccione\",\"Por definir\",IF(F184=\"Sí\",\"El tercer criterio se cumple satisfactoriamente\",\"Al no cumplir con este criterio, no es posible generar contribución sustancial\"))","v":"El tercer criterio se cumple satisfactoriamente"}]
[{"$f":"IF(OR(F182=\"Seleccione\",F183=\"Seleccione\",F184=\"Seleccione\"),\"Por definir\",IF(OR(F182=\"No\",F183=\"No\",F184=\"No\"),\"La actividad no genera contribución sustancial\", \"La actividad sí contribuye sustancialmente a la sostenibilidad\"))","v":"La actividad sí contribuye sustancialmente a la sostenibilidad"}]
[]
["A2. Apoyo a la adaptación del sistema. "]
["La actividad económica y sus medidas de adaptación no afectan negativamente los esfuerzos de adaptación de otras personas, la naturaleza y los bienes. Selecciona las respuestas en las listas desplegables"]
[" La actividad económica y sus medidas de adaptación no aumentan los riesgos de un impacto climático adverso sobre otras personas, la naturaleza y los bienes",null,null,null,null,"Sí",{"$f":"IF(F189=\"Seleccione\",\"Por definir\",IF(F189=\"Sí\",\"El primer criterio se cumple satisfactoriamente\",\"Al no cumplir con este criterio, no es posible generar contribución sustancial\"))","v":"El primer criterio se cumple satisfactoriamente"},"Las dos condiciones deben cumplirse para argumentar que la actividad tiene contribución sustancial"]
["La actividad económica y sus medidas de adaptación son consistentes con los esfuerzos de adaptación a nivel sectorial, regional y/o nacional.",null,null,null,null,"Sí",{"$f":"IF(F190=\"Seleccione\",\"Por definir\",IF(F190=\"Sí\",\"El segundo criterio se cumple satisfactoriamente\",\"Al no cumplir con este criterio, no es posible generar contribución sustancial\"))","v":"El segundo criterio se cumple satisfactoriamente"}]
[{"$f":"IF(OR(F189=\"Seleccione\",F190=\"Seleccione\"),\"Por definir\",IF(OR(F189=\"No\",F190=\"No\"),\"La actividad no genera contribución sustancial\", \"La actividad sí contribuye sustancialmente a la sostenibilidad\"))","v":"La actividad sí contribuye sustancialmente a la sostenibilidad"}]
[]
["A3. Monitoreo de los resultados de adaptación."]
["En el contexto de la actividad evaluada, la reducción de los riesgos físicos se puede medir. Selecciona las respuestas en las listas desplegables"]
[" Los resultados de adaptación pueden ser monitoreados y medidos con base en indicadores. Considerando que los riesgos físicos evolucionan con el tiempo, el análisis de riesgos físicos debe llevarse a cabo con la frecuencia adecuada.  ¿Esto se evalúa dentro de la operación financiera y/o proyecto?",null,null,null,null,"Sí",{"$f":"IF(F195=\"Seleccione\",\"Por definir\",IF(F195=\"Sí\",\"La actividad sí contribuye sustancialmente a la sostenbilidad\",\"El proyecto no genera contribución sustancial\"))","v":"La actividad sí contribuye sustancialmente a la sostenbilidad"}]
[]
["B1. Apoyar a la adaptación de otras actividades económicas."]
["La actividad económica reduce el riesgo climático físico material en otras actividades económicas y/o aborda los obstáculos sistémicos para la adaptación. Las actividades que permiten la adaptación incluyen, pero no se limitan a, actividades que promueven una tecnología, un producto, una práctica, un proceso de gobernanza o usos innovadores de tecnologías, productos o prácticas existentes (incluidos los relacionados con las infraestructuras naturales). Además, eliminan las barreras de información, financieras, tecnológicas y de capacidad para la adaptación de otros. Selecciona las respuestas en las listas desplegables"]
["¿Se realiza una evaluación de los riesgos resultantes, con base en datos sólidos, tanto de la variabilidad  meteorológica actual como del cambio climático futuro, incluidos los escenarios climáticos, así como  la incertidumbre, que la actividad económica contribuirá a abordar?",null,null,null,null,"Sí",{"$f":"IF(F199=\"Seleccione\",\"Por definir\",IF(F199=\"Sí\",\"El primer criterio se cumple satisfactoriamente\",\"Al no cumplir con este criterio, no es posible generar contribución sustancial\"))","v":"El primer criterio se cumple satisfactoriamente"},"Las tres condiciones en caso de que apliquen deben cumplirse para argumentar que la actividad tiene contribución sustancial. La tercera opción podría no aplicar. En este caso se evaluaran las primeras dos cuestiones"]
["¿Se realiza una evaluación de la eficacia de la contribución de la actividad económica a la reducción de los riesgos físicos, teniendo en cuenta la escala de exposición y la vulnerabilidad a los mismos?",null,null,null,null,"Sí",{"$f":"IF(F200=\"Seleccione\",\"Por definir\",IF(F200=\"Sí\",\"El segundo criterio se cumple satisfactoriamente\",\"Al no cumplir con este criterio, no es posible generar contribución sustancial\"))","v":"El segundo criterio se cumple satisfactoriamente"}]
["En el caso de una infraestructura vinculada a una actividad que permita la adaptación, dicha infraestructura debe cumplir también los criterios de selección A1, A2 y A3. ¿Esto se cumple en el contexto del proyecto?",null,null,null,null,"Sí",{"$f":"IF(F201=\"Seleccione\",\"Por definir\",IF(F201=\"Sí\",\"El tercer criterio se cumple satisfactoriamente\",IF(F201=\"No aplica\",\"No aplica\",\"El proyecto no genera contribución sustancial\")))","v":"El tercer criterio se cumple satisfactoriamente"}]
[{"$f":"IF(OR(F199=\"Seleccione\",F200=\"Seleccione\",F201=\"Seleccione\"),\"Por definir\",IF(OR(F199=\"No\",F200=\"No\",F201=\"No\"),\"La actividad no genera contribución sustancial\",\"La actividad sí contribuye sustancialmente a la sostenibilidad\"))","v":"La actividad sí contribuye sustancialmente a la sostenibilidad"}]
[]
["562911. Servicios de remediación de residuos por el sector privado"]
["Responde las siguientes preguntas seleccionando una respuesta de la lista"]
[]
["1. La actividad que estás evaluando es una actividad adaptada o una actividad que facilita la adaptación?",null,null,"Actividad que facilita la adaptación e incluye desarrollo de infraestructura"]
[]
["¿Qué es una actividad adaptada?\nUna actividad económica se adapta a los riesgos climáticos físicos materiales, si integra medidas y/o soluciones para reducirlos, mientras garantiza que la actividad económica pueda funcionar bien en un clima cambiante. Estas actividades de adaptación se desarrollan a partir de la evaluación de riesgos actuales y futuros, ya sean climáticos, crónicos y/o agudos, así como la escala temporal y geográfica de la actividad económica."]
["¿Qué es una actividad que facilita la adaptación? \nUna actividad económica posibilita la adaptación si reduce el riesgo climático físico material y la vulnerabilidad en otras actividades económicas, comunidades, ecosistemas o ciudades, y/o aborda los obstáculos sistémicos a la adaptación. Esto es posible a través del uso de la tecnología y la creación de un producto o servicio especializado."]
[]
[]
["A1. Reducción de los riesgos climáticos físicos materiales."]
["La actividad económica debe reducir todos los riesgos climáticos físicos materiales para las actividades evaluadas, en la medida de lo posible y sobre la base del mejor esfuerzo. Selecciona las respuestas en las listas desplegables"]
["¿La actividad económica integra medidas destinadas a reducir, en la medida de lo posible y sobre la base del mejor esfuerzo, los riesgos climáticos físicos materiales para esa actividad, que han sido identificados mediante una evaluación de riesgos?",null,null,null,null,"Sí",{"$f":"IF(F215=\"Seleccione\",\"Por definir\",IF(F215=\"Sí\",\"El primer criterio se cumple satisfactoriamente\",\"Al no cumplir con este criterio, no es posible generar contribución sustancial\"))","v":"El primer criterio se cumple satisfactoriamente"},"Las tres condiciones deben cumplirse para argumentar que la actividad tiene contribución sustancial"]
["¿Esta evaluación considera tanto la variabilidad meteorológica actual, como el cambio climático futuro, incluidos los escenarios climáticos, así como la incertidumbre?",null,null,null,null,"Sí",{"$f":"IF(F216=\"Seleccione\",\"Por definir\",IF(F216=\"Sí\",\"El segundo criterio se cumple satisfactoriamente\",\"Al no cumplir con este criterio, no es posible generar contribución sustancial\"))","v":"El segundo criterio se cumple satisfactoriamente"}]
["¿Igualmente la evaluación se basa en un sólido análisis de los datos e información disponible sobre los distintos escenarios climáticos, y es coherente con la duración prevista de la actividad?",null,null,null,null,"Sí",{"$f":"IF(F217=\"Seleccione\",\"Por definir\",IF(F217=\"Sí\",\"El tercer criterio se cumple satisfactoriamente\",\"Al no cumplir con este criterio, no es posible generar contribución sustancial\"))","v":"El tercer criterio se cumple satisfactoriamente"}]
[{"$f":"IF(OR(F215=\"Seleccione\",F216=\"Seleccione\",F217=\"Seleccione\"),\"Por definir\",IF(OR(F215=\"No\",F216=\"No\",F217=\"No\"),\"La actividad no genera contribución sustancial\", \"La actividad sí contribuye sustancialmente a la sostenibilidad\"))","v":"La actividad sí contribuye sustancialmente a la sostenibilidad"}]
[]
["A2. Apoyo a la adaptación del sistema. "]
["La actividad económica y sus medidas de adaptación no afectan negativamente los esfuerzos de adaptación de otras personas, la naturaleza y los bienes. Selecciona las respuestas en las listas desplegables"]
[" La actividad económica y sus medidas de adaptación no aumentan los riesgos de un impacto climático adverso sobre otras personas, la naturaleza y los bienes",null,null,null,null,"Sí",{"$f":"IF(F222=\"Seleccione\",\"Por definir\",IF(F222=\"Sí\",\"El primer criterio se cumple satisfactoriamente\",\"Al no cumplir con este criterio, no es posible generar contribución sustancial\"))","v":"El primer criterio se cumple satisfactoriamente"},"Las dos condiciones deben cumplirse para argumentar que la actividad tiene contribución sustancial"]
["La actividad económica y sus medidas de adaptación son consistentes con los esfuerzos de adaptación a nivel sectorial, regional y/o nacional.",null,null,null,null,"Sí",{"$f":"IF(F223=\"Seleccione\",\"Por definir\",IF(F223=\"Sí\",\"El segundo criterio se cumple satisfactoriamente\",\"Al no cumplir con este criterio, no es posible generar contribución sustancial\"))","v":"El segundo criterio se cumple satisfactoriamente"}]
[{"$f":"IF(OR(F222=\"Seleccione\",F223=\"Seleccione\"),\"Por definir\",IF(OR(F222=\"No\",F223=\"No\"),\"La actividad no genera contribución sustancial\", \"La actividad sí contribuye sustancialmente a la sostenibilidad\"))","v":"La actividad sí contribuye sustancialmente a la sostenibilidad"}]
[]
["A3. Monitoreo de los resultados de adaptación."]
["En el contexto de la actividad evaluada, la reducción de los riesgos físicos se puede medir. Selecciona las respuestas en las listas desplegables"]
[" Los resultados de adaptación pueden ser monitoreados y medidos con base en indicadores. Considerando que los riesgos físicos evolucionan con el tiempo, el análisis de riesgos físicos debe llevarse a cabo con la frecuencia adecuada.  ¿Esto se evalúa dentro de la operación financiera y/o proyecto?",null,null,null,null,"Sí",{"$f":"IF(F228=\"Seleccione\",\"Por definir\",IF(F228=\"Sí\",\"La actividad sí contribuye sustancialmente a la sostenbilidad\",\"El proyecto no genera contribución sustancial\"))","v":"La actividad sí contribuye sustancialmente a la sostenbilidad"}]
[]
["B1. Apoyar a la adaptación de otras actividades económicas."]
["La actividad económica reduce el riesgo climático físico material en otras actividades económicas y/o aborda los obstáculos sistémicos para la adaptación. Las actividades que permiten la adaptación incluyen, pero no se limitan a, actividades que promueven una tecnología, un producto, una práctica, un proceso de gobernanza o usos innovadores de tecnologías, productos o prácticas existentes (incluidos los relacionados con las infraestructuras naturales). Además, eliminan las barreras de información, financieras, tecnológicas y de capacidad para la adaptación de otros. Selecciona las respuestas en las listas desplegables"]
["¿Se realiza una evaluación de los riesgos resultantes, con base en datos sólidos, tanto de la variabilidad  meteorológica actual como del cambio climático futuro, incluidos los escenarios climáticos, así como  la incertidumbre, que la actividad económica contribuirá a abordar?",null,null,null,null,"Sí",{"$f":"IF(F232=\"Seleccione\",\"Por definir\",IF(F232=\"Sí\",\"El primer criterio se cumple satisfactoriamente\",\"Al no cumplir con este criterio, no es posible generar contribución sustancial\"))","v":"El primer criterio se cumple satisfactoriamente"},"Las tres condiciones en caso de que apliquen deben cumplirse para argumentar que la actividad tiene contribución sustancial. La tercera opción podría no aplicar. En este caso se evaluaran las primeras dos cuestiones"]
["¿Se realiza una evaluación de la eficacia de la contribución de la actividad económica a la reducción de los riesgos físicos, teniendo en cuenta la escala de exposición y la vulnerabilidad a los mismos?",null,null,null,null,"Sí",{"$f":"IF(F233=\"Seleccione\",\"Por definir\",IF(F233=\"Sí\",\"El segundo criterio se cumple satisfactoriamente\",\"Al no cumplir con este criterio, no es posible generar contribución sustancial\"))","v":"El segundo criterio se cumple satisfactoriamente"}]
["En el caso de una infraestructura vinculada a una actividad que permita la adaptación, dicha infraestructura debe cumplir también los criterios de selección A1, A2 y A3. ¿Esto se cumple en el contexto del proyecto?",null,null,null,null,"Sí",{"$f":"IF(F234=\"Seleccione\",\"Por definir\",IF(F234=\"Sí\",\"El tercer criterio se cumple satisfactoriamente\",IF(F234=\"No aplica\",\"No aplica\",\"El proyecto no genera contribución sustancial\")))","v":"El tercer criterio se cumple satisfactoriamente"}]
[{"$f":"IF(OR(F232=\"Seleccione\",F233=\"Seleccione\",F234=\"Seleccione\"),\"Por definir\",IF(OR(F232=\"No\",F233=\"No\",F234=\"No\"),\"La actividad no genera contribución sustancial\",\"La actividad sí contribuye sustancialmente a la sostenibilidad\"))","v":"La actividad sí contribuye sustancialmente a la sostenibilidad"}]
[]
["562912. Servicios de remediación de residuos por el sector público"]
["Responde las siguientes preguntas seleccionando una respuesta de la lista"]
[]
["1. La actividad que estás evaluando es una actividad adaptada o una actividad que facilita la adaptación?",null,null,"Actividad que facilita la adaptación e incluye desarrollo de infraestructura"]
[]
["¿Qué es una actividad adaptada?\nUna actividad económica se adapta a los riesgos climáticos físicos materiales, si integra medidas y/o soluciones para reducirlos, mientras garantiza que la actividad económica pueda funcionar bien en un clima cambiante. Estas actividades de adaptación se desarrollan a partir de la evaluación de riesgos actuales y futuros, ya sean climáticos, crónicos y/o agudos, así como la escala temporal y geográfica de la actividad económica."]
["¿Qué es una actividad que facilita la adaptación? \nUna actividad económica posibilita la adaptación si reduce el riesgo climático físico material y la vulnerabilidad en otras actividades económicas, comunidades, ecosistemas o ciudades, y/o aborda los obstáculos sistémicos a la adaptación. Esto es posible a través del uso de la tecnología y la creación de un producto o servicio especializado."]
[]
[]
["A1. Reducción de los riesgos climáticos físicos materiales."]
["La actividad económica debe reducir todos los riesgos climáticos físicos materiales para las actividades evaluadas, en la medida de lo posible y sobre la base del mejor esfuerzo. Selecciona las respuestas en las listas desplegables"]
["¿La actividad económica integra medidas destinadas a reducir, en la medida de lo posible y sobre la base del mejor esfuerzo, los riesgos climáticos físicos materiales para esa actividad, que han sido identificados mediante una evaluación de riesgos?",null,null,null,null,"Sí",{"$f":"IF(F248=\"Seleccione\",\"Por definir\",IF(F248=\"Sí\",\"El primer criterio se cumple satisfactoriamente\",\"Al no cumplir con este criterio, no es posible generar contribución sustancial\"))","v":"El primer criterio se cumple satisfactoriamente"},"Las tres condiciones deben cumplirse para argumentar que la actividad tiene contribución sustancial"]
["¿Esta evaluación considera tanto la variabilidad meteorológica actual, como el cambio climático futuro, incluidos los escenarios climáticos, así como la incertidumbre?",null,null,null,null,"Sí",{"$f":"IF(F249=\"Seleccione\",\"Por definir\",IF(F249=\"Sí\",\"El segundo criterio se cumple satisfactoriamente\",\"Al no cumplir con este criterio, no es posible generar contribución sustancial\"))","v":"El segundo criterio se cumple satisfactoriamente"}]
["¿Igualmente la evaluación se basa en un sólido análisis de los datos e información disponible sobre los distintos escenarios climáticos, y es coherente con la duración prevista de la actividad?",null,null,null,null,"Sí",{"$f":"IF(F250=\"Seleccione\",\"Por definir\",IF(F250=\"Sí\",\"El tercer criterio se cumple satisfactoriamente\",\"Al no cumplir con este criterio, no es posible generar contribución sustancial\"))","v":"El tercer criterio se cumple satisfactoriamente"}]
[{"$f":"IF(OR(F248=\"Seleccione\",F249=\"Seleccione\",F250=\"Seleccione\"),\"Por definir\",IF(OR(F248=\"No\",F249=\"No\",F250=\"No\"),\"La actividad no genera contribución sustancial\", \"La actividad sí contribuye sustancialmente a la sostenibilidad\"))","v":"La actividad sí contribuye sustancialmente a la sostenibilidad"}]
[]
["A2. Apoyo a la adaptación del sistema. "]
["La actividad económica y sus medidas de adaptación no afectan negativamente los esfuerzos de adaptación de otras personas, la naturaleza y los bienes. Selecciona las respuestas en las listas desplegables"]
[" La actividad económica y sus medidas de adaptación no aumentan los riesgos de un impacto climático adverso sobre otras personas, la naturaleza y los bienes",null,null,null,null,"Sí",{"$f":"IF(F255=\"Seleccione\",\"Por definir\",IF(F255=\"Sí\",\"El primer criterio se cumple satisfactoriamente\",\"Al no cumplir con este criterio, no es posible generar contribución sustancial\"))","v":"El primer criterio se cumple satisfactoriamente"},"Las dos condiciones deben cumplirse para argumentar que la actividad tiene contribución sustancial"]
["La actividad económica y sus medidas de adaptación son consistentes con los esfuerzos de adaptación a nivel sectorial, regional y/o nacional.",null,null,null,null,"Sí",{"$f":"IF(F256=\"Seleccione\",\"Por definir\",IF(F256=\"Sí\",\"El segundo criterio se cumple satisfactoriamente\",\"Al no cumplir con este criterio, no es posible generar contribución sustancial\"))","v":"El segundo criterio se cumple satisfactoriamente"}]
[{"$f":"IF(OR(F255=\"Seleccione\",F256=\"Seleccione\"),\"Por definir\",IF(OR(F255=\"No\",F256=\"No\"),\"La actividad no genera contribución sustancial\", \"La actividad sí contribuye sustancialmente a la sostenibilidad\"))","v":"La actividad sí contribuye sustancialmente a la sostenibilidad"}]
[]
["A3. Monitoreo de los resultados de adaptación."]
["En el contexto de la actividad evaluada, la reducción de los riesgos físicos se puede medir. Selecciona las respuestas en las listas desplegables"]
[" Los resultados de adaptación pueden ser monitoreados y medidos con base en indicadores. Considerando que los riesgos físicos evolucionan con el tiempo, el análisis de riesgos físicos debe llevarse a cabo con la frecuencia adecuada.  ¿Esto se evalúa dentro de la operación financiera y/o proyecto?",null,null,null,null,"Sí",{"$f":"IF(F261=\"Seleccione\",\"Por definir\",IF(F261=\"Sí\",\"La actividad sí contribuye sustancialmente a la sostenbilidad\",\"El proyecto no genera contribución sustancial\"))","v":"La actividad sí contribuye sustancialmente a la sostenbilidad"}]
[]
["B1. Apoyar a la adaptación de otras actividades económicas."]
["La actividad económica reduce el riesgo climático físico material en otras actividades económicas y/o aborda los obstáculos sistémicos para la adaptación. Las actividades que permiten la adaptación incluyen, pero no se limitan a, actividades que promueven una tecnología, un producto, una práctica, un proceso de gobernanza o usos innovadores de tecnologías, productos o prácticas existentes (incluidos los relacionados con las infraestructuras naturales). Además, eliminan las barreras de información, financieras, tecnológicas y de capacidad para la adaptación de otros. Selecciona las respuestas en las listas desplegables"]
["¿Se realiza una evaluación de los riesgos resultantes, con base en datos sólidos, tanto de la variabilidad  meteorológica actual como del cambio climático futuro, incluidos los escenarios climáticos, así como  la incertidumbre, que la actividad económica contribuirá a abordar?",null,null,null,null,"Sí",{"$f":"IF(F265=\"Seleccione\",\"Por definir\",IF(F265=\"Sí\",\"El primer criterio se cumple satisfactoriamente\",\"Al no cumplir con este criterio, no es posible generar contribución sustancial\"))","v":"El primer criterio se cumple satisfactoriamente"},"Las tres condiciones en caso de que apliquen deben cumplirse para argumentar que la actividad tiene contribución sustancial. La tercera opción podría no aplicar. En este caso se evaluaran las primeras dos cuestiones"]
["¿Se realiza una evaluación de la eficacia de la contribución de la actividad económica a la reducción de los riesgos físicos, teniendo en cuenta la escala de exposición y la vulnerabilidad a los mismos?",null,null,null,null,"Sí",{"$f":"IF(F266=\"Seleccione\",\"Por definir\",IF(F266=\"Sí\",\"El segundo criterio se cumple satisfactoriamente\",\"Al no cumplir con este criterio, no es posible generar contribución sustancial\"))","v":"El segundo criterio se cumple satisfactoriamente"}]
["En el caso de una infraestructura vinculada a una actividad que permita la adaptación, dicha infraestructura debe cumplir también los criterios de selección A1, A2 y A3. ¿Esto se cumple en el contexto del proyecto?",null,null,null,null,"Sí",{"$f":"IF(F267=\"Seleccione\",\"Por definir\",IF(F267=\"Sí\",\"El tercer criterio se cumple satisfactoriamente\",IF(F267=\"No aplica\",\"No aplica\",\"El proyecto no genera contribución sustancial\")))","v":"El tercer criterio se cumple satisfactoriamente"}]
[{"$f":"IF(OR(F265=\"Seleccione\",F266=\"Seleccione\",F267=\"Seleccione\"),\"Por definir\",IF(OR(F265=\"No\",F266=\"No\",F267=\"No\"),\"La actividad no genera contribución sustancial\",\"La actividad sí contribuye sustancialmente a la sostenibilidad\"))","v":"La actividad sí contribuye sustancialmente a la sostenibilidad"}]
[]
["562921. Recuperación de residuos por el sector privado"]
["Responde las siguientes preguntas seleccionando una respuesta de la lista"]
[]
["1. La actividad que estás evaluando es una actividad adaptada o una actividad que facilita la adaptación?",null,null,"Actividad que facilita la adaptación e incluye desarrollo de infraestructura"]
[]
["¿Qué es una actividad adaptada?\nUna actividad económica se adapta a los riesgos climáticos físicos materiales, si integra medidas y/o soluciones para reducirlos, mientras garantiza que la actividad económica pueda funcionar bien en un clima cambiante. Estas actividades de adaptación se desarrollan a partir de la evaluación de riesgos actuales y futuros, ya sean climáticos, crónicos y/o agudos, así como la escala temporal y geográfica de la actividad económica."]
["¿Qué es una actividad que facilita la adaptación? \nUna actividad económica posibilita la adaptación si reduce el riesgo climático físico material y la vulnerabilidad en otras actividades económicas, comunidades, ecosistemas o ciudades, y/o aborda los obstáculos sistémicos a la adaptación. Esto es posible a través del uso de la tecnología y la creación de un producto o servicio especializado."]
[]
[]
["A1. Reducción de los riesgos climáticos físicos materiales."]
["La actividad económica debe reducir todos los riesgos climáticos físicos materiales para las actividades evaluadas, en la medida de lo posible y sobre la base del mejor esfuerzo. Selecciona las respuestas en las listas desplegables"]
["¿La actividad económica integra medidas destinadas a reducir, en la medida de lo posible y sobre la base del mejor esfuerzo, los riesgos climáticos físicos materiales para esa actividad, que han sido identificados mediante una evaluación de riesgos?",null,null,null,null,"Sí",{"$f":"IF(F281=\"Seleccione\",\"Por definir\",IF(F281=\"Sí\",\"El primer criterio se cumple satisfactoriamente\",\"Al no cumplir con este criterio, no es posible generar contribución sustancial\"))","v":"El primer criterio se cumple satisfactoriamente"},"Las tres condiciones deben cumplirse para argumentar que la actividad tiene contribución sustancial"]
["¿Esta evaluación considera tanto la variabilidad meteorológica actual, como el cambio climático futuro, incluidos los escenarios climáticos, así como la incertidumbre?",null,null,null,null,"Sí",{"$f":"IF(F282=\"Seleccione\",\"Por definir\",IF(F282=\"Sí\",\"El segundo criterio se cumple satisfactoriamente\",\"Al no cumplir con este criterio, no es posible generar contribución sustancial\"))","v":"El segundo criterio se cumple satisfactoriamente"}]
["¿Igualmente la evaluación se basa en un sólido análisis de los datos e información disponible sobre los distintos escenarios climáticos, y es coherente con la duración prevista de la actividad?",null,null,null,null,"Sí",{"$f":"IF(F283=\"Seleccione\",\"Por definir\",IF(F283=\"Sí\",\"El tercer criterio se cumple satisfactoriamente\",\"Al no cumplir con este criterio, no es posible generar contribución sustancial\"))","v":"El tercer criterio se cumple satisfactoriamente"}]
[{"$f":"IF(OR(F281=\"Seleccione\",F282=\"Seleccione\",F283=\"Seleccione\"),\"Por definir\",IF(OR(F281=\"No\",F282=\"No\",F283=\"No\"),\"La actividad no genera contribución sustancial\", \"La actividad sí contribuye sustancialmente a la sostenibilidad\"))","v":"La actividad sí contribuye sustancialmente a la sostenibilidad"}]
[]
["A2. Apoyo a la adaptación del sistema. "]
["La actividad económica y sus medidas de adaptación no afectan negativamente los esfuerzos de adaptación de otras personas, la naturaleza y los bienes. Selecciona las respuestas en las listas desplegables"]
[" La actividad económica y sus medidas de adaptación no aumentan los riesgos de un impacto climático adverso sobre otras personas, la naturaleza y los bienes",null,null,null,null,"Sí",{"$f":"IF(F288=\"Seleccione\",\"Por definir\",IF(F288=\"Sí\",\"El primer criterio se cumple satisfactoriamente\",\"Al no cumplir con este criterio, no es posible generar contribución sustancial\"))","v":"El primer criterio se cumple satisfactoriamente"},"Las dos condiciones deben cumplirse para argumentar que la actividad tiene contribución sustancial"]
["La actividad económica y sus medidas de adaptación son consistentes con los esfuerzos de adaptación a nivel sectorial, regional y/o nacional.",null,null,null,null,"Sí",{"$f":"IF(F289=\"Seleccione\",\"Por definir\",IF(F289=\"Sí\",\"El segundo criterio se cumple satisfactoriamente\",\"Al no cumplir con este criterio, no es posible generar contribución sustancial\"))","v":"El segundo criterio se cumple satisfactoriamente"}]
[{"$f":"IF(OR(F288=\"Seleccione\",F289=\"Seleccione\"),\"Por definir\",IF(OR(F288=\"No\",F289=\"No\"),\"La actividad no genera contribución sustancial\", \"La actividad sí contribuye sustancialmente a la sostenibilidad\"))","v":"La actividad sí contribuye sustancialmente a la sostenibilidad"}]
[]
["A3. Monitoreo de los resultados de adaptación."]
["En el contexto de la actividad evaluada, la reducción de los riesgos físicos se puede medir. Selecciona las respuestas en las listas desplegables"]
[" Los resultados de adaptación pueden ser monitoreados y medidos con base en indicadores. Considerando que los riesgos físicos evolucionan con el tiempo, el análisis de riesgos físicos debe llevarse a cabo con la frecuencia adecuada.  ¿Esto se evalúa dentro de la operación financiera y/o proyecto?",null,null,null,null,"Sí",{"$f":"IF(F294=\"Seleccione\",\"Por definir\",IF(F294=\"Sí\",\"La actividad sí contribuye sustancialmente a la sostenbilidad\",\"El proyecto no genera contribución sustancial\"))","v":"La actividad sí contribuye sustancialmente a la sostenbilidad"}]
[]
["B1. Apoyar a la adaptación de otras actividades económicas."]
["La actividad económica reduce el riesgo climático físico material en otras actividades económicas y/o aborda los obstáculos sistémicos para la adaptación. Las actividades que permiten la adaptación incluyen, pero no se limitan a, actividades que promueven una tecnología, un producto, una práctica, un proceso de gobernanza o usos innovadores de tecnologías, productos o prácticas existentes (incluidos los relacionados con las infraestructuras naturales). Además, eliminan las barreras de información, financieras, tecnológicas y de capacidad para la adaptación de otros. Selecciona las respuestas en las listas desplegables"]
["¿Se realiza una evaluación de los riesgos resultantes, con base en datos sólidos, tanto de la variabilidad  meteorológica actual como del cambio climático futuro, incluidos los escenarios climáticos, así como  la incertidumbre, que la actividad económica contribuirá a abordar?",null,null,null,null,"Sí",{"$f":"IF(F298=\"Seleccione\",\"Por definir\",IF(F298=\"Sí\",\"El primer criterio se cumple satisfactoriamente\",\"Al no cumplir con este criterio, no es posible generar contribución sustancial\"))","v":"El primer criterio se cumple satisfactoriamente"},"Las tres condiciones en caso de que apliquen deben cumplirse para argumentar que la actividad tiene contribución sustancial. La tercera opción podría no aplicar. En este caso se evaluaran las primeras dos cuestiones"]
["¿Se realiza una evaluación de la eficacia de la contribución de la actividad económica a la reducción de los riesgos físicos, teniendo en cuenta la escala de exposición y la vulnerabilidad a los mismos?",null,null,null,null,"Sí",{"$f":"IF(F299=\"Seleccione\",\"Por definir\",IF(F299=\"Sí\",\"El segundo criterio se cumple satisfactoriamente\",\"Al no cumplir con este criterio, no es posible generar contribución sustancial\"))","v":"El segundo criterio se cumple satisfactoriamente"}]
["En el caso de una infraestructura vinculada a una actividad que permita la adaptación, dicha infraestructura debe cumplir también los criterios de selección A1, A2 y A3. ¿Esto se cumple en el contexto del proyecto?",null,null,null,null,"Sí",{"$f":"IF(F300=\"Seleccione\",\"Por definir\",IF(F300=\"Sí\",\"El tercer criterio se cumple satisfactoriamente\",IF(F300=\"No aplica\",\"No aplica\",\"El proyecto no genera contribución sustancial\")))","v":"El tercer criterio se cumple satisfactoriamente"}]
[{"$f":"IF(OR(F298=\"Seleccione\",F299=\"Seleccione\",F300=\"Seleccione\"),\"Por definir\",IF(OR(F298=\"No\",F299=\"No\",F300=\"No\"),\"La actividad no genera contribución sustancial\",\"La actividad sí contribuye sustancialmente a la sostenibilidad\"))","v":"La actividad sí contribuye sustancialmente a la sostenibilidad"}]
[]
["562922. Recuperación de residuos por el sector público"]
["Responde las siguientes preguntas seleccionando una respuesta de la lista"]
[]
["1. La actividad que estás evaluando es una actividad adaptada o una actividad que facilita la adaptación?",null,null,"Actividad que facilita la adaptación e incluye desarrollo de infraestructura"]
[]
["¿Qué es una actividad adaptada?\nUna actividad económica se adapta a los riesgos climáticos físicos materiales, si integra medidas y/o soluciones para reducirlos, mientras garantiza que la actividad económica pueda funcionar bien en un clima cambiante. Estas actividades de adaptación se desarrollan a partir de la evaluación de riesgos actuales y futuros, ya sean climáticos, crónicos y/o agudos, así como la escala temporal y geográfica de la actividad económica."]
["¿Qué es una actividad que facilita la adaptación? \nUna actividad económica posibilita la adaptación si reduce el riesgo climático físico material y la vulnerabilidad en otras actividades económicas, comunidades, ecosistemas o ciudades, y/o aborda los obstáculos sistémicos a la adaptación. Esto es posible a través del uso de la tecnología y la creación de un producto o servicio especializado."]
[]
[]
["A1. Reducción de los riesgos climáticos físicos materiales."]
["La actividad económica debe reducir todos los riesgos climáticos físicos materiales para las actividades evaluadas, en la medida de lo posible y sobre la base del mejor esfuerzo. Selecciona las respuestas en las listas desplegables"]
["¿La actividad económica integra medidas destinadas a reducir, en la medida de lo posible y sobre la base del mejor esfuerzo, los riesgos climáticos físicos materiales para esa actividad, que han sido identificados mediante una evaluación de riesgos?",null,null,null,null,"Sí",{"$f":"IF(F314=\"Seleccione\",\"Por definir\",IF(F314=\"Sí\",\"El primer criterio se cumple satisfactoriamente\",\"Al no cumplir con este criterio, no es posible generar contribución sustancial\"))","v":"El primer criterio se cumple satisfactoriamente"},"Las tres condiciones deben cumplirse para argumentar que la actividad tiene contribución sustancial"]
["¿Esta evaluación considera tanto la variabilidad meteorológica actual, como el cambio climático futuro, incluidos los escenarios climáticos, así como la incertidumbre?",null,null,null,null,"Sí",{"$f":"IF(F315=\"Seleccione\",\"Por definir\",IF(F315=\"Sí\",\"El segundo criterio se cumple satisfactoriamente\",\"Al no cumplir con este criterio, no es posible generar contribución sustancial\"))","v":"El segundo criterio se cumple satisfactoriamente"}]
["¿Igualmente la evaluación se basa en un sólido análisis de los datos e información disponible sobre los distintos escenarios climáticos, y es coherente con la duración prevista de la actividad?",null,null,null,null,"Sí",{"$f":"IF(F316=\"Seleccione\",\"Por definir\",IF(F316=\"Sí\",\"El tercer criterio se cumple satisfactoriamente\",\"Al no cumplir con este criterio, no es posible generar contribución sustancial\"))","v":"El tercer criterio se cumple satisfactoriamente"}]
[{"$f":"IF(OR(F314=\"Seleccione\",F315=\"Seleccione\",F316=\"Seleccione\"),\"Por definir\",IF(OR(F314=\"No\",F315=\"No\",F316=\"No\"),\"La actividad no genera contribución sustancial\", \"La actividad sí contribuye sustancialmente a la sostenibilidad\"))","v":"La actividad sí contribuye sustancialmente a la sostenibilidad"}]
[]
["A2. Apoyo a la adaptación del sistema. "]
["La actividad económica y sus medidas de adaptación no afectan negativamente los esfuerzos de adaptación de otras personas, la naturaleza y los bienes. Selecciona las respuestas en las listas desplegables"]
[" La actividad económica y sus medidas de adaptación no aumentan los riesgos de un impacto climático adverso sobre otras personas, la naturaleza y los bienes",null,null,null,null,"Sí",{"$f":"IF(F321=\"Seleccione\",\"Por definir\",IF(F321=\"Sí\",\"El primer criterio se cumple satisfactoriamente\",\"Al no cumplir con este criterio, no es posible generar contribución sustancial\"))","v":"El primer criterio se cumple satisfactoriamente"},"Las dos condiciones deben cumplirse para argumentar que la actividad tiene contribución sustancial"]
["La actividad económica y sus medidas de adaptación son consistentes con los esfuerzos de adaptación a nivel sectorial, regional y/o nacional.",null,null,null,null,"Sí",{"$f":"IF(F322=\"Seleccione\",\"Por definir\",IF(F322=\"Sí\",\"El segundo criterio se cumple satisfactoriamente\",\"Al no cumplir con este criterio, no es posible generar contribución sustancial\"))","v":"El segundo criterio se cumple satisfactoriamente"}]
[{"$f":"IF(OR(F321=\"Seleccione\",F322=\"Seleccione\"),\"Por definir\",IF(OR(F321=\"No\",F322=\"No\"),\"La actividad no genera contribución sustancial\", \"La actividad sí contribuye sustancialmente a la sostenibilidad\"))","v":"La actividad sí contribuye sustancialmente a la sostenibilidad"}]
[]
["A3. Monitoreo de los resultados de adaptación."]
["En el contexto de la actividad evaluada, la reducción de los riesgos físicos se puede medir. Selecciona las respuestas en las listas desplegables"]
[" Los resultados de adaptación pueden ser monitoreados y medidos con base en indicadores. Considerando que los riesgos físicos evolucionan con el tiempo, el análisis de riesgos físicos debe llevarse a cabo con la frecuencia adecuada.  ¿Esto se evalúa dentro de la operación financiera y/o proyecto?",null,null,null,null,"Sí",{"$f":"IF(F327=\"Seleccione\",\"Por definir\",IF(F327=\"Sí\",\"La actividad sí contribuye sustancialmente a la sostenbilidad\",\"El proyecto no genera contribución sustancial\"))","v":"La actividad sí contribuye sustancialmente a la sostenbilidad"}]
[]
["B1. Apoyar a la adaptación de otras actividades económicas."]
["La actividad económica reduce el riesgo climático físico material en otras actividades económicas y/o aborda los obstáculos sistémicos para la adaptación. Las actividades que permiten la adaptación incluyen, pero no se limitan a, actividades que promueven una tecnología, un producto, una práctica, un proceso de gobernanza o usos innovadores de tecnologías, productos o prácticas existentes (incluidos los relacionados con las infraestructuras naturales). Además, eliminan las barreras de información, financieras, tecnológicas y de capacidad para la adaptación de otros. Selecciona las respuestas en las listas desplegables"]
["¿Se realiza una evaluación de los riesgos resultantes, con base en datos sólidos, tanto de la variabilidad  meteorológica actual como del cambio climático futuro, incluidos los escenarios climáticos, así como  la incertidumbre, que la actividad económica contribuirá a abordar?",null,null,null,null,"Sí",{"$f":"IF(F331=\"Seleccione\",\"Por definir\",IF(F331=\"Sí\",\"El primer criterio se cumple satisfactoriamente\",\"Al no cumplir con este criterio, no es posible generar contribución sustancial\"))","v":"El primer criterio se cumple satisfactoriamente"},"Las tres condiciones en caso de que apliquen deben cumplirse para argumentar que la actividad tiene contribución sustancial. La tercera opción podría no aplicar. En este caso se evaluaran las primeras dos cuestiones"]
["¿Se realiza una evaluación de la eficacia de la contribución de la actividad económica a la reducción de los riesgos físicos, teniendo en cuenta la escala de exposición y la vulnerabilidad a los mismos?",null,null,null,null,"Sí",{"$f":"IF(F332=\"Seleccione\",\"Por definir\",IF(F332=\"Sí\",\"El segundo criterio se cumple satisfactoriamente\",\"Al no cumplir con este criterio, no es posible generar contribución sustancial\"))","v":"El segundo criterio se cumple satisfactoriamente"}]
["En el caso de una infraestructura vinculada a una actividad que permita la adaptación, dicha infraestructura debe cumplir también los criterios de selección A1, A2 y A3. ¿Esto se cumple en el contexto del proyecto?",null,null,null,null,"Sí",{"$f":"IF(F333=\"Seleccione\",\"Por definir\",IF(F333=\"Sí\",\"El tercer criterio se cumple satisfactoriamente\",IF(F333=\"No aplica\",\"No aplica\",\"El proyecto no genera contribución sustancial\")))","v":"El tercer criterio se cumple satisfactoriamente"}]
[{"$f":"IF(OR(F331=\"Seleccione\",F332=\"Seleccione\",F333=\"Seleccione\"),\"Por definir\",IF(OR(F331=\"No\",F332=\"No\",F333=\"No\"),\"La actividad no genera contribución sustancial\",\"La actividad sí contribuye sustancialmente a la sostenibilidad\"))","v":"La actividad sí contribuye sustancialmente a la sostenibilidad"}]

{"sheet":"Indice de género-Residuos","index":46,"n_rows":82,"n_cols":11,"rows_kept":82,"cut":false,"hidden":true,"merged":[[1,1,1,8],[3,0,3,8],[5,0,5,8],[7,0,9,0],[7,1,9,1],[7,2,7,5],[7,8,9,8],[8,2,8,5],[9,2,9,5],[12,0,15,0],[12,1,15,1],[12,2,12,5],[12,8,15,8],[13,2,13,5],[14,2,14,5],[15,2,15,5],[18,0,20,0],[18,1,20,1],[18,2,18,5],[18,8,20,8],[19,2,19,5],[20,2,20,5],[23,0,25,0],[23,1,25,1],[23,2,23,5],[23,8,25,8],[24,2,24,5],[25,2,25,5],[28,0,30,0],[28,1,30,1],[28,2,28,5],[28,8,30,8],[29,2,29,5],[30,2,30,5],[33,0,35,0],[33,1,35,1],[33,2,33,5],[33,8,35,8],[34,2,34,5],[35,2,35,5],[38,0,40,0],[38,1,40,1],[38,2,38,5],[38,8,40,8],[39,2,39,5],[40,2,40,5],[43,0,45,0],[43,1,45,1],[43,2,43,5],[43,8,45,8],[44,2,44,5],[45,2,45,5],[48,0,50,0],[48,1,50,1],[48,2,48,5],[48,8,50,8],[49,2,49,5],[50,2,50,5],[53,0,55,0],[53,1,55,1],[53,2,53,5],[53,8,55,8],[54,2,54,5],[55,2,55,5],[58,0,60,0],[58,1,60,1],[58,2,58,5],[58,8,60,8],[59,2,59,5],[60,2,60,5],[63,0,65,0],[63,1,65,1],[63,2,63,5],[63,8,65,8],[64,2,64,5],[65,2,65,5],[68,0,70,0],[68,1,70,1],[68,2,68,5],[68,8,70,8],[69,2,69,5],[70,2,70,5],[73,0,75,0],[73,1,75,1],[73,2,73,5],[73,8,75,8],[74,2,74,5],[75,2,75,5],[77,4,77,7],[78,4,78,7],[79,4,79,7],[80,4,80,7],[81,4,81,7]]}
[]
[null,"Índice de Igualdad de Género"]
[]
["La Igualdad de Género es considerada como un objetivo prioritario en la Taxonomía Sostenible de México. Es así que se han generado Criterios de Evaluación Técnica que permitan identificar inversiones que contribuyan al cierre de brechas de género. Al mismo tiempo, las métricas propuestas servirán como guía orientadora para los usuarios potenciales de la Taxonomía, de forma que puedan dirigir esfuerzos para generar una contribución sustancial a la igualdad de género. Este índice refleja, en una escala numérica, la contribución de las organizaciones a tres pilares de igualdad de género: 1) Trabajo Digno, 2) Bienestar e 3) Inclusión Social. Ello permite traducir los criterios cualitativos de estos tres pilares, a una métrica cuantitativa, a la cual es posible asignar un umbral para determinar un nivel de contribución sustancial para un objetivo social."]
[]
["Por favor, selecciona alguna de las opciones descritas en las casillas azules para cada pregunta. En función de la respuesta, se asignará un puntaje por bloque de preguntas, que al final será evaluado para conocer si el proyecto cumple con las condiciones presentes en el índice de igualdad de género"]
["Pilar",null,null,null,null,null,null,"Puntaje",null,null,{"$f":"IF(G7=\"No\",0,IF(G7=\"Sí de alcance parcial dentro de la organización\",1,IF(G7=\"Sí de alcance integral en la organización\",2,IF(G7=\"Sí de alcance que se extiende dentro y fuera de la organización\",3,\"\"))))","v":""}]
["1.1.1","Igualdad de remuneración","¿Existe una política y/o tabulador para todo el personal que establezca la igualdad de remuneración por un trabajo equivalente, conforme a la Ley Federal del Trabajo, y donde se puedan consultar los rangos salariales para los diferentes niveles dentro del centro de trabajo?",null,null,null,"Sí de alcance que se extiende dentro y fuera de la organización",{"$f":"IF(G8=\"No\",0,IF(G8=\"Sí de alcance parcial dentro de la organización\",1,IF(G8=\"Sí de alcance integral en la organización\",2,IF(G8=\"Sí de alcance que se extiende dentro y fuera de la organización\",3,\"\"))))","v":3},{"$f":"IF(OR(G8=\"Seleccione\",G9=\"Seleccione\",G10=\"Seleccione\"),\"Por favor completa las preguntas de este apartado del Índice\",IF(H11<3,\"Es necesario incrementar la ambición en alguno de los ejes evaluados para que el proyecto esté alineado al Índice de Igualdad de Género de la Taxonomía Sostenible de México\",\"El proyecto cuenta con la ambición necesaria para cerrar las brechas de género conforme al Índice de Igualdad de Género de la Taxonomía Sostenible de México\"))","v":"El proyecto cuenta con la ambición necesaria para cerrar las brechas de género conforme al Índice de Igualdad de Género de la Taxonomía Sostenible de México"}]
[null,null,"¿La organización realiza un análisis sistemático y periódico de las brechas de género en salarios, prestaciones y compensaciones de su personal?",null,null,null,"Sí de alcance que se extiende dentro y fuera de la organización",{"$f":"IF(G9=\"No\",0,IF(G9=\"Sí de alcance parcial dentro de la organización\",1,IF(G9=\"Sí de alcance integral en la organización\",2,IF(G9=\"Sí de alcance que se extiende dentro y fuera de la organización\",3,\"\"))))","v":3}]
[null,null,"¿La organización cuenta con un mecanismo para corregir los casos identificados con desigualdad en la remuneración?",null,null,null,"Sí de alcance integral en la organización",{"$f":"IF(G10=\"No\",0,IF(G10=\"Sí de alcance parcial dentro de la organización\",1,IF(G10=\"Sí de alcance integral en la organización\",2,\"\")))","v":2}]
[null,null,null,null,null,null,null,{"$f":"SUM(H8:H10)","v":8}]
[]
["1.2.1","Posibilidades de acceso, contratación, participación, permanencia y promoción","¿Tiene la organización una política o mecanismo que garantice la no discriminación e igualdad de oportunidades en el acceso, permanencia y desarrollo laboral?",null,null,null,"Sí de alcance que se extiende dentro y fuera de la organización",{"$f":"IF(G13=\"No\",0,IF(G13=\"Sí de alcance parcial dentro de la organización\",1,IF(G13=\"Sí de alcance integral en la organización\",2,IF(G13=\"Sí de alcance que se extiende dentro y fuera de la organización\",3,\"\"))))","v":3},{"$f":"IF(OR(G13=\"Seleccione\",G14=\"Seleccione\",G15=\"Seleccione\",G16=\"Seleccione\"),\"Por favor completa las preguntas de este apartado del Índice\",IF(H17<4,\"Es necesario incrementar la ambición en alguno de los ejes evaluados para que el proyecto esté alineado al Índice de Igualdad de Género de la Taxonomía Sostenible de México\",\"El proyecto cuenta con la ambición necesaria para cerrar las brechas de género conforme al Índice de Igualdad de Género de la Taxonomía Sostenible de México\"))","v":"El proyecto cuenta con la ambición necesaria para cerrar las brechas de género conforme al Índice de Igualdad de Género de la Taxonomía Sostenible de México"}]
[null,null,"¿Existen perfiles de puestos, anuncios de vacantes u ofertas de trabajo, documentación para entrevista de ingreso estructurada y/o exámenes o evaluaciones libres de sesgos sexistas o de discriminación?",null,null,null,"Sí de alcance que se extiende dentro y fuera de la organización",{"$f":"IF(G14=\"No\",0,IF(G14=\"Sí de alcance parcial dentro de la organización\",1,IF(G14=\"Sí de alcance integral en la organización\",2,IF(G14=\"Sí de alcance que se extiende dentro y fuera de la organización\",3,\"\"))))","v":3}]
[null,null,"¿Se cuenta con procesos transparentes y accesibles de movilidad horizontal y vertical libres de sesgos sexistas o discriminatorios?",null,null,null,"Sí de alcance que se extiende dentro y fuera de la organización",{"$f":"IF(G15=\"No\",0,IF(G15=\"Sí de alcance parcial dentro de la organización\",1,IF(G15=\"Sí de alcance integral en la organización\",2,IF(G15=\"Sí de alcance que se extiende dentro y fuera de la organización\",3,\"\"))))","v":3}]
[null,null,"¿La organización lleva a cabo capacitaciones extensivas al personal candidato o de la propia empresa como mecanismo de corrección (distintas al plan de capacitación) sobre sesgos de género para entrevistas laborales, para evaluaciones de desempeño o para procesos de reclutamiento, movilidad y  promoción?",null,null,null,"Sí de alcance que se extiende dentro y fuera de la organización",{"$f":"IF(G16=\"No\",0,IF(G16=\"Sí de alcance parcial dentro de la organización\",1,IF(G16=\"Sí de alcance integral en la organización\",2,IF(G16=\"Sí de alcance que se extiende dentro y fuera de la organización\",3,\"\"))))","v":3}]
[null,null,null,null,null,null,null,{"$f":"SUM(H13:H16)","v":12}]
[]
["1.2.2","Segregación Vertical y Horizontal","¿La organización cuenta con metas institucionales sobre diversidad de género en los diferentes equipos de trabajo?",null,null,null,"Sí de alcance que se extiende dentro y fuera de la organización",{"$f":"IF(G19=\"No\",0,IF(G19=\"Sí de alcance parcial dentro de la organización\",1,IF(G19=\"Sí de alcance integral en la organización\",2,IF(G19=\"Sí de alcance que se extiende dentro y fuera de la organización\",3,\"\"))))","v":3},{"$f":"IF(OR(G19=\"Seleccione\",G20=\"Seleccione\",G21=\"Seleccione\"),\"Por favor completa las preguntas de este apartado del Índice\",IF(H22<3,\"Es necesario incrementar la ambición en alguno de los ejes evaluados para que el proyecto esté alineado al Índice de Igualdad de Género de la Taxonomía Sostenible de México\",\"El proyecto cuenta con la ambición necesaria para cerrar las brechas de género conforme al Índice de Igualdad de Género de la Taxonomía Sostenible de México\"))","v":"El proyecto cuenta con la ambición necesaria para cerrar las brechas de género conforme al Índice de Igualdad de Género de la Taxonomía Sostenible de México"}]
[null,"1.2.2.2","¿La organización cuenta con un plan de acción para cerrar la brecha de participación laboral entre hombres y mujeres, entre los niveles jerárquicos, en el proceso de contratación y en las oportunidades de promoción?",null,null,null,"Sí de alcance integral en la organización",{"$f":"IF(G20=\"No\",0,IF(G20=\"Sí de alcance parcial dentro de la organización\",1,IF(G20=\"Sí de alcance integral en la organización\",2,\"\")))","v":2}]
[null,"1.2.2.3","¿El despliegue de los mecanismos de corrección para cerrar la brecha de participación se realiza conforme a la evaluación o medición continua de las brechas de género?",null,null,null,"Sí de alcance integral en la organización",{"$f":"IF(G21=\"No\",0,IF(G21=\"Sí de alcance parcial dentro de la organización\",1,IF(G21=\"Sí de alcance integral en la organización\",2,\"\")))","v":2}]
[null,null,null,null,null,null,null,{"$f":"SUM(H19:H21)","v":7}]
[]
["1.2.3","Igualdad de representatividad de mujeres y hombres en órganos de gobernanza corporativa","¿Existe una política de paridad entre mujeres y hombres (reglamentos, normas, documentos o protocolos internos) en el órgano de gobernanza corporativa (junta de gobierno) o en puestos de toma de decisión?",null,null,null,"Sí de alcance que se extiende dentro y fuera de la organización",{"$f":"IF(G24=\"No\",0,IF(G24=\"Sí de alcance parcial dentro de la organización\",1,IF(G24=\"Sí de alcance integral en la organización\",2,IF(G24=\"Sí de alcance que se extiende dentro y fuera de la organización\",3,\"\"))))","v":3},{"$f":"IF(OR(G24=\"Seleccione\",G25=\"Seleccione\",G26=\"Seleccione\"),\"Por favor completa las preguntas de este apartado del Índice\",IF(H27<2,\"Es necesario incrementar la ambición en alguno de los ejes evaluados para que el proyecto esté alineado al Índice de Igualdad de Género de la Taxonomía Sostenible de México\",\"El proyecto cuenta con la ambición necesaria para cerrar las brechas de género conforme al Índice de Igualdad de Género de la Taxonomía Sostenible de México\"))","v":"El proyecto cuenta con la ambición necesaria para cerrar las brechas de género conforme al Índice de Igualdad de Género de la Taxonomía Sostenible de México"}]
[null,"1.2.3.2","¿Existen mecanismos o acciones para promover la rotación hacia puestos directivos o de toma de decisión con perspectiva de género, o en su caso el proceso de designación no tienes sesgos de género?",null,null,null,"Sí de alcance integral en la organización",{"$f":"IF(G25=\"No\",0,IF(G25=\"Sí de alcance parcial dentro de la organización\",1,IF(G25=\"Sí de alcance integral en la organización\",2,\"\")))","v":2}]
[null,"1.2.3.3","¿La organización se somete a un análisis, interno o externo, de paridad de género institucional en sus puestos de alta dirección o gobierno corporativo, acorde a la política de transparencia que la rige?",null,null,null,"Sí de alcance que se extiende dentro y fuera de la organización",{"$f":"IF(G26=\"No\",0,IF(G26=\"Sí de alcance parcial dentro de la organización\",1,IF(G26=\"Sí de alcance integral en la organización\",2,IF(G26=\"Sí de alcance que se extiende dentro y fuera de la organización\",3,\"\"))))","v":3}]
[null,null,null,null,null,null,null,{"$f":"SUM(H24:H26)","v":8}]
[]
["1.2.4","Clima laboral y espacios de trabajo libres de violencia","¿La organización cuenta con políticas o áreas especializadas en diversidad e inclusión que promuevan relaciones igualitarias acompañadas de la implementación de prácticas de prevención contra la violencia de género (hostigamiento, acoso u otro)?",null,null,null,"Sí de alcance integral en la organización",{"$f":"IF(G29=\"No\",0,IF(G29=\"Sí de alcance parcial dentro de la organización\",1,IF(G29=\"Sí de alcance integral en la organización\",2,\"\")))","v":2},{"$f":"IF(OR(G29=\"Seleccione\",G30=\"Seleccione\",G31=\"Seleccione\"),\"Por favor completa las preguntas de este apartado del Índice\",IF(H32<2,\"Es necesario incrementar la ambición en alguno de los ejes evaluados para que el proyecto esté alineado al Índice de Igualdad de Género de la Taxonomía Sostenible de México\",\"El proyecto cuenta con la ambición necesaria para cerrar las brechas de género conforme al Índice de Igualdad de Género de la Taxonomía Sostenible de México\"))","v":"El proyecto cuenta con la ambición necesaria para cerrar las brechas de género conforme al Índice de Igualdad de Género de la Taxonomía Sostenible de México"}]
[null,"1.2.4.2","¿La organización cuenta con un grupo, comisión o Comité encargado de la vigilancia del desarrollo e implementación de prácticas contra la violencia y la discriminación de género en el centro de trabajo?",null,null,null,"Sí de alcance integral en la organización",{"$f":"IF(G30=\"No\",0,IF(G30=\"Sí de alcance parcial dentro de la organización\",1,IF(G30=\"Sí de alcance integral en la organización\",2,\"\")))","v":2}]
[null,"1.2.4.3","¿La organización cuenta con mecanismos de atención a actos de violencia detectados o de reparación de daños, cuyos resultados salvaguarden la integridad de las víctimas y eviten la revictimización?",null,null,null,"Sí de alcance integral en la organización",{"$f":"IF(G31=\"No\",0,IF(G31=\"Sí de alcance parcial dentro de la organización\",1,IF(G31=\"Sí de alcance integral en la organización\",2,\"\")))","v":2}]
[null,null,null,null,null,null,null,{"$f":"SUM(H29:H31)","v":6}]
[]
["1.2.5","Capacitaciones para la igualdad laboral","¿La organización cuenta con un plan de capacitación, sensibilización y difusión como parte de sus objetivos de la agenda de género?",null,null,null,"Sí de alcance que se extiende dentro y fuera de la organización",{"$f":"IF(G34=\"No\",0,IF(G34=\"Sí de alcance parcial dentro de la organización\",1,IF(G34=\"Sí de alcance integral en la organización\",2,IF(G34=\"Sí de alcance que se extiende dentro y fuera de la organización\",3,\"\"))))","v":3},{"$f":"IF(OR(G34=\"Seleccione\",G35=\"Seleccione\",G36=\"Seleccione\"),\"Por favor completa las preguntas de este apartado del Índice\",IF(H37<3,\"Es necesario incrementar la ambición en alguno de los ejes evaluados para que el proyecto esté alineado al Índice de Igualdad de Género de la Taxonomía Sostenible de México\",\"El proyecto cuenta con la ambición necesaria para cerrar las brechas de género conforme al Índice de Igualdad de Género de la Taxonomía Sostenible de México\"))","v":"El proyecto cuenta con la ambición necesaria para cerrar las brechas de género conforme al Índice de Igualdad de Género de la Taxonomía Sostenible de México"}]
[null,"1.2.5.2","¿La organización ofrece capacitación continua para el desarrollo de habilidades requeridas para la movilidad laboral, tales como mentoría o patrocinio; incluyendo el desarrollo de capacidades para los nuevos empleos verdes que promuevan la transición justa?",null,null,null,"Sí de alcance que se extiende dentro y fuera de la organización",{"$f":"IF(G35=\"No\",0,IF(G35=\"Sí de alcance parcial dentro de la organización\",1,IF(G35=\"Sí de alcance integral en la organización\",2,IF(G35=\"Sí de alcance que se extiende dentro y fuera de la organización\",3,\"\"))))","v":3}]
[null,"1.2.5.3","¿La organización cuenta con mecanismos de evaluación o mejora de su plan de implementación de capacitaciones, asesorías o mentorías, que sean extensivos a otros actores que interactúan con la organización o a la comunidad externa (más allá del personal de la organización)?",null,null,null,"Sí de alcance que se extiende dentro y fuera de la organización",{"$f":"IF(G36=\"No\",0,IF(G36=\"Sí de alcance parcial dentro de la organización\",1,IF(G36=\"Sí de alcance integral en la organización\",2,IF(G36=\"Sí de alcance que se extiende dentro y fuera de la organización\",3,\"\"))))","v":3}]
[null,null,null,null,null,null,null,{"$f":"SUM(H34:H36)","v":9}]
[]
["1.3.1","Esquemas de trabajo flexible y políticas de conciliación","¿Existen medidas de flexibilidad laboral, como horarios flexibles o escalonados, semanas de trabajo comprimidas, teletrabajo o licencias con y sin goce de sueldo?",null,null,null,"No",{"$f":"IF(G39=\"No\",0,IF(G39=\"Sí de alcance parcial dentro de la organización\",1,IF(G39=\"Sí de alcance integral en la organización\",2,\"\")))","v":0},{"$f":"IF(OR(G39=\"Seleccione\",G40=\"Seleccione\",G41=\"Seleccione\"),\"Por favor completa las preguntas de este apartado del Índice\",IF(H42<4,\"Es necesario incrementar la ambición en alguno de los ejes evaluados para que el proyecto esté alineado al Índice de Igualdad de Género de la Taxonomía Sostenible de México\",\"El proyecto cuenta con la ambición necesaria para cerrar las brechas de género conforme al Índice de Igualdad de Género de la Taxonomía Sostenible de México\"))","v":"Es necesario incrementar la ambición en alguno de los ejes evaluados para que el proyecto esté alineado al Índice de Igualdad de Género de la Taxonomía Sostenible de México"}]
[null,"1.3.1.2","¿Existe una duración definida de la jornada laboral que se acompañe con una política de desconexión, sin importar que el esquema sea presencial, híbrido o por teletrabajo?",null,null,null,"No",{"$f":"IF(G40=\"No\",0,IF(G40=\"Sí de alcance parcial dentro de la organización\",1,IF(G40=\"Sí de alcance integral en la organización\",2,\"\")))","v":0}]
[null,"1.3.1.3","¿La organización despliega y difunde mecanismos de corrección al interior y al exterior, en función de la información estadística analizada y desagregada por sexo, sobre el cumplimento de los horarios de trabajo conforme al derecho de las y los trabajadores a la desconexión?",null,null,null,"No",{"$f":"IF(G41=\"No\",0,IF(G41=\"Sí de alcance parcial dentro de la organización\",1,IF(G41=\"Sí de alcance integral en la organización\",2,IF(G41=\"Sí de alcance que se extiende dentro y fuera de la organización\",3,\"\"))))","v":0}]
[null,null,null,null,null,null,null,{"$f":"SUM(H39:H41)","v":0}]
[]
["1.3.2","Oferta complementaria de servicios de cuidados (ludoteca, casas de día, estancias infantiles adicionales, entre otros)","¿La organización tiene políticas que le permitan desarrollar una oferta complementaria de servicios de cuidado (guarderías propias, salas de lactancia, etc.), asequible para todo el personal de la organización, incluyendo licencias de maternidad y paternidad con duración superior a la Ley?",null,null,null,"No",{"$f":"IF(G44=\"No\",0,IF(G44=\"Sí de alcance parcial dentro de la organización\",1,IF(G44=\"Sí de alcance integral en la organización\",2,IF(G44=\"Sí de alcance que se extiende dentro y fuera de la organización\",3,\"\"))))","v":0},{"$f":"IF(OR(G44=\"Seleccione\",G45=\"Seleccione\",G46=\"Seleccione\"),\"Por favor completa las preguntas de este apartado del Índice\",IF(H47<3,\"Es necesario incrementar la ambición en alguno de los ejes evaluados para que el proyecto esté alineado al Índice de Igualdad de Género de la Taxonomía Sostenible de México\",\"El proyecto cuenta con la ambición necesaria para cerrar las brechas de género conforme al Índice de Igualdad de Género de la Taxonomía Sostenible de México\"))","v":"Es necesario incrementar la ambición en alguno de los ejes evaluados para que el proyecto esté alineado al Índice de Igualdad de Género de la Taxonomía Sostenible de México"}]
[null,"1.3.2.2","¿Se proporciona una oferta de servicios de cuidado adicional a los servicios de seguridad social (IMSS, ISSSTE y otros) o se ofrecen permisos con o sin goce de sueldo para la atención de responsabilidades de cuidado?",null,null,null,"No",{"$f":"IF(G45=\"No\",0,IF(G45=\"Sí de alcance parcial dentro de la organización\",1,IF(G45=\"Sí de alcance integral en la organización\",2,IF(G45=\"Sí de alcance que se extiende dentro y fuera de la organización\",3,\"\"))))","v":0}]
[null,"1.3.2.3","¿La organización realiza y difunde evaluaciones de las necesidades de cuidado de su personal y sus dependientes, al interior y al exterior?",null,null,null,"No",{"$f":"IF(G46=\"No\",0,IF(G46=\"Sí de alcance parcial dentro de la organización\",1,IF(G46=\"Sí de alcance integral en la organización\",2,IF(G46=\"Sí de alcance que se extiende dentro y fuera de la organización\",3,\"\"))))","v":0}]
[null,null,null,null,null,null,null,{"$f":"SUM(H44:H46)","v":0}]
[]
["2.1.1","Desarrollo y provisión de infraestructura, bienes y servicios con impacto social positivo y perspectiva de género","¿La organización tiene como política realizar diagnósticos con perspectiva de género para el diseño y operación del proyecto, actividad, desarrollo de infraestructura o la provisión de bienes y servicios?",null,null,null,"Sí de alcance que se extiende dentro y fuera de la organización",{"$f":"IF(G49=\"No\",0,IF(G49=\"Sí de alcance parcial dentro de la organización\",2,IF(G49=\"Sí de alcance integral en la organización\",4,IF(G49=\"Sí de alcance que se extiende dentro y fuera de la organización\",6,\"\"))))","v":6},{"$f":"IF(OR(G49=\"Seleccione\",G50=\"Seleccione\",G51=\"Seleccione\"),\"Por favor completa las preguntas de este apartado del Índice\",IF(H52<8,\"Es necesario incrementar la ambición en alguno de los ejes evaluados para que el proyecto esté alineado al Índice de Igualdad de Género de la Taxonomía Sostenible de México\",\"El proyecto cuenta con la ambición necesaria para cerrar las brechas de género conforme al Índice de Igualdad de Género de la Taxonomía Sostenible de México\"))","v":"El proyecto cuenta con la ambición necesaria para cerrar las brechas de género conforme al Índice de Igualdad de Género de la Taxonomía Sostenible de México"}]
[null,"2.1.1.2","¿El proyecto de infraestructura, actividad, bien o servicio, considera ajustes razonables para atender las necesidades de las mujeres o contribuye a la reducción o eliminación de una situación de exclusión, desigualdad o violencia de género, y privilegia su acceso a precios asequibles por razón de género?",null,null,null,"Sí de alcance que se extiende dentro y fuera de la organización",{"$f":"IF(G50=\"No\",0,IF(G50=\"Sí de alcance parcial dentro de la organización\",2,IF(G50=\"Sí de alcance integral en la organización\",4,IF(G50=\"Sí de alcance que se extiende dentro y fuera de la organización\",6,\"\"))))","v":6}]
[null,"2.1.1.3","¿Se cuenta con un plan de actividades de igualdad entre mujeres y hombres, que incluya presupuesto e indicadores de cumplimiento sobre el impacto en la vida de las mujeres, y en su caso, en el medio ambiente en el uso de la infraestructura, productos o servicios a desarrollar?",null,null,null,"Sí de alcance que se extiende dentro y fuera de la organización",{"$f":"IF(G51=\"No\",0,IF(G51=\"Sí de alcance parcial dentro de la organización\",2,IF(G51=\"Sí de alcance integral en la organización\",4,IF(G51=\"Sí de alcance que se extiende dentro y fuera de la organización\",6,\"\"))))","v":6}]
[null,null,null,null,null,null,null,{"$f":"SUM(H49:H51)","v":18}]
[]
["2.2.1","No afectación a la salud de las mujeres","¿La organización tiene como procedimientos la elaboración de diagnósticos con perspectiva de género sobre los impactos potenciales en salud del proyecto de infraestructura, actividad, bien o servicio, para la promoción de la salud en las mujeres o asegurar la no afectación a esta?",null,null,null,"Sí de alcance que se extiende dentro y fuera de la organización",{"$f":"IF(G54=\"No\",0,IF(G54=\"Sí de alcance parcial dentro de la organización\",2,IF(G54=\"Sí de alcance integral en la organización\",4,IF(G54=\"Sí de alcance que se extiende dentro y fuera de la organización\",6,\"\"))))","v":6},{"$f":"IF(OR(G54=\"Seleccione\",G55=\"Seleccione\",G56=\"Seleccione\"),\"Por favor completa las preguntas de este apartado del Índice\",IF(H57<8,\"Es necesario incrementar la ambición en alguno de los ejes evaluados para que el proyecto esté alineado al Índice de Igualdad de Género de la Taxonomía Sostenible de México\",\"El proyecto cuenta con la ambición necesaria para cerrar las brechas de género conforme al Índice de Igualdad de Género de la Taxonomía Sostenible de México\"))","v":"El proyecto cuenta con la ambición necesaria para cerrar las brechas de género conforme al Índice de Igualdad de Género de la Taxonomía Sostenible de México"}]
[null,"2.2.1.2","¿El proyecto, actividad, bien o servicio, considera ajustes razonables para atender las necesidades diferenciadas de salud en hombres y mujeres y privilegia el acceso desde una perspectiva de género a precios asequibles?",null,null,null,"Sí de alcance parcial dentro de la organización",{"$f":"IF(G55=\"No\",0,IF(G55=\"Sí de alcance parcial dentro de la organización\",2,IF(G55=\"Sí de alcance integral en la organización\",4,IF(G55=\"Sí de alcance que se extiende dentro y fuera de la organización\",6,\"\"))))","v":2}]
[null,"2.2.1.3","¿Se realizan estudios de los efectos en la salud de la actividad, productos o servicios desagregados sexo, y se cuenta con un plan de actividades para la corrección o mejora que incluya presupuesto e indicadores de cumplimiento?",null,null,null,"Sí de alcance parcial dentro de la organización",{"$f":"IF(G56=\"No\",0,IF(G56=\"Sí de alcance parcial dentro de la organización\",2,IF(G56=\"Sí de alcance integral en la organización\",4,IF(G56=\"Sí de alcance que se extiende dentro y fuera de la organización\",6,\"\"))))","v":2}]
[null,null,null,null,null,null,null,{"$f":"SUM(H54:H56)","v":10}]
[]
["2.3.1","Promoción de autonomía de las mujeres y financiamiento flexible con perspectiva de género","¿La organización tiene como política visibilizar las necesidades diferenciadas entre mujeres y hombres en las estrategias de comercialización de los productos o servicios ofrecidos?",null,null,null,"Sí de alcance parcial dentro de la organización",{"$f":"IF(G59=\"No\",0,IF(G59=\"Sí de alcance parcial dentro de la organización\",2,IF(G59=\"Sí de alcance integral en la organización\",4,IF(G59=\"Sí de alcance que se extiende dentro y fuera de la organización\",6,\"\"))))","v":2},{"$f":"IF(OR(G59=\"Seleccione\",G60=\"Seleccione\",G61=\"Seleccione\"),\"Por favor completa las preguntas de este apartado del Índice\",IF(H62<8,\"Es necesario incrementar la ambición en alguno de los ejes evaluados para que el proyecto esté alineado al Índice de Igualdad de Género de la Taxonomía Sostenible de México\",\"El proyecto cuenta con la ambición necesaria para cerrar las brechas de género conforme al Índice de Igualdad de Género de la Taxonomía Sostenible de México\"))","v":"Es necesario incrementar la ambición en alguno de los ejes evaluados para que el proyecto esté alineado al Índice de Igualdad de Género de la Taxonomía Sostenible de México"}]
[null,"2.3.1.2","¿La organización garantiza la accesibilidad de los productos o servicios para las mujeres, ofreciendo opciones diferenciadas de financiación?",null,null,null,"Sí de alcance parcial dentro de la organización",{"$f":"IF(G60=\"No\",0,IF(G60=\"Sí de alcance parcial dentro de la organización\",2,IF(G60=\"Sí de alcance integral en la organización\",4,IF(G60=\"Sí de alcance que se extiende dentro y fuera de la organización\",6,\"\"))))","v":2}]
[null,"2.3.1.3","¿Se realiza una evaluación de efectos diferenciados de los productos y servicios ofrecidos desagregada sexo que visibilicen que son utilizados por mujeres y/o benefician más que proporcionalmente a las mujeres?",null,null,null,"Sí de alcance parcial dentro de la organización",{"$f":"IF(G61=\"No\",0,IF(G61=\"Sí de alcance parcial dentro de la organización\",2,IF(G61=\"Sí de alcance integral en la organización\",4,IF(G61=\"Sí de alcance que se extiende dentro y fuera de la organización\",6,\"\"))))","v":2}]
[null,null,null,null,null,null,null,{"$f":"SUM(H59:H61)","v":6}]
[]
["3.1.1","Promoción de cultura de paz y no violencia","¿La organización o proyecto considera dentro de sus objetivos la reducción o erradicación de la violencia contra las mujeres o el desarrollo de espacios de paz y no violencia; o bien, cuenta con un protocolo o procedimiento para la resolución de conflictos con la comunidad, que considere una perspectiva de género y de derechos humanos?",null,null,null,"No se cuenta con un protocolo o procedimiento o no se comunica",{"$f":"IF(G64=\"No se cuenta con un protocolo o procedimiento o no se comunica\",0,IF(G64=\"Comunicación del objetivo protocolo parcial dentro de la organización\",2,IF(G64=\"Sí de alcance integral en la organización\",2,IF(G64=\"Protocolo de conocimiento de toda la organización\",4,IF(G64=\"Toda la información relacionada es pública\",6,\"\")))))","v":0},{"$f":"IF(OR(G64=\"Seleccione\",G65=\"Seleccione\",G66=\"Seleccione\"),\"Por favor completa las preguntas de este apartado del Índice\",IF(H67<8,\"Es necesario incrementar la ambición en alguno de los ejes evaluados para que el proyecto esté alineado al Índice de Igualdad de Género de la Taxonomía Sostenible de México\",\"El proyecto cuenta con la ambición necesaria para cerrar las brechas de género conforme al Índice de Igualdad de Género de la Taxonomía Sostenible de México\"))","v":"Es necesario incrementar la ambición en alguno de los ejes evaluados para que el proyecto esté alineado al Índice de Igualdad de Género de la Taxonomía Sostenible de México"}]
[null,"3.1.1.2","¿Se han desarrollado acciones para la prevención, atención, sanción y erradicación de la violencia contra niñas, niños, adolescentes y mujeres en la comunidad o espacios públicos?",null,null,null,"No se han desarrollado acciones",{"$f":"IF(G65=\"No se han desarrollado acciones\",0,IF(G65=\"Las acciones abordan solo alguno(s) de los aspectos enunciados (prevención atención sanción y erradicación de la violencia)\",4,IF(G65=\"Las acciones consideran la prevención atención sanción y erradicación de la violencia\",6,\"\")))","v":0}]
[null,"3.1.1.3","¿La organización o proyecto cuenta con evidencia de su contribución a la reducción de la violencia contra niñas, niños, adolescentes y mujeres; o bien, ha documentado y difundido casos de éxito sobre la resolución de conflictos con la comunidad o sobre el desarrollo de espacios de paz y no violencia de forma participativa?",null,null,null,"No existe evidencia o no se comunica",{"$f":"IF(G66=\"No existe evidencia o no se comunica\",0,IF(G66=\"La comunicación de la evidencia es parcial dentro de la organización\",2,IF(G66=\"La evidencia es de conocimiento de toda la organización\",4,IF(G66=\"La información es pública\",6,\"\"))))","v":0}]
[null,null,null,null,null,null,null,{"$f":"SUM(H64:H66)","v":0}]
[]
["3.2.1","Vinculación con empresas locales propiedad o con participación de mujeres","¿Existen políticas, procesos o mecanismos de adquisición de productos y servicios que incentiven la contratación de empresas locales propiedad o con alta participación de mujeres?",null,null,null,"La información es pública",{"$f":"IF(G69=\"No existen políticas o procesos o mecanismos o no se comunican\",0,IF(G69=\"La comunicación es parcial dentro de la organización\",2,IF(G69=\"Sí y es de conocimiento de toda la organización\",4,IF(G69=\"La información es pública\",6,\"\"))))","v":6},{"$f":"IF(OR(G69=\"Seleccione\",G70=\"Seleccione\",G71=\"Seleccione\"),\"Por favor completa las preguntas de este apartado del Índice\",IF(H72<8,\"Es necesario incrementar la ambición en alguno de los ejes evaluados para que el proyecto esté alineado al Índice de Igualdad de Género de la Taxonomía Sostenible de México\",\"El proyecto cuenta con la ambición necesaria para cerrar las brechas de género conforme al Índice de Igualdad de Género de la Taxonomía Sostenible de México\"))","v":"El proyecto cuenta con la ambición necesaria para cerrar las brechas de género conforme al Índice de Igualdad de Género de la Taxonomía Sostenible de México"}]
[null,"3.2.1.2","¿Se presenta evidencia de alianzas comerciales y de contratos recurrentes o multianuales con empresas locales con propiedad o participación importante de mujeres?",null,null,null,"Se presenta evidencia completa de una relación comercial recurrente",{"$f":"IF(G70=\"No se han desarrollado alianzas comerciales o contratos\",0,IF(G70=\"Se presenta evidencia de esfuerzos para establecer alianzas comerciales pero que aún no se formalizan\",4,IF(G70=\"Se presenta evidencia completa de una relación comercial recurrente\",6,\"\")))","v":6}]
[null,"3.2.1.3","¿Existe evidencia de que se contribuye al fortalecimiento del liderazgo de empresas locales encabezadas por mujeres o al desarrollo de la estrategia de sostenibilidad de empresas locales (por ejemplo, en el acceso a financiamiento, en la adopción de tecnología sostenible, etc.) propiedad o con participación de mujeres, más allá de la compra de bienes y servicios?",null,null,null,"La información es pública",{"$f":"IF(G71=\"No existe evidencia o no se comunica\",0,IF(G71=\"La comunicación de la evidencia es parcial dentro de la organización\",2,IF(G71=\"La evidencia es de conocimiento de toda la organización\",4,IF(G71=\"La información es pública\",6,\"\"))))","v":6}]
[null,null,null,null,null,null,null,{"$f":"SUM(H69:H71)","v":18}]
[]
["3.3.1","Involucramiento de organizaciones y redes comunitarias que representen los intereses de las mujeres","¿Existe una política para fomentar la participación de las comunidades, bajo el marco del consentimiento libre, previo e informado, para la realización del proyecto o actividad económica, o bien en la planeación y gestión participativa de este, que contribuya a la preservación del territorio; al bienestar de ellas y su comunidad; al cuidado del medio ambiente o a una transición justa?",null,null,null,"La información es pública",{"$f":"IF(G74=\"No existen políticas o procesos o mecanismos o no se comunican\",0,IF(G74=\"La comunicación es parcial dentro de la organización\",2,IF(G74=\"Sí y es de conocimiento de toda la organización\",4,IF(G74=\"La información es pública\",6,\"\"))))","v":6},{"$f":"IF(OR(G74=\"Seleccione\",G75=\"Seleccione\",G76=\"Seleccione\"),\"Por favor completa las preguntas de este apartado del Índice\",IF(H77<8,\"Es necesario incrementar la ambición en alguno de los ejes evaluados para que el proyecto esté alineado al Índice de Igualdad de Género de la Taxonomía Sostenible de México\",\"El proyecto cuenta con la ambición necesaria para cerrar las brechas de género conforme al Índice de Igualdad de Género de la Taxonomía Sostenible de México\"))","v":"El proyecto cuenta con la ambición necesaria para cerrar las brechas de género conforme al Índice de Igualdad de Género de la Taxonomía Sostenible de México"}]
[null,"3.3.1.2","¿Las acciones de involucramiento y consulta consideraron una perspectiva de género en su implementación para asegurar una participación en igualdad de condiciones de las mujeres (horarios adecuados, dinámicas para promover la participación, facilidades para el cuidado de infantes, un lugar de fácil acceso para ellas) y cuentan con un mecanismo de monitoreo que dé seguimiento a la incorporación de las opiniones de las mujeres?",null,null,null,"Las acciones consideran una perspectiva de género e incluyen un mecanismo de monitoreo",{"$f":"IF(G75=\"No se han desarrollado acciones\",0,IF(G75=\"Las acciones abordan parcialmente los aspectos requeridos por la pregunta\",4,IF(G75=\"Las acciones consideran una perspectiva de género e incluyen un mecanismo de monitoreo\",6,\"\")))","v":6}]
[null,"3.3.1.3","¿Existe evidencia de que la actividad económica o proyecto contribuye a la formación o fortalecimiento de alianzas entre mujeres y de organizaciones que trabajen por sus derechos, la igualdad de género, la conservación del territorio o del medio ambiente, y una transición justa?",null,null,null,"La información es pública",{"$f":"IF(G76=\"No existe evidencia o no se comunica\",0,IF(G76=\"La comunicación de la evidencia es parcial dentro de la organización\",2,IF(G76=\"La evidencia es de conocimiento de toda la organización\",4,IF(G76=\"La información es pública\",6,\"\"))))","v":6}]
[null,null,null,null,null,null,null,{"$f":"SUM(H74:H76)","v":18}]
[null,null,"Resumen:","Puntaje obtenido en cada pilar","Alineación"]
[null,null,"Resultados pilar 1: Trabajo digo",{"$f":"SUM(H11,H17,H22,H27,H32,H37,H42,H47)","v":50},{"$f":"IF(D79<24,\"Es necesario incrementar la ambición en el pilar 1 de trabajo digno\",\"El proyecto contribuye al cierre de brechas de género, conforme a la Taxonomía Sostenible de México\")","v":"El proyecto contribuye al cierre de brechas de género, conforme a la Taxonomía Sostenible de México"}]
[null,null,"Resultados pilar 2: Bienestar",{"$f":"SUM(H52,H57,H62)","v":34},{"$f":"IF(D80<24,\"Es necesario incrementar la ambición en el pilar 2 de bienestar\",\"El proyecto contribuye al cierre de brechas de género, conforme a la Taxonomía Sostenible de México\")","v":"El proyecto contribuye al cierre de brechas de género, conforme a la Taxonomía Sostenible de México"}]
[null,null,"Resultados pilar 3: Inclusión social",{"$f":"SUM(H77,H72,H67)","v":36},{"$f":"IF(D81<24,\"Es necesario incrementar la ambición en el pilar 3 de inclusión social\",\"El proyecto contribuye al cierre de brechas de género, conforme a la Taxonomía Sostenible de México\")","v":"El proyecto contribuye al cierre de brechas de género, conforme a la Taxonomía Sostenible de México"}]
[null,null,"Total",{"$f":"SUM(D79:D81)","v":120},{"$f":"IF((COUNTIF(G8:G76,\"Seleccione\"))>1,\"Por definir\",IF(AND(E79=\"El proyecto contribuye al cierre de brechas de género, conforme a la Taxonomía Sostenible de México\",E80=\"El proyecto contribuye al cierre de brechas de género, conforme a la Taxonomía Sostenible de México\",E81=\"El proyecto contribuye al cierre de brechas de género, conforme a la Taxonomía Sostenible de México\",D82>=72),\"Sí cumple con el índice de igualdad de género\",\"No cumple con el índice de igualdad de género\"))","v":"Sí cumple con el índice de igualdad de género"}]

{"sheet":"Residuos-NDS","index":47,"n_rows":62,"n_cols":8,"rows_kept":62,"cut":false,"hidden":true,"merged":[[50,0,50,5],[20,7,22,7],[20,0,20,5],[30,7,31,7],[61,0,61,5],[22,0,22,5],[23,0,23,5],[24,0,24,5],[21,0,21,5],[25,0,25,5],[28,0,28,5],[58,0,58,5],[30,0,30,5],[31,0,31,5],[42,0,42,5],[39,0,39,5],[49,0,49,5],[29,0,29,5],[13,0,13,5],[1,0,1,6],[3,0,3,6],[5,0,5,6],[17,0,17,5],[8,0,8,5],[9,0,9,5],[10,0,10,5],[11,0,11,5],[12,0,12,5]]}
[]
["Evaluación de No Daño Significativo de actividades de Manejo de Residuos y Servicios de Remediación"]
[]
["El principio de No Daño Significativo (NDS) se compone de una serie de criterios medioambientales que permiten asegurar que una actividad económica, con contribución sustancial, no tenga efectos negativos en ninguno de los otros objetivos de la Taxonomía, distintos al parámetro principal. De esta manera, se asegura que el progreso en algunos objetivos no se haga a expensas de otros objetivos medioambientales. Los criterios de NDS se enfocan en 5 ejes principales: Agua, Adaptación, Biodiversidad, Prevención y Control de la Contaminación y, Economía Circular. Para contar con más detalle, por favor consulta el documento de la Taxonomía Sostenible de México"]
[]
["Asegúrate de responder todas las preguntas. En este apartado aparecerán solo los criterios de No Daño Significativo relacionados a las actividades que se establecieron anteriormente. Al final, se evaluará el porcentaje de criterios de No Daño Significativo que se cumplan. Por favor responde si la actividad cumple con los siguientes criterios."]
[]
["Agua"]
["¿La operación financiera y/o proyecto cumple con la legislación mexicana sobre uso y reúso en materia de agua en específico el TITULO \"Política Hídrica Nacional\", Art. 14 BIS 5 de la Ley de Aguas Nacionales?",null,null,null,null,null,"Seleccione","Incluir en la MIA. Demostrar vinculación del proyecto con lo dispuesto en Leyes y políticas de la matería, “Política Hídrica Nacional”, Art. 14 BIS 5."]
["¿En la operación financiera y/o proyecto se lleva a cabo el manejo de aguas residuales, lodos y lixiviados asociados a la gestión de residuos sólidos urbanos (RSU) y residuos de manejo especial (RME), cumpliendo con la legislación mexicana?",null,null,null,null,null,"Seleccione","Incluir en la MIA. Detallar la inclusión de estos elementos dentro de las características particulares del proyecto."]
["¿En el caso de descarga de aguas residuales en cuerpos de aguas nacionales y/o en drenaje o alcantarillado municipal, el proyecto cuenta con los permisos y autorizaciones requeridas por la ley?",null,null,null,null,null,"Seleccione","Cumplir con los Permisos de Descarga de Aguas Residuales de CONAGUA."]
["¿La operación financiera y/o proyecto cumple con el Plan Nacional Hídrico, así como con las estrategias y planes de gestión hídrica estatales y municipales, y atender las recomendaciones de los Consejos de Cuenca por cuenca hidrológica o por región hidrológica?",null,null,null,null,null,"Seleccione","Incluir vinculación en la MIA como parte de la Política Hídrica Nacional. "]
["¿En el contexto del proyecto se identifica la disponibilidad de agua y los riesgos de contaminación de agua, tanto de aguas superficiales como los acuíferos, y en particular las fuentes de agua utilizadas para consumo humano, en la cuenca hidrológica y en la región hidrológica de que se trate?",null,null,null,null,null,"Seleccione","Incluir en la MIA. Detallar dentro de la descripción del proyecto."]
["¿En el contexto del proyecto es relevante la captación de agua pluvial y el reúso del agua en las instalaciones, así como el cumplimiento de la NOM-001-SEMARNAT-2021, que establece los límites permisibles de contaminantes en las descargas de aguas residuales en cuerpos receptores propiedad de la nación?",null,null,null,null,null,"Seleccione","Entregar certificado de cumplimiento de la NOM-001-SEMARNAT-2021."]
[]
["Tratamiento y disposición final de residuos no peligrosos por el sector privado por digestión anaeróbica"]
["Tratamiento y disposición final de residuos no peligrosos por el sector público por digestión anaeróbica"]
["¿El proyecto cuenta con una planta para el tratamiento de aguas residuales para atender el proceso de digestión anaerobia el cual genera lixiviados?",null,null,null,null,null,"Seleccione","Detallar la inclusión de estos elementos dentro de la MIA."]
[]
["Adaptación"]
["¿Se desarrollan criterios de gestión de riesgos y de adaptación al cambio climático en el diseño, construcción, reconstrucción, rehabilitación y mantenimiento de la infraestructura asociada?",null,null,null,null,null,"Seleccione","Incluir en la MIA. Mencionar en la descripción del sistema ambiental y el señalamiento de la problemática ambiental detectada en el área de influencia del proyecto"]
["¿Se evalúa el impacto potencial de eventos climáticos como inundaciones y deslizamientos de tierra en zonas urbanas y periurbanas?",null,null,null,null,null,"Seleccione"]
["¿Se evalúa y previene el incremento en la generación de vectores de enfermedades?",null,null,null,null,null,"Seleccione"]
["¿Se identifican los riesgos de contaminación de agua, tanto de aguas superficiales como los acuíferos, y en particular las fuentes de agua utilizadas para consumo humano?",null,null,null,null,null,"Seleccione","Incluir en la MIA. Detallar en la descripción del sistema ambiental regional (SAR) y señalamiento de tendencias del desarrollo y deterioro de la región"]
["¿Se  implementan medidas de adaptación para reducir la vulnerabilidad al cambio climático en las categorías de Adaptación basada en comunidades humanas, adaptación basada en ecosistemas y adaptación basada en la Reducción del Riesgo de Desastre? ",null,null,null,null,null,"Seleccione","Presentar la ficha de recopilación sistematizada para IACC. ENCC, Visión 10-20-40 y la Metodología para la Priorización de Medidas de Adaptación frente al Cambio Climático (SEMARNAT-GIZ, 2015)."]
["¿Cumple con la demostración de que se evaluó la dimensión de las alteraciones e impactos que podrían afectar en los en municipios vulnerables al cambio climático, revisando de forma enunciativa, más no limitativa el Atlas Nacional de Vulnerabilidad al Cambio Climático y, el Atlas Nacional de Riesgos?",null,null,null,null,null,"Seleccione","Incluir en la MIA. Detallar dentro de la evaluación de la dimensión de las alteraciones e impactos dentro de los datos del proyecto."]
[]
["Biodiversidad"]
["¿La operación financiera y/o proyecto cuenta con una manifestación de impacto ambiental (MIA) o informe ambiental preventivo, autorizados por la autoridad competente (federal o estatal), con vigencia e informes de cumplimiento de condicionantes ambientales?",null,null,null,null,null,"Seleccione","Presentar MIA aprobada por las autoridades ambientales."]
["¿A nivel de sitio y locación específica, la operación financiera y/o proyecto considera la Estrategia Nacional sobre Biodiversidad de México (ENBioMex), Plan de Acción 2016-2030 y la Estrategia Nacional para la Conservación y Aprovechamiento Sustentable de Polinizadores, así como las Estrategias Estatales de Biodiversidad correspondientes?",null,null,null,null,null,"Seleccione","Incluir en la MIA la vinculación del proyecto con lo dispuesto en Estrategia Nacional sobre Biodiversidad de México (ENBioMex), Plan de Acción 2016-2030 y la Estrategia Nacional para la Conservación y Aprovechamiento Sustentable de Polinizadores, así como las Estrategias Estatales de Biodiversidad correspondientes."]
["¿Se evita el depósito de vegetación y materia orgánica residual (p.ej. sargazo o residuos agrícolas) en sitios prioritarios para la biodiversidad?",null,null,null,null,null,"Seleccione","Incluir en la MIA. Demostrar la incluisón de estos elementos dentro de la descripción de las obras o actividades."]
["En caso de que el proyecto cuente con residuos peligrosos, ¿se tienen programas de manejo de residuos peligrosos y sistemas eficientes e integrales de limpieza, recolección, reciclaje, y disposición final de los residuos sólidos urbanos y rurales? ",null,null,null,null,null,"Seleccione"]
[]
["Tratamiento y disposición final de residuos no peligrosos por el sector privado (Digestión anaeróbica)"]
["Tratamiento y disposición final de residuos no peligrosos por el sector público (Digestión anaeróbica)"]
["Tratamiento y disposición final de residuos no peligrosos por el sector privado (Compostaje)"]
["Tratamiento y disposición final de residuos no peligrosos por el sector público (Compostaje)"]
["Servicios de remediación de residuos por el sector privado"]
["Servicios de remediación de residuos por el sector público"]
["¿Se fomenta a las entidades federativas y los gobiernos locales la valorización (mediante el aprovechamiento por composta o digestión anaerobia) de los residuos orgánicos que representan 50% de la mezcla total de los residuos que son generados y que deben ser dispuestos adecuadamente?",null,null,null,null,null,"Seleccione","N/A"]
[]
["Prevención y control de la contaminación"]
["¿Se monitorea y cumple los límites máximos permisibles de emisiones contaminantes establecidos en las normas oficiales mexicanas (NOM) y en normas mexicanas en materia de aire, suelo y olores, ruido y vibraciones, paisaje y, energía térmica y lumínica?  ",null,null,null,null,null,"Seleccione","Entregar certificado que asegure el cumplimiento de la NOM-085-SEMARNAT-2011. Así como un certificado del cumplimiento de las normas oficiales mexicanas correspondientes en materia de aire, suelo y olores, ruido y vibraciones, paisaje y energía térmica y lumínica."]
[]
["Economía circular"]
["Recolección de residuos no peligrosos por el sector privado"]
["Recolección de residuos no peligrosos por el sector público"]
["Recuperación de residuos por el sector privado"]
["Recuperación de residuos por el sector público"]
["¿En el contexto de la operación financiera y/o proyecto se establece y mantienen prácticas de recolección de RSU y RME que permitan identificar y contar con la información sobre tipos de RSU y RME, así como su cuantificación, asegurando que los componentes y materias mantengan su utilidad y valor máximo?",null,null,null,null,null,"Seleccione","Incluir en la MIA. Demostrar la inclusión de los elementos señalados respecto a RSU y RME. "]
["¿En el contexto de la operación financiera y/o proyecto se inducen y promueven prácticas que permitan desmontar productos, reutilizarlos (economía colaborativa), remanufacturar, reciclar y recuperar productos?",null,null,null,null,null,"Seleccione","Incluir en la MIA. Detallar los elementos dentro de la descripción de las obras o actividades"]
[]
["Tratamiento y disposición final de residuos no peligrosos por el sector privado\n(Digestión anaeróbica)"]
["Tratamiento y disposición final de residuos no peligrosos por el sector público (Digestión anaeróbica)"]
["Tratamiento y disposición final de residuos no peligrosos por el sector privado (Compostaje)"]
["Tratamiento y disposición final de residuos no peligrosos por el sector público (Compostaje)"]
["Servicios de remediación de residuos por el sector privado"]
["Servicios de remediación de residuos por el sector público"]
["Al dar una alternativa de aprovechamiento a la Fracción Orgánica de los Residuos Sólidos Urbanos (FORSU), se está incidiendo en la economía circular de la fracción orgánica de los RSU y se están desarrollando nuevas alternativas tecnológicas de generación de energía ¿En el contexto del proyecto se aprovechan la Fracción Orgánica de los Residuos Sólidos Urbanos?",null,null,null,null,null,"Seleccione","Incluir en la MIA. Describir las medidas de aprovechamiento del FORSU como parte de las medidas de prevencion y mitigación "]
[]
["Mitigación"]
["¿Las fugas de metano de plantas de aprovechamiento de residuos están controladas y cuentan con plan de monitoreo?",null,null,null,null,null,"Seleccione","Analizar la posibilidad de asegurar el cumplimiento  de los Lineamientos para la prevención y el control integral de las emisiones de metano del Sector Hidrocarburos y el Programa de Detección y Reparación de Fugas."]

{"sheet":"Género-General","index":48,"n_rows":50,"n_cols":5,"rows_kept":50,"cut":false,"hidden":true,"merged":[[1,0,1,7],[3,0,3,7],[49,0,49,8]]}
[]
["Evaluación de actividades generales para el cierre de brechas de género "]
[]
["A través de la alineación al objetivo de igualdad de género de la Taxonomía Sostenible de México, es posible analizar actividades que no están consideradas dentro de los 6 sectores de la taxonomía. En este apartado es posible evaluar las actividades alineadas exclusivamente al objetivo de igualdad que estarán siendo financiadas en las operaciones financieras y/o proyectos. En esta página es posible evaluar hasta 20 actividades que la persona usuaria podrá establecer en las cajas de abajo. Recuerda establecer los montos en la casilla amarilla (con número MXN) y establecer el nombre de la actividad en la casilla amarilla contigua. Si es necesario incluir más de una actividad, da click en el botón de \"Añade una nueva actividad\". En caso de presentar alguna duda, es posible mandar un correo a taxonomia_sost@hacienda.gob.mx para conocer más al respecto. "]
[]
[]
[]
["Definición de actividades"]
[null,"Cantidad de recursos ↓","Describe la actividad en la que se colocarán los recursos ↓","Alineación a un objetivo","Tipo de recurso evaluado ↓"]
["Establece por favor en la casilla amarilla con número (MXN) la cantidad de recursos que serán destinados a la actividad que selecciones en la casilla azul ",null,null,"Seleccione","Seleccione"]
[]
[]
[]
[]
[]
[]
[]
[]
[]
[]
[]
[]
[]
[]
[]
[]
[]
[]
[]
[]
[]
[]
[]
[]
[]
[]
[]
[]
[]
[]
[]
[]
[]
[]
[]
[]
[]
[]
[]
["Al haber concluido el llenado de las actividades y los tipos de recursos que estarás evaluando, por favor da click en el siguiente botón para evaluar la contribución sustancial de las actividades"]

{"sheet":"Indice de género-General","index":49,"n_rows":82,"n_cols":11,"rows_kept":82,"cut":false,"hidden":true,"merged":[[81,4,81,7],[58,1,60,1],[53,1,55,1],[48,1,50,1],[43,1,45,1],[55,2,55,5],[58,2,58,5],[59,2,59,5],[60,2,60,5],[44,2,44,5],[48,2,48,5],[49,2,49,5],[80,4,80,7],[77,4,77,7],[38,1,40,1],[63,0,65,0],[68,0,70,0],[73,0,75,0],[38,0,40,0],[43,0,45,0],[48,0,50,0],[53,0,55,0],[58,0,60,0],[73,1,75,1],[68,1,70,1],[63,1,65,1],[12,0,15,0],[18,0,20,0],[23,0,25,0],[28,0,30,0],[33,0,35,0],[12,1,15,1],[19,2,19,5],[20,2,20,5],[23,2,23,5],[24,2,24,5],[23,1,25,1],[18,1,20,1],[25,2,25,5],[12,2,12,5],[13,2,13,5],[14,2,14,5],[15,2,15,5],[18,2,18,5],[33,1,35,1],[28,1,30,1],[50,2,50,5],[53,2,53,5],[54,2,54,5],[28,2,28,5],[30,2,30,5],[29,2,29,5],[33,2,33,5],[34,2,34,5],[35,2,35,5],[38,2,38,5],[39,2,39,5],[40,2,40,5],[43,2,43,5],[45,2,45,5],[1,1,1,8],[7,2,7,5],[8,2,8,5],[9,2,9,5],[7,1,9,1],[7,8,9,8],[3,0,3,8],[5,0,5,8],[7,0,9,0],[12,8,15,8],[18,8,20,8],[23,8,25,8],[28,8,30,8],[33,8,35,8],[38,8,40,8],[43,8,45,8],[48,8,50,8],[53,8,55,8],[58,8,60,8],[63,8,65,8],[68,8,70,8],[73,8,75,8],[78,4,78,7],[79,4,79,7],[74,2,74,5],[75,2,75,5],[73,2,73,5],[63,2,63,5],[64,2,64,5],[65,2,65,5],[68,2,68,5],[69,2,69,5],[70,2,70,5]]}
[]
[null,"Índice de Igualdad de Género"]
[]
["La Igualdad de Género es considerada como un objetivo prioritario en la Taxonomía Sostenible de México. Es así que se han generado Criterios de Evaluación Técnica que permitan identificar inversiones que contribuyan al cierre de brechas de género. Al mismo tiempo, las métricas propuestas servirán como guía orientadora para los usuarios potenciales de la Taxonomía, de forma que puedan dirigir esfuerzos para generar una contribución sustancial a la igualdad de género. Este índice refleja, en una escala numérica, la contribución de las organizaciones a tres pilares de igualdad de género: 1) Trabajo Digno, 2) Bienestar e 3) Inclusión Social. Ello permite traducir los criterios cualitativos de estos tres pilares, a una métrica cuantitativa, a la cual es posible asignar un umbral para determinar un nivel de contribución sustancial para un objetivo social."]
[]
["Por favor, selecciona alguna de las opciones descritas en las casillas azules para cada pregunta. En función de la respuesta, se asignará un puntaje por bloque de preguntas, que al final será evaluado para conocer si el proyecto cumple con las condiciones presentes en el índice de igualdad de género"]
["Pilar",null,null,null,null,null,null,"Puntaje",null,null,{"$f":"IF(G7=\"No\",0,IF(G7=\"Sí de alcance parcial dentro de la organización\",1,IF(G7=\"Sí de alcance integral en la organización\",2,IF(G7=\"Sí de alcance que se extiende dentro y fuera de la organización\",3,\"\"))))","v":""}]
["1.1.1","Igualdad de remuneración","¿Existe una política y/o tabulador para todo el personal que establezca la igualdad de remuneración por un trabajo equivalente, conforme a la Ley Federal del Trabajo, y donde se puedan consultar los rangos salariales para los diferentes niveles dentro del centro de trabajo?",null,null,null,"Seleccione",{"$f":"IF(G8=\"No\",0,IF(G8=\"Sí de alcance parcial dentro de la organización\",1,IF(G8=\"Sí de alcance integral en la organización\",2,IF(G8=\"Sí de alcance que se extiende dentro y fuera de la organización\",3,\"\"))))","v":""},{"$f":"IF(OR(G8=\"Seleccione\",G9=\"Seleccione\",G10=\"Seleccione\"),\"Por favor completa las preguntas de este apartado del Índice\",IF(H11<3,\"Es necesario incrementar la ambición en alguno de los ejes evaluados para que el proyecto esté alineado al Índice de Igualdad de Género de la Taxonomía Sostenible de México\",\"El proyecto cuenta con la ambición necesaria para cerrar las brechas de género conforme al Índice de Igualdad de Género de la Taxonomía Sostenible de México\"))","v":"Por favor completa las preguntas de este apartado del Índice"}]
[null,null,"¿La organización realiza un análisis sistemático y periódico de las brechas de género en salarios, prestaciones y compensaciones de su personal?",null,null,null,"Seleccione",{"$f":"IF(G9=\"No\",0,IF(G9=\"Sí de alcance parcial dentro de la organización\",1,IF(G9=\"Sí de alcance integral en la organización\",2,IF(G9=\"Sí de alcance que se extiende dentro y fuera de la organización\",3,\"\"))))","v":""}]
[null,null,"¿La organización cuenta con un mecanismo para corregir los casos identificados con desigualdad en la remuneración?",null,null,null,"Seleccione",{"$f":"IF(G10=\"No\",0,IF(G10=\"Sí de alcance parcial dentro de la organización\",1,IF(G10=\"Sí de alcance integral en la organización\",2,\"\")))","v":""}]
[null,null,null,null,null,null,null,{"$f":"SUM(H8:H10)","v":0}]
[]
["1.2.1","Posibilidades de acceso, contratación, participación, permanencia y promoción","¿Tiene la organización una política o mecanismo que garantice la no discriminación e igualdad de oportunidades en el acceso, permanencia y desarrollo laboral?",null,null,null,"Seleccione",{"$f":"IF(G13=\"No\",0,IF(G13=\"Sí de alcance parcial dentro de la organización\",1,IF(G13=\"Sí de alcance integral en la organización\",2,IF(G13=\"Sí de alcance que se extiende dentro y fuera de la organización\",3,\"\"))))","v":""},{"$f":"IF(OR(G13=\"Seleccione\",G14=\"Seleccione\",G15=\"Seleccione\",G16=\"Seleccione\"),\"Por favor completa las preguntas de este apartado del Índice\",IF(H17<4,\"Es necesario incrementar la ambición en alguno de los ejes evaluados para que el proyecto esté alineado al Índice de Igualdad de Género de la Taxonomía Sostenible de México\",\"El proyecto cuenta con la ambición necesaria para cerrar las brechas de género conforme al Índice de Igualdad de Género de la Taxonomía Sostenible de México\"))","v":"Por favor completa las preguntas de este apartado del Índice"}]
[null,null,"¿Existen perfiles de puestos, anuncios de vacantes u ofertas de trabajo, documentación para entrevista de ingreso estructurada y/o exámenes o evaluaciones libres de sesgos sexistas o de discriminación?",null,null,null,"Seleccione",{"$f":"IF(G14=\"No\",0,IF(G14=\"Sí de alcance parcial dentro de la organización\",1,IF(G14=\"Sí de alcance integral en la organización\",2,IF(G14=\"Sí de alcance que se extiende dentro y fuera de la organización\",3,\"\"))))","v":""}]
[null,null,"¿Se cuenta con procesos transparentes y accesibles de movilidad horizontal y vertical libres de sesgos sexistas o discriminatorios?",null,null,null,"Seleccione",{"$f":"IF(G15=\"No\",0,IF(G15=\"Sí de alcance parcial dentro de la organización\",1,IF(G15=\"Sí de alcance integral en la organización\",2,IF(G15=\"Sí de alcance que se extiende dentro y fuera de la organización\",3,\"\"))))","v":""}]
[null,null,"¿La organización lleva a cabo capacitaciones extensivas al personal candidato o de la propia empresa como mecanismo de corrección (distintas al plan de capacitación) sobre sesgos de género para entrevistas laborales, para evaluaciones de desempeño o para procesos de reclutamiento, movilidad y  promoción?",null,null,null,"Seleccione",{"$f":"IF(G16=\"No\",0,IF(G16=\"Sí de alcance parcial dentro de la organización\",1,IF(G16=\"Sí de alcance integral en la organización\",2,IF(G16=\"Sí de alcance que se extiende dentro y fuera de la organización\",3,\"\"))))","v":""}]
[null,null,null,null,null,null,null,{"$f":"SUM(H13:H16)","v":0}]
[]
["1.2.2","Segregación Vertical y Horizontal","¿La organización cuenta con metas institucionales sobre diversidad de género en los diferentes equipos de trabajo?",null,null,null,"Seleccione",{"$f":"IF(G19=\"No\",0,IF(G19=\"Sí de alcance parcial dentro de la organización\",1,IF(G19=\"Sí de alcance integral en la organización\",2,IF(G19=\"Sí de alcance que se extiende dentro y fuera de la organización\",3,\"\"))))","v":""},{"$f":"IF(OR(G19=\"Seleccione\",G20=\"Seleccione\",G21=\"Seleccione\"),\"Por favor completa las preguntas de este apartado del Índice\",IF(H22<3,\"Es necesario incrementar la ambición en alguno de los ejes evaluados para que el proyecto esté alineado al Índice de Igualdad de Género de la Taxonomía Sostenible de México\",\"El proyecto cuenta con la ambición necesaria para cerrar las brechas de género conforme al Índice de Igualdad de Género de la Taxonomía Sostenible de México\"))","v":"Por favor completa las preguntas de este apartado del Índice"}]
[null,"1.2.2.2","¿La organización cuenta con un plan de acción para cerrar la brecha de participación laboral entre hombres y mujeres, entre los niveles jerárquicos, en el proceso de contratación y en las oportunidades de promoción?",null,null,null,"Seleccione",{"$f":"IF(G20=\"No\",0,IF(G20=\"Sí de alcance parcial dentro de la organización\",1,IF(G20=\"Sí de alcance integral en la organización\",2,\"\")))","v":""}]
[null,"1.2.2.3","¿El despliegue de los mecanismos de corrección para cerrar la brecha de participación se realiza conforme a la evaluación o medición continua de las brechas de género?",null,null,null,"Seleccione",{"$f":"IF(G21=\"No\",0,IF(G21=\"Sí de alcance parcial dentro de la organización\",1,IF(G21=\"Sí de alcance integral en la organización\",2,\"\")))","v":""}]
[null,null,null,null,null,null,null,{"$f":"SUM(H19:H21)","v":0}]
[]
["1.2.3","Igualdad de representatividad de mujeres y hombres en órganos de gobernanza corporativa","¿Existe una política de paridad entre mujeres y hombres (reglamentos, normas, documentos o protocolos internos) en el órgano de gobernanza corporativa (junta de gobierno) o en puestos de toma de decisión?",null,null,null,"Seleccione",{"$f":"IF(G24=\"No\",0,IF(G24=\"Sí de alcance parcial dentro de la organización\",1,IF(G24=\"Sí de alcance integral en la organización\",2,IF(G24=\"Sí de alcance que se extiende dentro y fuera de la organización\",3,\"\"))))","v":""},{"$f":"IF(OR(G24=\"Seleccione\",G25=\"Seleccione\",G26=\"Seleccione\"),\"Por favor completa las preguntas de este apartado del Índice\",IF(H27<2,\"Es necesario incrementar la ambición en alguno de los ejes evaluados para que el proyecto esté alineado al Índice de Igualdad de Género de la Taxonomía Sostenible de México\",\"El proyecto cuenta con la ambición necesaria para cerrar las brechas de género conforme al Índice de Igualdad de Género de la Taxonomía Sostenible de México\"))","v":"Por favor completa las preguntas de este apartado del Índice"}]
[null,"1.2.3.2","¿Existen mecanismos o acciones para promover la rotación hacia puestos directivos o de toma de decisión con perspectiva de género, o en su caso el proceso de designación no tienes sesgos de género?",null,null,null,"Seleccione",{"$f":"IF(G25=\"No\",0,IF(G25=\"Sí de alcance parcial dentro de la organización\",1,IF(G25=\"Sí de alcance integral en la organización\",2,\"\")))","v":""}]
[null,"1.2.3.3","¿La organización se somete a un análisis, interno o externo, de paridad de género institucional en sus puestos de alta dirección o gobierno corporativo, acorde a la política de transparencia que la rige?",null,null,null,"Seleccione",{"$f":"IF(G26=\"No\",0,IF(G26=\"Sí de alcance parcial dentro de la organización\",1,IF(G26=\"Sí de alcance integral en la organización\",2,IF(G26=\"Sí de alcance que se extiende dentro y fuera de la organización\",3,\"\"))))","v":""}]
[null,null,null,null,null,null,null,{"$f":"SUM(H24:H26)","v":0}]
[]
["1.2.4","Clima laboral y espacios de trabajo libres de violencia","¿La organización cuenta con políticas o áreas especializadas en diversidad e inclusión que promuevan relaciones igualitarias acompañadas de la implementación de prácticas de prevención contra la violencia de género (hostigamiento, acoso u otro)?",null,null,null,"Seleccione",{"$f":"IF(G29=\"No\",0,IF(G29=\"Sí de alcance parcial dentro de la organización\",1,IF(G29=\"Sí de alcance integral en la organización\",2,\"\")))","v":""},{"$f":"IF(OR(G29=\"Seleccione\",G30=\"Seleccione\",G31=\"Seleccione\"),\"Por favor completa las preguntas de este apartado del Índice\",IF(H32<2,\"Es necesario incrementar la ambición en alguno de los ejes evaluados para que el proyecto esté alineado al Índice de Igualdad de Género de la Taxonomía Sostenible de México\",\"El proyecto cuenta con la ambición necesaria para cerrar las brechas de género conforme al Índice de Igualdad de Género de la Taxonomía Sostenible de México\"))","v":"Por favor completa las preguntas de este apartado del Índice"}]
[null,"1.2.4.2","¿La organización cuenta con un grupo, comisión o Comité encargado de la vigilancia del desarrollo e implementación de prácticas contra la violencia y la discriminación de género en el centro de trabajo?",null,null,null,"Seleccione",{"$f":"IF(G30=\"No\",0,IF(G30=\"Sí de alcance parcial dentro de la organización\",1,IF(G30=\"Sí de alcance integral en la organización\",2,\"\")))","v":""}]
[null,"1.2.4.3","¿La organización cuenta con mecanismos de atención a actos de violencia detectados o de reparación de daños, cuyos resultados salvaguarden la integridad de las víctimas y eviten la revictimización?",null,null,null,"Seleccione",{"$f":"IF(G31=\"No\",0,IF(G31=\"Sí de alcance parcial dentro de la organización\",1,IF(G31=\"Sí de alcance integral en la organización\",2,\"\")))","v":""}]
[null,null,null,null,null,null,null,{"$f":"SUM(H29:H31)","v":0}]
[]
["1.2.5","Capacitaciones para la igualdad laboral","¿La organización cuenta con un plan de capacitación, sensibilización y difusión como parte de sus objetivos de la agenda de género?",null,null,null,"Seleccione",{"$f":"IF(G34=\"No\",0,IF(G34=\"Sí de alcance parcial dentro de la organización\",1,IF(G34=\"Sí de alcance integral en la organización\",2,IF(G34=\"Sí de alcance que se extiende dentro y fuera de la organización\",3,\"\"))))","v":""},{"$f":"IF(OR(G34=\"Seleccione\",G35=\"Seleccione\",G36=\"Seleccione\"),\"Por favor completa las preguntas de este apartado del Índice\",IF(H37<3,\"Es necesario incrementar la ambición en alguno de los ejes evaluados para que el proyecto esté alineado al Índice de Igualdad de Género de la Taxonomía Sostenible de México\",\"El proyecto cuenta con la ambición necesaria para cerrar las brechas de género conforme al Índice de Igualdad de Género de la Taxonomía Sostenible de México\"))","v":"Por favor completa las preguntas de este apartado del Índice"}]
[null,"1.2.5.2","¿La organización ofrece capacitación continua para el desarrollo de habilidades requeridas para la movilidad laboral, tales como mentoría o patrocinio; incluyendo el desarrollo de capacidades para los nuevos empleos verdes que promuevan la transición justa?",null,null,null,"Seleccione",{"$f":"IF(G35=\"No\",0,IF(G35=\"Sí de alcance parcial dentro de la organización\",1,IF(G35=\"Sí de alcance integral en la organización\",2,IF(G35=\"Sí de alcance que se extiende dentro y fuera de la organización\",3,\"\"))))","v":""}]
[null,"1.2.5.3","¿La organización cuenta con mecanismos de evaluación o mejora de su plan de implementación de capacitaciones, asesorías o mentorías, que sean extensivos a otros actores que interactúan con la organización o a la comunidad externa (más allá del personal de la organización)?",null,null,null,"Seleccione",{"$f":"IF(G36=\"No\",0,IF(G36=\"Sí de alcance parcial dentro de la organización\",1,IF(G36=\"Sí de alcance integral en la organización\",2,IF(G36=\"Sí de alcance que se extiende dentro y fuera de la organización\",3,\"\"))))","v":""}]
[null,null,null,null,null,null,null,{"$f":"SUM(H34:H36)","v":0}]
[]
["1.3.1","Esquemas de trabajo flexible y políticas de conciliación","¿Existen medidas de flexibilidad laboral, como horarios flexibles o escalonados, semanas de trabajo comprimidas, teletrabajo o licencias con y sin goce de sueldo?",null,null,null,"Seleccione",{"$f":"IF(G39=\"No\",0,IF(G39=\"Sí de alcance parcial dentro de la organización\",1,IF(G39=\"Sí de alcance integral en la organización\",2,\"\")))","v":""},{"$f":"IF(OR(G39=\"Seleccione\",G40=\"Seleccione\",G41=\"Seleccione\"),\"Por favor completa las preguntas de este apartado del Índice\",IF(H42<4,\"Es necesario incrementar la ambición en alguno de los ejes evaluados para que el proyecto esté alineado al Índice de Igualdad de Género de la Taxonomía Sostenible de México\",\"El proyecto cuenta con la ambición necesaria para cerrar las brechas de género conforme al Índice de Igualdad de Género de la Taxonomía Sostenible de México\"))","v":"Por favor completa las preguntas de este apartado del Índice"}]
[null,"1.3.1.2","¿Existe una duración definida de la jornada laboral que se acompañe con una política de desconexión, sin importar que el esquema sea presencial, híbrido o por teletrabajo?",null,null,null,"Seleccione",{"$f":"IF(G40=\"No\",0,IF(G40=\"Sí de alcance parcial dentro de la organización\",1,IF(G40=\"Sí de alcance integral en la organización\",2,\"\")))","v":""}]
[null,"1.3.1.3","¿La organización despliega y difunde mecanismos de corrección al interior y al exterior, en función de la información estadística analizada y desagregada por sexo, sobre el cumplimento de los horarios de trabajo conforme al derecho de las y los trabajadores a la desconexión?",null,null,null,"Seleccione",{"$f":"IF(G41=\"No\",0,IF(G41=\"Sí de alcance parcial dentro de la organización\",1,IF(G41=\"Sí de alcance integral en la organización\",2,IF(G41=\"Sí de alcance que se extiende dentro y fuera de la organización\",3,\"\"))))","v":""}]
[null,null,null,null,null,null,null,{"$f":"SUM(H39:H41)","v":0}]
[]
["1.3.2","Oferta complementaria de servicios de cuidados (ludoteca, casas de día, estancias infantiles adicionales, entre otros)","¿La organización tiene políticas que le permitan desarrollar una oferta complementaria de servicios de cuidado (guarderías propias, salas de lactancia, etc.), asequible para todo el personal de la organización, incluyendo licencias de maternidad y paternidad con duración superior a la Ley?",null,null,null,"Seleccione",{"$f":"IF(G44=\"No\",0,IF(G44=\"Sí de alcance parcial dentro de la organización\",1,IF(G44=\"Sí de alcance integral en la organización\",2,IF(G44=\"Sí de alcance que se extiende dentro y fuera de la organización\",3,\"\"))))","v":""},{"$f":"IF(OR(G44=\"Seleccione\",G45=\"Seleccione\",G46=\"Seleccione\"),\"Por favor completa las preguntas de este apartado del Índice\",IF(H47<3,\"Es necesario incrementar la ambición en alguno de los ejes evaluados para que el proyecto esté alineado al Índice de Igualdad de Género de la Taxonomía Sostenible de México\",\"El proyecto cuenta con la ambición necesaria para cerrar las brechas de género conforme al Índice de Igualdad de Género de la Taxonomía Sostenible de México\"))","v":"Por favor completa las preguntas de este apartado del Índice"}]
[null,"1.3.2.2","¿Se proporciona una oferta de servicios de cuidado adicional a los servicios de seguridad social (IMSS, ISSSTE y otros) o se ofrecen permisos con o sin goce de sueldo para la atención de responsabilidades de cuidado?",null,null,null,"Seleccione",{"$f":"IF(G45=\"No\",0,IF(G45=\"Sí de alcance parcial dentro de la organización\",1,IF(G45=\"Sí de alcance integral en la organización\",2,IF(G45=\"Sí de alcance que se extiende dentro y fuera de la organización\",3,\"\"))))","v":""}]
[null,"1.3.2.3","¿La organización realiza y difunde evaluaciones de las necesidades de cuidado de su personal y sus dependientes, al interior y al exterior?",null,null,null,"Seleccione",{"$f":"IF(G46=\"No\",0,IF(G46=\"Sí de alcance parcial dentro de la organización\",1,IF(G46=\"Sí de alcance integral en la organización\",2,IF(G46=\"Sí de alcance que se extiende dentro y fuera de la organización\",3,\"\"))))","v":""}]
[null,null,null,null,null,null,null,{"$f":"SUM(H44:H46)","v":0}]
[]
["2.1.1","Desarrollo y provisión de infraestructura, bienes y servicios con impacto social positivo y perspectiva de género","¿La organización tiene como política realizar diagnósticos con perspectiva de género para el diseño y operación del proyecto, actividad, desarrollo de infraestructura o la provisión de bienes y servicios?",null,null,null,"Seleccione",{"$f":"IF(G49=\"No\",0,IF(G49=\"Sí de alcance parcial dentro de la organización\",2,IF(G49=\"Sí de alcance integral en la organización\",4,IF(G49=\"Sí de alcance que se extiende dentro y fuera de la organización\",6,\"\"))))","v":""},{"$f":"IF(OR(G49=\"Seleccione\",G50=\"Seleccione\",G51=\"Seleccione\"),\"Por favor completa las preguntas de este apartado del Índice\",IF(H52<8,\"Es necesario incrementar la ambición en alguno de los ejes evaluados para que el proyecto esté alineado al Índice de Igualdad de Género de la Taxonomía Sostenible de México\",\"El proyecto cuenta con la ambición necesaria para cerrar las brechas de género conforme al Índice de Igualdad de Género de la Taxonomía Sostenible de México\"))","v":"Por favor completa las preguntas de este apartado del Índice"}]
[null,"2.1.1.2","¿El proyecto de infraestructura, actividad, bien o servicio, considera ajustes razonables para atender las necesidades de las mujeres o contribuye a la reducción o eliminación de una situación de exclusión, desigualdad o violencia de género, y privilegia su acceso a precios asequibles por razón de género?",null,null,null,"Seleccione",{"$f":"IF(G50=\"No\",0,IF(G50=\"Sí de alcance parcial dentro de la organización\",2,IF(G50=\"Sí de alcance integral en la organización\",4,IF(G50=\"Sí de alcance que se extiende dentro y fuera de la organización\",6,\"\"))))","v":""}]
[null,"2.1.1.3","¿Se cuenta con un plan de actividades de igualdad entre mujeres y hombres, que incluya presupuesto e indicadores de cumplimiento sobre el impacto en la vida de las mujeres, y en su caso, en el medio ambiente en el uso de la infraestructura, productos o servicios a desarrollar?",null,null,null,"Seleccione",{"$f":"IF(G51=\"No\",0,IF(G51=\"Sí de alcance parcial dentro de la organización\",2,IF(G51=\"Sí de alcance integral en la organización\",4,IF(G51=\"Sí de alcance que se extiende dentro y fuera de la organización\",6,\"\"))))","v":""}]
[null,null,null,null,null,null,null,{"$f":"SUM(H49:H51)","v":0}]
[]
["2.2.1","No afectación a la salud de las mujeres","¿La organización tiene como procedimientos la elaboración de diagnósticos con perspectiva de género sobre los impactos potenciales en salud del proyecto de infraestructura, actividad, bien o servicio, para la promoción de la salud en las mujeres o asegurar la no afectación a esta?",null,null,null,"Seleccione",{"$f":"IF(G54=\"No\",0,IF(G54=\"Sí de alcance parcial dentro de la organización\",2,IF(G54=\"Sí de alcance integral en la organización\",4,IF(G54=\"Sí de alcance que se extiende dentro y fuera de la organización\",6,\"\"))))","v":""},{"$f":"IF(OR(G54=\"Seleccione\",G55=\"Seleccione\",G56=\"Seleccione\"),\"Por favor completa las preguntas de este apartado del Índice\",IF(H57<8,\"Es necesario incrementar la ambición en alguno de los ejes evaluados para que el proyecto esté alineado al Índice de Igualdad de Género de la Taxonomía Sostenible de México\",\"El proyecto cuenta con la ambición necesaria para cerrar las brechas de género conforme al Índice de Igualdad de Género de la Taxonomía Sostenible de México\"))","v":"Por favor completa las preguntas de este apartado del Índice"}]
[null,"2.2.1.2","¿El proyecto, actividad, bien o servicio, considera ajustes razonables para atender las necesidades diferenciadas de salud en hombres y mujeres y privilegia el acceso desde una perspectiva de género a precios asequibles?",null,null,null,"Seleccione",{"$f":"IF(G55=\"No\",0,IF(G55=\"Sí de alcance parcial dentro de la organización\",2,IF(G55=\"Sí de alcance integral en la organización\",4,IF(G55=\"Sí de alcance que se extiende dentro y fuera de la organización\",6,\"\"))))","v":""}]
[null,"2.2.1.3","¿Se realizan estudios de los efectos en la salud de la actividad, productos o servicios desagregados sexo, y se cuenta con un plan de actividades para la corrección o mejora que incluya presupuesto e indicadores de cumplimiento?",null,null,null,"Seleccione",{"$f":"IF(G56=\"No\",0,IF(G56=\"Sí de alcance parcial dentro de la organización\",2,IF(G56=\"Sí de alcance integral en la organización\",4,IF(G56=\"Sí de alcance que se extiende dentro y fuera de la organización\",6,\"\"))))","v":""}]
[null,null,null,null,null,null,null,{"$f":"SUM(H54:H56)","v":0}]
[]
["2.3.1","Promoción de autonomía de las mujeres y financiamiento flexible con perspectiva de género","¿La organización tiene como política visibilizar las necesidades diferenciadas entre mujeres y hombres en las estrategias de comercialización de los productos o servicios ofrecidos?",null,null,null,"Seleccione",{"$f":"IF(G59=\"No\",0,IF(G59=\"Sí de alcance parcial dentro de la organización\",2,IF(G59=\"Sí de alcance integral en la organización\",4,IF(G59=\"Sí de alcance que se extiende dentro y fuera de la organización\",6,\"\"))))","v":""},{"$f":"IF(OR(G59=\"Seleccione\",G60=\"Seleccione\",G61=\"Seleccione\"),\"Por favor completa las preguntas de este apartado del Índice\",IF(H62<8,\"Es necesario incrementar la ambición en alguno de los ejes evaluados para que el proyecto esté alineado al Índice de Igualdad de Género de la Taxonomía Sostenible de México\",\"El proyecto cuenta con la ambición necesaria para cerrar las brechas de género conforme al Índice de Igualdad de Género de la Taxonomía Sostenible de México\"))","v":"Por favor completa las preguntas de este apartado del Índice"}]
[null,"2.3.1.2","¿La organización garantiza la accesibilidad de los productos o servicios para las mujeres, ofreciendo opciones diferenciadas de financiación?",null,null,null,"Seleccione",{"$f":"IF(G60=\"No\",0,IF(G60=\"Sí de alcance parcial dentro de la organización\",2,IF(G60=\"Sí de alcance integral en la organización\",4,IF(G60=\"Sí de alcance que se extiende dentro y fuera de la organización\",6,\"\"))))","v":""}]
[null,"2.3.1.3","¿Se realiza una evaluación de efectos diferenciados de los productos y servicios ofrecidos desagregada sexo que visibilicen que son utilizados por mujeres y/o benefician más que proporcionalmente a las mujeres?",null,null,null,"Seleccione",{"$f":"IF(G61=\"No\",0,IF(G61=\"Sí de alcance parcial dentro de la organización\",2,IF(G61=\"Sí de alcance integral en la organización\",4,IF(G61=\"Sí de alcance que se extiende dentro y fuera de la organización\",6,\"\"))))","v":""}]
[null,null,null,null,null,null,null,{"$f":"SUM(H59:H61)","v":0}]
[]
["3.1.1","Promoción de cultura de paz y no violencia","¿La organización o proyecto considera dentro de sus objetivos la reducción o erradicación de la violencia contra las mujeres o el desarrollo de espacios de paz y no violencia; o bien, cuenta con un protocolo o procedimiento para la resolución de conflictos con la comunidad, que considere una perspectiva de género y de derechos humanos?",null,null,null,"Seleccione",{"$f":"IF(G64=\"No se cuenta con un protocolo o procedimiento o no se comunica\",0,IF(G64=\"Comunicación del objetivo protocolo parcial dentro de la organización\",2,IF(G64=\"Sí de alcance integral en la organización\",2,IF(G64=\"Protocolo de conocimiento de toda la organización\",4,IF(G64=\"Toda la información relacionada es pública\",6,\"\")))))","v":""},{"$f":"IF(OR(G64=\"Seleccione\",G65=\"Seleccione\",G66=\"Seleccione\"),\"Por favor completa las preguntas de este apartado del Índice\",IF(H67<8,\"Es necesario incrementar la ambición en alguno de los ejes evaluados para que el proyecto esté alineado al Índice de Igualdad de Género de la Taxonomía Sostenible de México\",\"El proyecto cuenta con la ambición necesaria para cerrar las brechas de género conforme al Índice de Igualdad de Género de la Taxonomía Sostenible de México\"))","v":"Por favor completa las preguntas de este apartado del Índice"}]
[null,"3.1.1.2","¿Se han desarrollado acciones para la prevención, atención, sanción y erradicación de la violencia contra niñas, niños, adolescentes y mujeres en la comunidad o espacios públicos?",null,null,null,"Seleccione",{"$f":"IF(G65=\"No se han desarrollado acciones\",0,IF(G65=\"Las acciones abordan solo alguno(s) de los aspectos enunciados (prevención atención sanción y erradicación de la violencia)\",4,IF(G65=\"Las acciones consideran la prevención atención sanción y erradicación de la violencia\",6,\"\")))","v":""}]
[null,"3.1.1.3","¿La organización o proyecto cuenta con evidencia de su contribución a la reducción de la violencia contra niñas, niños, adolescentes y mujeres; o bien, ha documentado y difundido casos de éxito sobre la resolución de conflictos con la comunidad o sobre el desarrollo de espacios de paz y no violencia de forma participativa?",null,null,null,"Seleccione",{"$f":"IF(G66=\"No existe evidencia o no se comunica\",0,IF(G66=\"La comunicación de la evidencia es parcial dentro de la organización\",2,IF(G66=\"La evidencia es de conocimiento de toda la organización\",4,IF(G66=\"La información es pública\",6,\"\"))))","v":""}]
[null,null,null,null,null,null,null,{"$f":"SUM(H64:H66)","v":0}]
[]
["3.2.1","Vinculación con empresas locales propiedad o con participación de mujeres","¿Existen políticas, procesos o mecanismos de adquisición de productos y servicios que incentiven la contratación de empresas locales propiedad o con alta participación de mujeres?",null,null,null,"Seleccione",{"$f":"IF(G69=\"No existen políticas o procesos o mecanismos o no se comunican\",0,IF(G69=\"La comunicación es parcial dentro de la organización\",2,IF(G69=\"Sí y es de conocimiento de toda la organización\",4,IF(G69=\"La información es pública\",6,\"\"))))","v":""},{"$f":"IF(OR(G69=\"Seleccione\",G70=\"Seleccione\",G71=\"Seleccione\"),\"Por favor completa las preguntas de este apartado del Índice\",IF(H72<8,\"Es necesario incrementar la ambición en alguno de los ejes evaluados para que el proyecto esté alineado al Índice de Igualdad de Género de la Taxonomía Sostenible de México\",\"El proyecto cuenta con la ambición necesaria para cerrar las brechas de género conforme al Índice de Igualdad de Género de la Taxonomía Sostenible de México\"))","v":"Por favor completa las preguntas de este apartado del Índice"}]
[null,"3.2.1.2","¿Se presenta evidencia de alianzas comerciales y de contratos recurrentes o multianuales con empresas locales con propiedad o participación importante de mujeres?",null,null,null,"Seleccione",{"$f":"IF(G70=\"No se han desarrollado alianzas comerciales o contratos\",0,IF(G70=\"Se presenta evidencia de esfuerzos para establecer alianzas comerciales pero que aún no se formalizan\",4,IF(G70=\"Se presenta evidencia completa de una relación comercial recurrente\",6,\"\")))","v":""}]
[null,"3.2.1.3","¿Existe evidencia de que se contribuye al fortalecimiento del liderazgo de empresas locales encabezadas por mujeres o al desarrollo de la estrategia de sostenibilidad de empresas locales (por ejemplo, en el acceso a financiamiento, en la adopción de tecnología sostenible, etc.) propiedad o con participación de mujeres, más allá de la compra de bienes y servicios?",null,null,null,"Seleccione",{"$f":"IF(G71=\"No existe evidencia o no se comunica\",0,IF(G71=\"La comunicación de la evidencia es parcial dentro de la organización\",2,IF(G71=\"La evidencia es de conocimiento de toda la organización\",4,IF(G71=\"La información es pública\",6,\"\"))))","v":""}]
[null,null,null,null,null,null,null,{"$f":"SUM(H69:H71)","v":0}]
[]
["3.3.1","Involucramiento de organizaciones y redes comunitarias que representen los intereses de las mujeres","¿Existe una política para fomentar la participación de las comunidades, bajo el marco del consentimiento libre, previo e informado, para la realización del proyecto o actividad económica, o bien en la planeación y gestión participativa de este, que contribuya a la preservación del territorio; al bienestar de ellas y su comunidad; al cuidado del medio ambiente o a una transición justa?",null,null,null,"Seleccione",{"$f":"IF(G74=\"No existen políticas o procesos o mecanismos o no se comunican\",0,IF(G74=\"La comunicación es parcial dentro de la organización\",2,IF(G74=\"Sí y es de conocimiento de toda la organización\",4,IF(G74=\"La información es pública\",6,\"\"))))","v":""},{"$f":"IF(OR(G74=\"Seleccione\",G75=\"Seleccione\",G76=\"Seleccione\"),\"Por favor completa las preguntas de este apartado del Índice\",IF(H77<8,\"Es necesario incrementar la ambición en alguno de los ejes evaluados para que el proyecto esté alineado al Índice de Igualdad de Género de la Taxonomía Sostenible de México\",\"El proyecto cuenta con la ambición necesaria para cerrar las brechas de género conforme al Índice de Igualdad de Género de la Taxonomía Sostenible de México\"))","v":"Por favor completa las preguntas de este apartado del Índice"}]
[null,"3.3.1.2","¿Las acciones de involucramiento y consulta consideraron una perspectiva de género en su implementación para asegurar una participación en igualdad de condiciones de las mujeres (horarios adecuados, dinámicas para promover la participación, facilidades para el cuidado de infantes, un lugar de fácil acceso para ellas) y cuentan con un mecanismo de monitoreo que dé seguimiento a la incorporación de las opiniones de las mujeres?",null,null,null,"Seleccione",{"$f":"IF(G75=\"No se han desarrollado acciones\",0,IF(G75=\"Las acciones abordan parcialmente los aspectos requeridos por la pregunta\",4,IF(G75=\"Las acciones consideran una perspectiva de género e incluyen un mecanismo de monitoreo\",6,\"\")))","v":""}]
[null,"3.3.1.3","¿Existe evidencia de que la actividad económica o proyecto contribuye a la formación o fortalecimiento de alianzas entre mujeres y de organizaciones que trabajen por sus derechos, la igualdad de género, la conservación del territorio o del medio ambiente, y una transición justa?",null,null,null,"Seleccione",{"$f":"IF(G76=\"No existe evidencia o no se comunica\",0,IF(G76=\"La comunicación de la evidencia es parcial dentro de la organización\",2,IF(G76=\"La evidencia es de conocimiento de toda la organización\",4,IF(G76=\"La información es pública\",6,\"\"))))","v":""}]
[null,null,null,null,null,null,null,{"$f":"SUM(H74:H76)","v":0}]
[null,null,"Resumen:","Puntaje obtenido en cada pilar","Alineación"]
[null,null,"Resultados pilar 1: Trabajo digo",{"$f":"SUM(H11,H17,H22,H27,H32,H37,H42,H47)","v":0},{"$f":"IF(D79<24,\"Es necesario incrementar la ambición en el pilar 1 de trabajo digno\",\"El proyecto contribuye al cierre de brechas de género, conforme a la Taxonomía Sostenible de México\")","v":"Es necesario incrementar la ambición en el pilar 1 de trabajo digno"}]
[null,null,"Resultados pilar 2: Bienestar",{"$f":"SUM(H52,H57,H62)","v":0},{"$f":"IF(D80<24,\"Es necesario incrementar la ambición en el pilar 2 de bienestar\",\"El proyecto contribuye al cierre de brechas de género, conforme a la Taxonomía Sostenible de México\")","v":"Es necesario incrementar la ambición en el pilar 2 de bienestar"}]
[null,null,"Resultados pilar 3: Inclusión social",{"$f":"SUM(H77,H72,H67)","v":0},{"$f":"IF(D81<24,\"Es necesario incrementar la ambición en el pilar 3 de inclusión social\",\"El proyecto contribuye al cierre de brechas de género, conforme a la Taxonomía Sostenible de México\")","v":"Es necesario incrementar la ambición en el pilar 3 de inclusión social"}]
[null,null,"Total",{"$f":"SUM(D79:D81)","v":0},{"$f":"IF((COUNTIF(G8:G76,\"Seleccione\"))>1,\"Por definir\",IF(AND(E79=\"El proyecto contribuye al cierre de brechas de género, conforme a la Taxonomía Sostenible de México\",E80=\"El proyecto contribuye al cierre de brechas de género, conforme a la Taxonomía Sostenible de México\",E81=\"El proyecto contribuye al cierre de brechas de género, conforme a la Taxonomía Sostenible de México\",D82>=72),\"Sí cumple con el índice de igualdad de género\",\"No cumple con el índice de igualdad de género\"))","v":"Por definir"}]

{"sheet":"Base-datos","index":50,"n_rows":757,"n_cols":8,"rows_kept":757,"cut":false,"hidden":true,"merged":[]}
["Sector","Actividad económica","Exclusiones","Métrica","Umbral","No daño significativo"]
["Agricultura"," 111110. Cultivo de soya ","N/A","Reducción de emisiones de CO2 e (gCO2 e) Captura y almacenamiento de carbono"]
["Agricultura"," 111121. Cultivo de cártamo ","N/A","Reducción de emisiones de CO2 e (gCO2 e) Captura y almacenamiento de carbono"]
["Agricultura"," 111122. Cultivo de girasol ","N/A","Reducción de emisiones de CO2 e (gCO2 e) Captura y almacenamiento de carbono"]
["Agricultura"," 111129. Cultivo anual de otras semillas oleaginosas ","111110, Cultivo de soya","Reducción de emisiones de CO2 e (gCO2 e) Captura y almacenamiento de carbono"]
["Agricultura"," 111129. Cultivo anual de otras semillas oleaginosas ","111121, Cultivo de c ártamo","Reducción de emisiones de CO2 e (gCO2 e) Captura y almacenamiento de carbono"]
["Agricultura"," 111129. Cultivo anual de otras semillas oleaginosas ","111122, Cultivo de girasol","Reducción de emisiones de CO2 e (gCO2 e) Captura y almacenamiento de carbono"]
["Agricultura"," 111129. Cultivo anual de otras semillas oleaginosas ","111920, Cultivo de algod ón","Reducción de emisiones de CO2 e (gCO2 e) Captura y almacenamiento de carbono"]
["Agricultura"," 111129. Cultivo anual de otras semillas oleaginosas ","111992, Cultivo de cacahuate","Reducción de emisiones de CO2 e (gCO2 e) Captura y almacenamiento de carbono"]
["Agricultura"," 111129. Cultivo anual de otras semillas oleaginosas ","111999, Otros cultivos - cuando sea imposiible determinar el cultivo principal","Reducción de emisiones de CO2 e (gCO2 e) Captura y almacenamiento de carbono"]
["Agricultura"," 111131. Cultivo de frijol grano ","111219, Cultivo de otras hortalizas","Reducción de emisiones de CO2 e (gCO2 e) Captura y almacenamiento de carbono"]
["Agricultura"," 111132. Cultivo de garbanzo grano ","N/A","Reducción de emisiones de CO2 e (gCO2 e) Captura y almacenamiento de carbono"]
["Agricultura"," 111139. Cultivo de otras leguminosas ","111110, Cultivo de soya","Reducción de emisiones de CO2 e (gCO2 e) Captura y almacenamiento de carbono"]
["Agricultura"," 111139. Cultivo de otras leguminosas ","111131, Cultivo de frijol grano","Reducción de emisiones de CO2 e (gCO2 e) Captura y almacenamiento de carbono"]
["Agricultura"," 111139. Cultivo de otras leguminosas ","111132, Cultivo de garbanzo grano","Reducción de emisiones de CO2 e (gCO2 e) Captura y almacenamiento de carbono"]
["Agricultura"," 111139. Cultivo de otras leguminosas ","111219, Cultivo de otras hortalizas","Reducción de emisiones de CO2 e (gCO2 e) Captura y almacenamiento de carbono"]
["Agricultura"," 111139. Cultivo de otras leguminosas ","111992, Cultivo de cacahuate","Reducción de emisiones de CO2 e (gCO2 e) Captura y almacenamiento de carbono"]
["Agricultura"," 111139. Cultivo de otras leguminosas ","111993, Actividades agr ícolas combinadas con explotaci ón de animales","Reducción de emisiones de CO2 e (gCO2 e) Captura y almacenamiento de carbono"]
["Agricultura"," 111139. Cultivo de otras leguminosas ","111999, Otros cultivos cuando sea imposiible determinar el cultivo principal","Reducción de emisiones de CO2 e (gCO2 e) Captura y almacenamiento de carbono"]
["Agricultura"," 111140. Cultivo de trigo (No Perenne) ","N/A.","Reducción de emisiones de CO2 e (gCO2 e) Captura y almacenamiento de carbono"]
["Agricultura"," 111151. Cultivo de maíz grano ","111152, Cultivo de maíz forrajero","Reducción de emisiones de CO2 e (gCO2 e) Captura y almacenamiento de carbono"]
["Agricultura"," 111151. Cultivo de maíz grano ","111219, Cultivo de otras hortalizas- maiz tierno","Reducción de emisiones de CO2 e (gCO2 e) Captura y almacenamiento de carbono"]
["Agricultura"," 111152. Cultivo de maíz forrajero ","111151, Cultivo de ma\níz grano","Reducción de emisiones de CO2 e (gCO2 e) Captura y almacenamiento de carbono"]
["Agricultura"," 111152. Cultivo de maíz forrajero ","111993, Actividades agr\nícolas combinadas con\nexplotaci\nón de animales","Reducción de emisiones de CO2 e (gCO2 e) Captura y almacenamiento de carbono"]
["Agricultura"," 111160. Cultivo de arroz ","111199, Cultivo de otros cereales - arroz silvestre","Reducción de emisiones de CO2 e (gCO2 e) Captura y almacenamiento de carbono"]
["Agricultura"," 111191. Cultivo de sorgo grano ","111194, Cultivo de sorgo forrajero","Reducción de emisiones de CO2 e (gCO2 e) Captura y almacenamiento de carbono"]
["Agricultura"," 111192. Cultivo de avena grano ","111195, Cultivo de avena forrajera","Reducción de emisiones de CO2 e (gCO2 e) Captura y almacenamiento de carbono"]
["Agricultura"," 111193. Cultivo de cebada grano ","111199, Cultivo de otros cereales - cebada forrajera","Reducción de emisiones de CO2 e (gCO2 e) Captura y almacenamiento de carbono"]
["Agricultura"," 111194. Cultivo de sorgo forrajero ","111191, Cultivo de sorgo grano","Reducción de emisiones de CO2 e (gCO2 e) Captura y almacenamiento de carbono"]
["Agricultura"," 111194. Cultivo de sorgo forrajero ","111993, Actividades agrícolas combinadas con\nexplotación de animales","Reducción de emisiones de CO2 e (gCO2 e) Captura y almacenamiento de carbono"]
["Agricultura"," 111195. Cultivo de avena forrajera ","(111192, Cultivo de avena grano","Reducción de emisiones de CO2 e (gCO2 e) Captura y almacenamiento de carbono"]
["Agricultura"," 111195. Cultivo de avena forrajera ","111993, Actividades agrícolas combinadas con\nexplotación de animales","Reducción de emisiones de CO2 e (gCO2 e) Captura y almacenamiento de carbono"]
["Agricultura"," 111199. Cultivo de otros cereales ","111160, Cultivo de arroz","Reducción de emisiones de CO2 e (gCO2 e) Captura y almacenamiento de carbono"]
["Agricultura"," 111199. Cultivo de otros cereales ","111191, Cultivo de sorgo grano","Reducción de emisiones de CO2 e (gCO2 e) Captura y almacenamiento de carbono"]
["Agricultura"," 111199. Cultivo de otros cereales ","111192, Cultivo de avena grano","Reducción de emisiones de CO2 e (gCO2 e) Captura y almacenamiento de carbono"]
["Agricultura"," 111199. Cultivo de otros cereales ","111193, Cultivo de cebada grano","Reducción de emisiones de CO2 e (gCO2 e) Captura y almacenamiento de carbono"]
["Agricultura"," 111199. Cultivo de otros cereales ","111194, Cultivo de sorgo forrajero","Reducción de emisiones de CO2 e (gCO2 e) Captura y almacenamiento de carbono"]
["Agricultura"," 111199. Cultivo de otros cereales ","111993, Actividades agr\nícolas combinadas con explotaci\nón\nde animales","Reducción de emisiones de CO2 e (gCO2 e) Captura y almacenamiento de carbono"]
["Agricultura"," 111199. Cultivo de otros cereales ","11995, Actividades agr\nícolas combinadas con explotaci\nón de\nanimales y aprovechamiento forestal","Reducción de emisiones de CO2 e (gCO2 e) Captura y almacenamiento de carbono"]
["Agricultura"," 111199. Cultivo de otros cereales ","111999, Otros cultivos cuando sea imposiible determinar el cultivo principal","Reducción de emisiones de CO2 e (gCO2 e) Captura y almacenamiento de carbono"]
["Agricultura"," 111211. Cultivo de jitomate o tomate rojo ","111411, Cultivo de jitomate en invernaderos y otras estructuras agr ícolas protegidas","Reducción de emisiones de CO2 e (gCO2 e) Captura y almacenamiento de carbono"]
["Agricultura"," 111212. Cultivo de chile ","111414, Cultivo de chile en invernaderos y otras estructuras agr ícolas protegidas","Reducción de emisiones de CO2 e (gCO2 e) Captura y almacenamiento de carbono"]
["Agricultura"," 111213. Cultivo de cebolla ","111419, Cultivo de otros productos alimenticios en invernaderos y otras estructuras agr ícolas protegidas","Reducción de emisiones de CO2 e (gCO2 e) Captura y almacenamiento de carbono"]
["Agricultura"," 111214. Cultivo de melón ","111419, Cultivo de otros productos alimenticios en invernaderos y otras estructuras agr ícolas protegidas","Reducción de emisiones de CO2 e (gCO2 e) Captura y almacenamiento de carbono"]
["Agricultura"," 111215. Cultivo de tomate verde (No Perenne) ","111419, Cultivo\nde otros productos alimenticios en invernaderos y otras estructuras agr\nícolas protegidas","Reducción de emisiones de CO2 e (gCO2 e) Captura y almacenamiento de carbono"]
["Agricultura"," 111216. Cultivo de papa (No Perenne) ","111419, Cultivo de\notros productos alimenticios en invernaderos y otras estructuras agr\nícolas protegidas","Reducción de emisiones de CO2 e (gCO2 e) Captura y almacenamiento de carbono"]
["Agricultura"," 111217. Cultivo de calabaza ","111419, Cultivo de\notros productos alimenticios en invernaderos y otras estructuras agr\nícolas protegidas","Reducción de emisiones de CO2 e (gCO2 e) Captura y almacenamiento de carbono"]
["Agricultura"," 111218. Cultivo de sandía ","111419, Cultivo de\notros productos alimenticios en invernaderos y otras estructuras agr\nícolas protegidas","Reducción de emisiones de CO2 e (gCO2 e) Captura y almacenamiento de carbono"]
["Agricultura"," 111219. Cultivo de otras hortalizas (No Perenne) ","111151, Cultivo de ma íz grano","Reducción de emisiones de CO2 e (gCO2 e) Captura y almacenamiento de carbono"]
["Agricultura"," 111219. Cultivo de otras hortalizas (No Perenne) ","111152, Cultivo de ma íz forrajero","Reducción de emisiones de CO2 e (gCO2 e) Captura y almacenamiento de carbono"]
["Agricultura"," 111219. Cultivo de otras hortalizas (No Perenne) ","111339, Cultivo de otros frutales no c ítricos y de nueces","Reducción de emisiones de CO2 e (gCO2 e) Captura y almacenamiento de carbono"]
["Agricultura"," 111219. Cultivo de otras hortalizas (No Perenne) ","111416, Cultivo de pepino en invernaderos y otras estructuras agr ícolas protegidas","Reducción de emisiones de CO2 e (gCO2 e) Captura y almacenamiento de carbono"]
["Agricultura"," 111219. Cultivo de otras hortalizas (No Perenne) ","111419, Cultivo de otros productos alimenticios en invernaderos y otras estructuras agr ícolas protegidas","Reducción de emisiones de CO2 e (gCO2 e) Captura y almacenamiento de carbono"]
["Agricultura"," 111219. Cultivo de otras hortalizas (No Perenne) ","111999, Otros cultivos","Reducción de emisiones de CO2 e (gCO2 e) Captura y almacenamiento de carbono"]
["Agricultura"," 111219. Cultivo de otras hortalizas (No Perenne) ","111993, Actividades agr ícolas combinadas con explotaci ón de animales","Reducción de emisiones de CO2 e (gCO2 e) Captura y almacenamiento de carbono"]
["Agricultura"," 111219. Cultivo de otras hortalizas (No Perenne) ","111995, Actividades agr ícolas combinadas con explotaci ón de animales y aprovechamiento forestal","Reducción de emisiones de CO2 e (gCO2 e) Captura y almacenamiento de carbono"]
["Agricultura"," 111310. Cultivo de naranja ","111429, Otros cultivos no alimenticios en invernaderos y otras estructuras agr ícolas protegidas - patrones y árboles jóvenes","Reducción de emisiones de CO2 e (gCO2 e) Captura y almacenamiento de carbono"]
["Agricultura"," 111321. Cultivo de limón ","111429, Otros cultivos no alimenticios en invernaderos y otras estructuras agr ícolas protegidas - patrones y árboles jóvenes","Reducción de emisiones de CO2 e (gCO2 e) Captura y almacenamiento de carbono"]
["Agricultura"," 111329. Cultivo de otros cítricos "," 111310. Cultivo de naranja ","Reducción de emisiones de CO2 e (gCO2 e) Captura y almacenamiento de carbono"]
["Agricultura"," 111329. Cultivo de otros cítricos "," 111321. Cultivo de limón ","Reducción de emisiones de CO2 e (gCO2 e) Captura y almacenamiento de carbono"]
["Agricultura"," 111329. Cultivo de otros cítricos ","111429, Otros cultivos no alimenticios en invernaderos y otras estructuras agr ícolas protegidas - patrones y árboles jóvenes","Reducción de emisiones de CO2 e (gCO2 e) Captura y almacenamiento de carbono"]
["Agricultura"," 111329. Cultivo de otros cítricos ","111999, Otros cultivos cuando sea imposiible determinar el cultivo principal","Reducción de emisiones de CO2 e (gCO2 e) Captura y almacenamiento de carbono"]
["Agricultura"," 111331. Cultivo de café ","111429, Otros cultivos no alimenticios en invernaderos y otras estructuras agr ícolas protegidas - patrones y árboles jóvenes","Reducción de emisiones de CO2 e (gCO2 e) Captura y almacenamiento de carbono"]
["Agricultura"," 111332. Cultivo de plátano ","111429, Otros cultivos no alimenticios en invernaderos y otras estructuras agr ícolas protegidas - hijuelos","Reducción de emisiones de CO2 e (gCO2 e) Captura y almacenamiento de carbono"]
["Agricultura"," 111333. Cultivo de mango","111429, Otros cultivos no alimenticios\nen invernaderos y otras estructuras agr\nícolas protegidas - patrones y árboles de mango","Reducción de emisiones de CO2 e (gCO2 e) Captura y almacenamiento de carbono"]
["Agricultura"," 111334. Cultivo de aguacate ","111429, Otros cultivos no alimenticios en invernaderos y otras estructuras agr ícolas protegidas - patrones y árboles jóvenes","Reducción de emisiones de CO2 e (gCO2 e) Captura y almacenamiento de carbono"]
["Agricultura"," 111335. Cultivo de uva ","111429, Otros cultivos no alimenticios en invernaderos y otras estructuras agr ícolas protegidas - patrones y árboles jóvenes - sarmientos y plantas jóvenes ","Reducción de emisiones de CO2 e (gCO2 e) Captura y almacenamiento de carbono"]
["Agricultura"," 111336. Cultivo de manzana ","111415, Cultivo\nde manzana en invernaderos y otras estructuras agr\nícolas protegidas","Reducción de emisiones de CO2 e (gCO2 e) Captura y almacenamiento de carbono"]
["Agricultura"," 111336. Cultivo de manzana ","111429, Otros cultivos no alimenticios en invernaderos y otras estructuras agr ícolas protegidas - patrones y árboles jóvenes","Reducción de emisiones de CO2 e (gCO2 e) Captura y almacenamiento de carbono"]
["Agricultura"," 111337. Cultivo de cacao ","N/A","Reducción de emisiones de CO2 e (gCO2 e) Captura y almacenamiento de carbono"]
["Agricultura"," 111339. Cultivo de otros frutales no cítricos y de nueces ","111214, Cultivo de mel ón","Reducción de emisiones de CO2 e (gCO2 e) Captura y almacenamiento de carbono"]
["Agricultura"," 111339. Cultivo de otros frutales no cítricos y de nueces ","111218, Cultivo de sand ía","Reducción de emisiones de CO2 e (gCO2 e) Captura y almacenamiento de carbono"]
["Agricultura"," 111339. Cultivo de otros frutales no cítricos y de nueces ","111412, Cultivo de fresa en invernaderos y otras estructuras agr ícolas protegidas","Reducción de emisiones de CO2 e (gCO2 e) Captura y almacenamiento de carbono"]
["Agricultura"," 111339. Cultivo de otros frutales no cítricos y de nueces ","111413, Cultivo de bayas (berries) en invernaderos y otras estructuras agr ícolas protegidas, excepto fresas","Reducción de emisiones de CO2 e (gCO2 e) Captura y almacenamiento de carbono"]
["Agricultura"," 111339. Cultivo de otros frutales no cítricos y de nueces ","111419, Cultivo de otros productos alimenticios en invernaderos y otras estructuras agr ícolas protegidas","Reducción de emisiones de CO2 e (gCO2 e) Captura y almacenamiento de carbono"]
["Agricultura"," 111339. Cultivo de otros frutales no cítricos y de nueces ","111429, Otros cultivos no alimenticios en invernaderos y otras estructuras agr ícolas protegidas - patrones y árboles jóvenes","Reducción de emisiones de CO2 e (gCO2 e) Captura y almacenamiento de carbono"]
["Agricultura"," 111339. Cultivo de otros frutales no cítricos y de nueces ","113212, Recolecci\nón de productos forestales","Reducción de emisiones de CO2 e (gCO2 e) Captura y almacenamiento de carbono"]
["Agricultura"," 111339. Cultivo de otros frutales no cítricos y de nueces ","111993, Actividades agr ícolas combinadas con explotaci ón de animales","Reducción de emisiones de CO2 e (gCO2 e) Captura y almacenamiento de carbono"]
["Agricultura"," 111339. Cultivo de otros frutales no cítricos y de nueces ","111999, Otros cultivos cuando sea imposiible determinar el cultivo principal","Reducción de emisiones de CO2 e (gCO2 e) Captura y almacenamiento de carbono"]
["Agricultura"," 111411. Cultivo de jitomate en invernaderos y otras estructuras agrícolas protegidas ","111211, Cultivo de jitomate o tomate rojo","Reducción de emisiones de CO2 e (gCO2 e) Captura y almacenamiento de carbono"]
["Agricultura"," 111412. Cultivo de fresa en invernaderos y otras estructuras agrícolas protegidas ","111339, Cultivo de otros frutales no c ítricos y de nueces","Reducción de emisiones de CO2 e (gCO2 e) Captura y almacenamiento de carbono"]
["Agricultura"," 111412. Cultivo de fresa en invernaderos y otras estructuras agrícolas protegidas ","111413, Cultivo de bayas (berries) en invernaderos y otras estructuras agr ícolas protegidas, excepto fresas","Reducción de emisiones de CO2 e (gCO2 e) Captura y almacenamiento de carbono"]
["Agricultura"," 111413. Cultivo de bayas (berries) en invernaderos y otras estructuras agrícolas protegidas, excepto fresas ","111339, Cultivo de otros frutales no c ítricos y de nueces","Reducción de emisiones de CO2 e (gCO2 e) Captura y almacenamiento de carbono"]
["Agricultura"," 111413. Cultivo de bayas (berries) en invernaderos y otras estructuras agrícolas protegidas, excepto fresas ","111412, Cultivo de fresa en invernaderos y otras estructuras agr ícolas protegidas","Reducción de emisiones de CO2 e (gCO2 e) Captura y almacenamiento de carbono"]
["Agricultura"," 111414. Cultivo de chile en invernaderos y otras estructuras agrícolas protegidas ","111212, Cultivo de chile - a cielo abierto","Reducción de emisiones de CO2 e (gCO2 e) Captura y almacenamiento de carbono"]
["Agricultura"," 111415. Cultivo de manzana en invernaderos y otras estructuras agrícolas protegidas ","11336, Cultivo de manzana - cielo abierto ","Reducción de emisiones de CO2 e (gCO2 e) Captura y almacenamiento de carbono"]
["Agricultura"," 111416. Cultivo de pepino en invernaderos y otras estructuras agrícolas protegidas ","111219, Cultivo de otras hortalizas - a cielo abierto","Reducción de emisiones de CO2 e (gCO2 e) Captura y almacenamiento de carbono"]
["Agricultura"," 111419. Cultivo de otros productos alimenticios en invernaderos y otras estructuras agrícolas protegidas ","111219, Cultivo de otras hortalizas - a cielo abierto","Reducción de emisiones de CO2 e (gCO2 e) Captura y almacenamiento de carbono"]
["Agricultura"," 111419. Cultivo de otros productos alimenticios en invernaderos y otras estructuras agrícolas protegidas ","111339, Cultivo de otros frutales no c ítricos y de nueces","Reducción de emisiones de CO2 e (gCO2 e) Captura y almacenamiento de carbono"]
["Agricultura"," 111419. Cultivo de otros productos alimenticios en invernaderos y otras estructuras agrícolas protegidas ","111429, Otros cultivos no alimenticios en invernaderos y otras estructuras agr ícolas protegidas","Reducción de emisiones de CO2 e (gCO2 e) Captura y almacenamiento de carbono"]
["Agricultura"," 111419. Cultivo de otros productos alimenticios en invernaderos y otras estructuras agrícolas protegidas ","112512, Piscicultura y otra acuicultura, excepto camaronicultura","Reducción de emisiones de CO2 e (gCO2 e) Captura y almacenamiento de carbono"]
["Agricultura"," 111429. Otros cultivos no alimenticios en invernaderos y otras estructuras agrícolas protegidas ","111419, Cultivo de otros productos alimenticios en invernaderos y otras estructuras agr ícolas protegidas","Reducción de emisiones de CO2 e (gCO2 e) Captura y almacenamiento de carbono"]
["Agricultura"," 111429. Otros cultivos no alimenticios en invernaderos y otras estructuras agrícolas protegidas ","111422, Floricultura en invernaderos y otras estructuras agr ícolas protegidas","Reducción de emisiones de CO2 e (gCO2 e) Captura y almacenamiento de carbono"]
["Agricultura"," 111429. Otros cultivos no alimenticios en invernaderos y otras estructuras agrícolas protegidas ","111423, Cultivo de árboles de ciclo productivo de 10 a ños o menos","Reducción de emisiones de CO2 e (gCO2 e) Captura y almacenamiento de carbono"]
["Agricultura"," 111429. Otros cultivos no alimenticios en invernaderos y otras estructuras agrícolas protegidas ","111999, Otros cultivos","Reducción de emisiones de CO2 e (gCO2 e) Captura y almacenamiento de carbono"]
["Agricultura"," 111429. Otros cultivos no alimenticios en invernaderos y otras estructuras agrícolas protegidas ","113211, Viveros forestales)","Reducción de emisiones de CO2 e (gCO2 e) Captura y almacenamiento de carbono"]
["Agricultura"," 111910. Cultivo de tabaco ","N/A","Reducción de emisiones de CO2 e (gCO2 e) Captura y almacenamiento de carbono"]
["Agricultura"," 111920. Cultivo de algodón ","N/A","Reducción de emisiones de CO2 e (gCO2 e) Captura y almacenamiento de carbono"]
["Agricultura"," 111930. Cultivo de caña de azúcar ","111942, Cultivo de pastos","Reducción de emisiones de CO2 e (gCO2 e) Captura y almacenamiento de carbono"]
["Agricultura"," 111941. Cultivo de alfalfa ","N/A","Reducción de emisiones de CO2 e (gCO2 e) Captura y almacenamiento de carbono"]
["Agricultura"," 111942. Cultivo de pastos ","111930, Cultivo de ca ña de az úcar","Reducción de emisiones de CO2 e (gCO2 e) Captura y almacenamiento de carbono"]
["Agricultura"," 111942. Cultivo de pastos ","111999, Otros cultivos - pasto en rollo","Reducción de emisiones de CO2 e (gCO2 e) Captura y almacenamiento de carbono"]
["Agricultura"," 111991. Cultivo de agaves alcoholeros ","312132, Elaboraci ón de pulque","Reducción de emisiones de CO2 e (gCO2 e) Captura y almacenamiento de carbono"]
["Agricultura"," 111992. Cultivo de cacahuate ","N/A","Reducción de emisiones de CO2 e (gCO2 e) Captura y almacenamiento de carbono"]
["Agricultura"," 111999. Otros Cultivos","111110, Cultivo de soya","Reducción de emisiones de CO2 e (gCO2 e) Captura y almacenamiento de carbono"]
["Agricultura"," 111999. Otros Cultivos","11112, Cultivo de semillas oleaginosas, excepto soya","Reducción de emisiones de CO2 e (gCO2 e) Captura y almacenamiento de carbono"]
["Agricultura"," 111999. Otros Cultivos","111337, Cultivo de cacao","Reducción de emisiones de CO2 e (gCO2 e) Captura y almacenamiento de carbono"]
["Agricultura"," 111999. Otros Cultivos","111338, Cultivo de coco","Reducción de emisiones de CO2 e (gCO2 e) Captura y almacenamiento de carbono"]
["Agricultura"," 111999. Otros Cultivos","111339, Cultivo de otros frutales no cítricos y de nueces","Reducción de emisiones de CO2 e (gCO2 e) Captura y almacenamiento de carbono"]
["Agricultura"," 111999. Otros Cultivos","111942, Cultivo de pastos o zacates forrajeros","Reducción de emisiones de CO2 e (gCO2 e) Captura y almacenamiento de carbono"]
["Agricultura"," 111999. Otros Cultivos","112512, Piscicultura y otra acuicultura, excepto camaronicultura","Reducción de emisiones de CO2 e (gCO2 e) Captura y almacenamiento de carbono"]
["Agricultura"," 111999. Otros Cultivos","113212, Recolección de productos forestales","Reducción de emisiones de CO2 e (gCO2 e) Captura y almacenamiento de carbono"]
["Agricultura"," 111999. Otros Cultivos","561730, Servicios de instalación y mantenimiento de áreas verdes)","Reducción de emisiones de CO2 e (gCO2 e) Captura y almacenamiento de carbono"]
["Agricultura"," 111999. Otros Cultivos","111993,\nActividades agrícolas combinadas con explotación de animales -","Reducción de emisiones de CO2 e (gCO2 e) Captura y almacenamiento de carbono"]
["Agricultura"," 111999. Otros Cultivos","111994, Actividades agrícolas combinadas con aprovechamiento forestal","Reducción de emisiones de CO2 e (gCO2 e) Captura y almacenamiento de carbono"]
["Agricultura"," 111999. Otros Cultivos","111995, Actividades agrícolas combinadas con explotación de animales y aprovechamiento forestal","Reducción de emisiones de CO2 e (gCO2 e) Captura y almacenamiento de carbono"]
["Aprovechamiento Forestal"," 112110. Explotación de bovinos para la producción de carne ","112120, Explotación de bovinos para la producción de leche","Reducción de emisiones de CO2 (gCO2e). Captura y almacenamiento de carbono"]
["Aprovechamiento Forestal"," 112110. Explotación de bovinos para la producción de carne ","12131, Explotación de bovinos para la producción conjunta de leche y carne","Reducción de emisiones de CO2 (gCO2e). Captura y almacenamiento de carbono"]
["Aprovechamiento Forestal"," 112110. Explotación de bovinos para la producción de carne ","112139, Explotación de bovinos para otros propósitos","Reducción de emisiones de CO2 (gCO2e). Captura y almacenamiento de carbono"]
["Aprovechamiento Forestal"," 112110. Explotación de bovinos para la producción de carne ","111993, Actividades agrícolas combinadas con explotación de animales","Reducción de emisiones de CO2 (gCO2e). Captura y almacenamiento de carbono"]
["Aprovechamiento Forestal"," 112110. Explotación de bovinos para la producción de carne ","112991, Explotación de animales combinada con aprovechamiento forestal","Reducción de emisiones de CO2 (gCO2e). Captura y almacenamiento de carbono"]
["Aprovechamiento Forestal"," 112120. Explotación de bovinos para la producción de leche "," 112110. Explotación de bovinos para la producción de carne ","Reducción de emisiones de CO2 (gCO2e). Captura y almacenamiento de carbono"]
["Aprovechamiento Forestal"," 112120. Explotación de bovinos para la producción de leche ","12131, Explotación de bovinos para la producción conjunta de leche y carne","Reducción de emisiones de CO2 (gCO2e). Captura y almacenamiento de carbono"]
["Aprovechamiento Forestal"," 112120. Explotación de bovinos para la producción de leche ","112139, Explotación de bovinos para otros propósitos","Reducción de emisiones de CO2 (gCO2e). Captura y almacenamiento de carbono"]
["Aprovechamiento Forestal"," 112120. Explotación de bovinos para la producción de leche ","111993, Actividades agrícolas combinadas con explotación de animales","Reducción de emisiones de CO2 (gCO2e). Captura y almacenamiento de carbono"]
["Aprovechamiento Forestal"," 112120. Explotación de bovinos para la producción de leche ","112991, Explotación de animales combinada con aprovechamiento forestal","Reducción de emisiones de CO2 (gCO2e). Captura y almacenamiento de carbono"]
["Aprovechamiento Forestal"," 112131. Explotación de bovinos para la producción conjunta de leche y carne ","112110, Explotación de bovinos para la producción de carne","Reducción de emisiones de CO2 (gCO2e). Captura y almacenamiento de carbono"]
["Aprovechamiento Forestal"," 112131. Explotación de bovinos para la producción conjunta de leche y carne ","112120, Explotación de bovinos para la producción de leche","Reducción de emisiones de CO2 (gCO2e). Captura y almacenamiento de carbono"]
["Cría y explotación de animales"," 112131. Explotación de bovinos para la producción conjunta de leche y carne ","112139, Explotación de bovinos para otros propósitos","Reducción de emisiones de CO2 (gCO2e). Captura y almacenamiento de carbono"]
["Cría y explotación de animales"," 112131. Explotación de bovinos para la producción conjunta de leche y carne ","111993, Actividades agrícolas combinadas con explotación de animales","Reducción de emisiones de CO2 (gCO2e). Captura y almacenamiento de carbono"]
["Cría y explotación de animales"," 112131. Explotación de bovinos para la producción conjunta de leche y carne ","112991, Explotación de animales combinada con aprovechamiento forestal","Reducción de emisiones de CO2 (gCO2e). Captura y almacenamiento de carbono"]
["Cría y explotación de animales"," 112131. Explotación de bovinos para la producción conjunta de leche y carne ","112999, Explotación de otros animales","Reducción de emisiones de CO2 (gCO2e). Captura y almacenamiento de carbono"]
["Cría y explotación de animales"," 112139. Explotación de bovinos para otros propósitos ","112110, Explotación de bovinos para la producción de carne","Reducción de emisiones de CO2 (gCO2e). Captura y almacenamiento de carbono"]
["Cría y explotación de animales"," 112139. Explotación de bovinos para otros propósitos ","112120, Explotación de bovinos para la producción de leche","Reducción de emisiones de CO2 (gCO2e). Captura y almacenamiento de carbono"]
["Cría y explotación de animales"," 112139. Explotación de bovinos para otros propósitos ","112131, Explotación de bovinos para la producción conjunta de leche y carne","Reducción de emisiones de CO2 (gCO2e). Captura y almacenamiento de carbono"]
["Cría y explotación de animales"," 112139. Explotación de bovinos para otros propósitos ","111993, Actividades agrícolas combinadas con explotación de animales","Reducción de emisiones de CO2 (gCO2e). Captura y almacenamiento de carbono"]
["Cría y explotación de animales"," 112139. Explotación de bovinos para otros propósitos ","112991, Explotación de animales combinada con aprovechamiento forestal","Reducción de emisiones de CO2 (gCO2e). Captura y almacenamiento de carbono"]
["Cría y explotación de animales"," 112139. Explotación de bovinos para otros propósitos ","112999, Explotación de otros animales","Reducción de emisiones de CO2 (gCO2e). Captura y almacenamiento de carbono"]
["Cría y explotación de animales"," 112410. Explotación de ovinos ","111993, Actividades agrícolas combinadas con explotación de animales","Reducción de emisiones de CO2 (gCO2e). Captura y almacenamiento de carbono"]
["Cría y explotación de animales"," 112410. Explotación de ovinos ","112420, Explotación de caprinos","Reducción de emisiones de CO2 (gCO2e). Captura y almacenamiento de carbono"]
["Cría y explotación de animales"," 112410. Explotación de ovinos ","112991, Explotación de animales combinada con aprovechamiento forestal","Reducción de emisiones de CO2 (gCO2e). Captura y almacenamiento de carbono"]
["Cría y explotación de animales"," 112410. Explotación de ovinos ","112999, Explotación de otros animales","Reducción de emisiones de CO2 (gCO2e). Captura y almacenamiento de carbono"]
["Cría y explotación de animales"," 112420. Explotación de caprinos ","111993, Actividades agrícolas combinadas con explotación de animales","Reducción de emisiones de CO2 (gCO2e). Captura y almacenamiento de carbono"]
["Cría y explotación de animales"," 112420. Explotación de caprinos ","112420, Explotación de ovinos","Reducción de emisiones de CO2 (gCO2e). Captura y almacenamiento de carbono"]
["Cría y explotación de animales"," 112420. Explotación de caprinos ","112991, Explotación de animales combinada con aprovechamiento forestal","Reducción de emisiones de CO2 (gCO2e). Captura y almacenamiento de carbono"]
["Cría y explotación de animales"," 112420. Explotación de caprinos ","112999, Explotación de otros animales","Reducción de emisiones de CO2 (gCO2e). Captura y almacenamiento de carbono"]
["Cría y explotación de animales"," 113110. Silvicultura ","111423, Cultivo de árboles de ciclo productivo de 10 años o menos","Incremento de los acervos forestales de carbono (gCO2 e)"]
["Cría y explotación de animales"," 113110. Silvicultura ","111995, Actividades agrícolas combinadas con explotación de animales\ny aprovechamiento forestal","Incremento de los acervos forestales de carbono (gCO2 e)"]
["Cría y explotación de animales"," 113110. Silvicultura ","112991, Explotación de animales combinada con aprovechamiento forestal","Incremento de los acervos forestales de carbono (gCO2 e)"]
["Cría y explotación de animales"," 113110. Silvicultura ","113310, Tala de árboles","Incremento de los acervos forestales de carbono (gCO2 e)"]
["Cría y explotación de animales"," 113211. Viveros forestales","N/A","Incremento de los acervos forestales de carbono (gCO2 e)"]
["Cría y explotación de animales"," 113212. Aprovechamiento de recursos forestales no maderables (Recolección de productos forestales sensu SCIAN) ","1113, Cultivo de frutales y nueces","Incremento de los acervos forestales de carbono (gCO2 e)"]
["Cría y explotación de animales"," 113212. Aprovechamiento de recursos forestales no maderables (Recolección de productos forestales sensu SCIAN) ","111999, Otros cultivos","Incremento de los acervos forestales de carbono (gCO2 e)"]
["Cría y explotación de animales"," 113212. Aprovechamiento de recursos forestales no maderables (Recolección de productos forestales sensu SCIAN) ","111995, Actividades agrícolas combinadas con explotación de animales y aprovechamiento forestal","Incremento de los acervos forestales de carbono (gCO2 e)"]
["Cría y explotación de animales"," 113212. Aprovechamiento de recursos forestales no maderables (Recolección de productos forestales sensu SCIAN) ","112991, Explotación de animales combinada con aprovechamiento forestal","Incremento de los acervos forestales de carbono (gCO2 e)"]
["Cría y explotación de animales"," 113310. Aprovechamiento de recursos forestales maderables (Tala de árboles sensu SCIAN) ","111423, Cultivo de árboles de ciclo productivo de 10 años o menos","Incremento de los acervos forestales de carbono (gCO2 e)"]
["Cría y explotación de animales"," 113310. Aprovechamiento de recursos forestales maderables (Tala de árboles sensu SCIAN) ","321111, Aserraderos integrados","Incremento de los acervos forestales de carbono (gCO2 e)"]
["Cría y explotación de animales"," 113310. Aprovechamiento de recursos forestales maderables (Tala de árboles sensu SCIAN) ","111995, Actividades agrícolas combinadas con explotación de animales y aprovechamiento forestal","Incremento de los acervos forestales de carbono (gCO2 e)"]
["Cría y explotación de animales"," 115210. Servicios relacionados con la cría y explotación de animales","532491, Alquiler de maquinaria y equipo agropecuario, pesquero y para la industria manufacturera","Reducción de emisiones de CO2 (gCO2e). Captura y almacenamiento de carbono"]
["Cría y explotación de animales"," 115210. Servicios relacionados con la cría y explotación de animales","541690, Otros servicios de consultoría científica y técnica","Reducción de emisiones de CO2 (gCO2e). Captura y almacenamiento de carbono"]
["Cría y explotación de animales"," 115210. Servicios relacionados con la cría y explotación de animales","54194, Servicios veterinarios","Reducción de emisiones de CO2 (gCO2e). Captura y almacenamiento de carbono"]
["Cría y explotación de animales"," 115210. Servicios relacionados con la cría y explotación de animales","812990, Otros servicios personales","Reducción de emisiones de CO2 (gCO2e). Captura y almacenamiento de carbono"]
["Generación, transmisión, distribución y comercialización de energía eléctrica, suministro de agua al consumidor final"," 221112. Generación de electricidad a partir de energía hidráulica ","221111,\nGeneración de electricidad a partir de combustibles fósile","Emisiones para la generación de energía: kgCO2 e/MWh","umbral menor o igual a 100gCO2 e/kWh / mayor o igual a 5W/m"]
["Generación, transmisión, distribución y comercialización de energía eléctrica, suministro de agua al consumidor final"," 221112. Generación de electricidad a partir de energía hidráulica ","221113, Generación de electricidad a partir de energía solar","Emisiones para la generación de energía: kgCO2 e/MWh","umbral menor o igual a 100gCO2 e/kWh / mayor o igual a 5W/m"]
["Generación, transmisión, distribución y comercialización de energía eléctrica, suministro de agua al consumidor final"," 221112. Generación de electricidad a partir de energía hidráulica ","221114, Generación de electricidad a partir de energía eólica","Emisiones para la generación de energía: kgCO2 e/MWh","umbral menor o igual a 100gCO2 e/kWh / mayor o igual a 5W/m"]
["Generación, transmisión, distribución y comercialización de energía eléctrica, suministro de agua al consumidor final"," 221112. Generación de electricidad a partir de energía hidráulica ","221119, Generación de electricidad a partir de otro tipo de energía","Emisiones para la generación de energía: kgCO2 e/MWh","umbral menor o igual a 100gCO2 e/kWh / mayor o igual a 5W/m"]
["Generación, transmisión, distribución y comercialización de energía eléctrica, suministro de agua al consumidor final"," 221112. Generación de electricidad a partir de energía hidráulica ","221121, Transmisión de energía eléctrica)","Emisiones para la generación de energía: kgCO2 e/MWh","umbral menor o igual a 100gCO2 e/kWh / mayor o igual a 5W/m"]
["Generación, transmisión, distribución y comercialización de energía eléctrica, suministro de agua al consumidor final"," 221112. Generación de electricidad a partir de energía hidráulica ","221122, Distribución de energía eléctrica","Emisiones para la generación de energía: kgCO2 e/MWh","umbral menor o igual a 100gCO2 e/kWh / mayor o igual a 5W/m"]
["Generación, transmisión, distribución y comercialización de energía eléctrica, suministro de agua al consumidor final"," 221112. Generación de electricidad a partir de energía hidráulica ","221123, Comercialización de energía eléctrica)","Emisiones para la generación de energía: kgCO2 e/MWh","umbral menor o igual a 100gCO2 e/kWh / mayor o igual a 5W/m"]
["Generación, transmisión, distribución y comercialización de energía eléctrica, suministro de agua al consumidor final"," 221113. Generación de electricidad a partir de energía solar (concentradores solares) ","221111,\nGeneración de electricidad a partir de combustibles fósile","Emisiones para la generación de energía: kgCO2 e/MWh","Exentas y en casos específicos se evaluará el umbral ≤ 100  de CO2e/kWh."]
["Generación, transmisión, distribución y comercialización de energía eléctrica, suministro de agua al consumidor final"," 221113. Generación de electricidad a partir de energía solar (concentradores solares) "," 221112. Generación de electricidad a partir de energía hidráulica ","Emisiones para la generación de energía: kgCO2 e/MWh","Exentas y en casos específicos se evaluará el umbral ≤ 100  de CO2e/kWh."]
["Generación, transmisión, distribución y comercialización de energía eléctrica, suministro de agua al consumidor final"," 221113. Generación de electricidad a partir de energía solar (concentradores solares) ","221114, Generación de electricidad a partir de energía eólica","Emisiones para la generación de energía: kgCO2 e/MWh","Exentas y en casos específicos se evaluará el umbral ≤ 100  de CO2e/kWh."]
["Generación, transmisión, distribución y comercialización de energía eléctrica, suministro de agua al consumidor final"," 221113. Generación de electricidad a partir de energía solar (concentradores solares) ","221119, Generación de electricidad a partir de otro tipo de energía","Emisiones para la generación de energía: kgCO2 e/MWh","Exentas y en casos específicos se evaluará el umbral ≤ 100  de CO2e/kWh."]
["Generación, transmisión, distribución y comercialización de energía eléctrica, suministro de agua al consumidor final"," 221113. Generación de electricidad a partir de energía solar (concentradores solares) ","221121, Transmisión de energía eléctrica)","Emisiones para la generación de energía: kgCO2 e/MWh","Exentas y en casos específicos se evaluará el umbral ≤ 100  de CO2e/kWh."]
["Generación, transmisión, distribución y comercialización de energía eléctrica, suministro de agua al consumidor final"," 221113. Generación de electricidad a partir de energía solar (concentradores solares) ","221122, Distribución de energía eléctrica","Emisiones para la generación de energía: kgCO2 e/MWh","Exentas y en casos específicos se evaluará el umbral ≤ 100  de CO2e/kWh."]
["Generación, transmisión, distribución y comercialización de energía eléctrica, suministro de agua al consumidor final"," 221113. Generación de electricidad a partir de energía solar (concentradores solares) ","221123, Comercialización de energía eléctrica)","Emisiones para la generación de energía: kgCO2 e/MWh","Exentas y en casos específicos se evaluará el umbral ≤ 100  de CO2e/kWh."]
["Generación, transmisión, distribución y comercialización de energía eléctrica, suministro de agua al consumidor final"," 221113. Generación de electricidad a partir de energía solar (sistemas fotovoltaicos) ","221111,\nGeneración de electricidad a partir de combustibles fósile","Emisiones para la generación de energía: kgCO2 e/MWh","Exentas y en casos específicos se evaluará el umbral ≤ 100  de CO2e/kWh."]
["Generación, transmisión, distribución y comercialización de energía eléctrica, suministro de agua al consumidor final"," 221113. Generación de electricidad a partir de energía solar (sistemas fotovoltaicos) "," 221112. Generación de electricidad a partir de energía hidráulica ","Emisiones para la generación de energía: kgCO2 e/MWh","Exentas y en casos específicos se evaluará el umbral ≤ 100  de CO2e/kWh."]
["Generación, transmisión, distribución y comercialización de energía eléctrica, suministro de agua al consumidor final"," 221113. Generación de electricidad a partir de energía solar (sistemas fotovoltaicos) ","221114, Generación de electricidad a partir de energía eólica","Emisiones para la generación de energía: kgCO2 e/MWh","Exentas y en casos específicos se evaluará el umbral ≤ 100  de CO2e/kWh."]
["Generación, transmisión, distribución y comercialización de energía eléctrica, suministro de agua al consumidor final"," 221113. Generación de electricidad a partir de energía solar (sistemas fotovoltaicos) ","221119, Generación de electricidad a partir de otro tipo de energía","Emisiones para la generación de energía: kgCO2 e/MWh","Exentas y en casos específicos se evaluará el umbral ≤ 100  de CO2e/kWh."]
["Generación, transmisión, distribución y comercialización de energía eléctrica, suministro de agua al consumidor final"," 221113. Generación de electricidad a partir de energía solar (sistemas fotovoltaicos) ","221121, Transmisión de energía eléctrica)","Emisiones para la generación de energía: kgCO2 e/MWh","Exentas y en casos específicos se evaluará el umbral ≤ 100  de CO2e/kWh."]
["Generación, transmisión, distribución y comercialización de energía eléctrica, suministro de agua al consumidor final"," 221113. Generación de electricidad a partir de energía solar (sistemas fotovoltaicos) ","221122, Distribución de energía eléctrica","Emisiones para la generación de energía: kgCO2 e/MWh","Exentas y en casos específicos se evaluará el umbral ≤ 100  de CO2e/kWh."]
["Generación, transmisión, distribución y comercialización de energía eléctrica, suministro de agua al consumidor final"," 221113. Generación de electricidad a partir de energía solar (sistemas fotovoltaicos) ","221123, Comercialización de energía eléctrica)","Emisiones para la generación de energía: kgCO2 e/MWh","Exentas y en casos específicos se evaluará el umbral ≤ 100  de CO2e/kWh."]
["Generación, transmisión, distribución y comercialización de energía eléctrica, suministro de agua al consumidor final"," 221114. Generación de electricidad a partir de energía eólica ","221111,\nGeneración de electricidad a partir de combustibles fósile","Emisiones para la generación de energía: kgCO2 e/MWh","exentas y en casos específicos se evaluará el umbral ≤ 100  de CO2e/kWh."]
["Generación, transmisión, distribución y comercialización de energía eléctrica, suministro de agua al consumidor final"," 221114. Generación de electricidad a partir de energía eólica "," 221112. Generación de electricidad a partir de energía hidráulica ","Emisiones para la generación de energía: kgCO2 e/MWh","exentas y en casos específicos se evaluará el umbral ≤ 100  de CO2e/kWh."]
["Generación, transmisión, distribución y comercialización de energía eléctrica, suministro de agua al consumidor final"," 221114. Generación de electricidad a partir de energía eólica ","221113, Generación de electricidad a partir de energía solar","Emisiones para la generación de energía: kgCO2 e/MWh","exentas y en casos específicos se evaluará el umbral ≤ 100  de CO2e/kWh."]
["Generación, transmisión, distribución y comercialización de energía eléctrica, suministro de agua al consumidor final"," 221114. Generación de electricidad a partir de energía eólica ","221119, Generación de electricidad a partir de otro tipo de energía","Emisiones para la generación de energía: kgCO2 e/MWh","exentas y en casos específicos se evaluará el umbral ≤ 100  de CO2e/kWh."]
["Generación, transmisión, distribución y comercialización de energía eléctrica, suministro de agua al consumidor final"," 221114. Generación de electricidad a partir de energía eólica ","221121, Transmisión de energía eléctrica)","Emisiones para la generación de energía: kgCO2 e/MWh","exentas y en casos específicos se evaluará el umbral ≤ 100  de CO2e/kWh."]
["Generación, transmisión, distribución y comercialización de energía eléctrica, suministro de agua al consumidor final"," 221114. Generación de electricidad a partir de energía eólica ","221122, Distribución de energía eléctrica","Emisiones para la generación de energía: kgCO2 e/MWh","exentas y en casos específicos se evaluará el umbral ≤ 100  de CO2e/kWh."]
["Generación, transmisión, distribución y comercialización de energía eléctrica, suministro de agua al consumidor final"," 221114. Generación de electricidad a partir de energía eólica ","221123, Comercialización de energía eléctrica)","Emisiones para la generación de energía: kgCO2 e/MWh","exentas y en casos específicos se evaluará el umbral ≤ 100  de CO2e/kWh."]
["Generación, transmisión, distribución y comercialización de energía eléctrica, suministro de agua al consumidor final"," 221119. Generación de electricidad a partir de otro tipo de energía (bioenergía) ","221111,\nGeneración de electricidad a partir de combustibles fósile","Emisiones para la generación de energía: kgCO2 e/MWh","ciclo de vida de las emisiones de GEI son inferiores a 100 gCO2e/kWh"]
["Generación, transmisión, distribución y comercialización de energía eléctrica, suministro de agua al consumidor final"," 221119. Generación de electricidad a partir de otro tipo de energía (bioenergía) "," 221112. Generación de electricidad a partir de energía hidráulica ","Emisiones para la generación de energía: kgCO2 e/MWh","ciclo de vida de las emisiones de GEI son inferiores a 100 gCO2e/kWh"]
["Generación, transmisión, distribución y comercialización de energía eléctrica, suministro de agua al consumidor final"," 221119. Generación de electricidad a partir de otro tipo de energía (bioenergía) ","221113, Generación de electricidad a partir de energía solar","Emisiones para la generación de energía: kgCO2 e/MWh","ciclo de vida de las emisiones de GEI son inferiores a 100 gCO2e/kWh"]
["Generación, transmisión, distribución y comercialización de energía eléctrica, suministro de agua al consumidor final"," 221119. Generación de electricidad a partir de otro tipo de energía (bioenergía) ","221114, Generación de electricidad a partir de energía eólica","Emisiones para la generación de energía: kgCO2 e/MWh","ciclo de vida de las emisiones de GEI son inferiores a 100 gCO2e/kWh"]
["Generación, transmisión, distribución y comercialización de energía eléctrica, suministro de agua al consumidor final"," 221119. Generación de electricidad a partir de otro tipo de energía (bioenergía) ","221121, Transmisión de energía eléctrica)","Emisiones para la generación de energía: kgCO2 e/MWh","ciclo de vida de las emisiones de GEI son inferiores a 100 gCO2e/kWh"]
["Generación, transmisión, distribución y comercialización de energía eléctrica, suministro de agua al consumidor final"," 221119. Generación de electricidad a partir de otro tipo de energía (bioenergía) ","221122, Distribución de energía eléctrica","Emisiones para la generación de energía: kgCO2 e/MWh","ciclo de vida de las emisiones de GEI son inferiores a 100 gCO2e/kWh"]
["Generación, transmisión, distribución y comercialización de energía eléctrica, suministro de agua al consumidor final"," 221119. Generación de electricidad a partir de otro tipo de energía (bioenergía) ","221123, Comercialización de energía eléctrica)","Emisiones para la generación de energía: kgCO2 e/MWh","ciclo de vida de las emisiones de GEI son inferiores a 100 gCO2e/kWh"]
["Generación, transmisión, distribución y comercialización de energía eléctrica, suministro de agua al consumidor final"," 221119. Generación de electricidad a partir de otro tipo de energía (cogeneración a partir de biomasa) ","221111,\nGeneración de electricidad a partir de combustibles fósile","Emisiones para la generación de energía: kgCO2 e/MWh","ciclo de vida de las emisiones de GEI son inferiores a 100 gCO2e/kWh"]
["Generación, transmisión, distribución y comercialización de energía eléctrica, suministro de agua al consumidor final"," 221119. Generación de electricidad a partir de otro tipo de energía (cogeneración a partir de biomasa) "," 221112. Generación de electricidad a partir de energía hidráulica ","Emisiones para la generación de energía: kgCO2 e/MWh","ciclo de vida de las emisiones de GEI son inferiores a 100 gCO2e/kWh"]
["Generación, transmisión, distribución y comercialización de energía eléctrica, suministro de agua al consumidor final"," 221119. Generación de electricidad a partir de otro tipo de energía (cogeneración a partir de biomasa) ","221113, Generación de electricidad a partir de energía solar","Emisiones para la generación de energía: kgCO2 e/MWh","ciclo de vida de las emisiones de GEI son inferiores a 100 gCO2e/kWh"]
["Generación, transmisión, distribución y comercialización de energía eléctrica, suministro de agua al consumidor final"," 221119. Generación de electricidad a partir de otro tipo de energía (cogeneración a partir de biomasa) ","221114, Generación de electricidad a partir de energía eólica","Emisiones para la generación de energía: kgCO2 e/MWh","ciclo de vida de las emisiones de GEI son inferiores a 100 gCO2e/kWh"]
["Generación, transmisión, distribución y comercialización de energía eléctrica, suministro de agua al consumidor final"," 221119. Generación de electricidad a partir de otro tipo de energía (cogeneración a partir de biomasa) ","221121, Transmisión de energía eléctrica)","Emisiones para la generación de energía: kgCO2 e/MWh","ciclo de vida de las emisiones de GEI son inferiores a 100 gCO2e/kWh"]
["Generación, transmisión, distribución y comercialización de energía eléctrica, suministro de agua al consumidor final"," 221119. Generación de electricidad a partir de otro tipo de energía (cogeneración a partir de biomasa) ","221122, Distribución de energía eléctrica","Emisiones para la generación de energía: kgCO2 e/MWh","ciclo de vida de las emisiones de GEI son inferiores a 100 gCO2e/kWh"]
["Generación, transmisión, distribución y comercialización de energía eléctrica, suministro de agua al consumidor final"," 221119. Generación de electricidad a partir de otro tipo de energía (cogeneración a partir de biomasa) ","221123, Comercialización de energía eléctrica)","Emisiones para la generación de energía: kgCO2 e/MWh","ciclo de vida de las emisiones de GEI son inferiores a 100 gCO2e/kWh"]
["Generación, transmisión, distribución y comercialización de energía eléctrica, suministro de agua al consumidor final"," 221119. Generación de electricidad a partir de otro tipo de energía (cogeneración eficiente) ","221111,\nGeneración de electricidad a partir de combustibles fósile","Emisiones para la generación de energía: kgCO2 e/MWh","ciclo de vida de las emisiones de GEI son inferiores a 100 gCO2e/kWh"]
["Generación, transmisión, distribución y comercialización de energía eléctrica, suministro de agua al consumidor final"," 221119. Generación de electricidad a partir de otro tipo de energía (cogeneración eficiente) "," 221112. Generación de electricidad a partir de energía hidráulica ","Emisiones para la generación de energía: kgCO2 e/MWh","ciclo de vida de las emisiones de GEI son inferiores a 100 gCO2e/kWh"]
["Generación, transmisión, distribución y comercialización de energía eléctrica, suministro de agua al consumidor final"," 221119. Generación de electricidad a partir de otro tipo de energía (cogeneración eficiente) ","221113, Generación de electricidad a partir de energía solar","Emisiones para la generación de energía: kgCO2 e/MWh","ciclo de vida de las emisiones de GEI son inferiores a 100 gCO2e/kWh"]
["Generación, transmisión, distribución y comercialización de energía eléctrica, suministro de agua al consumidor final"," 221119. Generación de electricidad a partir de otro tipo de energía (cogeneración eficiente) ","221114, Generación de electricidad a partir de energía eólica","Emisiones para la generación de energía: kgCO2 e/MWh","ciclo de vida de las emisiones de GEI son inferiores a 100 gCO2e/kWh"]
["Generación, transmisión, distribución y comercialización de energía eléctrica, suministro de agua al consumidor final"," 221119. Generación de electricidad a partir de otro tipo de energía (cogeneración eficiente) ","221121, Transmisión de energía eléctrica)","Emisiones para la generación de energía: kgCO2 e/MWh","ciclo de vida de las emisiones de GEI son inferiores a 100 gCO2e/kWh"]
["Generación, transmisión, distribución y comercialización de energía eléctrica, suministro de agua al consumidor final"," 221119. Generación de electricidad a partir de otro tipo de energía (cogeneración eficiente) ","221122, Distribución de energía eléctrica","Emisiones para la generación de energía: kgCO2 e/MWh","ciclo de vida de las emisiones de GEI son inferiores a 100 gCO2e/kWh"]
["Generación, transmisión, distribución y comercialización de energía eléctrica, suministro de agua al consumidor final"," 221119. Generación de electricidad a partir de otro tipo de energía (cogeneración eficiente) ","221123, Comercialización de energía eléctrica)","Emisiones para la generación de energía: kgCO2 e/MWh","ciclo de vida de las emisiones de GEI son inferiores a 100 gCO2e/kWh"]
["Generación, transmisión, distribución y comercialización de energía eléctrica, suministro de agua al consumidor final"," 221119. Generación de electricidad a partir de otro tipo de energía (energía geotérmica) ","221111,\nGeneración de electricidad a partir de combustibles fósile","Emisiones para la generación de energía: kgCO2 e/MWh","ciclo de vida de las emisiones de GEI son inferiores a 100 gCO2e/kWh"]
["Generación, transmisión, distribución y comercialización de energía eléctrica, suministro de agua al consumidor final"," 221119. Generación de electricidad a partir de otro tipo de energía (energía geotérmica) "," 221112. Generación de electricidad a partir de energía hidráulica ","Emisiones para la generación de energía: kgCO2 e/MWh","ciclo de vida de las emisiones de GEI son inferiores a 100 gCO2e/kWh"]
["Generación, transmisión, distribución y comercialización de energía eléctrica, suministro de agua al consumidor final"," 221119. Generación de electricidad a partir de otro tipo de energía (energía geotérmica) ","221113, Generación de electricidad a partir de energía solar","Emisiones para la generación de energía: kgCO2 e/MWh","ciclo de vida de las emisiones de GEI son inferiores a 100 gCO2e/kWh"]
["Generación, transmisión, distribución y comercialización de energía eléctrica, suministro de agua al consumidor final"," 221119. Generación de electricidad a partir de otro tipo de energía (energía geotérmica) ","221114, Generación de electricidad a partir de energía eólica","Emisiones para la generación de energía: kgCO2 e/MWh","ciclo de vida de las emisiones de GEI son inferiores a 100 gCO2e/kWh"]
["Generación, transmisión, distribución y comercialización de energía eléctrica, suministro de agua al consumidor final"," 221119. Generación de electricidad a partir de otro tipo de energía (energía geotérmica) ","221121, Transmisión de energía eléctrica)","Emisiones para la generación de energía: kgCO2 e/MWh","ciclo de vida de las emisiones de GEI son inferiores a 100 gCO2e/kWh"]
["Generación, transmisión, distribución y comercialización de energía eléctrica, suministro de agua al consumidor final"," 221119. Generación de electricidad a partir de otro tipo de energía (energía geotérmica) ","221122, Distribución de energía eléctrica","Emisiones para la generación de energía: kgCO2 e/MWh","ciclo de vida de las emisiones de GEI son inferiores a 100 gCO2e/kWh"]
["Generación, transmisión, distribución y comercialización de energía eléctrica, suministro de agua al consumidor final"," 221119. Generación de electricidad a partir de otro tipo de energía (energía geotérmica) ","221123, Comercialización de energía eléctrica)","Emisiones para la generación de energía: kgCO2 e/MWh","ciclo de vida de las emisiones de GEI son inferiores a 100 gCO2e/kWh"]
["Generación, transmisión, distribución y comercialización de energía eléctrica, suministro de agua al consumidor final"," 221119. Generación de electricidad a partir de otro tipo de energía (energía oceánica) ","221111, Generación de electricidad a partir de combustibles fósile","Emisiones para la generación de energía: kgCO2 e/MWh","Exentas y en casos específicos se evaluará el umbral ≤ 100  de CO2e/kWh."]
["Generación, transmisión, distribución y comercialización de energía eléctrica, suministro de agua al consumidor final"," 221119. Generación de electricidad a partir de otro tipo de energía (energía oceánica) "," 221112. Generación de electricidad a partir de energía hidráulica ","Emisiones para la generación de energía: kgCO2 e/MWh","Exentas y en casos específicos se evaluará el umbral ≤ 100  de CO2e/kWh."]
["Generación, transmisión, distribución y comercialización de energía eléctrica, suministro de agua al consumidor final"," 221119. Generación de electricidad a partir de otro tipo de energía (energía oceánica) ","221113, Generación de electricidad a partir de energía solar","Emisiones para la generación de energía: kgCO2 e/MWh","Exentas y en casos específicos se evaluará el umbral ≤ 100  de CO2e/kWh."]
["Generación, transmisión, distribución y comercialización de energía eléctrica, suministro de agua al consumidor final"," 221119. Generación de electricidad a partir de otro tipo de energía (energía oceánica) ","221114, Generación de electricidad a partir de energía eólica","Emisiones para la generación de energía: kgCO2 e/MWh","Exentas y en casos específicos se evaluará el umbral ≤ 100  de CO2e/kWh."]
["Generación, transmisión, distribución y comercialización de energía eléctrica, suministro de agua al consumidor final"," 221119. Generación de electricidad a partir de otro tipo de energía (energía oceánica) ","221121, Transmisión de energía eléctrica","Emisiones para la generación de energía: kgCO2 e/MWh","Exentas y en casos específicos se evaluará el umbral ≤ 100  de CO2e/kWh."]
["Generación, transmisión, distribución y comercialización de energía eléctrica, suministro de agua al consumidor final"," 221119. Generación de electricidad a partir de otro tipo de energía (energía oceánica) ","221122, Distribución de energía eléctrica","Emisiones para la generación de energía: kgCO2 e/MWh","Exentas y en casos específicos se evaluará el umbral ≤ 100  de CO2e/kWh."]
["Generación, transmisión, distribución y comercialización de energía eléctrica, suministro de agua al consumidor final"," 221119. Generación de electricidad a partir de otro tipo de energía (energía oceánica) ","221123, Comercialización de energía eléctrica)","Emisiones para la generación de energía: kgCO2 e/MWh","Exentas y en casos específicos se evaluará el umbral ≤ 100  de CO2e/kWh."]
["Generación, transmisión, distribución y comercialización de energía eléctrica, suministro de agua al consumidor final"," 221121. Transmisión de energía eléctrica","221111, Generación de electricidad a partir de combustibles fósile","Emisiones para la generación de energía: kgCO2 e/MWh"]
["Generación, transmisión, distribución y comercialización de energía eléctrica, suministro de agua al consumidor final"," 221121. Transmisión de energía eléctrica"," 221112. Generación de electricidad a partir de energía hidráulica ","Emisiones para la generación de energía: kgCO2 e/MWh"]
["Generación, transmisión, distribución y comercialización de energía eléctrica, suministro de agua al consumidor final"," 221121. Transmisión de energía eléctrica","221113, Generación de electricidad a partir de energía solar","Emisiones para la generación de energía: kgCO2 e/MWh"]
["Generación, transmisión, distribución y comercialización de energía eléctrica, suministro de agua al consumidor final"," 221121. Transmisión de energía eléctrica","221114, Generación de electricidad a partir de energía eólica","Emisiones para la generación de energía: kgCO2 e/MWh"]
["Generación, transmisión, distribución y comercialización de energía eléctrica, suministro de agua al consumidor final"," 221121. Transmisión de energía eléctrica","221119, Generación de electricidad a partir de otro tipo de energía","Emisiones para la generación de energía: kgCO2 e/MWh"]
["Generación, transmisión, distribución y comercialización de energía eléctrica, suministro de agua al consumidor final"," 221121. Transmisión de energía eléctrica","221122, Distribución de energía eléctrica","Emisiones para la generación de energía: kgCO2 e/MWh"]
["Generación, transmisión, distribución y comercialización de energía eléctrica, suministro de agua al consumidor final"," 221121. Transmisión de energía eléctrica","221123, Comercialización de energía eléctrica)","Emisiones para la generación de energía: kgCO2 e/MWh"]
["Generación, transmisión, distribución y comercialización de energía eléctrica, suministro de agua al consumidor final"," 221122. Distribución de energía eléctrica ","221111, generación de electricidad a partir de combustibles fósiles","Emisiones para la generación de energía: kgCO2 e/MWh"]
["Generación, transmisión, distribución y comercialización de energía eléctrica, suministro de agua al consumidor final"," 221122. Distribución de energía eléctrica ","221112, Generación de electricidad a partir de energía hidráulica","Emisiones para la generación de energía: kgCO2 e/MWh"]
["Generación, transmisión, distribución y comercialización de energía eléctrica, suministro de agua al consumidor final"," 221122. Distribución de energía eléctrica ","221113, Generación de electricidad a partir de energía solar","Emisiones para la generación de energía: kgCO2 e/MWh"]
["Generación, transmisión, distribución y comercialización de energía eléctrica, suministro de agua al consumidor final"," 221122. Distribución de energía eléctrica ","221114, Generación de electricidad a partir de energía eólica","Emisiones para la generación de energía: kgCO2 e/MWh"]
["Generación, transmisión, distribución y comercialización de energía eléctrica, suministro de agua al consumidor final"," 221122. Distribución de energía eléctrica ","221119, Generación de electricidad a partir de otro tipo de energía","Emisiones para la generación de energía: kgCO2 e/MWh"]
["Generación, transmisión, distribución y comercialización de energía eléctrica, suministro de agua al consumidor final"," 221122. Distribución de energía eléctrica ","221121, Transmisión de energía eléctrica","Emisiones para la generación de energía: kgCO2 e/MWh"]
["Generación, transmisión, distribución y comercialización de energía eléctrica, suministro de agua al consumidor final"," 221122. Distribución de energía eléctrica ","221123, Comercialización de energía eléctrica","Emisiones para la generación de energía: kgCO2 e/MWh"]
["Generación, transmisión, distribución y comercialización de energía eléctrica, suministro de agua al consumidor final"," 221312. Captación, tratamiento y suministro de agua realizados por el sector público (construcción, ampliación y explotación de sistemas centralizados de aguas residuales) ","312112, Purificación y embotellado de agua","kWh por equivalente habitante al año"]
["Generación, transmisión, distribución y comercialización de energía eléctrica, suministro de agua al consumidor final"," 221312. Captación, tratamiento y suministro de agua realizados por el sector público (construcción, ampliación y explotación de sistemas centralizados de aguas residuales) ","562212, Tratamiento y disposición final de residuos peligrosos por el sector público","kWh por equivalente habitante al año"]
["Generación, transmisión, distribución y comercialización de energía eléctrica, suministro de agua al consumidor final"," 221312. Captación, tratamiento y suministro de agua realizados por el sector público (construcción, ampliación y explotación de sistemas centralizados de aguas residuales) ","562912, Servicios de remediación de residuos por el sector público","kWh por equivalente habitante al año"]
["Generación, transmisión, distribución y comercialización de energía eléctrica, suministro de agua al consumidor final"," 221312. Captación, tratamiento y suministro de agua realizados por el sector público (construcción, ampliación y explotación de sistemas centralizados de aguas residuales) ","562999, Otros servicios de manejo de residuos por el sector público","kWh por equivalente habitante al año"]
["Generación, transmisión, distribución y comercialización de energía eléctrica, suministro de agua al consumidor final"," 221312. Captación, tratamiento y suministro de agua realizados por el sector público (construcción, ampliación y explotación de sistemas centralizados de aguas residuales) ","931510, Regulación y fomento de actividades para mejorar y preservar el medio ambiente","kWh por equivalente habitante al año"]
["Generación, transmisión, distribución y comercialización de energía eléctrica, suministro de agua al consumidor final"," 221312. Captación, tratamiento y suministro de agua realizados por el sector público (renovación de sistemas centralizados de aguas residuales","312112, Purificación y embotellado de agua","kWh por equivalente habitante al año"]
["Generación, transmisión, distribución y comercialización de energía eléctrica, suministro de agua al consumidor final"," 221312. Captación, tratamiento y suministro de agua realizados por el sector público (renovación de sistemas centralizados de aguas residuales","562212, Tratamiento y disposición final de residuos peligrosos por el sector público","kWh por equivalente habitante al año"]
["Generación, transmisión, distribución y comercialización de energía eléctrica, suministro de agua al consumidor final"," 221312. Captación, tratamiento y suministro de agua realizados por el sector público (renovación de sistemas centralizados de aguas residuales","562912, Servicios de remediación de residuos por el sector público","kWh por equivalente habitante al año"]
["Generación, transmisión, distribución y comercialización de energía eléctrica, suministro de agua al consumidor final"," 221312. Captación, tratamiento y suministro de agua realizados por el sector público (renovación de sistemas centralizados de aguas residuales","562999, Otros servicios de manejo de residuos por el sector público","kWh por equivalente habitante al año"]
["Generación, transmisión, distribución y comercialización de energía eléctrica, suministro de agua al consumidor final"," 221312. Captación, tratamiento y suministro de agua realizados por el sector público (renovación de sistemas centralizados de aguas residuales","931510, Regulación y fomento de actividades para mejorar y preservar el medio ambiente","kWh por equivalente habitante al año"]
["Generación, transmisión, distribución y comercialización de energía eléctrica, suministro de agua al consumidor final"," 221311. Captación, tratamiento y suministro de agua realizados por el sector privado (construcción, ampliación y explotación de sistemas de captación, depuración y distribución de agua) ","312112, Purificación y embotellado de agua","kWh por metro cúbico de agua suministrada"]
["Generación, transmisión, distribución y comercialización de energía eléctrica, suministro de agua al consumidor final"," 221311. Captación, tratamiento y suministro de agua realizados por el sector privado (construcción, ampliación y explotación de sistemas de captación, depuración y distribución de agua) ","562211, Tratamiento y disposición final de residuos peligrosos por el sector privado","kWh por metro cúbico de agua suministrada"]
["Generación, transmisión, distribución y comercialización de energía eléctrica, suministro de agua al consumidor final"," 221311. Captación, tratamiento y suministro de agua realizados por el sector privado (construcción, ampliación y explotación de sistemas de captación, depuración y distribución de agua) ","562911, Servicios de remediación de residuos por el sector privado","kWh por metro cúbico de agua suministrada"]
["Generación, transmisión, distribución y comercialización de energía eléctrica, suministro de agua al consumidor final"," 221311. Captación, tratamiento y suministro de agua realizados por el sector privado (construcción, ampliación y explotación de sistemas de captación, depuración y distribución de agua) ","562998, Otros servicios de manejo de residuos por el sector privado","kWh por metro cúbico de agua suministrada"]
["Generación, transmisión, distribución y comercialización de energía eléctrica, suministro de agua al consumidor final"," 221311. Captación, tratamiento y suministro de agua realizados por el sector privado (construcción, ampliación y explotación de sistemas de captación, depuración y distribución de agua) ","931510, Regulación y fomento de actividades para mejorar y preservar el medio ambiente","kWh por metro cúbico de agua suministrada"]
["Generación, transmisión, distribución y comercialización de energía eléctrica, suministro de agua al consumidor final"," 221311. Captación, tratamiento y suministro de agua realizados por el sector privado (renovación de sistemas de captación, depuración y distribución de agua) ","312112, Purificación y embotellado de agua","Porcentaje % de consumo neto de energía"]
["Generación, transmisión, distribución y comercialización de energía eléctrica, suministro de agua al consumidor final"," 221311. Captación, tratamiento y suministro de agua realizados por el sector privado (renovación de sistemas de captación, depuración y distribución de agua) ","562211, Tratamiento y disposición final de residuos peligrosos por el sector privado","Porcentaje % de consumo neto de energía"]
["Generación, transmisión, distribución y comercialización de energía eléctrica, suministro de agua al consumidor final"," 221311. Captación, tratamiento y suministro de agua realizados por el sector privado (renovación de sistemas de captación, depuración y distribución de agua) ","562911, Servicios de remediación de residuos por el sector privado","Porcentaje % de consumo neto de energía"]
["Generación, transmisión, distribución y comercialización de energía eléctrica, suministro de agua al consumidor final"," 221311. Captación, tratamiento y suministro de agua realizados por el sector privado (renovación de sistemas de captación, depuración y distribución de agua) ","562998, Otros servicios de manejo de residuos por el sector privado","Porcentaje % de consumo neto de energía"]
["Generación, transmisión, distribución y comercialización de energía eléctrica, suministro de agua al consumidor final"," 221311. Captación, tratamiento y suministro de agua realizados por el sector privado (renovación de sistemas de captación, depuración y distribución de agua) ","931510, Regulación y fomento de actividades para mejorar y preservar el medio ambiente","Porcentaje % de consumo neto de energía"]
["Generación, transmisión, distribución y comercialización de energía eléctrica, suministro de agua al consumidor final"," 221312. Captación, tratamiento y suministro de agua realizados por el sector público (construcción, ampliación y explotación de sistemas de captación, depuración y distribución de agua) ","312112, Purificación y embotellado de agua","kWh por metro cúbico de agua suministrada"]
["Generación, transmisión, distribución y comercialización de energía eléctrica, suministro de agua al consumidor final"," 221312. Captación, tratamiento y suministro de agua realizados por el sector público (construcción, ampliación y explotación de sistemas de captación, depuración y distribución de agua) ","562212, Tratamiento y disposición final de residuos peligrosos por el sector público","kWh por metro cúbico de agua suministrada"]
["Generación, transmisión, distribución y comercialización de energía eléctrica, suministro de agua al consumidor final"," 221312. Captación, tratamiento y suministro de agua realizados por el sector público (construcción, ampliación y explotación de sistemas de captación, depuración y distribución de agua) ","562912, Servicios de remediación de residuos por el sector público","kWh por metro cúbico de agua suministrada"]
["Generación, transmisión, distribución y comercialización de energía eléctrica, suministro de agua al consumidor final"," 221312. Captación, tratamiento y suministro de agua realizados por el sector público (construcción, ampliación y explotación de sistemas de captación, depuración y distribución de agua) ","562999, Otros servicios de manejo de residuos por el sector público","kWh por metro cúbico de agua suministrada"]
["Generación, transmisión, distribución y comercialización de energía eléctrica, suministro de agua al consumidor final"," 221312. Captación, tratamiento y suministro de agua realizados por el sector público (construcción, ampliación y explotación de sistemas de captación, depuración y distribución de agua) ","931510, Regulación y fomento de actividades para mejorar y preservar el medio ambiente","kWh por metro cúbico de agua suministrada"]
["Construcción"," 236111. Edificación de vivienda unifamiliar (construcción de vivienda nueva) ","236113, Supervisión de edificación residencial","Demanda de energía primaria (DEP) expresada en kWh/m2 por año"]
["Construcción"," 236111. Edificación de vivienda unifamiliar (construcción de vivienda nueva) ","237211, División de terrenos","Demanda de energía primaria (DEP) expresada en kWh/m2 por año"]
["Construcción"," 236111. Edificación de vivienda unifamiliar (construcción de vivienda nueva) ","237212, Construcción de obras de urbanización","Demanda de energía primaria (DEP) expresada en kWh/m2 por año"]
["Construcción"," 236111. Edificación de vivienda unifamiliar (construcción de vivienda nueva) ","238, Trabajos especializados para la construcción","Demanda de energía primaria (DEP) expresada en kWh/m2 por año"]
["Construcción"," 236111. Edificación de vivienda unifamiliar (construcción de vivienda nueva) ","321999, Fabricación de otros productos de madera","Demanda de energía primaria (DEP) expresada en kWh/m2 por año"]
["Construcción"," 236111. Edificación de vivienda unifamiliar (construcción de vivienda nueva) ","531210, Inmobiliarias y corredores de bienes raíces","Demanda de energía primaria (DEP) expresada en kWh/m2 por año"]
["Construcción"," 236111. Edificación de vivienda unifamiliar (construcción de vivienda nueva) ","5413, Servicios de arquitectura, ingeniería y actividades relacionadas","Demanda de energía primaria (DEP) expresada en kWh/m2 por año"]
["Construcción"," 236111. Edificación de vivienda unifamiliar (renovación de vivienda existente) ","236113, Supervisión de edificación residencial","Demanda de energía primaria expresada en kWh/m2 por año"]
["Construcción"," 236111. Edificación de vivienda unifamiliar (renovación de vivienda existente) ","237211, División de terrenos","Demanda de energía primaria expresada en kWh/m2 por año"]
["Construcción"," 236111. Edificación de vivienda unifamiliar (renovación de vivienda existente) ","237212, Construcción de obras de urbanización","Demanda de energía primaria expresada en kWh/m2 por año"]
["Construcción"," 236111. Edificación de vivienda unifamiliar (renovación de vivienda existente) ","238, Trabajos especializados para la construcción","Demanda de energía primaria expresada en kWh/m2 por año"]
["Construcción"," 236111. Edificación de vivienda unifamiliar (renovación de vivienda existente) ","321999, Fabricación de otros productos de madera","Demanda de energía primaria expresada en kWh/m2 por año"]
["Construcción"," 236111. Edificación de vivienda unifamiliar (renovación de vivienda existente) ","531210, Inmobiliarias y corredores de bienes raíces","Demanda de energía primaria expresada en kWh/m2 por año"]
["Construcción"," 236111. Edificación de vivienda unifamiliar (renovación de vivienda existente) ","5413, Servicios de arquitectura, ingeniería y actividades relacionadas","Demanda de energía primaria expresada en kWh/m2 por año"]
["Construcción"," 236112. Edificación de vivienda multifamiliar (construcción de vivienda nueva) ","236113, Supervisión de edificación residencial","Demanda de energía primaria (DEP) expresada en kWh/m2 por año"]
["Construcción"," 236112. Edificación de vivienda multifamiliar (construcción de vivienda nueva) ","237211, División de terrenos","Demanda de energía primaria (DEP) expresada en kWh/m2 por año"]
["Construcción"," 236112. Edificación de vivienda multifamiliar (construcción de vivienda nueva) ","237212, Construcción de obras de urbanización","Demanda de energía primaria (DEP) expresada en kWh/m2 por año"]
["Construcción"," 236112. Edificación de vivienda multifamiliar (construcción de vivienda nueva) ","238, Trabajos especializados para la construcción","Demanda de energía primaria (DEP) expresada en kWh/m2 por año"]
["Construcción"," 236112. Edificación de vivienda multifamiliar (construcción de vivienda nueva) ","321999, Fabricación de otros productos de madera","Demanda de energía primaria (DEP) expresada en kWh/m2 por año"]
["Construcción"," 236112. Edificación de vivienda multifamiliar (construcción de vivienda nueva) ","531210, Inmobiliarias y corredores de bienes raíces","Demanda de energía primaria (DEP) expresada en kWh/m2 por año"]
["Construcción"," 236112. Edificación de vivienda multifamiliar (construcción de vivienda nueva) ","5413, Servicios de arquitectura, ingeniería y actividades relacionadas","Demanda de energía primaria (DEP) expresada en kWh/m2 por año"]
["Construcción"," 236112. Edificación de vivienda multifamiliar (renovación de vivienda existente) ","236113, Supervisión de edificación residencial","Demanda de energía primaria (DEP) expresada en kWh/m2 por año"]
["Construcción"," 236112. Edificación de vivienda multifamiliar (renovación de vivienda existente) ","237211, División de terrenos","Demanda de energía primaria (DEP) expresada en kWh/m2 por año"]
["Construcción"," 236112. Edificación de vivienda multifamiliar (renovación de vivienda existente) ","237212, Construcción de obras de urbanización","Demanda de energía primaria (DEP) expresada en kWh/m2 por año"]
["Construcción"," 236112. Edificación de vivienda multifamiliar (renovación de vivienda existente) ","238, Trabajos especializados para la construcción","Demanda de energía primaria (DEP) expresada en kWh/m2 por año"]
["Construcción"," 236112. Edificación de vivienda multifamiliar (renovación de vivienda existente) ","321999, Fabricación de otros productos de madera","Demanda de energía primaria (DEP) expresada en kWh/m2 por año"]
["Construcción"," 236112. Edificación de vivienda multifamiliar (renovación de vivienda existente) ","531210, Inmobiliarias y corredores de bienes raíces","Demanda de energía primaria (DEP) expresada en kWh/m2 por año"]
["Construcción"," 236112. Edificación de vivienda multifamiliar (renovación de vivienda existente) ","5413, Servicios de arquitectura, ingeniería y actividades relacionadas","Demanda de energía primaria (DEP) expresada en kWh/m2 por año"]
["Construcción"," 236211. Edificación de naves y plantas industriales, excepto la supervisión ","236212, Supervisión de edificación de naves y plantas industriales","Demanda de energía primaria (DEP) expresada en kWh/m2 por año."]
["Construcción"," 236211. Edificación de naves y plantas industriales, excepto la supervisión ","237122, Construcción de plantas de refinería y petroquímica","Demanda de energía primaria (DEP) expresada en kWh/m2 por año."]
["Construcción"," 236211. Edificación de naves y plantas industriales, excepto la supervisión ","531210, Inmobiliarias y corredores de bienes raíces","Demanda de energía primaria (DEP) expresada en kWh/m2 por año."]
["Construcción"," 236211. Edificación de naves y plantas industriales, excepto la supervisión ","5413, Servicios de arquitectura, ingeniería y actividades relacionadas","Demanda de energía primaria (DEP) expresada en kWh/m2 por año."]
["Construcción"," 236221. Edificación de inmuebles comerciales y de servicios, excepto la supervisión (construcción de nuevos inmuebles) ","236222, Supervisión de edificación de inmuebles comerciales y de servicios","Demanda de energía primaria expresada en kWh/m2 por año"]
["Construcción"," 236221. Edificación de inmuebles comerciales y de servicios, excepto la supervisión (construcción de nuevos inmuebles) ","237999, Otras construcciones de ingeniería civil","Demanda de energía primaria expresada en kWh/m2 por año"]
["Construcción"," 236221. Edificación de inmuebles comerciales y de servicios, excepto la supervisión (construcción de nuevos inmuebles) ","238, Trabajos especializados para la construcción","Demanda de energía primaria expresada en kWh/m2 por año"]
["Construcción"," 236221. Edificación de inmuebles comerciales y de servicios, excepto la supervisión (construcción de nuevos inmuebles) ","238990, Otros trabajos especializados para la construcción","Demanda de energía primaria expresada en kWh/m2 por año"]
["Construcción"," 236221. Edificación de inmuebles comerciales y de servicios, excepto la supervisión (construcción de nuevos inmuebles) ","531210, Inmobiliarias y corredores de bienes raíces","Demanda de energía primaria expresada en kWh/m2 por año"]
["Construcción"," 236221. Edificación de inmuebles comerciales y de servicios, excepto la supervisión (construcción de nuevos inmuebles) ","5413, Servicios de arquitectura, ingeniería y actividades relacionadas","Demanda de energía primaria expresada en kWh/m2 por año"]
["Construcción"," 236221. Edificación de inmuebles comerciales y de servicios, excepto la supervisión (renovación de inmuebles) ","236222, Supervisión de edificación de inmuebles comerciales y de servicios","Demanda de energía primaria expresada en kWh/m2 por año"]
["Construcción"," 236221. Edificación de inmuebles comerciales y de servicios, excepto la supervisión (renovación de inmuebles) ","237999, Otras construcciones de ingeniería civil","Demanda de energía primaria expresada en kWh/m2 por año"]
["Construcción"," 236221. Edificación de inmuebles comerciales y de servicios, excepto la supervisión (renovación de inmuebles) ","238, Trabajos especializados para la construcción","Demanda de energía primaria expresada en kWh/m2 por año"]
["Construcción"," 236221. Edificación de inmuebles comerciales y de servicios, excepto la supervisión (renovación de inmuebles) ","238990, Otros trabajos especializados para la construcción","Demanda de energía primaria expresada en kWh/m2 por año"]
["Construcción"," 236221. Edificación de inmuebles comerciales y de servicios, excepto la supervisión (renovación de inmuebles) ","531210, Inmobiliarias y corredores de bienes raíces","Demanda de energía primaria expresada en kWh/m2 por año"]
["Construcción"," 236221. Edificación de inmuebles comerciales y de servicios, excepto la supervisión (renovación de inmuebles) ","5413, Servicios de arquitectura, ingeniería y actividades relacionadas","Demanda de energía primaria expresada en kWh/m2 por año"]
["Construcción"," 237312. Construcción de carreteras, puentes y similares ","237211, División de terrenos","Emisiones directas definidos en la actividad correspondiente toneladakilómetro (gCO2 e/tkm) o emisiones de CO2 e por pasajero-kilómetro (gCO2 e/pkm"]
["Construcción"," 237312. Construcción de carreteras, puentes y similares ","237212, Construcción de obras de urbanización","Emisiones directas definidos en la actividad correspondiente toneladakilómetro (gCO2 e/tkm) o emisiones de CO2 e por pasajero-kilómetro (gCO2 e/pkm"]
["Construcción"," 237312. Construcción de carreteras, puentes y similares ","237313, Supervisión de construcción de vías de comunicación","Emisiones directas definidos en la actividad correspondiente toneladakilómetro (gCO2 e/tkm) o emisiones de CO2 e por pasajero-kilómetro (gCO2 e/pkm"]
["Construcción"," 237312. Construcción de carreteras, puentes y similares ","237993, Construcción de obras para transporte eléctrico y ferroviario","Emisiones directas definidos en la actividad correspondiente toneladakilómetro (gCO2 e/tkm) o emisiones de CO2 e por pasajero-kilómetro (gCO2 e/pkm"]
["Construcción"," 237312. Construcción de carreteras, puentes y similares ","237131, Construcción de obras de generación y conducción de energía eléctrica","Emisiones directas definidos en la actividad correspondiente toneladakilómetro (gCO2 e/tkm) o emisiones de CO2 e por pasajero-kilómetro (gCO2 e/pkm"]
["Construcción"," 237312. Construcción de carreteras, puentes y similares ","237311, Instalación de señalamientos y protecciones en obras viales","Emisiones directas definidos en la actividad correspondiente toneladakilómetro (gCO2 e/tkm) o emisiones de CO2 e por pasajero-kilómetro (gCO2 e/pkm"]
["Construcción"," 237312. Construcción de carreteras, puentes y similares ","(237994, Supervisión de construcción de otras obras de ingeniería civil","Emisiones directas definidos en la actividad correspondiente toneladakilómetro (gCO2 e/tkm) o emisiones de CO2 e por pasajero-kilómetro (gCO2 e/pkm"]
["Construcción"," 237312. Construcción de carreteras, puentes y similares ","5413, Servicios de arquitectura, ingeniería y actividades relacionadas","Emisiones directas definidos en la actividad correspondiente toneladakilómetro (gCO2 e/tkm) o emisiones de CO2 e por pasajero-kilómetro (gCO2 e/pkm"]
["Construcción"," 238222. Instalaciones de sistemas de aire acondicionado y calefacción ","433510, Comercio al por mayor de electrodomésticos menores y aparatos de línea blanca","Eficiencias expresadas en: (Wt/We) o BTU/Wh"]
["Construcción"," 238222. Instalaciones de sistemas de aire acondicionado y calefacción ","466112, Comercio al por menor de electrodomésticos menores y aparatos de línea blanca","Eficiencias expresadas en: (Wt/We) o BTU/Wh"]
["Construcción"," 238222. Instalaciones de sistemas de aire acondicionado y calefacción ","561790, Otros servicios de limpieza","Eficiencias expresadas en: (Wt/We) o BTU/Wh"]
["Construcción"," 238222. Instalaciones de sistemas de aire acondicionado y calefacción ","811410, Reparación y mantenimiento de aparatos eléctricos para el hogar y personales","Eficiencias expresadas en: (Wt/We) o BTU/Wh"]
["Construcción","237993,Construcción de obras para transporte eléctrico y ferroviario","237131, Construcción de obras de generación y conducción de energía eléctrica","Emisiones directas definidos en la actividad correspondiente toneladakilómetro (gCO2 e/tkm) o emisiones de CO2e por pasajero-kilómetro (gCO 2 e/pkm)."]
["Construcción","237993,Construcción de obras para transporte eléctrico y ferroviario","237311, Instalación de señalamientos y protecciones en obras viales","Emisiones directas definidos en la actividad correspondiente toneladakilómetro (gCO2 e/tkm) o emisiones de CO2e por pasajero-kilómetro (gCO 2 e/pkm)."]
["Construcción","237993,Construcción de obras para transporte eléctrico y ferroviario","237994, Supervisión de construcción de otras obras de ingeniería civil","Emisiones directas definidos en la actividad correspondiente toneladakilómetro (gCO2 e/tkm) o emisiones de CO2e por pasajero-kilómetro (gCO 2 e/pkm)."]
["Construcción","237993,Construcción de obras para transporte eléctrico y ferroviario","5413, Servicios de arquitectura, ingeniería y actividades relacionadas","Emisiones directas definidos en la actividad correspondiente toneladakilómetro (gCO2 e/tkm) o emisiones de CO2e por pasajero-kilómetro (gCO 2 e/pkm)."]
["Industrias Manufactureras"," 325120. Fabricación de gases industriales ","312113, Elaboración de hielo","Emisiones de GEI expresadas en tCO2e/t"]
["Industrias Manufactureras"," 325120. Fabricación de gases industriales ","325180, Fabricación de otros productos químicos básicos inorgánicos","Emisiones de GEI expresadas en tCO2e/t"]
["Industrias Manufactureras"," 325180. Fabricación de otros productos químicos básicos inorgánicos ","N/A","Emisiones de GEI expresadas en tCO2e/t"]
["Industrias Manufactureras"," 325190. Fabricación de otros productos químicos básicos orgánicos","311930, Elaboración de concentrados, polvos, jarabes y esencias de sabor para bebidas","Emisiones de GEI por unidad de producción expresadas en tCO2e/t"]
["Industrias Manufactureras"," 325190. Fabricación de otros productos químicos básicos orgánicos","312143, Obtención de alcohol etílico potable","Emisiones de GEI por unidad de producción expresadas en tCO2e/t"]
["Industrias Manufactureras"," 325190. Fabricación de otros productos químicos básicos orgánicos","325110, Fabricación de petroquímicos básicos del gas natural y del petróleo refinado","Emisiones de GEI por unidad de producción expresadas en tCO2e/t"]
["Industrias Manufactureras"," 325190. Fabricación de otros productos químicos básicos orgánicos","325130, Fabricación de pigmentos y colorantes sintéticos","Emisiones de GEI por unidad de producción expresadas en tCO2e/t"]
["Industrias Manufactureras"," 325190. Fabricación de otros productos químicos básicos orgánicos","325411, Fabricación de materias primas para la industria farmacéutica","Emisiones de GEI por unidad de producción expresadas en tCO2e/t"]
["Industrias Manufactureras"," 325190. Fabricación de otros productos químicos básicos orgánicos","325999, Fabricación de otros productos químicos","Emisiones de GEI por unidad de producción expresadas en tCO2e/t"]
["Industrias Manufactureras"," 327310. Fabricación de cemento y productos a base de cemento en plantas integradas ","327320, Fabricación de concreto","Emisiones de GEI por unidad de producción expresadas en tCO2e/t"]
["Industrias Manufactureras"," 327310. Fabricación de cemento y productos a base de cemento en plantas integradas ","327330, Fabricación de tubos y bloques de cemento y concreto","Emisiones de GEI por unidad de producción expresadas en tCO2e/t"]
["Industrias Manufactureras"," 327310. Fabricación de cemento y productos a base de cemento en plantas integradas ","327391, Fabricación de productos preesforzados de concreto","Emisiones de GEI por unidad de producción expresadas en tCO2e/t"]
["Industrias Manufactureras"," 331111. Complejos siderúrgicos ","212110, Minería de carbón mineral","Emisiones de GEI por unidad de producción expresadas en tCO2e/ por producto"]
["Industrias Manufactureras"," 331111. Complejos siderúrgicos ","212210, Minería de hierro","Emisiones de GEI por unidad de producción expresadas en tCO2e/ por producto"]
["Industrias Manufactureras"," 331111. Complejos siderúrgicos ","324199, Fabricación de coque y otros productos derivados del petróleo refinado y del carbón mineral","Emisiones de GEI por unidad de producción expresadas en tCO2e/ por producto"]
["Industrias Manufactureras"," 331111. Complejos siderúrgicos ","331210, Fabricación de tubos y postes de hierro y acero","Emisiones de GEI por unidad de producción expresadas en tCO2e/ por producto"]
["Industrias Manufactureras"," 331111. Complejos siderúrgicos ","331220, Fabricación de otros productos de hierro y acero","Emisiones de GEI por unidad de producción expresadas en tCO2e/ por producto"]
["Industrias Manufactureras"," 331310. Industria básica del aluminio ","331520, Moldeo por fundición de piezas metálicas no ferrosas","Emisiones de GEI expresadas en tCO2e/t."]
["Transporte"," 482110. Transporte por ferrocarril (transporte de mercancías) ","485113, Transporte colectivo urbano y suburbano de pasajeros en trolebuses y trenes ligeros","Emisiones directas por tonelada-km (gCO2e/tkm)"]
["Transporte"," 482110. Transporte por ferrocarril (transporte de mercancías) ","485114, Transporte colectivo urbano y suburbano de pasajeros en metro","Emisiones directas por tonelada-km (gCO2e/tkm)"]
["Transporte"," 482110. Transporte por ferrocarril (transporte de mercancías) ","487110, Transporte turístico por tierra","Emisiones directas por tonelada-km (gCO2e/tkm)"]
["Transporte"," 482110. Transporte por ferrocarril (transporte de mercancías) ","488210, Servicios relacionados con el transporte por ferrocarril","Emisiones directas por tonelada-km (gCO2e/tkm)"]
["Transporte"," 482110. Transporte por ferrocarril (transporte de pasajeros) ","485113, Transporte colectivo urbano y suburbano de pasajeros en trolebuses y trenes ligeros","Emisiones de CO2 e por pasajero-kilómetro (gCO2 e/pkm)"]
["Transporte"," 482110. Transporte por ferrocarril (transporte de pasajeros) ","485114, Transporte colectivo urbano y suburbano de pasajeros en metro","Emisiones de CO2 e por pasajero-kilómetro (gCO2 e/pkm)"]
["Transporte"," 482110. Transporte por ferrocarril (transporte de pasajeros) ","487110, Transporte turístico por tierra","Emisiones de CO2 e por pasajero-kilómetro (gCO2 e/pkm)"]
["Transporte"," 482110. Transporte por ferrocarril (transporte de pasajeros) ","488210, Servicios relacionados con el transporte por ferrocarril","Emisiones de CO2 e por pasajero-kilómetro (gCO2 e/pkm)"]
["Transporte"," 483210. Transporte por aguas interiores (transporte de mercancías) ","48311, Transporte marítimo","Emisiones de CO2 e por tkm de CO2 e por tonelada-kilómetro (gCO2e/tkm), o por tonelada-milla náutica (gCO2e/tnm)."]
["Transporte"," 483210. Transporte por aguas interiores (transporte de mercancías) ","487210, Transporte turístico por agua","Emisiones de CO2 e por tkm de CO2 e por tonelada-kilómetro (gCO2e/tkm), o por tonelada-milla náutica (gCO2e/tnm)."]
["Transporte"," 483210. Transporte por aguas interiores (transporte de mercancías) ","713998, Otros servicios recreativos prestados por el sector privado","Emisiones de CO2 e por tkm de CO2 e por tonelada-kilómetro (gCO2e/tkm), o por tonelada-milla náutica (gCO2e/tnm)."]
["Transporte"," 483210. Transporte por aguas interiores (transporte de pasajeros) ","48311, Transporte marítimo","Emisiones de CO2e por pasajero-kilómetro (gCO2e/pkm), o por pasajero milla náutica (gCO2e/pnm)."]
["Transporte"," 483210. Transporte por aguas interiores (transporte de pasajeros) ","487210, Transporte turístico por agua","Emisiones de CO2e por pasajero-kilómetro (gCO2e/pkm), o por pasajero milla náutica (gCO2e/pnm)."]
["Transporte"," 483210. Transporte por aguas interiores (transporte de pasajeros) ","713998, Otros servicios recreativos prestados por el sector privado","Emisiones de CO2e por pasajero-kilómetro (gCO2e/pkm), o por pasajero milla náutica (gCO2e/pnm)."]
["Transporte"," 484231. Autotransporte foráneo de materiales para la construcción ","4841, Autotransporte de carga general","Emisiones de CO2 por vehículo kilómetro (gCO2 /km)"]
["Transporte"," 484231. Autotransporte foráneo de materiales para la construcción ","484234, Autotransporte foráneo de madera","Emisiones de CO2 por vehículo kilómetro (gCO2 /km)"]
["Transporte"," 484231. Autotransporte foráneo de materiales para la construcción ","484239, Otro autotransporte foráneo de carga especializado","Emisiones de CO2 por vehículo kilómetro (gCO2 /km)"]
["Transporte"," 484232. Autotransporte foráneo de materiales y residuos peligrosos ","484239, Otro autotransporte foráneo de carga especializado","Emisiones de CO2 por vehículo kilómetro (gCO2 /km)"]
["Transporte"," 484232. Autotransporte foráneo de materiales y residuos peligrosos ","562, Manejo de residuos y servicios de remediación","Emisiones de CO2 por vehículo kilómetro (gCO2 /km)"]
["Transporte"," 484233. Autotransporte foráneo con refrigeración ","4841, Autotransporte de carga general","Emisiones de CO2 por vehículo kilómetro (gCO2 /km)"]
["Transporte"," 484233. Autotransporte foráneo con refrigeración ","484232, Autotransporte foráneo de materiales y residuos peligrosos","Emisiones de CO2 por vehículo kilómetro (gCO2 /km)"]
["Transporte"," 484233. Autotransporte foráneo con refrigeración ","484239, Otro autotransporte foráneo de carga especializado","Emisiones de CO2 por vehículo kilómetro (gCO2 /km)"]
["Transporte"," 484234. Autotransporte foráneo de madera ","4841, Autotransporte de carga general","Emisiones de CO2 por vehículo kilómetro (gCO2 /km)"]
["Transporte"," 484234. Autotransporte foráneo de madera ","484231, Autotransporte foráneo de materiales para la construcción","Emisiones de CO2 por vehículo kilómetro (gCO2 /km)"]
["Transporte"," 484234. Autotransporte foráneo de madera ","484239, Otro autotransporte foráneo de carga especializado","Emisiones de CO2 por vehículo kilómetro (gCO2 /km)"]
["Transporte"," 484239. Otro autotransporte foráneo de carga especializado ","4841, Autotransporte de carga general","Emisiones de CO2 por vehículo kilómetro (gCO2 /km)"]
["Transporte"," 484239. Otro autotransporte foráneo de carga especializado ","484210, Servicios de mudanzas","Emisiones de CO2 por vehículo kilómetro (gCO2 /km)"]
["Transporte"," 484239. Otro autotransporte foráneo de carga especializado ","484231, Autotransporte foráneo de materiales para la construcción","Emisiones de CO2 por vehículo kilómetro (gCO2 /km)"]
["Transporte"," 484239. Otro autotransporte foráneo de carga especializado ","484232, Autotransporte foráneo de materiales y residuos peligrosos","Emisiones de CO2 por vehículo kilómetro (gCO2 /km)"]
["Transporte"," 484239. Otro autotransporte foráneo de carga especializado ","484233, Autotransporte foráneo con refrigeración","Emisiones de CO2 por vehículo kilómetro (gCO2 /km)"]
["Transporte"," 484239. Otro autotransporte foráneo de carga especializado ","484234, Autotransporte foráneo de madera","Emisiones de CO2 por vehículo kilómetro (gCO2 /km)"]
["Transporte"," 484239. Otro autotransporte foráneo de carga especializado ","562, Manejo de residuos y servicios de remediación","Emisiones de CO2 por vehículo kilómetro (gCO2 /km)"]
["Transporte"," 485111. Transporte colectivo urbano y suburbano de pasajeros en autobuses de ruta fija (corredor de transporte)","485112, Transporte colectivo urbano y suburbano de pasajeros en automóviles de ruta fija","Emisiones de CO2 e por pasajero-kilómetro (gCO2e/pkm)"]
["Transporte"," 485111. Transporte colectivo urbano y suburbano de pasajeros en autobuses de ruta fija (corredor de transporte)","485115, Transporte colectivo urbano y suburbano de pasajeros en autobuses que transitan en carril exclusivo","Emisiones de CO2 e por pasajero-kilómetro (gCO2e/pkm)"]
["Transporte"," 485111. Transporte colectivo urbano y suburbano de pasajeros en autobuses de ruta fija (corredor de transporte)","485210, Transporte colectivo foráneo de pasajeros de ruta fija","Emisiones de CO2 e por pasajero-kilómetro (gCO2e/pkm)"]
["Transporte"," 485111. Transporte colectivo urbano y suburbano de pasajeros en autobuses de ruta fija (corredor de transporte)","48531, Servicio de taxis","Emisiones de CO2 e por pasajero-kilómetro (gCO2e/pkm)"]
["Transporte"," 485113. Transporte colectivo urbano y suburbano de pasajeros en trolebuses y trenes ligeros ","482110, Transporte por ferrocarril","Emisiones de CO2 e por pasajero-kilómetro (gCO2e/pkm)"]
["Transporte"," 485113. Transporte colectivo urbano y suburbano de pasajeros en trolebuses y trenes ligeros ","485114, Transporte colectivo urbano y suburbano de pasajeros en metro","Emisiones de CO2 e por pasajero-kilómetro (gCO2e/pkm)"]
["Transporte"," 485113. Transporte colectivo urbano y suburbano de pasajeros en trolebuses y trenes ligeros ","487990, Otro transporte turístico","Emisiones de CO2 e por pasajero-kilómetro (gCO2e/pkm)"]
["Transporte"," 485114. Transporte colectivo urbano y suburbano de pasajeros en metro ","482110, Transporte por ferrocarril","Emisiones de CO2 e por pasajero-kilómetro (gCO2e/pkm)"]
["Transporte"," 485114. Transporte colectivo urbano y suburbano de pasajeros en metro ","485113, Transporte colectivo urbano y suburbano de pasajeros en trolebuses y trenes ligeros","Emisiones de CO2 e por pasajero-kilómetro (gCO2e/pkm)"]
["Transporte"," 485115. Transporte colectivo urbano y suburbano de pasajeros en autobuses que transitan en carril exclusivo (BRT) ","485111, Transporte colectivo urbano y suburbano de pasajeros en autobuses de ruta fija","Emisiones de CO2 e por pasajero-kilómetro (gCO2e/pkm)"]
["Transporte"," 485115. Transporte colectivo urbano y suburbano de pasajeros en autobuses que transitan en carril exclusivo (BRT) ","485210, Transporte colectivo foráneo de pasajeros de ruta fija","Emisiones de CO2 e por pasajero-kilómetro (gCO2e/pkm)"]
["Transporte"," 485115. Transporte colectivo urbano y suburbano de pasajeros en autobuses que transitan en carril exclusivo (BRT) ","48531, Servicio de taxis","Emisiones de CO2 e por pasajero-kilómetro (gCO2e/pkm)"]
["Transporte"," 485210. Transporte colectivo foráneo de pasajeros de ruta fija ","48511, Transporte colectivo urbano y suburbano de pasajeros de ruta fija","Emisiones de CO2 e por pasajero-kilómetro (gCO2e/pkm)"]
["Transporte"," 485210. Transporte colectivo foráneo de pasajeros de ruta fija ","485115, Transporte colectivo urbano y suburbano de pasajeros en autobuses que transitan en carril exclusivo","Emisiones de CO2 e por pasajero-kilómetro (gCO2e/pkm)"]
["Transporte"," 485210. Transporte colectivo foráneo de pasajeros de ruta fija ","48531, Servicio de taxis)","Emisiones de CO2 e por pasajero-kilómetro (gCO2e/pkm)"]
["Transporte"," 485210. Transporte colectivo foráneo de pasajeros de ruta fija ","485510, Alquiler de autobuses con chofer","Emisiones de CO2 e por pasajero-kilómetro (gCO2e/pkm)"]
["Transporte"," 485210. Transporte colectivo foráneo de pasajeros de ruta fija ","487110, Transporte turístico por tierra","Emisiones de CO2 e por pasajero-kilómetro (gCO2e/pkm)"]
["Transporte"," 485210. Transporte colectivo foráneo de pasajeros de ruta fija ","532110, Alquiler de automóviles sin chofer","Emisiones de CO2 e por pasajero-kilómetro (gCO2e/pkm)"]
["Transporte"," 485311 (2). Vehículos ligeros ","48511, Transporte colectivo urbano y suburbano de pasajeros de ruta fija","Emisiones de CO 2 por vehículo-kilómetro (gCO 2 e/km)."]
["Transporte"," 485311 (2). Vehículos ligeros ","48532, Alquiler de automóviles con chofer","Emisiones de CO 2 por vehículo-kilómetro (gCO 2 e/km)."]
["Transporte"," 485311 (2). Vehículos ligeros ","48599, Otro transporte terrestre de pasajeros","Emisiones de CO 2 por vehículo-kilómetro (gCO 2 e/km)."]
["Transporte"," 485311. Transporte de pasajeros en taxis de sitio ","48511, Transporte colectivo urbano y suburbano de pasajeros de ruta fija","Emisiones de CO 2 por vehículo-kilómetro (gCO 2 e/km)."]
["Transporte"," 485311. Transporte de pasajeros en taxis de sitio ","485312, Transporte de pasajeros en taxis de ruleteo","Emisiones de CO 2 por vehículo-kilómetro (gCO 2 e/km)."]
["Transporte"," 485311. Transporte de pasajeros en taxis de sitio ","485320, Alquiler de automóviles con chofer","Emisiones de CO 2 por vehículo-kilómetro (gCO 2 e/km)."]
["Transporte"," 485311. Transporte de pasajeros en taxis de sitio ","485990, Otro transporte terrestre de pasajeros","Emisiones de CO 2 por vehículo-kilómetro (gCO 2 e/km)."]
["Transporte"," 487110. Transporte turístico por tierra","482110, Transporte por ferrocarril","Emisiones de CO2 e por pasajero-kilómetro (gCO2e/pkm)"]
["Transporte"," 487110. Transporte turístico por tierra","485320, Alquiler de automóviles con chofer","Emisiones de CO2 e por pasajero-kilómetro (gCO2e/pkm)"]
["Transporte"," 487110. Transporte turístico por tierra","485510, Alquiler de autobuses con chofer","Emisiones de CO2 e por pasajero-kilómetro (gCO2e/pkm)"]
["Transporte"," 487110. Transporte turístico por tierra","485990, Otro transporte terrestre de pasajeros","Emisiones de CO2 e por pasajero-kilómetro (gCO2e/pkm)"]
["Transporte"," 487110. Transporte turístico por tierra","71399, Otros servicios recreativos","Emisiones de CO2 e por pasajero-kilómetro (gCO2e/pkm)"]
["Manejo de Residuos y Servicios de Remediación"," 562121. Recolección de residuos no peligrosos por el sector privado ","434311, Comercio al por mayor de desechos metálicos","Cantidad de RSU y RME gestionados Emisiones de CO2"]
["Manejo de Residuos y Servicios de Remediación"," 562121. Recolección de residuos no peligrosos por el sector privado ","434312, Comercio al por mayor de desechos de papel y de cartón","Cantidad de RSU y RME gestionados Emisiones de CO2"]
["Manejo de Residuos y Servicios de Remediación"," 562121. Recolección de residuos no peligrosos por el sector privado ","434313, Comercio al por mayor de desechos de vidrio","Cantidad de RSU y RME gestionados Emisiones de CO2"]
["Manejo de Residuos y Servicios de Remediación"," 562121. Recolección de residuos no peligrosos por el sector privado ","434314, Comercio al por mayor de desechos de plástico","Cantidad de RSU y RME gestionados Emisiones de CO2"]
["Manejo de Residuos y Servicios de Remediación"," 562121. Recolección de residuos no peligrosos por el sector privado ","434319, Comercio al por mayor de otros materiales de desecho","Cantidad de RSU y RME gestionados Emisiones de CO2"]
["Manejo de Residuos y Servicios de Remediación"," 562121. Recolección de residuos no peligrosos por el sector privado ","484229, Otro autotransporte local de carga especializado","Cantidad de RSU y RME gestionados Emisiones de CO2"]
["Manejo de Residuos y Servicios de Remediación"," 562121. Recolección de residuos no peligrosos por el sector privado ","484239, Otro autotransporte foráneo de carga especializado","Cantidad de RSU y RME gestionados Emisiones de CO2"]
["Manejo de Residuos y Servicios de Remediación"," 562121. Recolección de residuos no peligrosos por el sector privado ","562111, Recolección de residuos peligrosos por el sector privado","Cantidad de RSU y RME gestionados Emisiones de CO2"]
["Manejo de Residuos y Servicios de Remediación"," 562121. Recolección de residuos no peligrosos por el sector privado ","562921, Recuperación de residuos por el sector privado","Cantidad de RSU y RME gestionados Emisiones de CO2"]
["Manejo de Residuos y Servicios de Remediación"," 562122. Recolección de residuos no peligrosos por el sector público ","434311, Comercio al por mayor de desechos metálicos","Cantidad de RSU y RME gestionados Emisiones de CO2"]
["Manejo de Residuos y Servicios de Remediación"," 562122. Recolección de residuos no peligrosos por el sector público ","434312, Comercio al por mayor de desechos de papel y de cartón","Cantidad de RSU y RME gestionados Emisiones de CO2"]
["Manejo de Residuos y Servicios de Remediación"," 562122. Recolección de residuos no peligrosos por el sector público ","434313, Comercio al por mayor de desechos de vidrio","Cantidad de RSU y RME gestionados Emisiones de CO2"]
["Manejo de Residuos y Servicios de Remediación"," 562122. Recolección de residuos no peligrosos por el sector público ","434314, Comercio al por mayor de desechos de plástico","Cantidad de RSU y RME gestionados Emisiones de CO2"]
["Manejo de Residuos y Servicios de Remediación"," 562122. Recolección de residuos no peligrosos por el sector público ","434319, Comercio al por mayor de otros materiales de desecho","Cantidad de RSU y RME gestionados Emisiones de CO2"]
["Manejo de Residuos y Servicios de Remediación"," 562122. Recolección de residuos no peligrosos por el sector público ","484229, Otro autotransporte local de carga especializado","Cantidad de RSU y RME gestionados Emisiones de CO2"]
["Manejo de Residuos y Servicios de Remediación"," 562122. Recolección de residuos no peligrosos por el sector público ","484239, Otro autotransporte foráneo de carga especializado","Cantidad de RSU y RME gestionados Emisiones de CO2"]
["Manejo de Residuos y Servicios de Remediación"," 562122. Recolección de residuos no peligrosos por el sector público ","562112, Recolección de residuos peligrosos por el sector público","Cantidad de RSU y RME gestionados Emisiones de CO2"]
["Manejo de Residuos y Servicios de Remediación"," 562122. Recolección de residuos no peligrosos por el sector público ","562922, Recuperación de residuos por el sector público","Cantidad de RSU y RME gestionados Emisiones de CO2"]
["Manejo de Residuos y Servicios de Remediación"," 562221. Tratamiento y disposición final de residuos no peligrosos por el sector privado (Compostaje) ","221311, Captación, tratamiento y suministro de agua realizados por el sector privado","Cantidad de RSU y RME gestionados Emisiones de CO2 Reducción neta de las emisiones de GEI"]
["Manejo de Residuos y Servicios de Remediación"," 562221. Tratamiento y disposición final de residuos no peligrosos por el sector privado (Compostaje) ","562211, Tratamiento y disposición final de residuos peligrosos por el sector privado","Cantidad de RSU y RME gestionados Emisiones de CO2 Reducción neta de las emisiones de GEI"]
["Manejo de Residuos y Servicios de Remediación"," 562221. Tratamiento y disposición final de residuos no peligrosos por el sector privado(Digestión anaeróbica) ","221311, Captación, tratamiento y suministro de agua realizados por el sector privado)","Cantidad de RSU y RME gestionados\nEmisiones de CO2\nReducción neta de las emisiones de GEI"]
["Manejo de Residuos y Servicios de Remediación"," 562221. Tratamiento y disposición final de residuos no peligrosos por el sector privado(Digestión anaeróbica) ","562211, Tratamiento y disposición final de residuos peligrosos por el sector privado","Cantidad de RSU y RME gestionados\nEmisiones de CO2\nReducción neta de las emisiones de GEI"]
["Manejo de Residuos y Servicios de Remediación"," 562222. Tratamiento y disposición final de residuos no peligrosos por el sector público (Compostaje) ","221312, Captación, tratamiento y suministro de agua realizados por el sector público","Cantidad de RSU y RME gestionados Emisiones de CO2 Reducción neta de las emisiones de GEI"]
["Manejo de Residuos y Servicios de Remediación"," 562222. Tratamiento y disposición final de residuos no peligrosos por el sector público (Compostaje) ","562212, Tratamiento y disposición final de residuos peligrosos por el sector público","Cantidad de RSU y RME gestionados Emisiones de CO2 Reducción neta de las emisiones de GEI"]
["Manejo de Residuos y Servicios de Remediación"," 562222. Tratamiento y disposición final de residuos no peligrosos por el sector público (Digestión anaeróbica) ","221312, Captación, tratamiento y suministro de agua realizados por el sector público","Cantidad de RSU y RME gestionados\nEmisiones de CO2\nReducción neta de las emisiones de GEI"]
["Manejo de Residuos y Servicios de Remediación"," 562222. Tratamiento y disposición final de residuos no peligrosos por el sector público (Digestión anaeróbica) ","562212, Tratamiento y disposición final de residuos peligrosos por el sector público","Cantidad de RSU y RME gestionados\nEmisiones de CO2\nReducción neta de las emisiones de GEI"]
["Manejo de Residuos y Servicios de Remediación"," 562911. Servicios de remediación de residuos por el sector privado ","541620, Servicios de consultoría en medio ambiente","Cantidad de RSU y RME gestionados Emisiones de CO2 Reducción neta de las emisiones de GEI"]
["Manejo de Residuos y Servicios de Remediación"," 562911. Servicios de remediación de residuos por el sector privado ","221311, Captación, tratamiento y suministro de agua realizados por el sector privado","Cantidad de RSU y RME gestionados Emisiones de CO2 Reducción neta de las emisiones de GEI"]
["Manejo de Residuos y Servicios de Remediación"," 562911. Servicios de remediación de residuos por el sector privado ","562998, Otros servicios de manejo de residuos por el sector privado","Cantidad de RSU y RME gestionados Emisiones de CO2 Reducción neta de las emisiones de GEI"]
["Manejo de Residuos y Servicios de Remediación"," 562912. Servicios de remediación de residuos por el sector público ","541620, Servicios de consultoría en medio ambiente","Cantidad de RSU y RME gestionados Emisiones de CO2 Reducción neta de las emisiones de GEI"]
["Manejo de Residuos y Servicios de Remediación"," 562912. Servicios de remediación de residuos por el sector público ","221312, Captación, tratamiento y suministro de agua realizados por el sector público","Cantidad de RSU y RME gestionados Emisiones de CO2 Reducción neta de las emisiones de GEI"]
["Manejo de Residuos y Servicios de Remediación"," 562912. Servicios de remediación de residuos por el sector público ","562999, Otros servicios de manejo de residuos por el sector público","Cantidad de RSU y RME gestionados Emisiones de CO2 Reducción neta de las emisiones de GEI"]
["Manejo de Residuos y Servicios de Remediación"," 562921. Recuperación de residuos por el sector privado ","314993, Fabricación de productos textiles reciclados","Cantidad de RSU y RME gestionados Emisiones de CO2 Reducción neta de las emisiones de GEI"]
["Manejo de Residuos y Servicios de Remediación"," 562921. Recuperación de residuos por el sector privado ","3221, Fabricación de pulpa, papel y cartón","Cantidad de RSU y RME gestionados Emisiones de CO2 Reducción neta de las emisiones de GEI"]
["Manejo de Residuos y Servicios de Remediación"," 562921. Recuperación de residuos por el sector privado ","325993, Fabricación de resinas de plásticos reciclados","Cantidad de RSU y RME gestionados Emisiones de CO2 Reducción neta de las emisiones de GEI"]
["Manejo de Residuos y Servicios de Remediación"," 562921. Recuperación de residuos por el sector privado ","434311, Comercio al por mayor de desechos metálicos","Cantidad de RSU y RME gestionados Emisiones de CO2 Reducción neta de las emisiones de GEI"]
["Manejo de Residuos y Servicios de Remediación"," 562921. Recuperación de residuos por el sector privado ","434312, Comercio al por mayor de desechos de papel y de cartón","Cantidad de RSU y RME gestionados Emisiones de CO2 Reducción neta de las emisiones de GEI"]
["Manejo de Residuos y Servicios de Remediación"," 562921. Recuperación de residuos por el sector privado ","434313, Comercio al por mayor de desechos de vidrio","Cantidad de RSU y RME gestionados Emisiones de CO2 Reducción neta de las emisiones de GEI"]
["Manejo de Residuos y Servicios de Remediación"," 562921. Recuperación de residuos por el sector privado ","434314, Comercio al por mayor de desechos de plástico","Cantidad de RSU y RME gestionados Emisiones de CO2 Reducción neta de las emisiones de GEI"]
["Manejo de Residuos y Servicios de Remediación"," 562921. Recuperación de residuos por el sector privado ","434319, Comercio al por mayor de otros materiales de desecho","Cantidad de RSU y RME gestionados Emisiones de CO2 Reducción neta de las emisiones de GEI"]
["Manejo de Residuos y Servicios de Remediación"," 562921. Recuperación de residuos por el sector privado ","562121, Recolección de residuos no peligrosos por el sector privado","Cantidad de RSU y RME gestionados Emisiones de CO2 Reducción neta de las emisiones de GEI"]
["Manejo de Residuos y Servicios de Remediación"," 562922. Recuperación de residuos por el sector público","314993, Fabricación de productos textiles reciclados","Cantidad de RSU y RME gestionados Emisiones de CO2 Reducción neta de las emisiones de GEI"]
["Manejo de Residuos y Servicios de Remediación"," 562922. Recuperación de residuos por el sector público","3221, Fabricación de pulpa, papel y cartón","Cantidad de RSU y RME gestionados Emisiones de CO2 Reducción neta de las emisiones de GEI"]
["Manejo de Residuos y Servicios de Remediación"," 562922. Recuperación de residuos por el sector público","325993, Fabricación de resinas de plásticos reciclados","Cantidad de RSU y RME gestionados Emisiones de CO2 Reducción neta de las emisiones de GEI"]
["Manejo de Residuos y Servicios de Remediación"," 562922. Recuperación de residuos por el sector público","434311, Comercio al por mayor de desechos metálicos","Cantidad de RSU y RME gestionados Emisiones de CO2 Reducción neta de las emisiones de GEI"]
["Manejo de Residuos y Servicios de Remediación"," 562922. Recuperación de residuos por el sector público","434312, Comercio al por mayor de desechos de papel y de cartón","Cantidad de RSU y RME gestionados Emisiones de CO2 Reducción neta de las emisiones de GEI"]
["Manejo de Residuos y Servicios de Remediación"," 562922. Recuperación de residuos por el sector público","434319, Comercio al por mayor de otros materiales de desecho","Cantidad de RSU y RME gestionados Emisiones de CO2 Reducción neta de las emisiones de GEI"]
["Manejo de Residuos y Servicios de Remediación"," 562922. Recuperación de residuos por el sector público","562122, Recolección de residuos no peligrosos por el sector público","Cantidad de RSU y RME gestionados Emisiones de CO2 Reducción neta de las emisiones de GEI"]
["Transporte","485112. Transporte colectivo urbano y suburbano de pasajeros en automóviles de ruta fija ","485111, Transporte colectivo urbano y suburbano de pasajeros en autobuses de ruta fija","Emisiones de CO2 e por pasajero-kilómetro (gCO2e/pkm)"]
["Transporte","485112. Transporte colectivo urbano y suburbano de pasajeros en automóviles de ruta fija ","485210, Transporte colectivo foráneo de pasajeros de ruta fija","Emisiones de CO2 e por pasajero-kilómetro (gCO2e/pkm)"]
["Transporte","485112. Transporte colectivo urbano y suburbano de pasajeros en automóviles de ruta fija ","48531, Servicio de taxis","Emisiones de CO2 e por pasajero-kilómetro (gCO2e/pkm)"]
[null,null,"Mitigación","Adaptación",null,"Género"]
["Agricultura","111110. Cultivo de soya ",{"$f":"IF(OR('Mitigación-Agricultura'!$B$8=\"seleccione\",'Mitigación-Agricultura'!$B$10=\"Seleccione\",'Mitigación-Agricultura'!$B$12=\"Seleccione\",'Mitigación-Agricultura'!$A$16=\"Selecciona la medida 1\",'Mitigación-Agricultura'!$A$17=\"Selecciona la medida 2\",'Mitigación-Agricultura'!$B$19=\"Seleccione\",'Mitigación-Agricultura'!$B$21=\"Seleccione\"),\"No se han respondido todas las preguntas\",IF(AND('Mitigación-Agricultura'!$C$8=\"Sí contribuye sustancialmente a la sostenibilidad\",'Mitigación-Agricultura'!$C$10=\"Sí contribuye sustancialmente a la sostenibilidad. Debe verificarse con evidencia, por ejemplo, con una fotografía\",'Mitigación-Agricultura'!$C$12=\"Sí contribuye sustancialmente a la sostenibilidad\",'Mitigación-Agricultura'!$C$21=\"Contribuye sustancialmente a la sostenibilidad\"),\"La actividad sí contribuye sustancialmente a la sostenibilidad\",IF(AND('Mitigación-Agricultura'!$C$8=\"Se deberá confirmar a través de validación geoespacial\",'Mitigación-Agricultura'!$C$10=\"Sí contribuye sustancialmente a la sostenibilidad. Debe verificarse con evidencia, por ejemplo, con una fotografía\",'Mitigación-Agricultura'!$C$12=\"Sí contribuye sustancialmente a la sostenibilidad\",'Mitigación-Agricultura'!$C$21=\"Contribuye sustancialmente a la sostenibilidad\"),\"La actividad sí contribuye sustancialmente a la sostenibilidad\",\"La actividad no genera contribución sustancial a la sostenibilidad\")))","v":"La actividad sí contribuye sustancialmente a la sostenibilidad"},{"$f":"IF('Adaptación-Agricultura'!$D$8=\"Actividad que facilita la adaptación e incluye desarrollo de infraestructura\",(IF(OR('Adaptación-Agricultura'!$A$19=\"Por definir\",'Adaptación-Agricultura'!$A$25=\"Por definir\",'Adaptación-Agricultura'!$G$29=\"Por definir\",'Adaptación-Agricultura'!$A$36=\"Por definir\",'Adaptación-Agricultura'!$B$41=\"Por definir\"),\"No se han respondido todas las preguntas\",IF(AND('Adaptación-Agricultura'!$A$19=\"La actividad sí contribuye sustancialmente a la sostenibilidad\",'Adaptación-Agricultura'!$A$25=\"La actividad sí contribuye sustancialmente a la sostenibilidad\",'Adaptación-Agricultura'!$G$29=\"La actividad sí contribuye sustancialmente a la sostenbilidad\",'Adaptación-Agricultura'!$A$36=\"La actividad sí contribuye sustancialmente a la sostenibilidad\",'Adaptación-Agricultura'!$B$41=\"La actividad genera contribución sustancial a la sostenibilidad\"),\"La actividad sí contribuye sustancialmente a la sostenibilidad\",\"La actividad no contribuye sustancialmente a la sostenibilidad\"))),IF('Adaptación-Agricultura'!$D$8=\"Actividad adaptada\",(IF(OR('Adaptación-Agricultura'!$A$19=\"Por definir\",'Adaptación-Agricultura'!$A$25=\"Por definir\",'Adaptación-Agricultura'!$G$29=\"Por definir\",'Adaptación-Agricultura'!$A$36=\"Por definir\",'Adaptación-Agricultura'!$B$41=\"Por definir\"),\"No se han respondido todas las preguntas\",IF(AND('Adaptación-Agricultura'!$A$19=\"La actividad sí contribuye sustancialmente a la sostenibilidad\",'Adaptación-Agricultura'!$A$25=\"La actividad sí contribuye sustancialmente a la sostenibilidad\",'Adaptación-Agricultura'!$G$29=\"La actividad sí contribuye sustancialmente a la sostenbilidad\",'Adaptación-Agricultura'!$B$41=\"La actividad genera contribución sustancial a la sostenibilidad\"),\"La actividad sí contribuye sustancialmente a la sostenibilidad\",\"La actividad no contribuye sustancialmente a la sostenibilidad\"))),IF('Adaptación-Agricultura'!$D$8=\"Actividad que facilita la adaptación\",(IF(OR('Adaptación-Agricultura'!$A$36=\"Por definir\",'Adaptación-Agricultura'!$B$41=\"Por definir\"),\"No se han respondido todas las preguntas\",IF(AND('Adaptación-Agricultura'!$A$36=\"La actividad sí contribuye sustancialmente a la sostenibilidad\",'Adaptación-Agricultura'!$B$41=\"La actividad genera contribución sustancial a la sostenibilidad\"),\"La actividad sí contribuye sustancialmente a la sostenibilidad\",\"La actividad no contribuye sustancialmente a la sostenibilidad\"))))))","v":"No se han respondido todas las preguntas"},null,{"$f":"IF('Indice de género-Agricultura'!$E$82=\"Por definir\",\"No se han contestado todas las preguntas\",IF('Indice de género-Agricultura'!$E$82=\"Sí cumple con el índice de igualdad de género\",\"La actividad sí contribuye sustancialmente a la sostenibilidad\",\"La actividad no genera contribución sustancial\"))","v":"La actividad sí contribuye sustancialmente a la sostenibilidad"}]
["Agricultura","111121. Cultivo de cártamo ",{"$f":"IF(OR('Mitigación-Agricultura'!$B$8=\"seleccione\",'Mitigación-Agricultura'!$B$10=\"Seleccione\",'Mitigación-Agricultura'!$B$12=\"Seleccione\",'Mitigación-Agricultura'!$A$16=\"Selecciona la medida 1\",'Mitigación-Agricultura'!$A$17=\"Selecciona la medida 2\",'Mitigación-Agricultura'!$B$19=\"Seleccione\",'Mitigación-Agricultura'!$B$21=\"Seleccione\"),\"No se han respondido todas las preguntas\",IF(AND('Mitigación-Agricultura'!$C$8=\"Sí contribuye sustancialmente a la sostenibilidad\",'Mitigación-Agricultura'!$C$10=\"Sí contribuye sustancialmente a la sostenibilidad. Debe verificarse con evidencia, por ejemplo, con una fotografía\",'Mitigación-Agricultura'!$C$12=\"Sí contribuye sustancialmente a la sostenibilidad\",'Mitigación-Agricultura'!$C$21=\"Contribuye sustancialmente a la sostenibilidad\"),\"La actividad sí contribuye sustancialmente a la sostenibilidad\",IF(AND('Mitigación-Agricultura'!$C$8=\"Se deberá confirmar a través de validación geoespacial\",'Mitigación-Agricultura'!$C$10=\"Sí contribuye sustancialmente a la sostenibilidad. Debe verificarse con evidencia, por ejemplo, con una fotografía\",'Mitigación-Agricultura'!$C$12=\"Sí contribuye sustancialmente a la sostenibilidad\",'Mitigación-Agricultura'!$C$21=\"Contribuye sustancialmente a la sostenibilidad\"),\"La actividad sí contribuye sustancialmente a la sostenibilidad\",\"La actividad no genera contribución sustancial a la sostenibilidad\")))","v":"La actividad sí contribuye sustancialmente a la sostenibilidad"},{"$f":"IF('Adaptación-Agricultura'!$D$8=\"Actividad que facilita la adaptación e incluye desarrollo de infraestructura\",(IF(OR('Adaptación-Agricultura'!$A$19=\"Por definir\",'Adaptación-Agricultura'!$A$25=\"Por definir\",'Adaptación-Agricultura'!$G$29=\"Por definir\",'Adaptación-Agricultura'!$A$36=\"Por definir\",'Adaptación-Agricultura'!$B$41=\"Por definir\"),\"No se han respondido todas las preguntas\",IF(AND('Adaptación-Agricultura'!$A$19=\"La actividad sí contribuye sustancialmente a la sostenibilidad\",'Adaptación-Agricultura'!$A$25=\"La actividad sí contribuye sustancialmente a la sostenibilidad\",'Adaptación-Agricultura'!$G$29=\"La actividad sí contribuye sustancialmente a la sostenbilidad\",'Adaptación-Agricultura'!$A$36=\"La actividad sí contribuye sustancialmente a la sostenibilidad\",'Adaptación-Agricultura'!$B$41=\"La actividad genera contribución sustancial a la sostenibilidad\"),\"La actividad sí contribuye sustancialmente a la sostenibilidad\",\"La actividad no contribuye sustancialmente a la sostenibilidad\"))),IF('Adaptación-Agricultura'!$D$8=\"Actividad adaptada\",(IF(OR('Adaptación-Agricultura'!$A$19=\"Por definir\",'Adaptación-Agricultura'!$A$25=\"Por definir\",'Adaptación-Agricultura'!$G$29=\"Por definir\",'Adaptación-Agricultura'!$A$36=\"Por definir\",'Adaptación-Agricultura'!$B$41=\"Por definir\"),\"No se han respondido todas las preguntas\",IF(AND('Adaptación-Agricultura'!$A$19=\"La actividad sí contribuye sustancialmente a la sostenibilidad\",'Adaptación-Agricultura'!$A$25=\"La actividad sí contribuye sustancialmente a la sostenibilidad\",'Adaptación-Agricultura'!$G$29=\"La actividad sí contribuye sustancialmente a la sostenbilidad\",'Adaptación-Agricultura'!$B$41=\"La actividad genera contribución sustancial a la sostenibilidad\"),\"La actividad sí contribuye sustancialmente a la sostenibilidad\",\"La actividad no contribuye sustancialmente a la sostenibilidad\"))),IF('Adaptación-Agricultura'!$D$8=\"Actividad que facilita la adaptación\",(IF(OR('Adaptación-Agricultura'!$A$36=\"Por definir\",'Adaptación-Agricultura'!$B$41=\"Por definir\"),\"No se han respondido todas las preguntas\",IF(AND('Adaptación-Agricultura'!$A$36=\"La actividad sí contribuye sustancialmente a la sostenibilidad\",'Adaptación-Agricultura'!$B$41=\"La actividad genera contribución sustancial a la sostenibilidad\"),\"La actividad sí contribuye sustancialmente a la sostenibilidad\",\"La actividad no contribuye sustancialmente a la sostenibilidad\"))))))","v":"No se han respondido todas las preguntas"},null,{"$f":"IF('Indice de género-Agricultura'!$E$82=\"Por definir\",\"No se han contestado todas las preguntas\",IF('Indice de género-Agricultura'!$E$82=\"Sí cumple con el índice de igualdad de género\",\"La actividad sí contribuye sustancialmente a la sostenibilidad\",\"La actividad no genera contribución sustancial\"))","v":"La actividad sí contribuye sustancialmente a la sostenibilidad"}]
["Agricultura","111122. Cultivo de girasol ",{"$f":"IF(OR('Mitigación-Agricultura'!$B$8=\"seleccione\",'Mitigación-Agricultura'!$B$10=\"Seleccione\",'Mitigación-Agricultura'!$B$12=\"Seleccione\",'Mitigación-Agricultura'!$A$16=\"Selecciona la medida 1\",'Mitigación-Agricultura'!$A$17=\"Selecciona la medida 2\",'Mitigación-Agricultura'!$B$19=\"Seleccione\",'Mitigación-Agricultura'!$B$21=\"Seleccione\"),\"No se han respondido todas las preguntas\",IF(AND('Mitigación-Agricultura'!$C$8=\"Sí contribuye sustancialmente a la sostenibilidad\",'Mitigación-Agricultura'!$C$10=\"Sí contribuye sustancialmente a la sostenibilidad. Debe verificarse con evidencia, por ejemplo, con una fotografía\",'Mitigación-Agricultura'!$C$12=\"Sí contribuye sustancialmente a la sostenibilidad\",'Mitigación-Agricultura'!$C$21=\"Contribuye sustancialmente a la sostenibilidad\"),\"La actividad sí contribuye sustancialmente a la sostenibilidad\",IF(AND('Mitigación-Agricultura'!$C$8=\"Se deberá confirmar a través de validación geoespacial\",'Mitigación-Agricultura'!$C$10=\"Sí contribuye sustancialmente a la sostenibilidad. Debe verificarse con evidencia, por ejemplo, con una fotografía\",'Mitigación-Agricultura'!$C$12=\"Sí contribuye sustancialmente a la sostenibilidad\",'Mitigación-Agricultura'!$C$21=\"Contribuye sustancialmente a la sostenibilidad\"),\"La actividad sí contribuye sustancialmente a la sostenibilidad\",\"La actividad no genera contribución sustancial a la sostenibilidad\")))","v":"La actividad sí contribuye sustancialmente a la sostenibilidad"},{"$f":"IF('Adaptación-Agricultura'!$D$8=\"Actividad que facilita la adaptación e incluye desarrollo de infraestructura\",(IF(OR('Adaptación-Agricultura'!$A$19=\"Por definir\",'Adaptación-Agricultura'!$A$25=\"Por definir\",'Adaptación-Agricultura'!$G$29=\"Por definir\",'Adaptación-Agricultura'!$A$36=\"Por definir\",'Adaptación-Agricultura'!$B$41=\"Por definir\"),\"No se han respondido todas las preguntas\",IF(AND('Adaptación-Agricultura'!$A$19=\"La actividad sí contribuye sustancialmente a la sostenibilidad\",'Adaptación-Agricultura'!$A$25=\"La actividad sí contribuye sustancialmente a la sostenibilidad\",'Adaptación-Agricultura'!$G$29=\"La actividad sí contribuye sustancialmente a la sostenbilidad\",'Adaptación-Agricultura'!$A$36=\"La actividad sí contribuye sustancialmente a la sostenibilidad\",'Adaptación-Agricultura'!$B$41=\"La actividad genera contribución sustancial a la sostenibilidad\"),\"La actividad sí contribuye sustancialmente a la sostenibilidad\",\"La actividad no contribuye sustancialmente a la sostenibilidad\"))),IF('Adaptación-Agricultura'!$D$8=\"Actividad adaptada\",(IF(OR('Adaptación-Agricultura'!$A$19=\"Por definir\",'Adaptación-Agricultura'!$A$25=\"Por definir\",'Adaptación-Agricultura'!$G$29=\"Por definir\",'Adaptación-Agricultura'!$A$36=\"Por definir\",'Adaptación-Agricultura'!$B$41=\"Por definir\"),\"No se han respondido todas las preguntas\",IF(AND('Adaptación-Agricultura'!$A$19=\"La actividad sí contribuye sustancialmente a la sostenibilidad\",'Adaptación-Agricultura'!$A$25=\"La actividad sí contribuye sustancialmente a la sostenibilidad\",'Adaptación-Agricultura'!$G$29=\"La actividad sí contribuye sustancialmente a la sostenbilidad\",'Adaptación-Agricultura'!$B$41=\"La actividad genera contribución sustancial a la sostenibilidad\"),\"La actividad sí contribuye sustancialmente a la sostenibilidad\",\"La actividad no contribuye sustancialmente a la sostenibilidad\"))),IF('Adaptación-Agricultura'!$D$8=\"Actividad que facilita la adaptación\",(IF(OR('Adaptación-Agricultura'!$A$36=\"Por definir\",'Adaptación-Agricultura'!$B$41=\"Por definir\"),\"No se han respondido todas las preguntas\",IF(AND('Adaptación-Agricultura'!$A$36=\"La actividad sí contribuye sustancialmente a la sostenibilidad\",'Adaptación-Agricultura'!$B$41=\"La actividad genera contribución sustancial a la sostenibilidad\"),\"La actividad sí contribuye sustancialmente a la sostenibilidad\",\"La actividad no contribuye sustancialmente a la sostenibilidad\"))))))","v":"No se han respondido todas las preguntas"},null,{"$f":"IF('Indice de género-Agricultura'!$E$82=\"Por definir\",\"No se han contestado todas las preguntas\",IF('Indice de género-Agricultura'!$E$82=\"Sí cumple con el índice de igualdad de género\",\"La actividad sí contribuye sustancialmente a la sostenibilidad\",\"La actividad no genera contribución sustancial\"))","v":"La actividad sí contribuye sustancialmente a la sostenibilidad"}]
["Agricultura","111129. Cultivo anual de otras semillas oleaginosas ",{"$f":"IF(OR('Mitigación-Agricultura'!$B$8=\"seleccione\",'Mitigación-Agricultura'!$B$10=\"Seleccione\",'Mitigación-Agricultura'!$B$12=\"Seleccione\",'Mitigación-Agricultura'!$A$16=\"Selecciona la medida 1\",'Mitigación-Agricultura'!$A$17=\"Selecciona la medida 2\",'Mitigación-Agricultura'!$B$19=\"Seleccione\",'Mitigación-Agricultura'!$B$21=\"Seleccione\"),\"No se han respondido todas las preguntas\",IF(AND('Mitigación-Agricultura'!$C$8=\"Sí contribuye sustancialmente a la sostenibilidad\",'Mitigación-Agricultura'!$C$10=\"Sí contribuye sustancialmente a la sostenibilidad. Debe verificarse con evidencia, por ejemplo, con una fotografía\",'Mitigación-Agricultura'!$C$12=\"Sí contribuye sustancialmente a la sostenibilidad\",'Mitigación-Agricultura'!$C$21=\"Contribuye sustancialmente a la sostenibilidad\"),\"La actividad sí contribuye sustancialmente a la sostenibilidad\",IF(AND('Mitigación-Agricultura'!$C$8=\"Se deberá confirmar a través de validación geoespacial\",'Mitigación-Agricultura'!$C$10=\"Sí contribuye sustancialmente a la sostenibilidad. Debe verificarse con evidencia, por ejemplo, con una fotografía\",'Mitigación-Agricultura'!$C$12=\"Sí contribuye sustancialmente a la sostenibilidad\",'Mitigación-Agricultura'!$C$21=\"Contribuye sustancialmente a la sostenibilidad\"),\"La actividad sí contribuye sustancialmente a la sostenibilidad\",\"La actividad no genera contribución sustancial a la sostenibilidad\")))","v":"La actividad sí contribuye sustancialmente a la sostenibilidad"},{"$f":"IF('Adaptación-Agricultura'!$D$8=\"Actividad que facilita la adaptación e incluye desarrollo de infraestructura\",(IF(OR('Adaptación-Agricultura'!$A$19=\"Por definir\",'Adaptación-Agricultura'!$A$25=\"Por definir\",'Adaptación-Agricultura'!$G$29=\"Por definir\",'Adaptación-Agricultura'!$A$36=\"Por definir\",'Adaptación-Agricultura'!$B$41=\"Por definir\"),\"No se han respondido todas las preguntas\",IF(AND('Adaptación-Agricultura'!$A$19=\"La actividad sí contribuye sustancialmente a la sostenibilidad\",'Adaptación-Agricultura'!$A$25=\"La actividad sí contribuye sustancialmente a la sostenibilidad\",'Adaptación-Agricultura'!$G$29=\"La actividad sí contribuye sustancialmente a la sostenbilidad\",'Adaptación-Agricultura'!$A$36=\"La actividad sí contribuye sustancialmente a la sostenibilidad\",'Adaptación-Agricultura'!$B$41=\"La actividad genera contribución sustancial a la sostenibilidad\"),\"La actividad sí contribuye sustancialmente a la sostenibilidad\",\"La actividad no contribuye sustancialmente a la sostenibilidad\"))),IF('Adaptación-Agricultura'!$D$8=\"Actividad adaptada\",(IF(OR('Adaptación-Agricultura'!$A$19=\"Por definir\",'Adaptación-Agricultura'!$A$25=\"Por definir\",'Adaptación-Agricultura'!$G$29=\"Por definir\",'Adaptación-Agricultura'!$A$36=\"Por definir\",'Adaptación-Agricultura'!$B$41=\"Por definir\"),\"No se han respondido todas las preguntas\",IF(AND('Adaptación-Agricultura'!$A$19=\"La actividad sí contribuye sustancialmente a la sostenibilidad\",'Adaptación-Agricultura'!$A$25=\"La actividad sí contribuye sustancialmente a la sostenibilidad\",'Adaptación-Agricultura'!$G$29=\"La actividad sí contribuye sustancialmente a la sostenbilidad\",'Adaptación-Agricultura'!$B$41=\"La actividad genera contribución sustancial a la sostenibilidad\"),\"La actividad sí contribuye sustancialmente a la sostenibilidad\",\"La actividad no contribuye sustancialmente a la sostenibilidad\"))),IF('Adaptación-Agricultura'!$D$8=\"Actividad que facilita la adaptación\",(IF(OR('Adaptación-Agricultura'!$A$36=\"Por definir\",'Adaptación-Agricultura'!$B$41=\"Por definir\"),\"No se han respondido todas las preguntas\",IF(AND('Adaptación-Agricultura'!$A$36=\"La actividad sí contribuye sustancialmente a la sostenibilidad\",'Adaptación-Agricultura'!$B$41=\"La actividad genera contribución sustancial a la sostenibilidad\"),\"La actividad sí contribuye sustancialmente a la sostenibilidad\",\"La actividad no contribuye sustancialmente a la sostenibilidad\"))))))","v":"No se han respondido todas las preguntas"},null,{"$f":"IF('Indice de género-Agricultura'!$E$82=\"Por definir\",\"No se han contestado todas las preguntas\",IF('Indice de género-Agricultura'!$E$82=\"Sí cumple con el índice de igualdad de género\",\"La actividad sí contribuye sustancialmente a la sostenibilidad\",\"La actividad no genera contribución sustancial\"))","v":"La actividad sí contribuye sustancialmente a la sostenibilidad"}]
["Agricultura","111131. Cultivo de frijol grano ",{"$f":"IF(OR('Mitigación-Agricultura'!$B$8=\"seleccione\",'Mitigación-Agricultura'!$B$10=\"Seleccione\",'Mitigación-Agricultura'!$B$12=\"Seleccione\",'Mitigación-Agricultura'!$A$16=\"Selecciona la medida 1\",'Mitigación-Agricultura'!$A$17=\"Selecciona la medida 2\",'Mitigación-Agricultura'!$B$19=\"Seleccione\",'Mitigación-Agricultura'!$B$21=\"Seleccione\"),\"No se han respondido todas las preguntas\",IF(AND('Mitigación-Agricultura'!$C$8=\"Sí contribuye sustancialmente a la sostenibilidad\",'Mitigación-Agricultura'!$C$10=\"Sí contribuye sustancialmente a la sostenibilidad. Debe verificarse con evidencia, por ejemplo, con una fotografía\",'Mitigación-Agricultura'!$C$12=\"Sí contribuye sustancialmente a la sostenibilidad\",'Mitigación-Agricultura'!$C$21=\"Contribuye sustancialmente a la sostenibilidad\"),\"La actividad sí contribuye sustancialmente a la sostenibilidad\",IF(AND('Mitigación-Agricultura'!$C$8=\"Se deberá confirmar a través de validación geoespacial\",'Mitigación-Agricultura'!$C$10=\"Sí contribuye sustancialmente a la sostenibilidad. Debe verificarse con evidencia, por ejemplo, con una fotografía\",'Mitigación-Agricultura'!$C$12=\"Sí contribuye sustancialmente a la sostenibilidad\",'Mitigación-Agricultura'!$C$21=\"Contribuye sustancialmente a la sostenibilidad\"),\"La actividad sí contribuye sustancialmente a la sostenibilidad\",\"La actividad no genera contribución sustancial a la sostenibilidad\")))","v":"La actividad sí contribuye sustancialmente a la sostenibilidad"},{"$f":"IF('Adaptación-Agricultura'!$D$8=\"Actividad que facilita la adaptación e incluye desarrollo de infraestructura\",(IF(OR('Adaptación-Agricultura'!$A$19=\"Por definir\",'Adaptación-Agricultura'!$A$25=\"Por definir\",'Adaptación-Agricultura'!$G$29=\"Por definir\",'Adaptación-Agricultura'!$A$36=\"Por definir\",'Adaptación-Agricultura'!$B$41=\"Por definir\"),\"No se han respondido todas las preguntas\",IF(AND('Adaptación-Agricultura'!$A$19=\"La actividad sí contribuye sustancialmente a la sostenibilidad\",'Adaptación-Agricultura'!$A$25=\"La actividad sí contribuye sustancialmente a la sostenibilidad\",'Adaptación-Agricultura'!$G$29=\"La actividad sí contribuye sustancialmente a la sostenbilidad\",'Adaptación-Agricultura'!$A$36=\"La actividad sí contribuye sustancialmente a la sostenibilidad\",'Adaptación-Agricultura'!$B$41=\"La actividad genera contribución sustancial a la sostenibilidad\"),\"La actividad sí contribuye sustancialmente a la sostenibilidad\",\"La actividad no contribuye sustancialmente a la sostenibilidad\"))),IF('Adaptación-Agricultura'!$D$8=\"Actividad adaptada\",(IF(OR('Adaptación-Agricultura'!$A$19=\"Por definir\",'Adaptación-Agricultura'!$A$25=\"Por definir\",'Adaptación-Agricultura'!$G$29=\"Por definir\",'Adaptación-Agricultura'!$A$36=\"Por definir\",'Adaptación-Agricultura'!$B$41=\"Por definir\"),\"No se han respondido todas las preguntas\",IF(AND('Adaptación-Agricultura'!$A$19=\"La actividad sí contribuye sustancialmente a la sostenibilidad\",'Adaptación-Agricultura'!$A$25=\"La actividad sí contribuye sustancialmente a la sostenibilidad\",'Adaptación-Agricultura'!$G$29=\"La actividad sí contribuye sustancialmente a la sostenbilidad\",'Adaptación-Agricultura'!$B$41=\"La actividad genera contribución sustancial a la sostenibilidad\"),\"La actividad sí contribuye sustancialmente a la sostenibilidad\",\"La actividad no contribuye sustancialmente a la sostenibilidad\"))),IF('Adaptación-Agricultura'!$D$8=\"Actividad que facilita la adaptación\",(IF(OR('Adaptación-Agricultura'!$A$36=\"Por definir\",'Adaptación-Agricultura'!$B$41=\"Por definir\"),\"No se han respondido todas las preguntas\",IF(AND('Adaptación-Agricultura'!$A$36=\"La actividad sí contribuye sustancialmente a la sostenibilidad\",'Adaptación-Agricultura'!$B$41=\"La actividad genera contribución sustancial a la sostenibilidad\"),\"La actividad sí contribuye sustancialmente a la sostenibilidad\",\"La actividad no contribuye sustancialmente a la sostenibilidad\"))))))","v":"No se han respondido todas las preguntas"},null,{"$f":"IF('Indice de género-Agricultura'!$E$82=\"Por definir\",\"No se han contestado todas las preguntas\",IF('Indice de género-Agricultura'!$E$82=\"Sí cumple con el índice de igualdad de género\",\"La actividad sí contribuye sustancialmente a la sostenibilidad\",\"La actividad no genera contribución sustancial\"))","v":"La actividad sí contribuye sustancialmente a la sostenibilidad"}]
["Agricultura","111132. Cultivo de garbanzo grano ",{"$f":"IF(OR('Mitigación-Agricultura'!$B$8=\"seleccione\",'Mitigación-Agricultura'!$B$10=\"Seleccione\",'Mitigación-Agricultura'!$B$12=\"Seleccione\",'Mitigación-Agricultura'!$A$16=\"Selecciona la medida 1\",'Mitigación-Agricultura'!$A$17=\"Selecciona la medida 2\",'Mitigación-Agricultura'!$B$19=\"Seleccione\",'Mitigación-Agricultura'!$B$21=\"Seleccione\"),\"No se han respondido todas las preguntas\",IF(AND('Mitigación-Agricultura'!$C$8=\"Sí contribuye sustancialmente a la sostenibilidad\",'Mitigación-Agricultura'!$C$10=\"Sí contribuye sustancialmente a la sostenibilidad. Debe verificarse con evidencia, por ejemplo, con una fotografía\",'Mitigación-Agricultura'!$C$12=\"Sí contribuye sustancialmente a la sostenibilidad\",'Mitigación-Agricultura'!$C$21=\"Contribuye sustancialmente a la sostenibilidad\"),\"La actividad sí contribuye sustancialmente a la sostenibilidad\",IF(AND('Mitigación-Agricultura'!$C$8=\"Se deberá confirmar a través de validación geoespacial\",'Mitigación-Agricultura'!$C$10=\"Sí contribuye sustancialmente a la sostenibilidad. Debe verificarse con evidencia, por ejemplo, con una fotografía\",'Mitigación-Agricultura'!$C$12=\"Sí contribuye sustancialmente a la sostenibilidad\",'Mitigación-Agricultura'!$C$21=\"Contribuye sustancialmente a la sostenibilidad\"),\"La actividad sí contribuye sustancialmente a la sostenibilidad\",\"La actividad no genera contribución sustancial a la sostenibilidad\")))","v":"La actividad sí contribuye sustancialmente a la sostenibilidad"},{"$f":"IF('Adaptación-Agricultura'!$D$8=\"Actividad que facilita la adaptación e incluye desarrollo de infraestructura\",(IF(OR('Adaptación-Agricultura'!$A$19=\"Por definir\",'Adaptación-Agricultura'!$A$25=\"Por definir\",'Adaptación-Agricultura'!$G$29=\"Por definir\",'Adaptación-Agricultura'!$A$36=\"Por definir\",'Adaptación-Agricultura'!$B$41=\"Por definir\"),\"No se han respondido todas las preguntas\",IF(AND('Adaptación-Agricultura'!$A$19=\"La actividad sí contribuye sustancialmente a la sostenibilidad\",'Adaptación-Agricultura'!$A$25=\"La actividad sí contribuye sustancialmente a la sostenibilidad\",'Adaptación-Agricultura'!$G$29=\"La actividad sí contribuye sustancialmente a la sostenbilidad\",'Adaptación-Agricultura'!$A$36=\"La actividad sí contribuye sustancialmente a la sostenibilidad\",'Adaptación-Agricultura'!$B$41=\"La actividad genera contribución sustancial a la sostenibilidad\"),\"La actividad sí contribuye sustancialmente a la sostenibilidad\",\"La actividad no contribuye sustancialmente a la sostenibilidad\"))),IF('Adaptación-Agricultura'!$D$8=\"Actividad adaptada\",(IF(OR('Adaptación-Agricultura'!$A$19=\"Por definir\",'Adaptación-Agricultura'!$A$25=\"Por definir\",'Adaptación-Agricultura'!$G$29=\"Por definir\",'Adaptación-Agricultura'!$A$36=\"Por definir\",'Adaptación-Agricultura'!$B$41=\"Por definir\"),\"No se han respondido todas las preguntas\",IF(AND('Adaptación-Agricultura'!$A$19=\"La actividad sí contribuye sustancialmente a la sostenibilidad\",'Adaptación-Agricultura'!$A$25=\"La actividad sí contribuye sustancialmente a la sostenibilidad\",'Adaptación-Agricultura'!$G$29=\"La actividad sí contribuye sustancialmente a la sostenbilidad\",'Adaptación-Agricultura'!$B$41=\"La actividad genera contribución sustancial a la sostenibilidad\"),\"La actividad sí contribuye sustancialmente a la sostenibilidad\",\"La actividad no contribuye sustancialmente a la sostenibilidad\"))),IF('Adaptación-Agricultura'!$D$8=\"Actividad que facilita la adaptación\",(IF(OR('Adaptación-Agricultura'!$A$36=\"Por definir\",'Adaptación-Agricultura'!$B$41=\"Por definir\"),\"No se han respondido todas las preguntas\",IF(AND('Adaptación-Agricultura'!$A$36=\"La actividad sí contribuye sustancialmente a la sostenibilidad\",'Adaptación-Agricultura'!$B$41=\"La actividad genera contribución sustancial a la sostenibilidad\"),\"La actividad sí contribuye sustancialmente a la sostenibilidad\",\"La actividad no contribuye sustancialmente a la sostenibilidad\"))))))","v":"No se han respondido todas las preguntas"},null,{"$f":"IF('Indice de género-Agricultura'!$E$82=\"Por definir\",\"No se han contestado todas las preguntas\",IF('Indice de género-Agricultura'!$E$82=\"Sí cumple con el índice de igualdad de género\",\"La actividad sí contribuye sustancialmente a la sostenibilidad\",\"La actividad no genera contribución sustancial\"))","v":"La actividad sí contribuye sustancialmente a la sostenibilidad"}]
["Agricultura","111139. Cultivo de otras leguminosas ",{"$f":"IF(OR('Mitigación-Agricultura'!$B$8=\"seleccione\",'Mitigación-Agricultura'!$B$10=\"Seleccione\",'Mitigación-Agricultura'!$B$12=\"Seleccione\",'Mitigación-Agricultura'!$A$16=\"Selecciona la medida 1\",'Mitigación-Agricultura'!$A$17=\"Selecciona la medida 2\",'Mitigación-Agricultura'!$B$19=\"Seleccione\",'Mitigación-Agricultura'!$B$21=\"Seleccione\"),\"No se han respondido todas las preguntas\",IF(AND('Mitigación-Agricultura'!$C$8=\"Sí contribuye sustancialmente a la sostenibilidad\",'Mitigación-Agricultura'!$C$10=\"Sí contribuye sustancialmente a la sostenibilidad. Debe verificarse con evidencia, por ejemplo, con una fotografía\",'Mitigación-Agricultura'!$C$12=\"Sí contribuye sustancialmente a la sostenibilidad\",'Mitigación-Agricultura'!$C$21=\"Contribuye sustancialmente a la sostenibilidad\"),\"La actividad sí contribuye sustancialmente a la sostenibilidad\",IF(AND('Mitigación-Agricultura'!$C$8=\"Se deberá confirmar a través de validación geoespacial\",'Mitigación-Agricultura'!$C$10=\"Sí contribuye sustancialmente a la sostenibilidad. Debe verificarse con evidencia, por ejemplo, con una fotografía\",'Mitigación-Agricultura'!$C$12=\"Sí contribuye sustancialmente a la sostenibilidad\",'Mitigación-Agricultura'!$C$21=\"Contribuye sustancialmente a la sostenibilidad\"),\"La actividad sí contribuye sustancialmente a la sostenibilidad\",\"La actividad no genera contribución sustancial a la sostenibilidad\")))","v":"La actividad sí contribuye sustancialmente a la sostenibilidad"},{"$f":"IF('Adaptación-Agricultura'!$D$8=\"Actividad que facilita la adaptación e incluye desarrollo de infraestructura\",(IF(OR('Adaptación-Agricultura'!$A$19=\"Por definir\",'Adaptación-Agricultura'!$A$25=\"Por definir\",'Adaptación-Agricultura'!$G$29=\"Por definir\",'Adaptación-Agricultura'!$A$36=\"Por definir\",'Adaptación-Agricultura'!$B$41=\"Por definir\"),\"No se han respondido todas las preguntas\",IF(AND('Adaptación-Agricultura'!$A$19=\"La actividad sí contribuye sustancialmente a la sostenibilidad\",'Adaptación-Agricultura'!$A$25=\"La actividad sí contribuye sustancialmente a la sostenibilidad\",'Adaptación-Agricultura'!$G$29=\"La actividad sí contribuye sustancialmente a la sostenbilidad\",'Adaptación-Agricultura'!$A$36=\"La actividad sí contribuye sustancialmente a la sostenibilidad\",'Adaptación-Agricultura'!$B$41=\"La actividad genera contribución sustancial a la sostenibilidad\"),\"La actividad sí contribuye sustancialmente a la sostenibilidad\",\"La actividad no contribuye sustancialmente a la sostenibilidad\"))),IF('Adaptación-Agricultura'!$D$8=\"Actividad adaptada\",(IF(OR('Adaptación-Agricultura'!$A$19=\"Por definir\",'Adaptación-Agricultura'!$A$25=\"Por definir\",'Adaptación-Agricultura'!$G$29=\"Por definir\",'Adaptación-Agricultura'!$A$36=\"Por definir\",'Adaptación-Agricultura'!$B$41=\"Por definir\"),\"No se han respondido todas las preguntas\",IF(AND('Adaptación-Agricultura'!$A$19=\"La actividad sí contribuye sustancialmente a la sostenibilidad\",'Adaptación-Agricultura'!$A$25=\"La actividad sí contribuye sustancialmente a la sostenibilidad\",'Adaptación-Agricultura'!$G$29=\"La actividad sí contribuye sustancialmente a la sostenbilidad\",'Adaptación-Agricultura'!$B$41=\"La actividad genera contribución sustancial a la sostenibilidad\"),\"La actividad sí contribuye sustancialmente a la sostenibilidad\",\"La actividad no contribuye sustancialmente a la sostenibilidad\"))),IF('Adaptación-Agricultura'!$D$8=\"Actividad que facilita la adaptación\",(IF(OR('Adaptación-Agricultura'!$A$36=\"Por definir\",'Adaptación-Agricultura'!$B$41=\"Por definir\"),\"No se han respondido todas las preguntas\",IF(AND('Adaptación-Agricultura'!$A$36=\"La actividad sí contribuye sustancialmente a la sostenibilidad\",'Adaptación-Agricultura'!$B$41=\"La actividad genera contribución sustancial a la sostenibilidad\"),\"La actividad sí contribuye sustancialmente a la sostenibilidad\",\"La actividad no contribuye sustancialmente a la sostenibilidad\"))))))","v":"No se han respondido todas las preguntas"},null,{"$f":"IF('Indice de género-Agricultura'!$E$82=\"Por definir\",\"No se han contestado todas las preguntas\",IF('Indice de género-Agricultura'!$E$82=\"Sí cumple con el índice de igualdad de género\",\"La actividad sí contribuye sustancialmente a la sostenibilidad\",\"La actividad no genera contribución sustancial\"))","v":"La actividad sí contribuye sustancialmente a la sostenibilidad"}]
["Agricultura","111140. Cultivo de trigo (No Perenne) ",{"$f":"IF(OR('Mitigación-Agricultura'!$B$8=\"seleccione\",'Mitigación-Agricultura'!$B$10=\"Seleccione\",'Mitigación-Agricultura'!$B$12=\"Seleccione\",'Mitigación-Agricultura'!$A$16=\"Selecciona la medida 1\",'Mitigación-Agricultura'!$A$17=\"Selecciona la medida 2\",'Mitigación-Agricultura'!$B$19=\"Seleccione\",'Mitigación-Agricultura'!$B$21=\"Seleccione\"),\"No se han respondido todas las preguntas\",IF(AND('Mitigación-Agricultura'!$C$8=\"Sí contribuye sustancialmente a la sostenibilidad\",'Mitigación-Agricultura'!$C$10=\"Sí contribuye sustancialmente a la sostenibilidad. Debe verificarse con evidencia, por ejemplo, con una fotografía\",'Mitigación-Agricultura'!$C$12=\"Sí contribuye sustancialmente a la sostenibilidad\",'Mitigación-Agricultura'!$C$21=\"Contribuye sustancialmente a la sostenibilidad\"),\"La actividad sí contribuye sustancialmente a la sostenibilidad\",IF(AND('Mitigación-Agricultura'!$C$8=\"Se deberá confirmar a través de validación geoespacial\",'Mitigación-Agricultura'!$C$10=\"Sí contribuye sustancialmente a la sostenibilidad. Debe verificarse con evidencia, por ejemplo, con una fotografía\",'Mitigación-Agricultura'!$C$12=\"Sí contribuye sustancialmente a la sostenibilidad\",'Mitigación-Agricultura'!$C$21=\"Contribuye sustancialmente a la sostenibilidad\"),\"La actividad sí contribuye sustancialmente a la sostenibilidad\",\"La actividad no genera contribución sustancial a la sostenibilidad\")))","v":"La actividad sí contribuye sustancialmente a la sostenibilidad"},{"$f":"IF('Adaptación-Agricultura'!$D$8=\"Actividad que facilita la adaptación e incluye desarrollo de infraestructura\",(IF(OR('Adaptación-Agricultura'!$A$19=\"Por definir\",'Adaptación-Agricultura'!$A$25=\"Por definir\",'Adaptación-Agricultura'!$G$29=\"Por definir\",'Adaptación-Agricultura'!$A$36=\"Por definir\",'Adaptación-Agricultura'!$B$41=\"Por definir\"),\"No se han respondido todas las preguntas\",IF(AND('Adaptación-Agricultura'!$A$19=\"La actividad sí contribuye sustancialmente a la sostenibilidad\",'Adaptación-Agricultura'!$A$25=\"La actividad sí contribuye sustancialmente a la sostenibilidad\",'Adaptación-Agricultura'!$G$29=\"La actividad sí contribuye sustancialmente a la sostenbilidad\",'Adaptación-Agricultura'!$A$36=\"La actividad sí contribuye sustancialmente a la sostenibilidad\",'Adaptación-Agricultura'!$B$41=\"La actividad genera contribución sustancial a la sostenibilidad\"),\"La actividad sí contribuye sustancialmente a la sostenibilidad\",\"La actividad no contribuye sustancialmente a la sostenibilidad\"))),IF('Adaptación-Agricultura'!$D$8=\"Actividad adaptada\",(IF(OR('Adaptación-Agricultura'!$A$19=\"Por definir\",'Adaptación-Agricultura'!$A$25=\"Por definir\",'Adaptación-Agricultura'!$G$29=\"Por definir\",'Adaptación-Agricultura'!$A$36=\"Por definir\",'Adaptación-Agricultura'!$B$41=\"Por definir\"),\"No se han respondido todas las preguntas\",IF(AND('Adaptación-Agricultura'!$A$19=\"La actividad sí contribuye sustancialmente a la sostenibilidad\",'Adaptación-Agricultura'!$A$25=\"La actividad sí contribuye sustancialmente a la sostenibilidad\",'Adaptación-Agricultura'!$G$29=\"La actividad sí contribuye sustancialmente a la sostenbilidad\",'Adaptación-Agricultura'!$B$41=\"La actividad genera contribución sustancial a la sostenibilidad\"),\"La actividad sí contribuye sustancialmente a la sostenibilidad\",\"La actividad no contribuye sustancialmente a la sostenibilidad\"))),IF('Adaptación-Agricultura'!$D$8=\"Actividad que facilita la adaptación\",(IF(OR('Adaptación-Agricultura'!$A$36=\"Por definir\",'Adaptación-Agricultura'!$B$41=\"Por definir\"),\"No se han respondido todas las preguntas\",IF(AND('Adaptación-Agricultura'!$A$36=\"La actividad sí contribuye sustancialmente a la sostenibilidad\",'Adaptación-Agricultura'!$B$41=\"La actividad genera contribución sustancial a la sostenibilidad\"),\"La actividad sí contribuye sustancialmente a la sostenibilidad\",\"La actividad no contribuye sustancialmente a la sostenibilidad\"))))))","v":"No se han respondido todas las preguntas"},null,{"$f":"IF('Indice de género-Agricultura'!$E$82=\"Por definir\",\"No se han contestado todas las preguntas\",IF('Indice de género-Agricultura'!$E$82=\"Sí cumple con el índice de igualdad de género\",\"La actividad sí contribuye sustancialmente a la sostenibilidad\",\"La actividad no genera contribución sustancial\"))","v":"La actividad sí contribuye sustancialmente a la sostenibilidad"}]
["Agricultura","111151. Cultivo de maíz grano ",{"$f":"IF(OR('Mitigación-Agricultura'!$B$8=\"seleccione\",'Mitigación-Agricultura'!$B$10=\"Seleccione\",'Mitigación-Agricultura'!$B$12=\"Seleccione\",'Mitigación-Agricultura'!$A$16=\"Selecciona la medida 1\",'Mitigación-Agricultura'!$A$17=\"Selecciona la medida 2\",'Mitigación-Agricultura'!$B$19=\"Seleccione\",'Mitigación-Agricultura'!$B$21=\"Seleccione\"),\"No se han respondido todas las preguntas\",IF(AND('Mitigación-Agricultura'!$C$8=\"Sí contribuye sustancialmente a la sostenibilidad\",'Mitigación-Agricultura'!$C$10=\"Sí contribuye sustancialmente a la sostenibilidad. Debe verificarse con evidencia, por ejemplo, con una fotografía\",'Mitigación-Agricultura'!$C$12=\"Sí contribuye sustancialmente a la sostenibilidad\",'Mitigación-Agricultura'!$C$21=\"Contribuye sustancialmente a la sostenibilidad\"),\"La actividad sí contribuye sustancialmente a la sostenibilidad\",IF(AND('Mitigación-Agricultura'!$C$8=\"Se deberá confirmar a través de validación geoespacial\",'Mitigación-Agricultura'!$C$10=\"Sí contribuye sustancialmente a la sostenibilidad. Debe verificarse con evidencia, por ejemplo, con una fotografía\",'Mitigación-Agricultura'!$C$12=\"Sí contribuye sustancialmente a la sostenibilidad\",'Mitigación-Agricultura'!$C$21=\"Contribuye sustancialmente a la sostenibilidad\"),\"La actividad sí contribuye sustancialmente a la sostenibilidad\",\"La actividad no genera contribución sustancial a la sostenibilidad\")))","v":"La actividad sí contribuye sustancialmente a la sostenibilidad"},{"$f":"IF('Adaptación-Agricultura'!$D$8=\"Actividad que facilita la adaptación e incluye desarrollo de infraestructura\",(IF(OR('Adaptación-Agricultura'!$A$19=\"Por definir\",'Adaptación-Agricultura'!$A$25=\"Por definir\",'Adaptación-Agricultura'!$G$29=\"Por definir\",'Adaptación-Agricultura'!$A$36=\"Por definir\",'Adaptación-Agricultura'!$B$41=\"Por definir\"),\"No se han respondido todas las preguntas\",IF(AND('Adaptación-Agricultura'!$A$19=\"La actividad sí contribuye sustancialmente a la sostenibilidad\",'Adaptación-Agricultura'!$A$25=\"La actividad sí contribuye sustancialmente a la sostenibilidad\",'Adaptación-Agricultura'!$G$29=\"La actividad sí contribuye sustancialmente a la sostenbilidad\",'Adaptación-Agricultura'!$A$36=\"La actividad sí contribuye sustancialmente a la sostenibilidad\",'Adaptación-Agricultura'!$B$41=\"La actividad genera contribución sustancial a la sostenibilidad\"),\"La actividad sí contribuye sustancialmente a la sostenibilidad\",\"La actividad no contribuye sustancialmente a la sostenibilidad\"))),IF('Adaptación-Agricultura'!$D$8=\"Actividad adaptada\",(IF(OR('Adaptación-Agricultura'!$A$19=\"Por definir\",'Adaptación-Agricultura'!$A$25=\"Por definir\",'Adaptación-Agricultura'!$G$29=\"Por definir\",'Adaptación-Agricultura'!$A$36=\"Por definir\",'Adaptación-Agricultura'!$B$41=\"Por definir\"),\"No se han respondido todas las preguntas\",IF(AND('Adaptación-Agricultura'!$A$19=\"La actividad sí contribuye sustancialmente a la sostenibilidad\",'Adaptación-Agricultura'!$A$25=\"La actividad sí contribuye sustancialmente a la sostenibilidad\",'Adaptación-Agricultura'!$G$29=\"La actividad sí contribuye sustancialmente a la sostenbilidad\",'Adaptación-Agricultura'!$B$41=\"La actividad genera contribución sustancial a la sostenibilidad\"),\"La actividad sí contribuye sustancialmente a la sostenibilidad\",\"La actividad no contribuye sustancialmente a la sostenibilidad\"))),IF('Adaptación-Agricultura'!$D$8=\"Actividad que facilita la adaptación\",(IF(OR('Adaptación-Agricultura'!$A$36=\"Por definir\",'Adaptación-Agricultura'!$B$41=\"Por definir\"),\"No se han respondido todas las preguntas\",IF(AND('Adaptación-Agricultura'!$A$36=\"La actividad sí contribuye sustancialmente a la sostenibilidad\",'Adaptación-Agricultura'!$B$41=\"La actividad genera contribución sustancial a la sostenibilidad\"),\"La actividad sí contribuye sustancialmente a la sostenibilidad\",\"La actividad no contribuye sustancialmente a la sostenibilidad\"))))))","v":"No se han respondido todas las preguntas"},null,{"$f":"IF('Indice de género-Agricultura'!$E$82=\"Por definir\",\"No se han contestado todas las preguntas\",IF('Indice de género-Agricultura'!$E$82=\"Sí cumple con el índice de igualdad de género\",\"La actividad sí contribuye sustancialmente a la sostenibilidad\",\"La actividad no genera contribución sustancial\"))","v":"La actividad sí contribuye sustancialmente a la sostenibilidad"}]
["Agricultura","111152. Cultivo de maíz forrajero ",{"$f":"IF(OR('Mitigación-Agricultura'!$B$8=\"seleccione\",'Mitigación-Agricultura'!$B$10=\"Seleccione\",'Mitigación-Agricultura'!$B$12=\"Seleccione\",'Mitigación-Agricultura'!$A$16=\"Selecciona la medida 1\",'Mitigación-Agricultura'!$A$17=\"Selecciona la medida 2\",'Mitigación-Agricultura'!$B$19=\"Seleccione\",'Mitigación-Agricultura'!$B$21=\"Seleccione\"),\"No se han respondido todas las preguntas\",IF(AND('Mitigación-Agricultura'!$C$8=\"Sí contribuye sustancialmente a la sostenibilidad\",'Mitigación-Agricultura'!$C$10=\"Sí contribuye sustancialmente a la sostenibilidad. Debe verificarse con evidencia, por ejemplo, con una fotografía\",'Mitigación-Agricultura'!$C$12=\"Sí contribuye sustancialmente a la sostenibilidad\",'Mitigación-Agricultura'!$C$21=\"Contribuye sustancialmente a la sostenibilidad\"),\"La actividad sí contribuye sustancialmente a la sostenibilidad\",IF(AND('Mitigación-Agricultura'!$C$8=\"Se deberá confirmar a través de validación geoespacial\",'Mitigación-Agricultura'!$C$10=\"Sí contribuye sustancialmente a la sostenibilidad. Debe verificarse con evidencia, por ejemplo, con una fotografía\",'Mitigación-Agricultura'!$C$12=\"Sí contribuye sustancialmente a la sostenibilidad\",'Mitigación-Agricultura'!$C$21=\"Contribuye sustancialmente a la sostenibilidad\"),\"La actividad sí contribuye sustancialmente a la sostenibilidad\",\"La actividad no genera contribución sustancial a la sostenibilidad\")))","v":"La actividad sí contribuye sustancialmente a la sostenibilidad"},{"$f":"IF('Adaptación-Agricultura'!$D$8=\"Actividad que facilita la adaptación e incluye desarrollo de infraestructura\",(IF(OR('Adaptación-Agricultura'!$A$19=\"Por definir\",'Adaptación-Agricultura'!$A$25=\"Por definir\",'Adaptación-Agricultura'!$G$29=\"Por definir\",'Adaptación-Agricultura'!$A$36=\"Por definir\",'Adaptación-Agricultura'!$B$41=\"Por definir\"),\"No se han respondido todas las preguntas\",IF(AND('Adaptación-Agricultura'!$A$19=\"La actividad sí contribuye sustancialmente a la sostenibilidad\",'Adaptación-Agricultura'!$A$25=\"La actividad sí contribuye sustancialmente a la sostenibilidad\",'Adaptación-Agricultura'!$G$29=\"La actividad sí contribuye sustancialmente a la sostenbilidad\",'Adaptación-Agricultura'!$A$36=\"La actividad sí contribuye sustancialmente a la sostenibilidad\",'Adaptación-Agricultura'!$B$41=\"La actividad genera contribución sustancial a la sostenibilidad\"),\"La actividad sí contribuye sustancialmente a la sostenibilidad\",\"La actividad no contribuye sustancialmente a la sostenibilidad\"))),IF('Adaptación-Agricultura'!$D$8=\"Actividad adaptada\",(IF(OR('Adaptación-Agricultura'!$A$19=\"Por definir\",'Adaptación-Agricultura'!$A$25=\"Por definir\",'Adaptación-Agricultura'!$G$29=\"Por definir\",'Adaptación-Agricultura'!$A$36=\"Por definir\",'Adaptación-Agricultura'!$B$41=\"Por definir\"),\"No se han respondido todas las preguntas\",IF(AND('Adaptación-Agricultura'!$A$19=\"La actividad sí contribuye sustancialmente a la sostenibilidad\",'Adaptación-Agricultura'!$A$25=\"La actividad sí contribuye sustancialmente a la sostenibilidad\",'Adaptación-Agricultura'!$G$29=\"La actividad sí contribuye sustancialmente a la sostenbilidad\",'Adaptación-Agricultura'!$B$41=\"La actividad genera contribución sustancial a la sostenibilidad\"),\"La actividad sí contribuye sustancialmente a la sostenibilidad\",\"La actividad no contribuye sustancialmente a la sostenibilidad\"))),IF('Adaptación-Agricultura'!$D$8=\"Actividad que facilita la adaptación\",(IF(OR('Adaptación-Agricultura'!$A$36=\"Por definir\",'Adaptación-Agricultura'!$B$41=\"Por definir\"),\"No se han respondido todas las preguntas\",IF(AND('Adaptación-Agricultura'!$A$36=\"La actividad sí contribuye sustancialmente a la sostenibilidad\",'Adaptación-Agricultura'!$B$41=\"La actividad genera contribución sustancial a la sostenibilidad\"),\"La actividad sí contribuye sustancialmente a la sostenibilidad\",\"La actividad no contribuye sustancialmente a la sostenibilidad\"))))))","v":"No se han respondido todas las preguntas"},null,{"$f":"IF('Indice de género-Agricultura'!$E$82=\"Por definir\",\"No se han contestado todas las preguntas\",IF('Indice de género-Agricultura'!$E$82=\"Sí cumple con el índice de igualdad de género\",\"La actividad sí contribuye sustancialmente a la sostenibilidad\",\"La actividad no genera contribución sustancial\"))","v":"La actividad sí contribuye sustancialmente a la sostenibilidad"}]
["Agricultura","111160. Cultivo de arroz ",{"$f":"IF(OR('Mitigación-Agricultura'!$B$8=\"seleccione\",'Mitigación-Agricultura'!$B$10=\"Seleccione\",'Mitigación-Agricultura'!$B$12=\"Seleccione\",'Mitigación-Agricultura'!$A$16=\"Selecciona la medida 1\",'Mitigación-Agricultura'!$A$17=\"Selecciona la medida 2\",'Mitigación-Agricultura'!$B$19=\"Seleccione\",'Mitigación-Agricultura'!$B$21=\"Seleccione\"),\"No se han respondido todas las preguntas\",IF(AND('Mitigación-Agricultura'!$C$8=\"Sí contribuye sustancialmente a la sostenibilidad\",'Mitigación-Agricultura'!$C$10=\"Sí contribuye sustancialmente a la sostenibilidad. Debe verificarse con evidencia, por ejemplo, con una fotografía\",'Mitigación-Agricultura'!$C$12=\"Sí contribuye sustancialmente a la sostenibilidad\",'Mitigación-Agricultura'!$C$21=\"Contribuye sustancialmente a la sostenibilidad\"),\"La actividad sí contribuye sustancialmente a la sostenibilidad\",IF(AND('Mitigación-Agricultura'!$C$8=\"Se deberá confirmar a través de validación geoespacial\",'Mitigación-Agricultura'!$C$10=\"Sí contribuye sustancialmente a la sostenibilidad. Debe verificarse con evidencia, por ejemplo, con una fotografía\",'Mitigación-Agricultura'!$C$12=\"Sí contribuye sustancialmente a la sostenibilidad\",'Mitigación-Agricultura'!$C$21=\"Contribuye sustancialmente a la sostenibilidad\"),\"La actividad sí contribuye sustancialmente a la sostenibilidad\",\"La actividad no genera contribución sustancial a la sostenibilidad\")))","v":"La actividad sí contribuye sustancialmente a la sostenibilidad"},{"$f":"IF('Adaptación-Agricultura'!$D$8=\"Actividad que facilita la adaptación e incluye desarrollo de infraestructura\",(IF(OR('Adaptación-Agricultura'!$A$19=\"Por definir\",'Adaptación-Agricultura'!$A$25=\"Por definir\",'Adaptación-Agricultura'!$G$29=\"Por definir\",'Adaptación-Agricultura'!$A$36=\"Por definir\",'Adaptación-Agricultura'!$B$41=\"Por definir\"),\"No se han respondido todas las preguntas\",IF(AND('Adaptación-Agricultura'!$A$19=\"La actividad sí contribuye sustancialmente a la sostenibilidad\",'Adaptación-Agricultura'!$A$25=\"La actividad sí contribuye sustancialmente a la sostenibilidad\",'Adaptación-Agricultura'!$G$29=\"La actividad sí contribuye sustancialmente a la sostenbilidad\",'Adaptación-Agricultura'!$A$36=\"La actividad sí contribuye sustancialmente a la sostenibilidad\",'Adaptación-Agricultura'!$B$41=\"La actividad genera contribución sustancial a la sostenibilidad\"),\"La actividad sí contribuye sustancialmente a la sostenibilidad\",\"La actividad no contribuye sustancialmente a la sostenibilidad\"))),IF('Adaptación-Agricultura'!$D$8=\"Actividad adaptada\",(IF(OR('Adaptación-Agricultura'!$A$19=\"Por definir\",'Adaptación-Agricultura'!$A$25=\"Por definir\",'Adaptación-Agricultura'!$G$29=\"Por definir\",'Adaptación-Agricultura'!$A$36=\"Por definir\",'Adaptación-Agricultura'!$B$41=\"Por definir\"),\"No se han respondido todas las preguntas\",IF(AND('Adaptación-Agricultura'!$A$19=\"La actividad sí contribuye sustancialmente a la sostenibilidad\",'Adaptación-Agricultura'!$A$25=\"La actividad sí contribuye sustancialmente a la sostenibilidad\",'Adaptación-Agricultura'!$G$29=\"La actividad sí contribuye sustancialmente a la sostenbilidad\",'Adaptación-Agricultura'!$B$41=\"La actividad genera contribución sustancial a la sostenibilidad\"),\"La actividad sí contribuye sustancialmente a la sostenibilidad\",\"La actividad no contribuye sustancialmente a la sostenibilidad\"))),IF('Adaptación-Agricultura'!$D$8=\"Actividad que facilita la adaptación\",(IF(OR('Adaptación-Agricultura'!$A$36=\"Por definir\",'Adaptación-Agricultura'!$B$41=\"Por definir\"),\"No se han respondido todas las preguntas\",IF(AND('Adaptación-Agricultura'!$A$36=\"La actividad sí contribuye sustancialmente a la sostenibilidad\",'Adaptación-Agricultura'!$B$41=\"La actividad genera contribución sustancial a la sostenibilidad\"),\"La actividad sí contribuye sustancialmente a la sostenibilidad\",\"La actividad no contribuye sustancialmente a la sostenibilidad\"))))))","v":"No se han respondido todas las preguntas"},null,{"$f":"IF('Indice de género-Agricultura'!$E$82=\"Por definir\",\"No se han contestado todas las preguntas\",IF('Indice de género-Agricultura'!$E$82=\"Sí cumple con el índice de igualdad de género\",\"La actividad sí contribuye sustancialmente a la sostenibilidad\",\"La actividad no genera contribución sustancial\"))","v":"La actividad sí contribuye sustancialmente a la sostenibilidad"}]
["Agricultura","111191. Cultivo de sorgo grano ",{"$f":"IF(OR('Mitigación-Agricultura'!$B$8=\"seleccione\",'Mitigación-Agricultura'!$B$10=\"Seleccione\",'Mitigación-Agricultura'!$B$12=\"Seleccione\",'Mitigación-Agricultura'!$A$16=\"Selecciona la medida 1\",'Mitigación-Agricultura'!$A$17=\"Selecciona la medida 2\",'Mitigación-Agricultura'!$B$19=\"Seleccione\",'Mitigación-Agricultura'!$B$21=\"Seleccione\"),\"No se han respondido todas las preguntas\",IF(AND('Mitigación-Agricultura'!$C$8=\"Sí contribuye sustancialmente a la sostenibilidad\",'Mitigación-Agricultura'!$C$10=\"Sí contribuye sustancialmente a la sostenibilidad. Debe verificarse con evidencia, por ejemplo, con una fotografía\",'Mitigación-Agricultura'!$C$12=\"Sí contribuye sustancialmente a la sostenibilidad\",'Mitigación-Agricultura'!$C$21=\"Contribuye sustancialmente a la sostenibilidad\"),\"La actividad sí contribuye sustancialmente a la sostenibilidad\",IF(AND('Mitigación-Agricultura'!$C$8=\"Se deberá confirmar a través de validación geoespacial\",'Mitigación-Agricultura'!$C$10=\"Sí contribuye sustancialmente a la sostenibilidad. Debe verificarse con evidencia, por ejemplo, con una fotografía\",'Mitigación-Agricultura'!$C$12=\"Sí contribuye sustancialmente a la sostenibilidad\",'Mitigación-Agricultura'!$C$21=\"Contribuye sustancialmente a la sostenibilidad\"),\"La actividad sí contribuye sustancialmente a la sostenibilidad\",\"La actividad no genera contribución sustancial a la sostenibilidad\")))","v":"La actividad sí contribuye sustancialmente a la sostenibilidad"},{"$f":"IF('Adaptación-Agricultura'!$D$8=\"Actividad que facilita la adaptación e incluye desarrollo de infraestructura\",(IF(OR('Adaptación-Agricultura'!$A$19=\"Por definir\",'Adaptación-Agricultura'!$A$25=\"Por definir\",'Adaptación-Agricultura'!$G$29=\"Por definir\",'Adaptación-Agricultura'!$A$36=\"Por definir\",'Adaptación-Agricultura'!$B$41=\"Por definir\"),\"No se han respondido todas las preguntas\",IF(AND('Adaptación-Agricultura'!$A$19=\"La actividad sí contribuye sustancialmente a la sostenibilidad\",'Adaptación-Agricultura'!$A$25=\"La actividad sí contribuye sustancialmente a la sostenibilidad\",'Adaptación-Agricultura'!$G$29=\"La actividad sí contribuye sustancialmente a la sostenbilidad\",'Adaptación-Agricultura'!$A$36=\"La actividad sí contribuye sustancialmente a la sostenibilidad\",'Adaptación-Agricultura'!$B$41=\"La actividad genera contribución sustancial a la sostenibilidad\"),\"La actividad sí contribuye sustancialmente a la sostenibilidad\",\"La actividad no contribuye sustancialmente a la sostenibilidad\"))),IF('Adaptación-Agricultura'!$D$8=\"Actividad adaptada\",(IF(OR('Adaptación-Agricultura'!$A$19=\"Por definir\",'Adaptación-Agricultura'!$A$25=\"Por definir\",'Adaptación-Agricultura'!$G$29=\"Por definir\",'Adaptación-Agricultura'!$A$36=\"Por definir\",'Adaptación-Agricultura'!$B$41=\"Por definir\"),\"No se han respondido todas las preguntas\",IF(AND('Adaptación-Agricultura'!$A$19=\"La actividad sí contribuye sustancialmente a la sostenibilidad\",'Adaptación-Agricultura'!$A$25=\"La actividad sí contribuye sustancialmente a la sostenibilidad\",'Adaptación-Agricultura'!$G$29=\"La actividad sí contribuye sustancialmente a la sostenbilidad\",'Adaptación-Agricultura'!$B$41=\"La actividad genera contribución sustancial a la sostenibilidad\"),\"La actividad sí contribuye sustancialmente a la sostenibilidad\",\"La actividad no contribuye sustancialmente a la sostenibilidad\"))),IF('Adaptación-Agricultura'!$D$8=\"Actividad que facilita la adaptación\",(IF(OR('Adaptación-Agricultura'!$A$36=\"Por definir\",'Adaptación-Agricultura'!$B$41=\"Por definir\"),\"No se han respondido todas las preguntas\",IF(AND('Adaptación-Agricultura'!$A$36=\"La actividad sí contribuye sustancialmente a la sostenibilidad\",'Adaptación-Agricultura'!$B$41=\"La actividad genera contribución sustancial a la sostenibilidad\"),\"La actividad sí contribuye sustancialmente a la sostenibilidad\",\"La actividad no contribuye sustancialmente a la sostenibilidad\"))))))","v":"No se han respondido todas las preguntas"},null,{"$f":"IF('Indice de género-Agricultura'!$E$82=\"Por definir\",\"No se han contestado todas las preguntas\",IF('Indice de género-Agricultura'!$E$82=\"Sí cumple con el índice de igualdad de género\",\"La actividad sí contribuye sustancialmente a la sostenibilidad\",\"La actividad no genera contribución sustancial\"))","v":"La actividad sí contribuye sustancialmente a la sostenibilidad"}]
["Agricultura","111192. Cultivo de avena grano ",{"$f":"IF(OR('Mitigación-Agricultura'!$B$8=\"seleccione\",'Mitigación-Agricultura'!$B$10=\"Seleccione\",'Mitigación-Agricultura'!$B$12=\"Seleccione\",'Mitigación-Agricultura'!$A$16=\"Selecciona la medida 1\",'Mitigación-Agricultura'!$A$17=\"Selecciona la medida 2\",'Mitigación-Agricultura'!$B$19=\"Seleccione\",'Mitigación-Agricultura'!$B$21=\"Seleccione\"),\"No se han respondido todas las preguntas\",IF(AND('Mitigación-Agricultura'!$C$8=\"Sí contribuye sustancialmente a la sostenibilidad\",'Mitigación-Agricultura'!$C$10=\"Sí contribuye sustancialmente a la sostenibilidad. Debe verificarse con evidencia, por ejemplo, con una fotografía\",'Mitigación-Agricultura'!$C$12=\"Sí contribuye sustancialmente a la sostenibilidad\",'Mitigación-Agricultura'!$C$21=\"Contribuye sustancialmente a la sostenibilidad\"),\"La actividad sí contribuye sustancialmente a la sostenibilidad\",IF(AND('Mitigación-Agricultura'!$C$8=\"Se deberá confirmar a través de validación geoespacial\",'Mitigación-Agricultura'!$C$10=\"Sí contribuye sustancialmente a la sostenibilidad. Debe verificarse con evidencia, por ejemplo, con una fotografía\",'Mitigación-Agricultura'!$C$12=\"Sí contribuye sustancialmente a la sostenibilidad\",'Mitigación-Agricultura'!$C$21=\"Contribuye sustancialmente a la sostenibilidad\"),\"La actividad sí contribuye sustancialmente a la sostenibilidad\",\"La actividad no genera contribución sustancial a la sostenibilidad\")))","v":"La actividad sí contribuye sustancialmente a la sostenibilidad"},{"$f":"IF('Adaptación-Agricultura'!$D$8=\"Actividad que facilita la adaptación e incluye desarrollo de infraestructura\",(IF(OR('Adaptación-Agricultura'!$A$19=\"Por definir\",'Adaptación-Agricultura'!$A$25=\"Por definir\",'Adaptación-Agricultura'!$G$29=\"Por definir\",'Adaptación-Agricultura'!$A$36=\"Por definir\",'Adaptación-Agricultura'!$B$41=\"Por definir\"),\"No se han respondido todas las preguntas\",IF(AND('Adaptación-Agricultura'!$A$19=\"La actividad sí contribuye sustancialmente a la sostenibilidad\",'Adaptación-Agricultura'!$A$25=\"La actividad sí contribuye sustancialmente a la sostenibilidad\",'Adaptación-Agricultura'!$G$29=\"La actividad sí contribuye sustancialmente a la sostenbilidad\",'Adaptación-Agricultura'!$A$36=\"La actividad sí contribuye sustancialmente a la sostenibilidad\",'Adaptación-Agricultura'!$B$41=\"La actividad genera contribución sustancial a la sostenibilidad\"),\"La actividad sí contribuye sustancialmente a la sostenibilidad\",\"La actividad no contribuye sustancialmente a la sostenibilidad\"))),IF('Adaptación-Agricultura'!$D$8=\"Actividad adaptada\",(IF(OR('Adaptación-Agricultura'!$A$19=\"Por definir\",'Adaptación-Agricultura'!$A$25=\"Por definir\",'Adaptación-Agricultura'!$G$29=\"Por definir\",'Adaptación-Agricultura'!$A$36=\"Por definir\",'Adaptación-Agricultura'!$B$41=\"Por definir\"),\"No se han respondido todas las preguntas\",IF(AND('Adaptación-Agricultura'!$A$19=\"La actividad sí contribuye sustancialmente a la sostenibilidad\",'Adaptación-Agricultura'!$A$25=\"La actividad sí contribuye sustancialmente a la sostenibilidad\",'Adaptación-Agricultura'!$G$29=\"La actividad sí contribuye sustancialmente a la sostenbilidad\",'Adaptación-Agricultura'!$B$41=\"La actividad genera contribución sustancial a la sostenibilidad\"),\"La actividad sí contribuye sustancialmente a la sostenibilidad\",\"La actividad no contribuye sustancialmente a la sostenibilidad\"))),IF('Adaptación-Agricultura'!$D$8=\"Actividad que facilita la adaptación\",(IF(OR('Adaptación-Agricultura'!$A$36=\"Por definir\",'Adaptación-Agricultura'!$B$41=\"Por definir\"),\"No se han respondido todas las preguntas\",IF(AND('Adaptación-Agricultura'!$A$36=\"La actividad sí contribuye sustancialmente a la sostenibilidad\",'Adaptación-Agricultura'!$B$41=\"La actividad genera contribución sustancial a la sostenibilidad\"),\"La actividad sí contribuye sustancialmente a la sostenibilidad\",\"La actividad no contribuye sustancialmente a la sostenibilidad\"))))))","v":"No se han respondido todas las preguntas"},null,{"$f":"IF('Indice de género-Agricultura'!$E$82=\"Por definir\",\"No se han contestado todas las preguntas\",IF('Indice de género-Agricultura'!$E$82=\"Sí cumple con el índice de igualdad de género\",\"La actividad sí contribuye sustancialmente a la sostenibilidad\",\"La actividad no genera contribución sustancial\"))","v":"La actividad sí contribuye sustancialmente a la sostenibilidad"}]
["Agricultura","111193. Cultivo de cebada grano ",{"$f":"IF(OR('Mitigación-Agricultura'!$B$8=\"seleccione\",'Mitigación-Agricultura'!$B$10=\"Seleccione\",'Mitigación-Agricultura'!$B$12=\"Seleccione\",'Mitigación-Agricultura'!$A$16=\"Selecciona la medida 1\",'Mitigación-Agricultura'!$A$17=\"Selecciona la medida 2\",'Mitigación-Agricultura'!$B$19=\"Seleccione\",'Mitigación-Agricultura'!$B$21=\"Seleccione\"),\"No se han respondido todas las preguntas\",IF(AND('Mitigación-Agricultura'!$C$8=\"Sí contribuye sustancialmente a la sostenibilidad\",'Mitigación-Agricultura'!$C$10=\"Sí contribuye sustancialmente a la sostenibilidad. Debe verificarse con evidencia, por ejemplo, con una fotografía\",'Mitigación-Agricultura'!$C$12=\"Sí contribuye sustancialmente a la sostenibilidad\",'Mitigación-Agricultura'!$C$21=\"Contribuye sustancialmente a la sostenibilidad\"),\"La actividad sí contribuye sustancialmente a la sostenibilidad\",IF(AND('Mitigación-Agricultura'!$C$8=\"Se deberá confirmar a través de validación geoespacial\",'Mitigación-Agricultura'!$C$10=\"Sí contribuye sustancialmente a la sostenibilidad. Debe verificarse con evidencia, por ejemplo, con una fotografía\",'Mitigación-Agricultura'!$C$12=\"Sí contribuye sustancialmente a la sostenibilidad\",'Mitigación-Agricultura'!$C$21=\"Contribuye sustancialmente a la sostenibilidad\"),\"La actividad sí contribuye sustancialmente a la sostenibilidad\",\"La actividad no genera contribución sustancial a la sostenibilidad\")))","v":"La actividad sí contribuye sustancialmente a la sostenibilidad"},{"$f":"IF('Adaptación-Agricultura'!$D$8=\"Actividad que facilita la adaptación e incluye desarrollo de infraestructura\",(IF(OR('Adaptación-Agricultura'!$A$19=\"Por definir\",'Adaptación-Agricultura'!$A$25=\"Por definir\",'Adaptación-Agricultura'!$G$29=\"Por definir\",'Adaptación-Agricultura'!$A$36=\"Por definir\",'Adaptación-Agricultura'!$B$41=\"Por definir\"),\"No se han respondido todas las preguntas\",IF(AND('Adaptación-Agricultura'!$A$19=\"La actividad sí contribuye sustancialmente a la sostenibilidad\",'Adaptación-Agricultura'!$A$25=\"La actividad sí contribuye sustancialmente a la sostenibilidad\",'Adaptación-Agricultura'!$G$29=\"La actividad sí contribuye sustancialmente a la sostenbilidad\",'Adaptación-Agricultura'!$A$36=\"La actividad sí contribuye sustancialmente a la sostenibilidad\",'Adaptación-Agricultura'!$B$41=\"La actividad genera contribución sustancial a la sostenibilidad\"),\"La actividad sí contribuye sustancialmente a la sostenibilidad\",\"La actividad no contribuye sustancialmente a la sostenibilidad\"))),IF('Adaptación-Agricultura'!$D$8=\"Actividad adaptada\",(IF(OR('Adaptación-Agricultura'!$A$19=\"Por definir\",'Adaptación-Agricultura'!$A$25=\"Por definir\",'Adaptación-Agricultura'!$G$29=\"Por definir\",'Adaptación-Agricultura'!$A$36=\"Por definir\",'Adaptación-Agricultura'!$B$41=\"Por definir\"),\"No se han respondido todas las preguntas\",IF(AND('Adaptación-Agricultura'!$A$19=\"La actividad sí contribuye sustancialmente a la sostenibilidad\",'Adaptación-Agricultura'!$A$25=\"La actividad sí contribuye sustancialmente a la sostenibilidad\",'Adaptación-Agricultura'!$G$29=\"La actividad sí contribuye sustancialmente a la sostenbilidad\",'Adaptación-Agricultura'!$B$41=\"La actividad genera contribución sustancial a la sostenibilidad\"),\"La actividad sí contribuye sustancialmente a la sostenibilidad\",\"La actividad no contribuye sustancialmente a la sostenibilidad\"))),IF('Adaptación-Agricultura'!$D$8=\"Actividad que facilita la adaptación\",(IF(OR('Adaptación-Agricultura'!$A$36=\"Por definir\",'Adaptación-Agricultura'!$B$41=\"Por definir\"),\"No se han respondido todas las preguntas\",IF(AND('Adaptación-Agricultura'!$A$36=\"La actividad sí contribuye sustancialmente a la sostenibilidad\",'Adaptación-Agricultura'!$B$41=\"La actividad genera contribución sustancial a la sostenibilidad\"),\"La actividad sí contribuye sustancialmente a la sostenibilidad\",\"La actividad no contribuye sustancialmente a la sostenibilidad\"))))))","v":"No se han respondido todas las preguntas"},null,{"$f":"IF('Indice de género-Agricultura'!$E$82=\"Por definir\",\"No se han contestado todas las preguntas\",IF('Indice de género-Agricultura'!$E$82=\"Sí cumple con el índice de igualdad de género\",\"La actividad sí contribuye sustancialmente a la sostenibilidad\",\"La actividad no genera contribución sustancial\"))","v":"La actividad sí contribuye sustancialmente a la sostenibilidad"}]
["Agricultura","111194. Cultivo de sorgo forrajero ",{"$f":"IF(OR('Mitigación-Agricultura'!$B$8=\"seleccione\",'Mitigación-Agricultura'!$B$10=\"Seleccione\",'Mitigación-Agricultura'!$B$12=\"Seleccione\",'Mitigación-Agricultura'!$A$16=\"Selecciona la medida 1\",'Mitigación-Agricultura'!$A$17=\"Selecciona la medida 2\",'Mitigación-Agricultura'!$B$19=\"Seleccione\",'Mitigación-Agricultura'!$B$21=\"Seleccione\"),\"No se han respondido todas las preguntas\",IF(AND('Mitigación-Agricultura'!$C$8=\"Sí contribuye sustancialmente a la sostenibilidad\",'Mitigación-Agricultura'!$C$10=\"Sí contribuye sustancialmente a la sostenibilidad. Debe verificarse con evidencia, por ejemplo, con una fotografía\",'Mitigación-Agricultura'!$C$12=\"Sí contribuye sustancialmente a la sostenibilidad\",'Mitigación-Agricultura'!$C$21=\"Contribuye sustancialmente a la sostenibilidad\"),\"La actividad sí contribuye sustancialmente a la sostenibilidad\",IF(AND('Mitigación-Agricultura'!$C$8=\"Se deberá confirmar a través de validación geoespacial\",'Mitigación-Agricultura'!$C$10=\"Sí contribuye sustancialmente a la sostenibilidad. Debe verificarse con evidencia, por ejemplo, con una fotografía\",'Mitigación-Agricultura'!$C$12=\"Sí contribuye sustancialmente a la sostenibilidad\",'Mitigación-Agricultura'!$C$21=\"Contribuye sustancialmente a la sostenibilidad\"),\"La actividad sí contribuye sustancialmente a la sostenibilidad\",\"La actividad no genera contribución sustancial a la sostenibilidad\")))","v":"La actividad sí contribuye sustancialmente a la sostenibilidad"},{"$f":"IF('Adaptación-Agricultura'!$D$8=\"Actividad que facilita la adaptación e incluye desarrollo de infraestructura\",(IF(OR('Adaptación-Agricultura'!$A$19=\"Por definir\",'Adaptación-Agricultura'!$A$25=\"Por definir\",'Adaptación-Agricultura'!$G$29=\"Por definir\",'Adaptación-Agricultura'!$A$36=\"Por definir\",'Adaptación-Agricultura'!$B$41=\"Por definir\"),\"No se han respondido todas las preguntas\",IF(AND('Adaptación-Agricultura'!$A$19=\"La actividad sí contribuye sustancialmente a la sostenibilidad\",'Adaptación-Agricultura'!$A$25=\"La actividad sí contribuye sustancialmente a la sostenibilidad\",'Adaptación-Agricultura'!$G$29=\"La actividad sí contribuye sustancialmente a la sostenbilidad\",'Adaptación-Agricultura'!$A$36=\"La actividad sí contribuye sustancialmente a la sostenibilidad\",'Adaptación-Agricultura'!$B$41=\"La actividad genera contribución sustancial a la sostenibilidad\"),\"La actividad sí contribuye sustancialmente a la sostenibilidad\",\"La actividad no contribuye sustancialmente a la sostenibilidad\"))),IF('Adaptación-Agricultura'!$D$8=\"Actividad adaptada\",(IF(OR('Adaptación-Agricultura'!$A$19=\"Por definir\",'Adaptación-Agricultura'!$A$25=\"Por definir\",'Adaptación-Agricultura'!$G$29=\"Por definir\",'Adaptación-Agricultura'!$A$36=\"Por definir\",'Adaptación-Agricultura'!$B$41=\"Por definir\"),\"No se han respondido todas las preguntas\",IF(AND('Adaptación-Agricultura'!$A$19=\"La actividad sí contribuye sustancialmente a la sostenibilidad\",'Adaptación-Agricultura'!$A$25=\"La actividad sí contribuye sustancialmente a la sostenibilidad\",'Adaptación-Agricultura'!$G$29=\"La actividad sí contribuye sustancialmente a la sostenbilidad\",'Adaptación-Agricultura'!$B$41=\"La actividad genera contribución sustancial a la sostenibilidad\"),\"La actividad sí contribuye sustancialmente a la sostenibilidad\",\"La actividad no contribuye sustancialmente a la sostenibilidad\"))),IF('Adaptación-Agricultura'!$D$8=\"Actividad que facilita la adaptación\",(IF(OR('Adaptación-Agricultura'!$A$36=\"Por definir\",'Adaptación-Agricultura'!$B$41=\"Por definir\"),\"No se han respondido todas las preguntas\",IF(AND('Adaptación-Agricultura'!$A$36=\"La actividad sí contribuye sustancialmente a la sostenibilidad\",'Adaptación-Agricultura'!$B$41=\"La actividad genera contribución sustancial a la sostenibilidad\"),\"La actividad sí contribuye sustancialmente a la sostenibilidad\",\"La actividad no contribuye sustancialmente a la sostenibilidad\"))))))","v":"No se han respondido todas las preguntas"},null,{"$f":"IF('Indice de género-Agricultura'!$E$82=\"Por definir\",\"No se han contestado todas las preguntas\",IF('Indice de género-Agricultura'!$E$82=\"Sí cumple con el índice de igualdad de género\",\"La actividad sí contribuye sustancialmente a la sostenibilidad\",\"La actividad no genera contribución sustancial\"))","v":"La actividad sí contribuye sustancialmente a la sostenibilidad"}]
["Agricultura","111195. Cultivo de avena forrajera ",{"$f":"IF(OR('Mitigación-Agricultura'!$B$8=\"seleccione\",'Mitigación-Agricultura'!$B$10=\"Seleccione\",'Mitigación-Agricultura'!$B$12=\"Seleccione\",'Mitigación-Agricultura'!$A$16=\"Selecciona la medida 1\",'Mitigación-Agricultura'!$A$17=\"Selecciona la medida 2\",'Mitigación-Agricultura'!$B$19=\"Seleccione\",'Mitigación-Agricultura'!$B$21=\"Seleccione\"),\"No se han respondido todas las preguntas\",IF(AND('Mitigación-Agricultura'!$C$8=\"Sí contribuye sustancialmente a la sostenibilidad\",'Mitigación-Agricultura'!$C$10=\"Sí contribuye sustancialmente a la sostenibilidad. Debe verificarse con evidencia, por ejemplo, con una fotografía\",'Mitigación-Agricultura'!$C$12=\"Sí contribuye sustancialmente a la sostenibilidad\",'Mitigación-Agricultura'!$C$21=\"Contribuye sustancialmente a la sostenibilidad\"),\"La actividad sí contribuye sustancialmente a la sostenibilidad\",IF(AND('Mitigación-Agricultura'!$C$8=\"Se deberá confirmar a través de validación geoespacial\",'Mitigación-Agricultura'!$C$10=\"Sí contribuye sustancialmente a la sostenibilidad. Debe verificarse con evidencia, por ejemplo, con una fotografía\",'Mitigación-Agricultura'!$C$12=\"Sí contribuye sustancialmente a la sostenibilidad\",'Mitigación-Agricultura'!$C$21=\"Contribuye sustancialmente a la sostenibilidad\"),\"La actividad sí contribuye sustancialmente a la sostenibilidad\",\"La actividad no genera contribución sustancial a la sostenibilidad\")))","v":"La actividad sí contribuye sustancialmente a la sostenibilidad"},{"$f":"IF('Adaptación-Agricultura'!$D$8=\"Actividad que facilita la adaptación e incluye desarrollo de infraestructura\",(IF(OR('Adaptación-Agricultura'!$A$19=\"Por definir\",'Adaptación-Agricultura'!$A$25=\"Por definir\",'Adaptación-Agricultura'!$G$29=\"Por definir\",'Adaptación-Agricultura'!$A$36=\"Por definir\",'Adaptación-Agricultura'!$B$41=\"Por definir\"),\"No se han respondido todas las preguntas\",IF(AND('Adaptación-Agricultura'!$A$19=\"La actividad sí contribuye sustancialmente a la sostenibilidad\",'Adaptación-Agricultura'!$A$25=\"La actividad sí contribuye sustancialmente a la sostenibilidad\",'Adaptación-Agricultura'!$G$29=\"La actividad sí contribuye sustancialmente a la sostenbilidad\",'Adaptación-Agricultura'!$A$36=\"La actividad sí contribuye sustancialmente a la sostenibilidad\",'Adaptación-Agricultura'!$B$41=\"La actividad genera contribución sustancial a la sostenibilidad\"),\"La actividad sí contribuye sustancialmente a la sostenibilidad\",\"La actividad no contribuye sustancialmente a la sostenibilidad\"))),IF('Adaptación-Agricultura'!$D$8=\"Actividad adaptada\",(IF(OR('Adaptación-Agricultura'!$A$19=\"Por definir\",'Adaptación-Agricultura'!$A$25=\"Por definir\",'Adaptación-Agricultura'!$G$29=\"Por definir\",'Adaptación-Agricultura'!$A$36=\"Por definir\",'Adaptación-Agricultura'!$B$41=\"Por definir\"),\"No se han respondido todas las preguntas\",IF(AND('Adaptación-Agricultura'!$A$19=\"La actividad sí contribuye sustancialmente a la sostenibilidad\",'Adaptación-Agricultura'!$A$25=\"La actividad sí contribuye sustancialmente a la sostenibilidad\",'Adaptación-Agricultura'!$G$29=\"La actividad sí contribuye sustancialmente a la sostenbilidad\",'Adaptación-Agricultura'!$B$41=\"La actividad genera contribución sustancial a la sostenibilidad\"),\"La actividad sí contribuye sustancialmente a la sostenibilidad\",\"La actividad no contribuye sustancialmente a la sostenibilidad\"))),IF('Adaptación-Agricultura'!$D$8=\"Actividad que facilita la adaptación\",(IF(OR('Adaptación-Agricultura'!$A$36=\"Por definir\",'Adaptación-Agricultura'!$B$41=\"Por definir\"),\"No se han respondido todas las preguntas\",IF(AND('Adaptación-Agricultura'!$A$36=\"La actividad sí contribuye sustancialmente a la sostenibilidad\",'Adaptación-Agricultura'!$B$41=\"La actividad genera contribución sustancial a la sostenibilidad\"),\"La actividad sí contribuye sustancialmente a la sostenibilidad\",\"La actividad no contribuye sustancialmente a la sostenibilidad\"))))))","v":"No se han respondido todas las preguntas"},null,{"$f":"IF('Indice de género-Agricultura'!$E$82=\"Por definir\",\"No se han contestado todas las preguntas\",IF('Indice de género-Agricultura'!$E$82=\"Sí cumple con el índice de igualdad de género\",\"La actividad sí contribuye sustancialmente a la sostenibilidad\",\"La actividad no genera contribución sustancial\"))","v":"La actividad sí contribuye sustancialmente a la sostenibilidad"}]
["Agricultura","111199. Cultivo de otros cereales ",{"$f":"IF(OR('Mitigación-Agricultura'!$B$8=\"seleccione\",'Mitigación-Agricultura'!$B$10=\"Seleccione\",'Mitigación-Agricultura'!$B$12=\"Seleccione\",'Mitigación-Agricultura'!$A$16=\"Selecciona la medida 1\",'Mitigación-Agricultura'!$A$17=\"Selecciona la medida 2\",'Mitigación-Agricultura'!$B$19=\"Seleccione\",'Mitigación-Agricultura'!$B$21=\"Seleccione\"),\"No se han respondido todas las preguntas\",IF(AND('Mitigación-Agricultura'!$C$8=\"Sí contribuye sustancialmente a la sostenibilidad\",'Mitigación-Agricultura'!$C$10=\"Sí contribuye sustancialmente a la sostenibilidad. Debe verificarse con evidencia, por ejemplo, con una fotografía\",'Mitigación-Agricultura'!$C$12=\"Sí contribuye sustancialmente a la sostenibilidad\",'Mitigación-Agricultura'!$C$21=\"Contribuye sustancialmente a la sostenibilidad\"),\"La actividad sí contribuye sustancialmente a la sostenibilidad\",IF(AND('Mitigación-Agricultura'!$C$8=\"Se deberá confirmar a través de validación geoespacial\",'Mitigación-Agricultura'!$C$10=\"Sí contribuye sustancialmente a la sostenibilidad. Debe verificarse con evidencia, por ejemplo, con una fotografía\",'Mitigación-Agricultura'!$C$12=\"Sí contribuye sustancialmente a la sostenibilidad\",'Mitigación-Agricultura'!$C$21=\"Contribuye sustancialmente a la sostenibilidad\"),\"La actividad sí contribuye sustancialmente a la sostenibilidad\",\"La actividad no genera contribución sustancial a la sostenibilidad\")))","v":"La actividad sí contribuye sustancialmente a la sostenibilidad"},{"$f":"IF('Adaptación-Agricultura'!$D$8=\"Actividad que facilita la adaptación e incluye desarrollo de infraestructura\",(IF(OR('Adaptación-Agricultura'!$A$19=\"Por definir\",'Adaptación-Agricultura'!$A$25=\"Por definir\",'Adaptación-Agricultura'!$G$29=\"Por definir\",'Adaptación-Agricultura'!$A$36=\"Por definir\",'Adaptación-Agricultura'!$B$41=\"Por definir\"),\"No se han respondido todas las preguntas\",IF(AND('Adaptación-Agricultura'!$A$19=\"La actividad sí contribuye sustancialmente a la sostenibilidad\",'Adaptación-Agricultura'!$A$25=\"La actividad sí contribuye sustancialmente a la sostenibilidad\",'Adaptación-Agricultura'!$G$29=\"La actividad sí contribuye sustancialmente a la sostenbilidad\",'Adaptación-Agricultura'!$A$36=\"La actividad sí contribuye sustancialmente a la sostenibilidad\",'Adaptación-Agricultura'!$B$41=\"La actividad genera contribución sustancial a la sostenibilidad\"),\"La actividad sí contribuye sustancialmente a la sostenibilidad\",\"La actividad no contribuye sustancialmente a la sostenibilidad\"))),IF('Adaptación-Agricultura'!$D$8=\"Actividad adaptada\",(IF(OR('Adaptación-Agricultura'!$A$19=\"Por definir\",'Adaptación-Agricultura'!$A$25=\"Por definir\",'Adaptación-Agricultura'!$G$29=\"Por definir\",'Adaptación-Agricultura'!$A$36=\"Por definir\",'Adaptación-Agricultura'!$B$41=\"Por definir\"),\"No se han respondido todas las preguntas\",IF(AND('Adaptación-Agricultura'!$A$19=\"La actividad sí contribuye sustancialmente a la sostenibilidad\",'Adaptación-Agricultura'!$A$25=\"La actividad sí contribuye sustancialmente a la sostenibilidad\",'Adaptación-Agricultura'!$G$29=\"La actividad sí contribuye sustancialmente a la sostenbilidad\",'Adaptación-Agricultura'!$B$41=\"La actividad genera contribución sustancial a la sostenibilidad\"),\"La actividad sí contribuye sustancialmente a la sostenibilidad\",\"La actividad no contribuye sustancialmente a la sostenibilidad\"))),IF('Adaptación-Agricultura'!$D$8=\"Actividad que facilita la adaptación\",(IF(OR('Adaptación-Agricultura'!$A$36=\"Por definir\",'Adaptación-Agricultura'!$B$41=\"Por definir\"),\"No se han respondido todas las preguntas\",IF(AND('Adaptación-Agricultura'!$A$36=\"La actividad sí contribuye sustancialmente a la sostenibilidad\",'Adaptación-Agricultura'!$B$41=\"La actividad genera contribución sustancial a la sostenibilidad\"),\"La actividad sí contribuye sustancialmente a la sostenibilidad\",\"La actividad no contribuye sustancialmente a la sostenibilidad\"))))))","v":"No se han respondido todas las preguntas"},null,{"$f":"IF('Indice de género-Agricultura'!$E$82=\"Por definir\",\"No se han contestado todas las preguntas\",IF('Indice de género-Agricultura'!$E$82=\"Sí cumple con el índice de igualdad de género\",\"La actividad sí contribuye sustancialmente a la sostenibilidad\",\"La actividad no genera contribución sustancial\"))","v":"La actividad sí contribuye sustancialmente a la sostenibilidad"}]
["Agricultura","111211. Cultivo de jitomate o tomate rojo ",{"$f":"IF(OR('Mitigación-Agricultura'!$B$8=\"seleccione\",'Mitigación-Agricultura'!$B$10=\"Seleccione\",'Mitigación-Agricultura'!$B$12=\"Seleccione\",'Mitigación-Agricultura'!$A$16=\"Selecciona la medida 1\",'Mitigación-Agricultura'!$A$17=\"Selecciona la medida 2\",'Mitigación-Agricultura'!$B$19=\"Seleccione\",'Mitigación-Agricultura'!$B$21=\"Seleccione\"),\"No se han respondido todas las preguntas\",IF(AND('Mitigación-Agricultura'!$C$8=\"Sí contribuye sustancialmente a la sostenibilidad\",'Mitigación-Agricultura'!$C$10=\"Sí contribuye sustancialmente a la sostenibilidad. Debe verificarse con evidencia, por ejemplo, con una fotografía\",'Mitigación-Agricultura'!$C$12=\"Sí contribuye sustancialmente a la sostenibilidad\",'Mitigación-Agricultura'!$C$21=\"Contribuye sustancialmente a la sostenibilidad\"),\"La actividad sí contribuye sustancialmente a la sostenibilidad\",IF(AND('Mitigación-Agricultura'!$C$8=\"Se deberá confirmar a través de validación geoespacial\",'Mitigación-Agricultura'!$C$10=\"Sí contribuye sustancialmente a la sostenibilidad. Debe verificarse con evidencia, por ejemplo, con una fotografía\",'Mitigación-Agricultura'!$C$12=\"Sí contribuye sustancialmente a la sostenibilidad\",'Mitigación-Agricultura'!$C$21=\"Contribuye sustancialmente a la sostenibilidad\"),\"La actividad sí contribuye sustancialmente a la sostenibilidad\",\"La actividad no genera contribución sustancial a la sostenibilidad\")))","v":"La actividad sí contribuye sustancialmente a la sostenibilidad"},{"$f":"IF('Adaptación-Agricultura'!$D$8=\"Actividad que facilita la adaptación e incluye desarrollo de infraestructura\",(IF(OR('Adaptación-Agricultura'!$A$19=\"Por definir\",'Adaptación-Agricultura'!$A$25=\"Por definir\",'Adaptación-Agricultura'!$G$29=\"Por definir\",'Adaptación-Agricultura'!$A$36=\"Por definir\",'Adaptación-Agricultura'!$B$41=\"Por definir\"),\"No se han respondido todas las preguntas\",IF(AND('Adaptación-Agricultura'!$A$19=\"La actividad sí contribuye sustancialmente a la sostenibilidad\",'Adaptación-Agricultura'!$A$25=\"La actividad sí contribuye sustancialmente a la sostenibilidad\",'Adaptación-Agricultura'!$G$29=\"La actividad sí contribuye sustancialmente a la sostenbilidad\",'Adaptación-Agricultura'!$A$36=\"La actividad sí contribuye sustancialmente a la sostenibilidad\",'Adaptación-Agricultura'!$B$41=\"La actividad genera contribución sustancial a la sostenibilidad\"),\"La actividad sí contribuye sustancialmente a la sostenibilidad\",\"La actividad no contribuye sustancialmente a la sostenibilidad\"))),IF('Adaptación-Agricultura'!$D$8=\"Actividad adaptada\",(IF(OR('Adaptación-Agricultura'!$A$19=\"Por definir\",'Adaptación-Agricultura'!$A$25=\"Por definir\",'Adaptación-Agricultura'!$G$29=\"Por definir\",'Adaptación-Agricultura'!$A$36=\"Por definir\",'Adaptación-Agricultura'!$B$41=\"Por definir\"),\"No se han respondido todas las preguntas\",IF(AND('Adaptación-Agricultura'!$A$19=\"La actividad sí contribuye sustancialmente a la sostenibilidad\",'Adaptación-Agricultura'!$A$25=\"La actividad sí contribuye sustancialmente a la sostenibilidad\",'Adaptación-Agricultura'!$G$29=\"La actividad sí contribuye sustancialmente a la sostenbilidad\",'Adaptación-Agricultura'!$B$41=\"La actividad genera contribución sustancial a la sostenibilidad\"),\"La actividad sí contribuye sustancialmente a la sostenibilidad\",\"La actividad no contribuye sustancialmente a la sostenibilidad\"))),IF('Adaptación-Agricultura'!$D$8=\"Actividad que facilita la adaptación\",(IF(OR('Adaptación-Agricultura'!$A$36=\"Por definir\",'Adaptación-Agricultura'!$B$41=\"Por definir\"),\"No se han respondido todas las preguntas\",IF(AND('Adaptación-Agricultura'!$A$36=\"La actividad sí contribuye sustancialmente a la sostenibilidad\",'Adaptación-Agricultura'!$B$41=\"La actividad genera contribución sustancial a la sostenibilidad\"),\"La actividad sí contribuye sustancialmente a la sostenibilidad\",\"La actividad no contribuye sustancialmente a la sostenibilidad\"))))))","v":"No se han respondido todas las preguntas"},null,{"$f":"IF('Indice de género-Agricultura'!$E$82=\"Por definir\",\"No se han contestado todas las preguntas\",IF('Indice de género-Agricultura'!$E$82=\"Sí cumple con el índice de igualdad de género\",\"La actividad sí contribuye sustancialmente a la sostenibilidad\",\"La actividad no genera contribución sustancial\"))","v":"La actividad sí contribuye sustancialmente a la sostenibilidad"}]
["Agricultura","111212. Cultivo de chile ",{"$f":"IF(OR('Mitigación-Agricultura'!$B$8=\"seleccione\",'Mitigación-Agricultura'!$B$10=\"Seleccione\",'Mitigación-Agricultura'!$B$12=\"Seleccione\",'Mitigación-Agricultura'!$A$16=\"Selecciona la medida 1\",'Mitigación-Agricultura'!$A$17=\"Selecciona la medida 2\",'Mitigación-Agricultura'!$B$19=\"Seleccione\",'Mitigación-Agricultura'!$B$21=\"Seleccione\"),\"No se han respondido todas las preguntas\",IF(AND('Mitigación-Agricultura'!$C$8=\"Sí contribuye sustancialmente a la sostenibilidad\",'Mitigación-Agricultura'!$C$10=\"Sí contribuye sustancialmente a la sostenibilidad. Debe verificarse con evidencia, por ejemplo, con una fotografía\",'Mitigación-Agricultura'!$C$12=\"Sí contribuye sustancialmente a la sostenibilidad\",'Mitigación-Agricultura'!$C$21=\"Contribuye sustancialmente a la sostenibilidad\"),\"La actividad sí contribuye sustancialmente a la sostenibilidad\",IF(AND('Mitigación-Agricultura'!$C$8=\"Se deberá confirmar a través de validación geoespacial\",'Mitigación-Agricultura'!$C$10=\"Sí contribuye sustancialmente a la sostenibilidad. Debe verificarse con evidencia, por ejemplo, con una fotografía\",'Mitigación-Agricultura'!$C$12=\"Sí contribuye sustancialmente a la sostenibilidad\",'Mitigación-Agricultura'!$C$21=\"Contribuye sustancialmente a la sostenibilidad\"),\"La actividad sí contribuye sustancialmente a la sostenibilidad\",\"La actividad no genera contribución sustancial a la sostenibilidad\")))","v":"La actividad sí contribuye sustancialmente a la sostenibilidad"},{"$f":"IF('Adaptación-Agricultura'!$D$8=\"Actividad que facilita la adaptación e incluye desarrollo de infraestructura\",(IF(OR('Adaptación-Agricultura'!$A$19=\"Por definir\",'Adaptación-Agricultura'!$A$25=\"Por definir\",'Adaptación-Agricultura'!$G$29=\"Por definir\",'Adaptación-Agricultura'!$A$36=\"Por definir\",'Adaptación-Agricultura'!$B$41=\"Por definir\"),\"No se han respondido todas las preguntas\",IF(AND('Adaptación-Agricultura'!$A$19=\"La actividad sí contribuye sustancialmente a la sostenibilidad\",'Adaptación-Agricultura'!$A$25=\"La actividad sí contribuye sustancialmente a la sostenibilidad\",'Adaptación-Agricultura'!$G$29=\"La actividad sí contribuye sustancialmente a la sostenbilidad\",'Adaptación-Agricultura'!$A$36=\"La actividad sí contribuye sustancialmente a la sostenibilidad\",'Adaptación-Agricultura'!$B$41=\"La actividad genera contribución sustancial a la sostenibilidad\"),\"La actividad sí contribuye sustancialmente a la sostenibilidad\",\"La actividad no contribuye sustancialmente a la sostenibilidad\"))),IF('Adaptación-Agricultura'!$D$8=\"Actividad adaptada\",(IF(OR('Adaptación-Agricultura'!$A$19=\"Por definir\",'Adaptación-Agricultura'!$A$25=\"Por definir\",'Adaptación-Agricultura'!$G$29=\"Por definir\",'Adaptación-Agricultura'!$A$36=\"Por definir\",'Adaptación-Agricultura'!$B$41=\"Por definir\"),\"No se han respondido todas las preguntas\",IF(AND('Adaptación-Agricultura'!$A$19=\"La actividad sí contribuye sustancialmente a la sostenibilidad\",'Adaptación-Agricultura'!$A$25=\"La actividad sí contribuye sustancialmente a la sostenibilidad\",'Adaptación-Agricultura'!$G$29=\"La actividad sí contribuye sustancialmente a la sostenbilidad\",'Adaptación-Agricultura'!$B$41=\"La actividad genera contribución sustancial a la sostenibilidad\"),\"La actividad sí contribuye sustancialmente a la sostenibilidad\",\"La actividad no contribuye sustancialmente a la sostenibilidad\"))),IF('Adaptación-Agricultura'!$D$8=\"Actividad que facilita la adaptación\",(IF(OR('Adaptación-Agricultura'!$A$36=\"Por definir\",'Adaptación-Agricultura'!$B$41=\"Por definir\"),\"No se han respondido todas las preguntas\",IF(AND('Adaptación-Agricultura'!$A$36=\"La actividad sí contribuye sustancialmente a la sostenibilidad\",'Adaptación-Agricultura'!$B$41=\"La actividad genera contribución sustancial a la sostenibilidad\"),\"La actividad sí contribuye sustancialmente a la sostenibilidad\",\"La actividad no contribuye sustancialmente a la sostenibilidad\"))))))","v":"No se han respondido todas las preguntas"},null,{"$f":"IF('Indice de género-Agricultura'!$E$82=\"Por definir\",\"No se han contestado todas las preguntas\",IF('Indice de género-Agricultura'!$E$82=\"Sí cumple con el índice de igualdad de género\",\"La actividad sí contribuye sustancialmente a la sostenibilidad\",\"La actividad no genera contribución sustancial\"))","v":"La actividad sí contribuye sustancialmente a la sostenibilidad"}]
["Agricultura","111213. Cultivo de cebolla ",{"$f":"IF(OR('Mitigación-Agricultura'!$B$8=\"seleccione\",'Mitigación-Agricultura'!$B$10=\"Seleccione\",'Mitigación-Agricultura'!$B$12=\"Seleccione\",'Mitigación-Agricultura'!$A$16=\"Selecciona la medida 1\",'Mitigación-Agricultura'!$A$17=\"Selecciona la medida 2\",'Mitigación-Agricultura'!$B$19=\"Seleccione\",'Mitigación-Agricultura'!$B$21=\"Seleccione\"),\"No se han respondido todas las preguntas\",IF(AND('Mitigación-Agricultura'!$C$8=\"Sí contribuye sustancialmente a la sostenibilidad\",'Mitigación-Agricultura'!$C$10=\"Sí contribuye sustancialmente a la sostenibilidad. Debe verificarse con evidencia, por ejemplo, con una fotografía\",'Mitigación-Agricultura'!$C$12=\"Sí contribuye sustancialmente a la sostenibilidad\",'Mitigación-Agricultura'!$C$21=\"Contribuye sustancialmente a la sostenibilidad\"),\"La actividad sí contribuye sustancialmente a la sostenibilidad\",IF(AND('Mitigación-Agricultura'!$C$8=\"Se deberá confirmar a través de validación geoespacial\",'Mitigación-Agricultura'!$C$10=\"Sí contribuye sustancialmente a la sostenibilidad. Debe verificarse con evidencia, por ejemplo, con una fotografía\",'Mitigación-Agricultura'!$C$12=\"Sí contribuye sustancialmente a la sostenibilidad\",'Mitigación-Agricultura'!$C$21=\"Contribuye sustancialmente a la sostenibilidad\"),\"La actividad sí contribuye sustancialmente a la sostenibilidad\",\"La actividad no genera contribución sustancial a la sostenibilidad\")))","v":"La actividad sí contribuye sustancialmente a la sostenibilidad"},{"$f":"IF('Adaptación-Agricultura'!$D$8=\"Actividad que facilita la adaptación e incluye desarrollo de infraestructura\",(IF(OR('Adaptación-Agricultura'!$A$19=\"Por definir\",'Adaptación-Agricultura'!$A$25=\"Por definir\",'Adaptación-Agricultura'!$G$29=\"Por definir\",'Adaptación-Agricultura'!$A$36=\"Por definir\",'Adaptación-Agricultura'!$B$41=\"Por definir\"),\"No se han respondido todas las preguntas\",IF(AND('Adaptación-Agricultura'!$A$19=\"La actividad sí contribuye sustancialmente a la sostenibilidad\",'Adaptación-Agricultura'!$A$25=\"La actividad sí contribuye sustancialmente a la sostenibilidad\",'Adaptación-Agricultura'!$G$29=\"La actividad sí contribuye sustancialmente a la sostenbilidad\",'Adaptación-Agricultura'!$A$36=\"La actividad sí contribuye sustancialmente a la sostenibilidad\",'Adaptación-Agricultura'!$B$41=\"La actividad genera contribución sustancial a la sostenibilidad\"),\"La actividad sí contribuye sustancialmente a la sostenibilidad\",\"La actividad no contribuye sustancialmente a la sostenibilidad\"))),IF('Adaptación-Agricultura'!$D$8=\"Actividad adaptada\",(IF(OR('Adaptación-Agricultura'!$A$19=\"Por definir\",'Adaptación-Agricultura'!$A$25=\"Por definir\",'Adaptación-Agricultura'!$G$29=\"Por definir\",'Adaptación-Agricultura'!$A$36=\"Por definir\",'Adaptación-Agricultura'!$B$41=\"Por definir\"),\"No se han respondido todas las preguntas\",IF(AND('Adaptación-Agricultura'!$A$19=\"La actividad sí contribuye sustancialmente a la sostenibilidad\",'Adaptación-Agricultura'!$A$25=\"La actividad sí contribuye sustancialmente a la sostenibilidad\",'Adaptación-Agricultura'!$G$29=\"La actividad sí contribuye sustancialmente a la sostenbilidad\",'Adaptación-Agricultura'!$B$41=\"La actividad genera contribución sustancial a la sostenibilidad\"),\"La actividad sí contribuye sustancialmente a la sostenibilidad\",\"La actividad no contribuye sustancialmente a la sostenibilidad\"))),IF('Adaptación-Agricultura'!$D$8=\"Actividad que facilita la adaptación\",(IF(OR('Adaptación-Agricultura'!$A$36=\"Por definir\",'Adaptación-Agricultura'!$B$41=\"Por definir\"),\"No se han respondido todas las preguntas\",IF(AND('Adaptación-Agricultura'!$A$36=\"La actividad sí contribuye sustancialmente a la sostenibilidad\",'Adaptación-Agricultura'!$B$41=\"La actividad genera contribución sustancial a la sostenibilidad\"),\"La actividad sí contribuye sustancialmente a la sostenibilidad\",\"La actividad no contribuye sustancialmente a la sostenibilidad\"))))))","v":"No se han respondido todas las preguntas"},null,{"$f":"IF('Indice de género-Agricultura'!$E$82=\"Por definir\",\"No se han contestado todas las preguntas\",IF('Indice de género-Agricultura'!$E$82=\"Sí cumple con el índice de igualdad de género\",\"La actividad sí contribuye sustancialmente a la sostenibilidad\",\"La actividad no genera contribución sustancial\"))","v":"La actividad sí contribuye sustancialmente a la sostenibilidad"}]
["Agricultura","111214. Cultivo de melón ",{"$f":"IF(OR('Mitigación-Agricultura'!$B$8=\"seleccione\",'Mitigación-Agricultura'!$B$10=\"Seleccione\",'Mitigación-Agricultura'!$B$12=\"Seleccione\",'Mitigación-Agricultura'!$A$16=\"Selecciona la medida 1\",'Mitigación-Agricultura'!$A$17=\"Selecciona la medida 2\",'Mitigación-Agricultura'!$B$19=\"Seleccione\",'Mitigación-Agricultura'!$B$21=\"Seleccione\"),\"No se han respondido todas las preguntas\",IF(AND('Mitigación-Agricultura'!$C$8=\"Sí contribuye sustancialmente a la sostenibilidad\",'Mitigación-Agricultura'!$C$10=\"Sí contribuye sustancialmente a la sostenibilidad. Debe verificarse con evidencia, por ejemplo, con una fotografía\",'Mitigación-Agricultura'!$C$12=\"Sí contribuye sustancialmente a la sostenibilidad\",'Mitigación-Agricultura'!$C$21=\"Contribuye sustancialmente a la sostenibilidad\"),\"La actividad sí contribuye sustancialmente a la sostenibilidad\",IF(AND('Mitigación-Agricultura'!$C$8=\"Se deberá confirmar a través de validación geoespacial\",'Mitigación-Agricultura'!$C$10=\"Sí contribuye sustancialmente a la sostenibilidad. Debe verificarse con evidencia, por ejemplo, con una fotografía\",'Mitigación-Agricultura'!$C$12=\"Sí contribuye sustancialmente a la sostenibilidad\",'Mitigación-Agricultura'!$C$21=\"Contribuye sustancialmente a la sostenibilidad\"),\"La actividad sí contribuye sustancialmente a la sostenibilidad\",\"La actividad no genera contribución sustancial a la sostenibilidad\")))","v":"La actividad sí contribuye sustancialmente a la sostenibilidad"},{"$f":"IF('Adaptación-Agricultura'!$D$8=\"Actividad que facilita la adaptación e incluye desarrollo de infraestructura\",(IF(OR('Adaptación-Agricultura'!$A$19=\"Por definir\",'Adaptación-Agricultura'!$A$25=\"Por definir\",'Adaptación-Agricultura'!$G$29=\"Por definir\",'Adaptación-Agricultura'!$A$36=\"Por definir\",'Adaptación-Agricultura'!$B$41=\"Por definir\"),\"No se han respondido todas las preguntas\",IF(AND('Adaptación-Agricultura'!$A$19=\"La actividad sí contribuye sustancialmente a la sostenibilidad\",'Adaptación-Agricultura'!$A$25=\"La actividad sí contribuye sustancialmente a la sostenibilidad\",'Adaptación-Agricultura'!$G$29=\"La actividad sí contribuye sustancialmente a la sostenbilidad\",'Adaptación-Agricultura'!$A$36=\"La actividad sí contribuye sustancialmente a la sostenibilidad\",'Adaptación-Agricultura'!$B$41=\"La actividad genera contribución sustancial a la sostenibilidad\"),\"La actividad sí contribuye sustancialmente a la sostenibilidad\",\"La actividad no contribuye sustancialmente a la sostenibilidad\"))),IF('Adaptación-Agricultura'!$D$8=\"Actividad adaptada\",(IF(OR('Adaptación-Agricultura'!$A$19=\"Por definir\",'Adaptación-Agricultura'!$A$25=\"Por definir\",'Adaptación-Agricultura'!$G$29=\"Por definir\",'Adaptación-Agricultura'!$A$36=\"Por definir\",'Adaptación-Agricultura'!$B$41=\"Por definir\"),\"No se han respondido todas las preguntas\",IF(AND('Adaptación-Agricultura'!$A$19=\"La actividad sí contribuye sustancialmente a la sostenibilidad\",'Adaptación-Agricultura'!$A$25=\"La actividad sí contribuye sustancialmente a la sostenibilidad\",'Adaptación-Agricultura'!$G$29=\"La actividad sí contribuye sustancialmente a la sostenbilidad\",'Adaptación-Agricultura'!$B$41=\"La actividad genera contribución sustancial a la sostenibilidad\"),\"La actividad sí contribuye sustancialmente a la sostenibilidad\",\"La actividad no contribuye sustancialmente a la sostenibilidad\"))),IF('Adaptación-Agricultura'!$D$8=\"Actividad que facilita la adaptación\",(IF(OR('Adaptación-Agricultura'!$A$36=\"Por definir\",'Adaptación-Agricultura'!$B$41=\"Por definir\"),\"No se han respondido todas las preguntas\",IF(AND('Adaptación-Agricultura'!$A$36=\"La actividad sí contribuye sustancialmente a la sostenibilidad\",'Adaptación-Agricultura'!$B$41=\"La actividad genera contribución sustancial a la sostenibilidad\"),\"La actividad sí contribuye sustancialmente a la sostenibilidad\",\"La actividad no contribuye sustancialmente a la sostenibilidad\"))))))","v":"No se han respondido todas las preguntas"},null,{"$f":"IF('Indice de género-Agricultura'!$E$82=\"Por definir\",\"No se han contestado todas las preguntas\",IF('Indice de género-Agricultura'!$E$82=\"Sí cumple con el índice de igualdad de género\",\"La actividad sí contribuye sustancialmente a la sostenibilidad\",\"La actividad no genera contribución sustancial\"))","v":"La actividad sí contribuye sustancialmente a la sostenibilidad"}]
["Agricultura","111215. Cultivo de tomate verde (No Perenne) ",{"$f":"IF(OR('Mitigación-Agricultura'!$B$8=\"seleccione\",'Mitigación-Agricultura'!$B$10=\"Seleccione\",'Mitigación-Agricultura'!$B$12=\"Seleccione\",'Mitigación-Agricultura'!$A$16=\"Selecciona la medida 1\",'Mitigación-Agricultura'!$A$17=\"Selecciona la medida 2\",'Mitigación-Agricultura'!$B$19=\"Seleccione\",'Mitigación-Agricultura'!$B$21=\"Seleccione\"),\"No se han respondido todas las preguntas\",IF(AND('Mitigación-Agricultura'!$C$8=\"Sí contribuye sustancialmente a la sostenibilidad\",'Mitigación-Agricultura'!$C$10=\"Sí contribuye sustancialmente a la sostenibilidad. Debe verificarse con evidencia, por ejemplo, con una fotografía\",'Mitigación-Agricultura'!$C$12=\"Sí contribuye sustancialmente a la sostenibilidad\",'Mitigación-Agricultura'!$C$21=\"Contribuye sustancialmente a la sostenibilidad\"),\"La actividad sí contribuye sustancialmente a la sostenibilidad\",IF(AND('Mitigación-Agricultura'!$C$8=\"Se deberá confirmar a través de validación geoespacial\",'Mitigación-Agricultura'!$C$10=\"Sí contribuye sustancialmente a la sostenibilidad. Debe verificarse con evidencia, por ejemplo, con una fotografía\",'Mitigación-Agricultura'!$C$12=\"Sí contribuye sustancialmente a la sostenibilidad\",'Mitigación-Agricultura'!$C$21=\"Contribuye sustancialmente a la sostenibilidad\"),\"La actividad sí contribuye sustancialmente a la sostenibilidad\",\"La actividad no genera contribución sustancial a la sostenibilidad\")))","v":"La actividad sí contribuye sustancialmente a la sostenibilidad"},{"$f":"IF('Adaptación-Agricultura'!$D$8=\"Actividad que facilita la adaptación e incluye desarrollo de infraestructura\",(IF(OR('Adaptación-Agricultura'!$A$19=\"Por definir\",'Adaptación-Agricultura'!$A$25=\"Por definir\",'Adaptación-Agricultura'!$G$29=\"Por definir\",'Adaptación-Agricultura'!$A$36=\"Por definir\",'Adaptación-Agricultura'!$B$41=\"Por definir\"),\"No se han respondido todas las preguntas\",IF(AND('Adaptación-Agricultura'!$A$19=\"La actividad sí contribuye sustancialmente a la sostenibilidad\",'Adaptación-Agricultura'!$A$25=\"La actividad sí contribuye sustancialmente a la sostenibilidad\",'Adaptación-Agricultura'!$G$29=\"La actividad sí contribuye sustancialmente a la sostenbilidad\",'Adaptación-Agricultura'!$A$36=\"La actividad sí contribuye sustancialmente a la sostenibilidad\",'Adaptación-Agricultura'!$B$41=\"La actividad genera contribución sustancial a la sostenibilidad\"),\"La actividad sí contribuye sustancialmente a la sostenibilidad\",\"La actividad no contribuye sustancialmente a la sostenibilidad\"))),IF('Adaptación-Agricultura'!$D$8=\"Actividad adaptada\",(IF(OR('Adaptación-Agricultura'!$A$19=\"Por definir\",'Adaptación-Agricultura'!$A$25=\"Por definir\",'Adaptación-Agricultura'!$G$29=\"Por definir\",'Adaptación-Agricultura'!$A$36=\"Por definir\",'Adaptación-Agricultura'!$B$41=\"Por definir\"),\"No se han respondido todas las preguntas\",IF(AND('Adaptación-Agricultura'!$A$19=\"La actividad sí contribuye sustancialmente a la sostenibilidad\",'Adaptación-Agricultura'!$A$25=\"La actividad sí contribuye sustancialmente a la sostenibilidad\",'Adaptación-Agricultura'!$G$29=\"La actividad sí contribuye sustancialmente a la sostenbilidad\",'Adaptación-Agricultura'!$B$41=\"La actividad genera contribución sustancial a la sostenibilidad\"),\"La actividad sí contribuye sustancialmente a la sostenibilidad\",\"La actividad no contribuye sustancialmente a la sostenibilidad\"))),IF('Adaptación-Agricultura'!$D$8=\"Actividad que facilita la adaptación\",(IF(OR('Adaptación-Agricultura'!$A$36=\"Por definir\",'Adaptación-Agricultura'!$B$41=\"Por definir\"),\"No se han respondido todas las preguntas\",IF(AND('Adaptación-Agricultura'!$A$36=\"La actividad sí contribuye sustancialmente a la sostenibilidad\",'Adaptación-Agricultura'!$B$41=\"La actividad genera contribución sustancial a la sostenibilidad\"),\"La actividad sí contribuye sustancialmente a la sostenibilidad\",\"La actividad no contribuye sustancialmente a la sostenibilidad\"))))))","v":"No se han respondido todas las preguntas"},null,{"$f":"IF('Indice de género-Agricultura'!$E$82=\"Por definir\",\"No se han contestado todas las preguntas\",IF('Indice de género-Agricultura'!$E$82=\"Sí cumple con el índice de igualdad de género\",\"La actividad sí contribuye sustancialmente a la sostenibilidad\",\"La actividad no genera contribución sustancial\"))","v":"La actividad sí contribuye sustancialmente a la sostenibilidad"}]
["Agricultura","111216. Cultivo de papa (No Perenne) ",{"$f":"IF(OR('Mitigación-Agricultura'!$B$8=\"seleccione\",'Mitigación-Agricultura'!$B$10=\"Seleccione\",'Mitigación-Agricultura'!$B$12=\"Seleccione\",'Mitigación-Agricultura'!$A$16=\"Selecciona la medida 1\",'Mitigación-Agricultura'!$A$17=\"Selecciona la medida 2\",'Mitigación-Agricultura'!$B$19=\"Seleccione\",'Mitigación-Agricultura'!$B$21=\"Seleccione\"),\"No se han respondido todas las preguntas\",IF(AND('Mitigación-Agricultura'!$C$8=\"Sí contribuye sustancialmente a la sostenibilidad\",'Mitigación-Agricultura'!$C$10=\"Sí contribuye sustancialmente a la sostenibilidad. Debe verificarse con evidencia, por ejemplo, con una fotografía\",'Mitigación-Agricultura'!$C$12=\"Sí contribuye sustancialmente a la sostenibilidad\",'Mitigación-Agricultura'!$C$21=\"Contribuye sustancialmente a la sostenibilidad\"),\"La actividad sí contribuye sustancialmente a la sostenibilidad\",IF(AND('Mitigación-Agricultura'!$C$8=\"Se deberá confirmar a través de validación geoespacial\",'Mitigación-Agricultura'!$C$10=\"Sí contribuye sustancialmente a la sostenibilidad. Debe verificarse con evidencia, por ejemplo, con una fotografía\",'Mitigación-Agricultura'!$C$12=\"Sí contribuye sustancialmente a la sostenibilidad\",'Mitigación-Agricultura'!$C$21=\"Contribuye sustancialmente a la sostenibilidad\"),\"La actividad sí contribuye sustancialmente a la sostenibilidad\",\"La actividad no genera contribución sustancial a la sostenibilidad\")))","v":"La actividad sí contribuye sustancialmente a la sostenibilidad"},{"$f":"IF('Adaptación-Agricultura'!$D$8=\"Actividad que facilita la adaptación e incluye desarrollo de infraestructura\",(IF(OR('Adaptación-Agricultura'!$A$19=\"Por definir\",'Adaptación-Agricultura'!$A$25=\"Por definir\",'Adaptación-Agricultura'!$G$29=\"Por definir\",'Adaptación-Agricultura'!$A$36=\"Por definir\",'Adaptación-Agricultura'!$B$41=\"Por definir\"),\"No se han respondido todas las preguntas\",IF(AND('Adaptación-Agricultura'!$A$19=\"La actividad sí contribuye sustancialmente a la sostenibilidad\",'Adaptación-Agricultura'!$A$25=\"La actividad sí contribuye sustancialmente a la sostenibilidad\",'Adaptación-Agricultura'!$G$29=\"La actividad sí contribuye sustancialmente a la sostenbilidad\",'Adaptación-Agricultura'!$A$36=\"La actividad sí contribuye sustancialmente a la sostenibilidad\",'Adaptación-Agricultura'!$B$41=\"La actividad genera contribución sustancial a la sostenibilidad\"),\"La actividad sí contribuye sustancialmente a la sostenibilidad\",\"La actividad no contribuye sustancialmente a la sostenibilidad\"))),IF('Adaptación-Agricultura'!$D$8=\"Actividad adaptada\",(IF(OR('Adaptación-Agricultura'!$A$19=\"Por definir\",'Adaptación-Agricultura'!$A$25=\"Por definir\",'Adaptación-Agricultura'!$G$29=\"Por definir\",'Adaptación-Agricultura'!$A$36=\"Por definir\",'Adaptación-Agricultura'!$B$41=\"Por definir\"),\"No se han respondido todas las preguntas\",IF(AND('Adaptación-Agricultura'!$A$19=\"La actividad sí contribuye sustancialmente a la sostenibilidad\",'Adaptación-Agricultura'!$A$25=\"La actividad sí contribuye sustancialmente a la sostenibilidad\",'Adaptación-Agricultura'!$G$29=\"La actividad sí contribuye sustancialmente a la sostenbilidad\",'Adaptación-Agricultura'!$B$41=\"La actividad genera contribución sustancial a la sostenibilidad\"),\"La actividad sí contribuye sustancialmente a la sostenibilidad\",\"La actividad no contribuye sustancialmente a la sostenibilidad\"))),IF('Adaptación-Agricultura'!$D$8=\"Actividad que facilita la adaptación\",(IF(OR('Adaptación-Agricultura'!$A$36=\"Por definir\",'Adaptación-Agricultura'!$B$41=\"Por definir\"),\"No se han respondido todas las preguntas\",IF(AND('Adaptación-Agricultura'!$A$36=\"La actividad sí contribuye sustancialmente a la sostenibilidad\",'Adaptación-Agricultura'!$B$41=\"La actividad genera contribución sustancial a la sostenibilidad\"),\"La actividad sí contribuye sustancialmente a la sostenibilidad\",\"La actividad no contribuye sustancialmente a la sostenibilidad\"))))))","v":"No se han respondido todas las preguntas"},null,{"$f":"IF('Indice de género-Agricultura'!$E$82=\"Por definir\",\"No se han contestado todas las preguntas\",IF('Indice de género-Agricultura'!$E$82=\"Sí cumple con el índice de igualdad de género\",\"La actividad sí contribuye sustancialmente a la sostenibilidad\",\"La actividad no genera contribución sustancial\"))","v":"La actividad sí contribuye sustancialmente a la sostenibilidad"}]
["Agricultura","111217. Cultivo de calabaza ",{"$f":"IF(OR('Mitigación-Agricultura'!$B$8=\"seleccione\",'Mitigación-Agricultura'!$B$10=\"Seleccione\",'Mitigación-Agricultura'!$B$12=\"Seleccione\",'Mitigación-Agricultura'!$A$16=\"Selecciona la medida 1\",'Mitigación-Agricultura'!$A$17=\"Selecciona la medida 2\",'Mitigación-Agricultura'!$B$19=\"Seleccione\",'Mitigación-Agricultura'!$B$21=\"Seleccione\"),\"No se han respondido todas las preguntas\",IF(AND('Mitigación-Agricultura'!$C$8=\"Sí contribuye sustancialmente a la sostenibilidad\",'Mitigación-Agricultura'!$C$10=\"Sí contribuye sustancialmente a la sostenibilidad. Debe verificarse con evidencia, por ejemplo, con una fotografía\",'Mitigación-Agricultura'!$C$12=\"Sí contribuye sustancialmente a la sostenibilidad\",'Mitigación-Agricultura'!$C$21=\"Contribuye sustancialmente a la sostenibilidad\"),\"La actividad sí contribuye sustancialmente a la sostenibilidad\",IF(AND('Mitigación-Agricultura'!$C$8=\"Se deberá confirmar a través de validación geoespacial\",'Mitigación-Agricultura'!$C$10=\"Sí contribuye sustancialmente a la sostenibilidad. Debe verificarse con evidencia, por ejemplo, con una fotografía\",'Mitigación-Agricultura'!$C$12=\"Sí contribuye sustancialmente a la sostenibilidad\",'Mitigación-Agricultura'!$C$21=\"Contribuye sustancialmente a la sostenibilidad\"),\"La actividad sí contribuye sustancialmente a la sostenibilidad\",\"La actividad no genera contribución sustancial a la sostenibilidad\")))","v":"La actividad sí contribuye sustancialmente a la sostenibilidad"},{"$f":"IF('Adaptación-Agricultura'!$D$8=\"Actividad que facilita la adaptación e incluye desarrollo de infraestructura\",(IF(OR('Adaptación-Agricultura'!$A$19=\"Por definir\",'Adaptación-Agricultura'!$A$25=\"Por definir\",'Adaptación-Agricultura'!$G$29=\"Por definir\",'Adaptación-Agricultura'!$A$36=\"Por definir\",'Adaptación-Agricultura'!$B$41=\"Por definir\"),\"No se han respondido todas las preguntas\",IF(AND('Adaptación-Agricultura'!$A$19=\"La actividad sí contribuye sustancialmente a la sostenibilidad\",'Adaptación-Agricultura'!$A$25=\"La actividad sí contribuye sustancialmente a la sostenibilidad\",'Adaptación-Agricultura'!$G$29=\"La actividad sí contribuye sustancialmente a la sostenbilidad\",'Adaptación-Agricultura'!$A$36=\"La actividad sí contribuye sustancialmente a la sostenibilidad\",'Adaptación-Agricultura'!$B$41=\"La actividad genera contribución sustancial a la sostenibilidad\"),\"La actividad sí contribuye sustancialmente a la sostenibilidad\",\"La actividad no contribuye sustancialmente a la sostenibilidad\"))),IF('Adaptación-Agricultura'!$D$8=\"Actividad adaptada\",(IF(OR('Adaptación-Agricultura'!$A$19=\"Por definir\",'Adaptación-Agricultura'!$A$25=\"Por definir\",'Adaptación-Agricultura'!$G$29=\"Por definir\",'Adaptación-Agricultura'!$A$36=\"Por definir\",'Adaptación-Agricultura'!$B$41=\"Por definir\"),\"No se han respondido todas las preguntas\",IF(AND('Adaptación-Agricultura'!$A$19=\"La actividad sí contribuye sustancialmente a la sostenibilidad\",'Adaptación-Agricultura'!$A$25=\"La actividad sí contribuye sustancialmente a la sostenibilidad\",'Adaptación-Agricultura'!$G$29=\"La actividad sí contribuye sustancialmente a la sostenbilidad\",'Adaptación-Agricultura'!$B$41=\"La actividad genera contribución sustancial a la sostenibilidad\"),\"La actividad sí contribuye sustancialmente a la sostenibilidad\",\"La actividad no contribuye sustancialmente a la sostenibilidad\"))),IF('Adaptación-Agricultura'!$D$8=\"Actividad que facilita la adaptación\",(IF(OR('Adaptación-Agricultura'!$A$36=\"Por definir\",'Adaptación-Agricultura'!$B$41=\"Por definir\"),\"No se han respondido todas las preguntas\",IF(AND('Adaptación-Agricultura'!$A$36=\"La actividad sí contribuye sustancialmente a la sostenibilidad\",'Adaptación-Agricultura'!$B$41=\"La actividad genera contribución sustancial a la sostenibilidad\"),\"La actividad sí contribuye sustancialmente a la sostenibilidad\",\"La actividad no contribuye sustancialmente a la sostenibilidad\"))))))","v":"No se han respondido todas las preguntas"},null,{"$f":"IF('Indice de género-Agricultura'!$E$82=\"Por definir\",\"No se han contestado todas las preguntas\",IF('Indice de género-Agricultura'!$E$82=\"Sí cumple con el índice de igualdad de género\",\"La actividad sí contribuye sustancialmente a la sostenibilidad\",\"La actividad no genera contribución sustancial\"))","v":"La actividad sí contribuye sustancialmente a la sostenibilidad"}]
["Agricultura","111218. Cultivo de sandía ",{"$f":"IF(OR('Mitigación-Agricultura'!$B$8=\"seleccione\",'Mitigación-Agricultura'!$B$10=\"Seleccione\",'Mitigación-Agricultura'!$B$12=\"Seleccione\",'Mitigación-Agricultura'!$A$16=\"Selecciona la medida 1\",'Mitigación-Agricultura'!$A$17=\"Selecciona la medida 2\",'Mitigación-Agricultura'!$B$19=\"Seleccione\",'Mitigación-Agricultura'!$B$21=\"Seleccione\"),\"No se han respondido todas las preguntas\",IF(AND('Mitigación-Agricultura'!$C$8=\"Sí contribuye sustancialmente a la sostenibilidad\",'Mitigación-Agricultura'!$C$10=\"Sí contribuye sustancialmente a la sostenibilidad. Debe verificarse con evidencia, por ejemplo, con una fotografía\",'Mitigación-Agricultura'!$C$12=\"Sí contribuye sustancialmente a la sostenibilidad\",'Mitigación-Agricultura'!$C$21=\"Contribuye sustancialmente a la sostenibilidad\"),\"La actividad sí contribuye sustancialmente a la sostenibilidad\",IF(AND('Mitigación-Agricultura'!$C$8=\"Se deberá confirmar a través de validación geoespacial\",'Mitigación-Agricultura'!$C$10=\"Sí contribuye sustancialmente a la sostenibilidad. Debe verificarse con evidencia, por ejemplo, con una fotografía\",'Mitigación-Agricultura'!$C$12=\"Sí contribuye sustancialmente a la sostenibilidad\",'Mitigación-Agricultura'!$C$21=\"Contribuye sustancialmente a la sostenibilidad\"),\"La actividad sí contribuye sustancialmente a la sostenibilidad\",\"La actividad no genera contribución sustancial a la sostenibilidad\")))","v":"La actividad sí contribuye sustancialmente a la sostenibilidad"},{"$f":"IF('Adaptación-Agricultura'!$D$8=\"Actividad que facilita la adaptación e incluye desarrollo de infraestructura\",(IF(OR('Adaptación-Agricultura'!$A$19=\"Por definir\",'Adaptación-Agricultura'!$A$25=\"Por definir\",'Adaptación-Agricultura'!$G$29=\"Por definir\",'Adaptación-Agricultura'!$A$36=\"Por definir\",'Adaptación-Agricultura'!$B$41=\"Por definir\"),\"No se han respondido todas las preguntas\",IF(AND('Adaptación-Agricultura'!$A$19=\"La actividad sí contribuye sustancialmente a la sostenibilidad\",'Adaptación-Agricultura'!$A$25=\"La actividad sí contribuye sustancialmente a la sostenibilidad\",'Adaptación-Agricultura'!$G$29=\"La actividad sí contribuye sustancialmente a la sostenbilidad\",'Adaptación-Agricultura'!$A$36=\"La actividad sí contribuye sustancialmente a la sostenibilidad\",'Adaptación-Agricultura'!$B$41=\"La actividad genera contribución sustancial a la sostenibilidad\"),\"La actividad sí contribuye sustancialmente a la sostenibilidad\",\"La actividad no contribuye sustancialmente a la sostenibilidad\"))),IF('Adaptación-Agricultura'!$D$8=\"Actividad adaptada\",(IF(OR('Adaptación-Agricultura'!$A$19=\"Por definir\",'Adaptación-Agricultura'!$A$25=\"Por definir\",'Adaptación-Agricultura'!$G$29=\"Por definir\",'Adaptación-Agricultura'!$A$36=\"Por definir\",'Adaptación-Agricultura'!$B$41=\"Por definir\"),\"No se han respondido todas las preguntas\",IF(AND('Adaptación-Agricultura'!$A$19=\"La actividad sí contribuye sustancialmente a la sostenibilidad\",'Adaptación-Agricultura'!$A$25=\"La actividad sí contribuye sustancialmente a la sostenibilidad\",'Adaptación-Agricultura'!$G$29=\"La actividad sí contribuye sustancialmente a la sostenbilidad\",'Adaptación-Agricultura'!$B$41=\"La actividad genera contribución sustancial a la sostenibilidad\"),\"La actividad sí contribuye sustancialmente a la sostenibilidad\",\"La actividad no contribuye sustancialmente a la sostenibilidad\"))),IF('Adaptación-Agricultura'!$D$8=\"Actividad que facilita la adaptación\",(IF(OR('Adaptación-Agricultura'!$A$36=\"Por definir\",'Adaptación-Agricultura'!$B$41=\"Por definir\"),\"No se han respondido todas las preguntas\",IF(AND('Adaptación-Agricultura'!$A$36=\"La actividad sí contribuye sustancialmente a la sostenibilidad\",'Adaptación-Agricultura'!$B$41=\"La actividad genera contribución sustancial a la sostenibilidad\"),\"La actividad sí contribuye sustancialmente a la sostenibilidad\",\"La actividad no contribuye sustancialmente a la sostenibilidad\"))))))","v":"No se han respondido todas las preguntas"},null,{"$f":"IF('Indice de género-Agricultura'!$E$82=\"Por definir\",\"No se han contestado todas las preguntas\",IF('Indice de género-Agricultura'!$E$82=\"Sí cumple con el índice de igualdad de género\",\"La actividad sí contribuye sustancialmente a la sostenibilidad\",\"La actividad no genera contribución sustancial\"))","v":"La actividad sí contribuye sustancialmente a la sostenibilidad"}]
["Agricultura","111219. Cultivo de otras hortalizas (No Perenne) ",{"$f":"IF(OR('Mitigación-Agricultura'!$B$8=\"seleccione\",'Mitigación-Agricultura'!$B$10=\"Seleccione\",'Mitigación-Agricultura'!$B$12=\"Seleccione\",'Mitigación-Agricultura'!$A$16=\"Selecciona la medida 1\",'Mitigación-Agricultura'!$A$17=\"Selecciona la medida 2\",'Mitigación-Agricultura'!$B$19=\"Seleccione\",'Mitigación-Agricultura'!$B$21=\"Seleccione\"),\"No se han respondido todas las preguntas\",IF(AND('Mitigación-Agricultura'!$C$8=\"Sí contribuye sustancialmente a la sostenibilidad\",'Mitigación-Agricultura'!$C$10=\"Sí contribuye sustancialmente a la sostenibilidad. Debe verificarse con evidencia, por ejemplo, con una fotografía\",'Mitigación-Agricultura'!$C$12=\"Sí contribuye sustancialmente a la sostenibilidad\",'Mitigación-Agricultura'!$C$21=\"Contribuye sustancialmente a la sostenibilidad\"),\"La actividad sí contribuye sustancialmente a la sostenibilidad\",IF(AND('Mitigación-Agricultura'!$C$8=\"Se deberá confirmar a través de validación geoespacial\",'Mitigación-Agricultura'!$C$10=\"Sí contribuye sustancialmente a la sostenibilidad. Debe verificarse con evidencia, por ejemplo, con una fotografía\",'Mitigación-Agricultura'!$C$12=\"Sí contribuye sustancialmente a la sostenibilidad\",'Mitigación-Agricultura'!$C$21=\"Contribuye sustancialmente a la sostenibilidad\"),\"La actividad sí contribuye sustancialmente a la sostenibilidad\",\"La actividad no genera contribución sustancial a la sostenibilidad\")))","v":"La actividad sí contribuye sustancialmente a la sostenibilidad"},{"$f":"IF('Adaptación-Agricultura'!$D$8=\"Actividad que facilita la adaptación e incluye desarrollo de infraestructura\",(IF(OR('Adaptación-Agricultura'!$A$19=\"Por definir\",'Adaptación-Agricultura'!$A$25=\"Por definir\",'Adaptación-Agricultura'!$G$29=\"Por definir\",'Adaptación-Agricultura'!$A$36=\"Por definir\",'Adaptación-Agricultura'!$B$41=\"Por definir\"),\"No se han respondido todas las preguntas\",IF(AND('Adaptación-Agricultura'!$A$19=\"La actividad sí contribuye sustancialmente a la sostenibilidad\",'Adaptación-Agricultura'!$A$25=\"La actividad sí contribuye sustancialmente a la sostenibilidad\",'Adaptación-Agricultura'!$G$29=\"La actividad sí contribuye sustancialmente a la sostenbilidad\",'Adaptación-Agricultura'!$A$36=\"La actividad sí contribuye sustancialmente a la sostenibilidad\",'Adaptación-Agricultura'!$B$41=\"La actividad genera contribución sustancial a la sostenibilidad\"),\"La actividad sí contribuye sustancialmente a la sostenibilidad\",\"La actividad no contribuye sustancialmente a la sostenibilidad\"))),IF('Adaptación-Agricultura'!$D$8=\"Actividad adaptada\",(IF(OR('Adaptación-Agricultura'!$A$19=\"Por definir\",'Adaptación-Agricultura'!$A$25=\"Por definir\",'Adaptación-Agricultura'!$G$29=\"Por definir\",'Adaptación-Agricultura'!$A$36=\"Por definir\",'Adaptación-Agricultura'!$B$41=\"Por definir\"),\"No se han respondido todas las preguntas\",IF(AND('Adaptación-Agricultura'!$A$19=\"La actividad sí contribuye sustancialmente a la sostenibilidad\",'Adaptación-Agricultura'!$A$25=\"La actividad sí contribuye sustancialmente a la sostenibilidad\",'Adaptación-Agricultura'!$G$29=\"La actividad sí contribuye sustancialmente a la sostenbilidad\",'Adaptación-Agricultura'!$B$41=\"La actividad genera contribución sustancial a la sostenibilidad\"),\"La actividad sí contribuye sustancialmente a la sostenibilidad\",\"La actividad no contribuye sustancialmente a la sostenibilidad\"))),IF('Adaptación-Agricultura'!$D$8=\"Actividad que facilita la adaptación\",(IF(OR('Adaptación-Agricultura'!$A$36=\"Por definir\",'Adaptación-Agricultura'!$B$41=\"Por definir\"),\"No se han respondido todas las preguntas\",IF(AND('Adaptación-Agricultura'!$A$36=\"La actividad sí contribuye sustancialmente a la sostenibilidad\",'Adaptación-Agricultura'!$B$41=\"La actividad genera contribución sustancial a la sostenibilidad\"),\"La actividad sí contribuye sustancialmente a la sostenibilidad\",\"La actividad no contribuye sustancialmente a la sostenibilidad\"))))))","v":"No se han respondido todas las preguntas"},null,{"$f":"IF('Indice de género-Agricultura'!$E$82=\"Por definir\",\"No se han contestado todas las preguntas\",IF('Indice de género-Agricultura'!$E$82=\"Sí cumple con el índice de igualdad de género\",\"La actividad sí contribuye sustancialmente a la sostenibilidad\",\"La actividad no genera contribución sustancial\"))","v":"La actividad sí contribuye sustancialmente a la sostenibilidad"}]
["Agricultura","111310. Cultivo de naranja ",{"$f":"IF(OR('Mitigación-Agricultura'!$B$8=\"seleccione\",'Mitigación-Agricultura'!$B$10=\"Seleccione\",'Mitigación-Agricultura'!$B$12=\"Seleccione\",'Mitigación-Agricultura'!$A$16=\"Selecciona la medida 1\",'Mitigación-Agricultura'!$A$17=\"Selecciona la medida 2\",'Mitigación-Agricultura'!$B$19=\"Seleccione\",'Mitigación-Agricultura'!$B$21=\"Seleccione\"),\"No se han respondido todas las preguntas\",IF(AND('Mitigación-Agricultura'!$C$8=\"Sí contribuye sustancialmente a la sostenibilidad\",'Mitigación-Agricultura'!$C$10=\"Sí contribuye sustancialmente a la sostenibilidad. Debe verificarse con evidencia, por ejemplo, con una fotografía\",'Mitigación-Agricultura'!$C$12=\"Sí contribuye sustancialmente a la sostenibilidad\",'Mitigación-Agricultura'!$C$21=\"Contribuye sustancialmente a la sostenibilidad\"),\"La actividad sí contribuye sustancialmente a la sostenibilidad\",IF(AND('Mitigación-Agricultura'!$C$8=\"Se deberá confirmar a través de validación geoespacial\",'Mitigación-Agricultura'!$C$10=\"Sí contribuye sustancialmente a la sostenibilidad. Debe verificarse con evidencia, por ejemplo, con una fotografía\",'Mitigación-Agricultura'!$C$12=\"Sí contribuye sustancialmente a la sostenibilidad\",'Mitigación-Agricultura'!$C$21=\"Contribuye sustancialmente a la sostenibilidad\"),\"La actividad sí contribuye sustancialmente a la sostenibilidad\",\"La actividad no genera contribución sustancial a la sostenibilidad\")))","v":"La actividad sí contribuye sustancialmente a la sostenibilidad"},{"$f":"IF('Adaptación-Agricultura'!$D$8=\"Actividad que facilita la adaptación e incluye desarrollo de infraestructura\",(IF(OR('Adaptación-Agricultura'!$A$19=\"Por definir\",'Adaptación-Agricultura'!$A$25=\"Por definir\",'Adaptación-Agricultura'!$G$29=\"Por definir\",'Adaptación-Agricultura'!$A$36=\"Por definir\",'Adaptación-Agricultura'!$B$41=\"Por definir\"),\"No se han respondido todas las preguntas\",IF(AND('Adaptación-Agricultura'!$A$19=\"La actividad sí contribuye sustancialmente a la sostenibilidad\",'Adaptación-Agricultura'!$A$25=\"La actividad sí contribuye sustancialmente a la sostenibilidad\",'Adaptación-Agricultura'!$G$29=\"La actividad sí contribuye sustancialmente a la sostenbilidad\",'Adaptación-Agricultura'!$A$36=\"La actividad sí contribuye sustancialmente a la sostenibilidad\",'Adaptación-Agricultura'!$B$41=\"La actividad genera contribución sustancial a la sostenibilidad\"),\"La actividad sí contribuye sustancialmente a la sostenibilidad\",\"La actividad no contribuye sustancialmente a la sostenibilidad\"))),IF('Adaptación-Agricultura'!$D$8=\"Actividad adaptada\",(IF(OR('Adaptación-Agricultura'!$A$19=\"Por definir\",'Adaptación-Agricultura'!$A$25=\"Por definir\",'Adaptación-Agricultura'!$G$29=\"Por definir\",'Adaptación-Agricultura'!$A$36=\"Por definir\",'Adaptación-Agricultura'!$B$41=\"Por definir\"),\"No se han respondido todas las preguntas\",IF(AND('Adaptación-Agricultura'!$A$19=\"La actividad sí contribuye sustancialmente a la sostenibilidad\",'Adaptación-Agricultura'!$A$25=\"La actividad sí contribuye sustancialmente a la sostenibilidad\",'Adaptación-Agricultura'!$G$29=\"La actividad sí contribuye sustancialmente a la sostenbilidad\",'Adaptación-Agricultura'!$B$41=\"La actividad genera contribución sustancial a la sostenibilidad\"),\"La actividad sí contribuye sustancialmente a la sostenibilidad\",\"La actividad no contribuye sustancialmente a la sostenibilidad\"))),IF('Adaptación-Agricultura'!$D$8=\"Actividad que facilita la adaptación\",(IF(OR('Adaptación-Agricultura'!$A$36=\"Por definir\",'Adaptación-Agricultura'!$B$41=\"Por definir\"),\"No se han respondido todas las preguntas\",IF(AND('Adaptación-Agricultura'!$A$36=\"La actividad sí contribuye sustancialmente a la sostenibilidad\",'Adaptación-Agricultura'!$B$41=\"La actividad genera contribución sustancial a la sostenibilidad\"),\"La actividad sí contribuye sustancialmente a la sostenibilidad\",\"La actividad no contribuye sustancialmente a la sostenibilidad\"))))))","v":"No se han respondido todas las preguntas"},null,{"$f":"IF('Indice de género-Agricultura'!$E$82=\"Por definir\",\"No se han contestado todas las preguntas\",IF('Indice de género-Agricultura'!$E$82=\"Sí cumple con el índice de igualdad de género\",\"La actividad sí contribuye sustancialmente a la sostenibilidad\",\"La actividad no genera contribución sustancial\"))","v":"La actividad sí contribuye sustancialmente a la sostenibilidad"}]
["Agricultura","111321. Cultivo de limón ",{"$f":"IF(OR('Mitigación-Agricultura'!$B$8=\"seleccione\",'Mitigación-Agricultura'!$B$10=\"Seleccione\",'Mitigación-Agricultura'!$B$12=\"Seleccione\",'Mitigación-Agricultura'!$A$16=\"Selecciona la medida 1\",'Mitigación-Agricultura'!$A$17=\"Selecciona la medida 2\",'Mitigación-Agricultura'!$B$19=\"Seleccione\",'Mitigación-Agricultura'!$B$21=\"Seleccione\"),\"No se han respondido todas las preguntas\",IF(AND('Mitigación-Agricultura'!$C$8=\"Sí contribuye sustancialmente a la sostenibilidad\",'Mitigación-Agricultura'!$C$10=\"Sí contribuye sustancialmente a la sostenibilidad. Debe verificarse con evidencia, por ejemplo, con una fotografía\",'Mitigación-Agricultura'!$C$12=\"Sí contribuye sustancialmente a la sostenibilidad\",'Mitigación-Agricultura'!$C$21=\"Contribuye sustancialmente a la sostenibilidad\"),\"La actividad sí contribuye sustancialmente a la sostenibilidad\",IF(AND('Mitigación-Agricultura'!$C$8=\"Se deberá confirmar a través de validación geoespacial\",'Mitigación-Agricultura'!$C$10=\"Sí contribuye sustancialmente a la sostenibilidad. Debe verificarse con evidencia, por ejemplo, con una fotografía\",'Mitigación-Agricultura'!$C$12=\"Sí contribuye sustancialmente a la sostenibilidad\",'Mitigación-Agricultura'!$C$21=\"Contribuye sustancialmente a la sostenibilidad\"),\"La actividad sí contribuye sustancialmente a la sostenibilidad\",\"La actividad no genera contribución sustancial a la sostenibilidad\")))","v":"La actividad sí contribuye sustancialmente a la sostenibilidad"},{"$f":"IF('Adaptación-Agricultura'!$D$8=\"Actividad que facilita la adaptación e incluye desarrollo de infraestructura\",(IF(OR('Adaptación-Agricultura'!$A$19=\"Por definir\",'Adaptación-Agricultura'!$A$25=\"Por definir\",'Adaptación-Agricultura'!$G$29=\"Por definir\",'Adaptación-Agricultura'!$A$36=\"Por definir\",'Adaptación-Agricultura'!$B$41=\"Por definir\"),\"No se han respondido todas las preguntas\",IF(AND('Adaptación-Agricultura'!$A$19=\"La actividad sí contribuye sustancialmente a la sostenibilidad\",'Adaptación-Agricultura'!$A$25=\"La actividad sí contribuye sustancialmente a la sostenibilidad\",'Adaptación-Agricultura'!$G$29=\"La actividad sí contribuye sustancialmente a la sostenbilidad\",'Adaptación-Agricultura'!$A$36=\"La actividad sí contribuye sustancialmente a la sostenibilidad\",'Adaptación-Agricultura'!$B$41=\"La actividad genera contribución sustancial a la sostenibilidad\"),\"La actividad sí contribuye sustancialmente a la sostenibilidad\",\"La actividad no contribuye sustancialmente a la sostenibilidad\"))),IF('Adaptación-Agricultura'!$D$8=\"Actividad adaptada\",(IF(OR('Adaptación-Agricultura'!$A$19=\"Por definir\",'Adaptación-Agricultura'!$A$25=\"Por definir\",'Adaptación-Agricultura'!$G$29=\"Por definir\",'Adaptación-Agricultura'!$A$36=\"Por definir\",'Adaptación-Agricultura'!$B$41=\"Por definir\"),\"No se han respondido todas las preguntas\",IF(AND('Adaptación-Agricultura'!$A$19=\"La actividad sí contribuye sustancialmente a la sostenibilidad\",'Adaptación-Agricultura'!$A$25=\"La actividad sí contribuye sustancialmente a la sostenibilidad\",'Adaptación-Agricultura'!$G$29=\"La actividad sí contribuye sustancialmente a la sostenbilidad\",'Adaptación-Agricultura'!$B$41=\"La actividad genera contribución sustancial a la sostenibilidad\"),\"La actividad sí contribuye sustancialmente a la sostenibilidad\",\"La actividad no contribuye sustancialmente a la sostenibilidad\"))),IF('Adaptación-Agricultura'!$D$8=\"Actividad que facilita la adaptación\",(IF(OR('Adaptación-Agricultura'!$A$36=\"Por definir\",'Adaptación-Agricultura'!$B$41=\"Por definir\"),\"No se han respondido todas las preguntas\",IF(AND('Adaptación-Agricultura'!$A$36=\"La actividad sí contribuye sustancialmente a la sostenibilidad\",'Adaptación-Agricultura'!$B$41=\"La actividad genera contribución sustancial a la sostenibilidad\"),\"La actividad sí contribuye sustancialmente a la sostenibilidad\",\"La actividad no contribuye sustancialmente a la sostenibilidad\"))))))","v":"No se han respondido todas las preguntas"},null,{"$f":"IF('Indice de género-Agricultura'!$E$82=\"Por definir\",\"No se han contestado todas las preguntas\",IF('Indice de género-Agricultura'!$E$82=\"Sí cumple con el índice de igualdad de género\",\"La actividad sí contribuye sustancialmente a la sostenibilidad\",\"La actividad no genera contribución sustancial\"))","v":"La actividad sí contribuye sustancialmente a la sostenibilidad"}]
["Agricultura","111329. Cultivo de otros cítricos ",{"$f":"IF(OR('Mitigación-Agricultura'!$B$8=\"seleccione\",'Mitigación-Agricultura'!$B$10=\"Seleccione\",'Mitigación-Agricultura'!$B$12=\"Seleccione\",'Mitigación-Agricultura'!$A$16=\"Selecciona la medida 1\",'Mitigación-Agricultura'!$A$17=\"Selecciona la medida 2\",'Mitigación-Agricultura'!$B$19=\"Seleccione\",'Mitigación-Agricultura'!$B$21=\"Seleccione\"),\"No se han respondido todas las preguntas\",IF(AND('Mitigación-Agricultura'!$C$8=\"Sí contribuye sustancialmente a la sostenibilidad\",'Mitigación-Agricultura'!$C$10=\"Sí contribuye sustancialmente a la sostenibilidad. Debe verificarse con evidencia, por ejemplo, con una fotografía\",'Mitigación-Agricultura'!$C$12=\"Sí contribuye sustancialmente a la sostenibilidad\",'Mitigación-Agricultura'!$C$21=\"Contribuye sustancialmente a la sostenibilidad\"),\"La actividad sí contribuye sustancialmente a la sostenibilidad\",IF(AND('Mitigación-Agricultura'!$C$8=\"Se deberá confirmar a través de validación geoespacial\",'Mitigación-Agricultura'!$C$10=\"Sí contribuye sustancialmente a la sostenibilidad. Debe verificarse con evidencia, por ejemplo, con una fotografía\",'Mitigación-Agricultura'!$C$12=\"Sí contribuye sustancialmente a la sostenibilidad\",'Mitigación-Agricultura'!$C$21=\"Contribuye sustancialmente a la sostenibilidad\"),\"La actividad sí contribuye sustancialmente a la sostenibilidad\",\"La actividad no genera contribución sustancial a la sostenibilidad\")))","v":"La actividad sí contribuye sustancialmente a la sostenibilidad"},{"$f":"IF('Adaptación-Agricultura'!$D$8=\"Actividad que facilita la adaptación e incluye desarrollo de infraestructura\",(IF(OR('Adaptación-Agricultura'!$A$19=\"Por definir\",'Adaptación-Agricultura'!$A$25=\"Por definir\",'Adaptación-Agricultura'!$G$29=\"Por definir\",'Adaptación-Agricultura'!$A$36=\"Por definir\",'Adaptación-Agricultura'!$B$41=\"Por definir\"),\"No se han respondido todas las preguntas\",IF(AND('Adaptación-Agricultura'!$A$19=\"La actividad sí contribuye sustancialmente a la sostenibilidad\",'Adaptación-Agricultura'!$A$25=\"La actividad sí contribuye sustancialmente a la sostenibilidad\",'Adaptación-Agricultura'!$G$29=\"La actividad sí contribuye sustancialmente a la sostenbilidad\",'Adaptación-Agricultura'!$A$36=\"La actividad sí contribuye sustancialmente a la sostenibilidad\",'Adaptación-Agricultura'!$B$41=\"La actividad genera contribución sustancial a la sostenibilidad\"),\"La actividad sí contribuye sustancialmente a la sostenibilidad\",\"La actividad no contribuye sustancialmente a la sostenibilidad\"))),IF('Adaptación-Agricultura'!$D$8=\"Actividad adaptada\",(IF(OR('Adaptación-Agricultura'!$A$19=\"Por definir\",'Adaptación-Agricultura'!$A$25=\"Por definir\",'Adaptación-Agricultura'!$G$29=\"Por definir\",'Adaptación-Agricultura'!$A$36=\"Por definir\",'Adaptación-Agricultura'!$B$41=\"Por definir\"),\"No se han respondido todas las preguntas\",IF(AND('Adaptación-Agricultura'!$A$19=\"La actividad sí contribuye sustancialmente a la sostenibilidad\",'Adaptación-Agricultura'!$A$25=\"La actividad sí contribuye sustancialmente a la sostenibilidad\",'Adaptación-Agricultura'!$G$29=\"La actividad sí contribuye sustancialmente a la sostenbilidad\",'Adaptación-Agricultura'!$B$41=\"La actividad genera contribución sustancial a la sostenibilidad\"),\"La actividad sí contribuye sustancialmente a la sostenibilidad\",\"La actividad no contribuye sustancialmente a la sostenibilidad\"))),IF('Adaptación-Agricultura'!$D$8=\"Actividad que facilita la adaptación\",(IF(OR('Adaptación-Agricultura'!$A$36=\"Por definir\",'Adaptación-Agricultura'!$B$41=\"Por definir\"),\"No se han respondido todas las preguntas\",IF(AND('Adaptación-Agricultura'!$A$36=\"La actividad sí contribuye sustancialmente a la sostenibilidad\",'Adaptación-Agricultura'!$B$41=\"La actividad genera contribución sustancial a la sostenibilidad\"),\"La actividad sí contribuye sustancialmente a la sostenibilidad\",\"La actividad no contribuye sustancialmente a la sostenibilidad\"))))))","v":"No se han respondido todas las preguntas"},null,{"$f":"IF('Indice de género-Agricultura'!$E$82=\"Por definir\",\"No se han contestado todas las preguntas\",IF('Indice de género-Agricultura'!$E$82=\"Sí cumple con el índice de igualdad de género\",\"La actividad sí contribuye sustancialmente a la sostenibilidad\",\"La actividad no genera contribución sustancial\"))","v":"La actividad sí contribuye sustancialmente a la sostenibilidad"}]
["Agricultura","111331. Cultivo de café ",{"$f":"IF(OR('Mitigación-Agricultura'!$B$8=\"seleccione\",'Mitigación-Agricultura'!$B$10=\"Seleccione\",'Mitigación-Agricultura'!$B$12=\"Seleccione\",'Mitigación-Agricultura'!$A$16=\"Selecciona la medida 1\",'Mitigación-Agricultura'!$A$17=\"Selecciona la medida 2\",'Mitigación-Agricultura'!$B$19=\"Seleccione\",'Mitigación-Agricultura'!$B$21=\"Seleccione\"),\"No se han respondido todas las preguntas\",IF(AND('Mitigación-Agricultura'!$C$8=\"Sí contribuye sustancialmente a la sostenibilidad\",'Mitigación-Agricultura'!$C$10=\"Sí contribuye sustancialmente a la sostenibilidad. Debe verificarse con evidencia, por ejemplo, con una fotografía\",'Mitigación-Agricultura'!$C$12=\"Sí contribuye sustancialmente a la sostenibilidad\",'Mitigación-Agricultura'!$C$21=\"Contribuye sustancialmente a la sostenibilidad\"),\"La actividad sí contribuye sustancialmente a la sostenibilidad\",IF(AND('Mitigación-Agricultura'!$C$8=\"Se deberá confirmar a través de validación geoespacial\",'Mitigación-Agricultura'!$C$10=\"Sí contribuye sustancialmente a la sostenibilidad. Debe verificarse con evidencia, por ejemplo, con una fotografía\",'Mitigación-Agricultura'!$C$12=\"Sí contribuye sustancialmente a la sostenibilidad\",'Mitigación-Agricultura'!$C$21=\"Contribuye sustancialmente a la sostenibilidad\"),\"La actividad sí contribuye sustancialmente a la sostenibilidad\",\"La actividad no genera contribución sustancial a la sostenibilidad\")))","v":"La actividad sí contribuye sustancialmente a la sostenibilidad"},{"$f":"IF('Adaptación-Agricultura'!$D$8=\"Actividad que facilita la adaptación e incluye desarrollo de infraestructura\",(IF(OR('Adaptación-Agricultura'!$A$19=\"Por definir\",'Adaptación-Agricultura'!$A$25=\"Por definir\",'Adaptación-Agricultura'!$G$29=\"Por definir\",'Adaptación-Agricultura'!$A$36=\"Por definir\",'Adaptación-Agricultura'!$B$41=\"Por definir\"),\"No se han respondido todas las preguntas\",IF(AND('Adaptación-Agricultura'!$A$19=\"La actividad sí contribuye sustancialmente a la sostenibilidad\",'Adaptación-Agricultura'!$A$25=\"La actividad sí contribuye sustancialmente a la sostenibilidad\",'Adaptación-Agricultura'!$G$29=\"La actividad sí contribuye sustancialmente a la sostenbilidad\",'Adaptación-Agricultura'!$A$36=\"La actividad sí contribuye sustancialmente a la sostenibilidad\",'Adaptación-Agricultura'!$B$41=\"La actividad genera contribución sustancial a la sostenibilidad\"),\"La actividad sí contribuye sustancialmente a la sostenibilidad\",\"La actividad no contribuye sustancialmente a la sostenibilidad\"))),IF('Adaptación-Agricultura'!$D$8=\"Actividad adaptada\",(IF(OR('Adaptación-Agricultura'!$A$19=\"Por definir\",'Adaptación-Agricultura'!$A$25=\"Por definir\",'Adaptación-Agricultura'!$G$29=\"Por definir\",'Adaptación-Agricultura'!$A$36=\"Por definir\",'Adaptación-Agricultura'!$B$41=\"Por definir\"),\"No se han respondido todas las preguntas\",IF(AND('Adaptación-Agricultura'!$A$19=\"La actividad sí contribuye sustancialmente a la sostenibilidad\",'Adaptación-Agricultura'!$A$25=\"La actividad sí contribuye sustancialmente a la sostenibilidad\",'Adaptación-Agricultura'!$G$29=\"La actividad sí contribuye sustancialmente a la sostenbilidad\",'Adaptación-Agricultura'!$B$41=\"La actividad genera contribución sustancial a la sostenibilidad\"),\"La actividad sí contribuye sustancialmente a la sostenibilidad\",\"La actividad no contribuye sustancialmente a la sostenibilidad\"))),IF('Adaptación-Agricultura'!$D$8=\"Actividad que facilita la adaptación\",(IF(OR('Adaptación-Agricultura'!$A$36=\"Por definir\",'Adaptación-Agricultura'!$B$41=\"Por definir\"),\"No se han respondido todas las preguntas\",IF(AND('Adaptación-Agricultura'!$A$36=\"La actividad sí contribuye sustancialmente a la sostenibilidad\",'Adaptación-Agricultura'!$B$41=\"La actividad genera contribución sustancial a la sostenibilidad\"),\"La actividad sí contribuye sustancialmente a la sostenibilidad\",\"La actividad no contribuye sustancialmente a la sostenibilidad\"))))))","v":"No se han respondido todas las preguntas"},null,{"$f":"IF('Indice de género-Agricultura'!$E$82=\"Por definir\",\"No se han contestado todas las preguntas\",IF('Indice de género-Agricultura'!$E$82=\"Sí cumple con el índice de igualdad de género\",\"La actividad sí contribuye sustancialmente a la sostenibilidad\",\"La actividad no genera contribución sustancial\"))","v":"La actividad sí contribuye sustancialmente a la sostenibilidad"}]
["Agricultura","111332. Cultivo de plátano ",{"$f":"IF(OR('Mitigación-Agricultura'!$B$8=\"seleccione\",'Mitigación-Agricultura'!$B$10=\"Seleccione\",'Mitigación-Agricultura'!$B$12=\"Seleccione\",'Mitigación-Agricultura'!$A$16=\"Selecciona la medida 1\",'Mitigación-Agricultura'!$A$17=\"Selecciona la medida 2\",'Mitigación-Agricultura'!$B$19=\"Seleccione\",'Mitigación-Agricultura'!$B$21=\"Seleccione\"),\"No se han respondido todas las preguntas\",IF(AND('Mitigación-Agricultura'!$C$8=\"Sí contribuye sustancialmente a la sostenibilidad\",'Mitigación-Agricultura'!$C$10=\"Sí contribuye sustancialmente a la sostenibilidad. Debe verificarse con evidencia, por ejemplo, con una fotografía\",'Mitigación-Agricultura'!$C$12=\"Sí contribuye sustancialmente a la sostenibilidad\",'Mitigación-Agricultura'!$C$21=\"Contribuye sustancialmente a la sostenibilidad\"),\"La actividad sí contribuye sustancialmente a la sostenibilidad\",IF(AND('Mitigación-Agricultura'!$C$8=\"Se deberá confirmar a través de validación geoespacial\",'Mitigación-Agricultura'!$C$10=\"Sí contribuye sustancialmente a la sostenibilidad. Debe verificarse con evidencia, por ejemplo, con una fotografía\",'Mitigación-Agricultura'!$C$12=\"Sí contribuye sustancialmente a la sostenibilidad\",'Mitigación-Agricultura'!$C$21=\"Contribuye sustancialmente a la sostenibilidad\"),\"La actividad sí contribuye sustancialmente a la sostenibilidad\",\"La actividad no genera contribución sustancial a la sostenibilidad\")))","v":"La actividad sí contribuye sustancialmente a la sostenibilidad"},{"$f":"IF('Adaptación-Agricultura'!$D$8=\"Actividad que facilita la adaptación e incluye desarrollo de infraestructura\",(IF(OR('Adaptación-Agricultura'!$A$19=\"Por definir\",'Adaptación-Agricultura'!$A$25=\"Por definir\",'Adaptación-Agricultura'!$G$29=\"Por definir\",'Adaptación-Agricultura'!$A$36=\"Por definir\",'Adaptación-Agricultura'!$B$41=\"Por definir\"),\"No se han respondido todas las preguntas\",IF(AND('Adaptación-Agricultura'!$A$19=\"La actividad sí contribuye sustancialmente a la sostenibilidad\",'Adaptación-Agricultura'!$A$25=\"La actividad sí contribuye sustancialmente a la sostenibilidad\",'Adaptación-Agricultura'!$G$29=\"La actividad sí contribuye sustancialmente a la sostenbilidad\",'Adaptación-Agricultura'!$A$36=\"La actividad sí contribuye sustancialmente a la sostenibilidad\",'Adaptación-Agricultura'!$B$41=\"La actividad genera contribución sustancial a la sostenibilidad\"),\"La actividad sí contribuye sustancialmente a la sostenibilidad\",\"La actividad no contribuye sustancialmente a la sostenibilidad\"))),IF('Adaptación-Agricultura'!$D$8=\"Actividad adaptada\",(IF(OR('Adaptación-Agricultura'!$A$19=\"Por definir\",'Adaptación-Agricultura'!$A$25=\"Por definir\",'Adaptación-Agricultura'!$G$29=\"Por definir\",'Adaptación-Agricultura'!$A$36=\"Por definir\",'Adaptación-Agricultura'!$B$41=\"Por definir\"),\"No se han respondido todas las preguntas\",IF(AND('Adaptación-Agricultura'!$A$19=\"La actividad sí contribuye sustancialmente a la sostenibilidad\",'Adaptación-Agricultura'!$A$25=\"La actividad sí contribuye sustancialmente a la sostenibilidad\",'Adaptación-Agricultura'!$G$29=\"La actividad sí contribuye sustancialmente a la sostenbilidad\",'Adaptación-Agricultura'!$B$41=\"La actividad genera contribución sustancial a la sostenibilidad\"),\"La actividad sí contribuye sustancialmente a la sostenibilidad\",\"La actividad no contribuye sustancialmente a la sostenibilidad\"))),IF('Adaptación-Agricultura'!$D$8=\"Actividad que facilita la adaptación\",(IF(OR('Adaptación-Agricultura'!$A$36=\"Por definir\",'Adaptación-Agricultura'!$B$41=\"Por definir\"),\"No se han respondido todas las preguntas\",IF(AND('Adaptación-Agricultura'!$A$36=\"La actividad sí contribuye sustancialmente a la sostenibilidad\",'Adaptación-Agricultura'!$B$41=\"La actividad genera contribución sustancial a la sostenibilidad\"),\"La actividad sí contribuye sustancialmente a la sostenibilidad\",\"La actividad no contribuye sustancialmente a la sostenibilidad\"))))))","v":"No se han respondido todas las preguntas"},null,{"$f":"IF('Indice de género-Agricultura'!$E$82=\"Por definir\",\"No se han contestado todas las preguntas\",IF('Indice de género-Agricultura'!$E$82=\"Sí cumple con el índice de igualdad de género\",\"La actividad sí contribuye sustancialmente a la sostenibilidad\",\"La actividad no genera contribución sustancial\"))","v":"La actividad sí contribuye sustancialmente a la sostenibilidad"}]
["Agricultura","111333. Cultivo de mango",{"$f":"IF(OR('Mitigación-Agricultura'!$B$8=\"seleccione\",'Mitigación-Agricultura'!$B$10=\"Seleccione\",'Mitigación-Agricultura'!$B$12=\"Seleccione\",'Mitigación-Agricultura'!$A$16=\"Selecciona la medida 1\",'Mitigación-Agricultura'!$A$17=\"Selecciona la medida 2\",'Mitigación-Agricultura'!$B$19=\"Seleccione\",'Mitigación-Agricultura'!$B$21=\"Seleccione\"),\"No se han respondido todas las preguntas\",IF(AND('Mitigación-Agricultura'!$C$8=\"Sí contribuye sustancialmente a la sostenibilidad\",'Mitigación-Agricultura'!$C$10=\"Sí contribuye sustancialmente a la sostenibilidad. Debe verificarse con evidencia, por ejemplo, con una fotografía\",'Mitigación-Agricultura'!$C$12=\"Sí contribuye sustancialmente a la sostenibilidad\",'Mitigación-Agricultura'!$C$21=\"Contribuye sustancialmente a la sostenibilidad\"),\"La actividad sí contribuye sustancialmente a la sostenibilidad\",IF(AND('Mitigación-Agricultura'!$C$8=\"Se deberá confirmar a través de validación geoespacial\",'Mitigación-Agricultura'!$C$10=\"Sí contribuye sustancialmente a la sostenibilidad. Debe verificarse con evidencia, por ejemplo, con una fotografía\",'Mitigación-Agricultura'!$C$12=\"Sí contribuye sustancialmente a la sostenibilidad\",'Mitigación-Agricultura'!$C$21=\"Contribuye sustancialmente a la sostenibilidad\"),\"La actividad sí contribuye sustancialmente a la sostenibilidad\",\"La actividad no genera contribución sustancial a la sostenibilidad\")))","v":"La actividad sí contribuye sustancialmente a la sostenibilidad"},{"$f":"IF('Adaptación-Agricultura'!$D$8=\"Actividad que facilita la adaptación e incluye desarrollo de infraestructura\",(IF(OR('Adaptación-Agricultura'!$A$19=\"Por definir\",'Adaptación-Agricultura'!$A$25=\"Por definir\",'Adaptación-Agricultura'!$G$29=\"Por definir\",'Adaptación-Agricultura'!$A$36=\"Por definir\",'Adaptación-Agricultura'!$B$41=\"Por definir\"),\"No se han respondido todas las preguntas\",IF(AND('Adaptación-Agricultura'!$A$19=\"La actividad sí contribuye sustancialmente a la sostenibilidad\",'Adaptación-Agricultura'!$A$25=\"La actividad sí contribuye sustancialmente a la sostenibilidad\",'Adaptación-Agricultura'!$G$29=\"La actividad sí contribuye sustancialmente a la sostenbilidad\",'Adaptación-Agricultura'!$A$36=\"La actividad sí contribuye sustancialmente a la sostenibilidad\",'Adaptación-Agricultura'!$B$41=\"La actividad genera contribución sustancial a la sostenibilidad\"),\"La actividad sí contribuye sustancialmente a la sostenibilidad\",\"La actividad no contribuye sustancialmente a la sostenibilidad\"))),IF('Adaptación-Agricultura'!$D$8=\"Actividad adaptada\",(IF(OR('Adaptación-Agricultura'!$A$19=\"Por definir\",'Adaptación-Agricultura'!$A$25=\"Por definir\",'Adaptación-Agricultura'!$G$29=\"Por definir\",'Adaptación-Agricultura'!$A$36=\"Por definir\",'Adaptación-Agricultura'!$B$41=\"Por definir\"),\"No se han respondido todas las preguntas\",IF(AND('Adaptación-Agricultura'!$A$19=\"La actividad sí contribuye sustancialmente a la sostenibilidad\",'Adaptación-Agricultura'!$A$25=\"La actividad sí contribuye sustancialmente a la sostenibilidad\",'Adaptación-Agricultura'!$G$29=\"La actividad sí contribuye sustancialmente a la sostenbilidad\",'Adaptación-Agricultura'!$B$41=\"La actividad genera contribución sustancial a la sostenibilidad\"),\"La actividad sí contribuye sustancialmente a la sostenibilidad\",\"La actividad no contribuye sustancialmente a la sostenibilidad\"))),IF('Adaptación-Agricultura'!$D$8=\"Actividad que facilita la adaptación\",(IF(OR('Adaptación-Agricultura'!$A$36=\"Por definir\",'Adaptación-Agricultura'!$B$41=\"Por definir\"),\"No se han respondido todas las preguntas\",IF(AND('Adaptación-Agricultura'!$A$36=\"La actividad sí contribuye sustancialmente a la sostenibilidad\",'Adaptación-Agricultura'!$B$41=\"La actividad genera contribución sustancial a la sostenibilidad\"),\"La actividad sí contribuye sustancialmente a la sostenibilidad\",\"La actividad no contribuye sustancialmente a la sostenibilidad\"))))))","v":"No se han respondido todas las preguntas"},null,{"$f":"IF('Indice de género-Agricultura'!$E$82=\"Por definir\",\"No se han contestado todas las preguntas\",IF('Indice de género-Agricultura'!$E$82=\"Sí cumple con el índice de igualdad de género\",\"La actividad sí contribuye sustancialmente a la sostenibilidad\",\"La actividad no genera contribución sustancial\"))","v":"La actividad sí contribuye sustancialmente a la sostenibilidad"}]
["Agricultura","111334. Cultivo de aguacate ",{"$f":"IF(OR('Mitigación-Agricultura'!$B$8=\"seleccione\",'Mitigación-Agricultura'!$B$10=\"Seleccione\",'Mitigación-Agricultura'!$B$12=\"Seleccione\",'Mitigación-Agricultura'!$A$16=\"Selecciona la medida 1\",'Mitigación-Agricultura'!$A$17=\"Selecciona la medida 2\",'Mitigación-Agricultura'!$B$19=\"Seleccione\",'Mitigación-Agricultura'!$B$21=\"Seleccione\"),\"No se han respondido todas las preguntas\",IF(AND('Mitigación-Agricultura'!$C$8=\"Sí contribuye sustancialmente a la sostenibilidad\",'Mitigación-Agricultura'!$C$10=\"Sí contribuye sustancialmente a la sostenibilidad. Debe verificarse con evidencia, por ejemplo, con una fotografía\",'Mitigación-Agricultura'!$C$12=\"Sí contribuye sustancialmente a la sostenibilidad\",'Mitigación-Agricultura'!$C$21=\"Contribuye sustancialmente a la sostenibilidad\"),\"La actividad sí contribuye sustancialmente a la sostenibilidad\",IF(AND('Mitigación-Agricultura'!$C$8=\"Se deberá confirmar a través de validación geoespacial\",'Mitigación-Agricultura'!$C$10=\"Sí contribuye sustancialmente a la sostenibilidad. Debe verificarse con evidencia, por ejemplo, con una fotografía\",'Mitigación-Agricultura'!$C$12=\"Sí contribuye sustancialmente a la sostenibilidad\",'Mitigación-Agricultura'!$C$21=\"Contribuye sustancialmente a la sostenibilidad\"),\"La actividad sí contribuye sustancialmente a la sostenibilidad\",\"La actividad no genera contribución sustancial a la sostenibilidad\")))","v":"La actividad sí contribuye sustancialmente a la sostenibilidad"},{"$f":"IF('Adaptación-Agricultura'!$D$8=\"Actividad que facilita la adaptación e incluye desarrollo de infraestructura\",(IF(OR('Adaptación-Agricultura'!$A$19=\"Por definir\",'Adaptación-Agricultura'!$A$25=\"Por definir\",'Adaptación-Agricultura'!$G$29=\"Por definir\",'Adaptación-Agricultura'!$A$36=\"Por definir\",'Adaptación-Agricultura'!$B$41=\"Por definir\"),\"No se han respondido todas las preguntas\",IF(AND('Adaptación-Agricultura'!$A$19=\"La actividad sí contribuye sustancialmente a la sostenibilidad\",'Adaptación-Agricultura'!$A$25=\"La actividad sí contribuye sustancialmente a la sostenibilidad\",'Adaptación-Agricultura'!$G$29=\"La actividad sí contribuye sustancialmente a la sostenbilidad\",'Adaptación-Agricultura'!$A$36=\"La actividad sí contribuye sustancialmente a la sostenibilidad\",'Adaptación-Agricultura'!$B$41=\"La actividad genera contribución sustancial a la sostenibilidad\"),\"La actividad sí contribuye sustancialmente a la sostenibilidad\",\"La actividad no contribuye sustancialmente a la sostenibilidad\"))),IF('Adaptación-Agricultura'!$D$8=\"Actividad adaptada\",(IF(OR('Adaptación-Agricultura'!$A$19=\"Por definir\",'Adaptación-Agricultura'!$A$25=\"Por definir\",'Adaptación-Agricultura'!$G$29=\"Por definir\",'Adaptación-Agricultura'!$A$36=\"Por definir\",'Adaptación-Agricultura'!$B$41=\"Por definir\"),\"No se han respondido todas las preguntas\",IF(AND('Adaptación-Agricultura'!$A$19=\"La actividad sí contribuye sustancialmente a la sostenibilidad\",'Adaptación-Agricultura'!$A$25=\"La actividad sí contribuye sustancialmente a la sostenibilidad\",'Adaptación-Agricultura'!$G$29=\"La actividad sí contribuye sustancialmente a la sostenbilidad\",'Adaptación-Agricultura'!$B$41=\"La actividad genera contribución sustancial a la sostenibilidad\"),\"La actividad sí contribuye sustancialmente a la sostenibilidad\",\"La actividad no contribuye sustancialmente a la sostenibilidad\"))),IF('Adaptación-Agricultura'!$D$8=\"Actividad que facilita la adaptación\",(IF(OR('Adaptación-Agricultura'!$A$36=\"Por definir\",'Adaptación-Agricultura'!$B$41=\"Por definir\"),\"No se han respondido todas las preguntas\",IF(AND('Adaptación-Agricultura'!$A$36=\"La actividad sí contribuye sustancialmente a la sostenibilidad\",'Adaptación-Agricultura'!$B$41=\"La actividad genera contribución sustancial a la sostenibilidad\"),\"La actividad sí contribuye sustancialmente a la sostenibilidad\",\"La actividad no contribuye sustancialmente a la sostenibilidad\"))))))","v":"No se han respondido todas las preguntas"},null,{"$f":"IF('Indice de género-Agricultura'!$E$82=\"Por definir\",\"No se han contestado todas las preguntas\",IF('Indice de género-Agricultura'!$E$82=\"Sí cumple con el índice de igualdad de género\",\"La actividad sí contribuye sustancialmente a la sostenibilidad\",\"La actividad no genera contribución sustancial\"))","v":"La actividad sí contribuye sustancialmente a la sostenibilidad"}]
["Agricultura","111335. Cultivo de uva ",{"$f":"IF(OR('Mitigación-Agricultura'!$B$8=\"seleccione\",'Mitigación-Agricultura'!$B$10=\"Seleccione\",'Mitigación-Agricultura'!$B$12=\"Seleccione\",'Mitigación-Agricultura'!$A$16=\"Selecciona la medida 1\",'Mitigación-Agricultura'!$A$17=\"Selecciona la medida 2\",'Mitigación-Agricultura'!$B$19=\"Seleccione\",'Mitigación-Agricultura'!$B$21=\"Seleccione\"),\"No se han respondido todas las preguntas\",IF(AND('Mitigación-Agricultura'!$C$8=\"Sí contribuye sustancialmente a la sostenibilidad\",'Mitigación-Agricultura'!$C$10=\"Sí contribuye sustancialmente a la sostenibilidad. Debe verificarse con evidencia, por ejemplo, con una fotografía\",'Mitigación-Agricultura'!$C$12=\"Sí contribuye sustancialmente a la sostenibilidad\",'Mitigación-Agricultura'!$C$21=\"Contribuye sustancialmente a la sostenibilidad\"),\"La actividad sí contribuye sustancialmente a la sostenibilidad\",IF(AND('Mitigación-Agricultura'!$C$8=\"Se deberá confirmar a través de validación geoespacial\",'Mitigación-Agricultura'!$C$10=\"Sí contribuye sustancialmente a la sostenibilidad. Debe verificarse con evidencia, por ejemplo, con una fotografía\",'Mitigación-Agricultura'!$C$12=\"Sí contribuye sustancialmente a la sostenibilidad\",'Mitigación-Agricultura'!$C$21=\"Contribuye sustancialmente a la sostenibilidad\"),\"La actividad sí contribuye sustancialmente a la sostenibilidad\",\"La actividad no genera contribución sustancial a la sostenibilidad\")))","v":"La actividad sí contribuye sustancialmente a la sostenibilidad"},{"$f":"IF('Adaptación-Agricultura'!$D$8=\"Actividad que facilita la adaptación e incluye desarrollo de infraestructura\",(IF(OR('Adaptación-Agricultura'!$A$19=\"Por definir\",'Adaptación-Agricultura'!$A$25=\"Por definir\",'Adaptación-Agricultura'!$G$29=\"Por definir\",'Adaptación-Agricultura'!$A$36=\"Por definir\",'Adaptación-Agricultura'!$B$41=\"Por definir\"),\"No se han respondido todas las preguntas\",IF(AND('Adaptación-Agricultura'!$A$19=\"La actividad sí contribuye sustancialmente a la sostenibilidad\",'Adaptación-Agricultura'!$A$25=\"La actividad sí contribuye sustancialmente a la sostenibilidad\",'Adaptación-Agricultura'!$G$29=\"La actividad sí contribuye sustancialmente a la sostenbilidad\",'Adaptación-Agricultura'!$A$36=\"La actividad sí contribuye sustancialmente a la sostenibilidad\",'Adaptación-Agricultura'!$B$41=\"La actividad genera contribución sustancial a la sostenibilidad\"),\"La actividad sí contribuye sustancialmente a la sostenibilidad\",\"La actividad no contribuye sustancialmente a la sostenibilidad\"))),IF('Adaptación-Agricultura'!$D$8=\"Actividad adaptada\",(IF(OR('Adaptación-Agricultura'!$A$19=\"Por definir\",'Adaptación-Agricultura'!$A$25=\"Por definir\",'Adaptación-Agricultura'!$G$29=\"Por definir\",'Adaptación-Agricultura'!$A$36=\"Por definir\",'Adaptación-Agricultura'!$B$41=\"Por definir\"),\"No se han respondido todas las preguntas\",IF(AND('Adaptación-Agricultura'!$A$19=\"La actividad sí contribuye sustancialmente a la sostenibilidad\",'Adaptación-Agricultura'!$A$25=\"La actividad sí contribuye sustancialmente a la sostenibilidad\",'Adaptación-Agricultura'!$G$29=\"La actividad sí contribuye sustancialmente a la sostenbilidad\",'Adaptación-Agricultura'!$B$41=\"La actividad genera contribución sustancial a la sostenibilidad\"),\"La actividad sí contribuye sustancialmente a la sostenibilidad\",\"La actividad no contribuye sustancialmente a la sostenibilidad\"))),IF('Adaptación-Agricultura'!$D$8=\"Actividad que facilita la adaptación\",(IF(OR('Adaptación-Agricultura'!$A$36=\"Por definir\",'Adaptación-Agricultura'!$B$41=\"Por definir\"),\"No se han respondido todas las preguntas\",IF(AND('Adaptación-Agricultura'!$A$36=\"La actividad sí contribuye sustancialmente a la sostenibilidad\",'Adaptación-Agricultura'!$B$41=\"La actividad genera contribución sustancial a la sostenibilidad\"),\"La actividad sí contribuye sustancialmente a la sostenibilidad\",\"La actividad no contribuye sustancialmente a la sostenibilidad\"))))))","v":"No se han respondido todas las preguntas"},null,{"$f":"IF('Indice de género-Agricultura'!$E$82=\"Por definir\",\"No se han contestado todas las preguntas\",IF('Indice de género-Agricultura'!$E$82=\"Sí cumple con el índice de igualdad de género\",\"La actividad sí contribuye sustancialmente a la sostenibilidad\",\"La actividad no genera contribución sustancial\"))","v":"La actividad sí contribuye sustancialmente a la sostenibilidad"}]
["Agricultura","111336. Cultivo de manzana ",{"$f":"IF(OR('Mitigación-Agricultura'!$B$8=\"seleccione\",'Mitigación-Agricultura'!$B$10=\"Seleccione\",'Mitigación-Agricultura'!$B$12=\"Seleccione\",'Mitigación-Agricultura'!$A$16=\"Selecciona la medida 1\",'Mitigación-Agricultura'!$A$17=\"Selecciona la medida 2\",'Mitigación-Agricultura'!$B$19=\"Seleccione\",'Mitigación-Agricultura'!$B$21=\"Seleccione\"),\"No se han respondido todas las preguntas\",IF(AND('Mitigación-Agricultura'!$C$8=\"Sí contribuye sustancialmente a la sostenibilidad\",'Mitigación-Agricultura'!$C$10=\"Sí contribuye sustancialmente a la sostenibilidad. Debe verificarse con evidencia, por ejemplo, con una fotografía\",'Mitigación-Agricultura'!$C$12=\"Sí contribuye sustancialmente a la sostenibilidad\",'Mitigación-Agricultura'!$C$21=\"Contribuye sustancialmente a la sostenibilidad\"),\"La actividad sí contribuye sustancialmente a la sostenibilidad\",IF(AND('Mitigación-Agricultura'!$C$8=\"Se deberá confirmar a través de validación geoespacial\",'Mitigación-Agricultura'!$C$10=\"Sí contribuye sustancialmente a la sostenibilidad. Debe verificarse con evidencia, por ejemplo, con una fotografía\",'Mitigación-Agricultura'!$C$12=\"Sí contribuye sustancialmente a la sostenibilidad\",'Mitigación-Agricultura'!$C$21=\"Contribuye sustancialmente a la sostenibilidad\"),\"La actividad sí contribuye sustancialmente a la sostenibilidad\",\"La actividad no genera contribución sustancial a la sostenibilidad\")))","v":"La actividad sí contribuye sustancialmente a la sostenibilidad"},{"$f":"IF('Adaptación-Agricultura'!$D$8=\"Actividad que facilita la adaptación e incluye desarrollo de infraestructura\",(IF(OR('Adaptación-Agricultura'!$A$19=\"Por definir\",'Adaptación-Agricultura'!$A$25=\"Por definir\",'Adaptación-Agricultura'!$G$29=\"Por definir\",'Adaptación-Agricultura'!$A$36=\"Por definir\",'Adaptación-Agricultura'!$B$41=\"Por definir\"),\"No se han respondido todas las preguntas\",IF(AND('Adaptación-Agricultura'!$A$19=\"La actividad sí contribuye sustancialmente a la sostenibilidad\",'Adaptación-Agricultura'!$A$25=\"La actividad sí contribuye sustancialmente a la sostenibilidad\",'Adaptación-Agricultura'!$G$29=\"La actividad sí contribuye sustancialmente a la sostenbilidad\",'Adaptación-Agricultura'!$A$36=\"La actividad sí contribuye sustancialmente a la sostenibilidad\",'Adaptación-Agricultura'!$B$41=\"La actividad genera contribución sustancial a la sostenibilidad\"),\"La actividad sí contribuye sustancialmente a la sostenibilidad\",\"La actividad no contribuye sustancialmente a la sostenibilidad\"))),IF('Adaptación-Agricultura'!$D$8=\"Actividad adaptada\",(IF(OR('Adaptación-Agricultura'!$A$19=\"Por definir\",'Adaptación-Agricultura'!$A$25=\"Por definir\",'Adaptación-Agricultura'!$G$29=\"Por definir\",'Adaptación-Agricultura'!$A$36=\"Por definir\",'Adaptación-Agricultura'!$B$41=\"Por definir\"),\"No se han respondido todas las preguntas\",IF(AND('Adaptación-Agricultura'!$A$19=\"La actividad sí contribuye sustancialmente a la sostenibilidad\",'Adaptación-Agricultura'!$A$25=\"La actividad sí contribuye sustancialmente a la sostenibilidad\",'Adaptación-Agricultura'!$G$29=\"La actividad sí contribuye sustancialmente a la sostenbilidad\",'Adaptación-Agricultura'!$B$41=\"La actividad genera contribución sustancial a la sostenibilidad\"),\"La actividad sí contribuye sustancialmente a la sostenibilidad\",\"La actividad no contribuye sustancialmente a la sostenibilidad\"))),IF('Adaptación-Agricultura'!$D$8=\"Actividad que facilita la adaptación\",(IF(OR('Adaptación-Agricultura'!$A$36=\"Por definir\",'Adaptación-Agricultura'!$B$41=\"Por definir\"),\"No se han respondido todas las preguntas\",IF(AND('Adaptación-Agricultura'!$A$36=\"La actividad sí contribuye sustancialmente a la sostenibilidad\",'Adaptación-Agricultura'!$B$41=\"La actividad genera contribución sustancial a la sostenibilidad\"),\"La actividad sí contribuye sustancialmente a la sostenibilidad\",\"La actividad no contribuye sustancialmente a la sostenibilidad\"))))))","v":"No se han respondido todas las preguntas"},null,{"$f":"IF('Indice de género-Agricultura'!$E$82=\"Por definir\",\"No se han contestado todas las preguntas\",IF('Indice de género-Agricultura'!$E$82=\"Sí cumple con el índice de igualdad de género\",\"La actividad sí contribuye sustancialmente a la sostenibilidad\",\"La actividad no genera contribución sustancial\"))","v":"La actividad sí contribuye sustancialmente a la sostenibilidad"}]
["Agricultura","111337. Cultivo de cacao ",{"$f":"IF(OR('Mitigación-Agricultura'!$B$8=\"seleccione\",'Mitigación-Agricultura'!$B$10=\"Seleccione\",'Mitigación-Agricultura'!$B$12=\"Seleccione\",'Mitigación-Agricultura'!$A$16=\"Selecciona la medida 1\",'Mitigación-Agricultura'!$A$17=\"Selecciona la medida 2\",'Mitigación-Agricultura'!$B$19=\"Seleccione\",'Mitigación-Agricultura'!$B$21=\"Seleccione\"),\"No se han respondido todas las preguntas\",IF(AND('Mitigación-Agricultura'!$C$8=\"Sí contribuye sustancialmente a la sostenibilidad\",'Mitigación-Agricultura'!$C$10=\"Sí contribuye sustancialmente a la sostenibilidad. Debe verificarse con evidencia, por ejemplo, con una fotografía\",'Mitigación-Agricultura'!$C$12=\"Sí contribuye sustancialmente a la sostenibilidad\",'Mitigación-Agricultura'!$C$21=\"Contribuye sustancialmente a la sostenibilidad\"),\"La actividad sí contribuye sustancialmente a la sostenibilidad\",IF(AND('Mitigación-Agricultura'!$C$8=\"Se deberá confirmar a través de validación geoespacial\",'Mitigación-Agricultura'!$C$10=\"Sí contribuye sustancialmente a la sostenibilidad. Debe verificarse con evidencia, por ejemplo, con una fotografía\",'Mitigación-Agricultura'!$C$12=\"Sí contribuye sustancialmente a la sostenibilidad\",'Mitigación-Agricultura'!$C$21=\"Contribuye sustancialmente a la sostenibilidad\"),\"La actividad sí contribuye sustancialmente a la sostenibilidad\",\"La actividad no genera contribución sustancial a la sostenibilidad\")))","v":"La actividad sí contribuye sustancialmente a la sostenibilidad"},{"$f":"IF('Adaptación-Agricultura'!$D$8=\"Actividad que facilita la adaptación e incluye desarrollo de infraestructura\",(IF(OR('Adaptación-Agricultura'!$A$19=\"Por definir\",'Adaptación-Agricultura'!$A$25=\"Por definir\",'Adaptación-Agricultura'!$G$29=\"Por definir\",'Adaptación-Agricultura'!$A$36=\"Por definir\",'Adaptación-Agricultura'!$B$41=\"Por definir\"),\"No se han respondido todas las preguntas\",IF(AND('Adaptación-Agricultura'!$A$19=\"La actividad sí contribuye sustancialmente a la sostenibilidad\",'Adaptación-Agricultura'!$A$25=\"La actividad sí contribuye sustancialmente a la sostenibilidad\",'Adaptación-Agricultura'!$G$29=\"La actividad sí contribuye sustancialmente a la sostenbilidad\",'Adaptación-Agricultura'!$A$36=\"La actividad sí contribuye sustancialmente a la sostenibilidad\",'Adaptación-Agricultura'!$B$41=\"La actividad genera contribución sustancial a la sostenibilidad\"),\"La actividad sí contribuye sustancialmente a la sostenibilidad\",\"La actividad no contribuye sustancialmente a la sostenibilidad\"))),IF('Adaptación-Agricultura'!$D$8=\"Actividad adaptada\",(IF(OR('Adaptación-Agricultura'!$A$19=\"Por definir\",'Adaptación-Agricultura'!$A$25=\"Por definir\",'Adaptación-Agricultura'!$G$29=\"Por definir\",'Adaptación-Agricultura'!$A$36=\"Por definir\",'Adaptación-Agricultura'!$B$41=\"Por definir\"),\"No se han respondido todas las preguntas\",IF(AND('Adaptación-Agricultura'!$A$19=\"La actividad sí contribuye sustancialmente a la sostenibilidad\",'Adaptación-Agricultura'!$A$25=\"La actividad sí contribuye sustancialmente a la sostenibilidad\",'Adaptación-Agricultura'!$G$29=\"La actividad sí contribuye sustancialmente a la sostenbilidad\",'Adaptación-Agricultura'!$B$41=\"La actividad genera contribución sustancial a la sostenibilidad\"),\"La actividad sí contribuye sustancialmente a la sostenibilidad\",\"La actividad no contribuye sustancialmente a la sostenibilidad\"))),IF('Adaptación-Agricultura'!$D$8=\"Actividad que facilita la adaptación\",(IF(OR('Adaptación-Agricultura'!$A$36=\"Por definir\",'Adaptación-Agricultura'!$B$41=\"Por definir\"),\"No se han respondido todas las preguntas\",IF(AND('Adaptación-Agricultura'!$A$36=\"La actividad sí contribuye sustancialmente a la sostenibilidad\",'Adaptación-Agricultura'!$B$41=\"La actividad genera contribución sustancial a la sostenibilidad\"),\"La actividad sí contribuye sustancialmente a la sostenibilidad\",\"La actividad no contribuye sustancialmente a la sostenibilidad\"))))))","v":"No se han respondido todas las preguntas"},null,{"$f":"IF('Indice de género-Agricultura'!$E$82=\"Por definir\",\"No se han contestado todas las preguntas\",IF('Indice de género-Agricultura'!$E$82=\"Sí cumple con el índice de igualdad de género\",\"La actividad sí contribuye sustancialmente a la sostenibilidad\",\"La actividad no genera contribución sustancial\"))","v":"La actividad sí contribuye sustancialmente a la sostenibilidad"}]
["Agricultura","111339. Cultivo de otros frutales no cítricos y de nueces ",{"$f":"IF(OR('Mitigación-Agricultura'!$B$8=\"seleccione\",'Mitigación-Agricultura'!$B$10=\"Seleccione\",'Mitigación-Agricultura'!$B$12=\"Seleccione\",'Mitigación-Agricultura'!$A$16=\"Selecciona la medida 1\",'Mitigación-Agricultura'!$A$17=\"Selecciona la medida 2\",'Mitigación-Agricultura'!$B$19=\"Seleccione\",'Mitigación-Agricultura'!$B$21=\"Seleccione\"),\"No se han respondido todas las preguntas\",IF(AND('Mitigación-Agricultura'!$C$8=\"Sí contribuye sustancialmente a la sostenibilidad\",'Mitigación-Agricultura'!$C$10=\"Sí contribuye sustancialmente a la sostenibilidad. Debe verificarse con evidencia, por ejemplo, con una fotografía\",'Mitigación-Agricultura'!$C$12=\"Sí contribuye sustancialmente a la sostenibilidad\",'Mitigación-Agricultura'!$C$21=\"Contribuye sustancialmente a la sostenibilidad\"),\"La actividad sí contribuye sustancialmente a la sostenibilidad\",IF(AND('Mitigación-Agricultura'!$C$8=\"Se deberá confirmar a través de validación geoespacial\",'Mitigación-Agricultura'!$C$10=\"Sí contribuye sustancialmente a la sostenibilidad. Debe verificarse con evidencia, por ejemplo, con una fotografía\",'Mitigación-Agricultura'!$C$12=\"Sí contribuye sustancialmente a la sostenibilidad\",'Mitigación-Agricultura'!$C$21=\"Contribuye sustancialmente a la sostenibilidad\"),\"La actividad sí contribuye sustancialmente a la sostenibilidad\",\"La actividad no genera contribución sustancial a la sostenibilidad\")))","v":"La actividad sí contribuye sustancialmente a la sostenibilidad"},{"$f":"IF('Adaptación-Agricultura'!$D$8=\"Actividad que facilita la adaptación e incluye desarrollo de infraestructura\",(IF(OR('Adaptación-Agricultura'!$A$19=\"Por definir\",'Adaptación-Agricultura'!$A$25=\"Por definir\",'Adaptación-Agricultura'!$G$29=\"Por definir\",'Adaptación-Agricultura'!$A$36=\"Por definir\",'Adaptación-Agricultura'!$B$41=\"Por definir\"),\"No se han respondido todas las preguntas\",IF(AND('Adaptación-Agricultura'!$A$19=\"La actividad sí contribuye sustancialmente a la sostenibilidad\",'Adaptación-Agricultura'!$A$25=\"La actividad sí contribuye sustancialmente a la sostenibilidad\",'Adaptación-Agricultura'!$G$29=\"La actividad sí contribuye sustancialmente a la sostenbilidad\",'Adaptación-Agricultura'!$A$36=\"La actividad sí contribuye sustancialmente a la sostenibilidad\",'Adaptación-Agricultura'!$B$41=\"La actividad genera contribución sustancial a la sostenibilidad\"),\"La actividad sí contribuye sustancialmente a la sostenibilidad\",\"La actividad no contribuye sustancialmente a la sostenibilidad\"))),IF('Adaptación-Agricultura'!$D$8=\"Actividad adaptada\",(IF(OR('Adaptación-Agricultura'!$A$19=\"Por definir\",'Adaptación-Agricultura'!$A$25=\"Por definir\",'Adaptación-Agricultura'!$G$29=\"Por definir\",'Adaptación-Agricultura'!$A$36=\"Por definir\",'Adaptación-Agricultura'!$B$41=\"Por definir\"),\"No se han respondido todas las preguntas\",IF(AND('Adaptación-Agricultura'!$A$19=\"La actividad sí contribuye sustancialmente a la sostenibilidad\",'Adaptación-Agricultura'!$A$25=\"La actividad sí contribuye sustancialmente a la sostenibilidad\",'Adaptación-Agricultura'!$G$29=\"La actividad sí contribuye sustancialmente a la sostenbilidad\",'Adaptación-Agricultura'!$B$41=\"La actividad genera contribución sustancial a la sostenibilidad\"),\"La actividad sí contribuye sustancialmente a la sostenibilidad\",\"La actividad no contribuye sustancialmente a la sostenibilidad\"))),IF('Adaptación-Agricultura'!$D$8=\"Actividad que facilita la adaptación\",(IF(OR('Adaptación-Agricultura'!$A$36=\"Por definir\",'Adaptación-Agricultura'!$B$41=\"Por definir\"),\"No se han respondido todas las preguntas\",IF(AND('Adaptación-Agricultura'!$A$36=\"La actividad sí contribuye sustancialmente a la sostenibilidad\",'Adaptación-Agricultura'!$B$41=\"La actividad genera contribución sustancial a la sostenibilidad\"),\"La actividad sí contribuye sustancialmente a la sostenibilidad\",\"La actividad no contribuye sustancialmente a la sostenibilidad\"))))))","v":"No se han respondido todas las preguntas"},null,{"$f":"IF('Indice de género-Agricultura'!$E$82=\"Por definir\",\"No se han contestado todas las preguntas\",IF('Indice de género-Agricultura'!$E$82=\"Sí cumple con el índice de igualdad de género\",\"La actividad sí contribuye sustancialmente a la sostenibilidad\",\"La actividad no genera contribución sustancial\"))","v":"La actividad sí contribuye sustancialmente a la sostenibilidad"}]
["Agricultura","111411. Cultivo de jitomate en invernaderos y otras estructuras agrícolas protegidas ",{"$f":"IF(OR('Mitigación-Agricultura'!$B$8=\"seleccione\",'Mitigación-Agricultura'!$B$10=\"Seleccione\",'Mitigación-Agricultura'!$B$12=\"Seleccione\",'Mitigación-Agricultura'!$A$16=\"Selecciona la medida 1\",'Mitigación-Agricultura'!$A$17=\"Selecciona la medida 2\",'Mitigación-Agricultura'!$B$19=\"Seleccione\",'Mitigación-Agricultura'!$B$21=\"Seleccione\"),\"No se han respondido todas las preguntas\",IF(AND('Mitigación-Agricultura'!$C$8=\"Sí contribuye sustancialmente a la sostenibilidad\",'Mitigación-Agricultura'!$C$10=\"Sí contribuye sustancialmente a la sostenibilidad. Debe verificarse con evidencia, por ejemplo, con una fotografía\",'Mitigación-Agricultura'!$C$12=\"Sí contribuye sustancialmente a la sostenibilidad\",'Mitigación-Agricultura'!$C$21=\"Contribuye sustancialmente a la sostenibilidad\"),\"La actividad sí contribuye sustancialmente a la sostenibilidad\",IF(AND('Mitigación-Agricultura'!$C$8=\"Se deberá confirmar a través de validación geoespacial\",'Mitigación-Agricultura'!$C$10=\"Sí contribuye sustancialmente a la sostenibilidad. Debe verificarse con evidencia, por ejemplo, con una fotografía\",'Mitigación-Agricultura'!$C$12=\"Sí contribuye sustancialmente a la sostenibilidad\",'Mitigación-Agricultura'!$C$21=\"Contribuye sustancialmente a la sostenibilidad\"),\"La actividad sí contribuye sustancialmente a la sostenibilidad\",\"La actividad no genera contribución sustancial a la sostenibilidad\")))","v":"La actividad sí contribuye sustancialmente a la sostenibilidad"},{"$f":"IF('Adaptación-Agricultura'!$D$8=\"Actividad que facilita la adaptación e incluye desarrollo de infraestructura\",(IF(OR('Adaptación-Agricultura'!$A$19=\"Por definir\",'Adaptación-Agricultura'!$A$25=\"Por definir\",'Adaptación-Agricultura'!$G$29=\"Por definir\",'Adaptación-Agricultura'!$A$36=\"Por definir\",'Adaptación-Agricultura'!$B$41=\"Por definir\"),\"No se han respondido todas las preguntas\",IF(AND('Adaptación-Agricultura'!$A$19=\"La actividad sí contribuye sustancialmente a la sostenibilidad\",'Adaptación-Agricultura'!$A$25=\"La actividad sí contribuye sustancialmente a la sostenibilidad\",'Adaptación-Agricultura'!$G$29=\"La actividad sí contribuye sustancialmente a la sostenbilidad\",'Adaptación-Agricultura'!$A$36=\"La actividad sí contribuye sustancialmente a la sostenibilidad\",'Adaptación-Agricultura'!$B$41=\"La actividad genera contribución sustancial a la sostenibilidad\"),\"La actividad sí contribuye sustancialmente a la sostenibilidad\",\"La actividad no contribuye sustancialmente a la sostenibilidad\"))),IF('Adaptación-Agricultura'!$D$8=\"Actividad adaptada\",(IF(OR('Adaptación-Agricultura'!$A$19=\"Por definir\",'Adaptación-Agricultura'!$A$25=\"Por definir\",'Adaptación-Agricultura'!$G$29=\"Por definir\",'Adaptación-Agricultura'!$A$36=\"Por definir\",'Adaptación-Agricultura'!$B$41=\"Por definir\"),\"No se han respondido todas las preguntas\",IF(AND('Adaptación-Agricultura'!$A$19=\"La actividad sí contribuye sustancialmente a la sostenibilidad\",'Adaptación-Agricultura'!$A$25=\"La actividad sí contribuye sustancialmente a la sostenibilidad\",'Adaptación-Agricultura'!$G$29=\"La actividad sí contribuye sustancialmente a la sostenbilidad\",'Adaptación-Agricultura'!$B$41=\"La actividad genera contribución sustancial a la sostenibilidad\"),\"La actividad sí contribuye sustancialmente a la sostenibilidad\",\"La actividad no contribuye sustancialmente a la sostenibilidad\"))),IF('Adaptación-Agricultura'!$D$8=\"Actividad que facilita la adaptación\",(IF(OR('Adaptación-Agricultura'!$A$36=\"Por definir\",'Adaptación-Agricultura'!$B$41=\"Por definir\"),\"No se han respondido todas las preguntas\",IF(AND('Adaptación-Agricultura'!$A$36=\"La actividad sí contribuye sustancialmente a la sostenibilidad\",'Adaptación-Agricultura'!$B$41=\"La actividad genera contribución sustancial a la sostenibilidad\"),\"La actividad sí contribuye sustancialmente a la sostenibilidad\",\"La actividad no contribuye sustancialmente a la sostenibilidad\"))))))","v":"No se han respondido todas las preguntas"},null,{"$f":"IF('Indice de género-Agricultura'!$E$82=\"Por definir\",\"No se han contestado todas las preguntas\",IF('Indice de género-Agricultura'!$E$82=\"Sí cumple con el índice de igualdad de género\",\"La actividad sí contribuye sustancialmente a la sostenibilidad\",\"La actividad no genera contribución sustancial\"))","v":"La actividad sí contribuye sustancialmente a la sostenibilidad"}]
["Agricultura","111412. Cultivo de fresa en invernaderos y otras estructuras agrícolas protegidas ",{"$f":"IF(OR('Mitigación-Agricultura'!$B$8=\"seleccione\",'Mitigación-Agricultura'!$B$10=\"Seleccione\",'Mitigación-Agricultura'!$B$12=\"Seleccione\",'Mitigación-Agricultura'!$A$16=\"Selecciona la medida 1\",'Mitigación-Agricultura'!$A$17=\"Selecciona la medida 2\",'Mitigación-Agricultura'!$B$19=\"Seleccione\",'Mitigación-Agricultura'!$B$21=\"Seleccione\"),\"No se han respondido todas las preguntas\",IF(AND('Mitigación-Agricultura'!$C$8=\"Sí contribuye sustancialmente a la sostenibilidad\",'Mitigación-Agricultura'!$C$10=\"Sí contribuye sustancialmente a la sostenibilidad. Debe verificarse con evidencia, por ejemplo, con una fotografía\",'Mitigación-Agricultura'!$C$12=\"Sí contribuye sustancialmente a la sostenibilidad\",'Mitigación-Agricultura'!$C$21=\"Contribuye sustancialmente a la sostenibilidad\"),\"La actividad sí contribuye sustancialmente a la sostenibilidad\",IF(AND('Mitigación-Agricultura'!$C$8=\"Se deberá confirmar a través de validación geoespacial\",'Mitigación-Agricultura'!$C$10=\"Sí contribuye sustancialmente a la sostenibilidad. Debe verificarse con evidencia, por ejemplo, con una fotografía\",'Mitigación-Agricultura'!$C$12=\"Sí contribuye sustancialmente a la sostenibilidad\",'Mitigación-Agricultura'!$C$21=\"Contribuye sustancialmente a la sostenibilidad\"),\"La actividad sí contribuye sustancialmente a la sostenibilidad\",\"La actividad no genera contribución sustancial a la sostenibilidad\")))","v":"La actividad sí contribuye sustancialmente a la sostenibilidad"},{"$f":"IF('Adaptación-Agricultura'!$D$8=\"Actividad que facilita la adaptación e incluye desarrollo de infraestructura\",(IF(OR('Adaptación-Agricultura'!$A$19=\"Por definir\",'Adaptación-Agricultura'!$A$25=\"Por definir\",'Adaptación-Agricultura'!$G$29=\"Por definir\",'Adaptación-Agricultura'!$A$36=\"Por definir\",'Adaptación-Agricultura'!$B$41=\"Por definir\"),\"No se han respondido todas las preguntas\",IF(AND('Adaptación-Agricultura'!$A$19=\"La actividad sí contribuye sustancialmente a la sostenibilidad\",'Adaptación-Agricultura'!$A$25=\"La actividad sí contribuye sustancialmente a la sostenibilidad\",'Adaptación-Agricultura'!$G$29=\"La actividad sí contribuye sustancialmente a la sostenbilidad\",'Adaptación-Agricultura'!$A$36=\"La actividad sí contribuye sustancialmente a la sostenibilidad\",'Adaptación-Agricultura'!$B$41=\"La actividad genera contribución sustancial a la sostenibilidad\"),\"La actividad sí contribuye sustancialmente a la sostenibilidad\",\"La actividad no contribuye sustancialmente a la sostenibilidad\"))),IF('Adaptación-Agricultura'!$D$8=\"Actividad adaptada\",(IF(OR('Adaptación-Agricultura'!$A$19=\"Por definir\",'Adaptación-Agricultura'!$A$25=\"Por definir\",'Adaptación-Agricultura'!$G$29=\"Por definir\",'Adaptación-Agricultura'!$A$36=\"Por definir\",'Adaptación-Agricultura'!$B$41=\"Por definir\"),\"No se han respondido todas las preguntas\",IF(AND('Adaptación-Agricultura'!$A$19=\"La actividad sí contribuye sustancialmente a la sostenibilidad\",'Adaptación-Agricultura'!$A$25=\"La actividad sí contribuye sustancialmente a la sostenibilidad\",'Adaptación-Agricultura'!$G$29=\"La actividad sí contribuye sustancialmente a la sostenbilidad\",'Adaptación-Agricultura'!$B$41=\"La actividad genera contribución sustancial a la sostenibilidad\"),\"La actividad sí contribuye sustancialmente a la sostenibilidad\",\"La actividad no contribuye sustancialmente a la sostenibilidad\"))),IF('Adaptación-Agricultura'!$D$8=\"Actividad que facilita la adaptación\",(IF(OR('Adaptación-Agricultura'!$A$36=\"Por definir\",'Adaptación-Agricultura'!$B$41=\"Por definir\"),\"No se han respondido todas las preguntas\",IF(AND('Adaptación-Agricultura'!$A$36=\"La actividad sí contribuye sustancialmente a la sostenibilidad\",'Adaptación-Agricultura'!$B$41=\"La actividad genera contribución sustancial a la sostenibilidad\"),\"La actividad sí contribuye sustancialmente a la sostenibilidad\",\"La actividad no contribuye sustancialmente a la sostenibilidad\"))))))","v":"No se han respondido todas las preguntas"},null,{"$f":"IF('Indice de género-Agricultura'!$E$82=\"Por definir\",\"No se han contestado todas las preguntas\",IF('Indice de género-Agricultura'!$E$82=\"Sí cumple con el índice de igualdad de género\",\"La actividad sí contribuye sustancialmente a la sostenibilidad\",\"La actividad no genera contribución sustancial\"))","v":"La actividad sí contribuye sustancialmente a la sostenibilidad"}]
["Agricultura","111413. Cultivo de bayas (berries) en invernaderos y otras estructuras agrícolas protegidas, excepto fresas ",{"$f":"IF(OR('Mitigación-Agricultura'!$B$8=\"seleccione\",'Mitigación-Agricultura'!$B$10=\"Seleccione\",'Mitigación-Agricultura'!$B$12=\"Seleccione\",'Mitigación-Agricultura'!$A$16=\"Selecciona la medida 1\",'Mitigación-Agricultura'!$A$17=\"Selecciona la medida 2\",'Mitigación-Agricultura'!$B$19=\"Seleccione\",'Mitigación-Agricultura'!$B$21=\"Seleccione\"),\"No se han respondido todas las preguntas\",IF(AND('Mitigación-Agricultura'!$C$8=\"Sí contribuye sustancialmente a la sostenibilidad\",'Mitigación-Agricultura'!$C$10=\"Sí contribuye sustancialmente a la sostenibilidad. Debe verificarse con evidencia, por ejemplo, con una fotografía\",'Mitigación-Agricultura'!$C$12=\"Sí contribuye sustancialmente a la sostenibilidad\",'Mitigación-Agricultura'!$C$21=\"Contribuye sustancialmente a la sostenibilidad\"),\"La actividad sí contribuye sustancialmente a la sostenibilidad\",IF(AND('Mitigación-Agricultura'!$C$8=\"Se deberá confirmar a través de validación geoespacial\",'Mitigación-Agricultura'!$C$10=\"Sí contribuye sustancialmente a la sostenibilidad. Debe verificarse con evidencia, por ejemplo, con una fotografía\",'Mitigación-Agricultura'!$C$12=\"Sí contribuye sustancialmente a la sostenibilidad\",'Mitigación-Agricultura'!$C$21=\"Contribuye sustancialmente a la sostenibilidad\"),\"La actividad sí contribuye sustancialmente a la sostenibilidad\",\"La actividad no genera contribución sustancial a la sostenibilidad\")))","v":"La actividad sí contribuye sustancialmente a la sostenibilidad"},{"$f":"IF('Adaptación-Agricultura'!$D$8=\"Actividad que facilita la adaptación e incluye desarrollo de infraestructura\",(IF(OR('Adaptación-Agricultura'!$A$19=\"Por definir\",'Adaptación-Agricultura'!$A$25=\"Por definir\",'Adaptación-Agricultura'!$G$29=\"Por definir\",'Adaptación-Agricultura'!$A$36=\"Por definir\",'Adaptación-Agricultura'!$B$41=\"Por definir\"),\"No se han respondido todas las preguntas\",IF(AND('Adaptación-Agricultura'!$A$19=\"La actividad sí contribuye sustancialmente a la sostenibilidad\",'Adaptación-Agricultura'!$A$25=\"La actividad sí contribuye sustancialmente a la sostenibilidad\",'Adaptación-Agricultura'!$G$29=\"La actividad sí contribuye sustancialmente a la sostenbilidad\",'Adaptación-Agricultura'!$A$36=\"La actividad sí contribuye sustancialmente a la sostenibilidad\",'Adaptación-Agricultura'!$B$41=\"La actividad genera contribución sustancial a la sostenibilidad\"),\"La actividad sí contribuye sustancialmente a la sostenibilidad\",\"La actividad no contribuye sustancialmente a la sostenibilidad\"))),IF('Adaptación-Agricultura'!$D$8=\"Actividad adaptada\",(IF(OR('Adaptación-Agricultura'!$A$19=\"Por definir\",'Adaptación-Agricultura'!$A$25=\"Por definir\",'Adaptación-Agricultura'!$G$29=\"Por definir\",'Adaptación-Agricultura'!$A$36=\"Por definir\",'Adaptación-Agricultura'!$B$41=\"Por definir\"),\"No se han respondido todas las preguntas\",IF(AND('Adaptación-Agricultura'!$A$19=\"La actividad sí contribuye sustancialmente a la sostenibilidad\",'Adaptación-Agricultura'!$A$25=\"La actividad sí contribuye sustancialmente a la sostenibilidad\",'Adaptación-Agricultura'!$G$29=\"La actividad sí contribuye sustancialmente a la sostenbilidad\",'Adaptación-Agricultura'!$B$41=\"La actividad genera contribución sustancial a la sostenibilidad\"),\"La actividad sí contribuye sustancialmente a la sostenibilidad\",\"La actividad no contribuye sustancialmente a la sostenibilidad\"))),IF('Adaptación-Agricultura'!$D$8=\"Actividad que facilita la adaptación\",(IF(OR('Adaptación-Agricultura'!$A$36=\"Por definir\",'Adaptación-Agricultura'!$B$41=\"Por definir\"),\"No se han respondido todas las preguntas\",IF(AND('Adaptación-Agricultura'!$A$36=\"La actividad sí contribuye sustancialmente a la sostenibilidad\",'Adaptación-Agricultura'!$B$41=\"La actividad genera contribución sustancial a la sostenibilidad\"),\"La actividad sí contribuye sustancialmente a la sostenibilidad\",\"La actividad no contribuye sustancialmente a la sostenibilidad\"))))))","v":"No se han respondido todas las preguntas"},null,{"$f":"IF('Indice de género-Agricultura'!$E$82=\"Por definir\",\"No se han contestado todas las preguntas\",IF('Indice de género-Agricultura'!$E$82=\"Sí cumple con el índice de igualdad de género\",\"La actividad sí contribuye sustancialmente a la sostenibilidad\",\"La actividad no genera contribución sustancial\"))","v":"La actividad sí contribuye sustancialmente a la sostenibilidad"}]
["Agricultura","111414. Cultivo de chile en invernaderos y otras estructuras agrícolas protegidas ",{"$f":"IF(OR('Mitigación-Agricultura'!$B$8=\"seleccione\",'Mitigación-Agricultura'!$B$10=\"Seleccione\",'Mitigación-Agricultura'!$B$12=\"Seleccione\",'Mitigación-Agricultura'!$A$16=\"Selecciona la medida 1\",'Mitigación-Agricultura'!$A$17=\"Selecciona la medida 2\",'Mitigación-Agricultura'!$B$19=\"Seleccione\",'Mitigación-Agricultura'!$B$21=\"Seleccione\"),\"No se han respondido todas las preguntas\",IF(AND('Mitigación-Agricultura'!$C$8=\"Sí contribuye sustancialmente a la sostenibilidad\",'Mitigación-Agricultura'!$C$10=\"Sí contribuye sustancialmente a la sostenibilidad. Debe verificarse con evidencia, por ejemplo, con una fotografía\",'Mitigación-Agricultura'!$C$12=\"Sí contribuye sustancialmente a la sostenibilidad\",'Mitigación-Agricultura'!$C$21=\"Contribuye sustancialmente a la sostenibilidad\"),\"La actividad sí contribuye sustancialmente a la sostenibilidad\",IF(AND('Mitigación-Agricultura'!$C$8=\"Se deberá confirmar a través de validación geoespacial\",'Mitigación-Agricultura'!$C$10=\"Sí contribuye sustancialmente a la sostenibilidad. Debe verificarse con evidencia, por ejemplo, con una fotografía\",'Mitigación-Agricultura'!$C$12=\"Sí contribuye sustancialmente a la sostenibilidad\",'Mitigación-Agricultura'!$C$21=\"Contribuye sustancialmente a la sostenibilidad\"),\"La actividad sí contribuye sustancialmente a la sostenibilidad\",\"La actividad no genera contribución sustancial a la sostenibilidad\")))","v":"La actividad sí contribuye sustancialmente a la sostenibilidad"},{"$f":"IF('Adaptación-Agricultura'!$D$8=\"Actividad que facilita la adaptación e incluye desarrollo de infraestructura\",(IF(OR('Adaptación-Agricultura'!$A$19=\"Por definir\",'Adaptación-Agricultura'!$A$25=\"Por definir\",'Adaptación-Agricultura'!$G$29=\"Por definir\",'Adaptación-Agricultura'!$A$36=\"Por definir\",'Adaptación-Agricultura'!$B$41=\"Por definir\"),\"No se han respondido todas las preguntas\",IF(AND('Adaptación-Agricultura'!$A$19=\"La actividad sí contribuye sustancialmente a la sostenibilidad\",'Adaptación-Agricultura'!$A$25=\"La actividad sí contribuye sustancialmente a la sostenibilidad\",'Adaptación-Agricultura'!$G$29=\"La actividad sí contribuye sustancialmente a la sostenbilidad\",'Adaptación-Agricultura'!$A$36=\"La actividad sí contribuye sustancialmente a la sostenibilidad\",'Adaptación-Agricultura'!$B$41=\"La actividad genera contribución sustancial a la sostenibilidad\"),\"La actividad sí contribuye sustancialmente a la sostenibilidad\",\"La actividad no contribuye sustancialmente a la sostenibilidad\"))),IF('Adaptación-Agricultura'!$D$8=\"Actividad adaptada\",(IF(OR('Adaptación-Agricultura'!$A$19=\"Por definir\",'Adaptación-Agricultura'!$A$25=\"Por definir\",'Adaptación-Agricultura'!$G$29=\"Por definir\",'Adaptación-Agricultura'!$A$36=\"Por definir\",'Adaptación-Agricultura'!$B$41=\"Por definir\"),\"No se han respondido todas las preguntas\",IF(AND('Adaptación-Agricultura'!$A$19=\"La actividad sí contribuye sustancialmente a la sostenibilidad\",'Adaptación-Agricultura'!$A$25=\"La actividad sí contribuye sustancialmente a la sostenibilidad\",'Adaptación-Agricultura'!$G$29=\"La actividad sí contribuye sustancialmente a la sostenbilidad\",'Adaptación-Agricultura'!$B$41=\"La actividad genera contribución sustancial a la sostenibilidad\"),\"La actividad sí contribuye sustancialmente a la sostenibilidad\",\"La actividad no contribuye sustancialmente a la sostenibilidad\"))),IF('Adaptación-Agricultura'!$D$8=\"Actividad que facilita la adaptación\",(IF(OR('Adaptación-Agricultura'!$A$36=\"Por definir\",'Adaptación-Agricultura'!$B$41=\"Por definir\"),\"No se han respondido todas las preguntas\",IF(AND('Adaptación-Agricultura'!$A$36=\"La actividad sí contribuye sustancialmente a la sostenibilidad\",'Adaptación-Agricultura'!$B$41=\"La actividad genera contribución sustancial a la sostenibilidad\"),\"La actividad sí contribuye sustancialmente a la sostenibilidad\",\"La actividad no contribuye sustancialmente a la sostenibilidad\"))))))","v":"No se han respondido todas las preguntas"},null,{"$f":"IF('Indice de género-Agricultura'!$E$82=\"Por definir\",\"No se han contestado todas las preguntas\",IF('Indice de género-Agricultura'!$E$82=\"Sí cumple con el índice de igualdad de género\",\"La actividad sí contribuye sustancialmente a la sostenibilidad\",\"La actividad no genera contribución sustancial\"))","v":"La actividad sí contribuye sustancialmente a la sostenibilidad"}]
["Agricultura","111415. Cultivo de manzana en invernaderos y otras estructuras agrícolas protegidas ",{"$f":"IF(OR('Mitigación-Agricultura'!$B$8=\"seleccione\",'Mitigación-Agricultura'!$B$10=\"Seleccione\",'Mitigación-Agricultura'!$B$12=\"Seleccione\",'Mitigación-Agricultura'!$A$16=\"Selecciona la medida 1\",'Mitigación-Agricultura'!$A$17=\"Selecciona la medida 2\",'Mitigación-Agricultura'!$B$19=\"Seleccione\",'Mitigación-Agricultura'!$B$21=\"Seleccione\"),\"No se han respondido todas las preguntas\",IF(AND('Mitigación-Agricultura'!$C$8=\"Sí contribuye sustancialmente a la sostenibilidad\",'Mitigación-Agricultura'!$C$10=\"Sí contribuye sustancialmente a la sostenibilidad. Debe verificarse con evidencia, por ejemplo, con una fotografía\",'Mitigación-Agricultura'!$C$12=\"Sí contribuye sustancialmente a la sostenibilidad\",'Mitigación-Agricultura'!$C$21=\"Contribuye sustancialmente a la sostenibilidad\"),\"La actividad sí contribuye sustancialmente a la sostenibilidad\",IF(AND('Mitigación-Agricultura'!$C$8=\"Se deberá confirmar a través de validación geoespacial\",'Mitigación-Agricultura'!$C$10=\"Sí contribuye sustancialmente a la sostenibilidad. Debe verificarse con evidencia, por ejemplo, con una fotografía\",'Mitigación-Agricultura'!$C$12=\"Sí contribuye sustancialmente a la sostenibilidad\",'Mitigación-Agricultura'!$C$21=\"Contribuye sustancialmente a la sostenibilidad\"),\"La actividad sí contribuye sustancialmente a la sostenibilidad\",\"La actividad no genera contribución sustancial a la sostenibilidad\")))","v":"La actividad sí contribuye sustancialmente a la sostenibilidad"},{"$f":"IF('Adaptación-Agricultura'!$D$8=\"Actividad que facilita la adaptación e incluye desarrollo de infraestructura\",(IF(OR('Adaptación-Agricultura'!$A$19=\"Por definir\",'Adaptación-Agricultura'!$A$25=\"Por definir\",'Adaptación-Agricultura'!$G$29=\"Por definir\",'Adaptación-Agricultura'!$A$36=\"Por definir\",'Adaptación-Agricultura'!$B$41=\"Por definir\"),\"No se han respondido todas las preguntas\",IF(AND('Adaptación-Agricultura'!$A$19=\"La actividad sí contribuye sustancialmente a la sostenibilidad\",'Adaptación-Agricultura'!$A$25=\"La actividad sí contribuye sustancialmente a la sostenibilidad\",'Adaptación-Agricultura'!$G$29=\"La actividad sí contribuye sustancialmente a la sostenbilidad\",'Adaptación-Agricultura'!$A$36=\"La actividad sí contribuye sustancialmente a la sostenibilidad\",'Adaptación-Agricultura'!$B$41=\"La actividad genera contribución sustancial a la sostenibilidad\"),\"La actividad sí contribuye sustancialmente a la sostenibilidad\",\"La actividad no contribuye sustancialmente a la sostenibilidad\"))),IF('Adaptación-Agricultura'!$D$8=\"Actividad adaptada\",(IF(OR('Adaptación-Agricultura'!$A$19=\"Por definir\",'Adaptación-Agricultura'!$A$25=\"Por definir\",'Adaptación-Agricultura'!$G$29=\"Por definir\",'Adaptación-Agricultura'!$A$36=\"Por definir\",'Adaptación-Agricultura'!$B$41=\"Por definir\"),\"No se han respondido todas las preguntas\",IF(AND('Adaptación-Agricultura'!$A$19=\"La actividad sí contribuye sustancialmente a la sostenibilidad\",'Adaptación-Agricultura'!$A$25=\"La actividad sí contribuye sustancialmente a la sostenibilidad\",'Adaptación-Agricultura'!$G$29=\"La actividad sí contribuye sustancialmente a la sostenbilidad\",'Adaptación-Agricultura'!$B$41=\"La actividad genera contribución sustancial a la sostenibilidad\"),\"La actividad sí contribuye sustancialmente a la sostenibilidad\",\"La actividad no contribuye sustancialmente a la sostenibilidad\"))),IF('Adaptación-Agricultura'!$D$8=\"Actividad que facilita la adaptación\",(IF(OR('Adaptación-Agricultura'!$A$36=\"Por definir\",'Adaptación-Agricultura'!$B$41=\"Por definir\"),\"No se han respondido todas las preguntas\",IF(AND('Adaptación-Agricultura'!$A$36=\"La actividad sí contribuye sustancialmente a la sostenibilidad\",'Adaptación-Agricultura'!$B$41=\"La actividad genera contribución sustancial a la sostenibilidad\"),\"La actividad sí contribuye sustancialmente a la sostenibilidad\",\"La actividad no contribuye sustancialmente a la sostenibilidad\"))))))","v":"No se han respondido todas las preguntas"},null,{"$f":"IF('Indice de género-Agricultura'!$E$82=\"Por definir\",\"No se han contestado todas las preguntas\",IF('Indice de género-Agricultura'!$E$82=\"Sí cumple con el índice de igualdad de género\",\"La actividad sí contribuye sustancialmente a la sostenibilidad\",\"La actividad no genera contribución sustancial\"))","v":"La actividad sí contribuye sustancialmente a la sostenibilidad"}]
["Agricultura","111416. Cultivo de pepino en invernaderos y otras estructuras agrícolas protegidas ",{"$f":"IF(OR('Mitigación-Agricultura'!$B$8=\"seleccione\",'Mitigación-Agricultura'!$B$10=\"Seleccione\",'Mitigación-Agricultura'!$B$12=\"Seleccione\",'Mitigación-Agricultura'!$A$16=\"Selecciona la medida 1\",'Mitigación-Agricultura'!$A$17=\"Selecciona la medida 2\",'Mitigación-Agricultura'!$B$19=\"Seleccione\",'Mitigación-Agricultura'!$B$21=\"Seleccione\"),\"No se han respondido todas las preguntas\",IF(AND('Mitigación-Agricultura'!$C$8=\"Sí contribuye sustancialmente a la sostenibilidad\",'Mitigación-Agricultura'!$C$10=\"Sí contribuye sustancialmente a la sostenibilidad. Debe verificarse con evidencia, por ejemplo, con una fotografía\",'Mitigación-Agricultura'!$C$12=\"Sí contribuye sustancialmente a la sostenibilidad\",'Mitigación-Agricultura'!$C$21=\"Contribuye sustancialmente a la sostenibilidad\"),\"La actividad sí contribuye sustancialmente a la sostenibilidad\",IF(AND('Mitigación-Agricultura'!$C$8=\"Se deberá confirmar a través de validación geoespacial\",'Mitigación-Agricultura'!$C$10=\"Sí contribuye sustancialmente a la sostenibilidad. Debe verificarse con evidencia, por ejemplo, con una fotografía\",'Mitigación-Agricultura'!$C$12=\"Sí contribuye sustancialmente a la sostenibilidad\",'Mitigación-Agricultura'!$C$21=\"Contribuye sustancialmente a la sostenibilidad\"),\"La actividad sí contribuye sustancialmente a la sostenibilidad\",\"La actividad no genera contribución sustancial a la sostenibilidad\")))","v":"La actividad sí contribuye sustancialmente a la sostenibilidad"},{"$f":"IF('Adaptación-Agricultura'!$D$8=\"Actividad que facilita la adaptación e incluye desarrollo de infraestructura\",(IF(OR('Adaptación-Agricultura'!$A$19=\"Por definir\",'Adaptación-Agricultura'!$A$25=\"Por definir\",'Adaptación-Agricultura'!$G$29=\"Por definir\",'Adaptación-Agricultura'!$A$36=\"Por definir\",'Adaptación-Agricultura'!$B$41=\"Por definir\"),\"No se han respondido todas las preguntas\",IF(AND('Adaptación-Agricultura'!$A$19=\"La actividad sí contribuye sustancialmente a la sostenibilidad\",'Adaptación-Agricultura'!$A$25=\"La actividad sí contribuye sustancialmente a la sostenibilidad\",'Adaptación-Agricultura'!$G$29=\"La actividad sí contribuye sustancialmente a la sostenbilidad\",'Adaptación-Agricultura'!$A$36=\"La actividad sí contribuye sustancialmente a la sostenibilidad\",'Adaptación-Agricultura'!$B$41=\"La actividad genera contribución sustancial a la sostenibilidad\"),\"La actividad sí contribuye sustancialmente a la sostenibilidad\",\"La actividad no contribuye sustancialmente a la sostenibilidad\"))),IF('Adaptación-Agricultura'!$D$8=\"Actividad adaptada\",(IF(OR('Adaptación-Agricultura'!$A$19=\"Por definir\",'Adaptación-Agricultura'!$A$25=\"Por definir\",'Adaptación-Agricultura'!$G$29=\"Por definir\",'Adaptación-Agricultura'!$A$36=\"Por definir\",'Adaptación-Agricultura'!$B$41=\"Por definir\"),\"No se han respondido todas las preguntas\",IF(AND('Adaptación-Agricultura'!$A$19=\"La actividad sí contribuye sustancialmente a la sostenibilidad\",'Adaptación-Agricultura'!$A$25=\"La actividad sí contribuye sustancialmente a la sostenibilidad\",'Adaptación-Agricultura'!$G$29=\"La actividad sí contribuye sustancialmente a la sostenbilidad\",'Adaptación-Agricultura'!$B$41=\"La actividad genera contribución sustancial a la sostenibilidad\"),\"La actividad sí contribuye sustancialmente a la sostenibilidad\",\"La actividad no contribuye sustancialmente a la sostenibilidad\"))),IF('Adaptación-Agricultura'!$D$8=\"Actividad que facilita la adaptación\",(IF(OR('Adaptación-Agricultura'!$A$36=\"Por definir\",'Adaptación-Agricultura'!$B$41=\"Por definir\"),\"No se han respondido todas las preguntas\",IF(AND('Adaptación-Agricultura'!$A$36=\"La actividad sí contribuye sustancialmente a la sostenibilidad\",'Adaptación-Agricultura'!$B$41=\"La actividad genera contribución sustancial a la sostenibilidad\"),\"La actividad sí contribuye sustancialmente a la sostenibilidad\",\"La actividad no contribuye sustancialmente a la sostenibilidad\"))))))","v":"No se han respondido todas las preguntas"},null,{"$f":"IF('Indice de género-Agricultura'!$E$82=\"Por definir\",\"No se han contestado todas las preguntas\",IF('Indice de género-Agricultura'!$E$82=\"Sí cumple con el índice de igualdad de género\",\"La actividad sí contribuye sustancialmente a la sostenibilidad\",\"La actividad no genera contribución sustancial\"))","v":"La actividad sí contribuye sustancialmente a la sostenibilidad"}]
["Agricultura","111419. Cultivo de otros productos alimenticios en invernaderos y otras estructuras agrícolas protegidas ",{"$f":"IF(OR('Mitigación-Agricultura'!$B$8=\"seleccione\",'Mitigación-Agricultura'!$B$10=\"Seleccione\",'Mitigación-Agricultura'!$B$12=\"Seleccione\",'Mitigación-Agricultura'!$A$16=\"Selecciona la medida 1\",'Mitigación-Agricultura'!$A$17=\"Selecciona la medida 2\",'Mitigación-Agricultura'!$B$19=\"Seleccione\",'Mitigación-Agricultura'!$B$21=\"Seleccione\"),\"No se han respondido todas las preguntas\",IF(AND('Mitigación-Agricultura'!$C$8=\"Sí contribuye sustancialmente a la sostenibilidad\",'Mitigación-Agricultura'!$C$10=\"Sí contribuye sustancialmente a la sostenibilidad. Debe verificarse con evidencia, por ejemplo, con una fotografía\",'Mitigación-Agricultura'!$C$12=\"Sí contribuye sustancialmente a la sostenibilidad\",'Mitigación-Agricultura'!$C$21=\"Contribuye sustancialmente a la sostenibilidad\"),\"La actividad sí contribuye sustancialmente a la sostenibilidad\",IF(AND('Mitigación-Agricultura'!$C$8=\"Se deberá confirmar a través de validación geoespacial\",'Mitigación-Agricultura'!$C$10=\"Sí contribuye sustancialmente a la sostenibilidad. Debe verificarse con evidencia, por ejemplo, con una fotografía\",'Mitigación-Agricultura'!$C$12=\"Sí contribuye sustancialmente a la sostenibilidad\",'Mitigación-Agricultura'!$C$21=\"Contribuye sustancialmente a la sostenibilidad\"),\"La actividad sí contribuye sustancialmente a la sostenibilidad\",\"La actividad no genera contribución sustancial a la sostenibilidad\")))","v":"La actividad sí contribuye sustancialmente a la sostenibilidad"},{"$f":"IF('Adaptación-Agricultura'!$D$8=\"Actividad que facilita la adaptación e incluye desarrollo de infraestructura\",(IF(OR('Adaptación-Agricultura'!$A$19=\"Por definir\",'Adaptación-Agricultura'!$A$25=\"Por definir\",'Adaptación-Agricultura'!$G$29=\"Por definir\",'Adaptación-Agricultura'!$A$36=\"Por definir\",'Adaptación-Agricultura'!$B$41=\"Por definir\"),\"No se han respondido todas las preguntas\",IF(AND('Adaptación-Agricultura'!$A$19=\"La actividad sí contribuye sustancialmente a la sostenibilidad\",'Adaptación-Agricultura'!$A$25=\"La actividad sí contribuye sustancialmente a la sostenibilidad\",'Adaptación-Agricultura'!$G$29=\"La actividad sí contribuye sustancialmente a la sostenbilidad\",'Adaptación-Agricultura'!$A$36=\"La actividad sí contribuye sustancialmente a la sostenibilidad\",'Adaptación-Agricultura'!$B$41=\"La actividad genera contribución sustancial a la sostenibilidad\"),\"La actividad sí contribuye sustancialmente a la sostenibilidad\",\"La actividad no contribuye sustancialmente a la sostenibilidad\"))),IF('Adaptación-Agricultura'!$D$8=\"Actividad adaptada\",(IF(OR('Adaptación-Agricultura'!$A$19=\"Por definir\",'Adaptación-Agricultura'!$A$25=\"Por definir\",'Adaptación-Agricultura'!$G$29=\"Por definir\",'Adaptación-Agricultura'!$A$36=\"Por definir\",'Adaptación-Agricultura'!$B$41=\"Por definir\"),\"No se han respondido todas las preguntas\",IF(AND('Adaptación-Agricultura'!$A$19=\"La actividad sí contribuye sustancialmente a la sostenibilidad\",'Adaptación-Agricultura'!$A$25=\"La actividad sí contribuye sustancialmente a la sostenibilidad\",'Adaptación-Agricultura'!$G$29=\"La actividad sí contribuye sustancialmente a la sostenbilidad\",'Adaptación-Agricultura'!$B$41=\"La actividad genera contribución sustancial a la sostenibilidad\"),\"La actividad sí contribuye sustancialmente a la sostenibilidad\",\"La actividad no contribuye sustancialmente a la sostenibilidad\"))),IF('Adaptación-Agricultura'!$D$8=\"Actividad que facilita la adaptación\",(IF(OR('Adaptación-Agricultura'!$A$36=\"Por definir\",'Adaptación-Agricultura'!$B$41=\"Por definir\"),\"No se han respondido todas las preguntas\",IF(AND('Adaptación-Agricultura'!$A$36=\"La actividad sí contribuye sustancialmente a la sostenibilidad\",'Adaptación-Agricultura'!$B$41=\"La actividad genera contribución sustancial a la sostenibilidad\"),\"La actividad sí contribuye sustancialmente a la sostenibilidad\",\"La actividad no contribuye sustancialmente a la sostenibilidad\"))))))","v":"No se han respondido todas las preguntas"},null,{"$f":"IF('Indice de género-Agricultura'!$E$82=\"Por definir\",\"No se han contestado todas las preguntas\",IF('Indice de género-Agricultura'!$E$82=\"Sí cumple con el índice de igualdad de género\",\"La actividad sí contribuye sustancialmente a la sostenibilidad\",\"La actividad no genera contribución sustancial\"))","v":"La actividad sí contribuye sustancialmente a la sostenibilidad"}]
["Agricultura","111429. Otros cultivos no alimenticios en invernaderos y otras estructuras agrícolas protegidas ",{"$f":"IF(OR('Mitigación-Agricultura'!$B$8=\"seleccione\",'Mitigación-Agricultura'!$B$10=\"Seleccione\",'Mitigación-Agricultura'!$B$12=\"Seleccione\",'Mitigación-Agricultura'!$A$16=\"Selecciona la medida 1\",'Mitigación-Agricultura'!$A$17=\"Selecciona la medida 2\",'Mitigación-Agricultura'!$B$19=\"Seleccione\",'Mitigación-Agricultura'!$B$21=\"Seleccione\"),\"No se han respondido todas las preguntas\",IF(AND('Mitigación-Agricultura'!$C$8=\"Sí contribuye sustancialmente a la sostenibilidad\",'Mitigación-Agricultura'!$C$10=\"Sí contribuye sustancialmente a la sostenibilidad. Debe verificarse con evidencia, por ejemplo, con una fotografía\",'Mitigación-Agricultura'!$C$12=\"Sí contribuye sustancialmente a la sostenibilidad\",'Mitigación-Agricultura'!$C$21=\"Contribuye sustancialmente a la sostenibilidad\"),\"La actividad sí contribuye sustancialmente a la sostenibilidad\",IF(AND('Mitigación-Agricultura'!$C$8=\"Se deberá confirmar a través de validación geoespacial\",'Mitigación-Agricultura'!$C$10=\"Sí contribuye sustancialmente a la sostenibilidad. Debe verificarse con evidencia, por ejemplo, con una fotografía\",'Mitigación-Agricultura'!$C$12=\"Sí contribuye sustancialmente a la sostenibilidad\",'Mitigación-Agricultura'!$C$21=\"Contribuye sustancialmente a la sostenibilidad\"),\"La actividad sí contribuye sustancialmente a la sostenibilidad\",\"La actividad no genera contribución sustancial a la sostenibilidad\")))","v":"La actividad sí contribuye sustancialmente a la sostenibilidad"},{"$f":"IF('Adaptación-Agricultura'!$D$8=\"Actividad que facilita la adaptación e incluye desarrollo de infraestructura\",(IF(OR('Adaptación-Agricultura'!$A$19=\"Por definir\",'Adaptación-Agricultura'!$A$25=\"Por definir\",'Adaptación-Agricultura'!$G$29=\"Por definir\",'Adaptación-Agricultura'!$A$36=\"Por definir\",'Adaptación-Agricultura'!$B$41=\"Por definir\"),\"No se han respondido todas las preguntas\",IF(AND('Adaptación-Agricultura'!$A$19=\"La actividad sí contribuye sustancialmente a la sostenibilidad\",'Adaptación-Agricultura'!$A$25=\"La actividad sí contribuye sustancialmente a la sostenibilidad\",'Adaptación-Agricultura'!$G$29=\"La actividad sí contribuye sustancialmente a la sostenbilidad\",'Adaptación-Agricultura'!$A$36=\"La actividad sí contribuye sustancialmente a la sostenibilidad\",'Adaptación-Agricultura'!$B$41=\"La actividad genera contribución sustancial a la sostenibilidad\"),\"La actividad sí contribuye sustancialmente a la sostenibilidad\",\"La actividad no contribuye sustancialmente a la sostenibilidad\"))),IF('Adaptación-Agricultura'!$D$8=\"Actividad adaptada\",(IF(OR('Adaptación-Agricultura'!$A$19=\"Por definir\",'Adaptación-Agricultura'!$A$25=\"Por definir\",'Adaptación-Agricultura'!$G$29=\"Por definir\",'Adaptación-Agricultura'!$A$36=\"Por definir\",'Adaptación-Agricultura'!$B$41=\"Por definir\"),\"No se han respondido todas las preguntas\",IF(AND('Adaptación-Agricultura'!$A$19=\"La actividad sí contribuye sustancialmente a la sostenibilidad\",'Adaptación-Agricultura'!$A$25=\"La actividad sí contribuye sustancialmente a la sostenibilidad\",'Adaptación-Agricultura'!$G$29=\"La actividad sí contribuye sustancialmente a la sostenbilidad\",'Adaptación-Agricultura'!$B$41=\"La actividad genera contribución sustancial a la sostenibilidad\"),\"La actividad sí contribuye sustancialmente a la sostenibilidad\",\"La actividad no contribuye sustancialmente a la sostenibilidad\"))),IF('Adaptación-Agricultura'!$D$8=\"Actividad que facilita la adaptación\",(IF(OR('Adaptación-Agricultura'!$A$36=\"Por definir\",'Adaptación-Agricultura'!$B$41=\"Por definir\"),\"No se han respondido todas las preguntas\",IF(AND('Adaptación-Agricultura'!$A$36=\"La actividad sí contribuye sustancialmente a la sostenibilidad\",'Adaptación-Agricultura'!$B$41=\"La actividad genera contribución sustancial a la sostenibilidad\"),\"La actividad sí contribuye sustancialmente a la sostenibilidad\",\"La actividad no contribuye sustancialmente a la sostenibilidad\"))))))","v":"No se han respondido todas las preguntas"},null,{"$f":"IF('Indice de género-Agricultura'!$E$82=\"Por definir\",\"No se han contestado todas las preguntas\",IF('Indice de género-Agricultura'!$E$82=\"Sí cumple con el índice de igualdad de género\",\"La actividad sí contribuye sustancialmente a la sostenibilidad\",\"La actividad no genera contribución sustancial\"))","v":"La actividad sí contribuye sustancialmente a la sostenibilidad"}]
["Agricultura","111910. Cultivo de tabaco ",{"$f":"IF(OR('Mitigación-Agricultura'!$B$8=\"seleccione\",'Mitigación-Agricultura'!$B$10=\"Seleccione\",'Mitigación-Agricultura'!$B$12=\"Seleccione\",'Mitigación-Agricultura'!$A$16=\"Selecciona la medida 1\",'Mitigación-Agricultura'!$A$17=\"Selecciona la medida 2\",'Mitigación-Agricultura'!$B$19=\"Seleccione\",'Mitigación-Agricultura'!$B$21=\"Seleccione\"),\"No se han respondido todas las preguntas\",IF(AND('Mitigación-Agricultura'!$C$8=\"Sí contribuye sustancialmente a la sostenibilidad\",'Mitigación-Agricultura'!$C$10=\"Sí contribuye sustancialmente a la sostenibilidad. Debe verificarse con evidencia, por ejemplo, con una fotografía\",'Mitigación-Agricultura'!$C$12=\"Sí contribuye sustancialmente a la sostenibilidad\",'Mitigación-Agricultura'!$C$21=\"Contribuye sustancialmente a la sostenibilidad\"),\"La actividad sí contribuye sustancialmente a la sostenibilidad\",IF(AND('Mitigación-Agricultura'!$C$8=\"Se deberá confirmar a través de validación geoespacial\",'Mitigación-Agricultura'!$C$10=\"Sí contribuye sustancialmente a la sostenibilidad. Debe verificarse con evidencia, por ejemplo, con una fotografía\",'Mitigación-Agricultura'!$C$12=\"Sí contribuye sustancialmente a la sostenibilidad\",'Mitigación-Agricultura'!$C$21=\"Contribuye sustancialmente a la sostenibilidad\"),\"La actividad sí contribuye sustancialmente a la sostenibilidad\",\"La actividad no genera contribución sustancial a la sostenibilidad\")))","v":"La actividad sí contribuye sustancialmente a la sostenibilidad"},{"$f":"IF('Adaptación-Agricultura'!$D$8=\"Actividad que facilita la adaptación e incluye desarrollo de infraestructura\",(IF(OR('Adaptación-Agricultura'!$A$19=\"Por definir\",'Adaptación-Agricultura'!$A$25=\"Por definir\",'Adaptación-Agricultura'!$G$29=\"Por definir\",'Adaptación-Agricultura'!$A$36=\"Por definir\",'Adaptación-Agricultura'!$B$41=\"Por definir\"),\"No se han respondido todas las preguntas\",IF(AND('Adaptación-Agricultura'!$A$19=\"La actividad sí contribuye sustancialmente a la sostenibilidad\",'Adaptación-Agricultura'!$A$25=\"La actividad sí contribuye sustancialmente a la sostenibilidad\",'Adaptación-Agricultura'!$G$29=\"La actividad sí contribuye sustancialmente a la sostenbilidad\",'Adaptación-Agricultura'!$A$36=\"La actividad sí contribuye sustancialmente a la sostenibilidad\",'Adaptación-Agricultura'!$B$41=\"La actividad genera contribución sustancial a la sostenibilidad\"),\"La actividad sí contribuye sustancialmente a la sostenibilidad\",\"La actividad no contribuye sustancialmente a la sostenibilidad\"))),IF('Adaptación-Agricultura'!$D$8=\"Actividad adaptada\",(IF(OR('Adaptación-Agricultura'!$A$19=\"Por definir\",'Adaptación-Agricultura'!$A$25=\"Por definir\",'Adaptación-Agricultura'!$G$29=\"Por definir\",'Adaptación-Agricultura'!$A$36=\"Por definir\",'Adaptación-Agricultura'!$B$41=\"Por definir\"),\"No se han respondido todas las preguntas\",IF(AND('Adaptación-Agricultura'!$A$19=\"La actividad sí contribuye sustancialmente a la sostenibilidad\",'Adaptación-Agricultura'!$A$25=\"La actividad sí contribuye sustancialmente a la sostenibilidad\",'Adaptación-Agricultura'!$G$29=\"La actividad sí contribuye sustancialmente a la sostenbilidad\",'Adaptación-Agricultura'!$B$41=\"La actividad genera contribución sustancial a la sostenibilidad\"),\"La actividad sí contribuye sustancialmente a la sostenibilidad\",\"La actividad no contribuye sustancialmente a la sostenibilidad\"))),IF('Adaptación-Agricultura'!$D$8=\"Actividad que facilita la adaptación\",(IF(OR('Adaptación-Agricultura'!$A$36=\"Por definir\",'Adaptación-Agricultura'!$B$41=\"Por definir\"),\"No se han respondido todas las preguntas\",IF(AND('Adaptación-Agricultura'!$A$36=\"La actividad sí contribuye sustancialmente a la sostenibilidad\",'Adaptación-Agricultura'!$B$41=\"La actividad genera contribución sustancial a la sostenibilidad\"),\"La actividad sí contribuye sustancialmente a la sostenibilidad\",\"La actividad no contribuye sustancialmente a la sostenibilidad\"))))))","v":"No se han respondido todas las preguntas"},null,{"$f":"IF('Indice de género-Agricultura'!$E$82=\"Por definir\",\"No se han contestado todas las preguntas\",IF('Indice de género-Agricultura'!$E$82=\"Sí cumple con el índice de igualdad de género\",\"La actividad sí contribuye sustancialmente a la sostenibilidad\",\"La actividad no genera contribución sustancial\"))","v":"La actividad sí contribuye sustancialmente a la sostenibilidad"}]
["Agricultura","111920. Cultivo de algodón ",{"$f":"IF(OR('Mitigación-Agricultura'!$B$8=\"seleccione\",'Mitigación-Agricultura'!$B$10=\"Seleccione\",'Mitigación-Agricultura'!$B$12=\"Seleccione\",'Mitigación-Agricultura'!$A$16=\"Selecciona la medida 1\",'Mitigación-Agricultura'!$A$17=\"Selecciona la medida 2\",'Mitigación-Agricultura'!$B$19=\"Seleccione\",'Mitigación-Agricultura'!$B$21=\"Seleccione\"),\"No se han respondido todas las preguntas\",IF(AND('Mitigación-Agricultura'!$C$8=\"Sí contribuye sustancialmente a la sostenibilidad\",'Mitigación-Agricultura'!$C$10=\"Sí contribuye sustancialmente a la sostenibilidad. Debe verificarse con evidencia, por ejemplo, con una fotografía\",'Mitigación-Agricultura'!$C$12=\"Sí contribuye sustancialmente a la sostenibilidad\",'Mitigación-Agricultura'!$C$21=\"Contribuye sustancialmente a la sostenibilidad\"),\"La actividad sí contribuye sustancialmente a la sostenibilidad\",IF(AND('Mitigación-Agricultura'!$C$8=\"Se deberá confirmar a través de validación geoespacial\",'Mitigación-Agricultura'!$C$10=\"Sí contribuye sustancialmente a la sostenibilidad. Debe verificarse con evidencia, por ejemplo, con una fotografía\",'Mitigación-Agricultura'!$C$12=\"Sí contribuye sustancialmente a la sostenibilidad\",'Mitigación-Agricultura'!$C$21=\"Contribuye sustancialmente a la sostenibilidad\"),\"La actividad sí contribuye sustancialmente a la sostenibilidad\",\"La actividad no genera contribución sustancial a la sostenibilidad\")))","v":"La actividad sí contribuye sustancialmente a la sostenibilidad"},{"$f":"IF('Adaptación-Agricultura'!$D$8=\"Actividad que facilita la adaptación e incluye desarrollo de infraestructura\",(IF(OR('Adaptación-Agricultura'!$A$19=\"Por definir\",'Adaptación-Agricultura'!$A$25=\"Por definir\",'Adaptación-Agricultura'!$G$29=\"Por definir\",'Adaptación-Agricultura'!$A$36=\"Por definir\",'Adaptación-Agricultura'!$B$41=\"Por definir\"),\"No se han respondido todas las preguntas\",IF(AND('Adaptación-Agricultura'!$A$19=\"La actividad sí contribuye sustancialmente a la sostenibilidad\",'Adaptación-Agricultura'!$A$25=\"La actividad sí contribuye sustancialmente a la sostenibilidad\",'Adaptación-Agricultura'!$G$29=\"La actividad sí contribuye sustancialmente a la sostenbilidad\",'Adaptación-Agricultura'!$A$36=\"La actividad sí contribuye sustancialmente a la sostenibilidad\",'Adaptación-Agricultura'!$B$41=\"La actividad genera contribución sustancial a la sostenibilidad\"),\"La actividad sí contribuye sustancialmente a la sostenibilidad\",\"La actividad no contribuye sustancialmente a la sostenibilidad\"))),IF('Adaptación-Agricultura'!$D$8=\"Actividad adaptada\",(IF(OR('Adaptación-Agricultura'!$A$19=\"Por definir\",'Adaptación-Agricultura'!$A$25=\"Por definir\",'Adaptación-Agricultura'!$G$29=\"Por definir\",'Adaptación-Agricultura'!$A$36=\"Por definir\",'Adaptación-Agricultura'!$B$41=\"Por definir\"),\"No se han respondido todas las preguntas\",IF(AND('Adaptación-Agricultura'!$A$19=\"La actividad sí contribuye sustancialmente a la sostenibilidad\",'Adaptación-Agricultura'!$A$25=\"La actividad sí contribuye sustancialmente a la sostenibilidad\",'Adaptación-Agricultura'!$G$29=\"La actividad sí contribuye sustancialmente a la sostenbilidad\",'Adaptación-Agricultura'!$B$41=\"La actividad genera contribución sustancial a la sostenibilidad\"),\"La actividad sí contribuye sustancialmente a la sostenibilidad\",\"La actividad no contribuye sustancialmente a la sostenibilidad\"))),IF('Adaptación-Agricultura'!$D$8=\"Actividad que facilita la adaptación\",(IF(OR('Adaptación-Agricultura'!$A$36=\"Por definir\",'Adaptación-Agricultura'!$B$41=\"Por definir\"),\"No se han respondido todas las preguntas\",IF(AND('Adaptación-Agricultura'!$A$36=\"La actividad sí contribuye sustancialmente a la sostenibilidad\",'Adaptación-Agricultura'!$B$41=\"La actividad genera contribución sustancial a la sostenibilidad\"),\"La actividad sí contribuye sustancialmente a la sostenibilidad\",\"La actividad no contribuye sustancialmente a la sostenibilidad\"))))))","v":"No se han respondido todas las preguntas"},null,{"$f":"IF('Indice de género-Agricultura'!$E$82=\"Por definir\",\"No se han contestado todas las preguntas\",IF('Indice de género-Agricultura'!$E$82=\"Sí cumple con el índice de igualdad de género\",\"La actividad sí contribuye sustancialmente a la sostenibilidad\",\"La actividad no genera contribución sustancial\"))","v":"La actividad sí contribuye sustancialmente a la sostenibilidad"}]
["Agricultura","111930. Cultivo de caña de azúcar ",{"$f":"IF(OR('Mitigación-Agricultura'!$B$8=\"seleccione\",'Mitigación-Agricultura'!$B$10=\"Seleccione\",'Mitigación-Agricultura'!$B$12=\"Seleccione\",'Mitigación-Agricultura'!$A$16=\"Selecciona la medida 1\",'Mitigación-Agricultura'!$A$17=\"Selecciona la medida 2\",'Mitigación-Agricultura'!$B$19=\"Seleccione\",'Mitigación-Agricultura'!$B$21=\"Seleccione\"),\"No se han respondido todas las preguntas\",IF(AND('Mitigación-Agricultura'!$C$8=\"Sí contribuye sustancialmente a la sostenibilidad\",'Mitigación-Agricultura'!$C$10=\"Sí contribuye sustancialmente a la sostenibilidad. Debe verificarse con evidencia, por ejemplo, con una fotografía\",'Mitigación-Agricultura'!$C$12=\"Sí contribuye sustancialmente a la sostenibilidad\",'Mitigación-Agricultura'!$C$21=\"Contribuye sustancialmente a la sostenibilidad\"),\"La actividad sí contribuye sustancialmente a la sostenibilidad\",IF(AND('Mitigación-Agricultura'!$C$8=\"Se deberá confirmar a través de validación geoespacial\",'Mitigación-Agricultura'!$C$10=\"Sí contribuye sustancialmente a la sostenibilidad. Debe verificarse con evidencia, por ejemplo, con una fotografía\",'Mitigación-Agricultura'!$C$12=\"Sí contribuye sustancialmente a la sostenibilidad\",'Mitigación-Agricultura'!$C$21=\"Contribuye sustancialmente a la sostenibilidad\"),\"La actividad sí contribuye sustancialmente a la sostenibilidad\",\"La actividad no genera contribución sustancial a la sostenibilidad\")))","v":"La actividad sí contribuye sustancialmente a la sostenibilidad"},{"$f":"IF('Adaptación-Agricultura'!$D$8=\"Actividad que facilita la adaptación e incluye desarrollo de infraestructura\",(IF(OR('Adaptación-Agricultura'!$A$19=\"Por definir\",'Adaptación-Agricultura'!$A$25=\"Por definir\",'Adaptación-Agricultura'!$G$29=\"Por definir\",'Adaptación-Agricultura'!$A$36=\"Por definir\",'Adaptación-Agricultura'!$B$41=\"Por definir\"),\"No se han respondido todas las preguntas\",IF(AND('Adaptación-Agricultura'!$A$19=\"La actividad sí contribuye sustancialmente a la sostenibilidad\",'Adaptación-Agricultura'!$A$25=\"La actividad sí contribuye sustancialmente a la sostenibilidad\",'Adaptación-Agricultura'!$G$29=\"La actividad sí contribuye sustancialmente a la sostenbilidad\",'Adaptación-Agricultura'!$A$36=\"La actividad sí contribuye sustancialmente a la sostenibilidad\",'Adaptación-Agricultura'!$B$41=\"La actividad genera contribución sustancial a la sostenibilidad\"),\"La actividad sí contribuye sustancialmente a la sostenibilidad\",\"La actividad no contribuye sustancialmente a la sostenibilidad\"))),IF('Adaptación-Agricultura'!$D$8=\"Actividad adaptada\",(IF(OR('Adaptación-Agricultura'!$A$19=\"Por definir\",'Adaptación-Agricultura'!$A$25=\"Por definir\",'Adaptación-Agricultura'!$G$29=\"Por definir\",'Adaptación-Agricultura'!$A$36=\"Por definir\",'Adaptación-Agricultura'!$B$41=\"Por definir\"),\"No se han respondido todas las preguntas\",IF(AND('Adaptación-Agricultura'!$A$19=\"La actividad sí contribuye sustancialmente a la sostenibilidad\",'Adaptación-Agricultura'!$A$25=\"La actividad sí contribuye sustancialmente a la sostenibilidad\",'Adaptación-Agricultura'!$G$29=\"La actividad sí contribuye sustancialmente a la sostenbilidad\",'Adaptación-Agricultura'!$B$41=\"La actividad genera contribución sustancial a la sostenibilidad\"),\"La actividad sí contribuye sustancialmente a la sostenibilidad\",\"La actividad no contribuye sustancialmente a la sostenibilidad\"))),IF('Adaptación-Agricultura'!$D$8=\"Actividad que facilita la adaptación\",(IF(OR('Adaptación-Agricultura'!$A$36=\"Por definir\",'Adaptación-Agricultura'!$B$41=\"Por definir\"),\"No se han respondido todas las preguntas\",IF(AND('Adaptación-Agricultura'!$A$36=\"La actividad sí contribuye sustancialmente a la sostenibilidad\",'Adaptación-Agricultura'!$B$41=\"La actividad genera contribución sustancial a la sostenibilidad\"),\"La actividad sí contribuye sustancialmente a la sostenibilidad\",\"La actividad no contribuye sustancialmente a la sostenibilidad\"))))))","v":"No se han respondido todas las preguntas"},null,{"$f":"IF('Indice de género-Agricultura'!$E$82=\"Por definir\",\"No se han contestado todas las preguntas\",IF('Indice de género-Agricultura'!$E$82=\"Sí cumple con el índice de igualdad de género\",\"La actividad sí contribuye sustancialmente a la sostenibilidad\",\"La actividad no genera contribución sustancial\"))","v":"La actividad sí contribuye sustancialmente a la sostenibilidad"}]
["Agricultura","111941. Cultivo de alfalfa ",{"$f":"IF(OR('Mitigación-Agricultura'!$B$8=\"seleccione\",'Mitigación-Agricultura'!$B$10=\"Seleccione\",'Mitigación-Agricultura'!$B$12=\"Seleccione\",'Mitigación-Agricultura'!$A$16=\"Selecciona la medida 1\",'Mitigación-Agricultura'!$A$17=\"Selecciona la medida 2\",'Mitigación-Agricultura'!$B$19=\"Seleccione\",'Mitigación-Agricultura'!$B$21=\"Seleccione\"),\"No se han respondido todas las preguntas\",IF(AND('Mitigación-Agricultura'!$C$8=\"Sí contribuye sustancialmente a la sostenibilidad\",'Mitigación-Agricultura'!$C$10=\"Sí contribuye sustancialmente a la sostenibilidad. Debe verificarse con evidencia, por ejemplo, con una fotografía\",'Mitigación-Agricultura'!$C$12=\"Sí contribuye sustancialmente a la sostenibilidad\",'Mitigación-Agricultura'!$C$21=\"Contribuye sustancialmente a la sostenibilidad\"),\"La actividad sí contribuye sustancialmente a la sostenibilidad\",IF(AND('Mitigación-Agricultura'!$C$8=\"Se deberá confirmar a través de validación geoespacial\",'Mitigación-Agricultura'!$C$10=\"Sí contribuye sustancialmente a la sostenibilidad. Debe verificarse con evidencia, por ejemplo, con una fotografía\",'Mitigación-Agricultura'!$C$12=\"Sí contribuye sustancialmente a la sostenibilidad\",'Mitigación-Agricultura'!$C$21=\"Contribuye sustancialmente a la sostenibilidad\"),\"La actividad sí contribuye sustancialmente a la sostenibilidad\",\"La actividad no genera contribución sustancial a la sostenibilidad\")))","v":"La actividad sí contribuye sustancialmente a la sostenibilidad"},{"$f":"IF('Adaptación-Agricultura'!$D$8=\"Actividad que facilita la adaptación e incluye desarrollo de infraestructura\",(IF(OR('Adaptación-Agricultura'!$A$19=\"Por definir\",'Adaptación-Agricultura'!$A$25=\"Por definir\",'Adaptación-Agricultura'!$G$29=\"Por definir\",'Adaptación-Agricultura'!$A$36=\"Por definir\",'Adaptación-Agricultura'!$B$41=\"Por definir\"),\"No se han respondido todas las preguntas\",IF(AND('Adaptación-Agricultura'!$A$19=\"La actividad sí contribuye sustancialmente a la sostenibilidad\",'Adaptación-Agricultura'!$A$25=\"La actividad sí contribuye sustancialmente a la sostenibilidad\",'Adaptación-Agricultura'!$G$29=\"La actividad sí contribuye sustancialmente a la sostenbilidad\",'Adaptación-Agricultura'!$A$36=\"La actividad sí contribuye sustancialmente a la sostenibilidad\",'Adaptación-Agricultura'!$B$41=\"La actividad genera contribución sustancial a la sostenibilidad\"),\"La actividad sí contribuye sustancialmente a la sostenibilidad\",\"La actividad no contribuye sustancialmente a la sostenibilidad\"))),IF('Adaptación-Agricultura'!$D$8=\"Actividad adaptada\",(IF(OR('Adaptación-Agricultura'!$A$19=\"Por definir\",'Adaptación-Agricultura'!$A$25=\"Por definir\",'Adaptación-Agricultura'!$G$29=\"Por definir\",'Adaptación-Agricultura'!$A$36=\"Por definir\",'Adaptación-Agricultura'!$B$41=\"Por definir\"),\"No se han respondido todas las preguntas\",IF(AND('Adaptación-Agricultura'!$A$19=\"La actividad sí contribuye sustancialmente a la sostenibilidad\",'Adaptación-Agricultura'!$A$25=\"La actividad sí contribuye sustancialmente a la sostenibilidad\",'Adaptación-Agricultura'!$G$29=\"La actividad sí contribuye sustancialmente a la sostenbilidad\",'Adaptación-Agricultura'!$B$41=\"La actividad genera contribución sustancial a la sostenibilidad\"),\"La actividad sí contribuye sustancialmente a la sostenibilidad\",\"La actividad no contribuye sustancialmente a la sostenibilidad\"))),IF('Adaptación-Agricultura'!$D$8=\"Actividad que facilita la adaptación\",(IF(OR('Adaptación-Agricultura'!$A$36=\"Por definir\",'Adaptación-Agricultura'!$B$41=\"Por definir\"),\"No se han respondido todas las preguntas\",IF(AND('Adaptación-Agricultura'!$A$36=\"La actividad sí contribuye sustancialmente a la sostenibilidad\",'Adaptación-Agricultura'!$B$41=\"La actividad genera contribución sustancial a la sostenibilidad\"),\"La actividad sí contribuye sustancialmente a la sostenibilidad\",\"La actividad no contribuye sustancialmente a la sostenibilidad\"))))))","v":"No se han respondido todas las preguntas"},null,{"$f":"IF('Indice de género-Agricultura'!$E$82=\"Por definir\",\"No se han contestado todas las preguntas\",IF('Indice de género-Agricultura'!$E$82=\"Sí cumple con el índice de igualdad de género\",\"La actividad sí contribuye sustancialmente a la sostenibilidad\",\"La actividad no genera contribución sustancial\"))","v":"La actividad sí contribuye sustancialmente a la sostenibilidad"}]
["Agricultura","111942. Cultivo de pastos ",{"$f":"IF(OR('Mitigación-Agricultura'!$B$8=\"seleccione\",'Mitigación-Agricultura'!$B$10=\"Seleccione\",'Mitigación-Agricultura'!$B$12=\"Seleccione\",'Mitigación-Agricultura'!$A$16=\"Selecciona la medida 1\",'Mitigación-Agricultura'!$A$17=\"Selecciona la medida 2\",'Mitigación-Agricultura'!$B$19=\"Seleccione\",'Mitigación-Agricultura'!$B$21=\"Seleccione\"),\"No se han respondido todas las preguntas\",IF(AND('Mitigación-Agricultura'!$C$8=\"Sí contribuye sustancialmente a la sostenibilidad\",'Mitigación-Agricultura'!$C$10=\"Sí contribuye sustancialmente a la sostenibilidad. Debe verificarse con evidencia, por ejemplo, con una fotografía\",'Mitigación-Agricultura'!$C$12=\"Sí contribuye sustancialmente a la sostenibilidad\",'Mitigación-Agricultura'!$C$21=\"Contribuye sustancialmente a la sostenibilidad\"),\"La actividad sí contribuye sustancialmente a la sostenibilidad\",IF(AND('Mitigación-Agricultura'!$C$8=\"Se deberá confirmar a través de validación geoespacial\",'Mitigación-Agricultura'!$C$10=\"Sí contribuye sustancialmente a la sostenibilidad. Debe verificarse con evidencia, por ejemplo, con una fotografía\",'Mitigación-Agricultura'!$C$12=\"Sí contribuye sustancialmente a la sostenibilidad\",'Mitigación-Agricultura'!$C$21=\"Contribuye sustancialmente a la sostenibilidad\"),\"La actividad sí contribuye sustancialmente a la sostenibilidad\",\"La actividad no genera contribución sustancial a la sostenibilidad\")))","v":"La actividad sí contribuye sustancialmente a la sostenibilidad"},{"$f":"IF('Adaptación-Agricultura'!$D$8=\"Actividad que facilita la adaptación e incluye desarrollo de infraestructura\",(IF(OR('Adaptación-Agricultura'!$A$19=\"Por definir\",'Adaptación-Agricultura'!$A$25=\"Por definir\",'Adaptación-Agricultura'!$G$29=\"Por definir\",'Adaptación-Agricultura'!$A$36=\"Por definir\",'Adaptación-Agricultura'!$B$41=\"Por definir\"),\"No se han respondido todas las preguntas\",IF(AND('Adaptación-Agricultura'!$A$19=\"La actividad sí contribuye sustancialmente a la sostenibilidad\",'Adaptación-Agricultura'!$A$25=\"La actividad sí contribuye sustancialmente a la sostenibilidad\",'Adaptación-Agricultura'!$G$29=\"La actividad sí contribuye sustancialmente a la sostenbilidad\",'Adaptación-Agricultura'!$A$36=\"La actividad sí contribuye sustancialmente a la sostenibilidad\",'Adaptación-Agricultura'!$B$41=\"La actividad genera contribución sustancial a la sostenibilidad\"),\"La actividad sí contribuye sustancialmente a la sostenibilidad\",\"La actividad no contribuye sustancialmente a la sostenibilidad\"))),IF('Adaptación-Agricultura'!$D$8=\"Actividad adaptada\",(IF(OR('Adaptación-Agricultura'!$A$19=\"Por definir\",'Adaptación-Agricultura'!$A$25=\"Por definir\",'Adaptación-Agricultura'!$G$29=\"Por definir\",'Adaptación-Agricultura'!$A$36=\"Por definir\",'Adaptación-Agricultura'!$B$41=\"Por definir\"),\"No se han respondido todas las preguntas\",IF(AND('Adaptación-Agricultura'!$A$19=\"La actividad sí contribuye sustancialmente a la sostenibilidad\",'Adaptación-Agricultura'!$A$25=\"La actividad sí contribuye sustancialmente a la sostenibilidad\",'Adaptación-Agricultura'!$G$29=\"La actividad sí contribuye sustancialmente a la sostenbilidad\",'Adaptación-Agricultura'!$B$41=\"La actividad genera contribución sustancial a la sostenibilidad\"),\"La actividad sí contribuye sustancialmente a la sostenibilidad\",\"La actividad no contribuye sustancialmente a la sostenibilidad\"))),IF('Adaptación-Agricultura'!$D$8=\"Actividad que facilita la adaptación\",(IF(OR('Adaptación-Agricultura'!$A$36=\"Por definir\",'Adaptación-Agricultura'!$B$41=\"Por definir\"),\"No se han respondido todas las preguntas\",IF(AND('Adaptación-Agricultura'!$A$36=\"La actividad sí contribuye sustancialmente a la sostenibilidad\",'Adaptación-Agricultura'!$B$41=\"La actividad genera contribución sustancial a la sostenibilidad\"),\"La actividad sí contribuye sustancialmente a la sostenibilidad\",\"La actividad no contribuye sustancialmente a la sostenibilidad\"))))))","v":"No se han respondido todas las preguntas"},null,{"$f":"IF('Indice de género-Agricultura'!$E$82=\"Por definir\",\"No se han contestado todas las preguntas\",IF('Indice de género-Agricultura'!$E$82=\"Sí cumple con el índice de igualdad de género\",\"La actividad sí contribuye sustancialmente a la sostenibilidad\",\"La actividad no genera contribución sustancial\"))","v":"La actividad sí contribuye sustancialmente a la sostenibilidad"}]
["Agricultura","111991. Cultivo de agaves alcoholeros ",{"$f":"IF(OR('Mitigación-Agricultura'!$B$8=\"seleccione\",'Mitigación-Agricultura'!$B$10=\"Seleccione\",'Mitigación-Agricultura'!$B$12=\"Seleccione\",'Mitigación-Agricultura'!$A$16=\"Selecciona la medida 1\",'Mitigación-Agricultura'!$A$17=\"Selecciona la medida 2\",'Mitigación-Agricultura'!$B$19=\"Seleccione\",'Mitigación-Agricultura'!$B$21=\"Seleccione\"),\"No se han respondido todas las preguntas\",IF(AND('Mitigación-Agricultura'!$C$8=\"Sí contribuye sustancialmente a la sostenibilidad\",'Mitigación-Agricultura'!$C$10=\"Sí contribuye sustancialmente a la sostenibilidad. Debe verificarse con evidencia, por ejemplo, con una fotografía\",'Mitigación-Agricultura'!$C$12=\"Sí contribuye sustancialmente a la sostenibilidad\",'Mitigación-Agricultura'!$C$21=\"Contribuye sustancialmente a la sostenibilidad\"),\"La actividad sí contribuye sustancialmente a la sostenibilidad\",IF(AND('Mitigación-Agricultura'!$C$8=\"Se deberá confirmar a través de validación geoespacial\",'Mitigación-Agricultura'!$C$10=\"Sí contribuye sustancialmente a la sostenibilidad. Debe verificarse con evidencia, por ejemplo, con una fotografía\",'Mitigación-Agricultura'!$C$12=\"Sí contribuye sustancialmente a la sostenibilidad\",'Mitigación-Agricultura'!$C$21=\"Contribuye sustancialmente a la sostenibilidad\"),\"La actividad sí contribuye sustancialmente a la sostenibilidad\",\"La actividad no genera contribución sustancial a la sostenibilidad\")))","v":"La actividad sí contribuye sustancialmente a la sostenibilidad"},{"$f":"IF('Adaptación-Agricultura'!$D$8=\"Actividad que facilita la adaptación e incluye desarrollo de infraestructura\",(IF(OR('Adaptación-Agricultura'!$A$19=\"Por definir\",'Adaptación-Agricultura'!$A$25=\"Por definir\",'Adaptación-Agricultura'!$G$29=\"Por definir\",'Adaptación-Agricultura'!$A$36=\"Por definir\",'Adaptación-Agricultura'!$B$41=\"Por definir\"),\"No se han respondido todas las preguntas\",IF(AND('Adaptación-Agricultura'!$A$19=\"La actividad sí contribuye sustancialmente a la sostenibilidad\",'Adaptación-Agricultura'!$A$25=\"La actividad sí contribuye sustancialmente a la sostenibilidad\",'Adaptación-Agricultura'!$G$29=\"La actividad sí contribuye sustancialmente a la sostenbilidad\",'Adaptación-Agricultura'!$A$36=\"La actividad sí contribuye sustancialmente a la sostenibilidad\",'Adaptación-Agricultura'!$B$41=\"La actividad genera contribución sustancial a la sostenibilidad\"),\"La actividad sí contribuye sustancialmente a la sostenibilidad\",\"La actividad no contribuye sustancialmente a la sostenibilidad\"))),IF('Adaptación-Agricultura'!$D$8=\"Actividad adaptada\",(IF(OR('Adaptación-Agricultura'!$A$19=\"Por definir\",'Adaptación-Agricultura'!$A$25=\"Por definir\",'Adaptación-Agricultura'!$G$29=\"Por definir\",'Adaptación-Agricultura'!$A$36=\"Por definir\",'Adaptación-Agricultura'!$B$41=\"Por definir\"),\"No se han respondido todas las preguntas\",IF(AND('Adaptación-Agricultura'!$A$19=\"La actividad sí contribuye sustancialmente a la sostenibilidad\",'Adaptación-Agricultura'!$A$25=\"La actividad sí contribuye sustancialmente a la sostenibilidad\",'Adaptación-Agricultura'!$G$29=\"La actividad sí contribuye sustancialmente a la sostenbilidad\",'Adaptación-Agricultura'!$B$41=\"La actividad genera contribución sustancial a la sostenibilidad\"),\"La actividad sí contribuye sustancialmente a la sostenibilidad\",\"La actividad no contribuye sustancialmente a la sostenibilidad\"))),IF('Adaptación-Agricultura'!$D$8=\"Actividad que facilita la adaptación\",(IF(OR('Adaptación-Agricultura'!$A$36=\"Por definir\",'Adaptación-Agricultura'!$B$41=\"Por definir\"),\"No se han respondido todas las preguntas\",IF(AND('Adaptación-Agricultura'!$A$36=\"La actividad sí contribuye sustancialmente a la sostenibilidad\",'Adaptación-Agricultura'!$B$41=\"La actividad genera contribución sustancial a la sostenibilidad\"),\"La actividad sí contribuye sustancialmente a la sostenibilidad\",\"La actividad no contribuye sustancialmente a la sostenibilidad\"))))))","v":"No se han respondido todas las preguntas"},null,{"$f":"IF('Indice de género-Agricultura'!$E$82=\"Por definir\",\"No se han contestado todas las preguntas\",IF('Indice de género-Agricultura'!$E$82=\"Sí cumple con el índice de igualdad de género\",\"La actividad sí contribuye sustancialmente a la sostenibilidad\",\"La actividad no genera contribución sustancial\"))","v":"La actividad sí contribuye sustancialmente a la sostenibilidad"}]
["Agricultura","111992. Cultivo de cacahuate ",{"$f":"IF(OR('Mitigación-Agricultura'!$B$8=\"seleccione\",'Mitigación-Agricultura'!$B$10=\"Seleccione\",'Mitigación-Agricultura'!$B$12=\"Seleccione\",'Mitigación-Agricultura'!$A$16=\"Selecciona la medida 1\",'Mitigación-Agricultura'!$A$17=\"Selecciona la medida 2\",'Mitigación-Agricultura'!$B$19=\"Seleccione\",'Mitigación-Agricultura'!$B$21=\"Seleccione\"),\"No se han respondido todas las preguntas\",IF(AND('Mitigación-Agricultura'!$C$8=\"Sí contribuye sustancialmente a la sostenibilidad\",'Mitigación-Agricultura'!$C$10=\"Sí contribuye sustancialmente a la sostenibilidad. Debe verificarse con evidencia, por ejemplo, con una fotografía\",'Mitigación-Agricultura'!$C$12=\"Sí contribuye sustancialmente a la sostenibilidad\",'Mitigación-Agricultura'!$C$21=\"Contribuye sustancialmente a la sostenibilidad\"),\"La actividad sí contribuye sustancialmente a la sostenibilidad\",IF(AND('Mitigación-Agricultura'!$C$8=\"Se deberá confirmar a través de validación geoespacial\",'Mitigación-Agricultura'!$C$10=\"Sí contribuye sustancialmente a la sostenibilidad. Debe verificarse con evidencia, por ejemplo, con una fotografía\",'Mitigación-Agricultura'!$C$12=\"Sí contribuye sustancialmente a la sostenibilidad\",'Mitigación-Agricultura'!$C$21=\"Contribuye sustancialmente a la sostenibilidad\"),\"La actividad sí contribuye sustancialmente a la sostenibilidad\",\"La actividad no genera contribución sustancial a la sostenibilidad\")))","v":"La actividad sí contribuye sustancialmente a la sostenibilidad"},{"$f":"IF('Adaptación-Agricultura'!$D$8=\"Actividad que facilita la adaptación e incluye desarrollo de infraestructura\",(IF(OR('Adaptación-Agricultura'!$A$19=\"Por definir\",'Adaptación-Agricultura'!$A$25=\"Por definir\",'Adaptación-Agricultura'!$G$29=\"Por definir\",'Adaptación-Agricultura'!$A$36=\"Por definir\",'Adaptación-Agricultura'!$B$41=\"Por definir\"),\"No se han respondido todas las preguntas\",IF(AND('Adaptación-Agricultura'!$A$19=\"La actividad sí contribuye sustancialmente a la sostenibilidad\",'Adaptación-Agricultura'!$A$25=\"La actividad sí contribuye sustancialmente a la sostenibilidad\",'Adaptación-Agricultura'!$G$29=\"La actividad sí contribuye sustancialmente a la sostenbilidad\",'Adaptación-Agricultura'!$A$36=\"La actividad sí contribuye sustancialmente a la sostenibilidad\",'Adaptación-Agricultura'!$B$41=\"La actividad genera contribución sustancial a la sostenibilidad\"),\"La actividad sí contribuye sustancialmente a la sostenibilidad\",\"La actividad no contribuye sustancialmente a la sostenibilidad\"))),IF('Adaptación-Agricultura'!$D$8=\"Actividad adaptada\",(IF(OR('Adaptación-Agricultura'!$A$19=\"Por definir\",'Adaptación-Agricultura'!$A$25=\"Por definir\",'Adaptación-Agricultura'!$G$29=\"Por definir\",'Adaptación-Agricultura'!$A$36=\"Por definir\",'Adaptación-Agricultura'!$B$41=\"Por definir\"),\"No se han respondido todas las preguntas\",IF(AND('Adaptación-Agricultura'!$A$19=\"La actividad sí contribuye sustancialmente a la sostenibilidad\",'Adaptación-Agricultura'!$A$25=\"La actividad sí contribuye sustancialmente a la sostenibilidad\",'Adaptación-Agricultura'!$G$29=\"La actividad sí contribuye sustancialmente a la sostenbilidad\",'Adaptación-Agricultura'!$B$41=\"La actividad genera contribución sustancial a la sostenibilidad\"),\"La actividad sí contribuye sustancialmente a la sostenibilidad\",\"La actividad no contribuye sustancialmente a la sostenibilidad\"))),IF('Adaptación-Agricultura'!$D$8=\"Actividad que facilita la adaptación\",(IF(OR('Adaptación-Agricultura'!$A$36=\"Por definir\",'Adaptación-Agricultura'!$B$41=\"Por definir\"),\"No se han respondido todas las preguntas\",IF(AND('Adaptación-Agricultura'!$A$36=\"La actividad sí contribuye sustancialmente a la sostenibilidad\",'Adaptación-Agricultura'!$B$41=\"La actividad genera contribución sustancial a la sostenibilidad\"),\"La actividad sí contribuye sustancialmente a la sostenibilidad\",\"La actividad no contribuye sustancialmente a la sostenibilidad\"))))))","v":"No se han respondido todas las preguntas"},null,{"$f":"IF('Indice de género-Agricultura'!$E$82=\"Por definir\",\"No se han contestado todas las preguntas\",IF('Indice de género-Agricultura'!$E$82=\"Sí cumple con el índice de igualdad de género\",\"La actividad sí contribuye sustancialmente a la sostenibilidad\",\"La actividad no genera contribución sustancial\"))","v":"La actividad sí contribuye sustancialmente a la sostenibilidad"}]
["Agricultura","111999. Otros Cultivos",{"$f":"IF(OR('Mitigación-Agricultura'!$B$8=\"seleccione\",'Mitigación-Agricultura'!$B$10=\"Seleccione\",'Mitigación-Agricultura'!$B$12=\"Seleccione\",'Mitigación-Agricultura'!$A$16=\"Selecciona la medida 1\",'Mitigación-Agricultura'!$A$17=\"Selecciona la medida 2\",'Mitigación-Agricultura'!$B$19=\"Seleccione\",'Mitigación-Agricultura'!$B$21=\"Seleccione\"),\"No se han respondido todas las preguntas\",IF(AND('Mitigación-Agricultura'!$C$8=\"Sí contribuye sustancialmente a la sostenibilidad\",'Mitigación-Agricultura'!$C$10=\"Sí contribuye sustancialmente a la sostenibilidad. Debe verificarse con evidencia, por ejemplo, con una fotografía\",'Mitigación-Agricultura'!$C$12=\"Sí contribuye sustancialmente a la sostenibilidad\",'Mitigación-Agricultura'!$C$21=\"Contribuye sustancialmente a la sostenibilidad\"),\"La actividad sí contribuye sustancialmente a la sostenibilidad\",IF(AND('Mitigación-Agricultura'!$C$8=\"Se deberá confirmar a través de validación geoespacial\",'Mitigación-Agricultura'!$C$10=\"Sí contribuye sustancialmente a la sostenibilidad. Debe verificarse con evidencia, por ejemplo, con una fotografía\",'Mitigación-Agricultura'!$C$12=\"Sí contribuye sustancialmente a la sostenibilidad\",'Mitigación-Agricultura'!$C$21=\"Contribuye sustancialmente a la sostenibilidad\"),\"La actividad sí contribuye sustancialmente a la sostenibilidad\",\"La actividad no genera contribución sustancial a la sostenibilidad\")))","v":"La actividad sí contribuye sustancialmente a la sostenibilidad"},{"$f":"IF('Adaptación-Agricultura'!$D$8=\"Actividad que facilita la adaptación e incluye desarrollo de infraestructura\",(IF(OR('Adaptación-Agricultura'!$A$19=\"Por definir\",'Adaptación-Agricultura'!$A$25=\"Por definir\",'Adaptación-Agricultura'!$G$29=\"Por definir\",'Adaptación-Agricultura'!$A$36=\"Por definir\",'Adaptación-Agricultura'!$B$41=\"Por definir\"),\"No se han respondido todas las preguntas\",IF(AND('Adaptación-Agricultura'!$A$19=\"La actividad sí contribuye sustancialmente a la sostenibilidad\",'Adaptación-Agricultura'!$A$25=\"La actividad sí contribuye sustancialmente a la sostenibilidad\",'Adaptación-Agricultura'!$G$29=\"La actividad sí contribuye sustancialmente a la sostenbilidad\",'Adaptación-Agricultura'!$A$36=\"La actividad sí contribuye sustancialmente a la sostenibilidad\",'Adaptación-Agricultura'!$B$41=\"La actividad genera contribución sustancial a la sostenibilidad\"),\"La actividad sí contribuye sustancialmente a la sostenibilidad\",\"La actividad no contribuye sustancialmente a la sostenibilidad\"))),IF('Adaptación-Agricultura'!$D$8=\"Actividad adaptada\",(IF(OR('Adaptación-Agricultura'!$A$19=\"Por definir\",'Adaptación-Agricultura'!$A$25=\"Por definir\",'Adaptación-Agricultura'!$G$29=\"Por definir\",'Adaptación-Agricultura'!$A$36=\"Por definir\",'Adaptación-Agricultura'!$B$41=\"Por definir\"),\"No se han respondido todas las preguntas\",IF(AND('Adaptación-Agricultura'!$A$19=\"La actividad sí contribuye sustancialmente a la sostenibilidad\",'Adaptación-Agricultura'!$A$25=\"La actividad sí contribuye sustancialmente a la sostenibilidad\",'Adaptación-Agricultura'!$G$29=\"La actividad sí contribuye sustancialmente a la sostenbilidad\",'Adaptación-Agricultura'!$B$41=\"La actividad genera contribución sustancial a la sostenibilidad\"),\"La actividad sí contribuye sustancialmente a la sostenibilidad\",\"La actividad no contribuye sustancialmente a la sostenibilidad\"))),IF('Adaptación-Agricultura'!$D$8=\"Actividad que facilita la adaptación\",(IF(OR('Adaptación-Agricultura'!$A$36=\"Por definir\",'Adaptación-Agricultura'!$B$41=\"Por definir\"),\"No se han respondido todas las preguntas\",IF(AND('Adaptación-Agricultura'!$A$36=\"La actividad sí contribuye sustancialmente a la sostenibilidad\",'Adaptación-Agricultura'!$B$41=\"La actividad genera contribución sustancial a la sostenibilidad\"),\"La actividad sí contribuye sustancialmente a la sostenibilidad\",\"La actividad no contribuye sustancialmente a la sostenibilidad\"))))))","v":"No se han respondido todas las preguntas"},null,{"$f":"IF('Indice de género-Agricultura'!$E$82=\"Por definir\",\"No se han contestado todas las preguntas\",IF('Indice de género-Agricultura'!$E$82=\"Sí cumple con el índice de igualdad de género\",\"La actividad sí contribuye sustancialmente a la sostenibilidad\",\"La actividad no genera contribución sustancial\"))","v":"La actividad sí contribuye sustancialmente a la sostenibilidad"}]
["Ganadería","112110. Explotación de bovinos para la producción de carne ",{"$f":"IF('Mitigación-Ganadería'!$A$22=\"Por definir\",\"No se han contestado todas las preguntas\",'Mitigación-Ganadería'!$A$22)","v":"La actividad no genera contribución sustancial"},{"$f":"IF('Adaptación-Ganadería'!$D$8=\"Actividad que facilita la adaptación e incluye desarrollo de infraestructura\",(IF(OR('Adaptación-Ganadería'!$A$19=\"Por definir\",'Adaptación-Ganadería'!$A$25=\"Por definir\",'Adaptación-Ganadería'!$G$29=\"Por definir\",'Adaptación-Ganadería'!$A$36=\"Por definir\",'Adaptación-Ganadería'!$B$42=\"Por definir\"),\"No se han respondido todas las preguntas\",IF(AND('Adaptación-Ganadería'!$A$19=\"La actividad sí contribuye sustancialmente a la sostenibilidad\",'Adaptación-Ganadería'!$A$25=\"La actividad sí contribuye sustancialmente a la sostenibilidad\",'Adaptación-Ganadería'!$G$29=\"La actividad sí contribuye sustancialmente a la sostenbilidad\",'Adaptación-Ganadería'!$A$36=\"La actividad sí contribuye sustancialmente a la sostenibilidad\",'Adaptación-Ganadería'!$B$42=\"La actividad genera contribución sustancial a la sostenibilidad\"),\"La actividad sí contribuye sustancialmente a la sostenibilidad\",\"La actividad no contribuye sustancialmente a la sostenibilidad\"))),IF('Adaptación-Ganadería'!$D$8=\"Actividad adaptada\",(IF(OR('Adaptación-Ganadería'!$A$19=\"Por definir\",'Adaptación-Ganadería'!$A$25=\"Por definir\",'Adaptación-Ganadería'!$G$29=\"Por definir\",'Adaptación-Ganadería'!$A$36=\"Por definir\",'Adaptación-Ganadería'!$B$42=\"Por definir\"),\"No se han respondido todas las preguntas\",IF(AND('Adaptación-Ganadería'!$A$19=\"La actividad sí contribuye sustancialmente a la sostenibilidad\",'Adaptación-Ganadería'!$A$25=\"La actividad sí contribuye sustancialmente a la sostenibilidad\",'Adaptación-Ganadería'!$G$29=\"La actividad sí contribuye sustancialmente a la sostenbilidad\",'Adaptación-Ganadería'!$B$42=\"La actividad genera contribución sustancial a la sostenibilidad\"),\"La actividad sí contribuye sustancialmente a la sostenibilidad\",\"La actividad no contribuye sustancialmente a la sostenibilidad\"))),IF('Adaptación-Ganadería'!$D$8=\"Actividad que facilita la adaptación\",(IF(OR('Adaptación-Ganadería'!$A$36=\"Por definir\",'Adaptación-Ganadería'!$B$42=\"Por definir\"),\"No se han respondido todas las preguntas\",IF(AND('Adaptación-Ganadería'!$A$36=\"La actividad sí contribuye sustancialmente a la sostenibilidad\",'Adaptación-Ganadería'!$B$42=\"La actividad genera contribución sustancial a la sostenibilidad\"),\"La actividad sí contribuye sustancialmente a la sostenibilidad\",\"La actividad no contribuye sustancialmente a la sostenibilidad\"))))))","v":"No se han respondido todas las preguntas"},null,{"$f":"IF('Indice de género-Ganadería'!$E$82=\"Por definir\",\"No se han contestado todas las preguntas\",IF('Indice de género-Ganadería'!$E$82=\"Sí cumple con el índice de igualdad de género\",\"La actividad sí contribuye sustancialmente a la sostenibilidad\",\"La actividad no genera contribución sustancial\"))","v":"La actividad sí contribuye sustancialmente a la sostenibilidad"}]
["Ganadería","112120. Explotación de bovinos para la producción de leche ",{"$f":"IF('Mitigación-Ganadería'!$A$22=\"Por definir\",\"No se han contestado todas las preguntas\",'Mitigación-Ganadería'!$A$22)","v":"La actividad no genera contribución sustancial"},{"$f":"IF('Adaptación-Ganadería'!$D$8=\"Actividad que facilita la adaptación e incluye desarrollo de infraestructura\",(IF(OR('Adaptación-Ganadería'!$A$19=\"Por definir\",'Adaptación-Ganadería'!$A$25=\"Por definir\",'Adaptación-Ganadería'!$G$29=\"Por definir\",'Adaptación-Ganadería'!$A$36=\"Por definir\",'Adaptación-Ganadería'!$B$42=\"Por definir\"),\"No se han respondido todas las preguntas\",IF(AND('Adaptación-Ganadería'!$A$19=\"La actividad sí contribuye sustancialmente a la sostenibilidad\",'Adaptación-Ganadería'!$A$25=\"La actividad sí contribuye sustancialmente a la sostenibilidad\",'Adaptación-Ganadería'!$G$29=\"La actividad sí contribuye sustancialmente a la sostenbilidad\",'Adaptación-Ganadería'!$A$36=\"La actividad sí contribuye sustancialmente a la sostenibilidad\",'Adaptación-Ganadería'!$B$42=\"La actividad genera contribución sustancial a la sostenibilidad\"),\"La actividad sí contribuye sustancialmente a la sostenibilidad\",\"La actividad no contribuye sustancialmente a la sostenibilidad\"))),IF('Adaptación-Ganadería'!$D$8=\"Actividad adaptada\",(IF(OR('Adaptación-Ganadería'!$A$19=\"Por definir\",'Adaptación-Ganadería'!$A$25=\"Por definir\",'Adaptación-Ganadería'!$G$29=\"Por definir\",'Adaptación-Ganadería'!$A$36=\"Por definir\",'Adaptación-Ganadería'!$B$42=\"Por definir\"),\"No se han respondido todas las preguntas\",IF(AND('Adaptación-Ganadería'!$A$19=\"La actividad sí contribuye sustancialmente a la sostenibilidad\",'Adaptación-Ganadería'!$A$25=\"La actividad sí contribuye sustancialmente a la sostenibilidad\",'Adaptación-Ganadería'!$G$29=\"La actividad sí contribuye sustancialmente a la sostenbilidad\",'Adaptación-Ganadería'!$B$42=\"La actividad genera contribución sustancial a la sostenibilidad\"),\"La actividad sí contribuye sustancialmente a la sostenibilidad\",\"La actividad no contribuye sustancialmente a la sostenibilidad\"))),IF('Adaptación-Ganadería'!$D$8=\"Actividad que facilita la adaptación\",(IF(OR('Adaptación-Ganadería'!$A$36=\"Por definir\",'Adaptación-Ganadería'!$B$42=\"Por definir\"),\"No se han respondido todas las preguntas\",IF(AND('Adaptación-Ganadería'!$A$36=\"La actividad sí contribuye sustancialmente a la sostenibilidad\",'Adaptación-Ganadería'!$B$42=\"La actividad genera contribución sustancial a la sostenibilidad\"),\"La actividad sí contribuye sustancialmente a la sostenibilidad\",\"La actividad no contribuye sustancialmente a la sostenibilidad\"))))))","v":"No se han respondido todas las preguntas"},null,{"$f":"IF('Indice de género-Ganadería'!$E$82=\"Por definir\",\"No se han contestado todas las preguntas\",IF('Indice de género-Ganadería'!$E$82=\"Sí cumple con el índice de igualdad de género\",\"La actividad sí contribuye sustancialmente a la sostenibilidad\",\"La actividad no genera contribución sustancial\"))","v":"La actividad sí contribuye sustancialmente a la sostenibilidad"}]
["Ganadería","112131. Explotación de bovinos para la producción conjunta de leche y carne ",{"$f":"IF('Mitigación-Ganadería'!$A$22=\"Por definir\",\"No se han contestado todas las preguntas\",'Mitigación-Ganadería'!$A$22)","v":"La actividad no genera contribución sustancial"},{"$f":"IF('Adaptación-Ganadería'!$D$8=\"Actividad que facilita la adaptación e incluye desarrollo de infraestructura\",(IF(OR('Adaptación-Ganadería'!$A$19=\"Por definir\",'Adaptación-Ganadería'!$A$25=\"Por definir\",'Adaptación-Ganadería'!$G$29=\"Por definir\",'Adaptación-Ganadería'!$A$36=\"Por definir\",'Adaptación-Ganadería'!$B$42=\"Por definir\"),\"No se han respondido todas las preguntas\",IF(AND('Adaptación-Ganadería'!$A$19=\"La actividad sí contribuye sustancialmente a la sostenibilidad\",'Adaptación-Ganadería'!$A$25=\"La actividad sí contribuye sustancialmente a la sostenibilidad\",'Adaptación-Ganadería'!$G$29=\"La actividad sí contribuye sustancialmente a la sostenbilidad\",'Adaptación-Ganadería'!$A$36=\"La actividad sí contribuye sustancialmente a la sostenibilidad\",'Adaptación-Ganadería'!$B$42=\"La actividad genera contribución sustancial a la sostenibilidad\"),\"La actividad sí contribuye sustancialmente a la sostenibilidad\",\"La actividad no contribuye sustancialmente a la sostenibilidad\"))),IF('Adaptación-Ganadería'!$D$8=\"Actividad adaptada\",(IF(OR('Adaptación-Ganadería'!$A$19=\"Por definir\",'Adaptación-Ganadería'!$A$25=\"Por definir\",'Adaptación-Ganadería'!$G$29=\"Por definir\",'Adaptación-Ganadería'!$A$36=\"Por definir\",'Adaptación-Ganadería'!$B$42=\"Por definir\"),\"No se han respondido todas las preguntas\",IF(AND('Adaptación-Ganadería'!$A$19=\"La actividad sí contribuye sustancialmente a la sostenibilidad\",'Adaptación-Ganadería'!$A$25=\"La actividad sí contribuye sustancialmente a la sostenibilidad\",'Adaptación-Ganadería'!$G$29=\"La actividad sí contribuye sustancialmente a la sostenbilidad\",'Adaptación-Ganadería'!$B$42=\"La actividad genera contribución sustancial a la sostenibilidad\"),\"La actividad sí contribuye sustancialmente a la sostenibilidad\",\"La actividad no contribuye sustancialmente a la sostenibilidad\"))),IF('Adaptación-Ganadería'!$D$8=\"Actividad que facilita la adaptación\",(IF(OR('Adaptación-Ganadería'!$A$36=\"Por definir\",'Adaptación-Ganadería'!$B$42=\"Por definir\"),\"No se han respondido todas las preguntas\",IF(AND('Adaptación-Ganadería'!$A$36=\"La actividad sí contribuye sustancialmente a la sostenibilidad\",'Adaptación-Ganadería'!$B$42=\"La actividad genera contribución sustancial a la sostenibilidad\"),\"La actividad sí contribuye sustancialmente a la sostenibilidad\",\"La actividad no contribuye sustancialmente a la sostenibilidad\"))))))","v":"No se han respondido todas las preguntas"},null,{"$f":"IF('Indice de género-Ganadería'!$E$82=\"Por definir\",\"No se han contestado todas las preguntas\",IF('Indice de género-Ganadería'!$E$82=\"Sí cumple con el índice de igualdad de género\",\"La actividad sí contribuye sustancialmente a la sostenibilidad\",\"La actividad no genera contribución sustancial\"))","v":"La actividad sí contribuye sustancialmente a la sostenibilidad"}]
["Ganadería","112139. Explotación de bovinos para otros propósitos ",{"$f":"IF('Mitigación-Ganadería'!$A$22=\"Por definir\",\"No se han contestado todas las preguntas\",'Mitigación-Ganadería'!$A$22)","v":"La actividad no genera contribución sustancial"},{"$f":"IF('Adaptación-Ganadería'!$D$8=\"Actividad que facilita la adaptación e incluye desarrollo de infraestructura\",(IF(OR('Adaptación-Ganadería'!$A$19=\"Por definir\",'Adaptación-Ganadería'!$A$25=\"Por definir\",'Adaptación-Ganadería'!$G$29=\"Por definir\",'Adaptación-Ganadería'!$A$36=\"Por definir\",'Adaptación-Ganadería'!$B$42=\"Por definir\"),\"No se han respondido todas las preguntas\",IF(AND('Adaptación-Ganadería'!$A$19=\"La actividad sí contribuye sustancialmente a la sostenibilidad\",'Adaptación-Ganadería'!$A$25=\"La actividad sí contribuye sustancialmente a la sostenibilidad\",'Adaptación-Ganadería'!$G$29=\"La actividad sí contribuye sustancialmente a la sostenbilidad\",'Adaptación-Ganadería'!$A$36=\"La actividad sí contribuye sustancialmente a la sostenibilidad\",'Adaptación-Ganadería'!$B$42=\"La actividad genera contribución sustancial a la sostenibilidad\"),\"La actividad sí contribuye sustancialmente a la sostenibilidad\",\"La actividad no contribuye sustancialmente a la sostenibilidad\"))),IF('Adaptación-Ganadería'!$D$8=\"Actividad adaptada\",(IF(OR('Adaptación-Ganadería'!$A$19=\"Por definir\",'Adaptación-Ganadería'!$A$25=\"Por definir\",'Adaptación-Ganadería'!$G$29=\"Por definir\",'Adaptación-Ganadería'!$A$36=\"Por definir\",'Adaptación-Ganadería'!$B$42=\"Por definir\"),\"No se han respondido todas las preguntas\",IF(AND('Adaptación-Ganadería'!$A$19=\"La actividad sí contribuye sustancialmente a la sostenibilidad\",'Adaptación-Ganadería'!$A$25=\"La actividad sí contribuye sustancialmente a la sostenibilidad\",'Adaptación-Ganadería'!$G$29=\"La actividad sí contribuye sustancialmente a la sostenbilidad\",'Adaptación-Ganadería'!$B$42=\"La actividad genera contribución sustancial a la sostenibilidad\"),\"La actividad sí contribuye sustancialmente a la sostenibilidad\",\"La actividad no contribuye sustancialmente a la sostenibilidad\"))),IF('Adaptación-Ganadería'!$D$8=\"Actividad que facilita la adaptación\",(IF(OR('Adaptación-Ganadería'!$A$36=\"Por definir\",'Adaptación-Ganadería'!$B$42=\"Por definir\"),\"No se han respondido todas las preguntas\",IF(AND('Adaptación-Ganadería'!$A$36=\"La actividad sí contribuye sustancialmente a la sostenibilidad\",'Adaptación-Ganadería'!$B$42=\"La actividad genera contribución sustancial a la sostenibilidad\"),\"La actividad sí contribuye sustancialmente a la sostenibilidad\",\"La actividad no contribuye sustancialmente a la sostenibilidad\"))))))","v":"No se han respondido todas las preguntas"},null,{"$f":"IF('Indice de género-Ganadería'!$E$82=\"Por definir\",\"No se han contestado todas las preguntas\",IF('Indice de género-Ganadería'!$E$82=\"Sí cumple con el índice de igualdad de género\",\"La actividad sí contribuye sustancialmente a la sostenibilidad\",\"La actividad no genera contribución sustancial\"))","v":"La actividad sí contribuye sustancialmente a la sostenibilidad"}]
["Ganadería","112410. Explotación de ovinos ",{"$f":"IF('Mitigación-Ganadería'!$A$22=\"Por definir\",\"No se han contestado todas las preguntas\",'Mitigación-Ganadería'!$A$22)","v":"La actividad no genera contribución sustancial"},{"$f":"IF('Adaptación-Ganadería'!$D$8=\"Actividad que facilita la adaptación e incluye desarrollo de infraestructura\",(IF(OR('Adaptación-Ganadería'!$A$19=\"Por definir\",'Adaptación-Ganadería'!$A$25=\"Por definir\",'Adaptación-Ganadería'!$G$29=\"Por definir\",'Adaptación-Ganadería'!$A$36=\"Por definir\",'Adaptación-Ganadería'!$B$42=\"Por definir\"),\"No se han respondido todas las preguntas\",IF(AND('Adaptación-Ganadería'!$A$19=\"La actividad sí contribuye sustancialmente a la sostenibilidad\",'Adaptación-Ganadería'!$A$25=\"La actividad sí contribuye sustancialmente a la sostenibilidad\",'Adaptación-Ganadería'!$G$29=\"La actividad sí contribuye sustancialmente a la sostenbilidad\",'Adaptación-Ganadería'!$A$36=\"La actividad sí contribuye sustancialmente a la sostenibilidad\",'Adaptación-Ganadería'!$B$42=\"La actividad genera contribución sustancial a la sostenibilidad\"),\"La actividad sí contribuye sustancialmente a la sostenibilidad\",\"La actividad no contribuye sustancialmente a la sostenibilidad\"))),IF('Adaptación-Ganadería'!$D$8=\"Actividad adaptada\",(IF(OR('Adaptación-Ganadería'!$A$19=\"Por definir\",'Adaptación-Ganadería'!$A$25=\"Por definir\",'Adaptación-Ganadería'!$G$29=\"Por definir\",'Adaptación-Ganadería'!$A$36=\"Por definir\",'Adaptación-Ganadería'!$B$42=\"Por definir\"),\"No se han respondido todas las preguntas\",IF(AND('Adaptación-Ganadería'!$A$19=\"La actividad sí contribuye sustancialmente a la sostenibilidad\",'Adaptación-Ganadería'!$A$25=\"La actividad sí contribuye sustancialmente a la sostenibilidad\",'Adaptación-Ganadería'!$G$29=\"La actividad sí contribuye sustancialmente a la sostenbilidad\",'Adaptación-Ganadería'!$B$42=\"La actividad genera contribución sustancial a la sostenibilidad\"),\"La actividad sí contribuye sustancialmente a la sostenibilidad\",\"La actividad no contribuye sustancialmente a la sostenibilidad\"))),IF('Adaptación-Ganadería'!$D$8=\"Actividad que facilita la adaptación\",(IF(OR('Adaptación-Ganadería'!$A$36=\"Por definir\",'Adaptación-Ganadería'!$B$42=\"Por definir\"),\"No se han respondido todas las preguntas\",IF(AND('Adaptación-Ganadería'!$A$36=\"La actividad sí contribuye sustancialmente a la sostenibilidad\",'Adaptación-Ganadería'!$B$42=\"La actividad genera contribución sustancial a la sostenibilidad\"),\"La actividad sí contribuye sustancialmente a la sostenibilidad\",\"La actividad no contribuye sustancialmente a la sostenibilidad\"))))))","v":"No se han respondido todas las preguntas"},null,{"$f":"IF('Indice de género-Ganadería'!$E$82=\"Por definir\",\"No se han contestado todas las preguntas\",IF('Indice de género-Ganadería'!$E$82=\"Sí cumple con el índice de igualdad de género\",\"La actividad sí contribuye sustancialmente a la sostenibilidad\",\"La actividad no genera contribución sustancial\"))","v":"La actividad sí contribuye sustancialmente a la sostenibilidad"}]
["Ganadería","112420. Explotación de caprinos ",{"$f":"IF('Mitigación-Ganadería'!$A$22=\"Por definir\",\"No se han contestado todas las preguntas\",'Mitigación-Ganadería'!$A$22)","v":"La actividad no genera contribución sustancial"},{"$f":"IF('Adaptación-Ganadería'!$D$8=\"Actividad que facilita la adaptación e incluye desarrollo de infraestructura\",(IF(OR('Adaptación-Ganadería'!$A$19=\"Por definir\",'Adaptación-Ganadería'!$A$25=\"Por definir\",'Adaptación-Ganadería'!$G$29=\"Por definir\",'Adaptación-Ganadería'!$A$36=\"Por definir\",'Adaptación-Ganadería'!$B$42=\"Por definir\"),\"No se han respondido todas las preguntas\",IF(AND('Adaptación-Ganadería'!$A$19=\"La actividad sí contribuye sustancialmente a la sostenibilidad\",'Adaptación-Ganadería'!$A$25=\"La actividad sí contribuye sustancialmente a la sostenibilidad\",'Adaptación-Ganadería'!$G$29=\"La actividad sí contribuye sustancialmente a la sostenbilidad\",'Adaptación-Ganadería'!$A$36=\"La actividad sí contribuye sustancialmente a la sostenibilidad\",'Adaptación-Ganadería'!$B$42=\"La actividad genera contribución sustancial a la sostenibilidad\"),\"La actividad sí contribuye sustancialmente a la sostenibilidad\",\"La actividad no contribuye sustancialmente a la sostenibilidad\"))),IF('Adaptación-Ganadería'!$D$8=\"Actividad adaptada\",(IF(OR('Adaptación-Ganadería'!$A$19=\"Por definir\",'Adaptación-Ganadería'!$A$25=\"Por definir\",'Adaptación-Ganadería'!$G$29=\"Por definir\",'Adaptación-Ganadería'!$A$36=\"Por definir\",'Adaptación-Ganadería'!$B$42=\"Por definir\"),\"No se han respondido todas las preguntas\",IF(AND('Adaptación-Ganadería'!$A$19=\"La actividad sí contribuye sustancialmente a la sostenibilidad\",'Adaptación-Ganadería'!$A$25=\"La actividad sí contribuye sustancialmente a la sostenibilidad\",'Adaptación-Ganadería'!$G$29=\"La actividad sí contribuye sustancialmente a la sostenbilidad\",'Adaptación-Ganadería'!$B$42=\"La actividad genera contribución sustancial a la sostenibilidad\"),\"La actividad sí contribuye sustancialmente a la sostenibilidad\",\"La actividad no contribuye sustancialmente a la sostenibilidad\"))),IF('Adaptación-Ganadería'!$D$8=\"Actividad que facilita la adaptación\",(IF(OR('Adaptación-Ganadería'!$A$36=\"Por definir\",'Adaptación-Ganadería'!$B$42=\"Por definir\"),\"No se han respondido todas las preguntas\",IF(AND('Adaptación-Ganadería'!$A$36=\"La actividad sí contribuye sustancialmente a la sostenibilidad\",'Adaptación-Ganadería'!$B$42=\"La actividad genera contribución sustancial a la sostenibilidad\"),\"La actividad sí contribuye sustancialmente a la sostenibilidad\",\"La actividad no contribuye sustancialmente a la sostenibilidad\"))))))","v":"No se han respondido todas las preguntas"},null,{"$f":"IF('Indice de género-Ganadería'!$E$82=\"Por definir\",\"No se han contestado todas las preguntas\",IF('Indice de género-Ganadería'!$E$82=\"Sí cumple con el índice de igualdad de género\",\"La actividad sí contribuye sustancialmente a la sostenibilidad\",\"La actividad no genera contribución sustancial\"))","v":"La actividad sí contribuye sustancialmente a la sostenibilidad"}]
["Ganadería","115210. Servicios relacionados con la cría y explotación de animales",{"$f":"IF('Mitigación-Ganadería'!$A$22=\"Por definir\",\"No se han contestado todas las preguntas\",'Mitigación-Ganadería'!$A$22)","v":"La actividad no genera contribución sustancial"},{"$f":"IF('Adaptación-Ganadería'!$D$8=\"Actividad que facilita la adaptación e incluye desarrollo de infraestructura\",(IF(OR('Adaptación-Ganadería'!$A$19=\"Por definir\",'Adaptación-Ganadería'!$A$25=\"Por definir\",'Adaptación-Ganadería'!$G$29=\"Por definir\",'Adaptación-Ganadería'!$A$36=\"Por definir\",'Adaptación-Ganadería'!$B$42=\"Por definir\"),\"No se han respondido todas las preguntas\",IF(AND('Adaptación-Ganadería'!$A$19=\"La actividad sí contribuye sustancialmente a la sostenibilidad\",'Adaptación-Ganadería'!$A$25=\"La actividad sí contribuye sustancialmente a la sostenibilidad\",'Adaptación-Ganadería'!$G$29=\"La actividad sí contribuye sustancialmente a la sostenbilidad\",'Adaptación-Ganadería'!$A$36=\"La actividad sí contribuye sustancialmente a la sostenibilidad\",'Adaptación-Ganadería'!$B$42=\"La actividad genera contribución sustancial a la sostenibilidad\"),\"La actividad sí contribuye sustancialmente a la sostenibilidad\",\"La actividad no contribuye sustancialmente a la sostenibilidad\"))),IF('Adaptación-Ganadería'!$D$8=\"Actividad adaptada\",(IF(OR('Adaptación-Ganadería'!$A$19=\"Por definir\",'Adaptación-Ganadería'!$A$25=\"Por definir\",'Adaptación-Ganadería'!$G$29=\"Por definir\",'Adaptación-Ganadería'!$A$36=\"Por definir\",'Adaptación-Ganadería'!$B$42=\"Por definir\"),\"No se han respondido todas las preguntas\",IF(AND('Adaptación-Ganadería'!$A$19=\"La actividad sí contribuye sustancialmente a la sostenibilidad\",'Adaptación-Ganadería'!$A$25=\"La actividad sí contribuye sustancialmente a la sostenibilidad\",'Adaptación-Ganadería'!$G$29=\"La actividad sí contribuye sustancialmente a la sostenbilidad\",'Adaptación-Ganadería'!$B$42=\"La actividad genera contribución sustancial a la sostenibilidad\"),\"La actividad sí contribuye sustancialmente a la sostenibilidad\",\"La actividad no contribuye sustancialmente a la sostenibilidad\"))),IF('Adaptación-Ganadería'!$D$8=\"Actividad que facilita la adaptación\",(IF(OR('Adaptación-Ganadería'!$A$36=\"Por definir\",'Adaptación-Ganadería'!$B$42=\"Por definir\"),\"No se han respondido todas las preguntas\",IF(AND('Adaptación-Ganadería'!$A$36=\"La actividad sí contribuye sustancialmente a la sostenibilidad\",'Adaptación-Ganadería'!$B$42=\"La actividad genera contribución sustancial a la sostenibilidad\"),\"La actividad sí contribuye sustancialmente a la sostenibilidad\",\"La actividad no contribuye sustancialmente a la sostenibilidad\"))))))","v":"No se han respondido todas las preguntas"},null,{"$f":"IF('Indice de género-Ganadería'!$E$82=\"Por definir\",\"No se han contestado todas las preguntas\",IF('Indice de género-Ganadería'!$E$82=\"Sí cumple con el índice de igualdad de género\",\"La actividad sí contribuye sustancialmente a la sostenibilidad\",\"La actividad no genera contribución sustancial\"))","v":"La actividad sí contribuye sustancialmente a la sostenibilidad"}]
["Forestal","113110. Silvicultura ",{"$f":"IF('Mitigación-Forestal'!E21=\"A\",IF('Mitigación-Forestal'!G25=\"Por favor, continua con las preguntas de abajo para conocer si el proyecto presenta contribución sustancial.\",'Mitigación-Forestal'!A34,'Mitigación-Forestal'!A26),IF('Mitigación-Forestal'!E21=\"B\",'Mitigación-Forestal'!A43,IF('Mitigación-Forestal'!E21=\"C\",'Mitigación-Forestal'!A50,IF('Mitigación-Forestal'!E21=\"A y B\",IF((COUNTIF('Mitigación-Forestal'!A34,\"La actividad sí contribuye sustancialmente a la sostenibilidad\")+COUNTIF('Mitigación-Forestal'!A43,\"La actividad sí contribuye sustancialmente a la sostenibilidad\"))<2,\"La actividad no genera contribución sustancial\",\"La actividad sí contribuye sustancialmente a la sostenibilidad\"),IF('Mitigación-Forestal'!E21=\"A y C\",IF((COUNTIF('Mitigación-Forestal'!A34,\"La actividad sí contribuye sustancialmente a la sostenibilidad\")+COUNTIF('Mitigación-Forestal'!A50,\"La actividad sí contribuye sustancialmente a la sostenibilidad\"))<2,\"La actividad no genera contribución sustancial\",\"La actividad sí contribuye sustancialmente a la sostenibilidad\"),IF('Mitigación-Forestal'!E21=\"B y C\",IF((COUNTIF('Mitigación-Forestal'!A43,\"La actividad sí contribuye sustancialmente a la sostenibilidad\")+COUNTIF('Mitigación-Forestal'!A50,\"La actividad sí contribuye sustancialmente a la sostenibilidad\"))<2,\"La actividad no genera contribución sustancial\",\"La actividad sí contribuye sustancialmente a la sostenibilidad\"),IF('Mitigación-Forestal'!E21=\"A B y C\",IF((COUNTIF('Mitigación-Forestal'!A43,\"La actividad sí contribuye sustancialmente a la sostenibilidad\")+COUNTIF('Mitigación-Forestal'!A50,\"La actividad sí contribuye sustancialmente a la sostenibilidad\")+COUNTIF('Mitigación-Forestal'!A34,\"La actividad sí contribuye sustancialmente a la sostenibilidad\"))<3,\"La actividad no genera contribución sustancial\",\"La actividad sí contribuye sustancialmente a la sostenibilidad\"),\"Por definir\")))))))","v":"La actividad sí contribuye sustancialmente a la sostenibilidad"},{"$f":"IF('Adaptación-Forestal'!$D$12=\"Actividad que facilita la adaptación e incluye desarrollo de infraestructura\",(IF(OR('Adaptación-Forestal'!$A$23=\"Por definir\",'Adaptación-Forestal'!$A$29=\"Por definir\",'Adaptación-Forestal'!$G$33=\"Por definir\",'Adaptación-Forestal'!$A$40=\"Por definir\"),\"No se han respondido todas las preguntas\",IF(AND('Adaptación-Forestal'!$A$23=\"La actividad sí contribuye sustancialmente a la sostenibilidad\",'Adaptación-Forestal'!$A$29=\"La actividad sí contribuye sustancialmente a la sostenibilidad\",'Adaptación-Forestal'!$G$33=\"La actividad sí contribuye sustancialmente a la sostenbilidad\",'Adaptación-Forestal'!$A$40=\"La actividad sí contribuye sustancialmente a la sostenibilidad\"),\"La actividad sí contribuye sustancialmente a la sostenibilidad\",\"La actividad no contribuye sustancialmente a la sostenibilidad\"))),IF('Adaptación-Forestal'!$D$12=\"Actividad adaptada\",(IF(OR('Adaptación-Forestal'!$A$23=\"Por definir\",'Adaptación-Forestal'!$A$29=\"Por definir\",'Adaptación-Forestal'!$G$33=\"Por definir\",'Adaptación-Forestal'!$A$40=\"Por definir\"),\"No se han respondido todas las preguntas\",IF(AND('Adaptación-Forestal'!$A$23=\"La actividad sí contribuye sustancialmente a la sostenibilidad\",'Adaptación-Forestal'!$A$29=\"La actividad sí contribuye sustancialmente a la sostenibilidad\",'Adaptación-Forestal'!$G$33=\"La actividad sí contribuye sustancialmente a la sostenbilidad\"),\"La actividad sí contribuye sustancialmente a la sostenibilidad\",\"La actividad no contribuye sustancialmente a la sostenibilidad\"))),IF('Adaptación-Forestal'!$D$12=\"Actividad que facilita la adaptación\",(IF(OR('Adaptación-Forestal'!$A$40=\"Por definir\"),\"No se han respondido todas las preguntas\",IF(AND('Adaptación-Forestal'!$A$40=\"La actividad sí contribuye sustancialmente a la sostenibilidad\"),\"La actividad sí contribuye sustancialmente a la sostenibilidad\",\"La actividad no contribuye sustancialmente a la sostenibilidad\"))))))","v":"La actividad sí contribuye sustancialmente a la sostenibilidad"},null,{"$f":"IF('Indice de género-Forestal'!$E$82=\"Por definir\",\"No se han contestado todas las preguntas\",IF('Indice de género-Forestal'!$E$82=\"Sí cumple con el índice de igualdad de género\",\"La actividad sí contribuye sustancialmente a la sostenibilidad\",\"La actividad no genera contribución sustancial\"))","v":"No se han contestado todas las preguntas"}]
["Forestal","113211. Viveros forestales",{"$f":"IF('Mitigación-Forestal'!A$64=\"Por definir\",\"No se han contestado todas las preguntas\",'Mitigación-Forestal'!A$64)","v":"La actividad sí contribuye sustancialmente a la sostenibilidad"},{"$f":"IF('Adaptación-Forestal'!$D$46=\"Actividad que facilita la adaptación e incluye desarrollo de infraestructura\",(IF(OR('Adaptación-Forestal'!$A$57=\"Por definir\",'Adaptación-Forestal'!$A$63=\"Por definir\",'Adaptación-Forestal'!$G$67=\"Por definir\",'Adaptación-Forestal'!$A$74=\"Por definir\"),\"No se han respondido todas las preguntas\",IF(AND('Adaptación-Forestal'!$A$57=\"La actividad sí contribuye sustancialmente a la sostenibilidad\",'Adaptación-Forestal'!$A$63=\"La actividad sí contribuye sustancialmente a la sostenibilidad\",'Adaptación-Forestal'!$G$67=\"La actividad sí contribuye sustancialmente a la sostenbilidad\",'Adaptación-Forestal'!$A$74=\"La actividad sí contribuye sustancialmente a la sostenibilidad\"),\"La actividad sí contribuye sustancialmente a la sostenibilidad\",\"La actividad no contribuye sustancialmente a la sostenibilidad\"))),IF('Adaptación-Forestal'!$D$46=\"Actividad adaptada\",(IF(OR('Adaptación-Forestal'!$A$57=\"Por definir\",'Adaptación-Forestal'!$A$63=\"Por definir\",'Adaptación-Forestal'!$G$67=\"Por definir\",'Adaptación-Forestal'!$A$74=\"Por definir\"),\"No se han respondido todas las preguntas\",IF(AND('Adaptación-Forestal'!$A$57=\"La actividad sí contribuye sustancialmente a la sostenibilidad\",'Adaptación-Forestal'!$A$63=\"La actividad sí contribuye sustancialmente a la sostenibilidad\",'Adaptación-Forestal'!$G$67=\"La actividad sí contribuye sustancialmente a la sostenbilidad\"),\"La actividad sí contribuye sustancialmente a la sostenibilidad\",\"La actividad no contribuye sustancialmente a la sostenibilidad\"))),IF('Adaptación-Forestal'!$D$46=\"Actividad que facilita la adaptación\",(IF(OR('Adaptación-Forestal'!$A$74=\"Por definir\"),\"No se han respondido todas las preguntas\",IF(AND('Adaptación-Forestal'!$A$74=\"La actividad sí contribuye sustancialmente a la sostenibilidad\"),\"La actividad sí contribuye sustancialmente a la sostenibilidad\",\"La actividad no contribuye sustancialmente a la sostenibilidad\"))))))","v":"La actividad sí contribuye sustancialmente a la sostenibilidad"},null,{"$f":"IF('Indice de género-Forestal'!$E$82=\"Por definir\",\"No se han contestado todas las preguntas\",IF('Indice de género-Forestal'!$E$82=\"Sí cumple con el índice de igualdad de género\",\"La actividad sí contribuye sustancialmente a la sostenibilidad\",\"La actividad no genera contribución sustancial\"))","v":"No se han contestado todas las preguntas"}]
["Forestal","113212. Aprovechamiento de recursos forestales no maderables (Recolección de productos forestales sensu SCIAN) ",{"$f":"IF('Mitigación-Forestal'!E21=\"A\",IF('Mitigación-Forestal'!G25=\"Por favor, continua con las preguntas de abajo para conocer si el proyecto presenta contribución sustancial.\",'Mitigación-Forestal'!A34,'Mitigación-Forestal'!A26),IF('Mitigación-Forestal'!E21=\"B\",'Mitigación-Forestal'!A43,IF('Mitigación-Forestal'!E21=\"C\",'Mitigación-Forestal'!A50,IF('Mitigación-Forestal'!E21=\"A y B\",IF((COUNTIF('Mitigación-Forestal'!A34,\"La actividad sí contribuye sustancialmente a la sostenibilidad\")+COUNTIF('Mitigación-Forestal'!A43,\"La actividad sí contribuye sustancialmente a la sostenibilidad\"))<2,\"La actividad no genera contribución sustancial\",\"La actividad sí contribuye sustancialmente a la sostenibilidad\"),IF('Mitigación-Forestal'!E21=\"A y C\",IF((COUNTIF('Mitigación-Forestal'!A34,\"La actividad sí contribuye sustancialmente a la sostenibilidad\")+COUNTIF('Mitigación-Forestal'!A50,\"La actividad sí contribuye sustancialmente a la sostenibilidad\"))<2,\"La actividad no genera contribución sustancial\",\"La actividad sí contribuye sustancialmente a la sostenibilidad\"),IF('Mitigación-Forestal'!E21=\"B y C\",IF((COUNTIF('Mitigación-Forestal'!A43,\"La actividad sí contribuye sustancialmente a la sostenibilidad\")+COUNTIF('Mitigación-Forestal'!A50,\"La actividad sí contribuye sustancialmente a la sostenibilidad\"))<2,\"La actividad no genera contribución sustancial\",\"La actividad sí contribuye sustancialmente a la sostenibilidad\"),IF('Mitigación-Forestal'!E21=\"A B y C\",IF((COUNTIF('Mitigación-Forestal'!A43,\"La actividad sí contribuye sustancialmente a la sostenibilidad\")+COUNTIF('Mitigación-Forestal'!A50,\"La actividad sí contribuye sustancialmente a la sostenibilidad\")+COUNTIF('Mitigación-Forestal'!A34,\"La actividad sí contribuye sustancialmente a la sostenibilidad\"))<3,\"La actividad no genera contribución sustancial\",\"La actividad sí contribuye sustancialmente a la sostenibilidad\"),\"Por definir\")))))))","v":"La actividad sí contribuye sustancialmente a la sostenibilidad"},{"$f":"IF('Adaptación-Forestal'!$D$12=\"Actividad que facilita la adaptación e incluye desarrollo de infraestructura\",(IF(OR('Adaptación-Forestal'!$A$23=\"Por definir\",'Adaptación-Forestal'!$A$29=\"Por definir\",'Adaptación-Forestal'!$G$33=\"Por definir\",'Adaptación-Forestal'!$A$40=\"Por definir\"),\"No se han respondido todas las preguntas\",IF(AND('Adaptación-Forestal'!$A$23=\"La actividad sí contribuye sustancialmente a la sostenibilidad\",'Adaptación-Forestal'!$A$29=\"La actividad sí contribuye sustancialmente a la sostenibilidad\",'Adaptación-Forestal'!$G$33=\"La actividad sí contribuye sustancialmente a la sostenbilidad\",'Adaptación-Forestal'!$A$40=\"La actividad sí contribuye sustancialmente a la sostenibilidad\"),\"La actividad sí contribuye sustancialmente a la sostenibilidad\",\"La actividad no contribuye sustancialmente a la sostenibilidad\"))),IF('Adaptación-Forestal'!$D$12=\"Actividad adaptada\",(IF(OR('Adaptación-Forestal'!$A$23=\"Por definir\",'Adaptación-Forestal'!$A$29=\"Por definir\",'Adaptación-Forestal'!$G$33=\"Por definir\",'Adaptación-Forestal'!$A$40=\"Por definir\"),\"No se han respondido todas las preguntas\",IF(AND('Adaptación-Forestal'!$A$23=\"La actividad sí contribuye sustancialmente a la sostenibilidad\",'Adaptación-Forestal'!$A$29=\"La actividad sí contribuye sustancialmente a la sostenibilidad\",'Adaptación-Forestal'!$G$33=\"La actividad sí contribuye sustancialmente a la sostenbilidad\"),\"La actividad sí contribuye sustancialmente a la sostenibilidad\",\"La actividad no contribuye sustancialmente a la sostenibilidad\"))),IF('Adaptación-Forestal'!$D$12=\"Actividad que facilita la adaptación\",(IF(OR('Adaptación-Forestal'!$A$40=\"Por definir\"),\"No se han respondido todas las preguntas\",IF(AND('Adaptación-Forestal'!$A$40=\"La actividad sí contribuye sustancialmente a la sostenibilidad\"),\"La actividad sí contribuye sustancialmente a la sostenibilidad\",\"La actividad no contribuye sustancialmente a la sostenibilidad\"))))))","v":"La actividad sí contribuye sustancialmente a la sostenibilidad"},null,{"$f":"IF('Indice de género-Forestal'!$E$82=\"Por definir\",\"No se han contestado todas las preguntas\",IF('Indice de género-Forestal'!$E$82=\"Sí cumple con el índice de igualdad de género\",\"La actividad sí contribuye sustancialmente a la sostenibilidad\",\"La actividad no genera contribución sustancial\"))","v":"No se han contestado todas las preguntas"}]
["Forestal","113310. Aprovechamiento de recursos forestales maderables (Tala de árboles sensu SCIAN) ",{"$f":"IF('Mitigación-Forestal'!E21=\"A\",IF('Mitigación-Forestal'!G25=\"Por favor, continua con las preguntas de abajo para conocer si el proyecto presenta contribución sustancial.\",'Mitigación-Forestal'!A34,'Mitigación-Forestal'!A26),IF('Mitigación-Forestal'!E21=\"B\",'Mitigación-Forestal'!A43,IF('Mitigación-Forestal'!E21=\"C\",'Mitigación-Forestal'!A50,IF('Mitigación-Forestal'!E21=\"A y B\",IF((COUNTIF('Mitigación-Forestal'!A34,\"La actividad sí contribuye sustancialmente a la sostenibilidad\")+COUNTIF('Mitigación-Forestal'!A43,\"La actividad sí contribuye sustancialmente a la sostenibilidad\"))<2,\"La actividad no genera contribución sustancial\",\"La actividad sí contribuye sustancialmente a la sostenibilidad\"),IF('Mitigación-Forestal'!E21=\"A y C\",IF((COUNTIF('Mitigación-Forestal'!A34,\"La actividad sí contribuye sustancialmente a la sostenibilidad\")+COUNTIF('Mitigación-Forestal'!A50,\"La actividad sí contribuye sustancialmente a la sostenibilidad\"))<2,\"La actividad no genera contribución sustancial\",\"La actividad sí contribuye sustancialmente a la sostenibilidad\"),IF('Mitigación-Forestal'!E21=\"B y C\",IF((COUNTIF('Mitigación-Forestal'!A43,\"La actividad sí contribuye sustancialmente a la sostenibilidad\")+COUNTIF('Mitigación-Forestal'!A50,\"La actividad sí contribuye sustancialmente a la sostenibilidad\"))<2,\"La actividad no genera contribución sustancial\",\"La actividad sí contribuye sustancialmente a la sostenibilidad\"),IF('Mitigación-Forestal'!E21=\"A B y C\",IF((COUNTIF('Mitigación-Forestal'!A43,\"La actividad sí contribuye sustancialmente a la sostenibilidad\")+COUNTIF('Mitigación-Forestal'!A50,\"La actividad sí contribuye sustancialmente a la sostenibilidad\")+COUNTIF('Mitigación-Forestal'!A34,\"La actividad sí contribuye sustancialmente a la sostenibilidad\"))<3,\"La actividad no genera contribución sustancial\",\"La actividad sí contribuye sustancialmente a la sostenibilidad\"),\"Por definir\")))))))","v":"La actividad sí contribuye sustancialmente a la sostenibilidad"},{"$f":"IF('Adaptación-Forestal'!$D$12=\"Actividad que facilita la adaptación e incluye desarrollo de infraestructura\",(IF(OR('Adaptación-Forestal'!$A$23=\"Por definir\",'Adaptación-Forestal'!$A$29=\"Por definir\",'Adaptación-Forestal'!$G$33=\"Por definir\",'Adaptación-Forestal'!$A$40=\"Por definir\"),\"No se han respondido todas las preguntas\",IF(AND('Adaptación-Forestal'!$A$23=\"La actividad sí contribuye sustancialmente a la sostenibilidad\",'Adaptación-Forestal'!$A$29=\"La actividad sí contribuye sustancialmente a la sostenibilidad\",'Adaptación-Forestal'!$G$33=\"La actividad sí contribuye sustancialmente a la sostenbilidad\",'Adaptación-Forestal'!$A$40=\"La actividad sí contribuye sustancialmente a la sostenibilidad\"),\"La actividad sí contribuye sustancialmente a la sostenibilidad\",\"La actividad no contribuye sustancialmente a la sostenibilidad\"))),IF('Adaptación-Forestal'!$D$12=\"Actividad adaptada\",(IF(OR('Adaptación-Forestal'!$A$23=\"Por definir\",'Adaptación-Forestal'!$A$29=\"Por definir\",'Adaptación-Forestal'!$G$33=\"Por definir\",'Adaptación-Forestal'!$A$40=\"Por definir\"),\"No se han respondido todas las preguntas\",IF(AND('Adaptación-Forestal'!$A$23=\"La actividad sí contribuye sustancialmente a la sostenibilidad\",'Adaptación-Forestal'!$A$29=\"La actividad sí contribuye sustancialmente a la sostenibilidad\",'Adaptación-Forestal'!$G$33=\"La actividad sí contribuye sustancialmente a la sostenbilidad\"),\"La actividad sí contribuye sustancialmente a la sostenibilidad\",\"La actividad no contribuye sustancialmente a la sostenibilidad\"))),IF('Adaptación-Forestal'!$D$12=\"Actividad que facilita la adaptación\",(IF(OR('Adaptación-Forestal'!$A$40=\"Por definir\"),\"No se han respondido todas las preguntas\",IF(AND('Adaptación-Forestal'!$A$40=\"La actividad sí contribuye sustancialmente a la sostenibilidad\"),\"La actividad sí contribuye sustancialmente a la sostenibilidad\",\"La actividad no contribuye sustancialmente a la sostenibilidad\"))))))","v":"La actividad sí contribuye sustancialmente a la sostenibilidad"},null,{"$f":"IF('Indice de género-Forestal'!$E$82=\"Por definir\",\"No se han contestado todas las preguntas\",IF('Indice de género-Forestal'!$E$82=\"Sí cumple con el índice de igualdad de género\",\"La actividad sí contribuye sustancialmente a la sostenibilidad\",\"La actividad no genera contribución sustancial\"))","v":"No se han contestado todas las preguntas"}]
["Energía","221112. Generación de electricidad a partir de energía hidráulica ",{"$f":"IF('Mitigación-Energía'!A10=\"Por definir\",\"No se han respondido todas las preguntas\",'Mitigación-Energía'!A10)","v":"No se han respondido todas las preguntas"},{"$f":"IF('Adaptación-Energía'!$D$9=\"Actividad que facilita la adaptación e incluye desarrollo de infraestructura\",(IF(OR('Adaptación-Energía'!$A$20=\"Por definir\",'Adaptación-Energía'!$A$26=\"Por definir\",'Adaptación-Energía'!$G$30=\"Por definir\",'Adaptación-Energía'!$A$37=\"Por definir\"),\"No se han respondido todas las preguntas\",IF(AND('Adaptación-Energía'!$A$20=\"La actividad sí contribuye sustancialmente a la sostenibilidad\",'Adaptación-Energía'!$A$26=\"La actividad sí contribuye sustancialmente a la sostenibilidad\",'Adaptación-Energía'!$G$30=\"La actividad sí contribuye sustancialmente a la sostenbilidad\",'Adaptación-Energía'!$A$37=\"La actividad sí contribuye sustancialmente a la sostenibilidad\"),\"La actividad sí contribuye sustancialmente a la sostenibilidad\",\"La actividad no contribuye sustancialmente a la sostenibilidad\"))),IF('Adaptación-Energía'!$D$9=\"Actividad adaptada\",(IF(OR('Adaptación-Energía'!$A$20=\"Por definir\",'Adaptación-Energía'!$A$26=\"Por definir\",'Adaptación-Energía'!$G$30=\"Por definir\",'Adaptación-Energía'!$A$37=\"Por definir\"),\"No se han respondido todas las preguntas\",IF(AND('Adaptación-Energía'!$A$20=\"La actividad sí contribuye sustancialmente a la sostenibilidad\",'Adaptación-Energía'!$A$26=\"La actividad sí contribuye sustancialmente a la sostenibilidad\",'Adaptación-Energía'!$G$30=\"La actividad sí contribuye sustancialmente a la sostenbilidad\"),\"La actividad sí contribuye sustancialmente a la sostenibilidad\",\"La actividad no contribuye sustancialmente a la sostenibilidad\"))),IF('Adaptación-Energía'!$D$9=\"Actividad que facilita la adaptación\",(IF(OR('Adaptación-Energía'!$A$37=\"Por definir\"),\"No se han respondido todas las preguntas\",IF(AND('Adaptación-Energía'!$A$37=\"La actividad sí contribuye sustancialmente a la sostenibilidad\"),\"La actividad sí contribuye sustancialmente a la sostenibilidad\",\"La actividad no contribuye sustancialmente a la sostenibilidad\"))))))","v":"La actividad sí contribuye sustancialmente a la sostenibilidad"},null,{"$f":"IF('Indice de género-Energía'!$E$82=\"Por definir\",\"No se han contestado todas las preguntas\",IF('Indice de género-Energía'!$E$82=\"Sí cumple con el índice de igualdad de género\",\"La actividad sí contribuye sustancialmente a la sostenibilidad\",\"La actividad no genera contribución sustancial\"))","v":"La actividad sí contribuye sustancialmente a la sostenibilidad"}]
["Energía","221113. Generación de electricidad a partir de energía solar (concentradores solares) ",{"$f":"IF('Mitigación-Energía'!A17=\"La actividad es directamente elegible como actividad con contribución sustancial a la sostenibilidad y\"&\" no deberá presentar un análisis de ciclo de vida o huella de carbono. En caso necesario, se llevará a cabo una revisión periódica de acuerdo con el umbral ≤ 100 g de CO2e/kWh.\",\"La actividad sí contribuye sustancialmente a la sostenibilidad\",\"La actividad no genera contribución sustancial\")","v":"La actividad sí contribuye sustancialmente a la sostenibilidad"},{"$f":"IF('Adaptación-Energía'!$D$75=\"Actividad que facilita la adaptación e incluye desarrollo de infraestructura\",(IF(OR('Adaptación-Energía'!$A$86=\"Por definir\",'Adaptación-Energía'!$A$92=\"Por definir\",'Adaptación-Energía'!$G$96=\"Por definir\",'Adaptación-Energía'!$A$103=\"Por definir\"),\"No se han respondido todas las preguntas\",IF(AND('Adaptación-Energía'!$A$86=\"La actividad sí contribuye sustancialmente a la sostenibilidad\",'Adaptación-Energía'!$A$92=\"La actividad sí contribuye sustancialmente a la sostenibilidad\",'Adaptación-Energía'!$G$96=\"La actividad sí contribuye sustancialmente a la sostenbilidad\",'Adaptación-Energía'!$A$103=\"La actividad sí contribuye sustancialmente a la sostenibilidad\"),\"La actividad sí contribuye sustancialmente a la sostenibilidad\",\"La actividad no contribuye sustancialmente a la sostenibilidad\"))),IF('Adaptación-Energía'!$D$75=\"Actividad adaptada\",(IF(OR('Adaptación-Energía'!$A$86=\"Por definir\",'Adaptación-Energía'!$A$92=\"Por definir\",'Adaptación-Energía'!$G$96=\"Por definir\",'Adaptación-Energía'!$A$103=\"Por definir\"),\"No se han respondido todas las preguntas\",IF(AND('Adaptación-Energía'!$A$86=\"La actividad sí contribuye sustancialmente a la sostenibilidad\",'Adaptación-Energía'!$A$92=\"La actividad sí contribuye sustancialmente a la sostenibilidad\",'Adaptación-Energía'!$G$96=\"La actividad sí contribuye sustancialmente a la sostenbilidad\"),\"La actividad sí contribuye sustancialmente a la sostenibilidad\",\"La actividad no contribuye sustancialmente a la sostenibilidad\"))),IF('Adaptación-Energía'!$D$75=\"Actividad que facilita la adaptación\",(IF(OR('Adaptación-Energía'!$A$103=\"Por definir\"),\"No se han respondido todas las preguntas\",IF(AND('Adaptación-Energía'!$A$103=\"La actividad sí contribuye sustancialmente a la sostenibilidad\"),\"La actividad sí contribuye sustancialmente a la sostenibilidad\",\"La actividad no contribuye sustancialmente a la sostenibilidad\"))))))","v":"La actividad sí contribuye sustancialmente a la sostenibilidad"},null,{"$f":"IF('Indice de género-Energía'!$E$82=\"Por definir\",\"No se han contestado todas las preguntas\",IF('Indice de género-Energía'!$E$82=\"Sí cumple con el índice de igualdad de género\",\"La actividad sí contribuye sustancialmente a la sostenibilidad\",\"La actividad no genera contribución sustancial\"))","v":"La actividad sí contribuye sustancialmente a la sostenibilidad"}]
["Energía","221113. Generación de electricidad a partir de energía solar (sistemas fotovoltaicos) ",{"$f":"IF('Mitigación-Energía'!A14=\"La actividad es directamente elegible como actividad con contribución sustancial a la sostenibilidad y\"&\" no deberá presentar un análisis de ciclo de vida o huella de carbono. En caso necesario, se llevará a cabo una revisión periódica de acuerdo con el umbral ≤ 100 g de CO2e/kWh.\",\"La actividad sí contribuye sustancialmente a la sostenibilidad\",\"La actividad no genera contribución sustancial\")","v":"La actividad sí contribuye sustancialmente a la sostenibilidad"},{"$f":"IF('Adaptación-Energía'!$D$42=\"Actividad que facilita la adaptación e incluye desarrollo de infraestructura\",(IF(OR('Adaptación-Energía'!$A$53=\"Por definir\",'Adaptación-Energía'!$A$59=\"Por definir\",'Adaptación-Energía'!$G$63=\"Por definir\",'Adaptación-Energía'!$A$70=\"Por definir\"),\"No se han respondido todas las preguntas\",IF(AND('Adaptación-Energía'!$A$53=\"La actividad sí contribuye sustancialmente a la sostenibilidad\",'Adaptación-Energía'!$A$59=\"La actividad sí contribuye sustancialmente a la sostenibilidad\",'Adaptación-Energía'!$G$63=\"La actividad sí contribuye sustancialmente a la sostenbilidad\",'Adaptación-Energía'!$A$70=\"La actividad sí contribuye sustancialmente a la sostenibilidad\"),\"La actividad sí contribuye sustancialmente a la sostenibilidad\",\"La actividad no contribuye sustancialmente a la sostenibilidad\"))),IF('Adaptación-Energía'!$D$42=\"Actividad adaptada\",(IF(OR('Adaptación-Energía'!$A$53=\"Por definir\",'Adaptación-Energía'!$A$59=\"Por definir\",'Adaptación-Energía'!$G$63=\"Por definir\",'Adaptación-Energía'!$A$70=\"Por definir\"),\"No se han respondido todas las preguntas\",IF(AND('Adaptación-Energía'!$A$53=\"La actividad sí contribuye sustancialmente a la sostenibilidad\",'Adaptación-Energía'!$A$59=\"La actividad sí contribuye sustancialmente a la sostenibilidad\",'Adaptación-Energía'!$G$63=\"La actividad sí contribuye sustancialmente a la sostenbilidad\"),\"La actividad sí contribuye sustancialmente a la sostenibilidad\",\"La actividad no contribuye sustancialmente a la sostenibilidad\"))),IF('Adaptación-Energía'!$D$42=\"Actividad que facilita la adaptación\",(IF(OR('Adaptación-Energía'!$A$70=\"Por definir\"),\"No se han respondido todas las preguntas\",IF(AND('Adaptación-Energía'!$A$70=\"La actividad sí contribuye sustancialmente a la sostenibilidad\"),\"La actividad sí contribuye sustancialmente a la sostenibilidad\",\"La actividad no contribuye sustancialmente a la sostenibilidad\"))))))","v":"La actividad sí contribuye sustancialmente a la sostenibilidad"},null,{"$f":"IF('Indice de género-Energía'!$E$82=\"Por definir\",\"No se han contestado todas las preguntas\",IF('Indice de género-Energía'!$E$82=\"Sí cumple con el índice de igualdad de género\",\"La actividad sí contribuye sustancialmente a la sostenibilidad\",\"La actividad no genera contribución sustancial\"))","v":"La actividad sí contribuye sustancialmente a la sostenibilidad"}]
["Energía","221114. Generación de electricidad a partir de energía eólica ",{"$f":"IF('Mitigación-Energía'!A20=\"La actividad es directamente elegible como actividad con contribución sustancial a la sostenibilidad y\"&\" no deberá presentar un análisis de ciclo de vida o huella de carbono. En caso necesario, se llevará a cabo una revisión periódica de acuerdo con el umbral ≤ 100 g de CO2e/kWh.\",\"La actividad sí contribuye sustancialmente a la sostenibilidad\",\"La actividad no genera contribución sustancial\")","v":"La actividad sí contribuye sustancialmente a la sostenibilidad"},{"$f":"IF('Adaptación-Energía'!$D$108=\"Actividad que facilita la adaptación e incluye desarrollo de infraestructura\",(IF(OR('Adaptación-Energía'!$A$119=\"Por definir\",'Adaptación-Energía'!$A$125=\"Por definir\",'Adaptación-Energía'!$G$129=\"Por definir\",'Adaptación-Energía'!$A$136=\"Por definir\"),\"No se han respondido todas las preguntas\",IF(AND('Adaptación-Energía'!$A$119=\"La actividad sí contribuye sustancialmente a la sostenibilidad\",'Adaptación-Energía'!$A$125=\"La actividad sí contribuye sustancialmente a la sostenibilidad\",'Adaptación-Energía'!$G$129=\"La actividad sí contribuye sustancialmente a la sostenbilidad\",'Adaptación-Energía'!$A$136=\"La actividad sí contribuye sustancialmente a la sostenibilidad\"),\"La actividad sí contribuye sustancialmente a la sostenibilidad\",\"La actividad no contribuye sustancialmente a la sostenibilidad\"))),IF('Adaptación-Energía'!$D$108=\"Actividad adaptada\",(IF(OR('Adaptación-Energía'!$A$119=\"Por definir\",'Adaptación-Energía'!$A$125=\"Por definir\",'Adaptación-Energía'!$G$129=\"Por definir\",'Adaptación-Energía'!$A$136=\"Por definir\"),\"No se han respondido todas las preguntas\",IF(AND('Adaptación-Energía'!$A$119=\"La actividad sí contribuye sustancialmente a la sostenibilidad\",'Adaptación-Energía'!$A$125=\"La actividad sí contribuye sustancialmente a la sostenibilidad\",'Adaptación-Energía'!$G$129=\"La actividad sí contribuye sustancialmente a la sostenbilidad\"),\"La actividad sí contribuye sustancialmente a la sostenibilidad\",\"La actividad no contribuye sustancialmente a la sostenibilidad\"))),IF('Adaptación-Energía'!$D$108=\"Actividad que facilita la adaptación\",(IF(OR('Adaptación-Energía'!$A$136=\"Por definir\"),\"No se han respondido todas las preguntas\",IF(AND('Adaptación-Energía'!$A$136=\"La actividad sí contribuye sustancialmente a la sostenibilidad\"),\"La actividad sí contribuye sustancialmente a la sostenibilidad\",\"La actividad no contribuye sustancialmente a la sostenibilidad\"))))))","v":"La actividad sí contribuye sustancialmente a la sostenibilidad"},null,{"$f":"IF('Indice de género-Energía'!$E$82=\"Por definir\",\"No se han contestado todas las preguntas\",IF('Indice de género-Energía'!$E$82=\"Sí cumple con el índice de igualdad de género\",\"La actividad sí contribuye sustancialmente a la sostenibilidad\",\"La actividad no genera contribución sustancial\"))","v":"La actividad sí contribuye sustancialmente a la sostenibilidad"}]
["Energía","221119. Generación de electricidad a partir de otro tipo de energía (bioenergía) ",{"$f":"'Mitigación-Energía'!E26","v":"Por definir"},{"$f":"IF('Adaptación-Energía'!$D$174=\"Actividad que facilita la adaptación e incluye desarrollo de infraestructura\",(IF(OR('Adaptación-Energía'!$A$185=\"Por definir\",'Adaptación-Energía'!$A$191=\"Por definir\",'Adaptación-Energía'!$G$195=\"Por definir\",'Adaptación-Energía'!$A$202=\"Por definir\"),\"No se han respondido todas las preguntas\",IF(AND('Adaptación-Energía'!$A$185=\"La actividad sí contribuye sustancialmente a la sostenibilidad\",'Adaptación-Energía'!$A$191=\"La actividad sí contribuye sustancialmente a la sostenibilidad\",'Adaptación-Energía'!$G$195=\"La actividad sí contribuye sustancialmente a la sostenbilidad\",'Adaptación-Energía'!$A$202=\"La actividad sí contribuye sustancialmente a la sostenibilidad\"),\"La actividad sí contribuye sustancialmente a la sostenibilidad\",\"La actividad no contribuye sustancialmente a la sostenibilidad\"))),IF('Adaptación-Energía'!$D$174=\"Actividad adaptada\",(IF(OR('Adaptación-Energía'!$A$185=\"Por definir\",'Adaptación-Energía'!$A$191=\"Por definir\",'Adaptación-Energía'!$G$195=\"Por definir\",'Adaptación-Energía'!$A$202=\"Por definir\"),\"No se han respondido todas las preguntas\",IF(AND('Adaptación-Energía'!$A$185=\"La actividad sí contribuye sustancialmente a la sostenibilidad\",'Adaptación-Energía'!$A$191=\"La actividad sí contribuye sustancialmente a la sostenibilidad\",'Adaptación-Energía'!$G$195=\"La actividad sí contribuye sustancialmente a la sostenbilidad\"),\"La actividad sí contribuye sustancialmente a la sostenibilidad\",\"La actividad no contribuye sustancialmente a la sostenibilidad\"))),IF('Adaptación-Energía'!$D$174=\"Actividad que facilita la adaptación\",(IF(OR('Adaptación-Energía'!$A$202=\"Por definir\"),\"No se han respondido todas las preguntas\",IF(AND('Adaptación-Energía'!$A$202=\"La actividad sí contribuye sustancialmente a la sostenibilidad\"),\"La actividad sí contribuye sustancialmente a la sostenibilidad\",\"La actividad no contribuye sustancialmente a la sostenibilidad\"))))))","v":"La actividad sí contribuye sustancialmente a la sostenibilidad"},null,{"$f":"IF('Indice de género-Energía'!$E$82=\"Por definir\",\"No se han contestado todas las preguntas\",IF('Indice de género-Energía'!$E$82=\"Sí cumple con el índice de igualdad de género\",\"La actividad sí contribuye sustancialmente a la sostenibilidad\",\"La actividad no genera contribución sustancial\"))","v":"La actividad sí contribuye sustancialmente a la sostenibilidad"}]
["Energía","221119. Generación de electricidad a partir de otro tipo de energía (cogeneración a partir de biomasa) ",{"$f":"'Mitigación-Energía'!E29","v":"Por definir"},{"$f":"IF('Adaptación-Energía'!$D$207=\"Actividad que facilita la adaptación e incluye desarrollo de infraestructura\",(IF(OR('Adaptación-Energía'!$A$218=\"Por definir\",'Adaptación-Energía'!$A$224=\"Por definir\",'Adaptación-Energía'!$G$228=\"Por definir\",'Adaptación-Energía'!$A$235=\"Por definir\"),\"No se han respondido todas las preguntas\",IF(AND('Adaptación-Energía'!$A$218=\"La actividad sí contribuye sustancialmente a la sostenibilidad\",'Adaptación-Energía'!$A$224=\"La actividad sí contribuye sustancialmente a la sostenibilidad\",'Adaptación-Energía'!$G$228=\"La actividad sí contribuye sustancialmente a la sostenbilidad\",'Adaptación-Energía'!$A$235=\"La actividad sí contribuye sustancialmente a la sostenibilidad\"),\"La actividad sí contribuye sustancialmente a la sostenibilidad\",\"La actividad no contribuye sustancialmente a la sostenibilidad\"))),IF('Adaptación-Energía'!$D$207=\"Actividad adaptada\",(IF(OR('Adaptación-Energía'!$A$218=\"Por definir\",'Adaptación-Energía'!$A$224=\"Por definir\",'Adaptación-Energía'!$G$228=\"Por definir\",'Adaptación-Energía'!$A$235=\"Por definir\"),\"No se han respondido todas las preguntas\",IF(AND('Adaptación-Energía'!$A$218=\"La actividad sí contribuye sustancialmente a la sostenibilidad\",'Adaptación-Energía'!$A$224=\"La actividad sí contribuye sustancialmente a la sostenibilidad\",'Adaptación-Energía'!$G$228=\"La actividad sí contribuye sustancialmente a la sostenbilidad\"),\"La actividad sí contribuye sustancialmente a la sostenibilidad\",\"La actividad no contribuye sustancialmente a la sostenibilidad\"))),IF('Adaptación-Energía'!$D$207=\"Actividad que facilita la adaptación\",(IF(OR('Adaptación-Energía'!$A$235=\"Por definir\"),\"No se han respondido todas las preguntas\",IF(AND('Adaptación-Energía'!$A$235=\"La actividad sí contribuye sustancialmente a la sostenibilidad\"),\"La actividad sí contribuye sustancialmente a la sostenibilidad\",\"La actividad no contribuye sustancialmente a la sostenibilidad\"))))))","v":"La actividad sí contribuye sustancialmente a la sostenibilidad"},null,{"$f":"IF('Indice de género-Energía'!$E$82=\"Por definir\",\"No se han contestado todas las preguntas\",IF('Indice de género-Energía'!$E$82=\"Sí cumple con el índice de igualdad de género\",\"La actividad sí contribuye sustancialmente a la sostenibilidad\",\"La actividad no genera contribución sustancial\"))","v":"La actividad sí contribuye sustancialmente a la sostenibilidad"}]
["Energía","221119. Generación de electricidad a partir de otro tipo de energía (cogeneración eficiente) ",{"$f":"'Mitigación-Energía'!E35","v":"Por definir"},{"$f":"IF('Adaptación-Energía'!$D$273=\"Actividad que facilita la adaptación e incluye desarrollo de infraestructura\",(IF(OR('Adaptación-Energía'!$A$284=\"Por definir\",'Adaptación-Energía'!$A$290=\"Por definir\",'Adaptación-Energía'!$G$294=\"Por definir\",'Adaptación-Energía'!$A$301=\"Por definir\"),\"No se han respondido todas las preguntas\",IF(AND('Adaptación-Energía'!$A$284=\"La actividad sí contribuye sustancialmente a la sostenibilidad\",'Adaptación-Energía'!$A$290=\"La actividad sí contribuye sustancialmente a la sostenibilidad\",'Adaptación-Energía'!$G$294=\"La actividad sí contribuye sustancialmente a la sostenbilidad\",'Adaptación-Energía'!$A$301=\"La actividad sí contribuye sustancialmente a la sostenibilidad\"),\"La actividad sí contribuye sustancialmente a la sostenibilidad\",\"La actividad no contribuye sustancialmente a la sostenibilidad\"))),IF('Adaptación-Energía'!$D$273=\"Actividad adaptada\",(IF(OR('Adaptación-Energía'!$A$284=\"Por definir\",'Adaptación-Energía'!$A$290=\"Por definir\",'Adaptación-Energía'!$G$294=\"Por definir\",'Adaptación-Energía'!$A$301=\"Por definir\"),\"No se han respondido todas las preguntas\",IF(AND('Adaptación-Energía'!$A$284=\"La actividad sí contribuye sustancialmente a la sostenibilidad\",'Adaptación-Energía'!$A$290=\"La actividad sí contribuye sustancialmente a la sostenibilidad\",'Adaptación-Energía'!$G$294=\"La actividad sí contribuye sustancialmente a la sostenbilidad\"),\"La actividad sí contribuye sustancialmente a la sostenibilidad\",\"La actividad no contribuye sustancialmente a la sostenibilidad\"))),IF('Adaptación-Energía'!$D$273=\"Actividad que facilita la adaptación\",(IF(OR('Adaptación-Energía'!$A$301=\"Por definir\"),\"No se han respondido todas las preguntas\",IF(AND('Adaptación-Energía'!$A$301=\"La actividad sí contribuye sustancialmente a la sostenibilidad\"),\"La actividad sí contribuye sustancialmente a la sostenibilidad\",\"La actividad no contribuye sustancialmente a la sostenibilidad\"))))))","v":"La actividad sí contribuye sustancialmente a la sostenibilidad"},null,{"$f":"IF('Indice de género-Energía'!$E$82=\"Por definir\",\"No se han contestado todas las preguntas\",IF('Indice de género-Energía'!$E$82=\"Sí cumple con el índice de igualdad de género\",\"La actividad sí contribuye sustancialmente a la sostenibilidad\",\"La actividad no genera contribución sustancial\"))","v":"La actividad sí contribuye sustancialmente a la sostenibilidad"}]
["Energía","221119. Generación de electricidad a partir de otro tipo de energía (energía geotérmica) ",{"$f":"'Mitigación-Energía'!E23","v":"Por definir"},{"$f":"IF('Adaptación-Energía'!$D$141=\"Actividad que facilita la adaptación e incluye desarrollo de infraestructura\",(IF(OR('Adaptación-Energía'!$A$152=\"Por definir\",'Adaptación-Energía'!$A$158=\"Por definir\",'Adaptación-Energía'!$G$162=\"Por definir\",'Adaptación-Energía'!$A$169=\"Por definir\"),\"No se han respondido todas las preguntas\",IF(AND('Adaptación-Energía'!$A$152=\"La actividad sí contribuye sustancialmente a la sostenibilidad\",'Adaptación-Energía'!$A$158=\"La actividad sí contribuye sustancialmente a la sostenibilidad\",'Adaptación-Energía'!$G$162=\"La actividad sí contribuye sustancialmente a la sostenbilidad\",'Adaptación-Energía'!$A$169=\"La actividad sí contribuye sustancialmente a la sostenibilidad\"),\"La actividad sí contribuye sustancialmente a la sostenibilidad\",\"La actividad no contribuye sustancialmente a la sostenibilidad\"))),IF('Adaptación-Energía'!$D$141=\"Actividad adaptada\",(IF(OR('Adaptación-Energía'!$A$152=\"Por definir\",'Adaptación-Energía'!$A$158=\"Por definir\",'Adaptación-Energía'!$G$162=\"Por definir\",'Adaptación-Energía'!$A$169=\"Por definir\"),\"No se han respondido todas las preguntas\",IF(AND('Adaptación-Energía'!$A$152=\"La actividad sí contribuye sustancialmente a la sostenibilidad\",'Adaptación-Energía'!$A$158=\"La actividad sí contribuye sustancialmente a la sostenibilidad\",'Adaptación-Energía'!$G$162=\"La actividad sí contribuye sustancialmente a la sostenbilidad\"),\"La actividad sí contribuye sustancialmente a la sostenibilidad\",\"La actividad no contribuye sustancialmente a la sostenibilidad\"))),IF('Adaptación-Energía'!$D$141=\"Actividad que facilita la adaptación\",(IF(OR('Adaptación-Energía'!$A$169=\"Por definir\"),\"No se han respondido todas las preguntas\",IF(AND('Adaptación-Energía'!$A$169=\"La actividad sí contribuye sustancialmente a la sostenibilidad\"),\"La actividad sí contribuye sustancialmente a la sostenibilidad\",\"La actividad no contribuye sustancialmente a la sostenibilidad\"))))))","v":"La actividad sí contribuye sustancialmente a la sostenibilidad"},null,{"$f":"IF('Indice de género-Energía'!$E$82=\"Por definir\",\"No se han contestado todas las preguntas\",IF('Indice de género-Energía'!$E$82=\"Sí cumple con el índice de igualdad de género\",\"La actividad sí contribuye sustancialmente a la sostenibilidad\",\"La actividad no genera contribución sustancial\"))","v":"La actividad sí contribuye sustancialmente a la sostenibilidad"}]
["Energía","221119. Generación de electricidad a partir de otro tipo de energía (energía oceánica) ",{"$f":"IF('Mitigación-Energía'!A32=\"La actividad es directamente elegible como sostenible y no deberá presentar un análisis de ciclo de vida o huella de carbono.\"&\" En caso necesario, se llevará a cabo una revisión periódica de acuerdo con el umbral ≤ 100 g de CO2e/kWh.\",\"La actividad sí contribuye sustancialmente a la sostenibilidad\",\"La actividad no genera contribución sustancial\")","v":"La actividad sí contribuye sustancialmente a la sostenibilidad"},{"$f":"IF('Adaptación-Energía'!$D$240=\"Actividad que facilita la adaptación e incluye desarrollo de infraestructura\",(IF(OR('Adaptación-Energía'!$A$251=\"Por definir\",'Adaptación-Energía'!$A$257=\"Por definir\",'Adaptación-Energía'!$G$261=\"Por definir\",'Adaptación-Energía'!$A$268=\"Por definir\"),\"No se han respondido todas las preguntas\",IF(AND('Adaptación-Energía'!$A$251=\"La actividad sí contribuye sustancialmente a la sostenibilidad\",'Adaptación-Energía'!$A$257=\"La actividad sí contribuye sustancialmente a la sostenibilidad\",'Adaptación-Energía'!$G$261=\"La actividad sí contribuye sustancialmente a la sostenbilidad\",'Adaptación-Energía'!$A$268=\"La actividad sí contribuye sustancialmente a la sostenibilidad\"),\"La actividad sí contribuye sustancialmente a la sostenibilidad\",\"La actividad no contribuye sustancialmente a la sostenibilidad\"))),IF('Adaptación-Energía'!$D$240=\"Actividad adaptada\",(IF(OR('Adaptación-Energía'!$A$251=\"Por definir\",'Adaptación-Energía'!$A$257=\"Por definir\",'Adaptación-Energía'!$G$261=\"Por definir\",'Adaptación-Energía'!$A$268=\"Por definir\"),\"No se han respondido todas las preguntas\",IF(AND('Adaptación-Energía'!$A$251=\"La actividad sí contribuye sustancialmente a la sostenibilidad\",'Adaptación-Energía'!$A$257=\"La actividad sí contribuye sustancialmente a la sostenibilidad\",'Adaptación-Energía'!$G$261=\"La actividad sí contribuye sustancialmente a la sostenbilidad\"),\"La actividad sí contribuye sustancialmente a la sostenibilidad\",\"La actividad no contribuye sustancialmente a la sostenibilidad\"))),IF('Adaptación-Energía'!$D$240=\"Actividad que facilita la adaptación\",(IF(OR('Adaptación-Energía'!$A$268=\"Por definir\"),\"No se han respondido todas las preguntas\",IF(AND('Adaptación-Energía'!$A$268=\"La actividad sí contribuye sustancialmente a la sostenibilidad\"),\"La actividad sí contribuye sustancialmente a la sostenibilidad\",\"La actividad no contribuye sustancialmente a la sostenibilidad\"))))))","v":"La actividad sí contribuye sustancialmente a la sostenibilidad"},null,{"$f":"IF('Indice de género-Energía'!$E$82=\"Por definir\",\"No se han contestado todas las preguntas\",IF('Indice de género-Energía'!$E$82=\"Sí cumple con el índice de igualdad de género\",\"La actividad sí contribuye sustancialmente a la sostenibilidad\",\"La actividad no genera contribución sustancial\"))","v":"La actividad sí contribuye sustancialmente a la sostenibilidad"}]
["Energía","221121. Transmisión de energía eléctrica",{"$f":"IF('Mitigación-Energía'!A43=\"Por definir\",\"No se han respondido todas las preguntas\",'Mitigación-Energía'!A43)","v":"No se han respondido todas las preguntas"},{"$f":"IF('Adaptación-Energía'!$D$306=\"Actividad que facilita la adaptación e incluye desarrollo de infraestructura\",(IF(OR('Adaptación-Energía'!$A$317=\"Por definir\",'Adaptación-Energía'!$A$323=\"Por definir\",'Adaptación-Energía'!$G$327=\"Por definir\",'Adaptación-Energía'!$A$334=\"Por definir\"),\"No se han respondido todas las preguntas\",IF(AND('Adaptación-Energía'!$A$317=\"La actividad sí contribuye sustancialmente a la sostenibilidad\",'Adaptación-Energía'!$A$323=\"La actividad sí contribuye sustancialmente a la sostenibilidad\",'Adaptación-Energía'!$G$327=\"La actividad sí contribuye sustancialmente a la sostenbilidad\",'Adaptación-Energía'!$A$334=\"La actividad sí contribuye sustancialmente a la sostenibilidad\"),\"La actividad sí contribuye sustancialmente a la sostenibilidad\",\"La actividad no contribuye sustancialmente a la sostenibilidad\"))),IF('Adaptación-Energía'!$D$306=\"Actividad adaptada\",(IF(OR('Adaptación-Energía'!$A$317=\"Por definir\",'Adaptación-Energía'!$A$323=\"Por definir\",'Adaptación-Energía'!$G$327=\"Por definir\",'Adaptación-Energía'!$A$334=\"Por definir\"),\"No se han respondido todas las preguntas\",IF(AND('Adaptación-Energía'!$A$317=\"La actividad sí contribuye sustancialmente a la sostenibilidad\",'Adaptación-Energía'!$A$323=\"La actividad sí contribuye sustancialmente a la sostenibilidad\",'Adaptación-Energía'!$G$327=\"La actividad sí contribuye sustancialmente a la sostenbilidad\"),\"La actividad sí contribuye sustancialmente a la sostenibilidad\",\"La actividad no contribuye sustancialmente a la sostenibilidad\"))),IF('Adaptación-Energía'!$D$306=\"Actividad que facilita la adaptación\",(IF(OR('Adaptación-Energía'!$A$334=\"Por definir\"),\"No se han respondido todas las preguntas\",IF(AND('Adaptación-Energía'!$A$334=\"La actividad sí contribuye sustancialmente a la sostenibilidad\"),\"La actividad sí contribuye sustancialmente a la sostenibilidad\",\"La actividad no contribuye sustancialmente a la sostenibilidad\"))))))","v":"La actividad sí contribuye sustancialmente a la sostenibilidad"},null,{"$f":"IF('Indice de género-Energía'!$E$82=\"Por definir\",\"No se han contestado todas las preguntas\",IF('Indice de género-Energía'!$E$82=\"Sí cumple con el índice de igualdad de género\",\"La actividad sí contribuye sustancialmente a la sostenibilidad\",\"La actividad no genera contribución sustancial\"))","v":"La actividad sí contribuye sustancialmente a la sostenibilidad"}]
["Energía","221122. Distribución de energía eléctrica ",{"$f":"IF('Mitigación-Energía'!A51=\"Por definir\", \"No se han respondido todas las preguntas\",'Mitigación-Energía'!A51)","v":"No se han respondido todas las preguntas"},{"$f":"IF('Adaptación-Energía'!$D$339=\"Actividad que facilita la adaptación e incluye desarrollo de infraestructura\",(IF(OR('Adaptación-Energía'!$A$350=\"Por definir\",'Adaptación-Energía'!$A$356=\"Por definir\",'Adaptación-Energía'!$G$360=\"Por definir\",'Adaptación-Energía'!$A$367=\"Por definir\"),\"No se han respondido todas las preguntas\",IF(AND('Adaptación-Energía'!$A$350=\"La actividad sí contribuye sustancialmente a la sostenibilidad\",'Adaptación-Energía'!$A$356=\"La actividad sí contribuye sustancialmente a la sostenibilidad\",'Adaptación-Energía'!$G$360=\"La actividad sí contribuye sustancialmente a la sostenbilidad\",'Adaptación-Energía'!$A$367=\"La actividad sí contribuye sustancialmente a la sostenibilidad\"),\"La actividad sí contribuye sustancialmente a la sostenibilidad\",\"La actividad no contribuye sustancialmente a la sostenibilidad\"))),IF('Adaptación-Energía'!$D$339=\"Actividad adaptada\",(IF(OR('Adaptación-Energía'!$A$350=\"Por definir\",'Adaptación-Energía'!$A$356=\"Por definir\",'Adaptación-Energía'!$G$360=\"Por definir\",'Adaptación-Energía'!$A$367=\"Por definir\"),\"No se han respondido todas las preguntas\",IF(AND('Adaptación-Energía'!$A$350=\"La actividad sí contribuye sustancialmente a la sostenibilidad\",'Adaptación-Energía'!$A$356=\"La actividad sí contribuye sustancialmente a la sostenibilidad\",'Adaptación-Energía'!$G$360=\"La actividad sí contribuye sustancialmente a la sostenbilidad\"),\"La actividad sí contribuye sustancialmente a la sostenibilidad\",\"La actividad no contribuye sustancialmente a la sostenibilidad\"))),IF('Adaptación-Energía'!$D$339=\"Actividad que facilita la adaptación\",(IF(OR('Adaptación-Energía'!$A$367=\"Por definir\"),\"No se han respondido todas las preguntas\",IF(AND('Adaptación-Energía'!$A$367=\"La actividad sí contribuye sustancialmente a la sostenibilidad\"),\"La actividad sí contribuye sustancialmente a la sostenibilidad\",\"La actividad no contribuye sustancialmente a la sostenibilidad\"))))))","v":"La actividad sí contribuye sustancialmente a la sostenibilidad"},null,{"$f":"IF('Indice de género-Energía'!$E$82=\"Por definir\",\"No se han contestado todas las preguntas\",IF('Indice de género-Energía'!$E$82=\"Sí cumple con el índice de igualdad de género\",\"La actividad sí contribuye sustancialmente a la sostenibilidad\",\"La actividad no genera contribución sustancial\"))","v":"La actividad sí contribuye sustancialmente a la sostenibilidad"}]
["Agua","221312. Captación, tratamiento y suministro de agua realizados por el sector público (construcción, ampliación y explotación de sistemas centralizados de aguas residuales) ",{"$f":"IF('Mitigación-Agua'!A24=\"Por definir\",\"No se han respondido todas las preguntas\",'Mitigación-Agua'!A24)","v":"No se han respondido todas las preguntas"},{"$f":"IF('Adaptación-Agua'!$D$108=\"Actividad que facilita la adaptación e incluye desarrollo de infraestructura\",(IF(OR('Adaptación-Agua'!$A$119=\"Por definir\",'Adaptación-Agua'!$A$125=\"Por definir\",'Adaptación-Agua'!$G$129=\"Por definir\",'Adaptación-Agua'!$A$136=\"Por definir\"),\"No se han respondido todas las preguntas\",IF(AND('Adaptación-Agua'!$A$119=\"La actividad sí contribuye sustancialmente a la sostenibilidad\",'Adaptación-Agua'!$A$125=\"La actividad sí contribuye sustancialmente a la sostenibilidad\",'Adaptación-Agua'!$G$129=\"La actividad sí contribuye sustancialmente a la sostenbilidad\",'Adaptación-Agua'!$A$136=\"La actividad sí contribuye sustancialmente a la sostenibilidad\"),\"La actividad sí contribuye sustancialmente a la sostenibilidad\",\"La actividad no contribuye sustancialmente a la sostenibilidad\"))),IF('Adaptación-Agua'!$D$108=\"Actividad adaptada\",(IF(OR('Adaptación-Agua'!$A$119=\"Por definir\",'Adaptación-Agua'!$A$125=\"Por definir\",'Adaptación-Agua'!$G$129=\"Por definir\",'Adaptación-Agua'!$A$136=\"Por definir\"),\"No se han respondido todas las preguntas\",IF(AND('Adaptación-Agua'!$A$119=\"La actividad sí contribuye sustancialmente a la sostenibilidad\",'Adaptación-Agua'!$A$125=\"La actividad sí contribuye sustancialmente a la sostenibilidad\",'Adaptación-Agua'!$G$129=\"La actividad sí contribuye sustancialmente a la sostenbilidad\"),\"La actividad sí contribuye sustancialmente a la sostenibilidad\",\"La actividad no contribuye sustancialmente a la sostenibilidad\"))),IF('Adaptación-Agua'!$D$108=\"Actividad que facilita la adaptación\",(IF(OR('Adaptación-Agua'!$A$136=\"Por definir\"),\"No se han respondido todas las preguntas\",IF(AND('Adaptación-Agua'!$A$136=\"La actividad sí contribuye sustancialmente a la sostenibilidad\"),\"La actividad sí contribuye sustancialmente a la sostenibilidad\",\"La actividad no contribuye sustancialmente a la sostenibilidad\"))))))","v":"La actividad sí contribuye sustancialmente a la sostenibilidad"},null,{"$f":"IF('Indice de género-Agua'!$E$82=\"Por definir\",\"No se han contestado todas las preguntas\",IF('Indice de género-Agua'!$E$82=\"Sí cumple con el índice de igualdad de género\",\"La actividad sí contribuye sustancialmente a la sostenibilidad\",\"La actividad no genera contribución sustancial\"))","v":"No se han contestado todas las preguntas"}]
["Agua","221312. Captación, tratamiento y suministro de agua realizados por el sector público (renovación de sistemas centralizados de aguas residuales",{"$f":"IF('Mitigación-Agua'!E28=\"Por definir\",\"No se han respondido todas las preguntas\",'Mitigación-Agua'!E28)","v":"No se han respondido todas las preguntas"},{"$f":"IF('Adaptación-Agua'!$D$141=\"Actividad que facilita la adaptación e incluye desarrollo de infraestructura\",(IF(OR('Adaptación-Agua'!$A$152=\"Por definir\",'Adaptación-Agua'!$A$158=\"Por definir\",'Adaptación-Agua'!$G$162=\"Por definir\",'Adaptación-Agua'!$A$169=\"Por definir\"),\"No se han respondido todas las preguntas\",IF(AND('Adaptación-Agua'!$A$152=\"La actividad sí contribuye sustancialmente a la sostenibilidad\",'Adaptación-Agua'!$A$158=\"La actividad sí contribuye sustancialmente a la sostenibilidad\",'Adaptación-Agua'!$G$162=\"La actividad sí contribuye sustancialmente a la sostenbilidad\",'Adaptación-Agua'!$A$169=\"La actividad sí contribuye sustancialmente a la sostenibilidad\"),\"La actividad sí contribuye sustancialmente a la sostenibilidad\",\"La actividad no contribuye sustancialmente a la sostenibilidad\"))),IF('Adaptación-Agua'!$D$141=\"Actividad adaptada\",(IF(OR('Adaptación-Agua'!$A$152=\"Por definir\",'Adaptación-Agua'!$A$158=\"Por definir\",'Adaptación-Agua'!$G$162=\"Por definir\",'Adaptación-Agua'!$A$169=\"Por definir\"),\"No se han respondido todas las preguntas\",IF(AND('Adaptación-Agua'!$A$152=\"La actividad sí contribuye sustancialmente a la sostenibilidad\",'Adaptación-Agua'!$A$158=\"La actividad sí contribuye sustancialmente a la sostenibilidad\",'Adaptación-Agua'!$G$162=\"La actividad sí contribuye sustancialmente a la sostenbilidad\"),\"La actividad sí contribuye sustancialmente a la sostenibilidad\",\"La actividad no contribuye sustancialmente a la sostenibilidad\"))),IF('Adaptación-Agua'!$D$141=\"Actividad que facilita la adaptación\",(IF(OR('Adaptación-Agua'!$A$169=\"Por definir\"),\"No se han respondido todas las preguntas\",IF(AND('Adaptación-Agua'!$A$169=\"La actividad sí contribuye sustancialmente a la sostenibilidad\"),\"La actividad sí contribuye sustancialmente a la sostenibilidad\",\"La actividad no contribuye sustancialmente a la sostenibilidad\"))))))","v":"La actividad sí contribuye sustancialmente a la sostenibilidad"},null,{"$f":"IF('Indice de género-Agua'!$E$82=\"Por definir\",\"No se han contestado todas las preguntas\",IF('Indice de género-Agua'!$E$82=\"Sí cumple con el índice de igualdad de género\",\"La actividad sí contribuye sustancialmente a la sostenibilidad\",\"La actividad no genera contribución sustancial\"))","v":"No se han contestado todas las preguntas"}]
["Agua","221311. Captación, tratamiento y suministro de agua realizados por el sector privado (construcción, ampliación y explotación de sistemas de captación, depuración y distribución de agua) ",{"$f":"IF('Mitigación-Agua'!A10=\"Por definir\",\"No se han respondido todas las preguntas\",'Mitigación-Agua'!A10)","v":"La actividad sí contribuye sustancialmente a la sostenibilidad"},{"$f":"IF('Adaptación-Agua'!$D$75=\"Actividad que facilita la adaptación e incluye desarrollo de infraestructura\",(IF(OR('Adaptación-Agua'!$A$86=\"Por definir\",'Adaptación-Agua'!$A$92=\"Por definir\",'Adaptación-Agua'!$G$96=\"Por definir\",'Adaptación-Agua'!$A$103=\"Por definir\"),\"No se han respondido todas las preguntas\",IF(AND('Adaptación-Agua'!$A$86=\"La actividad sí contribuye sustancialmente a la sostenibilidad\",'Adaptación-Agua'!$A$92=\"La actividad sí contribuye sustancialmente a la sostenibilidad\",'Adaptación-Agua'!$G$96=\"La actividad sí contribuye sustancialmente a la sostenbilidad\",'Adaptación-Agua'!$A$103=\"La actividad sí contribuye sustancialmente a la sostenibilidad\"),\"La actividad sí contribuye sustancialmente a la sostenibilidad\",\"La actividad no contribuye sustancialmente a la sostenibilidad\"))),IF('Adaptación-Agua'!$D$75=\"Actividad adaptada\",(IF(OR('Adaptación-Agua'!$A$86=\"Por definir\",'Adaptación-Agua'!$A$92=\"Por definir\",'Adaptación-Agua'!$G$96=\"Por definir\",'Adaptación-Agua'!$A$103=\"Por definir\"),\"No se han respondido todas las preguntas\",IF(AND('Adaptación-Agua'!$A$86=\"La actividad sí contribuye sustancialmente a la sostenibilidad\",'Adaptación-Agua'!$A$92=\"La actividad sí contribuye sustancialmente a la sostenibilidad\",'Adaptación-Agua'!$G$96=\"La actividad sí contribuye sustancialmente a la sostenbilidad\"),\"La actividad sí contribuye sustancialmente a la sostenibilidad\",\"La actividad no contribuye sustancialmente a la sostenibilidad\"))),IF('Adaptación-Agua'!$D$75=\"Actividad que facilita la adaptación\",(IF(OR('Adaptación-Agua'!$A$103=\"Por definir\"),\"No se han respondido todas las preguntas\",IF(AND('Adaptación-Agua'!$A$103=\"La actividad sí contribuye sustancialmente a la sostenibilidad\"),\"La actividad sí contribuye sustancialmente a la sostenibilidad\",\"La actividad no contribuye sustancialmente a la sostenibilidad\"))))))","v":"La actividad sí contribuye sustancialmente a la sostenibilidad"},null,{"$f":"IF('Indice de género-Agua'!$E$82=\"Por definir\",\"No se han contestado todas las preguntas\",IF('Indice de género-Agua'!$E$82=\"Sí cumple con el índice de igualdad de género\",\"La actividad sí contribuye sustancialmente a la sostenibilidad\",\"La actividad no genera contribución sustancial\"))","v":"No se han contestado todas las preguntas"}]
["Agua","221311. Captación, tratamiento y suministro de agua realizados por el sector privado (renovación de sistemas de captación, depuración y distribución de agua) ",{"$f":"IF('Mitigación-Agua'!E13=\"Por definir\",\"No se han respondido todas las preguntas\",'Mitigación-Agua'!E13)","v":"No se han respondido todas las preguntas"},{"$f":"IF('Adaptación-Agua'!$D$42=\"Actividad que facilita la adaptación e incluye desarrollo de infraestructura\",(IF(OR('Adaptación-Agua'!$A$53=\"Por definir\",'Adaptación-Agua'!$A$59=\"Por definir\",'Adaptación-Agua'!$G$63=\"Por definir\",'Adaptación-Agua'!$A$70=\"Por definir\"),\"No se han respondido todas las preguntas\",IF(AND('Adaptación-Agua'!$A$53=\"La actividad sí contribuye sustancialmente a la sostenibilidad\",'Adaptación-Agua'!$A$59=\"La actividad sí contribuye sustancialmente a la sostenibilidad\",'Adaptación-Agua'!$G$63=\"La actividad sí contribuye sustancialmente a la sostenbilidad\",'Adaptación-Agua'!$A$70=\"La actividad sí contribuye sustancialmente a la sostenibilidad\"),\"La actividad sí contribuye sustancialmente a la sostenibilidad\",\"La actividad no contribuye sustancialmente a la sostenibilidad\"))),IF('Adaptación-Agua'!$D$42=\"Actividad adaptada\",(IF(OR('Adaptación-Agua'!$A$53=\"Por definir\",'Adaptación-Agua'!$A$59=\"Por definir\",'Adaptación-Agua'!$G$63=\"Por definir\",'Adaptación-Agua'!$A$70=\"Por definir\"),\"No se han respondido todas las preguntas\",IF(AND('Adaptación-Agua'!$A$53=\"La actividad sí contribuye sustancialmente a la sostenibilidad\",'Adaptación-Agua'!$A$59=\"La actividad sí contribuye sustancialmente a la sostenibilidad\",'Adaptación-Agua'!$G$63=\"La actividad sí contribuye sustancialmente a la sostenbilidad\"),\"La actividad sí contribuye sustancialmente a la sostenibilidad\",\"La actividad no contribuye sustancialmente a la sostenibilidad\"))),IF('Adaptación-Agua'!$D$42=\"Actividad que facilita la adaptación\",(IF(OR('Adaptación-Agua'!$A$70=\"Por definir\"),\"No se han respondido todas las preguntas\",IF(AND('Adaptación-Agua'!$A$70=\"La actividad sí contribuye sustancialmente a la sostenibilidad\"),\"La actividad sí contribuye sustancialmente a la sostenibilidad\",\"La actividad no contribuye sustancialmente a la sostenibilidad\"))))))","v":"La actividad sí contribuye sustancialmente a la sostenibilidad"},null,{"$f":"IF('Indice de género-Agua'!$E$82=\"Por definir\",\"No se han contestado todas las preguntas\",IF('Indice de género-Agua'!$E$82=\"Sí cumple con el índice de igualdad de género\",\"La actividad sí contribuye sustancialmente a la sostenibilidad\",\"La actividad no genera contribución sustancial\"))","v":"No se han contestado todas las preguntas"}]
["Agua","221312. Captación, tratamiento y suministro de agua realizados por el sector público (construcción, ampliación y explotación de sistemas de captación, depuración y distribución de agua) ",{"$f":"IF('Mitigación-Agua'!A19=\"Por definir\",\"No se han respondido todas las preguntas\",'Mitigación-Agua'!A19)","v":"No se han respondido todas las preguntas"},{"$f":"IF('Adaptación-Agua'!$D$9=\"Actividad que facilita la adaptación e incluye desarrollo de infraestructura\",(IF(OR('Adaptación-Agua'!$A$20=\"Por definir\",'Adaptación-Agua'!$A$26=\"Por definir\",'Adaptación-Agua'!$G$30=\"Por definir\",'Adaptación-Agua'!$A$37=\"Por definir\"),\"No se han respondido todas las preguntas\",IF(AND('Adaptación-Agua'!$A$20=\"La actividad sí contribuye sustancialmente a la sostenibilidad\",'Adaptación-Agua'!$A$26=\"La actividad sí contribuye sustancialmente a la sostenibilidad\",'Adaptación-Agua'!$G$30=\"La actividad sí contribuye sustancialmente a la sostenbilidad\",'Adaptación-Agua'!$A$37=\"La actividad sí contribuye sustancialmente a la sostenibilidad\"),\"La actividad sí contribuye sustancialmente a la sostenibilidad\",\"La actividad no contribuye sustancialmente a la sostenibilidad\"))),IF('Adaptación-Agua'!$D$9=\"Actividad adaptada\",(IF(OR('Adaptación-Agua'!$A$20=\"Por definir\",'Adaptación-Agua'!$A$26=\"Por definir\",'Adaptación-Agua'!$G$30=\"Por definir\",'Adaptación-Agua'!$A$37=\"Por definir\"),\"No se han respondido todas las preguntas\",IF(AND('Adaptación-Agua'!$A$20=\"La actividad sí contribuye sustancialmente a la sostenibilidad\",'Adaptación-Agua'!$A$26=\"La actividad sí contribuye sustancialmente a la sostenibilidad\",'Adaptación-Agua'!$G$30=\"La actividad sí contribuye sustancialmente a la sostenbilidad\"),\"La actividad sí contribuye sustancialmente a la sostenibilidad\",\"La actividad no contribuye sustancialmente a la sostenibilidad\"))),IF('Adaptación-Agua'!$D$9=\"Actividad que facilita la adaptación\",(IF(OR('Adaptación-Agua'!$A$37=\"Por definir\"),\"No se han respondido todas las preguntas\",IF(AND('Adaptación-Agua'!$A$37=\"La actividad sí contribuye sustancialmente a la sostenibilidad\"),\"La actividad sí contribuye sustancialmente a la sostenibilidad\",\"La actividad no contribuye sustancialmente a la sostenibilidad\"))))))","v":"La actividad sí contribuye sustancialmente a la sostenibilidad"},null,{"$f":"IF('Indice de género-Agua'!$E$82=\"Por definir\",\"No se han contestado todas las preguntas\",IF('Indice de género-Agua'!$E$82=\"Sí cumple con el índice de igualdad de género\",\"La actividad sí contribuye sustancialmente a la sostenibilidad\",\"La actividad no genera contribución sustancial\"))","v":"No se han contestado todas las preguntas"}]
["Construcción","236111. Edificación de vivienda unifamiliar (construcción de vivienda nueva) ",{"$f":"IF('Mitigación-Construcción'!A18=\"Por definir\", \"No se respondieron todas las preguntas\",'Mitigación-Construcción'!A18)","v":"No se respondieron todas las preguntas"},{"$f":"IF('Adaptación-Construcción'!$D$9=\"Actividad que facilita la adaptación e incluye desarrollo de infraestructura\",(IF(OR('Adaptación-Construcción'!$A$20=\"Por definir\",'Adaptación-Construcción'!$A$26=\"Por definir\",'Adaptación-Construcción'!$G$30=\"Por definir\",'Adaptación-Construcción'!$A$37=\"Por definir\"),\"No se han respondido todas las preguntas\",IF(AND('Adaptación-Construcción'!$A$20=\"La actividad sí contribuye sustancialmente a la sostenibilidad\",'Adaptación-Construcción'!$A$26=\"La actividad sí contribuye sustancialmente a la sostenibilidad\",'Adaptación-Construcción'!$G$30=\"La actividad sí contribuye sustancialmente a la sostenbilidad\",'Adaptación-Construcción'!$A$37=\"La actividad sí contribuye sustancialmente a la sostenibilidad\"),\"La actividad sí contribuye sustancialmente a la sostenibilidad\",\"La actividad no contribuye sustancialmente a la sostenibilidad\"))),IF('Adaptación-Construcción'!$D$9=\"Actividad adaptada\",(IF(OR('Adaptación-Construcción'!$A$20=\"Por definir\",'Adaptación-Construcción'!$A$26=\"Por definir\",'Adaptación-Construcción'!$G$30=\"Por definir\",'Adaptación-Construcción'!$A$37=\"Por definir\"),\"No se han respondido todas las preguntas\",IF(AND('Adaptación-Construcción'!$A$20=\"La actividad sí contribuye sustancialmente a la sostenibilidad\",'Adaptación-Construcción'!$A$26=\"La actividad sí contribuye sustancialmente a la sostenibilidad\",'Adaptación-Construcción'!$G$30=\"La actividad sí contribuye sustancialmente a la sostenbilidad\"),\"La actividad sí contribuye sustancialmente a la sostenibilidad\",\"La actividad no contribuye sustancialmente a la sostenibilidad\"))),IF('Adaptación-Construcción'!$D$9=\"Actividad que facilita la adaptación\",(IF(OR('Adaptación-Construcción'!$A$37=\"Por definir\"),\"No se han respondido todas las preguntas\",IF(AND('Adaptación-Construcción'!$A$37=\"La actividad sí contribuye sustancialmente a la sostenibilidad\"),\"La actividad sí contribuye sustancialmente a la sostenibilidad\",\"La actividad no contribuye sustancialmente a la sostenibilidad\"))))))","v":"La actividad sí contribuye sustancialmente a la sostenibilidad"},null,{"$f":"IF('Indice de género-Construcción'!$E$82=\"Por definir\",\"No se han contestado todas las preguntas\",IF('Indice de género-Construcción'!$E$82=\"Sí cumple con el índice de igualdad de género\",\"La actividad sí contribuye sustancialmente a la sostenibilidad\",\"La actividad no genera contribución sustancial\"))","v":"No se han contestado todas las preguntas"}]
["Construcción","236111. Edificación de vivienda unifamiliar (renovación de vivienda existente) ",{"$f":"IF('Mitigación-Construcción'!A39=\"Por definir\", \"No se respondieron todas las preguntas\",'Mitigación-Construcción'!A39)","v":"No se respondieron todas las preguntas"},{"$f":"IF('Adaptación-Construcción'!$D$42=\"Actividad que facilita la adaptación e incluye desarrollo de infraestructura\",(IF(OR('Adaptación-Construcción'!$A$53=\"Por definir\",'Adaptación-Construcción'!$A$59=\"Por definir\",'Adaptación-Construcción'!$G$63=\"Por definir\",'Adaptación-Construcción'!$A$70=\"Por definir\"),\"No se han respondido todas las preguntas\",IF(AND('Adaptación-Construcción'!$A$53=\"La actividad sí contribuye sustancialmente a la sostenibilidad\",'Adaptación-Construcción'!$A$59=\"La actividad sí contribuye sustancialmente a la sostenibilidad\",'Adaptación-Construcción'!$G$63=\"La actividad sí contribuye sustancialmente a la sostenbilidad\",'Adaptación-Construcción'!$A$70=\"La actividad sí contribuye sustancialmente a la sostenibilidad\"),\"La actividad sí contribuye sustancialmente a la sostenibilidad\",\"La actividad no contribuye sustancialmente a la sostenibilidad\"))),IF('Adaptación-Construcción'!$D$42=\"Actividad adaptada\",(IF(OR('Adaptación-Construcción'!$A$53=\"Por definir\",'Adaptación-Construcción'!$A$59=\"Por definir\",'Adaptación-Construcción'!$G$63=\"Por definir\",'Adaptación-Construcción'!$A$70=\"Por definir\"),\"No se han respondido todas las preguntas\",IF(AND('Adaptación-Construcción'!$A$53=\"La actividad sí contribuye sustancialmente a la sostenibilidad\",'Adaptación-Construcción'!$A$59=\"La actividad sí contribuye sustancialmente a la sostenibilidad\",'Adaptación-Construcción'!$G$63=\"La actividad sí contribuye sustancialmente a la sostenbilidad\"),\"La actividad sí contribuye sustancialmente a la sostenibilidad\",\"La actividad no contribuye sustancialmente a la sostenibilidad\"))),IF('Adaptación-Construcción'!$D$42=\"Actividad que facilita la adaptación\",(IF(OR('Adaptación-Construcción'!$A$70=\"Por definir\"),\"No se han respondido todas las preguntas\",IF(AND('Adaptación-Construcción'!$A$70=\"La actividad sí contribuye sustancialmente a la sostenibilidad\"),\"La actividad sí contribuye sustancialmente a la sostenibilidad\",\"La actividad no contribuye sustancialmente a la sostenibilidad\"))))))","v":"La actividad sí contribuye sustancialmente a la sostenibilidad"},null,{"$f":"IF('Indice de género-Construcción'!$E$82=\"Por definir\",\"No se han contestado todas las preguntas\",IF('Indice de género-Construcción'!$E$82=\"Sí cumple con el índice de igualdad de género\",\"La actividad sí contribuye sustancialmente a la sostenibilidad\",\"La actividad no genera contribución sustancial\"))","v":"No se han contestado todas las preguntas"}]
["Construcción","236112. Edificación de vivienda multifamiliar (construcción de vivienda nueva) ",{"$f":"IF('Mitigación-Construcción'!A55=\"Por definir\", \"No se respondieron todas las preguntas\",'Mitigación-Construcción'!A55)","v":"No se respondieron todas las preguntas"},{"$f":"IF('Adaptación-Construcción'!$D$75=\"Actividad que facilita la adaptación e incluye desarrollo de infraestructura\",(IF(OR('Adaptación-Construcción'!$A$86=\"Por definir\",'Adaptación-Construcción'!$A$92=\"Por definir\",'Adaptación-Construcción'!$G$96=\"Por definir\",'Adaptación-Construcción'!$A$103=\"Por definir\"),\"No se han respondido todas las preguntas\",IF(AND('Adaptación-Construcción'!$A$86=\"La actividad sí contribuye sustancialmente a la sostenibilidad\",'Adaptación-Construcción'!$A$92=\"La actividad sí contribuye sustancialmente a la sostenibilidad\",'Adaptación-Construcción'!$G$96=\"La actividad sí contribuye sustancialmente a la sostenbilidad\",'Adaptación-Construcción'!$A$103=\"La actividad sí contribuye sustancialmente a la sostenibilidad\"),\"La actividad sí contribuye sustancialmente a la sostenibilidad\",\"La actividad no contribuye sustancialmente a la sostenibilidad\"))),IF('Adaptación-Construcción'!$D$75=\"Actividad adaptada\",(IF(OR('Adaptación-Construcción'!$A$86=\"Por definir\",'Adaptación-Construcción'!$A$92=\"Por definir\",'Adaptación-Construcción'!$G$96=\"Por definir\",'Adaptación-Construcción'!$A$103=\"Por definir\"),\"No se han respondido todas las preguntas\",IF(AND('Adaptación-Construcción'!$A$86=\"La actividad sí contribuye sustancialmente a la sostenibilidad\",'Adaptación-Construcción'!$A$92=\"La actividad sí contribuye sustancialmente a la sostenibilidad\",'Adaptación-Construcción'!$G$96=\"La actividad sí contribuye sustancialmente a la sostenbilidad\"),\"La actividad sí contribuye sustancialmente a la sostenibilidad\",\"La actividad no contribuye sustancialmente a la sostenibilidad\"))),IF('Adaptación-Construcción'!$D$75=\"Actividad que facilita la adaptación\",(IF(OR('Adaptación-Construcción'!$A$103=\"Por definir\"),\"No se han respondido todas las preguntas\",IF(AND('Adaptación-Construcción'!$A$103=\"La actividad sí contribuye sustancialmente a la sostenibilidad\"),\"La actividad sí contribuye sustancialmente a la sostenibilidad\",\"La actividad no contribuye sustancialmente a la sostenibilidad\"))))))","v":"La actividad sí contribuye sustancialmente a la sostenibilidad"},null,{"$f":"IF('Indice de género-Construcción'!$E$82=\"Por definir\",\"No se han contestado todas las preguntas\",IF('Indice de género-Construcción'!$E$82=\"Sí cumple con el índice de igualdad de género\",\"La actividad sí contribuye sustancialmente a la sostenibilidad\",\"La actividad no genera contribución sustancial\"))","v":"No se han contestado todas las preguntas"}]
["Construcción","236112. Edificación de vivienda multifamiliar (renovación de vivienda existente) ",{"$f":"IF('Mitigación-Construcción'!A76=\"Por definir\", \"No se respondieron todas las preguntas\",'Mitigación-Construcción'!A76)","v":"La actividad sí contribuye sustancialmente a la sostenibilidad"},{"$f":"IF('Adaptación-Construcción'!$D$108=\"Actividad que facilita la adaptación e incluye desarrollo de infraestructura\",(IF(OR('Adaptación-Construcción'!$A$119=\"Por definir\",'Adaptación-Construcción'!$A$125=\"Por definir\",'Adaptación-Construcción'!$G$129=\"Por definir\",'Adaptación-Construcción'!$A$136=\"Por definir\"),\"No se han respondido todas las preguntas\",IF(AND('Adaptación-Construcción'!$A$119=\"La actividad sí contribuye sustancialmente a la sostenibilidad\",'Adaptación-Construcción'!$A$125=\"La actividad sí contribuye sustancialmente a la sostenibilidad\",'Adaptación-Construcción'!$G$129=\"La actividad sí contribuye sustancialmente a la sostenbilidad\",'Adaptación-Construcción'!$A$136=\"La actividad sí contribuye sustancialmente a la sostenibilidad\"),\"La actividad sí contribuye sustancialmente a la sostenibilidad\",\"La actividad no contribuye sustancialmente a la sostenibilidad\"))),IF('Adaptación-Construcción'!$D$108=\"Actividad adaptada\",(IF(OR('Adaptación-Construcción'!$A$119=\"Por definir\",'Adaptación-Construcción'!$A$125=\"Por definir\",'Adaptación-Construcción'!$G$129=\"Por definir\",'Adaptación-Construcción'!$A$136=\"Por definir\"),\"No se han respondido todas las preguntas\",IF(AND('Adaptación-Construcción'!$A$119=\"La actividad sí contribuye sustancialmente a la sostenibilidad\",'Adaptación-Construcción'!$A$125=\"La actividad sí contribuye sustancialmente a la sostenibilidad\",'Adaptación-Construcción'!$G$129=\"La actividad sí contribuye sustancialmente a la sostenbilidad\"),\"La actividad sí contribuye sustancialmente a la sostenibilidad\",\"La actividad no contribuye sustancialmente a la sostenibilidad\"))),IF('Adaptación-Construcción'!$D$108=\"Actividad que facilita la adaptación\",(IF(OR('Adaptación-Construcción'!$A$136=\"Por definir\"),\"No se han respondido todas las preguntas\",IF(AND('Adaptación-Construcción'!$A$136=\"La actividad sí contribuye sustancialmente a la sostenibilidad\"),\"La actividad sí contribuye sustancialmente a la sostenibilidad\",\"La actividad no contribuye sustancialmente a la sostenibilidad\"))))))","v":"La actividad sí contribuye sustancialmente a la sostenibilidad"},null,{"$f":"IF('Indice de género-Construcción'!$E$82=\"Por definir\",\"No se han contestado todas las preguntas\",IF('Indice de género-Construcción'!$E$82=\"Sí cumple con el índice de igualdad de género\",\"La actividad sí contribuye sustancialmente a la sostenibilidad\",\"La actividad no genera contribución sustancial\"))","v":"No se han contestado todas las preguntas"}]
["Construcción","236211. Edificación de naves y plantas industriales, excepto la supervisión ",{"$f":"IF('Mitigación-Construcción'!A93=\"Por definir\", \"No se respondieron todas las preguntas\",'Mitigación-Construcción'!A93)","v":"No se respondieron todas las preguntas"},{"$f":"IF('Adaptación-Construcción'!$D$141=\"Actividad que facilita la adaptación e incluye desarrollo de infraestructura\",(IF(OR('Adaptación-Construcción'!$A$152=\"Por definir\",'Adaptación-Construcción'!$A$158=\"Por definir\",'Adaptación-Construcción'!$G$162=\"Por definir\",'Adaptación-Construcción'!$A$169=\"Por definir\"),\"No se han respondido todas las preguntas\",IF(AND('Adaptación-Construcción'!$A$152=\"La actividad sí contribuye sustancialmente a la sostenibilidad\",'Adaptación-Construcción'!$A$158=\"La actividad sí contribuye sustancialmente a la sostenibilidad\",'Adaptación-Construcción'!$G$162=\"La actividad sí contribuye sustancialmente a la sostenbilidad\",'Adaptación-Construcción'!$A$169=\"La actividad sí contribuye sustancialmente a la sostenibilidad\"),\"La actividad sí contribuye sustancialmente a la sostenibilidad\",\"La actividad no contribuye sustancialmente a la sostenibilidad\"))),IF('Adaptación-Construcción'!$D$141=\"Actividad adaptada\",(IF(OR('Adaptación-Construcción'!$A$152=\"Por definir\",'Adaptación-Construcción'!$A$158=\"Por definir\",'Adaptación-Construcción'!$G$162=\"Por definir\",'Adaptación-Construcción'!$A$169=\"Por definir\"),\"No se han respondido todas las preguntas\",IF(AND('Adaptación-Construcción'!$A$152=\"La actividad sí contribuye sustancialmente a la sostenibilidad\",'Adaptación-Construcción'!$A$158=\"La actividad sí contribuye sustancialmente a la sostenibilidad\",'Adaptación-Construcción'!$G$162=\"La actividad sí contribuye sustancialmente a la sostenbilidad\"),\"La actividad sí contribuye sustancialmente a la sostenibilidad\",\"La actividad no contribuye sustancialmente a la sostenibilidad\"))),IF('Adaptación-Construcción'!$D$141=\"Actividad que facilita la adaptación\",(IF(OR('Adaptación-Construcción'!$A$169=\"Por definir\"),\"No se han respondido todas las preguntas\",IF(AND('Adaptación-Construcción'!$A$169=\"La actividad sí contribuye sustancialmente a la sostenibilidad\"),\"La actividad sí contribuye sustancialmente a la sostenibilidad\",\"La actividad no contribuye sustancialmente a la sostenibilidad\"))))))","v":"La actividad sí contribuye sustancialmente a la sostenibilidad"},null,{"$f":"IF('Indice de género-Construcción'!$E$82=\"Por definir\",\"No se han contestado todas las preguntas\",IF('Indice de género-Construcción'!$E$82=\"Sí cumple con el índice de igualdad de género\",\"La actividad sí contribuye sustancialmente a la sostenibilidad\",\"La actividad no genera contribución sustancial\"))","v":"No se han contestado todas las preguntas"}]
["Construcción","236221. Edificación de inmuebles comerciales y de servicios, excepto la supervisión (construcción de nuevos inmuebles) ",{"$f":"IF('Mitigación-Construcción'!A112=\"Por definir\", \"No se respondieron todas las preguntas\",'Mitigación-Construcción'!A112)","v":"No se respondieron todas las preguntas"},{"$f":"IF('Adaptación-Construcción'!$D$174=\"Actividad que facilita la adaptación e incluye desarrollo de infraestructura\",(IF(OR('Adaptación-Construcción'!$A$185=\"Por definir\",'Adaptación-Construcción'!$A$191=\"Por definir\",'Adaptación-Construcción'!$G$195=\"Por definir\",'Adaptación-Construcción'!$A$202=\"Por definir\"),\"No se han respondido todas las preguntas\",IF(AND('Adaptación-Construcción'!$A$185=\"La actividad sí contribuye sustancialmente a la sostenibilidad\",'Adaptación-Construcción'!$A$191=\"La actividad sí contribuye sustancialmente a la sostenibilidad\",'Adaptación-Construcción'!$G$195=\"La actividad sí contribuye sustancialmente a la sostenbilidad\",'Adaptación-Construcción'!$A$202=\"La actividad sí contribuye sustancialmente a la sostenibilidad\"),\"La actividad sí contribuye sustancialmente a la sostenibilidad\",\"La actividad no contribuye sustancialmente a la sostenibilidad\"))),IF('Adaptación-Construcción'!$D$174=\"Actividad adaptada\",(IF(OR('Adaptación-Construcción'!$A$185=\"Por definir\",'Adaptación-Construcción'!$A$191=\"Por definir\",'Adaptación-Construcción'!$G$195=\"Por definir\",'Adaptación-Construcción'!$A$202=\"Por definir\"),\"No se han respondido todas las preguntas\",IF(AND('Adaptación-Construcción'!$A$185=\"La actividad sí contribuye sustancialmente a la sostenibilidad\",'Adaptación-Construcción'!$A$191=\"La actividad sí contribuye sustancialmente a la sostenibilidad\",'Adaptación-Construcción'!$G$195=\"La actividad sí contribuye sustancialmente a la sostenbilidad\"),\"La actividad sí contribuye sustancialmente a la sostenibilidad\",\"La actividad no contribuye sustancialmente a la sostenibilidad\"))),IF('Adaptación-Construcción'!$D$174=\"Actividad que facilita la adaptación\",(IF(OR('Adaptación-Construcción'!$A$202=\"Por definir\"),\"No se han respondido todas las preguntas\",IF(AND('Adaptación-Construcción'!$A$202=\"La actividad sí contribuye sustancialmente a la sostenibilidad\"),\"La actividad sí contribuye sustancialmente a la sostenibilidad\",\"La actividad no contribuye sustancialmente a la sostenibilidad\"))))))","v":"La actividad sí contribuye sustancialmente a la sostenibilidad"},null,{"$f":"IF('Indice de género-Construcción'!$E$82=\"Por definir\",\"No se han contestado todas las preguntas\",IF('Indice de género-Construcción'!$E$82=\"Sí cumple con el índice de igualdad de género\",\"La actividad sí contribuye sustancialmente a la sostenibilidad\",\"La actividad no genera contribución sustancial\"))","v":"No se han contestado todas las preguntas"}]
["Construcción","236221. Edificación de inmuebles comerciales y de servicios, excepto la supervisión (renovación de inmuebles) ",{"$f":"IF('Mitigación-Construcción'!A131=\"Por definir\", \"No se respondieron todas las preguntas\",'Mitigación-Construcción'!A131)","v":"No se respondieron todas las preguntas"},{"$f":"IF('Adaptación-Construcción'!$D$207=\"Actividad que facilita la adaptación e incluye desarrollo de infraestructura\",(IF(OR('Adaptación-Construcción'!$A$218=\"Por definir\",'Adaptación-Construcción'!$A$224=\"Por definir\",'Adaptación-Construcción'!$G$228=\"Por definir\",'Adaptación-Construcción'!$A$235=\"Por definir\"),\"No se han respondido todas las preguntas\",IF(AND('Adaptación-Construcción'!$A$218=\"La actividad sí contribuye sustancialmente a la sostenibilidad\",'Adaptación-Construcción'!$A$224=\"La actividad sí contribuye sustancialmente a la sostenibilidad\",'Adaptación-Construcción'!$G$228=\"La actividad sí contribuye sustancialmente a la sostenbilidad\",'Adaptación-Construcción'!$A$235=\"La actividad sí contribuye sustancialmente a la sostenibilidad\"),\"La actividad sí contribuye sustancialmente a la sostenibilidad\",\"La actividad no contribuye sustancialmente a la sostenibilidad\"))),IF('Adaptación-Construcción'!$D$207=\"Actividad adaptada\",(IF(OR('Adaptación-Construcción'!$A$218=\"Por definir\",'Adaptación-Construcción'!$A$224=\"Por definir\",'Adaptación-Construcción'!$G$228=\"Por definir\",'Adaptación-Construcción'!$A$235=\"Por definir\"),\"No se han respondido todas las preguntas\",IF(AND('Adaptación-Construcción'!$A$218=\"La actividad sí contribuye sustancialmente a la sostenibilidad\",'Adaptación-Construcción'!$A$224=\"La actividad sí contribuye sustancialmente a la sostenibilidad\",'Adaptación-Construcción'!$G$228=\"La actividad sí contribuye sustancialmente a la sostenbilidad\"),\"La actividad sí contribuye sustancialmente a la sostenibilidad\",\"La actividad no contribuye sustancialmente a la sostenibilidad\"))),IF('Adaptación-Construcción'!$D$207=\"Actividad que facilita la adaptación\",(IF(OR('Adaptación-Construcción'!$A$235=\"Por definir\"),\"No se han respondido todas las preguntas\",IF(AND('Adaptación-Construcción'!$A$235=\"La actividad sí contribuye sustancialmente a la sostenibilidad\"),\"La actividad sí contribuye sustancialmente a la sostenibilidad\",\"La actividad no contribuye sustancialmente a la sostenibilidad\"))))))","v":"La actividad sí contribuye sustancialmente a la sostenibilidad"},null,{"$f":"IF('Indice de género-Construcción'!$E$82=\"Por definir\",\"No se han contestado todas las preguntas\",IF('Indice de género-Construcción'!$E$82=\"Sí cumple con el índice de igualdad de género\",\"La actividad sí contribuye sustancialmente a la sostenibilidad\",\"La actividad no genera contribución sustancial\"))","v":"No se han contestado todas las preguntas"}]
["Construcción","237312. Construcción de carreteras, puentes y similares ",{"$f":"IF('Mitigación-Construcción'!A147=\"Por definir\", \"No se respondieron todas las preguntas\",'Mitigación-Construcción'!A147)","v":"No se respondieron todas las preguntas"},{"$f":"IF('Adaptación-Construcción'!$D$306=\"Actividad que facilita la adaptación e incluye desarrollo de infraestructura\",(IF(OR('Adaptación-Construcción'!$A$317=\"Por definir\",'Adaptación-Construcción'!$A$323=\"Por definir\",'Adaptación-Construcción'!$G$327=\"Por definir\",'Adaptación-Construcción'!$A$334=\"Por definir\"),\"No se han respondido todas las preguntas\",IF(AND('Adaptación-Construcción'!$A$317=\"La actividad sí contribuye sustancialmente a la sostenibilidad\",'Adaptación-Construcción'!$A$323=\"La actividad sí contribuye sustancialmente a la sostenibilidad\",'Adaptación-Construcción'!$G$327=\"La actividad sí contribuye sustancialmente a la sostenbilidad\",'Adaptación-Construcción'!$A$334=\"La actividad sí contribuye sustancialmente a la sostenibilidad\"),\"La actividad sí contribuye sustancialmente a la sostenibilidad\",\"La actividad no contribuye sustancialmente a la sostenibilidad\"))),IF('Adaptación-Construcción'!$D$306=\"Actividad adaptada\",(IF(OR('Adaptación-Construcción'!$A$317=\"Por definir\",'Adaptación-Construcción'!$A$323=\"Por definir\",'Adaptación-Construcción'!$G$327=\"Por definir\",'Adaptación-Construcción'!$A$334=\"Por definir\"),\"No se han respondido todas las preguntas\",IF(AND('Adaptación-Construcción'!$A$317=\"La actividad sí contribuye sustancialmente a la sostenibilidad\",'Adaptación-Construcción'!$A$323=\"La actividad sí contribuye sustancialmente a la sostenibilidad\",'Adaptación-Construcción'!$G$327=\"La actividad sí contribuye sustancialmente a la sostenbilidad\"),\"La actividad sí contribuye sustancialmente a la sostenibilidad\",\"La actividad no contribuye sustancialmente a la sostenibilidad\"))),IF('Adaptación-Construcción'!$D$306=\"Actividad que facilita la adaptación\",(IF(OR('Adaptación-Construcción'!$A$334=\"Por definir\"),\"No se han respondido todas las preguntas\",IF(AND('Adaptación-Construcción'!$A$334=\"La actividad sí contribuye sustancialmente a la sostenibilidad\"),\"La actividad sí contribuye sustancialmente a la sostenibilidad\",\"La actividad no contribuye sustancialmente a la sostenibilidad\"))))))","v":"La actividad sí contribuye sustancialmente a la sostenibilidad"},null,{"$f":"IF('Indice de género-Construcción'!$E$82=\"Por definir\",\"No se han contestado todas las preguntas\",IF('Indice de género-Construcción'!$E$82=\"Sí cumple con el índice de igualdad de género\",\"La actividad sí contribuye sustancialmente a la sostenibilidad\",\"La actividad no genera contribución sustancial\"))","v":"No se han contestado todas las preguntas"}]
["Construcción","238222. Instalaciones de sistemas de aire acondicionado y calefacción ",{"$f":"IF('Mitigación-Construcción'!A137=\"Por definir\", \"No se respondieron todas las preguntas\",'Mitigación-Construcción'!A137)","v":"No se respondieron todas las preguntas"},{"$f":"IF('Adaptación-Construcción'!$D$240=\"Actividad que facilita la adaptación e incluye desarrollo de infraestructura\",(IF(OR('Adaptación-Construcción'!$A$251=\"Por definir\",'Adaptación-Construcción'!$A$257=\"Por definir\",'Adaptación-Construcción'!$G$261=\"Por definir\",'Adaptación-Construcción'!$A$268=\"Por definir\"),\"No se han respondido todas las preguntas\",IF(AND('Adaptación-Construcción'!$A$251=\"La actividad sí contribuye sustancialmente a la sostenibilidad\",'Adaptación-Construcción'!$A$257=\"La actividad sí contribuye sustancialmente a la sostenibilidad\",'Adaptación-Construcción'!$G$261=\"La actividad sí contribuye sustancialmente a la sostenbilidad\",'Adaptación-Construcción'!$A$268=\"La actividad sí contribuye sustancialmente a la sostenibilidad\"),\"La actividad sí contribuye sustancialmente a la sostenibilidad\",\"La actividad no contribuye sustancialmente a la sostenibilidad\"))),IF('Adaptación-Construcción'!$D$240=\"Actividad adaptada\",(IF(OR('Adaptación-Construcción'!$A$251=\"Por definir\",'Adaptación-Construcción'!$A$257=\"Por definir\",'Adaptación-Construcción'!$G$261=\"Por definir\",'Adaptación-Construcción'!$A$268=\"Por definir\"),\"No se han respondido todas las preguntas\",IF(AND('Adaptación-Construcción'!$A$251=\"La actividad sí contribuye sustancialmente a la sostenibilidad\",'Adaptación-Construcción'!$A$257=\"La actividad sí contribuye sustancialmente a la sostenibilidad\",'Adaptación-Construcción'!$G$261=\"La actividad sí contribuye sustancialmente a la sostenbilidad\"),\"La actividad sí contribuye sustancialmente a la sostenibilidad\",\"La actividad no contribuye sustancialmente a la sostenibilidad\"))),IF('Adaptación-Construcción'!$D$240=\"Actividad que facilita la adaptación\",(IF(OR('Adaptación-Construcción'!$A$268=\"Por definir\"),\"No se han respondido todas las preguntas\",IF(AND('Adaptación-Construcción'!$A$268=\"La actividad sí contribuye sustancialmente a la sostenibilidad\"),\"La actividad sí contribuye sustancialmente a la sostenibilidad\",\"La actividad no contribuye sustancialmente a la sostenibilidad\"))))))","v":"La actividad sí contribuye sustancialmente a la sostenibilidad"},null,{"$f":"IF('Indice de género-Construcción'!$E$82=\"Por definir\",\"No se han contestado todas las preguntas\",IF('Indice de género-Construcción'!$E$82=\"Sí cumple con el índice de igualdad de género\",\"La actividad sí contribuye sustancialmente a la sostenibilidad\",\"La actividad no genera contribución sustancial\"))","v":"No se han contestado todas las preguntas"}]
["Construcción","237993. Construcción de obras para transporte eléctrico y ferroviario",{"$f":"IF('Mitigación-Construcción'!A156=\"Por definir\", \"No se respondieron todas las preguntas\",'Mitigación-Construcción'!A156)","v":"No se respondieron todas las preguntas"},{"$f":"IF('Adaptación-Construcción'!$D$273=\"Actividad que facilita la adaptación e incluye desarrollo de infraestructura\",(IF(OR('Adaptación-Construcción'!$A$284=\"Por definir\",'Adaptación-Construcción'!$A$290=\"Por definir\",'Adaptación-Construcción'!$G$294=\"Por definir\",'Adaptación-Construcción'!$A$301=\"Por definir\"),\"No se han respondido todas las preguntas\",IF(AND('Adaptación-Construcción'!$A$284=\"La actividad sí contribuye sustancialmente a la sostenibilidad\",'Adaptación-Construcción'!$A$290=\"La actividad sí contribuye sustancialmente a la sostenibilidad\",'Adaptación-Construcción'!$G$294=\"La actividad sí contribuye sustancialmente a la sostenbilidad\",'Adaptación-Construcción'!$A$301=\"La actividad sí contribuye sustancialmente a la sostenibilidad\"),\"La actividad sí contribuye sustancialmente a la sostenibilidad\",\"La actividad no contribuye sustancialmente a la sostenibilidad\"))),IF('Adaptación-Construcción'!$D$273=\"Actividad adaptada\",(IF(OR('Adaptación-Construcción'!$A$284=\"Por definir\",'Adaptación-Construcción'!$A$290=\"Por definir\",'Adaptación-Construcción'!$G$294=\"Por definir\",'Adaptación-Construcción'!$A$301=\"Por definir\"),\"No se han respondido todas las preguntas\",IF(AND('Adaptación-Construcción'!$A$284=\"La actividad sí contribuye sustancialmente a la sostenibilidad\",'Adaptación-Construcción'!$A$290=\"La actividad sí contribuye sustancialmente a la sostenibilidad\",'Adaptación-Construcción'!$G$294=\"La actividad sí contribuye sustancialmente a la sostenbilidad\"),\"La actividad sí contribuye sustancialmente a la sostenibilidad\",\"La actividad no contribuye sustancialmente a la sostenibilidad\"))),IF('Adaptación-Construcción'!$D$273=\"Actividad que facilita la adaptación\",(IF(OR('Adaptación-Construcción'!$A$301=\"Por definir\"),\"No se han respondido todas las preguntas\",IF(AND('Adaptación-Construcción'!$A$301=\"La actividad sí contribuye sustancialmente a la sostenibilidad\"),\"La actividad sí contribuye sustancialmente a la sostenibilidad\",\"La actividad no contribuye sustancialmente a la sostenibilidad\"))))))","v":"La actividad sí contribuye sustancialmente a la sostenibilidad"},null,{"$f":"IF('Indice de género-Construcción'!$E$82=\"Por definir\",\"No se han contestado todas las preguntas\",IF('Indice de género-Construcción'!$E$82=\"Sí cumple con el índice de igualdad de género\",\"La actividad sí contribuye sustancialmente a la sostenibilidad\",\"La actividad no genera contribución sustancial\"))","v":"No se han contestado todas las preguntas"}]
["Manufactura","325120. Fabricación de gases industriales ",{"$f":"IF('Mitigación-Manufactura'!A24=\"Por definir\", \"No se respondieron todas las preguntas\",'Mitigación-Manufactura'!A24)","v":"No se respondieron todas las preguntas"},{"$f":"IF('Adaptación-Manufactura'!$D$108=\"Actividad que facilita la adaptación e incluye desarrollo de infraestructura\",(IF(OR('Adaptación-Manufactura'!$A$119=\"Por definir\",'Adaptación-Manufactura'!$A$125=\"Por definir\",'Adaptación-Manufactura'!$G$129=\"Por definir\",'Adaptación-Manufactura'!$A$136=\"Por definir\"),\"No se han respondido todas las preguntas\",IF(AND('Adaptación-Manufactura'!$A$119=\"La actividad sí contribuye sustancialmente a la sostenibilidad\",'Adaptación-Manufactura'!$A$125=\"La actividad sí contribuye sustancialmente a la sostenibilidad\",'Adaptación-Manufactura'!$G$129=\"La actividad sí contribuye sustancialmente a la sostenbilidad\",'Adaptación-Manufactura'!$A$136=\"La actividad sí contribuye sustancialmente a la sostenibilidad\"),\"La actividad sí contribuye sustancialmente a la sostenibilidad\",\"La actividad no contribuye sustancialmente a la sostenibilidad\"))),IF('Adaptación-Manufactura'!$D$108=\"Actividad adaptada\",(IF(OR('Adaptación-Manufactura'!$A$119=\"Por definir\",'Adaptación-Manufactura'!$A$125=\"Por definir\",'Adaptación-Manufactura'!$G$129=\"Por definir\",'Adaptación-Manufactura'!$A$136=\"Por definir\"),\"No se han respondido todas las preguntas\",IF(AND('Adaptación-Manufactura'!$A$119=\"La actividad sí contribuye sustancialmente a la sostenibilidad\",'Adaptación-Manufactura'!$A$125=\"La actividad sí contribuye sustancialmente a la sostenibilidad\",'Adaptación-Manufactura'!$G$129=\"La actividad sí contribuye sustancialmente a la sostenbilidad\"),\"La actividad sí contribuye sustancialmente a la sostenibilidad\",\"La actividad no contribuye sustancialmente a la sostenibilidad\"))),IF('Adaptación-Manufactura'!$D$108=\"Actividad que facilita la adaptación\",(IF(OR('Adaptación-Manufactura'!$A$136=\"Por definir\"),\"No se han respondido todas las preguntas\",IF(AND('Adaptación-Manufactura'!$A$136=\"La actividad sí contribuye sustancialmente a la sostenibilidad\"),\"La actividad sí contribuye sustancialmente a la sostenibilidad\",\"La actividad no contribuye sustancialmente a la sostenibilidad\"))))))","v":"La actividad sí contribuye sustancialmente a la sostenibilidad"},null,{"$f":"IF('Indice de género-Manufactura'!$E$82=\"Por definir\",\"No se han contestado todas las preguntas\",IF('Indice de género-Manufactura'!$E$82=\"Sí cumple con el índice de igualdad de género\",\"La actividad sí contribuye sustancialmente a la sostenibilidad\",\"La actividad no genera contribución sustancial\"))","v":"La actividad sí contribuye sustancialmente a la sostenibilidad"}]
["Manufactura","325180. Fabricación de otros productos químicos básicos inorgánicos ",{"$f":"IF('Mitigación-Manufactura'!A30=\"Por definir\", \"No se respondieron todas las preguntas\",'Mitigación-Manufactura'!A30)","v":"No se respondieron todas las preguntas"},{"$f":"IF('Adaptación-Manufactura'!$D$141=\"Actividad que facilita la adaptación e incluye desarrollo de infraestructura\",(IF(OR('Adaptación-Manufactura'!$A$152=\"Por definir\",'Adaptación-Manufactura'!$A$158=\"Por definir\",'Adaptación-Manufactura'!$G$162=\"Por definir\",'Adaptación-Manufactura'!$A$169=\"Por definir\"),\"No se han respondido todas las preguntas\",IF(AND('Adaptación-Manufactura'!$A$152=\"La actividad sí contribuye sustancialmente a la sostenibilidad\",'Adaptación-Manufactura'!$A$158=\"La actividad sí contribuye sustancialmente a la sostenibilidad\",'Adaptación-Manufactura'!$G$162=\"La actividad sí contribuye sustancialmente a la sostenbilidad\",'Adaptación-Manufactura'!$A$169=\"La actividad sí contribuye sustancialmente a la sostenibilidad\"),\"La actividad sí contribuye sustancialmente a la sostenibilidad\",\"La actividad no contribuye sustancialmente a la sostenibilidad\"))),IF('Adaptación-Manufactura'!$D$141=\"Actividad adaptada\",(IF(OR('Adaptación-Manufactura'!$A$152=\"Por definir\",'Adaptación-Manufactura'!$A$158=\"Por definir\",'Adaptación-Manufactura'!$G$162=\"Por definir\",'Adaptación-Manufactura'!$A$169=\"Por definir\"),\"No se han respondido todas las preguntas\",IF(AND('Adaptación-Manufactura'!$A$152=\"La actividad sí contribuye sustancialmente a la sostenibilidad\",'Adaptación-Manufactura'!$A$158=\"La actividad sí contribuye sustancialmente a la sostenibilidad\",'Adaptación-Manufactura'!$G$162=\"La actividad sí contribuye sustancialmente a la sostenbilidad\"),\"La actividad sí contribuye sustancialmente a la sostenibilidad\",\"La actividad no contribuye sustancialmente a la sostenibilidad\"))),IF('Adaptación-Manufactura'!$D$141=\"Actividad que facilita la adaptación\",(IF(OR('Adaptación-Manufactura'!$A$169=\"Por definir\"),\"No se han respondido todas las preguntas\",IF(AND('Adaptación-Manufactura'!$A$169=\"La actividad sí contribuye sustancialmente a la sostenibilidad\"),\"La actividad sí contribuye sustancialmente a la sostenibilidad\",\"La actividad no contribuye sustancialmente a la sostenibilidad\"))))))","v":"La actividad sí contribuye sustancialmente a la sostenibilidad"},null,{"$f":"IF('Indice de género-Manufactura'!$E$82=\"Por definir\",\"No se han contestado todas las preguntas\",IF('Indice de género-Manufactura'!$E$82=\"Sí cumple con el índice de igualdad de género\",\"La actividad sí contribuye sustancialmente a la sostenibilidad\",\"La actividad no genera contribución sustancial\"))","v":"La actividad sí contribuye sustancialmente a la sostenibilidad"}]
["Manufactura","325190. Fabricación de otros productos químicos básicos orgánicos",{"$f":"IF('Mitigación-Manufactura'!A35=\"Por definir\", \"No se respondieron todas las preguntas\",'Mitigación-Manufactura'!A35)","v":"No se respondieron todas las preguntas"},{"$f":"IF('Adaptación-Manufactura'!$D$174=\"Actividad que facilita la adaptación e incluye desarrollo de infraestructura\",(IF(OR('Adaptación-Manufactura'!$A$185=\"Por definir\",'Adaptación-Manufactura'!$A$191=\"Por definir\",'Adaptación-Manufactura'!$G$195=\"Por definir\",'Adaptación-Manufactura'!$A$202=\"Por definir\"),\"No se han respondido todas las preguntas\",IF(AND('Adaptación-Manufactura'!$A$185=\"La actividad sí contribuye sustancialmente a la sostenibilidad\",'Adaptación-Manufactura'!$A$191=\"La actividad sí contribuye sustancialmente a la sostenibilidad\",'Adaptación-Manufactura'!$G$195=\"La actividad sí contribuye sustancialmente a la sostenbilidad\",'Adaptación-Manufactura'!$A$202=\"La actividad sí contribuye sustancialmente a la sostenibilidad\"),\"La actividad sí contribuye sustancialmente a la sostenibilidad\",\"La actividad no contribuye sustancialmente a la sostenibilidad\"))),IF('Adaptación-Manufactura'!$D$174=\"Actividad adaptada\",(IF(OR('Adaptación-Manufactura'!$A$185=\"Por definir\",'Adaptación-Manufactura'!$A$191=\"Por definir\",'Adaptación-Manufactura'!$G$195=\"Por definir\",'Adaptación-Manufactura'!$A$202=\"Por definir\"),\"No se han respondido todas las preguntas\",IF(AND('Adaptación-Manufactura'!$A$185=\"La actividad sí contribuye sustancialmente a la sostenibilidad\",'Adaptación-Manufactura'!$A$191=\"La actividad sí contribuye sustancialmente a la sostenibilidad\",'Adaptación-Manufactura'!$G$195=\"La actividad sí contribuye sustancialmente a la sostenbilidad\"),\"La actividad sí contribuye sustancialmente a la sostenibilidad\",\"La actividad no contribuye sustancialmente a la sostenibilidad\"))),IF('Adaptación-Manufactura'!$D$174=\"Actividad que facilita la adaptación\",(IF(OR('Adaptación-Manufactura'!$A$202=\"Por definir\"),\"No se han respondido todas las preguntas\",IF(AND('Adaptación-Manufactura'!$A$202=\"La actividad sí contribuye sustancialmente a la sostenibilidad\"),\"La actividad sí contribuye sustancialmente a la sostenibilidad\",\"La actividad no contribuye sustancialmente a la sostenibilidad\"))))))","v":"La actividad sí contribuye sustancialmente a la sostenibilidad"},null,{"$f":"IF('Indice de género-Manufactura'!$E$82=\"Por definir\",\"No se han contestado todas las preguntas\",IF('Indice de género-Manufactura'!$E$82=\"Sí cumple con el índice de igualdad de género\",\"La actividad sí contribuye sustancialmente a la sostenibilidad\",\"La actividad no genera contribución sustancial\"))","v":"La actividad sí contribuye sustancialmente a la sostenibilidad"}]
["Manufactura","327310. Fabricación de cemento y productos a base de cemento en plantas integradas ",{"$f":"IF('Mitigación-Manufactura'!A9=\"Por definir\", \"No se respondieron todas las preguntas\",'Mitigación-Manufactura'!A9)","v":"No se respondieron todas las preguntas"},{"$f":"IF('Adaptación-Manufactura'!$D$9=\"Actividad que facilita la adaptación e incluye desarrollo de infraestructura\",(IF(OR('Adaptación-Manufactura'!$A$20=\"Por definir\",'Adaptación-Manufactura'!$A$26=\"Por definir\",'Adaptación-Manufactura'!$G$30=\"Por definir\",'Adaptación-Manufactura'!$A$37=\"Por definir\"),\"No se han respondido todas las preguntas\",IF(AND('Adaptación-Manufactura'!$A$20=\"La actividad sí contribuye sustancialmente a la sostenibilidad\",'Adaptación-Manufactura'!$A$26=\"La actividad sí contribuye sustancialmente a la sostenibilidad\",'Adaptación-Manufactura'!$G$30=\"La actividad sí contribuye sustancialmente a la sostenbilidad\",'Adaptación-Manufactura'!$A$37=\"La actividad sí contribuye sustancialmente a la sostenibilidad\"),\"La actividad sí contribuye sustancialmente a la sostenibilidad\",\"La actividad no contribuye sustancialmente a la sostenibilidad\"))),IF('Adaptación-Manufactura'!$D$9=\"Actividad adaptada\",(IF(OR('Adaptación-Manufactura'!$A$20=\"Por definir\",'Adaptación-Manufactura'!$A$26=\"Por definir\",'Adaptación-Manufactura'!$G$30=\"Por definir\",'Adaptación-Manufactura'!$A$37=\"Por definir\"),\"No se han respondido todas las preguntas\",IF(AND('Adaptación-Manufactura'!$A$20=\"La actividad sí contribuye sustancialmente a la sostenibilidad\",'Adaptación-Manufactura'!$A$26=\"La actividad sí contribuye sustancialmente a la sostenibilidad\",'Adaptación-Manufactura'!$G$30=\"La actividad sí contribuye sustancialmente a la sostenbilidad\"),\"La actividad sí contribuye sustancialmente a la sostenibilidad\",\"La actividad no contribuye sustancialmente a la sostenibilidad\"))),IF('Adaptación-Manufactura'!$D$9=\"Actividad que facilita la adaptación\",(IF(OR('Adaptación-Manufactura'!$A$37=\"Por definir\"),\"No se han respondido todas las preguntas\",IF(AND('Adaptación-Manufactura'!$A$37=\"La actividad sí contribuye sustancialmente a la sostenibilidad\"),\"La actividad sí contribuye sustancialmente a la sostenibilidad\",\"La actividad no contribuye sustancialmente a la sostenibilidad\"))))))","v":"La actividad sí contribuye sustancialmente a la sostenibilidad"},null,{"$f":"IF('Indice de género-Manufactura'!$E$82=\"Por definir\",\"No se han contestado todas las preguntas\",IF('Indice de género-Manufactura'!$E$82=\"Sí cumple con el índice de igualdad de género\",\"La actividad sí contribuye sustancialmente a la sostenibilidad\",\"La actividad no genera contribución sustancial\"))","v":"La actividad sí contribuye sustancialmente a la sostenibilidad"}]
["Manufactura","331111. Complejos siderúrgicos ",{"$f":"IF('Mitigación-Manufactura'!A14=\"Por definir\", \"No se respondieron todas las preguntas\",'Mitigación-Manufactura'!A14)","v":"La actividad sí contribuye sustancialmente a la sostenibilidad"},{"$f":"IF('Adaptación-Manufactura'!$D$42=\"Actividad que facilita la adaptación e incluye desarrollo de infraestructura\",(IF(OR('Adaptación-Manufactura'!$A$53=\"Por definir\",'Adaptación-Manufactura'!$A$59=\"Por definir\",'Adaptación-Manufactura'!$G$63=\"Por definir\",'Adaptación-Manufactura'!$A$70=\"Por definir\"),\"No se han respondido todas las preguntas\",IF(AND('Adaptación-Manufactura'!$A$53=\"La actividad sí contribuye sustancialmente a la sostenibilidad\",'Adaptación-Manufactura'!$A$59=\"La actividad sí contribuye sustancialmente a la sostenibilidad\",'Adaptación-Manufactura'!$G$63=\"La actividad sí contribuye sustancialmente a la sostenbilidad\",'Adaptación-Manufactura'!$A$70=\"La actividad sí contribuye sustancialmente a la sostenibilidad\"),\"La actividad sí contribuye sustancialmente a la sostenibilidad\",\"La actividad no contribuye sustancialmente a la sostenibilidad\"))),IF('Adaptación-Manufactura'!$D$42=\"Actividad adaptada\",(IF(OR('Adaptación-Manufactura'!$A$53=\"Por definir\",'Adaptación-Manufactura'!$A$59=\"Por definir\",'Adaptación-Manufactura'!$G$63=\"Por definir\",'Adaptación-Manufactura'!$A$70=\"Por definir\"),\"No se han respondido todas las preguntas\",IF(AND('Adaptación-Manufactura'!$A$53=\"La actividad sí contribuye sustancialmente a la sostenibilidad\",'Adaptación-Manufactura'!$A$59=\"La actividad sí contribuye sustancialmente a la sostenibilidad\",'Adaptación-Manufactura'!$G$63=\"La actividad sí contribuye sustancialmente a la sostenbilidad\"),\"La actividad sí contribuye sustancialmente a la sostenibilidad\",\"La actividad no contribuye sustancialmente a la sostenibilidad\"))),IF('Adaptación-Manufactura'!$D$42=\"Actividad que facilita la adaptación\",(IF(OR('Adaptación-Manufactura'!$A$70=\"Por definir\"),\"No se han respondido todas las preguntas\",IF(AND('Adaptación-Manufactura'!$A$70=\"La actividad sí contribuye sustancialmente a la sostenibilidad\"),\"La actividad sí contribuye sustancialmente a la sostenibilidad\",\"La actividad no contribuye sustancialmente a la sostenibilidad\"))))))","v":"La actividad sí contribuye sustancialmente a la sostenibilidad"},null,{"$f":"IF('Indice de género-Manufactura'!$E$82=\"Por definir\",\"No se han contestado todas las preguntas\",IF('Indice de género-Manufactura'!$E$82=\"Sí cumple con el índice de igualdad de género\",\"La actividad sí contribuye sustancialmente a la sostenibilidad\",\"La actividad no genera contribución sustancial\"))","v":"La actividad sí contribuye sustancialmente a la sostenibilidad"}]
["Manufactura","331310. Industria básica del aluminio ",{"$f":"IF('Mitigación-Manufactura'!A19=\"Por definir\", \"No se respondieron todas las preguntas\",'Mitigación-Manufactura'!A19)","v":"No se respondieron todas las preguntas"},{"$f":"IF('Adaptación-Manufactura'!$D$75=\"Actividad que facilita la adaptación e incluye desarrollo de infraestructura\",(IF(OR('Adaptación-Manufactura'!$A$86=\"Por definir\",'Adaptación-Manufactura'!$A$92=\"Por definir\",'Adaptación-Manufactura'!$G$96=\"Por definir\",'Adaptación-Manufactura'!$A$103=\"Por definir\"),\"No se han respondido todas las preguntas\",IF(AND('Adaptación-Manufactura'!$A$86=\"La actividad sí contribuye sustancialmente a la sostenibilidad\",'Adaptación-Manufactura'!$A$92=\"La actividad sí contribuye sustancialmente a la sostenibilidad\",'Adaptación-Manufactura'!$G$96=\"La actividad sí contribuye sustancialmente a la sostenbilidad\",'Adaptación-Manufactura'!$A$103=\"La actividad sí contribuye sustancialmente a la sostenibilidad\"),\"La actividad sí contribuye sustancialmente a la sostenibilidad\",\"La actividad no contribuye sustancialmente a la sostenibilidad\"))),IF('Adaptación-Manufactura'!$D$75=\"Actividad adaptada\",(IF(OR('Adaptación-Manufactura'!$A$86=\"Por definir\",'Adaptación-Manufactura'!$A$92=\"Por definir\",'Adaptación-Manufactura'!$G$96=\"Por definir\",'Adaptación-Manufactura'!$A$103=\"Por definir\"),\"No se han respondido todas las preguntas\",IF(AND('Adaptación-Manufactura'!$A$86=\"La actividad sí contribuye sustancialmente a la sostenibilidad\",'Adaptación-Manufactura'!$A$92=\"La actividad sí contribuye sustancialmente a la sostenibilidad\",'Adaptación-Manufactura'!$G$96=\"La actividad sí contribuye sustancialmente a la sostenbilidad\"),\"La actividad sí contribuye sustancialmente a la sostenibilidad\",\"La actividad no contribuye sustancialmente a la sostenibilidad\"))),IF('Adaptación-Manufactura'!$D$75=\"Actividad que facilita la adaptación\",(IF(OR('Adaptación-Manufactura'!$A$103=\"Por definir\"),\"No se han respondido todas las preguntas\",IF(AND('Adaptación-Manufactura'!$A$103=\"La actividad sí contribuye sustancialmente a la sostenibilidad\"),\"La actividad sí contribuye sustancialmente a la sostenibilidad\",\"La actividad no contribuye sustancialmente a la sostenibilidad\"))))))","v":"La actividad sí contribuye sustancialmente a la sostenibilidad"},null,{"$f":"IF('Indice de género-Manufactura'!$E$82=\"Por definir\",\"No se han contestado todas las preguntas\",IF('Indice de género-Manufactura'!$E$82=\"Sí cumple con el índice de igualdad de género\",\"La actividad sí contribuye sustancialmente a la sostenibilidad\",\"La actividad no genera contribución sustancial\"))","v":"La actividad sí contribuye sustancialmente a la sostenibilidad"}]
["Transporte","482110. Transporte por ferrocarril (transporte de mercancías) ",{"$f":"IF('Mitigación-Transporte'!A18=\"Por definir\",\"No se han respondido todas las preguntas\",'Mitigación-Transporte'!A18)","v":"No se han respondido todas las preguntas"},{"$f":"IF('Adaptación-Transporte'!$D$42=\"Actividad que facilita la adaptación e incluye desarrollo de infraestructura\",(IF(OR('Adaptación-Transporte'!$A$53=\"Por definir\",'Adaptación-Transporte'!$A$59=\"Por definir\",'Adaptación-Transporte'!$G$63=\"Por definir\",'Adaptación-Transporte'!$A$70=\"Por definir\"),\"No se han respondido todas las preguntas\",IF(AND('Adaptación-Transporte'!$A$53=\"La actividad sí contribuye sustancialmente a la sostenibilidad\",'Adaptación-Transporte'!$A$59=\"La actividad sí contribuye sustancialmente a la sostenibilidad\",'Adaptación-Transporte'!$G$63=\"La actividad sí contribuye sustancialmente a la sostenbilidad\",'Adaptación-Transporte'!$A$70=\"La actividad sí contribuye sustancialmente a la sostenibilidad\"),\"La actividad sí contribuye sustancialmente a la sostenibilidad\",\"La actividad no contribuye sustancialmente a la sostenibilidad\"))),IF('Adaptación-Transporte'!$D$42=\"Actividad adaptada\",(IF(OR('Adaptación-Transporte'!$A$53=\"Por definir\",'Adaptación-Transporte'!$A$59=\"Por definir\",'Adaptación-Transporte'!$G$63=\"Por definir\",'Adaptación-Transporte'!$A$70=\"Por definir\"),\"No se han respondido todas las preguntas\",IF(AND('Adaptación-Transporte'!$A$53=\"La actividad sí contribuye sustancialmente a la sostenibilidad\",'Adaptación-Transporte'!$A$59=\"La actividad sí contribuye sustancialmente a la sostenibilidad\",'Adaptación-Transporte'!$G$63=\"La actividad sí contribuye sustancialmente a la sostenbilidad\"),\"La actividad sí contribuye sustancialmente a la sostenibilidad\",\"La actividad no contribuye sustancialmente a la sostenibilidad\"))),IF('Adaptación-Transporte'!$D$42=\"Actividad que facilita la adaptación\",(IF(OR('Adaptación-Transporte'!$A$70=\"Por definir\"),\"No se han respondido todas las preguntas\",IF(AND('Adaptación-Transporte'!$A$70=\"La actividad sí contribuye sustancialmente a la sostenibilidad\"),\"La actividad sí contribuye sustancialmente a la sostenibilidad\",\"La actividad no contribuye sustancialmente a la sostenibilidad\"))))))","v":"La actividad sí contribuye sustancialmente a la sostenibilidad"},null,{"$f":"IF('Indice de género-Transporte'!$E$82=\"Por definir\",\"No se han contestado todas las preguntas\",IF('Indice de género-Transporte'!$E$82=\"Sí cumple con el índice de igualdad de género\",\"La actividad sí contribuye sustancialmente a la sostenibilidad\",\"La actividad no genera contribución sustancial\"))","v":"No se han contestado todas las preguntas"},null,2]
["Transporte","482110. Transporte por ferrocarril (transporte de pasajeros) ",{"$f":"IF('Mitigación-Transporte'!A9=\"Por definir\",\"No se han respondido todas las preguntas\",'Mitigación-Transporte'!A9)","v":"No se han respondido todas las preguntas"},{"$f":"IF('Adaptación-Transporte'!$D$9=\"Actividad que facilita la adaptación e incluye desarrollo de infraestructura\",(IF(OR('Adaptación-Transporte'!$A$20=\"Por definir\",'Adaptación-Transporte'!$A$26=\"Por definir\",'Adaptación-Transporte'!$G$30=\"Por definir\",'Adaptación-Transporte'!$A$37=\"Por definir\"),\"No se han respondido todas las preguntas\",IF(AND('Adaptación-Transporte'!$A$20=\"La actividad sí contribuye sustancialmente a la sostenibilidad\",'Adaptación-Transporte'!$A$26=\"La actividad sí contribuye sustancialmente a la sostenibilidad\",'Adaptación-Transporte'!$G$30=\"La actividad sí contribuye sustancialmente a la sostenbilidad\",'Adaptación-Transporte'!$A$37=\"La actividad sí contribuye sustancialmente a la sostenibilidad\"),\"La actividad sí contribuye sustancialmente a la sostenibilidad\",\"La actividad no contribuye sustancialmente a la sostenibilidad\"))),IF('Adaptación-Transporte'!$D$9=\"Actividad adaptada\",(IF(OR('Adaptación-Transporte'!$A$20=\"Por definir\",'Adaptación-Transporte'!$A$26=\"Por definir\",'Adaptación-Transporte'!$G$30=\"Por definir\",'Adaptación-Transporte'!$A$37=\"Por definir\"),\"No se han respondido todas las preguntas\",IF(AND('Adaptación-Transporte'!$A$20=\"La actividad sí contribuye sustancialmente a la sostenibilidad\",'Adaptación-Transporte'!$A$26=\"La actividad sí contribuye sustancialmente a la sostenibilidad\",'Adaptación-Transporte'!$G$30=\"La actividad sí contribuye sustancialmente a la sostenbilidad\"),\"La actividad sí contribuye sustancialmente a la sostenibilidad\",\"La actividad no contribuye sustancialmente a la sostenibilidad\"))),IF('Adaptación-Transporte'!$D$9=\"Actividad que facilita la adaptación\",(IF(OR('Adaptación-Transporte'!$A$37=\"Por definir\"),\"No se han respondido todas las preguntas\",IF(AND('Adaptación-Transporte'!$A$37=\"La actividad sí contribuye sustancialmente a la sostenibilidad\"),\"La actividad sí contribuye sustancialmente a la sostenibilidad\",\"La actividad no contribuye sustancialmente a la sostenibilidad\"))))))","v":"La actividad sí contribuye sustancialmente a la sostenibilidad"},null,{"$f":"IF('Indice de género-Transporte'!$E$82=\"Por definir\",\"No se han contestado todas las preguntas\",IF('Indice de género-Transporte'!$E$82=\"Sí cumple con el índice de igualdad de género\",\"La actividad sí contribuye sustancialmente a la sostenibilidad\",\"La actividad no genera contribución sustancial\"))","v":"No se han contestado todas las preguntas"},null,1]
["Transporte","483210. Transporte por aguas interiores (transporte de mercancías) ",{"$f":"IF('Mitigación-Transporte'!A25=\"Por definir\",\"No se han respondido todas las preguntas\",'Mitigación-Transporte'!A25)","v":"No se han respondido todas las preguntas"},{"$f":"IF('Adaptación-Transporte'!$D$75=\"Actividad que facilita la adaptación e incluye desarrollo de infraestructura\",(IF(OR('Adaptación-Transporte'!$A$86=\"Por definir\",'Adaptación-Transporte'!$A$92=\"Por definir\",'Adaptación-Transporte'!$G$96=\"Por definir\",'Adaptación-Transporte'!$A$103=\"Por definir\"),\"No se han respondido todas las preguntas\",IF(AND('Adaptación-Transporte'!$A$86=\"La actividad sí contribuye sustancialmente a la sostenibilidad\",'Adaptación-Transporte'!$A$92=\"La actividad sí contribuye sustancialmente a la sostenibilidad\",'Adaptación-Transporte'!$G$96=\"La actividad sí contribuye sustancialmente a la sostenbilidad\",'Adaptación-Transporte'!$A$103=\"La actividad sí contribuye sustancialmente a la sostenibilidad\"),\"La actividad sí contribuye sustancialmente a la sostenibilidad\",\"La actividad no contribuye sustancialmente a la sostenibilidad\"))),IF('Adaptación-Transporte'!$D$75=\"Actividad adaptada\",(IF(OR('Adaptación-Transporte'!$A$86=\"Por definir\",'Adaptación-Transporte'!$A$92=\"Por definir\",'Adaptación-Transporte'!$G$96=\"Por definir\",'Adaptación-Transporte'!$A$103=\"Por definir\"),\"No se han respondido todas las preguntas\",IF(AND('Adaptación-Transporte'!$A$86=\"La actividad sí contribuye sustancialmente a la sostenibilidad\",'Adaptación-Transporte'!$A$92=\"La actividad sí contribuye sustancialmente a la sostenibilidad\",'Adaptación-Transporte'!$G$96=\"La actividad sí contribuye sustancialmente a la sostenbilidad\"),\"La actividad sí contribuye sustancialmente a la sostenibilidad\",\"La actividad no contribuye sustancialmente a la sostenibilidad\"))),IF('Adaptación-Transporte'!$D$75=\"Actividad que facilita la adaptación\",(IF(OR('Adaptación-Transporte'!$A$103=\"Por definir\"),\"No se han respondido todas las preguntas\",IF(AND('Adaptación-Transporte'!$A$103=\"La actividad sí contribuye sustancialmente a la sostenibilidad\"),\"La actividad sí contribuye sustancialmente a la sostenibilidad\",\"La actividad no contribuye sustancialmente a la sostenibilidad\"))))))","v":"La actividad sí contribuye sustancialmente a la sostenibilidad"},null,{"$f":"IF('Indice de género-Transporte'!$E$82=\"Por definir\",\"No se han contestado todas las preguntas\",IF('Indice de género-Transporte'!$E$82=\"Sí cumple con el índice de igualdad de género\",\"La actividad sí contribuye sustancialmente a la sostenibilidad\",\"La actividad no genera contribución sustancial\"))","v":"No se han contestado todas las preguntas"},null,3]
["Transporte","483210. Transporte por aguas interiores (transporte de pasajeros) ",{"$f":"IF('Mitigación-Transporte'!A30=\"Por definir\",\"No se han respondido todas las preguntas\",'Mitigación-Transporte'!A30)","v":"No se han respondido todas las preguntas"},{"$f":"IF('Adaptación-Transporte'!$D$108=\"Actividad que facilita la adaptación e incluye desarrollo de infraestructura\",(IF(OR('Adaptación-Transporte'!$A$119=\"Por definir\",'Adaptación-Transporte'!$A$125=\"Por definir\",'Adaptación-Transporte'!$G$129=\"Por definir\",'Adaptación-Transporte'!$A$136=\"Por definir\"),\"No se han respondido todas las preguntas\",IF(AND('Adaptación-Transporte'!$A$119=\"La actividad sí contribuye sustancialmente a la sostenibilidad\",'Adaptación-Transporte'!$A$125=\"La actividad sí contribuye sustancialmente a la sostenibilidad\",'Adaptación-Transporte'!$G$129=\"La actividad sí contribuye sustancialmente a la sostenbilidad\",'Adaptación-Transporte'!$A$136=\"La actividad sí contribuye sustancialmente a la sostenibilidad\"),\"La actividad sí contribuye sustancialmente a la sostenibilidad\",\"La actividad no contribuye sustancialmente a la sostenibilidad\"))),IF('Adaptación-Transporte'!$D$108=\"Actividad adaptada\",(IF(OR('Adaptación-Transporte'!$A$119=\"Por definir\",'Adaptación-Transporte'!$A$125=\"Por definir\",'Adaptación-Transporte'!$G$129=\"Por definir\",'Adaptación-Transporte'!$A$136=\"Por definir\"),\"No se han respondido todas las preguntas\",IF(AND('Adaptación-Transporte'!$A$119=\"La actividad sí contribuye sustancialmente a la sostenibilidad\",'Adaptación-Transporte'!$A$125=\"La actividad sí contribuye sustancialmente a la sostenibilidad\",'Adaptación-Transporte'!$G$129=\"La actividad sí contribuye sustancialmente a la sostenbilidad\"),\"La actividad sí contribuye sustancialmente a la sostenibilidad\",\"La actividad no contribuye sustancialmente a la sostenibilidad\"))),IF('Adaptación-Transporte'!$D$108=\"Actividad que facilita la adaptación\",(IF(OR('Adaptación-Transporte'!$A$136=\"Por definir\"),\"No se han respondido todas las preguntas\",IF(AND('Adaptación-Transporte'!$A$136=\"La actividad sí contribuye sustancialmente a la sostenibilidad\"),\"La actividad sí contribuye sustancialmente a la sostenibilidad\",\"La actividad no contribuye sustancialmente a la sostenibilidad\"))))))","v":"La actividad sí contribuye sustancialmente a la sostenibilidad"},null,{"$f":"IF('Indice de género-Transporte'!$E$82=\"Por definir\",\"No se han contestado todas las preguntas\",IF('Indice de género-Transporte'!$E$82=\"Sí cumple con el índice de igualdad de género\",\"La actividad sí contribuye sustancialmente a la sostenibilidad\",\"La actividad no genera contribución sustancial\"))","v":"No se han contestado todas las preguntas"},null,4]
["Transporte","484231. Autotransporte foráneo de materiales para la construcción ",{"$f":"IF('Mitigación-Transporte'!A36=\"Por definir\",\"No se han respondido todas las preguntas\",'Mitigación-Transporte'!A36)","v":"No se han respondido todas las preguntas"},{"$f":"IF('Adaptación-Transporte'!$D$141=\"Actividad que facilita la adaptación e incluye desarrollo de infraestructura\",(IF(OR('Adaptación-Transporte'!$A$152=\"Por definir\",'Adaptación-Transporte'!$A$158=\"Por definir\",'Adaptación-Transporte'!$G$162=\"Por definir\",'Adaptación-Transporte'!$A$169=\"Por definir\"),\"No se han respondido todas las preguntas\",IF(AND('Adaptación-Transporte'!$A$152=\"La actividad sí contribuye sustancialmente a la sostenibilidad\",'Adaptación-Transporte'!$A$158=\"La actividad sí contribuye sustancialmente a la sostenibilidad\",'Adaptación-Transporte'!$G$162=\"La actividad sí contribuye sustancialmente a la sostenbilidad\",'Adaptación-Transporte'!$A$169=\"La actividad sí contribuye sustancialmente a la sostenibilidad\"),\"La actividad sí contribuye sustancialmente a la sostenibilidad\",\"La actividad no contribuye sustancialmente a la sostenibilidad\"))),IF('Adaptación-Transporte'!$D$141=\"Actividad adaptada\",(IF(OR('Adaptación-Transporte'!$A$152=\"Por definir\",'Adaptación-Transporte'!$A$158=\"Por definir\",'Adaptación-Transporte'!$G$162=\"Por definir\",'Adaptación-Transporte'!$A$169=\"Por definir\"),\"No se han respondido todas las preguntas\",IF(AND('Adaptación-Transporte'!$A$152=\"La actividad sí contribuye sustancialmente a la sostenibilidad\",'Adaptación-Transporte'!$A$158=\"La actividad sí contribuye sustancialmente a la sostenibilidad\",'Adaptación-Transporte'!$G$162=\"La actividad sí contribuye sustancialmente a la sostenbilidad\"),\"La actividad sí contribuye sustancialmente a la sostenibilidad\",\"La actividad no contribuye sustancialmente a la sostenibilidad\"))),IF('Adaptación-Transporte'!$D$141=\"Actividad que facilita la adaptación\",(IF(OR('Adaptación-Transporte'!$A$169=\"Por definir\"),\"No se han respondido todas las preguntas\",IF(AND('Adaptación-Transporte'!$A$169=\"La actividad sí contribuye sustancialmente a la sostenibilidad\"),\"La actividad sí contribuye sustancialmente a la sostenibilidad\",\"La actividad no contribuye sustancialmente a la sostenibilidad\"))))))","v":"La actividad sí contribuye sustancialmente a la sostenibilidad"},null,{"$f":"IF('Indice de género-Transporte'!$E$82=\"Por definir\",\"No se han contestado todas las preguntas\",IF('Indice de género-Transporte'!$E$82=\"Sí cumple con el índice de igualdad de género\",\"La actividad sí contribuye sustancialmente a la sostenibilidad\",\"La actividad no genera contribución sustancial\"))","v":"No se han contestado todas las preguntas"},null,5]
["Transporte","484232. Autotransporte foráneo de materiales y residuos peligrosos ",{"$f":"IF('Mitigación-Transporte'!A42=\"Por definir\",\"No se han respondido todas las preguntas\",'Mitigación-Transporte'!A42)","v":"No se han respondido todas las preguntas"},{"$f":"IF('Adaptación-Transporte'!$D$174=\"Actividad que facilita la adaptación e incluye desarrollo de infraestructura\",(IF(OR('Adaptación-Transporte'!$A$185=\"Por definir\",'Adaptación-Transporte'!$A$191=\"Por definir\",'Adaptación-Transporte'!$G$195=\"Por definir\",'Adaptación-Transporte'!$A$202=\"Por definir\"),\"No se han respondido todas las preguntas\",IF(AND('Adaptación-Transporte'!$A$185=\"La actividad sí contribuye sustancialmente a la sostenibilidad\",'Adaptación-Transporte'!$A$191=\"La actividad sí contribuye sustancialmente a la sostenibilidad\",'Adaptación-Transporte'!$G$195=\"La actividad sí contribuye sustancialmente a la sostenbilidad\",'Adaptación-Transporte'!$A$202=\"La actividad sí contribuye sustancialmente a la sostenibilidad\"),\"La actividad sí contribuye sustancialmente a la sostenibilidad\",\"La actividad no contribuye sustancialmente a la sostenibilidad\"))),IF('Adaptación-Transporte'!$D$174=\"Actividad adaptada\",(IF(OR('Adaptación-Transporte'!$A$185=\"Por definir\",'Adaptación-Transporte'!$A$191=\"Por definir\",'Adaptación-Transporte'!$G$195=\"Por definir\",'Adaptación-Transporte'!$A$202=\"Por definir\"),\"No se han respondido todas las preguntas\",IF(AND('Adaptación-Transporte'!$A$185=\"La actividad sí contribuye sustancialmente a la sostenibilidad\",'Adaptación-Transporte'!$A$191=\"La actividad sí contribuye sustancialmente a la sostenibilidad\",'Adaptación-Transporte'!$G$195=\"La actividad sí contribuye sustancialmente a la sostenbilidad\"),\"La actividad sí contribuye sustancialmente a la sostenibilidad\",\"La actividad no contribuye sustancialmente a la sostenibilidad\"))),IF('Adaptación-Transporte'!$D$174=\"Actividad que facilita la adaptación\",(IF(OR('Adaptación-Transporte'!$A$202=\"Por definir\"),\"No se han respondido todas las preguntas\",IF(AND('Adaptación-Transporte'!$A$202=\"La actividad sí contribuye sustancialmente a la sostenibilidad\"),\"La actividad sí contribuye sustancialmente a la sostenibilidad\",\"La actividad no contribuye sustancialmente a la sostenibilidad\"))))))","v":"La actividad sí contribuye sustancialmente a la sostenibilidad"},null,{"$f":"IF('Indice de género-Transporte'!$E$82=\"Por definir\",\"No se han contestado todas las preguntas\",IF('Indice de género-Transporte'!$E$82=\"Sí cumple con el índice de igualdad de género\",\"La actividad sí contribuye sustancialmente a la sostenibilidad\",\"La actividad no genera contribución sustancial\"))","v":"No se han contestado todas las preguntas"},null,6]
["Transporte","484233. Autotransporte foráneo con refrigeración ",{"$f":"IF('Mitigación-Transporte'!A48=\"Por definir\",\"No se han respondido todas las preguntas\",'Mitigación-Transporte'!A48)","v":"No se han respondido todas las preguntas"},{"$f":"IF('Adaptación-Transporte'!$D$207=\"Actividad que facilita la adaptación e incluye desarrollo de infraestructura\",(IF(OR('Adaptación-Transporte'!$A$218=\"Por definir\",'Adaptación-Transporte'!$A$224=\"Por definir\",'Adaptación-Transporte'!$G$228=\"Por definir\",'Adaptación-Transporte'!$A$235=\"Por definir\"),\"No se han respondido todas las preguntas\",IF(AND('Adaptación-Transporte'!$A$218=\"La actividad sí contribuye sustancialmente a la sostenibilidad\",'Adaptación-Transporte'!$A$224=\"La actividad sí contribuye sustancialmente a la sostenibilidad\",'Adaptación-Transporte'!$G$228=\"La actividad sí contribuye sustancialmente a la sostenbilidad\",'Adaptación-Transporte'!$A$235=\"La actividad sí contribuye sustancialmente a la sostenibilidad\"),\"La actividad sí contribuye sustancialmente a la sostenibilidad\",\"La actividad no contribuye sustancialmente a la sostenibilidad\"))),IF('Adaptación-Transporte'!$D$207=\"Actividad adaptada\",(IF(OR('Adaptación-Transporte'!$A$218=\"Por definir\",'Adaptación-Transporte'!$A$224=\"Por definir\",'Adaptación-Transporte'!$G$228=\"Por definir\",'Adaptación-Transporte'!$A$235=\"Por definir\"),\"No se han respondido todas las preguntas\",IF(AND('Adaptación-Transporte'!$A$218=\"La actividad sí contribuye sustancialmente a la sostenibilidad\",'Adaptación-Transporte'!$A$224=\"La actividad sí contribuye sustancialmente a la sostenibilidad\",'Adaptación-Transporte'!$G$228=\"La actividad sí contribuye sustancialmente a la sostenbilidad\"),\"La actividad sí contribuye sustancialmente a la sostenibilidad\",\"La actividad no contribuye sustancialmente a la sostenibilidad\"))),IF('Adaptación-Transporte'!$D$207=\"Actividad que facilita la adaptación\",(IF(OR('Adaptación-Transporte'!$A$235=\"Por definir\"),\"No se han respondido todas las preguntas\",IF(AND('Adaptación-Transporte'!$A$235=\"La actividad sí contribuye sustancialmente a la sostenibilidad\"),\"La actividad sí contribuye sustancialmente a la sostenibilidad\",\"La actividad no contribuye sustancialmente a la sostenibilidad\"))))))","v":"La actividad sí contribuye sustancialmente a la sostenibilidad"},null,{"$f":"IF('Indice de género-Transporte'!$E$82=\"Por definir\",\"No se han contestado todas las preguntas\",IF('Indice de género-Transporte'!$E$82=\"Sí cumple con el índice de igualdad de género\",\"La actividad sí contribuye sustancialmente a la sostenibilidad\",\"La actividad no genera contribución sustancial\"))","v":"No se han contestado todas las preguntas"},null,7]
["Transporte","484234. Autotransporte foráneo de madera",{"$f":"IF('Mitigación-Transporte'!A54=\"Por definir\",\"No se han respondido todas las preguntas\",'Mitigación-Transporte'!A54)","v":"No se han respondido todas las preguntas"},{"$f":"IF('Adaptación-Transporte'!$D$240=\"Actividad que facilita la adaptación e incluye desarrollo de infraestructura\",(IF(OR('Adaptación-Transporte'!$A$251=\"Por definir\",'Adaptación-Transporte'!$A$257=\"Por definir\",'Adaptación-Transporte'!$G$261=\"Por definir\",'Adaptación-Transporte'!$A$268=\"Por definir\"),\"No se han respondido todas las preguntas\",IF(AND('Adaptación-Transporte'!$A$251=\"La actividad sí contribuye sustancialmente a la sostenibilidad\",'Adaptación-Transporte'!$A$257=\"La actividad sí contribuye sustancialmente a la sostenibilidad\",'Adaptación-Transporte'!$G$261=\"La actividad sí contribuye sustancialmente a la sostenbilidad\",'Adaptación-Transporte'!$A$268=\"La actividad sí contribuye sustancialmente a la sostenibilidad\"),\"La actividad sí contribuye sustancialmente a la sostenibilidad\",\"La actividad no contribuye sustancialmente a la sostenibilidad\"))),IF('Adaptación-Transporte'!$D$240=\"Actividad adaptada\",(IF(OR('Adaptación-Transporte'!$A$251=\"Por definir\",'Adaptación-Transporte'!$A$257=\"Por definir\",'Adaptación-Transporte'!$G$261=\"Por definir\",'Adaptación-Transporte'!$A$268=\"Por definir\"),\"No se han respondido todas las preguntas\",IF(AND('Adaptación-Transporte'!$A$251=\"La actividad sí contribuye sustancialmente a la sostenibilidad\",'Adaptación-Transporte'!$A$257=\"La actividad sí contribuye sustancialmente a la sostenibilidad\",'Adaptación-Transporte'!$G$261=\"La actividad sí contribuye sustancialmente a la sostenbilidad\"),\"La actividad sí contribuye sustancialmente a la sostenibilidad\",\"La actividad no contribuye sustancialmente a la sostenibilidad\"))),IF('Adaptación-Transporte'!$D$240=\"Actividad que facilita la adaptación\",(IF(OR('Adaptación-Transporte'!$A$268=\"Por definir\"),\"No se han respondido todas las preguntas\",IF(AND('Adaptación-Transporte'!$A$268=\"La actividad sí contribuye sustancialmente a la sostenibilidad\"),\"La actividad sí contribuye sustancialmente a la sostenibilidad\",\"La actividad no contribuye sustancialmente a la sostenibilidad\"))))))","v":"La actividad sí contribuye sustancialmente a la sostenibilidad"},null,{"$f":"IF('Indice de género-Transporte'!$E$82=\"Por definir\",\"No se han contestado todas las preguntas\",IF('Indice de género-Transporte'!$E$82=\"Sí cumple con el índice de igualdad de género\",\"La actividad sí contribuye sustancialmente a la sostenibilidad\",\"La actividad no genera contribución sustancial\"))","v":"No se han contestado todas las preguntas"},null,8]
["Transporte","484239. Otro autotransporte foráneo de carga especializado ",{"$f":"IF('Mitigación-Transporte'!A60=\"Por definir\",\"No se han respondido todas las preguntas\",'Mitigación-Transporte'!A60)","v":"No se han respondido todas las preguntas"},{"$f":"IF('Adaptación-Transporte'!$D$273=\"Actividad que facilita la adaptación e incluye desarrollo de infraestructura\",(IF(OR('Adaptación-Transporte'!$A$284=\"Por definir\",'Adaptación-Transporte'!$A$290=\"Por definir\",'Adaptación-Transporte'!$G$294=\"Por definir\",'Adaptación-Transporte'!$A$301=\"Por definir\"),\"No se han respondido todas las preguntas\",IF(AND('Adaptación-Transporte'!$A$284=\"La actividad sí contribuye sustancialmente a la sostenibilidad\",'Adaptación-Transporte'!$A$290=\"La actividad sí contribuye sustancialmente a la sostenibilidad\",'Adaptación-Transporte'!$G$294=\"La actividad sí contribuye sustancialmente a la sostenbilidad\",'Adaptación-Transporte'!$A$301=\"La actividad sí contribuye sustancialmente a la sostenibilidad\"),\"La actividad sí contribuye sustancialmente a la sostenibilidad\",\"La actividad no contribuye sustancialmente a la sostenibilidad\"))),IF('Adaptación-Transporte'!$D$273=\"Actividad adaptada\",(IF(OR('Adaptación-Transporte'!$A$284=\"Por definir\",'Adaptación-Transporte'!$A$290=\"Por definir\",'Adaptación-Transporte'!$G$294=\"Por definir\",'Adaptación-Transporte'!$A$301=\"Por definir\"),\"No se han respondido todas las preguntas\",IF(AND('Adaptación-Transporte'!$A$284=\"La actividad sí contribuye sustancialmente a la sostenibilidad\",'Adaptación-Transporte'!$A$290=\"La actividad sí contribuye sustancialmente a la sostenibilidad\",'Adaptación-Transporte'!$G$294=\"La actividad sí contribuye sustancialmente a la sostenbilidad\"),\"La actividad sí contribuye sustancialmente a la sostenibilidad\",\"La actividad no contribuye sustancialmente a la sostenibilidad\"))),IF('Adaptación-Transporte'!$D$273=\"Actividad que facilita la adaptación\",(IF(OR('Adaptación-Transporte'!$A$301=\"Por definir\"),\"No se han respondido todas las preguntas\",IF(AND('Adaptación-Transporte'!$A$301=\"La actividad sí contribuye sustancialmente a la sostenibilidad\"),\"La actividad sí contribuye sustancialmente a la sostenibilidad\",\"La actividad no contribuye sustancialmente a la sostenibilidad\"))))))","v":"La actividad sí contribuye sustancialmente a la sostenibilidad"},null,{"$f":"IF('Indice de género-Transporte'!$E$82=\"Por definir\",\"No se han contestado todas las preguntas\",IF('Indice de género-Transporte'!$E$82=\"Sí cumple con el índice de igualdad de género\",\"La actividad sí contribuye sustancialmente a la sostenibilidad\",\"La actividad no genera contribución sustancial\"))","v":"No se han contestado todas las preguntas"},null,9]
["Transporte","485111. Transporte colectivo urbano y suburbano de pasajeros en autobuses de ruta fija (corredor de transporte)",{"$f":"IF('Mitigación-Transporte'!A67=\"Por definir\",\"No se han respondido todas las preguntas\",'Mitigación-Transporte'!A67)","v":"No se han respondido todas las preguntas"},{"$f":"IF('Adaptación-Transporte'!$D$306=\"Actividad que facilita la adaptación e incluye desarrollo de infraestructura\",(IF(OR('Adaptación-Transporte'!$A$317=\"Por definir\",'Adaptación-Transporte'!$A$323=\"Por definir\",'Adaptación-Transporte'!$G$327=\"Por definir\",'Adaptación-Transporte'!$A$334=\"Por definir\"),\"No se han respondido todas las preguntas\",IF(AND('Adaptación-Transporte'!$A$317=\"La actividad sí contribuye sustancialmente a la sostenibilidad\",'Adaptación-Transporte'!$A$323=\"La actividad sí contribuye sustancialmente a la sostenibilidad\",'Adaptación-Transporte'!$G$327=\"La actividad sí contribuye sustancialmente a la sostenbilidad\",'Adaptación-Transporte'!$A$334=\"La actividad sí contribuye sustancialmente a la sostenibilidad\"),\"La actividad sí contribuye sustancialmente a la sostenibilidad\",\"La actividad no contribuye sustancialmente a la sostenibilidad\"))),IF('Adaptación-Transporte'!$D$306=\"Actividad adaptada\",(IF(OR('Adaptación-Transporte'!$A$317=\"Por definir\",'Adaptación-Transporte'!$A$323=\"Por definir\",'Adaptación-Transporte'!$G$327=\"Por definir\",'Adaptación-Transporte'!$A$334=\"Por definir\"),\"No se han respondido todas las preguntas\",IF(AND('Adaptación-Transporte'!$A$317=\"La actividad sí contribuye sustancialmente a la sostenibilidad\",'Adaptación-Transporte'!$A$323=\"La actividad sí contribuye sustancialmente a la sostenibilidad\",'Adaptación-Transporte'!$G$327=\"La actividad sí contribuye sustancialmente a la sostenbilidad\"),\"La actividad sí contribuye sustancialmente a la sostenibilidad\",\"La actividad no contribuye sustancialmente a la sostenibilidad\"))),IF('Adaptación-Transporte'!$D$306=\"Actividad que facilita la adaptación\",(IF(OR('Adaptación-Transporte'!$A$334=\"Por definir\"),\"No se han respondido todas las preguntas\",IF(AND('Adaptación-Transporte'!$A$334=\"La actividad sí contribuye sustancialmente a la sostenibilidad\"),\"La actividad sí contribuye sustancialmente a la sostenibilidad\",\"La actividad no contribuye sustancialmente a la sostenibilidad\"))))))","v":"La actividad sí contribuye sustancialmente a la sostenibilidad"},null,{"$f":"IF('Indice de género-Transporte'!$E$82=\"Por definir\",\"No se han contestado todas las preguntas\",IF('Indice de género-Transporte'!$E$82=\"Sí cumple con el índice de igualdad de género\",\"La actividad sí contribuye sustancialmente a la sostenibilidad\",\"La actividad no genera contribución sustancial\"))","v":"No se han contestado todas las preguntas"},null,10]
["Transporte","485112. Transporte colectivo urbano y suburbano de pasajeros en automóviles de ruta fija ",{"$f":"IF('Mitigación-Transporte'!A74=\"Por definir\",\"No se han respondido todas las preguntas\",'Mitigación-Transporte'!A74)","v":"No se han respondido todas las preguntas"},{"$f":"IF('Adaptación-Transporte'!$D$339=\"Actividad que facilita la adaptación e incluye desarrollo de infraestructura\",(IF(OR('Adaptación-Transporte'!$A$350=\"Por definir\",'Adaptación-Transporte'!$A$356=\"Por definir\",'Adaptación-Transporte'!$G$360=\"Por definir\",'Adaptación-Transporte'!$A$367=\"Por definir\"),\"No se han respondido todas las preguntas\",IF(AND('Adaptación-Transporte'!$A$350=\"La actividad sí contribuye sustancialmente a la sostenibilidad\",'Adaptación-Transporte'!$A$356=\"La actividad sí contribuye sustancialmente a la sostenibilidad\",'Adaptación-Transporte'!$G$360=\"La actividad sí contribuye sustancialmente a la sostenbilidad\",'Adaptación-Transporte'!$A$367=\"La actividad sí contribuye sustancialmente a la sostenibilidad\"),\"La actividad sí contribuye sustancialmente a la sostenibilidad\",\"La actividad no contribuye sustancialmente a la sostenibilidad\"))),IF('Adaptación-Transporte'!$D$339=\"Actividad adaptada\",(IF(OR('Adaptación-Transporte'!$A$350=\"Por definir\",'Adaptación-Transporte'!$A$356=\"Por definir\",'Adaptación-Transporte'!$G$360=\"Por definir\",'Adaptación-Transporte'!$A$367=\"Por definir\"),\"No se han respondido todas las preguntas\",IF(AND('Adaptación-Transporte'!$A$350=\"La actividad sí contribuye sustancialmente a la sostenibilidad\",'Adaptación-Transporte'!$A$356=\"La actividad sí contribuye sustancialmente a la sostenibilidad\",'Adaptación-Transporte'!$G$360=\"La actividad sí contribuye sustancialmente a la sostenbilidad\"),\"La actividad sí contribuye sustancialmente a la sostenibilidad\",\"La actividad no contribuye sustancialmente a la sostenibilidad\"))),IF('Adaptación-Transporte'!$D$339=\"Actividad que facilita la adaptación\",(IF(OR('Adaptación-Transporte'!$A$367=\"Por definir\"),\"No se han respondido todas las preguntas\",IF(AND('Adaptación-Transporte'!$A$367=\"La actividad sí contribuye sustancialmente a la sostenibilidad\"),\"La actividad sí contribuye sustancialmente a la sostenibilidad\",\"La actividad no contribuye sustancialmente a la sostenibilidad\"))))))","v":"La actividad sí contribuye sustancialmente a la sostenibilidad"},null,{"$f":"IF('Indice de género-Transporte'!$E$82=\"Por definir\",\"No se han contestado todas las preguntas\",IF('Indice de género-Transporte'!$E$82=\"Sí cumple con el índice de igualdad de género\",\"La actividad sí contribuye sustancialmente a la sostenibilidad\",\"La actividad no genera contribución sustancial\"))","v":"No se han contestado todas las preguntas"},null,11]
["Transporte","485113. Transporte colectivo urbano y suburbano de pasajeros en trolebuses y trenes ligeros ",{"$f":"IF('Mitigación-Transporte'!E98=\"Por definir\",\"No se han respondido todas las preguntas\",IF('Mitigación-Transporte'!E98=\"Es elegible como actividad que contribuye sustancialmente a la sostenibilidad, pero este criterio solo es válido hasta 2025. A partir de ese año, la actividad no contribuirá sustancialmente a la sostenibilidad\",\"La actividad sí contribuye sustancialmente a la sostenibilidad\",\"La actividad no cumple con contribución sustancial\"))","v":"No se han respondido todas las preguntas"},{"$f":"IF('Adaptación-Transporte'!$D$471=\"Actividad que facilita la adaptación e incluye desarrollo de infraestructura\",(IF(OR('Adaptación-Transporte'!$A$482=\"Por definir\",'Adaptación-Transporte'!$A$488=\"Por definir\",'Adaptación-Transporte'!$G$492=\"Por definir\",'Adaptación-Transporte'!$A$499=\"Por definir\"),\"No se han respondido todas las preguntas\",IF(AND('Adaptación-Transporte'!$A$482=\"La actividad sí contribuye sustancialmente a la sostenibilidad\",'Adaptación-Transporte'!$A$488=\"La actividad sí contribuye sustancialmente a la sostenibilidad\",'Adaptación-Transporte'!$G$492=\"La actividad sí contribuye sustancialmente a la sostenbilidad\",'Adaptación-Transporte'!$A$499=\"La actividad sí contribuye sustancialmente a la sostenibilidad\"),\"La actividad sí contribuye sustancialmente a la sostenibilidad\",\"La actividad no contribuye sustancialmente a la sostenibilidad\"))),IF('Adaptación-Transporte'!$D$471=\"Actividad adaptada\",(IF(OR('Adaptación-Transporte'!$A$482=\"Por definir\",'Adaptación-Transporte'!$A$488=\"Por definir\",'Adaptación-Transporte'!$G$492=\"Por definir\",'Adaptación-Transporte'!$A$499=\"Por definir\"),\"No se han respondido todas las preguntas\",IF(AND('Adaptación-Transporte'!$A$482=\"La actividad sí contribuye sustancialmente a la sostenibilidad\",'Adaptación-Transporte'!$A$488=\"La actividad sí contribuye sustancialmente a la sostenibilidad\",'Adaptación-Transporte'!$G$492=\"La actividad sí contribuye sustancialmente a la sostenbilidad\"),\"La actividad sí contribuye sustancialmente a la sostenibilidad\",\"La actividad no contribuye sustancialmente a la sostenibilidad\"))),IF('Adaptación-Transporte'!$D$471=\"Actividad que facilita la adaptación\",(IF(OR('Adaptación-Transporte'!$A$499=\"Por definir\"),\"No se han respondido todas las preguntas\",IF(AND('Adaptación-Transporte'!$A$499=\"La actividad sí contribuye sustancialmente a la sostenibilidad\"),\"La actividad sí contribuye sustancialmente a la sostenibilidad\",\"La actividad no contribuye sustancialmente a la sostenibilidad\"))))))","v":"La actividad sí contribuye sustancialmente a la sostenibilidad"},null,{"$f":"IF('Indice de género-Transporte'!$E$82=\"Por definir\",\"No se han contestado todas las preguntas\",IF('Indice de género-Transporte'!$E$82=\"Sí cumple con el índice de igualdad de género\",\"La actividad sí contribuye sustancialmente a la sostenibilidad\",\"La actividad no genera contribución sustancial\"))","v":"No se han contestado todas las preguntas"},null,15]
["Transporte","485114. Transporte colectivo urbano y suburbano de pasajeros en metro ",{"$f":"IF('Mitigación-Transporte'!E101=\"Por definir\",\"No se han respondido todas las preguntas\",IF('Mitigación-Transporte'!E101=\"Es elegible como actividad que contribuye sustancialmente a la sostenibilidad, pero este criterio solo es válido hasta 2025. A partir de ese año, la actividad no contribuirá sustancialmente a la sostenibilidad\",\"La actividad sí contribuye sustancialmente a la sostenibilidad\",\"La actividad no cumple con contribución sustancial\"))","v":"No se han respondido todas las preguntas"},{"$f":"IF('Adaptación-Transporte'!$D$504=\"Actividad que facilita la adaptación e incluye desarrollo de infraestructura\",(IF(OR('Adaptación-Transporte'!$A$515=\"Por definir\",'Adaptación-Transporte'!$A$521=\"Por definir\",'Adaptación-Transporte'!$G$525=\"Por definir\",'Adaptación-Transporte'!$A$532=\"Por definir\"),\"No se han respondido todas las preguntas\",IF(AND('Adaptación-Transporte'!$A$515=\"La actividad sí contribuye sustancialmente a la sostenibilidad\",'Adaptación-Transporte'!$A$521=\"La actividad sí contribuye sustancialmente a la sostenibilidad\",'Adaptación-Transporte'!$G$525=\"La actividad sí contribuye sustancialmente a la sostenbilidad\",'Adaptación-Transporte'!$A$532=\"La actividad sí contribuye sustancialmente a la sostenibilidad\"),\"La actividad sí contribuye sustancialmente a la sostenibilidad\",\"La actividad no contribuye sustancialmente a la sostenibilidad\"))),IF('Adaptación-Transporte'!$D$504=\"Actividad adaptada\",(IF(OR('Adaptación-Transporte'!$A$515=\"Por definir\",'Adaptación-Transporte'!$A$521=\"Por definir\",'Adaptación-Transporte'!$G$525=\"Por definir\",'Adaptación-Transporte'!$A$532=\"Por definir\"),\"No se han respondido todas las preguntas\",IF(AND('Adaptación-Transporte'!$A$515=\"La actividad sí contribuye sustancialmente a la sostenibilidad\",'Adaptación-Transporte'!$A$521=\"La actividad sí contribuye sustancialmente a la sostenibilidad\",'Adaptación-Transporte'!$G$525=\"La actividad sí contribuye sustancialmente a la sostenbilidad\"),\"La actividad sí contribuye sustancialmente a la sostenibilidad\",\"La actividad no contribuye sustancialmente a la sostenibilidad\"))),IF('Adaptación-Transporte'!$D$504=\"Actividad que facilita la adaptación\",(IF(OR('Adaptación-Transporte'!$A$532=\"Por definir\"),\"No se han respondido todas las preguntas\",IF(AND('Adaptación-Transporte'!$A$532=\"La actividad sí contribuye sustancialmente a la sostenibilidad\"),\"La actividad sí contribuye sustancialmente a la sostenibilidad\",\"La actividad no contribuye sustancialmente a la sostenibilidad\"))))))","v":"La actividad sí contribuye sustancialmente a la sostenibilidad"},null,{"$f":"IF('Indice de género-Transporte'!$E$82=\"Por definir\",\"No se han contestado todas las preguntas\",IF('Indice de género-Transporte'!$E$82=\"Sí cumple con el índice de igualdad de género\",\"La actividad sí contribuye sustancialmente a la sostenibilidad\",\"La actividad no genera contribución sustancial\"))","v":"No se han contestado todas las preguntas"},null,16]
["Transporte","485115. Transporte colectivo urbano y suburbano de pasajeros en autobuses que transitan en carril exclusivo (BRT) ",{"$f":"IF('Mitigación-Transporte'!A88=\"Por definir\",\"No se han respondido todas las preguntas\",'Mitigación-Transporte'!A88)","v":"No se han respondido todas las preguntas"},{"$f":"IF('Adaptación-Transporte'!$D$405=\"Actividad que facilita la adaptación e incluye desarrollo de infraestructura\",(IF(OR('Adaptación-Transporte'!$A$416=\"Por definir\",'Adaptación-Transporte'!$A$422=\"Por definir\",'Adaptación-Transporte'!$G$426=\"Por definir\",'Adaptación-Transporte'!$A$433=\"Por definir\"),\"No se han respondido todas las preguntas\",IF(AND('Adaptación-Transporte'!$A$416=\"La actividad sí contribuye sustancialmente a la sostenibilidad\",'Adaptación-Transporte'!$A$422=\"La actividad sí contribuye sustancialmente a la sostenibilidad\",'Adaptación-Transporte'!$G$426=\"La actividad sí contribuye sustancialmente a la sostenbilidad\",'Adaptación-Transporte'!$A$433=\"La actividad sí contribuye sustancialmente a la sostenibilidad\"),\"La actividad sí contribuye sustancialmente a la sostenibilidad\",\"La actividad no contribuye sustancialmente a la sostenibilidad\"))),IF('Adaptación-Transporte'!$D$405=\"Actividad adaptada\",(IF(OR('Adaptación-Transporte'!$A$416=\"Por definir\",'Adaptación-Transporte'!$A$422=\"Por definir\",'Adaptación-Transporte'!$G$426=\"Por definir\",'Adaptación-Transporte'!$A$433=\"Por definir\"),\"No se han respondido todas las preguntas\",IF(AND('Adaptación-Transporte'!$A$416=\"La actividad sí contribuye sustancialmente a la sostenibilidad\",'Adaptación-Transporte'!$A$422=\"La actividad sí contribuye sustancialmente a la sostenibilidad\",'Adaptación-Transporte'!$G$426=\"La actividad sí contribuye sustancialmente a la sostenbilidad\"),\"La actividad sí contribuye sustancialmente a la sostenibilidad\",\"La actividad no contribuye sustancialmente a la sostenibilidad\"))),IF('Adaptación-Transporte'!$D$405=\"Actividad que facilita la adaptación\",(IF(OR('Adaptación-Transporte'!$A$433=\"Por definir\"),\"No se han respondido todas las preguntas\",IF(AND('Adaptación-Transporte'!$A$433=\"La actividad sí contribuye sustancialmente a la sostenibilidad\"),\"La actividad sí contribuye sustancialmente a la sostenibilidad\",\"La actividad no contribuye sustancialmente a la sostenibilidad\"))))))","v":"La actividad sí contribuye sustancialmente a la sostenibilidad"},null,{"$f":"IF('Indice de género-Transporte'!$E$82=\"Por definir\",\"No se han contestado todas las preguntas\",IF('Indice de género-Transporte'!$E$82=\"Sí cumple con el índice de igualdad de género\",\"La actividad sí contribuye sustancialmente a la sostenibilidad\",\"La actividad no genera contribución sustancial\"))","v":"No se han contestado todas las preguntas"},null,13]
["Transporte","485210. Transporte colectivo foráneo de pasajeros de ruta fija ",{"$f":"IF('Mitigación-Transporte'!A81=\"Por definir\",\"No se han respondido todas las preguntas\",'Mitigación-Transporte'!A81)","v":"No se han respondido todas las preguntas"},{"$f":"IF('Adaptación-Transporte'!$D$372=\"Actividad que facilita la adaptación e incluye desarrollo de infraestructura\",(IF(OR('Adaptación-Transporte'!$A$383=\"Por definir\",'Adaptación-Transporte'!$A$389=\"Por definir\",'Adaptación-Transporte'!$G$393=\"Por definir\",'Adaptación-Transporte'!$A$400=\"Por definir\"),\"No se han respondido todas las preguntas\",IF(AND('Adaptación-Transporte'!$A$383=\"La actividad sí contribuye sustancialmente a la sostenibilidad\",'Adaptación-Transporte'!$A$389=\"La actividad sí contribuye sustancialmente a la sostenibilidad\",'Adaptación-Transporte'!$G$393=\"La actividad sí contribuye sustancialmente a la sostenbilidad\",'Adaptación-Transporte'!$A$400=\"La actividad sí contribuye sustancialmente a la sostenibilidad\"),\"La actividad sí contribuye sustancialmente a la sostenibilidad\",\"La actividad no contribuye sustancialmente a la sostenibilidad\"))),IF('Adaptación-Transporte'!$D$372=\"Actividad adaptada\",(IF(OR('Adaptación-Transporte'!$A$383=\"Por definir\",'Adaptación-Transporte'!$A$389=\"Por definir\",'Adaptación-Transporte'!$G$393=\"Por definir\",'Adaptación-Transporte'!$A$400=\"Por definir\"),\"No se han respondido todas las preguntas\",IF(AND('Adaptación-Transporte'!$A$383=\"La actividad sí contribuye sustancialmente a la sostenibilidad\",'Adaptación-Transporte'!$A$389=\"La actividad sí contribuye sustancialmente a la sostenibilidad\",'Adaptación-Transporte'!$G$393=\"La actividad sí contribuye sustancialmente a la sostenbilidad\"),\"La actividad sí contribuye sustancialmente a la sostenibilidad\",\"La actividad no contribuye sustancialmente a la sostenibilidad\"))),IF('Adaptación-Transporte'!$D$372=\"Actividad que facilita la adaptación\",(IF(OR('Adaptación-Transporte'!$A$400=\"Por definir\"),\"No se han respondido todas las preguntas\",IF(AND('Adaptación-Transporte'!$A$400=\"La actividad sí contribuye sustancialmente a la sostenibilidad\"),\"La actividad sí contribuye sustancialmente a la sostenibilidad\",\"La actividad no contribuye sustancialmente a la sostenibilidad\"))))))","v":"La actividad sí contribuye sustancialmente a la sostenibilidad"},null,{"$f":"IF('Indice de género-Transporte'!$E$82=\"Por definir\",\"No se han contestado todas las preguntas\",IF('Indice de género-Transporte'!$E$82=\"Sí cumple con el índice de igualdad de género\",\"La actividad sí contribuye sustancialmente a la sostenibilidad\",\"La actividad no genera contribución sustancial\"))","v":"No se han contestado todas las preguntas"},null,12]
["Transporte","485311 (2). Vehículos ligeros ",{"$f":"IF('Mitigación-Transporte'!A107=\"Por definir\",\"No se han respondido todas las preguntas\",'Mitigación-Transporte'!A107)","v":"No se han respondido todas las preguntas"},{"$f":"IF('Adaptación-Transporte'!$D$537=\"Actividad que facilita la adaptación e incluye desarrollo de infraestructura\",(IF(OR('Adaptación-Transporte'!$A$548=\"Por definir\",'Adaptación-Transporte'!$A$554=\"Por definir\",'Adaptación-Transporte'!$G$558=\"Por definir\",'Adaptación-Transporte'!$A$565=\"Por definir\"),\"No se han respondido todas las preguntas\",IF(AND('Adaptación-Transporte'!$A$548=\"La actividad sí contribuye sustancialmente a la sostenibilidad\",'Adaptación-Transporte'!$A$554=\"La actividad sí contribuye sustancialmente a la sostenibilidad\",'Adaptación-Transporte'!$G$558=\"La actividad sí contribuye sustancialmente a la sostenbilidad\",'Adaptación-Transporte'!$A$565=\"La actividad sí contribuye sustancialmente a la sostenibilidad\"),\"La actividad sí contribuye sustancialmente a la sostenibilidad\",\"La actividad no contribuye sustancialmente a la sostenibilidad\"))),IF('Adaptación-Transporte'!$D$537=\"Actividad adaptada\",(IF(OR('Adaptación-Transporte'!$A$548=\"Por definir\",'Adaptación-Transporte'!$A$554=\"Por definir\",'Adaptación-Transporte'!$G$558=\"Por definir\",'Adaptación-Transporte'!$A$565=\"Por definir\"),\"No se han respondido todas las preguntas\",IF(AND('Adaptación-Transporte'!$A$548=\"La actividad sí contribuye sustancialmente a la sostenibilidad\",'Adaptación-Transporte'!$A$554=\"La actividad sí contribuye sustancialmente a la sostenibilidad\",'Adaptación-Transporte'!$G$558=\"La actividad sí contribuye sustancialmente a la sostenbilidad\"),\"La actividad sí contribuye sustancialmente a la sostenibilidad\",\"La actividad no contribuye sustancialmente a la sostenibilidad\"))),IF('Adaptación-Transporte'!$D$537=\"Actividad que facilita la adaptación\",(IF(OR('Adaptación-Transporte'!$A$565=\"Por definir\"),\"No se han respondido todas las preguntas\",IF(AND('Adaptación-Transporte'!$A$565=\"La actividad sí contribuye sustancialmente a la sostenibilidad\"),\"La actividad sí contribuye sustancialmente a la sostenibilidad\",\"La actividad no contribuye sustancialmente a la sostenibilidad\"))))))","v":"La actividad sí contribuye sustancialmente a la sostenibilidad"},null,{"$f":"IF('Indice de género-Transporte'!$E$82=\"Por definir\",\"No se han contestado todas las preguntas\",IF('Indice de género-Transporte'!$E$82=\"Sí cumple con el índice de igualdad de género\",\"La actividad sí contribuye sustancialmente a la sostenibilidad\",\"La actividad no genera contribución sustancial\"))","v":"No se han contestado todas las preguntas"},null,17]
["Transporte","485311. Transporte de pasajeros en taxis de sitio ",{"$f":"IF('Mitigación-Transporte'!A113=\"Por definir\",\"No se han respondido todas las preguntas\",'Mitigación-Transporte'!A113)","v":"No se han respondido todas las preguntas"},{"$f":"IF('Adaptación-Transporte'!$D$570=\"Actividad que facilita la adaptación e incluye desarrollo de infraestructura\",(IF(OR('Adaptación-Transporte'!$A$581=\"Por definir\",'Adaptación-Transporte'!$A$587=\"Por definir\",'Adaptación-Transporte'!$A$591=\"Por definir\",'Adaptación-Transporte'!$A$598=\"Por definir\"),\"No se han respondido todas las preguntas\",IF(AND('Adaptación-Transporte'!$A$581=\"La actividad sí contribuye sustancialmente a la sostenibilidad\",'Adaptación-Transporte'!$A$587=\"La actividad sí contribuye sustancialmente a la sostenibilidad\",'Adaptación-Transporte'!$A$591=\"La actividad sí contribuye sustancialmente a la sostenbilidad\",'Adaptación-Transporte'!$A$598=\"La actividad sí contribuye sustancialmente a la sostenibilidad\"),\"La actividad sí contribuye sustancialmente a la sostenibilidad\",\"La actividad no contribuye sustancialmente a la sostenibilidad\"))),IF('Adaptación-Transporte'!$D$570=\"Actividad adaptada\",(IF(OR('Adaptación-Transporte'!$A$581=\"Por definir\",'Adaptación-Transporte'!$A$587=\"Por definir\",'Adaptación-Transporte'!$A$591=\"Por definir\",'Adaptación-Transporte'!$A$598=\"Por definir\"),\"No se han respondido todas las preguntas\",IF(AND('Adaptación-Transporte'!$A$581=\"La actividad sí contribuye sustancialmente a la sostenibilidad\",'Adaptación-Transporte'!$A$587=\"La actividad sí contribuye sustancialmente a la sostenibilidad\",'Adaptación-Transporte'!$A$591=\"La actividad sí contribuye sustancialmente a la sostenbilidad\"),\"La actividad sí contribuye sustancialmente a la sostenibilidad\",\"La actividad no contribuye sustancialmente a la sostenibilidad\"))),IF('Adaptación-Transporte'!$D$570=\"Actividad que facilita la adaptación\",(IF(OR('Adaptación-Transporte'!$A$598=\"Por definir\"),\"No se han respondido todas las preguntas\",IF(AND('Adaptación-Transporte'!$A$598=\"La actividad sí contribuye sustancialmente a la sostenibilidad\"),\"La actividad sí contribuye sustancialmente a la sostenibilidad\",\"La actividad no contribuye sustancialmente a la sostenibilidad\"))))))","v":"La actividad no contribuye sustancialmente a la sostenibilidad"},null,{"$f":"IF('Indice de género-Transporte'!$E$82=\"Por definir\",\"No se han contestado todas las preguntas\",IF('Indice de género-Transporte'!$E$82=\"Sí cumple con el índice de igualdad de género\",\"La actividad sí contribuye sustancialmente a la sostenibilidad\",\"La actividad no genera contribución sustancial\"))","v":"No se han contestado todas las preguntas"},null,18]
["Transporte","487110. Transporte turístico por tierra",{"$f":"IF('Mitigación-Transporte'!A95=\"Por definir\",\"No se han respondido todas las preguntas\",'Mitigación-Transporte'!A95)","v":"No se han respondido todas las preguntas"},{"$f":"IF('Adaptación-Transporte'!$D$438=\"Actividad que facilita la adaptación e incluye desarrollo de infraestructura\",(IF(OR('Adaptación-Transporte'!$A$449=\"Por definir\",'Adaptación-Transporte'!$A$455=\"Por definir\",'Adaptación-Transporte'!$G$459=\"Por definir\",'Adaptación-Transporte'!$A$466=\"Por definir\"),\"No se han respondido todas las preguntas\",IF(AND('Adaptación-Transporte'!$A$449=\"La actividad sí contribuye sustancialmente a la sostenibilidad\",'Adaptación-Transporte'!$A$455=\"La actividad sí contribuye sustancialmente a la sostenibilidad\",'Adaptación-Transporte'!$G$459=\"La actividad sí contribuye sustancialmente a la sostenbilidad\",'Adaptación-Transporte'!$A$466=\"La actividad sí contribuye sustancialmente a la sostenibilidad\"),\"La actividad sí contribuye sustancialmente a la sostenibilidad\",\"La actividad no contribuye sustancialmente a la sostenibilidad\"))),IF('Adaptación-Transporte'!$D$438=\"Actividad adaptada\",(IF(OR('Adaptación-Transporte'!$A$449=\"Por definir\",'Adaptación-Transporte'!$A$455=\"Por definir\",'Adaptación-Transporte'!$G$459=\"Por definir\",'Adaptación-Transporte'!$A$466=\"Por definir\"),\"No se han respondido todas las preguntas\",IF(AND('Adaptación-Transporte'!$A$449=\"La actividad sí contribuye sustancialmente a la sostenibilidad\",'Adaptación-Transporte'!$A$455=\"La actividad sí contribuye sustancialmente a la sostenibilidad\",'Adaptación-Transporte'!$G$459=\"La actividad sí contribuye sustancialmente a la sostenbilidad\"),\"La actividad sí contribuye sustancialmente a la sostenibilidad\",\"La actividad no contribuye sustancialmente a la sostenibilidad\"))),IF('Adaptación-Transporte'!$D$438=\"Actividad que facilita la adaptación\",(IF(OR('Adaptación-Transporte'!$A$466=\"Por definir\"),\"No se han respondido todas las preguntas\",IF(AND('Adaptación-Transporte'!$A$466=\"La actividad sí contribuye sustancialmente a la sostenibilidad\"),\"La actividad sí contribuye sustancialmente a la sostenibilidad\",\"La actividad no contribuye sustancialmente a la sostenibilidad\"))))))","v":"La actividad sí contribuye sustancialmente a la sostenibilidad"},null,{"$f":"IF('Indice de género-Transporte'!$E$82=\"Por definir\",\"No se han contestado todas las preguntas\",IF('Indice de género-Transporte'!$E$82=\"Sí cumple con el índice de igualdad de género\",\"La actividad sí contribuye sustancialmente a la sostenibilidad\",\"La actividad no genera contribución sustancial\"))","v":"No se han contestado todas las preguntas"},null,14]
["Residuos","562121. Recolección de residuos no peligrosos por el sector privado ",{"$f":"IF('Mitigación-Residuos'!A11=\"Por definir\",\"No se respondieron todas las preguntas\",'Mitigación-Residuos'!A11)","v":"No se respondieron todas las preguntas"},{"$f":"IF('Adaptación-Residuos'!$D$9=\"Actividad que facilita la adaptación e incluye desarrollo de infraestructura\",(IF(OR('Adaptación-Residuos'!$A$20=\"Por definir\",'Adaptación-Residuos'!$A$26=\"Por definir\",'Adaptación-Residuos'!$G$30=\"Por definir\",'Adaptación-Residuos'!$A$37=\"Por definir\"),\"No se han respondido todas las preguntas\",IF(AND('Adaptación-Residuos'!$A$20=\"La actividad sí contribuye sustancialmente a la sostenibilidad\",'Adaptación-Residuos'!$A$26=\"La actividad sí contribuye sustancialmente a la sostenibilidad\",'Adaptación-Residuos'!$G$30=\"La actividad sí contribuye sustancialmente a la sostenbilidad\",'Adaptación-Residuos'!$A$37=\"La actividad sí contribuye sustancialmente a la sostenibilidad\"),\"La actividad sí contribuye sustancialmente a la sostenibilidad\",\"La actividad no contribuye sustancialmente a la sostenibilidad\"))),IF('Adaptación-Residuos'!$D$9=\"Actividad adaptada\",(IF(OR('Adaptación-Residuos'!$A$20=\"Por definir\",'Adaptación-Residuos'!$A$26=\"Por definir\",'Adaptación-Residuos'!$G$30=\"Por definir\",'Adaptación-Residuos'!$A$37=\"Por definir\"),\"No se han respondido todas las preguntas\",IF(AND('Adaptación-Residuos'!$A$20=\"La actividad sí contribuye sustancialmente a la sostenibilidad\",'Adaptación-Residuos'!$A$26=\"La actividad sí contribuye sustancialmente a la sostenibilidad\",'Adaptación-Residuos'!$G$30=\"La actividad sí contribuye sustancialmente a la sostenbilidad\"),\"La actividad sí contribuye sustancialmente a la sostenibilidad\",\"La actividad no contribuye sustancialmente a la sostenibilidad\"))),IF('Adaptación-Residuos'!$D$9=\"Actividad que facilita la adaptación\",(IF(OR('Adaptación-Residuos'!$A$37=\"Por definir\"),\"No se han respondido todas las preguntas\",IF(AND('Adaptación-Residuos'!$A$37=\"La actividad sí contribuye sustancialmente a la sostenibilidad\"),\"La actividad sí contribuye sustancialmente a la sostenibilidad\",\"La actividad no contribuye sustancialmente a la sostenibilidad\"))))))","v":"La actividad sí contribuye sustancialmente a la sostenibilidad"},null,{"$f":"IF('Indice de género-Residuos'!$E$82=\"Por definir\",\"No se han contestado todas las preguntas\",IF('Indice de género-Residuos'!$E$82=\"Sí cumple con el índice de igualdad de género\",\"La actividad sí contribuye sustancialmente a la sostenibilidad\",\"La actividad no genera contribución sustancial\"))","v":"La actividad sí contribuye sustancialmente a la sostenibilidad"}]
["Residuos","562122. Recolección de residuos no peligrosos por el sector público ",{"$f":"IF('Mitigación-Residuos'!A18=\"Por definir\",\"No se respondieron todas las preguntas\",'Mitigación-Residuos'!A18)","v":"No se respondieron todas las preguntas"},{"$f":"IF('Adaptación-Residuos'!$D$42=\"Actividad que facilita la adaptación e incluye desarrollo de infraestructura\",(IF(OR('Adaptación-Residuos'!$A$53=\"Por definir\",'Adaptación-Residuos'!$A$59=\"Por definir\",'Adaptación-Residuos'!$G$63=\"Por definir\",'Adaptación-Residuos'!$A$70=\"Por definir\"),\"No se han respondido todas las preguntas\",IF(AND('Adaptación-Residuos'!$A$53=\"La actividad sí contribuye sustancialmente a la sostenibilidad\",'Adaptación-Residuos'!$A$59=\"La actividad sí contribuye sustancialmente a la sostenibilidad\",'Adaptación-Residuos'!$G$63=\"La actividad sí contribuye sustancialmente a la sostenbilidad\",'Adaptación-Residuos'!$A$70=\"La actividad sí contribuye sustancialmente a la sostenibilidad\"),\"La actividad sí contribuye sustancialmente a la sostenibilidad\",\"La actividad no contribuye sustancialmente a la sostenibilidad\"))),IF('Adaptación-Residuos'!$D$42=\"Actividad adaptada\",(IF(OR('Adaptación-Residuos'!$A$53=\"Por definir\",'Adaptación-Residuos'!$A$59=\"Por definir\",'Adaptación-Residuos'!$G$63=\"Por definir\",'Adaptación-Residuos'!$A$70=\"Por definir\"),\"No se han respondido todas las preguntas\",IF(AND('Adaptación-Residuos'!$A$53=\"La actividad sí contribuye sustancialmente a la sostenibilidad\",'Adaptación-Residuos'!$A$59=\"La actividad sí contribuye sustancialmente a la sostenibilidad\",'Adaptación-Residuos'!$G$63=\"La actividad sí contribuye sustancialmente a la sostenbilidad\"),\"La actividad sí contribuye sustancialmente a la sostenibilidad\",\"La actividad no contribuye sustancialmente a la sostenibilidad\"))),IF('Adaptación-Residuos'!$D$42=\"Actividad que facilita la adaptación\",(IF(OR('Adaptación-Residuos'!$A$70=\"Por definir\"),\"No se han respondido todas las preguntas\",IF(AND('Adaptación-Residuos'!$A$70=\"La actividad sí contribuye sustancialmente a la sostenibilidad\"),\"La actividad sí contribuye sustancialmente a la sostenibilidad\",\"La actividad no contribuye sustancialmente a la sostenibilidad\"))))))","v":"La actividad sí contribuye sustancialmente a la sostenibilidad"},null,{"$f":"IF('Indice de género-Residuos'!$E$82=\"Por definir\",\"No se han contestado todas las preguntas\",IF('Indice de género-Residuos'!$E$82=\"Sí cumple con el índice de igualdad de género\",\"La actividad sí contribuye sustancialmente a la sostenibilidad\",\"La actividad no genera contribución sustancial\"))","v":"La actividad sí contribuye sustancialmente a la sostenibilidad"}]
["Residuos","562221. Tratamiento y disposición final de residuos no peligrosos por el sector privado (Compostaje) ",{"$f":"IF('Mitigación-Residuos'!A44=\"Por definir\",\"No se respondieron todas las preguntas\",'Mitigación-Residuos'!A44)","v":"No se respondieron todas las preguntas"},{"$f":"IF('Adaptación-Residuos'!$D$141=\"Actividad que facilita la adaptación e incluye desarrollo de infraestructura\",(IF(OR('Adaptación-Residuos'!$A$152=\"Por definir\",'Adaptación-Residuos'!$A$158=\"Por definir\",'Adaptación-Residuos'!$G$162=\"Por definir\",'Adaptación-Residuos'!$A$169=\"Por definir\"),\"No se han respondido todas las preguntas\",IF(AND('Adaptación-Residuos'!$A$152=\"La actividad sí contribuye sustancialmente a la sostenibilidad\",'Adaptación-Residuos'!$A$158=\"La actividad sí contribuye sustancialmente a la sostenibilidad\",'Adaptación-Residuos'!$G$162=\"La actividad sí contribuye sustancialmente a la sostenbilidad\",'Adaptación-Residuos'!$A$169=\"La actividad sí contribuye sustancialmente a la sostenibilidad\"),\"La actividad sí contribuye sustancialmente a la sostenibilidad\",\"La actividad no contribuye sustancialmente a la sostenibilidad\"))),IF('Adaptación-Residuos'!$D$141=\"Actividad adaptada\",(IF(OR('Adaptación-Residuos'!$A$152=\"Por definir\",'Adaptación-Residuos'!$A$158=\"Por definir\",'Adaptación-Residuos'!$G$162=\"Por definir\",'Adaptación-Residuos'!$A$169=\"Por definir\"),\"No se han respondido todas las preguntas\",IF(AND('Adaptación-Residuos'!$A$152=\"La actividad sí contribuye sustancialmente a la sostenibilidad\",'Adaptación-Residuos'!$A$158=\"La actividad sí contribuye sustancialmente a la sostenibilidad\",'Adaptación-Residuos'!$G$162=\"La actividad sí contribuye sustancialmente a la sostenbilidad\"),\"La actividad sí contribuye sustancialmente a la sostenibilidad\",\"La actividad no contribuye sustancialmente a la sostenibilidad\"))),IF('Adaptación-Residuos'!$D$141=\"Actividad que facilita la adaptación\",(IF(OR('Adaptación-Residuos'!$A$169=\"Por definir\"),\"No se han respondido todas las preguntas\",IF(AND('Adaptación-Residuos'!$A$169=\"La actividad sí contribuye sustancialmente a la sostenibilidad\"),\"La actividad sí contribuye sustancialmente a la sostenibilidad\",\"La actividad no contribuye sustancialmente a la sostenibilidad\"))))))","v":"La actividad sí contribuye sustancialmente a la sostenibilidad"},null,{"$f":"IF('Indice de género-Residuos'!$E$82=\"Por definir\",\"No se han contestado todas las preguntas\",IF('Indice de género-Residuos'!$E$82=\"Sí cumple con el índice de igualdad de género\",\"La actividad sí contribuye sustancialmente a la sostenibilidad\",\"La actividad no genera contribución sustancial\"))","v":"La actividad sí contribuye sustancialmente a la sostenibilidad"}]
["Residuos","562221. Tratamiento y disposición final de residuos no peligrosos por el sector privado(Digestión anaeróbica) ",{"$f":"IF('Mitigación-Residuos'!A28=\"Por definir\",\"No se respondieron todas las preguntas\",'Mitigación-Residuos'!A28)","v":"No se respondieron todas las preguntas"},{"$f":"IF('Adaptación-Residuos'!$D$75=\"Actividad que facilita la adaptación e incluye desarrollo de infraestructura\",(IF(OR('Adaptación-Residuos'!$A$86=\"Por definir\",'Adaptación-Residuos'!$A$92=\"Por definir\",'Adaptación-Residuos'!$G$96=\"Por definir\",'Adaptación-Residuos'!$A$103=\"Por definir\"),\"No se han respondido todas las preguntas\",IF(AND('Adaptación-Residuos'!$A$86=\"La actividad sí contribuye sustancialmente a la sostenibilidad\",'Adaptación-Residuos'!$A$92=\"La actividad sí contribuye sustancialmente a la sostenibilidad\",'Adaptación-Residuos'!$G$96=\"La actividad sí contribuye sustancialmente a la sostenbilidad\",'Adaptación-Residuos'!$A$103=\"La actividad sí contribuye sustancialmente a la sostenibilidad\"),\"La actividad sí contribuye sustancialmente a la sostenibilidad\",\"La actividad no contribuye sustancialmente a la sostenibilidad\"))),IF('Adaptación-Residuos'!$D$75=\"Actividad adaptada\",(IF(OR('Adaptación-Residuos'!$A$86=\"Por definir\",'Adaptación-Residuos'!$A$92=\"Por definir\",'Adaptación-Residuos'!$G$96=\"Por definir\",'Adaptación-Residuos'!$A$103=\"Por definir\"),\"No se han respondido todas las preguntas\",IF(AND('Adaptación-Residuos'!$A$86=\"La actividad sí contribuye sustancialmente a la sostenibilidad\",'Adaptación-Residuos'!$A$92=\"La actividad sí contribuye sustancialmente a la sostenibilidad\",'Adaptación-Residuos'!$G$96=\"La actividad sí contribuye sustancialmente a la sostenbilidad\"),\"La actividad sí contribuye sustancialmente a la sostenibilidad\",\"La actividad no contribuye sustancialmente a la sostenibilidad\"))),IF('Adaptación-Residuos'!$D$75=\"Actividad que facilita la adaptación\",(IF(OR('Adaptación-Residuos'!$A$103=\"Por definir\"),\"No se han respondido todas las preguntas\",IF(AND('Adaptación-Residuos'!$A$103=\"La actividad sí contribuye sustancialmente a la sostenibilidad\"),\"La actividad sí contribuye sustancialmente a la sostenibilidad\",\"La actividad no contribuye sustancialmente a la sostenibilidad\"))))))","v":"La actividad sí contribuye sustancialmente a la sostenibilidad"},null,{"$f":"IF('Indice de género-Residuos'!$E$82=\"Por definir\",\"No se han contestado todas las preguntas\",IF('Indice de género-Residuos'!$E$82=\"Sí cumple con el índice de igualdad de género\",\"La actividad sí contribuye sustancialmente a la sostenibilidad\",\"La actividad no genera contribución sustancial\"))","v":"La actividad sí contribuye sustancialmente a la sostenibilidad"}]
["Residuos","562222. Tratamiento y disposición final de residuos no peligrosos por el sector público (Compostaje) ",{"$f":"IF('Mitigación-Residuos'!A50=\"Por definir\",\"No se respondieron todas las preguntas\",'Mitigación-Residuos'!A50)","v":"La actividad sí contribuye sustancialmente a la sostenibilidad"},{"$f":"IF('Adaptación-Residuos'!$D$174=\"Actividad que facilita la adaptación e incluye desarrollo de infraestructura\",(IF(OR('Adaptación-Residuos'!$A$185=\"Por definir\",'Adaptación-Residuos'!$A$191=\"Por definir\",'Adaptación-Residuos'!$G$195=\"Por definir\",'Adaptación-Residuos'!$A$202=\"Por definir\"),\"No se han respondido todas las preguntas\",IF(AND('Adaptación-Residuos'!$A$185=\"La actividad sí contribuye sustancialmente a la sostenibilidad\",'Adaptación-Residuos'!$A$191=\"La actividad sí contribuye sustancialmente a la sostenibilidad\",'Adaptación-Residuos'!$G$195=\"La actividad sí contribuye sustancialmente a la sostenbilidad\",'Adaptación-Residuos'!$A$202=\"La actividad sí contribuye sustancialmente a la sostenibilidad\"),\"La actividad sí contribuye sustancialmente a la sostenibilidad\",\"La actividad no contribuye sustancialmente a la sostenibilidad\"))),IF('Adaptación-Residuos'!$D$174=\"Actividad adaptada\",(IF(OR('Adaptación-Residuos'!$A$185=\"Por definir\",'Adaptación-Residuos'!$A$191=\"Por definir\",'Adaptación-Residuos'!$G$195=\"Por definir\",'Adaptación-Residuos'!$A$202=\"Por definir\"),\"No se han respondido todas las preguntas\",IF(AND('Adaptación-Residuos'!$A$185=\"La actividad sí contribuye sustancialmente a la sostenibilidad\",'Adaptación-Residuos'!$A$191=\"La actividad sí contribuye sustancialmente a la sostenibilidad\",'Adaptación-Residuos'!$G$195=\"La actividad sí contribuye sustancialmente a la sostenbilidad\"),\"La actividad sí contribuye sustancialmente a la sostenibilidad\",\"La actividad no contribuye sustancialmente a la sostenibilidad\"))),IF('Adaptación-Residuos'!$D$174=\"Actividad que facilita la adaptación\",(IF(OR('Adaptación-Residuos'!$A$202=\"Por definir\"),\"No se han respondido todas las preguntas\",IF(AND('Adaptación-Residuos'!$A$202=\"La actividad sí contribuye sustancialmente a la sostenibilidad\"),\"La actividad sí contribuye sustancialmente a la sostenibilidad\",\"La actividad no contribuye sustancialmente a la sostenibilidad\"))))))","v":"La actividad sí contribuye sustancialmente a la sostenibilidad"},null,{"$f":"IF('Indice de género-Residuos'!$E$82=\"Por definir\",\"No se han contestado todas las preguntas\",IF('Indice de género-Residuos'!$E$82=\"Sí cumple con el índice de igualdad de género\",\"La actividad sí contribuye sustancialmente a la sostenibilidad\",\"La actividad no genera contribución sustancial\"))","v":"La actividad sí contribuye sustancialmente a la sostenibilidad"}]
["Residuos","562222. Tratamiento y disposición final de residuos no peligrosos por el sector público (Digestión anaeróbica) ",{"$f":"IF('Mitigación-Residuos'!A38=\"Por definir\",\"No se respondieron todas las preguntas\",'Mitigación-Residuos'!A38)","v":"No se respondieron todas las preguntas"},{"$f":"IF('Adaptación-Residuos'!$D$108=\"Actividad que facilita la adaptación e incluye desarrollo de infraestructura\",(IF(OR('Adaptación-Residuos'!$A$119=\"Por definir\",'Adaptación-Residuos'!$A$125=\"Por definir\",'Adaptación-Residuos'!$G$129=\"Por definir\",'Adaptación-Residuos'!$A$136=\"Por definir\"),\"No se han respondido todas las preguntas\",IF(AND('Adaptación-Residuos'!$A$119=\"La actividad sí contribuye sustancialmente a la sostenibilidad\",'Adaptación-Residuos'!$A$125=\"La actividad sí contribuye sustancialmente a la sostenibilidad\",'Adaptación-Residuos'!$G$129=\"La actividad sí contribuye sustancialmente a la sostenbilidad\",'Adaptación-Residuos'!$A$136=\"La actividad sí contribuye sustancialmente a la sostenibilidad\"),\"La actividad sí contribuye sustancialmente a la sostenibilidad\",\"La actividad no contribuye sustancialmente a la sostenibilidad\"))),IF('Adaptación-Residuos'!$D$108=\"Actividad adaptada\",(IF(OR('Adaptación-Residuos'!$A$119=\"Por definir\",'Adaptación-Residuos'!$A$125=\"Por definir\",'Adaptación-Residuos'!$G$129=\"Por definir\",'Adaptación-Residuos'!$A$136=\"Por definir\"),\"No se han respondido todas las preguntas\",IF(AND('Adaptación-Residuos'!$A$119=\"La actividad sí contribuye sustancialmente a la sostenibilidad\",'Adaptación-Residuos'!$A$125=\"La actividad sí contribuye sustancialmente a la sostenibilidad\",'Adaptación-Residuos'!$G$129=\"La actividad sí contribuye sustancialmente a la sostenbilidad\"),\"La actividad sí contribuye sustancialmente a la sostenibilidad\",\"La actividad no contribuye sustancialmente a la sostenibilidad\"))),IF('Adaptación-Residuos'!$D$108=\"Actividad que facilita la adaptación\",(IF(OR('Adaptación-Residuos'!$A$136=\"Por definir\"),\"No se han respondido todas las preguntas\",IF(AND('Adaptación-Residuos'!$A$136=\"La actividad sí contribuye sustancialmente a la sostenibilidad\"),\"La actividad sí contribuye sustancialmente a la sostenibilidad\",\"La actividad no contribuye sustancialmente a la sostenibilidad\"))))))","v":"La actividad sí contribuye sustancialmente a la sostenibilidad"},null,{"$f":"IF('Indice de género-Residuos'!$E$82=\"Por definir\",\"No se han contestado todas las preguntas\",IF('Indice de género-Residuos'!$E$82=\"Sí cumple con el índice de igualdad de género\",\"La actividad sí contribuye sustancialmente a la sostenibilidad\",\"La actividad no genera contribución sustancial\"))","v":"La actividad sí contribuye sustancialmente a la sostenibilidad"}]
["Residuos","562911. Servicios de remediación de residuos por el sector privado ",{"$f":"IF('Mitigación-Residuos'!A56=\"Por definir\",\"No se respondieron todas las preguntas\",'Mitigación-Residuos'!A56)","v":"La actividad sí contribuye sustancialmente a la sostenibilidad"},{"$f":"IF('Adaptación-Residuos'!$D$207=\"Actividad que facilita la adaptación e incluye desarrollo de infraestructura\",(IF(OR('Adaptación-Residuos'!$A$218=\"Por definir\",'Adaptación-Residuos'!$A$224=\"Por definir\",'Adaptación-Residuos'!$G$228=\"Por definir\",'Adaptación-Residuos'!$A$235=\"Por definir\"),\"No se han respondido todas las preguntas\",IF(AND('Adaptación-Residuos'!$A$218=\"La actividad sí contribuye sustancialmente a la sostenibilidad\",'Adaptación-Residuos'!$A$224=\"La actividad sí contribuye sustancialmente a la sostenibilidad\",'Adaptación-Residuos'!$G$228=\"La actividad sí contribuye sustancialmente a la sostenbilidad\",'Adaptación-Residuos'!$A$235=\"La actividad sí contribuye sustancialmente a la sostenibilidad\"),\"La actividad sí contribuye sustancialmente a la sostenibilidad\",\"La actividad no contribuye sustancialmente a la sostenibilidad\"))),IF('Adaptación-Residuos'!$D$207=\"Actividad adaptada\",(IF(OR('Adaptación-Residuos'!$A$218=\"Por definir\",'Adaptación-Residuos'!$A$224=\"Por definir\",'Adaptación-Residuos'!$G$228=\"Por definir\",'Adaptación-Residuos'!$A$235=\"Por definir\"),\"No se han respondido todas las preguntas\",IF(AND('Adaptación-Residuos'!$A$218=\"La actividad sí contribuye sustancialmente a la sostenibilidad\",'Adaptación-Residuos'!$A$224=\"La actividad sí contribuye sustancialmente a la sostenibilidad\",'Adaptación-Residuos'!$G$228=\"La actividad sí contribuye sustancialmente a la sostenbilidad\"),\"La actividad sí contribuye sustancialmente a la sostenibilidad\",\"La actividad no contribuye sustancialmente a la sostenibilidad\"))),IF('Adaptación-Residuos'!$D$207=\"Actividad que facilita la adaptación\",(IF(OR('Adaptación-Residuos'!$A$235=\"Por definir\"),\"No se han respondido todas las preguntas\",IF(AND('Adaptación-Residuos'!$A$235=\"La actividad sí contribuye sustancialmente a la sostenibilidad\"),\"La actividad sí contribuye sustancialmente a la sostenibilidad\",\"La actividad no contribuye sustancialmente a la sostenibilidad\"))))))","v":"La actividad sí contribuye sustancialmente a la sostenibilidad"},null,{"$f":"IF('Indice de género-Residuos'!$E$82=\"Por definir\",\"No se han contestado todas las preguntas\",IF('Indice de género-Residuos'!$E$82=\"Sí cumple con el índice de igualdad de género\",\"La actividad sí contribuye sustancialmente a la sostenibilidad\",\"La actividad no genera contribución sustancial\"))","v":"La actividad sí contribuye sustancialmente a la sostenibilidad"}]
["Residuos","562912. Servicios de remediación de residuos por el sector público ",{"$f":"IF('Mitigación-Residuos'!A62=\"Por definir\",\"No se respondieron todas las preguntas\",'Mitigación-Residuos'!A62)","v":"La actividad sí contribuye sustancialmente a la sostenibilidad"},{"$f":"IF('Adaptación-Residuos'!$D$240=\"Actividad que facilita la adaptación e incluye desarrollo de infraestructura\",(IF(OR('Adaptación-Residuos'!$A$251=\"Por definir\",'Adaptación-Residuos'!$A$257=\"Por definir\",'Adaptación-Residuos'!$G$261=\"Por definir\",'Adaptación-Residuos'!$A$268=\"Por definir\"),\"No se han respondido todas las preguntas\",IF(AND('Adaptación-Residuos'!$A$251=\"La actividad sí contribuye sustancialmente a la sostenibilidad\",'Adaptación-Residuos'!$A$257=\"La actividad sí contribuye sustancialmente a la sostenibilidad\",'Adaptación-Residuos'!$G$261=\"La actividad sí contribuye sustancialmente a la sostenbilidad\",'Adaptación-Residuos'!$A$268=\"La actividad sí contribuye sustancialmente a la sostenibilidad\"),\"La actividad sí contribuye sustancialmente a la sostenibilidad\",\"La actividad no contribuye sustancialmente a la sostenibilidad\"))),IF('Adaptación-Residuos'!$D$240=\"Actividad adaptada\",(IF(OR('Adaptación-Residuos'!$A$251=\"Por definir\",'Adaptación-Residuos'!$A$257=\"Por definir\",'Adaptación-Residuos'!$G$261=\"Por definir\",'Adaptación-Residuos'!$A$268=\"Por definir\"),\"No se han respondido todas las preguntas\",IF(AND('Adaptación-Residuos'!$A$251=\"La actividad sí contribuye sustancialmente a la sostenibilidad\",'Adaptación-Residuos'!$A$257=\"La actividad sí contribuye sustancialmente a la sostenibilidad\",'Adaptación-Residuos'!$G$261=\"La actividad sí contribuye sustancialmente a la sostenbilidad\"),\"La actividad sí contribuye sustancialmente a la sostenibilidad\",\"La actividad no contribuye sustancialmente a la sostenibilidad\"))),IF('Adaptación-Residuos'!$D$240=\"Actividad que facilita la adaptación\",(IF(OR('Adaptación-Residuos'!$A$268=\"Por definir\"),\"No se han respondido todas las preguntas\",IF(AND('Adaptación-Residuos'!$A$268=\"La actividad sí contribuye sustancialmente a la sostenibilidad\"),\"La actividad sí contribuye sustancialmente a la sostenibilidad\",\"La actividad no contribuye sustancialmente a la sostenibilidad\"))))))","v":"La actividad sí contribuye sustancialmente a la sostenibilidad"},null,{"$f":"IF('Indice de género-Residuos'!$E$82=\"Por definir\",\"No se han contestado todas las preguntas\",IF('Indice de género-Residuos'!$E$82=\"Sí cumple con el índice de igualdad de género\",\"La actividad sí contribuye sustancialmente a la sostenibilidad\",\"La actividad no genera contribución sustancial\"))","v":"La actividad sí contribuye sustancialmente a la sostenibilidad"}]
["Residuos","562921. Recuperación de residuos por el sector privado ",{"$f":"IF('Mitigación-Residuos'!A69=\"Por definir\",\"No se respondieron todas las preguntas\",'Mitigación-Residuos'!A69)","v":"La actividad sí contribuye sustancialmente a la sostenibilidad"},{"$f":"IF('Adaptación-Residuos'!$D$273=\"Actividad que facilita la adaptación e incluye desarrollo de infraestructura\",(IF(OR('Adaptación-Residuos'!$A$284=\"Por definir\",'Adaptación-Residuos'!$A$290=\"Por definir\",'Adaptación-Residuos'!$G$294=\"Por definir\",'Adaptación-Residuos'!$A$301=\"Por definir\"),\"No se han respondido todas las preguntas\",IF(AND('Adaptación-Residuos'!$A$284=\"La actividad sí contribuye sustancialmente a la sostenibilidad\",'Adaptación-Residuos'!$A$290=\"La actividad sí contribuye sustancialmente a la sostenibilidad\",'Adaptación-Residuos'!$G$294=\"La actividad sí contribuye sustancialmente a la sostenbilidad\",'Adaptación-Residuos'!$A$301=\"La actividad sí contribuye sustancialmente a la sostenibilidad\"),\"La actividad sí contribuye sustancialmente a la sostenibilidad\",\"La actividad no contribuye sustancialmente a la sostenibilidad\"))),IF('Adaptación-Residuos'!$D$273=\"Actividad adaptada\",(IF(OR('Adaptación-Residuos'!$A$284=\"Por definir\",'Adaptación-Residuos'!$A$290=\"Por definir\",'Adaptación-Residuos'!$G$294=\"Por definir\",'Adaptación-Residuos'!$A$301=\"Por definir\"),\"No se han respondido todas las preguntas\",IF(AND('Adaptación-Residuos'!$A$284=\"La actividad sí contribuye sustancialmente a la sostenibilidad\",'Adaptación-Residuos'!$A$290=\"La actividad sí contribuye sustancialmente a la sostenibilidad\",'Adaptación-Residuos'!$G$294=\"La actividad sí contribuye sustancialmente a la sostenbilidad\"),\"La actividad sí contribuye sustancialmente a la sostenibilidad\",\"La actividad no contribuye sustancialmente a la sostenibilidad\"))),IF('Adaptación-Residuos'!$D$273=\"Actividad que facilita la adaptación\",(IF(OR('Adaptación-Residuos'!$A$301=\"Por definir\"),\"No se han respondido todas las preguntas\",IF(AND('Adaptación-Residuos'!$A$301=\"La actividad sí contribuye sustancialmente a la sostenibilidad\"),\"La actividad sí contribuye sustancialmente a la sostenibilidad\",\"La actividad no contribuye sustancialmente a la sostenibilidad\"))))))","v":"La actividad sí contribuye sustancialmente a la sostenibilidad"},null,{"$f":"IF('Indice de género-Residuos'!$E$82=\"Por definir\",\"No se han contestado todas las preguntas\",IF('Indice de género-Residuos'!$E$82=\"Sí cumple con el índice de igualdad de género\",\"La actividad sí contribuye sustancialmente a la sostenibilidad\",\"La actividad no genera contribución sustancial\"))","v":"La actividad sí contribuye sustancialmente a la sostenibilidad"}]
["Residuos","562922. Recuperación de residuos por el sector público",{"$f":"IF('Mitigación-Residuos'!A76=\"Por definir\",\"No se respondieron todas las preguntas\",'Mitigación-Residuos'!A76)","v":"La actividad sí contribuye sustancialmente a la sostenibilidad"},{"$f":"IF('Adaptación-Residuos'!$D$306=\"Actividad que facilita la adaptación e incluye desarrollo de infraestructura\",(IF(OR('Adaptación-Residuos'!$A$317=\"Por definir\",'Adaptación-Residuos'!$A$323=\"Por definir\",'Adaptación-Residuos'!$G$327=\"Por definir\",'Adaptación-Residuos'!$A$334=\"Por definir\"),\"No se han respondido todas las preguntas\",IF(AND('Adaptación-Residuos'!$A$317=\"La actividad sí contribuye sustancialmente a la sostenibilidad\",'Adaptación-Residuos'!$A$323=\"La actividad sí contribuye sustancialmente a la sostenibilidad\",'Adaptación-Residuos'!$G$327=\"La actividad sí contribuye sustancialmente a la sostenbilidad\",'Adaptación-Residuos'!$A$334=\"La actividad sí contribuye sustancialmente a la sostenibilidad\"),\"La actividad sí contribuye sustancialmente a la sostenibilidad\",\"La actividad no contribuye sustancialmente a la sostenibilidad\"))),IF('Adaptación-Residuos'!$D$306=\"Actividad adaptada\",(IF(OR('Adaptación-Residuos'!$A$317=\"Por definir\",'Adaptación-Residuos'!$A$323=\"Por definir\",'Adaptación-Residuos'!$G$327=\"Por definir\",'Adaptación-Residuos'!$A$334=\"Por definir\"),\"No se han respondido todas las preguntas\",IF(AND('Adaptación-Residuos'!$A$317=\"La actividad sí contribuye sustancialmente a la sostenibilidad\",'Adaptación-Residuos'!$A$323=\"La actividad sí contribuye sustancialmente a la sostenibilidad\",'Adaptación-Residuos'!$G$327=\"La actividad sí contribuye sustancialmente a la sostenbilidad\"),\"La actividad sí contribuye sustancialmente a la sostenibilidad\",\"La actividad no contribuye sustancialmente a la sostenibilidad\"))),IF('Adaptación-Residuos'!$D$306=\"Actividad que facilita la adaptación\",(IF(OR('Adaptación-Residuos'!$A$334=\"Por definir\"),\"No se han respondido todas las preguntas\",IF(AND('Adaptación-Residuos'!$A$334=\"La actividad sí contribuye sustancialmente a la sostenibilidad\"),\"La actividad sí contribuye sustancialmente a la sostenibilidad\",\"La actividad no contribuye sustancialmente a la sostenibilidad\"))))))","v":"La actividad sí contribuye sustancialmente a la sostenibilidad"},null,{"$f":"IF('Indice de género-Residuos'!$E$82=\"Por definir\",\"No se han contestado todas las preguntas\",IF('Indice de género-Residuos'!$E$82=\"Sí cumple con el índice de igualdad de género\",\"La actividad sí contribuye sustancialmente a la sostenibilidad\",\"La actividad no genera contribución sustancial\"))","v":"La actividad sí contribuye sustancialmente a la sostenibilidad"}]
["Género",{"$f":"'Género-General'!C10","v":0},"N/A","N/A",null,{"$f":"IF('Indice de género-General'!$E$82=\"Por definir\",\"No se han contestado todas las preguntas\",IF('Indice de género-General'!$E$82=\"Sí cumple con el índice de igualdad de género\",\"La actividad sí contribuye sustancialmente a la sostenibilidad\",\"La actividad no genera contribución sustancial\"))","v":"No se han contestado todas las preguntas"}]
["Agricultura",{"$f":"IF(Recursos!B19=\"Sí se toma en cuenta este sector\",1,\"\")","v":""}]
["Generación, transmisión, distribución y comercialización de energía eléctrica",{"$f":"IF(Recursos!B22=\"Sí se toma en cuenta este sector\",1,\"\")","v":""}]
["Construcción",{"$f":"IF(Recursos!B24=\"Sí se toma en cuenta este sector\",1,\"\")","v":""}]
["Industrias manufactureras",{"$f":"IF(Recursos!B25=\"Sí se toma en cuenta este sector\",1,\"\")","v":""}]
["Transporte",{"$f":"IF(Recursos!B26=\"Sí se toma en cuenta este sector\",1,\"\")","v":""}]
["Manejo de residuos y servicios de remediación",{"$f":"IF(Recursos!B27=\"Sí se toma en cuenta este sector\",1,\"\")","v":""}]
["cría y explotación de animales",{"$f":"IF(Recursos!B20=\"Sí se toma en cuenta este sector\",1,\"\")","v":""}]
["aprovechamiento forestal",{"$f":"IF(Recursos!B21=\"Sí se toma en cuenta este sector\",1,\"\")","v":""}]
["Comercializacion y suministro de agua",{"$f":"IF(Recursos!B23=\"Sí se toma en cuenta este sector\",1,\"\")","v":""}]
["Género",{"$f":"IF(Recursos!B30=\"Sí se toma en cuenta la evaluación del índice de género\",1,\"\")","v":""}]
["actividades Agricultura Mitigación"]
["Rotación de cultivos. (mejora la calidad de suelos e incremento de productividad)"]
["Integración de cultivos de cobertura."]
["Conservación de fragmentos y corredores lineales de vegetación nativa y fomentar cercas vivas diversificadas y multiestrato. Análisis de suelos para el uso óptimo de fertilizantes. (reduce costos)."]
["Planeación en la aplicación de fertilizantes."]
["Sustitución de fertilizantes sintéticos por fertilizantes orgánicos o bioinsumos."]
["Realización de obras de conservación de suelos (terrazas, presas de gavión, curvas de nivel, drenaje de suelos)."]
["Incorporación de materia orgánica al suelo (residuos de cosecha, composta, etcétera)."]
["Integración de sistema agroforestal, policultivo o cultivos asociados en cultivos permanentes."]
["Aplicación de labranza mínima o reducida."]
["Reconversión productiva (si requiere menos insumos)."]
["Reducción de la quema de los residuos de las cosechas o de partes vegetales para facilitar la cosecha."]
["Incrementar especies arbóreas (nativas o no invasoras) en las parcelas."]
["Instalación de agricultura protegida con materiales reciclables."]
["Restauración de los suelos degradados."]
["Certificaciones o distintivos de producción sustentable. Por ejemplo: Primus GFS, Global Gap, orgánicos, USDA, SENASICA, Rainforest Alliance, RSPO, (HACCP), BRC, ISO 14001, ISEAL ALLIANCE u otras que garanticen la mitigación de GEI."]
["Ninguna"]
["Actividades Ganadería "]
["Evitar o reducir las emisiones de GEI a través de la implementación de buenas prácticas agrícolas y la movilización de recursos hacia conceptos de inversión listados en este apartado o de demostrar la reducción de al menos un 8% de las emisiones de GEI (gCO2e) en 2030 en comparación con las emisiones de 2020 para el sector agropecuario"]
["Mantener y aumentar las reservas de carbono durante un periodo igual o superior a 20 años a través de la aplicación de buenas prácticas"]
["Mostrar evidencia de potencial secuestro de carbono del suelo en el tiempo"]
["Contar con certificaciones de bienestar animal en aquellas actividades o explotaciones de baja capacidad de almacenamiento de carbono"]
["Contar con sellos nacionales e internacionales y/o certificaciones (Orgánico México, Certificado Agroecológico Suelo de Conservación, Colectivo Sustentabilidad Calakmul, Productos de Áreas Destinadas Voluntariamente a la Conservación), cualquier otro que aplique"]
["Reportar información al Padrón Nacional Ganadero de la SADER, a fin de fomentar el reporte y seguimiento de la información y mejorar las estadísticas nacionales sobre el sector ganadero en México. "]
["Realizar pagos por servicios ambientales "]
["Dedicar o destinar un porcentaje del predio para regeneración o conservación."]
["Impulsar y proteger las reservas rurales, ecológicas y áreas destinadas voluntariamente a la conservación, las zonas de amortiguamiento de ANP, así como los terrenos en los que se pueda utilizar y manejar un mayor número de especies forrajeras (herbáceas, arbustivas, arbóreas) nativas de la región, como parte de una estrategia de manejo del paisaje que, en el marco de las actividades productivas, contribuye de manera significativa a su sustentabilidad"]
["Ninguna"]
["Umbrales Manufactura"]
[]
["Condiciones para género"]
["No"]
["Sí de alcance parcial dentro de la organización"]
["Sí de alcance integral en la organización"]
["Sí de alcance que se extiende fuera de la organización"]
["Sí de alcance parcial dentro de la organización y para fuera de la institución"]
["Sí de alcance integral dentro de la organización y para fuera de la institución"]
[]
[]
["Suma de puntajes"]
["Agricultura",{"$f":"SUM(Agricultura!$B$10:$B$48)","v":0}]
["aprovechamiento forestal",{"$f":"SUM(Forestal!$B$10:$B$48)+SUM(Agricultura!$B$10:$B$48)","v":0}]
["cría y explotación de animales",{"$f":"SUM(Ganadería!$B$10:$B$48)+SUM(Forestal!$B$10:$B$48)+SUM(Agricultura!$B$10:$B$48)","v":0}]
["Generación, transmisión, distribución y comercialización de energía eléctrica",{"$f":"SUM(Energía!$B$10:$B$48)+SUM(Ganadería!$B$10:$B$48)+SUM(Forestal!$B$10:$B$48)+SUM(Agricultura!$B$10:$B$48)","v":0}]
["Comercializacion y suministro de agua",{"$f":"SUM(Agua!$B$10:$B$48)+SUM(Energía!$B$10:$B$48)+SUM(Ganadería!$B$10:$B$48)+SUM(Forestal!$B$10:$B$48)+SUM(Agricultura!$B$10:$B$48)","v":0}]
["Construcción",{"$f":"SUM(Construcción!$B$10:$B$48)+SUM(Agua!$B$10:$B$48)+SUM(Energía!$B$10:$B$48)+SUM(Ganadería!$B$10:$B$48)+SUM(Forestal!$B$10:$B$48)+SUM(Agricultura!$B$10:$B$48)","v":0}]
["Industrias manufactureras",{"$f":"SUM(Manufactura!$B$10:$B$48)+SUM(Construcción!$B$10:$B$48)+SUM(Agua!$B$10:$B$48)+SUM(Energía!$B$10:$B$48)+SUM(Ganadería!$B$10:$B$48)+SUM(Forestal!$B$10:$B$48)+SUM(Agricultura!$B$10:$B$48)","v":0}]
["Transporte",{"$f":"SUM(Transporte!$B$10:$B$48)+SUM(Manufactura!$B$10:$B$48)+SUM(Construcción!$B$10:$B$48)+SUM(Agua!$B$10:$B$48)+SUM(Energía!$B$10:$B$48)+SUM(Ganadería!$B$10:$B$48)+SUM(Forestal!$B$10:$B$48)+SUM(Agricultura!$B$10:$B$48)","v":0}]
["Manejo de residuos y servicios de remediación",{"$f":"SUM(Residuos!$B$10:$B$48)+SUM(Transporte!$B$10:$B$48)+SUM(Manufactura!$B$10:$B$48)+SUM(Construcción!$B$10:$B$48)+SUM(Agua!$B$10:$B$48)+SUM(Energía!$B$10:$B$48)+SUM(Ganadería!$B$10:$B$48)+SUM(Forestal!$B$10:$B$48)+SUM(Agricultura!$B$10:$B$48)","v":0}]
["No cuenta prácticas de esta lista"]
[]
["actividades Agricultura Adaptación"]
["Rotación de cultivos."]
["Integración de cultivos de cobertura"]
["Conservación de fragmentos y corredores lineales de vegetación nativa y fomentar cercas vivas diversificadas y multiestrato. "]
["Realización de obras de conservación de suelos (terrazas, presas de gavión, curvas de nivel, drenaje de suelos)."]
["Incorporación de materia orgánica al suelo (residuos de cosecha, composta, etcétera)."]
["Integración del sistema agroforestal o cultivos asociados a cultivos permanentes"]
["Aplicación de labranza mínima o reducida (accesorios y maquinaria). "]
["Reconversión productiva"]
["Instalación de agricultura protegida con materiales reciclables"]
["Restauración de suelos degradados"]
["Aquellos conceptos o prácticas de inversión elegibles con impacto sobre la adaptación al cambio climático. "]
["Ninguna"]
[]
["actividades Ganaderia Adaptación"]
["Acciones de conservación"]
["Aumento en la biomasa aérea y subterránea"]
["Diversificación de actividades productivas"]
["Gestión de pastoreo"]
["Recuperación de suelos degradados"]
["Aquellos conceptos o prácticas de inversión elegibles con impacto sobre la adaptación al \ncambio climático. "]
["Ninguna","Administradores_de_Fondos_e_Inversionistas_Institucionales",null,"Empresas_de_Seguros_Fianzas"]
[]
["Instituciones_de_crédito","Inversionistas_Institucionales_Administradores_de_Fondos_e_Inversionistas","Empresas_Cotizadas_y_Grandes_Empresas","Inversionistas_Institucionales_Empresas_de_Seguros_Fianzas","Otro"]
["Instrumentos de capitalización bancaria","Fondos de Inversión en Instrumentos de Deuda","Inversiones en activos fijos (CAPEX)","Bonos Gubernamentales","Otro"]
["Instrumentos derivados","Fondos de inversión de mercado de dinero","Gastos operativos (OPEX)","Instrumentos de deuda"]
["Títulos con vinculación crediticia","Fondos de inversión de renta variable","Otro","Obligaciones"]
["Garantías","Fondos de inversión discrecionales",null,"Instrumentos bursatilizados"]
["Créditos","Valores, títulos o documentos representativos de un pasivo",null,"Títulos estructurados"]
["Instrumentos de Patrimonio Neto","Títulos representativos del capital social de empresas que les presten Servicios\ncomplementarios o auxiliares",null,"Valores de renta variable"]
["Otro","Valores respaldados por activos",null,"Instrumentos estructurados y FIBRAS"]
[null,"Valores estructurados",null,"Fondos de inversión"]
[null,"Certificados bursátiles",null,"Fondos de capital privado "]
[null,"Instrumentos financieros derivados",null,"Fideicomisos"]
[null,"Otro",null,"Certificados bursátiles "]
[null,null,null,"Créditos"]
[null,null,null,"Inmuebles"]
[null,null,null,"Otro"]
[]
[]
["Genero "]
["Genero "]
["Genero "]
["Genero "]
["Genero "]
["Genero "]
["Genero "]
["Genero "]
["Genero "]
["Genero "]
["Genero "]
["Genero "]
["Genero "]
["Genero "]
["Genero "]
["Genero "]
["Genero "]
["Genero "]
["Genero "]
["Genero "]
[]
[null,"Original","Apoyo"]
["Mitigación",false,false]
["Adaptación",false,false]
["Género",false,false]
[]
["Objetivo","Objetivo 2"]
[{"$f":"IF(B705=TRUE,$A$705,\"\")","v":""},{"$f":"IF(C705=TRUE,A705,\"\")","v":""}]
[{"$f":"IF(B706=TRUE,$A$706,\"\")","v":""},""]
[{"$f":"IF(B707=TRUE,A707,\"\")","v":""},""]
[]
["Agricultura"]
["Mitigación"]
["Adaptación"]
["Genero"]
[]
["Forestal"]
["Mitigación"]
["Adaptación"]
["Genero"]
[]
["Ganaderia"]
["Mitigación"]
["Adaptación"]
["Genero"]
[]
["Energía"]
["Mitigación"]
["Adaptación"]
["Genero"]
[]
["Agua"]
["Mitigación"]
["Adaptación"]
["Genero"]
[]
["Construcción"]
["Mitigación"]
["Adaptación"]
["Genero"]
[]
["Manufactura"]
["Mitigación"]
["Adaptación"]
["Genero"]
[]
["Transporte"]
["Mitigación"]
["Adaptación"]
["Genero"]
[]
["Residuos"]
["Mitigación"]
["Adaptación"]
["Genero"]

{"sheet":"NDS_Género","index":51,"n_rows":38,"n_cols":10,"rows_kept":38,"cut":false,"hidden":true,"merged":[[37,0,37,7],[25,0,25,7],[26,0,26,7],[26,9,27,9],[27,0,27,7],[30,0,30,7],[30,9,34,9],[31,0,31,7],[32,0,32,7],[33,0,33,7],[34,0,34,7],[23,9,24,9],[24,0,24,7],[7,0,7,7],[8,0,8,7],[9,0,9,7],[10,0,10,7],[13,0,13,7],[13,9,14,9],[14,0,14,7],[17,0,17,7],[18,0,18,7],[19,0,19,7],[20,0,20,7],[23,0,23,7],[6,0,6,7],[0,0,0,8],[1,0,1,8],[2,0,2,8],[4,0,4,8],[5,0,5,7]]}
["Evaluación de No Daño Significativo de actividades para el cierre de brechas de Género"]
[]
["El principio de No Daño Significativo (NDS) se compone de una serie de criterios medioambientales que permiten asegurar que una actividad económica, con contribución sustancial, no tenga efectos negativos en ninguno de los otros objetivos de la Taxonomía, distintos al parámetro principal. De esta manera, se asegura que el progreso en algunos objetivos no se haga a expensas de otros objetivos medioambientales. Los criterios de NDS se enfocan en 5 ejes principales: Agua, Adaptación, Biodiversidad, Prevención y Control de la Contaminación y, Economía Circular. Para contar con más detalle, por favor consulta el documento de la Taxonomía Sostenible de México"]
[]
["Asegúrate de responder todas las preguntas. En este apartado aparecerán solo los criterios de No Daño Significativo relacionados a las actividades que se establecieron anteriormente. Al final, se evaluará el porcentaje de criterios de No Daño Significativo que se cumplan. Por favor responde si la actividad cumple con los siguientes criterios."]
["Agua"]
["¿La operación financiera y/o proyecto cumple con la legislación mexicana sobre uso y reúso en materia de agua. Ley de Aguas Nacionales (LAN): El agua es un bien de dominio público federal, vital, vulnerable y finito, con valor social, económico y ambiental, cuya preservación en cantidad y calidad y sustentabilidad es tarea fundamental del Estado y la Sociedad, así como prioridad y asunto de seguridad nacional (Titulo “Política Hídrica Nacional”, Art. 14 BIS 5)?",null,null,null,null,null,null,null,"Sí","Incluir en la MIA. Demostrar congruencia del proyecto con lo dispuesto en Leyes y políticas en la matería, “Política Hídrica Nacional”, Art. 14 BIS 5."]
["¿El proyecto cumple con el Programa Nacional Hídrico 2020-2024, así como con las estrategias y planes de gestión hídrica estatales y municipales, y atender las recomendaciones de los Consejos de Cuenca por cuenca hidrológica o por región hidrológica?",null,null,null,null,null,null,null,"Sí","Incluir en la MIA. Demostrar vinculación del proyecto con lo dispuesto en Leyes y polítitcas de la matería, “Política Hídrica Nacional”, Art. 14 BIS 5."]
["¿La operación financiera y/o proyecto identifica la disponibilidad de agua y los riesgos de contaminación de agua, tanto de aguas superficiales como los acuíferos, y en particular las fuentes de agua utilizadas para consumo humano, en la cuenca hidrológica y en la región hidrológica de que se trate?",null,null,null,null,null,null,null,"Sí","Incuir en la MIA. Desarrollar el análisis en el apartado correspondiente de la MIA para la descripción del sistema ambiental y los riesgos de impacto. "]
["¿Es relevante la captación de agua pluvial y el reúso del agua en las instalaciones en el contexto de la operación financiera y/o proyectoo?",null,null,null,null,null,null,null,"Sí","Incuir en la MIA. Desarrollar el análisis en el apartado correspondiente de la MIA para la descripción del sistema ambiental y los riesgos de impacto. "]
["¿El proyecto cumple con lo establecido en la NOM-001-SEMARNAT-2021, que establece los límites permisibles de contaminantes en las descargas de aguas residuales en cuerpos receptores propiedad de la nación?",null,null,null,null,null,null,null,"Sí","Incluir certificado de cumplimiento de la NOM-001-SEMARNAT-2021. Dentro de la MIA se puede analizar exponer de manera concisa y objetiva cuáles son las especificaciones establecidas en las normas oficiales mexicanas vigentes que deberán aplicar a las obras y actividades proyectadas y cómo cumple el proyecto cada una de ellas en su vinculación."]
[]
["Adaptación"]
["¿En el contexto de la operación financiera y/o proyecto se desarrollan criterios de gestión de riesgos y de adaptación al cambio climático en el diseño, construcción, reconstrucción, rehabilitación y mantenimiento de la infraestructura asociada?",null,null,null,null,null,null,null,"Sí","Incluir en la MIA. Detallar la evaluación de la dimensión de las alteraciones e impactos dentro de los datos del proyecto."]
["¿En el contexto de la operación financiera y/o proyecto se demuestra que se evaluó la dimensión de las alteraciones e impactos que podrían afectar en los en municipios vulnerables al cambio climático en el Atlas Nacional de Vulnerabilidad y el Atlas Nacional de Riesgos?",null,null,null,null,null,null,null,"Sí"]
[]
["Biodiversidad "]
["¿El proyecto cuenta con una manifestación de impacto ambiental (MIA) o informe ambiental preventivo, autorizados por la autoridad competente (federal y/o local), con vigencia y e informes de cumplimiento de condicionantes ambientales?",null,null,null,null,null,null,null,"Sí","Presentar MIA aprobada por las autoridades ambientales."]
["La delimitación del proyecto debe de ser congruente con la magnitud de los impactos ambientales, cumpliendo instrumentos de planeación existentes (Programa de Ordenamiento Ecológico del Territorio (POET), Plan de Desarrollo Urbano (PDU), cuencas hidrológicas, entre otros). (Ver Ley General del Equilibrio Ecológico y la Protección al Ambiente (LGEEPA), Reglamento de la LGEEPA en Materia de Impacto Ambiental y Guías de Impacto Ambiental conforme al artículo 9 del Reglamento mencionado) ¿Esto se cumple en el contexto de la operación financiera y/o proyecto?",null,null,null,null,null,null,null,"Sí","Incluir en la MIA. Detallar la vinculación del proyecto con los Programas de Desarrollo Urbano, Programa de Ordenamiento Ecológico General del Territorio: planes de ordenamiento territorial, regulaciones de uso de suelo, permisos y licencias ambientales.  "]
["En caso de aplicar, ¿la operación financiera y/o proyecto cuenta con una autorización de cambio de uso de suelo de áreas forestales, así como de selvas o de zonas áridas, de conformidad con el artículo 68 de la Ley General de Desarrollo Forestal Sustentable?",null,null,null,null,null,null,null,"Sí","Presentar autorización de cambio de uso de suelo de áreas forestales, así como de selvas o de zonas áridas, de conformidad con el artículo 68 de la Ley General de Desarrollo Forestal Sustentable."]
["A nivel de sitio y locación específica ¿La operación financiera y/o proyecto considera la Estrategia Nacional sobre Biodiversidad de México (ENBioMex), Plan de Acción 2016-2030 y la Estrategia Nacional para la Conservación y Aprovechamiento Sustentable de Polinizadores, así como las Estrategias Estatales de Biodiversidad correspondientes?",null,null,null,null,null,null,null,"Sí","Incluir en la MIA la vinculación del proyecto con lo dispuesto en Estrategia Nacional sobre Biodiversidad de México (ENBioMex), Plan de Acción 2016-2030 y la Estrategia Nacional para la Conservación y Aprovechamiento Sustentable de Polinizadores, así como las Estrategias Estatales de Biodiversidad correspondientes."]
[]
["Prevención y control de la contaminación"]
["¿La operación financiera y/o proyecto monitorea y cumple con los límites máximos permisibles de emisiones contaminantes establecidos en las normas oficiales mexicanas (NOM) y en normas mexicanas en materia de aire, agua, suelo y olores y ruido y vibraciones.",null,null,null,null,null,null,null,"Sí","Presentar certificado de cumplimiento de la NOM-085-SEMARNAT-2011, así como de las normas mexicanas en materia de aire, agua, suelo y olores y ruido y vibraciones."]
["¿Los vehículos utilizados cumplen con los límites permisibles de contaminantes a la atmósfera?",null,null,null,null,null,null,null,"Sí"]
["Las prácticas de limpieza de los vehículos, equipos y herramientas deben utilizar preferentemente agua tratada, y realizarse en sitios destinados específicamente para esa tarea, cuidando que las aguas residuales se encaucen al drenaje y alcantarillado. Si las aguas residuales se descargan en cuerpos de aguas nacionales, contar con los permisos y autorizaciones de ley ¿Esto se cumple en el contexto de la operación financiera y/o proyecto?",null,null,null,null,null,null,null,"Sí","Cumplir con los Permisos de Descarga de Aguas Residuales de CONAGUA."]
["Como parte de la MIA autorizada, evaluar el impacto en el paisaje, incluyendo visibilidad, calidad paisajística y fragilidad visual ¿Esto se cumple en el contexto de la operación financiera y/o proyecto?",null,null,null,null,null,null,null,"Sí","Incluir en la MIA los elementos señalados."]
["¿La operación financiera y/o proyecto cumple con las condicionantes establecidas en las autorizaciones en materia de impacto ambiental federales y estatales, así como con mejores prácticas internacionales respecto a paisaje, energía términa y lumínica?",null,null,null,null,null,null,null,"Sí"]
[]
["Economía Circular "]
["¿En el contexto de la operación financiera y/o proyecto se identifica el tipo de residuos generados durante las diferentes fases del proyecto, estimando el volumen que pudiera generarse?",null,null,null,null,null,null,null,"Sí","Incluir en la MIA los elementos señalados."]
["¿En el contexto de la operación financiera y/o proyecto se identifica y reportar la disponibilidad de servicios de infraestructura para el manejo y disposición final de los residuos, en la localidad y/o región, tales como: rellenos sanitarios, plantas de tratamiento de aguas residuales municipales, servicios de separación, manejo, tratamiento, reciclamiento o confinamiento de residuos, entre otros. En caso de hacer uso de ellos indicar si estos servicios son suficientes para cubrir las demandas presentes y futuras del proyecto y de otros proyectos presentes en la zona?",null,null,null,null,null,null,null,"Sí"]
["Con base a la estimación de vida útil del proyecto, se presentará un programa para el desmantelamiento y abandono, que incluya los procedimientos, manejo y destino de materiales y equipos y los programas de rehabilitación o restauración de los sitios ¿Esto se contempla dentro del proyecto?",null,null,null,null,null,null,null,"Sí"]
["¿En la operación financiera y/o proyecto se favorecen acciones y prácticas que disminuyan los efectos de las actividades desarrolladas en las cadenas productivas y de valor sobre el medio ambiente, a través del uso de residuos y subproductos y cualquier otra medida para minimizar el uso de materias primas primarias por unidad de producción, incluida la energía?",null,null,null,null,null,null,null,"Sí"]
["¿En el contexto de la operación financiera y/o proyectoo se consideran medidas para gestionar los residuos en la actividad, de conformidad con la Ley General para la Prevención y Gestión Integral de los Residuos (LGPGIR), así como la normativa aplicable?",null,null,null,null,null,null,null,"Sí"]
[]
["Mitigación"]
["¿Se garantiza que la actividad económica se lleva a cabo utilizando las mejores tecnologías disponibles y en alineación con los compromisos de México en materia de mitigación de GyCEI?",null,null,null,null,null,null,null,"Sí","Incluir en la MIA. Describir dentro de las medidas de prevención y mitigación. "]

{"sheet":"Salvaguardas mínimas","index":52,"n_rows":17,"n_cols":8,"rows_kept":17,"cut":false,"hidden":true,"merged":[[6,7,6,8],[9,7,15,8],[1,0,1,6],[3,0,3,6],[5,0,5,6],[9,0,9,5],[12,0,12,5],[15,0,15,5],[6,0,6,5]]}
[]
["Salvaguardas Mínimas"]
[]
["Las salvaguardas mínimas buscan cubrir temas relacionados con derechos humanos, así como buenas prácticas internacionales en materia laboral y gobernanza. De esta forma, definen elementos mínimos requeridos para el desarrollo de una actividad económica alineada con la Taxonomía. Estos elementos de obligado cumplimiento están definidos por las leyes y normas vigentes de México, y las convenciones y directrices internacionales. Debido al carácter transversal de los objetivos sociales de la taxonomía, las salvaguardas son indispensables para prevenir y mitigar el daño indebido que pudiese implicar una actividad en la población."]
[]
["Recuerda revisar los siguientes tres documentos y proveer evidencia sobre el cumplimiento de las condiciones establecidas en cada uno de los documentos. Esto asegurará el cumplimiento con las salvaguardas mínimas"]
["¿El Leyes y normas vigentes en México en temas laborales?",null,null,null,null,null,"Seleccione","La atención a leyes y normas vigentes en México sobre temas laborales es escencial para asegurar el cumplimiento de las salvaguardas mínimas sociales"]
[]
[]
["¿La operación financiera y/o proyecto cumple con las directrices de la Organización para la Cooperación y el Desarrollo Económicos (OCDE) para Empresas Multinacionales?",null,null,null,null,null,"Seleccione","Los principios rectores para las empresas y los derechos humanos de la ONU se cumplen al considerar los principios de ecuador. De la misma manera, los derechos humanos descritos en los principios de ecuador, están basados en la declaración de la OIT sobre los Principios y Derechos Fundamentales del Trabajo. Finalmente. Finalmente, los principios de ecuador basan sus procesos de evaluación de acuerdo a las directrices de la OCDE. Por lo tanto, al adoptar los principios de ecuador, hay un respaldo robusto para el cumplimiento con las salvaguardas mínimas"]
["Consulta las directrices aquí"]
[]
["¿La operación financiera y/o proyecto cumple con los principios rectores para las Empresas y los Derechos Humanos de la ONU?",null,null,null,null,null,"Seleccione"]
["Consulta las directrices aquí"]
[]
["¿La operación financiera y/o proyecto cumple con la declaración de la OIT relativa a los Principios y Derechos Fundamentales del Trabajo?",null,null,null,null,null,"Seleccione"]
["Consulta las directrices aquí"]

{"sheet":"Instituciones-crédito","index":53,"n_rows":203,"n_cols":14,"rows_kept":203,"cut":false,"hidden":true,"merged":[[10,13,11,13],[139,11,158,11],[160,11,179,11],[181,11,200,11],[10,9,11,9],[10,11,11,11],[76,11,95,11],[97,11,116,11],[12,11,32,11],[34,11,53,11],[55,11,74,11],[118,11,137,11],[10,10,11,10],[10,12,11,12],[118,12,137,12],[139,12,158,12],[0,5,8,6],[6,1,6,4],[10,1,10,7],[10,0,11,0],[0,1,0,4],[1,1,1,4],[2,1,2,4],[3,1,3,4],[4,1,4,4],[160,12,179,12],[181,12,200,12],[10,8,11,8],[12,12,32,12],[34,12,53,12],[55,12,74,12],[76,12,95,12],[97,12,116,12]]}
["Clasificación","Instituciones de crédito",null,null,null,"Esta hoja representa un resumen de las evaluaciones realizadas. Cabe señalar que un proceso de recomendaciones para las cuestiones que no cumplan con contribución sustancial se encuentra en desarrollo. Estos formatos forman parte de la evidencia de reporte que se puede realizar en el contexto de la taxonomía sostenible de México"]
["Fecha de elaboración ",{"$f":"Recursos!B7","v":"00:00:00"}]
["Institución que realiza la evaluación",{"$f":"Recursos!B8","v":0}]
["Nombre del proyecto",{"$f":"Recursos!B9","v":0}]
["Rango de fecha que comprende las operaciones financieras y/o proyectos evaluados",{"$f":"Recursos!B10","v":0}]
[]
["Total de recursos que cumplieron con la contribución sustancial",{"$f":"N203","v":0}]
[]
[]
[]
["1.2 NOMBRE CATEGORÍA","Cantidad de recursos alineados a la sostenibilidad",null,null,null,null,null,null,"Grado de cumplimiento a la contribución sustancial (Género)","Grado de cumplimiento a la contribución sustancial (mitigación)","Grado de cumplimiento a la contribución sustancial (adaptación)","Grado de cumplimiento a cuestiones de No Daño Significativo ","Grado de cumplimiento de las salvaguardas mínimas","Total recursos que cumple con umbrales"]
[null,"Instrumentos de capitalización bancaria","Instrumentos derivados","Títulos con vinculación crediticia","Garantías","Créditos","Instrumentos de Patrimonio Neto","Otro"]
["Agricultura",null,null,null,null,null,null,null,null,null,null,{"$f":"IF(COUNTIF('Agriculltura-NDS'!G9:G57,\"No\")>0,\"La actividad no cumple con el total de los criterios de No Daño Significativo\",\"La actividad cumple con los criterios de No Daño Significativo\")","v":"La actividad cumple con los criterios de No Daño Significativo"},{"$f":"IF(OR('Salvaguardas mínimas'!$G$10=\"Seleccione\",'Salvaguardas mínimas'!$G$13=\"Seleccione\",'Salvaguardas mínimas'!$G$16=\"Seleccione\",'Salvaguardas mínimas'!$G$7=\"Seleccione\"),\"No se han respondido todas las preguntas\",IF(OR('Salvaguardas mínimas'!$G$10=\"No\",'Salvaguardas mínimas'!$G$13=\"No\",'Salvaguardas mínimas'!$G$16=\"No\",'Salvaguardas mínimas'!$G$7=\"No\"),\"El sector no cumple con las salvaguardas mínimas\",\"La actividad sí cumple con las salvaguardas mínimas\"))","v":"No se han respondido todas las preguntas"},{"$f":"SUM(IF(FREQUENCY(MATCH(A14:A33, A14:A33, 0), MATCH(A14:A33, A14:A33, 0)) > 0, IF(NOT(ISERROR(N14:N33)), N14:N33, 0)))","v":0}]
[{"$f":"Agricultura!$C10","v":"Seleccione"},{"$f":"IF(Agricultura!$E10='Instituciones-crédito'!B$12,Agricultura!$B10,\"\")","v":""},{"$f":"IF(Agricultura!$E10='Instituciones-crédito'!C$12,Agricultura!$B10,\"\")","v":""},{"$f":"IF(Agricultura!$E10='Instituciones-crédito'!D$12,Agricultura!$B10,\"\")","v":""},{"$f":"IF(Agricultura!$E10='Instituciones-crédito'!E$12,Agricultura!$B10,\"\")","v":""},{"$f":"IF(Agricultura!$E10='Instituciones-crédito'!F$12,Agricultura!$B10,\"\")","v":""},{"$f":"IF(Agricultura!$E10='Instituciones-crédito'!G$12,Agricultura!$B10,\"\")","v":""},{"$f":"IF(Agricultura!$E10='Instituciones-crédito'!H$12,Agricultura!$B10,\"\")","v":""},{"$f":"_xlfn.XLOOKUP(A14,'Base-datos'!$B$457:$B$509,'Base-datos'!$F$457:$F$509)","v":{"$error":"#N/A"}},{"$f":"_xlfn.XLOOKUP(A14,'Base-datos'!$B$457:$B$509,'Base-datos'!$C$457:$C$509)","v":{"$error":"#N/A"}},{"$f":"_xlfn.XLOOKUP(A14,'Base-datos'!$B$457:$B$509,'Base-datos'!$D$457:$D$509)","v":{"$error":"#N/A"}},null,null,{"$f":"IF(OR($L$13=\"La actividad no cumple con el total de los criterios de No Daño Significativo\",$M$13=\"El sector no cumple con las salvaguardas mínimas\"),\"\",IF(AND('Base-datos'!$B$715=\"Sí\",'Base-datos'!$B$716=\"\",'Base-datos'!$B$717=\"\"),IF('Instituciones-crédito'!J14=\"La actividad sí contribuye sustancialmente a la sostenibilidad\",SUM('Instituciones-crédito'!B14:H14),0),IF(AND('Base-datos'!$B$715=\"Sí\",'Base-datos'!$B$716=\"Sí\",'Base-datos'!$B$717=\"\"),IF(AND('Instituciones-crédito'!J14=\"La actividad sí contribuye sustancialmente a la sostenibilidad\",'Instituciones-crédito'!K14=\"La actividad sí contribuye sustancialmente a la sostenibilidad\"),SUM('Instituciones-crédito'!B14:H14),0),IF(AND('Base-datos'!$B$715=\"Sí\",'Base-datos'!$B$716=\"Sí\",'Base-datos'!$B$717=\"Sí\"),IF(AND('Instituciones-crédito'!J14=\"La actividad sí contribuye sustancialmente a la sostenibilidad\",'Instituciones-crédito'!K14=\"La actividad sí contribuye sustancialmente a la sostenibilidad\",'Instituciones-crédito'!I14=\"La actividad sí contribuye sustancialmente a la sostenibilidad\"),SUM('Instituciones-crédito'!B14:H14),0),IF(AND('Base-datos'!$B$715=\"\",'Base-datos'!$B$716=\"Sí\",'Base-datos'!$B$717=\"\"),IF('Instituciones-crédito'!K14=\"La actividad sí contribuye sustancialmente a la sostenibilidad\",SUM('Instituciones-crédito'!B14:H14),0),IF(AND('Base-datos'!$B$715=\"\",'Base-datos'!$B$716=\"\",'Base-datos'!$B$717=\"Sí\"),IF('Instituciones-crédito'!I14=\"La actividad sí contribuye sustancialmente a la sostenibilidad\",SUM('Instituciones-crédito'!B14:H14),0),IF(AND('Base-datos'!$B$715=\"\",'Base-datos'!$B$716=\"Sí\",'Base-datos'!$B$717=\"Sí\"),IF(AND('Instituciones-crédito'!K14=\"La actividad sí contribuye sustancialmente a la sostenibilidad\",'Instituciones-crédito'!I14=\"La actividad sí contribuye sustancialmente a la sostenibilidad\"),SUM('Instituciones-crédito'!B14:H14),0),IF(AND('Base-datos'!$B$715=\"Sí\",'Base-datos'!$B$716=\"\",'Base-datos'!$B$717=\"Sí\"),IF(AND('Instituciones-crédito'!J14=\"La actividad sí contribuye sustancialmente a la sostenibilidad\",'Instituciones-crédito'!I14=\"La actividad sí contribuye sustancialmente a la sostenibilidad\"),SUM('Instituciones-crédito'!B14:H14),0),\"Por definir\"))))))))","v":"Por definir"}]
[{"$f":"Agricultura!$C12","v":"Seleccione"},{"$f":"IF(Agricultura!$E12='Instituciones-crédito'!B$12,Agricultura!$B12,\"\")","v":""},{"$f":"IF(Agricultura!$E12='Instituciones-crédito'!C$12,Agricultura!$B12,\"\")","v":""},{"$f":"IF(Agricultura!$E12='Instituciones-crédito'!D$12,Agricultura!$B12,\"\")","v":""},{"$f":"IF(Agricultura!$E12='Instituciones-crédito'!E$12,Agricultura!$B12,\"\")","v":""},{"$f":"IF(Agricultura!$E12='Instituciones-crédito'!F$12,Agricultura!$B12,\"\")","v":""},{"$f":"IF(Agricultura!$E12='Instituciones-crédito'!G$12,Agricultura!$B12,\"\")","v":""},{"$f":"IF(Agricultura!$E12='Instituciones-crédito'!H$12,Agricultura!$B12,\"\")","v":""},{"$f":"_xlfn.XLOOKUP(A15,'Base-datos'!$B$457:$B$509,'Base-datos'!$F$457:$F$509)","v":{"$error":"#N/A"}},{"$f":"_xlfn.XLOOKUP(A15,'Base-datos'!$B$457:$B$509,'Base-datos'!$C$457:$C$509)","v":{"$error":"#N/A"}},{"$f":"_xlfn.XLOOKUP(A15,'Base-datos'!$B$457:$B$509,'Base-datos'!$D$457:$D$509)","v":{"$error":"#N/A"}},null,null,{"$f":"IF(OR($L$13=\"La actividad no cumple con el total de los criterios de No Daño Significativo\",$M$13=\"El sector no cumple con las salvaguardas mínimas\"),\"\",IF(AND('Base-datos'!$B$715=\"Sí\",'Base-datos'!$B$716=\"\",'Base-datos'!$B$717=\"\"),IF('Instituciones-crédito'!J15=\"La actividad sí contribuye sustancialmente a la sostenibilidad\",SUM('Instituciones-crédito'!B15:H15),0),IF(AND('Base-datos'!$B$715=\"Sí\",'Base-datos'!$B$716=\"Sí\",'Base-datos'!$B$717=\"\"),IF(AND('Instituciones-crédito'!J15=\"La actividad sí contribuye sustancialmente a la sostenibilidad\",'Instituciones-crédito'!K15=\"La actividad sí contribuye sustancialmente a la sostenibilidad\"),SUM('Instituciones-crédito'!B15:H15),0),IF(AND('Base-datos'!$B$715=\"Sí\",'Base-datos'!$B$716=\"Sí\",'Base-datos'!$B$717=\"Sí\"),IF(AND('Instituciones-crédito'!J15=\"La actividad sí contribuye sustancialmente a la sostenibilidad\",'Instituciones-crédito'!K15=\"La actividad sí contribuye sustancialmente a la sostenibilidad\",'Instituciones-crédito'!I15=\"La actividad sí contribuye sustancialmente a la sostenibilidad\"),SUM('Instituciones-crédito'!B15:H15),0),IF(AND('Base-datos'!$B$715=\"\",'Base-datos'!$B$716=\"Sí\",'Base-datos'!$B$717=\"\"),IF('Instituciones-crédito'!K15=\"La actividad sí contribuye sustancialmente a la sostenibilidad\",SUM('Instituciones-crédito'!B15:H15),0),IF(AND('Base-datos'!$B$715=\"\",'Base-datos'!$B$716=\"\",'Base-datos'!$B$717=\"Sí\"),IF('Instituciones-crédito'!I15=\"La actividad sí contribuye sustancialmente a la sostenibilidad\",SUM('Instituciones-crédito'!B15:H15),0),IF(AND('Base-datos'!$B$715=\"\",'Base-datos'!$B$716=\"Sí\",'Base-datos'!$B$717=\"Sí\"),IF(AND('Instituciones-crédito'!K15=\"La actividad sí contribuye sustancialmente a la sostenibilidad\",'Instituciones-crédito'!I15=\"La actividad sí contribuye sustancialmente a la sostenibilidad\"),SUM('Instituciones-crédito'!B15:H15),0),IF(AND('Base-datos'!$B$715=\"Sí\",'Base-datos'!$B$716=\"\",'Base-datos'!$B$717=\"Sí\"),IF(AND('Instituciones-crédito'!J15=\"La actividad sí contribuye sustancialmente a la sostenibilidad\",'Instituciones-crédito'!I15=\"La actividad sí contribuye sustancialmente a la sostenibilidad\"),SUM('Instituciones-crédito'!B15:H15),0),\"Por definir\"))))))))","v":"Por definir"}]
[{"$f":"Agricultura!$C14","v":"Seleccione"},{"$f":"IF(Agricultura!$E14='Instituciones-crédito'!B$12,Agricultura!$B14,\"\")","v":""},{"$f":"IF(Agricultura!$E14='Instituciones-crédito'!C$12,Agricultura!$B14,\"\")","v":""},{"$f":"IF(Agricultura!$E14='Instituciones-crédito'!D$12,Agricultura!$B14,\"\")","v":""},{"$f":"IF(Agricultura!$E14='Instituciones-crédito'!E$12,Agricultura!$B14,\"\")","v":""},{"$f":"IF(Agricultura!$E14='Instituciones-crédito'!F$12,Agricultura!$B14,\"\")","v":""},{"$f":"IF(Agricultura!$E14='Instituciones-crédito'!G$12,Agricultura!$B14,\"\")","v":""},{"$f":"IF(Agricultura!$E14='Instituciones-crédito'!H$12,Agricultura!$B14,\"\")","v":""},{"$f":"_xlfn.XLOOKUP(A16,'Base-datos'!$B$457:$B$509,'Base-datos'!$F$457:$F$509)","v":{"$error":"#N/A"}},{"$f":"_xlfn.XLOOKUP(A16,'Base-datos'!$B$457:$B$509,'Base-datos'!$C$457:$C$509)","v":{"$error":"#N/A"}},{"$f":"_xlfn.XLOOKUP(A16,'Base-datos'!$B$457:$B$509,'Base-datos'!$D$457:$D$509)","v":{"$error":"#N/A"}},null,null,{"$f":"IF(OR($L$13=\"La actividad no cumple con el total de los criterios de No Daño Significativo\",$M$13=\"El sector no cumple con las salvaguardas mínimas\"),\"\",IF(AND('Base-datos'!$B$715=\"Sí\",'Base-datos'!$B$716=\"\",'Base-datos'!$B$717=\"\"),IF('Instituciones-crédito'!J16=\"La actividad sí contribuye sustancialmente a la sostenibilidad\",SUM('Instituciones-crédito'!B16:H16),0),IF(AND('Base-datos'!$B$715=\"Sí\",'Base-datos'!$B$716=\"Sí\",'Base-datos'!$B$717=\"\"),IF(AND('Instituciones-crédito'!J16=\"La actividad sí contribuye sustancialmente a la sostenibilidad\",'Instituciones-crédito'!K16=\"La actividad sí contribuye sustancialmente a la sostenibilidad\"),SUM('Instituciones-crédito'!B16:H16),0),IF(AND('Base-datos'!$B$715=\"Sí\",'Base-datos'!$B$716=\"Sí\",'Base-datos'!$B$717=\"Sí\"),IF(AND('Instituciones-crédito'!J16=\"La actividad sí contribuye sustancialmente a la sostenibilidad\",'Instituciones-crédito'!K16=\"La actividad sí contribuye sustancialmente a la sostenibilidad\",'Instituciones-crédito'!I16=\"La actividad sí contribuye sustancialmente a la sostenibilidad\"),SUM('Instituciones-crédito'!B16:H16),0),IF(AND('Base-datos'!$B$715=\"\",'Base-datos'!$B$716=\"Sí\",'Base-datos'!$B$717=\"\"),IF('Instituciones-crédito'!K16=\"La actividad sí contribuye sustancialmente a la sostenibilidad\",SUM('Instituciones-crédito'!B16:H16),0),IF(AND('Base-datos'!$B$715=\"\",'Base-datos'!$B$716=\"\",'Base-datos'!$B$717=\"Sí\"),IF('Instituciones-crédito'!I16=\"La actividad sí contribuye sustancialmente a la sostenibilidad\",SUM('Instituciones-crédito'!B16:H16),0),IF(AND('Base-datos'!$B$715=\"\",'Base-datos'!$B$716=\"Sí\",'Base-datos'!$B$717=\"Sí\"),IF(AND('Instituciones-crédito'!K16=\"La actividad sí contribuye sustancialmente a la sostenibilidad\",'Instituciones-crédito'!I16=\"La actividad sí contribuye sustancialmente a la sostenibilidad\"),SUM('Instituciones-crédito'!B16:H16),0),IF(AND('Base-datos'!$B$715=\"Sí\",'Base-datos'!$B$716=\"\",'Base-datos'!$B$717=\"Sí\"),IF(AND('Instituciones-crédito'!J16=\"La actividad sí contribuye sustancialmente a la sostenibilidad\",'Instituciones-crédito'!I16=\"La actividad sí contribuye sustancialmente a la sostenibilidad\"),SUM('Instituciones-crédito'!B16:H16),0),\"Por definir\"))))))))","v":"Por definir"}]
[{"$f":"Agricultura!$C16","v":"Seleccione"},{"$f":"IF(Agricultura!$E16='Instituciones-crédito'!B$12,Agricultura!$B16,\"\")","v":""},{"$f":"IF(Agricultura!$E16='Instituciones-crédito'!C$12,Agricultura!$B16,\"\")","v":""},{"$f":"IF(Agricultura!$E16='Instituciones-crédito'!D$12,Agricultura!$B16,\"\")","v":""},{"$f":"IF(Agricultura!$E16='Instituciones-crédito'!E$12,Agricultura!$B16,\"\")","v":""},{"$f":"IF(Agricultura!$E16='Instituciones-crédito'!F$12,Agricultura!$B16,\"\")","v":""},{"$f":"IF(Agricultura!$E16='Instituciones-crédito'!G$12,Agricultura!$B16,\"\")","v":""},{"$f":"IF(Agricultura!$E16='Instituciones-crédito'!H$12,Agricultura!$B16,\"\")","v":""},{"$f":"_xlfn.XLOOKUP(A17,'Base-datos'!$B$457:$B$509,'Base-datos'!$F$457:$F$509)","v":{"$error":"#N/A"}},{"$f":"_xlfn.XLOOKUP(A17,'Base-datos'!$B$457:$B$509,'Base-datos'!$C$457:$C$509)","v":{"$error":"#N/A"}},{"$f":"_xlfn.XLOOKUP(A17,'Base-datos'!$B$457:$B$509,'Base-datos'!$D$457:$D$509)","v":{"$error":"#N/A"}},null,null,{"$f":"IF(OR($L$13=\"La actividad no cumple con el total de los criterios de No Daño Significativo\",$M$13=\"El sector no cumple con las salvaguardas mínimas\"),\"\",IF(AND('Base-datos'!$B$715=\"Sí\",'Base-datos'!$B$716=\"\",'Base-datos'!$B$717=\"\"),IF('Instituciones-crédito'!J17=\"La actividad sí contribuye sustancialmente a la sostenibilidad\",SUM('Instituciones-crédito'!B17:H17),0),IF(AND('Base-datos'!$B$715=\"Sí\",'Base-datos'!$B$716=\"Sí\",'Base-datos'!$B$717=\"\"),IF(AND('Instituciones-crédito'!J17=\"La actividad sí contribuye sustancialmente a la sostenibilidad\",'Instituciones-crédito'!K17=\"La actividad sí contribuye sustancialmente a la sostenibilidad\"),SUM('Instituciones-crédito'!B17:H17),0),IF(AND('Base-datos'!$B$715=\"Sí\",'Base-datos'!$B$716=\"Sí\",'Base-datos'!$B$717=\"Sí\"),IF(AND('Instituciones-crédito'!J17=\"La actividad sí contribuye sustancialmente a la sostenibilidad\",'Instituciones-crédito'!K17=\"La actividad sí contribuye sustancialmente a la sostenibilidad\",'Instituciones-crédito'!I17=\"La actividad sí contribuye sustancialmente a la sostenibilidad\"),SUM('Instituciones-crédito'!B17:H17),0),IF(AND('Base-datos'!$B$715=\"\",'Base-datos'!$B$716=\"Sí\",'Base-datos'!$B$717=\"\"),IF('Instituciones-crédito'!K17=\"La actividad sí contribuye sustancialmente a la sostenibilidad\",SUM('Instituciones-crédito'!B17:H17),0),IF(AND('Base-datos'!$B$715=\"\",'Base-datos'!$B$716=\"\",'Base-datos'!$B$717=\"Sí\"),IF('Instituciones-crédito'!I17=\"La actividad sí contribuye sustancialmente a la sostenibilidad\",SUM('Instituciones-crédito'!B17:H17),0),IF(AND('Base-datos'!$B$715=\"\",'Base-datos'!$B$716=\"Sí\",'Base-datos'!$B$717=\"Sí\"),IF(AND('Instituciones-crédito'!K17=\"La actividad sí contribuye sustancialmente a la sostenibilidad\",'Instituciones-crédito'!I17=\"La actividad sí contribuye sustancialmente a la sostenibilidad\"),SUM('Instituciones-crédito'!B17:H17),0),IF(AND('Base-datos'!$B$715=\"Sí\",'Base-datos'!$B$716=\"\",'Base-datos'!$B$717=\"Sí\"),IF(AND('Instituciones-crédito'!J17=\"La actividad sí contribuye sustancialmente a la sostenibilidad\",'Instituciones-crédito'!I17=\"La actividad sí contribuye sustancialmente a la sostenibilidad\"),SUM('Instituciones-crédito'!B17:H17),0),\"Por definir\"))))))))","v":"Por definir"}]
[{"$f":"Agricultura!$C18","v":"Seleccione"},{"$f":"IF(Agricultura!$E18='Instituciones-crédito'!B$12,Agricultura!$B18,\"\")","v":""},{"$f":"IF(Agricultura!$E18='Instituciones-crédito'!C$12,Agricultura!$B18,\"\")","v":""},{"$f":"IF(Agricultura!$E18='Instituciones-crédito'!D$12,Agricultura!$B18,\"\")","v":""},{"$f":"IF(Agricultura!$E18='Instituciones-crédito'!E$12,Agricultura!$B18,\"\")","v":""},{"$f":"IF(Agricultura!$E18='Instituciones-crédito'!F$12,Agricultura!$B18,\"\")","v":""},{"$f":"IF(Agricultura!$E18='Instituciones-crédito'!G$12,Agricultura!$B18,\"\")","v":""},{"$f":"IF(Agricultura!$E18='Instituciones-crédito'!H$12,Agricultura!$B18,\"\")","v":""},{"$f":"_xlfn.XLOOKUP(A18,'Base-datos'!$B$457:$B$509,'Base-datos'!$F$457:$F$509)","v":{"$error":"#N/A"}},{"$f":"_xlfn.XLOOKUP(A18,'Base-datos'!$B$457:$B$509,'Base-datos'!$C$457:$C$509)","v":{"$error":"#N/A"}},{"$f":"_xlfn.XLOOKUP(A18,'Base-datos'!$B$457:$B$509,'Base-datos'!$D$457:$D$509)","v":{"$error":"#N/A"}},null,null,{"$f":"IF(OR($L$13=\"La actividad no cumple con el total de los criterios de No Daño Significativo\",$M$13=\"El sector no cumple con las salvaguardas mínimas\"),\"\",IF(AND('Base-datos'!$B$715=\"Sí\",'Base-datos'!$B$716=\"\",'Base-datos'!$B$717=\"\"),IF('Instituciones-crédito'!J18=\"La actividad sí contribuye sustancialmente a la sostenibilidad\",SUM('Instituciones-crédito'!B18:H18),0),IF(AND('Base-datos'!$B$715=\"Sí\",'Base-datos'!$B$716=\"Sí\",'Base-datos'!$B$717=\"\"),IF(AND('Instituciones-crédito'!J18=\"La actividad sí contribuye sustancialmente a la sostenibilidad\",'Instituciones-crédito'!K18=\"La actividad sí contribuye sustancialmente a la sostenibilidad\"),SUM('Instituciones-crédito'!B18:H18),0),IF(AND('Base-datos'!$B$715=\"Sí\",'Base-datos'!$B$716=\"Sí\",'Base-datos'!$B$717=\"Sí\"),IF(AND('Instituciones-crédito'!J18=\"La actividad sí contribuye sustancialmente a la sostenibilidad\",'Instituciones-crédito'!K18=\"La actividad sí contribuye sustancialmente a la sostenibilidad\",'Instituciones-crédito'!I18=\"La actividad sí contribuye sustancialmente a la sostenibilidad\"),SUM('Instituciones-crédito'!B18:H18),0),IF(AND('Base-datos'!$B$715=\"\",'Base-datos'!$B$716=\"Sí\",'Base-datos'!$B$717=\"\"),IF('Instituciones-crédito'!K18=\"La actividad sí contribuye sustancialmente a la sostenibilidad\",SUM('Instituciones-crédito'!B18:H18),0),IF(AND('Base-datos'!$B$715=\"\",'Base-datos'!$B$716=\"\",'Base-datos'!$B$717=\"Sí\"),IF('Instituciones-crédito'!I18=\"La actividad sí contribuye sustancialmente a la sostenibilidad\",SUM('Instituciones-crédito'!B18:H18),0),IF(AND('Base-datos'!$B$715=\"\",'Base-datos'!$B$716=\"Sí\",'Base-datos'!$B$717=\"Sí\"),IF(AND('Instituciones-crédito'!K18=\"La actividad sí contribuye sustancialmente a la sostenibilidad\",'Instituciones-crédito'!I18=\"La actividad sí contribuye sustancialmente a la sostenibilidad\"),SUM('Instituciones-crédito'!B18:H18),0),IF(AND('Base-datos'!$B$715=\"Sí\",'Base-datos'!$B$716=\"\",'Base-datos'!$B$717=\"Sí\"),IF(AND('Instituciones-crédito'!J18=\"La actividad sí contribuye sustancialmente a la sostenibilidad\",'Instituciones-crédito'!I18=\"La actividad sí contribuye sustancialmente a la sostenibilidad\"),SUM('Instituciones-crédito'!B18:H18),0),\"Por definir\"))))))))","v":"Por definir"}]
[{"$f":"Agricultura!$C20","v":"Seleccione"},{"$f":"IF(Agricultura!$E20='Instituciones-crédito'!B$12,Agricultura!$B20,\"\")","v":""},{"$f":"IF(Agricultura!$E20='Instituciones-crédito'!C$12,Agricultura!$B20,\"\")","v":""},{"$f":"IF(Agricultura!$E20='Instituciones-crédito'!D$12,Agricultura!$B20,\"\")","v":""},{"$f":"IF(Agricultura!$E20='Instituciones-crédito'!E$12,Agricultura!$B20,\"\")","v":""},{"$f":"IF(Agricultura!$E20='Instituciones-crédito'!F$12,Agricultura!$B20,\"\")","v":""},{"$f":"IF(Agricultura!$E20='Instituciones-crédito'!G$12,Agricultura!$B20,\"\")","v":""},{"$f":"IF(Agricultura!$E20='Instituciones-crédito'!H$12,Agricultura!$B20,\"\")","v":""},{"$f":"_xlfn.XLOOKUP(A19,'Base-datos'!$B$457:$B$509,'Base-datos'!$F$457:$F$509)","v":{"$error":"#N/A"}},{"$f":"_xlfn.XLOOKUP(A19,'Base-datos'!$B$457:$B$509,'Base-datos'!$C$457:$C$509)","v":{"$error":"#N/A"}},{"$f":"_xlfn.XLOOKUP(A19,'Base-datos'!$B$457:$B$509,'Base-datos'!$D$457:$D$509)","v":{"$error":"#N/A"}},null,null,{"$f":"IF(OR($L$13=\"La actividad no cumple con el total de los criterios de No Daño Significativo\",$M$13=\"El sector no cumple con las salvaguardas mínimas\"),\"\",IF(AND('Base-datos'!$B$715=\"Sí\",'Base-datos'!$B$716=\"\",'Base-datos'!$B$717=\"\"),IF('Instituciones-crédito'!J19=\"La actividad sí contribuye sustancialmente a la sostenibilidad\",SUM('Instituciones-crédito'!B19:H19),0),IF(AND('Base-datos'!$B$715=\"Sí\",'Base-datos'!$B$716=\"Sí\",'Base-datos'!$B$717=\"\"),IF(AND('Instituciones-crédito'!J19=\"La actividad sí contribuye sustancialmente a la sostenibilidad\",'Instituciones-crédito'!K19=\"La actividad sí contribuye sustancialmente a la sostenibilidad\"),SUM('Instituciones-crédito'!B19:H19),0),IF(AND('Base-datos'!$B$715=\"Sí\",'Base-datos'!$B$716=\"Sí\",'Base-datos'!$B$717=\"Sí\"),IF(AND('Instituciones-crédito'!J19=\"La actividad sí contribuye sustancialmente a la sostenibilidad\",'Instituciones-crédito'!K19=\"La actividad sí contribuye sustancialmente a la sostenibilidad\",'Instituciones-crédito'!I19=\"La actividad sí contribuye sustancialmente a la sostenibilidad\"),SUM('Instituciones-crédito'!B19:H19),0),IF(AND('Base-datos'!$B$715=\"\",'Base-datos'!$B$716=\"Sí\",'Base-datos'!$B$717=\"\"),IF('Instituciones-crédito'!K19=\"La actividad sí contribuye sustancialmente a la sostenibilidad\",SUM('Instituciones-crédito'!B19:H19),0),IF(AND('Base-datos'!$B$715=\"\",'Base-datos'!$B$716=\"\",'Base-datos'!$B$717=\"Sí\"),IF('Instituciones-crédito'!I19=\"La actividad sí contribuye sustancialmente a la sostenibilidad\",SUM('Instituciones-crédito'!B19:H19),0),IF(AND('Base-datos'!$B$715=\"\",'Base-datos'!$B$716=\"Sí\",'Base-datos'!$B$717=\"Sí\"),IF(AND('Instituciones-crédito'!K19=\"La actividad sí contribuye sustancialmente a la sostenibilidad\",'Instituciones-crédito'!I19=\"La actividad sí contribuye sustancialmente a la sostenibilidad\"),SUM('Instituciones-crédito'!B19:H19),0),IF(AND('Base-datos'!$B$715=\"Sí\",'Base-datos'!$B$716=\"\",'Base-datos'!$B$717=\"Sí\"),IF(AND('Instituciones-crédito'!J19=\"La actividad sí contribuye sustancialmente a la sostenibilidad\",'Instituciones-crédito'!I19=\"La actividad sí contribuye sustancialmente a la sostenibilidad\"),SUM('Instituciones-crédito'!B19:H19),0),\"Por definir\"))))))))","v":"Por definir"}]
[{"$f":"Agricultura!$C22","v":"Seleccione"},{"$f":"IF(Agricultura!$E22='Instituciones-crédito'!B$12,Agricultura!$B22,\"\")","v":""},{"$f":"IF(Agricultura!$E22='Instituciones-crédito'!C$12,Agricultura!$B22,\"\")","v":""},{"$f":"IF(Agricultura!$E22='Instituciones-crédito'!D$12,Agricultura!$B22,\"\")","v":""},{"$f":"IF(Agricultura!$E22='Instituciones-crédito'!E$12,Agricultura!$B22,\"\")","v":""},{"$f":"IF(Agricultura!$E22='Instituciones-crédito'!F$12,Agricultura!$B22,\"\")","v":""},{"$f":"IF(Agricultura!$E22='Instituciones-crédito'!G$12,Agricultura!$B22,\"\")","v":""},{"$f":"IF(Agricultura!$E22='Instituciones-crédito'!H$12,Agricultura!$B22,\"\")","v":""},{"$f":"_xlfn.XLOOKUP(A20,'Base-datos'!$B$457:$B$509,'Base-datos'!$F$457:$F$509)","v":{"$error":"#N/A"}},{"$f":"_xlfn.XLOOKUP(A20,'Base-datos'!$B$457:$B$509,'Base-datos'!$C$457:$C$509)","v":{"$error":"#N/A"}},{"$f":"_xlfn.XLOOKUP(A20,'Base-datos'!$B$457:$B$509,'Base-datos'!$D$457:$D$509)","v":{"$error":"#N/A"}},null,null,{"$f":"IF(OR($L$13=\"La actividad no cumple con el total de los criterios de No Daño Significativo\",$M$13=\"El sector no cumple con las salvaguardas mínimas\"),\"\",IF(AND('Base-datos'!$B$715=\"Sí\",'Base-datos'!$B$716=\"\",'Base-datos'!$B$717=\"\"),IF('Instituciones-crédito'!J20=\"La actividad sí contribuye sustancialmente a la sostenibilidad\",SUM('Instituciones-crédito'!B20:H20),0),IF(AND('Base-datos'!$B$715=\"Sí\",'Base-datos'!$B$716=\"Sí\",'Base-datos'!$B$717=\"\"),IF(AND('Instituciones-crédito'!J20=\"La actividad sí contribuye sustancialmente a la sostenibilidad\",'Instituciones-crédito'!K20=\"La actividad sí contribuye sustancialmente a la sostenibilidad\"),SUM('Instituciones-crédito'!B20:H20),0),IF(AND('Base-datos'!$B$715=\"Sí\",'Base-datos'!$B$716=\"Sí\",'Base-datos'!$B$717=\"Sí\"),IF(AND('Instituciones-crédito'!J20=\"La actividad sí contribuye sustancialmente a la sostenibilidad\",'Instituciones-crédito'!K20=\"La actividad sí contribuye sustancialmente a la sostenibilidad\",'Instituciones-crédito'!I20=\"La actividad sí contribuye sustancialmente a la sostenibilidad\"),SUM('Instituciones-crédito'!B20:H20),0),IF(AND('Base-datos'!$B$715=\"\",'Base-datos'!$B$716=\"Sí\",'Base-datos'!$B$717=\"\"),IF('Instituciones-crédito'!K20=\"La actividad sí contribuye sustancialmente a la sostenibilidad\",SUM('Instituciones-crédito'!B20:H20),0),IF(AND('Base-datos'!$B$715=\"\",'Base-datos'!$B$716=\"\",'Base-datos'!$B$717=\"Sí\"),IF('Instituciones-crédito'!I20=\"La actividad sí contribuye sustancialmente a la sostenibilidad\",SUM('Instituciones-crédito'!B20:H20),0),IF(AND('Base-datos'!$B$715=\"\",'Base-datos'!$B$716=\"Sí\",'Base-datos'!$B$717=\"Sí\"),IF(AND('Instituciones-crédito'!K20=\"La actividad sí contribuye sustancialmente a la sostenibilidad\",'Instituciones-crédito'!I20=\"La actividad sí contribuye sustancialmente a la sostenibilidad\"),SUM('Instituciones-crédito'!B20:H20),0),IF(AND('Base-datos'!$B$715=\"Sí\",'Base-datos'!$B$716=\"\",'Base-datos'!$B$717=\"Sí\"),IF(AND('Instituciones-crédito'!J20=\"La actividad sí contribuye sustancialmente a la sostenibilidad\",'Instituciones-crédito'!I20=\"La actividad sí contribuye sustancialmente a la sostenibilidad\"),SUM('Instituciones-crédito'!B20:H20),0),\"Por definir\"))))))))","v":"Por definir"}]
[{"$f":"Agricultura!$C24","v":"Seleccione"},{"$f":"IF(Agricultura!$E24='Instituciones-crédito'!B$12,Agricultura!$B24,\"\")","v":""},{"$f":"IF(Agricultura!$E24='Instituciones-crédito'!C$12,Agricultura!$B24,\"\")","v":""},{"$f":"IF(Agricultura!$E24='Instituciones-crédito'!D$12,Agricultura!$B24,\"\")","v":""},{"$f":"IF(Agricultura!$E24='Instituciones-crédito'!E$12,Agricultura!$B24,\"\")","v":""},{"$f":"IF(Agricultura!$E24='Instituciones-crédito'!F$12,Agricultura!$B24,\"\")","v":""},{"$f":"IF(Agricultura!$E24='Instituciones-crédito'!G$12,Agricultura!$B24,\"\")","v":""},{"$f":"IF(Agricultura!$E24='Instituciones-crédito'!H$12,Agricultura!$B24,\"\")","v":""},{"$f":"_xlfn.XLOOKUP(A21,'Base-datos'!$B$457:$B$509,'Base-datos'!$F$457:$F$509)","v":{"$error":"#N/A"}},{"$f":"_xlfn.XLOOKUP(A21,'Base-datos'!$B$457:$B$509,'Base-datos'!$C$457:$C$509)","v":{"$error":"#N/A"}},{"$f":"_xlfn.XLOOKUP(A21,'Base-datos'!$B$457:$B$509,'Base-datos'!$D$457:$D$509)","v":{"$error":"#N/A"}},null,null,{"$f":"IF(OR($L$13=\"La actividad no cumple con el total de los criterios de No Daño Significativo\",$M$13=\"El sector no cumple con las salvaguardas mínimas\"),\"\",IF(AND('Base-datos'!$B$715=\"Sí\",'Base-datos'!$B$716=\"\",'Base-datos'!$B$717=\"\"),IF('Instituciones-crédito'!J21=\"La actividad sí contribuye sustancialmente a la sostenibilidad\",SUM('Instituciones-crédito'!B21:H21),0),IF(AND('Base-datos'!$B$715=\"Sí\",'Base-datos'!$B$716=\"Sí\",'Base-datos'!$B$717=\"\"),IF(AND('Instituciones-crédito'!J21=\"La actividad sí contribuye sustancialmente a la sostenibilidad\",'Instituciones-crédito'!K21=\"La actividad sí contribuye sustancialmente a la sostenibilidad\"),SUM('Instituciones-crédito'!B21:H21),0),IF(AND('Base-datos'!$B$715=\"Sí\",'Base-datos'!$B$716=\"Sí\",'Base-datos'!$B$717=\"Sí\"),IF(AND('Instituciones-crédito'!J21=\"La actividad sí contribuye sustancialmente a la sostenibilidad\",'Instituciones-crédito'!K21=\"La actividad sí contribuye sustancialmente a la sostenibilidad\",'Instituciones-crédito'!I21=\"La actividad sí contribuye sustancialmente a la sostenibilidad\"),SUM('Instituciones-crédito'!B21:H21),0),IF(AND('Base-datos'!$B$715=\"\",'Base-datos'!$B$716=\"Sí\",'Base-datos'!$B$717=\"\"),IF('Instituciones-crédito'!K21=\"La actividad sí contribuye sustancialmente a la sostenibilidad\",SUM('Instituciones-crédito'!B21:H21),0),IF(AND('Base-datos'!$B$715=\"\",'Base-datos'!$B$716=\"\",'Base-datos'!$B$717=\"Sí\"),IF('Instituciones-crédito'!I21=\"La actividad sí contribuye sustancialmente a la sostenibilidad\",SUM('Instituciones-crédito'!B21:H21),0),IF(AND('Base-datos'!$B$715=\"\",'Base-datos'!$B$716=\"Sí\",'Base-datos'!$B$717=\"Sí\"),IF(AND('Instituciones-crédito'!K21=\"La actividad sí contribuye sustancialmente a la sostenibilidad\",'Instituciones-crédito'!I21=\"La actividad sí contribuye sustancialmente a la sostenibilidad\"),SUM('Instituciones-crédito'!B21:H21),0),IF(AND('Base-datos'!$B$715=\"Sí\",'Base-datos'!$B$716=\"\",'Base-datos'!$B$717=\"Sí\"),IF(AND('Instituciones-crédito'!J21=\"La actividad sí contribuye sustancialmente a la sostenibilidad\",'Instituciones-crédito'!I21=\"La actividad sí contribuye sustancialmente a la sostenibilidad\"),SUM('Instituciones-crédito'!B21:H21),0),\"Por definir\"))))))))","v":"Por definir"}]
[{"$f":"Agricultura!$C26","v":"Seleccione"},{"$f":"IF(Agricultura!$E26='Instituciones-crédito'!B$12,Agricultura!$B26,\"\")","v":""},{"$f":"IF(Agricultura!$E26='Instituciones-crédito'!C$12,Agricultura!$B26,\"\")","v":""},{"$f":"IF(Agricultura!$E26='Instituciones-crédito'!D$12,Agricultura!$B26,\"\")","v":""},{"$f":"IF(Agricultura!$E26='Instituciones-crédito'!E$12,Agricultura!$B26,\"\")","v":""},{"$f":"IF(Agricultura!$E26='Instituciones-crédito'!F$12,Agricultura!$B26,\"\")","v":""},{"$f":"IF(Agricultura!$E26='Instituciones-crédito'!G$12,Agricultura!$B26,\"\")","v":""},{"$f":"IF(Agricultura!$E26='Instituciones-crédito'!H$12,Agricultura!$B26,\"\")","v":""},{"$f":"_xlfn.XLOOKUP(A22,'Base-datos'!$B$457:$B$509,'Base-datos'!$F$457:$F$509)","v":{"$error":"#N/A"}},{"$f":"_xlfn.XLOOKUP(A22,'Base-datos'!$B$457:$B$509,'Base-datos'!$C$457:$C$509)","v":{"$error":"#N/A"}},{"$f":"_xlfn.XLOOKUP(A22,'Base-datos'!$B$457:$B$509,'Base-datos'!$D$457:$D$509)","v":{"$error":"#N/A"}},null,null,{"$f":"IF(OR($L$13=\"La actividad no cumple con el total de los criterios de No Daño Significativo\",$M$13=\"El sector no cumple con las salvaguardas mínimas\"),\"\",IF(AND('Base-datos'!$B$715=\"Sí\",'Base-datos'!$B$716=\"\",'Base-datos'!$B$717=\"\"),IF('Instituciones-crédito'!J22=\"La actividad sí contribuye sustancialmente a la sostenibilidad\",SUM('Instituciones-crédito'!B22:H22),0),IF(AND('Base-datos'!$B$715=\"Sí\",'Base-datos'!$B$716=\"Sí\",'Base-datos'!$B$717=\"\"),IF(AND('Instituciones-crédito'!J22=\"La actividad sí contribuye sustancialmente a la sostenibilidad\",'Instituciones-crédito'!K22=\"La actividad sí contribuye sustancialmente a la sostenibilidad\"),SUM('Instituciones-crédito'!B22:H22),0),IF(AND('Base-datos'!$B$715=\"Sí\",'Base-datos'!$B$716=\"Sí\",'Base-datos'!$B$717=\"Sí\"),IF(AND('Instituciones-crédito'!J22=\"La actividad sí contribuye sustancialmente a la sostenibilidad\",'Instituciones-crédito'!K22=\"La actividad sí contribuye sustancialmente a la sostenibilidad\",'Instituciones-crédito'!I22=\"La actividad sí contribuye sustancialmente a la sostenibilidad\"),SUM('Instituciones-crédito'!B22:H22),0),IF(AND('Base-datos'!$B$715=\"\",'Base-datos'!$B$716=\"Sí\",'Base-datos'!$B$717=\"\"),IF('Instituciones-crédito'!K22=\"La actividad sí contribuye sustancialmente a la sostenibilidad\",SUM('Instituciones-crédito'!B22:H22),0),IF(AND('Base-datos'!$B$715=\"\",'Base-datos'!$B$716=\"\",'Base-datos'!$B$717=\"Sí\"),IF('Instituciones-crédito'!I22=\"La actividad sí contribuye sustancialmente a la sostenibilidad\",SUM('Instituciones-crédito'!B22:H22),0),IF(AND('Base-datos'!$B$715=\"\",'Base-datos'!$B$716=\"Sí\",'Base-datos'!$B$717=\"Sí\"),IF(AND('Instituciones-crédito'!K22=\"La actividad sí contribuye sustancialmente a la sostenibilidad\",'Instituciones-crédito'!I22=\"La actividad sí contribuye sustancialmente a la sostenibilidad\"),SUM('Instituciones-crédito'!B22:H22),0),IF(AND('Base-datos'!$B$715=\"Sí\",'Base-datos'!$B$716=\"\",'Base-datos'!$B$717=\"Sí\"),IF(AND('Instituciones-crédito'!J22=\"La actividad sí contribuye sustancialmente a la sostenibilidad\",'Instituciones-crédito'!I22=\"La actividad sí contribuye sustancialmente a la sostenibilidad\"),SUM('Instituciones-crédito'!B22:H22),0),\"Por definir\"))))))))","v":"Por definir"}]
[{"$f":"Agricultura!$C28","v":"Seleccione"},{"$f":"IF(Agricultura!$E28='Instituciones-crédito'!B$12,Agricultura!$B28,\"\")","v":""},{"$f":"IF(Agricultura!$E28='Instituciones-crédito'!C$12,Agricultura!$B28,\"\")","v":""},{"$f":"IF(Agricultura!$E28='Instituciones-crédito'!D$12,Agricultura!$B28,\"\")","v":""},{"$f":"IF(Agricultura!$E28='Instituciones-crédito'!E$12,Agricultura!$B28,\"\")","v":""},{"$f":"IF(Agricultura!$E28='Instituciones-crédito'!F$12,Agricultura!$B28,\"\")","v":""},{"$f":"IF(Agricultura!$E28='Instituciones-crédito'!G$12,Agricultura!$B28,\"\")","v":""},{"$f":"IF(Agricultura!$E28='Instituciones-crédito'!H$12,Agricultura!$B28,\"\")","v":""},{"$f":"_xlfn.XLOOKUP(A23,'Base-datos'!$B$457:$B$509,'Base-datos'!$F$457:$F$509)","v":{"$error":"#N/A"}},{"$f":"_xlfn.XLOOKUP(A23,'Base-datos'!$B$457:$B$509,'Base-datos'!$C$457:$C$509)","v":{"$error":"#N/A"}},{"$f":"_xlfn.XLOOKUP(A23,'Base-datos'!$B$457:$B$509,'Base-datos'!$D$457:$D$509)","v":{"$error":"#N/A"}},null,null,{"$f":"IF(OR($L$13=\"La actividad no cumple con el total de los criterios de No Daño Significativo\",$M$13=\"El sector no cumple con las salvaguardas mínimas\"),\"\",IF(AND('Base-datos'!$B$715=\"Sí\",'Base-datos'!$B$716=\"\",'Base-datos'!$B$717=\"\"),IF('Instituciones-crédito'!J23=\"La actividad sí contribuye sustancialmente a la sostenibilidad\",SUM('Instituciones-crédito'!B23:H23),0),IF(AND('Base-datos'!$B$715=\"Sí\",'Base-datos'!$B$716=\"Sí\",'Base-datos'!$B$717=\"\"),IF(AND('Instituciones-crédito'!J23=\"La actividad sí contribuye sustancialmente a la sostenibilidad\",'Instituciones-crédito'!K23=\"La actividad sí contribuye sustancialmente a la sostenibilidad\"),SUM('Instituciones-crédito'!B23:H23),0),IF(AND('Base-datos'!$B$715=\"Sí\",'Base-datos'!$B$716=\"Sí\",'Base-datos'!$B$717=\"Sí\"),IF(AND('Instituciones-crédito'!J23=\"La actividad sí contribuye sustancialmente a la sostenibilidad\",'Instituciones-crédito'!K23=\"La actividad sí contribuye sustancialmente a la sostenibilidad\",'Instituciones-crédito'!I23=\"La actividad sí contribuye sustancialmente a la sostenibilidad\"),SUM('Instituciones-crédito'!B23:H23),0),IF(AND('Base-datos'!$B$715=\"\",'Base-datos'!$B$716=\"Sí\",'Base-datos'!$B$717=\"\"),IF('Instituciones-crédito'!K23=\"La actividad sí contribuye sustancialmente a la sostenibilidad\",SUM('Instituciones-crédito'!B23:H23),0),IF(AND('Base-datos'!$B$715=\"\",'Base-datos'!$B$716=\"\",'Base-datos'!$B$717=\"Sí\"),IF('Instituciones-crédito'!I23=\"La actividad sí contribuye sustancialmente a la sostenibilidad\",SUM('Instituciones-crédito'!B23:H23),0),IF(AND('Base-datos'!$B$715=\"\",'Base-datos'!$B$716=\"Sí\",'Base-datos'!$B$717=\"Sí\"),IF(AND('Instituciones-crédito'!K23=\"La actividad sí contribuye sustancialmente a la sostenibilidad\",'Instituciones-crédito'!I23=\"La actividad sí contribuye sustancialmente a la sostenibilidad\"),SUM('Instituciones-crédito'!B23:H23),0),IF(AND('Base-datos'!$B$715=\"Sí\",'Base-datos'!$B$716=\"\",'Base-datos'!$B$717=\"Sí\"),IF(AND('Instituciones-crédito'!J23=\"La actividad sí contribuye sustancialmente a la sostenibilidad\",'Instituciones-crédito'!I23=\"La actividad sí contribuye sustancialmente a la sostenibilidad\"),SUM('Instituciones-crédito'!B23:H23),0),\"Por definir\"))))))))","v":"Por definir"}]
[{"$f":"Agricultura!$C30","v":"Seleccione"},{"$f":"IF(Agricultura!$E30='Instituciones-crédito'!B$12,Agricultura!$B30,\"\")","v":""},{"$f":"IF(Agricultura!$E30='Instituciones-crédito'!C$12,Agricultura!$B30,\"\")","v":""},{"$f":"IF(Agricultura!$E30='Instituciones-crédito'!D$12,Agricultura!$B30,\"\")","v":""},{"$f":"IF(Agricultura!$E30='Instituciones-crédito'!E$12,Agricultura!$B30,\"\")","v":""},{"$f":"IF(Agricultura!$E30='Instituciones-crédito'!F$12,Agricultura!$B30,\"\")","v":""},{"$f":"IF(Agricultura!$E30='Instituciones-crédito'!G$12,Agricultura!$B30,\"\")","v":""},{"$f":"IF(Agricultura!$E30='Instituciones-crédito'!H$12,Agricultura!$B30,\"\")","v":""},{"$f":"_xlfn.XLOOKUP(A24,'Base-datos'!$B$457:$B$509,'Base-datos'!$F$457:$F$509)","v":{"$error":"#N/A"}},{"$f":"_xlfn.XLOOKUP(A24,'Base-datos'!$B$457:$B$509,'Base-datos'!$C$457:$C$509)","v":{"$error":"#N/A"}},{"$f":"_xlfn.XLOOKUP(A24,'Base-datos'!$B$457:$B$509,'Base-datos'!$D$457:$D$509)","v":{"$error":"#N/A"}},null,null,{"$f":"IF(OR($L$13=\"La actividad no cumple con el total de los criterios de No Daño Significativo\",$M$13=\"El sector no cumple con las salvaguardas mínimas\"),\"\",IF(AND('Base-datos'!$B$715=\"Sí\",'Base-datos'!$B$716=\"\",'Base-datos'!$B$717=\"\"),IF('Instituciones-crédito'!J24=\"La actividad sí contribuye sustancialmente a la sostenibilidad\",SUM('Instituciones-crédito'!B24:H24),0),IF(AND('Base-datos'!$B$715=\"Sí\",'Base-datos'!$B$716=\"Sí\",'Base-datos'!$B$717=\"\"),IF(AND('Instituciones-crédito'!J24=\"La actividad sí contribuye sustancialmente a la sostenibilidad\",'Instituciones-crédito'!K24=\"La actividad sí contribuye sustancialmente a la sostenibilidad\"),SUM('Instituciones-crédito'!B24:H24),0),IF(AND('Base-datos'!$B$715=\"Sí\",'Base-datos'!$B$716=\"Sí\",'Base-datos'!$B$717=\"Sí\"),IF(AND('Instituciones-crédito'!J24=\"La actividad sí contribuye sustancialmente a la sostenibilidad\",'Instituciones-crédito'!K24=\"La actividad sí contribuye sustancialmente a la sostenibilidad\",'Instituciones-crédito'!I24=\"La actividad sí contribuye sustancialmente a la sostenibilidad\"),SUM('Instituciones-crédito'!B24:H24),0),IF(AND('Base-datos'!$B$715=\"\",'Base-datos'!$B$716=\"Sí\",'Base-datos'!$B$717=\"\"),IF('Instituciones-crédito'!K24=\"La actividad sí contribuye sustancialmente a la sostenibilidad\",SUM('Instituciones-crédito'!B24:H24),0),IF(AND('Base-datos'!$B$715=\"\",'Base-datos'!$B$716=\"\",'Base-datos'!$B$717=\"Sí\"),IF('Instituciones-crédito'!I24=\"La actividad sí contribuye sustancialmente a la sostenibilidad\",SUM('Instituciones-crédito'!B24:H24),0),IF(AND('Base-datos'!$B$715=\"\",'Base-datos'!$B$716=\"Sí\",'Base-datos'!$B$717=\"Sí\"),IF(AND('Instituciones-crédito'!K24=\"La actividad sí contribuye sustancialmente a la sostenibilidad\",'Instituciones-crédito'!I24=\"La actividad sí contribuye sustancialmente a la sostenibilidad\"),SUM('Instituciones-crédito'!B24:H24),0),IF(AND('Base-datos'!$B$715=\"Sí\",'Base-datos'!$B$716=\"\",'Base-datos'!$B$717=\"Sí\"),IF(AND('Instituciones-crédito'!J24=\"La actividad sí contribuye sustancialmente a la sostenibilidad\",'Instituciones-crédito'!I24=\"La actividad sí contribuye sustancialmente a la sostenibilidad\"),SUM('Instituciones-crédito'!B24:H24),0),\"Por definir\"))))))))","v":"Por definir"}]
[{"$f":"Agricultura!$C32","v":"Seleccione"},{"$f":"IF(Agricultura!$E32='Instituciones-crédito'!B$12,Agricultura!$B32,\"\")","v":""},{"$f":"IF(Agricultura!$E32='Instituciones-crédito'!C$12,Agricultura!$B32,\"\")","v":""},{"$f":"IF(Agricultura!$E32='Instituciones-crédito'!D$12,Agricultura!$B32,\"\")","v":""},{"$f":"IF(Agricultura!$E32='Instituciones-crédito'!E$12,Agricultura!$B32,\"\")","v":""},{"$f":"IF(Agricultura!$E32='Instituciones-crédito'!F$12,Agricultura!$B32,\"\")","v":""},{"$f":"IF(Agricultura!$E32='Instituciones-crédito'!G$12,Agricultura!$B32,\"\")","v":""},{"$f":"IF(Agricultura!$E32='Instituciones-crédito'!H$12,Agricultura!$B32,\"\")","v":""},{"$f":"_xlfn.XLOOKUP(A25,'Base-datos'!$B$457:$B$509,'Base-datos'!$F$457:$F$509)","v":{"$error":"#N/A"}},{"$f":"_xlfn.XLOOKUP(A25,'Base-datos'!$B$457:$B$509,'Base-datos'!$C$457:$C$509)","v":{"$error":"#N/A"}},{"$f":"_xlfn.XLOOKUP(A25,'Base-datos'!$B$457:$B$509,'Base-datos'!$D$457:$D$509)","v":{"$error":"#N/A"}},null,null,{"$f":"IF(OR($L$13=\"La actividad no cumple con el total de los criterios de No Daño Significativo\",$M$13=\"El sector no cumple con las salvaguardas mínimas\"),\"\",IF(AND('Base-datos'!$B$715=\"Sí\",'Base-datos'!$B$716=\"\",'Base-datos'!$B$717=\"\"),IF('Instituciones-crédito'!J25=\"La actividad sí contribuye sustancialmente a la sostenibilidad\",SUM('Instituciones-crédito'!B25:H25),0),IF(AND('Base-datos'!$B$715=\"Sí\",'Base-datos'!$B$716=\"Sí\",'Base-datos'!$B$717=\"\"),IF(AND('Instituciones-crédito'!J25=\"La actividad sí contribuye sustancialmente a la sostenibilidad\",'Instituciones-crédito'!K25=\"La actividad sí contribuye sustancialmente a la sostenibilidad\"),SUM('Instituciones-crédito'!B25:H25),0),IF(AND('Base-datos'!$B$715=\"Sí\",'Base-datos'!$B$716=\"Sí\",'Base-datos'!$B$717=\"Sí\"),IF(AND('Instituciones-crédito'!J25=\"La actividad sí contribuye sustancialmente a la sostenibilidad\",'Instituciones-crédito'!K25=\"La actividad sí contribuye sustancialmente a la sostenibilidad\",'Instituciones-crédito'!I25=\"La actividad sí contribuye sustancialmente a la sostenibilidad\"),SUM('Instituciones-crédito'!B25:H25),0),IF(AND('Base-datos'!$B$715=\"\",'Base-datos'!$B$716=\"Sí\",'Base-datos'!$B$717=\"\"),IF('Instituciones-crédito'!K25=\"La actividad sí contribuye sustancialmente a la sostenibilidad\",SUM('Instituciones-crédito'!B25:H25),0),IF(AND('Base-datos'!$B$715=\"\",'Base-datos'!$B$716=\"\",'Base-datos'!$B$717=\"Sí\"),IF('Instituciones-crédito'!I25=\"La actividad sí contribuye sustancialmente a la sostenibilidad\",SUM('Instituciones-crédito'!B25:H25),0),IF(AND('Base-datos'!$B$715=\"\",'Base-datos'!$B$716=\"Sí\",'Base-datos'!$B$717=\"Sí\"),IF(AND('Instituciones-crédito'!K25=\"La actividad sí contribuye sustancialmente a la sostenibilidad\",'Instituciones-crédito'!I25=\"La actividad sí contribuye sustancialmente a la sostenibilidad\"),SUM('Instituciones-crédito'!B25:H25),0),IF(AND('Base-datos'!$B$715=\"Sí\",'Base-datos'!$B$716=\"\",'Base-datos'!$B$717=\"Sí\"),IF(AND('Instituciones-crédito'!J25=\"La actividad sí contribuye sustancialmente a la sostenibilidad\",'Instituciones-crédito'!I25=\"La actividad sí contribuye sustancialmente a la sostenibilidad\"),SUM('Instituciones-crédito'!B25:H25),0),\"Por definir\"))))))))","v":"Por definir"}]
[{"$f":"Agricultura!$C34","v":"Seleccione"},{"$f":"IF(Agricultura!$E34='Instituciones-crédito'!B$12,Agricultura!$B34,\"\")","v":""},{"$f":"IF(Agricultura!$E34='Instituciones-crédito'!C$12,Agricultura!$B34,\"\")","v":""},{"$f":"IF(Agricultura!$E34='Instituciones-crédito'!D$12,Agricultura!$B34,\"\")","v":""},{"$f":"IF(Agricultura!$E34='Instituciones-crédito'!E$12,Agricultura!$B34,\"\")","v":""},{"$f":"IF(Agricultura!$E34='Instituciones-crédito'!F$12,Agricultura!$B34,\"\")","v":""},{"$f":"IF(Agricultura!$E34='Instituciones-crédito'!G$12,Agricultura!$B34,\"\")","v":""},{"$f":"IF(Agricultura!$E34='Instituciones-crédito'!H$12,Agricultura!$B34,\"\")","v":""},{"$f":"_xlfn.XLOOKUP(A26,'Base-datos'!$B$457:$B$509,'Base-datos'!$F$457:$F$509)","v":{"$error":"#N/A"}},{"$f":"_xlfn.XLOOKUP(A26,'Base-datos'!$B$457:$B$509,'Base-datos'!$C$457:$C$509)","v":{"$error":"#N/A"}},{"$f":"_xlfn.XLOOKUP(A26,'Base-datos'!$B$457:$B$509,'Base-datos'!$D$457:$D$509)","v":{"$error":"#N/A"}},null,null,{"$f":"IF(OR($L$13=\"La actividad no cumple con el total de los criterios de No Daño Significativo\",$M$13=\"El sector no cumple con las salvaguardas mínimas\"),\"\",IF(AND('Base-datos'!$B$715=\"Sí\",'Base-datos'!$B$716=\"\",'Base-datos'!$B$717=\"\"),IF('Instituciones-crédito'!J26=\"La actividad sí contribuye sustancialmente a la sostenibilidad\",SUM('Instituciones-crédito'!B26:H26),0),IF(AND('Base-datos'!$B$715=\"Sí\",'Base-datos'!$B$716=\"Sí\",'Base-datos'!$B$717=\"\"),IF(AND('Instituciones-crédito'!J26=\"La actividad sí contribuye sustancialmente a la sostenibilidad\",'Instituciones-crédito'!K26=\"La actividad sí contribuye sustancialmente a la sostenibilidad\"),SUM('Instituciones-crédito'!B26:H26),0),IF(AND('Base-datos'!$B$715=\"Sí\",'Base-datos'!$B$716=\"Sí\",'Base-datos'!$B$717=\"Sí\"),IF(AND('Instituciones-crédito'!J26=\"La actividad sí contribuye sustancialmente a la sostenibilidad\",'Instituciones-crédito'!K26=\"La actividad sí contribuye sustancialmente a la sostenibilidad\",'Instituciones-crédito'!I26=\"La actividad sí contribuye sustancialmente a la sostenibilidad\"),SUM('Instituciones-crédito'!B26:H26),0),IF(AND('Base-datos'!$B$715=\"\",'Base-datos'!$B$716=\"Sí\",'Base-datos'!$B$717=\"\"),IF('Instituciones-crédito'!K26=\"La actividad sí contribuye sustancialmente a la sostenibilidad\",SUM('Instituciones-crédito'!B26:H26),0),IF(AND('Base-datos'!$B$715=\"\",'Base-datos'!$B$716=\"\",'Base-datos'!$B$717=\"Sí\"),IF('Instituciones-crédito'!I26=\"La actividad sí contribuye sustancialmente a la sostenibilidad\",SUM('Instituciones-crédito'!B26:H26),0),IF(AND('Base-datos'!$B$715=\"\",'Base-datos'!$B$716=\"Sí\",'Base-datos'!$B$717=\"Sí\"),IF(AND('Instituciones-crédito'!K26=\"La actividad sí contribuye sustancialmente a la sostenibilidad\",'Instituciones-crédito'!I26=\"La actividad sí contribuye sustancialmente a la sostenibilidad\"),SUM('Instituciones-crédito'!B26:H26),0),IF(AND('Base-datos'!$B$715=\"Sí\",'Base-datos'!$B$716=\"\",'Base-datos'!$B$717=\"Sí\"),IF(AND('Instituciones-crédito'!J26=\"La actividad sí contribuye sustancialmente a la sostenibilidad\",'Instituciones-crédito'!I26=\"La actividad sí contribuye sustancialmente a la sostenibilidad\"),SUM('Instituciones-crédito'!B26:H26),0),\"Por definir\"))))))))","v":"Por definir"}]
[{"$f":"Agricultura!$C36","v":"Seleccione"},{"$f":"IF(Agricultura!$E36='Instituciones-crédito'!B$12,Agricultura!$B36,\"\")","v":""},{"$f":"IF(Agricultura!$E36='Instituciones-crédito'!C$12,Agricultura!$B36,\"\")","v":""},{"$f":"IF(Agricultura!$E36='Instituciones-crédito'!D$12,Agricultura!$B36,\"\")","v":""},{"$f":"IF(Agricultura!$E36='Instituciones-crédito'!E$12,Agricultura!$B36,\"\")","v":""},{"$f":"IF(Agricultura!$E36='Instituciones-crédito'!F$12,Agricultura!$B36,\"\")","v":""},{"$f":"IF(Agricultura!$E36='Instituciones-crédito'!G$12,Agricultura!$B36,\"\")","v":""},{"$f":"IF(Agricultura!$E36='Instituciones-crédito'!H$12,Agricultura!$B36,\"\")","v":""},{"$f":"_xlfn.XLOOKUP(A27,'Base-datos'!$B$457:$B$509,'Base-datos'!$F$457:$F$509)","v":{"$error":"#N/A"}},{"$f":"_xlfn.XLOOKUP(A27,'Base-datos'!$B$457:$B$509,'Base-datos'!$C$457:$C$509)","v":{"$error":"#N/A"}},{"$f":"_xlfn.XLOOKUP(A27,'Base-datos'!$B$457:$B$509,'Base-datos'!$D$457:$D$509)","v":{"$error":"#N/A"}},null,null,{"$f":"IF(OR($L$13=\"La actividad no cumple con el total de los criterios de No Daño Significativo\",$M$13=\"El sector no cumple con las salvaguardas mínimas\"),\"\",IF(AND('Base-datos'!$B$715=\"Sí\",'Base-datos'!$B$716=\"\",'Base-datos'!$B$717=\"\"),IF('Instituciones-crédito'!J27=\"La actividad sí contribuye sustancialmente a la sostenibilidad\",SUM('Instituciones-crédito'!B27:H27),0),IF(AND('Base-datos'!$B$715=\"Sí\",'Base-datos'!$B$716=\"Sí\",'Base-datos'!$B$717=\"\"),IF(AND('Instituciones-crédito'!J27=\"La actividad sí contribuye sustancialmente a la sostenibilidad\",'Instituciones-crédito'!K27=\"La actividad sí contribuye sustancialmente a la sostenibilidad\"),SUM('Instituciones-crédito'!B27:H27),0),IF(AND('Base-datos'!$B$715=\"Sí\",'Base-datos'!$B$716=\"Sí\",'Base-datos'!$B$717=\"Sí\"),IF(AND('Instituciones-crédito'!J27=\"La actividad sí contribuye sustancialmente a la sostenibilidad\",'Instituciones-crédito'!K27=\"La actividad sí contribuye sustancialmente a la sostenibilidad\",'Instituciones-crédito'!I27=\"La actividad sí contribuye sustancialmente a la sostenibilidad\"),SUM('Instituciones-crédito'!B27:H27),0),IF(AND('Base-datos'!$B$715=\"\",'Base-datos'!$B$716=\"Sí\",'Base-datos'!$B$717=\"\"),IF('Instituciones-crédito'!K27=\"La actividad sí contribuye sustancialmente a la sostenibilidad\",SUM('Instituciones-crédito'!B27:H27),0),IF(AND('Base-datos'!$B$715=\"\",'Base-datos'!$B$716=\"\",'Base-datos'!$B$717=\"Sí\"),IF('Instituciones-crédito'!I27=\"La actividad sí contribuye sustancialmente a la sostenibilidad\",SUM('Instituciones-crédito'!B27:H27),0),IF(AND('Base-datos'!$B$715=\"\",'Base-datos'!$B$716=\"Sí\",'Base-datos'!$B$717=\"Sí\"),IF(AND('Instituciones-crédito'!K27=\"La actividad sí contribuye sustancialmente a la sostenibilidad\",'Instituciones-crédito'!I27=\"La actividad sí contribuye sustancialmente a la sostenibilidad\"),SUM('Instituciones-crédito'!B27:H27),0),IF(AND('Base-datos'!$B$715=\"Sí\",'Base-datos'!$B$716=\"\",'Base-datos'!$B$717=\"Sí\"),IF(AND('Instituciones-crédito'!J27=\"La actividad sí contribuye sustancialmente a la sostenibilidad\",'Instituciones-crédito'!I27=\"La actividad sí contribuye sustancialmente a la sostenibilidad\"),SUM('Instituciones-crédito'!B27:H27),0),\"Por definir\"))))))))","v":"Por definir"}]
[{"$f":"Agricultura!$C38","v":"Seleccione"},{"$f":"IF(Agricultura!$E38='Instituciones-crédito'!B$12,Agricultura!$B38,\"\")","v":""},{"$f":"IF(Agricultura!$E38='Instituciones-crédito'!C$12,Agricultura!$B38,\"\")","v":""},{"$f":"IF(Agricultura!$E38='Instituciones-crédito'!D$12,Agricultura!$B38,\"\")","v":""},{"$f":"IF(Agricultura!$E38='Instituciones-crédito'!E$12,Agricultura!$B38,\"\")","v":""},{"$f":"IF(Agricultura!$E38='Instituciones-crédito'!F$12,Agricultura!$B38,\"\")","v":""},{"$f":"IF(Agricultura!$E38='Instituciones-crédito'!G$12,Agricultura!$B38,\"\")","v":""},{"$f":"IF(Agricultura!$E38='Instituciones-crédito'!H$12,Agricultura!$B38,\"\")","v":""},{"$f":"_xlfn.XLOOKUP(A28,'Base-datos'!$B$457:$B$509,'Base-datos'!$F$457:$F$509)","v":{"$error":"#N/A"}},{"$f":"_xlfn.XLOOKUP(A28,'Base-datos'!$B$457:$B$509,'Base-datos'!$C$457:$C$509)","v":{"$error":"#N/A"}},{"$f":"_xlfn.XLOOKUP(A28,'Base-datos'!$B$457:$B$509,'Base-datos'!$D$457:$D$509)","v":{"$error":"#N/A"}},null,null,{"$f":"IF(OR($L$13=\"La actividad no cumple con el total de los criterios de No Daño Significativo\",$M$13=\"El sector no cumple con las salvaguardas mínimas\"),\"\",IF(AND('Base-datos'!$B$715=\"Sí\",'Base-datos'!$B$716=\"\",'Base-datos'!$B$717=\"\"),IF('Instituciones-crédito'!J28=\"La actividad sí contribuye sustancialmente a la sostenibilidad\",SUM('Instituciones-crédito'!B28:H28),0),IF(AND('Base-datos'!$B$715=\"Sí\",'Base-datos'!$B$716=\"Sí\",'Base-datos'!$B$717=\"\"),IF(AND('Instituciones-crédito'!J28=\"La actividad sí contribuye sustancialmente a la sostenibilidad\",'Instituciones-crédito'!K28=\"La actividad sí contribuye sustancialmente a la sostenibilidad\"),SUM('Instituciones-crédito'!B28:H28),0),IF(AND('Base-datos'!$B$715=\"Sí\",'Base-datos'!$B$716=\"Sí\",'Base-datos'!$B$717=\"Sí\"),IF(AND('Instituciones-crédito'!J28=\"La actividad sí contribuye sustancialmente a la sostenibilidad\",'Instituciones-crédito'!K28=\"La actividad sí contribuye sustancialmente a la sostenibilidad\",'Instituciones-crédito'!I28=\"La actividad sí contribuye sustancialmente a la sostenibilidad\"),SUM('Instituciones-crédito'!B28:H28),0),IF(AND('Base-datos'!$B$715=\"\",'Base-datos'!$B$716=\"Sí\",'Base-datos'!$B$717=\"\"),IF('Instituciones-crédito'!K28=\"La actividad sí contribuye sustancialmente a la sostenibilidad\",SUM('Instituciones-crédito'!B28:H28),0),IF(AND('Base-datos'!$B$715=\"\",'Base-datos'!$B$716=\"\",'Base-datos'!$B$717=\"Sí\"),IF('Instituciones-crédito'!I28=\"La actividad sí contribuye sustancialmente a la sostenibilidad\",SUM('Instituciones-crédito'!B28:H28),0),IF(AND('Base-datos'!$B$715=\"\",'Base-datos'!$B$716=\"Sí\",'Base-datos'!$B$717=\"Sí\"),IF(AND('Instituciones-crédito'!K28=\"La actividad sí contribuye sustancialmente a la sostenibilidad\",'Instituciones-crédito'!I28=\"La actividad sí contribuye sustancialmente a la sostenibilidad\"),SUM('Instituciones-crédito'!B28:H28),0),IF(AND('Base-datos'!$B$715=\"Sí\",'Base-datos'!$B$716=\"\",'Base-datos'!$B$717=\"Sí\"),IF(AND('Instituciones-crédito'!J28=\"La actividad sí contribuye sustancialmente a la sostenibilidad\",'Instituciones-crédito'!I28=\"La actividad sí contribuye sustancialmente a la sostenibilidad\"),SUM('Instituciones-crédito'!B28:H28),0),\"Por definir\"))))))))","v":"Por definir"}]
[{"$f":"Agricultura!$C40","v":"Seleccione"},{"$f":"IF(Agricultura!$E40='Instituciones-crédito'!B$12,Agricultura!$B40,\"\")","v":""},{"$f":"IF(Agricultura!$E40='Instituciones-crédito'!C$12,Agricultura!$B40,\"\")","v":""},{"$f":"IF(Agricultura!$E40='Instituciones-crédito'!D$12,Agricultura!$B40,\"\")","v":""},{"$f":"IF(Agricultura!$E40='Instituciones-crédito'!E$12,Agricultura!$B40,\"\")","v":""},{"$f":"IF(Agricultura!$E40='Instituciones-crédito'!F$12,Agricultura!$B40,\"\")","v":""},{"$f":"IF(Agricultura!$E40='Instituciones-crédito'!G$12,Agricultura!$B40,\"\")","v":""},{"$f":"IF(Agricultura!$E40='Instituciones-crédito'!H$12,Agricultura!$B40,\"\")","v":""},{"$f":"_xlfn.XLOOKUP(A29,'Base-datos'!$B$457:$B$509,'Base-datos'!$F$457:$F$509)","v":{"$error":"#N/A"}},{"$f":"_xlfn.XLOOKUP(A29,'Base-datos'!$B$457:$B$509,'Base-datos'!$C$457:$C$509)","v":{"$error":"#N/A"}},{"$f":"_xlfn.XLOOKUP(A29,'Base-datos'!$B$457:$B$509,'Base-datos'!$D$457:$D$509)","v":{"$error":"#N/A"}},null,null,{"$f":"IF(OR($L$13=\"La actividad no cumple con el total de los criterios de No Daño Significativo\",$M$13=\"El sector no cumple con las salvaguardas mínimas\"),\"\",IF(AND('Base-datos'!$B$715=\"Sí\",'Base-datos'!$B$716=\"\",'Base-datos'!$B$717=\"\"),IF('Instituciones-crédito'!J29=\"La actividad sí contribuye sustancialmente a la sostenibilidad\",SUM('Instituciones-crédito'!B29:H29),0),IF(AND('Base-datos'!$B$715=\"Sí\",'Base-datos'!$B$716=\"Sí\",'Base-datos'!$B$717=\"\"),IF(AND('Instituciones-crédito'!J29=\"La actividad sí contribuye sustancialmente a la sostenibilidad\",'Instituciones-crédito'!K29=\"La actividad sí contribuye sustancialmente a la sostenibilidad\"),SUM('Instituciones-crédito'!B29:H29),0),IF(AND('Base-datos'!$B$715=\"Sí\",'Base-datos'!$B$716=\"Sí\",'Base-datos'!$B$717=\"Sí\"),IF(AND('Instituciones-crédito'!J29=\"La actividad sí contribuye sustancialmente a la sostenibilidad\",'Instituciones-crédito'!K29=\"La actividad sí contribuye sustancialmente a la sostenibilidad\",'Instituciones-crédito'!I29=\"La actividad sí contribuye sustancialmente a la sostenibilidad\"),SUM('Instituciones-crédito'!B29:H29),0),IF(AND('Base-datos'!$B$715=\"\",'Base-datos'!$B$716=\"Sí\",'Base-datos'!$B$717=\"\"),IF('Instituciones-crédito'!K29=\"La actividad sí contribuye sustancialmente a la sostenibilidad\",SUM('Instituciones-crédito'!B29:H29),0),IF(AND('Base-datos'!$B$715=\"\",'Base-datos'!$B$716=\"\",'Base-datos'!$B$717=\"Sí\"),IF('Instituciones-crédito'!I29=\"La actividad sí contribuye sustancialmente a la sostenibilidad\",SUM('Instituciones-crédito'!B29:H29),0),IF(AND('Base-datos'!$B$715=\"\",'Base-datos'!$B$716=\"Sí\",'Base-datos'!$B$717=\"Sí\"),IF(AND('Instituciones-crédito'!K29=\"La actividad sí contribuye sustancialmente a la sostenibilidad\",'Instituciones-crédito'!I29=\"La actividad sí contribuye sustancialmente a la sostenibilidad\"),SUM('Instituciones-crédito'!B29:H29),0),IF(AND('Base-datos'!$B$715=\"Sí\",'Base-datos'!$B$716=\"\",'Base-datos'!$B$717=\"Sí\"),IF(AND('Instituciones-crédito'!J29=\"La actividad sí contribuye sustancialmente a la sostenibilidad\",'Instituciones-crédito'!I29=\"La actividad sí contribuye sustancialmente a la sostenibilidad\"),SUM('Instituciones-crédito'!B29:H29),0),\"Por definir\"))))))))","v":"Por definir"}]
[{"$f":"Agricultura!$C42","v":"Seleccione"},{"$f":"IF(Agricultura!$E42='Instituciones-crédito'!B$12,Agricultura!$B42,\"\")","v":""},{"$f":"IF(Agricultura!$E42='Instituciones-crédito'!C$12,Agricultura!$B42,\"\")","v":""},{"$f":"IF(Agricultura!$E42='Instituciones-crédito'!D$12,Agricultura!$B42,\"\")","v":""},{"$f":"IF(Agricultura!$E42='Instituciones-crédito'!E$12,Agricultura!$B42,\"\")","v":""},{"$f":"IF(Agricultura!$E42='Instituciones-crédito'!F$12,Agricultura!$B42,\"\")","v":""},{"$f":"IF(Agricultura!$E42='Instituciones-crédito'!G$12,Agricultura!$B42,\"\")","v":""},{"$f":"IF(Agricultura!$E42='Instituciones-crédito'!H$12,Agricultura!$B42,\"\")","v":""},{"$f":"_xlfn.XLOOKUP(A30,'Base-datos'!$B$457:$B$509,'Base-datos'!$F$457:$F$509)","v":{"$error":"#N/A"}},{"$f":"_xlfn.XLOOKUP(A30,'Base-datos'!$B$457:$B$509,'Base-datos'!$C$457:$C$509)","v":{"$error":"#N/A"}},{"$f":"_xlfn.XLOOKUP(A30,'Base-datos'!$B$457:$B$509,'Base-datos'!$D$457:$D$509)","v":{"$error":"#N/A"}},null,null,{"$f":"IF(OR($L$13=\"La actividad no cumple con el total de los criterios de No Daño Significativo\",$M$13=\"El sector no cumple con las salvaguardas mínimas\"),\"\",IF(AND('Base-datos'!$B$715=\"Sí\",'Base-datos'!$B$716=\"\",'Base-datos'!$B$717=\"\"),IF('Instituciones-crédito'!J30=\"La actividad sí contribuye sustancialmente a la sostenibilidad\",SUM('Instituciones-crédito'!B30:H30),0),IF(AND('Base-datos'!$B$715=\"Sí\",'Base-datos'!$B$716=\"Sí\",'Base-datos'!$B$717=\"\"),IF(AND('Instituciones-crédito'!J30=\"La actividad sí contribuye sustancialmente a la sostenibilidad\",'Instituciones-crédito'!K30=\"La actividad sí contribuye sustancialmente a la sostenibilidad\"),SUM('Instituciones-crédito'!B30:H30),0),IF(AND('Base-datos'!$B$715=\"Sí\",'Base-datos'!$B$716=\"Sí\",'Base-datos'!$B$717=\"Sí\"),IF(AND('Instituciones-crédito'!J30=\"La actividad sí contribuye sustancialmente a la sostenibilidad\",'Instituciones-crédito'!K30=\"La actividad sí contribuye sustancialmente a la sostenibilidad\",'Instituciones-crédito'!I30=\"La actividad sí contribuye sustancialmente a la sostenibilidad\"),SUM('Instituciones-crédito'!B30:H30),0),IF(AND('Base-datos'!$B$715=\"\",'Base-datos'!$B$716=\"Sí\",'Base-datos'!$B$717=\"\"),IF('Instituciones-crédito'!K30=\"La actividad sí contribuye sustancialmente a la sostenibilidad\",SUM('Instituciones-crédito'!B30:H30),0),IF(AND('Base-datos'!$B$715=\"\",'Base-datos'!$B$716=\"\",'Base-datos'!$B$717=\"Sí\"),IF('Instituciones-crédito'!I30=\"La actividad sí contribuye sustancialmente a la sostenibilidad\",SUM('Instituciones-crédito'!B30:H30),0),IF(AND('Base-datos'!$B$715=\"\",'Base-datos'!$B$716=\"Sí\",'Base-datos'!$B$717=\"Sí\"),IF(AND('Instituciones-crédito'!K30=\"La actividad sí contribuye sustancialmente a la sostenibilidad\",'Instituciones-crédito'!I30=\"La actividad sí contribuye sustancialmente a la sostenibilidad\"),SUM('Instituciones-crédito'!B30:H30),0),IF(AND('Base-datos'!$B$715=\"Sí\",'Base-datos'!$B$716=\"\",'Base-datos'!$B$717=\"Sí\"),IF(AND('Instituciones-crédito'!J30=\"La actividad sí contribuye sustancialmente a la sostenibilidad\",'Instituciones-crédito'!I30=\"La actividad sí contribuye sustancialmente a la sostenibilidad\"),SUM('Instituciones-crédito'!B30:H30),0),\"Por definir\"))))))))","v":"Por definir"}]
[{"$f":"Agricultura!$C44","v":"Seleccione"},{"$f":"IF(Agricultura!$E44='Instituciones-crédito'!B$12,Agricultura!$B44,\"\")","v":""},{"$f":"IF(Agricultura!$E44='Instituciones-crédito'!C$12,Agricultura!$B44,\"\")","v":""},{"$f":"IF(Agricultura!$E44='Instituciones-crédito'!D$12,Agricultura!$B44,\"\")","v":""},{"$f":"IF(Agricultura!$E44='Instituciones-crédito'!E$12,Agricultura!$B44,\"\")","v":""},{"$f":"IF(Agricultura!$E44='Instituciones-crédito'!F$12,Agricultura!$B44,\"\")","v":""},{"$f":"IF(Agricultura!$E44='Instituciones-crédito'!G$12,Agricultura!$B44,\"\")","v":""},{"$f":"IF(Agricultura!$E44='Instituciones-crédito'!H$12,Agricultura!$B44,\"\")","v":""},{"$f":"_xlfn.XLOOKUP(A31,'Base-datos'!$B$457:$B$509,'Base-datos'!$F$457:$F$509)","v":{"$error":"#N/A"}},{"$f":"_xlfn.XLOOKUP(A31,'Base-datos'!$B$457:$B$509,'Base-datos'!$C$457:$C$509)","v":{"$error":"#N/A"}},{"$f":"_xlfn.XLOOKUP(A31,'Base-datos'!$B$457:$B$509,'Base-datos'!$D$457:$D$509)","v":{"$error":"#N/A"}},null,null,{"$f":"IF(OR($L$13=\"La actividad no cumple con el total de los criterios de No Daño Significativo\",$M$13=\"El sector no cumple con las salvaguardas mínimas\"),\"\",IF(AND('Base-datos'!$B$715=\"Sí\",'Base-datos'!$B$716=\"\",'Base-datos'!$B$717=\"\"),IF('Instituciones-crédito'!J31=\"La actividad sí contribuye sustancialmente a la sostenibilidad\",SUM('Instituciones-crédito'!B31:H31),0),IF(AND('Base-datos'!$B$715=\"Sí\",'Base-datos'!$B$716=\"Sí\",'Base-datos'!$B$717=\"\"),IF(AND('Instituciones-crédito'!J31=\"La actividad sí contribuye sustancialmente a la sostenibilidad\",'Instituciones-crédito'!K31=\"La actividad sí contribuye sustancialmente a la sostenibilidad\"),SUM('Instituciones-crédito'!B31:H31),0),IF(AND('Base-datos'!$B$715=\"Sí\",'Base-datos'!$B$716=\"Sí\",'Base-datos'!$B$717=\"Sí\"),IF(AND('Instituciones-crédito'!J31=\"La actividad sí contribuye sustancialmente a la sostenibilidad\",'Instituciones-crédito'!K31=\"La actividad sí contribuye sustancialmente a la sostenibilidad\",'Instituciones-crédito'!I31=\"La actividad sí contribuye sustancialmente a la sostenibilidad\"),SUM('Instituciones-crédito'!B31:H31),0),IF(AND('Base-datos'!$B$715=\"\",'Base-datos'!$B$716=\"Sí\",'Base-datos'!$B$717=\"\"),IF('Instituciones-crédito'!K31=\"La actividad sí contribuye sustancialmente a la sostenibilidad\",SUM('Instituciones-crédito'!B31:H31),0),IF(AND('Base-datos'!$B$715=\"\",'Base-datos'!$B$716=\"\",'Base-datos'!$B$717=\"Sí\"),IF('Instituciones-crédito'!I31=\"La actividad sí contribuye sustancialmente a la sostenibilidad\",SUM('Instituciones-crédito'!B31:H31),0),IF(AND('Base-datos'!$B$715=\"\",'Base-datos'!$B$716=\"Sí\",'Base-datos'!$B$717=\"Sí\"),IF(AND('Instituciones-crédito'!K31=\"La actividad sí contribuye sustancialmente a la sostenibilidad\",'Instituciones-crédito'!I31=\"La actividad sí contribuye sustancialmente a la sostenibilidad\"),SUM('Instituciones-crédito'!B31:H31),0),IF(AND('Base-datos'!$B$715=\"Sí\",'Base-datos'!$B$716=\"\",'Base-datos'!$B$717=\"Sí\"),IF(AND('Instituciones-crédito'!J31=\"La actividad sí contribuye sustancialmente a la sostenibilidad\",'Instituciones-crédito'!I31=\"La actividad sí contribuye sustancialmente a la sostenibilidad\"),SUM('Instituciones-crédito'!B31:H31),0),\"Por definir\"))))))))","v":"Por definir"}]
[{"$f":"Agricultura!$C46","v":"Seleccione"},{"$f":"IF(Agricultura!$E46='Instituciones-crédito'!B$12,Agricultura!$B46,\"\")","v":""},{"$f":"IF(Agricultura!$E46='Instituciones-crédito'!C$12,Agricultura!$B46,\"\")","v":""},{"$f":"IF(Agricultura!$E46='Instituciones-crédito'!D$12,Agricultura!$B46,\"\")","v":""},{"$f":"IF(Agricultura!$E46='Instituciones-crédito'!E$12,Agricultura!$B46,\"\")","v":""},{"$f":"IF(Agricultura!$E46='Instituciones-crédito'!F$12,Agricultura!$B46,\"\")","v":""},{"$f":"IF(Agricultura!$E46='Instituciones-crédito'!G$12,Agricultura!$B46,\"\")","v":""},{"$f":"IF(Agricultura!$E46='Instituciones-crédito'!H$12,Agricultura!$B46,\"\")","v":""},{"$f":"_xlfn.XLOOKUP(A32,'Base-datos'!$B$457:$B$509,'Base-datos'!$F$457:$F$509)","v":{"$error":"#N/A"}},{"$f":"_xlfn.XLOOKUP(A32,'Base-datos'!$B$457:$B$509,'Base-datos'!$C$457:$C$509)","v":{"$error":"#N/A"}},{"$f":"_xlfn.XLOOKUP(A32,'Base-datos'!$B$457:$B$509,'Base-datos'!$D$457:$D$509)","v":{"$error":"#N/A"}},null,null,{"$f":"IF(OR($L$13=\"La actividad no cumple con el total de los criterios de No Daño Significativo\",$M$13=\"El sector no cumple con las salvaguardas mínimas\"),\"\",IF(AND('Base-datos'!$B$715=\"Sí\",'Base-datos'!$B$716=\"\",'Base-datos'!$B$717=\"\"),IF('Instituciones-crédito'!J32=\"La actividad sí contribuye sustancialmente a la sostenibilidad\",SUM('Instituciones-crédito'!B32:H32),0),IF(AND('Base-datos'!$B$715=\"Sí\",'Base-datos'!$B$716=\"Sí\",'Base-datos'!$B$717=\"\"),IF(AND('Instituciones-crédito'!J32=\"La actividad sí contribuye sustancialmente a la sostenibilidad\",'Instituciones-crédito'!K32=\"La actividad sí contribuye sustancialmente a la sostenibilidad\"),SUM('Instituciones-crédito'!B32:H32),0),IF(AND('Base-datos'!$B$715=\"Sí\",'Base-datos'!$B$716=\"Sí\",'Base-datos'!$B$717=\"Sí\"),IF(AND('Instituciones-crédito'!J32=\"La actividad sí contribuye sustancialmente a la sostenibilidad\",'Instituciones-crédito'!K32=\"La actividad sí contribuye sustancialmente a la sostenibilidad\",'Instituciones-crédito'!I32=\"La actividad sí contribuye sustancialmente a la sostenibilidad\"),SUM('Instituciones-crédito'!B32:H32),0),IF(AND('Base-datos'!$B$715=\"\",'Base-datos'!$B$716=\"Sí\",'Base-datos'!$B$717=\"\"),IF('Instituciones-crédito'!K32=\"La actividad sí contribuye sustancialmente a la sostenibilidad\",SUM('Instituciones-crédito'!B32:H32),0),IF(AND('Base-datos'!$B$715=\"\",'Base-datos'!$B$716=\"\",'Base-datos'!$B$717=\"Sí\"),IF('Instituciones-crédito'!I32=\"La actividad sí contribuye sustancialmente a la sostenibilidad\",SUM('Instituciones-crédito'!B32:H32),0),IF(AND('Base-datos'!$B$715=\"\",'Base-datos'!$B$716=\"Sí\",'Base-datos'!$B$717=\"Sí\"),IF(AND('Instituciones-crédito'!K32=\"La actividad sí contribuye sustancialmente a la sostenibilidad\",'Instituciones-crédito'!I32=\"La actividad sí contribuye sustancialmente a la sostenibilidad\"),SUM('Instituciones-crédito'!B32:H32),0),IF(AND('Base-datos'!$B$715=\"Sí\",'Base-datos'!$B$716=\"\",'Base-datos'!$B$717=\"Sí\"),IF(AND('Instituciones-crédito'!J32=\"La actividad sí contribuye sustancialmente a la sostenibilidad\",'Instituciones-crédito'!I32=\"La actividad sí contribuye sustancialmente a la sostenibilidad\"),SUM('Instituciones-crédito'!B32:H32),0),\"Por definir\"))))))))","v":"Por definir"}]
[{"$f":"Agricultura!$C48","v":"Seleccione"},{"$f":"IF(Agricultura!$E48='Instituciones-crédito'!B$12,Agricultura!$B48,\"\")","v":""},{"$f":"IF(Agricultura!$E48='Instituciones-crédito'!C$12,Agricultura!$B48,\"\")","v":""},{"$f":"IF(Agricultura!$E48='Instituciones-crédito'!D$12,Agricultura!$B48,\"\")","v":""},{"$f":"IF(Agricultura!$E48='Instituciones-crédito'!E$12,Agricultura!$B48,\"\")","v":""},{"$f":"IF(Agricultura!$E48='Instituciones-crédito'!F$12,Agricultura!$B48,\"\")","v":""},{"$f":"IF(Agricultura!$E48='Instituciones-crédito'!G$12,Agricultura!$B48,\"\")","v":""},{"$f":"IF(Agricultura!$E48='Instituciones-crédito'!H$12,Agricultura!$B48,\"\")","v":""},{"$f":"_xlfn.XLOOKUP(A33,'Base-datos'!$B$457:$B$509,'Base-datos'!$F$457:$F$509)","v":{"$error":"#N/A"}},{"$f":"_xlfn.XLOOKUP(A33,'Base-datos'!$B$457:$B$509,'Base-datos'!$C$457:$C$509)","v":{"$error":"#N/A"}},{"$f":"_xlfn.XLOOKUP(A33,'Base-datos'!$B$457:$B$509,'Base-datos'!$D$457:$D$509)","v":{"$error":"#N/A"}},null,null,{"$f":"IF(OR($L$13=\"La actividad no cumple con el total de los criterios de No Daño Significativo\",$M$13=\"El sector no cumple con las salvaguardas mínimas\"),\"\",IF(AND('Base-datos'!$B$715=\"Sí\",'Base-datos'!$B$716=\"\",'Base-datos'!$B$717=\"\"),IF('Instituciones-crédito'!J33=\"La actividad sí contribuye sustancialmente a la sostenibilidad\",SUM('Instituciones-crédito'!B33:H33),0),IF(AND('Base-datos'!$B$715=\"Sí\",'Base-datos'!$B$716=\"Sí\",'Base-datos'!$B$717=\"\"),IF(AND('Instituciones-crédito'!J33=\"La actividad sí contribuye sustancialmente a la sostenibilidad\",'Instituciones-crédito'!K33=\"La actividad sí contribuye sustancialmente a la sostenibilidad\"),SUM('Instituciones-crédito'!B33:H33),0),IF(AND('Base-datos'!$B$715=\"Sí\",'Base-datos'!$B$716=\"Sí\",'Base-datos'!$B$717=\"Sí\"),IF(AND('Instituciones-crédito'!J33=\"La actividad sí contribuye sustancialmente a la sostenibilidad\",'Instituciones-crédito'!K33=\"La actividad sí contribuye sustancialmente a la sostenibilidad\",'Instituciones-crédito'!I33=\"La actividad sí contribuye sustancialmente a la sostenibilidad\"),SUM('Instituciones-crédito'!B33:H33),0),IF(AND('Base-datos'!$B$715=\"\",'Base-datos'!$B$716=\"Sí\",'Base-datos'!$B$717=\"\"),IF('Instituciones-crédito'!K33=\"La actividad sí contribuye sustancialmente a la sostenibilidad\",SUM('Instituciones-crédito'!B33:H33),0),IF(AND('Base-datos'!$B$715=\"\",'Base-datos'!$B$716=\"\",'Base-datos'!$B$717=\"Sí\"),IF('Instituciones-crédito'!I33=\"La actividad sí contribuye sustancialmente a la sostenibilidad\",SUM('Instituciones-crédito'!B33:H33),0),IF(AND('Base-datos'!$B$715=\"\",'Base-datos'!$B$716=\"Sí\",'Base-datos'!$B$717=\"Sí\"),IF(AND('Instituciones-crédito'!K33=\"La actividad sí contribuye sustancialmente a la sostenibilidad\",'Instituciones-crédito'!I33=\"La actividad sí contribuye sustancialmente a la sostenibilidad\"),SUM('Instituciones-crédito'!B33:H33),0),IF(AND('Base-datos'!$B$715=\"Sí\",'Base-datos'!$B$716=\"\",'Base-datos'!$B$717=\"Sí\"),IF(AND('Instituciones-crédito'!J33=\"La actividad sí contribuye sustancialmente a la sostenibilidad\",'Instituciones-crédito'!I33=\"La actividad sí contribuye sustancialmente a la sostenibilidad\"),SUM('Instituciones-crédito'!B33:H33),0),\"Por definir\"))))))))","v":"Por definir"}]
["Forestal",null,null,null,null,null,null,null,null,null,null,null,null,{"$f":"SUM(IF(FREQUENCY(MATCH(A35:A54, A35:A54, 0), MATCH(A35:A54, A35:A54, 0)) > 0, IF(NOT(ISERROR(N35:N54)), N35:N54, 0)))","v":0}]
[{"$f":"Forestal!$C10","v":"Seleccione"},{"$f":"IF(Forestal!$E10='Instituciones-crédito'!B$12,Forestal!$B10,\"\")","v":""},{"$f":"IF(Forestal!$E10='Instituciones-crédito'!C$12,Forestal!$B10,\"\")","v":""},{"$f":"IF(Forestal!$E10='Instituciones-crédito'!D$12,Forestal!$B10,\"\")","v":""},{"$f":"IF(Forestal!$E10='Instituciones-crédito'!E$12,Forestal!$B10,\"\")","v":""},{"$f":"IF(Forestal!$E10='Instituciones-crédito'!F$12,Forestal!$B10,\"\")","v":""},{"$f":"IF(Forestal!$E10='Instituciones-crédito'!G$12,Forestal!$B10,\"\")","v":""},{"$f":"IF(Forestal!$E10='Instituciones-crédito'!H$12,Forestal!$B10,\"\")","v":""},{"$f":"_xlfn.XLOOKUP(A35,'Base-datos'!$B$517:$B$520,'Base-datos'!$F$517:$F$520)","v":{"$error":"#N/A"}},{"$f":"_xlfn.XLOOKUP(A35,'Base-datos'!$B$517:$B$520,'Base-datos'!$C$517:$C$520)","v":{"$error":"#N/A"}},{"$f":"_xlfn.XLOOKUP(A35,'Base-datos'!$B$517:$B$520,'Base-datos'!$D$517:$D$520)","v":{"$error":"#N/A"}},{"$f":"IF(COUNTIF('Forestal-NDS'!I7:I48,\"No\")>0,\"La actividad no cumple con el total de los criterios de NDS\",\"La actividad cumple con los criterios de No Daño Significativo\")","v":"La actividad cumple con los criterios de No Daño Significativo"},{"$f":"IF(OR('Salvaguardas mínimas'!$G$10=\"Seleccione\",'Salvaguardas mínimas'!$G$13=\"Seleccione\",'Salvaguardas mínimas'!$G$16=\"Seleccione\",'Salvaguardas mínimas'!$G$7=\"Seleccione\"),\"No se han respondido todas las preguntas\",IF(OR('Salvaguardas mínimas'!$G$10=\"No\",'Salvaguardas mínimas'!$G$13=\"No\",'Salvaguardas mínimas'!$G$16=\"No\",'Salvaguardas mínimas'!$G$7=\"No\"),\"El sector no cumple con las salvaguardas mínimas\",\"La actividad sí cumple con las salvaguardas mínimas\"))","v":"No se han respondido todas las preguntas"},{"$f":"IF(OR($L$35=\"La actividad no cumple con el total de los criterios de No Daño Significativo\",$M$35=\"El sector no cumple con las salvaguardas mínimas\"),\"\",IF(AND('Base-datos'!$B$720=\"Sí\",'Base-datos'!$B$721=\"\",'Base-datos'!$B$722=\"\"),IF('Instituciones-crédito'!J35=\"La actividad sí contribuye sustancialmente a la sostenibilidad\",SUM('Instituciones-crédito'!B35:H35),0),IF(AND('Base-datos'!$B$720=\"Sí\",'Base-datos'!$B$721=\"Sí\",'Base-datos'!$B$722=\"\"),IF(AND('Instituciones-crédito'!J35=\"La actividad sí contribuye sustancialmente a la sostenibilidad\",'Instituciones-crédito'!K35=\"La actividad sí contribuye sustancialmente a la sostenibilidad\"),SUM('Instituciones-crédito'!B35:H35),0),IF(AND('Base-datos'!$B$720=\"Sí\",'Base-datos'!$B$721=\"Sí\",'Base-datos'!$B$722=\"Sí\"),IF(AND('Instituciones-crédito'!J35=\"La actividad sí contribuye sustancialmente a la sostenibilidad\",'Instituciones-crédito'!K35=\"La actividad sí contribuye sustancialmente a la sostenibilidad\",'Instituciones-crédito'!I35=\"La actividad sí contribuye sustancialmente a la sostenibilidad\"),SUM('Instituciones-crédito'!B35:H35),0),IF(AND('Base-datos'!$B$720=\"\",'Base-datos'!$B$721=\"Sí\",'Base-datos'!$B$722=\"\"),IF('Instituciones-crédito'!K35=\"La actividad sí contribuye sustancialmente a la sostenibilidad\",SUM('Instituciones-crédito'!B35:H35),0),IF(AND('Base-datos'!$B$720=\"\",'Base-datos'!$B$721=\"\",'Base-datos'!$B$722=\"Sí\"),IF('Instituciones-crédito'!I35=\"La actividad sí contribuye sustancialmente a la sostenibilidad\",SUM('Instituciones-crédito'!B35:H35),0),IF(AND('Base-datos'!$B$720=\"\",'Base-datos'!$B$721=\"Sí\",'Base-datos'!$B$722=\"Sí\"),IF(AND('Instituciones-crédito'!K35=\"La actividad sí contribuye sustancialmente a la sostenibilidad\",'Instituciones-crédito'!I35=\"La actividad sí contribuye sustancialmente a la sostenibilidad\"),SUM('Instituciones-crédito'!B35:H35),0),IF(AND('Base-datos'!$B$720=\"Sí\",'Base-datos'!$B$721=\"\",'Base-datos'!$B$722=\"Sí\"),IF(AND('Instituciones-crédito'!J35=\"La actividad sí contribuye sustancialmente a la sostenibilidad\",'Instituciones-crédito'!I35=\"La actividad sí contribuye sustancialmente a la sostenibilidad\"),SUM('Instituciones-crédito'!B35:H35),0),\"Por definir\"))))))))","v":"Por definir"}]
[{"$f":"Forestal!$C12","v":"Seleccione"},{"$f":"IF(Forestal!$E12='Instituciones-crédito'!B$12,Forestal!$B12,\"\")","v":""},{"$f":"IF(Forestal!$E12='Instituciones-crédito'!C$12,Forestal!$B12,\"\")","v":""},{"$f":"IF(Forestal!$E12='Instituciones-crédito'!D$12,Forestal!$B12,\"\")","v":""},{"$f":"IF(Forestal!$E12='Instituciones-crédito'!E$12,Forestal!$B12,\"\")","v":""},{"$f":"IF(Forestal!$E12='Instituciones-crédito'!F$12,Forestal!$B12,\"\")","v":""},{"$f":"IF(Forestal!$E12='Instituciones-crédito'!G$12,Forestal!$B12,\"\")","v":""},{"$f":"IF(Forestal!$E12='Instituciones-crédito'!H$12,Forestal!$B12,\"\")","v":""},{"$f":"_xlfn.XLOOKUP(A36,'Base-datos'!$B$517:$B$520,'Base-datos'!$F$517:$F$520)","v":{"$error":"#N/A"}},{"$f":"_xlfn.XLOOKUP(A36,'Base-datos'!$B$517:$B$520,'Base-datos'!$C$517:$C$520)","v":{"$error":"#N/A"}},{"$f":"_xlfn.XLOOKUP(A36,'Base-datos'!$B$517:$B$520,'Base-datos'!$D$517:$D$520)","v":{"$error":"#N/A"}},null,null,{"$f":"IF(OR($L$35=\"La actividad no cumple con el total de los criterios de No Daño Significativo\",$M$35=\"El sector no cumple con las salvaguardas mínimas\"),\"\",IF(AND('Base-datos'!$B$720=\"Sí\",'Base-datos'!$B$721=\"\",'Base-datos'!$B$722=\"\"),IF('Instituciones-crédito'!J36=\"La actividad sí contribuye sustancialmente a la sostenibilidad\",SUM('Instituciones-crédito'!B36:H36),0),IF(AND('Base-datos'!$B$720=\"Sí\",'Base-datos'!$B$721=\"Sí\",'Base-datos'!$B$722=\"\"),IF(AND('Instituciones-crédito'!J36=\"La actividad sí contribuye sustancialmente a la sostenibilidad\",'Instituciones-crédito'!K36=\"La actividad sí contribuye sustancialmente a la sostenibilidad\"),SUM('Instituciones-crédito'!B36:H36),0),IF(AND('Base-datos'!$B$720=\"Sí\",'Base-datos'!$B$721=\"Sí\",'Base-datos'!$B$722=\"Sí\"),IF(AND('Instituciones-crédito'!J36=\"La actividad sí contribuye sustancialmente a la sostenibilidad\",'Instituciones-crédito'!K36=\"La actividad sí contribuye sustancialmente a la sostenibilidad\",'Instituciones-crédito'!I36=\"La actividad sí contribuye sustancialmente a la sostenibilidad\"),SUM('Instituciones-crédito'!B36:H36),0),IF(AND('Base-datos'!$B$720=\"\",'Base-datos'!$B$721=\"Sí\",'Base-datos'!$B$722=\"\"),IF('Instituciones-crédito'!K36=\"La actividad sí contribuye sustancialmente a la sostenibilidad\",SUM('Instituciones-crédito'!B36:H36),0),IF(AND('Base-datos'!$B$720=\"\",'Base-datos'!$B$721=\"\",'Base-datos'!$B$722=\"Sí\"),IF('Instituciones-crédito'!I36=\"La actividad sí contribuye sustancialmente a la sostenibilidad\",SUM('Instituciones-crédito'!B36:H36),0),IF(AND('Base-datos'!$B$720=\"\",'Base-datos'!$B$721=\"Sí\",'Base-datos'!$B$722=\"Sí\"),IF(AND('Instituciones-crédito'!K36=\"La actividad sí contribuye sustancialmente a la sostenibilidad\",'Instituciones-crédito'!I36=\"La actividad sí contribuye sustancialmente a la sostenibilidad\"),SUM('Instituciones-crédito'!B36:H36),0),IF(AND('Base-datos'!$B$720=\"Sí\",'Base-datos'!$B$721=\"\",'Base-datos'!$B$722=\"Sí\"),IF(AND('Instituciones-crédito'!J36=\"La actividad sí contribuye sustancialmente a la sostenibilidad\",'Instituciones-crédito'!I36=\"La actividad sí contribuye sustancialmente a la sostenibilidad\"),SUM('Instituciones-crédito'!B36:H36),0),\"Por definir\"))))))))","v":"Por definir"}]
[{"$f":"Forestal!$C14","v":"Seleccione"},{"$f":"IF(Forestal!$E14='Instituciones-crédito'!B$12,Forestal!$B14,\"\")","v":""},{"$f":"IF(Forestal!$E14='Instituciones-crédito'!C$12,Forestal!$B14,\"\")","v":""},{"$f":"IF(Forestal!$E14='Instituciones-crédito'!D$12,Forestal!$B14,\"\")","v":""},{"$f":"IF(Forestal!$E14='Instituciones-crédito'!E$12,Forestal!$B14,\"\")","v":""},{"$f":"IF(Forestal!$E14='Instituciones-crédito'!F$12,Forestal!$B14,\"\")","v":""},{"$f":"IF(Forestal!$E14='Instituciones-crédito'!G$12,Forestal!$B14,\"\")","v":""},{"$f":"IF(Forestal!$E14='Instituciones-crédito'!H$12,Forestal!$B14,\"\")","v":""},{"$f":"_xlfn.XLOOKUP(A37,'Base-datos'!$B$517:$B$520,'Base-datos'!$F$517:$F$520)","v":{"$error":"#N/A"}},{"$f":"_xlfn.XLOOKUP(A37,'Base-datos'!$B$517:$B$520,'Base-datos'!$C$517:$C$520)","v":{"$error":"#N/A"}},{"$f":"_xlfn.XLOOKUP(A37,'Base-datos'!$B$517:$B$520,'Base-datos'!$D$517:$D$520)","v":{"$error":"#N/A"}},null,null,{"$f":"IF(OR($L$35=\"La actividad no cumple con el total de los criterios de No Daño Significativo\",$M$35=\"El sector no cumple con las salvaguardas mínimas\"),\"\",IF(AND('Base-datos'!$B$720=\"Sí\",'Base-datos'!$B$721=\"\",'Base-datos'!$B$722=\"\"),IF('Instituciones-crédito'!J37=\"La actividad sí contribuye sustancialmente a la sostenibilidad\",SUM('Instituciones-crédito'!B37:H37),0),IF(AND('Base-datos'!$B$720=\"Sí\",'Base-datos'!$B$721=\"Sí\",'Base-datos'!$B$722=\"\"),IF(AND('Instituciones-crédito'!J37=\"La actividad sí contribuye sustancialmente a la sostenibilidad\",'Instituciones-crédito'!K37=\"La actividad sí contribuye sustancialmente a la sostenibilidad\"),SUM('Instituciones-crédito'!B37:H37),0),IF(AND('Base-datos'!$B$720=\"Sí\",'Base-datos'!$B$721=\"Sí\",'Base-datos'!$B$722=\"Sí\"),IF(AND('Instituciones-crédito'!J37=\"La actividad sí contribuye sustancialmente a la sostenibilidad\",'Instituciones-crédito'!K37=\"La actividad sí contribuye sustancialmente a la sostenibilidad\",'Instituciones-crédito'!I37=\"La actividad sí contribuye sustancialmente a la sostenibilidad\"),SUM('Instituciones-crédito'!B37:H37),0),IF(AND('Base-datos'!$B$720=\"\",'Base-datos'!$B$721=\"Sí\",'Base-datos'!$B$722=\"\"),IF('Instituciones-crédito'!K37=\"La actividad sí contribuye sustancialmente a la sostenibilidad\",SUM('Instituciones-crédito'!B37:H37),0),IF(AND('Base-datos'!$B$720=\"\",'Base-datos'!$B$721=\"\",'Base-datos'!$B$722=\"Sí\"),IF('Instituciones-crédito'!I37=\"La actividad sí contribuye sustancialmente a la sostenibilidad\",SUM('Instituciones-crédito'!B37:H37),0),IF(AND('Base-datos'!$B$720=\"\",'Base-datos'!$B$721=\"Sí\",'Base-datos'!$B$722=\"Sí\"),IF(AND('Instituciones-crédito'!K37=\"La actividad sí contribuye sustancialmente a la sostenibilidad\",'Instituciones-crédito'!I37=\"La actividad sí contribuye sustancialmente a la sostenibilidad\"),SUM('Instituciones-crédito'!B37:H37),0),IF(AND('Base-datos'!$B$720=\"Sí\",'Base-datos'!$B$721=\"\",'Base-datos'!$B$722=\"Sí\"),IF(AND('Instituciones-crédito'!J37=\"La actividad sí contribuye sustancialmente a la sostenibilidad\",'Instituciones-crédito'!I37=\"La actividad sí contribuye sustancialmente a la sostenibilidad\"),SUM('Instituciones-crédito'!B37:H37),0),\"Por definir\"))))))))","v":"Por definir"}]
[{"$f":"Forestal!$C16","v":"Seleccione"},{"$f":"IF(Forestal!$E16='Instituciones-crédito'!B$12,Forestal!$B16,\"\")","v":""},{"$f":"IF(Forestal!$E16='Instituciones-crédito'!C$12,Forestal!$B16,\"\")","v":""},{"$f":"IF(Forestal!$E16='Instituciones-crédito'!D$12,Forestal!$B16,\"\")","v":""},{"$f":"IF(Forestal!$E16='Instituciones-crédito'!E$12,Forestal!$B16,\"\")","v":""},{"$f":"IF(Forestal!$E16='Instituciones-crédito'!F$12,Forestal!$B16,\"\")","v":""},{"$f":"IF(Forestal!$E16='Instituciones-crédito'!G$12,Forestal!$B16,\"\")","v":""},{"$f":"IF(Forestal!$E16='Instituciones-crédito'!H$12,Forestal!$B16,\"\")","v":""},{"$f":"_xlfn.XLOOKUP(A38,'Base-datos'!$B$517:$B$520,'Base-datos'!$F$517:$F$520)","v":{"$error":"#N/A"}},{"$f":"_xlfn.XLOOKUP(A38,'Base-datos'!$B$517:$B$520,'Base-datos'!$C$517:$C$520)","v":{"$error":"#N/A"}},{"$f":"_xlfn.XLOOKUP(A38,'Base-datos'!$B$517:$B$520,'Base-datos'!$D$517:$D$520)","v":{"$error":"#N/A"}},null,null,{"$f":"IF(OR($L$35=\"La actividad no cumple con el total de los criterios de No Daño Significativo\",$M$35=\"El sector no cumple con las salvaguardas mínimas\"),\"\",IF(AND('Base-datos'!$B$720=\"Sí\",'Base-datos'!$B$721=\"\",'Base-datos'!$B$722=\"\"),IF('Instituciones-crédito'!J38=\"La actividad sí contribuye sustancialmente a la sostenibilidad\",SUM('Instituciones-crédito'!B38:H38),0),IF(AND('Base-datos'!$B$720=\"Sí\",'Base-datos'!$B$721=\"Sí\",'Base-datos'!$B$722=\"\"),IF(AND('Instituciones-crédito'!J38=\"La actividad sí contribuye sustancialmente a la sostenibilidad\",'Instituciones-crédito'!K38=\"La actividad sí contribuye sustancialmente a la sostenibilidad\"),SUM('Instituciones-crédito'!B38:H38),0),IF(AND('Base-datos'!$B$720=\"Sí\",'Base-datos'!$B$721=\"Sí\",'Base-datos'!$B$722=\"Sí\"),IF(AND('Instituciones-crédito'!J38=\"La actividad sí contribuye sustancialmente a la sostenibilidad\",'Instituciones-crédito'!K38=\"La actividad sí contribuye sustancialmente a la sostenibilidad\",'Instituciones-crédito'!I38=\"La actividad sí contribuye sustancialmente a la sostenibilidad\"),SUM('Instituciones-crédito'!B38:H38),0),IF(AND('Base-datos'!$B$720=\"\",'Base-datos'!$B$721=\"Sí\",'Base-datos'!$B$722=\"\"),IF('Instituciones-crédito'!K38=\"La actividad sí contribuye sustancialmente a la sostenibilidad\",SUM('Instituciones-crédito'!B38:H38),0),IF(AND('Base-datos'!$B$720=\"\",'Base-datos'!$B$721=\"\",'Base-datos'!$B$722=\"Sí\"),IF('Instituciones-crédito'!I38=\"La actividad sí contribuye sustancialmente a la sostenibilidad\",SUM('Instituciones-crédito'!B38:H38),0),IF(AND('Base-datos'!$B$720=\"\",'Base-datos'!$B$721=\"Sí\",'Base-datos'!$B$722=\"Sí\"),IF(AND('Instituciones-crédito'!K38=\"La actividad sí contribuye sustancialmente a la sostenibilidad\",'Instituciones-crédito'!I38=\"La actividad sí contribuye sustancialmente a la sostenibilidad\"),SUM('Instituciones-crédito'!B38:H38),0),IF(AND('Base-datos'!$B$720=\"Sí\",'Base-datos'!$B$721=\"\",'Base-datos'!$B$722=\"Sí\"),IF(AND('Instituciones-crédito'!J38=\"La actividad sí contribuye sustancialmente a la sostenibilidad\",'Instituciones-crédito'!I38=\"La actividad sí contribuye sustancialmente a la sostenibilidad\"),SUM('Instituciones-crédito'!B38:H38),0),\"Por definir\"))))))))","v":"Por definir"}]
[{"$f":"Forestal!$C18","v":"Seleccione"},{"$f":"IF(Forestal!$E18='Instituciones-crédito'!B$12,Forestal!$B18,\"\")","v":""},{"$f":"IF(Forestal!$E18='Instituciones-crédito'!C$12,Forestal!$B18,\"\")","v":""},{"$f":"IF(Forestal!$E18='Instituciones-crédito'!D$12,Forestal!$B18,\"\")","v":""},{"$f":"IF(Forestal!$E18='Instituciones-crédito'!E$12,Forestal!$B18,\"\")","v":""},{"$f":"IF(Forestal!$E18='Instituciones-crédito'!F$12,Forestal!$B18,\"\")","v":""},{"$f":"IF(Forestal!$E18='Instituciones-crédito'!G$12,Forestal!$B18,\"\")","v":""},{"$f":"IF(Forestal!$E18='Instituciones-crédito'!H$12,Forestal!$B18,\"\")","v":""},{"$f":"_xlfn.XLOOKUP(A39,'Base-datos'!$B$517:$B$520,'Base-datos'!$F$517:$F$520)","v":{"$error":"#N/A"}},{"$f":"_xlfn.XLOOKUP(A39,'Base-datos'!$B$517:$B$520,'Base-datos'!$C$517:$C$520)","v":{"$error":"#N/A"}},{"$f":"_xlfn.XLOOKUP(A39,'Base-datos'!$B$517:$B$520,'Base-datos'!$D$517:$D$520)","v":{"$error":"#N/A"}},null,null,{"$f":"IF(OR($L$35=\"La actividad no cumple con el total de los criterios de No Daño Significativo\",$M$35=\"El sector no cumple con las salvaguardas mínimas\"),\"\",IF(AND('Base-datos'!$B$720=\"Sí\",'Base-datos'!$B$721=\"\",'Base-datos'!$B$722=\"\"),IF('Instituciones-crédito'!J39=\"La actividad sí contribuye sustancialmente a la sostenibilidad\",SUM('Instituciones-crédito'!B39:H39),0),IF(AND('Base-datos'!$B$720=\"Sí\",'Base-datos'!$B$721=\"Sí\",'Base-datos'!$B$722=\"\"),IF(AND('Instituciones-crédito'!J39=\"La actividad sí contribuye sustancialmente a la sostenibilidad\",'Instituciones-crédito'!K39=\"La actividad sí contribuye sustancialmente a la sostenibilidad\"),SUM('Instituciones-crédito'!B39:H39),0),IF(AND('Base-datos'!$B$720=\"Sí\",'Base-datos'!$B$721=\"Sí\",'Base-datos'!$B$722=\"Sí\"),IF(AND('Instituciones-crédito'!J39=\"La actividad sí contribuye sustancialmente a la sostenibilidad\",'Instituciones-crédito'!K39=\"La actividad sí contribuye sustancialmente a la sostenibilidad\",'Instituciones-crédito'!I39=\"La actividad sí contribuye sustancialmente a la sostenibilidad\"),SUM('Instituciones-crédito'!B39:H39),0),IF(AND('Base-datos'!$B$720=\"\",'Base-datos'!$B$721=\"Sí\",'Base-datos'!$B$722=\"\"),IF('Instituciones-crédito'!K39=\"La actividad sí contribuye sustancialmente a la sostenibilidad\",SUM('Instituciones-crédito'!B39:H39),0),IF(AND('Base-datos'!$B$720=\"\",'Base-datos'!$B$721=\"\",'Base-datos'!$B$722=\"Sí\"),IF('Instituciones-crédito'!I39=\"La actividad sí contribuye sustancialmente a la sostenibilidad\",SUM('Instituciones-crédito'!B39:H39),0),IF(AND('Base-datos'!$B$720=\"\",'Base-datos'!$B$721=\"Sí\",'Base-datos'!$B$722=\"Sí\"),IF(AND('Instituciones-crédito'!K39=\"La actividad sí contribuye sustancialmente a la sostenibilidad\",'Instituciones-crédito'!I39=\"La actividad sí contribuye sustancialmente a la sostenibilidad\"),SUM('Instituciones-crédito'!B39:H39),0),IF(AND('Base-datos'!$B$720=\"Sí\",'Base-datos'!$B$721=\"\",'Base-datos'!$B$722=\"Sí\"),IF(AND('Instituciones-crédito'!J39=\"La actividad sí contribuye sustancialmente a la sostenibilidad\",'Instituciones-crédito'!I39=\"La actividad sí contribuye sustancialmente a la sostenibilidad\"),SUM('Instituciones-crédito'!B39:H39),0),\"Por definir\"))))))))","v":"Por definir"}]
[{"$f":"Forestal!$C20","v":"Seleccione"},{"$f":"IF(Forestal!$E20='Instituciones-crédito'!B$12,Forestal!$B20,\"\")","v":""},{"$f":"IF(Forestal!$E20='Instituciones-crédito'!C$12,Forestal!$B20,\"\")","v":""},{"$f":"IF(Forestal!$E20='Instituciones-crédito'!D$12,Forestal!$B20,\"\")","v":""},{"$f":"IF(Forestal!$E20='Instituciones-crédito'!E$12,Forestal!$B20,\"\")","v":""},{"$f":"IF(Forestal!$E20='Instituciones-crédito'!F$12,Forestal!$B20,\"\")","v":""},{"$f":"IF(Forestal!$E20='Instituciones-crédito'!G$12,Forestal!$B20,\"\")","v":""},{"$f":"IF(Forestal!$E20='Instituciones-crédito'!H$12,Forestal!$B20,\"\")","v":""},{"$f":"_xlfn.XLOOKUP(A40,'Base-datos'!$B$517:$B$520,'Base-datos'!$F$517:$F$520)","v":{"$error":"#N/A"}},{"$f":"_xlfn.XLOOKUP(A40,'Base-datos'!$B$517:$B$520,'Base-datos'!$C$517:$C$520)","v":{"$error":"#N/A"}},{"$f":"_xlfn.XLOOKUP(A40,'Base-datos'!$B$517:$B$520,'Base-datos'!$D$517:$D$520)","v":{"$error":"#N/A"}},null,null,{"$f":"IF(OR($L$35=\"La actividad no cumple con el total de los criterios de No Daño Significativo\",$M$35=\"El sector no cumple con las salvaguardas mínimas\"),\"\",IF(AND('Base-datos'!$B$720=\"Sí\",'Base-datos'!$B$721=\"\",'Base-datos'!$B$722=\"\"),IF('Instituciones-crédito'!J40=\"La actividad sí contribuye sustancialmente a la sostenibilidad\",SUM('Instituciones-crédito'!B40:H40),0),IF(AND('Base-datos'!$B$720=\"Sí\",'Base-datos'!$B$721=\"Sí\",'Base-datos'!$B$722=\"\"),IF(AND('Instituciones-crédito'!J40=\"La actividad sí contribuye sustancialmente a la sostenibilidad\",'Instituciones-crédito'!K40=\"La actividad sí contribuye sustancialmente a la sostenibilidad\"),SUM('Instituciones-crédito'!B40:H40),0),IF(AND('Base-datos'!$B$720=\"Sí\",'Base-datos'!$B$721=\"Sí\",'Base-datos'!$B$722=\"Sí\"),IF(AND('Instituciones-crédito'!J40=\"La actividad sí contribuye sustancialmente a la sostenibilidad\",'Instituciones-crédito'!K40=\"La actividad sí contribuye sustancialmente a la sostenibilidad\",'Instituciones-crédito'!I40=\"La actividad sí contribuye sustancialmente a la sostenibilidad\"),SUM('Instituciones-crédito'!B40:H40),0),IF(AND('Base-datos'!$B$720=\"\",'Base-datos'!$B$721=\"Sí\",'Base-datos'!$B$722=\"\"),IF('Instituciones-crédito'!K40=\"La actividad sí contribuye sustancialmente a la sostenibilidad\",SUM('Instituciones-crédito'!B40:H40),0),IF(AND('Base-datos'!$B$720=\"\",'Base-datos'!$B$721=\"\",'Base-datos'!$B$722=\"Sí\"),IF('Instituciones-crédito'!I40=\"La actividad sí contribuye sustancialmente a la sostenibilidad\",SUM('Instituciones-crédito'!B40:H40),0),IF(AND('Base-datos'!$B$720=\"\",'Base-datos'!$B$721=\"Sí\",'Base-datos'!$B$722=\"Sí\"),IF(AND('Instituciones-crédito'!K40=\"La actividad sí contribuye sustancialmente a la sostenibilidad\",'Instituciones-crédito'!I40=\"La actividad sí contribuye sustancialmente a la sostenibilidad\"),SUM('Instituciones-crédito'!B40:H40),0),IF(AND('Base-datos'!$B$720=\"Sí\",'Base-datos'!$B$721=\"\",'Base-datos'!$B$722=\"Sí\"),IF(AND('Instituciones-crédito'!J40=\"La actividad sí contribuye sustancialmente a la sostenibilidad\",'Instituciones-crédito'!I40=\"La actividad sí contribuye sustancialmente a la sostenibilidad\"),SUM('Instituciones-crédito'!B40:H40),0),\"Por definir\"))))))))","v":"Por definir"}]
[{"$f":"Forestal!$C22","v":"Seleccione"},{"$f":"IF(Forestal!$E22='Instituciones-crédito'!B$12,Forestal!$B22,\"\")","v":""},{"$f":"IF(Forestal!$E22='Instituciones-crédito'!C$12,Forestal!$B22,\"\")","v":""},{"$f":"IF(Forestal!$E22='Instituciones-crédito'!D$12,Forestal!$B22,\"\")","v":""},{"$f":"IF(Forestal!$E22='Instituciones-crédito'!E$12,Forestal!$B22,\"\")","v":""},{"$f":"IF(Forestal!$E22='Instituciones-crédito'!F$12,Forestal!$B22,\"\")","v":""},{"$f":"IF(Forestal!$E22='Instituciones-crédito'!G$12,Forestal!$B22,\"\")","v":""},{"$f":"IF(Forestal!$E22='Instituciones-crédito'!H$12,Forestal!$B22,\"\")","v":""},{"$f":"_xlfn.XLOOKUP(A41,'Base-datos'!$B$517:$B$520,'Base-datos'!$F$517:$F$520)","v":{"$error":"#N/A"}},{"$f":"_xlfn.XLOOKUP(A41,'Base-datos'!$B$517:$B$520,'Base-datos'!$C$517:$C$520)","v":{"$error":"#N/A"}},{"$f":"_xlfn.XLOOKUP(A41,'Base-datos'!$B$517:$B$520,'Base-datos'!$D$517:$D$520)","v":{"$error":"#N/A"}},null,null,{"$f":"IF(OR($L$35=\"La actividad no cumple con el total de los criterios de No Daño Significativo\",$M$35=\"El sector no cumple con las salvaguardas mínimas\"),\"\",IF(AND('Base-datos'!$B$720=\"Sí\",'Base-datos'!$B$721=\"\",'Base-datos'!$B$722=\"\"),IF('Instituciones-crédito'!J41=\"La actividad sí contribuye sustancialmente a la sostenibilidad\",SUM('Instituciones-crédito'!B41:H41),0),IF(AND('Base-datos'!$B$720=\"Sí\",'Base-datos'!$B$721=\"Sí\",'Base-datos'!$B$722=\"\"),IF(AND('Instituciones-crédito'!J41=\"La actividad sí contribuye sustancialmente a la sostenibilidad\",'Instituciones-crédito'!K41=\"La actividad sí contribuye sustancialmente a la sostenibilidad\"),SUM('Instituciones-crédito'!B41:H41),0),IF(AND('Base-datos'!$B$720=\"Sí\",'Base-datos'!$B$721=\"Sí\",'Base-datos'!$B$722=\"Sí\"),IF(AND('Instituciones-crédito'!J41=\"La actividad sí contribuye sustancialmente a la sostenibilidad\",'Instituciones-crédito'!K41=\"La actividad sí contribuye sustancialmente a la sostenibilidad\",'Instituciones-crédito'!I41=\"La actividad sí contribuye sustancialmente a la sostenibilidad\"),SUM('Instituciones-crédito'!B41:H41),0),IF(AND('Base-datos'!$B$720=\"\",'Base-datos'!$B$721=\"Sí\",'Base-datos'!$B$722=\"\"),IF('Instituciones-crédito'!K41=\"La actividad sí contribuye sustancialmente a la sostenibilidad\",SUM('Instituciones-crédito'!B41:H41),0),IF(AND('Base-datos'!$B$720=\"\",'Base-datos'!$B$721=\"\",'Base-datos'!$B$722=\"Sí\"),IF('Instituciones-crédito'!I41=\"La actividad sí contribuye sustancialmente a la sostenibilidad\",SUM('Instituciones-crédito'!B41:H41),0),IF(AND('Base-datos'!$B$720=\"\",'Base-datos'!$B$721=\"Sí\",'Base-datos'!$B$722=\"Sí\"),IF(AND('Instituciones-crédito'!K41=\"La actividad sí contribuye sustancialmente a la sostenibilidad\",'Instituciones-crédito'!I41=\"La actividad sí contribuye sustancialmente a la sostenibilidad\"),SUM('Instituciones-crédito'!B41:H41),0),IF(AND('Base-datos'!$B$720=\"Sí\",'Base-datos'!$B$721=\"\",'Base-datos'!$B$722=\"Sí\"),IF(AND('Instituciones-crédito'!J41=\"La actividad sí contribuye sustancialmente a la sostenibilidad\",'Instituciones-crédito'!I41=\"La actividad sí contribuye sustancialmente a la sostenibilidad\"),SUM('Instituciones-crédito'!B41:H41),0),\"Por definir\"))))))))","v":"Por definir"}]
[{"$f":"Forestal!$C24","v":"Seleccione"},{"$f":"IF(Forestal!$E24='Instituciones-crédito'!B$12,Forestal!$B24,\"\")","v":""},{"$f":"IF(Forestal!$E24='Instituciones-crédito'!C$12,Forestal!$B24,\"\")","v":""},{"$f":"IF(Forestal!$E24='Instituciones-crédito'!D$12,Forestal!$B24,\"\")","v":""},{"$f":"IF(Forestal!$E24='Instituciones-crédito'!E$12,Forestal!$B24,\"\")","v":""},{"$f":"IF(Forestal!$E24='Instituciones-crédito'!F$12,Forestal!$B24,\"\")","v":""},{"$f":"IF(Forestal!$E24='Instituciones-crédito'!G$12,Forestal!$B24,\"\")","v":""},{"$f":"IF(Forestal!$E24='Instituciones-crédito'!H$12,Forestal!$B24,\"\")","v":""},{"$f":"_xlfn.XLOOKUP(A42,'Base-datos'!$B$517:$B$520,'Base-datos'!$F$517:$F$520)","v":{"$error":"#N/A"}},{"$f":"_xlfn.XLOOKUP(A42,'Base-datos'!$B$517:$B$520,'Base-datos'!$C$517:$C$520)","v":{"$error":"#N/A"}},{"$f":"_xlfn.XLOOKUP(A42,'Base-datos'!$B$517:$B$520,'Base-datos'!$D$517:$D$520)","v":{"$error":"#N/A"}},null,null,{"$f":"IF(OR($L$35=\"La actividad no cumple con el total de los criterios de No Daño Significativo\",$M$35=\"El sector no cumple con las salvaguardas mínimas\"),\"\",IF(AND('Base-datos'!$B$720=\"Sí\",'Base-datos'!$B$721=\"\",'Base-datos'!$B$722=\"\"),IF('Instituciones-crédito'!J42=\"La actividad sí contribuye sustancialmente a la sostenibilidad\",SUM('Instituciones-crédito'!B42:H42),0),IF(AND('Base-datos'!$B$720=\"Sí\",'Base-datos'!$B$721=\"Sí\",'Base-datos'!$B$722=\"\"),IF(AND('Instituciones-crédito'!J42=\"La actividad sí contribuye sustancialmente a la sostenibilidad\",'Instituciones-crédito'!K42=\"La actividad sí contribuye sustancialmente a la sostenibilidad\"),SUM('Instituciones-crédito'!B42:H42),0),IF(AND('Base-datos'!$B$720=\"Sí\",'Base-datos'!$B$721=\"Sí\",'Base-datos'!$B$722=\"Sí\"),IF(AND('Instituciones-crédito'!J42=\"La actividad sí contribuye sustancialmente a la sostenibilidad\",'Instituciones-crédito'!K42=\"La actividad sí contribuye sustancialmente a la sostenibilidad\",'Instituciones-crédito'!I42=\"La actividad sí contribuye sustancialmente a la sostenibilidad\"),SUM('Instituciones-crédito'!B42:H42),0),IF(AND('Base-datos'!$B$720=\"\",'Base-datos'!$B$721=\"Sí\",'Base-datos'!$B$722=\"\"),IF('Instituciones-crédito'!K42=\"La actividad sí contribuye sustancialmente a la sostenibilidad\",SUM('Instituciones-crédito'!B42:H42),0),IF(AND('Base-datos'!$B$720=\"\",'Base-datos'!$B$721=\"\",'Base-datos'!$B$722=\"Sí\"),IF('Instituciones-crédito'!I42=\"La actividad sí contribuye sustancialmente a la sostenibilidad\",SUM('Instituciones-crédito'!B42:H42),0),IF(AND('Base-datos'!$B$720=\"\",'Base-datos'!$B$721=\"Sí\",'Base-datos'!$B$722=\"Sí\"),IF(AND('Instituciones-crédito'!K42=\"La actividad sí contribuye sustancialmente a la sostenibilidad\",'Instituciones-crédito'!I42=\"La actividad sí contribuye sustancialmente a la sostenibilidad\"),SUM('Instituciones-crédito'!B42:H42),0),IF(AND('Base-datos'!$B$720=\"Sí\",'Base-datos'!$B$721=\"\",'Base-datos'!$B$722=\"Sí\"),IF(AND('Instituciones-crédito'!J42=\"La actividad sí contribuye sustancialmente a la sostenibilidad\",'Instituciones-crédito'!I42=\"La actividad sí contribuye sustancialmente a la sostenibilidad\"),SUM('Instituciones-crédito'!B42:H42),0),\"Por definir\"))))))))","v":"Por definir"}]
[{"$f":"Forestal!$C26","v":"Seleccione"},{"$f":"IF(Forestal!$E26='Instituciones-crédito'!B$12,Forestal!$B26,\"\")","v":""},{"$f":"IF(Forestal!$E26='Instituciones-crédito'!C$12,Forestal!$B26,\"\")","v":""},{"$f":"IF(Forestal!$E26='Instituciones-crédito'!D$12,Forestal!$B26,\"\")","v":""},{"$f":"IF(Forestal!$E26='Instituciones-crédito'!E$12,Forestal!$B26,\"\")","v":""},{"$f":"IF(Forestal!$E26='Instituciones-crédito'!F$12,Forestal!$B26,\"\")","v":""},{"$f":"IF(Forestal!$E26='Instituciones-crédito'!G$12,Forestal!$B26,\"\")","v":""},{"$f":"IF(Forestal!$E26='Instituciones-crédito'!H$12,Forestal!$B26,\"\")","v":""},{"$f":"_xlfn.XLOOKUP(A43,'Base-datos'!$B$517:$B$520,'Base-datos'!$F$517:$F$520)","v":{"$error":"#N/A"}},{"$f":"_xlfn.XLOOKUP(A43,'Base-datos'!$B$517:$B$520,'Base-datos'!$C$517:$C$520)","v":{"$error":"#N/A"}},{"$f":"_xlfn.XLOOKUP(A43,'Base-datos'!$B$517:$B$520,'Base-datos'!$D$517:$D$520)","v":{"$error":"#N/A"}},null,null,{"$f":"IF(OR($L$35=\"La actividad no cumple con el total de los criterios de No Daño Significativo\",$M$35=\"El sector no cumple con las salvaguardas mínimas\"),\"\",IF(AND('Base-datos'!$B$720=\"Sí\",'Base-datos'!$B$721=\"\",'Base-datos'!$B$722=\"\"),IF('Instituciones-crédito'!J43=\"La actividad sí contribuye sustancialmente a la sostenibilidad\",SUM('Instituciones-crédito'!B43:H43),0),IF(AND('Base-datos'!$B$720=\"Sí\",'Base-datos'!$B$721=\"Sí\",'Base-datos'!$B$722=\"\"),IF(AND('Instituciones-crédito'!J43=\"La actividad sí contribuye sustancialmente a la sostenibilidad\",'Instituciones-crédito'!K43=\"La actividad sí contribuye sustancialmente a la sostenibilidad\"),SUM('Instituciones-crédito'!B43:H43),0),IF(AND('Base-datos'!$B$720=\"Sí\",'Base-datos'!$B$721=\"Sí\",'Base-datos'!$B$722=\"Sí\"),IF(AND('Instituciones-crédito'!J43=\"La actividad sí contribuye sustancialmente a la sostenibilidad\",'Instituciones-crédito'!K43=\"La actividad sí contribuye sustancialmente a la sostenibilidad\",'Instituciones-crédito'!I43=\"La actividad sí contribuye sustancialmente a la sostenibilidad\"),SUM('Instituciones-crédito'!B43:H43),0),IF(AND('Base-datos'!$B$720=\"\",'Base-datos'!$B$721=\"Sí\",'Base-datos'!$B$722=\"\"),IF('Instituciones-crédito'!K43=\"La actividad sí contribuye sustancialmente a la sostenibilidad\",SUM('Instituciones-crédito'!B43:H43),0),IF(AND('Base-datos'!$B$720=\"\",'Base-datos'!$B$721=\"\",'Base-datos'!$B$722=\"Sí\"),IF('Instituciones-crédito'!I43=\"La actividad sí contribuye sustancialmente a la sostenibilidad\",SUM('Instituciones-crédito'!B43:H43),0),IF(AND('Base-datos'!$B$720=\"\",'Base-datos'!$B$721=\"Sí\",'Base-datos'!$B$722=\"Sí\"),IF(AND('Instituciones-crédito'!K43=\"La actividad sí contribuye sustancialmente a la sostenibilidad\",'Instituciones-crédito'!I43=\"La actividad sí contribuye sustancialmente a la sostenibilidad\"),SUM('Instituciones-crédito'!B43:H43),0),IF(AND('Base-datos'!$B$720=\"Sí\",'Base-datos'!$B$721=\"\",'Base-datos'!$B$722=\"Sí\"),IF(AND('Instituciones-crédito'!J43=\"La actividad sí contribuye sustancialmente a la sostenibilidad\",'Instituciones-crédito'!I43=\"La actividad sí contribuye sustancialmente a la sostenibilidad\"),SUM('Instituciones-crédito'!B43:H43),0),\"Por definir\"))))))))","v":"Por definir"}]
[{"$f":"Forestal!$C28","v":"Seleccione"},{"$f":"IF(Forestal!$E28='Instituciones-crédito'!B$12,Forestal!$B28,\"\")","v":""},{"$f":"IF(Forestal!$E28='Instituciones-crédito'!C$12,Forestal!$B28,\"\")","v":""},{"$f":"IF(Forestal!$E28='Instituciones-crédito'!D$12,Forestal!$B28,\"\")","v":""},{"$f":"IF(Forestal!$E28='Instituciones-crédito'!E$12,Forestal!$B28,\"\")","v":""},{"$f":"IF(Forestal!$E28='Instituciones-crédito'!F$12,Forestal!$B28,\"\")","v":""},{"$f":"IF(Forestal!$E28='Instituciones-crédito'!G$12,Forestal!$B28,\"\")","v":""},{"$f":"IF(Forestal!$E28='Instituciones-crédito'!H$12,Forestal!$B28,\"\")","v":""},{"$f":"_xlfn.XLOOKUP(A44,'Base-datos'!$B$517:$B$520,'Base-datos'!$F$517:$F$520)","v":{"$error":"#N/A"}},{"$f":"_xlfn.XLOOKUP(A44,'Base-datos'!$B$517:$B$520,'Base-datos'!$C$517:$C$520)","v":{"$error":"#N/A"}},{"$f":"_xlfn.XLOOKUP(A44,'Base-datos'!$B$517:$B$520,'Base-datos'!$D$517:$D$520)","v":{"$error":"#N/A"}},null,null,{"$f":"IF(OR($L$35=\"La actividad no cumple con el total de los criterios de No Daño Significativo\",$M$35=\"El sector no cumple con las salvaguardas mínimas\"),\"\",IF(AND('Base-datos'!$B$720=\"Sí\",'Base-datos'!$B$721=\"\",'Base-datos'!$B$722=\"\"),IF('Instituciones-crédito'!J44=\"La actividad sí contribuye sustancialmente a la sostenibilidad\",SUM('Instituciones-crédito'!B44:H44),0),IF(AND('Base-datos'!$B$720=\"Sí\",'Base-datos'!$B$721=\"Sí\",'Base-datos'!$B$722=\"\"),IF(AND('Instituciones-crédito'!J44=\"La actividad sí contribuye sustancialmente a la sostenibilidad\",'Instituciones-crédito'!K44=\"La actividad sí contribuye sustancialmente a la sostenibilidad\"),SUM('Instituciones-crédito'!B44:H44),0),IF(AND('Base-datos'!$B$720=\"Sí\",'Base-datos'!$B$721=\"Sí\",'Base-datos'!$B$722=\"Sí\"),IF(AND('Instituciones-crédito'!J44=\"La actividad sí contribuye sustancialmente a la sostenibilidad\",'Instituciones-crédito'!K44=\"La actividad sí contribuye sustancialmente a la sostenibilidad\",'Instituciones-crédito'!I44=\"La actividad sí contribuye sustancialmente a la sostenibilidad\"),SUM('Instituciones-crédito'!B44:H44),0),IF(AND('Base-datos'!$B$720=\"\",'Base-datos'!$B$721=\"Sí\",'Base-datos'!$B$722=\"\"),IF('Instituciones-crédito'!K44=\"La actividad sí contribuye sustancialmente a la sostenibilidad\",SUM('Instituciones-crédito'!B44:H44),0),IF(AND('Base-datos'!$B$720=\"\",'Base-datos'!$B$721=\"\",'Base-datos'!$B$722=\"Sí\"),IF('Instituciones-crédito'!I44=\"La actividad sí contribuye sustancialmente a la sostenibilidad\",SUM('Instituciones-crédito'!B44:H44),0),IF(AND('Base-datos'!$B$720=\"\",'Base-datos'!$B$721=\"Sí\",'Base-datos'!$B$722=\"Sí\"),IF(AND('Instituciones-crédito'!K44=\"La actividad sí contribuye sustancialmente a la sostenibilidad\",'Instituciones-crédito'!I44=\"La actividad sí contribuye sustancialmente a la sostenibilidad\"),SUM('Instituciones-crédito'!B44:H44),0),IF(AND('Base-datos'!$B$720=\"Sí\",'Base-datos'!$B$721=\"\",'Base-datos'!$B$722=\"Sí\"),IF(AND('Instituciones-crédito'!J44=\"La actividad sí contribuye sustancialmente a la sostenibilidad\",'Instituciones-crédito'!I44=\"La actividad sí contribuye sustancialmente a la sostenibilidad\"),SUM('Instituciones-crédito'!B44:H44),0),\"Por definir\"))))))))","v":"Por definir"}]
[{"$f":"Forestal!$C30","v":"Seleccione"},{"$f":"IF(Forestal!$E30='Instituciones-crédito'!B$12,Forestal!$B30,\"\")","v":""},{"$f":"IF(Forestal!$E30='Instituciones-crédito'!C$12,Forestal!$B30,\"\")","v":""},{"$f":"IF(Forestal!$E30='Instituciones-crédito'!D$12,Forestal!$B30,\"\")","v":""},{"$f":"IF(Forestal!$E30='Instituciones-crédito'!E$12,Forestal!$B30,\"\")","v":""},{"$f":"IF(Forestal!$E30='Instituciones-crédito'!F$12,Forestal!$B30,\"\")","v":""},{"$f":"IF(Forestal!$E30='Instituciones-crédito'!G$12,Forestal!$B30,\"\")","v":""},{"$f":"IF(Forestal!$E30='Instituciones-crédito'!H$12,Forestal!$B30,\"\")","v":""},{"$f":"_xlfn.XLOOKUP(A45,'Base-datos'!$B$517:$B$520,'Base-datos'!$F$517:$F$520)","v":{"$error":"#N/A"}},{"$f":"_xlfn.XLOOKUP(A45,'Base-datos'!$B$517:$B$520,'Base-datos'!$C$517:$C$520)","v":{"$error":"#N/A"}},{"$f":"_xlfn.XLOOKUP(A45,'Base-datos'!$B$517:$B$520,'Base-datos'!$D$517:$D$520)","v":{"$error":"#N/A"}},null,null,{"$f":"IF(OR($L$35=\"La actividad no cumple con el total de los criterios de No Daño Significativo\",$M$35=\"El sector no cumple con las salvaguardas mínimas\"),\"\",IF(AND('Base-datos'!$B$720=\"Sí\",'Base-datos'!$B$721=\"\",'Base-datos'!$B$722=\"\"),IF('Instituciones-crédito'!J45=\"La actividad sí contribuye sustancialmente a la sostenibilidad\",SUM('Instituciones-crédito'!B45:H45),0),IF(AND('Base-datos'!$B$720=\"Sí\",'Base-datos'!$B$721=\"Sí\",'Base-datos'!$B$722=\"\"),IF(AND('Instituciones-crédito'!J45=\"La actividad sí contribuye sustancialmente a la sostenibilidad\",'Instituciones-crédito'!K45=\"La actividad sí contribuye sustancialmente a la sostenibilidad\"),SUM('Instituciones-crédito'!B45:H45),0),IF(AND('Base-datos'!$B$720=\"Sí\",'Base-datos'!$B$721=\"Sí\",'Base-datos'!$B$722=\"Sí\"),IF(AND('Instituciones-crédito'!J45=\"La actividad sí contribuye sustancialmente a la sostenibilidad\",'Instituciones-crédito'!K45=\"La actividad sí contribuye sustancialmente a la sostenibilidad\",'Instituciones-crédito'!I45=\"La actividad sí contribuye sustancialmente a la sostenibilidad\"),SUM('Instituciones-crédito'!B45:H45),0),IF(AND('Base-datos'!$B$720=\"\",'Base-datos'!$B$721=\"Sí\",'Base-datos'!$B$722=\"\"),IF('Instituciones-crédito'!K45=\"La actividad sí contribuye sustancialmente a la sostenibilidad\",SUM('Instituciones-crédito'!B45:H45),0),IF(AND('Base-datos'!$B$720=\"\",'Base-datos'!$B$721=\"\",'Base-datos'!$B$722=\"Sí\"),IF('Instituciones-crédito'!I45=\"La actividad sí contribuye sustancialmente a la sostenibilidad\",SUM('Instituciones-crédito'!B45:H45),0),IF(AND('Base-datos'!$B$720=\"\",'Base-datos'!$B$721=\"Sí\",'Base-datos'!$B$722=\"Sí\"),IF(AND('Instituciones-crédito'!K45=\"La actividad sí contribuye sustancialmente a la sostenibilidad\",'Instituciones-crédito'!I45=\"La actividad sí contribuye sustancialmente a la sostenibilidad\"),SUM('Instituciones-crédito'!B45:H45),0),IF(AND('Base-datos'!$B$720=\"Sí\",'Base-datos'!$B$721=\"\",'Base-datos'!$B$722=\"Sí\"),IF(AND('Instituciones-crédito'!J45=\"La actividad sí contribuye sustancialmente a la sostenibilidad\",'Instituciones-crédito'!I45=\"La actividad sí contribuye sustancialmente a la sostenibilidad\"),SUM('Instituciones-crédito'!B45:H45),0),\"Por definir\"))))))))","v":"Por definir"}]
[{"$f":"Forestal!$C32","v":"Seleccione"},{"$f":"IF(Forestal!$E32='Instituciones-crédito'!B$12,Forestal!$B32,\"\")","v":""},{"$f":"IF(Forestal!$E32='Instituciones-crédito'!C$12,Forestal!$B32,\"\")","v":""},{"$f":"IF(Forestal!$E32='Instituciones-crédito'!D$12,Forestal!$B32,\"\")","v":""},{"$f":"IF(Forestal!$E32='Instituciones-crédito'!E$12,Forestal!$B32,\"\")","v":""},{"$f":"IF(Forestal!$E32='Instituciones-crédito'!F$12,Forestal!$B32,\"\")","v":""},{"$f":"IF(Forestal!$E32='Instituciones-crédito'!G$12,Forestal!$B32,\"\")","v":""},{"$f":"IF(Forestal!$E32='Instituciones-crédito'!H$12,Forestal!$B32,\"\")","v":""},{"$f":"_xlfn.XLOOKUP(A46,'Base-datos'!$B$517:$B$520,'Base-datos'!$F$517:$F$520)","v":{"$error":"#N/A"}},{"$f":"_xlfn.XLOOKUP(A46,'Base-datos'!$B$517:$B$520,'Base-datos'!$C$517:$C$520)","v":{"$error":"#N/A"}},{"$f":"_xlfn.XLOOKUP(A46,'Base-datos'!$B$517:$B$520,'Base-datos'!$D$517:$D$520)","v":{"$error":"#N/A"}},null,null,{"$f":"IF(OR($L$35=\"La actividad no cumple con el total de los criterios de No Daño Significativo\",$M$35=\"El sector no cumple con las salvaguardas mínimas\"),\"\",IF(AND('Base-datos'!$B$720=\"Sí\",'Base-datos'!$B$721=\"\",'Base-datos'!$B$722=\"\"),IF('Instituciones-crédito'!J46=\"La actividad sí contribuye sustancialmente a la sostenibilidad\",SUM('Instituciones-crédito'!B46:H46),0),IF(AND('Base-datos'!$B$720=\"Sí\",'Base-datos'!$B$721=\"Sí\",'Base-datos'!$B$722=\"\"),IF(AND('Instituciones-crédito'!J46=\"La actividad sí contribuye sustancialmente a la sostenibilidad\",'Instituciones-crédito'!K46=\"La actividad sí contribuye sustancialmente a la sostenibilidad\"),SUM('Instituciones-crédito'!B46:H46),0),IF(AND('Base-datos'!$B$720=\"Sí\",'Base-datos'!$B$721=\"Sí\",'Base-datos'!$B$722=\"Sí\"),IF(AND('Instituciones-crédito'!J46=\"La actividad sí contribuye sustancialmente a la sostenibilidad\",'Instituciones-crédito'!K46=\"La actividad sí contribuye sustancialmente a la sostenibilidad\",'Instituciones-crédito'!I46=\"La actividad sí contribuye sustancialmente a la sostenibilidad\"),SUM('Instituciones-crédito'!B46:H46),0),IF(AND('Base-datos'!$B$720=\"\",'Base-datos'!$B$721=\"Sí\",'Base-datos'!$B$722=\"\"),IF('Instituciones-crédito'!K46=\"La actividad sí contribuye sustancialmente a la sostenibilidad\",SUM('Instituciones-crédito'!B46:H46),0),IF(AND('Base-datos'!$B$720=\"\",'Base-datos'!$B$721=\"\",'Base-datos'!$B$722=\"Sí\"),IF('Instituciones-crédito'!I46=\"La actividad sí contribuye sustancialmente a la sostenibilidad\",SUM('Instituciones-crédito'!B46:H46),0),IF(AND('Base-datos'!$B$720=\"\",'Base-datos'!$B$721=\"Sí\",'Base-datos'!$B$722=\"Sí\"),IF(AND('Instituciones-crédito'!K46=\"La actividad sí contribuye sustancialmente a la sostenibilidad\",'Instituciones-crédito'!I46=\"La actividad sí contribuye sustancialmente a la sostenibilidad\"),SUM('Instituciones-crédito'!B46:H46),0),IF(AND('Base-datos'!$B$720=\"Sí\",'Base-datos'!$B$721=\"\",'Base-datos'!$B$722=\"Sí\"),IF(AND('Instituciones-crédito'!J46=\"La actividad sí contribuye sustancialmente a la sostenibilidad\",'Instituciones-crédito'!I46=\"La actividad sí contribuye sustancialmente a la sostenibilidad\"),SUM('Instituciones-crédito'!B46:H46),0),\"Por definir\"))))))))","v":"Por definir"}]
[{"$f":"Forestal!$C34","v":"Seleccione"},{"$f":"IF(Forestal!$E34='Instituciones-crédito'!B$12,Forestal!$B34,\"\")","v":""},{"$f":"IF(Forestal!$E34='Instituciones-crédito'!C$12,Forestal!$B34,\"\")","v":""},{"$f":"IF(Forestal!$E34='Instituciones-crédito'!D$12,Forestal!$B34,\"\")","v":""},{"$f":"IF(Forestal!$E34='Instituciones-crédito'!E$12,Forestal!$B34,\"\")","v":""},{"$f":"IF(Forestal!$E34='Instituciones-crédito'!F$12,Forestal!$B34,\"\")","v":""},{"$f":"IF(Forestal!$E34='Instituciones-crédito'!G$12,Forestal!$B34,\"\")","v":""},{"$f":"IF(Forestal!$E34='Instituciones-crédito'!H$12,Forestal!$B34,\"\")","v":""},{"$f":"_xlfn.XLOOKUP(A47,'Base-datos'!$B$517:$B$520,'Base-datos'!$F$517:$F$520)","v":{"$error":"#N/A"}},{"$f":"_xlfn.XLOOKUP(A47,'Base-datos'!$B$517:$B$520,'Base-datos'!$C$517:$C$520)","v":{"$error":"#N/A"}},{"$f":"_xlfn.XLOOKUP(A47,'Base-datos'!$B$517:$B$520,'Base-datos'!$D$517:$D$520)","v":{"$error":"#N/A"}},null,null,{"$f":"IF(OR($L$35=\"La actividad no cumple con el total de los criterios de No Daño Significativo\",$M$35=\"El sector no cumple con las salvaguardas mínimas\"),\"\",IF(AND('Base-datos'!$B$720=\"Sí\",'Base-datos'!$B$721=\"\",'Base-datos'!$B$722=\"\"),IF('Instituciones-crédito'!J47=\"La actividad sí contribuye sustancialmente a la sostenibilidad\",SUM('Instituciones-crédito'!B47:H47),0),IF(AND('Base-datos'!$B$720=\"Sí\",'Base-datos'!$B$721=\"Sí\",'Base-datos'!$B$722=\"\"),IF(AND('Instituciones-crédito'!J47=\"La actividad sí contribuye sustancialmente a la sostenibilidad\",'Instituciones-crédito'!K47=\"La actividad sí contribuye sustancialmente a la sostenibilidad\"),SUM('Instituciones-crédito'!B47:H47),0),IF(AND('Base-datos'!$B$720=\"Sí\",'Base-datos'!$B$721=\"Sí\",'Base-datos'!$B$722=\"Sí\"),IF(AND('Instituciones-crédito'!J47=\"La actividad sí contribuye sustancialmente a la sostenibilidad\",'Instituciones-crédito'!K47=\"La actividad sí contribuye sustancialmente a la sostenibilidad\",'Instituciones-crédito'!I47=\"La actividad sí contribuye sustancialmente a la sostenibilidad\"),SUM('Instituciones-crédito'!B47:H47),0),IF(AND('Base-datos'!$B$720=\"\",'Base-datos'!$B$721=\"Sí\",'Base-datos'!$B$722=\"\"),IF('Instituciones-crédito'!K47=\"La actividad sí contribuye sustancialmente a la sostenibilidad\",SUM('Instituciones-crédito'!B47:H47),0),IF(AND('Base-datos'!$B$720=\"\",'Base-datos'!$B$721=\"\",'Base-datos'!$B$722=\"Sí\"),IF('Instituciones-crédito'!I47=\"La actividad sí contribuye sustancialmente a la sostenibilidad\",SUM('Instituciones-crédito'!B47:H47),0),IF(AND('Base-datos'!$B$720=\"\",'Base-datos'!$B$721=\"Sí\",'Base-datos'!$B$722=\"Sí\"),IF(AND('Instituciones-crédito'!K47=\"La actividad sí contribuye sustancialmente a la sostenibilidad\",'Instituciones-crédito'!I47=\"La actividad sí contribuye sustancialmente a la sostenibilidad\"),SUM('Instituciones-crédito'!B47:H47),0),IF(AND('Base-datos'!$B$720=\"Sí\",'Base-datos'!$B$721=\"\",'Base-datos'!$B$722=\"Sí\"),IF(AND('Instituciones-crédito'!J47=\"La actividad sí contribuye sustancialmente a la sostenibilidad\",'Instituciones-crédito'!I47=\"La actividad sí contribuye sustancialmente a la sostenibilidad\"),SUM('Instituciones-crédito'!B47:H47),0),\"Por definir\"))))))))","v":"Por definir"}]
[{"$f":"Forestal!$C36","v":"Seleccione"},{"$f":"IF(Forestal!$E36='Instituciones-crédito'!B$12,Forestal!$B36,\"\")","v":""},{"$f":"IF(Forestal!$E36='Instituciones-crédito'!C$12,Forestal!$B36,\"\")","v":""},{"$f":"IF(Forestal!$E36='Instituciones-crédito'!D$12,Forestal!$B36,\"\")","v":""},{"$f":"IF(Forestal!$E36='Instituciones-crédito'!E$12,Forestal!$B36,\"\")","v":""},{"$f":"IF(Forestal!$E36='Instituciones-crédito'!F$12,Forestal!$B36,\"\")","v":""},{"$f":"IF(Forestal!$E36='Instituciones-crédito'!G$12,Forestal!$B36,\"\")","v":""},{"$f":"IF(Forestal!$E36='Instituciones-crédito'!H$12,Forestal!$B36,\"\")","v":""},{"$f":"_xlfn.XLOOKUP(A48,'Base-datos'!$B$517:$B$520,'Base-datos'!$F$517:$F$520)","v":{"$error":"#N/A"}},{"$f":"_xlfn.XLOOKUP(A48,'Base-datos'!$B$517:$B$520,'Base-datos'!$C$517:$C$520)","v":{"$error":"#N/A"}},{"$f":"_xlfn.XLOOKUP(A48,'Base-datos'!$B$517:$B$520,'Base-datos'!$D$517:$D$520)","v":{"$error":"#N/A"}},null,null,{"$f":"IF(OR($L$35=\"La actividad no cumple con el total de los criterios de No Daño Significativo\",$M$35=\"El sector no cumple con las salvaguardas mínimas\"),\"\",IF(AND('Base-datos'!$B$720=\"Sí\",'Base-datos'!$B$721=\"\",'Base-datos'!$B$722=\"\"),IF('Instituciones-crédito'!J48=\"La actividad sí contribuye sustancialmente a la sostenibilidad\",SUM('Instituciones-crédito'!B48:H48),0),IF(AND('Base-datos'!$B$720=\"Sí\",'Base-datos'!$B$721=\"Sí\",'Base-datos'!$B$722=\"\"),IF(AND('Instituciones-crédito'!J48=\"La actividad sí contribuye sustancialmente a la sostenibilidad\",'Instituciones-crédito'!K48=\"La actividad sí contribuye sustancialmente a la sostenibilidad\"),SUM('Instituciones-crédito'!B48:H48),0),IF(AND('Base-datos'!$B$720=\"Sí\",'Base-datos'!$B$721=\"Sí\",'Base-datos'!$B$722=\"Sí\"),IF(AND('Instituciones-crédito'!J48=\"La actividad sí contribuye sustancialmente a la sostenibilidad\",'Instituciones-crédito'!K48=\"La actividad sí contribuye sustancialmente a la sostenibilidad\",'Instituciones-crédito'!I48=\"La actividad sí contribuye sustancialmente a la sostenibilidad\"),SUM('Instituciones-crédito'!B48:H48),0),IF(AND('Base-datos'!$B$720=\"\",'Base-datos'!$B$721=\"Sí\",'Base-datos'!$B$722=\"\"),IF('Instituciones-crédito'!K48=\"La actividad sí contribuye sustancialmente a la sostenibilidad\",SUM('Instituciones-crédito'!B48:H48),0),IF(AND('Base-datos'!$B$720=\"\",'Base-datos'!$B$721=\"\",'Base-datos'!$B$722=\"Sí\"),IF('Instituciones-crédito'!I48=\"La actividad sí contribuye sustancialmente a la sostenibilidad\",SUM('Instituciones-crédito'!B48:H48),0),IF(AND('Base-datos'!$B$720=\"\",'Base-datos'!$B$721=\"Sí\",'Base-datos'!$B$722=\"Sí\"),IF(AND('Instituciones-crédito'!K48=\"La actividad sí contribuye sustancialmente a la sostenibilidad\",'Instituciones-crédito'!I48=\"La actividad sí contribuye sustancialmente a la sostenibilidad\"),SUM('Instituciones-crédito'!B48:H48),0),IF(AND('Base-datos'!$B$720=\"Sí\",'Base-datos'!$B$721=\"\",'Base-datos'!$B$722=\"Sí\"),IF(AND('Instituciones-crédito'!J48=\"La actividad sí contribuye sustancialmente a la sostenibilidad\",'Instituciones-crédito'!I48=\"La actividad sí contribuye sustancialmente a la sostenibilidad\"),SUM('Instituciones-crédito'!B48:H48),0),\"Por definir\"))))))))","v":"Por definir"}]
[{"$f":"Forestal!$C38","v":"Seleccione"},{"$f":"IF(Forestal!$E38='Instituciones-crédito'!B$12,Forestal!$B38,\"\")","v":""},{"$f":"IF(Forestal!$E38='Instituciones-crédito'!C$12,Forestal!$B38,\"\")","v":""},{"$f":"IF(Forestal!$E38='Instituciones-crédito'!D$12,Forestal!$B38,\"\")","v":""},{"$f":"IF(Forestal!$E38='Instituciones-crédito'!E$12,Forestal!$B38,\"\")","v":""},{"$f":"IF(Forestal!$E38='Instituciones-crédito'!F$12,Forestal!$B38,\"\")","v":""},{"$f":"IF(Forestal!$E38='Instituciones-crédito'!G$12,Forestal!$B38,\"\")","v":""},{"$f":"IF(Forestal!$E38='Instituciones-crédito'!H$12,Forestal!$B38,\"\")","v":""},{"$f":"_xlfn.XLOOKUP(A49,'Base-datos'!$B$517:$B$520,'Base-datos'!$F$517:$F$520)","v":{"$error":"#N/A"}},{"$f":"_xlfn.XLOOKUP(A49,'Base-datos'!$B$517:$B$520,'Base-datos'!$C$517:$C$520)","v":{"$error":"#N/A"}},{"$f":"_xlfn.XLOOKUP(A49,'Base-datos'!$B$517:$B$520,'Base-datos'!$D$517:$D$520)","v":{"$error":"#N/A"}},null,null,{"$f":"IF(OR($L$35=\"La actividad no cumple con el total de los criterios de No Daño Significativo\",$M$35=\"El sector no cumple con las salvaguardas mínimas\"),\"\",IF(AND('Base-datos'!$B$720=\"Sí\",'Base-datos'!$B$721=\"\",'Base-datos'!$B$722=\"\"),IF('Instituciones-crédito'!J49=\"La actividad sí contribuye sustancialmente a la sostenibilidad\",SUM('Instituciones-crédito'!B49:H49),0),IF(AND('Base-datos'!$B$720=\"Sí\",'Base-datos'!$B$721=\"Sí\",'Base-datos'!$B$722=\"\"),IF(AND('Instituciones-crédito'!J49=\"La actividad sí contribuye sustancialmente a la sostenibilidad\",'Instituciones-crédito'!K49=\"La actividad sí contribuye sustancialmente a la sostenibilidad\"),SUM('Instituciones-crédito'!B49:H49),0),IF(AND('Base-datos'!$B$720=\"Sí\",'Base-datos'!$B$721=\"Sí\",'Base-datos'!$B$722=\"Sí\"),IF(AND('Instituciones-crédito'!J49=\"La actividad sí contribuye sustancialmente a la sostenibilidad\",'Instituciones-crédito'!K49=\"La actividad sí contribuye sustancialmente a la sostenibilidad\",'Instituciones-crédito'!I49=\"La actividad sí contribuye sustancialmente a la sostenibilidad\"),SUM('Instituciones-crédito'!B49:H49),0),IF(AND('Base-datos'!$B$720=\"\",'Base-datos'!$B$721=\"Sí\",'Base-datos'!$B$722=\"\"),IF('Instituciones-crédito'!K49=\"La actividad sí contribuye sustancialmente a la sostenibilidad\",SUM('Instituciones-crédito'!B49:H49),0),IF(AND('Base-datos'!$B$720=\"\",'Base-datos'!$B$721=\"\",'Base-datos'!$B$722=\"Sí\"),IF('Instituciones-crédito'!I49=\"La actividad sí contribuye sustancialmente a la sostenibilidad\",SUM('Instituciones-crédito'!B49:H49),0),IF(AND('Base-datos'!$B$720=\"\",'Base-datos'!$B$721=\"Sí\",'Base-datos'!$B$722=\"Sí\"),IF(AND('Instituciones-crédito'!K49=\"La actividad sí contribuye sustancialmente a la sostenibilidad\",'Instituciones-crédito'!I49=\"La actividad sí contribuye sustancialmente a la sostenibilidad\"),SUM('Instituciones-crédito'!B49:H49),0),IF(AND('Base-datos'!$B$720=\"Sí\",'Base-datos'!$B$721=\"\",'Base-datos'!$B$722=\"Sí\"),IF(AND('Instituciones-crédito'!J49=\"La actividad sí contribuye sustancialmente a la sostenibilidad\",'Instituciones-crédito'!I49=\"La actividad sí contribuye sustancialmente a la sostenibilidad\"),SUM('Instituciones-crédito'!B49:H49),0),\"Por definir\"))))))))","v":"Por definir"}]
[{"$f":"Forestal!$C40","v":"Seleccione"},{"$f":"IF(Forestal!$E40='Instituciones-crédito'!B$12,Forestal!$B40,\"\")","v":""},{"$f":"IF(Forestal!$E40='Instituciones-crédito'!C$12,Forestal!$B40,\"\")","v":""},{"$f":"IF(Forestal!$E40='Instituciones-crédito'!D$12,Forestal!$B40,\"\")","v":""},{"$f":"IF(Forestal!$E40='Instituciones-crédito'!E$12,Forestal!$B40,\"\")","v":""},{"$f":"IF(Forestal!$E40='Instituciones-crédito'!F$12,Forestal!$B40,\"\")","v":""},{"$f":"IF(Forestal!$E40='Instituciones-crédito'!G$12,Forestal!$B40,\"\")","v":""},{"$f":"IF(Forestal!$E40='Instituciones-crédito'!H$12,Forestal!$B40,\"\")","v":""},{"$f":"_xlfn.XLOOKUP(A50,'Base-datos'!$B$517:$B$520,'Base-datos'!$F$517:$F$520)","v":{"$error":"#N/A"}},{"$f":"_xlfn.XLOOKUP(A50,'Base-datos'!$B$517:$B$520,'Base-datos'!$C$517:$C$520)","v":{"$error":"#N/A"}},{"$f":"_xlfn.XLOOKUP(A50,'Base-datos'!$B$517:$B$520,'Base-datos'!$D$517:$D$520)","v":{"$error":"#N/A"}},null,null,{"$f":"IF(OR($L$35=\"La actividad no cumple con el total de los criterios de No Daño Significativo\",$M$35=\"El sector no cumple con las salvaguardas mínimas\"),\"\",IF(AND('Base-datos'!$B$720=\"Sí\",'Base-datos'!$B$721=\"\",'Base-datos'!$B$722=\"\"),IF('Instituciones-crédito'!J50=\"La actividad sí contribuye sustancialmente a la sostenibilidad\",SUM('Instituciones-crédito'!B50:H50),0),IF(AND('Base-datos'!$B$720=\"Sí\",'Base-datos'!$B$721=\"Sí\",'Base-datos'!$B$722=\"\"),IF(AND('Instituciones-crédito'!J50=\"La actividad sí contribuye sustancialmente a la sostenibilidad\",'Instituciones-crédito'!K50=\"La actividad sí contribuye sustancialmente a la sostenibilidad\"),SUM('Instituciones-crédito'!B50:H50),0),IF(AND('Base-datos'!$B$720=\"Sí\",'Base-datos'!$B$721=\"Sí\",'Base-datos'!$B$722=\"Sí\"),IF(AND('Instituciones-crédito'!J50=\"La actividad sí contribuye sustancialmente a la sostenibilidad\",'Instituciones-crédito'!K50=\"La actividad sí contribuye sustancialmente a la sostenibilidad\",'Instituciones-crédito'!I50=\"La actividad sí contribuye sustancialmente a la sostenibilidad\"),SUM('Instituciones-crédito'!B50:H50),0),IF(AND('Base-datos'!$B$720=\"\",'Base-datos'!$B$721=\"Sí\",'Base-datos'!$B$722=\"\"),IF('Instituciones-crédito'!K50=\"La actividad sí contribuye sustancialmente a la sostenibilidad\",SUM('Instituciones-crédito'!B50:H50),0),IF(AND('Base-datos'!$B$720=\"\",'Base-datos'!$B$721=\"\",'Base-datos'!$B$722=\"Sí\"),IF('Instituciones-crédito'!I50=\"La actividad sí contribuye sustancialmente a la sostenibilidad\",SUM('Instituciones-crédito'!B50:H50),0),IF(AND('Base-datos'!$B$720=\"\",'Base-datos'!$B$721=\"Sí\",'Base-datos'!$B$722=\"Sí\"),IF(AND('Instituciones-crédito'!K50=\"La actividad sí contribuye sustancialmente a la sostenibilidad\",'Instituciones-crédito'!I50=\"La actividad sí contribuye sustancialmente a la sostenibilidad\"),SUM('Instituciones-crédito'!B50:H50),0),IF(AND('Base-datos'!$B$720=\"Sí\",'Base-datos'!$B$721=\"\",'Base-datos'!$B$722=\"Sí\"),IF(AND('Instituciones-crédito'!J50=\"La actividad sí contribuye sustancialmente a la sostenibilidad\",'Instituciones-crédito'!I50=\"La actividad sí contribuye sustancialmente a la sostenibilidad\"),SUM('Instituciones-crédito'!B50:H50),0),\"Por definir\"))))))))","v":"Por definir"}]
[{"$f":"Forestal!$C42","v":"Seleccione"},{"$f":"IF(Forestal!$E42='Instituciones-crédito'!B$12,Forestal!$B42,\"\")","v":""},{"$f":"IF(Forestal!$E42='Instituciones-crédito'!C$12,Forestal!$B42,\"\")","v":""},{"$f":"IF(Forestal!$E42='Instituciones-crédito'!D$12,Forestal!$B42,\"\")","v":""},{"$f":"IF(Forestal!$E42='Instituciones-crédito'!E$12,Forestal!$B42,\"\")","v":""},{"$f":"IF(Forestal!$E42='Instituciones-crédito'!F$12,Forestal!$B42,\"\")","v":""},{"$f":"IF(Forestal!$E42='Instituciones-crédito'!G$12,Forestal!$B42,\"\")","v":""},{"$f":"IF(Forestal!$E42='Instituciones-crédito'!H$12,Forestal!$B42,\"\")","v":""},{"$f":"_xlfn.XLOOKUP(A51,'Base-datos'!$B$517:$B$520,'Base-datos'!$F$517:$F$520)","v":{"$error":"#N/A"}},{"$f":"_xlfn.XLOOKUP(A51,'Base-datos'!$B$517:$B$520,'Base-datos'!$C$517:$C$520)","v":{"$error":"#N/A"}},{"$f":"_xlfn.XLOOKUP(A51,'Base-datos'!$B$517:$B$520,'Base-datos'!$D$517:$D$520)","v":{"$error":"#N/A"}},null,null,{"$f":"IF(OR($L$35=\"La actividad no cumple con el total de los criterios de No Daño Significativo\",$M$35=\"El sector no cumple con las salvaguardas mínimas\"),\"\",IF(AND('Base-datos'!$B$720=\"Sí\",'Base-datos'!$B$721=\"\",'Base-datos'!$B$722=\"\"),IF('Instituciones-crédito'!J51=\"La actividad sí contribuye sustancialmente a la sostenibilidad\",SUM('Instituciones-crédito'!B51:H51),0),IF(AND('Base-datos'!$B$720=\"Sí\",'Base-datos'!$B$721=\"Sí\",'Base-datos'!$B$722=\"\"),IF(AND('Instituciones-crédito'!J51=\"La actividad sí contribuye sustancialmente a la sostenibilidad\",'Instituciones-crédito'!K51=\"La actividad sí contribuye sustancialmente a la sostenibilidad\"),SUM('Instituciones-crédito'!B51:H51),0),IF(AND('Base-datos'!$B$720=\"Sí\",'Base-datos'!$B$721=\"Sí\",'Base-datos'!$B$722=\"Sí\"),IF(AND('Instituciones-crédito'!J51=\"La actividad sí contribuye sustancialmente a la sostenibilidad\",'Instituciones-crédito'!K51=\"La actividad sí contribuye sustancialmente a la sostenibilidad\",'Instituciones-crédito'!I51=\"La actividad sí contribuye sustancialmente a la sostenibilidad\"),SUM('Instituciones-crédito'!B51:H51),0),IF(AND('Base-datos'!$B$720=\"\",'Base-datos'!$B$721=\"Sí\",'Base-datos'!$B$722=\"\"),IF('Instituciones-crédito'!K51=\"La actividad sí contribuye sustancialmente a la sostenibilidad\",SUM('Instituciones-crédito'!B51:H51),0),IF(AND('Base-datos'!$B$720=\"\",'Base-datos'!$B$721=\"\",'Base-datos'!$B$722=\"Sí\"),IF('Instituciones-crédito'!I51=\"La actividad sí contribuye sustancialmente a la sostenibilidad\",SUM('Instituciones-crédito'!B51:H51),0),IF(AND('Base-datos'!$B$720=\"\",'Base-datos'!$B$721=\"Sí\",'Base-datos'!$B$722=\"Sí\"),IF(AND('Instituciones-crédito'!K51=\"La actividad sí contribuye sustancialmente a la sostenibilidad\",'Instituciones-crédito'!I51=\"La actividad sí contribuye sustancialmente a la sostenibilidad\"),SUM('Instituciones-crédito'!B51:H51),0),IF(AND('Base-datos'!$B$720=\"Sí\",'Base-datos'!$B$721=\"\",'Base-datos'!$B$722=\"Sí\"),IF(AND('Instituciones-crédito'!J51=\"La actividad sí contribuye sustancialmente a la sostenibilidad\",'Instituciones-crédito'!I51=\"La actividad sí contribuye sustancialmente a la sostenibilidad\"),SUM('Instituciones-crédito'!B51:H51),0),\"Por definir\"))))))))","v":"Por definir"}]
[{"$f":"Forestal!$C44","v":"Seleccione"},{"$f":"IF(Forestal!$E44='Instituciones-crédito'!B$12,Forestal!$B44,\"\")","v":""},{"$f":"IF(Forestal!$E44='Instituciones-crédito'!C$12,Forestal!$B44,\"\")","v":""},{"$f":"IF(Forestal!$E44='Instituciones-crédito'!D$12,Forestal!$B44,\"\")","v":""},{"$f":"IF(Forestal!$E44='Instituciones-crédito'!E$12,Forestal!$B44,\"\")","v":""},{"$f":"IF(Forestal!$E44='Instituciones-crédito'!F$12,Forestal!$B44,\"\")","v":""},{"$f":"IF(Forestal!$E44='Instituciones-crédito'!G$12,Forestal!$B44,\"\")","v":""},{"$f":"IF(Forestal!$E44='Instituciones-crédito'!H$12,Forestal!$B44,\"\")","v":""},{"$f":"_xlfn.XLOOKUP(A52,'Base-datos'!$B$517:$B$520,'Base-datos'!$F$517:$F$520)","v":{"$error":"#N/A"}},{"$f":"_xlfn.XLOOKUP(A52,'Base-datos'!$B$517:$B$520,'Base-datos'!$C$517:$C$520)","v":{"$error":"#N/A"}},{"$f":"_xlfn.XLOOKUP(A52,'Base-datos'!$B$517:$B$520,'Base-datos'!$D$517:$D$520)","v":{"$error":"#N/A"}},null,null,{"$f":"IF(OR($L$35=\"La actividad no cumple con el total de los criterios de No Daño Significativo\",$M$35=\"El sector no cumple con las salvaguardas mínimas\"),\"\",IF(AND('Base-datos'!$B$720=\"Sí\",'Base-datos'!$B$721=\"\",'Base-datos'!$B$722=\"\"),IF('Instituciones-crédito'!J52=\"La actividad sí contribuye sustancialmente a la sostenibilidad\",SUM('Instituciones-crédito'!B52:H52),0),IF(AND('Base-datos'!$B$720=\"Sí\",'Base-datos'!$B$721=\"Sí\",'Base-datos'!$B$722=\"\"),IF(AND('Instituciones-crédito'!J52=\"La actividad sí contribuye sustancialmente a la sostenibilidad\",'Instituciones-crédito'!K52=\"La actividad sí contribuye sustancialmente a la sostenibilidad\"),SUM('Instituciones-crédito'!B52:H52),0),IF(AND('Base-datos'!$B$720=\"Sí\",'Base-datos'!$B$721=\"Sí\",'Base-datos'!$B$722=\"Sí\"),IF(AND('Instituciones-crédito'!J52=\"La actividad sí contribuye sustancialmente a la sostenibilidad\",'Instituciones-crédito'!K52=\"La actividad sí contribuye sustancialmente a la sostenibilidad\",'Instituciones-crédito'!I52=\"La actividad sí contribuye sustancialmente a la sostenibilidad\"),SUM('Instituciones-crédito'!B52:H52),0),IF(AND('Base-datos'!$B$720=\"\",'Base-datos'!$B$721=\"Sí\",'Base-datos'!$B$722=\"\"),IF('Instituciones-crédito'!K52=\"La actividad sí contribuye sustancialmente a la sostenibilidad\",SUM('Instituciones-crédito'!B52:H52),0),IF(AND('Base-datos'!$B$720=\"\",'Base-datos'!$B$721=\"\",'Base-datos'!$B$722=\"Sí\"),IF('Instituciones-crédito'!I52=\"La actividad sí contribuye sustancialmente a la sostenibilidad\",SUM('Instituciones-crédito'!B52:H52),0),IF(AND('Base-datos'!$B$720=\"\",'Base-datos'!$B$721=\"Sí\",'Base-datos'!$B$722=\"Sí\"),IF(AND('Instituciones-crédito'!K52=\"La actividad sí contribuye sustancialmente a la sostenibilidad\",'Instituciones-crédito'!I52=\"La actividad sí contribuye sustancialmente a la sostenibilidad\"),SUM('Instituciones-crédito'!B52:H52),0),IF(AND('Base-datos'!$B$720=\"Sí\",'Base-datos'!$B$721=\"\",'Base-datos'!$B$722=\"Sí\"),IF(AND('Instituciones-crédito'!J52=\"La actividad sí contribuye sustancialmente a la sostenibilidad\",'Instituciones-crédito'!I52=\"La actividad sí contribuye sustancialmente a la sostenibilidad\"),SUM('Instituciones-crédito'!B52:H52),0),\"Por definir\"))))))))","v":"Por definir"}]
[{"$f":"Forestal!$C46","v":"Seleccione"},{"$f":"IF(Forestal!$E46='Instituciones-crédito'!B$12,Forestal!$B46,\"\")","v":""},{"$f":"IF(Forestal!$E46='Instituciones-crédito'!C$12,Forestal!$B46,\"\")","v":""},{"$f":"IF(Forestal!$E46='Instituciones-crédito'!D$12,Forestal!$B46,\"\")","v":""},{"$f":"IF(Forestal!$E46='Instituciones-crédito'!E$12,Forestal!$B46,\"\")","v":""},{"$f":"IF(Forestal!$E46='Instituciones-crédito'!F$12,Forestal!$B46,\"\")","v":""},{"$f":"IF(Forestal!$E46='Instituciones-crédito'!G$12,Forestal!$B46,\"\")","v":""},{"$f":"IF(Forestal!$E46='Instituciones-crédito'!H$12,Forestal!$B46,\"\")","v":""},{"$f":"_xlfn.XLOOKUP(A53,'Base-datos'!$B$517:$B$520,'Base-datos'!$F$517:$F$520)","v":{"$error":"#N/A"}},{"$f":"_xlfn.XLOOKUP(A53,'Base-datos'!$B$517:$B$520,'Base-datos'!$C$517:$C$520)","v":{"$error":"#N/A"}},{"$f":"_xlfn.XLOOKUP(A53,'Base-datos'!$B$517:$B$520,'Base-datos'!$D$517:$D$520)","v":{"$error":"#N/A"}},null,null,{"$f":"IF(OR($L$35=\"La actividad no cumple con el total de los criterios de No Daño Significativo\",$M$35=\"El sector no cumple con las salvaguardas mínimas\"),\"\",IF(AND('Base-datos'!$B$720=\"Sí\",'Base-datos'!$B$721=\"\",'Base-datos'!$B$722=\"\"),IF('Instituciones-crédito'!J53=\"La actividad sí contribuye sustancialmente a la sostenibilidad\",SUM('Instituciones-crédito'!B53:H53),0),IF(AND('Base-datos'!$B$720=\"Sí\",'Base-datos'!$B$721=\"Sí\",'Base-datos'!$B$722=\"\"),IF(AND('Instituciones-crédito'!J53=\"La actividad sí contribuye sustancialmente a la sostenibilidad\",'Instituciones-crédito'!K53=\"La actividad sí contribuye sustancialmente a la sostenibilidad\"),SUM('Instituciones-crédito'!B53:H53),0),IF(AND('Base-datos'!$B$720=\"Sí\",'Base-datos'!$B$721=\"Sí\",'Base-datos'!$B$722=\"Sí\"),IF(AND('Instituciones-crédito'!J53=\"La actividad sí contribuye sustancialmente a la sostenibilidad\",'Instituciones-crédito'!K53=\"La actividad sí contribuye sustancialmente a la sostenibilidad\",'Instituciones-crédito'!I53=\"La actividad sí contribuye sustancialmente a la sostenibilidad\"),SUM('Instituciones-crédito'!B53:H53),0),IF(AND('Base-datos'!$B$720=\"\",'Base-datos'!$B$721=\"Sí\",'Base-datos'!$B$722=\"\"),IF('Instituciones-crédito'!K53=\"La actividad sí contribuye sustancialmente a la sostenibilidad\",SUM('Instituciones-crédito'!B53:H53),0),IF(AND('Base-datos'!$B$720=\"\",'Base-datos'!$B$721=\"\",'Base-datos'!$B$722=\"Sí\"),IF('Instituciones-crédito'!I53=\"La actividad sí contribuye sustancialmente a la sostenibilidad\",SUM('Instituciones-crédito'!B53:H53),0),IF(AND('Base-datos'!$B$720=\"\",'Base-datos'!$B$721=\"Sí\",'Base-datos'!$B$722=\"Sí\"),IF(AND('Instituciones-crédito'!K53=\"La actividad sí contribuye sustancialmente a la sostenibilidad\",'Instituciones-crédito'!I53=\"La actividad sí contribuye sustancialmente a la sostenibilidad\"),SUM('Instituciones-crédito'!B53:H53),0),IF(AND('Base-datos'!$B$720=\"Sí\",'Base-datos'!$B$721=\"\",'Base-datos'!$B$722=\"Sí\"),IF(AND('Instituciones-crédito'!J53=\"La actividad sí contribuye sustancialmente a la sostenibilidad\",'Instituciones-crédito'!I53=\"La actividad sí contribuye sustancialmente a la sostenibilidad\"),SUM('Instituciones-crédito'!B53:H53),0),\"Por definir\"))))))))","v":"Por definir"}]
[{"$f":"Forestal!$C48","v":"Seleccione"},{"$f":"IF(Forestal!$E48='Instituciones-crédito'!B$12,Forestal!$B48,\"\")","v":""},{"$f":"IF(Forestal!$E48='Instituciones-crédito'!C$12,Forestal!$B48,\"\")","v":""},{"$f":"IF(Forestal!$E48='Instituciones-crédito'!D$12,Forestal!$B48,\"\")","v":""},{"$f":"IF(Forestal!$E48='Instituciones-crédito'!E$12,Forestal!$B48,\"\")","v":""},{"$f":"IF(Forestal!$E48='Instituciones-crédito'!F$12,Forestal!$B48,\"\")","v":""},{"$f":"IF(Forestal!$E48='Instituciones-crédito'!G$12,Forestal!$B48,\"\")","v":""},{"$f":"IF(Forestal!$E48='Instituciones-crédito'!H$12,Forestal!$B48,\"\")","v":""},{"$f":"_xlfn.XLOOKUP(A54,'Base-datos'!$B$517:$B$520,'Base-datos'!$F$517:$F$520)","v":{"$error":"#N/A"}},{"$f":"_xlfn.XLOOKUP(A54,'Base-datos'!$B$517:$B$520,'Base-datos'!$C$517:$C$520)","v":{"$error":"#N/A"}},{"$f":"_xlfn.XLOOKUP(A54,'Base-datos'!$B$517:$B$520,'Base-datos'!$D$517:$D$520)","v":{"$error":"#N/A"}},null,null,{"$f":"IF(OR($L$35=\"La actividad no cumple con el total de los criterios de No Daño Significativo\",$M$35=\"El sector no cumple con las salvaguardas mínimas\"),\"\",IF(AND('Base-datos'!$B$720=\"Sí\",'Base-datos'!$B$721=\"\",'Base-datos'!$B$722=\"\"),IF('Instituciones-crédito'!J54=\"La actividad sí contribuye sustancialmente a la sostenibilidad\",SUM('Instituciones-crédito'!B54:H54),0),IF(AND('Base-datos'!$B$720=\"Sí\",'Base-datos'!$B$721=\"Sí\",'Base-datos'!$B$722=\"\"),IF(AND('Instituciones-crédito'!J54=\"La actividad sí contribuye sustancialmente a la sostenibilidad\",'Instituciones-crédito'!K54=\"La actividad sí contribuye sustancialmente a la sostenibilidad\"),SUM('Instituciones-crédito'!B54:H54),0),IF(AND('Base-datos'!$B$720=\"Sí\",'Base-datos'!$B$721=\"Sí\",'Base-datos'!$B$722=\"Sí\"),IF(AND('Instituciones-crédito'!J54=\"La actividad sí contribuye sustancialmente a la sostenibilidad\",'Instituciones-crédito'!K54=\"La actividad sí contribuye sustancialmente a la sostenibilidad\",'Instituciones-crédito'!I54=\"La actividad sí contribuye sustancialmente a la sostenibilidad\"),SUM('Instituciones-crédito'!B54:H54),0),IF(AND('Base-datos'!$B$720=\"\",'Base-datos'!$B$721=\"Sí\",'Base-datos'!$B$722=\"\"),IF('Instituciones-crédito'!K54=\"La actividad sí contribuye sustancialmente a la sostenibilidad\",SUM('Instituciones-crédito'!B54:H54),0),IF(AND('Base-datos'!$B$720=\"\",'Base-datos'!$B$721=\"\",'Base-datos'!$B$722=\"Sí\"),IF('Instituciones-crédito'!I54=\"La actividad sí contribuye sustancialmente a la sostenibilidad\",SUM('Instituciones-crédito'!B54:H54),0),IF(AND('Base-datos'!$B$720=\"\",'Base-datos'!$B$721=\"Sí\",'Base-datos'!$B$722=\"Sí\"),IF(AND('Instituciones-crédito'!K54=\"La actividad sí contribuye sustancialmente a la sostenibilidad\",'Instituciones-crédito'!I54=\"La actividad sí contribuye sustancialmente a la sostenibilidad\"),SUM('Instituciones-crédito'!B54:H54),0),IF(AND('Base-datos'!$B$720=\"Sí\",'Base-datos'!$B$721=\"\",'Base-datos'!$B$722=\"Sí\"),IF(AND('Instituciones-crédito'!J54=\"La actividad sí contribuye sustancialmente a la sostenibilidad\",'Instituciones-crédito'!I54=\"La actividad sí contribuye sustancialmente a la sostenibilidad\"),SUM('Instituciones-crédito'!B54:H54),0),\"Por definir\"))))))))","v":"Por definir"}]
["Ganadería",null,null,null,null,null,null,null,null,null,null,null,null,{"$f":"SUM(IF(FREQUENCY(MATCH(A56:A75, A56:A75, 0), MATCH(A56:A75, A56:A75, 0)) > 0, IF(NOT(ISERROR(N56:N75)), N56:N75, 0)))","v":0}]
[{"$f":"Ganadería!$C10","v":"Seleccione"},{"$f":"IF(Ganadería!$E10='Instituciones-crédito'!B$12,Ganadería!$B10,\"\")","v":""},{"$f":"IF(Ganadería!$E10='Instituciones-crédito'!C$12,Ganadería!$B10,\"\")","v":""},{"$f":"IF(Ganadería!$E10='Instituciones-crédito'!D$12,Ganadería!$B10,\"\")","v":""},{"$f":"IF(Ganadería!$E10='Instituciones-crédito'!E$12,Ganadería!$B10,\"\")","v":""},{"$f":"IF(Ganadería!$E10='Instituciones-crédito'!F$12,Ganadería!$B10,\"\")","v":""},{"$f":"IF(Ganadería!$E10='Instituciones-crédito'!G$12,Ganadería!$B10,\"\")","v":""},{"$f":"IF(Ganadería!$E10='Instituciones-crédito'!H$12,Ganadería!$B10,\"\")","v":""},{"$f":"_xlfn.XLOOKUP(A56,'Base-datos'!$B$510:$B$516,'Base-datos'!$F$510:$F$516)","v":{"$error":"#N/A"}},{"$f":"_xlfn.XLOOKUP(A56,'Base-datos'!$B$510:$B$516,'Base-datos'!$C$510:$C$516)","v":{"$error":"#N/A"}},{"$f":"_xlfn.XLOOKUP(A56,'Base-datos'!$B$510:$B$516,'Base-datos'!$D$510:$D$516)","v":{"$error":"#N/A"}},{"$f":"IF(COUNTIF('Ganadería-NDS'!G9:G59,\"No\")>0,\"La actividad no cumple con el total de los criterios de NDS\",\"La actividad cumple con los criterios de No Daño Significativo\")","v":"La actividad cumple con los criterios de No Daño Significativo"},{"$f":"IF(OR('Salvaguardas mínimas'!$G$10=\"Seleccione\",'Salvaguardas mínimas'!$G$13=\"Seleccione\",'Salvaguardas mínimas'!$G$16=\"Seleccione\",'Salvaguardas mínimas'!$G$7=\"Seleccione\"),\"No se han respondido todas las preguntas\",IF(OR('Salvaguardas mínimas'!$G$10=\"No\",'Salvaguardas mínimas'!$G$13=\"No\",'Salvaguardas mínimas'!$G$16=\"No\",'Salvaguardas mínimas'!$G$7=\"No\"),\"El sector no cumple con las salvaguardas mínimas\",\"La actividad sí cumple con las salvaguardas mínimas\"))","v":"No se han respondido todas las preguntas"},{"$f":"IF(OR($L$56=\"La actividad no cumple con el total de los criterios de No Daño Significativo\",$M$56=\"El sector no cumple con las salvaguardas mínimas\"),\"\",IF(AND('Base-datos'!$B$725=\"Sí\",'Base-datos'!$B$726=\"\",'Base-datos'!$B$727=\"\"),IF('Instituciones-crédito'!J56=\"La actividad sí contribuye sustancialmente a la sostenibilidad\",SUM('Instituciones-crédito'!B56:H56),0),IF(AND('Base-datos'!$B$725=\"Sí\",'Base-datos'!$B$726=\"Sí\",'Base-datos'!$B$727=\"\"),IF(AND('Instituciones-crédito'!J56=\"La actividad sí contribuye sustancialmente a la sostenibilidad\",'Instituciones-crédito'!K56=\"La actividad sí contribuye sustancialmente a la sostenibilidad\"),SUM('Instituciones-crédito'!B56:H56),0),IF(AND('Base-datos'!$B$725=\"Sí\",'Base-datos'!$B$726=\"Sí\",'Base-datos'!$B$727=\"Sí\"),IF(AND('Instituciones-crédito'!J56=\"La actividad sí contribuye sustancialmente a la sostenibilidad\",'Instituciones-crédito'!K56=\"La actividad sí contribuye sustancialmente a la sostenibilidad\",'Instituciones-crédito'!I56=\"La actividad sí contribuye sustancialmente a la sostenibilidad\"),SUM('Instituciones-crédito'!B56:H56),0),IF(AND('Base-datos'!$B$725=\"\",'Base-datos'!$B$726=\"Sí\",'Base-datos'!$B$727=\"\"),IF('Instituciones-crédito'!K56=\"La actividad sí contribuye sustancialmente a la sostenibilidad\",SUM('Instituciones-crédito'!B56:H56),0),IF(AND('Base-datos'!$B$725=\"\",'Base-datos'!$B$726=\"\",'Base-datos'!$B$727=\"Sí\"),IF('Instituciones-crédito'!I56=\"La actividad sí contribuye sustancialmente a la sostenibilidad\",SUM('Instituciones-crédito'!B56:H56),0),IF(AND('Base-datos'!$B$725=\"\",'Base-datos'!$B$726=\"Sí\",'Base-datos'!$B$727=\"Sí\"),IF(AND('Instituciones-crédito'!K56=\"La actividad sí contribuye sustancialmente a la sostenibilidad\",'Instituciones-crédito'!I56=\"La actividad sí contribuye sustancialmente a la sostenibilidad\"),SUM('Instituciones-crédito'!B56:H56),0),IF(AND('Base-datos'!$B$725=\"Sí\",'Base-datos'!$B$726=\"\",'Base-datos'!$B$727=\"Sí\"),IF(AND('Instituciones-crédito'!J56=\"La actividad sí contribuye sustancialmente a la sostenibilidad\",'Instituciones-crédito'!I56=\"La actividad sí contribuye sustancialmente a la sostenibilidad\"),SUM('Instituciones-crédito'!B56:H56),0),\"Por definir\"))))))))","v":"Por definir"}]
[{"$f":"Ganadería!$C12","v":"Seleccione"},{"$f":"IF(Ganadería!$E12='Instituciones-crédito'!B$12,Ganadería!$B12,\"\")","v":""},{"$f":"IF(Ganadería!$E12='Instituciones-crédito'!C$12,Ganadería!$B12,\"\")","v":""},{"$f":"IF(Ganadería!$E12='Instituciones-crédito'!D$12,Ganadería!$B12,\"\")","v":""},{"$f":"IF(Ganadería!$E12='Instituciones-crédito'!E$12,Ganadería!$B12,\"\")","v":""},{"$f":"IF(Ganadería!$E12='Instituciones-crédito'!F$12,Ganadería!$B12,\"\")","v":""},{"$f":"IF(Ganadería!$E12='Instituciones-crédito'!G$12,Ganadería!$B12,\"\")","v":""},{"$f":"IF(Ganadería!$E12='Instituciones-crédito'!H$12,Ganadería!$B12,\"\")","v":""},{"$f":"_xlfn.XLOOKUP(A57,'Base-datos'!$B$510:$B$516,'Base-datos'!$F$510:$F$516)","v":{"$error":"#N/A"}},{"$f":"_xlfn.XLOOKUP(A57,'Base-datos'!$B$510:$B$516,'Base-datos'!$C$510:$C$516)","v":{"$error":"#N/A"}},{"$f":"_xlfn.XLOOKUP(A57,'Base-datos'!$B$510:$B$516,'Base-datos'!$D$510:$D$516)","v":{"$error":"#N/A"}},null,null,{"$f":"IF(OR($L$56=\"La actividad no cumple con el total de los criterios de No Daño Significativo\",$M$56=\"El sector no cumple con las salvaguardas mínimas\"),\"\",IF(AND('Base-datos'!$B$725=\"Sí\",'Base-datos'!$B$726=\"\",'Base-datos'!$B$727=\"\"),IF('Instituciones-crédito'!J57=\"La actividad sí contribuye sustancialmente a la sostenibilidad\",SUM('Instituciones-crédito'!B57:H57),0),IF(AND('Base-datos'!$B$725=\"Sí\",'Base-datos'!$B$726=\"Sí\",'Base-datos'!$B$727=\"\"),IF(AND('Instituciones-crédito'!J57=\"La actividad sí contribuye sustancialmente a la sostenibilidad\",'Instituciones-crédito'!K57=\"La actividad sí contribuye sustancialmente a la sostenibilidad\"),SUM('Instituciones-crédito'!B57:H57),0),IF(AND('Base-datos'!$B$725=\"Sí\",'Base-datos'!$B$726=\"Sí\",'Base-datos'!$B$727=\"Sí\"),IF(AND('Instituciones-crédito'!J57=\"La actividad sí contribuye sustancialmente a la sostenibilidad\",'Instituciones-crédito'!K57=\"La actividad sí contribuye sustancialmente a la sostenibilidad\",'Instituciones-crédito'!I57=\"La actividad sí contribuye sustancialmente a la sostenibilidad\"),SUM('Instituciones-crédito'!B57:H57),0),IF(AND('Base-datos'!$B$725=\"\",'Base-datos'!$B$726=\"Sí\",'Base-datos'!$B$727=\"\"),IF('Instituciones-crédito'!K57=\"La actividad sí contribuye sustancialmente a la sostenibilidad\",SUM('Instituciones-crédito'!B57:H57),0),IF(AND('Base-datos'!$B$725=\"\",'Base-datos'!$B$726=\"\",'Base-datos'!$B$727=\"Sí\"),IF('Instituciones-crédito'!I57=\"La actividad sí contribuye sustancialmente a la sostenibilidad\",SUM('Instituciones-crédito'!B57:H57),0),IF(AND('Base-datos'!$B$725=\"\",'Base-datos'!$B$726=\"Sí\",'Base-datos'!$B$727=\"Sí\"),IF(AND('Instituciones-crédito'!K57=\"La actividad sí contribuye sustancialmente a la sostenibilidad\",'Instituciones-crédito'!I57=\"La actividad sí contribuye sustancialmente a la sostenibilidad\"),SUM('Instituciones-crédito'!B57:H57),0),IF(AND('Base-datos'!$B$725=\"Sí\",'Base-datos'!$B$726=\"\",'Base-datos'!$B$727=\"Sí\"),IF(AND('Instituciones-crédito'!J57=\"La actividad sí contribuye sustancialmente a la sostenibilidad\",'Instituciones-crédito'!I57=\"La actividad sí contribuye sustancialmente a la sostenibilidad\"),SUM('Instituciones-crédito'!B57:H57),0),\"Por definir\"))))))))","v":"Por definir"}]
[{"$f":"Ganadería!$C14","v":"Seleccione"},{"$f":"IF(Ganadería!$E14='Instituciones-crédito'!B$12,Ganadería!$B14,\"\")","v":""},{"$f":"IF(Ganadería!$E14='Instituciones-crédito'!C$12,Ganadería!$B14,\"\")","v":""},{"$f":"IF(Ganadería!$E14='Instituciones-crédito'!D$12,Ganadería!$B14,\"\")","v":""},{"$f":"IF(Ganadería!$E14='Instituciones-crédito'!E$12,Ganadería!$B14,\"\")","v":""},{"$f":"IF(Ganadería!$E14='Instituciones-crédito'!F$12,Ganadería!$B14,\"\")","v":""},{"$f":"IF(Ganadería!$E14='Instituciones-crédito'!G$12,Ganadería!$B14,\"\")","v":""},{"$f":"IF(Ganadería!$E14='Instituciones-crédito'!H$12,Ganadería!$B14,\"\")","v":""},{"$f":"_xlfn.XLOOKUP(A58,'Base-datos'!$B$510:$B$516,'Base-datos'!$F$510:$F$516)","v":{"$error":"#N/A"}},{"$f":"_xlfn.XLOOKUP(A58,'Base-datos'!$B$510:$B$516,'Base-datos'!$C$510:$C$516)","v":{"$error":"#N/A"}},{"$f":"_xlfn.XLOOKUP(A58,'Base-datos'!$B$510:$B$516,'Base-datos'!$D$510:$D$516)","v":{"$error":"#N/A"}},null,null,{"$f":"IF(OR($L$56=\"La actividad no cumple con el total de los criterios de No Daño Significativo\",$M$56=\"El sector no cumple con las salvaguardas mínimas\"),\"\",IF(AND('Base-datos'!$B$725=\"Sí\",'Base-datos'!$B$726=\"\",'Base-datos'!$B$727=\"\"),IF('Instituciones-crédito'!J58=\"La actividad sí contribuye sustancialmente a la sostenibilidad\",SUM('Instituciones-crédito'!B58:H58),0),IF(AND('Base-datos'!$B$725=\"Sí\",'Base-datos'!$B$726=\"Sí\",'Base-datos'!$B$727=\"\"),IF(AND('Instituciones-crédito'!J58=\"La actividad sí contribuye sustancialmente a la sostenibilidad\",'Instituciones-crédito'!K58=\"La actividad sí contribuye sustancialmente a la sostenibilidad\"),SUM('Instituciones-crédito'!B58:H58),0),IF(AND('Base-datos'!$B$725=\"Sí\",'Base-datos'!$B$726=\"Sí\",'Base-datos'!$B$727=\"Sí\"),IF(AND('Instituciones-crédito'!J58=\"La actividad sí contribuye sustancialmente a la sostenibilidad\",'Instituciones-crédito'!K58=\"La actividad sí contribuye sustancialmente a la sostenibilidad\",'Instituciones-crédito'!I58=\"La actividad sí contribuye sustancialmente a la sostenibilidad\"),SUM('Instituciones-crédito'!B58:H58),0),IF(AND('Base-datos'!$B$725=\"\",'Base-datos'!$B$726=\"Sí\",'Base-datos'!$B$727=\"\"),IF('Instituciones-crédito'!K58=\"La actividad sí contribuye sustancialmente a la sostenibilidad\",SUM('Instituciones-crédito'!B58:H58),0),IF(AND('Base-datos'!$B$725=\"\",'Base-datos'!$B$726=\"\",'Base-datos'!$B$727=\"Sí\"),IF('Instituciones-crédito'!I58=\"La actividad sí contribuye sustancialmente a la sostenibilidad\",SUM('Instituciones-crédito'!B58:H58),0),IF(AND('Base-datos'!$B$725=\"\",'Base-datos'!$B$726=\"Sí\",'Base-datos'!$B$727=\"Sí\"),IF(AND('Instituciones-crédito'!K58=\"La actividad sí contribuye sustancialmente a la sostenibilidad\",'Instituciones-crédito'!I58=\"La actividad sí contribuye sustancialmente a la sostenibilidad\"),SUM('Instituciones-crédito'!B58:H58),0),IF(AND('Base-datos'!$B$725=\"Sí\",'Base-datos'!$B$726=\"\",'Base-datos'!$B$727=\"Sí\"),IF(AND('Instituciones-crédito'!J58=\"La actividad sí contribuye sustancialmente a la sostenibilidad\",'Instituciones-crédito'!I58=\"La actividad sí contribuye sustancialmente a la sostenibilidad\"),SUM('Instituciones-crédito'!B58:H58),0),\"Por definir\"))))))))","v":"Por definir"}]
[{"$f":"Ganadería!$C16","v":"Seleccione"},{"$f":"IF(Ganadería!$E16='Instituciones-crédito'!B$12,Ganadería!$B16,\"\")","v":""},{"$f":"IF(Ganadería!$E16='Instituciones-crédito'!C$12,Ganadería!$B16,\"\")","v":""},{"$f":"IF(Ganadería!$E16='Instituciones-crédito'!D$12,Ganadería!$B16,\"\")","v":""},{"$f":"IF(Ganadería!$E16='Instituciones-crédito'!E$12,Ganadería!$B16,\"\")","v":""},{"$f":"IF(Ganadería!$E16='Instituciones-crédito'!F$12,Ganadería!$B16,\"\")","v":""},{"$f":"IF(Ganadería!$E16='Instituciones-crédito'!G$12,Ganadería!$B16,\"\")","v":""},{"$f":"IF(Ganadería!$E16='Instituciones-crédito'!H$12,Ganadería!$B16,\"\")","v":""},{"$f":"_xlfn.XLOOKUP(A59,'Base-datos'!$B$510:$B$516,'Base-datos'!$F$510:$F$516)","v":{"$error":"#N/A"}},{"$f":"_xlfn.XLOOKUP(A59,'Base-datos'!$B$510:$B$516,'Base-datos'!$C$510:$C$516)","v":{"$error":"#N/A"}},{"$f":"_xlfn.XLOOKUP(A59,'Base-datos'!$B$510:$B$516,'Base-datos'!$D$510:$D$516)","v":{"$error":"#N/A"}},null,null,{"$f":"IF(OR($L$56=\"La actividad no cumple con el total de los criterios de No Daño Significativo\",$M$56=\"El sector no cumple con las salvaguardas mínimas\"),\"\",IF(AND('Base-datos'!$B$725=\"Sí\",'Base-datos'!$B$726=\"\",'Base-datos'!$B$727=\"\"),IF('Instituciones-crédito'!J59=\"La actividad sí contribuye sustancialmente a la sostenibilidad\",SUM('Instituciones-crédito'!B59:H59),0),IF(AND('Base-datos'!$B$725=\"Sí\",'Base-datos'!$B$726=\"Sí\",'Base-datos'!$B$727=\"\"),IF(AND('Instituciones-crédito'!J59=\"La actividad sí contribuye sustancialmente a la sostenibilidad\",'Instituciones-crédito'!K59=\"La actividad sí contribuye sustancialmente a la sostenibilidad\"),SUM('Instituciones-crédito'!B59:H59),0),IF(AND('Base-datos'!$B$725=\"Sí\",'Base-datos'!$B$726=\"Sí\",'Base-datos'!$B$727=\"Sí\"),IF(AND('Instituciones-crédito'!J59=\"La actividad sí contribuye sustancialmente a la sostenibilidad\",'Instituciones-crédito'!K59=\"La actividad sí contribuye sustancialmente a la sostenibilidad\",'Instituciones-crédito'!I59=\"La actividad sí contribuye sustancialmente a la sostenibilidad\"),SUM('Instituciones-crédito'!B59:H59),0),IF(AND('Base-datos'!$B$725=\"\",'Base-datos'!$B$726=\"Sí\",'Base-datos'!$B$727=\"\"),IF('Instituciones-crédito'!K59=\"La actividad sí contribuye sustancialmente a la sostenibilidad\",SUM('Instituciones-crédito'!B59:H59),0),IF(AND('Base-datos'!$B$725=\"\",'Base-datos'!$B$726=\"\",'Base-datos'!$B$727=\"Sí\"),IF('Instituciones-crédito'!I59=\"La actividad sí contribuye sustancialmente a la sostenibilidad\",SUM('Instituciones-crédito'!B59:H59),0),IF(AND('Base-datos'!$B$725=\"\",'Base-datos'!$B$726=\"Sí\",'Base-datos'!$B$727=\"Sí\"),IF(AND('Instituciones-crédito'!K59=\"La actividad sí contribuye sustancialmente a la sostenibilidad\",'Instituciones-crédito'!I59=\"La actividad sí contribuye sustancialmente a la sostenibilidad\"),SUM('Instituciones-crédito'!B59:H59),0),IF(AND('Base-datos'!$B$725=\"Sí\",'Base-datos'!$B$726=\"\",'Base-datos'!$B$727=\"Sí\"),IF(AND('Instituciones-crédito'!J59=\"La actividad sí contribuye sustancialmente a la sostenibilidad\",'Instituciones-crédito'!I59=\"La actividad sí contribuye sustancialmente a la sostenibilidad\"),SUM('Instituciones-crédito'!B59:H59),0),\"Por definir\"))))))))","v":"Por definir"}]
[{"$f":"Ganadería!$C18","v":"Seleccione"},{"$f":"IF(Ganadería!$E18='Instituciones-crédito'!B$12,Ganadería!$B18,\"\")","v":""},{"$f":"IF(Ganadería!$E18='Instituciones-crédito'!C$12,Ganadería!$B18,\"\")","v":""},{"$f":"IF(Ganadería!$E18='Instituciones-crédito'!D$12,Ganadería!$B18,\"\")","v":""},{"$f":"IF(Ganadería!$E18='Instituciones-crédito'!E$12,Ganadería!$B18,\"\")","v":""},{"$f":"IF(Ganadería!$E18='Instituciones-crédito'!F$12,Ganadería!$B18,\"\")","v":""},{"$f":"IF(Ganadería!$E18='Instituciones-crédito'!G$12,Ganadería!$B18,\"\")","v":""},{"$f":"IF(Ganadería!$E18='Instituciones-crédito'!H$12,Ganadería!$B18,\"\")","v":""},{"$f":"_xlfn.XLOOKUP(A60,'Base-datos'!$B$510:$B$516,'Base-datos'!$F$510:$F$516)","v":{"$error":"#N/A"}},{"$f":"_xlfn.XLOOKUP(A60,'Base-datos'!$B$510:$B$516,'Base-datos'!$C$510:$C$516)","v":{"$error":"#N/A"}},{"$f":"_xlfn.XLOOKUP(A60,'Base-datos'!$B$510:$B$516,'Base-datos'!$D$510:$D$516)","v":{"$error":"#N/A"}},null,null,{"$f":"IF(OR($L$56=\"La actividad no cumple con el total de los criterios de No Daño Significativo\",$M$56=\"El sector no cumple con las salvaguardas mínimas\"),\"\",IF(AND('Base-datos'!$B$725=\"Sí\",'Base-datos'!$B$726=\"\",'Base-datos'!$B$727=\"\"),IF('Instituciones-crédito'!J60=\"La actividad sí contribuye sustancialmente a la sostenibilidad\",SUM('Instituciones-crédito'!B60:H60),0),IF(AND('Base-datos'!$B$725=\"Sí\",'Base-datos'!$B$726=\"Sí\",'Base-datos'!$B$727=\"\"),IF(AND('Instituciones-crédito'!J60=\"La actividad sí contribuye sustancialmente a la sostenibilidad\",'Instituciones-crédito'!K60=\"La actividad sí contribuye sustancialmente a la sostenibilidad\"),SUM('Instituciones-crédito'!B60:H60),0),IF(AND('Base-datos'!$B$725=\"Sí\",'Base-datos'!$B$726=\"Sí\",'Base-datos'!$B$727=\"Sí\"),IF(AND('Instituciones-crédito'!J60=\"La actividad sí contribuye sustancialmente a la sostenibilidad\",'Instituciones-crédito'!K60=\"La actividad sí contribuye sustancialmente a la sostenibilidad\",'Instituciones-crédito'!I60=\"La actividad sí contribuye sustancialmente a la sostenibilidad\"),SUM('Instituciones-crédito'!B60:H60),0),IF(AND('Base-datos'!$B$725=\"\",'Base-datos'!$B$726=\"Sí\",'Base-datos'!$B$727=\"\"),IF('Instituciones-crédito'!K60=\"La actividad sí contribuye sustancialmente a la sostenibilidad\",SUM('Instituciones-crédito'!B60:H60),0),IF(AND('Base-datos'!$B$725=\"\",'Base-datos'!$B$726=\"\",'Base-datos'!$B$727=\"Sí\"),IF('Instituciones-crédito'!I60=\"La actividad sí contribuye sustancialmente a la sostenibilidad\",SUM('Instituciones-crédito'!B60:H60),0),IF(AND('Base-datos'!$B$725=\"\",'Base-datos'!$B$726=\"Sí\",'Base-datos'!$B$727=\"Sí\"),IF(AND('Instituciones-crédito'!K60=\"La actividad sí contribuye sustancialmente a la sostenibilidad\",'Instituciones-crédito'!I60=\"La actividad sí contribuye sustancialmente a la sostenibilidad\"),SUM('Instituciones-crédito'!B60:H60),0),IF(AND('Base-datos'!$B$725=\"Sí\",'Base-datos'!$B$726=\"\",'Base-datos'!$B$727=\"Sí\"),IF(AND('Instituciones-crédito'!J60=\"La actividad sí contribuye sustancialmente a la sostenibilidad\",'Instituciones-crédito'!I60=\"La actividad sí contribuye sustancialmente a la sostenibilidad\"),SUM('Instituciones-crédito'!B60:H60),0),\"Por definir\"))))))))","v":"Por definir"}]
[{"$f":"Ganadería!$C20","v":"Seleccione"},{"$f":"IF(Ganadería!$E20='Instituciones-crédito'!B$12,Ganadería!$B20,\"\")","v":""},{"$f":"IF(Ganadería!$E20='Instituciones-crédito'!C$12,Ganadería!$B20,\"\")","v":""},{"$f":"IF(Ganadería!$E20='Instituciones-crédito'!D$12,Ganadería!$B20,\"\")","v":""},{"$f":"IF(Ganadería!$E20='Instituciones-crédito'!E$12,Ganadería!$B20,\"\")","v":""},{"$f":"IF(Ganadería!$E20='Instituciones-crédito'!F$12,Ganadería!$B20,\"\")","v":""},{"$f":"IF(Ganadería!$E20='Instituciones-crédito'!G$12,Ganadería!$B20,\"\")","v":""},{"$f":"IF(Ganadería!$E20='Instituciones-crédito'!H$12,Ganadería!$B20,\"\")","v":""},{"$f":"_xlfn.XLOOKUP(A61,'Base-datos'!$B$510:$B$516,'Base-datos'!$F$510:$F$516)","v":{"$error":"#N/A"}},{"$f":"_xlfn.XLOOKUP(A61,'Base-datos'!$B$510:$B$516,'Base-datos'!$C$510:$C$516)","v":{"$error":"#N/A"}},{"$f":"_xlfn.XLOOKUP(A61,'Base-datos'!$B$510:$B$516,'Base-datos'!$D$510:$D$516)","v":{"$error":"#N/A"}},null,null,{"$f":"IF(OR($L$56=\"La actividad no cumple con el total de los criterios de No Daño Significativo\",$M$56=\"El sector no cumple con las salvaguardas mínimas\"),\"\",IF(AND('Base-datos'!$B$725=\"Sí\",'Base-datos'!$B$726=\"\",'Base-datos'!$B$727=\"\"),IF('Instituciones-crédito'!J61=\"La actividad sí contribuye sustancialmente a la sostenibilidad\",SUM('Instituciones-crédito'!B61:H61),0),IF(AND('Base-datos'!$B$725=\"Sí\",'Base-datos'!$B$726=\"Sí\",'Base-datos'!$B$727=\"\"),IF(AND('Instituciones-crédito'!J61=\"La actividad sí contribuye sustancialmente a la sostenibilidad\",'Instituciones-crédito'!K61=\"La actividad sí contribuye sustancialmente a la sostenibilidad\"),SUM('Instituciones-crédito'!B61:H61),0),IF(AND('Base-datos'!$B$725=\"Sí\",'Base-datos'!$B$726=\"Sí\",'Base-datos'!$B$727=\"Sí\"),IF(AND('Instituciones-crédito'!J61=\"La actividad sí contribuye sustancialmente a la sostenibilidad\",'Instituciones-crédito'!K61=\"La actividad sí contribuye sustancialmente a la sostenibilidad\",'Instituciones-crédito'!I61=\"La actividad sí contribuye sustancialmente a la sostenibilidad\"),SUM('Instituciones-crédito'!B61:H61),0),IF(AND('Base-datos'!$B$725=\"\",'Base-datos'!$B$726=\"Sí\",'Base-datos'!$B$727=\"\"),IF('Instituciones-crédito'!K61=\"La actividad sí contribuye sustancialmente a la sostenibilidad\",SUM('Instituciones-crédito'!B61:H61),0),IF(AND('Base-datos'!$B$725=\"\",'Base-datos'!$B$726=\"\",'Base-datos'!$B$727=\"Sí\"),IF('Instituciones-crédito'!I61=\"La actividad sí contribuye sustancialmente a la sostenibilidad\",SUM('Instituciones-crédito'!B61:H61),0),IF(AND('Base-datos'!$B$725=\"\",'Base-datos'!$B$726=\"Sí\",'Base-datos'!$B$727=\"Sí\"),IF(AND('Instituciones-crédito'!K61=\"La actividad sí contribuye sustancialmente a la sostenibilidad\",'Instituciones-crédito'!I61=\"La actividad sí contribuye sustancialmente a la sostenibilidad\"),SUM('Instituciones-crédito'!B61:H61),0),IF(AND('Base-datos'!$B$725=\"Sí\",'Base-datos'!$B$726=\"\",'Base-datos'!$B$727=\"Sí\"),IF(AND('Instituciones-crédito'!J61=\"La actividad sí contribuye sustancialmente a la sostenibilidad\",'Instituciones-crédito'!I61=\"La actividad sí contribuye sustancialmente a la sostenibilidad\"),SUM('Instituciones-crédito'!B61:H61),0),\"Por definir\"))))))))","v":"Por definir"}]
[{"$f":"Ganadería!$C22","v":"Seleccione"},{"$f":"IF(Ganadería!$E22='Instituciones-crédito'!B$12,Ganadería!$B22,\"\")","v":""},{"$f":"IF(Ganadería!$E22='Instituciones-crédito'!C$12,Ganadería!$B22,\"\")","v":""},{"$f":"IF(Ganadería!$E22='Instituciones-crédito'!D$12,Ganadería!$B22,\"\")","v":""},{"$f":"IF(Ganadería!$E22='Instituciones-crédito'!E$12,Ganadería!$B22,\"\")","v":""},{"$f":"IF(Ganadería!$E22='Instituciones-crédito'!F$12,Ganadería!$B22,\"\")","v":""},{"$f":"IF(Ganadería!$E22='Instituciones-crédito'!G$12,Ganadería!$B22,\"\")","v":""},{"$f":"IF(Ganadería!$E22='Instituciones-crédito'!H$12,Ganadería!$B22,\"\")","v":""},{"$f":"_xlfn.XLOOKUP(A62,'Base-datos'!$B$510:$B$516,'Base-datos'!$F$510:$F$516)","v":{"$error":"#N/A"}},{"$f":"_xlfn.XLOOKUP(A62,'Base-datos'!$B$510:$B$516,'Base-datos'!$C$510:$C$516)","v":{"$error":"#N/A"}},{"$f":"_xlfn.XLOOKUP(A62,'Base-datos'!$B$510:$B$516,'Base-datos'!$D$510:$D$516)","v":{"$error":"#N/A"}},null,null,{"$f":"IF(OR($L$56=\"La actividad no cumple con el total de los criterios de No Daño Significativo\",$M$56=\"El sector no cumple con las salvaguardas mínimas\"),\"\",IF(AND('Base-datos'!$B$725=\"Sí\",'Base-datos'!$B$726=\"\",'Base-datos'!$B$727=\"\"),IF('Instituciones-crédito'!J62=\"La actividad sí contribuye sustancialmente a la sostenibilidad\",SUM('Instituciones-crédito'!B62:H62),0),IF(AND('Base-datos'!$B$725=\"Sí\",'Base-datos'!$B$726=\"Sí\",'Base-datos'!$B$727=\"\"),IF(AND('Instituciones-crédito'!J62=\"La actividad sí contribuye sustancialmente a la sostenibilidad\",'Instituciones-crédito'!K62=\"La actividad sí contribuye sustancialmente a la sostenibilidad\"),SUM('Instituciones-crédito'!B62:H62),0),IF(AND('Base-datos'!$B$725=\"Sí\",'Base-datos'!$B$726=\"Sí\",'Base-datos'!$B$727=\"Sí\"),IF(AND('Instituciones-crédito'!J62=\"La actividad sí contribuye sustancialmente a la sostenibilidad\",'Instituciones-crédito'!K62=\"La actividad sí contribuye sustancialmente a la sostenibilidad\",'Instituciones-crédito'!I62=\"La actividad sí contribuye sustancialmente a la sostenibilidad\"),SUM('Instituciones-crédito'!B62:H62),0),IF(AND('Base-datos'!$B$725=\"\",'Base-datos'!$B$726=\"Sí\",'Base-datos'!$B$727=\"\"),IF('Instituciones-crédito'!K62=\"La actividad sí contribuye sustancialmente a la sostenibilidad\",SUM('Instituciones-crédito'!B62:H62),0),IF(AND('Base-datos'!$B$725=\"\",'Base-datos'!$B$726=\"\",'Base-datos'!$B$727=\"Sí\"),IF('Instituciones-crédito'!I62=\"La actividad sí contribuye sustancialmente a la sostenibilidad\",SUM('Instituciones-crédito'!B62:H62),0),IF(AND('Base-datos'!$B$725=\"\",'Base-datos'!$B$726=\"Sí\",'Base-datos'!$B$727=\"Sí\"),IF(AND('Instituciones-crédito'!K62=\"La actividad sí contribuye sustancialmente a la sostenibilidad\",'Instituciones-crédito'!I62=\"La actividad sí contribuye sustancialmente a la sostenibilidad\"),SUM('Instituciones-crédito'!B62:H62),0),IF(AND('Base-datos'!$B$725=\"Sí\",'Base-datos'!$B$726=\"\",'Base-datos'!$B$727=\"Sí\"),IF(AND('Instituciones-crédito'!J62=\"La actividad sí contribuye sustancialmente a la sostenibilidad\",'Instituciones-crédito'!I62=\"La actividad sí contribuye sustancialmente a la sostenibilidad\"),SUM('Instituciones-crédito'!B62:H62),0),\"Por definir\"))))))))","v":"Por definir"}]
[{"$f":"Ganadería!$C24","v":"Seleccione"},{"$f":"IF(Ganadería!$E24='Instituciones-crédito'!B$12,Ganadería!$B24,\"\")","v":""},{"$f":"IF(Ganadería!$E24='Instituciones-crédito'!C$12,Ganadería!$B24,\"\")","v":""},{"$f":"IF(Ganadería!$E24='Instituciones-crédito'!D$12,Ganadería!$B24,\"\")","v":""},{"$f":"IF(Ganadería!$E24='Instituciones-crédito'!E$12,Ganadería!$B24,\"\")","v":""},{"$f":"IF(Ganadería!$E24='Instituciones-crédito'!F$12,Ganadería!$B24,\"\")","v":""},{"$f":"IF(Ganadería!$E24='Instituciones-crédito'!G$12,Ganadería!$B24,\"\")","v":""},{"$f":"IF(Ganadería!$E24='Instituciones-crédito'!H$12,Ganadería!$B24,\"\")","v":""},{"$f":"_xlfn.XLOOKUP(A63,'Base-datos'!$B$510:$B$516,'Base-datos'!$F$510:$F$516)","v":{"$error":"#N/A"}},{"$f":"_xlfn.XLOOKUP(A63,'Base-datos'!$B$510:$B$516,'Base-datos'!$C$510:$C$516)","v":{"$error":"#N/A"}},{"$f":"_xlfn.XLOOKUP(A63,'Base-datos'!$B$510:$B$516,'Base-datos'!$D$510:$D$516)","v":{"$error":"#N/A"}},null,null,{"$f":"IF(OR($L$56=\"La actividad no cumple con el total de los criterios de No Daño Significativo\",$M$56=\"El sector no cumple con las salvaguardas mínimas\"),\"\",IF(AND('Base-datos'!$B$725=\"Sí\",'Base-datos'!$B$726=\"\",'Base-datos'!$B$727=\"\"),IF('Instituciones-crédito'!J63=\"La actividad sí contribuye sustancialmente a la sostenibilidad\",SUM('Instituciones-crédito'!B63:H63),0),IF(AND('Base-datos'!$B$725=\"Sí\",'Base-datos'!$B$726=\"Sí\",'Base-datos'!$B$727=\"\"),IF(AND('Instituciones-crédito'!J63=\"La actividad sí contribuye sustancialmente a la sostenibilidad\",'Instituciones-crédito'!K63=\"La actividad sí contribuye sustancialmente a la sostenibilidad\"),SUM('Instituciones-crédito'!B63:H63),0),IF(AND('Base-datos'!$B$725=\"Sí\",'Base-datos'!$B$726=\"Sí\",'Base-datos'!$B$727=\"Sí\"),IF(AND('Instituciones-crédito'!J63=\"La actividad sí contribuye sustancialmente a la sostenibilidad\",'Instituciones-crédito'!K63=\"La actividad sí contribuye sustancialmente a la sostenibilidad\",'Instituciones-crédito'!I63=\"La actividad sí contribuye sustancialmente a la sostenibilidad\"),SUM('Instituciones-crédito'!B63:H63),0),IF(AND('Base-datos'!$B$725=\"\",'Base-datos'!$B$726=\"Sí\",'Base-datos'!$B$727=\"\"),IF('Instituciones-crédito'!K63=\"La actividad sí contribuye sustancialmente a la sostenibilidad\",SUM('Instituciones-crédito'!B63:H63),0),IF(AND('Base-datos'!$B$725=\"\",'Base-datos'!$B$726=\"\",'Base-datos'!$B$727=\"Sí\"),IF('Instituciones-crédito'!I63=\"La actividad sí contribuye sustancialmente a la sostenibilidad\",SUM('Instituciones-crédito'!B63:H63),0),IF(AND('Base-datos'!$B$725=\"\",'Base-datos'!$B$726=\"Sí\",'Base-datos'!$B$727=\"Sí\"),IF(AND('Instituciones-crédito'!K63=\"La actividad sí contribuye sustancialmente a la sostenibilidad\",'Instituciones-crédito'!I63=\"La actividad sí contribuye sustancialmente a la sostenibilidad\"),SUM('Instituciones-crédito'!B63:H63),0),IF(AND('Base-datos'!$B$725=\"Sí\",'Base-datos'!$B$726=\"\",'Base-datos'!$B$727=\"Sí\"),IF(AND('Instituciones-crédito'!J63=\"La actividad sí contribuye sustancialmente a la sostenibilidad\",'Instituciones-crédito'!I63=\"La actividad sí contribuye sustancialmente a la sostenibilidad\"),SUM('Instituciones-crédito'!B63:H63),0),\"Por definir\"))))))))","v":"Por definir"}]
[{"$f":"Ganadería!$C26","v":"Seleccione"},{"$f":"IF(Ganadería!$E26='Instituciones-crédito'!B$12,Ganadería!$B26,\"\")","v":""},{"$f":"IF(Ganadería!$E26='Instituciones-crédito'!C$12,Ganadería!$B26,\"\")","v":""},{"$f":"IF(Ganadería!$E26='Instituciones-crédito'!D$12,Ganadería!$B26,\"\")","v":""},{"$f":"IF(Ganadería!$E26='Instituciones-crédito'!E$12,Ganadería!$B26,\"\")","v":""},{"$f":"IF(Ganadería!$E26='Instituciones-crédito'!F$12,Ganadería!$B26,\"\")","v":""},{"$f":"IF(Ganadería!$E26='Instituciones-crédito'!G$12,Ganadería!$B26,\"\")","v":""},{"$f":"IF(Ganadería!$E26='Instituciones-crédito'!H$12,Ganadería!$B26,\"\")","v":""},{"$f":"_xlfn.XLOOKUP(A64,'Base-datos'!$B$510:$B$516,'Base-datos'!$F$510:$F$516)","v":{"$error":"#N/A"}},{"$f":"_xlfn.XLOOKUP(A64,'Base-datos'!$B$510:$B$516,'Base-datos'!$C$510:$C$516)","v":{"$error":"#N/A"}},{"$f":"_xlfn.XLOOKUP(A64,'Base-datos'!$B$510:$B$516,'Base-datos'!$D$510:$D$516)","v":{"$error":"#N/A"}},null,null,{"$f":"IF(OR($L$56=\"La actividad no cumple con el total de los criterios de No Daño Significativo\",$M$56=\"El sector no cumple con las salvaguardas mínimas\"),\"\",IF(AND('Base-datos'!$B$725=\"Sí\",'Base-datos'!$B$726=\"\",'Base-datos'!$B$727=\"\"),IF('Instituciones-crédito'!J64=\"La actividad sí contribuye sustancialmente a la sostenibilidad\",SUM('Instituciones-crédito'!B64:H64),0),IF(AND('Base-datos'!$B$725=\"Sí\",'Base-datos'!$B$726=\"Sí\",'Base-datos'!$B$727=\"\"),IF(AND('Instituciones-crédito'!J64=\"La actividad sí contribuye sustancialmente a la sostenibilidad\",'Instituciones-crédito'!K64=\"La actividad sí contribuye sustancialmente a la sostenibilidad\"),SUM('Instituciones-crédito'!B64:H64),0),IF(AND('Base-datos'!$B$725=\"Sí\",'Base-datos'!$B$726=\"Sí\",'Base-datos'!$B$727=\"Sí\"),IF(AND('Instituciones-crédito'!J64=\"La actividad sí contribuye sustancialmente a la sostenibilidad\",'Instituciones-crédito'!K64=\"La actividad sí contribuye sustancialmente a la sostenibilidad\",'Instituciones-crédito'!I64=\"La actividad sí contribuye sustancialmente a la sostenibilidad\"),SUM('Instituciones-crédito'!B64:H64),0),IF(AND('Base-datos'!$B$725=\"\",'Base-datos'!$B$726=\"Sí\",'Base-datos'!$B$727=\"\"),IF('Instituciones-crédito'!K64=\"La actividad sí contribuye sustancialmente a la sostenibilidad\",SUM('Instituciones-crédito'!B64:H64),0),IF(AND('Base-datos'!$B$725=\"\",'Base-datos'!$B$726=\"\",'Base-datos'!$B$727=\"Sí\"),IF('Instituciones-crédito'!I64=\"La actividad sí contribuye sustancialmente a la sostenibilidad\",SUM('Instituciones-crédito'!B64:H64),0),IF(AND('Base-datos'!$B$725=\"\",'Base-datos'!$B$726=\"Sí\",'Base-datos'!$B$727=\"Sí\"),IF(AND('Instituciones-crédito'!K64=\"La actividad sí contribuye sustancialmente a la sostenibilidad\",'Instituciones-crédito'!I64=\"La actividad sí contribuye sustancialmente a la sostenibilidad\"),SUM('Instituciones-crédito'!B64:H64),0),IF(AND('Base-datos'!$B$725=\"Sí\",'Base-datos'!$B$726=\"\",'Base-datos'!$B$727=\"Sí\"),IF(AND('Instituciones-crédito'!J64=\"La actividad sí contribuye sustancialmente a la sostenibilidad\",'Instituciones-crédito'!I64=\"La actividad sí contribuye sustancialmente a la sostenibilidad\"),SUM('Instituciones-crédito'!B64:H64),0),\"Por definir\"))))))))","v":"Por definir"}]
[{"$f":"Ganadería!$C28","v":"Seleccione"},{"$f":"IF(Ganadería!$E28='Instituciones-crédito'!B$12,Ganadería!$B28,\"\")","v":""},{"$f":"IF(Ganadería!$E28='Instituciones-crédito'!C$12,Ganadería!$B28,\"\")","v":""},{"$f":"IF(Ganadería!$E28='Instituciones-crédito'!D$12,Ganadería!$B28,\"\")","v":""},{"$f":"IF(Ganadería!$E28='Instituciones-crédito'!E$12,Ganadería!$B28,\"\")","v":""},{"$f":"IF(Ganadería!$E28='Instituciones-crédito'!F$12,Ganadería!$B28,\"\")","v":""},{"$f":"IF(Ganadería!$E28='Instituciones-crédito'!G$12,Ganadería!$B28,\"\")","v":""},{"$f":"IF(Ganadería!$E28='Instituciones-crédito'!H$12,Ganadería!$B28,\"\")","v":""},{"$f":"_xlfn.XLOOKUP(A65,'Base-datos'!$B$510:$B$516,'Base-datos'!$F$510:$F$516)","v":{"$error":"#N/A"}},{"$f":"_xlfn.XLOOKUP(A65,'Base-datos'!$B$510:$B$516,'Base-datos'!$C$510:$C$516)","v":{"$error":"#N/A"}},{"$f":"_xlfn.XLOOKUP(A65,'Base-datos'!$B$510:$B$516,'Base-datos'!$D$510:$D$516)","v":{"$error":"#N/A"}},null,null,{"$f":"IF(OR($L$56=\"La actividad no cumple con el total de los criterios de No Daño Significativo\",$M$56=\"El sector no cumple con las salvaguardas mínimas\"),\"\",IF(AND('Base-datos'!$B$725=\"Sí\",'Base-datos'!$B$726=\"\",'Base-datos'!$B$727=\"\"),IF('Instituciones-crédito'!J65=\"La actividad sí contribuye sustancialmente a la sostenibilidad\",SUM('Instituciones-crédito'!B65:H65),0),IF(AND('Base-datos'!$B$725=\"Sí\",'Base-datos'!$B$726=\"Sí\",'Base-datos'!$B$727=\"\"),IF(AND('Instituciones-crédito'!J65=\"La actividad sí contribuye sustancialmente a la sostenibilidad\",'Instituciones-crédito'!K65=\"La actividad sí contribuye sustancialmente a la sostenibilidad\"),SUM('Instituciones-crédito'!B65:H65),0),IF(AND('Base-datos'!$B$725=\"Sí\",'Base-datos'!$B$726=\"Sí\",'Base-datos'!$B$727=\"Sí\"),IF(AND('Instituciones-crédito'!J65=\"La actividad sí contribuye sustancialmente a la sostenibilidad\",'Instituciones-crédito'!K65=\"La actividad sí contribuye sustancialmente a la sostenibilidad\",'Instituciones-crédito'!I65=\"La actividad sí contribuye sustancialmente a la sostenibilidad\"),SUM('Instituciones-crédito'!B65:H65),0),IF(AND('Base-datos'!$B$725=\"\",'Base-datos'!$B$726=\"Sí\",'Base-datos'!$B$727=\"\"),IF('Instituciones-crédito'!K65=\"La actividad sí contribuye sustancialmente a la sostenibilidad\",SUM('Instituciones-crédito'!B65:H65),0),IF(AND('Base-datos'!$B$725=\"\",'Base-datos'!$B$726=\"\",'Base-datos'!$B$727=\"Sí\"),IF('Instituciones-crédito'!I65=\"La actividad sí contribuye sustancialmente a la sostenibilidad\",SUM('Instituciones-crédito'!B65:H65),0),IF(AND('Base-datos'!$B$725=\"\",'Base-datos'!$B$726=\"Sí\",'Base-datos'!$B$727=\"Sí\"),IF(AND('Instituciones-crédito'!K65=\"La actividad sí contribuye sustancialmente a la sostenibilidad\",'Instituciones-crédito'!I65=\"La actividad sí contribuye sustancialmente a la sostenibilidad\"),SUM('Instituciones-crédito'!B65:H65),0),IF(AND('Base-datos'!$B$725=\"Sí\",'Base-datos'!$B$726=\"\",'Base-datos'!$B$727=\"Sí\"),IF(AND('Instituciones-crédito'!J65=\"La actividad sí contribuye sustancialmente a la sostenibilidad\",'Instituciones-crédito'!I65=\"La actividad sí contribuye sustancialmente a la sostenibilidad\"),SUM('Instituciones-crédito'!B65:H65),0),\"Por definir\"))))))))","v":"Por definir"}]
[{"$f":"Ganadería!$C30","v":"Seleccione"},{"$f":"IF(Ganadería!$E30='Instituciones-crédito'!B$12,Ganadería!$B30,\"\")","v":""},{"$f":"IF(Ganadería!$E30='Instituciones-crédito'!C$12,Ganadería!$B30,\"\")","v":""},{"$f":"IF(Ganadería!$E30='Instituciones-crédito'!D$12,Ganadería!$B30,\"\")","v":""},{"$f":"IF(Ganadería!$E30='Instituciones-crédito'!E$12,Ganadería!$B30,\"\")","v":""},{"$f":"IF(Ganadería!$E30='Instituciones-crédito'!F$12,Ganadería!$B30,\"\")","v":""},{"$f":"IF(Ganadería!$E30='Instituciones-crédito'!G$12,Ganadería!$B30,\"\")","v":""},{"$f":"IF(Ganadería!$E30='Instituciones-crédito'!H$12,Ganadería!$B30,\"\")","v":""},{"$f":"_xlfn.XLOOKUP(A66,'Base-datos'!$B$510:$B$516,'Base-datos'!$F$510:$F$516)","v":{"$error":"#N/A"}},{"$f":"_xlfn.XLOOKUP(A66,'Base-datos'!$B$510:$B$516,'Base-datos'!$C$510:$C$516)","v":{"$error":"#N/A"}},{"$f":"_xlfn.XLOOKUP(A66,'Base-datos'!$B$510:$B$516,'Base-datos'!$D$510:$D$516)","v":{"$error":"#N/A"}},null,null,{"$f":"IF(OR($L$56=\"La actividad no cumple con el total de los criterios de No Daño Significativo\",$M$56=\"El sector no cumple con las salvaguardas mínimas\"),\"\",IF(AND('Base-datos'!$B$725=\"Sí\",'Base-datos'!$B$726=\"\",'Base-datos'!$B$727=\"\"),IF('Instituciones-crédito'!J66=\"La actividad sí contribuye sustancialmente a la sostenibilidad\",SUM('Instituciones-crédito'!B66:H66),0),IF(AND('Base-datos'!$B$725=\"Sí\",'Base-datos'!$B$726=\"Sí\",'Base-datos'!$B$727=\"\"),IF(AND('Instituciones-crédito'!J66=\"La actividad sí contribuye sustancialmente a la sostenibilidad\",'Instituciones-crédito'!K66=\"La actividad sí contribuye sustancialmente a la sostenibilidad\"),SUM('Instituciones-crédito'!B66:H66),0),IF(AND('Base-datos'!$B$725=\"Sí\",'Base-datos'!$B$726=\"Sí\",'Base-datos'!$B$727=\"Sí\"),IF(AND('Instituciones-crédito'!J66=\"La actividad sí contribuye sustancialmente a la sostenibilidad\",'Instituciones-crédito'!K66=\"La actividad sí contribuye sustancialmente a la sostenibilidad\",'Instituciones-crédito'!I66=\"La actividad sí contribuye sustancialmente a la sostenibilidad\"),SUM('Instituciones-crédito'!B66:H66),0),IF(AND('Base-datos'!$B$725=\"\",'Base-datos'!$B$726=\"Sí\",'Base-datos'!$B$727=\"\"),IF('Instituciones-crédito'!K66=\"La actividad sí contribuye sustancialmente a la sostenibilidad\",SUM('Instituciones-crédito'!B66:H66),0),IF(AND('Base-datos'!$B$725=\"\",'Base-datos'!$B$726=\"\",'Base-datos'!$B$727=\"Sí\"),IF('Instituciones-crédito'!I66=\"La actividad sí contribuye sustancialmente a la sostenibilidad\",SUM('Instituciones-crédito'!B66:H66),0),IF(AND('Base-datos'!$B$725=\"\",'Base-datos'!$B$726=\"Sí\",'Base-datos'!$B$727=\"Sí\"),IF(AND('Instituciones-crédito'!K66=\"La actividad sí contribuye sustancialmente a la sostenibilidad\",'Instituciones-crédito'!I66=\"La actividad sí contribuye sustancialmente a la sostenibilidad\"),SUM('Instituciones-crédito'!B66:H66),0),IF(AND('Base-datos'!$B$725=\"Sí\",'Base-datos'!$B$726=\"\",'Base-datos'!$B$727=\"Sí\"),IF(AND('Instituciones-crédito'!J66=\"La actividad sí contribuye sustancialmente a la sostenibilidad\",'Instituciones-crédito'!I66=\"La actividad sí contribuye sustancialmente a la sostenibilidad\"),SUM('Instituciones-crédito'!B66:H66),0),\"Por definir\"))))))))","v":"Por definir"}]
[{"$f":"Ganadería!$C32","v":"Seleccione"},{"$f":"IF(Ganadería!$E32='Instituciones-crédito'!B$12,Ganadería!$B32,\"\")","v":""},{"$f":"IF(Ganadería!$E32='Instituciones-crédito'!C$12,Ganadería!$B32,\"\")","v":""},{"$f":"IF(Ganadería!$E32='Instituciones-crédito'!D$12,Ganadería!$B32,\"\")","v":""},{"$f":"IF(Ganadería!$E32='Instituciones-crédito'!E$12,Ganadería!$B32,\"\")","v":""},{"$f":"IF(Ganadería!$E32='Instituciones-crédito'!F$12,Ganadería!$B32,\"\")","v":""},{"$f":"IF(Ganadería!$E32='Instituciones-crédito'!G$12,Ganadería!$B32,\"\")","v":""},{"$f":"IF(Ganadería!$E32='Instituciones-crédito'!H$12,Ganadería!$B32,\"\")","v":""},{"$f":"_xlfn.XLOOKUP(A67,'Base-datos'!$B$510:$B$516,'Base-datos'!$F$510:$F$516)","v":{"$error":"#N/A"}},{"$f":"_xlfn.XLOOKUP(A67,'Base-datos'!$B$510:$B$516,'Base-datos'!$C$510:$C$516)","v":{"$error":"#N/A"}},{"$f":"_xlfn.XLOOKUP(A67,'Base-datos'!$B$510:$B$516,'Base-datos'!$D$510:$D$516)","v":{"$error":"#N/A"}},null,null,{"$f":"IF(OR($L$56=\"La actividad no cumple con el total de los criterios de No Daño Significativo\",$M$56=\"El sector no cumple con las salvaguardas mínimas\"),\"\",IF(AND('Base-datos'!$B$725=\"Sí\",'Base-datos'!$B$726=\"\",'Base-datos'!$B$727=\"\"),IF('Instituciones-crédito'!J67=\"La actividad sí contribuye sustancialmente a la sostenibilidad\",SUM('Instituciones-crédito'!B67:H67),0),IF(AND('Base-datos'!$B$725=\"Sí\",'Base-datos'!$B$726=\"Sí\",'Base-datos'!$B$727=\"\"),IF(AND('Instituciones-crédito'!J67=\"La actividad sí contribuye sustancialmente a la sostenibilidad\",'Instituciones-crédito'!K67=\"La actividad sí contribuye sustancialmente a la sostenibilidad\"),SUM('Instituciones-crédito'!B67:H67),0),IF(AND('Base-datos'!$B$725=\"Sí\",'Base-datos'!$B$726=\"Sí\",'Base-datos'!$B$727=\"Sí\"),IF(AND('Instituciones-crédito'!J67=\"La actividad sí contribuye sustancialmente a la sostenibilidad\",'Instituciones-crédito'!K67=\"La actividad sí contribuye sustancialmente a la sostenibilidad\",'Instituciones-crédito'!I67=\"La actividad sí contribuye sustancialmente a la sostenibilidad\"),SUM('Instituciones-crédito'!B67:H67),0),IF(AND('Base-datos'!$B$725=\"\",'Base-datos'!$B$726=\"Sí\",'Base-datos'!$B$727=\"\"),IF('Instituciones-crédito'!K67=\"La actividad sí contribuye sustancialmente a la sostenibilidad\",SUM('Instituciones-crédito'!B67:H67),0),IF(AND('Base-datos'!$B$725=\"\",'Base-datos'!$B$726=\"\",'Base-datos'!$B$727=\"Sí\"),IF('Instituciones-crédito'!I67=\"La actividad sí contribuye sustancialmente a la sostenibilidad\",SUM('Instituciones-crédito'!B67:H67),0),IF(AND('Base-datos'!$B$725=\"\",'Base-datos'!$B$726=\"Sí\",'Base-datos'!$B$727=\"Sí\"),IF(AND('Instituciones-crédito'!K67=\"La actividad sí contribuye sustancialmente a la sostenibilidad\",'Instituciones-crédito'!I67=\"La actividad sí contribuye sustancialmente a la sostenibilidad\"),SUM('Instituciones-crédito'!B67:H67),0),IF(AND('Base-datos'!$B$725=\"Sí\",'Base-datos'!$B$726=\"\",'Base-datos'!$B$727=\"Sí\"),IF(AND('Instituciones-crédito'!J67=\"La actividad sí contribuye sustancialmente a la sostenibilidad\",'Instituciones-crédito'!I67=\"La actividad sí contribuye sustancialmente a la sostenibilidad\"),SUM('Instituciones-crédito'!B67:H67),0),\"Por definir\"))))))))","v":"Por definir"}]
[{"$f":"Ganadería!$C34","v":"Seleccione"},{"$f":"IF(Ganadería!$E34='Instituciones-crédito'!B$12,Ganadería!$B34,\"\")","v":""},{"$f":"IF(Ganadería!$E34='Instituciones-crédito'!C$12,Ganadería!$B34,\"\")","v":""},{"$f":"IF(Ganadería!$E34='Instituciones-crédito'!D$12,Ganadería!$B34,\"\")","v":""},{"$f":"IF(Ganadería!$E34='Instituciones-crédito'!E$12,Ganadería!$B34,\"\")","v":""},{"$f":"IF(Ganadería!$E34='Instituciones-crédito'!F$12,Ganadería!$B34,\"\")","v":""},{"$f":"IF(Ganadería!$E34='Instituciones-crédito'!G$12,Ganadería!$B34,\"\")","v":""},{"$f":"IF(Ganadería!$E34='Instituciones-crédito'!H$12,Ganadería!$B34,\"\")","v":""},{"$f":"_xlfn.XLOOKUP(A68,'Base-datos'!$B$510:$B$516,'Base-datos'!$F$510:$F$516)","v":{"$error":"#N/A"}},{"$f":"_xlfn.XLOOKUP(A68,'Base-datos'!$B$510:$B$516,'Base-datos'!$C$510:$C$516)","v":{"$error":"#N/A"}},{"$f":"_xlfn.XLOOKUP(A68,'Base-datos'!$B$510:$B$516,'Base-datos'!$D$510:$D$516)","v":{"$error":"#N/A"}},null,null,{"$f":"IF(OR($L$56=\"La actividad no cumple con el total de los criterios de No Daño Significativo\",$M$56=\"El sector no cumple con las salvaguardas mínimas\"),\"\",IF(AND('Base-datos'!$B$725=\"Sí\",'Base-datos'!$B$726=\"\",'Base-datos'!$B$727=\"\"),IF('Instituciones-crédito'!J68=\"La actividad sí contribuye sustancialmente a la sostenibilidad\",SUM('Instituciones-crédito'!B68:H68),0),IF(AND('Base-datos'!$B$725=\"Sí\",'Base-datos'!$B$726=\"Sí\",'Base-datos'!$B$727=\"\"),IF(AND('Instituciones-crédito'!J68=\"La actividad sí contribuye sustancialmente a la sostenibilidad\",'Instituciones-crédito'!K68=\"La actividad sí contribuye sustancialmente a la sostenibilidad\"),SUM('Instituciones-crédito'!B68:H68),0),IF(AND('Base-datos'!$B$725=\"Sí\",'Base-datos'!$B$726=\"Sí\",'Base-datos'!$B$727=\"Sí\"),IF(AND('Instituciones-crédito'!J68=\"La actividad sí contribuye sustancialmente a la sostenibilidad\",'Instituciones-crédito'!K68=\"La actividad sí contribuye sustancialmente a la sostenibilidad\",'Instituciones-crédito'!I68=\"La actividad sí contribuye sustancialmente a la sostenibilidad\"),SUM('Instituciones-crédito'!B68:H68),0),IF(AND('Base-datos'!$B$725=\"\",'Base-datos'!$B$726=\"Sí\",'Base-datos'!$B$727=\"\"),IF('Instituciones-crédito'!K68=\"La actividad sí contribuye sustancialmente a la sostenibilidad\",SUM('Instituciones-crédito'!B68:H68),0),IF(AND('Base-datos'!$B$725=\"\",'Base-datos'!$B$726=\"\",'Base-datos'!$B$727=\"Sí\"),IF('Instituciones-crédito'!I68=\"La actividad sí contribuye sustancialmente a la sostenibilidad\",SUM('Instituciones-crédito'!B68:H68),0),IF(AND('Base-datos'!$B$725=\"\",'Base-datos'!$B$726=\"Sí\",'Base-datos'!$B$727=\"Sí\"),IF(AND('Instituciones-crédito'!K68=\"La actividad sí contribuye sustancialmente a la sostenibilidad\",'Instituciones-crédito'!I68=\"La actividad sí contribuye sustancialmente a la sostenibilidad\"),SUM('Instituciones-crédito'!B68:H68),0),IF(AND('Base-datos'!$B$725=\"Sí\",'Base-datos'!$B$726=\"\",'Base-datos'!$B$727=\"Sí\"),IF(AND('Instituciones-crédito'!J68=\"La actividad sí contribuye sustancialmente a la sostenibilidad\",'Instituciones-crédito'!I68=\"La actividad sí contribuye sustancialmente a la sostenibilidad\"),SUM('Instituciones-crédito'!B68:H68),0),\"Por definir\"))))))))","v":"Por definir"}]
[{"$f":"Ganadería!$C36","v":"Seleccione"},{"$f":"IF(Ganadería!$E36='Instituciones-crédito'!B$12,Ganadería!$B36,\"\")","v":""},{"$f":"IF(Ganadería!$E36='Instituciones-crédito'!C$12,Ganadería!$B36,\"\")","v":""},{"$f":"IF(Ganadería!$E36='Instituciones-crédito'!D$12,Ganadería!$B36,\"\")","v":""},{"$f":"IF(Ganadería!$E36='Instituciones-crédito'!E$12,Ganadería!$B36,\"\")","v":""},{"$f":"IF(Ganadería!$E36='Instituciones-crédito'!F$12,Ganadería!$B36,\"\")","v":""},{"$f":"IF(Ganadería!$E36='Instituciones-crédito'!G$12,Ganadería!$B36,\"\")","v":""},{"$f":"IF(Ganadería!$E36='Instituciones-crédito'!H$12,Ganadería!$B36,\"\")","v":""},{"$f":"_xlfn.XLOOKUP(A69,'Base-datos'!$B$510:$B$516,'Base-datos'!$F$510:$F$516)","v":{"$error":"#N/A"}},{"$f":"_xlfn.XLOOKUP(A69,'Base-datos'!$B$510:$B$516,'Base-datos'!$C$510:$C$516)","v":{"$error":"#N/A"}},{"$f":"_xlfn.XLOOKUP(A69,'Base-datos'!$B$510:$B$516,'Base-datos'!$D$510:$D$516)","v":{"$error":"#N/A"}},null,null,{"$f":"IF(OR($L$56=\"La actividad no cumple con el total de los criterios de No Daño Significativo\",$M$56=\"El sector no cumple con las salvaguardas mínimas\"),\"\",IF(AND('Base-datos'!$B$725=\"Sí\",'Base-datos'!$B$726=\"\",'Base-datos'!$B$727=\"\"),IF('Instituciones-crédito'!J69=\"La actividad sí contribuye sustancialmente a la sostenibilidad\",SUM('Instituciones-crédito'!B69:H69),0),IF(AND('Base-datos'!$B$725=\"Sí\",'Base-datos'!$B$726=\"Sí\",'Base-datos'!$B$727=\"\"),IF(AND('Instituciones-crédito'!J69=\"La actividad sí contribuye sustancialmente a la sostenibilidad\",'Instituciones-crédito'!K69=\"La actividad sí contribuye sustancialmente a la sostenibilidad\"),SUM('Instituciones-crédito'!B69:H69),0),IF(AND('Base-datos'!$B$725=\"Sí\",'Base-datos'!$B$726=\"Sí\",'Base-datos'!$B$727=\"Sí\"),IF(AND('Instituciones-crédito'!J69=\"La actividad sí contribuye sustancialmente a la sostenibilidad\",'Instituciones-crédito'!K69=\"La actividad sí contribuye sustancialmente a la sostenibilidad\",'Instituciones-crédito'!I69=\"La actividad sí contribuye sustancialmente a la sostenibilidad\"),SUM('Instituciones-crédito'!B69:H69),0),IF(AND('Base-datos'!$B$725=\"\",'Base-datos'!$B$726=\"Sí\",'Base-datos'!$B$727=\"\"),IF('Instituciones-crédito'!K69=\"La actividad sí contribuye sustancialmente a la sostenibilidad\",SUM('Instituciones-crédito'!B69:H69),0),IF(AND('Base-datos'!$B$725=\"\",'Base-datos'!$B$726=\"\",'Base-datos'!$B$727=\"Sí\"),IF('Instituciones-crédito'!I69=\"La actividad sí contribuye sustancialmente a la sostenibilidad\",SUM('Instituciones-crédito'!B69:H69),0),IF(AND('Base-datos'!$B$725=\"\",'Base-datos'!$B$726=\"Sí\",'Base-datos'!$B$727=\"Sí\"),IF(AND('Instituciones-crédito'!K69=\"La actividad sí contribuye sustancialmente a la sostenibilidad\",'Instituciones-crédito'!I69=\"La actividad sí contribuye sustancialmente a la sostenibilidad\"),SUM('Instituciones-crédito'!B69:H69),0),IF(AND('Base-datos'!$B$725=\"Sí\",'Base-datos'!$B$726=\"\",'Base-datos'!$B$727=\"Sí\"),IF(AND('Instituciones-crédito'!J69=\"La actividad sí contribuye sustancialmente a la sostenibilidad\",'Instituciones-crédito'!I69=\"La actividad sí contribuye sustancialmente a la sostenibilidad\"),SUM('Instituciones-crédito'!B69:H69),0),\"Por definir\"))))))))","v":"Por definir"}]
[{"$f":"Ganadería!$C38","v":"Seleccione"},{"$f":"IF(Ganadería!$E38='Instituciones-crédito'!B$12,Ganadería!$B38,\"\")","v":""},{"$f":"IF(Ganadería!$E38='Instituciones-crédito'!C$12,Ganadería!$B38,\"\")","v":""},{"$f":"IF(Ganadería!$E38='Instituciones-crédito'!D$12,Ganadería!$B38,\"\")","v":""},{"$f":"IF(Ganadería!$E38='Instituciones-crédito'!E$12,Ganadería!$B38,\"\")","v":""},{"$f":"IF(Ganadería!$E38='Instituciones-crédito'!F$12,Ganadería!$B38,\"\")","v":""},{"$f":"IF(Ganadería!$E38='Instituciones-crédito'!G$12,Ganadería!$B38,\"\")","v":""},{"$f":"IF(Ganadería!$E38='Instituciones-crédito'!H$12,Ganadería!$B38,\"\")","v":""},{"$f":"_xlfn.XLOOKUP(A70,'Base-datos'!$B$510:$B$516,'Base-datos'!$F$510:$F$516)","v":{"$error":"#N/A"}},{"$f":"_xlfn.XLOOKUP(A70,'Base-datos'!$B$510:$B$516,'Base-datos'!$C$510:$C$516)","v":{"$error":"#N/A"}},{"$f":"_xlfn.XLOOKUP(A70,'Base-datos'!$B$510:$B$516,'Base-datos'!$D$510:$D$516)","v":{"$error":"#N/A"}},null,null,{"$f":"IF(OR($L$56=\"La actividad no cumple con el total de los criterios de No Daño Significativo\",$M$56=\"El sector no cumple con las salvaguardas mínimas\"),\"\",IF(AND('Base-datos'!$B$725=\"Sí\",'Base-datos'!$B$726=\"\",'Base-datos'!$B$727=\"\"),IF('Instituciones-crédito'!J70=\"La actividad sí contribuye sustancialmente a la sostenibilidad\",SUM('Instituciones-crédito'!B70:H70),0),IF(AND('Base-datos'!$B$725=\"Sí\",'Base-datos'!$B$726=\"Sí\",'Base-datos'!$B$727=\"\"),IF(AND('Instituciones-crédito'!J70=\"La actividad sí contribuye sustancialmente a la sostenibilidad\",'Instituciones-crédito'!K70=\"La actividad sí contribuye sustancialmente a la sostenibilidad\"),SUM('Instituciones-crédito'!B70:H70),0),IF(AND('Base-datos'!$B$725=\"Sí\",'Base-datos'!$B$726=\"Sí\",'Base-datos'!$B$727=\"Sí\"),IF(AND('Instituciones-crédito'!J70=\"La actividad sí contribuye sustancialmente a la sostenibilidad\",'Instituciones-crédito'!K70=\"La actividad sí contribuye sustancialmente a la sostenibilidad\",'Instituciones-crédito'!I70=\"La actividad sí contribuye sustancialmente a la sostenibilidad\"),SUM('Instituciones-crédito'!B70:H70),0),IF(AND('Base-datos'!$B$725=\"\",'Base-datos'!$B$726=\"Sí\",'Base-datos'!$B$727=\"\"),IF('Instituciones-crédito'!K70=\"La actividad sí contribuye sustancialmente a la sostenibilidad\",SUM('Instituciones-crédito'!B70:H70),0),IF(AND('Base-datos'!$B$725=\"\",'Base-datos'!$B$726=\"\",'Base-datos'!$B$727=\"Sí\"),IF('Instituciones-crédito'!I70=\"La actividad sí contribuye sustancialmente a la sostenibilidad\",SUM('Instituciones-crédito'!B70:H70),0),IF(AND('Base-datos'!$B$725=\"\",'Base-datos'!$B$726=\"Sí\",'Base-datos'!$B$727=\"Sí\"),IF(AND('Instituciones-crédito'!K70=\"La actividad sí contribuye sustancialmente a la sostenibilidad\",'Instituciones-crédito'!I70=\"La actividad sí contribuye sustancialmente a la sostenibilidad\"),SUM('Instituciones-crédito'!B70:H70),0),IF(AND('Base-datos'!$B$725=\"Sí\",'Base-datos'!$B$726=\"\",'Base-datos'!$B$727=\"Sí\"),IF(AND('Instituciones-crédito'!J70=\"La actividad sí contribuye sustancialmente a la sostenibilidad\",'Instituciones-crédito'!I70=\"La actividad sí contribuye sustancialmente a la sostenibilidad\"),SUM('Instituciones-crédito'!B70:H70),0),\"Por definir\"))))))))","v":"Por definir"}]
[{"$f":"Ganadería!$C40","v":"Seleccione"},{"$f":"IF(Ganadería!$E40='Instituciones-crédito'!B$12,Ganadería!$B40,\"\")","v":""},{"$f":"IF(Ganadería!$E40='Instituciones-crédito'!C$12,Ganadería!$B40,\"\")","v":""},{"$f":"IF(Ganadería!$E40='Instituciones-crédito'!D$12,Ganadería!$B40,\"\")","v":""},{"$f":"IF(Ganadería!$E40='Instituciones-crédito'!E$12,Ganadería!$B40,\"\")","v":""},{"$f":"IF(Ganadería!$E40='Instituciones-crédito'!F$12,Ganadería!$B40,\"\")","v":""},{"$f":"IF(Ganadería!$E40='Instituciones-crédito'!G$12,Ganadería!$B40,\"\")","v":""},{"$f":"IF(Ganadería!$E40='Instituciones-crédito'!H$12,Ganadería!$B40,\"\")","v":""},{"$f":"_xlfn.XLOOKUP(A71,'Base-datos'!$B$510:$B$516,'Base-datos'!$F$510:$F$516)","v":{"$error":"#N/A"}},{"$f":"_xlfn.XLOOKUP(A71,'Base-datos'!$B$510:$B$516,'Base-datos'!$C$510:$C$516)","v":{"$error":"#N/A"}},{"$f":"_xlfn.XLOOKUP(A71,'Base-datos'!$B$510:$B$516,'Base-datos'!$D$510:$D$516)","v":{"$error":"#N/A"}},null,null,{"$f":"IF(OR($L$56=\"La actividad no cumple con el total de los criterios de No Daño Significativo\",$M$56=\"El sector no cumple con las salvaguardas mínimas\"),\"\",IF(AND('Base-datos'!$B$725=\"Sí\",'Base-datos'!$B$726=\"\",'Base-datos'!$B$727=\"\"),IF('Instituciones-crédito'!J71=\"La actividad sí contribuye sustancialmente a la sostenibilidad\",SUM('Instituciones-crédito'!B71:H71),0),IF(AND('Base-datos'!$B$725=\"Sí\",'Base-datos'!$B$726=\"Sí\",'Base-datos'!$B$727=\"\"),IF(AND('Instituciones-crédito'!J71=\"La actividad sí contribuye sustancialmente a la sostenibilidad\",'Instituciones-crédito'!K71=\"La actividad sí contribuye sustancialmente a la sostenibilidad\"),SUM('Instituciones-crédito'!B71:H71),0),IF(AND('Base-datos'!$B$725=\"Sí\",'Base-datos'!$B$726=\"Sí\",'Base-datos'!$B$727=\"Sí\"),IF(AND('Instituciones-crédito'!J71=\"La actividad sí contribuye sustancialmente a la sostenibilidad\",'Instituciones-crédito'!K71=\"La actividad sí contribuye sustancialmente a la sostenibilidad\",'Instituciones-crédito'!I71=\"La actividad sí contribuye sustancialmente a la sostenibilidad\"),SUM('Instituciones-crédito'!B71:H71),0),IF(AND('Base-datos'!$B$725=\"\",'Base-datos'!$B$726=\"Sí\",'Base-datos'!$B$727=\"\"),IF('Instituciones-crédito'!K71=\"La actividad sí contribuye sustancialmente a la sostenibilidad\",SUM('Instituciones-crédito'!B71:H71),0),IF(AND('Base-datos'!$B$725=\"\",'Base-datos'!$B$726=\"\",'Base-datos'!$B$727=\"Sí\"),IF('Instituciones-crédito'!I71=\"La actividad sí contribuye sustancialmente a la sostenibilidad\",SUM('Instituciones-crédito'!B71:H71),0),IF(AND('Base-datos'!$B$725=\"\",'Base-datos'!$B$726=\"Sí\",'Base-datos'!$B$727=\"Sí\"),IF(AND('Instituciones-crédito'!K71=\"La actividad sí contribuye sustancialmente a la sostenibilidad\",'Instituciones-crédito'!I71=\"La actividad sí contribuye sustancialmente a la sostenibilidad\"),SUM('Instituciones-crédito'!B71:H71),0),IF(AND('Base-datos'!$B$725=\"Sí\",'Base-datos'!$B$726=\"\",'Base-datos'!$B$727=\"Sí\"),IF(AND('Instituciones-crédito'!J71=\"La actividad sí contribuye sustancialmente a la sostenibilidad\",'Instituciones-crédito'!I71=\"La actividad sí contribuye sustancialmente a la sostenibilidad\"),SUM('Instituciones-crédito'!B71:H71),0),\"Por definir\"))))))))","v":"Por definir"}]
[{"$f":"Ganadería!$C42","v":"Seleccione"},{"$f":"IF(Ganadería!$E42='Instituciones-crédito'!B$12,Ganadería!$B42,\"\")","v":""},{"$f":"IF(Ganadería!$E42='Instituciones-crédito'!C$12,Ganadería!$B42,\"\")","v":""},{"$f":"IF(Ganadería!$E42='Instituciones-crédito'!D$12,Ganadería!$B42,\"\")","v":""},{"$f":"IF(Ganadería!$E42='Instituciones-crédito'!E$12,Ganadería!$B42,\"\")","v":""},{"$f":"IF(Ganadería!$E42='Instituciones-crédito'!F$12,Ganadería!$B42,\"\")","v":""},{"$f":"IF(Ganadería!$E42='Instituciones-crédito'!G$12,Ganadería!$B42,\"\")","v":""},{"$f":"IF(Ganadería!$E42='Instituciones-crédito'!H$12,Ganadería!$B42,\"\")","v":""},{"$f":"_xlfn.XLOOKUP(A72,'Base-datos'!$B$510:$B$516,'Base-datos'!$F$510:$F$516)","v":{"$error":"#N/A"}},{"$f":"_xlfn.XLOOKUP(A72,'Base-datos'!$B$510:$B$516,'Base-datos'!$C$510:$C$516)","v":{"$error":"#N/A"}},{"$f":"_xlfn.XLOOKUP(A72,'Base-datos'!$B$510:$B$516,'Base-datos'!$D$510:$D$516)","v":{"$error":"#N/A"}},null,null,{"$f":"IF(OR($L$56=\"La actividad no cumple con el total de los criterios de No Daño Significativo\",$M$56=\"El sector no cumple con las salvaguardas mínimas\"),\"\",IF(AND('Base-datos'!$B$725=\"Sí\",'Base-datos'!$B$726=\"\",'Base-datos'!$B$727=\"\"),IF('Instituciones-crédito'!J72=\"La actividad sí contribuye sustancialmente a la sostenibilidad\",SUM('Instituciones-crédito'!B72:H72),0),IF(AND('Base-datos'!$B$725=\"Sí\",'Base-datos'!$B$726=\"Sí\",'Base-datos'!$B$727=\"\"),IF(AND('Instituciones-crédito'!J72=\"La actividad sí contribuye sustancialmente a la sostenibilidad\",'Instituciones-crédito'!K72=\"La actividad sí contribuye sustancialmente a la sostenibilidad\"),SUM('Instituciones-crédito'!B72:H72),0),IF(AND('Base-datos'!$B$725=\"Sí\",'Base-datos'!$B$726=\"Sí\",'Base-datos'!$B$727=\"Sí\"),IF(AND('Instituciones-crédito'!J72=\"La actividad sí contribuye sustancialmente a la sostenibilidad\",'Instituciones-crédito'!K72=\"La actividad sí contribuye sustancialmente a la sostenibilidad\",'Instituciones-crédito'!I72=\"La actividad sí contribuye sustancialmente a la sostenibilidad\"),SUM('Instituciones-crédito'!B72:H72),0),IF(AND('Base-datos'!$B$725=\"\",'Base-datos'!$B$726=\"Sí\",'Base-datos'!$B$727=\"\"),IF('Instituciones-crédito'!K72=\"La actividad sí contribuye sustancialmente a la sostenibilidad\",SUM('Instituciones-crédito'!B72:H72),0),IF(AND('Base-datos'!$B$725=\"\",'Base-datos'!$B$726=\"\",'Base-datos'!$B$727=\"Sí\"),IF('Instituciones-crédito'!I72=\"La actividad sí contribuye sustancialmente a la sostenibilidad\",SUM('Instituciones-crédito'!B72:H72),0),IF(AND('Base-datos'!$B$725=\"\",'Base-datos'!$B$726=\"Sí\",'Base-datos'!$B$727=\"Sí\"),IF(AND('Instituciones-crédito'!K72=\"La actividad sí contribuye sustancialmente a la sostenibilidad\",'Instituciones-crédito'!I72=\"La actividad sí contribuye sustancialmente a la sostenibilidad\"),SUM('Instituciones-crédito'!B72:H72),0),IF(AND('Base-datos'!$B$725=\"Sí\",'Base-datos'!$B$726=\"\",'Base-datos'!$B$727=\"Sí\"),IF(AND('Instituciones-crédito'!J72=\"La actividad sí contribuye sustancialmente a la sostenibilidad\",'Instituciones-crédito'!I72=\"La actividad sí contribuye sustancialmente a la sostenibilidad\"),SUM('Instituciones-crédito'!B72:H72),0),\"Por definir\"))))))))","v":"Por definir"}]
[{"$f":"Ganadería!$C44","v":"Seleccione"},{"$f":"IF(Ganadería!$E44='Instituciones-crédito'!B$12,Ganadería!$B44,\"\")","v":""},{"$f":"IF(Ganadería!$E44='Instituciones-crédito'!C$12,Ganadería!$B44,\"\")","v":""},{"$f":"IF(Ganadería!$E44='Instituciones-crédito'!D$12,Ganadería!$B44,\"\")","v":""},{"$f":"IF(Ganadería!$E44='Instituciones-crédito'!E$12,Ganadería!$B44,\"\")","v":""},{"$f":"IF(Ganadería!$E44='Instituciones-crédito'!F$12,Ganadería!$B44,\"\")","v":""},{"$f":"IF(Ganadería!$E44='Instituciones-crédito'!G$12,Ganadería!$B44,\"\")","v":""},{"$f":"IF(Ganadería!$E44='Instituciones-crédito'!H$12,Ganadería!$B44,\"\")","v":""},{"$f":"_xlfn.XLOOKUP(A73,'Base-datos'!$B$510:$B$516,'Base-datos'!$F$510:$F$516)","v":{"$error":"#N/A"}},{"$f":"_xlfn.XLOOKUP(A73,'Base-datos'!$B$510:$B$516,'Base-datos'!$C$510:$C$516)","v":{"$error":"#N/A"}},{"$f":"_xlfn.XLOOKUP(A73,'Base-datos'!$B$510:$B$516,'Base-datos'!$D$510:$D$516)","v":{"$error":"#N/A"}},null,null,{"$f":"IF(OR($L$56=\"La actividad no cumple con el total de los criterios de No Daño Significativo\",$M$56=\"El sector no cumple con las salvaguardas mínimas\"),\"\",IF(AND('Base-datos'!$B$725=\"Sí\",'Base-datos'!$B$726=\"\",'Base-datos'!$B$727=\"\"),IF('Instituciones-crédito'!J73=\"La actividad sí contribuye sustancialmente a la sostenibilidad\",SUM('Instituciones-crédito'!B73:H73),0),IF(AND('Base-datos'!$B$725=\"Sí\",'Base-datos'!$B$726=\"Sí\",'Base-datos'!$B$727=\"\"),IF(AND('Instituciones-crédito'!J73=\"La actividad sí contribuye sustancialmente a la sostenibilidad\",'Instituciones-crédito'!K73=\"La actividad sí contribuye sustancialmente a la sostenibilidad\"),SUM('Instituciones-crédito'!B73:H73),0),IF(AND('Base-datos'!$B$725=\"Sí\",'Base-datos'!$B$726=\"Sí\",'Base-datos'!$B$727=\"Sí\"),IF(AND('Instituciones-crédito'!J73=\"La actividad sí contribuye sustancialmente a la sostenibilidad\",'Instituciones-crédito'!K73=\"La actividad sí contribuye sustancialmente a la sostenibilidad\",'Instituciones-crédito'!I73=\"La actividad sí contribuye sustancialmente a la sostenibilidad\"),SUM('Instituciones-crédito'!B73:H73),0),IF(AND('Base-datos'!$B$725=\"\",'Base-datos'!$B$726=\"Sí\",'Base-datos'!$B$727=\"\"),IF('Instituciones-crédito'!K73=\"La actividad sí contribuye sustancialmente a la sostenibilidad\",SUM('Instituciones-crédito'!B73:H73),0),IF(AND('Base-datos'!$B$725=\"\",'Base-datos'!$B$726=\"\",'Base-datos'!$B$727=\"Sí\"),IF('Instituciones-crédito'!I73=\"La actividad sí contribuye sustancialmente a la sostenibilidad\",SUM('Instituciones-crédito'!B73:H73),0),IF(AND('Base-datos'!$B$725=\"\",'Base-datos'!$B$726=\"Sí\",'Base-datos'!$B$727=\"Sí\"),IF(AND('Instituciones-crédito'!K73=\"La actividad sí contribuye sustancialmente a la sostenibilidad\",'Instituciones-crédito'!I73=\"La actividad sí contribuye sustancialmente a la sostenibilidad\"),SUM('Instituciones-crédito'!B73:H73),0),IF(AND('Base-datos'!$B$725=\"Sí\",'Base-datos'!$B$726=\"\",'Base-datos'!$B$727=\"Sí\"),IF(AND('Instituciones-crédito'!J73=\"La actividad sí contribuye sustancialmente a la sostenibilidad\",'Instituciones-crédito'!I73=\"La actividad sí contribuye sustancialmente a la sostenibilidad\"),SUM('Instituciones-crédito'!B73:H73),0),\"Por definir\"))))))))","v":"Por definir"}]
[{"$f":"Ganadería!$C46","v":"Seleccione"},{"$f":"IF(Ganadería!$E46='Instituciones-crédito'!B$12,Ganadería!$B46,\"\")","v":""},{"$f":"IF(Ganadería!$E46='Instituciones-crédito'!C$12,Ganadería!$B46,\"\")","v":""},{"$f":"IF(Ganadería!$E46='Instituciones-crédito'!D$12,Ganadería!$B46,\"\")","v":""},{"$f":"IF(Ganadería!$E46='Instituciones-crédito'!E$12,Ganadería!$B46,\"\")","v":""},{"$f":"IF(Ganadería!$E46='Instituciones-crédito'!F$12,Ganadería!$B46,\"\")","v":""},{"$f":"IF(Ganadería!$E46='Instituciones-crédito'!G$12,Ganadería!$B46,\"\")","v":""},{"$f":"IF(Ganadería!$E46='Instituciones-crédito'!H$12,Ganadería!$B46,\"\")","v":""},{"$f":"_xlfn.XLOOKUP(A74,'Base-datos'!$B$510:$B$516,'Base-datos'!$F$510:$F$516)","v":{"$error":"#N/A"}},{"$f":"_xlfn.XLOOKUP(A74,'Base-datos'!$B$510:$B$516,'Base-datos'!$C$510:$C$516)","v":{"$error":"#N/A"}},{"$f":"_xlfn.XLOOKUP(A74,'Base-datos'!$B$510:$B$516,'Base-datos'!$D$510:$D$516)","v":{"$error":"#N/A"}},null,null,{"$f":"IF(OR($L$56=\"La actividad no cumple con el total de los criterios de No Daño Significativo\",$M$56=\"El sector no cumple con las salvaguardas mínimas\"),\"\",IF(AND('Base-datos'!$B$725=\"Sí\",'Base-datos'!$B$726=\"\",'Base-datos'!$B$727=\"\"),IF('Instituciones-crédito'!J74=\"La actividad sí contribuye sustancialmente a la sostenibilidad\",SUM('Instituciones-crédito'!B74:H74),0),IF(AND('Base-datos'!$B$725=\"Sí\",'Base-datos'!$B$726=\"Sí\",'Base-datos'!$B$727=\"\"),IF(AND('Instituciones-crédito'!J74=\"La actividad sí contribuye sustancialmente a la sostenibilidad\",'Instituciones-crédito'!K74=\"La actividad sí contribuye sustancialmente a la sostenibilidad\"),SUM('Instituciones-crédito'!B74:H74),0),IF(AND('Base-datos'!$B$725=\"Sí\",'Base-datos'!$B$726=\"Sí\",'Base-datos'!$B$727=\"Sí\"),IF(AND('Instituciones-crédito'!J74=\"La actividad sí contribuye sustancialmente a la sostenibilidad\",'Instituciones-crédito'!K74=\"La actividad sí contribuye sustancialmente a la sostenibilidad\",'Instituciones-crédito'!I74=\"La actividad sí contribuye sustancialmente a la sostenibilidad\"),SUM('Instituciones-crédito'!B74:H74),0),IF(AND('Base-datos'!$B$725=\"\",'Base-datos'!$B$726=\"Sí\",'Base-datos'!$B$727=\"\"),IF('Instituciones-crédito'!K74=\"La actividad sí contribuye sustancialmente a la sostenibilidad\",SUM('Instituciones-crédito'!B74:H74),0),IF(AND('Base-datos'!$B$725=\"\",'Base-datos'!$B$726=\"\",'Base-datos'!$B$727=\"Sí\"),IF('Instituciones-crédito'!I74=\"La actividad sí contribuye sustancialmente a la sostenibilidad\",SUM('Instituciones-crédito'!B74:H74),0),IF(AND('Base-datos'!$B$725=\"\",'Base-datos'!$B$726=\"Sí\",'Base-datos'!$B$727=\"Sí\"),IF(AND('Instituciones-crédito'!K74=\"La actividad sí contribuye sustancialmente a la sostenibilidad\",'Instituciones-crédito'!I74=\"La actividad sí contribuye sustancialmente a la sostenibilidad\"),SUM('Instituciones-crédito'!B74:H74),0),IF(AND('Base-datos'!$B$725=\"Sí\",'Base-datos'!$B$726=\"\",'Base-datos'!$B$727=\"Sí\"),IF(AND('Instituciones-crédito'!J74=\"La actividad sí contribuye sustancialmente a la sostenibilidad\",'Instituciones-crédito'!I74=\"La actividad sí contribuye sustancialmente a la sostenibilidad\"),SUM('Instituciones-crédito'!B74:H74),0),\"Por definir\"))))))))","v":"Por definir"}]
[{"$f":"Ganadería!$C48","v":"Seleccione"},{"$f":"IF(Ganadería!$E48='Instituciones-crédito'!B$12,Ganadería!$B48,\"\")","v":""},{"$f":"IF(Ganadería!$E48='Instituciones-crédito'!C$12,Ganadería!$B48,\"\")","v":""},{"$f":"IF(Ganadería!$E48='Instituciones-crédito'!D$12,Ganadería!$B48,\"\")","v":""},{"$f":"IF(Ganadería!$E48='Instituciones-crédito'!E$12,Ganadería!$B48,\"\")","v":""},{"$f":"IF(Ganadería!$E48='Instituciones-crédito'!F$12,Ganadería!$B48,\"\")","v":""},{"$f":"IF(Ganadería!$E48='Instituciones-crédito'!G$12,Ganadería!$B48,\"\")","v":""},{"$f":"IF(Ganadería!$E48='Instituciones-crédito'!H$12,Ganadería!$B48,\"\")","v":""},{"$f":"_xlfn.XLOOKUP(A75,'Base-datos'!$B$510:$B$516,'Base-datos'!$F$510:$F$516)","v":{"$error":"#N/A"}},{"$f":"_xlfn.XLOOKUP(A75,'Base-datos'!$B$510:$B$516,'Base-datos'!$C$510:$C$516)","v":{"$error":"#N/A"}},{"$f":"_xlfn.XLOOKUP(A75,'Base-datos'!$B$510:$B$516,'Base-datos'!$D$510:$D$516)","v":{"$error":"#N/A"}},null,null,{"$f":"IF(OR($L$56=\"La actividad no cumple con el total de los criterios de No Daño Significativo\",$M$56=\"El sector no cumple con las salvaguardas mínimas\"),\"\",IF(AND('Base-datos'!$B$725=\"Sí\",'Base-datos'!$B$726=\"\",'Base-datos'!$B$727=\"\"),IF('Instituciones-crédito'!J75=\"La actividad sí contribuye sustancialmente a la sostenibilidad\",SUM('Instituciones-crédito'!B75:H75),0),IF(AND('Base-datos'!$B$725=\"Sí\",'Base-datos'!$B$726=\"Sí\",'Base-datos'!$B$727=\"\"),IF(AND('Instituciones-crédito'!J75=\"La actividad sí contribuye sustancialmente a la sostenibilidad\",'Instituciones-crédito'!K75=\"La actividad sí contribuye sustancialmente a la sostenibilidad\"),SUM('Instituciones-crédito'!B75:H75),0),IF(AND('Base-datos'!$B$725=\"Sí\",'Base-datos'!$B$726=\"Sí\",'Base-datos'!$B$727=\"Sí\"),IF(AND('Instituciones-crédito'!J75=\"La actividad sí contribuye sustancialmente a la sostenibilidad\",'Instituciones-crédito'!K75=\"La actividad sí contribuye sustancialmente a la sostenibilidad\",'Instituciones-crédito'!I75=\"La actividad sí contribuye sustancialmente a la sostenibilidad\"),SUM('Instituciones-crédito'!B75:H75),0),IF(AND('Base-datos'!$B$725=\"\",'Base-datos'!$B$726=\"Sí\",'Base-datos'!$B$727=\"\"),IF('Instituciones-crédito'!K75=\"La actividad sí contribuye sustancialmente a la sostenibilidad\",SUM('Instituciones-crédito'!B75:H75),0),IF(AND('Base-datos'!$B$725=\"\",'Base-datos'!$B$726=\"\",'Base-datos'!$B$727=\"Sí\"),IF('Instituciones-crédito'!I75=\"La actividad sí contribuye sustancialmente a la sostenibilidad\",SUM('Instituciones-crédito'!B75:H75),0),IF(AND('Base-datos'!$B$725=\"\",'Base-datos'!$B$726=\"Sí\",'Base-datos'!$B$727=\"Sí\"),IF(AND('Instituciones-crédito'!K75=\"La actividad sí contribuye sustancialmente a la sostenibilidad\",'Instituciones-crédito'!I75=\"La actividad sí contribuye sustancialmente a la sostenibilidad\"),SUM('Instituciones-crédito'!B75:H75),0),IF(AND('Base-datos'!$B$725=\"Sí\",'Base-datos'!$B$726=\"\",'Base-datos'!$B$727=\"Sí\"),IF(AND('Instituciones-crédito'!J75=\"La actividad sí contribuye sustancialmente a la sostenibilidad\",'Instituciones-crédito'!I75=\"La actividad sí contribuye sustancialmente a la sostenibilidad\"),SUM('Instituciones-crédito'!B75:H75),0),\"Por definir\"))))))))","v":"Por definir"}]
["Energía",null,null,null,null,null,null,null,null,null,null,null,null,{"$f":"SUM(IF(FREQUENCY(MATCH(A77:A96, A77:A96, 0), MATCH(A77:A96, A77:A96, 0)) > 0, IF(NOT(ISERROR(N77:N96)), N77:N96, 0)))","v":0}]
[{"$f":"Energía!$C10","v":"Seleccione"},{"$f":"IF(Energía!$E10='Instituciones-crédito'!B$12,Energía!$B10,\"\")","v":""},{"$f":"IF(Energía!$E10='Instituciones-crédito'!C$12,Energía!$B10,\"\")","v":""},{"$f":"IF(Energía!$E10='Instituciones-crédito'!D$12,Energía!$B10,\"\")","v":""},{"$f":"IF(Energía!$E10='Instituciones-crédito'!E$12,Energía!$B10,\"\")","v":""},{"$f":"IF(Energía!$E10='Instituciones-crédito'!F$12,Energía!$B10,\"\")","v":""},{"$f":"IF(Energía!$E10='Instituciones-crédito'!G$12,Energía!$B10,\"\")","v":""},{"$f":"IF(Energía!$E10='Instituciones-crédito'!H$12,Energía!$B10,\"\")","v":""},{"$f":"_xlfn.XLOOKUP(A77,'Base-datos'!$B$521:$B$531,'Base-datos'!$F$521:$F$531)","v":{"$error":"#N/A"}},{"$f":"_xlfn.XLOOKUP(A77,'Base-datos'!$B$521:$B$531,'Base-datos'!$C$521:$C$531)","v":{"$error":"#N/A"}},{"$f":"_xlfn.XLOOKUP(A77,'Base-datos'!$B$521:$B$531,'Base-datos'!$D$521:$D$531)","v":{"$error":"#N/A"}},{"$f":"IF(COUNTIF('Energía-NDS'!G9:G76,\"No\")>0,\"La actividad no cumple con el total de los criterios de NDS\",\"La actividad cumple con los criterios de No Daño Significativo\")","v":"La actividad cumple con los criterios de No Daño Significativo"},{"$f":"IF(OR('Salvaguardas mínimas'!$G$10=\"Seleccione\",'Salvaguardas mínimas'!$G$13=\"Seleccione\",'Salvaguardas mínimas'!$G$16=\"Seleccione\",'Salvaguardas mínimas'!$G$7=\"Seleccione\"),\"No se han respondido todas las preguntas\",IF(OR('Salvaguardas mínimas'!$G$10=\"No\",'Salvaguardas mínimas'!$G$13=\"No\",'Salvaguardas mínimas'!$G$16=\"No\",'Salvaguardas mínimas'!$G$7=\"No\"),\"El sector no cumple con las salvaguardas mínimas\",\"La actividad sí cumple con las salvaguardas mínimas\"))","v":"No se han respondido todas las preguntas"},{"$f":"IF(OR($L$77=\"La actividad no cumple con el total de los criterios de No Daño Significativo\",$M$77=\"El sector no cumple con las salvaguardas mínimas\"),\"\",IF(AND('Base-datos'!$B$730=\"Sí\",'Base-datos'!$B$731=\"\",'Base-datos'!$B$732=\"\"),IF('Instituciones-crédito'!J77=\"La actividad sí contribuye sustancialmente a la sostenibilidad\",SUM('Instituciones-crédito'!B77:H77),0),IF(AND('Base-datos'!$B$730=\"Sí\",'Base-datos'!$B$731=\"Sí\",'Base-datos'!$B$732=\"\"),IF(AND('Instituciones-crédito'!J77=\"La actividad sí contribuye sustancialmente a la sostenibilidad\",'Instituciones-crédito'!K77=\"La actividad sí contribuye sustancialmente a la sostenibilidad\"),SUM('Instituciones-crédito'!B77:H77),0),IF(AND('Base-datos'!$B$730=\"Sí\",'Base-datos'!$B$731=\"Sí\",'Base-datos'!$B$732=\"Sí\"),IF(AND('Instituciones-crédito'!J77=\"La actividad sí contribuye sustancialmente a la sostenibilidad\",'Instituciones-crédito'!K77=\"La actividad sí contribuye sustancialmente a la sostenibilidad\",'Instituciones-crédito'!I77=\"La actividad sí contribuye sustancialmente a la sostenibilidad\"),SUM('Instituciones-crédito'!B77:H77),0),IF(AND('Base-datos'!$B$730=\"\",'Base-datos'!$B$731=\"Sí\",'Base-datos'!$B$732=\"\"),IF('Instituciones-crédito'!K77=\"La actividad sí contribuye sustancialmente a la sostenibilidad\",SUM('Instituciones-crédito'!B77:H77),0),IF(AND('Base-datos'!$B$730=\"\",'Base-datos'!$B$731=\"\",'Base-datos'!$B$732=\"Sí\"),IF('Instituciones-crédito'!I77=\"La actividad sí contribuye sustancialmente a la sostenibilidad\",SUM('Instituciones-crédito'!B77:H77),0),IF(AND('Base-datos'!$B$730=\"\",'Base-datos'!$B$731=\"Sí\",'Base-datos'!$B$732=\"Sí\"),IF(AND('Instituciones-crédito'!K77=\"La actividad sí contribuye sustancialmente a la sostenibilidad\",'Instituciones-crédito'!I77=\"La actividad sí contribuye sustancialmente a la sostenibilidad\"),SUM('Instituciones-crédito'!B77:H77),0),IF(AND('Base-datos'!$B$730=\"Sí\",'Base-datos'!$B$731=\"\",'Base-datos'!$B$732=\"Sí\"),IF(AND('Instituciones-crédito'!J77=\"La actividad sí contribuye sustancialmente a la sostenibilidad\",'Instituciones-crédito'!I77=\"La actividad sí contribuye sustancialmente a la sostenibilidad\"),SUM('Instituciones-crédito'!B77:H77),0),\"Por definir\"))))))))","v":"Por definir"}]
[{"$f":"Energía!$C12","v":"Seleccione"},{"$f":"IF(Energía!$E12='Instituciones-crédito'!B$12,Energía!$B12,\"\")","v":""},{"$f":"IF(Energía!$E12='Instituciones-crédito'!C$12,Energía!$B12,\"\")","v":""},{"$f":"IF(Energía!$E12='Instituciones-crédito'!D$12,Energía!$B12,\"\")","v":""},{"$f":"IF(Energía!$E12='Instituciones-crédito'!E$12,Energía!$B12,\"\")","v":""},{"$f":"IF(Energía!$E12='Instituciones-crédito'!F$12,Energía!$B12,\"\")","v":""},{"$f":"IF(Energía!$E12='Instituciones-crédito'!G$12,Energía!$B12,\"\")","v":""},{"$f":"IF(Energía!$E12='Instituciones-crédito'!H$12,Energía!$B12,\"\")","v":""},{"$f":"_xlfn.XLOOKUP(A78,'Base-datos'!$B$521:$B$531,'Base-datos'!$F$521:$F$531)","v":{"$error":"#N/A"}},{"$f":"_xlfn.XLOOKUP(A78,'Base-datos'!$B$521:$B$531,'Base-datos'!$C$521:$C$531)","v":{"$error":"#N/A"}},{"$f":"_xlfn.XLOOKUP(A78,'Base-datos'!$B$521:$B$531,'Base-datos'!$D$521:$D$531)","v":{"$error":"#N/A"}},null,null,{"$f":"IF(OR($L$77=\"La actividad no cumple con el total de los criterios de No Daño Significativo\",$M$77=\"El sector no cumple con las salvaguardas mínimas\"),\"\",IF(AND('Base-datos'!$B$730=\"Sí\",'Base-datos'!$B$731=\"\",'Base-datos'!$B$732=\"\"),IF('Instituciones-crédito'!J78=\"La actividad sí contribuye sustancialmente a la sostenibilidad\",SUM('Instituciones-crédito'!B78:H78),0),IF(AND('Base-datos'!$B$730=\"Sí\",'Base-datos'!$B$731=\"Sí\",'Base-datos'!$B$732=\"\"),IF(AND('Instituciones-crédito'!J78=\"La actividad sí contribuye sustancialmente a la sostenibilidad\",'Instituciones-crédito'!K78=\"La actividad sí contribuye sustancialmente a la sostenibilidad\"),SUM('Instituciones-crédito'!B78:H78),0),IF(AND('Base-datos'!$B$730=\"Sí\",'Base-datos'!$B$731=\"Sí\",'Base-datos'!$B$732=\"Sí\"),IF(AND('Instituciones-crédito'!J78=\"La actividad sí contribuye sustancialmente a la sostenibilidad\",'Instituciones-crédito'!K78=\"La actividad sí contribuye sustancialmente a la sostenibilidad\",'Instituciones-crédito'!I78=\"La actividad sí contribuye sustancialmente a la sostenibilidad\"),SUM('Instituciones-crédito'!B78:H78),0),IF(AND('Base-datos'!$B$730=\"\",'Base-datos'!$B$731=\"Sí\",'Base-datos'!$B$732=\"\"),IF('Instituciones-crédito'!K78=\"La actividad sí contribuye sustancialmente a la sostenibilidad\",SUM('Instituciones-crédito'!B78:H78),0),IF(AND('Base-datos'!$B$730=\"\",'Base-datos'!$B$731=\"\",'Base-datos'!$B$732=\"Sí\"),IF('Instituciones-crédito'!I78=\"La actividad sí contribuye sustancialmente a la sostenibilidad\",SUM('Instituciones-crédito'!B78:H78),0),IF(AND('Base-datos'!$B$730=\"\",'Base-datos'!$B$731=\"Sí\",'Base-datos'!$B$732=\"Sí\"),IF(AND('Instituciones-crédito'!K78=\"La actividad sí contribuye sustancialmente a la sostenibilidad\",'Instituciones-crédito'!I78=\"La actividad sí contribuye sustancialmente a la sostenibilidad\"),SUM('Instituciones-crédito'!B78:H78),0),IF(AND('Base-datos'!$B$730=\"Sí\",'Base-datos'!$B$731=\"\",'Base-datos'!$B$732=\"Sí\"),IF(AND('Instituciones-crédito'!J78=\"La actividad sí contribuye sustancialmente a la sostenibilidad\",'Instituciones-crédito'!I78=\"La actividad sí contribuye sustancialmente a la sostenibilidad\"),SUM('Instituciones-crédito'!B78:H78),0),\"Por definir\"))))))))","v":"Por definir"}]
[{"$f":"Energía!$C14","v":"Seleccione"},{"$f":"IF(Energía!$E14='Instituciones-crédito'!B$12,Energía!$B14,\"\")","v":""},{"$f":"IF(Energía!$E14='Instituciones-crédito'!C$12,Energía!$B14,\"\")","v":""},{"$f":"IF(Energía!$E14='Instituciones-crédito'!D$12,Energía!$B14,\"\")","v":""},{"$f":"IF(Energía!$E14='Instituciones-crédito'!E$12,Energía!$B14,\"\")","v":""},{"$f":"IF(Energía!$E14='Instituciones-crédito'!F$12,Energía!$B14,\"\")","v":""},{"$f":"IF(Energía!$E14='Instituciones-crédito'!G$12,Energía!$B14,\"\")","v":""},{"$f":"IF(Energía!$E14='Instituciones-crédito'!H$12,Energía!$B14,\"\")","v":""},{"$f":"_xlfn.XLOOKUP(A79,'Base-datos'!$B$521:$B$531,'Base-datos'!$F$521:$F$531)","v":{"$error":"#N/A"}},{"$f":"_xlfn.XLOOKUP(A79,'Base-datos'!$B$521:$B$531,'Base-datos'!$C$521:$C$531)","v":{"$error":"#N/A"}},{"$f":"_xlfn.XLOOKUP(A79,'Base-datos'!$B$521:$B$531,'Base-datos'!$D$521:$D$531)","v":{"$error":"#N/A"}},null,null,{"$f":"IF(OR($L$77=\"La actividad no cumple con el total de los criterios de No Daño Significativo\",$M$77=\"El sector no cumple con las salvaguardas mínimas\"),\"\",IF(AND('Base-datos'!$B$730=\"Sí\",'Base-datos'!$B$731=\"\",'Base-datos'!$B$732=\"\"),IF('Instituciones-crédito'!J79=\"La actividad sí contribuye sustancialmente a la sostenibilidad\",SUM('Instituciones-crédito'!B79:H79),0),IF(AND('Base-datos'!$B$730=\"Sí\",'Base-datos'!$B$731=\"Sí\",'Base-datos'!$B$732=\"\"),IF(AND('Instituciones-crédito'!J79=\"La actividad sí contribuye sustancialmente a la sostenibilidad\",'Instituciones-crédito'!K79=\"La actividad sí contribuye sustancialmente a la sostenibilidad\"),SUM('Instituciones-crédito'!B79:H79),0),IF(AND('Base-datos'!$B$730=\"Sí\",'Base-datos'!$B$731=\"Sí\",'Base-datos'!$B$732=\"Sí\"),IF(AND('Instituciones-crédito'!J79=\"La actividad sí contribuye sustancialmente a la sostenibilidad\",'Instituciones-crédito'!K79=\"La actividad sí contribuye sustancialmente a la sostenibilidad\",'Instituciones-crédito'!I79=\"La actividad sí contribuye sustancialmente a la sostenibilidad\"),SUM('Instituciones-crédito'!B79:H79),0),IF(AND('Base-datos'!$B$730=\"\",'Base-datos'!$B$731=\"Sí\",'Base-datos'!$B$732=\"\"),IF('Instituciones-crédito'!K79=\"La actividad sí contribuye sustancialmente a la sostenibilidad\",SUM('Instituciones-crédito'!B79:H79),0),IF(AND('Base-datos'!$B$730=\"\",'Base-datos'!$B$731=\"\",'Base-datos'!$B$732=\"Sí\"),IF('Instituciones-crédito'!I79=\"La actividad sí contribuye sustancialmente a la sostenibilidad\",SUM('Instituciones-crédito'!B79:H79),0),IF(AND('Base-datos'!$B$730=\"\",'Base-datos'!$B$731=\"Sí\",'Base-datos'!$B$732=\"Sí\"),IF(AND('Instituciones-crédito'!K79=\"La actividad sí contribuye sustancialmente a la sostenibilidad\",'Instituciones-crédito'!I79=\"La actividad sí contribuye sustancialmente a la sostenibilidad\"),SUM('Instituciones-crédito'!B79:H79),0),IF(AND('Base-datos'!$B$730=\"Sí\",'Base-datos'!$B$731=\"\",'Base-datos'!$B$732=\"Sí\"),IF(AND('Instituciones-crédito'!J79=\"La actividad sí contribuye sustancialmente a la sostenibilidad\",'Instituciones-crédito'!I79=\"La actividad sí contribuye sustancialmente a la sostenibilidad\"),SUM('Instituciones-crédito'!B79:H79),0),\"Por definir\"))))))))","v":"Por definir"}]
[{"$f":"Energía!$C16","v":"Seleccione"},{"$f":"IF(Energía!$E16='Instituciones-crédito'!B$12,Energía!$B16,\"\")","v":""},{"$f":"IF(Energía!$E16='Instituciones-crédito'!C$12,Energía!$B16,\"\")","v":""},{"$f":"IF(Energía!$E16='Instituciones-crédito'!D$12,Energía!$B16,\"\")","v":""},{"$f":"IF(Energía!$E16='Instituciones-crédito'!E$12,Energía!$B16,\"\")","v":""},{"$f":"IF(Energía!$E16='Instituciones-crédito'!F$12,Energía!$B16,\"\")","v":""},{"$f":"IF(Energía!$E16='Instituciones-crédito'!G$12,Energía!$B16,\"\")","v":""},{"$f":"IF(Energía!$E16='Instituciones-crédito'!H$12,Energía!$B16,\"\")","v":""},{"$f":"_xlfn.XLOOKUP(A80,'Base-datos'!$B$521:$B$531,'Base-datos'!$F$521:$F$531)","v":{"$error":"#N/A"}},{"$f":"_xlfn.XLOOKUP(A80,'Base-datos'!$B$521:$B$531,'Base-datos'!$C$521:$C$531)","v":{"$error":"#N/A"}},{"$f":"_xlfn.XLOOKUP(A80,'Base-datos'!$B$521:$B$531,'Base-datos'!$D$521:$D$531)","v":{"$error":"#N/A"}},null,null,{"$f":"IF(OR($L$77=\"La actividad no cumple con el total de los criterios de No Daño Significativo\",$M$77=\"El sector no cumple con las salvaguardas mínimas\"),\"\",IF(AND('Base-datos'!$B$730=\"Sí\",'Base-datos'!$B$731=\"\",'Base-datos'!$B$732=\"\"),IF('Instituciones-crédito'!J80=\"La actividad sí contribuye sustancialmente a la sostenibilidad\",SUM('Instituciones-crédito'!B80:H80),0),IF(AND('Base-datos'!$B$730=\"Sí\",'Base-datos'!$B$731=\"Sí\",'Base-datos'!$B$732=\"\"),IF(AND('Instituciones-crédito'!J80=\"La actividad sí contribuye sustancialmente a la sostenibilidad\",'Instituciones-crédito'!K80=\"La actividad sí contribuye sustancialmente a la sostenibilidad\"),SUM('Instituciones-crédito'!B80:H80),0),IF(AND('Base-datos'!$B$730=\"Sí\",'Base-datos'!$B$731=\"Sí\",'Base-datos'!$B$732=\"Sí\"),IF(AND('Instituciones-crédito'!J80=\"La actividad sí contribuye sustancialmente a la sostenibilidad\",'Instituciones-crédito'!K80=\"La actividad sí contribuye sustancialmente a la sostenibilidad\",'Instituciones-crédito'!I80=\"La actividad sí contribuye sustancialmente a la sostenibilidad\"),SUM('Instituciones-crédito'!B80:H80),0),IF(AND('Base-datos'!$B$730=\"\",'Base-datos'!$B$731=\"Sí\",'Base-datos'!$B$732=\"\"),IF('Instituciones-crédito'!K80=\"La actividad sí contribuye sustancialmente a la sostenibilidad\",SUM('Instituciones-crédito'!B80:H80),0),IF(AND('Base-datos'!$B$730=\"\",'Base-datos'!$B$731=\"\",'Base-datos'!$B$732=\"Sí\"),IF('Instituciones-crédito'!I80=\"La actividad sí contribuye sustancialmente a la sostenibilidad\",SUM('Instituciones-crédito'!B80:H80),0),IF(AND('Base-datos'!$B$730=\"\",'Base-datos'!$B$731=\"Sí\",'Base-datos'!$B$732=\"Sí\"),IF(AND('Instituciones-crédito'!K80=\"La actividad sí contribuye sustancialmente a la sostenibilidad\",'Instituciones-crédito'!I80=\"La actividad sí contribuye sustancialmente a la sostenibilidad\"),SUM('Instituciones-crédito'!B80:H80),0),IF(AND('Base-datos'!$B$730=\"Sí\",'Base-datos'!$B$731=\"\",'Base-datos'!$B$732=\"Sí\"),IF(AND('Instituciones-crédito'!J80=\"La actividad sí contribuye sustancialmente a la sostenibilidad\",'Instituciones-crédito'!I80=\"La actividad sí contribuye sustancialmente a la sostenibilidad\"),SUM('Instituciones-crédito'!B80:H80),0),\"Por definir\"))))))))","v":"Por definir"}]
[{"$f":"Energía!$C18","v":"Seleccione"},{"$f":"IF(Energía!$E18='Instituciones-crédito'!B$12,Energía!$B18,\"\")","v":""},{"$f":"IF(Energía!$E18='Instituciones-crédito'!C$12,Energía!$B18,\"\")","v":""},{"$f":"IF(Energía!$E18='Instituciones-crédito'!D$12,Energía!$B18,\"\")","v":""},{"$f":"IF(Energía!$E18='Instituciones-crédito'!E$12,Energía!$B18,\"\")","v":""},{"$f":"IF(Energía!$E18='Instituciones-crédito'!F$12,Energía!$B18,\"\")","v":""},{"$f":"IF(Energía!$E18='Instituciones-crédito'!G$12,Energía!$B18,\"\")","v":""},{"$f":"IF(Energía!$E18='Instituciones-crédito'!H$12,Energía!$B18,\"\")","v":""},{"$f":"_xlfn.XLOOKUP(A81,'Base-datos'!$B$521:$B$531,'Base-datos'!$F$521:$F$531)","v":{"$error":"#N/A"}},{"$f":"_xlfn.XLOOKUP(A81,'Base-datos'!$B$521:$B$531,'Base-datos'!$C$521:$C$531)","v":{"$error":"#N/A"}},{"$f":"_xlfn.XLOOKUP(A81,'Base-datos'!$B$521:$B$531,'Base-datos'!$D$521:$D$531)","v":{"$error":"#N/A"}},null,null,{"$f":"IF(OR($L$77=\"La actividad no cumple con el total de los criterios de No Daño Significativo\",$M$77=\"El sector no cumple con las salvaguardas mínimas\"),\"\",IF(AND('Base-datos'!$B$730=\"Sí\",'Base-datos'!$B$731=\"\",'Base-datos'!$B$732=\"\"),IF('Instituciones-crédito'!J81=\"La actividad sí contribuye sustancialmente a la sostenibilidad\",SUM('Instituciones-crédito'!B81:H81),0),IF(AND('Base-datos'!$B$730=\"Sí\",'Base-datos'!$B$731=\"Sí\",'Base-datos'!$B$732=\"\"),IF(AND('Instituciones-crédito'!J81=\"La actividad sí contribuye sustancialmente a la sostenibilidad\",'Instituciones-crédito'!K81=\"La actividad sí contribuye sustancialmente a la sostenibilidad\"),SUM('Instituciones-crédito'!B81:H81),0),IF(AND('Base-datos'!$B$730=\"Sí\",'Base-datos'!$B$731=\"Sí\",'Base-datos'!$B$732=\"Sí\"),IF(AND('Instituciones-crédito'!J81=\"La actividad sí contribuye sustancialmente a la sostenibilidad\",'Instituciones-crédito'!K81=\"La actividad sí contribuye sustancialmente a la sostenibilidad\",'Instituciones-crédito'!I81=\"La actividad sí contribuye sustancialmente a la sostenibilidad\"),SUM('Instituciones-crédito'!B81:H81),0),IF(AND('Base-datos'!$B$730=\"\",'Base-datos'!$B$731=\"Sí\",'Base-datos'!$B$732=\"\"),IF('Instituciones-crédito'!K81=\"La actividad sí contribuye sustancialmente a la sostenibilidad\",SUM('Instituciones-crédito'!B81:H81),0),IF(AND('Base-datos'!$B$730=\"\",'Base-datos'!$B$731=\"\",'Base-datos'!$B$732=\"Sí\"),IF('Instituciones-crédito'!I81=\"La actividad sí contribuye sustancialmente a la sostenibilidad\",SUM('Instituciones-crédito'!B81:H81),0),IF(AND('Base-datos'!$B$730=\"\",'Base-datos'!$B$731=\"Sí\",'Base-datos'!$B$732=\"Sí\"),IF(AND('Instituciones-crédito'!K81=\"La actividad sí contribuye sustancialmente a la sostenibilidad\",'Instituciones-crédito'!I81=\"La actividad sí contribuye sustancialmente a la sostenibilidad\"),SUM('Instituciones-crédito'!B81:H81),0),IF(AND('Base-datos'!$B$730=\"Sí\",'Base-datos'!$B$731=\"\",'Base-datos'!$B$732=\"Sí\"),IF(AND('Instituciones-crédito'!J81=\"La actividad sí contribuye sustancialmente a la sostenibilidad\",'Instituciones-crédito'!I81=\"La actividad sí contribuye sustancialmente a la sostenibilidad\"),SUM('Instituciones-crédito'!B81:H81),0),\"Por definir\"))))))))","v":"Por definir"}]
[{"$f":"Energía!$C20","v":"Seleccione"},{"$f":"IF(Energía!$E20='Instituciones-crédito'!B$12,Energía!$B20,\"\")","v":""},{"$f":"IF(Energía!$E20='Instituciones-crédito'!C$12,Energía!$B20,\"\")","v":""},{"$f":"IF(Energía!$E20='Instituciones-crédito'!D$12,Energía!$B20,\"\")","v":""},{"$f":"IF(Energía!$E20='Instituciones-crédito'!E$12,Energía!$B20,\"\")","v":""},{"$f":"IF(Energía!$E20='Instituciones-crédito'!F$12,Energía!$B20,\"\")","v":""},{"$f":"IF(Energía!$E20='Instituciones-crédito'!G$12,Energía!$B20,\"\")","v":""},{"$f":"IF(Energía!$E20='Instituciones-crédito'!H$12,Energía!$B20,\"\")","v":""},{"$f":"_xlfn.XLOOKUP(A82,'Base-datos'!$B$521:$B$531,'Base-datos'!$F$521:$F$531)","v":{"$error":"#N/A"}},{"$f":"_xlfn.XLOOKUP(A82,'Base-datos'!$B$521:$B$531,'Base-datos'!$C$521:$C$531)","v":{"$error":"#N/A"}},{"$f":"_xlfn.XLOOKUP(A82,'Base-datos'!$B$521:$B$531,'Base-datos'!$D$521:$D$531)","v":{"$error":"#N/A"}},null,null,{"$f":"IF(OR($L$77=\"La actividad no cumple con el total de los criterios de No Daño Significativo\",$M$77=\"El sector no cumple con las salvaguardas mínimas\"),\"\",IF(AND('Base-datos'!$B$730=\"Sí\",'Base-datos'!$B$731=\"\",'Base-datos'!$B$732=\"\"),IF('Instituciones-crédito'!J82=\"La actividad sí contribuye sustancialmente a la sostenibilidad\",SUM('Instituciones-crédito'!B82:H82),0),IF(AND('Base-datos'!$B$730=\"Sí\",'Base-datos'!$B$731=\"Sí\",'Base-datos'!$B$732=\"\"),IF(AND('Instituciones-crédito'!J82=\"La actividad sí contribuye sustancialmente a la sostenibilidad\",'Instituciones-crédito'!K82=\"La actividad sí contribuye sustancialmente a la sostenibilidad\"),SUM('Instituciones-crédito'!B82:H82),0),IF(AND('Base-datos'!$B$730=\"Sí\",'Base-datos'!$B$731=\"Sí\",'Base-datos'!$B$732=\"Sí\"),IF(AND('Instituciones-crédito'!J82=\"La actividad sí contribuye sustancialmente a la sostenibilidad\",'Instituciones-crédito'!K82=\"La actividad sí contribuye sustancialmente a la sostenibilidad\",'Instituciones-crédito'!I82=\"La actividad sí contribuye sustancialmente a la sostenibilidad\"),SUM('Instituciones-crédito'!B82:H82),0),IF(AND('Base-datos'!$B$730=\"\",'Base-datos'!$B$731=\"Sí\",'Base-datos'!$B$732=\"\"),IF('Instituciones-crédito'!K82=\"La actividad sí contribuye sustancialmente a la sostenibilidad\",SUM('Instituciones-crédito'!B82:H82),0),IF(AND('Base-datos'!$B$730=\"\",'Base-datos'!$B$731=\"\",'Base-datos'!$B$732=\"Sí\"),IF('Instituciones-crédito'!I82=\"La actividad sí contribuye sustancialmente a la sostenibilidad\",SUM('Instituciones-crédito'!B82:H82),0),IF(AND('Base-datos'!$B$730=\"\",'Base-datos'!$B$731=\"Sí\",'Base-datos'!$B$732=\"Sí\"),IF(AND('Instituciones-crédito'!K82=\"La actividad sí contribuye sustancialmente a la sostenibilidad\",'Instituciones-crédito'!I82=\"La actividad sí contribuye sustancialmente a la sostenibilidad\"),SUM('Instituciones-crédito'!B82:H82),0),IF(AND('Base-datos'!$B$730=\"Sí\",'Base-datos'!$B$731=\"\",'Base-datos'!$B$732=\"Sí\"),IF(AND('Instituciones-crédito'!J82=\"La actividad sí contribuye sustancialmente a la sostenibilidad\",'Instituciones-crédito'!I82=\"La actividad sí contribuye sustancialmente a la sostenibilidad\"),SUM('Instituciones-crédito'!B82:H82),0),\"Por definir\"))))))))","v":"Por definir"}]
[{"$f":"Energía!$C22","v":"Seleccione"},{"$f":"IF(Energía!$E22='Instituciones-crédito'!B$12,Energía!$B22,\"\")","v":""},{"$f":"IF(Energía!$E22='Instituciones-crédito'!C$12,Energía!$B22,\"\")","v":""},{"$f":"IF(Energía!$E22='Instituciones-crédito'!D$12,Energía!$B22,\"\")","v":""},{"$f":"IF(Energía!$E22='Instituciones-crédito'!E$12,Energía!$B22,\"\")","v":""},{"$f":"IF(Energía!$E22='Instituciones-crédito'!F$12,Energía!$B22,\"\")","v":""},{"$f":"IF(Energía!$E22='Instituciones-crédito'!G$12,Energía!$B22,\"\")","v":""},{"$f":"IF(Energía!$E22='Instituciones-crédito'!H$12,Energía!$B22,\"\")","v":""},{"$f":"_xlfn.XLOOKUP(A83,'Base-datos'!$B$521:$B$531,'Base-datos'!$F$521:$F$531)","v":{"$error":"#N/A"}},{"$f":"_xlfn.XLOOKUP(A83,'Base-datos'!$B$521:$B$531,'Base-datos'!$C$521:$C$531)","v":{"$error":"#N/A"}},{"$f":"_xlfn.XLOOKUP(A83,'Base-datos'!$B$521:$B$531,'Base-datos'!$D$521:$D$531)","v":{"$error":"#N/A"}},null,null,{"$f":"IF(OR($L$77=\"La actividad no cumple con el total de los criterios de No Daño Significativo\",$M$77=\"El sector no cumple con las salvaguardas mínimas\"),\"\",IF(AND('Base-datos'!$B$730=\"Sí\",'Base-datos'!$B$731=\"\",'Base-datos'!$B$732=\"\"),IF('Instituciones-crédito'!J83=\"La actividad sí contribuye sustancialmente a la sostenibilidad\",SUM('Instituciones-crédito'!B83:H83),0),IF(AND('Base-datos'!$B$730=\"Sí\",'Base-datos'!$B$731=\"Sí\",'Base-datos'!$B$732=\"\"),IF(AND('Instituciones-crédito'!J83=\"La actividad sí contribuye sustancialmente a la sostenibilidad\",'Instituciones-crédito'!K83=\"La actividad sí contribuye sustancialmente a la sostenibilidad\"),SUM('Instituciones-crédito'!B83:H83),0),IF(AND('Base-datos'!$B$730=\"Sí\",'Base-datos'!$B$731=\"Sí\",'Base-datos'!$B$732=\"Sí\"),IF(AND('Instituciones-crédito'!J83=\"La actividad sí contribuye sustancialmente a la sostenibilidad\",'Instituciones-crédito'!K83=\"La actividad sí contribuye sustancialmente a la sostenibilidad\",'Instituciones-crédito'!I83=\"La actividad sí contribuye sustancialmente a la sostenibilidad\"),SUM('Instituciones-crédito'!B83:H83),0),IF(AND('Base-datos'!$B$730=\"\",'Base-datos'!$B$731=\"Sí\",'Base-datos'!$B$732=\"\"),IF('Instituciones-crédito'!K83=\"La actividad sí contribuye sustancialmente a la sostenibilidad\",SUM('Instituciones-crédito'!B83:H83),0),IF(AND('Base-datos'!$B$730=\"\",'Base-datos'!$B$731=\"\",'Base-datos'!$B$732=\"Sí\"),IF('Instituciones-crédito'!I83=\"La actividad sí contribuye sustancialmente a la sostenibilidad\",SUM('Instituciones-crédito'!B83:H83),0),IF(AND('Base-datos'!$B$730=\"\",'Base-datos'!$B$731=\"Sí\",'Base-datos'!$B$732=\"Sí\"),IF(AND('Instituciones-crédito'!K83=\"La actividad sí contribuye sustancialmente a la sostenibilidad\",'Instituciones-crédito'!I83=\"La actividad sí contribuye sustancialmente a la sostenibilidad\"),SUM('Instituciones-crédito'!B83:H83),0),IF(AND('Base-datos'!$B$730=\"Sí\",'Base-datos'!$B$731=\"\",'Base-datos'!$B$732=\"Sí\"),IF(AND('Instituciones-crédito'!J83=\"La actividad sí contribuye sustancialmente a la sostenibilidad\",'Instituciones-crédito'!I83=\"La actividad sí contribuye sustancialmente a la sostenibilidad\"),SUM('Instituciones-crédito'!B83:H83),0),\"Por definir\"))))))))","v":"Por definir"}]
[{"$f":"Energía!$C24","v":"Seleccione"},{"$f":"IF(Energía!$E24='Instituciones-crédito'!B$12,Energía!$B24,\"\")","v":""},{"$f":"IF(Energía!$E24='Instituciones-crédito'!C$12,Energía!$B24,\"\")","v":""},{"$f":"IF(Energía!$E24='Instituciones-crédito'!D$12,Energía!$B24,\"\")","v":""},{"$f":"IF(Energía!$E24='Instituciones-crédito'!E$12,Energía!$B24,\"\")","v":""},{"$f":"IF(Energía!$E24='Instituciones-crédito'!F$12,Energía!$B24,\"\")","v":""},{"$f":"IF(Energía!$E24='Instituciones-crédito'!G$12,Energía!$B24,\"\")","v":""},{"$f":"IF(Energía!$E24='Instituciones-crédito'!H$12,Energía!$B24,\"\")","v":""},{"$f":"_xlfn.XLOOKUP(A84,'Base-datos'!$B$521:$B$531,'Base-datos'!$F$521:$F$531)","v":{"$error":"#N/A"}},{"$f":"_xlfn.XLOOKUP(A84,'Base-datos'!$B$521:$B$531,'Base-datos'!$C$521:$C$531)","v":{"$error":"#N/A"}},{"$f":"_xlfn.XLOOKUP(A84,'Base-datos'!$B$521:$B$531,'Base-datos'!$D$521:$D$531)","v":{"$error":"#N/A"}},null,null,{"$f":"IF(OR($L$77=\"La actividad no cumple con el total de los criterios de No Daño Significativo\",$M$77=\"El sector no cumple con las salvaguardas mínimas\"),\"\",IF(AND('Base-datos'!$B$730=\"Sí\",'Base-datos'!$B$731=\"\",'Base-datos'!$B$732=\"\"),IF('Instituciones-crédito'!J84=\"La actividad sí contribuye sustancialmente a la sostenibilidad\",SUM('Instituciones-crédito'!B84:H84),0),IF(AND('Base-datos'!$B$730=\"Sí\",'Base-datos'!$B$731=\"Sí\",'Base-datos'!$B$732=\"\"),IF(AND('Instituciones-crédito'!J84=\"La actividad sí contribuye sustancialmente a la sostenibilidad\",'Instituciones-crédito'!K84=\"La actividad sí contribuye sustancialmente a la sostenibilidad\"),SUM('Instituciones-crédito'!B84:H84),0),IF(AND('Base-datos'!$B$730=\"Sí\",'Base-datos'!$B$731=\"Sí\",'Base-datos'!$B$732=\"Sí\"),IF(AND('Instituciones-crédito'!J84=\"La actividad sí contribuye sustancialmente a la sostenibilidad\",'Instituciones-crédito'!K84=\"La actividad sí contribuye sustancialmente a la sostenibilidad\",'Instituciones-crédito'!I84=\"La actividad sí contribuye sustancialmente a la sostenibilidad\"),SUM('Instituciones-crédito'!B84:H84),0),IF(AND('Base-datos'!$B$730=\"\",'Base-datos'!$B$731=\"Sí\",'Base-datos'!$B$732=\"\"),IF('Instituciones-crédito'!K84=\"La actividad sí contribuye sustancialmente a la sostenibilidad\",SUM('Instituciones-crédito'!B84:H84),0),IF(AND('Base-datos'!$B$730=\"\",'Base-datos'!$B$731=\"\",'Base-datos'!$B$732=\"Sí\"),IF('Instituciones-crédito'!I84=\"La actividad sí contribuye sustancialmente a la sostenibilidad\",SUM('Instituciones-crédito'!B84:H84),0),IF(AND('Base-datos'!$B$730=\"\",'Base-datos'!$B$731=\"Sí\",'Base-datos'!$B$732=\"Sí\"),IF(AND('Instituciones-crédito'!K84=\"La actividad sí contribuye sustancialmente a la sostenibilidad\",'Instituciones-crédito'!I84=\"La actividad sí contribuye sustancialmente a la sostenibilidad\"),SUM('Instituciones-crédito'!B84:H84),0),IF(AND('Base-datos'!$B$730=\"Sí\",'Base-datos'!$B$731=\"\",'Base-datos'!$B$732=\"Sí\"),IF(AND('Instituciones-crédito'!J84=\"La actividad sí contribuye sustancialmente a la sostenibilidad\",'Instituciones-crédito'!I84=\"La actividad sí contribuye sustancialmente a la sostenibilidad\"),SUM('Instituciones-crédito'!B84:H84),0),\"Por definir\"))))))))","v":"Por definir"}]
[{"$f":"Energía!$C26","v":"Seleccione"},{"$f":"IF(Energía!$E26='Instituciones-crédito'!B$12,Energía!$B26,\"\")","v":""},{"$f":"IF(Energía!$E26='Instituciones-crédito'!C$12,Energía!$B26,\"\")","v":""},{"$f":"IF(Energía!$E26='Instituciones-crédito'!D$12,Energía!$B26,\"\")","v":""},{"$f":"IF(Energía!$E26='Instituciones-crédito'!E$12,Energía!$B26,\"\")","v":""},{"$f":"IF(Energía!$E26='Instituciones-crédito'!F$12,Energía!$B26,\"\")","v":""},{"$f":"IF(Energía!$E26='Instituciones-crédito'!G$12,Energía!$B26,\"\")","v":""},{"$f":"IF(Energía!$E26='Instituciones-crédito'!H$12,Energía!$B26,\"\")","v":""},{"$f":"_xlfn.XLOOKUP(A85,'Base-datos'!$B$521:$B$531,'Base-datos'!$F$521:$F$531)","v":{"$error":"#N/A"}},{"$f":"_xlfn.XLOOKUP(A85,'Base-datos'!$B$521:$B$531,'Base-datos'!$C$521:$C$531)","v":{"$error":"#N/A"}},{"$f":"_xlfn.XLOOKUP(A85,'Base-datos'!$B$521:$B$531,'Base-datos'!$D$521:$D$531)","v":{"$error":"#N/A"}},null,null,{"$f":"IF(OR($L$77=\"La actividad no cumple con el total de los criterios de No Daño Significativo\",$M$77=\"El sector no cumple con las salvaguardas mínimas\"),\"\",IF(AND('Base-datos'!$B$730=\"Sí\",'Base-datos'!$B$731=\"\",'Base-datos'!$B$732=\"\"),IF('Instituciones-crédito'!J85=\"La actividad sí contribuye sustancialmente a la sostenibilidad\",SUM('Instituciones-crédito'!B85:H85),0),IF(AND('Base-datos'!$B$730=\"Sí\",'Base-datos'!$B$731=\"Sí\",'Base-datos'!$B$732=\"\"),IF(AND('Instituciones-crédito'!J85=\"La actividad sí contribuye sustancialmente a la sostenibilidad\",'Instituciones-crédito'!K85=\"La actividad sí contribuye sustancialmente a la sostenibilidad\"),SUM('Instituciones-crédito'!B85:H85),0),IF(AND('Base-datos'!$B$730=\"Sí\",'Base-datos'!$B$731=\"Sí\",'Base-datos'!$B$732=\"Sí\"),IF(AND('Instituciones-crédito'!J85=\"La actividad sí contribuye sustancialmente a la sostenibilidad\",'Instituciones-crédito'!K85=\"La actividad sí contribuye sustancialmente a la sostenibilidad\",'Instituciones-crédito'!I85=\"La actividad sí contribuye sustancialmente a la sostenibilidad\"),SUM('Instituciones-crédito'!B85:H85),0),IF(AND('Base-datos'!$B$730=\"\",'Base-datos'!$B$731=\"Sí\",'Base-datos'!$B$732=\"\"),IF('Instituciones-crédito'!K85=\"La actividad sí contribuye sustancialmente a la sostenibilidad\",SUM('Instituciones-crédito'!B85:H85),0),IF(AND('Base-datos'!$B$730=\"\",'Base-datos'!$B$731=\"\",'Base-datos'!$B$732=\"Sí\"),IF('Instituciones-crédito'!I85=\"La actividad sí contribuye sustancialmente a la sostenibilidad\",SUM('Instituciones-crédito'!B85:H85),0),IF(AND('Base-datos'!$B$730=\"\",'Base-datos'!$B$731=\"Sí\",'Base-datos'!$B$732=\"Sí\"),IF(AND('Instituciones-crédito'!K85=\"La actividad sí contribuye sustancialmente a la sostenibilidad\",'Instituciones-crédito'!I85=\"La actividad sí contribuye sustancialmente a la sostenibilidad\"),SUM('Instituciones-crédito'!B85:H85),0),IF(AND('Base-datos'!$B$730=\"Sí\",'Base-datos'!$B$731=\"\",'Base-datos'!$B$732=\"Sí\"),IF(AND('Instituciones-crédito'!J85=\"La actividad sí contribuye sustancialmente a la sostenibilidad\",'Instituciones-crédito'!I85=\"La actividad sí contribuye sustancialmente a la sostenibilidad\"),SUM('Instituciones-crédito'!B85:H85),0),\"Por definir\"))))))))","v":"Por definir"}]
[{"$f":"Energía!$C28","v":"Seleccione"},{"$f":"IF(Energía!$E28='Instituciones-crédito'!B$12,Energía!$B28,\"\")","v":""},{"$f":"IF(Energía!$E28='Instituciones-crédito'!C$12,Energía!$B28,\"\")","v":""},{"$f":"IF(Energía!$E28='Instituciones-crédito'!D$12,Energía!$B28,\"\")","v":""},{"$f":"IF(Energía!$E28='Instituciones-crédito'!E$12,Energía!$B28,\"\")","v":""},{"$f":"IF(Energía!$E28='Instituciones-crédito'!F$12,Energía!$B28,\"\")","v":""},{"$f":"IF(Energía!$E28='Instituciones-crédito'!G$12,Energía!$B28,\"\")","v":""},{"$f":"IF(Energía!$E28='Instituciones-crédito'!H$12,Energía!$B28,\"\")","v":""},{"$f":"_xlfn.XLOOKUP(A86,'Base-datos'!$B$521:$B$531,'Base-datos'!$F$521:$F$531)","v":{"$error":"#N/A"}},{"$f":"_xlfn.XLOOKUP(A86,'Base-datos'!$B$521:$B$531,'Base-datos'!$C$521:$C$531)","v":{"$error":"#N/A"}},{"$f":"_xlfn.XLOOKUP(A86,'Base-datos'!$B$521:$B$531,'Base-datos'!$D$521:$D$531)","v":{"$error":"#N/A"}},null,null,{"$f":"IF(OR($L$77=\"La actividad no cumple con el total de los criterios de No Daño Significativo\",$M$77=\"El sector no cumple con las salvaguardas mínimas\"),\"\",IF(AND('Base-datos'!$B$730=\"Sí\",'Base-datos'!$B$731=\"\",'Base-datos'!$B$732=\"\"),IF('Instituciones-crédito'!J86=\"La actividad sí contribuye sustancialmente a la sostenibilidad\",SUM('Instituciones-crédito'!B86:H86),0),IF(AND('Base-datos'!$B$730=\"Sí\",'Base-datos'!$B$731=\"Sí\",'Base-datos'!$B$732=\"\"),IF(AND('Instituciones-crédito'!J86=\"La actividad sí contribuye sustancialmente a la sostenibilidad\",'Instituciones-crédito'!K86=\"La actividad sí contribuye sustancialmente a la sostenibilidad\"),SUM('Instituciones-crédito'!B86:H86),0),IF(AND('Base-datos'!$B$730=\"Sí\",'Base-datos'!$B$731=\"Sí\",'Base-datos'!$B$732=\"Sí\"),IF(AND('Instituciones-crédito'!J86=\"La actividad sí contribuye sustancialmente a la sostenibilidad\",'Instituciones-crédito'!K86=\"La actividad sí contribuye sustancialmente a la sostenibilidad\",'Instituciones-crédito'!I86=\"La actividad sí contribuye sustancialmente a la sostenibilidad\"),SUM('Instituciones-crédito'!B86:H86),0),IF(AND('Base-datos'!$B$730=\"\",'Base-datos'!$B$731=\"Sí\",'Base-datos'!$B$732=\"\"),IF('Instituciones-crédito'!K86=\"La actividad sí contribuye sustancialmente a la sostenibilidad\",SUM('Instituciones-crédito'!B86:H86),0),IF(AND('Base-datos'!$B$730=\"\",'Base-datos'!$B$731=\"\",'Base-datos'!$B$732=\"Sí\"),IF('Instituciones-crédito'!I86=\"La actividad sí contribuye sustancialmente a la sostenibilidad\",SUM('Instituciones-crédito'!B86:H86),0),IF(AND('Base-datos'!$B$730=\"\",'Base-datos'!$B$731=\"Sí\",'Base-datos'!$B$732=\"Sí\"),IF(AND('Instituciones-crédito'!K86=\"La actividad sí contribuye sustancialmente a la sostenibilidad\",'Instituciones-crédito'!I86=\"La actividad sí contribuye sustancialmente a la sostenibilidad\"),SUM('Instituciones-crédito'!B86:H86),0),IF(AND('Base-datos'!$B$730=\"Sí\",'Base-datos'!$B$731=\"\",'Base-datos'!$B$732=\"Sí\"),IF(AND('Instituciones-crédito'!J86=\"La actividad sí contribuye sustancialmente a la sostenibilidad\",'Instituciones-crédito'!I86=\"La actividad sí contribuye sustancialmente a la sostenibilidad\"),SUM('Instituciones-crédito'!B86:H86),0),\"Por definir\"))))))))","v":"Por definir"}]
[{"$f":"Energía!$C30","v":"Seleccione"},{"$f":"IF(Energía!$E30='Instituciones-crédito'!B$12,Energía!$B30,\"\")","v":""},{"$f":"IF(Energía!$E30='Instituciones-crédito'!C$12,Energía!$B30,\"\")","v":""},{"$f":"IF(Energía!$E30='Instituciones-crédito'!D$12,Energía!$B30,\"\")","v":""},{"$f":"IF(Energía!$E30='Instituciones-crédito'!E$12,Energía!$B30,\"\")","v":""},{"$f":"IF(Energía!$E30='Instituciones-crédito'!F$12,Energía!$B30,\"\")","v":""},{"$f":"IF(Energía!$E30='Instituciones-crédito'!G$12,Energía!$B30,\"\")","v":""},{"$f":"IF(Energía!$E30='Instituciones-crédito'!H$12,Energía!$B30,\"\")","v":""},{"$f":"_xlfn.XLOOKUP(A87,'Base-datos'!$B$521:$B$531,'Base-datos'!$F$521:$F$531)","v":{"$error":"#N/A"}},{"$f":"_xlfn.XLOOKUP(A87,'Base-datos'!$B$521:$B$531,'Base-datos'!$C$521:$C$531)","v":{"$error":"#N/A"}},{"$f":"_xlfn.XLOOKUP(A87,'Base-datos'!$B$521:$B$531,'Base-datos'!$D$521:$D$531)","v":{"$error":"#N/A"}},null,null,{"$f":"IF(OR($L$77=\"La actividad no cumple con el total de los criterios de No Daño Significativo\",$M$77=\"El sector no cumple con las salvaguardas mínimas\"),\"\",IF(AND('Base-datos'!$B$730=\"Sí\",'Base-datos'!$B$731=\"\",'Base-datos'!$B$732=\"\"),IF('Instituciones-crédito'!J87=\"La actividad sí contribuye sustancialmente a la sostenibilidad\",SUM('Instituciones-crédito'!B87:H87),0),IF(AND('Base-datos'!$B$730=\"Sí\",'Base-datos'!$B$731=\"Sí\",'Base-datos'!$B$732=\"\"),IF(AND('Instituciones-crédito'!J87=\"La actividad sí contribuye sustancialmente a la sostenibilidad\",'Instituciones-crédito'!K87=\"La actividad sí contribuye sustancialmente a la sostenibilidad\"),SUM('Instituciones-crédito'!B87:H87),0),IF(AND('Base-datos'!$B$730=\"Sí\",'Base-datos'!$B$731=\"Sí\",'Base-datos'!$B$732=\"Sí\"),IF(AND('Instituciones-crédito'!J87=\"La actividad sí contribuye sustancialmente a la sostenibilidad\",'Instituciones-crédito'!K87=\"La actividad sí contribuye sustancialmente a la sostenibilidad\",'Instituciones-crédito'!I87=\"La actividad sí contribuye sustancialmente a la sostenibilidad\"),SUM('Instituciones-crédito'!B87:H87),0),IF(AND('Base-datos'!$B$730=\"\",'Base-datos'!$B$731=\"Sí\",'Base-datos'!$B$732=\"\"),IF('Instituciones-crédito'!K87=\"La actividad sí contribuye sustancialmente a la sostenibilidad\",SUM('Instituciones-crédito'!B87:H87),0),IF(AND('Base-datos'!$B$730=\"\",'Base-datos'!$B$731=\"\",'Base-datos'!$B$732=\"Sí\"),IF('Instituciones-crédito'!I87=\"La actividad sí contribuye sustancialmente a la sostenibilidad\",SUM('Instituciones-crédito'!B87:H87),0),IF(AND('Base-datos'!$B$730=\"\",'Base-datos'!$B$731=\"Sí\",'Base-datos'!$B$732=\"Sí\"),IF(AND('Instituciones-crédito'!K87=\"La actividad sí contribuye sustancialmente a la sostenibilidad\",'Instituciones-crédito'!I87=\"La actividad sí contribuye sustancialmente a la sostenibilidad\"),SUM('Instituciones-crédito'!B87:H87),0),IF(AND('Base-datos'!$B$730=\"Sí\",'Base-datos'!$B$731=\"\",'Base-datos'!$B$732=\"Sí\"),IF(AND('Instituciones-crédito'!J87=\"La actividad sí contribuye sustancialmente a la sostenibilidad\",'Instituciones-crédito'!I87=\"La actividad sí contribuye sustancialmente a la sostenibilidad\"),SUM('Instituciones-crédito'!B87:H87),0),\"Por definir\"))))))))","v":"Por definir"}]
[{"$f":"Energía!$C32","v":"Seleccione"},{"$f":"IF(Energía!$E32='Instituciones-crédito'!B$12,Energía!$B32,\"\")","v":""},{"$f":"IF(Energía!$E32='Instituciones-crédito'!C$12,Energía!$B32,\"\")","v":""},{"$f":"IF(Energía!$E32='Instituciones-crédito'!D$12,Energía!$B32,\"\")","v":""},{"$f":"IF(Energía!$E32='Instituciones-crédito'!E$12,Energía!$B32,\"\")","v":""},{"$f":"IF(Energía!$E32='Instituciones-crédito'!F$12,Energía!$B32,\"\")","v":""},{"$f":"IF(Energía!$E32='Instituciones-crédito'!G$12,Energía!$B32,\"\")","v":""},{"$f":"IF(Energía!$E32='Instituciones-crédito'!H$12,Energía!$B32,\"\")","v":""},{"$f":"_xlfn.XLOOKUP(A88,'Base-datos'!$B$521:$B$531,'Base-datos'!$F$521:$F$531)","v":{"$error":"#N/A"}},{"$f":"_xlfn.XLOOKUP(A88,'Base-datos'!$B$521:$B$531,'Base-datos'!$C$521:$C$531)","v":{"$error":"#N/A"}},{"$f":"_xlfn.XLOOKUP(A88,'Base-datos'!$B$521:$B$531,'Base-datos'!$D$521:$D$531)","v":{"$error":"#N/A"}},null,null,{"$f":"IF(OR($L$77=\"La actividad no cumple con el total de los criterios de No Daño Significativo\",$M$77=\"El sector no cumple con las salvaguardas mínimas\"),\"\",IF(AND('Base-datos'!$B$730=\"Sí\",'Base-datos'!$B$731=\"\",'Base-datos'!$B$732=\"\"),IF('Instituciones-crédito'!J88=\"La actividad sí contribuye sustancialmente a la sostenibilidad\",SUM('Instituciones-crédito'!B88:H88),0),IF(AND('Base-datos'!$B$730=\"Sí\",'Base-datos'!$B$731=\"Sí\",'Base-datos'!$B$732=\"\"),IF(AND('Instituciones-crédito'!J88=\"La actividad sí contribuye sustancialmente a la sostenibilidad\",'Instituciones-crédito'!K88=\"La actividad sí contribuye sustancialmente a la sostenibilidad\"),SUM('Instituciones-crédito'!B88:H88),0),IF(AND('Base-datos'!$B$730=\"Sí\",'Base-datos'!$B$731=\"Sí\",'Base-datos'!$B$732=\"Sí\"),IF(AND('Instituciones-crédito'!J88=\"La actividad sí contribuye sustancialmente a la sostenibilidad\",'Instituciones-crédito'!K88=\"La actividad sí contribuye sustancialmente a la sostenibilidad\",'Instituciones-crédito'!I88=\"La actividad sí contribuye sustancialmente a la sostenibilidad\"),SUM('Instituciones-crédito'!B88:H88),0),IF(AND('Base-datos'!$B$730=\"\",'Base-datos'!$B$731=\"Sí\",'Base-datos'!$B$732=\"\"),IF('Instituciones-crédito'!K88=\"La actividad sí contribuye sustancialmente a la sostenibilidad\",SUM('Instituciones-crédito'!B88:H88),0),IF(AND('Base-datos'!$B$730=\"\",'Base-datos'!$B$731=\"\",'Base-datos'!$B$732=\"Sí\"),IF('Instituciones-crédito'!I88=\"La actividad sí contribuye sustancialmente a la sostenibilidad\",SUM('Instituciones-crédito'!B88:H88),0),IF(AND('Base-datos'!$B$730=\"\",'Base-datos'!$B$731=\"Sí\",'Base-datos'!$B$732=\"Sí\"),IF(AND('Instituciones-crédito'!K88=\"La actividad sí contribuye sustancialmente a la sostenibilidad\",'Instituciones-crédito'!I88=\"La actividad sí contribuye sustancialmente a la sostenibilidad\"),SUM('Instituciones-crédito'!B88:H88),0),IF(AND('Base-datos'!$B$730=\"Sí\",'Base-datos'!$B$731=\"\",'Base-datos'!$B$732=\"Sí\"),IF(AND('Instituciones-crédito'!J88=\"La actividad sí contribuye sustancialmente a la sostenibilidad\",'Instituciones-crédito'!I88=\"La actividad sí contribuye sustancialmente a la sostenibilidad\"),SUM('Instituciones-crédito'!B88:H88),0),\"Por definir\"))))))))","v":"Por definir"}]
[{"$f":"Energía!$C34","v":"Seleccione"},{"$f":"IF(Energía!$E34='Instituciones-crédito'!B$12,Energía!$B34,\"\")","v":""},{"$f":"IF(Energía!$E34='Instituciones-crédito'!C$12,Energía!$B34,\"\")","v":""},{"$f":"IF(Energía!$E34='Instituciones-crédito'!D$12,Energía!$B34,\"\")","v":""},{"$f":"IF(Energía!$E34='Instituciones-crédito'!E$12,Energía!$B34,\"\")","v":""},{"$f":"IF(Energía!$E34='Instituciones-crédito'!F$12,Energía!$B34,\"\")","v":""},{"$f":"IF(Energía!$E34='Instituciones-crédito'!G$12,Energía!$B34,\"\")","v":""},{"$f":"IF(Energía!$E34='Instituciones-crédito'!H$12,Energía!$B34,\"\")","v":""},{"$f":"_xlfn.XLOOKUP(A89,'Base-datos'!$B$521:$B$531,'Base-datos'!$F$521:$F$531)","v":{"$error":"#N/A"}},{"$f":"_xlfn.XLOOKUP(A89,'Base-datos'!$B$521:$B$531,'Base-datos'!$C$521:$C$531)","v":{"$error":"#N/A"}},{"$f":"_xlfn.XLOOKUP(A89,'Base-datos'!$B$521:$B$531,'Base-datos'!$D$521:$D$531)","v":{"$error":"#N/A"}},null,null,{"$f":"IF(OR($L$77=\"La actividad no cumple con el total de los criterios de No Daño Significativo\",$M$77=\"El sector no cumple con las salvaguardas mínimas\"),\"\",IF(AND('Base-datos'!$B$730=\"Sí\",'Base-datos'!$B$731=\"\",'Base-datos'!$B$732=\"\"),IF('Instituciones-crédito'!J89=\"La actividad sí contribuye sustancialmente a la sostenibilidad\",SUM('Instituciones-crédito'!B89:H89),0),IF(AND('Base-datos'!$B$730=\"Sí\",'Base-datos'!$B$731=\"Sí\",'Base-datos'!$B$732=\"\"),IF(AND('Instituciones-crédito'!J89=\"La actividad sí contribuye sustancialmente a la sostenibilidad\",'Instituciones-crédito'!K89=\"La actividad sí contribuye sustancialmente a la sostenibilidad\"),SUM('Instituciones-crédito'!B89:H89),0),IF(AND('Base-datos'!$B$730=\"Sí\",'Base-datos'!$B$731=\"Sí\",'Base-datos'!$B$732=\"Sí\"),IF(AND('Instituciones-crédito'!J89=\"La actividad sí contribuye sustancialmente a la sostenibilidad\",'Instituciones-crédito'!K89=\"La actividad sí contribuye sustancialmente a la sostenibilidad\",'Instituciones-crédito'!I89=\"La actividad sí contribuye sustancialmente a la sostenibilidad\"),SUM('Instituciones-crédito'!B89:H89),0),IF(AND('Base-datos'!$B$730=\"\",'Base-datos'!$B$731=\"Sí\",'Base-datos'!$B$732=\"\"),IF('Instituciones-crédito'!K89=\"La actividad sí contribuye sustancialmente a la sostenibilidad\",SUM('Instituciones-crédito'!B89:H89),0),IF(AND('Base-datos'!$B$730=\"\",'Base-datos'!$B$731=\"\",'Base-datos'!$B$732=\"Sí\"),IF('Instituciones-crédito'!I89=\"La actividad sí contribuye sustancialmente a la sostenibilidad\",SUM('Instituciones-crédito'!B89:H89),0),IF(AND('Base-datos'!$B$730=\"\",'Base-datos'!$B$731=\"Sí\",'Base-datos'!$B$732=\"Sí\"),IF(AND('Instituciones-crédito'!K89=\"La actividad sí contribuye sustancialmente a la sostenibilidad\",'Instituciones-crédito'!I89=\"La actividad sí contribuye sustancialmente a la sostenibilidad\"),SUM('Instituciones-crédito'!B89:H89),0),IF(AND('Base-datos'!$B$730=\"Sí\",'Base-datos'!$B$731=\"\",'Base-datos'!$B$732=\"Sí\"),IF(AND('Instituciones-crédito'!J89=\"La actividad sí contribuye sustancialmente a la sostenibilidad\",'Instituciones-crédito'!I89=\"La actividad sí contribuye sustancialmente a la sostenibilidad\"),SUM('Instituciones-crédito'!B89:H89),0),\"Por definir\"))))))))","v":"Por definir"}]
[{"$f":"Energía!$C36","v":"Seleccione"},{"$f":"IF(Energía!$E36='Instituciones-crédito'!B$12,Energía!$B36,\"\")","v":""},{"$f":"IF(Energía!$E36='Instituciones-crédito'!C$12,Energía!$B36,\"\")","v":""},{"$f":"IF(Energía!$E36='Instituciones-crédito'!D$12,Energía!$B36,\"\")","v":""},{"$f":"IF(Energía!$E36='Instituciones-crédito'!E$12,Energía!$B36,\"\")","v":""},{"$f":"IF(Energía!$E36='Instituciones-crédito'!F$12,Energía!$B36,\"\")","v":""},{"$f":"IF(Energía!$E36='Instituciones-crédito'!G$12,Energía!$B36,\"\")","v":""},{"$f":"IF(Energía!$E36='Instituciones-crédito'!H$12,Energía!$B36,\"\")","v":""},{"$f":"_xlfn.XLOOKUP(A90,'Base-datos'!$B$521:$B$531,'Base-datos'!$F$521:$F$531)","v":{"$error":"#N/A"}},{"$f":"_xlfn.XLOOKUP(A90,'Base-datos'!$B$521:$B$531,'Base-datos'!$C$521:$C$531)","v":{"$error":"#N/A"}},{"$f":"_xlfn.XLOOKUP(A90,'Base-datos'!$B$521:$B$531,'Base-datos'!$D$521:$D$531)","v":{"$error":"#N/A"}},null,null,{"$f":"IF(OR($L$77=\"La actividad no cumple con el total de los criterios de No Daño Significativo\",$M$77=\"El sector no cumple con las salvaguardas mínimas\"),\"\",IF(AND('Base-datos'!$B$730=\"Sí\",'Base-datos'!$B$731=\"\",'Base-datos'!$B$732=\"\"),IF('Instituciones-crédito'!J90=\"La actividad sí contribuye sustancialmente a la sostenibilidad\",SUM('Instituciones-crédito'!B90:H90),0),IF(AND('Base-datos'!$B$730=\"Sí\",'Base-datos'!$B$731=\"Sí\",'Base-datos'!$B$732=\"\"),IF(AND('Instituciones-crédito'!J90=\"La actividad sí contribuye sustancialmente a la sostenibilidad\",'Instituciones-crédito'!K90=\"La actividad sí contribuye sustancialmente a la sostenibilidad\"),SUM('Instituciones-crédito'!B90:H90),0),IF(AND('Base-datos'!$B$730=\"Sí\",'Base-datos'!$B$731=\"Sí\",'Base-datos'!$B$732=\"Sí\"),IF(AND('Instituciones-crédito'!J90=\"La actividad sí contribuye sustancialmente a la sostenibilidad\",'Instituciones-crédito'!K90=\"La actividad sí contribuye sustancialmente a la sostenibilidad\",'Instituciones-crédito'!I90=\"La actividad sí contribuye sustancialmente a la sostenibilidad\"),SUM('Instituciones-crédito'!B90:H90),0),IF(AND('Base-datos'!$B$730=\"\",'Base-datos'!$B$731=\"Sí\",'Base-datos'!$B$732=\"\"),IF('Instituciones-crédito'!K90=\"La actividad sí contribuye sustancialmente a la sostenibilidad\",SUM('Instituciones-crédito'!B90:H90),0),IF(AND('Base-datos'!$B$730=\"\",'Base-datos'!$B$731=\"\",'Base-datos'!$B$732=\"Sí\"),IF('Instituciones-crédito'!I90=\"La actividad sí contribuye sustancialmente a la sostenibilidad\",SUM('Instituciones-crédito'!B90:H90),0),IF(AND('Base-datos'!$B$730=\"\",'Base-datos'!$B$731=\"Sí\",'Base-datos'!$B$732=\"Sí\"),IF(AND('Instituciones-crédito'!K90=\"La actividad sí contribuye sustancialmente a la sostenibilidad\",'Instituciones-crédito'!I90=\"La actividad sí contribuye sustancialmente a la sostenibilidad\"),SUM('Instituciones-crédito'!B90:H90),0),IF(AND('Base-datos'!$B$730=\"Sí\",'Base-datos'!$B$731=\"\",'Base-datos'!$B$732=\"Sí\"),IF(AND('Instituciones-crédito'!J90=\"La actividad sí contribuye sustancialmente a la sostenibilidad\",'Instituciones-crédito'!I90=\"La actividad sí contribuye sustancialmente a la sostenibilidad\"),SUM('Instituciones-crédito'!B90:H90),0),\"Por definir\"))))))))","v":"Por definir"}]
[{"$f":"Energía!$C38","v":"Seleccione"},{"$f":"IF(Energía!$E38='Instituciones-crédito'!B$12,Energía!$B38,\"\")","v":""},{"$f":"IF(Energía!$E38='Instituciones-crédito'!C$12,Energía!$B38,\"\")","v":""},{"$f":"IF(Energía!$E38='Instituciones-crédito'!D$12,Energía!$B38,\"\")","v":""},{"$f":"IF(Energía!$E38='Instituciones-crédito'!E$12,Energía!$B38,\"\")","v":""},{"$f":"IF(Energía!$E38='Instituciones-crédito'!F$12,Energía!$B38,\"\")","v":""},{"$f":"IF(Energía!$E38='Instituciones-crédito'!G$12,Energía!$B38,\"\")","v":""},{"$f":"IF(Energía!$E38='Instituciones-crédito'!H$12,Energía!$B38,\"\")","v":""},{"$f":"_xlfn.XLOOKUP(A91,'Base-datos'!$B$521:$B$531,'Base-datos'!$F$521:$F$531)","v":{"$error":"#N/A"}},{"$f":"_xlfn.XLOOKUP(A91,'Base-datos'!$B$521:$B$531,'Base-datos'!$C$521:$C$531)","v":{"$error":"#N/A"}},{"$f":"_xlfn.XLOOKUP(A91,'Base-datos'!$B$521:$B$531,'Base-datos'!$D$521:$D$531)","v":{"$error":"#N/A"}},null,null,{"$f":"IF(OR($L$77=\"La actividad no cumple con el total de los criterios de No Daño Significativo\",$M$77=\"El sector no cumple con las salvaguardas mínimas\"),\"\",IF(AND('Base-datos'!$B$730=\"Sí\",'Base-datos'!$B$731=\"\",'Base-datos'!$B$732=\"\"),IF('Instituciones-crédito'!J91=\"La actividad sí contribuye sustancialmente a la sostenibilidad\",SUM('Instituciones-crédito'!B91:H91),0),IF(AND('Base-datos'!$B$730=\"Sí\",'Base-datos'!$B$731=\"Sí\",'Base-datos'!$B$732=\"\"),IF(AND('Instituciones-crédito'!J91=\"La actividad sí contribuye sustancialmente a la sostenibilidad\",'Instituciones-crédito'!K91=\"La actividad sí contribuye sustancialmente a la sostenibilidad\"),SUM('Instituciones-crédito'!B91:H91),0),IF(AND('Base-datos'!$B$730=\"Sí\",'Base-datos'!$B$731=\"Sí\",'Base-datos'!$B$732=\"Sí\"),IF(AND('Instituciones-crédito'!J91=\"La actividad sí contribuye sustancialmente a la sostenibilidad\",'Instituciones-crédito'!K91=\"La actividad sí contribuye sustancialmente a la sostenibilidad\",'Instituciones-crédito'!I91=\"La actividad sí contribuye sustancialmente a la sostenibilidad\"),SUM('Instituciones-crédito'!B91:H91),0),IF(AND('Base-datos'!$B$730=\"\",'Base-datos'!$B$731=\"Sí\",'Base-datos'!$B$732=\"\"),IF('Instituciones-crédito'!K91=\"La actividad sí contribuye sustancialmente a la sostenibilidad\",SUM('Instituciones-crédito'!B91:H91),0),IF(AND('Base-datos'!$B$730=\"\",'Base-datos'!$B$731=\"\",'Base-datos'!$B$732=\"Sí\"),IF('Instituciones-crédito'!I91=\"La actividad sí contribuye sustancialmente a la sostenibilidad\",SUM('Instituciones-crédito'!B91:H91),0),IF(AND('Base-datos'!$B$730=\"\",'Base-datos'!$B$731=\"Sí\",'Base-datos'!$B$732=\"Sí\"),IF(AND('Instituciones-crédito'!K91=\"La actividad sí contribuye sustancialmente a la sostenibilidad\",'Instituciones-crédito'!I91=\"La actividad sí contribuye sustancialmente a la sostenibilidad\"),SUM('Instituciones-crédito'!B91:H91),0),IF(AND('Base-datos'!$B$730=\"Sí\",'Base-datos'!$B$731=\"\",'Base-datos'!$B$732=\"Sí\"),IF(AND('Instituciones-crédito'!J91=\"La actividad sí contribuye sustancialmente a la sostenibilidad\",'Instituciones-crédito'!I91=\"La actividad sí contribuye sustancialmente a la sostenibilidad\"),SUM('Instituciones-crédito'!B91:H91),0),\"Por definir\"))))))))","v":"Por definir"}]
[{"$f":"Energía!$C40","v":"Seleccione"},{"$f":"IF(Energía!$E40='Instituciones-crédito'!B$12,Energía!$B40,\"\")","v":""},{"$f":"IF(Energía!$E40='Instituciones-crédito'!C$12,Energía!$B40,\"\")","v":""},{"$f":"IF(Energía!$E40='Instituciones-crédito'!D$12,Energía!$B40,\"\")","v":""},{"$f":"IF(Energía!$E40='Instituciones-crédito'!E$12,Energía!$B40,\"\")","v":""},{"$f":"IF(Energía!$E40='Instituciones-crédito'!F$12,Energía!$B40,\"\")","v":""},{"$f":"IF(Energía!$E40='Instituciones-crédito'!G$12,Energía!$B40,\"\")","v":""},{"$f":"IF(Energía!$E40='Instituciones-crédito'!H$12,Energía!$B40,\"\")","v":""},{"$f":"_xlfn.XLOOKUP(A92,'Base-datos'!$B$521:$B$531,'Base-datos'!$F$521:$F$531)","v":{"$error":"#N/A"}},{"$f":"_xlfn.XLOOKUP(A92,'Base-datos'!$B$521:$B$531,'Base-datos'!$C$521:$C$531)","v":{"$error":"#N/A"}},{"$f":"_xlfn.XLOOKUP(A92,'Base-datos'!$B$521:$B$531,'Base-datos'!$D$521:$D$531)","v":{"$error":"#N/A"}},null,null,{"$f":"IF(OR($L$77=\"La actividad no cumple con el total de los criterios de No Daño Significativo\",$M$77=\"El sector no cumple con las salvaguardas mínimas\"),\"\",IF(AND('Base-datos'!$B$730=\"Sí\",'Base-datos'!$B$731=\"\",'Base-datos'!$B$732=\"\"),IF('Instituciones-crédito'!J92=\"La actividad sí contribuye sustancialmente a la sostenibilidad\",SUM('Instituciones-crédito'!B92:H92),0),IF(AND('Base-datos'!$B$730=\"Sí\",'Base-datos'!$B$731=\"Sí\",'Base-datos'!$B$732=\"\"),IF(AND('Instituciones-crédito'!J92=\"La actividad sí contribuye sustancialmente a la sostenibilidad\",'Instituciones-crédito'!K92=\"La actividad sí contribuye sustancialmente a la sostenibilidad\"),SUM('Instituciones-crédito'!B92:H92),0),IF(AND('Base-datos'!$B$730=\"Sí\",'Base-datos'!$B$731=\"Sí\",'Base-datos'!$B$732=\"Sí\"),IF(AND('Instituciones-crédito'!J92=\"La actividad sí contribuye sustancialmente a la sostenibilidad\",'Instituciones-crédito'!K92=\"La actividad sí contribuye sustancialmente a la sostenibilidad\",'Instituciones-crédito'!I92=\"La actividad sí contribuye sustancialmente a la sostenibilidad\"),SUM('Instituciones-crédito'!B92:H92),0),IF(AND('Base-datos'!$B$730=\"\",'Base-datos'!$B$731=\"Sí\",'Base-datos'!$B$732=\"\"),IF('Instituciones-crédito'!K92=\"La actividad sí contribuye sustancialmente a la sostenibilidad\",SUM('Instituciones-crédito'!B92:H92),0),IF(AND('Base-datos'!$B$730=\"\",'Base-datos'!$B$731=\"\",'Base-datos'!$B$732=\"Sí\"),IF('Instituciones-crédito'!I92=\"La actividad sí contribuye sustancialmente a la sostenibilidad\",SUM('Instituciones-crédito'!B92:H92),0),IF(AND('Base-datos'!$B$730=\"\",'Base-datos'!$B$731=\"Sí\",'Base-datos'!$B$732=\"Sí\"),IF(AND('Instituciones-crédito'!K92=\"La actividad sí contribuye sustancialmente a la sostenibilidad\",'Instituciones-crédito'!I92=\"La actividad sí contribuye sustancialmente a la sostenibilidad\"),SUM('Instituciones-crédito'!B92:H92),0),IF(AND('Base-datos'!$B$730=\"Sí\",'Base-datos'!$B$731=\"\",'Base-datos'!$B$732=\"Sí\"),IF(AND('Instituciones-crédito'!J92=\"La actividad sí contribuye sustancialmente a la sostenibilidad\",'Instituciones-crédito'!I92=\"La actividad sí contribuye sustancialmente a la sostenibilidad\"),SUM('Instituciones-crédito'!B92:H92),0),\"Por definir\"))))))))","v":"Por definir"}]
[{"$f":"Energía!$C42","v":"Seleccione"},{"$f":"IF(Energía!$E42='Instituciones-crédito'!B$12,Energía!$B42,\"\")","v":""},{"$f":"IF(Energía!$E42='Instituciones-crédito'!C$12,Energía!$B42,\"\")","v":""},{"$f":"IF(Energía!$E42='Instituciones-crédito'!D$12,Energía!$B42,\"\")","v":""},{"$f":"IF(Energía!$E42='Instituciones-crédito'!E$12,Energía!$B42,\"\")","v":""},{"$f":"IF(Energía!$E42='Instituciones-crédito'!F$12,Energía!$B42,\"\")","v":""},{"$f":"IF(Energía!$E42='Instituciones-crédito'!G$12,Energía!$B42,\"\")","v":""},{"$f":"IF(Energía!$E42='Instituciones-crédito'!H$12,Energía!$B42,\"\")","v":""},{"$f":"_xlfn.XLOOKUP(A93,'Base-datos'!$B$521:$B$531,'Base-datos'!$F$521:$F$531)","v":{"$error":"#N/A"}},{"$f":"_xlfn.XLOOKUP(A93,'Base-datos'!$B$521:$B$531,'Base-datos'!$C$521:$C$531)","v":{"$error":"#N/A"}},{"$f":"_xlfn.XLOOKUP(A93,'Base-datos'!$B$521:$B$531,'Base-datos'!$D$521:$D$531)","v":{"$error":"#N/A"}},null,null,{"$f":"IF(OR($L$77=\"La actividad no cumple con el total de los criterios de No Daño Significativo\",$M$77=\"El sector no cumple con las salvaguardas mínimas\"),\"\",IF(AND('Base-datos'!$B$730=\"Sí\",'Base-datos'!$B$731=\"\",'Base-datos'!$B$732=\"\"),IF('Instituciones-crédito'!J93=\"La actividad sí contribuye sustancialmente a la sostenibilidad\",SUM('Instituciones-crédito'!B93:H93),0),IF(AND('Base-datos'!$B$730=\"Sí\",'Base-datos'!$B$731=\"Sí\",'Base-datos'!$B$732=\"\"),IF(AND('Instituciones-crédito'!J93=\"La actividad sí contribuye sustancialmente a la sostenibilidad\",'Instituciones-crédito'!K93=\"La actividad sí contribuye sustancialmente a la sostenibilidad\"),SUM('Instituciones-crédito'!B93:H93),0),IF(AND('Base-datos'!$B$730=\"Sí\",'Base-datos'!$B$731=\"Sí\",'Base-datos'!$B$732=\"Sí\"),IF(AND('Instituciones-crédito'!J93=\"La actividad sí contribuye sustancialmente a la sostenibilidad\",'Instituciones-crédito'!K93=\"La actividad sí contribuye sustancialmente a la sostenibilidad\",'Instituciones-crédito'!I93=\"La actividad sí contribuye sustancialmente a la sostenibilidad\"),SUM('Instituciones-crédito'!B93:H93),0),IF(AND('Base-datos'!$B$730=\"\",'Base-datos'!$B$731=\"Sí\",'Base-datos'!$B$732=\"\"),IF('Instituciones-crédito'!K93=\"La actividad sí contribuye sustancialmente a la sostenibilidad\",SUM('Instituciones-crédito'!B93:H93),0),IF(AND('Base-datos'!$B$730=\"\",'Base-datos'!$B$731=\"\",'Base-datos'!$B$732=\"Sí\"),IF('Instituciones-crédito'!I93=\"La actividad sí contribuye sustancialmente a la sostenibilidad\",SUM('Instituciones-crédito'!B93:H93),0),IF(AND('Base-datos'!$B$730=\"\",'Base-datos'!$B$731=\"Sí\",'Base-datos'!$B$732=\"Sí\"),IF(AND('Instituciones-crédito'!K93=\"La actividad sí contribuye sustancialmente a la sostenibilidad\",'Instituciones-crédito'!I93=\"La actividad sí contribuye sustancialmente a la sostenibilidad\"),SUM('Instituciones-crédito'!B93:H93),0),IF(AND('Base-datos'!$B$730=\"Sí\",'Base-datos'!$B$731=\"\",'Base-datos'!$B$732=\"Sí\"),IF(AND('Instituciones-crédito'!J93=\"La actividad sí contribuye sustancialmente a la sostenibilidad\",'Instituciones-crédito'!I93=\"La actividad sí contribuye sustancialmente a la sostenibilidad\"),SUM('Instituciones-crédito'!B93:H93),0),\"Por definir\"))))))))","v":"Por definir"}]
[{"$f":"Energía!$C44","v":"Seleccione"},{"$f":"IF(Energía!$E44='Instituciones-crédito'!B$12,Energía!$B44,\"\")","v":""},{"$f":"IF(Energía!$E44='Instituciones-crédito'!C$12,Energía!$B44,\"\")","v":""},{"$f":"IF(Energía!$E44='Instituciones-crédito'!D$12,Energía!$B44,\"\")","v":""},{"$f":"IF(Energía!$E44='Instituciones-crédito'!E$12,Energía!$B44,\"\")","v":""},{"$f":"IF(Energía!$E44='Instituciones-crédito'!F$12,Energía!$B44,\"\")","v":""},{"$f":"IF(Energía!$E44='Instituciones-crédito'!G$12,Energía!$B44,\"\")","v":""},{"$f":"IF(Energía!$E44='Instituciones-crédito'!H$12,Energía!$B44,\"\")","v":""},{"$f":"_xlfn.XLOOKUP(A94,'Base-datos'!$B$521:$B$531,'Base-datos'!$F$521:$F$531)","v":{"$error":"#N/A"}},{"$f":"_xlfn.XLOOKUP(A94,'Base-datos'!$B$521:$B$531,'Base-datos'!$C$521:$C$531)","v":{"$error":"#N/A"}},{"$f":"_xlfn.XLOOKUP(A94,'Base-datos'!$B$521:$B$531,'Base-datos'!$D$521:$D$531)","v":{"$error":"#N/A"}},null,null,{"$f":"IF(OR($L$77=\"La actividad no cumple con el total de los criterios de No Daño Significativo\",$M$77=\"El sector no cumple con las salvaguardas mínimas\"),\"\",IF(AND('Base-datos'!$B$730=\"Sí\",'Base-datos'!$B$731=\"\",'Base-datos'!$B$732=\"\"),IF('Instituciones-crédito'!J94=\"La actividad sí contribuye sustancialmente a la sostenibilidad\",SUM('Instituciones-crédito'!B94:H94),0),IF(AND('Base-datos'!$B$730=\"Sí\",'Base-datos'!$B$731=\"Sí\",'Base-datos'!$B$732=\"\"),IF(AND('Instituciones-crédito'!J94=\"La actividad sí contribuye sustancialmente a la sostenibilidad\",'Instituciones-crédito'!K94=\"La actividad sí contribuye sustancialmente a la sostenibilidad\"),SUM('Instituciones-crédito'!B94:H94),0),IF(AND('Base-datos'!$B$730=\"Sí\",'Base-datos'!$B$731=\"Sí\",'Base-datos'!$B$732=\"Sí\"),IF(AND('Instituciones-crédito'!J94=\"La actividad sí contribuye sustancialmente a la sostenibilidad\",'Instituciones-crédito'!K94=\"La actividad sí contribuye sustancialmente a la sostenibilidad\",'Instituciones-crédito'!I94=\"La actividad sí contribuye sustancialmente a la sostenibilidad\"),SUM('Instituciones-crédito'!B94:H94),0),IF(AND('Base-datos'!$B$730=\"\",'Base-datos'!$B$731=\"Sí\",'Base-datos'!$B$732=\"\"),IF('Instituciones-crédito'!K94=\"La actividad sí contribuye sustancialmente a la sostenibilidad\",SUM('Instituciones-crédito'!B94:H94),0),IF(AND('Base-datos'!$B$730=\"\",'Base-datos'!$B$731=\"\",'Base-datos'!$B$732=\"Sí\"),IF('Instituciones-crédito'!I94=\"La actividad sí contribuye sustancialmente a la sostenibilidad\",SUM('Instituciones-crédito'!B94:H94),0),IF(AND('Base-datos'!$B$730=\"\",'Base-datos'!$B$731=\"Sí\",'Base-datos'!$B$732=\"Sí\"),IF(AND('Instituciones-crédito'!K94=\"La actividad sí contribuye sustancialmente a la sostenibilidad\",'Instituciones-crédito'!I94=\"La actividad sí contribuye sustancialmente a la sostenibilidad\"),SUM('Instituciones-crédito'!B94:H94),0),IF(AND('Base-datos'!$B$730=\"Sí\",'Base-datos'!$B$731=\"\",'Base-datos'!$B$732=\"Sí\"),IF(AND('Instituciones-crédito'!J94=\"La actividad sí contribuye sustancialmente a la sostenibilidad\",'Instituciones-crédito'!I94=\"La actividad sí contribuye sustancialmente a la sostenibilidad\"),SUM('Instituciones-crédito'!B94:H94),0),\"Por definir\"))))))))","v":"Por definir"}]
[{"$f":"Energía!$C46","v":"Seleccione"},{"$f":"IF(Energía!$E46='Instituciones-crédito'!B$12,Energía!$B46,\"\")","v":""},{"$f":"IF(Energía!$E46='Instituciones-crédito'!C$12,Energía!$B46,\"\")","v":""},{"$f":"IF(Energía!$E46='Instituciones-crédito'!D$12,Energía!$B46,\"\")","v":""},{"$f":"IF(Energía!$E46='Instituciones-crédito'!E$12,Energía!$B46,\"\")","v":""},{"$f":"IF(Energía!$E46='Instituciones-crédito'!F$12,Energía!$B46,\"\")","v":""},{"$f":"IF(Energía!$E46='Instituciones-crédito'!G$12,Energía!$B46,\"\")","v":""},{"$f":"IF(Energía!$E46='Instituciones-crédito'!H$12,Energía!$B46,\"\")","v":""},{"$f":"_xlfn.XLOOKUP(A95,'Base-datos'!$B$521:$B$531,'Base-datos'!$F$521:$F$531)","v":{"$error":"#N/A"}},{"$f":"_xlfn.XLOOKUP(A95,'Base-datos'!$B$521:$B$531,'Base-datos'!$C$521:$C$531)","v":{"$error":"#N/A"}},{"$f":"_xlfn.XLOOKUP(A95,'Base-datos'!$B$521:$B$531,'Base-datos'!$D$521:$D$531)","v":{"$error":"#N/A"}},null,null,{"$f":"IF(OR($L$77=\"La actividad no cumple con el total de los criterios de No Daño Significativo\",$M$77=\"El sector no cumple con las salvaguardas mínimas\"),\"\",IF(AND('Base-datos'!$B$730=\"Sí\",'Base-datos'!$B$731=\"\",'Base-datos'!$B$732=\"\"),IF('Instituciones-crédito'!J95=\"La actividad sí contribuye sustancialmente a la sostenibilidad\",SUM('Instituciones-crédito'!B95:H95),0),IF(AND('Base-datos'!$B$730=\"Sí\",'Base-datos'!$B$731=\"Sí\",'Base-datos'!$B$732=\"\"),IF(AND('Instituciones-crédito'!J95=\"La actividad sí contribuye sustancialmente a la sostenibilidad\",'Instituciones-crédito'!K95=\"La actividad sí contribuye sustancialmente a la sostenibilidad\"),SUM('Instituciones-crédito'!B95:H95),0),IF(AND('Base-datos'!$B$730=\"Sí\",'Base-datos'!$B$731=\"Sí\",'Base-datos'!$B$732=\"Sí\"),IF(AND('Instituciones-crédito'!J95=\"La actividad sí contribuye sustancialmente a la sostenibilidad\",'Instituciones-crédito'!K95=\"La actividad sí contribuye sustancialmente a la sostenibilidad\",'Instituciones-crédito'!I95=\"La actividad sí contribuye sustancialmente a la sostenibilidad\"),SUM('Instituciones-crédito'!B95:H95),0),IF(AND('Base-datos'!$B$730=\"\",'Base-datos'!$B$731=\"Sí\",'Base-datos'!$B$732=\"\"),IF('Instituciones-crédito'!K95=\"La actividad sí contribuye sustancialmente a la sostenibilidad\",SUM('Instituciones-crédito'!B95:H95),0),IF(AND('Base-datos'!$B$730=\"\",'Base-datos'!$B$731=\"\",'Base-datos'!$B$732=\"Sí\"),IF('Instituciones-crédito'!I95=\"La actividad sí contribuye sustancialmente a la sostenibilidad\",SUM('Instituciones-crédito'!B95:H95),0),IF(AND('Base-datos'!$B$730=\"\",'Base-datos'!$B$731=\"Sí\",'Base-datos'!$B$732=\"Sí\"),IF(AND('Instituciones-crédito'!K95=\"La actividad sí contribuye sustancialmente a la sostenibilidad\",'Instituciones-crédito'!I95=\"La actividad sí contribuye sustancialmente a la sostenibilidad\"),SUM('Instituciones-crédito'!B95:H95),0),IF(AND('Base-datos'!$B$730=\"Sí\",'Base-datos'!$B$731=\"\",'Base-datos'!$B$732=\"Sí\"),IF(AND('Instituciones-crédito'!J95=\"La actividad sí contribuye sustancialmente a la sostenibilidad\",'Instituciones-crédito'!I95=\"La actividad sí contribuye sustancialmente a la sostenibilidad\"),SUM('Instituciones-crédito'!B95:H95),0),\"Por definir\"))))))))","v":"Por definir"}]
[{"$f":"Energía!$C48","v":"Seleccione"},{"$f":"IF(Energía!$E48='Instituciones-crédito'!B$12,Energía!$B48,\"\")","v":""},{"$f":"IF(Energía!$E48='Instituciones-crédito'!C$12,Energía!$B48,\"\")","v":""},{"$f":"IF(Energía!$E48='Instituciones-crédito'!D$12,Energía!$B48,\"\")","v":""},{"$f":"IF(Energía!$E48='Instituciones-crédito'!E$12,Energía!$B48,\"\")","v":""},{"$f":"IF(Energía!$E48='Instituciones-crédito'!F$12,Energía!$B48,\"\")","v":""},{"$f":"IF(Energía!$E48='Instituciones-crédito'!G$12,Energía!$B48,\"\")","v":""},{"$f":"IF(Energía!$E48='Instituciones-crédito'!H$12,Energía!$B48,\"\")","v":""},{"$f":"_xlfn.XLOOKUP(A96,'Base-datos'!$B$521:$B$531,'Base-datos'!$F$521:$F$531)","v":{"$error":"#N/A"}},{"$f":"_xlfn.XLOOKUP(A96,'Base-datos'!$B$521:$B$531,'Base-datos'!$C$521:$C$531)","v":{"$error":"#N/A"}},{"$f":"_xlfn.XLOOKUP(A96,'Base-datos'!$B$521:$B$531,'Base-datos'!$D$521:$D$531)","v":{"$error":"#N/A"}},null,null,{"$f":"IF(OR($L$77=\"La actividad no cumple con el total de los criterios de No Daño Significativo\",$M$77=\"El sector no cumple con las salvaguardas mínimas\"),\"\",IF(AND('Base-datos'!$B$730=\"Sí\",'Base-datos'!$B$731=\"\",'Base-datos'!$B$732=\"\"),IF('Instituciones-crédito'!J96=\"La actividad sí contribuye sustancialmente a la sostenibilidad\",SUM('Instituciones-crédito'!B96:H96),0),IF(AND('Base-datos'!$B$730=\"Sí\",'Base-datos'!$B$731=\"Sí\",'Base-datos'!$B$732=\"\"),IF(AND('Instituciones-crédito'!J96=\"La actividad sí contribuye sustancialmente a la sostenibilidad\",'Instituciones-crédito'!K96=\"La actividad sí contribuye sustancialmente a la sostenibilidad\"),SUM('Instituciones-crédito'!B96:H96),0),IF(AND('Base-datos'!$B$730=\"Sí\",'Base-datos'!$B$731=\"Sí\",'Base-datos'!$B$732=\"Sí\"),IF(AND('Instituciones-crédito'!J96=\"La actividad sí contribuye sustancialmente a la sostenibilidad\",'Instituciones-crédito'!K96=\"La actividad sí contribuye sustancialmente a la sostenibilidad\",'Instituciones-crédito'!I96=\"La actividad sí contribuye sustancialmente a la sostenibilidad\"),SUM('Instituciones-crédito'!B96:H96),0),IF(AND('Base-datos'!$B$730=\"\",'Base-datos'!$B$731=\"Sí\",'Base-datos'!$B$732=\"\"),IF('Instituciones-crédito'!K96=\"La actividad sí contribuye sustancialmente a la sostenibilidad\",SUM('Instituciones-crédito'!B96:H96),0),IF(AND('Base-datos'!$B$730=\"\",'Base-datos'!$B$731=\"\",'Base-datos'!$B$732=\"Sí\"),IF('Instituciones-crédito'!I96=\"La actividad sí contribuye sustancialmente a la sostenibilidad\",SUM('Instituciones-crédito'!B96:H96),0),IF(AND('Base-datos'!$B$730=\"\",'Base-datos'!$B$731=\"Sí\",'Base-datos'!$B$732=\"Sí\"),IF(AND('Instituciones-crédito'!K96=\"La actividad sí contribuye sustancialmente a la sostenibilidad\",'Instituciones-crédito'!I96=\"La actividad sí contribuye sustancialmente a la sostenibilidad\"),SUM('Instituciones-crédito'!B96:H96),0),IF(AND('Base-datos'!$B$730=\"Sí\",'Base-datos'!$B$731=\"\",'Base-datos'!$B$732=\"Sí\"),IF(AND('Instituciones-crédito'!J96=\"La actividad sí contribuye sustancialmente a la sostenibilidad\",'Instituciones-crédito'!I96=\"La actividad sí contribuye sustancialmente a la sostenibilidad\"),SUM('Instituciones-crédito'!B96:H96),0),\"Por definir\"))))))))","v":"Por definir"}]
["Agua",null,null,null,null,null,null,null,null,null,null,null,null,{"$f":"SUM(IF(FREQUENCY(MATCH(A98:A117, A98:A117, 0), MATCH(A98:A117, A98:A117, 0)) > 0, IF(NOT(ISERROR(N98:N117)), N98:N117, 0)))","v":0}]
[{"$f":"Agua!$C10","v":"Seleccione"},{"$f":"IF(Agua!$E10='Instituciones-crédito'!B$12,Agua!$B10,\"\")","v":""},{"$f":"IF(Agua!$E10='Instituciones-crédito'!C$12,Agua!$B10,\"\")","v":""},{"$f":"IF(Agua!$E10='Instituciones-crédito'!D$12,Agua!$B10,\"\")","v":""},{"$f":"IF(Agua!$E10='Instituciones-crédito'!E$12,Agua!$B10,\"\")","v":""},{"$f":"IF(Agua!$E10='Instituciones-crédito'!F$12,Agua!$B10,\"\")","v":""},{"$f":"IF(Agua!$E10='Instituciones-crédito'!G$12,Agua!$B10,\"\")","v":""},{"$f":"IF(Agua!$E10='Instituciones-crédito'!H$12,Agua!$B10,\"\")","v":""},{"$f":"_xlfn.XLOOKUP(A98,'Base-datos'!$B$532:$B$536,'Base-datos'!$F$532:$F$536)","v":{"$error":"#N/A"}},{"$f":"_xlfn.XLOOKUP(A98,'Base-datos'!$B$532:$B$536,'Base-datos'!$C$532:$C$536)","v":{"$error":"#N/A"}},{"$f":"_xlfn.XLOOKUP(A98,'Base-datos'!$B$532:$B$536,'Base-datos'!$D$532:$D$536)","v":{"$error":"#N/A"}},{"$f":"IF(COUNTIF('Agua-NDS'!G9:G45,\"No\")>0,\"La actividad no cumple con el total de los criterios de NDS\",\"La actividad cumple con los criterios de No Daño Significativo\")","v":"La actividad cumple con los criterios de No Daño Significativo"},{"$f":"IF(OR('Salvaguardas mínimas'!$G$10=\"Seleccione\",'Salvaguardas mínimas'!$G$13=\"Seleccione\",'Salvaguardas mínimas'!$G$16=\"Seleccione\",'Salvaguardas mínimas'!$G$7=\"Seleccione\"),\"No se han respondido todas las preguntas\",IF(OR('Salvaguardas mínimas'!$G$10=\"No\",'Salvaguardas mínimas'!$G$13=\"No\",'Salvaguardas mínimas'!$G$16=\"No\",'Salvaguardas mínimas'!$G$7=\"No\"),\"El sector no cumple con las salvaguardas mínimas\",\"La actividad sí cumple con las salvaguardas mínimas\"))","v":"No se han respondido todas las preguntas"},{"$f":"IF(OR($L$98=\"La actividad no cumple con el total de los criterios de No Daño Significativo\",$M$98=\"El sector no cumple con las salvaguardas mínimas\"),\"\",IF(AND('Base-datos'!$B$735=\"Sí\",'Base-datos'!$B$736=\"\",'Base-datos'!$B$737=\"\"),IF('Instituciones-crédito'!J98=\"La actividad sí contribuye sustancialmente a la sostenibilidad\",SUM('Instituciones-crédito'!B98:H98),0),IF(AND('Base-datos'!$B$735=\"Sí\",'Base-datos'!$B$736=\"Sí\",'Base-datos'!$B$737=\"\"),IF(AND('Instituciones-crédito'!J98=\"La actividad sí contribuye sustancialmente a la sostenibilidad\",'Instituciones-crédito'!K98=\"La actividad sí contribuye sustancialmente a la sostenibilidad\"),SUM('Instituciones-crédito'!B98:H98),0),IF(AND('Base-datos'!$B$735=\"Sí\",'Base-datos'!$B$736=\"Sí\",'Base-datos'!$B$737=\"Sí\"),IF(AND('Instituciones-crédito'!J98=\"La actividad sí contribuye sustancialmente a la sostenibilidad\",'Instituciones-crédito'!K98=\"La actividad sí contribuye sustancialmente a la sostenibilidad\",'Instituciones-crédito'!I98=\"La actividad sí contribuye sustancialmente a la sostenibilidad\"),SUM('Instituciones-crédito'!B98:H98),0),IF(AND('Base-datos'!$B$735=\"\",'Base-datos'!$B$736=\"Sí\",'Base-datos'!$B$737=\"\"),IF('Instituciones-crédito'!K98=\"La actividad sí contribuye sustancialmente a la sostenibilidad\",SUM('Instituciones-crédito'!B98:H98),0),IF(AND('Base-datos'!$B$735=\"\",'Base-datos'!$B$736=\"\",'Base-datos'!$B$737=\"Sí\"),IF('Instituciones-crédito'!I98=\"La actividad sí contribuye sustancialmente a la sostenibilidad\",SUM('Instituciones-crédito'!B98:H98),0),IF(AND('Base-datos'!$B$735=\"\",'Base-datos'!$B$736=\"Sí\",'Base-datos'!$B$737=\"Sí\"),IF(AND('Instituciones-crédito'!K98=\"La actividad sí contribuye sustancialmente a la sostenibilidad\",'Instituciones-crédito'!I98=\"La actividad sí contribuye sustancialmente a la sostenibilidad\"),SUM('Instituciones-crédito'!B98:H98),0),IF(AND('Base-datos'!$B$735=\"Sí\",'Base-datos'!$B$736=\"\",'Base-datos'!$B$737=\"Sí\"),IF(AND('Instituciones-crédito'!J98=\"La actividad sí contribuye sustancialmente a la sostenibilidad\",'Instituciones-crédito'!I98=\"La actividad sí contribuye sustancialmente a la sostenibilidad\"),SUM('Instituciones-crédito'!B98:H98),0),\"Por definir\"))))))))","v":"Por definir"}]
[{"$f":"Agua!$C12","v":"Seleccione"},{"$f":"IF(Agua!$E12='Instituciones-crédito'!B$12,Agua!$B12,\"\")","v":""},{"$f":"IF(Agua!$E12='Instituciones-crédito'!C$12,Agua!$B12,\"\")","v":""},{"$f":"IF(Agua!$E12='Instituciones-crédito'!D$12,Agua!$B12,\"\")","v":""},{"$f":"IF(Agua!$E12='Instituciones-crédito'!E$12,Agua!$B12,\"\")","v":""},{"$f":"IF(Agua!$E12='Instituciones-crédito'!F$12,Agua!$B12,\"\")","v":""},{"$f":"IF(Agua!$E12='Instituciones-crédito'!G$12,Agua!$B12,\"\")","v":""},{"$f":"IF(Agua!$E12='Instituciones-crédito'!H$12,Agua!$B12,\"\")","v":""},{"$f":"_xlfn.XLOOKUP(A99,'Base-datos'!$B$532:$B$536,'Base-datos'!$F$532:$F$536)","v":{"$error":"#N/A"}},{"$f":"_xlfn.XLOOKUP(A99,'Base-datos'!$B$532:$B$536,'Base-datos'!$C$532:$C$536)","v":{"$error":"#N/A"}},{"$f":"_xlfn.XLOOKUP(A99,'Base-datos'!$B$532:$B$536,'Base-datos'!$D$532:$D$536)","v":{"$error":"#N/A"}},null,null,{"$f":"IF(OR($L$98=\"La actividad no cumple con el total de los criterios de No Daño Significativo\",$M$98=\"El sector no cumple con las salvaguardas mínimas\"),\"\",IF(AND('Base-datos'!$B$735=\"Sí\",'Base-datos'!$B$736=\"\",'Base-datos'!$B$737=\"\"),IF('Instituciones-crédito'!J99=\"La actividad sí contribuye sustancialmente a la sostenibilidad\",SUM('Instituciones-crédito'!B99:H99),0),IF(AND('Base-datos'!$B$735=\"Sí\",'Base-datos'!$B$736=\"Sí\",'Base-datos'!$B$737=\"\"),IF(AND('Instituciones-crédito'!J99=\"La actividad sí contribuye sustancialmente a la sostenibilidad\",'Instituciones-crédito'!K99=\"La actividad sí contribuye sustancialmente a la sostenibilidad\"),SUM('Instituciones-crédito'!B99:H99),0),IF(AND('Base-datos'!$B$735=\"Sí\",'Base-datos'!$B$736=\"Sí\",'Base-datos'!$B$737=\"Sí\"),IF(AND('Instituciones-crédito'!J99=\"La actividad sí contribuye sustancialmente a la sostenibilidad\",'Instituciones-crédito'!K99=\"La actividad sí contribuye sustancialmente a la sostenibilidad\",'Instituciones-crédito'!I99=\"La actividad sí contribuye sustancialmente a la sostenibilidad\"),SUM('Instituciones-crédito'!B99:H99),0),IF(AND('Base-datos'!$B$735=\"\",'Base-datos'!$B$736=\"Sí\",'Base-datos'!$B$737=\"\"),IF('Instituciones-crédito'!K99=\"La actividad sí contribuye sustancialmente a la sostenibilidad\",SUM('Instituciones-crédito'!B99:H99),0),IF(AND('Base-datos'!$B$735=\"\",'Base-datos'!$B$736=\"\",'Base-datos'!$B$737=\"Sí\"),IF('Instituciones-crédito'!I99=\"La actividad sí contribuye sustancialmente a la sostenibilidad\",SUM('Instituciones-crédito'!B99:H99),0),IF(AND('Base-datos'!$B$735=\"\",'Base-datos'!$B$736=\"Sí\",'Base-datos'!$B$737=\"Sí\"),IF(AND('Instituciones-crédito'!K99=\"La actividad sí contribuye sustancialmente a la sostenibilidad\",'Instituciones-crédito'!I99=\"La actividad sí contribuye sustancialmente a la sostenibilidad\"),SUM('Instituciones-crédito'!B99:H99),0),IF(AND('Base-datos'!$B$735=\"Sí\",'Base-datos'!$B$736=\"\",'Base-datos'!$B$737=\"Sí\"),IF(AND('Instituciones-crédito'!J99=\"La actividad sí contribuye sustancialmente a la sostenibilidad\",'Instituciones-crédito'!I99=\"La actividad sí contribuye sustancialmente a la sostenibilidad\"),SUM('Instituciones-crédito'!B99:H99),0),\"Por definir\"))))))))","v":"Por definir"}]
[{"$f":"Agua!$C14","v":"Seleccione"},{"$f":"IF(Agua!$E14='Instituciones-crédito'!B$12,Agua!$B14,\"\")","v":""},{"$f":"IF(Agua!$E14='Instituciones-crédito'!C$12,Agua!$B14,\"\")","v":""},{"$f":"IF(Agua!$E14='Instituciones-crédito'!D$12,Agua!$B14,\"\")","v":""},{"$f":"IF(Agua!$E14='Instituciones-crédito'!E$12,Agua!$B14,\"\")","v":""},{"$f":"IF(Agua!$E14='Instituciones-crédito'!F$12,Agua!$B14,\"\")","v":""},{"$f":"IF(Agua!$E14='Instituciones-crédito'!G$12,Agua!$B14,\"\")","v":""},{"$f":"IF(Agua!$E14='Instituciones-crédito'!H$12,Agua!$B14,\"\")","v":""},{"$f":"_xlfn.XLOOKUP(A100,'Base-datos'!$B$532:$B$536,'Base-datos'!$F$532:$F$536)","v":{"$error":"#N/A"}},{"$f":"_xlfn.XLOOKUP(A100,'Base-datos'!$B$532:$B$536,'Base-datos'!$C$532:$C$536)","v":{"$error":"#N/A"}},{"$f":"_xlfn.XLOOKUP(A100,'Base-datos'!$B$532:$B$536,'Base-datos'!$D$532:$D$536)","v":{"$error":"#N/A"}},null,null,{"$f":"IF(OR($L$98=\"La actividad no cumple con el total de los criterios de No Daño Significativo\",$M$98=\"El sector no cumple con las salvaguardas mínimas\"),\"\",IF(AND('Base-datos'!$B$735=\"Sí\",'Base-datos'!$B$736=\"\",'Base-datos'!$B$737=\"\"),IF('Instituciones-crédito'!J100=\"La actividad sí contribuye sustancialmente a la sostenibilidad\",SUM('Instituciones-crédito'!B100:H100),0),IF(AND('Base-datos'!$B$735=\"Sí\",'Base-datos'!$B$736=\"Sí\",'Base-datos'!$B$737=\"\"),IF(AND('Instituciones-crédito'!J100=\"La actividad sí contribuye sustancialmente a la sostenibilidad\",'Instituciones-crédito'!K100=\"La actividad sí contribuye sustancialmente a la sostenibilidad\"),SUM('Instituciones-crédito'!B100:H100),0),IF(AND('Base-datos'!$B$735=\"Sí\",'Base-datos'!$B$736=\"Sí\",'Base-datos'!$B$737=\"Sí\"),IF(AND('Instituciones-crédito'!J100=\"La actividad sí contribuye sustancialmente a la sostenibilidad\",'Instituciones-crédito'!K100=\"La actividad sí contribuye sustancialmente a la sostenibilidad\",'Instituciones-crédito'!I100=\"La actividad sí contribuye sustancialmente a la sostenibilidad\"),SUM('Instituciones-crédito'!B100:H100),0),IF(AND('Base-datos'!$B$735=\"\",'Base-datos'!$B$736=\"Sí\",'Base-datos'!$B$737=\"\"),IF('Instituciones-crédito'!K100=\"La actividad sí contribuye sustancialmente a la sostenibilidad\",SUM('Instituciones-crédito'!B100:H100),0),IF(AND('Base-datos'!$B$735=\"\",'Base-datos'!$B$736=\"\",'Base-datos'!$B$737=\"Sí\"),IF('Instituciones-crédito'!I100=\"La actividad sí contribuye sustancialmente a la sostenibilidad\",SUM('Instituciones-crédito'!B100:H100),0),IF(AND('Base-datos'!$B$735=\"\",'Base-datos'!$B$736=\"Sí\",'Base-datos'!$B$737=\"Sí\"),IF(AND('Instituciones-crédito'!K100=\"La actividad sí contribuye sustancialmente a la sostenibilidad\",'Instituciones-crédito'!I100=\"La actividad sí contribuye sustancialmente a la sostenibilidad\"),SUM('Instituciones-crédito'!B100:H100),0),IF(AND('Base-datos'!$B$735=\"Sí\",'Base-datos'!$B$736=\"\",'Base-datos'!$B$737=\"Sí\"),IF(AND('Instituciones-crédito'!J100=\"La actividad sí contribuye sustancialmente a la sostenibilidad\",'Instituciones-crédito'!I100=\"La actividad sí contribuye sustancialmente a la sostenibilidad\"),SUM('Instituciones-crédito'!B100:H100),0),\"Por definir\"))))))))","v":"Por definir"}]
[{"$f":"Agua!$C16","v":"Seleccione"},{"$f":"IF(Agua!$E16='Instituciones-crédito'!B$12,Agua!$B16,\"\")","v":""},{"$f":"IF(Agua!$E16='Instituciones-crédito'!C$12,Agua!$B16,\"\")","v":""},{"$f":"IF(Agua!$E16='Instituciones-crédito'!D$12,Agua!$B16,\"\")","v":""},{"$f":"IF(Agua!$E16='Instituciones-crédito'!E$12,Agua!$B16,\"\")","v":""},{"$f":"IF(Agua!$E16='Instituciones-crédito'!F$12,Agua!$B16,\"\")","v":""},{"$f":"IF(Agua!$E16='Instituciones-crédito'!G$12,Agua!$B16,\"\")","v":""},{"$f":"IF(Agua!$E16='Instituciones-crédito'!H$12,Agua!$B16,\"\")","v":""},{"$f":"_xlfn.XLOOKUP(A101,'Base-datos'!$B$532:$B$536,'Base-datos'!$F$532:$F$536)","v":{"$error":"#N/A"}},{"$f":"_xlfn.XLOOKUP(A101,'Base-datos'!$B$532:$B$536,'Base-datos'!$C$532:$C$536)","v":{"$error":"#N/A"}},{"$f":"_xlfn.XLOOKUP(A101,'Base-datos'!$B$532:$B$536,'Base-datos'!$D$532:$D$536)","v":{"$error":"#N/A"}},null,null,{"$f":"IF(OR($L$98=\"La actividad no cumple con el total de los criterios de No Daño Significativo\",$M$98=\"El sector no cumple con las salvaguardas mínimas\"),\"\",IF(AND('Base-datos'!$B$735=\"Sí\",'Base-datos'!$B$736=\"\",'Base-datos'!$B$737=\"\"),IF('Instituciones-crédito'!J101=\"La actividad sí contribuye sustancialmente a la sostenibilidad\",SUM('Instituciones-crédito'!B101:H101),0),IF(AND('Base-datos'!$B$735=\"Sí\",'Base-datos'!$B$736=\"Sí\",'Base-datos'!$B$737=\"\"),IF(AND('Instituciones-crédito'!J101=\"La actividad sí contribuye sustancialmente a la sostenibilidad\",'Instituciones-crédito'!K101=\"La actividad sí contribuye sustancialmente a la sostenibilidad\"),SUM('Instituciones-crédito'!B101:H101),0),IF(AND('Base-datos'!$B$735=\"Sí\",'Base-datos'!$B$736=\"Sí\",'Base-datos'!$B$737=\"Sí\"),IF(AND('Instituciones-crédito'!J101=\"La actividad sí contribuye sustancialmente a la sostenibilidad\",'Instituciones-crédito'!K101=\"La actividad sí contribuye sustancialmente a la sostenibilidad\",'Instituciones-crédito'!I101=\"La actividad sí contribuye sustancialmente a la sostenibilidad\"),SUM('Instituciones-crédito'!B101:H101),0),IF(AND('Base-datos'!$B$735=\"\",'Base-datos'!$B$736=\"Sí\",'Base-datos'!$B$737=\"\"),IF('Instituciones-crédito'!K101=\"La actividad sí contribuye sustancialmente a la sostenibilidad\",SUM('Instituciones-crédito'!B101:H101),0),IF(AND('Base-datos'!$B$735=\"\",'Base-datos'!$B$736=\"\",'Base-datos'!$B$737=\"Sí\"),IF('Instituciones-crédito'!I101=\"La actividad sí contribuye sustancialmente a la sostenibilidad\",SUM('Instituciones-crédito'!B101:H101),0),IF(AND('Base-datos'!$B$735=\"\",'Base-datos'!$B$736=\"Sí\",'Base-datos'!$B$737=\"Sí\"),IF(AND('Instituciones-crédito'!K101=\"La actividad sí contribuye sustancialmente a la sostenibilidad\",'Instituciones-crédito'!I101=\"La actividad sí contribuye sustancialmente a la sostenibilidad\"),SUM('Instituciones-crédito'!B101:H101),0),IF(AND('Base-datos'!$B$735=\"Sí\",'Base-datos'!$B$736=\"\",'Base-datos'!$B$737=\"Sí\"),IF(AND('Instituciones-crédito'!J101=\"La actividad sí contribuye sustancialmente a la sostenibilidad\",'Instituciones-crédito'!I101=\"La actividad sí contribuye sustancialmente a la sostenibilidad\"),SUM('Instituciones-crédito'!B101:H101),0),\"Por definir\"))))))))","v":"Por definir"}]
[{"$f":"Agua!$C18","v":"Seleccione"},{"$f":"IF(Agua!$E18='Instituciones-crédito'!B$12,Agua!$B18,\"\")","v":""},{"$f":"IF(Agua!$E18='Instituciones-crédito'!C$12,Agua!$B18,\"\")","v":""},{"$f":"IF(Agua!$E18='Instituciones-crédito'!D$12,Agua!$B18,\"\")","v":""},{"$f":"IF(Agua!$E18='Instituciones-crédito'!E$12,Agua!$B18,\"\")","v":""},{"$f":"IF(Agua!$E18='Instituciones-crédito'!F$12,Agua!$B18,\"\")","v":""},{"$f":"IF(Agua!$E18='Instituciones-crédito'!G$12,Agua!$B18,\"\")","v":""},{"$f":"IF(Agua!$E18='Instituciones-crédito'!H$12,Agua!$B18,\"\")","v":""},{"$f":"_xlfn.XLOOKUP(A102,'Base-datos'!$B$532:$B$536,'Base-datos'!$F$532:$F$536)","v":{"$error":"#N/A"}},{"$f":"_xlfn.XLOOKUP(A102,'Base-datos'!$B$532:$B$536,'Base-datos'!$C$532:$C$536)","v":{"$error":"#N/A"}},{"$f":"_xlfn.XLOOKUP(A102,'Base-datos'!$B$532:$B$536,'Base-datos'!$D$532:$D$536)","v":{"$error":"#N/A"}},null,null,{"$f":"IF(OR($L$98=\"La actividad no cumple con el total de los criterios de No Daño Significativo\",$M$98=\"El sector no cumple con las salvaguardas mínimas\"),\"\",IF(AND('Base-datos'!$B$735=\"Sí\",'Base-datos'!$B$736=\"\",'Base-datos'!$B$737=\"\"),IF('Instituciones-crédito'!J102=\"La actividad sí contribuye sustancialmente a la sostenibilidad\",SUM('Instituciones-crédito'!B102:H102),0),IF(AND('Base-datos'!$B$735=\"Sí\",'Base-datos'!$B$736=\"Sí\",'Base-datos'!$B$737=\"\"),IF(AND('Instituciones-crédito'!J102=\"La actividad sí contribuye sustancialmente a la sostenibilidad\",'Instituciones-crédito'!K102=\"La actividad sí contribuye sustancialmente a la sostenibilidad\"),SUM('Instituciones-crédito'!B102:H102),0),IF(AND('Base-datos'!$B$735=\"Sí\",'Base-datos'!$B$736=\"Sí\",'Base-datos'!$B$737=\"Sí\"),IF(AND('Instituciones-crédito'!J102=\"La actividad sí contribuye sustancialmente a la sostenibilidad\",'Instituciones-crédito'!K102=\"La actividad sí contribuye sustancialmente a la sostenibilidad\",'Instituciones-crédito'!I102=\"La actividad sí contribuye sustancialmente a la sostenibilidad\"),SUM('Instituciones-crédito'!B102:H102),0),IF(AND('Base-datos'!$B$735=\"\",'Base-datos'!$B$736=\"Sí\",'Base-datos'!$B$737=\"\"),IF('Instituciones-crédito'!K102=\"La actividad sí contribuye sustancialmente a la sostenibilidad\",SUM('Instituciones-crédito'!B102:H102),0),IF(AND('Base-datos'!$B$735=\"\",'Base-datos'!$B$736=\"\",'Base-datos'!$B$737=\"Sí\"),IF('Instituciones-crédito'!I102=\"La actividad sí contribuye sustancialmente a la sostenibilidad\",SUM('Instituciones-crédito'!B102:H102),0),IF(AND('Base-datos'!$B$735=\"\",'Base-datos'!$B$736=\"Sí\",'Base-datos'!$B$737=\"Sí\"),IF(AND('Instituciones-crédito'!K102=\"La actividad sí contribuye sustancialmente a la sostenibilidad\",'Instituciones-crédito'!I102=\"La actividad sí contribuye sustancialmente a la sostenibilidad\"),SUM('Instituciones-crédito'!B102:H102),0),IF(AND('Base-datos'!$B$735=\"Sí\",'Base-datos'!$B$736=\"\",'Base-datos'!$B$737=\"Sí\"),IF(AND('Instituciones-crédito'!J102=\"La actividad sí contribuye sustancialmente a la sostenibilidad\",'Instituciones-crédito'!I102=\"La actividad sí contribuye sustancialmente a la sostenibilidad\"),SUM('Instituciones-crédito'!B102:H102),0),\"Por definir\"))))))))","v":"Por definir"}]
[{"$f":"Agua!$C20","v":"Seleccione"},{"$f":"IF(Agua!$E20='Instituciones-crédito'!B$12,Agua!$B20,\"\")","v":""},{"$f":"IF(Agua!$E20='Instituciones-crédito'!C$12,Agua!$B20,\"\")","v":""},{"$f":"IF(Agua!$E20='Instituciones-crédito'!D$12,Agua!$B20,\"\")","v":""},{"$f":"IF(Agua!$E20='Instituciones-crédito'!E$12,Agua!$B20,\"\")","v":""},{"$f":"IF(Agua!$E20='Instituciones-crédito'!F$12,Agua!$B20,\"\")","v":""},{"$f":"IF(Agua!$E20='Instituciones-crédito'!G$12,Agua!$B20,\"\")","v":""},{"$f":"IF(Agua!$E20='Instituciones-crédito'!H$12,Agua!$B20,\"\")","v":""},{"$f":"_xlfn.XLOOKUP(A103,'Base-datos'!$B$532:$B$536,'Base-datos'!$F$532:$F$536)","v":{"$error":"#N/A"}},{"$f":"_xlfn.XLOOKUP(A103,'Base-datos'!$B$532:$B$536,'Base-datos'!$C$532:$C$536)","v":{"$error":"#N/A"}},{"$f":"_xlfn.XLOOKUP(A103,'Base-datos'!$B$532:$B$536,'Base-datos'!$D$532:$D$536)","v":{"$error":"#N/A"}},null,null,{"$f":"IF(OR($L$98=\"La actividad no cumple con el total de los criterios de No Daño Significativo\",$M$98=\"El sector no cumple con las salvaguardas mínimas\"),\"\",IF(AND('Base-datos'!$B$735=\"Sí\",'Base-datos'!$B$736=\"\",'Base-datos'!$B$737=\"\"),IF('Instituciones-crédito'!J103=\"La actividad sí contribuye sustancialmente a la sostenibilidad\",SUM('Instituciones-crédito'!B103:H103),0),IF(AND('Base-datos'!$B$735=\"Sí\",'Base-datos'!$B$736=\"Sí\",'Base-datos'!$B$737=\"\"),IF(AND('Instituciones-crédito'!J103=\"La actividad sí contribuye sustancialmente a la sostenibilidad\",'Instituciones-crédito'!K103=\"La actividad sí contribuye sustancialmente a la sostenibilidad\"),SUM('Instituciones-crédito'!B103:H103),0),IF(AND('Base-datos'!$B$735=\"Sí\",'Base-datos'!$B$736=\"Sí\",'Base-datos'!$B$737=\"Sí\"),IF(AND('Instituciones-crédito'!J103=\"La actividad sí contribuye sustancialmente a la sostenibilidad\",'Instituciones-crédito'!K103=\"La actividad sí contribuye sustancialmente a la sostenibilidad\",'Instituciones-crédito'!I103=\"La actividad sí contribuye sustancialmente a la sostenibilidad\"),SUM('Instituciones-crédito'!B103:H103),0),IF(AND('Base-datos'!$B$735=\"\",'Base-datos'!$B$736=\"Sí\",'Base-datos'!$B$737=\"\"),IF('Instituciones-crédito'!K103=\"La actividad sí contribuye sustancialmente a la sostenibilidad\",SUM('Instituciones-crédito'!B103:H103),0),IF(AND('Base-datos'!$B$735=\"\",'Base-datos'!$B$736=\"\",'Base-datos'!$B$737=\"Sí\"),IF('Instituciones-crédito'!I103=\"La actividad sí contribuye sustancialmente a la sostenibilidad\",SUM('Instituciones-crédito'!B103:H103),0),IF(AND('Base-datos'!$B$735=\"\",'Base-datos'!$B$736=\"Sí\",'Base-datos'!$B$737=\"Sí\"),IF(AND('Instituciones-crédito'!K103=\"La actividad sí contribuye sustancialmente a la sostenibilidad\",'Instituciones-crédito'!I103=\"La actividad sí contribuye sustancialmente a la sostenibilidad\"),SUM('Instituciones-crédito'!B103:H103),0),IF(AND('Base-datos'!$B$735=\"Sí\",'Base-datos'!$B$736=\"\",'Base-datos'!$B$737=\"Sí\"),IF(AND('Instituciones-crédito'!J103=\"La actividad sí contribuye sustancialmente a la sostenibilidad\",'Instituciones-crédito'!I103=\"La actividad sí contribuye sustancialmente a la sostenibilidad\"),SUM('Instituciones-crédito'!B103:H103),0),\"Por definir\"))))))))","v":"Por definir"}]
[{"$f":"Agua!$C22","v":"Seleccione"},{"$f":"IF(Agua!$E22='Instituciones-crédito'!B$12,Agua!$B22,\"\")","v":""},{"$f":"IF(Agua!$E22='Instituciones-crédito'!C$12,Agua!$B22,\"\")","v":""},{"$f":"IF(Agua!$E22='Instituciones-crédito'!D$12,Agua!$B22,\"\")","v":""},{"$f":"IF(Agua!$E22='Instituciones-crédito'!E$12,Agua!$B22,\"\")","v":""},{"$f":"IF(Agua!$E22='Instituciones-crédito'!F$12,Agua!$B22,\"\")","v":""},{"$f":"IF(Agua!$E22='Instituciones-crédito'!G$12,Agua!$B22,\"\")","v":""},{"$f":"IF(Agua!$E22='Instituciones-crédito'!H$12,Agua!$B22,\"\")","v":""},{"$f":"_xlfn.XLOOKUP(A104,'Base-datos'!$B$532:$B$536,'Base-datos'!$F$532:$F$536)","v":{"$error":"#N/A"}},{"$f":"_xlfn.XLOOKUP(A104,'Base-datos'!$B$532:$B$536,'Base-datos'!$C$532:$C$536)","v":{"$error":"#N/A"}},{"$f":"_xlfn.XLOOKUP(A104,'Base-datos'!$B$532:$B$536,'Base-datos'!$D$532:$D$536)","v":{"$error":"#N/A"}},null,null,{"$f":"IF(OR($L$98=\"La actividad no cumple con el total de los criterios de No Daño Significativo\",$M$98=\"El sector no cumple con las salvaguardas mínimas\"),\"\",IF(AND('Base-datos'!$B$735=\"Sí\",'Base-datos'!$B$736=\"\",'Base-datos'!$B$737=\"\"),IF('Instituciones-crédito'!J104=\"La actividad sí contribuye sustancialmente a la sostenibilidad\",SUM('Instituciones-crédito'!B104:H104),0),IF(AND('Base-datos'!$B$735=\"Sí\",'Base-datos'!$B$736=\"Sí\",'Base-datos'!$B$737=\"\"),IF(AND('Instituciones-crédito'!J104=\"La actividad sí contribuye sustancialmente a la sostenibilidad\",'Instituciones-crédito'!K104=\"La actividad sí contribuye sustancialmente a la sostenibilidad\"),SUM('Instituciones-crédito'!B104:H104),0),IF(AND('Base-datos'!$B$735=\"Sí\",'Base-datos'!$B$736=\"Sí\",'Base-datos'!$B$737=\"Sí\"),IF(AND('Instituciones-crédito'!J104=\"La actividad sí contribuye sustancialmente a la sostenibilidad\",'Instituciones-crédito'!K104=\"La actividad sí contribuye sustancialmente a la sostenibilidad\",'Instituciones-crédito'!I104=\"La actividad sí contribuye sustancialmente a la sostenibilidad\"),SUM('Instituciones-crédito'!B104:H104),0),IF(AND('Base-datos'!$B$735=\"\",'Base-datos'!$B$736=\"Sí\",'Base-datos'!$B$737=\"\"),IF('Instituciones-crédito'!K104=\"La actividad sí contribuye sustancialmente a la sostenibilidad\",SUM('Instituciones-crédito'!B104:H104),0),IF(AND('Base-datos'!$B$735=\"\",'Base-datos'!$B$736=\"\",'Base-datos'!$B$737=\"Sí\"),IF('Instituciones-crédito'!I104=\"La actividad sí contribuye sustancialmente a la sostenibilidad\",SUM('Instituciones-crédito'!B104:H104),0),IF(AND('Base-datos'!$B$735=\"\",'Base-datos'!$B$736=\"Sí\",'Base-datos'!$B$737=\"Sí\"),IF(AND('Instituciones-crédito'!K104=\"La actividad sí contribuye sustancialmente a la sostenibilidad\",'Instituciones-crédito'!I104=\"La actividad sí contribuye sustancialmente a la sostenibilidad\"),SUM('Instituciones-crédito'!B104:H104),0),IF(AND('Base-datos'!$B$735=\"Sí\",'Base-datos'!$B$736=\"\",'Base-datos'!$B$737=\"Sí\"),IF(AND('Instituciones-crédito'!J104=\"La actividad sí contribuye sustancialmente a la sostenibilidad\",'Instituciones-crédito'!I104=\"La actividad sí contribuye sustancialmente a la sostenibilidad\"),SUM('Instituciones-crédito'!B104:H104),0),\"Por definir\"))))))))","v":"Por definir"}]
[{"$f":"Agua!$C24","v":"Seleccione"},{"$f":"IF(Agua!$E24='Instituciones-crédito'!B$12,Agua!$B24,\"\")","v":""},{"$f":"IF(Agua!$E24='Instituciones-crédito'!C$12,Agua!$B24,\"\")","v":""},{"$f":"IF(Agua!$E24='Instituciones-crédito'!D$12,Agua!$B24,\"\")","v":""},{"$f":"IF(Agua!$E24='Instituciones-crédito'!E$12,Agua!$B24,\"\")","v":""},{"$f":"IF(Agua!$E24='Instituciones-crédito'!F$12,Agua!$B24,\"\")","v":""},{"$f":"IF(Agua!$E24='Instituciones-crédito'!G$12,Agua!$B24,\"\")","v":""},{"$f":"IF(Agua!$E24='Instituciones-crédito'!H$12,Agua!$B24,\"\")","v":""},{"$f":"_xlfn.XLOOKUP(A105,'Base-datos'!$B$532:$B$536,'Base-datos'!$F$532:$F$536)","v":{"$error":"#N/A"}},{"$f":"_xlfn.XLOOKUP(A105,'Base-datos'!$B$532:$B$536,'Base-datos'!$C$532:$C$536)","v":{"$error":"#N/A"}},{"$f":"_xlfn.XLOOKUP(A105,'Base-datos'!$B$532:$B$536,'Base-datos'!$D$532:$D$536)","v":{"$error":"#N/A"}},null,null,{"$f":"IF(OR($L$98=\"La actividad no cumple con el total de los criterios de No Daño Significativo\",$M$98=\"El sector no cumple con las salvaguardas mínimas\"),\"\",IF(AND('Base-datos'!$B$735=\"Sí\",'Base-datos'!$B$736=\"\",'Base-datos'!$B$737=\"\"),IF('Instituciones-crédito'!J105=\"La actividad sí contribuye sustancialmente a la sostenibilidad\",SUM('Instituciones-crédito'!B105:H105),0),IF(AND('Base-datos'!$B$735=\"Sí\",'Base-datos'!$B$736=\"Sí\",'Base-datos'!$B$737=\"\"),IF(AND('Instituciones-crédito'!J105=\"La actividad sí contribuye sustancialmente a la sostenibilidad\",'Instituciones-crédito'!K105=\"La actividad sí contribuye sustancialmente a la sostenibilidad\"),SUM('Instituciones-crédito'!B105:H105),0),IF(AND('Base-datos'!$B$735=\"Sí\",'Base-datos'!$B$736=\"Sí\",'Base-datos'!$B$737=\"Sí\"),IF(AND('Instituciones-crédito'!J105=\"La actividad sí contribuye sustancialmente a la sostenibilidad\",'Instituciones-crédito'!K105=\"La actividad sí contribuye sustancialmente a la sostenibilidad\",'Instituciones-crédito'!I105=\"La actividad sí contribuye sustancialmente a la sostenibilidad\"),SUM('Instituciones-crédito'!B105:H105),0),IF(AND('Base-datos'!$B$735=\"\",'Base-datos'!$B$736=\"Sí\",'Base-datos'!$B$737=\"\"),IF('Instituciones-crédito'!K105=\"La actividad sí contribuye sustancialmente a la sostenibilidad\",SUM('Instituciones-crédito'!B105:H105),0),IF(AND('Base-datos'!$B$735=\"\",'Base-datos'!$B$736=\"\",'Base-datos'!$B$737=\"Sí\"),IF('Instituciones-crédito'!I105=\"La actividad sí contribuye sustancialmente a la sostenibilidad\",SUM('Instituciones-crédito'!B105:H105),0),IF(AND('Base-datos'!$B$735=\"\",'Base-datos'!$B$736=\"Sí\",'Base-datos'!$B$737=\"Sí\"),IF(AND('Instituciones-crédito'!K105=\"La actividad sí contribuye sustancialmente a la sostenibilidad\",'Instituciones-crédito'!I105=\"La actividad sí contribuye sustancialmente a la sostenibilidad\"),SUM('Instituciones-crédito'!B105:H105),0),IF(AND('Base-datos'!$B$735=\"Sí\",'Base-datos'!$B$736=\"\",'Base-datos'!$B$737=\"Sí\"),IF(AND('Instituciones-crédito'!J105=\"La actividad sí contribuye sustancialmente a la sostenibilidad\",'Instituciones-crédito'!I105=\"La actividad sí contribuye sustancialmente a la sostenibilidad\"),SUM('Instituciones-crédito'!B105:H105),0),\"Por definir\"))))))))","v":"Por definir"}]
[{"$f":"Agua!$C26","v":"Seleccione"},{"$f":"IF(Agua!$E26='Instituciones-crédito'!B$12,Agua!$B26,\"\")","v":""},{"$f":"IF(Agua!$E26='Instituciones-crédito'!C$12,Agua!$B26,\"\")","v":""},{"$f":"IF(Agua!$E26='Instituciones-crédito'!D$12,Agua!$B26,\"\")","v":""},{"$f":"IF(Agua!$E26='Instituciones-crédito'!E$12,Agua!$B26,\"\")","v":""},{"$f":"IF(Agua!$E26='Instituciones-crédito'!F$12,Agua!$B26,\"\")","v":""},{"$f":"IF(Agua!$E26='Instituciones-crédito'!G$12,Agua!$B26,\"\")","v":""},{"$f":"IF(Agua!$E26='Instituciones-crédito'!H$12,Agua!$B26,\"\")","v":""},{"$f":"_xlfn.XLOOKUP(A106,'Base-datos'!$B$532:$B$536,'Base-datos'!$F$532:$F$536)","v":{"$error":"#N/A"}},{"$f":"_xlfn.XLOOKUP(A106,'Base-datos'!$B$532:$B$536,'Base-datos'!$C$532:$C$536)","v":{"$error":"#N/A"}},{"$f":"_xlfn.XLOOKUP(A106,'Base-datos'!$B$532:$B$536,'Base-datos'!$D$532:$D$536)","v":{"$error":"#N/A"}},null,null,{"$f":"IF(OR($L$98=\"La actividad no cumple con el total de los criterios de No Daño Significativo\",$M$98=\"El sector no cumple con las salvaguardas mínimas\"),\"\",IF(AND('Base-datos'!$B$735=\"Sí\",'Base-datos'!$B$736=\"\",'Base-datos'!$B$737=\"\"),IF('Instituciones-crédito'!J106=\"La actividad sí contribuye sustancialmente a la sostenibilidad\",SUM('Instituciones-crédito'!B106:H106),0),IF(AND('Base-datos'!$B$735=\"Sí\",'Base-datos'!$B$736=\"Sí\",'Base-datos'!$B$737=\"\"),IF(AND('Instituciones-crédito'!J106=\"La actividad sí contribuye sustancialmente a la sostenibilidad\",'Instituciones-crédito'!K106=\"La actividad sí contribuye sustancialmente a la sostenibilidad\"),SUM('Instituciones-crédito'!B106:H106),0),IF(AND('Base-datos'!$B$735=\"Sí\",'Base-datos'!$B$736=\"Sí\",'Base-datos'!$B$737=\"Sí\"),IF(AND('Instituciones-crédito'!J106=\"La actividad sí contribuye sustancialmente a la sostenibilidad\",'Instituciones-crédito'!K106=\"La actividad sí contribuye sustancialmente a la sostenibilidad\",'Instituciones-crédito'!I106=\"La actividad sí contribuye sustancialmente a la sostenibilidad\"),SUM('Instituciones-crédito'!B106:H106),0),IF(AND('Base-datos'!$B$735=\"\",'Base-datos'!$B$736=\"Sí\",'Base-datos'!$B$737=\"\"),IF('Instituciones-crédito'!K106=\"La actividad sí contribuye sustancialmente a la sostenibilidad\",SUM('Instituciones-crédito'!B106:H106),0),IF(AND('Base-datos'!$B$735=\"\",'Base-datos'!$B$736=\"\",'Base-datos'!$B$737=\"Sí\"),IF('Instituciones-crédito'!I106=\"La actividad sí contribuye sustancialmente a la sostenibilidad\",SUM('Instituciones-crédito'!B106:H106),0),IF(AND('Base-datos'!$B$735=\"\",'Base-datos'!$B$736=\"Sí\",'Base-datos'!$B$737=\"Sí\"),IF(AND('Instituciones-crédito'!K106=\"La actividad sí contribuye sustancialmente a la sostenibilidad\",'Instituciones-crédito'!I106=\"La actividad sí contribuye sustancialmente a la sostenibilidad\"),SUM('Instituciones-crédito'!B106:H106),0),IF(AND('Base-datos'!$B$735=\"Sí\",'Base-datos'!$B$736=\"\",'Base-datos'!$B$737=\"Sí\"),IF(AND('Instituciones-crédito'!J106=\"La actividad sí contribuye sustancialmente a la sostenibilidad\",'Instituciones-crédito'!I106=\"La actividad sí contribuye sustancialmente a la sostenibilidad\"),SUM('Instituciones-crédito'!B106:H106),0),\"Por definir\"))))))))","v":"Por definir"}]
[{"$f":"Agua!$C28","v":"Seleccione"},{"$f":"IF(Agua!$E28='Instituciones-crédito'!B$12,Agua!$B28,\"\")","v":""},{"$f":"IF(Agua!$E28='Instituciones-crédito'!C$12,Agua!$B28,\"\")","v":""},{"$f":"IF(Agua!$E28='Instituciones-crédito'!D$12,Agua!$B28,\"\")","v":""},{"$f":"IF(Agua!$E28='Instituciones-crédito'!E$12,Agua!$B28,\"\")","v":""},{"$f":"IF(Agua!$E28='Instituciones-crédito'!F$12,Agua!$B28,\"\")","v":""},{"$f":"IF(Agua!$E28='Instituciones-crédito'!G$12,Agua!$B28,\"\")","v":""},{"$f":"IF(Agua!$E28='Instituciones-crédito'!H$12,Agua!$B28,\"\")","v":""},{"$f":"_xlfn.XLOOKUP(A107,'Base-datos'!$B$532:$B$536,'Base-datos'!$F$532:$F$536)","v":{"$error":"#N/A"}},{"$f":"_xlfn.XLOOKUP(A107,'Base-datos'!$B$532:$B$536,'Base-datos'!$C$532:$C$536)","v":{"$error":"#N/A"}},{"$f":"_xlfn.XLOOKUP(A107,'Base-datos'!$B$532:$B$536,'Base-datos'!$D$532:$D$536)","v":{"$error":"#N/A"}},null,null,{"$f":"IF(OR($L$98=\"La actividad no cumple con el total de los criterios de No Daño Significativo\",$M$98=\"El sector no cumple con las salvaguardas mínimas\"),\"\",IF(AND('Base-datos'!$B$735=\"Sí\",'Base-datos'!$B$736=\"\",'Base-datos'!$B$737=\"\"),IF('Instituciones-crédito'!J107=\"La actividad sí contribuye sustancialmente a la sostenibilidad\",SUM('Instituciones-crédito'!B107:H107),0),IF(AND('Base-datos'!$B$735=\"Sí\",'Base-datos'!$B$736=\"Sí\",'Base-datos'!$B$737=\"\"),IF(AND('Instituciones-crédito'!J107=\"La actividad sí contribuye sustancialmente a la sostenibilidad\",'Instituciones-crédito'!K107=\"La actividad sí contribuye sustancialmente a la sostenibilidad\"),SUM('Instituciones-crédito'!B107:H107),0),IF(AND('Base-datos'!$B$735=\"Sí\",'Base-datos'!$B$736=\"Sí\",'Base-datos'!$B$737=\"Sí\"),IF(AND('Instituciones-crédito'!J107=\"La actividad sí contribuye sustancialmente a la sostenibilidad\",'Instituciones-crédito'!K107=\"La actividad sí contribuye sustancialmente a la sostenibilidad\",'Instituciones-crédito'!I107=\"La actividad sí contribuye sustancialmente a la sostenibilidad\"),SUM('Instituciones-crédito'!B107:H107),0),IF(AND('Base-datos'!$B$735=\"\",'Base-datos'!$B$736=\"Sí\",'Base-datos'!$B$737=\"\"),IF('Instituciones-crédito'!K107=\"La actividad sí contribuye sustancialmente a la sostenibilidad\",SUM('Instituciones-crédito'!B107:H107),0),IF(AND('Base-datos'!$B$735=\"\",'Base-datos'!$B$736=\"\",'Base-datos'!$B$737=\"Sí\"),IF('Instituciones-crédito'!I107=\"La actividad sí contribuye sustancialmente a la sostenibilidad\",SUM('Instituciones-crédito'!B107:H107),0),IF(AND('Base-datos'!$B$735=\"\",'Base-datos'!$B$736=\"Sí\",'Base-datos'!$B$737=\"Sí\"),IF(AND('Instituciones-crédito'!K107=\"La actividad sí contribuye sustancialmente a la sostenibilidad\",'Instituciones-crédito'!I107=\"La actividad sí contribuye sustancialmente a la sostenibilidad\"),SUM('Instituciones-crédito'!B107:H107),0),IF(AND('Base-datos'!$B$735=\"Sí\",'Base-datos'!$B$736=\"\",'Base-datos'!$B$737=\"Sí\"),IF(AND('Instituciones-crédito'!J107=\"La actividad sí contribuye sustancialmente a la sostenibilidad\",'Instituciones-crédito'!I107=\"La actividad sí contribuye sustancialmente a la sostenibilidad\"),SUM('Instituciones-crédito'!B107:H107),0),\"Por definir\"))))))))","v":"Por definir"}]
[{"$f":"Agua!$C30","v":"Seleccione"},{"$f":"IF(Agua!$E30='Instituciones-crédito'!B$12,Agua!$B30,\"\")","v":""},{"$f":"IF(Agua!$E30='Instituciones-crédito'!C$12,Agua!$B30,\"\")","v":""},{"$f":"IF(Agua!$E30='Instituciones-crédito'!D$12,Agua!$B30,\"\")","v":""},{"$f":"IF(Agua!$E30='Instituciones-crédito'!E$12,Agua!$B30,\"\")","v":""},{"$f":"IF(Agua!$E30='Instituciones-crédito'!F$12,Agua!$B30,\"\")","v":""},{"$f":"IF(Agua!$E30='Instituciones-crédito'!G$12,Agua!$B30,\"\")","v":""},{"$f":"IF(Agua!$E30='Instituciones-crédito'!H$12,Agua!$B30,\"\")","v":""},{"$f":"_xlfn.XLOOKUP(A108,'Base-datos'!$B$532:$B$536,'Base-datos'!$F$532:$F$536)","v":{"$error":"#N/A"}},{"$f":"_xlfn.XLOOKUP(A108,'Base-datos'!$B$532:$B$536,'Base-datos'!$C$532:$C$536)","v":{"$error":"#N/A"}},{"$f":"_xlfn.XLOOKUP(A108,'Base-datos'!$B$532:$B$536,'Base-datos'!$D$532:$D$536)","v":{"$error":"#N/A"}},null,null,{"$f":"IF(OR($L$98=\"La actividad no cumple con el total de los criterios de No Daño Significativo\",$M$98=\"El sector no cumple con las salvaguardas mínimas\"),\"\",IF(AND('Base-datos'!$B$735=\"Sí\",'Base-datos'!$B$736=\"\",'Base-datos'!$B$737=\"\"),IF('Instituciones-crédito'!J108=\"La actividad sí contribuye sustancialmente a la sostenibilidad\",SUM('Instituciones-crédito'!B108:H108),0),IF(AND('Base-datos'!$B$735=\"Sí\",'Base-datos'!$B$736=\"Sí\",'Base-datos'!$B$737=\"\"),IF(AND('Instituciones-crédito'!J108=\"La actividad sí contribuye sustancialmente a la sostenibilidad\",'Instituciones-crédito'!K108=\"La actividad sí contribuye sustancialmente a la sostenibilidad\"),SUM('Instituciones-crédito'!B108:H108),0),IF(AND('Base-datos'!$B$735=\"Sí\",'Base-datos'!$B$736=\"Sí\",'Base-datos'!$B$737=\"Sí\"),IF(AND('Instituciones-crédito'!J108=\"La actividad sí contribuye sustancialmente a la sostenibilidad\",'Instituciones-crédito'!K108=\"La actividad sí contribuye sustancialmente a la sostenibilidad\",'Instituciones-crédito'!I108=\"La actividad sí contribuye sustancialmente a la sostenibilidad\"),SUM('Instituciones-crédito'!B108:H108),0),IF(AND('Base-datos'!$B$735=\"\",'Base-datos'!$B$736=\"Sí\",'Base-datos'!$B$737=\"\"),IF('Instituciones-crédito'!K108=\"La actividad sí contribuye sustancialmente a la sostenibilidad\",SUM('Instituciones-crédito'!B108:H108),0),IF(AND('Base-datos'!$B$735=\"\",'Base-datos'!$B$736=\"\",'Base-datos'!$B$737=\"Sí\"),IF('Instituciones-crédito'!I108=\"La actividad sí contribuye sustancialmente a la sostenibilidad\",SUM('Instituciones-crédito'!B108:H108),0),IF(AND('Base-datos'!$B$735=\"\",'Base-datos'!$B$736=\"Sí\",'Base-datos'!$B$737=\"Sí\"),IF(AND('Instituciones-crédito'!K108=\"La actividad sí contribuye sustancialmente a la sostenibilidad\",'Instituciones-crédito'!I108=\"La actividad sí contribuye sustancialmente a la sostenibilidad\"),SUM('Instituciones-crédito'!B108:H108),0),IF(AND('Base-datos'!$B$735=\"Sí\",'Base-datos'!$B$736=\"\",'Base-datos'!$B$737=\"Sí\"),IF(AND('Instituciones-crédito'!J108=\"La actividad sí contribuye sustancialmente a la sostenibilidad\",'Instituciones-crédito'!I108=\"La actividad sí contribuye sustancialmente a la sostenibilidad\"),SUM('Instituciones-crédito'!B108:H108),0),\"Por definir\"))))))))","v":"Por definir"}]
[{"$f":"Agua!$C32","v":"Seleccione"},{"$f":"IF(Agua!$E32='Instituciones-crédito'!B$12,Agua!$B32,\"\")","v":""},{"$f":"IF(Agua!$E32='Instituciones-crédito'!C$12,Agua!$B32,\"\")","v":""},{"$f":"IF(Agua!$E32='Instituciones-crédito'!D$12,Agua!$B32,\"\")","v":""},{"$f":"IF(Agua!$E32='Instituciones-crédito'!E$12,Agua!$B32,\"\")","v":""},{"$f":"IF(Agua!$E32='Instituciones-crédito'!F$12,Agua!$B32,\"\")","v":""},{"$f":"IF(Agua!$E32='Instituciones-crédito'!G$12,Agua!$B32,\"\")","v":""},{"$f":"IF(Agua!$E32='Instituciones-crédito'!H$12,Agua!$B32,\"\")","v":""},{"$f":"_xlfn.XLOOKUP(A109,'Base-datos'!$B$532:$B$536,'Base-datos'!$F$532:$F$536)","v":{"$error":"#N/A"}},{"$f":"_xlfn.XLOOKUP(A109,'Base-datos'!$B$532:$B$536,'Base-datos'!$C$532:$C$536)","v":{"$error":"#N/A"}},{"$f":"_xlfn.XLOOKUP(A109,'Base-datos'!$B$532:$B$536,'Base-datos'!$D$532:$D$536)","v":{"$error":"#N/A"}},null,null,{"$f":"IF(OR($L$98=\"La actividad no cumple con el total de los criterios de No Daño Significativo\",$M$98=\"El sector no cumple con las salvaguardas mínimas\"),\"\",IF(AND('Base-datos'!$B$735=\"Sí\",'Base-datos'!$B$736=\"\",'Base-datos'!$B$737=\"\"),IF('Instituciones-crédito'!J109=\"La actividad sí contribuye sustancialmente a la sostenibilidad\",SUM('Instituciones-crédito'!B109:H109),0),IF(AND('Base-datos'!$B$735=\"Sí\",'Base-datos'!$B$736=\"Sí\",'Base-datos'!$B$737=\"\"),IF(AND('Instituciones-crédito'!J109=\"La actividad sí contribuye sustancialmente a la sostenibilidad\",'Instituciones-crédito'!K109=\"La actividad sí contribuye sustancialmente a la sostenibilidad\"),SUM('Instituciones-crédito'!B109:H109),0),IF(AND('Base-datos'!$B$735=\"Sí\",'Base-datos'!$B$736=\"Sí\",'Base-datos'!$B$737=\"Sí\"),IF(AND('Instituciones-crédito'!J109=\"La actividad sí contribuye sustancialmente a la sostenibilidad\",'Instituciones-crédito'!K109=\"La actividad sí contribuye sustancialmente a la sostenibilidad\",'Instituciones-crédito'!I109=\"La actividad sí contribuye sustancialmente a la sostenibilidad\"),SUM('Instituciones-crédito'!B109:H109),0),IF(AND('Base-datos'!$B$735=\"\",'Base-datos'!$B$736=\"Sí\",'Base-datos'!$B$737=\"\"),IF('Instituciones-crédito'!K109=\"La actividad sí contribuye sustancialmente a la sostenibilidad\",SUM('Instituciones-crédito'!B109:H109),0),IF(AND('Base-datos'!$B$735=\"\",'Base-datos'!$B$736=\"\",'Base-datos'!$B$737=\"Sí\"),IF('Instituciones-crédito'!I109=\"La actividad sí contribuye sustancialmente a la sostenibilidad\",SUM('Instituciones-crédito'!B109:H109),0),IF(AND('Base-datos'!$B$735=\"\",'Base-datos'!$B$736=\"Sí\",'Base-datos'!$B$737=\"Sí\"),IF(AND('Instituciones-crédito'!K109=\"La actividad sí contribuye sustancialmente a la sostenibilidad\",'Instituciones-crédito'!I109=\"La actividad sí contribuye sustancialmente a la sostenibilidad\"),SUM('Instituciones-crédito'!B109:H109),0),IF(AND('Base-datos'!$B$735=\"Sí\",'Base-datos'!$B$736=\"\",'Base-datos'!$B$737=\"Sí\"),IF(AND('Instituciones-crédito'!J109=\"La actividad sí contribuye sustancialmente a la sostenibilidad\",'Instituciones-crédito'!I109=\"La actividad sí contribuye sustancialmente a la sostenibilidad\"),SUM('Instituciones-crédito'!B109:H109),0),\"Por definir\"))))))))","v":"Por definir"}]
[{"$f":"Agua!$C34","v":"Seleccione"},{"$f":"IF(Agua!$E34='Instituciones-crédito'!B$12,Agua!$B34,\"\")","v":""},{"$f":"IF(Agua!$E34='Instituciones-crédito'!C$12,Agua!$B34,\"\")","v":""},{"$f":"IF(Agua!$E34='Instituciones-crédito'!D$12,Agua!$B34,\"\")","v":""},{"$f":"IF(Agua!$E34='Instituciones-crédito'!E$12,Agua!$B34,\"\")","v":""},{"$f":"IF(Agua!$E34='Instituciones-crédito'!F$12,Agua!$B34,\"\")","v":""},{"$f":"IF(Agua!$E34='Instituciones-crédito'!G$12,Agua!$B34,\"\")","v":""},{"$f":"IF(Agua!$E34='Instituciones-crédito'!H$12,Agua!$B34,\"\")","v":""},{"$f":"_xlfn.XLOOKUP(A110,'Base-datos'!$B$532:$B$536,'Base-datos'!$F$532:$F$536)","v":{"$error":"#N/A"}},{"$f":"_xlfn.XLOOKUP(A110,'Base-datos'!$B$532:$B$536,'Base-datos'!$C$532:$C$536)","v":{"$error":"#N/A"}},{"$f":"_xlfn.XLOOKUP(A110,'Base-datos'!$B$532:$B$536,'Base-datos'!$D$532:$D$536)","v":{"$error":"#N/A"}},null,null,{"$f":"IF(OR($L$98=\"La actividad no cumple con el total de los criterios de No Daño Significativo\",$M$98=\"El sector no cumple con las salvaguardas mínimas\"),\"\",IF(AND('Base-datos'!$B$735=\"Sí\",'Base-datos'!$B$736=\"\",'Base-datos'!$B$737=\"\"),IF('Instituciones-crédito'!J110=\"La actividad sí contribuye sustancialmente a la sostenibilidad\",SUM('Instituciones-crédito'!B110:H110),0),IF(AND('Base-datos'!$B$735=\"Sí\",'Base-datos'!$B$736=\"Sí\",'Base-datos'!$B$737=\"\"),IF(AND('Instituciones-crédito'!J110=\"La actividad sí contribuye sustancialmente a la sostenibilidad\",'Instituciones-crédito'!K110=\"La actividad sí contribuye sustancialmente a la sostenibilidad\"),SUM('Instituciones-crédito'!B110:H110),0),IF(AND('Base-datos'!$B$735=\"Sí\",'Base-datos'!$B$736=\"Sí\",'Base-datos'!$B$737=\"Sí\"),IF(AND('Instituciones-crédito'!J110=\"La actividad sí contribuye sustancialmente a la sostenibilidad\",'Instituciones-crédito'!K110=\"La actividad sí contribuye sustancialmente a la sostenibilidad\",'Instituciones-crédito'!I110=\"La actividad sí contribuye sustancialmente a la sostenibilidad\"),SUM('Instituciones-crédito'!B110:H110),0),IF(AND('Base-datos'!$B$735=\"\",'Base-datos'!$B$736=\"Sí\",'Base-datos'!$B$737=\"\"),IF('Instituciones-crédito'!K110=\"La actividad sí contribuye sustancialmente a la sostenibilidad\",SUM('Instituciones-crédito'!B110:H110),0),IF(AND('Base-datos'!$B$735=\"\",'Base-datos'!$B$736=\"\",'Base-datos'!$B$737=\"Sí\"),IF('Instituciones-crédito'!I110=\"La actividad sí contribuye sustancialmente a la sostenibilidad\",SUM('Instituciones-crédito'!B110:H110),0),IF(AND('Base-datos'!$B$735=\"\",'Base-datos'!$B$736=\"Sí\",'Base-datos'!$B$737=\"Sí\"),IF(AND('Instituciones-crédito'!K110=\"La actividad sí contribuye sustancialmente a la sostenibilidad\",'Instituciones-crédito'!I110=\"La actividad sí contribuye sustancialmente a la sostenibilidad\"),SUM('Instituciones-crédito'!B110:H110),0),IF(AND('Base-datos'!$B$735=\"Sí\",'Base-datos'!$B$736=\"\",'Base-datos'!$B$737=\"Sí\"),IF(AND('Instituciones-crédito'!J110=\"La actividad sí contribuye sustancialmente a la sostenibilidad\",'Instituciones-crédito'!I110=\"La actividad sí contribuye sustancialmente a la sostenibilidad\"),SUM('Instituciones-crédito'!B110:H110),0),\"Por definir\"))))))))","v":"Por definir"}]
[{"$f":"Agua!$C36","v":"Seleccione"},{"$f":"IF(Agua!$E36='Instituciones-crédito'!B$12,Agua!$B36,\"\")","v":""},{"$f":"IF(Agua!$E36='Instituciones-crédito'!C$12,Agua!$B36,\"\")","v":""},{"$f":"IF(Agua!$E36='Instituciones-crédito'!D$12,Agua!$B36,\"\")","v":""},{"$f":"IF(Agua!$E36='Instituciones-crédito'!E$12,Agua!$B36,\"\")","v":""},{"$f":"IF(Agua!$E36='Instituciones-crédito'!F$12,Agua!$B36,\"\")","v":""},{"$f":"IF(Agua!$E36='Instituciones-crédito'!G$12,Agua!$B36,\"\")","v":""},{"$f":"IF(Agua!$E36='Instituciones-crédito'!H$12,Agua!$B36,\"\")","v":""},{"$f":"_xlfn.XLOOKUP(A111,'Base-datos'!$B$532:$B$536,'Base-datos'!$F$532:$F$536)","v":{"$error":"#N/A"}},{"$f":"_xlfn.XLOOKUP(A111,'Base-datos'!$B$532:$B$536,'Base-datos'!$C$532:$C$536)","v":{"$error":"#N/A"}},{"$f":"_xlfn.XLOOKUP(A111,'Base-datos'!$B$532:$B$536,'Base-datos'!$D$532:$D$536)","v":{"$error":"#N/A"}},null,null,{"$f":"IF(OR($L$98=\"La actividad no cumple con el total de los criterios de No Daño Significativo\",$M$98=\"El sector no cumple con las salvaguardas mínimas\"),\"\",IF(AND('Base-datos'!$B$735=\"Sí\",'Base-datos'!$B$736=\"\",'Base-datos'!$B$737=\"\"),IF('Instituciones-crédito'!J111=\"La actividad sí contribuye sustancialmente a la sostenibilidad\",SUM('Instituciones-crédito'!B111:H111),0),IF(AND('Base-datos'!$B$735=\"Sí\",'Base-datos'!$B$736=\"Sí\",'Base-datos'!$B$737=\"\"),IF(AND('Instituciones-crédito'!J111=\"La actividad sí contribuye sustancialmente a la sostenibilidad\",'Instituciones-crédito'!K111=\"La actividad sí contribuye sustancialmente a la sostenibilidad\"),SUM('Instituciones-crédito'!B111:H111),0),IF(AND('Base-datos'!$B$735=\"Sí\",'Base-datos'!$B$736=\"Sí\",'Base-datos'!$B$737=\"Sí\"),IF(AND('Instituciones-crédito'!J111=\"La actividad sí contribuye sustancialmente a la sostenibilidad\",'Instituciones-crédito'!K111=\"La actividad sí contribuye sustancialmente a la sostenibilidad\",'Instituciones-crédito'!I111=\"La actividad sí contribuye sustancialmente a la sostenibilidad\"),SUM('Instituciones-crédito'!B111:H111),0),IF(AND('Base-datos'!$B$735=\"\",'Base-datos'!$B$736=\"Sí\",'Base-datos'!$B$737=\"\"),IF('Instituciones-crédito'!K111=\"La actividad sí contribuye sustancialmente a la sostenibilidad\",SUM('Instituciones-crédito'!B111:H111),0),IF(AND('Base-datos'!$B$735=\"\",'Base-datos'!$B$736=\"\",'Base-datos'!$B$737=\"Sí\"),IF('Instituciones-crédito'!I111=\"La actividad sí contribuye sustancialmente a la sostenibilidad\",SUM('Instituciones-crédito'!B111:H111),0),IF(AND('Base-datos'!$B$735=\"\",'Base-datos'!$B$736=\"Sí\",'Base-datos'!$B$737=\"Sí\"),IF(AND('Instituciones-crédito'!K111=\"La actividad sí contribuye sustancialmente a la sostenibilidad\",'Instituciones-crédito'!I111=\"La actividad sí contribuye sustancialmente a la sostenibilidad\"),SUM('Instituciones-crédito'!B111:H111),0),IF(AND('Base-datos'!$B$735=\"Sí\",'Base-datos'!$B$736=\"\",'Base-datos'!$B$737=\"Sí\"),IF(AND('Instituciones-crédito'!J111=\"La actividad sí contribuye sustancialmente a la sostenibilidad\",'Instituciones-crédito'!I111=\"La actividad sí contribuye sustancialmente a la sostenibilidad\"),SUM('Instituciones-crédito'!B111:H111),0),\"Por definir\"))))))))","v":"Por definir"}]
[{"$f":"Agua!$C38","v":"Seleccione"},{"$f":"IF(Agua!$E38='Instituciones-crédito'!B$12,Agua!$B38,\"\")","v":""},{"$f":"IF(Agua!$E38='Instituciones-crédito'!C$12,Agua!$B38,\"\")","v":""},{"$f":"IF(Agua!$E38='Instituciones-crédito'!D$12,Agua!$B38,\"\")","v":""},{"$f":"IF(Agua!$E38='Instituciones-crédito'!E$12,Agua!$B38,\"\")","v":""},{"$f":"IF(Agua!$E38='Instituciones-crédito'!F$12,Agua!$B38,\"\")","v":""},{"$f":"IF(Agua!$E38='Instituciones-crédito'!G$12,Agua!$B38,\"\")","v":""},{"$f":"IF(Agua!$E38='Instituciones-crédito'!H$12,Agua!$B38,\"\")","v":""},{"$f":"_xlfn.XLOOKUP(A112,'Base-datos'!$B$532:$B$536,'Base-datos'!$F$532:$F$536)","v":{"$error":"#N/A"}},{"$f":"_xlfn.XLOOKUP(A112,'Base-datos'!$B$532:$B$536,'Base-datos'!$C$532:$C$536)","v":{"$error":"#N/A"}},{"$f":"_xlfn.XLOOKUP(A112,'Base-datos'!$B$532:$B$536,'Base-datos'!$D$532:$D$536)","v":{"$error":"#N/A"}},null,null,{"$f":"IF(OR($L$98=\"La actividad no cumple con el total de los criterios de No Daño Significativo\",$M$98=\"El sector no cumple con las salvaguardas mínimas\"),\"\",IF(AND('Base-datos'!$B$735=\"Sí\",'Base-datos'!$B$736=\"\",'Base-datos'!$B$737=\"\"),IF('Instituciones-crédito'!J112=\"La actividad sí contribuye sustancialmente a la sostenibilidad\",SUM('Instituciones-crédito'!B112:H112),0),IF(AND('Base-datos'!$B$735=\"Sí\",'Base-datos'!$B$736=\"Sí\",'Base-datos'!$B$737=\"\"),IF(AND('Instituciones-crédito'!J112=\"La actividad sí contribuye sustancialmente a la sostenibilidad\",'Instituciones-crédito'!K112=\"La actividad sí contribuye sustancialmente a la sostenibilidad\"),SUM('Instituciones-crédito'!B112:H112),0),IF(AND('Base-datos'!$B$735=\"Sí\",'Base-datos'!$B$736=\"Sí\",'Base-datos'!$B$737=\"Sí\"),IF(AND('Instituciones-crédito'!J112=\"La actividad sí contribuye sustancialmente a la sostenibilidad\",'Instituciones-crédito'!K112=\"La actividad sí contribuye sustancialmente a la sostenibilidad\",'Instituciones-crédito'!I112=\"La actividad sí contribuye sustancialmente a la sostenibilidad\"),SUM('Instituciones-crédito'!B112:H112),0),IF(AND('Base-datos'!$B$735=\"\",'Base-datos'!$B$736=\"Sí\",'Base-datos'!$B$737=\"\"),IF('Instituciones-crédito'!K112=\"La actividad sí contribuye sustancialmente a la sostenibilidad\",SUM('Instituciones-crédito'!B112:H112),0),IF(AND('Base-datos'!$B$735=\"\",'Base-datos'!$B$736=\"\",'Base-datos'!$B$737=\"Sí\"),IF('Instituciones-crédito'!I112=\"La actividad sí contribuye sustancialmente a la sostenibilidad\",SUM('Instituciones-crédito'!B112:H112),0),IF(AND('Base-datos'!$B$735=\"\",'Base-datos'!$B$736=\"Sí\",'Base-datos'!$B$737=\"Sí\"),IF(AND('Instituciones-crédito'!K112=\"La actividad sí contribuye sustancialmente a la sostenibilidad\",'Instituciones-crédito'!I112=\"La actividad sí contribuye sustancialmente a la sostenibilidad\"),SUM('Instituciones-crédito'!B112:H112),0),IF(AND('Base-datos'!$B$735=\"Sí\",'Base-datos'!$B$736=\"\",'Base-datos'!$B$737=\"Sí\"),IF(AND('Instituciones-crédito'!J112=\"La actividad sí contribuye sustancialmente a la sostenibilidad\",'Instituciones-crédito'!I112=\"La actividad sí contribuye sustancialmente a la sostenibilidad\"),SUM('Instituciones-crédito'!B112:H112),0),\"Por definir\"))))))))","v":"Por definir"}]
[{"$f":"Agua!$C40","v":"Seleccione"},{"$f":"IF(Agua!$E40='Instituciones-crédito'!B$12,Agua!$B40,\"\")","v":""},{"$f":"IF(Agua!$E40='Instituciones-crédito'!C$12,Agua!$B40,\"\")","v":""},{"$f":"IF(Agua!$E40='Instituciones-crédito'!D$12,Agua!$B40,\"\")","v":""},{"$f":"IF(Agua!$E40='Instituciones-crédito'!E$12,Agua!$B40,\"\")","v":""},{"$f":"IF(Agua!$E40='Instituciones-crédito'!F$12,Agua!$B40,\"\")","v":""},{"$f":"IF(Agua!$E40='Instituciones-crédito'!G$12,Agua!$B40,\"\")","v":""},{"$f":"IF(Agua!$E40='Instituciones-crédito'!H$12,Agua!$B40,\"\")","v":""},{"$f":"_xlfn.XLOOKUP(A113,'Base-datos'!$B$532:$B$536,'Base-datos'!$F$532:$F$536)","v":{"$error":"#N/A"}},{"$f":"_xlfn.XLOOKUP(A113,'Base-datos'!$B$532:$B$536,'Base-datos'!$C$532:$C$536)","v":{"$error":"#N/A"}},{"$f":"_xlfn.XLOOKUP(A113,'Base-datos'!$B$532:$B$536,'Base-datos'!$D$532:$D$536)","v":{"$error":"#N/A"}},null,null,{"$f":"IF(OR($L$98=\"La actividad no cumple con el total de los criterios de No Daño Significativo\",$M$98=\"El sector no cumple con las salvaguardas mínimas\"),\"\",IF(AND('Base-datos'!$B$735=\"Sí\",'Base-datos'!$B$736=\"\",'Base-datos'!$B$737=\"\"),IF('Instituciones-crédito'!J113=\"La actividad sí contribuye sustancialmente a la sostenibilidad\",SUM('Instituciones-crédito'!B113:H113),0),IF(AND('Base-datos'!$B$735=\"Sí\",'Base-datos'!$B$736=\"Sí\",'Base-datos'!$B$737=\"\"),IF(AND('Instituciones-crédito'!J113=\"La actividad sí contribuye sustancialmente a la sostenibilidad\",'Instituciones-crédito'!K113=\"La actividad sí contribuye sustancialmente a la sostenibilidad\"),SUM('Instituciones-crédito'!B113:H113),0),IF(AND('Base-datos'!$B$735=\"Sí\",'Base-datos'!$B$736=\"Sí\",'Base-datos'!$B$737=\"Sí\"),IF(AND('Instituciones-crédito'!J113=\"La actividad sí contribuye sustancialmente a la sostenibilidad\",'Instituciones-crédito'!K113=\"La actividad sí contribuye sustancialmente a la sostenibilidad\",'Instituciones-crédito'!I113=\"La actividad sí contribuye sustancialmente a la sostenibilidad\"),SUM('Instituciones-crédito'!B113:H113),0),IF(AND('Base-datos'!$B$735=\"\",'Base-datos'!$B$736=\"Sí\",'Base-datos'!$B$737=\"\"),IF('Instituciones-crédito'!K113=\"La actividad sí contribuye sustancialmente a la sostenibilidad\",SUM('Instituciones-crédito'!B113:H113),0),IF(AND('Base-datos'!$B$735=\"\",'Base-datos'!$B$736=\"\",'Base-datos'!$B$737=\"Sí\"),IF('Instituciones-crédito'!I113=\"La actividad sí contribuye sustancialmente a la sostenibilidad\",SUM('Instituciones-crédito'!B113:H113),0),IF(AND('Base-datos'!$B$735=\"\",'Base-datos'!$B$736=\"Sí\",'Base-datos'!$B$737=\"Sí\"),IF(AND('Instituciones-crédito'!K113=\"La actividad sí contribuye sustancialmente a la sostenibilidad\",'Instituciones-crédito'!I113=\"La actividad sí contribuye sustancialmente a la sostenibilidad\"),SUM('Instituciones-crédito'!B113:H113),0),IF(AND('Base-datos'!$B$735=\"Sí\",'Base-datos'!$B$736=\"\",'Base-datos'!$B$737=\"Sí\"),IF(AND('Instituciones-crédito'!J113=\"La actividad sí contribuye sustancialmente a la sostenibilidad\",'Instituciones-crédito'!I113=\"La actividad sí contribuye sustancialmente a la sostenibilidad\"),SUM('Instituciones-crédito'!B113:H113),0),\"Por definir\"))))))))","v":"Por definir"}]
[{"$f":"Agua!$C42","v":"Seleccione"},{"$f":"IF(Agua!$E42='Instituciones-crédito'!B$12,Agua!$B42,\"\")","v":""},{"$f":"IF(Agua!$E42='Instituciones-crédito'!C$12,Agua!$B42,\"\")","v":""},{"$f":"IF(Agua!$E42='Instituciones-crédito'!D$12,Agua!$B42,\"\")","v":""},{"$f":"IF(Agua!$E42='Instituciones-crédito'!E$12,Agua!$B42,\"\")","v":""},{"$f":"IF(Agua!$E42='Instituciones-crédito'!F$12,Agua!$B42,\"\")","v":""},{"$f":"IF(Agua!$E42='Instituciones-crédito'!G$12,Agua!$B42,\"\")","v":""},{"$f":"IF(Agua!$E42='Instituciones-crédito'!H$12,Agua!$B42,\"\")","v":""},{"$f":"_xlfn.XLOOKUP(A114,'Base-datos'!$B$532:$B$536,'Base-datos'!$F$532:$F$536)","v":{"$error":"#N/A"}},{"$f":"_xlfn.XLOOKUP(A114,'Base-datos'!$B$532:$B$536,'Base-datos'!$C$532:$C$536)","v":{"$error":"#N/A"}},{"$f":"_xlfn.XLOOKUP(A114,'Base-datos'!$B$532:$B$536,'Base-datos'!$D$532:$D$536)","v":{"$error":"#N/A"}},null,null,{"$f":"IF(OR($L$98=\"La actividad no cumple con el total de los criterios de No Daño Significativo\",$M$98=\"El sector no cumple con las salvaguardas mínimas\"),\"\",IF(AND('Base-datos'!$B$735=\"Sí\",'Base-datos'!$B$736=\"\",'Base-datos'!$B$737=\"\"),IF('Instituciones-crédito'!J114=\"La actividad sí contribuye sustancialmente a la sostenibilidad\",SUM('Instituciones-crédito'!B114:H114),0),IF(AND('Base-datos'!$B$735=\"Sí\",'Base-datos'!$B$736=\"Sí\",'Base-datos'!$B$737=\"\"),IF(AND('Instituciones-crédito'!J114=\"La actividad sí contribuye sustancialmente a la sostenibilidad\",'Instituciones-crédito'!K114=\"La actividad sí contribuye sustancialmente a la sostenibilidad\"),SUM('Instituciones-crédito'!B114:H114),0),IF(AND('Base-datos'!$B$735=\"Sí\",'Base-datos'!$B$736=\"Sí\",'Base-datos'!$B$737=\"Sí\"),IF(AND('Instituciones-crédito'!J114=\"La actividad sí contribuye sustancialmente a la sostenibilidad\",'Instituciones-crédito'!K114=\"La actividad sí contribuye sustancialmente a la sostenibilidad\",'Instituciones-crédito'!I114=\"La actividad sí contribuye sustancialmente a la sostenibilidad\"),SUM('Instituciones-crédito'!B114:H114),0),IF(AND('Base-datos'!$B$735=\"\",'Base-datos'!$B$736=\"Sí\",'Base-datos'!$B$737=\"\"),IF('Instituciones-crédito'!K114=\"La actividad sí contribuye sustancialmente a la sostenibilidad\",SUM('Instituciones-crédito'!B114:H114),0),IF(AND('Base-datos'!$B$735=\"\",'Base-datos'!$B$736=\"\",'Base-datos'!$B$737=\"Sí\"),IF('Instituciones-crédito'!I114=\"La actividad sí contribuye sustancialmente a la sostenibilidad\",SUM('Instituciones-crédito'!B114:H114),0),IF(AND('Base-datos'!$B$735=\"\",'Base-datos'!$B$736=\"Sí\",'Base-datos'!$B$737=\"Sí\"),IF(AND('Instituciones-crédito'!K114=\"La actividad sí contribuye sustancialmente a la sostenibilidad\",'Instituciones-crédito'!I114=\"La actividad sí contribuye sustancialmente a la sostenibilidad\"),SUM('Instituciones-crédito'!B114:H114),0),IF(AND('Base-datos'!$B$735=\"Sí\",'Base-datos'!$B$736=\"\",'Base-datos'!$B$737=\"Sí\"),IF(AND('Instituciones-crédito'!J114=\"La actividad sí contribuye sustancialmente a la sostenibilidad\",'Instituciones-crédito'!I114=\"La actividad sí contribuye sustancialmente a la sostenibilidad\"),SUM('Instituciones-crédito'!B114:H114),0),\"Por definir\"))))))))","v":"Por definir"}]
[{"$f":"Agua!$C44","v":"Seleccione"},{"$f":"IF(Agua!$E44='Instituciones-crédito'!B$12,Agua!$B44,\"\")","v":""},{"$f":"IF(Agua!$E44='Instituciones-crédito'!C$12,Agua!$B44,\"\")","v":""},{"$f":"IF(Agua!$E44='Instituciones-crédito'!D$12,Agua!$B44,\"\")","v":""},{"$f":"IF(Agua!$E44='Instituciones-crédito'!E$12,Agua!$B44,\"\")","v":""},{"$f":"IF(Agua!$E44='Instituciones-crédito'!F$12,Agua!$B44,\"\")","v":""},{"$f":"IF(Agua!$E44='Instituciones-crédito'!G$12,Agua!$B44,\"\")","v":""},{"$f":"IF(Agua!$E44='Instituciones-crédito'!H$12,Agua!$B44,\"\")","v":""},{"$f":"_xlfn.XLOOKUP(A115,'Base-datos'!$B$532:$B$536,'Base-datos'!$F$532:$F$536)","v":{"$error":"#N/A"}},{"$f":"_xlfn.XLOOKUP(A115,'Base-datos'!$B$532:$B$536,'Base-datos'!$C$532:$C$536)","v":{"$error":"#N/A"}},{"$f":"_xlfn.XLOOKUP(A115,'Base-datos'!$B$532:$B$536,'Base-datos'!$D$532:$D$536)","v":{"$error":"#N/A"}},null,null,{"$f":"IF(OR($L$98=\"La actividad no cumple con el total de los criterios de No Daño Significativo\",$M$98=\"El sector no cumple con las salvaguardas mínimas\"),\"\",IF(AND('Base-datos'!$B$735=\"Sí\",'Base-datos'!$B$736=\"\",'Base-datos'!$B$737=\"\"),IF('Instituciones-crédito'!J115=\"La actividad sí contribuye sustancialmente a la sostenibilidad\",SUM('Instituciones-crédito'!B115:H115),0),IF(AND('Base-datos'!$B$735=\"Sí\",'Base-datos'!$B$736=\"Sí\",'Base-datos'!$B$737=\"\"),IF(AND('Instituciones-crédito'!J115=\"La actividad sí contribuye sustancialmente a la sostenibilidad\",'Instituciones-crédito'!K115=\"La actividad sí contribuye sustancialmente a la sostenibilidad\"),SUM('Instituciones-crédito'!B115:H115),0),IF(AND('Base-datos'!$B$735=\"Sí\",'Base-datos'!$B$736=\"Sí\",'Base-datos'!$B$737=\"Sí\"),IF(AND('Instituciones-crédito'!J115=\"La actividad sí contribuye sustancialmente a la sostenibilidad\",'Instituciones-crédito'!K115=\"La actividad sí contribuye sustancialmente a la sostenibilidad\",'Instituciones-crédito'!I115=\"La actividad sí contribuye sustancialmente a la sostenibilidad\"),SUM('Instituciones-crédito'!B115:H115),0),IF(AND('Base-datos'!$B$735=\"\",'Base-datos'!$B$736=\"Sí\",'Base-datos'!$B$737=\"\"),IF('Instituciones-crédito'!K115=\"La actividad sí contribuye sustancialmente a la sostenibilidad\",SUM('Instituciones-crédito'!B115:H115),0),IF(AND('Base-datos'!$B$735=\"\",'Base-datos'!$B$736=\"\",'Base-datos'!$B$737=\"Sí\"),IF('Instituciones-crédito'!I115=\"La actividad sí contribuye sustancialmente a la sostenibilidad\",SUM('Instituciones-crédito'!B115:H115),0),IF(AND('Base-datos'!$B$735=\"\",'Base-datos'!$B$736=\"Sí\",'Base-datos'!$B$737=\"Sí\"),IF(AND('Instituciones-crédito'!K115=\"La actividad sí contribuye sustancialmente a la sostenibilidad\",'Instituciones-crédito'!I115=\"La actividad sí contribuye sustancialmente a la sostenibilidad\"),SUM('Instituciones-crédito'!B115:H115),0),IF(AND('Base-datos'!$B$735=\"Sí\",'Base-datos'!$B$736=\"\",'Base-datos'!$B$737=\"Sí\"),IF(AND('Instituciones-crédito'!J115=\"La actividad sí contribuye sustancialmente a la sostenibilidad\",'Instituciones-crédito'!I115=\"La actividad sí contribuye sustancialmente a la sostenibilidad\"),SUM('Instituciones-crédito'!B115:H115),0),\"Por definir\"))))))))","v":"Por definir"}]
[{"$f":"Agua!$C46","v":"Seleccione"},{"$f":"IF(Agua!$E46='Instituciones-crédito'!B$12,Agua!$B46,\"\")","v":""},{"$f":"IF(Agua!$E46='Instituciones-crédito'!C$12,Agua!$B46,\"\")","v":""},{"$f":"IF(Agua!$E46='Instituciones-crédito'!D$12,Agua!$B46,\"\")","v":""},{"$f":"IF(Agua!$E46='Instituciones-crédito'!E$12,Agua!$B46,\"\")","v":""},{"$f":"IF(Agua!$E46='Instituciones-crédito'!F$12,Agua!$B46,\"\")","v":""},{"$f":"IF(Agua!$E46='Instituciones-crédito'!G$12,Agua!$B46,\"\")","v":""},{"$f":"IF(Agua!$E46='Instituciones-crédito'!H$12,Agua!$B46,\"\")","v":""},{"$f":"_xlfn.XLOOKUP(A116,'Base-datos'!$B$532:$B$536,'Base-datos'!$F$532:$F$536)","v":{"$error":"#N/A"}},{"$f":"_xlfn.XLOOKUP(A116,'Base-datos'!$B$532:$B$536,'Base-datos'!$C$532:$C$536)","v":{"$error":"#N/A"}},{"$f":"_xlfn.XLOOKUP(A116,'Base-datos'!$B$532:$B$536,'Base-datos'!$D$532:$D$536)","v":{"$error":"#N/A"}},null,null,{"$f":"IF(OR($L$98=\"La actividad no cumple con el total de los criterios de No Daño Significativo\",$M$98=\"El sector no cumple con las salvaguardas mínimas\"),\"\",IF(AND('Base-datos'!$B$735=\"Sí\",'Base-datos'!$B$736=\"\",'Base-datos'!$B$737=\"\"),IF('Instituciones-crédito'!J116=\"La actividad sí contribuye sustancialmente a la sostenibilidad\",SUM('Instituciones-crédito'!B116:H116),0),IF(AND('Base-datos'!$B$735=\"Sí\",'Base-datos'!$B$736=\"Sí\",'Base-datos'!$B$737=\"\"),IF(AND('Instituciones-crédito'!J116=\"La actividad sí contribuye sustancialmente a la sostenibilidad\",'Instituciones-crédito'!K116=\"La actividad sí contribuye sustancialmente a la sostenibilidad\"),SUM('Instituciones-crédito'!B116:H116),0),IF(AND('Base-datos'!$B$735=\"Sí\",'Base-datos'!$B$736=\"Sí\",'Base-datos'!$B$737=\"Sí\"),IF(AND('Instituciones-crédito'!J116=\"La actividad sí contribuye sustancialmente a la sostenibilidad\",'Instituciones-crédito'!K116=\"La actividad sí contribuye sustancialmente a la sostenibilidad\",'Instituciones-crédito'!I116=\"La actividad sí contribuye sustancialmente a la sostenibilidad\"),SUM('Instituciones-crédito'!B116:H116),0),IF(AND('Base-datos'!$B$735=\"\",'Base-datos'!$B$736=\"Sí\",'Base-datos'!$B$737=\"\"),IF('Instituciones-crédito'!K116=\"La actividad sí contribuye sustancialmente a la sostenibilidad\",SUM('Instituciones-crédito'!B116:H116),0),IF(AND('Base-datos'!$B$735=\"\",'Base-datos'!$B$736=\"\",'Base-datos'!$B$737=\"Sí\"),IF('Instituciones-crédito'!I116=\"La actividad sí contribuye sustancialmente a la sostenibilidad\",SUM('Instituciones-crédito'!B116:H116),0),IF(AND('Base-datos'!$B$735=\"\",'Base-datos'!$B$736=\"Sí\",'Base-datos'!$B$737=\"Sí\"),IF(AND('Instituciones-crédito'!K116=\"La actividad sí contribuye sustancialmente a la sostenibilidad\",'Instituciones-crédito'!I116=\"La actividad sí contribuye sustancialmente a la sostenibilidad\"),SUM('Instituciones-crédito'!B116:H116),0),IF(AND('Base-datos'!$B$735=\"Sí\",'Base-datos'!$B$736=\"\",'Base-datos'!$B$737=\"Sí\"),IF(AND('Instituciones-crédito'!J116=\"La actividad sí contribuye sustancialmente a la sostenibilidad\",'Instituciones-crédito'!I116=\"La actividad sí contribuye sustancialmente a la sostenibilidad\"),SUM('Instituciones-crédito'!B116:H116),0),\"Por definir\"))))))))","v":"Por definir"}]
[{"$f":"Agua!$C48","v":"Seleccione"},{"$f":"IF(Agua!$E48='Instituciones-crédito'!B$12,Agua!$B48,\"\")","v":""},{"$f":"IF(Agua!$E48='Instituciones-crédito'!C$12,Agua!$B48,\"\")","v":""},{"$f":"IF(Agua!$E48='Instituciones-crédito'!D$12,Agua!$B48,\"\")","v":""},{"$f":"IF(Agua!$E48='Instituciones-crédito'!E$12,Agua!$B48,\"\")","v":""},{"$f":"IF(Agua!$E48='Instituciones-crédito'!F$12,Agua!$B48,\"\")","v":""},{"$f":"IF(Agua!$E48='Instituciones-crédito'!G$12,Agua!$B48,\"\")","v":""},{"$f":"IF(Agua!$E48='Instituciones-crédito'!H$12,Agua!$B48,\"\")","v":""},{"$f":"_xlfn.XLOOKUP(A117,'Base-datos'!$B$532:$B$536,'Base-datos'!$F$532:$F$536)","v":{"$error":"#N/A"}},{"$f":"_xlfn.XLOOKUP(A117,'Base-datos'!$B$532:$B$536,'Base-datos'!$C$532:$C$536)","v":{"$error":"#N/A"}},{"$f":"_xlfn.XLOOKUP(A117,'Base-datos'!$B$532:$B$536,'Base-datos'!$D$532:$D$536)","v":{"$error":"#N/A"}},null,null,{"$f":"IF(OR($L$98=\"La actividad no cumple con el total de los criterios de No Daño Significativo\",$M$98=\"El sector no cumple con las salvaguardas mínimas\"),\"\",IF(AND('Base-datos'!$B$735=\"Sí\",'Base-datos'!$B$736=\"\",'Base-datos'!$B$737=\"\"),IF('Instituciones-crédito'!J117=\"La actividad sí contribuye sustancialmente a la sostenibilidad\",SUM('Instituciones-crédito'!B117:H117),0),IF(AND('Base-datos'!$B$735=\"Sí\",'Base-datos'!$B$736=\"Sí\",'Base-datos'!$B$737=\"\"),IF(AND('Instituciones-crédito'!J117=\"La actividad sí contribuye sustancialmente a la sostenibilidad\",'Instituciones-crédito'!K117=\"La actividad sí contribuye sustancialmente a la sostenibilidad\"),SUM('Instituciones-crédito'!B117:H117),0),IF(AND('Base-datos'!$B$735=\"Sí\",'Base-datos'!$B$736=\"Sí\",'Base-datos'!$B$737=\"Sí\"),IF(AND('Instituciones-crédito'!J117=\"La actividad sí contribuye sustancialmente a la sostenibilidad\",'Instituciones-crédito'!K117=\"La actividad sí contribuye sustancialmente a la sostenibilidad\",'Instituciones-crédito'!I117=\"La actividad sí contribuye sustancialmente a la sostenibilidad\"),SUM('Instituciones-crédito'!B117:H117),0),IF(AND('Base-datos'!$B$735=\"\",'Base-datos'!$B$736=\"Sí\",'Base-datos'!$B$737=\"\"),IF('Instituciones-crédito'!K117=\"La actividad sí contribuye sustancialmente a la sostenibilidad\",SUM('Instituciones-crédito'!B117:H117),0),IF(AND('Base-datos'!$B$735=\"\",'Base-datos'!$B$736=\"\",'Base-datos'!$B$737=\"Sí\"),IF('Instituciones-crédito'!I117=\"La actividad sí contribuye sustancialmente a la sostenibilidad\",SUM('Instituciones-crédito'!B117:H117),0),IF(AND('Base-datos'!$B$735=\"\",'Base-datos'!$B$736=\"Sí\",'Base-datos'!$B$737=\"Sí\"),IF(AND('Instituciones-crédito'!K117=\"La actividad sí contribuye sustancialmente a la sostenibilidad\",'Instituciones-crédito'!I117=\"La actividad sí contribuye sustancialmente a la sostenibilidad\"),SUM('Instituciones-crédito'!B117:H117),0),IF(AND('Base-datos'!$B$735=\"Sí\",'Base-datos'!$B$736=\"\",'Base-datos'!$B$737=\"Sí\"),IF(AND('Instituciones-crédito'!J117=\"La actividad sí contribuye sustancialmente a la sostenibilidad\",'Instituciones-crédito'!I117=\"La actividad sí contribuye sustancialmente a la sostenibilidad\"),SUM('Instituciones-crédito'!B117:H117),0),\"Por definir\"))))))))","v":"Por definir"}]
["Construcción",null,null,null,null,null,null,null,null,null,null,null,null,{"$f":"SUM(IF(FREQUENCY(MATCH(A119:A138, A119:A138, 0), MATCH(A119:A138, A119:A138, 0)) > 0, IF(NOT(ISERROR(N119:N138)), N119:N138, 0)))","v":0}]
[{"$f":"Construcción!$C10","v":"Seleccione"},{"$f":"IF(Construcción!$E10='Instituciones-crédito'!B$12,Construcción!$B10,\"\")","v":""},{"$f":"IF(Construcción!$E10='Instituciones-crédito'!C$12,Construcción!$B10,\"\")","v":""},{"$f":"IF(Construcción!$E10='Instituciones-crédito'!D$12,Construcción!$B10,\"\")","v":""},{"$f":"IF(Construcción!$E10='Instituciones-crédito'!E$12,Construcción!$B10,\"\")","v":""},{"$f":"IF(Construcción!$E10='Instituciones-crédito'!F$12,Construcción!$B10,\"\")","v":""},{"$f":"IF(Construcción!$E10='Instituciones-crédito'!G$12,Construcción!$B10,\"\")","v":""},{"$f":"IF(Construcción!$E10='Instituciones-crédito'!H$12,Construcción!$B10,\"\")","v":""},{"$f":"_xlfn.XLOOKUP(A119,'Base-datos'!$B$537:$B$546,'Base-datos'!$F$537:$F$546)","v":{"$error":"#N/A"}},{"$f":"_xlfn.XLOOKUP(A119,'Base-datos'!$B$537:$B$546,'Base-datos'!$C$537:$C$546)","v":{"$error":"#N/A"}},{"$f":"_xlfn.XLOOKUP(A119,'Base-datos'!$B$537:$B$546,'Base-datos'!$D$537:$D$546)","v":{"$error":"#N/A"}},{"$f":"IF(COUNTIF('Construcción-NDS'!G8:G138,\"No\")>0,\"La actividad no cumple con el total de los criterios de NDS\",\"La actividad cumple con los criterios de No Daño Significativo\")","v":"La actividad cumple con los criterios de No Daño Significativo"},{"$f":"IF(OR('Salvaguardas mínimas'!$G$10=\"Seleccione\",'Salvaguardas mínimas'!$G$13=\"Seleccione\",'Salvaguardas mínimas'!$G$16=\"Seleccione\",'Salvaguardas mínimas'!$G$7=\"Seleccione\"),\"No se han respondido todas las preguntas\",IF(OR('Salvaguardas mínimas'!$G$10=\"No\",'Salvaguardas mínimas'!$G$13=\"No\",'Salvaguardas mínimas'!$G$16=\"No\",'Salvaguardas mínimas'!$G$7=\"No\"),\"El sector no cumple con las salvaguardas mínimas\",\"La actividad sí cumple con las salvaguardas mínimas\"))","v":"No se han respondido todas las preguntas"},{"$f":"IF(OR($L$119=\"La actividad no cumple con el total de los criterios de No Daño Significativo\",$M$119=\"El sector no cumple con las salvaguardas mínimas\"),\"\",IF(AND('Base-datos'!$B$740=\"Sí\",'Base-datos'!$B$741=\"\",'Base-datos'!$B$742=\"\"),IF('Instituciones-crédito'!J119=\"La actividad sí contribuye sustancialmente a la sostenibilidad\",SUM('Instituciones-crédito'!B119:H119),0),IF(AND('Base-datos'!$B$740=\"Sí\",'Base-datos'!$B$741=\"Sí\",'Base-datos'!$B$742=\"\"),IF(AND('Instituciones-crédito'!J119=\"La actividad sí contribuye sustancialmente a la sostenibilidad\",'Instituciones-crédito'!K119=\"La actividad sí contribuye sustancialmente a la sostenibilidad\"),SUM('Instituciones-crédito'!B119:H119),0),IF(AND('Base-datos'!$B$740=\"Sí\",'Base-datos'!$B$741=\"Sí\",'Base-datos'!$B$742=\"Sí\"),IF(AND('Instituciones-crédito'!J119=\"La actividad sí contribuye sustancialmente a la sostenibilidad\",'Instituciones-crédito'!K119=\"La actividad sí contribuye sustancialmente a la sostenibilidad\",'Instituciones-crédito'!I119=\"La actividad sí contribuye sustancialmente a la sostenibilidad\"),SUM('Instituciones-crédito'!B119:H119),0),IF(AND('Base-datos'!$B$740=\"\",'Base-datos'!$B$741=\"Sí\",'Base-datos'!$B$742=\"\"),IF('Instituciones-crédito'!K119=\"La actividad sí contribuye sustancialmente a la sostenibilidad\",SUM('Instituciones-crédito'!B119:H119),0),IF(AND('Base-datos'!$B$740=\"\",'Base-datos'!$B$741=\"\",'Base-datos'!$B$742=\"Sí\"),IF('Instituciones-crédito'!I119=\"La actividad sí contribuye sustancialmente a la sostenibilidad\",SUM('Instituciones-crédito'!B119:H119),0),IF(AND('Base-datos'!$B$740=\"\",'Base-datos'!$B$741=\"Sí\",'Base-datos'!$B$742=\"Sí\"),IF(AND('Instituciones-crédito'!K119=\"La actividad sí contribuye sustancialmente a la sostenibilidad\",'Instituciones-crédito'!I119=\"La actividad sí contribuye sustancialmente a la sostenibilidad\"),SUM('Instituciones-crédito'!B119:H119),0),IF(AND('Base-datos'!$B$740=\"Sí\",'Base-datos'!$B$741=\"\",'Base-datos'!$B$742=\"Sí\"),IF(AND('Instituciones-crédito'!J119=\"La actividad sí contribuye sustancialmente a la sostenibilidad\",'Instituciones-crédito'!I119=\"La actividad sí contribuye sustancialmente a la sostenibilidad\"),SUM('Instituciones-crédito'!B119:H119),0),\"Por definir\"))))))))","v":"Por definir"}]
[{"$f":"Construcción!$C12","v":"Seleccione"},{"$f":"IF(Construcción!$E12='Instituciones-crédito'!B$12,Construcción!$B12,\"\")","v":""},{"$f":"IF(Construcción!$E12='Instituciones-crédito'!C$12,Construcción!$B12,\"\")","v":""},{"$f":"IF(Construcción!$E12='Instituciones-crédito'!D$12,Construcción!$B12,\"\")","v":""},{"$f":"IF(Construcción!$E12='Instituciones-crédito'!E$12,Construcción!$B12,\"\")","v":""},{"$f":"IF(Construcción!$E12='Instituciones-crédito'!F$12,Construcción!$B12,\"\")","v":""},{"$f":"IF(Construcción!$E12='Instituciones-crédito'!G$12,Construcción!$B12,\"\")","v":""},{"$f":"IF(Construcción!$E12='Instituciones-crédito'!H$12,Construcción!$B12,\"\")","v":""},{"$f":"_xlfn.XLOOKUP(A120,'Base-datos'!$B$537:$B$546,'Base-datos'!$F$537:$F$546)","v":{"$error":"#N/A"}},{"$f":"_xlfn.XLOOKUP(A120,'Base-datos'!$B$537:$B$546,'Base-datos'!$C$537:$C$546)","v":{"$error":"#N/A"}},{"$f":"_xlfn.XLOOKUP(A120,'Base-datos'!$B$537:$B$546,'Base-datos'!$D$537:$D$546)","v":{"$error":"#N/A"}},null,null,{"$f":"IF(OR($L$119=\"La actividad no cumple con el total de los criterios de No Daño Significativo\",$M$119=\"El sector no cumple con las salvaguardas mínimas\"),\"\",IF(AND('Base-datos'!$B$740=\"Sí\",'Base-datos'!$B$741=\"\",'Base-datos'!$B$742=\"\"),IF('Instituciones-crédito'!J120=\"La actividad sí contribuye sustancialmente a la sostenibilidad\",SUM('Instituciones-crédito'!B120:H120),0),IF(AND('Base-datos'!$B$740=\"Sí\",'Base-datos'!$B$741=\"Sí\",'Base-datos'!$B$742=\"\"),IF(AND('Instituciones-crédito'!J120=\"La actividad sí contribuye sustancialmente a la sostenibilidad\",'Instituciones-crédito'!K120=\"La actividad sí contribuye sustancialmente a la sostenibilidad\"),SUM('Instituciones-crédito'!B120:H120),0),IF(AND('Base-datos'!$B$740=\"Sí\",'Base-datos'!$B$741=\"Sí\",'Base-datos'!$B$742=\"Sí\"),IF(AND('Instituciones-crédito'!J120=\"La actividad sí contribuye sustancialmente a la sostenibilidad\",'Instituciones-crédito'!K120=\"La actividad sí contribuye sustancialmente a la sostenibilidad\",'Instituciones-crédito'!I120=\"La actividad sí contribuye sustancialmente a la sostenibilidad\"),SUM('Instituciones-crédito'!B120:H120),0),IF(AND('Base-datos'!$B$740=\"\",'Base-datos'!$B$741=\"Sí\",'Base-datos'!$B$742=\"\"),IF('Instituciones-crédito'!K120=\"La actividad sí contribuye sustancialmente a la sostenibilidad\",SUM('Instituciones-crédito'!B120:H120),0),IF(AND('Base-datos'!$B$740=\"\",'Base-datos'!$B$741=\"\",'Base-datos'!$B$742=\"Sí\"),IF('Instituciones-crédito'!I120=\"La actividad sí contribuye sustancialmente a la sostenibilidad\",SUM('Instituciones-crédito'!B120:H120),0),IF(AND('Base-datos'!$B$740=\"\",'Base-datos'!$B$741=\"Sí\",'Base-datos'!$B$742=\"Sí\"),IF(AND('Instituciones-crédito'!K120=\"La actividad sí contribuye sustancialmente a la sostenibilidad\",'Instituciones-crédito'!I120=\"La actividad sí contribuye sustancialmente a la sostenibilidad\"),SUM('Instituciones-crédito'!B120:H120),0),IF(AND('Base-datos'!$B$740=\"Sí\",'Base-datos'!$B$741=\"\",'Base-datos'!$B$742=\"Sí\"),IF(AND('Instituciones-crédito'!J120=\"La actividad sí contribuye sustancialmente a la sostenibilidad\",'Instituciones-crédito'!I120=\"La actividad sí contribuye sustancialmente a la sostenibilidad\"),SUM('Instituciones-crédito'!B120:H120),0),\"Por definir\"))))))))","v":"Por definir"}]
[{"$f":"Construcción!$C14","v":"Seleccione"},{"$f":"IF(Construcción!$E14='Instituciones-crédito'!B$12,Construcción!$B14,\"\")","v":""},{"$f":"IF(Construcción!$E14='Instituciones-crédito'!C$12,Construcción!$B14,\"\")","v":""},{"$f":"IF(Construcción!$E14='Instituciones-crédito'!D$12,Construcción!$B14,\"\")","v":""},{"$f":"IF(Construcción!$E14='Instituciones-crédito'!E$12,Construcción!$B14,\"\")","v":""},{"$f":"IF(Construcción!$E14='Instituciones-crédito'!F$12,Construcción!$B14,\"\")","v":""},{"$f":"IF(Construcción!$E14='Instituciones-crédito'!G$12,Construcción!$B14,\"\")","v":""},{"$f":"IF(Construcción!$E14='Instituciones-crédito'!H$12,Construcción!$B14,\"\")","v":""},{"$f":"_xlfn.XLOOKUP(A121,'Base-datos'!$B$537:$B$546,'Base-datos'!$F$537:$F$546)","v":{"$error":"#N/A"}},{"$f":"_xlfn.XLOOKUP(A121,'Base-datos'!$B$537:$B$546,'Base-datos'!$C$537:$C$546)","v":{"$error":"#N/A"}},{"$f":"_xlfn.XLOOKUP(A121,'Base-datos'!$B$537:$B$546,'Base-datos'!$D$537:$D$546)","v":{"$error":"#N/A"}},null,null,{"$f":"IF(OR($L$119=\"La actividad no cumple con el total de los criterios de No Daño Significativo\",$M$119=\"El sector no cumple con las salvaguardas mínimas\"),\"\",IF(AND('Base-datos'!$B$740=\"Sí\",'Base-datos'!$B$741=\"\",'Base-datos'!$B$742=\"\"),IF('Instituciones-crédito'!J121=\"La actividad sí contribuye sustancialmente a la sostenibilidad\",SUM('Instituciones-crédito'!B121:H121),0),IF(AND('Base-datos'!$B$740=\"Sí\",'Base-datos'!$B$741=\"Sí\",'Base-datos'!$B$742=\"\"),IF(AND('Instituciones-crédito'!J121=\"La actividad sí contribuye sustancialmente a la sostenibilidad\",'Instituciones-crédito'!K121=\"La actividad sí contribuye sustancialmente a la sostenibilidad\"),SUM('Instituciones-crédito'!B121:H121),0),IF(AND('Base-datos'!$B$740=\"Sí\",'Base-datos'!$B$741=\"Sí\",'Base-datos'!$B$742=\"Sí\"),IF(AND('Instituciones-crédito'!J121=\"La actividad sí contribuye sustancialmente a la sostenibilidad\",'Instituciones-crédito'!K121=\"La actividad sí contribuye sustancialmente a la sostenibilidad\",'Instituciones-crédito'!I121=\"La actividad sí contribuye sustancialmente a la sostenibilidad\"),SUM('Instituciones-crédito'!B121:H121),0),IF(AND('Base-datos'!$B$740=\"\",'Base-datos'!$B$741=\"Sí\",'Base-datos'!$B$742=\"\"),IF('Instituciones-crédito'!K121=\"La actividad sí contribuye sustancialmente a la sostenibilidad\",SUM('Instituciones-crédito'!B121:H121),0),IF(AND('Base-datos'!$B$740=\"\",'Base-datos'!$B$741=\"\",'Base-datos'!$B$742=\"Sí\"),IF('Instituciones-crédito'!I121=\"La actividad sí contribuye sustancialmente a la sostenibilidad\",SUM('Instituciones-crédito'!B121:H121),0),IF(AND('Base-datos'!$B$740=\"\",'Base-datos'!$B$741=\"Sí\",'Base-datos'!$B$742=\"Sí\"),IF(AND('Instituciones-crédito'!K121=\"La actividad sí contribuye sustancialmente a la sostenibilidad\",'Instituciones-crédito'!I121=\"La actividad sí contribuye sustancialmente a la sostenibilidad\"),SUM('Instituciones-crédito'!B121:H121),0),IF(AND('Base-datos'!$B$740=\"Sí\",'Base-datos'!$B$741=\"\",'Base-datos'!$B$742=\"Sí\"),IF(AND('Instituciones-crédito'!J121=\"La actividad sí contribuye sustancialmente a la sostenibilidad\",'Instituciones-crédito'!I121=\"La actividad sí contribuye sustancialmente a la sostenibilidad\"),SUM('Instituciones-crédito'!B121:H121),0),\"Por definir\"))))))))","v":"Por definir"}]
[{"$f":"Construcción!$C16","v":"Seleccione"},{"$f":"IF(Construcción!$E16='Instituciones-crédito'!B$12,Construcción!$B16,\"\")","v":""},{"$f":"IF(Construcción!$E16='Instituciones-crédito'!C$12,Construcción!$B16,\"\")","v":""},{"$f":"IF(Construcción!$E16='Instituciones-crédito'!D$12,Construcción!$B16,\"\")","v":""},{"$f":"IF(Construcción!$E16='Instituciones-crédito'!E$12,Construcción!$B16,\"\")","v":""},{"$f":"IF(Construcción!$E16='Instituciones-crédito'!F$12,Construcción!$B16,\"\")","v":""},{"$f":"IF(Construcción!$E16='Instituciones-crédito'!G$12,Construcción!$B16,\"\")","v":""},{"$f":"IF(Construcción!$E16='Instituciones-crédito'!H$12,Construcción!$B16,\"\")","v":""},{"$f":"_xlfn.XLOOKUP(A122,'Base-datos'!$B$537:$B$546,'Base-datos'!$F$537:$F$546)","v":{"$error":"#N/A"}},{"$f":"_xlfn.XLOOKUP(A122,'Base-datos'!$B$537:$B$546,'Base-datos'!$C$537:$C$546)","v":{"$error":"#N/A"}},{"$f":"_xlfn.XLOOKUP(A122,'Base-datos'!$B$537:$B$546,'Base-datos'!$D$537:$D$546)","v":{"$error":"#N/A"}},null,null,{"$f":"IF(OR($L$119=\"La actividad no cumple con el total de los criterios de No Daño Significativo\",$M$119=\"El sector no cumple con las salvaguardas mínimas\"),\"\",IF(AND('Base-datos'!$B$740=\"Sí\",'Base-datos'!$B$741=\"\",'Base-datos'!$B$742=\"\"),IF('Instituciones-crédito'!J122=\"La actividad sí contribuye sustancialmente a la sostenibilidad\",SUM('Instituciones-crédito'!B122:H122),0),IF(AND('Base-datos'!$B$740=\"Sí\",'Base-datos'!$B$741=\"Sí\",'Base-datos'!$B$742=\"\"),IF(AND('Instituciones-crédito'!J122=\"La actividad sí contribuye sustancialmente a la sostenibilidad\",'Instituciones-crédito'!K122=\"La actividad sí contribuye sustancialmente a la sostenibilidad\"),SUM('Instituciones-crédito'!B122:H122),0),IF(AND('Base-datos'!$B$740=\"Sí\",'Base-datos'!$B$741=\"Sí\",'Base-datos'!$B$742=\"Sí\"),IF(AND('Instituciones-crédito'!J122=\"La actividad sí contribuye sustancialmente a la sostenibilidad\",'Instituciones-crédito'!K122=\"La actividad sí contribuye sustancialmente a la sostenibilidad\",'Instituciones-crédito'!I122=\"La actividad sí contribuye sustancialmente a la sostenibilidad\"),SUM('Instituciones-crédito'!B122:H122),0),IF(AND('Base-datos'!$B$740=\"\",'Base-datos'!$B$741=\"Sí\",'Base-datos'!$B$742=\"\"),IF('Instituciones-crédito'!K122=\"La actividad sí contribuye sustancialmente a la sostenibilidad\",SUM('Instituciones-crédito'!B122:H122),0),IF(AND('Base-datos'!$B$740=\"\",'Base-datos'!$B$741=\"\",'Base-datos'!$B$742=\"Sí\"),IF('Instituciones-crédito'!I122=\"La actividad sí contribuye sustancialmente a la sostenibilidad\",SUM('Instituciones-crédito'!B122:H122),0),IF(AND('Base-datos'!$B$740=\"\",'Base-datos'!$B$741=\"Sí\",'Base-datos'!$B$742=\"Sí\"),IF(AND('Instituciones-crédito'!K122=\"La actividad sí contribuye sustancialmente a la sostenibilidad\",'Instituciones-crédito'!I122=\"La actividad sí contribuye sustancialmente a la sostenibilidad\"),SUM('Instituciones-crédito'!B122:H122),0),IF(AND('Base-datos'!$B$740=\"Sí\",'Base-datos'!$B$741=\"\",'Base-datos'!$B$742=\"Sí\"),IF(AND('Instituciones-crédito'!J122=\"La actividad sí contribuye sustancialmente a la sostenibilidad\",'Instituciones-crédito'!I122=\"La actividad sí contribuye sustancialmente a la sostenibilidad\"),SUM('Instituciones-crédito'!B122:H122),0),\"Por definir\"))))))))","v":"Por definir"}]
[{"$f":"Construcción!$C18","v":"Seleccione"},{"$f":"IF(Construcción!$E18='Instituciones-crédito'!B$12,Construcción!$B18,\"\")","v":""},{"$f":"IF(Construcción!$E18='Instituciones-crédito'!C$12,Construcción!$B18,\"\")","v":""},{"$f":"IF(Construcción!$E18='Instituciones-crédito'!D$12,Construcción!$B18,\"\")","v":""},{"$f":"IF(Construcción!$E18='Instituciones-crédito'!E$12,Construcción!$B18,\"\")","v":""},{"$f":"IF(Construcción!$E18='Instituciones-crédito'!F$12,Construcción!$B18,\"\")","v":""},{"$f":"IF(Construcción!$E18='Instituciones-crédito'!G$12,Construcción!$B18,\"\")","v":""},{"$f":"IF(Construcción!$E18='Instituciones-crédito'!H$12,Construcción!$B18,\"\")","v":""},{"$f":"_xlfn.XLOOKUP(A123,'Base-datos'!$B$537:$B$546,'Base-datos'!$F$537:$F$546)","v":{"$error":"#N/A"}},{"$f":"_xlfn.XLOOKUP(A123,'Base-datos'!$B$537:$B$546,'Base-datos'!$C$537:$C$546)","v":{"$error":"#N/A"}},{"$f":"_xlfn.XLOOKUP(A123,'Base-datos'!$B$537:$B$546,'Base-datos'!$D$537:$D$546)","v":{"$error":"#N/A"}},null,null,{"$f":"IF(OR($L$119=\"La actividad no cumple con el total de los criterios de No Daño Significativo\",$M$119=\"El sector no cumple con las salvaguardas mínimas\"),\"\",IF(AND('Base-datos'!$B$740=\"Sí\",'Base-datos'!$B$741=\"\",'Base-datos'!$B$742=\"\"),IF('Instituciones-crédito'!J123=\"La actividad sí contribuye sustancialmente a la sostenibilidad\",SUM('Instituciones-crédito'!B123:H123),0),IF(AND('Base-datos'!$B$740=\"Sí\",'Base-datos'!$B$741=\"Sí\",'Base-datos'!$B$742=\"\"),IF(AND('Instituciones-crédito'!J123=\"La actividad sí contribuye sustancialmente a la sostenibilidad\",'Instituciones-crédito'!K123=\"La actividad sí contribuye sustancialmente a la sostenibilidad\"),SUM('Instituciones-crédito'!B123:H123),0),IF(AND('Base-datos'!$B$740=\"Sí\",'Base-datos'!$B$741=\"Sí\",'Base-datos'!$B$742=\"Sí\"),IF(AND('Instituciones-crédito'!J123=\"La actividad sí contribuye sustancialmente a la sostenibilidad\",'Instituciones-crédito'!K123=\"La actividad sí contribuye sustancialmente a la sostenibilidad\",'Instituciones-crédito'!I123=\"La actividad sí contribuye sustancialmente a la sostenibilidad\"),SUM('Instituciones-crédito'!B123:H123),0),IF(AND('Base-datos'!$B$740=\"\",'Base-datos'!$B$741=\"Sí\",'Base-datos'!$B$742=\"\"),IF('Instituciones-crédito'!K123=\"La actividad sí contribuye sustancialmente a la sostenibilidad\",SUM('Instituciones-crédito'!B123:H123),0),IF(AND('Base-datos'!$B$740=\"\",'Base-datos'!$B$741=\"\",'Base-datos'!$B$742=\"Sí\"),IF('Instituciones-crédito'!I123=\"La actividad sí contribuye sustancialmente a la sostenibilidad\",SUM('Instituciones-crédito'!B123:H123),0),IF(AND('Base-datos'!$B$740=\"\",'Base-datos'!$B$741=\"Sí\",'Base-datos'!$B$742=\"Sí\"),IF(AND('Instituciones-crédito'!K123=\"La actividad sí contribuye sustancialmente a la sostenibilidad\",'Instituciones-crédito'!I123=\"La actividad sí contribuye sustancialmente a la sostenibilidad\"),SUM('Instituciones-crédito'!B123:H123),0),IF(AND('Base-datos'!$B$740=\"Sí\",'Base-datos'!$B$741=\"\",'Base-datos'!$B$742=\"Sí\"),IF(AND('Instituciones-crédito'!J123=\"La actividad sí contribuye sustancialmente a la sostenibilidad\",'Instituciones-crédito'!I123=\"La actividad sí contribuye sustancialmente a la sostenibilidad\"),SUM('Instituciones-crédito'!B123:H123),0),\"Por definir\"))))))))","v":"Por definir"}]
[{"$f":"Construcción!$C20","v":"Seleccione"},{"$f":"IF(Construcción!$E20='Instituciones-crédito'!B$12,Construcción!$B20,\"\")","v":""},{"$f":"IF(Construcción!$E20='Instituciones-crédito'!C$12,Construcción!$B20,\"\")","v":""},{"$f":"IF(Construcción!$E20='Instituciones-crédito'!D$12,Construcción!$B20,\"\")","v":""},{"$f":"IF(Construcción!$E20='Instituciones-crédito'!E$12,Construcción!$B20,\"\")","v":""},{"$f":"IF(Construcción!$E20='Instituciones-crédito'!F$12,Construcción!$B20,\"\")","v":""},{"$f":"IF(Construcción!$E20='Instituciones-crédito'!G$12,Construcción!$B20,\"\")","v":""},{"$f":"IF(Construcción!$E20='Instituciones-crédito'!H$12,Construcción!$B20,\"\")","v":""},{"$f":"_xlfn.XLOOKUP(A124,'Base-datos'!$B$537:$B$546,'Base-datos'!$F$537:$F$546)","v":{"$error":"#N/A"}},{"$f":"_xlfn.XLOOKUP(A124,'Base-datos'!$B$537:$B$546,'Base-datos'!$C$537:$C$546)","v":{"$error":"#N/A"}},{"$f":"_xlfn.XLOOKUP(A124,'Base-datos'!$B$537:$B$546,'Base-datos'!$D$537:$D$546)","v":{"$error":"#N/A"}},null,null,{"$f":"IF(OR($L$119=\"La actividad no cumple con el total de los criterios de No Daño Significativo\",$M$119=\"El sector no cumple con las salvaguardas mínimas\"),\"\",IF(AND('Base-datos'!$B$740=\"Sí\",'Base-datos'!$B$741=\"\",'Base-datos'!$B$742=\"\"),IF('Instituciones-crédito'!J124=\"La actividad sí contribuye sustancialmente a la sostenibilidad\",SUM('Instituciones-crédito'!B124:H124),0),IF(AND('Base-datos'!$B$740=\"Sí\",'Base-datos'!$B$741=\"Sí\",'Base-datos'!$B$742=\"\"),IF(AND('Instituciones-crédito'!J124=\"La actividad sí contribuye sustancialmente a la sostenibilidad\",'Instituciones-crédito'!K124=\"La actividad sí contribuye sustancialmente a la sostenibilidad\"),SUM('Instituciones-crédito'!B124:H124),0),IF(AND('Base-datos'!$B$740=\"Sí\",'Base-datos'!$B$741=\"Sí\",'Base-datos'!$B$742=\"Sí\"),IF(AND('Instituciones-crédito'!J124=\"La actividad sí contribuye sustancialmente a la sostenibilidad\",'Instituciones-crédito'!K124=\"La actividad sí contribuye sustancialmente a la sostenibilidad\",'Instituciones-crédito'!I124=\"La actividad sí contribuye sustancialmente a la sostenibilidad\"),SUM('Instituciones-crédito'!B124:H124),0),IF(AND('Base-datos'!$B$740=\"\",'Base-datos'!$B$741=\"Sí\",'Base-datos'!$B$742=\"\"),IF('Instituciones-crédito'!K124=\"La actividad sí contribuye sustancialmente a la sostenibilidad\",SUM('Instituciones-crédito'!B124:H124),0),IF(AND('Base-datos'!$B$740=\"\",'Base-datos'!$B$741=\"\",'Base-datos'!$B$742=\"Sí\"),IF('Instituciones-crédito'!I124=\"La actividad sí contribuye sustancialmente a la sostenibilidad\",SUM('Instituciones-crédito'!B124:H124),0),IF(AND('Base-datos'!$B$740=\"\",'Base-datos'!$B$741=\"Sí\",'Base-datos'!$B$742=\"Sí\"),IF(AND('Instituciones-crédito'!K124=\"La actividad sí contribuye sustancialmente a la sostenibilidad\",'Instituciones-crédito'!I124=\"La actividad sí contribuye sustancialmente a la sostenibilidad\"),SUM('Instituciones-crédito'!B124:H124),0),IF(AND('Base-datos'!$B$740=\"Sí\",'Base-datos'!$B$741=\"\",'Base-datos'!$B$742=\"Sí\"),IF(AND('Instituciones-crédito'!J124=\"La actividad sí contribuye sustancialmente a la sostenibilidad\",'Instituciones-crédito'!I124=\"La actividad sí contribuye sustancialmente a la sostenibilidad\"),SUM('Instituciones-crédito'!B124:H124),0),\"Por definir\"))))))))","v":"Por definir"}]
[{"$f":"Construcción!$C22","v":"Seleccione"},{"$f":"IF(Construcción!$E22='Instituciones-crédito'!B$12,Construcción!$B22,\"\")","v":""},{"$f":"IF(Construcción!$E22='Instituciones-crédito'!C$12,Construcción!$B22,\"\")","v":""},{"$f":"IF(Construcción!$E22='Instituciones-crédito'!D$12,Construcción!$B22,\"\")","v":""},{"$f":"IF(Construcción!$E22='Instituciones-crédito'!E$12,Construcción!$B22,\"\")","v":""},{"$f":"IF(Construcción!$E22='Instituciones-crédito'!F$12,Construcción!$B22,\"\")","v":""},{"$f":"IF(Construcción!$E22='Instituciones-crédito'!G$12,Construcción!$B22,\"\")","v":""},{"$f":"IF(Construcción!$E22='Instituciones-crédito'!H$12,Construcción!$B22,\"\")","v":""},{"$f":"_xlfn.XLOOKUP(A125,'Base-datos'!$B$537:$B$546,'Base-datos'!$F$537:$F$546)","v":{"$error":"#N/A"}},{"$f":"_xlfn.XLOOKUP(A125,'Base-datos'!$B$537:$B$546,'Base-datos'!$C$537:$C$546)","v":{"$error":"#N/A"}},{"$f":"_xlfn.XLOOKUP(A125,'Base-datos'!$B$537:$B$546,'Base-datos'!$D$537:$D$546)","v":{"$error":"#N/A"}},null,null,{"$f":"IF(OR($L$119=\"La actividad no cumple con el total de los criterios de No Daño Significativo\",$M$119=\"El sector no cumple con las salvaguardas mínimas\"),\"\",IF(AND('Base-datos'!$B$740=\"Sí\",'Base-datos'!$B$741=\"\",'Base-datos'!$B$742=\"\"),IF('Instituciones-crédito'!J125=\"La actividad sí contribuye sustancialmente a la sostenibilidad\",SUM('Instituciones-crédito'!B125:H125),0),IF(AND('Base-datos'!$B$740=\"Sí\",'Base-datos'!$B$741=\"Sí\",'Base-datos'!$B$742=\"\"),IF(AND('Instituciones-crédito'!J125=\"La actividad sí contribuye sustancialmente a la sostenibilidad\",'Instituciones-crédito'!K125=\"La actividad sí contribuye sustancialmente a la sostenibilidad\"),SUM('Instituciones-crédito'!B125:H125),0),IF(AND('Base-datos'!$B$740=\"Sí\",'Base-datos'!$B$741=\"Sí\",'Base-datos'!$B$742=\"Sí\"),IF(AND('Instituciones-crédito'!J125=\"La actividad sí contribuye sustancialmente a la sostenibilidad\",'Instituciones-crédito'!K125=\"La actividad sí contribuye sustancialmente a la sostenibilidad\",'Instituciones-crédito'!I125=\"La actividad sí contribuye sustancialmente a la sostenibilidad\"),SUM('Instituciones-crédito'!B125:H125),0),IF(AND('Base-datos'!$B$740=\"\",'Base-datos'!$B$741=\"Sí\",'Base-datos'!$B$742=\"\"),IF('Instituciones-crédito'!K125=\"La actividad sí contribuye sustancialmente a la sostenibilidad\",SUM('Instituciones-crédito'!B125:H125),0),IF(AND('Base-datos'!$B$740=\"\",'Base-datos'!$B$741=\"\",'Base-datos'!$B$742=\"Sí\"),IF('Instituciones-crédito'!I125=\"La actividad sí contribuye sustancialmente a la sostenibilidad\",SUM('Instituciones-crédito'!B125:H125),0),IF(AND('Base-datos'!$B$740=\"\",'Base-datos'!$B$741=\"Sí\",'Base-datos'!$B$742=\"Sí\"),IF(AND('Instituciones-crédito'!K125=\"La actividad sí contribuye sustancialmente a la sostenibilidad\",'Instituciones-crédito'!I125=\"La actividad sí contribuye sustancialmente a la sostenibilidad\"),SUM('Instituciones-crédito'!B125:H125),0),IF(AND('Base-datos'!$B$740=\"Sí\",'Base-datos'!$B$741=\"\",'Base-datos'!$B$742=\"Sí\"),IF(AND('Instituciones-crédito'!J125=\"La actividad sí contribuye sustancialmente a la sostenibilidad\",'Instituciones-crédito'!I125=\"La actividad sí contribuye sustancialmente a la sostenibilidad\"),SUM('Instituciones-crédito'!B125:H125),0),\"Por definir\"))))))))","v":"Por definir"}]
[{"$f":"Construcción!$C24","v":"Seleccione"},{"$f":"IF(Construcción!$E24='Instituciones-crédito'!B$12,Construcción!$B24,\"\")","v":""},{"$f":"IF(Construcción!$E24='Instituciones-crédito'!C$12,Construcción!$B24,\"\")","v":""},{"$f":"IF(Construcción!$E24='Instituciones-crédito'!D$12,Construcción!$B24,\"\")","v":""},{"$f":"IF(Construcción!$E24='Instituciones-crédito'!E$12,Construcción!$B24,\"\")","v":""},{"$f":"IF(Construcción!$E24='Instituciones-crédito'!F$12,Construcción!$B24,\"\")","v":""},{"$f":"IF(Construcción!$E24='Instituciones-crédito'!G$12,Construcción!$B24,\"\")","v":""},{"$f":"IF(Construcción!$E24='Instituciones-crédito'!H$12,Construcción!$B24,\"\")","v":""},{"$f":"_xlfn.XLOOKUP(A126,'Base-datos'!$B$537:$B$546,'Base-datos'!$F$537:$F$546)","v":{"$error":"#N/A"}},{"$f":"_xlfn.XLOOKUP(A126,'Base-datos'!$B$537:$B$546,'Base-datos'!$C$537:$C$546)","v":{"$error":"#N/A"}},{"$f":"_xlfn.XLOOKUP(A126,'Base-datos'!$B$537:$B$546,'Base-datos'!$D$537:$D$546)","v":{"$error":"#N/A"}},null,null,{"$f":"IF(OR($L$119=\"La actividad no cumple con el total de los criterios de No Daño Significativo\",$M$119=\"El sector no cumple con las salvaguardas mínimas\"),\"\",IF(AND('Base-datos'!$B$740=\"Sí\",'Base-datos'!$B$741=\"\",'Base-datos'!$B$742=\"\"),IF('Instituciones-crédito'!J126=\"La actividad sí contribuye sustancialmente a la sostenibilidad\",SUM('Instituciones-crédito'!B126:H126),0),IF(AND('Base-datos'!$B$740=\"Sí\",'Base-datos'!$B$741=\"Sí\",'Base-datos'!$B$742=\"\"),IF(AND('Instituciones-crédito'!J126=\"La actividad sí contribuye sustancialmente a la sostenibilidad\",'Instituciones-crédito'!K126=\"La actividad sí contribuye sustancialmente a la sostenibilidad\"),SUM('Instituciones-crédito'!B126:H126),0),IF(AND('Base-datos'!$B$740=\"Sí\",'Base-datos'!$B$741=\"Sí\",'Base-datos'!$B$742=\"Sí\"),IF(AND('Instituciones-crédito'!J126=\"La actividad sí contribuye sustancialmente a la sostenibilidad\",'Instituciones-crédito'!K126=\"La actividad sí contribuye sustancialmente a la sostenibilidad\",'Instituciones-crédito'!I126=\"La actividad sí contribuye sustancialmente a la sostenibilidad\"),SUM('Instituciones-crédito'!B126:H126),0),IF(AND('Base-datos'!$B$740=\"\",'Base-datos'!$B$741=\"Sí\",'Base-datos'!$B$742=\"\"),IF('Instituciones-crédito'!K126=\"La actividad sí contribuye sustancialmente a la sostenibilidad\",SUM('Instituciones-crédito'!B126:H126),0),IF(AND('Base-datos'!$B$740=\"\",'Base-datos'!$B$741=\"\",'Base-datos'!$B$742=\"Sí\"),IF('Instituciones-crédito'!I126=\"La actividad sí contribuye sustancialmente a la sostenibilidad\",SUM('Instituciones-crédito'!B126:H126),0),IF(AND('Base-datos'!$B$740=\"\",'Base-datos'!$B$741=\"Sí\",'Base-datos'!$B$742=\"Sí\"),IF(AND('Instituciones-crédito'!K126=\"La actividad sí contribuye sustancialmente a la sostenibilidad\",'Instituciones-crédito'!I126=\"La actividad sí contribuye sustancialmente a la sostenibilidad\"),SUM('Instituciones-crédito'!B126:H126),0),IF(AND('Base-datos'!$B$740=\"Sí\",'Base-datos'!$B$741=\"\",'Base-datos'!$B$742=\"Sí\"),IF(AND('Instituciones-crédito'!J126=\"La actividad sí contribuye sustancialmente a la sostenibilidad\",'Instituciones-crédito'!I126=\"La actividad sí contribuye sustancialmente a la sostenibilidad\"),SUM('Instituciones-crédito'!B126:H126),0),\"Por definir\"))))))))","v":"Por definir"}]
[{"$f":"Construcción!$C26","v":"Seleccione"},{"$f":"IF(Construcción!$E26='Instituciones-crédito'!B$12,Construcción!$B26,\"\")","v":""},{"$f":"IF(Construcción!$E26='Instituciones-crédito'!C$12,Construcción!$B26,\"\")","v":""},{"$f":"IF(Construcción!$E26='Instituciones-crédito'!D$12,Construcción!$B26,\"\")","v":""},{"$f":"IF(Construcción!$E26='Instituciones-crédito'!E$12,Construcción!$B26,\"\")","v":""},{"$f":"IF(Construcción!$E26='Instituciones-crédito'!F$12,Construcción!$B26,\"\")","v":""},{"$f":"IF(Construcción!$E26='Instituciones-crédito'!G$12,Construcción!$B26,\"\")","v":""},{"$f":"IF(Construcción!$E26='Instituciones-crédito'!H$12,Construcción!$B26,\"\")","v":""},{"$f":"_xlfn.XLOOKUP(A127,'Base-datos'!$B$537:$B$546,'Base-datos'!$F$537:$F$546)","v":{"$error":"#N/A"}},{"$f":"_xlfn.XLOOKUP(A127,'Base-datos'!$B$537:$B$546,'Base-datos'!$C$537:$C$546)","v":{"$error":"#N/A"}},{"$f":"_xlfn.XLOOKUP(A127,'Base-datos'!$B$537:$B$546,'Base-datos'!$D$537:$D$546)","v":{"$error":"#N/A"}},null,null,{"$f":"IF(OR($L$119=\"La actividad no cumple con el total de los criterios de No Daño Significativo\",$M$119=\"El sector no cumple con las salvaguardas mínimas\"),\"\",IF(AND('Base-datos'!$B$740=\"Sí\",'Base-datos'!$B$741=\"\",'Base-datos'!$B$742=\"\"),IF('Instituciones-crédito'!J127=\"La actividad sí contribuye sustancialmente a la sostenibilidad\",SUM('Instituciones-crédito'!B127:H127),0),IF(AND('Base-datos'!$B$740=\"Sí\",'Base-datos'!$B$741=\"Sí\",'Base-datos'!$B$742=\"\"),IF(AND('Instituciones-crédito'!J127=\"La actividad sí contribuye sustancialmente a la sostenibilidad\",'Instituciones-crédito'!K127=\"La actividad sí contribuye sustancialmente a la sostenibilidad\"),SUM('Instituciones-crédito'!B127:H127),0),IF(AND('Base-datos'!$B$740=\"Sí\",'Base-datos'!$B$741=\"Sí\",'Base-datos'!$B$742=\"Sí\"),IF(AND('Instituciones-crédito'!J127=\"La actividad sí contribuye sustancialmente a la sostenibilidad\",'Instituciones-crédito'!K127=\"La actividad sí contribuye sustancialmente a la sostenibilidad\",'Instituciones-crédito'!I127=\"La actividad sí contribuye sustancialmente a la sostenibilidad\"),SUM('Instituciones-crédito'!B127:H127),0),IF(AND('Base-datos'!$B$740=\"\",'Base-datos'!$B$741=\"Sí\",'Base-datos'!$B$742=\"\"),IF('Instituciones-crédito'!K127=\"La actividad sí contribuye sustancialmente a la sostenibilidad\",SUM('Instituciones-crédito'!B127:H127),0),IF(AND('Base-datos'!$B$740=\"\",'Base-datos'!$B$741=\"\",'Base-datos'!$B$742=\"Sí\"),IF('Instituciones-crédito'!I127=\"La actividad sí contribuye sustancialmente a la sostenibilidad\",SUM('Instituciones-crédito'!B127:H127),0),IF(AND('Base-datos'!$B$740=\"\",'Base-datos'!$B$741=\"Sí\",'Base-datos'!$B$742=\"Sí\"),IF(AND('Instituciones-crédito'!K127=\"La actividad sí contribuye sustancialmente a la sostenibilidad\",'Instituciones-crédito'!I127=\"La actividad sí contribuye sustancialmente a la sostenibilidad\"),SUM('Instituciones-crédito'!B127:H127),0),IF(AND('Base-datos'!$B$740=\"Sí\",'Base-datos'!$B$741=\"\",'Base-datos'!$B$742=\"Sí\"),IF(AND('Instituciones-crédito'!J127=\"La actividad sí contribuye sustancialmente a la sostenibilidad\",'Instituciones-crédito'!I127=\"La actividad sí contribuye sustancialmente a la sostenibilidad\"),SUM('Instituciones-crédito'!B127:H127),0),\"Por definir\"))))))))","v":"Por definir"}]
[{"$f":"Construcción!$C28","v":"Seleccione"},{"$f":"IF(Construcción!$E28='Instituciones-crédito'!B$12,Construcción!$B28,\"\")","v":""},{"$f":"IF(Construcción!$E28='Instituciones-crédito'!C$12,Construcción!$B28,\"\")","v":""},{"$f":"IF(Construcción!$E28='Instituciones-crédito'!D$12,Construcción!$B28,\"\")","v":""},{"$f":"IF(Construcción!$E28='Instituciones-crédito'!E$12,Construcción!$B28,\"\")","v":""},{"$f":"IF(Construcción!$E28='Instituciones-crédito'!F$12,Construcción!$B28,\"\")","v":""},{"$f":"IF(Construcción!$E28='Instituciones-crédito'!G$12,Construcción!$B28,\"\")","v":""},{"$f":"IF(Construcción!$E28='Instituciones-crédito'!H$12,Construcción!$B28,\"\")","v":""},{"$f":"_xlfn.XLOOKUP(A128,'Base-datos'!$B$537:$B$546,'Base-datos'!$F$537:$F$546)","v":{"$error":"#N/A"}},{"$f":"_xlfn.XLOOKUP(A128,'Base-datos'!$B$537:$B$546,'Base-datos'!$C$537:$C$546)","v":{"$error":"#N/A"}},{"$f":"_xlfn.XLOOKUP(A128,'Base-datos'!$B$537:$B$546,'Base-datos'!$D$537:$D$546)","v":{"$error":"#N/A"}},null,null,{"$f":"IF(OR($L$119=\"La actividad no cumple con el total de los criterios de No Daño Significativo\",$M$119=\"El sector no cumple con las salvaguardas mínimas\"),\"\",IF(AND('Base-datos'!$B$740=\"Sí\",'Base-datos'!$B$741=\"\",'Base-datos'!$B$742=\"\"),IF('Instituciones-crédito'!J128=\"La actividad sí contribuye sustancialmente a la sostenibilidad\",SUM('Instituciones-crédito'!B128:H128),0),IF(AND('Base-datos'!$B$740=\"Sí\",'Base-datos'!$B$741=\"Sí\",'Base-datos'!$B$742=\"\"),IF(AND('Instituciones-crédito'!J128=\"La actividad sí contribuye sustancialmente a la sostenibilidad\",'Instituciones-crédito'!K128=\"La actividad sí contribuye sustancialmente a la sostenibilidad\"),SUM('Instituciones-crédito'!B128:H128),0),IF(AND('Base-datos'!$B$740=\"Sí\",'Base-datos'!$B$741=\"Sí\",'Base-datos'!$B$742=\"Sí\"),IF(AND('Instituciones-crédito'!J128=\"La actividad sí contribuye sustancialmente a la sostenibilidad\",'Instituciones-crédito'!K128=\"La actividad sí contribuye sustancialmente a la sostenibilidad\",'Instituciones-crédito'!I128=\"La actividad sí contribuye sustancialmente a la sostenibilidad\"),SUM('Instituciones-crédito'!B128:H128),0),IF(AND('Base-datos'!$B$740=\"\",'Base-datos'!$B$741=\"Sí\",'Base-datos'!$B$742=\"\"),IF('Instituciones-crédito'!K128=\"La actividad sí contribuye sustancialmente a la sostenibilidad\",SUM('Instituciones-crédito'!B128:H128),0),IF(AND('Base-datos'!$B$740=\"\",'Base-datos'!$B$741=\"\",'Base-datos'!$B$742=\"Sí\"),IF('Instituciones-crédito'!I128=\"La actividad sí contribuye sustancialmente a la sostenibilidad\",SUM('Instituciones-crédito'!B128:H128),0),IF(AND('Base-datos'!$B$740=\"\",'Base-datos'!$B$741=\"Sí\",'Base-datos'!$B$742=\"Sí\"),IF(AND('Instituciones-crédito'!K128=\"La actividad sí contribuye sustancialmente a la sostenibilidad\",'Instituciones-crédito'!I128=\"La actividad sí contribuye sustancialmente a la sostenibilidad\"),SUM('Instituciones-crédito'!B128:H128),0),IF(AND('Base-datos'!$B$740=\"Sí\",'Base-datos'!$B$741=\"\",'Base-datos'!$B$742=\"Sí\"),IF(AND('Instituciones-crédito'!J128=\"La actividad sí contribuye sustancialmente a la sostenibilidad\",'Instituciones-crédito'!I128=\"La actividad sí contribuye sustancialmente a la sostenibilidad\"),SUM('Instituciones-crédito'!B128:H128),0),\"Por definir\"))))))))","v":"Por definir"}]
[{"$f":"Construcción!$C30","v":"Seleccione"},{"$f":"IF(Construcción!$E30='Instituciones-crédito'!B$12,Construcción!$B30,\"\")","v":""},{"$f":"IF(Construcción!$E30='Instituciones-crédito'!C$12,Construcción!$B30,\"\")","v":""},{"$f":"IF(Construcción!$E30='Instituciones-crédito'!D$12,Construcción!$B30,\"\")","v":""},{"$f":"IF(Construcción!$E30='Instituciones-crédito'!E$12,Construcción!$B30,\"\")","v":""},{"$f":"IF(Construcción!$E30='Instituciones-crédito'!F$12,Construcción!$B30,\"\")","v":""},{"$f":"IF(Construcción!$E30='Instituciones-crédito'!G$12,Construcción!$B30,\"\")","v":""},{"$f":"IF(Construcción!$E30='Instituciones-crédito'!H$12,Construcción!$B30,\"\")","v":""},{"$f":"_xlfn.XLOOKUP(A129,'Base-datos'!$B$537:$B$546,'Base-datos'!$F$537:$F$546)","v":{"$error":"#N/A"}},{"$f":"_xlfn.XLOOKUP(A129,'Base-datos'!$B$537:$B$546,'Base-datos'!$C$537:$C$546)","v":{"$error":"#N/A"}},{"$f":"_xlfn.XLOOKUP(A129,'Base-datos'!$B$537:$B$546,'Base-datos'!$D$537:$D$546)","v":{"$error":"#N/A"}},null,null,{"$f":"IF(OR($L$119=\"La actividad no cumple con el total de los criterios de No Daño Significativo\",$M$119=\"El sector no cumple con las salvaguardas mínimas\"),\"\",IF(AND('Base-datos'!$B$740=\"Sí\",'Base-datos'!$B$741=\"\",'Base-datos'!$B$742=\"\"),IF('Instituciones-crédito'!J129=\"La actividad sí contribuye sustancialmente a la sostenibilidad\",SUM('Instituciones-crédito'!B129:H129),0),IF(AND('Base-datos'!$B$740=\"Sí\",'Base-datos'!$B$741=\"Sí\",'Base-datos'!$B$742=\"\"),IF(AND('Instituciones-crédito'!J129=\"La actividad sí contribuye sustancialmente a la sostenibilidad\",'Instituciones-crédito'!K129=\"La actividad sí contribuye sustancialmente a la sostenibilidad\"),SUM('Instituciones-crédito'!B129:H129),0),IF(AND('Base-datos'!$B$740=\"Sí\",'Base-datos'!$B$741=\"Sí\",'Base-datos'!$B$742=\"Sí\"),IF(AND('Instituciones-crédito'!J129=\"La actividad sí contribuye sustancialmente a la sostenibilidad\",'Instituciones-crédito'!K129=\"La actividad sí contribuye sustancialmente a la sostenibilidad\",'Instituciones-crédito'!I129=\"La actividad sí contribuye sustancialmente a la sostenibilidad\"),SUM('Instituciones-crédito'!B129:H129),0),IF(AND('Base-datos'!$B$740=\"\",'Base-datos'!$B$741=\"Sí\",'Base-datos'!$B$742=\"\"),IF('Instituciones-crédito'!K129=\"La actividad sí contribuye sustancialmente a la sostenibilidad\",SUM('Instituciones-crédito'!B129:H129),0),IF(AND('Base-datos'!$B$740=\"\",'Base-datos'!$B$741=\"\",'Base-datos'!$B$742=\"Sí\"),IF('Instituciones-crédito'!I129=\"La actividad sí contribuye sustancialmente a la sostenibilidad\",SUM('Instituciones-crédito'!B129:H129),0),IF(AND('Base-datos'!$B$740=\"\",'Base-datos'!$B$741=\"Sí\",'Base-datos'!$B$742=\"Sí\"),IF(AND('Instituciones-crédito'!K129=\"La actividad sí contribuye sustancialmente a la sostenibilidad\",'Instituciones-crédito'!I129=\"La actividad sí contribuye sustancialmente a la sostenibilidad\"),SUM('Instituciones-crédito'!B129:H129),0),IF(AND('Base-datos'!$B$740=\"Sí\",'Base-datos'!$B$741=\"\",'Base-datos'!$B$742=\"Sí\"),IF(AND('Instituciones-crédito'!J129=\"La actividad sí contribuye sustancialmente a la sostenibilidad\",'Instituciones-crédito'!I129=\"La actividad sí contribuye sustancialmente a la sostenibilidad\"),SUM('Instituciones-crédito'!B129:H129),0),\"Por definir\"))))))))","v":"Por definir"}]
[{"$f":"Construcción!$C32","v":"Seleccione"},{"$f":"IF(Construcción!$E32='Instituciones-crédito'!B$12,Construcción!$B32,\"\")","v":""},{"$f":"IF(Construcción!$E32='Instituciones-crédito'!C$12,Construcción!$B32,\"\")","v":""},{"$f":"IF(Construcción!$E32='Instituciones-crédito'!D$12,Construcción!$B32,\"\")","v":""},{"$f":"IF(Construcción!$E32='Instituciones-crédito'!E$12,Construcción!$B32,\"\")","v":""},{"$f":"IF(Construcción!$E32='Instituciones-crédito'!F$12,Construcción!$B32,\"\")","v":""},{"$f":"IF(Construcción!$E32='Instituciones-crédito'!G$12,Construcción!$B32,\"\")","v":""},{"$f":"IF(Construcción!$E32='Instituciones-crédito'!H$12,Construcción!$B32,\"\")","v":""},{"$f":"_xlfn.XLOOKUP(A130,'Base-datos'!$B$537:$B$546,'Base-datos'!$F$537:$F$546)","v":{"$error":"#N/A"}},{"$f":"_xlfn.XLOOKUP(A130,'Base-datos'!$B$537:$B$546,'Base-datos'!$C$537:$C$546)","v":{"$error":"#N/A"}},{"$f":"_xlfn.XLOOKUP(A130,'Base-datos'!$B$537:$B$546,'Base-datos'!$D$537:$D$546)","v":{"$error":"#N/A"}},null,null,{"$f":"IF(OR($L$119=\"La actividad no cumple con el total de los criterios de No Daño Significativo\",$M$119=\"El sector no cumple con las salvaguardas mínimas\"),\"\",IF(AND('Base-datos'!$B$740=\"Sí\",'Base-datos'!$B$741=\"\",'Base-datos'!$B$742=\"\"),IF('Instituciones-crédito'!J130=\"La actividad sí contribuye sustancialmente a la sostenibilidad\",SUM('Instituciones-crédito'!B130:H130),0),IF(AND('Base-datos'!$B$740=\"Sí\",'Base-datos'!$B$741=\"Sí\",'Base-datos'!$B$742=\"\"),IF(AND('Instituciones-crédito'!J130=\"La actividad sí contribuye sustancialmente a la sostenibilidad\",'Instituciones-crédito'!K130=\"La actividad sí contribuye sustancialmente a la sostenibilidad\"),SUM('Instituciones-crédito'!B130:H130),0),IF(AND('Base-datos'!$B$740=\"Sí\",'Base-datos'!$B$741=\"Sí\",'Base-datos'!$B$742=\"Sí\"),IF(AND('Instituciones-crédito'!J130=\"La actividad sí contribuye sustancialmente a la sostenibilidad\",'Instituciones-crédito'!K130=\"La actividad sí contribuye sustancialmente a la sostenibilidad\",'Instituciones-crédito'!I130=\"La actividad sí contribuye sustancialmente a la sostenibilidad\"),SUM('Instituciones-crédito'!B130:H130),0),IF(AND('Base-datos'!$B$740=\"\",'Base-datos'!$B$741=\"Sí\",'Base-datos'!$B$742=\"\"),IF('Instituciones-crédito'!K130=\"La actividad sí contribuye sustancialmente a la sostenibilidad\",SUM('Instituciones-crédito'!B130:H130),0),IF(AND('Base-datos'!$B$740=\"\",'Base-datos'!$B$741=\"\",'Base-datos'!$B$742=\"Sí\"),IF('Instituciones-crédito'!I130=\"La actividad sí contribuye sustancialmente a la sostenibilidad\",SUM('Instituciones-crédito'!B130:H130),0),IF(AND('Base-datos'!$B$740=\"\",'Base-datos'!$B$741=\"Sí\",'Base-datos'!$B$742=\"Sí\"),IF(AND('Instituciones-crédito'!K130=\"La actividad sí contribuye sustancialmente a la sostenibilidad\",'Instituciones-crédito'!I130=\"La actividad sí contribuye sustancialmente a la sostenibilidad\"),SUM('Instituciones-crédito'!B130:H130),0),IF(AND('Base-datos'!$B$740=\"Sí\",'Base-datos'!$B$741=\"\",'Base-datos'!$B$742=\"Sí\"),IF(AND('Instituciones-crédito'!J130=\"La actividad sí contribuye sustancialmente a la sostenibilidad\",'Instituciones-crédito'!I130=\"La actividad sí contribuye sustancialmente a la sostenibilidad\"),SUM('Instituciones-crédito'!B130:H130),0),\"Por definir\"))))))))","v":"Por definir"}]
[{"$f":"Construcción!$C34","v":"Seleccione"},{"$f":"IF(Construcción!$E34='Instituciones-crédito'!B$12,Construcción!$B34,\"\")","v":""},{"$f":"IF(Construcción!$E34='Instituciones-crédito'!C$12,Construcción!$B34,\"\")","v":""},{"$f":"IF(Construcción!$E34='Instituciones-crédito'!D$12,Construcción!$B34,\"\")","v":""},{"$f":"IF(Construcción!$E34='Instituciones-crédito'!E$12,Construcción!$B34,\"\")","v":""},{"$f":"IF(Construcción!$E34='Instituciones-crédito'!F$12,Construcción!$B34,\"\")","v":""},{"$f":"IF(Construcción!$E34='Instituciones-crédito'!G$12,Construcción!$B34,\"\")","v":""},{"$f":"IF(Construcción!$E34='Instituciones-crédito'!H$12,Construcción!$B34,\"\")","v":""},{"$f":"_xlfn.XLOOKUP(A131,'Base-datos'!$B$537:$B$546,'Base-datos'!$F$537:$F$546)","v":{"$error":"#N/A"}},{"$f":"_xlfn.XLOOKUP(A131,'Base-datos'!$B$537:$B$546,'Base-datos'!$C$537:$C$546)","v":{"$error":"#N/A"}},{"$f":"_xlfn.XLOOKUP(A131,'Base-datos'!$B$537:$B$546,'Base-datos'!$D$537:$D$546)","v":{"$error":"#N/A"}},null,null,{"$f":"IF(OR($L$119=\"La actividad no cumple con el total de los criterios de No Daño Significativo\",$M$119=\"El sector no cumple con las salvaguardas mínimas\"),\"\",IF(AND('Base-datos'!$B$740=\"Sí\",'Base-datos'!$B$741=\"\",'Base-datos'!$B$742=\"\"),IF('Instituciones-crédito'!J131=\"La actividad sí contribuye sustancialmente a la sostenibilidad\",SUM('Instituciones-crédito'!B131:H131),0),IF(AND('Base-datos'!$B$740=\"Sí\",'Base-datos'!$B$741=\"Sí\",'Base-datos'!$B$742=\"\"),IF(AND('Instituciones-crédito'!J131=\"La actividad sí contribuye sustancialmente a la sostenibilidad\",'Instituciones-crédito'!K131=\"La actividad sí contribuye sustancialmente a la sostenibilidad\"),SUM('Instituciones-crédito'!B131:H131),0),IF(AND('Base-datos'!$B$740=\"Sí\",'Base-datos'!$B$741=\"Sí\",'Base-datos'!$B$742=\"Sí\"),IF(AND('Instituciones-crédito'!J131=\"La actividad sí contribuye sustancialmente a la sostenibilidad\",'Instituciones-crédito'!K131=\"La actividad sí contribuye sustancialmente a la sostenibilidad\",'Instituciones-crédito'!I131=\"La actividad sí contribuye sustancialmente a la sostenibilidad\"),SUM('Instituciones-crédito'!B131:H131),0),IF(AND('Base-datos'!$B$740=\"\",'Base-datos'!$B$741=\"Sí\",'Base-datos'!$B$742=\"\"),IF('Instituciones-crédito'!K131=\"La actividad sí contribuye sustancialmente a la sostenibilidad\",SUM('Instituciones-crédito'!B131:H131),0),IF(AND('Base-datos'!$B$740=\"\",'Base-datos'!$B$741=\"\",'Base-datos'!$B$742=\"Sí\"),IF('Instituciones-crédito'!I131=\"La actividad sí contribuye sustancialmente a la sostenibilidad\",SUM('Instituciones-crédito'!B131:H131),0),IF(AND('Base-datos'!$B$740=\"\",'Base-datos'!$B$741=\"Sí\",'Base-datos'!$B$742=\"Sí\"),IF(AND('Instituciones-crédito'!K131=\"La actividad sí contribuye sustancialmente a la sostenibilidad\",'Instituciones-crédito'!I131=\"La actividad sí contribuye sustancialmente a la sostenibilidad\"),SUM('Instituciones-crédito'!B131:H131),0),IF(AND('Base-datos'!$B$740=\"Sí\",'Base-datos'!$B$741=\"\",'Base-datos'!$B$742=\"Sí\"),IF(AND('Instituciones-crédito'!J131=\"La actividad sí contribuye sustancialmente a la sostenibilidad\",'Instituciones-crédito'!I131=\"La actividad sí contribuye sustancialmente a la sostenibilidad\"),SUM('Instituciones-crédito'!B131:H131),0),\"Por definir\"))))))))","v":"Por definir"}]
[{"$f":"Construcción!$C36","v":"Seleccione"},{"$f":"IF(Construcción!$E36='Instituciones-crédito'!B$12,Construcción!$B36,\"\")","v":""},{"$f":"IF(Construcción!$E36='Instituciones-crédito'!C$12,Construcción!$B36,\"\")","v":""},{"$f":"IF(Construcción!$E36='Instituciones-crédito'!D$12,Construcción!$B36,\"\")","v":""},{"$f":"IF(Construcción!$E36='Instituciones-crédito'!E$12,Construcción!$B36,\"\")","v":""},{"$f":"IF(Construcción!$E36='Instituciones-crédito'!F$12,Construcción!$B36,\"\")","v":""},{"$f":"IF(Construcción!$E36='Instituciones-crédito'!G$12,Construcción!$B36,\"\")","v":""},{"$f":"IF(Construcción!$E36='Instituciones-crédito'!H$12,Construcción!$B36,\"\")","v":""},{"$f":"_xlfn.XLOOKUP(A132,'Base-datos'!$B$537:$B$546,'Base-datos'!$F$537:$F$546)","v":{"$error":"#N/A"}},{"$f":"_xlfn.XLOOKUP(A132,'Base-datos'!$B$537:$B$546,'Base-datos'!$C$537:$C$546)","v":{"$error":"#N/A"}},{"$f":"_xlfn.XLOOKUP(A132,'Base-datos'!$B$537:$B$546,'Base-datos'!$D$537:$D$546)","v":{"$error":"#N/A"}},null,null,{"$f":"IF(OR($L$119=\"La actividad no cumple con el total de los criterios de No Daño Significativo\",$M$119=\"El sector no cumple con las salvaguardas mínimas\"),\"\",IF(AND('Base-datos'!$B$740=\"Sí\",'Base-datos'!$B$741=\"\",'Base-datos'!$B$742=\"\"),IF('Instituciones-crédito'!J132=\"La actividad sí contribuye sustancialmente a la sostenibilidad\",SUM('Instituciones-crédito'!B132:H132),0),IF(AND('Base-datos'!$B$740=\"Sí\",'Base-datos'!$B$741=\"Sí\",'Base-datos'!$B$742=\"\"),IF(AND('Instituciones-crédito'!J132=\"La actividad sí contribuye sustancialmente a la sostenibilidad\",'Instituciones-crédito'!K132=\"La actividad sí contribuye sustancialmente a la sostenibilidad\"),SUM('Instituciones-crédito'!B132:H132),0),IF(AND('Base-datos'!$B$740=\"Sí\",'Base-datos'!$B$741=\"Sí\",'Base-datos'!$B$742=\"Sí\"),IF(AND('Instituciones-crédito'!J132=\"La actividad sí contribuye sustancialmente a la sostenibilidad\",'Instituciones-crédito'!K132=\"La actividad sí contribuye sustancialmente a la sostenibilidad\",'Instituciones-crédito'!I132=\"La actividad sí contribuye sustancialmente a la sostenibilidad\"),SUM('Instituciones-crédito'!B132:H132),0),IF(AND('Base-datos'!$B$740=\"\",'Base-datos'!$B$741=\"Sí\",'Base-datos'!$B$742=\"\"),IF('Instituciones-crédito'!K132=\"La actividad sí contribuye sustancialmente a la sostenibilidad\",SUM('Instituciones-crédito'!B132:H132),0),IF(AND('Base-datos'!$B$740=\"\",'Base-datos'!$B$741=\"\",'Base-datos'!$B$742=\"Sí\"),IF('Instituciones-crédito'!I132=\"La actividad sí contribuye sustancialmente a la sostenibilidad\",SUM('Instituciones-crédito'!B132:H132),0),IF(AND('Base-datos'!$B$740=\"\",'Base-datos'!$B$741=\"Sí\",'Base-datos'!$B$742=\"Sí\"),IF(AND('Instituciones-crédito'!K132=\"La actividad sí contribuye sustancialmente a la sostenibilidad\",'Instituciones-crédito'!I132=\"La actividad sí contribuye sustancialmente a la sostenibilidad\"),SUM('Instituciones-crédito'!B132:H132),0),IF(AND('Base-datos'!$B$740=\"Sí\",'Base-datos'!$B$741=\"\",'Base-datos'!$B$742=\"Sí\"),IF(AND('Instituciones-crédito'!J132=\"La actividad sí contribuye sustancialmente a la sostenibilidad\",'Instituciones-crédito'!I132=\"La actividad sí contribuye sustancialmente a la sostenibilidad\"),SUM('Instituciones-crédito'!B132:H132),0),\"Por definir\"))))))))","v":"Por definir"}]
[{"$f":"Construcción!$C38","v":"Seleccione"},{"$f":"IF(Construcción!$E38='Instituciones-crédito'!B$12,Construcción!$B38,\"\")","v":""},{"$f":"IF(Construcción!$E38='Instituciones-crédito'!C$12,Construcción!$B38,\"\")","v":""},{"$f":"IF(Construcción!$E38='Instituciones-crédito'!D$12,Construcción!$B38,\"\")","v":""},{"$f":"IF(Construcción!$E38='Instituciones-crédito'!E$12,Construcción!$B38,\"\")","v":""},{"$f":"IF(Construcción!$E38='Instituciones-crédito'!F$12,Construcción!$B38,\"\")","v":""},{"$f":"IF(Construcción!$E38='Instituciones-crédito'!G$12,Construcción!$B38,\"\")","v":""},{"$f":"IF(Construcción!$E38='Instituciones-crédito'!H$12,Construcción!$B38,\"\")","v":""},{"$f":"_xlfn.XLOOKUP(A133,'Base-datos'!$B$537:$B$546,'Base-datos'!$F$537:$F$546)","v":{"$error":"#N/A"}},{"$f":"_xlfn.XLOOKUP(A133,'Base-datos'!$B$537:$B$546,'Base-datos'!$C$537:$C$546)","v":{"$error":"#N/A"}},{"$f":"_xlfn.XLOOKUP(A133,'Base-datos'!$B$537:$B$546,'Base-datos'!$D$537:$D$546)","v":{"$error":"#N/A"}},null,null,{"$f":"IF(OR($L$119=\"La actividad no cumple con el total de los criterios de No Daño Significativo\",$M$119=\"El sector no cumple con las salvaguardas mínimas\"),\"\",IF(AND('Base-datos'!$B$740=\"Sí\",'Base-datos'!$B$741=\"\",'Base-datos'!$B$742=\"\"),IF('Instituciones-crédito'!J133=\"La actividad sí contribuye sustancialmente a la sostenibilidad\",SUM('Instituciones-crédito'!B133:H133),0),IF(AND('Base-datos'!$B$740=\"Sí\",'Base-datos'!$B$741=\"Sí\",'Base-datos'!$B$742=\"\"),IF(AND('Instituciones-crédito'!J133=\"La actividad sí contribuye sustancialmente a la sostenibilidad\",'Instituciones-crédito'!K133=\"La actividad sí contribuye sustancialmente a la sostenibilidad\"),SUM('Instituciones-crédito'!B133:H133),0),IF(AND('Base-datos'!$B$740=\"Sí\",'Base-datos'!$B$741=\"Sí\",'Base-datos'!$B$742=\"Sí\"),IF(AND('Instituciones-crédito'!J133=\"La actividad sí contribuye sustancialmente a la sostenibilidad\",'Instituciones-crédito'!K133=\"La actividad sí contribuye sustancialmente a la sostenibilidad\",'Instituciones-crédito'!I133=\"La actividad sí contribuye sustancialmente a la sostenibilidad\"),SUM('Instituciones-crédito'!B133:H133),0),IF(AND('Base-datos'!$B$740=\"\",'Base-datos'!$B$741=\"Sí\",'Base-datos'!$B$742=\"\"),IF('Instituciones-crédito'!K133=\"La actividad sí contribuye sustancialmente a la sostenibilidad\",SUM('Instituciones-crédito'!B133:H133),0),IF(AND('Base-datos'!$B$740=\"\",'Base-datos'!$B$741=\"\",'Base-datos'!$B$742=\"Sí\"),IF('Instituciones-crédito'!I133=\"La actividad sí contribuye sustancialmente a la sostenibilidad\",SUM('Instituciones-crédito'!B133:H133),0),IF(AND('Base-datos'!$B$740=\"\",'Base-datos'!$B$741=\"Sí\",'Base-datos'!$B$742=\"Sí\"),IF(AND('Instituciones-crédito'!K133=\"La actividad sí contribuye sustancialmente a la sostenibilidad\",'Instituciones-crédito'!I133=\"La actividad sí contribuye sustancialmente a la sostenibilidad\"),SUM('Instituciones-crédito'!B133:H133),0),IF(AND('Base-datos'!$B$740=\"Sí\",'Base-datos'!$B$741=\"\",'Base-datos'!$B$742=\"Sí\"),IF(AND('Instituciones-crédito'!J133=\"La actividad sí contribuye sustancialmente a la sostenibilidad\",'Instituciones-crédito'!I133=\"La actividad sí contribuye sustancialmente a la sostenibilidad\"),SUM('Instituciones-crédito'!B133:H133),0),\"Por definir\"))))))))","v":"Por definir"}]
[{"$f":"Construcción!$C40","v":"Seleccione"},{"$f":"IF(Construcción!$E40='Instituciones-crédito'!B$12,Construcción!$B40,\"\")","v":""},{"$f":"IF(Construcción!$E40='Instituciones-crédito'!C$12,Construcción!$B40,\"\")","v":""},{"$f":"IF(Construcción!$E40='Instituciones-crédito'!D$12,Construcción!$B40,\"\")","v":""},{"$f":"IF(Construcción!$E40='Instituciones-crédito'!E$12,Construcción!$B40,\"\")","v":""},{"$f":"IF(Construcción!$E40='Instituciones-crédito'!F$12,Construcción!$B40,\"\")","v":""},{"$f":"IF(Construcción!$E40='Instituciones-crédito'!G$12,Construcción!$B40,\"\")","v":""},{"$f":"IF(Construcción!$E40='Instituciones-crédito'!H$12,Construcción!$B40,\"\")","v":""},{"$f":"_xlfn.XLOOKUP(A134,'Base-datos'!$B$537:$B$546,'Base-datos'!$F$537:$F$546)","v":{"$error":"#N/A"}},{"$f":"_xlfn.XLOOKUP(A134,'Base-datos'!$B$537:$B$546,'Base-datos'!$C$537:$C$546)","v":{"$error":"#N/A"}},{"$f":"_xlfn.XLOOKUP(A134,'Base-datos'!$B$537:$B$546,'Base-datos'!$D$537:$D$546)","v":{"$error":"#N/A"}},null,null,{"$f":"IF(OR($L$119=\"La actividad no cumple con el total de los criterios de No Daño Significativo\",$M$119=\"El sector no cumple con las salvaguardas mínimas\"),\"\",IF(AND('Base-datos'!$B$740=\"Sí\",'Base-datos'!$B$741=\"\",'Base-datos'!$B$742=\"\"),IF('Instituciones-crédito'!J134=\"La actividad sí contribuye sustancialmente a la sostenibilidad\",SUM('Instituciones-crédito'!B134:H134),0),IF(AND('Base-datos'!$B$740=\"Sí\",'Base-datos'!$B$741=\"Sí\",'Base-datos'!$B$742=\"\"),IF(AND('Instituciones-crédito'!J134=\"La actividad sí contribuye sustancialmente a la sostenibilidad\",'Instituciones-crédito'!K134=\"La actividad sí contribuye sustancialmente a la sostenibilidad\"),SUM('Instituciones-crédito'!B134:H134),0),IF(AND('Base-datos'!$B$740=\"Sí\",'Base-datos'!$B$741=\"Sí\",'Base-datos'!$B$742=\"Sí\"),IF(AND('Instituciones-crédito'!J134=\"La actividad sí contribuye sustancialmente a la sostenibilidad\",'Instituciones-crédito'!K134=\"La actividad sí contribuye sustancialmente a la sostenibilidad\",'Instituciones-crédito'!I134=\"La actividad sí contribuye sustancialmente a la sostenibilidad\"),SUM('Instituciones-crédito'!B134:H134),0),IF(AND('Base-datos'!$B$740=\"\",'Base-datos'!$B$741=\"Sí\",'Base-datos'!$B$742=\"\"),IF('Instituciones-crédito'!K134=\"La actividad sí contribuye sustancialmente a la sostenibilidad\",SUM('Instituciones-crédito'!B134:H134),0),IF(AND('Base-datos'!$B$740=\"\",'Base-datos'!$B$741=\"\",'Base-datos'!$B$742=\"Sí\"),IF('Instituciones-crédito'!I134=\"La actividad sí contribuye sustancialmente a la sostenibilidad\",SUM('Instituciones-crédito'!B134:H134),0),IF(AND('Base-datos'!$B$740=\"\",'Base-datos'!$B$741=\"Sí\",'Base-datos'!$B$742=\"Sí\"),IF(AND('Instituciones-crédito'!K134=\"La actividad sí contribuye sustancialmente a la sostenibilidad\",'Instituciones-crédito'!I134=\"La actividad sí contribuye sustancialmente a la sostenibilidad\"),SUM('Instituciones-crédito'!B134:H134),0),IF(AND('Base-datos'!$B$740=\"Sí\",'Base-datos'!$B$741=\"\",'Base-datos'!$B$742=\"Sí\"),IF(AND('Instituciones-crédito'!J134=\"La actividad sí contribuye sustancialmente a la sostenibilidad\",'Instituciones-crédito'!I134=\"La actividad sí contribuye sustancialmente a la sostenibilidad\"),SUM('Instituciones-crédito'!B134:H134),0),\"Por definir\"))))))))","v":"Por definir"}]
[{"$f":"Construcción!$C42","v":"Seleccione"},{"$f":"IF(Construcción!$E42='Instituciones-crédito'!B$12,Construcción!$B42,\"\")","v":""},{"$f":"IF(Construcción!$E42='Instituciones-crédito'!C$12,Construcción!$B42,\"\")","v":""},{"$f":"IF(Construcción!$E42='Instituciones-crédito'!D$12,Construcción!$B42,\"\")","v":""},{"$f":"IF(Construcción!$E42='Instituciones-crédito'!E$12,Construcción!$B42,\"\")","v":""},{"$f":"IF(Construcción!$E42='Instituciones-crédito'!F$12,Construcción!$B42,\"\")","v":""},{"$f":"IF(Construcción!$E42='Instituciones-crédito'!G$12,Construcción!$B42,\"\")","v":""},{"$f":"IF(Construcción!$E42='Instituciones-crédito'!H$12,Construcción!$B42,\"\")","v":""},{"$f":"_xlfn.XLOOKUP(A135,'Base-datos'!$B$537:$B$546,'Base-datos'!$F$537:$F$546)","v":{"$error":"#N/A"}},{"$f":"_xlfn.XLOOKUP(A135,'Base-datos'!$B$537:$B$546,'Base-datos'!$C$537:$C$546)","v":{"$error":"#N/A"}},{"$f":"_xlfn.XLOOKUP(A135,'Base-datos'!$B$537:$B$546,'Base-datos'!$D$537:$D$546)","v":{"$error":"#N/A"}},null,null,{"$f":"IF(OR($L$119=\"La actividad no cumple con el total de los criterios de No Daño Significativo\",$M$119=\"El sector no cumple con las salvaguardas mínimas\"),\"\",IF(AND('Base-datos'!$B$740=\"Sí\",'Base-datos'!$B$741=\"\",'Base-datos'!$B$742=\"\"),IF('Instituciones-crédito'!J135=\"La actividad sí contribuye sustancialmente a la sostenibilidad\",SUM('Instituciones-crédito'!B135:H135),0),IF(AND('Base-datos'!$B$740=\"Sí\",'Base-datos'!$B$741=\"Sí\",'Base-datos'!$B$742=\"\"),IF(AND('Instituciones-crédito'!J135=\"La actividad sí contribuye sustancialmente a la sostenibilidad\",'Instituciones-crédito'!K135=\"La actividad sí contribuye sustancialmente a la sostenibilidad\"),SUM('Instituciones-crédito'!B135:H135),0),IF(AND('Base-datos'!$B$740=\"Sí\",'Base-datos'!$B$741=\"Sí\",'Base-datos'!$B$742=\"Sí\"),IF(AND('Instituciones-crédito'!J135=\"La actividad sí contribuye sustancialmente a la sostenibilidad\",'Instituciones-crédito'!K135=\"La actividad sí contribuye sustancialmente a la sostenibilidad\",'Instituciones-crédito'!I135=\"La actividad sí contribuye sustancialmente a la sostenibilidad\"),SUM('Instituciones-crédito'!B135:H135),0),IF(AND('Base-datos'!$B$740=\"\",'Base-datos'!$B$741=\"Sí\",'Base-datos'!$B$742=\"\"),IF('Instituciones-crédito'!K135=\"La actividad sí contribuye sustancialmente a la sostenibilidad\",SUM('Instituciones-crédito'!B135:H135),0),IF(AND('Base-datos'!$B$740=\"\",'Base-datos'!$B$741=\"\",'Base-datos'!$B$742=\"Sí\"),IF('Instituciones-crédito'!I135=\"La actividad sí contribuye sustancialmente a la sostenibilidad\",SUM('Instituciones-crédito'!B135:H135),0),IF(AND('Base-datos'!$B$740=\"\",'Base-datos'!$B$741=\"Sí\",'Base-datos'!$B$742=\"Sí\"),IF(AND('Instituciones-crédito'!K135=\"La actividad sí contribuye sustancialmente a la sostenibilidad\",'Instituciones-crédito'!I135=\"La actividad sí contribuye sustancialmente a la sostenibilidad\"),SUM('Instituciones-crédito'!B135:H135),0),IF(AND('Base-datos'!$B$740=\"Sí\",'Base-datos'!$B$741=\"\",'Base-datos'!$B$742=\"Sí\"),IF(AND('Instituciones-crédito'!J135=\"La actividad sí contribuye sustancialmente a la sostenibilidad\",'Instituciones-crédito'!I135=\"La actividad sí contribuye sustancialmente a la sostenibilidad\"),SUM('Instituciones-crédito'!B135:H135),0),\"Por definir\"))))))))","v":"Por definir"}]
[{"$f":"Construcción!$C44","v":"Seleccione"},{"$f":"IF(Construcción!$E44='Instituciones-crédito'!B$12,Construcción!$B44,\"\")","v":""},{"$f":"IF(Construcción!$E44='Instituciones-crédito'!C$12,Construcción!$B44,\"\")","v":""},{"$f":"IF(Construcción!$E44='Instituciones-crédito'!D$12,Construcción!$B44,\"\")","v":""},{"$f":"IF(Construcción!$E44='Instituciones-crédito'!E$12,Construcción!$B44,\"\")","v":""},{"$f":"IF(Construcción!$E44='Instituciones-crédito'!F$12,Construcción!$B44,\"\")","v":""},{"$f":"IF(Construcción!$E44='Instituciones-crédito'!G$12,Construcción!$B44,\"\")","v":""},{"$f":"IF(Construcción!$E44='Instituciones-crédito'!H$12,Construcción!$B44,\"\")","v":""},{"$f":"_xlfn.XLOOKUP(A136,'Base-datos'!$B$537:$B$546,'Base-datos'!$F$537:$F$546)","v":{"$error":"#N/A"}},{"$f":"_xlfn.XLOOKUP(A136,'Base-datos'!$B$537:$B$546,'Base-datos'!$C$537:$C$546)","v":{"$error":"#N/A"}},{"$f":"_xlfn.XLOOKUP(A136,'Base-datos'!$B$537:$B$546,'Base-datos'!$D$537:$D$546)","v":{"$error":"#N/A"}},null,null,{"$f":"IF(OR($L$119=\"La actividad no cumple con el total de los criterios de No Daño Significativo\",$M$119=\"El sector no cumple con las salvaguardas mínimas\"),\"\",IF(AND('Base-datos'!$B$740=\"Sí\",'Base-datos'!$B$741=\"\",'Base-datos'!$B$742=\"\"),IF('Instituciones-crédito'!J136=\"La actividad sí contribuye sustancialmente a la sostenibilidad\",SUM('Instituciones-crédito'!B136:H136),0),IF(AND('Base-datos'!$B$740=\"Sí\",'Base-datos'!$B$741=\"Sí\",'Base-datos'!$B$742=\"\"),IF(AND('Instituciones-crédito'!J136=\"La actividad sí contribuye sustancialmente a la sostenibilidad\",'Instituciones-crédito'!K136=\"La actividad sí contribuye sustancialmente a la sostenibilidad\"),SUM('Instituciones-crédito'!B136:H136),0),IF(AND('Base-datos'!$B$740=\"Sí\",'Base-datos'!$B$741=\"Sí\",'Base-datos'!$B$742=\"Sí\"),IF(AND('Instituciones-crédito'!J136=\"La actividad sí contribuye sustancialmente a la sostenibilidad\",'Instituciones-crédito'!K136=\"La actividad sí contribuye sustancialmente a la sostenibilidad\",'Instituciones-crédito'!I136=\"La actividad sí contribuye sustancialmente a la sostenibilidad\"),SUM('Instituciones-crédito'!B136:H136),0),IF(AND('Base-datos'!$B$740=\"\",'Base-datos'!$B$741=\"Sí\",'Base-datos'!$B$742=\"\"),IF('Instituciones-crédito'!K136=\"La actividad sí contribuye sustancialmente a la sostenibilidad\",SUM('Instituciones-crédito'!B136:H136),0),IF(AND('Base-datos'!$B$740=\"\",'Base-datos'!$B$741=\"\",'Base-datos'!$B$742=\"Sí\"),IF('Instituciones-crédito'!I136=\"La actividad sí contribuye sustancialmente a la sostenibilidad\",SUM('Instituciones-crédito'!B136:H136),0),IF(AND('Base-datos'!$B$740=\"\",'Base-datos'!$B$741=\"Sí\",'Base-datos'!$B$742=\"Sí\"),IF(AND('Instituciones-crédito'!K136=\"La actividad sí contribuye sustancialmente a la sostenibilidad\",'Instituciones-crédito'!I136=\"La actividad sí contribuye sustancialmente a la sostenibilidad\"),SUM('Instituciones-crédito'!B136:H136),0),IF(AND('Base-datos'!$B$740=\"Sí\",'Base-datos'!$B$741=\"\",'Base-datos'!$B$742=\"Sí\"),IF(AND('Instituciones-crédito'!J136=\"La actividad sí contribuye sustancialmente a la sostenibilidad\",'Instituciones-crédito'!I136=\"La actividad sí contribuye sustancialmente a la sostenibilidad\"),SUM('Instituciones-crédito'!B136:H136),0),\"Por definir\"))))))))","v":"Por definir"}]
[{"$f":"Construcción!$C46","v":"Seleccione"},{"$f":"IF(Construcción!$E46='Instituciones-crédito'!B$12,Construcción!$B46,\"\")","v":""},{"$f":"IF(Construcción!$E46='Instituciones-crédito'!C$12,Construcción!$B46,\"\")","v":""},{"$f":"IF(Construcción!$E46='Instituciones-crédito'!D$12,Construcción!$B46,\"\")","v":""},{"$f":"IF(Construcción!$E46='Instituciones-crédito'!E$12,Construcción!$B46,\"\")","v":""},{"$f":"IF(Construcción!$E46='Instituciones-crédito'!F$12,Construcción!$B46,\"\")","v":""},{"$f":"IF(Construcción!$E46='Instituciones-crédito'!G$12,Construcción!$B46,\"\")","v":""},{"$f":"IF(Construcción!$E46='Instituciones-crédito'!H$12,Construcción!$B46,\"\")","v":""},{"$f":"_xlfn.XLOOKUP(A137,'Base-datos'!$B$537:$B$546,'Base-datos'!$F$537:$F$546)","v":{"$error":"#N/A"}},{"$f":"_xlfn.XLOOKUP(A137,'Base-datos'!$B$537:$B$546,'Base-datos'!$C$537:$C$546)","v":{"$error":"#N/A"}},{"$f":"_xlfn.XLOOKUP(A137,'Base-datos'!$B$537:$B$546,'Base-datos'!$D$537:$D$546)","v":{"$error":"#N/A"}},null,null,{"$f":"IF(OR($L$119=\"La actividad no cumple con el total de los criterios de No Daño Significativo\",$M$119=\"El sector no cumple con las salvaguardas mínimas\"),\"\",IF(AND('Base-datos'!$B$740=\"Sí\",'Base-datos'!$B$741=\"\",'Base-datos'!$B$742=\"\"),IF('Instituciones-crédito'!J137=\"La actividad sí contribuye sustancialmente a la sostenibilidad\",SUM('Instituciones-crédito'!B137:H137),0),IF(AND('Base-datos'!$B$740=\"Sí\",'Base-datos'!$B$741=\"Sí\",'Base-datos'!$B$742=\"\"),IF(AND('Instituciones-crédito'!J137=\"La actividad sí contribuye sustancialmente a la sostenibilidad\",'Instituciones-crédito'!K137=\"La actividad sí contribuye sustancialmente a la sostenibilidad\"),SUM('Instituciones-crédito'!B137:H137),0),IF(AND('Base-datos'!$B$740=\"Sí\",'Base-datos'!$B$741=\"Sí\",'Base-datos'!$B$742=\"Sí\"),IF(AND('Instituciones-crédito'!J137=\"La actividad sí contribuye sustancialmente a la sostenibilidad\",'Instituciones-crédito'!K137=\"La actividad sí contribuye sustancialmente a la sostenibilidad\",'Instituciones-crédito'!I137=\"La actividad sí contribuye sustancialmente a la sostenibilidad\"),SUM('Instituciones-crédito'!B137:H137),0),IF(AND('Base-datos'!$B$740=\"\",'Base-datos'!$B$741=\"Sí\",'Base-datos'!$B$742=\"\"),IF('Instituciones-crédito'!K137=\"La actividad sí contribuye sustancialmente a la sostenibilidad\",SUM('Instituciones-crédito'!B137:H137),0),IF(AND('Base-datos'!$B$740=\"\",'Base-datos'!$B$741=\"\",'Base-datos'!$B$742=\"Sí\"),IF('Instituciones-crédito'!I137=\"La actividad sí contribuye sustancialmente a la sostenibilidad\",SUM('Instituciones-crédito'!B137:H137),0),IF(AND('Base-datos'!$B$740=\"\",'Base-datos'!$B$741=\"Sí\",'Base-datos'!$B$742=\"Sí\"),IF(AND('Instituciones-crédito'!K137=\"La actividad sí contribuye sustancialmente a la sostenibilidad\",'Instituciones-crédito'!I137=\"La actividad sí contribuye sustancialmente a la sostenibilidad\"),SUM('Instituciones-crédito'!B137:H137),0),IF(AND('Base-datos'!$B$740=\"Sí\",'Base-datos'!$B$741=\"\",'Base-datos'!$B$742=\"Sí\"),IF(AND('Instituciones-crédito'!J137=\"La actividad sí contribuye sustancialmente a la sostenibilidad\",'Instituciones-crédito'!I137=\"La actividad sí contribuye sustancialmente a la sostenibilidad\"),SUM('Instituciones-crédito'!B137:H137),0),\"Por definir\"))))))))","v":"Por definir"}]
[{"$f":"Construcción!$C48","v":"Seleccione"},{"$f":"IF(Construcción!$E48='Instituciones-crédito'!B$12,Construcción!$B48,\"\")","v":""},{"$f":"IF(Construcción!$E48='Instituciones-crédito'!C$12,Construcción!$B48,\"\")","v":""},{"$f":"IF(Construcción!$E48='Instituciones-crédito'!D$12,Construcción!$B48,\"\")","v":""},{"$f":"IF(Construcción!$E48='Instituciones-crédito'!E$12,Construcción!$B48,\"\")","v":""},{"$f":"IF(Construcción!$E48='Instituciones-crédito'!F$12,Construcción!$B48,\"\")","v":""},{"$f":"IF(Construcción!$E48='Instituciones-crédito'!G$12,Construcción!$B48,\"\")","v":""},{"$f":"IF(Construcción!$E48='Instituciones-crédito'!H$12,Construcción!$B48,\"\")","v":""},{"$f":"_xlfn.XLOOKUP(A138,'Base-datos'!$B$537:$B$546,'Base-datos'!$F$537:$F$546)","v":{"$error":"#N/A"}},{"$f":"_xlfn.XLOOKUP(A138,'Base-datos'!$B$537:$B$546,'Base-datos'!$C$537:$C$546)","v":{"$error":"#N/A"}},{"$f":"_xlfn.XLOOKUP(A138,'Base-datos'!$B$537:$B$546,'Base-datos'!$D$537:$D$546)","v":{"$error":"#N/A"}},null,null,{"$f":"IF(OR($L$119=\"La actividad no cumple con el total de los criterios de No Daño Significativo\",$M$119=\"El sector no cumple con las salvaguardas mínimas\"),\"\",IF(AND('Base-datos'!$B$740=\"Sí\",'Base-datos'!$B$741=\"\",'Base-datos'!$B$742=\"\"),IF('Instituciones-crédito'!J138=\"La actividad sí contribuye sustancialmente a la sostenibilidad\",SUM('Instituciones-crédito'!B138:H138),0),IF(AND('Base-datos'!$B$740=\"Sí\",'Base-datos'!$B$741=\"Sí\",'Base-datos'!$B$742=\"\"),IF(AND('Instituciones-crédito'!J138=\"La actividad sí contribuye sustancialmente a la sostenibilidad\",'Instituciones-crédito'!K138=\"La actividad sí contribuye sustancialmente a la sostenibilidad\"),SUM('Instituciones-crédito'!B138:H138),0),IF(AND('Base-datos'!$B$740=\"Sí\",'Base-datos'!$B$741=\"Sí\",'Base-datos'!$B$742=\"Sí\"),IF(AND('Instituciones-crédito'!J138=\"La actividad sí contribuye sustancialmente a la sostenibilidad\",'Instituciones-crédito'!K138=\"La actividad sí contribuye sustancialmente a la sostenibilidad\",'Instituciones-crédito'!I138=\"La actividad sí contribuye sustancialmente a la sostenibilidad\"),SUM('Instituciones-crédito'!B138:H138),0),IF(AND('Base-datos'!$B$740=\"\",'Base-datos'!$B$741=\"Sí\",'Base-datos'!$B$742=\"\"),IF('Instituciones-crédito'!K138=\"La actividad sí contribuye sustancialmente a la sostenibilidad\",SUM('Instituciones-crédito'!B138:H138),0),IF(AND('Base-datos'!$B$740=\"\",'Base-datos'!$B$741=\"\",'Base-datos'!$B$742=\"Sí\"),IF('Instituciones-crédito'!I138=\"La actividad sí contribuye sustancialmente a la sostenibilidad\",SUM('Instituciones-crédito'!B138:H138),0),IF(AND('Base-datos'!$B$740=\"\",'Base-datos'!$B$741=\"Sí\",'Base-datos'!$B$742=\"Sí\"),IF(AND('Instituciones-crédito'!K138=\"La actividad sí contribuye sustancialmente a la sostenibilidad\",'Instituciones-crédito'!I138=\"La actividad sí contribuye sustancialmente a la sostenibilidad\"),SUM('Instituciones-crédito'!B138:H138),0),IF(AND('Base-datos'!$B$740=\"Sí\",'Base-datos'!$B$741=\"\",'Base-datos'!$B$742=\"Sí\"),IF(AND('Instituciones-crédito'!J138=\"La actividad sí contribuye sustancialmente a la sostenibilidad\",'Instituciones-crédito'!I138=\"La actividad sí contribuye sustancialmente a la sostenibilidad\"),SUM('Instituciones-crédito'!B138:H138),0),\"Por definir\"))))))))","v":"Por definir"}]
["Manufactura",null,null,null,null,null,null,null,null,null,null,null,null,{"$f":"SUM(IF(FREQUENCY(MATCH(A140:A159, A140:A159, 0), MATCH(A140:A159, A140:A159, 0)) > 0, IF(NOT(ISERROR(N140:N159)), N140:N159, 0)))","v":0}]
[{"$f":"Manufactura!$C10","v":"Seleccione"},{"$f":"IF(Manufactura!$E10='Instituciones-crédito'!B$12,Manufactura!$B10,\"\")","v":""},{"$f":"IF(Manufactura!$E10='Instituciones-crédito'!C$12,Manufactura!$B10,\"\")","v":""},{"$f":"IF(Manufactura!$E10='Instituciones-crédito'!D$12,Manufactura!$B10,\"\")","v":""},{"$f":"IF(Manufactura!$E10='Instituciones-crédito'!E$12,Manufactura!$B10,\"\")","v":""},{"$f":"IF(Manufactura!$E10='Instituciones-crédito'!F$12,Manufactura!$B10,\"\")","v":""},{"$f":"IF(Manufactura!$E10='Instituciones-crédito'!G$12,Manufactura!$B10,\"\")","v":""},{"$f":"IF(Manufactura!$E10='Instituciones-crédito'!H$12,Manufactura!$B10,\"\")","v":""},{"$f":"_xlfn.XLOOKUP(A140,'Base-datos'!$B$547:$B$552,'Base-datos'!$F$547:$F$552)","v":{"$error":"#N/A"}},{"$f":"_xlfn.XLOOKUP(A140,'Base-datos'!$B$547:$B$552,'Base-datos'!$C$547:$C$552)","v":{"$error":"#N/A"}},{"$f":"_xlfn.XLOOKUP(A140,'Base-datos'!$B$547:$B$552,'Base-datos'!$D$547:$D$552)","v":{"$error":"#N/A"}},{"$f":"IF(COUNTIF('Manufactura-NDS'!G9:G85,\"No\")>0,\"La actividad no cumple con el total de los criterios de NDS\",\"La actividad cumple con los criterios de No Daño Significativo\")","v":"La actividad cumple con los criterios de No Daño Significativo"},{"$f":"IF(OR('Salvaguardas mínimas'!$G$10=\"Seleccione\",'Salvaguardas mínimas'!$G$13=\"Seleccione\",'Salvaguardas mínimas'!$G$16=\"Seleccione\",'Salvaguardas mínimas'!$G$7=\"Seleccione\"),\"No se han respondido todas las preguntas\",IF(OR('Salvaguardas mínimas'!$G$10=\"No\",'Salvaguardas mínimas'!$G$13=\"No\",'Salvaguardas mínimas'!$G$16=\"No\",'Salvaguardas mínimas'!$G$7=\"No\"),\"El sector no cumple con las salvaguardas mínimas\",\"La actividad sí cumple con las salvaguardas mínimas\"))","v":"No se han respondido todas las preguntas"},{"$f":"IF(OR($L$140=\"La actividad no cumple con el total de los criterios de No Daño Significativo\",$M$140=\"El sector no cumple con las salvaguardas mínimas\"),\"\",IF(AND('Base-datos'!$B$745=\"Sí\",'Base-datos'!$B$746=\"\",'Base-datos'!$B$747=\"\"),IF('Instituciones-crédito'!J140=\"La actividad sí contribuye sustancialmente a la sostenibilidad\",SUM('Instituciones-crédito'!B140:H140),0),IF(AND('Base-datos'!$B$745=\"Sí\",'Base-datos'!$B$746=\"Sí\",'Base-datos'!$B$747=\"\"),IF(AND('Instituciones-crédito'!J140=\"La actividad sí contribuye sustancialmente a la sostenibilidad\",'Instituciones-crédito'!K140=\"La actividad sí contribuye sustancialmente a la sostenibilidad\"),SUM('Instituciones-crédito'!B140:H140),0),IF(AND('Base-datos'!$B$745=\"Sí\",'Base-datos'!$B$746=\"Sí\",'Base-datos'!$B$747=\"Sí\"),IF(AND('Instituciones-crédito'!J140=\"La actividad sí contribuye sustancialmente a la sostenibilidad\",'Instituciones-crédito'!K140=\"La actividad sí contribuye sustancialmente a la sostenibilidad\",'Instituciones-crédito'!I140=\"La actividad sí contribuye sustancialmente a la sostenibilidad\"),SUM('Instituciones-crédito'!B140:H140),0),IF(AND('Base-datos'!$B$745=\"\",'Base-datos'!$B$746=\"Sí\",'Base-datos'!$B$747=\"\"),IF('Instituciones-crédito'!K140=\"La actividad sí contribuye sustancialmente a la sostenibilidad\",SUM('Instituciones-crédito'!B140:H140),0),IF(AND('Base-datos'!$B$745=\"\",'Base-datos'!$B$746=\"\",'Base-datos'!$B$747=\"Sí\"),IF('Instituciones-crédito'!I140=\"La actividad sí contribuye sustancialmente a la sostenibilidad\",SUM('Instituciones-crédito'!B140:H140),0),IF(AND('Base-datos'!$B$745=\"\",'Base-datos'!$B$746=\"Sí\",'Base-datos'!$B$747=\"Sí\"),IF(AND('Instituciones-crédito'!K140=\"La actividad sí contribuye sustancialmente a la sostenibilidad\",'Instituciones-crédito'!I140=\"La actividad sí contribuye sustancialmente a la sostenibilidad\"),SUM('Instituciones-crédito'!B140:H140),0),IF(AND('Base-datos'!$B$745=\"Sí\",'Base-datos'!$B$746=\"\",'Base-datos'!$B$747=\"Sí\"),IF(AND('Instituciones-crédito'!J140=\"La actividad sí contribuye sustancialmente a la sostenibilidad\",'Instituciones-crédito'!I140=\"La actividad sí contribuye sustancialmente a la sostenibilidad\"),SUM('Instituciones-crédito'!B140:H140),0),\"Por definir\"))))))))","v":"Por definir"}]
[{"$f":"Manufactura!$C12","v":"Seleccione"},{"$f":"IF(Manufactura!$E12='Instituciones-crédito'!B$12,Manufactura!$B12,\"\")","v":""},{"$f":"IF(Manufactura!$E12='Instituciones-crédito'!C$12,Manufactura!$B12,\"\")","v":""},{"$f":"IF(Manufactura!$E12='Instituciones-crédito'!D$12,Manufactura!$B12,\"\")","v":""},{"$f":"IF(Manufactura!$E12='Instituciones-crédito'!E$12,Manufactura!$B12,\"\")","v":""},{"$f":"IF(Manufactura!$E12='Instituciones-crédito'!F$12,Manufactura!$B12,\"\")","v":""},{"$f":"IF(Manufactura!$E12='Instituciones-crédito'!G$12,Manufactura!$B12,\"\")","v":""},{"$f":"IF(Manufactura!$E12='Instituciones-crédito'!H$12,Manufactura!$B12,\"\")","v":""},{"$f":"_xlfn.XLOOKUP(A141,'Base-datos'!$B$547:$B$552,'Base-datos'!$F$547:$F$552)","v":{"$error":"#N/A"}},{"$f":"_xlfn.XLOOKUP(A141,'Base-datos'!$B$547:$B$552,'Base-datos'!$C$547:$C$552)","v":{"$error":"#N/A"}},{"$f":"_xlfn.XLOOKUP(A141,'Base-datos'!$B$547:$B$552,'Base-datos'!$D$547:$D$552)","v":{"$error":"#N/A"}},null,null,{"$f":"IF(OR($L$140=\"La actividad no cumple con el total de los criterios de No Daño Significativo\",$M$140=\"El sector no cumple con las salvaguardas mínimas\"),\"\",IF(AND('Base-datos'!$B$745=\"Sí\",'Base-datos'!$B$746=\"\",'Base-datos'!$B$747=\"\"),IF('Instituciones-crédito'!J141=\"La actividad sí contribuye sustancialmente a la sostenibilidad\",SUM('Instituciones-crédito'!B141:H141),0),IF(AND('Base-datos'!$B$745=\"Sí\",'Base-datos'!$B$746=\"Sí\",'Base-datos'!$B$747=\"\"),IF(AND('Instituciones-crédito'!J141=\"La actividad sí contribuye sustancialmente a la sostenibilidad\",'Instituciones-crédito'!K141=\"La actividad sí contribuye sustancialmente a la sostenibilidad\"),SUM('Instituciones-crédito'!B141:H141),0),IF(AND('Base-datos'!$B$745=\"Sí\",'Base-datos'!$B$746=\"Sí\",'Base-datos'!$B$747=\"Sí\"),IF(AND('Instituciones-crédito'!J141=\"La actividad sí contribuye sustancialmente a la sostenibilidad\",'Instituciones-crédito'!K141=\"La actividad sí contribuye sustancialmente a la sostenibilidad\",'Instituciones-crédito'!I141=\"La actividad sí contribuye sustancialmente a la sostenibilidad\"),SUM('Instituciones-crédito'!B141:H141),0),IF(AND('Base-datos'!$B$745=\"\",'Base-datos'!$B$746=\"Sí\",'Base-datos'!$B$747=\"\"),IF('Instituciones-crédito'!K141=\"La actividad sí contribuye sustancialmente a la sostenibilidad\",SUM('Instituciones-crédito'!B141:H141),0),IF(AND('Base-datos'!$B$745=\"\",'Base-datos'!$B$746=\"\",'Base-datos'!$B$747=\"Sí\"),IF('Instituciones-crédito'!I141=\"La actividad sí contribuye sustancialmente a la sostenibilidad\",SUM('Instituciones-crédito'!B141:H141),0),IF(AND('Base-datos'!$B$745=\"\",'Base-datos'!$B$746=\"Sí\",'Base-datos'!$B$747=\"Sí\"),IF(AND('Instituciones-crédito'!K141=\"La actividad sí contribuye sustancialmente a la sostenibilidad\",'Instituciones-crédito'!I141=\"La actividad sí contribuye sustancialmente a la sostenibilidad\"),SUM('Instituciones-crédito'!B141:H141),0),IF(AND('Base-datos'!$B$745=\"Sí\",'Base-datos'!$B$746=\"\",'Base-datos'!$B$747=\"Sí\"),IF(AND('Instituciones-crédito'!J141=\"La actividad sí contribuye sustancialmente a la sostenibilidad\",'Instituciones-crédito'!I141=\"La actividad sí contribuye sustancialmente a la sostenibilidad\"),SUM('Instituciones-crédito'!B141:H141),0),\"Por definir\"))))))))","v":"Por definir"}]
[{"$f":"Manufactura!$C14","v":"Seleccione"},{"$f":"IF(Manufactura!$E14='Instituciones-crédito'!B$12,Manufactura!$B14,\"\")","v":""},{"$f":"IF(Manufactura!$E14='Instituciones-crédito'!C$12,Manufactura!$B14,\"\")","v":""},{"$f":"IF(Manufactura!$E14='Instituciones-crédito'!D$12,Manufactura!$B14,\"\")","v":""},{"$f":"IF(Manufactura!$E14='Instituciones-crédito'!E$12,Manufactura!$B14,\"\")","v":""},{"$f":"IF(Manufactura!$E14='Instituciones-crédito'!F$12,Manufactura!$B14,\"\")","v":""},{"$f":"IF(Manufactura!$E14='Instituciones-crédito'!G$12,Manufactura!$B14,\"\")","v":""},{"$f":"IF(Manufactura!$E14='Instituciones-crédito'!H$12,Manufactura!$B14,\"\")","v":""},{"$f":"_xlfn.XLOOKUP(A142,'Base-datos'!$B$547:$B$552,'Base-datos'!$F$547:$F$552)","v":{"$error":"#N/A"}},{"$f":"_xlfn.XLOOKUP(A142,'Base-datos'!$B$547:$B$552,'Base-datos'!$C$547:$C$552)","v":{"$error":"#N/A"}},{"$f":"_xlfn.XLOOKUP(A142,'Base-datos'!$B$547:$B$552,'Base-datos'!$D$547:$D$552)","v":{"$error":"#N/A"}},null,null,{"$f":"IF(OR($L$140=\"La actividad no cumple con el total de los criterios de No Daño Significativo\",$M$140=\"El sector no cumple con las salvaguardas mínimas\"),\"\",IF(AND('Base-datos'!$B$745=\"Sí\",'Base-datos'!$B$746=\"\",'Base-datos'!$B$747=\"\"),IF('Instituciones-crédito'!J142=\"La actividad sí contribuye sustancialmente a la sostenibilidad\",SUM('Instituciones-crédito'!B142:H142),0),IF(AND('Base-datos'!$B$745=\"Sí\",'Base-datos'!$B$746=\"Sí\",'Base-datos'!$B$747=\"\"),IF(AND('Instituciones-crédito'!J142=\"La actividad sí contribuye sustancialmente a la sostenibilidad\",'Instituciones-crédito'!K142=\"La actividad sí contribuye sustancialmente a la sostenibilidad\"),SUM('Instituciones-crédito'!B142:H142),0),IF(AND('Base-datos'!$B$745=\"Sí\",'Base-datos'!$B$746=\"Sí\",'Base-datos'!$B$747=\"Sí\"),IF(AND('Instituciones-crédito'!J142=\"La actividad sí contribuye sustancialmente a la sostenibilidad\",'Instituciones-crédito'!K142=\"La actividad sí contribuye sustancialmente a la sostenibilidad\",'Instituciones-crédito'!I142=\"La actividad sí contribuye sustancialmente a la sostenibilidad\"),SUM('Instituciones-crédito'!B142:H142),0),IF(AND('Base-datos'!$B$745=\"\",'Base-datos'!$B$746=\"Sí\",'Base-datos'!$B$747=\"\"),IF('Instituciones-crédito'!K142=\"La actividad sí contribuye sustancialmente a la sostenibilidad\",SUM('Instituciones-crédito'!B142:H142),0),IF(AND('Base-datos'!$B$745=\"\",'Base-datos'!$B$746=\"\",'Base-datos'!$B$747=\"Sí\"),IF('Instituciones-crédito'!I142=\"La actividad sí contribuye sustancialmente a la sostenibilidad\",SUM('Instituciones-crédito'!B142:H142),0),IF(AND('Base-datos'!$B$745=\"\",'Base-datos'!$B$746=\"Sí\",'Base-datos'!$B$747=\"Sí\"),IF(AND('Instituciones-crédito'!K142=\"La actividad sí contribuye sustancialmente a la sostenibilidad\",'Instituciones-crédito'!I142=\"La actividad sí contribuye sustancialmente a la sostenibilidad\"),SUM('Instituciones-crédito'!B142:H142),0),IF(AND('Base-datos'!$B$745=\"Sí\",'Base-datos'!$B$746=\"\",'Base-datos'!$B$747=\"Sí\"),IF(AND('Instituciones-crédito'!J142=\"La actividad sí contribuye sustancialmente a la sostenibilidad\",'Instituciones-crédito'!I142=\"La actividad sí contribuye sustancialmente a la sostenibilidad\"),SUM('Instituciones-crédito'!B142:H142),0),\"Por definir\"))))))))","v":"Por definir"}]
[{"$f":"Manufactura!$C16","v":"Seleccione"},{"$f":"IF(Manufactura!$E16='Instituciones-crédito'!B$12,Manufactura!$B16,\"\")","v":""},{"$f":"IF(Manufactura!$E16='Instituciones-crédito'!C$12,Manufactura!$B16,\"\")","v":""},{"$f":"IF(Manufactura!$E16='Instituciones-crédito'!D$12,Manufactura!$B16,\"\")","v":""},{"$f":"IF(Manufactura!$E16='Instituciones-crédito'!E$12,Manufactura!$B16,\"\")","v":""},{"$f":"IF(Manufactura!$E16='Instituciones-crédito'!F$12,Manufactura!$B16,\"\")","v":""},{"$f":"IF(Manufactura!$E16='Instituciones-crédito'!G$12,Manufactura!$B16,\"\")","v":""},{"$f":"IF(Manufactura!$E16='Instituciones-crédito'!H$12,Manufactura!$B16,\"\")","v":""},{"$f":"_xlfn.XLOOKUP(A143,'Base-datos'!$B$547:$B$552,'Base-datos'!$F$547:$F$552)","v":{"$error":"#N/A"}},{"$f":"_xlfn.XLOOKUP(A143,'Base-datos'!$B$547:$B$552,'Base-datos'!$C$547:$C$552)","v":{"$error":"#N/A"}},{"$f":"_xlfn.XLOOKUP(A143,'Base-datos'!$B$547:$B$552,'Base-datos'!$D$547:$D$552)","v":{"$error":"#N/A"}},null,null,{"$f":"IF(OR($L$140=\"La actividad no cumple con el total de los criterios de No Daño Significativo\",$M$140=\"El sector no cumple con las salvaguardas mínimas\"),\"\",IF(AND('Base-datos'!$B$745=\"Sí\",'Base-datos'!$B$746=\"\",'Base-datos'!$B$747=\"\"),IF('Instituciones-crédito'!J143=\"La actividad sí contribuye sustancialmente a la sostenibilidad\",SUM('Instituciones-crédito'!B143:H143),0),IF(AND('Base-datos'!$B$745=\"Sí\",'Base-datos'!$B$746=\"Sí\",'Base-datos'!$B$747=\"\"),IF(AND('Instituciones-crédito'!J143=\"La actividad sí contribuye sustancialmente a la sostenibilidad\",'Instituciones-crédito'!K143=\"La actividad sí contribuye sustancialmente a la sostenibilidad\"),SUM('Instituciones-crédito'!B143:H143),0),IF(AND('Base-datos'!$B$745=\"Sí\",'Base-datos'!$B$746=\"Sí\",'Base-datos'!$B$747=\"Sí\"),IF(AND('Instituciones-crédito'!J143=\"La actividad sí contribuye sustancialmente a la sostenibilidad\",'Instituciones-crédito'!K143=\"La actividad sí contribuye sustancialmente a la sostenibilidad\",'Instituciones-crédito'!I143=\"La actividad sí contribuye sustancialmente a la sostenibilidad\"),SUM('Instituciones-crédito'!B143:H143),0),IF(AND('Base-datos'!$B$745=\"\",'Base-datos'!$B$746=\"Sí\",'Base-datos'!$B$747=\"\"),IF('Instituciones-crédito'!K143=\"La actividad sí contribuye sustancialmente a la sostenibilidad\",SUM('Instituciones-crédito'!B143:H143),0),IF(AND('Base-datos'!$B$745=\"\",'Base-datos'!$B$746=\"\",'Base-datos'!$B$747=\"Sí\"),IF('Instituciones-crédito'!I143=\"La actividad sí contribuye sustancialmente a la sostenibilidad\",SUM('Instituciones-crédito'!B143:H143),0),IF(AND('Base-datos'!$B$745=\"\",'Base-datos'!$B$746=\"Sí\",'Base-datos'!$B$747=\"Sí\"),IF(AND('Instituciones-crédito'!K143=\"La actividad sí contribuye sustancialmente a la sostenibilidad\",'Instituciones-crédito'!I143=\"La actividad sí contribuye sustancialmente a la sostenibilidad\"),SUM('Instituciones-crédito'!B143:H143),0),IF(AND('Base-datos'!$B$745=\"Sí\",'Base-datos'!$B$746=\"\",'Base-datos'!$B$747=\"Sí\"),IF(AND('Instituciones-crédito'!J143=\"La actividad sí contribuye sustancialmente a la sostenibilidad\",'Instituciones-crédito'!I143=\"La actividad sí contribuye sustancialmente a la sostenibilidad\"),SUM('Instituciones-crédito'!B143:H143),0),\"Por definir\"))))))))","v":"Por definir"}]
[{"$f":"Manufactura!$C18","v":"Seleccione"},{"$f":"IF(Manufactura!$E18='Instituciones-crédito'!B$12,Manufactura!$B18,\"\")","v":""},{"$f":"IF(Manufactura!$E18='Instituciones-crédito'!C$12,Manufactura!$B18,\"\")","v":""},{"$f":"IF(Manufactura!$E18='Instituciones-crédito'!D$12,Manufactura!$B18,\"\")","v":""},{"$f":"IF(Manufactura!$E18='Instituciones-crédito'!E$12,Manufactura!$B18,\"\")","v":""},{"$f":"IF(Manufactura!$E18='Instituciones-crédito'!F$12,Manufactura!$B18,\"\")","v":""},{"$f":"IF(Manufactura!$E18='Instituciones-crédito'!G$12,Manufactura!$B18,\"\")","v":""},{"$f":"IF(Manufactura!$E18='Instituciones-crédito'!H$12,Manufactura!$B18,\"\")","v":""},{"$f":"_xlfn.XLOOKUP(A144,'Base-datos'!$B$547:$B$552,'Base-datos'!$F$547:$F$552)","v":{"$error":"#N/A"}},{"$f":"_xlfn.XLOOKUP(A144,'Base-datos'!$B$547:$B$552,'Base-datos'!$C$547:$C$552)","v":{"$error":"#N/A"}},{"$f":"_xlfn.XLOOKUP(A144,'Base-datos'!$B$547:$B$552,'Base-datos'!$D$547:$D$552)","v":{"$error":"#N/A"}},null,null,{"$f":"IF(OR($L$140=\"La actividad no cumple con el total de los criterios de No Daño Significativo\",$M$140=\"El sector no cumple con las salvaguardas mínimas\"),\"\",IF(AND('Base-datos'!$B$745=\"Sí\",'Base-datos'!$B$746=\"\",'Base-datos'!$B$747=\"\"),IF('Instituciones-crédito'!J144=\"La actividad sí contribuye sustancialmente a la sostenibilidad\",SUM('Instituciones-crédito'!B144:H144),0),IF(AND('Base-datos'!$B$745=\"Sí\",'Base-datos'!$B$746=\"Sí\",'Base-datos'!$B$747=\"\"),IF(AND('Instituciones-crédito'!J144=\"La actividad sí contribuye sustancialmente a la sostenibilidad\",'Instituciones-crédito'!K144=\"La actividad sí contribuye sustancialmente a la sostenibilidad\"),SUM('Instituciones-crédito'!B144:H144),0),IF(AND('Base-datos'!$B$745=\"Sí\",'Base-datos'!$B$746=\"Sí\",'Base-datos'!$B$747=\"Sí\"),IF(AND('Instituciones-crédito'!J144=\"La actividad sí contribuye sustancialmente a la sostenibilidad\",'Instituciones-crédito'!K144=\"La actividad sí contribuye sustancialmente a la sostenibilidad\",'Instituciones-crédito'!I144=\"La actividad sí contribuye sustancialmente a la sostenibilidad\"),SUM('Instituciones-crédito'!B144:H144),0),IF(AND('Base-datos'!$B$745=\"\",'Base-datos'!$B$746=\"Sí\",'Base-datos'!$B$747=\"\"),IF('Instituciones-crédito'!K144=\"La actividad sí contribuye sustancialmente a la sostenibilidad\",SUM('Instituciones-crédito'!B144:H144),0),IF(AND('Base-datos'!$B$745=\"\",'Base-datos'!$B$746=\"\",'Base-datos'!$B$747=\"Sí\"),IF('Instituciones-crédito'!I144=\"La actividad sí contribuye sustancialmente a la sostenibilidad\",SUM('Instituciones-crédito'!B144:H144),0),IF(AND('Base-datos'!$B$745=\"\",'Base-datos'!$B$746=\"Sí\",'Base-datos'!$B$747=\"Sí\"),IF(AND('Instituciones-crédito'!K144=\"La actividad sí contribuye sustancialmente a la sostenibilidad\",'Instituciones-crédito'!I144=\"La actividad sí contribuye sustancialmente a la sostenibilidad\"),SUM('Instituciones-crédito'!B144:H144),0),IF(AND('Base-datos'!$B$745=\"Sí\",'Base-datos'!$B$746=\"\",'Base-datos'!$B$747=\"Sí\"),IF(AND('Instituciones-crédito'!J144=\"La actividad sí contribuye sustancialmente a la sostenibilidad\",'Instituciones-crédito'!I144=\"La actividad sí contribuye sustancialmente a la sostenibilidad\"),SUM('Instituciones-crédito'!B144:H144),0),\"Por definir\"))))))))","v":"Por definir"}]
[{"$f":"Manufactura!$C20","v":"Seleccione"},{"$f":"IF(Manufactura!$E20='Instituciones-crédito'!B$12,Manufactura!$B20,\"\")","v":""},{"$f":"IF(Manufactura!$E20='Instituciones-crédito'!C$12,Manufactura!$B20,\"\")","v":""},{"$f":"IF(Manufactura!$E20='Instituciones-crédito'!D$12,Manufactura!$B20,\"\")","v":""},{"$f":"IF(Manufactura!$E20='Instituciones-crédito'!E$12,Manufactura!$B20,\"\")","v":""},{"$f":"IF(Manufactura!$E20='Instituciones-crédito'!F$12,Manufactura!$B20,\"\")","v":""},{"$f":"IF(Manufactura!$E20='Instituciones-crédito'!G$12,Manufactura!$B20,\"\")","v":""},{"$f":"IF(Manufactura!$E20='Instituciones-crédito'!H$12,Manufactura!$B20,\"\")","v":""},{"$f":"_xlfn.XLOOKUP(A145,'Base-datos'!$B$547:$B$552,'Base-datos'!$F$547:$F$552)","v":{"$error":"#N/A"}},{"$f":"_xlfn.XLOOKUP(A145,'Base-datos'!$B$547:$B$552,'Base-datos'!$C$547:$C$552)","v":{"$error":"#N/A"}},{"$f":"_xlfn.XLOOKUP(A145,'Base-datos'!$B$547:$B$552,'Base-datos'!$D$547:$D$552)","v":{"$error":"#N/A"}},null,null,{"$f":"IF(OR($L$140=\"La actividad no cumple con el total de los criterios de No Daño Significativo\",$M$140=\"El sector no cumple con las salvaguardas mínimas\"),\"\",IF(AND('Base-datos'!$B$745=\"Sí\",'Base-datos'!$B$746=\"\",'Base-datos'!$B$747=\"\"),IF('Instituciones-crédito'!J145=\"La actividad sí contribuye sustancialmente a la sostenibilidad\",SUM('Instituciones-crédito'!B145:H145),0),IF(AND('Base-datos'!$B$745=\"Sí\",'Base-datos'!$B$746=\"Sí\",'Base-datos'!$B$747=\"\"),IF(AND('Instituciones-crédito'!J145=\"La actividad sí contribuye sustancialmente a la sostenibilidad\",'Instituciones-crédito'!K145=\"La actividad sí contribuye sustancialmente a la sostenibilidad\"),SUM('Instituciones-crédito'!B145:H145),0),IF(AND('Base-datos'!$B$745=\"Sí\",'Base-datos'!$B$746=\"Sí\",'Base-datos'!$B$747=\"Sí\"),IF(AND('Instituciones-crédito'!J145=\"La actividad sí contribuye sustancialmente a la sostenibilidad\",'Instituciones-crédito'!K145=\"La actividad sí contribuye sustancialmente a la sostenibilidad\",'Instituciones-crédito'!I145=\"La actividad sí contribuye sustancialmente a la sostenibilidad\"),SUM('Instituciones-crédito'!B145:H145),0),IF(AND('Base-datos'!$B$745=\"\",'Base-datos'!$B$746=\"Sí\",'Base-datos'!$B$747=\"\"),IF('Instituciones-crédito'!K145=\"La actividad sí contribuye sustancialmente a la sostenibilidad\",SUM('Instituciones-crédito'!B145:H145),0),IF(AND('Base-datos'!$B$745=\"\",'Base-datos'!$B$746=\"\",'Base-datos'!$B$747=\"Sí\"),IF('Instituciones-crédito'!I145=\"La actividad sí contribuye sustancialmente a la sostenibilidad\",SUM('Instituciones-crédito'!B145:H145),0),IF(AND('Base-datos'!$B$745=\"\",'Base-datos'!$B$746=\"Sí\",'Base-datos'!$B$747=\"Sí\"),IF(AND('Instituciones-crédito'!K145=\"La actividad sí contribuye sustancialmente a la sostenibilidad\",'Instituciones-crédito'!I145=\"La actividad sí contribuye sustancialmente a la sostenibilidad\"),SUM('Instituciones-crédito'!B145:H145),0),IF(AND('Base-datos'!$B$745=\"Sí\",'Base-datos'!$B$746=\"\",'Base-datos'!$B$747=\"Sí\"),IF(AND('Instituciones-crédito'!J145=\"La actividad sí contribuye sustancialmente a la sostenibilidad\",'Instituciones-crédito'!I145=\"La actividad sí contribuye sustancialmente a la sostenibilidad\"),SUM('Instituciones-crédito'!B145:H145),0),\"Por definir\"))))))))","v":"Por definir"}]
[{"$f":"Manufactura!$C22","v":"Seleccione"},{"$f":"IF(Manufactura!$E22='Instituciones-crédito'!B$12,Manufactura!$B22,\"\")","v":""},{"$f":"IF(Manufactura!$E22='Instituciones-crédito'!C$12,Manufactura!$B22,\"\")","v":""},{"$f":"IF(Manufactura!$E22='Instituciones-crédito'!D$12,Manufactura!$B22,\"\")","v":""},{"$f":"IF(Manufactura!$E22='Instituciones-crédito'!E$12,Manufactura!$B22,\"\")","v":""},{"$f":"IF(Manufactura!$E22='Instituciones-crédito'!F$12,Manufactura!$B22,\"\")","v":""},{"$f":"IF(Manufactura!$E22='Instituciones-crédito'!G$12,Manufactura!$B22,\"\")","v":""},{"$f":"IF(Manufactura!$E22='Instituciones-crédito'!H$12,Manufactura!$B22,\"\")","v":""},{"$f":"_xlfn.XLOOKUP(A146,'Base-datos'!$B$547:$B$552,'Base-datos'!$F$547:$F$552)","v":{"$error":"#N/A"}},{"$f":"_xlfn.XLOOKUP(A146,'Base-datos'!$B$547:$B$552,'Base-datos'!$C$547:$C$552)","v":{"$error":"#N/A"}},{"$f":"_xlfn.XLOOKUP(A146,'Base-datos'!$B$547:$B$552,'Base-datos'!$D$547:$D$552)","v":{"$error":"#N/A"}},null,null,{"$f":"IF(OR($L$140=\"La actividad no cumple con el total de los criterios de No Daño Significativo\",$M$140=\"El sector no cumple con las salvaguardas mínimas\"),\"\",IF(AND('Base-datos'!$B$745=\"Sí\",'Base-datos'!$B$746=\"\",'Base-datos'!$B$747=\"\"),IF('Instituciones-crédito'!J146=\"La actividad sí contribuye sustancialmente a la sostenibilidad\",SUM('Instituciones-crédito'!B146:H146),0),IF(AND('Base-datos'!$B$745=\"Sí\",'Base-datos'!$B$746=\"Sí\",'Base-datos'!$B$747=\"\"),IF(AND('Instituciones-crédito'!J146=\"La actividad sí contribuye sustancialmente a la sostenibilidad\",'Instituciones-crédito'!K146=\"La actividad sí contribuye sustancialmente a la sostenibilidad\"),SUM('Instituciones-crédito'!B146:H146),0),IF(AND('Base-datos'!$B$745=\"Sí\",'Base-datos'!$B$746=\"Sí\",'Base-datos'!$B$747=\"Sí\"),IF(AND('Instituciones-crédito'!J146=\"La actividad sí contribuye sustancialmente a la sostenibilidad\",'Instituciones-crédito'!K146=\"La actividad sí contribuye sustancialmente a la sostenibilidad\",'Instituciones-crédito'!I146=\"La actividad sí contribuye sustancialmente a la sostenibilidad\"),SUM('Instituciones-crédito'!B146:H146),0),IF(AND('Base-datos'!$B$745=\"\",'Base-datos'!$B$746=\"Sí\",'Base-datos'!$B$747=\"\"),IF('Instituciones-crédito'!K146=\"La actividad sí contribuye sustancialmente a la sostenibilidad\",SUM('Instituciones-crédito'!B146:H146),0),IF(AND('Base-datos'!$B$745=\"\",'Base-datos'!$B$746=\"\",'Base-datos'!$B$747=\"Sí\"),IF('Instituciones-crédito'!I146=\"La actividad sí contribuye sustancialmente a la sostenibilidad\",SUM('Instituciones-crédito'!B146:H146),0),IF(AND('Base-datos'!$B$745=\"\",'Base-datos'!$B$746=\"Sí\",'Base-datos'!$B$747=\"Sí\"),IF(AND('Instituciones-crédito'!K146=\"La actividad sí contribuye sustancialmente a la sostenibilidad\",'Instituciones-crédito'!I146=\"La actividad sí contribuye sustancialmente a la sostenibilidad\"),SUM('Instituciones-crédito'!B146:H146),0),IF(AND('Base-datos'!$B$745=\"Sí\",'Base-datos'!$B$746=\"\",'Base-datos'!$B$747=\"Sí\"),IF(AND('Instituciones-crédito'!J146=\"La actividad sí contribuye sustancialmente a la sostenibilidad\",'Instituciones-crédito'!I146=\"La actividad sí contribuye sustancialmente a la sostenibilidad\"),SUM('Instituciones-crédito'!B146:H146),0),\"Por definir\"))))))))","v":"Por definir"}]
[{"$f":"Manufactura!$C24","v":"Seleccione"},{"$f":"IF(Manufactura!$E24='Instituciones-crédito'!B$12,Manufactura!$B24,\"\")","v":""},{"$f":"IF(Manufactura!$E24='Instituciones-crédito'!C$12,Manufactura!$B24,\"\")","v":""},{"$f":"IF(Manufactura!$E24='Instituciones-crédito'!D$12,Manufactura!$B24,\"\")","v":""},{"$f":"IF(Manufactura!$E24='Instituciones-crédito'!E$12,Manufactura!$B24,\"\")","v":""},{"$f":"IF(Manufactura!$E24='Instituciones-crédito'!F$12,Manufactura!$B24,\"\")","v":""},{"$f":"IF(Manufactura!$E24='Instituciones-crédito'!G$12,Manufactura!$B24,\"\")","v":""},{"$f":"IF(Manufactura!$E24='Instituciones-crédito'!H$12,Manufactura!$B24,\"\")","v":""},{"$f":"_xlfn.XLOOKUP(A147,'Base-datos'!$B$547:$B$552,'Base-datos'!$F$547:$F$552)","v":{"$error":"#N/A"}},{"$f":"_xlfn.XLOOKUP(A147,'Base-datos'!$B$547:$B$552,'Base-datos'!$C$547:$C$552)","v":{"$error":"#N/A"}},{"$f":"_xlfn.XLOOKUP(A147,'Base-datos'!$B$547:$B$552,'Base-datos'!$D$547:$D$552)","v":{"$error":"#N/A"}},null,null,{"$f":"IF(OR($L$140=\"La actividad no cumple con el total de los criterios de No Daño Significativo\",$M$140=\"El sector no cumple con las salvaguardas mínimas\"),\"\",IF(AND('Base-datos'!$B$745=\"Sí\",'Base-datos'!$B$746=\"\",'Base-datos'!$B$747=\"\"),IF('Instituciones-crédito'!J147=\"La actividad sí contribuye sustancialmente a la sostenibilidad\",SUM('Instituciones-crédito'!B147:H147),0),IF(AND('Base-datos'!$B$745=\"Sí\",'Base-datos'!$B$746=\"Sí\",'Base-datos'!$B$747=\"\"),IF(AND('Instituciones-crédito'!J147=\"La actividad sí contribuye sustancialmente a la sostenibilidad\",'Instituciones-crédito'!K147=\"La actividad sí contribuye sustancialmente a la sostenibilidad\"),SUM('Instituciones-crédito'!B147:H147),0),IF(AND('Base-datos'!$B$745=\"Sí\",'Base-datos'!$B$746=\"Sí\",'Base-datos'!$B$747=\"Sí\"),IF(AND('Instituciones-crédito'!J147=\"La actividad sí contribuye sustancialmente a la sostenibilidad\",'Instituciones-crédito'!K147=\"La actividad sí contribuye sustancialmente a la sostenibilidad\",'Instituciones-crédito'!I147=\"La actividad sí contribuye sustancialmente a la sostenibilidad\"),SUM('Instituciones-crédito'!B147:H147),0),IF(AND('Base-datos'!$B$745=\"\",'Base-datos'!$B$746=\"Sí\",'Base-datos'!$B$747=\"\"),IF('Instituciones-crédito'!K147=\"La actividad sí contribuye sustancialmente a la sostenibilidad\",SUM('Instituciones-crédito'!B147:H147),0),IF(AND('Base-datos'!$B$745=\"\",'Base-datos'!$B$746=\"\",'Base-datos'!$B$747=\"Sí\"),IF('Instituciones-crédito'!I147=\"La actividad sí contribuye sustancialmente a la sostenibilidad\",SUM('Instituciones-crédito'!B147:H147),0),IF(AND('Base-datos'!$B$745=\"\",'Base-datos'!$B$746=\"Sí\",'Base-datos'!$B$747=\"Sí\"),IF(AND('Instituciones-crédito'!K147=\"La actividad sí contribuye sustancialmente a la sostenibilidad\",'Instituciones-crédito'!I147=\"La actividad sí contribuye sustancialmente a la sostenibilidad\"),SUM('Instituciones-crédito'!B147:H147),0),IF(AND('Base-datos'!$B$745=\"Sí\",'Base-datos'!$B$746=\"\",'Base-datos'!$B$747=\"Sí\"),IF(AND('Instituciones-crédito'!J147=\"La actividad sí contribuye sustancialmente a la sostenibilidad\",'Instituciones-crédito'!I147=\"La actividad sí contribuye sustancialmente a la sostenibilidad\"),SUM('Instituciones-crédito'!B147:H147),0),\"Por definir\"))))))))","v":"Por definir"}]
[{"$f":"Manufactura!$C26","v":"Seleccione"},{"$f":"IF(Manufactura!$E26='Instituciones-crédito'!B$12,Manufactura!$B26,\"\")","v":""},{"$f":"IF(Manufactura!$E26='Instituciones-crédito'!C$12,Manufactura!$B26,\"\")","v":""},{"$f":"IF(Manufactura!$E26='Instituciones-crédito'!D$12,Manufactura!$B26,\"\")","v":""},{"$f":"IF(Manufactura!$E26='Instituciones-crédito'!E$12,Manufactura!$B26,\"\")","v":""},{"$f":"IF(Manufactura!$E26='Instituciones-crédito'!F$12,Manufactura!$B26,\"\")","v":""},{"$f":"IF(Manufactura!$E26='Instituciones-crédito'!G$12,Manufactura!$B26,\"\")","v":""},{"$f":"IF(Manufactura!$E26='Instituciones-crédito'!H$12,Manufactura!$B26,\"\")","v":""},{"$f":"_xlfn.XLOOKUP(A148,'Base-datos'!$B$547:$B$552,'Base-datos'!$F$547:$F$552)","v":{"$error":"#N/A"}},{"$f":"_xlfn.XLOOKUP(A148,'Base-datos'!$B$547:$B$552,'Base-datos'!$C$547:$C$552)","v":{"$error":"#N/A"}},{"$f":"_xlfn.XLOOKUP(A148,'Base-datos'!$B$547:$B$552,'Base-datos'!$D$547:$D$552)","v":{"$error":"#N/A"}},null,null,{"$f":"IF(OR($L$140=\"La actividad no cumple con el total de los criterios de No Daño Significativo\",$M$140=\"El sector no cumple con las salvaguardas mínimas\"),\"\",IF(AND('Base-datos'!$B$745=\"Sí\",'Base-datos'!$B$746=\"\",'Base-datos'!$B$747=\"\"),IF('Instituciones-crédito'!J148=\"La actividad sí contribuye sustancialmente a la sostenibilidad\",SUM('Instituciones-crédito'!B148:H148),0),IF(AND('Base-datos'!$B$745=\"Sí\",'Base-datos'!$B$746=\"Sí\",'Base-datos'!$B$747=\"\"),IF(AND('Instituciones-crédito'!J148=\"La actividad sí contribuye sustancialmente a la sostenibilidad\",'Instituciones-crédito'!K148=\"La actividad sí contribuye sustancialmente a la sostenibilidad\"),SUM('Instituciones-crédito'!B148:H148),0),IF(AND('Base-datos'!$B$745=\"Sí\",'Base-datos'!$B$746=\"Sí\",'Base-datos'!$B$747=\"Sí\"),IF(AND('Instituciones-crédito'!J148=\"La actividad sí contribuye sustancialmente a la sostenibilidad\",'Instituciones-crédito'!K148=\"La actividad sí contribuye sustancialmente a la sostenibilidad\",'Instituciones-crédito'!I148=\"La actividad sí contribuye sustancialmente a la sostenibilidad\"),SUM('Instituciones-crédito'!B148:H148),0),IF(AND('Base-datos'!$B$745=\"\",'Base-datos'!$B$746=\"Sí\",'Base-datos'!$B$747=\"\"),IF('Instituciones-crédito'!K148=\"La actividad sí contribuye sustancialmente a la sostenibilidad\",SUM('Instituciones-crédito'!B148:H148),0),IF(AND('Base-datos'!$B$745=\"\",'Base-datos'!$B$746=\"\",'Base-datos'!$B$747=\"Sí\"),IF('Instituciones-crédito'!I148=\"La actividad sí contribuye sustancialmente a la sostenibilidad\",SUM('Instituciones-crédito'!B148:H148),0),IF(AND('Base-datos'!$B$745=\"\",'Base-datos'!$B$746=\"Sí\",'Base-datos'!$B$747=\"Sí\"),IF(AND('Instituciones-crédito'!K148=\"La actividad sí contribuye sustancialmente a la sostenibilidad\",'Instituciones-crédito'!I148=\"La actividad sí contribuye sustancialmente a la sostenibilidad\"),SUM('Instituciones-crédito'!B148:H148),0),IF(AND('Base-datos'!$B$745=\"Sí\",'Base-datos'!$B$746=\"\",'Base-datos'!$B$747=\"Sí\"),IF(AND('Instituciones-crédito'!J148=\"La actividad sí contribuye sustancialmente a la sostenibilidad\",'Instituciones-crédito'!I148=\"La actividad sí contribuye sustancialmente a la sostenibilidad\"),SUM('Instituciones-crédito'!B148:H148),0),\"Por definir\"))))))))","v":"Por definir"}]
[{"$f":"Manufactura!$C28","v":"Seleccione"},{"$f":"IF(Manufactura!$E28='Instituciones-crédito'!B$12,Manufactura!$B28,\"\")","v":""},{"$f":"IF(Manufactura!$E28='Instituciones-crédito'!C$12,Manufactura!$B28,\"\")","v":""},{"$f":"IF(Manufactura!$E28='Instituciones-crédito'!D$12,Manufactura!$B28,\"\")","v":""},{"$f":"IF(Manufactura!$E28='Instituciones-crédito'!E$12,Manufactura!$B28,\"\")","v":""},{"$f":"IF(Manufactura!$E28='Instituciones-crédito'!F$12,Manufactura!$B28,\"\")","v":""},{"$f":"IF(Manufactura!$E28='Instituciones-crédito'!G$12,Manufactura!$B28,\"\")","v":""},{"$f":"IF(Manufactura!$E28='Instituciones-crédito'!H$12,Manufactura!$B28,\"\")","v":""},{"$f":"_xlfn.XLOOKUP(A149,'Base-datos'!$B$547:$B$552,'Base-datos'!$F$547:$F$552)","v":{"$error":"#N/A"}},{"$f":"_xlfn.XLOOKUP(A149,'Base-datos'!$B$547:$B$552,'Base-datos'!$C$547:$C$552)","v":{"$error":"#N/A"}},{"$f":"_xlfn.XLOOKUP(A149,'Base-datos'!$B$547:$B$552,'Base-datos'!$D$547:$D$552)","v":{"$error":"#N/A"}},null,null,{"$f":"IF(OR($L$140=\"La actividad no cumple con el total de los criterios de No Daño Significativo\",$M$140=\"El sector no cumple con las salvaguardas mínimas\"),\"\",IF(AND('Base-datos'!$B$745=\"Sí\",'Base-datos'!$B$746=\"\",'Base-datos'!$B$747=\"\"),IF('Instituciones-crédito'!J149=\"La actividad sí contribuye sustancialmente a la sostenibilidad\",SUM('Instituciones-crédito'!B149:H149),0),IF(AND('Base-datos'!$B$745=\"Sí\",'Base-datos'!$B$746=\"Sí\",'Base-datos'!$B$747=\"\"),IF(AND('Instituciones-crédito'!J149=\"La actividad sí contribuye sustancialmente a la sostenibilidad\",'Instituciones-crédito'!K149=\"La actividad sí contribuye sustancialmente a la sostenibilidad\"),SUM('Instituciones-crédito'!B149:H149),0),IF(AND('Base-datos'!$B$745=\"Sí\",'Base-datos'!$B$746=\"Sí\",'Base-datos'!$B$747=\"Sí\"),IF(AND('Instituciones-crédito'!J149=\"La actividad sí contribuye sustancialmente a la sostenibilidad\",'Instituciones-crédito'!K149=\"La actividad sí contribuye sustancialmente a la sostenibilidad\",'Instituciones-crédito'!I149=\"La actividad sí contribuye sustancialmente a la sostenibilidad\"),SUM('Instituciones-crédito'!B149:H149),0),IF(AND('Base-datos'!$B$745=\"\",'Base-datos'!$B$746=\"Sí\",'Base-datos'!$B$747=\"\"),IF('Instituciones-crédito'!K149=\"La actividad sí contribuye sustancialmente a la sostenibilidad\",SUM('Instituciones-crédito'!B149:H149),0),IF(AND('Base-datos'!$B$745=\"\",'Base-datos'!$B$746=\"\",'Base-datos'!$B$747=\"Sí\"),IF('Instituciones-crédito'!I149=\"La actividad sí contribuye sustancialmente a la sostenibilidad\",SUM('Instituciones-crédito'!B149:H149),0),IF(AND('Base-datos'!$B$745=\"\",'Base-datos'!$B$746=\"Sí\",'Base-datos'!$B$747=\"Sí\"),IF(AND('Instituciones-crédito'!K149=\"La actividad sí contribuye sustancialmente a la sostenibilidad\",'Instituciones-crédito'!I149=\"La actividad sí contribuye sustancialmente a la sostenibilidad\"),SUM('Instituciones-crédito'!B149:H149),0),IF(AND('Base-datos'!$B$745=\"Sí\",'Base-datos'!$B$746=\"\",'Base-datos'!$B$747=\"Sí\"),IF(AND('Instituciones-crédito'!J149=\"La actividad sí contribuye sustancialmente a la sostenibilidad\",'Instituciones-crédito'!I149=\"La actividad sí contribuye sustancialmente a la sostenibilidad\"),SUM('Instituciones-crédito'!B149:H149),0),\"Por definir\"))))))))","v":"Por definir"}]
[{"$f":"Manufactura!$C30","v":"Seleccione"},{"$f":"IF(Manufactura!$E30='Instituciones-crédito'!B$12,Manufactura!$B30,\"\")","v":""},{"$f":"IF(Manufactura!$E30='Instituciones-crédito'!C$12,Manufactura!$B30,\"\")","v":""},{"$f":"IF(Manufactura!$E30='Instituciones-crédito'!D$12,Manufactura!$B30,\"\")","v":""},{"$f":"IF(Manufactura!$E30='Instituciones-crédito'!E$12,Manufactura!$B30,\"\")","v":""},{"$f":"IF(Manufactura!$E30='Instituciones-crédito'!F$12,Manufactura!$B30,\"\")","v":""},{"$f":"IF(Manufactura!$E30='Instituciones-crédito'!G$12,Manufactura!$B30,\"\")","v":""},{"$f":"IF(Manufactura!$E30='Instituciones-crédito'!H$12,Manufactura!$B30,\"\")","v":""},{"$f":"_xlfn.XLOOKUP(A150,'Base-datos'!$B$547:$B$552,'Base-datos'!$F$547:$F$552)","v":{"$error":"#N/A"}},{"$f":"_xlfn.XLOOKUP(A150,'Base-datos'!$B$547:$B$552,'Base-datos'!$C$547:$C$552)","v":{"$error":"#N/A"}},{"$f":"_xlfn.XLOOKUP(A150,'Base-datos'!$B$547:$B$552,'Base-datos'!$D$547:$D$552)","v":{"$error":"#N/A"}},null,null,{"$f":"IF(OR($L$140=\"La actividad no cumple con el total de los criterios de No Daño Significativo\",$M$140=\"El sector no cumple con las salvaguardas mínimas\"),\"\",IF(AND('Base-datos'!$B$745=\"Sí\",'Base-datos'!$B$746=\"\",'Base-datos'!$B$747=\"\"),IF('Instituciones-crédito'!J150=\"La actividad sí contribuye sustancialmente a la sostenibilidad\",SUM('Instituciones-crédito'!B150:H150),0),IF(AND('Base-datos'!$B$745=\"Sí\",'Base-datos'!$B$746=\"Sí\",'Base-datos'!$B$747=\"\"),IF(AND('Instituciones-crédito'!J150=\"La actividad sí contribuye sustancialmente a la sostenibilidad\",'Instituciones-crédito'!K150=\"La actividad sí contribuye sustancialmente a la sostenibilidad\"),SUM('Instituciones-crédito'!B150:H150),0),IF(AND('Base-datos'!$B$745=\"Sí\",'Base-datos'!$B$746=\"Sí\",'Base-datos'!$B$747=\"Sí\"),IF(AND('Instituciones-crédito'!J150=\"La actividad sí contribuye sustancialmente a la sostenibilidad\",'Instituciones-crédito'!K150=\"La actividad sí contribuye sustancialmente a la sostenibilidad\",'Instituciones-crédito'!I150=\"La actividad sí contribuye sustancialmente a la sostenibilidad\"),SUM('Instituciones-crédito'!B150:H150),0),IF(AND('Base-datos'!$B$745=\"\",'Base-datos'!$B$746=\"Sí\",'Base-datos'!$B$747=\"\"),IF('Instituciones-crédito'!K150=\"La actividad sí contribuye sustancialmente a la sostenibilidad\",SUM('Instituciones-crédito'!B150:H150),0),IF(AND('Base-datos'!$B$745=\"\",'Base-datos'!$B$746=\"\",'Base-datos'!$B$747=\"Sí\"),IF('Instituciones-crédito'!I150=\"La actividad sí contribuye sustancialmente a la sostenibilidad\",SUM('Instituciones-crédito'!B150:H150),0),IF(AND('Base-datos'!$B$745=\"\",'Base-datos'!$B$746=\"Sí\",'Base-datos'!$B$747=\"Sí\"),IF(AND('Instituciones-crédito'!K150=\"La actividad sí contribuye sustancialmente a la sostenibilidad\",'Instituciones-crédito'!I150=\"La actividad sí contribuye sustancialmente a la sostenibilidad\"),SUM('Instituciones-crédito'!B150:H150),0),IF(AND('Base-datos'!$B$745=\"Sí\",'Base-datos'!$B$746=\"\",'Base-datos'!$B$747=\"Sí\"),IF(AND('Instituciones-crédito'!J150=\"La actividad sí contribuye sustancialmente a la sostenibilidad\",'Instituciones-crédito'!I150=\"La actividad sí contribuye sustancialmente a la sostenibilidad\"),SUM('Instituciones-crédito'!B150:H150),0),\"Por definir\"))))))))","v":"Por definir"}]
[{"$f":"Manufactura!$C32","v":"Seleccione"},{"$f":"IF(Manufactura!$E32='Instituciones-crédito'!B$12,Manufactura!$B32,\"\")","v":""},{"$f":"IF(Manufactura!$E32='Instituciones-crédito'!C$12,Manufactura!$B32,\"\")","v":""},{"$f":"IF(Manufactura!$E32='Instituciones-crédito'!D$12,Manufactura!$B32,\"\")","v":""},{"$f":"IF(Manufactura!$E32='Instituciones-crédito'!E$12,Manufactura!$B32,\"\")","v":""},{"$f":"IF(Manufactura!$E32='Instituciones-crédito'!F$12,Manufactura!$B32,\"\")","v":""},{"$f":"IF(Manufactura!$E32='Instituciones-crédito'!G$12,Manufactura!$B32,\"\")","v":""},{"$f":"IF(Manufactura!$E32='Instituciones-crédito'!H$12,Manufactura!$B32,\"\")","v":""},{"$f":"_xlfn.XLOOKUP(A151,'Base-datos'!$B$547:$B$552,'Base-datos'!$F$547:$F$552)","v":{"$error":"#N/A"}},{"$f":"_xlfn.XLOOKUP(A151,'Base-datos'!$B$547:$B$552,'Base-datos'!$C$547:$C$552)","v":{"$error":"#N/A"}},{"$f":"_xlfn.XLOOKUP(A151,'Base-datos'!$B$547:$B$552,'Base-datos'!$D$547:$D$552)","v":{"$error":"#N/A"}},null,null,{"$f":"IF(OR($L$140=\"La actividad no cumple con el total de los criterios de No Daño Significativo\",$M$140=\"El sector no cumple con las salvaguardas mínimas\"),\"\",IF(AND('Base-datos'!$B$745=\"Sí\",'Base-datos'!$B$746=\"\",'Base-datos'!$B$747=\"\"),IF('Instituciones-crédito'!J151=\"La actividad sí contribuye sustancialmente a la sostenibilidad\",SUM('Instituciones-crédito'!B151:H151),0),IF(AND('Base-datos'!$B$745=\"Sí\",'Base-datos'!$B$746=\"Sí\",'Base-datos'!$B$747=\"\"),IF(AND('Instituciones-crédito'!J151=\"La actividad sí contribuye sustancialmente a la sostenibilidad\",'Instituciones-crédito'!K151=\"La actividad sí contribuye sustancialmente a la sostenibilidad\"),SUM('Instituciones-crédito'!B151:H151),0),IF(AND('Base-datos'!$B$745=\"Sí\",'Base-datos'!$B$746=\"Sí\",'Base-datos'!$B$747=\"Sí\"),IF(AND('Instituciones-crédito'!J151=\"La actividad sí contribuye sustancialmente a la sostenibilidad\",'Instituciones-crédito'!K151=\"La actividad sí contribuye sustancialmente a la sostenibilidad\",'Instituciones-crédito'!I151=\"La actividad sí contribuye sustancialmente a la sostenibilidad\"),SUM('Instituciones-crédito'!B151:H151),0),IF(AND('Base-datos'!$B$745=\"\",'Base-datos'!$B$746=\"Sí\",'Base-datos'!$B$747=\"\"),IF('Instituciones-crédito'!K151=\"La actividad sí contribuye sustancialmente a la sostenibilidad\",SUM('Instituciones-crédito'!B151:H151),0),IF(AND('Base-datos'!$B$745=\"\",'Base-datos'!$B$746=\"\",'Base-datos'!$B$747=\"Sí\"),IF('Instituciones-crédito'!I151=\"La actividad sí contribuye sustancialmente a la sostenibilidad\",SUM('Instituciones-crédito'!B151:H151),0),IF(AND('Base-datos'!$B$745=\"\",'Base-datos'!$B$746=\"Sí\",'Base-datos'!$B$747=\"Sí\"),IF(AND('Instituciones-crédito'!K151=\"La actividad sí contribuye sustancialmente a la sostenibilidad\",'Instituciones-crédito'!I151=\"La actividad sí contribuye sustancialmente a la sostenibilidad\"),SUM('Instituciones-crédito'!B151:H151),0),IF(AND('Base-datos'!$B$745=\"Sí\",'Base-datos'!$B$746=\"\",'Base-datos'!$B$747=\"Sí\"),IF(AND('Instituciones-crédito'!J151=\"La actividad sí contribuye sustancialmente a la sostenibilidad\",'Instituciones-crédito'!I151=\"La actividad sí contribuye sustancialmente a la sostenibilidad\"),SUM('Instituciones-crédito'!B151:H151),0),\"Por definir\"))))))))","v":"Por definir"}]
[{"$f":"Manufactura!$C34","v":"Seleccione"},{"$f":"IF(Manufactura!$E34='Instituciones-crédito'!B$12,Manufactura!$B34,\"\")","v":""},{"$f":"IF(Manufactura!$E34='Instituciones-crédito'!C$12,Manufactura!$B34,\"\")","v":""},{"$f":"IF(Manufactura!$E34='Instituciones-crédito'!D$12,Manufactura!$B34,\"\")","v":""},{"$f":"IF(Manufactura!$E34='Instituciones-crédito'!E$12,Manufactura!$B34,\"\")","v":""},{"$f":"IF(Manufactura!$E34='Instituciones-crédito'!F$12,Manufactura!$B34,\"\")","v":""},{"$f":"IF(Manufactura!$E34='Instituciones-crédito'!G$12,Manufactura!$B34,\"\")","v":""},{"$f":"IF(Manufactura!$E34='Instituciones-crédito'!H$12,Manufactura!$B34,\"\")","v":""},{"$f":"_xlfn.XLOOKUP(A152,'Base-datos'!$B$547:$B$552,'Base-datos'!$F$547:$F$552)","v":{"$error":"#N/A"}},{"$f":"_xlfn.XLOOKUP(A152,'Base-datos'!$B$547:$B$552,'Base-datos'!$C$547:$C$552)","v":{"$error":"#N/A"}},{"$f":"_xlfn.XLOOKUP(A152,'Base-datos'!$B$547:$B$552,'Base-datos'!$D$547:$D$552)","v":{"$error":"#N/A"}},null,null,{"$f":"IF(OR($L$140=\"La actividad no cumple con el total de los criterios de No Daño Significativo\",$M$140=\"El sector no cumple con las salvaguardas mínimas\"),\"\",IF(AND('Base-datos'!$B$745=\"Sí\",'Base-datos'!$B$746=\"\",'Base-datos'!$B$747=\"\"),IF('Instituciones-crédito'!J152=\"La actividad sí contribuye sustancialmente a la sostenibilidad\",SUM('Instituciones-crédito'!B152:H152),0),IF(AND('Base-datos'!$B$745=\"Sí\",'Base-datos'!$B$746=\"Sí\",'Base-datos'!$B$747=\"\"),IF(AND('Instituciones-crédito'!J152=\"La actividad sí contribuye sustancialmente a la sostenibilidad\",'Instituciones-crédito'!K152=\"La actividad sí contribuye sustancialmente a la sostenibilidad\"),SUM('Instituciones-crédito'!B152:H152),0),IF(AND('Base-datos'!$B$745=\"Sí\",'Base-datos'!$B$746=\"Sí\",'Base-datos'!$B$747=\"Sí\"),IF(AND('Instituciones-crédito'!J152=\"La actividad sí contribuye sustancialmente a la sostenibilidad\",'Instituciones-crédito'!K152=\"La actividad sí contribuye sustancialmente a la sostenibilidad\",'Instituciones-crédito'!I152=\"La actividad sí contribuye sustancialmente a la sostenibilidad\"),SUM('Instituciones-crédito'!B152:H152),0),IF(AND('Base-datos'!$B$745=\"\",'Base-datos'!$B$746=\"Sí\",'Base-datos'!$B$747=\"\"),IF('Instituciones-crédito'!K152=\"La actividad sí contribuye sustancialmente a la sostenibilidad\",SUM('Instituciones-crédito'!B152:H152),0),IF(AND('Base-datos'!$B$745=\"\",'Base-datos'!$B$746=\"\",'Base-datos'!$B$747=\"Sí\"),IF('Instituciones-crédito'!I152=\"La actividad sí contribuye sustancialmente a la sostenibilidad\",SUM('Instituciones-crédito'!B152:H152),0),IF(AND('Base-datos'!$B$745=\"\",'Base-datos'!$B$746=\"Sí\",'Base-datos'!$B$747=\"Sí\"),IF(AND('Instituciones-crédito'!K152=\"La actividad sí contribuye sustancialmente a la sostenibilidad\",'Instituciones-crédito'!I152=\"La actividad sí contribuye sustancialmente a la sostenibilidad\"),SUM('Instituciones-crédito'!B152:H152),0),IF(AND('Base-datos'!$B$745=\"Sí\",'Base-datos'!$B$746=\"\",'Base-datos'!$B$747=\"Sí\"),IF(AND('Instituciones-crédito'!J152=\"La actividad sí contribuye sustancialmente a la sostenibilidad\",'Instituciones-crédito'!I152=\"La actividad sí contribuye sustancialmente a la sostenibilidad\"),SUM('Instituciones-crédito'!B152:H152),0),\"Por definir\"))))))))","v":"Por definir"}]
[{"$f":"Manufactura!$C36","v":"Seleccione"},{"$f":"IF(Manufactura!$E36='Instituciones-crédito'!B$12,Manufactura!$B36,\"\")","v":""},{"$f":"IF(Manufactura!$E36='Instituciones-crédito'!C$12,Manufactura!$B36,\"\")","v":""},{"$f":"IF(Manufactura!$E36='Instituciones-crédito'!D$12,Manufactura!$B36,\"\")","v":""},{"$f":"IF(Manufactura!$E36='Instituciones-crédito'!E$12,Manufactura!$B36,\"\")","v":""},{"$f":"IF(Manufactura!$E36='Instituciones-crédito'!F$12,Manufactura!$B36,\"\")","v":""},{"$f":"IF(Manufactura!$E36='Instituciones-crédito'!G$12,Manufactura!$B36,\"\")","v":""},{"$f":"IF(Manufactura!$E36='Instituciones-crédito'!H$12,Manufactura!$B36,\"\")","v":""},{"$f":"_xlfn.XLOOKUP(A153,'Base-datos'!$B$547:$B$552,'Base-datos'!$F$547:$F$552)","v":{"$error":"#N/A"}},{"$f":"_xlfn.XLOOKUP(A153,'Base-datos'!$B$547:$B$552,'Base-datos'!$C$547:$C$552)","v":{"$error":"#N/A"}},{"$f":"_xlfn.XLOOKUP(A153,'Base-datos'!$B$547:$B$552,'Base-datos'!$D$547:$D$552)","v":{"$error":"#N/A"}},null,null,{"$f":"IF(OR($L$140=\"La actividad no cumple con el total de los criterios de No Daño Significativo\",$M$140=\"El sector no cumple con las salvaguardas mínimas\"),\"\",IF(AND('Base-datos'!$B$745=\"Sí\",'Base-datos'!$B$746=\"\",'Base-datos'!$B$747=\"\"),IF('Instituciones-crédito'!J153=\"La actividad sí contribuye sustancialmente a la sostenibilidad\",SUM('Instituciones-crédito'!B153:H153),0),IF(AND('Base-datos'!$B$745=\"Sí\",'Base-datos'!$B$746=\"Sí\",'Base-datos'!$B$747=\"\"),IF(AND('Instituciones-crédito'!J153=\"La actividad sí contribuye sustancialmente a la sostenibilidad\",'Instituciones-crédito'!K153=\"La actividad sí contribuye sustancialmente a la sostenibilidad\"),SUM('Instituciones-crédito'!B153:H153),0),IF(AND('Base-datos'!$B$745=\"Sí\",'Base-datos'!$B$746=\"Sí\",'Base-datos'!$B$747=\"Sí\"),IF(AND('Instituciones-crédito'!J153=\"La actividad sí contribuye sustancialmente a la sostenibilidad\",'Instituciones-crédito'!K153=\"La actividad sí contribuye sustancialmente a la sostenibilidad\",'Instituciones-crédito'!I153=\"La actividad sí contribuye sustancialmente a la sostenibilidad\"),SUM('Instituciones-crédito'!B153:H153),0),IF(AND('Base-datos'!$B$745=\"\",'Base-datos'!$B$746=\"Sí\",'Base-datos'!$B$747=\"\"),IF('Instituciones-crédito'!K153=\"La actividad sí contribuye sustancialmente a la sostenibilidad\",SUM('Instituciones-crédito'!B153:H153),0),IF(AND('Base-datos'!$B$745=\"\",'Base-datos'!$B$746=\"\",'Base-datos'!$B$747=\"Sí\"),IF('Instituciones-crédito'!I153=\"La actividad sí contribuye sustancialmente a la sostenibilidad\",SUM('Instituciones-crédito'!B153:H153),0),IF(AND('Base-datos'!$B$745=\"\",'Base-datos'!$B$746=\"Sí\",'Base-datos'!$B$747=\"Sí\"),IF(AND('Instituciones-crédito'!K153=\"La actividad sí contribuye sustancialmente a la sostenibilidad\",'Instituciones-crédito'!I153=\"La actividad sí contribuye sustancialmente a la sostenibilidad\"),SUM('Instituciones-crédito'!B153:H153),0),IF(AND('Base-datos'!$B$745=\"Sí\",'Base-datos'!$B$746=\"\",'Base-datos'!$B$747=\"Sí\"),IF(AND('Instituciones-crédito'!J153=\"La actividad sí contribuye sustancialmente a la sostenibilidad\",'Instituciones-crédito'!I153=\"La actividad sí contribuye sustancialmente a la sostenibilidad\"),SUM('Instituciones-crédito'!B153:H153),0),\"Por definir\"))))))))","v":"Por definir"}]
[{"$f":"Manufactura!$C38","v":"Seleccione"},{"$f":"IF(Manufactura!$E38='Instituciones-crédito'!B$12,Manufactura!$B38,\"\")","v":""},{"$f":"IF(Manufactura!$E38='Instituciones-crédito'!C$12,Manufactura!$B38,\"\")","v":""},{"$f":"IF(Manufactura!$E38='Instituciones-crédito'!D$12,Manufactura!$B38,\"\")","v":""},{"$f":"IF(Manufactura!$E38='Instituciones-crédito'!E$12,Manufactura!$B38,\"\")","v":""},{"$f":"IF(Manufactura!$E38='Instituciones-crédito'!F$12,Manufactura!$B38,\"\")","v":""},{"$f":"IF(Manufactura!$E38='Instituciones-crédito'!G$12,Manufactura!$B38,\"\")","v":""},{"$f":"IF(Manufactura!$E38='Instituciones-crédito'!H$12,Manufactura!$B38,\"\")","v":""},{"$f":"_xlfn.XLOOKUP(A154,'Base-datos'!$B$547:$B$552,'Base-datos'!$F$547:$F$552)","v":{"$error":"#N/A"}},{"$f":"_xlfn.XLOOKUP(A154,'Base-datos'!$B$547:$B$552,'Base-datos'!$C$547:$C$552)","v":{"$error":"#N/A"}},{"$f":"_xlfn.XLOOKUP(A154,'Base-datos'!$B$547:$B$552,'Base-datos'!$D$547:$D$552)","v":{"$error":"#N/A"}},null,null,{"$f":"IF(OR($L$140=\"La actividad no cumple con el total de los criterios de No Daño Significativo\",$M$140=\"El sector no cumple con las salvaguardas mínimas\"),\"\",IF(AND('Base-datos'!$B$745=\"Sí\",'Base-datos'!$B$746=\"\",'Base-datos'!$B$747=\"\"),IF('Instituciones-crédito'!J154=\"La actividad sí contribuye sustancialmente a la sostenibilidad\",SUM('Instituciones-crédito'!B154:H154),0),IF(AND('Base-datos'!$B$745=\"Sí\",'Base-datos'!$B$746=\"Sí\",'Base-datos'!$B$747=\"\"),IF(AND('Instituciones-crédito'!J154=\"La actividad sí contribuye sustancialmente a la sostenibilidad\",'Instituciones-crédito'!K154=\"La actividad sí contribuye sustancialmente a la sostenibilidad\"),SUM('Instituciones-crédito'!B154:H154),0),IF(AND('Base-datos'!$B$745=\"Sí\",'Base-datos'!$B$746=\"Sí\",'Base-datos'!$B$747=\"Sí\"),IF(AND('Instituciones-crédito'!J154=\"La actividad sí contribuye sustancialmente a la sostenibilidad\",'Instituciones-crédito'!K154=\"La actividad sí contribuye sustancialmente a la sostenibilidad\",'Instituciones-crédito'!I154=\"La actividad sí contribuye sustancialmente a la sostenibilidad\"),SUM('Instituciones-crédito'!B154:H154),0),IF(AND('Base-datos'!$B$745=\"\",'Base-datos'!$B$746=\"Sí\",'Base-datos'!$B$747=\"\"),IF('Instituciones-crédito'!K154=\"La actividad sí contribuye sustancialmente a la sostenibilidad\",SUM('Instituciones-crédito'!B154:H154),0),IF(AND('Base-datos'!$B$745=\"\",'Base-datos'!$B$746=\"\",'Base-datos'!$B$747=\"Sí\"),IF('Instituciones-crédito'!I154=\"La actividad sí contribuye sustancialmente a la sostenibilidad\",SUM('Instituciones-crédito'!B154:H154),0),IF(AND('Base-datos'!$B$745=\"\",'Base-datos'!$B$746=\"Sí\",'Base-datos'!$B$747=\"Sí\"),IF(AND('Instituciones-crédito'!K154=\"La actividad sí contribuye sustancialmente a la sostenibilidad\",'Instituciones-crédito'!I154=\"La actividad sí contribuye sustancialmente a la sostenibilidad\"),SUM('Instituciones-crédito'!B154:H154),0),IF(AND('Base-datos'!$B$745=\"Sí\",'Base-datos'!$B$746=\"\",'Base-datos'!$B$747=\"Sí\"),IF(AND('Instituciones-crédito'!J154=\"La actividad sí contribuye sustancialmente a la sostenibilidad\",'Instituciones-crédito'!I154=\"La actividad sí contribuye sustancialmente a la sostenibilidad\"),SUM('Instituciones-crédito'!B154:H154),0),\"Por definir\"))))))))","v":"Por definir"}]
[{"$f":"Manufactura!$C40","v":"Seleccione"},{"$f":"IF(Manufactura!$E40='Instituciones-crédito'!B$12,Manufactura!$B40,\"\")","v":""},{"$f":"IF(Manufactura!$E40='Instituciones-crédito'!C$12,Manufactura!$B40,\"\")","v":""},{"$f":"IF(Manufactura!$E40='Instituciones-crédito'!D$12,Manufactura!$B40,\"\")","v":""},{"$f":"IF(Manufactura!$E40='Instituciones-crédito'!E$12,Manufactura!$B40,\"\")","v":""},{"$f":"IF(Manufactura!$E40='Instituciones-crédito'!F$12,Manufactura!$B40,\"\")","v":""},{"$f":"IF(Manufactura!$E40='Instituciones-crédito'!G$12,Manufactura!$B40,\"\")","v":""},{"$f":"IF(Manufactura!$E40='Instituciones-crédito'!H$12,Manufactura!$B40,\"\")","v":""},{"$f":"_xlfn.XLOOKUP(A155,'Base-datos'!$B$547:$B$552,'Base-datos'!$F$547:$F$552)","v":{"$error":"#N/A"}},{"$f":"_xlfn.XLOOKUP(A155,'Base-datos'!$B$547:$B$552,'Base-datos'!$C$547:$C$552)","v":{"$error":"#N/A"}},{"$f":"_xlfn.XLOOKUP(A155,'Base-datos'!$B$547:$B$552,'Base-datos'!$D$547:$D$552)","v":{"$error":"#N/A"}},null,null,{"$f":"IF(OR($L$140=\"La actividad no cumple con el total de los criterios de No Daño Significativo\",$M$140=\"El sector no cumple con las salvaguardas mínimas\"),\"\",IF(AND('Base-datos'!$B$745=\"Sí\",'Base-datos'!$B$746=\"\",'Base-datos'!$B$747=\"\"),IF('Instituciones-crédito'!J155=\"La actividad sí contribuye sustancialmente a la sostenibilidad\",SUM('Instituciones-crédito'!B155:H155),0),IF(AND('Base-datos'!$B$745=\"Sí\",'Base-datos'!$B$746=\"Sí\",'Base-datos'!$B$747=\"\"),IF(AND('Instituciones-crédito'!J155=\"La actividad sí contribuye sustancialmente a la sostenibilidad\",'Instituciones-crédito'!K155=\"La actividad sí contribuye sustancialmente a la sostenibilidad\"),SUM('Instituciones-crédito'!B155:H155),0),IF(AND('Base-datos'!$B$745=\"Sí\",'Base-datos'!$B$746=\"Sí\",'Base-datos'!$B$747=\"Sí\"),IF(AND('Instituciones-crédito'!J155=\"La actividad sí contribuye sustancialmente a la sostenibilidad\",'Instituciones-crédito'!K155=\"La actividad sí contribuye sustancialmente a la sostenibilidad\",'Instituciones-crédito'!I155=\"La actividad sí contribuye sustancialmente a la sostenibilidad\"),SUM('Instituciones-crédito'!B155:H155),0),IF(AND('Base-datos'!$B$745=\"\",'Base-datos'!$B$746=\"Sí\",'Base-datos'!$B$747=\"\"),IF('Instituciones-crédito'!K155=\"La actividad sí contribuye sustancialmente a la sostenibilidad\",SUM('Instituciones-crédito'!B155:H155),0),IF(AND('Base-datos'!$B$745=\"\",'Base-datos'!$B$746=\"\",'Base-datos'!$B$747=\"Sí\"),IF('Instituciones-crédito'!I155=\"La actividad sí contribuye sustancialmente a la sostenibilidad\",SUM('Instituciones-crédito'!B155:H155),0),IF(AND('Base-datos'!$B$745=\"\",'Base-datos'!$B$746=\"Sí\",'Base-datos'!$B$747=\"Sí\"),IF(AND('Instituciones-crédito'!K155=\"La actividad sí contribuye sustancialmente a la sostenibilidad\",'Instituciones-crédito'!I155=\"La actividad sí contribuye sustancialmente a la sostenibilidad\"),SUM('Instituciones-crédito'!B155:H155),0),IF(AND('Base-datos'!$B$745=\"Sí\",'Base-datos'!$B$746=\"\",'Base-datos'!$B$747=\"Sí\"),IF(AND('Instituciones-crédito'!J155=\"La actividad sí contribuye sustancialmente a la sostenibilidad\",'Instituciones-crédito'!I155=\"La actividad sí contribuye sustancialmente a la sostenibilidad\"),SUM('Instituciones-crédito'!B155:H155),0),\"Por definir\"))))))))","v":"Por definir"}]
[{"$f":"Manufactura!$C42","v":"Seleccione"},{"$f":"IF(Manufactura!$E42='Instituciones-crédito'!B$12,Manufactura!$B42,\"\")","v":""},{"$f":"IF(Manufactura!$E42='Instituciones-crédito'!C$12,Manufactura!$B42,\"\")","v":""},{"$f":"IF(Manufactura!$E42='Instituciones-crédito'!D$12,Manufactura!$B42,\"\")","v":""},{"$f":"IF(Manufactura!$E42='Instituciones-crédito'!E$12,Manufactura!$B42,\"\")","v":""},{"$f":"IF(Manufactura!$E42='Instituciones-crédito'!F$12,Manufactura!$B42,\"\")","v":""},{"$f":"IF(Manufactura!$E42='Instituciones-crédito'!G$12,Manufactura!$B42,\"\")","v":""},{"$f":"IF(Manufactura!$E42='Instituciones-crédito'!H$12,Manufactura!$B42,\"\")","v":""},{"$f":"_xlfn.XLOOKUP(A156,'Base-datos'!$B$547:$B$552,'Base-datos'!$F$547:$F$552)","v":{"$error":"#N/A"}},{"$f":"_xlfn.XLOOKUP(A156,'Base-datos'!$B$547:$B$552,'Base-datos'!$C$547:$C$552)","v":{"$error":"#N/A"}},{"$f":"_xlfn.XLOOKUP(A156,'Base-datos'!$B$547:$B$552,'Base-datos'!$D$547:$D$552)","v":{"$error":"#N/A"}},null,null,{"$f":"IF(OR($L$140=\"La actividad no cumple con el total de los criterios de No Daño Significativo\",$M$140=\"El sector no cumple con las salvaguardas mínimas\"),\"\",IF(AND('Base-datos'!$B$745=\"Sí\",'Base-datos'!$B$746=\"\",'Base-datos'!$B$747=\"\"),IF('Instituciones-crédito'!J156=\"La actividad sí contribuye sustancialmente a la sostenibilidad\",SUM('Instituciones-crédito'!B156:H156),0),IF(AND('Base-datos'!$B$745=\"Sí\",'Base-datos'!$B$746=\"Sí\",'Base-datos'!$B$747=\"\"),IF(AND('Instituciones-crédito'!J156=\"La actividad sí contribuye sustancialmente a la sostenibilidad\",'Instituciones-crédito'!K156=\"La actividad sí contribuye sustancialmente a la sostenibilidad\"),SUM('Instituciones-crédito'!B156:H156),0),IF(AND('Base-datos'!$B$745=\"Sí\",'Base-datos'!$B$746=\"Sí\",'Base-datos'!$B$747=\"Sí\"),IF(AND('Instituciones-crédito'!J156=\"La actividad sí contribuye sustancialmente a la sostenibilidad\",'Instituciones-crédito'!K156=\"La actividad sí contribuye sustancialmente a la sostenibilidad\",'Instituciones-crédito'!I156=\"La actividad sí contribuye sustancialmente a la sostenibilidad\"),SUM('Instituciones-crédito'!B156:H156),0),IF(AND('Base-datos'!$B$745=\"\",'Base-datos'!$B$746=\"Sí\",'Base-datos'!$B$747=\"\"),IF('Instituciones-crédito'!K156=\"La actividad sí contribuye sustancialmente a la sostenibilidad\",SUM('Instituciones-crédito'!B156:H156),0),IF(AND('Base-datos'!$B$745=\"\",'Base-datos'!$B$746=\"\",'Base-datos'!$B$747=\"Sí\"),IF('Instituciones-crédito'!I156=\"La actividad sí contribuye sustancialmente a la sostenibilidad\",SUM('Instituciones-crédito'!B156:H156),0),IF(AND('Base-datos'!$B$745=\"\",'Base-datos'!$B$746=\"Sí\",'Base-datos'!$B$747=\"Sí\"),IF(AND('Instituciones-crédito'!K156=\"La actividad sí contribuye sustancialmente a la sostenibilidad\",'Instituciones-crédito'!I156=\"La actividad sí contribuye sustancialmente a la sostenibilidad\"),SUM('Instituciones-crédito'!B156:H156),0),IF(AND('Base-datos'!$B$745=\"Sí\",'Base-datos'!$B$746=\"\",'Base-datos'!$B$747=\"Sí\"),IF(AND('Instituciones-crédito'!J156=\"La actividad sí contribuye sustancialmente a la sostenibilidad\",'Instituciones-crédito'!I156=\"La actividad sí contribuye sustancialmente a la sostenibilidad\"),SUM('Instituciones-crédito'!B156:H156),0),\"Por definir\"))))))))","v":"Por definir"}]
[{"$f":"Manufactura!$C44","v":"Seleccione"},{"$f":"IF(Manufactura!$E44='Instituciones-crédito'!B$12,Manufactura!$B44,\"\")","v":""},{"$f":"IF(Manufactura!$E44='Instituciones-crédito'!C$12,Manufactura!$B44,\"\")","v":""},{"$f":"IF(Manufactura!$E44='Instituciones-crédito'!D$12,Manufactura!$B44,\"\")","v":""},{"$f":"IF(Manufactura!$E44='Instituciones-crédito'!E$12,Manufactura!$B44,\"\")","v":""},{"$f":"IF(Manufactura!$E44='Instituciones-crédito'!F$12,Manufactura!$B44,\"\")","v":""},{"$f":"IF(Manufactura!$E44='Instituciones-crédito'!G$12,Manufactura!$B44,\"\")","v":""},{"$f":"IF(Manufactura!$E44='Instituciones-crédito'!H$12,Manufactura!$B44,\"\")","v":""},{"$f":"_xlfn.XLOOKUP(A157,'Base-datos'!$B$547:$B$552,'Base-datos'!$F$547:$F$552)","v":{"$error":"#N/A"}},{"$f":"_xlfn.XLOOKUP(A157,'Base-datos'!$B$547:$B$552,'Base-datos'!$C$547:$C$552)","v":{"$error":"#N/A"}},{"$f":"_xlfn.XLOOKUP(A157,'Base-datos'!$B$547:$B$552,'Base-datos'!$D$547:$D$552)","v":{"$error":"#N/A"}},null,null,{"$f":"IF(OR($L$140=\"La actividad no cumple con el total de los criterios de No Daño Significativo\",$M$140=\"El sector no cumple con las salvaguardas mínimas\"),\"\",IF(AND('Base-datos'!$B$745=\"Sí\",'Base-datos'!$B$746=\"\",'Base-datos'!$B$747=\"\"),IF('Instituciones-crédito'!J157=\"La actividad sí contribuye sustancialmente a la sostenibilidad\",SUM('Instituciones-crédito'!B157:H157),0),IF(AND('Base-datos'!$B$745=\"Sí\",'Base-datos'!$B$746=\"Sí\",'Base-datos'!$B$747=\"\"),IF(AND('Instituciones-crédito'!J157=\"La actividad sí contribuye sustancialmente a la sostenibilidad\",'Instituciones-crédito'!K157=\"La actividad sí contribuye sustancialmente a la sostenibilidad\"),SUM('Instituciones-crédito'!B157:H157),0),IF(AND('Base-datos'!$B$745=\"Sí\",'Base-datos'!$B$746=\"Sí\",'Base-datos'!$B$747=\"Sí\"),IF(AND('Instituciones-crédito'!J157=\"La actividad sí contribuye sustancialmente a la sostenibilidad\",'Instituciones-crédito'!K157=\"La actividad sí contribuye sustancialmente a la sostenibilidad\",'Instituciones-crédito'!I157=\"La actividad sí contribuye sustancialmente a la sostenibilidad\"),SUM('Instituciones-crédito'!B157:H157),0),IF(AND('Base-datos'!$B$745=\"\",'Base-datos'!$B$746=\"Sí\",'Base-datos'!$B$747=\"\"),IF('Instituciones-crédito'!K157=\"La actividad sí contribuye sustancialmente a la sostenibilidad\",SUM('Instituciones-crédito'!B157:H157),0),IF(AND('Base-datos'!$B$745=\"\",'Base-datos'!$B$746=\"\",'Base-datos'!$B$747=\"Sí\"),IF('Instituciones-crédito'!I157=\"La actividad sí contribuye sustancialmente a la sostenibilidad\",SUM('Instituciones-crédito'!B157:H157),0),IF(AND('Base-datos'!$B$745=\"\",'Base-datos'!$B$746=\"Sí\",'Base-datos'!$B$747=\"Sí\"),IF(AND('Instituciones-crédito'!K157=\"La actividad sí contribuye sustancialmente a la sostenibilidad\",'Instituciones-crédito'!I157=\"La actividad sí contribuye sustancialmente a la sostenibilidad\"),SUM('Instituciones-crédito'!B157:H157),0),IF(AND('Base-datos'!$B$745=\"Sí\",'Base-datos'!$B$746=\"\",'Base-datos'!$B$747=\"Sí\"),IF(AND('Instituciones-crédito'!J157=\"La actividad sí contribuye sustancialmente a la sostenibilidad\",'Instituciones-crédito'!I157=\"La actividad sí contribuye sustancialmente a la sostenibilidad\"),SUM('Instituciones-crédito'!B157:H157),0),\"Por definir\"))))))))","v":"Por definir"}]
[{"$f":"Manufactura!$C46","v":"Seleccione"},{"$f":"IF(Manufactura!$E46='Instituciones-crédito'!B$12,Manufactura!$B46,\"\")","v":""},{"$f":"IF(Manufactura!$E46='Instituciones-crédito'!C$12,Manufactura!$B46,\"\")","v":""},{"$f":"IF(Manufactura!$E46='Instituciones-crédito'!D$12,Manufactura!$B46,\"\")","v":""},{"$f":"IF(Manufactura!$E46='Instituciones-crédito'!E$12,Manufactura!$B46,\"\")","v":""},{"$f":"IF(Manufactura!$E46='Instituciones-crédito'!F$12,Manufactura!$B46,\"\")","v":""},{"$f":"IF(Manufactura!$E46='Instituciones-crédito'!G$12,Manufactura!$B46,\"\")","v":""},{"$f":"IF(Manufactura!$E46='Instituciones-crédito'!H$12,Manufactura!$B46,\"\")","v":""},{"$f":"_xlfn.XLOOKUP(A158,'Base-datos'!$B$547:$B$552,'Base-datos'!$F$547:$F$552)","v":{"$error":"#N/A"}},{"$f":"_xlfn.XLOOKUP(A158,'Base-datos'!$B$547:$B$552,'Base-datos'!$C$547:$C$552)","v":{"$error":"#N/A"}},{"$f":"_xlfn.XLOOKUP(A158,'Base-datos'!$B$547:$B$552,'Base-datos'!$D$547:$D$552)","v":{"$error":"#N/A"}},null,null,{"$f":"IF(OR($L$140=\"La actividad no cumple con el total de los criterios de No Daño Significativo\",$M$140=\"El sector no cumple con las salvaguardas mínimas\"),\"\",IF(AND('Base-datos'!$B$745=\"Sí\",'Base-datos'!$B$746=\"\",'Base-datos'!$B$747=\"\"),IF('Instituciones-crédito'!J158=\"La actividad sí contribuye sustancialmente a la sostenibilidad\",SUM('Instituciones-crédito'!B158:H158),0),IF(AND('Base-datos'!$B$745=\"Sí\",'Base-datos'!$B$746=\"Sí\",'Base-datos'!$B$747=\"\"),IF(AND('Instituciones-crédito'!J158=\"La actividad sí contribuye sustancialmente a la sostenibilidad\",'Instituciones-crédito'!K158=\"La actividad sí contribuye sustancialmente a la sostenibilidad\"),SUM('Instituciones-crédito'!B158:H158),0),IF(AND('Base-datos'!$B$745=\"Sí\",'Base-datos'!$B$746=\"Sí\",'Base-datos'!$B$747=\"Sí\"),IF(AND('Instituciones-crédito'!J158=\"La actividad sí contribuye sustancialmente a la sostenibilidad\",'Instituciones-crédito'!K158=\"La actividad sí contribuye sustancialmente a la sostenibilidad\",'Instituciones-crédito'!I158=\"La actividad sí contribuye sustancialmente a la sostenibilidad\"),SUM('Instituciones-crédito'!B158:H158),0),IF(AND('Base-datos'!$B$745=\"\",'Base-datos'!$B$746=\"Sí\",'Base-datos'!$B$747=\"\"),IF('Instituciones-crédito'!K158=\"La actividad sí contribuye sustancialmente a la sostenibilidad\",SUM('Instituciones-crédito'!B158:H158),0),IF(AND('Base-datos'!$B$745=\"\",'Base-datos'!$B$746=\"\",'Base-datos'!$B$747=\"Sí\"),IF('Instituciones-crédito'!I158=\"La actividad sí contribuye sustancialmente a la sostenibilidad\",SUM('Instituciones-crédito'!B158:H158),0),IF(AND('Base-datos'!$B$745=\"\",'Base-datos'!$B$746=\"Sí\",'Base-datos'!$B$747=\"Sí\"),IF(AND('Instituciones-crédito'!K158=\"La actividad sí contribuye sustancialmente a la sostenibilidad\",'Instituciones-crédito'!I158=\"La actividad sí contribuye sustancialmente a la sostenibilidad\"),SUM('Instituciones-crédito'!B158:H158),0),IF(AND('Base-datos'!$B$745=\"Sí\",'Base-datos'!$B$746=\"\",'Base-datos'!$B$747=\"Sí\"),IF(AND('Instituciones-crédito'!J158=\"La actividad sí contribuye sustancialmente a la sostenibilidad\",'Instituciones-crédito'!I158=\"La actividad sí contribuye sustancialmente a la sostenibilidad\"),SUM('Instituciones-crédito'!B158:H158),0),\"Por definir\"))))))))","v":"Por definir"}]
[{"$f":"Manufactura!$C48","v":"Seleccione"},{"$f":"IF(Manufactura!$E48='Instituciones-crédito'!B$12,Manufactura!$B48,\"\")","v":""},{"$f":"IF(Manufactura!$E48='Instituciones-crédito'!C$12,Manufactura!$B48,\"\")","v":""},{"$f":"IF(Manufactura!$E48='Instituciones-crédito'!D$12,Manufactura!$B48,\"\")","v":""},{"$f":"IF(Manufactura!$E48='Instituciones-crédito'!E$12,Manufactura!$B48,\"\")","v":""},{"$f":"IF(Manufactura!$E48='Instituciones-crédito'!F$12,Manufactura!$B48,\"\")","v":""},{"$f":"IF(Manufactura!$E48='Instituciones-crédito'!G$12,Manufactura!$B48,\"\")","v":""},{"$f":"IF(Manufactura!$E48='Instituciones-crédito'!H$12,Manufactura!$B48,\"\")","v":""},{"$f":"_xlfn.XLOOKUP(A159,'Base-datos'!$B$547:$B$552,'Base-datos'!$F$547:$F$552)","v":{"$error":"#N/A"}},{"$f":"_xlfn.XLOOKUP(A159,'Base-datos'!$B$547:$B$552,'Base-datos'!$C$547:$C$552)","v":{"$error":"#N/A"}},{"$f":"_xlfn.XLOOKUP(A159,'Base-datos'!$B$547:$B$552,'Base-datos'!$D$547:$D$552)","v":{"$error":"#N/A"}},null,null,{"$f":"IF(OR($L$140=\"La actividad no cumple con el total de los criterios de No Daño Significativo\",$M$140=\"El sector no cumple con las salvaguardas mínimas\"),\"\",IF(AND('Base-datos'!$B$745=\"Sí\",'Base-datos'!$B$746=\"\",'Base-datos'!$B$747=\"\"),IF('Instituciones-crédito'!J159=\"La actividad sí contribuye sustancialmente a la sostenibilidad\",SUM('Instituciones-crédito'!B159:H159),0),IF(AND('Base-datos'!$B$745=\"Sí\",'Base-datos'!$B$746=\"Sí\",'Base-datos'!$B$747=\"\"),IF(AND('Instituciones-crédito'!J159=\"La actividad sí contribuye sustancialmente a la sostenibilidad\",'Instituciones-crédito'!K159=\"La actividad sí contribuye sustancialmente a la sostenibilidad\"),SUM('Instituciones-crédito'!B159:H159),0),IF(AND('Base-datos'!$B$745=\"Sí\",'Base-datos'!$B$746=\"Sí\",'Base-datos'!$B$747=\"Sí\"),IF(AND('Instituciones-crédito'!J159=\"La actividad sí contribuye sustancialmente a la sostenibilidad\",'Instituciones-crédito'!K159=\"La actividad sí contribuye sustancialmente a la sostenibilidad\",'Instituciones-crédito'!I159=\"La actividad sí contribuye sustancialmente a la sostenibilidad\"),SUM('Instituciones-crédito'!B159:H159),0),IF(AND('Base-datos'!$B$745=\"\",'Base-datos'!$B$746=\"Sí\",'Base-datos'!$B$747=\"\"),IF('Instituciones-crédito'!K159=\"La actividad sí contribuye sustancialmente a la sostenibilidad\",SUM('Instituciones-crédito'!B159:H159),0),IF(AND('Base-datos'!$B$745=\"\",'Base-datos'!$B$746=\"\",'Base-datos'!$B$747=\"Sí\"),IF('Instituciones-crédito'!I159=\"La actividad sí contribuye sustancialmente a la sostenibilidad\",SUM('Instituciones-crédito'!B159:H159),0),IF(AND('Base-datos'!$B$745=\"\",'Base-datos'!$B$746=\"Sí\",'Base-datos'!$B$747=\"Sí\"),IF(AND('Instituciones-crédito'!K159=\"La actividad sí contribuye sustancialmente a la sostenibilidad\",'Instituciones-crédito'!I159=\"La actividad sí contribuye sustancialmente a la sostenibilidad\"),SUM('Instituciones-crédito'!B159:H159),0),IF(AND('Base-datos'!$B$745=\"Sí\",'Base-datos'!$B$746=\"\",'Base-datos'!$B$747=\"Sí\"),IF(AND('Instituciones-crédito'!J159=\"La actividad sí contribuye sustancialmente a la sostenibilidad\",'Instituciones-crédito'!I159=\"La actividad sí contribuye sustancialmente a la sostenibilidad\"),SUM('Instituciones-crédito'!B159:H159),0),\"Por definir\"))))))))","v":"Por definir"}]
["Transporte",null,null,null,null,null,null,null,null,null,null,null,null,{"$f":"SUM(IF(FREQUENCY(MATCH(A161:A180, A161:A180, 0), MATCH(A161:A180, A161:A180, 0)) > 0, IF(NOT(ISERROR(N161:N180)), N161:N180, 0)))","v":0}]
[{"$f":"Transporte!$C10","v":"Seleccione"},{"$f":"IF(Transporte!$E10='Instituciones-crédito'!B$12,Transporte!$B10,\"\")","v":""},{"$f":"IF(Transporte!$E10='Instituciones-crédito'!C$12,Transporte!$B10,\"\")","v":""},{"$f":"IF(Transporte!$E10='Instituciones-crédito'!D$12,Transporte!$B10,\"\")","v":""},{"$f":"IF(Transporte!$E10='Instituciones-crédito'!E$12,Transporte!$B10,\"\")","v":""},{"$f":"IF(Transporte!$E10='Instituciones-crédito'!F$12,Transporte!$B10,\"\")","v":""},{"$f":"IF(Transporte!$E10='Instituciones-crédito'!G$12,Transporte!$B10,\"\")","v":""},{"$f":"IF(Transporte!$E10='Instituciones-crédito'!H$12,Transporte!$B10,\"\")","v":""},{"$f":"_xlfn.XLOOKUP(A161,'Base-datos'!$B$553:$B$570,'Base-datos'!$F$553:$F$570)","v":{"$error":"#N/A"}},{"$f":"_xlfn.XLOOKUP(A161,'Base-datos'!$B$553:$B$570,'Base-datos'!$C$553:$C$570)","v":{"$error":"#N/A"}},{"$f":"_xlfn.XLOOKUP(A161,'Base-datos'!$B$553:$B$570,'Base-datos'!$D$553:$D$570)","v":{"$error":"#N/A"}},{"$f":"IF(COUNTIF('Transporte-NDS'!G9:G84,\"No\")>0,\"La actividad no cumple con el total de los criterios de NDS\",\"La actividad cumple con los criterios de No Daño Significativo\")","v":"La actividad cumple con los criterios de No Daño Significativo"},{"$f":"IF(OR('Salvaguardas mínimas'!$G$10=\"Seleccione\",'Salvaguardas mínimas'!$G$13=\"Seleccione\",'Salvaguardas mínimas'!$G$16=\"Seleccione\",'Salvaguardas mínimas'!$G$7=\"Seleccione\"),\"No se han respondido todas las preguntas\",IF(OR('Salvaguardas mínimas'!$G$10=\"No\",'Salvaguardas mínimas'!$G$13=\"No\",'Salvaguardas mínimas'!$G$16=\"No\",'Salvaguardas mínimas'!$G$7=\"No\"),\"El sector no cumple con las salvaguardas mínimas\",\"La actividad sí cumple con las salvaguardas mínimas\"))","v":"No se han respondido todas las preguntas"},{"$f":"IF(OR($L$161=\"La actividad no cumple con el total de los criterios de No Daño Significativo\",$M$161=\"El sector no cumple con las salvaguardas mínimas\"),\"\",IF(AND('Base-datos'!$B$750=\"Sí\",'Base-datos'!$B$751=\"\",'Base-datos'!$B$752=\"\"),IF('Instituciones-crédito'!J161=\"La actividad sí contribuye sustancialmente a la sostenibilidad\",SUM('Instituciones-crédito'!B161:H161),0),IF(AND('Base-datos'!$B$750=\"Sí\",'Base-datos'!$B$751=\"Sí\",'Base-datos'!$B$752=\"\"),IF(AND('Instituciones-crédito'!J161=\"La actividad sí contribuye sustancialmente a la sostenibilidad\",'Instituciones-crédito'!K161=\"La actividad sí contribuye sustancialmente a la sostenibilidad\"),SUM('Instituciones-crédito'!B161:H161),0),IF(AND('Base-datos'!$B$750=\"Sí\",'Base-datos'!$B$751=\"Sí\",'Base-datos'!$B$752=\"Sí\"),IF(AND('Instituciones-crédito'!J161=\"La actividad sí contribuye sustancialmente a la sostenibilidad\",'Instituciones-crédito'!K161=\"La actividad sí contribuye sustancialmente a la sostenibilidad\",'Instituciones-crédito'!I161=\"La actividad sí contribuye sustancialmente a la sostenibilidad\"),SUM('Instituciones-crédito'!B161:H161),0),IF(AND('Base-datos'!$B$750=\"\",'Base-datos'!$B$751=\"Sí\",'Base-datos'!$B$752=\"\"),IF('Instituciones-crédito'!K161=\"La actividad sí contribuye sustancialmente a la sostenibilidad\",SUM('Instituciones-crédito'!B161:H161),0),IF(AND('Base-datos'!$B$750=\"\",'Base-datos'!$B$751=\"\",'Base-datos'!$B$752=\"Sí\"),IF('Instituciones-crédito'!I161=\"La actividad sí contribuye sustancialmente a la sostenibilidad\",SUM('Instituciones-crédito'!B161:H161),0),IF(AND('Base-datos'!$B$750=\"\",'Base-datos'!$B$751=\"Sí\",'Base-datos'!$B$752=\"Sí\"),IF(AND('Instituciones-crédito'!K161=\"La actividad sí contribuye sustancialmente a la sostenibilidad\",'Instituciones-crédito'!I161=\"La actividad sí contribuye sustancialmente a la sostenibilidad\"),SUM('Instituciones-crédito'!B161:H161),0),IF(AND('Base-datos'!$B$750=\"Sí\",'Base-datos'!$B$751=\"\",'Base-datos'!$B$752=\"Sí\"),IF(AND('Instituciones-crédito'!J161=\"La actividad sí contribuye sustancialmente a la sostenibilidad\",'Instituciones-crédito'!I161=\"La actividad sí contribuye sustancialmente a la sostenibilidad\"),SUM('Instituciones-crédito'!B161:H161),0),\"Por definir\"))))))))","v":"Por definir"}]
[{"$f":"Transporte!$C12","v":"Seleccione"},{"$f":"IF(Transporte!$E12='Instituciones-crédito'!B$12,Transporte!$B12,\"\")","v":""},{"$f":"IF(Transporte!$E12='Instituciones-crédito'!C$12,Transporte!$B12,\"\")","v":""},{"$f":"IF(Transporte!$E12='Instituciones-crédito'!D$12,Transporte!$B12,\"\")","v":""},{"$f":"IF(Transporte!$E12='Instituciones-crédito'!E$12,Transporte!$B12,\"\")","v":""},{"$f":"IF(Transporte!$E12='Instituciones-crédito'!F$12,Transporte!$B12,\"\")","v":""},{"$f":"IF(Transporte!$E12='Instituciones-crédito'!G$12,Transporte!$B12,\"\")","v":""},{"$f":"IF(Transporte!$E12='Instituciones-crédito'!H$12,Transporte!$B12,\"\")","v":""},{"$f":"_xlfn.XLOOKUP(A162,'Base-datos'!$B$553:$B$570,'Base-datos'!$F$553:$F$570)","v":{"$error":"#N/A"}},{"$f":"_xlfn.XLOOKUP(A162,'Base-datos'!$B$553:$B$570,'Base-datos'!$C$553:$C$570)","v":{"$error":"#N/A"}},{"$f":"_xlfn.XLOOKUP(A162,'Base-datos'!$B$553:$B$570,'Base-datos'!$D$553:$D$570)","v":{"$error":"#N/A"}},null,null,{"$f":"IF(OR($L$161=\"La actividad no cumple con el total de los criterios de No Daño Significativo\",$M$161=\"El sector no cumple con las salvaguardas mínimas\"),\"\",IF(AND('Base-datos'!$B$750=\"Sí\",'Base-datos'!$B$751=\"\",'Base-datos'!$B$752=\"\"),IF('Instituciones-crédito'!J162=\"La actividad sí contribuye sustancialmente a la sostenibilidad\",SUM('Instituciones-crédito'!B162:H162),0),IF(AND('Base-datos'!$B$750=\"Sí\",'Base-datos'!$B$751=\"Sí\",'Base-datos'!$B$752=\"\"),IF(AND('Instituciones-crédito'!J162=\"La actividad sí contribuye sustancialmente a la sostenibilidad\",'Instituciones-crédito'!K162=\"La actividad sí contribuye sustancialmente a la sostenibilidad\"),SUM('Instituciones-crédito'!B162:H162),0),IF(AND('Base-datos'!$B$750=\"Sí\",'Base-datos'!$B$751=\"Sí\",'Base-datos'!$B$752=\"Sí\"),IF(AND('Instituciones-crédito'!J162=\"La actividad sí contribuye sustancialmente a la sostenibilidad\",'Instituciones-crédito'!K162=\"La actividad sí contribuye sustancialmente a la sostenibilidad\",'Instituciones-crédito'!I162=\"La actividad sí contribuye sustancialmente a la sostenibilidad\"),SUM('Instituciones-crédito'!B162:H162),0),IF(AND('Base-datos'!$B$750=\"\",'Base-datos'!$B$751=\"Sí\",'Base-datos'!$B$752=\"\"),IF('Instituciones-crédito'!K162=\"La actividad sí contribuye sustancialmente a la sostenibilidad\",SUM('Instituciones-crédito'!B162:H162),0),IF(AND('Base-datos'!$B$750=\"\",'Base-datos'!$B$751=\"\",'Base-datos'!$B$752=\"Sí\"),IF('Instituciones-crédito'!I162=\"La actividad sí contribuye sustancialmente a la sostenibilidad\",SUM('Instituciones-crédito'!B162:H162),0),IF(AND('Base-datos'!$B$750=\"\",'Base-datos'!$B$751=\"Sí\",'Base-datos'!$B$752=\"Sí\"),IF(AND('Instituciones-crédito'!K162=\"La actividad sí contribuye sustancialmente a la sostenibilidad\",'Instituciones-crédito'!I162=\"La actividad sí contribuye sustancialmente a la sostenibilidad\"),SUM('Instituciones-crédito'!B162:H162),0),IF(AND('Base-datos'!$B$750=\"Sí\",'Base-datos'!$B$751=\"\",'Base-datos'!$B$752=\"Sí\"),IF(AND('Instituciones-crédito'!J162=\"La actividad sí contribuye sustancialmente a la sostenibilidad\",'Instituciones-crédito'!I162=\"La actividad sí contribuye sustancialmente a la sostenibilidad\"),SUM('Instituciones-crédito'!B162:H162),0),\"Por definir\"))))))))","v":"Por definir"}]
[{"$f":"Transporte!$C14","v":"Seleccione"},{"$f":"IF(Transporte!$E14='Instituciones-crédito'!B$12,Transporte!$B14,\"\")","v":""},{"$f":"IF(Transporte!$E14='Instituciones-crédito'!C$12,Transporte!$B14,\"\")","v":""},{"$f":"IF(Transporte!$E14='Instituciones-crédito'!D$12,Transporte!$B14,\"\")","v":""},{"$f":"IF(Transporte!$E14='Instituciones-crédito'!E$12,Transporte!$B14,\"\")","v":""},{"$f":"IF(Transporte!$E14='Instituciones-crédito'!F$12,Transporte!$B14,\"\")","v":""},{"$f":"IF(Transporte!$E14='Instituciones-crédito'!G$12,Transporte!$B14,\"\")","v":""},{"$f":"IF(Transporte!$E14='Instituciones-crédito'!H$12,Transporte!$B14,\"\")","v":""},{"$f":"_xlfn.XLOOKUP(A163,'Base-datos'!$B$553:$B$570,'Base-datos'!$F$553:$F$570)","v":{"$error":"#N/A"}},{"$f":"_xlfn.XLOOKUP(A163,'Base-datos'!$B$553:$B$570,'Base-datos'!$C$553:$C$570)","v":{"$error":"#N/A"}},{"$f":"_xlfn.XLOOKUP(A163,'Base-datos'!$B$553:$B$570,'Base-datos'!$D$553:$D$570)","v":{"$error":"#N/A"}},null,null,{"$f":"IF(OR($L$161=\"La actividad no cumple con el total de los criterios de No Daño Significativo\",$M$161=\"El sector no cumple con las salvaguardas mínimas\"),\"\",IF(AND('Base-datos'!$B$750=\"Sí\",'Base-datos'!$B$751=\"\",'Base-datos'!$B$752=\"\"),IF('Instituciones-crédito'!J163=\"La actividad sí contribuye sustancialmente a la sostenibilidad\",SUM('Instituciones-crédito'!B163:H163),0),IF(AND('Base-datos'!$B$750=\"Sí\",'Base-datos'!$B$751=\"Sí\",'Base-datos'!$B$752=\"\"),IF(AND('Instituciones-crédito'!J163=\"La actividad sí contribuye sustancialmente a la sostenibilidad\",'Instituciones-crédito'!K163=\"La actividad sí contribuye sustancialmente a la sostenibilidad\"),SUM('Instituciones-crédito'!B163:H163),0),IF(AND('Base-datos'!$B$750=\"Sí\",'Base-datos'!$B$751=\"Sí\",'Base-datos'!$B$752=\"Sí\"),IF(AND('Instituciones-crédito'!J163=\"La actividad sí contribuye sustancialmente a la sostenibilidad\",'Instituciones-crédito'!K163=\"La actividad sí contribuye sustancialmente a la sostenibilidad\",'Instituciones-crédito'!I163=\"La actividad sí contribuye sustancialmente a la sostenibilidad\"),SUM('Instituciones-crédito'!B163:H163),0),IF(AND('Base-datos'!$B$750=\"\",'Base-datos'!$B$751=\"Sí\",'Base-datos'!$B$752=\"\"),IF('Instituciones-crédito'!K163=\"La actividad sí contribuye sustancialmente a la sostenibilidad\",SUM('Instituciones-crédito'!B163:H163),0),IF(AND('Base-datos'!$B$750=\"\",'Base-datos'!$B$751=\"\",'Base-datos'!$B$752=\"Sí\"),IF('Instituciones-crédito'!I163=\"La actividad sí contribuye sustancialmente a la sostenibilidad\",SUM('Instituciones-crédito'!B163:H163),0),IF(AND('Base-datos'!$B$750=\"\",'Base-datos'!$B$751=\"Sí\",'Base-datos'!$B$752=\"Sí\"),IF(AND('Instituciones-crédito'!K163=\"La actividad sí contribuye sustancialmente a la sostenibilidad\",'Instituciones-crédito'!I163=\"La actividad sí contribuye sustancialmente a la sostenibilidad\"),SUM('Instituciones-crédito'!B163:H163),0),IF(AND('Base-datos'!$B$750=\"Sí\",'Base-datos'!$B$751=\"\",'Base-datos'!$B$752=\"Sí\"),IF(AND('Instituciones-crédito'!J163=\"La actividad sí contribuye sustancialmente a la sostenibilidad\",'Instituciones-crédito'!I163=\"La actividad sí contribuye sustancialmente a la sostenibilidad\"),SUM('Instituciones-crédito'!B163:H163),0),\"Por definir\"))))))))","v":"Por definir"}]
[{"$f":"Transporte!$C16","v":"Seleccione"},{"$f":"IF(Transporte!$E16='Instituciones-crédito'!B$12,Transporte!$B16,\"\")","v":""},{"$f":"IF(Transporte!$E16='Instituciones-crédito'!C$12,Transporte!$B16,\"\")","v":""},{"$f":"IF(Transporte!$E16='Instituciones-crédito'!D$12,Transporte!$B16,\"\")","v":""},{"$f":"IF(Transporte!$E16='Instituciones-crédito'!E$12,Transporte!$B16,\"\")","v":""},{"$f":"IF(Transporte!$E16='Instituciones-crédito'!F$12,Transporte!$B16,\"\")","v":""},{"$f":"IF(Transporte!$E16='Instituciones-crédito'!G$12,Transporte!$B16,\"\")","v":""},{"$f":"IF(Transporte!$E16='Instituciones-crédito'!H$12,Transporte!$B16,\"\")","v":""},{"$f":"_xlfn.XLOOKUP(A164,'Base-datos'!$B$553:$B$570,'Base-datos'!$F$553:$F$570)","v":{"$error":"#N/A"}},{"$f":"_xlfn.XLOOKUP(A164,'Base-datos'!$B$553:$B$570,'Base-datos'!$C$553:$C$570)","v":{"$error":"#N/A"}},{"$f":"_xlfn.XLOOKUP(A164,'Base-datos'!$B$553:$B$570,'Base-datos'!$D$553:$D$570)","v":{"$error":"#N/A"}},null,null,{"$f":"IF(OR($L$161=\"La actividad no cumple con el total de los criterios de No Daño Significativo\",$M$161=\"El sector no cumple con las salvaguardas mínimas\"),\"\",IF(AND('Base-datos'!$B$750=\"Sí\",'Base-datos'!$B$751=\"\",'Base-datos'!$B$752=\"\"),IF('Instituciones-crédito'!J164=\"La actividad sí contribuye sustancialmente a la sostenibilidad\",SUM('Instituciones-crédito'!B164:H164),0),IF(AND('Base-datos'!$B$750=\"Sí\",'Base-datos'!$B$751=\"Sí\",'Base-datos'!$B$752=\"\"),IF(AND('Instituciones-crédito'!J164=\"La actividad sí contribuye sustancialmente a la sostenibilidad\",'Instituciones-crédito'!K164=\"La actividad sí contribuye sustancialmente a la sostenibilidad\"),SUM('Instituciones-crédito'!B164:H164),0),IF(AND('Base-datos'!$B$750=\"Sí\",'Base-datos'!$B$751=\"Sí\",'Base-datos'!$B$752=\"Sí\"),IF(AND('Instituciones-crédito'!J164=\"La actividad sí contribuye sustancialmente a la sostenibilidad\",'Instituciones-crédito'!K164=\"La actividad sí contribuye sustancialmente a la sostenibilidad\",'Instituciones-crédito'!I164=\"La actividad sí contribuye sustancialmente a la sostenibilidad\"),SUM('Instituciones-crédito'!B164:H164),0),IF(AND('Base-datos'!$B$750=\"\",'Base-datos'!$B$751=\"Sí\",'Base-datos'!$B$752=\"\"),IF('Instituciones-crédito'!K164=\"La actividad sí contribuye sustancialmente a la sostenibilidad\",SUM('Instituciones-crédito'!B164:H164),0),IF(AND('Base-datos'!$B$750=\"\",'Base-datos'!$B$751=\"\",'Base-datos'!$B$752=\"Sí\"),IF('Instituciones-crédito'!I164=\"La actividad sí contribuye sustancialmente a la sostenibilidad\",SUM('Instituciones-crédito'!B164:H164),0),IF(AND('Base-datos'!$B$750=\"\",'Base-datos'!$B$751=\"Sí\",'Base-datos'!$B$752=\"Sí\"),IF(AND('Instituciones-crédito'!K164=\"La actividad sí contribuye sustancialmente a la sostenibilidad\",'Instituciones-crédito'!I164=\"La actividad sí contribuye sustancialmente a la sostenibilidad\"),SUM('Instituciones-crédito'!B164:H164),0),IF(AND('Base-datos'!$B$750=\"Sí\",'Base-datos'!$B$751=\"\",'Base-datos'!$B$752=\"Sí\"),IF(AND('Instituciones-crédito'!J164=\"La actividad sí contribuye sustancialmente a la sostenibilidad\",'Instituciones-crédito'!I164=\"La actividad sí contribuye sustancialmente a la sostenibilidad\"),SUM('Instituciones-crédito'!B164:H164),0),\"Por definir\"))))))))","v":"Por definir"}]
[{"$f":"Transporte!$C18","v":"Seleccione"},{"$f":"IF(Transporte!$E18='Instituciones-crédito'!B$12,Transporte!$B18,\"\")","v":""},{"$f":"IF(Transporte!$E18='Instituciones-crédito'!C$12,Transporte!$B18,\"\")","v":""},{"$f":"IF(Transporte!$E18='Instituciones-crédito'!D$12,Transporte!$B18,\"\")","v":""},{"$f":"IF(Transporte!$E18='Instituciones-crédito'!E$12,Transporte!$B18,\"\")","v":""},{"$f":"IF(Transporte!$E18='Instituciones-crédito'!F$12,Transporte!$B18,\"\")","v":""},{"$f":"IF(Transporte!$E18='Instituciones-crédito'!G$12,Transporte!$B18,\"\")","v":""},{"$f":"IF(Transporte!$E18='Instituciones-crédito'!H$12,Transporte!$B18,\"\")","v":""},{"$f":"_xlfn.XLOOKUP(A165,'Base-datos'!$B$553:$B$570,'Base-datos'!$F$553:$F$570)","v":{"$error":"#N/A"}},{"$f":"_xlfn.XLOOKUP(A165,'Base-datos'!$B$553:$B$570,'Base-datos'!$C$553:$C$570)","v":{"$error":"#N/A"}},{"$f":"_xlfn.XLOOKUP(A165,'Base-datos'!$B$553:$B$570,'Base-datos'!$D$553:$D$570)","v":{"$error":"#N/A"}},null,null,{"$f":"IF(OR($L$161=\"La actividad no cumple con el total de los criterios de No Daño Significativo\",$M$161=\"El sector no cumple con las salvaguardas mínimas\"),\"\",IF(AND('Base-datos'!$B$750=\"Sí\",'Base-datos'!$B$751=\"\",'Base-datos'!$B$752=\"\"),IF('Instituciones-crédito'!J165=\"La actividad sí contribuye sustancialmente a la sostenibilidad\",SUM('Instituciones-crédito'!B165:H165),0),IF(AND('Base-datos'!$B$750=\"Sí\",'Base-datos'!$B$751=\"Sí\",'Base-datos'!$B$752=\"\"),IF(AND('Instituciones-crédito'!J165=\"La actividad sí contribuye sustancialmente a la sostenibilidad\",'Instituciones-crédito'!K165=\"La actividad sí contribuye sustancialmente a la sostenibilidad\"),SUM('Instituciones-crédito'!B165:H165),0),IF(AND('Base-datos'!$B$750=\"Sí\",'Base-datos'!$B$751=\"Sí\",'Base-datos'!$B$752=\"Sí\"),IF(AND('Instituciones-crédito'!J165=\"La actividad sí contribuye sustancialmente a la sostenibilidad\",'Instituciones-crédito'!K165=\"La actividad sí contribuye sustancialmente a la sostenibilidad\",'Instituciones-crédito'!I165=\"La actividad sí contribuye sustancialmente a la sostenibilidad\"),SUM('Instituciones-crédito'!B165:H165),0),IF(AND('Base-datos'!$B$750=\"\",'Base-datos'!$B$751=\"Sí\",'Base-datos'!$B$752=\"\"),IF('Instituciones-crédito'!K165=\"La actividad sí contribuye sustancialmente a la sostenibilidad\",SUM('Instituciones-crédito'!B165:H165),0),IF(AND('Base-datos'!$B$750=\"\",'Base-datos'!$B$751=\"\",'Base-datos'!$B$752=\"Sí\"),IF('Instituciones-crédito'!I165=\"La actividad sí contribuye sustancialmente a la sostenibilidad\",SUM('Instituciones-crédito'!B165:H165),0),IF(AND('Base-datos'!$B$750=\"\",'Base-datos'!$B$751=\"Sí\",'Base-datos'!$B$752=\"Sí\"),IF(AND('Instituciones-crédito'!K165=\"La actividad sí contribuye sustancialmente a la sostenibilidad\",'Instituciones-crédito'!I165=\"La actividad sí contribuye sustancialmente a la sostenibilidad\"),SUM('Instituciones-crédito'!B165:H165),0),IF(AND('Base-datos'!$B$750=\"Sí\",'Base-datos'!$B$751=\"\",'Base-datos'!$B$752=\"Sí\"),IF(AND('Instituciones-crédito'!J165=\"La actividad sí contribuye sustancialmente a la sostenibilidad\",'Instituciones-crédito'!I165=\"La actividad sí contribuye sustancialmente a la sostenibilidad\"),SUM('Instituciones-crédito'!B165:H165),0),\"Por definir\"))))))))","v":"Por definir"}]
[{"$f":"Transporte!$C20","v":"Seleccione"},{"$f":"IF(Transporte!$E20='Instituciones-crédito'!B$12,Transporte!$B20,\"\")","v":""},{"$f":"IF(Transporte!$E20='Instituciones-crédito'!C$12,Transporte!$B20,\"\")","v":""},{"$f":"IF(Transporte!$E20='Instituciones-crédito'!D$12,Transporte!$B20,\"\")","v":""},{"$f":"IF(Transporte!$E20='Instituciones-crédito'!E$12,Transporte!$B20,\"\")","v":""},{"$f":"IF(Transporte!$E20='Instituciones-crédito'!F$12,Transporte!$B20,\"\")","v":""},{"$f":"IF(Transporte!$E20='Instituciones-crédito'!G$12,Transporte!$B20,\"\")","v":""},{"$f":"IF(Transporte!$E20='Instituciones-crédito'!H$12,Transporte!$B20,\"\")","v":""},{"$f":"_xlfn.XLOOKUP(A166,'Base-datos'!$B$553:$B$570,'Base-datos'!$F$553:$F$570)","v":{"$error":"#N/A"}},{"$f":"_xlfn.XLOOKUP(A166,'Base-datos'!$B$553:$B$570,'Base-datos'!$C$553:$C$570)","v":{"$error":"#N/A"}},{"$f":"_xlfn.XLOOKUP(A166,'Base-datos'!$B$553:$B$570,'Base-datos'!$D$553:$D$570)","v":{"$error":"#N/A"}},null,null,{"$f":"IF(OR($L$161=\"La actividad no cumple con el total de los criterios de No Daño Significativo\",$M$161=\"El sector no cumple con las salvaguardas mínimas\"),\"\",IF(AND('Base-datos'!$B$750=\"Sí\",'Base-datos'!$B$751=\"\",'Base-datos'!$B$752=\"\"),IF('Instituciones-crédito'!J166=\"La actividad sí contribuye sustancialmente a la sostenibilidad\",SUM('Instituciones-crédito'!B166:H166),0),IF(AND('Base-datos'!$B$750=\"Sí\",'Base-datos'!$B$751=\"Sí\",'Base-datos'!$B$752=\"\"),IF(AND('Instituciones-crédito'!J166=\"La actividad sí contribuye sustancialmente a la sostenibilidad\",'Instituciones-crédito'!K166=\"La actividad sí contribuye sustancialmente a la sostenibilidad\"),SUM('Instituciones-crédito'!B166:H166),0),IF(AND('Base-datos'!$B$750=\"Sí\",'Base-datos'!$B$751=\"Sí\",'Base-datos'!$B$752=\"Sí\"),IF(AND('Instituciones-crédito'!J166=\"La actividad sí contribuye sustancialmente a la sostenibilidad\",'Instituciones-crédito'!K166=\"La actividad sí contribuye sustancialmente a la sostenibilidad\",'Instituciones-crédito'!I166=\"La actividad sí contribuye sustancialmente a la sostenibilidad\"),SUM('Instituciones-crédito'!B166:H166),0),IF(AND('Base-datos'!$B$750=\"\",'Base-datos'!$B$751=\"Sí\",'Base-datos'!$B$752=\"\"),IF('Instituciones-crédito'!K166=\"La actividad sí contribuye sustancialmente a la sostenibilidad\",SUM('Instituciones-crédito'!B166:H166),0),IF(AND('Base-datos'!$B$750=\"\",'Base-datos'!$B$751=\"\",'Base-datos'!$B$752=\"Sí\"),IF('Instituciones-crédito'!I166=\"La actividad sí contribuye sustancialmente a la sostenibilidad\",SUM('Instituciones-crédito'!B166:H166),0),IF(AND('Base-datos'!$B$750=\"\",'Base-datos'!$B$751=\"Sí\",'Base-datos'!$B$752=\"Sí\"),IF(AND('Instituciones-crédito'!K166=\"La actividad sí contribuye sustancialmente a la sostenibilidad\",'Instituciones-crédito'!I166=\"La actividad sí contribuye sustancialmente a la sostenibilidad\"),SUM('Instituciones-crédito'!B166:H166),0),IF(AND('Base-datos'!$B$750=\"Sí\",'Base-datos'!$B$751=\"\",'Base-datos'!$B$752=\"Sí\"),IF(AND('Instituciones-crédito'!J166=\"La actividad sí contribuye sustancialmente a la sostenibilidad\",'Instituciones-crédito'!I166=\"La actividad sí contribuye sustancialmente a la sostenibilidad\"),SUM('Instituciones-crédito'!B166:H166),0),\"Por definir\"))))))))","v":"Por definir"}]
[{"$f":"Transporte!$C22","v":"Seleccione"},{"$f":"IF(Transporte!$E22='Instituciones-crédito'!B$12,Transporte!$B22,\"\")","v":""},{"$f":"IF(Transporte!$E22='Instituciones-crédito'!C$12,Transporte!$B22,\"\")","v":""},{"$f":"IF(Transporte!$E22='Instituciones-crédito'!D$12,Transporte!$B22,\"\")","v":""},{"$f":"IF(Transporte!$E22='Instituciones-crédito'!E$12,Transporte!$B22,\"\")","v":""},{"$f":"IF(Transporte!$E22='Instituciones-crédito'!F$12,Transporte!$B22,\"\")","v":""},{"$f":"IF(Transporte!$E22='Instituciones-crédito'!G$12,Transporte!$B22,\"\")","v":""},{"$f":"IF(Transporte!$E22='Instituciones-crédito'!H$12,Transporte!$B22,\"\")","v":""},{"$f":"_xlfn.XLOOKUP(A167,'Base-datos'!$B$553:$B$570,'Base-datos'!$F$553:$F$570)","v":{"$error":"#N/A"}},{"$f":"_xlfn.XLOOKUP(A167,'Base-datos'!$B$553:$B$570,'Base-datos'!$C$553:$C$570)","v":{"$error":"#N/A"}},{"$f":"_xlfn.XLOOKUP(A167,'Base-datos'!$B$553:$B$570,'Base-datos'!$D$553:$D$570)","v":{"$error":"#N/A"}},null,null,{"$f":"IF(OR($L$161=\"La actividad no cumple con el total de los criterios de No Daño Significativo\",$M$161=\"El sector no cumple con las salvaguardas mínimas\"),\"\",IF(AND('Base-datos'!$B$750=\"Sí\",'Base-datos'!$B$751=\"\",'Base-datos'!$B$752=\"\"),IF('Instituciones-crédito'!J167=\"La actividad sí contribuye sustancialmente a la sostenibilidad\",SUM('Instituciones-crédito'!B167:H167),0),IF(AND('Base-datos'!$B$750=\"Sí\",'Base-datos'!$B$751=\"Sí\",'Base-datos'!$B$752=\"\"),IF(AND('Instituciones-crédito'!J167=\"La actividad sí contribuye sustancialmente a la sostenibilidad\",'Instituciones-crédito'!K167=\"La actividad sí contribuye sustancialmente a la sostenibilidad\"),SUM('Instituciones-crédito'!B167:H167),0),IF(AND('Base-datos'!$B$750=\"Sí\",'Base-datos'!$B$751=\"Sí\",'Base-datos'!$B$752=\"Sí\"),IF(AND('Instituciones-crédito'!J167=\"La actividad sí contribuye sustancialmente a la sostenibilidad\",'Instituciones-crédito'!K167=\"La actividad sí contribuye sustancialmente a la sostenibilidad\",'Instituciones-crédito'!I167=\"La actividad sí contribuye sustancialmente a la sostenibilidad\"),SUM('Instituciones-crédito'!B167:H167),0),IF(AND('Base-datos'!$B$750=\"\",'Base-datos'!$B$751=\"Sí\",'Base-datos'!$B$752=\"\"),IF('Instituciones-crédito'!K167=\"La actividad sí contribuye sustancialmente a la sostenibilidad\",SUM('Instituciones-crédito'!B167:H167),0),IF(AND('Base-datos'!$B$750=\"\",'Base-datos'!$B$751=\"\",'Base-datos'!$B$752=\"Sí\"),IF('Instituciones-crédito'!I167=\"La actividad sí contribuye sustancialmente a la sostenibilidad\",SUM('Instituciones-crédito'!B167:H167),0),IF(AND('Base-datos'!$B$750=\"\",'Base-datos'!$B$751=\"Sí\",'Base-datos'!$B$752=\"Sí\"),IF(AND('Instituciones-crédito'!K167=\"La actividad sí contribuye sustancialmente a la sostenibilidad\",'Instituciones-crédito'!I167=\"La actividad sí contribuye sustancialmente a la sostenibilidad\"),SUM('Instituciones-crédito'!B167:H167),0),IF(AND('Base-datos'!$B$750=\"Sí\",'Base-datos'!$B$751=\"\",'Base-datos'!$B$752=\"Sí\"),IF(AND('Instituciones-crédito'!J167=\"La actividad sí contribuye sustancialmente a la sostenibilidad\",'Instituciones-crédito'!I167=\"La actividad sí contribuye sustancialmente a la sostenibilidad\"),SUM('Instituciones-crédito'!B167:H167),0),\"Por definir\"))))))))","v":"Por definir"}]
[{"$f":"Transporte!$C24","v":"Seleccione"},{"$f":"IF(Transporte!$E24='Instituciones-crédito'!B$12,Transporte!$B24,\"\")","v":""},{"$f":"IF(Transporte!$E24='Instituciones-crédito'!C$12,Transporte!$B24,\"\")","v":""},{"$f":"IF(Transporte!$E24='Instituciones-crédito'!D$12,Transporte!$B24,\"\")","v":""},{"$f":"IF(Transporte!$E24='Instituciones-crédito'!E$12,Transporte!$B24,\"\")","v":""},{"$f":"IF(Transporte!$E24='Instituciones-crédito'!F$12,Transporte!$B24,\"\")","v":""},{"$f":"IF(Transporte!$E24='Instituciones-crédito'!G$12,Transporte!$B24,\"\")","v":""},{"$f":"IF(Transporte!$E24='Instituciones-crédito'!H$12,Transporte!$B24,\"\")","v":""},{"$f":"_xlfn.XLOOKUP(A168,'Base-datos'!$B$553:$B$570,'Base-datos'!$F$553:$F$570)","v":{"$error":"#N/A"}},{"$f":"_xlfn.XLOOKUP(A168,'Base-datos'!$B$553:$B$570,'Base-datos'!$C$553:$C$570)","v":{"$error":"#N/A"}},{"$f":"_xlfn.XLOOKUP(A168,'Base-datos'!$B$553:$B$570,'Base-datos'!$D$553:$D$570)","v":{"$error":"#N/A"}},null,null,{"$f":"IF(OR($L$161=\"La actividad no cumple con el total de los criterios de No Daño Significativo\",$M$161=\"El sector no cumple con las salvaguardas mínimas\"),\"\",IF(AND('Base-datos'!$B$750=\"Sí\",'Base-datos'!$B$751=\"\",'Base-datos'!$B$752=\"\"),IF('Instituciones-crédito'!J168=\"La actividad sí contribuye sustancialmente a la sostenibilidad\",SUM('Instituciones-crédito'!B168:H168),0),IF(AND('Base-datos'!$B$750=\"Sí\",'Base-datos'!$B$751=\"Sí\",'Base-datos'!$B$752=\"\"),IF(AND('Instituciones-crédito'!J168=\"La actividad sí contribuye sustancialmente a la sostenibilidad\",'Instituciones-crédito'!K168=\"La actividad sí contribuye sustancialmente a la sostenibilidad\"),SUM('Instituciones-crédito'!B168:H168),0),IF(AND('Base-datos'!$B$750=\"Sí\",'Base-datos'!$B$751=\"Sí\",'Base-datos'!$B$752=\"Sí\"),IF(AND('Instituciones-crédito'!J168=\"La actividad sí contribuye sustancialmente a la sostenibilidad\",'Instituciones-crédito'!K168=\"La actividad sí contribuye sustancialmente a la sostenibilidad\",'Instituciones-crédito'!I168=\"La actividad sí contribuye sustancialmente a la sostenibilidad\"),SUM('Instituciones-crédito'!B168:H168),0),IF(AND('Base-datos'!$B$750=\"\",'Base-datos'!$B$751=\"Sí\",'Base-datos'!$B$752=\"\"),IF('Instituciones-crédito'!K168=\"La actividad sí contribuye sustancialmente a la sostenibilidad\",SUM('Instituciones-crédito'!B168:H168),0),IF(AND('Base-datos'!$B$750=\"\",'Base-datos'!$B$751=\"\",'Base-datos'!$B$752=\"Sí\"),IF('Instituciones-crédito'!I168=\"La actividad sí contribuye sustancialmente a la sostenibilidad\",SUM('Instituciones-crédito'!B168:H168),0),IF(AND('Base-datos'!$B$750=\"\",'Base-datos'!$B$751=\"Sí\",'Base-datos'!$B$752=\"Sí\"),IF(AND('Instituciones-crédito'!K168=\"La actividad sí contribuye sustancialmente a la sostenibilidad\",'Instituciones-crédito'!I168=\"La actividad sí contribuye sustancialmente a la sostenibilidad\"),SUM('Instituciones-crédito'!B168:H168),0),IF(AND('Base-datos'!$B$750=\"Sí\",'Base-datos'!$B$751=\"\",'Base-datos'!$B$752=\"Sí\"),IF(AND('Instituciones-crédito'!J168=\"La actividad sí contribuye sustancialmente a la sostenibilidad\",'Instituciones-crédito'!I168=\"La actividad sí contribuye sustancialmente a la sostenibilidad\"),SUM('Instituciones-crédito'!B168:H168),0),\"Por definir\"))))))))","v":"Por definir"}]
[{"$f":"Transporte!$C26","v":"Seleccione"},{"$f":"IF(Transporte!$E26='Instituciones-crédito'!B$12,Transporte!$B26,\"\")","v":""},{"$f":"IF(Transporte!$E26='Instituciones-crédito'!C$12,Transporte!$B26,\"\")","v":""},{"$f":"IF(Transporte!$E26='Instituciones-crédito'!D$12,Transporte!$B26,\"\")","v":""},{"$f":"IF(Transporte!$E26='Instituciones-crédito'!E$12,Transporte!$B26,\"\")","v":""},{"$f":"IF(Transporte!$E26='Instituciones-crédito'!F$12,Transporte!$B26,\"\")","v":""},{"$f":"IF(Transporte!$E26='Instituciones-crédito'!G$12,Transporte!$B26,\"\")","v":""},{"$f":"IF(Transporte!$E26='Instituciones-crédito'!H$12,Transporte!$B26,\"\")","v":""},{"$f":"_xlfn.XLOOKUP(A169,'Base-datos'!$B$553:$B$570,'Base-datos'!$F$553:$F$570)","v":{"$error":"#N/A"}},{"$f":"_xlfn.XLOOKUP(A169,'Base-datos'!$B$553:$B$570,'Base-datos'!$C$553:$C$570)","v":{"$error":"#N/A"}},{"$f":"_xlfn.XLOOKUP(A169,'Base-datos'!$B$553:$B$570,'Base-datos'!$D$553:$D$570)","v":{"$error":"#N/A"}},null,null,{"$f":"IF(OR($L$161=\"La actividad no cumple con el total de los criterios de No Daño Significativo\",$M$161=\"El sector no cumple con las salvaguardas mínimas\"),\"\",IF(AND('Base-datos'!$B$750=\"Sí\",'Base-datos'!$B$751=\"\",'Base-datos'!$B$752=\"\"),IF('Instituciones-crédito'!J169=\"La actividad sí contribuye sustancialmente a la sostenibilidad\",SUM('Instituciones-crédito'!B169:H169),0),IF(AND('Base-datos'!$B$750=\"Sí\",'Base-datos'!$B$751=\"Sí\",'Base-datos'!$B$752=\"\"),IF(AND('Instituciones-crédito'!J169=\"La actividad sí contribuye sustancialmente a la sostenibilidad\",'Instituciones-crédito'!K169=\"La actividad sí contribuye sustancialmente a la sostenibilidad\"),SUM('Instituciones-crédito'!B169:H169),0),IF(AND('Base-datos'!$B$750=\"Sí\",'Base-datos'!$B$751=\"Sí\",'Base-datos'!$B$752=\"Sí\"),IF(AND('Instituciones-crédito'!J169=\"La actividad sí contribuye sustancialmente a la sostenibilidad\",'Instituciones-crédito'!K169=\"La actividad sí contribuye sustancialmente a la sostenibilidad\",'Instituciones-crédito'!I169=\"La actividad sí contribuye sustancialmente a la sostenibilidad\"),SUM('Instituciones-crédito'!B169:H169),0),IF(AND('Base-datos'!$B$750=\"\",'Base-datos'!$B$751=\"Sí\",'Base-datos'!$B$752=\"\"),IF('Instituciones-crédito'!K169=\"La actividad sí contribuye sustancialmente a la sostenibilidad\",SUM('Instituciones-crédito'!B169:H169),0),IF(AND('Base-datos'!$B$750=\"\",'Base-datos'!$B$751=\"\",'Base-datos'!$B$752=\"Sí\"),IF('Instituciones-crédito'!I169=\"La actividad sí contribuye sustancialmente a la sostenibilidad\",SUM('Instituciones-crédito'!B169:H169),0),IF(AND('Base-datos'!$B$750=\"\",'Base-datos'!$B$751=\"Sí\",'Base-datos'!$B$752=\"Sí\"),IF(AND('Instituciones-crédito'!K169=\"La actividad sí contribuye sustancialmente a la sostenibilidad\",'Instituciones-crédito'!I169=\"La actividad sí contribuye sustancialmente a la sostenibilidad\"),SUM('Instituciones-crédito'!B169:H169),0),IF(AND('Base-datos'!$B$750=\"Sí\",'Base-datos'!$B$751=\"\",'Base-datos'!$B$752=\"Sí\"),IF(AND('Instituciones-crédito'!J169=\"La actividad sí contribuye sustancialmente a la sostenibilidad\",'Instituciones-crédito'!I169=\"La actividad sí contribuye sustancialmente a la sostenibilidad\"),SUM('Instituciones-crédito'!B169:H169),0),\"Por definir\"))))))))","v":"Por definir"}]
[{"$f":"Transporte!$C28","v":"Seleccione"},{"$f":"IF(Transporte!$E28='Instituciones-crédito'!B$12,Transporte!$B28,\"\")","v":""},{"$f":"IF(Transporte!$E28='Instituciones-crédito'!C$12,Transporte!$B28,\"\")","v":""},{"$f":"IF(Transporte!$E28='Instituciones-crédito'!D$12,Transporte!$B28,\"\")","v":""},{"$f":"IF(Transporte!$E28='Instituciones-crédito'!E$12,Transporte!$B28,\"\")","v":""},{"$f":"IF(Transporte!$E28='Instituciones-crédito'!F$12,Transporte!$B28,\"\")","v":""},{"$f":"IF(Transporte!$E28='Instituciones-crédito'!G$12,Transporte!$B28,\"\")","v":""},{"$f":"IF(Transporte!$E28='Instituciones-crédito'!H$12,Transporte!$B28,\"\")","v":""},{"$f":"_xlfn.XLOOKUP(A170,'Base-datos'!$B$553:$B$570,'Base-datos'!$F$553:$F$570)","v":{"$error":"#N/A"}},{"$f":"_xlfn.XLOOKUP(A170,'Base-datos'!$B$553:$B$570,'Base-datos'!$C$553:$C$570)","v":{"$error":"#N/A"}},{"$f":"_xlfn.XLOOKUP(A170,'Base-datos'!$B$553:$B$570,'Base-datos'!$D$553:$D$570)","v":{"$error":"#N/A"}},null,null,{"$f":"IF(OR($L$161=\"La actividad no cumple con el total de los criterios de No Daño Significativo\",$M$161=\"El sector no cumple con las salvaguardas mínimas\"),\"\",IF(AND('Base-datos'!$B$750=\"Sí\",'Base-datos'!$B$751=\"\",'Base-datos'!$B$752=\"\"),IF('Instituciones-crédito'!J170=\"La actividad sí contribuye sustancialmente a la sostenibilidad\",SUM('Instituciones-crédito'!B170:H170),0),IF(AND('Base-datos'!$B$750=\"Sí\",'Base-datos'!$B$751=\"Sí\",'Base-datos'!$B$752=\"\"),IF(AND('Instituciones-crédito'!J170=\"La actividad sí contribuye sustancialmente a la sostenibilidad\",'Instituciones-crédito'!K170=\"La actividad sí contribuye sustancialmente a la sostenibilidad\"),SUM('Instituciones-crédito'!B170:H170),0),IF(AND('Base-datos'!$B$750=\"Sí\",'Base-datos'!$B$751=\"Sí\",'Base-datos'!$B$752=\"Sí\"),IF(AND('Instituciones-crédito'!J170=\"La actividad sí contribuye sustancialmente a la sostenibilidad\",'Instituciones-crédito'!K170=\"La actividad sí contribuye sustancialmente a la sostenibilidad\",'Instituciones-crédito'!I170=\"La actividad sí contribuye sustancialmente a la sostenibilidad\"),SUM('Instituciones-crédito'!B170:H170),0),IF(AND('Base-datos'!$B$750=\"\",'Base-datos'!$B$751=\"Sí\",'Base-datos'!$B$752=\"\"),IF('Instituciones-crédito'!K170=\"La actividad sí contribuye sustancialmente a la sostenibilidad\",SUM('Instituciones-crédito'!B170:H170),0),IF(AND('Base-datos'!$B$750=\"\",'Base-datos'!$B$751=\"\",'Base-datos'!$B$752=\"Sí\"),IF('Instituciones-crédito'!I170=\"La actividad sí contribuye sustancialmente a la sostenibilidad\",SUM('Instituciones-crédito'!B170:H170),0),IF(AND('Base-datos'!$B$750=\"\",'Base-datos'!$B$751=\"Sí\",'Base-datos'!$B$752=\"Sí\"),IF(AND('Instituciones-crédito'!K170=\"La actividad sí contribuye sustancialmente a la sostenibilidad\",'Instituciones-crédito'!I170=\"La actividad sí contribuye sustancialmente a la sostenibilidad\"),SUM('Instituciones-crédito'!B170:H170),0),IF(AND('Base-datos'!$B$750=\"Sí\",'Base-datos'!$B$751=\"\",'Base-datos'!$B$752=\"Sí\"),IF(AND('Instituciones-crédito'!J170=\"La actividad sí contribuye sustancialmente a la sostenibilidad\",'Instituciones-crédito'!I170=\"La actividad sí contribuye sustancialmente a la sostenibilidad\"),SUM('Instituciones-crédito'!B170:H170),0),\"Por definir\"))))))))","v":"Por definir"}]
[{"$f":"Transporte!$C30","v":"Seleccione"},{"$f":"IF(Transporte!$E30='Instituciones-crédito'!B$12,Transporte!$B30,\"\")","v":""},{"$f":"IF(Transporte!$E30='Instituciones-crédito'!C$12,Transporte!$B30,\"\")","v":""},{"$f":"IF(Transporte!$E30='Instituciones-crédito'!D$12,Transporte!$B30,\"\")","v":""},{"$f":"IF(Transporte!$E30='Instituciones-crédito'!E$12,Transporte!$B30,\"\")","v":""},{"$f":"IF(Transporte!$E30='Instituciones-crédito'!F$12,Transporte!$B30,\"\")","v":""},{"$f":"IF(Transporte!$E30='Instituciones-crédito'!G$12,Transporte!$B30,\"\")","v":""},{"$f":"IF(Transporte!$E30='Instituciones-crédito'!H$12,Transporte!$B30,\"\")","v":""},{"$f":"_xlfn.XLOOKUP(A171,'Base-datos'!$B$553:$B$570,'Base-datos'!$F$553:$F$570)","v":{"$error":"#N/A"}},{"$f":"_xlfn.XLOOKUP(A171,'Base-datos'!$B$553:$B$570,'Base-datos'!$C$553:$C$570)","v":{"$error":"#N/A"}},{"$f":"_xlfn.XLOOKUP(A171,'Base-datos'!$B$553:$B$570,'Base-datos'!$D$553:$D$570)","v":{"$error":"#N/A"}},null,null,{"$f":"IF(OR($L$161=\"La actividad no cumple con el total de los criterios de No Daño Significativo\",$M$161=\"El sector no cumple con las salvaguardas mínimas\"),\"\",IF(AND('Base-datos'!$B$750=\"Sí\",'Base-datos'!$B$751=\"\",'Base-datos'!$B$752=\"\"),IF('Instituciones-crédito'!J171=\"La actividad sí contribuye sustancialmente a la sostenibilidad\",SUM('Instituciones-crédito'!B171:H171),0),IF(AND('Base-datos'!$B$750=\"Sí\",'Base-datos'!$B$751=\"Sí\",'Base-datos'!$B$752=\"\"),IF(AND('Instituciones-crédito'!J171=\"La actividad sí contribuye sustancialmente a la sostenibilidad\",'Instituciones-crédito'!K171=\"La actividad sí contribuye sustancialmente a la sostenibilidad\"),SUM('Instituciones-crédito'!B171:H171),0),IF(AND('Base-datos'!$B$750=\"Sí\",'Base-datos'!$B$751=\"Sí\",'Base-datos'!$B$752=\"Sí\"),IF(AND('Instituciones-crédito'!J171=\"La actividad sí contribuye sustancialmente a la sostenibilidad\",'Instituciones-crédito'!K171=\"La actividad sí contribuye sustancialmente a la sostenibilidad\",'Instituciones-crédito'!I171=\"La actividad sí contribuye sustancialmente a la sostenibilidad\"),SUM('Instituciones-crédito'!B171:H171),0),IF(AND('Base-datos'!$B$750=\"\",'Base-datos'!$B$751=\"Sí\",'Base-datos'!$B$752=\"\"),IF('Instituciones-crédito'!K171=\"La actividad sí contribuye sustancialmente a la sostenibilidad\",SUM('Instituciones-crédito'!B171:H171),0),IF(AND('Base-datos'!$B$750=\"\",'Base-datos'!$B$751=\"\",'Base-datos'!$B$752=\"Sí\"),IF('Instituciones-crédito'!I171=\"La actividad sí contribuye sustancialmente a la sostenibilidad\",SUM('Instituciones-crédito'!B171:H171),0),IF(AND('Base-datos'!$B$750=\"\",'Base-datos'!$B$751=\"Sí\",'Base-datos'!$B$752=\"Sí\"),IF(AND('Instituciones-crédito'!K171=\"La actividad sí contribuye sustancialmente a la sostenibilidad\",'Instituciones-crédito'!I171=\"La actividad sí contribuye sustancialmente a la sostenibilidad\"),SUM('Instituciones-crédito'!B171:H171),0),IF(AND('Base-datos'!$B$750=\"Sí\",'Base-datos'!$B$751=\"\",'Base-datos'!$B$752=\"Sí\"),IF(AND('Instituciones-crédito'!J171=\"La actividad sí contribuye sustancialmente a la sostenibilidad\",'Instituciones-crédito'!I171=\"La actividad sí contribuye sustancialmente a la sostenibilidad\"),SUM('Instituciones-crédito'!B171:H171),0),\"Por definir\"))))))))","v":"Por definir"}]
[{"$f":"Transporte!$C32","v":"Seleccione"},{"$f":"IF(Transporte!$E32='Instituciones-crédito'!B$12,Transporte!$B32,\"\")","v":""},{"$f":"IF(Transporte!$E32='Instituciones-crédito'!C$12,Transporte!$B32,\"\")","v":""},{"$f":"IF(Transporte!$E32='Instituciones-crédito'!D$12,Transporte!$B32,\"\")","v":""},{"$f":"IF(Transporte!$E32='Instituciones-crédito'!E$12,Transporte!$B32,\"\")","v":""},{"$f":"IF(Transporte!$E32='Instituciones-crédito'!F$12,Transporte!$B32,\"\")","v":""},{"$f":"IF(Transporte!$E32='Instituciones-crédito'!G$12,Transporte!$B32,\"\")","v":""},{"$f":"IF(Transporte!$E32='Instituciones-crédito'!H$12,Transporte!$B32,\"\")","v":""},{"$f":"_xlfn.XLOOKUP(A172,'Base-datos'!$B$553:$B$570,'Base-datos'!$F$553:$F$570)","v":{"$error":"#N/A"}},{"$f":"_xlfn.XLOOKUP(A172,'Base-datos'!$B$553:$B$570,'Base-datos'!$C$553:$C$570)","v":{"$error":"#N/A"}},{"$f":"_xlfn.XLOOKUP(A172,'Base-datos'!$B$553:$B$570,'Base-datos'!$D$553:$D$570)","v":{"$error":"#N/A"}},null,null,{"$f":"IF(OR($L$161=\"La actividad no cumple con el total de los criterios de No Daño Significativo\",$M$161=\"El sector no cumple con las salvaguardas mínimas\"),\"\",IF(AND('Base-datos'!$B$750=\"Sí\",'Base-datos'!$B$751=\"\",'Base-datos'!$B$752=\"\"),IF('Instituciones-crédito'!J172=\"La actividad sí contribuye sustancialmente a la sostenibilidad\",SUM('Instituciones-crédito'!B172:H172),0),IF(AND('Base-datos'!$B$750=\"Sí\",'Base-datos'!$B$751=\"Sí\",'Base-datos'!$B$752=\"\"),IF(AND('Instituciones-crédito'!J172=\"La actividad sí contribuye sustancialmente a la sostenibilidad\",'Instituciones-crédito'!K172=\"La actividad sí contribuye sustancialmente a la sostenibilidad\"),SUM('Instituciones-crédito'!B172:H172),0),IF(AND('Base-datos'!$B$750=\"Sí\",'Base-datos'!$B$751=\"Sí\",'Base-datos'!$B$752=\"Sí\"),IF(AND('Instituciones-crédito'!J172=\"La actividad sí contribuye sustancialmente a la sostenibilidad\",'Instituciones-crédito'!K172=\"La actividad sí contribuye sustancialmente a la sostenibilidad\",'Instituciones-crédito'!I172=\"La actividad sí contribuye sustancialmente a la sostenibilidad\"),SUM('Instituciones-crédito'!B172:H172),0),IF(AND('Base-datos'!$B$750=\"\",'Base-datos'!$B$751=\"Sí\",'Base-datos'!$B$752=\"\"),IF('Instituciones-crédito'!K172=\"La actividad sí contribuye sustancialmente a la sostenibilidad\",SUM('Instituciones-crédito'!B172:H172),0),IF(AND('Base-datos'!$B$750=\"\",'Base-datos'!$B$751=\"\",'Base-datos'!$B$752=\"Sí\"),IF('Instituciones-crédito'!I172=\"La actividad sí contribuye sustancialmente a la sostenibilidad\",SUM('Instituciones-crédito'!B172:H172),0),IF(AND('Base-datos'!$B$750=\"\",'Base-datos'!$B$751=\"Sí\",'Base-datos'!$B$752=\"Sí\"),IF(AND('Instituciones-crédito'!K172=\"La actividad sí contribuye sustancialmente a la sostenibilidad\",'Instituciones-crédito'!I172=\"La actividad sí contribuye sustancialmente a la sostenibilidad\"),SUM('Instituciones-crédito'!B172:H172),0),IF(AND('Base-datos'!$B$750=\"Sí\",'Base-datos'!$B$751=\"\",'Base-datos'!$B$752=\"Sí\"),IF(AND('Instituciones-crédito'!J172=\"La actividad sí contribuye sustancialmente a la sostenibilidad\",'Instituciones-crédito'!I172=\"La actividad sí contribuye sustancialmente a la sostenibilidad\"),SUM('Instituciones-crédito'!B172:H172),0),\"Por definir\"))))))))","v":"Por definir"}]
[{"$f":"Transporte!$C34","v":"Seleccione"},{"$f":"IF(Transporte!$E34='Instituciones-crédito'!B$12,Transporte!$B34,\"\")","v":""},{"$f":"IF(Transporte!$E34='Instituciones-crédito'!C$12,Transporte!$B34,\"\")","v":""},{"$f":"IF(Transporte!$E34='Instituciones-crédito'!D$12,Transporte!$B34,\"\")","v":""},{"$f":"IF(Transporte!$E34='Instituciones-crédito'!E$12,Transporte!$B34,\"\")","v":""},{"$f":"IF(Transporte!$E34='Instituciones-crédito'!F$12,Transporte!$B34,\"\")","v":""},{"$f":"IF(Transporte!$E34='Instituciones-crédito'!G$12,Transporte!$B34,\"\")","v":""},{"$f":"IF(Transporte!$E34='Instituciones-crédito'!H$12,Transporte!$B34,\"\")","v":""},{"$f":"_xlfn.XLOOKUP(A173,'Base-datos'!$B$553:$B$570,'Base-datos'!$F$553:$F$570)","v":{"$error":"#N/A"}},{"$f":"_xlfn.XLOOKUP(A173,'Base-datos'!$B$553:$B$570,'Base-datos'!$C$553:$C$570)","v":{"$error":"#N/A"}},{"$f":"_xlfn.XLOOKUP(A173,'Base-datos'!$B$553:$B$570,'Base-datos'!$D$553:$D$570)","v":{"$error":"#N/A"}},null,null,{"$f":"IF(OR($L$161=\"La actividad no cumple con el total de los criterios de No Daño Significativo\",$M$161=\"El sector no cumple con las salvaguardas mínimas\"),\"\",IF(AND('Base-datos'!$B$750=\"Sí\",'Base-datos'!$B$751=\"\",'Base-datos'!$B$752=\"\"),IF('Instituciones-crédito'!J173=\"La actividad sí contribuye sustancialmente a la sostenibilidad\",SUM('Instituciones-crédito'!B173:H173),0),IF(AND('Base-datos'!$B$750=\"Sí\",'Base-datos'!$B$751=\"Sí\",'Base-datos'!$B$752=\"\"),IF(AND('Instituciones-crédito'!J173=\"La actividad sí contribuye sustancialmente a la sostenibilidad\",'Instituciones-crédito'!K173=\"La actividad sí contribuye sustancialmente a la sostenibilidad\"),SUM('Instituciones-crédito'!B173:H173),0),IF(AND('Base-datos'!$B$750=\"Sí\",'Base-datos'!$B$751=\"Sí\",'Base-datos'!$B$752=\"Sí\"),IF(AND('Instituciones-crédito'!J173=\"La actividad sí contribuye sustancialmente a la sostenibilidad\",'Instituciones-crédito'!K173=\"La actividad sí contribuye sustancialmente a la sostenibilidad\",'Instituciones-crédito'!I173=\"La actividad sí contribuye sustancialmente a la sostenibilidad\"),SUM('Instituciones-crédito'!B173:H173),0),IF(AND('Base-datos'!$B$750=\"\",'Base-datos'!$B$751=\"Sí\",'Base-datos'!$B$752=\"\"),IF('Instituciones-crédito'!K173=\"La actividad sí contribuye sustancialmente a la sostenibilidad\",SUM('Instituciones-crédito'!B173:H173),0),IF(AND('Base-datos'!$B$750=\"\",'Base-datos'!$B$751=\"\",'Base-datos'!$B$752=\"Sí\"),IF('Instituciones-crédito'!I173=\"La actividad sí contribuye sustancialmente a la sostenibilidad\",SUM('Instituciones-crédito'!B173:H173),0),IF(AND('Base-datos'!$B$750=\"\",'Base-datos'!$B$751=\"Sí\",'Base-datos'!$B$752=\"Sí\"),IF(AND('Instituciones-crédito'!K173=\"La actividad sí contribuye sustancialmente a la sostenibilidad\",'Instituciones-crédito'!I173=\"La actividad sí contribuye sustancialmente a la sostenibilidad\"),SUM('Instituciones-crédito'!B173:H173),0),IF(AND('Base-datos'!$B$750=\"Sí\",'Base-datos'!$B$751=\"\",'Base-datos'!$B$752=\"Sí\"),IF(AND('Instituciones-crédito'!J173=\"La actividad sí contribuye sustancialmente a la sostenibilidad\",'Instituciones-crédito'!I173=\"La actividad sí contribuye sustancialmente a la sostenibilidad\"),SUM('Instituciones-crédito'!B173:H173),0),\"Por definir\"))))))))","v":"Por definir"}]
[{"$f":"Transporte!$C36","v":"Seleccione"},{"$f":"IF(Transporte!$E36='Instituciones-crédito'!B$12,Transporte!$B36,\"\")","v":""},{"$f":"IF(Transporte!$E36='Instituciones-crédito'!C$12,Transporte!$B36,\"\")","v":""},{"$f":"IF(Transporte!$E36='Instituciones-crédito'!D$12,Transporte!$B36,\"\")","v":""},{"$f":"IF(Transporte!$E36='Instituciones-crédito'!E$12,Transporte!$B36,\"\")","v":""},{"$f":"IF(Transporte!$E36='Instituciones-crédito'!F$12,Transporte!$B36,\"\")","v":""},{"$f":"IF(Transporte!$E36='Instituciones-crédito'!G$12,Transporte!$B36,\"\")","v":""},{"$f":"IF(Transporte!$E36='Instituciones-crédito'!H$12,Transporte!$B36,\"\")","v":""},{"$f":"_xlfn.XLOOKUP(A174,'Base-datos'!$B$553:$B$570,'Base-datos'!$F$553:$F$570)","v":{"$error":"#N/A"}},{"$f":"_xlfn.XLOOKUP(A174,'Base-datos'!$B$553:$B$570,'Base-datos'!$C$553:$C$570)","v":{"$error":"#N/A"}},{"$f":"_xlfn.XLOOKUP(A174,'Base-datos'!$B$553:$B$570,'Base-datos'!$D$553:$D$570)","v":{"$error":"#N/A"}},null,null,{"$f":"IF(OR($L$161=\"La actividad no cumple con el total de los criterios de No Daño Significativo\",$M$161=\"El sector no cumple con las salvaguardas mínimas\"),\"\",IF(AND('Base-datos'!$B$750=\"Sí\",'Base-datos'!$B$751=\"\",'Base-datos'!$B$752=\"\"),IF('Instituciones-crédito'!J174=\"La actividad sí contribuye sustancialmente a la sostenibilidad\",SUM('Instituciones-crédito'!B174:H174),0),IF(AND('Base-datos'!$B$750=\"Sí\",'Base-datos'!$B$751=\"Sí\",'Base-datos'!$B$752=\"\"),IF(AND('Instituciones-crédito'!J174=\"La actividad sí contribuye sustancialmente a la sostenibilidad\",'Instituciones-crédito'!K174=\"La actividad sí contribuye sustancialmente a la sostenibilidad\"),SUM('Instituciones-crédito'!B174:H174),0),IF(AND('Base-datos'!$B$750=\"Sí\",'Base-datos'!$B$751=\"Sí\",'Base-datos'!$B$752=\"Sí\"),IF(AND('Instituciones-crédito'!J174=\"La actividad sí contribuye sustancialmente a la sostenibilidad\",'Instituciones-crédito'!K174=\"La actividad sí contribuye sustancialmente a la sostenibilidad\",'Instituciones-crédito'!I174=\"La actividad sí contribuye sustancialmente a la sostenibilidad\"),SUM('Instituciones-crédito'!B174:H174),0),IF(AND('Base-datos'!$B$750=\"\",'Base-datos'!$B$751=\"Sí\",'Base-datos'!$B$752=\"\"),IF('Instituciones-crédito'!K174=\"La actividad sí contribuye sustancialmente a la sostenibilidad\",SUM('Instituciones-crédito'!B174:H174),0),IF(AND('Base-datos'!$B$750=\"\",'Base-datos'!$B$751=\"\",'Base-datos'!$B$752=\"Sí\"),IF('Instituciones-crédito'!I174=\"La actividad sí contribuye sustancialmente a la sostenibilidad\",SUM('Instituciones-crédito'!B174:H174),0),IF(AND('Base-datos'!$B$750=\"\",'Base-datos'!$B$751=\"Sí\",'Base-datos'!$B$752=\"Sí\"),IF(AND('Instituciones-crédito'!K174=\"La actividad sí contribuye sustancialmente a la sostenibilidad\",'Instituciones-crédito'!I174=\"La actividad sí contribuye sustancialmente a la sostenibilidad\"),SUM('Instituciones-crédito'!B174:H174),0),IF(AND('Base-datos'!$B$750=\"Sí\",'Base-datos'!$B$751=\"\",'Base-datos'!$B$752=\"Sí\"),IF(AND('Instituciones-crédito'!J174=\"La actividad sí contribuye sustancialmente a la sostenibilidad\",'Instituciones-crédito'!I174=\"La actividad sí contribuye sustancialmente a la sostenibilidad\"),SUM('Instituciones-crédito'!B174:H174),0),\"Por definir\"))))))))","v":"Por definir"}]
[{"$f":"Transporte!$C38","v":"Seleccione"},{"$f":"IF(Transporte!$E38='Instituciones-crédito'!B$12,Transporte!$B38,\"\")","v":""},{"$f":"IF(Transporte!$E38='Instituciones-crédito'!C$12,Transporte!$B38,\"\")","v":""},{"$f":"IF(Transporte!$E38='Instituciones-crédito'!D$12,Transporte!$B38,\"\")","v":""},{"$f":"IF(Transporte!$E38='Instituciones-crédito'!E$12,Transporte!$B38,\"\")","v":""},{"$f":"IF(Transporte!$E38='Instituciones-crédito'!F$12,Transporte!$B38,\"\")","v":""},{"$f":"IF(Transporte!$E38='Instituciones-crédito'!G$12,Transporte!$B38,\"\")","v":""},{"$f":"IF(Transporte!$E38='Instituciones-crédito'!H$12,Transporte!$B38,\"\")","v":""},{"$f":"_xlfn.XLOOKUP(A175,'Base-datos'!$B$553:$B$570,'Base-datos'!$F$553:$F$570)","v":{"$error":"#N/A"}},{"$f":"_xlfn.XLOOKUP(A175,'Base-datos'!$B$553:$B$570,'Base-datos'!$C$553:$C$570)","v":{"$error":"#N/A"}},{"$f":"_xlfn.XLOOKUP(A175,'Base-datos'!$B$553:$B$570,'Base-datos'!$D$553:$D$570)","v":{"$error":"#N/A"}},null,null,{"$f":"IF(OR($L$161=\"La actividad no cumple con el total de los criterios de No Daño Significativo\",$M$161=\"El sector no cumple con las salvaguardas mínimas\"),\"\",IF(AND('Base-datos'!$B$750=\"Sí\",'Base-datos'!$B$751=\"\",'Base-datos'!$B$752=\"\"),IF('Instituciones-crédito'!J175=\"La actividad sí contribuye sustancialmente a la sostenibilidad\",SUM('Instituciones-crédito'!B175:H175),0),IF(AND('Base-datos'!$B$750=\"Sí\",'Base-datos'!$B$751=\"Sí\",'Base-datos'!$B$752=\"\"),IF(AND('Instituciones-crédito'!J175=\"La actividad sí contribuye sustancialmente a la sostenibilidad\",'Instituciones-crédito'!K175=\"La actividad sí contribuye sustancialmente a la sostenibilidad\"),SUM('Instituciones-crédito'!B175:H175),0),IF(AND('Base-datos'!$B$750=\"Sí\",'Base-datos'!$B$751=\"Sí\",'Base-datos'!$B$752=\"Sí\"),IF(AND('Instituciones-crédito'!J175=\"La actividad sí contribuye sustancialmente a la sostenibilidad\",'Instituciones-crédito'!K175=\"La actividad sí contribuye sustancialmente a la sostenibilidad\",'Instituciones-crédito'!I175=\"La actividad sí contribuye sustancialmente a la sostenibilidad\"),SUM('Instituciones-crédito'!B175:H175),0),IF(AND('Base-datos'!$B$750=\"\",'Base-datos'!$B$751=\"Sí\",'Base-datos'!$B$752=\"\"),IF('Instituciones-crédito'!K175=\"La actividad sí contribuye sustancialmente a la sostenibilidad\",SUM('Instituciones-crédito'!B175:H175),0),IF(AND('Base-datos'!$B$750=\"\",'Base-datos'!$B$751=\"\",'Base-datos'!$B$752=\"Sí\"),IF('Instituciones-crédito'!I175=\"La actividad sí contribuye sustancialmente a la sostenibilidad\",SUM('Instituciones-crédito'!B175:H175),0),IF(AND('Base-datos'!$B$750=\"\",'Base-datos'!$B$751=\"Sí\",'Base-datos'!$B$752=\"Sí\"),IF(AND('Instituciones-crédito'!K175=\"La actividad sí contribuye sustancialmente a la sostenibilidad\",'Instituciones-crédito'!I175=\"La actividad sí contribuye sustancialmente a la sostenibilidad\"),SUM('Instituciones-crédito'!B175:H175),0),IF(AND('Base-datos'!$B$750=\"Sí\",'Base-datos'!$B$751=\"\",'Base-datos'!$B$752=\"Sí\"),IF(AND('Instituciones-crédito'!J175=\"La actividad sí contribuye sustancialmente a la sostenibilidad\",'Instituciones-crédito'!I175=\"La actividad sí contribuye sustancialmente a la sostenibilidad\"),SUM('Instituciones-crédito'!B175:H175),0),\"Por definir\"))))))))","v":"Por definir"}]
[{"$f":"Transporte!$C40","v":"Seleccione"},{"$f":"IF(Transporte!$E40='Instituciones-crédito'!B$12,Transporte!$B40,\"\")","v":""},{"$f":"IF(Transporte!$E40='Instituciones-crédito'!C$12,Transporte!$B40,\"\")","v":""},{"$f":"IF(Transporte!$E40='Instituciones-crédito'!D$12,Transporte!$B40,\"\")","v":""},{"$f":"IF(Transporte!$E40='Instituciones-crédito'!E$12,Transporte!$B40,\"\")","v":""},{"$f":"IF(Transporte!$E40='Instituciones-crédito'!F$12,Transporte!$B40,\"\")","v":""},{"$f":"IF(Transporte!$E40='Instituciones-crédito'!G$12,Transporte!$B40,\"\")","v":""},{"$f":"IF(Transporte!$E40='Instituciones-crédito'!H$12,Transporte!$B40,\"\")","v":""},{"$f":"_xlfn.XLOOKUP(A176,'Base-datos'!$B$553:$B$570,'Base-datos'!$F$553:$F$570)","v":{"$error":"#N/A"}},{"$f":"_xlfn.XLOOKUP(A176,'Base-datos'!$B$553:$B$570,'Base-datos'!$C$553:$C$570)","v":{"$error":"#N/A"}},{"$f":"_xlfn.XLOOKUP(A176,'Base-datos'!$B$553:$B$570,'Base-datos'!$D$553:$D$570)","v":{"$error":"#N/A"}},null,null,{"$f":"IF(OR($L$161=\"La actividad no cumple con el total de los criterios de No Daño Significativo\",$M$161=\"El sector no cumple con las salvaguardas mínimas\"),\"\",IF(AND('Base-datos'!$B$750=\"Sí\",'Base-datos'!$B$751=\"\",'Base-datos'!$B$752=\"\"),IF('Instituciones-crédito'!J176=\"La actividad sí contribuye sustancialmente a la sostenibilidad\",SUM('Instituciones-crédito'!B176:H176),0),IF(AND('Base-datos'!$B$750=\"Sí\",'Base-datos'!$B$751=\"Sí\",'Base-datos'!$B$752=\"\"),IF(AND('Instituciones-crédito'!J176=\"La actividad sí contribuye sustancialmente a la sostenibilidad\",'Instituciones-crédito'!K176=\"La actividad sí contribuye sustancialmente a la sostenibilidad\"),SUM('Instituciones-crédito'!B176:H176),0),IF(AND('Base-datos'!$B$750=\"Sí\",'Base-datos'!$B$751=\"Sí\",'Base-datos'!$B$752=\"Sí\"),IF(AND('Instituciones-crédito'!J176=\"La actividad sí contribuye sustancialmente a la sostenibilidad\",'Instituciones-crédito'!K176=\"La actividad sí contribuye sustancialmente a la sostenibilidad\",'Instituciones-crédito'!I176=\"La actividad sí contribuye sustancialmente a la sostenibilidad\"),SUM('Instituciones-crédito'!B176:H176),0),IF(AND('Base-datos'!$B$750=\"\",'Base-datos'!$B$751=\"Sí\",'Base-datos'!$B$752=\"\"),IF('Instituciones-crédito'!K176=\"La actividad sí contribuye sustancialmente a la sostenibilidad\",SUM('Instituciones-crédito'!B176:H176),0),IF(AND('Base-datos'!$B$750=\"\",'Base-datos'!$B$751=\"\",'Base-datos'!$B$752=\"Sí\"),IF('Instituciones-crédito'!I176=\"La actividad sí contribuye sustancialmente a la sostenibilidad\",SUM('Instituciones-crédito'!B176:H176),0),IF(AND('Base-datos'!$B$750=\"\",'Base-datos'!$B$751=\"Sí\",'Base-datos'!$B$752=\"Sí\"),IF(AND('Instituciones-crédito'!K176=\"La actividad sí contribuye sustancialmente a la sostenibilidad\",'Instituciones-crédito'!I176=\"La actividad sí contribuye sustancialmente a la sostenibilidad\"),SUM('Instituciones-crédito'!B176:H176),0),IF(AND('Base-datos'!$B$750=\"Sí\",'Base-datos'!$B$751=\"\",'Base-datos'!$B$752=\"Sí\"),IF(AND('Instituciones-crédito'!J176=\"La actividad sí contribuye sustancialmente a la sostenibilidad\",'Instituciones-crédito'!I176=\"La actividad sí contribuye sustancialmente a la sostenibilidad\"),SUM('Instituciones-crédito'!B176:H176),0),\"Por definir\"))))))))","v":"Por definir"}]
[{"$f":"Transporte!$C42","v":"Seleccione"},{"$f":"IF(Transporte!$E42='Instituciones-crédito'!B$12,Transporte!$B42,\"\")","v":""},{"$f":"IF(Transporte!$E42='Instituciones-crédito'!C$12,Transporte!$B42,\"\")","v":""},{"$f":"IF(Transporte!$E42='Instituciones-crédito'!D$12,Transporte!$B42,\"\")","v":""},{"$f":"IF(Transporte!$E42='Instituciones-crédito'!E$12,Transporte!$B42,\"\")","v":""},{"$f":"IF(Transporte!$E42='Instituciones-crédito'!F$12,Transporte!$B42,\"\")","v":""},{"$f":"IF(Transporte!$E42='Instituciones-crédito'!G$12,Transporte!$B42,\"\")","v":""},{"$f":"IF(Transporte!$E42='Instituciones-crédito'!H$12,Transporte!$B42,\"\")","v":""},{"$f":"_xlfn.XLOOKUP(A177,'Base-datos'!$B$553:$B$570,'Base-datos'!$F$553:$F$570)","v":{"$error":"#N/A"}},{"$f":"_xlfn.XLOOKUP(A177,'Base-datos'!$B$553:$B$570,'Base-datos'!$C$553:$C$570)","v":{"$error":"#N/A"}},{"$f":"_xlfn.XLOOKUP(A177,'Base-datos'!$B$553:$B$570,'Base-datos'!$D$553:$D$570)","v":{"$error":"#N/A"}},null,null,{"$f":"IF(OR($L$161=\"La actividad no cumple con el total de los criterios de No Daño Significativo\",$M$161=\"El sector no cumple con las salvaguardas mínimas\"),\"\",IF(AND('Base-datos'!$B$750=\"Sí\",'Base-datos'!$B$751=\"\",'Base-datos'!$B$752=\"\"),IF('Instituciones-crédito'!J177=\"La actividad sí contribuye sustancialmente a la sostenibilidad\",SUM('Instituciones-crédito'!B177:H177),0),IF(AND('Base-datos'!$B$750=\"Sí\",'Base-datos'!$B$751=\"Sí\",'Base-datos'!$B$752=\"\"),IF(AND('Instituciones-crédito'!J177=\"La actividad sí contribuye sustancialmente a la sostenibilidad\",'Instituciones-crédito'!K177=\"La actividad sí contribuye sustancialmente a la sostenibilidad\"),SUM('Instituciones-crédito'!B177:H177),0),IF(AND('Base-datos'!$B$750=\"Sí\",'Base-datos'!$B$751=\"Sí\",'Base-datos'!$B$752=\"Sí\"),IF(AND('Instituciones-crédito'!J177=\"La actividad sí contribuye sustancialmente a la sostenibilidad\",'Instituciones-crédito'!K177=\"La actividad sí contribuye sustancialmente a la sostenibilidad\",'Instituciones-crédito'!I177=\"La actividad sí contribuye sustancialmente a la sostenibilidad\"),SUM('Instituciones-crédito'!B177:H177),0),IF(AND('Base-datos'!$B$750=\"\",'Base-datos'!$B$751=\"Sí\",'Base-datos'!$B$752=\"\"),IF('Instituciones-crédito'!K177=\"La actividad sí contribuye sustancialmente a la sostenibilidad\",SUM('Instituciones-crédito'!B177:H177),0),IF(AND('Base-datos'!$B$750=\"\",'Base-datos'!$B$751=\"\",'Base-datos'!$B$752=\"Sí\"),IF('Instituciones-crédito'!I177=\"La actividad sí contribuye sustancialmente a la sostenibilidad\",SUM('Instituciones-crédito'!B177:H177),0),IF(AND('Base-datos'!$B$750=\"\",'Base-datos'!$B$751=\"Sí\",'Base-datos'!$B$752=\"Sí\"),IF(AND('Instituciones-crédito'!K177=\"La actividad sí contribuye sustancialmente a la sostenibilidad\",'Instituciones-crédito'!I177=\"La actividad sí contribuye sustancialmente a la sostenibilidad\"),SUM('Instituciones-crédito'!B177:H177),0),IF(AND('Base-datos'!$B$750=\"Sí\",'Base-datos'!$B$751=\"\",'Base-datos'!$B$752=\"Sí\"),IF(AND('Instituciones-crédito'!J177=\"La actividad sí contribuye sustancialmente a la sostenibilidad\",'Instituciones-crédito'!I177=\"La actividad sí contribuye sustancialmente a la sostenibilidad\"),SUM('Instituciones-crédito'!B177:H177),0),\"Por definir\"))))))))","v":"Por definir"}]
[{"$f":"Transporte!$C44","v":"Seleccione"},{"$f":"IF(Transporte!$E44='Instituciones-crédito'!B$12,Transporte!$B44,\"\")","v":""},{"$f":"IF(Transporte!$E44='Instituciones-crédito'!C$12,Transporte!$B44,\"\")","v":""},{"$f":"IF(Transporte!$E44='Instituciones-crédito'!D$12,Transporte!$B44,\"\")","v":""},{"$f":"IF(Transporte!$E44='Instituciones-crédito'!E$12,Transporte!$B44,\"\")","v":""},{"$f":"IF(Transporte!$E44='Instituciones-crédito'!F$12,Transporte!$B44,\"\")","v":""},{"$f":"IF(Transporte!$E44='Instituciones-crédito'!G$12,Transporte!$B44,\"\")","v":""},{"$f":"IF(Transporte!$E44='Instituciones-crédito'!H$12,Transporte!$B44,\"\")","v":""},{"$f":"_xlfn.XLOOKUP(A178,'Base-datos'!$B$553:$B$570,'Base-datos'!$F$553:$F$570)","v":{"$error":"#N/A"}},{"$f":"_xlfn.XLOOKUP(A178,'Base-datos'!$B$553:$B$570,'Base-datos'!$C$553:$C$570)","v":{"$error":"#N/A"}},{"$f":"_xlfn.XLOOKUP(A178,'Base-datos'!$B$553:$B$570,'Base-datos'!$D$553:$D$570)","v":{"$error":"#N/A"}},null,null,{"$f":"IF(OR($L$161=\"La actividad no cumple con el total de los criterios de No Daño Significativo\",$M$161=\"El sector no cumple con las salvaguardas mínimas\"),\"\",IF(AND('Base-datos'!$B$750=\"Sí\",'Base-datos'!$B$751=\"\",'Base-datos'!$B$752=\"\"),IF('Instituciones-crédito'!J178=\"La actividad sí contribuye sustancialmente a la sostenibilidad\",SUM('Instituciones-crédito'!B178:H178),0),IF(AND('Base-datos'!$B$750=\"Sí\",'Base-datos'!$B$751=\"Sí\",'Base-datos'!$B$752=\"\"),IF(AND('Instituciones-crédito'!J178=\"La actividad sí contribuye sustancialmente a la sostenibilidad\",'Instituciones-crédito'!K178=\"La actividad sí contribuye sustancialmente a la sostenibilidad\"),SUM('Instituciones-crédito'!B178:H178),0),IF(AND('Base-datos'!$B$750=\"Sí\",'Base-datos'!$B$751=\"Sí\",'Base-datos'!$B$752=\"Sí\"),IF(AND('Instituciones-crédito'!J178=\"La actividad sí contribuye sustancialmente a la sostenibilidad\",'Instituciones-crédito'!K178=\"La actividad sí contribuye sustancialmente a la sostenibilidad\",'Instituciones-crédito'!I178=\"La actividad sí contribuye sustancialmente a la sostenibilidad\"),SUM('Instituciones-crédito'!B178:H178),0),IF(AND('Base-datos'!$B$750=\"\",'Base-datos'!$B$751=\"Sí\",'Base-datos'!$B$752=\"\"),IF('Instituciones-crédito'!K178=\"La actividad sí contribuye sustancialmente a la sostenibilidad\",SUM('Instituciones-crédito'!B178:H178),0),IF(AND('Base-datos'!$B$750=\"\",'Base-datos'!$B$751=\"\",'Base-datos'!$B$752=\"Sí\"),IF('Instituciones-crédito'!I178=\"La actividad sí contribuye sustancialmente a la sostenibilidad\",SUM('Instituciones-crédito'!B178:H178),0),IF(AND('Base-datos'!$B$750=\"\",'Base-datos'!$B$751=\"Sí\",'Base-datos'!$B$752=\"Sí\"),IF(AND('Instituciones-crédito'!K178=\"La actividad sí contribuye sustancialmente a la sostenibilidad\",'Instituciones-crédito'!I178=\"La actividad sí contribuye sustancialmente a la sostenibilidad\"),SUM('Instituciones-crédito'!B178:H178),0),IF(AND('Base-datos'!$B$750=\"Sí\",'Base-datos'!$B$751=\"\",'Base-datos'!$B$752=\"Sí\"),IF(AND('Instituciones-crédito'!J178=\"La actividad sí contribuye sustancialmente a la sostenibilidad\",'Instituciones-crédito'!I178=\"La actividad sí contribuye sustancialmente a la sostenibilidad\"),SUM('Instituciones-crédito'!B178:H178),0),\"Por definir\"))))))))","v":"Por definir"}]
[{"$f":"Transporte!$C46","v":"Seleccione"},{"$f":"IF(Transporte!$E46='Instituciones-crédito'!B$12,Transporte!$B46,\"\")","v":""},{"$f":"IF(Transporte!$E46='Instituciones-crédito'!C$12,Transporte!$B46,\"\")","v":""},{"$f":"IF(Transporte!$E46='Instituciones-crédito'!D$12,Transporte!$B46,\"\")","v":""},{"$f":"IF(Transporte!$E46='Instituciones-crédito'!E$12,Transporte!$B46,\"\")","v":""},{"$f":"IF(Transporte!$E46='Instituciones-crédito'!F$12,Transporte!$B46,\"\")","v":""},{"$f":"IF(Transporte!$E46='Instituciones-crédito'!G$12,Transporte!$B46,\"\")","v":""},{"$f":"IF(Transporte!$E46='Instituciones-crédito'!H$12,Transporte!$B46,\"\")","v":""},{"$f":"_xlfn.XLOOKUP(A179,'Base-datos'!$B$553:$B$570,'Base-datos'!$F$553:$F$570)","v":{"$error":"#N/A"}},{"$f":"_xlfn.XLOOKUP(A179,'Base-datos'!$B$553:$B$570,'Base-datos'!$C$553:$C$570)","v":{"$error":"#N/A"}},{"$f":"_xlfn.XLOOKUP(A179,'Base-datos'!$B$553:$B$570,'Base-datos'!$D$553:$D$570)","v":{"$error":"#N/A"}},null,null,{"$f":"IF(OR($L$161=\"La actividad no cumple con el total de los criterios de No Daño Significativo\",$M$161=\"El sector no cumple con las salvaguardas mínimas\"),\"\",IF(AND('Base-datos'!$B$750=\"Sí\",'Base-datos'!$B$751=\"\",'Base-datos'!$B$752=\"\"),IF('Instituciones-crédito'!J179=\"La actividad sí contribuye sustancialmente a la sostenibilidad\",SUM('Instituciones-crédito'!B179:H179),0),IF(AND('Base-datos'!$B$750=\"Sí\",'Base-datos'!$B$751=\"Sí\",'Base-datos'!$B$752=\"\"),IF(AND('Instituciones-crédito'!J179=\"La actividad sí contribuye sustancialmente a la sostenibilidad\",'Instituciones-crédito'!K179=\"La actividad sí contribuye sustancialmente a la sostenibilidad\"),SUM('Instituciones-crédito'!B179:H179),0),IF(AND('Base-datos'!$B$750=\"Sí\",'Base-datos'!$B$751=\"Sí\",'Base-datos'!$B$752=\"Sí\"),IF(AND('Instituciones-crédito'!J179=\"La actividad sí contribuye sustancialmente a la sostenibilidad\",'Instituciones-crédito'!K179=\"La actividad sí contribuye sustancialmente a la sostenibilidad\",'Instituciones-crédito'!I179=\"La actividad sí contribuye sustancialmente a la sostenibilidad\"),SUM('Instituciones-crédito'!B179:H179),0),IF(AND('Base-datos'!$B$750=\"\",'Base-datos'!$B$751=\"Sí\",'Base-datos'!$B$752=\"\"),IF('Instituciones-crédito'!K179=\"La actividad sí contribuye sustancialmente a la sostenibilidad\",SUM('Instituciones-crédito'!B179:H179),0),IF(AND('Base-datos'!$B$750=\"\",'Base-datos'!$B$751=\"\",'Base-datos'!$B$752=\"Sí\"),IF('Instituciones-crédito'!I179=\"La actividad sí contribuye sustancialmente a la sostenibilidad\",SUM('Instituciones-crédito'!B179:H179),0),IF(AND('Base-datos'!$B$750=\"\",'Base-datos'!$B$751=\"Sí\",'Base-datos'!$B$752=\"Sí\"),IF(AND('Instituciones-crédito'!K179=\"La actividad sí contribuye sustancialmente a la sostenibilidad\",'Instituciones-crédito'!I179=\"La actividad sí contribuye sustancialmente a la sostenibilidad\"),SUM('Instituciones-crédito'!B179:H179),0),IF(AND('Base-datos'!$B$750=\"Sí\",'Base-datos'!$B$751=\"\",'Base-datos'!$B$752=\"Sí\"),IF(AND('Instituciones-crédito'!J179=\"La actividad sí contribuye sustancialmente a la sostenibilidad\",'Instituciones-crédito'!I179=\"La actividad sí contribuye sustancialmente a la sostenibilidad\"),SUM('Instituciones-crédito'!B179:H179),0),\"Por definir\"))))))))","v":"Por definir"}]
[{"$f":"Transporte!$C48","v":"Seleccione"},{"$f":"IF(Transporte!$E48='Instituciones-crédito'!B$12,Transporte!$B48,\"\")","v":""},{"$f":"IF(Transporte!$E48='Instituciones-crédito'!C$12,Transporte!$B48,\"\")","v":""},{"$f":"IF(Transporte!$E48='Instituciones-crédito'!D$12,Transporte!$B48,\"\")","v":""},{"$f":"IF(Transporte!$E48='Instituciones-crédito'!E$12,Transporte!$B48,\"\")","v":""},{"$f":"IF(Transporte!$E48='Instituciones-crédito'!F$12,Transporte!$B48,\"\")","v":""},{"$f":"IF(Transporte!$E48='Instituciones-crédito'!G$12,Transporte!$B48,\"\")","v":""},{"$f":"IF(Transporte!$E48='Instituciones-crédito'!H$12,Transporte!$B48,\"\")","v":""},{"$f":"_xlfn.XLOOKUP(A180,'Base-datos'!$B$553:$B$570,'Base-datos'!$F$553:$F$570)","v":{"$error":"#N/A"}},{"$f":"_xlfn.XLOOKUP(A180,'Base-datos'!$B$553:$B$570,'Base-datos'!$C$553:$C$570)","v":{"$error":"#N/A"}},{"$f":"_xlfn.XLOOKUP(A180,'Base-datos'!$B$553:$B$570,'Base-datos'!$D$553:$D$570)","v":{"$error":"#N/A"}},null,null,{"$f":"IF(OR($L$161=\"La actividad no cumple con el total de los criterios de No Daño Significativo\",$M$161=\"El sector no cumple con las salvaguardas mínimas\"),\"\",IF(AND('Base-datos'!$B$750=\"Sí\",'Base-datos'!$B$751=\"\",'Base-datos'!$B$752=\"\"),IF('Instituciones-crédito'!J180=\"La actividad sí contribuye sustancialmente a la sostenibilidad\",SUM('Instituciones-crédito'!B180:H180),0),IF(AND('Base-datos'!$B$750=\"Sí\",'Base-datos'!$B$751=\"Sí\",'Base-datos'!$B$752=\"\"),IF(AND('Instituciones-crédito'!J180=\"La actividad sí contribuye sustancialmente a la sostenibilidad\",'Instituciones-crédito'!K180=\"La actividad sí contribuye sustancialmente a la sostenibilidad\"),SUM('Instituciones-crédito'!B180:H180),0),IF(AND('Base-datos'!$B$750=\"Sí\",'Base-datos'!$B$751=\"Sí\",'Base-datos'!$B$752=\"Sí\"),IF(AND('Instituciones-crédito'!J180=\"La actividad sí contribuye sustancialmente a la sostenibilidad\",'Instituciones-crédito'!K180=\"La actividad sí contribuye sustancialmente a la sostenibilidad\",'Instituciones-crédito'!I180=\"La actividad sí contribuye sustancialmente a la sostenibilidad\"),SUM('Instituciones-crédito'!B180:H180),0),IF(AND('Base-datos'!$B$750=\"\",'Base-datos'!$B$751=\"Sí\",'Base-datos'!$B$752=\"\"),IF('Instituciones-crédito'!K180=\"La actividad sí contribuye sustancialmente a la sostenibilidad\",SUM('Instituciones-crédito'!B180:H180),0),IF(AND('Base-datos'!$B$750=\"\",'Base-datos'!$B$751=\"\",'Base-datos'!$B$752=\"Sí\"),IF('Instituciones-crédito'!I180=\"La actividad sí contribuye sustancialmente a la sostenibilidad\",SUM('Instituciones-crédito'!B180:H180),0),IF(AND('Base-datos'!$B$750=\"\",'Base-datos'!$B$751=\"Sí\",'Base-datos'!$B$752=\"Sí\"),IF(AND('Instituciones-crédito'!K180=\"La actividad sí contribuye sustancialmente a la sostenibilidad\",'Instituciones-crédito'!I180=\"La actividad sí contribuye sustancialmente a la sostenibilidad\"),SUM('Instituciones-crédito'!B180:H180),0),IF(AND('Base-datos'!$B$750=\"Sí\",'Base-datos'!$B$751=\"\",'Base-datos'!$B$752=\"Sí\"),IF(AND('Instituciones-crédito'!J180=\"La actividad sí contribuye sustancialmente a la sostenibilidad\",'Instituciones-crédito'!I180=\"La actividad sí contribuye sustancialmente a la sostenibilidad\"),SUM('Instituciones-crédito'!B180:H180),0),\"Por definir\"))))))))","v":"Por definir"}]
["Residuos",null,null,null,null,null,null,null,null,null,null,null,null,{"$f":"SUM(IF(FREQUENCY(MATCH(A182:A201, A182:A201, 0), MATCH(A182:A201, A182:A201, 0)) > 0, IF(NOT(ISERROR(N182:N201)), N182:N201, 0)))","v":0}]
[{"$f":"Residuos!$C10","v":"Seleccione"},{"$f":"IF(Residuos!$E10='Instituciones-crédito'!B$12,Residuos!$B10,\"\")","v":""},{"$f":"IF(Residuos!$E10='Instituciones-crédito'!C$12,Residuos!$B10,\"\")","v":""},{"$f":"IF(Residuos!$E10='Instituciones-crédito'!D$12,Residuos!$B10,\"\")","v":""},{"$f":"IF(Residuos!$E10='Instituciones-crédito'!E$12,Residuos!$B10,\"\")","v":""},{"$f":"IF(Residuos!$E10='Instituciones-crédito'!F$12,Residuos!$B10,\"\")","v":""},{"$f":"IF(Residuos!$E10='Instituciones-crédito'!G$12,Residuos!$B10,\"\")","v":""},{"$f":"IF(Residuos!$E10='Instituciones-crédito'!H$12,Residuos!$B10,\"\")","v":""},{"$f":"_xlfn.XLOOKUP(A182,'Base-datos'!$B$571:$B$580,'Base-datos'!$F$571:$F$580)","v":{"$error":"#N/A"}},{"$f":"_xlfn.XLOOKUP(A182,'Base-datos'!$B$571:$B$580,'Base-datos'!$C$571:$C$580)","v":{"$error":"#N/A"}},{"$f":"_xlfn.XLOOKUP(A182,'Base-datos'!$B$571:$B$580,'Base-datos'!$D$571:$D$580)","v":{"$error":"#N/A"}},{"$f":"IF(COUNTIF('Residuos-NDS'!G9:G63,\"No\")>0,\"La actividad no cumple con el total de los criterios de NDS\",\"La actividad cumple con los criterios de No Daño Significativo\")","v":"La actividad cumple con los criterios de No Daño Significativo"},{"$f":"IF(OR('Salvaguardas mínimas'!$G$10=\"Seleccione\",'Salvaguardas mínimas'!$G$13=\"Seleccione\",'Salvaguardas mínimas'!$G$16=\"Seleccione\",'Salvaguardas mínimas'!$G$7=\"Seleccione\"),\"No se han respondido todas las preguntas\",IF(OR('Salvaguardas mínimas'!$G$10=\"No\",'Salvaguardas mínimas'!$G$13=\"No\",'Salvaguardas mínimas'!$G$16=\"No\",'Salvaguardas mínimas'!$G$7=\"No\"),\"El sector no cumple con las salvaguardas mínimas\",\"La actividad sí cumple con las salvaguardas mínimas\"))","v":"No se han respondido todas las preguntas"},{"$f":"IF(OR($L$182=\"La actividad no cumple con el total de los criterios de No Daño Significativo\",$M$182=\"El sector no cumple con las salvaguardas mínimas\"),\"\",IF(AND('Base-datos'!$B$755=\"Sí\",'Base-datos'!$B$756=\"\",'Base-datos'!$B$757=\"\"),IF('Instituciones-crédito'!J182=\"La actividad sí contribuye sustancialmente a la sostenibilidad\",SUM('Instituciones-crédito'!B182:H182),0),IF(AND('Base-datos'!$B$755=\"Sí\",'Base-datos'!$B$756=\"Sí\",'Base-datos'!$B$757=\"\"),IF(AND('Instituciones-crédito'!J182=\"La actividad sí contribuye sustancialmente a la sostenibilidad\",'Instituciones-crédito'!K182=\"La actividad sí contribuye sustancialmente a la sostenibilidad\"),SUM('Instituciones-crédito'!B182:H182),0),IF(AND('Base-datos'!$B$755=\"Sí\",'Base-datos'!$B$756=\"Sí\",'Base-datos'!$B$757=\"Sí\"),IF(AND('Instituciones-crédito'!J182=\"La actividad sí contribuye sustancialmente a la sostenibilidad\",'Instituciones-crédito'!K182=\"La actividad sí contribuye sustancialmente a la sostenibilidad\",'Instituciones-crédito'!I182=\"La actividad sí contribuye sustancialmente a la sostenibilidad\"),SUM('Instituciones-crédito'!B182:H182),0),IF(AND('Base-datos'!$B$755=\"\",'Base-datos'!$B$756=\"Sí\",'Base-datos'!$B$757=\"\"),IF('Instituciones-crédito'!K182=\"La actividad sí contribuye sustancialmente a la sostenibilidad\",SUM('Instituciones-crédito'!B182:H182),0),IF(AND('Base-datos'!$B$755=\"\",'Base-datos'!$B$756=\"\",'Base-datos'!$B$757=\"Sí\"),IF('Instituciones-crédito'!I182=\"La actividad sí contribuye sustancialmente a la sostenibilidad\",SUM('Instituciones-crédito'!B182:H182),0),IF(AND('Base-datos'!$B$755=\"\",'Base-datos'!$B$756=\"Sí\",'Base-datos'!$B$757=\"Sí\"),IF(AND('Instituciones-crédito'!K182=\"La actividad sí contribuye sustancialmente a la sostenibilidad\",'Instituciones-crédito'!I182=\"La actividad sí contribuye sustancialmente a la sostenibilidad\"),SUM('Instituciones-crédito'!B182:H182),0),IF(AND('Base-datos'!$B$755=\"Sí\",'Base-datos'!$B$756=\"\",'Base-datos'!$B$757=\"Sí\"),IF(AND('Instituciones-crédito'!J182=\"La actividad sí contribuye sustancialmente a la sostenibilidad\",'Instituciones-crédito'!I182=\"La actividad sí contribuye sustancialmente a la sostenibilidad\"),SUM('Instituciones-crédito'!B182:H182),0),\"Por definir\"))))))))","v":"Por definir"}]
[{"$f":"Residuos!$C12","v":"Seleccione"},{"$f":"IF(Residuos!$E12='Instituciones-crédito'!B$12,Residuos!$B12,\"\")","v":""},{"$f":"IF(Residuos!$E12='Instituciones-crédito'!C$12,Residuos!$B12,\"\")","v":""},{"$f":"IF(Residuos!$E12='Instituciones-crédito'!D$12,Residuos!$B12,\"\")","v":""},{"$f":"IF(Residuos!$E12='Instituciones-crédito'!E$12,Residuos!$B12,\"\")","v":""},{"$f":"IF(Residuos!$E12='Instituciones-crédito'!F$12,Residuos!$B12,\"\")","v":""},{"$f":"IF(Residuos!$E12='Instituciones-crédito'!G$12,Residuos!$B12,\"\")","v":""},{"$f":"IF(Residuos!$E12='Instituciones-crédito'!H$12,Residuos!$B12,\"\")","v":""},{"$f":"_xlfn.XLOOKUP(A183,'Base-datos'!$B$571:$B$580,'Base-datos'!$F$571:$F$580)","v":{"$error":"#N/A"}},{"$f":"_xlfn.XLOOKUP(A183,'Base-datos'!$B$571:$B$580,'Base-datos'!$C$571:$C$580)","v":{"$error":"#N/A"}},{"$f":"_xlfn.XLOOKUP(A183,'Base-datos'!$B$571:$B$580,'Base-datos'!$D$571:$D$580)","v":{"$error":"#N/A"}},null,null,{"$f":"IF(OR($L$182=\"La actividad no cumple con el total de los criterios de No Daño Significativo\",$M$182=\"El sector no cumple con las salvaguardas mínimas\"),\"\",IF(AND('Base-datos'!$B$755=\"Sí\",'Base-datos'!$B$756=\"\",'Base-datos'!$B$757=\"\"),IF('Instituciones-crédito'!J183=\"La actividad sí contribuye sustancialmente a la sostenibilidad\",SUM('Instituciones-crédito'!B183:H183),0),IF(AND('Base-datos'!$B$755=\"Sí\",'Base-datos'!$B$756=\"Sí\",'Base-datos'!$B$757=\"\"),IF(AND('Instituciones-crédito'!J183=\"La actividad sí contribuye sustancialmente a la sostenibilidad\",'Instituciones-crédito'!K183=\"La actividad sí contribuye sustancialmente a la sostenibilidad\"),SUM('Instituciones-crédito'!B183:H183),0),IF(AND('Base-datos'!$B$755=\"Sí\",'Base-datos'!$B$756=\"Sí\",'Base-datos'!$B$757=\"Sí\"),IF(AND('Instituciones-crédito'!J183=\"La actividad sí contribuye sustancialmente a la sostenibilidad\",'Instituciones-crédito'!K183=\"La actividad sí contribuye sustancialmente a la sostenibilidad\",'Instituciones-crédito'!I183=\"La actividad sí contribuye sustancialmente a la sostenibilidad\"),SUM('Instituciones-crédito'!B183:H183),0),IF(AND('Base-datos'!$B$755=\"\",'Base-datos'!$B$756=\"Sí\",'Base-datos'!$B$757=\"\"),IF('Instituciones-crédito'!K183=\"La actividad sí contribuye sustancialmente a la sostenibilidad\",SUM('Instituciones-crédito'!B183:H183),0),IF(AND('Base-datos'!$B$755=\"\",'Base-datos'!$B$756=\"\",'Base-datos'!$B$757=\"Sí\"),IF('Instituciones-crédito'!I183=\"La actividad sí contribuye sustancialmente a la sostenibilidad\",SUM('Instituciones-crédito'!B183:H183),0),IF(AND('Base-datos'!$B$755=\"\",'Base-datos'!$B$756=\"Sí\",'Base-datos'!$B$757=\"Sí\"),IF(AND('Instituciones-crédito'!K183=\"La actividad sí contribuye sustancialmente a la sostenibilidad\",'Instituciones-crédito'!I183=\"La actividad sí contribuye sustancialmente a la sostenibilidad\"),SUM('Instituciones-crédito'!B183:H183),0),IF(AND('Base-datos'!$B$755=\"Sí\",'Base-datos'!$B$756=\"\",'Base-datos'!$B$757=\"Sí\"),IF(AND('Instituciones-crédito'!J183=\"La actividad sí contribuye sustancialmente a la sostenibilidad\",'Instituciones-crédito'!I183=\"La actividad sí contribuye sustancialmente a la sostenibilidad\"),SUM('Instituciones-crédito'!B183:H183),0),\"Por definir\"))))))))","v":"Por definir"}]
[{"$f":"Residuos!$C14","v":"Seleccione"},{"$f":"IF(Residuos!$E14='Instituciones-crédito'!B$12,Residuos!$B14,\"\")","v":""},{"$f":"IF(Residuos!$E14='Instituciones-crédito'!C$12,Residuos!$B14,\"\")","v":""},{"$f":"IF(Residuos!$E14='Instituciones-crédito'!D$12,Residuos!$B14,\"\")","v":""},{"$f":"IF(Residuos!$E14='Instituciones-crédito'!E$12,Residuos!$B14,\"\")","v":""},{"$f":"IF(Residuos!$E14='Instituciones-crédito'!F$12,Residuos!$B14,\"\")","v":""},{"$f":"IF(Residuos!$E14='Instituciones-crédito'!G$12,Residuos!$B14,\"\")","v":""},{"$f":"IF(Residuos!$E14='Instituciones-crédito'!H$12,Residuos!$B14,\"\")","v":""},{"$f":"_xlfn.XLOOKUP(A184,'Base-datos'!$B$571:$B$580,'Base-datos'!$F$571:$F$580)","v":{"$error":"#N/A"}},{"$f":"_xlfn.XLOOKUP(A184,'Base-datos'!$B$571:$B$580,'Base-datos'!$C$571:$C$580)","v":{"$error":"#N/A"}},{"$f":"_xlfn.XLOOKUP(A184,'Base-datos'!$B$571:$B$580,'Base-datos'!$D$571:$D$580)","v":{"$error":"#N/A"}},null,null,{"$f":"IF(OR($L$182=\"La actividad no cumple con el total de los criterios de No Daño Significativo\",$M$182=\"El sector no cumple con las salvaguardas mínimas\"),\"\",IF(AND('Base-datos'!$B$755=\"Sí\",'Base-datos'!$B$756=\"\",'Base-datos'!$B$757=\"\"),IF('Instituciones-crédito'!J184=\"La actividad sí contribuye sustancialmente a la sostenibilidad\",SUM('Instituciones-crédito'!B184:H184),0),IF(AND('Base-datos'!$B$755=\"Sí\",'Base-datos'!$B$756=\"Sí\",'Base-datos'!$B$757=\"\"),IF(AND('Instituciones-crédito'!J184=\"La actividad sí contribuye sustancialmente a la sostenibilidad\",'Instituciones-crédito'!K184=\"La actividad sí contribuye sustancialmente a la sostenibilidad\"),SUM('Instituciones-crédito'!B184:H184),0),IF(AND('Base-datos'!$B$755=\"Sí\",'Base-datos'!$B$756=\"Sí\",'Base-datos'!$B$757=\"Sí\"),IF(AND('Instituciones-crédito'!J184=\"La actividad sí contribuye sustancialmente a la sostenibilidad\",'Instituciones-crédito'!K184=\"La actividad sí contribuye sustancialmente a la sostenibilidad\",'Instituciones-crédito'!I184=\"La actividad sí contribuye sustancialmente a la sostenibilidad\"),SUM('Instituciones-crédito'!B184:H184),0),IF(AND('Base-datos'!$B$755=\"\",'Base-datos'!$B$756=\"Sí\",'Base-datos'!$B$757=\"\"),IF('Instituciones-crédito'!K184=\"La actividad sí contribuye sustancialmente a la sostenibilidad\",SUM('Instituciones-crédito'!B184:H184),0),IF(AND('Base-datos'!$B$755=\"\",'Base-datos'!$B$756=\"\",'Base-datos'!$B$757=\"Sí\"),IF('Instituciones-crédito'!I184=\"La actividad sí contribuye sustancialmente a la sostenibilidad\",SUM('Instituciones-crédito'!B184:H184),0),IF(AND('Base-datos'!$B$755=\"\",'Base-datos'!$B$756=\"Sí\",'Base-datos'!$B$757=\"Sí\"),IF(AND('Instituciones-crédito'!K184=\"La actividad sí contribuye sustancialmente a la sostenibilidad\",'Instituciones-crédito'!I184=\"La actividad sí contribuye sustancialmente a la sostenibilidad\"),SUM('Instituciones-crédito'!B184:H184),0),IF(AND('Base-datos'!$B$755=\"Sí\",'Base-datos'!$B$756=\"\",'Base-datos'!$B$757=\"Sí\"),IF(AND('Instituciones-crédito'!J184=\"La actividad sí contribuye sustancialmente a la sostenibilidad\",'Instituciones-crédito'!I184=\"La actividad sí contribuye sustancialmente a la sostenibilidad\"),SUM('Instituciones-crédito'!B184:H184),0),\"Por definir\"))))))))","v":"Por definir"}]
[{"$f":"Residuos!$C16","v":"Seleccione"},{"$f":"IF(Residuos!$E16='Instituciones-crédito'!B$12,Residuos!$B16,\"\")","v":""},{"$f":"IF(Residuos!$E16='Instituciones-crédito'!C$12,Residuos!$B16,\"\")","v":""},{"$f":"IF(Residuos!$E16='Instituciones-crédito'!D$12,Residuos!$B16,\"\")","v":""},{"$f":"IF(Residuos!$E16='Instituciones-crédito'!E$12,Residuos!$B16,\"\")","v":""},{"$f":"IF(Residuos!$E16='Instituciones-crédito'!F$12,Residuos!$B16,\"\")","v":""},{"$f":"IF(Residuos!$E16='Instituciones-crédito'!G$12,Residuos!$B16,\"\")","v":""},{"$f":"IF(Residuos!$E16='Instituciones-crédito'!H$12,Residuos!$B16,\"\")","v":""},{"$f":"_xlfn.XLOOKUP(A185,'Base-datos'!$B$571:$B$580,'Base-datos'!$F$571:$F$580)","v":{"$error":"#N/A"}},{"$f":"_xlfn.XLOOKUP(A185,'Base-datos'!$B$571:$B$580,'Base-datos'!$C$571:$C$580)","v":{"$error":"#N/A"}},{"$f":"_xlfn.XLOOKUP(A185,'Base-datos'!$B$571:$B$580,'Base-datos'!$D$571:$D$580)","v":{"$error":"#N/A"}},null,null,{"$f":"IF(OR($L$182=\"La actividad no cumple con el total de los criterios de No Daño Significativo\",$M$182=\"El sector no cumple con las salvaguardas mínimas\"),\"\",IF(AND('Base-datos'!$B$755=\"Sí\",'Base-datos'!$B$756=\"\",'Base-datos'!$B$757=\"\"),IF('Instituciones-crédito'!J185=\"La actividad sí contribuye sustancialmente a la sostenibilidad\",SUM('Instituciones-crédito'!B185:H185),0),IF(AND('Base-datos'!$B$755=\"Sí\",'Base-datos'!$B$756=\"Sí\",'Base-datos'!$B$757=\"\"),IF(AND('Instituciones-crédito'!J185=\"La actividad sí contribuye sustancialmente a la sostenibilidad\",'Instituciones-crédito'!K185=\"La actividad sí contribuye sustancialmente a la sostenibilidad\"),SUM('Instituciones-crédito'!B185:H185),0),IF(AND('Base-datos'!$B$755=\"Sí\",'Base-datos'!$B$756=\"Sí\",'Base-datos'!$B$757=\"Sí\"),IF(AND('Instituciones-crédito'!J185=\"La actividad sí contribuye sustancialmente a la sostenibilidad\",'Instituciones-crédito'!K185=\"La actividad sí contribuye sustancialmente a la sostenibilidad\",'Instituciones-crédito'!I185=\"La actividad sí contribuye sustancialmente a la sostenibilidad\"),SUM('Instituciones-crédito'!B185:H185),0),IF(AND('Base-datos'!$B$755=\"\",'Base-datos'!$B$756=\"Sí\",'Base-datos'!$B$757=\"\"),IF('Instituciones-crédito'!K185=\"La actividad sí contribuye sustancialmente a la sostenibilidad\",SUM('Instituciones-crédito'!B185:H185),0),IF(AND('Base-datos'!$B$755=\"\",'Base-datos'!$B$756=\"\",'Base-datos'!$B$757=\"Sí\"),IF('Instituciones-crédito'!I185=\"La actividad sí contribuye sustancialmente a la sostenibilidad\",SUM('Instituciones-crédito'!B185:H185),0),IF(AND('Base-datos'!$B$755=\"\",'Base-datos'!$B$756=\"Sí\",'Base-datos'!$B$757=\"Sí\"),IF(AND('Instituciones-crédito'!K185=\"La actividad sí contribuye sustancialmente a la sostenibilidad\",'Instituciones-crédito'!I185=\"La actividad sí contribuye sustancialmente a la sostenibilidad\"),SUM('Instituciones-crédito'!B185:H185),0),IF(AND('Base-datos'!$B$755=\"Sí\",'Base-datos'!$B$756=\"\",'Base-datos'!$B$757=\"Sí\"),IF(AND('Instituciones-crédito'!J185=\"La actividad sí contribuye sustancialmente a la sostenibilidad\",'Instituciones-crédito'!I185=\"La actividad sí contribuye sustancialmente a la sostenibilidad\"),SUM('Instituciones-crédito'!B185:H185),0),\"Por definir\"))))))))","v":"Por definir"}]
[{"$f":"Residuos!$C18","v":"Seleccione"},{"$f":"IF(Residuos!$E18='Instituciones-crédito'!B$12,Residuos!$B18,\"\")","v":""},{"$f":"IF(Residuos!$E18='Instituciones-crédito'!C$12,Residuos!$B18,\"\")","v":""},{"$f":"IF(Residuos!$E18='Instituciones-crédito'!D$12,Residuos!$B18,\"\")","v":""},{"$f":"IF(Residuos!$E18='Instituciones-crédito'!E$12,Residuos!$B18,\"\")","v":""},{"$f":"IF(Residuos!$E18='Instituciones-crédito'!F$12,Residuos!$B18,\"\")","v":""},{"$f":"IF(Residuos!$E18='Instituciones-crédito'!G$12,Residuos!$B18,\"\")","v":""},{"$f":"IF(Residuos!$E18='Instituciones-crédito'!H$12,Residuos!$B18,\"\")","v":""},{"$f":"_xlfn.XLOOKUP(A186,'Base-datos'!$B$571:$B$580,'Base-datos'!$F$571:$F$580)","v":{"$error":"#N/A"}},{"$f":"_xlfn.XLOOKUP(A186,'Base-datos'!$B$571:$B$580,'Base-datos'!$C$571:$C$580)","v":{"$error":"#N/A"}},{"$f":"_xlfn.XLOOKUP(A186,'Base-datos'!$B$571:$B$580,'Base-datos'!$D$571:$D$580)","v":{"$error":"#N/A"}},null,null,{"$f":"IF(OR($L$182=\"La actividad no cumple con el total de los criterios de No Daño Significativo\",$M$182=\"El sector no cumple con las salvaguardas mínimas\"),\"\",IF(AND('Base-datos'!$B$755=\"Sí\",'Base-datos'!$B$756=\"\",'Base-datos'!$B$757=\"\"),IF('Instituciones-crédito'!J186=\"La actividad sí contribuye sustancialmente a la sostenibilidad\",SUM('Instituciones-crédito'!B186:H186),0),IF(AND('Base-datos'!$B$755=\"Sí\",'Base-datos'!$B$756=\"Sí\",'Base-datos'!$B$757=\"\"),IF(AND('Instituciones-crédito'!J186=\"La actividad sí contribuye sustancialmente a la sostenibilidad\",'Instituciones-crédito'!K186=\"La actividad sí contribuye sustancialmente a la sostenibilidad\"),SUM('Instituciones-crédito'!B186:H186),0),IF(AND('Base-datos'!$B$755=\"Sí\",'Base-datos'!$B$756=\"Sí\",'Base-datos'!$B$757=\"Sí\"),IF(AND('Instituciones-crédito'!J186=\"La actividad sí contribuye sustancialmente a la sostenibilidad\",'Instituciones-crédito'!K186=\"La actividad sí contribuye sustancialmente a la sostenibilidad\",'Instituciones-crédito'!I186=\"La actividad sí contribuye sustancialmente a la sostenibilidad\"),SUM('Instituciones-crédito'!B186:H186),0),IF(AND('Base-datos'!$B$755=\"\",'Base-datos'!$B$756=\"Sí\",'Base-datos'!$B$757=\"\"),IF('Instituciones-crédito'!K186=\"La actividad sí contribuye sustancialmente a la sostenibilidad\",SUM('Instituciones-crédito'!B186:H186),0),IF(AND('Base-datos'!$B$755=\"\",'Base-datos'!$B$756=\"\",'Base-datos'!$B$757=\"Sí\"),IF('Instituciones-crédito'!I186=\"La actividad sí contribuye sustancialmente a la sostenibilidad\",SUM('Instituciones-crédito'!B186:H186),0),IF(AND('Base-datos'!$B$755=\"\",'Base-datos'!$B$756=\"Sí\",'Base-datos'!$B$757=\"Sí\"),IF(AND('Instituciones-crédito'!K186=\"La actividad sí contribuye sustancialmente a la sostenibilidad\",'Instituciones-crédito'!I186=\"La actividad sí contribuye sustancialmente a la sostenibilidad\"),SUM('Instituciones-crédito'!B186:H186),0),IF(AND('Base-datos'!$B$755=\"Sí\",'Base-datos'!$B$756=\"\",'Base-datos'!$B$757=\"Sí\"),IF(AND('Instituciones-crédito'!J186=\"La actividad sí contribuye sustancialmente a la sostenibilidad\",'Instituciones-crédito'!I186=\"La actividad sí contribuye sustancialmente a la sostenibilidad\"),SUM('Instituciones-crédito'!B186:H186),0),\"Por definir\"))))))))","v":"Por definir"}]
[{"$f":"Residuos!$C20","v":"Seleccione"},{"$f":"IF(Residuos!$E20='Instituciones-crédito'!B$12,Residuos!$B20,\"\")","v":""},{"$f":"IF(Residuos!$E20='Instituciones-crédito'!C$12,Residuos!$B20,\"\")","v":""},{"$f":"IF(Residuos!$E20='Instituciones-crédito'!D$12,Residuos!$B20,\"\")","v":""},{"$f":"IF(Residuos!$E20='Instituciones-crédito'!E$12,Residuos!$B20,\"\")","v":""},{"$f":"IF(Residuos!$E20='Instituciones-crédito'!F$12,Residuos!$B20,\"\")","v":""},{"$f":"IF(Residuos!$E20='Instituciones-crédito'!G$12,Residuos!$B20,\"\")","v":""},{"$f":"IF(Residuos!$E20='Instituciones-crédito'!H$12,Residuos!$B20,\"\")","v":""},{"$f":"_xlfn.XLOOKUP(A187,'Base-datos'!$B$571:$B$580,'Base-datos'!$F$571:$F$580)","v":{"$error":"#N/A"}},{"$f":"_xlfn.XLOOKUP(A187,'Base-datos'!$B$571:$B$580,'Base-datos'!$C$571:$C$580)","v":{"$error":"#N/A"}},{"$f":"_xlfn.XLOOKUP(A187,'Base-datos'!$B$571:$B$580,'Base-datos'!$D$571:$D$580)","v":{"$error":"#N/A"}},null,null,{"$f":"IF(OR($L$182=\"La actividad no cumple con el total de los criterios de No Daño Significativo\",$M$182=\"El sector no cumple con las salvaguardas mínimas\"),\"\",IF(AND('Base-datos'!$B$755=\"Sí\",'Base-datos'!$B$756=\"\",'Base-datos'!$B$757=\"\"),IF('Instituciones-crédito'!J187=\"La actividad sí contribuye sustancialmente a la sostenibilidad\",SUM('Instituciones-crédito'!B187:H187),0),IF(AND('Base-datos'!$B$755=\"Sí\",'Base-datos'!$B$756=\"Sí\",'Base-datos'!$B$757=\"\"),IF(AND('Instituciones-crédito'!J187=\"La actividad sí contribuye sustancialmente a la sostenibilidad\",'Instituciones-crédito'!K187=\"La actividad sí contribuye sustancialmente a la sostenibilidad\"),SUM('Instituciones-crédito'!B187:H187),0),IF(AND('Base-datos'!$B$755=\"Sí\",'Base-datos'!$B$756=\"Sí\",'Base-datos'!$B$757=\"Sí\"),IF(AND('Instituciones-crédito'!J187=\"La actividad sí contribuye sustancialmente a la sostenibilidad\",'Instituciones-crédito'!K187=\"La actividad sí contribuye sustancialmente a la sostenibilidad\",'Instituciones-crédito'!I187=\"La actividad sí contribuye sustancialmente a la sostenibilidad\"),SUM('Instituciones-crédito'!B187:H187),0),IF(AND('Base-datos'!$B$755=\"\",'Base-datos'!$B$756=\"Sí\",'Base-datos'!$B$757=\"\"),IF('Instituciones-crédito'!K187=\"La actividad sí contribuye sustancialmente a la sostenibilidad\",SUM('Instituciones-crédito'!B187:H187),0),IF(AND('Base-datos'!$B$755=\"\",'Base-datos'!$B$756=\"\",'Base-datos'!$B$757=\"Sí\"),IF('Instituciones-crédito'!I187=\"La actividad sí contribuye sustancialmente a la sostenibilidad\",SUM('Instituciones-crédito'!B187:H187),0),IF(AND('Base-datos'!$B$755=\"\",'Base-datos'!$B$756=\"Sí\",'Base-datos'!$B$757=\"Sí\"),IF(AND('Instituciones-crédito'!K187=\"La actividad sí contribuye sustancialmente a la sostenibilidad\",'Instituciones-crédito'!I187=\"La actividad sí contribuye sustancialmente a la sostenibilidad\"),SUM('Instituciones-crédito'!B187:H187),0),IF(AND('Base-datos'!$B$755=\"Sí\",'Base-datos'!$B$756=\"\",'Base-datos'!$B$757=\"Sí\"),IF(AND('Instituciones-crédito'!J187=\"La actividad sí contribuye sustancialmente a la sostenibilidad\",'Instituciones-crédito'!I187=\"La actividad sí contribuye sustancialmente a la sostenibilidad\"),SUM('Instituciones-crédito'!B187:H187),0),\"Por definir\"))))))))","v":"Por definir"}]
[{"$f":"Residuos!$C22","v":"Seleccione"},{"$f":"IF(Residuos!$E22='Instituciones-crédito'!B$12,Residuos!$B22,\"\")","v":""},{"$f":"IF(Residuos!$E22='Instituciones-crédito'!C$12,Residuos!$B22,\"\")","v":""},{"$f":"IF(Residuos!$E22='Instituciones-crédito'!D$12,Residuos!$B22,\"\")","v":""},{"$f":"IF(Residuos!$E22='Instituciones-crédito'!E$12,Residuos!$B22,\"\")","v":""},{"$f":"IF(Residuos!$E22='Instituciones-crédito'!F$12,Residuos!$B22,\"\")","v":""},{"$f":"IF(Residuos!$E22='Instituciones-crédito'!G$12,Residuos!$B22,\"\")","v":""},{"$f":"IF(Residuos!$E22='Instituciones-crédito'!H$12,Residuos!$B22,\"\")","v":""},{"$f":"_xlfn.XLOOKUP(A188,'Base-datos'!$B$571:$B$580,'Base-datos'!$F$571:$F$580)","v":{"$error":"#N/A"}},{"$f":"_xlfn.XLOOKUP(A188,'Base-datos'!$B$571:$B$580,'Base-datos'!$C$571:$C$580)","v":{"$error":"#N/A"}},{"$f":"_xlfn.XLOOKUP(A188,'Base-datos'!$B$571:$B$580,'Base-datos'!$D$571:$D$580)","v":{"$error":"#N/A"}},null,null,{"$f":"IF(OR($L$182=\"La actividad no cumple con el total de los criterios de No Daño Significativo\",$M$182=\"El sector no cumple con las salvaguardas mínimas\"),\"\",IF(AND('Base-datos'!$B$755=\"Sí\",'Base-datos'!$B$756=\"\",'Base-datos'!$B$757=\"\"),IF('Instituciones-crédito'!J188=\"La actividad sí contribuye sustancialmente a la sostenibilidad\",SUM('Instituciones-crédito'!B188:H188),0),IF(AND('Base-datos'!$B$755=\"Sí\",'Base-datos'!$B$756=\"Sí\",'Base-datos'!$B$757=\"\"),IF(AND('Instituciones-crédito'!J188=\"La actividad sí contribuye sustancialmente a la sostenibilidad\",'Instituciones-crédito'!K188=\"La actividad sí contribuye sustancialmente a la sostenibilidad\"),SUM('Instituciones-crédito'!B188:H188),0),IF(AND('Base-datos'!$B$755=\"Sí\",'Base-datos'!$B$756=\"Sí\",'Base-datos'!$B$757=\"Sí\"),IF(AND('Instituciones-crédito'!J188=\"La actividad sí contribuye sustancialmente a la sostenibilidad\",'Instituciones-crédito'!K188=\"La actividad sí contribuye sustancialmente a la sostenibilidad\",'Instituciones-crédito'!I188=\"La actividad sí contribuye sustancialmente a la sostenibilidad\"),SUM('Instituciones-crédito'!B188:H188),0),IF(AND('Base-datos'!$B$755=\"\",'Base-datos'!$B$756=\"Sí\",'Base-datos'!$B$757=\"\"),IF('Instituciones-crédito'!K188=\"La actividad sí contribuye sustancialmente a la sostenibilidad\",SUM('Instituciones-crédito'!B188:H188),0),IF(AND('Base-datos'!$B$755=\"\",'Base-datos'!$B$756=\"\",'Base-datos'!$B$757=\"Sí\"),IF('Instituciones-crédito'!I188=\"La actividad sí contribuye sustancialmente a la sostenibilidad\",SUM('Instituciones-crédito'!B188:H188),0),IF(AND('Base-datos'!$B$755=\"\",'Base-datos'!$B$756=\"Sí\",'Base-datos'!$B$757=\"Sí\"),IF(AND('Instituciones-crédito'!K188=\"La actividad sí contribuye sustancialmente a la sostenibilidad\",'Instituciones-crédito'!I188=\"La actividad sí contribuye sustancialmente a la sostenibilidad\"),SUM('Instituciones-crédito'!B188:H188),0),IF(AND('Base-datos'!$B$755=\"Sí\",'Base-datos'!$B$756=\"\",'Base-datos'!$B$757=\"Sí\"),IF(AND('Instituciones-crédito'!J188=\"La actividad sí contribuye sustancialmente a la sostenibilidad\",'Instituciones-crédito'!I188=\"La actividad sí contribuye sustancialmente a la sostenibilidad\"),SUM('Instituciones-crédito'!B188:H188),0),\"Por definir\"))))))))","v":"Por definir"}]
[{"$f":"Residuos!$C24","v":"Seleccione"},{"$f":"IF(Residuos!$E24='Instituciones-crédito'!B$12,Residuos!$B24,\"\")","v":""},{"$f":"IF(Residuos!$E24='Instituciones-crédito'!C$12,Residuos!$B24,\"\")","v":""},{"$f":"IF(Residuos!$E24='Instituciones-crédito'!D$12,Residuos!$B24,\"\")","v":""},{"$f":"IF(Residuos!$E24='Instituciones-crédito'!E$12,Residuos!$B24,\"\")","v":""},{"$f":"IF(Residuos!$E24='Instituciones-crédito'!F$12,Residuos!$B24,\"\")","v":""},{"$f":"IF(Residuos!$E24='Instituciones-crédito'!G$12,Residuos!$B24,\"\")","v":""},{"$f":"IF(Residuos!$E24='Instituciones-crédito'!H$12,Residuos!$B24,\"\")","v":""},{"$f":"_xlfn.XLOOKUP(A189,'Base-datos'!$B$571:$B$580,'Base-datos'!$F$571:$F$580)","v":{"$error":"#N/A"}},{"$f":"_xlfn.XLOOKUP(A189,'Base-datos'!$B$571:$B$580,'Base-datos'!$C$571:$C$580)","v":{"$error":"#N/A"}},{"$f":"_xlfn.XLOOKUP(A189,'Base-datos'!$B$571:$B$580,'Base-datos'!$D$571:$D$580)","v":{"$error":"#N/A"}},null,null,{"$f":"IF(OR($L$182=\"La actividad no cumple con el total de los criterios de No Daño Significativo\",$M$182=\"El sector no cumple con las salvaguardas mínimas\"),\"\",IF(AND('Base-datos'!$B$755=\"Sí\",'Base-datos'!$B$756=\"\",'Base-datos'!$B$757=\"\"),IF('Instituciones-crédito'!J189=\"La actividad sí contribuye sustancialmente a la sostenibilidad\",SUM('Instituciones-crédito'!B189:H189),0),IF(AND('Base-datos'!$B$755=\"Sí\",'Base-datos'!$B$756=\"Sí\",'Base-datos'!$B$757=\"\"),IF(AND('Instituciones-crédito'!J189=\"La actividad sí contribuye sustancialmente a la sostenibilidad\",'Instituciones-crédito'!K189=\"La actividad sí contribuye sustancialmente a la sostenibilidad\"),SUM('Instituciones-crédito'!B189:H189),0),IF(AND('Base-datos'!$B$755=\"Sí\",'Base-datos'!$B$756=\"Sí\",'Base-datos'!$B$757=\"Sí\"),IF(AND('Instituciones-crédito'!J189=\"La actividad sí contribuye sustancialmente a la sostenibilidad\",'Instituciones-crédito'!K189=\"La actividad sí contribuye sustancialmente a la sostenibilidad\",'Instituciones-crédito'!I189=\"La actividad sí contribuye sustancialmente a la sostenibilidad\"),SUM('Instituciones-crédito'!B189:H189),0),IF(AND('Base-datos'!$B$755=\"\",'Base-datos'!$B$756=\"Sí\",'Base-datos'!$B$757=\"\"),IF('Instituciones-crédito'!K189=\"La actividad sí contribuye sustancialmente a la sostenibilidad\",SUM('Instituciones-crédito'!B189:H189),0),IF(AND('Base-datos'!$B$755=\"\",'Base-datos'!$B$756=\"\",'Base-datos'!$B$757=\"Sí\"),IF('Instituciones-crédito'!I189=\"La actividad sí contribuye sustancialmente a la sostenibilidad\",SUM('Instituciones-crédito'!B189:H189),0),IF(AND('Base-datos'!$B$755=\"\",'Base-datos'!$B$756=\"Sí\",'Base-datos'!$B$757=\"Sí\"),IF(AND('Instituciones-crédito'!K189=\"La actividad sí contribuye sustancialmente a la sostenibilidad\",'Instituciones-crédito'!I189=\"La actividad sí contribuye sustancialmente a la sostenibilidad\"),SUM('Instituciones-crédito'!B189:H189),0),IF(AND('Base-datos'!$B$755=\"Sí\",'Base-datos'!$B$756=\"\",'Base-datos'!$B$757=\"Sí\"),IF(AND('Instituciones-crédito'!J189=\"La actividad sí contribuye sustancialmente a la sostenibilidad\",'Instituciones-crédito'!I189=\"La actividad sí contribuye sustancialmente a la sostenibilidad\"),SUM('Instituciones-crédito'!B189:H189),0),\"Por definir\"))))))))","v":"Por definir"}]
[{"$f":"Residuos!$C26","v":"Seleccione"},{"$f":"IF(Residuos!$E26='Instituciones-crédito'!B$12,Residuos!$B26,\"\")","v":""},{"$f":"IF(Residuos!$E26='Instituciones-crédito'!C$12,Residuos!$B26,\"\")","v":""},{"$f":"IF(Residuos!$E26='Instituciones-crédito'!D$12,Residuos!$B26,\"\")","v":""},{"$f":"IF(Residuos!$E26='Instituciones-crédito'!E$12,Residuos!$B26,\"\")","v":""},{"$f":"IF(Residuos!$E26='Instituciones-crédito'!F$12,Residuos!$B26,\"\")","v":""},{"$f":"IF(Residuos!$E26='Instituciones-crédito'!G$12,Residuos!$B26,\"\")","v":""},{"$f":"IF(Residuos!$E26='Instituciones-crédito'!H$12,Residuos!$B26,\"\")","v":""},{"$f":"_xlfn.XLOOKUP(A190,'Base-datos'!$B$571:$B$580,'Base-datos'!$F$571:$F$580)","v":{"$error":"#N/A"}},{"$f":"_xlfn.XLOOKUP(A190,'Base-datos'!$B$571:$B$580,'Base-datos'!$C$571:$C$580)","v":{"$error":"#N/A"}},{"$f":"_xlfn.XLOOKUP(A190,'Base-datos'!$B$571:$B$580,'Base-datos'!$D$571:$D$580)","v":{"$error":"#N/A"}},null,null,{"$f":"IF(OR($L$182=\"La actividad no cumple con el total de los criterios de No Daño Significativo\",$M$182=\"El sector no cumple con las salvaguardas mínimas\"),\"\",IF(AND('Base-datos'!$B$755=\"Sí\",'Base-datos'!$B$756=\"\",'Base-datos'!$B$757=\"\"),IF('Instituciones-crédito'!J190=\"La actividad sí contribuye sustancialmente a la sostenibilidad\",SUM('Instituciones-crédito'!B190:H190),0),IF(AND('Base-datos'!$B$755=\"Sí\",'Base-datos'!$B$756=\"Sí\",'Base-datos'!$B$757=\"\"),IF(AND('Instituciones-crédito'!J190=\"La actividad sí contribuye sustancialmente a la sostenibilidad\",'Instituciones-crédito'!K190=\"La actividad sí contribuye sustancialmente a la sostenibilidad\"),SUM('Instituciones-crédito'!B190:H190),0),IF(AND('Base-datos'!$B$755=\"Sí\",'Base-datos'!$B$756=\"Sí\",'Base-datos'!$B$757=\"Sí\"),IF(AND('Instituciones-crédito'!J190=\"La actividad sí contribuye sustancialmente a la sostenibilidad\",'Instituciones-crédito'!K190=\"La actividad sí contribuye sustancialmente a la sostenibilidad\",'Instituciones-crédito'!I190=\"La actividad sí contribuye sustancialmente a la sostenibilidad\"),SUM('Instituciones-crédito'!B190:H190),0),IF(AND('Base-datos'!$B$755=\"\",'Base-datos'!$B$756=\"Sí\",'Base-datos'!$B$757=\"\"),IF('Instituciones-crédito'!K190=\"La actividad sí contribuye sustancialmente a la sostenibilidad\",SUM('Instituciones-crédito'!B190:H190),0),IF(AND('Base-datos'!$B$755=\"\",'Base-datos'!$B$756=\"\",'Base-datos'!$B$757=\"Sí\"),IF('Instituciones-crédito'!I190=\"La actividad sí contribuye sustancialmente a la sostenibilidad\",SUM('Instituciones-crédito'!B190:H190),0),IF(AND('Base-datos'!$B$755=\"\",'Base-datos'!$B$756=\"Sí\",'Base-datos'!$B$757=\"Sí\"),IF(AND('Instituciones-crédito'!K190=\"La actividad sí contribuye sustancialmente a la sostenibilidad\",'Instituciones-crédito'!I190=\"La actividad sí contribuye sustancialmente a la sostenibilidad\"),SUM('Instituciones-crédito'!B190:H190),0),IF(AND('Base-datos'!$B$755=\"Sí\",'Base-datos'!$B$756=\"\",'Base-datos'!$B$757=\"Sí\"),IF(AND('Instituciones-crédito'!J190=\"La actividad sí contribuye sustancialmente a la sostenibilidad\",'Instituciones-crédito'!I190=\"La actividad sí contribuye sustancialmente a la sostenibilidad\"),SUM('Instituciones-crédito'!B190:H190),0),\"Por definir\"))))))))","v":"Por definir"}]
[{"$f":"Residuos!$C28","v":"Seleccione"},{"$f":"IF(Residuos!$E28='Instituciones-crédito'!B$12,Residuos!$B28,\"\")","v":""},{"$f":"IF(Residuos!$E28='Instituciones-crédito'!C$12,Residuos!$B28,\"\")","v":""},{"$f":"IF(Residuos!$E28='Instituciones-crédito'!D$12,Residuos!$B28,\"\")","v":""},{"$f":"IF(Residuos!$E28='Instituciones-crédito'!E$12,Residuos!$B28,\"\")","v":""},{"$f":"IF(Residuos!$E28='Instituciones-crédito'!F$12,Residuos!$B28,\"\")","v":""},{"$f":"IF(Residuos!$E28='Instituciones-crédito'!G$12,Residuos!$B28,\"\")","v":""},{"$f":"IF(Residuos!$E28='Instituciones-crédito'!H$12,Residuos!$B28,\"\")","v":""},{"$f":"_xlfn.XLOOKUP(A191,'Base-datos'!$B$571:$B$580,'Base-datos'!$F$571:$F$580)","v":{"$error":"#N/A"}},{"$f":"_xlfn.XLOOKUP(A191,'Base-datos'!$B$571:$B$580,'Base-datos'!$C$571:$C$580)","v":{"$error":"#N/A"}},{"$f":"_xlfn.XLOOKUP(A191,'Base-datos'!$B$571:$B$580,'Base-datos'!$D$571:$D$580)","v":{"$error":"#N/A"}},null,null,{"$f":"IF(OR($L$182=\"La actividad no cumple con el total de los criterios de No Daño Significativo\",$M$182=\"El sector no cumple con las salvaguardas mínimas\"),\"\",IF(AND('Base-datos'!$B$755=\"Sí\",'Base-datos'!$B$756=\"\",'Base-datos'!$B$757=\"\"),IF('Instituciones-crédito'!J191=\"La actividad sí contribuye sustancialmente a la sostenibilidad\",SUM('Instituciones-crédito'!B191:H191),0),IF(AND('Base-datos'!$B$755=\"Sí\",'Base-datos'!$B$756=\"Sí\",'Base-datos'!$B$757=\"\"),IF(AND('Instituciones-crédito'!J191=\"La actividad sí contribuye sustancialmente a la sostenibilidad\",'Instituciones-crédito'!K191=\"La actividad sí contribuye sustancialmente a la sostenibilidad\"),SUM('Instituciones-crédito'!B191:H191),0),IF(AND('Base-datos'!$B$755=\"Sí\",'Base-datos'!$B$756=\"Sí\",'Base-datos'!$B$757=\"Sí\"),IF(AND('Instituciones-crédito'!J191=\"La actividad sí contribuye sustancialmente a la sostenibilidad\",'Instituciones-crédito'!K191=\"La actividad sí contribuye sustancialmente a la sostenibilidad\",'Instituciones-crédito'!I191=\"La actividad sí contribuye sustancialmente a la sostenibilidad\"),SUM('Instituciones-crédito'!B191:H191),0),IF(AND('Base-datos'!$B$755=\"\",'Base-datos'!$B$756=\"Sí\",'Base-datos'!$B$757=\"\"),IF('Instituciones-crédito'!K191=\"La actividad sí contribuye sustancialmente a la sostenibilidad\",SUM('Instituciones-crédito'!B191:H191),0),IF(AND('Base-datos'!$B$755=\"\",'Base-datos'!$B$756=\"\",'Base-datos'!$B$757=\"Sí\"),IF('Instituciones-crédito'!I191=\"La actividad sí contribuye sustancialmente a la sostenibilidad\",SUM('Instituciones-crédito'!B191:H191),0),IF(AND('Base-datos'!$B$755=\"\",'Base-datos'!$B$756=\"Sí\",'Base-datos'!$B$757=\"Sí\"),IF(AND('Instituciones-crédito'!K191=\"La actividad sí contribuye sustancialmente a la sostenibilidad\",'Instituciones-crédito'!I191=\"La actividad sí contribuye sustancialmente a la sostenibilidad\"),SUM('Instituciones-crédito'!B191:H191),0),IF(AND('Base-datos'!$B$755=\"Sí\",'Base-datos'!$B$756=\"\",'Base-datos'!$B$757=\"Sí\"),IF(AND('Instituciones-crédito'!J191=\"La actividad sí contribuye sustancialmente a la sostenibilidad\",'Instituciones-crédito'!I191=\"La actividad sí contribuye sustancialmente a la sostenibilidad\"),SUM('Instituciones-crédito'!B191:H191),0),\"Por definir\"))))))))","v":"Por definir"}]
[{"$f":"Residuos!$C30","v":"Seleccione"},{"$f":"IF(Residuos!$E30='Instituciones-crédito'!B$12,Residuos!$B30,\"\")","v":""},{"$f":"IF(Residuos!$E30='Instituciones-crédito'!C$12,Residuos!$B30,\"\")","v":""},{"$f":"IF(Residuos!$E30='Instituciones-crédito'!D$12,Residuos!$B30,\"\")","v":""},{"$f":"IF(Residuos!$E30='Instituciones-crédito'!E$12,Residuos!$B30,\"\")","v":""},{"$f":"IF(Residuos!$E30='Instituciones-crédito'!F$12,Residuos!$B30,\"\")","v":""},{"$f":"IF(Residuos!$E30='Instituciones-crédito'!G$12,Residuos!$B30,\"\")","v":""},{"$f":"IF(Residuos!$E30='Instituciones-crédito'!H$12,Residuos!$B30,\"\")","v":""},{"$f":"_xlfn.XLOOKUP(A192,'Base-datos'!$B$571:$B$580,'Base-datos'!$F$571:$F$580)","v":{"$error":"#N/A"}},{"$f":"_xlfn.XLOOKUP(A192,'Base-datos'!$B$571:$B$580,'Base-datos'!$C$571:$C$580)","v":{"$error":"#N/A"}},{"$f":"_xlfn.XLOOKUP(A192,'Base-datos'!$B$571:$B$580,'Base-datos'!$D$571:$D$580)","v":{"$error":"#N/A"}},null,null,{"$f":"IF(OR($L$182=\"La actividad no cumple con el total de los criterios de No Daño Significativo\",$M$182=\"El sector no cumple con las salvaguardas mínimas\"),\"\",IF(AND('Base-datos'!$B$755=\"Sí\",'Base-datos'!$B$756=\"\",'Base-datos'!$B$757=\"\"),IF('Instituciones-crédito'!J192=\"La actividad sí contribuye sustancialmente a la sostenibilidad\",SUM('Instituciones-crédito'!B192:H192),0),IF(AND('Base-datos'!$B$755=\"Sí\",'Base-datos'!$B$756=\"Sí\",'Base-datos'!$B$757=\"\"),IF(AND('Instituciones-crédito'!J192=\"La actividad sí contribuye sustancialmente a la sostenibilidad\",'Instituciones-crédito'!K192=\"La actividad sí contribuye sustancialmente a la sostenibilidad\"),SUM('Instituciones-crédito'!B192:H192),0),IF(AND('Base-datos'!$B$755=\"Sí\",'Base-datos'!$B$756=\"Sí\",'Base-datos'!$B$757=\"Sí\"),IF(AND('Instituciones-crédito'!J192=\"La actividad sí contribuye sustancialmente a la sostenibilidad\",'Instituciones-crédito'!K192=\"La actividad sí contribuye sustancialmente a la sostenibilidad\",'Instituciones-crédito'!I192=\"La actividad sí contribuye sustancialmente a la sostenibilidad\"),SUM('Instituciones-crédito'!B192:H192),0),IF(AND('Base-datos'!$B$755=\"\",'Base-datos'!$B$756=\"Sí\",'Base-datos'!$B$757=\"\"),IF('Instituciones-crédito'!K192=\"La actividad sí contribuye sustancialmente a la sostenibilidad\",SUM('Instituciones-crédito'!B192:H192),0),IF(AND('Base-datos'!$B$755=\"\",'Base-datos'!$B$756=\"\",'Base-datos'!$B$757=\"Sí\"),IF('Instituciones-crédito'!I192=\"La actividad sí contribuye sustancialmente a la sostenibilidad\",SUM('Instituciones-crédito'!B192:H192),0),IF(AND('Base-datos'!$B$755=\"\",'Base-datos'!$B$756=\"Sí\",'Base-datos'!$B$757=\"Sí\"),IF(AND('Instituciones-crédito'!K192=\"La actividad sí contribuye sustancialmente a la sostenibilidad\",'Instituciones-crédito'!I192=\"La actividad sí contribuye sustancialmente a la sostenibilidad\"),SUM('Instituciones-crédito'!B192:H192),0),IF(AND('Base-datos'!$B$755=\"Sí\",'Base-datos'!$B$756=\"\",'Base-datos'!$B$757=\"Sí\"),IF(AND('Instituciones-crédito'!J192=\"La actividad sí contribuye sustancialmente a la sostenibilidad\",'Instituciones-crédito'!I192=\"La actividad sí contribuye sustancialmente a la sostenibilidad\"),SUM('Instituciones-crédito'!B192:H192),0),\"Por definir\"))))))))","v":"Por definir"}]
[{"$f":"Residuos!$C32","v":"Seleccione"},{"$f":"IF(Residuos!$E32='Instituciones-crédito'!B$12,Residuos!$B32,\"\")","v":""},{"$f":"IF(Residuos!$E32='Instituciones-crédito'!C$12,Residuos!$B32,\"\")","v":""},{"$f":"IF(Residuos!$E32='Instituciones-crédito'!D$12,Residuos!$B32,\"\")","v":""},{"$f":"IF(Residuos!$E32='Instituciones-crédito'!E$12,Residuos!$B32,\"\")","v":""},{"$f":"IF(Residuos!$E32='Instituciones-crédito'!F$12,Residuos!$B32,\"\")","v":""},{"$f":"IF(Residuos!$E32='Instituciones-crédito'!G$12,Residuos!$B32,\"\")","v":""},{"$f":"IF(Residuos!$E32='Instituciones-crédito'!H$12,Residuos!$B32,\"\")","v":""},{"$f":"_xlfn.XLOOKUP(A193,'Base-datos'!$B$571:$B$580,'Base-datos'!$F$571:$F$580)","v":{"$error":"#N/A"}},{"$f":"_xlfn.XLOOKUP(A193,'Base-datos'!$B$571:$B$580,'Base-datos'!$C$571:$C$580)","v":{"$error":"#N/A"}},{"$f":"_xlfn.XLOOKUP(A193,'Base-datos'!$B$571:$B$580,'Base-datos'!$D$571:$D$580)","v":{"$error":"#N/A"}},null,null,{"$f":"IF(OR($L$182=\"La actividad no cumple con el total de los criterios de No Daño Significativo\",$M$182=\"El sector no cumple con las salvaguardas mínimas\"),\"\",IF(AND('Base-datos'!$B$755=\"Sí\",'Base-datos'!$B$756=\"\",'Base-datos'!$B$757=\"\"),IF('Instituciones-crédito'!J193=\"La actividad sí contribuye sustancialmente a la sostenibilidad\",SUM('Instituciones-crédito'!B193:H193),0),IF(AND('Base-datos'!$B$755=\"Sí\",'Base-datos'!$B$756=\"Sí\",'Base-datos'!$B$757=\"\"),IF(AND('Instituciones-crédito'!J193=\"La actividad sí contribuye sustancialmente a la sostenibilidad\",'Instituciones-crédito'!K193=\"La actividad sí contribuye sustancialmente a la sostenibilidad\"),SUM('Instituciones-crédito'!B193:H193),0),IF(AND('Base-datos'!$B$755=\"Sí\",'Base-datos'!$B$756=\"Sí\",'Base-datos'!$B$757=\"Sí\"),IF(AND('Instituciones-crédito'!J193=\"La actividad sí contribuye sustancialmente a la sostenibilidad\",'Instituciones-crédito'!K193=\"La actividad sí contribuye sustancialmente a la sostenibilidad\",'Instituciones-crédito'!I193=\"La actividad sí contribuye sustancialmente a la sostenibilidad\"),SUM('Instituciones-crédito'!B193:H193),0),IF(AND('Base-datos'!$B$755=\"\",'Base-datos'!$B$756=\"Sí\",'Base-datos'!$B$757=\"\"),IF('Instituciones-crédito'!K193=\"La actividad sí contribuye sustancialmente a la sostenibilidad\",SUM('Instituciones-crédito'!B193:H193),0),IF(AND('Base-datos'!$B$755=\"\",'Base-datos'!$B$756=\"\",'Base-datos'!$B$757=\"Sí\"),IF('Instituciones-crédito'!I193=\"La actividad sí contribuye sustancialmente a la sostenibilidad\",SUM('Instituciones-crédito'!B193:H193),0),IF(AND('Base-datos'!$B$755=\"\",'Base-datos'!$B$756=\"Sí\",'Base-datos'!$B$757=\"Sí\"),IF(AND('Instituciones-crédito'!K193=\"La actividad sí contribuye sustancialmente a la sostenibilidad\",'Instituciones-crédito'!I193=\"La actividad sí contribuye sustancialmente a la sostenibilidad\"),SUM('Instituciones-crédito'!B193:H193),0),IF(AND('Base-datos'!$B$755=\"Sí\",'Base-datos'!$B$756=\"\",'Base-datos'!$B$757=\"Sí\"),IF(AND('Instituciones-crédito'!J193=\"La actividad sí contribuye sustancialmente a la sostenibilidad\",'Instituciones-crédito'!I193=\"La actividad sí contribuye sustancialmente a la sostenibilidad\"),SUM('Instituciones-crédito'!B193:H193),0),\"Por definir\"))))))))","v":"Por definir"}]
[{"$f":"Residuos!$C34","v":"Seleccione"},{"$f":"IF(Residuos!$E34='Instituciones-crédito'!B$12,Residuos!$B34,\"\")","v":""},{"$f":"IF(Residuos!$E34='Instituciones-crédito'!C$12,Residuos!$B34,\"\")","v":""},{"$f":"IF(Residuos!$E34='Instituciones-crédito'!D$12,Residuos!$B34,\"\")","v":""},{"$f":"IF(Residuos!$E34='Instituciones-crédito'!E$12,Residuos!$B34,\"\")","v":""},{"$f":"IF(Residuos!$E34='Instituciones-crédito'!F$12,Residuos!$B34,\"\")","v":""},{"$f":"IF(Residuos!$E34='Instituciones-crédito'!G$12,Residuos!$B34,\"\")","v":""},{"$f":"IF(Residuos!$E34='Instituciones-crédito'!H$12,Residuos!$B34,\"\")","v":""},{"$f":"_xlfn.XLOOKUP(A194,'Base-datos'!$B$571:$B$580,'Base-datos'!$F$571:$F$580)","v":{"$error":"#N/A"}},{"$f":"_xlfn.XLOOKUP(A194,'Base-datos'!$B$571:$B$580,'Base-datos'!$C$571:$C$580)","v":{"$error":"#N/A"}},{"$f":"_xlfn.XLOOKUP(A194,'Base-datos'!$B$571:$B$580,'Base-datos'!$D$571:$D$580)","v":{"$error":"#N/A"}},null,null,{"$f":"IF(OR($L$182=\"La actividad no cumple con el total de los criterios de No Daño Significativo\",$M$182=\"El sector no cumple con las salvaguardas mínimas\"),\"\",IF(AND('Base-datos'!$B$755=\"Sí\",'Base-datos'!$B$756=\"\",'Base-datos'!$B$757=\"\"),IF('Instituciones-crédito'!J194=\"La actividad sí contribuye sustancialmente a la sostenibilidad\",SUM('Instituciones-crédito'!B194:H194),0),IF(AND('Base-datos'!$B$755=\"Sí\",'Base-datos'!$B$756=\"Sí\",'Base-datos'!$B$757=\"\"),IF(AND('Instituciones-crédito'!J194=\"La actividad sí contribuye sustancialmente a la sostenibilidad\",'Instituciones-crédito'!K194=\"La actividad sí contribuye sustancialmente a la sostenibilidad\"),SUM('Instituciones-crédito'!B194:H194),0),IF(AND('Base-datos'!$B$755=\"Sí\",'Base-datos'!$B$756=\"Sí\",'Base-datos'!$B$757=\"Sí\"),IF(AND('Instituciones-crédito'!J194=\"La actividad sí contribuye sustancialmente a la sostenibilidad\",'Instituciones-crédito'!K194=\"La actividad sí contribuye sustancialmente a la sostenibilidad\",'Instituciones-crédito'!I194=\"La actividad sí contribuye sustancialmente a la sostenibilidad\"),SUM('Instituciones-crédito'!B194:H194),0),IF(AND('Base-datos'!$B$755=\"\",'Base-datos'!$B$756=\"Sí\",'Base-datos'!$B$757=\"\"),IF('Instituciones-crédito'!K194=\"La actividad sí contribuye sustancialmente a la sostenibilidad\",SUM('Instituciones-crédito'!B194:H194),0),IF(AND('Base-datos'!$B$755=\"\",'Base-datos'!$B$756=\"\",'Base-datos'!$B$757=\"Sí\"),IF('Instituciones-crédito'!I194=\"La actividad sí contribuye sustancialmente a la sostenibilidad\",SUM('Instituciones-crédito'!B194:H194),0),IF(AND('Base-datos'!$B$755=\"\",'Base-datos'!$B$756=\"Sí\",'Base-datos'!$B$757=\"Sí\"),IF(AND('Instituciones-crédito'!K194=\"La actividad sí contribuye sustancialmente a la sostenibilidad\",'Instituciones-crédito'!I194=\"La actividad sí contribuye sustancialmente a la sostenibilidad\"),SUM('Instituciones-crédito'!B194:H194),0),IF(AND('Base-datos'!$B$755=\"Sí\",'Base-datos'!$B$756=\"\",'Base-datos'!$B$757=\"Sí\"),IF(AND('Instituciones-crédito'!J194=\"La actividad sí contribuye sustancialmente a la sostenibilidad\",'Instituciones-crédito'!I194=\"La actividad sí contribuye sustancialmente a la sostenibilidad\"),SUM('Instituciones-crédito'!B194:H194),0),\"Por definir\"))))))))","v":"Por definir"}]
[{"$f":"Residuos!$C36","v":"Seleccione"},{"$f":"IF(Residuos!$E36='Instituciones-crédito'!B$12,Residuos!$B36,\"\")","v":""},{"$f":"IF(Residuos!$E36='Instituciones-crédito'!C$12,Residuos!$B36,\"\")","v":""},{"$f":"IF(Residuos!$E36='Instituciones-crédito'!D$12,Residuos!$B36,\"\")","v":""},{"$f":"IF(Residuos!$E36='Instituciones-crédito'!E$12,Residuos!$B36,\"\")","v":""},{"$f":"IF(Residuos!$E36='Instituciones-crédito'!F$12,Residuos!$B36,\"\")","v":""},{"$f":"IF(Residuos!$E36='Instituciones-crédito'!G$12,Residuos!$B36,\"\")","v":""},{"$f":"IF(Residuos!$E36='Instituciones-crédito'!H$12,Residuos!$B36,\"\")","v":""},{"$f":"_xlfn.XLOOKUP(A195,'Base-datos'!$B$571:$B$580,'Base-datos'!$F$571:$F$580)","v":{"$error":"#N/A"}},{"$f":"_xlfn.XLOOKUP(A195,'Base-datos'!$B$571:$B$580,'Base-datos'!$C$571:$C$580)","v":{"$error":"#N/A"}},{"$f":"_xlfn.XLOOKUP(A195,'Base-datos'!$B$571:$B$580,'Base-datos'!$D$571:$D$580)","v":{"$error":"#N/A"}},null,null,{"$f":"IF(OR($L$182=\"La actividad no cumple con el total de los criterios de No Daño Significativo\",$M$182=\"El sector no cumple con las salvaguardas mínimas\"),\"\",IF(AND('Base-datos'!$B$755=\"Sí\",'Base-datos'!$B$756=\"\",'Base-datos'!$B$757=\"\"),IF('Instituciones-crédito'!J195=\"La actividad sí contribuye sustancialmente a la sostenibilidad\",SUM('Instituciones-crédito'!B195:H195),0),IF(AND('Base-datos'!$B$755=\"Sí\",'Base-datos'!$B$756=\"Sí\",'Base-datos'!$B$757=\"\"),IF(AND('Instituciones-crédito'!J195=\"La actividad sí contribuye sustancialmente a la sostenibilidad\",'Instituciones-crédito'!K195=\"La actividad sí contribuye sustancialmente a la sostenibilidad\"),SUM('Instituciones-crédito'!B195:H195),0),IF(AND('Base-datos'!$B$755=\"Sí\",'Base-datos'!$B$756=\"Sí\",'Base-datos'!$B$757=\"Sí\"),IF(AND('Instituciones-crédito'!J195=\"La actividad sí contribuye sustancialmente a la sostenibilidad\",'Instituciones-crédito'!K195=\"La actividad sí contribuye sustancialmente a la sostenibilidad\",'Instituciones-crédito'!I195=\"La actividad sí contribuye sustancialmente a la sostenibilidad\"),SUM('Instituciones-crédito'!B195:H195),0),IF(AND('Base-datos'!$B$755=\"\",'Base-datos'!$B$756=\"Sí\",'Base-datos'!$B$757=\"\"),IF('Instituciones-crédito'!K195=\"La actividad sí contribuye sustancialmente a la sostenibilidad\",SUM('Instituciones-crédito'!B195:H195),0),IF(AND('Base-datos'!$B$755=\"\",'Base-datos'!$B$756=\"\",'Base-datos'!$B$757=\"Sí\"),IF('Instituciones-crédito'!I195=\"La actividad sí contribuye sustancialmente a la sostenibilidad\",SUM('Instituciones-crédito'!B195:H195),0),IF(AND('Base-datos'!$B$755=\"\",'Base-datos'!$B$756=\"Sí\",'Base-datos'!$B$757=\"Sí\"),IF(AND('Instituciones-crédito'!K195=\"La actividad sí contribuye sustancialmente a la sostenibilidad\",'Instituciones-crédito'!I195=\"La actividad sí contribuye sustancialmente a la sostenibilidad\"),SUM('Instituciones-crédito'!B195:H195),0),IF(AND('Base-datos'!$B$755=\"Sí\",'Base-datos'!$B$756=\"\",'Base-datos'!$B$757=\"Sí\"),IF(AND('Instituciones-crédito'!J195=\"La actividad sí contribuye sustancialmente a la sostenibilidad\",'Instituciones-crédito'!I195=\"La actividad sí contribuye sustancialmente a la sostenibilidad\"),SUM('Instituciones-crédito'!B195:H195),0),\"Por definir\"))))))))","v":"Por definir"}]
[{"$f":"Residuos!$C38","v":"Seleccione"},{"$f":"IF(Residuos!$E38='Instituciones-crédito'!B$12,Residuos!$B38,\"\")","v":""},{"$f":"IF(Residuos!$E38='Instituciones-crédito'!C$12,Residuos!$B38,\"\")","v":""},{"$f":"IF(Residuos!$E38='Instituciones-crédito'!D$12,Residuos!$B38,\"\")","v":""},{"$f":"IF(Residuos!$E38='Instituciones-crédito'!E$12,Residuos!$B38,\"\")","v":""},{"$f":"IF(Residuos!$E38='Instituciones-crédito'!F$12,Residuos!$B38,\"\")","v":""},{"$f":"IF(Residuos!$E38='Instituciones-crédito'!G$12,Residuos!$B38,\"\")","v":""},{"$f":"IF(Residuos!$E38='Instituciones-crédito'!H$12,Residuos!$B38,\"\")","v":""},{"$f":"_xlfn.XLOOKUP(A196,'Base-datos'!$B$571:$B$580,'Base-datos'!$F$571:$F$580)","v":{"$error":"#N/A"}},{"$f":"_xlfn.XLOOKUP(A196,'Base-datos'!$B$571:$B$580,'Base-datos'!$C$571:$C$580)","v":{"$error":"#N/A"}},{"$f":"_xlfn.XLOOKUP(A196,'Base-datos'!$B$571:$B$580,'Base-datos'!$D$571:$D$580)","v":{"$error":"#N/A"}},null,null,{"$f":"IF(OR($L$182=\"La actividad no cumple con el total de los criterios de No Daño Significativo\",$M$182=\"El sector no cumple con las salvaguardas mínimas\"),\"\",IF(AND('Base-datos'!$B$755=\"Sí\",'Base-datos'!$B$756=\"\",'Base-datos'!$B$757=\"\"),IF('Instituciones-crédito'!J196=\"La actividad sí contribuye sustancialmente a la sostenibilidad\",SUM('Instituciones-crédito'!B196:H196),0),IF(AND('Base-datos'!$B$755=\"Sí\",'Base-datos'!$B$756=\"Sí\",'Base-datos'!$B$757=\"\"),IF(AND('Instituciones-crédito'!J196=\"La actividad sí contribuye sustancialmente a la sostenibilidad\",'Instituciones-crédito'!K196=\"La actividad sí contribuye sustancialmente a la sostenibilidad\"),SUM('Instituciones-crédito'!B196:H196),0),IF(AND('Base-datos'!$B$755=\"Sí\",'Base-datos'!$B$756=\"Sí\",'Base-datos'!$B$757=\"Sí\"),IF(AND('Instituciones-crédito'!J196=\"La actividad sí contribuye sustancialmente a la sostenibilidad\",'Instituciones-crédito'!K196=\"La actividad sí contribuye sustancialmente a la sostenibilidad\",'Instituciones-crédito'!I196=\"La actividad sí contribuye sustancialmente a la sostenibilidad\"),SUM('Instituciones-crédito'!B196:H196),0),IF(AND('Base-datos'!$B$755=\"\",'Base-datos'!$B$756=\"Sí\",'Base-datos'!$B$757=\"\"),IF('Instituciones-crédito'!K196=\"La actividad sí contribuye sustancialmente a la sostenibilidad\",SUM('Instituciones-crédito'!B196:H196),0),IF(AND('Base-datos'!$B$755=\"\",'Base-datos'!$B$756=\"\",'Base-datos'!$B$757=\"Sí\"),IF('Instituciones-crédito'!I196=\"La actividad sí contribuye sustancialmente a la sostenibilidad\",SUM('Instituciones-crédito'!B196:H196),0),IF(AND('Base-datos'!$B$755=\"\",'Base-datos'!$B$756=\"Sí\",'Base-datos'!$B$757=\"Sí\"),IF(AND('Instituciones-crédito'!K196=\"La actividad sí contribuye sustancialmente a la sostenibilidad\",'Instituciones-crédito'!I196=\"La actividad sí contribuye sustancialmente a la sostenibilidad\"),SUM('Instituciones-crédito'!B196:H196),0),IF(AND('Base-datos'!$B$755=\"Sí\",'Base-datos'!$B$756=\"\",'Base-datos'!$B$757=\"Sí\"),IF(AND('Instituciones-crédito'!J196=\"La actividad sí contribuye sustancialmente a la sostenibilidad\",'Instituciones-crédito'!I196=\"La actividad sí contribuye sustancialmente a la sostenibilidad\"),SUM('Instituciones-crédito'!B196:H196),0),\"Por definir\"))))))))","v":"Por definir"}]
[{"$f":"Residuos!$C40","v":"Seleccione"},{"$f":"IF(Residuos!$E40='Instituciones-crédito'!B$12,Residuos!$B40,\"\")","v":""},{"$f":"IF(Residuos!$E40='Instituciones-crédito'!C$12,Residuos!$B40,\"\")","v":""},{"$f":"IF(Residuos!$E40='Instituciones-crédito'!D$12,Residuos!$B40,\"\")","v":""},{"$f":"IF(Residuos!$E40='Instituciones-crédito'!E$12,Residuos!$B40,\"\")","v":""},{"$f":"IF(Residuos!$E40='Instituciones-crédito'!F$12,Residuos!$B40,\"\")","v":""},{"$f":"IF(Residuos!$E40='Instituciones-crédito'!G$12,Residuos!$B40,\"\")","v":""},{"$f":"IF(Residuos!$E40='Instituciones-crédito'!H$12,Residuos!$B40,\"\")","v":""},{"$f":"_xlfn.XLOOKUP(A197,'Base-datos'!$B$571:$B$580,'Base-datos'!$F$571:$F$580)","v":{"$error":"#N/A"}},{"$f":"_xlfn.XLOOKUP(A197,'Base-datos'!$B$571:$B$580,'Base-datos'!$C$571:$C$580)","v":{"$error":"#N/A"}},{"$f":"_xlfn.XLOOKUP(A197,'Base-datos'!$B$571:$B$580,'Base-datos'!$D$571:$D$580)","v":{"$error":"#N/A"}},null,null,{"$f":"IF(OR($L$182=\"La actividad no cumple con el total de los criterios de No Daño Significativo\",$M$182=\"El sector no cumple con las salvaguardas mínimas\"),\"\",IF(AND('Base-datos'!$B$755=\"Sí\",'Base-datos'!$B$756=\"\",'Base-datos'!$B$757=\"\"),IF('Instituciones-crédito'!J197=\"La actividad sí contribuye sustancialmente a la sostenibilidad\",SUM('Instituciones-crédito'!B197:H197),0),IF(AND('Base-datos'!$B$755=\"Sí\",'Base-datos'!$B$756=\"Sí\",'Base-datos'!$B$757=\"\"),IF(AND('Instituciones-crédito'!J197=\"La actividad sí contribuye sustancialmente a la sostenibilidad\",'Instituciones-crédito'!K197=\"La actividad sí contribuye sustancialmente a la sostenibilidad\"),SUM('Instituciones-crédito'!B197:H197),0),IF(AND('Base-datos'!$B$755=\"Sí\",'Base-datos'!$B$756=\"Sí\",'Base-datos'!$B$757=\"Sí\"),IF(AND('Instituciones-crédito'!J197=\"La actividad sí contribuye sustancialmente a la sostenibilidad\",'Instituciones-crédito'!K197=\"La actividad sí contribuye sustancialmente a la sostenibilidad\",'Instituciones-crédito'!I197=\"La actividad sí contribuye sustancialmente a la sostenibilidad\"),SUM('Instituciones-crédito'!B197:H197),0),IF(AND('Base-datos'!$B$755=\"\",'Base-datos'!$B$756=\"Sí\",'Base-datos'!$B$757=\"\"),IF('Instituciones-crédito'!K197=\"La actividad sí contribuye sustancialmente a la sostenibilidad\",SUM('Instituciones-crédito'!B197:H197),0),IF(AND('Base-datos'!$B$755=\"\",'Base-datos'!$B$756=\"\",'Base-datos'!$B$757=\"Sí\"),IF('Instituciones-crédito'!I197=\"La actividad sí contribuye sustancialmente a la sostenibilidad\",SUM('Instituciones-crédito'!B197:H197),0),IF(AND('Base-datos'!$B$755=\"\",'Base-datos'!$B$756=\"Sí\",'Base-datos'!$B$757=\"Sí\"),IF(AND('Instituciones-crédito'!K197=\"La actividad sí contribuye sustancialmente a la sostenibilidad\",'Instituciones-crédito'!I197=\"La actividad sí contribuye sustancialmente a la sostenibilidad\"),SUM('Instituciones-crédito'!B197:H197),0),IF(AND('Base-datos'!$B$755=\"Sí\",'Base-datos'!$B$756=\"\",'Base-datos'!$B$757=\"Sí\"),IF(AND('Instituciones-crédito'!J197=\"La actividad sí contribuye sustancialmente a la sostenibilidad\",'Instituciones-crédito'!I197=\"La actividad sí contribuye sustancialmente a la sostenibilidad\"),SUM('Instituciones-crédito'!B197:H197),0),\"Por definir\"))))))))","v":"Por definir"}]
[{"$f":"Residuos!$C42","v":"Seleccione"},{"$f":"IF(Residuos!$E42='Instituciones-crédito'!B$12,Residuos!$B42,\"\")","v":""},{"$f":"IF(Residuos!$E42='Instituciones-crédito'!C$12,Residuos!$B42,\"\")","v":""},{"$f":"IF(Residuos!$E42='Instituciones-crédito'!D$12,Residuos!$B42,\"\")","v":""},{"$f":"IF(Residuos!$E42='Instituciones-crédito'!E$12,Residuos!$B42,\"\")","v":""},{"$f":"IF(Residuos!$E42='Instituciones-crédito'!F$12,Residuos!$B42,\"\")","v":""},{"$f":"IF(Residuos!$E42='Instituciones-crédito'!G$12,Residuos!$B42,\"\")","v":""},{"$f":"IF(Residuos!$E42='Instituciones-crédito'!H$12,Residuos!$B42,\"\")","v":""},{"$f":"_xlfn.XLOOKUP(A198,'Base-datos'!$B$571:$B$580,'Base-datos'!$F$571:$F$580)","v":{"$error":"#N/A"}},{"$f":"_xlfn.XLOOKUP(A198,'Base-datos'!$B$571:$B$580,'Base-datos'!$C$571:$C$580)","v":{"$error":"#N/A"}},{"$f":"_xlfn.XLOOKUP(A198,'Base-datos'!$B$571:$B$580,'Base-datos'!$D$571:$D$580)","v":{"$error":"#N/A"}},null,null,{"$f":"IF(OR($L$182=\"La actividad no cumple con el total de los criterios de No Daño Significativo\",$M$182=\"El sector no cumple con las salvaguardas mínimas\"),\"\",IF(AND('Base-datos'!$B$755=\"Sí\",'Base-datos'!$B$756=\"\",'Base-datos'!$B$757=\"\"),IF('Instituciones-crédito'!J198=\"La actividad sí contribuye sustancialmente a la sostenibilidad\",SUM('Instituciones-crédito'!B198:H198),0),IF(AND('Base-datos'!$B$755=\"Sí\",'Base-datos'!$B$756=\"Sí\",'Base-datos'!$B$757=\"\"),IF(AND('Instituciones-crédito'!J198=\"La actividad sí contribuye sustancialmente a la sostenibilidad\",'Instituciones-crédito'!K198=\"La actividad sí contribuye sustancialmente a la sostenibilidad\"),SUM('Instituciones-crédito'!B198:H198),0),IF(AND('Base-datos'!$B$755=\"Sí\",'Base-datos'!$B$756=\"Sí\",'Base-datos'!$B$757=\"Sí\"),IF(AND('Instituciones-crédito'!J198=\"La actividad sí contribuye sustancialmente a la sostenibilidad\",'Instituciones-crédito'!K198=\"La actividad sí contribuye sustancialmente a la sostenibilidad\",'Instituciones-crédito'!I198=\"La actividad sí contribuye sustancialmente a la sostenibilidad\"),SUM('Instituciones-crédito'!B198:H198),0),IF(AND('Base-datos'!$B$755=\"\",'Base-datos'!$B$756=\"Sí\",'Base-datos'!$B$757=\"\"),IF('Instituciones-crédito'!K198=\"La actividad sí contribuye sustancialmente a la sostenibilidad\",SUM('Instituciones-crédito'!B198:H198),0),IF(AND('Base-datos'!$B$755=\"\",'Base-datos'!$B$756=\"\",'Base-datos'!$B$757=\"Sí\"),IF('Instituciones-crédito'!I198=\"La actividad sí contribuye sustancialmente a la sostenibilidad\",SUM('Instituciones-crédito'!B198:H198),0),IF(AND('Base-datos'!$B$755=\"\",'Base-datos'!$B$756=\"Sí\",'Base-datos'!$B$757=\"Sí\"),IF(AND('Instituciones-crédito'!K198=\"La actividad sí contribuye sustancialmente a la sostenibilidad\",'Instituciones-crédito'!I198=\"La actividad sí contribuye sustancialmente a la sostenibilidad\"),SUM('Instituciones-crédito'!B198:H198),0),IF(AND('Base-datos'!$B$755=\"Sí\",'Base-datos'!$B$756=\"\",'Base-datos'!$B$757=\"Sí\"),IF(AND('Instituciones-crédito'!J198=\"La actividad sí contribuye sustancialmente a la sostenibilidad\",'Instituciones-crédito'!I198=\"La actividad sí contribuye sustancialmente a la sostenibilidad\"),SUM('Instituciones-crédito'!B198:H198),0),\"Por definir\"))))))))","v":"Por definir"}]
[{"$f":"Residuos!$C44","v":"Seleccione"},{"$f":"IF(Residuos!$E44='Instituciones-crédito'!B$12,Residuos!$B44,\"\")","v":""},{"$f":"IF(Residuos!$E44='Instituciones-crédito'!C$12,Residuos!$B44,\"\")","v":""},{"$f":"IF(Residuos!$E44='Instituciones-crédito'!D$12,Residuos!$B44,\"\")","v":""},{"$f":"IF(Residuos!$E44='Instituciones-crédito'!E$12,Residuos!$B44,\"\")","v":""},{"$f":"IF(Residuos!$E44='Instituciones-crédito'!F$12,Residuos!$B44,\"\")","v":""},{"$f":"IF(Residuos!$E44='Instituciones-crédito'!G$12,Residuos!$B44,\"\")","v":""},{"$f":"IF(Residuos!$E44='Instituciones-crédito'!H$12,Residuos!$B44,\"\")","v":""},{"$f":"_xlfn.XLOOKUP(A199,'Base-datos'!$B$571:$B$580,'Base-datos'!$F$571:$F$580)","v":{"$error":"#N/A"}},{"$f":"_xlfn.XLOOKUP(A199,'Base-datos'!$B$571:$B$580,'Base-datos'!$C$571:$C$580)","v":{"$error":"#N/A"}},{"$f":"_xlfn.XLOOKUP(A199,'Base-datos'!$B$571:$B$580,'Base-datos'!$D$571:$D$580)","v":{"$error":"#N/A"}},null,null,{"$f":"IF(OR($L$182=\"La actividad no cumple con el total de los criterios de No Daño Significativo\",$M$182=\"El sector no cumple con las salvaguardas mínimas\"),\"\",IF(AND('Base-datos'!$B$755=\"Sí\",'Base-datos'!$B$756=\"\",'Base-datos'!$B$757=\"\"),IF('Instituciones-crédito'!J199=\"La actividad sí contribuye sustancialmente a la sostenibilidad\",SUM('Instituciones-crédito'!B199:H199),0),IF(AND('Base-datos'!$B$755=\"Sí\",'Base-datos'!$B$756=\"Sí\",'Base-datos'!$B$757=\"\"),IF(AND('Instituciones-crédito'!J199=\"La actividad sí contribuye sustancialmente a la sostenibilidad\",'Instituciones-crédito'!K199=\"La actividad sí contribuye sustancialmente a la sostenibilidad\"),SUM('Instituciones-crédito'!B199:H199),0),IF(AND('Base-datos'!$B$755=\"Sí\",'Base-datos'!$B$756=\"Sí\",'Base-datos'!$B$757=\"Sí\"),IF(AND('Instituciones-crédito'!J199=\"La actividad sí contribuye sustancialmente a la sostenibilidad\",'Instituciones-crédito'!K199=\"La actividad sí contribuye sustancialmente a la sostenibilidad\",'Instituciones-crédito'!I199=\"La actividad sí contribuye sustancialmente a la sostenibilidad\"),SUM('Instituciones-crédito'!B199:H199),0),IF(AND('Base-datos'!$B$755=\"\",'Base-datos'!$B$756=\"Sí\",'Base-datos'!$B$757=\"\"),IF('Instituciones-crédito'!K199=\"La actividad sí contribuye sustancialmente a la sostenibilidad\",SUM('Instituciones-crédito'!B199:H199),0),IF(AND('Base-datos'!$B$755=\"\",'Base-datos'!$B$756=\"\",'Base-datos'!$B$757=\"Sí\"),IF('Instituciones-crédito'!I199=\"La actividad sí contribuye sustancialmente a la sostenibilidad\",SUM('Instituciones-crédito'!B199:H199),0),IF(AND('Base-datos'!$B$755=\"\",'Base-datos'!$B$756=\"Sí\",'Base-datos'!$B$757=\"Sí\"),IF(AND('Instituciones-crédito'!K199=\"La actividad sí contribuye sustancialmente a la sostenibilidad\",'Instituciones-crédito'!I199=\"La actividad sí contribuye sustancialmente a la sostenibilidad\"),SUM('Instituciones-crédito'!B199:H199),0),IF(AND('Base-datos'!$B$755=\"Sí\",'Base-datos'!$B$756=\"\",'Base-datos'!$B$757=\"Sí\"),IF(AND('Instituciones-crédito'!J199=\"La actividad sí contribuye sustancialmente a la sostenibilidad\",'Instituciones-crédito'!I199=\"La actividad sí contribuye sustancialmente a la sostenibilidad\"),SUM('Instituciones-crédito'!B199:H199),0),\"Por definir\"))))))))","v":"Por definir"}]
[{"$f":"Residuos!$C46","v":"Seleccione"},{"$f":"IF(Residuos!$E46='Instituciones-crédito'!B$12,Residuos!$B46,\"\")","v":""},{"$f":"IF(Residuos!$E46='Instituciones-crédito'!C$12,Residuos!$B46,\"\")","v":""},{"$f":"IF(Residuos!$E46='Instituciones-crédito'!D$12,Residuos!$B46,\"\")","v":""},{"$f":"IF(Residuos!$E46='Instituciones-crédito'!E$12,Residuos!$B46,\"\")","v":""},{"$f":"IF(Residuos!$E46='Instituciones-crédito'!F$12,Residuos!$B46,\"\")","v":""},{"$f":"IF(Residuos!$E46='Instituciones-crédito'!G$12,Residuos!$B46,\"\")","v":""},{"$f":"IF(Residuos!$E46='Instituciones-crédito'!H$12,Residuos!$B46,\"\")","v":""},{"$f":"_xlfn.XLOOKUP(A200,'Base-datos'!$B$571:$B$580,'Base-datos'!$F$571:$F$580)","v":{"$error":"#N/A"}},{"$f":"_xlfn.XLOOKUP(A200,'Base-datos'!$B$571:$B$580,'Base-datos'!$C$571:$C$580)","v":{"$error":"#N/A"}},{"$f":"_xlfn.XLOOKUP(A200,'Base-datos'!$B$571:$B$580,'Base-datos'!$D$571:$D$580)","v":{"$error":"#N/A"}},null,null,{"$f":"IF(OR($L$182=\"La actividad no cumple con el total de los criterios de No Daño Significativo\",$M$182=\"El sector no cumple con las salvaguardas mínimas\"),\"\",IF(AND('Base-datos'!$B$755=\"Sí\",'Base-datos'!$B$756=\"\",'Base-datos'!$B$757=\"\"),IF('Instituciones-crédito'!J200=\"La actividad sí contribuye sustancialmente a la sostenibilidad\",SUM('Instituciones-crédito'!B200:H200),0),IF(AND('Base-datos'!$B$755=\"Sí\",'Base-datos'!$B$756=\"Sí\",'Base-datos'!$B$757=\"\"),IF(AND('Instituciones-crédito'!J200=\"La actividad sí contribuye sustancialmente a la sostenibilidad\",'Instituciones-crédito'!K200=\"La actividad sí contribuye sustancialmente a la sostenibilidad\"),SUM('Instituciones-crédito'!B200:H200),0),IF(AND('Base-datos'!$B$755=\"Sí\",'Base-datos'!$B$756=\"Sí\",'Base-datos'!$B$757=\"Sí\"),IF(AND('Instituciones-crédito'!J200=\"La actividad sí contribuye sustancialmente a la sostenibilidad\",'Instituciones-crédito'!K200=\"La actividad sí contribuye sustancialmente a la sostenibilidad\",'Instituciones-crédito'!I200=\"La actividad sí contribuye sustancialmente a la sostenibilidad\"),SUM('Instituciones-crédito'!B200:H200),0),IF(AND('Base-datos'!$B$755=\"\",'Base-datos'!$B$756=\"Sí\",'Base-datos'!$B$757=\"\"),IF('Instituciones-crédito'!K200=\"La actividad sí contribuye sustancialmente a la sostenibilidad\",SUM('Instituciones-crédito'!B200:H200),0),IF(AND('Base-datos'!$B$755=\"\",'Base-datos'!$B$756=\"\",'Base-datos'!$B$757=\"Sí\"),IF('Instituciones-crédito'!I200=\"La actividad sí contribuye sustancialmente a la sostenibilidad\",SUM('Instituciones-crédito'!B200:H200),0),IF(AND('Base-datos'!$B$755=\"\",'Base-datos'!$B$756=\"Sí\",'Base-datos'!$B$757=\"Sí\"),IF(AND('Instituciones-crédito'!K200=\"La actividad sí contribuye sustancialmente a la sostenibilidad\",'Instituciones-crédito'!I200=\"La actividad sí contribuye sustancialmente a la sostenibilidad\"),SUM('Instituciones-crédito'!B200:H200),0),IF(AND('Base-datos'!$B$755=\"Sí\",'Base-datos'!$B$756=\"\",'Base-datos'!$B$757=\"Sí\"),IF(AND('Instituciones-crédito'!J200=\"La actividad sí contribuye sustancialmente a la sostenibilidad\",'Instituciones-crédito'!I200=\"La actividad sí contribuye sustancialmente a la sostenibilidad\"),SUM('Instituciones-crédito'!B200:H200),0),\"Por definir\"))))))))","v":"Por definir"}]
[{"$f":"Residuos!$C48","v":"Seleccione"},{"$f":"IF(Residuos!$E48='Instituciones-crédito'!B$12,Residuos!$B48,\"\")","v":""},{"$f":"IF(Residuos!$E48='Instituciones-crédito'!C$12,Residuos!$B48,\"\")","v":""},{"$f":"IF(Residuos!$E48='Instituciones-crédito'!D$12,Residuos!$B48,\"\")","v":""},{"$f":"IF(Residuos!$E48='Instituciones-crédito'!E$12,Residuos!$B48,\"\")","v":""},{"$f":"IF(Residuos!$E48='Instituciones-crédito'!F$12,Residuos!$B48,\"\")","v":""},{"$f":"IF(Residuos!$E48='Instituciones-crédito'!G$12,Residuos!$B48,\"\")","v":""},{"$f":"IF(Residuos!$E48='Instituciones-crédito'!H$12,Residuos!$B48,\"\")","v":""},{"$f":"_xlfn.XLOOKUP(A201,'Base-datos'!$B$571:$B$580,'Base-datos'!$F$571:$F$580)","v":{"$error":"#N/A"}},{"$f":"_xlfn.XLOOKUP(A201,'Base-datos'!$B$571:$B$580,'Base-datos'!$C$571:$C$580)","v":{"$error":"#N/A"}},{"$f":"_xlfn.XLOOKUP(A201,'Base-datos'!$B$571:$B$580,'Base-datos'!$D$571:$D$580)","v":{"$error":"#N/A"}},null,null,{"$f":"IF(OR($L$182=\"La actividad no cumple con el total de los criterios de No Daño Significativo\",$M$182=\"El sector no cumple con las salvaguardas mínimas\"),\"\",IF(AND('Base-datos'!$B$755=\"Sí\",'Base-datos'!$B$756=\"\",'Base-datos'!$B$757=\"\"),IF('Instituciones-crédito'!J201=\"La actividad sí contribuye sustancialmente a la sostenibilidad\",SUM('Instituciones-crédito'!B201:H201),0),IF(AND('Base-datos'!$B$755=\"Sí\",'Base-datos'!$B$756=\"Sí\",'Base-datos'!$B$757=\"\"),IF(AND('Instituciones-crédito'!J201=\"La actividad sí contribuye sustancialmente a la sostenibilidad\",'Instituciones-crédito'!K201=\"La actividad sí contribuye sustancialmente a la sostenibilidad\"),SUM('Instituciones-crédito'!B201:H201),0),IF(AND('Base-datos'!$B$755=\"Sí\",'Base-datos'!$B$756=\"Sí\",'Base-datos'!$B$757=\"Sí\"),IF(AND('Instituciones-crédito'!J201=\"La actividad sí contribuye sustancialmente a la sostenibilidad\",'Instituciones-crédito'!K201=\"La actividad sí contribuye sustancialmente a la sostenibilidad\",'Instituciones-crédito'!I201=\"La actividad sí contribuye sustancialmente a la sostenibilidad\"),SUM('Instituciones-crédito'!B201:H201),0),IF(AND('Base-datos'!$B$755=\"\",'Base-datos'!$B$756=\"Sí\",'Base-datos'!$B$757=\"\"),IF('Instituciones-crédito'!K201=\"La actividad sí contribuye sustancialmente a la sostenibilidad\",SUM('Instituciones-crédito'!B201:H201),0),IF(AND('Base-datos'!$B$755=\"\",'Base-datos'!$B$756=\"\",'Base-datos'!$B$757=\"Sí\"),IF('Instituciones-crédito'!I201=\"La actividad sí contribuye sustancialmente a la sostenibilidad\",SUM('Instituciones-crédito'!B201:H201),0),IF(AND('Base-datos'!$B$755=\"\",'Base-datos'!$B$756=\"Sí\",'Base-datos'!$B$757=\"Sí\"),IF(AND('Instituciones-crédito'!K201=\"La actividad sí contribuye sustancialmente a la sostenibilidad\",'Instituciones-crédito'!I201=\"La actividad sí contribuye sustancialmente a la sostenibilidad\"),SUM('Instituciones-crédito'!B201:H201),0),IF(AND('Base-datos'!$B$755=\"Sí\",'Base-datos'!$B$756=\"\",'Base-datos'!$B$757=\"Sí\"),IF(AND('Instituciones-crédito'!J201=\"La actividad sí contribuye sustancialmente a la sostenibilidad\",'Instituciones-crédito'!I201=\"La actividad sí contribuye sustancialmente a la sostenibilidad\"),SUM('Instituciones-crédito'!B201:H201),0),\"Por definir\"))))))))","v":"Por definir"}]
["Género",{"$f":"IF('Género-General'!$E10=B12,'Género-General'!$B10,\"\")","v":""},{"$f":"IF('Género-General'!$E10=C12,'Género-General'!$B10,\"\")","v":""},{"$f":"IF('Género-General'!$E10=D12,'Género-General'!$B10,\"\")","v":""},{"$f":"IF('Género-General'!$E10=E12,'Género-General'!$B10,\"\")","v":""},{"$f":"IF('Género-General'!$E10=F12,'Género-General'!$B10,\"\")","v":""},{"$f":"IF('Género-General'!$E10=G12,'Género-General'!$B10,\"\")","v":""},{"$f":"IF('Género-General'!$E10=H12,'Género-General'!$B10,\"\")","v":""},{"$f":"'Base-datos'!$F$581","v":"No se han contestado todas las preguntas"},"N/A","N/A",{"$f":"IF(COUNTIF(NDS_Género!I7:I38,\"No\")>0,\"La actividad no cumple con el total de los criterios de NDS\",\"La actividad cumple con los criterios de No Daño Significativo\")","v":"La actividad cumple con los criterios de No Daño Significativo"},{"$f":"IF(OR('Salvaguardas mínimas'!$G$10=\"Seleccione\",'Salvaguardas mínimas'!$G$13=\"Seleccione\",'Salvaguardas mínimas'!$G$16=\"Seleccione\",'Salvaguardas mínimas'!$G$7=\"Seleccione\"),\"No se han respondido todas las preguntas\",IF(OR('Salvaguardas mínimas'!$G$10=\"No\",'Salvaguardas mínimas'!$G$13=\"No\",'Salvaguardas mínimas'!$G$16=\"No\",'Salvaguardas mínimas'!$G$7=\"No\"),\"El sector no cumple con las salvaguardas mínimas\",\"La actividad sí cumple con las salvaguardas mínimas\"))","v":"No se han respondido todas las preguntas"},{"$f":"IF(I202=\"Por definir\",\"Por definir\",IF(I202=\"Sí cumple con el índice de igualdad de género\",'Género-General'!B10,0))","v":0}]
[null,null,null,null,null,null,null,null,null,null,null,null,null,{"$f":"SUM(N181,N160,N139,N118,N97,N76,N55,N34,N13,N202)","v":0}]

{"sheet":"Fondos-Inversionistas","index":54,"n_rows":203,"n_cols":18,"rows_kept":203,"cut":false,"hidden":true,"merged":[[34,16,53,16],[118,16,137,16],[139,16,158,16],[160,16,179,16],[181,16,200,16],[55,16,74,16],[76,16,95,16],[97,16,116,16],[139,15,158,15],[10,0,11,0],[160,15,179,15],[181,15,200,15],[97,15,116,15],[118,15,137,15],[76,15,95,15],[10,15,11,15],[12,15,32,15],[34,15,53,15],[55,15,74,15],[12,16,32,16],[2,1,2,4],[3,1,3,4],[4,1,4,4],[10,16,11,16],[10,17,11,17],[10,13,11,13],[6,1,6,4],[10,14,11,14],[0,5,6,5],[10,1,10,11],[10,12,11,12],[0,1,0,4],[1,1,1,4]]}
["Tipo de Institución","Administradores de Fondos e Inversionistas Institucionales",null,null,null,"Esta hoja representa un resumen de las evaluaciones realizadas. Cabe señalar que un proceso de recomendaciones para las cuestiones que no cumplan con contribución sustancial se encuentra en desarrollo. Estos formatos forman parte de la evidencia de reporte que se puede realizar en el contexto de la taxonomía sostenible de México"]
["Fecha de elaboración ",{"$f":"Recursos!B7","v":"00:00:00"}]
["Institución que realiza la evaluación",{"$f":"Recursos!B8","v":0}]
["Nombre del proyecto",{"$f":"Recursos!B9","v":0}]
["Rango de fecha que comprende las operaciones financieras y/o proyectos evaluados",{"$f":"Recursos!B10","v":0}]
[]
["Total de recursos en evaluación sostenible",{"$f":"R203","v":0}]
[]
[]
[]
["1.2 NOMBRE CATEGORÍA","Cantidad de recursos alineados a la sostenibilidad",null,null,null,null,null,null,null,null,null,null,"Grado de cumplimiento a la contribución sustancial (género)","Grado de cumplimiento a la contribución sustancial (mitigación)","Grado de cumplimiento a la contribución sustancial (adaptación)","Grado de cumplimiento a cuestiones de No Daño Significativo ","Grado de cumplimiento con las salvaguardas mínimas","Total recursos que cumple con umbrales"]
[null,"Fondos de Inversión en Instrumentos de Deuda","Fondos de inversión de mercado de dinero","Fondos de inversión de renta variable","Fondos de inversión discrecionales","Valores, títulos o documentos representativos de un pasivo","Títulos representativos del capital social de empresas que les presten Servicios\ncomplementarios o auxiliares","Valores respaldados por activos","Valores estructurados","Certificados bursátiles","Instrumentos financieros derivados","Otro"]
["Agricultura",null,null,null,null,null,null,null,null,null,null,null,null,null,null,{"$f":"IF(COUNTIF('Agriculltura-NDS'!G9:G57,\"No\")>0,\"La actividad no cumple con el total de los criterios de No Daño Significativo\",\"La actividad cumple con los criterios de No Daño Significativo\")","v":"La actividad cumple con los criterios de No Daño Significativo"},{"$f":"IF(OR('Salvaguardas mínimas'!$G$10=\"Seleccione\",'Salvaguardas mínimas'!$G$13=\"Seleccione\",'Salvaguardas mínimas'!$G$16=\"Seleccione\",'Salvaguardas mínimas'!$G$7=\"Seleccione\"),\"No se han respondido todas las preguntas\",IF(OR('Salvaguardas mínimas'!$G$10=\"No\",'Salvaguardas mínimas'!$G$13=\"No\",'Salvaguardas mínimas'!$G$16=\"No\",'Salvaguardas mínimas'!$G$7=\"No\"),\"El sector no cumple con las salvaguardas mínimas\",\"La actividad sí cumple con las salvaguardas mínimas\"))","v":"No se han respondido todas las preguntas"},{"$f":"SUM(IF(FREQUENCY(MATCH(A14:A33, A14:A33, 0), MATCH(A14:A33, A14:A33, 0)) > 0, IF(NOT(ISERROR(R14:R33)), R14:R33, 0)))","v":0}]
[{"$f":"Agricultura!$C10","v":"Seleccione"},{"$f":"IF(Agricultura!$E10='Fondos-Inversionistas'!B$12,Agricultura!$B10,\"\")","v":""},{"$f":"IF(Agricultura!$E10='Fondos-Inversionistas'!C$12,Agricultura!$B10,\"\")","v":""},{"$f":"IF(Agricultura!$E10='Fondos-Inversionistas'!D$12,Agricultura!$B10,\"\")","v":""},{"$f":"IF(Agricultura!$E10='Fondos-Inversionistas'!E$12,Agricultura!$B10,\"\")","v":""},{"$f":"IF(Agricultura!$E10='Fondos-Inversionistas'!F$12,Agricultura!$B10,\"\")","v":""},{"$f":"IF(Agricultura!$E10='Fondos-Inversionistas'!G$12,Agricultura!$B10,\"\")","v":""},{"$f":"IF(Agricultura!$E10='Fondos-Inversionistas'!H$12,Agricultura!$B10,\"\")","v":""},{"$f":"IF(Agricultura!$E10='Fondos-Inversionistas'!I$12,Agricultura!$B10,\"\")","v":""},{"$f":"IF(Agricultura!$E10='Fondos-Inversionistas'!J$12,Agricultura!$B10,\"\")","v":""},{"$f":"IF(Agricultura!$E10='Fondos-Inversionistas'!K$12,Agricultura!$B10,\"\")","v":""},{"$f":"IF(Agricultura!$E10='Fondos-Inversionistas'!L$12,Agricultura!$B10,\"\")","v":""},{"$f":"_xlfn.XLOOKUP(A14,'Base-datos'!$B$457:$B$509,'Base-datos'!$F$457:$F$509)","v":{"$error":"#N/A"}},{"$f":"_xlfn.XLOOKUP(A14,'Base-datos'!$B$457:$B$509,'Base-datos'!$C$457:$C$509)","v":{"$error":"#N/A"}},{"$f":"_xlfn.XLOOKUP(A14,'Base-datos'!$B$457:$B$509,'Base-datos'!$D$457:$D$509)","v":{"$error":"#N/A"}},null,null,{"$f":"IF(OR(P$13=\"La actividad no cumple con el total de los criterios de No Daño Significativo\",Q$13=\"El sector no cumple con las salvaguardas mínimas\"),\"\",IF(AND('Base-datos'!$B$715=\"Sí\",'Base-datos'!$B$716=\"\",'Base-datos'!$B$717=\"\"),IF(N14=\"La actividad sí contribuye sustancialmente a la sostenibilidad\",SUM(B14:L14),0),IF(AND('Base-datos'!$B$715=\"Sí\",'Base-datos'!$B$716=\"Sí\",'Base-datos'!$B$717=\"\"),IF(AND(N14=\"La actividad sí contribuye sustancialmente a la sostenibilidad\",O14=\"La actividad sí contribuye sustancialmente a la sostenibilidad\"),SUM(B14:L14),0),IF(AND('Base-datos'!$B$715=\"Sí\",'Base-datos'!$B$716=\"Sí\",'Base-datos'!$B$717=\"Sí\"),IF(AND(N14=\"La actividad sí contribuye sustancialmente a la sostenibilidad\",O14=\"La actividad sí contribuye sustancialmente a la sostenibilidad\",M14=\"La actividad sí contribuye sustancialmente a la sostenibilidad\"),SUM(B14:L14),0),IF(AND('Base-datos'!$B$715=\"\",'Base-datos'!$B$716=\"Sí\",'Base-datos'!$B$717=\"\"),IF(O14=\"La actividad sí contribuye sustancialmente a la sostenibilidad\",SUM(B14:L14),0),IF(AND('Base-datos'!$B$715=\"\",'Base-datos'!$B$716=\"\",'Base-datos'!$B$717=\"Sí\"),IF(M14=\"La actividad sí contribuye sustancialmente a la sostenibilidad\",SUM(B14:L14),0),IF(AND('Base-datos'!$B$715=\"\",'Base-datos'!$B$716=\"Sí\",'Base-datos'!$B$717=\"Sí\"),IF(AND(O14=\"La actividad sí contribuye sustancialmente a la sostenibilidad\",M14=\"La actividad sí contribuye sustancialmente a la sostenibilidad\"),SUM(B14:L14),0),IF(AND('Base-datos'!$B$715=\"Sí\",'Base-datos'!$B$716=\"\",'Base-datos'!$B$717=\"Sí\"),IF(AND(N14=\"La actividad sí contribuye sustancialmente a la sostenibilidad\",M14=\"La actividad sí contribuye sustancialmente a la sostenibilidad\"),SUM(B14:L14),0),\"Por definir\"))))))))","v":"Por definir"}]
[{"$f":"Agricultura!$C12","v":"Seleccione"},{"$f":"IF(Agricultura!$E12='Fondos-Inversionistas'!B$12,Agricultura!$B12,\"\")","v":""},{"$f":"IF(Agricultura!$E12='Fondos-Inversionistas'!C$12,Agricultura!$B12,\"\")","v":""},{"$f":"IF(Agricultura!$E12='Fondos-Inversionistas'!D$12,Agricultura!$B12,\"\")","v":""},{"$f":"IF(Agricultura!$E12='Fondos-Inversionistas'!E$12,Agricultura!$B12,\"\")","v":""},{"$f":"IF(Agricultura!$E12='Fondos-Inversionistas'!F$12,Agricultura!$B12,\"\")","v":""},{"$f":"IF(Agricultura!$E12='Fondos-Inversionistas'!G$12,Agricultura!$B12,\"\")","v":""},{"$f":"IF(Agricultura!$E12='Fondos-Inversionistas'!H$12,Agricultura!$B12,\"\")","v":""},{"$f":"IF(Agricultura!$E12='Fondos-Inversionistas'!I$12,Agricultura!$B12,\"\")","v":""},{"$f":"IF(Agricultura!$E12='Fondos-Inversionistas'!J$12,Agricultura!$B12,\"\")","v":""},{"$f":"IF(Agricultura!$E12='Fondos-Inversionistas'!K$12,Agricultura!$B12,\"\")","v":""},{"$f":"IF(Agricultura!$E12='Fondos-Inversionistas'!L$12,Agricultura!$B12,\"\")","v":""},{"$f":"_xlfn.XLOOKUP(A15,'Base-datos'!$B$457:$B$509,'Base-datos'!$F$457:$F$509)","v":{"$error":"#N/A"}},{"$f":"_xlfn.XLOOKUP(A15,'Base-datos'!$B$457:$B$509,'Base-datos'!$C$457:$C$509)","v":{"$error":"#N/A"}},{"$f":"_xlfn.XLOOKUP(A15,'Base-datos'!$B$457:$B$509,'Base-datos'!$D$457:$D$509)","v":{"$error":"#N/A"}},null,null,{"$f":"IF(OR(P$13=\"La actividad no cumple con el total de los criterios de No Daño Significativo\",Q$13=\"El sector no cumple con las salvaguardas mínimas\"),\"\",IF(AND('Base-datos'!$B$715=\"Sí\",'Base-datos'!$B$716=\"\",'Base-datos'!$B$717=\"\"),IF(N15=\"La actividad sí contribuye sustancialmente a la sostenibilidad\",SUM(B15:L15),0),IF(AND('Base-datos'!$B$715=\"Sí\",'Base-datos'!$B$716=\"Sí\",'Base-datos'!$B$717=\"\"),IF(AND(N15=\"La actividad sí contribuye sustancialmente a la sostenibilidad\",O15=\"La actividad sí contribuye sustancialmente a la sostenibilidad\"),SUM(B15:L15),0),IF(AND('Base-datos'!$B$715=\"Sí\",'Base-datos'!$B$716=\"Sí\",'Base-datos'!$B$717=\"Sí\"),IF(AND(N15=\"La actividad sí contribuye sustancialmente a la sostenibilidad\",O15=\"La actividad sí contribuye sustancialmente a la sostenibilidad\",M15=\"La actividad sí contribuye sustancialmente a la sostenibilidad\"),SUM(B15:L15),0),IF(AND('Base-datos'!$B$715=\"\",'Base-datos'!$B$716=\"Sí\",'Base-datos'!$B$717=\"\"),IF(O15=\"La actividad sí contribuye sustancialmente a la sostenibilidad\",SUM(B15:L15),0),IF(AND('Base-datos'!$B$715=\"\",'Base-datos'!$B$716=\"\",'Base-datos'!$B$717=\"Sí\"),IF(M15=\"La actividad sí contribuye sustancialmente a la sostenibilidad\",SUM(B15:L15),0),IF(AND('Base-datos'!$B$715=\"\",'Base-datos'!$B$716=\"Sí\",'Base-datos'!$B$717=\"Sí\"),IF(AND(O15=\"La actividad sí contribuye sustancialmente a la sostenibilidad\",M15=\"La actividad sí contribuye sustancialmente a la sostenibilidad\"),SUM(B15:L15),0),IF(AND('Base-datos'!$B$715=\"Sí\",'Base-datos'!$B$716=\"\",'Base-datos'!$B$717=\"Sí\"),IF(AND(N15=\"La actividad sí contribuye sustancialmente a la sostenibilidad\",M15=\"La actividad sí contribuye sustancialmente a la sostenibilidad\"),SUM(B15:L15),0),\"Por definir\"))))))))","v":"Por definir"}]
[{"$f":"Agricultura!$C14","v":"Seleccione"},{"$f":"IF(Agricultura!$E14='Fondos-Inversionistas'!B$12,Agricultura!$B14,\"\")","v":""},{"$f":"IF(Agricultura!$E14='Fondos-Inversionistas'!C$12,Agricultura!$B14,\"\")","v":""},{"$f":"IF(Agricultura!$E14='Fondos-Inversionistas'!D$12,Agricultura!$B14,\"\")","v":""},{"$f":"IF(Agricultura!$E14='Fondos-Inversionistas'!E$12,Agricultura!$B14,\"\")","v":""},{"$f":"IF(Agricultura!$E14='Fondos-Inversionistas'!F$12,Agricultura!$B14,\"\")","v":""},{"$f":"IF(Agricultura!$E14='Fondos-Inversionistas'!G$12,Agricultura!$B14,\"\")","v":""},{"$f":"IF(Agricultura!$E14='Fondos-Inversionistas'!H$12,Agricultura!$B14,\"\")","v":""},{"$f":"IF(Agricultura!$E14='Fondos-Inversionistas'!I$12,Agricultura!$B14,\"\")","v":""},{"$f":"IF(Agricultura!$E14='Fondos-Inversionistas'!J$12,Agricultura!$B14,\"\")","v":""},{"$f":"IF(Agricultura!$E14='Fondos-Inversionistas'!K$12,Agricultura!$B14,\"\")","v":""},{"$f":"IF(Agricultura!$E14='Fondos-Inversionistas'!L$12,Agricultura!$B14,\"\")","v":""},{"$f":"_xlfn.XLOOKUP(A16,'Base-datos'!$B$457:$B$509,'Base-datos'!$F$457:$F$509)","v":{"$error":"#N/A"}},{"$f":"_xlfn.XLOOKUP(A16,'Base-datos'!$B$457:$B$509,'Base-datos'!$C$457:$C$509)","v":{"$error":"#N/A"}},{"$f":"_xlfn.XLOOKUP(A16,'Base-datos'!$B$457:$B$509,'Base-datos'!$D$457:$D$509)","v":{"$error":"#N/A"}},null,null,{"$f":"IF(OR(P$13=\"La actividad no cumple con el total de los criterios de No Daño Significativo\",Q$13=\"El sector no cumple con las salvaguardas mínimas\"),\"\",IF(AND('Base-datos'!$B$715=\"Sí\",'Base-datos'!$B$716=\"\",'Base-datos'!$B$717=\"\"),IF(N16=\"La actividad sí contribuye sustancialmente a la sostenibilidad\",SUM(B16:L16),0),IF(AND('Base-datos'!$B$715=\"Sí\",'Base-datos'!$B$716=\"Sí\",'Base-datos'!$B$717=\"\"),IF(AND(N16=\"La actividad sí contribuye sustancialmente a la sostenibilidad\",O16=\"La actividad sí contribuye sustancialmente a la sostenibilidad\"),SUM(B16:L16),0),IF(AND('Base-datos'!$B$715=\"Sí\",'Base-datos'!$B$716=\"Sí\",'Base-datos'!$B$717=\"Sí\"),IF(AND(N16=\"La actividad sí contribuye sustancialmente a la sostenibilidad\",O16=\"La actividad sí contribuye sustancialmente a la sostenibilidad\",M16=\"La actividad sí contribuye sustancialmente a la sostenibilidad\"),SUM(B16:L16),0),IF(AND('Base-datos'!$B$715=\"\",'Base-datos'!$B$716=\"Sí\",'Base-datos'!$B$717=\"\"),IF(O16=\"La actividad sí contribuye sustancialmente a la sostenibilidad\",SUM(B16:L16),0),IF(AND('Base-datos'!$B$715=\"\",'Base-datos'!$B$716=\"\",'Base-datos'!$B$717=\"Sí\"),IF(M16=\"La actividad sí contribuye sustancialmente a la sostenibilidad\",SUM(B16:L16),0),IF(AND('Base-datos'!$B$715=\"\",'Base-datos'!$B$716=\"Sí\",'Base-datos'!$B$717=\"Sí\"),IF(AND(O16=\"La actividad sí contribuye sustancialmente a la sostenibilidad\",M16=\"La actividad sí contribuye sustancialmente a la sostenibilidad\"),SUM(B16:L16),0),IF(AND('Base-datos'!$B$715=\"Sí\",'Base-datos'!$B$716=\"\",'Base-datos'!$B$717=\"Sí\"),IF(AND(N16=\"La actividad sí contribuye sustancialmente a la sostenibilidad\",M16=\"La actividad sí contribuye sustancialmente a la sostenibilidad\"),SUM(B16:L16),0),\"Por definir\"))))))))","v":"Por definir"}]
[{"$f":"Agricultura!$C16","v":"Seleccione"},{"$f":"IF(Agricultura!$E16='Fondos-Inversionistas'!B$12,Agricultura!$B16,\"\")","v":""},{"$f":"IF(Agricultura!$E16='Fondos-Inversionistas'!C$12,Agricultura!$B16,\"\")","v":""},{"$f":"IF(Agricultura!$E16='Fondos-Inversionistas'!D$12,Agricultura!$B16,\"\")","v":""},{"$f":"IF(Agricultura!$E16='Fondos-Inversionistas'!E$12,Agricultura!$B16,\"\")","v":""},{"$f":"IF(Agricultura!$E16='Fondos-Inversionistas'!F$12,Agricultura!$B16,\"\")","v":""},{"$f":"IF(Agricultura!$E16='Fondos-Inversionistas'!G$12,Agricultura!$B16,\"\")","v":""},{"$f":"IF(Agricultura!$E16='Fondos-Inversionistas'!H$12,Agricultura!$B16,\"\")","v":""},{"$f":"IF(Agricultura!$E16='Fondos-Inversionistas'!I$12,Agricultura!$B16,\"\")","v":""},{"$f":"IF(Agricultura!$E16='Fondos-Inversionistas'!J$12,Agricultura!$B16,\"\")","v":""},{"$f":"IF(Agricultura!$E16='Fondos-Inversionistas'!K$12,Agricultura!$B16,\"\")","v":""},{"$f":"IF(Agricultura!$E16='Fondos-Inversionistas'!L$12,Agricultura!$B16,\"\")","v":""},{"$f":"_xlfn.XLOOKUP(A17,'Base-datos'!$B$457:$B$509,'Base-datos'!$F$457:$F$509)","v":{"$error":"#N/A"}},{"$f":"_xlfn.XLOOKUP(A17,'Base-datos'!$B$457:$B$509,'Base-datos'!$C$457:$C$509)","v":{"$error":"#N/A"}},{"$f":"_xlfn.XLOOKUP(A17,'Base-datos'!$B$457:$B$509,'Base-datos'!$D$457:$D$509)","v":{"$error":"#N/A"}},null,null,{"$f":"IF(OR(P$13=\"La actividad no cumple con el total de los criterios de No Daño Significativo\",Q$13=\"El sector no cumple con las salvaguardas mínimas\"),\"\",IF(AND('Base-datos'!$B$715=\"Sí\",'Base-datos'!$B$716=\"\",'Base-datos'!$B$717=\"\"),IF(N17=\"La actividad sí contribuye sustancialmente a la sostenibilidad\",SUM(B17:L17),0),IF(AND('Base-datos'!$B$715=\"Sí\",'Base-datos'!$B$716=\"Sí\",'Base-datos'!$B$717=\"\"),IF(AND(N17=\"La actividad sí contribuye sustancialmente a la sostenibilidad\",O17=\"La actividad sí contribuye sustancialmente a la sostenibilidad\"),SUM(B17:L17),0),IF(AND('Base-datos'!$B$715=\"Sí\",'Base-datos'!$B$716=\"Sí\",'Base-datos'!$B$717=\"Sí\"),IF(AND(N17=\"La actividad sí contribuye sustancialmente a la sostenibilidad\",O17=\"La actividad sí contribuye sustancialmente a la sostenibilidad\",M17=\"La actividad sí contribuye sustancialmente a la sostenibilidad\"),SUM(B17:L17),0),IF(AND('Base-datos'!$B$715=\"\",'Base-datos'!$B$716=\"Sí\",'Base-datos'!$B$717=\"\"),IF(O17=\"La actividad sí contribuye sustancialmente a la sostenibilidad\",SUM(B17:L17),0),IF(AND('Base-datos'!$B$715=\"\",'Base-datos'!$B$716=\"\",'Base-datos'!$B$717=\"Sí\"),IF(M17=\"La actividad sí contribuye sustancialmente a la sostenibilidad\",SUM(B17:L17),0),IF(AND('Base-datos'!$B$715=\"\",'Base-datos'!$B$716=\"Sí\",'Base-datos'!$B$717=\"Sí\"),IF(AND(O17=\"La actividad sí contribuye sustancialmente a la sostenibilidad\",M17=\"La actividad sí contribuye sustancialmente a la sostenibilidad\"),SUM(B17:L17),0),IF(AND('Base-datos'!$B$715=\"Sí\",'Base-datos'!$B$716=\"\",'Base-datos'!$B$717=\"Sí\"),IF(AND(N17=\"La actividad sí contribuye sustancialmente a la sostenibilidad\",M17=\"La actividad sí contribuye sustancialmente a la sostenibilidad\"),SUM(B17:L17),0),\"Por definir\"))))))))","v":"Por definir"}]
[{"$f":"Agricultura!$C18","v":"Seleccione"},{"$f":"IF(Agricultura!$E18='Fondos-Inversionistas'!B$12,Agricultura!$B18,\"\")","v":""},{"$f":"IF(Agricultura!$E18='Fondos-Inversionistas'!C$12,Agricultura!$B18,\"\")","v":""},{"$f":"IF(Agricultura!$E18='Fondos-Inversionistas'!D$12,Agricultura!$B18,\"\")","v":""},{"$f":"IF(Agricultura!$E18='Fondos-Inversionistas'!E$12,Agricultura!$B18,\"\")","v":""},{"$f":"IF(Agricultura!$E18='Fondos-Inversionistas'!F$12,Agricultura!$B18,\"\")","v":""},{"$f":"IF(Agricultura!$E18='Fondos-Inversionistas'!G$12,Agricultura!$B18,\"\")","v":""},{"$f":"IF(Agricultura!$E18='Fondos-Inversionistas'!H$12,Agricultura!$B18,\"\")","v":""},{"$f":"IF(Agricultura!$E18='Fondos-Inversionistas'!I$12,Agricultura!$B18,\"\")","v":""},{"$f":"IF(Agricultura!$E18='Fondos-Inversionistas'!J$12,Agricultura!$B18,\"\")","v":""},{"$f":"IF(Agricultura!$E18='Fondos-Inversionistas'!K$12,Agricultura!$B18,\"\")","v":""},{"$f":"IF(Agricultura!$E18='Fondos-Inversionistas'!L$12,Agricultura!$B18,\"\")","v":""},{"$f":"_xlfn.XLOOKUP(A18,'Base-datos'!$B$457:$B$509,'Base-datos'!$F$457:$F$509)","v":{"$error":"#N/A"}},{"$f":"_xlfn.XLOOKUP(A18,'Base-datos'!$B$457:$B$509,'Base-datos'!$C$457:$C$509)","v":{"$error":"#N/A"}},{"$f":"_xlfn.XLOOKUP(A18,'Base-datos'!$B$457:$B$509,'Base-datos'!$D$457:$D$509)","v":{"$error":"#N/A"}},null,null,{"$f":"IF(OR(P$13=\"La actividad no cumple con el total de los criterios de No Daño Significativo\",Q$13=\"El sector no cumple con las salvaguardas mínimas\"),\"\",IF(AND('Base-datos'!$B$715=\"Sí\",'Base-datos'!$B$716=\"\",'Base-datos'!$B$717=\"\"),IF(N18=\"La actividad sí contribuye sustancialmente a la sostenibilidad\",SUM(B18:L18),0),IF(AND('Base-datos'!$B$715=\"Sí\",'Base-datos'!$B$716=\"Sí\",'Base-datos'!$B$717=\"\"),IF(AND(N18=\"La actividad sí contribuye sustancialmente a la sostenibilidad\",O18=\"La actividad sí contribuye sustancialmente a la sostenibilidad\"),SUM(B18:L18),0),IF(AND('Base-datos'!$B$715=\"Sí\",'Base-datos'!$B$716=\"Sí\",'Base-datos'!$B$717=\"Sí\"),IF(AND(N18=\"La actividad sí contribuye sustancialmente a la sostenibilidad\",O18=\"La actividad sí contribuye sustancialmente a la sostenibilidad\",M18=\"La actividad sí contribuye sustancialmente a la sostenibilidad\"),SUM(B18:L18),0),IF(AND('Base-datos'!$B$715=\"\",'Base-datos'!$B$716=\"Sí\",'Base-datos'!$B$717=\"\"),IF(O18=\"La actividad sí contribuye sustancialmente a la sostenibilidad\",SUM(B18:L18),0),IF(AND('Base-datos'!$B$715=\"\",'Base-datos'!$B$716=\"\",'Base-datos'!$B$717=\"Sí\"),IF(M18=\"La actividad sí contribuye sustancialmente a la sostenibilidad\",SUM(B18:L18),0),IF(AND('Base-datos'!$B$715=\"\",'Base-datos'!$B$716=\"Sí\",'Base-datos'!$B$717=\"Sí\"),IF(AND(O18=\"La actividad sí contribuye sustancialmente a la sostenibilidad\",M18=\"La actividad sí contribuye sustancialmente a la sostenibilidad\"),SUM(B18:L18),0),IF(AND('Base-datos'!$B$715=\"Sí\",'Base-datos'!$B$716=\"\",'Base-datos'!$B$717=\"Sí\"),IF(AND(N18=\"La actividad sí contribuye sustancialmente a la sostenibilidad\",M18=\"La actividad sí contribuye sustancialmente a la sostenibilidad\"),SUM(B18:L18),0),\"Por definir\"))))))))","v":"Por definir"}]
[{"$f":"Agricultura!$C20","v":"Seleccione"},{"$f":"IF(Agricultura!$E20='Fondos-Inversionistas'!B$12,Agricultura!$B20,\"\")","v":""},{"$f":"IF(Agricultura!$E20='Fondos-Inversionistas'!C$12,Agricultura!$B20,\"\")","v":""},{"$f":"IF(Agricultura!$E20='Fondos-Inversionistas'!D$12,Agricultura!$B20,\"\")","v":""},{"$f":"IF(Agricultura!$E20='Fondos-Inversionistas'!E$12,Agricultura!$B20,\"\")","v":""},{"$f":"IF(Agricultura!$E20='Fondos-Inversionistas'!F$12,Agricultura!$B20,\"\")","v":""},{"$f":"IF(Agricultura!$E20='Fondos-Inversionistas'!G$12,Agricultura!$B20,\"\")","v":""},{"$f":"IF(Agricultura!$E20='Fondos-Inversionistas'!H$12,Agricultura!$B20,\"\")","v":""},{"$f":"IF(Agricultura!$E20='Fondos-Inversionistas'!I$12,Agricultura!$B20,\"\")","v":""},{"$f":"IF(Agricultura!$E20='Fondos-Inversionistas'!J$12,Agricultura!$B20,\"\")","v":""},{"$f":"IF(Agricultura!$E20='Fondos-Inversionistas'!K$12,Agricultura!$B20,\"\")","v":""},{"$f":"IF(Agricultura!$E20='Fondos-Inversionistas'!L$12,Agricultura!$B20,\"\")","v":""},{"$f":"_xlfn.XLOOKUP(A19,'Base-datos'!$B$457:$B$509,'Base-datos'!$F$457:$F$509)","v":{"$error":"#N/A"}},{"$f":"_xlfn.XLOOKUP(A19,'Base-datos'!$B$457:$B$509,'Base-datos'!$C$457:$C$509)","v":{"$error":"#N/A"}},{"$f":"_xlfn.XLOOKUP(A19,'Base-datos'!$B$457:$B$509,'Base-datos'!$D$457:$D$509)","v":{"$error":"#N/A"}},null,null,{"$f":"IF(OR(P$13=\"La actividad no cumple con el total de los criterios de No Daño Significativo\",Q$13=\"El sector no cumple con las salvaguardas mínimas\"),\"\",IF(AND('Base-datos'!$B$715=\"Sí\",'Base-datos'!$B$716=\"\",'Base-datos'!$B$717=\"\"),IF(N19=\"La actividad sí contribuye sustancialmente a la sostenibilidad\",SUM(B19:L19),0),IF(AND('Base-datos'!$B$715=\"Sí\",'Base-datos'!$B$716=\"Sí\",'Base-datos'!$B$717=\"\"),IF(AND(N19=\"La actividad sí contribuye sustancialmente a la sostenibilidad\",O19=\"La actividad sí contribuye sustancialmente a la sostenibilidad\"),SUM(B19:L19),0),IF(AND('Base-datos'!$B$715=\"Sí\",'Base-datos'!$B$716=\"Sí\",'Base-datos'!$B$717=\"Sí\"),IF(AND(N19=\"La actividad sí contribuye sustancialmente a la sostenibilidad\",O19=\"La actividad sí contribuye sustancialmente a la sostenibilidad\",M19=\"La actividad sí contribuye sustancialmente a la sostenibilidad\"),SUM(B19:L19),0),IF(AND('Base-datos'!$B$715=\"\",'Base-datos'!$B$716=\"Sí\",'Base-datos'!$B$717=\"\"),IF(O19=\"La actividad sí contribuye sustancialmente a la sostenibilidad\",SUM(B19:L19),0),IF(AND('Base-datos'!$B$715=\"\",'Base-datos'!$B$716=\"\",'Base-datos'!$B$717=\"Sí\"),IF(M19=\"La actividad sí contribuye sustancialmente a la sostenibilidad\",SUM(B19:L19),0),IF(AND('Base-datos'!$B$715=\"\",'Base-datos'!$B$716=\"Sí\",'Base-datos'!$B$717=\"Sí\"),IF(AND(O19=\"La actividad sí contribuye sustancialmente a la sostenibilidad\",M19=\"La actividad sí contribuye sustancialmente a la sostenibilidad\"),SUM(B19:L19),0),IF(AND('Base-datos'!$B$715=\"Sí\",'Base-datos'!$B$716=\"\",'Base-datos'!$B$717=\"Sí\"),IF(AND(N19=\"La actividad sí contribuye sustancialmente a la sostenibilidad\",M19=\"La actividad sí contribuye sustancialmente a la sostenibilidad\"),SUM(B19:L19),0),\"Por definir\"))))))))","v":"Por definir"}]
[{"$f":"Agricultura!$C22","v":"Seleccione"},{"$f":"IF(Agricultura!$E22='Fondos-Inversionistas'!B$12,Agricultura!$B22,\"\")","v":""},{"$f":"IF(Agricultura!$E22='Fondos-Inversionistas'!C$12,Agricultura!$B22,\"\")","v":""},{"$f":"IF(Agricultura!$E22='Fondos-Inversionistas'!D$12,Agricultura!$B22,\"\")","v":""},{"$f":"IF(Agricultura!$E22='Fondos-Inversionistas'!E$12,Agricultura!$B22,\"\")","v":""},{"$f":"IF(Agricultura!$E22='Fondos-Inversionistas'!F$12,Agricultura!$B22,\"\")","v":""},{"$f":"IF(Agricultura!$E22='Fondos-Inversionistas'!G$12,Agricultura!$B22,\"\")","v":""},{"$f":"IF(Agricultura!$E22='Fondos-Inversionistas'!H$12,Agricultura!$B22,\"\")","v":""},{"$f":"IF(Agricultura!$E22='Fondos-Inversionistas'!I$12,Agricultura!$B22,\"\")","v":""},{"$f":"IF(Agricultura!$E22='Fondos-Inversionistas'!J$12,Agricultura!$B22,\"\")","v":""},{"$f":"IF(Agricultura!$E22='Fondos-Inversionistas'!K$12,Agricultura!$B22,\"\")","v":""},{"$f":"IF(Agricultura!$E22='Fondos-Inversionistas'!L$12,Agricultura!$B22,\"\")","v":""},{"$f":"_xlfn.XLOOKUP(A20,'Base-datos'!$B$457:$B$509,'Base-datos'!$F$457:$F$509)","v":{"$error":"#N/A"}},{"$f":"_xlfn.XLOOKUP(A20,'Base-datos'!$B$457:$B$509,'Base-datos'!$C$457:$C$509)","v":{"$error":"#N/A"}},{"$f":"_xlfn.XLOOKUP(A20,'Base-datos'!$B$457:$B$509,'Base-datos'!$D$457:$D$509)","v":{"$error":"#N/A"}},null,null,{"$f":"IF(OR(P$13=\"La actividad no cumple con el total de los criterios de No Daño Significativo\",Q$13=\"El sector no cumple con las salvaguardas mínimas\"),\"\",IF(AND('Base-datos'!$B$715=\"Sí\",'Base-datos'!$B$716=\"\",'Base-datos'!$B$717=\"\"),IF(N20=\"La actividad sí contribuye sustancialmente a la sostenibilidad\",SUM(B20:L20),0),IF(AND('Base-datos'!$B$715=\"Sí\",'Base-datos'!$B$716=\"Sí\",'Base-datos'!$B$717=\"\"),IF(AND(N20=\"La actividad sí contribuye sustancialmente a la sostenibilidad\",O20=\"La actividad sí contribuye sustancialmente a la sostenibilidad\"),SUM(B20:L20),0),IF(AND('Base-datos'!$B$715=\"Sí\",'Base-datos'!$B$716=\"Sí\",'Base-datos'!$B$717=\"Sí\"),IF(AND(N20=\"La actividad sí contribuye sustancialmente a la sostenibilidad\",O20=\"La actividad sí contribuye sustancialmente a la sostenibilidad\",M20=\"La actividad sí contribuye sustancialmente a la sostenibilidad\"),SUM(B20:L20),0),IF(AND('Base-datos'!$B$715=\"\",'Base-datos'!$B$716=\"Sí\",'Base-datos'!$B$717=\"\"),IF(O20=\"La actividad sí contribuye sustancialmente a la sostenibilidad\",SUM(B20:L20),0),IF(AND('Base-datos'!$B$715=\"\",'Base-datos'!$B$716=\"\",'Base-datos'!$B$717=\"Sí\"),IF(M20=\"La actividad sí contribuye sustancialmente a la sostenibilidad\",SUM(B20:L20),0),IF(AND('Base-datos'!$B$715=\"\",'Base-datos'!$B$716=\"Sí\",'Base-datos'!$B$717=\"Sí\"),IF(AND(O20=\"La actividad sí contribuye sustancialmente a la sostenibilidad\",M20=\"La actividad sí contribuye sustancialmente a la sostenibilidad\"),SUM(B20:L20),0),IF(AND('Base-datos'!$B$715=\"Sí\",'Base-datos'!$B$716=\"\",'Base-datos'!$B$717=\"Sí\"),IF(AND(N20=\"La actividad sí contribuye sustancialmente a la sostenibilidad\",M20=\"La actividad sí contribuye sustancialmente a la sostenibilidad\"),SUM(B20:L20),0),\"Por definir\"))))))))","v":"Por definir"}]
[{"$f":"Agricultura!$C24","v":"Seleccione"},{"$f":"IF(Agricultura!$E24='Fondos-Inversionistas'!B$12,Agricultura!$B24,\"\")","v":""},{"$f":"IF(Agricultura!$E24='Fondos-Inversionistas'!C$12,Agricultura!$B24,\"\")","v":""},{"$f":"IF(Agricultura!$E24='Fondos-Inversionistas'!D$12,Agricultura!$B24,\"\")","v":""},{"$f":"IF(Agricultura!$E24='Fondos-Inversionistas'!E$12,Agricultura!$B24,\"\")","v":""},{"$f":"IF(Agricultura!$E24='Fondos-Inversionistas'!F$12,Agricultura!$B24,\"\")","v":""},{"$f":"IF(Agricultura!$E24='Fondos-Inversionistas'!G$12,Agricultura!$B24,\"\")","v":""},{"$f":"IF(Agricultura!$E24='Fondos-Inversionistas'!H$12,Agricultura!$B24,\"\")","v":""},{"$f":"IF(Agricultura!$E24='Fondos-Inversionistas'!I$12,Agricultura!$B24,\"\")","v":""},{"$f":"IF(Agricultura!$E24='Fondos-Inversionistas'!J$12,Agricultura!$B24,\"\")","v":""},{"$f":"IF(Agricultura!$E24='Fondos-Inversionistas'!K$12,Agricultura!$B24,\"\")","v":""},{"$f":"IF(Agricultura!$E24='Fondos-Inversionistas'!L$12,Agricultura!$B24,\"\")","v":""},{"$f":"_xlfn.XLOOKUP(A21,'Base-datos'!$B$457:$B$509,'Base-datos'!$F$457:$F$509)","v":{"$error":"#N/A"}},{"$f":"_xlfn.XLOOKUP(A21,'Base-datos'!$B$457:$B$509,'Base-datos'!$C$457:$C$509)","v":{"$error":"#N/A"}},{"$f":"_xlfn.XLOOKUP(A21,'Base-datos'!$B$457:$B$509,'Base-datos'!$D$457:$D$509)","v":{"$error":"#N/A"}},null,null,{"$f":"IF(OR(P$13=\"La actividad no cumple con el total de los criterios de No Daño Significativo\",Q$13=\"El sector no cumple con las salvaguardas mínimas\"),\"\",IF(AND('Base-datos'!$B$715=\"Sí\",'Base-datos'!$B$716=\"\",'Base-datos'!$B$717=\"\"),IF(N21=\"La actividad sí contribuye sustancialmente a la sostenibilidad\",SUM(B21:L21),0),IF(AND('Base-datos'!$B$715=\"Sí\",'Base-datos'!$B$716=\"Sí\",'Base-datos'!$B$717=\"\"),IF(AND(N21=\"La actividad sí contribuye sustancialmente a la sostenibilidad\",O21=\"La actividad sí contribuye sustancialmente a la sostenibilidad\"),SUM(B21:L21),0),IF(AND('Base-datos'!$B$715=\"Sí\",'Base-datos'!$B$716=\"Sí\",'Base-datos'!$B$717=\"Sí\"),IF(AND(N21=\"La actividad sí contribuye sustancialmente a la sostenibilidad\",O21=\"La actividad sí contribuye sustancialmente a la sostenibilidad\",M21=\"La actividad sí contribuye sustancialmente a la sostenibilidad\"),SUM(B21:L21),0),IF(AND('Base-datos'!$B$715=\"\",'Base-datos'!$B$716=\"Sí\",'Base-datos'!$B$717=\"\"),IF(O21=\"La actividad sí contribuye sustancialmente a la sostenibilidad\",SUM(B21:L21),0),IF(AND('Base-datos'!$B$715=\"\",'Base-datos'!$B$716=\"\",'Base-datos'!$B$717=\"Sí\"),IF(M21=\"La actividad sí contribuye sustancialmente a la sostenibilidad\",SUM(B21:L21),0),IF(AND('Base-datos'!$B$715=\"\",'Base-datos'!$B$716=\"Sí\",'Base-datos'!$B$717=\"Sí\"),IF(AND(O21=\"La actividad sí contribuye sustancialmente a la sostenibilidad\",M21=\"La actividad sí contribuye sustancialmente a la sostenibilidad\"),SUM(B21:L21),0),IF(AND('Base-datos'!$B$715=\"Sí\",'Base-datos'!$B$716=\"\",'Base-datos'!$B$717=\"Sí\"),IF(AND(N21=\"La actividad sí contribuye sustancialmente a la sostenibilidad\",M21=\"La actividad sí contribuye sustancialmente a la sostenibilidad\"),SUM(B21:L21),0),\"Por definir\"))))))))","v":"Por definir"}]
[{"$f":"Agricultura!$C26","v":"Seleccione"},{"$f":"IF(Agricultura!$E26='Fondos-Inversionistas'!B$12,Agricultura!$B26,\"\")","v":""},{"$f":"IF(Agricultura!$E26='Fondos-Inversionistas'!C$12,Agricultura!$B26,\"\")","v":""},{"$f":"IF(Agricultura!$E26='Fondos-Inversionistas'!D$12,Agricultura!$B26,\"\")","v":""},{"$f":"IF(Agricultura!$E26='Fondos-Inversionistas'!E$12,Agricultura!$B26,\"\")","v":""},{"$f":"IF(Agricultura!$E26='Fondos-Inversionistas'!F$12,Agricultura!$B26,\"\")","v":""},{"$f":"IF(Agricultura!$E26='Fondos-Inversionistas'!G$12,Agricultura!$B26,\"\")","v":""},{"$f":"IF(Agricultura!$E26='Fondos-Inversionistas'!H$12,Agricultura!$B26,\"\")","v":""},{"$f":"IF(Agricultura!$E26='Fondos-Inversionistas'!I$12,Agricultura!$B26,\"\")","v":""},{"$f":"IF(Agricultura!$E26='Fondos-Inversionistas'!J$12,Agricultura!$B26,\"\")","v":""},{"$f":"IF(Agricultura!$E26='Fondos-Inversionistas'!K$12,Agricultura!$B26,\"\")","v":""},{"$f":"IF(Agricultura!$E26='Fondos-Inversionistas'!L$12,Agricultura!$B26,\"\")","v":""},{"$f":"_xlfn.XLOOKUP(A22,'Base-datos'!$B$457:$B$509,'Base-datos'!$F$457:$F$509)","v":{"$error":"#N/A"}},{"$f":"_xlfn.XLOOKUP(A22,'Base-datos'!$B$457:$B$509,'Base-datos'!$C$457:$C$509)","v":{"$error":"#N/A"}},{"$f":"_xlfn.XLOOKUP(A22,'Base-datos'!$B$457:$B$509,'Base-datos'!$D$457:$D$509)","v":{"$error":"#N/A"}},null,null,{"$f":"IF(OR(P$13=\"La actividad no cumple con el total de los criterios de No Daño Significativo\",Q$13=\"El sector no cumple con las salvaguardas mínimas\"),\"\",IF(AND('Base-datos'!$B$715=\"Sí\",'Base-datos'!$B$716=\"\",'Base-datos'!$B$717=\"\"),IF(N22=\"La actividad sí contribuye sustancialmente a la sostenibilidad\",SUM(B22:L22),0),IF(AND('Base-datos'!$B$715=\"Sí\",'Base-datos'!$B$716=\"Sí\",'Base-datos'!$B$717=\"\"),IF(AND(N22=\"La actividad sí contribuye sustancialmente a la sostenibilidad\",O22=\"La actividad sí contribuye sustancialmente a la sostenibilidad\"),SUM(B22:L22),0),IF(AND('Base-datos'!$B$715=\"Sí\",'Base-datos'!$B$716=\"Sí\",'Base-datos'!$B$717=\"Sí\"),IF(AND(N22=\"La actividad sí contribuye sustancialmente a la sostenibilidad\",O22=\"La actividad sí contribuye sustancialmente a la sostenibilidad\",M22=\"La actividad sí contribuye sustancialmente a la sostenibilidad\"),SUM(B22:L22),0),IF(AND('Base-datos'!$B$715=\"\",'Base-datos'!$B$716=\"Sí\",'Base-datos'!$B$717=\"\"),IF(O22=\"La actividad sí contribuye sustancialmente a la sostenibilidad\",SUM(B22:L22),0),IF(AND('Base-datos'!$B$715=\"\",'Base-datos'!$B$716=\"\",'Base-datos'!$B$717=\"Sí\"),IF(M22=\"La actividad sí contribuye sustancialmente a la sostenibilidad\",SUM(B22:L22),0),IF(AND('Base-datos'!$B$715=\"\",'Base-datos'!$B$716=\"Sí\",'Base-datos'!$B$717=\"Sí\"),IF(AND(O22=\"La actividad sí contribuye sustancialmente a la sostenibilidad\",M22=\"La actividad sí contribuye sustancialmente a la sostenibilidad\"),SUM(B22:L22),0),IF(AND('Base-datos'!$B$715=\"Sí\",'Base-datos'!$B$716=\"\",'Base-datos'!$B$717=\"Sí\"),IF(AND(N22=\"La actividad sí contribuye sustancialmente a la sostenibilidad\",M22=\"La actividad sí contribuye sustancialmente a la sostenibilidad\"),SUM(B22:L22),0),\"Por definir\"))))))))","v":"Por definir"}]
[{"$f":"Agricultura!$C28","v":"Seleccione"},{"$f":"IF(Agricultura!$E28='Fondos-Inversionistas'!B$12,Agricultura!$B28,\"\")","v":""},{"$f":"IF(Agricultura!$E28='Fondos-Inversionistas'!C$12,Agricultura!$B28,\"\")","v":""},{"$f":"IF(Agricultura!$E28='Fondos-Inversionistas'!D$12,Agricultura!$B28,\"\")","v":""},{"$f":"IF(Agricultura!$E28='Fondos-Inversionistas'!E$12,Agricultura!$B28,\"\")","v":""},{"$f":"IF(Agricultura!$E28='Fondos-Inversionistas'!F$12,Agricultura!$B28,\"\")","v":""},{"$f":"IF(Agricultura!$E28='Fondos-Inversionistas'!G$12,Agricultura!$B28,\"\")","v":""},{"$f":"IF(Agricultura!$E28='Fondos-Inversionistas'!H$12,Agricultura!$B28,\"\")","v":""},{"$f":"IF(Agricultura!$E28='Fondos-Inversionistas'!I$12,Agricultura!$B28,\"\")","v":""},{"$f":"IF(Agricultura!$E28='Fondos-Inversionistas'!J$12,Agricultura!$B28,\"\")","v":""},{"$f":"IF(Agricultura!$E28='Fondos-Inversionistas'!K$12,Agricultura!$B28,\"\")","v":""},{"$f":"IF(Agricultura!$E28='Fondos-Inversionistas'!L$12,Agricultura!$B28,\"\")","v":""},{"$f":"_xlfn.XLOOKUP(A23,'Base-datos'!$B$457:$B$509,'Base-datos'!$F$457:$F$509)","v":{"$error":"#N/A"}},{"$f":"_xlfn.XLOOKUP(A23,'Base-datos'!$B$457:$B$509,'Base-datos'!$C$457:$C$509)","v":{"$error":"#N/A"}},{"$f":"_xlfn.XLOOKUP(A23,'Base-datos'!$B$457:$B$509,'Base-datos'!$D$457:$D$509)","v":{"$error":"#N/A"}},null,null,{"$f":"IF(OR(P$13=\"La actividad no cumple con el total de los criterios de No Daño Significativo\",Q$13=\"El sector no cumple con las salvaguardas mínimas\"),\"\",IF(AND('Base-datos'!$B$715=\"Sí\",'Base-datos'!$B$716=\"\",'Base-datos'!$B$717=\"\"),IF(N23=\"La actividad sí contribuye sustancialmente a la sostenibilidad\",SUM(B23:L23),0),IF(AND('Base-datos'!$B$715=\"Sí\",'Base-datos'!$B$716=\"Sí\",'Base-datos'!$B$717=\"\"),IF(AND(N23=\"La actividad sí contribuye sustancialmente a la sostenibilidad\",O23=\"La actividad sí contribuye sustancialmente a la sostenibilidad\"),SUM(B23:L23),0),IF(AND('Base-datos'!$B$715=\"Sí\",'Base-datos'!$B$716=\"Sí\",'Base-datos'!$B$717=\"Sí\"),IF(AND(N23=\"La actividad sí contribuye sustancialmente a la sostenibilidad\",O23=\"La actividad sí contribuye sustancialmente a la sostenibilidad\",M23=\"La actividad sí contribuye sustancialmente a la sostenibilidad\"),SUM(B23:L23),0),IF(AND('Base-datos'!$B$715=\"\",'Base-datos'!$B$716=\"Sí\",'Base-datos'!$B$717=\"\"),IF(O23=\"La actividad sí contribuye sustancialmente a la sostenibilidad\",SUM(B23:L23),0),IF(AND('Base-datos'!$B$715=\"\",'Base-datos'!$B$716=\"\",'Base-datos'!$B$717=\"Sí\"),IF(M23=\"La actividad sí contribuye sustancialmente a la sostenibilidad\",SUM(B23:L23),0),IF(AND('Base-datos'!$B$715=\"\",'Base-datos'!$B$716=\"Sí\",'Base-datos'!$B$717=\"Sí\"),IF(AND(O23=\"La actividad sí contribuye sustancialmente a la sostenibilidad\",M23=\"La actividad sí contribuye sustancialmente a la sostenibilidad\"),SUM(B23:L23),0),IF(AND('Base-datos'!$B$715=\"Sí\",'Base-datos'!$B$716=\"\",'Base-datos'!$B$717=\"Sí\"),IF(AND(N23=\"La actividad sí contribuye sustancialmente a la sostenibilidad\",M23=\"La actividad sí contribuye sustancialmente a la sostenibilidad\"),SUM(B23:L23),0),\"Por definir\"))))))))","v":"Por definir"}]
[{"$f":"Agricultura!$C30","v":"Seleccione"},{"$f":"IF(Agricultura!$E30='Fondos-Inversionistas'!B$12,Agricultura!$B30,\"\")","v":""},{"$f":"IF(Agricultura!$E30='Fondos-Inversionistas'!C$12,Agricultura!$B30,\"\")","v":""},{"$f":"IF(Agricultura!$E30='Fondos-Inversionistas'!D$12,Agricultura!$B30,\"\")","v":""},{"$f":"IF(Agricultura!$E30='Fondos-Inversionistas'!E$12,Agricultura!$B30,\"\")","v":""},{"$f":"IF(Agricultura!$E30='Fondos-Inversionistas'!F$12,Agricultura!$B30,\"\")","v":""},{"$f":"IF(Agricultura!$E30='Fondos-Inversionistas'!G$12,Agricultura!$B30,\"\")","v":""},{"$f":"IF(Agricultura!$E30='Fondos-Inversionistas'!H$12,Agricultura!$B30,\"\")","v":""},{"$f":"IF(Agricultura!$E30='Fondos-Inversionistas'!I$12,Agricultura!$B30,\"\")","v":""},{"$f":"IF(Agricultura!$E30='Fondos-Inversionistas'!J$12,Agricultura!$B30,\"\")","v":""},{"$f":"IF(Agricultura!$E30='Fondos-Inversionistas'!K$12,Agricultura!$B30,\"\")","v":""},{"$f":"IF(Agricultura!$E30='Fondos-Inversionistas'!L$12,Agricultura!$B30,\"\")","v":""},{"$f":"_xlfn.XLOOKUP(A24,'Base-datos'!$B$457:$B$509,'Base-datos'!$F$457:$F$509)","v":{"$error":"#N/A"}},{"$f":"_xlfn.XLOOKUP(A24,'Base-datos'!$B$457:$B$509,'Base-datos'!$C$457:$C$509)","v":{"$error":"#N/A"}},{"$f":"_xlfn.XLOOKUP(A24,'Base-datos'!$B$457:$B$509,'Base-datos'!$D$457:$D$509)","v":{"$error":"#N/A"}},null,null,{"$f":"IF(OR(P$13=\"La actividad no cumple con el total de los criterios de No Daño Significativo\",Q$13=\"El sector no cumple con las salvaguardas mínimas\"),\"\",IF(AND('Base-datos'!$B$715=\"Sí\",'Base-datos'!$B$716=\"\",'Base-datos'!$B$717=\"\"),IF(N24=\"La actividad sí contribuye sustancialmente a la sostenibilidad\",SUM(B24:L24),0),IF(AND('Base-datos'!$B$715=\"Sí\",'Base-datos'!$B$716=\"Sí\",'Base-datos'!$B$717=\"\"),IF(AND(N24=\"La actividad sí contribuye sustancialmente a la sostenibilidad\",O24=\"La actividad sí contribuye sustancialmente a la sostenibilidad\"),SUM(B24:L24),0),IF(AND('Base-datos'!$B$715=\"Sí\",'Base-datos'!$B$716=\"Sí\",'Base-datos'!$B$717=\"Sí\"),IF(AND(N24=\"La actividad sí contribuye sustancialmente a la sostenibilidad\",O24=\"La actividad sí contribuye sustancialmente a la sostenibilidad\",M24=\"La actividad sí contribuye sustancialmente a la sostenibilidad\"),SUM(B24:L24),0),IF(AND('Base-datos'!$B$715=\"\",'Base-datos'!$B$716=\"Sí\",'Base-datos'!$B$717=\"\"),IF(O24=\"La actividad sí contribuye sustancialmente a la sostenibilidad\",SUM(B24:L24),0),IF(AND('Base-datos'!$B$715=\"\",'Base-datos'!$B$716=\"\",'Base-datos'!$B$717=\"Sí\"),IF(M24=\"La actividad sí contribuye sustancialmente a la sostenibilidad\",SUM(B24:L24),0),IF(AND('Base-datos'!$B$715=\"\",'Base-datos'!$B$716=\"Sí\",'Base-datos'!$B$717=\"Sí\"),IF(AND(O24=\"La actividad sí contribuye sustancialmente a la sostenibilidad\",M24=\"La actividad sí contribuye sustancialmente a la sostenibilidad\"),SUM(B24:L24),0),IF(AND('Base-datos'!$B$715=\"Sí\",'Base-datos'!$B$716=\"\",'Base-datos'!$B$717=\"Sí\"),IF(AND(N24=\"La actividad sí contribuye sustancialmente a la sostenibilidad\",M24=\"La actividad sí contribuye sustancialmente a la sostenibilidad\"),SUM(B24:L24),0),\"Por definir\"))))))))","v":"Por definir"}]
[{"$f":"Agricultura!$C32","v":"Seleccione"},{"$f":"IF(Agricultura!$E32='Fondos-Inversionistas'!B$12,Agricultura!$B32,\"\")","v":""},{"$f":"IF(Agricultura!$E32='Fondos-Inversionistas'!C$12,Agricultura!$B32,\"\")","v":""},{"$f":"IF(Agricultura!$E32='Fondos-Inversionistas'!D$12,Agricultura!$B32,\"\")","v":""},{"$f":"IF(Agricultura!$E32='Fondos-Inversionistas'!E$12,Agricultura!$B32,\"\")","v":""},{"$f":"IF(Agricultura!$E32='Fondos-Inversionistas'!F$12,Agricultura!$B32,\"\")","v":""},{"$f":"IF(Agricultura!$E32='Fondos-Inversionistas'!G$12,Agricultura!$B32,\"\")","v":""},{"$f":"IF(Agricultura!$E32='Fondos-Inversionistas'!H$12,Agricultura!$B32,\"\")","v":""},{"$f":"IF(Agricultura!$E32='Fondos-Inversionistas'!I$12,Agricultura!$B32,\"\")","v":""},{"$f":"IF(Agricultura!$E32='Fondos-Inversionistas'!J$12,Agricultura!$B32,\"\")","v":""},{"$f":"IF(Agricultura!$E32='Fondos-Inversionistas'!K$12,Agricultura!$B32,\"\")","v":""},{"$f":"IF(Agricultura!$E32='Fondos-Inversionistas'!L$12,Agricultura!$B32,\"\")","v":""},{"$f":"_xlfn.XLOOKUP(A25,'Base-datos'!$B$457:$B$509,'Base-datos'!$F$457:$F$509)","v":{"$error":"#N/A"}},{"$f":"_xlfn.XLOOKUP(A25,'Base-datos'!$B$457:$B$509,'Base-datos'!$C$457:$C$509)","v":{"$error":"#N/A"}},{"$f":"_xlfn.XLOOKUP(A25,'Base-datos'!$B$457:$B$509,'Base-datos'!$D$457:$D$509)","v":{"$error":"#N/A"}},null,null,{"$f":"IF(OR(P$13=\"La actividad no cumple con el total de los criterios de No Daño Significativo\",Q$13=\"El sector no cumple con las salvaguardas mínimas\"),\"\",IF(AND('Base-datos'!$B$715=\"Sí\",'Base-datos'!$B$716=\"\",'Base-datos'!$B$717=\"\"),IF(N25=\"La actividad sí contribuye sustancialmente a la sostenibilidad\",SUM(B25:L25),0),IF(AND('Base-datos'!$B$715=\"Sí\",'Base-datos'!$B$716=\"Sí\",'Base-datos'!$B$717=\"\"),IF(AND(N25=\"La actividad sí contribuye sustancialmente a la sostenibilidad\",O25=\"La actividad sí contribuye sustancialmente a la sostenibilidad\"),SUM(B25:L25),0),IF(AND('Base-datos'!$B$715=\"Sí\",'Base-datos'!$B$716=\"Sí\",'Base-datos'!$B$717=\"Sí\"),IF(AND(N25=\"La actividad sí contribuye sustancialmente a la sostenibilidad\",O25=\"La actividad sí contribuye sustancialmente a la sostenibilidad\",M25=\"La actividad sí contribuye sustancialmente a la sostenibilidad\"),SUM(B25:L25),0),IF(AND('Base-datos'!$B$715=\"\",'Base-datos'!$B$716=\"Sí\",'Base-datos'!$B$717=\"\"),IF(O25=\"La actividad sí contribuye sustancialmente a la sostenibilidad\",SUM(B25:L25),0),IF(AND('Base-datos'!$B$715=\"\",'Base-datos'!$B$716=\"\",'Base-datos'!$B$717=\"Sí\"),IF(M25=\"La actividad sí contribuye sustancialmente a la sostenibilidad\",SUM(B25:L25),0),IF(AND('Base-datos'!$B$715=\"\",'Base-datos'!$B$716=\"Sí\",'Base-datos'!$B$717=\"Sí\"),IF(AND(O25=\"La actividad sí contribuye sustancialmente a la sostenibilidad\",M25=\"La actividad sí contribuye sustancialmente a la sostenibilidad\"),SUM(B25:L25),0),IF(AND('Base-datos'!$B$715=\"Sí\",'Base-datos'!$B$716=\"\",'Base-datos'!$B$717=\"Sí\"),IF(AND(N25=\"La actividad sí contribuye sustancialmente a la sostenibilidad\",M25=\"La actividad sí contribuye sustancialmente a la sostenibilidad\"),SUM(B25:L25),0),\"Por definir\"))))))))","v":"Por definir"}]
[{"$f":"Agricultura!$C34","v":"Seleccione"},{"$f":"IF(Agricultura!$E34='Fondos-Inversionistas'!B$12,Agricultura!$B34,\"\")","v":""},{"$f":"IF(Agricultura!$E34='Fondos-Inversionistas'!C$12,Agricultura!$B34,\"\")","v":""},{"$f":"IF(Agricultura!$E34='Fondos-Inversionistas'!D$12,Agricultura!$B34,\"\")","v":""},{"$f":"IF(Agricultura!$E34='Fondos-Inversionistas'!E$12,Agricultura!$B34,\"\")","v":""},{"$f":"IF(Agricultura!$E34='Fondos-Inversionistas'!F$12,Agricultura!$B34,\"\")","v":""},{"$f":"IF(Agricultura!$E34='Fondos-Inversionistas'!G$12,Agricultura!$B34,\"\")","v":""},{"$f":"IF(Agricultura!$E34='Fondos-Inversionistas'!H$12,Agricultura!$B34,\"\")","v":""},{"$f":"IF(Agricultura!$E34='Fondos-Inversionistas'!I$12,Agricultura!$B34,\"\")","v":""},{"$f":"IF(Agricultura!$E34='Fondos-Inversionistas'!J$12,Agricultura!$B34,\"\")","v":""},{"$f":"IF(Agricultura!$E34='Fondos-Inversionistas'!K$12,Agricultura!$B34,\"\")","v":""},{"$f":"IF(Agricultura!$E34='Fondos-Inversionistas'!L$12,Agricultura!$B34,\"\")","v":""},{"$f":"_xlfn.XLOOKUP(A26,'Base-datos'!$B$457:$B$509,'Base-datos'!$F$457:$F$509)","v":{"$error":"#N/A"}},{"$f":"_xlfn.XLOOKUP(A26,'Base-datos'!$B$457:$B$509,'Base-datos'!$C$457:$C$509)","v":{"$error":"#N/A"}},{"$f":"_xlfn.XLOOKUP(A26,'Base-datos'!$B$457:$B$509,'Base-datos'!$D$457:$D$509)","v":{"$error":"#N/A"}},null,null,{"$f":"IF(OR(P$13=\"La actividad no cumple con el total de los criterios de No Daño Significativo\",Q$13=\"El sector no cumple con las salvaguardas mínimas\"),\"\",IF(AND('Base-datos'!$B$715=\"Sí\",'Base-datos'!$B$716=\"\",'Base-datos'!$B$717=\"\"),IF(N26=\"La actividad sí contribuye sustancialmente a la sostenibilidad\",SUM(B26:L26),0),IF(AND('Base-datos'!$B$715=\"Sí\",'Base-datos'!$B$716=\"Sí\",'Base-datos'!$B$717=\"\"),IF(AND(N26=\"La actividad sí contribuye sustancialmente a la sostenibilidad\",O26=\"La actividad sí contribuye sustancialmente a la sostenibilidad\"),SUM(B26:L26),0),IF(AND('Base-datos'!$B$715=\"Sí\",'Base-datos'!$B$716=\"Sí\",'Base-datos'!$B$717=\"Sí\"),IF(AND(N26=\"La actividad sí contribuye sustancialmente a la sostenibilidad\",O26=\"La actividad sí contribuye sustancialmente a la sostenibilidad\",M26=\"La actividad sí contribuye sustancialmente a la sostenibilidad\"),SUM(B26:L26),0),IF(AND('Base-datos'!$B$715=\"\",'Base-datos'!$B$716=\"Sí\",'Base-datos'!$B$717=\"\"),IF(O26=\"La actividad sí contribuye sustancialmente a la sostenibilidad\",SUM(B26:L26),0),IF(AND('Base-datos'!$B$715=\"\",'Base-datos'!$B$716=\"\",'Base-datos'!$B$717=\"Sí\"),IF(M26=\"La actividad sí contribuye sustancialmente a la sostenibilidad\",SUM(B26:L26),0),IF(AND('Base-datos'!$B$715=\"\",'Base-datos'!$B$716=\"Sí\",'Base-datos'!$B$717=\"Sí\"),IF(AND(O26=\"La actividad sí contribuye sustancialmente a la sostenibilidad\",M26=\"La actividad sí contribuye sustancialmente a la sostenibilidad\"),SUM(B26:L26),0),IF(AND('Base-datos'!$B$715=\"Sí\",'Base-datos'!$B$716=\"\",'Base-datos'!$B$717=\"Sí\"),IF(AND(N26=\"La actividad sí contribuye sustancialmente a la sostenibilidad\",M26=\"La actividad sí contribuye sustancialmente a la sostenibilidad\"),SUM(B26:L26),0),\"Por definir\"))))))))","v":"Por definir"}]
[{"$f":"Agricultura!$C36","v":"Seleccione"},{"$f":"IF(Agricultura!$E36='Fondos-Inversionistas'!B$12,Agricultura!$B36,\"\")","v":""},{"$f":"IF(Agricultura!$E36='Fondos-Inversionistas'!C$12,Agricultura!$B36,\"\")","v":""},{"$f":"IF(Agricultura!$E36='Fondos-Inversionistas'!D$12,Agricultura!$B36,\"\")","v":""},{"$f":"IF(Agricultura!$E36='Fondos-Inversionistas'!E$12,Agricultura!$B36,\"\")","v":""},{"$f":"IF(Agricultura!$E36='Fondos-Inversionistas'!F$12,Agricultura!$B36,\"\")","v":""},{"$f":"IF(Agricultura!$E36='Fondos-Inversionistas'!G$12,Agricultura!$B36,\"\")","v":""},{"$f":"IF(Agricultura!$E36='Fondos-Inversionistas'!H$12,Agricultura!$B36,\"\")","v":""},{"$f":"IF(Agricultura!$E36='Fondos-Inversionistas'!I$12,Agricultura!$B36,\"\")","v":""},{"$f":"IF(Agricultura!$E36='Fondos-Inversionistas'!J$12,Agricultura!$B36,\"\")","v":""},{"$f":"IF(Agricultura!$E36='Fondos-Inversionistas'!K$12,Agricultura!$B36,\"\")","v":""},{"$f":"IF(Agricultura!$E36='Fondos-Inversionistas'!L$12,Agricultura!$B36,\"\")","v":""},{"$f":"_xlfn.XLOOKUP(A27,'Base-datos'!$B$457:$B$509,'Base-datos'!$F$457:$F$509)","v":{"$error":"#N/A"}},{"$f":"_xlfn.XLOOKUP(A27,'Base-datos'!$B$457:$B$509,'Base-datos'!$C$457:$C$509)","v":{"$error":"#N/A"}},{"$f":"_xlfn.XLOOKUP(A27,'Base-datos'!$B$457:$B$509,'Base-datos'!$D$457:$D$509)","v":{"$error":"#N/A"}},null,null,{"$f":"IF(OR(P$13=\"La actividad no cumple con el total de los criterios de No Daño Significativo\",Q$13=\"El sector no cumple con las salvaguardas mínimas\"),\"\",IF(AND('Base-datos'!$B$715=\"Sí\",'Base-datos'!$B$716=\"\",'Base-datos'!$B$717=\"\"),IF(N27=\"La actividad sí contribuye sustancialmente a la sostenibilidad\",SUM(B27:L27),0),IF(AND('Base-datos'!$B$715=\"Sí\",'Base-datos'!$B$716=\"Sí\",'Base-datos'!$B$717=\"\"),IF(AND(N27=\"La actividad sí contribuye sustancialmente a la sostenibilidad\",O27=\"La actividad sí contribuye sustancialmente a la sostenibilidad\"),SUM(B27:L27),0),IF(AND('Base-datos'!$B$715=\"Sí\",'Base-datos'!$B$716=\"Sí\",'Base-datos'!$B$717=\"Sí\"),IF(AND(N27=\"La actividad sí contribuye sustancialmente a la sostenibilidad\",O27=\"La actividad sí contribuye sustancialmente a la sostenibilidad\",M27=\"La actividad sí contribuye sustancialmente a la sostenibilidad\"),SUM(B27:L27),0),IF(AND('Base-datos'!$B$715=\"\",'Base-datos'!$B$716=\"Sí\",'Base-datos'!$B$717=\"\"),IF(O27=\"La actividad sí contribuye sustancialmente a la sostenibilidad\",SUM(B27:L27),0),IF(AND('Base-datos'!$B$715=\"\",'Base-datos'!$B$716=\"\",'Base-datos'!$B$717=\"Sí\"),IF(M27=\"La actividad sí contribuye sustancialmente a la sostenibilidad\",SUM(B27:L27),0),IF(AND('Base-datos'!$B$715=\"\",'Base-datos'!$B$716=\"Sí\",'Base-datos'!$B$717=\"Sí\"),IF(AND(O27=\"La actividad sí contribuye sustancialmente a la sostenibilidad\",M27=\"La actividad sí contribuye sustancialmente a la sostenibilidad\"),SUM(B27:L27),0),IF(AND('Base-datos'!$B$715=\"Sí\",'Base-datos'!$B$716=\"\",'Base-datos'!$B$717=\"Sí\"),IF(AND(N27=\"La actividad sí contribuye sustancialmente a la sostenibilidad\",M27=\"La actividad sí contribuye sustancialmente a la sostenibilidad\"),SUM(B27:L27),0),\"Por definir\"))))))))","v":"Por definir"}]
[{"$f":"Agricultura!$C38","v":"Seleccione"},{"$f":"IF(Agricultura!$E38='Fondos-Inversionistas'!B$12,Agricultura!$B38,\"\")","v":""},{"$f":"IF(Agricultura!$E38='Fondos-Inversionistas'!C$12,Agricultura!$B38,\"\")","v":""},{"$f":"IF(Agricultura!$E38='Fondos-Inversionistas'!D$12,Agricultura!$B38,\"\")","v":""},{"$f":"IF(Agricultura!$E38='Fondos-Inversionistas'!E$12,Agricultura!$B38,\"\")","v":""},{"$f":"IF(Agricultura!$E38='Fondos-Inversionistas'!F$12,Agricultura!$B38,\"\")","v":""},{"$f":"IF(Agricultura!$E38='Fondos-Inversionistas'!G$12,Agricultura!$B38,\"\")","v":""},{"$f":"IF(Agricultura!$E38='Fondos-Inversionistas'!H$12,Agricultura!$B38,\"\")","v":""},{"$f":"IF(Agricultura!$E38='Fondos-Inversionistas'!I$12,Agricultura!$B38,\"\")","v":""},{"$f":"IF(Agricultura!$E38='Fondos-Inversionistas'!J$12,Agricultura!$B38,\"\")","v":""},{"$f":"IF(Agricultura!$E38='Fondos-Inversionistas'!K$12,Agricultura!$B38,\"\")","v":""},{"$f":"IF(Agricultura!$E38='Fondos-Inversionistas'!L$12,Agricultura!$B38,\"\")","v":""},{"$f":"_xlfn.XLOOKUP(A28,'Base-datos'!$B$457:$B$509,'Base-datos'!$F$457:$F$509)","v":{"$error":"#N/A"}},{"$f":"_xlfn.XLOOKUP(A28,'Base-datos'!$B$457:$B$509,'Base-datos'!$C$457:$C$509)","v":{"$error":"#N/A"}},{"$f":"_xlfn.XLOOKUP(A28,'Base-datos'!$B$457:$B$509,'Base-datos'!$D$457:$D$509)","v":{"$error":"#N/A"}},null,null,{"$f":"IF(OR(P$13=\"La actividad no cumple con el total de los criterios de No Daño Significativo\",Q$13=\"El sector no cumple con las salvaguardas mínimas\"),\"\",IF(AND('Base-datos'!$B$715=\"Sí\",'Base-datos'!$B$716=\"\",'Base-datos'!$B$717=\"\"),IF(N28=\"La actividad sí contribuye sustancialmente a la sostenibilidad\",SUM(B28:L28),0),IF(AND('Base-datos'!$B$715=\"Sí\",'Base-datos'!$B$716=\"Sí\",'Base-datos'!$B$717=\"\"),IF(AND(N28=\"La actividad sí contribuye sustancialmente a la sostenibilidad\",O28=\"La actividad sí contribuye sustancialmente a la sostenibilidad\"),SUM(B28:L28),0),IF(AND('Base-datos'!$B$715=\"Sí\",'Base-datos'!$B$716=\"Sí\",'Base-datos'!$B$717=\"Sí\"),IF(AND(N28=\"La actividad sí contribuye sustancialmente a la sostenibilidad\",O28=\"La actividad sí contribuye sustancialmente a la sostenibilidad\",M28=\"La actividad sí contribuye sustancialmente a la sostenibilidad\"),SUM(B28:L28),0),IF(AND('Base-datos'!$B$715=\"\",'Base-datos'!$B$716=\"Sí\",'Base-datos'!$B$717=\"\"),IF(O28=\"La actividad sí contribuye sustancialmente a la sostenibilidad\",SUM(B28:L28),0),IF(AND('Base-datos'!$B$715=\"\",'Base-datos'!$B$716=\"\",'Base-datos'!$B$717=\"Sí\"),IF(M28=\"La actividad sí contribuye sustancialmente a la sostenibilidad\",SUM(B28:L28),0),IF(AND('Base-datos'!$B$715=\"\",'Base-datos'!$B$716=\"Sí\",'Base-datos'!$B$717=\"Sí\"),IF(AND(O28=\"La actividad sí contribuye sustancialmente a la sostenibilidad\",M28=\"La actividad sí contribuye sustancialmente a la sostenibilidad\"),SUM(B28:L28),0),IF(AND('Base-datos'!$B$715=\"Sí\",'Base-datos'!$B$716=\"\",'Base-datos'!$B$717=\"Sí\"),IF(AND(N28=\"La actividad sí contribuye sustancialmente a la sostenibilidad\",M28=\"La actividad sí contribuye sustancialmente a la sostenibilidad\"),SUM(B28:L28),0),\"Por definir\"))))))))","v":"Por definir"}]
[{"$f":"Agricultura!$C40","v":"Seleccione"},{"$f":"IF(Agricultura!$E40='Fondos-Inversionistas'!B$12,Agricultura!$B40,\"\")","v":""},{"$f":"IF(Agricultura!$E40='Fondos-Inversionistas'!C$12,Agricultura!$B40,\"\")","v":""},{"$f":"IF(Agricultura!$E40='Fondos-Inversionistas'!D$12,Agricultura!$B40,\"\")","v":""},{"$f":"IF(Agricultura!$E40='Fondos-Inversionistas'!E$12,Agricultura!$B40,\"\")","v":""},{"$f":"IF(Agricultura!$E40='Fondos-Inversionistas'!F$12,Agricultura!$B40,\"\")","v":""},{"$f":"IF(Agricultura!$E40='Fondos-Inversionistas'!G$12,Agricultura!$B40,\"\")","v":""},{"$f":"IF(Agricultura!$E40='Fondos-Inversionistas'!H$12,Agricultura!$B40,\"\")","v":""},{"$f":"IF(Agricultura!$E40='Fondos-Inversionistas'!I$12,Agricultura!$B40,\"\")","v":""},{"$f":"IF(Agricultura!$E40='Fondos-Inversionistas'!J$12,Agricultura!$B40,\"\")","v":""},{"$f":"IF(Agricultura!$E40='Fondos-Inversionistas'!K$12,Agricultura!$B40,\"\")","v":""},{"$f":"IF(Agricultura!$E40='Fondos-Inversionistas'!L$12,Agricultura!$B40,\"\")","v":""},{"$f":"_xlfn.XLOOKUP(A29,'Base-datos'!$B$457:$B$509,'Base-datos'!$F$457:$F$509)","v":{"$error":"#N/A"}},{"$f":"_xlfn.XLOOKUP(A29,'Base-datos'!$B$457:$B$509,'Base-datos'!$C$457:$C$509)","v":{"$error":"#N/A"}},{"$f":"_xlfn.XLOOKUP(A29,'Base-datos'!$B$457:$B$509,'Base-datos'!$D$457:$D$509)","v":{"$error":"#N/A"}},null,null,{"$f":"IF(OR(P$13=\"La actividad no cumple con el total de los criterios de No Daño Significativo\",Q$13=\"El sector no cumple con las salvaguardas mínimas\"),\"\",IF(AND('Base-datos'!$B$715=\"Sí\",'Base-datos'!$B$716=\"\",'Base-datos'!$B$717=\"\"),IF(N29=\"La actividad sí contribuye sustancialmente a la sostenibilidad\",SUM(B29:L29),0),IF(AND('Base-datos'!$B$715=\"Sí\",'Base-datos'!$B$716=\"Sí\",'Base-datos'!$B$717=\"\"),IF(AND(N29=\"La actividad sí contribuye sustancialmente a la sostenibilidad\",O29=\"La actividad sí contribuye sustancialmente a la sostenibilidad\"),SUM(B29:L29),0),IF(AND('Base-datos'!$B$715=\"Sí\",'Base-datos'!$B$716=\"Sí\",'Base-datos'!$B$717=\"Sí\"),IF(AND(N29=\"La actividad sí contribuye sustancialmente a la sostenibilidad\",O29=\"La actividad sí contribuye sustancialmente a la sostenibilidad\",M29=\"La actividad sí contribuye sustancialmente a la sostenibilidad\"),SUM(B29:L29),0),IF(AND('Base-datos'!$B$715=\"\",'Base-datos'!$B$716=\"Sí\",'Base-datos'!$B$717=\"\"),IF(O29=\"La actividad sí contribuye sustancialmente a la sostenibilidad\",SUM(B29:L29),0),IF(AND('Base-datos'!$B$715=\"\",'Base-datos'!$B$716=\"\",'Base-datos'!$B$717=\"Sí\"),IF(M29=\"La actividad sí contribuye sustancialmente a la sostenibilidad\",SUM(B29:L29),0),IF(AND('Base-datos'!$B$715=\"\",'Base-datos'!$B$716=\"Sí\",'Base-datos'!$B$717=\"Sí\"),IF(AND(O29=\"La actividad sí contribuye sustancialmente a la sostenibilidad\",M29=\"La actividad sí contribuye sustancialmente a la sostenibilidad\"),SUM(B29:L29),0),IF(AND('Base-datos'!$B$715=\"Sí\",'Base-datos'!$B$716=\"\",'Base-datos'!$B$717=\"Sí\"),IF(AND(N29=\"La actividad sí contribuye sustancialmente a la sostenibilidad\",M29=\"La actividad sí contribuye sustancialmente a la sostenibilidad\"),SUM(B29:L29),0),\"Por definir\"))))))))","v":"Por definir"}]
[{"$f":"Agricultura!$C42","v":"Seleccione"},{"$f":"IF(Agricultura!$E42='Fondos-Inversionistas'!B$12,Agricultura!$B42,\"\")","v":""},{"$f":"IF(Agricultura!$E42='Fondos-Inversionistas'!C$12,Agricultura!$B42,\"\")","v":""},{"$f":"IF(Agricultura!$E42='Fondos-Inversionistas'!D$12,Agricultura!$B42,\"\")","v":""},{"$f":"IF(Agricultura!$E42='Fondos-Inversionistas'!E$12,Agricultura!$B42,\"\")","v":""},{"$f":"IF(Agricultura!$E42='Fondos-Inversionistas'!F$12,Agricultura!$B42,\"\")","v":""},{"$f":"IF(Agricultura!$E42='Fondos-Inversionistas'!G$12,Agricultura!$B42,\"\")","v":""},{"$f":"IF(Agricultura!$E42='Fondos-Inversionistas'!H$12,Agricultura!$B42,\"\")","v":""},{"$f":"IF(Agricultura!$E42='Fondos-Inversionistas'!I$12,Agricultura!$B42,\"\")","v":""},{"$f":"IF(Agricultura!$E42='Fondos-Inversionistas'!J$12,Agricultura!$B42,\"\")","v":""},{"$f":"IF(Agricultura!$E42='Fondos-Inversionistas'!K$12,Agricultura!$B42,\"\")","v":""},{"$f":"IF(Agricultura!$E42='Fondos-Inversionistas'!L$12,Agricultura!$B42,\"\")","v":""},{"$f":"_xlfn.XLOOKUP(A30,'Base-datos'!$B$457:$B$509,'Base-datos'!$F$457:$F$509)","v":{"$error":"#N/A"}},{"$f":"_xlfn.XLOOKUP(A30,'Base-datos'!$B$457:$B$509,'Base-datos'!$C$457:$C$509)","v":{"$error":"#N/A"}},{"$f":"_xlfn.XLOOKUP(A30,'Base-datos'!$B$457:$B$509,'Base-datos'!$D$457:$D$509)","v":{"$error":"#N/A"}},null,null,{"$f":"IF(OR(P$13=\"La actividad no cumple con el total de los criterios de No Daño Significativo\",Q$13=\"El sector no cumple con las salvaguardas mínimas\"),\"\",IF(AND('Base-datos'!$B$715=\"Sí\",'Base-datos'!$B$716=\"\",'Base-datos'!$B$717=\"\"),IF(N30=\"La actividad sí contribuye sustancialmente a la sostenibilidad\",SUM(B30:L30),0),IF(AND('Base-datos'!$B$715=\"Sí\",'Base-datos'!$B$716=\"Sí\",'Base-datos'!$B$717=\"\"),IF(AND(N30=\"La actividad sí contribuye sustancialmente a la sostenibilidad\",O30=\"La actividad sí contribuye sustancialmente a la sostenibilidad\"),SUM(B30:L30),0),IF(AND('Base-datos'!$B$715=\"Sí\",'Base-datos'!$B$716=\"Sí\",'Base-datos'!$B$717=\"Sí\"),IF(AND(N30=\"La actividad sí contribuye sustancialmente a la sostenibilidad\",O30=\"La actividad sí contribuye sustancialmente a la sostenibilidad\",M30=\"La actividad sí contribuye sustancialmente a la sostenibilidad\"),SUM(B30:L30),0),IF(AND('Base-datos'!$B$715=\"\",'Base-datos'!$B$716=\"Sí\",'Base-datos'!$B$717=\"\"),IF(O30=\"La actividad sí contribuye sustancialmente a la sostenibilidad\",SUM(B30:L30),0),IF(AND('Base-datos'!$B$715=\"\",'Base-datos'!$B$716=\"\",'Base-datos'!$B$717=\"Sí\"),IF(M30=\"La actividad sí contribuye sustancialmente a la sostenibilidad\",SUM(B30:L30),0),IF(AND('Base-datos'!$B$715=\"\",'Base-datos'!$B$716=\"Sí\",'Base-datos'!$B$717=\"Sí\"),IF(AND(O30=\"La actividad sí contribuye sustancialmente a la sostenibilidad\",M30=\"La actividad sí contribuye sustancialmente a la sostenibilidad\"),SUM(B30:L30),0),IF(AND('Base-datos'!$B$715=\"Sí\",'Base-datos'!$B$716=\"\",'Base-datos'!$B$717=\"Sí\"),IF(AND(N30=\"La actividad sí contribuye sustancialmente a la sostenibilidad\",M30=\"La actividad sí contribuye sustancialmente a la sostenibilidad\"),SUM(B30:L30),0),\"Por definir\"))))))))","v":"Por definir"}]
[{"$f":"Agricultura!$C44","v":"Seleccione"},{"$f":"IF(Agricultura!$E44='Fondos-Inversionistas'!B$12,Agricultura!$B44,\"\")","v":""},{"$f":"IF(Agricultura!$E44='Fondos-Inversionistas'!C$12,Agricultura!$B44,\"\")","v":""},{"$f":"IF(Agricultura!$E44='Fondos-Inversionistas'!D$12,Agricultura!$B44,\"\")","v":""},{"$f":"IF(Agricultura!$E44='Fondos-Inversionistas'!E$12,Agricultura!$B44,\"\")","v":""},{"$f":"IF(Agricultura!$E44='Fondos-Inversionistas'!F$12,Agricultura!$B44,\"\")","v":""},{"$f":"IF(Agricultura!$E44='Fondos-Inversionistas'!G$12,Agricultura!$B44,\"\")","v":""},{"$f":"IF(Agricultura!$E44='Fondos-Inversionistas'!H$12,Agricultura!$B44,\"\")","v":""},{"$f":"IF(Agricultura!$E44='Fondos-Inversionistas'!I$12,Agricultura!$B44,\"\")","v":""},{"$f":"IF(Agricultura!$E44='Fondos-Inversionistas'!J$12,Agricultura!$B44,\"\")","v":""},{"$f":"IF(Agricultura!$E44='Fondos-Inversionistas'!K$12,Agricultura!$B44,\"\")","v":""},{"$f":"IF(Agricultura!$E44='Fondos-Inversionistas'!L$12,Agricultura!$B44,\"\")","v":""},{"$f":"_xlfn.XLOOKUP(A31,'Base-datos'!$B$457:$B$509,'Base-datos'!$F$457:$F$509)","v":{"$error":"#N/A"}},{"$f":"_xlfn.XLOOKUP(A31,'Base-datos'!$B$457:$B$509,'Base-datos'!$C$457:$C$509)","v":{"$error":"#N/A"}},{"$f":"_xlfn.XLOOKUP(A31,'Base-datos'!$B$457:$B$509,'Base-datos'!$D$457:$D$509)","v":{"$error":"#N/A"}},null,null,{"$f":"IF(OR(P$13=\"La actividad no cumple con el total de los criterios de No Daño Significativo\",Q$13=\"El sector no cumple con las salvaguardas mínimas\"),\"\",IF(AND('Base-datos'!$B$715=\"Sí\",'Base-datos'!$B$716=\"\",'Base-datos'!$B$717=\"\"),IF(N31=\"La actividad sí contribuye sustancialmente a la sostenibilidad\",SUM(B31:L31),0),IF(AND('Base-datos'!$B$715=\"Sí\",'Base-datos'!$B$716=\"Sí\",'Base-datos'!$B$717=\"\"),IF(AND(N31=\"La actividad sí contribuye sustancialmente a la sostenibilidad\",O31=\"La actividad sí contribuye sustancialmente a la sostenibilidad\"),SUM(B31:L31),0),IF(AND('Base-datos'!$B$715=\"Sí\",'Base-datos'!$B$716=\"Sí\",'Base-datos'!$B$717=\"Sí\"),IF(AND(N31=\"La actividad sí contribuye sustancialmente a la sostenibilidad\",O31=\"La actividad sí contribuye sustancialmente a la sostenibilidad\",M31=\"La actividad sí contribuye sustancialmente a la sostenibilidad\"),SUM(B31:L31),0),IF(AND('Base-datos'!$B$715=\"\",'Base-datos'!$B$716=\"Sí\",'Base-datos'!$B$717=\"\"),IF(O31=\"La actividad sí contribuye sustancialmente a la sostenibilidad\",SUM(B31:L31),0),IF(AND('Base-datos'!$B$715=\"\",'Base-datos'!$B$716=\"\",'Base-datos'!$B$717=\"Sí\"),IF(M31=\"La actividad sí contribuye sustancialmente a la sostenibilidad\",SUM(B31:L31),0),IF(AND('Base-datos'!$B$715=\"\",'Base-datos'!$B$716=\"Sí\",'Base-datos'!$B$717=\"Sí\"),IF(AND(O31=\"La actividad sí contribuye sustancialmente a la sostenibilidad\",M31=\"La actividad sí contribuye sustancialmente a la sostenibilidad\"),SUM(B31:L31),0),IF(AND('Base-datos'!$B$715=\"Sí\",'Base-datos'!$B$716=\"\",'Base-datos'!$B$717=\"Sí\"),IF(AND(N31=\"La actividad sí contribuye sustancialmente a la sostenibilidad\",M31=\"La actividad sí contribuye sustancialmente a la sostenibilidad\"),SUM(B31:L31),0),\"Por definir\"))))))))","v":"Por definir"}]
[{"$f":"Agricultura!$C46","v":"Seleccione"},{"$f":"IF(Agricultura!$E46='Fondos-Inversionistas'!B$12,Agricultura!$B46,\"\")","v":""},{"$f":"IF(Agricultura!$E46='Fondos-Inversionistas'!C$12,Agricultura!$B46,\"\")","v":""},{"$f":"IF(Agricultura!$E46='Fondos-Inversionistas'!D$12,Agricultura!$B46,\"\")","v":""},{"$f":"IF(Agricultura!$E46='Fondos-Inversionistas'!E$12,Agricultura!$B46,\"\")","v":""},{"$f":"IF(Agricultura!$E46='Fondos-Inversionistas'!F$12,Agricultura!$B46,\"\")","v":""},{"$f":"IF(Agricultura!$E46='Fondos-Inversionistas'!G$12,Agricultura!$B46,\"\")","v":""},{"$f":"IF(Agricultura!$E46='Fondos-Inversionistas'!H$12,Agricultura!$B46,\"\")","v":""},{"$f":"IF(Agricultura!$E46='Fondos-Inversionistas'!I$12,Agricultura!$B46,\"\")","v":""},{"$f":"IF(Agricultura!$E46='Fondos-Inversionistas'!J$12,Agricultura!$B46,\"\")","v":""},{"$f":"IF(Agricultura!$E46='Fondos-Inversionistas'!K$12,Agricultura!$B46,\"\")","v":""},{"$f":"IF(Agricultura!$E46='Fondos-Inversionistas'!L$12,Agricultura!$B46,\"\")","v":""},{"$f":"_xlfn.XLOOKUP(A32,'Base-datos'!$B$457:$B$509,'Base-datos'!$F$457:$F$509)","v":{"$error":"#N/A"}},{"$f":"_xlfn.XLOOKUP(A32,'Base-datos'!$B$457:$B$509,'Base-datos'!$C$457:$C$509)","v":{"$error":"#N/A"}},{"$f":"_xlfn.XLOOKUP(A32,'Base-datos'!$B$457:$B$509,'Base-datos'!$D$457:$D$509)","v":{"$error":"#N/A"}},null,null,{"$f":"IF(OR(P$13=\"La actividad no cumple con el total de los criterios de No Daño Significativo\",Q$13=\"El sector no cumple con las salvaguardas mínimas\"),\"\",IF(AND('Base-datos'!$B$715=\"Sí\",'Base-datos'!$B$716=\"\",'Base-datos'!$B$717=\"\"),IF(N32=\"La actividad sí contribuye sustancialmente a la sostenibilidad\",SUM(B32:L32),0),IF(AND('Base-datos'!$B$715=\"Sí\",'Base-datos'!$B$716=\"Sí\",'Base-datos'!$B$717=\"\"),IF(AND(N32=\"La actividad sí contribuye sustancialmente a la sostenibilidad\",O32=\"La actividad sí contribuye sustancialmente a la sostenibilidad\"),SUM(B32:L32),0),IF(AND('Base-datos'!$B$715=\"Sí\",'Base-datos'!$B$716=\"Sí\",'Base-datos'!$B$717=\"Sí\"),IF(AND(N32=\"La actividad sí contribuye sustancialmente a la sostenibilidad\",O32=\"La actividad sí contribuye sustancialmente a la sostenibilidad\",M32=\"La actividad sí contribuye sustancialmente a la sostenibilidad\"),SUM(B32:L32),0),IF(AND('Base-datos'!$B$715=\"\",'Base-datos'!$B$716=\"Sí\",'Base-datos'!$B$717=\"\"),IF(O32=\"La actividad sí contribuye sustancialmente a la sostenibilidad\",SUM(B32:L32),0),IF(AND('Base-datos'!$B$715=\"\",'Base-datos'!$B$716=\"\",'Base-datos'!$B$717=\"Sí\"),IF(M32=\"La actividad sí contribuye sustancialmente a la sostenibilidad\",SUM(B32:L32),0),IF(AND('Base-datos'!$B$715=\"\",'Base-datos'!$B$716=\"Sí\",'Base-datos'!$B$717=\"Sí\"),IF(AND(O32=\"La actividad sí contribuye sustancialmente a la sostenibilidad\",M32=\"La actividad sí contribuye sustancialmente a la sostenibilidad\"),SUM(B32:L32),0),IF(AND('Base-datos'!$B$715=\"Sí\",'Base-datos'!$B$716=\"\",'Base-datos'!$B$717=\"Sí\"),IF(AND(N32=\"La actividad sí contribuye sustancialmente a la sostenibilidad\",M32=\"La actividad sí contribuye sustancialmente a la sostenibilidad\"),SUM(B32:L32),0),\"Por definir\"))))))))","v":"Por definir"}]
[{"$f":"Agricultura!$C48","v":"Seleccione"},{"$f":"IF(Agricultura!$E48='Fondos-Inversionistas'!B$12,Agricultura!$B48,\"\")","v":""},{"$f":"IF(Agricultura!$E48='Fondos-Inversionistas'!C$12,Agricultura!$B48,\"\")","v":""},{"$f":"IF(Agricultura!$E48='Fondos-Inversionistas'!D$12,Agricultura!$B48,\"\")","v":""},{"$f":"IF(Agricultura!$E48='Fondos-Inversionistas'!E$12,Agricultura!$B48,\"\")","v":""},{"$f":"IF(Agricultura!$E48='Fondos-Inversionistas'!F$12,Agricultura!$B48,\"\")","v":""},{"$f":"IF(Agricultura!$E48='Fondos-Inversionistas'!G$12,Agricultura!$B48,\"\")","v":""},{"$f":"IF(Agricultura!$E48='Fondos-Inversionistas'!H$12,Agricultura!$B48,\"\")","v":""},{"$f":"IF(Agricultura!$E48='Fondos-Inversionistas'!I$12,Agricultura!$B48,\"\")","v":""},{"$f":"IF(Agricultura!$E48='Fondos-Inversionistas'!J$12,Agricultura!$B48,\"\")","v":""},{"$f":"IF(Agricultura!$E48='Fondos-Inversionistas'!K$12,Agricultura!$B48,\"\")","v":""},{"$f":"IF(Agricultura!$E48='Fondos-Inversionistas'!L$12,Agricultura!$B48,\"\")","v":""},{"$f":"_xlfn.XLOOKUP(A33,'Base-datos'!$B$457:$B$509,'Base-datos'!$F$457:$F$509)","v":{"$error":"#N/A"}},{"$f":"_xlfn.XLOOKUP(A33,'Base-datos'!$B$457:$B$509,'Base-datos'!$C$457:$C$509)","v":{"$error":"#N/A"}},{"$f":"_xlfn.XLOOKUP(A33,'Base-datos'!$B$457:$B$509,'Base-datos'!$D$457:$D$509)","v":{"$error":"#N/A"}},null,null,{"$f":"IF(OR(P$13=\"La actividad no cumple con el total de los criterios de No Daño Significativo\",Q$13=\"El sector no cumple con las salvaguardas mínimas\"),\"\",IF(AND('Base-datos'!$B$715=\"Sí\",'Base-datos'!$B$716=\"\",'Base-datos'!$B$717=\"\"),IF(N33=\"La actividad sí contribuye sustancialmente a la sostenibilidad\",SUM(B33:L33),0),IF(AND('Base-datos'!$B$715=\"Sí\",'Base-datos'!$B$716=\"Sí\",'Base-datos'!$B$717=\"\"),IF(AND(N33=\"La actividad sí contribuye sustancialmente a la sostenibilidad\",O33=\"La actividad sí contribuye sustancialmente a la sostenibilidad\"),SUM(B33:L33),0),IF(AND('Base-datos'!$B$715=\"Sí\",'Base-datos'!$B$716=\"Sí\",'Base-datos'!$B$717=\"Sí\"),IF(AND(N33=\"La actividad sí contribuye sustancialmente a la sostenibilidad\",O33=\"La actividad sí contribuye sustancialmente a la sostenibilidad\",M33=\"La actividad sí contribuye sustancialmente a la sostenibilidad\"),SUM(B33:L33),0),IF(AND('Base-datos'!$B$715=\"\",'Base-datos'!$B$716=\"Sí\",'Base-datos'!$B$717=\"\"),IF(O33=\"La actividad sí contribuye sustancialmente a la sostenibilidad\",SUM(B33:L33),0),IF(AND('Base-datos'!$B$715=\"\",'Base-datos'!$B$716=\"\",'Base-datos'!$B$717=\"Sí\"),IF(M33=\"La actividad sí contribuye sustancialmente a la sostenibilidad\",SUM(B33:L33),0),IF(AND('Base-datos'!$B$715=\"\",'Base-datos'!$B$716=\"Sí\",'Base-datos'!$B$717=\"Sí\"),IF(AND(O33=\"La actividad sí contribuye sustancialmente a la sostenibilidad\",M33=\"La actividad sí contribuye sustancialmente a la sostenibilidad\"),SUM(B33:L33),0),IF(AND('Base-datos'!$B$715=\"Sí\",'Base-datos'!$B$716=\"\",'Base-datos'!$B$717=\"Sí\"),IF(AND(N33=\"La actividad sí contribuye sustancialmente a la sostenibilidad\",M33=\"La actividad sí contribuye sustancialmente a la sostenibilidad\"),SUM(B33:L33),0),\"Por definir\"))))))))","v":"Por definir"}]
["Forestal",null,null,null,null,null,null,null,null,null,null,null,null,null,null,null,null,{"$f":"SUM(IF(FREQUENCY(MATCH(A35:A54, A35:A54, 0), MATCH(A35:A54, A35:A54, 0)) > 0, IF(NOT(ISERROR(R35:R54)), R35:R54, 0)))","v":0}]
[{"$f":"Forestal!$C10","v":"Seleccione"},{"$f":"IF(Forestal!$E10='Fondos-Inversionistas'!B$12,Forestal!$B10,\"\")","v":""},{"$f":"IF(Forestal!$E10='Fondos-Inversionistas'!C$12,Forestal!$B10,\"\")","v":""},{"$f":"IF(Forestal!$E10='Fondos-Inversionistas'!D$12,Forestal!$B10,\"\")","v":""},{"$f":"IF(Forestal!$E10='Fondos-Inversionistas'!E$12,Forestal!$B10,\"\")","v":""},{"$f":"IF(Forestal!$E10='Fondos-Inversionistas'!F$12,Forestal!$B10,\"\")","v":""},{"$f":"IF(Forestal!$E10='Fondos-Inversionistas'!G$12,Forestal!$B10,\"\")","v":""},{"$f":"IF(Forestal!$E10='Fondos-Inversionistas'!H$12,Forestal!$B10,\"\")","v":""},{"$f":"IF(Forestal!$E10='Fondos-Inversionistas'!I$12,Forestal!$B10,\"\")","v":""},{"$f":"IF(Forestal!$E10='Fondos-Inversionistas'!J$12,Forestal!$B10,\"\")","v":""},{"$f":"IF(Forestal!$E10='Fondos-Inversionistas'!K$12,Forestal!$B10,\"\")","v":""},{"$f":"IF(Forestal!$E10='Fondos-Inversionistas'!L$12,Forestal!$B10,\"\")","v":""},{"$f":"_xlfn.XLOOKUP(A35,'Base-datos'!$B$517:$B$520,'Base-datos'!$F$517:$F$520)","v":{"$error":"#N/A"}},{"$f":"_xlfn.XLOOKUP(A35,'Base-datos'!$B$517:$B$520,'Base-datos'!$C$517:$C$520)","v":{"$error":"#N/A"}},{"$f":"_xlfn.XLOOKUP(A35,'Base-datos'!$B$517:$B$520,'Base-datos'!$D$517:$D$520)","v":{"$error":"#N/A"}},{"$f":"IF(COUNTIF('Forestal-NDS'!I7:I48,\"No\")>0,\"La actividad no cumple con el total de los criterios de NDS\",\"La actividad cumple con los criterios de No Daño Significativo\")","v":"La actividad cumple con los criterios de No Daño Significativo"},{"$f":"IF(OR('Salvaguardas mínimas'!$G$10=\"Seleccione\",'Salvaguardas mínimas'!$G$13=\"Seleccione\",'Salvaguardas mínimas'!$G$16=\"Seleccione\",'Salvaguardas mínimas'!$G$7=\"Seleccione\"),\"No se han respondido todas las preguntas\",IF(OR('Salvaguardas mínimas'!$G$10=\"No\",'Salvaguardas mínimas'!$G$13=\"No\",'Salvaguardas mínimas'!$G$16=\"No\",'Salvaguardas mínimas'!$G$7=\"No\"),\"El sector no cumple con las salvaguardas mínimas\",\"La actividad sí cumple con las salvaguardas mínimas\"))","v":"No se han respondido todas las preguntas"},{"$f":"IF(OR(P$35=\"La actividad no cumple con el total de los criterios de No Daño Significativo\",Q$35=\"El sector no cumple con las salvaguardas mínimas\"),\"\",IF(AND('Base-datos'!$B$720=\"Sí\",'Base-datos'!$B$721=\"\",'Base-datos'!$B$722=\"\"),IF(N35=\"La actividad sí contribuye sustancialmente a la sostenibilidad\",SUM(B35:L35),0),IF(AND('Base-datos'!$B$720=\"Sí\",'Base-datos'!$B$721=\"Sí\",'Base-datos'!$B$722=\"\"),IF(AND(N35=\"La actividad sí contribuye sustancialmente a la sostenibilidad\",O35=\"La actividad sí contribuye sustancialmente a la sostenibilidad\"),SUM(B35:L35),0),IF(AND('Base-datos'!$B$720=\"Sí\",'Base-datos'!$B$721=\"Sí\",'Base-datos'!$B$722=\"Sí\"),IF(AND(N35=\"La actividad sí contribuye sustancialmente a la sostenibilidad\",O35=\"La actividad sí contribuye sustancialmente a la sostenibilidad\",M35=\"La actividad sí contribuye sustancialmente a la sostenibilidad\"),SUM(B35:L35),0),IF(AND('Base-datos'!$B$720=\"\",'Base-datos'!$B$721=\"Sí\",'Base-datos'!$B$722=\"\"),IF(O35=\"La actividad sí contribuye sustancialmente a la sostenibilidad\",SUM(B35:L35),0),IF(AND('Base-datos'!$B$720=\"\",'Base-datos'!$B$721=\"\",'Base-datos'!$B$722=\"Sí\"),IF(M35=\"La actividad sí contribuye sustancialmente a la sostenibilidad\",SUM(B35:L35),0),IF(AND('Base-datos'!$B$720=\"\",'Base-datos'!$B$721=\"Sí\",'Base-datos'!$B$722=\"Sí\"),IF(AND(O35=\"La actividad sí contribuye sustancialmente a la sostenibilidad\",M35=\"La actividad sí contribuye sustancialmente a la sostenibilidad\"),SUM(B35:L35),0),IF(AND('Base-datos'!$B$720=\"Sí\",'Base-datos'!$B$721=\"\",'Base-datos'!$B$722=\"Sí\"),IF(AND(N35=\"La actividad sí contribuye sustancialmente a la sostenibilidad\",M35=\"La actividad sí contribuye sustancialmente a la sostenibilidad\"),SUM(B35:L35),0),\"Por definir\"))))))))","v":"Por definir"}]
[{"$f":"Forestal!$C12","v":"Seleccione"},{"$f":"IF(Forestal!$E12='Fondos-Inversionistas'!B$12,Forestal!$B12,\"\")","v":""},{"$f":"IF(Forestal!$E12='Fondos-Inversionistas'!C$12,Forestal!$B12,\"\")","v":""},{"$f":"IF(Forestal!$E12='Fondos-Inversionistas'!D$12,Forestal!$B12,\"\")","v":""},{"$f":"IF(Forestal!$E12='Fondos-Inversionistas'!E$12,Forestal!$B12,\"\")","v":""},{"$f":"IF(Forestal!$E12='Fondos-Inversionistas'!F$12,Forestal!$B12,\"\")","v":""},{"$f":"IF(Forestal!$E12='Fondos-Inversionistas'!G$12,Forestal!$B12,\"\")","v":""},{"$f":"IF(Forestal!$E12='Fondos-Inversionistas'!H$12,Forestal!$B12,\"\")","v":""},{"$f":"IF(Forestal!$E12='Fondos-Inversionistas'!I$12,Forestal!$B12,\"\")","v":""},{"$f":"IF(Forestal!$E12='Fondos-Inversionistas'!J$12,Forestal!$B12,\"\")","v":""},{"$f":"IF(Forestal!$E12='Fondos-Inversionistas'!K$12,Forestal!$B12,\"\")","v":""},{"$f":"IF(Forestal!$E12='Fondos-Inversionistas'!L$12,Forestal!$B12,\"\")","v":""},{"$f":"_xlfn.XLOOKUP(A36,'Base-datos'!$B$517:$B$520,'Base-datos'!$F$517:$F$520)","v":{"$error":"#N/A"}},{"$f":"_xlfn.XLOOKUP(A36,'Base-datos'!$B$517:$B$520,'Base-datos'!$C$517:$C$520)","v":{"$error":"#N/A"}},{"$f":"_xlfn.XLOOKUP(A36,'Base-datos'!$B$517:$B$520,'Base-datos'!$D$517:$D$520)","v":{"$error":"#N/A"}},null,null,{"$f":"IF(OR(P$35=\"La actividad no cumple con el total de los criterios de No Daño Significativo\",Q$35=\"El sector no cumple con las salvaguardas mínimas\"),\"\",IF(AND('Base-datos'!$B$720=\"Sí\",'Base-datos'!$B$721=\"\",'Base-datos'!$B$722=\"\"),IF(N36=\"La actividad sí contribuye sustancialmente a la sostenibilidad\",SUM(B36:L36),0),IF(AND('Base-datos'!$B$720=\"Sí\",'Base-datos'!$B$721=\"Sí\",'Base-datos'!$B$722=\"\"),IF(AND(N36=\"La actividad sí contribuye sustancialmente a la sostenibilidad\",O36=\"La actividad sí contribuye sustancialmente a la sostenibilidad\"),SUM(B36:L36),0),IF(AND('Base-datos'!$B$720=\"Sí\",'Base-datos'!$B$721=\"Sí\",'Base-datos'!$B$722=\"Sí\"),IF(AND(N36=\"La actividad sí contribuye sustancialmente a la sostenibilidad\",O36=\"La actividad sí contribuye sustancialmente a la sostenibilidad\",M36=\"La actividad sí contribuye sustancialmente a la sostenibilidad\"),SUM(B36:L36),0),IF(AND('Base-datos'!$B$720=\"\",'Base-datos'!$B$721=\"Sí\",'Base-datos'!$B$722=\"\"),IF(O36=\"La actividad sí contribuye sustancialmente a la sostenibilidad\",SUM(B36:L36),0),IF(AND('Base-datos'!$B$720=\"\",'Base-datos'!$B$721=\"\",'Base-datos'!$B$722=\"Sí\"),IF(M36=\"La actividad sí contribuye sustancialmente a la sostenibilidad\",SUM(B36:L36),0),IF(AND('Base-datos'!$B$720=\"\",'Base-datos'!$B$721=\"Sí\",'Base-datos'!$B$722=\"Sí\"),IF(AND(O36=\"La actividad sí contribuye sustancialmente a la sostenibilidad\",M36=\"La actividad sí contribuye sustancialmente a la sostenibilidad\"),SUM(B36:L36),0),IF(AND('Base-datos'!$B$720=\"Sí\",'Base-datos'!$B$721=\"\",'Base-datos'!$B$722=\"Sí\"),IF(AND(N36=\"La actividad sí contribuye sustancialmente a la sostenibilidad\",M36=\"La actividad sí contribuye sustancialmente a la sostenibilidad\"),SUM(B36:L36),0),\"Por definir\"))))))))","v":"Por definir"}]
[{"$f":"Forestal!$C14","v":"Seleccione"},{"$f":"IF(Forestal!$E14='Fondos-Inversionistas'!B$12,Forestal!$B14,\"\")","v":""},{"$f":"IF(Forestal!$E14='Fondos-Inversionistas'!C$12,Forestal!$B14,\"\")","v":""},{"$f":"IF(Forestal!$E14='Fondos-Inversionistas'!D$12,Forestal!$B14,\"\")","v":""},{"$f":"IF(Forestal!$E14='Fondos-Inversionistas'!E$12,Forestal!$B14,\"\")","v":""},{"$f":"IF(Forestal!$E14='Fondos-Inversionistas'!F$12,Forestal!$B14,\"\")","v":""},{"$f":"IF(Forestal!$E14='Fondos-Inversionistas'!G$12,Forestal!$B14,\"\")","v":""},{"$f":"IF(Forestal!$E14='Fondos-Inversionistas'!H$12,Forestal!$B14,\"\")","v":""},{"$f":"IF(Forestal!$E14='Fondos-Inversionistas'!I$12,Forestal!$B14,\"\")","v":""},{"$f":"IF(Forestal!$E14='Fondos-Inversionistas'!J$12,Forestal!$B14,\"\")","v":""},{"$f":"IF(Forestal!$E14='Fondos-Inversionistas'!K$12,Forestal!$B14,\"\")","v":""},{"$f":"IF(Forestal!$E14='Fondos-Inversionistas'!L$12,Forestal!$B14,\"\")","v":""},{"$f":"_xlfn.XLOOKUP(A37,'Base-datos'!$B$517:$B$520,'Base-datos'!$F$517:$F$520)","v":{"$error":"#N/A"}},{"$f":"_xlfn.XLOOKUP(A37,'Base-datos'!$B$517:$B$520,'Base-datos'!$C$517:$C$520)","v":{"$error":"#N/A"}},{"$f":"_xlfn.XLOOKUP(A37,'Base-datos'!$B$517:$B$520,'Base-datos'!$D$517:$D$520)","v":{"$error":"#N/A"}},null,null,{"$f":"IF(OR(P$35=\"La actividad no cumple con el total de los criterios de No Daño Significativo\",Q$35=\"El sector no cumple con las salvaguardas mínimas\"),\"\",IF(AND('Base-datos'!$B$720=\"Sí\",'Base-datos'!$B$721=\"\",'Base-datos'!$B$722=\"\"),IF(N37=\"La actividad sí contribuye sustancialmente a la sostenibilidad\",SUM(B37:L37),0),IF(AND('Base-datos'!$B$720=\"Sí\",'Base-datos'!$B$721=\"Sí\",'Base-datos'!$B$722=\"\"),IF(AND(N37=\"La actividad sí contribuye sustancialmente a la sostenibilidad\",O37=\"La actividad sí contribuye sustancialmente a la sostenibilidad\"),SUM(B37:L37),0),IF(AND('Base-datos'!$B$720=\"Sí\",'Base-datos'!$B$721=\"Sí\",'Base-datos'!$B$722=\"Sí\"),IF(AND(N37=\"La actividad sí contribuye sustancialmente a la sostenibilidad\",O37=\"La actividad sí contribuye sustancialmente a la sostenibilidad\",M37=\"La actividad sí contribuye sustancialmente a la sostenibilidad\"),SUM(B37:L37),0),IF(AND('Base-datos'!$B$720=\"\",'Base-datos'!$B$721=\"Sí\",'Base-datos'!$B$722=\"\"),IF(O37=\"La actividad sí contribuye sustancialmente a la sostenibilidad\",SUM(B37:L37),0),IF(AND('Base-datos'!$B$720=\"\",'Base-datos'!$B$721=\"\",'Base-datos'!$B$722=\"Sí\"),IF(M37=\"La actividad sí contribuye sustancialmente a la sostenibilidad\",SUM(B37:L37),0),IF(AND('Base-datos'!$B$720=\"\",'Base-datos'!$B$721=\"Sí\",'Base-datos'!$B$722=\"Sí\"),IF(AND(O37=\"La actividad sí contribuye sustancialmente a la sostenibilidad\",M37=\"La actividad sí contribuye sustancialmente a la sostenibilidad\"),SUM(B37:L37),0),IF(AND('Base-datos'!$B$720=\"Sí\",'Base-datos'!$B$721=\"\",'Base-datos'!$B$722=\"Sí\"),IF(AND(N37=\"La actividad sí contribuye sustancialmente a la sostenibilidad\",M37=\"La actividad sí contribuye sustancialmente a la sostenibilidad\"),SUM(B37:L37),0),\"Por definir\"))))))))","v":"Por definir"}]
[{"$f":"Forestal!$C16","v":"Seleccione"},{"$f":"IF(Forestal!$E16='Fondos-Inversionistas'!B$12,Forestal!$B16,\"\")","v":""},{"$f":"IF(Forestal!$E16='Fondos-Inversionistas'!C$12,Forestal!$B16,\"\")","v":""},{"$f":"IF(Forestal!$E16='Fondos-Inversionistas'!D$12,Forestal!$B16,\"\")","v":""},{"$f":"IF(Forestal!$E16='Fondos-Inversionistas'!E$12,Forestal!$B16,\"\")","v":""},{"$f":"IF(Forestal!$E16='Fondos-Inversionistas'!F$12,Forestal!$B16,\"\")","v":""},{"$f":"IF(Forestal!$E16='Fondos-Inversionistas'!G$12,Forestal!$B16,\"\")","v":""},{"$f":"IF(Forestal!$E16='Fondos-Inversionistas'!H$12,Forestal!$B16,\"\")","v":""},{"$f":"IF(Forestal!$E16='Fondos-Inversionistas'!I$12,Forestal!$B16,\"\")","v":""},{"$f":"IF(Forestal!$E16='Fondos-Inversionistas'!J$12,Forestal!$B16,\"\")","v":""},{"$f":"IF(Forestal!$E16='Fondos-Inversionistas'!K$12,Forestal!$B16,\"\")","v":""},{"$f":"IF(Forestal!$E16='Fondos-Inversionistas'!L$12,Forestal!$B16,\"\")","v":""},{"$f":"_xlfn.XLOOKUP(A38,'Base-datos'!$B$517:$B$520,'Base-datos'!$F$517:$F$520)","v":{"$error":"#N/A"}},{"$f":"_xlfn.XLOOKUP(A38,'Base-datos'!$B$517:$B$520,'Base-datos'!$C$517:$C$520)","v":{"$error":"#N/A"}},{"$f":"_xlfn.XLOOKUP(A38,'Base-datos'!$B$517:$B$520,'Base-datos'!$D$517:$D$520)","v":{"$error":"#N/A"}},null,null,{"$f":"IF(OR(P$35=\"La actividad no cumple con el total de los criterios de No Daño Significativo\",Q$35=\"El sector no cumple con las salvaguardas mínimas\"),\"\",IF(AND('Base-datos'!$B$720=\"Sí\",'Base-datos'!$B$721=\"\",'Base-datos'!$B$722=\"\"),IF(N38=\"La actividad sí contribuye sustancialmente a la sostenibilidad\",SUM(B38:L38),0),IF(AND('Base-datos'!$B$720=\"Sí\",'Base-datos'!$B$721=\"Sí\",'Base-datos'!$B$722=\"\"),IF(AND(N38=\"La actividad sí contribuye sustancialmente a la sostenibilidad\",O38=\"La actividad sí contribuye sustancialmente a la sostenibilidad\"),SUM(B38:L38),0),IF(AND('Base-datos'!$B$720=\"Sí\",'Base-datos'!$B$721=\"Sí\",'Base-datos'!$B$722=\"Sí\"),IF(AND(N38=\"La actividad sí contribuye sustancialmente a la sostenibilidad\",O38=\"La actividad sí contribuye sustancialmente a la sostenibilidad\",M38=\"La actividad sí contribuye sustancialmente a la sostenibilidad\"),SUM(B38:L38),0),IF(AND('Base-datos'!$B$720=\"\",'Base-datos'!$B$721=\"Sí\",'Base-datos'!$B$722=\"\"),IF(O38=\"La actividad sí contribuye sustancialmente a la sostenibilidad\",SUM(B38:L38),0),IF(AND('Base-datos'!$B$720=\"\",'Base-datos'!$B$721=\"\",'Base-datos'!$B$722=\"Sí\"),IF(M38=\"La actividad sí contribuye sustancialmente a la sostenibilidad\",SUM(B38:L38),0),IF(AND('Base-datos'!$B$720=\"\",'Base-datos'!$B$721=\"Sí\",'Base-datos'!$B$722=\"Sí\"),IF(AND(O38=\"La actividad sí contribuye sustancialmente a la sostenibilidad\",M38=\"La actividad sí contribuye sustancialmente a la sostenibilidad\"),SUM(B38:L38),0),IF(AND('Base-datos'!$B$720=\"Sí\",'Base-datos'!$B$721=\"\",'Base-datos'!$B$722=\"Sí\"),IF(AND(N38=\"La actividad sí contribuye sustancialmente a la sostenibilidad\",M38=\"La actividad sí contribuye sustancialmente a la sostenibilidad\"),SUM(B38:L38),0),\"Por definir\"))))))))","v":"Por definir"}]
[{"$f":"Forestal!$C18","v":"Seleccione"},{"$f":"IF(Forestal!$E18='Fondos-Inversionistas'!B$12,Forestal!$B18,\"\")","v":""},{"$f":"IF(Forestal!$E18='Fondos-Inversionistas'!C$12,Forestal!$B18,\"\")","v":""},{"$f":"IF(Forestal!$E18='Fondos-Inversionistas'!D$12,Forestal!$B18,\"\")","v":""},{"$f":"IF(Forestal!$E18='Fondos-Inversionistas'!E$12,Forestal!$B18,\"\")","v":""},{"$f":"IF(Forestal!$E18='Fondos-Inversionistas'!F$12,Forestal!$B18,\"\")","v":""},{"$f":"IF(Forestal!$E18='Fondos-Inversionistas'!G$12,Forestal!$B18,\"\")","v":""},{"$f":"IF(Forestal!$E18='Fondos-Inversionistas'!H$12,Forestal!$B18,\"\")","v":""},{"$f":"IF(Forestal!$E18='Fondos-Inversionistas'!I$12,Forestal!$B18,\"\")","v":""},{"$f":"IF(Forestal!$E18='Fondos-Inversionistas'!J$12,Forestal!$B18,\"\")","v":""},{"$f":"IF(Forestal!$E18='Fondos-Inversionistas'!K$12,Forestal!$B18,\"\")","v":""},{"$f":"IF(Forestal!$E18='Fondos-Inversionistas'!L$12,Forestal!$B18,\"\")","v":""},{"$f":"_xlfn.XLOOKUP(A39,'Base-datos'!$B$517:$B$520,'Base-datos'!$F$517:$F$520)","v":{"$error":"#N/A"}},{"$f":"_xlfn.XLOOKUP(A39,'Base-datos'!$B$517:$B$520,'Base-datos'!$C$517:$C$520)","v":{"$error":"#N/A"}},{"$f":"_xlfn.XLOOKUP(A39,'Base-datos'!$B$517:$B$520,'Base-datos'!$D$517:$D$520)","v":{"$error":"#N/A"}},null,null,{"$f":"IF(OR(P$35=\"La actividad no cumple con el total de los criterios de No Daño Significativo\",Q$35=\"El sector no cumple con las salvaguardas mínimas\"),\"\",IF(AND('Base-datos'!$B$720=\"Sí\",'Base-datos'!$B$721=\"\",'Base-datos'!$B$722=\"\"),IF(N39=\"La actividad sí contribuye sustancialmente a la sostenibilidad\",SUM(B39:L39),0),IF(AND('Base-datos'!$B$720=\"Sí\",'Base-datos'!$B$721=\"Sí\",'Base-datos'!$B$722=\"\"),IF(AND(N39=\"La actividad sí contribuye sustancialmente a la sostenibilidad\",O39=\"La actividad sí contribuye sustancialmente a la sostenibilidad\"),SUM(B39:L39),0),IF(AND('Base-datos'!$B$720=\"Sí\",'Base-datos'!$B$721=\"Sí\",'Base-datos'!$B$722=\"Sí\"),IF(AND(N39=\"La actividad sí contribuye sustancialmente a la sostenibilidad\",O39=\"La actividad sí contribuye sustancialmente a la sostenibilidad\",M39=\"La actividad sí contribuye sustancialmente a la sostenibilidad\"),SUM(B39:L39),0),IF(AND('Base-datos'!$B$720=\"\",'Base-datos'!$B$721=\"Sí\",'Base-datos'!$B$722=\"\"),IF(O39=\"La actividad sí contribuye sustancialmente a la sostenibilidad\",SUM(B39:L39),0),IF(AND('Base-datos'!$B$720=\"\",'Base-datos'!$B$721=\"\",'Base-datos'!$B$722=\"Sí\"),IF(M39=\"La actividad sí contribuye sustancialmente a la sostenibilidad\",SUM(B39:L39),0),IF(AND('Base-datos'!$B$720=\"\",'Base-datos'!$B$721=\"Sí\",'Base-datos'!$B$722=\"Sí\"),IF(AND(O39=\"La actividad sí contribuye sustancialmente a la sostenibilidad\",M39=\"La actividad sí contribuye sustancialmente a la sostenibilidad\"),SUM(B39:L39),0),IF(AND('Base-datos'!$B$720=\"Sí\",'Base-datos'!$B$721=\"\",'Base-datos'!$B$722=\"Sí\"),IF(AND(N39=\"La actividad sí contribuye sustancialmente a la sostenibilidad\",M39=\"La actividad sí contribuye sustancialmente a la sostenibilidad\"),SUM(B39:L39),0),\"Por definir\"))))))))","v":"Por definir"}]
[{"$f":"Forestal!$C20","v":"Seleccione"},{"$f":"IF(Forestal!$E20='Fondos-Inversionistas'!B$12,Forestal!$B20,\"\")","v":""},{"$f":"IF(Forestal!$E20='Fondos-Inversionistas'!C$12,Forestal!$B20,\"\")","v":""},{"$f":"IF(Forestal!$E20='Fondos-Inversionistas'!D$12,Forestal!$B20,\"\")","v":""},{"$f":"IF(Forestal!$E20='Fondos-Inversionistas'!E$12,Forestal!$B20,\"\")","v":""},{"$f":"IF(Forestal!$E20='Fondos-Inversionistas'!F$12,Forestal!$B20,\"\")","v":""},{"$f":"IF(Forestal!$E20='Fondos-Inversionistas'!G$12,Forestal!$B20,\"\")","v":""},{"$f":"IF(Forestal!$E20='Fondos-Inversionistas'!H$12,Forestal!$B20,\"\")","v":""},{"$f":"IF(Forestal!$E20='Fondos-Inversionistas'!I$12,Forestal!$B20,\"\")","v":""},{"$f":"IF(Forestal!$E20='Fondos-Inversionistas'!J$12,Forestal!$B20,\"\")","v":""},{"$f":"IF(Forestal!$E20='Fondos-Inversionistas'!K$12,Forestal!$B20,\"\")","v":""},{"$f":"IF(Forestal!$E20='Fondos-Inversionistas'!L$12,Forestal!$B20,\"\")","v":""},{"$f":"_xlfn.XLOOKUP(A40,'Base-datos'!$B$517:$B$520,'Base-datos'!$F$517:$F$520)","v":{"$error":"#N/A"}},{"$f":"_xlfn.XLOOKUP(A40,'Base-datos'!$B$517:$B$520,'Base-datos'!$C$517:$C$520)","v":{"$error":"#N/A"}},{"$f":"_xlfn.XLOOKUP(A40,'Base-datos'!$B$517:$B$520,'Base-datos'!$D$517:$D$520)","v":{"$error":"#N/A"}},null,null,{"$f":"IF(OR(P$35=\"La actividad no cumple con el total de los criterios de No Daño Significativo\",Q$35=\"El sector no cumple con las salvaguardas mínimas\"),\"\",IF(AND('Base-datos'!$B$720=\"Sí\",'Base-datos'!$B$721=\"\",'Base-datos'!$B$722=\"\"),IF(N40=\"La actividad sí contribuye sustancialmente a la sostenibilidad\",SUM(B40:L40),0),IF(AND('Base-datos'!$B$720=\"Sí\",'Base-datos'!$B$721=\"Sí\",'Base-datos'!$B$722=\"\"),IF(AND(N40=\"La actividad sí contribuye sustancialmente a la sostenibilidad\",O40=\"La actividad sí contribuye sustancialmente a la sostenibilidad\"),SUM(B40:L40),0),IF(AND('Base-datos'!$B$720=\"Sí\",'Base-datos'!$B$721=\"Sí\",'Base-datos'!$B$722=\"Sí\"),IF(AND(N40=\"La actividad sí contribuye sustancialmente a la sostenibilidad\",O40=\"La actividad sí contribuye sustancialmente a la sostenibilidad\",M40=\"La actividad sí contribuye sustancialmente a la sostenibilidad\"),SUM(B40:L40),0),IF(AND('Base-datos'!$B$720=\"\",'Base-datos'!$B$721=\"Sí\",'Base-datos'!$B$722=\"\"),IF(O40=\"La actividad sí contribuye sustancialmente a la sostenibilidad\",SUM(B40:L40),0),IF(AND('Base-datos'!$B$720=\"\",'Base-datos'!$B$721=\"\",'Base-datos'!$B$722=\"Sí\"),IF(M40=\"La actividad sí contribuye sustancialmente a la sostenibilidad\",SUM(B40:L40),0),IF(AND('Base-datos'!$B$720=\"\",'Base-datos'!$B$721=\"Sí\",'Base-datos'!$B$722=\"Sí\"),IF(AND(O40=\"La actividad sí contribuye sustancialmente a la sostenibilidad\",M40=\"La actividad sí contribuye sustancialmente a la sostenibilidad\"),SUM(B40:L40),0),IF(AND('Base-datos'!$B$720=\"Sí\",'Base-datos'!$B$721=\"\",'Base-datos'!$B$722=\"Sí\"),IF(AND(N40=\"La actividad sí contribuye sustancialmente a la sostenibilidad\",M40=\"La actividad sí contribuye sustancialmente a la sostenibilidad\"),SUM(B40:L40),0),\"Por definir\"))))))))","v":"Por definir"}]
[{"$f":"Forestal!$C22","v":"Seleccione"},{"$f":"IF(Forestal!$E22='Fondos-Inversionistas'!B$12,Forestal!$B22,\"\")","v":""},{"$f":"IF(Forestal!$E22='Fondos-Inversionistas'!C$12,Forestal!$B22,\"\")","v":""},{"$f":"IF(Forestal!$E22='Fondos-Inversionistas'!D$12,Forestal!$B22,\"\")","v":""},{"$f":"IF(Forestal!$E22='Fondos-Inversionistas'!E$12,Forestal!$B22,\"\")","v":""},{"$f":"IF(Forestal!$E22='Fondos-Inversionistas'!F$12,Forestal!$B22,\"\")","v":""},{"$f":"IF(Forestal!$E22='Fondos-Inversionistas'!G$12,Forestal!$B22,\"\")","v":""},{"$f":"IF(Forestal!$E22='Fondos-Inversionistas'!H$12,Forestal!$B22,\"\")","v":""},{"$f":"IF(Forestal!$E22='Fondos-Inversionistas'!I$12,Forestal!$B22,\"\")","v":""},{"$f":"IF(Forestal!$E22='Fondos-Inversionistas'!J$12,Forestal!$B22,\"\")","v":""},{"$f":"IF(Forestal!$E22='Fondos-Inversionistas'!K$12,Forestal!$B22,\"\")","v":""},{"$f":"IF(Forestal!$E22='Fondos-Inversionistas'!L$12,Forestal!$B22,\"\")","v":""},{"$f":"_xlfn.XLOOKUP(A41,'Base-datos'!$B$517:$B$520,'Base-datos'!$F$517:$F$520)","v":{"$error":"#N/A"}},{"$f":"_xlfn.XLOOKUP(A41,'Base-datos'!$B$517:$B$520,'Base-datos'!$C$517:$C$520)","v":{"$error":"#N/A"}},{"$f":"_xlfn.XLOOKUP(A41,'Base-datos'!$B$517:$B$520,'Base-datos'!$D$517:$D$520)","v":{"$error":"#N/A"}},null,null,{"$f":"IF(OR(P$35=\"La actividad no cumple con el total de los criterios de No Daño Significativo\",Q$35=\"El sector no cumple con las salvaguardas mínimas\"),\"\",IF(AND('Base-datos'!$B$720=\"Sí\",'Base-datos'!$B$721=\"\",'Base-datos'!$B$722=\"\"),IF(N41=\"La actividad sí contribuye sustancialmente a la sostenibilidad\",SUM(B41:L41),0),IF(AND('Base-datos'!$B$720=\"Sí\",'Base-datos'!$B$721=\"Sí\",'Base-datos'!$B$722=\"\"),IF(AND(N41=\"La actividad sí contribuye sustancialmente a la sostenibilidad\",O41=\"La actividad sí contribuye sustancialmente a la sostenibilidad\"),SUM(B41:L41),0),IF(AND('Base-datos'!$B$720=\"Sí\",'Base-datos'!$B$721=\"Sí\",'Base-datos'!$B$722=\"Sí\"),IF(AND(N41=\"La actividad sí contribuye sustancialmente a la sostenibilidad\",O41=\"La actividad sí contribuye sustancialmente a la sostenibilidad\",M41=\"La actividad sí contribuye sustancialmente a la sostenibilidad\"),SUM(B41:L41),0),IF(AND('Base-datos'!$B$720=\"\",'Base-datos'!$B$721=\"Sí\",'Base-datos'!$B$722=\"\"),IF(O41=\"La actividad sí contribuye sustancialmente a la sostenibilidad\",SUM(B41:L41),0),IF(AND('Base-datos'!$B$720=\"\",'Base-datos'!$B$721=\"\",'Base-datos'!$B$722=\"Sí\"),IF(M41=\"La actividad sí contribuye sustancialmente a la sostenibilidad\",SUM(B41:L41),0),IF(AND('Base-datos'!$B$720=\"\",'Base-datos'!$B$721=\"Sí\",'Base-datos'!$B$722=\"Sí\"),IF(AND(O41=\"La actividad sí contribuye sustancialmente a la sostenibilidad\",M41=\"La actividad sí contribuye sustancialmente a la sostenibilidad\"),SUM(B41:L41),0),IF(AND('Base-datos'!$B$720=\"Sí\",'Base-datos'!$B$721=\"\",'Base-datos'!$B$722=\"Sí\"),IF(AND(N41=\"La actividad sí contribuye sustancialmente a la sostenibilidad\",M41=\"La actividad sí contribuye sustancialmente a la sostenibilidad\"),SUM(B41:L41),0),\"Por definir\"))))))))","v":"Por definir"}]
[{"$f":"Forestal!$C24","v":"Seleccione"},{"$f":"IF(Forestal!$E24='Fondos-Inversionistas'!B$12,Forestal!$B24,\"\")","v":""},{"$f":"IF(Forestal!$E24='Fondos-Inversionistas'!C$12,Forestal!$B24,\"\")","v":""},{"$f":"IF(Forestal!$E24='Fondos-Inversionistas'!D$12,Forestal!$B24,\"\")","v":""},{"$f":"IF(Forestal!$E24='Fondos-Inversionistas'!E$12,Forestal!$B24,\"\")","v":""},{"$f":"IF(Forestal!$E24='Fondos-Inversionistas'!F$12,Forestal!$B24,\"\")","v":""},{"$f":"IF(Forestal!$E24='Fondos-Inversionistas'!G$12,Forestal!$B24,\"\")","v":""},{"$f":"IF(Forestal!$E24='Fondos-Inversionistas'!H$12,Forestal!$B24,\"\")","v":""},{"$f":"IF(Forestal!$E24='Fondos-Inversionistas'!I$12,Forestal!$B24,\"\")","v":""},{"$f":"IF(Forestal!$E24='Fondos-Inversionistas'!J$12,Forestal!$B24,\"\")","v":""},{"$f":"IF(Forestal!$E24='Fondos-Inversionistas'!K$12,Forestal!$B24,\"\")","v":""},{"$f":"IF(Forestal!$E24='Fondos-Inversionistas'!L$12,Forestal!$B24,\"\")","v":""},{"$f":"_xlfn.XLOOKUP(A42,'Base-datos'!$B$517:$B$520,'Base-datos'!$F$517:$F$520)","v":{"$error":"#N/A"}},{"$f":"_xlfn.XLOOKUP(A42,'Base-datos'!$B$517:$B$520,'Base-datos'!$C$517:$C$520)","v":{"$error":"#N/A"}},{"$f":"_xlfn.XLOOKUP(A42,'Base-datos'!$B$517:$B$520,'Base-datos'!$D$517:$D$520)","v":{"$error":"#N/A"}},null,null,{"$f":"IF(OR(P$35=\"La actividad no cumple con el total de los criterios de No Daño Significativo\",Q$35=\"El sector no cumple con las salvaguardas mínimas\"),\"\",IF(AND('Base-datos'!$B$720=\"Sí\",'Base-datos'!$B$721=\"\",'Base-datos'!$B$722=\"\"),IF(N42=\"La actividad sí contribuye sustancialmente a la sostenibilidad\",SUM(B42:L42),0),IF(AND('Base-datos'!$B$720=\"Sí\",'Base-datos'!$B$721=\"Sí\",'Base-datos'!$B$722=\"\"),IF(AND(N42=\"La actividad sí contribuye sustancialmente a la sostenibilidad\",O42=\"La actividad sí contribuye sustancialmente a la sostenibilidad\"),SUM(B42:L42),0),IF(AND('Base-datos'!$B$720=\"Sí\",'Base-datos'!$B$721=\"Sí\",'Base-datos'!$B$722=\"Sí\"),IF(AND(N42=\"La actividad sí contribuye sustancialmente a la sostenibilidad\",O42=\"La actividad sí contribuye sustancialmente a la sostenibilidad\",M42=\"La actividad sí contribuye sustancialmente a la sostenibilidad\"),SUM(B42:L42),0),IF(AND('Base-datos'!$B$720=\"\",'Base-datos'!$B$721=\"Sí\",'Base-datos'!$B$722=\"\"),IF(O42=\"La actividad sí contribuye sustancialmente a la sostenibilidad\",SUM(B42:L42),0),IF(AND('Base-datos'!$B$720=\"\",'Base-datos'!$B$721=\"\",'Base-datos'!$B$722=\"Sí\"),IF(M42=\"La actividad sí contribuye sustancialmente a la sostenibilidad\",SUM(B42:L42),0),IF(AND('Base-datos'!$B$720=\"\",'Base-datos'!$B$721=\"Sí\",'Base-datos'!$B$722=\"Sí\"),IF(AND(O42=\"La actividad sí contribuye sustancialmente a la sostenibilidad\",M42=\"La actividad sí contribuye sustancialmente a la sostenibilidad\"),SUM(B42:L42),0),IF(AND('Base-datos'!$B$720=\"Sí\",'Base-datos'!$B$721=\"\",'Base-datos'!$B$722=\"Sí\"),IF(AND(N42=\"La actividad sí contribuye sustancialmente a la sostenibilidad\",M42=\"La actividad sí contribuye sustancialmente a la sostenibilidad\"),SUM(B42:L42),0),\"Por definir\"))))))))","v":"Por definir"}]
[{"$f":"Forestal!$C26","v":"Seleccione"},{"$f":"IF(Forestal!$E26='Fondos-Inversionistas'!B$12,Forestal!$B26,\"\")","v":""},{"$f":"IF(Forestal!$E26='Fondos-Inversionistas'!C$12,Forestal!$B26,\"\")","v":""},{"$f":"IF(Forestal!$E26='Fondos-Inversionistas'!D$12,Forestal!$B26,\"\")","v":""},{"$f":"IF(Forestal!$E26='Fondos-Inversionistas'!E$12,Forestal!$B26,\"\")","v":""},{"$f":"IF(Forestal!$E26='Fondos-Inversionistas'!F$12,Forestal!$B26,\"\")","v":""},{"$f":"IF(Forestal!$E26='Fondos-Inversionistas'!G$12,Forestal!$B26,\"\")","v":""},{"$f":"IF(Forestal!$E26='Fondos-Inversionistas'!H$12,Forestal!$B26,\"\")","v":""},{"$f":"IF(Forestal!$E26='Fondos-Inversionistas'!I$12,Forestal!$B26,\"\")","v":""},{"$f":"IF(Forestal!$E26='Fondos-Inversionistas'!J$12,Forestal!$B26,\"\")","v":""},{"$f":"IF(Forestal!$E26='Fondos-Inversionistas'!K$12,Forestal!$B26,\"\")","v":""},{"$f":"IF(Forestal!$E26='Fondos-Inversionistas'!L$12,Forestal!$B26,\"\")","v":""},{"$f":"_xlfn.XLOOKUP(A43,'Base-datos'!$B$517:$B$520,'Base-datos'!$F$517:$F$520)","v":{"$error":"#N/A"}},{"$f":"_xlfn.XLOOKUP(A43,'Base-datos'!$B$517:$B$520,'Base-datos'!$C$517:$C$520)","v":{"$error":"#N/A"}},{"$f":"_xlfn.XLOOKUP(A43,'Base-datos'!$B$517:$B$520,'Base-datos'!$D$517:$D$520)","v":{"$error":"#N/A"}},null,null,{"$f":"IF(OR(P$35=\"La actividad no cumple con el total de los criterios de No Daño Significativo\",Q$35=\"El sector no cumple con las salvaguardas mínimas\"),\"\",IF(AND('Base-datos'!$B$720=\"Sí\",'Base-datos'!$B$721=\"\",'Base-datos'!$B$722=\"\"),IF(N43=\"La actividad sí contribuye sustancialmente a la sostenibilidad\",SUM(B43:L43),0),IF(AND('Base-datos'!$B$720=\"Sí\",'Base-datos'!$B$721=\"Sí\",'Base-datos'!$B$722=\"\"),IF(AND(N43=\"La actividad sí contribuye sustancialmente a la sostenibilidad\",O43=\"La actividad sí contribuye sustancialmente a la sostenibilidad\"),SUM(B43:L43),0),IF(AND('Base-datos'!$B$720=\"Sí\",'Base-datos'!$B$721=\"Sí\",'Base-datos'!$B$722=\"Sí\"),IF(AND(N43=\"La actividad sí contribuye sustancialmente a la sostenibilidad\",O43=\"La actividad sí contribuye sustancialmente a la sostenibilidad\",M43=\"La actividad sí contribuye sustancialmente a la sostenibilidad\"),SUM(B43:L43),0),IF(AND('Base-datos'!$B$720=\"\",'Base-datos'!$B$721=\"Sí\",'Base-datos'!$B$722=\"\"),IF(O43=\"La actividad sí contribuye sustancialmente a la sostenibilidad\",SUM(B43:L43),0),IF(AND('Base-datos'!$B$720=\"\",'Base-datos'!$B$721=\"\",'Base-datos'!$B$722=\"Sí\"),IF(M43=\"La actividad sí contribuye sustancialmente a la sostenibilidad\",SUM(B43:L43),0),IF(AND('Base-datos'!$B$720=\"\",'Base-datos'!$B$721=\"Sí\",'Base-datos'!$B$722=\"Sí\"),IF(AND(O43=\"La actividad sí contribuye sustancialmente a la sostenibilidad\",M43=\"La actividad sí contribuye sustancialmente a la sostenibilidad\"),SUM(B43:L43),0),IF(AND('Base-datos'!$B$720=\"Sí\",'Base-datos'!$B$721=\"\",'Base-datos'!$B$722=\"Sí\"),IF(AND(N43=\"La actividad sí contribuye sustancialmente a la sostenibilidad\",M43=\"La actividad sí contribuye sustancialmente a la sostenibilidad\"),SUM(B43:L43),0),\"Por definir\"))))))))","v":"Por definir"}]
[{"$f":"Forestal!$C28","v":"Seleccione"},{"$f":"IF(Forestal!$E28='Fondos-Inversionistas'!B$12,Forestal!$B28,\"\")","v":""},{"$f":"IF(Forestal!$E28='Fondos-Inversionistas'!C$12,Forestal!$B28,\"\")","v":""},{"$f":"IF(Forestal!$E28='Fondos-Inversionistas'!D$12,Forestal!$B28,\"\")","v":""},{"$f":"IF(Forestal!$E28='Fondos-Inversionistas'!E$12,Forestal!$B28,\"\")","v":""},{"$f":"IF(Forestal!$E28='Fondos-Inversionistas'!F$12,Forestal!$B28,\"\")","v":""},{"$f":"IF(Forestal!$E28='Fondos-Inversionistas'!G$12,Forestal!$B28,\"\")","v":""},{"$f":"IF(Forestal!$E28='Fondos-Inversionistas'!H$12,Forestal!$B28,\"\")","v":""},{"$f":"IF(Forestal!$E28='Fondos-Inversionistas'!I$12,Forestal!$B28,\"\")","v":""},{"$f":"IF(Forestal!$E28='Fondos-Inversionistas'!J$12,Forestal!$B28,\"\")","v":""},{"$f":"IF(Forestal!$E28='Fondos-Inversionistas'!K$12,Forestal!$B28,\"\")","v":""},{"$f":"IF(Forestal!$E28='Fondos-Inversionistas'!L$12,Forestal!$B28,\"\")","v":""},{"$f":"_xlfn.XLOOKUP(A44,'Base-datos'!$B$517:$B$520,'Base-datos'!$F$517:$F$520)","v":{"$error":"#N/A"}},{"$f":"_xlfn.XLOOKUP(A44,'Base-datos'!$B$517:$B$520,'Base-datos'!$C$517:$C$520)","v":{"$error":"#N/A"}},{"$f":"_xlfn.XLOOKUP(A44,'Base-datos'!$B$517:$B$520,'Base-datos'!$D$517:$D$520)","v":{"$error":"#N/A"}},null,null,{"$f":"IF(OR(P$35=\"La actividad no cumple con el total de los criterios de No Daño Significativo\",Q$35=\"El sector no cumple con las salvaguardas mínimas\"),\"\",IF(AND('Base-datos'!$B$720=\"Sí\",'Base-datos'!$B$721=\"\",'Base-datos'!$B$722=\"\"),IF(N44=\"La actividad sí contribuye sustancialmente a la sostenibilidad\",SUM(B44:L44),0),IF(AND('Base-datos'!$B$720=\"Sí\",'Base-datos'!$B$721=\"Sí\",'Base-datos'!$B$722=\"\"),IF(AND(N44=\"La actividad sí contribuye sustancialmente a la sostenibilidad\",O44=\"La actividad sí contribuye sustancialmente a la sostenibilidad\"),SUM(B44:L44),0),IF(AND('Base-datos'!$B$720=\"Sí\",'Base-datos'!$B$721=\"Sí\",'Base-datos'!$B$722=\"Sí\"),IF(AND(N44=\"La actividad sí contribuye sustancialmente a la sostenibilidad\",O44=\"La actividad sí contribuye sustancialmente a la sostenibilidad\",M44=\"La actividad sí contribuye sustancialmente a la sostenibilidad\"),SUM(B44:L44),0),IF(AND('Base-datos'!$B$720=\"\",'Base-datos'!$B$721=\"Sí\",'Base-datos'!$B$722=\"\"),IF(O44=\"La actividad sí contribuye sustancialmente a la sostenibilidad\",SUM(B44:L44),0),IF(AND('Base-datos'!$B$720=\"\",'Base-datos'!$B$721=\"\",'Base-datos'!$B$722=\"Sí\"),IF(M44=\"La actividad sí contribuye sustancialmente a la sostenibilidad\",SUM(B44:L44),0),IF(AND('Base-datos'!$B$720=\"\",'Base-datos'!$B$721=\"Sí\",'Base-datos'!$B$722=\"Sí\"),IF(AND(O44=\"La actividad sí contribuye sustancialmente a la sostenibilidad\",M44=\"La actividad sí contribuye sustancialmente a la sostenibilidad\"),SUM(B44:L44),0),IF(AND('Base-datos'!$B$720=\"Sí\",'Base-datos'!$B$721=\"\",'Base-datos'!$B$722=\"Sí\"),IF(AND(N44=\"La actividad sí contribuye sustancialmente a la sostenibilidad\",M44=\"La actividad sí contribuye sustancialmente a la sostenibilidad\"),SUM(B44:L44),0),\"Por definir\"))))))))","v":"Por definir"}]
[{"$f":"Forestal!$C30","v":"Seleccione"},{"$f":"IF(Forestal!$E30='Fondos-Inversionistas'!B$12,Forestal!$B30,\"\")","v":""},{"$f":"IF(Forestal!$E30='Fondos-Inversionistas'!C$12,Forestal!$B30,\"\")","v":""},{"$f":"IF(Forestal!$E30='Fondos-Inversionistas'!D$12,Forestal!$B30,\"\")","v":""},{"$f":"IF(Forestal!$E30='Fondos-Inversionistas'!E$12,Forestal!$B30,\"\")","v":""},{"$f":"IF(Forestal!$E30='Fondos-Inversionistas'!F$12,Forestal!$B30,\"\")","v":""},{"$f":"IF(Forestal!$E30='Fondos-Inversionistas'!G$12,Forestal!$B30,\"\")","v":""},{"$f":"IF(Forestal!$E30='Fondos-Inversionistas'!H$12,Forestal!$B30,\"\")","v":""},{"$f":"IF(Forestal!$E30='Fondos-Inversionistas'!I$12,Forestal!$B30,\"\")","v":""},{"$f":"IF(Forestal!$E30='Fondos-Inversionistas'!J$12,Forestal!$B30,\"\")","v":""},{"$f":"IF(Forestal!$E30='Fondos-Inversionistas'!K$12,Forestal!$B30,\"\")","v":""},{"$f":"IF(Forestal!$E30='Fondos-Inversionistas'!L$12,Forestal!$B30,\"\")","v":""},{"$f":"_xlfn.XLOOKUP(A45,'Base-datos'!$B$517:$B$520,'Base-datos'!$F$517:$F$520)","v":{"$error":"#N/A"}},{"$f":"_xlfn.XLOOKUP(A45,'Base-datos'!$B$517:$B$520,'Base-datos'!$C$517:$C$520)","v":{"$error":"#N/A"}},{"$f":"_xlfn.XLOOKUP(A45,'Base-datos'!$B$517:$B$520,'Base-datos'!$D$517:$D$520)","v":{"$error":"#N/A"}},null,null,{"$f":"IF(OR(P$35=\"La actividad no cumple con el total de los criterios de No Daño Significativo\",Q$35=\"El sector no cumple con las salvaguardas mínimas\"),\"\",IF(AND('Base-datos'!$B$720=\"Sí\",'Base-datos'!$B$721=\"\",'Base-datos'!$B$722=\"\"),IF(N45=\"La actividad sí contribuye sustancialmente a la sostenibilidad\",SUM(B45:L45),0),IF(AND('Base-datos'!$B$720=\"Sí\",'Base-datos'!$B$721=\"Sí\",'Base-datos'!$B$722=\"\"),IF(AND(N45=\"La actividad sí contribuye sustancialmente a la sostenibilidad\",O45=\"La actividad sí contribuye sustancialmente a la sostenibilidad\"),SUM(B45:L45),0),IF(AND('Base-datos'!$B$720=\"Sí\",'Base-datos'!$B$721=\"Sí\",'Base-datos'!$B$722=\"Sí\"),IF(AND(N45=\"La actividad sí contribuye sustancialmente a la sostenibilidad\",O45=\"La actividad sí contribuye sustancialmente a la sostenibilidad\",M45=\"La actividad sí contribuye sustancialmente a la sostenibilidad\"),SUM(B45:L45),0),IF(AND('Base-datos'!$B$720=\"\",'Base-datos'!$B$721=\"Sí\",'Base-datos'!$B$722=\"\"),IF(O45=\"La actividad sí contribuye sustancialmente a la sostenibilidad\",SUM(B45:L45),0),IF(AND('Base-datos'!$B$720=\"\",'Base-datos'!$B$721=\"\",'Base-datos'!$B$722=\"Sí\"),IF(M45=\"La actividad sí contribuye sustancialmente a la sostenibilidad\",SUM(B45:L45),0),IF(AND('Base-datos'!$B$720=\"\",'Base-datos'!$B$721=\"Sí\",'Base-datos'!$B$722=\"Sí\"),IF(AND(O45=\"La actividad sí contribuye sustancialmente a la sostenibilidad\",M45=\"La actividad sí contribuye sustancialmente a la sostenibilidad\"),SUM(B45:L45),0),IF(AND('Base-datos'!$B$720=\"Sí\",'Base-datos'!$B$721=\"\",'Base-datos'!$B$722=\"Sí\"),IF(AND(N45=\"La actividad sí contribuye sustancialmente a la sostenibilidad\",M45=\"La actividad sí contribuye sustancialmente a la sostenibilidad\"),SUM(B45:L45),0),\"Por definir\"))))))))","v":"Por definir"}]
[{"$f":"Forestal!$C32","v":"Seleccione"},{"$f":"IF(Forestal!$E32='Fondos-Inversionistas'!B$12,Forestal!$B32,\"\")","v":""},{"$f":"IF(Forestal!$E32='Fondos-Inversionistas'!C$12,Forestal!$B32,\"\")","v":""},{"$f":"IF(Forestal!$E32='Fondos-Inversionistas'!D$12,Forestal!$B32,\"\")","v":""},{"$f":"IF(Forestal!$E32='Fondos-Inversionistas'!E$12,Forestal!$B32,\"\")","v":""},{"$f":"IF(Forestal!$E32='Fondos-Inversionistas'!F$12,Forestal!$B32,\"\")","v":""},{"$f":"IF(Forestal!$E32='Fondos-Inversionistas'!G$12,Forestal!$B32,\"\")","v":""},{"$f":"IF(Forestal!$E32='Fondos-Inversionistas'!H$12,Forestal!$B32,\"\")","v":""},{"$f":"IF(Forestal!$E32='Fondos-Inversionistas'!I$12,Forestal!$B32,\"\")","v":""},{"$f":"IF(Forestal!$E32='Fondos-Inversionistas'!J$12,Forestal!$B32,\"\")","v":""},{"$f":"IF(Forestal!$E32='Fondos-Inversionistas'!K$12,Forestal!$B32,\"\")","v":""},{"$f":"IF(Forestal!$E32='Fondos-Inversionistas'!L$12,Forestal!$B32,\"\")","v":""},{"$f":"_xlfn.XLOOKUP(A46,'Base-datos'!$B$517:$B$520,'Base-datos'!$F$517:$F$520)","v":{"$error":"#N/A"}},{"$f":"_xlfn.XLOOKUP(A46,'Base-datos'!$B$517:$B$520,'Base-datos'!$C$517:$C$520)","v":{"$error":"#N/A"}},{"$f":"_xlfn.XLOOKUP(A46,'Base-datos'!$B$517:$B$520,'Base-datos'!$D$517:$D$520)","v":{"$error":"#N/A"}},null,null,{"$f":"IF(OR(P$35=\"La actividad no cumple con el total de los criterios de No Daño Significativo\",Q$35=\"El sector no cumple con las salvaguardas mínimas\"),\"\",IF(AND('Base-datos'!$B$720=\"Sí\",'Base-datos'!$B$721=\"\",'Base-datos'!$B$722=\"\"),IF(N46=\"La actividad sí contribuye sustancialmente a la sostenibilidad\",SUM(B46:L46),0),IF(AND('Base-datos'!$B$720=\"Sí\",'Base-datos'!$B$721=\"Sí\",'Base-datos'!$B$722=\"\"),IF(AND(N46=\"La actividad sí contribuye sustancialmente a la sostenibilidad\",O46=\"La actividad sí contribuye sustancialmente a la sostenibilidad\"),SUM(B46:L46),0),IF(AND('Base-datos'!$B$720=\"Sí\",'Base-datos'!$B$721=\"Sí\",'Base-datos'!$B$722=\"Sí\"),IF(AND(N46=\"La actividad sí contribuye sustancialmente a la sostenibilidad\",O46=\"La actividad sí contribuye sustancialmente a la sostenibilidad\",M46=\"La actividad sí contribuye sustancialmente a la sostenibilidad\"),SUM(B46:L46),0),IF(AND('Base-datos'!$B$720=\"\",'Base-datos'!$B$721=\"Sí\",'Base-datos'!$B$722=\"\"),IF(O46=\"La actividad sí contribuye sustancialmente a la sostenibilidad\",SUM(B46:L46),0),IF(AND('Base-datos'!$B$720=\"\",'Base-datos'!$B$721=\"\",'Base-datos'!$B$722=\"Sí\"),IF(M46=\"La actividad sí contribuye sustancialmente a la sostenibilidad\",SUM(B46:L46),0),IF(AND('Base-datos'!$B$720=\"\",'Base-datos'!$B$721=\"Sí\",'Base-datos'!$B$722=\"Sí\"),IF(AND(O46=\"La actividad sí contribuye sustancialmente a la sostenibilidad\",M46=\"La actividad sí contribuye sustancialmente a la sostenibilidad\"),SUM(B46:L46),0),IF(AND('Base-datos'!$B$720=\"Sí\",'Base-datos'!$B$721=\"\",'Base-datos'!$B$722=\"Sí\"),IF(AND(N46=\"La actividad sí contribuye sustancialmente a la sostenibilidad\",M46=\"La actividad sí contribuye sustancialmente a la sostenibilidad\"),SUM(B46:L46),0),\"Por definir\"))))))))","v":"Por definir"}]
[{"$f":"Forestal!$C34","v":"Seleccione"},{"$f":"IF(Forestal!$E34='Fondos-Inversionistas'!B$12,Forestal!$B34,\"\")","v":""},{"$f":"IF(Forestal!$E34='Fondos-Inversionistas'!C$12,Forestal!$B34,\"\")","v":""},{"$f":"IF(Forestal!$E34='Fondos-Inversionistas'!D$12,Forestal!$B34,\"\")","v":""},{"$f":"IF(Forestal!$E34='Fondos-Inversionistas'!E$12,Forestal!$B34,\"\")","v":""},{"$f":"IF(Forestal!$E34='Fondos-Inversionistas'!F$12,Forestal!$B34,\"\")","v":""},{"$f":"IF(Forestal!$E34='Fondos-Inversionistas'!G$12,Forestal!$B34,\"\")","v":""},{"$f":"IF(Forestal!$E34='Fondos-Inversionistas'!H$12,Forestal!$B34,\"\")","v":""},{"$f":"IF(Forestal!$E34='Fondos-Inversionistas'!I$12,Forestal!$B34,\"\")","v":""},{"$f":"IF(Forestal!$E34='Fondos-Inversionistas'!J$12,Forestal!$B34,\"\")","v":""},{"$f":"IF(Forestal!$E34='Fondos-Inversionistas'!K$12,Forestal!$B34,\"\")","v":""},{"$f":"IF(Forestal!$E34='Fondos-Inversionistas'!L$12,Forestal!$B34,\"\")","v":""},{"$f":"_xlfn.XLOOKUP(A47,'Base-datos'!$B$517:$B$520,'Base-datos'!$F$517:$F$520)","v":{"$error":"#N/A"}},{"$f":"_xlfn.XLOOKUP(A47,'Base-datos'!$B$517:$B$520,'Base-datos'!$C$517:$C$520)","v":{"$error":"#N/A"}},{"$f":"_xlfn.XLOOKUP(A47,'Base-datos'!$B$517:$B$520,'Base-datos'!$D$517:$D$520)","v":{"$error":"#N/A"}},null,null,{"$f":"IF(OR(P$35=\"La actividad no cumple con el total de los criterios de No Daño Significativo\",Q$35=\"El sector no cumple con las salvaguardas mínimas\"),\"\",IF(AND('Base-datos'!$B$720=\"Sí\",'Base-datos'!$B$721=\"\",'Base-datos'!$B$722=\"\"),IF(N47=\"La actividad sí contribuye sustancialmente a la sostenibilidad\",SUM(B47:L47),0),IF(AND('Base-datos'!$B$720=\"Sí\",'Base-datos'!$B$721=\"Sí\",'Base-datos'!$B$722=\"\"),IF(AND(N47=\"La actividad sí contribuye sustancialmente a la sostenibilidad\",O47=\"La actividad sí contribuye sustancialmente a la sostenibilidad\"),SUM(B47:L47),0),IF(AND('Base-datos'!$B$720=\"Sí\",'Base-datos'!$B$721=\"Sí\",'Base-datos'!$B$722=\"Sí\"),IF(AND(N47=\"La actividad sí contribuye sustancialmente a la sostenibilidad\",O47=\"La actividad sí contribuye sustancialmente a la sostenibilidad\",M47=\"La actividad sí contribuye sustancialmente a la sostenibilidad\"),SUM(B47:L47),0),IF(AND('Base-datos'!$B$720=\"\",'Base-datos'!$B$721=\"Sí\",'Base-datos'!$B$722=\"\"),IF(O47=\"La actividad sí contribuye sustancialmente a la sostenibilidad\",SUM(B47:L47),0),IF(AND('Base-datos'!$B$720=\"\",'Base-datos'!$B$721=\"\",'Base-datos'!$B$722=\"Sí\"),IF(M47=\"La actividad sí contribuye sustancialmente a la sostenibilidad\",SUM(B47:L47),0),IF(AND('Base-datos'!$B$720=\"\",'Base-datos'!$B$721=\"Sí\",'Base-datos'!$B$722=\"Sí\"),IF(AND(O47=\"La actividad sí contribuye sustancialmente a la sostenibilidad\",M47=\"La actividad sí contribuye sustancialmente a la sostenibilidad\"),SUM(B47:L47),0),IF(AND('Base-datos'!$B$720=\"Sí\",'Base-datos'!$B$721=\"\",'Base-datos'!$B$722=\"Sí\"),IF(AND(N47=\"La actividad sí contribuye sustancialmente a la sostenibilidad\",M47=\"La actividad sí contribuye sustancialmente a la sostenibilidad\"),SUM(B47:L47),0),\"Por definir\"))))))))","v":"Por definir"}]
[{"$f":"Forestal!$C36","v":"Seleccione"},{"$f":"IF(Forestal!$E36='Fondos-Inversionistas'!B$12,Forestal!$B36,\"\")","v":""},{"$f":"IF(Forestal!$E36='Fondos-Inversionistas'!C$12,Forestal!$B36,\"\")","v":""},{"$f":"IF(Forestal!$E36='Fondos-Inversionistas'!D$12,Forestal!$B36,\"\")","v":""},{"$f":"IF(Forestal!$E36='Fondos-Inversionistas'!E$12,Forestal!$B36,\"\")","v":""},{"$f":"IF(Forestal!$E36='Fondos-Inversionistas'!F$12,Forestal!$B36,\"\")","v":""},{"$f":"IF(Forestal!$E36='Fondos-Inversionistas'!G$12,Forestal!$B36,\"\")","v":""},{"$f":"IF(Forestal!$E36='Fondos-Inversionistas'!H$12,Forestal!$B36,\"\")","v":""},{"$f":"IF(Forestal!$E36='Fondos-Inversionistas'!I$12,Forestal!$B36,\"\")","v":""},{"$f":"IF(Forestal!$E36='Fondos-Inversionistas'!J$12,Forestal!$B36,\"\")","v":""},{"$f":"IF(Forestal!$E36='Fondos-Inversionistas'!K$12,Forestal!$B36,\"\")","v":""},{"$f":"IF(Forestal!$E36='Fondos-Inversionistas'!L$12,Forestal!$B36,\"\")","v":""},{"$f":"_xlfn.XLOOKUP(A48,'Base-datos'!$B$517:$B$520,'Base-datos'!$F$517:$F$520)","v":{"$error":"#N/A"}},{"$f":"_xlfn.XLOOKUP(A48,'Base-datos'!$B$517:$B$520,'Base-datos'!$C$517:$C$520)","v":{"$error":"#N/A"}},{"$f":"_xlfn.XLOOKUP(A48,'Base-datos'!$B$517:$B$520,'Base-datos'!$D$517:$D$520)","v":{"$error":"#N/A"}},null,null,{"$f":"IF(OR(P$35=\"La actividad no cumple con el total de los criterios de No Daño Significativo\",Q$35=\"El sector no cumple con las salvaguardas mínimas\"),\"\",IF(AND('Base-datos'!$B$720=\"Sí\",'Base-datos'!$B$721=\"\",'Base-datos'!$B$722=\"\"),IF(N48=\"La actividad sí contribuye sustancialmente a la sostenibilidad\",SUM(B48:L48),0),IF(AND('Base-datos'!$B$720=\"Sí\",'Base-datos'!$B$721=\"Sí\",'Base-datos'!$B$722=\"\"),IF(AND(N48=\"La actividad sí contribuye sustancialmente a la sostenibilidad\",O48=\"La actividad sí contribuye sustancialmente a la sostenibilidad\"),SUM(B48:L48),0),IF(AND('Base-datos'!$B$720=\"Sí\",'Base-datos'!$B$721=\"Sí\",'Base-datos'!$B$722=\"Sí\"),IF(AND(N48=\"La actividad sí contribuye sustancialmente a la sostenibilidad\",O48=\"La actividad sí contribuye sustancialmente a la sostenibilidad\",M48=\"La actividad sí contribuye sustancialmente a la sostenibilidad\"),SUM(B48:L48),0),IF(AND('Base-datos'!$B$720=\"\",'Base-datos'!$B$721=\"Sí\",'Base-datos'!$B$722=\"\"),IF(O48=\"La actividad sí contribuye sustancialmente a la sostenibilidad\",SUM(B48:L48),0),IF(AND('Base-datos'!$B$720=\"\",'Base-datos'!$B$721=\"\",'Base-datos'!$B$722=\"Sí\"),IF(M48=\"La actividad sí contribuye sustancialmente a la sostenibilidad\",SUM(B48:L48),0),IF(AND('Base-datos'!$B$720=\"\",'Base-datos'!$B$721=\"Sí\",'Base-datos'!$B$722=\"Sí\"),IF(AND(O48=\"La actividad sí contribuye sustancialmente a la sostenibilidad\",M48=\"La actividad sí contribuye sustancialmente a la sostenibilidad\"),SUM(B48:L48),0),IF(AND('Base-datos'!$B$720=\"Sí\",'Base-datos'!$B$721=\"\",'Base-datos'!$B$722=\"Sí\"),IF(AND(N48=\"La actividad sí contribuye sustancialmente a la sostenibilidad\",M48=\"La actividad sí contribuye sustancialmente a la sostenibilidad\"),SUM(B48:L48),0),\"Por definir\"))))))))","v":"Por definir"}]
[{"$f":"Forestal!$C38","v":"Seleccione"},{"$f":"IF(Forestal!$E38='Fondos-Inversionistas'!B$12,Forestal!$B38,\"\")","v":""},{"$f":"IF(Forestal!$E38='Fondos-Inversionistas'!C$12,Forestal!$B38,\"\")","v":""},{"$f":"IF(Forestal!$E38='Fondos-Inversionistas'!D$12,Forestal!$B38,\"\")","v":""},{"$f":"IF(Forestal!$E38='Fondos-Inversionistas'!E$12,Forestal!$B38,\"\")","v":""},{"$f":"IF(Forestal!$E38='Fondos-Inversionistas'!F$12,Forestal!$B38,\"\")","v":""},{"$f":"IF(Forestal!$E38='Fondos-Inversionistas'!G$12,Forestal!$B38,\"\")","v":""},{"$f":"IF(Forestal!$E38='Fondos-Inversionistas'!H$12,Forestal!$B38,\"\")","v":""},{"$f":"IF(Forestal!$E38='Fondos-Inversionistas'!I$12,Forestal!$B38,\"\")","v":""},{"$f":"IF(Forestal!$E38='Fondos-Inversionistas'!J$12,Forestal!$B38,\"\")","v":""},{"$f":"IF(Forestal!$E38='Fondos-Inversionistas'!K$12,Forestal!$B38,\"\")","v":""},{"$f":"IF(Forestal!$E38='Fondos-Inversionistas'!L$12,Forestal!$B38,\"\")","v":""},{"$f":"_xlfn.XLOOKUP(A49,'Base-datos'!$B$517:$B$520,'Base-datos'!$F$517:$F$520)","v":{"$error":"#N/A"}},{"$f":"_xlfn.XLOOKUP(A49,'Base-datos'!$B$517:$B$520,'Base-datos'!$C$517:$C$520)","v":{"$error":"#N/A"}},{"$f":"_xlfn.XLOOKUP(A49,'Base-datos'!$B$517:$B$520,'Base-datos'!$D$517:$D$520)","v":{"$error":"#N/A"}},null,null,{"$f":"IF(OR(P$35=\"La actividad no cumple con el total de los criterios de No Daño Significativo\",Q$35=\"El sector no cumple con las salvaguardas mínimas\"),\"\",IF(AND('Base-datos'!$B$720=\"Sí\",'Base-datos'!$B$721=\"\",'Base-datos'!$B$722=\"\"),IF(N49=\"La actividad sí contribuye sustancialmente a la sostenibilidad\",SUM(B49:L49),0),IF(AND('Base-datos'!$B$720=\"Sí\",'Base-datos'!$B$721=\"Sí\",'Base-datos'!$B$722=\"\"),IF(AND(N49=\"La actividad sí contribuye sustancialmente a la sostenibilidad\",O49=\"La actividad sí contribuye sustancialmente a la sostenibilidad\"),SUM(B49:L49),0),IF(AND('Base-datos'!$B$720=\"Sí\",'Base-datos'!$B$721=\"Sí\",'Base-datos'!$B$722=\"Sí\"),IF(AND(N49=\"La actividad sí contribuye sustancialmente a la sostenibilidad\",O49=\"La actividad sí contribuye sustancialmente a la sostenibilidad\",M49=\"La actividad sí contribuye sustancialmente a la sostenibilidad\"),SUM(B49:L49),0),IF(AND('Base-datos'!$B$720=\"\",'Base-datos'!$B$721=\"Sí\",'Base-datos'!$B$722=\"\"),IF(O49=\"La actividad sí contribuye sustancialmente a la sostenibilidad\",SUM(B49:L49),0),IF(AND('Base-datos'!$B$720=\"\",'Base-datos'!$B$721=\"\",'Base-datos'!$B$722=\"Sí\"),IF(M49=\"La actividad sí contribuye sustancialmente a la sostenibilidad\",SUM(B49:L49),0),IF(AND('Base-datos'!$B$720=\"\",'Base-datos'!$B$721=\"Sí\",'Base-datos'!$B$722=\"Sí\"),IF(AND(O49=\"La actividad sí contribuye sustancialmente a la sostenibilidad\",M49=\"La actividad sí contribuye sustancialmente a la sostenibilidad\"),SUM(B49:L49),0),IF(AND('Base-datos'!$B$720=\"Sí\",'Base-datos'!$B$721=\"\",'Base-datos'!$B$722=\"Sí\"),IF(AND(N49=\"La actividad sí contribuye sustancialmente a la sostenibilidad\",M49=\"La actividad sí contribuye sustancialmente a la sostenibilidad\"),SUM(B49:L49),0),\"Por definir\"))))))))","v":"Por definir"}]
[{"$f":"Forestal!$C40","v":"Seleccione"},{"$f":"IF(Forestal!$E40='Fondos-Inversionistas'!B$12,Forestal!$B40,\"\")","v":""},{"$f":"IF(Forestal!$E40='Fondos-Inversionistas'!C$12,Forestal!$B40,\"\")","v":""},{"$f":"IF(Forestal!$E40='Fondos-Inversionistas'!D$12,Forestal!$B40,\"\")","v":""},{"$f":"IF(Forestal!$E40='Fondos-Inversionistas'!E$12,Forestal!$B40,\"\")","v":""},{"$f":"IF(Forestal!$E40='Fondos-Inversionistas'!F$12,Forestal!$B40,\"\")","v":""},{"$f":"IF(Forestal!$E40='Fondos-Inversionistas'!G$12,Forestal!$B40,\"\")","v":""},{"$f":"IF(Forestal!$E40='Fondos-Inversionistas'!H$12,Forestal!$B40,\"\")","v":""},{"$f":"IF(Forestal!$E40='Fondos-Inversionistas'!I$12,Forestal!$B40,\"\")","v":""},{"$f":"IF(Forestal!$E40='Fondos-Inversionistas'!J$12,Forestal!$B40,\"\")","v":""},{"$f":"IF(Forestal!$E40='Fondos-Inversionistas'!K$12,Forestal!$B40,\"\")","v":""},{"$f":"IF(Forestal!$E40='Fondos-Inversionistas'!L$12,Forestal!$B40,\"\")","v":""},{"$f":"_xlfn.XLOOKUP(A50,'Base-datos'!$B$517:$B$520,'Base-datos'!$F$517:$F$520)","v":{"$error":"#N/A"}},{"$f":"_xlfn.XLOOKUP(A50,'Base-datos'!$B$517:$B$520,'Base-datos'!$C$517:$C$520)","v":{"$error":"#N/A"}},{"$f":"_xlfn.XLOOKUP(A50,'Base-datos'!$B$517:$B$520,'Base-datos'!$D$517:$D$520)","v":{"$error":"#N/A"}},null,null,{"$f":"IF(OR(P$35=\"La actividad no cumple con el total de los criterios de No Daño Significativo\",Q$35=\"El sector no cumple con las salvaguardas mínimas\"),\"\",IF(AND('Base-datos'!$B$720=\"Sí\",'Base-datos'!$B$721=\"\",'Base-datos'!$B$722=\"\"),IF(N50=\"La actividad sí contribuye sustancialmente a la sostenibilidad\",SUM(B50:L50),0),IF(AND('Base-datos'!$B$720=\"Sí\",'Base-datos'!$B$721=\"Sí\",'Base-datos'!$B$722=\"\"),IF(AND(N50=\"La actividad sí contribuye sustancialmente a la sostenibilidad\",O50=\"La actividad sí contribuye sustancialmente a la sostenibilidad\"),SUM(B50:L50),0),IF(AND('Base-datos'!$B$720=\"Sí\",'Base-datos'!$B$721=\"Sí\",'Base-datos'!$B$722=\"Sí\"),IF(AND(N50=\"La actividad sí contribuye sustancialmente a la sostenibilidad\",O50=\"La actividad sí contribuye sustancialmente a la sostenibilidad\",M50=\"La actividad sí contribuye sustancialmente a la sostenibilidad\"),SUM(B50:L50),0),IF(AND('Base-datos'!$B$720=\"\",'Base-datos'!$B$721=\"Sí\",'Base-datos'!$B$722=\"\"),IF(O50=\"La actividad sí contribuye sustancialmente a la sostenibilidad\",SUM(B50:L50),0),IF(AND('Base-datos'!$B$720=\"\",'Base-datos'!$B$721=\"\",'Base-datos'!$B$722=\"Sí\"),IF(M50=\"La actividad sí contribuye sustancialmente a la sostenibilidad\",SUM(B50:L50),0),IF(AND('Base-datos'!$B$720=\"\",'Base-datos'!$B$721=\"Sí\",'Base-datos'!$B$722=\"Sí\"),IF(AND(O50=\"La actividad sí contribuye sustancialmente a la sostenibilidad\",M50=\"La actividad sí contribuye sustancialmente a la sostenibilidad\"),SUM(B50:L50),0),IF(AND('Base-datos'!$B$720=\"Sí\",'Base-datos'!$B$721=\"\",'Base-datos'!$B$722=\"Sí\"),IF(AND(N50=\"La actividad sí contribuye sustancialmente a la sostenibilidad\",M50=\"La actividad sí contribuye sustancialmente a la sostenibilidad\"),SUM(B50:L50),0),\"Por definir\"))))))))","v":"Por definir"}]
[{"$f":"Forestal!$C42","v":"Seleccione"},{"$f":"IF(Forestal!$E42='Fondos-Inversionistas'!B$12,Forestal!$B42,\"\")","v":""},{"$f":"IF(Forestal!$E42='Fondos-Inversionistas'!C$12,Forestal!$B42,\"\")","v":""},{"$f":"IF(Forestal!$E42='Fondos-Inversionistas'!D$12,Forestal!$B42,\"\")","v":""},{"$f":"IF(Forestal!$E42='Fondos-Inversionistas'!E$12,Forestal!$B42,\"\")","v":""},{"$f":"IF(Forestal!$E42='Fondos-Inversionistas'!F$12,Forestal!$B42,\"\")","v":""},{"$f":"IF(Forestal!$E42='Fondos-Inversionistas'!G$12,Forestal!$B42,\"\")","v":""},{"$f":"IF(Forestal!$E42='Fondos-Inversionistas'!H$12,Forestal!$B42,\"\")","v":""},{"$f":"IF(Forestal!$E42='Fondos-Inversionistas'!I$12,Forestal!$B42,\"\")","v":""},{"$f":"IF(Forestal!$E42='Fondos-Inversionistas'!J$12,Forestal!$B42,\"\")","v":""},{"$f":"IF(Forestal!$E42='Fondos-Inversionistas'!K$12,Forestal!$B42,\"\")","v":""},{"$f":"IF(Forestal!$E42='Fondos-Inversionistas'!L$12,Forestal!$B42,\"\")","v":""},{"$f":"_xlfn.XLOOKUP(A51,'Base-datos'!$B$517:$B$520,'Base-datos'!$F$517:$F$520)","v":{"$error":"#N/A"}},{"$f":"_xlfn.XLOOKUP(A51,'Base-datos'!$B$517:$B$520,'Base-datos'!$C$517:$C$520)","v":{"$error":"#N/A"}},{"$f":"_xlfn.XLOOKUP(A51,'Base-datos'!$B$517:$B$520,'Base-datos'!$D$517:$D$520)","v":{"$error":"#N/A"}},null,null,{"$f":"IF(OR(P$35=\"La actividad no cumple con el total de los criterios de No Daño Significativo\",Q$35=\"El sector no cumple con las salvaguardas mínimas\"),\"\",IF(AND('Base-datos'!$B$720=\"Sí\",'Base-datos'!$B$721=\"\",'Base-datos'!$B$722=\"\"),IF(N51=\"La actividad sí contribuye sustancialmente a la sostenibilidad\",SUM(B51:L51),0),IF(AND('Base-datos'!$B$720=\"Sí\",'Base-datos'!$B$721=\"Sí\",'Base-datos'!$B$722=\"\"),IF(AND(N51=\"La actividad sí contribuye sustancialmente a la sostenibilidad\",O51=\"La actividad sí contribuye sustancialmente a la sostenibilidad\"),SUM(B51:L51),0),IF(AND('Base-datos'!$B$720=\"Sí\",'Base-datos'!$B$721=\"Sí\",'Base-datos'!$B$722=\"Sí\"),IF(AND(N51=\"La actividad sí contribuye sustancialmente a la sostenibilidad\",O51=\"La actividad sí contribuye sustancialmente a la sostenibilidad\",M51=\"La actividad sí contribuye sustancialmente a la sostenibilidad\"),SUM(B51:L51),0),IF(AND('Base-datos'!$B$720=\"\",'Base-datos'!$B$721=\"Sí\",'Base-datos'!$B$722=\"\"),IF(O51=\"La actividad sí contribuye sustancialmente a la sostenibilidad\",SUM(B51:L51),0),IF(AND('Base-datos'!$B$720=\"\",'Base-datos'!$B$721=\"\",'Base-datos'!$B$722=\"Sí\"),IF(M51=\"La actividad sí contribuye sustancialmente a la sostenibilidad\",SUM(B51:L51),0),IF(AND('Base-datos'!$B$720=\"\",'Base-datos'!$B$721=\"Sí\",'Base-datos'!$B$722=\"Sí\"),IF(AND(O51=\"La actividad sí contribuye sustancialmente a la sostenibilidad\",M51=\"La actividad sí contribuye sustancialmente a la sostenibilidad\"),SUM(B51:L51),0),IF(AND('Base-datos'!$B$720=\"Sí\",'Base-datos'!$B$721=\"\",'Base-datos'!$B$722=\"Sí\"),IF(AND(N51=\"La actividad sí contribuye sustancialmente a la sostenibilidad\",M51=\"La actividad sí contribuye sustancialmente a la sostenibilidad\"),SUM(B51:L51),0),\"Por definir\"))))))))","v":"Por definir"}]
[{"$f":"Forestal!$C44","v":"Seleccione"},{"$f":"IF(Forestal!$E44='Fondos-Inversionistas'!B$12,Forestal!$B44,\"\")","v":""},{"$f":"IF(Forestal!$E44='Fondos-Inversionistas'!C$12,Forestal!$B44,\"\")","v":""},{"$f":"IF(Forestal!$E44='Fondos-Inversionistas'!D$12,Forestal!$B44,\"\")","v":""},{"$f":"IF(Forestal!$E44='Fondos-Inversionistas'!E$12,Forestal!$B44,\"\")","v":""},{"$f":"IF(Forestal!$E44='Fondos-Inversionistas'!F$12,Forestal!$B44,\"\")","v":""},{"$f":"IF(Forestal!$E44='Fondos-Inversionistas'!G$12,Forestal!$B44,\"\")","v":""},{"$f":"IF(Forestal!$E44='Fondos-Inversionistas'!H$12,Forestal!$B44,\"\")","v":""},{"$f":"IF(Forestal!$E44='Fondos-Inversionistas'!I$12,Forestal!$B44,\"\")","v":""},{"$f":"IF(Forestal!$E44='Fondos-Inversionistas'!J$12,Forestal!$B44,\"\")","v":""},{"$f":"IF(Forestal!$E44='Fondos-Inversionistas'!K$12,Forestal!$B44,\"\")","v":""},{"$f":"IF(Forestal!$E44='Fondos-Inversionistas'!L$12,Forestal!$B44,\"\")","v":""},{"$f":"_xlfn.XLOOKUP(A52,'Base-datos'!$B$517:$B$520,'Base-datos'!$F$517:$F$520)","v":{"$error":"#N/A"}},{"$f":"_xlfn.XLOOKUP(A52,'Base-datos'!$B$517:$B$520,'Base-datos'!$C$517:$C$520)","v":{"$error":"#N/A"}},{"$f":"_xlfn.XLOOKUP(A52,'Base-datos'!$B$517:$B$520,'Base-datos'!$D$517:$D$520)","v":{"$error":"#N/A"}},null,null,{"$f":"IF(OR(P$35=\"La actividad no cumple con el total de los criterios de No Daño Significativo\",Q$35=\"El sector no cumple con las salvaguardas mínimas\"),\"\",IF(AND('Base-datos'!$B$720=\"Sí\",'Base-datos'!$B$721=\"\",'Base-datos'!$B$722=\"\"),IF(N52=\"La actividad sí contribuye sustancialmente a la sostenibilidad\",SUM(B52:L52),0),IF(AND('Base-datos'!$B$720=\"Sí\",'Base-datos'!$B$721=\"Sí\",'Base-datos'!$B$722=\"\"),IF(AND(N52=\"La actividad sí contribuye sustancialmente a la sostenibilidad\",O52=\"La actividad sí contribuye sustancialmente a la sostenibilidad\"),SUM(B52:L52),0),IF(AND('Base-datos'!$B$720=\"Sí\",'Base-datos'!$B$721=\"Sí\",'Base-datos'!$B$722=\"Sí\"),IF(AND(N52=\"La actividad sí contribuye sustancialmente a la sostenibilidad\",O52=\"La actividad sí contribuye sustancialmente a la sostenibilidad\",M52=\"La actividad sí contribuye sustancialmente a la sostenibilidad\"),SUM(B52:L52),0),IF(AND('Base-datos'!$B$720=\"\",'Base-datos'!$B$721=\"Sí\",'Base-datos'!$B$722=\"\"),IF(O52=\"La actividad sí contribuye sustancialmente a la sostenibilidad\",SUM(B52:L52),0),IF(AND('Base-datos'!$B$720=\"\",'Base-datos'!$B$721=\"\",'Base-datos'!$B$722=\"Sí\"),IF(M52=\"La actividad sí contribuye sustancialmente a la sostenibilidad\",SUM(B52:L52),0),IF(AND('Base-datos'!$B$720=\"\",'Base-datos'!$B$721=\"Sí\",'Base-datos'!$B$722=\"Sí\"),IF(AND(O52=\"La actividad sí contribuye sustancialmente a la sostenibilidad\",M52=\"La actividad sí contribuye sustancialmente a la sostenibilidad\"),SUM(B52:L52),0),IF(AND('Base-datos'!$B$720=\"Sí\",'Base-datos'!$B$721=\"\",'Base-datos'!$B$722=\"Sí\"),IF(AND(N52=\"La actividad sí contribuye sustancialmente a la sostenibilidad\",M52=\"La actividad sí contribuye sustancialmente a la sostenibilidad\"),SUM(B52:L52),0),\"Por definir\"))))))))","v":"Por definir"}]
[{"$f":"Forestal!$C46","v":"Seleccione"},{"$f":"IF(Forestal!$E46='Fondos-Inversionistas'!B$12,Forestal!$B46,\"\")","v":""},{"$f":"IF(Forestal!$E46='Fondos-Inversionistas'!C$12,Forestal!$B46,\"\")","v":""},{"$f":"IF(Forestal!$E46='Fondos-Inversionistas'!D$12,Forestal!$B46,\"\")","v":""},{"$f":"IF(Forestal!$E46='Fondos-Inversionistas'!E$12,Forestal!$B46,\"\")","v":""},{"$f":"IF(Forestal!$E46='Fondos-Inversionistas'!F$12,Forestal!$B46,\"\")","v":""},{"$f":"IF(Forestal!$E46='Fondos-Inversionistas'!G$12,Forestal!$B46,\"\")","v":""},{"$f":"IF(Forestal!$E46='Fondos-Inversionistas'!H$12,Forestal!$B46,\"\")","v":""},{"$f":"IF(Forestal!$E46='Fondos-Inversionistas'!I$12,Forestal!$B46,\"\")","v":""},{"$f":"IF(Forestal!$E46='Fondos-Inversionistas'!J$12,Forestal!$B46,\"\")","v":""},{"$f":"IF(Forestal!$E46='Fondos-Inversionistas'!K$12,Forestal!$B46,\"\")","v":""},{"$f":"IF(Forestal!$E46='Fondos-Inversionistas'!L$12,Forestal!$B46,\"\")","v":""},{"$f":"_xlfn.XLOOKUP(A53,'Base-datos'!$B$517:$B$520,'Base-datos'!$F$517:$F$520)","v":{"$error":"#N/A"}},{"$f":"_xlfn.XLOOKUP(A53,'Base-datos'!$B$517:$B$520,'Base-datos'!$C$517:$C$520)","v":{"$error":"#N/A"}},{"$f":"_xlfn.XLOOKUP(A53,'Base-datos'!$B$517:$B$520,'Base-datos'!$D$517:$D$520)","v":{"$error":"#N/A"}},null,null,{"$f":"IF(OR(P$35=\"La actividad no cumple con el total de los criterios de No Daño Significativo\",Q$35=\"El sector no cumple con las salvaguardas mínimas\"),\"\",IF(AND('Base-datos'!$B$720=\"Sí\",'Base-datos'!$B$721=\"\",'Base-datos'!$B$722=\"\"),IF(N53=\"La actividad sí contribuye sustancialmente a la sostenibilidad\",SUM(B53:L53),0),IF(AND('Base-datos'!$B$720=\"Sí\",'Base-datos'!$B$721=\"Sí\",'Base-datos'!$B$722=\"\"),IF(AND(N53=\"La actividad sí contribuye sustancialmente a la sostenibilidad\",O53=\"La actividad sí contribuye sustancialmente a la sostenibilidad\"),SUM(B53:L53),0),IF(AND('Base-datos'!$B$720=\"Sí\",'Base-datos'!$B$721=\"Sí\",'Base-datos'!$B$722=\"Sí\"),IF(AND(N53=\"La actividad sí contribuye sustancialmente a la sostenibilidad\",O53=\"La actividad sí contribuye sustancialmente a la sostenibilidad\",M53=\"La actividad sí contribuye sustancialmente a la sostenibilidad\"),SUM(B53:L53),0),IF(AND('Base-datos'!$B$720=\"\",'Base-datos'!$B$721=\"Sí\",'Base-datos'!$B$722=\"\"),IF(O53=\"La actividad sí contribuye sustancialmente a la sostenibilidad\",SUM(B53:L53),0),IF(AND('Base-datos'!$B$720=\"\",'Base-datos'!$B$721=\"\",'Base-datos'!$B$722=\"Sí\"),IF(M53=\"La actividad sí contribuye sustancialmente a la sostenibilidad\",SUM(B53:L53),0),IF(AND('Base-datos'!$B$720=\"\",'Base-datos'!$B$721=\"Sí\",'Base-datos'!$B$722=\"Sí\"),IF(AND(O53=\"La actividad sí contribuye sustancialmente a la sostenibilidad\",M53=\"La actividad sí contribuye sustancialmente a la sostenibilidad\"),SUM(B53:L53),0),IF(AND('Base-datos'!$B$720=\"Sí\",'Base-datos'!$B$721=\"\",'Base-datos'!$B$722=\"Sí\"),IF(AND(N53=\"La actividad sí contribuye sustancialmente a la sostenibilidad\",M53=\"La actividad sí contribuye sustancialmente a la sostenibilidad\"),SUM(B53:L53),0),\"Por definir\"))))))))","v":"Por definir"}]
[{"$f":"Forestal!$C48","v":"Seleccione"},{"$f":"IF(Forestal!$E48='Fondos-Inversionistas'!B$12,Forestal!$B48,\"\")","v":""},{"$f":"IF(Forestal!$E48='Fondos-Inversionistas'!C$12,Forestal!$B48,\"\")","v":""},{"$f":"IF(Forestal!$E48='Fondos-Inversionistas'!D$12,Forestal!$B48,\"\")","v":""},{"$f":"IF(Forestal!$E48='Fondos-Inversionistas'!E$12,Forestal!$B48,\"\")","v":""},{"$f":"IF(Forestal!$E48='Fondos-Inversionistas'!F$12,Forestal!$B48,\"\")","v":""},{"$f":"IF(Forestal!$E48='Fondos-Inversionistas'!G$12,Forestal!$B48,\"\")","v":""},{"$f":"IF(Forestal!$E48='Fondos-Inversionistas'!H$12,Forestal!$B48,\"\")","v":""},{"$f":"IF(Forestal!$E48='Fondos-Inversionistas'!I$12,Forestal!$B48,\"\")","v":""},{"$f":"IF(Forestal!$E48='Fondos-Inversionistas'!J$12,Forestal!$B48,\"\")","v":""},{"$f":"IF(Forestal!$E48='Fondos-Inversionistas'!K$12,Forestal!$B48,\"\")","v":""},{"$f":"IF(Forestal!$E48='Fondos-Inversionistas'!L$12,Forestal!$B48,\"\")","v":""},{"$f":"_xlfn.XLOOKUP(A54,'Base-datos'!$B$517:$B$520,'Base-datos'!$F$517:$F$520)","v":{"$error":"#N/A"}},{"$f":"_xlfn.XLOOKUP(A54,'Base-datos'!$B$517:$B$520,'Base-datos'!$C$517:$C$520)","v":{"$error":"#N/A"}},{"$f":"_xlfn.XLOOKUP(A54,'Base-datos'!$B$517:$B$520,'Base-datos'!$D$517:$D$520)","v":{"$error":"#N/A"}},null,null,{"$f":"IF(OR(P$35=\"La actividad no cumple con el total de los criterios de No Daño Significativo\",Q$35=\"El sector no cumple con las salvaguardas mínimas\"),\"\",IF(AND('Base-datos'!$B$720=\"Sí\",'Base-datos'!$B$721=\"\",'Base-datos'!$B$722=\"\"),IF(N54=\"La actividad sí contribuye sustancialmente a la sostenibilidad\",SUM(B54:L54),0),IF(AND('Base-datos'!$B$720=\"Sí\",'Base-datos'!$B$721=\"Sí\",'Base-datos'!$B$722=\"\"),IF(AND(N54=\"La actividad sí contribuye sustancialmente a la sostenibilidad\",O54=\"La actividad sí contribuye sustancialmente a la sostenibilidad\"),SUM(B54:L54),0),IF(AND('Base-datos'!$B$720=\"Sí\",'Base-datos'!$B$721=\"Sí\",'Base-datos'!$B$722=\"Sí\"),IF(AND(N54=\"La actividad sí contribuye sustancialmente a la sostenibilidad\",O54=\"La actividad sí contribuye sustancialmente a la sostenibilidad\",M54=\"La actividad sí contribuye sustancialmente a la sostenibilidad\"),SUM(B54:L54),0),IF(AND('Base-datos'!$B$720=\"\",'Base-datos'!$B$721=\"Sí\",'Base-datos'!$B$722=\"\"),IF(O54=\"La actividad sí contribuye sustancialmente a la sostenibilidad\",SUM(B54:L54),0),IF(AND('Base-datos'!$B$720=\"\",'Base-datos'!$B$721=\"\",'Base-datos'!$B$722=\"Sí\"),IF(M54=\"La actividad sí contribuye sustancialmente a la sostenibilidad\",SUM(B54:L54),0),IF(AND('Base-datos'!$B$720=\"\",'Base-datos'!$B$721=\"Sí\",'Base-datos'!$B$722=\"Sí\"),IF(AND(O54=\"La actividad sí contribuye sustancialmente a la sostenibilidad\",M54=\"La actividad sí contribuye sustancialmente a la sostenibilidad\"),SUM(B54:L54),0),IF(AND('Base-datos'!$B$720=\"Sí\",'Base-datos'!$B$721=\"\",'Base-datos'!$B$722=\"Sí\"),IF(AND(N54=\"La actividad sí contribuye sustancialmente a la sostenibilidad\",M54=\"La actividad sí contribuye sustancialmente a la sostenibilidad\"),SUM(B54:L54),0),\"Por definir\"))))))))","v":"Por definir"}]
["Ganadería",null,null,null,null,null,null,null,null,null,null,null,null,null,null,null,null,{"$f":"SUM(IF(FREQUENCY(MATCH(A56:A75, A56:A75, 0), MATCH(A56:A75, A56:A75, 0)) > 0, IF(NOT(ISERROR(R56:R75)), R56:R75, 0)))","v":0}]
[{"$f":"Ganadería!$C10","v":"Seleccione"},{"$f":"IF(Ganadería!$E10='Fondos-Inversionistas'!B$12,Ganadería!$B10,\"\")","v":""},{"$f":"IF(Ganadería!$E10='Fondos-Inversionistas'!C$12,Ganadería!$B10,\"\")","v":""},{"$f":"IF(Ganadería!$E10='Fondos-Inversionistas'!D$12,Ganadería!$B10,\"\")","v":""},{"$f":"IF(Ganadería!$E10='Fondos-Inversionistas'!E$12,Ganadería!$B10,\"\")","v":""},{"$f":"IF(Ganadería!$E10='Fondos-Inversionistas'!F$12,Ganadería!$B10,\"\")","v":""},{"$f":"IF(Ganadería!$E10='Fondos-Inversionistas'!G$12,Ganadería!$B10,\"\")","v":""},{"$f":"IF(Ganadería!$E10='Fondos-Inversionistas'!H$12,Ganadería!$B10,\"\")","v":""},{"$f":"IF(Ganadería!$E10='Fondos-Inversionistas'!I$12,Ganadería!$B10,\"\")","v":""},{"$f":"IF(Ganadería!$E10='Fondos-Inversionistas'!J$12,Ganadería!$B10,\"\")","v":""},{"$f":"IF(Ganadería!$E10='Fondos-Inversionistas'!K$12,Ganadería!$B10,\"\")","v":""},{"$f":"IF(Ganadería!$E10='Fondos-Inversionistas'!L$12,Ganadería!$B10,\"\")","v":""},{"$f":"_xlfn.XLOOKUP(A56,'Base-datos'!$B$510:$B$516,'Base-datos'!$F$510:$F$516)","v":{"$error":"#N/A"}},{"$f":"_xlfn.XLOOKUP(A56,'Base-datos'!$B$510:$B$516,'Base-datos'!$C$510:$C$516)","v":{"$error":"#N/A"}},{"$f":"_xlfn.XLOOKUP(A56,'Base-datos'!$B$510:$B$516,'Base-datos'!$D$510:$D$516)","v":{"$error":"#N/A"}},{"$f":"IF(COUNTIF('Ganadería-NDS'!G9:G59,\"No\")>0,\"La actividad no cumple con el total de los criterios de NDS\",\"La actividad cumple con los criterios de No Daño Significativo\")","v":"La actividad cumple con los criterios de No Daño Significativo"},{"$f":"IF(OR('Salvaguardas mínimas'!$G$10=\"Seleccione\",'Salvaguardas mínimas'!$G$13=\"Seleccione\",'Salvaguardas mínimas'!$G$16=\"Seleccione\",'Salvaguardas mínimas'!$G$7=\"Seleccione\"),\"No se han respondido todas las preguntas\",IF(OR('Salvaguardas mínimas'!$G$10=\"No\",'Salvaguardas mínimas'!$G$13=\"No\",'Salvaguardas mínimas'!$G$16=\"No\",'Salvaguardas mínimas'!$G$7=\"No\"),\"El sector no cumple con las salvaguardas mínimas\",\"La actividad sí cumple con las salvaguardas mínimas\"))","v":"No se han respondido todas las preguntas"},{"$f":"IF(OR(P$56=\"La actividad no cumple con el total de los criterios de No Daño Significativo\",Q$56=\"El sector no cumple con las salvaguardas mínimas\"),\"\",IF(AND('Base-datos'!$B$725=\"Sí\",'Base-datos'!$B$726=\"\",'Base-datos'!$B$727=\"\"),IF(N56=\"La actividad sí contribuye sustancialmente a la sostenibilidad\",SUM(B56:L56),0),IF(AND('Base-datos'!$B$725=\"Sí\",'Base-datos'!$B$726=\"Sí\",'Base-datos'!$B$727=\"\"),IF(AND(N56=\"La actividad sí contribuye sustancialmente a la sostenibilidad\",O56=\"La actividad sí contribuye sustancialmente a la sostenibilidad\"),SUM(B56:L56),0),IF(AND('Base-datos'!$B$725=\"Sí\",'Base-datos'!$B$726=\"Sí\",'Base-datos'!$B$727=\"Sí\"),IF(AND(N56=\"La actividad sí contribuye sustancialmente a la sostenibilidad\",O56=\"La actividad sí contribuye sustancialmente a la sostenibilidad\",M56=\"La actividad sí contribuye sustancialmente a la sostenibilidad\"),SUM(B56:L56),0),IF(AND('Base-datos'!$B$725=\"\",'Base-datos'!$B$726=\"Sí\",'Base-datos'!$B$727=\"\"),IF(O56=\"La actividad sí contribuye sustancialmente a la sostenibilidad\",SUM(B56:L56),0),IF(AND('Base-datos'!$B$725=\"\",'Base-datos'!$B$726=\"\",'Base-datos'!$B$727=\"Sí\"),IF(M56=\"La actividad sí contribuye sustancialmente a la sostenibilidad\",SUM(B56:L56),0),IF(AND('Base-datos'!$B$725=\"\",'Base-datos'!$B$726=\"Sí\",'Base-datos'!$B$727=\"Sí\"),IF(AND(O56=\"La actividad sí contribuye sustancialmente a la sostenibilidad\",M56=\"La actividad sí contribuye sustancialmente a la sostenibilidad\"),SUM(B56:L56),0),IF(AND('Base-datos'!$B$725=\"Sí\",'Base-datos'!$B$726=\"\",'Base-datos'!$B$727=\"Sí\"),IF(AND(N56=\"La actividad sí contribuye sustancialmente a la sostenibilidad\",M56=\"La actividad sí contribuye sustancialmente a la sostenibilidad\"),SUM(B56:L56),0),\"Por definir\"))))))))","v":"Por definir"}]
[{"$f":"Ganadería!$C12","v":"Seleccione"},{"$f":"IF(Ganadería!$E12='Fondos-Inversionistas'!B$12,Ganadería!$B12,\"\")","v":""},{"$f":"IF(Ganadería!$E12='Fondos-Inversionistas'!C$12,Ganadería!$B12,\"\")","v":""},{"$f":"IF(Ganadería!$E12='Fondos-Inversionistas'!D$12,Ganadería!$B12,\"\")","v":""},{"$f":"IF(Ganadería!$E12='Fondos-Inversionistas'!E$12,Ganadería!$B12,\"\")","v":""},{"$f":"IF(Ganadería!$E12='Fondos-Inversionistas'!F$12,Ganadería!$B12,\"\")","v":""},{"$f":"IF(Ganadería!$E12='Fondos-Inversionistas'!G$12,Ganadería!$B12,\"\")","v":""},{"$f":"IF(Ganadería!$E12='Fondos-Inversionistas'!H$12,Ganadería!$B12,\"\")","v":""},{"$f":"IF(Ganadería!$E12='Fondos-Inversionistas'!I$12,Ganadería!$B12,\"\")","v":""},{"$f":"IF(Ganadería!$E12='Fondos-Inversionistas'!J$12,Ganadería!$B12,\"\")","v":""},{"$f":"IF(Ganadería!$E12='Fondos-Inversionistas'!K$12,Ganadería!$B12,\"\")","v":""},{"$f":"IF(Ganadería!$E12='Fondos-Inversionistas'!L$12,Ganadería!$B12,\"\")","v":""},{"$f":"_xlfn.XLOOKUP(A57,'Base-datos'!$B$510:$B$516,'Base-datos'!$F$510:$F$516)","v":{"$error":"#N/A"}},{"$f":"_xlfn.XLOOKUP(A57,'Base-datos'!$B$510:$B$516,'Base-datos'!$C$510:$C$516)","v":{"$error":"#N/A"}},{"$f":"_xlfn.XLOOKUP(A57,'Base-datos'!$B$510:$B$516,'Base-datos'!$D$510:$D$516)","v":{"$error":"#N/A"}},null,null,{"$f":"IF(OR(P$56=\"La actividad no cumple con el total de los criterios de No Daño Significativo\",Q$56=\"El sector no cumple con las salvaguardas mínimas\"),\"\",IF(AND('Base-datos'!$B$725=\"Sí\",'Base-datos'!$B$726=\"\",'Base-datos'!$B$727=\"\"),IF(N57=\"La actividad sí contribuye sustancialmente a la sostenibilidad\",SUM(B57:L57),0),IF(AND('Base-datos'!$B$725=\"Sí\",'Base-datos'!$B$726=\"Sí\",'Base-datos'!$B$727=\"\"),IF(AND(N57=\"La actividad sí contribuye sustancialmente a la sostenibilidad\",O57=\"La actividad sí contribuye sustancialmente a la sostenibilidad\"),SUM(B57:L57),0),IF(AND('Base-datos'!$B$725=\"Sí\",'Base-datos'!$B$726=\"Sí\",'Base-datos'!$B$727=\"Sí\"),IF(AND(N57=\"La actividad sí contribuye sustancialmente a la sostenibilidad\",O57=\"La actividad sí contribuye sustancialmente a la sostenibilidad\",M57=\"La actividad sí contribuye sustancialmente a la sostenibilidad\"),SUM(B57:L57),0),IF(AND('Base-datos'!$B$725=\"\",'Base-datos'!$B$726=\"Sí\",'Base-datos'!$B$727=\"\"),IF(O57=\"La actividad sí contribuye sustancialmente a la sostenibilidad\",SUM(B57:L57),0),IF(AND('Base-datos'!$B$725=\"\",'Base-datos'!$B$726=\"\",'Base-datos'!$B$727=\"Sí\"),IF(M57=\"La actividad sí contribuye sustancialmente a la sostenibilidad\",SUM(B57:L57),0),IF(AND('Base-datos'!$B$725=\"\",'Base-datos'!$B$726=\"Sí\",'Base-datos'!$B$727=\"Sí\"),IF(AND(O57=\"La actividad sí contribuye sustancialmente a la sostenibilidad\",M57=\"La actividad sí contribuye sustancialmente a la sostenibilidad\"),SUM(B57:L57),0),IF(AND('Base-datos'!$B$725=\"Sí\",'Base-datos'!$B$726=\"\",'Base-datos'!$B$727=\"Sí\"),IF(AND(N57=\"La actividad sí contribuye sustancialmente a la sostenibilidad\",M57=\"La actividad sí contribuye sustancialmente a la sostenibilidad\"),SUM(B57:L57),0),\"Por definir\"))))))))","v":"Por definir"}]
[{"$f":"Ganadería!$C14","v":"Seleccione"},{"$f":"IF(Ganadería!$E14='Fondos-Inversionistas'!B$12,Ganadería!$B14,\"\")","v":""},{"$f":"IF(Ganadería!$E14='Fondos-Inversionistas'!C$12,Ganadería!$B14,\"\")","v":""},{"$f":"IF(Ganadería!$E14='Fondos-Inversionistas'!D$12,Ganadería!$B14,\"\")","v":""},{"$f":"IF(Ganadería!$E14='Fondos-Inversionistas'!E$12,Ganadería!$B14,\"\")","v":""},{"$f":"IF(Ganadería!$E14='Fondos-Inversionistas'!F$12,Ganadería!$B14,\"\")","v":""},{"$f":"IF(Ganadería!$E14='Fondos-Inversionistas'!G$12,Ganadería!$B14,\"\")","v":""},{"$f":"IF(Ganadería!$E14='Fondos-Inversionistas'!H$12,Ganadería!$B14,\"\")","v":""},{"$f":"IF(Ganadería!$E14='Fondos-Inversionistas'!I$12,Ganadería!$B14,\"\")","v":""},{"$f":"IF(Ganadería!$E14='Fondos-Inversionistas'!J$12,Ganadería!$B14,\"\")","v":""},{"$f":"IF(Ganadería!$E14='Fondos-Inversionistas'!K$12,Ganadería!$B14,\"\")","v":""},{"$f":"IF(Ganadería!$E14='Fondos-Inversionistas'!L$12,Ganadería!$B14,\"\")","v":""},{"$f":"_xlfn.XLOOKUP(A58,'Base-datos'!$B$510:$B$516,'Base-datos'!$F$510:$F$516)","v":{"$error":"#N/A"}},{"$f":"_xlfn.XLOOKUP(A58,'Base-datos'!$B$510:$B$516,'Base-datos'!$C$510:$C$516)","v":{"$error":"#N/A"}},{"$f":"_xlfn.XLOOKUP(A58,'Base-datos'!$B$510:$B$516,'Base-datos'!$D$510:$D$516)","v":{"$error":"#N/A"}},null,null,{"$f":"IF(OR(P$56=\"La actividad no cumple con el total de los criterios de No Daño Significativo\",Q$56=\"El sector no cumple con las salvaguardas mínimas\"),\"\",IF(AND('Base-datos'!$B$725=\"Sí\",'Base-datos'!$B$726=\"\",'Base-datos'!$B$727=\"\"),IF(N58=\"La actividad sí contribuye sustancialmente a la sostenibilidad\",SUM(B58:L58),0),IF(AND('Base-datos'!$B$725=\"Sí\",'Base-datos'!$B$726=\"Sí\",'Base-datos'!$B$727=\"\"),IF(AND(N58=\"La actividad sí contribuye sustancialmente a la sostenibilidad\",O58=\"La actividad sí contribuye sustancialmente a la sostenibilidad\"),SUM(B58:L58),0),IF(AND('Base-datos'!$B$725=\"Sí\",'Base-datos'!$B$726=\"Sí\",'Base-datos'!$B$727=\"Sí\"),IF(AND(N58=\"La actividad sí contribuye sustancialmente a la sostenibilidad\",O58=\"La actividad sí contribuye sustancialmente a la sostenibilidad\",M58=\"La actividad sí contribuye sustancialmente a la sostenibilidad\"),SUM(B58:L58),0),IF(AND('Base-datos'!$B$725=\"\",'Base-datos'!$B$726=\"Sí\",'Base-datos'!$B$727=\"\"),IF(O58=\"La actividad sí contribuye sustancialmente a la sostenibilidad\",SUM(B58:L58),0),IF(AND('Base-datos'!$B$725=\"\",'Base-datos'!$B$726=\"\",'Base-datos'!$B$727=\"Sí\"),IF(M58=\"La actividad sí contribuye sustancialmente a la sostenibilidad\",SUM(B58:L58),0),IF(AND('Base-datos'!$B$725=\"\",'Base-datos'!$B$726=\"Sí\",'Base-datos'!$B$727=\"Sí\"),IF(AND(O58=\"La actividad sí contribuye sustancialmente a la sostenibilidad\",M58=\"La actividad sí contribuye sustancialmente a la sostenibilidad\"),SUM(B58:L58),0),IF(AND('Base-datos'!$B$725=\"Sí\",'Base-datos'!$B$726=\"\",'Base-datos'!$B$727=\"Sí\"),IF(AND(N58=\"La actividad sí contribuye sustancialmente a la sostenibilidad\",M58=\"La actividad sí contribuye sustancialmente a la sostenibilidad\"),SUM(B58:L58),0),\"Por definir\"))))))))","v":"Por definir"}]
[{"$f":"Ganadería!$C16","v":"Seleccione"},{"$f":"IF(Ganadería!$E16='Fondos-Inversionistas'!B$12,Ganadería!$B16,\"\")","v":""},{"$f":"IF(Ganadería!$E16='Fondos-Inversionistas'!C$12,Ganadería!$B16,\"\")","v":""},{"$f":"IF(Ganadería!$E16='Fondos-Inversionistas'!D$12,Ganadería!$B16,\"\")","v":""},{"$f":"IF(Ganadería!$E16='Fondos-Inversionistas'!E$12,Ganadería!$B16,\"\")","v":""},{"$f":"IF(Ganadería!$E16='Fondos-Inversionistas'!F$12,Ganadería!$B16,\"\")","v":""},{"$f":"IF(Ganadería!$E16='Fondos-Inversionistas'!G$12,Ganadería!$B16,\"\")","v":""},{"$f":"IF(Ganadería!$E16='Fondos-Inversionistas'!H$12,Ganadería!$B16,\"\")","v":""},{"$f":"IF(Ganadería!$E16='Fondos-Inversionistas'!I$12,Ganadería!$B16,\"\")","v":""},{"$f":"IF(Ganadería!$E16='Fondos-Inversionistas'!J$12,Ganadería!$B16,\"\")","v":""},{"$f":"IF(Ganadería!$E16='Fondos-Inversionistas'!K$12,Ganadería!$B16,\"\")","v":""},{"$f":"IF(Ganadería!$E16='Fondos-Inversionistas'!L$12,Ganadería!$B16,\"\")","v":""},{"$f":"_xlfn.XLOOKUP(A59,'Base-datos'!$B$510:$B$516,'Base-datos'!$F$510:$F$516)","v":{"$error":"#N/A"}},{"$f":"_xlfn.XLOOKUP(A59,'Base-datos'!$B$510:$B$516,'Base-datos'!$C$510:$C$516)","v":{"$error":"#N/A"}},{"$f":"_xlfn.XLOOKUP(A59,'Base-datos'!$B$510:$B$516,'Base-datos'!$D$510:$D$516)","v":{"$error":"#N/A"}},null,null,{"$f":"IF(OR(P$56=\"La actividad no cumple con el total de los criterios de No Daño Significativo\",Q$56=\"El sector no cumple con las salvaguardas mínimas\"),\"\",IF(AND('Base-datos'!$B$725=\"Sí\",'Base-datos'!$B$726=\"\",'Base-datos'!$B$727=\"\"),IF(N59=\"La actividad sí contribuye sustancialmente a la sostenibilidad\",SUM(B59:L59),0),IF(AND('Base-datos'!$B$725=\"Sí\",'Base-datos'!$B$726=\"Sí\",'Base-datos'!$B$727=\"\"),IF(AND(N59=\"La actividad sí contribuye sustancialmente a la sostenibilidad\",O59=\"La actividad sí contribuye sustancialmente a la sostenibilidad\"),SUM(B59:L59),0),IF(AND('Base-datos'!$B$725=\"Sí\",'Base-datos'!$B$726=\"Sí\",'Base-datos'!$B$727=\"Sí\"),IF(AND(N59=\"La actividad sí contribuye sustancialmente a la sostenibilidad\",O59=\"La actividad sí contribuye sustancialmente a la sostenibilidad\",M59=\"La actividad sí contribuye sustancialmente a la sostenibilidad\"),SUM(B59:L59),0),IF(AND('Base-datos'!$B$725=\"\",'Base-datos'!$B$726=\"Sí\",'Base-datos'!$B$727=\"\"),IF(O59=\"La actividad sí contribuye sustancialmente a la sostenibilidad\",SUM(B59:L59),0),IF(AND('Base-datos'!$B$725=\"\",'Base-datos'!$B$726=\"\",'Base-datos'!$B$727=\"Sí\"),IF(M59=\"La actividad sí contribuye sustancialmente a la sostenibilidad\",SUM(B59:L59),0),IF(AND('Base-datos'!$B$725=\"\",'Base-datos'!$B$726=\"Sí\",'Base-datos'!$B$727=\"Sí\"),IF(AND(O59=\"La actividad sí contribuye sustancialmente a la sostenibilidad\",M59=\"La actividad sí contribuye sustancialmente a la sostenibilidad\"),SUM(B59:L59),0),IF(AND('Base-datos'!$B$725=\"Sí\",'Base-datos'!$B$726=\"\",'Base-datos'!$B$727=\"Sí\"),IF(AND(N59=\"La actividad sí contribuye sustancialmente a la sostenibilidad\",M59=\"La actividad sí contribuye sustancialmente a la sostenibilidad\"),SUM(B59:L59),0),\"Por definir\"))))))))","v":"Por definir"}]
[{"$f":"Ganadería!$C18","v":"Seleccione"},{"$f":"IF(Ganadería!$E18='Fondos-Inversionistas'!B$12,Ganadería!$B18,\"\")","v":""},{"$f":"IF(Ganadería!$E18='Fondos-Inversionistas'!C$12,Ganadería!$B18,\"\")","v":""},{"$f":"IF(Ganadería!$E18='Fondos-Inversionistas'!D$12,Ganadería!$B18,\"\")","v":""},{"$f":"IF(Ganadería!$E18='Fondos-Inversionistas'!E$12,Ganadería!$B18,\"\")","v":""},{"$f":"IF(Ganadería!$E18='Fondos-Inversionistas'!F$12,Ganadería!$B18,\"\")","v":""},{"$f":"IF(Ganadería!$E18='Fondos-Inversionistas'!G$12,Ganadería!$B18,\"\")","v":""},{"$f":"IF(Ganadería!$E18='Fondos-Inversionistas'!H$12,Ganadería!$B18,\"\")","v":""},{"$f":"IF(Ganadería!$E18='Fondos-Inversionistas'!I$12,Ganadería!$B18,\"\")","v":""},{"$f":"IF(Ganadería!$E18='Fondos-Inversionistas'!J$12,Ganadería!$B18,\"\")","v":""},{"$f":"IF(Ganadería!$E18='Fondos-Inversionistas'!K$12,Ganadería!$B18,\"\")","v":""},{"$f":"IF(Ganadería!$E18='Fondos-Inversionistas'!L$12,Ganadería!$B18,\"\")","v":""},{"$f":"_xlfn.XLOOKUP(A60,'Base-datos'!$B$510:$B$516,'Base-datos'!$F$510:$F$516)","v":{"$error":"#N/A"}},{"$f":"_xlfn.XLOOKUP(A60,'Base-datos'!$B$510:$B$516,'Base-datos'!$C$510:$C$516)","v":{"$error":"#N/A"}},{"$f":"_xlfn.XLOOKUP(A60,'Base-datos'!$B$510:$B$516,'Base-datos'!$D$510:$D$516)","v":{"$error":"#N/A"}},null,null,{"$f":"IF(OR(P$56=\"La actividad no cumple con el total de los criterios de No Daño Significativo\",Q$56=\"El sector no cumple con las salvaguardas mínimas\"),\"\",IF(AND('Base-datos'!$B$725=\"Sí\",'Base-datos'!$B$726=\"\",'Base-datos'!$B$727=\"\"),IF(N60=\"La actividad sí contribuye sustancialmente a la sostenibilidad\",SUM(B60:L60),0),IF(AND('Base-datos'!$B$725=\"Sí\",'Base-datos'!$B$726=\"Sí\",'Base-datos'!$B$727=\"\"),IF(AND(N60=\"La actividad sí contribuye sustancialmente a la sostenibilidad\",O60=\"La actividad sí contribuye sustancialmente a la sostenibilidad\"),SUM(B60:L60),0),IF(AND('Base-datos'!$B$725=\"Sí\",'Base-datos'!$B$726=\"Sí\",'Base-datos'!$B$727=\"Sí\"),IF(AND(N60=\"La actividad sí contribuye sustancialmente a la sostenibilidad\",O60=\"La actividad sí contribuye sustancialmente a la sostenibilidad\",M60=\"La actividad sí contribuye sustancialmente a la sostenibilidad\"),SUM(B60:L60),0),IF(AND('Base-datos'!$B$725=\"\",'Base-datos'!$B$726=\"Sí\",'Base-datos'!$B$727=\"\"),IF(O60=\"La actividad sí contribuye sustancialmente a la sostenibilidad\",SUM(B60:L60),0),IF(AND('Base-datos'!$B$725=\"\",'Base-datos'!$B$726=\"\",'Base-datos'!$B$727=\"Sí\"),IF(M60=\"La actividad sí contribuye sustancialmente a la sostenibilidad\",SUM(B60:L60),0),IF(AND('Base-datos'!$B$725=\"\",'Base-datos'!$B$726=\"Sí\",'Base-datos'!$B$727=\"Sí\"),IF(AND(O60=\"La actividad sí contribuye sustancialmente a la sostenibilidad\",M60=\"La actividad sí contribuye sustancialmente a la sostenibilidad\"),SUM(B60:L60),0),IF(AND('Base-datos'!$B$725=\"Sí\",'Base-datos'!$B$726=\"\",'Base-datos'!$B$727=\"Sí\"),IF(AND(N60=\"La actividad sí contribuye sustancialmente a la sostenibilidad\",M60=\"La actividad sí contribuye sustancialmente a la sostenibilidad\"),SUM(B60:L60),0),\"Por definir\"))))))))","v":"Por definir"}]
[{"$f":"Ganadería!$C20","v":"Seleccione"},{"$f":"IF(Ganadería!$E20='Fondos-Inversionistas'!B$12,Ganadería!$B20,\"\")","v":""},{"$f":"IF(Ganadería!$E20='Fondos-Inversionistas'!C$12,Ganadería!$B20,\"\")","v":""},{"$f":"IF(Ganadería!$E20='Fondos-Inversionistas'!D$12,Ganadería!$B20,\"\")","v":""},{"$f":"IF(Ganadería!$E20='Fondos-Inversionistas'!E$12,Ganadería!$B20,\"\")","v":""},{"$f":"IF(Ganadería!$E20='Fondos-Inversionistas'!F$12,Ganadería!$B20,\"\")","v":""},{"$f":"IF(Ganadería!$E20='Fondos-Inversionistas'!G$12,Ganadería!$B20,\"\")","v":""},{"$f":"IF(Ganadería!$E20='Fondos-Inversionistas'!H$12,Ganadería!$B20,\"\")","v":""},{"$f":"IF(Ganadería!$E20='Fondos-Inversionistas'!I$12,Ganadería!$B20,\"\")","v":""},{"$f":"IF(Ganadería!$E20='Fondos-Inversionistas'!J$12,Ganadería!$B20,\"\")","v":""},{"$f":"IF(Ganadería!$E20='Fondos-Inversionistas'!K$12,Ganadería!$B20,\"\")","v":""},{"$f":"IF(Ganadería!$E20='Fondos-Inversionistas'!L$12,Ganadería!$B20,\"\")","v":""},{"$f":"_xlfn.XLOOKUP(A61,'Base-datos'!$B$510:$B$516,'Base-datos'!$F$510:$F$516)","v":{"$error":"#N/A"}},{"$f":"_xlfn.XLOOKUP(A61,'Base-datos'!$B$510:$B$516,'Base-datos'!$C$510:$C$516)","v":{"$error":"#N/A"}},{"$f":"_xlfn.XLOOKUP(A61,'Base-datos'!$B$510:$B$516,'Base-datos'!$D$510:$D$516)","v":{"$error":"#N/A"}},null,null,{"$f":"IF(OR(P$56=\"La actividad no cumple con el total de los criterios de No Daño Significativo\",Q$56=\"El sector no cumple con las salvaguardas mínimas\"),\"\",IF(AND('Base-datos'!$B$725=\"Sí\",'Base-datos'!$B$726=\"\",'Base-datos'!$B$727=\"\"),IF(N61=\"La actividad sí contribuye sustancialmente a la sostenibilidad\",SUM(B61:L61),0),IF(AND('Base-datos'!$B$725=\"Sí\",'Base-datos'!$B$726=\"Sí\",'Base-datos'!$B$727=\"\"),IF(AND(N61=\"La actividad sí contribuye sustancialmente a la sostenibilidad\",O61=\"La actividad sí contribuye sustancialmente a la sostenibilidad\"),SUM(B61:L61),0),IF(AND('Base-datos'!$B$725=\"Sí\",'Base-datos'!$B$726=\"Sí\",'Base-datos'!$B$727=\"Sí\"),IF(AND(N61=\"La actividad sí contribuye sustancialmente a la sostenibilidad\",O61=\"La actividad sí contribuye sustancialmente a la sostenibilidad\",M61=\"La actividad sí contribuye sustancialmente a la sostenibilidad\"),SUM(B61:L61),0),IF(AND('Base-datos'!$B$725=\"\",'Base-datos'!$B$726=\"Sí\",'Base-datos'!$B$727=\"\"),IF(O61=\"La actividad sí contribuye sustancialmente a la sostenibilidad\",SUM(B61:L61),0),IF(AND('Base-datos'!$B$725=\"\",'Base-datos'!$B$726=\"\",'Base-datos'!$B$727=\"Sí\"),IF(M61=\"La actividad sí contribuye sustancialmente a la sostenibilidad\",SUM(B61:L61),0),IF(AND('Base-datos'!$B$725=\"\",'Base-datos'!$B$726=\"Sí\",'Base-datos'!$B$727=\"Sí\"),IF(AND(O61=\"La actividad sí contribuye sustancialmente a la sostenibilidad\",M61=\"La actividad sí contribuye sustancialmente a la sostenibilidad\"),SUM(B61:L61),0),IF(AND('Base-datos'!$B$725=\"Sí\",'Base-datos'!$B$726=\"\",'Base-datos'!$B$727=\"Sí\"),IF(AND(N61=\"La actividad sí contribuye sustancialmente a la sostenibilidad\",M61=\"La actividad sí contribuye sustancialmente a la sostenibilidad\"),SUM(B61:L61),0),\"Por definir\"))))))))","v":"Por definir"}]
[{"$f":"Ganadería!$C22","v":"Seleccione"},{"$f":"IF(Ganadería!$E22='Fondos-Inversionistas'!B$12,Ganadería!$B22,\"\")","v":""},{"$f":"IF(Ganadería!$E22='Fondos-Inversionistas'!C$12,Ganadería!$B22,\"\")","v":""},{"$f":"IF(Ganadería!$E22='Fondos-Inversionistas'!D$12,Ganadería!$B22,\"\")","v":""},{"$f":"IF(Ganadería!$E22='Fondos-Inversionistas'!E$12,Ganadería!$B22,\"\")","v":""},{"$f":"IF(Ganadería!$E22='Fondos-Inversionistas'!F$12,Ganadería!$B22,\"\")","v":""},{"$f":"IF(Ganadería!$E22='Fondos-Inversionistas'!G$12,Ganadería!$B22,\"\")","v":""},{"$f":"IF(Ganadería!$E22='Fondos-Inversionistas'!H$12,Ganadería!$B22,\"\")","v":""},{"$f":"IF(Ganadería!$E22='Fondos-Inversionistas'!I$12,Ganadería!$B22,\"\")","v":""},{"$f":"IF(Ganadería!$E22='Fondos-Inversionistas'!J$12,Ganadería!$B22,\"\")","v":""},{"$f":"IF(Ganadería!$E22='Fondos-Inversionistas'!K$12,Ganadería!$B22,\"\")","v":""},{"$f":"IF(Ganadería!$E22='Fondos-Inversionistas'!L$12,Ganadería!$B22,\"\")","v":""},{"$f":"_xlfn.XLOOKUP(A62,'Base-datos'!$B$510:$B$516,'Base-datos'!$F$510:$F$516)","v":{"$error":"#N/A"}},{"$f":"_xlfn.XLOOKUP(A62,'Base-datos'!$B$510:$B$516,'Base-datos'!$C$510:$C$516)","v":{"$error":"#N/A"}},{"$f":"_xlfn.XLOOKUP(A62,'Base-datos'!$B$510:$B$516,'Base-datos'!$D$510:$D$516)","v":{"$error":"#N/A"}},null,null,{"$f":"IF(OR(P$56=\"La actividad no cumple con el total de los criterios de No Daño Significativo\",Q$56=\"El sector no cumple con las salvaguardas mínimas\"),\"\",IF(AND('Base-datos'!$B$725=\"Sí\",'Base-datos'!$B$726=\"\",'Base-datos'!$B$727=\"\"),IF(N62=\"La actividad sí contribuye sustancialmente a la sostenibilidad\",SUM(B62:L62),0),IF(AND('Base-datos'!$B$725=\"Sí\",'Base-datos'!$B$726=\"Sí\",'Base-datos'!$B$727=\"\"),IF(AND(N62=\"La actividad sí contribuye sustancialmente a la sostenibilidad\",O62=\"La actividad sí contribuye sustancialmente a la sostenibilidad\"),SUM(B62:L62),0),IF(AND('Base-datos'!$B$725=\"Sí\",'Base-datos'!$B$726=\"Sí\",'Base-datos'!$B$727=\"Sí\"),IF(AND(N62=\"La actividad sí contribuye sustancialmente a la sostenibilidad\",O62=\"La actividad sí contribuye sustancialmente a la sostenibilidad\",M62=\"La actividad sí contribuye sustancialmente a la sostenibilidad\"),SUM(B62:L62),0),IF(AND('Base-datos'!$B$725=\"\",'Base-datos'!$B$726=\"Sí\",'Base-datos'!$B$727=\"\"),IF(O62=\"La actividad sí contribuye sustancialmente a la sostenibilidad\",SUM(B62:L62),0),IF(AND('Base-datos'!$B$725=\"\",'Base-datos'!$B$726=\"\",'Base-datos'!$B$727=\"Sí\"),IF(M62=\"La actividad sí contribuye sustancialmente a la sostenibilidad\",SUM(B62:L62),0),IF(AND('Base-datos'!$B$725=\"\",'Base-datos'!$B$726=\"Sí\",'Base-datos'!$B$727=\"Sí\"),IF(AND(O62=\"La actividad sí contribuye sustancialmente a la sostenibilidad\",M62=\"La actividad sí contribuye sustancialmente a la sostenibilidad\"),SUM(B62:L62),0),IF(AND('Base-datos'!$B$725=\"Sí\",'Base-datos'!$B$726=\"\",'Base-datos'!$B$727=\"Sí\"),IF(AND(N62=\"La actividad sí contribuye sustancialmente a la sostenibilidad\",M62=\"La actividad sí contribuye sustancialmente a la sostenibilidad\"),SUM(B62:L62),0),\"Por definir\"))))))))","v":"Por definir"}]
[{"$f":"Ganadería!$C24","v":"Seleccione"},{"$f":"IF(Ganadería!$E24='Fondos-Inversionistas'!B$12,Ganadería!$B24,\"\")","v":""},{"$f":"IF(Ganadería!$E24='Fondos-Inversionistas'!C$12,Ganadería!$B24,\"\")","v":""},{"$f":"IF(Ganadería!$E24='Fondos-Inversionistas'!D$12,Ganadería!$B24,\"\")","v":""},{"$f":"IF(Ganadería!$E24='Fondos-Inversionistas'!E$12,Ganadería!$B24,\"\")","v":""},{"$f":"IF(Ganadería!$E24='Fondos-Inversionistas'!F$12,Ganadería!$B24,\"\")","v":""},{"$f":"IF(Ganadería!$E24='Fondos-Inversionistas'!G$12,Ganadería!$B24,\"\")","v":""},{"$f":"IF(Ganadería!$E24='Fondos-Inversionistas'!H$12,Ganadería!$B24,\"\")","v":""},{"$f":"IF(Ganadería!$E24='Fondos-Inversionistas'!I$12,Ganadería!$B24,\"\")","v":""},{"$f":"IF(Ganadería!$E24='Fondos-Inversionistas'!J$12,Ganadería!$B24,\"\")","v":""},{"$f":"IF(Ganadería!$E24='Fondos-Inversionistas'!K$12,Ganadería!$B24,\"\")","v":""},{"$f":"IF(Ganadería!$E24='Fondos-Inversionistas'!L$12,Ganadería!$B24,\"\")","v":""},{"$f":"_xlfn.XLOOKUP(A63,'Base-datos'!$B$510:$B$516,'Base-datos'!$F$510:$F$516)","v":{"$error":"#N/A"}},{"$f":"_xlfn.XLOOKUP(A63,'Base-datos'!$B$510:$B$516,'Base-datos'!$C$510:$C$516)","v":{"$error":"#N/A"}},{"$f":"_xlfn.XLOOKUP(A63,'Base-datos'!$B$510:$B$516,'Base-datos'!$D$510:$D$516)","v":{"$error":"#N/A"}},null,null,{"$f":"IF(OR(P$56=\"La actividad no cumple con el total de los criterios de No Daño Significativo\",Q$56=\"El sector no cumple con las salvaguardas mínimas\"),\"\",IF(AND('Base-datos'!$B$725=\"Sí\",'Base-datos'!$B$726=\"\",'Base-datos'!$B$727=\"\"),IF(N63=\"La actividad sí contribuye sustancialmente a la sostenibilidad\",SUM(B63:L63),0),IF(AND('Base-datos'!$B$725=\"Sí\",'Base-datos'!$B$726=\"Sí\",'Base-datos'!$B$727=\"\"),IF(AND(N63=\"La actividad sí contribuye sustancialmente a la sostenibilidad\",O63=\"La actividad sí contribuye sustancialmente a la sostenibilidad\"),SUM(B63:L63),0),IF(AND('Base-datos'!$B$725=\"Sí\",'Base-datos'!$B$726=\"Sí\",'Base-datos'!$B$727=\"Sí\"),IF(AND(N63=\"La actividad sí contribuye sustancialmente a la sostenibilidad\",O63=\"La actividad sí contribuye sustancialmente a la sostenibilidad\",M63=\"La actividad sí contribuye sustancialmente a la sostenibilidad\"),SUM(B63:L63),0),IF(AND('Base-datos'!$B$725=\"\",'Base-datos'!$B$726=\"Sí\",'Base-datos'!$B$727=\"\"),IF(O63=\"La actividad sí contribuye sustancialmente a la sostenibilidad\",SUM(B63:L63),0),IF(AND('Base-datos'!$B$725=\"\",'Base-datos'!$B$726=\"\",'Base-datos'!$B$727=\"Sí\"),IF(M63=\"La actividad sí contribuye sustancialmente a la sostenibilidad\",SUM(B63:L63),0),IF(AND('Base-datos'!$B$725=\"\",'Base-datos'!$B$726=\"Sí\",'Base-datos'!$B$727=\"Sí\"),IF(AND(O63=\"La actividad sí contribuye sustancialmente a la sostenibilidad\",M63=\"La actividad sí contribuye sustancialmente a la sostenibilidad\"),SUM(B63:L63),0),IF(AND('Base-datos'!$B$725=\"Sí\",'Base-datos'!$B$726=\"\",'Base-datos'!$B$727=\"Sí\"),IF(AND(N63=\"La actividad sí contribuye sustancialmente a la sostenibilidad\",M63=\"La actividad sí contribuye sustancialmente a la sostenibilidad\"),SUM(B63:L63),0),\"Por definir\"))))))))","v":"Por definir"}]
[{"$f":"Ganadería!$C26","v":"Seleccione"},{"$f":"IF(Ganadería!$E26='Fondos-Inversionistas'!B$12,Ganadería!$B26,\"\")","v":""},{"$f":"IF(Ganadería!$E26='Fondos-Inversionistas'!C$12,Ganadería!$B26,\"\")","v":""},{"$f":"IF(Ganadería!$E26='Fondos-Inversionistas'!D$12,Ganadería!$B26,\"\")","v":""},{"$f":"IF(Ganadería!$E26='Fondos-Inversionistas'!E$12,Ganadería!$B26,\"\")","v":""},{"$f":"IF(Ganadería!$E26='Fondos-Inversionistas'!F$12,Ganadería!$B26,\"\")","v":""},{"$f":"IF(Ganadería!$E26='Fondos-Inversionistas'!G$12,Ganadería!$B26,\"\")","v":""},{"$f":"IF(Ganadería!$E26='Fondos-Inversionistas'!H$12,Ganadería!$B26,\"\")","v":""},{"$f":"IF(Ganadería!$E26='Fondos-Inversionistas'!I$12,Ganadería!$B26,\"\")","v":""},{"$f":"IF(Ganadería!$E26='Fondos-Inversionistas'!J$12,Ganadería!$B26,\"\")","v":""},{"$f":"IF(Ganadería!$E26='Fondos-Inversionistas'!K$12,Ganadería!$B26,\"\")","v":""},{"$f":"IF(Ganadería!$E26='Fondos-Inversionistas'!L$12,Ganadería!$B26,\"\")","v":""},{"$f":"_xlfn.XLOOKUP(A64,'Base-datos'!$B$510:$B$516,'Base-datos'!$F$510:$F$516)","v":{"$error":"#N/A"}},{"$f":"_xlfn.XLOOKUP(A64,'Base-datos'!$B$510:$B$516,'Base-datos'!$C$510:$C$516)","v":{"$error":"#N/A"}},{"$f":"_xlfn.XLOOKUP(A64,'Base-datos'!$B$510:$B$516,'Base-datos'!$D$510:$D$516)","v":{"$error":"#N/A"}},null,null,{"$f":"IF(OR(P$56=\"La actividad no cumple con el total de los criterios de No Daño Significativo\",Q$56=\"El sector no cumple con las salvaguardas mínimas\"),\"\",IF(AND('Base-datos'!$B$725=\"Sí\",'Base-datos'!$B$726=\"\",'Base-datos'!$B$727=\"\"),IF(N64=\"La actividad sí contribuye sustancialmente a la sostenibilidad\",SUM(B64:L64),0),IF(AND('Base-datos'!$B$725=\"Sí\",'Base-datos'!$B$726=\"Sí\",'Base-datos'!$B$727=\"\"),IF(AND(N64=\"La actividad sí contribuye sustancialmente a la sostenibilidad\",O64=\"La actividad sí contribuye sustancialmente a la sostenibilidad\"),SUM(B64:L64),0),IF(AND('Base-datos'!$B$725=\"Sí\",'Base-datos'!$B$726=\"Sí\",'Base-datos'!$B$727=\"Sí\"),IF(AND(N64=\"La actividad sí contribuye sustancialmente a la sostenibilidad\",O64=\"La actividad sí contribuye sustancialmente a la sostenibilidad\",M64=\"La actividad sí contribuye sustancialmente a la sostenibilidad\"),SUM(B64:L64),0),IF(AND('Base-datos'!$B$725=\"\",'Base-datos'!$B$726=\"Sí\",'Base-datos'!$B$727=\"\"),IF(O64=\"La actividad sí contribuye sustancialmente a la sostenibilidad\",SUM(B64:L64),0),IF(AND('Base-datos'!$B$725=\"\",'Base-datos'!$B$726=\"\",'Base-datos'!$B$727=\"Sí\"),IF(M64=\"La actividad sí contribuye sustancialmente a la sostenibilidad\",SUM(B64:L64),0),IF(AND('Base-datos'!$B$725=\"\",'Base-datos'!$B$726=\"Sí\",'Base-datos'!$B$727=\"Sí\"),IF(AND(O64=\"La actividad sí contribuye sustancialmente a la sostenibilidad\",M64=\"La actividad sí contribuye sustancialmente a la sostenibilidad\"),SUM(B64:L64),0),IF(AND('Base-datos'!$B$725=\"Sí\",'Base-datos'!$B$726=\"\",'Base-datos'!$B$727=\"Sí\"),IF(AND(N64=\"La actividad sí contribuye sustancialmente a la sostenibilidad\",M64=\"La actividad sí contribuye sustancialmente a la sostenibilidad\"),SUM(B64:L64),0),\"Por definir\"))))))))","v":"Por definir"}]
[{"$f":"Ganadería!$C28","v":"Seleccione"},{"$f":"IF(Ganadería!$E28='Fondos-Inversionistas'!B$12,Ganadería!$B28,\"\")","v":""},{"$f":"IF(Ganadería!$E28='Fondos-Inversionistas'!C$12,Ganadería!$B28,\"\")","v":""},{"$f":"IF(Ganadería!$E28='Fondos-Inversionistas'!D$12,Ganadería!$B28,\"\")","v":""},{"$f":"IF(Ganadería!$E28='Fondos-Inversionistas'!E$12,Ganadería!$B28,\"\")","v":""},{"$f":"IF(Ganadería!$E28='Fondos-Inversionistas'!F$12,Ganadería!$B28,\"\")","v":""},{"$f":"IF(Ganadería!$E28='Fondos-Inversionistas'!G$12,Ganadería!$B28,\"\")","v":""},{"$f":"IF(Ganadería!$E28='Fondos-Inversionistas'!H$12,Ganadería!$B28,\"\")","v":""},{"$f":"IF(Ganadería!$E28='Fondos-Inversionistas'!I$12,Ganadería!$B28,\"\")","v":""},{"$f":"IF(Ganadería!$E28='Fondos-Inversionistas'!J$12,Ganadería!$B28,\"\")","v":""},{"$f":"IF(Ganadería!$E28='Fondos-Inversionistas'!K$12,Ganadería!$B28,\"\")","v":""},{"$f":"IF(Ganadería!$E28='Fondos-Inversionistas'!L$12,Ganadería!$B28,\"\")","v":""},{"$f":"_xlfn.XLOOKUP(A65,'Base-datos'!$B$510:$B$516,'Base-datos'!$F$510:$F$516)","v":{"$error":"#N/A"}},{"$f":"_xlfn.XLOOKUP(A65,'Base-datos'!$B$510:$B$516,'Base-datos'!$C$510:$C$516)","v":{"$error":"#N/A"}},{"$f":"_xlfn.XLOOKUP(A65,'Base-datos'!$B$510:$B$516,'Base-datos'!$D$510:$D$516)","v":{"$error":"#N/A"}},null,null,{"$f":"IF(OR(P$56=\"La actividad no cumple con el total de los criterios de No Daño Significativo\",Q$56=\"El sector no cumple con las salvaguardas mínimas\"),\"\",IF(AND('Base-datos'!$B$725=\"Sí\",'Base-datos'!$B$726=\"\",'Base-datos'!$B$727=\"\"),IF(N65=\"La actividad sí contribuye sustancialmente a la sostenibilidad\",SUM(B65:L65),0),IF(AND('Base-datos'!$B$725=\"Sí\",'Base-datos'!$B$726=\"Sí\",'Base-datos'!$B$727=\"\"),IF(AND(N65=\"La actividad sí contribuye sustancialmente a la sostenibilidad\",O65=\"La actividad sí contribuye sustancialmente a la sostenibilidad\"),SUM(B65:L65),0),IF(AND('Base-datos'!$B$725=\"Sí\",'Base-datos'!$B$726=\"Sí\",'Base-datos'!$B$727=\"Sí\"),IF(AND(N65=\"La actividad sí contribuye sustancialmente a la sostenibilidad\",O65=\"La actividad sí contribuye sustancialmente a la sostenibilidad\",M65=\"La actividad sí contribuye sustancialmente a la sostenibilidad\"),SUM(B65:L65),0),IF(AND('Base-datos'!$B$725=\"\",'Base-datos'!$B$726=\"Sí\",'Base-datos'!$B$727=\"\"),IF(O65=\"La actividad sí contribuye sustancialmente a la sostenibilidad\",SUM(B65:L65),0),IF(AND('Base-datos'!$B$725=\"\",'Base-datos'!$B$726=\"\",'Base-datos'!$B$727=\"Sí\"),IF(M65=\"La actividad sí contribuye sustancialmente a la sostenibilidad\",SUM(B65:L65),0),IF(AND('Base-datos'!$B$725=\"\",'Base-datos'!$B$726=\"Sí\",'Base-datos'!$B$727=\"Sí\"),IF(AND(O65=\"La actividad sí contribuye sustancialmente a la sostenibilidad\",M65=\"La actividad sí contribuye sustancialmente a la sostenibilidad\"),SUM(B65:L65),0),IF(AND('Base-datos'!$B$725=\"Sí\",'Base-datos'!$B$726=\"\",'Base-datos'!$B$727=\"Sí\"),IF(AND(N65=\"La actividad sí contribuye sustancialmente a la sostenibilidad\",M65=\"La actividad sí contribuye sustancialmente a la sostenibilidad\"),SUM(B65:L65),0),\"Por definir\"))))))))","v":"Por definir"}]
[{"$f":"Ganadería!$C30","v":"Seleccione"},{"$f":"IF(Ganadería!$E30='Fondos-Inversionistas'!B$12,Ganadería!$B30,\"\")","v":""},{"$f":"IF(Ganadería!$E30='Fondos-Inversionistas'!C$12,Ganadería!$B30,\"\")","v":""},{"$f":"IF(Ganadería!$E30='Fondos-Inversionistas'!D$12,Ganadería!$B30,\"\")","v":""},{"$f":"IF(Ganadería!$E30='Fondos-Inversionistas'!E$12,Ganadería!$B30,\"\")","v":""},{"$f":"IF(Ganadería!$E30='Fondos-Inversionistas'!F$12,Ganadería!$B30,\"\")","v":""},{"$f":"IF(Ganadería!$E30='Fondos-Inversionistas'!G$12,Ganadería!$B30,\"\")","v":""},{"$f":"IF(Ganadería!$E30='Fondos-Inversionistas'!H$12,Ganadería!$B30,\"\")","v":""},{"$f":"IF(Ganadería!$E30='Fondos-Inversionistas'!I$12,Ganadería!$B30,\"\")","v":""},{"$f":"IF(Ganadería!$E30='Fondos-Inversionistas'!J$12,Ganadería!$B30,\"\")","v":""},{"$f":"IF(Ganadería!$E30='Fondos-Inversionistas'!K$12,Ganadería!$B30,\"\")","v":""},{"$f":"IF(Ganadería!$E30='Fondos-Inversionistas'!L$12,Ganadería!$B30,\"\")","v":""},{"$f":"_xlfn.XLOOKUP(A66,'Base-datos'!$B$510:$B$516,'Base-datos'!$F$510:$F$516)","v":{"$error":"#N/A"}},{"$f":"_xlfn.XLOOKUP(A66,'Base-datos'!$B$510:$B$516,'Base-datos'!$C$510:$C$516)","v":{"$error":"#N/A"}},{"$f":"_xlfn.XLOOKUP(A66,'Base-datos'!$B$510:$B$516,'Base-datos'!$D$510:$D$516)","v":{"$error":"#N/A"}},null,null,{"$f":"IF(OR(P$56=\"La actividad no cumple con el total de los criterios de No Daño Significativo\",Q$56=\"El sector no cumple con las salvaguardas mínimas\"),\"\",IF(AND('Base-datos'!$B$725=\"Sí\",'Base-datos'!$B$726=\"\",'Base-datos'!$B$727=\"\"),IF(N66=\"La actividad sí contribuye sustancialmente a la sostenibilidad\",SUM(B66:L66),0),IF(AND('Base-datos'!$B$725=\"Sí\",'Base-datos'!$B$726=\"Sí\",'Base-datos'!$B$727=\"\"),IF(AND(N66=\"La actividad sí contribuye sustancialmente a la sostenibilidad\",O66=\"La actividad sí contribuye sustancialmente a la sostenibilidad\"),SUM(B66:L66),0),IF(AND('Base-datos'!$B$725=\"Sí\",'Base-datos'!$B$726=\"Sí\",'Base-datos'!$B$727=\"Sí\"),IF(AND(N66=\"La actividad sí contribuye sustancialmente a la sostenibilidad\",O66=\"La actividad sí contribuye sustancialmente a la sostenibilidad\",M66=\"La actividad sí contribuye sustancialmente a la sostenibilidad\"),SUM(B66:L66),0),IF(AND('Base-datos'!$B$725=\"\",'Base-datos'!$B$726=\"Sí\",'Base-datos'!$B$727=\"\"),IF(O66=\"La actividad sí contribuye sustancialmente a la sostenibilidad\",SUM(B66:L66),0),IF(AND('Base-datos'!$B$725=\"\",'Base-datos'!$B$726=\"\",'Base-datos'!$B$727=\"Sí\"),IF(M66=\"La actividad sí contribuye sustancialmente a la sostenibilidad\",SUM(B66:L66),0),IF(AND('Base-datos'!$B$725=\"\",'Base-datos'!$B$726=\"Sí\",'Base-datos'!$B$727=\"Sí\"),IF(AND(O66=\"La actividad sí contribuye sustancialmente a la sostenibilidad\",M66=\"La actividad sí contribuye sustancialmente a la sostenibilidad\"),SUM(B66:L66),0),IF(AND('Base-datos'!$B$725=\"Sí\",'Base-datos'!$B$726=\"\",'Base-datos'!$B$727=\"Sí\"),IF(AND(N66=\"La actividad sí contribuye sustancialmente a la sostenibilidad\",M66=\"La actividad sí contribuye sustancialmente a la sostenibilidad\"),SUM(B66:L66),0),\"Por definir\"))))))))","v":"Por definir"}]
[{"$f":"Ganadería!$C32","v":"Seleccione"},{"$f":"IF(Ganadería!$E32='Fondos-Inversionistas'!B$12,Ganadería!$B32,\"\")","v":""},{"$f":"IF(Ganadería!$E32='Fondos-Inversionistas'!C$12,Ganadería!$B32,\"\")","v":""},{"$f":"IF(Ganadería!$E32='Fondos-Inversionistas'!D$12,Ganadería!$B32,\"\")","v":""},{"$f":"IF(Ganadería!$E32='Fondos-Inversionistas'!E$12,Ganadería!$B32,\"\")","v":""},{"$f":"IF(Ganadería!$E32='Fondos-Inversionistas'!F$12,Ganadería!$B32,\"\")","v":""},{"$f":"IF(Ganadería!$E32='Fondos-Inversionistas'!G$12,Ganadería!$B32,\"\")","v":""},{"$f":"IF(Ganadería!$E32='Fondos-Inversionistas'!H$12,Ganadería!$B32,\"\")","v":""},{"$f":"IF(Ganadería!$E32='Fondos-Inversionistas'!I$12,Ganadería!$B32,\"\")","v":""},{"$f":"IF(Ganadería!$E32='Fondos-Inversionistas'!J$12,Ganadería!$B32,\"\")","v":""},{"$f":"IF(Ganadería!$E32='Fondos-Inversionistas'!K$12,Ganadería!$B32,\"\")","v":""},{"$f":"IF(Ganadería!$E32='Fondos-Inversionistas'!L$12,Ganadería!$B32,\"\")","v":""},{"$f":"_xlfn.XLOOKUP(A67,'Base-datos'!$B$510:$B$516,'Base-datos'!$F$510:$F$516)","v":{"$error":"#N/A"}},{"$f":"_xlfn.XLOOKUP(A67,'Base-datos'!$B$510:$B$516,'Base-datos'!$C$510:$C$516)","v":{"$error":"#N/A"}},{"$f":"_xlfn.XLOOKUP(A67,'Base-datos'!$B$510:$B$516,'Base-datos'!$D$510:$D$516)","v":{"$error":"#N/A"}},null,null,{"$f":"IF(OR(P$56=\"La actividad no cumple con el total de los criterios de No Daño Significativo\",Q$56=\"El sector no cumple con las salvaguardas mínimas\"),\"\",IF(AND('Base-datos'!$B$725=\"Sí\",'Base-datos'!$B$726=\"\",'Base-datos'!$B$727=\"\"),IF(N67=\"La actividad sí contribuye sustancialmente a la sostenibilidad\",SUM(B67:L67),0),IF(AND('Base-datos'!$B$725=\"Sí\",'Base-datos'!$B$726=\"Sí\",'Base-datos'!$B$727=\"\"),IF(AND(N67=\"La actividad sí contribuye sustancialmente a la sostenibilidad\",O67=\"La actividad sí contribuye sustancialmente a la sostenibilidad\"),SUM(B67:L67),0),IF(AND('Base-datos'!$B$725=\"Sí\",'Base-datos'!$B$726=\"Sí\",'Base-datos'!$B$727=\"Sí\"),IF(AND(N67=\"La actividad sí contribuye sustancialmente a la sostenibilidad\",O67=\"La actividad sí contribuye sustancialmente a la sostenibilidad\",M67=\"La actividad sí contribuye sustancialmente a la sostenibilidad\"),SUM(B67:L67),0),IF(AND('Base-datos'!$B$725=\"\",'Base-datos'!$B$726=\"Sí\",'Base-datos'!$B$727=\"\"),IF(O67=\"La actividad sí contribuye sustancialmente a la sostenibilidad\",SUM(B67:L67),0),IF(AND('Base-datos'!$B$725=\"\",'Base-datos'!$B$726=\"\",'Base-datos'!$B$727=\"Sí\"),IF(M67=\"La actividad sí contribuye sustancialmente a la sostenibilidad\",SUM(B67:L67),0),IF(AND('Base-datos'!$B$725=\"\",'Base-datos'!$B$726=\"Sí\",'Base-datos'!$B$727=\"Sí\"),IF(AND(O67=\"La actividad sí contribuye sustancialmente a la sostenibilidad\",M67=\"La actividad sí contribuye sustancialmente a la sostenibilidad\"),SUM(B67:L67),0),IF(AND('Base-datos'!$B$725=\"Sí\",'Base-datos'!$B$726=\"\",'Base-datos'!$B$727=\"Sí\"),IF(AND(N67=\"La actividad sí contribuye sustancialmente a la sostenibilidad\",M67=\"La actividad sí contribuye sustancialmente a la sostenibilidad\"),SUM(B67:L67),0),\"Por definir\"))))))))","v":"Por definir"}]
[{"$f":"Ganadería!$C34","v":"Seleccione"},{"$f":"IF(Ganadería!$E34='Fondos-Inversionistas'!B$12,Ganadería!$B34,\"\")","v":""},{"$f":"IF(Ganadería!$E34='Fondos-Inversionistas'!C$12,Ganadería!$B34,\"\")","v":""},{"$f":"IF(Ganadería!$E34='Fondos-Inversionistas'!D$12,Ganadería!$B34,\"\")","v":""},{"$f":"IF(Ganadería!$E34='Fondos-Inversionistas'!E$12,Ganadería!$B34,\"\")","v":""},{"$f":"IF(Ganadería!$E34='Fondos-Inversionistas'!F$12,Ganadería!$B34,\"\")","v":""},{"$f":"IF(Ganadería!$E34='Fondos-Inversionistas'!G$12,Ganadería!$B34,\"\")","v":""},{"$f":"IF(Ganadería!$E34='Fondos-Inversionistas'!H$12,Ganadería!$B34,\"\")","v":""},{"$f":"IF(Ganadería!$E34='Fondos-Inversionistas'!I$12,Ganadería!$B34,\"\")","v":""},{"$f":"IF(Ganadería!$E34='Fondos-Inversionistas'!J$12,Ganadería!$B34,\"\")","v":""},{"$f":"IF(Ganadería!$E34='Fondos-Inversionistas'!K$12,Ganadería!$B34,\"\")","v":""},{"$f":"IF(Ganadería!$E34='Fondos-Inversionistas'!L$12,Ganadería!$B34,\"\")","v":""},{"$f":"_xlfn.XLOOKUP(A68,'Base-datos'!$B$510:$B$516,'Base-datos'!$F$510:$F$516)","v":{"$error":"#N/A"}},{"$f":"_xlfn.XLOOKUP(A68,'Base-datos'!$B$510:$B$516,'Base-datos'!$C$510:$C$516)","v":{"$error":"#N/A"}},{"$f":"_xlfn.XLOOKUP(A68,'Base-datos'!$B$510:$B$516,'Base-datos'!$D$510:$D$516)","v":{"$error":"#N/A"}},null,null,{"$f":"IF(OR(P$56=\"La actividad no cumple con el total de los criterios de No Daño Significativo\",Q$56=\"El sector no cumple con las salvaguardas mínimas\"),\"\",IF(AND('Base-datos'!$B$725=\"Sí\",'Base-datos'!$B$726=\"\",'Base-datos'!$B$727=\"\"),IF(N68=\"La actividad sí contribuye sustancialmente a la sostenibilidad\",SUM(B68:L68),0),IF(AND('Base-datos'!$B$725=\"Sí\",'Base-datos'!$B$726=\"Sí\",'Base-datos'!$B$727=\"\"),IF(AND(N68=\"La actividad sí contribuye sustancialmente a la sostenibilidad\",O68=\"La actividad sí contribuye sustancialmente a la sostenibilidad\"),SUM(B68:L68),0),IF(AND('Base-datos'!$B$725=\"Sí\",'Base-datos'!$B$726=\"Sí\",'Base-datos'!$B$727=\"Sí\"),IF(AND(N68=\"La actividad sí contribuye sustancialmente a la sostenibilidad\",O68=\"La actividad sí contribuye sustancialmente a la sostenibilidad\",M68=\"La actividad sí contribuye sustancialmente a la sostenibilidad\"),SUM(B68:L68),0),IF(AND('Base-datos'!$B$725=\"\",'Base-datos'!$B$726=\"Sí\",'Base-datos'!$B$727=\"\"),IF(O68=\"La actividad sí contribuye sustancialmente a la sostenibilidad\",SUM(B68:L68),0),IF(AND('Base-datos'!$B$725=\"\",'Base-datos'!$B$726=\"\",'Base-datos'!$B$727=\"Sí\"),IF(M68=\"La actividad sí contribuye sustancialmente a la sostenibilidad\",SUM(B68:L68),0),IF(AND('Base-datos'!$B$725=\"\",'Base-datos'!$B$726=\"Sí\",'Base-datos'!$B$727=\"Sí\"),IF(AND(O68=\"La actividad sí contribuye sustancialmente a la sostenibilidad\",M68=\"La actividad sí contribuye sustancialmente a la sostenibilidad\"),SUM(B68:L68),0),IF(AND('Base-datos'!$B$725=\"Sí\",'Base-datos'!$B$726=\"\",'Base-datos'!$B$727=\"Sí\"),IF(AND(N68=\"La actividad sí contribuye sustancialmente a la sostenibilidad\",M68=\"La actividad sí contribuye sustancialmente a la sostenibilidad\"),SUM(B68:L68),0),\"Por definir\"))))))))","v":"Por definir"}]
[{"$f":"Ganadería!$C36","v":"Seleccione"},{"$f":"IF(Ganadería!$E36='Fondos-Inversionistas'!B$12,Ganadería!$B36,\"\")","v":""},{"$f":"IF(Ganadería!$E36='Fondos-Inversionistas'!C$12,Ganadería!$B36,\"\")","v":""},{"$f":"IF(Ganadería!$E36='Fondos-Inversionistas'!D$12,Ganadería!$B36,\"\")","v":""},{"$f":"IF(Ganadería!$E36='Fondos-Inversionistas'!E$12,Ganadería!$B36,\"\")","v":""},{"$f":"IF(Ganadería!$E36='Fondos-Inversionistas'!F$12,Ganadería!$B36,\"\")","v":""},{"$f":"IF(Ganadería!$E36='Fondos-Inversionistas'!G$12,Ganadería!$B36,\"\")","v":""},{"$f":"IF(Ganadería!$E36='Fondos-Inversionistas'!H$12,Ganadería!$B36,\"\")","v":""},{"$f":"IF(Ganadería!$E36='Fondos-Inversionistas'!I$12,Ganadería!$B36,\"\")","v":""},{"$f":"IF(Ganadería!$E36='Fondos-Inversionistas'!J$12,Ganadería!$B36,\"\")","v":""},{"$f":"IF(Ganadería!$E36='Fondos-Inversionistas'!K$12,Ganadería!$B36,\"\")","v":""},{"$f":"IF(Ganadería!$E36='Fondos-Inversionistas'!L$12,Ganadería!$B36,\"\")","v":""},{"$f":"_xlfn.XLOOKUP(A69,'Base-datos'!$B$510:$B$516,'Base-datos'!$F$510:$F$516)","v":{"$error":"#N/A"}},{"$f":"_xlfn.XLOOKUP(A69,'Base-datos'!$B$510:$B$516,'Base-datos'!$C$510:$C$516)","v":{"$error":"#N/A"}},{"$f":"_xlfn.XLOOKUP(A69,'Base-datos'!$B$510:$B$516,'Base-datos'!$D$510:$D$516)","v":{"$error":"#N/A"}},null,null,{"$f":"IF(OR(P$56=\"La actividad no cumple con el total de los criterios de No Daño Significativo\",Q$56=\"El sector no cumple con las salvaguardas mínimas\"),\"\",IF(AND('Base-datos'!$B$725=\"Sí\",'Base-datos'!$B$726=\"\",'Base-datos'!$B$727=\"\"),IF(N69=\"La actividad sí contribuye sustancialmente a la sostenibilidad\",SUM(B69:L69),0),IF(AND('Base-datos'!$B$725=\"Sí\",'Base-datos'!$B$726=\"Sí\",'Base-datos'!$B$727=\"\"),IF(AND(N69=\"La actividad sí contribuye sustancialmente a la sostenibilidad\",O69=\"La actividad sí contribuye sustancialmente a la sostenibilidad\"),SUM(B69:L69),0),IF(AND('Base-datos'!$B$725=\"Sí\",'Base-datos'!$B$726=\"Sí\",'Base-datos'!$B$727=\"Sí\"),IF(AND(N69=\"La actividad sí contribuye sustancialmente a la sostenibilidad\",O69=\"La actividad sí contribuye sustancialmente a la sostenibilidad\",M69=\"La actividad sí contribuye sustancialmente a la sostenibilidad\"),SUM(B69:L69),0),IF(AND('Base-datos'!$B$725=\"\",'Base-datos'!$B$726=\"Sí\",'Base-datos'!$B$727=\"\"),IF(O69=\"La actividad sí contribuye sustancialmente a la sostenibilidad\",SUM(B69:L69),0),IF(AND('Base-datos'!$B$725=\"\",'Base-datos'!$B$726=\"\",'Base-datos'!$B$727=\"Sí\"),IF(M69=\"La actividad sí contribuye sustancialmente a la sostenibilidad\",SUM(B69:L69),0),IF(AND('Base-datos'!$B$725=\"\",'Base-datos'!$B$726=\"Sí\",'Base-datos'!$B$727=\"Sí\"),IF(AND(O69=\"La actividad sí contribuye sustancialmente a la sostenibilidad\",M69=\"La actividad sí contribuye sustancialmente a la sostenibilidad\"),SUM(B69:L69),0),IF(AND('Base-datos'!$B$725=\"Sí\",'Base-datos'!$B$726=\"\",'Base-datos'!$B$727=\"Sí\"),IF(AND(N69=\"La actividad sí contribuye sustancialmente a la sostenibilidad\",M69=\"La actividad sí contribuye sustancialmente a la sostenibilidad\"),SUM(B69:L69),0),\"Por definir\"))))))))","v":"Por definir"}]
[{"$f":"Ganadería!$C38","v":"Seleccione"},{"$f":"IF(Ganadería!$E38='Fondos-Inversionistas'!B$12,Ganadería!$B38,\"\")","v":""},{"$f":"IF(Ganadería!$E38='Fondos-Inversionistas'!C$12,Ganadería!$B38,\"\")","v":""},{"$f":"IF(Ganadería!$E38='Fondos-Inversionistas'!D$12,Ganadería!$B38,\"\")","v":""},{"$f":"IF(Ganadería!$E38='Fondos-Inversionistas'!E$12,Ganadería!$B38,\"\")","v":""},{"$f":"IF(Ganadería!$E38='Fondos-Inversionistas'!F$12,Ganadería!$B38,\"\")","v":""},{"$f":"IF(Ganadería!$E38='Fondos-Inversionistas'!G$12,Ganadería!$B38,\"\")","v":""},{"$f":"IF(Ganadería!$E38='Fondos-Inversionistas'!H$12,Ganadería!$B38,\"\")","v":""},{"$f":"IF(Ganadería!$E38='Fondos-Inversionistas'!I$12,Ganadería!$B38,\"\")","v":""},{"$f":"IF(Ganadería!$E38='Fondos-Inversionistas'!J$12,Ganadería!$B38,\"\")","v":""},{"$f":"IF(Ganadería!$E38='Fondos-Inversionistas'!K$12,Ganadería!$B38,\"\")","v":""},{"$f":"IF(Ganadería!$E38='Fondos-Inversionistas'!L$12,Ganadería!$B38,\"\")","v":""},{"$f":"_xlfn.XLOOKUP(A70,'Base-datos'!$B$510:$B$516,'Base-datos'!$F$510:$F$516)","v":{"$error":"#N/A"}},{"$f":"_xlfn.XLOOKUP(A70,'Base-datos'!$B$510:$B$516,'Base-datos'!$C$510:$C$516)","v":{"$error":"#N/A"}},{"$f":"_xlfn.XLOOKUP(A70,'Base-datos'!$B$510:$B$516,'Base-datos'!$D$510:$D$516)","v":{"$error":"#N/A"}},null,null,{"$f":"IF(OR(P$56=\"La actividad no cumple con el total de los criterios de No Daño Significativo\",Q$56=\"El sector no cumple con las salvaguardas mínimas\"),\"\",IF(AND('Base-datos'!$B$725=\"Sí\",'Base-datos'!$B$726=\"\",'Base-datos'!$B$727=\"\"),IF(N70=\"La actividad sí contribuye sustancialmente a la sostenibilidad\",SUM(B70:L70),0),IF(AND('Base-datos'!$B$725=\"Sí\",'Base-datos'!$B$726=\"Sí\",'Base-datos'!$B$727=\"\"),IF(AND(N70=\"La actividad sí contribuye sustancialmente a la sostenibilidad\",O70=\"La actividad sí contribuye sustancialmente a la sostenibilidad\"),SUM(B70:L70),0),IF(AND('Base-datos'!$B$725=\"Sí\",'Base-datos'!$B$726=\"Sí\",'Base-datos'!$B$727=\"Sí\"),IF(AND(N70=\"La actividad sí contribuye sustancialmente a la sostenibilidad\",O70=\"La actividad sí contribuye sustancialmente a la sostenibilidad\",M70=\"La actividad sí contribuye sustancialmente a la sostenibilidad\"),SUM(B70:L70),0),IF(AND('Base-datos'!$B$725=\"\",'Base-datos'!$B$726=\"Sí\",'Base-datos'!$B$727=\"\"),IF(O70=\"La actividad sí contribuye sustancialmente a la sostenibilidad\",SUM(B70:L70),0),IF(AND('Base-datos'!$B$725=\"\",'Base-datos'!$B$726=\"\",'Base-datos'!$B$727=\"Sí\"),IF(M70=\"La actividad sí contribuye sustancialmente a la sostenibilidad\",SUM(B70:L70),0),IF(AND('Base-datos'!$B$725=\"\",'Base-datos'!$B$726=\"Sí\",'Base-datos'!$B$727=\"Sí\"),IF(AND(O70=\"La actividad sí contribuye sustancialmente a la sostenibilidad\",M70=\"La actividad sí contribuye sustancialmente a la sostenibilidad\"),SUM(B70:L70),0),IF(AND('Base-datos'!$B$725=\"Sí\",'Base-datos'!$B$726=\"\",'Base-datos'!$B$727=\"Sí\"),IF(AND(N70=\"La actividad sí contribuye sustancialmente a la sostenibilidad\",M70=\"La actividad sí contribuye sustancialmente a la sostenibilidad\"),SUM(B70:L70),0),\"Por definir\"))))))))","v":"Por definir"}]
[{"$f":"Ganadería!$C40","v":"Seleccione"},{"$f":"IF(Ganadería!$E40='Fondos-Inversionistas'!B$12,Ganadería!$B40,\"\")","v":""},{"$f":"IF(Ganadería!$E40='Fondos-Inversionistas'!C$12,Ganadería!$B40,\"\")","v":""},{"$f":"IF(Ganadería!$E40='Fondos-Inversionistas'!D$12,Ganadería!$B40,\"\")","v":""},{"$f":"IF(Ganadería!$E40='Fondos-Inversionistas'!E$12,Ganadería!$B40,\"\")","v":""},{"$f":"IF(Ganadería!$E40='Fondos-Inversionistas'!F$12,Ganadería!$B40,\"\")","v":""},{"$f":"IF(Ganadería!$E40='Fondos-Inversionistas'!G$12,Ganadería!$B40,\"\")","v":""},{"$f":"IF(Ganadería!$E40='Fondos-Inversionistas'!H$12,Ganadería!$B40,\"\")","v":""},{"$f":"IF(Ganadería!$E40='Fondos-Inversionistas'!I$12,Ganadería!$B40,\"\")","v":""},{"$f":"IF(Ganadería!$E40='Fondos-Inversionistas'!J$12,Ganadería!$B40,\"\")","v":""},{"$f":"IF(Ganadería!$E40='Fondos-Inversionistas'!K$12,Ganadería!$B40,\"\")","v":""},{"$f":"IF(Ganadería!$E40='Fondos-Inversionistas'!L$12,Ganadería!$B40,\"\")","v":""},{"$f":"_xlfn.XLOOKUP(A71,'Base-datos'!$B$510:$B$516,'Base-datos'!$F$510:$F$516)","v":{"$error":"#N/A"}},{"$f":"_xlfn.XLOOKUP(A71,'Base-datos'!$B$510:$B$516,'Base-datos'!$C$510:$C$516)","v":{"$error":"#N/A"}},{"$f":"_xlfn.XLOOKUP(A71,'Base-datos'!$B$510:$B$516,'Base-datos'!$D$510:$D$516)","v":{"$error":"#N/A"}},null,null,{"$f":"IF(OR(P$56=\"La actividad no cumple con el total de los criterios de No Daño Significativo\",Q$56=\"El sector no cumple con las salvaguardas mínimas\"),\"\",IF(AND('Base-datos'!$B$725=\"Sí\",'Base-datos'!$B$726=\"\",'Base-datos'!$B$727=\"\"),IF(N71=\"La actividad sí contribuye sustancialmente a la sostenibilidad\",SUM(B71:L71),0),IF(AND('Base-datos'!$B$725=\"Sí\",'Base-datos'!$B$726=\"Sí\",'Base-datos'!$B$727=\"\"),IF(AND(N71=\"La actividad sí contribuye sustancialmente a la sostenibilidad\",O71=\"La actividad sí contribuye sustancialmente a la sostenibilidad\"),SUM(B71:L71),0),IF(AND('Base-datos'!$B$725=\"Sí\",'Base-datos'!$B$726=\"Sí\",'Base-datos'!$B$727=\"Sí\"),IF(AND(N71=\"La actividad sí contribuye sustancialmente a la sostenibilidad\",O71=\"La actividad sí contribuye sustancialmente a la sostenibilidad\",M71=\"La actividad sí contribuye sustancialmente a la sostenibilidad\"),SUM(B71:L71),0),IF(AND('Base-datos'!$B$725=\"\",'Base-datos'!$B$726=\"Sí\",'Base-datos'!$B$727=\"\"),IF(O71=\"La actividad sí contribuye sustancialmente a la sostenibilidad\",SUM(B71:L71),0),IF(AND('Base-datos'!$B$725=\"\",'Base-datos'!$B$726=\"\",'Base-datos'!$B$727=\"Sí\"),IF(M71=\"La actividad sí contribuye sustancialmente a la sostenibilidad\",SUM(B71:L71),0),IF(AND('Base-datos'!$B$725=\"\",'Base-datos'!$B$726=\"Sí\",'Base-datos'!$B$727=\"Sí\"),IF(AND(O71=\"La actividad sí contribuye sustancialmente a la sostenibilidad\",M71=\"La actividad sí contribuye sustancialmente a la sostenibilidad\"),SUM(B71:L71),0),IF(AND('Base-datos'!$B$725=\"Sí\",'Base-datos'!$B$726=\"\",'Base-datos'!$B$727=\"Sí\"),IF(AND(N71=\"La actividad sí contribuye sustancialmente a la sostenibilidad\",M71=\"La actividad sí contribuye sustancialmente a la sostenibilidad\"),SUM(B71:L71),0),\"Por definir\"))))))))","v":"Por definir"}]
[{"$f":"Ganadería!$C42","v":"Seleccione"},{"$f":"IF(Ganadería!$E42='Fondos-Inversionistas'!B$12,Ganadería!$B42,\"\")","v":""},{"$f":"IF(Ganadería!$E42='Fondos-Inversionistas'!C$12,Ganadería!$B42,\"\")","v":""},{"$f":"IF(Ganadería!$E42='Fondos-Inversionistas'!D$12,Ganadería!$B42,\"\")","v":""},{"$f":"IF(Ganadería!$E42='Fondos-Inversionistas'!E$12,Ganadería!$B42,\"\")","v":""},{"$f":"IF(Ganadería!$E42='Fondos-Inversionistas'!F$12,Ganadería!$B42,\"\")","v":""},{"$f":"IF(Ganadería!$E42='Fondos-Inversionistas'!G$12,Ganadería!$B42,\"\")","v":""},{"$f":"IF(Ganadería!$E42='Fondos-Inversionistas'!H$12,Ganadería!$B42,\"\")","v":""},{"$f":"IF(Ganadería!$E42='Fondos-Inversionistas'!I$12,Ganadería!$B42,\"\")","v":""},{"$f":"IF(Ganadería!$E42='Fondos-Inversionistas'!J$12,Ganadería!$B42,\"\")","v":""},{"$f":"IF(Ganadería!$E42='Fondos-Inversionistas'!K$12,Ganadería!$B42,\"\")","v":""},{"$f":"IF(Ganadería!$E42='Fondos-Inversionistas'!L$12,Ganadería!$B42,\"\")","v":""},{"$f":"_xlfn.XLOOKUP(A72,'Base-datos'!$B$510:$B$516,'Base-datos'!$F$510:$F$516)","v":{"$error":"#N/A"}},{"$f":"_xlfn.XLOOKUP(A72,'Base-datos'!$B$510:$B$516,'Base-datos'!$C$510:$C$516)","v":{"$error":"#N/A"}},{"$f":"_xlfn.XLOOKUP(A72,'Base-datos'!$B$510:$B$516,'Base-datos'!$D$510:$D$516)","v":{"$error":"#N/A"}},null,null,{"$f":"IF(OR(P$56=\"La actividad no cumple con el total de los criterios de No Daño Significativo\",Q$56=\"El sector no cumple con las salvaguardas mínimas\"),\"\",IF(AND('Base-datos'!$B$725=\"Sí\",'Base-datos'!$B$726=\"\",'Base-datos'!$B$727=\"\"),IF(N72=\"La actividad sí contribuye sustancialmente a la sostenibilidad\",SUM(B72:L72),0),IF(AND('Base-datos'!$B$725=\"Sí\",'Base-datos'!$B$726=\"Sí\",'Base-datos'!$B$727=\"\"),IF(AND(N72=\"La actividad sí contribuye sustancialmente a la sostenibilidad\",O72=\"La actividad sí contribuye sustancialmente a la sostenibilidad\"),SUM(B72:L72),0),IF(AND('Base-datos'!$B$725=\"Sí\",'Base-datos'!$B$726=\"Sí\",'Base-datos'!$B$727=\"Sí\"),IF(AND(N72=\"La actividad sí contribuye sustancialmente a la sostenibilidad\",O72=\"La actividad sí contribuye sustancialmente a la sostenibilidad\",M72=\"La actividad sí contribuye sustancialmente a la sostenibilidad\"),SUM(B72:L72),0),IF(AND('Base-datos'!$B$725=\"\",'Base-datos'!$B$726=\"Sí\",'Base-datos'!$B$727=\"\"),IF(O72=\"La actividad sí contribuye sustancialmente a la sostenibilidad\",SUM(B72:L72),0),IF(AND('Base-datos'!$B$725=\"\",'Base-datos'!$B$726=\"\",'Base-datos'!$B$727=\"Sí\"),IF(M72=\"La actividad sí contribuye sustancialmente a la sostenibilidad\",SUM(B72:L72),0),IF(AND('Base-datos'!$B$725=\"\",'Base-datos'!$B$726=\"Sí\",'Base-datos'!$B$727=\"Sí\"),IF(AND(O72=\"La actividad sí contribuye sustancialmente a la sostenibilidad\",M72=\"La actividad sí contribuye sustancialmente a la sostenibilidad\"),SUM(B72:L72),0),IF(AND('Base-datos'!$B$725=\"Sí\",'Base-datos'!$B$726=\"\",'Base-datos'!$B$727=\"Sí\"),IF(AND(N72=\"La actividad sí contribuye sustancialmente a la sostenibilidad\",M72=\"La actividad sí contribuye sustancialmente a la sostenibilidad\"),SUM(B72:L72),0),\"Por definir\"))))))))","v":"Por definir"}]
[{"$f":"Ganadería!$C44","v":"Seleccione"},{"$f":"IF(Ganadería!$E44='Fondos-Inversionistas'!B$12,Ganadería!$B44,\"\")","v":""},{"$f":"IF(Ganadería!$E44='Fondos-Inversionistas'!C$12,Ganadería!$B44,\"\")","v":""},{"$f":"IF(Ganadería!$E44='Fondos-Inversionistas'!D$12,Ganadería!$B44,\"\")","v":""},{"$f":"IF(Ganadería!$E44='Fondos-Inversionistas'!E$12,Ganadería!$B44,\"\")","v":""},{"$f":"IF(Ganadería!$E44='Fondos-Inversionistas'!F$12,Ganadería!$B44,\"\")","v":""},{"$f":"IF(Ganadería!$E44='Fondos-Inversionistas'!G$12,Ganadería!$B44,\"\")","v":""},{"$f":"IF(Ganadería!$E44='Fondos-Inversionistas'!H$12,Ganadería!$B44,\"\")","v":""},{"$f":"IF(Ganadería!$E44='Fondos-Inversionistas'!I$12,Ganadería!$B44,\"\")","v":""},{"$f":"IF(Ganadería!$E44='Fondos-Inversionistas'!J$12,Ganadería!$B44,\"\")","v":""},{"$f":"IF(Ganadería!$E44='Fondos-Inversionistas'!K$12,Ganadería!$B44,\"\")","v":""},{"$f":"IF(Ganadería!$E44='Fondos-Inversionistas'!L$12,Ganadería!$B44,\"\")","v":""},{"$f":"_xlfn.XLOOKUP(A73,'Base-datos'!$B$510:$B$516,'Base-datos'!$F$510:$F$516)","v":{"$error":"#N/A"}},{"$f":"_xlfn.XLOOKUP(A73,'Base-datos'!$B$510:$B$516,'Base-datos'!$C$510:$C$516)","v":{"$error":"#N/A"}},{"$f":"_xlfn.XLOOKUP(A73,'Base-datos'!$B$510:$B$516,'Base-datos'!$D$510:$D$516)","v":{"$error":"#N/A"}},null,null,{"$f":"IF(OR(P$56=\"La actividad no cumple con el total de los criterios de No Daño Significativo\",Q$56=\"El sector no cumple con las salvaguardas mínimas\"),\"\",IF(AND('Base-datos'!$B$725=\"Sí\",'Base-datos'!$B$726=\"\",'Base-datos'!$B$727=\"\"),IF(N73=\"La actividad sí contribuye sustancialmente a la sostenibilidad\",SUM(B73:L73),0),IF(AND('Base-datos'!$B$725=\"Sí\",'Base-datos'!$B$726=\"Sí\",'Base-datos'!$B$727=\"\"),IF(AND(N73=\"La actividad sí contribuye sustancialmente a la sostenibilidad\",O73=\"La actividad sí contribuye sustancialmente a la sostenibilidad\"),SUM(B73:L73),0),IF(AND('Base-datos'!$B$725=\"Sí\",'Base-datos'!$B$726=\"Sí\",'Base-datos'!$B$727=\"Sí\"),IF(AND(N73=\"La actividad sí contribuye sustancialmente a la sostenibilidad\",O73=\"La actividad sí contribuye sustancialmente a la sostenibilidad\",M73=\"La actividad sí contribuye sustancialmente a la sostenibilidad\"),SUM(B73:L73),0),IF(AND('Base-datos'!$B$725=\"\",'Base-datos'!$B$726=\"Sí\",'Base-datos'!$B$727=\"\"),IF(O73=\"La actividad sí contribuye sustancialmente a la sostenibilidad\",SUM(B73:L73),0),IF(AND('Base-datos'!$B$725=\"\",'Base-datos'!$B$726=\"\",'Base-datos'!$B$727=\"Sí\"),IF(M73=\"La actividad sí contribuye sustancialmente a la sostenibilidad\",SUM(B73:L73),0),IF(AND('Base-datos'!$B$725=\"\",'Base-datos'!$B$726=\"Sí\",'Base-datos'!$B$727=\"Sí\"),IF(AND(O73=\"La actividad sí contribuye sustancialmente a la sostenibilidad\",M73=\"La actividad sí contribuye sustancialmente a la sostenibilidad\"),SUM(B73:L73),0),IF(AND('Base-datos'!$B$725=\"Sí\",'Base-datos'!$B$726=\"\",'Base-datos'!$B$727=\"Sí\"),IF(AND(N73=\"La actividad sí contribuye sustancialmente a la sostenibilidad\",M73=\"La actividad sí contribuye sustancialmente a la sostenibilidad\"),SUM(B73:L73),0),\"Por definir\"))))))))","v":"Por definir"}]
[{"$f":"Ganadería!$C46","v":"Seleccione"},{"$f":"IF(Ganadería!$E46='Fondos-Inversionistas'!B$12,Ganadería!$B46,\"\")","v":""},{"$f":"IF(Ganadería!$E46='Fondos-Inversionistas'!C$12,Ganadería!$B46,\"\")","v":""},{"$f":"IF(Ganadería!$E46='Fondos-Inversionistas'!D$12,Ganadería!$B46,\"\")","v":""},{"$f":"IF(Ganadería!$E46='Fondos-Inversionistas'!E$12,Ganadería!$B46,\"\")","v":""},{"$f":"IF(Ganadería!$E46='Fondos-Inversionistas'!F$12,Ganadería!$B46,\"\")","v":""},{"$f":"IF(Ganadería!$E46='Fondos-Inversionistas'!G$12,Ganadería!$B46,\"\")","v":""},{"$f":"IF(Ganadería!$E46='Fondos-Inversionistas'!H$12,Ganadería!$B46,\"\")","v":""},{"$f":"IF(Ganadería!$E46='Fondos-Inversionistas'!I$12,Ganadería!$B46,\"\")","v":""},{"$f":"IF(Ganadería!$E46='Fondos-Inversionistas'!J$12,Ganadería!$B46,\"\")","v":""},{"$f":"IF(Ganadería!$E46='Fondos-Inversionistas'!K$12,Ganadería!$B46,\"\")","v":""},{"$f":"IF(Ganadería!$E46='Fondos-Inversionistas'!L$12,Ganadería!$B46,\"\")","v":""},{"$f":"_xlfn.XLOOKUP(A74,'Base-datos'!$B$510:$B$516,'Base-datos'!$F$510:$F$516)","v":{"$error":"#N/A"}},{"$f":"_xlfn.XLOOKUP(A74,'Base-datos'!$B$510:$B$516,'Base-datos'!$C$510:$C$516)","v":{"$error":"#N/A"}},{"$f":"_xlfn.XLOOKUP(A74,'Base-datos'!$B$510:$B$516,'Base-datos'!$D$510:$D$516)","v":{"$error":"#N/A"}},null,null,{"$f":"IF(OR(P$56=\"La actividad no cumple con el total de los criterios de No Daño Significativo\",Q$56=\"El sector no cumple con las salvaguardas mínimas\"),\"\",IF(AND('Base-datos'!$B$725=\"Sí\",'Base-datos'!$B$726=\"\",'Base-datos'!$B$727=\"\"),IF(N74=\"La actividad sí contribuye sustancialmente a la sostenibilidad\",SUM(B74:L74),0),IF(AND('Base-datos'!$B$725=\"Sí\",'Base-datos'!$B$726=\"Sí\",'Base-datos'!$B$727=\"\"),IF(AND(N74=\"La actividad sí contribuye sustancialmente a la sostenibilidad\",O74=\"La actividad sí contribuye sustancialmente a la sostenibilidad\"),SUM(B74:L74),0),IF(AND('Base-datos'!$B$725=\"Sí\",'Base-datos'!$B$726=\"Sí\",'Base-datos'!$B$727=\"Sí\"),IF(AND(N74=\"La actividad sí contribuye sustancialmente a la sostenibilidad\",O74=\"La actividad sí contribuye sustancialmente a la sostenibilidad\",M74=\"La actividad sí contribuye sustancialmente a la sostenibilidad\"),SUM(B74:L74),0),IF(AND('Base-datos'!$B$725=\"\",'Base-datos'!$B$726=\"Sí\",'Base-datos'!$B$727=\"\"),IF(O74=\"La actividad sí contribuye sustancialmente a la sostenibilidad\",SUM(B74:L74),0),IF(AND('Base-datos'!$B$725=\"\",'Base-datos'!$B$726=\"\",'Base-datos'!$B$727=\"Sí\"),IF(M74=\"La actividad sí contribuye sustancialmente a la sostenibilidad\",SUM(B74:L74),0),IF(AND('Base-datos'!$B$725=\"\",'Base-datos'!$B$726=\"Sí\",'Base-datos'!$B$727=\"Sí\"),IF(AND(O74=\"La actividad sí contribuye sustancialmente a la sostenibilidad\",M74=\"La actividad sí contribuye sustancialmente a la sostenibilidad\"),SUM(B74:L74),0),IF(AND('Base-datos'!$B$725=\"Sí\",'Base-datos'!$B$726=\"\",'Base-datos'!$B$727=\"Sí\"),IF(AND(N74=\"La actividad sí contribuye sustancialmente a la sostenibilidad\",M74=\"La actividad sí contribuye sustancialmente a la sostenibilidad\"),SUM(B74:L74),0),\"Por definir\"))))))))","v":"Por definir"}]
[{"$f":"Ganadería!$C48","v":"Seleccione"},{"$f":"IF(Ganadería!$E48='Fondos-Inversionistas'!B$12,Ganadería!$B48,\"\")","v":""},{"$f":"IF(Ganadería!$E48='Fondos-Inversionistas'!C$12,Ganadería!$B48,\"\")","v":""},{"$f":"IF(Ganadería!$E48='Fondos-Inversionistas'!D$12,Ganadería!$B48,\"\")","v":""},{"$f":"IF(Ganadería!$E48='Fondos-Inversionistas'!E$12,Ganadería!$B48,\"\")","v":""},{"$f":"IF(Ganadería!$E48='Fondos-Inversionistas'!F$12,Ganadería!$B48,\"\")","v":""},{"$f":"IF(Ganadería!$E48='Fondos-Inversionistas'!G$12,Ganadería!$B48,\"\")","v":""},{"$f":"IF(Ganadería!$E48='Fondos-Inversionistas'!H$12,Ganadería!$B48,\"\")","v":""},{"$f":"IF(Ganadería!$E48='Fondos-Inversionistas'!I$12,Ganadería!$B48,\"\")","v":""},{"$f":"IF(Ganadería!$E48='Fondos-Inversionistas'!J$12,Ganadería!$B48,\"\")","v":""},{"$f":"IF(Ganadería!$E48='Fondos-Inversionistas'!K$12,Ganadería!$B48,\"\")","v":""},{"$f":"IF(Ganadería!$E48='Fondos-Inversionistas'!L$12,Ganadería!$B48,\"\")","v":""},{"$f":"_xlfn.XLOOKUP(A75,'Base-datos'!$B$510:$B$516,'Base-datos'!$F$510:$F$516)","v":{"$error":"#N/A"}},{"$f":"_xlfn.XLOOKUP(A75,'Base-datos'!$B$510:$B$516,'Base-datos'!$C$510:$C$516)","v":{"$error":"#N/A"}},{"$f":"_xlfn.XLOOKUP(A75,'Base-datos'!$B$510:$B$516,'Base-datos'!$D$510:$D$516)","v":{"$error":"#N/A"}},null,null,{"$f":"IF(OR(P$56=\"La actividad no cumple con el total de los criterios de No Daño Significativo\",Q$56=\"El sector no cumple con las salvaguardas mínimas\"),\"\",IF(AND('Base-datos'!$B$725=\"Sí\",'Base-datos'!$B$726=\"\",'Base-datos'!$B$727=\"\"),IF(N75=\"La actividad sí contribuye sustancialmente a la sostenibilidad\",SUM(B75:L75),0),IF(AND('Base-datos'!$B$725=\"Sí\",'Base-datos'!$B$726=\"Sí\",'Base-datos'!$B$727=\"\"),IF(AND(N75=\"La actividad sí contribuye sustancialmente a la sostenibilidad\",O75=\"La actividad sí contribuye sustancialmente a la sostenibilidad\"),SUM(B75:L75),0),IF(AND('Base-datos'!$B$725=\"Sí\",'Base-datos'!$B$726=\"Sí\",'Base-datos'!$B$727=\"Sí\"),IF(AND(N75=\"La actividad sí contribuye sustancialmente a la sostenibilidad\",O75=\"La actividad sí contribuye sustancialmente a la sostenibilidad\",M75=\"La actividad sí contribuye sustancialmente a la sostenibilidad\"),SUM(B75:L75),0),IF(AND('Base-datos'!$B$725=\"\",'Base-datos'!$B$726=\"Sí\",'Base-datos'!$B$727=\"\"),IF(O75=\"La actividad sí contribuye sustancialmente a la sostenibilidad\",SUM(B75:L75),0),IF(AND('Base-datos'!$B$725=\"\",'Base-datos'!$B$726=\"\",'Base-datos'!$B$727=\"Sí\"),IF(M75=\"La actividad sí contribuye sustancialmente a la sostenibilidad\",SUM(B75:L75),0),IF(AND('Base-datos'!$B$725=\"\",'Base-datos'!$B$726=\"Sí\",'Base-datos'!$B$727=\"Sí\"),IF(AND(O75=\"La actividad sí contribuye sustancialmente a la sostenibilidad\",M75=\"La actividad sí contribuye sustancialmente a la sostenibilidad\"),SUM(B75:L75),0),IF(AND('Base-datos'!$B$725=\"Sí\",'Base-datos'!$B$726=\"\",'Base-datos'!$B$727=\"Sí\"),IF(AND(N75=\"La actividad sí contribuye sustancialmente a la sostenibilidad\",M75=\"La actividad sí contribuye sustancialmente a la sostenibilidad\"),SUM(B75:L75),0),\"Por definir\"))))))))","v":"Por definir"}]
["Energía",null,null,null,null,null,null,null,null,null,null,null,null,null,null,null,null,{"$f":"SUM(IF(FREQUENCY(MATCH(A77:A96, A77:A96, 0), MATCH(A77:A96, A77:A96, 0)) > 0, IF(NOT(ISERROR(R77:R96)), R77:R96, 0)))","v":0}]
[{"$f":"Energía!$C10","v":"Seleccione"},{"$f":"IF(Energía!$E10='Fondos-Inversionistas'!B$12,Energía!$B10,\"\")","v":""},{"$f":"IF(Energía!$E10='Fondos-Inversionistas'!C$12,Energía!$B10,\"\")","v":""},{"$f":"IF(Energía!$E10='Fondos-Inversionistas'!D$12,Energía!$B10,\"\")","v":""},{"$f":"IF(Energía!$E10='Fondos-Inversionistas'!E$12,Energía!$B10,\"\")","v":""},{"$f":"IF(Energía!$E10='Fondos-Inversionistas'!F$12,Energía!$B10,\"\")","v":""},{"$f":"IF(Energía!$E10='Fondos-Inversionistas'!G$12,Energía!$B10,\"\")","v":""},{"$f":"IF(Energía!$E10='Fondos-Inversionistas'!H$12,Energía!$B10,\"\")","v":""},{"$f":"IF(Energía!$E10='Fondos-Inversionistas'!I$12,Energía!$B10,\"\")","v":""},{"$f":"IF(Energía!$E10='Fondos-Inversionistas'!J$12,Energía!$B10,\"\")","v":""},{"$f":"IF(Energía!$E10='Fondos-Inversionistas'!K$12,Energía!$B10,\"\")","v":""},{"$f":"IF(Energía!$E10='Fondos-Inversionistas'!L$12,Energía!$B10,\"\")","v":""},{"$f":"_xlfn.XLOOKUP(A77,'Base-datos'!$B$521:$B$531,'Base-datos'!$F$521:$F$531)","v":{"$error":"#N/A"}},{"$f":"_xlfn.XLOOKUP(A77,'Base-datos'!$B$521:$B$531,'Base-datos'!$C$521:$C$531)","v":{"$error":"#N/A"}},{"$f":"_xlfn.XLOOKUP(A77,'Base-datos'!$B$521:$B$531,'Base-datos'!$D$521:$D$531)","v":{"$error":"#N/A"}},{"$f":"IF(COUNTIF('Energía-NDS'!G9:G76,\"No\")>0,\"La actividad no cumple con el total de los criterios de NDS\",\"La actividad cumple con los criterios de No Daño Significativo\")","v":"La actividad cumple con los criterios de No Daño Significativo"},{"$f":"IF(OR('Salvaguardas mínimas'!$G$10=\"Seleccione\",'Salvaguardas mínimas'!$G$13=\"Seleccione\",'Salvaguardas mínimas'!$G$16=\"Seleccione\",'Salvaguardas mínimas'!$G$7=\"Seleccione\"),\"No se han respondido todas las preguntas\",IF(OR('Salvaguardas mínimas'!$G$10=\"No\",'Salvaguardas mínimas'!$G$13=\"No\",'Salvaguardas mínimas'!$G$16=\"No\",'Salvaguardas mínimas'!$G$7=\"No\"),\"El sector no cumple con las salvaguardas mínimas\",\"La actividad sí cumple con las salvaguardas mínimas\"))","v":"No se han respondido todas las preguntas"},{"$f":"IF(OR(P$77=\"La actividad no cumple con el total de los criterios de No Daño Significativo\",Q$77=\"El sector no cumple con las salvaguardas mínimas\"),\"\",IF(AND('Base-datos'!$B$730=\"Sí\",'Base-datos'!$B$731=\"\",'Base-datos'!$B$732=\"\"),IF(N77=\"La actividad sí contribuye sustancialmente a la sostenibilidad\",SUM(B77:L77),0),IF(AND('Base-datos'!$B$730=\"Sí\",'Base-datos'!$B$731=\"Sí\",'Base-datos'!$B$732=\"\"),IF(AND(N77=\"La actividad sí contribuye sustancialmente a la sostenibilidad\",O77=\"La actividad sí contribuye sustancialmente a la sostenibilidad\"),SUM(B77:L77),0),IF(AND('Base-datos'!$B$730=\"Sí\",'Base-datos'!$B$731=\"Sí\",'Base-datos'!$B$732=\"Sí\"),IF(AND(N77=\"La actividad sí contribuye sustancialmente a la sostenibilidad\",O77=\"La actividad sí contribuye sustancialmente a la sostenibilidad\",M77=\"La actividad sí contribuye sustancialmente a la sostenibilidad\"),SUM(B77:L77),0),IF(AND('Base-datos'!$B$730=\"\",'Base-datos'!$B$731=\"Sí\",'Base-datos'!$B$732=\"\"),IF(O77=\"La actividad sí contribuye sustancialmente a la sostenibilidad\",SUM(B77:L77),0),IF(AND('Base-datos'!$B$730=\"\",'Base-datos'!$B$731=\"\",'Base-datos'!$B$732=\"Sí\"),IF(M77=\"La actividad sí contribuye sustancialmente a la sostenibilidad\",SUM(B77:L77),0),IF(AND('Base-datos'!$B$730=\"\",'Base-datos'!$B$731=\"Sí\",'Base-datos'!$B$732=\"Sí\"),IF(AND(O77=\"La actividad sí contribuye sustancialmente a la sostenibilidad\",M77=\"La actividad sí contribuye sustancialmente a la sostenibilidad\"),SUM(B77:L77),0),IF(AND('Base-datos'!$B$730=\"Sí\",'Base-datos'!$B$731=\"\",'Base-datos'!$B$732=\"Sí\"),IF(AND(N77=\"La actividad sí contribuye sustancialmente a la sostenibilidad\",M77=\"La actividad sí contribuye sustancialmente a la sostenibilidad\"),SUM(B77:L77),0),\"Por definir\"))))))))","v":"Por definir"}]
[{"$f":"Energía!$C12","v":"Seleccione"},{"$f":"IF(Energía!$E12='Fondos-Inversionistas'!B$12,Energía!$B12,\"\")","v":""},{"$f":"IF(Energía!$E12='Fondos-Inversionistas'!C$12,Energía!$B12,\"\")","v":""},{"$f":"IF(Energía!$E12='Fondos-Inversionistas'!D$12,Energía!$B12,\"\")","v":""},{"$f":"IF(Energía!$E12='Fondos-Inversionistas'!E$12,Energía!$B12,\"\")","v":""},{"$f":"IF(Energía!$E12='Fondos-Inversionistas'!F$12,Energía!$B12,\"\")","v":""},{"$f":"IF(Energía!$E12='Fondos-Inversionistas'!G$12,Energía!$B12,\"\")","v":""},{"$f":"IF(Energía!$E12='Fondos-Inversionistas'!H$12,Energía!$B12,\"\")","v":""},{"$f":"IF(Energía!$E12='Fondos-Inversionistas'!I$12,Energía!$B12,\"\")","v":""},{"$f":"IF(Energía!$E12='Fondos-Inversionistas'!J$12,Energía!$B12,\"\")","v":""},{"$f":"IF(Energía!$E12='Fondos-Inversionistas'!K$12,Energía!$B12,\"\")","v":""},{"$f":"IF(Energía!$E12='Fondos-Inversionistas'!L$12,Energía!$B12,\"\")","v":""},{"$f":"_xlfn.XLOOKUP(A78,'Base-datos'!$B$521:$B$531,'Base-datos'!$F$521:$F$531)","v":{"$error":"#N/A"}},{"$f":"_xlfn.XLOOKUP(A78,'Base-datos'!$B$521:$B$531,'Base-datos'!$C$521:$C$531)","v":{"$error":"#N/A"}},{"$f":"_xlfn.XLOOKUP(A78,'Base-datos'!$B$521:$B$531,'Base-datos'!$D$521:$D$531)","v":{"$error":"#N/A"}},null,null,{"$f":"IF(OR(P$77=\"La actividad no cumple con el total de los criterios de No Daño Significativo\",Q$77=\"El sector no cumple con las salvaguardas mínimas\"),\"\",IF(AND('Base-datos'!$B$730=\"Sí\",'Base-datos'!$B$731=\"\",'Base-datos'!$B$732=\"\"),IF(N78=\"La actividad sí contribuye sustancialmente a la sostenibilidad\",SUM(B78:L78),0),IF(AND('Base-datos'!$B$730=\"Sí\",'Base-datos'!$B$731=\"Sí\",'Base-datos'!$B$732=\"\"),IF(AND(N78=\"La actividad sí contribuye sustancialmente a la sostenibilidad\",O78=\"La actividad sí contribuye sustancialmente a la sostenibilidad\"),SUM(B78:L78),0),IF(AND('Base-datos'!$B$730=\"Sí\",'Base-datos'!$B$731=\"Sí\",'Base-datos'!$B$732=\"Sí\"),IF(AND(N78=\"La actividad sí contribuye sustancialmente a la sostenibilidad\",O78=\"La actividad sí contribuye sustancialmente a la sostenibilidad\",M78=\"La actividad sí contribuye sustancialmente a la sostenibilidad\"),SUM(B78:L78),0),IF(AND('Base-datos'!$B$730=\"\",'Base-datos'!$B$731=\"Sí\",'Base-datos'!$B$732=\"\"),IF(O78=\"La actividad sí contribuye sustancialmente a la sostenibilidad\",SUM(B78:L78),0),IF(AND('Base-datos'!$B$730=\"\",'Base-datos'!$B$731=\"\",'Base-datos'!$B$732=\"Sí\"),IF(M78=\"La actividad sí contribuye sustancialmente a la sostenibilidad\",SUM(B78:L78),0),IF(AND('Base-datos'!$B$730=\"\",'Base-datos'!$B$731=\"Sí\",'Base-datos'!$B$732=\"Sí\"),IF(AND(O78=\"La actividad sí contribuye sustancialmente a la sostenibilidad\",M78=\"La actividad sí contribuye sustancialmente a la sostenibilidad\"),SUM(B78:L78),0),IF(AND('Base-datos'!$B$730=\"Sí\",'Base-datos'!$B$731=\"\",'Base-datos'!$B$732=\"Sí\"),IF(AND(N78=\"La actividad sí contribuye sustancialmente a la sostenibilidad\",M78=\"La actividad sí contribuye sustancialmente a la sostenibilidad\"),SUM(B78:L78),0),\"Por definir\"))))))))","v":"Por definir"}]
[{"$f":"Energía!$C14","v":"Seleccione"},{"$f":"IF(Energía!$E14='Fondos-Inversionistas'!B$12,Energía!$B14,\"\")","v":""},{"$f":"IF(Energía!$E14='Fondos-Inversionistas'!C$12,Energía!$B14,\"\")","v":""},{"$f":"IF(Energía!$E14='Fondos-Inversionistas'!D$12,Energía!$B14,\"\")","v":""},{"$f":"IF(Energía!$E14='Fondos-Inversionistas'!E$12,Energía!$B14,\"\")","v":""},{"$f":"IF(Energía!$E14='Fondos-Inversionistas'!F$12,Energía!$B14,\"\")","v":""},{"$f":"IF(Energía!$E14='Fondos-Inversionistas'!G$12,Energía!$B14,\"\")","v":""},{"$f":"IF(Energía!$E14='Fondos-Inversionistas'!H$12,Energía!$B14,\"\")","v":""},{"$f":"IF(Energía!$E14='Fondos-Inversionistas'!I$12,Energía!$B14,\"\")","v":""},{"$f":"IF(Energía!$E14='Fondos-Inversionistas'!J$12,Energía!$B14,\"\")","v":""},{"$f":"IF(Energía!$E14='Fondos-Inversionistas'!K$12,Energía!$B14,\"\")","v":""},{"$f":"IF(Energía!$E14='Fondos-Inversionistas'!L$12,Energía!$B14,\"\")","v":""},{"$f":"_xlfn.XLOOKUP(A79,'Base-datos'!$B$521:$B$531,'Base-datos'!$F$521:$F$531)","v":{"$error":"#N/A"}},{"$f":"_xlfn.XLOOKUP(A79,'Base-datos'!$B$521:$B$531,'Base-datos'!$C$521:$C$531)","v":{"$error":"#N/A"}},{"$f":"_xlfn.XLOOKUP(A79,'Base-datos'!$B$521:$B$531,'Base-datos'!$D$521:$D$531)","v":{"$error":"#N/A"}},null,null,{"$f":"IF(OR(P$77=\"La actividad no cumple con el total de los criterios de No Daño Significativo\",Q$77=\"El sector no cumple con las salvaguardas mínimas\"),\"\",IF(AND('Base-datos'!$B$730=\"Sí\",'Base-datos'!$B$731=\"\",'Base-datos'!$B$732=\"\"),IF(N79=\"La actividad sí contribuye sustancialmente a la sostenibilidad\",SUM(B79:L79),0),IF(AND('Base-datos'!$B$730=\"Sí\",'Base-datos'!$B$731=\"Sí\",'Base-datos'!$B$732=\"\"),IF(AND(N79=\"La actividad sí contribuye sustancialmente a la sostenibilidad\",O79=\"La actividad sí contribuye sustancialmente a la sostenibilidad\"),SUM(B79:L79),0),IF(AND('Base-datos'!$B$730=\"Sí\",'Base-datos'!$B$731=\"Sí\",'Base-datos'!$B$732=\"Sí\"),IF(AND(N79=\"La actividad sí contribuye sustancialmente a la sostenibilidad\",O79=\"La actividad sí contribuye sustancialmente a la sostenibilidad\",M79=\"La actividad sí contribuye sustancialmente a la sostenibilidad\"),SUM(B79:L79),0),IF(AND('Base-datos'!$B$730=\"\",'Base-datos'!$B$731=\"Sí\",'Base-datos'!$B$732=\"\"),IF(O79=\"La actividad sí contribuye sustancialmente a la sostenibilidad\",SUM(B79:L79),0),IF(AND('Base-datos'!$B$730=\"\",'Base-datos'!$B$731=\"\",'Base-datos'!$B$732=\"Sí\"),IF(M79=\"La actividad sí contribuye sustancialmente a la sostenibilidad\",SUM(B79:L79),0),IF(AND('Base-datos'!$B$730=\"\",'Base-datos'!$B$731=\"Sí\",'Base-datos'!$B$732=\"Sí\"),IF(AND(O79=\"La actividad sí contribuye sustancialmente a la sostenibilidad\",M79=\"La actividad sí contribuye sustancialmente a la sostenibilidad\"),SUM(B79:L79),0),IF(AND('Base-datos'!$B$730=\"Sí\",'Base-datos'!$B$731=\"\",'Base-datos'!$B$732=\"Sí\"),IF(AND(N79=\"La actividad sí contribuye sustancialmente a la sostenibilidad\",M79=\"La actividad sí contribuye sustancialmente a la sostenibilidad\"),SUM(B79:L79),0),\"Por definir\"))))))))","v":"Por definir"}]
[{"$f":"Energía!$C16","v":"Seleccione"},{"$f":"IF(Energía!$E16='Fondos-Inversionistas'!B$12,Energía!$B16,\"\")","v":""},{"$f":"IF(Energía!$E16='Fondos-Inversionistas'!C$12,Energía!$B16,\"\")","v":""},{"$f":"IF(Energía!$E16='Fondos-Inversionistas'!D$12,Energía!$B16,\"\")","v":""},{"$f":"IF(Energía!$E16='Fondos-Inversionistas'!E$12,Energía!$B16,\"\")","v":""},{"$f":"IF(Energía!$E16='Fondos-Inversionistas'!F$12,Energía!$B16,\"\")","v":""},{"$f":"IF(Energía!$E16='Fondos-Inversionistas'!G$12,Energía!$B16,\"\")","v":""},{"$f":"IF(Energía!$E16='Fondos-Inversionistas'!H$12,Energía!$B16,\"\")","v":""},{"$f":"IF(Energía!$E16='Fondos-Inversionistas'!I$12,Energía!$B16,\"\")","v":""},{"$f":"IF(Energía!$E16='Fondos-Inversionistas'!J$12,Energía!$B16,\"\")","v":""},{"$f":"IF(Energía!$E16='Fondos-Inversionistas'!K$12,Energía!$B16,\"\")","v":""},{"$f":"IF(Energía!$E16='Fondos-Inversionistas'!L$12,Energía!$B16,\"\")","v":""},{"$f":"_xlfn.XLOOKUP(A80,'Base-datos'!$B$521:$B$531,'Base-datos'!$F$521:$F$531)","v":{"$error":"#N/A"}},{"$f":"_xlfn.XLOOKUP(A80,'Base-datos'!$B$521:$B$531,'Base-datos'!$C$521:$C$531)","v":{"$error":"#N/A"}},{"$f":"_xlfn.XLOOKUP(A80,'Base-datos'!$B$521:$B$531,'Base-datos'!$D$521:$D$531)","v":{"$error":"#N/A"}},null,null,{"$f":"IF(OR(P$77=\"La actividad no cumple con el total de los criterios de No Daño Significativo\",Q$77=\"El sector no cumple con las salvaguardas mínimas\"),\"\",IF(AND('Base-datos'!$B$730=\"Sí\",'Base-datos'!$B$731=\"\",'Base-datos'!$B$732=\"\"),IF(N80=\"La actividad sí contribuye sustancialmente a la sostenibilidad\",SUM(B80:L80),0),IF(AND('Base-datos'!$B$730=\"Sí\",'Base-datos'!$B$731=\"Sí\",'Base-datos'!$B$732=\"\"),IF(AND(N80=\"La actividad sí contribuye sustancialmente a la sostenibilidad\",O80=\"La actividad sí contribuye sustancialmente a la sostenibilidad\"),SUM(B80:L80),0),IF(AND('Base-datos'!$B$730=\"Sí\",'Base-datos'!$B$731=\"Sí\",'Base-datos'!$B$732=\"Sí\"),IF(AND(N80=\"La actividad sí contribuye sustancialmente a la sostenibilidad\",O80=\"La actividad sí contribuye sustancialmente a la sostenibilidad\",M80=\"La actividad sí contribuye sustancialmente a la sostenibilidad\"),SUM(B80:L80),0),IF(AND('Base-datos'!$B$730=\"\",'Base-datos'!$B$731=\"Sí\",'Base-datos'!$B$732=\"\"),IF(O80=\"La actividad sí contribuye sustancialmente a la sostenibilidad\",SUM(B80:L80),0),IF(AND('Base-datos'!$B$730=\"\",'Base-datos'!$B$731=\"\",'Base-datos'!$B$732=\"Sí\"),IF(M80=\"La actividad sí contribuye sustancialmente a la sostenibilidad\",SUM(B80:L80),0),IF(AND('Base-datos'!$B$730=\"\",'Base-datos'!$B$731=\"Sí\",'Base-datos'!$B$732=\"Sí\"),IF(AND(O80=\"La actividad sí contribuye sustancialmente a la sostenibilidad\",M80=\"La actividad sí contribuye sustancialmente a la sostenibilidad\"),SUM(B80:L80),0),IF(AND('Base-datos'!$B$730=\"Sí\",'Base-datos'!$B$731=\"\",'Base-datos'!$B$732=\"Sí\"),IF(AND(N80=\"La actividad sí contribuye sustancialmente a la sostenibilidad\",M80=\"La actividad sí contribuye sustancialmente a la sostenibilidad\"),SUM(B80:L80),0),\"Por definir\"))))))))","v":"Por definir"}]
[{"$f":"Energía!$C18","v":"Seleccione"},{"$f":"IF(Energía!$E18='Fondos-Inversionistas'!B$12,Energía!$B18,\"\")","v":""},{"$f":"IF(Energía!$E18='Fondos-Inversionistas'!C$12,Energía!$B18,\"\")","v":""},{"$f":"IF(Energía!$E18='Fondos-Inversionistas'!D$12,Energía!$B18,\"\")","v":""},{"$f":"IF(Energía!$E18='Fondos-Inversionistas'!E$12,Energía!$B18,\"\")","v":""},{"$f":"IF(Energía!$E18='Fondos-Inversionistas'!F$12,Energía!$B18,\"\")","v":""},{"$f":"IF(Energía!$E18='Fondos-Inversionistas'!G$12,Energía!$B18,\"\")","v":""},{"$f":"IF(Energía!$E18='Fondos-Inversionistas'!H$12,Energía!$B18,\"\")","v":""},{"$f":"IF(Energía!$E18='Fondos-Inversionistas'!I$12,Energía!$B18,\"\")","v":""},{"$f":"IF(Energía!$E18='Fondos-Inversionistas'!J$12,Energía!$B18,\"\")","v":""},{"$f":"IF(Energía!$E18='Fondos-Inversionistas'!K$12,Energía!$B18,\"\")","v":""},{"$f":"IF(Energía!$E18='Fondos-Inversionistas'!L$12,Energía!$B18,\"\")","v":""},{"$f":"_xlfn.XLOOKUP(A81,'Base-datos'!$B$521:$B$531,'Base-datos'!$F$521:$F$531)","v":{"$error":"#N/A"}},{"$f":"_xlfn.XLOOKUP(A81,'Base-datos'!$B$521:$B$531,'Base-datos'!$C$521:$C$531)","v":{"$error":"#N/A"}},{"$f":"_xlfn.XLOOKUP(A81,'Base-datos'!$B$521:$B$531,'Base-datos'!$D$521:$D$531)","v":{"$error":"#N/A"}},null,null,{"$f":"IF(OR(P$77=\"La actividad no cumple con el total de los criterios de No Daño Significativo\",Q$77=\"El sector no cumple con las salvaguardas mínimas\"),\"\",IF(AND('Base-datos'!$B$730=\"Sí\",'Base-datos'!$B$731=\"\",'Base-datos'!$B$732=\"\"),IF(N81=\"La actividad sí contribuye sustancialmente a la sostenibilidad\",SUM(B81:L81),0),IF(AND('Base-datos'!$B$730=\"Sí\",'Base-datos'!$B$731=\"Sí\",'Base-datos'!$B$732=\"\"),IF(AND(N81=\"La actividad sí contribuye sustancialmente a la sostenibilidad\",O81=\"La actividad sí contribuye sustancialmente a la sostenibilidad\"),SUM(B81:L81),0),IF(AND('Base-datos'!$B$730=\"Sí\",'Base-datos'!$B$731=\"Sí\",'Base-datos'!$B$732=\"Sí\"),IF(AND(N81=\"La actividad sí contribuye sustancialmente a la sostenibilidad\",O81=\"La actividad sí contribuye sustancialmente a la sostenibilidad\",M81=\"La actividad sí contribuye sustancialmente a la sostenibilidad\"),SUM(B81:L81),0),IF(AND('Base-datos'!$B$730=\"\",'Base-datos'!$B$731=\"Sí\",'Base-datos'!$B$732=\"\"),IF(O81=\"La actividad sí contribuye sustancialmente a la sostenibilidad\",SUM(B81:L81),0),IF(AND('Base-datos'!$B$730=\"\",'Base-datos'!$B$731=\"\",'Base-datos'!$B$732=\"Sí\"),IF(M81=\"La actividad sí contribuye sustancialmente a la sostenibilidad\",SUM(B81:L81),0),IF(AND('Base-datos'!$B$730=\"\",'Base-datos'!$B$731=\"Sí\",'Base-datos'!$B$732=\"Sí\"),IF(AND(O81=\"La actividad sí contribuye sustancialmente a la sostenibilidad\",M81=\"La actividad sí contribuye sustancialmente a la sostenibilidad\"),SUM(B81:L81),0),IF(AND('Base-datos'!$B$730=\"Sí\",'Base-datos'!$B$731=\"\",'Base-datos'!$B$732=\"Sí\"),IF(AND(N81=\"La actividad sí contribuye sustancialmente a la sostenibilidad\",M81=\"La actividad sí contribuye sustancialmente a la sostenibilidad\"),SUM(B81:L81),0),\"Por definir\"))))))))","v":"Por definir"}]
[{"$f":"Energía!$C20","v":"Seleccione"},{"$f":"IF(Energía!$E20='Fondos-Inversionistas'!B$12,Energía!$B20,\"\")","v":""},{"$f":"IF(Energía!$E20='Fondos-Inversionistas'!C$12,Energía!$B20,\"\")","v":""},{"$f":"IF(Energía!$E20='Fondos-Inversionistas'!D$12,Energía!$B20,\"\")","v":""},{"$f":"IF(Energía!$E20='Fondos-Inversionistas'!E$12,Energía!$B20,\"\")","v":""},{"$f":"IF(Energía!$E20='Fondos-Inversionistas'!F$12,Energía!$B20,\"\")","v":""},{"$f":"IF(Energía!$E20='Fondos-Inversionistas'!G$12,Energía!$B20,\"\")","v":""},{"$f":"IF(Energía!$E20='Fondos-Inversionistas'!H$12,Energía!$B20,\"\")","v":""},{"$f":"IF(Energía!$E20='Fondos-Inversionistas'!I$12,Energía!$B20,\"\")","v":""},{"$f":"IF(Energía!$E20='Fondos-Inversionistas'!J$12,Energía!$B20,\"\")","v":""},{"$f":"IF(Energía!$E20='Fondos-Inversionistas'!K$12,Energía!$B20,\"\")","v":""},{"$f":"IF(Energía!$E20='Fondos-Inversionistas'!L$12,Energía!$B20,\"\")","v":""},{"$f":"_xlfn.XLOOKUP(A82,'Base-datos'!$B$521:$B$531,'Base-datos'!$F$521:$F$531)","v":{"$error":"#N/A"}},{"$f":"_xlfn.XLOOKUP(A82,'Base-datos'!$B$521:$B$531,'Base-datos'!$C$521:$C$531)","v":{"$error":"#N/A"}},{"$f":"_xlfn.XLOOKUP(A82,'Base-datos'!$B$521:$B$531,'Base-datos'!$D$521:$D$531)","v":{"$error":"#N/A"}},null,null,{"$f":"IF(OR(P$77=\"La actividad no cumple con el total de los criterios de No Daño Significativo\",Q$77=\"El sector no cumple con las salvaguardas mínimas\"),\"\",IF(AND('Base-datos'!$B$730=\"Sí\",'Base-datos'!$B$731=\"\",'Base-datos'!$B$732=\"\"),IF(N82=\"La actividad sí contribuye sustancialmente a la sostenibilidad\",SUM(B82:L82),0),IF(AND('Base-datos'!$B$730=\"Sí\",'Base-datos'!$B$731=\"Sí\",'Base-datos'!$B$732=\"\"),IF(AND(N82=\"La actividad sí contribuye sustancialmente a la sostenibilidad\",O82=\"La actividad sí contribuye sustancialmente a la sostenibilidad\"),SUM(B82:L82),0),IF(AND('Base-datos'!$B$730=\"Sí\",'Base-datos'!$B$731=\"Sí\",'Base-datos'!$B$732=\"Sí\"),IF(AND(N82=\"La actividad sí contribuye sustancialmente a la sostenibilidad\",O82=\"La actividad sí contribuye sustancialmente a la sostenibilidad\",M82=\"La actividad sí contribuye sustancialmente a la sostenibilidad\"),SUM(B82:L82),0),IF(AND('Base-datos'!$B$730=\"\",'Base-datos'!$B$731=\"Sí\",'Base-datos'!$B$732=\"\"),IF(O82=\"La actividad sí contribuye sustancialmente a la sostenibilidad\",SUM(B82:L82),0),IF(AND('Base-datos'!$B$730=\"\",'Base-datos'!$B$731=\"\",'Base-datos'!$B$732=\"Sí\"),IF(M82=\"La actividad sí contribuye sustancialmente a la sostenibilidad\",SUM(B82:L82),0),IF(AND('Base-datos'!$B$730=\"\",'Base-datos'!$B$731=\"Sí\",'Base-datos'!$B$732=\"Sí\"),IF(AND(O82=\"La actividad sí contribuye sustancialmente a la sostenibilidad\",M82=\"La actividad sí contribuye sustancialmente a la sostenibilidad\"),SUM(B82:L82),0),IF(AND('Base-datos'!$B$730=\"Sí\",'Base-datos'!$B$731=\"\",'Base-datos'!$B$732=\"Sí\"),IF(AND(N82=\"La actividad sí contribuye sustancialmente a la sostenibilidad\",M82=\"La actividad sí contribuye sustancialmente a la sostenibilidad\"),SUM(B82:L82),0),\"Por definir\"))))))))","v":"Por definir"}]
[{"$f":"Energía!$C22","v":"Seleccione"},{"$f":"IF(Energía!$E22='Fondos-Inversionistas'!B$12,Energía!$B22,\"\")","v":""},{"$f":"IF(Energía!$E22='Fondos-Inversionistas'!C$12,Energía!$B22,\"\")","v":""},{"$f":"IF(Energía!$E22='Fondos-Inversionistas'!D$12,Energía!$B22,\"\")","v":""},{"$f":"IF(Energía!$E22='Fondos-Inversionistas'!E$12,Energía!$B22,\"\")","v":""},{"$f":"IF(Energía!$E22='Fondos-Inversionistas'!F$12,Energía!$B22,\"\")","v":""},{"$f":"IF(Energía!$E22='Fondos-Inversionistas'!G$12,Energía!$B22,\"\")","v":""},{"$f":"IF(Energía!$E22='Fondos-Inversionistas'!H$12,Energía!$B22,\"\")","v":""},{"$f":"IF(Energía!$E22='Fondos-Inversionistas'!I$12,Energía!$B22,\"\")","v":""},{"$f":"IF(Energía!$E22='Fondos-Inversionistas'!J$12,Energía!$B22,\"\")","v":""},{"$f":"IF(Energía!$E22='Fondos-Inversionistas'!K$12,Energía!$B22,\"\")","v":""},{"$f":"IF(Energía!$E22='Fondos-Inversionistas'!L$12,Energía!$B22,\"\")","v":""},{"$f":"_xlfn.XLOOKUP(A83,'Base-datos'!$B$521:$B$531,'Base-datos'!$F$521:$F$531)","v":{"$error":"#N/A"}},{"$f":"_xlfn.XLOOKUP(A83,'Base-datos'!$B$521:$B$531,'Base-datos'!$C$521:$C$531)","v":{"$error":"#N/A"}},{"$f":"_xlfn.XLOOKUP(A83,'Base-datos'!$B$521:$B$531,'Base-datos'!$D$521:$D$531)","v":{"$error":"#N/A"}},null,null,{"$f":"IF(OR(P$77=\"La actividad no cumple con el total de los criterios de No Daño Significativo\",Q$77=\"El sector no cumple con las salvaguardas mínimas\"),\"\",IF(AND('Base-datos'!$B$730=\"Sí\",'Base-datos'!$B$731=\"\",'Base-datos'!$B$732=\"\"),IF(N83=\"La actividad sí contribuye sustancialmente a la sostenibilidad\",SUM(B83:L83),0),IF(AND('Base-datos'!$B$730=\"Sí\",'Base-datos'!$B$731=\"Sí\",'Base-datos'!$B$732=\"\"),IF(AND(N83=\"La actividad sí contribuye sustancialmente a la sostenibilidad\",O83=\"La actividad sí contribuye sustancialmente a la sostenibilidad\"),SUM(B83:L83),0),IF(AND('Base-datos'!$B$730=\"Sí\",'Base-datos'!$B$731=\"Sí\",'Base-datos'!$B$732=\"Sí\"),IF(AND(N83=\"La actividad sí contribuye sustancialmente a la sostenibilidad\",O83=\"La actividad sí contribuye sustancialmente a la sostenibilidad\",M83=\"La actividad sí contribuye sustancialmente a la sostenibilidad\"),SUM(B83:L83),0),IF(AND('Base-datos'!$B$730=\"\",'Base-datos'!$B$731=\"Sí\",'Base-datos'!$B$732=\"\"),IF(O83=\"La actividad sí contribuye sustancialmente a la sostenibilidad\",SUM(B83:L83),0),IF(AND('Base-datos'!$B$730=\"\",'Base-datos'!$B$731=\"\",'Base-datos'!$B$732=\"Sí\"),IF(M83=\"La actividad sí contribuye sustancialmente a la sostenibilidad\",SUM(B83:L83),0),IF(AND('Base-datos'!$B$730=\"\",'Base-datos'!$B$731=\"Sí\",'Base-datos'!$B$732=\"Sí\"),IF(AND(O83=\"La actividad sí contribuye sustancialmente a la sostenibilidad\",M83=\"La actividad sí contribuye sustancialmente a la sostenibilidad\"),SUM(B83:L83),0),IF(AND('Base-datos'!$B$730=\"Sí\",'Base-datos'!$B$731=\"\",'Base-datos'!$B$732=\"Sí\"),IF(AND(N83=\"La actividad sí contribuye sustancialmente a la sostenibilidad\",M83=\"La actividad sí contribuye sustancialmente a la sostenibilidad\"),SUM(B83:L83),0),\"Por definir\"))))))))","v":"Por definir"}]
[{"$f":"Energía!$C24","v":"Seleccione"},{"$f":"IF(Energía!$E24='Fondos-Inversionistas'!B$12,Energía!$B24,\"\")","v":""},{"$f":"IF(Energía!$E24='Fondos-Inversionistas'!C$12,Energía!$B24,\"\")","v":""},{"$f":"IF(Energía!$E24='Fondos-Inversionistas'!D$12,Energía!$B24,\"\")","v":""},{"$f":"IF(Energía!$E24='Fondos-Inversionistas'!E$12,Energía!$B24,\"\")","v":""},{"$f":"IF(Energía!$E24='Fondos-Inversionistas'!F$12,Energía!$B24,\"\")","v":""},{"$f":"IF(Energía!$E24='Fondos-Inversionistas'!G$12,Energía!$B24,\"\")","v":""},{"$f":"IF(Energía!$E24='Fondos-Inversionistas'!H$12,Energía!$B24,\"\")","v":""},{"$f":"IF(Energía!$E24='Fondos-Inversionistas'!I$12,Energía!$B24,\"\")","v":""},{"$f":"IF(Energía!$E24='Fondos-Inversionistas'!J$12,Energía!$B24,\"\")","v":""},{"$f":"IF(Energía!$E24='Fondos-Inversionistas'!K$12,Energía!$B24,\"\")","v":""},{"$f":"IF(Energía!$E24='Fondos-Inversionistas'!L$12,Energía!$B24,\"\")","v":""},{"$f":"_xlfn.XLOOKUP(A84,'Base-datos'!$B$521:$B$531,'Base-datos'!$F$521:$F$531)","v":{"$error":"#N/A"}},{"$f":"_xlfn.XLOOKUP(A84,'Base-datos'!$B$521:$B$531,'Base-datos'!$C$521:$C$531)","v":{"$error":"#N/A"}},{"$f":"_xlfn.XLOOKUP(A84,'Base-datos'!$B$521:$B$531,'Base-datos'!$D$521:$D$531)","v":{"$error":"#N/A"}},null,null,{"$f":"IF(OR(P$77=\"La actividad no cumple con el total de los criterios de No Daño Significativo\",Q$77=\"El sector no cumple con las salvaguardas mínimas\"),\"\",IF(AND('Base-datos'!$B$730=\"Sí\",'Base-datos'!$B$731=\"\",'Base-datos'!$B$732=\"\"),IF(N84=\"La actividad sí contribuye sustancialmente a la sostenibilidad\",SUM(B84:L84),0),IF(AND('Base-datos'!$B$730=\"Sí\",'Base-datos'!$B$731=\"Sí\",'Base-datos'!$B$732=\"\"),IF(AND(N84=\"La actividad sí contribuye sustancialmente a la sostenibilidad\",O84=\"La actividad sí contribuye sustancialmente a la sostenibilidad\"),SUM(B84:L84),0),IF(AND('Base-datos'!$B$730=\"Sí\",'Base-datos'!$B$731=\"Sí\",'Base-datos'!$B$732=\"Sí\"),IF(AND(N84=\"La actividad sí contribuye sustancialmente a la sostenibilidad\",O84=\"La actividad sí contribuye sustancialmente a la sostenibilidad\",M84=\"La actividad sí contribuye sustancialmente a la sostenibilidad\"),SUM(B84:L84),0),IF(AND('Base-datos'!$B$730=\"\",'Base-datos'!$B$731=\"Sí\",'Base-datos'!$B$732=\"\"),IF(O84=\"La actividad sí contribuye sustancialmente a la sostenibilidad\",SUM(B84:L84),0),IF(AND('Base-datos'!$B$730=\"\",'Base-datos'!$B$731=\"\",'Base-datos'!$B$732=\"Sí\"),IF(M84=\"La actividad sí contribuye sustancialmente a la sostenibilidad\",SUM(B84:L84),0),IF(AND('Base-datos'!$B$730=\"\",'Base-datos'!$B$731=\"Sí\",'Base-datos'!$B$732=\"Sí\"),IF(AND(O84=\"La actividad sí contribuye sustancialmente a la sostenibilidad\",M84=\"La actividad sí contribuye sustancialmente a la sostenibilidad\"),SUM(B84:L84),0),IF(AND('Base-datos'!$B$730=\"Sí\",'Base-datos'!$B$731=\"\",'Base-datos'!$B$732=\"Sí\"),IF(AND(N84=\"La actividad sí contribuye sustancialmente a la sostenibilidad\",M84=\"La actividad sí contribuye sustancialmente a la sostenibilidad\"),SUM(B84:L84),0),\"Por definir\"))))))))","v":"Por definir"}]
[{"$f":"Energía!$C26","v":"Seleccione"},{"$f":"IF(Energía!$E26='Fondos-Inversionistas'!B$12,Energía!$B26,\"\")","v":""},{"$f":"IF(Energía!$E26='Fondos-Inversionistas'!C$12,Energía!$B26,\"\")","v":""},{"$f":"IF(Energía!$E26='Fondos-Inversionistas'!D$12,Energía!$B26,\"\")","v":""},{"$f":"IF(Energía!$E26='Fondos-Inversionistas'!E$12,Energía!$B26,\"\")","v":""},{"$f":"IF(Energía!$E26='Fondos-Inversionistas'!F$12,Energía!$B26,\"\")","v":""},{"$f":"IF(Energía!$E26='Fondos-Inversionistas'!G$12,Energía!$B26,\"\")","v":""},{"$f":"IF(Energía!$E26='Fondos-Inversionistas'!H$12,Energía!$B26,\"\")","v":""},{"$f":"IF(Energía!$E26='Fondos-Inversionistas'!I$12,Energía!$B26,\"\")","v":""},{"$f":"IF(Energía!$E26='Fondos-Inversionistas'!J$12,Energía!$B26,\"\")","v":""},{"$f":"IF(Energía!$E26='Fondos-Inversionistas'!K$12,Energía!$B26,\"\")","v":""},{"$f":"IF(Energía!$E26='Fondos-Inversionistas'!L$12,Energía!$B26,\"\")","v":""},{"$f":"_xlfn.XLOOKUP(A85,'Base-datos'!$B$521:$B$531,'Base-datos'!$F$521:$F$531)","v":{"$error":"#N/A"}},{"$f":"_xlfn.XLOOKUP(A85,'Base-datos'!$B$521:$B$531,'Base-datos'!$C$521:$C$531)","v":{"$error":"#N/A"}},{"$f":"_xlfn.XLOOKUP(A85,'Base-datos'!$B$521:$B$531,'Base-datos'!$D$521:$D$531)","v":{"$error":"#N/A"}},null,null,{"$f":"IF(OR(P$77=\"La actividad no cumple con el total de los criterios de No Daño Significativo\",Q$77=\"El sector no cumple con las salvaguardas mínimas\"),\"\",IF(AND('Base-datos'!$B$730=\"Sí\",'Base-datos'!$B$731=\"\",'Base-datos'!$B$732=\"\"),IF(N85=\"La actividad sí contribuye sustancialmente a la sostenibilidad\",SUM(B85:L85),0),IF(AND('Base-datos'!$B$730=\"Sí\",'Base-datos'!$B$731=\"Sí\",'Base-datos'!$B$732=\"\"),IF(AND(N85=\"La actividad sí contribuye sustancialmente a la sostenibilidad\",O85=\"La actividad sí contribuye sustancialmente a la sostenibilidad\"),SUM(B85:L85),0),IF(AND('Base-datos'!$B$730=\"Sí\",'Base-datos'!$B$731=\"Sí\",'Base-datos'!$B$732=\"Sí\"),IF(AND(N85=\"La actividad sí contribuye sustancialmente a la sostenibilidad\",O85=\"La actividad sí contribuye sustancialmente a la sostenibilidad\",M85=\"La actividad sí contribuye sustancialmente a la sostenibilidad\"),SUM(B85:L85),0),IF(AND('Base-datos'!$B$730=\"\",'Base-datos'!$B$731=\"Sí\",'Base-datos'!$B$732=\"\"),IF(O85=\"La actividad sí contribuye sustancialmente a la sostenibilidad\",SUM(B85:L85),0),IF(AND('Base-datos'!$B$730=\"\",'Base-datos'!$B$731=\"\",'Base-datos'!$B$732=\"Sí\"),IF(M85=\"La actividad sí contribuye sustancialmente a la sostenibilidad\",SUM(B85:L85),0),IF(AND('Base-datos'!$B$730=\"\",'Base-datos'!$B$731=\"Sí\",'Base-datos'!$B$732=\"Sí\"),IF(AND(O85=\"La actividad sí contribuye sustancialmente a la sostenibilidad\",M85=\"La actividad sí contribuye sustancialmente a la sostenibilidad\"),SUM(B85:L85),0),IF(AND('Base-datos'!$B$730=\"Sí\",'Base-datos'!$B$731=\"\",'Base-datos'!$B$732=\"Sí\"),IF(AND(N85=\"La actividad sí contribuye sustancialmente a la sostenibilidad\",M85=\"La actividad sí contribuye sustancialmente a la sostenibilidad\"),SUM(B85:L85),0),\"Por definir\"))))))))","v":"Por definir"}]
[{"$f":"Energía!$C28","v":"Seleccione"},{"$f":"IF(Energía!$E28='Fondos-Inversionistas'!B$12,Energía!$B28,\"\")","v":""},{"$f":"IF(Energía!$E28='Fondos-Inversionistas'!C$12,Energía!$B28,\"\")","v":""},{"$f":"IF(Energía!$E28='Fondos-Inversionistas'!D$12,Energía!$B28,\"\")","v":""},{"$f":"IF(Energía!$E28='Fondos-Inversionistas'!E$12,Energía!$B28,\"\")","v":""},{"$f":"IF(Energía!$E28='Fondos-Inversionistas'!F$12,Energía!$B28,\"\")","v":""},{"$f":"IF(Energía!$E28='Fondos-Inversionistas'!G$12,Energía!$B28,\"\")","v":""},{"$f":"IF(Energía!$E28='Fondos-Inversionistas'!H$12,Energía!$B28,\"\")","v":""},{"$f":"IF(Energía!$E28='Fondos-Inversionistas'!I$12,Energía!$B28,\"\")","v":""},{"$f":"IF(Energía!$E28='Fondos-Inversionistas'!J$12,Energía!$B28,\"\")","v":""},{"$f":"IF(Energía!$E28='Fondos-Inversionistas'!K$12,Energía!$B28,\"\")","v":""},{"$f":"IF(Energía!$E28='Fondos-Inversionistas'!L$12,Energía!$B28,\"\")","v":""},{"$f":"_xlfn.XLOOKUP(A86,'Base-datos'!$B$521:$B$531,'Base-datos'!$F$521:$F$531)","v":{"$error":"#N/A"}},{"$f":"_xlfn.XLOOKUP(A86,'Base-datos'!$B$521:$B$531,'Base-datos'!$C$521:$C$531)","v":{"$error":"#N/A"}},{"$f":"_xlfn.XLOOKUP(A86,'Base-datos'!$B$521:$B$531,'Base-datos'!$D$521:$D$531)","v":{"$error":"#N/A"}},null,null,{"$f":"IF(OR(P$77=\"La actividad no cumple con el total de los criterios de No Daño Significativo\",Q$77=\"El sector no cumple con las salvaguardas mínimas\"),\"\",IF(AND('Base-datos'!$B$730=\"Sí\",'Base-datos'!$B$731=\"\",'Base-datos'!$B$732=\"\"),IF(N86=\"La actividad sí contribuye sustancialmente a la sostenibilidad\",SUM(B86:L86),0),IF(AND('Base-datos'!$B$730=\"Sí\",'Base-datos'!$B$731=\"Sí\",'Base-datos'!$B$732=\"\"),IF(AND(N86=\"La actividad sí contribuye sustancialmente a la sostenibilidad\",O86=\"La actividad sí contribuye sustancialmente a la sostenibilidad\"),SUM(B86:L86),0),IF(AND('Base-datos'!$B$730=\"Sí\",'Base-datos'!$B$731=\"Sí\",'Base-datos'!$B$732=\"Sí\"),IF(AND(N86=\"La actividad sí contribuye sustancialmente a la sostenibilidad\",O86=\"La actividad sí contribuye sustancialmente a la sostenibilidad\",M86=\"La actividad sí contribuye sustancialmente a la sostenibilidad\"),SUM(B86:L86),0),IF(AND('Base-datos'!$B$730=\"\",'Base-datos'!$B$731=\"Sí\",'Base-datos'!$B$732=\"\"),IF(O86=\"La actividad sí contribuye sustancialmente a la sostenibilidad\",SUM(B86:L86),0),IF(AND('Base-datos'!$B$730=\"\",'Base-datos'!$B$731=\"\",'Base-datos'!$B$732=\"Sí\"),IF(M86=\"La actividad sí contribuye sustancialmente a la sostenibilidad\",SUM(B86:L86),0),IF(AND('Base-datos'!$B$730=\"\",'Base-datos'!$B$731=\"Sí\",'Base-datos'!$B$732=\"Sí\"),IF(AND(O86=\"La actividad sí contribuye sustancialmente a la sostenibilidad\",M86=\"La actividad sí contribuye sustancialmente a la sostenibilidad\"),SUM(B86:L86),0),IF(AND('Base-datos'!$B$730=\"Sí\",'Base-datos'!$B$731=\"\",'Base-datos'!$B$732=\"Sí\"),IF(AND(N86=\"La actividad sí contribuye sustancialmente a la sostenibilidad\",M86=\"La actividad sí contribuye sustancialmente a la sostenibilidad\"),SUM(B86:L86),0),\"Por definir\"))))))))","v":"Por definir"}]
[{"$f":"Energía!$C30","v":"Seleccione"},{"$f":"IF(Energía!$E30='Fondos-Inversionistas'!B$12,Energía!$B30,\"\")","v":""},{"$f":"IF(Energía!$E30='Fondos-Inversionistas'!C$12,Energía!$B30,\"\")","v":""},{"$f":"IF(Energía!$E30='Fondos-Inversionistas'!D$12,Energía!$B30,\"\")","v":""},{"$f":"IF(Energía!$E30='Fondos-Inversionistas'!E$12,Energía!$B30,\"\")","v":""},{"$f":"IF(Energía!$E30='Fondos-Inversionistas'!F$12,Energía!$B30,\"\")","v":""},{"$f":"IF(Energía!$E30='Fondos-Inversionistas'!G$12,Energía!$B30,\"\")","v":""},{"$f":"IF(Energía!$E30='Fondos-Inversionistas'!H$12,Energía!$B30,\"\")","v":""},{"$f":"IF(Energía!$E30='Fondos-Inversionistas'!I$12,Energía!$B30,\"\")","v":""},{"$f":"IF(Energía!$E30='Fondos-Inversionistas'!J$12,Energía!$B30,\"\")","v":""},{"$f":"IF(Energía!$E30='Fondos-Inversionistas'!K$12,Energía!$B30,\"\")","v":""},{"$f":"IF(Energía!$E30='Fondos-Inversionistas'!L$12,Energía!$B30,\"\")","v":""},{"$f":"_xlfn.XLOOKUP(A87,'Base-datos'!$B$521:$B$531,'Base-datos'!$F$521:$F$531)","v":{"$error":"#N/A"}},{"$f":"_xlfn.XLOOKUP(A87,'Base-datos'!$B$521:$B$531,'Base-datos'!$C$521:$C$531)","v":{"$error":"#N/A"}},{"$f":"_xlfn.XLOOKUP(A87,'Base-datos'!$B$521:$B$531,'Base-datos'!$D$521:$D$531)","v":{"$error":"#N/A"}},null,null,{"$f":"IF(OR(P$77=\"La actividad no cumple con el total de los criterios de No Daño Significativo\",Q$77=\"El sector no cumple con las salvaguardas mínimas\"),\"\",IF(AND('Base-datos'!$B$730=\"Sí\",'Base-datos'!$B$731=\"\",'Base-datos'!$B$732=\"\"),IF(N87=\"La actividad sí contribuye sustancialmente a la sostenibilidad\",SUM(B87:L87),0),IF(AND('Base-datos'!$B$730=\"Sí\",'Base-datos'!$B$731=\"Sí\",'Base-datos'!$B$732=\"\"),IF(AND(N87=\"La actividad sí contribuye sustancialmente a la sostenibilidad\",O87=\"La actividad sí contribuye sustancialmente a la sostenibilidad\"),SUM(B87:L87),0),IF(AND('Base-datos'!$B$730=\"Sí\",'Base-datos'!$B$731=\"Sí\",'Base-datos'!$B$732=\"Sí\"),IF(AND(N87=\"La actividad sí contribuye sustancialmente a la sostenibilidad\",O87=\"La actividad sí contribuye sustancialmente a la sostenibilidad\",M87=\"La actividad sí contribuye sustancialmente a la sostenibilidad\"),SUM(B87:L87),0),IF(AND('Base-datos'!$B$730=\"\",'Base-datos'!$B$731=\"Sí\",'Base-datos'!$B$732=\"\"),IF(O87=\"La actividad sí contribuye sustancialmente a la sostenibilidad\",SUM(B87:L87),0),IF(AND('Base-datos'!$B$730=\"\",'Base-datos'!$B$731=\"\",'Base-datos'!$B$732=\"Sí\"),IF(M87=\"La actividad sí contribuye sustancialmente a la sostenibilidad\",SUM(B87:L87),0),IF(AND('Base-datos'!$B$730=\"\",'Base-datos'!$B$731=\"Sí\",'Base-datos'!$B$732=\"Sí\"),IF(AND(O87=\"La actividad sí contribuye sustancialmente a la sostenibilidad\",M87=\"La actividad sí contribuye sustancialmente a la sostenibilidad\"),SUM(B87:L87),0),IF(AND('Base-datos'!$B$730=\"Sí\",'Base-datos'!$B$731=\"\",'Base-datos'!$B$732=\"Sí\"),IF(AND(N87=\"La actividad sí contribuye sustancialmente a la sostenibilidad\",M87=\"La actividad sí contribuye sustancialmente a la sostenibilidad\"),SUM(B87:L87),0),\"Por definir\"))))))))","v":"Por definir"}]
[{"$f":"Energía!$C32","v":"Seleccione"},{"$f":"IF(Energía!$E32='Fondos-Inversionistas'!B$12,Energía!$B32,\"\")","v":""},{"$f":"IF(Energía!$E32='Fondos-Inversionistas'!C$12,Energía!$B32,\"\")","v":""},{"$f":"IF(Energía!$E32='Fondos-Inversionistas'!D$12,Energía!$B32,\"\")","v":""},{"$f":"IF(Energía!$E32='Fondos-Inversionistas'!E$12,Energía!$B32,\"\")","v":""},{"$f":"IF(Energía!$E32='Fondos-Inversionistas'!F$12,Energía!$B32,\"\")","v":""},{"$f":"IF(Energía!$E32='Fondos-Inversionistas'!G$12,Energía!$B32,\"\")","v":""},{"$f":"IF(Energía!$E32='Fondos-Inversionistas'!H$12,Energía!$B32,\"\")","v":""},{"$f":"IF(Energía!$E32='Fondos-Inversionistas'!I$12,Energía!$B32,\"\")","v":""},{"$f":"IF(Energía!$E32='Fondos-Inversionistas'!J$12,Energía!$B32,\"\")","v":""},{"$f":"IF(Energía!$E32='Fondos-Inversionistas'!K$12,Energía!$B32,\"\")","v":""},{"$f":"IF(Energía!$E32='Fondos-Inversionistas'!L$12,Energía!$B32,\"\")","v":""},{"$f":"_xlfn.XLOOKUP(A88,'Base-datos'!$B$521:$B$531,'Base-datos'!$F$521:$F$531)","v":{"$error":"#N/A"}},{"$f":"_xlfn.XLOOKUP(A88,'Base-datos'!$B$521:$B$531,'Base-datos'!$C$521:$C$531)","v":{"$error":"#N/A"}},{"$f":"_xlfn.XLOOKUP(A88,'Base-datos'!$B$521:$B$531,'Base-datos'!$D$521:$D$531)","v":{"$error":"#N/A"}},null,null,{"$f":"IF(OR(P$77=\"La actividad no cumple con el total de los criterios de No Daño Significativo\",Q$77=\"El sector no cumple con las salvaguardas mínimas\"),\"\",IF(AND('Base-datos'!$B$730=\"Sí\",'Base-datos'!$B$731=\"\",'Base-datos'!$B$732=\"\"),IF(N88=\"La actividad sí contribuye sustancialmente a la sostenibilidad\",SUM(B88:L88),0),IF(AND('Base-datos'!$B$730=\"Sí\",'Base-datos'!$B$731=\"Sí\",'Base-datos'!$B$732=\"\"),IF(AND(N88=\"La actividad sí contribuye sustancialmente a la sostenibilidad\",O88=\"La actividad sí contribuye sustancialmente a la sostenibilidad\"),SUM(B88:L88),0),IF(AND('Base-datos'!$B$730=\"Sí\",'Base-datos'!$B$731=\"Sí\",'Base-datos'!$B$732=\"Sí\"),IF(AND(N88=\"La actividad sí contribuye sustancialmente a la sostenibilidad\",O88=\"La actividad sí contribuye sustancialmente a la sostenibilidad\",M88=\"La actividad sí contribuye sustancialmente a la sostenibilidad\"),SUM(B88:L88),0),IF(AND('Base-datos'!$B$730=\"\",'Base-datos'!$B$731=\"Sí\",'Base-datos'!$B$732=\"\"),IF(O88=\"La actividad sí contribuye sustancialmente a la sostenibilidad\",SUM(B88:L88),0),IF(AND('Base-datos'!$B$730=\"\",'Base-datos'!$B$731=\"\",'Base-datos'!$B$732=\"Sí\"),IF(M88=\"La actividad sí contribuye sustancialmente a la sostenibilidad\",SUM(B88:L88),0),IF(AND('Base-datos'!$B$730=\"\",'Base-datos'!$B$731=\"Sí\",'Base-datos'!$B$732=\"Sí\"),IF(AND(O88=\"La actividad sí contribuye sustancialmente a la sostenibilidad\",M88=\"La actividad sí contribuye sustancialmente a la sostenibilidad\"),SUM(B88:L88),0),IF(AND('Base-datos'!$B$730=\"Sí\",'Base-datos'!$B$731=\"\",'Base-datos'!$B$732=\"Sí\"),IF(AND(N88=\"La actividad sí contribuye sustancialmente a la sostenibilidad\",M88=\"La actividad sí contribuye sustancialmente a la sostenibilidad\"),SUM(B88:L88),0),\"Por definir\"))))))))","v":"Por definir"}]
[{"$f":"Energía!$C34","v":"Seleccione"},{"$f":"IF(Energía!$E34='Fondos-Inversionistas'!B$12,Energía!$B34,\"\")","v":""},{"$f":"IF(Energía!$E34='Fondos-Inversionistas'!C$12,Energía!$B34,\"\")","v":""},{"$f":"IF(Energía!$E34='Fondos-Inversionistas'!D$12,Energía!$B34,\"\")","v":""},{"$f":"IF(Energía!$E34='Fondos-Inversionistas'!E$12,Energía!$B34,\"\")","v":""},{"$f":"IF(Energía!$E34='Fondos-Inversionistas'!F$12,Energía!$B34,\"\")","v":""},{"$f":"IF(Energía!$E34='Fondos-Inversionistas'!G$12,Energía!$B34,\"\")","v":""},{"$f":"IF(Energía!$E34='Fondos-Inversionistas'!H$12,Energía!$B34,\"\")","v":""},{"$f":"IF(Energía!$E34='Fondos-Inversionistas'!I$12,Energía!$B34,\"\")","v":""},{"$f":"IF(Energía!$E34='Fondos-Inversionistas'!J$12,Energía!$B34,\"\")","v":""},{"$f":"IF(Energía!$E34='Fondos-Inversionistas'!K$12,Energía!$B34,\"\")","v":""},{"$f":"IF(Energía!$E34='Fondos-Inversionistas'!L$12,Energía!$B34,\"\")","v":""},{"$f":"_xlfn.XLOOKUP(A89,'Base-datos'!$B$521:$B$531,'Base-datos'!$F$521:$F$531)","v":{"$error":"#N/A"}},{"$f":"_xlfn.XLOOKUP(A89,'Base-datos'!$B$521:$B$531,'Base-datos'!$C$521:$C$531)","v":{"$error":"#N/A"}},{"$f":"_xlfn.XLOOKUP(A89,'Base-datos'!$B$521:$B$531,'Base-datos'!$D$521:$D$531)","v":{"$error":"#N/A"}},null,null,{"$f":"IF(OR(P$77=\"La actividad no cumple con el total de los criterios de No Daño Significativo\",Q$77=\"El sector no cumple con las salvaguardas mínimas\"),\"\",IF(AND('Base-datos'!$B$730=\"Sí\",'Base-datos'!$B$731=\"\",'Base-datos'!$B$732=\"\"),IF(N89=\"La actividad sí contribuye sustancialmente a la sostenibilidad\",SUM(B89:L89),0),IF(AND('Base-datos'!$B$730=\"Sí\",'Base-datos'!$B$731=\"Sí\",'Base-datos'!$B$732=\"\"),IF(AND(N89=\"La actividad sí contribuye sustancialmente a la sostenibilidad\",O89=\"La actividad sí contribuye sustancialmente a la sostenibilidad\"),SUM(B89:L89),0),IF(AND('Base-datos'!$B$730=\"Sí\",'Base-datos'!$B$731=\"Sí\",'Base-datos'!$B$732=\"Sí\"),IF(AND(N89=\"La actividad sí contribuye sustancialmente a la sostenibilidad\",O89=\"La actividad sí contribuye sustancialmente a la sostenibilidad\",M89=\"La actividad sí contribuye sustancialmente a la sostenibilidad\"),SUM(B89:L89),0),IF(AND('Base-datos'!$B$730=\"\",'Base-datos'!$B$731=\"Sí\",'Base-datos'!$B$732=\"\"),IF(O89=\"La actividad sí contribuye sustancialmente a la sostenibilidad\",SUM(B89:L89),0),IF(AND('Base-datos'!$B$730=\"\",'Base-datos'!$B$731=\"\",'Base-datos'!$B$732=\"Sí\"),IF(M89=\"La actividad sí contribuye sustancialmente a la sostenibilidad\",SUM(B89:L89),0),IF(AND('Base-datos'!$B$730=\"\",'Base-datos'!$B$731=\"Sí\",'Base-datos'!$B$732=\"Sí\"),IF(AND(O89=\"La actividad sí contribuye sustancialmente a la sostenibilidad\",M89=\"La actividad sí contribuye sustancialmente a la sostenibilidad\"),SUM(B89:L89),0),IF(AND('Base-datos'!$B$730=\"Sí\",'Base-datos'!$B$731=\"\",'Base-datos'!$B$732=\"Sí\"),IF(AND(N89=\"La actividad sí contribuye sustancialmente a la sostenibilidad\",M89=\"La actividad sí contribuye sustancialmente a la sostenibilidad\"),SUM(B89:L89),0),\"Por definir\"))))))))","v":"Por definir"}]
[{"$f":"Energía!$C36","v":"Seleccione"},{"$f":"IF(Energía!$E36='Fondos-Inversionistas'!B$12,Energía!$B36,\"\")","v":""},{"$f":"IF(Energía!$E36='Fondos-Inversionistas'!C$12,Energía!$B36,\"\")","v":""},{"$f":"IF(Energía!$E36='Fondos-Inversionistas'!D$12,Energía!$B36,\"\")","v":""},{"$f":"IF(Energía!$E36='Fondos-Inversionistas'!E$12,Energía!$B36,\"\")","v":""},{"$f":"IF(Energía!$E36='Fondos-Inversionistas'!F$12,Energía!$B36,\"\")","v":""},{"$f":"IF(Energía!$E36='Fondos-Inversionistas'!G$12,Energía!$B36,\"\")","v":""},{"$f":"IF(Energía!$E36='Fondos-Inversionistas'!H$12,Energía!$B36,\"\")","v":""},{"$f":"IF(Energía!$E36='Fondos-Inversionistas'!I$12,Energía!$B36,\"\")","v":""},{"$f":"IF(Energía!$E36='Fondos-Inversionistas'!J$12,Energía!$B36,\"\")","v":""},{"$f":"IF(Energía!$E36='Fondos-Inversionistas'!K$12,Energía!$B36,\"\")","v":""},{"$f":"IF(Energía!$E36='Fondos-Inversionistas'!L$12,Energía!$B36,\"\")","v":""},{"$f":"_xlfn.XLOOKUP(A90,'Base-datos'!$B$521:$B$531,'Base-datos'!$F$521:$F$531)","v":{"$error":"#N/A"}},{"$f":"_xlfn.XLOOKUP(A90,'Base-datos'!$B$521:$B$531,'Base-datos'!$C$521:$C$531)","v":{"$error":"#N/A"}},{"$f":"_xlfn.XLOOKUP(A90,'Base-datos'!$B$521:$B$531,'Base-datos'!$D$521:$D$531)","v":{"$error":"#N/A"}},null,null,{"$f":"IF(OR(P$77=\"La actividad no cumple con el total de los criterios de No Daño Significativo\",Q$77=\"El sector no cumple con las salvaguardas mínimas\"),\"\",IF(AND('Base-datos'!$B$730=\"Sí\",'Base-datos'!$B$731=\"\",'Base-datos'!$B$732=\"\"),IF(N90=\"La actividad sí contribuye sustancialmente a la sostenibilidad\",SUM(B90:L90),0),IF(AND('Base-datos'!$B$730=\"Sí\",'Base-datos'!$B$731=\"Sí\",'Base-datos'!$B$732=\"\"),IF(AND(N90=\"La actividad sí contribuye sustancialmente a la sostenibilidad\",O90=\"La actividad sí contribuye sustancialmente a la sostenibilidad\"),SUM(B90:L90),0),IF(AND('Base-datos'!$B$730=\"Sí\",'Base-datos'!$B$731=\"Sí\",'Base-datos'!$B$732=\"Sí\"),IF(AND(N90=\"La actividad sí contribuye sustancialmente a la sostenibilidad\",O90=\"La actividad sí contribuye sustancialmente a la sostenibilidad\",M90=\"La actividad sí contribuye sustancialmente a la sostenibilidad\"),SUM(B90:L90),0),IF(AND('Base-datos'!$B$730=\"\",'Base-datos'!$B$731=\"Sí\",'Base-datos'!$B$732=\"\"),IF(O90=\"La actividad sí contribuye sustancialmente a la sostenibilidad\",SUM(B90:L90),0),IF(AND('Base-datos'!$B$730=\"\",'Base-datos'!$B$731=\"\",'Base-datos'!$B$732=\"Sí\"),IF(M90=\"La actividad sí contribuye sustancialmente a la sostenibilidad\",SUM(B90:L90),0),IF(AND('Base-datos'!$B$730=\"\",'Base-datos'!$B$731=\"Sí\",'Base-datos'!$B$732=\"Sí\"),IF(AND(O90=\"La actividad sí contribuye sustancialmente a la sostenibilidad\",M90=\"La actividad sí contribuye sustancialmente a la sostenibilidad\"),SUM(B90:L90),0),IF(AND('Base-datos'!$B$730=\"Sí\",'Base-datos'!$B$731=\"\",'Base-datos'!$B$732=\"Sí\"),IF(AND(N90=\"La actividad sí contribuye sustancialmente a la sostenibilidad\",M90=\"La actividad sí contribuye sustancialmente a la sostenibilidad\"),SUM(B90:L90),0),\"Por definir\"))))))))","v":"Por definir"}]
[{"$f":"Energía!$C38","v":"Seleccione"},{"$f":"IF(Energía!$E38='Fondos-Inversionistas'!B$12,Energía!$B38,\"\")","v":""},{"$f":"IF(Energía!$E38='Fondos-Inversionistas'!C$12,Energía!$B38,\"\")","v":""},{"$f":"IF(Energía!$E38='Fondos-Inversionistas'!D$12,Energía!$B38,\"\")","v":""},{"$f":"IF(Energía!$E38='Fondos-Inversionistas'!E$12,Energía!$B38,\"\")","v":""},{"$f":"IF(Energía!$E38='Fondos-Inversionistas'!F$12,Energía!$B38,\"\")","v":""},{"$f":"IF(Energía!$E38='Fondos-Inversionistas'!G$12,Energía!$B38,\"\")","v":""},{"$f":"IF(Energía!$E38='Fondos-Inversionistas'!H$12,Energía!$B38,\"\")","v":""},{"$f":"IF(Energía!$E38='Fondos-Inversionistas'!I$12,Energía!$B38,\"\")","v":""},{"$f":"IF(Energía!$E38='Fondos-Inversionistas'!J$12,Energía!$B38,\"\")","v":""},{"$f":"IF(Energía!$E38='Fondos-Inversionistas'!K$12,Energía!$B38,\"\")","v":""},{"$f":"IF(Energía!$E38='Fondos-Inversionistas'!L$12,Energía!$B38,\"\")","v":""},{"$f":"_xlfn.XLOOKUP(A91,'Base-datos'!$B$521:$B$531,'Base-datos'!$F$521:$F$531)","v":{"$error":"#N/A"}},{"$f":"_xlfn.XLOOKUP(A91,'Base-datos'!$B$521:$B$531,'Base-datos'!$C$521:$C$531)","v":{"$error":"#N/A"}},{"$f":"_xlfn.XLOOKUP(A91,'Base-datos'!$B$521:$B$531,'Base-datos'!$D$521:$D$531)","v":{"$error":"#N/A"}},null,null,{"$f":"IF(OR(P$77=\"La actividad no cumple con el total de los criterios de No Daño Significativo\",Q$77=\"El sector no cumple con las salvaguardas mínimas\"),\"\",IF(AND('Base-datos'!$B$730=\"Sí\",'Base-datos'!$B$731=\"\",'Base-datos'!$B$732=\"\"),IF(N91=\"La actividad sí contribuye sustancialmente a la sostenibilidad\",SUM(B91:L91),0),IF(AND('Base-datos'!$B$730=\"Sí\",'Base-datos'!$B$731=\"Sí\",'Base-datos'!$B$732=\"\"),IF(AND(N91=\"La actividad sí contribuye sustancialmente a la sostenibilidad\",O91=\"La actividad sí contribuye sustancialmente a la sostenibilidad\"),SUM(B91:L91),0),IF(AND('Base-datos'!$B$730=\"Sí\",'Base-datos'!$B$731=\"Sí\",'Base-datos'!$B$732=\"Sí\"),IF(AND(N91=\"La actividad sí contribuye sustancialmente a la sostenibilidad\",O91=\"La actividad sí contribuye sustancialmente a la sostenibilidad\",M91=\"La actividad sí contribuye sustancialmente a la sostenibilidad\"),SUM(B91:L91),0),IF(AND('Base-datos'!$B$730=\"\",'Base-datos'!$B$731=\"Sí\",'Base-datos'!$B$732=\"\"),IF(O91=\"La actividad sí contribuye sustancialmente a la sostenibilidad\",SUM(B91:L91),0),IF(AND('Base-datos'!$B$730=\"\",'Base-datos'!$B$731=\"\",'Base-datos'!$B$732=\"Sí\"),IF(M91=\"La actividad sí contribuye sustancialmente a la sostenibilidad\",SUM(B91:L91),0),IF(AND('Base-datos'!$B$730=\"\",'Base-datos'!$B$731=\"Sí\",'Base-datos'!$B$732=\"Sí\"),IF(AND(O91=\"La actividad sí contribuye sustancialmente a la sostenibilidad\",M91=\"La actividad sí contribuye sustancialmente a la sostenibilidad\"),SUM(B91:L91),0),IF(AND('Base-datos'!$B$730=\"Sí\",'Base-datos'!$B$731=\"\",'Base-datos'!$B$732=\"Sí\"),IF(AND(N91=\"La actividad sí contribuye sustancialmente a la sostenibilidad\",M91=\"La actividad sí contribuye sustancialmente a la sostenibilidad\"),SUM(B91:L91),0),\"Por definir\"))))))))","v":"Por definir"}]
[{"$f":"Energía!$C40","v":"Seleccione"},{"$f":"IF(Energía!$E40='Fondos-Inversionistas'!B$12,Energía!$B40,\"\")","v":""},{"$f":"IF(Energía!$E40='Fondos-Inversionistas'!C$12,Energía!$B40,\"\")","v":""},{"$f":"IF(Energía!$E40='Fondos-Inversionistas'!D$12,Energía!$B40,\"\")","v":""},{"$f":"IF(Energía!$E40='Fondos-Inversionistas'!E$12,Energía!$B40,\"\")","v":""},{"$f":"IF(Energía!$E40='Fondos-Inversionistas'!F$12,Energía!$B40,\"\")","v":""},{"$f":"IF(Energía!$E40='Fondos-Inversionistas'!G$12,Energía!$B40,\"\")","v":""},{"$f":"IF(Energía!$E40='Fondos-Inversionistas'!H$12,Energía!$B40,\"\")","v":""},{"$f":"IF(Energía!$E40='Fondos-Inversionistas'!I$12,Energía!$B40,\"\")","v":""},{"$f":"IF(Energía!$E40='Fondos-Inversionistas'!J$12,Energía!$B40,\"\")","v":""},{"$f":"IF(Energía!$E40='Fondos-Inversionistas'!K$12,Energía!$B40,\"\")","v":""},{"$f":"IF(Energía!$E40='Fondos-Inversionistas'!L$12,Energía!$B40,\"\")","v":""},{"$f":"_xlfn.XLOOKUP(A92,'Base-datos'!$B$521:$B$531,'Base-datos'!$F$521:$F$531)","v":{"$error":"#N/A"}},{"$f":"_xlfn.XLOOKUP(A92,'Base-datos'!$B$521:$B$531,'Base-datos'!$C$521:$C$531)","v":{"$error":"#N/A"}},{"$f":"_xlfn.XLOOKUP(A92,'Base-datos'!$B$521:$B$531,'Base-datos'!$D$521:$D$531)","v":{"$error":"#N/A"}},null,null,{"$f":"IF(OR(P$77=\"La actividad no cumple con el total de los criterios de No Daño Significativo\",Q$77=\"El sector no cumple con las salvaguardas mínimas\"),\"\",IF(AND('Base-datos'!$B$730=\"Sí\",'Base-datos'!$B$731=\"\",'Base-datos'!$B$732=\"\"),IF(N92=\"La actividad sí contribuye sustancialmente a la sostenibilidad\",SUM(B92:L92),0),IF(AND('Base-datos'!$B$730=\"Sí\",'Base-datos'!$B$731=\"Sí\",'Base-datos'!$B$732=\"\"),IF(AND(N92=\"La actividad sí contribuye sustancialmente a la sostenibilidad\",O92=\"La actividad sí contribuye sustancialmente a la sostenibilidad\"),SUM(B92:L92),0),IF(AND('Base-datos'!$B$730=\"Sí\",'Base-datos'!$B$731=\"Sí\",'Base-datos'!$B$732=\"Sí\"),IF(AND(N92=\"La actividad sí contribuye sustancialmente a la sostenibilidad\",O92=\"La actividad sí contribuye sustancialmente a la sostenibilidad\",M92=\"La actividad sí contribuye sustancialmente a la sostenibilidad\"),SUM(B92:L92),0),IF(AND('Base-datos'!$B$730=\"\",'Base-datos'!$B$731=\"Sí\",'Base-datos'!$B$732=\"\"),IF(O92=\"La actividad sí contribuye sustancialmente a la sostenibilidad\",SUM(B92:L92),0),IF(AND('Base-datos'!$B$730=\"\",'Base-datos'!$B$731=\"\",'Base-datos'!$B$732=\"Sí\"),IF(M92=\"La actividad sí contribuye sustancialmente a la sostenibilidad\",SUM(B92:L92),0),IF(AND('Base-datos'!$B$730=\"\",'Base-datos'!$B$731=\"Sí\",'Base-datos'!$B$732=\"Sí\"),IF(AND(O92=\"La actividad sí contribuye sustancialmente a la sostenibilidad\",M92=\"La actividad sí contribuye sustancialmente a la sostenibilidad\"),SUM(B92:L92),0),IF(AND('Base-datos'!$B$730=\"Sí\",'Base-datos'!$B$731=\"\",'Base-datos'!$B$732=\"Sí\"),IF(AND(N92=\"La actividad sí contribuye sustancialmente a la sostenibilidad\",M92=\"La actividad sí contribuye sustancialmente a la sostenibilidad\"),SUM(B92:L92),0),\"Por definir\"))))))))","v":"Por definir"}]
[{"$f":"Energía!$C42","v":"Seleccione"},{"$f":"IF(Energía!$E42='Fondos-Inversionistas'!B$12,Energía!$B42,\"\")","v":""},{"$f":"IF(Energía!$E42='Fondos-Inversionistas'!C$12,Energía!$B42,\"\")","v":""},{"$f":"IF(Energía!$E42='Fondos-Inversionistas'!D$12,Energía!$B42,\"\")","v":""},{"$f":"IF(Energía!$E42='Fondos-Inversionistas'!E$12,Energía!$B42,\"\")","v":""},{"$f":"IF(Energía!$E42='Fondos-Inversionistas'!F$12,Energía!$B42,\"\")","v":""},{"$f":"IF(Energía!$E42='Fondos-Inversionistas'!G$12,Energía!$B42,\"\")","v":""},{"$f":"IF(Energía!$E42='Fondos-Inversionistas'!H$12,Energía!$B42,\"\")","v":""},{"$f":"IF(Energía!$E42='Fondos-Inversionistas'!I$12,Energía!$B42,\"\")","v":""},{"$f":"IF(Energía!$E42='Fondos-Inversionistas'!J$12,Energía!$B42,\"\")","v":""},{"$f":"IF(Energía!$E42='Fondos-Inversionistas'!K$12,Energía!$B42,\"\")","v":""},{"$f":"IF(Energía!$E42='Fondos-Inversionistas'!L$12,Energía!$B42,\"\")","v":""},{"$f":"_xlfn.XLOOKUP(A93,'Base-datos'!$B$521:$B$531,'Base-datos'!$F$521:$F$531)","v":{"$error":"#N/A"}},{"$f":"_xlfn.XLOOKUP(A93,'Base-datos'!$B$521:$B$531,'Base-datos'!$C$521:$C$531)","v":{"$error":"#N/A"}},{"$f":"_xlfn.XLOOKUP(A93,'Base-datos'!$B$521:$B$531,'Base-datos'!$D$521:$D$531)","v":{"$error":"#N/A"}},null,null,{"$f":"IF(OR(P$77=\"La actividad no cumple con el total de los criterios de No Daño Significativo\",Q$77=\"El sector no cumple con las salvaguardas mínimas\"),\"\",IF(AND('Base-datos'!$B$730=\"Sí\",'Base-datos'!$B$731=\"\",'Base-datos'!$B$732=\"\"),IF(N93=\"La actividad sí contribuye sustancialmente a la sostenibilidad\",SUM(B93:L93),0),IF(AND('Base-datos'!$B$730=\"Sí\",'Base-datos'!$B$731=\"Sí\",'Base-datos'!$B$732=\"\"),IF(AND(N93=\"La actividad sí contribuye sustancialmente a la sostenibilidad\",O93=\"La actividad sí contribuye sustancialmente a la sostenibilidad\"),SUM(B93:L93),0),IF(AND('Base-datos'!$B$730=\"Sí\",'Base-datos'!$B$731=\"Sí\",'Base-datos'!$B$732=\"Sí\"),IF(AND(N93=\"La actividad sí contribuye sustancialmente a la sostenibilidad\",O93=\"La actividad sí contribuye sustancialmente a la sostenibilidad\",M93=\"La actividad sí contribuye sustancialmente a la sostenibilidad\"),SUM(B93:L93),0),IF(AND('Base-datos'!$B$730=\"\",'Base-datos'!$B$731=\"Sí\",'Base-datos'!$B$732=\"\"),IF(O93=\"La actividad sí contribuye sustancialmente a la sostenibilidad\",SUM(B93:L93),0),IF(AND('Base-datos'!$B$730=\"\",'Base-datos'!$B$731=\"\",'Base-datos'!$B$732=\"Sí\"),IF(M93=\"La actividad sí contribuye sustancialmente a la sostenibilidad\",SUM(B93:L93),0),IF(AND('Base-datos'!$B$730=\"\",'Base-datos'!$B$731=\"Sí\",'Base-datos'!$B$732=\"Sí\"),IF(AND(O93=\"La actividad sí contribuye sustancialmente a la sostenibilidad\",M93=\"La actividad sí contribuye sustancialmente a la sostenibilidad\"),SUM(B93:L93),0),IF(AND('Base-datos'!$B$730=\"Sí\",'Base-datos'!$B$731=\"\",'Base-datos'!$B$732=\"Sí\"),IF(AND(N93=\"La actividad sí contribuye sustancialmente a la sostenibilidad\",M93=\"La actividad sí contribuye sustancialmente a la sostenibilidad\"),SUM(B93:L93),0),\"Por definir\"))))))))","v":"Por definir"}]
[{"$f":"Energía!$C44","v":"Seleccione"},{"$f":"IF(Energía!$E44='Fondos-Inversionistas'!B$12,Energía!$B44,\"\")","v":""},{"$f":"IF(Energía!$E44='Fondos-Inversionistas'!C$12,Energía!$B44,\"\")","v":""},{"$f":"IF(Energía!$E44='Fondos-Inversionistas'!D$12,Energía!$B44,\"\")","v":""},{"$f":"IF(Energía!$E44='Fondos-Inversionistas'!E$12,Energía!$B44,\"\")","v":""},{"$f":"IF(Energía!$E44='Fondos-Inversionistas'!F$12,Energía!$B44,\"\")","v":""},{"$f":"IF(Energía!$E44='Fondos-Inversionistas'!G$12,Energía!$B44,\"\")","v":""},{"$f":"IF(Energía!$E44='Fondos-Inversionistas'!H$12,Energía!$B44,\"\")","v":""},{"$f":"IF(Energía!$E44='Fondos-Inversionistas'!I$12,Energía!$B44,\"\")","v":""},{"$f":"IF(Energía!$E44='Fondos-Inversionistas'!J$12,Energía!$B44,\"\")","v":""},{"$f":"IF(Energía!$E44='Fondos-Inversionistas'!K$12,Energía!$B44,\"\")","v":""},{"$f":"IF(Energía!$E44='Fondos-Inversionistas'!L$12,Energía!$B44,\"\")","v":""},{"$f":"_xlfn.XLOOKUP(A94,'Base-datos'!$B$521:$B$531,'Base-datos'!$F$521:$F$531)","v":{"$error":"#N/A"}},{"$f":"_xlfn.XLOOKUP(A94,'Base-datos'!$B$521:$B$531,'Base-datos'!$C$521:$C$531)","v":{"$error":"#N/A"}},{"$f":"_xlfn.XLOOKUP(A94,'Base-datos'!$B$521:$B$531,'Base-datos'!$D$521:$D$531)","v":{"$error":"#N/A"}},null,null,{"$f":"IF(OR(P$77=\"La actividad no cumple con el total de los criterios de No Daño Significativo\",Q$77=\"El sector no cumple con las salvaguardas mínimas\"),\"\",IF(AND('Base-datos'!$B$730=\"Sí\",'Base-datos'!$B$731=\"\",'Base-datos'!$B$732=\"\"),IF(N94=\"La actividad sí contribuye sustancialmente a la sostenibilidad\",SUM(B94:L94),0),IF(AND('Base-datos'!$B$730=\"Sí\",'Base-datos'!$B$731=\"Sí\",'Base-datos'!$B$732=\"\"),IF(AND(N94=\"La actividad sí contribuye sustancialmente a la sostenibilidad\",O94=\"La actividad sí contribuye sustancialmente a la sostenibilidad\"),SUM(B94:L94),0),IF(AND('Base-datos'!$B$730=\"Sí\",'Base-datos'!$B$731=\"Sí\",'Base-datos'!$B$732=\"Sí\"),IF(AND(N94=\"La actividad sí contribuye sustancialmente a la sostenibilidad\",O94=\"La actividad sí contribuye sustancialmente a la sostenibilidad\",M94=\"La actividad sí contribuye sustancialmente a la sostenibilidad\"),SUM(B94:L94),0),IF(AND('Base-datos'!$B$730=\"\",'Base-datos'!$B$731=\"Sí\",'Base-datos'!$B$732=\"\"),IF(O94=\"La actividad sí contribuye sustancialmente a la sostenibilidad\",SUM(B94:L94),0),IF(AND('Base-datos'!$B$730=\"\",'Base-datos'!$B$731=\"\",'Base-datos'!$B$732=\"Sí\"),IF(M94=\"La actividad sí contribuye sustancialmente a la sostenibilidad\",SUM(B94:L94),0),IF(AND('Base-datos'!$B$730=\"\",'Base-datos'!$B$731=\"Sí\",'Base-datos'!$B$732=\"Sí\"),IF(AND(O94=\"La actividad sí contribuye sustancialmente a la sostenibilidad\",M94=\"La actividad sí contribuye sustancialmente a la sostenibilidad\"),SUM(B94:L94),0),IF(AND('Base-datos'!$B$730=\"Sí\",'Base-datos'!$B$731=\"\",'Base-datos'!$B$732=\"Sí\"),IF(AND(N94=\"La actividad sí contribuye sustancialmente a la sostenibilidad\",M94=\"La actividad sí contribuye sustancialmente a la sostenibilidad\"),SUM(B94:L94),0),\"Por definir\"))))))))","v":"Por definir"}]
[{"$f":"Energía!$C46","v":"Seleccione"},{"$f":"IF(Energía!$E46='Fondos-Inversionistas'!B$12,Energía!$B46,\"\")","v":""},{"$f":"IF(Energía!$E46='Fondos-Inversionistas'!C$12,Energía!$B46,\"\")","v":""},{"$f":"IF(Energía!$E46='Fondos-Inversionistas'!D$12,Energía!$B46,\"\")","v":""},{"$f":"IF(Energía!$E46='Fondos-Inversionistas'!E$12,Energía!$B46,\"\")","v":""},{"$f":"IF(Energía!$E46='Fondos-Inversionistas'!F$12,Energía!$B46,\"\")","v":""},{"$f":"IF(Energía!$E46='Fondos-Inversionistas'!G$12,Energía!$B46,\"\")","v":""},{"$f":"IF(Energía!$E46='Fondos-Inversionistas'!H$12,Energía!$B46,\"\")","v":""},{"$f":"IF(Energía!$E46='Fondos-Inversionistas'!I$12,Energía!$B46,\"\")","v":""},{"$f":"IF(Energía!$E46='Fondos-Inversionistas'!J$12,Energía!$B46,\"\")","v":""},{"$f":"IF(Energía!$E46='Fondos-Inversionistas'!K$12,Energía!$B46,\"\")","v":""},{"$f":"IF(Energía!$E46='Fondos-Inversionistas'!L$12,Energía!$B46,\"\")","v":""},{"$f":"_xlfn.XLOOKUP(A95,'Base-datos'!$B$521:$B$531,'Base-datos'!$F$521:$F$531)","v":{"$error":"#N/A"}},{"$f":"_xlfn.XLOOKUP(A95,'Base-datos'!$B$521:$B$531,'Base-datos'!$C$521:$C$531)","v":{"$error":"#N/A"}},{"$f":"_xlfn.XLOOKUP(A95,'Base-datos'!$B$521:$B$531,'Base-datos'!$D$521:$D$531)","v":{"$error":"#N/A"}},null,null,{"$f":"IF(OR(P$77=\"La actividad no cumple con el total de los criterios de No Daño Significativo\",Q$77=\"El sector no cumple con las salvaguardas mínimas\"),\"\",IF(AND('Base-datos'!$B$730=\"Sí\",'Base-datos'!$B$731=\"\",'Base-datos'!$B$732=\"\"),IF(N95=\"La actividad sí contribuye sustancialmente a la sostenibilidad\",SUM(B95:L95),0),IF(AND('Base-datos'!$B$730=\"Sí\",'Base-datos'!$B$731=\"Sí\",'Base-datos'!$B$732=\"\"),IF(AND(N95=\"La actividad sí contribuye sustancialmente a la sostenibilidad\",O95=\"La actividad sí contribuye sustancialmente a la sostenibilidad\"),SUM(B95:L95),0),IF(AND('Base-datos'!$B$730=\"Sí\",'Base-datos'!$B$731=\"Sí\",'Base-datos'!$B$732=\"Sí\"),IF(AND(N95=\"La actividad sí contribuye sustancialmente a la sostenibilidad\",O95=\"La actividad sí contribuye sustancialmente a la sostenibilidad\",M95=\"La actividad sí contribuye sustancialmente a la sostenibilidad\"),SUM(B95:L95),0),IF(AND('Base-datos'!$B$730=\"\",'Base-datos'!$B$731=\"Sí\",'Base-datos'!$B$732=\"\"),IF(O95=\"La actividad sí contribuye sustancialmente a la sostenibilidad\",SUM(B95:L95),0),IF(AND('Base-datos'!$B$730=\"\",'Base-datos'!$B$731=\"\",'Base-datos'!$B$732=\"Sí\"),IF(M95=\"La actividad sí contribuye sustancialmente a la sostenibilidad\",SUM(B95:L95),0),IF(AND('Base-datos'!$B$730=\"\",'Base-datos'!$B$731=\"Sí\",'Base-datos'!$B$732=\"Sí\"),IF(AND(O95=\"La actividad sí contribuye sustancialmente a la sostenibilidad\",M95=\"La actividad sí contribuye sustancialmente a la sostenibilidad\"),SUM(B95:L95),0),IF(AND('Base-datos'!$B$730=\"Sí\",'Base-datos'!$B$731=\"\",'Base-datos'!$B$732=\"Sí\"),IF(AND(N95=\"La actividad sí contribuye sustancialmente a la sostenibilidad\",M95=\"La actividad sí contribuye sustancialmente a la sostenibilidad\"),SUM(B95:L95),0),\"Por definir\"))))))))","v":"Por definir"}]
[{"$f":"Energía!$C48","v":"Seleccione"},{"$f":"IF(Energía!$E48='Fondos-Inversionistas'!B$12,Energía!$B48,\"\")","v":""},{"$f":"IF(Energía!$E48='Fondos-Inversionistas'!C$12,Energía!$B48,\"\")","v":""},{"$f":"IF(Energía!$E48='Fondos-Inversionistas'!D$12,Energía!$B48,\"\")","v":""},{"$f":"IF(Energía!$E48='Fondos-Inversionistas'!E$12,Energía!$B48,\"\")","v":""},{"$f":"IF(Energía!$E48='Fondos-Inversionistas'!F$12,Energía!$B48,\"\")","v":""},{"$f":"IF(Energía!$E48='Fondos-Inversionistas'!G$12,Energía!$B48,\"\")","v":""},{"$f":"IF(Energía!$E48='Fondos-Inversionistas'!H$12,Energía!$B48,\"\")","v":""},{"$f":"IF(Energía!$E48='Fondos-Inversionistas'!I$12,Energía!$B48,\"\")","v":""},{"$f":"IF(Energía!$E48='Fondos-Inversionistas'!J$12,Energía!$B48,\"\")","v":""},{"$f":"IF(Energía!$E48='Fondos-Inversionistas'!K$12,Energía!$B48,\"\")","v":""},{"$f":"IF(Energía!$E48='Fondos-Inversionistas'!L$12,Energía!$B48,\"\")","v":""},{"$f":"_xlfn.XLOOKUP(A96,'Base-datos'!$B$521:$B$531,'Base-datos'!$F$521:$F$531)","v":{"$error":"#N/A"}},{"$f":"_xlfn.XLOOKUP(A96,'Base-datos'!$B$521:$B$531,'Base-datos'!$C$521:$C$531)","v":{"$error":"#N/A"}},{"$f":"_xlfn.XLOOKUP(A96,'Base-datos'!$B$521:$B$531,'Base-datos'!$D$521:$D$531)","v":{"$error":"#N/A"}},null,null,{"$f":"IF(OR(P$77=\"La actividad no cumple con el total de los criterios de No Daño Significativo\",Q$77=\"El sector no cumple con las salvaguardas mínimas\"),\"\",IF(AND('Base-datos'!$B$730=\"Sí\",'Base-datos'!$B$731=\"\",'Base-datos'!$B$732=\"\"),IF(N96=\"La actividad sí contribuye sustancialmente a la sostenibilidad\",SUM(B96:L96),0),IF(AND('Base-datos'!$B$730=\"Sí\",'Base-datos'!$B$731=\"Sí\",'Base-datos'!$B$732=\"\"),IF(AND(N96=\"La actividad sí contribuye sustancialmente a la sostenibilidad\",O96=\"La actividad sí contribuye sustancialmente a la sostenibilidad\"),SUM(B96:L96),0),IF(AND('Base-datos'!$B$730=\"Sí\",'Base-datos'!$B$731=\"Sí\",'Base-datos'!$B$732=\"Sí\"),IF(AND(N96=\"La actividad sí contribuye sustancialmente a la sostenibilidad\",O96=\"La actividad sí contribuye sustancialmente a la sostenibilidad\",M96=\"La actividad sí contribuye sustancialmente a la sostenibilidad\"),SUM(B96:L96),0),IF(AND('Base-datos'!$B$730=\"\",'Base-datos'!$B$731=\"Sí\",'Base-datos'!$B$732=\"\"),IF(O96=\"La actividad sí contribuye sustancialmente a la sostenibilidad\",SUM(B96:L96),0),IF(AND('Base-datos'!$B$730=\"\",'Base-datos'!$B$731=\"\",'Base-datos'!$B$732=\"Sí\"),IF(M96=\"La actividad sí contribuye sustancialmente a la sostenibilidad\",SUM(B96:L96),0),IF(AND('Base-datos'!$B$730=\"\",'Base-datos'!$B$731=\"Sí\",'Base-datos'!$B$732=\"Sí\"),IF(AND(O96=\"La actividad sí contribuye sustancialmente a la sostenibilidad\",M96=\"La actividad sí contribuye sustancialmente a la sostenibilidad\"),SUM(B96:L96),0),IF(AND('Base-datos'!$B$730=\"Sí\",'Base-datos'!$B$731=\"\",'Base-datos'!$B$732=\"Sí\"),IF(AND(N96=\"La actividad sí contribuye sustancialmente a la sostenibilidad\",M96=\"La actividad sí contribuye sustancialmente a la sostenibilidad\"),SUM(B96:L96),0),\"Por definir\"))))))))","v":"Por definir"}]
["Agua",null,null,null,null,null,null,null,null,null,null,null,null,null,null,null,null,{"$f":"SUM(IF(FREQUENCY(MATCH(A98:A117, A98:A117, 0), MATCH(A98:A117, A98:A117, 0)) > 0, IF(NOT(ISERROR(R98:R117)), R98:R117, 0)))","v":0}]
[{"$f":"Agua!$C10","v":"Seleccione"},{"$f":"IF(Agua!$E10='Fondos-Inversionistas'!B$12,Agua!$B10,\"\")","v":""},{"$f":"IF(Agua!$E10='Fondos-Inversionistas'!C$12,Agua!$B10,\"\")","v":""},{"$f":"IF(Agua!$E10='Fondos-Inversionistas'!D$12,Agua!$B10,\"\")","v":""},{"$f":"IF(Agua!$E10='Fondos-Inversionistas'!E$12,Agua!$B10,\"\")","v":""},{"$f":"IF(Agua!$E10='Fondos-Inversionistas'!F$12,Agua!$B10,\"\")","v":""},{"$f":"IF(Agua!$E10='Fondos-Inversionistas'!G$12,Agua!$B10,\"\")","v":""},{"$f":"IF(Agua!$E10='Fondos-Inversionistas'!H$12,Agua!$B10,\"\")","v":""},{"$f":"IF(Agua!$E10='Fondos-Inversionistas'!I$12,Agua!$B10,\"\")","v":""},{"$f":"IF(Agua!$E10='Fondos-Inversionistas'!J$12,Agua!$B10,\"\")","v":""},{"$f":"IF(Agua!$E10='Fondos-Inversionistas'!K$12,Agua!$B10,\"\")","v":""},{"$f":"IF(Agua!$E10='Fondos-Inversionistas'!L$12,Agua!$B10,\"\")","v":""},{"$f":"_xlfn.XLOOKUP(A98,'Base-datos'!$B$532:$B$536,'Base-datos'!$F$532:$F$536)","v":{"$error":"#N/A"}},{"$f":"_xlfn.XLOOKUP(A98,'Base-datos'!$B$532:$B$536,'Base-datos'!$C$532:$C$536)","v":{"$error":"#N/A"}},{"$f":"_xlfn.XLOOKUP(A98,'Base-datos'!$B$532:$B$536,'Base-datos'!$D$532:$D$536)","v":{"$error":"#N/A"}},{"$f":"IF(COUNTIF('Agua-NDS'!G9:G45,\"No\")>0,\"La actividad no cumple con el total de los criterios de NDS\",\"La actividad cumple con los criterios de No Daño Significativo\")","v":"La actividad cumple con los criterios de No Daño Significativo"},{"$f":"IF(OR('Salvaguardas mínimas'!$G$10=\"Seleccione\",'Salvaguardas mínimas'!$G$13=\"Seleccione\",'Salvaguardas mínimas'!$G$16=\"Seleccione\",'Salvaguardas mínimas'!$G$7=\"Seleccione\"),\"No se han respondido todas las preguntas\",IF(OR('Salvaguardas mínimas'!$G$10=\"No\",'Salvaguardas mínimas'!$G$13=\"No\",'Salvaguardas mínimas'!$G$16=\"No\",'Salvaguardas mínimas'!$G$7=\"No\"),\"El sector no cumple con las salvaguardas mínimas\",\"La actividad sí cumple con las salvaguardas mínimas\"))","v":"No se han respondido todas las preguntas"},{"$f":"IF(OR(P$98=\"La actividad no cumple con el total de los criterios de No Daño Significativo\",Q$98=\"El sector no cumple con las salvaguardas mínimas\"),\"\",IF(AND('Base-datos'!$B$735=\"Sí\",'Base-datos'!$B$736=\"\",'Base-datos'!$B$737=\"\"),IF(N98=\"La actividad sí contribuye sustancialmente a la sostenibilidad\",SUM(B98:L98),0),IF(AND('Base-datos'!$B$735=\"Sí\",'Base-datos'!$B$736=\"Sí\",'Base-datos'!$B$737=\"\"),IF(AND(N98=\"La actividad sí contribuye sustancialmente a la sostenibilidad\",O98=\"La actividad sí contribuye sustancialmente a la sostenibilidad\"),SUM(B98:L98),0),IF(AND('Base-datos'!$B$735=\"Sí\",'Base-datos'!$B$736=\"Sí\",'Base-datos'!$B$737=\"Sí\"),IF(AND(N98=\"La actividad sí contribuye sustancialmente a la sostenibilidad\",O98=\"La actividad sí contribuye sustancialmente a la sostenibilidad\",M98=\"La actividad sí contribuye sustancialmente a la sostenibilidad\"),SUM(B98:L98),0),IF(AND('Base-datos'!$B$735=\"\",'Base-datos'!$B$736=\"Sí\",'Base-datos'!$B$737=\"\"),IF(O98=\"La actividad sí contribuye sustancialmente a la sostenibilidad\",SUM(B98:L98),0),IF(AND('Base-datos'!$B$735=\"\",'Base-datos'!$B$736=\"\",'Base-datos'!$B$737=\"Sí\"),IF(M98=\"La actividad sí contribuye sustancialmente a la sostenibilidad\",SUM(B98:L98),0),IF(AND('Base-datos'!$B$735=\"\",'Base-datos'!$B$736=\"Sí\",'Base-datos'!$B$737=\"Sí\"),IF(AND(O98=\"La actividad sí contribuye sustancialmente a la sostenibilidad\",M98=\"La actividad sí contribuye sustancialmente a la sostenibilidad\"),SUM(B98:L98),0),IF(AND('Base-datos'!$B$735=\"Sí\",'Base-datos'!$B$736=\"\",'Base-datos'!$B$737=\"Sí\"),IF(AND(N98=\"La actividad sí contribuye sustancialmente a la sostenibilidad\",M98=\"La actividad sí contribuye sustancialmente a la sostenibilidad\"),SUM(B98:L98),0),\"Por definir\"))))))))","v":"Por definir"}]
[{"$f":"Agua!$C12","v":"Seleccione"},{"$f":"IF(Agua!$E12='Fondos-Inversionistas'!B$12,Agua!$B12,\"\")","v":""},{"$f":"IF(Agua!$E12='Fondos-Inversionistas'!C$12,Agua!$B12,\"\")","v":""},{"$f":"IF(Agua!$E12='Fondos-Inversionistas'!D$12,Agua!$B12,\"\")","v":""},{"$f":"IF(Agua!$E12='Fondos-Inversionistas'!E$12,Agua!$B12,\"\")","v":""},{"$f":"IF(Agua!$E12='Fondos-Inversionistas'!F$12,Agua!$B12,\"\")","v":""},{"$f":"IF(Agua!$E12='Fondos-Inversionistas'!G$12,Agua!$B12,\"\")","v":""},{"$f":"IF(Agua!$E12='Fondos-Inversionistas'!H$12,Agua!$B12,\"\")","v":""},{"$f":"IF(Agua!$E12='Fondos-Inversionistas'!I$12,Agua!$B12,\"\")","v":""},{"$f":"IF(Agua!$E12='Fondos-Inversionistas'!J$12,Agua!$B12,\"\")","v":""},{"$f":"IF(Agua!$E12='Fondos-Inversionistas'!K$12,Agua!$B12,\"\")","v":""},{"$f":"IF(Agua!$E12='Fondos-Inversionistas'!L$12,Agua!$B12,\"\")","v":""},{"$f":"_xlfn.XLOOKUP(A99,'Base-datos'!$B$532:$B$536,'Base-datos'!$F$532:$F$536)","v":{"$error":"#N/A"}},{"$f":"_xlfn.XLOOKUP(A99,'Base-datos'!$B$532:$B$536,'Base-datos'!$C$532:$C$536)","v":{"$error":"#N/A"}},{"$f":"_xlfn.XLOOKUP(A99,'Base-datos'!$B$532:$B$536,'Base-datos'!$D$532:$D$536)","v":{"$error":"#N/A"}},null,null,{"$f":"IF(OR(P$98=\"La actividad no cumple con el total de los criterios de No Daño Significativo\",Q$98=\"El sector no cumple con las salvaguardas mínimas\"),\"\",IF(AND('Base-datos'!$B$735=\"Sí\",'Base-datos'!$B$736=\"\",'Base-datos'!$B$737=\"\"),IF(N99=\"La actividad sí contribuye sustancialmente a la sostenibilidad\",SUM(B99:L99),0),IF(AND('Base-datos'!$B$735=\"Sí\",'Base-datos'!$B$736=\"Sí\",'Base-datos'!$B$737=\"\"),IF(AND(N99=\"La actividad sí contribuye sustancialmente a la sostenibilidad\",O99=\"La actividad sí contribuye sustancialmente a la sostenibilidad\"),SUM(B99:L99),0),IF(AND('Base-datos'!$B$735=\"Sí\",'Base-datos'!$B$736=\"Sí\",'Base-datos'!$B$737=\"Sí\"),IF(AND(N99=\"La actividad sí contribuye sustancialmente a la sostenibilidad\",O99=\"La actividad sí contribuye sustancialmente a la sostenibilidad\",M99=\"La actividad sí contribuye sustancialmente a la sostenibilidad\"),SUM(B99:L99),0),IF(AND('Base-datos'!$B$735=\"\",'Base-datos'!$B$736=\"Sí\",'Base-datos'!$B$737=\"\"),IF(O99=\"La actividad sí contribuye sustancialmente a la sostenibilidad\",SUM(B99:L99),0),IF(AND('Base-datos'!$B$735=\"\",'Base-datos'!$B$736=\"\",'Base-datos'!$B$737=\"Sí\"),IF(M99=\"La actividad sí contribuye sustancialmente a la sostenibilidad\",SUM(B99:L99),0),IF(AND('Base-datos'!$B$735=\"\",'Base-datos'!$B$736=\"Sí\",'Base-datos'!$B$737=\"Sí\"),IF(AND(O99=\"La actividad sí contribuye sustancialmente a la sostenibilidad\",M99=\"La actividad sí contribuye sustancialmente a la sostenibilidad\"),SUM(B99:L99),0),IF(AND('Base-datos'!$B$735=\"Sí\",'Base-datos'!$B$736=\"\",'Base-datos'!$B$737=\"Sí\"),IF(AND(N99=\"La actividad sí contribuye sustancialmente a la sostenibilidad\",M99=\"La actividad sí contribuye sustancialmente a la sostenibilidad\"),SUM(B99:L99),0),\"Por definir\"))))))))","v":"Por definir"}]
[{"$f":"Agua!$C14","v":"Seleccione"},{"$f":"IF(Agua!$E14='Fondos-Inversionistas'!B$12,Agua!$B14,\"\")","v":""},{"$f":"IF(Agua!$E14='Fondos-Inversionistas'!C$12,Agua!$B14,\"\")","v":""},{"$f":"IF(Agua!$E14='Fondos-Inversionistas'!D$12,Agua!$B14,\"\")","v":""},{"$f":"IF(Agua!$E14='Fondos-Inversionistas'!E$12,Agua!$B14,\"\")","v":""},{"$f":"IF(Agua!$E14='Fondos-Inversionistas'!F$12,Agua!$B14,\"\")","v":""},{"$f":"IF(Agua!$E14='Fondos-Inversionistas'!G$12,Agua!$B14,\"\")","v":""},{"$f":"IF(Agua!$E14='Fondos-Inversionistas'!H$12,Agua!$B14,\"\")","v":""},{"$f":"IF(Agua!$E14='Fondos-Inversionistas'!I$12,Agua!$B14,\"\")","v":""},{"$f":"IF(Agua!$E14='Fondos-Inversionistas'!J$12,Agua!$B14,\"\")","v":""},{"$f":"IF(Agua!$E14='Fondos-Inversionistas'!K$12,Agua!$B14,\"\")","v":""},{"$f":"IF(Agua!$E14='Fondos-Inversionistas'!L$12,Agua!$B14,\"\")","v":""},{"$f":"_xlfn.XLOOKUP(A100,'Base-datos'!$B$532:$B$536,'Base-datos'!$F$532:$F$536)","v":{"$error":"#N/A"}},{"$f":"_xlfn.XLOOKUP(A100,'Base-datos'!$B$532:$B$536,'Base-datos'!$C$532:$C$536)","v":{"$error":"#N/A"}},{"$f":"_xlfn.XLOOKUP(A100,'Base-datos'!$B$532:$B$536,'Base-datos'!$D$532:$D$536)","v":{"$error":"#N/A"}},null,null,{"$f":"IF(OR(P$98=\"La actividad no cumple con el total de los criterios de No Daño Significativo\",Q$98=\"El sector no cumple con las salvaguardas mínimas\"),\"\",IF(AND('Base-datos'!$B$735=\"Sí\",'Base-datos'!$B$736=\"\",'Base-datos'!$B$737=\"\"),IF(N100=\"La actividad sí contribuye sustancialmente a la sostenibilidad\",SUM(B100:L100),0),IF(AND('Base-datos'!$B$735=\"Sí\",'Base-datos'!$B$736=\"Sí\",'Base-datos'!$B$737=\"\"),IF(AND(N100=\"La actividad sí contribuye sustancialmente a la sostenibilidad\",O100=\"La actividad sí contribuye sustancialmente a la sostenibilidad\"),SUM(B100:L100),0),IF(AND('Base-datos'!$B$735=\"Sí\",'Base-datos'!$B$736=\"Sí\",'Base-datos'!$B$737=\"Sí\"),IF(AND(N100=\"La actividad sí contribuye sustancialmente a la sostenibilidad\",O100=\"La actividad sí contribuye sustancialmente a la sostenibilidad\",M100=\"La actividad sí contribuye sustancialmente a la sostenibilidad\"),SUM(B100:L100),0),IF(AND('Base-datos'!$B$735=\"\",'Base-datos'!$B$736=\"Sí\",'Base-datos'!$B$737=\"\"),IF(O100=\"La actividad sí contribuye sustancialmente a la sostenibilidad\",SUM(B100:L100),0),IF(AND('Base-datos'!$B$735=\"\",'Base-datos'!$B$736=\"\",'Base-datos'!$B$737=\"Sí\"),IF(M100=\"La actividad sí contribuye sustancialmente a la sostenibilidad\",SUM(B100:L100),0),IF(AND('Base-datos'!$B$735=\"\",'Base-datos'!$B$736=\"Sí\",'Base-datos'!$B$737=\"Sí\"),IF(AND(O100=\"La actividad sí contribuye sustancialmente a la sostenibilidad\",M100=\"La actividad sí contribuye sustancialmente a la sostenibilidad\"),SUM(B100:L100),0),IF(AND('Base-datos'!$B$735=\"Sí\",'Base-datos'!$B$736=\"\",'Base-datos'!$B$737=\"Sí\"),IF(AND(N100=\"La actividad sí contribuye sustancialmente a la sostenibilidad\",M100=\"La actividad sí contribuye sustancialmente a la sostenibilidad\"),SUM(B100:L100),0),\"Por definir\"))))))))","v":"Por definir"}]
[{"$f":"Agua!$C16","v":"Seleccione"},{"$f":"IF(Agua!$E16='Fondos-Inversionistas'!B$12,Agua!$B16,\"\")","v":""},{"$f":"IF(Agua!$E16='Fondos-Inversionistas'!C$12,Agua!$B16,\"\")","v":""},{"$f":"IF(Agua!$E16='Fondos-Inversionistas'!D$12,Agua!$B16,\"\")","v":""},{"$f":"IF(Agua!$E16='Fondos-Inversionistas'!E$12,Agua!$B16,\"\")","v":""},{"$f":"IF(Agua!$E16='Fondos-Inversionistas'!F$12,Agua!$B16,\"\")","v":""},{"$f":"IF(Agua!$E16='Fondos-Inversionistas'!G$12,Agua!$B16,\"\")","v":""},{"$f":"IF(Agua!$E16='Fondos-Inversionistas'!H$12,Agua!$B16,\"\")","v":""},{"$f":"IF(Agua!$E16='Fondos-Inversionistas'!I$12,Agua!$B16,\"\")","v":""},{"$f":"IF(Agua!$E16='Fondos-Inversionistas'!J$12,Agua!$B16,\"\")","v":""},{"$f":"IF(Agua!$E16='Fondos-Inversionistas'!K$12,Agua!$B16,\"\")","v":""},{"$f":"IF(Agua!$E16='Fondos-Inversionistas'!L$12,Agua!$B16,\"\")","v":""},{"$f":"_xlfn.XLOOKUP(A101,'Base-datos'!$B$532:$B$536,'Base-datos'!$F$532:$F$536)","v":{"$error":"#N/A"}},{"$f":"_xlfn.XLOOKUP(A101,'Base-datos'!$B$532:$B$536,'Base-datos'!$C$532:$C$536)","v":{"$error":"#N/A"}},{"$f":"_xlfn.XLOOKUP(A101,'Base-datos'!$B$532:$B$536,'Base-datos'!$D$532:$D$536)","v":{"$error":"#N/A"}},null,null,{"$f":"IF(OR(P$98=\"La actividad no cumple con el total de los criterios de No Daño Significativo\",Q$98=\"El sector no cumple con las salvaguardas mínimas\"),\"\",IF(AND('Base-datos'!$B$735=\"Sí\",'Base-datos'!$B$736=\"\",'Base-datos'!$B$737=\"\"),IF(N101=\"La actividad sí contribuye sustancialmente a la sostenibilidad\",SUM(B101:L101),0),IF(AND('Base-datos'!$B$735=\"Sí\",'Base-datos'!$B$736=\"Sí\",'Base-datos'!$B$737=\"\"),IF(AND(N101=\"La actividad sí contribuye sustancialmente a la sostenibilidad\",O101=\"La actividad sí contribuye sustancialmente a la sostenibilidad\"),SUM(B101:L101),0),IF(AND('Base-datos'!$B$735=\"Sí\",'Base-datos'!$B$736=\"Sí\",'Base-datos'!$B$737=\"Sí\"),IF(AND(N101=\"La actividad sí contribuye sustancialmente a la sostenibilidad\",O101=\"La actividad sí contribuye sustancialmente a la sostenibilidad\",M101=\"La actividad sí contribuye sustancialmente a la sostenibilidad\"),SUM(B101:L101),0),IF(AND('Base-datos'!$B$735=\"\",'Base-datos'!$B$736=\"Sí\",'Base-datos'!$B$737=\"\"),IF(O101=\"La actividad sí contribuye sustancialmente a la sostenibilidad\",SUM(B101:L101),0),IF(AND('Base-datos'!$B$735=\"\",'Base-datos'!$B$736=\"\",'Base-datos'!$B$737=\"Sí\"),IF(M101=\"La actividad sí contribuye sustancialmente a la sostenibilidad\",SUM(B101:L101),0),IF(AND('Base-datos'!$B$735=\"\",'Base-datos'!$B$736=\"Sí\",'Base-datos'!$B$737=\"Sí\"),IF(AND(O101=\"La actividad sí contribuye sustancialmente a la sostenibilidad\",M101=\"La actividad sí contribuye sustancialmente a la sostenibilidad\"),SUM(B101:L101),0),IF(AND('Base-datos'!$B$735=\"Sí\",'Base-datos'!$B$736=\"\",'Base-datos'!$B$737=\"Sí\"),IF(AND(N101=\"La actividad sí contribuye sustancialmente a la sostenibilidad\",M101=\"La actividad sí contribuye sustancialmente a la sostenibilidad\"),SUM(B101:L101),0),\"Por definir\"))))))))","v":"Por definir"}]
[{"$f":"Agua!$C18","v":"Seleccione"},{"$f":"IF(Agua!$E18='Fondos-Inversionistas'!B$12,Agua!$B18,\"\")","v":""},{"$f":"IF(Agua!$E18='Fondos-Inversionistas'!C$12,Agua!$B18,\"\")","v":""},{"$f":"IF(Agua!$E18='Fondos-Inversionistas'!D$12,Agua!$B18,\"\")","v":""},{"$f":"IF(Agua!$E18='Fondos-Inversionistas'!E$12,Agua!$B18,\"\")","v":""},{"$f":"IF(Agua!$E18='Fondos-Inversionistas'!F$12,Agua!$B18,\"\")","v":""},{"$f":"IF(Agua!$E18='Fondos-Inversionistas'!G$12,Agua!$B18,\"\")","v":""},{"$f":"IF(Agua!$E18='Fondos-Inversionistas'!H$12,Agua!$B18,\"\")","v":""},{"$f":"IF(Agua!$E18='Fondos-Inversionistas'!I$12,Agua!$B18,\"\")","v":""},{"$f":"IF(Agua!$E18='Fondos-Inversionistas'!J$12,Agua!$B18,\"\")","v":""},{"$f":"IF(Agua!$E18='Fondos-Inversionistas'!K$12,Agua!$B18,\"\")","v":""},{"$f":"IF(Agua!$E18='Fondos-Inversionistas'!L$12,Agua!$B18,\"\")","v":""},{"$f":"_xlfn.XLOOKUP(A102,'Base-datos'!$B$532:$B$536,'Base-datos'!$F$532:$F$536)","v":{"$error":"#N/A"}},{"$f":"_xlfn.XLOOKUP(A102,'Base-datos'!$B$532:$B$536,'Base-datos'!$C$532:$C$536)","v":{"$error":"#N/A"}},{"$f":"_xlfn.XLOOKUP(A102,'Base-datos'!$B$532:$B$536,'Base-datos'!$D$532:$D$536)","v":{"$error":"#N/A"}},null,null,{"$f":"IF(OR(P$98=\"La actividad no cumple con el total de los criterios de No Daño Significativo\",Q$98=\"El sector no cumple con las salvaguardas mínimas\"),\"\",IF(AND('Base-datos'!$B$735=\"Sí\",'Base-datos'!$B$736=\"\",'Base-datos'!$B$737=\"\"),IF(N102=\"La actividad sí contribuye sustancialmente a la sostenibilidad\",SUM(B102:L102),0),IF(AND('Base-datos'!$B$735=\"Sí\",'Base-datos'!$B$736=\"Sí\",'Base-datos'!$B$737=\"\"),IF(AND(N102=\"La actividad sí contribuye sustancialmente a la sostenibilidad\",O102=\"La actividad sí contribuye sustancialmente a la sostenibilidad\"),SUM(B102:L102),0),IF(AND('Base-datos'!$B$735=\"Sí\",'Base-datos'!$B$736=\"Sí\",'Base-datos'!$B$737=\"Sí\"),IF(AND(N102=\"La actividad sí contribuye sustancialmente a la sostenibilidad\",O102=\"La actividad sí contribuye sustancialmente a la sostenibilidad\",M102=\"La actividad sí contribuye sustancialmente a la sostenibilidad\"),SUM(B102:L102),0),IF(AND('Base-datos'!$B$735=\"\",'Base-datos'!$B$736=\"Sí\",'Base-datos'!$B$737=\"\"),IF(O102=\"La actividad sí contribuye sustancialmente a la sostenibilidad\",SUM(B102:L102),0),IF(AND('Base-datos'!$B$735=\"\",'Base-datos'!$B$736=\"\",'Base-datos'!$B$737=\"Sí\"),IF(M102=\"La actividad sí contribuye sustancialmente a la sostenibilidad\",SUM(B102:L102),0),IF(AND('Base-datos'!$B$735=\"\",'Base-datos'!$B$736=\"Sí\",'Base-datos'!$B$737=\"Sí\"),IF(AND(O102=\"La actividad sí contribuye sustancialmente a la sostenibilidad\",M102=\"La actividad sí contribuye sustancialmente a la sostenibilidad\"),SUM(B102:L102),0),IF(AND('Base-datos'!$B$735=\"Sí\",'Base-datos'!$B$736=\"\",'Base-datos'!$B$737=\"Sí\"),IF(AND(N102=\"La actividad sí contribuye sustancialmente a la sostenibilidad\",M102=\"La actividad sí contribuye sustancialmente a la sostenibilidad\"),SUM(B102:L102),0),\"Por definir\"))))))))","v":"Por definir"}]
[{"$f":"Agua!$C20","v":"Seleccione"},{"$f":"IF(Agua!$E20='Fondos-Inversionistas'!B$12,Agua!$B20,\"\")","v":""},{"$f":"IF(Agua!$E20='Fondos-Inversionistas'!C$12,Agua!$B20,\"\")","v":""},{"$f":"IF(Agua!$E20='Fondos-Inversionistas'!D$12,Agua!$B20,\"\")","v":""},{"$f":"IF(Agua!$E20='Fondos-Inversionistas'!E$12,Agua!$B20,\"\")","v":""},{"$f":"IF(Agua!$E20='Fondos-Inversionistas'!F$12,Agua!$B20,\"\")","v":""},{"$f":"IF(Agua!$E20='Fondos-Inversionistas'!G$12,Agua!$B20,\"\")","v":""},{"$f":"IF(Agua!$E20='Fondos-Inversionistas'!H$12,Agua!$B20,\"\")","v":""},{"$f":"IF(Agua!$E20='Fondos-Inversionistas'!I$12,Agua!$B20,\"\")","v":""},{"$f":"IF(Agua!$E20='Fondos-Inversionistas'!J$12,Agua!$B20,\"\")","v":""},{"$f":"IF(Agua!$E20='Fondos-Inversionistas'!K$12,Agua!$B20,\"\")","v":""},{"$f":"IF(Agua!$E20='Fondos-Inversionistas'!L$12,Agua!$B20,\"\")","v":""},{"$f":"_xlfn.XLOOKUP(A103,'Base-datos'!$B$532:$B$536,'Base-datos'!$F$532:$F$536)","v":{"$error":"#N/A"}},{"$f":"_xlfn.XLOOKUP(A103,'Base-datos'!$B$532:$B$536,'Base-datos'!$C$532:$C$536)","v":{"$error":"#N/A"}},{"$f":"_xlfn.XLOOKUP(A103,'Base-datos'!$B$532:$B$536,'Base-datos'!$D$532:$D$536)","v":{"$error":"#N/A"}},null,null,{"$f":"IF(OR(P$98=\"La actividad no cumple con el total de los criterios de No Daño Significativo\",Q$98=\"El sector no cumple con las salvaguardas mínimas\"),\"\",IF(AND('Base-datos'!$B$735=\"Sí\",'Base-datos'!$B$736=\"\",'Base-datos'!$B$737=\"\"),IF(N103=\"La actividad sí contribuye sustancialmente a la sostenibilidad\",SUM(B103:L103),0),IF(AND('Base-datos'!$B$735=\"Sí\",'Base-datos'!$B$736=\"Sí\",'Base-datos'!$B$737=\"\"),IF(AND(N103=\"La actividad sí contribuye sustancialmente a la sostenibilidad\",O103=\"La actividad sí contribuye sustancialmente a la sostenibilidad\"),SUM(B103:L103),0),IF(AND('Base-datos'!$B$735=\"Sí\",'Base-datos'!$B$736=\"Sí\",'Base-datos'!$B$737=\"Sí\"),IF(AND(N103=\"La actividad sí contribuye sustancialmente a la sostenibilidad\",O103=\"La actividad sí contribuye sustancialmente a la sostenibilidad\",M103=\"La actividad sí contribuye sustancialmente a la sostenibilidad\"),SUM(B103:L103),0),IF(AND('Base-datos'!$B$735=\"\",'Base-datos'!$B$736=\"Sí\",'Base-datos'!$B$737=\"\"),IF(O103=\"La actividad sí contribuye sustancialmente a la sostenibilidad\",SUM(B103:L103),0),IF(AND('Base-datos'!$B$735=\"\",'Base-datos'!$B$736=\"\",'Base-datos'!$B$737=\"Sí\"),IF(M103=\"La actividad sí contribuye sustancialmente a la sostenibilidad\",SUM(B103:L103),0),IF(AND('Base-datos'!$B$735=\"\",'Base-datos'!$B$736=\"Sí\",'Base-datos'!$B$737=\"Sí\"),IF(AND(O103=\"La actividad sí contribuye sustancialmente a la sostenibilidad\",M103=\"La actividad sí contribuye sustancialmente a la sostenibilidad\"),SUM(B103:L103),0),IF(AND('Base-datos'!$B$735=\"Sí\",'Base-datos'!$B$736=\"\",'Base-datos'!$B$737=\"Sí\"),IF(AND(N103=\"La actividad sí contribuye sustancialmente a la sostenibilidad\",M103=\"La actividad sí contribuye sustancialmente a la sostenibilidad\"),SUM(B103:L103),0),\"Por definir\"))))))))","v":"Por definir"}]
[{"$f":"Agua!$C22","v":"Seleccione"},{"$f":"IF(Agua!$E22='Fondos-Inversionistas'!B$12,Agua!$B22,\"\")","v":""},{"$f":"IF(Agua!$E22='Fondos-Inversionistas'!C$12,Agua!$B22,\"\")","v":""},{"$f":"IF(Agua!$E22='Fondos-Inversionistas'!D$12,Agua!$B22,\"\")","v":""},{"$f":"IF(Agua!$E22='Fondos-Inversionistas'!E$12,Agua!$B22,\"\")","v":""},{"$f":"IF(Agua!$E22='Fondos-Inversionistas'!F$12,Agua!$B22,\"\")","v":""},{"$f":"IF(Agua!$E22='Fondos-Inversionistas'!G$12,Agua!$B22,\"\")","v":""},{"$f":"IF(Agua!$E22='Fondos-Inversionistas'!H$12,Agua!$B22,\"\")","v":""},{"$f":"IF(Agua!$E22='Fondos-Inversionistas'!I$12,Agua!$B22,\"\")","v":""},{"$f":"IF(Agua!$E22='Fondos-Inversionistas'!J$12,Agua!$B22,\"\")","v":""},{"$f":"IF(Agua!$E22='Fondos-Inversionistas'!K$12,Agua!$B22,\"\")","v":""},{"$f":"IF(Agua!$E22='Fondos-Inversionistas'!L$12,Agua!$B22,\"\")","v":""},{"$f":"_xlfn.XLOOKUP(A104,'Base-datos'!$B$532:$B$536,'Base-datos'!$F$532:$F$536)","v":{"$error":"#N/A"}},{"$f":"_xlfn.XLOOKUP(A104,'Base-datos'!$B$532:$B$536,'Base-datos'!$C$532:$C$536)","v":{"$error":"#N/A"}},{"$f":"_xlfn.XLOOKUP(A104,'Base-datos'!$B$532:$B$536,'Base-datos'!$D$532:$D$536)","v":{"$error":"#N/A"}},null,null,{"$f":"IF(OR(P$98=\"La actividad no cumple con el total de los criterios de No Daño Significativo\",Q$98=\"El sector no cumple con las salvaguardas mínimas\"),\"\",IF(AND('Base-datos'!$B$735=\"Sí\",'Base-datos'!$B$736=\"\",'Base-datos'!$B$737=\"\"),IF(N104=\"La actividad sí contribuye sustancialmente a la sostenibilidad\",SUM(B104:L104),0),IF(AND('Base-datos'!$B$735=\"Sí\",'Base-datos'!$B$736=\"Sí\",'Base-datos'!$B$737=\"\"),IF(AND(N104=\"La actividad sí contribuye sustancialmente a la sostenibilidad\",O104=\"La actividad sí contribuye sustancialmente a la sostenibilidad\"),SUM(B104:L104),0),IF(AND('Base-datos'!$B$735=\"Sí\",'Base-datos'!$B$736=\"Sí\",'Base-datos'!$B$737=\"Sí\"),IF(AND(N104=\"La actividad sí contribuye sustancialmente a la sostenibilidad\",O104=\"La actividad sí contribuye sustancialmente a la sostenibilidad\",M104=\"La actividad sí contribuye sustancialmente a la sostenibilidad\"),SUM(B104:L104),0),IF(AND('Base-datos'!$B$735=\"\",'Base-datos'!$B$736=\"Sí\",'Base-datos'!$B$737=\"\"),IF(O104=\"La actividad sí contribuye sustancialmente a la sostenibilidad\",SUM(B104:L104),0),IF(AND('Base-datos'!$B$735=\"\",'Base-datos'!$B$736=\"\",'Base-datos'!$B$737=\"Sí\"),IF(M104=\"La actividad sí contribuye sustancialmente a la sostenibilidad\",SUM(B104:L104),0),IF(AND('Base-datos'!$B$735=\"\",'Base-datos'!$B$736=\"Sí\",'Base-datos'!$B$737=\"Sí\"),IF(AND(O104=\"La actividad sí contribuye sustancialmente a la sostenibilidad\",M104=\"La actividad sí contribuye sustancialmente a la sostenibilidad\"),SUM(B104:L104),0),IF(AND('Base-datos'!$B$735=\"Sí\",'Base-datos'!$B$736=\"\",'Base-datos'!$B$737=\"Sí\"),IF(AND(N104=\"La actividad sí contribuye sustancialmente a la sostenibilidad\",M104=\"La actividad sí contribuye sustancialmente a la sostenibilidad\"),SUM(B104:L104),0),\"Por definir\"))))))))","v":"Por definir"}]
[{"$f":"Agua!$C24","v":"Seleccione"},{"$f":"IF(Agua!$E24='Fondos-Inversionistas'!B$12,Agua!$B24,\"\")","v":""},{"$f":"IF(Agua!$E24='Fondos-Inversionistas'!C$12,Agua!$B24,\"\")","v":""},{"$f":"IF(Agua!$E24='Fondos-Inversionistas'!D$12,Agua!$B24,\"\")","v":""},{"$f":"IF(Agua!$E24='Fondos-Inversionistas'!E$12,Agua!$B24,\"\")","v":""},{"$f":"IF(Agua!$E24='Fondos-Inversionistas'!F$12,Agua!$B24,\"\")","v":""},{"$f":"IF(Agua!$E24='Fondos-Inversionistas'!G$12,Agua!$B24,\"\")","v":""},{"$f":"IF(Agua!$E24='Fondos-Inversionistas'!H$12,Agua!$B24,\"\")","v":""},{"$f":"IF(Agua!$E24='Fondos-Inversionistas'!I$12,Agua!$B24,\"\")","v":""},{"$f":"IF(Agua!$E24='Fondos-Inversionistas'!J$12,Agua!$B24,\"\")","v":""},{"$f":"IF(Agua!$E24='Fondos-Inversionistas'!K$12,Agua!$B24,\"\")","v":""},{"$f":"IF(Agua!$E24='Fondos-Inversionistas'!L$12,Agua!$B24,\"\")","v":""},{"$f":"_xlfn.XLOOKUP(A105,'Base-datos'!$B$532:$B$536,'Base-datos'!$F$532:$F$536)","v":{"$error":"#N/A"}},{"$f":"_xlfn.XLOOKUP(A105,'Base-datos'!$B$532:$B$536,'Base-datos'!$C$532:$C$536)","v":{"$error":"#N/A"}},{"$f":"_xlfn.XLOOKUP(A105,'Base-datos'!$B$532:$B$536,'Base-datos'!$D$532:$D$536)","v":{"$error":"#N/A"}},null,null,{"$f":"IF(OR(P$98=\"La actividad no cumple con el total de los criterios de No Daño Significativo\",Q$98=\"El sector no cumple con las salvaguardas mínimas\"),\"\",IF(AND('Base-datos'!$B$735=\"Sí\",'Base-datos'!$B$736=\"\",'Base-datos'!$B$737=\"\"),IF(N105=\"La actividad sí contribuye sustancialmente a la sostenibilidad\",SUM(B105:L105),0),IF(AND('Base-datos'!$B$735=\"Sí\",'Base-datos'!$B$736=\"Sí\",'Base-datos'!$B$737=\"\"),IF(AND(N105=\"La actividad sí contribuye sustancialmente a la sostenibilidad\",O105=\"La actividad sí contribuye sustancialmente a la sostenibilidad\"),SUM(B105:L105),0),IF(AND('Base-datos'!$B$735=\"Sí\",'Base-datos'!$B$736=\"Sí\",'Base-datos'!$B$737=\"Sí\"),IF(AND(N105=\"La actividad sí contribuye sustancialmente a la sostenibilidad\",O105=\"La actividad sí contribuye sustancialmente a la sostenibilidad\",M105=\"La actividad sí contribuye sustancialmente a la sostenibilidad\"),SUM(B105:L105),0),IF(AND('Base-datos'!$B$735=\"\",'Base-datos'!$B$736=\"Sí\",'Base-datos'!$B$737=\"\"),IF(O105=\"La actividad sí contribuye sustancialmente a la sostenibilidad\",SUM(B105:L105),0),IF(AND('Base-datos'!$B$735=\"\",'Base-datos'!$B$736=\"\",'Base-datos'!$B$737=\"Sí\"),IF(M105=\"La actividad sí contribuye sustancialmente a la sostenibilidad\",SUM(B105:L105),0),IF(AND('Base-datos'!$B$735=\"\",'Base-datos'!$B$736=\"Sí\",'Base-datos'!$B$737=\"Sí\"),IF(AND(O105=\"La actividad sí contribuye sustancialmente a la sostenibilidad\",M105=\"La actividad sí contribuye sustancialmente a la sostenibilidad\"),SUM(B105:L105),0),IF(AND('Base-datos'!$B$735=\"Sí\",'Base-datos'!$B$736=\"\",'Base-datos'!$B$737=\"Sí\"),IF(AND(N105=\"La actividad sí contribuye sustancialmente a la sostenibilidad\",M105=\"La actividad sí contribuye sustancialmente a la sostenibilidad\"),SUM(B105:L105),0),\"Por definir\"))))))))","v":"Por definir"}]
[{"$f":"Agua!$C26","v":"Seleccione"},{"$f":"IF(Agua!$E26='Fondos-Inversionistas'!B$12,Agua!$B26,\"\")","v":""},{"$f":"IF(Agua!$E26='Fondos-Inversionistas'!C$12,Agua!$B26,\"\")","v":""},{"$f":"IF(Agua!$E26='Fondos-Inversionistas'!D$12,Agua!$B26,\"\")","v":""},{"$f":"IF(Agua!$E26='Fondos-Inversionistas'!E$12,Agua!$B26,\"\")","v":""},{"$f":"IF(Agua!$E26='Fondos-Inversionistas'!F$12,Agua!$B26,\"\")","v":""},{"$f":"IF(Agua!$E26='Fondos-Inversionistas'!G$12,Agua!$B26,\"\")","v":""},{"$f":"IF(Agua!$E26='Fondos-Inversionistas'!H$12,Agua!$B26,\"\")","v":""},{"$f":"IF(Agua!$E26='Fondos-Inversionistas'!I$12,Agua!$B26,\"\")","v":""},{"$f":"IF(Agua!$E26='Fondos-Inversionistas'!J$12,Agua!$B26,\"\")","v":""},{"$f":"IF(Agua!$E26='Fondos-Inversionistas'!K$12,Agua!$B26,\"\")","v":""},{"$f":"IF(Agua!$E26='Fondos-Inversionistas'!L$12,Agua!$B26,\"\")","v":""},{"$f":"_xlfn.XLOOKUP(A106,'Base-datos'!$B$532:$B$536,'Base-datos'!$F$532:$F$536)","v":{"$error":"#N/A"}},{"$f":"_xlfn.XLOOKUP(A106,'Base-datos'!$B$532:$B$536,'Base-datos'!$C$532:$C$536)","v":{"$error":"#N/A"}},{"$f":"_xlfn.XLOOKUP(A106,'Base-datos'!$B$532:$B$536,'Base-datos'!$D$532:$D$536)","v":{"$error":"#N/A"}},null,null,{"$f":"IF(OR(P$98=\"La actividad no cumple con el total de los criterios de No Daño Significativo\",Q$98=\"El sector no cumple con las salvaguardas mínimas\"),\"\",IF(AND('Base-datos'!$B$735=\"Sí\",'Base-datos'!$B$736=\"\",'Base-datos'!$B$737=\"\"),IF(N106=\"La actividad sí contribuye sustancialmente a la sostenibilidad\",SUM(B106:L106),0),IF(AND('Base-datos'!$B$735=\"Sí\",'Base-datos'!$B$736=\"Sí\",'Base-datos'!$B$737=\"\"),IF(AND(N106=\"La actividad sí contribuye sustancialmente a la sostenibilidad\",O106=\"La actividad sí contribuye sustancialmente a la sostenibilidad\"),SUM(B106:L106),0),IF(AND('Base-datos'!$B$735=\"Sí\",'Base-datos'!$B$736=\"Sí\",'Base-datos'!$B$737=\"Sí\"),IF(AND(N106=\"La actividad sí contribuye sustancialmente a la sostenibilidad\",O106=\"La actividad sí contribuye sustancialmente a la sostenibilidad\",M106=\"La actividad sí contribuye sustancialmente a la sostenibilidad\"),SUM(B106:L106),0),IF(AND('Base-datos'!$B$735=\"\",'Base-datos'!$B$736=\"Sí\",'Base-datos'!$B$737=\"\"),IF(O106=\"La actividad sí contribuye sustancialmente a la sostenibilidad\",SUM(B106:L106),0),IF(AND('Base-datos'!$B$735=\"\",'Base-datos'!$B$736=\"\",'Base-datos'!$B$737=\"Sí\"),IF(M106=\"La actividad sí contribuye sustancialmente a la sostenibilidad\",SUM(B106:L106),0),IF(AND('Base-datos'!$B$735=\"\",'Base-datos'!$B$736=\"Sí\",'Base-datos'!$B$737=\"Sí\"),IF(AND(O106=\"La actividad sí contribuye sustancialmente a la sostenibilidad\",M106=\"La actividad sí contribuye sustancialmente a la sostenibilidad\"),SUM(B106:L106),0),IF(AND('Base-datos'!$B$735=\"Sí\",'Base-datos'!$B$736=\"\",'Base-datos'!$B$737=\"Sí\"),IF(AND(N106=\"La actividad sí contribuye sustancialmente a la sostenibilidad\",M106=\"La actividad sí contribuye sustancialmente a la sostenibilidad\"),SUM(B106:L106),0),\"Por definir\"))))))))","v":"Por definir"}]
[{"$f":"Agua!$C28","v":"Seleccione"},{"$f":"IF(Agua!$E28='Fondos-Inversionistas'!B$12,Agua!$B28,\"\")","v":""},{"$f":"IF(Agua!$E28='Fondos-Inversionistas'!C$12,Agua!$B28,\"\")","v":""},{"$f":"IF(Agua!$E28='Fondos-Inversionistas'!D$12,Agua!$B28,\"\")","v":""},{"$f":"IF(Agua!$E28='Fondos-Inversionistas'!E$12,Agua!$B28,\"\")","v":""},{"$f":"IF(Agua!$E28='Fondos-Inversionistas'!F$12,Agua!$B28,\"\")","v":""},{"$f":"IF(Agua!$E28='Fondos-Inversionistas'!G$12,Agua!$B28,\"\")","v":""},{"$f":"IF(Agua!$E28='Fondos-Inversionistas'!H$12,Agua!$B28,\"\")","v":""},{"$f":"IF(Agua!$E28='Fondos-Inversionistas'!I$12,Agua!$B28,\"\")","v":""},{"$f":"IF(Agua!$E28='Fondos-Inversionistas'!J$12,Agua!$B28,\"\")","v":""},{"$f":"IF(Agua!$E28='Fondos-Inversionistas'!K$12,Agua!$B28,\"\")","v":""},{"$f":"IF(Agua!$E28='Fondos-Inversionistas'!L$12,Agua!$B28,\"\")","v":""},{"$f":"_xlfn.XLOOKUP(A107,'Base-datos'!$B$532:$B$536,'Base-datos'!$F$532:$F$536)","v":{"$error":"#N/A"}},{"$f":"_xlfn.XLOOKUP(A107,'Base-datos'!$B$532:$B$536,'Base-datos'!$C$532:$C$536)","v":{"$error":"#N/A"}},{"$f":"_xlfn.XLOOKUP(A107,'Base-datos'!$B$532:$B$536,'Base-datos'!$D$532:$D$536)","v":{"$error":"#N/A"}},null,null,{"$f":"IF(OR(P$98=\"La actividad no cumple con el total de los criterios de No Daño Significativo\",Q$98=\"El sector no cumple con las salvaguardas mínimas\"),\"\",IF(AND('Base-datos'!$B$735=\"Sí\",'Base-datos'!$B$736=\"\",'Base-datos'!$B$737=\"\"),IF(N107=\"La actividad sí contribuye sustancialmente a la sostenibilidad\",SUM(B107:L107),0),IF(AND('Base-datos'!$B$735=\"Sí\",'Base-datos'!$B$736=\"Sí\",'Base-datos'!$B$737=\"\"),IF(AND(N107=\"La actividad sí contribuye sustancialmente a la sostenibilidad\",O107=\"La actividad sí contribuye sustancialmente a la sostenibilidad\"),SUM(B107:L107),0),IF(AND('Base-datos'!$B$735=\"Sí\",'Base-datos'!$B$736=\"Sí\",'Base-datos'!$B$737=\"Sí\"),IF(AND(N107=\"La actividad sí contribuye sustancialmente a la sostenibilidad\",O107=\"La actividad sí contribuye sustancialmente a la sostenibilidad\",M107=\"La actividad sí contribuye sustancialmente a la sostenibilidad\"),SUM(B107:L107),0),IF(AND('Base-datos'!$B$735=\"\",'Base-datos'!$B$736=\"Sí\",'Base-datos'!$B$737=\"\"),IF(O107=\"La actividad sí contribuye sustancialmente a la sostenibilidad\",SUM(B107:L107),0),IF(AND('Base-datos'!$B$735=\"\",'Base-datos'!$B$736=\"\",'Base-datos'!$B$737=\"Sí\"),IF(M107=\"La actividad sí contribuye sustancialmente a la sostenibilidad\",SUM(B107:L107),0),IF(AND('Base-datos'!$B$735=\"\",'Base-datos'!$B$736=\"Sí\",'Base-datos'!$B$737=\"Sí\"),IF(AND(O107=\"La actividad sí contribuye sustancialmente a la sostenibilidad\",M107=\"La actividad sí contribuye sustancialmente a la sostenibilidad\"),SUM(B107:L107),0),IF(AND('Base-datos'!$B$735=\"Sí\",'Base-datos'!$B$736=\"\",'Base-datos'!$B$737=\"Sí\"),IF(AND(N107=\"La actividad sí contribuye sustancialmente a la sostenibilidad\",M107=\"La actividad sí contribuye sustancialmente a la sostenibilidad\"),SUM(B107:L107),0),\"Por definir\"))))))))","v":"Por definir"}]
[{"$f":"Agua!$C30","v":"Seleccione"},{"$f":"IF(Agua!$E30='Fondos-Inversionistas'!B$12,Agua!$B30,\"\")","v":""},{"$f":"IF(Agua!$E30='Fondos-Inversionistas'!C$12,Agua!$B30,\"\")","v":""},{"$f":"IF(Agua!$E30='Fondos-Inversionistas'!D$12,Agua!$B30,\"\")","v":""},{"$f":"IF(Agua!$E30='Fondos-Inversionistas'!E$12,Agua!$B30,\"\")","v":""},{"$f":"IF(Agua!$E30='Fondos-Inversionistas'!F$12,Agua!$B30,\"\")","v":""},{"$f":"IF(Agua!$E30='Fondos-Inversionistas'!G$12,Agua!$B30,\"\")","v":""},{"$f":"IF(Agua!$E30='Fondos-Inversionistas'!H$12,Agua!$B30,\"\")","v":""},{"$f":"IF(Agua!$E30='Fondos-Inversionistas'!I$12,Agua!$B30,\"\")","v":""},{"$f":"IF(Agua!$E30='Fondos-Inversionistas'!J$12,Agua!$B30,\"\")","v":""},{"$f":"IF(Agua!$E30='Fondos-Inversionistas'!K$12,Agua!$B30,\"\")","v":""},{"$f":"IF(Agua!$E30='Fondos-Inversionistas'!L$12,Agua!$B30,\"\")","v":""},{"$f":"_xlfn.XLOOKUP(A108,'Base-datos'!$B$532:$B$536,'Base-datos'!$F$532:$F$536)","v":{"$error":"#N/A"}},{"$f":"_xlfn.XLOOKUP(A108,'Base-datos'!$B$532:$B$536,'Base-datos'!$C$532:$C$536)","v":{"$error":"#N/A"}},{"$f":"_xlfn.XLOOKUP(A108,'Base-datos'!$B$532:$B$536,'Base-datos'!$D$532:$D$536)","v":{"$error":"#N/A"}},null,null,{"$f":"IF(OR(P$98=\"La actividad no cumple con el total de los criterios de No Daño Significativo\",Q$98=\"El sector no cumple con las salvaguardas mínimas\"),\"\",IF(AND('Base-datos'!$B$735=\"Sí\",'Base-datos'!$B$736=\"\",'Base-datos'!$B$737=\"\"),IF(N108=\"La actividad sí contribuye sustancialmente a la sostenibilidad\",SUM(B108:L108),0),IF(AND('Base-datos'!$B$735=\"Sí\",'Base-datos'!$B$736=\"Sí\",'Base-datos'!$B$737=\"\"),IF(AND(N108=\"La actividad sí contribuye sustancialmente a la sostenibilidad\",O108=\"La actividad sí contribuye sustancialmente a la sostenibilidad\"),SUM(B108:L108),0),IF(AND('Base-datos'!$B$735=\"Sí\",'Base-datos'!$B$736=\"Sí\",'Base-datos'!$B$737=\"Sí\"),IF(AND(N108=\"La actividad sí contribuye sustancialmente a la sostenibilidad\",O108=\"La actividad sí contribuye sustancialmente a la sostenibilidad\",M108=\"La actividad sí contribuye sustancialmente a la sostenibilidad\"),SUM(B108:L108),0),IF(AND('Base-datos'!$B$735=\"\",'Base-datos'!$B$736=\"Sí\",'Base-datos'!$B$737=\"\"),IF(O108=\"La actividad sí contribuye sustancialmente a la sostenibilidad\",SUM(B108:L108),0),IF(AND('Base-datos'!$B$735=\"\",'Base-datos'!$B$736=\"\",'Base-datos'!$B$737=\"Sí\"),IF(M108=\"La actividad sí contribuye sustancialmente a la sostenibilidad\",SUM(B108:L108),0),IF(AND('Base-datos'!$B$735=\"\",'Base-datos'!$B$736=\"Sí\",'Base-datos'!$B$737=\"Sí\"),IF(AND(O108=\"La actividad sí contribuye sustancialmente a la sostenibilidad\",M108=\"La actividad sí contribuye sustancialmente a la sostenibilidad\"),SUM(B108:L108),0),IF(AND('Base-datos'!$B$735=\"Sí\",'Base-datos'!$B$736=\"\",'Base-datos'!$B$737=\"Sí\"),IF(AND(N108=\"La actividad sí contribuye sustancialmente a la sostenibilidad\",M108=\"La actividad sí contribuye sustancialmente a la sostenibilidad\"),SUM(B108:L108),0),\"Por definir\"))))))))","v":"Por definir"}]
[{"$f":"Agua!$C32","v":"Seleccione"},{"$f":"IF(Agua!$E32='Fondos-Inversionistas'!B$12,Agua!$B32,\"\")","v":""},{"$f":"IF(Agua!$E32='Fondos-Inversionistas'!C$12,Agua!$B32,\"\")","v":""},{"$f":"IF(Agua!$E32='Fondos-Inversionistas'!D$12,Agua!$B32,\"\")","v":""},{"$f":"IF(Agua!$E32='Fondos-Inversionistas'!E$12,Agua!$B32,\"\")","v":""},{"$f":"IF(Agua!$E32='Fondos-Inversionistas'!F$12,Agua!$B32,\"\")","v":""},{"$f":"IF(Agua!$E32='Fondos-Inversionistas'!G$12,Agua!$B32,\"\")","v":""},{"$f":"IF(Agua!$E32='Fondos-Inversionistas'!H$12,Agua!$B32,\"\")","v":""},{"$f":"IF(Agua!$E32='Fondos-Inversionistas'!I$12,Agua!$B32,\"\")","v":""},{"$f":"IF(Agua!$E32='Fondos-Inversionistas'!J$12,Agua!$B32,\"\")","v":""},{"$f":"IF(Agua!$E32='Fondos-Inversionistas'!K$12,Agua!$B32,\"\")","v":""},{"$f":"IF(Agua!$E32='Fondos-Inversionistas'!L$12,Agua!$B32,\"\")","v":""},{"$f":"_xlfn.XLOOKUP(A109,'Base-datos'!$B$532:$B$536,'Base-datos'!$F$532:$F$536)","v":{"$error":"#N/A"}},{"$f":"_xlfn.XLOOKUP(A109,'Base-datos'!$B$532:$B$536,'Base-datos'!$C$532:$C$536)","v":{"$error":"#N/A"}},{"$f":"_xlfn.XLOOKUP(A109,'Base-datos'!$B$532:$B$536,'Base-datos'!$D$532:$D$536)","v":{"$error":"#N/A"}},null,null,{"$f":"IF(OR(P$98=\"La actividad no cumple con el total de los criterios de No Daño Significativo\",Q$98=\"El sector no cumple con las salvaguardas mínimas\"),\"\",IF(AND('Base-datos'!$B$735=\"Sí\",'Base-datos'!$B$736=\"\",'Base-datos'!$B$737=\"\"),IF(N109=\"La actividad sí contribuye sustancialmente a la sostenibilidad\",SUM(B109:L109),0),IF(AND('Base-datos'!$B$735=\"Sí\",'Base-datos'!$B$736=\"Sí\",'Base-datos'!$B$737=\"\"),IF(AND(N109=\"La actividad sí contribuye sustancialmente a la sostenibilidad\",O109=\"La actividad sí contribuye sustancialmente a la sostenibilidad\"),SUM(B109:L109),0),IF(AND('Base-datos'!$B$735=\"Sí\",'Base-datos'!$B$736=\"Sí\",'Base-datos'!$B$737=\"Sí\"),IF(AND(N109=\"La actividad sí contribuye sustancialmente a la sostenibilidad\",O109=\"La actividad sí contribuye sustancialmente a la sostenibilidad\",M109=\"La actividad sí contribuye sustancialmente a la sostenibilidad\"),SUM(B109:L109),0),IF(AND('Base-datos'!$B$735=\"\",'Base-datos'!$B$736=\"Sí\",'Base-datos'!$B$737=\"\"),IF(O109=\"La actividad sí contribuye sustancialmente a la sostenibilidad\",SUM(B109:L109),0),IF(AND('Base-datos'!$B$735=\"\",'Base-datos'!$B$736=\"\",'Base-datos'!$B$737=\"Sí\"),IF(M109=\"La actividad sí contribuye sustancialmente a la sostenibilidad\",SUM(B109:L109),0),IF(AND('Base-datos'!$B$735=\"\",'Base-datos'!$B$736=\"Sí\",'Base-datos'!$B$737=\"Sí\"),IF(AND(O109=\"La actividad sí contribuye sustancialmente a la sostenibilidad\",M109=\"La actividad sí contribuye sustancialmente a la sostenibilidad\"),SUM(B109:L109),0),IF(AND('Base-datos'!$B$735=\"Sí\",'Base-datos'!$B$736=\"\",'Base-datos'!$B$737=\"Sí\"),IF(AND(N109=\"La actividad sí contribuye sustancialmente a la sostenibilidad\",M109=\"La actividad sí contribuye sustancialmente a la sostenibilidad\"),SUM(B109:L109),0),\"Por definir\"))))))))","v":"Por definir"}]
[{"$f":"Agua!$C34","v":"Seleccione"},{"$f":"IF(Agua!$E34='Fondos-Inversionistas'!B$12,Agua!$B34,\"\")","v":""},{"$f":"IF(Agua!$E34='Fondos-Inversionistas'!C$12,Agua!$B34,\"\")","v":""},{"$f":"IF(Agua!$E34='Fondos-Inversionistas'!D$12,Agua!$B34,\"\")","v":""},{"$f":"IF(Agua!$E34='Fondos-Inversionistas'!E$12,Agua!$B34,\"\")","v":""},{"$f":"IF(Agua!$E34='Fondos-Inversionistas'!F$12,Agua!$B34,\"\")","v":""},{"$f":"IF(Agua!$E34='Fondos-Inversionistas'!G$12,Agua!$B34,\"\")","v":""},{"$f":"IF(Agua!$E34='Fondos-Inversionistas'!H$12,Agua!$B34,\"\")","v":""},{"$f":"IF(Agua!$E34='Fondos-Inversionistas'!I$12,Agua!$B34,\"\")","v":""},{"$f":"IF(Agua!$E34='Fondos-Inversionistas'!J$12,Agua!$B34,\"\")","v":""},{"$f":"IF(Agua!$E34='Fondos-Inversionistas'!K$12,Agua!$B34,\"\")","v":""},{"$f":"IF(Agua!$E34='Fondos-Inversionistas'!L$12,Agua!$B34,\"\")","v":""},{"$f":"_xlfn.XLOOKUP(A110,'Base-datos'!$B$532:$B$536,'Base-datos'!$F$532:$F$536)","v":{"$error":"#N/A"}},{"$f":"_xlfn.XLOOKUP(A110,'Base-datos'!$B$532:$B$536,'Base-datos'!$C$532:$C$536)","v":{"$error":"#N/A"}},{"$f":"_xlfn.XLOOKUP(A110,'Base-datos'!$B$532:$B$536,'Base-datos'!$D$532:$D$536)","v":{"$error":"#N/A"}},null,null,{"$f":"IF(OR(P$98=\"La actividad no cumple con el total de los criterios de No Daño Significativo\",Q$98=\"El sector no cumple con las salvaguardas mínimas\"),\"\",IF(AND('Base-datos'!$B$735=\"Sí\",'Base-datos'!$B$736=\"\",'Base-datos'!$B$737=\"\"),IF(N110=\"La actividad sí contribuye sustancialmente a la sostenibilidad\",SUM(B110:L110),0),IF(AND('Base-datos'!$B$735=\"Sí\",'Base-datos'!$B$736=\"Sí\",'Base-datos'!$B$737=\"\"),IF(AND(N110=\"La actividad sí contribuye sustancialmente a la sostenibilidad\",O110=\"La actividad sí contribuye sustancialmente a la sostenibilidad\"),SUM(B110:L110),0),IF(AND('Base-datos'!$B$735=\"Sí\",'Base-datos'!$B$736=\"Sí\",'Base-datos'!$B$737=\"Sí\"),IF(AND(N110=\"La actividad sí contribuye sustancialmente a la sostenibilidad\",O110=\"La actividad sí contribuye sustancialmente a la sostenibilidad\",M110=\"La actividad sí contribuye sustancialmente a la sostenibilidad\"),SUM(B110:L110),0),IF(AND('Base-datos'!$B$735=\"\",'Base-datos'!$B$736=\"Sí\",'Base-datos'!$B$737=\"\"),IF(O110=\"La actividad sí contribuye sustancialmente a la sostenibilidad\",SUM(B110:L110),0),IF(AND('Base-datos'!$B$735=\"\",'Base-datos'!$B$736=\"\",'Base-datos'!$B$737=\"Sí\"),IF(M110=\"La actividad sí contribuye sustancialmente a la sostenibilidad\",SUM(B110:L110),0),IF(AND('Base-datos'!$B$735=\"\",'Base-datos'!$B$736=\"Sí\",'Base-datos'!$B$737=\"Sí\"),IF(AND(O110=\"La actividad sí contribuye sustancialmente a la sostenibilidad\",M110=\"La actividad sí contribuye sustancialmente a la sostenibilidad\"),SUM(B110:L110),0),IF(AND('Base-datos'!$B$735=\"Sí\",'Base-datos'!$B$736=\"\",'Base-datos'!$B$737=\"Sí\"),IF(AND(N110=\"La actividad sí contribuye sustancialmente a la sostenibilidad\",M110=\"La actividad sí contribuye sustancialmente a la sostenibilidad\"),SUM(B110:L110),0),\"Por definir\"))))))))","v":"Por definir"}]
[{"$f":"Agua!$C36","v":"Seleccione"},{"$f":"IF(Agua!$E36='Fondos-Inversionistas'!B$12,Agua!$B36,\"\")","v":""},{"$f":"IF(Agua!$E36='Fondos-Inversionistas'!C$12,Agua!$B36,\"\")","v":""},{"$f":"IF(Agua!$E36='Fondos-Inversionistas'!D$12,Agua!$B36,\"\")","v":""},{"$f":"IF(Agua!$E36='Fondos-Inversionistas'!E$12,Agua!$B36,\"\")","v":""},{"$f":"IF(Agua!$E36='Fondos-Inversionistas'!F$12,Agua!$B36,\"\")","v":""},{"$f":"IF(Agua!$E36='Fondos-Inversionistas'!G$12,Agua!$B36,\"\")","v":""},{"$f":"IF(Agua!$E36='Fondos-Inversionistas'!H$12,Agua!$B36,\"\")","v":""},{"$f":"IF(Agua!$E36='Fondos-Inversionistas'!I$12,Agua!$B36,\"\")","v":""},{"$f":"IF(Agua!$E36='Fondos-Inversionistas'!J$12,Agua!$B36,\"\")","v":""},{"$f":"IF(Agua!$E36='Fondos-Inversionistas'!K$12,Agua!$B36,\"\")","v":""},{"$f":"IF(Agua!$E36='Fondos-Inversionistas'!L$12,Agua!$B36,\"\")","v":""},{"$f":"_xlfn.XLOOKUP(A111,'Base-datos'!$B$532:$B$536,'Base-datos'!$F$532:$F$536)","v":{"$error":"#N/A"}},{"$f":"_xlfn.XLOOKUP(A111,'Base-datos'!$B$532:$B$536,'Base-datos'!$C$532:$C$536)","v":{"$error":"#N/A"}},{"$f":"_xlfn.XLOOKUP(A111,'Base-datos'!$B$532:$B$536,'Base-datos'!$D$532:$D$536)","v":{"$error":"#N/A"}},null,null,{"$f":"IF(OR(P$98=\"La actividad no cumple con el total de los criterios de No Daño Significativo\",Q$98=\"El sector no cumple con las salvaguardas mínimas\"),\"\",IF(AND('Base-datos'!$B$735=\"Sí\",'Base-datos'!$B$736=\"\",'Base-datos'!$B$737=\"\"),IF(N111=\"La actividad sí contribuye sustancialmente a la sostenibilidad\",SUM(B111:L111),0),IF(AND('Base-datos'!$B$735=\"Sí\",'Base-datos'!$B$736=\"Sí\",'Base-datos'!$B$737=\"\"),IF(AND(N111=\"La actividad sí contribuye sustancialmente a la sostenibilidad\",O111=\"La actividad sí contribuye sustancialmente a la sostenibilidad\"),SUM(B111:L111),0),IF(AND('Base-datos'!$B$735=\"Sí\",'Base-datos'!$B$736=\"Sí\",'Base-datos'!$B$737=\"Sí\"),IF(AND(N111=\"La actividad sí contribuye sustancialmente a la sostenibilidad\",O111=\"La actividad sí contribuye sustancialmente a la sostenibilidad\",M111=\"La actividad sí contribuye sustancialmente a la sostenibilidad\"),SUM(B111:L111),0),IF(AND('Base-datos'!$B$735=\"\",'Base-datos'!$B$736=\"Sí\",'Base-datos'!$B$737=\"\"),IF(O111=\"La actividad sí contribuye sustancialmente a la sostenibilidad\",SUM(B111:L111),0),IF(AND('Base-datos'!$B$735=\"\",'Base-datos'!$B$736=\"\",'Base-datos'!$B$737=\"Sí\"),IF(M111=\"La actividad sí contribuye sustancialmente a la sostenibilidad\",SUM(B111:L111),0),IF(AND('Base-datos'!$B$735=\"\",'Base-datos'!$B$736=\"Sí\",'Base-datos'!$B$737=\"Sí\"),IF(AND(O111=\"La actividad sí contribuye sustancialmente a la sostenibilidad\",M111=\"La actividad sí contribuye sustancialmente a la sostenibilidad\"),SUM(B111:L111),0),IF(AND('Base-datos'!$B$735=\"Sí\",'Base-datos'!$B$736=\"\",'Base-datos'!$B$737=\"Sí\"),IF(AND(N111=\"La actividad sí contribuye sustancialmente a la sostenibilidad\",M111=\"La actividad sí contribuye sustancialmente a la sostenibilidad\"),SUM(B111:L111),0),\"Por definir\"))))))))","v":"Por definir"}]
[{"$f":"Agua!$C38","v":"Seleccione"},{"$f":"IF(Agua!$E38='Fondos-Inversionistas'!B$12,Agua!$B38,\"\")","v":""},{"$f":"IF(Agua!$E38='Fondos-Inversionistas'!C$12,Agua!$B38,\"\")","v":""},{"$f":"IF(Agua!$E38='Fondos-Inversionistas'!D$12,Agua!$B38,\"\")","v":""},{"$f":"IF(Agua!$E38='Fondos-Inversionistas'!E$12,Agua!$B38,\"\")","v":""},{"$f":"IF(Agua!$E38='Fondos-Inversionistas'!F$12,Agua!$B38,\"\")","v":""},{"$f":"IF(Agua!$E38='Fondos-Inversionistas'!G$12,Agua!$B38,\"\")","v":""},{"$f":"IF(Agua!$E38='Fondos-Inversionistas'!H$12,Agua!$B38,\"\")","v":""},{"$f":"IF(Agua!$E38='Fondos-Inversionistas'!I$12,Agua!$B38,\"\")","v":""},{"$f":"IF(Agua!$E38='Fondos-Inversionistas'!J$12,Agua!$B38,\"\")","v":""},{"$f":"IF(Agua!$E38='Fondos-Inversionistas'!K$12,Agua!$B38,\"\")","v":""},{"$f":"IF(Agua!$E38='Fondos-Inversionistas'!L$12,Agua!$B38,\"\")","v":""},{"$f":"_xlfn.XLOOKUP(A112,'Base-datos'!$B$532:$B$536,'Base-datos'!$F$532:$F$536)","v":{"$error":"#N/A"}},{"$f":"_xlfn.XLOOKUP(A112,'Base-datos'!$B$532:$B$536,'Base-datos'!$C$532:$C$536)","v":{"$error":"#N/A"}},{"$f":"_xlfn.XLOOKUP(A112,'Base-datos'!$B$532:$B$536,'Base-datos'!$D$532:$D$536)","v":{"$error":"#N/A"}},null,null,{"$f":"IF(OR(P$98=\"La actividad no cumple con el total de los criterios de No Daño Significativo\",Q$98=\"El sector no cumple con las salvaguardas mínimas\"),\"\",IF(AND('Base-datos'!$B$735=\"Sí\",'Base-datos'!$B$736=\"\",'Base-datos'!$B$737=\"\"),IF(N112=\"La actividad sí contribuye sustancialmente a la sostenibilidad\",SUM(B112:L112),0),IF(AND('Base-datos'!$B$735=\"Sí\",'Base-datos'!$B$736=\"Sí\",'Base-datos'!$B$737=\"\"),IF(AND(N112=\"La actividad sí contribuye sustancialmente a la sostenibilidad\",O112=\"La actividad sí contribuye sustancialmente a la sostenibilidad\"),SUM(B112:L112),0),IF(AND('Base-datos'!$B$735=\"Sí\",'Base-datos'!$B$736=\"Sí\",'Base-datos'!$B$737=\"Sí\"),IF(AND(N112=\"La actividad sí contribuye sustancialmente a la sostenibilidad\",O112=\"La actividad sí contribuye sustancialmente a la sostenibilidad\",M112=\"La actividad sí contribuye sustancialmente a la sostenibilidad\"),SUM(B112:L112),0),IF(AND('Base-datos'!$B$735=\"\",'Base-datos'!$B$736=\"Sí\",'Base-datos'!$B$737=\"\"),IF(O112=\"La actividad sí contribuye sustancialmente a la sostenibilidad\",SUM(B112:L112),0),IF(AND('Base-datos'!$B$735=\"\",'Base-datos'!$B$736=\"\",'Base-datos'!$B$737=\"Sí\"),IF(M112=\"La actividad sí contribuye sustancialmente a la sostenibilidad\",SUM(B112:L112),0),IF(AND('Base-datos'!$B$735=\"\",'Base-datos'!$B$736=\"Sí\",'Base-datos'!$B$737=\"Sí\"),IF(AND(O112=\"La actividad sí contribuye sustancialmente a la sostenibilidad\",M112=\"La actividad sí contribuye sustancialmente a la sostenibilidad\"),SUM(B112:L112),0),IF(AND('Base-datos'!$B$735=\"Sí\",'Base-datos'!$B$736=\"\",'Base-datos'!$B$737=\"Sí\"),IF(AND(N112=\"La actividad sí contribuye sustancialmente a la sostenibilidad\",M112=\"La actividad sí contribuye sustancialmente a la sostenibilidad\"),SUM(B112:L112),0),\"Por definir\"))))))))","v":"Por definir"}]
[{"$f":"Agua!$C40","v":"Seleccione"},{"$f":"IF(Agua!$E40='Fondos-Inversionistas'!B$12,Agua!$B40,\"\")","v":""},{"$f":"IF(Agua!$E40='Fondos-Inversionistas'!C$12,Agua!$B40,\"\")","v":""},{"$f":"IF(Agua!$E40='Fondos-Inversionistas'!D$12,Agua!$B40,\"\")","v":""},{"$f":"IF(Agua!$E40='Fondos-Inversionistas'!E$12,Agua!$B40,\"\")","v":""},{"$f":"IF(Agua!$E40='Fondos-Inversionistas'!F$12,Agua!$B40,\"\")","v":""},{"$f":"IF(Agua!$E40='Fondos-Inversionistas'!G$12,Agua!$B40,\"\")","v":""},{"$f":"IF(Agua!$E40='Fondos-Inversionistas'!H$12,Agua!$B40,\"\")","v":""},{"$f":"IF(Agua!$E40='Fondos-Inversionistas'!I$12,Agua!$B40,\"\")","v":""},{"$f":"IF(Agua!$E40='Fondos-Inversionistas'!J$12,Agua!$B40,\"\")","v":""},{"$f":"IF(Agua!$E40='Fondos-Inversionistas'!K$12,Agua!$B40,\"\")","v":""},{"$f":"IF(Agua!$E40='Fondos-Inversionistas'!L$12,Agua!$B40,\"\")","v":""},{"$f":"_xlfn.XLOOKUP(A113,'Base-datos'!$B$532:$B$536,'Base-datos'!$F$532:$F$536)","v":{"$error":"#N/A"}},{"$f":"_xlfn.XLOOKUP(A113,'Base-datos'!$B$532:$B$536,'Base-datos'!$C$532:$C$536)","v":{"$error":"#N/A"}},{"$f":"_xlfn.XLOOKUP(A113,'Base-datos'!$B$532:$B$536,'Base-datos'!$D$532:$D$536)","v":{"$error":"#N/A"}},null,null,{"$f":"IF(OR(P$98=\"La actividad no cumple con el total de los criterios de No Daño Significativo\",Q$98=\"El sector no cumple con las salvaguardas mínimas\"),\"\",IF(AND('Base-datos'!$B$735=\"Sí\",'Base-datos'!$B$736=\"\",'Base-datos'!$B$737=\"\"),IF(N113=\"La actividad sí contribuye sustancialmente a la sostenibilidad\",SUM(B113:L113),0),IF(AND('Base-datos'!$B$735=\"Sí\",'Base-datos'!$B$736=\"Sí\",'Base-datos'!$B$737=\"\"),IF(AND(N113=\"La actividad sí contribuye sustancialmente a la sostenibilidad\",O113=\"La actividad sí contribuye sustancialmente a la sostenibilidad\"),SUM(B113:L113),0),IF(AND('Base-datos'!$B$735=\"Sí\",'Base-datos'!$B$736=\"Sí\",'Base-datos'!$B$737=\"Sí\"),IF(AND(N113=\"La actividad sí contribuye sustancialmente a la sostenibilidad\",O113=\"La actividad sí contribuye sustancialmente a la sostenibilidad\",M113=\"La actividad sí contribuye sustancialmente a la sostenibilidad\"),SUM(B113:L113),0),IF(AND('Base-datos'!$B$735=\"\",'Base-datos'!$B$736=\"Sí\",'Base-datos'!$B$737=\"\"),IF(O113=\"La actividad sí contribuye sustancialmente a la sostenibilidad\",SUM(B113:L113),0),IF(AND('Base-datos'!$B$735=\"\",'Base-datos'!$B$736=\"\",'Base-datos'!$B$737=\"Sí\"),IF(M113=\"La actividad sí contribuye sustancialmente a la sostenibilidad\",SUM(B113:L113),0),IF(AND('Base-datos'!$B$735=\"\",'Base-datos'!$B$736=\"Sí\",'Base-datos'!$B$737=\"Sí\"),IF(AND(O113=\"La actividad sí contribuye sustancialmente a la sostenibilidad\",M113=\"La actividad sí contribuye sustancialmente a la sostenibilidad\"),SUM(B113:L113),0),IF(AND('Base-datos'!$B$735=\"Sí\",'Base-datos'!$B$736=\"\",'Base-datos'!$B$737=\"Sí\"),IF(AND(N113=\"La actividad sí contribuye sustancialmente a la sostenibilidad\",M113=\"La actividad sí contribuye sustancialmente a la sostenibilidad\"),SUM(B113:L113),0),\"Por definir\"))))))))","v":"Por definir"}]
[{"$f":"Agua!$C42","v":"Seleccione"},{"$f":"IF(Agua!$E42='Fondos-Inversionistas'!B$12,Agua!$B42,\"\")","v":""},{"$f":"IF(Agua!$E42='Fondos-Inversionistas'!C$12,Agua!$B42,\"\")","v":""},{"$f":"IF(Agua!$E42='Fondos-Inversionistas'!D$12,Agua!$B42,\"\")","v":""},{"$f":"IF(Agua!$E42='Fondos-Inversionistas'!E$12,Agua!$B42,\"\")","v":""},{"$f":"IF(Agua!$E42='Fondos-Inversionistas'!F$12,Agua!$B42,\"\")","v":""},{"$f":"IF(Agua!$E42='Fondos-Inversionistas'!G$12,Agua!$B42,\"\")","v":""},{"$f":"IF(Agua!$E42='Fondos-Inversionistas'!H$12,Agua!$B42,\"\")","v":""},{"$f":"IF(Agua!$E42='Fondos-Inversionistas'!I$12,Agua!$B42,\"\")","v":""},{"$f":"IF(Agua!$E42='Fondos-Inversionistas'!J$12,Agua!$B42,\"\")","v":""},{"$f":"IF(Agua!$E42='Fondos-Inversionistas'!K$12,Agua!$B42,\"\")","v":""},{"$f":"IF(Agua!$E42='Fondos-Inversionistas'!L$12,Agua!$B42,\"\")","v":""},{"$f":"_xlfn.XLOOKUP(A114,'Base-datos'!$B$532:$B$536,'Base-datos'!$F$532:$F$536)","v":{"$error":"#N/A"}},{"$f":"_xlfn.XLOOKUP(A114,'Base-datos'!$B$532:$B$536,'Base-datos'!$C$532:$C$536)","v":{"$error":"#N/A"}},{"$f":"_xlfn.XLOOKUP(A114,'Base-datos'!$B$532:$B$536,'Base-datos'!$D$532:$D$536)","v":{"$error":"#N/A"}},null,null,{"$f":"IF(OR(P$98=\"La actividad no cumple con el total de los criterios de No Daño Significativo\",Q$98=\"El sector no cumple con las salvaguardas mínimas\"),\"\",IF(AND('Base-datos'!$B$735=\"Sí\",'Base-datos'!$B$736=\"\",'Base-datos'!$B$737=\"\"),IF(N114=\"La actividad sí contribuye sustancialmente a la sostenibilidad\",SUM(B114:L114),0),IF(AND('Base-datos'!$B$735=\"Sí\",'Base-datos'!$B$736=\"Sí\",'Base-datos'!$B$737=\"\"),IF(AND(N114=\"La actividad sí contribuye sustancialmente a la sostenibilidad\",O114=\"La actividad sí contribuye sustancialmente a la sostenibilidad\"),SUM(B114:L114),0),IF(AND('Base-datos'!$B$735=\"Sí\",'Base-datos'!$B$736=\"Sí\",'Base-datos'!$B$737=\"Sí\"),IF(AND(N114=\"La actividad sí contribuye sustancialmente a la sostenibilidad\",O114=\"La actividad sí contribuye sustancialmente a la sostenibilidad\",M114=\"La actividad sí contribuye sustancialmente a la sostenibilidad\"),SUM(B114:L114),0),IF(AND('Base-datos'!$B$735=\"\",'Base-datos'!$B$736=\"Sí\",'Base-datos'!$B$737=\"\"),IF(O114=\"La actividad sí contribuye sustancialmente a la sostenibilidad\",SUM(B114:L114),0),IF(AND('Base-datos'!$B$735=\"\",'Base-datos'!$B$736=\"\",'Base-datos'!$B$737=\"Sí\"),IF(M114=\"La actividad sí contribuye sustancialmente a la sostenibilidad\",SUM(B114:L114),0),IF(AND('Base-datos'!$B$735=\"\",'Base-datos'!$B$736=\"Sí\",'Base-datos'!$B$737=\"Sí\"),IF(AND(O114=\"La actividad sí contribuye sustancialmente a la sostenibilidad\",M114=\"La actividad sí contribuye sustancialmente a la sostenibilidad\"),SUM(B114:L114),0),IF(AND('Base-datos'!$B$735=\"Sí\",'Base-datos'!$B$736=\"\",'Base-datos'!$B$737=\"Sí\"),IF(AND(N114=\"La actividad sí contribuye sustancialmente a la sostenibilidad\",M114=\"La actividad sí contribuye sustancialmente a la sostenibilidad\"),SUM(B114:L114),0),\"Por definir\"))))))))","v":"Por definir"}]
[{"$f":"Agua!$C44","v":"Seleccione"},{"$f":"IF(Agua!$E44='Fondos-Inversionistas'!B$12,Agua!$B44,\"\")","v":""},{"$f":"IF(Agua!$E44='Fondos-Inversionistas'!C$12,Agua!$B44,\"\")","v":""},{"$f":"IF(Agua!$E44='Fondos-Inversionistas'!D$12,Agua!$B44,\"\")","v":""},{"$f":"IF(Agua!$E44='Fondos-Inversionistas'!E$12,Agua!$B44,\"\")","v":""},{"$f":"IF(Agua!$E44='Fondos-Inversionistas'!F$12,Agua!$B44,\"\")","v":""},{"$f":"IF(Agua!$E44='Fondos-Inversionistas'!G$12,Agua!$B44,\"\")","v":""},{"$f":"IF(Agua!$E44='Fondos-Inversionistas'!H$12,Agua!$B44,\"\")","v":""},{"$f":"IF(Agua!$E44='Fondos-Inversionistas'!I$12,Agua!$B44,\"\")","v":""},{"$f":"IF(Agua!$E44='Fondos-Inversionistas'!J$12,Agua!$B44,\"\")","v":""},{"$f":"IF(Agua!$E44='Fondos-Inversionistas'!K$12,Agua!$B44,\"\")","v":""},{"$f":"IF(Agua!$E44='Fondos-Inversionistas'!L$12,Agua!$B44,\"\")","v":""},{"$f":"_xlfn.XLOOKUP(A115,'Base-datos'!$B$532:$B$536,'Base-datos'!$F$532:$F$536)","v":{"$error":"#N/A"}},{"$f":"_xlfn.XLOOKUP(A115,'Base-datos'!$B$532:$B$536,'Base-datos'!$C$532:$C$536)","v":{"$error":"#N/A"}},{"$f":"_xlfn.XLOOKUP(A115,'Base-datos'!$B$532:$B$536,'Base-datos'!$D$532:$D$536)","v":{"$error":"#N/A"}},null,null,{"$f":"IF(OR(P$98=\"La actividad no cumple con el total de los criterios de No Daño Significativo\",Q$98=\"El sector no cumple con las salvaguardas mínimas\"),\"\",IF(AND('Base-datos'!$B$735=\"Sí\",'Base-datos'!$B$736=\"\",'Base-datos'!$B$737=\"\"),IF(N115=\"La actividad sí contribuye sustancialmente a la sostenibilidad\",SUM(B115:L115),0),IF(AND('Base-datos'!$B$735=\"Sí\",'Base-datos'!$B$736=\"Sí\",'Base-datos'!$B$737=\"\"),IF(AND(N115=\"La actividad sí contribuye sustancialmente a la sostenibilidad\",O115=\"La actividad sí contribuye sustancialmente a la sostenibilidad\"),SUM(B115:L115),0),IF(AND('Base-datos'!$B$735=\"Sí\",'Base-datos'!$B$736=\"Sí\",'Base-datos'!$B$737=\"Sí\"),IF(AND(N115=\"La actividad sí contribuye sustancialmente a la sostenibilidad\",O115=\"La actividad sí contribuye sustancialmente a la sostenibilidad\",M115=\"La actividad sí contribuye sustancialmente a la sostenibilidad\"),SUM(B115:L115),0),IF(AND('Base-datos'!$B$735=\"\",'Base-datos'!$B$736=\"Sí\",'Base-datos'!$B$737=\"\"),IF(O115=\"La actividad sí contribuye sustancialmente a la sostenibilidad\",SUM(B115:L115),0),IF(AND('Base-datos'!$B$735=\"\",'Base-datos'!$B$736=\"\",'Base-datos'!$B$737=\"Sí\"),IF(M115=\"La actividad sí contribuye sustancialmente a la sostenibilidad\",SUM(B115:L115),0),IF(AND('Base-datos'!$B$735=\"\",'Base-datos'!$B$736=\"Sí\",'Base-datos'!$B$737=\"Sí\"),IF(AND(O115=\"La actividad sí contribuye sustancialmente a la sostenibilidad\",M115=\"La actividad sí contribuye sustancialmente a la sostenibilidad\"),SUM(B115:L115),0),IF(AND('Base-datos'!$B$735=\"Sí\",'Base-datos'!$B$736=\"\",'Base-datos'!$B$737=\"Sí\"),IF(AND(N115=\"La actividad sí contribuye sustancialmente a la sostenibilidad\",M115=\"La actividad sí contribuye sustancialmente a la sostenibilidad\"),SUM(B115:L115),0),\"Por definir\"))))))))","v":"Por definir"}]
[{"$f":"Agua!$C46","v":"Seleccione"},{"$f":"IF(Agua!$E46='Fondos-Inversionistas'!B$12,Agua!$B46,\"\")","v":""},{"$f":"IF(Agua!$E46='Fondos-Inversionistas'!C$12,Agua!$B46,\"\")","v":""},{"$f":"IF(Agua!$E46='Fondos-Inversionistas'!D$12,Agua!$B46,\"\")","v":""},{"$f":"IF(Agua!$E46='Fondos-Inversionistas'!E$12,Agua!$B46,\"\")","v":""},{"$f":"IF(Agua!$E46='Fondos-Inversionistas'!F$12,Agua!$B46,\"\")","v":""},{"$f":"IF(Agua!$E46='Fondos-Inversionistas'!G$12,Agua!$B46,\"\")","v":""},{"$f":"IF(Agua!$E46='Fondos-Inversionistas'!H$12,Agua!$B46,\"\")","v":""},{"$f":"IF(Agua!$E46='Fondos-Inversionistas'!I$12,Agua!$B46,\"\")","v":""},{"$f":"IF(Agua!$E46='Fondos-Inversionistas'!J$12,Agua!$B46,\"\")","v":""},{"$f":"IF(Agua!$E46='Fondos-Inversionistas'!K$12,Agua!$B46,\"\")","v":""},{"$f":"IF(Agua!$E46='Fondos-Inversionistas'!L$12,Agua!$B46,\"\")","v":""},{"$f":"_xlfn.XLOOKUP(A116,'Base-datos'!$B$532:$B$536,'Base-datos'!$F$532:$F$536)","v":{"$error":"#N/A"}},{"$f":"_xlfn.XLOOKUP(A116,'Base-datos'!$B$532:$B$536,'Base-datos'!$C$532:$C$536)","v":{"$error":"#N/A"}},{"$f":"_xlfn.XLOOKUP(A116,'Base-datos'!$B$532:$B$536,'Base-datos'!$D$532:$D$536)","v":{"$error":"#N/A"}},null,null,{"$f":"IF(OR(P$98=\"La actividad no cumple con el total de los criterios de No Daño Significativo\",Q$98=\"El sector no cumple con las salvaguardas mínimas\"),\"\",IF(AND('Base-datos'!$B$735=\"Sí\",'Base-datos'!$B$736=\"\",'Base-datos'!$B$737=\"\"),IF(N116=\"La actividad sí contribuye sustancialmente a la sostenibilidad\",SUM(B116:L116),0),IF(AND('Base-datos'!$B$735=\"Sí\",'Base-datos'!$B$736=\"Sí\",'Base-datos'!$B$737=\"\"),IF(AND(N116=\"La actividad sí contribuye sustancialmente a la sostenibilidad\",O116=\"La actividad sí contribuye sustancialmente a la sostenibilidad\"),SUM(B116:L116),0),IF(AND('Base-datos'!$B$735=\"Sí\",'Base-datos'!$B$736=\"Sí\",'Base-datos'!$B$737=\"Sí\"),IF(AND(N116=\"La actividad sí contribuye sustancialmente a la sostenibilidad\",O116=\"La actividad sí contribuye sustancialmente a la sostenibilidad\",M116=\"La actividad sí contribuye sustancialmente a la sostenibilidad\"),SUM(B116:L116),0),IF(AND('Base-datos'!$B$735=\"\",'Base-datos'!$B$736=\"Sí\",'Base-datos'!$B$737=\"\"),IF(O116=\"La actividad sí contribuye sustancialmente a la sostenibilidad\",SUM(B116:L116),0),IF(AND('Base-datos'!$B$735=\"\",'Base-datos'!$B$736=\"\",'Base-datos'!$B$737=\"Sí\"),IF(M116=\"La actividad sí contribuye sustancialmente a la sostenibilidad\",SUM(B116:L116),0),IF(AND('Base-datos'!$B$735=\"\",'Base-datos'!$B$736=\"Sí\",'Base-datos'!$B$737=\"Sí\"),IF(AND(O116=\"La actividad sí contribuye sustancialmente a la sostenibilidad\",M116=\"La actividad sí contribuye sustancialmente a la sostenibilidad\"),SUM(B116:L116),0),IF(AND('Base-datos'!$B$735=\"Sí\",'Base-datos'!$B$736=\"\",'Base-datos'!$B$737=\"Sí\"),IF(AND(N116=\"La actividad sí contribuye sustancialmente a la sostenibilidad\",M116=\"La actividad sí contribuye sustancialmente a la sostenibilidad\"),SUM(B116:L116),0),\"Por definir\"))))))))","v":"Por definir"}]
[{"$f":"Agua!$C48","v":"Seleccione"},{"$f":"IF(Agua!$E48='Fondos-Inversionistas'!B$12,Agua!$B48,\"\")","v":""},{"$f":"IF(Agua!$E48='Fondos-Inversionistas'!C$12,Agua!$B48,\"\")","v":""},{"$f":"IF(Agua!$E48='Fondos-Inversionistas'!D$12,Agua!$B48,\"\")","v":""},{"$f":"IF(Agua!$E48='Fondos-Inversionistas'!E$12,Agua!$B48,\"\")","v":""},{"$f":"IF(Agua!$E48='Fondos-Inversionistas'!F$12,Agua!$B48,\"\")","v":""},{"$f":"IF(Agua!$E48='Fondos-Inversionistas'!G$12,Agua!$B48,\"\")","v":""},{"$f":"IF(Agua!$E48='Fondos-Inversionistas'!H$12,Agua!$B48,\"\")","v":""},{"$f":"IF(Agua!$E48='Fondos-Inversionistas'!I$12,Agua!$B48,\"\")","v":""},{"$f":"IF(Agua!$E48='Fondos-Inversionistas'!J$12,Agua!$B48,\"\")","v":""},{"$f":"IF(Agua!$E48='Fondos-Inversionistas'!K$12,Agua!$B48,\"\")","v":""},{"$f":"IF(Agua!$E48='Fondos-Inversionistas'!L$12,Agua!$B48,\"\")","v":""},{"$f":"_xlfn.XLOOKUP(A117,'Base-datos'!$B$532:$B$536,'Base-datos'!$F$532:$F$536)","v":{"$error":"#N/A"}},{"$f":"_xlfn.XLOOKUP(A117,'Base-datos'!$B$532:$B$536,'Base-datos'!$C$532:$C$536)","v":{"$error":"#N/A"}},{"$f":"_xlfn.XLOOKUP(A117,'Base-datos'!$B$532:$B$536,'Base-datos'!$D$532:$D$536)","v":{"$error":"#N/A"}},null,null,{"$f":"IF(OR(P$98=\"La actividad no cumple con el total de los criterios de No Daño Significativo\",Q$98=\"El sector no cumple con las salvaguardas mínimas\"),\"\",IF(AND('Base-datos'!$B$735=\"Sí\",'Base-datos'!$B$736=\"\",'Base-datos'!$B$737=\"\"),IF(N117=\"La actividad sí contribuye sustancialmente a la sostenibilidad\",SUM(B117:L117),0),IF(AND('Base-datos'!$B$735=\"Sí\",'Base-datos'!$B$736=\"Sí\",'Base-datos'!$B$737=\"\"),IF(AND(N117=\"La actividad sí contribuye sustancialmente a la sostenibilidad\",O117=\"La actividad sí contribuye sustancialmente a la sostenibilidad\"),SUM(B117:L117),0),IF(AND('Base-datos'!$B$735=\"Sí\",'Base-datos'!$B$736=\"Sí\",'Base-datos'!$B$737=\"Sí\"),IF(AND(N117=\"La actividad sí contribuye sustancialmente a la sostenibilidad\",O117=\"La actividad sí contribuye sustancialmente a la sostenibilidad\",M117=\"La actividad sí contribuye sustancialmente a la sostenibilidad\"),SUM(B117:L117),0),IF(AND('Base-datos'!$B$735=\"\",'Base-datos'!$B$736=\"Sí\",'Base-datos'!$B$737=\"\"),IF(O117=\"La actividad sí contribuye sustancialmente a la sostenibilidad\",SUM(B117:L117),0),IF(AND('Base-datos'!$B$735=\"\",'Base-datos'!$B$736=\"\",'Base-datos'!$B$737=\"Sí\"),IF(M117=\"La actividad sí contribuye sustancialmente a la sostenibilidad\",SUM(B117:L117),0),IF(AND('Base-datos'!$B$735=\"\",'Base-datos'!$B$736=\"Sí\",'Base-datos'!$B$737=\"Sí\"),IF(AND(O117=\"La actividad sí contribuye sustancialmente a la sostenibilidad\",M117=\"La actividad sí contribuye sustancialmente a la sostenibilidad\"),SUM(B117:L117),0),IF(AND('Base-datos'!$B$735=\"Sí\",'Base-datos'!$B$736=\"\",'Base-datos'!$B$737=\"Sí\"),IF(AND(N117=\"La actividad sí contribuye sustancialmente a la sostenibilidad\",M117=\"La actividad sí contribuye sustancialmente a la sostenibilidad\"),SUM(B117:L117),0),\"Por definir\"))))))))","v":"Por definir"}]
["Construcción",null,null,null,null,null,null,null,null,null,null,null,null,null,null,null,null,{"$f":"SUM(IF(FREQUENCY(MATCH(A119:A138, A119:A138, 0), MATCH(A119:A138, A119:A138, 0)) > 0, IF(NOT(ISERROR(R119:R138)), R119:R138, 0)))","v":0}]
[{"$f":"Construcción!$C10","v":"Seleccione"},{"$f":"IF(Construcción!$E10='Fondos-Inversionistas'!B$12,Construcción!$B10,\"\")","v":""},{"$f":"IF(Construcción!$E10='Fondos-Inversionistas'!C$12,Construcción!$B10,\"\")","v":""},{"$f":"IF(Construcción!$E10='Fondos-Inversionistas'!D$12,Construcción!$B10,\"\")","v":""},{"$f":"IF(Construcción!$E10='Fondos-Inversionistas'!E$12,Construcción!$B10,\"\")","v":""},{"$f":"IF(Construcción!$E10='Fondos-Inversionistas'!F$12,Construcción!$B10,\"\")","v":""},{"$f":"IF(Construcción!$E10='Fondos-Inversionistas'!G$12,Construcción!$B10,\"\")","v":""},{"$f":"IF(Construcción!$E10='Fondos-Inversionistas'!H$12,Construcción!$B10,\"\")","v":""},{"$f":"IF(Construcción!$E10='Fondos-Inversionistas'!I$12,Construcción!$B10,\"\")","v":""},{"$f":"IF(Construcción!$E10='Fondos-Inversionistas'!J$12,Construcción!$B10,\"\")","v":""},{"$f":"IF(Construcción!$E10='Fondos-Inversionistas'!K$12,Construcción!$B10,\"\")","v":""},{"$f":"IF(Construcción!$E10='Fondos-Inversionistas'!L$12,Construcción!$B10,\"\")","v":""},{"$f":"_xlfn.XLOOKUP(A119,'Base-datos'!$B$537:$B$546,'Base-datos'!$F$537:$F$546)","v":{"$error":"#N/A"}},{"$f":"_xlfn.XLOOKUP(A119,'Base-datos'!$B$537:$B$546,'Base-datos'!$C$537:$C$546)","v":{"$error":"#N/A"}},{"$f":"_xlfn.XLOOKUP(A119,'Base-datos'!$B$537:$B$546,'Base-datos'!$D$537:$D$546)","v":{"$error":"#N/A"}},{"$f":"IF(COUNTIF('Construcción-NDS'!G8:G138,\"No\")>0,\"La actividad no cumple con el total de los criterios de NDS\",\"La actividad cumple con los criterios de No Daño Significativo\")","v":"La actividad cumple con los criterios de No Daño Significativo"},{"$f":"IF(OR('Salvaguardas mínimas'!$G$10=\"Seleccione\",'Salvaguardas mínimas'!$G$13=\"Seleccione\",'Salvaguardas mínimas'!$G$16=\"Seleccione\",'Salvaguardas mínimas'!$G$7=\"Seleccione\"),\"No se han respondido todas las preguntas\",IF(OR('Salvaguardas mínimas'!$G$10=\"No\",'Salvaguardas mínimas'!$G$13=\"No\",'Salvaguardas mínimas'!$G$16=\"No\",'Salvaguardas mínimas'!$G$7=\"No\"),\"El sector no cumple con las salvaguardas mínimas\",\"La actividad sí cumple con las salvaguardas mínimas\"))","v":"No se han respondido todas las preguntas"},{"$f":"IF(OR(P$119=\"La actividad no cumple con el total de los criterios de No Daño Significativo\",Q$119=\"El sector no cumple con las salvaguardas mínimas\"),\"\",IF(AND('Base-datos'!$B$740=\"Sí\",'Base-datos'!$B$741=\"\",'Base-datos'!$B$742=\"\"),IF(N119=\"La actividad sí contribuye sustancialmente a la sostenibilidad\",SUM(B119:L119),0),IF(AND('Base-datos'!$B$740=\"Sí\",'Base-datos'!$B$741=\"Sí\",'Base-datos'!$B$742=\"\"),IF(AND(N119=\"La actividad sí contribuye sustancialmente a la sostenibilidad\",O119=\"La actividad sí contribuye sustancialmente a la sostenibilidad\"),SUM(B119:L119),0),IF(AND('Base-datos'!$B$740=\"Sí\",'Base-datos'!$B$741=\"Sí\",'Base-datos'!$B$742=\"Sí\"),IF(AND(N119=\"La actividad sí contribuye sustancialmente a la sostenibilidad\",O119=\"La actividad sí contribuye sustancialmente a la sostenibilidad\",M119=\"La actividad sí contribuye sustancialmente a la sostenibilidad\"),SUM(B119:L119),0),IF(AND('Base-datos'!$B$740=\"\",'Base-datos'!$B$741=\"Sí\",'Base-datos'!$B$742=\"\"),IF(O119=\"La actividad sí contribuye sustancialmente a la sostenibilidad\",SUM(B119:L119),0),IF(AND('Base-datos'!$B$740=\"\",'Base-datos'!$B$741=\"\",'Base-datos'!$B$742=\"Sí\"),IF(M119=\"La actividad sí contribuye sustancialmente a la sostenibilidad\",SUM(B119:L119),0),IF(AND('Base-datos'!$B$740=\"\",'Base-datos'!$B$741=\"Sí\",'Base-datos'!$B$742=\"Sí\"),IF(AND(O119=\"La actividad sí contribuye sustancialmente a la sostenibilidad\",M119=\"La actividad sí contribuye sustancialmente a la sostenibilidad\"),SUM(B119:L119),0),IF(AND('Base-datos'!$B$740=\"Sí\",'Base-datos'!$B$741=\"\",'Base-datos'!$B$742=\"Sí\"),IF(AND(N119=\"La actividad sí contribuye sustancialmente a la sostenibilidad\",M119=\"La actividad sí contribuye sustancialmente a la sostenibilidad\"),SUM(B119:L119),0),\"Por definir\"))))))))","v":"Por definir"}]
[{"$f":"Construcción!$C12","v":"Seleccione"},{"$f":"IF(Construcción!$E12='Fondos-Inversionistas'!B$12,Construcción!$B12,\"\")","v":""},{"$f":"IF(Construcción!$E12='Fondos-Inversionistas'!C$12,Construcción!$B12,\"\")","v":""},{"$f":"IF(Construcción!$E12='Fondos-Inversionistas'!D$12,Construcción!$B12,\"\")","v":""},{"$f":"IF(Construcción!$E12='Fondos-Inversionistas'!E$12,Construcción!$B12,\"\")","v":""},{"$f":"IF(Construcción!$E12='Fondos-Inversionistas'!F$12,Construcción!$B12,\"\")","v":""},{"$f":"IF(Construcción!$E12='Fondos-Inversionistas'!G$12,Construcción!$B12,\"\")","v":""},{"$f":"IF(Construcción!$E12='Fondos-Inversionistas'!H$12,Construcción!$B12,\"\")","v":""},{"$f":"IF(Construcción!$E12='Fondos-Inversionistas'!I$12,Construcción!$B12,\"\")","v":""},{"$f":"IF(Construcción!$E12='Fondos-Inversionistas'!J$12,Construcción!$B12,\"\")","v":""},{"$f":"IF(Construcción!$E12='Fondos-Inversionistas'!K$12,Construcción!$B12,\"\")","v":""},{"$f":"IF(Construcción!$E12='Fondos-Inversionistas'!L$12,Construcción!$B12,\"\")","v":""},{"$f":"_xlfn.XLOOKUP(A120,'Base-datos'!$B$537:$B$546,'Base-datos'!$F$537:$F$546)","v":{"$error":"#N/A"}},{"$f":"_xlfn.XLOOKUP(A120,'Base-datos'!$B$537:$B$546,'Base-datos'!$C$537:$C$546)","v":{"$error":"#N/A"}},{"$f":"_xlfn.XLOOKUP(A120,'Base-datos'!$B$537:$B$546,'Base-datos'!$D$537:$D$546)","v":{"$error":"#N/A"}},null,null,{"$f":"IF(OR(P$119=\"La actividad no cumple con el total de los criterios de No Daño Significativo\",Q$119=\"El sector no cumple con las salvaguardas mínimas\"),\"\",IF(AND('Base-datos'!$B$740=\"Sí\",'Base-datos'!$B$741=\"\",'Base-datos'!$B$742=\"\"),IF(N120=\"La actividad sí contribuye sustancialmente a la sostenibilidad\",SUM(B120:L120),0),IF(AND('Base-datos'!$B$740=\"Sí\",'Base-datos'!$B$741=\"Sí\",'Base-datos'!$B$742=\"\"),IF(AND(N120=\"La actividad sí contribuye sustancialmente a la sostenibilidad\",O120=\"La actividad sí contribuye sustancialmente a la sostenibilidad\"),SUM(B120:L120),0),IF(AND('Base-datos'!$B$740=\"Sí\",'Base-datos'!$B$741=\"Sí\",'Base-datos'!$B$742=\"Sí\"),IF(AND(N120=\"La actividad sí contribuye sustancialmente a la sostenibilidad\",O120=\"La actividad sí contribuye sustancialmente a la sostenibilidad\",M120=\"La actividad sí contribuye sustancialmente a la sostenibilidad\"),SUM(B120:L120),0),IF(AND('Base-datos'!$B$740=\"\",'Base-datos'!$B$741=\"Sí\",'Base-datos'!$B$742=\"\"),IF(O120=\"La actividad sí contribuye sustancialmente a la sostenibilidad\",SUM(B120:L120),0),IF(AND('Base-datos'!$B$740=\"\",'Base-datos'!$B$741=\"\",'Base-datos'!$B$742=\"Sí\"),IF(M120=\"La actividad sí contribuye sustancialmente a la sostenibilidad\",SUM(B120:L120),0),IF(AND('Base-datos'!$B$740=\"\",'Base-datos'!$B$741=\"Sí\",'Base-datos'!$B$742=\"Sí\"),IF(AND(O120=\"La actividad sí contribuye sustancialmente a la sostenibilidad\",M120=\"La actividad sí contribuye sustancialmente a la sostenibilidad\"),SUM(B120:L120),0),IF(AND('Base-datos'!$B$740=\"Sí\",'Base-datos'!$B$741=\"\",'Base-datos'!$B$742=\"Sí\"),IF(AND(N120=\"La actividad sí contribuye sustancialmente a la sostenibilidad\",M120=\"La actividad sí contribuye sustancialmente a la sostenibilidad\"),SUM(B120:L120),0),\"Por definir\"))))))))","v":"Por definir"}]
[{"$f":"Construcción!$C14","v":"Seleccione"},{"$f":"IF(Construcción!$E14='Fondos-Inversionistas'!B$12,Construcción!$B14,\"\")","v":""},{"$f":"IF(Construcción!$E14='Fondos-Inversionistas'!C$12,Construcción!$B14,\"\")","v":""},{"$f":"IF(Construcción!$E14='Fondos-Inversionistas'!D$12,Construcción!$B14,\"\")","v":""},{"$f":"IF(Construcción!$E14='Fondos-Inversionistas'!E$12,Construcción!$B14,\"\")","v":""},{"$f":"IF(Construcción!$E14='Fondos-Inversionistas'!F$12,Construcción!$B14,\"\")","v":""},{"$f":"IF(Construcción!$E14='Fondos-Inversionistas'!G$12,Construcción!$B14,\"\")","v":""},{"$f":"IF(Construcción!$E14='Fondos-Inversionistas'!H$12,Construcción!$B14,\"\")","v":""},{"$f":"IF(Construcción!$E14='Fondos-Inversionistas'!I$12,Construcción!$B14,\"\")","v":""},{"$f":"IF(Construcción!$E14='Fondos-Inversionistas'!J$12,Construcción!$B14,\"\")","v":""},{"$f":"IF(Construcción!$E14='Fondos-Inversionistas'!K$12,Construcción!$B14,\"\")","v":""},{"$f":"IF(Construcción!$E14='Fondos-Inversionistas'!L$12,Construcción!$B14,\"\")","v":""},{"$f":"_xlfn.XLOOKUP(A121,'Base-datos'!$B$537:$B$546,'Base-datos'!$F$537:$F$546)","v":{"$error":"#N/A"}},{"$f":"_xlfn.XLOOKUP(A121,'Base-datos'!$B$537:$B$546,'Base-datos'!$C$537:$C$546)","v":{"$error":"#N/A"}},{"$f":"_xlfn.XLOOKUP(A121,'Base-datos'!$B$537:$B$546,'Base-datos'!$D$537:$D$546)","v":{"$error":"#N/A"}},null,null,{"$f":"IF(OR(P$119=\"La actividad no cumple con el total de los criterios de No Daño Significativo\",Q$119=\"El sector no cumple con las salvaguardas mínimas\"),\"\",IF(AND('Base-datos'!$B$740=\"Sí\",'Base-datos'!$B$741=\"\",'Base-datos'!$B$742=\"\"),IF(N121=\"La actividad sí contribuye sustancialmente a la sostenibilidad\",SUM(B121:L121),0),IF(AND('Base-datos'!$B$740=\"Sí\",'Base-datos'!$B$741=\"Sí\",'Base-datos'!$B$742=\"\"),IF(AND(N121=\"La actividad sí contribuye sustancialmente a la sostenibilidad\",O121=\"La actividad sí contribuye sustancialmente a la sostenibilidad\"),SUM(B121:L121),0),IF(AND('Base-datos'!$B$740=\"Sí\",'Base-datos'!$B$741=\"Sí\",'Base-datos'!$B$742=\"Sí\"),IF(AND(N121=\"La actividad sí contribuye sustancialmente a la sostenibilidad\",O121=\"La actividad sí contribuye sustancialmente a la sostenibilidad\",M121=\"La actividad sí contribuye sustancialmente a la sostenibilidad\"),SUM(B121:L121),0),IF(AND('Base-datos'!$B$740=\"\",'Base-datos'!$B$741=\"Sí\",'Base-datos'!$B$742=\"\"),IF(O121=\"La actividad sí contribuye sustancialmente a la sostenibilidad\",SUM(B121:L121),0),IF(AND('Base-datos'!$B$740=\"\",'Base-datos'!$B$741=\"\",'Base-datos'!$B$742=\"Sí\"),IF(M121=\"La actividad sí contribuye sustancialmente a la sostenibilidad\",SUM(B121:L121),0),IF(AND('Base-datos'!$B$740=\"\",'Base-datos'!$B$741=\"Sí\",'Base-datos'!$B$742=\"Sí\"),IF(AND(O121=\"La actividad sí contribuye sustancialmente a la sostenibilidad\",M121=\"La actividad sí contribuye sustancialmente a la sostenibilidad\"),SUM(B121:L121),0),IF(AND('Base-datos'!$B$740=\"Sí\",'Base-datos'!$B$741=\"\",'Base-datos'!$B$742=\"Sí\"),IF(AND(N121=\"La actividad sí contribuye sustancialmente a la sostenibilidad\",M121=\"La actividad sí contribuye sustancialmente a la sostenibilidad\"),SUM(B121:L121),0),\"Por definir\"))))))))","v":"Por definir"}]
[{"$f":"Construcción!$C16","v":"Seleccione"},{"$f":"IF(Construcción!$E16='Fondos-Inversionistas'!B$12,Construcción!$B16,\"\")","v":""},{"$f":"IF(Construcción!$E16='Fondos-Inversionistas'!C$12,Construcción!$B16,\"\")","v":""},{"$f":"IF(Construcción!$E16='Fondos-Inversionistas'!D$12,Construcción!$B16,\"\")","v":""},{"$f":"IF(Construcción!$E16='Fondos-Inversionistas'!E$12,Construcción!$B16,\"\")","v":""},{"$f":"IF(Construcción!$E16='Fondos-Inversionistas'!F$12,Construcción!$B16,\"\")","v":""},{"$f":"IF(Construcción!$E16='Fondos-Inversionistas'!G$12,Construcción!$B16,\"\")","v":""},{"$f":"IF(Construcción!$E16='Fondos-Inversionistas'!H$12,Construcción!$B16,\"\")","v":""},{"$f":"IF(Construcción!$E16='Fondos-Inversionistas'!I$12,Construcción!$B16,\"\")","v":""},{"$f":"IF(Construcción!$E16='Fondos-Inversionistas'!J$12,Construcción!$B16,\"\")","v":""},{"$f":"IF(Construcción!$E16='Fondos-Inversionistas'!K$12,Construcción!$B16,\"\")","v":""},{"$f":"IF(Construcción!$E16='Fondos-Inversionistas'!L$12,Construcción!$B16,\"\")","v":""},{"$f":"_xlfn.XLOOKUP(A122,'Base-datos'!$B$537:$B$546,'Base-datos'!$F$537:$F$546)","v":{"$error":"#N/A"}},{"$f":"_xlfn.XLOOKUP(A122,'Base-datos'!$B$537:$B$546,'Base-datos'!$C$537:$C$546)","v":{"$error":"#N/A"}},{"$f":"_xlfn.XLOOKUP(A122,'Base-datos'!$B$537:$B$546,'Base-datos'!$D$537:$D$546)","v":{"$error":"#N/A"}},null,null,{"$f":"IF(OR(P$119=\"La actividad no cumple con el total de los criterios de No Daño Significativo\",Q$119=\"El sector no cumple con las salvaguardas mínimas\"),\"\",IF(AND('Base-datos'!$B$740=\"Sí\",'Base-datos'!$B$741=\"\",'Base-datos'!$B$742=\"\"),IF(N122=\"La actividad sí contribuye sustancialmente a la sostenibilidad\",SUM(B122:L122),0),IF(AND('Base-datos'!$B$740=\"Sí\",'Base-datos'!$B$741=\"Sí\",'Base-datos'!$B$742=\"\"),IF(AND(N122=\"La actividad sí contribuye sustancialmente a la sostenibilidad\",O122=\"La actividad sí contribuye sustancialmente a la sostenibilidad\"),SUM(B122:L122),0),IF(AND('Base-datos'!$B$740=\"Sí\",'Base-datos'!$B$741=\"Sí\",'Base-datos'!$B$742=\"Sí\"),IF(AND(N122=\"La actividad sí contribuye sustancialmente a la sostenibilidad\",O122=\"La actividad sí contribuye sustancialmente a la sostenibilidad\",M122=\"La actividad sí contribuye sustancialmente a la sostenibilidad\"),SUM(B122:L122),0),IF(AND('Base-datos'!$B$740=\"\",'Base-datos'!$B$741=\"Sí\",'Base-datos'!$B$742=\"\"),IF(O122=\"La actividad sí contribuye sustancialmente a la sostenibilidad\",SUM(B122:L122),0),IF(AND('Base-datos'!$B$740=\"\",'Base-datos'!$B$741=\"\",'Base-datos'!$B$742=\"Sí\"),IF(M122=\"La actividad sí contribuye sustancialmente a la sostenibilidad\",SUM(B122:L122),0),IF(AND('Base-datos'!$B$740=\"\",'Base-datos'!$B$741=\"Sí\",'Base-datos'!$B$742=\"Sí\"),IF(AND(O122=\"La actividad sí contribuye sustancialmente a la sostenibilidad\",M122=\"La actividad sí contribuye sustancialmente a la sostenibilidad\"),SUM(B122:L122),0),IF(AND('Base-datos'!$B$740=\"Sí\",'Base-datos'!$B$741=\"\",'Base-datos'!$B$742=\"Sí\"),IF(AND(N122=\"La actividad sí contribuye sustancialmente a la sostenibilidad\",M122=\"La actividad sí contribuye sustancialmente a la sostenibilidad\"),SUM(B122:L122),0),\"Por definir\"))))))))","v":"Por definir"}]
[{"$f":"Construcción!$C18","v":"Seleccione"},{"$f":"IF(Construcción!$E18='Fondos-Inversionistas'!B$12,Construcción!$B18,\"\")","v":""},{"$f":"IF(Construcción!$E18='Fondos-Inversionistas'!C$12,Construcción!$B18,\"\")","v":""},{"$f":"IF(Construcción!$E18='Fondos-Inversionistas'!D$12,Construcción!$B18,\"\")","v":""},{"$f":"IF(Construcción!$E18='Fondos-Inversionistas'!E$12,Construcción!$B18,\"\")","v":""},{"$f":"IF(Construcción!$E18='Fondos-Inversionistas'!F$12,Construcción!$B18,\"\")","v":""},{"$f":"IF(Construcción!$E18='Fondos-Inversionistas'!G$12,Construcción!$B18,\"\")","v":""},{"$f":"IF(Construcción!$E18='Fondos-Inversionistas'!H$12,Construcción!$B18,\"\")","v":""},{"$f":"IF(Construcción!$E18='Fondos-Inversionistas'!I$12,Construcción!$B18,\"\")","v":""},{"$f":"IF(Construcción!$E18='Fondos-Inversionistas'!J$12,Construcción!$B18,\"\")","v":""},{"$f":"IF(Construcción!$E18='Fondos-Inversionistas'!K$12,Construcción!$B18,\"\")","v":""},{"$f":"IF(Construcción!$E18='Fondos-Inversionistas'!L$12,Construcción!$B18,\"\")","v":""},{"$f":"_xlfn.XLOOKUP(A123,'Base-datos'!$B$537:$B$546,'Base-datos'!$F$537:$F$546)","v":{"$error":"#N/A"}},{"$f":"_xlfn.XLOOKUP(A123,'Base-datos'!$B$537:$B$546,'Base-datos'!$C$537:$C$546)","v":{"$error":"#N/A"}},{"$f":"_xlfn.XLOOKUP(A123,'Base-datos'!$B$537:$B$546,'Base-datos'!$D$537:$D$546)","v":{"$error":"#N/A"}},null,null,{"$f":"IF(OR(P$119=\"La actividad no cumple con el total de los criterios de No Daño Significativo\",Q$119=\"El sector no cumple con las salvaguardas mínimas\"),\"\",IF(AND('Base-datos'!$B$740=\"Sí\",'Base-datos'!$B$741=\"\",'Base-datos'!$B$742=\"\"),IF(N123=\"La actividad sí contribuye sustancialmente a la sostenibilidad\",SUM(B123:L123),0),IF(AND('Base-datos'!$B$740=\"Sí\",'Base-datos'!$B$741=\"Sí\",'Base-datos'!$B$742=\"\"),IF(AND(N123=\"La actividad sí contribuye sustancialmente a la sostenibilidad\",O123=\"La actividad sí contribuye sustancialmente a la sostenibilidad\"),SUM(B123:L123),0),IF(AND('Base-datos'!$B$740=\"Sí\",'Base-datos'!$B$741=\"Sí\",'Base-datos'!$B$742=\"Sí\"),IF(AND(N123=\"La actividad sí contribuye sustancialmente a la sostenibilidad\",O123=\"La actividad sí contribuye sustancialmente a la sostenibilidad\",M123=\"La actividad sí contribuye sustancialmente a la sostenibilidad\"),SUM(B123:L123),0),IF(AND('Base-datos'!$B$740=\"\",'Base-datos'!$B$741=\"Sí\",'Base-datos'!$B$742=\"\"),IF(O123=\"La actividad sí contribuye sustancialmente a la sostenibilidad\",SUM(B123:L123),0),IF(AND('Base-datos'!$B$740=\"\",'Base-datos'!$B$741=\"\",'Base-datos'!$B$742=\"Sí\"),IF(M123=\"La actividad sí contribuye sustancialmente a la sostenibilidad\",SUM(B123:L123),0),IF(AND('Base-datos'!$B$740=\"\",'Base-datos'!$B$741=\"Sí\",'Base-datos'!$B$742=\"Sí\"),IF(AND(O123=\"La actividad sí contribuye sustancialmente a la sostenibilidad\",M123=\"La actividad sí contribuye sustancialmente a la sostenibilidad\"),SUM(B123:L123),0),IF(AND('Base-datos'!$B$740=\"Sí\",'Base-datos'!$B$741=\"\",'Base-datos'!$B$742=\"Sí\"),IF(AND(N123=\"La actividad sí contribuye sustancialmente a la sostenibilidad\",M123=\"La actividad sí contribuye sustancialmente a la sostenibilidad\"),SUM(B123:L123),0),\"Por definir\"))))))))","v":"Por definir"}]
[{"$f":"Construcción!$C20","v":"Seleccione"},{"$f":"IF(Construcción!$E20='Fondos-Inversionistas'!B$12,Construcción!$B20,\"\")","v":""},{"$f":"IF(Construcción!$E20='Fondos-Inversionistas'!C$12,Construcción!$B20,\"\")","v":""},{"$f":"IF(Construcción!$E20='Fondos-Inversionistas'!D$12,Construcción!$B20,\"\")","v":""},{"$f":"IF(Construcción!$E20='Fondos-Inversionistas'!E$12,Construcción!$B20,\"\")","v":""},{"$f":"IF(Construcción!$E20='Fondos-Inversionistas'!F$12,Construcción!$B20,\"\")","v":""},{"$f":"IF(Construcción!$E20='Fondos-Inversionistas'!G$12,Construcción!$B20,\"\")","v":""},{"$f":"IF(Construcción!$E20='Fondos-Inversionistas'!H$12,Construcción!$B20,\"\")","v":""},{"$f":"IF(Construcción!$E20='Fondos-Inversionistas'!I$12,Construcción!$B20,\"\")","v":""},{"$f":"IF(Construcción!$E20='Fondos-Inversionistas'!J$12,Construcción!$B20,\"\")","v":""},{"$f":"IF(Construcción!$E20='Fondos-Inversionistas'!K$12,Construcción!$B20,\"\")","v":""},{"$f":"IF(Construcción!$E20='Fondos-Inversionistas'!L$12,Construcción!$B20,\"\")","v":""},{"$f":"_xlfn.XLOOKUP(A124,'Base-datos'!$B$537:$B$546,'Base-datos'!$F$537:$F$546)","v":{"$error":"#N/A"}},{"$f":"_xlfn.XLOOKUP(A124,'Base-datos'!$B$537:$B$546,'Base-datos'!$C$537:$C$546)","v":{"$error":"#N/A"}},{"$f":"_xlfn.XLOOKUP(A124,'Base-datos'!$B$537:$B$546,'Base-datos'!$D$537:$D$546)","v":{"$error":"#N/A"}},null,null,{"$f":"IF(OR(P$119=\"La actividad no cumple con el total de los criterios de No Daño Significativo\",Q$119=\"El sector no cumple con las salvaguardas mínimas\"),\"\",IF(AND('Base-datos'!$B$740=\"Sí\",'Base-datos'!$B$741=\"\",'Base-datos'!$B$742=\"\"),IF(N124=\"La actividad sí contribuye sustancialmente a la sostenibilidad\",SUM(B124:L124),0),IF(AND('Base-datos'!$B$740=\"Sí\",'Base-datos'!$B$741=\"Sí\",'Base-datos'!$B$742=\"\"),IF(AND(N124=\"La actividad sí contribuye sustancialmente a la sostenibilidad\",O124=\"La actividad sí contribuye sustancialmente a la sostenibilidad\"),SUM(B124:L124),0),IF(AND('Base-datos'!$B$740=\"Sí\",'Base-datos'!$B$741=\"Sí\",'Base-datos'!$B$742=\"Sí\"),IF(AND(N124=\"La actividad sí contribuye sustancialmente a la sostenibilidad\",O124=\"La actividad sí contribuye sustancialmente a la sostenibilidad\",M124=\"La actividad sí contribuye sustancialmente a la sostenibilidad\"),SUM(B124:L124),0),IF(AND('Base-datos'!$B$740=\"\",'Base-datos'!$B$741=\"Sí\",'Base-datos'!$B$742=\"\"),IF(O124=\"La actividad sí contribuye sustancialmente a la sostenibilidad\",SUM(B124:L124),0),IF(AND('Base-datos'!$B$740=\"\",'Base-datos'!$B$741=\"\",'Base-datos'!$B$742=\"Sí\"),IF(M124=\"La actividad sí contribuye sustancialmente a la sostenibilidad\",SUM(B124:L124),0),IF(AND('Base-datos'!$B$740=\"\",'Base-datos'!$B$741=\"Sí\",'Base-datos'!$B$742=\"Sí\"),IF(AND(O124=\"La actividad sí contribuye sustancialmente a la sostenibilidad\",M124=\"La actividad sí contribuye sustancialmente a la sostenibilidad\"),SUM(B124:L124),0),IF(AND('Base-datos'!$B$740=\"Sí\",'Base-datos'!$B$741=\"\",'Base-datos'!$B$742=\"Sí\"),IF(AND(N124=\"La actividad sí contribuye sustancialmente a la sostenibilidad\",M124=\"La actividad sí contribuye sustancialmente a la sostenibilidad\"),SUM(B124:L124),0),\"Por definir\"))))))))","v":"Por definir"}]
[{"$f":"Construcción!$C22","v":"Seleccione"},{"$f":"IF(Construcción!$E22='Fondos-Inversionistas'!B$12,Construcción!$B22,\"\")","v":""},{"$f":"IF(Construcción!$E22='Fondos-Inversionistas'!C$12,Construcción!$B22,\"\")","v":""},{"$f":"IF(Construcción!$E22='Fondos-Inversionistas'!D$12,Construcción!$B22,\"\")","v":""},{"$f":"IF(Construcción!$E22='Fondos-Inversionistas'!E$12,Construcción!$B22,\"\")","v":""},{"$f":"IF(Construcción!$E22='Fondos-Inversionistas'!F$12,Construcción!$B22,\"\")","v":""},{"$f":"IF(Construcción!$E22='Fondos-Inversionistas'!G$12,Construcción!$B22,\"\")","v":""},{"$f":"IF(Construcción!$E22='Fondos-Inversionistas'!H$12,Construcción!$B22,\"\")","v":""},{"$f":"IF(Construcción!$E22='Fondos-Inversionistas'!I$12,Construcción!$B22,\"\")","v":""},{"$f":"IF(Construcción!$E22='Fondos-Inversionistas'!J$12,Construcción!$B22,\"\")","v":""},{"$f":"IF(Construcción!$E22='Fondos-Inversionistas'!K$12,Construcción!$B22,\"\")","v":""},{"$f":"IF(Construcción!$E22='Fondos-Inversionistas'!L$12,Construcción!$B22,\"\")","v":""},{"$f":"_xlfn.XLOOKUP(A125,'Base-datos'!$B$537:$B$546,'Base-datos'!$F$537:$F$546)","v":{"$error":"#N/A"}},{"$f":"_xlfn.XLOOKUP(A125,'Base-datos'!$B$537:$B$546,'Base-datos'!$C$537:$C$546)","v":{"$error":"#N/A"}},{"$f":"_xlfn.XLOOKUP(A125,'Base-datos'!$B$537:$B$546,'Base-datos'!$D$537:$D$546)","v":{"$error":"#N/A"}},null,null,{"$f":"IF(OR(P$119=\"La actividad no cumple con el total de los criterios de No Daño Significativo\",Q$119=\"El sector no cumple con las salvaguardas mínimas\"),\"\",IF(AND('Base-datos'!$B$740=\"Sí\",'Base-datos'!$B$741=\"\",'Base-datos'!$B$742=\"\"),IF(N125=\"La actividad sí contribuye sustancialmente a la sostenibilidad\",SUM(B125:L125),0),IF(AND('Base-datos'!$B$740=\"Sí\",'Base-datos'!$B$741=\"Sí\",'Base-datos'!$B$742=\"\"),IF(AND(N125=\"La actividad sí contribuye sustancialmente a la sostenibilidad\",O125=\"La actividad sí contribuye sustancialmente a la sostenibilidad\"),SUM(B125:L125),0),IF(AND('Base-datos'!$B$740=\"Sí\",'Base-datos'!$B$741=\"Sí\",'Base-datos'!$B$742=\"Sí\"),IF(AND(N125=\"La actividad sí contribuye sustancialmente a la sostenibilidad\",O125=\"La actividad sí contribuye sustancialmente a la sostenibilidad\",M125=\"La actividad sí contribuye sustancialmente a la sostenibilidad\"),SUM(B125:L125),0),IF(AND('Base-datos'!$B$740=\"\",'Base-datos'!$B$741=\"Sí\",'Base-datos'!$B$742=\"\"),IF(O125=\"La actividad sí contribuye sustancialmente a la sostenibilidad\",SUM(B125:L125),0),IF(AND('Base-datos'!$B$740=\"\",'Base-datos'!$B$741=\"\",'Base-datos'!$B$742=\"Sí\"),IF(M125=\"La actividad sí contribuye sustancialmente a la sostenibilidad\",SUM(B125:L125),0),IF(AND('Base-datos'!$B$740=\"\",'Base-datos'!$B$741=\"Sí\",'Base-datos'!$B$742=\"Sí\"),IF(AND(O125=\"La actividad sí contribuye sustancialmente a la sostenibilidad\",M125=\"La actividad sí contribuye sustancialmente a la sostenibilidad\"),SUM(B125:L125),0),IF(AND('Base-datos'!$B$740=\"Sí\",'Base-datos'!$B$741=\"\",'Base-datos'!$B$742=\"Sí\"),IF(AND(N125=\"La actividad sí contribuye sustancialmente a la sostenibilidad\",M125=\"La actividad sí contribuye sustancialmente a la sostenibilidad\"),SUM(B125:L125),0),\"Por definir\"))))))))","v":"Por definir"}]
[{"$f":"Construcción!$C24","v":"Seleccione"},{"$f":"IF(Construcción!$E24='Fondos-Inversionistas'!B$12,Construcción!$B24,\"\")","v":""},{"$f":"IF(Construcción!$E24='Fondos-Inversionistas'!C$12,Construcción!$B24,\"\")","v":""},{"$f":"IF(Construcción!$E24='Fondos-Inversionistas'!D$12,Construcción!$B24,\"\")","v":""},{"$f":"IF(Construcción!$E24='Fondos-Inversionistas'!E$12,Construcción!$B24,\"\")","v":""},{"$f":"IF(Construcción!$E24='Fondos-Inversionistas'!F$12,Construcción!$B24,\"\")","v":""},{"$f":"IF(Construcción!$E24='Fondos-Inversionistas'!G$12,Construcción!$B24,\"\")","v":""},{"$f":"IF(Construcción!$E24='Fondos-Inversionistas'!H$12,Construcción!$B24,\"\")","v":""},{"$f":"IF(Construcción!$E24='Fondos-Inversionistas'!I$12,Construcción!$B24,\"\")","v":""},{"$f":"IF(Construcción!$E24='Fondos-Inversionistas'!J$12,Construcción!$B24,\"\")","v":""},{"$f":"IF(Construcción!$E24='Fondos-Inversionistas'!K$12,Construcción!$B24,\"\")","v":""},{"$f":"IF(Construcción!$E24='Fondos-Inversionistas'!L$12,Construcción!$B24,\"\")","v":""},{"$f":"_xlfn.XLOOKUP(A126,'Base-datos'!$B$537:$B$546,'Base-datos'!$F$537:$F$546)","v":{"$error":"#N/A"}},{"$f":"_xlfn.XLOOKUP(A126,'Base-datos'!$B$537:$B$546,'Base-datos'!$C$537:$C$546)","v":{"$error":"#N/A"}},{"$f":"_xlfn.XLOOKUP(A126,'Base-datos'!$B$537:$B$546,'Base-datos'!$D$537:$D$546)","v":{"$error":"#N/A"}},null,null,{"$f":"IF(OR(P$119=\"La actividad no cumple con el total de los criterios de No Daño Significativo\",Q$119=\"El sector no cumple con las salvaguardas mínimas\"),\"\",IF(AND('Base-datos'!$B$740=\"Sí\",'Base-datos'!$B$741=\"\",'Base-datos'!$B$742=\"\"),IF(N126=\"La actividad sí contribuye sustancialmente a la sostenibilidad\",SUM(B126:L126),0),IF(AND('Base-datos'!$B$740=\"Sí\",'Base-datos'!$B$741=\"Sí\",'Base-datos'!$B$742=\"\"),IF(AND(N126=\"La actividad sí contribuye sustancialmente a la sostenibilidad\",O126=\"La actividad sí contribuye sustancialmente a la sostenibilidad\"),SUM(B126:L126),0),IF(AND('Base-datos'!$B$740=\"Sí\",'Base-datos'!$B$741=\"Sí\",'Base-datos'!$B$742=\"Sí\"),IF(AND(N126=\"La actividad sí contribuye sustancialmente a la sostenibilidad\",O126=\"La actividad sí contribuye sustancialmente a la sostenibilidad\",M126=\"La actividad sí contribuye sustancialmente a la sostenibilidad\"),SUM(B126:L126),0),IF(AND('Base-datos'!$B$740=\"\",'Base-datos'!$B$741=\"Sí\",'Base-datos'!$B$742=\"\"),IF(O126=\"La actividad sí contribuye sustancialmente a la sostenibilidad\",SUM(B126:L126),0),IF(AND('Base-datos'!$B$740=\"\",'Base-datos'!$B$741=\"\",'Base-datos'!$B$742=\"Sí\"),IF(M126=\"La actividad sí contribuye sustancialmente a la sostenibilidad\",SUM(B126:L126),0),IF(AND('Base-datos'!$B$740=\"\",'Base-datos'!$B$741=\"Sí\",'Base-datos'!$B$742=\"Sí\"),IF(AND(O126=\"La actividad sí contribuye sustancialmente a la sostenibilidad\",M126=\"La actividad sí contribuye sustancialmente a la sostenibilidad\"),SUM(B126:L126),0),IF(AND('Base-datos'!$B$740=\"Sí\",'Base-datos'!$B$741=\"\",'Base-datos'!$B$742=\"Sí\"),IF(AND(N126=\"La actividad sí contribuye sustancialmente a la sostenibilidad\",M126=\"La actividad sí contribuye sustancialmente a la sostenibilidad\"),SUM(B126:L126),0),\"Por definir\"))))))))","v":"Por definir"}]
[{"$f":"Construcción!$C26","v":"Seleccione"},{"$f":"IF(Construcción!$E26='Fondos-Inversionistas'!B$12,Construcción!$B26,\"\")","v":""},{"$f":"IF(Construcción!$E26='Fondos-Inversionistas'!C$12,Construcción!$B26,\"\")","v":""},{"$f":"IF(Construcción!$E26='Fondos-Inversionistas'!D$12,Construcción!$B26,\"\")","v":""},{"$f":"IF(Construcción!$E26='Fondos-Inversionistas'!E$12,Construcción!$B26,\"\")","v":""},{"$f":"IF(Construcción!$E26='Fondos-Inversionistas'!F$12,Construcción!$B26,\"\")","v":""},{"$f":"IF(Construcción!$E26='Fondos-Inversionistas'!G$12,Construcción!$B26,\"\")","v":""},{"$f":"IF(Construcción!$E26='Fondos-Inversionistas'!H$12,Construcción!$B26,\"\")","v":""},{"$f":"IF(Construcción!$E26='Fondos-Inversionistas'!I$12,Construcción!$B26,\"\")","v":""},{"$f":"IF(Construcción!$E26='Fondos-Inversionistas'!J$12,Construcción!$B26,\"\")","v":""},{"$f":"IF(Construcción!$E26='Fondos-Inversionistas'!K$12,Construcción!$B26,\"\")","v":""},{"$f":"IF(Construcción!$E26='Fondos-Inversionistas'!L$12,Construcción!$B26,\"\")","v":""},{"$f":"_xlfn.XLOOKUP(A127,'Base-datos'!$B$537:$B$546,'Base-datos'!$F$537:$F$546)","v":{"$error":"#N/A"}},{"$f":"_xlfn.XLOOKUP(A127,'Base-datos'!$B$537:$B$546,'Base-datos'!$C$537:$C$546)","v":{"$error":"#N/A"}},{"$f":"_xlfn.XLOOKUP(A127,'Base-datos'!$B$537:$B$546,'Base-datos'!$D$537:$D$546)","v":{"$error":"#N/A"}},null,null,{"$f":"IF(OR(P$119=\"La actividad no cumple con el total de los criterios de No Daño Significativo\",Q$119=\"El sector no cumple con las salvaguardas mínimas\"),\"\",IF(AND('Base-datos'!$B$740=\"Sí\",'Base-datos'!$B$741=\"\",'Base-datos'!$B$742=\"\"),IF(N127=\"La actividad sí contribuye sustancialmente a la sostenibilidad\",SUM(B127:L127),0),IF(AND('Base-datos'!$B$740=\"Sí\",'Base-datos'!$B$741=\"Sí\",'Base-datos'!$B$742=\"\"),IF(AND(N127=\"La actividad sí contribuye sustancialmente a la sostenibilidad\",O127=\"La actividad sí contribuye sustancialmente a la sostenibilidad\"),SUM(B127:L127),0),IF(AND('Base-datos'!$B$740=\"Sí\",'Base-datos'!$B$741=\"Sí\",'Base-datos'!$B$742=\"Sí\"),IF(AND(N127=\"La actividad sí contribuye sustancialmente a la sostenibilidad\",O127=\"La actividad sí contribuye sustancialmente a la sostenibilidad\",M127=\"La actividad sí contribuye sustancialmente a la sostenibilidad\"),SUM(B127:L127),0),IF(AND('Base-datos'!$B$740=\"\",'Base-datos'!$B$741=\"Sí\",'Base-datos'!$B$742=\"\"),IF(O127=\"La actividad sí contribuye sustancialmente a la sostenibilidad\",SUM(B127:L127),0),IF(AND('Base-datos'!$B$740=\"\",'Base-datos'!$B$741=\"\",'Base-datos'!$B$742=\"Sí\"),IF(M127=\"La actividad sí contribuye sustancialmente a la sostenibilidad\",SUM(B127:L127),0),IF(AND('Base-datos'!$B$740=\"\",'Base-datos'!$B$741=\"Sí\",'Base-datos'!$B$742=\"Sí\"),IF(AND(O127=\"La actividad sí contribuye sustancialmente a la sostenibilidad\",M127=\"La actividad sí contribuye sustancialmente a la sostenibilidad\"),SUM(B127:L127),0),IF(AND('Base-datos'!$B$740=\"Sí\",'Base-datos'!$B$741=\"\",'Base-datos'!$B$742=\"Sí\"),IF(AND(N127=\"La actividad sí contribuye sustancialmente a la sostenibilidad\",M127=\"La actividad sí contribuye sustancialmente a la sostenibilidad\"),SUM(B127:L127),0),\"Por definir\"))))))))","v":"Por definir"}]
[{"$f":"Construcción!$C28","v":"Seleccione"},{"$f":"IF(Construcción!$E28='Fondos-Inversionistas'!B$12,Construcción!$B28,\"\")","v":""},{"$f":"IF(Construcción!$E28='Fondos-Inversionistas'!C$12,Construcción!$B28,\"\")","v":""},{"$f":"IF(Construcción!$E28='Fondos-Inversionistas'!D$12,Construcción!$B28,\"\")","v":""},{"$f":"IF(Construcción!$E28='Fondos-Inversionistas'!E$12,Construcción!$B28,\"\")","v":""},{"$f":"IF(Construcción!$E28='Fondos-Inversionistas'!F$12,Construcción!$B28,\"\")","v":""},{"$f":"IF(Construcción!$E28='Fondos-Inversionistas'!G$12,Construcción!$B28,\"\")","v":""},{"$f":"IF(Construcción!$E28='Fondos-Inversionistas'!H$12,Construcción!$B28,\"\")","v":""},{"$f":"IF(Construcción!$E28='Fondos-Inversionistas'!I$12,Construcción!$B28,\"\")","v":""},{"$f":"IF(Construcción!$E28='Fondos-Inversionistas'!J$12,Construcción!$B28,\"\")","v":""},{"$f":"IF(Construcción!$E28='Fondos-Inversionistas'!K$12,Construcción!$B28,\"\")","v":""},{"$f":"IF(Construcción!$E28='Fondos-Inversionistas'!L$12,Construcción!$B28,\"\")","v":""},{"$f":"_xlfn.XLOOKUP(A128,'Base-datos'!$B$537:$B$546,'Base-datos'!$F$537:$F$546)","v":{"$error":"#N/A"}},{"$f":"_xlfn.XLOOKUP(A128,'Base-datos'!$B$537:$B$546,'Base-datos'!$C$537:$C$546)","v":{"$error":"#N/A"}},{"$f":"_xlfn.XLOOKUP(A128,'Base-datos'!$B$537:$B$546,'Base-datos'!$D$537:$D$546)","v":{"$error":"#N/A"}},null,null,{"$f":"IF(OR(P$119=\"La actividad no cumple con el total de los criterios de No Daño Significativo\",Q$119=\"El sector no cumple con las salvaguardas mínimas\"),\"\",IF(AND('Base-datos'!$B$740=\"Sí\",'Base-datos'!$B$741=\"\",'Base-datos'!$B$742=\"\"),IF(N128=\"La actividad sí contribuye sustancialmente a la sostenibilidad\",SUM(B128:L128),0),IF(AND('Base-datos'!$B$740=\"Sí\",'Base-datos'!$B$741=\"Sí\",'Base-datos'!$B$742=\"\"),IF(AND(N128=\"La actividad sí contribuye sustancialmente a la sostenibilidad\",O128=\"La actividad sí contribuye sustancialmente a la sostenibilidad\"),SUM(B128:L128),0),IF(AND('Base-datos'!$B$740=\"Sí\",'Base-datos'!$B$741=\"Sí\",'Base-datos'!$B$742=\"Sí\"),IF(AND(N128=\"La actividad sí contribuye sustancialmente a la sostenibilidad\",O128=\"La actividad sí contribuye sustancialmente a la sostenibilidad\",M128=\"La actividad sí contribuye sustancialmente a la sostenibilidad\"),SUM(B128:L128),0),IF(AND('Base-datos'!$B$740=\"\",'Base-datos'!$B$741=\"Sí\",'Base-datos'!$B$742=\"\"),IF(O128=\"La actividad sí contribuye sustancialmente a la sostenibilidad\",SUM(B128:L128),0),IF(AND('Base-datos'!$B$740=\"\",'Base-datos'!$B$741=\"\",'Base-datos'!$B$742=\"Sí\"),IF(M128=\"La actividad sí contribuye sustancialmente a la sostenibilidad\",SUM(B128:L128),0),IF(AND('Base-datos'!$B$740=\"\",'Base-datos'!$B$741=\"Sí\",'Base-datos'!$B$742=\"Sí\"),IF(AND(O128=\"La actividad sí contribuye sustancialmente a la sostenibilidad\",M128=\"La actividad sí contribuye sustancialmente a la sostenibilidad\"),SUM(B128:L128),0),IF(AND('Base-datos'!$B$740=\"Sí\",'Base-datos'!$B$741=\"\",'Base-datos'!$B$742=\"Sí\"),IF(AND(N128=\"La actividad sí contribuye sustancialmente a la sostenibilidad\",M128=\"La actividad sí contribuye sustancialmente a la sostenibilidad\"),SUM(B128:L128),0),\"Por definir\"))))))))","v":"Por definir"}]
[{"$f":"Construcción!$C30","v":"Seleccione"},{"$f":"IF(Construcción!$E30='Fondos-Inversionistas'!B$12,Construcción!$B30,\"\")","v":""},{"$f":"IF(Construcción!$E30='Fondos-Inversionistas'!C$12,Construcción!$B30,\"\")","v":""},{"$f":"IF(Construcción!$E30='Fondos-Inversionistas'!D$12,Construcción!$B30,\"\")","v":""},{"$f":"IF(Construcción!$E30='Fondos-Inversionistas'!E$12,Construcción!$B30,\"\")","v":""},{"$f":"IF(Construcción!$E30='Fondos-Inversionistas'!F$12,Construcción!$B30,\"\")","v":""},{"$f":"IF(Construcción!$E30='Fondos-Inversionistas'!G$12,Construcción!$B30,\"\")","v":""},{"$f":"IF(Construcción!$E30='Fondos-Inversionistas'!H$12,Construcción!$B30,\"\")","v":""},{"$f":"IF(Construcción!$E30='Fondos-Inversionistas'!I$12,Construcción!$B30,\"\")","v":""},{"$f":"IF(Construcción!$E30='Fondos-Inversionistas'!J$12,Construcción!$B30,\"\")","v":""},{"$f":"IF(Construcción!$E30='Fondos-Inversionistas'!K$12,Construcción!$B30,\"\")","v":""},{"$f":"IF(Construcción!$E30='Fondos-Inversionistas'!L$12,Construcción!$B30,\"\")","v":""},{"$f":"_xlfn.XLOOKUP(A129,'Base-datos'!$B$537:$B$546,'Base-datos'!$F$537:$F$546)","v":{"$error":"#N/A"}},{"$f":"_xlfn.XLOOKUP(A129,'Base-datos'!$B$537:$B$546,'Base-datos'!$C$537:$C$546)","v":{"$error":"#N/A"}},{"$f":"_xlfn.XLOOKUP(A129,'Base-datos'!$B$537:$B$546,'Base-datos'!$D$537:$D$546)","v":{"$error":"#N/A"}},null,null,{"$f":"IF(OR(P$119=\"La actividad no cumple con el total de los criterios de No Daño Significativo\",Q$119=\"El sector no cumple con las salvaguardas mínimas\"),\"\",IF(AND('Base-datos'!$B$740=\"Sí\",'Base-datos'!$B$741=\"\",'Base-datos'!$B$742=\"\"),IF(N129=\"La actividad sí contribuye sustancialmente a la sostenibilidad\",SUM(B129:L129),0),IF(AND('Base-datos'!$B$740=\"Sí\",'Base-datos'!$B$741=\"Sí\",'Base-datos'!$B$742=\"\"),IF(AND(N129=\"La actividad sí contribuye sustancialmente a la sostenibilidad\",O129=\"La actividad sí contribuye sustancialmente a la sostenibilidad\"),SUM(B129:L129),0),IF(AND('Base-datos'!$B$740=\"Sí\",'Base-datos'!$B$741=\"Sí\",'Base-datos'!$B$742=\"Sí\"),IF(AND(N129=\"La actividad sí contribuye sustancialmente a la sostenibilidad\",O129=\"La actividad sí contribuye sustancialmente a la sostenibilidad\",M129=\"La actividad sí contribuye sustancialmente a la sostenibilidad\"),SUM(B129:L129),0),IF(AND('Base-datos'!$B$740=\"\",'Base-datos'!$B$741=\"Sí\",'Base-datos'!$B$742=\"\"),IF(O129=\"La actividad sí contribuye sustancialmente a la sostenibilidad\",SUM(B129:L129),0),IF(AND('Base-datos'!$B$740=\"\",'Base-datos'!$B$741=\"\",'Base-datos'!$B$742=\"Sí\"),IF(M129=\"La actividad sí contribuye sustancialmente a la sostenibilidad\",SUM(B129:L129),0),IF(AND('Base-datos'!$B$740=\"\",'Base-datos'!$B$741=\"Sí\",'Base-datos'!$B$742=\"Sí\"),IF(AND(O129=\"La actividad sí contribuye sustancialmente a la sostenibilidad\",M129=\"La actividad sí contribuye sustancialmente a la sostenibilidad\"),SUM(B129:L129),0),IF(AND('Base-datos'!$B$740=\"Sí\",'Base-datos'!$B$741=\"\",'Base-datos'!$B$742=\"Sí\"),IF(AND(N129=\"La actividad sí contribuye sustancialmente a la sostenibilidad\",M129=\"La actividad sí contribuye sustancialmente a la sostenibilidad\"),SUM(B129:L129),0),\"Por definir\"))))))))","v":"Por definir"}]
[{"$f":"Construcción!$C32","v":"Seleccione"},{"$f":"IF(Construcción!$E32='Fondos-Inversionistas'!B$12,Construcción!$B32,\"\")","v":""},{"$f":"IF(Construcción!$E32='Fondos-Inversionistas'!C$12,Construcción!$B32,\"\")","v":""},{"$f":"IF(Construcción!$E32='Fondos-Inversionistas'!D$12,Construcción!$B32,\"\")","v":""},{"$f":"IF(Construcción!$E32='Fondos-Inversionistas'!E$12,Construcción!$B32,\"\")","v":""},{"$f":"IF(Construcción!$E32='Fondos-Inversionistas'!F$12,Construcción!$B32,\"\")","v":""},{"$f":"IF(Construcción!$E32='Fondos-Inversionistas'!G$12,Construcción!$B32,\"\")","v":""},{"$f":"IF(Construcción!$E32='Fondos-Inversionistas'!H$12,Construcción!$B32,\"\")","v":""},{"$f":"IF(Construcción!$E32='Fondos-Inversionistas'!I$12,Construcción!$B32,\"\")","v":""},{"$f":"IF(Construcción!$E32='Fondos-Inversionistas'!J$12,Construcción!$B32,\"\")","v":""},{"$f":"IF(Construcción!$E32='Fondos-Inversionistas'!K$12,Construcción!$B32,\"\")","v":""},{"$f":"IF(Construcción!$E32='Fondos-Inversionistas'!L$12,Construcción!$B32,\"\")","v":""},{"$f":"_xlfn.XLOOKUP(A130,'Base-datos'!$B$537:$B$546,'Base-datos'!$F$537:$F$546)","v":{"$error":"#N/A"}},{"$f":"_xlfn.XLOOKUP(A130,'Base-datos'!$B$537:$B$546,'Base-datos'!$C$537:$C$546)","v":{"$error":"#N/A"}},{"$f":"_xlfn.XLOOKUP(A130,'Base-datos'!$B$537:$B$546,'Base-datos'!$D$537:$D$546)","v":{"$error":"#N/A"}},null,null,{"$f":"IF(OR(P$119=\"La actividad no cumple con el total de los criterios de No Daño Significativo\",Q$119=\"El sector no cumple con las salvaguardas mínimas\"),\"\",IF(AND('Base-datos'!$B$740=\"Sí\",'Base-datos'!$B$741=\"\",'Base-datos'!$B$742=\"\"),IF(N130=\"La actividad sí contribuye sustancialmente a la sostenibilidad\",SUM(B130:L130),0),IF(AND('Base-datos'!$B$740=\"Sí\",'Base-datos'!$B$741=\"Sí\",'Base-datos'!$B$742=\"\"),IF(AND(N130=\"La actividad sí contribuye sustancialmente a la sostenibilidad\",O130=\"La actividad sí contribuye sustancialmente a la sostenibilidad\"),SUM(B130:L130),0),IF(AND('Base-datos'!$B$740=\"Sí\",'Base-datos'!$B$741=\"Sí\",'Base-datos'!$B$742=\"Sí\"),IF(AND(N130=\"La actividad sí contribuye sustancialmente a la sostenibilidad\",O130=\"La actividad sí contribuye sustancialmente a la sostenibilidad\",M130=\"La actividad sí contribuye sustancialmente a la sostenibilidad\"),SUM(B130:L130),0),IF(AND('Base-datos'!$B$740=\"\",'Base-datos'!$B$741=\"Sí\",'Base-datos'!$B$742=\"\"),IF(O130=\"La actividad sí contribuye sustancialmente a la sostenibilidad\",SUM(B130:L130),0),IF(AND('Base-datos'!$B$740=\"\",'Base-datos'!$B$741=\"\",'Base-datos'!$B$742=\"Sí\"),IF(M130=\"La actividad sí contribuye sustancialmente a la sostenibilidad\",SUM(B130:L130),0),IF(AND('Base-datos'!$B$740=\"\",'Base-datos'!$B$741=\"Sí\",'Base-datos'!$B$742=\"Sí\"),IF(AND(O130=\"La actividad sí contribuye sustancialmente a la sostenibilidad\",M130=\"La actividad sí contribuye sustancialmente a la sostenibilidad\"),SUM(B130:L130),0),IF(AND('Base-datos'!$B$740=\"Sí\",'Base-datos'!$B$741=\"\",'Base-datos'!$B$742=\"Sí\"),IF(AND(N130=\"La actividad sí contribuye sustancialmente a la sostenibilidad\",M130=\"La actividad sí contribuye sustancialmente a la sostenibilidad\"),SUM(B130:L130),0),\"Por definir\"))))))))","v":"Por definir"}]
[{"$f":"Construcción!$C34","v":"Seleccione"},{"$f":"IF(Construcción!$E34='Fondos-Inversionistas'!B$12,Construcción!$B34,\"\")","v":""},{"$f":"IF(Construcción!$E34='Fondos-Inversionistas'!C$12,Construcción!$B34,\"\")","v":""},{"$f":"IF(Construcción!$E34='Fondos-Inversionistas'!D$12,Construcción!$B34,\"\")","v":""},{"$f":"IF(Construcción!$E34='Fondos-Inversionistas'!E$12,Construcción!$B34,\"\")","v":""},{"$f":"IF(Construcción!$E34='Fondos-Inversionistas'!F$12,Construcción!$B34,\"\")","v":""},{"$f":"IF(Construcción!$E34='Fondos-Inversionistas'!G$12,Construcción!$B34,\"\")","v":""},{"$f":"IF(Construcción!$E34='Fondos-Inversionistas'!H$12,Construcción!$B34,\"\")","v":""},{"$f":"IF(Construcción!$E34='Fondos-Inversionistas'!I$12,Construcción!$B34,\"\")","v":""},{"$f":"IF(Construcción!$E34='Fondos-Inversionistas'!J$12,Construcción!$B34,\"\")","v":""},{"$f":"IF(Construcción!$E34='Fondos-Inversionistas'!K$12,Construcción!$B34,\"\")","v":""},{"$f":"IF(Construcción!$E34='Fondos-Inversionistas'!L$12,Construcción!$B34,\"\")","v":""},{"$f":"_xlfn.XLOOKUP(A131,'Base-datos'!$B$537:$B$546,'Base-datos'!$F$537:$F$546)","v":{"$error":"#N/A"}},{"$f":"_xlfn.XLOOKUP(A131,'Base-datos'!$B$537:$B$546,'Base-datos'!$C$537:$C$546)","v":{"$error":"#N/A"}},{"$f":"_xlfn.XLOOKUP(A131,'Base-datos'!$B$537:$B$546,'Base-datos'!$D$537:$D$546)","v":{"$error":"#N/A"}},null,null,{"$f":"IF(OR(P$119=\"La actividad no cumple con el total de los criterios de No Daño Significativo\",Q$119=\"El sector no cumple con las salvaguardas mínimas\"),\"\",IF(AND('Base-datos'!$B$740=\"Sí\",'Base-datos'!$B$741=\"\",'Base-datos'!$B$742=\"\"),IF(N131=\"La actividad sí contribuye sustancialmente a la sostenibilidad\",SUM(B131:L131),0),IF(AND('Base-datos'!$B$740=\"Sí\",'Base-datos'!$B$741=\"Sí\",'Base-datos'!$B$742=\"\"),IF(AND(N131=\"La actividad sí contribuye sustancialmente a la sostenibilidad\",O131=\"La actividad sí contribuye sustancialmente a la sostenibilidad\"),SUM(B131:L131),0),IF(AND('Base-datos'!$B$740=\"Sí\",'Base-datos'!$B$741=\"Sí\",'Base-datos'!$B$742=\"Sí\"),IF(AND(N131=\"La actividad sí contribuye sustancialmente a la sostenibilidad\",O131=\"La actividad sí contribuye sustancialmente a la sostenibilidad\",M131=\"La actividad sí contribuye sustancialmente a la sostenibilidad\"),SUM(B131:L131),0),IF(AND('Base-datos'!$B$740=\"\",'Base-datos'!$B$741=\"Sí\",'Base-datos'!$B$742=\"\"),IF(O131=\"La actividad sí contribuye sustancialmente a la sostenibilidad\",SUM(B131:L131),0),IF(AND('Base-datos'!$B$740=\"\",'Base-datos'!$B$741=\"\",'Base-datos'!$B$742=\"Sí\"),IF(M131=\"La actividad sí contribuye sustancialmente a la sostenibilidad\",SUM(B131:L131),0),IF(AND('Base-datos'!$B$740=\"\",'Base-datos'!$B$741=\"Sí\",'Base-datos'!$B$742=\"Sí\"),IF(AND(O131=\"La actividad sí contribuye sustancialmente a la sostenibilidad\",M131=\"La actividad sí contribuye sustancialmente a la sostenibilidad\"),SUM(B131:L131),0),IF(AND('Base-datos'!$B$740=\"Sí\",'Base-datos'!$B$741=\"\",'Base-datos'!$B$742=\"Sí\"),IF(AND(N131=\"La actividad sí contribuye sustancialmente a la sostenibilidad\",M131=\"La actividad sí contribuye sustancialmente a la sostenibilidad\"),SUM(B131:L131),0),\"Por definir\"))))))))","v":"Por definir"}]
[{"$f":"Construcción!$C36","v":"Seleccione"},{"$f":"IF(Construcción!$E36='Fondos-Inversionistas'!B$12,Construcción!$B36,\"\")","v":""},{"$f":"IF(Construcción!$E36='Fondos-Inversionistas'!C$12,Construcción!$B36,\"\")","v":""},{"$f":"IF(Construcción!$E36='Fondos-Inversionistas'!D$12,Construcción!$B36,\"\")","v":""},{"$f":"IF(Construcción!$E36='Fondos-Inversionistas'!E$12,Construcción!$B36,\"\")","v":""},{"$f":"IF(Construcción!$E36='Fondos-Inversionistas'!F$12,Construcción!$B36,\"\")","v":""},{"$f":"IF(Construcción!$E36='Fondos-Inversionistas'!G$12,Construcción!$B36,\"\")","v":""},{"$f":"IF(Construcción!$E36='Fondos-Inversionistas'!H$12,Construcción!$B36,\"\")","v":""},{"$f":"IF(Construcción!$E36='Fondos-Inversionistas'!I$12,Construcción!$B36,\"\")","v":""},{"$f":"IF(Construcción!$E36='Fondos-Inversionistas'!J$12,Construcción!$B36,\"\")","v":""},{"$f":"IF(Construcción!$E36='Fondos-Inversionistas'!K$12,Construcción!$B36,\"\")","v":""},{"$f":"IF(Construcción!$E36='Fondos-Inversionistas'!L$12,Construcción!$B36,\"\")","v":""},{"$f":"_xlfn.XLOOKUP(A132,'Base-datos'!$B$537:$B$546,'Base-datos'!$F$537:$F$546)","v":{"$error":"#N/A"}},{"$f":"_xlfn.XLOOKUP(A132,'Base-datos'!$B$537:$B$546,'Base-datos'!$C$537:$C$546)","v":{"$error":"#N/A"}},{"$f":"_xlfn.XLOOKUP(A132,'Base-datos'!$B$537:$B$546,'Base-datos'!$D$537:$D$546)","v":{"$error":"#N/A"}},null,null,{"$f":"IF(OR(P$119=\"La actividad no cumple con el total de los criterios de No Daño Significativo\",Q$119=\"El sector no cumple con las salvaguardas mínimas\"),\"\",IF(AND('Base-datos'!$B$740=\"Sí\",'Base-datos'!$B$741=\"\",'Base-datos'!$B$742=\"\"),IF(N132=\"La actividad sí contribuye sustancialmente a la sostenibilidad\",SUM(B132:L132),0),IF(AND('Base-datos'!$B$740=\"Sí\",'Base-datos'!$B$741=\"Sí\",'Base-datos'!$B$742=\"\"),IF(AND(N132=\"La actividad sí contribuye sustancialmente a la sostenibilidad\",O132=\"La actividad sí contribuye sustancialmente a la sostenibilidad\"),SUM(B132:L132),0),IF(AND('Base-datos'!$B$740=\"Sí\",'Base-datos'!$B$741=\"Sí\",'Base-datos'!$B$742=\"Sí\"),IF(AND(N132=\"La actividad sí contribuye sustancialmente a la sostenibilidad\",O132=\"La actividad sí contribuye sustancialmente a la sostenibilidad\",M132=\"La actividad sí contribuye sustancialmente a la sostenibilidad\"),SUM(B132:L132),0),IF(AND('Base-datos'!$B$740=\"\",'Base-datos'!$B$741=\"Sí\",'Base-datos'!$B$742=\"\"),IF(O132=\"La actividad sí contribuye sustancialmente a la sostenibilidad\",SUM(B132:L132),0),IF(AND('Base-datos'!$B$740=\"\",'Base-datos'!$B$741=\"\",'Base-datos'!$B$742=\"Sí\"),IF(M132=\"La actividad sí contribuye sustancialmente a la sostenibilidad\",SUM(B132:L132),0),IF(AND('Base-datos'!$B$740=\"\",'Base-datos'!$B$741=\"Sí\",'Base-datos'!$B$742=\"Sí\"),IF(AND(O132=\"La actividad sí contribuye sustancialmente a la sostenibilidad\",M132=\"La actividad sí contribuye sustancialmente a la sostenibilidad\"),SUM(B132:L132),0),IF(AND('Base-datos'!$B$740=\"Sí\",'Base-datos'!$B$741=\"\",'Base-datos'!$B$742=\"Sí\"),IF(AND(N132=\"La actividad sí contribuye sustancialmente a la sostenibilidad\",M132=\"La actividad sí contribuye sustancialmente a la sostenibilidad\"),SUM(B132:L132),0),\"Por definir\"))))))))","v":"Por definir"}]
[{"$f":"Construcción!$C38","v":"Seleccione"},{"$f":"IF(Construcción!$E38='Fondos-Inversionistas'!B$12,Construcción!$B38,\"\")","v":""},{"$f":"IF(Construcción!$E38='Fondos-Inversionistas'!C$12,Construcción!$B38,\"\")","v":""},{"$f":"IF(Construcción!$E38='Fondos-Inversionistas'!D$12,Construcción!$B38,\"\")","v":""},{"$f":"IF(Construcción!$E38='Fondos-Inversionistas'!E$12,Construcción!$B38,\"\")","v":""},{"$f":"IF(Construcción!$E38='Fondos-Inversionistas'!F$12,Construcción!$B38,\"\")","v":""},{"$f":"IF(Construcción!$E38='Fondos-Inversionistas'!G$12,Construcción!$B38,\"\")","v":""},{"$f":"IF(Construcción!$E38='Fondos-Inversionistas'!H$12,Construcción!$B38,\"\")","v":""},{"$f":"IF(Construcción!$E38='Fondos-Inversionistas'!I$12,Construcción!$B38,\"\")","v":""},{"$f":"IF(Construcción!$E38='Fondos-Inversionistas'!J$12,Construcción!$B38,\"\")","v":""},{"$f":"IF(Construcción!$E38='Fondos-Inversionistas'!K$12,Construcción!$B38,\"\")","v":""},{"$f":"IF(Construcción!$E38='Fondos-Inversionistas'!L$12,Construcción!$B38,\"\")","v":""},{"$f":"_xlfn.XLOOKUP(A133,'Base-datos'!$B$537:$B$546,'Base-datos'!$F$537:$F$546)","v":{"$error":"#N/A"}},{"$f":"_xlfn.XLOOKUP(A133,'Base-datos'!$B$537:$B$546,'Base-datos'!$C$537:$C$546)","v":{"$error":"#N/A"}},{"$f":"_xlfn.XLOOKUP(A133,'Base-datos'!$B$537:$B$546,'Base-datos'!$D$537:$D$546)","v":{"$error":"#N/A"}},null,null,{"$f":"IF(OR(P$119=\"La actividad no cumple con el total de los criterios de No Daño Significativo\",Q$119=\"El sector no cumple con las salvaguardas mínimas\"),\"\",IF(AND('Base-datos'!$B$740=\"Sí\",'Base-datos'!$B$741=\"\",'Base-datos'!$B$742=\"\"),IF(N133=\"La actividad sí contribuye sustancialmente a la sostenibilidad\",SUM(B133:L133),0),IF(AND('Base-datos'!$B$740=\"Sí\",'Base-datos'!$B$741=\"Sí\",'Base-datos'!$B$742=\"\"),IF(AND(N133=\"La actividad sí contribuye sustancialmente a la sostenibilidad\",O133=\"La actividad sí contribuye sustancialmente a la sostenibilidad\"),SUM(B133:L133),0),IF(AND('Base-datos'!$B$740=\"Sí\",'Base-datos'!$B$741=\"Sí\",'Base-datos'!$B$742=\"Sí\"),IF(AND(N133=\"La actividad sí contribuye sustancialmente a la sostenibilidad\",O133=\"La actividad sí contribuye sustancialmente a la sostenibilidad\",M133=\"La actividad sí contribuye sustancialmente a la sostenibilidad\"),SUM(B133:L133),0),IF(AND('Base-datos'!$B$740=\"\",'Base-datos'!$B$741=\"Sí\",'Base-datos'!$B$742=\"\"),IF(O133=\"La actividad sí contribuye sustancialmente a la sostenibilidad\",SUM(B133:L133),0),IF(AND('Base-datos'!$B$740=\"\",'Base-datos'!$B$741=\"\",'Base-datos'!$B$742=\"Sí\"),IF(M133=\"La actividad sí contribuye sustancialmente a la sostenibilidad\",SUM(B133:L133),0),IF(AND('Base-datos'!$B$740=\"\",'Base-datos'!$B$741=\"Sí\",'Base-datos'!$B$742=\"Sí\"),IF(AND(O133=\"La actividad sí contribuye sustancialmente a la sostenibilidad\",M133=\"La actividad sí contribuye sustancialmente a la sostenibilidad\"),SUM(B133:L133),0),IF(AND('Base-datos'!$B$740=\"Sí\",'Base-datos'!$B$741=\"\",'Base-datos'!$B$742=\"Sí\"),IF(AND(N133=\"La actividad sí contribuye sustancialmente a la sostenibilidad\",M133=\"La actividad sí contribuye sustancialmente a la sostenibilidad\"),SUM(B133:L133),0),\"Por definir\"))))))))","v":"Por definir"}]
[{"$f":"Construcción!$C40","v":"Seleccione"},{"$f":"IF(Construcción!$E40='Fondos-Inversionistas'!B$12,Construcción!$B40,\"\")","v":""},{"$f":"IF(Construcción!$E40='Fondos-Inversionistas'!C$12,Construcción!$B40,\"\")","v":""},{"$f":"IF(Construcción!$E40='Fondos-Inversionistas'!D$12,Construcción!$B40,\"\")","v":""},{"$f":"IF(Construcción!$E40='Fondos-Inversionistas'!E$12,Construcción!$B40,\"\")","v":""},{"$f":"IF(Construcción!$E40='Fondos-Inversionistas'!F$12,Construcción!$B40,\"\")","v":""},{"$f":"IF(Construcción!$E40='Fondos-Inversionistas'!G$12,Construcción!$B40,\"\")","v":""},{"$f":"IF(Construcción!$E40='Fondos-Inversionistas'!H$12,Construcción!$B40,\"\")","v":""},{"$f":"IF(Construcción!$E40='Fondos-Inversionistas'!I$12,Construcción!$B40,\"\")","v":""},{"$f":"IF(Construcción!$E40='Fondos-Inversionistas'!J$12,Construcción!$B40,\"\")","v":""},{"$f":"IF(Construcción!$E40='Fondos-Inversionistas'!K$12,Construcción!$B40,\"\")","v":""},{"$f":"IF(Construcción!$E40='Fondos-Inversionistas'!L$12,Construcción!$B40,\"\")","v":""},{"$f":"_xlfn.XLOOKUP(A134,'Base-datos'!$B$537:$B$546,'Base-datos'!$F$537:$F$546)","v":{"$error":"#N/A"}},{"$f":"_xlfn.XLOOKUP(A134,'Base-datos'!$B$537:$B$546,'Base-datos'!$C$537:$C$546)","v":{"$error":"#N/A"}},{"$f":"_xlfn.XLOOKUP(A134,'Base-datos'!$B$537:$B$546,'Base-datos'!$D$537:$D$546)","v":{"$error":"#N/A"}},null,null,{"$f":"IF(OR(P$119=\"La actividad no cumple con el total de los criterios de No Daño Significativo\",Q$119=\"El sector no cumple con las salvaguardas mínimas\"),\"\",IF(AND('Base-datos'!$B$740=\"Sí\",'Base-datos'!$B$741=\"\",'Base-datos'!$B$742=\"\"),IF(N134=\"La actividad sí contribuye sustancialmente a la sostenibilidad\",SUM(B134:L134),0),IF(AND('Base-datos'!$B$740=\"Sí\",'Base-datos'!$B$741=\"Sí\",'Base-datos'!$B$742=\"\"),IF(AND(N134=\"La actividad sí contribuye sustancialmente a la sostenibilidad\",O134=\"La actividad sí contribuye sustancialmente a la sostenibilidad\"),SUM(B134:L134),0),IF(AND('Base-datos'!$B$740=\"Sí\",'Base-datos'!$B$741=\"Sí\",'Base-datos'!$B$742=\"Sí\"),IF(AND(N134=\"La actividad sí contribuye sustancialmente a la sostenibilidad\",O134=\"La actividad sí contribuye sustancialmente a la sostenibilidad\",M134=\"La actividad sí contribuye sustancialmente a la sostenibilidad\"),SUM(B134:L134),0),IF(AND('Base-datos'!$B$740=\"\",'Base-datos'!$B$741=\"Sí\",'Base-datos'!$B$742=\"\"),IF(O134=\"La actividad sí contribuye sustancialmente a la sostenibilidad\",SUM(B134:L134),0),IF(AND('Base-datos'!$B$740=\"\",'Base-datos'!$B$741=\"\",'Base-datos'!$B$742=\"Sí\"),IF(M134=\"La actividad sí contribuye sustancialmente a la sostenibilidad\",SUM(B134:L134),0),IF(AND('Base-datos'!$B$740=\"\",'Base-datos'!$B$741=\"Sí\",'Base-datos'!$B$742=\"Sí\"),IF(AND(O134=\"La actividad sí contribuye sustancialmente a la sostenibilidad\",M134=\"La actividad sí contribuye sustancialmente a la sostenibilidad\"),SUM(B134:L134),0),IF(AND('Base-datos'!$B$740=\"Sí\",'Base-datos'!$B$741=\"\",'Base-datos'!$B$742=\"Sí\"),IF(AND(N134=\"La actividad sí contribuye sustancialmente a la sostenibilidad\",M134=\"La actividad sí contribuye sustancialmente a la sostenibilidad\"),SUM(B134:L134),0),\"Por definir\"))))))))","v":"Por definir"}]
[{"$f":"Construcción!$C42","v":"Seleccione"},{"$f":"IF(Construcción!$E42='Fondos-Inversionistas'!B$12,Construcción!$B42,\"\")","v":""},{"$f":"IF(Construcción!$E42='Fondos-Inversionistas'!C$12,Construcción!$B42,\"\")","v":""},{"$f":"IF(Construcción!$E42='Fondos-Inversionistas'!D$12,Construcción!$B42,\"\")","v":""},{"$f":"IF(Construcción!$E42='Fondos-Inversionistas'!E$12,Construcción!$B42,\"\")","v":""},{"$f":"IF(Construcción!$E42='Fondos-Inversionistas'!F$12,Construcción!$B42,\"\")","v":""},{"$f":"IF(Construcción!$E42='Fondos-Inversionistas'!G$12,Construcción!$B42,\"\")","v":""},{"$f":"IF(Construcción!$E42='Fondos-Inversionistas'!H$12,Construcción!$B42,\"\")","v":""},{"$f":"IF(Construcción!$E42='Fondos-Inversionistas'!I$12,Construcción!$B42,\"\")","v":""},{"$f":"IF(Construcción!$E42='Fondos-Inversionistas'!J$12,Construcción!$B42,\"\")","v":""},{"$f":"IF(Construcción!$E42='Fondos-Inversionistas'!K$12,Construcción!$B42,\"\")","v":""},{"$f":"IF(Construcción!$E42='Fondos-Inversionistas'!L$12,Construcción!$B42,\"\")","v":""},{"$f":"_xlfn.XLOOKUP(A135,'Base-datos'!$B$537:$B$546,'Base-datos'!$F$537:$F$546)","v":{"$error":"#N/A"}},{"$f":"_xlfn.XLOOKUP(A135,'Base-datos'!$B$537:$B$546,'Base-datos'!$C$537:$C$546)","v":{"$error":"#N/A"}},{"$f":"_xlfn.XLOOKUP(A135,'Base-datos'!$B$537:$B$546,'Base-datos'!$D$537:$D$546)","v":{"$error":"#N/A"}},null,null,{"$f":"IF(OR(P$119=\"La actividad no cumple con el total de los criterios de No Daño Significativo\",Q$119=\"El sector no cumple con las salvaguardas mínimas\"),\"\",IF(AND('Base-datos'!$B$740=\"Sí\",'Base-datos'!$B$741=\"\",'Base-datos'!$B$742=\"\"),IF(N135=\"La actividad sí contribuye sustancialmente a la sostenibilidad\",SUM(B135:L135),0),IF(AND('Base-datos'!$B$740=\"Sí\",'Base-datos'!$B$741=\"Sí\",'Base-datos'!$B$742=\"\"),IF(AND(N135=\"La actividad sí contribuye sustancialmente a la sostenibilidad\",O135=\"La actividad sí contribuye sustancialmente a la sostenibilidad\"),SUM(B135:L135),0),IF(AND('Base-datos'!$B$740=\"Sí\",'Base-datos'!$B$741=\"Sí\",'Base-datos'!$B$742=\"Sí\"),IF(AND(N135=\"La actividad sí contribuye sustancialmente a la sostenibilidad\",O135=\"La actividad sí contribuye sustancialmente a la sostenibilidad\",M135=\"La actividad sí contribuye sustancialmente a la sostenibilidad\"),SUM(B135:L135),0),IF(AND('Base-datos'!$B$740=\"\",'Base-datos'!$B$741=\"Sí\",'Base-datos'!$B$742=\"\"),IF(O135=\"La actividad sí contribuye sustancialmente a la sostenibilidad\",SUM(B135:L135),0),IF(AND('Base-datos'!$B$740=\"\",'Base-datos'!$B$741=\"\",'Base-datos'!$B$742=\"Sí\"),IF(M135=\"La actividad sí contribuye sustancialmente a la sostenibilidad\",SUM(B135:L135),0),IF(AND('Base-datos'!$B$740=\"\",'Base-datos'!$B$741=\"Sí\",'Base-datos'!$B$742=\"Sí\"),IF(AND(O135=\"La actividad sí contribuye sustancialmente a la sostenibilidad\",M135=\"La actividad sí contribuye sustancialmente a la sostenibilidad\"),SUM(B135:L135),0),IF(AND('Base-datos'!$B$740=\"Sí\",'Base-datos'!$B$741=\"\",'Base-datos'!$B$742=\"Sí\"),IF(AND(N135=\"La actividad sí contribuye sustancialmente a la sostenibilidad\",M135=\"La actividad sí contribuye sustancialmente a la sostenibilidad\"),SUM(B135:L135),0),\"Por definir\"))))))))","v":"Por definir"}]
[{"$f":"Construcción!$C44","v":"Seleccione"},{"$f":"IF(Construcción!$E44='Fondos-Inversionistas'!B$12,Construcción!$B44,\"\")","v":""},{"$f":"IF(Construcción!$E44='Fondos-Inversionistas'!C$12,Construcción!$B44,\"\")","v":""},{"$f":"IF(Construcción!$E44='Fondos-Inversionistas'!D$12,Construcción!$B44,\"\")","v":""},{"$f":"IF(Construcción!$E44='Fondos-Inversionistas'!E$12,Construcción!$B44,\"\")","v":""},{"$f":"IF(Construcción!$E44='Fondos-Inversionistas'!F$12,Construcción!$B44,\"\")","v":""},{"$f":"IF(Construcción!$E44='Fondos-Inversionistas'!G$12,Construcción!$B44,\"\")","v":""},{"$f":"IF(Construcción!$E44='Fondos-Inversionistas'!H$12,Construcción!$B44,\"\")","v":""},{"$f":"IF(Construcción!$E44='Fondos-Inversionistas'!I$12,Construcción!$B44,\"\")","v":""},{"$f":"IF(Construcción!$E44='Fondos-Inversionistas'!J$12,Construcción!$B44,\"\")","v":""},{"$f":"IF(Construcción!$E44='Fondos-Inversionistas'!K$12,Construcción!$B44,\"\")","v":""},{"$f":"IF(Construcción!$E44='Fondos-Inversionistas'!L$12,Construcción!$B44,\"\")","v":""},{"$f":"_xlfn.XLOOKUP(A136,'Base-datos'!$B$537:$B$546,'Base-datos'!$F$537:$F$546)","v":{"$error":"#N/A"}},{"$f":"_xlfn.XLOOKUP(A136,'Base-datos'!$B$537:$B$546,'Base-datos'!$C$537:$C$546)","v":{"$error":"#N/A"}},{"$f":"_xlfn.XLOOKUP(A136,'Base-datos'!$B$537:$B$546,'Base-datos'!$D$537:$D$546)","v":{"$error":"#N/A"}},null,null,{"$f":"IF(OR(P$119=\"La actividad no cumple con el total de los criterios de No Daño Significativo\",Q$119=\"El sector no cumple con las salvaguardas mínimas\"),\"\",IF(AND('Base-datos'!$B$740=\"Sí\",'Base-datos'!$B$741=\"\",'Base-datos'!$B$742=\"\"),IF(N136=\"La actividad sí contribuye sustancialmente a la sostenibilidad\",SUM(B136:L136),0),IF(AND('Base-datos'!$B$740=\"Sí\",'Base-datos'!$B$741=\"Sí\",'Base-datos'!$B$742=\"\"),IF(AND(N136=\"La actividad sí contribuye sustancialmente a la sostenibilidad\",O136=\"La actividad sí contribuye sustancialmente a la sostenibilidad\"),SUM(B136:L136),0),IF(AND('Base-datos'!$B$740=\"Sí\",'Base-datos'!$B$741=\"Sí\",'Base-datos'!$B$742=\"Sí\"),IF(AND(N136=\"La actividad sí contribuye sustancialmente a la sostenibilidad\",O136=\"La actividad sí contribuye sustancialmente a la sostenibilidad\",M136=\"La actividad sí contribuye sustancialmente a la sostenibilidad\"),SUM(B136:L136),0),IF(AND('Base-datos'!$B$740=\"\",'Base-datos'!$B$741=\"Sí\",'Base-datos'!$B$742=\"\"),IF(O136=\"La actividad sí contribuye sustancialmente a la sostenibilidad\",SUM(B136:L136),0),IF(AND('Base-datos'!$B$740=\"\",'Base-datos'!$B$741=\"\",'Base-datos'!$B$742=\"Sí\"),IF(M136=\"La actividad sí contribuye sustancialmente a la sostenibilidad\",SUM(B136:L136),0),IF(AND('Base-datos'!$B$740=\"\",'Base-datos'!$B$741=\"Sí\",'Base-datos'!$B$742=\"Sí\"),IF(AND(O136=\"La actividad sí contribuye sustancialmente a la sostenibilidad\",M136=\"La actividad sí contribuye sustancialmente a la sostenibilidad\"),SUM(B136:L136),0),IF(AND('Base-datos'!$B$740=\"Sí\",'Base-datos'!$B$741=\"\",'Base-datos'!$B$742=\"Sí\"),IF(AND(N136=\"La actividad sí contribuye sustancialmente a la sostenibilidad\",M136=\"La actividad sí contribuye sustancialmente a la sostenibilidad\"),SUM(B136:L136),0),\"Por definir\"))))))))","v":"Por definir"}]
[{"$f":"Construcción!$C46","v":"Seleccione"},{"$f":"IF(Construcción!$E46='Fondos-Inversionistas'!B$12,Construcción!$B46,\"\")","v":""},{"$f":"IF(Construcción!$E46='Fondos-Inversionistas'!C$12,Construcción!$B46,\"\")","v":""},{"$f":"IF(Construcción!$E46='Fondos-Inversionistas'!D$12,Construcción!$B46,\"\")","v":""},{"$f":"IF(Construcción!$E46='Fondos-Inversionistas'!E$12,Construcción!$B46,\"\")","v":""},{"$f":"IF(Construcción!$E46='Fondos-Inversionistas'!F$12,Construcción!$B46,\"\")","v":""},{"$f":"IF(Construcción!$E46='Fondos-Inversionistas'!G$12,Construcción!$B46,\"\")","v":""},{"$f":"IF(Construcción!$E46='Fondos-Inversionistas'!H$12,Construcción!$B46,\"\")","v":""},{"$f":"IF(Construcción!$E46='Fondos-Inversionistas'!I$12,Construcción!$B46,\"\")","v":""},{"$f":"IF(Construcción!$E46='Fondos-Inversionistas'!J$12,Construcción!$B46,\"\")","v":""},{"$f":"IF(Construcción!$E46='Fondos-Inversionistas'!K$12,Construcción!$B46,\"\")","v":""},{"$f":"IF(Construcción!$E46='Fondos-Inversionistas'!L$12,Construcción!$B46,\"\")","v":""},{"$f":"_xlfn.XLOOKUP(A137,'Base-datos'!$B$537:$B$546,'Base-datos'!$F$537:$F$546)","v":{"$error":"#N/A"}},{"$f":"_xlfn.XLOOKUP(A137,'Base-datos'!$B$537:$B$546,'Base-datos'!$C$537:$C$546)","v":{"$error":"#N/A"}},{"$f":"_xlfn.XLOOKUP(A137,'Base-datos'!$B$537:$B$546,'Base-datos'!$D$537:$D$546)","v":{"$error":"#N/A"}},null,null,{"$f":"IF(OR(P$119=\"La actividad no cumple con el total de los criterios de No Daño Significativo\",Q$119=\"El sector no cumple con las salvaguardas mínimas\"),\"\",IF(AND('Base-datos'!$B$740=\"Sí\",'Base-datos'!$B$741=\"\",'Base-datos'!$B$742=\"\"),IF(N137=\"La actividad sí contribuye sustancialmente a la sostenibilidad\",SUM(B137:L137),0),IF(AND('Base-datos'!$B$740=\"Sí\",'Base-datos'!$B$741=\"Sí\",'Base-datos'!$B$742=\"\"),IF(AND(N137=\"La actividad sí contribuye sustancialmente a la sostenibilidad\",O137=\"La actividad sí contribuye sustancialmente a la sostenibilidad\"),SUM(B137:L137),0),IF(AND('Base-datos'!$B$740=\"Sí\",'Base-datos'!$B$741=\"Sí\",'Base-datos'!$B$742=\"Sí\"),IF(AND(N137=\"La actividad sí contribuye sustancialmente a la sostenibilidad\",O137=\"La actividad sí contribuye sustancialmente a la sostenibilidad\",M137=\"La actividad sí contribuye sustancialmente a la sostenibilidad\"),SUM(B137:L137),0),IF(AND('Base-datos'!$B$740=\"\",'Base-datos'!$B$741=\"Sí\",'Base-datos'!$B$742=\"\"),IF(O137=\"La actividad sí contribuye sustancialmente a la sostenibilidad\",SUM(B137:L137),0),IF(AND('Base-datos'!$B$740=\"\",'Base-datos'!$B$741=\"\",'Base-datos'!$B$742=\"Sí\"),IF(M137=\"La actividad sí contribuye sustancialmente a la sostenibilidad\",SUM(B137:L137),0),IF(AND('Base-datos'!$B$740=\"\",'Base-datos'!$B$741=\"Sí\",'Base-datos'!$B$742=\"Sí\"),IF(AND(O137=\"La actividad sí contribuye sustancialmente a la sostenibilidad\",M137=\"La actividad sí contribuye sustancialmente a la sostenibilidad\"),SUM(B137:L137),0),IF(AND('Base-datos'!$B$740=\"Sí\",'Base-datos'!$B$741=\"\",'Base-datos'!$B$742=\"Sí\"),IF(AND(N137=\"La actividad sí contribuye sustancialmente a la sostenibilidad\",M137=\"La actividad sí contribuye sustancialmente a la sostenibilidad\"),SUM(B137:L137),0),\"Por definir\"))))))))","v":"Por definir"}]
[{"$f":"Construcción!$C48","v":"Seleccione"},{"$f":"IF(Construcción!$E48='Fondos-Inversionistas'!B$12,Construcción!$B48,\"\")","v":""},{"$f":"IF(Construcción!$E48='Fondos-Inversionistas'!C$12,Construcción!$B48,\"\")","v":""},{"$f":"IF(Construcción!$E48='Fondos-Inversionistas'!D$12,Construcción!$B48,\"\")","v":""},{"$f":"IF(Construcción!$E48='Fondos-Inversionistas'!E$12,Construcción!$B48,\"\")","v":""},{"$f":"IF(Construcción!$E48='Fondos-Inversionistas'!F$12,Construcción!$B48,\"\")","v":""},{"$f":"IF(Construcción!$E48='Fondos-Inversionistas'!G$12,Construcción!$B48,\"\")","v":""},{"$f":"IF(Construcción!$E48='Fondos-Inversionistas'!H$12,Construcción!$B48,\"\")","v":""},{"$f":"IF(Construcción!$E48='Fondos-Inversionistas'!I$12,Construcción!$B48,\"\")","v":""},{"$f":"IF(Construcción!$E48='Fondos-Inversionistas'!J$12,Construcción!$B48,\"\")","v":""},{"$f":"IF(Construcción!$E48='Fondos-Inversionistas'!K$12,Construcción!$B48,\"\")","v":""},{"$f":"IF(Construcción!$E48='Fondos-Inversionistas'!L$12,Construcción!$B48,\"\")","v":""},{"$f":"_xlfn.XLOOKUP(A138,'Base-datos'!$B$537:$B$546,'Base-datos'!$F$537:$F$546)","v":{"$error":"#N/A"}},{"$f":"_xlfn.XLOOKUP(A138,'Base-datos'!$B$537:$B$546,'Base-datos'!$C$537:$C$546)","v":{"$error":"#N/A"}},{"$f":"_xlfn.XLOOKUP(A138,'Base-datos'!$B$537:$B$546,'Base-datos'!$D$537:$D$546)","v":{"$error":"#N/A"}},null,null,{"$f":"IF(OR(P$119=\"La actividad no cumple con el total de los criterios de No Daño Significativo\",Q$119=\"El sector no cumple con las salvaguardas mínimas\"),\"\",IF(AND('Base-datos'!$B$740=\"Sí\",'Base-datos'!$B$741=\"\",'Base-datos'!$B$742=\"\"),IF(N138=\"La actividad sí contribuye sustancialmente a la sostenibilidad\",SUM(B138:L138),0),IF(AND('Base-datos'!$B$740=\"Sí\",'Base-datos'!$B$741=\"Sí\",'Base-datos'!$B$742=\"\"),IF(AND(N138=\"La actividad sí contribuye sustancialmente a la sostenibilidad\",O138=\"La actividad sí contribuye sustancialmente a la sostenibilidad\"),SUM(B138:L138),0),IF(AND('Base-datos'!$B$740=\"Sí\",'Base-datos'!$B$741=\"Sí\",'Base-datos'!$B$742=\"Sí\"),IF(AND(N138=\"La actividad sí contribuye sustancialmente a la sostenibilidad\",O138=\"La actividad sí contribuye sustancialmente a la sostenibilidad\",M138=\"La actividad sí contribuye sustancialmente a la sostenibilidad\"),SUM(B138:L138),0),IF(AND('Base-datos'!$B$740=\"\",'Base-datos'!$B$741=\"Sí\",'Base-datos'!$B$742=\"\"),IF(O138=\"La actividad sí contribuye sustancialmente a la sostenibilidad\",SUM(B138:L138),0),IF(AND('Base-datos'!$B$740=\"\",'Base-datos'!$B$741=\"\",'Base-datos'!$B$742=\"Sí\"),IF(M138=\"La actividad sí contribuye sustancialmente a la sostenibilidad\",SUM(B138:L138),0),IF(AND('Base-datos'!$B$740=\"\",'Base-datos'!$B$741=\"Sí\",'Base-datos'!$B$742=\"Sí\"),IF(AND(O138=\"La actividad sí contribuye sustancialmente a la sostenibilidad\",M138=\"La actividad sí contribuye sustancialmente a la sostenibilidad\"),SUM(B138:L138),0),IF(AND('Base-datos'!$B$740=\"Sí\",'Base-datos'!$B$741=\"\",'Base-datos'!$B$742=\"Sí\"),IF(AND(N138=\"La actividad sí contribuye sustancialmente a la sostenibilidad\",M138=\"La actividad sí contribuye sustancialmente a la sostenibilidad\"),SUM(B138:L138),0),\"Por definir\"))))))))","v":"Por definir"}]
["Manufactura",null,null,null,null,null,null,null,null,null,null,null,null,null,null,null,null,{"$f":"SUM(IF(FREQUENCY(MATCH(A140:A159, A140:A159, 0), MATCH(A140:A159, A140:A159, 0)) > 0, IF(NOT(ISERROR(R140:R159)), R140:R159, 0)))","v":0}]
[{"$f":"Manufactura!$C10","v":"Seleccione"},{"$f":"IF(Manufactura!$E10='Fondos-Inversionistas'!B$12,Manufactura!$B10,\"\")","v":""},{"$f":"IF(Manufactura!$E10='Fondos-Inversionistas'!C$12,Manufactura!$B10,\"\")","v":""},{"$f":"IF(Manufactura!$E10='Fondos-Inversionistas'!D$12,Manufactura!$B10,\"\")","v":""},{"$f":"IF(Manufactura!$E10='Fondos-Inversionistas'!E$12,Manufactura!$B10,\"\")","v":""},{"$f":"IF(Manufactura!$E10='Fondos-Inversionistas'!F$12,Manufactura!$B10,\"\")","v":""},{"$f":"IF(Manufactura!$E10='Fondos-Inversionistas'!G$12,Manufactura!$B10,\"\")","v":""},{"$f":"IF(Manufactura!$E10='Fondos-Inversionistas'!H$12,Manufactura!$B10,\"\")","v":""},{"$f":"IF(Manufactura!$E10='Fondos-Inversionistas'!I$12,Manufactura!$B10,\"\")","v":""},{"$f":"IF(Manufactura!$E10='Fondos-Inversionistas'!J$12,Manufactura!$B10,\"\")","v":""},{"$f":"IF(Manufactura!$E10='Fondos-Inversionistas'!K$12,Manufactura!$B10,\"\")","v":""},{"$f":"IF(Manufactura!$E10='Fondos-Inversionistas'!L$12,Manufactura!$B10,\"\")","v":""},{"$f":"_xlfn.XLOOKUP(A140,'Base-datos'!$B$547:$B$552,'Base-datos'!$F$547:$F$552)","v":{"$error":"#N/A"}},{"$f":"_xlfn.XLOOKUP(A140,'Base-datos'!$B$547:$B$552,'Base-datos'!$C$547:$C$552)","v":{"$error":"#N/A"}},{"$f":"_xlfn.XLOOKUP(A140,'Base-datos'!$B$547:$B$552,'Base-datos'!$D$547:$D$552)","v":{"$error":"#N/A"}},{"$f":"IF(COUNTIF('Manufactura-NDS'!G9:G85,\"No\")>0,\"La actividad no cumple con el total de los criterios de NDS\",\"La actividad cumple con los criterios de No Daño Significativo\")","v":"La actividad cumple con los criterios de No Daño Significativo"},{"$f":"IF(OR('Salvaguardas mínimas'!$G$10=\"Seleccione\",'Salvaguardas mínimas'!$G$13=\"Seleccione\",'Salvaguardas mínimas'!$G$16=\"Seleccione\",'Salvaguardas mínimas'!$G$7=\"Seleccione\"),\"No se han respondido todas las preguntas\",IF(OR('Salvaguardas mínimas'!$G$10=\"No\",'Salvaguardas mínimas'!$G$13=\"No\",'Salvaguardas mínimas'!$G$16=\"No\",'Salvaguardas mínimas'!$G$7=\"No\"),\"El sector no cumple con las salvaguardas mínimas\",\"La actividad sí cumple con las salvaguardas mínimas\"))","v":"No se han respondido todas las preguntas"},{"$f":"IF(OR(P$140=\"La actividad no cumple con el total de los criterios de No Daño Significativo\",Q$140=\"El sector no cumple con las salvaguardas mínimas\"),\"\",IF(AND('Base-datos'!$B$745=\"Sí\",'Base-datos'!$B$746=\"\",'Base-datos'!$B$747=\"\"),IF(N140=\"La actividad sí contribuye sustancialmente a la sostenibilidad\",SUM(B140:L140),0),IF(AND('Base-datos'!$B$745=\"Sí\",'Base-datos'!$B$746=\"Sí\",'Base-datos'!$B$747=\"\"),IF(AND(N140=\"La actividad sí contribuye sustancialmente a la sostenibilidad\",O140=\"La actividad sí contribuye sustancialmente a la sostenibilidad\"),SUM(B140:L140),0),IF(AND('Base-datos'!$B$745=\"Sí\",'Base-datos'!$B$746=\"Sí\",'Base-datos'!$B$747=\"Sí\"),IF(AND(N140=\"La actividad sí contribuye sustancialmente a la sostenibilidad\",O140=\"La actividad sí contribuye sustancialmente a la sostenibilidad\",M140=\"La actividad sí contribuye sustancialmente a la sostenibilidad\"),SUM(B140:L140),0),IF(AND('Base-datos'!$B$745=\"\",'Base-datos'!$B$746=\"Sí\",'Base-datos'!$B$747=\"\"),IF(O140=\"La actividad sí contribuye sustancialmente a la sostenibilidad\",SUM(B140:L140),0),IF(AND('Base-datos'!$B$745=\"\",'Base-datos'!$B$746=\"\",'Base-datos'!$B$747=\"Sí\"),IF(M140=\"La actividad sí contribuye sustancialmente a la sostenibilidad\",SUM(B140:L140),0),IF(AND('Base-datos'!$B$745=\"\",'Base-datos'!$B$746=\"Sí\",'Base-datos'!$B$747=\"Sí\"),IF(AND(O140=\"La actividad sí contribuye sustancialmente a la sostenibilidad\",M140=\"La actividad sí contribuye sustancialmente a la sostenibilidad\"),SUM(B140:L140),0),IF(AND('Base-datos'!$B$745=\"Sí\",'Base-datos'!$B$746=\"\",'Base-datos'!$B$747=\"Sí\"),IF(AND(N140=\"La actividad sí contribuye sustancialmente a la sostenibilidad\",M140=\"La actividad sí contribuye sustancialmente a la sostenibilidad\"),SUM(B140:L140),0),\"Por definir\"))))))))","v":"Por definir"}]
[{"$f":"Manufactura!$C12","v":"Seleccione"},{"$f":"IF(Manufactura!$E12='Fondos-Inversionistas'!B$12,Manufactura!$B12,\"\")","v":""},{"$f":"IF(Manufactura!$E12='Fondos-Inversionistas'!C$12,Manufactura!$B12,\"\")","v":""},{"$f":"IF(Manufactura!$E12='Fondos-Inversionistas'!D$12,Manufactura!$B12,\"\")","v":""},{"$f":"IF(Manufactura!$E12='Fondos-Inversionistas'!E$12,Manufactura!$B12,\"\")","v":""},{"$f":"IF(Manufactura!$E12='Fondos-Inversionistas'!F$12,Manufactura!$B12,\"\")","v":""},{"$f":"IF(Manufactura!$E12='Fondos-Inversionistas'!G$12,Manufactura!$B12,\"\")","v":""},{"$f":"IF(Manufactura!$E12='Fondos-Inversionistas'!H$12,Manufactura!$B12,\"\")","v":""},{"$f":"IF(Manufactura!$E12='Fondos-Inversionistas'!I$12,Manufactura!$B12,\"\")","v":""},{"$f":"IF(Manufactura!$E12='Fondos-Inversionistas'!J$12,Manufactura!$B12,\"\")","v":""},{"$f":"IF(Manufactura!$E12='Fondos-Inversionistas'!K$12,Manufactura!$B12,\"\")","v":""},{"$f":"IF(Manufactura!$E12='Fondos-Inversionistas'!L$12,Manufactura!$B12,\"\")","v":""},{"$f":"_xlfn.XLOOKUP(A141,'Base-datos'!$B$547:$B$552,'Base-datos'!$F$547:$F$552)","v":{"$error":"#N/A"}},{"$f":"_xlfn.XLOOKUP(A141,'Base-datos'!$B$547:$B$552,'Base-datos'!$C$547:$C$552)","v":{"$error":"#N/A"}},{"$f":"_xlfn.XLOOKUP(A141,'Base-datos'!$B$547:$B$552,'Base-datos'!$D$547:$D$552)","v":{"$error":"#N/A"}},null,null,{"$f":"IF(OR(P$140=\"La actividad no cumple con el total de los criterios de No Daño Significativo\",Q$140=\"El sector no cumple con las salvaguardas mínimas\"),\"\",IF(AND('Base-datos'!$B$745=\"Sí\",'Base-datos'!$B$746=\"\",'Base-datos'!$B$747=\"\"),IF(N141=\"La actividad sí contribuye sustancialmente a la sostenibilidad\",SUM(B141:L141),0),IF(AND('Base-datos'!$B$745=\"Sí\",'Base-datos'!$B$746=\"Sí\",'Base-datos'!$B$747=\"\"),IF(AND(N141=\"La actividad sí contribuye sustancialmente a la sostenibilidad\",O141=\"La actividad sí contribuye sustancialmente a la sostenibilidad\"),SUM(B141:L141),0),IF(AND('Base-datos'!$B$745=\"Sí\",'Base-datos'!$B$746=\"Sí\",'Base-datos'!$B$747=\"Sí\"),IF(AND(N141=\"La actividad sí contribuye sustancialmente a la sostenibilidad\",O141=\"La actividad sí contribuye sustancialmente a la sostenibilidad\",M141=\"La actividad sí contribuye sustancialmente a la sostenibilidad\"),SUM(B141:L141),0),IF(AND('Base-datos'!$B$745=\"\",'Base-datos'!$B$746=\"Sí\",'Base-datos'!$B$747=\"\"),IF(O141=\"La actividad sí contribuye sustancialmente a la sostenibilidad\",SUM(B141:L141),0),IF(AND('Base-datos'!$B$745=\"\",'Base-datos'!$B$746=\"\",'Base-datos'!$B$747=\"Sí\"),IF(M141=\"La actividad sí contribuye sustancialmente a la sostenibilidad\",SUM(B141:L141),0),IF(AND('Base-datos'!$B$745=\"\",'Base-datos'!$B$746=\"Sí\",'Base-datos'!$B$747=\"Sí\"),IF(AND(O141=\"La actividad sí contribuye sustancialmente a la sostenibilidad\",M141=\"La actividad sí contribuye sustancialmente a la sostenibilidad\"),SUM(B141:L141),0),IF(AND('Base-datos'!$B$745=\"Sí\",'Base-datos'!$B$746=\"\",'Base-datos'!$B$747=\"Sí\"),IF(AND(N141=\"La actividad sí contribuye sustancialmente a la sostenibilidad\",M141=\"La actividad sí contribuye sustancialmente a la sostenibilidad\"),SUM(B141:L141),0),\"Por definir\"))))))))","v":"Por definir"}]
[{"$f":"Manufactura!$C14","v":"Seleccione"},{"$f":"IF(Manufactura!$E14='Fondos-Inversionistas'!B$12,Manufactura!$B14,\"\")","v":""},{"$f":"IF(Manufactura!$E14='Fondos-Inversionistas'!C$12,Manufactura!$B14,\"\")","v":""},{"$f":"IF(Manufactura!$E14='Fondos-Inversionistas'!D$12,Manufactura!$B14,\"\")","v":""},{"$f":"IF(Manufactura!$E14='Fondos-Inversionistas'!E$12,Manufactura!$B14,\"\")","v":""},{"$f":"IF(Manufactura!$E14='Fondos-Inversionistas'!F$12,Manufactura!$B14,\"\")","v":""},{"$f":"IF(Manufactura!$E14='Fondos-Inversionistas'!G$12,Manufactura!$B14,\"\")","v":""},{"$f":"IF(Manufactura!$E14='Fondos-Inversionistas'!H$12,Manufactura!$B14,\"\")","v":""},{"$f":"IF(Manufactura!$E14='Fondos-Inversionistas'!I$12,Manufactura!$B14,\"\")","v":""},{"$f":"IF(Manufactura!$E14='Fondos-Inversionistas'!J$12,Manufactura!$B14,\"\")","v":""},{"$f":"IF(Manufactura!$E14='Fondos-Inversionistas'!K$12,Manufactura!$B14,\"\")","v":""},{"$f":"IF(Manufactura!$E14='Fondos-Inversionistas'!L$12,Manufactura!$B14,\"\")","v":""},{"$f":"_xlfn.XLOOKUP(A142,'Base-datos'!$B$547:$B$552,'Base-datos'!$F$547:$F$552)","v":{"$error":"#N/A"}},{"$f":"_xlfn.XLOOKUP(A142,'Base-datos'!$B$547:$B$552,'Base-datos'!$C$547:$C$552)","v":{"$error":"#N/A"}},{"$f":"_xlfn.XLOOKUP(A142,'Base-datos'!$B$547:$B$552,'Base-datos'!$D$547:$D$552)","v":{"$error":"#N/A"}},null,null,{"$f":"IF(OR(P$140=\"La actividad no cumple con el total de los criterios de No Daño Significativo\",Q$140=\"El sector no cumple con las salvaguardas mínimas\"),\"\",IF(AND('Base-datos'!$B$745=\"Sí\",'Base-datos'!$B$746=\"\",'Base-datos'!$B$747=\"\"),IF(N142=\"La actividad sí contribuye sustancialmente a la sostenibilidad\",SUM(B142:L142),0),IF(AND('Base-datos'!$B$745=\"Sí\",'Base-datos'!$B$746=\"Sí\",'Base-datos'!$B$747=\"\"),IF(AND(N142=\"La actividad sí contribuye sustancialmente a la sostenibilidad\",O142=\"La actividad sí contribuye sustancialmente a la sostenibilidad\"),SUM(B142:L142),0),IF(AND('Base-datos'!$B$745=\"Sí\",'Base-datos'!$B$746=\"Sí\",'Base-datos'!$B$747=\"Sí\"),IF(AND(N142=\"La actividad sí contribuye sustancialmente a la sostenibilidad\",O142=\"La actividad sí contribuye sustancialmente a la sostenibilidad\",M142=\"La actividad sí contribuye sustancialmente a la sostenibilidad\"),SUM(B142:L142),0),IF(AND('Base-datos'!$B$745=\"\",'Base-datos'!$B$746=\"Sí\",'Base-datos'!$B$747=\"\"),IF(O142=\"La actividad sí contribuye sustancialmente a la sostenibilidad\",SUM(B142:L142),0),IF(AND('Base-datos'!$B$745=\"\",'Base-datos'!$B$746=\"\",'Base-datos'!$B$747=\"Sí\"),IF(M142=\"La actividad sí contribuye sustancialmente a la sostenibilidad\",SUM(B142:L142),0),IF(AND('Base-datos'!$B$745=\"\",'Base-datos'!$B$746=\"Sí\",'Base-datos'!$B$747=\"Sí\"),IF(AND(O142=\"La actividad sí contribuye sustancialmente a la sostenibilidad\",M142=\"La actividad sí contribuye sustancialmente a la sostenibilidad\"),SUM(B142:L142),0),IF(AND('Base-datos'!$B$745=\"Sí\",'Base-datos'!$B$746=\"\",'Base-datos'!$B$747=\"Sí\"),IF(AND(N142=\"La actividad sí contribuye sustancialmente a la sostenibilidad\",M142=\"La actividad sí contribuye sustancialmente a la sostenibilidad\"),SUM(B142:L142),0),\"Por definir\"))))))))","v":"Por definir"}]
[{"$f":"Manufactura!$C16","v":"Seleccione"},{"$f":"IF(Manufactura!$E16='Fondos-Inversionistas'!B$12,Manufactura!$B16,\"\")","v":""},{"$f":"IF(Manufactura!$E16='Fondos-Inversionistas'!C$12,Manufactura!$B16,\"\")","v":""},{"$f":"IF(Manufactura!$E16='Fondos-Inversionistas'!D$12,Manufactura!$B16,\"\")","v":""},{"$f":"IF(Manufactura!$E16='Fondos-Inversionistas'!E$12,Manufactura!$B16,\"\")","v":""},{"$f":"IF(Manufactura!$E16='Fondos-Inversionistas'!F$12,Manufactura!$B16,\"\")","v":""},{"$f":"IF(Manufactura!$E16='Fondos-Inversionistas'!G$12,Manufactura!$B16,\"\")","v":""},{"$f":"IF(Manufactura!$E16='Fondos-Inversionistas'!H$12,Manufactura!$B16,\"\")","v":""},{"$f":"IF(Manufactura!$E16='Fondos-Inversionistas'!I$12,Manufactura!$B16,\"\")","v":""},{"$f":"IF(Manufactura!$E16='Fondos-Inversionistas'!J$12,Manufactura!$B16,\"\")","v":""},{"$f":"IF(Manufactura!$E16='Fondos-Inversionistas'!K$12,Manufactura!$B16,\"\")","v":""},{"$f":"IF(Manufactura!$E16='Fondos-Inversionistas'!L$12,Manufactura!$B16,\"\")","v":""},{"$f":"_xlfn.XLOOKUP(A143,'Base-datos'!$B$547:$B$552,'Base-datos'!$F$547:$F$552)","v":{"$error":"#N/A"}},{"$f":"_xlfn.XLOOKUP(A143,'Base-datos'!$B$547:$B$552,'Base-datos'!$C$547:$C$552)","v":{"$error":"#N/A"}},{"$f":"_xlfn.XLOOKUP(A143,'Base-datos'!$B$547:$B$552,'Base-datos'!$D$547:$D$552)","v":{"$error":"#N/A"}},null,null,{"$f":"IF(OR(P$140=\"La actividad no cumple con el total de los criterios de No Daño Significativo\",Q$140=\"El sector no cumple con las salvaguardas mínimas\"),\"\",IF(AND('Base-datos'!$B$745=\"Sí\",'Base-datos'!$B$746=\"\",'Base-datos'!$B$747=\"\"),IF(N143=\"La actividad sí contribuye sustancialmente a la sostenibilidad\",SUM(B143:L143),0),IF(AND('Base-datos'!$B$745=\"Sí\",'Base-datos'!$B$746=\"Sí\",'Base-datos'!$B$747=\"\"),IF(AND(N143=\"La actividad sí contribuye sustancialmente a la sostenibilidad\",O143=\"La actividad sí contribuye sustancialmente a la sostenibilidad\"),SUM(B143:L143),0),IF(AND('Base-datos'!$B$745=\"Sí\",'Base-datos'!$B$746=\"Sí\",'Base-datos'!$B$747=\"Sí\"),IF(AND(N143=\"La actividad sí contribuye sustancialmente a la sostenibilidad\",O143=\"La actividad sí contribuye sustancialmente a la sostenibilidad\",M143=\"La actividad sí contribuye sustancialmente a la sostenibilidad\"),SUM(B143:L143),0),IF(AND('Base-datos'!$B$745=\"\",'Base-datos'!$B$746=\"Sí\",'Base-datos'!$B$747=\"\"),IF(O143=\"La actividad sí contribuye sustancialmente a la sostenibilidad\",SUM(B143:L143),0),IF(AND('Base-datos'!$B$745=\"\",'Base-datos'!$B$746=\"\",'Base-datos'!$B$747=\"Sí\"),IF(M143=\"La actividad sí contribuye sustancialmente a la sostenibilidad\",SUM(B143:L143),0),IF(AND('Base-datos'!$B$745=\"\",'Base-datos'!$B$746=\"Sí\",'Base-datos'!$B$747=\"Sí\"),IF(AND(O143=\"La actividad sí contribuye sustancialmente a la sostenibilidad\",M143=\"La actividad sí contribuye sustancialmente a la sostenibilidad\"),SUM(B143:L143),0),IF(AND('Base-datos'!$B$745=\"Sí\",'Base-datos'!$B$746=\"\",'Base-datos'!$B$747=\"Sí\"),IF(AND(N143=\"La actividad sí contribuye sustancialmente a la sostenibilidad\",M143=\"La actividad sí contribuye sustancialmente a la sostenibilidad\"),SUM(B143:L143),0),\"Por definir\"))))))))","v":"Por definir"}]
[{"$f":"Manufactura!$C18","v":"Seleccione"},{"$f":"IF(Manufactura!$E18='Fondos-Inversionistas'!B$12,Manufactura!$B18,\"\")","v":""},{"$f":"IF(Manufactura!$E18='Fondos-Inversionistas'!C$12,Manufactura!$B18,\"\")","v":""},{"$f":"IF(Manufactura!$E18='Fondos-Inversionistas'!D$12,Manufactura!$B18,\"\")","v":""},{"$f":"IF(Manufactura!$E18='Fondos-Inversionistas'!E$12,Manufactura!$B18,\"\")","v":""},{"$f":"IF(Manufactura!$E18='Fondos-Inversionistas'!F$12,Manufactura!$B18,\"\")","v":""},{"$f":"IF(Manufactura!$E18='Fondos-Inversionistas'!G$12,Manufactura!$B18,\"\")","v":""},{"$f":"IF(Manufactura!$E18='Fondos-Inversionistas'!H$12,Manufactura!$B18,\"\")","v":""},{"$f":"IF(Manufactura!$E18='Fondos-Inversionistas'!I$12,Manufactura!$B18,\"\")","v":""},{"$f":"IF(Manufactura!$E18='Fondos-Inversionistas'!J$12,Manufactura!$B18,\"\")","v":""},{"$f":"IF(Manufactura!$E18='Fondos-Inversionistas'!K$12,Manufactura!$B18,\"\")","v":""},{"$f":"IF(Manufactura!$E18='Fondos-Inversionistas'!L$12,Manufactura!$B18,\"\")","v":""},{"$f":"_xlfn.XLOOKUP(A144,'Base-datos'!$B$547:$B$552,'Base-datos'!$F$547:$F$552)","v":{"$error":"#N/A"}},{"$f":"_xlfn.XLOOKUP(A144,'Base-datos'!$B$547:$B$552,'Base-datos'!$C$547:$C$552)","v":{"$error":"#N/A"}},{"$f":"_xlfn.XLOOKUP(A144,'Base-datos'!$B$547:$B$552,'Base-datos'!$D$547:$D$552)","v":{"$error":"#N/A"}},null,null,{"$f":"IF(OR(P$140=\"La actividad no cumple con el total de los criterios de No Daño Significativo\",Q$140=\"El sector no cumple con las salvaguardas mínimas\"),\"\",IF(AND('Base-datos'!$B$745=\"Sí\",'Base-datos'!$B$746=\"\",'Base-datos'!$B$747=\"\"),IF(N144=\"La actividad sí contribuye sustancialmente a la sostenibilidad\",SUM(B144:L144),0),IF(AND('Base-datos'!$B$745=\"Sí\",'Base-datos'!$B$746=\"Sí\",'Base-datos'!$B$747=\"\"),IF(AND(N144=\"La actividad sí contribuye sustancialmente a la sostenibilidad\",O144=\"La actividad sí contribuye sustancialmente a la sostenibilidad\"),SUM(B144:L144),0),IF(AND('Base-datos'!$B$745=\"Sí\",'Base-datos'!$B$746=\"Sí\",'Base-datos'!$B$747=\"Sí\"),IF(AND(N144=\"La actividad sí contribuye sustancialmente a la sostenibilidad\",O144=\"La actividad sí contribuye sustancialmente a la sostenibilidad\",M144=\"La actividad sí contribuye sustancialmente a la sostenibilidad\"),SUM(B144:L144),0),IF(AND('Base-datos'!$B$745=\"\",'Base-datos'!$B$746=\"Sí\",'Base-datos'!$B$747=\"\"),IF(O144=\"La actividad sí contribuye sustancialmente a la sostenibilidad\",SUM(B144:L144),0),IF(AND('Base-datos'!$B$745=\"\",'Base-datos'!$B$746=\"\",'Base-datos'!$B$747=\"Sí\"),IF(M144=\"La actividad sí contribuye sustancialmente a la sostenibilidad\",SUM(B144:L144),0),IF(AND('Base-datos'!$B$745=\"\",'Base-datos'!$B$746=\"Sí\",'Base-datos'!$B$747=\"Sí\"),IF(AND(O144=\"La actividad sí contribuye sustancialmente a la sostenibilidad\",M144=\"La actividad sí contribuye sustancialmente a la sostenibilidad\"),SUM(B144:L144),0),IF(AND('Base-datos'!$B$745=\"Sí\",'Base-datos'!$B$746=\"\",'Base-datos'!$B$747=\"Sí\"),IF(AND(N144=\"La actividad sí contribuye sustancialmente a la sostenibilidad\",M144=\"La actividad sí contribuye sustancialmente a la sostenibilidad\"),SUM(B144:L144),0),\"Por definir\"))))))))","v":"Por definir"}]
[{"$f":"Manufactura!$C20","v":"Seleccione"},{"$f":"IF(Manufactura!$E20='Fondos-Inversionistas'!B$12,Manufactura!$B20,\"\")","v":""},{"$f":"IF(Manufactura!$E20='Fondos-Inversionistas'!C$12,Manufactura!$B20,\"\")","v":""},{"$f":"IF(Manufactura!$E20='Fondos-Inversionistas'!D$12,Manufactura!$B20,\"\")","v":""},{"$f":"IF(Manufactura!$E20='Fondos-Inversionistas'!E$12,Manufactura!$B20,\"\")","v":""},{"$f":"IF(Manufactura!$E20='Fondos-Inversionistas'!F$12,Manufactura!$B20,\"\")","v":""},{"$f":"IF(Manufactura!$E20='Fondos-Inversionistas'!G$12,Manufactura!$B20,\"\")","v":""},{"$f":"IF(Manufactura!$E20='Fondos-Inversionistas'!H$12,Manufactura!$B20,\"\")","v":""},{"$f":"IF(Manufactura!$E20='Fondos-Inversionistas'!I$12,Manufactura!$B20,\"\")","v":""},{"$f":"IF(Manufactura!$E20='Fondos-Inversionistas'!J$12,Manufactura!$B20,\"\")","v":""},{"$f":"IF(Manufactura!$E20='Fondos-Inversionistas'!K$12,Manufactura!$B20,\"\")","v":""},{"$f":"IF(Manufactura!$E20='Fondos-Inversionistas'!L$12,Manufactura!$B20,\"\")","v":""},{"$f":"_xlfn.XLOOKUP(A145,'Base-datos'!$B$547:$B$552,'Base-datos'!$F$547:$F$552)","v":{"$error":"#N/A"}},{"$f":"_xlfn.XLOOKUP(A145,'Base-datos'!$B$547:$B$552,'Base-datos'!$C$547:$C$552)","v":{"$error":"#N/A"}},{"$f":"_xlfn.XLOOKUP(A145,'Base-datos'!$B$547:$B$552,'Base-datos'!$D$547:$D$552)","v":{"$error":"#N/A"}},null,null,{"$f":"IF(OR(P$140=\"La actividad no cumple con el total de los criterios de No Daño Significativo\",Q$140=\"El sector no cumple con las salvaguardas mínimas\"),\"\",IF(AND('Base-datos'!$B$745=\"Sí\",'Base-datos'!$B$746=\"\",'Base-datos'!$B$747=\"\"),IF(N145=\"La actividad sí contribuye sustancialmente a la sostenibilidad\",SUM(B145:L145),0),IF(AND('Base-datos'!$B$745=\"Sí\",'Base-datos'!$B$746=\"Sí\",'Base-datos'!$B$747=\"\"),IF(AND(N145=\"La actividad sí contribuye sustancialmente a la sostenibilidad\",O145=\"La actividad sí contribuye sustancialmente a la sostenibilidad\"),SUM(B145:L145),0),IF(AND('Base-datos'!$B$745=\"Sí\",'Base-datos'!$B$746=\"Sí\",'Base-datos'!$B$747=\"Sí\"),IF(AND(N145=\"La actividad sí contribuye sustancialmente a la sostenibilidad\",O145=\"La actividad sí contribuye sustancialmente a la sostenibilidad\",M145=\"La actividad sí contribuye sustancialmente a la sostenibilidad\"),SUM(B145:L145),0),IF(AND('Base-datos'!$B$745=\"\",'Base-datos'!$B$746=\"Sí\",'Base-datos'!$B$747=\"\"),IF(O145=\"La actividad sí contribuye sustancialmente a la sostenibilidad\",SUM(B145:L145),0),IF(AND('Base-datos'!$B$745=\"\",'Base-datos'!$B$746=\"\",'Base-datos'!$B$747=\"Sí\"),IF(M145=\"La actividad sí contribuye sustancialmente a la sostenibilidad\",SUM(B145:L145),0),IF(AND('Base-datos'!$B$745=\"\",'Base-datos'!$B$746=\"Sí\",'Base-datos'!$B$747=\"Sí\"),IF(AND(O145=\"La actividad sí contribuye sustancialmente a la sostenibilidad\",M145=\"La actividad sí contribuye sustancialmente a la sostenibilidad\"),SUM(B145:L145),0),IF(AND('Base-datos'!$B$745=\"Sí\",'Base-datos'!$B$746=\"\",'Base-datos'!$B$747=\"Sí\"),IF(AND(N145=\"La actividad sí contribuye sustancialmente a la sostenibilidad\",M145=\"La actividad sí contribuye sustancialmente a la sostenibilidad\"),SUM(B145:L145),0),\"Por definir\"))))))))","v":"Por definir"}]
[{"$f":"Manufactura!$C22","v":"Seleccione"},{"$f":"IF(Manufactura!$E22='Fondos-Inversionistas'!B$12,Manufactura!$B22,\"\")","v":""},{"$f":"IF(Manufactura!$E22='Fondos-Inversionistas'!C$12,Manufactura!$B22,\"\")","v":""},{"$f":"IF(Manufactura!$E22='Fondos-Inversionistas'!D$12,Manufactura!$B22,\"\")","v":""},{"$f":"IF(Manufactura!$E22='Fondos-Inversionistas'!E$12,Manufactura!$B22,\"\")","v":""},{"$f":"IF(Manufactura!$E22='Fondos-Inversionistas'!F$12,Manufactura!$B22,\"\")","v":""},{"$f":"IF(Manufactura!$E22='Fondos-Inversionistas'!G$12,Manufactura!$B22,\"\")","v":""},{"$f":"IF(Manufactura!$E22='Fondos-Inversionistas'!H$12,Manufactura!$B22,\"\")","v":""},{"$f":"IF(Manufactura!$E22='Fondos-Inversionistas'!I$12,Manufactura!$B22,\"\")","v":""},{"$f":"IF(Manufactura!$E22='Fondos-Inversionistas'!J$12,Manufactura!$B22,\"\")","v":""},{"$f":"IF(Manufactura!$E22='Fondos-Inversionistas'!K$12,Manufactura!$B22,\"\")","v":""},{"$f":"IF(Manufactura!$E22='Fondos-Inversionistas'!L$12,Manufactura!$B22,\"\")","v":""},{"$f":"_xlfn.XLOOKUP(A146,'Base-datos'!$B$547:$B$552,'Base-datos'!$F$547:$F$552)","v":{"$error":"#N/A"}},{"$f":"_xlfn.XLOOKUP(A146,'Base-datos'!$B$547:$B$552,'Base-datos'!$C$547:$C$552)","v":{"$error":"#N/A"}},{"$f":"_xlfn.XLOOKUP(A146,'Base-datos'!$B$547:$B$552,'Base-datos'!$D$547:$D$552)","v":{"$error":"#N/A"}},null,null,{"$f":"IF(OR(P$140=\"La actividad no cumple con el total de los criterios de No Daño Significativo\",Q$140=\"El sector no cumple con las salvaguardas mínimas\"),\"\",IF(AND('Base-datos'!$B$745=\"Sí\",'Base-datos'!$B$746=\"\",'Base-datos'!$B$747=\"\"),IF(N146=\"La actividad sí contribuye sustancialmente a la sostenibilidad\",SUM(B146:L146),0),IF(AND('Base-datos'!$B$745=\"Sí\",'Base-datos'!$B$746=\"Sí\",'Base-datos'!$B$747=\"\"),IF(AND(N146=\"La actividad sí contribuye sustancialmente a la sostenibilidad\",O146=\"La actividad sí contribuye sustancialmente a la sostenibilidad\"),SUM(B146:L146),0),IF(AND('Base-datos'!$B$745=\"Sí\",'Base-datos'!$B$746=\"Sí\",'Base-datos'!$B$747=\"Sí\"),IF(AND(N146=\"La actividad sí contribuye sustancialmente a la sostenibilidad\",O146=\"La actividad sí contribuye sustancialmente a la sostenibilidad\",M146=\"La actividad sí contribuye sustancialmente a la sostenibilidad\"),SUM(B146:L146),0),IF(AND('Base-datos'!$B$745=\"\",'Base-datos'!$B$746=\"Sí\",'Base-datos'!$B$747=\"\"),IF(O146=\"La actividad sí contribuye sustancialmente a la sostenibilidad\",SUM(B146:L146),0),IF(AND('Base-datos'!$B$745=\"\",'Base-datos'!$B$746=\"\",'Base-datos'!$B$747=\"Sí\"),IF(M146=\"La actividad sí contribuye sustancialmente a la sostenibilidad\",SUM(B146:L146),0),IF(AND('Base-datos'!$B$745=\"\",'Base-datos'!$B$746=\"Sí\",'Base-datos'!$B$747=\"Sí\"),IF(AND(O146=\"La actividad sí contribuye sustancialmente a la sostenibilidad\",M146=\"La actividad sí contribuye sustancialmente a la sostenibilidad\"),SUM(B146:L146),0),IF(AND('Base-datos'!$B$745=\"Sí\",'Base-datos'!$B$746=\"\",'Base-datos'!$B$747=\"Sí\"),IF(AND(N146=\"La actividad sí contribuye sustancialmente a la sostenibilidad\",M146=\"La actividad sí contribuye sustancialmente a la sostenibilidad\"),SUM(B146:L146),0),\"Por definir\"))))))))","v":"Por definir"}]
[{"$f":"Manufactura!$C24","v":"Seleccione"},{"$f":"IF(Manufactura!$E24='Fondos-Inversionistas'!B$12,Manufactura!$B24,\"\")","v":""},{"$f":"IF(Manufactura!$E24='Fondos-Inversionistas'!C$12,Manufactura!$B24,\"\")","v":""},{"$f":"IF(Manufactura!$E24='Fondos-Inversionistas'!D$12,Manufactura!$B24,\"\")","v":""},{"$f":"IF(Manufactura!$E24='Fondos-Inversionistas'!E$12,Manufactura!$B24,\"\")","v":""},{"$f":"IF(Manufactura!$E24='Fondos-Inversionistas'!F$12,Manufactura!$B24,\"\")","v":""},{"$f":"IF(Manufactura!$E24='Fondos-Inversionistas'!G$12,Manufactura!$B24,\"\")","v":""},{"$f":"IF(Manufactura!$E24='Fondos-Inversionistas'!H$12,Manufactura!$B24,\"\")","v":""},{"$f":"IF(Manufactura!$E24='Fondos-Inversionistas'!I$12,Manufactura!$B24,\"\")","v":""},{"$f":"IF(Manufactura!$E24='Fondos-Inversionistas'!J$12,Manufactura!$B24,\"\")","v":""},{"$f":"IF(Manufactura!$E24='Fondos-Inversionistas'!K$12,Manufactura!$B24,\"\")","v":""},{"$f":"IF(Manufactura!$E24='Fondos-Inversionistas'!L$12,Manufactura!$B24,\"\")","v":""},{"$f":"_xlfn.XLOOKUP(A147,'Base-datos'!$B$547:$B$552,'Base-datos'!$F$547:$F$552)","v":{"$error":"#N/A"}},{"$f":"_xlfn.XLOOKUP(A147,'Base-datos'!$B$547:$B$552,'Base-datos'!$C$547:$C$552)","v":{"$error":"#N/A"}},{"$f":"_xlfn.XLOOKUP(A147,'Base-datos'!$B$547:$B$552,'Base-datos'!$D$547:$D$552)","v":{"$error":"#N/A"}},null,null,{"$f":"IF(OR(P$140=\"La actividad no cumple con el total de los criterios de No Daño Significativo\",Q$140=\"El sector no cumple con las salvaguardas mínimas\"),\"\",IF(AND('Base-datos'!$B$745=\"Sí\",'Base-datos'!$B$746=\"\",'Base-datos'!$B$747=\"\"),IF(N147=\"La actividad sí contribuye sustancialmente a la sostenibilidad\",SUM(B147:L147),0),IF(AND('Base-datos'!$B$745=\"Sí\",'Base-datos'!$B$746=\"Sí\",'Base-datos'!$B$747=\"\"),IF(AND(N147=\"La actividad sí contribuye sustancialmente a la sostenibilidad\",O147=\"La actividad sí contribuye sustancialmente a la sostenibilidad\"),SUM(B147:L147),0),IF(AND('Base-datos'!$B$745=\"Sí\",'Base-datos'!$B$746=\"Sí\",'Base-datos'!$B$747=\"Sí\"),IF(AND(N147=\"La actividad sí contribuye sustancialmente a la sostenibilidad\",O147=\"La actividad sí contribuye sustancialmente a la sostenibilidad\",M147=\"La actividad sí contribuye sustancialmente a la sostenibilidad\"),SUM(B147:L147),0),IF(AND('Base-datos'!$B$745=\"\",'Base-datos'!$B$746=\"Sí\",'Base-datos'!$B$747=\"\"),IF(O147=\"La actividad sí contribuye sustancialmente a la sostenibilidad\",SUM(B147:L147),0),IF(AND('Base-datos'!$B$745=\"\",'Base-datos'!$B$746=\"\",'Base-datos'!$B$747=\"Sí\"),IF(M147=\"La actividad sí contribuye sustancialmente a la sostenibilidad\",SUM(B147:L147),0),IF(AND('Base-datos'!$B$745=\"\",'Base-datos'!$B$746=\"Sí\",'Base-datos'!$B$747=\"Sí\"),IF(AND(O147=\"La actividad sí contribuye sustancialmente a la sostenibilidad\",M147=\"La actividad sí contribuye sustancialmente a la sostenibilidad\"),SUM(B147:L147),0),IF(AND('Base-datos'!$B$745=\"Sí\",'Base-datos'!$B$746=\"\",'Base-datos'!$B$747=\"Sí\"),IF(AND(N147=\"La actividad sí contribuye sustancialmente a la sostenibilidad\",M147=\"La actividad sí contribuye sustancialmente a la sostenibilidad\"),SUM(B147:L147),0),\"Por definir\"))))))))","v":"Por definir"}]
[{"$f":"Manufactura!$C26","v":"Seleccione"},{"$f":"IF(Manufactura!$E26='Fondos-Inversionistas'!B$12,Manufactura!$B26,\"\")","v":""},{"$f":"IF(Manufactura!$E26='Fondos-Inversionistas'!C$12,Manufactura!$B26,\"\")","v":""},{"$f":"IF(Manufactura!$E26='Fondos-Inversionistas'!D$12,Manufactura!$B26,\"\")","v":""},{"$f":"IF(Manufactura!$E26='Fondos-Inversionistas'!E$12,Manufactura!$B26,\"\")","v":""},{"$f":"IF(Manufactura!$E26='Fondos-Inversionistas'!F$12,Manufactura!$B26,\"\")","v":""},{"$f":"IF(Manufactura!$E26='Fondos-Inversionistas'!G$12,Manufactura!$B26,\"\")","v":""},{"$f":"IF(Manufactura!$E26='Fondos-Inversionistas'!H$12,Manufactura!$B26,\"\")","v":""},{"$f":"IF(Manufactura!$E26='Fondos-Inversionistas'!I$12,Manufactura!$B26,\"\")","v":""},{"$f":"IF(Manufactura!$E26='Fondos-Inversionistas'!J$12,Manufactura!$B26,\"\")","v":""},{"$f":"IF(Manufactura!$E26='Fondos-Inversionistas'!K$12,Manufactura!$B26,\"\")","v":""},{"$f":"IF(Manufactura!$E26='Fondos-Inversionistas'!L$12,Manufactura!$B26,\"\")","v":""},{"$f":"_xlfn.XLOOKUP(A148,'Base-datos'!$B$547:$B$552,'Base-datos'!$F$547:$F$552)","v":{"$error":"#N/A"}},{"$f":"_xlfn.XLOOKUP(A148,'Base-datos'!$B$547:$B$552,'Base-datos'!$C$547:$C$552)","v":{"$error":"#N/A"}},{"$f":"_xlfn.XLOOKUP(A148,'Base-datos'!$B$547:$B$552,'Base-datos'!$D$547:$D$552)","v":{"$error":"#N/A"}},null,null,{"$f":"IF(OR(P$140=\"La actividad no cumple con el total de los criterios de No Daño Significativo\",Q$140=\"El sector no cumple con las salvaguardas mínimas\"),\"\",IF(AND('Base-datos'!$B$745=\"Sí\",'Base-datos'!$B$746=\"\",'Base-datos'!$B$747=\"\"),IF(N148=\"La actividad sí contribuye sustancialmente a la sostenibilidad\",SUM(B148:L148),0),IF(AND('Base-datos'!$B$745=\"Sí\",'Base-datos'!$B$746=\"Sí\",'Base-datos'!$B$747=\"\"),IF(AND(N148=\"La actividad sí contribuye sustancialmente a la sostenibilidad\",O148=\"La actividad sí contribuye sustancialmente a la sostenibilidad\"),SUM(B148:L148),0),IF(AND('Base-datos'!$B$745=\"Sí\",'Base-datos'!$B$746=\"Sí\",'Base-datos'!$B$747=\"Sí\"),IF(AND(N148=\"La actividad sí contribuye sustancialmente a la sostenibilidad\",O148=\"La actividad sí contribuye sustancialmente a la sostenibilidad\",M148=\"La actividad sí contribuye sustancialmente a la sostenibilidad\"),SUM(B148:L148),0),IF(AND('Base-datos'!$B$745=\"\",'Base-datos'!$B$746=\"Sí\",'Base-datos'!$B$747=\"\"),IF(O148=\"La actividad sí contribuye sustancialmente a la sostenibilidad\",SUM(B148:L148),0),IF(AND('Base-datos'!$B$745=\"\",'Base-datos'!$B$746=\"\",'Base-datos'!$B$747=\"Sí\"),IF(M148=\"La actividad sí contribuye sustancialmente a la sostenibilidad\",SUM(B148:L148),0),IF(AND('Base-datos'!$B$745=\"\",'Base-datos'!$B$746=\"Sí\",'Base-datos'!$B$747=\"Sí\"),IF(AND(O148=\"La actividad sí contribuye sustancialmente a la sostenibilidad\",M148=\"La actividad sí contribuye sustancialmente a la sostenibilidad\"),SUM(B148:L148),0),IF(AND('Base-datos'!$B$745=\"Sí\",'Base-datos'!$B$746=\"\",'Base-datos'!$B$747=\"Sí\"),IF(AND(N148=\"La actividad sí contribuye sustancialmente a la sostenibilidad\",M148=\"La actividad sí contribuye sustancialmente a la sostenibilidad\"),SUM(B148:L148),0),\"Por definir\"))))))))","v":"Por definir"}]
[{"$f":"Manufactura!$C28","v":"Seleccione"},{"$f":"IF(Manufactura!$E28='Fondos-Inversionistas'!B$12,Manufactura!$B28,\"\")","v":""},{"$f":"IF(Manufactura!$E28='Fondos-Inversionistas'!C$12,Manufactura!$B28,\"\")","v":""},{"$f":"IF(Manufactura!$E28='Fondos-Inversionistas'!D$12,Manufactura!$B28,\"\")","v":""},{"$f":"IF(Manufactura!$E28='Fondos-Inversionistas'!E$12,Manufactura!$B28,\"\")","v":""},{"$f":"IF(Manufactura!$E28='Fondos-Inversionistas'!F$12,Manufactura!$B28,\"\")","v":""},{"$f":"IF(Manufactura!$E28='Fondos-Inversionistas'!G$12,Manufactura!$B28,\"\")","v":""},{"$f":"IF(Manufactura!$E28='Fondos-Inversionistas'!H$12,Manufactura!$B28,\"\")","v":""},{"$f":"IF(Manufactura!$E28='Fondos-Inversionistas'!I$12,Manufactura!$B28,\"\")","v":""},{"$f":"IF(Manufactura!$E28='Fondos-Inversionistas'!J$12,Manufactura!$B28,\"\")","v":""},{"$f":"IF(Manufactura!$E28='Fondos-Inversionistas'!K$12,Manufactura!$B28,\"\")","v":""},{"$f":"IF(Manufactura!$E28='Fondos-Inversionistas'!L$12,Manufactura!$B28,\"\")","v":""},{"$f":"_xlfn.XLOOKUP(A149,'Base-datos'!$B$547:$B$552,'Base-datos'!$F$547:$F$552)","v":{"$error":"#N/A"}},{"$f":"_xlfn.XLOOKUP(A149,'Base-datos'!$B$547:$B$552,'Base-datos'!$C$547:$C$552)","v":{"$error":"#N/A"}},{"$f":"_xlfn.XLOOKUP(A149,'Base-datos'!$B$547:$B$552,'Base-datos'!$D$547:$D$552)","v":{"$error":"#N/A"}},null,null,{"$f":"IF(OR(P$140=\"La actividad no cumple con el total de los criterios de No Daño Significativo\",Q$140=\"El sector no cumple con las salvaguardas mínimas\"),\"\",IF(AND('Base-datos'!$B$745=\"Sí\",'Base-datos'!$B$746=\"\",'Base-datos'!$B$747=\"\"),IF(N149=\"La actividad sí contribuye sustancialmente a la sostenibilidad\",SUM(B149:L149),0),IF(AND('Base-datos'!$B$745=\"Sí\",'Base-datos'!$B$746=\"Sí\",'Base-datos'!$B$747=\"\"),IF(AND(N149=\"La actividad sí contribuye sustancialmente a la sostenibilidad\",O149=\"La actividad sí contribuye sustancialmente a la sostenibilidad\"),SUM(B149:L149),0),IF(AND('Base-datos'!$B$745=\"Sí\",'Base-datos'!$B$746=\"Sí\",'Base-datos'!$B$747=\"Sí\"),IF(AND(N149=\"La actividad sí contribuye sustancialmente a la sostenibilidad\",O149=\"La actividad sí contribuye sustancialmente a la sostenibilidad\",M149=\"La actividad sí contribuye sustancialmente a la sostenibilidad\"),SUM(B149:L149),0),IF(AND('Base-datos'!$B$745=\"\",'Base-datos'!$B$746=\"Sí\",'Base-datos'!$B$747=\"\"),IF(O149=\"La actividad sí contribuye sustancialmente a la sostenibilidad\",SUM(B149:L149),0),IF(AND('Base-datos'!$B$745=\"\",'Base-datos'!$B$746=\"\",'Base-datos'!$B$747=\"Sí\"),IF(M149=\"La actividad sí contribuye sustancialmente a la sostenibilidad\",SUM(B149:L149),0),IF(AND('Base-datos'!$B$745=\"\",'Base-datos'!$B$746=\"Sí\",'Base-datos'!$B$747=\"Sí\"),IF(AND(O149=\"La actividad sí contribuye sustancialmente a la sostenibilidad\",M149=\"La actividad sí contribuye sustancialmente a la sostenibilidad\"),SUM(B149:L149),0),IF(AND('Base-datos'!$B$745=\"Sí\",'Base-datos'!$B$746=\"\",'Base-datos'!$B$747=\"Sí\"),IF(AND(N149=\"La actividad sí contribuye sustancialmente a la sostenibilidad\",M149=\"La actividad sí contribuye sustancialmente a la sostenibilidad\"),SUM(B149:L149),0),\"Por definir\"))))))))","v":"Por definir"}]
[{"$f":"Manufactura!$C30","v":"Seleccione"},{"$f":"IF(Manufactura!$E30='Fondos-Inversionistas'!B$12,Manufactura!$B30,\"\")","v":""},{"$f":"IF(Manufactura!$E30='Fondos-Inversionistas'!C$12,Manufactura!$B30,\"\")","v":""},{"$f":"IF(Manufactura!$E30='Fondos-Inversionistas'!D$12,Manufactura!$B30,\"\")","v":""},{"$f":"IF(Manufactura!$E30='Fondos-Inversionistas'!E$12,Manufactura!$B30,\"\")","v":""},{"$f":"IF(Manufactura!$E30='Fondos-Inversionistas'!F$12,Manufactura!$B30,\"\")","v":""},{"$f":"IF(Manufactura!$E30='Fondos-Inversionistas'!G$12,Manufactura!$B30,\"\")","v":""},{"$f":"IF(Manufactura!$E30='Fondos-Inversionistas'!H$12,Manufactura!$B30,\"\")","v":""},{"$f":"IF(Manufactura!$E30='Fondos-Inversionistas'!I$12,Manufactura!$B30,\"\")","v":""},{"$f":"IF(Manufactura!$E30='Fondos-Inversionistas'!J$12,Manufactura!$B30,\"\")","v":""},{"$f":"IF(Manufactura!$E30='Fondos-Inversionistas'!K$12,Manufactura!$B30,\"\")","v":""},{"$f":"IF(Manufactura!$E30='Fondos-Inversionistas'!L$12,Manufactura!$B30,\"\")","v":""},{"$f":"_xlfn.XLOOKUP(A150,'Base-datos'!$B$547:$B$552,'Base-datos'!$F$547:$F$552)","v":{"$error":"#N/A"}},{"$f":"_xlfn.XLOOKUP(A150,'Base-datos'!$B$547:$B$552,'Base-datos'!$C$547:$C$552)","v":{"$error":"#N/A"}},{"$f":"_xlfn.XLOOKUP(A150,'Base-datos'!$B$547:$B$552,'Base-datos'!$D$547:$D$552)","v":{"$error":"#N/A"}},null,null,{"$f":"IF(OR(P$140=\"La actividad no cumple con el total de los criterios de No Daño Significativo\",Q$140=\"El sector no cumple con las salvaguardas mínimas\"),\"\",IF(AND('Base-datos'!$B$745=\"Sí\",'Base-datos'!$B$746=\"\",'Base-datos'!$B$747=\"\"),IF(N150=\"La actividad sí contribuye sustancialmente a la sostenibilidad\",SUM(B150:L150),0),IF(AND('Base-datos'!$B$745=\"Sí\",'Base-datos'!$B$746=\"Sí\",'Base-datos'!$B$747=\"\"),IF(AND(N150=\"La actividad sí contribuye sustancialmente a la sostenibilidad\",O150=\"La actividad sí contribuye sustancialmente a la sostenibilidad\"),SUM(B150:L150),0),IF(AND('Base-datos'!$B$745=\"Sí\",'Base-datos'!$B$746=\"Sí\",'Base-datos'!$B$747=\"Sí\"),IF(AND(N150=\"La actividad sí contribuye sustancialmente a la sostenibilidad\",O150=\"La actividad sí contribuye sustancialmente a la sostenibilidad\",M150=\"La actividad sí contribuye sustancialmente a la sostenibilidad\"),SUM(B150:L150),0),IF(AND('Base-datos'!$B$745=\"\",'Base-datos'!$B$746=\"Sí\",'Base-datos'!$B$747=\"\"),IF(O150=\"La actividad sí contribuye sustancialmente a la sostenibilidad\",SUM(B150:L150),0),IF(AND('Base-datos'!$B$745=\"\",'Base-datos'!$B$746=\"\",'Base-datos'!$B$747=\"Sí\"),IF(M150=\"La actividad sí contribuye sustancialmente a la sostenibilidad\",SUM(B150:L150),0),IF(AND('Base-datos'!$B$745=\"\",'Base-datos'!$B$746=\"Sí\",'Base-datos'!$B$747=\"Sí\"),IF(AND(O150=\"La actividad sí contribuye sustancialmente a la sostenibilidad\",M150=\"La actividad sí contribuye sustancialmente a la sostenibilidad\"),SUM(B150:L150),0),IF(AND('Base-datos'!$B$745=\"Sí\",'Base-datos'!$B$746=\"\",'Base-datos'!$B$747=\"Sí\"),IF(AND(N150=\"La actividad sí contribuye sustancialmente a la sostenibilidad\",M150=\"La actividad sí contribuye sustancialmente a la sostenibilidad\"),SUM(B150:L150),0),\"Por definir\"))))))))","v":"Por definir"}]
[{"$f":"Manufactura!$C32","v":"Seleccione"},{"$f":"IF(Manufactura!$E32='Fondos-Inversionistas'!B$12,Manufactura!$B32,\"\")","v":""},{"$f":"IF(Manufactura!$E32='Fondos-Inversionistas'!C$12,Manufactura!$B32,\"\")","v":""},{"$f":"IF(Manufactura!$E32='Fondos-Inversionistas'!D$12,Manufactura!$B32,\"\")","v":""},{"$f":"IF(Manufactura!$E32='Fondos-Inversionistas'!E$12,Manufactura!$B32,\"\")","v":""},{"$f":"IF(Manufactura!$E32='Fondos-Inversionistas'!F$12,Manufactura!$B32,\"\")","v":""},{"$f":"IF(Manufactura!$E32='Fondos-Inversionistas'!G$12,Manufactura!$B32,\"\")","v":""},{"$f":"IF(Manufactura!$E32='Fondos-Inversionistas'!H$12,Manufactura!$B32,\"\")","v":""},{"$f":"IF(Manufactura!$E32='Fondos-Inversionistas'!I$12,Manufactura!$B32,\"\")","v":""},{"$f":"IF(Manufactura!$E32='Fondos-Inversionistas'!J$12,Manufactura!$B32,\"\")","v":""},{"$f":"IF(Manufactura!$E32='Fondos-Inversionistas'!K$12,Manufactura!$B32,\"\")","v":""},{"$f":"IF(Manufactura!$E32='Fondos-Inversionistas'!L$12,Manufactura!$B32,\"\")","v":""},{"$f":"_xlfn.XLOOKUP(A151,'Base-datos'!$B$547:$B$552,'Base-datos'!$F$547:$F$552)","v":{"$error":"#N/A"}},{"$f":"_xlfn.XLOOKUP(A151,'Base-datos'!$B$547:$B$552,'Base-datos'!$C$547:$C$552)","v":{"$error":"#N/A"}},{"$f":"_xlfn.XLOOKUP(A151,'Base-datos'!$B$547:$B$552,'Base-datos'!$D$547:$D$552)","v":{"$error":"#N/A"}},null,null,{"$f":"IF(OR(P$140=\"La actividad no cumple con el total de los criterios de No Daño Significativo\",Q$140=\"El sector no cumple con las salvaguardas mínimas\"),\"\",IF(AND('Base-datos'!$B$745=\"Sí\",'Base-datos'!$B$746=\"\",'Base-datos'!$B$747=\"\"),IF(N151=\"La actividad sí contribuye sustancialmente a la sostenibilidad\",SUM(B151:L151),0),IF(AND('Base-datos'!$B$745=\"Sí\",'Base-datos'!$B$746=\"Sí\",'Base-datos'!$B$747=\"\"),IF(AND(N151=\"La actividad sí contribuye sustancialmente a la sostenibilidad\",O151=\"La actividad sí contribuye sustancialmente a la sostenibilidad\"),SUM(B151:L151),0),IF(AND('Base-datos'!$B$745=\"Sí\",'Base-datos'!$B$746=\"Sí\",'Base-datos'!$B$747=\"Sí\"),IF(AND(N151=\"La actividad sí contribuye sustancialmente a la sostenibilidad\",O151=\"La actividad sí contribuye sustancialmente a la sostenibilidad\",M151=\"La actividad sí contribuye sustancialmente a la sostenibilidad\"),SUM(B151:L151),0),IF(AND('Base-datos'!$B$745=\"\",'Base-datos'!$B$746=\"Sí\",'Base-datos'!$B$747=\"\"),IF(O151=\"La actividad sí contribuye sustancialmente a la sostenibilidad\",SUM(B151:L151),0),IF(AND('Base-datos'!$B$745=\"\",'Base-datos'!$B$746=\"\",'Base-datos'!$B$747=\"Sí\"),IF(M151=\"La actividad sí contribuye sustancialmente a la sostenibilidad\",SUM(B151:L151),0),IF(AND('Base-datos'!$B$745=\"\",'Base-datos'!$B$746=\"Sí\",'Base-datos'!$B$747=\"Sí\"),IF(AND(O151=\"La actividad sí contribuye sustancialmente a la sostenibilidad\",M151=\"La actividad sí contribuye sustancialmente a la sostenibilidad\"),SUM(B151:L151),0),IF(AND('Base-datos'!$B$745=\"Sí\",'Base-datos'!$B$746=\"\",'Base-datos'!$B$747=\"Sí\"),IF(AND(N151=\"La actividad sí contribuye sustancialmente a la sostenibilidad\",M151=\"La actividad sí contribuye sustancialmente a la sostenibilidad\"),SUM(B151:L151),0),\"Por definir\"))))))))","v":"Por definir"}]
[{"$f":"Manufactura!$C34","v":"Seleccione"},{"$f":"IF(Manufactura!$E34='Fondos-Inversionistas'!B$12,Manufactura!$B34,\"\")","v":""},{"$f":"IF(Manufactura!$E34='Fondos-Inversionistas'!C$12,Manufactura!$B34,\"\")","v":""},{"$f":"IF(Manufactura!$E34='Fondos-Inversionistas'!D$12,Manufactura!$B34,\"\")","v":""},{"$f":"IF(Manufactura!$E34='Fondos-Inversionistas'!E$12,Manufactura!$B34,\"\")","v":""},{"$f":"IF(Manufactura!$E34='Fondos-Inversionistas'!F$12,Manufactura!$B34,\"\")","v":""},{"$f":"IF(Manufactura!$E34='Fondos-Inversionistas'!G$12,Manufactura!$B34,\"\")","v":""},{"$f":"IF(Manufactura!$E34='Fondos-Inversionistas'!H$12,Manufactura!$B34,\"\")","v":""},{"$f":"IF(Manufactura!$E34='Fondos-Inversionistas'!I$12,Manufactura!$B34,\"\")","v":""},{"$f":"IF(Manufactura!$E34='Fondos-Inversionistas'!J$12,Manufactura!$B34,\"\")","v":""},{"$f":"IF(Manufactura!$E34='Fondos-Inversionistas'!K$12,Manufactura!$B34,\"\")","v":""},{"$f":"IF(Manufactura!$E34='Fondos-Inversionistas'!L$12,Manufactura!$B34,\"\")","v":""},{"$f":"_xlfn.XLOOKUP(A152,'Base-datos'!$B$547:$B$552,'Base-datos'!$F$547:$F$552)","v":{"$error":"#N/A"}},{"$f":"_xlfn.XLOOKUP(A152,'Base-datos'!$B$547:$B$552,'Base-datos'!$C$547:$C$552)","v":{"$error":"#N/A"}},{"$f":"_xlfn.XLOOKUP(A152,'Base-datos'!$B$547:$B$552,'Base-datos'!$D$547:$D$552)","v":{"$error":"#N/A"}},null,null,{"$f":"IF(OR(P$140=\"La actividad no cumple con el total de los criterios de No Daño Significativo\",Q$140=\"El sector no cumple con las salvaguardas mínimas\"),\"\",IF(AND('Base-datos'!$B$745=\"Sí\",'Base-datos'!$B$746=\"\",'Base-datos'!$B$747=\"\"),IF(N152=\"La actividad sí contribuye sustancialmente a la sostenibilidad\",SUM(B152:L152),0),IF(AND('Base-datos'!$B$745=\"Sí\",'Base-datos'!$B$746=\"Sí\",'Base-datos'!$B$747=\"\"),IF(AND(N152=\"La actividad sí contribuye sustancialmente a la sostenibilidad\",O152=\"La actividad sí contribuye sustancialmente a la sostenibilidad\"),SUM(B152:L152),0),IF(AND('Base-datos'!$B$745=\"Sí\",'Base-datos'!$B$746=\"Sí\",'Base-datos'!$B$747=\"Sí\"),IF(AND(N152=\"La actividad sí contribuye sustancialmente a la sostenibilidad\",O152=\"La actividad sí contribuye sustancialmente a la sostenibilidad\",M152=\"La actividad sí contribuye sustancialmente a la sostenibilidad\"),SUM(B152:L152),0),IF(AND('Base-datos'!$B$745=\"\",'Base-datos'!$B$746=\"Sí\",'Base-datos'!$B$747=\"\"),IF(O152=\"La actividad sí contribuye sustancialmente a la sostenibilidad\",SUM(B152:L152),0),IF(AND('Base-datos'!$B$745=\"\",'Base-datos'!$B$746=\"\",'Base-datos'!$B$747=\"Sí\"),IF(M152=\"La actividad sí contribuye sustancialmente a la sostenibilidad\",SUM(B152:L152),0),IF(AND('Base-datos'!$B$745=\"\",'Base-datos'!$B$746=\"Sí\",'Base-datos'!$B$747=\"Sí\"),IF(AND(O152=\"La actividad sí contribuye sustancialmente a la sostenibilidad\",M152=\"La actividad sí contribuye sustancialmente a la sostenibilidad\"),SUM(B152:L152),0),IF(AND('Base-datos'!$B$745=\"Sí\",'Base-datos'!$B$746=\"\",'Base-datos'!$B$747=\"Sí\"),IF(AND(N152=\"La actividad sí contribuye sustancialmente a la sostenibilidad\",M152=\"La actividad sí contribuye sustancialmente a la sostenibilidad\"),SUM(B152:L152),0),\"Por definir\"))))))))","v":"Por definir"}]
[{"$f":"Manufactura!$C36","v":"Seleccione"},{"$f":"IF(Manufactura!$E36='Fondos-Inversionistas'!B$12,Manufactura!$B36,\"\")","v":""},{"$f":"IF(Manufactura!$E36='Fondos-Inversionistas'!C$12,Manufactura!$B36,\"\")","v":""},{"$f":"IF(Manufactura!$E36='Fondos-Inversionistas'!D$12,Manufactura!$B36,\"\")","v":""},{"$f":"IF(Manufactura!$E36='Fondos-Inversionistas'!E$12,Manufactura!$B36,\"\")","v":""},{"$f":"IF(Manufactura!$E36='Fondos-Inversionistas'!F$12,Manufactura!$B36,\"\")","v":""},{"$f":"IF(Manufactura!$E36='Fondos-Inversionistas'!G$12,Manufactura!$B36,\"\")","v":""},{"$f":"IF(Manufactura!$E36='Fondos-Inversionistas'!H$12,Manufactura!$B36,\"\")","v":""},{"$f":"IF(Manufactura!$E36='Fondos-Inversionistas'!I$12,Manufactura!$B36,\"\")","v":""},{"$f":"IF(Manufactura!$E36='Fondos-Inversionistas'!J$12,Manufactura!$B36,\"\")","v":""},{"$f":"IF(Manufactura!$E36='Fondos-Inversionistas'!K$12,Manufactura!$B36,\"\")","v":""},{"$f":"IF(Manufactura!$E36='Fondos-Inversionistas'!L$12,Manufactura!$B36,\"\")","v":""},{"$f":"_xlfn.XLOOKUP(A153,'Base-datos'!$B$547:$B$552,'Base-datos'!$F$547:$F$552)","v":{"$error":"#N/A"}},{"$f":"_xlfn.XLOOKUP(A153,'Base-datos'!$B$547:$B$552,'Base-datos'!$C$547:$C$552)","v":{"$error":"#N/A"}},{"$f":"_xlfn.XLOOKUP(A153,'Base-datos'!$B$547:$B$552,'Base-datos'!$D$547:$D$552)","v":{"$error":"#N/A"}},null,null,{"$f":"IF(OR(P$140=\"La actividad no cumple con el total de los criterios de No Daño Significativo\",Q$140=\"El sector no cumple con las salvaguardas mínimas\"),\"\",IF(AND('Base-datos'!$B$745=\"Sí\",'Base-datos'!$B$746=\"\",'Base-datos'!$B$747=\"\"),IF(N153=\"La actividad sí contribuye sustancialmente a la sostenibilidad\",SUM(B153:L153),0),IF(AND('Base-datos'!$B$745=\"Sí\",'Base-datos'!$B$746=\"Sí\",'Base-datos'!$B$747=\"\"),IF(AND(N153=\"La actividad sí contribuye sustancialmente a la sostenibilidad\",O153=\"La actividad sí contribuye sustancialmente a la sostenibilidad\"),SUM(B153:L153),0),IF(AND('Base-datos'!$B$745=\"Sí\",'Base-datos'!$B$746=\"Sí\",'Base-datos'!$B$747=\"Sí\"),IF(AND(N153=\"La actividad sí contribuye sustancialmente a la sostenibilidad\",O153=\"La actividad sí contribuye sustancialmente a la sostenibilidad\",M153=\"La actividad sí contribuye sustancialmente a la sostenibilidad\"),SUM(B153:L153),0),IF(AND('Base-datos'!$B$745=\"\",'Base-datos'!$B$746=\"Sí\",'Base-datos'!$B$747=\"\"),IF(O153=\"La actividad sí contribuye sustancialmente a la sostenibilidad\",SUM(B153:L153),0),IF(AND('Base-datos'!$B$745=\"\",'Base-datos'!$B$746=\"\",'Base-datos'!$B$747=\"Sí\"),IF(M153=\"La actividad sí contribuye sustancialmente a la sostenibilidad\",SUM(B153:L153),0),IF(AND('Base-datos'!$B$745=\"\",'Base-datos'!$B$746=\"Sí\",'Base-datos'!$B$747=\"Sí\"),IF(AND(O153=\"La actividad sí contribuye sustancialmente a la sostenibilidad\",M153=\"La actividad sí contribuye sustancialmente a la sostenibilidad\"),SUM(B153:L153),0),IF(AND('Base-datos'!$B$745=\"Sí\",'Base-datos'!$B$746=\"\",'Base-datos'!$B$747=\"Sí\"),IF(AND(N153=\"La actividad sí contribuye sustancialmente a la sostenibilidad\",M153=\"La actividad sí contribuye sustancialmente a la sostenibilidad\"),SUM(B153:L153),0),\"Por definir\"))))))))","v":"Por definir"}]
[{"$f":"Manufactura!$C38","v":"Seleccione"},{"$f":"IF(Manufactura!$E38='Fondos-Inversionistas'!B$12,Manufactura!$B38,\"\")","v":""},{"$f":"IF(Manufactura!$E38='Fondos-Inversionistas'!C$12,Manufactura!$B38,\"\")","v":""},{"$f":"IF(Manufactura!$E38='Fondos-Inversionistas'!D$12,Manufactura!$B38,\"\")","v":""},{"$f":"IF(Manufactura!$E38='Fondos-Inversionistas'!E$12,Manufactura!$B38,\"\")","v":""},{"$f":"IF(Manufactura!$E38='Fondos-Inversionistas'!F$12,Manufactura!$B38,\"\")","v":""},{"$f":"IF(Manufactura!$E38='Fondos-Inversionistas'!G$12,Manufactura!$B38,\"\")","v":""},{"$f":"IF(Manufactura!$E38='Fondos-Inversionistas'!H$12,Manufactura!$B38,\"\")","v":""},{"$f":"IF(Manufactura!$E38='Fondos-Inversionistas'!I$12,Manufactura!$B38,\"\")","v":""},{"$f":"IF(Manufactura!$E38='Fondos-Inversionistas'!J$12,Manufactura!$B38,\"\")","v":""},{"$f":"IF(Manufactura!$E38='Fondos-Inversionistas'!K$12,Manufactura!$B38,\"\")","v":""},{"$f":"IF(Manufactura!$E38='Fondos-Inversionistas'!L$12,Manufactura!$B38,\"\")","v":""},{"$f":"_xlfn.XLOOKUP(A154,'Base-datos'!$B$547:$B$552,'Base-datos'!$F$547:$F$552)","v":{"$error":"#N/A"}},{"$f":"_xlfn.XLOOKUP(A154,'Base-datos'!$B$547:$B$552,'Base-datos'!$C$547:$C$552)","v":{"$error":"#N/A"}},{"$f":"_xlfn.XLOOKUP(A154,'Base-datos'!$B$547:$B$552,'Base-datos'!$D$547:$D$552)","v":{"$error":"#N/A"}},null,null,{"$f":"IF(OR(P$140=\"La actividad no cumple con el total de los criterios de No Daño Significativo\",Q$140=\"El sector no cumple con las salvaguardas mínimas\"),\"\",IF(AND('Base-datos'!$B$745=\"Sí\",'Base-datos'!$B$746=\"\",'Base-datos'!$B$747=\"\"),IF(N154=\"La actividad sí contribuye sustancialmente a la sostenibilidad\",SUM(B154:L154),0),IF(AND('Base-datos'!$B$745=\"Sí\",'Base-datos'!$B$746=\"Sí\",'Base-datos'!$B$747=\"\"),IF(AND(N154=\"La actividad sí contribuye sustancialmente a la sostenibilidad\",O154=\"La actividad sí contribuye sustancialmente a la sostenibilidad\"),SUM(B154:L154),0),IF(AND('Base-datos'!$B$745=\"Sí\",'Base-datos'!$B$746=\"Sí\",'Base-datos'!$B$747=\"Sí\"),IF(AND(N154=\"La actividad sí contribuye sustancialmente a la sostenibilidad\",O154=\"La actividad sí contribuye sustancialmente a la sostenibilidad\",M154=\"La actividad sí contribuye sustancialmente a la sostenibilidad\"),SUM(B154:L154),0),IF(AND('Base-datos'!$B$745=\"\",'Base-datos'!$B$746=\"Sí\",'Base-datos'!$B$747=\"\"),IF(O154=\"La actividad sí contribuye sustancialmente a la sostenibilidad\",SUM(B154:L154),0),IF(AND('Base-datos'!$B$745=\"\",'Base-datos'!$B$746=\"\",'Base-datos'!$B$747=\"Sí\"),IF(M154=\"La actividad sí contribuye sustancialmente a la sostenibilidad\",SUM(B154:L154),0),IF(AND('Base-datos'!$B$745=\"\",'Base-datos'!$B$746=\"Sí\",'Base-datos'!$B$747=\"Sí\"),IF(AND(O154=\"La actividad sí contribuye sustancialmente a la sostenibilidad\",M154=\"La actividad sí contribuye sustancialmente a la sostenibilidad\"),SUM(B154:L154),0),IF(AND('Base-datos'!$B$745=\"Sí\",'Base-datos'!$B$746=\"\",'Base-datos'!$B$747=\"Sí\"),IF(AND(N154=\"La actividad sí contribuye sustancialmente a la sostenibilidad\",M154=\"La actividad sí contribuye sustancialmente a la sostenibilidad\"),SUM(B154:L154),0),\"Por definir\"))))))))","v":"Por definir"}]
[{"$f":"Manufactura!$C40","v":"Seleccione"},{"$f":"IF(Manufactura!$E40='Fondos-Inversionistas'!B$12,Manufactura!$B40,\"\")","v":""},{"$f":"IF(Manufactura!$E40='Fondos-Inversionistas'!C$12,Manufactura!$B40,\"\")","v":""},{"$f":"IF(Manufactura!$E40='Fondos-Inversionistas'!D$12,Manufactura!$B40,\"\")","v":""},{"$f":"IF(Manufactura!$E40='Fondos-Inversionistas'!E$12,Manufactura!$B40,\"\")","v":""},{"$f":"IF(Manufactura!$E40='Fondos-Inversionistas'!F$12,Manufactura!$B40,\"\")","v":""},{"$f":"IF(Manufactura!$E40='Fondos-Inversionistas'!G$12,Manufactura!$B40,\"\")","v":""},{"$f":"IF(Manufactura!$E40='Fondos-Inversionistas'!H$12,Manufactura!$B40,\"\")","v":""},{"$f":"IF(Manufactura!$E40='Fondos-Inversionistas'!I$12,Manufactura!$B40,\"\")","v":""},{"$f":"IF(Manufactura!$E40='Fondos-Inversionistas'!J$12,Manufactura!$B40,\"\")","v":""},{"$f":"IF(Manufactura!$E40='Fondos-Inversionistas'!K$12,Manufactura!$B40,\"\")","v":""},{"$f":"IF(Manufactura!$E40='Fondos-Inversionistas'!L$12,Manufactura!$B40,\"\")","v":""},{"$f":"_xlfn.XLOOKUP(A155,'Base-datos'!$B$547:$B$552,'Base-datos'!$F$547:$F$552)","v":{"$error":"#N/A"}},{"$f":"_xlfn.XLOOKUP(A155,'Base-datos'!$B$547:$B$552,'Base-datos'!$C$547:$C$552)","v":{"$error":"#N/A"}},{"$f":"_xlfn.XLOOKUP(A155,'Base-datos'!$B$547:$B$552,'Base-datos'!$D$547:$D$552)","v":{"$error":"#N/A"}},null,null,{"$f":"IF(OR(P$140=\"La actividad no cumple con el total de los criterios de No Daño Significativo\",Q$140=\"El sector no cumple con las salvaguardas mínimas\"),\"\",IF(AND('Base-datos'!$B$745=\"Sí\",'Base-datos'!$B$746=\"\",'Base-datos'!$B$747=\"\"),IF(N155=\"La actividad sí contribuye sustancialmente a la sostenibilidad\",SUM(B155:L155),0),IF(AND('Base-datos'!$B$745=\"Sí\",'Base-datos'!$B$746=\"Sí\",'Base-datos'!$B$747=\"\"),IF(AND(N155=\"La actividad sí contribuye sustancialmente a la sostenibilidad\",O155=\"La actividad sí contribuye sustancialmente a la sostenibilidad\"),SUM(B155:L155),0),IF(AND('Base-datos'!$B$745=\"Sí\",'Base-datos'!$B$746=\"Sí\",'Base-datos'!$B$747=\"Sí\"),IF(AND(N155=\"La actividad sí contribuye sustancialmente a la sostenibilidad\",O155=\"La actividad sí contribuye sustancialmente a la sostenibilidad\",M155=\"La actividad sí contribuye sustancialmente a la sostenibilidad\"),SUM(B155:L155),0),IF(AND('Base-datos'!$B$745=\"\",'Base-datos'!$B$746=\"Sí\",'Base-datos'!$B$747=\"\"),IF(O155=\"La actividad sí contribuye sustancialmente a la sostenibilidad\",SUM(B155:L155),0),IF(AND('Base-datos'!$B$745=\"\",'Base-datos'!$B$746=\"\",'Base-datos'!$B$747=\"Sí\"),IF(M155=\"La actividad sí contribuye sustancialmente a la sostenibilidad\",SUM(B155:L155),0),IF(AND('Base-datos'!$B$745=\"\",'Base-datos'!$B$746=\"Sí\",'Base-datos'!$B$747=\"Sí\"),IF(AND(O155=\"La actividad sí contribuye sustancialmente a la sostenibilidad\",M155=\"La actividad sí contribuye sustancialmente a la sostenibilidad\"),SUM(B155:L155),0),IF(AND('Base-datos'!$B$745=\"Sí\",'Base-datos'!$B$746=\"\",'Base-datos'!$B$747=\"Sí\"),IF(AND(N155=\"La actividad sí contribuye sustancialmente a la sostenibilidad\",M155=\"La actividad sí contribuye sustancialmente a la sostenibilidad\"),SUM(B155:L155),0),\"Por definir\"))))))))","v":"Por definir"}]
[{"$f":"Manufactura!$C42","v":"Seleccione"},{"$f":"IF(Manufactura!$E42='Fondos-Inversionistas'!B$12,Manufactura!$B42,\"\")","v":""},{"$f":"IF(Manufactura!$E42='Fondos-Inversionistas'!C$12,Manufactura!$B42,\"\")","v":""},{"$f":"IF(Manufactura!$E42='Fondos-Inversionistas'!D$12,Manufactura!$B42,\"\")","v":""},{"$f":"IF(Manufactura!$E42='Fondos-Inversionistas'!E$12,Manufactura!$B42,\"\")","v":""},{"$f":"IF(Manufactura!$E42='Fondos-Inversionistas'!F$12,Manufactura!$B42,\"\")","v":""},{"$f":"IF(Manufactura!$E42='Fondos-Inversionistas'!G$12,Manufactura!$B42,\"\")","v":""},{"$f":"IF(Manufactura!$E42='Fondos-Inversionistas'!H$12,Manufactura!$B42,\"\")","v":""},{"$f":"IF(Manufactura!$E42='Fondos-Inversionistas'!I$12,Manufactura!$B42,\"\")","v":""},{"$f":"IF(Manufactura!$E42='Fondos-Inversionistas'!J$12,Manufactura!$B42,\"\")","v":""},{"$f":"IF(Manufactura!$E42='Fondos-Inversionistas'!K$12,Manufactura!$B42,\"\")","v":""},{"$f":"IF(Manufactura!$E42='Fondos-Inversionistas'!L$12,Manufactura!$B42,\"\")","v":""},{"$f":"_xlfn.XLOOKUP(A156,'Base-datos'!$B$547:$B$552,'Base-datos'!$F$547:$F$552)","v":{"$error":"#N/A"}},{"$f":"_xlfn.XLOOKUP(A156,'Base-datos'!$B$547:$B$552,'Base-datos'!$C$547:$C$552)","v":{"$error":"#N/A"}},{"$f":"_xlfn.XLOOKUP(A156,'Base-datos'!$B$547:$B$552,'Base-datos'!$D$547:$D$552)","v":{"$error":"#N/A"}},null,null,{"$f":"IF(OR(P$140=\"La actividad no cumple con el total de los criterios de No Daño Significativo\",Q$140=\"El sector no cumple con las salvaguardas mínimas\"),\"\",IF(AND('Base-datos'!$B$745=\"Sí\",'Base-datos'!$B$746=\"\",'Base-datos'!$B$747=\"\"),IF(N156=\"La actividad sí contribuye sustancialmente a la sostenibilidad\",SUM(B156:L156),0),IF(AND('Base-datos'!$B$745=\"Sí\",'Base-datos'!$B$746=\"Sí\",'Base-datos'!$B$747=\"\"),IF(AND(N156=\"La actividad sí contribuye sustancialmente a la sostenibilidad\",O156=\"La actividad sí contribuye sustancialmente a la sostenibilidad\"),SUM(B156:L156),0),IF(AND('Base-datos'!$B$745=\"Sí\",'Base-datos'!$B$746=\"Sí\",'Base-datos'!$B$747=\"Sí\"),IF(AND(N156=\"La actividad sí contribuye sustancialmente a la sostenibilidad\",O156=\"La actividad sí contribuye sustancialmente a la sostenibilidad\",M156=\"La actividad sí contribuye sustancialmente a la sostenibilidad\"),SUM(B156:L156),0),IF(AND('Base-datos'!$B$745=\"\",'Base-datos'!$B$746=\"Sí\",'Base-datos'!$B$747=\"\"),IF(O156=\"La actividad sí contribuye sustancialmente a la sostenibilidad\",SUM(B156:L156),0),IF(AND('Base-datos'!$B$745=\"\",'Base-datos'!$B$746=\"\",'Base-datos'!$B$747=\"Sí\"),IF(M156=\"La actividad sí contribuye sustancialmente a la sostenibilidad\",SUM(B156:L156),0),IF(AND('Base-datos'!$B$745=\"\",'Base-datos'!$B$746=\"Sí\",'Base-datos'!$B$747=\"Sí\"),IF(AND(O156=\"La actividad sí contribuye sustancialmente a la sostenibilidad\",M156=\"La actividad sí contribuye sustancialmente a la sostenibilidad\"),SUM(B156:L156),0),IF(AND('Base-datos'!$B$745=\"Sí\",'Base-datos'!$B$746=\"\",'Base-datos'!$B$747=\"Sí\"),IF(AND(N156=\"La actividad sí contribuye sustancialmente a la sostenibilidad\",M156=\"La actividad sí contribuye sustancialmente a la sostenibilidad\"),SUM(B156:L156),0),\"Por definir\"))))))))","v":"Por definir"}]
[{"$f":"Manufactura!$C44","v":"Seleccione"},{"$f":"IF(Manufactura!$E44='Fondos-Inversionistas'!B$12,Manufactura!$B44,\"\")","v":""},{"$f":"IF(Manufactura!$E44='Fondos-Inversionistas'!C$12,Manufactura!$B44,\"\")","v":""},{"$f":"IF(Manufactura!$E44='Fondos-Inversionistas'!D$12,Manufactura!$B44,\"\")","v":""},{"$f":"IF(Manufactura!$E44='Fondos-Inversionistas'!E$12,Manufactura!$B44,\"\")","v":""},{"$f":"IF(Manufactura!$E44='Fondos-Inversionistas'!F$12,Manufactura!$B44,\"\")","v":""},{"$f":"IF(Manufactura!$E44='Fondos-Inversionistas'!G$12,Manufactura!$B44,\"\")","v":""},{"$f":"IF(Manufactura!$E44='Fondos-Inversionistas'!H$12,Manufactura!$B44,\"\")","v":""},{"$f":"IF(Manufactura!$E44='Fondos-Inversionistas'!I$12,Manufactura!$B44,\"\")","v":""},{"$f":"IF(Manufactura!$E44='Fondos-Inversionistas'!J$12,Manufactura!$B44,\"\")","v":""},{"$f":"IF(Manufactura!$E44='Fondos-Inversionistas'!K$12,Manufactura!$B44,\"\")","v":""},{"$f":"IF(Manufactura!$E44='Fondos-Inversionistas'!L$12,Manufactura!$B44,\"\")","v":""},{"$f":"_xlfn.XLOOKUP(A157,'Base-datos'!$B$547:$B$552,'Base-datos'!$F$547:$F$552)","v":{"$error":"#N/A"}},{"$f":"_xlfn.XLOOKUP(A157,'Base-datos'!$B$547:$B$552,'Base-datos'!$C$547:$C$552)","v":{"$error":"#N/A"}},{"$f":"_xlfn.XLOOKUP(A157,'Base-datos'!$B$547:$B$552,'Base-datos'!$D$547:$D$552)","v":{"$error":"#N/A"}},null,null,{"$f":"IF(OR(P$140=\"La actividad no cumple con el total de los criterios de No Daño Significativo\",Q$140=\"El sector no cumple con las salvaguardas mínimas\"),\"\",IF(AND('Base-datos'!$B$745=\"Sí\",'Base-datos'!$B$746=\"\",'Base-datos'!$B$747=\"\"),IF(N157=\"La actividad sí contribuye sustancialmente a la sostenibilidad\",SUM(B157:L157),0),IF(AND('Base-datos'!$B$745=\"Sí\",'Base-datos'!$B$746=\"Sí\",'Base-datos'!$B$747=\"\"),IF(AND(N157=\"La actividad sí contribuye sustancialmente a la sostenibilidad\",O157=\"La actividad sí contribuye sustancialmente a la sostenibilidad\"),SUM(B157:L157),0),IF(AND('Base-datos'!$B$745=\"Sí\",'Base-datos'!$B$746=\"Sí\",'Base-datos'!$B$747=\"Sí\"),IF(AND(N157=\"La actividad sí contribuye sustancialmente a la sostenibilidad\",O157=\"La actividad sí contribuye sustancialmente a la sostenibilidad\",M157=\"La actividad sí contribuye sustancialmente a la sostenibilidad\"),SUM(B157:L157),0),IF(AND('Base-datos'!$B$745=\"\",'Base-datos'!$B$746=\"Sí\",'Base-datos'!$B$747=\"\"),IF(O157=\"La actividad sí contribuye sustancialmente a la sostenibilidad\",SUM(B157:L157),0),IF(AND('Base-datos'!$B$745=\"\",'Base-datos'!$B$746=\"\",'Base-datos'!$B$747=\"Sí\"),IF(M157=\"La actividad sí contribuye sustancialmente a la sostenibilidad\",SUM(B157:L157),0),IF(AND('Base-datos'!$B$745=\"\",'Base-datos'!$B$746=\"Sí\",'Base-datos'!$B$747=\"Sí\"),IF(AND(O157=\"La actividad sí contribuye sustancialmente a la sostenibilidad\",M157=\"La actividad sí contribuye sustancialmente a la sostenibilidad\"),SUM(B157:L157),0),IF(AND('Base-datos'!$B$745=\"Sí\",'Base-datos'!$B$746=\"\",'Base-datos'!$B$747=\"Sí\"),IF(AND(N157=\"La actividad sí contribuye sustancialmente a la sostenibilidad\",M157=\"La actividad sí contribuye sustancialmente a la sostenibilidad\"),SUM(B157:L157),0),\"Por definir\"))))))))","v":"Por definir"}]
[{"$f":"Manufactura!$C46","v":"Seleccione"},{"$f":"IF(Manufactura!$E46='Fondos-Inversionistas'!B$12,Manufactura!$B46,\"\")","v":""},{"$f":"IF(Manufactura!$E46='Fondos-Inversionistas'!C$12,Manufactura!$B46,\"\")","v":""},{"$f":"IF(Manufactura!$E46='Fondos-Inversionistas'!D$12,Manufactura!$B46,\"\")","v":""},{"$f":"IF(Manufactura!$E46='Fondos-Inversionistas'!E$12,Manufactura!$B46,\"\")","v":""},{"$f":"IF(Manufactura!$E46='Fondos-Inversionistas'!F$12,Manufactura!$B46,\"\")","v":""},{"$f":"IF(Manufactura!$E46='Fondos-Inversionistas'!G$12,Manufactura!$B46,\"\")","v":""},{"$f":"IF(Manufactura!$E46='Fondos-Inversionistas'!H$12,Manufactura!$B46,\"\")","v":""},{"$f":"IF(Manufactura!$E46='Fondos-Inversionistas'!I$12,Manufactura!$B46,\"\")","v":""},{"$f":"IF(Manufactura!$E46='Fondos-Inversionistas'!J$12,Manufactura!$B46,\"\")","v":""},{"$f":"IF(Manufactura!$E46='Fondos-Inversionistas'!K$12,Manufactura!$B46,\"\")","v":""},{"$f":"IF(Manufactura!$E46='Fondos-Inversionistas'!L$12,Manufactura!$B46,\"\")","v":""},{"$f":"_xlfn.XLOOKUP(A158,'Base-datos'!$B$547:$B$552,'Base-datos'!$F$547:$F$552)","v":{"$error":"#N/A"}},{"$f":"_xlfn.XLOOKUP(A158,'Base-datos'!$B$547:$B$552,'Base-datos'!$C$547:$C$552)","v":{"$error":"#N/A"}},{"$f":"_xlfn.XLOOKUP(A158,'Base-datos'!$B$547:$B$552,'Base-datos'!$D$547:$D$552)","v":{"$error":"#N/A"}},null,null,{"$f":"IF(OR(P$140=\"La actividad no cumple con el total de los criterios de No Daño Significativo\",Q$140=\"El sector no cumple con las salvaguardas mínimas\"),\"\",IF(AND('Base-datos'!$B$745=\"Sí\",'Base-datos'!$B$746=\"\",'Base-datos'!$B$747=\"\"),IF(N158=\"La actividad sí contribuye sustancialmente a la sostenibilidad\",SUM(B158:L158),0),IF(AND('Base-datos'!$B$745=\"Sí\",'Base-datos'!$B$746=\"Sí\",'Base-datos'!$B$747=\"\"),IF(AND(N158=\"La actividad sí contribuye sustancialmente a la sostenibilidad\",O158=\"La actividad sí contribuye sustancialmente a la sostenibilidad\"),SUM(B158:L158),0),IF(AND('Base-datos'!$B$745=\"Sí\",'Base-datos'!$B$746=\"Sí\",'Base-datos'!$B$747=\"Sí\"),IF(AND(N158=\"La actividad sí contribuye sustancialmente a la sostenibilidad\",O158=\"La actividad sí contribuye sustancialmente a la sostenibilidad\",M158=\"La actividad sí contribuye sustancialmente a la sostenibilidad\"),SUM(B158:L158),0),IF(AND('Base-datos'!$B$745=\"\",'Base-datos'!$B$746=\"Sí\",'Base-datos'!$B$747=\"\"),IF(O158=\"La actividad sí contribuye sustancialmente a la sostenibilidad\",SUM(B158:L158),0),IF(AND('Base-datos'!$B$745=\"\",'Base-datos'!$B$746=\"\",'Base-datos'!$B$747=\"Sí\"),IF(M158=\"La actividad sí contribuye sustancialmente a la sostenibilidad\",SUM(B158:L158),0),IF(AND('Base-datos'!$B$745=\"\",'Base-datos'!$B$746=\"Sí\",'Base-datos'!$B$747=\"Sí\"),IF(AND(O158=\"La actividad sí contribuye sustancialmente a la sostenibilidad\",M158=\"La actividad sí contribuye sustancialmente a la sostenibilidad\"),SUM(B158:L158),0),IF(AND('Base-datos'!$B$745=\"Sí\",'Base-datos'!$B$746=\"\",'Base-datos'!$B$747=\"Sí\"),IF(AND(N158=\"La actividad sí contribuye sustancialmente a la sostenibilidad\",M158=\"La actividad sí contribuye sustancialmente a la sostenibilidad\"),SUM(B158:L158),0),\"Por definir\"))))))))","v":"Por definir"}]
[{"$f":"Manufactura!$C48","v":"Seleccione"},{"$f":"IF(Manufactura!$E48='Fondos-Inversionistas'!B$12,Manufactura!$B48,\"\")","v":""},{"$f":"IF(Manufactura!$E48='Fondos-Inversionistas'!C$12,Manufactura!$B48,\"\")","v":""},{"$f":"IF(Manufactura!$E48='Fondos-Inversionistas'!D$12,Manufactura!$B48,\"\")","v":""},{"$f":"IF(Manufactura!$E48='Fondos-Inversionistas'!E$12,Manufactura!$B48,\"\")","v":""},{"$f":"IF(Manufactura!$E48='Fondos-Inversionistas'!F$12,Manufactura!$B48,\"\")","v":""},{"$f":"IF(Manufactura!$E48='Fondos-Inversionistas'!G$12,Manufactura!$B48,\"\")","v":""},{"$f":"IF(Manufactura!$E48='Fondos-Inversionistas'!H$12,Manufactura!$B48,\"\")","v":""},{"$f":"IF(Manufactura!$E48='Fondos-Inversionistas'!I$12,Manufactura!$B48,\"\")","v":""},{"$f":"IF(Manufactura!$E48='Fondos-Inversionistas'!J$12,Manufactura!$B48,\"\")","v":""},{"$f":"IF(Manufactura!$E48='Fondos-Inversionistas'!K$12,Manufactura!$B48,\"\")","v":""},{"$f":"IF(Manufactura!$E48='Fondos-Inversionistas'!L$12,Manufactura!$B48,\"\")","v":""},{"$f":"_xlfn.XLOOKUP(A159,'Base-datos'!$B$547:$B$552,'Base-datos'!$F$547:$F$552)","v":{"$error":"#N/A"}},{"$f":"_xlfn.XLOOKUP(A159,'Base-datos'!$B$547:$B$552,'Base-datos'!$C$547:$C$552)","v":{"$error":"#N/A"}},{"$f":"_xlfn.XLOOKUP(A159,'Base-datos'!$B$547:$B$552,'Base-datos'!$D$547:$D$552)","v":{"$error":"#N/A"}},null,null,{"$f":"IF(OR(P$140=\"La actividad no cumple con el total de los criterios de No Daño Significativo\",Q$140=\"El sector no cumple con las salvaguardas mínimas\"),\"\",IF(AND('Base-datos'!$B$745=\"Sí\",'Base-datos'!$B$746=\"\",'Base-datos'!$B$747=\"\"),IF(N159=\"La actividad sí contribuye sustancialmente a la sostenibilidad\",SUM(B159:L159),0),IF(AND('Base-datos'!$B$745=\"Sí\",'Base-datos'!$B$746=\"Sí\",'Base-datos'!$B$747=\"\"),IF(AND(N159=\"La actividad sí contribuye sustancialmente a la sostenibilidad\",O159=\"La actividad sí contribuye sustancialmente a la sostenibilidad\"),SUM(B159:L159),0),IF(AND('Base-datos'!$B$745=\"Sí\",'Base-datos'!$B$746=\"Sí\",'Base-datos'!$B$747=\"Sí\"),IF(AND(N159=\"La actividad sí contribuye sustancialmente a la sostenibilidad\",O159=\"La actividad sí contribuye sustancialmente a la sostenibilidad\",M159=\"La actividad sí contribuye sustancialmente a la sostenibilidad\"),SUM(B159:L159),0),IF(AND('Base-datos'!$B$745=\"\",'Base-datos'!$B$746=\"Sí\",'Base-datos'!$B$747=\"\"),IF(O159=\"La actividad sí contribuye sustancialmente a la sostenibilidad\",SUM(B159:L159),0),IF(AND('Base-datos'!$B$745=\"\",'Base-datos'!$B$746=\"\",'Base-datos'!$B$747=\"Sí\"),IF(M159=\"La actividad sí contribuye sustancialmente a la sostenibilidad\",SUM(B159:L159),0),IF(AND('Base-datos'!$B$745=\"\",'Base-datos'!$B$746=\"Sí\",'Base-datos'!$B$747=\"Sí\"),IF(AND(O159=\"La actividad sí contribuye sustancialmente a la sostenibilidad\",M159=\"La actividad sí contribuye sustancialmente a la sostenibilidad\"),SUM(B159:L159),0),IF(AND('Base-datos'!$B$745=\"Sí\",'Base-datos'!$B$746=\"\",'Base-datos'!$B$747=\"Sí\"),IF(AND(N159=\"La actividad sí contribuye sustancialmente a la sostenibilidad\",M159=\"La actividad sí contribuye sustancialmente a la sostenibilidad\"),SUM(B159:L159),0),\"Por definir\"))))))))","v":"Por definir"}]
["Transporte",null,null,null,null,null,null,null,null,null,null,null,null,null,null,null,null,{"$f":"SUM(IF(FREQUENCY(MATCH(A161:A180, A161:A180, 0), MATCH(A161:A180, A161:A180, 0)) > 0, IF(NOT(ISERROR(R161:R180)), R161:R180, 0)))","v":0}]
[{"$f":"Transporte!$C10","v":"Seleccione"},{"$f":"IF(Transporte!$E10='Fondos-Inversionistas'!B$12,Transporte!$B10,\"\")","v":""},{"$f":"IF(Transporte!$E10='Fondos-Inversionistas'!C$12,Transporte!$B10,\"\")","v":""},{"$f":"IF(Transporte!$E10='Fondos-Inversionistas'!D$12,Transporte!$B10,\"\")","v":""},{"$f":"IF(Transporte!$E10='Fondos-Inversionistas'!E$12,Transporte!$B10,\"\")","v":""},{"$f":"IF(Transporte!$E10='Fondos-Inversionistas'!F$12,Transporte!$B10,\"\")","v":""},{"$f":"IF(Transporte!$E10='Fondos-Inversionistas'!G$12,Transporte!$B10,\"\")","v":""},{"$f":"IF(Transporte!$E10='Fondos-Inversionistas'!H$12,Transporte!$B10,\"\")","v":""},{"$f":"IF(Transporte!$E10='Fondos-Inversionistas'!I$12,Transporte!$B10,\"\")","v":""},{"$f":"IF(Transporte!$E10='Fondos-Inversionistas'!J$12,Transporte!$B10,\"\")","v":""},{"$f":"IF(Transporte!$E10='Fondos-Inversionistas'!K$12,Transporte!$B10,\"\")","v":""},{"$f":"IF(Transporte!$E10='Fondos-Inversionistas'!L$12,Transporte!$B10,\"\")","v":""},{"$f":"_xlfn.XLOOKUP(A161,'Base-datos'!$B$553:$B$570,'Base-datos'!$F$553:$F$570)","v":{"$error":"#N/A"}},{"$f":"_xlfn.XLOOKUP(A161,'Base-datos'!$B$553:$B$570,'Base-datos'!$C$553:$C$570)","v":{"$error":"#N/A"}},{"$f":"_xlfn.XLOOKUP(A161,'Base-datos'!$B$553:$B$570,'Base-datos'!$D$553:$D$570)","v":{"$error":"#N/A"}},{"$f":"IF(COUNTIF('Transporte-NDS'!G9:G84,\"No\")>0,\"La actividad no cumple con el total de los criterios de NDS\",\"La actividad cumple con los criterios de No Daño Significativo\")","v":"La actividad cumple con los criterios de No Daño Significativo"},{"$f":"IF(OR('Salvaguardas mínimas'!$G$10=\"Seleccione\",'Salvaguardas mínimas'!$G$13=\"Seleccione\",'Salvaguardas mínimas'!$G$16=\"Seleccione\",'Salvaguardas mínimas'!$G$7=\"Seleccione\"),\"No se han respondido todas las preguntas\",IF(OR('Salvaguardas mínimas'!$G$10=\"No\",'Salvaguardas mínimas'!$G$13=\"No\",'Salvaguardas mínimas'!$G$16=\"No\",'Salvaguardas mínimas'!$G$7=\"No\"),\"El sector no cumple con las salvaguardas mínimas\",\"La actividad sí cumple con las salvaguardas mínimas\"))","v":"No se han respondido todas las preguntas"},{"$f":"IF(OR(P$161=\"La actividad no cumple con el total de los criterios de No Daño Significativo\",Q$161=\"El sector no cumple con las salvaguardas mínimas\"),\"\",IF(AND('Base-datos'!$B$750=\"Sí\",'Base-datos'!$B$751=\"\",'Base-datos'!$B$752=\"\"),IF(N161=\"La actividad sí contribuye sustancialmente a la sostenibilidad\",SUM(B161:L161),0),IF(AND('Base-datos'!$B$750=\"Sí\",'Base-datos'!$B$751=\"Sí\",'Base-datos'!$B$752=\"\"),IF(AND(N161=\"La actividad sí contribuye sustancialmente a la sostenibilidad\",O161=\"La actividad sí contribuye sustancialmente a la sostenibilidad\"),SUM(B161:L161),0),IF(AND('Base-datos'!$B$750=\"Sí\",'Base-datos'!$B$751=\"Sí\",'Base-datos'!$B$752=\"Sí\"),IF(AND(N161=\"La actividad sí contribuye sustancialmente a la sostenibilidad\",O161=\"La actividad sí contribuye sustancialmente a la sostenibilidad\",M161=\"La actividad sí contribuye sustancialmente a la sostenibilidad\"),SUM(B161:L161),0),IF(AND('Base-datos'!$B$750=\"\",'Base-datos'!$B$751=\"Sí\",'Base-datos'!$B$752=\"\"),IF(O161=\"La actividad sí contribuye sustancialmente a la sostenibilidad\",SUM(B161:L161),0),IF(AND('Base-datos'!$B$750=\"\",'Base-datos'!$B$751=\"\",'Base-datos'!$B$752=\"Sí\"),IF(M161=\"La actividad sí contribuye sustancialmente a la sostenibilidad\",SUM(B161:L161),0),IF(AND('Base-datos'!$B$750=\"\",'Base-datos'!$B$751=\"Sí\",'Base-datos'!$B$752=\"Sí\"),IF(AND(O161=\"La actividad sí contribuye sustancialmente a la sostenibilidad\",M161=\"La actividad sí contribuye sustancialmente a la sostenibilidad\"),SUM(B161:L161),0),IF(AND('Base-datos'!$B$750=\"Sí\",'Base-datos'!$B$751=\"\",'Base-datos'!$B$752=\"Sí\"),IF(AND(N161=\"La actividad sí contribuye sustancialmente a la sostenibilidad\",M161=\"La actividad sí contribuye sustancialmente a la sostenibilidad\"),SUM(B161:L161),0),\"Por definir\"))))))))","v":"Por definir"}]
[{"$f":"Transporte!$C12","v":"Seleccione"},{"$f":"IF(Transporte!$E12='Fondos-Inversionistas'!B$12,Transporte!$B12,\"\")","v":""},{"$f":"IF(Transporte!$E12='Fondos-Inversionistas'!C$12,Transporte!$B12,\"\")","v":""},{"$f":"IF(Transporte!$E12='Fondos-Inversionistas'!D$12,Transporte!$B12,\"\")","v":""},{"$f":"IF(Transporte!$E12='Fondos-Inversionistas'!E$12,Transporte!$B12,\"\")","v":""},{"$f":"IF(Transporte!$E12='Fondos-Inversionistas'!F$12,Transporte!$B12,\"\")","v":""},{"$f":"IF(Transporte!$E12='Fondos-Inversionistas'!G$12,Transporte!$B12,\"\")","v":""},{"$f":"IF(Transporte!$E12='Fondos-Inversionistas'!H$12,Transporte!$B12,\"\")","v":""},{"$f":"IF(Transporte!$E12='Fondos-Inversionistas'!I$12,Transporte!$B12,\"\")","v":""},{"$f":"IF(Transporte!$E12='Fondos-Inversionistas'!J$12,Transporte!$B12,\"\")","v":""},{"$f":"IF(Transporte!$E12='Fondos-Inversionistas'!K$12,Transporte!$B12,\"\")","v":""},{"$f":"IF(Transporte!$E12='Fondos-Inversionistas'!L$12,Transporte!$B12,\"\")","v":""},{"$f":"_xlfn.XLOOKUP(A162,'Base-datos'!$B$553:$B$570,'Base-datos'!$F$553:$F$570)","v":{"$error":"#N/A"}},{"$f":"_xlfn.XLOOKUP(A162,'Base-datos'!$B$553:$B$570,'Base-datos'!$C$553:$C$570)","v":{"$error":"#N/A"}},{"$f":"_xlfn.XLOOKUP(A162,'Base-datos'!$B$553:$B$570,'Base-datos'!$D$553:$D$570)","v":{"$error":"#N/A"}},null,null,{"$f":"IF(OR(P$161=\"La actividad no cumple con el total de los criterios de No Daño Significativo\",Q$161=\"El sector no cumple con las salvaguardas mínimas\"),\"\",IF(AND('Base-datos'!$B$750=\"Sí\",'Base-datos'!$B$751=\"\",'Base-datos'!$B$752=\"\"),IF(N162=\"La actividad sí contribuye sustancialmente a la sostenibilidad\",SUM(B162:L162),0),IF(AND('Base-datos'!$B$750=\"Sí\",'Base-datos'!$B$751=\"Sí\",'Base-datos'!$B$752=\"\"),IF(AND(N162=\"La actividad sí contribuye sustancialmente a la sostenibilidad\",O162=\"La actividad sí contribuye sustancialmente a la sostenibilidad\"),SUM(B162:L162),0),IF(AND('Base-datos'!$B$750=\"Sí\",'Base-datos'!$B$751=\"Sí\",'Base-datos'!$B$752=\"Sí\"),IF(AND(N162=\"La actividad sí contribuye sustancialmente a la sostenibilidad\",O162=\"La actividad sí contribuye sustancialmente a la sostenibilidad\",M162=\"La actividad sí contribuye sustancialmente a la sostenibilidad\"),SUM(B162:L162),0),IF(AND('Base-datos'!$B$750=\"\",'Base-datos'!$B$751=\"Sí\",'Base-datos'!$B$752=\"\"),IF(O162=\"La actividad sí contribuye sustancialmente a la sostenibilidad\",SUM(B162:L162),0),IF(AND('Base-datos'!$B$750=\"\",'Base-datos'!$B$751=\"\",'Base-datos'!$B$752=\"Sí\"),IF(M162=\"La actividad sí contribuye sustancialmente a la sostenibilidad\",SUM(B162:L162),0),IF(AND('Base-datos'!$B$750=\"\",'Base-datos'!$B$751=\"Sí\",'Base-datos'!$B$752=\"Sí\"),IF(AND(O162=\"La actividad sí contribuye sustancialmente a la sostenibilidad\",M162=\"La actividad sí contribuye sustancialmente a la sostenibilidad\"),SUM(B162:L162),0),IF(AND('Base-datos'!$B$750=\"Sí\",'Base-datos'!$B$751=\"\",'Base-datos'!$B$752=\"Sí\"),IF(AND(N162=\"La actividad sí contribuye sustancialmente a la sostenibilidad\",M162=\"La actividad sí contribuye sustancialmente a la sostenibilidad\"),SUM(B162:L162),0),\"Por definir\"))))))))","v":"Por definir"}]
[{"$f":"Transporte!$C14","v":"Seleccione"},{"$f":"IF(Transporte!$E14='Fondos-Inversionistas'!B$12,Transporte!$B14,\"\")","v":""},{"$f":"IF(Transporte!$E14='Fondos-Inversionistas'!C$12,Transporte!$B14,\"\")","v":""},{"$f":"IF(Transporte!$E14='Fondos-Inversionistas'!D$12,Transporte!$B14,\"\")","v":""},{"$f":"IF(Transporte!$E14='Fondos-Inversionistas'!E$12,Transporte!$B14,\"\")","v":""},{"$f":"IF(Transporte!$E14='Fondos-Inversionistas'!F$12,Transporte!$B14,\"\")","v":""},{"$f":"IF(Transporte!$E14='Fondos-Inversionistas'!G$12,Transporte!$B14,\"\")","v":""},{"$f":"IF(Transporte!$E14='Fondos-Inversionistas'!H$12,Transporte!$B14,\"\")","v":""},{"$f":"IF(Transporte!$E14='Fondos-Inversionistas'!I$12,Transporte!$B14,\"\")","v":""},{"$f":"IF(Transporte!$E14='Fondos-Inversionistas'!J$12,Transporte!$B14,\"\")","v":""},{"$f":"IF(Transporte!$E14='Fondos-Inversionistas'!K$12,Transporte!$B14,\"\")","v":""},{"$f":"IF(Transporte!$E14='Fondos-Inversionistas'!L$12,Transporte!$B14,\"\")","v":""},{"$f":"_xlfn.XLOOKUP(A163,'Base-datos'!$B$553:$B$570,'Base-datos'!$F$553:$F$570)","v":{"$error":"#N/A"}},{"$f":"_xlfn.XLOOKUP(A163,'Base-datos'!$B$553:$B$570,'Base-datos'!$C$553:$C$570)","v":{"$error":"#N/A"}},{"$f":"_xlfn.XLOOKUP(A163,'Base-datos'!$B$553:$B$570,'Base-datos'!$D$553:$D$570)","v":{"$error":"#N/A"}},null,null,{"$f":"IF(OR(P$161=\"La actividad no cumple con el total de los criterios de No Daño Significativo\",Q$161=\"El sector no cumple con las salvaguardas mínimas\"),\"\",IF(AND('Base-datos'!$B$750=\"Sí\",'Base-datos'!$B$751=\"\",'Base-datos'!$B$752=\"\"),IF(N163=\"La actividad sí contribuye sustancialmente a la sostenibilidad\",SUM(B163:L163),0),IF(AND('Base-datos'!$B$750=\"Sí\",'Base-datos'!$B$751=\"Sí\",'Base-datos'!$B$752=\"\"),IF(AND(N163=\"La actividad sí contribuye sustancialmente a la sostenibilidad\",O163=\"La actividad sí contribuye sustancialmente a la sostenibilidad\"),SUM(B163:L163),0),IF(AND('Base-datos'!$B$750=\"Sí\",'Base-datos'!$B$751=\"Sí\",'Base-datos'!$B$752=\"Sí\"),IF(AND(N163=\"La actividad sí contribuye sustancialmente a la sostenibilidad\",O163=\"La actividad sí contribuye sustancialmente a la sostenibilidad\",M163=\"La actividad sí contribuye sustancialmente a la sostenibilidad\"),SUM(B163:L163),0),IF(AND('Base-datos'!$B$750=\"\",'Base-datos'!$B$751=\"Sí\",'Base-datos'!$B$752=\"\"),IF(O163=\"La actividad sí contribuye sustancialmente a la sostenibilidad\",SUM(B163:L163),0),IF(AND('Base-datos'!$B$750=\"\",'Base-datos'!$B$751=\"\",'Base-datos'!$B$752=\"Sí\"),IF(M163=\"La actividad sí contribuye sustancialmente a la sostenibilidad\",SUM(B163:L163),0),IF(AND('Base-datos'!$B$750=\"\",'Base-datos'!$B$751=\"Sí\",'Base-datos'!$B$752=\"Sí\"),IF(AND(O163=\"La actividad sí contribuye sustancialmente a la sostenibilidad\",M163=\"La actividad sí contribuye sustancialmente a la sostenibilidad\"),SUM(B163:L163),0),IF(AND('Base-datos'!$B$750=\"Sí\",'Base-datos'!$B$751=\"\",'Base-datos'!$B$752=\"Sí\"),IF(AND(N163=\"La actividad sí contribuye sustancialmente a la sostenibilidad\",M163=\"La actividad sí contribuye sustancialmente a la sostenibilidad\"),SUM(B163:L163),0),\"Por definir\"))))))))","v":"Por definir"}]
[{"$f":"Transporte!$C16","v":"Seleccione"},{"$f":"IF(Transporte!$E16='Fondos-Inversionistas'!B$12,Transporte!$B16,\"\")","v":""},{"$f":"IF(Transporte!$E16='Fondos-Inversionistas'!C$12,Transporte!$B16,\"\")","v":""},{"$f":"IF(Transporte!$E16='Fondos-Inversionistas'!D$12,Transporte!$B16,\"\")","v":""},{"$f":"IF(Transporte!$E16='Fondos-Inversionistas'!E$12,Transporte!$B16,\"\")","v":""},{"$f":"IF(Transporte!$E16='Fondos-Inversionistas'!F$12,Transporte!$B16,\"\")","v":""},{"$f":"IF(Transporte!$E16='Fondos-Inversionistas'!G$12,Transporte!$B16,\"\")","v":""},{"$f":"IF(Transporte!$E16='Fondos-Inversionistas'!H$12,Transporte!$B16,\"\")","v":""},{"$f":"IF(Transporte!$E16='Fondos-Inversionistas'!I$12,Transporte!$B16,\"\")","v":""},{"$f":"IF(Transporte!$E16='Fondos-Inversionistas'!J$12,Transporte!$B16,\"\")","v":""},{"$f":"IF(Transporte!$E16='Fondos-Inversionistas'!K$12,Transporte!$B16,\"\")","v":""},{"$f":"IF(Transporte!$E16='Fondos-Inversionistas'!L$12,Transporte!$B16,\"\")","v":""},{"$f":"_xlfn.XLOOKUP(A164,'Base-datos'!$B$553:$B$570,'Base-datos'!$F$553:$F$570)","v":{"$error":"#N/A"}},{"$f":"_xlfn.XLOOKUP(A164,'Base-datos'!$B$553:$B$570,'Base-datos'!$C$553:$C$570)","v":{"$error":"#N/A"}},{"$f":"_xlfn.XLOOKUP(A164,'Base-datos'!$B$553:$B$570,'Base-datos'!$D$553:$D$570)","v":{"$error":"#N/A"}},null,null,{"$f":"IF(OR(P$161=\"La actividad no cumple con el total de los criterios de No Daño Significativo\",Q$161=\"El sector no cumple con las salvaguardas mínimas\"),\"\",IF(AND('Base-datos'!$B$750=\"Sí\",'Base-datos'!$B$751=\"\",'Base-datos'!$B$752=\"\"),IF(N164=\"La actividad sí contribuye sustancialmente a la sostenibilidad\",SUM(B164:L164),0),IF(AND('Base-datos'!$B$750=\"Sí\",'Base-datos'!$B$751=\"Sí\",'Base-datos'!$B$752=\"\"),IF(AND(N164=\"La actividad sí contribuye sustancialmente a la sostenibilidad\",O164=\"La actividad sí contribuye sustancialmente a la sostenibilidad\"),SUM(B164:L164),0),IF(AND('Base-datos'!$B$750=\"Sí\",'Base-datos'!$B$751=\"Sí\",'Base-datos'!$B$752=\"Sí\"),IF(AND(N164=\"La actividad sí contribuye sustancialmente a la sostenibilidad\",O164=\"La actividad sí contribuye sustancialmente a la sostenibilidad\",M164=\"La actividad sí contribuye sustancialmente a la sostenibilidad\"),SUM(B164:L164),0),IF(AND('Base-datos'!$B$750=\"\",'Base-datos'!$B$751=\"Sí\",'Base-datos'!$B$752=\"\"),IF(O164=\"La actividad sí contribuye sustancialmente a la sostenibilidad\",SUM(B164:L164),0),IF(AND('Base-datos'!$B$750=\"\",'Base-datos'!$B$751=\"\",'Base-datos'!$B$752=\"Sí\"),IF(M164=\"La actividad sí contribuye sustancialmente a la sostenibilidad\",SUM(B164:L164),0),IF(AND('Base-datos'!$B$750=\"\",'Base-datos'!$B$751=\"Sí\",'Base-datos'!$B$752=\"Sí\"),IF(AND(O164=\"La actividad sí contribuye sustancialmente a la sostenibilidad\",M164=\"La actividad sí contribuye sustancialmente a la sostenibilidad\"),SUM(B164:L164),0),IF(AND('Base-datos'!$B$750=\"Sí\",'Base-datos'!$B$751=\"\",'Base-datos'!$B$752=\"Sí\"),IF(AND(N164=\"La actividad sí contribuye sustancialmente a la sostenibilidad\",M164=\"La actividad sí contribuye sustancialmente a la sostenibilidad\"),SUM(B164:L164),0),\"Por definir\"))))))))","v":"Por definir"}]
[{"$f":"Transporte!$C18","v":"Seleccione"},{"$f":"IF(Transporte!$E18='Fondos-Inversionistas'!B$12,Transporte!$B18,\"\")","v":""},{"$f":"IF(Transporte!$E18='Fondos-Inversionistas'!C$12,Transporte!$B18,\"\")","v":""},{"$f":"IF(Transporte!$E18='Fondos-Inversionistas'!D$12,Transporte!$B18,\"\")","v":""},{"$f":"IF(Transporte!$E18='Fondos-Inversionistas'!E$12,Transporte!$B18,\"\")","v":""},{"$f":"IF(Transporte!$E18='Fondos-Inversionistas'!F$12,Transporte!$B18,\"\")","v":""},{"$f":"IF(Transporte!$E18='Fondos-Inversionistas'!G$12,Transporte!$B18,\"\")","v":""},{"$f":"IF(Transporte!$E18='Fondos-Inversionistas'!H$12,Transporte!$B18,\"\")","v":""},{"$f":"IF(Transporte!$E18='Fondos-Inversionistas'!I$12,Transporte!$B18,\"\")","v":""},{"$f":"IF(Transporte!$E18='Fondos-Inversionistas'!J$12,Transporte!$B18,\"\")","v":""},{"$f":"IF(Transporte!$E18='Fondos-Inversionistas'!K$12,Transporte!$B18,\"\")","v":""},{"$f":"IF(Transporte!$E18='Fondos-Inversionistas'!L$12,Transporte!$B18,\"\")","v":""},{"$f":"_xlfn.XLOOKUP(A165,'Base-datos'!$B$553:$B$570,'Base-datos'!$F$553:$F$570)","v":{"$error":"#N/A"}},{"$f":"_xlfn.XLOOKUP(A165,'Base-datos'!$B$553:$B$570,'Base-datos'!$C$553:$C$570)","v":{"$error":"#N/A"}},{"$f":"_xlfn.XLOOKUP(A165,'Base-datos'!$B$553:$B$570,'Base-datos'!$D$553:$D$570)","v":{"$error":"#N/A"}},null,null,{"$f":"IF(OR(P$161=\"La actividad no cumple con el total de los criterios de No Daño Significativo\",Q$161=\"El sector no cumple con las salvaguardas mínimas\"),\"\",IF(AND('Base-datos'!$B$750=\"Sí\",'Base-datos'!$B$751=\"\",'Base-datos'!$B$752=\"\"),IF(N165=\"La actividad sí contribuye sustancialmente a la sostenibilidad\",SUM(B165:L165),0),IF(AND('Base-datos'!$B$750=\"Sí\",'Base-datos'!$B$751=\"Sí\",'Base-datos'!$B$752=\"\"),IF(AND(N165=\"La actividad sí contribuye sustancialmente a la sostenibilidad\",O165=\"La actividad sí contribuye sustancialmente a la sostenibilidad\"),SUM(B165:L165),0),IF(AND('Base-datos'!$B$750=\"Sí\",'Base-datos'!$B$751=\"Sí\",'Base-datos'!$B$752=\"Sí\"),IF(AND(N165=\"La actividad sí contribuye sustancialmente a la sostenibilidad\",O165=\"La actividad sí contribuye sustancialmente a la sostenibilidad\",M165=\"La actividad sí contribuye sustancialmente a la sostenibilidad\"),SUM(B165:L165),0),IF(AND('Base-datos'!$B$750=\"\",'Base-datos'!$B$751=\"Sí\",'Base-datos'!$B$752=\"\"),IF(O165=\"La actividad sí contribuye sustancialmente a la sostenibilidad\",SUM(B165:L165),0),IF(AND('Base-datos'!$B$750=\"\",'Base-datos'!$B$751=\"\",'Base-datos'!$B$752=\"Sí\"),IF(M165=\"La actividad sí contribuye sustancialmente a la sostenibilidad\",SUM(B165:L165),0),IF(AND('Base-datos'!$B$750=\"\",'Base-datos'!$B$751=\"Sí\",'Base-datos'!$B$752=\"Sí\"),IF(AND(O165=\"La actividad sí contribuye sustancialmente a la sostenibilidad\",M165=\"La actividad sí contribuye sustancialmente a la sostenibilidad\"),SUM(B165:L165),0),IF(AND('Base-datos'!$B$750=\"Sí\",'Base-datos'!$B$751=\"\",'Base-datos'!$B$752=\"Sí\"),IF(AND(N165=\"La actividad sí contribuye sustancialmente a la sostenibilidad\",M165=\"La actividad sí contribuye sustancialmente a la sostenibilidad\"),SUM(B165:L165),0),\"Por definir\"))))))))","v":"Por definir"}]
[{"$f":"Transporte!$C20","v":"Seleccione"},{"$f":"IF(Transporte!$E20='Fondos-Inversionistas'!B$12,Transporte!$B20,\"\")","v":""},{"$f":"IF(Transporte!$E20='Fondos-Inversionistas'!C$12,Transporte!$B20,\"\")","v":""},{"$f":"IF(Transporte!$E20='Fondos-Inversionistas'!D$12,Transporte!$B20,\"\")","v":""},{"$f":"IF(Transporte!$E20='Fondos-Inversionistas'!E$12,Transporte!$B20,\"\")","v":""},{"$f":"IF(Transporte!$E20='Fondos-Inversionistas'!F$12,Transporte!$B20,\"\")","v":""},{"$f":"IF(Transporte!$E20='Fondos-Inversionistas'!G$12,Transporte!$B20,\"\")","v":""},{"$f":"IF(Transporte!$E20='Fondos-Inversionistas'!H$12,Transporte!$B20,\"\")","v":""},{"$f":"IF(Transporte!$E20='Fondos-Inversionistas'!I$12,Transporte!$B20,\"\")","v":""},{"$f":"IF(Transporte!$E20='Fondos-Inversionistas'!J$12,Transporte!$B20,\"\")","v":""},{"$f":"IF(Transporte!$E20='Fondos-Inversionistas'!K$12,Transporte!$B20,\"\")","v":""},{"$f":"IF(Transporte!$E20='Fondos-Inversionistas'!L$12,Transporte!$B20,\"\")","v":""},{"$f":"_xlfn.XLOOKUP(A166,'Base-datos'!$B$553:$B$570,'Base-datos'!$F$553:$F$570)","v":{"$error":"#N/A"}},{"$f":"_xlfn.XLOOKUP(A166,'Base-datos'!$B$553:$B$570,'Base-datos'!$C$553:$C$570)","v":{"$error":"#N/A"}},{"$f":"_xlfn.XLOOKUP(A166,'Base-datos'!$B$553:$B$570,'Base-datos'!$D$553:$D$570)","v":{"$error":"#N/A"}},null,null,{"$f":"IF(OR(P$161=\"La actividad no cumple con el total de los criterios de No Daño Significativo\",Q$161=\"El sector no cumple con las salvaguardas mínimas\"),\"\",IF(AND('Base-datos'!$B$750=\"Sí\",'Base-datos'!$B$751=\"\",'Base-datos'!$B$752=\"\"),IF(N166=\"La actividad sí contribuye sustancialmente a la sostenibilidad\",SUM(B166:L166),0),IF(AND('Base-datos'!$B$750=\"Sí\",'Base-datos'!$B$751=\"Sí\",'Base-datos'!$B$752=\"\"),IF(AND(N166=\"La actividad sí contribuye sustancialmente a la sostenibilidad\",O166=\"La actividad sí contribuye sustancialmente a la sostenibilidad\"),SUM(B166:L166),0),IF(AND('Base-datos'!$B$750=\"Sí\",'Base-datos'!$B$751=\"Sí\",'Base-datos'!$B$752=\"Sí\"),IF(AND(N166=\"La actividad sí contribuye sustancialmente a la sostenibilidad\",O166=\"La actividad sí contribuye sustancialmente a la sostenibilidad\",M166=\"La actividad sí contribuye sustancialmente a la sostenibilidad\"),SUM(B166:L166),0),IF(AND('Base-datos'!$B$750=\"\",'Base-datos'!$B$751=\"Sí\",'Base-datos'!$B$752=\"\"),IF(O166=\"La actividad sí contribuye sustancialmente a la sostenibilidad\",SUM(B166:L166),0),IF(AND('Base-datos'!$B$750=\"\",'Base-datos'!$B$751=\"\",'Base-datos'!$B$752=\"Sí\"),IF(M166=\"La actividad sí contribuye sustancialmente a la sostenibilidad\",SUM(B166:L166),0),IF(AND('Base-datos'!$B$750=\"\",'Base-datos'!$B$751=\"Sí\",'Base-datos'!$B$752=\"Sí\"),IF(AND(O166=\"La actividad sí contribuye sustancialmente a la sostenibilidad\",M166=\"La actividad sí contribuye sustancialmente a la sostenibilidad\"),SUM(B166:L166),0),IF(AND('Base-datos'!$B$750=\"Sí\",'Base-datos'!$B$751=\"\",'Base-datos'!$B$752=\"Sí\"),IF(AND(N166=\"La actividad sí contribuye sustancialmente a la sostenibilidad\",M166=\"La actividad sí contribuye sustancialmente a la sostenibilidad\"),SUM(B166:L166),0),\"Por definir\"))))))))","v":"Por definir"}]
[{"$f":"Transporte!$C22","v":"Seleccione"},{"$f":"IF(Transporte!$E22='Fondos-Inversionistas'!B$12,Transporte!$B22,\"\")","v":""},{"$f":"IF(Transporte!$E22='Fondos-Inversionistas'!C$12,Transporte!$B22,\"\")","v":""},{"$f":"IF(Transporte!$E22='Fondos-Inversionistas'!D$12,Transporte!$B22,\"\")","v":""},{"$f":"IF(Transporte!$E22='Fondos-Inversionistas'!E$12,Transporte!$B22,\"\")","v":""},{"$f":"IF(Transporte!$E22='Fondos-Inversionistas'!F$12,Transporte!$B22,\"\")","v":""},{"$f":"IF(Transporte!$E22='Fondos-Inversionistas'!G$12,Transporte!$B22,\"\")","v":""},{"$f":"IF(Transporte!$E22='Fondos-Inversionistas'!H$12,Transporte!$B22,\"\")","v":""},{"$f":"IF(Transporte!$E22='Fondos-Inversionistas'!I$12,Transporte!$B22,\"\")","v":""},{"$f":"IF(Transporte!$E22='Fondos-Inversionistas'!J$12,Transporte!$B22,\"\")","v":""},{"$f":"IF(Transporte!$E22='Fondos-Inversionistas'!K$12,Transporte!$B22,\"\")","v":""},{"$f":"IF(Transporte!$E22='Fondos-Inversionistas'!L$12,Transporte!$B22,\"\")","v":""},{"$f":"_xlfn.XLOOKUP(A167,'Base-datos'!$B$553:$B$570,'Base-datos'!$F$553:$F$570)","v":{"$error":"#N/A"}},{"$f":"_xlfn.XLOOKUP(A167,'Base-datos'!$B$553:$B$570,'Base-datos'!$C$553:$C$570)","v":{"$error":"#N/A"}},{"$f":"_xlfn.XLOOKUP(A167,'Base-datos'!$B$553:$B$570,'Base-datos'!$D$553:$D$570)","v":{"$error":"#N/A"}},null,null,{"$f":"IF(OR(P$161=\"La actividad no cumple con el total de los criterios de No Daño Significativo\",Q$161=\"El sector no cumple con las salvaguardas mínimas\"),\"\",IF(AND('Base-datos'!$B$750=\"Sí\",'Base-datos'!$B$751=\"\",'Base-datos'!$B$752=\"\"),IF(N167=\"La actividad sí contribuye sustancialmente a la sostenibilidad\",SUM(B167:L167),0),IF(AND('Base-datos'!$B$750=\"Sí\",'Base-datos'!$B$751=\"Sí\",'Base-datos'!$B$752=\"\"),IF(AND(N167=\"La actividad sí contribuye sustancialmente a la sostenibilidad\",O167=\"La actividad sí contribuye sustancialmente a la sostenibilidad\"),SUM(B167:L167),0),IF(AND('Base-datos'!$B$750=\"Sí\",'Base-datos'!$B$751=\"Sí\",'Base-datos'!$B$752=\"Sí\"),IF(AND(N167=\"La actividad sí contribuye sustancialmente a la sostenibilidad\",O167=\"La actividad sí contribuye sustancialmente a la sostenibilidad\",M167=\"La actividad sí contribuye sustancialmente a la sostenibilidad\"),SUM(B167:L167),0),IF(AND('Base-datos'!$B$750=\"\",'Base-datos'!$B$751=\"Sí\",'Base-datos'!$B$752=\"\"),IF(O167=\"La actividad sí contribuye sustancialmente a la sostenibilidad\",SUM(B167:L167),0),IF(AND('Base-datos'!$B$750=\"\",'Base-datos'!$B$751=\"\",'Base-datos'!$B$752=\"Sí\"),IF(M167=\"La actividad sí contribuye sustancialmente a la sostenibilidad\",SUM(B167:L167),0),IF(AND('Base-datos'!$B$750=\"\",'Base-datos'!$B$751=\"Sí\",'Base-datos'!$B$752=\"Sí\"),IF(AND(O167=\"La actividad sí contribuye sustancialmente a la sostenibilidad\",M167=\"La actividad sí contribuye sustancialmente a la sostenibilidad\"),SUM(B167:L167),0),IF(AND('Base-datos'!$B$750=\"Sí\",'Base-datos'!$B$751=\"\",'Base-datos'!$B$752=\"Sí\"),IF(AND(N167=\"La actividad sí contribuye sustancialmente a la sostenibilidad\",M167=\"La actividad sí contribuye sustancialmente a la sostenibilidad\"),SUM(B167:L167),0),\"Por definir\"))))))))","v":"Por definir"}]
[{"$f":"Transporte!$C24","v":"Seleccione"},{"$f":"IF(Transporte!$E24='Fondos-Inversionistas'!B$12,Transporte!$B24,\"\")","v":""},{"$f":"IF(Transporte!$E24='Fondos-Inversionistas'!C$12,Transporte!$B24,\"\")","v":""},{"$f":"IF(Transporte!$E24='Fondos-Inversionistas'!D$12,Transporte!$B24,\"\")","v":""},{"$f":"IF(Transporte!$E24='Fondos-Inversionistas'!E$12,Transporte!$B24,\"\")","v":""},{"$f":"IF(Transporte!$E24='Fondos-Inversionistas'!F$12,Transporte!$B24,\"\")","v":""},{"$f":"IF(Transporte!$E24='Fondos-Inversionistas'!G$12,Transporte!$B24,\"\")","v":""},{"$f":"IF(Transporte!$E24='Fondos-Inversionistas'!H$12,Transporte!$B24,\"\")","v":""},{"$f":"IF(Transporte!$E24='Fondos-Inversionistas'!I$12,Transporte!$B24,\"\")","v":""},{"$f":"IF(Transporte!$E24='Fondos-Inversionistas'!J$12,Transporte!$B24,\"\")","v":""},{"$f":"IF(Transporte!$E24='Fondos-Inversionistas'!K$12,Transporte!$B24,\"\")","v":""},{"$f":"IF(Transporte!$E24='Fondos-Inversionistas'!L$12,Transporte!$B24,\"\")","v":""},{"$f":"_xlfn.XLOOKUP(A168,'Base-datos'!$B$553:$B$570,'Base-datos'!$F$553:$F$570)","v":{"$error":"#N/A"}},{"$f":"_xlfn.XLOOKUP(A168,'Base-datos'!$B$553:$B$570,'Base-datos'!$C$553:$C$570)","v":{"$error":"#N/A"}},{"$f":"_xlfn.XLOOKUP(A168,'Base-datos'!$B$553:$B$570,'Base-datos'!$D$553:$D$570)","v":{"$error":"#N/A"}},null,null,{"$f":"IF(OR(P$161=\"La actividad no cumple con el total de los criterios de No Daño Significativo\",Q$161=\"El sector no cumple con las salvaguardas mínimas\"),\"\",IF(AND('Base-datos'!$B$750=\"Sí\",'Base-datos'!$B$751=\"\",'Base-datos'!$B$752=\"\"),IF(N168=\"La actividad sí contribuye sustancialmente a la sostenibilidad\",SUM(B168:L168),0),IF(AND('Base-datos'!$B$750=\"Sí\",'Base-datos'!$B$751=\"Sí\",'Base-datos'!$B$752=\"\"),IF(AND(N168=\"La actividad sí contribuye sustancialmente a la sostenibilidad\",O168=\"La actividad sí contribuye sustancialmente a la sostenibilidad\"),SUM(B168:L168),0),IF(AND('Base-datos'!$B$750=\"Sí\",'Base-datos'!$B$751=\"Sí\",'Base-datos'!$B$752=\"Sí\"),IF(AND(N168=\"La actividad sí contribuye sustancialmente a la sostenibilidad\",O168=\"La actividad sí contribuye sustancialmente a la sostenibilidad\",M168=\"La actividad sí contribuye sustancialmente a la sostenibilidad\"),SUM(B168:L168),0),IF(AND('Base-datos'!$B$750=\"\",'Base-datos'!$B$751=\"Sí\",'Base-datos'!$B$752=\"\"),IF(O168=\"La actividad sí contribuye sustancialmente a la sostenibilidad\",SUM(B168:L168),0),IF(AND('Base-datos'!$B$750=\"\",'Base-datos'!$B$751=\"\",'Base-datos'!$B$752=\"Sí\"),IF(M168=\"La actividad sí contribuye sustancialmente a la sostenibilidad\",SUM(B168:L168),0),IF(AND('Base-datos'!$B$750=\"\",'Base-datos'!$B$751=\"Sí\",'Base-datos'!$B$752=\"Sí\"),IF(AND(O168=\"La actividad sí contribuye sustancialmente a la sostenibilidad\",M168=\"La actividad sí contribuye sustancialmente a la sostenibilidad\"),SUM(B168:L168),0),IF(AND('Base-datos'!$B$750=\"Sí\",'Base-datos'!$B$751=\"\",'Base-datos'!$B$752=\"Sí\"),IF(AND(N168=\"La actividad sí contribuye sustancialmente a la sostenibilidad\",M168=\"La actividad sí contribuye sustancialmente a la sostenibilidad\"),SUM(B168:L168),0),\"Por definir\"))))))))","v":"Por definir"}]
[{"$f":"Transporte!$C26","v":"Seleccione"},{"$f":"IF(Transporte!$E26='Fondos-Inversionistas'!B$12,Transporte!$B26,\"\")","v":""},{"$f":"IF(Transporte!$E26='Fondos-Inversionistas'!C$12,Transporte!$B26,\"\")","v":""},{"$f":"IF(Transporte!$E26='Fondos-Inversionistas'!D$12,Transporte!$B26,\"\")","v":""},{"$f":"IF(Transporte!$E26='Fondos-Inversionistas'!E$12,Transporte!$B26,\"\")","v":""},{"$f":"IF(Transporte!$E26='Fondos-Inversionistas'!F$12,Transporte!$B26,\"\")","v":""},{"$f":"IF(Transporte!$E26='Fondos-Inversionistas'!G$12,Transporte!$B26,\"\")","v":""},{"$f":"IF(Transporte!$E26='Fondos-Inversionistas'!H$12,Transporte!$B26,\"\")","v":""},{"$f":"IF(Transporte!$E26='Fondos-Inversionistas'!I$12,Transporte!$B26,\"\")","v":""},{"$f":"IF(Transporte!$E26='Fondos-Inversionistas'!J$12,Transporte!$B26,\"\")","v":""},{"$f":"IF(Transporte!$E26='Fondos-Inversionistas'!K$12,Transporte!$B26,\"\")","v":""},{"$f":"IF(Transporte!$E26='Fondos-Inversionistas'!L$12,Transporte!$B26,\"\")","v":""},{"$f":"_xlfn.XLOOKUP(A169,'Base-datos'!$B$553:$B$570,'Base-datos'!$F$553:$F$570)","v":{"$error":"#N/A"}},{"$f":"_xlfn.XLOOKUP(A169,'Base-datos'!$B$553:$B$570,'Base-datos'!$C$553:$C$570)","v":{"$error":"#N/A"}},{"$f":"_xlfn.XLOOKUP(A169,'Base-datos'!$B$553:$B$570,'Base-datos'!$D$553:$D$570)","v":{"$error":"#N/A"}},null,null,{"$f":"IF(OR(P$161=\"La actividad no cumple con el total de los criterios de No Daño Significativo\",Q$161=\"El sector no cumple con las salvaguardas mínimas\"),\"\",IF(AND('Base-datos'!$B$750=\"Sí\",'Base-datos'!$B$751=\"\",'Base-datos'!$B$752=\"\"),IF(N169=\"La actividad sí contribuye sustancialmente a la sostenibilidad\",SUM(B169:L169),0),IF(AND('Base-datos'!$B$750=\"Sí\",'Base-datos'!$B$751=\"Sí\",'Base-datos'!$B$752=\"\"),IF(AND(N169=\"La actividad sí contribuye sustancialmente a la sostenibilidad\",O169=\"La actividad sí contribuye sustancialmente a la sostenibilidad\"),SUM(B169:L169),0),IF(AND('Base-datos'!$B$750=\"Sí\",'Base-datos'!$B$751=\"Sí\",'Base-datos'!$B$752=\"Sí\"),IF(AND(N169=\"La actividad sí contribuye sustancialmente a la sostenibilidad\",O169=\"La actividad sí contribuye sustancialmente a la sostenibilidad\",M169=\"La actividad sí contribuye sustancialmente a la sostenibilidad\"),SUM(B169:L169),0),IF(AND('Base-datos'!$B$750=\"\",'Base-datos'!$B$751=\"Sí\",'Base-datos'!$B$752=\"\"),IF(O169=\"La actividad sí contribuye sustancialmente a la sostenibilidad\",SUM(B169:L169),0),IF(AND('Base-datos'!$B$750=\"\",'Base-datos'!$B$751=\"\",'Base-datos'!$B$752=\"Sí\"),IF(M169=\"La actividad sí contribuye sustancialmente a la sostenibilidad\",SUM(B169:L169),0),IF(AND('Base-datos'!$B$750=\"\",'Base-datos'!$B$751=\"Sí\",'Base-datos'!$B$752=\"Sí\"),IF(AND(O169=\"La actividad sí contribuye sustancialmente a la sostenibilidad\",M169=\"La actividad sí contribuye sustancialmente a la sostenibilidad\"),SUM(B169:L169),0),IF(AND('Base-datos'!$B$750=\"Sí\",'Base-datos'!$B$751=\"\",'Base-datos'!$B$752=\"Sí\"),IF(AND(N169=\"La actividad sí contribuye sustancialmente a la sostenibilidad\",M169=\"La actividad sí contribuye sustancialmente a la sostenibilidad\"),SUM(B169:L169),0),\"Por definir\"))))))))","v":"Por definir"}]
[{"$f":"Transporte!$C28","v":"Seleccione"},{"$f":"IF(Transporte!$E28='Fondos-Inversionistas'!B$12,Transporte!$B28,\"\")","v":""},{"$f":"IF(Transporte!$E28='Fondos-Inversionistas'!C$12,Transporte!$B28,\"\")","v":""},{"$f":"IF(Transporte!$E28='Fondos-Inversionistas'!D$12,Transporte!$B28,\"\")","v":""},{"$f":"IF(Transporte!$E28='Fondos-Inversionistas'!E$12,Transporte!$B28,\"\")","v":""},{"$f":"IF(Transporte!$E28='Fondos-Inversionistas'!F$12,Transporte!$B28,\"\")","v":""},{"$f":"IF(Transporte!$E28='Fondos-Inversionistas'!G$12,Transporte!$B28,\"\")","v":""},{"$f":"IF(Transporte!$E28='Fondos-Inversionistas'!H$12,Transporte!$B28,\"\")","v":""},{"$f":"IF(Transporte!$E28='Fondos-Inversionistas'!I$12,Transporte!$B28,\"\")","v":""},{"$f":"IF(Transporte!$E28='Fondos-Inversionistas'!J$12,Transporte!$B28,\"\")","v":""},{"$f":"IF(Transporte!$E28='Fondos-Inversionistas'!K$12,Transporte!$B28,\"\")","v":""},{"$f":"IF(Transporte!$E28='Fondos-Inversionistas'!L$12,Transporte!$B28,\"\")","v":""},{"$f":"_xlfn.XLOOKUP(A170,'Base-datos'!$B$553:$B$570,'Base-datos'!$F$553:$F$570)","v":{"$error":"#N/A"}},{"$f":"_xlfn.XLOOKUP(A170,'Base-datos'!$B$553:$B$570,'Base-datos'!$C$553:$C$570)","v":{"$error":"#N/A"}},{"$f":"_xlfn.XLOOKUP(A170,'Base-datos'!$B$553:$B$570,'Base-datos'!$D$553:$D$570)","v":{"$error":"#N/A"}},null,null,{"$f":"IF(OR(P$161=\"La actividad no cumple con el total de los criterios de No Daño Significativo\",Q$161=\"El sector no cumple con las salvaguardas mínimas\"),\"\",IF(AND('Base-datos'!$B$750=\"Sí\",'Base-datos'!$B$751=\"\",'Base-datos'!$B$752=\"\"),IF(N170=\"La actividad sí contribuye sustancialmente a la sostenibilidad\",SUM(B170:L170),0),IF(AND('Base-datos'!$B$750=\"Sí\",'Base-datos'!$B$751=\"Sí\",'Base-datos'!$B$752=\"\"),IF(AND(N170=\"La actividad sí contribuye sustancialmente a la sostenibilidad\",O170=\"La actividad sí contribuye sustancialmente a la sostenibilidad\"),SUM(B170:L170),0),IF(AND('Base-datos'!$B$750=\"Sí\",'Base-datos'!$B$751=\"Sí\",'Base-datos'!$B$752=\"Sí\"),IF(AND(N170=\"La actividad sí contribuye sustancialmente a la sostenibilidad\",O170=\"La actividad sí contribuye sustancialmente a la sostenibilidad\",M170=\"La actividad sí contribuye sustancialmente a la sostenibilidad\"),SUM(B170:L170),0),IF(AND('Base-datos'!$B$750=\"\",'Base-datos'!$B$751=\"Sí\",'Base-datos'!$B$752=\"\"),IF(O170=\"La actividad sí contribuye sustancialmente a la sostenibilidad\",SUM(B170:L170),0),IF(AND('Base-datos'!$B$750=\"\",'Base-datos'!$B$751=\"\",'Base-datos'!$B$752=\"Sí\"),IF(M170=\"La actividad sí contribuye sustancialmente a la sostenibilidad\",SUM(B170:L170),0),IF(AND('Base-datos'!$B$750=\"\",'Base-datos'!$B$751=\"Sí\",'Base-datos'!$B$752=\"Sí\"),IF(AND(O170=\"La actividad sí contribuye sustancialmente a la sostenibilidad\",M170=\"La actividad sí contribuye sustancialmente a la sostenibilidad\"),SUM(B170:L170),0),IF(AND('Base-datos'!$B$750=\"Sí\",'Base-datos'!$B$751=\"\",'Base-datos'!$B$752=\"Sí\"),IF(AND(N170=\"La actividad sí contribuye sustancialmente a la sostenibilidad\",M170=\"La actividad sí contribuye sustancialmente a la sostenibilidad\"),SUM(B170:L170),0),\"Por definir\"))))))))","v":"Por definir"}]
[{"$f":"Transporte!$C30","v":"Seleccione"},{"$f":"IF(Transporte!$E30='Fondos-Inversionistas'!B$12,Transporte!$B30,\"\")","v":""},{"$f":"IF(Transporte!$E30='Fondos-Inversionistas'!C$12,Transporte!$B30,\"\")","v":""},{"$f":"IF(Transporte!$E30='Fondos-Inversionistas'!D$12,Transporte!$B30,\"\")","v":""},{"$f":"IF(Transporte!$E30='Fondos-Inversionistas'!E$12,Transporte!$B30,\"\")","v":""},{"$f":"IF(Transporte!$E30='Fondos-Inversionistas'!F$12,Transporte!$B30,\"\")","v":""},{"$f":"IF(Transporte!$E30='Fondos-Inversionistas'!G$12,Transporte!$B30,\"\")","v":""},{"$f":"IF(Transporte!$E30='Fondos-Inversionistas'!H$12,Transporte!$B30,\"\")","v":""},{"$f":"IF(Transporte!$E30='Fondos-Inversionistas'!I$12,Transporte!$B30,\"\")","v":""},{"$f":"IF(Transporte!$E30='Fondos-Inversionistas'!J$12,Transporte!$B30,\"\")","v":""},{"$f":"IF(Transporte!$E30='Fondos-Inversionistas'!K$12,Transporte!$B30,\"\")","v":""},{"$f":"IF(Transporte!$E30='Fondos-Inversionistas'!L$12,Transporte!$B30,\"\")","v":""},{"$f":"_xlfn.XLOOKUP(A171,'Base-datos'!$B$553:$B$570,'Base-datos'!$F$553:$F$570)","v":{"$error":"#N/A"}},{"$f":"_xlfn.XLOOKUP(A171,'Base-datos'!$B$553:$B$570,'Base-datos'!$C$553:$C$570)","v":{"$error":"#N/A"}},{"$f":"_xlfn.XLOOKUP(A171,'Base-datos'!$B$553:$B$570,'Base-datos'!$D$553:$D$570)","v":{"$error":"#N/A"}},null,null,{"$f":"IF(OR(P$161=\"La actividad no cumple con el total de los criterios de No Daño Significativo\",Q$161=\"El sector no cumple con las salvaguardas mínimas\"),\"\",IF(AND('Base-datos'!$B$750=\"Sí\",'Base-datos'!$B$751=\"\",'Base-datos'!$B$752=\"\"),IF(N171=\"La actividad sí contribuye sustancialmente a la sostenibilidad\",SUM(B171:L171),0),IF(AND('Base-datos'!$B$750=\"Sí\",'Base-datos'!$B$751=\"Sí\",'Base-datos'!$B$752=\"\"),IF(AND(N171=\"La actividad sí contribuye sustancialmente a la sostenibilidad\",O171=\"La actividad sí contribuye sustancialmente a la sostenibilidad\"),SUM(B171:L171),0),IF(AND('Base-datos'!$B$750=\"Sí\",'Base-datos'!$B$751=\"Sí\",'Base-datos'!$B$752=\"Sí\"),IF(AND(N171=\"La actividad sí contribuye sustancialmente a la sostenibilidad\",O171=\"La actividad sí contribuye sustancialmente a la sostenibilidad\",M171=\"La actividad sí contribuye sustancialmente a la sostenibilidad\"),SUM(B171:L171),0),IF(AND('Base-datos'!$B$750=\"\",'Base-datos'!$B$751=\"Sí\",'Base-datos'!$B$752=\"\"),IF(O171=\"La actividad sí contribuye sustancialmente a la sostenibilidad\",SUM(B171:L171),0),IF(AND('Base-datos'!$B$750=\"\",'Base-datos'!$B$751=\"\",'Base-datos'!$B$752=\"Sí\"),IF(M171=\"La actividad sí contribuye sustancialmente a la sostenibilidad\",SUM(B171:L171),0),IF(AND('Base-datos'!$B$750=\"\",'Base-datos'!$B$751=\"Sí\",'Base-datos'!$B$752=\"Sí\"),IF(AND(O171=\"La actividad sí contribuye sustancialmente a la sostenibilidad\",M171=\"La actividad sí contribuye sustancialmente a la sostenibilidad\"),SUM(B171:L171),0),IF(AND('Base-datos'!$B$750=\"Sí\",'Base-datos'!$B$751=\"\",'Base-datos'!$B$752=\"Sí\"),IF(AND(N171=\"La actividad sí contribuye sustancialmente a la sostenibilidad\",M171=\"La actividad sí contribuye sustancialmente a la sostenibilidad\"),SUM(B171:L171),0),\"Por definir\"))))))))","v":"Por definir"}]
[{"$f":"Transporte!$C32","v":"Seleccione"},{"$f":"IF(Transporte!$E32='Fondos-Inversionistas'!B$12,Transporte!$B32,\"\")","v":""},{"$f":"IF(Transporte!$E32='Fondos-Inversionistas'!C$12,Transporte!$B32,\"\")","v":""},{"$f":"IF(Transporte!$E32='Fondos-Inversionistas'!D$12,Transporte!$B32,\"\")","v":""},{"$f":"IF(Transporte!$E32='Fondos-Inversionistas'!E$12,Transporte!$B32,\"\")","v":""},{"$f":"IF(Transporte!$E32='Fondos-Inversionistas'!F$12,Transporte!$B32,\"\")","v":""},{"$f":"IF(Transporte!$E32='Fondos-Inversionistas'!G$12,Transporte!$B32,\"\")","v":""},{"$f":"IF(Transporte!$E32='Fondos-Inversionistas'!H$12,Transporte!$B32,\"\")","v":""},{"$f":"IF(Transporte!$E32='Fondos-Inversionistas'!I$12,Transporte!$B32,\"\")","v":""},{"$f":"IF(Transporte!$E32='Fondos-Inversionistas'!J$12,Transporte!$B32,\"\")","v":""},{"$f":"IF(Transporte!$E32='Fondos-Inversionistas'!K$12,Transporte!$B32,\"\")","v":""},{"$f":"IF(Transporte!$E32='Fondos-Inversionistas'!L$12,Transporte!$B32,\"\")","v":""},{"$f":"_xlfn.XLOOKUP(A172,'Base-datos'!$B$553:$B$570,'Base-datos'!$F$553:$F$570)","v":{"$error":"#N/A"}},{"$f":"_xlfn.XLOOKUP(A172,'Base-datos'!$B$553:$B$570,'Base-datos'!$C$553:$C$570)","v":{"$error":"#N/A"}},{"$f":"_xlfn.XLOOKUP(A172,'Base-datos'!$B$553:$B$570,'Base-datos'!$D$553:$D$570)","v":{"$error":"#N/A"}},null,null,{"$f":"IF(OR(P$161=\"La actividad no cumple con el total de los criterios de No Daño Significativo\",Q$161=\"El sector no cumple con las salvaguardas mínimas\"),\"\",IF(AND('Base-datos'!$B$750=\"Sí\",'Base-datos'!$B$751=\"\",'Base-datos'!$B$752=\"\"),IF(N172=\"La actividad sí contribuye sustancialmente a la sostenibilidad\",SUM(B172:L172),0),IF(AND('Base-datos'!$B$750=\"Sí\",'Base-datos'!$B$751=\"Sí\",'Base-datos'!$B$752=\"\"),IF(AND(N172=\"La actividad sí contribuye sustancialmente a la sostenibilidad\",O172=\"La actividad sí contribuye sustancialmente a la sostenibilidad\"),SUM(B172:L172),0),IF(AND('Base-datos'!$B$750=\"Sí\",'Base-datos'!$B$751=\"Sí\",'Base-datos'!$B$752=\"Sí\"),IF(AND(N172=\"La actividad sí contribuye sustancialmente a la sostenibilidad\",O172=\"La actividad sí contribuye sustancialmente a la sostenibilidad\",M172=\"La actividad sí contribuye sustancialmente a la sostenibilidad\"),SUM(B172:L172),0),IF(AND('Base-datos'!$B$750=\"\",'Base-datos'!$B$751=\"Sí\",'Base-datos'!$B$752=\"\"),IF(O172=\"La actividad sí contribuye sustancialmente a la sostenibilidad\",SUM(B172:L172),0),IF(AND('Base-datos'!$B$750=\"\",'Base-datos'!$B$751=\"\",'Base-datos'!$B$752=\"Sí\"),IF(M172=\"La actividad sí contribuye sustancialmente a la sostenibilidad\",SUM(B172:L172),0),IF(AND('Base-datos'!$B$750=\"\",'Base-datos'!$B$751=\"Sí\",'Base-datos'!$B$752=\"Sí\"),IF(AND(O172=\"La actividad sí contribuye sustancialmente a la sostenibilidad\",M172=\"La actividad sí contribuye sustancialmente a la sostenibilidad\"),SUM(B172:L172),0),IF(AND('Base-datos'!$B$750=\"Sí\",'Base-datos'!$B$751=\"\",'Base-datos'!$B$752=\"Sí\"),IF(AND(N172=\"La actividad sí contribuye sustancialmente a la sostenibilidad\",M172=\"La actividad sí contribuye sustancialmente a la sostenibilidad\"),SUM(B172:L172),0),\"Por definir\"))))))))","v":"Por definir"}]
[{"$f":"Transporte!$C34","v":"Seleccione"},{"$f":"IF(Transporte!$E34='Fondos-Inversionistas'!B$12,Transporte!$B34,\"\")","v":""},{"$f":"IF(Transporte!$E34='Fondos-Inversionistas'!C$12,Transporte!$B34,\"\")","v":""},{"$f":"IF(Transporte!$E34='Fondos-Inversionistas'!D$12,Transporte!$B34,\"\")","v":""},{"$f":"IF(Transporte!$E34='Fondos-Inversionistas'!E$12,Transporte!$B34,\"\")","v":""},{"$f":"IF(Transporte!$E34='Fondos-Inversionistas'!F$12,Transporte!$B34,\"\")","v":""},{"$f":"IF(Transporte!$E34='Fondos-Inversionistas'!G$12,Transporte!$B34,\"\")","v":""},{"$f":"IF(Transporte!$E34='Fondos-Inversionistas'!H$12,Transporte!$B34,\"\")","v":""},{"$f":"IF(Transporte!$E34='Fondos-Inversionistas'!I$12,Transporte!$B34,\"\")","v":""},{"$f":"IF(Transporte!$E34='Fondos-Inversionistas'!J$12,Transporte!$B34,\"\")","v":""},{"$f":"IF(Transporte!$E34='Fondos-Inversionistas'!K$12,Transporte!$B34,\"\")","v":""},{"$f":"IF(Transporte!$E34='Fondos-Inversionistas'!L$12,Transporte!$B34,\"\")","v":""},{"$f":"_xlfn.XLOOKUP(A173,'Base-datos'!$B$553:$B$570,'Base-datos'!$F$553:$F$570)","v":{"$error":"#N/A"}},{"$f":"_xlfn.XLOOKUP(A173,'Base-datos'!$B$553:$B$570,'Base-datos'!$C$553:$C$570)","v":{"$error":"#N/A"}},{"$f":"_xlfn.XLOOKUP(A173,'Base-datos'!$B$553:$B$570,'Base-datos'!$D$553:$D$570)","v":{"$error":"#N/A"}},null,null,{"$f":"IF(OR(P$161=\"La actividad no cumple con el total de los criterios de No Daño Significativo\",Q$161=\"El sector no cumple con las salvaguardas mínimas\"),\"\",IF(AND('Base-datos'!$B$750=\"Sí\",'Base-datos'!$B$751=\"\",'Base-datos'!$B$752=\"\"),IF(N173=\"La actividad sí contribuye sustancialmente a la sostenibilidad\",SUM(B173:L173),0),IF(AND('Base-datos'!$B$750=\"Sí\",'Base-datos'!$B$751=\"Sí\",'Base-datos'!$B$752=\"\"),IF(AND(N173=\"La actividad sí contribuye sustancialmente a la sostenibilidad\",O173=\"La actividad sí contribuye sustancialmente a la sostenibilidad\"),SUM(B173:L173),0),IF(AND('Base-datos'!$B$750=\"Sí\",'Base-datos'!$B$751=\"Sí\",'Base-datos'!$B$752=\"Sí\"),IF(AND(N173=\"La actividad sí contribuye sustancialmente a la sostenibilidad\",O173=\"La actividad sí contribuye sustancialmente a la sostenibilidad\",M173=\"La actividad sí contribuye sustancialmente a la sostenibilidad\"),SUM(B173:L173),0),IF(AND('Base-datos'!$B$750=\"\",'Base-datos'!$B$751=\"Sí\",'Base-datos'!$B$752=\"\"),IF(O173=\"La actividad sí contribuye sustancialmente a la sostenibilidad\",SUM(B173:L173),0),IF(AND('Base-datos'!$B$750=\"\",'Base-datos'!$B$751=\"\",'Base-datos'!$B$752=\"Sí\"),IF(M173=\"La actividad sí contribuye sustancialmente a la sostenibilidad\",SUM(B173:L173),0),IF(AND('Base-datos'!$B$750=\"\",'Base-datos'!$B$751=\"Sí\",'Base-datos'!$B$752=\"Sí\"),IF(AND(O173=\"La actividad sí contribuye sustancialmente a la sostenibilidad\",M173=\"La actividad sí contribuye sustancialmente a la sostenibilidad\"),SUM(B173:L173),0),IF(AND('Base-datos'!$B$750=\"Sí\",'Base-datos'!$B$751=\"\",'Base-datos'!$B$752=\"Sí\"),IF(AND(N173=\"La actividad sí contribuye sustancialmente a la sostenibilidad\",M173=\"La actividad sí contribuye sustancialmente a la sostenibilidad\"),SUM(B173:L173),0),\"Por definir\"))))))))","v":"Por definir"}]
[{"$f":"Transporte!$C36","v":"Seleccione"},{"$f":"IF(Transporte!$E36='Fondos-Inversionistas'!B$12,Transporte!$B36,\"\")","v":""},{"$f":"IF(Transporte!$E36='Fondos-Inversionistas'!C$12,Transporte!$B36,\"\")","v":""},{"$f":"IF(Transporte!$E36='Fondos-Inversionistas'!D$12,Transporte!$B36,\"\")","v":""},{"$f":"IF(Transporte!$E36='Fondos-Inversionistas'!E$12,Transporte!$B36,\"\")","v":""},{"$f":"IF(Transporte!$E36='Fondos-Inversionistas'!F$12,Transporte!$B36,\"\")","v":""},{"$f":"IF(Transporte!$E36='Fondos-Inversionistas'!G$12,Transporte!$B36,\"\")","v":""},{"$f":"IF(Transporte!$E36='Fondos-Inversionistas'!H$12,Transporte!$B36,\"\")","v":""},{"$f":"IF(Transporte!$E36='Fondos-Inversionistas'!I$12,Transporte!$B36,\"\")","v":""},{"$f":"IF(Transporte!$E36='Fondos-Inversionistas'!J$12,Transporte!$B36,\"\")","v":""},{"$f":"IF(Transporte!$E36='Fondos-Inversionistas'!K$12,Transporte!$B36,\"\")","v":""},{"$f":"IF(Transporte!$E36='Fondos-Inversionistas'!L$12,Transporte!$B36,\"\")","v":""},{"$f":"_xlfn.XLOOKUP(A174,'Base-datos'!$B$553:$B$570,'Base-datos'!$F$553:$F$570)","v":{"$error":"#N/A"}},{"$f":"_xlfn.XLOOKUP(A174,'Base-datos'!$B$553:$B$570,'Base-datos'!$C$553:$C$570)","v":{"$error":"#N/A"}},{"$f":"_xlfn.XLOOKUP(A174,'Base-datos'!$B$553:$B$570,'Base-datos'!$D$553:$D$570)","v":{"$error":"#N/A"}},null,null,{"$f":"IF(OR(P$161=\"La actividad no cumple con el total de los criterios de No Daño Significativo\",Q$161=\"El sector no cumple con las salvaguardas mínimas\"),\"\",IF(AND('Base-datos'!$B$750=\"Sí\",'Base-datos'!$B$751=\"\",'Base-datos'!$B$752=\"\"),IF(N174=\"La actividad sí contribuye sustancialmente a la sostenibilidad\",SUM(B174:L174),0),IF(AND('Base-datos'!$B$750=\"Sí\",'Base-datos'!$B$751=\"Sí\",'Base-datos'!$B$752=\"\"),IF(AND(N174=\"La actividad sí contribuye sustancialmente a la sostenibilidad\",O174=\"La actividad sí contribuye sustancialmente a la sostenibilidad\"),SUM(B174:L174),0),IF(AND('Base-datos'!$B$750=\"Sí\",'Base-datos'!$B$751=\"Sí\",'Base-datos'!$B$752=\"Sí\"),IF(AND(N174=\"La actividad sí contribuye sustancialmente a la sostenibilidad\",O174=\"La actividad sí contribuye sustancialmente a la sostenibilidad\",M174=\"La actividad sí contribuye sustancialmente a la sostenibilidad\"),SUM(B174:L174),0),IF(AND('Base-datos'!$B$750=\"\",'Base-datos'!$B$751=\"Sí\",'Base-datos'!$B$752=\"\"),IF(O174=\"La actividad sí contribuye sustancialmente a la sostenibilidad\",SUM(B174:L174),0),IF(AND('Base-datos'!$B$750=\"\",'Base-datos'!$B$751=\"\",'Base-datos'!$B$752=\"Sí\"),IF(M174=\"La actividad sí contribuye sustancialmente a la sostenibilidad\",SUM(B174:L174),0),IF(AND('Base-datos'!$B$750=\"\",'Base-datos'!$B$751=\"Sí\",'Base-datos'!$B$752=\"Sí\"),IF(AND(O174=\"La actividad sí contribuye sustancialmente a la sostenibilidad\",M174=\"La actividad sí contribuye sustancialmente a la sostenibilidad\"),SUM(B174:L174),0),IF(AND('Base-datos'!$B$750=\"Sí\",'Base-datos'!$B$751=\"\",'Base-datos'!$B$752=\"Sí\"),IF(AND(N174=\"La actividad sí contribuye sustancialmente a la sostenibilidad\",M174=\"La actividad sí contribuye sustancialmente a la sostenibilidad\"),SUM(B174:L174),0),\"Por definir\"))))))))","v":"Por definir"}]
[{"$f":"Transporte!$C38","v":"Seleccione"},{"$f":"IF(Transporte!$E38='Fondos-Inversionistas'!B$12,Transporte!$B38,\"\")","v":""},{"$f":"IF(Transporte!$E38='Fondos-Inversionistas'!C$12,Transporte!$B38,\"\")","v":""},{"$f":"IF(Transporte!$E38='Fondos-Inversionistas'!D$12,Transporte!$B38,\"\")","v":""},{"$f":"IF(Transporte!$E38='Fondos-Inversionistas'!E$12,Transporte!$B38,\"\")","v":""},{"$f":"IF(Transporte!$E38='Fondos-Inversionistas'!F$12,Transporte!$B38,\"\")","v":""},{"$f":"IF(Transporte!$E38='Fondos-Inversionistas'!G$12,Transporte!$B38,\"\")","v":""},{"$f":"IF(Transporte!$E38='Fondos-Inversionistas'!H$12,Transporte!$B38,\"\")","v":""},{"$f":"IF(Transporte!$E38='Fondos-Inversionistas'!I$12,Transporte!$B38,\"\")","v":""},{"$f":"IF(Transporte!$E38='Fondos-Inversionistas'!J$12,Transporte!$B38,\"\")","v":""},{"$f":"IF(Transporte!$E38='Fondos-Inversionistas'!K$12,Transporte!$B38,\"\")","v":""},{"$f":"IF(Transporte!$E38='Fondos-Inversionistas'!L$12,Transporte!$B38,\"\")","v":""},{"$f":"_xlfn.XLOOKUP(A175,'Base-datos'!$B$553:$B$570,'Base-datos'!$F$553:$F$570)","v":{"$error":"#N/A"}},{"$f":"_xlfn.XLOOKUP(A175,'Base-datos'!$B$553:$B$570,'Base-datos'!$C$553:$C$570)","v":{"$error":"#N/A"}},{"$f":"_xlfn.XLOOKUP(A175,'Base-datos'!$B$553:$B$570,'Base-datos'!$D$553:$D$570)","v":{"$error":"#N/A"}},null,null,{"$f":"IF(OR(P$161=\"La actividad no cumple con el total de los criterios de No Daño Significativo\",Q$161=\"El sector no cumple con las salvaguardas mínimas\"),\"\",IF(AND('Base-datos'!$B$750=\"Sí\",'Base-datos'!$B$751=\"\",'Base-datos'!$B$752=\"\"),IF(N175=\"La actividad sí contribuye sustancialmente a la sostenibilidad\",SUM(B175:L175),0),IF(AND('Base-datos'!$B$750=\"Sí\",'Base-datos'!$B$751=\"Sí\",'Base-datos'!$B$752=\"\"),IF(AND(N175=\"La actividad sí contribuye sustancialmente a la sostenibilidad\",O175=\"La actividad sí contribuye sustancialmente a la sostenibilidad\"),SUM(B175:L175),0),IF(AND('Base-datos'!$B$750=\"Sí\",'Base-datos'!$B$751=\"Sí\",'Base-datos'!$B$752=\"Sí\"),IF(AND(N175=\"La actividad sí contribuye sustancialmente a la sostenibilidad\",O175=\"La actividad sí contribuye sustancialmente a la sostenibilidad\",M175=\"La actividad sí contribuye sustancialmente a la sostenibilidad\"),SUM(B175:L175),0),IF(AND('Base-datos'!$B$750=\"\",'Base-datos'!$B$751=\"Sí\",'Base-datos'!$B$752=\"\"),IF(O175=\"La actividad sí contribuye sustancialmente a la sostenibilidad\",SUM(B175:L175),0),IF(AND('Base-datos'!$B$750=\"\",'Base-datos'!$B$751=\"\",'Base-datos'!$B$752=\"Sí\"),IF(M175=\"La actividad sí contribuye sustancialmente a la sostenibilidad\",SUM(B175:L175),0),IF(AND('Base-datos'!$B$750=\"\",'Base-datos'!$B$751=\"Sí\",'Base-datos'!$B$752=\"Sí\"),IF(AND(O175=\"La actividad sí contribuye sustancialmente a la sostenibilidad\",M175=\"La actividad sí contribuye sustancialmente a la sostenibilidad\"),SUM(B175:L175),0),IF(AND('Base-datos'!$B$750=\"Sí\",'Base-datos'!$B$751=\"\",'Base-datos'!$B$752=\"Sí\"),IF(AND(N175=\"La actividad sí contribuye sustancialmente a la sostenibilidad\",M175=\"La actividad sí contribuye sustancialmente a la sostenibilidad\"),SUM(B175:L175),0),\"Por definir\"))))))))","v":"Por definir"}]
[{"$f":"Transporte!$C40","v":"Seleccione"},{"$f":"IF(Transporte!$E40='Fondos-Inversionistas'!B$12,Transporte!$B40,\"\")","v":""},{"$f":"IF(Transporte!$E40='Fondos-Inversionistas'!C$12,Transporte!$B40,\"\")","v":""},{"$f":"IF(Transporte!$E40='Fondos-Inversionistas'!D$12,Transporte!$B40,\"\")","v":""},{"$f":"IF(Transporte!$E40='Fondos-Inversionistas'!E$12,Transporte!$B40,\"\")","v":""},{"$f":"IF(Transporte!$E40='Fondos-Inversionistas'!F$12,Transporte!$B40,\"\")","v":""},{"$f":"IF(Transporte!$E40='Fondos-Inversionistas'!G$12,Transporte!$B40,\"\")","v":""},{"$f":"IF(Transporte!$E40='Fondos-Inversionistas'!H$12,Transporte!$B40,\"\")","v":""},{"$f":"IF(Transporte!$E40='Fondos-Inversionistas'!I$12,Transporte!$B40,\"\")","v":""},{"$f":"IF(Transporte!$E40='Fondos-Inversionistas'!J$12,Transporte!$B40,\"\")","v":""},{"$f":"IF(Transporte!$E40='Fondos-Inversionistas'!K$12,Transporte!$B40,\"\")","v":""},{"$f":"IF(Transporte!$E40='Fondos-Inversionistas'!L$12,Transporte!$B40,\"\")","v":""},{"$f":"_xlfn.XLOOKUP(A176,'Base-datos'!$B$553:$B$570,'Base-datos'!$F$553:$F$570)","v":{"$error":"#N/A"}},{"$f":"_xlfn.XLOOKUP(A176,'Base-datos'!$B$553:$B$570,'Base-datos'!$C$553:$C$570)","v":{"$error":"#N/A"}},{"$f":"_xlfn.XLOOKUP(A176,'Base-datos'!$B$553:$B$570,'Base-datos'!$D$553:$D$570)","v":{"$error":"#N/A"}},null,null,{"$f":"IF(OR(P$161=\"La actividad no cumple con el total de los criterios de No Daño Significativo\",Q$161=\"El sector no cumple con las salvaguardas mínimas\"),\"\",IF(AND('Base-datos'!$B$750=\"Sí\",'Base-datos'!$B$751=\"\",'Base-datos'!$B$752=\"\"),IF(N176=\"La actividad sí contribuye sustancialmente a la sostenibilidad\",SUM(B176:L176),0),IF(AND('Base-datos'!$B$750=\"Sí\",'Base-datos'!$B$751=\"Sí\",'Base-datos'!$B$752=\"\"),IF(AND(N176=\"La actividad sí contribuye sustancialmente a la sostenibilidad\",O176=\"La actividad sí contribuye sustancialmente a la sostenibilidad\"),SUM(B176:L176),0),IF(AND('Base-datos'!$B$750=\"Sí\",'Base-datos'!$B$751=\"Sí\",'Base-datos'!$B$752=\"Sí\"),IF(AND(N176=\"La actividad sí contribuye sustancialmente a la sostenibilidad\",O176=\"La actividad sí contribuye sustancialmente a la sostenibilidad\",M176=\"La actividad sí contribuye sustancialmente a la sostenibilidad\"),SUM(B176:L176),0),IF(AND('Base-datos'!$B$750=\"\",'Base-datos'!$B$751=\"Sí\",'Base-datos'!$B$752=\"\"),IF(O176=\"La actividad sí contribuye sustancialmente a la sostenibilidad\",SUM(B176:L176),0),IF(AND('Base-datos'!$B$750=\"\",'Base-datos'!$B$751=\"\",'Base-datos'!$B$752=\"Sí\"),IF(M176=\"La actividad sí contribuye sustancialmente a la sostenibilidad\",SUM(B176:L176),0),IF(AND('Base-datos'!$B$750=\"\",'Base-datos'!$B$751=\"Sí\",'Base-datos'!$B$752=\"Sí\"),IF(AND(O176=\"La actividad sí contribuye sustancialmente a la sostenibilidad\",M176=\"La actividad sí contribuye sustancialmente a la sostenibilidad\"),SUM(B176:L176),0),IF(AND('Base-datos'!$B$750=\"Sí\",'Base-datos'!$B$751=\"\",'Base-datos'!$B$752=\"Sí\"),IF(AND(N176=\"La actividad sí contribuye sustancialmente a la sostenibilidad\",M176=\"La actividad sí contribuye sustancialmente a la sostenibilidad\"),SUM(B176:L176),0),\"Por definir\"))))))))","v":"Por definir"}]
[{"$f":"Transporte!$C42","v":"Seleccione"},{"$f":"IF(Transporte!$E42='Fondos-Inversionistas'!B$12,Transporte!$B42,\"\")","v":""},{"$f":"IF(Transporte!$E42='Fondos-Inversionistas'!C$12,Transporte!$B42,\"\")","v":""},{"$f":"IF(Transporte!$E42='Fondos-Inversionistas'!D$12,Transporte!$B42,\"\")","v":""},{"$f":"IF(Transporte!$E42='Fondos-Inversionistas'!E$12,Transporte!$B42,\"\")","v":""},{"$f":"IF(Transporte!$E42='Fondos-Inversionistas'!F$12,Transporte!$B42,\"\")","v":""},{"$f":"IF(Transporte!$E42='Fondos-Inversionistas'!G$12,Transporte!$B42,\"\")","v":""},{"$f":"IF(Transporte!$E42='Fondos-Inversionistas'!H$12,Transporte!$B42,\"\")","v":""},{"$f":"IF(Transporte!$E42='Fondos-Inversionistas'!I$12,Transporte!$B42,\"\")","v":""},{"$f":"IF(Transporte!$E42='Fondos-Inversionistas'!J$12,Transporte!$B42,\"\")","v":""},{"$f":"IF(Transporte!$E42='Fondos-Inversionistas'!K$12,Transporte!$B42,\"\")","v":""},{"$f":"IF(Transporte!$E42='Fondos-Inversionistas'!L$12,Transporte!$B42,\"\")","v":""},{"$f":"_xlfn.XLOOKUP(A177,'Base-datos'!$B$553:$B$570,'Base-datos'!$F$553:$F$570)","v":{"$error":"#N/A"}},{"$f":"_xlfn.XLOOKUP(A177,'Base-datos'!$B$553:$B$570,'Base-datos'!$C$553:$C$570)","v":{"$error":"#N/A"}},{"$f":"_xlfn.XLOOKUP(A177,'Base-datos'!$B$553:$B$570,'Base-datos'!$D$553:$D$570)","v":{"$error":"#N/A"}},null,null,{"$f":"IF(OR(P$161=\"La actividad no cumple con el total de los criterios de No Daño Significativo\",Q$161=\"El sector no cumple con las salvaguardas mínimas\"),\"\",IF(AND('Base-datos'!$B$750=\"Sí\",'Base-datos'!$B$751=\"\",'Base-datos'!$B$752=\"\"),IF(N177=\"La actividad sí contribuye sustancialmente a la sostenibilidad\",SUM(B177:L177),0),IF(AND('Base-datos'!$B$750=\"Sí\",'Base-datos'!$B$751=\"Sí\",'Base-datos'!$B$752=\"\"),IF(AND(N177=\"La actividad sí contribuye sustancialmente a la sostenibilidad\",O177=\"La actividad sí contribuye sustancialmente a la sostenibilidad\"),SUM(B177:L177),0),IF(AND('Base-datos'!$B$750=\"Sí\",'Base-datos'!$B$751=\"Sí\",'Base-datos'!$B$752=\"Sí\"),IF(AND(N177=\"La actividad sí contribuye sustancialmente a la sostenibilidad\",O177=\"La actividad sí contribuye sustancialmente a la sostenibilidad\",M177=\"La actividad sí contribuye sustancialmente a la sostenibilidad\"),SUM(B177:L177),0),IF(AND('Base-datos'!$B$750=\"\",'Base-datos'!$B$751=\"Sí\",'Base-datos'!$B$752=\"\"),IF(O177=\"La actividad sí contribuye sustancialmente a la sostenibilidad\",SUM(B177:L177),0),IF(AND('Base-datos'!$B$750=\"\",'Base-datos'!$B$751=\"\",'Base-datos'!$B$752=\"Sí\"),IF(M177=\"La actividad sí contribuye sustancialmente a la sostenibilidad\",SUM(B177:L177),0),IF(AND('Base-datos'!$B$750=\"\",'Base-datos'!$B$751=\"Sí\",'Base-datos'!$B$752=\"Sí\"),IF(AND(O177=\"La actividad sí contribuye sustancialmente a la sostenibilidad\",M177=\"La actividad sí contribuye sustancialmente a la sostenibilidad\"),SUM(B177:L177),0),IF(AND('Base-datos'!$B$750=\"Sí\",'Base-datos'!$B$751=\"\",'Base-datos'!$B$752=\"Sí\"),IF(AND(N177=\"La actividad sí contribuye sustancialmente a la sostenibilidad\",M177=\"La actividad sí contribuye sustancialmente a la sostenibilidad\"),SUM(B177:L177),0),\"Por definir\"))))))))","v":"Por definir"}]
[{"$f":"Transporte!$C44","v":"Seleccione"},{"$f":"IF(Transporte!$E44='Fondos-Inversionistas'!B$12,Transporte!$B44,\"\")","v":""},{"$f":"IF(Transporte!$E44='Fondos-Inversionistas'!C$12,Transporte!$B44,\"\")","v":""},{"$f":"IF(Transporte!$E44='Fondos-Inversionistas'!D$12,Transporte!$B44,\"\")","v":""},{"$f":"IF(Transporte!$E44='Fondos-Inversionistas'!E$12,Transporte!$B44,\"\")","v":""},{"$f":"IF(Transporte!$E44='Fondos-Inversionistas'!F$12,Transporte!$B44,\"\")","v":""},{"$f":"IF(Transporte!$E44='Fondos-Inversionistas'!G$12,Transporte!$B44,\"\")","v":""},{"$f":"IF(Transporte!$E44='Fondos-Inversionistas'!H$12,Transporte!$B44,\"\")","v":""},{"$f":"IF(Transporte!$E44='Fondos-Inversionistas'!I$12,Transporte!$B44,\"\")","v":""},{"$f":"IF(Transporte!$E44='Fondos-Inversionistas'!J$12,Transporte!$B44,\"\")","v":""},{"$f":"IF(Transporte!$E44='Fondos-Inversionistas'!K$12,Transporte!$B44,\"\")","v":""},{"$f":"IF(Transporte!$E44='Fondos-Inversionistas'!L$12,Transporte!$B44,\"\")","v":""},{"$f":"_xlfn.XLOOKUP(A178,'Base-datos'!$B$553:$B$570,'Base-datos'!$F$553:$F$570)","v":{"$error":"#N/A"}},{"$f":"_xlfn.XLOOKUP(A178,'Base-datos'!$B$553:$B$570,'Base-datos'!$C$553:$C$570)","v":{"$error":"#N/A"}},{"$f":"_xlfn.XLOOKUP(A178,'Base-datos'!$B$553:$B$570,'Base-datos'!$D$553:$D$570)","v":{"$error":"#N/A"}},null,null,{"$f":"IF(OR(P$161=\"La actividad no cumple con el total de los criterios de No Daño Significativo\",Q$161=\"El sector no cumple con las salvaguardas mínimas\"),\"\",IF(AND('Base-datos'!$B$750=\"Sí\",'Base-datos'!$B$751=\"\",'Base-datos'!$B$752=\"\"),IF(N178=\"La actividad sí contribuye sustancialmente a la sostenibilidad\",SUM(B178:L178),0),IF(AND('Base-datos'!$B$750=\"Sí\",'Base-datos'!$B$751=\"Sí\",'Base-datos'!$B$752=\"\"),IF(AND(N178=\"La actividad sí contribuye sustancialmente a la sostenibilidad\",O178=\"La actividad sí contribuye sustancialmente a la sostenibilidad\"),SUM(B178:L178),0),IF(AND('Base-datos'!$B$750=\"Sí\",'Base-datos'!$B$751=\"Sí\",'Base-datos'!$B$752=\"Sí\"),IF(AND(N178=\"La actividad sí contribuye sustancialmente a la sostenibilidad\",O178=\"La actividad sí contribuye sustancialmente a la sostenibilidad\",M178=\"La actividad sí contribuye sustancialmente a la sostenibilidad\"),SUM(B178:L178),0),IF(AND('Base-datos'!$B$750=\"\",'Base-datos'!$B$751=\"Sí\",'Base-datos'!$B$752=\"\"),IF(O178=\"La actividad sí contribuye sustancialmente a la sostenibilidad\",SUM(B178:L178),0),IF(AND('Base-datos'!$B$750=\"\",'Base-datos'!$B$751=\"\",'Base-datos'!$B$752=\"Sí\"),IF(M178=\"La actividad sí contribuye sustancialmente a la sostenibilidad\",SUM(B178:L178),0),IF(AND('Base-datos'!$B$750=\"\",'Base-datos'!$B$751=\"Sí\",'Base-datos'!$B$752=\"Sí\"),IF(AND(O178=\"La actividad sí contribuye sustancialmente a la sostenibilidad\",M178=\"La actividad sí contribuye sustancialmente a la sostenibilidad\"),SUM(B178:L178),0),IF(AND('Base-datos'!$B$750=\"Sí\",'Base-datos'!$B$751=\"\",'Base-datos'!$B$752=\"Sí\"),IF(AND(N178=\"La actividad sí contribuye sustancialmente a la sostenibilidad\",M178=\"La actividad sí contribuye sustancialmente a la sostenibilidad\"),SUM(B178:L178),0),\"Por definir\"))))))))","v":"Por definir"}]
[{"$f":"Transporte!$C46","v":"Seleccione"},{"$f":"IF(Transporte!$E46='Fondos-Inversionistas'!B$12,Transporte!$B46,\"\")","v":""},{"$f":"IF(Transporte!$E46='Fondos-Inversionistas'!C$12,Transporte!$B46,\"\")","v":""},{"$f":"IF(Transporte!$E46='Fondos-Inversionistas'!D$12,Transporte!$B46,\"\")","v":""},{"$f":"IF(Transporte!$E46='Fondos-Inversionistas'!E$12,Transporte!$B46,\"\")","v":""},{"$f":"IF(Transporte!$E46='Fondos-Inversionistas'!F$12,Transporte!$B46,\"\")","v":""},{"$f":"IF(Transporte!$E46='Fondos-Inversionistas'!G$12,Transporte!$B46,\"\")","v":""},{"$f":"IF(Transporte!$E46='Fondos-Inversionistas'!H$12,Transporte!$B46,\"\")","v":""},{"$f":"IF(Transporte!$E46='Fondos-Inversionistas'!I$12,Transporte!$B46,\"\")","v":""},{"$f":"IF(Transporte!$E46='Fondos-Inversionistas'!J$12,Transporte!$B46,\"\")","v":""},{"$f":"IF(Transporte!$E46='Fondos-Inversionistas'!K$12,Transporte!$B46,\"\")","v":""},{"$f":"IF(Transporte!$E46='Fondos-Inversionistas'!L$12,Transporte!$B46,\"\")","v":""},{"$f":"_xlfn.XLOOKUP(A179,'Base-datos'!$B$553:$B$570,'Base-datos'!$F$553:$F$570)","v":{"$error":"#N/A"}},{"$f":"_xlfn.XLOOKUP(A179,'Base-datos'!$B$553:$B$570,'Base-datos'!$C$553:$C$570)","v":{"$error":"#N/A"}},{"$f":"_xlfn.XLOOKUP(A179,'Base-datos'!$B$553:$B$570,'Base-datos'!$D$553:$D$570)","v":{"$error":"#N/A"}},null,null,{"$f":"IF(OR(P$161=\"La actividad no cumple con el total de los criterios de No Daño Significativo\",Q$161=\"El sector no cumple con las salvaguardas mínimas\"),\"\",IF(AND('Base-datos'!$B$750=\"Sí\",'Base-datos'!$B$751=\"\",'Base-datos'!$B$752=\"\"),IF(N179=\"La actividad sí contribuye sustancialmente a la sostenibilidad\",SUM(B179:L179),0),IF(AND('Base-datos'!$B$750=\"Sí\",'Base-datos'!$B$751=\"Sí\",'Base-datos'!$B$752=\"\"),IF(AND(N179=\"La actividad sí contribuye sustancialmente a la sostenibilidad\",O179=\"La actividad sí contribuye sustancialmente a la sostenibilidad\"),SUM(B179:L179),0),IF(AND('Base-datos'!$B$750=\"Sí\",'Base-datos'!$B$751=\"Sí\",'Base-datos'!$B$752=\"Sí\"),IF(AND(N179=\"La actividad sí contribuye sustancialmente a la sostenibilidad\",O179=\"La actividad sí contribuye sustancialmente a la sostenibilidad\",M179=\"La actividad sí contribuye sustancialmente a la sostenibilidad\"),SUM(B179:L179),0),IF(AND('Base-datos'!$B$750=\"\",'Base-datos'!$B$751=\"Sí\",'Base-datos'!$B$752=\"\"),IF(O179=\"La actividad sí contribuye sustancialmente a la sostenibilidad\",SUM(B179:L179),0),IF(AND('Base-datos'!$B$750=\"\",'Base-datos'!$B$751=\"\",'Base-datos'!$B$752=\"Sí\"),IF(M179=\"La actividad sí contribuye sustancialmente a la sostenibilidad\",SUM(B179:L179),0),IF(AND('Base-datos'!$B$750=\"\",'Base-datos'!$B$751=\"Sí\",'Base-datos'!$B$752=\"Sí\"),IF(AND(O179=\"La actividad sí contribuye sustancialmente a la sostenibilidad\",M179=\"La actividad sí contribuye sustancialmente a la sostenibilidad\"),SUM(B179:L179),0),IF(AND('Base-datos'!$B$750=\"Sí\",'Base-datos'!$B$751=\"\",'Base-datos'!$B$752=\"Sí\"),IF(AND(N179=\"La actividad sí contribuye sustancialmente a la sostenibilidad\",M179=\"La actividad sí contribuye sustancialmente a la sostenibilidad\"),SUM(B179:L179),0),\"Por definir\"))))))))","v":"Por definir"}]
[{"$f":"Transporte!$C48","v":"Seleccione"},{"$f":"IF(Transporte!$E48='Fondos-Inversionistas'!B$12,Transporte!$B48,\"\")","v":""},{"$f":"IF(Transporte!$E48='Fondos-Inversionistas'!C$12,Transporte!$B48,\"\")","v":""},{"$f":"IF(Transporte!$E48='Fondos-Inversionistas'!D$12,Transporte!$B48,\"\")","v":""},{"$f":"IF(Transporte!$E48='Fondos-Inversionistas'!E$12,Transporte!$B48,\"\")","v":""},{"$f":"IF(Transporte!$E48='Fondos-Inversionistas'!F$12,Transporte!$B48,\"\")","v":""},{"$f":"IF(Transporte!$E48='Fondos-Inversionistas'!G$12,Transporte!$B48,\"\")","v":""},{"$f":"IF(Transporte!$E48='Fondos-Inversionistas'!H$12,Transporte!$B48,\"\")","v":""},{"$f":"IF(Transporte!$E48='Fondos-Inversionistas'!I$12,Transporte!$B48,\"\")","v":""},{"$f":"IF(Transporte!$E48='Fondos-Inversionistas'!J$12,Transporte!$B48,\"\")","v":""},{"$f":"IF(Transporte!$E48='Fondos-Inversionistas'!K$12,Transporte!$B48,\"\")","v":""},{"$f":"IF(Transporte!$E48='Fondos-Inversionistas'!L$12,Transporte!$B48,\"\")","v":""},{"$f":"_xlfn.XLOOKUP(A180,'Base-datos'!$B$553:$B$570,'Base-datos'!$F$553:$F$570)","v":{"$error":"#N/A"}},{"$f":"_xlfn.XLOOKUP(A180,'Base-datos'!$B$553:$B$570,'Base-datos'!$C$553:$C$570)","v":{"$error":"#N/A"}},{"$f":"_xlfn.XLOOKUP(A180,'Base-datos'!$B$553:$B$570,'Base-datos'!$D$553:$D$570)","v":{"$error":"#N/A"}},null,null,{"$f":"IF(OR(P$161=\"La actividad no cumple con el total de los criterios de No Daño Significativo\",Q$161=\"El sector no cumple con las salvaguardas mínimas\"),\"\",IF(AND('Base-datos'!$B$750=\"Sí\",'Base-datos'!$B$751=\"\",'Base-datos'!$B$752=\"\"),IF(N180=\"La actividad sí contribuye sustancialmente a la sostenibilidad\",SUM(B180:L180),0),IF(AND('Base-datos'!$B$750=\"Sí\",'Base-datos'!$B$751=\"Sí\",'Base-datos'!$B$752=\"\"),IF(AND(N180=\"La actividad sí contribuye sustancialmente a la sostenibilidad\",O180=\"La actividad sí contribuye sustancialmente a la sostenibilidad\"),SUM(B180:L180),0),IF(AND('Base-datos'!$B$750=\"Sí\",'Base-datos'!$B$751=\"Sí\",'Base-datos'!$B$752=\"Sí\"),IF(AND(N180=\"La actividad sí contribuye sustancialmente a la sostenibilidad\",O180=\"La actividad sí contribuye sustancialmente a la sostenibilidad\",M180=\"La actividad sí contribuye sustancialmente a la sostenibilidad\"),SUM(B180:L180),0),IF(AND('Base-datos'!$B$750=\"\",'Base-datos'!$B$751=\"Sí\",'Base-datos'!$B$752=\"\"),IF(O180=\"La actividad sí contribuye sustancialmente a la sostenibilidad\",SUM(B180:L180),0),IF(AND('Base-datos'!$B$750=\"\",'Base-datos'!$B$751=\"\",'Base-datos'!$B$752=\"Sí\"),IF(M180=\"La actividad sí contribuye sustancialmente a la sostenibilidad\",SUM(B180:L180),0),IF(AND('Base-datos'!$B$750=\"\",'Base-datos'!$B$751=\"Sí\",'Base-datos'!$B$752=\"Sí\"),IF(AND(O180=\"La actividad sí contribuye sustancialmente a la sostenibilidad\",M180=\"La actividad sí contribuye sustancialmente a la sostenibilidad\"),SUM(B180:L180),0),IF(AND('Base-datos'!$B$750=\"Sí\",'Base-datos'!$B$751=\"\",'Base-datos'!$B$752=\"Sí\"),IF(AND(N180=\"La actividad sí contribuye sustancialmente a la sostenibilidad\",M180=\"La actividad sí contribuye sustancialmente a la sostenibilidad\"),SUM(B180:L180),0),\"Por definir\"))))))))","v":"Por definir"}]
["Residuos",null,null,null,null,null,null,null,null,null,null,null,null,null,null,null,null,{"$f":"SUM(IF(FREQUENCY(MATCH(A182:A201, A182:A201, 0), MATCH(A182:A201, A182:A201, 0)) > 0, IF(NOT(ISERROR(R182:R201)), R182:R201, 0)))","v":0}]
[{"$f":"Residuos!$C10","v":"Seleccione"},{"$f":"IF(Residuos!$E10='Fondos-Inversionistas'!B$12,Residuos!$B10,\"\")","v":""},{"$f":"IF(Residuos!$E10='Fondos-Inversionistas'!C$12,Residuos!$B10,\"\")","v":""},{"$f":"IF(Residuos!$E10='Fondos-Inversionistas'!D$12,Residuos!$B10,\"\")","v":""},{"$f":"IF(Residuos!$E10='Fondos-Inversionistas'!E$12,Residuos!$B10,\"\")","v":""},{"$f":"IF(Residuos!$E10='Fondos-Inversionistas'!F$12,Residuos!$B10,\"\")","v":""},{"$f":"IF(Residuos!$E10='Fondos-Inversionistas'!G$12,Residuos!$B10,\"\")","v":""},{"$f":"IF(Residuos!$E10='Fondos-Inversionistas'!H$12,Residuos!$B10,\"\")","v":""},{"$f":"IF(Residuos!$E10='Fondos-Inversionistas'!I$12,Residuos!$B10,\"\")","v":""},{"$f":"IF(Residuos!$E10='Fondos-Inversionistas'!J$12,Residuos!$B10,\"\")","v":""},{"$f":"IF(Residuos!$E10='Fondos-Inversionistas'!K$12,Residuos!$B10,\"\")","v":""},{"$f":"IF(Residuos!$E10='Fondos-Inversionistas'!L$12,Residuos!$B10,\"\")","v":""},{"$f":"_xlfn.XLOOKUP(A182,'Base-datos'!$B$571:$B$580,'Base-datos'!$F$571:$F$580)","v":{"$error":"#N/A"}},{"$f":"_xlfn.XLOOKUP(A182,'Base-datos'!$B$571:$B$580,'Base-datos'!$C$571:$C$580)","v":{"$error":"#N/A"}},{"$f":"_xlfn.XLOOKUP(A182,'Base-datos'!$B$571:$B$580,'Base-datos'!$D$571:$D$580)","v":{"$error":"#N/A"}},{"$f":"IF(COUNTIF('Residuos-NDS'!G9:G63,\"No\")>0,\"La actividad no cumple con el total de los criterios de NDS\",\"La actividad cumple con los criterios de No Daño Significativo\")","v":"La actividad cumple con los criterios de No Daño Significativo"},{"$f":"IF(OR('Salvaguardas mínimas'!$G$10=\"Seleccione\",'Salvaguardas mínimas'!$G$13=\"Seleccione\",'Salvaguardas mínimas'!$G$16=\"Seleccione\",'Salvaguardas mínimas'!$G$7=\"Seleccione\"),\"No se han respondido todas las preguntas\",IF(OR('Salvaguardas mínimas'!$G$10=\"No\",'Salvaguardas mínimas'!$G$13=\"No\",'Salvaguardas mínimas'!$G$16=\"No\",'Salvaguardas mínimas'!$G$7=\"No\"),\"El sector no cumple con las salvaguardas mínimas\",\"La actividad sí cumple con las salvaguardas mínimas\"))","v":"No se han respondido todas las preguntas"},{"$f":"IF(OR(P$182=\"La actividad no cumple con el total de los criterios de No Daño Significativo\",Q$182=\"El sector no cumple con las salvaguardas mínimas\"),\"\",IF(AND('Base-datos'!$B$755=\"Sí\",'Base-datos'!$B$756=\"\",'Base-datos'!$B$757=\"\"),IF(N182=\"La actividad sí contribuye sustancialmente a la sostenibilidad\",SUM(B182:L182),0),IF(AND('Base-datos'!$B$755=\"Sí\",'Base-datos'!$B$756=\"Sí\",'Base-datos'!$B$757=\"\"),IF(AND(N182=\"La actividad sí contribuye sustancialmente a la sostenibilidad\",O182=\"La actividad sí contribuye sustancialmente a la sostenibilidad\"),SUM(B182:L182),0),IF(AND('Base-datos'!$B$755=\"Sí\",'Base-datos'!$B$756=\"Sí\",'Base-datos'!$B$757=\"Sí\"),IF(AND(N182=\"La actividad sí contribuye sustancialmente a la sostenibilidad\",O182=\"La actividad sí contribuye sustancialmente a la sostenibilidad\",M182=\"La actividad sí contribuye sustancialmente a la sostenibilidad\"),SUM(B182:L182),0),IF(AND('Base-datos'!$B$755=\"\",'Base-datos'!$B$756=\"Sí\",'Base-datos'!$B$757=\"\"),IF(O182=\"La actividad sí contribuye sustancialmente a la sostenibilidad\",SUM(B182:L182),0),IF(AND('Base-datos'!$B$755=\"\",'Base-datos'!$B$756=\"\",'Base-datos'!$B$757=\"Sí\"),IF(M182=\"La actividad sí contribuye sustancialmente a la sostenibilidad\",SUM(B182:L182),0),IF(AND('Base-datos'!$B$755=\"\",'Base-datos'!$B$756=\"Sí\",'Base-datos'!$B$757=\"Sí\"),IF(AND(O182=\"La actividad sí contribuye sustancialmente a la sostenibilidad\",M182=\"La actividad sí contribuye sustancialmente a la sostenibilidad\"),SUM(B182:L182),0),IF(AND('Base-datos'!$B$755=\"Sí\",'Base-datos'!$B$756=\"\",'Base-datos'!$B$757=\"Sí\"),IF(AND(N182=\"La actividad sí contribuye sustancialmente a la sostenibilidad\",M182=\"La actividad sí contribuye sustancialmente a la sostenibilidad\"),SUM(B182:L182),0),\"Por definir\"))))))))","v":"Por definir"}]
[{"$f":"Residuos!$C12","v":"Seleccione"},{"$f":"IF(Residuos!$E12='Fondos-Inversionistas'!B$12,Residuos!$B12,\"\")","v":""},{"$f":"IF(Residuos!$E12='Fondos-Inversionistas'!C$12,Residuos!$B12,\"\")","v":""},{"$f":"IF(Residuos!$E12='Fondos-Inversionistas'!D$12,Residuos!$B12,\"\")","v":""},{"$f":"IF(Residuos!$E12='Fondos-Inversionistas'!E$12,Residuos!$B12,\"\")","v":""},{"$f":"IF(Residuos!$E12='Fondos-Inversionistas'!F$12,Residuos!$B12,\"\")","v":""},{"$f":"IF(Residuos!$E12='Fondos-Inversionistas'!G$12,Residuos!$B12,\"\")","v":""},{"$f":"IF(Residuos!$E12='Fondos-Inversionistas'!H$12,Residuos!$B12,\"\")","v":""},{"$f":"IF(Residuos!$E12='Fondos-Inversionistas'!I$12,Residuos!$B12,\"\")","v":""},{"$f":"IF(Residuos!$E12='Fondos-Inversionistas'!J$12,Residuos!$B12,\"\")","v":""},{"$f":"IF(Residuos!$E12='Fondos-Inversionistas'!K$12,Residuos!$B12,\"\")","v":""},{"$f":"IF(Residuos!$E12='Fondos-Inversionistas'!L$12,Residuos!$B12,\"\")","v":""},{"$f":"_xlfn.XLOOKUP(A183,'Base-datos'!$B$571:$B$580,'Base-datos'!$F$571:$F$580)","v":{"$error":"#N/A"}},{"$f":"_xlfn.XLOOKUP(A183,'Base-datos'!$B$571:$B$580,'Base-datos'!$C$571:$C$580)","v":{"$error":"#N/A"}},{"$f":"_xlfn.XLOOKUP(A183,'Base-datos'!$B$571:$B$580,'Base-datos'!$D$571:$D$580)","v":{"$error":"#N/A"}},null,null,{"$f":"IF(OR(P$182=\"La actividad no cumple con el total de los criterios de No Daño Significativo\",Q$182=\"El sector no cumple con las salvaguardas mínimas\"),\"\",IF(AND('Base-datos'!$B$755=\"Sí\",'Base-datos'!$B$756=\"\",'Base-datos'!$B$757=\"\"),IF(N183=\"La actividad sí contribuye sustancialmente a la sostenibilidad\",SUM(B183:L183),0),IF(AND('Base-datos'!$B$755=\"Sí\",'Base-datos'!$B$756=\"Sí\",'Base-datos'!$B$757=\"\"),IF(AND(N183=\"La actividad sí contribuye sustancialmente a la sostenibilidad\",O183=\"La actividad sí contribuye sustancialmente a la sostenibilidad\"),SUM(B183:L183),0),IF(AND('Base-datos'!$B$755=\"Sí\",'Base-datos'!$B$756=\"Sí\",'Base-datos'!$B$757=\"Sí\"),IF(AND(N183=\"La actividad sí contribuye sustancialmente a la sostenibilidad\",O183=\"La actividad sí contribuye sustancialmente a la sostenibilidad\",M183=\"La actividad sí contribuye sustancialmente a la sostenibilidad\"),SUM(B183:L183),0),IF(AND('Base-datos'!$B$755=\"\",'Base-datos'!$B$756=\"Sí\",'Base-datos'!$B$757=\"\"),IF(O183=\"La actividad sí contribuye sustancialmente a la sostenibilidad\",SUM(B183:L183),0),IF(AND('Base-datos'!$B$755=\"\",'Base-datos'!$B$756=\"\",'Base-datos'!$B$757=\"Sí\"),IF(M183=\"La actividad sí contribuye sustancialmente a la sostenibilidad\",SUM(B183:L183),0),IF(AND('Base-datos'!$B$755=\"\",'Base-datos'!$B$756=\"Sí\",'Base-datos'!$B$757=\"Sí\"),IF(AND(O183=\"La actividad sí contribuye sustancialmente a la sostenibilidad\",M183=\"La actividad sí contribuye sustancialmente a la sostenibilidad\"),SUM(B183:L183),0),IF(AND('Base-datos'!$B$755=\"Sí\",'Base-datos'!$B$756=\"\",'Base-datos'!$B$757=\"Sí\"),IF(AND(N183=\"La actividad sí contribuye sustancialmente a la sostenibilidad\",M183=\"La actividad sí contribuye sustancialmente a la sostenibilidad\"),SUM(B183:L183),0),\"Por definir\"))))))))","v":"Por definir"}]
[{"$f":"Residuos!$C14","v":"Seleccione"},{"$f":"IF(Residuos!$E14='Fondos-Inversionistas'!B$12,Residuos!$B14,\"\")","v":""},{"$f":"IF(Residuos!$E14='Fondos-Inversionistas'!C$12,Residuos!$B14,\"\")","v":""},{"$f":"IF(Residuos!$E14='Fondos-Inversionistas'!D$12,Residuos!$B14,\"\")","v":""},{"$f":"IF(Residuos!$E14='Fondos-Inversionistas'!E$12,Residuos!$B14,\"\")","v":""},{"$f":"IF(Residuos!$E14='Fondos-Inversionistas'!F$12,Residuos!$B14,\"\")","v":""},{"$f":"IF(Residuos!$E14='Fondos-Inversionistas'!G$12,Residuos!$B14,\"\")","v":""},{"$f":"IF(Residuos!$E14='Fondos-Inversionistas'!H$12,Residuos!$B14,\"\")","v":""},{"$f":"IF(Residuos!$E14='Fondos-Inversionistas'!I$12,Residuos!$B14,\"\")","v":""},{"$f":"IF(Residuos!$E14='Fondos-Inversionistas'!J$12,Residuos!$B14,\"\")","v":""},{"$f":"IF(Residuos!$E14='Fondos-Inversionistas'!K$12,Residuos!$B14,\"\")","v":""},{"$f":"IF(Residuos!$E14='Fondos-Inversionistas'!L$12,Residuos!$B14,\"\")","v":""},{"$f":"_xlfn.XLOOKUP(A184,'Base-datos'!$B$571:$B$580,'Base-datos'!$F$571:$F$580)","v":{"$error":"#N/A"}},{"$f":"_xlfn.XLOOKUP(A184,'Base-datos'!$B$571:$B$580,'Base-datos'!$C$571:$C$580)","v":{"$error":"#N/A"}},{"$f":"_xlfn.XLOOKUP(A184,'Base-datos'!$B$571:$B$580,'Base-datos'!$D$571:$D$580)","v":{"$error":"#N/A"}},null,null,{"$f":"IF(OR(P$182=\"La actividad no cumple con el total de los criterios de No Daño Significativo\",Q$182=\"El sector no cumple con las salvaguardas mínimas\"),\"\",IF(AND('Base-datos'!$B$755=\"Sí\",'Base-datos'!$B$756=\"\",'Base-datos'!$B$757=\"\"),IF(N184=\"La actividad sí contribuye sustancialmente a la sostenibilidad\",SUM(B184:L184),0),IF(AND('Base-datos'!$B$755=\"Sí\",'Base-datos'!$B$756=\"Sí\",'Base-datos'!$B$757=\"\"),IF(AND(N184=\"La actividad sí contribuye sustancialmente a la sostenibilidad\",O184=\"La actividad sí contribuye sustancialmente a la sostenibilidad\"),SUM(B184:L184),0),IF(AND('Base-datos'!$B$755=\"Sí\",'Base-datos'!$B$756=\"Sí\",'Base-datos'!$B$757=\"Sí\"),IF(AND(N184=\"La actividad sí contribuye sustancialmente a la sostenibilidad\",O184=\"La actividad sí contribuye sustancialmente a la sostenibilidad\",M184=\"La actividad sí contribuye sustancialmente a la sostenibilidad\"),SUM(B184:L184),0),IF(AND('Base-datos'!$B$755=\"\",'Base-datos'!$B$756=\"Sí\",'Base-datos'!$B$757=\"\"),IF(O184=\"La actividad sí contribuye sustancialmente a la sostenibilidad\",SUM(B184:L184),0),IF(AND('Base-datos'!$B$755=\"\",'Base-datos'!$B$756=\"\",'Base-datos'!$B$757=\"Sí\"),IF(M184=\"La actividad sí contribuye sustancialmente a la sostenibilidad\",SUM(B184:L184),0),IF(AND('Base-datos'!$B$755=\"\",'Base-datos'!$B$756=\"Sí\",'Base-datos'!$B$757=\"Sí\"),IF(AND(O184=\"La actividad sí contribuye sustancialmente a la sostenibilidad\",M184=\"La actividad sí contribuye sustancialmente a la sostenibilidad\"),SUM(B184:L184),0),IF(AND('Base-datos'!$B$755=\"Sí\",'Base-datos'!$B$756=\"\",'Base-datos'!$B$757=\"Sí\"),IF(AND(N184=\"La actividad sí contribuye sustancialmente a la sostenibilidad\",M184=\"La actividad sí contribuye sustancialmente a la sostenibilidad\"),SUM(B184:L184),0),\"Por definir\"))))))))","v":"Por definir"}]
[{"$f":"Residuos!$C16","v":"Seleccione"},{"$f":"IF(Residuos!$E16='Fondos-Inversionistas'!B$12,Residuos!$B16,\"\")","v":""},{"$f":"IF(Residuos!$E16='Fondos-Inversionistas'!C$12,Residuos!$B16,\"\")","v":""},{"$f":"IF(Residuos!$E16='Fondos-Inversionistas'!D$12,Residuos!$B16,\"\")","v":""},{"$f":"IF(Residuos!$E16='Fondos-Inversionistas'!E$12,Residuos!$B16,\"\")","v":""},{"$f":"IF(Residuos!$E16='Fondos-Inversionistas'!F$12,Residuos!$B16,\"\")","v":""},{"$f":"IF(Residuos!$E16='Fondos-Inversionistas'!G$12,Residuos!$B16,\"\")","v":""},{"$f":"IF(Residuos!$E16='Fondos-Inversionistas'!H$12,Residuos!$B16,\"\")","v":""},{"$f":"IF(Residuos!$E16='Fondos-Inversionistas'!I$12,Residuos!$B16,\"\")","v":""},{"$f":"IF(Residuos!$E16='Fondos-Inversionistas'!J$12,Residuos!$B16,\"\")","v":""},{"$f":"IF(Residuos!$E16='Fondos-Inversionistas'!K$12,Residuos!$B16,\"\")","v":""},{"$f":"IF(Residuos!$E16='Fondos-Inversionistas'!L$12,Residuos!$B16,\"\")","v":""},{"$f":"_xlfn.XLOOKUP(A185,'Base-datos'!$B$571:$B$580,'Base-datos'!$F$571:$F$580)","v":{"$error":"#N/A"}},{"$f":"_xlfn.XLOOKUP(A185,'Base-datos'!$B$571:$B$580,'Base-datos'!$C$571:$C$580)","v":{"$error":"#N/A"}},{"$f":"_xlfn.XLOOKUP(A185,'Base-datos'!$B$571:$B$580,'Base-datos'!$D$571:$D$580)","v":{"$error":"#N/A"}},null,null,{"$f":"IF(OR(P$182=\"La actividad no cumple con el total de los criterios de No Daño Significativo\",Q$182=\"El sector no cumple con las salvaguardas mínimas\"),\"\",IF(AND('Base-datos'!$B$755=\"Sí\",'Base-datos'!$B$756=\"\",'Base-datos'!$B$757=\"\"),IF(N185=\"La actividad sí contribuye sustancialmente a la sostenibilidad\",SUM(B185:L185),0),IF(AND('Base-datos'!$B$755=\"Sí\",'Base-datos'!$B$756=\"Sí\",'Base-datos'!$B$757=\"\"),IF(AND(N185=\"La actividad sí contribuye sustancialmente a la sostenibilidad\",O185=\"La actividad sí contribuye sustancialmente a la sostenibilidad\"),SUM(B185:L185),0),IF(AND('Base-datos'!$B$755=\"Sí\",'Base-datos'!$B$756=\"Sí\",'Base-datos'!$B$757=\"Sí\"),IF(AND(N185=\"La actividad sí contribuye sustancialmente a la sostenibilidad\",O185=\"La actividad sí contribuye sustancialmente a la sostenibilidad\",M185=\"La actividad sí contribuye sustancialmente a la sostenibilidad\"),SUM(B185:L185),0),IF(AND('Base-datos'!$B$755=\"\",'Base-datos'!$B$756=\"Sí\",'Base-datos'!$B$757=\"\"),IF(O185=\"La actividad sí contribuye sustancialmente a la sostenibilidad\",SUM(B185:L185),0),IF(AND('Base-datos'!$B$755=\"\",'Base-datos'!$B$756=\"\",'Base-datos'!$B$757=\"Sí\"),IF(M185=\"La actividad sí contribuye sustancialmente a la sostenibilidad\",SUM(B185:L185),0),IF(AND('Base-datos'!$B$755=\"\",'Base-datos'!$B$756=\"Sí\",'Base-datos'!$B$757=\"Sí\"),IF(AND(O185=\"La actividad sí contribuye sustancialmente a la sostenibilidad\",M185=\"La actividad sí contribuye sustancialmente a la sostenibilidad\"),SUM(B185:L185),0),IF(AND('Base-datos'!$B$755=\"Sí\",'Base-datos'!$B$756=\"\",'Base-datos'!$B$757=\"Sí\"),IF(AND(N185=\"La actividad sí contribuye sustancialmente a la sostenibilidad\",M185=\"La actividad sí contribuye sustancialmente a la sostenibilidad\"),SUM(B185:L185),0),\"Por definir\"))))))))","v":"Por definir"}]
[{"$f":"Residuos!$C18","v":"Seleccione"},{"$f":"IF(Residuos!$E18='Fondos-Inversionistas'!B$12,Residuos!$B18,\"\")","v":""},{"$f":"IF(Residuos!$E18='Fondos-Inversionistas'!C$12,Residuos!$B18,\"\")","v":""},{"$f":"IF(Residuos!$E18='Fondos-Inversionistas'!D$12,Residuos!$B18,\"\")","v":""},{"$f":"IF(Residuos!$E18='Fondos-Inversionistas'!E$12,Residuos!$B18,\"\")","v":""},{"$f":"IF(Residuos!$E18='Fondos-Inversionistas'!F$12,Residuos!$B18,\"\")","v":""},{"$f":"IF(Residuos!$E18='Fondos-Inversionistas'!G$12,Residuos!$B18,\"\")","v":""},{"$f":"IF(Residuos!$E18='Fondos-Inversionistas'!H$12,Residuos!$B18,\"\")","v":""},{"$f":"IF(Residuos!$E18='Fondos-Inversionistas'!I$12,Residuos!$B18,\"\")","v":""},{"$f":"IF(Residuos!$E18='Fondos-Inversionistas'!J$12,Residuos!$B18,\"\")","v":""},{"$f":"IF(Residuos!$E18='Fondos-Inversionistas'!K$12,Residuos!$B18,\"\")","v":""},{"$f":"IF(Residuos!$E18='Fondos-Inversionistas'!L$12,Residuos!$B18,\"\")","v":""},{"$f":"_xlfn.XLOOKUP(A186,'Base-datos'!$B$571:$B$580,'Base-datos'!$F$571:$F$580)","v":{"$error":"#N/A"}},{"$f":"_xlfn.XLOOKUP(A186,'Base-datos'!$B$571:$B$580,'Base-datos'!$C$571:$C$580)","v":{"$error":"#N/A"}},{"$f":"_xlfn.XLOOKUP(A186,'Base-datos'!$B$571:$B$580,'Base-datos'!$D$571:$D$580)","v":{"$error":"#N/A"}},null,null,{"$f":"IF(OR(P$182=\"La actividad no cumple con el total de los criterios de No Daño Significativo\",Q$182=\"El sector no cumple con las salvaguardas mínimas\"),\"\",IF(AND('Base-datos'!$B$755=\"Sí\",'Base-datos'!$B$756=\"\",'Base-datos'!$B$757=\"\"),IF(N186=\"La actividad sí contribuye sustancialmente a la sostenibilidad\",SUM(B186:L186),0),IF(AND('Base-datos'!$B$755=\"Sí\",'Base-datos'!$B$756=\"Sí\",'Base-datos'!$B$757=\"\"),IF(AND(N186=\"La actividad sí contribuye sustancialmente a la sostenibilidad\",O186=\"La actividad sí contribuye sustancialmente a la sostenibilidad\"),SUM(B186:L186),0),IF(AND('Base-datos'!$B$755=\"Sí\",'Base-datos'!$B$756=\"Sí\",'Base-datos'!$B$757=\"Sí\"),IF(AND(N186=\"La actividad sí contribuye sustancialmente a la sostenibilidad\",O186=\"La actividad sí contribuye sustancialmente a la sostenibilidad\",M186=\"La actividad sí contribuye sustancialmente a la sostenibilidad\"),SUM(B186:L186),0),IF(AND('Base-datos'!$B$755=\"\",'Base-datos'!$B$756=\"Sí\",'Base-datos'!$B$757=\"\"),IF(O186=\"La actividad sí contribuye sustancialmente a la sostenibilidad\",SUM(B186:L186),0),IF(AND('Base-datos'!$B$755=\"\",'Base-datos'!$B$756=\"\",'Base-datos'!$B$757=\"Sí\"),IF(M186=\"La actividad sí contribuye sustancialmente a la sostenibilidad\",SUM(B186:L186),0),IF(AND('Base-datos'!$B$755=\"\",'Base-datos'!$B$756=\"Sí\",'Base-datos'!$B$757=\"Sí\"),IF(AND(O186=\"La actividad sí contribuye sustancialmente a la sostenibilidad\",M186=\"La actividad sí contribuye sustancialmente a la sostenibilidad\"),SUM(B186:L186),0),IF(AND('Base-datos'!$B$755=\"Sí\",'Base-datos'!$B$756=\"\",'Base-datos'!$B$757=\"Sí\"),IF(AND(N186=\"La actividad sí contribuye sustancialmente a la sostenibilidad\",M186=\"La actividad sí contribuye sustancialmente a la sostenibilidad\"),SUM(B186:L186),0),\"Por definir\"))))))))","v":"Por definir"}]
[{"$f":"Residuos!$C20","v":"Seleccione"},{"$f":"IF(Residuos!$E20='Fondos-Inversionistas'!B$12,Residuos!$B20,\"\")","v":""},{"$f":"IF(Residuos!$E20='Fondos-Inversionistas'!C$12,Residuos!$B20,\"\")","v":""},{"$f":"IF(Residuos!$E20='Fondos-Inversionistas'!D$12,Residuos!$B20,\"\")","v":""},{"$f":"IF(Residuos!$E20='Fondos-Inversionistas'!E$12,Residuos!$B20,\"\")","v":""},{"$f":"IF(Residuos!$E20='Fondos-Inversionistas'!F$12,Residuos!$B20,\"\")","v":""},{"$f":"IF(Residuos!$E20='Fondos-Inversionistas'!G$12,Residuos!$B20,\"\")","v":""},{"$f":"IF(Residuos!$E20='Fondos-Inversionistas'!H$12,Residuos!$B20,\"\")","v":""},{"$f":"IF(Residuos!$E20='Fondos-Inversionistas'!I$12,Residuos!$B20,\"\")","v":""},{"$f":"IF(Residuos!$E20='Fondos-Inversionistas'!J$12,Residuos!$B20,\"\")","v":""},{"$f":"IF(Residuos!$E20='Fondos-Inversionistas'!K$12,Residuos!$B20,\"\")","v":""},{"$f":"IF(Residuos!$E20='Fondos-Inversionistas'!L$12,Residuos!$B20,\"\")","v":""},{"$f":"_xlfn.XLOOKUP(A187,'Base-datos'!$B$571:$B$580,'Base-datos'!$F$571:$F$580)","v":{"$error":"#N/A"}},{"$f":"_xlfn.XLOOKUP(A187,'Base-datos'!$B$571:$B$580,'Base-datos'!$C$571:$C$580)","v":{"$error":"#N/A"}},{"$f":"_xlfn.XLOOKUP(A187,'Base-datos'!$B$571:$B$580,'Base-datos'!$D$571:$D$580)","v":{"$error":"#N/A"}},null,null,{"$f":"IF(OR(P$182=\"La actividad no cumple con el total de los criterios de No Daño Significativo\",Q$182=\"El sector no cumple con las salvaguardas mínimas\"),\"\",IF(AND('Base-datos'!$B$755=\"Sí\",'Base-datos'!$B$756=\"\",'Base-datos'!$B$757=\"\"),IF(N187=\"La actividad sí contribuye sustancialmente a la sostenibilidad\",SUM(B187:L187),0),IF(AND('Base-datos'!$B$755=\"Sí\",'Base-datos'!$B$756=\"Sí\",'Base-datos'!$B$757=\"\"),IF(AND(N187=\"La actividad sí contribuye sustancialmente a la sostenibilidad\",O187=\"La actividad sí contribuye sustancialmente a la sostenibilidad\"),SUM(B187:L187),0),IF(AND('Base-datos'!$B$755=\"Sí\",'Base-datos'!$B$756=\"Sí\",'Base-datos'!$B$757=\"Sí\"),IF(AND(N187=\"La actividad sí contribuye sustancialmente a la sostenibilidad\",O187=\"La actividad sí contribuye sustancialmente a la sostenibilidad\",M187=\"La actividad sí contribuye sustancialmente a la sostenibilidad\"),SUM(B187:L187),0),IF(AND('Base-datos'!$B$755=\"\",'Base-datos'!$B$756=\"Sí\",'Base-datos'!$B$757=\"\"),IF(O187=\"La actividad sí contribuye sustancialmente a la sostenibilidad\",SUM(B187:L187),0),IF(AND('Base-datos'!$B$755=\"\",'Base-datos'!$B$756=\"\",'Base-datos'!$B$757=\"Sí\"),IF(M187=\"La actividad sí contribuye sustancialmente a la sostenibilidad\",SUM(B187:L187),0),IF(AND('Base-datos'!$B$755=\"\",'Base-datos'!$B$756=\"Sí\",'Base-datos'!$B$757=\"Sí\"),IF(AND(O187=\"La actividad sí contribuye sustancialmente a la sostenibilidad\",M187=\"La actividad sí contribuye sustancialmente a la sostenibilidad\"),SUM(B187:L187),0),IF(AND('Base-datos'!$B$755=\"Sí\",'Base-datos'!$B$756=\"\",'Base-datos'!$B$757=\"Sí\"),IF(AND(N187=\"La actividad sí contribuye sustancialmente a la sostenibilidad\",M187=\"La actividad sí contribuye sustancialmente a la sostenibilidad\"),SUM(B187:L187),0),\"Por definir\"))))))))","v":"Por definir"}]
[{"$f":"Residuos!$C22","v":"Seleccione"},{"$f":"IF(Residuos!$E22='Fondos-Inversionistas'!B$12,Residuos!$B22,\"\")","v":""},{"$f":"IF(Residuos!$E22='Fondos-Inversionistas'!C$12,Residuos!$B22,\"\")","v":""},{"$f":"IF(Residuos!$E22='Fondos-Inversionistas'!D$12,Residuos!$B22,\"\")","v":""},{"$f":"IF(Residuos!$E22='Fondos-Inversionistas'!E$12,Residuos!$B22,\"\")","v":""},{"$f":"IF(Residuos!$E22='Fondos-Inversionistas'!F$12,Residuos!$B22,\"\")","v":""},{"$f":"IF(Residuos!$E22='Fondos-Inversionistas'!G$12,Residuos!$B22,\"\")","v":""},{"$f":"IF(Residuos!$E22='Fondos-Inversionistas'!H$12,Residuos!$B22,\"\")","v":""},{"$f":"IF(Residuos!$E22='Fondos-Inversionistas'!I$12,Residuos!$B22,\"\")","v":""},{"$f":"IF(Residuos!$E22='Fondos-Inversionistas'!J$12,Residuos!$B22,\"\")","v":""},{"$f":"IF(Residuos!$E22='Fondos-Inversionistas'!K$12,Residuos!$B22,\"\")","v":""},{"$f":"IF(Residuos!$E22='Fondos-Inversionistas'!L$12,Residuos!$B22,\"\")","v":""},{"$f":"_xlfn.XLOOKUP(A188,'Base-datos'!$B$571:$B$580,'Base-datos'!$F$571:$F$580)","v":{"$error":"#N/A"}},{"$f":"_xlfn.XLOOKUP(A188,'Base-datos'!$B$571:$B$580,'Base-datos'!$C$571:$C$580)","v":{"$error":"#N/A"}},{"$f":"_xlfn.XLOOKUP(A188,'Base-datos'!$B$571:$B$580,'Base-datos'!$D$571:$D$580)","v":{"$error":"#N/A"}},null,null,{"$f":"IF(OR(P$182=\"La actividad no cumple con el total de los criterios de No Daño Significativo\",Q$182=\"El sector no cumple con las salvaguardas mínimas\"),\"\",IF(AND('Base-datos'!$B$755=\"Sí\",'Base-datos'!$B$756=\"\",'Base-datos'!$B$757=\"\"),IF(N188=\"La actividad sí contribuye sustancialmente a la sostenibilidad\",SUM(B188:L188),0),IF(AND('Base-datos'!$B$755=\"Sí\",'Base-datos'!$B$756=\"Sí\",'Base-datos'!$B$757=\"\"),IF(AND(N188=\"La actividad sí contribuye sustancialmente a la sostenibilidad\",O188=\"La actividad sí contribuye sustancialmente a la sostenibilidad\"),SUM(B188:L188),0),IF(AND('Base-datos'!$B$755=\"Sí\",'Base-datos'!$B$756=\"Sí\",'Base-datos'!$B$757=\"Sí\"),IF(AND(N188=\"La actividad sí contribuye sustancialmente a la sostenibilidad\",O188=\"La actividad sí contribuye sustancialmente a la sostenibilidad\",M188=\"La actividad sí contribuye sustancialmente a la sostenibilidad\"),SUM(B188:L188),0),IF(AND('Base-datos'!$B$755=\"\",'Base-datos'!$B$756=\"Sí\",'Base-datos'!$B$757=\"\"),IF(O188=\"La actividad sí contribuye sustancialmente a la sostenibilidad\",SUM(B188:L188),0),IF(AND('Base-datos'!$B$755=\"\",'Base-datos'!$B$756=\"\",'Base-datos'!$B$757=\"Sí\"),IF(M188=\"La actividad sí contribuye sustancialmente a la sostenibilidad\",SUM(B188:L188),0),IF(AND('Base-datos'!$B$755=\"\",'Base-datos'!$B$756=\"Sí\",'Base-datos'!$B$757=\"Sí\"),IF(AND(O188=\"La actividad sí contribuye sustancialmente a la sostenibilidad\",M188=\"La actividad sí contribuye sustancialmente a la sostenibilidad\"),SUM(B188:L188),0),IF(AND('Base-datos'!$B$755=\"Sí\",'Base-datos'!$B$756=\"\",'Base-datos'!$B$757=\"Sí\"),IF(AND(N188=\"La actividad sí contribuye sustancialmente a la sostenibilidad\",M188=\"La actividad sí contribuye sustancialmente a la sostenibilidad\"),SUM(B188:L188),0),\"Por definir\"))))))))","v":"Por definir"}]
[{"$f":"Residuos!$C24","v":"Seleccione"},{"$f":"IF(Residuos!$E24='Fondos-Inversionistas'!B$12,Residuos!$B24,\"\")","v":""},{"$f":"IF(Residuos!$E24='Fondos-Inversionistas'!C$12,Residuos!$B24,\"\")","v":""},{"$f":"IF(Residuos!$E24='Fondos-Inversionistas'!D$12,Residuos!$B24,\"\")","v":""},{"$f":"IF(Residuos!$E24='Fondos-Inversionistas'!E$12,Residuos!$B24,\"\")","v":""},{"$f":"IF(Residuos!$E24='Fondos-Inversionistas'!F$12,Residuos!$B24,\"\")","v":""},{"$f":"IF(Residuos!$E24='Fondos-Inversionistas'!G$12,Residuos!$B24,\"\")","v":""},{"$f":"IF(Residuos!$E24='Fondos-Inversionistas'!H$12,Residuos!$B24,\"\")","v":""},{"$f":"IF(Residuos!$E24='Fondos-Inversionistas'!I$12,Residuos!$B24,\"\")","v":""},{"$f":"IF(Residuos!$E24='Fondos-Inversionistas'!J$12,Residuos!$B24,\"\")","v":""},{"$f":"IF(Residuos!$E24='Fondos-Inversionistas'!K$12,Residuos!$B24,\"\")","v":""},{"$f":"IF(Residuos!$E24='Fondos-Inversionistas'!L$12,Residuos!$B24,\"\")","v":""},{"$f":"_xlfn.XLOOKUP(A189,'Base-datos'!$B$571:$B$580,'Base-datos'!$F$571:$F$580)","v":{"$error":"#N/A"}},{"$f":"_xlfn.XLOOKUP(A189,'Base-datos'!$B$571:$B$580,'Base-datos'!$C$571:$C$580)","v":{"$error":"#N/A"}},{"$f":"_xlfn.XLOOKUP(A189,'Base-datos'!$B$571:$B$580,'Base-datos'!$D$571:$D$580)","v":{"$error":"#N/A"}},null,null,{"$f":"IF(OR(P$182=\"La actividad no cumple con el total de los criterios de No Daño Significativo\",Q$182=\"El sector no cumple con las salvaguardas mínimas\"),\"\",IF(AND('Base-datos'!$B$755=\"Sí\",'Base-datos'!$B$756=\"\",'Base-datos'!$B$757=\"\"),IF(N189=\"La actividad sí contribuye sustancialmente a la sostenibilidad\",SUM(B189:L189),0),IF(AND('Base-datos'!$B$755=\"Sí\",'Base-datos'!$B$756=\"Sí\",'Base-datos'!$B$757=\"\"),IF(AND(N189=\"La actividad sí contribuye sustancialmente a la sostenibilidad\",O189=\"La actividad sí contribuye sustancialmente a la sostenibilidad\"),SUM(B189:L189),0),IF(AND('Base-datos'!$B$755=\"Sí\",'Base-datos'!$B$756=\"Sí\",'Base-datos'!$B$757=\"Sí\"),IF(AND(N189=\"La actividad sí contribuye sustancialmente a la sostenibilidad\",O189=\"La actividad sí contribuye sustancialmente a la sostenibilidad\",M189=\"La actividad sí contribuye sustancialmente a la sostenibilidad\"),SUM(B189:L189),0),IF(AND('Base-datos'!$B$755=\"\",'Base-datos'!$B$756=\"Sí\",'Base-datos'!$B$757=\"\"),IF(O189=\"La actividad sí contribuye sustancialmente a la sostenibilidad\",SUM(B189:L189),0),IF(AND('Base-datos'!$B$755=\"\",'Base-datos'!$B$756=\"\",'Base-datos'!$B$757=\"Sí\"),IF(M189=\"La actividad sí contribuye sustancialmente a la sostenibilidad\",SUM(B189:L189),0),IF(AND('Base-datos'!$B$755=\"\",'Base-datos'!$B$756=\"Sí\",'Base-datos'!$B$757=\"Sí\"),IF(AND(O189=\"La actividad sí contribuye sustancialmente a la sostenibilidad\",M189=\"La actividad sí contribuye sustancialmente a la sostenibilidad\"),SUM(B189:L189),0),IF(AND('Base-datos'!$B$755=\"Sí\",'Base-datos'!$B$756=\"\",'Base-datos'!$B$757=\"Sí\"),IF(AND(N189=\"La actividad sí contribuye sustancialmente a la sostenibilidad\",M189=\"La actividad sí contribuye sustancialmente a la sostenibilidad\"),SUM(B189:L189),0),\"Por definir\"))))))))","v":"Por definir"}]
[{"$f":"Residuos!$C26","v":"Seleccione"},{"$f":"IF(Residuos!$E26='Fondos-Inversionistas'!B$12,Residuos!$B26,\"\")","v":""},{"$f":"IF(Residuos!$E26='Fondos-Inversionistas'!C$12,Residuos!$B26,\"\")","v":""},{"$f":"IF(Residuos!$E26='Fondos-Inversionistas'!D$12,Residuos!$B26,\"\")","v":""},{"$f":"IF(Residuos!$E26='Fondos-Inversionistas'!E$12,Residuos!$B26,\"\")","v":""},{"$f":"IF(Residuos!$E26='Fondos-Inversionistas'!F$12,Residuos!$B26,\"\")","v":""},{"$f":"IF(Residuos!$E26='Fondos-Inversionistas'!G$12,Residuos!$B26,\"\")","v":""},{"$f":"IF(Residuos!$E26='Fondos-Inversionistas'!H$12,Residuos!$B26,\"\")","v":""},{"$f":"IF(Residuos!$E26='Fondos-Inversionistas'!I$12,Residuos!$B26,\"\")","v":""},{"$f":"IF(Residuos!$E26='Fondos-Inversionistas'!J$12,Residuos!$B26,\"\")","v":""},{"$f":"IF(Residuos!$E26='Fondos-Inversionistas'!K$12,Residuos!$B26,\"\")","v":""},{"$f":"IF(Residuos!$E26='Fondos-Inversionistas'!L$12,Residuos!$B26,\"\")","v":""},{"$f":"_xlfn.XLOOKUP(A190,'Base-datos'!$B$571:$B$580,'Base-datos'!$F$571:$F$580)","v":{"$error":"#N/A"}},{"$f":"_xlfn.XLOOKUP(A190,'Base-datos'!$B$571:$B$580,'Base-datos'!$C$571:$C$580)","v":{"$error":"#N/A"}},{"$f":"_xlfn.XLOOKUP(A190,'Base-datos'!$B$571:$B$580,'Base-datos'!$D$571:$D$580)","v":{"$error":"#N/A"}},null,null,{"$f":"IF(OR(P$182=\"La actividad no cumple con el total de los criterios de No Daño Significativo\",Q$182=\"El sector no cumple con las salvaguardas mínimas\"),\"\",IF(AND('Base-datos'!$B$755=\"Sí\",'Base-datos'!$B$756=\"\",'Base-datos'!$B$757=\"\"),IF(N190=\"La actividad sí contribuye sustancialmente a la sostenibilidad\",SUM(B190:L190),0),IF(AND('Base-datos'!$B$755=\"Sí\",'Base-datos'!$B$756=\"Sí\",'Base-datos'!$B$757=\"\"),IF(AND(N190=\"La actividad sí contribuye sustancialmente a la sostenibilidad\",O190=\"La actividad sí contribuye sustancialmente a la sostenibilidad\"),SUM(B190:L190),0),IF(AND('Base-datos'!$B$755=\"Sí\",'Base-datos'!$B$756=\"Sí\",'Base-datos'!$B$757=\"Sí\"),IF(AND(N190=\"La actividad sí contribuye sustancialmente a la sostenibilidad\",O190=\"La actividad sí contribuye sustancialmente a la sostenibilidad\",M190=\"La actividad sí contribuye sustancialmente a la sostenibilidad\"),SUM(B190:L190),0),IF(AND('Base-datos'!$B$755=\"\",'Base-datos'!$B$756=\"Sí\",'Base-datos'!$B$757=\"\"),IF(O190=\"La actividad sí contribuye sustancialmente a la sostenibilidad\",SUM(B190:L190),0),IF(AND('Base-datos'!$B$755=\"\",'Base-datos'!$B$756=\"\",'Base-datos'!$B$757=\"Sí\"),IF(M190=\"La actividad sí contribuye sustancialmente a la sostenibilidad\",SUM(B190:L190),0),IF(AND('Base-datos'!$B$755=\"\",'Base-datos'!$B$756=\"Sí\",'Base-datos'!$B$757=\"Sí\"),IF(AND(O190=\"La actividad sí contribuye sustancialmente a la sostenibilidad\",M190=\"La actividad sí contribuye sustancialmente a la sostenibilidad\"),SUM(B190:L190),0),IF(AND('Base-datos'!$B$755=\"Sí\",'Base-datos'!$B$756=\"\",'Base-datos'!$B$757=\"Sí\"),IF(AND(N190=\"La actividad sí contribuye sustancialmente a la sostenibilidad\",M190=\"La actividad sí contribuye sustancialmente a la sostenibilidad\"),SUM(B190:L190),0),\"Por definir\"))))))))","v":"Por definir"}]
[{"$f":"Residuos!$C28","v":"Seleccione"},{"$f":"IF(Residuos!$E28='Fondos-Inversionistas'!B$12,Residuos!$B28,\"\")","v":""},{"$f":"IF(Residuos!$E28='Fondos-Inversionistas'!C$12,Residuos!$B28,\"\")","v":""},{"$f":"IF(Residuos!$E28='Fondos-Inversionistas'!D$12,Residuos!$B28,\"\")","v":""},{"$f":"IF(Residuos!$E28='Fondos-Inversionistas'!E$12,Residuos!$B28,\"\")","v":""},{"$f":"IF(Residuos!$E28='Fondos-Inversionistas'!F$12,Residuos!$B28,\"\")","v":""},{"$f":"IF(Residuos!$E28='Fondos-Inversionistas'!G$12,Residuos!$B28,\"\")","v":""},{"$f":"IF(Residuos!$E28='Fondos-Inversionistas'!H$12,Residuos!$B28,\"\")","v":""},{"$f":"IF(Residuos!$E28='Fondos-Inversionistas'!I$12,Residuos!$B28,\"\")","v":""},{"$f":"IF(Residuos!$E28='Fondos-Inversionistas'!J$12,Residuos!$B28,\"\")","v":""},{"$f":"IF(Residuos!$E28='Fondos-Inversionistas'!K$12,Residuos!$B28,\"\")","v":""},{"$f":"IF(Residuos!$E28='Fondos-Inversionistas'!L$12,Residuos!$B28,\"\")","v":""},{"$f":"_xlfn.XLOOKUP(A191,'Base-datos'!$B$571:$B$580,'Base-datos'!$F$571:$F$580)","v":{"$error":"#N/A"}},{"$f":"_xlfn.XLOOKUP(A191,'Base-datos'!$B$571:$B$580,'Base-datos'!$C$571:$C$580)","v":{"$error":"#N/A"}},{"$f":"_xlfn.XLOOKUP(A191,'Base-datos'!$B$571:$B$580,'Base-datos'!$D$571:$D$580)","v":{"$error":"#N/A"}},null,null,{"$f":"IF(OR(P$182=\"La actividad no cumple con el total de los criterios de No Daño Significativo\",Q$182=\"El sector no cumple con las salvaguardas mínimas\"),\"\",IF(AND('Base-datos'!$B$755=\"Sí\",'Base-datos'!$B$756=\"\",'Base-datos'!$B$757=\"\"),IF(N191=\"La actividad sí contribuye sustancialmente a la sostenibilidad\",SUM(B191:L191),0),IF(AND('Base-datos'!$B$755=\"Sí\",'Base-datos'!$B$756=\"Sí\",'Base-datos'!$B$757=\"\"),IF(AND(N191=\"La actividad sí contribuye sustancialmente a la sostenibilidad\",O191=\"La actividad sí contribuye sustancialmente a la sostenibilidad\"),SUM(B191:L191),0),IF(AND('Base-datos'!$B$755=\"Sí\",'Base-datos'!$B$756=\"Sí\",'Base-datos'!$B$757=\"Sí\"),IF(AND(N191=\"La actividad sí contribuye sustancialmente a la sostenibilidad\",O191=\"La actividad sí contribuye sustancialmente a la sostenibilidad\",M191=\"La actividad sí contribuye sustancialmente a la sostenibilidad\"),SUM(B191:L191),0),IF(AND('Base-datos'!$B$755=\"\",'Base-datos'!$B$756=\"Sí\",'Base-datos'!$B$757=\"\"),IF(O191=\"La actividad sí contribuye sustancialmente a la sostenibilidad\",SUM(B191:L191),0),IF(AND('Base-datos'!$B$755=\"\",'Base-datos'!$B$756=\"\",'Base-datos'!$B$757=\"Sí\"),IF(M191=\"La actividad sí contribuye sustancialmente a la sostenibilidad\",SUM(B191:L191),0),IF(AND('Base-datos'!$B$755=\"\",'Base-datos'!$B$756=\"Sí\",'Base-datos'!$B$757=\"Sí\"),IF(AND(O191=\"La actividad sí contribuye sustancialmente a la sostenibilidad\",M191=\"La actividad sí contribuye sustancialmente a la sostenibilidad\"),SUM(B191:L191),0),IF(AND('Base-datos'!$B$755=\"Sí\",'Base-datos'!$B$756=\"\",'Base-datos'!$B$757=\"Sí\"),IF(AND(N191=\"La actividad sí contribuye sustancialmente a la sostenibilidad\",M191=\"La actividad sí contribuye sustancialmente a la sostenibilidad\"),SUM(B191:L191),0),\"Por definir\"))))))))","v":"Por definir"}]
[{"$f":"Residuos!$C30","v":"Seleccione"},{"$f":"IF(Residuos!$E30='Fondos-Inversionistas'!B$12,Residuos!$B30,\"\")","v":""},{"$f":"IF(Residuos!$E30='Fondos-Inversionistas'!C$12,Residuos!$B30,\"\")","v":""},{"$f":"IF(Residuos!$E30='Fondos-Inversionistas'!D$12,Residuos!$B30,\"\")","v":""},{"$f":"IF(Residuos!$E30='Fondos-Inversionistas'!E$12,Residuos!$B30,\"\")","v":""},{"$f":"IF(Residuos!$E30='Fondos-Inversionistas'!F$12,Residuos!$B30,\"\")","v":""},{"$f":"IF(Residuos!$E30='Fondos-Inversionistas'!G$12,Residuos!$B30,\"\")","v":""},{"$f":"IF(Residuos!$E30='Fondos-Inversionistas'!H$12,Residuos!$B30,\"\")","v":""},{"$f":"IF(Residuos!$E30='Fondos-Inversionistas'!I$12,Residuos!$B30,\"\")","v":""},{"$f":"IF(Residuos!$E30='Fondos-Inversionistas'!J$12,Residuos!$B30,\"\")","v":""},{"$f":"IF(Residuos!$E30='Fondos-Inversionistas'!K$12,Residuos!$B30,\"\")","v":""},{"$f":"IF(Residuos!$E30='Fondos-Inversionistas'!L$12,Residuos!$B30,\"\")","v":""},{"$f":"_xlfn.XLOOKUP(A192,'Base-datos'!$B$571:$B$580,'Base-datos'!$F$571:$F$580)","v":{"$error":"#N/A"}},{"$f":"_xlfn.XLOOKUP(A192,'Base-datos'!$B$571:$B$580,'Base-datos'!$C$571:$C$580)","v":{"$error":"#N/A"}},{"$f":"_xlfn.XLOOKUP(A192,'Base-datos'!$B$571:$B$580,'Base-datos'!$D$571:$D$580)","v":{"$error":"#N/A"}},null,null,{"$f":"IF(OR(P$182=\"La actividad no cumple con el total de los criterios de No Daño Significativo\",Q$182=\"El sector no cumple con las salvaguardas mínimas\"),\"\",IF(AND('Base-datos'!$B$755=\"Sí\",'Base-datos'!$B$756=\"\",'Base-datos'!$B$757=\"\"),IF(N192=\"La actividad sí contribuye sustancialmente a la sostenibilidad\",SUM(B192:L192),0),IF(AND('Base-datos'!$B$755=\"Sí\",'Base-datos'!$B$756=\"Sí\",'Base-datos'!$B$757=\"\"),IF(AND(N192=\"La actividad sí contribuye sustancialmente a la sostenibilidad\",O192=\"La actividad sí contribuye sustancialmente a la sostenibilidad\"),SUM(B192:L192),0),IF(AND('Base-datos'!$B$755=\"Sí\",'Base-datos'!$B$756=\"Sí\",'Base-datos'!$B$757=\"Sí\"),IF(AND(N192=\"La actividad sí contribuye sustancialmente a la sostenibilidad\",O192=\"La actividad sí contribuye sustancialmente a la sostenibilidad\",M192=\"La actividad sí contribuye sustancialmente a la sostenibilidad\"),SUM(B192:L192),0),IF(AND('Base-datos'!$B$755=\"\",'Base-datos'!$B$756=\"Sí\",'Base-datos'!$B$757=\"\"),IF(O192=\"La actividad sí contribuye sustancialmente a la sostenibilidad\",SUM(B192:L192),0),IF(AND('Base-datos'!$B$755=\"\",'Base-datos'!$B$756=\"\",'Base-datos'!$B$757=\"Sí\"),IF(M192=\"La actividad sí contribuye sustancialmente a la sostenibilidad\",SUM(B192:L192),0),IF(AND('Base-datos'!$B$755=\"\",'Base-datos'!$B$756=\"Sí\",'Base-datos'!$B$757=\"Sí\"),IF(AND(O192=\"La actividad sí contribuye sustancialmente a la sostenibilidad\",M192=\"La actividad sí contribuye sustancialmente a la sostenibilidad\"),SUM(B192:L192),0),IF(AND('Base-datos'!$B$755=\"Sí\",'Base-datos'!$B$756=\"\",'Base-datos'!$B$757=\"Sí\"),IF(AND(N192=\"La actividad sí contribuye sustancialmente a la sostenibilidad\",M192=\"La actividad sí contribuye sustancialmente a la sostenibilidad\"),SUM(B192:L192),0),\"Por definir\"))))))))","v":"Por definir"}]
[{"$f":"Residuos!$C32","v":"Seleccione"},{"$f":"IF(Residuos!$E32='Fondos-Inversionistas'!B$12,Residuos!$B32,\"\")","v":""},{"$f":"IF(Residuos!$E32='Fondos-Inversionistas'!C$12,Residuos!$B32,\"\")","v":""},{"$f":"IF(Residuos!$E32='Fondos-Inversionistas'!D$12,Residuos!$B32,\"\")","v":""},{"$f":"IF(Residuos!$E32='Fondos-Inversionistas'!E$12,Residuos!$B32,\"\")","v":""},{"$f":"IF(Residuos!$E32='Fondos-Inversionistas'!F$12,Residuos!$B32,\"\")","v":""},{"$f":"IF(Residuos!$E32='Fondos-Inversionistas'!G$12,Residuos!$B32,\"\")","v":""},{"$f":"IF(Residuos!$E32='Fondos-Inversionistas'!H$12,Residuos!$B32,\"\")","v":""},{"$f":"IF(Residuos!$E32='Fondos-Inversionistas'!I$12,Residuos!$B32,\"\")","v":""},{"$f":"IF(Residuos!$E32='Fondos-Inversionistas'!J$12,Residuos!$B32,\"\")","v":""},{"$f":"IF(Residuos!$E32='Fondos-Inversionistas'!K$12,Residuos!$B32,\"\")","v":""},{"$f":"IF(Residuos!$E32='Fondos-Inversionistas'!L$12,Residuos!$B32,\"\")","v":""},{"$f":"_xlfn.XLOOKUP(A193,'Base-datos'!$B$571:$B$580,'Base-datos'!$F$571:$F$580)","v":{"$error":"#N/A"}},{"$f":"_xlfn.XLOOKUP(A193,'Base-datos'!$B$571:$B$580,'Base-datos'!$C$571:$C$580)","v":{"$error":"#N/A"}},{"$f":"_xlfn.XLOOKUP(A193,'Base-datos'!$B$571:$B$580,'Base-datos'!$D$571:$D$580)","v":{"$error":"#N/A"}},null,null,{"$f":"IF(OR(P$182=\"La actividad no cumple con el total de los criterios de No Daño Significativo\",Q$182=\"El sector no cumple con las salvaguardas mínimas\"),\"\",IF(AND('Base-datos'!$B$755=\"Sí\",'Base-datos'!$B$756=\"\",'Base-datos'!$B$757=\"\"),IF(N193=\"La actividad sí contribuye sustancialmente a la sostenibilidad\",SUM(B193:L193),0),IF(AND('Base-datos'!$B$755=\"Sí\",'Base-datos'!$B$756=\"Sí\",'Base-datos'!$B$757=\"\"),IF(AND(N193=\"La actividad sí contribuye sustancialmente a la sostenibilidad\",O193=\"La actividad sí contribuye sustancialmente a la sostenibilidad\"),SUM(B193:L193),0),IF(AND('Base-datos'!$B$755=\"Sí\",'Base-datos'!$B$756=\"Sí\",'Base-datos'!$B$757=\"Sí\"),IF(AND(N193=\"La actividad sí contribuye sustancialmente a la sostenibilidad\",O193=\"La actividad sí contribuye sustancialmente a la sostenibilidad\",M193=\"La actividad sí contribuye sustancialmente a la sostenibilidad\"),SUM(B193:L193),0),IF(AND('Base-datos'!$B$755=\"\",'Base-datos'!$B$756=\"Sí\",'Base-datos'!$B$757=\"\"),IF(O193=\"La actividad sí contribuye sustancialmente a la sostenibilidad\",SUM(B193:L193),0),IF(AND('Base-datos'!$B$755=\"\",'Base-datos'!$B$756=\"\",'Base-datos'!$B$757=\"Sí\"),IF(M193=\"La actividad sí contribuye sustancialmente a la sostenibilidad\",SUM(B193:L193),0),IF(AND('Base-datos'!$B$755=\"\",'Base-datos'!$B$756=\"Sí\",'Base-datos'!$B$757=\"Sí\"),IF(AND(O193=\"La actividad sí contribuye sustancialmente a la sostenibilidad\",M193=\"La actividad sí contribuye sustancialmente a la sostenibilidad\"),SUM(B193:L193),0),IF(AND('Base-datos'!$B$755=\"Sí\",'Base-datos'!$B$756=\"\",'Base-datos'!$B$757=\"Sí\"),IF(AND(N193=\"La actividad sí contribuye sustancialmente a la sostenibilidad\",M193=\"La actividad sí contribuye sustancialmente a la sostenibilidad\"),SUM(B193:L193),0),\"Por definir\"))))))))","v":"Por definir"}]
[{"$f":"Residuos!$C34","v":"Seleccione"},{"$f":"IF(Residuos!$E34='Fondos-Inversionistas'!B$12,Residuos!$B34,\"\")","v":""},{"$f":"IF(Residuos!$E34='Fondos-Inversionistas'!C$12,Residuos!$B34,\"\")","v":""},{"$f":"IF(Residuos!$E34='Fondos-Inversionistas'!D$12,Residuos!$B34,\"\")","v":""},{"$f":"IF(Residuos!$E34='Fondos-Inversionistas'!E$12,Residuos!$B34,\"\")","v":""},{"$f":"IF(Residuos!$E34='Fondos-Inversionistas'!F$12,Residuos!$B34,\"\")","v":""},{"$f":"IF(Residuos!$E34='Fondos-Inversionistas'!G$12,Residuos!$B34,\"\")","v":""},{"$f":"IF(Residuos!$E34='Fondos-Inversionistas'!H$12,Residuos!$B34,\"\")","v":""},{"$f":"IF(Residuos!$E34='Fondos-Inversionistas'!I$12,Residuos!$B34,\"\")","v":""},{"$f":"IF(Residuos!$E34='Fondos-Inversionistas'!J$12,Residuos!$B34,\"\")","v":""},{"$f":"IF(Residuos!$E34='Fondos-Inversionistas'!K$12,Residuos!$B34,\"\")","v":""},{"$f":"IF(Residuos!$E34='Fondos-Inversionistas'!L$12,Residuos!$B34,\"\")","v":""},{"$f":"_xlfn.XLOOKUP(A194,'Base-datos'!$B$571:$B$580,'Base-datos'!$F$571:$F$580)","v":{"$error":"#N/A"}},{"$f":"_xlfn.XLOOKUP(A194,'Base-datos'!$B$571:$B$580,'Base-datos'!$C$571:$C$580)","v":{"$error":"#N/A"}},{"$f":"_xlfn.XLOOKUP(A194,'Base-datos'!$B$571:$B$580,'Base-datos'!$D$571:$D$580)","v":{"$error":"#N/A"}},null,null,{"$f":"IF(OR(P$182=\"La actividad no cumple con el total de los criterios de No Daño Significativo\",Q$182=\"El sector no cumple con las salvaguardas mínimas\"),\"\",IF(AND('Base-datos'!$B$755=\"Sí\",'Base-datos'!$B$756=\"\",'Base-datos'!$B$757=\"\"),IF(N194=\"La actividad sí contribuye sustancialmente a la sostenibilidad\",SUM(B194:L194),0),IF(AND('Base-datos'!$B$755=\"Sí\",'Base-datos'!$B$756=\"Sí\",'Base-datos'!$B$757=\"\"),IF(AND(N194=\"La actividad sí contribuye sustancialmente a la sostenibilidad\",O194=\"La actividad sí contribuye sustancialmente a la sostenibilidad\"),SUM(B194:L194),0),IF(AND('Base-datos'!$B$755=\"Sí\",'Base-datos'!$B$756=\"Sí\",'Base-datos'!$B$757=\"Sí\"),IF(AND(N194=\"La actividad sí contribuye sustancialmente a la sostenibilidad\",O194=\"La actividad sí contribuye sustancialmente a la sostenibilidad\",M194=\"La actividad sí contribuye sustancialmente a la sostenibilidad\"),SUM(B194:L194),0),IF(AND('Base-datos'!$B$755=\"\",'Base-datos'!$B$756=\"Sí\",'Base-datos'!$B$757=\"\"),IF(O194=\"La actividad sí contribuye sustancialmente a la sostenibilidad\",SUM(B194:L194),0),IF(AND('Base-datos'!$B$755=\"\",'Base-datos'!$B$756=\"\",'Base-datos'!$B$757=\"Sí\"),IF(M194=\"La actividad sí contribuye sustancialmente a la sostenibilidad\",SUM(B194:L194),0),IF(AND('Base-datos'!$B$755=\"\",'Base-datos'!$B$756=\"Sí\",'Base-datos'!$B$757=\"Sí\"),IF(AND(O194=\"La actividad sí contribuye sustancialmente a la sostenibilidad\",M194=\"La actividad sí contribuye sustancialmente a la sostenibilidad\"),SUM(B194:L194),0),IF(AND('Base-datos'!$B$755=\"Sí\",'Base-datos'!$B$756=\"\",'Base-datos'!$B$757=\"Sí\"),IF(AND(N194=\"La actividad sí contribuye sustancialmente a la sostenibilidad\",M194=\"La actividad sí contribuye sustancialmente a la sostenibilidad\"),SUM(B194:L194),0),\"Por definir\"))))))))","v":"Por definir"}]
[{"$f":"Residuos!$C36","v":"Seleccione"},{"$f":"IF(Residuos!$E36='Fondos-Inversionistas'!B$12,Residuos!$B36,\"\")","v":""},{"$f":"IF(Residuos!$E36='Fondos-Inversionistas'!C$12,Residuos!$B36,\"\")","v":""},{"$f":"IF(Residuos!$E36='Fondos-Inversionistas'!D$12,Residuos!$B36,\"\")","v":""},{"$f":"IF(Residuos!$E36='Fondos-Inversionistas'!E$12,Residuos!$B36,\"\")","v":""},{"$f":"IF(Residuos!$E36='Fondos-Inversionistas'!F$12,Residuos!$B36,\"\")","v":""},{"$f":"IF(Residuos!$E36='Fondos-Inversionistas'!G$12,Residuos!$B36,\"\")","v":""},{"$f":"IF(Residuos!$E36='Fondos-Inversionistas'!H$12,Residuos!$B36,\"\")","v":""},{"$f":"IF(Residuos!$E36='Fondos-Inversionistas'!I$12,Residuos!$B36,\"\")","v":""},{"$f":"IF(Residuos!$E36='Fondos-Inversionistas'!J$12,Residuos!$B36,\"\")","v":""},{"$f":"IF(Residuos!$E36='Fondos-Inversionistas'!K$12,Residuos!$B36,\"\")","v":""},{"$f":"IF(Residuos!$E36='Fondos-Inversionistas'!L$12,Residuos!$B36,\"\")","v":""},{"$f":"_xlfn.XLOOKUP(A195,'Base-datos'!$B$571:$B$580,'Base-datos'!$F$571:$F$580)","v":{"$error":"#N/A"}},{"$f":"_xlfn.XLOOKUP(A195,'Base-datos'!$B$571:$B$580,'Base-datos'!$C$571:$C$580)","v":{"$error":"#N/A"}},{"$f":"_xlfn.XLOOKUP(A195,'Base-datos'!$B$571:$B$580,'Base-datos'!$D$571:$D$580)","v":{"$error":"#N/A"}},null,null,{"$f":"IF(OR(P$182=\"La actividad no cumple con el total de los criterios de No Daño Significativo\",Q$182=\"El sector no cumple con las salvaguardas mínimas\"),\"\",IF(AND('Base-datos'!$B$755=\"Sí\",'Base-datos'!$B$756=\"\",'Base-datos'!$B$757=\"\"),IF(N195=\"La actividad sí contribuye sustancialmente a la sostenibilidad\",SUM(B195:L195),0),IF(AND('Base-datos'!$B$755=\"Sí\",'Base-datos'!$B$756=\"Sí\",'Base-datos'!$B$757=\"\"),IF(AND(N195=\"La actividad sí contribuye sustancialmente a la sostenibilidad\",O195=\"La actividad sí contribuye sustancialmente a la sostenibilidad\"),SUM(B195:L195),0),IF(AND('Base-datos'!$B$755=\"Sí\",'Base-datos'!$B$756=\"Sí\",'Base-datos'!$B$757=\"Sí\"),IF(AND(N195=\"La actividad sí contribuye sustancialmente a la sostenibilidad\",O195=\"La actividad sí contribuye sustancialmente a la sostenibilidad\",M195=\"La actividad sí contribuye sustancialmente a la sostenibilidad\"),SUM(B195:L195),0),IF(AND('Base-datos'!$B$755=\"\",'Base-datos'!$B$756=\"Sí\",'Base-datos'!$B$757=\"\"),IF(O195=\"La actividad sí contribuye sustancialmente a la sostenibilidad\",SUM(B195:L195),0),IF(AND('Base-datos'!$B$755=\"\",'Base-datos'!$B$756=\"\",'Base-datos'!$B$757=\"Sí\"),IF(M195=\"La actividad sí contribuye sustancialmente a la sostenibilidad\",SUM(B195:L195),0),IF(AND('Base-datos'!$B$755=\"\",'Base-datos'!$B$756=\"Sí\",'Base-datos'!$B$757=\"Sí\"),IF(AND(O195=\"La actividad sí contribuye sustancialmente a la sostenibilidad\",M195=\"La actividad sí contribuye sustancialmente a la sostenibilidad\"),SUM(B195:L195),0),IF(AND('Base-datos'!$B$755=\"Sí\",'Base-datos'!$B$756=\"\",'Base-datos'!$B$757=\"Sí\"),IF(AND(N195=\"La actividad sí contribuye sustancialmente a la sostenibilidad\",M195=\"La actividad sí contribuye sustancialmente a la sostenibilidad\"),SUM(B195:L195),0),\"Por definir\"))))))))","v":"Por definir"}]
[{"$f":"Residuos!$C38","v":"Seleccione"},{"$f":"IF(Residuos!$E38='Fondos-Inversionistas'!B$12,Residuos!$B38,\"\")","v":""},{"$f":"IF(Residuos!$E38='Fondos-Inversionistas'!C$12,Residuos!$B38,\"\")","v":""},{"$f":"IF(Residuos!$E38='Fondos-Inversionistas'!D$12,Residuos!$B38,\"\")","v":""},{"$f":"IF(Residuos!$E38='Fondos-Inversionistas'!E$12,Residuos!$B38,\"\")","v":""},{"$f":"IF(Residuos!$E38='Fondos-Inversionistas'!F$12,Residuos!$B38,\"\")","v":""},{"$f":"IF(Residuos!$E38='Fondos-Inversionistas'!G$12,Residuos!$B38,\"\")","v":""},{"$f":"IF(Residuos!$E38='Fondos-Inversionistas'!H$12,Residuos!$B38,\"\")","v":""},{"$f":"IF(Residuos!$E38='Fondos-Inversionistas'!I$12,Residuos!$B38,\"\")","v":""},{"$f":"IF(Residuos!$E38='Fondos-Inversionistas'!J$12,Residuos!$B38,\"\")","v":""},{"$f":"IF(Residuos!$E38='Fondos-Inversionistas'!K$12,Residuos!$B38,\"\")","v":""},{"$f":"IF(Residuos!$E38='Fondos-Inversionistas'!L$12,Residuos!$B38,\"\")","v":""},{"$f":"_xlfn.XLOOKUP(A196,'Base-datos'!$B$571:$B$580,'Base-datos'!$F$571:$F$580)","v":{"$error":"#N/A"}},{"$f":"_xlfn.XLOOKUP(A196,'Base-datos'!$B$571:$B$580,'Base-datos'!$C$571:$C$580)","v":{"$error":"#N/A"}},{"$f":"_xlfn.XLOOKUP(A196,'Base-datos'!$B$571:$B$580,'Base-datos'!$D$571:$D$580)","v":{"$error":"#N/A"}},null,null,{"$f":"IF(OR(P$182=\"La actividad no cumple con el total de los criterios de No Daño Significativo\",Q$182=\"El sector no cumple con las salvaguardas mínimas\"),\"\",IF(AND('Base-datos'!$B$755=\"Sí\",'Base-datos'!$B$756=\"\",'Base-datos'!$B$757=\"\"),IF(N196=\"La actividad sí contribuye sustancialmente a la sostenibilidad\",SUM(B196:L196),0),IF(AND('Base-datos'!$B$755=\"Sí\",'Base-datos'!$B$756=\"Sí\",'Base-datos'!$B$757=\"\"),IF(AND(N196=\"La actividad sí contribuye sustancialmente a la sostenibilidad\",O196=\"La actividad sí contribuye sustancialmente a la sostenibilidad\"),SUM(B196:L196),0),IF(AND('Base-datos'!$B$755=\"Sí\",'Base-datos'!$B$756=\"Sí\",'Base-datos'!$B$757=\"Sí\"),IF(AND(N196=\"La actividad sí contribuye sustancialmente a la sostenibilidad\",O196=\"La actividad sí contribuye sustancialmente a la sostenibilidad\",M196=\"La actividad sí contribuye sustancialmente a la sostenibilidad\"),SUM(B196:L196),0),IF(AND('Base-datos'!$B$755=\"\",'Base-datos'!$B$756=\"Sí\",'Base-datos'!$B$757=\"\"),IF(O196=\"La actividad sí contribuye sustancialmente a la sostenibilidad\",SUM(B196:L196),0),IF(AND('Base-datos'!$B$755=\"\",'Base-datos'!$B$756=\"\",'Base-datos'!$B$757=\"Sí\"),IF(M196=\"La actividad sí contribuye sustancialmente a la sostenibilidad\",SUM(B196:L196),0),IF(AND('Base-datos'!$B$755=\"\",'Base-datos'!$B$756=\"Sí\",'Base-datos'!$B$757=\"Sí\"),IF(AND(O196=\"La actividad sí contribuye sustancialmente a la sostenibilidad\",M196=\"La actividad sí contribuye sustancialmente a la sostenibilidad\"),SUM(B196:L196),0),IF(AND('Base-datos'!$B$755=\"Sí\",'Base-datos'!$B$756=\"\",'Base-datos'!$B$757=\"Sí\"),IF(AND(N196=\"La actividad sí contribuye sustancialmente a la sostenibilidad\",M196=\"La actividad sí contribuye sustancialmente a la sostenibilidad\"),SUM(B196:L196),0),\"Por definir\"))))))))","v":"Por definir"}]
[{"$f":"Residuos!$C40","v":"Seleccione"},{"$f":"IF(Residuos!$E40='Fondos-Inversionistas'!B$12,Residuos!$B40,\"\")","v":""},{"$f":"IF(Residuos!$E40='Fondos-Inversionistas'!C$12,Residuos!$B40,\"\")","v":""},{"$f":"IF(Residuos!$E40='Fondos-Inversionistas'!D$12,Residuos!$B40,\"\")","v":""},{"$f":"IF(Residuos!$E40='Fondos-Inversionistas'!E$12,Residuos!$B40,\"\")","v":""},{"$f":"IF(Residuos!$E40='Fondos-Inversionistas'!F$12,Residuos!$B40,\"\")","v":""},{"$f":"IF(Residuos!$E40='Fondos-Inversionistas'!G$12,Residuos!$B40,\"\")","v":""},{"$f":"IF(Residuos!$E40='Fondos-Inversionistas'!H$12,Residuos!$B40,\"\")","v":""},{"$f":"IF(Residuos!$E40='Fondos-Inversionistas'!I$12,Residuos!$B40,\"\")","v":""},{"$f":"IF(Residuos!$E40='Fondos-Inversionistas'!J$12,Residuos!$B40,\"\")","v":""},{"$f":"IF(Residuos!$E40='Fondos-Inversionistas'!K$12,Residuos!$B40,\"\")","v":""},{"$f":"IF(Residuos!$E40='Fondos-Inversionistas'!L$12,Residuos!$B40,\"\")","v":""},{"$f":"_xlfn.XLOOKUP(A197,'Base-datos'!$B$571:$B$580,'Base-datos'!$F$571:$F$580)","v":{"$error":"#N/A"}},{"$f":"_xlfn.XLOOKUP(A197,'Base-datos'!$B$571:$B$580,'Base-datos'!$C$571:$C$580)","v":{"$error":"#N/A"}},{"$f":"_xlfn.XLOOKUP(A197,'Base-datos'!$B$571:$B$580,'Base-datos'!$D$571:$D$580)","v":{"$error":"#N/A"}},null,null,{"$f":"IF(OR(P$182=\"La actividad no cumple con el total de los criterios de No Daño Significativo\",Q$182=\"El sector no cumple con las salvaguardas mínimas\"),\"\",IF(AND('Base-datos'!$B$755=\"Sí\",'Base-datos'!$B$756=\"\",'Base-datos'!$B$757=\"\"),IF(N197=\"La actividad sí contribuye sustancialmente a la sostenibilidad\",SUM(B197:L197),0),IF(AND('Base-datos'!$B$755=\"Sí\",'Base-datos'!$B$756=\"Sí\",'Base-datos'!$B$757=\"\"),IF(AND(N197=\"La actividad sí contribuye sustancialmente a la sostenibilidad\",O197=\"La actividad sí contribuye sustancialmente a la sostenibilidad\"),SUM(B197:L197),0),IF(AND('Base-datos'!$B$755=\"Sí\",'Base-datos'!$B$756=\"Sí\",'Base-datos'!$B$757=\"Sí\"),IF(AND(N197=\"La actividad sí contribuye sustancialmente a la sostenibilidad\",O197=\"La actividad sí contribuye sustancialmente a la sostenibilidad\",M197=\"La actividad sí contribuye sustancialmente a la sostenibilidad\"),SUM(B197:L197),0),IF(AND('Base-datos'!$B$755=\"\",'Base-datos'!$B$756=\"Sí\",'Base-datos'!$B$757=\"\"),IF(O197=\"La actividad sí contribuye sustancialmente a la sostenibilidad\",SUM(B197:L197),0),IF(AND('Base-datos'!$B$755=\"\",'Base-datos'!$B$756=\"\",'Base-datos'!$B$757=\"Sí\"),IF(M197=\"La actividad sí contribuye sustancialmente a la sostenibilidad\",SUM(B197:L197),0),IF(AND('Base-datos'!$B$755=\"\",'Base-datos'!$B$756=\"Sí\",'Base-datos'!$B$757=\"Sí\"),IF(AND(O197=\"La actividad sí contribuye sustancialmente a la sostenibilidad\",M197=\"La actividad sí contribuye sustancialmente a la sostenibilidad\"),SUM(B197:L197),0),IF(AND('Base-datos'!$B$755=\"Sí\",'Base-datos'!$B$756=\"\",'Base-datos'!$B$757=\"Sí\"),IF(AND(N197=\"La actividad sí contribuye sustancialmente a la sostenibilidad\",M197=\"La actividad sí contribuye sustancialmente a la sostenibilidad\"),SUM(B197:L197),0),\"Por definir\"))))))))","v":"Por definir"}]
[{"$f":"Residuos!$C42","v":"Seleccione"},{"$f":"IF(Residuos!$E42='Fondos-Inversionistas'!B$12,Residuos!$B42,\"\")","v":""},{"$f":"IF(Residuos!$E42='Fondos-Inversionistas'!C$12,Residuos!$B42,\"\")","v":""},{"$f":"IF(Residuos!$E42='Fondos-Inversionistas'!D$12,Residuos!$B42,\"\")","v":""},{"$f":"IF(Residuos!$E42='Fondos-Inversionistas'!E$12,Residuos!$B42,\"\")","v":""},{"$f":"IF(Residuos!$E42='Fondos-Inversionistas'!F$12,Residuos!$B42,\"\")","v":""},{"$f":"IF(Residuos!$E42='Fondos-Inversionistas'!G$12,Residuos!$B42,\"\")","v":""},{"$f":"IF(Residuos!$E42='Fondos-Inversionistas'!H$12,Residuos!$B42,\"\")","v":""},{"$f":"IF(Residuos!$E42='Fondos-Inversionistas'!I$12,Residuos!$B42,\"\")","v":""},{"$f":"IF(Residuos!$E42='Fondos-Inversionistas'!J$12,Residuos!$B42,\"\")","v":""},{"$f":"IF(Residuos!$E42='Fondos-Inversionistas'!K$12,Residuos!$B42,\"\")","v":""},{"$f":"IF(Residuos!$E42='Fondos-Inversionistas'!L$12,Residuos!$B42,\"\")","v":""},{"$f":"_xlfn.XLOOKUP(A198,'Base-datos'!$B$571:$B$580,'Base-datos'!$F$571:$F$580)","v":{"$error":"#N/A"}},{"$f":"_xlfn.XLOOKUP(A198,'Base-datos'!$B$571:$B$580,'Base-datos'!$C$571:$C$580)","v":{"$error":"#N/A"}},{"$f":"_xlfn.XLOOKUP(A198,'Base-datos'!$B$571:$B$580,'Base-datos'!$D$571:$D$580)","v":{"$error":"#N/A"}},null,null,{"$f":"IF(OR(P$182=\"La actividad no cumple con el total de los criterios de No Daño Significativo\",Q$182=\"El sector no cumple con las salvaguardas mínimas\"),\"\",IF(AND('Base-datos'!$B$755=\"Sí\",'Base-datos'!$B$756=\"\",'Base-datos'!$B$757=\"\"),IF(N198=\"La actividad sí contribuye sustancialmente a la sostenibilidad\",SUM(B198:L198),0),IF(AND('Base-datos'!$B$755=\"Sí\",'Base-datos'!$B$756=\"Sí\",'Base-datos'!$B$757=\"\"),IF(AND(N198=\"La actividad sí contribuye sustancialmente a la sostenibilidad\",O198=\"La actividad sí contribuye sustancialmente a la sostenibilidad\"),SUM(B198:L198),0),IF(AND('Base-datos'!$B$755=\"Sí\",'Base-datos'!$B$756=\"Sí\",'Base-datos'!$B$757=\"Sí\"),IF(AND(N198=\"La actividad sí contribuye sustancialmente a la sostenibilidad\",O198=\"La actividad sí contribuye sustancialmente a la sostenibilidad\",M198=\"La actividad sí contribuye sustancialmente a la sostenibilidad\"),SUM(B198:L198),0),IF(AND('Base-datos'!$B$755=\"\",'Base-datos'!$B$756=\"Sí\",'Base-datos'!$B$757=\"\"),IF(O198=\"La actividad sí contribuye sustancialmente a la sostenibilidad\",SUM(B198:L198),0),IF(AND('Base-datos'!$B$755=\"\",'Base-datos'!$B$756=\"\",'Base-datos'!$B$757=\"Sí\"),IF(M198=\"La actividad sí contribuye sustancialmente a la sostenibilidad\",SUM(B198:L198),0),IF(AND('Base-datos'!$B$755=\"\",'Base-datos'!$B$756=\"Sí\",'Base-datos'!$B$757=\"Sí\"),IF(AND(O198=\"La actividad sí contribuye sustancialmente a la sostenibilidad\",M198=\"La actividad sí contribuye sustancialmente a la sostenibilidad\"),SUM(B198:L198),0),IF(AND('Base-datos'!$B$755=\"Sí\",'Base-datos'!$B$756=\"\",'Base-datos'!$B$757=\"Sí\"),IF(AND(N198=\"La actividad sí contribuye sustancialmente a la sostenibilidad\",M198=\"La actividad sí contribuye sustancialmente a la sostenibilidad\"),SUM(B198:L198),0),\"Por definir\"))))))))","v":"Por definir"}]
[{"$f":"Residuos!$C44","v":"Seleccione"},{"$f":"IF(Residuos!$E44='Fondos-Inversionistas'!B$12,Residuos!$B44,\"\")","v":""},{"$f":"IF(Residuos!$E44='Fondos-Inversionistas'!C$12,Residuos!$B44,\"\")","v":""},{"$f":"IF(Residuos!$E44='Fondos-Inversionistas'!D$12,Residuos!$B44,\"\")","v":""},{"$f":"IF(Residuos!$E44='Fondos-Inversionistas'!E$12,Residuos!$B44,\"\")","v":""},{"$f":"IF(Residuos!$E44='Fondos-Inversionistas'!F$12,Residuos!$B44,\"\")","v":""},{"$f":"IF(Residuos!$E44='Fondos-Inversionistas'!G$12,Residuos!$B44,\"\")","v":""},{"$f":"IF(Residuos!$E44='Fondos-Inversionistas'!H$12,Residuos!$B44,\"\")","v":""},{"$f":"IF(Residuos!$E44='Fondos-Inversionistas'!I$12,Residuos!$B44,\"\")","v":""},{"$f":"IF(Residuos!$E44='Fondos-Inversionistas'!J$12,Residuos!$B44,\"\")","v":""},{"$f":"IF(Residuos!$E44='Fondos-Inversionistas'!K$12,Residuos!$B44,\"\")","v":""},{"$f":"IF(Residuos!$E44='Fondos-Inversionistas'!L$12,Residuos!$B44,\"\")","v":""},{"$f":"_xlfn.XLOOKUP(A199,'Base-datos'!$B$571:$B$580,'Base-datos'!$F$571:$F$580)","v":{"$error":"#N/A"}},{"$f":"_xlfn.XLOOKUP(A199,'Base-datos'!$B$571:$B$580,'Base-datos'!$C$571:$C$580)","v":{"$error":"#N/A"}},{"$f":"_xlfn.XLOOKUP(A199,'Base-datos'!$B$571:$B$580,'Base-datos'!$D$571:$D$580)","v":{"$error":"#N/A"}},null,null,{"$f":"IF(OR(P$182=\"La actividad no cumple con el total de los criterios de No Daño Significativo\",Q$182=\"El sector no cumple con las salvaguardas mínimas\"),\"\",IF(AND('Base-datos'!$B$755=\"Sí\",'Base-datos'!$B$756=\"\",'Base-datos'!$B$757=\"\"),IF(N199=\"La actividad sí contribuye sustancialmente a la sostenibilidad\",SUM(B199:L199),0),IF(AND('Base-datos'!$B$755=\"Sí\",'Base-datos'!$B$756=\"Sí\",'Base-datos'!$B$757=\"\"),IF(AND(N199=\"La actividad sí contribuye sustancialmente a la sostenibilidad\",O199=\"La actividad sí contribuye sustancialmente a la sostenibilidad\"),SUM(B199:L199),0),IF(AND('Base-datos'!$B$755=\"Sí\",'Base-datos'!$B$756=\"Sí\",'Base-datos'!$B$757=\"Sí\"),IF(AND(N199=\"La actividad sí contribuye sustancialmente a la sostenibilidad\",O199=\"La actividad sí contribuye sustancialmente a la sostenibilidad\",M199=\"La actividad sí contribuye sustancialmente a la sostenibilidad\"),SUM(B199:L199),0),IF(AND('Base-datos'!$B$755=\"\",'Base-datos'!$B$756=\"Sí\",'Base-datos'!$B$757=\"\"),IF(O199=\"La actividad sí contribuye sustancialmente a la sostenibilidad\",SUM(B199:L199),0),IF(AND('Base-datos'!$B$755=\"\",'Base-datos'!$B$756=\"\",'Base-datos'!$B$757=\"Sí\"),IF(M199=\"La actividad sí contribuye sustancialmente a la sostenibilidad\",SUM(B199:L199),0),IF(AND('Base-datos'!$B$755=\"\",'Base-datos'!$B$756=\"Sí\",'Base-datos'!$B$757=\"Sí\"),IF(AND(O199=\"La actividad sí contribuye sustancialmente a la sostenibilidad\",M199=\"La actividad sí contribuye sustancialmente a la sostenibilidad\"),SUM(B199:L199),0),IF(AND('Base-datos'!$B$755=\"Sí\",'Base-datos'!$B$756=\"\",'Base-datos'!$B$757=\"Sí\"),IF(AND(N199=\"La actividad sí contribuye sustancialmente a la sostenibilidad\",M199=\"La actividad sí contribuye sustancialmente a la sostenibilidad\"),SUM(B199:L199),0),\"Por definir\"))))))))","v":"Por definir"}]
[{"$f":"Residuos!$C46","v":"Seleccione"},{"$f":"IF(Residuos!$E46='Fondos-Inversionistas'!B$12,Residuos!$B46,\"\")","v":""},{"$f":"IF(Residuos!$E46='Fondos-Inversionistas'!C$12,Residuos!$B46,\"\")","v":""},{"$f":"IF(Residuos!$E46='Fondos-Inversionistas'!D$12,Residuos!$B46,\"\")","v":""},{"$f":"IF(Residuos!$E46='Fondos-Inversionistas'!E$12,Residuos!$B46,\"\")","v":""},{"$f":"IF(Residuos!$E46='Fondos-Inversionistas'!F$12,Residuos!$B46,\"\")","v":""},{"$f":"IF(Residuos!$E46='Fondos-Inversionistas'!G$12,Residuos!$B46,\"\")","v":""},{"$f":"IF(Residuos!$E46='Fondos-Inversionistas'!H$12,Residuos!$B46,\"\")","v":""},{"$f":"IF(Residuos!$E46='Fondos-Inversionistas'!I$12,Residuos!$B46,\"\")","v":""},{"$f":"IF(Residuos!$E46='Fondos-Inversionistas'!J$12,Residuos!$B46,\"\")","v":""},{"$f":"IF(Residuos!$E46='Fondos-Inversionistas'!K$12,Residuos!$B46,\"\")","v":""},{"$f":"IF(Residuos!$E46='Fondos-Inversionistas'!L$12,Residuos!$B46,\"\")","v":""},{"$f":"_xlfn.XLOOKUP(A200,'Base-datos'!$B$571:$B$580,'Base-datos'!$F$571:$F$580)","v":{"$error":"#N/A"}},{"$f":"_xlfn.XLOOKUP(A200,'Base-datos'!$B$571:$B$580,'Base-datos'!$C$571:$C$580)","v":{"$error":"#N/A"}},{"$f":"_xlfn.XLOOKUP(A200,'Base-datos'!$B$571:$B$580,'Base-datos'!$D$571:$D$580)","v":{"$error":"#N/A"}},null,null,{"$f":"IF(OR(P$182=\"La actividad no cumple con el total de los criterios de No Daño Significativo\",Q$182=\"El sector no cumple con las salvaguardas mínimas\"),\"\",IF(AND('Base-datos'!$B$755=\"Sí\",'Base-datos'!$B$756=\"\",'Base-datos'!$B$757=\"\"),IF(N200=\"La actividad sí contribuye sustancialmente a la sostenibilidad\",SUM(B200:L200),0),IF(AND('Base-datos'!$B$755=\"Sí\",'Base-datos'!$B$756=\"Sí\",'Base-datos'!$B$757=\"\"),IF(AND(N200=\"La actividad sí contribuye sustancialmente a la sostenibilidad\",O200=\"La actividad sí contribuye sustancialmente a la sostenibilidad\"),SUM(B200:L200),0),IF(AND('Base-datos'!$B$755=\"Sí\",'Base-datos'!$B$756=\"Sí\",'Base-datos'!$B$757=\"Sí\"),IF(AND(N200=\"La actividad sí contribuye sustancialmente a la sostenibilidad\",O200=\"La actividad sí contribuye sustancialmente a la sostenibilidad\",M200=\"La actividad sí contribuye sustancialmente a la sostenibilidad\"),SUM(B200:L200),0),IF(AND('Base-datos'!$B$755=\"\",'Base-datos'!$B$756=\"Sí\",'Base-datos'!$B$757=\"\"),IF(O200=\"La actividad sí contribuye sustancialmente a la sostenibilidad\",SUM(B200:L200),0),IF(AND('Base-datos'!$B$755=\"\",'Base-datos'!$B$756=\"\",'Base-datos'!$B$757=\"Sí\"),IF(M200=\"La actividad sí contribuye sustancialmente a la sostenibilidad\",SUM(B200:L200),0),IF(AND('Base-datos'!$B$755=\"\",'Base-datos'!$B$756=\"Sí\",'Base-datos'!$B$757=\"Sí\"),IF(AND(O200=\"La actividad sí contribuye sustancialmente a la sostenibilidad\",M200=\"La actividad sí contribuye sustancialmente a la sostenibilidad\"),SUM(B200:L200),0),IF(AND('Base-datos'!$B$755=\"Sí\",'Base-datos'!$B$756=\"\",'Base-datos'!$B$757=\"Sí\"),IF(AND(N200=\"La actividad sí contribuye sustancialmente a la sostenibilidad\",M200=\"La actividad sí contribuye sustancialmente a la sostenibilidad\"),SUM(B200:L200),0),\"Por definir\"))))))))","v":"Por definir"}]
[{"$f":"Residuos!$C48","v":"Seleccione"},{"$f":"IF(Residuos!$E48='Fondos-Inversionistas'!B$12,Residuos!$B48,\"\")","v":""},{"$f":"IF(Residuos!$E48='Fondos-Inversionistas'!C$12,Residuos!$B48,\"\")","v":""},{"$f":"IF(Residuos!$E48='Fondos-Inversionistas'!D$12,Residuos!$B48,\"\")","v":""},{"$f":"IF(Residuos!$E48='Fondos-Inversionistas'!E$12,Residuos!$B48,\"\")","v":""},{"$f":"IF(Residuos!$E48='Fondos-Inversionistas'!F$12,Residuos!$B48,\"\")","v":""},{"$f":"IF(Residuos!$E48='Fondos-Inversionistas'!G$12,Residuos!$B48,\"\")","v":""},{"$f":"IF(Residuos!$E48='Fondos-Inversionistas'!H$12,Residuos!$B48,\"\")","v":""},{"$f":"IF(Residuos!$E48='Fondos-Inversionistas'!I$12,Residuos!$B48,\"\")","v":""},{"$f":"IF(Residuos!$E48='Fondos-Inversionistas'!J$12,Residuos!$B48,\"\")","v":""},{"$f":"IF(Residuos!$E48='Fondos-Inversionistas'!K$12,Residuos!$B48,\"\")","v":""},{"$f":"IF(Residuos!$E48='Fondos-Inversionistas'!L$12,Residuos!$B48,\"\")","v":""},{"$f":"_xlfn.XLOOKUP(A201,'Base-datos'!$B$571:$B$580,'Base-datos'!$F$571:$F$580)","v":{"$error":"#N/A"}},{"$f":"_xlfn.XLOOKUP(A201,'Base-datos'!$B$571:$B$580,'Base-datos'!$C$571:$C$580)","v":{"$error":"#N/A"}},{"$f":"_xlfn.XLOOKUP(A201,'Base-datos'!$B$571:$B$580,'Base-datos'!$D$571:$D$580)","v":{"$error":"#N/A"}},null,null,{"$f":"IF(OR(P$182=\"La actividad no cumple con el total de los criterios de No Daño Significativo\",Q$182=\"El sector no cumple con las salvaguardas mínimas\"),\"\",IF(AND('Base-datos'!$B$755=\"Sí\",'Base-datos'!$B$756=\"\",'Base-datos'!$B$757=\"\"),IF(N201=\"La actividad sí contribuye sustancialmente a la sostenibilidad\",SUM(B201:L201),0),IF(AND('Base-datos'!$B$755=\"Sí\",'Base-datos'!$B$756=\"Sí\",'Base-datos'!$B$757=\"\"),IF(AND(N201=\"La actividad sí contribuye sustancialmente a la sostenibilidad\",O201=\"La actividad sí contribuye sustancialmente a la sostenibilidad\"),SUM(B201:L201),0),IF(AND('Base-datos'!$B$755=\"Sí\",'Base-datos'!$B$756=\"Sí\",'Base-datos'!$B$757=\"Sí\"),IF(AND(N201=\"La actividad sí contribuye sustancialmente a la sostenibilidad\",O201=\"La actividad sí contribuye sustancialmente a la sostenibilidad\",M201=\"La actividad sí contribuye sustancialmente a la sostenibilidad\"),SUM(B201:L201),0),IF(AND('Base-datos'!$B$755=\"\",'Base-datos'!$B$756=\"Sí\",'Base-datos'!$B$757=\"\"),IF(O201=\"La actividad sí contribuye sustancialmente a la sostenibilidad\",SUM(B201:L201),0),IF(AND('Base-datos'!$B$755=\"\",'Base-datos'!$B$756=\"\",'Base-datos'!$B$757=\"Sí\"),IF(M201=\"La actividad sí contribuye sustancialmente a la sostenibilidad\",SUM(B201:L201),0),IF(AND('Base-datos'!$B$755=\"\",'Base-datos'!$B$756=\"Sí\",'Base-datos'!$B$757=\"Sí\"),IF(AND(O201=\"La actividad sí contribuye sustancialmente a la sostenibilidad\",M201=\"La actividad sí contribuye sustancialmente a la sostenibilidad\"),SUM(B201:L201),0),IF(AND('Base-datos'!$B$755=\"Sí\",'Base-datos'!$B$756=\"\",'Base-datos'!$B$757=\"Sí\"),IF(AND(N201=\"La actividad sí contribuye sustancialmente a la sostenibilidad\",M201=\"La actividad sí contribuye sustancialmente a la sostenibilidad\"),SUM(B201:L201),0),\"Por definir\"))))))))","v":"Por definir"}]
["Género",{"$f":"IF('Género-General'!$E10=B12,'Género-General'!$B10,\"\")","v":""},{"$f":"IF('Género-General'!$E10=C12,'Género-General'!$B10,\"\")","v":""},{"$f":"IF('Género-General'!$E10=D12,'Género-General'!$B10,\"\")","v":""},{"$f":"IF('Género-General'!$E10=E12,'Género-General'!$B10,\"\")","v":""},{"$f":"IF('Género-General'!$E10=F12,'Género-General'!$B10,\"\")","v":""},null,null,null,null,null,null,{"$f":"'Base-datos'!$F$581","v":"No se han contestado todas las preguntas"},"N/A","N/A",{"$f":"IF(COUNTIF(NDS_Género!M7:M38,\"No\")>0,\"La actividad no cumple con el total de los criterios de NDS\",\"La actividad cumple con los criterios de No Daño Significativo\")","v":"La actividad cumple con los criterios de No Daño Significativo"},{"$f":"IF(OR('Salvaguardas mínimas'!$G$10=\"Seleccione\",'Salvaguardas mínimas'!$G$13=\"Seleccione\",'Salvaguardas mínimas'!$G$16=\"Seleccione\",'Salvaguardas mínimas'!$G$7=\"Seleccione\"),\"No se han respondido todas las preguntas\",IF(OR('Salvaguardas mínimas'!$G$10=\"No\",'Salvaguardas mínimas'!$G$13=\"No\",'Salvaguardas mínimas'!$G$16=\"No\",'Salvaguardas mínimas'!$G$7=\"No\"),\"El sector no cumple con las salvaguardas mínimas\",\"La actividad sí cumple con las salvaguardas mínimas\"))","v":"No se han respondido todas las preguntas"},{"$f":"IF(M202=\"Por definir\",\"Por definir\",IF(M202=\"Sí cumple con el índice de igualdad de género\",'Género-General'!B10,0))","v":0}]
[null,null,null,null,null,null,null,null,null,null,null,null,null,null,null,null,null,{"$f":"SUM(R181,R160,R139,R118,R97,R76,R55,R34,R13)","v":0}]

{"sheet":"Empresas","index":55,"n_rows":203,"n_cols":10,"rows_kept":203,"cut":false,"hidden":true,"merged":[[10,9,11,9],[10,7,11,7],[10,0,11,0],[10,6,11,6],[10,5,11,5],[10,8,11,8],[10,4,11,4],[10,1,10,3],[97,8,116,8],[118,8,137,8],[0,3,8,3],[0,1,0,2],[6,1,6,2],[1,1,1,2],[2,1,2,2],[3,1,3,2],[4,1,4,2],[139,8,158,8],[160,8,179,8],[181,8,200,8],[12,7,32,7],[34,7,53,7],[181,7,200,7],[139,7,158,7],[160,7,179,7],[55,7,74,7],[76,7,95,7],[97,7,116,7],[118,7,137,7],[12,8,32,8],[34,8,53,8],[55,8,74,8],[76,8,95,8]]}
["Tipo de institución desde donde se evalua la operación financiera y/o proyecto","Empresas Cotizadas y Grandes Empresas",null,"Esta hoja representa un resumen de las evaluaciones realizadas. Cabe señalar que un proceso de recomendaciones para las cuestiones que no cumplan con contribución sustancial se encuentra en desarrollo. Estos formatos forman parte de la evidencia de reporte que se puede realizar en el contexto de la taxonomía sostenible de México"]
["Fecha de elaboración ",{"$f":"Recursos!B7","v":"00:00:00"}]
["Institución que realiza la evaluación",{"$f":"Recursos!B8","v":0}]
["Nombre del proyecto",{"$f":"Recursos!B9","v":0}]
["Rango de fecha que comprende las operaciones financieras y/o proyectos evaluados",{"$f":"Recursos!B10","v":0}]
[]
["Total de recursos en evaluación sostenible",{"$f":"J203","v":0}]
[]
[]
[]
["1.2 NOMBRE CATEGORÍA","Cantidad de recursos alineados a la sostenibilidad",null,null,"Grado de cumplimiento a la contribución sustancial (Género)","Grado de cumplimiento a la contribución sustancial (mitigación)","Grado de cumplimiento a la contribución sustancial (adaptación)","Grado de cumplimiento a cuestiones de No Daño Significativo ","Grado de cumplimiento con las salvaguardas mínimas","Total recursos que cumple con umbrales"]
[null,"Inversiones en activos fijos (CAPEX)","Gastos operativos (OPEX)","Otro"]
["Agricultura",null,null,null,null,null,null,{"$f":"IF(COUNTIF('Agriculltura-NDS'!G9:G57,\"No\")>0,\"La actividad no cumple con el total de los criterios de No Daño Significativo\",\"La actividad cumple con los criterios de No Daño Significativo\")","v":"La actividad cumple con los criterios de No Daño Significativo"},{"$f":"IF(OR('Salvaguardas mínimas'!$G$10=\"Seleccione\",'Salvaguardas mínimas'!$G$13=\"Seleccione\",'Salvaguardas mínimas'!$G$16=\"Seleccione\",'Salvaguardas mínimas'!$G$7=\"Seleccione\"),\"No se han respondido todas las preguntas\",IF(OR('Salvaguardas mínimas'!$G$10=\"No\",'Salvaguardas mínimas'!$G$13=\"No\",'Salvaguardas mínimas'!$G$16=\"No\",'Salvaguardas mínimas'!$G$7=\"No\"),\"El sector no cumple con las salvaguardas mínimas\",\"La actividad sí cumple con las salvaguardas mínimas\"))","v":"No se han respondido todas las preguntas"},{"$f":"SUM(IF(FREQUENCY(MATCH(A14:A33, A14:A33, 0), MATCH(A14:A33, A14:A33, 0)) > 0, IF(NOT(ISERROR(J14:J33)), J14:J33, 0)))","v":0}]
[{"$f":"Agricultura!$C10","v":"Seleccione"},{"$f":"IF(Agricultura!$E10=Empresas!B$12,Agricultura!$B10,\"\")","v":""},{"$f":"IF(Agricultura!$E10=Empresas!C$12,Agricultura!$B10,\"\")","v":""},{"$f":"IF(Agricultura!$E10=Empresas!D$12,Agricultura!$B10,\"\")","v":""},{"$f":"_xlfn.XLOOKUP(A14,'Base-datos'!$B$457:$B$509,'Base-datos'!$F$457:$F$509)","v":{"$error":"#N/A"}},{"$f":"_xlfn.XLOOKUP(A14,'Base-datos'!$B$457:$B$509,'Base-datos'!$C$457:$C$509)","v":{"$error":"#N/A"}},{"$f":"_xlfn.XLOOKUP(A14,'Base-datos'!$B$457:$B$509,'Base-datos'!$D$457:$D$509)","v":{"$error":"#N/A"}},null,null,{"$f":"IF(OR(H$13=\"La actividad no cumple con el total de los criterios de No Daño Significativo\",I$13=\"El sector no cumple con las salvaguardas mínimas\"),\"\",IF(AND('Base-datos'!$B$715=\"Sí\",'Base-datos'!$B$716=\"\",'Base-datos'!$B$717=\"\"),IF(F14=\"La actividad sí contribuye sustancialmente a la sostenibilidad\",SUM(B14:D14),0),IF(AND('Base-datos'!$B$715=\"Sí\",'Base-datos'!$B$716=\"Sí\",'Base-datos'!$B$717=\"\"),IF(AND(F14=\"La actividad sí contribuye sustancialmente a la sostenibilidad\",G14=\"La actividad sí contribuye sustancialmente a la sostenibilidad\"),SUM(B14:D14),0),IF(AND('Base-datos'!$B$715=\"Sí\",'Base-datos'!$B$716=\"Sí\",'Base-datos'!$B$717=\"Sí\"),IF(AND(F14=\"La actividad sí contribuye sustancialmente a la sostenibilidad\",G14=\"La actividad sí contribuye sustancialmente a la sostenibilidad\",E14=\"La actividad sí contribuye sustancialmente a la sostenibilidad\"),SUM(B14:D14),0),IF(AND('Base-datos'!$B$715=\"\",'Base-datos'!$B$716=\"Sí\",'Base-datos'!$B$717=\"\"),IF(G14=\"La actividad sí contribuye sustancialmente a la sostenibilidad\",SUM(B14:D14),0),IF(AND('Base-datos'!$B$715=\"\",'Base-datos'!$B$716=\"\",'Base-datos'!$B$717=\"Sí\"),IF(E14=\"La actividad sí contribuye sustancialmente a la sostenibilidad\",J15,0),IF(AND('Base-datos'!$B$715=\"\",'Base-datos'!$B$716=\"Sí\",'Base-datos'!$B$717=\"Sí\"),IF(AND(G14=\"La actividad sí contribuye sustancialmente a la sostenibilidad\",E14=\"La actividad sí contribuye sustancialmente a la sostenibilidad\"),SUM(B14:D14),0),IF(AND('Base-datos'!$B$715=\"Sí\",'Base-datos'!$B$716=\"\",'Base-datos'!$B$717=\"Sí\"),IF(AND(F14=\"La actividad sí contribuye sustancialmente a la sostenibilidad\",E14=\"La actividad sí contribuye sustancialmente a la sostenibilidad\"),SUM(B14:D14),0),\"Por definir\"))))))))","v":"Por definir"}]
[{"$f":"Agricultura!$C12","v":"Seleccione"},{"$f":"IF(Agricultura!$E12=Empresas!B$12,Agricultura!$B12,\"\")","v":""},{"$f":"IF(Agricultura!$E12=Empresas!C$12,Agricultura!$B12,\"\")","v":""},{"$f":"IF(Agricultura!$E12=Empresas!D$12,Agricultura!$B12,\"\")","v":""},{"$f":"_xlfn.XLOOKUP(A15,'Base-datos'!$B$457:$B$509,'Base-datos'!$F$457:$F$509)","v":{"$error":"#N/A"}},{"$f":"_xlfn.XLOOKUP(A15,'Base-datos'!$B$457:$B$509,'Base-datos'!$C$457:$C$509)","v":{"$error":"#N/A"}},{"$f":"_xlfn.XLOOKUP(A15,'Base-datos'!$B$457:$B$509,'Base-datos'!$D$457:$D$509)","v":{"$error":"#N/A"}},null,null,{"$f":"IF(OR(H$13=\"La actividad no cumple con el total de los criterios de No Daño Significativo\",I$13=\"El sector no cumple con las salvaguardas mínimas\"),\"\",IF(AND('Base-datos'!$B$715=\"Sí\",'Base-datos'!$B$716=\"\",'Base-datos'!$B$717=\"\"),IF(F15=\"La actividad sí contribuye sustancialmente a la sostenibilidad\",SUM(B15:D15),0),IF(AND('Base-datos'!$B$715=\"Sí\",'Base-datos'!$B$716=\"Sí\",'Base-datos'!$B$717=\"\"),IF(AND(F15=\"La actividad sí contribuye sustancialmente a la sostenibilidad\",G15=\"La actividad sí contribuye sustancialmente a la sostenibilidad\"),SUM(B15:D15),0),IF(AND('Base-datos'!$B$715=\"Sí\",'Base-datos'!$B$716=\"Sí\",'Base-datos'!$B$717=\"Sí\"),IF(AND(F15=\"La actividad sí contribuye sustancialmente a la sostenibilidad\",G15=\"La actividad sí contribuye sustancialmente a la sostenibilidad\",E15=\"La actividad sí contribuye sustancialmente a la sostenibilidad\"),SUM(B15:D15),0),IF(AND('Base-datos'!$B$715=\"\",'Base-datos'!$B$716=\"Sí\",'Base-datos'!$B$717=\"\"),IF(G15=\"La actividad sí contribuye sustancialmente a la sostenibilidad\",SUM(B15:D15),0),IF(AND('Base-datos'!$B$715=\"\",'Base-datos'!$B$716=\"\",'Base-datos'!$B$717=\"Sí\"),IF(E15=\"La actividad sí contribuye sustancialmente a la sostenibilidad\",J16,0),IF(AND('Base-datos'!$B$715=\"\",'Base-datos'!$B$716=\"Sí\",'Base-datos'!$B$717=\"Sí\"),IF(AND(G15=\"La actividad sí contribuye sustancialmente a la sostenibilidad\",E15=\"La actividad sí contribuye sustancialmente a la sostenibilidad\"),SUM(B15:D15),0),IF(AND('Base-datos'!$B$715=\"Sí\",'Base-datos'!$B$716=\"\",'Base-datos'!$B$717=\"Sí\"),IF(AND(F15=\"La actividad sí contribuye sustancialmente a la sostenibilidad\",E15=\"La actividad sí contribuye sustancialmente a la sostenibilidad\"),SUM(B15:D15),0),\"Por definir\"))))))))","v":"Por definir"}]
[{"$f":"Agricultura!$C14","v":"Seleccione"},{"$f":"IF(Agricultura!$E14=Empresas!B$12,Agricultura!$B14,\"\")","v":""},{"$f":"IF(Agricultura!$E14=Empresas!C$12,Agricultura!$B14,\"\")","v":""},{"$f":"IF(Agricultura!$E14=Empresas!D$12,Agricultura!$B14,\"\")","v":""},{"$f":"_xlfn.XLOOKUP(A16,'Base-datos'!$B$457:$B$509,'Base-datos'!$F$457:$F$509)","v":{"$error":"#N/A"}},{"$f":"_xlfn.XLOOKUP(A16,'Base-datos'!$B$457:$B$509,'Base-datos'!$C$457:$C$509)","v":{"$error":"#N/A"}},{"$f":"_xlfn.XLOOKUP(A16,'Base-datos'!$B$457:$B$509,'Base-datos'!$D$457:$D$509)","v":{"$error":"#N/A"}},null,null,{"$f":"IF(OR(H$13=\"La actividad no cumple con el total de los criterios de No Daño Significativo\",I$13=\"El sector no cumple con las salvaguardas mínimas\"),\"\",IF(AND('Base-datos'!$B$715=\"Sí\",'Base-datos'!$B$716=\"\",'Base-datos'!$B$717=\"\"),IF(F16=\"La actividad sí contribuye sustancialmente a la sostenibilidad\",SUM(B16:D16),0),IF(AND('Base-datos'!$B$715=\"Sí\",'Base-datos'!$B$716=\"Sí\",'Base-datos'!$B$717=\"\"),IF(AND(F16=\"La actividad sí contribuye sustancialmente a la sostenibilidad\",G16=\"La actividad sí contribuye sustancialmente a la sostenibilidad\"),SUM(B16:D16),0),IF(AND('Base-datos'!$B$715=\"Sí\",'Base-datos'!$B$716=\"Sí\",'Base-datos'!$B$717=\"Sí\"),IF(AND(F16=\"La actividad sí contribuye sustancialmente a la sostenibilidad\",G16=\"La actividad sí contribuye sustancialmente a la sostenibilidad\",E16=\"La actividad sí contribuye sustancialmente a la sostenibilidad\"),SUM(B16:D16),0),IF(AND('Base-datos'!$B$715=\"\",'Base-datos'!$B$716=\"Sí\",'Base-datos'!$B$717=\"\"),IF(G16=\"La actividad sí contribuye sustancialmente a la sostenibilidad\",SUM(B16:D16),0),IF(AND('Base-datos'!$B$715=\"\",'Base-datos'!$B$716=\"\",'Base-datos'!$B$717=\"Sí\"),IF(E16=\"La actividad sí contribuye sustancialmente a la sostenibilidad\",J17,0),IF(AND('Base-datos'!$B$715=\"\",'Base-datos'!$B$716=\"Sí\",'Base-datos'!$B$717=\"Sí\"),IF(AND(G16=\"La actividad sí contribuye sustancialmente a la sostenibilidad\",E16=\"La actividad sí contribuye sustancialmente a la sostenibilidad\"),SUM(B16:D16),0),IF(AND('Base-datos'!$B$715=\"Sí\",'Base-datos'!$B$716=\"\",'Base-datos'!$B$717=\"Sí\"),IF(AND(F16=\"La actividad sí contribuye sustancialmente a la sostenibilidad\",E16=\"La actividad sí contribuye sustancialmente a la sostenibilidad\"),SUM(B16:D16),0),\"Por definir\"))))))))","v":"Por definir"}]
[{"$f":"Agricultura!$C16","v":"Seleccione"},{"$f":"IF(Agricultura!$E16=Empresas!B$12,Agricultura!$B16,\"\")","v":""},{"$f":"IF(Agricultura!$E16=Empresas!C$12,Agricultura!$B16,\"\")","v":""},{"$f":"IF(Agricultura!$E16=Empresas!D$12,Agricultura!$B16,\"\")","v":""},{"$f":"_xlfn.XLOOKUP(A17,'Base-datos'!$B$457:$B$509,'Base-datos'!$F$457:$F$509)","v":{"$error":"#N/A"}},{"$f":"_xlfn.XLOOKUP(A17,'Base-datos'!$B$457:$B$509,'Base-datos'!$C$457:$C$509)","v":{"$error":"#N/A"}},{"$f":"_xlfn.XLOOKUP(A17,'Base-datos'!$B$457:$B$509,'Base-datos'!$D$457:$D$509)","v":{"$error":"#N/A"}},null,null,{"$f":"IF(OR(H$13=\"La actividad no cumple con el total de los criterios de No Daño Significativo\",I$13=\"El sector no cumple con las salvaguardas mínimas\"),\"\",IF(AND('Base-datos'!$B$715=\"Sí\",'Base-datos'!$B$716=\"\",'Base-datos'!$B$717=\"\"),IF(F17=\"La actividad sí contribuye sustancialmente a la sostenibilidad\",SUM(B17:D17),0),IF(AND('Base-datos'!$B$715=\"Sí\",'Base-datos'!$B$716=\"Sí\",'Base-datos'!$B$717=\"\"),IF(AND(F17=\"La actividad sí contribuye sustancialmente a la sostenibilidad\",G17=\"La actividad sí contribuye sustancialmente a la sostenibilidad\"),SUM(B17:D17),0),IF(AND('Base-datos'!$B$715=\"Sí\",'Base-datos'!$B$716=\"Sí\",'Base-datos'!$B$717=\"Sí\"),IF(AND(F17=\"La actividad sí contribuye sustancialmente a la sostenibilidad\",G17=\"La actividad sí contribuye sustancialmente a la sostenibilidad\",E17=\"La actividad sí contribuye sustancialmente a la sostenibilidad\"),SUM(B17:D17),0),IF(AND('Base-datos'!$B$715=\"\",'Base-datos'!$B$716=\"Sí\",'Base-datos'!$B$717=\"\"),IF(G17=\"La actividad sí contribuye sustancialmente a la sostenibilidad\",SUM(B17:D17),0),IF(AND('Base-datos'!$B$715=\"\",'Base-datos'!$B$716=\"\",'Base-datos'!$B$717=\"Sí\"),IF(E17=\"La actividad sí contribuye sustancialmente a la sostenibilidad\",J18,0),IF(AND('Base-datos'!$B$715=\"\",'Base-datos'!$B$716=\"Sí\",'Base-datos'!$B$717=\"Sí\"),IF(AND(G17=\"La actividad sí contribuye sustancialmente a la sostenibilidad\",E17=\"La actividad sí contribuye sustancialmente a la sostenibilidad\"),SUM(B17:D17),0),IF(AND('Base-datos'!$B$715=\"Sí\",'Base-datos'!$B$716=\"\",'Base-datos'!$B$717=\"Sí\"),IF(AND(F17=\"La actividad sí contribuye sustancialmente a la sostenibilidad\",E17=\"La actividad sí contribuye sustancialmente a la sostenibilidad\"),SUM(B17:D17),0),\"Por definir\"))))))))","v":"Por definir"}]
[{"$f":"Agricultura!$C18","v":"Seleccione"},{"$f":"IF(Agricultura!$E18=Empresas!B$12,Agricultura!$B18,\"\")","v":""},{"$f":"IF(Agricultura!$E18=Empresas!C$12,Agricultura!$B18,\"\")","v":""},{"$f":"IF(Agricultura!$E18=Empresas!D$12,Agricultura!$B18,\"\")","v":""},{"$f":"_xlfn.XLOOKUP(A18,'Base-datos'!$B$457:$B$509,'Base-datos'!$F$457:$F$509)","v":{"$error":"#N/A"}},{"$f":"_xlfn.XLOOKUP(A18,'Base-datos'!$B$457:$B$509,'Base-datos'!$C$457:$C$509)","v":{"$error":"#N/A"}},{"$f":"_xlfn.XLOOKUP(A18,'Base-datos'!$B$457:$B$509,'Base-datos'!$D$457:$D$509)","v":{"$error":"#N/A"}},null,null,{"$f":"IF(OR(H$13=\"La actividad no cumple con el total de los criterios de No Daño Significativo\",I$13=\"El sector no cumple con las salvaguardas mínimas\"),\"\",IF(AND('Base-datos'!$B$715=\"Sí\",'Base-datos'!$B$716=\"\",'Base-datos'!$B$717=\"\"),IF(F18=\"La actividad sí contribuye sustancialmente a la sostenibilidad\",SUM(B18:D18),0),IF(AND('Base-datos'!$B$715=\"Sí\",'Base-datos'!$B$716=\"Sí\",'Base-datos'!$B$717=\"\"),IF(AND(F18=\"La actividad sí contribuye sustancialmente a la sostenibilidad\",G18=\"La actividad sí contribuye sustancialmente a la sostenibilidad\"),SUM(B18:D18),0),IF(AND('Base-datos'!$B$715=\"Sí\",'Base-datos'!$B$716=\"Sí\",'Base-datos'!$B$717=\"Sí\"),IF(AND(F18=\"La actividad sí contribuye sustancialmente a la sostenibilidad\",G18=\"La actividad sí contribuye sustancialmente a la sostenibilidad\",E18=\"La actividad sí contribuye sustancialmente a la sostenibilidad\"),SUM(B18:D18),0),IF(AND('Base-datos'!$B$715=\"\",'Base-datos'!$B$716=\"Sí\",'Base-datos'!$B$717=\"\"),IF(G18=\"La actividad sí contribuye sustancialmente a la sostenibilidad\",SUM(B18:D18),0),IF(AND('Base-datos'!$B$715=\"\",'Base-datos'!$B$716=\"\",'Base-datos'!$B$717=\"Sí\"),IF(E18=\"La actividad sí contribuye sustancialmente a la sostenibilidad\",J19,0),IF(AND('Base-datos'!$B$715=\"\",'Base-datos'!$B$716=\"Sí\",'Base-datos'!$B$717=\"Sí\"),IF(AND(G18=\"La actividad sí contribuye sustancialmente a la sostenibilidad\",E18=\"La actividad sí contribuye sustancialmente a la sostenibilidad\"),SUM(B18:D18),0),IF(AND('Base-datos'!$B$715=\"Sí\",'Base-datos'!$B$716=\"\",'Base-datos'!$B$717=\"Sí\"),IF(AND(F18=\"La actividad sí contribuye sustancialmente a la sostenibilidad\",E18=\"La actividad sí contribuye sustancialmente a la sostenibilidad\"),SUM(B18:D18),0),\"Por definir\"))))))))","v":"Por definir"}]
[{"$f":"Agricultura!$C20","v":"Seleccione"},{"$f":"IF(Agricultura!$E20=Empresas!B$12,Agricultura!$B20,\"\")","v":""},{"$f":"IF(Agricultura!$E20=Empresas!C$12,Agricultura!$B20,\"\")","v":""},{"$f":"IF(Agricultura!$E20=Empresas!D$12,Agricultura!$B20,\"\")","v":""},{"$f":"_xlfn.XLOOKUP(A19,'Base-datos'!$B$457:$B$509,'Base-datos'!$F$457:$F$509)","v":{"$error":"#N/A"}},{"$f":"_xlfn.XLOOKUP(A19,'Base-datos'!$B$457:$B$509,'Base-datos'!$C$457:$C$509)","v":{"$error":"#N/A"}},{"$f":"_xlfn.XLOOKUP(A19,'Base-datos'!$B$457:$B$509,'Base-datos'!$D$457:$D$509)","v":{"$error":"#N/A"}},null,null,{"$f":"IF(OR(H$13=\"La actividad no cumple con el total de los criterios de No Daño Significativo\",I$13=\"El sector no cumple con las salvaguardas mínimas\"),\"\",IF(AND('Base-datos'!$B$715=\"Sí\",'Base-datos'!$B$716=\"\",'Base-datos'!$B$717=\"\"),IF(F19=\"La actividad sí contribuye sustancialmente a la sostenibilidad\",SUM(B19:D19),0),IF(AND('Base-datos'!$B$715=\"Sí\",'Base-datos'!$B$716=\"Sí\",'Base-datos'!$B$717=\"\"),IF(AND(F19=\"La actividad sí contribuye sustancialmente a la sostenibilidad\",G19=\"La actividad sí contribuye sustancialmente a la sostenibilidad\"),SUM(B19:D19),0),IF(AND('Base-datos'!$B$715=\"Sí\",'Base-datos'!$B$716=\"Sí\",'Base-datos'!$B$717=\"Sí\"),IF(AND(F19=\"La actividad sí contribuye sustancialmente a la sostenibilidad\",G19=\"La actividad sí contribuye sustancialmente a la sostenibilidad\",E19=\"La actividad sí contribuye sustancialmente a la sostenibilidad\"),SUM(B19:D19),0),IF(AND('Base-datos'!$B$715=\"\",'Base-datos'!$B$716=\"Sí\",'Base-datos'!$B$717=\"\"),IF(G19=\"La actividad sí contribuye sustancialmente a la sostenibilidad\",SUM(B19:D19),0),IF(AND('Base-datos'!$B$715=\"\",'Base-datos'!$B$716=\"\",'Base-datos'!$B$717=\"Sí\"),IF(E19=\"La actividad sí contribuye sustancialmente a la sostenibilidad\",J20,0),IF(AND('Base-datos'!$B$715=\"\",'Base-datos'!$B$716=\"Sí\",'Base-datos'!$B$717=\"Sí\"),IF(AND(G19=\"La actividad sí contribuye sustancialmente a la sostenibilidad\",E19=\"La actividad sí contribuye sustancialmente a la sostenibilidad\"),SUM(B19:D19),0),IF(AND('Base-datos'!$B$715=\"Sí\",'Base-datos'!$B$716=\"\",'Base-datos'!$B$717=\"Sí\"),IF(AND(F19=\"La actividad sí contribuye sustancialmente a la sostenibilidad\",E19=\"La actividad sí contribuye sustancialmente a la sostenibilidad\"),SUM(B19:D19),0),\"Por definir\"))))))))","v":"Por definir"}]
[{"$f":"Agricultura!$C22","v":"Seleccione"},{"$f":"IF(Agricultura!$E22=Empresas!B$12,Agricultura!$B22,\"\")","v":""},{"$f":"IF(Agricultura!$E22=Empresas!C$12,Agricultura!$B22,\"\")","v":""},{"$f":"IF(Agricultura!$E22=Empresas!D$12,Agricultura!$B22,\"\")","v":""},{"$f":"_xlfn.XLOOKUP(A20,'Base-datos'!$B$457:$B$509,'Base-datos'!$F$457:$F$509)","v":{"$error":"#N/A"}},{"$f":"_xlfn.XLOOKUP(A20,'Base-datos'!$B$457:$B$509,'Base-datos'!$C$457:$C$509)","v":{"$error":"#N/A"}},{"$f":"_xlfn.XLOOKUP(A20,'Base-datos'!$B$457:$B$509,'Base-datos'!$D$457:$D$509)","v":{"$error":"#N/A"}},null,null,{"$f":"IF(OR(H$13=\"La actividad no cumple con el total de los criterios de No Daño Significativo\",I$13=\"El sector no cumple con las salvaguardas mínimas\"),\"\",IF(AND('Base-datos'!$B$715=\"Sí\",'Base-datos'!$B$716=\"\",'Base-datos'!$B$717=\"\"),IF(F20=\"La actividad sí contribuye sustancialmente a la sostenibilidad\",SUM(B20:D20),0),IF(AND('Base-datos'!$B$715=\"Sí\",'Base-datos'!$B$716=\"Sí\",'Base-datos'!$B$717=\"\"),IF(AND(F20=\"La actividad sí contribuye sustancialmente a la sostenibilidad\",G20=\"La actividad sí contribuye sustancialmente a la sostenibilidad\"),SUM(B20:D20),0),IF(AND('Base-datos'!$B$715=\"Sí\",'Base-datos'!$B$716=\"Sí\",'Base-datos'!$B$717=\"Sí\"),IF(AND(F20=\"La actividad sí contribuye sustancialmente a la sostenibilidad\",G20=\"La actividad sí contribuye sustancialmente a la sostenibilidad\",E20=\"La actividad sí contribuye sustancialmente a la sostenibilidad\"),SUM(B20:D20),0),IF(AND('Base-datos'!$B$715=\"\",'Base-datos'!$B$716=\"Sí\",'Base-datos'!$B$717=\"\"),IF(G20=\"La actividad sí contribuye sustancialmente a la sostenibilidad\",SUM(B20:D20),0),IF(AND('Base-datos'!$B$715=\"\",'Base-datos'!$B$716=\"\",'Base-datos'!$B$717=\"Sí\"),IF(E20=\"La actividad sí contribuye sustancialmente a la sostenibilidad\",J21,0),IF(AND('Base-datos'!$B$715=\"\",'Base-datos'!$B$716=\"Sí\",'Base-datos'!$B$717=\"Sí\"),IF(AND(G20=\"La actividad sí contribuye sustancialmente a la sostenibilidad\",E20=\"La actividad sí contribuye sustancialmente a la sostenibilidad\"),SUM(B20:D20),0),IF(AND('Base-datos'!$B$715=\"Sí\",'Base-datos'!$B$716=\"\",'Base-datos'!$B$717=\"Sí\"),IF(AND(F20=\"La actividad sí contribuye sustancialmente a la sostenibilidad\",E20=\"La actividad sí contribuye sustancialmente a la sostenibilidad\"),SUM(B20:D20),0),\"Por definir\"))))))))","v":"Por definir"}]
[{"$f":"Agricultura!$C24","v":"Seleccione"},{"$f":"IF(Agricultura!$E24=Empresas!B$12,Agricultura!$B24,\"\")","v":""},{"$f":"IF(Agricultura!$E24=Empresas!C$12,Agricultura!$B24,\"\")","v":""},{"$f":"IF(Agricultura!$E24=Empresas!D$12,Agricultura!$B24,\"\")","v":""},{"$f":"_xlfn.XLOOKUP(A21,'Base-datos'!$B$457:$B$509,'Base-datos'!$F$457:$F$509)","v":{"$error":"#N/A"}},{"$f":"_xlfn.XLOOKUP(A21,'Base-datos'!$B$457:$B$509,'Base-datos'!$C$457:$C$509)","v":{"$error":"#N/A"}},{"$f":"_xlfn.XLOOKUP(A21,'Base-datos'!$B$457:$B$509,'Base-datos'!$D$457:$D$509)","v":{"$error":"#N/A"}},null,null,{"$f":"IF(OR(H$13=\"La actividad no cumple con el total de los criterios de No Daño Significativo\",I$13=\"El sector no cumple con las salvaguardas mínimas\"),\"\",IF(AND('Base-datos'!$B$715=\"Sí\",'Base-datos'!$B$716=\"\",'Base-datos'!$B$717=\"\"),IF(F21=\"La actividad sí contribuye sustancialmente a la sostenibilidad\",SUM(B21:D21),0),IF(AND('Base-datos'!$B$715=\"Sí\",'Base-datos'!$B$716=\"Sí\",'Base-datos'!$B$717=\"\"),IF(AND(F21=\"La actividad sí contribuye sustancialmente a la sostenibilidad\",G21=\"La actividad sí contribuye sustancialmente a la sostenibilidad\"),SUM(B21:D21),0),IF(AND('Base-datos'!$B$715=\"Sí\",'Base-datos'!$B$716=\"Sí\",'Base-datos'!$B$717=\"Sí\"),IF(AND(F21=\"La actividad sí contribuye sustancialmente a la sostenibilidad\",G21=\"La actividad sí contribuye sustancialmente a la sostenibilidad\",E21=\"La actividad sí contribuye sustancialmente a la sostenibilidad\"),SUM(B21:D21),0),IF(AND('Base-datos'!$B$715=\"\",'Base-datos'!$B$716=\"Sí\",'Base-datos'!$B$717=\"\"),IF(G21=\"La actividad sí contribuye sustancialmente a la sostenibilidad\",SUM(B21:D21),0),IF(AND('Base-datos'!$B$715=\"\",'Base-datos'!$B$716=\"\",'Base-datos'!$B$717=\"Sí\"),IF(E21=\"La actividad sí contribuye sustancialmente a la sostenibilidad\",J22,0),IF(AND('Base-datos'!$B$715=\"\",'Base-datos'!$B$716=\"Sí\",'Base-datos'!$B$717=\"Sí\"),IF(AND(G21=\"La actividad sí contribuye sustancialmente a la sostenibilidad\",E21=\"La actividad sí contribuye sustancialmente a la sostenibilidad\"),SUM(B21:D21),0),IF(AND('Base-datos'!$B$715=\"Sí\",'Base-datos'!$B$716=\"\",'Base-datos'!$B$717=\"Sí\"),IF(AND(F21=\"La actividad sí contribuye sustancialmente a la sostenibilidad\",E21=\"La actividad sí contribuye sustancialmente a la sostenibilidad\"),SUM(B21:D21),0),\"Por definir\"))))))))","v":"Por definir"}]
[{"$f":"Agricultura!$C26","v":"Seleccione"},{"$f":"IF(Agricultura!$E26=Empresas!B$12,Agricultura!$B26,\"\")","v":""},{"$f":"IF(Agricultura!$E26=Empresas!C$12,Agricultura!$B26,\"\")","v":""},{"$f":"IF(Agricultura!$E26=Empresas!D$12,Agricultura!$B26,\"\")","v":""},{"$f":"_xlfn.XLOOKUP(A22,'Base-datos'!$B$457:$B$509,'Base-datos'!$F$457:$F$509)","v":{"$error":"#N/A"}},{"$f":"_xlfn.XLOOKUP(A22,'Base-datos'!$B$457:$B$509,'Base-datos'!$C$457:$C$509)","v":{"$error":"#N/A"}},{"$f":"_xlfn.XLOOKUP(A22,'Base-datos'!$B$457:$B$509,'Base-datos'!$D$457:$D$509)","v":{"$error":"#N/A"}},null,null,{"$f":"IF(OR(H$13=\"La actividad no cumple con el total de los criterios de No Daño Significativo\",I$13=\"El sector no cumple con las salvaguardas mínimas\"),\"\",IF(AND('Base-datos'!$B$715=\"Sí\",'Base-datos'!$B$716=\"\",'Base-datos'!$B$717=\"\"),IF(F22=\"La actividad sí contribuye sustancialmente a la sostenibilidad\",SUM(B22:D22),0),IF(AND('Base-datos'!$B$715=\"Sí\",'Base-datos'!$B$716=\"Sí\",'Base-datos'!$B$717=\"\"),IF(AND(F22=\"La actividad sí contribuye sustancialmente a la sostenibilidad\",G22=\"La actividad sí contribuye sustancialmente a la sostenibilidad\"),SUM(B22:D22),0),IF(AND('Base-datos'!$B$715=\"Sí\",'Base-datos'!$B$716=\"Sí\",'Base-datos'!$B$717=\"Sí\"),IF(AND(F22=\"La actividad sí contribuye sustancialmente a la sostenibilidad\",G22=\"La actividad sí contribuye sustancialmente a la sostenibilidad\",E22=\"La actividad sí contribuye sustancialmente a la sostenibilidad\"),SUM(B22:D22),0),IF(AND('Base-datos'!$B$715=\"\",'Base-datos'!$B$716=\"Sí\",'Base-datos'!$B$717=\"\"),IF(G22=\"La actividad sí contribuye sustancialmente a la sostenibilidad\",SUM(B22:D22),0),IF(AND('Base-datos'!$B$715=\"\",'Base-datos'!$B$716=\"\",'Base-datos'!$B$717=\"Sí\"),IF(E22=\"La actividad sí contribuye sustancialmente a la sostenibilidad\",J23,0),IF(AND('Base-datos'!$B$715=\"\",'Base-datos'!$B$716=\"Sí\",'Base-datos'!$B$717=\"Sí\"),IF(AND(G22=\"La actividad sí contribuye sustancialmente a la sostenibilidad\",E22=\"La actividad sí contribuye sustancialmente a la sostenibilidad\"),SUM(B22:D22),0),IF(AND('Base-datos'!$B$715=\"Sí\",'Base-datos'!$B$716=\"\",'Base-datos'!$B$717=\"Sí\"),IF(AND(F22=\"La actividad sí contribuye sustancialmente a la sostenibilidad\",E22=\"La actividad sí contribuye sustancialmente a la sostenibilidad\"),SUM(B22:D22),0),\"Por definir\"))))))))","v":"Por definir"}]
[{"$f":"Agricultura!$C28","v":"Seleccione"},{"$f":"IF(Agricultura!$E28=Empresas!B$12,Agricultura!$B28,\"\")","v":""},{"$f":"IF(Agricultura!$E28=Empresas!C$12,Agricultura!$B28,\"\")","v":""},{"$f":"IF(Agricultura!$E28=Empresas!D$12,Agricultura!$B28,\"\")","v":""},{"$f":"_xlfn.XLOOKUP(A23,'Base-datos'!$B$457:$B$509,'Base-datos'!$F$457:$F$509)","v":{"$error":"#N/A"}},{"$f":"_xlfn.XLOOKUP(A23,'Base-datos'!$B$457:$B$509,'Base-datos'!$C$457:$C$509)","v":{"$error":"#N/A"}},{"$f":"_xlfn.XLOOKUP(A23,'Base-datos'!$B$457:$B$509,'Base-datos'!$D$457:$D$509)","v":{"$error":"#N/A"}},null,null,{"$f":"IF(OR(H$13=\"La actividad no cumple con el total de los criterios de No Daño Significativo\",I$13=\"El sector no cumple con las salvaguardas mínimas\"),\"\",IF(AND('Base-datos'!$B$715=\"Sí\",'Base-datos'!$B$716=\"\",'Base-datos'!$B$717=\"\"),IF(F23=\"La actividad sí contribuye sustancialmente a la sostenibilidad\",SUM(B23:D23),0),IF(AND('Base-datos'!$B$715=\"Sí\",'Base-datos'!$B$716=\"Sí\",'Base-datos'!$B$717=\"\"),IF(AND(F23=\"La actividad sí contribuye sustancialmente a la sostenibilidad\",G23=\"La actividad sí contribuye sustancialmente a la sostenibilidad\"),SUM(B23:D23),0),IF(AND('Base-datos'!$B$715=\"Sí\",'Base-datos'!$B$716=\"Sí\",'Base-datos'!$B$717=\"Sí\"),IF(AND(F23=\"La actividad sí contribuye sustancialmente a la sostenibilidad\",G23=\"La actividad sí contribuye sustancialmente a la sostenibilidad\",E23=\"La actividad sí contribuye sustancialmente a la sostenibilidad\"),SUM(B23:D23),0),IF(AND('Base-datos'!$B$715=\"\",'Base-datos'!$B$716=\"Sí\",'Base-datos'!$B$717=\"\"),IF(G23=\"La actividad sí contribuye sustancialmente a la sostenibilidad\",SUM(B23:D23),0),IF(AND('Base-datos'!$B$715=\"\",'Base-datos'!$B$716=\"\",'Base-datos'!$B$717=\"Sí\"),IF(E23=\"La actividad sí contribuye sustancialmente a la sostenibilidad\",J24,0),IF(AND('Base-datos'!$B$715=\"\",'Base-datos'!$B$716=\"Sí\",'Base-datos'!$B$717=\"Sí\"),IF(AND(G23=\"La actividad sí contribuye sustancialmente a la sostenibilidad\",E23=\"La actividad sí contribuye sustancialmente a la sostenibilidad\"),SUM(B23:D23),0),IF(AND('Base-datos'!$B$715=\"Sí\",'Base-datos'!$B$716=\"\",'Base-datos'!$B$717=\"Sí\"),IF(AND(F23=\"La actividad sí contribuye sustancialmente a la sostenibilidad\",E23=\"La actividad sí contribuye sustancialmente a la sostenibilidad\"),SUM(B23:D23),0),\"Por definir\"))))))))","v":"Por definir"}]
[{"$f":"Agricultura!$C30","v":"Seleccione"},{"$f":"IF(Agricultura!$E30=Empresas!B$12,Agricultura!$B30,\"\")","v":""},{"$f":"IF(Agricultura!$E30=Empresas!C$12,Agricultura!$B30,\"\")","v":""},{"$f":"IF(Agricultura!$E30=Empresas!D$12,Agricultura!$B30,\"\")","v":""},{"$f":"_xlfn.XLOOKUP(A24,'Base-datos'!$B$457:$B$509,'Base-datos'!$F$457:$F$509)","v":{"$error":"#N/A"}},{"$f":"_xlfn.XLOOKUP(A24,'Base-datos'!$B$457:$B$509,'Base-datos'!$C$457:$C$509)","v":{"$error":"#N/A"}},{"$f":"_xlfn.XLOOKUP(A24,'Base-datos'!$B$457:$B$509,'Base-datos'!$D$457:$D$509)","v":{"$error":"#N/A"}},null,null,{"$f":"IF(OR(H$13=\"La actividad no cumple con el total de los criterios de No Daño Significativo\",I$13=\"El sector no cumple con las salvaguardas mínimas\"),\"\",IF(AND('Base-datos'!$B$715=\"Sí\",'Base-datos'!$B$716=\"\",'Base-datos'!$B$717=\"\"),IF(F24=\"La actividad sí contribuye sustancialmente a la sostenibilidad\",SUM(B24:D24),0),IF(AND('Base-datos'!$B$715=\"Sí\",'Base-datos'!$B$716=\"Sí\",'Base-datos'!$B$717=\"\"),IF(AND(F24=\"La actividad sí contribuye sustancialmente a la sostenibilidad\",G24=\"La actividad sí contribuye sustancialmente a la sostenibilidad\"),SUM(B24:D24),0),IF(AND('Base-datos'!$B$715=\"Sí\",'Base-datos'!$B$716=\"Sí\",'Base-datos'!$B$717=\"Sí\"),IF(AND(F24=\"La actividad sí contribuye sustancialmente a la sostenibilidad\",G24=\"La actividad sí contribuye sustancialmente a la sostenibilidad\",E24=\"La actividad sí contribuye sustancialmente a la sostenibilidad\"),SUM(B24:D24),0),IF(AND('Base-datos'!$B$715=\"\",'Base-datos'!$B$716=\"Sí\",'Base-datos'!$B$717=\"\"),IF(G24=\"La actividad sí contribuye sustancialmente a la sostenibilidad\",SUM(B24:D24),0),IF(AND('Base-datos'!$B$715=\"\",'Base-datos'!$B$716=\"\",'Base-datos'!$B$717=\"Sí\"),IF(E24=\"La actividad sí contribuye sustancialmente a la sostenibilidad\",J25,0),IF(AND('Base-datos'!$B$715=\"\",'Base-datos'!$B$716=\"Sí\",'Base-datos'!$B$717=\"Sí\"),IF(AND(G24=\"La actividad sí contribuye sustancialmente a la sostenibilidad\",E24=\"La actividad sí contribuye sustancialmente a la sostenibilidad\"),SUM(B24:D24),0),IF(AND('Base-datos'!$B$715=\"Sí\",'Base-datos'!$B$716=\"\",'Base-datos'!$B$717=\"Sí\"),IF(AND(F24=\"La actividad sí contribuye sustancialmente a la sostenibilidad\",E24=\"La actividad sí contribuye sustancialmente a la sostenibilidad\"),SUM(B24:D24),0),\"Por definir\"))))))))","v":"Por definir"}]
[{"$f":"Agricultura!$C32","v":"Seleccione"},{"$f":"IF(Agricultura!$E32=Empresas!B$12,Agricultura!$B32,\"\")","v":""},{"$f":"IF(Agricultura!$E32=Empresas!C$12,Agricultura!$B32,\"\")","v":""},{"$f":"IF(Agricultura!$E32=Empresas!D$12,Agricultura!$B32,\"\")","v":""},{"$f":"_xlfn.XLOOKUP(A25,'Base-datos'!$B$457:$B$509,'Base-datos'!$F$457:$F$509)","v":{"$error":"#N/A"}},{"$f":"_xlfn.XLOOKUP(A25,'Base-datos'!$B$457:$B$509,'Base-datos'!$C$457:$C$509)","v":{"$error":"#N/A"}},{"$f":"_xlfn.XLOOKUP(A25,'Base-datos'!$B$457:$B$509,'Base-datos'!$D$457:$D$509)","v":{"$error":"#N/A"}},null,null,{"$f":"IF(OR(H$13=\"La actividad no cumple con el total de los criterios de No Daño Significativo\",I$13=\"El sector no cumple con las salvaguardas mínimas\"),\"\",IF(AND('Base-datos'!$B$715=\"Sí\",'Base-datos'!$B$716=\"\",'Base-datos'!$B$717=\"\"),IF(F25=\"La actividad sí contribuye sustancialmente a la sostenibilidad\",SUM(B25:D25),0),IF(AND('Base-datos'!$B$715=\"Sí\",'Base-datos'!$B$716=\"Sí\",'Base-datos'!$B$717=\"\"),IF(AND(F25=\"La actividad sí contribuye sustancialmente a la sostenibilidad\",G25=\"La actividad sí contribuye sustancialmente a la sostenibilidad\"),SUM(B25:D25),0),IF(AND('Base-datos'!$B$715=\"Sí\",'Base-datos'!$B$716=\"Sí\",'Base-datos'!$B$717=\"Sí\"),IF(AND(F25=\"La actividad sí contribuye sustancialmente a la sostenibilidad\",G25=\"La actividad sí contribuye sustancialmente a la sostenibilidad\",E25=\"La actividad sí contribuye sustancialmente a la sostenibilidad\"),SUM(B25:D25),0),IF(AND('Base-datos'!$B$715=\"\",'Base-datos'!$B$716=\"Sí\",'Base-datos'!$B$717=\"\"),IF(G25=\"La actividad sí contribuye sustancialmente a la sostenibilidad\",SUM(B25:D25),0),IF(AND('Base-datos'!$B$715=\"\",'Base-datos'!$B$716=\"\",'Base-datos'!$B$717=\"Sí\"),IF(E25=\"La actividad sí contribuye sustancialmente a la sostenibilidad\",J26,0),IF(AND('Base-datos'!$B$715=\"\",'Base-datos'!$B$716=\"Sí\",'Base-datos'!$B$717=\"Sí\"),IF(AND(G25=\"La actividad sí contribuye sustancialmente a la sostenibilidad\",E25=\"La actividad sí contribuye sustancialmente a la sostenibilidad\"),SUM(B25:D25),0),IF(AND('Base-datos'!$B$715=\"Sí\",'Base-datos'!$B$716=\"\",'Base-datos'!$B$717=\"Sí\"),IF(AND(F25=\"La actividad sí contribuye sustancialmente a la sostenibilidad\",E25=\"La actividad sí contribuye sustancialmente a la sostenibilidad\"),SUM(B25:D25),0),\"Por definir\"))))))))","v":"Por definir"}]
[{"$f":"Agricultura!$C34","v":"Seleccione"},{"$f":"IF(Agricultura!$E34=Empresas!B$12,Agricultura!$B34,\"\")","v":""},{"$f":"IF(Agricultura!$E34=Empresas!C$12,Agricultura!$B34,\"\")","v":""},{"$f":"IF(Agricultura!$E34=Empresas!D$12,Agricultura!$B34,\"\")","v":""},{"$f":"_xlfn.XLOOKUP(A26,'Base-datos'!$B$457:$B$509,'Base-datos'!$F$457:$F$509)","v":{"$error":"#N/A"}},{"$f":"_xlfn.XLOOKUP(A26,'Base-datos'!$B$457:$B$509,'Base-datos'!$C$457:$C$509)","v":{"$error":"#N/A"}},{"$f":"_xlfn.XLOOKUP(A26,'Base-datos'!$B$457:$B$509,'Base-datos'!$D$457:$D$509)","v":{"$error":"#N/A"}},null,null,{"$f":"IF(OR(H$13=\"La actividad no cumple con el total de los criterios de No Daño Significativo\",I$13=\"El sector no cumple con las salvaguardas mínimas\"),\"\",IF(AND('Base-datos'!$B$715=\"Sí\",'Base-datos'!$B$716=\"\",'Base-datos'!$B$717=\"\"),IF(F26=\"La actividad sí contribuye sustancialmente a la sostenibilidad\",SUM(B26:D26),0),IF(AND('Base-datos'!$B$715=\"Sí\",'Base-datos'!$B$716=\"Sí\",'Base-datos'!$B$717=\"\"),IF(AND(F26=\"La actividad sí contribuye sustancialmente a la sostenibilidad\",G26=\"La actividad sí contribuye sustancialmente a la sostenibilidad\"),SUM(B26:D26),0),IF(AND('Base-datos'!$B$715=\"Sí\",'Base-datos'!$B$716=\"Sí\",'Base-datos'!$B$717=\"Sí\"),IF(AND(F26=\"La actividad sí contribuye sustancialmente a la sostenibilidad\",G26=\"La actividad sí contribuye sustancialmente a la sostenibilidad\",E26=\"La actividad sí contribuye sustancialmente a la sostenibilidad\"),SUM(B26:D26),0),IF(AND('Base-datos'!$B$715=\"\",'Base-datos'!$B$716=\"Sí\",'Base-datos'!$B$717=\"\"),IF(G26=\"La actividad sí contribuye sustancialmente a la sostenibilidad\",SUM(B26:D26),0),IF(AND('Base-datos'!$B$715=\"\",'Base-datos'!$B$716=\"\",'Base-datos'!$B$717=\"Sí\"),IF(E26=\"La actividad sí contribuye sustancialmente a la sostenibilidad\",J27,0),IF(AND('Base-datos'!$B$715=\"\",'Base-datos'!$B$716=\"Sí\",'Base-datos'!$B$717=\"Sí\"),IF(AND(G26=\"La actividad sí contribuye sustancialmente a la sostenibilidad\",E26=\"La actividad sí contribuye sustancialmente a la sostenibilidad\"),SUM(B26:D26),0),IF(AND('Base-datos'!$B$715=\"Sí\",'Base-datos'!$B$716=\"\",'Base-datos'!$B$717=\"Sí\"),IF(AND(F26=\"La actividad sí contribuye sustancialmente a la sostenibilidad\",E26=\"La actividad sí contribuye sustancialmente a la sostenibilidad\"),SUM(B26:D26),0),\"Por definir\"))))))))","v":"Por definir"}]
[{"$f":"Agricultura!$C36","v":"Seleccione"},{"$f":"IF(Agricultura!$E36=Empresas!B$12,Agricultura!$B36,\"\")","v":""},{"$f":"IF(Agricultura!$E36=Empresas!C$12,Agricultura!$B36,\"\")","v":""},{"$f":"IF(Agricultura!$E36=Empresas!D$12,Agricultura!$B36,\"\")","v":""},{"$f":"_xlfn.XLOOKUP(A27,'Base-datos'!$B$457:$B$509,'Base-datos'!$F$457:$F$509)","v":{"$error":"#N/A"}},{"$f":"_xlfn.XLOOKUP(A27,'Base-datos'!$B$457:$B$509,'Base-datos'!$C$457:$C$509)","v":{"$error":"#N/A"}},{"$f":"_xlfn.XLOOKUP(A27,'Base-datos'!$B$457:$B$509,'Base-datos'!$D$457:$D$509)","v":{"$error":"#N/A"}},null,null,{"$f":"IF(OR(H$13=\"La actividad no cumple con el total de los criterios de No Daño Significativo\",I$13=\"El sector no cumple con las salvaguardas mínimas\"),\"\",IF(AND('Base-datos'!$B$715=\"Sí\",'Base-datos'!$B$716=\"\",'Base-datos'!$B$717=\"\"),IF(F27=\"La actividad sí contribuye sustancialmente a la sostenibilidad\",SUM(B27:D27),0),IF(AND('Base-datos'!$B$715=\"Sí\",'Base-datos'!$B$716=\"Sí\",'Base-datos'!$B$717=\"\"),IF(AND(F27=\"La actividad sí contribuye sustancialmente a la sostenibilidad\",G27=\"La actividad sí contribuye sustancialmente a la sostenibilidad\"),SUM(B27:D27),0),IF(AND('Base-datos'!$B$715=\"Sí\",'Base-datos'!$B$716=\"Sí\",'Base-datos'!$B$717=\"Sí\"),IF(AND(F27=\"La actividad sí contribuye sustancialmente a la sostenibilidad\",G27=\"La actividad sí contribuye sustancialmente a la sostenibilidad\",E27=\"La actividad sí contribuye sustancialmente a la sostenibilidad\"),SUM(B27:D27),0),IF(AND('Base-datos'!$B$715=\"\",'Base-datos'!$B$716=\"Sí\",'Base-datos'!$B$717=\"\"),IF(G27=\"La actividad sí contribuye sustancialmente a la sostenibilidad\",SUM(B27:D27),0),IF(AND('Base-datos'!$B$715=\"\",'Base-datos'!$B$716=\"\",'Base-datos'!$B$717=\"Sí\"),IF(E27=\"La actividad sí contribuye sustancialmente a la sostenibilidad\",J28,0),IF(AND('Base-datos'!$B$715=\"\",'Base-datos'!$B$716=\"Sí\",'Base-datos'!$B$717=\"Sí\"),IF(AND(G27=\"La actividad sí contribuye sustancialmente a la sostenibilidad\",E27=\"La actividad sí contribuye sustancialmente a la sostenibilidad\"),SUM(B27:D27),0),IF(AND('Base-datos'!$B$715=\"Sí\",'Base-datos'!$B$716=\"\",'Base-datos'!$B$717=\"Sí\"),IF(AND(F27=\"La actividad sí contribuye sustancialmente a la sostenibilidad\",E27=\"La actividad sí contribuye sustancialmente a la sostenibilidad\"),SUM(B27:D27),0),\"Por definir\"))))))))","v":"Por definir"}]
[{"$f":"Agricultura!$C38","v":"Seleccione"},{"$f":"IF(Agricultura!$E38=Empresas!B$12,Agricultura!$B38,\"\")","v":""},{"$f":"IF(Agricultura!$E38=Empresas!C$12,Agricultura!$B38,\"\")","v":""},{"$f":"IF(Agricultura!$E38=Empresas!D$12,Agricultura!$B38,\"\")","v":""},{"$f":"_xlfn.XLOOKUP(A28,'Base-datos'!$B$457:$B$509,'Base-datos'!$F$457:$F$509)","v":{"$error":"#N/A"}},{"$f":"_xlfn.XLOOKUP(A28,'Base-datos'!$B$457:$B$509,'Base-datos'!$C$457:$C$509)","v":{"$error":"#N/A"}},{"$f":"_xlfn.XLOOKUP(A28,'Base-datos'!$B$457:$B$509,'Base-datos'!$D$457:$D$509)","v":{"$error":"#N/A"}},null,null,{"$f":"IF(OR(H$13=\"La actividad no cumple con el total de los criterios de No Daño Significativo\",I$13=\"El sector no cumple con las salvaguardas mínimas\"),\"\",IF(AND('Base-datos'!$B$715=\"Sí\",'Base-datos'!$B$716=\"\",'Base-datos'!$B$717=\"\"),IF(F28=\"La actividad sí contribuye sustancialmente a la sostenibilidad\",SUM(B28:D28),0),IF(AND('Base-datos'!$B$715=\"Sí\",'Base-datos'!$B$716=\"Sí\",'Base-datos'!$B$717=\"\"),IF(AND(F28=\"La actividad sí contribuye sustancialmente a la sostenibilidad\",G28=\"La actividad sí contribuye sustancialmente a la sostenibilidad\"),SUM(B28:D28),0),IF(AND('Base-datos'!$B$715=\"Sí\",'Base-datos'!$B$716=\"Sí\",'Base-datos'!$B$717=\"Sí\"),IF(AND(F28=\"La actividad sí contribuye sustancialmente a la sostenibilidad\",G28=\"La actividad sí contribuye sustancialmente a la sostenibilidad\",E28=\"La actividad sí contribuye sustancialmente a la sostenibilidad\"),SUM(B28:D28),0),IF(AND('Base-datos'!$B$715=\"\",'Base-datos'!$B$716=\"Sí\",'Base-datos'!$B$717=\"\"),IF(G28=\"La actividad sí contribuye sustancialmente a la sostenibilidad\",SUM(B28:D28),0),IF(AND('Base-datos'!$B$715=\"\",'Base-datos'!$B$716=\"\",'Base-datos'!$B$717=\"Sí\"),IF(E28=\"La actividad sí contribuye sustancialmente a la sostenibilidad\",J29,0),IF(AND('Base-datos'!$B$715=\"\",'Base-datos'!$B$716=\"Sí\",'Base-datos'!$B$717=\"Sí\"),IF(AND(G28=\"La actividad sí contribuye sustancialmente a la sostenibilidad\",E28=\"La actividad sí contribuye sustancialmente a la sostenibilidad\"),SUM(B28:D28),0),IF(AND('Base-datos'!$B$715=\"Sí\",'Base-datos'!$B$716=\"\",'Base-datos'!$B$717=\"Sí\"),IF(AND(F28=\"La actividad sí contribuye sustancialmente a la sostenibilidad\",E28=\"La actividad sí contribuye sustancialmente a la sostenibilidad\"),SUM(B28:D28),0),\"Por definir\"))))))))","v":"Por definir"}]
[{"$f":"Agricultura!$C40","v":"Seleccione"},{"$f":"IF(Agricultura!$E40=Empresas!B$12,Agricultura!$B40,\"\")","v":""},{"$f":"IF(Agricultura!$E40=Empresas!C$12,Agricultura!$B40,\"\")","v":""},{"$f":"IF(Agricultura!$E40=Empresas!D$12,Agricultura!$B40,\"\")","v":""},{"$f":"_xlfn.XLOOKUP(A29,'Base-datos'!$B$457:$B$509,'Base-datos'!$F$457:$F$509)","v":{"$error":"#N/A"}},{"$f":"_xlfn.XLOOKUP(A29,'Base-datos'!$B$457:$B$509,'Base-datos'!$C$457:$C$509)","v":{"$error":"#N/A"}},{"$f":"_xlfn.XLOOKUP(A29,'Base-datos'!$B$457:$B$509,'Base-datos'!$D$457:$D$509)","v":{"$error":"#N/A"}},null,null,{"$f":"IF(OR(H$13=\"La actividad no cumple con el total de los criterios de No Daño Significativo\",I$13=\"El sector no cumple con las salvaguardas mínimas\"),\"\",IF(AND('Base-datos'!$B$715=\"Sí\",'Base-datos'!$B$716=\"\",'Base-datos'!$B$717=\"\"),IF(F29=\"La actividad sí contribuye sustancialmente a la sostenibilidad\",SUM(B29:D29),0),IF(AND('Base-datos'!$B$715=\"Sí\",'Base-datos'!$B$716=\"Sí\",'Base-datos'!$B$717=\"\"),IF(AND(F29=\"La actividad sí contribuye sustancialmente a la sostenibilidad\",G29=\"La actividad sí contribuye sustancialmente a la sostenibilidad\"),SUM(B29:D29),0),IF(AND('Base-datos'!$B$715=\"Sí\",'Base-datos'!$B$716=\"Sí\",'Base-datos'!$B$717=\"Sí\"),IF(AND(F29=\"La actividad sí contribuye sustancialmente a la sostenibilidad\",G29=\"La actividad sí contribuye sustancialmente a la sostenibilidad\",E29=\"La actividad sí contribuye sustancialmente a la sostenibilidad\"),SUM(B29:D29),0),IF(AND('Base-datos'!$B$715=\"\",'Base-datos'!$B$716=\"Sí\",'Base-datos'!$B$717=\"\"),IF(G29=\"La actividad sí contribuye sustancialmente a la sostenibilidad\",SUM(B29:D29),0),IF(AND('Base-datos'!$B$715=\"\",'Base-datos'!$B$716=\"\",'Base-datos'!$B$717=\"Sí\"),IF(E29=\"La actividad sí contribuye sustancialmente a la sostenibilidad\",J30,0),IF(AND('Base-datos'!$B$715=\"\",'Base-datos'!$B$716=\"Sí\",'Base-datos'!$B$717=\"Sí\"),IF(AND(G29=\"La actividad sí contribuye sustancialmente a la sostenibilidad\",E29=\"La actividad sí contribuye sustancialmente a la sostenibilidad\"),SUM(B29:D29),0),IF(AND('Base-datos'!$B$715=\"Sí\",'Base-datos'!$B$716=\"\",'Base-datos'!$B$717=\"Sí\"),IF(AND(F29=\"La actividad sí contribuye sustancialmente a la sostenibilidad\",E29=\"La actividad sí contribuye sustancialmente a la sostenibilidad\"),SUM(B29:D29),0),\"Por definir\"))))))))","v":"Por definir"}]
[{"$f":"Agricultura!$C42","v":"Seleccione"},{"$f":"IF(Agricultura!$E42=Empresas!B$12,Agricultura!$B42,\"\")","v":""},{"$f":"IF(Agricultura!$E42=Empresas!C$12,Agricultura!$B42,\"\")","v":""},{"$f":"IF(Agricultura!$E42=Empresas!D$12,Agricultura!$B42,\"\")","v":""},{"$f":"_xlfn.XLOOKUP(A30,'Base-datos'!$B$457:$B$509,'Base-datos'!$F$457:$F$509)","v":{"$error":"#N/A"}},{"$f":"_xlfn.XLOOKUP(A30,'Base-datos'!$B$457:$B$509,'Base-datos'!$C$457:$C$509)","v":{"$error":"#N/A"}},{"$f":"_xlfn.XLOOKUP(A30,'Base-datos'!$B$457:$B$509,'Base-datos'!$D$457:$D$509)","v":{"$error":"#N/A"}},null,null,{"$f":"IF(OR(H$13=\"La actividad no cumple con el total de los criterios de No Daño Significativo\",I$13=\"El sector no cumple con las salvaguardas mínimas\"),\"\",IF(AND('Base-datos'!$B$715=\"Sí\",'Base-datos'!$B$716=\"\",'Base-datos'!$B$717=\"\"),IF(F30=\"La actividad sí contribuye sustancialmente a la sostenibilidad\",SUM(B30:D30),0),IF(AND('Base-datos'!$B$715=\"Sí\",'Base-datos'!$B$716=\"Sí\",'Base-datos'!$B$717=\"\"),IF(AND(F30=\"La actividad sí contribuye sustancialmente a la sostenibilidad\",G30=\"La actividad sí contribuye sustancialmente a la sostenibilidad\"),SUM(B30:D30),0),IF(AND('Base-datos'!$B$715=\"Sí\",'Base-datos'!$B$716=\"Sí\",'Base-datos'!$B$717=\"Sí\"),IF(AND(F30=\"La actividad sí contribuye sustancialmente a la sostenibilidad\",G30=\"La actividad sí contribuye sustancialmente a la sostenibilidad\",E30=\"La actividad sí contribuye sustancialmente a la sostenibilidad\"),SUM(B30:D30),0),IF(AND('Base-datos'!$B$715=\"\",'Base-datos'!$B$716=\"Sí\",'Base-datos'!$B$717=\"\"),IF(G30=\"La actividad sí contribuye sustancialmente a la sostenibilidad\",SUM(B30:D30),0),IF(AND('Base-datos'!$B$715=\"\",'Base-datos'!$B$716=\"\",'Base-datos'!$B$717=\"Sí\"),IF(E30=\"La actividad sí contribuye sustancialmente a la sostenibilidad\",J31,0),IF(AND('Base-datos'!$B$715=\"\",'Base-datos'!$B$716=\"Sí\",'Base-datos'!$B$717=\"Sí\"),IF(AND(G30=\"La actividad sí contribuye sustancialmente a la sostenibilidad\",E30=\"La actividad sí contribuye sustancialmente a la sostenibilidad\"),SUM(B30:D30),0),IF(AND('Base-datos'!$B$715=\"Sí\",'Base-datos'!$B$716=\"\",'Base-datos'!$B$717=\"Sí\"),IF(AND(F30=\"La actividad sí contribuye sustancialmente a la sostenibilidad\",E30=\"La actividad sí contribuye sustancialmente a la sostenibilidad\"),SUM(B30:D30),0),\"Por definir\"))))))))","v":"Por definir"}]
[{"$f":"Agricultura!$C44","v":"Seleccione"},{"$f":"IF(Agricultura!$E44=Empresas!B$12,Agricultura!$B44,\"\")","v":""},{"$f":"IF(Agricultura!$E44=Empresas!C$12,Agricultura!$B44,\"\")","v":""},{"$f":"IF(Agricultura!$E44=Empresas!D$12,Agricultura!$B44,\"\")","v":""},{"$f":"_xlfn.XLOOKUP(A31,'Base-datos'!$B$457:$B$509,'Base-datos'!$F$457:$F$509)","v":{"$error":"#N/A"}},{"$f":"_xlfn.XLOOKUP(A31,'Base-datos'!$B$457:$B$509,'Base-datos'!$C$457:$C$509)","v":{"$error":"#N/A"}},{"$f":"_xlfn.XLOOKUP(A31,'Base-datos'!$B$457:$B$509,'Base-datos'!$D$457:$D$509)","v":{"$error":"#N/A"}},null,null,{"$f":"IF(OR(H$13=\"La actividad no cumple con el total de los criterios de No Daño Significativo\",I$13=\"El sector no cumple con las salvaguardas mínimas\"),\"\",IF(AND('Base-datos'!$B$715=\"Sí\",'Base-datos'!$B$716=\"\",'Base-datos'!$B$717=\"\"),IF(F31=\"La actividad sí contribuye sustancialmente a la sostenibilidad\",SUM(B31:D31),0),IF(AND('Base-datos'!$B$715=\"Sí\",'Base-datos'!$B$716=\"Sí\",'Base-datos'!$B$717=\"\"),IF(AND(F31=\"La actividad sí contribuye sustancialmente a la sostenibilidad\",G31=\"La actividad sí contribuye sustancialmente a la sostenibilidad\"),SUM(B31:D31),0),IF(AND('Base-datos'!$B$715=\"Sí\",'Base-datos'!$B$716=\"Sí\",'Base-datos'!$B$717=\"Sí\"),IF(AND(F31=\"La actividad sí contribuye sustancialmente a la sostenibilidad\",G31=\"La actividad sí contribuye sustancialmente a la sostenibilidad\",E31=\"La actividad sí contribuye sustancialmente a la sostenibilidad\"),SUM(B31:D31),0),IF(AND('Base-datos'!$B$715=\"\",'Base-datos'!$B$716=\"Sí\",'Base-datos'!$B$717=\"\"),IF(G31=\"La actividad sí contribuye sustancialmente a la sostenibilidad\",SUM(B31:D31),0),IF(AND('Base-datos'!$B$715=\"\",'Base-datos'!$B$716=\"\",'Base-datos'!$B$717=\"Sí\"),IF(E31=\"La actividad sí contribuye sustancialmente a la sostenibilidad\",J32,0),IF(AND('Base-datos'!$B$715=\"\",'Base-datos'!$B$716=\"Sí\",'Base-datos'!$B$717=\"Sí\"),IF(AND(G31=\"La actividad sí contribuye sustancialmente a la sostenibilidad\",E31=\"La actividad sí contribuye sustancialmente a la sostenibilidad\"),SUM(B31:D31),0),IF(AND('Base-datos'!$B$715=\"Sí\",'Base-datos'!$B$716=\"\",'Base-datos'!$B$717=\"Sí\"),IF(AND(F31=\"La actividad sí contribuye sustancialmente a la sostenibilidad\",E31=\"La actividad sí contribuye sustancialmente a la sostenibilidad\"),SUM(B31:D31),0),\"Por definir\"))))))))","v":"Por definir"}]
[{"$f":"Agricultura!$C46","v":"Seleccione"},{"$f":"IF(Agricultura!$E46=Empresas!B$12,Agricultura!$B46,\"\")","v":""},{"$f":"IF(Agricultura!$E46=Empresas!C$12,Agricultura!$B46,\"\")","v":""},{"$f":"IF(Agricultura!$E46=Empresas!D$12,Agricultura!$B46,\"\")","v":""},{"$f":"_xlfn.XLOOKUP(A32,'Base-datos'!$B$457:$B$509,'Base-datos'!$F$457:$F$509)","v":{"$error":"#N/A"}},{"$f":"_xlfn.XLOOKUP(A32,'Base-datos'!$B$457:$B$509,'Base-datos'!$C$457:$C$509)","v":{"$error":"#N/A"}},{"$f":"_xlfn.XLOOKUP(A32,'Base-datos'!$B$457:$B$509,'Base-datos'!$D$457:$D$509)","v":{"$error":"#N/A"}},null,null,{"$f":"IF(OR(H$13=\"La actividad no cumple con el total de los criterios de No Daño Significativo\",I$13=\"El sector no cumple con las salvaguardas mínimas\"),\"\",IF(AND('Base-datos'!$B$715=\"Sí\",'Base-datos'!$B$716=\"\",'Base-datos'!$B$717=\"\"),IF(F32=\"La actividad sí contribuye sustancialmente a la sostenibilidad\",SUM(B32:D32),0),IF(AND('Base-datos'!$B$715=\"Sí\",'Base-datos'!$B$716=\"Sí\",'Base-datos'!$B$717=\"\"),IF(AND(F32=\"La actividad sí contribuye sustancialmente a la sostenibilidad\",G32=\"La actividad sí contribuye sustancialmente a la sostenibilidad\"),SUM(B32:D32),0),IF(AND('Base-datos'!$B$715=\"Sí\",'Base-datos'!$B$716=\"Sí\",'Base-datos'!$B$717=\"Sí\"),IF(AND(F32=\"La actividad sí contribuye sustancialmente a la sostenibilidad\",G32=\"La actividad sí contribuye sustancialmente a la sostenibilidad\",E32=\"La actividad sí contribuye sustancialmente a la sostenibilidad\"),SUM(B32:D32),0),IF(AND('Base-datos'!$B$715=\"\",'Base-datos'!$B$716=\"Sí\",'Base-datos'!$B$717=\"\"),IF(G32=\"La actividad sí contribuye sustancialmente a la sostenibilidad\",SUM(B32:D32),0),IF(AND('Base-datos'!$B$715=\"\",'Base-datos'!$B$716=\"\",'Base-datos'!$B$717=\"Sí\"),IF(E32=\"La actividad sí contribuye sustancialmente a la sostenibilidad\",J33,0),IF(AND('Base-datos'!$B$715=\"\",'Base-datos'!$B$716=\"Sí\",'Base-datos'!$B$717=\"Sí\"),IF(AND(G32=\"La actividad sí contribuye sustancialmente a la sostenibilidad\",E32=\"La actividad sí contribuye sustancialmente a la sostenibilidad\"),SUM(B32:D32),0),IF(AND('Base-datos'!$B$715=\"Sí\",'Base-datos'!$B$716=\"\",'Base-datos'!$B$717=\"Sí\"),IF(AND(F32=\"La actividad sí contribuye sustancialmente a la sostenibilidad\",E32=\"La actividad sí contribuye sustancialmente a la sostenibilidad\"),SUM(B32:D32),0),\"Por definir\"))))))))","v":"Por definir"}]
[{"$f":"Agricultura!$C48","v":"Seleccione"},{"$f":"IF(Agricultura!$E48=Empresas!B$12,Agricultura!$B48,\"\")","v":""},{"$f":"IF(Agricultura!$E48=Empresas!C$12,Agricultura!$B48,\"\")","v":""},{"$f":"IF(Agricultura!$E48=Empresas!D$12,Agricultura!$B48,\"\")","v":""},{"$f":"_xlfn.XLOOKUP(A33,'Base-datos'!$B$457:$B$509,'Base-datos'!$F$457:$F$509)","v":{"$error":"#N/A"}},{"$f":"_xlfn.XLOOKUP(A33,'Base-datos'!$B$457:$B$509,'Base-datos'!$C$457:$C$509)","v":{"$error":"#N/A"}},{"$f":"_xlfn.XLOOKUP(A33,'Base-datos'!$B$457:$B$509,'Base-datos'!$D$457:$D$509)","v":{"$error":"#N/A"}},null,null,{"$f":"IF(OR(H$13=\"La actividad no cumple con el total de los criterios de No Daño Significativo\",I$13=\"El sector no cumple con las salvaguardas mínimas\"),\"\",IF(AND('Base-datos'!$B$715=\"Sí\",'Base-datos'!$B$716=\"\",'Base-datos'!$B$717=\"\"),IF(F33=\"La actividad sí contribuye sustancialmente a la sostenibilidad\",SUM(B33:D33),0),IF(AND('Base-datos'!$B$715=\"Sí\",'Base-datos'!$B$716=\"Sí\",'Base-datos'!$B$717=\"\"),IF(AND(F33=\"La actividad sí contribuye sustancialmente a la sostenibilidad\",G33=\"La actividad sí contribuye sustancialmente a la sostenibilidad\"),SUM(B33:D33),0),IF(AND('Base-datos'!$B$715=\"Sí\",'Base-datos'!$B$716=\"Sí\",'Base-datos'!$B$717=\"Sí\"),IF(AND(F33=\"La actividad sí contribuye sustancialmente a la sostenibilidad\",G33=\"La actividad sí contribuye sustancialmente a la sostenibilidad\",E33=\"La actividad sí contribuye sustancialmente a la sostenibilidad\"),SUM(B33:D33),0),IF(AND('Base-datos'!$B$715=\"\",'Base-datos'!$B$716=\"Sí\",'Base-datos'!$B$717=\"\"),IF(G33=\"La actividad sí contribuye sustancialmente a la sostenibilidad\",SUM(B33:D33),0),IF(AND('Base-datos'!$B$715=\"\",'Base-datos'!$B$716=\"\",'Base-datos'!$B$717=\"Sí\"),IF(E33=\"La actividad sí contribuye sustancialmente a la sostenibilidad\",J34,0),IF(AND('Base-datos'!$B$715=\"\",'Base-datos'!$B$716=\"Sí\",'Base-datos'!$B$717=\"Sí\"),IF(AND(G33=\"La actividad sí contribuye sustancialmente a la sostenibilidad\",E33=\"La actividad sí contribuye sustancialmente a la sostenibilidad\"),SUM(B33:D33),0),IF(AND('Base-datos'!$B$715=\"Sí\",'Base-datos'!$B$716=\"\",'Base-datos'!$B$717=\"Sí\"),IF(AND(F33=\"La actividad sí contribuye sustancialmente a la sostenibilidad\",E33=\"La actividad sí contribuye sustancialmente a la sostenibilidad\"),SUM(B33:D33),0),\"Por definir\"))))))))","v":"Por definir"}]
["Forestal",null,null,null,null,null,null,null,null,{"$f":"SUM(IF(FREQUENCY(MATCH(A35:A54, A35:A54, 0), MATCH(A35:A54, A35:A54, 0)) > 0, IF(NOT(ISERROR(J35:J54)), J35:J54, 0)))","v":0}]
[{"$f":"Forestal!$C10","v":"Seleccione"},{"$f":"IF(Forestal!$E10=Empresas!B$12,Forestal!$B10,\"\")","v":""},{"$f":"IF(Forestal!$E10=Empresas!C$12,Forestal!$B10,\"\")","v":""},{"$f":"IF(Forestal!$E10=Empresas!D$12,Forestal!$B10,\"\")","v":""},{"$f":"_xlfn.XLOOKUP(A35,'Base-datos'!$B$517:$B$520,'Base-datos'!$F$517:$F$520)","v":{"$error":"#N/A"}},{"$f":"_xlfn.XLOOKUP(A35,'Base-datos'!$B$517:$B$520,'Base-datos'!$C$517:$C$520)","v":{"$error":"#N/A"}},{"$f":"_xlfn.XLOOKUP(A35,'Base-datos'!$B$517:$B$520,'Base-datos'!$D$517:$D$520)","v":{"$error":"#N/A"}},{"$f":"IF(COUNTIF('Forestal-NDS'!I7:I48,\"No\")>0,\"La actividad no cumple con el total de los criterios de NDS\",\"La actividad cumple con los criterios de No Daño Significativo\")","v":"La actividad cumple con los criterios de No Daño Significativo"},{"$f":"IF(OR('Salvaguardas mínimas'!$G$10=\"Seleccione\",'Salvaguardas mínimas'!$G$13=\"Seleccione\",'Salvaguardas mínimas'!$G$16=\"Seleccione\",'Salvaguardas mínimas'!$G$7=\"Seleccione\"),\"No se han respondido todas las preguntas\",IF(OR('Salvaguardas mínimas'!$G$10=\"No\",'Salvaguardas mínimas'!$G$13=\"No\",'Salvaguardas mínimas'!$G$16=\"No\",'Salvaguardas mínimas'!$G$7=\"No\"),\"El sector no cumple con las salvaguardas mínimas\",\"La actividad sí cumple con las salvaguardas mínimas\"))","v":"No se han respondido todas las preguntas"},{"$f":"IF(OR(H$35=\"La actividad no cumple con el total de los criterios de No Daño Significativo\",I$35=\"El sector no cumple con las salvaguardas mínimas\"),\"\",IF(AND('Base-datos'!$B$720=\"Sí\",'Base-datos'!$B$721=\"\",'Base-datos'!$B$722=\"\"),IF(F35=\"La actividad sí contribuye sustancialmente a la sostenibilidad\",SUM(B35:D35),0),IF(AND('Base-datos'!$B$720=\"Sí\",'Base-datos'!$B$721=\"Sí\",'Base-datos'!$B$722=\"\"),IF(AND(F35=\"La actividad sí contribuye sustancialmente a la sostenibilidad\",G35=\"La actividad sí contribuye sustancialmente a la sostenibilidad\"),SUM(B35:D35),0),IF(AND('Base-datos'!$B$720=\"Sí\",'Base-datos'!$B$721=\"Sí\",'Base-datos'!$B$722=\"Sí\"),IF(AND(F35=\"La actividad sí contribuye sustancialmente a la sostenibilidad\",G35=\"La actividad sí contribuye sustancialmente a la sostenibilidad\",E35=\"La actividad sí contribuye sustancialmente a la sostenibilidad\"),SUM(B35:D35),0),IF(AND('Base-datos'!$B$720=\"\",'Base-datos'!$B$721=\"Sí\",'Base-datos'!$B$722=\"\"),IF(G35=\"La actividad sí contribuye sustancialmente a la sostenibilidad\",SUM(B35:D35),0),IF(AND('Base-datos'!$B$720=\"\",'Base-datos'!$B$721=\"\",'Base-datos'!$B$722=\"Sí\"),IF(E35=\"La actividad sí contribuye sustancialmente a la sostenibilidad\",SUM(B35:D35),0),IF(AND('Base-datos'!$B$720=\"\",'Base-datos'!$B$721=\"Sí\",'Base-datos'!$B$722=\"Sí\"),IF(AND(G35=\"La actividad sí contribuye sustancialmente a la sostenibilidad\",E35=\"La actividad sí contribuye sustancialmente a la sostenibilidad\"),SUM(B35:D35),0),IF(AND('Base-datos'!$B$720=\"Sí\",'Base-datos'!$B$721=\"\",'Base-datos'!$B$722=\"Sí\"),IF(AND(F35=\"La actividad sí contribuye sustancialmente a la sostenibilidad\",E35=\"La actividad sí contribuye sustancialmente a la sostenibilidad\"),SUM(B35:D35),0),\"Por definir\"))))))))","v":"Por definir"}]
[{"$f":"Forestal!$C12","v":"Seleccione"},{"$f":"IF(Forestal!$E12=Empresas!B$12,Forestal!$B12,\"\")","v":""},{"$f":"IF(Forestal!$E12=Empresas!C$12,Forestal!$B12,\"\")","v":""},{"$f":"IF(Forestal!$E12=Empresas!D$12,Forestal!$B12,\"\")","v":""},{"$f":"_xlfn.XLOOKUP(A36,'Base-datos'!$B$517:$B$520,'Base-datos'!$F$517:$F$520)","v":{"$error":"#N/A"}},{"$f":"_xlfn.XLOOKUP(A36,'Base-datos'!$B$517:$B$520,'Base-datos'!$C$517:$C$520)","v":{"$error":"#N/A"}},{"$f":"_xlfn.XLOOKUP(A36,'Base-datos'!$B$517:$B$520,'Base-datos'!$D$517:$D$520)","v":{"$error":"#N/A"}},null,null,{"$f":"IF(OR(H$35=\"La actividad no cumple con el total de los criterios de No Daño Significativo\",I$35=\"El sector no cumple con las salvaguardas mínimas\"),\"\",IF(AND('Base-datos'!$B$720=\"Sí\",'Base-datos'!$B$721=\"\",'Base-datos'!$B$722=\"\"),IF(F36=\"La actividad sí contribuye sustancialmente a la sostenibilidad\",SUM(B36:D36),0),IF(AND('Base-datos'!$B$720=\"Sí\",'Base-datos'!$B$721=\"Sí\",'Base-datos'!$B$722=\"\"),IF(AND(F36=\"La actividad sí contribuye sustancialmente a la sostenibilidad\",G36=\"La actividad sí contribuye sustancialmente a la sostenibilidad\"),SUM(B36:D36),0),IF(AND('Base-datos'!$B$720=\"Sí\",'Base-datos'!$B$721=\"Sí\",'Base-datos'!$B$722=\"Sí\"),IF(AND(F36=\"La actividad sí contribuye sustancialmente a la sostenibilidad\",G36=\"La actividad sí contribuye sustancialmente a la sostenibilidad\",E36=\"La actividad sí contribuye sustancialmente a la sostenibilidad\"),SUM(B36:D36),0),IF(AND('Base-datos'!$B$720=\"\",'Base-datos'!$B$721=\"Sí\",'Base-datos'!$B$722=\"\"),IF(G36=\"La actividad sí contribuye sustancialmente a la sostenibilidad\",SUM(B36:D36),0),IF(AND('Base-datos'!$B$720=\"\",'Base-datos'!$B$721=\"\",'Base-datos'!$B$722=\"Sí\"),IF(E36=\"La actividad sí contribuye sustancialmente a la sostenibilidad\",SUM(B36:D36),0),IF(AND('Base-datos'!$B$720=\"\",'Base-datos'!$B$721=\"Sí\",'Base-datos'!$B$722=\"Sí\"),IF(AND(G36=\"La actividad sí contribuye sustancialmente a la sostenibilidad\",E36=\"La actividad sí contribuye sustancialmente a la sostenibilidad\"),SUM(B36:D36),0),IF(AND('Base-datos'!$B$720=\"Sí\",'Base-datos'!$B$721=\"\",'Base-datos'!$B$722=\"Sí\"),IF(AND(F36=\"La actividad sí contribuye sustancialmente a la sostenibilidad\",E36=\"La actividad sí contribuye sustancialmente a la sostenibilidad\"),SUM(B36:D36),0),\"Por definir\"))))))))","v":"Por definir"}]
[{"$f":"Forestal!$C14","v":"Seleccione"},{"$f":"IF(Forestal!$E14=Empresas!B$12,Forestal!$B14,\"\")","v":""},{"$f":"IF(Forestal!$E14=Empresas!C$12,Forestal!$B14,\"\")","v":""},{"$f":"IF(Forestal!$E14=Empresas!D$12,Forestal!$B14,\"\")","v":""},{"$f":"_xlfn.XLOOKUP(A37,'Base-datos'!$B$517:$B$520,'Base-datos'!$F$517:$F$520)","v":{"$error":"#N/A"}},{"$f":"_xlfn.XLOOKUP(A37,'Base-datos'!$B$517:$B$520,'Base-datos'!$C$517:$C$520)","v":{"$error":"#N/A"}},{"$f":"_xlfn.XLOOKUP(A37,'Base-datos'!$B$517:$B$520,'Base-datos'!$D$517:$D$520)","v":{"$error":"#N/A"}},null,null,{"$f":"IF(OR(H$35=\"La actividad no cumple con el total de los criterios de No Daño Significativo\",I$35=\"El sector no cumple con las salvaguardas mínimas\"),\"\",IF(AND('Base-datos'!$B$720=\"Sí\",'Base-datos'!$B$721=\"\",'Base-datos'!$B$722=\"\"),IF(F37=\"La actividad sí contribuye sustancialmente a la sostenibilidad\",SUM(B37:D37),0),IF(AND('Base-datos'!$B$720=\"Sí\",'Base-datos'!$B$721=\"Sí\",'Base-datos'!$B$722=\"\"),IF(AND(F37=\"La actividad sí contribuye sustancialmente a la sostenibilidad\",G37=\"La actividad sí contribuye sustancialmente a la sostenibilidad\"),SUM(B37:D37),0),IF(AND('Base-datos'!$B$720=\"Sí\",'Base-datos'!$B$721=\"Sí\",'Base-datos'!$B$722=\"Sí\"),IF(AND(F37=\"La actividad sí contribuye sustancialmente a la sostenibilidad\",G37=\"La actividad sí contribuye sustancialmente a la sostenibilidad\",E37=\"La actividad sí contribuye sustancialmente a la sostenibilidad\"),SUM(B37:D37),0),IF(AND('Base-datos'!$B$720=\"\",'Base-datos'!$B$721=\"Sí\",'Base-datos'!$B$722=\"\"),IF(G37=\"La actividad sí contribuye sustancialmente a la sostenibilidad\",SUM(B37:D37),0),IF(AND('Base-datos'!$B$720=\"\",'Base-datos'!$B$721=\"\",'Base-datos'!$B$722=\"Sí\"),IF(E37=\"La actividad sí contribuye sustancialmente a la sostenibilidad\",SUM(B37:D37),0),IF(AND('Base-datos'!$B$720=\"\",'Base-datos'!$B$721=\"Sí\",'Base-datos'!$B$722=\"Sí\"),IF(AND(G37=\"La actividad sí contribuye sustancialmente a la sostenibilidad\",E37=\"La actividad sí contribuye sustancialmente a la sostenibilidad\"),SUM(B37:D37),0),IF(AND('Base-datos'!$B$720=\"Sí\",'Base-datos'!$B$721=\"\",'Base-datos'!$B$722=\"Sí\"),IF(AND(F37=\"La actividad sí contribuye sustancialmente a la sostenibilidad\",E37=\"La actividad sí contribuye sustancialmente a la sostenibilidad\"),SUM(B37:D37),0),\"Por definir\"))))))))","v":"Por definir"}]
[{"$f":"Forestal!$C16","v":"Seleccione"},{"$f":"IF(Forestal!$E16=Empresas!B$12,Forestal!$B16,\"\")","v":""},{"$f":"IF(Forestal!$E16=Empresas!C$12,Forestal!$B16,\"\")","v":""},{"$f":"IF(Forestal!$E16=Empresas!D$12,Forestal!$B16,\"\")","v":""},{"$f":"_xlfn.XLOOKUP(A38,'Base-datos'!$B$517:$B$520,'Base-datos'!$F$517:$F$520)","v":{"$error":"#N/A"}},{"$f":"_xlfn.XLOOKUP(A38,'Base-datos'!$B$517:$B$520,'Base-datos'!$C$517:$C$520)","v":{"$error":"#N/A"}},{"$f":"_xlfn.XLOOKUP(A38,'Base-datos'!$B$517:$B$520,'Base-datos'!$D$517:$D$520)","v":{"$error":"#N/A"}},null,null,{"$f":"IF(OR(H$35=\"La actividad no cumple con el total de los criterios de No Daño Significativo\",I$35=\"El sector no cumple con las salvaguardas mínimas\"),\"\",IF(AND('Base-datos'!$B$720=\"Sí\",'Base-datos'!$B$721=\"\",'Base-datos'!$B$722=\"\"),IF(F38=\"La actividad sí contribuye sustancialmente a la sostenibilidad\",SUM(B38:D38),0),IF(AND('Base-datos'!$B$720=\"Sí\",'Base-datos'!$B$721=\"Sí\",'Base-datos'!$B$722=\"\"),IF(AND(F38=\"La actividad sí contribuye sustancialmente a la sostenibilidad\",G38=\"La actividad sí contribuye sustancialmente a la sostenibilidad\"),SUM(B38:D38),0),IF(AND('Base-datos'!$B$720=\"Sí\",'Base-datos'!$B$721=\"Sí\",'Base-datos'!$B$722=\"Sí\"),IF(AND(F38=\"La actividad sí contribuye sustancialmente a la sostenibilidad\",G38=\"La actividad sí contribuye sustancialmente a la sostenibilidad\",E38=\"La actividad sí contribuye sustancialmente a la sostenibilidad\"),SUM(B38:D38),0),IF(AND('Base-datos'!$B$720=\"\",'Base-datos'!$B$721=\"Sí\",'Base-datos'!$B$722=\"\"),IF(G38=\"La actividad sí contribuye sustancialmente a la sostenibilidad\",SUM(B38:D38),0),IF(AND('Base-datos'!$B$720=\"\",'Base-datos'!$B$721=\"\",'Base-datos'!$B$722=\"Sí\"),IF(E38=\"La actividad sí contribuye sustancialmente a la sostenibilidad\",SUM(B38:D38),0),IF(AND('Base-datos'!$B$720=\"\",'Base-datos'!$B$721=\"Sí\",'Base-datos'!$B$722=\"Sí\"),IF(AND(G38=\"La actividad sí contribuye sustancialmente a la sostenibilidad\",E38=\"La actividad sí contribuye sustancialmente a la sostenibilidad\"),SUM(B38:D38),0),IF(AND('Base-datos'!$B$720=\"Sí\",'Base-datos'!$B$721=\"\",'Base-datos'!$B$722=\"Sí\"),IF(AND(F38=\"La actividad sí contribuye sustancialmente a la sostenibilidad\",E38=\"La actividad sí contribuye sustancialmente a la sostenibilidad\"),SUM(B38:D38),0),\"Por definir\"))))))))","v":"Por definir"}]
[{"$f":"Forestal!$C18","v":"Seleccione"},{"$f":"IF(Forestal!$E18=Empresas!B$12,Forestal!$B18,\"\")","v":""},{"$f":"IF(Forestal!$E18=Empresas!C$12,Forestal!$B18,\"\")","v":""},{"$f":"IF(Forestal!$E18=Empresas!D$12,Forestal!$B18,\"\")","v":""},{"$f":"_xlfn.XLOOKUP(A39,'Base-datos'!$B$517:$B$520,'Base-datos'!$F$517:$F$520)","v":{"$error":"#N/A"}},{"$f":"_xlfn.XLOOKUP(A39,'Base-datos'!$B$517:$B$520,'Base-datos'!$C$517:$C$520)","v":{"$error":"#N/A"}},{"$f":"_xlfn.XLOOKUP(A39,'Base-datos'!$B$517:$B$520,'Base-datos'!$D$517:$D$520)","v":{"$error":"#N/A"}},null,null,{"$f":"IF(OR(H$35=\"La actividad no cumple con el total de los criterios de No Daño Significativo\",I$35=\"El sector no cumple con las salvaguardas mínimas\"),\"\",IF(AND('Base-datos'!$B$720=\"Sí\",'Base-datos'!$B$721=\"\",'Base-datos'!$B$722=\"\"),IF(F39=\"La actividad sí contribuye sustancialmente a la sostenibilidad\",SUM(B39:D39),0),IF(AND('Base-datos'!$B$720=\"Sí\",'Base-datos'!$B$721=\"Sí\",'Base-datos'!$B$722=\"\"),IF(AND(F39=\"La actividad sí contribuye sustancialmente a la sostenibilidad\",G39=\"La actividad sí contribuye sustancialmente a la sostenibilidad\"),SUM(B39:D39),0),IF(AND('Base-datos'!$B$720=\"Sí\",'Base-datos'!$B$721=\"Sí\",'Base-datos'!$B$722=\"Sí\"),IF(AND(F39=\"La actividad sí contribuye sustancialmente a la sostenibilidad\",G39=\"La actividad sí contribuye sustancialmente a la sostenibilidad\",E39=\"La actividad sí contribuye sustancialmente a la sostenibilidad\"),SUM(B39:D39),0),IF(AND('Base-datos'!$B$720=\"\",'Base-datos'!$B$721=\"Sí\",'Base-datos'!$B$722=\"\"),IF(G39=\"La actividad sí contribuye sustancialmente a la sostenibilidad\",SUM(B39:D39),0),IF(AND('Base-datos'!$B$720=\"\",'Base-datos'!$B$721=\"\",'Base-datos'!$B$722=\"Sí\"),IF(E39=\"La actividad sí contribuye sustancialmente a la sostenibilidad\",SUM(B39:D39),0),IF(AND('Base-datos'!$B$720=\"\",'Base-datos'!$B$721=\"Sí\",'Base-datos'!$B$722=\"Sí\"),IF(AND(G39=\"La actividad sí contribuye sustancialmente a la sostenibilidad\",E39=\"La actividad sí contribuye sustancialmente a la sostenibilidad\"),SUM(B39:D39),0),IF(AND('Base-datos'!$B$720=\"Sí\",'Base-datos'!$B$721=\"\",'Base-datos'!$B$722=\"Sí\"),IF(AND(F39=\"La actividad sí contribuye sustancialmente a la sostenibilidad\",E39=\"La actividad sí contribuye sustancialmente a la sostenibilidad\"),SUM(B39:D39),0),\"Por definir\"))))))))","v":"Por definir"}]
[{"$f":"Forestal!$C20","v":"Seleccione"},{"$f":"IF(Forestal!$E20=Empresas!B$12,Forestal!$B20,\"\")","v":""},{"$f":"IF(Forestal!$E20=Empresas!C$12,Forestal!$B20,\"\")","v":""},{"$f":"IF(Forestal!$E20=Empresas!D$12,Forestal!$B20,\"\")","v":""},{"$f":"_xlfn.XLOOKUP(A40,'Base-datos'!$B$517:$B$520,'Base-datos'!$F$517:$F$520)","v":{"$error":"#N/A"}},{"$f":"_xlfn.XLOOKUP(A40,'Base-datos'!$B$517:$B$520,'Base-datos'!$C$517:$C$520)","v":{"$error":"#N/A"}},{"$f":"_xlfn.XLOOKUP(A40,'Base-datos'!$B$517:$B$520,'Base-datos'!$D$517:$D$520)","v":{"$error":"#N/A"}},null,null,{"$f":"IF(OR(H$35=\"La actividad no cumple con el total de los criterios de No Daño Significativo\",I$35=\"El sector no cumple con las salvaguardas mínimas\"),\"\",IF(AND('Base-datos'!$B$720=\"Sí\",'Base-datos'!$B$721=\"\",'Base-datos'!$B$722=\"\"),IF(F40=\"La actividad sí contribuye sustancialmente a la sostenibilidad\",SUM(B40:D40),0),IF(AND('Base-datos'!$B$720=\"Sí\",'Base-datos'!$B$721=\"Sí\",'Base-datos'!$B$722=\"\"),IF(AND(F40=\"La actividad sí contribuye sustancialmente a la sostenibilidad\",G40=\"La actividad sí contribuye sustancialmente a la sostenibilidad\"),SUM(B40:D40),0),IF(AND('Base-datos'!$B$720=\"Sí\",'Base-datos'!$B$721=\"Sí\",'Base-datos'!$B$722=\"Sí\"),IF(AND(F40=\"La actividad sí contribuye sustancialmente a la sostenibilidad\",G40=\"La actividad sí contribuye sustancialmente a la sostenibilidad\",E40=\"La actividad sí contribuye sustancialmente a la sostenibilidad\"),SUM(B40:D40),0),IF(AND('Base-datos'!$B$720=\"\",'Base-datos'!$B$721=\"Sí\",'Base-datos'!$B$722=\"\"),IF(G40=\"La actividad sí contribuye sustancialmente a la sostenibilidad\",SUM(B40:D40),0),IF(AND('Base-datos'!$B$720=\"\",'Base-datos'!$B$721=\"\",'Base-datos'!$B$722=\"Sí\"),IF(E40=\"La actividad sí contribuye sustancialmente a la sostenibilidad\",SUM(B40:D40),0),IF(AND('Base-datos'!$B$720=\"\",'Base-datos'!$B$721=\"Sí\",'Base-datos'!$B$722=\"Sí\"),IF(AND(G40=\"La actividad sí contribuye sustancialmente a la sostenibilidad\",E40=\"La actividad sí contribuye sustancialmente a la sostenibilidad\"),SUM(B40:D40),0),IF(AND('Base-datos'!$B$720=\"Sí\",'Base-datos'!$B$721=\"\",'Base-datos'!$B$722=\"Sí\"),IF(AND(F40=\"La actividad sí contribuye sustancialmente a la sostenibilidad\",E40=\"La actividad sí contribuye sustancialmente a la sostenibilidad\"),SUM(B40:D40),0),\"Por definir\"))))))))","v":"Por definir"}]
[{"$f":"Forestal!$C22","v":"Seleccione"},{"$f":"IF(Forestal!$E22=Empresas!B$12,Forestal!$B22,\"\")","v":""},{"$f":"IF(Forestal!$E22=Empresas!C$12,Forestal!$B22,\"\")","v":""},{"$f":"IF(Forestal!$E22=Empresas!D$12,Forestal!$B22,\"\")","v":""},{"$f":"_xlfn.XLOOKUP(A41,'Base-datos'!$B$517:$B$520,'Base-datos'!$F$517:$F$520)","v":{"$error":"#N/A"}},{"$f":"_xlfn.XLOOKUP(A41,'Base-datos'!$B$517:$B$520,'Base-datos'!$C$517:$C$520)","v":{"$error":"#N/A"}},{"$f":"_xlfn.XLOOKUP(A41,'Base-datos'!$B$517:$B$520,'Base-datos'!$D$517:$D$520)","v":{"$error":"#N/A"}},null,null,{"$f":"IF(OR(H$35=\"La actividad no cumple con el total de los criterios de No Daño Significativo\",I$35=\"El sector no cumple con las salvaguardas mínimas\"),\"\",IF(AND('Base-datos'!$B$720=\"Sí\",'Base-datos'!$B$721=\"\",'Base-datos'!$B$722=\"\"),IF(F41=\"La actividad sí contribuye sustancialmente a la sostenibilidad\",SUM(B41:D41),0),IF(AND('Base-datos'!$B$720=\"Sí\",'Base-datos'!$B$721=\"Sí\",'Base-datos'!$B$722=\"\"),IF(AND(F41=\"La actividad sí contribuye sustancialmente a la sostenibilidad\",G41=\"La actividad sí contribuye sustancialmente a la sostenibilidad\"),SUM(B41:D41),0),IF(AND('Base-datos'!$B$720=\"Sí\",'Base-datos'!$B$721=\"Sí\",'Base-datos'!$B$722=\"Sí\"),IF(AND(F41=\"La actividad sí contribuye sustancialmente a la sostenibilidad\",G41=\"La actividad sí contribuye sustancialmente a la sostenibilidad\",E41=\"La actividad sí contribuye sustancialmente a la sostenibilidad\"),SUM(B41:D41),0),IF(AND('Base-datos'!$B$720=\"\",'Base-datos'!$B$721=\"Sí\",'Base-datos'!$B$722=\"\"),IF(G41=\"La actividad sí contribuye sustancialmente a la sostenibilidad\",SUM(B41:D41),0),IF(AND('Base-datos'!$B$720=\"\",'Base-datos'!$B$721=\"\",'Base-datos'!$B$722=\"Sí\"),IF(E41=\"La actividad sí contribuye sustancialmente a la sostenibilidad\",SUM(B41:D41),0),IF(AND('Base-datos'!$B$720=\"\",'Base-datos'!$B$721=\"Sí\",'Base-datos'!$B$722=\"Sí\"),IF(AND(G41=\"La actividad sí contribuye sustancialmente a la sostenibilidad\",E41=\"La actividad sí contribuye sustancialmente a la sostenibilidad\"),SUM(B41:D41),0),IF(AND('Base-datos'!$B$720=\"Sí\",'Base-datos'!$B$721=\"\",'Base-datos'!$B$722=\"Sí\"),IF(AND(F41=\"La actividad sí contribuye sustancialmente a la sostenibilidad\",E41=\"La actividad sí contribuye sustancialmente a la sostenibilidad\"),SUM(B41:D41),0),\"Por definir\"))))))))","v":"Por definir"}]
[{"$f":"Forestal!$C24","v":"Seleccione"},{"$f":"IF(Forestal!$E24=Empresas!B$12,Forestal!$B24,\"\")","v":""},{"$f":"IF(Forestal!$E24=Empresas!C$12,Forestal!$B24,\"\")","v":""},{"$f":"IF(Forestal!$E24=Empresas!D$12,Forestal!$B24,\"\")","v":""},{"$f":"_xlfn.XLOOKUP(A42,'Base-datos'!$B$517:$B$520,'Base-datos'!$F$517:$F$520)","v":{"$error":"#N/A"}},{"$f":"_xlfn.XLOOKUP(A42,'Base-datos'!$B$517:$B$520,'Base-datos'!$C$517:$C$520)","v":{"$error":"#N/A"}},{"$f":"_xlfn.XLOOKUP(A42,'Base-datos'!$B$517:$B$520,'Base-datos'!$D$517:$D$520)","v":{"$error":"#N/A"}},null,null,{"$f":"IF(OR(H$35=\"La actividad no cumple con el total de los criterios de No Daño Significativo\",I$35=\"El sector no cumple con las salvaguardas mínimas\"),\"\",IF(AND('Base-datos'!$B$720=\"Sí\",'Base-datos'!$B$721=\"\",'Base-datos'!$B$722=\"\"),IF(F42=\"La actividad sí contribuye sustancialmente a la sostenibilidad\",SUM(B42:D42),0),IF(AND('Base-datos'!$B$720=\"Sí\",'Base-datos'!$B$721=\"Sí\",'Base-datos'!$B$722=\"\"),IF(AND(F42=\"La actividad sí contribuye sustancialmente a la sostenibilidad\",G42=\"La actividad sí contribuye sustancialmente a la sostenibilidad\"),SUM(B42:D42),0),IF(AND('Base-datos'!$B$720=\"Sí\",'Base-datos'!$B$721=\"Sí\",'Base-datos'!$B$722=\"Sí\"),IF(AND(F42=\"La actividad sí contribuye sustancialmente a la sostenibilidad\",G42=\"La actividad sí contribuye sustancialmente a la sostenibilidad\",E42=\"La actividad sí contribuye sustancialmente a la sostenibilidad\"),SUM(B42:D42),0),IF(AND('Base-datos'!$B$720=\"\",'Base-datos'!$B$721=\"Sí\",'Base-datos'!$B$722=\"\"),IF(G42=\"La actividad sí contribuye sustancialmente a la sostenibilidad\",SUM(B42:D42),0),IF(AND('Base-datos'!$B$720=\"\",'Base-datos'!$B$721=\"\",'Base-datos'!$B$722=\"Sí\"),IF(E42=\"La actividad sí contribuye sustancialmente a la sostenibilidad\",SUM(B42:D42),0),IF(AND('Base-datos'!$B$720=\"\",'Base-datos'!$B$721=\"Sí\",'Base-datos'!$B$722=\"Sí\"),IF(AND(G42=\"La actividad sí contribuye sustancialmente a la sostenibilidad\",E42=\"La actividad sí contribuye sustancialmente a la sostenibilidad\"),SUM(B42:D42),0),IF(AND('Base-datos'!$B$720=\"Sí\",'Base-datos'!$B$721=\"\",'Base-datos'!$B$722=\"Sí\"),IF(AND(F42=\"La actividad sí contribuye sustancialmente a la sostenibilidad\",E42=\"La actividad sí contribuye sustancialmente a la sostenibilidad\"),SUM(B42:D42),0),\"Por definir\"))))))))","v":"Por definir"}]
[{"$f":"Forestal!$C26","v":"Seleccione"},{"$f":"IF(Forestal!$E26=Empresas!B$12,Forestal!$B26,\"\")","v":""},{"$f":"IF(Forestal!$E26=Empresas!C$12,Forestal!$B26,\"\")","v":""},{"$f":"IF(Forestal!$E26=Empresas!D$12,Forestal!$B26,\"\")","v":""},{"$f":"_xlfn.XLOOKUP(A43,'Base-datos'!$B$517:$B$520,'Base-datos'!$F$517:$F$520)","v":{"$error":"#N/A"}},{"$f":"_xlfn.XLOOKUP(A43,'Base-datos'!$B$517:$B$520,'Base-datos'!$C$517:$C$520)","v":{"$error":"#N/A"}},{"$f":"_xlfn.XLOOKUP(A43,'Base-datos'!$B$517:$B$520,'Base-datos'!$D$517:$D$520)","v":{"$error":"#N/A"}},null,null,{"$f":"IF(OR(H$35=\"La actividad no cumple con el total de los criterios de No Daño Significativo\",I$35=\"El sector no cumple con las salvaguardas mínimas\"),\"\",IF(AND('Base-datos'!$B$720=\"Sí\",'Base-datos'!$B$721=\"\",'Base-datos'!$B$722=\"\"),IF(F43=\"La actividad sí contribuye sustancialmente a la sostenibilidad\",SUM(B43:D43),0),IF(AND('Base-datos'!$B$720=\"Sí\",'Base-datos'!$B$721=\"Sí\",'Base-datos'!$B$722=\"\"),IF(AND(F43=\"La actividad sí contribuye sustancialmente a la sostenibilidad\",G43=\"La actividad sí contribuye sustancialmente a la sostenibilidad\"),SUM(B43:D43),0),IF(AND('Base-datos'!$B$720=\"Sí\",'Base-datos'!$B$721=\"Sí\",'Base-datos'!$B$722=\"Sí\"),IF(AND(F43=\"La actividad sí contribuye sustancialmente a la sostenibilidad\",G43=\"La actividad sí contribuye sustancialmente a la sostenibilidad\",E43=\"La actividad sí contribuye sustancialmente a la sostenibilidad\"),SUM(B43:D43),0),IF(AND('Base-datos'!$B$720=\"\",'Base-datos'!$B$721=\"Sí\",'Base-datos'!$B$722=\"\"),IF(G43=\"La actividad sí contribuye sustancialmente a la sostenibilidad\",SUM(B43:D43),0),IF(AND('Base-datos'!$B$720=\"\",'Base-datos'!$B$721=\"\",'Base-datos'!$B$722=\"Sí\"),IF(E43=\"La actividad sí contribuye sustancialmente a la sostenibilidad\",SUM(B43:D43),0),IF(AND('Base-datos'!$B$720=\"\",'Base-datos'!$B$721=\"Sí\",'Base-datos'!$B$722=\"Sí\"),IF(AND(G43=\"La actividad sí contribuye sustancialmente a la sostenibilidad\",E43=\"La actividad sí contribuye sustancialmente a la sostenibilidad\"),SUM(B43:D43),0),IF(AND('Base-datos'!$B$720=\"Sí\",'Base-datos'!$B$721=\"\",'Base-datos'!$B$722=\"Sí\"),IF(AND(F43=\"La actividad sí contribuye sustancialmente a la sostenibilidad\",E43=\"La actividad sí contribuye sustancialmente a la sostenibilidad\"),SUM(B43:D43),0),\"Por definir\"))))))))","v":"Por definir"}]
[{"$f":"Forestal!$C28","v":"Seleccione"},{"$f":"IF(Forestal!$E28=Empresas!B$12,Forestal!$B28,\"\")","v":""},{"$f":"IF(Forestal!$E28=Empresas!C$12,Forestal!$B28,\"\")","v":""},{"$f":"IF(Forestal!$E28=Empresas!D$12,Forestal!$B28,\"\")","v":""},{"$f":"_xlfn.XLOOKUP(A44,'Base-datos'!$B$517:$B$520,'Base-datos'!$F$517:$F$520)","v":{"$error":"#N/A"}},{"$f":"_xlfn.XLOOKUP(A44,'Base-datos'!$B$517:$B$520,'Base-datos'!$C$517:$C$520)","v":{"$error":"#N/A"}},{"$f":"_xlfn.XLOOKUP(A44,'Base-datos'!$B$517:$B$520,'Base-datos'!$D$517:$D$520)","v":{"$error":"#N/A"}},null,null,{"$f":"IF(OR(H$35=\"La actividad no cumple con el total de los criterios de No Daño Significativo\",I$35=\"El sector no cumple con las salvaguardas mínimas\"),\"\",IF(AND('Base-datos'!$B$720=\"Sí\",'Base-datos'!$B$721=\"\",'Base-datos'!$B$722=\"\"),IF(F44=\"La actividad sí contribuye sustancialmente a la sostenibilidad\",SUM(B44:D44),0),IF(AND('Base-datos'!$B$720=\"Sí\",'Base-datos'!$B$721=\"Sí\",'Base-datos'!$B$722=\"\"),IF(AND(F44=\"La actividad sí contribuye sustancialmente a la sostenibilidad\",G44=\"La actividad sí contribuye sustancialmente a la sostenibilidad\"),SUM(B44:D44),0),IF(AND('Base-datos'!$B$720=\"Sí\",'Base-datos'!$B$721=\"Sí\",'Base-datos'!$B$722=\"Sí\"),IF(AND(F44=\"La actividad sí contribuye sustancialmente a la sostenibilidad\",G44=\"La actividad sí contribuye sustancialmente a la sostenibilidad\",E44=\"La actividad sí contribuye sustancialmente a la sostenibilidad\"),SUM(B44:D44),0),IF(AND('Base-datos'!$B$720=\"\",'Base-datos'!$B$721=\"Sí\",'Base-datos'!$B$722=\"\"),IF(G44=\"La actividad sí contribuye sustancialmente a la sostenibilidad\",SUM(B44:D44),0),IF(AND('Base-datos'!$B$720=\"\",'Base-datos'!$B$721=\"\",'Base-datos'!$B$722=\"Sí\"),IF(E44=\"La actividad sí contribuye sustancialmente a la sostenibilidad\",SUM(B44:D44),0),IF(AND('Base-datos'!$B$720=\"\",'Base-datos'!$B$721=\"Sí\",'Base-datos'!$B$722=\"Sí\"),IF(AND(G44=\"La actividad sí contribuye sustancialmente a la sostenibilidad\",E44=\"La actividad sí contribuye sustancialmente a la sostenibilidad\"),SUM(B44:D44),0),IF(AND('Base-datos'!$B$720=\"Sí\",'Base-datos'!$B$721=\"\",'Base-datos'!$B$722=\"Sí\"),IF(AND(F44=\"La actividad sí contribuye sustancialmente a la sostenibilidad\",E44=\"La actividad sí contribuye sustancialmente a la sostenibilidad\"),SUM(B44:D44),0),\"Por definir\"))))))))","v":"Por definir"}]
[{"$f":"Forestal!$C30","v":"Seleccione"},{"$f":"IF(Forestal!$E30=Empresas!B$12,Forestal!$B30,\"\")","v":""},{"$f":"IF(Forestal!$E30=Empresas!C$12,Forestal!$B30,\"\")","v":""},{"$f":"IF(Forestal!$E30=Empresas!D$12,Forestal!$B30,\"\")","v":""},{"$f":"_xlfn.XLOOKUP(A45,'Base-datos'!$B$517:$B$520,'Base-datos'!$F$517:$F$520)","v":{"$error":"#N/A"}},{"$f":"_xlfn.XLOOKUP(A45,'Base-datos'!$B$517:$B$520,'Base-datos'!$C$517:$C$520)","v":{"$error":"#N/A"}},{"$f":"_xlfn.XLOOKUP(A45,'Base-datos'!$B$517:$B$520,'Base-datos'!$D$517:$D$520)","v":{"$error":"#N/A"}},null,null,{"$f":"IF(OR(H$35=\"La actividad no cumple con el total de los criterios de No Daño Significativo\",I$35=\"El sector no cumple con las salvaguardas mínimas\"),\"\",IF(AND('Base-datos'!$B$720=\"Sí\",'Base-datos'!$B$721=\"\",'Base-datos'!$B$722=\"\"),IF(F45=\"La actividad sí contribuye sustancialmente a la sostenibilidad\",SUM(B45:D45),0),IF(AND('Base-datos'!$B$720=\"Sí\",'Base-datos'!$B$721=\"Sí\",'Base-datos'!$B$722=\"\"),IF(AND(F45=\"La actividad sí contribuye sustancialmente a la sostenibilidad\",G45=\"La actividad sí contribuye sustancialmente a la sostenibilidad\"),SUM(B45:D45),0),IF(AND('Base-datos'!$B$720=\"Sí\",'Base-datos'!$B$721=\"Sí\",'Base-datos'!$B$722=\"Sí\"),IF(AND(F45=\"La actividad sí contribuye sustancialmente a la sostenibilidad\",G45=\"La actividad sí contribuye sustancialmente a la sostenibilidad\",E45=\"La actividad sí contribuye sustancialmente a la sostenibilidad\"),SUM(B45:D45),0),IF(AND('Base-datos'!$B$720=\"\",'Base-datos'!$B$721=\"Sí\",'Base-datos'!$B$722=\"\"),IF(G45=\"La actividad sí contribuye sustancialmente a la sostenibilidad\",SUM(B45:D45),0),IF(AND('Base-datos'!$B$720=\"\",'Base-datos'!$B$721=\"\",'Base-datos'!$B$722=\"Sí\"),IF(E45=\"La actividad sí contribuye sustancialmente a la sostenibilidad\",SUM(B45:D45),0),IF(AND('Base-datos'!$B$720=\"\",'Base-datos'!$B$721=\"Sí\",'Base-datos'!$B$722=\"Sí\"),IF(AND(G45=\"La actividad sí contribuye sustancialmente a la sostenibilidad\",E45=\"La actividad sí contribuye sustancialmente a la sostenibilidad\"),SUM(B45:D45),0),IF(AND('Base-datos'!$B$720=\"Sí\",'Base-datos'!$B$721=\"\",'Base-datos'!$B$722=\"Sí\"),IF(AND(F45=\"La actividad sí contribuye sustancialmente a la sostenibilidad\",E45=\"La actividad sí contribuye sustancialmente a la sostenibilidad\"),SUM(B45:D45),0),\"Por definir\"))))))))","v":"Por definir"}]
[{"$f":"Forestal!$C32","v":"Seleccione"},{"$f":"IF(Forestal!$E32=Empresas!B$12,Forestal!$B32,\"\")","v":""},{"$f":"IF(Forestal!$E32=Empresas!C$12,Forestal!$B32,\"\")","v":""},{"$f":"IF(Forestal!$E32=Empresas!D$12,Forestal!$B32,\"\")","v":""},{"$f":"_xlfn.XLOOKUP(A46,'Base-datos'!$B$517:$B$520,'Base-datos'!$F$517:$F$520)","v":{"$error":"#N/A"}},{"$f":"_xlfn.XLOOKUP(A46,'Base-datos'!$B$517:$B$520,'Base-datos'!$C$517:$C$520)","v":{"$error":"#N/A"}},{"$f":"_xlfn.XLOOKUP(A46,'Base-datos'!$B$517:$B$520,'Base-datos'!$D$517:$D$520)","v":{"$error":"#N/A"}},null,null,{"$f":"IF(OR(H$35=\"La actividad no cumple con el total de los criterios de No Daño Significativo\",I$35=\"El sector no cumple con las salvaguardas mínimas\"),\"\",IF(AND('Base-datos'!$B$720=\"Sí\",'Base-datos'!$B$721=\"\",'Base-datos'!$B$722=\"\"),IF(F46=\"La actividad sí contribuye sustancialmente a la sostenibilidad\",SUM(B46:D46),0),IF(AND('Base-datos'!$B$720=\"Sí\",'Base-datos'!$B$721=\"Sí\",'Base-datos'!$B$722=\"\"),IF(AND(F46=\"La actividad sí contribuye sustancialmente a la sostenibilidad\",G46=\"La actividad sí contribuye sustancialmente a la sostenibilidad\"),SUM(B46:D46),0),IF(AND('Base-datos'!$B$720=\"Sí\",'Base-datos'!$B$721=\"Sí\",'Base-datos'!$B$722=\"Sí\"),IF(AND(F46=\"La actividad sí contribuye sustancialmente a la sostenibilidad\",G46=\"La actividad sí contribuye sustancialmente a la sostenibilidad\",E46=\"La actividad sí contribuye sustancialmente a la sostenibilidad\"),SUM(B46:D46),0),IF(AND('Base-datos'!$B$720=\"\",'Base-datos'!$B$721=\"Sí\",'Base-datos'!$B$722=\"\"),IF(G46=\"La actividad sí contribuye sustancialmente a la sostenibilidad\",SUM(B46:D46),0),IF(AND('Base-datos'!$B$720=\"\",'Base-datos'!$B$721=\"\",'Base-datos'!$B$722=\"Sí\"),IF(E46=\"La actividad sí contribuye sustancialmente a la sostenibilidad\",SUM(B46:D46),0),IF(AND('Base-datos'!$B$720=\"\",'Base-datos'!$B$721=\"Sí\",'Base-datos'!$B$722=\"Sí\"),IF(AND(G46=\"La actividad sí contribuye sustancialmente a la sostenibilidad\",E46=\"La actividad sí contribuye sustancialmente a la sostenibilidad\"),SUM(B46:D46),0),IF(AND('Base-datos'!$B$720=\"Sí\",'Base-datos'!$B$721=\"\",'Base-datos'!$B$722=\"Sí\"),IF(AND(F46=\"La actividad sí contribuye sustancialmente a la sostenibilidad\",E46=\"La actividad sí contribuye sustancialmente a la sostenibilidad\"),SUM(B46:D46),0),\"Por definir\"))))))))","v":"Por definir"}]
[{"$f":"Forestal!$C34","v":"Seleccione"},{"$f":"IF(Forestal!$E34=Empresas!B$12,Forestal!$B34,\"\")","v":""},{"$f":"IF(Forestal!$E34=Empresas!C$12,Forestal!$B34,\"\")","v":""},{"$f":"IF(Forestal!$E34=Empresas!D$12,Forestal!$B34,\"\")","v":""},{"$f":"_xlfn.XLOOKUP(A47,'Base-datos'!$B$517:$B$520,'Base-datos'!$F$517:$F$520)","v":{"$error":"#N/A"}},{"$f":"_xlfn.XLOOKUP(A47,'Base-datos'!$B$517:$B$520,'Base-datos'!$C$517:$C$520)","v":{"$error":"#N/A"}},{"$f":"_xlfn.XLOOKUP(A47,'Base-datos'!$B$517:$B$520,'Base-datos'!$D$517:$D$520)","v":{"$error":"#N/A"}},null,null,{"$f":"IF(OR(H$35=\"La actividad no cumple con el total de los criterios de No Daño Significativo\",I$35=\"El sector no cumple con las salvaguardas mínimas\"),\"\",IF(AND('Base-datos'!$B$720=\"Sí\",'Base-datos'!$B$721=\"\",'Base-datos'!$B$722=\"\"),IF(F47=\"La actividad sí contribuye sustancialmente a la sostenibilidad\",SUM(B47:D47),0),IF(AND('Base-datos'!$B$720=\"Sí\",'Base-datos'!$B$721=\"Sí\",'Base-datos'!$B$722=\"\"),IF(AND(F47=\"La actividad sí contribuye sustancialmente a la sostenibilidad\",G47=\"La actividad sí contribuye sustancialmente a la sostenibilidad\"),SUM(B47:D47),0),IF(AND('Base-datos'!$B$720=\"Sí\",'Base-datos'!$B$721=\"Sí\",'Base-datos'!$B$722=\"Sí\"),IF(AND(F47=\"La actividad sí contribuye sustancialmente a la sostenibilidad\",G47=\"La actividad sí contribuye sustancialmente a la sostenibilidad\",E47=\"La actividad sí contribuye sustancialmente a la sostenibilidad\"),SUM(B47:D47),0),IF(AND('Base-datos'!$B$720=\"\",'Base-datos'!$B$721=\"Sí\",'Base-datos'!$B$722=\"\"),IF(G47=\"La actividad sí contribuye sustancialmente a la sostenibilidad\",SUM(B47:D47),0),IF(AND('Base-datos'!$B$720=\"\",'Base-datos'!$B$721=\"\",'Base-datos'!$B$722=\"Sí\"),IF(E47=\"La actividad sí contribuye sustancialmente a la sostenibilidad\",SUM(B47:D47),0),IF(AND('Base-datos'!$B$720=\"\",'Base-datos'!$B$721=\"Sí\",'Base-datos'!$B$722=\"Sí\"),IF(AND(G47=\"La actividad sí contribuye sustancialmente a la sostenibilidad\",E47=\"La actividad sí contribuye sustancialmente a la sostenibilidad\"),SUM(B47:D47),0),IF(AND('Base-datos'!$B$720=\"Sí\",'Base-datos'!$B$721=\"\",'Base-datos'!$B$722=\"Sí\"),IF(AND(F47=\"La actividad sí contribuye sustancialmente a la sostenibilidad\",E47=\"La actividad sí contribuye sustancialmente a la sostenibilidad\"),SUM(B47:D47),0),\"Por definir\"))))))))","v":"Por definir"}]
[{"$f":"Forestal!$C36","v":"Seleccione"},{"$f":"IF(Forestal!$E36=Empresas!B$12,Forestal!$B36,\"\")","v":""},{"$f":"IF(Forestal!$E36=Empresas!C$12,Forestal!$B36,\"\")","v":""},{"$f":"IF(Forestal!$E36=Empresas!D$12,Forestal!$B36,\"\")","v":""},{"$f":"_xlfn.XLOOKUP(A48,'Base-datos'!$B$517:$B$520,'Base-datos'!$F$517:$F$520)","v":{"$error":"#N/A"}},{"$f":"_xlfn.XLOOKUP(A48,'Base-datos'!$B$517:$B$520,'Base-datos'!$C$517:$C$520)","v":{"$error":"#N/A"}},{"$f":"_xlfn.XLOOKUP(A48,'Base-datos'!$B$517:$B$520,'Base-datos'!$D$517:$D$520)","v":{"$error":"#N/A"}},null,null,{"$f":"IF(OR(H$35=\"La actividad no cumple con el total de los criterios de No Daño Significativo\",I$35=\"El sector no cumple con las salvaguardas mínimas\"),\"\",IF(AND('Base-datos'!$B$720=\"Sí\",'Base-datos'!$B$721=\"\",'Base-datos'!$B$722=\"\"),IF(F48=\"La actividad sí contribuye sustancialmente a la sostenibilidad\",SUM(B48:D48),0),IF(AND('Base-datos'!$B$720=\"Sí\",'Base-datos'!$B$721=\"Sí\",'Base-datos'!$B$722=\"\"),IF(AND(F48=\"La actividad sí contribuye sustancialmente a la sostenibilidad\",G48=\"La actividad sí contribuye sustancialmente a la sostenibilidad\"),SUM(B48:D48),0),IF(AND('Base-datos'!$B$720=\"Sí\",'Base-datos'!$B$721=\"Sí\",'Base-datos'!$B$722=\"Sí\"),IF(AND(F48=\"La actividad sí contribuye sustancialmente a la sostenibilidad\",G48=\"La actividad sí contribuye sustancialmente a la sostenibilidad\",E48=\"La actividad sí contribuye sustancialmente a la sostenibilidad\"),SUM(B48:D48),0),IF(AND('Base-datos'!$B$720=\"\",'Base-datos'!$B$721=\"Sí\",'Base-datos'!$B$722=\"\"),IF(G48=\"La actividad sí contribuye sustancialmente a la sostenibilidad\",SUM(B48:D48),0),IF(AND('Base-datos'!$B$720=\"\",'Base-datos'!$B$721=\"\",'Base-datos'!$B$722=\"Sí\"),IF(E48=\"La actividad sí contribuye sustancialmente a la sostenibilidad\",SUM(B48:D48),0),IF(AND('Base-datos'!$B$720=\"\",'Base-datos'!$B$721=\"Sí\",'Base-datos'!$B$722=\"Sí\"),IF(AND(G48=\"La actividad sí contribuye sustancialmente a la sostenibilidad\",E48=\"La actividad sí contribuye sustancialmente a la sostenibilidad\"),SUM(B48:D48),0),IF(AND('Base-datos'!$B$720=\"Sí\",'Base-datos'!$B$721=\"\",'Base-datos'!$B$722=\"Sí\"),IF(AND(F48=\"La actividad sí contribuye sustancialmente a la sostenibilidad\",E48=\"La actividad sí contribuye sustancialmente a la sostenibilidad\"),SUM(B48:D48),0),\"Por definir\"))))))))","v":"Por definir"}]
[{"$f":"Forestal!$C38","v":"Seleccione"},{"$f":"IF(Forestal!$E38=Empresas!B$12,Forestal!$B38,\"\")","v":""},{"$f":"IF(Forestal!$E38=Empresas!C$12,Forestal!$B38,\"\")","v":""},{"$f":"IF(Forestal!$E38=Empresas!D$12,Forestal!$B38,\"\")","v":""},{"$f":"_xlfn.XLOOKUP(A49,'Base-datos'!$B$517:$B$520,'Base-datos'!$F$517:$F$520)","v":{"$error":"#N/A"}},{"$f":"_xlfn.XLOOKUP(A49,'Base-datos'!$B$517:$B$520,'Base-datos'!$C$517:$C$520)","v":{"$error":"#N/A"}},{"$f":"_xlfn.XLOOKUP(A49,'Base-datos'!$B$517:$B$520,'Base-datos'!$D$517:$D$520)","v":{"$error":"#N/A"}},null,null,{"$f":"IF(OR(H$35=\"La actividad no cumple con el total de los criterios de No Daño Significativo\",I$35=\"El sector no cumple con las salvaguardas mínimas\"),\"\",IF(AND('Base-datos'!$B$720=\"Sí\",'Base-datos'!$B$721=\"\",'Base-datos'!$B$722=\"\"),IF(F49=\"La actividad sí contribuye sustancialmente a la sostenibilidad\",SUM(B49:D49),0),IF(AND('Base-datos'!$B$720=\"Sí\",'Base-datos'!$B$721=\"Sí\",'Base-datos'!$B$722=\"\"),IF(AND(F49=\"La actividad sí contribuye sustancialmente a la sostenibilidad\",G49=\"La actividad sí contribuye sustancialmente a la sostenibilidad\"),SUM(B49:D49),0),IF(AND('Base-datos'!$B$720=\"Sí\",'Base-datos'!$B$721=\"Sí\",'Base-datos'!$B$722=\"Sí\"),IF(AND(F49=\"La actividad sí contribuye sustancialmente a la sostenibilidad\",G49=\"La actividad sí contribuye sustancialmente a la sostenibilidad\",E49=\"La actividad sí contribuye sustancialmente a la sostenibilidad\"),SUM(B49:D49),0),IF(AND('Base-datos'!$B$720=\"\",'Base-datos'!$B$721=\"Sí\",'Base-datos'!$B$722=\"\"),IF(G49=\"La actividad sí contribuye sustancialmente a la sostenibilidad\",SUM(B49:D49),0),IF(AND('Base-datos'!$B$720=\"\",'Base-datos'!$B$721=\"\",'Base-datos'!$B$722=\"Sí\"),IF(E49=\"La actividad sí contribuye sustancialmente a la sostenibilidad\",SUM(B49:D49),0),IF(AND('Base-datos'!$B$720=\"\",'Base-datos'!$B$721=\"Sí\",'Base-datos'!$B$722=\"Sí\"),IF(AND(G49=\"La actividad sí contribuye sustancialmente a la sostenibilidad\",E49=\"La actividad sí contribuye sustancialmente a la sostenibilidad\"),SUM(B49:D49),0),IF(AND('Base-datos'!$B$720=\"Sí\",'Base-datos'!$B$721=\"\",'Base-datos'!$B$722=\"Sí\"),IF(AND(F49=\"La actividad sí contribuye sustancialmente a la sostenibilidad\",E49=\"La actividad sí contribuye sustancialmente a la sostenibilidad\"),SUM(B49:D49),0),\"Por definir\"))))))))","v":"Por definir"}]
[{"$f":"Forestal!$C40","v":"Seleccione"},{"$f":"IF(Forestal!$E40=Empresas!B$12,Forestal!$B40,\"\")","v":""},{"$f":"IF(Forestal!$E40=Empresas!C$12,Forestal!$B40,\"\")","v":""},{"$f":"IF(Forestal!$E40=Empresas!D$12,Forestal!$B40,\"\")","v":""},{"$f":"_xlfn.XLOOKUP(A50,'Base-datos'!$B$517:$B$520,'Base-datos'!$F$517:$F$520)","v":{"$error":"#N/A"}},{"$f":"_xlfn.XLOOKUP(A50,'Base-datos'!$B$517:$B$520,'Base-datos'!$C$517:$C$520)","v":{"$error":"#N/A"}},{"$f":"_xlfn.XLOOKUP(A50,'Base-datos'!$B$517:$B$520,'Base-datos'!$D$517:$D$520)","v":{"$error":"#N/A"}},null,null,{"$f":"IF(OR(H$35=\"La actividad no cumple con el total de los criterios de No Daño Significativo\",I$35=\"El sector no cumple con las salvaguardas mínimas\"),\"\",IF(AND('Base-datos'!$B$720=\"Sí\",'Base-datos'!$B$721=\"\",'Base-datos'!$B$722=\"\"),IF(F50=\"La actividad sí contribuye sustancialmente a la sostenibilidad\",SUM(B50:D50),0),IF(AND('Base-datos'!$B$720=\"Sí\",'Base-datos'!$B$721=\"Sí\",'Base-datos'!$B$722=\"\"),IF(AND(F50=\"La actividad sí contribuye sustancialmente a la sostenibilidad\",G50=\"La actividad sí contribuye sustancialmente a la sostenibilidad\"),SUM(B50:D50),0),IF(AND('Base-datos'!$B$720=\"Sí\",'Base-datos'!$B$721=\"Sí\",'Base-datos'!$B$722=\"Sí\"),IF(AND(F50=\"La actividad sí contribuye sustancialmente a la sostenibilidad\",G50=\"La actividad sí contribuye sustancialmente a la sostenibilidad\",E50=\"La actividad sí contribuye sustancialmente a la sostenibilidad\"),SUM(B50:D50),0),IF(AND('Base-datos'!$B$720=\"\",'Base-datos'!$B$721=\"Sí\",'Base-datos'!$B$722=\"\"),IF(G50=\"La actividad sí contribuye sustancialmente a la sostenibilidad\",SUM(B50:D50),0),IF(AND('Base-datos'!$B$720=\"\",'Base-datos'!$B$721=\"\",'Base-datos'!$B$722=\"Sí\"),IF(E50=\"La actividad sí contribuye sustancialmente a la sostenibilidad\",SUM(B50:D50),0),IF(AND('Base-datos'!$B$720=\"\",'Base-datos'!$B$721=\"Sí\",'Base-datos'!$B$722=\"Sí\"),IF(AND(G50=\"La actividad sí contribuye sustancialmente a la sostenibilidad\",E50=\"La actividad sí contribuye sustancialmente a la sostenibilidad\"),SUM(B50:D50),0),IF(AND('Base-datos'!$B$720=\"Sí\",'Base-datos'!$B$721=\"\",'Base-datos'!$B$722=\"Sí\"),IF(AND(F50=\"La actividad sí contribuye sustancialmente a la sostenibilidad\",E50=\"La actividad sí contribuye sustancialmente a la sostenibilidad\"),SUM(B50:D50),0),\"Por definir\"))))))))","v":"Por definir"}]
[{"$f":"Forestal!$C42","v":"Seleccione"},{"$f":"IF(Forestal!$E42=Empresas!B$12,Forestal!$B42,\"\")","v":""},{"$f":"IF(Forestal!$E42=Empresas!C$12,Forestal!$B42,\"\")","v":""},{"$f":"IF(Forestal!$E42=Empresas!D$12,Forestal!$B42,\"\")","v":""},{"$f":"_xlfn.XLOOKUP(A51,'Base-datos'!$B$517:$B$520,'Base-datos'!$F$517:$F$520)","v":{"$error":"#N/A"}},{"$f":"_xlfn.XLOOKUP(A51,'Base-datos'!$B$517:$B$520,'Base-datos'!$C$517:$C$520)","v":{"$error":"#N/A"}},{"$f":"_xlfn.XLOOKUP(A51,'Base-datos'!$B$517:$B$520,'Base-datos'!$D$517:$D$520)","v":{"$error":"#N/A"}},null,null,{"$f":"IF(OR(H$35=\"La actividad no cumple con el total de los criterios de No Daño Significativo\",I$35=\"El sector no cumple con las salvaguardas mínimas\"),\"\",IF(AND('Base-datos'!$B$720=\"Sí\",'Base-datos'!$B$721=\"\",'Base-datos'!$B$722=\"\"),IF(F51=\"La actividad sí contribuye sustancialmente a la sostenibilidad\",SUM(B51:D51),0),IF(AND('Base-datos'!$B$720=\"Sí\",'Base-datos'!$B$721=\"Sí\",'Base-datos'!$B$722=\"\"),IF(AND(F51=\"La actividad sí contribuye sustancialmente a la sostenibilidad\",G51=\"La actividad sí contribuye sustancialmente a la sostenibilidad\"),SUM(B51:D51),0),IF(AND('Base-datos'!$B$720=\"Sí\",'Base-datos'!$B$721=\"Sí\",'Base-datos'!$B$722=\"Sí\"),IF(AND(F51=\"La actividad sí contribuye sustancialmente a la sostenibilidad\",G51=\"La actividad sí contribuye sustancialmente a la sostenibilidad\",E51=\"La actividad sí contribuye sustancialmente a la sostenibilidad\"),SUM(B51:D51),0),IF(AND('Base-datos'!$B$720=\"\",'Base-datos'!$B$721=\"Sí\",'Base-datos'!$B$722=\"\"),IF(G51=\"La actividad sí contribuye sustancialmente a la sostenibilidad\",SUM(B51:D51),0),IF(AND('Base-datos'!$B$720=\"\",'Base-datos'!$B$721=\"\",'Base-datos'!$B$722=\"Sí\"),IF(E51=\"La actividad sí contribuye sustancialmente a la sostenibilidad\",SUM(B51:D51),0),IF(AND('Base-datos'!$B$720=\"\",'Base-datos'!$B$721=\"Sí\",'Base-datos'!$B$722=\"Sí\"),IF(AND(G51=\"La actividad sí contribuye sustancialmente a la sostenibilidad\",E51=\"La actividad sí contribuye sustancialmente a la sostenibilidad\"),SUM(B51:D51),0),IF(AND('Base-datos'!$B$720=\"Sí\",'Base-datos'!$B$721=\"\",'Base-datos'!$B$722=\"Sí\"),IF(AND(F51=\"La actividad sí contribuye sustancialmente a la sostenibilidad\",E51=\"La actividad sí contribuye sustancialmente a la sostenibilidad\"),SUM(B51:D51),0),\"Por definir\"))))))))","v":"Por definir"}]
[{"$f":"Forestal!$C44","v":"Seleccione"},{"$f":"IF(Forestal!$E44=Empresas!B$12,Forestal!$B44,\"\")","v":""},{"$f":"IF(Forestal!$E44=Empresas!C$12,Forestal!$B44,\"\")","v":""},{"$f":"IF(Forestal!$E44=Empresas!D$12,Forestal!$B44,\"\")","v":""},{"$f":"_xlfn.XLOOKUP(A52,'Base-datos'!$B$517:$B$520,'Base-datos'!$F$517:$F$520)","v":{"$error":"#N/A"}},{"$f":"_xlfn.XLOOKUP(A52,'Base-datos'!$B$517:$B$520,'Base-datos'!$C$517:$C$520)","v":{"$error":"#N/A"}},{"$f":"_xlfn.XLOOKUP(A52,'Base-datos'!$B$517:$B$520,'Base-datos'!$D$517:$D$520)","v":{"$error":"#N/A"}},null,null,{"$f":"IF(OR(H$35=\"La actividad no cumple con el total de los criterios de No Daño Significativo\",I$35=\"El sector no cumple con las salvaguardas mínimas\"),\"\",IF(AND('Base-datos'!$B$720=\"Sí\",'Base-datos'!$B$721=\"\",'Base-datos'!$B$722=\"\"),IF(F52=\"La actividad sí contribuye sustancialmente a la sostenibilidad\",SUM(B52:D52),0),IF(AND('Base-datos'!$B$720=\"Sí\",'Base-datos'!$B$721=\"Sí\",'Base-datos'!$B$722=\"\"),IF(AND(F52=\"La actividad sí contribuye sustancialmente a la sostenibilidad\",G52=\"La actividad sí contribuye sustancialmente a la sostenibilidad\"),SUM(B52:D52),0),IF(AND('Base-datos'!$B$720=\"Sí\",'Base-datos'!$B$721=\"Sí\",'Base-datos'!$B$722=\"Sí\"),IF(AND(F52=\"La actividad sí contribuye sustancialmente a la sostenibilidad\",G52=\"La actividad sí contribuye sustancialmente a la sostenibilidad\",E52=\"La actividad sí contribuye sustancialmente a la sostenibilidad\"),SUM(B52:D52),0),IF(AND('Base-datos'!$B$720=\"\",'Base-datos'!$B$721=\"Sí\",'Base-datos'!$B$722=\"\"),IF(G52=\"La actividad sí contribuye sustancialmente a la sostenibilidad\",SUM(B52:D52),0),IF(AND('Base-datos'!$B$720=\"\",'Base-datos'!$B$721=\"\",'Base-datos'!$B$722=\"Sí\"),IF(E52=\"La actividad sí contribuye sustancialmente a la sostenibilidad\",SUM(B52:D52),0),IF(AND('Base-datos'!$B$720=\"\",'Base-datos'!$B$721=\"Sí\",'Base-datos'!$B$722=\"Sí\"),IF(AND(G52=\"La actividad sí contribuye sustancialmente a la sostenibilidad\",E52=\"La actividad sí contribuye sustancialmente a la sostenibilidad\"),SUM(B52:D52),0),IF(AND('Base-datos'!$B$720=\"Sí\",'Base-datos'!$B$721=\"\",'Base-datos'!$B$722=\"Sí\"),IF(AND(F52=\"La actividad sí contribuye sustancialmente a la sostenibilidad\",E52=\"La actividad sí contribuye sustancialmente a la sostenibilidad\"),SUM(B52:D52),0),\"Por definir\"))))))))","v":"Por definir"}]
[{"$f":"Forestal!$C46","v":"Seleccione"},{"$f":"IF(Forestal!$E46=Empresas!B$12,Forestal!$B46,\"\")","v":""},{"$f":"IF(Forestal!$E46=Empresas!C$12,Forestal!$B46,\"\")","v":""},{"$f":"IF(Forestal!$E46=Empresas!D$12,Forestal!$B46,\"\")","v":""},{"$f":"_xlfn.XLOOKUP(A53,'Base-datos'!$B$517:$B$520,'Base-datos'!$F$517:$F$520)","v":{"$error":"#N/A"}},{"$f":"_xlfn.XLOOKUP(A53,'Base-datos'!$B$517:$B$520,'Base-datos'!$C$517:$C$520)","v":{"$error":"#N/A"}},{"$f":"_xlfn.XLOOKUP(A53,'Base-datos'!$B$517:$B$520,'Base-datos'!$D$517:$D$520)","v":{"$error":"#N/A"}},null,null,{"$f":"IF(OR(H$35=\"La actividad no cumple con el total de los criterios de No Daño Significativo\",I$35=\"El sector no cumple con las salvaguardas mínimas\"),\"\",IF(AND('Base-datos'!$B$720=\"Sí\",'Base-datos'!$B$721=\"\",'Base-datos'!$B$722=\"\"),IF(F53=\"La actividad sí contribuye sustancialmente a la sostenibilidad\",SUM(B53:D53),0),IF(AND('Base-datos'!$B$720=\"Sí\",'Base-datos'!$B$721=\"Sí\",'Base-datos'!$B$722=\"\"),IF(AND(F53=\"La actividad sí contribuye sustancialmente a la sostenibilidad\",G53=\"La actividad sí contribuye sustancialmente a la sostenibilidad\"),SUM(B53:D53),0),IF(AND('Base-datos'!$B$720=\"Sí\",'Base-datos'!$B$721=\"Sí\",'Base-datos'!$B$722=\"Sí\"),IF(AND(F53=\"La actividad sí contribuye sustancialmente a la sostenibilidad\",G53=\"La actividad sí contribuye sustancialmente a la sostenibilidad\",E53=\"La actividad sí contribuye sustancialmente a la sostenibilidad\"),SUM(B53:D53),0),IF(AND('Base-datos'!$B$720=\"\",'Base-datos'!$B$721=\"Sí\",'Base-datos'!$B$722=\"\"),IF(G53=\"La actividad sí contribuye sustancialmente a la sostenibilidad\",SUM(B53:D53),0),IF(AND('Base-datos'!$B$720=\"\",'Base-datos'!$B$721=\"\",'Base-datos'!$B$722=\"Sí\"),IF(E53=\"La actividad sí contribuye sustancialmente a la sostenibilidad\",SUM(B53:D53),0),IF(AND('Base-datos'!$B$720=\"\",'Base-datos'!$B$721=\"Sí\",'Base-datos'!$B$722=\"Sí\"),IF(AND(G53=\"La actividad sí contribuye sustancialmente a la sostenibilidad\",E53=\"La actividad sí contribuye sustancialmente a la sostenibilidad\"),SUM(B53:D53),0),IF(AND('Base-datos'!$B$720=\"Sí\",'Base-datos'!$B$721=\"\",'Base-datos'!$B$722=\"Sí\"),IF(AND(F53=\"La actividad sí contribuye sustancialmente a la sostenibilidad\",E53=\"La actividad sí contribuye sustancialmente a la sostenibilidad\"),SUM(B53:D53),0),\"Por definir\"))))))))","v":"Por definir"}]
[{"$f":"Forestal!$C48","v":"Seleccione"},{"$f":"IF(Forestal!$E48=Empresas!B$12,Forestal!$B48,\"\")","v":""},{"$f":"IF(Forestal!$E48=Empresas!C$12,Forestal!$B48,\"\")","v":""},{"$f":"IF(Forestal!$E48=Empresas!D$12,Forestal!$B48,\"\")","v":""},{"$f":"_xlfn.XLOOKUP(A54,'Base-datos'!$B$517:$B$520,'Base-datos'!$F$517:$F$520)","v":{"$error":"#N/A"}},{"$f":"_xlfn.XLOOKUP(A54,'Base-datos'!$B$517:$B$520,'Base-datos'!$C$517:$C$520)","v":{"$error":"#N/A"}},{"$f":"_xlfn.XLOOKUP(A54,'Base-datos'!$B$517:$B$520,'Base-datos'!$D$517:$D$520)","v":{"$error":"#N/A"}},null,null,{"$f":"IF(OR(H$35=\"La actividad no cumple con el total de los criterios de No Daño Significativo\",I$35=\"El sector no cumple con las salvaguardas mínimas\"),\"\",IF(AND('Base-datos'!$B$720=\"Sí\",'Base-datos'!$B$721=\"\",'Base-datos'!$B$722=\"\"),IF(F54=\"La actividad sí contribuye sustancialmente a la sostenibilidad\",SUM(B54:D54),0),IF(AND('Base-datos'!$B$720=\"Sí\",'Base-datos'!$B$721=\"Sí\",'Base-datos'!$B$722=\"\"),IF(AND(F54=\"La actividad sí contribuye sustancialmente a la sostenibilidad\",G54=\"La actividad sí contribuye sustancialmente a la sostenibilidad\"),SUM(B54:D54),0),IF(AND('Base-datos'!$B$720=\"Sí\",'Base-datos'!$B$721=\"Sí\",'Base-datos'!$B$722=\"Sí\"),IF(AND(F54=\"La actividad sí contribuye sustancialmente a la sostenibilidad\",G54=\"La actividad sí contribuye sustancialmente a la sostenibilidad\",E54=\"La actividad sí contribuye sustancialmente a la sostenibilidad\"),SUM(B54:D54),0),IF(AND('Base-datos'!$B$720=\"\",'Base-datos'!$B$721=\"Sí\",'Base-datos'!$B$722=\"\"),IF(G54=\"La actividad sí contribuye sustancialmente a la sostenibilidad\",SUM(B54:D54),0),IF(AND('Base-datos'!$B$720=\"\",'Base-datos'!$B$721=\"\",'Base-datos'!$B$722=\"Sí\"),IF(E54=\"La actividad sí contribuye sustancialmente a la sostenibilidad\",SUM(B54:D54),0),IF(AND('Base-datos'!$B$720=\"\",'Base-datos'!$B$721=\"Sí\",'Base-datos'!$B$722=\"Sí\"),IF(AND(G54=\"La actividad sí contribuye sustancialmente a la sostenibilidad\",E54=\"La actividad sí contribuye sustancialmente a la sostenibilidad\"),SUM(B54:D54),0),IF(AND('Base-datos'!$B$720=\"Sí\",'Base-datos'!$B$721=\"\",'Base-datos'!$B$722=\"Sí\"),IF(AND(F54=\"La actividad sí contribuye sustancialmente a la sostenibilidad\",E54=\"La actividad sí contribuye sustancialmente a la sostenibilidad\"),SUM(B54:D54),0),\"Por definir\"))))))))","v":"Por definir"}]
["Ganadería",null,null,null,null,null,null,null,null,{"$f":"SUM(IF(FREQUENCY(MATCH(A56:A75, A56:A75, 0), MATCH(A56:A75, A56:A75, 0)) > 0, IF(NOT(ISERROR(J56:J75)), J56:J75, 0)))","v":0}]
[{"$f":"Ganadería!$C10","v":"Seleccione"},{"$f":"IF(Ganadería!$E10=Empresas!B$12,Ganadería!$B10,\"\")","v":""},{"$f":"IF(Ganadería!$E10=Empresas!C$12,Ganadería!$B10,\"\")","v":""},{"$f":"IF(Ganadería!$E10=Empresas!D$12,Ganadería!$B10,\"\")","v":""},{"$f":"_xlfn.XLOOKUP(A56,'Base-datos'!$B$510:$B$516,'Base-datos'!$F$510:$F$516)","v":{"$error":"#N/A"}},{"$f":"_xlfn.XLOOKUP(A56,'Base-datos'!$B$510:$B$516,'Base-datos'!$C$510:$C$516)","v":{"$error":"#N/A"}},{"$f":"_xlfn.XLOOKUP(A56,'Base-datos'!$B$510:$B$516,'Base-datos'!$D$510:$D$516)","v":{"$error":"#N/A"}},{"$f":"IF(COUNTIF('Ganadería-NDS'!G9:G59,\"No\")>0,\"La actividad no cumple con el total de los criterios de NDS\",\"La actividad cumple con los criterios de No Daño Significativo\")","v":"La actividad cumple con los criterios de No Daño Significativo"},{"$f":"IF(OR('Salvaguardas mínimas'!$G$10=\"Seleccione\",'Salvaguardas mínimas'!$G$13=\"Seleccione\",'Salvaguardas mínimas'!$G$16=\"Seleccione\",'Salvaguardas mínimas'!$G$7=\"Seleccione\"),\"No se han respondido todas las preguntas\",IF(OR('Salvaguardas mínimas'!$G$10=\"No\",'Salvaguardas mínimas'!$G$13=\"No\",'Salvaguardas mínimas'!$G$16=\"No\",'Salvaguardas mínimas'!$G$7=\"No\"),\"El sector no cumple con las salvaguardas mínimas\",\"La actividad sí cumple con las salvaguardas mínimas\"))","v":"No se han respondido todas las preguntas"},{"$f":"IF(OR(H$56=\"La actividad no cumple con el total de los criterios de No Daño Significativo\",I$56=\"El sector no cumple con las salvaguardas mínimas\"),\"\",IF(AND('Base-datos'!$B$725=\"Sí\",'Base-datos'!$B$726=\"\",'Base-datos'!$B$727=\"\"),IF(F56=\"La actividad sí contribuye sustancialmente a la sostenibilidad\",SUM(B56:D56),0),IF(AND('Base-datos'!$B$725=\"Sí\",'Base-datos'!$B$726=\"Sí\",'Base-datos'!$B$727=\"\"),IF(AND(F56=\"La actividad sí contribuye sustancialmente a la sostenibilidad\",G56=\"La actividad sí contribuye sustancialmente a la sostenibilidad\"),SUM(B56:D56),0),IF(AND('Base-datos'!$B$725=\"Sí\",'Base-datos'!$B$726=\"Sí\",'Base-datos'!$B$727=\"Sí\"),IF(AND(F56=\"La actividad sí contribuye sustancialmente a la sostenibilidad\",G56=\"La actividad sí contribuye sustancialmente a la sostenibilidad\",E56=\"La actividad sí contribuye sustancialmente a la sostenibilidad\"),SUM(B56:D56),0),IF(AND('Base-datos'!$B$725=\"\",'Base-datos'!$B$726=\"Sí\",'Base-datos'!$B$727=\"\"),IF(G56=\"La actividad sí contribuye sustancialmente a la sostenibilidad\",SUM(B56:D56),0),IF(AND('Base-datos'!$B$725=\"\",'Base-datos'!$B$726=\"\",'Base-datos'!$B$727=\"Sí\"),IF(E56=\"La actividad sí contribuye sustancialmente a la sostenibilidad\",SUM(B56:D56),0),IF(AND('Base-datos'!$B$725=\"\",'Base-datos'!$B$726=\"Sí\",'Base-datos'!$B$727=\"Sí\"),IF(AND(G56=\"La actividad sí contribuye sustancialmente a la sostenibilidad\",E56=\"La actividad sí contribuye sustancialmente a la sostenibilidad\"),SUM(B56:D56),0),IF(AND('Base-datos'!$B$725=\"Sí\",'Base-datos'!$B$726=\"\",'Base-datos'!$B$727=\"Sí\"),IF(AND(F56=\"La actividad sí contribuye sustancialmente a la sostenibilidad\",E56=\"La actividad sí contribuye sustancialmente a la sostenibilidad\"),SUM(B56:D56),0),\"Por definir\"))))))))","v":"Por definir"}]
[{"$f":"Ganadería!$C12","v":"Seleccione"},{"$f":"IF(Ganadería!$E12=Empresas!B$12,Ganadería!$B12,\"\")","v":""},{"$f":"IF(Ganadería!$E12=Empresas!C$12,Ganadería!$B12,\"\")","v":""},{"$f":"IF(Ganadería!$E12=Empresas!D$12,Ganadería!$B12,\"\")","v":""},{"$f":"_xlfn.XLOOKUP(A57,'Base-datos'!$B$510:$B$516,'Base-datos'!$F$510:$F$516)","v":{"$error":"#N/A"}},{"$f":"_xlfn.XLOOKUP(A57,'Base-datos'!$B$510:$B$516,'Base-datos'!$C$510:$C$516)","v":{"$error":"#N/A"}},{"$f":"_xlfn.XLOOKUP(A57,'Base-datos'!$B$510:$B$516,'Base-datos'!$D$510:$D$516)","v":{"$error":"#N/A"}},null,null,{"$f":"IF(OR(H$56=\"La actividad no cumple con el total de los criterios de No Daño Significativo\",I$56=\"El sector no cumple con las salvaguardas mínimas\"),\"\",IF(AND('Base-datos'!$B$725=\"Sí\",'Base-datos'!$B$726=\"\",'Base-datos'!$B$727=\"\"),IF(F57=\"La actividad sí contribuye sustancialmente a la sostenibilidad\",SUM(B57:D57),0),IF(AND('Base-datos'!$B$725=\"Sí\",'Base-datos'!$B$726=\"Sí\",'Base-datos'!$B$727=\"\"),IF(AND(F57=\"La actividad sí contribuye sustancialmente a la sostenibilidad\",G57=\"La actividad sí contribuye sustancialmente a la sostenibilidad\"),SUM(B57:D57),0),IF(AND('Base-datos'!$B$725=\"Sí\",'Base-datos'!$B$726=\"Sí\",'Base-datos'!$B$727=\"Sí\"),IF(AND(F57=\"La actividad sí contribuye sustancialmente a la sostenibilidad\",G57=\"La actividad sí contribuye sustancialmente a la sostenibilidad\",E57=\"La actividad sí contribuye sustancialmente a la sostenibilidad\"),SUM(B57:D57),0),IF(AND('Base-datos'!$B$725=\"\",'Base-datos'!$B$726=\"Sí\",'Base-datos'!$B$727=\"\"),IF(G57=\"La actividad sí contribuye sustancialmente a la sostenibilidad\",SUM(B57:D57),0),IF(AND('Base-datos'!$B$725=\"\",'Base-datos'!$B$726=\"\",'Base-datos'!$B$727=\"Sí\"),IF(E57=\"La actividad sí contribuye sustancialmente a la sostenibilidad\",SUM(B57:D57),0),IF(AND('Base-datos'!$B$725=\"\",'Base-datos'!$B$726=\"Sí\",'Base-datos'!$B$727=\"Sí\"),IF(AND(G57=\"La actividad sí contribuye sustancialmente a la sostenibilidad\",E57=\"La actividad sí contribuye sustancialmente a la sostenibilidad\"),SUM(B57:D57),0),IF(AND('Base-datos'!$B$725=\"Sí\",'Base-datos'!$B$726=\"\",'Base-datos'!$B$727=\"Sí\"),IF(AND(F57=\"La actividad sí contribuye sustancialmente a la sostenibilidad\",E57=\"La actividad sí contribuye sustancialmente a la sostenibilidad\"),SUM(B57:D57),0),\"Por definir\"))))))))","v":"Por definir"}]
[{"$f":"Ganadería!$C14","v":"Seleccione"},{"$f":"IF(Ganadería!$E14=Empresas!B$12,Ganadería!$B14,\"\")","v":""},{"$f":"IF(Ganadería!$E14=Empresas!C$12,Ganadería!$B14,\"\")","v":""},{"$f":"IF(Ganadería!$E14=Empresas!D$12,Ganadería!$B14,\"\")","v":""},{"$f":"_xlfn.XLOOKUP(A58,'Base-datos'!$B$510:$B$516,'Base-datos'!$F$510:$F$516)","v":{"$error":"#N/A"}},{"$f":"_xlfn.XLOOKUP(A58,'Base-datos'!$B$510:$B$516,'Base-datos'!$C$510:$C$516)","v":{"$error":"#N/A"}},{"$f":"_xlfn.XLOOKUP(A58,'Base-datos'!$B$510:$B$516,'Base-datos'!$D$510:$D$516)","v":{"$error":"#N/A"}},null,null,{"$f":"IF(OR(H$56=\"La actividad no cumple con el total de los criterios de No Daño Significativo\",I$56=\"El sector no cumple con las salvaguardas mínimas\"),\"\",IF(AND('Base-datos'!$B$725=\"Sí\",'Base-datos'!$B$726=\"\",'Base-datos'!$B$727=\"\"),IF(F58=\"La actividad sí contribuye sustancialmente a la sostenibilidad\",SUM(B58:D58),0),IF(AND('Base-datos'!$B$725=\"Sí\",'Base-datos'!$B$726=\"Sí\",'Base-datos'!$B$727=\"\"),IF(AND(F58=\"La actividad sí contribuye sustancialmente a la sostenibilidad\",G58=\"La actividad sí contribuye sustancialmente a la sostenibilidad\"),SUM(B58:D58),0),IF(AND('Base-datos'!$B$725=\"Sí\",'Base-datos'!$B$726=\"Sí\",'Base-datos'!$B$727=\"Sí\"),IF(AND(F58=\"La actividad sí contribuye sustancialmente a la sostenibilidad\",G58=\"La actividad sí contribuye sustancialmente a la sostenibilidad\",E58=\"La actividad sí contribuye sustancialmente a la sostenibilidad\"),SUM(B58:D58),0),IF(AND('Base-datos'!$B$725=\"\",'Base-datos'!$B$726=\"Sí\",'Base-datos'!$B$727=\"\"),IF(G58=\"La actividad sí contribuye sustancialmente a la sostenibilidad\",SUM(B58:D58),0),IF(AND('Base-datos'!$B$725=\"\",'Base-datos'!$B$726=\"\",'Base-datos'!$B$727=\"Sí\"),IF(E58=\"La actividad sí contribuye sustancialmente a la sostenibilidad\",SUM(B58:D58),0),IF(AND('Base-datos'!$B$725=\"\",'Base-datos'!$B$726=\"Sí\",'Base-datos'!$B$727=\"Sí\"),IF(AND(G58=\"La actividad sí contribuye sustancialmente a la sostenibilidad\",E58=\"La actividad sí contribuye sustancialmente a la sostenibilidad\"),SUM(B58:D58),0),IF(AND('Base-datos'!$B$725=\"Sí\",'Base-datos'!$B$726=\"\",'Base-datos'!$B$727=\"Sí\"),IF(AND(F58=\"La actividad sí contribuye sustancialmente a la sostenibilidad\",E58=\"La actividad sí contribuye sustancialmente a la sostenibilidad\"),SUM(B58:D58),0),\"Por definir\"))))))))","v":"Por definir"}]
[{"$f":"Ganadería!$C16","v":"Seleccione"},{"$f":"IF(Ganadería!$E16=Empresas!B$12,Ganadería!$B16,\"\")","v":""},{"$f":"IF(Ganadería!$E16=Empresas!C$12,Ganadería!$B16,\"\")","v":""},{"$f":"IF(Ganadería!$E16=Empresas!D$12,Ganadería!$B16,\"\")","v":""},{"$f":"_xlfn.XLOOKUP(A59,'Base-datos'!$B$510:$B$516,'Base-datos'!$F$510:$F$516)","v":{"$error":"#N/A"}},{"$f":"_xlfn.XLOOKUP(A59,'Base-datos'!$B$510:$B$516,'Base-datos'!$C$510:$C$516)","v":{"$error":"#N/A"}},{"$f":"_xlfn.XLOOKUP(A59,'Base-datos'!$B$510:$B$516,'Base-datos'!$D$510:$D$516)","v":{"$error":"#N/A"}},null,null,{"$f":"IF(OR(H$56=\"La actividad no cumple con el total de los criterios de No Daño Significativo\",I$56=\"El sector no cumple con las salvaguardas mínimas\"),\"\",IF(AND('Base-datos'!$B$725=\"Sí\",'Base-datos'!$B$726=\"\",'Base-datos'!$B$727=\"\"),IF(F59=\"La actividad sí contribuye sustancialmente a la sostenibilidad\",SUM(B59:D59),0),IF(AND('Base-datos'!$B$725=\"Sí\",'Base-datos'!$B$726=\"Sí\",'Base-datos'!$B$727=\"\"),IF(AND(F59=\"La actividad sí contribuye sustancialmente a la sostenibilidad\",G59=\"La actividad sí contribuye sustancialmente a la sostenibilidad\"),SUM(B59:D59),0),IF(AND('Base-datos'!$B$725=\"Sí\",'Base-datos'!$B$726=\"Sí\",'Base-datos'!$B$727=\"Sí\"),IF(AND(F59=\"La actividad sí contribuye sustancialmente a la sostenibilidad\",G59=\"La actividad sí contribuye sustancialmente a la sostenibilidad\",E59=\"La actividad sí contribuye sustancialmente a la sostenibilidad\"),SUM(B59:D59),0),IF(AND('Base-datos'!$B$725=\"\",'Base-datos'!$B$726=\"Sí\",'Base-datos'!$B$727=\"\"),IF(G59=\"La actividad sí contribuye sustancialmente a la sostenibilidad\",SUM(B59:D59),0),IF(AND('Base-datos'!$B$725=\"\",'Base-datos'!$B$726=\"\",'Base-datos'!$B$727=\"Sí\"),IF(E59=\"La actividad sí contribuye sustancialmente a la sostenibilidad\",SUM(B59:D59),0),IF(AND('Base-datos'!$B$725=\"\",'Base-datos'!$B$726=\"Sí\",'Base-datos'!$B$727=\"Sí\"),IF(AND(G59=\"La actividad sí contribuye sustancialmente a la sostenibilidad\",E59=\"La actividad sí contribuye sustancialmente a la sostenibilidad\"),SUM(B59:D59),0),IF(AND('Base-datos'!$B$725=\"Sí\",'Base-datos'!$B$726=\"\",'Base-datos'!$B$727=\"Sí\"),IF(AND(F59=\"La actividad sí contribuye sustancialmente a la sostenibilidad\",E59=\"La actividad sí contribuye sustancialmente a la sostenibilidad\"),SUM(B59:D59),0),\"Por definir\"))))))))","v":"Por definir"}]
[{"$f":"Ganadería!$C18","v":"Seleccione"},{"$f":"IF(Ganadería!$E18=Empresas!B$12,Ganadería!$B18,\"\")","v":""},{"$f":"IF(Ganadería!$E18=Empresas!C$12,Ganadería!$B18,\"\")","v":""},{"$f":"IF(Ganadería!$E18=Empresas!D$12,Ganadería!$B18,\"\")","v":""},{"$f":"_xlfn.XLOOKUP(A60,'Base-datos'!$B$510:$B$516,'Base-datos'!$F$510:$F$516)","v":{"$error":"#N/A"}},{"$f":"_xlfn.XLOOKUP(A60,'Base-datos'!$B$510:$B$516,'Base-datos'!$C$510:$C$516)","v":{"$error":"#N/A"}},{"$f":"_xlfn.XLOOKUP(A60,'Base-datos'!$B$510:$B$516,'Base-datos'!$D$510:$D$516)","v":{"$error":"#N/A"}},null,null,{"$f":"IF(OR(H$56=\"La actividad no cumple con el total de los criterios de No Daño Significativo\",I$56=\"El sector no cumple con las salvaguardas mínimas\"),\"\",IF(AND('Base-datos'!$B$725=\"Sí\",'Base-datos'!$B$726=\"\",'Base-datos'!$B$727=\"\"),IF(F60=\"La actividad sí contribuye sustancialmente a la sostenibilidad\",SUM(B60:D60),0),IF(AND('Base-datos'!$B$725=\"Sí\",'Base-datos'!$B$726=\"Sí\",'Base-datos'!$B$727=\"\"),IF(AND(F60=\"La actividad sí contribuye sustancialmente a la sostenibilidad\",G60=\"La actividad sí contribuye sustancialmente a la sostenibilidad\"),SUM(B60:D60),0),IF(AND('Base-datos'!$B$725=\"Sí\",'Base-datos'!$B$726=\"Sí\",'Base-datos'!$B$727=\"Sí\"),IF(AND(F60=\"La actividad sí contribuye sustancialmente a la sostenibilidad\",G60=\"La actividad sí contribuye sustancialmente a la sostenibilidad\",E60=\"La actividad sí contribuye sustancialmente a la sostenibilidad\"),SUM(B60:D60),0),IF(AND('Base-datos'!$B$725=\"\",'Base-datos'!$B$726=\"Sí\",'Base-datos'!$B$727=\"\"),IF(G60=\"La actividad sí contribuye sustancialmente a la sostenibilidad\",SUM(B60:D60),0),IF(AND('Base-datos'!$B$725=\"\",'Base-datos'!$B$726=\"\",'Base-datos'!$B$727=\"Sí\"),IF(E60=\"La actividad sí contribuye sustancialmente a la sostenibilidad\",SUM(B60:D60),0),IF(AND('Base-datos'!$B$725=\"\",'Base-datos'!$B$726=\"Sí\",'Base-datos'!$B$727=\"Sí\"),IF(AND(G60=\"La actividad sí contribuye sustancialmente a la sostenibilidad\",E60=\"La actividad sí contribuye sustancialmente a la sostenibilidad\"),SUM(B60:D60),0),IF(AND('Base-datos'!$B$725=\"Sí\",'Base-datos'!$B$726=\"\",'Base-datos'!$B$727=\"Sí\"),IF(AND(F60=\"La actividad sí contribuye sustancialmente a la sostenibilidad\",E60=\"La actividad sí contribuye sustancialmente a la sostenibilidad\"),SUM(B60:D60),0),\"Por definir\"))))))))","v":"Por definir"}]
[{"$f":"Ganadería!$C20","v":"Seleccione"},{"$f":"IF(Ganadería!$E20=Empresas!B$12,Ganadería!$B20,\"\")","v":""},{"$f":"IF(Ganadería!$E20=Empresas!C$12,Ganadería!$B20,\"\")","v":""},{"$f":"IF(Ganadería!$E20=Empresas!D$12,Ganadería!$B20,\"\")","v":""},{"$f":"_xlfn.XLOOKUP(A61,'Base-datos'!$B$510:$B$516,'Base-datos'!$F$510:$F$516)","v":{"$error":"#N/A"}},{"$f":"_xlfn.XLOOKUP(A61,'Base-datos'!$B$510:$B$516,'Base-datos'!$C$510:$C$516)","v":{"$error":"#N/A"}},{"$f":"_xlfn.XLOOKUP(A61,'Base-datos'!$B$510:$B$516,'Base-datos'!$D$510:$D$516)","v":{"$error":"#N/A"}},null,null,{"$f":"IF(OR(H$56=\"La actividad no cumple con el total de los criterios de No Daño Significativo\",I$56=\"El sector no cumple con las salvaguardas mínimas\"),\"\",IF(AND('Base-datos'!$B$725=\"Sí\",'Base-datos'!$B$726=\"\",'Base-datos'!$B$727=\"\"),IF(F61=\"La actividad sí contribuye sustancialmente a la sostenibilidad\",SUM(B61:D61),0),IF(AND('Base-datos'!$B$725=\"Sí\",'Base-datos'!$B$726=\"Sí\",'Base-datos'!$B$727=\"\"),IF(AND(F61=\"La actividad sí contribuye sustancialmente a la sostenibilidad\",G61=\"La actividad sí contribuye sustancialmente a la sostenibilidad\"),SUM(B61:D61),0),IF(AND('Base-datos'!$B$725=\"Sí\",'Base-datos'!$B$726=\"Sí\",'Base-datos'!$B$727=\"Sí\"),IF(AND(F61=\"La actividad sí contribuye sustancialmente a la sostenibilidad\",G61=\"La actividad sí contribuye sustancialmente a la sostenibilidad\",E61=\"La actividad sí contribuye sustancialmente a la sostenibilidad\"),SUM(B61:D61),0),IF(AND('Base-datos'!$B$725=\"\",'Base-datos'!$B$726=\"Sí\",'Base-datos'!$B$727=\"\"),IF(G61=\"La actividad sí contribuye sustancialmente a la sostenibilidad\",SUM(B61:D61),0),IF(AND('Base-datos'!$B$725=\"\",'Base-datos'!$B$726=\"\",'Base-datos'!$B$727=\"Sí\"),IF(E61=\"La actividad sí contribuye sustancialmente a la sostenibilidad\",SUM(B61:D61),0),IF(AND('Base-datos'!$B$725=\"\",'Base-datos'!$B$726=\"Sí\",'Base-datos'!$B$727=\"Sí\"),IF(AND(G61=\"La actividad sí contribuye sustancialmente a la sostenibilidad\",E61=\"La actividad sí contribuye sustancialmente a la sostenibilidad\"),SUM(B61:D61),0),IF(AND('Base-datos'!$B$725=\"Sí\",'Base-datos'!$B$726=\"\",'Base-datos'!$B$727=\"Sí\"),IF(AND(F61=\"La actividad sí contribuye sustancialmente a la sostenibilidad\",E61=\"La actividad sí contribuye sustancialmente a la sostenibilidad\"),SUM(B61:D61),0),\"Por definir\"))))))))","v":"Por definir"}]
[{"$f":"Ganadería!$C22","v":"Seleccione"},{"$f":"IF(Ganadería!$E22=Empresas!B$12,Ganadería!$B22,\"\")","v":""},{"$f":"IF(Ganadería!$E22=Empresas!C$12,Ganadería!$B22,\"\")","v":""},{"$f":"IF(Ganadería!$E22=Empresas!D$12,Ganadería!$B22,\"\")","v":""},{"$f":"_xlfn.XLOOKUP(A62,'Base-datos'!$B$510:$B$516,'Base-datos'!$F$510:$F$516)","v":{"$error":"#N/A"}},{"$f":"_xlfn.XLOOKUP(A62,'Base-datos'!$B$510:$B$516,'Base-datos'!$C$510:$C$516)","v":{"$error":"#N/A"}},{"$f":"_xlfn.XLOOKUP(A62,'Base-datos'!$B$510:$B$516,'Base-datos'!$D$510:$D$516)","v":{"$error":"#N/A"}},null,null,{"$f":"IF(OR(H$56=\"La actividad no cumple con el total de los criterios de No Daño Significativo\",I$56=\"El sector no cumple con las salvaguardas mínimas\"),\"\",IF(AND('Base-datos'!$B$725=\"Sí\",'Base-datos'!$B$726=\"\",'Base-datos'!$B$727=\"\"),IF(F62=\"La actividad sí contribuye sustancialmente a la sostenibilidad\",SUM(B62:D62),0),IF(AND('Base-datos'!$B$725=\"Sí\",'Base-datos'!$B$726=\"Sí\",'Base-datos'!$B$727=\"\"),IF(AND(F62=\"La actividad sí contribuye sustancialmente a la sostenibilidad\",G62=\"La actividad sí contribuye sustancialmente a la sostenibilidad\"),SUM(B62:D62),0),IF(AND('Base-datos'!$B$725=\"Sí\",'Base-datos'!$B$726=\"Sí\",'Base-datos'!$B$727=\"Sí\"),IF(AND(F62=\"La actividad sí contribuye sustancialmente a la sostenibilidad\",G62=\"La actividad sí contribuye sustancialmente a la sostenibilidad\",E62=\"La actividad sí contribuye sustancialmente a la sostenibilidad\"),SUM(B62:D62),0),IF(AND('Base-datos'!$B$725=\"\",'Base-datos'!$B$726=\"Sí\",'Base-datos'!$B$727=\"\"),IF(G62=\"La actividad sí contribuye sustancialmente a la sostenibilidad\",SUM(B62:D62),0),IF(AND('Base-datos'!$B$725=\"\",'Base-datos'!$B$726=\"\",'Base-datos'!$B$727=\"Sí\"),IF(E62=\"La actividad sí contribuye sustancialmente a la sostenibilidad\",SUM(B62:D62),0),IF(AND('Base-datos'!$B$725=\"\",'Base-datos'!$B$726=\"Sí\",'Base-datos'!$B$727=\"Sí\"),IF(AND(G62=\"La actividad sí contribuye sustancialmente a la sostenibilidad\",E62=\"La actividad sí contribuye sustancialmente a la sostenibilidad\"),SUM(B62:D62),0),IF(AND('Base-datos'!$B$725=\"Sí\",'Base-datos'!$B$726=\"\",'Base-datos'!$B$727=\"Sí\"),IF(AND(F62=\"La actividad sí contribuye sustancialmente a la sostenibilidad\",E62=\"La actividad sí contribuye sustancialmente a la sostenibilidad\"),SUM(B62:D62),0),\"Por definir\"))))))))","v":"Por definir"}]
[{"$f":"Ganadería!$C24","v":"Seleccione"},{"$f":"IF(Ganadería!$E24=Empresas!B$12,Ganadería!$B24,\"\")","v":""},{"$f":"IF(Ganadería!$E24=Empresas!C$12,Ganadería!$B24,\"\")","v":""},{"$f":"IF(Ganadería!$E24=Empresas!D$12,Ganadería!$B24,\"\")","v":""},{"$f":"_xlfn.XLOOKUP(A63,'Base-datos'!$B$510:$B$516,'Base-datos'!$F$510:$F$516)","v":{"$error":"#N/A"}},{"$f":"_xlfn.XLOOKUP(A63,'Base-datos'!$B$510:$B$516,'Base-datos'!$C$510:$C$516)","v":{"$error":"#N/A"}},{"$f":"_xlfn.XLOOKUP(A63,'Base-datos'!$B$510:$B$516,'Base-datos'!$D$510:$D$516)","v":{"$error":"#N/A"}},null,null,{"$f":"IF(OR(H$56=\"La actividad no cumple con el total de los criterios de No Daño Significativo\",I$56=\"El sector no cumple con las salvaguardas mínimas\"),\"\",IF(AND('Base-datos'!$B$725=\"Sí\",'Base-datos'!$B$726=\"\",'Base-datos'!$B$727=\"\"),IF(F63=\"La actividad sí contribuye sustancialmente a la sostenibilidad\",SUM(B63:D63),0),IF(AND('Base-datos'!$B$725=\"Sí\",'Base-datos'!$B$726=\"Sí\",'Base-datos'!$B$727=\"\"),IF(AND(F63=\"La actividad sí contribuye sustancialmente a la sostenibilidad\",G63=\"La actividad sí contribuye sustancialmente a la sostenibilidad\"),SUM(B63:D63),0),IF(AND('Base-datos'!$B$725=\"Sí\",'Base-datos'!$B$726=\"Sí\",'Base-datos'!$B$727=\"Sí\"),IF(AND(F63=\"La actividad sí contribuye sustancialmente a la sostenibilidad\",G63=\"La actividad sí contribuye sustancialmente a la sostenibilidad\",E63=\"La actividad sí contribuye sustancialmente a la sostenibilidad\"),SUM(B63:D63),0),IF(AND('Base-datos'!$B$725=\"\",'Base-datos'!$B$726=\"Sí\",'Base-datos'!$B$727=\"\"),IF(G63=\"La actividad sí contribuye sustancialmente a la sostenibilidad\",SUM(B63:D63),0),IF(AND('Base-datos'!$B$725=\"\",'Base-datos'!$B$726=\"\",'Base-datos'!$B$727=\"Sí\"),IF(E63=\"La actividad sí contribuye sustancialmente a la sostenibilidad\",SUM(B63:D63),0),IF(AND('Base-datos'!$B$725=\"\",'Base-datos'!$B$726=\"Sí\",'Base-datos'!$B$727=\"Sí\"),IF(AND(G63=\"La actividad sí contribuye sustancialmente a la sostenibilidad\",E63=\"La actividad sí contribuye sustancialmente a la sostenibilidad\"),SUM(B63:D63),0),IF(AND('Base-datos'!$B$725=\"Sí\",'Base-datos'!$B$726=\"\",'Base-datos'!$B$727=\"Sí\"),IF(AND(F63=\"La actividad sí contribuye sustancialmente a la sostenibilidad\",E63=\"La actividad sí contribuye sustancialmente a la sostenibilidad\"),SUM(B63:D63),0),\"Por definir\"))))))))","v":"Por definir"}]
[{"$f":"Ganadería!$C26","v":"Seleccione"},{"$f":"IF(Ganadería!$E26=Empresas!B$12,Ganadería!$B26,\"\")","v":""},{"$f":"IF(Ganadería!$E26=Empresas!C$12,Ganadería!$B26,\"\")","v":""},{"$f":"IF(Ganadería!$E26=Empresas!D$12,Ganadería!$B26,\"\")","v":""},{"$f":"_xlfn.XLOOKUP(A64,'Base-datos'!$B$510:$B$516,'Base-datos'!$F$510:$F$516)","v":{"$error":"#N/A"}},{"$f":"_xlfn.XLOOKUP(A64,'Base-datos'!$B$510:$B$516,'Base-datos'!$C$510:$C$516)","v":{"$error":"#N/A"}},{"$f":"_xlfn.XLOOKUP(A64,'Base-datos'!$B$510:$B$516,'Base-datos'!$D$510:$D$516)","v":{"$error":"#N/A"}},null,null,{"$f":"IF(OR(H$56=\"La actividad no cumple con el total de los criterios de No Daño Significativo\",I$56=\"El sector no cumple con las salvaguardas mínimas\"),\"\",IF(AND('Base-datos'!$B$725=\"Sí\",'Base-datos'!$B$726=\"\",'Base-datos'!$B$727=\"\"),IF(F64=\"La actividad sí contribuye sustancialmente a la sostenibilidad\",SUM(B64:D64),0),IF(AND('Base-datos'!$B$725=\"Sí\",'Base-datos'!$B$726=\"Sí\",'Base-datos'!$B$727=\"\"),IF(AND(F64=\"La actividad sí contribuye sustancialmente a la sostenibilidad\",G64=\"La actividad sí contribuye sustancialmente a la sostenibilidad\"),SUM(B64:D64),0),IF(AND('Base-datos'!$B$725=\"Sí\",'Base-datos'!$B$726=\"Sí\",'Base-datos'!$B$727=\"Sí\"),IF(AND(F64=\"La actividad sí contribuye sustancialmente a la sostenibilidad\",G64=\"La actividad sí contribuye sustancialmente a la sostenibilidad\",E64=\"La actividad sí contribuye sustancialmente a la sostenibilidad\"),SUM(B64:D64),0),IF(AND('Base-datos'!$B$725=\"\",'Base-datos'!$B$726=\"Sí\",'Base-datos'!$B$727=\"\"),IF(G64=\"La actividad sí contribuye sustancialmente a la sostenibilidad\",SUM(B64:D64),0),IF(AND('Base-datos'!$B$725=\"\",'Base-datos'!$B$726=\"\",'Base-datos'!$B$727=\"Sí\"),IF(E64=\"La actividad sí contribuye sustancialmente a la sostenibilidad\",SUM(B64:D64),0),IF(AND('Base-datos'!$B$725=\"\",'Base-datos'!$B$726=\"Sí\",'Base-datos'!$B$727=\"Sí\"),IF(AND(G64=\"La actividad sí contribuye sustancialmente a la sostenibilidad\",E64=\"La actividad sí contribuye sustancialmente a la sostenibilidad\"),SUM(B64:D64),0),IF(AND('Base-datos'!$B$725=\"Sí\",'Base-datos'!$B$726=\"\",'Base-datos'!$B$727=\"Sí\"),IF(AND(F64=\"La actividad sí contribuye sustancialmente a la sostenibilidad\",E64=\"La actividad sí contribuye sustancialmente a la sostenibilidad\"),SUM(B64:D64),0),\"Por definir\"))))))))","v":"Por definir"}]
[{"$f":"Ganadería!$C28","v":"Seleccione"},{"$f":"IF(Ganadería!$E28=Empresas!B$12,Ganadería!$B28,\"\")","v":""},{"$f":"IF(Ganadería!$E28=Empresas!C$12,Ganadería!$B28,\"\")","v":""},{"$f":"IF(Ganadería!$E28=Empresas!D$12,Ganadería!$B28,\"\")","v":""},{"$f":"_xlfn.XLOOKUP(A65,'Base-datos'!$B$510:$B$516,'Base-datos'!$F$510:$F$516)","v":{"$error":"#N/A"}},{"$f":"_xlfn.XLOOKUP(A65,'Base-datos'!$B$510:$B$516,'Base-datos'!$C$510:$C$516)","v":{"$error":"#N/A"}},{"$f":"_xlfn.XLOOKUP(A65,'Base-datos'!$B$510:$B$516,'Base-datos'!$D$510:$D$516)","v":{"$error":"#N/A"}},null,null,{"$f":"IF(OR(H$56=\"La actividad no cumple con el total de los criterios de No Daño Significativo\",I$56=\"El sector no cumple con las salvaguardas mínimas\"),\"\",IF(AND('Base-datos'!$B$725=\"Sí\",'Base-datos'!$B$726=\"\",'Base-datos'!$B$727=\"\"),IF(F65=\"La actividad sí contribuye sustancialmente a la sostenibilidad\",SUM(B65:D65),0),IF(AND('Base-datos'!$B$725=\"Sí\",'Base-datos'!$B$726=\"Sí\",'Base-datos'!$B$727=\"\"),IF(AND(F65=\"La actividad sí contribuye sustancialmente a la sostenibilidad\",G65=\"La actividad sí contribuye sustancialmente a la sostenibilidad\"),SUM(B65:D65),0),IF(AND('Base-datos'!$B$725=\"Sí\",'Base-datos'!$B$726=\"Sí\",'Base-datos'!$B$727=\"Sí\"),IF(AND(F65=\"La actividad sí contribuye sustancialmente a la sostenibilidad\",G65=\"La actividad sí contribuye sustancialmente a la sostenibilidad\",E65=\"La actividad sí contribuye sustancialmente a la sostenibilidad\"),SUM(B65:D65),0),IF(AND('Base-datos'!$B$725=\"\",'Base-datos'!$B$726=\"Sí\",'Base-datos'!$B$727=\"\"),IF(G65=\"La actividad sí contribuye sustancialmente a la sostenibilidad\",SUM(B65:D65),0),IF(AND('Base-datos'!$B$725=\"\",'Base-datos'!$B$726=\"\",'Base-datos'!$B$727=\"Sí\"),IF(E65=\"La actividad sí contribuye sustancialmente a la sostenibilidad\",SUM(B65:D65),0),IF(AND('Base-datos'!$B$725=\"\",'Base-datos'!$B$726=\"Sí\",'Base-datos'!$B$727=\"Sí\"),IF(AND(G65=\"La actividad sí contribuye sustancialmente a la sostenibilidad\",E65=\"La actividad sí contribuye sustancialmente a la sostenibilidad\"),SUM(B65:D65),0),IF(AND('Base-datos'!$B$725=\"Sí\",'Base-datos'!$B$726=\"\",'Base-datos'!$B$727=\"Sí\"),IF(AND(F65=\"La actividad sí contribuye sustancialmente a la sostenibilidad\",E65=\"La actividad sí contribuye sustancialmente a la sostenibilidad\"),SUM(B65:D65),0),\"Por definir\"))))))))","v":"Por definir"}]
[{"$f":"Ganadería!$C30","v":"Seleccione"},{"$f":"IF(Ganadería!$E30=Empresas!B$12,Ganadería!$B30,\"\")","v":""},{"$f":"IF(Ganadería!$E30=Empresas!C$12,Ganadería!$B30,\"\")","v":""},{"$f":"IF(Ganadería!$E30=Empresas!D$12,Ganadería!$B30,\"\")","v":""},{"$f":"_xlfn.XLOOKUP(A66,'Base-datos'!$B$510:$B$516,'Base-datos'!$F$510:$F$516)","v":{"$error":"#N/A"}},{"$f":"_xlfn.XLOOKUP(A66,'Base-datos'!$B$510:$B$516,'Base-datos'!$C$510:$C$516)","v":{"$error":"#N/A"}},{"$f":"_xlfn.XLOOKUP(A66,'Base-datos'!$B$510:$B$516,'Base-datos'!$D$510:$D$516)","v":{"$error":"#N/A"}},null,null,{"$f":"IF(OR(H$56=\"La actividad no cumple con el total de los criterios de No Daño Significativo\",I$56=\"El sector no cumple con las salvaguardas mínimas\"),\"\",IF(AND('Base-datos'!$B$725=\"Sí\",'Base-datos'!$B$726=\"\",'Base-datos'!$B$727=\"\"),IF(F66=\"La actividad sí contribuye sustancialmente a la sostenibilidad\",SUM(B66:D66),0),IF(AND('Base-datos'!$B$725=\"Sí\",'Base-datos'!$B$726=\"Sí\",'Base-datos'!$B$727=\"\"),IF(AND(F66=\"La actividad sí contribuye sustancialmente a la sostenibilidad\",G66=\"La actividad sí contribuye sustancialmente a la sostenibilidad\"),SUM(B66:D66),0),IF(AND('Base-datos'!$B$725=\"Sí\",'Base-datos'!$B$726=\"Sí\",'Base-datos'!$B$727=\"Sí\"),IF(AND(F66=\"La actividad sí contribuye sustancialmente a la sostenibilidad\",G66=\"La actividad sí contribuye sustancialmente a la sostenibilidad\",E66=\"La actividad sí contribuye sustancialmente a la sostenibilidad\"),SUM(B66:D66),0),IF(AND('Base-datos'!$B$725=\"\",'Base-datos'!$B$726=\"Sí\",'Base-datos'!$B$727=\"\"),IF(G66=\"La actividad sí contribuye sustancialmente a la sostenibilidad\",SUM(B66:D66),0),IF(AND('Base-datos'!$B$725=\"\",'Base-datos'!$B$726=\"\",'Base-datos'!$B$727=\"Sí\"),IF(E66=\"La actividad sí contribuye sustancialmente a la sostenibilidad\",SUM(B66:D66),0),IF(AND('Base-datos'!$B$725=\"\",'Base-datos'!$B$726=\"Sí\",'Base-datos'!$B$727=\"Sí\"),IF(AND(G66=\"La actividad sí contribuye sustancialmente a la sostenibilidad\",E66=\"La actividad sí contribuye sustancialmente a la sostenibilidad\"),SUM(B66:D66),0),IF(AND('Base-datos'!$B$725=\"Sí\",'Base-datos'!$B$726=\"\",'Base-datos'!$B$727=\"Sí\"),IF(AND(F66=\"La actividad sí contribuye sustancialmente a la sostenibilidad\",E66=\"La actividad sí contribuye sustancialmente a la sostenibilidad\"),SUM(B66:D66),0),\"Por definir\"))))))))","v":"Por definir"}]
[{"$f":"Ganadería!$C32","v":"Seleccione"},{"$f":"IF(Ganadería!$E32=Empresas!B$12,Ganadería!$B32,\"\")","v":""},{"$f":"IF(Ganadería!$E32=Empresas!C$12,Ganadería!$B32,\"\")","v":""},{"$f":"IF(Ganadería!$E32=Empresas!D$12,Ganadería!$B32,\"\")","v":""},{"$f":"_xlfn.XLOOKUP(A67,'Base-datos'!$B$510:$B$516,'Base-datos'!$F$510:$F$516)","v":{"$error":"#N/A"}},{"$f":"_xlfn.XLOOKUP(A67,'Base-datos'!$B$510:$B$516,'Base-datos'!$C$510:$C$516)","v":{"$error":"#N/A"}},{"$f":"_xlfn.XLOOKUP(A67,'Base-datos'!$B$510:$B$516,'Base-datos'!$D$510:$D$516)","v":{"$error":"#N/A"}},null,null,{"$f":"IF(OR(H$56=\"La actividad no cumple con el total de los criterios de No Daño Significativo\",I$56=\"El sector no cumple con las salvaguardas mínimas\"),\"\",IF(AND('Base-datos'!$B$725=\"Sí\",'Base-datos'!$B$726=\"\",'Base-datos'!$B$727=\"\"),IF(F67=\"La actividad sí contribuye sustancialmente a la sostenibilidad\",SUM(B67:D67),0),IF(AND('Base-datos'!$B$725=\"Sí\",'Base-datos'!$B$726=\"Sí\",'Base-datos'!$B$727=\"\"),IF(AND(F67=\"La actividad sí contribuye sustancialmente a la sostenibilidad\",G67=\"La actividad sí contribuye sustancialmente a la sostenibilidad\"),SUM(B67:D67),0),IF(AND('Base-datos'!$B$725=\"Sí\",'Base-datos'!$B$726=\"Sí\",'Base-datos'!$B$727=\"Sí\"),IF(AND(F67=\"La actividad sí contribuye sustancialmente a la sostenibilidad\",G67=\"La actividad sí contribuye sustancialmente a la sostenibilidad\",E67=\"La actividad sí contribuye sustancialmente a la sostenibilidad\"),SUM(B67:D67),0),IF(AND('Base-datos'!$B$725=\"\",'Base-datos'!$B$726=\"Sí\",'Base-datos'!$B$727=\"\"),IF(G67=\"La actividad sí contribuye sustancialmente a la sostenibilidad\",SUM(B67:D67),0),IF(AND('Base-datos'!$B$725=\"\",'Base-datos'!$B$726=\"\",'Base-datos'!$B$727=\"Sí\"),IF(E67=\"La actividad sí contribuye sustancialmente a la sostenibilidad\",SUM(B67:D67),0),IF(AND('Base-datos'!$B$725=\"\",'Base-datos'!$B$726=\"Sí\",'Base-datos'!$B$727=\"Sí\"),IF(AND(G67=\"La actividad sí contribuye sustancialmente a la sostenibilidad\",E67=\"La actividad sí contribuye sustancialmente a la sostenibilidad\"),SUM(B67:D67),0),IF(AND('Base-datos'!$B$725=\"Sí\",'Base-datos'!$B$726=\"\",'Base-datos'!$B$727=\"Sí\"),IF(AND(F67=\"La actividad sí contribuye sustancialmente a la sostenibilidad\",E67=\"La actividad sí contribuye sustancialmente a la sostenibilidad\"),SUM(B67:D67),0),\"Por definir\"))))))))","v":"Por definir"}]
[{"$f":"Ganadería!$C34","v":"Seleccione"},{"$f":"IF(Ganadería!$E34=Empresas!B$12,Ganadería!$B34,\"\")","v":""},{"$f":"IF(Ganadería!$E34=Empresas!C$12,Ganadería!$B34,\"\")","v":""},{"$f":"IF(Ganadería!$E34=Empresas!D$12,Ganadería!$B34,\"\")","v":""},{"$f":"_xlfn.XLOOKUP(A68,'Base-datos'!$B$510:$B$516,'Base-datos'!$F$510:$F$516)","v":{"$error":"#N/A"}},{"$f":"_xlfn.XLOOKUP(A68,'Base-datos'!$B$510:$B$516,'Base-datos'!$C$510:$C$516)","v":{"$error":"#N/A"}},{"$f":"_xlfn.XLOOKUP(A68,'Base-datos'!$B$510:$B$516,'Base-datos'!$D$510:$D$516)","v":{"$error":"#N/A"}},null,null,{"$f":"IF(OR(H$56=\"La actividad no cumple con el total de los criterios de No Daño Significativo\",I$56=\"El sector no cumple con las salvaguardas mínimas\"),\"\",IF(AND('Base-datos'!$B$725=\"Sí\",'Base-datos'!$B$726=\"\",'Base-datos'!$B$727=\"\"),IF(F68=\"La actividad sí contribuye sustancialmente a la sostenibilidad\",SUM(B68:D68),0),IF(AND('Base-datos'!$B$725=\"Sí\",'Base-datos'!$B$726=\"Sí\",'Base-datos'!$B$727=\"\"),IF(AND(F68=\"La actividad sí contribuye sustancialmente a la sostenibilidad\",G68=\"La actividad sí contribuye sustancialmente a la sostenibilidad\"),SUM(B68:D68),0),IF(AND('Base-datos'!$B$725=\"Sí\",'Base-datos'!$B$726=\"Sí\",'Base-datos'!$B$727=\"Sí\"),IF(AND(F68=\"La actividad sí contribuye sustancialmente a la sostenibilidad\",G68=\"La actividad sí contribuye sustancialmente a la sostenibilidad\",E68=\"La actividad sí contribuye sustancialmente a la sostenibilidad\"),SUM(B68:D68),0),IF(AND('Base-datos'!$B$725=\"\",'Base-datos'!$B$726=\"Sí\",'Base-datos'!$B$727=\"\"),IF(G68=\"La actividad sí contribuye sustancialmente a la sostenibilidad\",SUM(B68:D68),0),IF(AND('Base-datos'!$B$725=\"\",'Base-datos'!$B$726=\"\",'Base-datos'!$B$727=\"Sí\"),IF(E68=\"La actividad sí contribuye sustancialmente a la sostenibilidad\",SUM(B68:D68),0),IF(AND('Base-datos'!$B$725=\"\",'Base-datos'!$B$726=\"Sí\",'Base-datos'!$B$727=\"Sí\"),IF(AND(G68=\"La actividad sí contribuye sustancialmente a la sostenibilidad\",E68=\"La actividad sí contribuye sustancialmente a la sostenibilidad\"),SUM(B68:D68),0),IF(AND('Base-datos'!$B$725=\"Sí\",'Base-datos'!$B$726=\"\",'Base-datos'!$B$727=\"Sí\"),IF(AND(F68=\"La actividad sí contribuye sustancialmente a la sostenibilidad\",E68=\"La actividad sí contribuye sustancialmente a la sostenibilidad\"),SUM(B68:D68),0),\"Por definir\"))))))))","v":"Por definir"}]
[{"$f":"Ganadería!$C36","v":"Seleccione"},{"$f":"IF(Ganadería!$E36=Empresas!B$12,Ganadería!$B36,\"\")","v":""},{"$f":"IF(Ganadería!$E36=Empresas!C$12,Ganadería!$B36,\"\")","v":""},{"$f":"IF(Ganadería!$E36=Empresas!D$12,Ganadería!$B36,\"\")","v":""},{"$f":"_xlfn.XLOOKUP(A69,'Base-datos'!$B$510:$B$516,'Base-datos'!$F$510:$F$516)","v":{"$error":"#N/A"}},{"$f":"_xlfn.XLOOKUP(A69,'Base-datos'!$B$510:$B$516,'Base-datos'!$C$510:$C$516)","v":{"$error":"#N/A"}},{"$f":"_xlfn.XLOOKUP(A69,'Base-datos'!$B$510:$B$516,'Base-datos'!$D$510:$D$516)","v":{"$error":"#N/A"}},null,null,{"$f":"IF(OR(H$56=\"La actividad no cumple con el total de los criterios de No Daño Significativo\",I$56=\"El sector no cumple con las salvaguardas mínimas\"),\"\",IF(AND('Base-datos'!$B$725=\"Sí\",'Base-datos'!$B$726=\"\",'Base-datos'!$B$727=\"\"),IF(F69=\"La actividad sí contribuye sustancialmente a la sostenibilidad\",SUM(B69:D69),0),IF(AND('Base-datos'!$B$725=\"Sí\",'Base-datos'!$B$726=\"Sí\",'Base-datos'!$B$727=\"\"),IF(AND(F69=\"La actividad sí contribuye sustancialmente a la sostenibilidad\",G69=\"La actividad sí contribuye sustancialmente a la sostenibilidad\"),SUM(B69:D69),0),IF(AND('Base-datos'!$B$725=\"Sí\",'Base-datos'!$B$726=\"Sí\",'Base-datos'!$B$727=\"Sí\"),IF(AND(F69=\"La actividad sí contribuye sustancialmente a la sostenibilidad\",G69=\"La actividad sí contribuye sustancialmente a la sostenibilidad\",E69=\"La actividad sí contribuye sustancialmente a la sostenibilidad\"),SUM(B69:D69),0),IF(AND('Base-datos'!$B$725=\"\",'Base-datos'!$B$726=\"Sí\",'Base-datos'!$B$727=\"\"),IF(G69=\"La actividad sí contribuye sustancialmente a la sostenibilidad\",SUM(B69:D69),0),IF(AND('Base-datos'!$B$725=\"\",'Base-datos'!$B$726=\"\",'Base-datos'!$B$727=\"Sí\"),IF(E69=\"La actividad sí contribuye sustancialmente a la sostenibilidad\",SUM(B69:D69),0),IF(AND('Base-datos'!$B$725=\"\",'Base-datos'!$B$726=\"Sí\",'Base-datos'!$B$727=\"Sí\"),IF(AND(G69=\"La actividad sí contribuye sustancialmente a la sostenibilidad\",E69=\"La actividad sí contribuye sustancialmente a la sostenibilidad\"),SUM(B69:D69),0),IF(AND('Base-datos'!$B$725=\"Sí\",'Base-datos'!$B$726=\"\",'Base-datos'!$B$727=\"Sí\"),IF(AND(F69=\"La actividad sí contribuye sustancialmente a la sostenibilidad\",E69=\"La actividad sí contribuye sustancialmente a la sostenibilidad\"),SUM(B69:D69),0),\"Por definir\"))))))))","v":"Por definir"}]
[{"$f":"Ganadería!$C38","v":"Seleccione"},{"$f":"IF(Ganadería!$E38=Empresas!B$12,Ganadería!$B38,\"\")","v":""},{"$f":"IF(Ganadería!$E38=Empresas!C$12,Ganadería!$B38,\"\")","v":""},{"$f":"IF(Ganadería!$E38=Empresas!D$12,Ganadería!$B38,\"\")","v":""},{"$f":"_xlfn.XLOOKUP(A70,'Base-datos'!$B$510:$B$516,'Base-datos'!$F$510:$F$516)","v":{"$error":"#N/A"}},{"$f":"_xlfn.XLOOKUP(A70,'Base-datos'!$B$510:$B$516,'Base-datos'!$C$510:$C$516)","v":{"$error":"#N/A"}},{"$f":"_xlfn.XLOOKUP(A70,'Base-datos'!$B$510:$B$516,'Base-datos'!$D$510:$D$516)","v":{"$error":"#N/A"}},null,null,{"$f":"IF(OR(H$56=\"La actividad no cumple con el total de los criterios de No Daño Significativo\",I$56=\"El sector no cumple con las salvaguardas mínimas\"),\"\",IF(AND('Base-datos'!$B$725=\"Sí\",'Base-datos'!$B$726=\"\",'Base-datos'!$B$727=\"\"),IF(F70=\"La actividad sí contribuye sustancialmente a la sostenibilidad\",SUM(B70:D70),0),IF(AND('Base-datos'!$B$725=\"Sí\",'Base-datos'!$B$726=\"Sí\",'Base-datos'!$B$727=\"\"),IF(AND(F70=\"La actividad sí contribuye sustancialmente a la sostenibilidad\",G70=\"La actividad sí contribuye sustancialmente a la sostenibilidad\"),SUM(B70:D70),0),IF(AND('Base-datos'!$B$725=\"Sí\",'Base-datos'!$B$726=\"Sí\",'Base-datos'!$B$727=\"Sí\"),IF(AND(F70=\"La actividad sí contribuye sustancialmente a la sostenibilidad\",G70=\"La actividad sí contribuye sustancialmente a la sostenibilidad\",E70=\"La actividad sí contribuye sustancialmente a la sostenibilidad\"),SUM(B70:D70),0),IF(AND('Base-datos'!$B$725=\"\",'Base-datos'!$B$726=\"Sí\",'Base-datos'!$B$727=\"\"),IF(G70=\"La actividad sí contribuye sustancialmente a la sostenibilidad\",SUM(B70:D70),0),IF(AND('Base-datos'!$B$725=\"\",'Base-datos'!$B$726=\"\",'Base-datos'!$B$727=\"Sí\"),IF(E70=\"La actividad sí contribuye sustancialmente a la sostenibilidad\",SUM(B70:D70),0),IF(AND('Base-datos'!$B$725=\"\",'Base-datos'!$B$726=\"Sí\",'Base-datos'!$B$727=\"Sí\"),IF(AND(G70=\"La actividad sí contribuye sustancialmente a la sostenibilidad\",E70=\"La actividad sí contribuye sustancialmente a la sostenibilidad\"),SUM(B70:D70),0),IF(AND('Base-datos'!$B$725=\"Sí\",'Base-datos'!$B$726=\"\",'Base-datos'!$B$727=\"Sí\"),IF(AND(F70=\"La actividad sí contribuye sustancialmente a la sostenibilidad\",E70=\"La actividad sí contribuye sustancialmente a la sostenibilidad\"),SUM(B70:D70),0),\"Por definir\"))))))))","v":"Por definir"}]
[{"$f":"Ganadería!$C40","v":"Seleccione"},{"$f":"IF(Ganadería!$E40=Empresas!B$12,Ganadería!$B40,\"\")","v":""},{"$f":"IF(Ganadería!$E40=Empresas!C$12,Ganadería!$B40,\"\")","v":""},{"$f":"IF(Ganadería!$E40=Empresas!D$12,Ganadería!$B40,\"\")","v":""},{"$f":"_xlfn.XLOOKUP(A71,'Base-datos'!$B$510:$B$516,'Base-datos'!$F$510:$F$516)","v":{"$error":"#N/A"}},{"$f":"_xlfn.XLOOKUP(A71,'Base-datos'!$B$510:$B$516,'Base-datos'!$C$510:$C$516)","v":{"$error":"#N/A"}},{"$f":"_xlfn.XLOOKUP(A71,'Base-datos'!$B$510:$B$516,'Base-datos'!$D$510:$D$516)","v":{"$error":"#N/A"}},null,null,{"$f":"IF(OR(H$56=\"La actividad no cumple con el total de los criterios de No Daño Significativo\",I$56=\"El sector no cumple con las salvaguardas mínimas\"),\"\",IF(AND('Base-datos'!$B$725=\"Sí\",'Base-datos'!$B$726=\"\",'Base-datos'!$B$727=\"\"),IF(F71=\"La actividad sí contribuye sustancialmente a la sostenibilidad\",SUM(B71:D71),0),IF(AND('Base-datos'!$B$725=\"Sí\",'Base-datos'!$B$726=\"Sí\",'Base-datos'!$B$727=\"\"),IF(AND(F71=\"La actividad sí contribuye sustancialmente a la sostenibilidad\",G71=\"La actividad sí contribuye sustancialmente a la sostenibilidad\"),SUM(B71:D71),0),IF(AND('Base-datos'!$B$725=\"Sí\",'Base-datos'!$B$726=\"Sí\",'Base-datos'!$B$727=\"Sí\"),IF(AND(F71=\"La actividad sí contribuye sustancialmente a la sostenibilidad\",G71=\"La actividad sí contribuye sustancialmente a la sostenibilidad\",E71=\"La actividad sí contribuye sustancialmente a la sostenibilidad\"),SUM(B71:D71),0),IF(AND('Base-datos'!$B$725=\"\",'Base-datos'!$B$726=\"Sí\",'Base-datos'!$B$727=\"\"),IF(G71=\"La actividad sí contribuye sustancialmente a la sostenibilidad\",SUM(B71:D71),0),IF(AND('Base-datos'!$B$725=\"\",'Base-datos'!$B$726=\"\",'Base-datos'!$B$727=\"Sí\"),IF(E71=\"La actividad sí contribuye sustancialmente a la sostenibilidad\",SUM(B71:D71),0),IF(AND('Base-datos'!$B$725=\"\",'Base-datos'!$B$726=\"Sí\",'Base-datos'!$B$727=\"Sí\"),IF(AND(G71=\"La actividad sí contribuye sustancialmente a la sostenibilidad\",E71=\"La actividad sí contribuye sustancialmente a la sostenibilidad\"),SUM(B71:D71),0),IF(AND('Base-datos'!$B$725=\"Sí\",'Base-datos'!$B$726=\"\",'Base-datos'!$B$727=\"Sí\"),IF(AND(F71=\"La actividad sí contribuye sustancialmente a la sostenibilidad\",E71=\"La actividad sí contribuye sustancialmente a la sostenibilidad\"),SUM(B71:D71),0),\"Por definir\"))))))))","v":"Por definir"}]
[{"$f":"Ganadería!$C42","v":"Seleccione"},{"$f":"IF(Ganadería!$E42=Empresas!B$12,Ganadería!$B42,\"\")","v":""},{"$f":"IF(Ganadería!$E42=Empresas!C$12,Ganadería!$B42,\"\")","v":""},{"$f":"IF(Ganadería!$E42=Empresas!D$12,Ganadería!$B42,\"\")","v":""},{"$f":"_xlfn.XLOOKUP(A72,'Base-datos'!$B$510:$B$516,'Base-datos'!$F$510:$F$516)","v":{"$error":"#N/A"}},{"$f":"_xlfn.XLOOKUP(A72,'Base-datos'!$B$510:$B$516,'Base-datos'!$C$510:$C$516)","v":{"$error":"#N/A"}},{"$f":"_xlfn.XLOOKUP(A72,'Base-datos'!$B$510:$B$516,'Base-datos'!$D$510:$D$516)","v":{"$error":"#N/A"}},null,null,{"$f":"IF(OR(H$56=\"La actividad no cumple con el total de los criterios de No Daño Significativo\",I$56=\"El sector no cumple con las salvaguardas mínimas\"),\"\",IF(AND('Base-datos'!$B$725=\"Sí\",'Base-datos'!$B$726=\"\",'Base-datos'!$B$727=\"\"),IF(F72=\"La actividad sí contribuye sustancialmente a la sostenibilidad\",SUM(B72:D72),0),IF(AND('Base-datos'!$B$725=\"Sí\",'Base-datos'!$B$726=\"Sí\",'Base-datos'!$B$727=\"\"),IF(AND(F72=\"La actividad sí contribuye sustancialmente a la sostenibilidad\",G72=\"La actividad sí contribuye sustancialmente a la sostenibilidad\"),SUM(B72:D72),0),IF(AND('Base-datos'!$B$725=\"Sí\",'Base-datos'!$B$726=\"Sí\",'Base-datos'!$B$727=\"Sí\"),IF(AND(F72=\"La actividad sí contribuye sustancialmente a la sostenibilidad\",G72=\"La actividad sí contribuye sustancialmente a la sostenibilidad\",E72=\"La actividad sí contribuye sustancialmente a la sostenibilidad\"),SUM(B72:D72),0),IF(AND('Base-datos'!$B$725=\"\",'Base-datos'!$B$726=\"Sí\",'Base-datos'!$B$727=\"\"),IF(G72=\"La actividad sí contribuye sustancialmente a la sostenibilidad\",SUM(B72:D72),0),IF(AND('Base-datos'!$B$725=\"\",'Base-datos'!$B$726=\"\",'Base-datos'!$B$727=\"Sí\"),IF(E72=\"La actividad sí contribuye sustancialmente a la sostenibilidad\",SUM(B72:D72),0),IF(AND('Base-datos'!$B$725=\"\",'Base-datos'!$B$726=\"Sí\",'Base-datos'!$B$727=\"Sí\"),IF(AND(G72=\"La actividad sí contribuye sustancialmente a la sostenibilidad\",E72=\"La actividad sí contribuye sustancialmente a la sostenibilidad\"),SUM(B72:D72),0),IF(AND('Base-datos'!$B$725=\"Sí\",'Base-datos'!$B$726=\"\",'Base-datos'!$B$727=\"Sí\"),IF(AND(F72=\"La actividad sí contribuye sustancialmente a la sostenibilidad\",E72=\"La actividad sí contribuye sustancialmente a la sostenibilidad\"),SUM(B72:D72),0),\"Por definir\"))))))))","v":"Por definir"}]
[{"$f":"Ganadería!$C44","v":"Seleccione"},{"$f":"IF(Ganadería!$E44=Empresas!B$12,Ganadería!$B44,\"\")","v":""},{"$f":"IF(Ganadería!$E44=Empresas!C$12,Ganadería!$B44,\"\")","v":""},{"$f":"IF(Ganadería!$E44=Empresas!D$12,Ganadería!$B44,\"\")","v":""},{"$f":"_xlfn.XLOOKUP(A73,'Base-datos'!$B$510:$B$516,'Base-datos'!$F$510:$F$516)","v":{"$error":"#N/A"}},{"$f":"_xlfn.XLOOKUP(A73,'Base-datos'!$B$510:$B$516,'Base-datos'!$C$510:$C$516)","v":{"$error":"#N/A"}},{"$f":"_xlfn.XLOOKUP(A73,'Base-datos'!$B$510:$B$516,'Base-datos'!$D$510:$D$516)","v":{"$error":"#N/A"}},null,null,{"$f":"IF(OR(H$56=\"La actividad no cumple con el total de los criterios de No Daño Significativo\",I$56=\"El sector no cumple con las salvaguardas mínimas\"),\"\",IF(AND('Base-datos'!$B$725=\"Sí\",'Base-datos'!$B$726=\"\",'Base-datos'!$B$727=\"\"),IF(F73=\"La actividad sí contribuye sustancialmente a la sostenibilidad\",SUM(B73:D73),0),IF(AND('Base-datos'!$B$725=\"Sí\",'Base-datos'!$B$726=\"Sí\",'Base-datos'!$B$727=\"\"),IF(AND(F73=\"La actividad sí contribuye sustancialmente a la sostenibilidad\",G73=\"La actividad sí contribuye sustancialmente a la sostenibilidad\"),SUM(B73:D73),0),IF(AND('Base-datos'!$B$725=\"Sí\",'Base-datos'!$B$726=\"Sí\",'Base-datos'!$B$727=\"Sí\"),IF(AND(F73=\"La actividad sí contribuye sustancialmente a la sostenibilidad\",G73=\"La actividad sí contribuye sustancialmente a la sostenibilidad\",E73=\"La actividad sí contribuye sustancialmente a la sostenibilidad\"),SUM(B73:D73),0),IF(AND('Base-datos'!$B$725=\"\",'Base-datos'!$B$726=\"Sí\",'Base-datos'!$B$727=\"\"),IF(G73=\"La actividad sí contribuye sustancialmente a la sostenibilidad\",SUM(B73:D73),0),IF(AND('Base-datos'!$B$725=\"\",'Base-datos'!$B$726=\"\",'Base-datos'!$B$727=\"Sí\"),IF(E73=\"La actividad sí contribuye sustancialmente a la sostenibilidad\",SUM(B73:D73),0),IF(AND('Base-datos'!$B$725=\"\",'Base-datos'!$B$726=\"Sí\",'Base-datos'!$B$727=\"Sí\"),IF(AND(G73=\"La actividad sí contribuye sustancialmente a la sostenibilidad\",E73=\"La actividad sí contribuye sustancialmente a la sostenibilidad\"),SUM(B73:D73),0),IF(AND('Base-datos'!$B$725=\"Sí\",'Base-datos'!$B$726=\"\",'Base-datos'!$B$727=\"Sí\"),IF(AND(F73=\"La actividad sí contribuye sustancialmente a la sostenibilidad\",E73=\"La actividad sí contribuye sustancialmente a la sostenibilidad\"),SUM(B73:D73),0),\"Por definir\"))))))))","v":"Por definir"}]
[{"$f":"Ganadería!$C46","v":"Seleccione"},{"$f":"IF(Ganadería!$E46=Empresas!B$12,Ganadería!$B46,\"\")","v":""},{"$f":"IF(Ganadería!$E46=Empresas!C$12,Ganadería!$B46,\"\")","v":""},{"$f":"IF(Ganadería!$E46=Empresas!D$12,Ganadería!$B46,\"\")","v":""},{"$f":"_xlfn.XLOOKUP(A74,'Base-datos'!$B$510:$B$516,'Base-datos'!$F$510:$F$516)","v":{"$error":"#N/A"}},{"$f":"_xlfn.XLOOKUP(A74,'Base-datos'!$B$510:$B$516,'Base-datos'!$C$510:$C$516)","v":{"$error":"#N/A"}},{"$f":"_xlfn.XLOOKUP(A74,'Base-datos'!$B$510:$B$516,'Base-datos'!$D$510:$D$516)","v":{"$error":"#N/A"}},null,null,{"$f":"IF(OR(H$56=\"La actividad no cumple con el total de los criterios de No Daño Significativo\",I$56=\"El sector no cumple con las salvaguardas mínimas\"),\"\",IF(AND('Base-datos'!$B$725=\"Sí\",'Base-datos'!$B$726=\"\",'Base-datos'!$B$727=\"\"),IF(F74=\"La actividad sí contribuye sustancialmente a la sostenibilidad\",SUM(B74:D74),0),IF(AND('Base-datos'!$B$725=\"Sí\",'Base-datos'!$B$726=\"Sí\",'Base-datos'!$B$727=\"\"),IF(AND(F74=\"La actividad sí contribuye sustancialmente a la sostenibilidad\",G74=\"La actividad sí contribuye sustancialmente a la sostenibilidad\"),SUM(B74:D74),0),IF(AND('Base-datos'!$B$725=\"Sí\",'Base-datos'!$B$726=\"Sí\",'Base-datos'!$B$727=\"Sí\"),IF(AND(F74=\"La actividad sí contribuye sustancialmente a la sostenibilidad\",G74=\"La actividad sí contribuye sustancialmente a la sostenibilidad\",E74=\"La actividad sí contribuye sustancialmente a la sostenibilidad\"),SUM(B74:D74),0),IF(AND('Base-datos'!$B$725=\"\",'Base-datos'!$B$726=\"Sí\",'Base-datos'!$B$727=\"\"),IF(G74=\"La actividad sí contribuye sustancialmente a la sostenibilidad\",SUM(B74:D74),0),IF(AND('Base-datos'!$B$725=\"\",'Base-datos'!$B$726=\"\",'Base-datos'!$B$727=\"Sí\"),IF(E74=\"La actividad sí contribuye sustancialmente a la sostenibilidad\",SUM(B74:D74),0),IF(AND('Base-datos'!$B$725=\"\",'Base-datos'!$B$726=\"Sí\",'Base-datos'!$B$727=\"Sí\"),IF(AND(G74=\"La actividad sí contribuye sustancialmente a la sostenibilidad\",E74=\"La actividad sí contribuye sustancialmente a la sostenibilidad\"),SUM(B74:D74),0),IF(AND('Base-datos'!$B$725=\"Sí\",'Base-datos'!$B$726=\"\",'Base-datos'!$B$727=\"Sí\"),IF(AND(F74=\"La actividad sí contribuye sustancialmente a la sostenibilidad\",E74=\"La actividad sí contribuye sustancialmente a la sostenibilidad\"),SUM(B74:D74),0),\"Por definir\"))))))))","v":"Por definir"}]
[{"$f":"Ganadería!$C48","v":"Seleccione"},{"$f":"IF(Ganadería!$E48=Empresas!B$12,Ganadería!$B48,\"\")","v":""},{"$f":"IF(Ganadería!$E48=Empresas!C$12,Ganadería!$B48,\"\")","v":""},{"$f":"IF(Ganadería!$E48=Empresas!D$12,Ganadería!$B48,\"\")","v":""},{"$f":"_xlfn.XLOOKUP(A75,'Base-datos'!$B$510:$B$516,'Base-datos'!$F$510:$F$516)","v":{"$error":"#N/A"}},{"$f":"_xlfn.XLOOKUP(A75,'Base-datos'!$B$510:$B$516,'Base-datos'!$C$510:$C$516)","v":{"$error":"#N/A"}},{"$f":"_xlfn.XLOOKUP(A75,'Base-datos'!$B$510:$B$516,'Base-datos'!$D$510:$D$516)","v":{"$error":"#N/A"}},null,null,{"$f":"IF(OR(H$56=\"La actividad no cumple con el total de los criterios de No Daño Significativo\",I$56=\"El sector no cumple con las salvaguardas mínimas\"),\"\",IF(AND('Base-datos'!$B$725=\"Sí\",'Base-datos'!$B$726=\"\",'Base-datos'!$B$727=\"\"),IF(F75=\"La actividad sí contribuye sustancialmente a la sostenibilidad\",SUM(B75:D75),0),IF(AND('Base-datos'!$B$725=\"Sí\",'Base-datos'!$B$726=\"Sí\",'Base-datos'!$B$727=\"\"),IF(AND(F75=\"La actividad sí contribuye sustancialmente a la sostenibilidad\",G75=\"La actividad sí contribuye sustancialmente a la sostenibilidad\"),SUM(B75:D75),0),IF(AND('Base-datos'!$B$725=\"Sí\",'Base-datos'!$B$726=\"Sí\",'Base-datos'!$B$727=\"Sí\"),IF(AND(F75=\"La actividad sí contribuye sustancialmente a la sostenibilidad\",G75=\"La actividad sí contribuye sustancialmente a la sostenibilidad\",E75=\"La actividad sí contribuye sustancialmente a la sostenibilidad\"),SUM(B75:D75),0),IF(AND('Base-datos'!$B$725=\"\",'Base-datos'!$B$726=\"Sí\",'Base-datos'!$B$727=\"\"),IF(G75=\"La actividad sí contribuye sustancialmente a la sostenibilidad\",SUM(B75:D75),0),IF(AND('Base-datos'!$B$725=\"\",'Base-datos'!$B$726=\"\",'Base-datos'!$B$727=\"Sí\"),IF(E75=\"La actividad sí contribuye sustancialmente a la sostenibilidad\",SUM(B75:D75),0),IF(AND('Base-datos'!$B$725=\"\",'Base-datos'!$B$726=\"Sí\",'Base-datos'!$B$727=\"Sí\"),IF(AND(G75=\"La actividad sí contribuye sustancialmente a la sostenibilidad\",E75=\"La actividad sí contribuye sustancialmente a la sostenibilidad\"),SUM(B75:D75),0),IF(AND('Base-datos'!$B$725=\"Sí\",'Base-datos'!$B$726=\"\",'Base-datos'!$B$727=\"Sí\"),IF(AND(F75=\"La actividad sí contribuye sustancialmente a la sostenibilidad\",E75=\"La actividad sí contribuye sustancialmente a la sostenibilidad\"),SUM(B75:D75),0),\"Por definir\"))))))))","v":"Por definir"}]
["Energía",null,null,null,null,null,null,null,null,{"$f":"SUM(IF(FREQUENCY(MATCH(A77:A96, A77:A96, 0), MATCH(A77:A96, A77:A96, 0)) > 0, IF(NOT(ISERROR(J77:J96)), J77:J96, 0)))","v":0}]
[{"$f":"Energía!$C10","v":"Seleccione"},{"$f":"IF(Energía!$E10=Empresas!B$12,Energía!$B10,\"\")","v":""},{"$f":"IF(Energía!$E10=Empresas!C$12,Energía!$B10,\"\")","v":""},{"$f":"IF(Energía!$E10=Empresas!D$12,Energía!$B10,\"\")","v":""},{"$f":"_xlfn.XLOOKUP(A77,'Base-datos'!$B$521:$B$531,'Base-datos'!$F$521:$F$531)","v":{"$error":"#N/A"}},{"$f":"_xlfn.XLOOKUP(A77,'Base-datos'!$B$521:$B$531,'Base-datos'!$C$521:$C$531)","v":{"$error":"#N/A"}},{"$f":"_xlfn.XLOOKUP(A77,'Base-datos'!$B$521:$B$531,'Base-datos'!$D$521:$D$531)","v":{"$error":"#N/A"}},{"$f":"IF(COUNTIF('Energía-NDS'!G9:G76,\"No\")>0,\"La actividad no cumple con el total de los criterios de NDS\",\"La actividad cumple con los criterios de No Daño Significativo\")","v":"La actividad cumple con los criterios de No Daño Significativo"},{"$f":"IF(OR('Salvaguardas mínimas'!$G$10=\"Seleccione\",'Salvaguardas mínimas'!$G$13=\"Seleccione\",'Salvaguardas mínimas'!$G$16=\"Seleccione\",'Salvaguardas mínimas'!$G$7=\"Seleccione\"),\"No se han respondido todas las preguntas\",IF(OR('Salvaguardas mínimas'!$G$10=\"No\",'Salvaguardas mínimas'!$G$13=\"No\",'Salvaguardas mínimas'!$G$16=\"No\",'Salvaguardas mínimas'!$G$7=\"No\"),\"El sector no cumple con las salvaguardas mínimas\",\"La actividad sí cumple con las salvaguardas mínimas\"))","v":"No se han respondido todas las preguntas"},{"$f":"IF(OR(H$77=\"La actividad no cumple con el total de los criterios de No Daño Significativo\",I$77=\"El sector no cumple con las salvaguardas mínimas\"),\"\",IF(AND('Base-datos'!$B$730=\"Sí\",'Base-datos'!$B$731=\"\",'Base-datos'!$B$732=\"\"),IF(F77=\"La actividad sí contribuye sustancialmente a la sostenibilidad\",SUM(B77:D77),0),IF(AND('Base-datos'!$B$730=\"Sí\",'Base-datos'!$B$731=\"Sí\",'Base-datos'!$B$732=\"\"),IF(AND(F77=\"La actividad sí contribuye sustancialmente a la sostenibilidad\",G77=\"La actividad sí contribuye sustancialmente a la sostenibilidad\"),SUM(B77:D77),0),IF(AND('Base-datos'!$B$730=\"Sí\",'Base-datos'!$B$731=\"Sí\",'Base-datos'!$B$732=\"Sí\"),IF(AND(F77=\"La actividad sí contribuye sustancialmente a la sostenibilidad\",G77=\"La actividad sí contribuye sustancialmente a la sostenibilidad\",E77=\"La actividad sí contribuye sustancialmente a la sostenibilidad\"),SUM(B77:D77),0),IF(AND('Base-datos'!$B$730=\"\",'Base-datos'!$B$731=\"Sí\",'Base-datos'!$B$732=\"\"),IF(G77=\"La actividad sí contribuye sustancialmente a la sostenibilidad\",SUM(B77:D77),0),IF(AND('Base-datos'!$B$730=\"\",'Base-datos'!$B$731=\"\",'Base-datos'!$B$732=\"Sí\"),IF(E77=\"La actividad sí contribuye sustancialmente a la sostenibilidad\",SUM(B77:D77),0),IF(AND('Base-datos'!$B$730=\"\",'Base-datos'!$B$731=\"Sí\",'Base-datos'!$B$732=\"Sí\"),IF(AND(G77=\"La actividad sí contribuye sustancialmente a la sostenibilidad\",E77=\"La actividad sí contribuye sustancialmente a la sostenibilidad\"),SUM(B77:D77),0),IF(AND('Base-datos'!$B$730=\"Sí\",'Base-datos'!$B$731=\"\",'Base-datos'!$B$732=\"Sí\"),IF(AND(F77=\"La actividad sí contribuye sustancialmente a la sostenibilidad\",E77=\"La actividad sí contribuye sustancialmente a la sostenibilidad\"),SUM(B77:D77),0),\"Por definir\"))))))))","v":"Por definir"}]
[{"$f":"Energía!$C12","v":"Seleccione"},{"$f":"IF(Energía!$E12=Empresas!B$12,Energía!$B12,\"\")","v":""},{"$f":"IF(Energía!$E12=Empresas!C$12,Energía!$B12,\"\")","v":""},{"$f":"IF(Energía!$E12=Empresas!D$12,Energía!$B12,\"\")","v":""},{"$f":"_xlfn.XLOOKUP(A78,'Base-datos'!$B$521:$B$531,'Base-datos'!$F$521:$F$531)","v":{"$error":"#N/A"}},{"$f":"_xlfn.XLOOKUP(A78,'Base-datos'!$B$521:$B$531,'Base-datos'!$C$521:$C$531)","v":{"$error":"#N/A"}},{"$f":"_xlfn.XLOOKUP(A78,'Base-datos'!$B$521:$B$531,'Base-datos'!$D$521:$D$531)","v":{"$error":"#N/A"}},null,null,{"$f":"IF(OR(H$77=\"La actividad no cumple con el total de los criterios de No Daño Significativo\",I$77=\"El sector no cumple con las salvaguardas mínimas\"),\"\",IF(AND('Base-datos'!$B$730=\"Sí\",'Base-datos'!$B$731=\"\",'Base-datos'!$B$732=\"\"),IF(F78=\"La actividad sí contribuye sustancialmente a la sostenibilidad\",SUM(B78:D78),0),IF(AND('Base-datos'!$B$730=\"Sí\",'Base-datos'!$B$731=\"Sí\",'Base-datos'!$B$732=\"\"),IF(AND(F78=\"La actividad sí contribuye sustancialmente a la sostenibilidad\",G78=\"La actividad sí contribuye sustancialmente a la sostenibilidad\"),SUM(B78:D78),0),IF(AND('Base-datos'!$B$730=\"Sí\",'Base-datos'!$B$731=\"Sí\",'Base-datos'!$B$732=\"Sí\"),IF(AND(F78=\"La actividad sí contribuye sustancialmente a la sostenibilidad\",G78=\"La actividad sí contribuye sustancialmente a la sostenibilidad\",E78=\"La actividad sí contribuye sustancialmente a la sostenibilidad\"),SUM(B78:D78),0),IF(AND('Base-datos'!$B$730=\"\",'Base-datos'!$B$731=\"Sí\",'Base-datos'!$B$732=\"\"),IF(G78=\"La actividad sí contribuye sustancialmente a la sostenibilidad\",SUM(B78:D78),0),IF(AND('Base-datos'!$B$730=\"\",'Base-datos'!$B$731=\"\",'Base-datos'!$B$732=\"Sí\"),IF(E78=\"La actividad sí contribuye sustancialmente a la sostenibilidad\",SUM(B78:D78),0),IF(AND('Base-datos'!$B$730=\"\",'Base-datos'!$B$731=\"Sí\",'Base-datos'!$B$732=\"Sí\"),IF(AND(G78=\"La actividad sí contribuye sustancialmente a la sostenibilidad\",E78=\"La actividad sí contribuye sustancialmente a la sostenibilidad\"),SUM(B78:D78),0),IF(AND('Base-datos'!$B$730=\"Sí\",'Base-datos'!$B$731=\"\",'Base-datos'!$B$732=\"Sí\"),IF(AND(F78=\"La actividad sí contribuye sustancialmente a la sostenibilidad\",E78=\"La actividad sí contribuye sustancialmente a la sostenibilidad\"),SUM(B78:D78),0),\"Por definir\"))))))))","v":"Por definir"}]
[{"$f":"Energía!$C14","v":"Seleccione"},{"$f":"IF(Energía!$E14=Empresas!B$12,Energía!$B14,\"\")","v":""},{"$f":"IF(Energía!$E14=Empresas!C$12,Energía!$B14,\"\")","v":""},{"$f":"IF(Energía!$E14=Empresas!D$12,Energía!$B14,\"\")","v":""},{"$f":"_xlfn.XLOOKUP(A79,'Base-datos'!$B$521:$B$531,'Base-datos'!$F$521:$F$531)","v":{"$error":"#N/A"}},{"$f":"_xlfn.XLOOKUP(A79,'Base-datos'!$B$521:$B$531,'Base-datos'!$C$521:$C$531)","v":{"$error":"#N/A"}},{"$f":"_xlfn.XLOOKUP(A79,'Base-datos'!$B$521:$B$531,'Base-datos'!$D$521:$D$531)","v":{"$error":"#N/A"}},null,null,{"$f":"IF(OR(H$77=\"La actividad no cumple con el total de los criterios de No Daño Significativo\",I$77=\"El sector no cumple con las salvaguardas mínimas\"),\"\",IF(AND('Base-datos'!$B$730=\"Sí\",'Base-datos'!$B$731=\"\",'Base-datos'!$B$732=\"\"),IF(F79=\"La actividad sí contribuye sustancialmente a la sostenibilidad\",SUM(B79:D79),0),IF(AND('Base-datos'!$B$730=\"Sí\",'Base-datos'!$B$731=\"Sí\",'Base-datos'!$B$732=\"\"),IF(AND(F79=\"La actividad sí contribuye sustancialmente a la sostenibilidad\",G79=\"La actividad sí contribuye sustancialmente a la sostenibilidad\"),SUM(B79:D79),0),IF(AND('Base-datos'!$B$730=\"Sí\",'Base-datos'!$B$731=\"Sí\",'Base-datos'!$B$732=\"Sí\"),IF(AND(F79=\"La actividad sí contribuye sustancialmente a la sostenibilidad\",G79=\"La actividad sí contribuye sustancialmente a la sostenibilidad\",E79=\"La actividad sí contribuye sustancialmente a la sostenibilidad\"),SUM(B79:D79),0),IF(AND('Base-datos'!$B$730=\"\",'Base-datos'!$B$731=\"Sí\",'Base-datos'!$B$732=\"\"),IF(G79=\"La actividad sí contribuye sustancialmente a la sostenibilidad\",SUM(B79:D79),0),IF(AND('Base-datos'!$B$730=\"\",'Base-datos'!$B$731=\"\",'Base-datos'!$B$732=\"Sí\"),IF(E79=\"La actividad sí contribuye sustancialmente a la sostenibilidad\",SUM(B79:D79),0),IF(AND('Base-datos'!$B$730=\"\",'Base-datos'!$B$731=\"Sí\",'Base-datos'!$B$732=\"Sí\"),IF(AND(G79=\"La actividad sí contribuye sustancialmente a la sostenibilidad\",E79=\"La actividad sí contribuye sustancialmente a la sostenibilidad\"),SUM(B79:D79),0),IF(AND('Base-datos'!$B$730=\"Sí\",'Base-datos'!$B$731=\"\",'Base-datos'!$B$732=\"Sí\"),IF(AND(F79=\"La actividad sí contribuye sustancialmente a la sostenibilidad\",E79=\"La actividad sí contribuye sustancialmente a la sostenibilidad\"),SUM(B79:D79),0),\"Por definir\"))))))))","v":"Por definir"}]
[{"$f":"Energía!$C16","v":"Seleccione"},{"$f":"IF(Energía!$E16=Empresas!B$12,Energía!$B16,\"\")","v":""},{"$f":"IF(Energía!$E16=Empresas!C$12,Energía!$B16,\"\")","v":""},{"$f":"IF(Energía!$E16=Empresas!D$12,Energía!$B16,\"\")","v":""},{"$f":"_xlfn.XLOOKUP(A80,'Base-datos'!$B$521:$B$531,'Base-datos'!$F$521:$F$531)","v":{"$error":"#N/A"}},{"$f":"_xlfn.XLOOKUP(A80,'Base-datos'!$B$521:$B$531,'Base-datos'!$C$521:$C$531)","v":{"$error":"#N/A"}},{"$f":"_xlfn.XLOOKUP(A80,'Base-datos'!$B$521:$B$531,'Base-datos'!$D$521:$D$531)","v":{"$error":"#N/A"}},null,null,{"$f":"IF(OR(H$77=\"La actividad no cumple con el total de los criterios de No Daño Significativo\",I$77=\"El sector no cumple con las salvaguardas mínimas\"),\"\",IF(AND('Base-datos'!$B$730=\"Sí\",'Base-datos'!$B$731=\"\",'Base-datos'!$B$732=\"\"),IF(F80=\"La actividad sí contribuye sustancialmente a la sostenibilidad\",SUM(B80:D80),0),IF(AND('Base-datos'!$B$730=\"Sí\",'Base-datos'!$B$731=\"Sí\",'Base-datos'!$B$732=\"\"),IF(AND(F80=\"La actividad sí contribuye sustancialmente a la sostenibilidad\",G80=\"La actividad sí contribuye sustancialmente a la sostenibilidad\"),SUM(B80:D80),0),IF(AND('Base-datos'!$B$730=\"Sí\",'Base-datos'!$B$731=\"Sí\",'Base-datos'!$B$732=\"Sí\"),IF(AND(F80=\"La actividad sí contribuye sustancialmente a la sostenibilidad\",G80=\"La actividad sí contribuye sustancialmente a la sostenibilidad\",E80=\"La actividad sí contribuye sustancialmente a la sostenibilidad\"),SUM(B80:D80),0),IF(AND('Base-datos'!$B$730=\"\",'Base-datos'!$B$731=\"Sí\",'Base-datos'!$B$732=\"\"),IF(G80=\"La actividad sí contribuye sustancialmente a la sostenibilidad\",SUM(B80:D80),0),IF(AND('Base-datos'!$B$730=\"\",'Base-datos'!$B$731=\"\",'Base-datos'!$B$732=\"Sí\"),IF(E80=\"La actividad sí contribuye sustancialmente a la sostenibilidad\",SUM(B80:D80),0),IF(AND('Base-datos'!$B$730=\"\",'Base-datos'!$B$731=\"Sí\",'Base-datos'!$B$732=\"Sí\"),IF(AND(G80=\"La actividad sí contribuye sustancialmente a la sostenibilidad\",E80=\"La actividad sí contribuye sustancialmente a la sostenibilidad\"),SUM(B80:D80),0),IF(AND('Base-datos'!$B$730=\"Sí\",'Base-datos'!$B$731=\"\",'Base-datos'!$B$732=\"Sí\"),IF(AND(F80=\"La actividad sí contribuye sustancialmente a la sostenibilidad\",E80=\"La actividad sí contribuye sustancialmente a la sostenibilidad\"),SUM(B80:D80),0),\"Por definir\"))))))))","v":"Por definir"}]
[{"$f":"Energía!$C18","v":"Seleccione"},{"$f":"IF(Energía!$E18=Empresas!B$12,Energía!$B18,\"\")","v":""},{"$f":"IF(Energía!$E18=Empresas!C$12,Energía!$B18,\"\")","v":""},{"$f":"IF(Energía!$E18=Empresas!D$12,Energía!$B18,\"\")","v":""},{"$f":"_xlfn.XLOOKUP(A81,'Base-datos'!$B$521:$B$531,'Base-datos'!$F$521:$F$531)","v":{"$error":"#N/A"}},{"$f":"_xlfn.XLOOKUP(A81,'Base-datos'!$B$521:$B$531,'Base-datos'!$C$521:$C$531)","v":{"$error":"#N/A"}},{"$f":"_xlfn.XLOOKUP(A81,'Base-datos'!$B$521:$B$531,'Base-datos'!$D$521:$D$531)","v":{"$error":"#N/A"}},null,null,{"$f":"IF(OR(H$77=\"La actividad no cumple con el total de los criterios de No Daño Significativo\",I$77=\"El sector no cumple con las salvaguardas mínimas\"),\"\",IF(AND('Base-datos'!$B$730=\"Sí\",'Base-datos'!$B$731=\"\",'Base-datos'!$B$732=\"\"),IF(F81=\"La actividad sí contribuye sustancialmente a la sostenibilidad\",SUM(B81:D81),0),IF(AND('Base-datos'!$B$730=\"Sí\",'Base-datos'!$B$731=\"Sí\",'Base-datos'!$B$732=\"\"),IF(AND(F81=\"La actividad sí contribuye sustancialmente a la sostenibilidad\",G81=\"La actividad sí contribuye sustancialmente a la sostenibilidad\"),SUM(B81:D81),0),IF(AND('Base-datos'!$B$730=\"Sí\",'Base-datos'!$B$731=\"Sí\",'Base-datos'!$B$732=\"Sí\"),IF(AND(F81=\"La actividad sí contribuye sustancialmente a la sostenibilidad\",G81=\"La actividad sí contribuye sustancialmente a la sostenibilidad\",E81=\"La actividad sí contribuye sustancialmente a la sostenibilidad\"),SUM(B81:D81),0),IF(AND('Base-datos'!$B$730=\"\",'Base-datos'!$B$731=\"Sí\",'Base-datos'!$B$732=\"\"),IF(G81=\"La actividad sí contribuye sustancialmente a la sostenibilidad\",SUM(B81:D81),0),IF(AND('Base-datos'!$B$730=\"\",'Base-datos'!$B$731=\"\",'Base-datos'!$B$732=\"Sí\"),IF(E81=\"La actividad sí contribuye sustancialmente a la sostenibilidad\",SUM(B81:D81),0),IF(AND('Base-datos'!$B$730=\"\",'Base-datos'!$B$731=\"Sí\",'Base-datos'!$B$732=\"Sí\"),IF(AND(G81=\"La actividad sí contribuye sustancialmente a la sostenibilidad\",E81=\"La actividad sí contribuye sustancialmente a la sostenibilidad\"),SUM(B81:D81),0),IF(AND('Base-datos'!$B$730=\"Sí\",'Base-datos'!$B$731=\"\",'Base-datos'!$B$732=\"Sí\"),IF(AND(F81=\"La actividad sí contribuye sustancialmente a la sostenibilidad\",E81=\"La actividad sí contribuye sustancialmente a la sostenibilidad\"),SUM(B81:D81),0),\"Por definir\"))))))))","v":"Por definir"}]
[{"$f":"Energía!$C20","v":"Seleccione"},{"$f":"IF(Energía!$E20=Empresas!B$12,Energía!$B20,\"\")","v":""},{"$f":"IF(Energía!$E20=Empresas!C$12,Energía!$B20,\"\")","v":""},{"$f":"IF(Energía!$E20=Empresas!D$12,Energía!$B20,\"\")","v":""},{"$f":"_xlfn.XLOOKUP(A82,'Base-datos'!$B$521:$B$531,'Base-datos'!$F$521:$F$531)","v":{"$error":"#N/A"}},{"$f":"_xlfn.XLOOKUP(A82,'Base-datos'!$B$521:$B$531,'Base-datos'!$C$521:$C$531)","v":{"$error":"#N/A"}},{"$f":"_xlfn.XLOOKUP(A82,'Base-datos'!$B$521:$B$531,'Base-datos'!$D$521:$D$531)","v":{"$error":"#N/A"}},null,null,{"$f":"IF(OR(H$77=\"La actividad no cumple con el total de los criterios de No Daño Significativo\",I$77=\"El sector no cumple con las salvaguardas mínimas\"),\"\",IF(AND('Base-datos'!$B$730=\"Sí\",'Base-datos'!$B$731=\"\",'Base-datos'!$B$732=\"\"),IF(F82=\"La actividad sí contribuye sustancialmente a la sostenibilidad\",SUM(B82:D82),0),IF(AND('Base-datos'!$B$730=\"Sí\",'Base-datos'!$B$731=\"Sí\",'Base-datos'!$B$732=\"\"),IF(AND(F82=\"La actividad sí contribuye sustancialmente a la sostenibilidad\",G82=\"La actividad sí contribuye sustancialmente a la sostenibilidad\"),SUM(B82:D82),0),IF(AND('Base-datos'!$B$730=\"Sí\",'Base-datos'!$B$731=\"Sí\",'Base-datos'!$B$732=\"Sí\"),IF(AND(F82=\"La actividad sí contribuye sustancialmente a la sostenibilidad\",G82=\"La actividad sí contribuye sustancialmente a la sostenibilidad\",E82=\"La actividad sí contribuye sustancialmente a la sostenibilidad\"),SUM(B82:D82),0),IF(AND('Base-datos'!$B$730=\"\",'Base-datos'!$B$731=\"Sí\",'Base-datos'!$B$732=\"\"),IF(G82=\"La actividad sí contribuye sustancialmente a la sostenibilidad\",SUM(B82:D82),0),IF(AND('Base-datos'!$B$730=\"\",'Base-datos'!$B$731=\"\",'Base-datos'!$B$732=\"Sí\"),IF(E82=\"La actividad sí contribuye sustancialmente a la sostenibilidad\",SUM(B82:D82),0),IF(AND('Base-datos'!$B$730=\"\",'Base-datos'!$B$731=\"Sí\",'Base-datos'!$B$732=\"Sí\"),IF(AND(G82=\"La actividad sí contribuye sustancialmente a la sostenibilidad\",E82=\"La actividad sí contribuye sustancialmente a la sostenibilidad\"),SUM(B82:D82),0),IF(AND('Base-datos'!$B$730=\"Sí\",'Base-datos'!$B$731=\"\",'Base-datos'!$B$732=\"Sí\"),IF(AND(F82=\"La actividad sí contribuye sustancialmente a la sostenibilidad\",E82=\"La actividad sí contribuye sustancialmente a la sostenibilidad\"),SUM(B82:D82),0),\"Por definir\"))))))))","v":"Por definir"}]
[{"$f":"Energía!$C22","v":"Seleccione"},{"$f":"IF(Energía!$E22=Empresas!B$12,Energía!$B22,\"\")","v":""},{"$f":"IF(Energía!$E22=Empresas!C$12,Energía!$B22,\"\")","v":""},{"$f":"IF(Energía!$E22=Empresas!D$12,Energía!$B22,\"\")","v":""},{"$f":"_xlfn.XLOOKUP(A83,'Base-datos'!$B$521:$B$531,'Base-datos'!$F$521:$F$531)","v":{"$error":"#N/A"}},{"$f":"_xlfn.XLOOKUP(A83,'Base-datos'!$B$521:$B$531,'Base-datos'!$C$521:$C$531)","v":{"$error":"#N/A"}},{"$f":"_xlfn.XLOOKUP(A83,'Base-datos'!$B$521:$B$531,'Base-datos'!$D$521:$D$531)","v":{"$error":"#N/A"}},null,null,{"$f":"IF(OR(H$77=\"La actividad no cumple con el total de los criterios de No Daño Significativo\",I$77=\"El sector no cumple con las salvaguardas mínimas\"),\"\",IF(AND('Base-datos'!$B$730=\"Sí\",'Base-datos'!$B$731=\"\",'Base-datos'!$B$732=\"\"),IF(F83=\"La actividad sí contribuye sustancialmente a la sostenibilidad\",SUM(B83:D83),0),IF(AND('Base-datos'!$B$730=\"Sí\",'Base-datos'!$B$731=\"Sí\",'Base-datos'!$B$732=\"\"),IF(AND(F83=\"La actividad sí contribuye sustancialmente a la sostenibilidad\",G83=\"La actividad sí contribuye sustancialmente a la sostenibilidad\"),SUM(B83:D83),0),IF(AND('Base-datos'!$B$730=\"Sí\",'Base-datos'!$B$731=\"Sí\",'Base-datos'!$B$732=\"Sí\"),IF(AND(F83=\"La actividad sí contribuye sustancialmente a la sostenibilidad\",G83=\"La actividad sí contribuye sustancialmente a la sostenibilidad\",E83=\"La actividad sí contribuye sustancialmente a la sostenibilidad\"),SUM(B83:D83),0),IF(AND('Base-datos'!$B$730=\"\",'Base-datos'!$B$731=\"Sí\",'Base-datos'!$B$732=\"\"),IF(G83=\"La actividad sí contribuye sustancialmente a la sostenibilidad\",SUM(B83:D83),0),IF(AND('Base-datos'!$B$730=\"\",'Base-datos'!$B$731=\"\",'Base-datos'!$B$732=\"Sí\"),IF(E83=\"La actividad sí contribuye sustancialmente a la sostenibilidad\",SUM(B83:D83),0),IF(AND('Base-datos'!$B$730=\"\",'Base-datos'!$B$731=\"Sí\",'Base-datos'!$B$732=\"Sí\"),IF(AND(G83=\"La actividad sí contribuye sustancialmente a la sostenibilidad\",E83=\"La actividad sí contribuye sustancialmente a la sostenibilidad\"),SUM(B83:D83),0),IF(AND('Base-datos'!$B$730=\"Sí\",'Base-datos'!$B$731=\"\",'Base-datos'!$B$732=\"Sí\"),IF(AND(F83=\"La actividad sí contribuye sustancialmente a la sostenibilidad\",E83=\"La actividad sí contribuye sustancialmente a la sostenibilidad\"),SUM(B83:D83),0),\"Por definir\"))))))))","v":"Por definir"}]
[{"$f":"Energía!$C24","v":"Seleccione"},{"$f":"IF(Energía!$E24=Empresas!B$12,Energía!$B24,\"\")","v":""},{"$f":"IF(Energía!$E24=Empresas!C$12,Energía!$B24,\"\")","v":""},{"$f":"IF(Energía!$E24=Empresas!D$12,Energía!$B24,\"\")","v":""},{"$f":"_xlfn.XLOOKUP(A84,'Base-datos'!$B$521:$B$531,'Base-datos'!$F$521:$F$531)","v":{"$error":"#N/A"}},{"$f":"_xlfn.XLOOKUP(A84,'Base-datos'!$B$521:$B$531,'Base-datos'!$C$521:$C$531)","v":{"$error":"#N/A"}},{"$f":"_xlfn.XLOOKUP(A84,'Base-datos'!$B$521:$B$531,'Base-datos'!$D$521:$D$531)","v":{"$error":"#N/A"}},null,null,{"$f":"IF(OR(H$77=\"La actividad no cumple con el total de los criterios de No Daño Significativo\",I$77=\"El sector no cumple con las salvaguardas mínimas\"),\"\",IF(AND('Base-datos'!$B$730=\"Sí\",'Base-datos'!$B$731=\"\",'Base-datos'!$B$732=\"\"),IF(F84=\"La actividad sí contribuye sustancialmente a la sostenibilidad\",SUM(B84:D84),0),IF(AND('Base-datos'!$B$730=\"Sí\",'Base-datos'!$B$731=\"Sí\",'Base-datos'!$B$732=\"\"),IF(AND(F84=\"La actividad sí contribuye sustancialmente a la sostenibilidad\",G84=\"La actividad sí contribuye sustancialmente a la sostenibilidad\"),SUM(B84:D84),0),IF(AND('Base-datos'!$B$730=\"Sí\",'Base-datos'!$B$731=\"Sí\",'Base-datos'!$B$732=\"Sí\"),IF(AND(F84=\"La actividad sí contribuye sustancialmente a la sostenibilidad\",G84=\"La actividad sí contribuye sustancialmente a la sostenibilidad\",E84=\"La actividad sí contribuye sustancialmente a la sostenibilidad\"),SUM(B84:D84),0),IF(AND('Base-datos'!$B$730=\"\",'Base-datos'!$B$731=\"Sí\",'Base-datos'!$B$732=\"\"),IF(G84=\"La actividad sí contribuye sustancialmente a la sostenibilidad\",SUM(B84:D84),0),IF(AND('Base-datos'!$B$730=\"\",'Base-datos'!$B$731=\"\",'Base-datos'!$B$732=\"Sí\"),IF(E84=\"La actividad sí contribuye sustancialmente a la sostenibilidad\",SUM(B84:D84),0),IF(AND('Base-datos'!$B$730=\"\",'Base-datos'!$B$731=\"Sí\",'Base-datos'!$B$732=\"Sí\"),IF(AND(G84=\"La actividad sí contribuye sustancialmente a la sostenibilidad\",E84=\"La actividad sí contribuye sustancialmente a la sostenibilidad\"),SUM(B84:D84),0),IF(AND('Base-datos'!$B$730=\"Sí\",'Base-datos'!$B$731=\"\",'Base-datos'!$B$732=\"Sí\"),IF(AND(F84=\"La actividad sí contribuye sustancialmente a la sostenibilidad\",E84=\"La actividad sí contribuye sustancialmente a la sostenibilidad\"),SUM(B84:D84),0),\"Por definir\"))))))))","v":"Por definir"}]
[{"$f":"Energía!$C26","v":"Seleccione"},{"$f":"IF(Energía!$E26=Empresas!B$12,Energía!$B26,\"\")","v":""},{"$f":"IF(Energía!$E26=Empresas!C$12,Energía!$B26,\"\")","v":""},{"$f":"IF(Energía!$E26=Empresas!D$12,Energía!$B26,\"\")","v":""},{"$f":"_xlfn.XLOOKUP(A85,'Base-datos'!$B$521:$B$531,'Base-datos'!$F$521:$F$531)","v":{"$error":"#N/A"}},{"$f":"_xlfn.XLOOKUP(A85,'Base-datos'!$B$521:$B$531,'Base-datos'!$C$521:$C$531)","v":{"$error":"#N/A"}},{"$f":"_xlfn.XLOOKUP(A85,'Base-datos'!$B$521:$B$531,'Base-datos'!$D$521:$D$531)","v":{"$error":"#N/A"}},null,null,{"$f":"IF(OR(H$77=\"La actividad no cumple con el total de los criterios de No Daño Significativo\",I$77=\"El sector no cumple con las salvaguardas mínimas\"),\"\",IF(AND('Base-datos'!$B$730=\"Sí\",'Base-datos'!$B$731=\"\",'Base-datos'!$B$732=\"\"),IF(F85=\"La actividad sí contribuye sustancialmente a la sostenibilidad\",SUM(B85:D85),0),IF(AND('Base-datos'!$B$730=\"Sí\",'Base-datos'!$B$731=\"Sí\",'Base-datos'!$B$732=\"\"),IF(AND(F85=\"La actividad sí contribuye sustancialmente a la sostenibilidad\",G85=\"La actividad sí contribuye sustancialmente a la sostenibilidad\"),SUM(B85:D85),0),IF(AND('Base-datos'!$B$730=\"Sí\",'Base-datos'!$B$731=\"Sí\",'Base-datos'!$B$732=\"Sí\"),IF(AND(F85=\"La actividad sí contribuye sustancialmente a la sostenibilidad\",G85=\"La actividad sí contribuye sustancialmente a la sostenibilidad\",E85=\"La actividad sí contribuye sustancialmente a la sostenibilidad\"),SUM(B85:D85),0),IF(AND('Base-datos'!$B$730=\"\",'Base-datos'!$B$731=\"Sí\",'Base-datos'!$B$732=\"\"),IF(G85=\"La actividad sí contribuye sustancialmente a la sostenibilidad\",SUM(B85:D85),0),IF(AND('Base-datos'!$B$730=\"\",'Base-datos'!$B$731=\"\",'Base-datos'!$B$732=\"Sí\"),IF(E85=\"La actividad sí contribuye sustancialmente a la sostenibilidad\",SUM(B85:D85),0),IF(AND('Base-datos'!$B$730=\"\",'Base-datos'!$B$731=\"Sí\",'Base-datos'!$B$732=\"Sí\"),IF(AND(G85=\"La actividad sí contribuye sustancialmente a la sostenibilidad\",E85=\"La actividad sí contribuye sustancialmente a la sostenibilidad\"),SUM(B85:D85),0),IF(AND('Base-datos'!$B$730=\"Sí\",'Base-datos'!$B$731=\"\",'Base-datos'!$B$732=\"Sí\"),IF(AND(F85=\"La actividad sí contribuye sustancialmente a la sostenibilidad\",E85=\"La actividad sí contribuye sustancialmente a la sostenibilidad\"),SUM(B85:D85),0),\"Por definir\"))))))))","v":"Por definir"}]
[{"$f":"Energía!$C28","v":"Seleccione"},{"$f":"IF(Energía!$E28=Empresas!B$12,Energía!$B28,\"\")","v":""},{"$f":"IF(Energía!$E28=Empresas!C$12,Energía!$B28,\"\")","v":""},{"$f":"IF(Energía!$E28=Empresas!D$12,Energía!$B28,\"\")","v":""},{"$f":"_xlfn.XLOOKUP(A86,'Base-datos'!$B$521:$B$531,'Base-datos'!$F$521:$F$531)","v":{"$error":"#N/A"}},{"$f":"_xlfn.XLOOKUP(A86,'Base-datos'!$B$521:$B$531,'Base-datos'!$C$521:$C$531)","v":{"$error":"#N/A"}},{"$f":"_xlfn.XLOOKUP(A86,'Base-datos'!$B$521:$B$531,'Base-datos'!$D$521:$D$531)","v":{"$error":"#N/A"}},null,null,{"$f":"IF(OR(H$77=\"La actividad no cumple con el total de los criterios de No Daño Significativo\",I$77=\"El sector no cumple con las salvaguardas mínimas\"),\"\",IF(AND('Base-datos'!$B$730=\"Sí\",'Base-datos'!$B$731=\"\",'Base-datos'!$B$732=\"\"),IF(F86=\"La actividad sí contribuye sustancialmente a la sostenibilidad\",SUM(B86:D86),0),IF(AND('Base-datos'!$B$730=\"Sí\",'Base-datos'!$B$731=\"Sí\",'Base-datos'!$B$732=\"\"),IF(AND(F86=\"La actividad sí contribuye sustancialmente a la sostenibilidad\",G86=\"La actividad sí contribuye sustancialmente a la sostenibilidad\"),SUM(B86:D86),0),IF(AND('Base-datos'!$B$730=\"Sí\",'Base-datos'!$B$731=\"Sí\",'Base-datos'!$B$732=\"Sí\"),IF(AND(F86=\"La actividad sí contribuye sustancialmente a la sostenibilidad\",G86=\"La actividad sí contribuye sustancialmente a la sostenibilidad\",E86=\"La actividad sí contribuye sustancialmente a la sostenibilidad\"),SUM(B86:D86),0),IF(AND('Base-datos'!$B$730=\"\",'Base-datos'!$B$731=\"Sí\",'Base-datos'!$B$732=\"\"),IF(G86=\"La actividad sí contribuye sustancialmente a la sostenibilidad\",SUM(B86:D86),0),IF(AND('Base-datos'!$B$730=\"\",'Base-datos'!$B$731=\"\",'Base-datos'!$B$732=\"Sí\"),IF(E86=\"La actividad sí contribuye sustancialmente a la sostenibilidad\",SUM(B86:D86),0),IF(AND('Base-datos'!$B$730=\"\",'Base-datos'!$B$731=\"Sí\",'Base-datos'!$B$732=\"Sí\"),IF(AND(G86=\"La actividad sí contribuye sustancialmente a la sostenibilidad\",E86=\"La actividad sí contribuye sustancialmente a la sostenibilidad\"),SUM(B86:D86),0),IF(AND('Base-datos'!$B$730=\"Sí\",'Base-datos'!$B$731=\"\",'Base-datos'!$B$732=\"Sí\"),IF(AND(F86=\"La actividad sí contribuye sustancialmente a la sostenibilidad\",E86=\"La actividad sí contribuye sustancialmente a la sostenibilidad\"),SUM(B86:D86),0),\"Por definir\"))))))))","v":"Por definir"}]
[{"$f":"Energía!$C30","v":"Seleccione"},{"$f":"IF(Energía!$E30=Empresas!B$12,Energía!$B30,\"\")","v":""},{"$f":"IF(Energía!$E30=Empresas!C$12,Energía!$B30,\"\")","v":""},{"$f":"IF(Energía!$E30=Empresas!D$12,Energía!$B30,\"\")","v":""},{"$f":"_xlfn.XLOOKUP(A87,'Base-datos'!$B$521:$B$531,'Base-datos'!$F$521:$F$531)","v":{"$error":"#N/A"}},{"$f":"_xlfn.XLOOKUP(A87,'Base-datos'!$B$521:$B$531,'Base-datos'!$C$521:$C$531)","v":{"$error":"#N/A"}},{"$f":"_xlfn.XLOOKUP(A87,'Base-datos'!$B$521:$B$531,'Base-datos'!$D$521:$D$531)","v":{"$error":"#N/A"}},null,null,{"$f":"IF(OR(H$77=\"La actividad no cumple con el total de los criterios de No Daño Significativo\",I$77=\"El sector no cumple con las salvaguardas mínimas\"),\"\",IF(AND('Base-datos'!$B$730=\"Sí\",'Base-datos'!$B$731=\"\",'Base-datos'!$B$732=\"\"),IF(F87=\"La actividad sí contribuye sustancialmente a la sostenibilidad\",SUM(B87:D87),0),IF(AND('Base-datos'!$B$730=\"Sí\",'Base-datos'!$B$731=\"Sí\",'Base-datos'!$B$732=\"\"),IF(AND(F87=\"La actividad sí contribuye sustancialmente a la sostenibilidad\",G87=\"La actividad sí contribuye sustancialmente a la sostenibilidad\"),SUM(B87:D87),0),IF(AND('Base-datos'!$B$730=\"Sí\",'Base-datos'!$B$731=\"Sí\",'Base-datos'!$B$732=\"Sí\"),IF(AND(F87=\"La actividad sí contribuye sustancialmente a la sostenibilidad\",G87=\"La actividad sí contribuye sustancialmente a la sostenibilidad\",E87=\"La actividad sí contribuye sustancialmente a la sostenibilidad\"),SUM(B87:D87),0),IF(AND('Base-datos'!$B$730=\"\",'Base-datos'!$B$731=\"Sí\",'Base-datos'!$B$732=\"\"),IF(G87=\"La actividad sí contribuye sustancialmente a la sostenibilidad\",SUM(B87:D87),0),IF(AND('Base-datos'!$B$730=\"\",'Base-datos'!$B$731=\"\",'Base-datos'!$B$732=\"Sí\"),IF(E87=\"La actividad sí contribuye sustancialmente a la sostenibilidad\",SUM(B87:D87),0),IF(AND('Base-datos'!$B$730=\"\",'Base-datos'!$B$731=\"Sí\",'Base-datos'!$B$732=\"Sí\"),IF(AND(G87=\"La actividad sí contribuye sustancialmente a la sostenibilidad\",E87=\"La actividad sí contribuye sustancialmente a la sostenibilidad\"),SUM(B87:D87),0),IF(AND('Base-datos'!$B$730=\"Sí\",'Base-datos'!$B$731=\"\",'Base-datos'!$B$732=\"Sí\"),IF(AND(F87=\"La actividad sí contribuye sustancialmente a la sostenibilidad\",E87=\"La actividad sí contribuye sustancialmente a la sostenibilidad\"),SUM(B87:D87),0),\"Por definir\"))))))))","v":"Por definir"}]
[{"$f":"Energía!$C32","v":"Seleccione"},{"$f":"IF(Energía!$E32=Empresas!B$12,Energía!$B32,\"\")","v":""},{"$f":"IF(Energía!$E32=Empresas!C$12,Energía!$B32,\"\")","v":""},{"$f":"IF(Energía!$E32=Empresas!D$12,Energía!$B32,\"\")","v":""},{"$f":"_xlfn.XLOOKUP(A88,'Base-datos'!$B$521:$B$531,'Base-datos'!$F$521:$F$531)","v":{"$error":"#N/A"}},{"$f":"_xlfn.XLOOKUP(A88,'Base-datos'!$B$521:$B$531,'Base-datos'!$C$521:$C$531)","v":{"$error":"#N/A"}},{"$f":"_xlfn.XLOOKUP(A88,'Base-datos'!$B$521:$B$531,'Base-datos'!$D$521:$D$531)","v":{"$error":"#N/A"}},null,null,{"$f":"IF(OR(H$77=\"La actividad no cumple con el total de los criterios de No Daño Significativo\",I$77=\"El sector no cumple con las salvaguardas mínimas\"),\"\",IF(AND('Base-datos'!$B$730=\"Sí\",'Base-datos'!$B$731=\"\",'Base-datos'!$B$732=\"\"),IF(F88=\"La actividad sí contribuye sustancialmente a la sostenibilidad\",SUM(B88:D88),0),IF(AND('Base-datos'!$B$730=\"Sí\",'Base-datos'!$B$731=\"Sí\",'Base-datos'!$B$732=\"\"),IF(AND(F88=\"La actividad sí contribuye sustancialmente a la sostenibilidad\",G88=\"La actividad sí contribuye sustancialmente a la sostenibilidad\"),SUM(B88:D88),0),IF(AND('Base-datos'!$B$730=\"Sí\",'Base-datos'!$B$731=\"Sí\",'Base-datos'!$B$732=\"Sí\"),IF(AND(F88=\"La actividad sí contribuye sustancialmente a la sostenibilidad\",G88=\"La actividad sí contribuye sustancialmente a la sostenibilidad\",E88=\"La actividad sí contribuye sustancialmente a la sostenibilidad\"),SUM(B88:D88),0),IF(AND('Base-datos'!$B$730=\"\",'Base-datos'!$B$731=\"Sí\",'Base-datos'!$B$732=\"\"),IF(G88=\"La actividad sí contribuye sustancialmente a la sostenibilidad\",SUM(B88:D88),0),IF(AND('Base-datos'!$B$730=\"\",'Base-datos'!$B$731=\"\",'Base-datos'!$B$732=\"Sí\"),IF(E88=\"La actividad sí contribuye sustancialmente a la sostenibilidad\",SUM(B88:D88),0),IF(AND('Base-datos'!$B$730=\"\",'Base-datos'!$B$731=\"Sí\",'Base-datos'!$B$732=\"Sí\"),IF(AND(G88=\"La actividad sí contribuye sustancialmente a la sostenibilidad\",E88=\"La actividad sí contribuye sustancialmente a la sostenibilidad\"),SUM(B88:D88),0),IF(AND('Base-datos'!$B$730=\"Sí\",'Base-datos'!$B$731=\"\",'Base-datos'!$B$732=\"Sí\"),IF(AND(F88=\"La actividad sí contribuye sustancialmente a la sostenibilidad\",E88=\"La actividad sí contribuye sustancialmente a la sostenibilidad\"),SUM(B88:D88),0),\"Por definir\"))))))))","v":"Por definir"}]
[{"$f":"Energía!$C34","v":"Seleccione"},{"$f":"IF(Energía!$E34=Empresas!B$12,Energía!$B34,\"\")","v":""},{"$f":"IF(Energía!$E34=Empresas!C$12,Energía!$B34,\"\")","v":""},{"$f":"IF(Energía!$E34=Empresas!D$12,Energía!$B34,\"\")","v":""},{"$f":"_xlfn.XLOOKUP(A89,'Base-datos'!$B$521:$B$531,'Base-datos'!$F$521:$F$531)","v":{"$error":"#N/A"}},{"$f":"_xlfn.XLOOKUP(A89,'Base-datos'!$B$521:$B$531,'Base-datos'!$C$521:$C$531)","v":{"$error":"#N/A"}},{"$f":"_xlfn.XLOOKUP(A89,'Base-datos'!$B$521:$B$531,'Base-datos'!$D$521:$D$531)","v":{"$error":"#N/A"}},null,null,{"$f":"IF(OR(H$77=\"La actividad no cumple con el total de los criterios de No Daño Significativo\",I$77=\"El sector no cumple con las salvaguardas mínimas\"),\"\",IF(AND('Base-datos'!$B$730=\"Sí\",'Base-datos'!$B$731=\"\",'Base-datos'!$B$732=\"\"),IF(F89=\"La actividad sí contribuye sustancialmente a la sostenibilidad\",SUM(B89:D89),0),IF(AND('Base-datos'!$B$730=\"Sí\",'Base-datos'!$B$731=\"Sí\",'Base-datos'!$B$732=\"\"),IF(AND(F89=\"La actividad sí contribuye sustancialmente a la sostenibilidad\",G89=\"La actividad sí contribuye sustancialmente a la sostenibilidad\"),SUM(B89:D89),0),IF(AND('Base-datos'!$B$730=\"Sí\",'Base-datos'!$B$731=\"Sí\",'Base-datos'!$B$732=\"Sí\"),IF(AND(F89=\"La actividad sí contribuye sustancialmente a la sostenibilidad\",G89=\"La actividad sí contribuye sustancialmente a la sostenibilidad\",E89=\"La actividad sí contribuye sustancialmente a la sostenibilidad\"),SUM(B89:D89),0),IF(AND('Base-datos'!$B$730=\"\",'Base-datos'!$B$731=\"Sí\",'Base-datos'!$B$732=\"\"),IF(G89=\"La actividad sí contribuye sustancialmente a la sostenibilidad\",SUM(B89:D89),0),IF(AND('Base-datos'!$B$730=\"\",'Base-datos'!$B$731=\"\",'Base-datos'!$B$732=\"Sí\"),IF(E89=\"La actividad sí contribuye sustancialmente a la sostenibilidad\",SUM(B89:D89),0),IF(AND('Base-datos'!$B$730=\"\",'Base-datos'!$B$731=\"Sí\",'Base-datos'!$B$732=\"Sí\"),IF(AND(G89=\"La actividad sí contribuye sustancialmente a la sostenibilidad\",E89=\"La actividad sí contribuye sustancialmente a la sostenibilidad\"),SUM(B89:D89),0),IF(AND('Base-datos'!$B$730=\"Sí\",'Base-datos'!$B$731=\"\",'Base-datos'!$B$732=\"Sí\"),IF(AND(F89=\"La actividad sí contribuye sustancialmente a la sostenibilidad\",E89=\"La actividad sí contribuye sustancialmente a la sostenibilidad\"),SUM(B89:D89),0),\"Por definir\"))))))))","v":"Por definir"}]
[{"$f":"Energía!$C36","v":"Seleccione"},{"$f":"IF(Energía!$E36=Empresas!B$12,Energía!$B36,\"\")","v":""},{"$f":"IF(Energía!$E36=Empresas!C$12,Energía!$B36,\"\")","v":""},{"$f":"IF(Energía!$E36=Empresas!D$12,Energía!$B36,\"\")","v":""},{"$f":"_xlfn.XLOOKUP(A90,'Base-datos'!$B$521:$B$531,'Base-datos'!$F$521:$F$531)","v":{"$error":"#N/A"}},{"$f":"_xlfn.XLOOKUP(A90,'Base-datos'!$B$521:$B$531,'Base-datos'!$C$521:$C$531)","v":{"$error":"#N/A"}},{"$f":"_xlfn.XLOOKUP(A90,'Base-datos'!$B$521:$B$531,'Base-datos'!$D$521:$D$531)","v":{"$error":"#N/A"}},null,null,{"$f":"IF(OR(H$77=\"La actividad no cumple con el total de los criterios de No Daño Significativo\",I$77=\"El sector no cumple con las salvaguardas mínimas\"),\"\",IF(AND('Base-datos'!$B$730=\"Sí\",'Base-datos'!$B$731=\"\",'Base-datos'!$B$732=\"\"),IF(F90=\"La actividad sí contribuye sustancialmente a la sostenibilidad\",SUM(B90:D90),0),IF(AND('Base-datos'!$B$730=\"Sí\",'Base-datos'!$B$731=\"Sí\",'Base-datos'!$B$732=\"\"),IF(AND(F90=\"La actividad sí contribuye sustancialmente a la sostenibilidad\",G90=\"La actividad sí contribuye sustancialmente a la sostenibilidad\"),SUM(B90:D90),0),IF(AND('Base-datos'!$B$730=\"Sí\",'Base-datos'!$B$731=\"Sí\",'Base-datos'!$B$732=\"Sí\"),IF(AND(F90=\"La actividad sí contribuye sustancialmente a la sostenibilidad\",G90=\"La actividad sí contribuye sustancialmente a la sostenibilidad\",E90=\"La actividad sí contribuye sustancialmente a la sostenibilidad\"),SUM(B90:D90),0),IF(AND('Base-datos'!$B$730=\"\",'Base-datos'!$B$731=\"Sí\",'Base-datos'!$B$732=\"\"),IF(G90=\"La actividad sí contribuye sustancialmente a la sostenibilidad\",SUM(B90:D90),0),IF(AND('Base-datos'!$B$730=\"\",'Base-datos'!$B$731=\"\",'Base-datos'!$B$732=\"Sí\"),IF(E90=\"La actividad sí contribuye sustancialmente a la sostenibilidad\",SUM(B90:D90),0),IF(AND('Base-datos'!$B$730=\"\",'Base-datos'!$B$731=\"Sí\",'Base-datos'!$B$732=\"Sí\"),IF(AND(G90=\"La actividad sí contribuye sustancialmente a la sostenibilidad\",E90=\"La actividad sí contribuye sustancialmente a la sostenibilidad\"),SUM(B90:D90),0),IF(AND('Base-datos'!$B$730=\"Sí\",'Base-datos'!$B$731=\"\",'Base-datos'!$B$732=\"Sí\"),IF(AND(F90=\"La actividad sí contribuye sustancialmente a la sostenibilidad\",E90=\"La actividad sí contribuye sustancialmente a la sostenibilidad\"),SUM(B90:D90),0),\"Por definir\"))))))))","v":"Por definir"}]
[{"$f":"Energía!$C38","v":"Seleccione"},{"$f":"IF(Energía!$E38=Empresas!B$12,Energía!$B38,\"\")","v":""},{"$f":"IF(Energía!$E38=Empresas!C$12,Energía!$B38,\"\")","v":""},{"$f":"IF(Energía!$E38=Empresas!D$12,Energía!$B38,\"\")","v":""},{"$f":"_xlfn.XLOOKUP(A91,'Base-datos'!$B$521:$B$531,'Base-datos'!$F$521:$F$531)","v":{"$error":"#N/A"}},{"$f":"_xlfn.XLOOKUP(A91,'Base-datos'!$B$521:$B$531,'Base-datos'!$C$521:$C$531)","v":{"$error":"#N/A"}},{"$f":"_xlfn.XLOOKUP(A91,'Base-datos'!$B$521:$B$531,'Base-datos'!$D$521:$D$531)","v":{"$error":"#N/A"}},null,null,{"$f":"IF(OR(H$77=\"La actividad no cumple con el total de los criterios de No Daño Significativo\",I$77=\"El sector no cumple con las salvaguardas mínimas\"),\"\",IF(AND('Base-datos'!$B$730=\"Sí\",'Base-datos'!$B$731=\"\",'Base-datos'!$B$732=\"\"),IF(F91=\"La actividad sí contribuye sustancialmente a la sostenibilidad\",SUM(B91:D91),0),IF(AND('Base-datos'!$B$730=\"Sí\",'Base-datos'!$B$731=\"Sí\",'Base-datos'!$B$732=\"\"),IF(AND(F91=\"La actividad sí contribuye sustancialmente a la sostenibilidad\",G91=\"La actividad sí contribuye sustancialmente a la sostenibilidad\"),SUM(B91:D91),0),IF(AND('Base-datos'!$B$730=\"Sí\",'Base-datos'!$B$731=\"Sí\",'Base-datos'!$B$732=\"Sí\"),IF(AND(F91=\"La actividad sí contribuye sustancialmente a la sostenibilidad\",G91=\"La actividad sí contribuye sustancialmente a la sostenibilidad\",E91=\"La actividad sí contribuye sustancialmente a la sostenibilidad\"),SUM(B91:D91),0),IF(AND('Base-datos'!$B$730=\"\",'Base-datos'!$B$731=\"Sí\",'Base-datos'!$B$732=\"\"),IF(G91=\"La actividad sí contribuye sustancialmente a la sostenibilidad\",SUM(B91:D91),0),IF(AND('Base-datos'!$B$730=\"\",'Base-datos'!$B$731=\"\",'Base-datos'!$B$732=\"Sí\"),IF(E91=\"La actividad sí contribuye sustancialmente a la sostenibilidad\",SUM(B91:D91),0),IF(AND('Base-datos'!$B$730=\"\",'Base-datos'!$B$731=\"Sí\",'Base-datos'!$B$732=\"Sí\"),IF(AND(G91=\"La actividad sí contribuye sustancialmente a la sostenibilidad\",E91=\"La actividad sí contribuye sustancialmente a la sostenibilidad\"),SUM(B91:D91),0),IF(AND('Base-datos'!$B$730=\"Sí\",'Base-datos'!$B$731=\"\",'Base-datos'!$B$732=\"Sí\"),IF(AND(F91=\"La actividad sí contribuye sustancialmente a la sostenibilidad\",E91=\"La actividad sí contribuye sustancialmente a la sostenibilidad\"),SUM(B91:D91),0),\"Por definir\"))))))))","v":"Por definir"}]
[{"$f":"Energía!$C40","v":"Seleccione"},{"$f":"IF(Energía!$E40=Empresas!B$12,Energía!$B40,\"\")","v":""},{"$f":"IF(Energía!$E40=Empresas!C$12,Energía!$B40,\"\")","v":""},{"$f":"IF(Energía!$E40=Empresas!D$12,Energía!$B40,\"\")","v":""},{"$f":"_xlfn.XLOOKUP(A92,'Base-datos'!$B$521:$B$531,'Base-datos'!$F$521:$F$531)","v":{"$error":"#N/A"}},{"$f":"_xlfn.XLOOKUP(A92,'Base-datos'!$B$521:$B$531,'Base-datos'!$C$521:$C$531)","v":{"$error":"#N/A"}},{"$f":"_xlfn.XLOOKUP(A92,'Base-datos'!$B$521:$B$531,'Base-datos'!$D$521:$D$531)","v":{"$error":"#N/A"}},null,null,{"$f":"IF(OR(H$77=\"La actividad no cumple con el total de los criterios de No Daño Significativo\",I$77=\"El sector no cumple con las salvaguardas mínimas\"),\"\",IF(AND('Base-datos'!$B$730=\"Sí\",'Base-datos'!$B$731=\"\",'Base-datos'!$B$732=\"\"),IF(F92=\"La actividad sí contribuye sustancialmente a la sostenibilidad\",SUM(B92:D92),0),IF(AND('Base-datos'!$B$730=\"Sí\",'Base-datos'!$B$731=\"Sí\",'Base-datos'!$B$732=\"\"),IF(AND(F92=\"La actividad sí contribuye sustancialmente a la sostenibilidad\",G92=\"La actividad sí contribuye sustancialmente a la sostenibilidad\"),SUM(B92:D92),0),IF(AND('Base-datos'!$B$730=\"Sí\",'Base-datos'!$B$731=\"Sí\",'Base-datos'!$B$732=\"Sí\"),IF(AND(F92=\"La actividad sí contribuye sustancialmente a la sostenibilidad\",G92=\"La actividad sí contribuye sustancialmente a la sostenibilidad\",E92=\"La actividad sí contribuye sustancialmente a la sostenibilidad\"),SUM(B92:D92),0),IF(AND('Base-datos'!$B$730=\"\",'Base-datos'!$B$731=\"Sí\",'Base-datos'!$B$732=\"\"),IF(G92=\"La actividad sí contribuye sustancialmente a la sostenibilidad\",SUM(B92:D92),0),IF(AND('Base-datos'!$B$730=\"\",'Base-datos'!$B$731=\"\",'Base-datos'!$B$732=\"Sí\"),IF(E92=\"La actividad sí contribuye sustancialmente a la sostenibilidad\",SUM(B92:D92),0),IF(AND('Base-datos'!$B$730=\"\",'Base-datos'!$B$731=\"Sí\",'Base-datos'!$B$732=\"Sí\"),IF(AND(G92=\"La actividad sí contribuye sustancialmente a la sostenibilidad\",E92=\"La actividad sí contribuye sustancialmente a la sostenibilidad\"),SUM(B92:D92),0),IF(AND('Base-datos'!$B$730=\"Sí\",'Base-datos'!$B$731=\"\",'Base-datos'!$B$732=\"Sí\"),IF(AND(F92=\"La actividad sí contribuye sustancialmente a la sostenibilidad\",E92=\"La actividad sí contribuye sustancialmente a la sostenibilidad\"),SUM(B92:D92),0),\"Por definir\"))))))))","v":"Por definir"}]
[{"$f":"Energía!$C42","v":"Seleccione"},{"$f":"IF(Energía!$E42=Empresas!B$12,Energía!$B42,\"\")","v":""},{"$f":"IF(Energía!$E42=Empresas!C$12,Energía!$B42,\"\")","v":""},{"$f":"IF(Energía!$E42=Empresas!D$12,Energía!$B42,\"\")","v":""},{"$f":"_xlfn.XLOOKUP(A93,'Base-datos'!$B$521:$B$531,'Base-datos'!$F$521:$F$531)","v":{"$error":"#N/A"}},{"$f":"_xlfn.XLOOKUP(A93,'Base-datos'!$B$521:$B$531,'Base-datos'!$C$521:$C$531)","v":{"$error":"#N/A"}},{"$f":"_xlfn.XLOOKUP(A93,'Base-datos'!$B$521:$B$531,'Base-datos'!$D$521:$D$531)","v":{"$error":"#N/A"}},null,null,{"$f":"IF(OR(H$77=\"La actividad no cumple con el total de los criterios de No Daño Significativo\",I$77=\"El sector no cumple con las salvaguardas mínimas\"),\"\",IF(AND('Base-datos'!$B$730=\"Sí\",'Base-datos'!$B$731=\"\",'Base-datos'!$B$732=\"\"),IF(F93=\"La actividad sí contribuye sustancialmente a la sostenibilidad\",SUM(B93:D93),0),IF(AND('Base-datos'!$B$730=\"Sí\",'Base-datos'!$B$731=\"Sí\",'Base-datos'!$B$732=\"\"),IF(AND(F93=\"La actividad sí contribuye sustancialmente a la sostenibilidad\",G93=\"La actividad sí contribuye sustancialmente a la sostenibilidad\"),SUM(B93:D93),0),IF(AND('Base-datos'!$B$730=\"Sí\",'Base-datos'!$B$731=\"Sí\",'Base-datos'!$B$732=\"Sí\"),IF(AND(F93=\"La actividad sí contribuye sustancialmente a la sostenibilidad\",G93=\"La actividad sí contribuye sustancialmente a la sostenibilidad\",E93=\"La actividad sí contribuye sustancialmente a la sostenibilidad\"),SUM(B93:D93),0),IF(AND('Base-datos'!$B$730=\"\",'Base-datos'!$B$731=\"Sí\",'Base-datos'!$B$732=\"\"),IF(G93=\"La actividad sí contribuye sustancialmente a la sostenibilidad\",SUM(B93:D93),0),IF(AND('Base-datos'!$B$730=\"\",'Base-datos'!$B$731=\"\",'Base-datos'!$B$732=\"Sí\"),IF(E93=\"La actividad sí contribuye sustancialmente a la sostenibilidad\",SUM(B93:D93),0),IF(AND('Base-datos'!$B$730=\"\",'Base-datos'!$B$731=\"Sí\",'Base-datos'!$B$732=\"Sí\"),IF(AND(G93=\"La actividad sí contribuye sustancialmente a la sostenibilidad\",E93=\"La actividad sí contribuye sustancialmente a la sostenibilidad\"),SUM(B93:D93),0),IF(AND('Base-datos'!$B$730=\"Sí\",'Base-datos'!$B$731=\"\",'Base-datos'!$B$732=\"Sí\"),IF(AND(F93=\"La actividad sí contribuye sustancialmente a la sostenibilidad\",E93=\"La actividad sí contribuye sustancialmente a la sostenibilidad\"),SUM(B93:D93),0),\"Por definir\"))))))))","v":"Por definir"}]
[{"$f":"Energía!$C44","v":"Seleccione"},{"$f":"IF(Energía!$E44=Empresas!B$12,Energía!$B44,\"\")","v":""},{"$f":"IF(Energía!$E44=Empresas!C$12,Energía!$B44,\"\")","v":""},{"$f":"IF(Energía!$E44=Empresas!D$12,Energía!$B44,\"\")","v":""},{"$f":"_xlfn.XLOOKUP(A94,'Base-datos'!$B$521:$B$531,'Base-datos'!$F$521:$F$531)","v":{"$error":"#N/A"}},{"$f":"_xlfn.XLOOKUP(A94,'Base-datos'!$B$521:$B$531,'Base-datos'!$C$521:$C$531)","v":{"$error":"#N/A"}},{"$f":"_xlfn.XLOOKUP(A94,'Base-datos'!$B$521:$B$531,'Base-datos'!$D$521:$D$531)","v":{"$error":"#N/A"}},null,null,{"$f":"IF(OR(H$77=\"La actividad no cumple con el total de los criterios de No Daño Significativo\",I$77=\"El sector no cumple con las salvaguardas mínimas\"),\"\",IF(AND('Base-datos'!$B$730=\"Sí\",'Base-datos'!$B$731=\"\",'Base-datos'!$B$732=\"\"),IF(F94=\"La actividad sí contribuye sustancialmente a la sostenibilidad\",SUM(B94:D94),0),IF(AND('Base-datos'!$B$730=\"Sí\",'Base-datos'!$B$731=\"Sí\",'Base-datos'!$B$732=\"\"),IF(AND(F94=\"La actividad sí contribuye sustancialmente a la sostenibilidad\",G94=\"La actividad sí contribuye sustancialmente a la sostenibilidad\"),SUM(B94:D94),0),IF(AND('Base-datos'!$B$730=\"Sí\",'Base-datos'!$B$731=\"Sí\",'Base-datos'!$B$732=\"Sí\"),IF(AND(F94=\"La actividad sí contribuye sustancialmente a la sostenibilidad\",G94=\"La actividad sí contribuye sustancialmente a la sostenibilidad\",E94=\"La actividad sí contribuye sustancialmente a la sostenibilidad\"),SUM(B94:D94),0),IF(AND('Base-datos'!$B$730=\"\",'Base-datos'!$B$731=\"Sí\",'Base-datos'!$B$732=\"\"),IF(G94=\"La actividad sí contribuye sustancialmente a la sostenibilidad\",SUM(B94:D94),0),IF(AND('Base-datos'!$B$730=\"\",'Base-datos'!$B$731=\"\",'Base-datos'!$B$732=\"Sí\"),IF(E94=\"La actividad sí contribuye sustancialmente a la sostenibilidad\",SUM(B94:D94),0),IF(AND('Base-datos'!$B$730=\"\",'Base-datos'!$B$731=\"Sí\",'Base-datos'!$B$732=\"Sí\"),IF(AND(G94=\"La actividad sí contribuye sustancialmente a la sostenibilidad\",E94=\"La actividad sí contribuye sustancialmente a la sostenibilidad\"),SUM(B94:D94),0),IF(AND('Base-datos'!$B$730=\"Sí\",'Base-datos'!$B$731=\"\",'Base-datos'!$B$732=\"Sí\"),IF(AND(F94=\"La actividad sí contribuye sustancialmente a la sostenibilidad\",E94=\"La actividad sí contribuye sustancialmente a la sostenibilidad\"),SUM(B94:D94),0),\"Por definir\"))))))))","v":"Por definir"}]
[{"$f":"Energía!$C46","v":"Seleccione"},{"$f":"IF(Energía!$E46=Empresas!B$12,Energía!$B46,\"\")","v":""},{"$f":"IF(Energía!$E46=Empresas!C$12,Energía!$B46,\"\")","v":""},{"$f":"IF(Energía!$E46=Empresas!D$12,Energía!$B46,\"\")","v":""},{"$f":"_xlfn.XLOOKUP(A95,'Base-datos'!$B$521:$B$531,'Base-datos'!$F$521:$F$531)","v":{"$error":"#N/A"}},{"$f":"_xlfn.XLOOKUP(A95,'Base-datos'!$B$521:$B$531,'Base-datos'!$C$521:$C$531)","v":{"$error":"#N/A"}},{"$f":"_xlfn.XLOOKUP(A95,'Base-datos'!$B$521:$B$531,'Base-datos'!$D$521:$D$531)","v":{"$error":"#N/A"}},null,null,{"$f":"IF(OR(H$77=\"La actividad no cumple con el total de los criterios de No Daño Significativo\",I$77=\"El sector no cumple con las salvaguardas mínimas\"),\"\",IF(AND('Base-datos'!$B$730=\"Sí\",'Base-datos'!$B$731=\"\",'Base-datos'!$B$732=\"\"),IF(F95=\"La actividad sí contribuye sustancialmente a la sostenibilidad\",SUM(B95:D95),0),IF(AND('Base-datos'!$B$730=\"Sí\",'Base-datos'!$B$731=\"Sí\",'Base-datos'!$B$732=\"\"),IF(AND(F95=\"La actividad sí contribuye sustancialmente a la sostenibilidad\",G95=\"La actividad sí contribuye sustancialmente a la sostenibilidad\"),SUM(B95:D95),0),IF(AND('Base-datos'!$B$730=\"Sí\",'Base-datos'!$B$731=\"Sí\",'Base-datos'!$B$732=\"Sí\"),IF(AND(F95=\"La actividad sí contribuye sustancialmente a la sostenibilidad\",G95=\"La actividad sí contribuye sustancialmente a la sostenibilidad\",E95=\"La actividad sí contribuye sustancialmente a la sostenibilidad\"),SUM(B95:D95),0),IF(AND('Base-datos'!$B$730=\"\",'Base-datos'!$B$731=\"Sí\",'Base-datos'!$B$732=\"\"),IF(G95=\"La actividad sí contribuye sustancialmente a la sostenibilidad\",SUM(B95:D95),0),IF(AND('Base-datos'!$B$730=\"\",'Base-datos'!$B$731=\"\",'Base-datos'!$B$732=\"Sí\"),IF(E95=\"La actividad sí contribuye sustancialmente a la sostenibilidad\",SUM(B95:D95),0),IF(AND('Base-datos'!$B$730=\"\",'Base-datos'!$B$731=\"Sí\",'Base-datos'!$B$732=\"Sí\"),IF(AND(G95=\"La actividad sí contribuye sustancialmente a la sostenibilidad\",E95=\"La actividad sí contribuye sustancialmente a la sostenibilidad\"),SUM(B95:D95),0),IF(AND('Base-datos'!$B$730=\"Sí\",'Base-datos'!$B$731=\"\",'Base-datos'!$B$732=\"Sí\"),IF(AND(F95=\"La actividad sí contribuye sustancialmente a la sostenibilidad\",E95=\"La actividad sí contribuye sustancialmente a la sostenibilidad\"),SUM(B95:D95),0),\"Por definir\"))))))))","v":"Por definir"}]
[{"$f":"Energía!$C48","v":"Seleccione"},{"$f":"IF(Energía!$E48=Empresas!B$12,Energía!$B48,\"\")","v":""},{"$f":"IF(Energía!$E48=Empresas!C$12,Energía!$B48,\"\")","v":""},{"$f":"IF(Energía!$E48=Empresas!D$12,Energía!$B48,\"\")","v":""},{"$f":"_xlfn.XLOOKUP(A96,'Base-datos'!$B$521:$B$531,'Base-datos'!$F$521:$F$531)","v":{"$error":"#N/A"}},{"$f":"_xlfn.XLOOKUP(A96,'Base-datos'!$B$521:$B$531,'Base-datos'!$C$521:$C$531)","v":{"$error":"#N/A"}},{"$f":"_xlfn.XLOOKUP(A96,'Base-datos'!$B$521:$B$531,'Base-datos'!$D$521:$D$531)","v":{"$error":"#N/A"}},null,null,{"$f":"IF(OR(H$77=\"La actividad no cumple con el total de los criterios de No Daño Significativo\",I$77=\"El sector no cumple con las salvaguardas mínimas\"),\"\",IF(AND('Base-datos'!$B$730=\"Sí\",'Base-datos'!$B$731=\"\",'Base-datos'!$B$732=\"\"),IF(F96=\"La actividad sí contribuye sustancialmente a la sostenibilidad\",SUM(B96:D96),0),IF(AND('Base-datos'!$B$730=\"Sí\",'Base-datos'!$B$731=\"Sí\",'Base-datos'!$B$732=\"\"),IF(AND(F96=\"La actividad sí contribuye sustancialmente a la sostenibilidad\",G96=\"La actividad sí contribuye sustancialmente a la sostenibilidad\"),SUM(B96:D96),0),IF(AND('Base-datos'!$B$730=\"Sí\",'Base-datos'!$B$731=\"Sí\",'Base-datos'!$B$732=\"Sí\"),IF(AND(F96=\"La actividad sí contribuye sustancialmente a la sostenibilidad\",G96=\"La actividad sí contribuye sustancialmente a la sostenibilidad\",E96=\"La actividad sí contribuye sustancialmente a la sostenibilidad\"),SUM(B96:D96),0),IF(AND('Base-datos'!$B$730=\"\",'Base-datos'!$B$731=\"Sí\",'Base-datos'!$B$732=\"\"),IF(G96=\"La actividad sí contribuye sustancialmente a la sostenibilidad\",SUM(B96:D96),0),IF(AND('Base-datos'!$B$730=\"\",'Base-datos'!$B$731=\"\",'Base-datos'!$B$732=\"Sí\"),IF(E96=\"La actividad sí contribuye sustancialmente a la sostenibilidad\",SUM(B96:D96),0),IF(AND('Base-datos'!$B$730=\"\",'Base-datos'!$B$731=\"Sí\",'Base-datos'!$B$732=\"Sí\"),IF(AND(G96=\"La actividad sí contribuye sustancialmente a la sostenibilidad\",E96=\"La actividad sí contribuye sustancialmente a la sostenibilidad\"),SUM(B96:D96),0),IF(AND('Base-datos'!$B$730=\"Sí\",'Base-datos'!$B$731=\"\",'Base-datos'!$B$732=\"Sí\"),IF(AND(F96=\"La actividad sí contribuye sustancialmente a la sostenibilidad\",E96=\"La actividad sí contribuye sustancialmente a la sostenibilidad\"),SUM(B96:D96),0),\"Por definir\"))))))))","v":"Por definir"}]
["Agua",null,null,null,null,null,null,null,null,{"$f":"SUM(IF(FREQUENCY(MATCH(A98:A117, A98:A117, 0), MATCH(A98:A117, A98:A117, 0)) > 0, IF(NOT(ISERROR(J98:J117)), J98:J117, 0)))","v":0}]
[{"$f":"Agua!$C10","v":"Seleccione"},{"$f":"IF(Agua!$E10=Empresas!B$12,Agua!$B10,\"\")","v":""},{"$f":"IF(Agua!$E10=Empresas!C$12,Agua!$B10,\"\")","v":""},{"$f":"IF(Agua!$E10=Empresas!D$12,Agua!$B10,\"\")","v":""},{"$f":"_xlfn.XLOOKUP(A98,'Base-datos'!$B$532:$B$536,'Base-datos'!$F$532:$F$536)","v":{"$error":"#N/A"}},{"$f":"_xlfn.XLOOKUP(A98,'Base-datos'!$B$532:$B$536,'Base-datos'!$C$532:$C$536)","v":{"$error":"#N/A"}},{"$f":"_xlfn.XLOOKUP(A98,'Base-datos'!$B$532:$B$536,'Base-datos'!$D$532:$D$536)","v":{"$error":"#N/A"}},{"$f":"IF(COUNTIF('Agua-NDS'!G9:G45,\"No\")>0,\"La actividad no cumple con el total de los criterios de NDS\",\"La actividad cumple con los criterios de No Daño Significativo\")","v":"La actividad cumple con los criterios de No Daño Significativo"},{"$f":"IF(OR('Salvaguardas mínimas'!$G$10=\"Seleccione\",'Salvaguardas mínimas'!$G$13=\"Seleccione\",'Salvaguardas mínimas'!$G$16=\"Seleccione\",'Salvaguardas mínimas'!$G$7=\"Seleccione\"),\"No se han respondido todas las preguntas\",IF(OR('Salvaguardas mínimas'!$G$10=\"No\",'Salvaguardas mínimas'!$G$13=\"No\",'Salvaguardas mínimas'!$G$16=\"No\",'Salvaguardas mínimas'!$G$7=\"No\"),\"El sector no cumple con las salvaguardas mínimas\",\"La actividad sí cumple con las salvaguardas mínimas\"))","v":"No se han respondido todas las preguntas"},{"$f":"IF(OR(H$98=\"La actividad no cumple con el total de los criterios de No Daño Significativo\",I$98=\"El sector no cumple con las salvaguardas mínimas\"),\"\",IF(AND('Base-datos'!$B$735=\"Sí\",'Base-datos'!$B$736=\"\",'Base-datos'!$B$737=\"\"),IF(F98=\"La actividad sí contribuye sustancialmente a la sostenibilidad\",SUM(B98:D98),0),IF(AND('Base-datos'!$B$735=\"Sí\",'Base-datos'!$B$736=\"Sí\",'Base-datos'!$B$737=\"\"),IF(AND(F98=\"La actividad sí contribuye sustancialmente a la sostenibilidad\",G98=\"La actividad sí contribuye sustancialmente a la sostenibilidad\"),SUM(B98:D98),0),IF(AND('Base-datos'!$B$735=\"Sí\",'Base-datos'!$B$736=\"Sí\",'Base-datos'!$B$737=\"Sí\"),IF(AND(F98=\"La actividad sí contribuye sustancialmente a la sostenibilidad\",G98=\"La actividad sí contribuye sustancialmente a la sostenibilidad\",E98=\"La actividad sí contribuye sustancialmente a la sostenibilidad\"),SUM(B98:D98),0),IF(AND('Base-datos'!$B$735=\"\",'Base-datos'!$B$736=\"Sí\",'Base-datos'!$B$737=\"\"),IF(G98=\"La actividad sí contribuye sustancialmente a la sostenibilidad\",SUM(B98:D98),0),IF(AND('Base-datos'!$B$735=\"\",'Base-datos'!$B$736=\"\",'Base-datos'!$B$737=\"Sí\"),IF(E98=\"La actividad sí contribuye sustancialmente a la sostenibilidad\",SUM(B98:D98),0),IF(AND('Base-datos'!$B$735=\"\",'Base-datos'!$B$736=\"Sí\",'Base-datos'!$B$737=\"Sí\"),IF(AND(G98=\"La actividad sí contribuye sustancialmente a la sostenibilidad\",E98=\"La actividad sí contribuye sustancialmente a la sostenibilidad\"),SUM(B98:D98),0),IF(AND('Base-datos'!$B$735=\"Sí\",'Base-datos'!$B$736=\"\",'Base-datos'!$B$737=\"Sí\"),IF(AND(F98=\"La actividad sí contribuye sustancialmente a la sostenibilidad\",E98=\"La actividad sí contribuye sustancialmente a la sostenibilidad\"),SUM(B98:D98),0),\"Por definir\"))))))))","v":"Por definir"}]
[{"$f":"Agua!$C12","v":"Seleccione"},{"$f":"IF(Agua!$E12=Empresas!B$12,Agua!$B12,\"\")","v":""},{"$f":"IF(Agua!$E12=Empresas!C$12,Agua!$B12,\"\")","v":""},{"$f":"IF(Agua!$E12=Empresas!D$12,Agua!$B12,\"\")","v":""},{"$f":"_xlfn.XLOOKUP(A99,'Base-datos'!$B$532:$B$536,'Base-datos'!$F$532:$F$536)","v":{"$error":"#N/A"}},{"$f":"_xlfn.XLOOKUP(A99,'Base-datos'!$B$532:$B$536,'Base-datos'!$C$532:$C$536)","v":{"$error":"#N/A"}},{"$f":"_xlfn.XLOOKUP(A99,'Base-datos'!$B$532:$B$536,'Base-datos'!$D$532:$D$536)","v":{"$error":"#N/A"}},null,null,{"$f":"IF(OR(H$98=\"La actividad no cumple con el total de los criterios de No Daño Significativo\",I$98=\"El sector no cumple con las salvaguardas mínimas\"),\"\",IF(AND('Base-datos'!$B$735=\"Sí\",'Base-datos'!$B$736=\"\",'Base-datos'!$B$737=\"\"),IF(F99=\"La actividad sí contribuye sustancialmente a la sostenibilidad\",SUM(B99:D99),0),IF(AND('Base-datos'!$B$735=\"Sí\",'Base-datos'!$B$736=\"Sí\",'Base-datos'!$B$737=\"\"),IF(AND(F99=\"La actividad sí contribuye sustancialmente a la sostenibilidad\",G99=\"La actividad sí contribuye sustancialmente a la sostenibilidad\"),SUM(B99:D99),0),IF(AND('Base-datos'!$B$735=\"Sí\",'Base-datos'!$B$736=\"Sí\",'Base-datos'!$B$737=\"Sí\"),IF(AND(F99=\"La actividad sí contribuye sustancialmente a la sostenibilidad\",G99=\"La actividad sí contribuye sustancialmente a la sostenibilidad\",E99=\"La actividad sí contribuye sustancialmente a la sostenibilidad\"),SUM(B99:D99),0),IF(AND('Base-datos'!$B$735=\"\",'Base-datos'!$B$736=\"Sí\",'Base-datos'!$B$737=\"\"),IF(G99=\"La actividad sí contribuye sustancialmente a la sostenibilidad\",SUM(B99:D99),0),IF(AND('Base-datos'!$B$735=\"\",'Base-datos'!$B$736=\"\",'Base-datos'!$B$737=\"Sí\"),IF(E99=\"La actividad sí contribuye sustancialmente a la sostenibilidad\",SUM(B99:D99),0),IF(AND('Base-datos'!$B$735=\"\",'Base-datos'!$B$736=\"Sí\",'Base-datos'!$B$737=\"Sí\"),IF(AND(G99=\"La actividad sí contribuye sustancialmente a la sostenibilidad\",E99=\"La actividad sí contribuye sustancialmente a la sostenibilidad\"),SUM(B99:D99),0),IF(AND('Base-datos'!$B$735=\"Sí\",'Base-datos'!$B$736=\"\",'Base-datos'!$B$737=\"Sí\"),IF(AND(F99=\"La actividad sí contribuye sustancialmente a la sostenibilidad\",E99=\"La actividad sí contribuye sustancialmente a la sostenibilidad\"),SUM(B99:D99),0),\"Por definir\"))))))))","v":"Por definir"}]
[{"$f":"Agua!$C14","v":"Seleccione"},{"$f":"IF(Agua!$E14=Empresas!B$12,Agua!$B14,\"\")","v":""},{"$f":"IF(Agua!$E14=Empresas!C$12,Agua!$B14,\"\")","v":""},{"$f":"IF(Agua!$E14=Empresas!D$12,Agua!$B14,\"\")","v":""},{"$f":"_xlfn.XLOOKUP(A100,'Base-datos'!$B$532:$B$536,'Base-datos'!$F$532:$F$536)","v":{"$error":"#N/A"}},{"$f":"_xlfn.XLOOKUP(A100,'Base-datos'!$B$532:$B$536,'Base-datos'!$C$532:$C$536)","v":{"$error":"#N/A"}},{"$f":"_xlfn.XLOOKUP(A100,'Base-datos'!$B$532:$B$536,'Base-datos'!$D$532:$D$536)","v":{"$error":"#N/A"}},null,null,{"$f":"IF(OR(H$98=\"La actividad no cumple con el total de los criterios de No Daño Significativo\",I$98=\"El sector no cumple con las salvaguardas mínimas\"),\"\",IF(AND('Base-datos'!$B$735=\"Sí\",'Base-datos'!$B$736=\"\",'Base-datos'!$B$737=\"\"),IF(F100=\"La actividad sí contribuye sustancialmente a la sostenibilidad\",SUM(B100:D100),0),IF(AND('Base-datos'!$B$735=\"Sí\",'Base-datos'!$B$736=\"Sí\",'Base-datos'!$B$737=\"\"),IF(AND(F100=\"La actividad sí contribuye sustancialmente a la sostenibilidad\",G100=\"La actividad sí contribuye sustancialmente a la sostenibilidad\"),SUM(B100:D100),0),IF(AND('Base-datos'!$B$735=\"Sí\",'Base-datos'!$B$736=\"Sí\",'Base-datos'!$B$737=\"Sí\"),IF(AND(F100=\"La actividad sí contribuye sustancialmente a la sostenibilidad\",G100=\"La actividad sí contribuye sustancialmente a la sostenibilidad\",E100=\"La actividad sí contribuye sustancialmente a la sostenibilidad\"),SUM(B100:D100),0),IF(AND('Base-datos'!$B$735=\"\",'Base-datos'!$B$736=\"Sí\",'Base-datos'!$B$737=\"\"),IF(G100=\"La actividad sí contribuye sustancialmente a la sostenibilidad\",SUM(B100:D100),0),IF(AND('Base-datos'!$B$735=\"\",'Base-datos'!$B$736=\"\",'Base-datos'!$B$737=\"Sí\"),IF(E100=\"La actividad sí contribuye sustancialmente a la sostenibilidad\",SUM(B100:D100),0),IF(AND('Base-datos'!$B$735=\"\",'Base-datos'!$B$736=\"Sí\",'Base-datos'!$B$737=\"Sí\"),IF(AND(G100=\"La actividad sí contribuye sustancialmente a la sostenibilidad\",E100=\"La actividad sí contribuye sustancialmente a la sostenibilidad\"),SUM(B100:D100),0),IF(AND('Base-datos'!$B$735=\"Sí\",'Base-datos'!$B$736=\"\",'Base-datos'!$B$737=\"Sí\"),IF(AND(F100=\"La actividad sí contribuye sustancialmente a la sostenibilidad\",E100=\"La actividad sí contribuye sustancialmente a la sostenibilidad\"),SUM(B100:D100),0),\"Por definir\"))))))))","v":"Por definir"}]
[{"$f":"Agua!$C16","v":"Seleccione"},{"$f":"IF(Agua!$E16=Empresas!B$12,Agua!$B16,\"\")","v":""},{"$f":"IF(Agua!$E16=Empresas!C$12,Agua!$B16,\"\")","v":""},{"$f":"IF(Agua!$E16=Empresas!D$12,Agua!$B16,\"\")","v":""},{"$f":"_xlfn.XLOOKUP(A101,'Base-datos'!$B$532:$B$536,'Base-datos'!$F$532:$F$536)","v":{"$error":"#N/A"}},{"$f":"_xlfn.XLOOKUP(A101,'Base-datos'!$B$532:$B$536,'Base-datos'!$C$532:$C$536)","v":{"$error":"#N/A"}},{"$f":"_xlfn.XLOOKUP(A101,'Base-datos'!$B$532:$B$536,'Base-datos'!$D$532:$D$536)","v":{"$error":"#N/A"}},null,null,{"$f":"IF(OR(H$98=\"La actividad no cumple con el total de los criterios de No Daño Significativo\",I$98=\"El sector no cumple con las salvaguardas mínimas\"),\"\",IF(AND('Base-datos'!$B$735=\"Sí\",'Base-datos'!$B$736=\"\",'Base-datos'!$B$737=\"\"),IF(F101=\"La actividad sí contribuye sustancialmente a la sostenibilidad\",SUM(B101:D101),0),IF(AND('Base-datos'!$B$735=\"Sí\",'Base-datos'!$B$736=\"Sí\",'Base-datos'!$B$737=\"\"),IF(AND(F101=\"La actividad sí contribuye sustancialmente a la sostenibilidad\",G101=\"La actividad sí contribuye sustancialmente a la sostenibilidad\"),SUM(B101:D101),0),IF(AND('Base-datos'!$B$735=\"Sí\",'Base-datos'!$B$736=\"Sí\",'Base-datos'!$B$737=\"Sí\"),IF(AND(F101=\"La actividad sí contribuye sustancialmente a la sostenibilidad\",G101=\"La actividad sí contribuye sustancialmente a la sostenibilidad\",E101=\"La actividad sí contribuye sustancialmente a la sostenibilidad\"),SUM(B101:D101),0),IF(AND('Base-datos'!$B$735=\"\",'Base-datos'!$B$736=\"Sí\",'Base-datos'!$B$737=\"\"),IF(G101=\"La actividad sí contribuye sustancialmente a la sostenibilidad\",SUM(B101:D101),0),IF(AND('Base-datos'!$B$735=\"\",'Base-datos'!$B$736=\"\",'Base-datos'!$B$737=\"Sí\"),IF(E101=\"La actividad sí contribuye sustancialmente a la sostenibilidad\",SUM(B101:D101),0),IF(AND('Base-datos'!$B$735=\"\",'Base-datos'!$B$736=\"Sí\",'Base-datos'!$B$737=\"Sí\"),IF(AND(G101=\"La actividad sí contribuye sustancialmente a la sostenibilidad\",E101=\"La actividad sí contribuye sustancialmente a la sostenibilidad\"),SUM(B101:D101),0),IF(AND('Base-datos'!$B$735=\"Sí\",'Base-datos'!$B$736=\"\",'Base-datos'!$B$737=\"Sí\"),IF(AND(F101=\"La actividad sí contribuye sustancialmente a la sostenibilidad\",E101=\"La actividad sí contribuye sustancialmente a la sostenibilidad\"),SUM(B101:D101),0),\"Por definir\"))))))))","v":"Por definir"}]
[{"$f":"Agua!$C18","v":"Seleccione"},{"$f":"IF(Agua!$E18=Empresas!B$12,Agua!$B18,\"\")","v":""},{"$f":"IF(Agua!$E18=Empresas!C$12,Agua!$B18,\"\")","v":""},{"$f":"IF(Agua!$E18=Empresas!D$12,Agua!$B18,\"\")","v":""},{"$f":"_xlfn.XLOOKUP(A102,'Base-datos'!$B$532:$B$536,'Base-datos'!$F$532:$F$536)","v":{"$error":"#N/A"}},{"$f":"_xlfn.XLOOKUP(A102,'Base-datos'!$B$532:$B$536,'Base-datos'!$C$532:$C$536)","v":{"$error":"#N/A"}},{"$f":"_xlfn.XLOOKUP(A102,'Base-datos'!$B$532:$B$536,'Base-datos'!$D$532:$D$536)","v":{"$error":"#N/A"}},null,null,{"$f":"IF(OR(H$98=\"La actividad no cumple con el total de los criterios de No Daño Significativo\",I$98=\"El sector no cumple con las salvaguardas mínimas\"),\"\",IF(AND('Base-datos'!$B$735=\"Sí\",'Base-datos'!$B$736=\"\",'Base-datos'!$B$737=\"\"),IF(F102=\"La actividad sí contribuye sustancialmente a la sostenibilidad\",SUM(B102:D102),0),IF(AND('Base-datos'!$B$735=\"Sí\",'Base-datos'!$B$736=\"Sí\",'Base-datos'!$B$737=\"\"),IF(AND(F102=\"La actividad sí contribuye sustancialmente a la sostenibilidad\",G102=\"La actividad sí contribuye sustancialmente a la sostenibilidad\"),SUM(B102:D102),0),IF(AND('Base-datos'!$B$735=\"Sí\",'Base-datos'!$B$736=\"Sí\",'Base-datos'!$B$737=\"Sí\"),IF(AND(F102=\"La actividad sí contribuye sustancialmente a la sostenibilidad\",G102=\"La actividad sí contribuye sustancialmente a la sostenibilidad\",E102=\"La actividad sí contribuye sustancialmente a la sostenibilidad\"),SUM(B102:D102),0),IF(AND('Base-datos'!$B$735=\"\",'Base-datos'!$B$736=\"Sí\",'Base-datos'!$B$737=\"\"),IF(G102=\"La actividad sí contribuye sustancialmente a la sostenibilidad\",SUM(B102:D102),0),IF(AND('Base-datos'!$B$735=\"\",'Base-datos'!$B$736=\"\",'Base-datos'!$B$737=\"Sí\"),IF(E102=\"La actividad sí contribuye sustancialmente a la sostenibilidad\",SUM(B102:D102),0),IF(AND('Base-datos'!$B$735=\"\",'Base-datos'!$B$736=\"Sí\",'Base-datos'!$B$737=\"Sí\"),IF(AND(G102=\"La actividad sí contribuye sustancialmente a la sostenibilidad\",E102=\"La actividad sí contribuye sustancialmente a la sostenibilidad\"),SUM(B102:D102),0),IF(AND('Base-datos'!$B$735=\"Sí\",'Base-datos'!$B$736=\"\",'Base-datos'!$B$737=\"Sí\"),IF(AND(F102=\"La actividad sí contribuye sustancialmente a la sostenibilidad\",E102=\"La actividad sí contribuye sustancialmente a la sostenibilidad\"),SUM(B102:D102),0),\"Por definir\"))))))))","v":"Por definir"}]
[{"$f":"Agua!$C20","v":"Seleccione"},{"$f":"IF(Agua!$E20=Empresas!B$12,Agua!$B20,\"\")","v":""},{"$f":"IF(Agua!$E20=Empresas!C$12,Agua!$B20,\"\")","v":""},{"$f":"IF(Agua!$E20=Empresas!D$12,Agua!$B20,\"\")","v":""},{"$f":"_xlfn.XLOOKUP(A103,'Base-datos'!$B$532:$B$536,'Base-datos'!$F$532:$F$536)","v":{"$error":"#N/A"}},{"$f":"_xlfn.XLOOKUP(A103,'Base-datos'!$B$532:$B$536,'Base-datos'!$C$532:$C$536)","v":{"$error":"#N/A"}},{"$f":"_xlfn.XLOOKUP(A103,'Base-datos'!$B$532:$B$536,'Base-datos'!$D$532:$D$536)","v":{"$error":"#N/A"}},null,null,{"$f":"IF(OR(H$98=\"La actividad no cumple con el total de los criterios de No Daño Significativo\",I$98=\"El sector no cumple con las salvaguardas mínimas\"),\"\",IF(AND('Base-datos'!$B$735=\"Sí\",'Base-datos'!$B$736=\"\",'Base-datos'!$B$737=\"\"),IF(F103=\"La actividad sí contribuye sustancialmente a la sostenibilidad\",SUM(B103:D103),0),IF(AND('Base-datos'!$B$735=\"Sí\",'Base-datos'!$B$736=\"Sí\",'Base-datos'!$B$737=\"\"),IF(AND(F103=\"La actividad sí contribuye sustancialmente a la sostenibilidad\",G103=\"La actividad sí contribuye sustancialmente a la sostenibilidad\"),SUM(B103:D103),0),IF(AND('Base-datos'!$B$735=\"Sí\",'Base-datos'!$B$736=\"Sí\",'Base-datos'!$B$737=\"Sí\"),IF(AND(F103=\"La actividad sí contribuye sustancialmente a la sostenibilidad\",G103=\"La actividad sí contribuye sustancialmente a la sostenibilidad\",E103=\"La actividad sí contribuye sustancialmente a la sostenibilidad\"),SUM(B103:D103),0),IF(AND('Base-datos'!$B$735=\"\",'Base-datos'!$B$736=\"Sí\",'Base-datos'!$B$737=\"\"),IF(G103=\"La actividad sí contribuye sustancialmente a la sostenibilidad\",SUM(B103:D103),0),IF(AND('Base-datos'!$B$735=\"\",'Base-datos'!$B$736=\"\",'Base-datos'!$B$737=\"Sí\"),IF(E103=\"La actividad sí contribuye sustancialmente a la sostenibilidad\",SUM(B103:D103),0),IF(AND('Base-datos'!$B$735=\"\",'Base-datos'!$B$736=\"Sí\",'Base-datos'!$B$737=\"Sí\"),IF(AND(G103=\"La actividad sí contribuye sustancialmente a la sostenibilidad\",E103=\"La actividad sí contribuye sustancialmente a la sostenibilidad\"),SUM(B103:D103),0),IF(AND('Base-datos'!$B$735=\"Sí\",'Base-datos'!$B$736=\"\",'Base-datos'!$B$737=\"Sí\"),IF(AND(F103=\"La actividad sí contribuye sustancialmente a la sostenibilidad\",E103=\"La actividad sí contribuye sustancialmente a la sostenibilidad\"),SUM(B103:D103),0),\"Por definir\"))))))))","v":"Por definir"}]
[{"$f":"Agua!$C22","v":"Seleccione"},{"$f":"IF(Agua!$E22=Empresas!B$12,Agua!$B22,\"\")","v":""},{"$f":"IF(Agua!$E22=Empresas!C$12,Agua!$B22,\"\")","v":""},{"$f":"IF(Agua!$E22=Empresas!D$12,Agua!$B22,\"\")","v":""},{"$f":"_xlfn.XLOOKUP(A104,'Base-datos'!$B$532:$B$536,'Base-datos'!$F$532:$F$536)","v":{"$error":"#N/A"}},{"$f":"_xlfn.XLOOKUP(A104,'Base-datos'!$B$532:$B$536,'Base-datos'!$C$532:$C$536)","v":{"$error":"#N/A"}},{"$f":"_xlfn.XLOOKUP(A104,'Base-datos'!$B$532:$B$536,'Base-datos'!$D$532:$D$536)","v":{"$error":"#N/A"}},null,null,{"$f":"IF(OR(H$98=\"La actividad no cumple con el total de los criterios de No Daño Significativo\",I$98=\"El sector no cumple con las salvaguardas mínimas\"),\"\",IF(AND('Base-datos'!$B$735=\"Sí\",'Base-datos'!$B$736=\"\",'Base-datos'!$B$737=\"\"),IF(F104=\"La actividad sí contribuye sustancialmente a la sostenibilidad\",SUM(B104:D104),0),IF(AND('Base-datos'!$B$735=\"Sí\",'Base-datos'!$B$736=\"Sí\",'Base-datos'!$B$737=\"\"),IF(AND(F104=\"La actividad sí contribuye sustancialmente a la sostenibilidad\",G104=\"La actividad sí contribuye sustancialmente a la sostenibilidad\"),SUM(B104:D104),0),IF(AND('Base-datos'!$B$735=\"Sí\",'Base-datos'!$B$736=\"Sí\",'Base-datos'!$B$737=\"Sí\"),IF(AND(F104=\"La actividad sí contribuye sustancialmente a la sostenibilidad\",G104=\"La actividad sí contribuye sustancialmente a la sostenibilidad\",E104=\"La actividad sí contribuye sustancialmente a la sostenibilidad\"),SUM(B104:D104),0),IF(AND('Base-datos'!$B$735=\"\",'Base-datos'!$B$736=\"Sí\",'Base-datos'!$B$737=\"\"),IF(G104=\"La actividad sí contribuye sustancialmente a la sostenibilidad\",SUM(B104:D104),0),IF(AND('Base-datos'!$B$735=\"\",'Base-datos'!$B$736=\"\",'Base-datos'!$B$737=\"Sí\"),IF(E104=\"La actividad sí contribuye sustancialmente a la sostenibilidad\",SUM(B104:D104),0),IF(AND('Base-datos'!$B$735=\"\",'Base-datos'!$B$736=\"Sí\",'Base-datos'!$B$737=\"Sí\"),IF(AND(G104=\"La actividad sí contribuye sustancialmente a la sostenibilidad\",E104=\"La actividad sí contribuye sustancialmente a la sostenibilidad\"),SUM(B104:D104),0),IF(AND('Base-datos'!$B$735=\"Sí\",'Base-datos'!$B$736=\"\",'Base-datos'!$B$737=\"Sí\"),IF(AND(F104=\"La actividad sí contribuye sustancialmente a la sostenibilidad\",E104=\"La actividad sí contribuye sustancialmente a la sostenibilidad\"),SUM(B104:D104),0),\"Por definir\"))))))))","v":"Por definir"}]
[{"$f":"Agua!$C24","v":"Seleccione"},{"$f":"IF(Agua!$E24=Empresas!B$12,Agua!$B24,\"\")","v":""},{"$f":"IF(Agua!$E24=Empresas!C$12,Agua!$B24,\"\")","v":""},{"$f":"IF(Agua!$E24=Empresas!D$12,Agua!$B24,\"\")","v":""},{"$f":"_xlfn.XLOOKUP(A105,'Base-datos'!$B$532:$B$536,'Base-datos'!$F$532:$F$536)","v":{"$error":"#N/A"}},{"$f":"_xlfn.XLOOKUP(A105,'Base-datos'!$B$532:$B$536,'Base-datos'!$C$532:$C$536)","v":{"$error":"#N/A"}},{"$f":"_xlfn.XLOOKUP(A105,'Base-datos'!$B$532:$B$536,'Base-datos'!$D$532:$D$536)","v":{"$error":"#N/A"}},null,null,{"$f":"IF(OR(H$98=\"La actividad no cumple con el total de los criterios de No Daño Significativo\",I$98=\"El sector no cumple con las salvaguardas mínimas\"),\"\",IF(AND('Base-datos'!$B$735=\"Sí\",'Base-datos'!$B$736=\"\",'Base-datos'!$B$737=\"\"),IF(F105=\"La actividad sí contribuye sustancialmente a la sostenibilidad\",SUM(B105:D105),0),IF(AND('Base-datos'!$B$735=\"Sí\",'Base-datos'!$B$736=\"Sí\",'Base-datos'!$B$737=\"\"),IF(AND(F105=\"La actividad sí contribuye sustancialmente a la sostenibilidad\",G105=\"La actividad sí contribuye sustancialmente a la sostenibilidad\"),SUM(B105:D105),0),IF(AND('Base-datos'!$B$735=\"Sí\",'Base-datos'!$B$736=\"Sí\",'Base-datos'!$B$737=\"Sí\"),IF(AND(F105=\"La actividad sí contribuye sustancialmente a la sostenibilidad\",G105=\"La actividad sí contribuye sustancialmente a la sostenibilidad\",E105=\"La actividad sí contribuye sustancialmente a la sostenibilidad\"),SUM(B105:D105),0),IF(AND('Base-datos'!$B$735=\"\",'Base-datos'!$B$736=\"Sí\",'Base-datos'!$B$737=\"\"),IF(G105=\"La actividad sí contribuye sustancialmente a la sostenibilidad\",SUM(B105:D105),0),IF(AND('Base-datos'!$B$735=\"\",'Base-datos'!$B$736=\"\",'Base-datos'!$B$737=\"Sí\"),IF(E105=\"La actividad sí contribuye sustancialmente a la sostenibilidad\",SUM(B105:D105),0),IF(AND('Base-datos'!$B$735=\"\",'Base-datos'!$B$736=\"Sí\",'Base-datos'!$B$737=\"Sí\"),IF(AND(G105=\"La actividad sí contribuye sustancialmente a la sostenibilidad\",E105=\"La actividad sí contribuye sustancialmente a la sostenibilidad\"),SUM(B105:D105),0),IF(AND('Base-datos'!$B$735=\"Sí\",'Base-datos'!$B$736=\"\",'Base-datos'!$B$737=\"Sí\"),IF(AND(F105=\"La actividad sí contribuye sustancialmente a la sostenibilidad\",E105=\"La actividad sí contribuye sustancialmente a la sostenibilidad\"),SUM(B105:D105),0),\"Por definir\"))))))))","v":"Por definir"}]
[{"$f":"Agua!$C26","v":"Seleccione"},{"$f":"IF(Agua!$E26=Empresas!B$12,Agua!$B26,\"\")","v":""},{"$f":"IF(Agua!$E26=Empresas!C$12,Agua!$B26,\"\")","v":""},{"$f":"IF(Agua!$E26=Empresas!D$12,Agua!$B26,\"\")","v":""},{"$f":"_xlfn.XLOOKUP(A106,'Base-datos'!$B$532:$B$536,'Base-datos'!$F$532:$F$536)","v":{"$error":"#N/A"}},{"$f":"_xlfn.XLOOKUP(A106,'Base-datos'!$B$532:$B$536,'Base-datos'!$C$532:$C$536)","v":{"$error":"#N/A"}},{"$f":"_xlfn.XLOOKUP(A106,'Base-datos'!$B$532:$B$536,'Base-datos'!$D$532:$D$536)","v":{"$error":"#N/A"}},null,null,{"$f":"IF(OR(H$98=\"La actividad no cumple con el total de los criterios de No Daño Significativo\",I$98=\"El sector no cumple con las salvaguardas mínimas\"),\"\",IF(AND('Base-datos'!$B$735=\"Sí\",'Base-datos'!$B$736=\"\",'Base-datos'!$B$737=\"\"),IF(F106=\"La actividad sí contribuye sustancialmente a la sostenibilidad\",SUM(B106:D106),0),IF(AND('Base-datos'!$B$735=\"Sí\",'Base-datos'!$B$736=\"Sí\",'Base-datos'!$B$737=\"\"),IF(AND(F106=\"La actividad sí contribuye sustancialmente a la sostenibilidad\",G106=\"La actividad sí contribuye sustancialmente a la sostenibilidad\"),SUM(B106:D106),0),IF(AND('Base-datos'!$B$735=\"Sí\",'Base-datos'!$B$736=\"Sí\",'Base-datos'!$B$737=\"Sí\"),IF(AND(F106=\"La actividad sí contribuye sustancialmente a la sostenibilidad\",G106=\"La actividad sí contribuye sustancialmente a la sostenibilidad\",E106=\"La actividad sí contribuye sustancialmente a la sostenibilidad\"),SUM(B106:D106),0),IF(AND('Base-datos'!$B$735=\"\",'Base-datos'!$B$736=\"Sí\",'Base-datos'!$B$737=\"\"),IF(G106=\"La actividad sí contribuye sustancialmente a la sostenibilidad\",SUM(B106:D106),0),IF(AND('Base-datos'!$B$735=\"\",'Base-datos'!$B$736=\"\",'Base-datos'!$B$737=\"Sí\"),IF(E106=\"La actividad sí contribuye sustancialmente a la sostenibilidad\",SUM(B106:D106),0),IF(AND('Base-datos'!$B$735=\"\",'Base-datos'!$B$736=\"Sí\",'Base-datos'!$B$737=\"Sí\"),IF(AND(G106=\"La actividad sí contribuye sustancialmente a la sostenibilidad\",E106=\"La actividad sí contribuye sustancialmente a la sostenibilidad\"),SUM(B106:D106),0),IF(AND('Base-datos'!$B$735=\"Sí\",'Base-datos'!$B$736=\"\",'Base-datos'!$B$737=\"Sí\"),IF(AND(F106=\"La actividad sí contribuye sustancialmente a la sostenibilidad\",E106=\"La actividad sí contribuye sustancialmente a la sostenibilidad\"),SUM(B106:D106),0),\"Por definir\"))))))))","v":"Por definir"}]
[{"$f":"Agua!$C28","v":"Seleccione"},{"$f":"IF(Agua!$E28=Empresas!B$12,Agua!$B28,\"\")","v":""},{"$f":"IF(Agua!$E28=Empresas!C$12,Agua!$B28,\"\")","v":""},{"$f":"IF(Agua!$E28=Empresas!D$12,Agua!$B28,\"\")","v":""},{"$f":"_xlfn.XLOOKUP(A107,'Base-datos'!$B$532:$B$536,'Base-datos'!$F$532:$F$536)","v":{"$error":"#N/A"}},{"$f":"_xlfn.XLOOKUP(A107,'Base-datos'!$B$532:$B$536,'Base-datos'!$C$532:$C$536)","v":{"$error":"#N/A"}},{"$f":"_xlfn.XLOOKUP(A107,'Base-datos'!$B$532:$B$536,'Base-datos'!$D$532:$D$536)","v":{"$error":"#N/A"}},null,null,{"$f":"IF(OR(H$98=\"La actividad no cumple con el total de los criterios de No Daño Significativo\",I$98=\"El sector no cumple con las salvaguardas mínimas\"),\"\",IF(AND('Base-datos'!$B$735=\"Sí\",'Base-datos'!$B$736=\"\",'Base-datos'!$B$737=\"\"),IF(F107=\"La actividad sí contribuye sustancialmente a la sostenibilidad\",SUM(B107:D107),0),IF(AND('Base-datos'!$B$735=\"Sí\",'Base-datos'!$B$736=\"Sí\",'Base-datos'!$B$737=\"\"),IF(AND(F107=\"La actividad sí contribuye sustancialmente a la sostenibilidad\",G107=\"La actividad sí contribuye sustancialmente a la sostenibilidad\"),SUM(B107:D107),0),IF(AND('Base-datos'!$B$735=\"Sí\",'Base-datos'!$B$736=\"Sí\",'Base-datos'!$B$737=\"Sí\"),IF(AND(F107=\"La actividad sí contribuye sustancialmente a la sostenibilidad\",G107=\"La actividad sí contribuye sustancialmente a la sostenibilidad\",E107=\"La actividad sí contribuye sustancialmente a la sostenibilidad\"),SUM(B107:D107),0),IF(AND('Base-datos'!$B$735=\"\",'Base-datos'!$B$736=\"Sí\",'Base-datos'!$B$737=\"\"),IF(G107=\"La actividad sí contribuye sustancialmente a la sostenibilidad\",SUM(B107:D107),0),IF(AND('Base-datos'!$B$735=\"\",'Base-datos'!$B$736=\"\",'Base-datos'!$B$737=\"Sí\"),IF(E107=\"La actividad sí contribuye sustancialmente a la sostenibilidad\",SUM(B107:D107),0),IF(AND('Base-datos'!$B$735=\"\",'Base-datos'!$B$736=\"Sí\",'Base-datos'!$B$737=\"Sí\"),IF(AND(G107=\"La actividad sí contribuye sustancialmente a la sostenibilidad\",E107=\"La actividad sí contribuye sustancialmente a la sostenibilidad\"),SUM(B107:D107),0),IF(AND('Base-datos'!$B$735=\"Sí\",'Base-datos'!$B$736=\"\",'Base-datos'!$B$737=\"Sí\"),IF(AND(F107=\"La actividad sí contribuye sustancialmente a la sostenibilidad\",E107=\"La actividad sí contribuye sustancialmente a la sostenibilidad\"),SUM(B107:D107),0),\"Por definir\"))))))))","v":"Por definir"}]
[{"$f":"Agua!$C30","v":"Seleccione"},{"$f":"IF(Agua!$E30=Empresas!B$12,Agua!$B30,\"\")","v":""},{"$f":"IF(Agua!$E30=Empresas!C$12,Agua!$B30,\"\")","v":""},{"$f":"IF(Agua!$E30=Empresas!D$12,Agua!$B30,\"\")","v":""},{"$f":"_xlfn.XLOOKUP(A108,'Base-datos'!$B$532:$B$536,'Base-datos'!$F$532:$F$536)","v":{"$error":"#N/A"}},{"$f":"_xlfn.XLOOKUP(A108,'Base-datos'!$B$532:$B$536,'Base-datos'!$C$532:$C$536)","v":{"$error":"#N/A"}},{"$f":"_xlfn.XLOOKUP(A108,'Base-datos'!$B$532:$B$536,'Base-datos'!$D$532:$D$536)","v":{"$error":"#N/A"}},null,null,{"$f":"IF(OR(H$98=\"La actividad no cumple con el total de los criterios de No Daño Significativo\",I$98=\"El sector no cumple con las salvaguardas mínimas\"),\"\",IF(AND('Base-datos'!$B$735=\"Sí\",'Base-datos'!$B$736=\"\",'Base-datos'!$B$737=\"\"),IF(F108=\"La actividad sí contribuye sustancialmente a la sostenibilidad\",SUM(B108:D108),0),IF(AND('Base-datos'!$B$735=\"Sí\",'Base-datos'!$B$736=\"Sí\",'Base-datos'!$B$737=\"\"),IF(AND(F108=\"La actividad sí contribuye sustancialmente a la sostenibilidad\",G108=\"La actividad sí contribuye sustancialmente a la sostenibilidad\"),SUM(B108:D108),0),IF(AND('Base-datos'!$B$735=\"Sí\",'Base-datos'!$B$736=\"Sí\",'Base-datos'!$B$737=\"Sí\"),IF(AND(F108=\"La actividad sí contribuye sustancialmente a la sostenibilidad\",G108=\"La actividad sí contribuye sustancialmente a la sostenibilidad\",E108=\"La actividad sí contribuye sustancialmente a la sostenibilidad\"),SUM(B108:D108),0),IF(AND('Base-datos'!$B$735=\"\",'Base-datos'!$B$736=\"Sí\",'Base-datos'!$B$737=\"\"),IF(G108=\"La actividad sí contribuye sustancialmente a la sostenibilidad\",SUM(B108:D108),0),IF(AND('Base-datos'!$B$735=\"\",'Base-datos'!$B$736=\"\",'Base-datos'!$B$737=\"Sí\"),IF(E108=\"La actividad sí contribuye sustancialmente a la sostenibilidad\",SUM(B108:D108),0),IF(AND('Base-datos'!$B$735=\"\",'Base-datos'!$B$736=\"Sí\",'Base-datos'!$B$737=\"Sí\"),IF(AND(G108=\"La actividad sí contribuye sustancialmente a la sostenibilidad\",E108=\"La actividad sí contribuye sustancialmente a la sostenibilidad\"),SUM(B108:D108),0),IF(AND('Base-datos'!$B$735=\"Sí\",'Base-datos'!$B$736=\"\",'Base-datos'!$B$737=\"Sí\"),IF(AND(F108=\"La actividad sí contribuye sustancialmente a la sostenibilidad\",E108=\"La actividad sí contribuye sustancialmente a la sostenibilidad\"),SUM(B108:D108),0),\"Por definir\"))))))))","v":"Por definir"}]
[{"$f":"Agua!$C32","v":"Seleccione"},{"$f":"IF(Agua!$E32=Empresas!B$12,Agua!$B32,\"\")","v":""},{"$f":"IF(Agua!$E32=Empresas!C$12,Agua!$B32,\"\")","v":""},{"$f":"IF(Agua!$E32=Empresas!D$12,Agua!$B32,\"\")","v":""},{"$f":"_xlfn.XLOOKUP(A109,'Base-datos'!$B$532:$B$536,'Base-datos'!$F$532:$F$536)","v":{"$error":"#N/A"}},{"$f":"_xlfn.XLOOKUP(A109,'Base-datos'!$B$532:$B$536,'Base-datos'!$C$532:$C$536)","v":{"$error":"#N/A"}},{"$f":"_xlfn.XLOOKUP(A109,'Base-datos'!$B$532:$B$536,'Base-datos'!$D$532:$D$536)","v":{"$error":"#N/A"}},null,null,{"$f":"IF(OR(H$98=\"La actividad no cumple con el total de los criterios de No Daño Significativo\",I$98=\"El sector no cumple con las salvaguardas mínimas\"),\"\",IF(AND('Base-datos'!$B$735=\"Sí\",'Base-datos'!$B$736=\"\",'Base-datos'!$B$737=\"\"),IF(F109=\"La actividad sí contribuye sustancialmente a la sostenibilidad\",SUM(B109:D109),0),IF(AND('Base-datos'!$B$735=\"Sí\",'Base-datos'!$B$736=\"Sí\",'Base-datos'!$B$737=\"\"),IF(AND(F109=\"La actividad sí contribuye sustancialmente a la sostenibilidad\",G109=\"La actividad sí contribuye sustancialmente a la sostenibilidad\"),SUM(B109:D109),0),IF(AND('Base-datos'!$B$735=\"Sí\",'Base-datos'!$B$736=\"Sí\",'Base-datos'!$B$737=\"Sí\"),IF(AND(F109=\"La actividad sí contribuye sustancialmente a la sostenibilidad\",G109=\"La actividad sí contribuye sustancialmente a la sostenibilidad\",E109=\"La actividad sí contribuye sustancialmente a la sostenibilidad\"),SUM(B109:D109),0),IF(AND('Base-datos'!$B$735=\"\",'Base-datos'!$B$736=\"Sí\",'Base-datos'!$B$737=\"\"),IF(G109=\"La actividad sí contribuye sustancialmente a la sostenibilidad\",SUM(B109:D109),0),IF(AND('Base-datos'!$B$735=\"\",'Base-datos'!$B$736=\"\",'Base-datos'!$B$737=\"Sí\"),IF(E109=\"La actividad sí contribuye sustancialmente a la sostenibilidad\",SUM(B109:D109),0),IF(AND('Base-datos'!$B$735=\"\",'Base-datos'!$B$736=\"Sí\",'Base-datos'!$B$737=\"Sí\"),IF(AND(G109=\"La actividad sí contribuye sustancialmente a la sostenibilidad\",E109=\"La actividad sí contribuye sustancialmente a la sostenibilidad\"),SUM(B109:D109),0),IF(AND('Base-datos'!$B$735=\"Sí\",'Base-datos'!$B$736=\"\",'Base-datos'!$B$737=\"Sí\"),IF(AND(F109=\"La actividad sí contribuye sustancialmente a la sostenibilidad\",E109=\"La actividad sí contribuye sustancialmente a la sostenibilidad\"),SUM(B109:D109),0),\"Por definir\"))))))))","v":"Por definir"}]
[{"$f":"Agua!$C34","v":"Seleccione"},{"$f":"IF(Agua!$E34=Empresas!B$12,Agua!$B34,\"\")","v":""},{"$f":"IF(Agua!$E34=Empresas!C$12,Agua!$B34,\"\")","v":""},{"$f":"IF(Agua!$E34=Empresas!D$12,Agua!$B34,\"\")","v":""},{"$f":"_xlfn.XLOOKUP(A110,'Base-datos'!$B$532:$B$536,'Base-datos'!$F$532:$F$536)","v":{"$error":"#N/A"}},{"$f":"_xlfn.XLOOKUP(A110,'Base-datos'!$B$532:$B$536,'Base-datos'!$C$532:$C$536)","v":{"$error":"#N/A"}},{"$f":"_xlfn.XLOOKUP(A110,'Base-datos'!$B$532:$B$536,'Base-datos'!$D$532:$D$536)","v":{"$error":"#N/A"}},null,null,{"$f":"IF(OR(H$98=\"La actividad no cumple con el total de los criterios de No Daño Significativo\",I$98=\"El sector no cumple con las salvaguardas mínimas\"),\"\",IF(AND('Base-datos'!$B$735=\"Sí\",'Base-datos'!$B$736=\"\",'Base-datos'!$B$737=\"\"),IF(F110=\"La actividad sí contribuye sustancialmente a la sostenibilidad\",SUM(B110:D110),0),IF(AND('Base-datos'!$B$735=\"Sí\",'Base-datos'!$B$736=\"Sí\",'Base-datos'!$B$737=\"\"),IF(AND(F110=\"La actividad sí contribuye sustancialmente a la sostenibilidad\",G110=\"La actividad sí contribuye sustancialmente a la sostenibilidad\"),SUM(B110:D110),0),IF(AND('Base-datos'!$B$735=\"Sí\",'Base-datos'!$B$736=\"Sí\",'Base-datos'!$B$737=\"Sí\"),IF(AND(F110=\"La actividad sí contribuye sustancialmente a la sostenibilidad\",G110=\"La actividad sí contribuye sustancialmente a la sostenibilidad\",E110=\"La actividad sí contribuye sustancialmente a la sostenibilidad\"),SUM(B110:D110),0),IF(AND('Base-datos'!$B$735=\"\",'Base-datos'!$B$736=\"Sí\",'Base-datos'!$B$737=\"\"),IF(G110=\"La actividad sí contribuye sustancialmente a la sostenibilidad\",SUM(B110:D110),0),IF(AND('Base-datos'!$B$735=\"\",'Base-datos'!$B$736=\"\",'Base-datos'!$B$737=\"Sí\"),IF(E110=\"La actividad sí contribuye sustancialmente a la sostenibilidad\",SUM(B110:D110),0),IF(AND('Base-datos'!$B$735=\"\",'Base-datos'!$B$736=\"Sí\",'Base-datos'!$B$737=\"Sí\"),IF(AND(G110=\"La actividad sí contribuye sustancialmente a la sostenibilidad\",E110=\"La actividad sí contribuye sustancialmente a la sostenibilidad\"),SUM(B110:D110),0),IF(AND('Base-datos'!$B$735=\"Sí\",'Base-datos'!$B$736=\"\",'Base-datos'!$B$737=\"Sí\"),IF(AND(F110=\"La actividad sí contribuye sustancialmente a la sostenibilidad\",E110=\"La actividad sí contribuye sustancialmente a la sostenibilidad\"),SUM(B110:D110),0),\"Por definir\"))))))))","v":"Por definir"}]
[{"$f":"Agua!$C36","v":"Seleccione"},{"$f":"IF(Agua!$E36=Empresas!B$12,Agua!$B36,\"\")","v":""},{"$f":"IF(Agua!$E36=Empresas!C$12,Agua!$B36,\"\")","v":""},{"$f":"IF(Agua!$E36=Empresas!D$12,Agua!$B36,\"\")","v":""},{"$f":"_xlfn.XLOOKUP(A111,'Base-datos'!$B$532:$B$536,'Base-datos'!$F$532:$F$536)","v":{"$error":"#N/A"}},{"$f":"_xlfn.XLOOKUP(A111,'Base-datos'!$B$532:$B$536,'Base-datos'!$C$532:$C$536)","v":{"$error":"#N/A"}},{"$f":"_xlfn.XLOOKUP(A111,'Base-datos'!$B$532:$B$536,'Base-datos'!$D$532:$D$536)","v":{"$error":"#N/A"}},null,null,{"$f":"IF(OR(H$98=\"La actividad no cumple con el total de los criterios de No Daño Significativo\",I$98=\"El sector no cumple con las salvaguardas mínimas\"),\"\",IF(AND('Base-datos'!$B$735=\"Sí\",'Base-datos'!$B$736=\"\",'Base-datos'!$B$737=\"\"),IF(F111=\"La actividad sí contribuye sustancialmente a la sostenibilidad\",SUM(B111:D111),0),IF(AND('Base-datos'!$B$735=\"Sí\",'Base-datos'!$B$736=\"Sí\",'Base-datos'!$B$737=\"\"),IF(AND(F111=\"La actividad sí contribuye sustancialmente a la sostenibilidad\",G111=\"La actividad sí contribuye sustancialmente a la sostenibilidad\"),SUM(B111:D111),0),IF(AND('Base-datos'!$B$735=\"Sí\",'Base-datos'!$B$736=\"Sí\",'Base-datos'!$B$737=\"Sí\"),IF(AND(F111=\"La actividad sí contribuye sustancialmente a la sostenibilidad\",G111=\"La actividad sí contribuye sustancialmente a la sostenibilidad\",E111=\"La actividad sí contribuye sustancialmente a la sostenibilidad\"),SUM(B111:D111),0),IF(AND('Base-datos'!$B$735=\"\",'Base-datos'!$B$736=\"Sí\",'Base-datos'!$B$737=\"\"),IF(G111=\"La actividad sí contribuye sustancialmente a la sostenibilidad\",SUM(B111:D111),0),IF(AND('Base-datos'!$B$735=\"\",'Base-datos'!$B$736=\"\",'Base-datos'!$B$737=\"Sí\"),IF(E111=\"La actividad sí contribuye sustancialmente a la sostenibilidad\",SUM(B111:D111),0),IF(AND('Base-datos'!$B$735=\"\",'Base-datos'!$B$736=\"Sí\",'Base-datos'!$B$737=\"Sí\"),IF(AND(G111=\"La actividad sí contribuye sustancialmente a la sostenibilidad\",E111=\"La actividad sí contribuye sustancialmente a la sostenibilidad\"),SUM(B111:D111),0),IF(AND('Base-datos'!$B$735=\"Sí\",'Base-datos'!$B$736=\"\",'Base-datos'!$B$737=\"Sí\"),IF(AND(F111=\"La actividad sí contribuye sustancialmente a la sostenibilidad\",E111=\"La actividad sí contribuye sustancialmente a la sostenibilidad\"),SUM(B111:D111),0),\"Por definir\"))))))))","v":"Por definir"}]
[{"$f":"Agua!$C38","v":"Seleccione"},{"$f":"IF(Agua!$E38=Empresas!B$12,Agua!$B38,\"\")","v":""},{"$f":"IF(Agua!$E38=Empresas!C$12,Agua!$B38,\"\")","v":""},{"$f":"IF(Agua!$E38=Empresas!D$12,Agua!$B38,\"\")","v":""},{"$f":"_xlfn.XLOOKUP(A112,'Base-datos'!$B$532:$B$536,'Base-datos'!$F$532:$F$536)","v":{"$error":"#N/A"}},{"$f":"_xlfn.XLOOKUP(A112,'Base-datos'!$B$532:$B$536,'Base-datos'!$C$532:$C$536)","v":{"$error":"#N/A"}},{"$f":"_xlfn.XLOOKUP(A112,'Base-datos'!$B$532:$B$536,'Base-datos'!$D$532:$D$536)","v":{"$error":"#N/A"}},null,null,{"$f":"IF(OR(H$98=\"La actividad no cumple con el total de los criterios de No Daño Significativo\",I$98=\"El sector no cumple con las salvaguardas mínimas\"),\"\",IF(AND('Base-datos'!$B$735=\"Sí\",'Base-datos'!$B$736=\"\",'Base-datos'!$B$737=\"\"),IF(F112=\"La actividad sí contribuye sustancialmente a la sostenibilidad\",SUM(B112:D112),0),IF(AND('Base-datos'!$B$735=\"Sí\",'Base-datos'!$B$736=\"Sí\",'Base-datos'!$B$737=\"\"),IF(AND(F112=\"La actividad sí contribuye sustancialmente a la sostenibilidad\",G112=\"La actividad sí contribuye sustancialmente a la sostenibilidad\"),SUM(B112:D112),0),IF(AND('Base-datos'!$B$735=\"Sí\",'Base-datos'!$B$736=\"Sí\",'Base-datos'!$B$737=\"Sí\"),IF(AND(F112=\"La actividad sí contribuye sustancialmente a la sostenibilidad\",G112=\"La actividad sí contribuye sustancialmente a la sostenibilidad\",E112=\"La actividad sí contribuye sustancialmente a la sostenibilidad\"),SUM(B112:D112),0),IF(AND('Base-datos'!$B$735=\"\",'Base-datos'!$B$736=\"Sí\",'Base-datos'!$B$737=\"\"),IF(G112=\"La actividad sí contribuye sustancialmente a la sostenibilidad\",SUM(B112:D112),0),IF(AND('Base-datos'!$B$735=\"\",'Base-datos'!$B$736=\"\",'Base-datos'!$B$737=\"Sí\"),IF(E112=\"La actividad sí contribuye sustancialmente a la sostenibilidad\",SUM(B112:D112),0),IF(AND('Base-datos'!$B$735=\"\",'Base-datos'!$B$736=\"Sí\",'Base-datos'!$B$737=\"Sí\"),IF(AND(G112=\"La actividad sí contribuye sustancialmente a la sostenibilidad\",E112=\"La actividad sí contribuye sustancialmente a la sostenibilidad\"),SUM(B112:D112),0),IF(AND('Base-datos'!$B$735=\"Sí\",'Base-datos'!$B$736=\"\",'Base-datos'!$B$737=\"Sí\"),IF(AND(F112=\"La actividad sí contribuye sustancialmente a la sostenibilidad\",E112=\"La actividad sí contribuye sustancialmente a la sostenibilidad\"),SUM(B112:D112),0),\"Por definir\"))))))))","v":"Por definir"}]
[{"$f":"Agua!$C40","v":"Seleccione"},{"$f":"IF(Agua!$E40=Empresas!B$12,Agua!$B40,\"\")","v":""},{"$f":"IF(Agua!$E40=Empresas!C$12,Agua!$B40,\"\")","v":""},{"$f":"IF(Agua!$E40=Empresas!D$12,Agua!$B40,\"\")","v":""},{"$f":"_xlfn.XLOOKUP(A113,'Base-datos'!$B$532:$B$536,'Base-datos'!$F$532:$F$536)","v":{"$error":"#N/A"}},{"$f":"_xlfn.XLOOKUP(A113,'Base-datos'!$B$532:$B$536,'Base-datos'!$C$532:$C$536)","v":{"$error":"#N/A"}},{"$f":"_xlfn.XLOOKUP(A113,'Base-datos'!$B$532:$B$536,'Base-datos'!$D$532:$D$536)","v":{"$error":"#N/A"}},null,null,{"$f":"IF(OR(H$98=\"La actividad no cumple con el total de los criterios de No Daño Significativo\",I$98=\"El sector no cumple con las salvaguardas mínimas\"),\"\",IF(AND('Base-datos'!$B$735=\"Sí\",'Base-datos'!$B$736=\"\",'Base-datos'!$B$737=\"\"),IF(F113=\"La actividad sí contribuye sustancialmente a la sostenibilidad\",SUM(B113:D113),0),IF(AND('Base-datos'!$B$735=\"Sí\",'Base-datos'!$B$736=\"Sí\",'Base-datos'!$B$737=\"\"),IF(AND(F113=\"La actividad sí contribuye sustancialmente a la sostenibilidad\",G113=\"La actividad sí contribuye sustancialmente a la sostenibilidad\"),SUM(B113:D113),0),IF(AND('Base-datos'!$B$735=\"Sí\",'Base-datos'!$B$736=\"Sí\",'Base-datos'!$B$737=\"Sí\"),IF(AND(F113=\"La actividad sí contribuye sustancialmente a la sostenibilidad\",G113=\"La actividad sí contribuye sustancialmente a la sostenibilidad\",E113=\"La actividad sí contribuye sustancialmente a la sostenibilidad\"),SUM(B113:D113),0),IF(AND('Base-datos'!$B$735=\"\",'Base-datos'!$B$736=\"Sí\",'Base-datos'!$B$737=\"\"),IF(G113=\"La actividad sí contribuye sustancialmente a la sostenibilidad\",SUM(B113:D113),0),IF(AND('Base-datos'!$B$735=\"\",'Base-datos'!$B$736=\"\",'Base-datos'!$B$737=\"Sí\"),IF(E113=\"La actividad sí contribuye sustancialmente a la sostenibilidad\",SUM(B113:D113),0),IF(AND('Base-datos'!$B$735=\"\",'Base-datos'!$B$736=\"Sí\",'Base-datos'!$B$737=\"Sí\"),IF(AND(G113=\"La actividad sí contribuye sustancialmente a la sostenibilidad\",E113=\"La actividad sí contribuye sustancialmente a la sostenibilidad\"),SUM(B113:D113),0),IF(AND('Base-datos'!$B$735=\"Sí\",'Base-datos'!$B$736=\"\",'Base-datos'!$B$737=\"Sí\"),IF(AND(F113=\"La actividad sí contribuye sustancialmente a la sostenibilidad\",E113=\"La actividad sí contribuye sustancialmente a la sostenibilidad\"),SUM(B113:D113),0),\"Por definir\"))))))))","v":"Por definir"}]
[{"$f":"Agua!$C42","v":"Seleccione"},{"$f":"IF(Agua!$E42=Empresas!B$12,Agua!$B42,\"\")","v":""},{"$f":"IF(Agua!$E42=Empresas!C$12,Agua!$B42,\"\")","v":""},{"$f":"IF(Agua!$E42=Empresas!D$12,Agua!$B42,\"\")","v":""},{"$f":"_xlfn.XLOOKUP(A114,'Base-datos'!$B$532:$B$536,'Base-datos'!$F$532:$F$536)","v":{"$error":"#N/A"}},{"$f":"_xlfn.XLOOKUP(A114,'Base-datos'!$B$532:$B$536,'Base-datos'!$C$532:$C$536)","v":{"$error":"#N/A"}},{"$f":"_xlfn.XLOOKUP(A114,'Base-datos'!$B$532:$B$536,'Base-datos'!$D$532:$D$536)","v":{"$error":"#N/A"}},null,null,{"$f":"IF(OR(H$98=\"La actividad no cumple con el total de los criterios de No Daño Significativo\",I$98=\"El sector no cumple con las salvaguardas mínimas\"),\"\",IF(AND('Base-datos'!$B$735=\"Sí\",'Base-datos'!$B$736=\"\",'Base-datos'!$B$737=\"\"),IF(F114=\"La actividad sí contribuye sustancialmente a la sostenibilidad\",SUM(B114:D114),0),IF(AND('Base-datos'!$B$735=\"Sí\",'Base-datos'!$B$736=\"Sí\",'Base-datos'!$B$737=\"\"),IF(AND(F114=\"La actividad sí contribuye sustancialmente a la sostenibilidad\",G114=\"La actividad sí contribuye sustancialmente a la sostenibilidad\"),SUM(B114:D114),0),IF(AND('Base-datos'!$B$735=\"Sí\",'Base-datos'!$B$736=\"Sí\",'Base-datos'!$B$737=\"Sí\"),IF(AND(F114=\"La actividad sí contribuye sustancialmente a la sostenibilidad\",G114=\"La actividad sí contribuye sustancialmente a la sostenibilidad\",E114=\"La actividad sí contribuye sustancialmente a la sostenibilidad\"),SUM(B114:D114),0),IF(AND('Base-datos'!$B$735=\"\",'Base-datos'!$B$736=\"Sí\",'Base-datos'!$B$737=\"\"),IF(G114=\"La actividad sí contribuye sustancialmente a la sostenibilidad\",SUM(B114:D114),0),IF(AND('Base-datos'!$B$735=\"\",'Base-datos'!$B$736=\"\",'Base-datos'!$B$737=\"Sí\"),IF(E114=\"La actividad sí contribuye sustancialmente a la sostenibilidad\",SUM(B114:D114),0),IF(AND('Base-datos'!$B$735=\"\",'Base-datos'!$B$736=\"Sí\",'Base-datos'!$B$737=\"Sí\"),IF(AND(G114=\"La actividad sí contribuye sustancialmente a la sostenibilidad\",E114=\"La actividad sí contribuye sustancialmente a la sostenibilidad\"),SUM(B114:D114),0),IF(AND('Base-datos'!$B$735=\"Sí\",'Base-datos'!$B$736=\"\",'Base-datos'!$B$737=\"Sí\"),IF(AND(F114=\"La actividad sí contribuye sustancialmente a la sostenibilidad\",E114=\"La actividad sí contribuye sustancialmente a la sostenibilidad\"),SUM(B114:D114),0),\"Por definir\"))))))))","v":"Por definir"}]
[{"$f":"Agua!$C44","v":"Seleccione"},{"$f":"IF(Agua!$E44=Empresas!B$12,Agua!$B44,\"\")","v":""},{"$f":"IF(Agua!$E44=Empresas!C$12,Agua!$B44,\"\")","v":""},{"$f":"IF(Agua!$E44=Empresas!D$12,Agua!$B44,\"\")","v":""},{"$f":"_xlfn.XLOOKUP(A115,'Base-datos'!$B$532:$B$536,'Base-datos'!$F$532:$F$536)","v":{"$error":"#N/A"}},{"$f":"_xlfn.XLOOKUP(A115,'Base-datos'!$B$532:$B$536,'Base-datos'!$C$532:$C$536)","v":{"$error":"#N/A"}},{"$f":"_xlfn.XLOOKUP(A115,'Base-datos'!$B$532:$B$536,'Base-datos'!$D$532:$D$536)","v":{"$error":"#N/A"}},null,null,{"$f":"IF(OR(H$98=\"La actividad no cumple con el total de los criterios de No Daño Significativo\",I$98=\"El sector no cumple con las salvaguardas mínimas\"),\"\",IF(AND('Base-datos'!$B$735=\"Sí\",'Base-datos'!$B$736=\"\",'Base-datos'!$B$737=\"\"),IF(F115=\"La actividad sí contribuye sustancialmente a la sostenibilidad\",SUM(B115:D115),0),IF(AND('Base-datos'!$B$735=\"Sí\",'Base-datos'!$B$736=\"Sí\",'Base-datos'!$B$737=\"\"),IF(AND(F115=\"La actividad sí contribuye sustancialmente a la sostenibilidad\",G115=\"La actividad sí contribuye sustancialmente a la sostenibilidad\"),SUM(B115:D115),0),IF(AND('Base-datos'!$B$735=\"Sí\",'Base-datos'!$B$736=\"Sí\",'Base-datos'!$B$737=\"Sí\"),IF(AND(F115=\"La actividad sí contribuye sustancialmente a la sostenibilidad\",G115=\"La actividad sí contribuye sustancialmente a la sostenibilidad\",E115=\"La actividad sí contribuye sustancialmente a la sostenibilidad\"),SUM(B115:D115),0),IF(AND('Base-datos'!$B$735=\"\",'Base-datos'!$B$736=\"Sí\",'Base-datos'!$B$737=\"\"),IF(G115=\"La actividad sí contribuye sustancialmente a la sostenibilidad\",SUM(B115:D115),0),IF(AND('Base-datos'!$B$735=\"\",'Base-datos'!$B$736=\"\",'Base-datos'!$B$737=\"Sí\"),IF(E115=\"La actividad sí contribuye sustancialmente a la sostenibilidad\",SUM(B115:D115),0),IF(AND('Base-datos'!$B$735=\"\",'Base-datos'!$B$736=\"Sí\",'Base-datos'!$B$737=\"Sí\"),IF(AND(G115=\"La actividad sí contribuye sustancialmente a la sostenibilidad\",E115=\"La actividad sí contribuye sustancialmente a la sostenibilidad\"),SUM(B115:D115),0),IF(AND('Base-datos'!$B$735=\"Sí\",'Base-datos'!$B$736=\"\",'Base-datos'!$B$737=\"Sí\"),IF(AND(F115=\"La actividad sí contribuye sustancialmente a la sostenibilidad\",E115=\"La actividad sí contribuye sustancialmente a la sostenibilidad\"),SUM(B115:D115),0),\"Por definir\"))))))))","v":"Por definir"}]
[{"$f":"Agua!$C46","v":"Seleccione"},{"$f":"IF(Agua!$E46=Empresas!B$12,Agua!$B46,\"\")","v":""},{"$f":"IF(Agua!$E46=Empresas!C$12,Agua!$B46,\"\")","v":""},{"$f":"IF(Agua!$E46=Empresas!D$12,Agua!$B46,\"\")","v":""},{"$f":"_xlfn.XLOOKUP(A116,'Base-datos'!$B$532:$B$536,'Base-datos'!$F$532:$F$536)","v":{"$error":"#N/A"}},{"$f":"_xlfn.XLOOKUP(A116,'Base-datos'!$B$532:$B$536,'Base-datos'!$C$532:$C$536)","v":{"$error":"#N/A"}},{"$f":"_xlfn.XLOOKUP(A116,'Base-datos'!$B$532:$B$536,'Base-datos'!$D$532:$D$536)","v":{"$error":"#N/A"}},null,null,{"$f":"IF(OR(H$98=\"La actividad no cumple con el total de los criterios de No Daño Significativo\",I$98=\"El sector no cumple con las salvaguardas mínimas\"),\"\",IF(AND('Base-datos'!$B$735=\"Sí\",'Base-datos'!$B$736=\"\",'Base-datos'!$B$737=\"\"),IF(F116=\"La actividad sí contribuye sustancialmente a la sostenibilidad\",SUM(B116:D116),0),IF(AND('Base-datos'!$B$735=\"Sí\",'Base-datos'!$B$736=\"Sí\",'Base-datos'!$B$737=\"\"),IF(AND(F116=\"La actividad sí contribuye sustancialmente a la sostenibilidad\",G116=\"La actividad sí contribuye sustancialmente a la sostenibilidad\"),SUM(B116:D116),0),IF(AND('Base-datos'!$B$735=\"Sí\",'Base-datos'!$B$736=\"Sí\",'Base-datos'!$B$737=\"Sí\"),IF(AND(F116=\"La actividad sí contribuye sustancialmente a la sostenibilidad\",G116=\"La actividad sí contribuye sustancialmente a la sostenibilidad\",E116=\"La actividad sí contribuye sustancialmente a la sostenibilidad\"),SUM(B116:D116),0),IF(AND('Base-datos'!$B$735=\"\",'Base-datos'!$B$736=\"Sí\",'Base-datos'!$B$737=\"\"),IF(G116=\"La actividad sí contribuye sustancialmente a la sostenibilidad\",SUM(B116:D116),0),IF(AND('Base-datos'!$B$735=\"\",'Base-datos'!$B$736=\"\",'Base-datos'!$B$737=\"Sí\"),IF(E116=\"La actividad sí contribuye sustancialmente a la sostenibilidad\",SUM(B116:D116),0),IF(AND('Base-datos'!$B$735=\"\",'Base-datos'!$B$736=\"Sí\",'Base-datos'!$B$737=\"Sí\"),IF(AND(G116=\"La actividad sí contribuye sustancialmente a la sostenibilidad\",E116=\"La actividad sí contribuye sustancialmente a la sostenibilidad\"),SUM(B116:D116),0),IF(AND('Base-datos'!$B$735=\"Sí\",'Base-datos'!$B$736=\"\",'Base-datos'!$B$737=\"Sí\"),IF(AND(F116=\"La actividad sí contribuye sustancialmente a la sostenibilidad\",E116=\"La actividad sí contribuye sustancialmente a la sostenibilidad\"),SUM(B116:D116),0),\"Por definir\"))))))))","v":"Por definir"}]
[{"$f":"Agua!$C48","v":"Seleccione"},{"$f":"IF(Agua!$E48=Empresas!B$12,Agua!$B48,\"\")","v":""},{"$f":"IF(Agua!$E48=Empresas!C$12,Agua!$B48,\"\")","v":""},{"$f":"IF(Agua!$E48=Empresas!D$12,Agua!$B48,\"\")","v":""},{"$f":"_xlfn.XLOOKUP(A117,'Base-datos'!$B$532:$B$536,'Base-datos'!$F$532:$F$536)","v":{"$error":"#N/A"}},{"$f":"_xlfn.XLOOKUP(A117,'Base-datos'!$B$532:$B$536,'Base-datos'!$C$532:$C$536)","v":{"$error":"#N/A"}},{"$f":"_xlfn.XLOOKUP(A117,'Base-datos'!$B$532:$B$536,'Base-datos'!$D$532:$D$536)","v":{"$error":"#N/A"}},null,null,{"$f":"IF(OR(H$98=\"La actividad no cumple con el total de los criterios de No Daño Significativo\",I$98=\"El sector no cumple con las salvaguardas mínimas\"),\"\",IF(AND('Base-datos'!$B$735=\"Sí\",'Base-datos'!$B$736=\"\",'Base-datos'!$B$737=\"\"),IF(F117=\"La actividad sí contribuye sustancialmente a la sostenibilidad\",SUM(B117:D117),0),IF(AND('Base-datos'!$B$735=\"Sí\",'Base-datos'!$B$736=\"Sí\",'Base-datos'!$B$737=\"\"),IF(AND(F117=\"La actividad sí contribuye sustancialmente a la sostenibilidad\",G117=\"La actividad sí contribuye sustancialmente a la sostenibilidad\"),SUM(B117:D117),0),IF(AND('Base-datos'!$B$735=\"Sí\",'Base-datos'!$B$736=\"Sí\",'Base-datos'!$B$737=\"Sí\"),IF(AND(F117=\"La actividad sí contribuye sustancialmente a la sostenibilidad\",G117=\"La actividad sí contribuye sustancialmente a la sostenibilidad\",E117=\"La actividad sí contribuye sustancialmente a la sostenibilidad\"),SUM(B117:D117),0),IF(AND('Base-datos'!$B$735=\"\",'Base-datos'!$B$736=\"Sí\",'Base-datos'!$B$737=\"\"),IF(G117=\"La actividad sí contribuye sustancialmente a la sostenibilidad\",SUM(B117:D117),0),IF(AND('Base-datos'!$B$735=\"\",'Base-datos'!$B$736=\"\",'Base-datos'!$B$737=\"Sí\"),IF(E117=\"La actividad sí contribuye sustancialmente a la sostenibilidad\",SUM(B117:D117),0),IF(AND('Base-datos'!$B$735=\"\",'Base-datos'!$B$736=\"Sí\",'Base-datos'!$B$737=\"Sí\"),IF(AND(G117=\"La actividad sí contribuye sustancialmente a la sostenibilidad\",E117=\"La actividad sí contribuye sustancialmente a la sostenibilidad\"),SUM(B117:D117),0),IF(AND('Base-datos'!$B$735=\"Sí\",'Base-datos'!$B$736=\"\",'Base-datos'!$B$737=\"Sí\"),IF(AND(F117=\"La actividad sí contribuye sustancialmente a la sostenibilidad\",E117=\"La actividad sí contribuye sustancialmente a la sostenibilidad\"),SUM(B117:D117),0),\"Por definir\"))))))))","v":"Por definir"}]
["Construcción",null,null,null,null,null,null,null,null,{"$f":"SUM(IF(FREQUENCY(MATCH(A119:A138, A119:A138, 0), MATCH(A119:A138, A119:A138, 0)) > 0, IF(NOT(ISERROR(J119:J138)), J119:J138, 0)))","v":0}]
[{"$f":"Construcción!$C10","v":"Seleccione"},{"$f":"IF(Construcción!$E10=Empresas!B$12,Construcción!$B10,\"\")","v":""},{"$f":"IF(Construcción!$E10=Empresas!C$12,Construcción!$B10,\"\")","v":""},{"$f":"IF(Construcción!$E10=Empresas!D$12,Construcción!$B10,\"\")","v":""},{"$f":"_xlfn.XLOOKUP(A119,'Base-datos'!$B$537:$B$546,'Base-datos'!$F$537:$F$546)","v":{"$error":"#N/A"}},{"$f":"_xlfn.XLOOKUP(A119,'Base-datos'!$B$537:$B$546,'Base-datos'!$C$537:$C$546)","v":{"$error":"#N/A"}},{"$f":"_xlfn.XLOOKUP(A119,'Base-datos'!$B$537:$B$546,'Base-datos'!$D$537:$D$546)","v":{"$error":"#N/A"}},{"$f":"IF(COUNTIF('Construcción-NDS'!G8:G138,\"No\")>0,\"La actividad no cumple con el total de los criterios de NDS\",\"La actividad cumple con los criterios de No Daño Significativo\")","v":"La actividad cumple con los criterios de No Daño Significativo"},{"$f":"IF(OR('Salvaguardas mínimas'!$G$10=\"Seleccione\",'Salvaguardas mínimas'!$G$13=\"Seleccione\",'Salvaguardas mínimas'!$G$16=\"Seleccione\",'Salvaguardas mínimas'!$G$7=\"Seleccione\"),\"No se han respondido todas las preguntas\",IF(OR('Salvaguardas mínimas'!$G$10=\"No\",'Salvaguardas mínimas'!$G$13=\"No\",'Salvaguardas mínimas'!$G$16=\"No\",'Salvaguardas mínimas'!$G$7=\"No\"),\"El sector no cumple con las salvaguardas mínimas\",\"La actividad sí cumple con las salvaguardas mínimas\"))","v":"No se han respondido todas las preguntas"},{"$f":"IF(OR(H$119=\"La actividad no cumple con el total de los criterios de No Daño Significativo\",I$119=\"El sector no cumple con las salvaguardas mínimas\"),\"\",IF(AND('Base-datos'!$B$740=\"Sí\",'Base-datos'!$B$741=\"\",'Base-datos'!$B$742=\"\"),IF(F119=\"La actividad sí contribuye sustancialmente a la sostenibilidad\",SUM(B119:D119),0),IF(AND('Base-datos'!$B$740=\"Sí\",'Base-datos'!$B$741=\"Sí\",'Base-datos'!$B$742=\"\"),IF(AND(F119=\"La actividad sí contribuye sustancialmente a la sostenibilidad\",G119=\"La actividad sí contribuye sustancialmente a la sostenibilidad\"),SUM(B119:D119),0),IF(AND('Base-datos'!$B$740=\"Sí\",'Base-datos'!$B$741=\"Sí\",'Base-datos'!$B$742=\"Sí\"),IF(AND(F119=\"La actividad sí contribuye sustancialmente a la sostenibilidad\",G119=\"La actividad sí contribuye sustancialmente a la sostenibilidad\",E119=\"La actividad sí contribuye sustancialmente a la sostenibilidad\"),SUM(B119:D119),0),IF(AND('Base-datos'!$B$740=\"\",'Base-datos'!$B$741=\"Sí\",'Base-datos'!$B$742=\"\"),IF(G119=\"La actividad sí contribuye sustancialmente a la sostenibilidad\",SUM(B119:D119),0),IF(AND('Base-datos'!$B$740=\"\",'Base-datos'!$B$741=\"\",'Base-datos'!$B$742=\"Sí\"),IF(E119=\"La actividad sí contribuye sustancialmente a la sostenibilidad\",SUM(B119:D119),0),IF(AND('Base-datos'!$B$740=\"\",'Base-datos'!$B$741=\"Sí\",'Base-datos'!$B$742=\"Sí\"),IF(AND(G119=\"La actividad sí contribuye sustancialmente a la sostenibilidad\",E119=\"La actividad sí contribuye sustancialmente a la sostenibilidad\"),SUM(B119:D119),0),IF(AND('Base-datos'!$B$740=\"Sí\",'Base-datos'!$B$741=\"\",'Base-datos'!$B$742=\"Sí\"),IF(AND(F119=\"La actividad sí contribuye sustancialmente a la sostenibilidad\",E119=\"La actividad sí contribuye sustancialmente a la sostenibilidad\"),SUM(B119:D119),0),\"Por definir\"))))))))","v":"Por definir"}]
[{"$f":"Construcción!$C12","v":"Seleccione"},{"$f":"IF(Construcción!$E12=Empresas!B$12,Construcción!$B12,\"\")","v":""},{"$f":"IF(Construcción!$E12=Empresas!C$12,Construcción!$B12,\"\")","v":""},{"$f":"IF(Construcción!$E12=Empresas!D$12,Construcción!$B12,\"\")","v":""},{"$f":"_xlfn.XLOOKUP(A120,'Base-datos'!$B$537:$B$546,'Base-datos'!$F$537:$F$546)","v":{"$error":"#N/A"}},{"$f":"_xlfn.XLOOKUP(A120,'Base-datos'!$B$537:$B$546,'Base-datos'!$C$537:$C$546)","v":{"$error":"#N/A"}},{"$f":"_xlfn.XLOOKUP(A120,'Base-datos'!$B$537:$B$546,'Base-datos'!$D$537:$D$546)","v":{"$error":"#N/A"}},null,null,{"$f":"IF(OR(H$119=\"La actividad no cumple con el total de los criterios de No Daño Significativo\",I$119=\"El sector no cumple con las salvaguardas mínimas\"),\"\",IF(AND('Base-datos'!$B$740=\"Sí\",'Base-datos'!$B$741=\"\",'Base-datos'!$B$742=\"\"),IF(F120=\"La actividad sí contribuye sustancialmente a la sostenibilidad\",SUM(B120:D120),0),IF(AND('Base-datos'!$B$740=\"Sí\",'Base-datos'!$B$741=\"Sí\",'Base-datos'!$B$742=\"\"),IF(AND(F120=\"La actividad sí contribuye sustancialmente a la sostenibilidad\",G120=\"La actividad sí contribuye sustancialmente a la sostenibilidad\"),SUM(B120:D120),0),IF(AND('Base-datos'!$B$740=\"Sí\",'Base-datos'!$B$741=\"Sí\",'Base-datos'!$B$742=\"Sí\"),IF(AND(F120=\"La actividad sí contribuye sustancialmente a la sostenibilidad\",G120=\"La actividad sí contribuye sustancialmente a la sostenibilidad\",E120=\"La actividad sí contribuye sustancialmente a la sostenibilidad\"),SUM(B120:D120),0),IF(AND('Base-datos'!$B$740=\"\",'Base-datos'!$B$741=\"Sí\",'Base-datos'!$B$742=\"\"),IF(G120=\"La actividad sí contribuye sustancialmente a la sostenibilidad\",SUM(B120:D120),0),IF(AND('Base-datos'!$B$740=\"\",'Base-datos'!$B$741=\"\",'Base-datos'!$B$742=\"Sí\"),IF(E120=\"La actividad sí contribuye sustancialmente a la sostenibilidad\",SUM(B120:D120),0),IF(AND('Base-datos'!$B$740=\"\",'Base-datos'!$B$741=\"Sí\",'Base-datos'!$B$742=\"Sí\"),IF(AND(G120=\"La actividad sí contribuye sustancialmente a la sostenibilidad\",E120=\"La actividad sí contribuye sustancialmente a la sostenibilidad\"),SUM(B120:D120),0),IF(AND('Base-datos'!$B$740=\"Sí\",'Base-datos'!$B$741=\"\",'Base-datos'!$B$742=\"Sí\"),IF(AND(F120=\"La actividad sí contribuye sustancialmente a la sostenibilidad\",E120=\"La actividad sí contribuye sustancialmente a la sostenibilidad\"),SUM(B120:D120),0),\"Por definir\"))))))))","v":"Por definir"}]
[{"$f":"Construcción!$C14","v":"Seleccione"},{"$f":"IF(Construcción!$E14=Empresas!B$12,Construcción!$B14,\"\")","v":""},{"$f":"IF(Construcción!$E14=Empresas!C$12,Construcción!$B14,\"\")","v":""},{"$f":"IF(Construcción!$E14=Empresas!D$12,Construcción!$B14,\"\")","v":""},{"$f":"_xlfn.XLOOKUP(A121,'Base-datos'!$B$537:$B$546,'Base-datos'!$F$537:$F$546)","v":{"$error":"#N/A"}},{"$f":"_xlfn.XLOOKUP(A121,'Base-datos'!$B$537:$B$546,'Base-datos'!$C$537:$C$546)","v":{"$error":"#N/A"}},{"$f":"_xlfn.XLOOKUP(A121,'Base-datos'!$B$537:$B$546,'Base-datos'!$D$537:$D$546)","v":{"$error":"#N/A"}},null,null,{"$f":"IF(OR(H$119=\"La actividad no cumple con el total de los criterios de No Daño Significativo\",I$119=\"El sector no cumple con las salvaguardas mínimas\"),\"\",IF(AND('Base-datos'!$B$740=\"Sí\",'Base-datos'!$B$741=\"\",'Base-datos'!$B$742=\"\"),IF(F121=\"La actividad sí contribuye sustancialmente a la sostenibilidad\",SUM(B121:D121),0),IF(AND('Base-datos'!$B$740=\"Sí\",'Base-datos'!$B$741=\"Sí\",'Base-datos'!$B$742=\"\"),IF(AND(F121=\"La actividad sí contribuye sustancialmente a la sostenibilidad\",G121=\"La actividad sí contribuye sustancialmente a la sostenibilidad\"),SUM(B121:D121),0),IF(AND('Base-datos'!$B$740=\"Sí\",'Base-datos'!$B$741=\"Sí\",'Base-datos'!$B$742=\"Sí\"),IF(AND(F121=\"La actividad sí contribuye sustancialmente a la sostenibilidad\",G121=\"La actividad sí contribuye sustancialmente a la sostenibilidad\",E121=\"La actividad sí contribuye sustancialmente a la sostenibilidad\"),SUM(B121:D121),0),IF(AND('Base-datos'!$B$740=\"\",'Base-datos'!$B$741=\"Sí\",'Base-datos'!$B$742=\"\"),IF(G121=\"La actividad sí contribuye sustancialmente a la sostenibilidad\",SUM(B121:D121),0),IF(AND('Base-datos'!$B$740=\"\",'Base-datos'!$B$741=\"\",'Base-datos'!$B$742=\"Sí\"),IF(E121=\"La actividad sí contribuye sustancialmente a la sostenibilidad\",SUM(B121:D121),0),IF(AND('Base-datos'!$B$740=\"\",'Base-datos'!$B$741=\"Sí\",'Base-datos'!$B$742=\"Sí\"),IF(AND(G121=\"La actividad sí contribuye sustancialmente a la sostenibilidad\",E121=\"La actividad sí contribuye sustancialmente a la sostenibilidad\"),SUM(B121:D121),0),IF(AND('Base-datos'!$B$740=\"Sí\",'Base-datos'!$B$741=\"\",'Base-datos'!$B$742=\"Sí\"),IF(AND(F121=\"La actividad sí contribuye sustancialmente a la sostenibilidad\",E121=\"La actividad sí contribuye sustancialmente a la sostenibilidad\"),SUM(B121:D121),0),\"Por definir\"))))))))","v":"Por definir"}]
[{"$f":"Construcción!$C16","v":"Seleccione"},{"$f":"IF(Construcción!$E16=Empresas!B$12,Construcción!$B16,\"\")","v":""},{"$f":"IF(Construcción!$E16=Empresas!C$12,Construcción!$B16,\"\")","v":""},{"$f":"IF(Construcción!$E16=Empresas!D$12,Construcción!$B16,\"\")","v":""},{"$f":"_xlfn.XLOOKUP(A122,'Base-datos'!$B$537:$B$546,'Base-datos'!$F$537:$F$546)","v":{"$error":"#N/A"}},{"$f":"_xlfn.XLOOKUP(A122,'Base-datos'!$B$537:$B$546,'Base-datos'!$C$537:$C$546)","v":{"$error":"#N/A"}},{"$f":"_xlfn.XLOOKUP(A122,'Base-datos'!$B$537:$B$546,'Base-datos'!$D$537:$D$546)","v":{"$error":"#N/A"}},null,null,{"$f":"IF(OR(H$119=\"La actividad no cumple con el total de los criterios de No Daño Significativo\",I$119=\"El sector no cumple con las salvaguardas mínimas\"),\"\",IF(AND('Base-datos'!$B$740=\"Sí\",'Base-datos'!$B$741=\"\",'Base-datos'!$B$742=\"\"),IF(F122=\"La actividad sí contribuye sustancialmente a la sostenibilidad\",SUM(B122:D122),0),IF(AND('Base-datos'!$B$740=\"Sí\",'Base-datos'!$B$741=\"Sí\",'Base-datos'!$B$742=\"\"),IF(AND(F122=\"La actividad sí contribuye sustancialmente a la sostenibilidad\",G122=\"La actividad sí contribuye sustancialmente a la sostenibilidad\"),SUM(B122:D122),0),IF(AND('Base-datos'!$B$740=\"Sí\",'Base-datos'!$B$741=\"Sí\",'Base-datos'!$B$742=\"Sí\"),IF(AND(F122=\"La actividad sí contribuye sustancialmente a la sostenibilidad\",G122=\"La actividad sí contribuye sustancialmente a la sostenibilidad\",E122=\"La actividad sí contribuye sustancialmente a la sostenibilidad\"),SUM(B122:D122),0),IF(AND('Base-datos'!$B$740=\"\",'Base-datos'!$B$741=\"Sí\",'Base-datos'!$B$742=\"\"),IF(G122=\"La actividad sí contribuye sustancialmente a la sostenibilidad\",SUM(B122:D122),0),IF(AND('Base-datos'!$B$740=\"\",'Base-datos'!$B$741=\"\",'Base-datos'!$B$742=\"Sí\"),IF(E122=\"La actividad sí contribuye sustancialmente a la sostenibilidad\",SUM(B122:D122),0),IF(AND('Base-datos'!$B$740=\"\",'Base-datos'!$B$741=\"Sí\",'Base-datos'!$B$742=\"Sí\"),IF(AND(G122=\"La actividad sí contribuye sustancialmente a la sostenibilidad\",E122=\"La actividad sí contribuye sustancialmente a la sostenibilidad\"),SUM(B122:D122),0),IF(AND('Base-datos'!$B$740=\"Sí\",'Base-datos'!$B$741=\"\",'Base-datos'!$B$742=\"Sí\"),IF(AND(F122=\"La actividad sí contribuye sustancialmente a la sostenibilidad\",E122=\"La actividad sí contribuye sustancialmente a la sostenibilidad\"),SUM(B122:D122),0),\"Por definir\"))))))))","v":"Por definir"}]
[{"$f":"Construcción!$C18","v":"Seleccione"},{"$f":"IF(Construcción!$E18=Empresas!B$12,Construcción!$B18,\"\")","v":""},{"$f":"IF(Construcción!$E18=Empresas!C$12,Construcción!$B18,\"\")","v":""},{"$f":"IF(Construcción!$E18=Empresas!D$12,Construcción!$B18,\"\")","v":""},{"$f":"_xlfn.XLOOKUP(A123,'Base-datos'!$B$537:$B$546,'Base-datos'!$F$537:$F$546)","v":{"$error":"#N/A"}},{"$f":"_xlfn.XLOOKUP(A123,'Base-datos'!$B$537:$B$546,'Base-datos'!$C$537:$C$546)","v":{"$error":"#N/A"}},{"$f":"_xlfn.XLOOKUP(A123,'Base-datos'!$B$537:$B$546,'Base-datos'!$D$537:$D$546)","v":{"$error":"#N/A"}},null,null,{"$f":"IF(OR(H$119=\"La actividad no cumple con el total de los criterios de No Daño Significativo\",I$119=\"El sector no cumple con las salvaguardas mínimas\"),\"\",IF(AND('Base-datos'!$B$740=\"Sí\",'Base-datos'!$B$741=\"\",'Base-datos'!$B$742=\"\"),IF(F123=\"La actividad sí contribuye sustancialmente a la sostenibilidad\",SUM(B123:D123),0),IF(AND('Base-datos'!$B$740=\"Sí\",'Base-datos'!$B$741=\"Sí\",'Base-datos'!$B$742=\"\"),IF(AND(F123=\"La actividad sí contribuye sustancialmente a la sostenibilidad\",G123=\"La actividad sí contribuye sustancialmente a la sostenibilidad\"),SUM(B123:D123),0),IF(AND('Base-datos'!$B$740=\"Sí\",'Base-datos'!$B$741=\"Sí\",'Base-datos'!$B$742=\"Sí\"),IF(AND(F123=\"La actividad sí contribuye sustancialmente a la sostenibilidad\",G123=\"La actividad sí contribuye sustancialmente a la sostenibilidad\",E123=\"La actividad sí contribuye sustancialmente a la sostenibilidad\"),SUM(B123:D123),0),IF(AND('Base-datos'!$B$740=\"\",'Base-datos'!$B$741=\"Sí\",'Base-datos'!$B$742=\"\"),IF(G123=\"La actividad sí contribuye sustancialmente a la sostenibilidad\",SUM(B123:D123),0),IF(AND('Base-datos'!$B$740=\"\",'Base-datos'!$B$741=\"\",'Base-datos'!$B$742=\"Sí\"),IF(E123=\"La actividad sí contribuye sustancialmente a la sostenibilidad\",SUM(B123:D123),0),IF(AND('Base-datos'!$B$740=\"\",'Base-datos'!$B$741=\"Sí\",'Base-datos'!$B$742=\"Sí\"),IF(AND(G123=\"La actividad sí contribuye sustancialmente a la sostenibilidad\",E123=\"La actividad sí contribuye sustancialmente a la sostenibilidad\"),SUM(B123:D123),0),IF(AND('Base-datos'!$B$740=\"Sí\",'Base-datos'!$B$741=\"\",'Base-datos'!$B$742=\"Sí\"),IF(AND(F123=\"La actividad sí contribuye sustancialmente a la sostenibilidad\",E123=\"La actividad sí contribuye sustancialmente a la sostenibilidad\"),SUM(B123:D123),0),\"Por definir\"))))))))","v":"Por definir"}]
[{"$f":"Construcción!$C20","v":"Seleccione"},{"$f":"IF(Construcción!$E20=Empresas!B$12,Construcción!$B20,\"\")","v":""},{"$f":"IF(Construcción!$E20=Empresas!C$12,Construcción!$B20,\"\")","v":""},{"$f":"IF(Construcción!$E20=Empresas!D$12,Construcción!$B20,\"\")","v":""},{"$f":"_xlfn.XLOOKUP(A124,'Base-datos'!$B$537:$B$546,'Base-datos'!$F$537:$F$546)","v":{"$error":"#N/A"}},{"$f":"_xlfn.XLOOKUP(A124,'Base-datos'!$B$537:$B$546,'Base-datos'!$C$537:$C$546)","v":{"$error":"#N/A"}},{"$f":"_xlfn.XLOOKUP(A124,'Base-datos'!$B$537:$B$546,'Base-datos'!$D$537:$D$546)","v":{"$error":"#N/A"}},null,null,{"$f":"IF(OR(H$119=\"La actividad no cumple con el total de los criterios de No Daño Significativo\",I$119=\"El sector no cumple con las salvaguardas mínimas\"),\"\",IF(AND('Base-datos'!$B$740=\"Sí\",'Base-datos'!$B$741=\"\",'Base-datos'!$B$742=\"\"),IF(F124=\"La actividad sí contribuye sustancialmente a la sostenibilidad\",SUM(B124:D124),0),IF(AND('Base-datos'!$B$740=\"Sí\",'Base-datos'!$B$741=\"Sí\",'Base-datos'!$B$742=\"\"),IF(AND(F124=\"La actividad sí contribuye sustancialmente a la sostenibilidad\",G124=\"La actividad sí contribuye sustancialmente a la sostenibilidad\"),SUM(B124:D124),0),IF(AND('Base-datos'!$B$740=\"Sí\",'Base-datos'!$B$741=\"Sí\",'Base-datos'!$B$742=\"Sí\"),IF(AND(F124=\"La actividad sí contribuye sustancialmente a la sostenibilidad\",G124=\"La actividad sí contribuye sustancialmente a la sostenibilidad\",E124=\"La actividad sí contribuye sustancialmente a la sostenibilidad\"),SUM(B124:D124),0),IF(AND('Base-datos'!$B$740=\"\",'Base-datos'!$B$741=\"Sí\",'Base-datos'!$B$742=\"\"),IF(G124=\"La actividad sí contribuye sustancialmente a la sostenibilidad\",SUM(B124:D124),0),IF(AND('Base-datos'!$B$740=\"\",'Base-datos'!$B$741=\"\",'Base-datos'!$B$742=\"Sí\"),IF(E124=\"La actividad sí contribuye sustancialmente a la sostenibilidad\",SUM(B124:D124),0),IF(AND('Base-datos'!$B$740=\"\",'Base-datos'!$B$741=\"Sí\",'Base-datos'!$B$742=\"Sí\"),IF(AND(G124=\"La actividad sí contribuye sustancialmente a la sostenibilidad\",E124=\"La actividad sí contribuye sustancialmente a la sostenibilidad\"),SUM(B124:D124),0),IF(AND('Base-datos'!$B$740=\"Sí\",'Base-datos'!$B$741=\"\",'Base-datos'!$B$742=\"Sí\"),IF(AND(F124=\"La actividad sí contribuye sustancialmente a la sostenibilidad\",E124=\"La actividad sí contribuye sustancialmente a la sostenibilidad\"),SUM(B124:D124),0),\"Por definir\"))))))))","v":"Por definir"}]
[{"$f":"Construcción!$C22","v":"Seleccione"},{"$f":"IF(Construcción!$E22=Empresas!B$12,Construcción!$B22,\"\")","v":""},{"$f":"IF(Construcción!$E22=Empresas!C$12,Construcción!$B22,\"\")","v":""},{"$f":"IF(Construcción!$E22=Empresas!D$12,Construcción!$B22,\"\")","v":""},{"$f":"_xlfn.XLOOKUP(A125,'Base-datos'!$B$537:$B$546,'Base-datos'!$F$537:$F$546)","v":{"$error":"#N/A"}},{"$f":"_xlfn.XLOOKUP(A125,'Base-datos'!$B$537:$B$546,'Base-datos'!$C$537:$C$546)","v":{"$error":"#N/A"}},{"$f":"_xlfn.XLOOKUP(A125,'Base-datos'!$B$537:$B$546,'Base-datos'!$D$537:$D$546)","v":{"$error":"#N/A"}},null,null,{"$f":"IF(OR(H$119=\"La actividad no cumple con el total de los criterios de No Daño Significativo\",I$119=\"El sector no cumple con las salvaguardas mínimas\"),\"\",IF(AND('Base-datos'!$B$740=\"Sí\",'Base-datos'!$B$741=\"\",'Base-datos'!$B$742=\"\"),IF(F125=\"La actividad sí contribuye sustancialmente a la sostenibilidad\",SUM(B125:D125),0),IF(AND('Base-datos'!$B$740=\"Sí\",'Base-datos'!$B$741=\"Sí\",'Base-datos'!$B$742=\"\"),IF(AND(F125=\"La actividad sí contribuye sustancialmente a la sostenibilidad\",G125=\"La actividad sí contribuye sustancialmente a la sostenibilidad\"),SUM(B125:D125),0),IF(AND('Base-datos'!$B$740=\"Sí\",'Base-datos'!$B$741=\"Sí\",'Base-datos'!$B$742=\"Sí\"),IF(AND(F125=\"La actividad sí contribuye sustancialmente a la sostenibilidad\",G125=\"La actividad sí contribuye sustancialmente a la sostenibilidad\",E125=\"La actividad sí contribuye sustancialmente a la sostenibilidad\"),SUM(B125:D125),0),IF(AND('Base-datos'!$B$740=\"\",'Base-datos'!$B$741=\"Sí\",'Base-datos'!$B$742=\"\"),IF(G125=\"La actividad sí contribuye sustancialmente a la sostenibilidad\",SUM(B125:D125),0),IF(AND('Base-datos'!$B$740=\"\",'Base-datos'!$B$741=\"\",'Base-datos'!$B$742=\"Sí\"),IF(E125=\"La actividad sí contribuye sustancialmente a la sostenibilidad\",SUM(B125:D125),0),IF(AND('Base-datos'!$B$740=\"\",'Base-datos'!$B$741=\"Sí\",'Base-datos'!$B$742=\"Sí\"),IF(AND(G125=\"La actividad sí contribuye sustancialmente a la sostenibilidad\",E125=\"La actividad sí contribuye sustancialmente a la sostenibilidad\"),SUM(B125:D125),0),IF(AND('Base-datos'!$B$740=\"Sí\",'Base-datos'!$B$741=\"\",'Base-datos'!$B$742=\"Sí\"),IF(AND(F125=\"La actividad sí contribuye sustancialmente a la sostenibilidad\",E125=\"La actividad sí contribuye sustancialmente a la sostenibilidad\"),SUM(B125:D125),0),\"Por definir\"))))))))","v":"Por definir"}]
[{"$f":"Construcción!$C24","v":"Seleccione"},{"$f":"IF(Construcción!$E24=Empresas!B$12,Construcción!$B24,\"\")","v":""},{"$f":"IF(Construcción!$E24=Empresas!C$12,Construcción!$B24,\"\")","v":""},{"$f":"IF(Construcción!$E24=Empresas!D$12,Construcción!$B24,\"\")","v":""},{"$f":"_xlfn.XLOOKUP(A126,'Base-datos'!$B$537:$B$546,'Base-datos'!$F$537:$F$546)","v":{"$error":"#N/A"}},{"$f":"_xlfn.XLOOKUP(A126,'Base-datos'!$B$537:$B$546,'Base-datos'!$C$537:$C$546)","v":{"$error":"#N/A"}},{"$f":"_xlfn.XLOOKUP(A126,'Base-datos'!$B$537:$B$546,'Base-datos'!$D$537:$D$546)","v":{"$error":"#N/A"}},null,null,{"$f":"IF(OR(H$119=\"La actividad no cumple con el total de los criterios de No Daño Significativo\",I$119=\"El sector no cumple con las salvaguardas mínimas\"),\"\",IF(AND('Base-datos'!$B$740=\"Sí\",'Base-datos'!$B$741=\"\",'Base-datos'!$B$742=\"\"),IF(F126=\"La actividad sí contribuye sustancialmente a la sostenibilidad\",SUM(B126:D126),0),IF(AND('Base-datos'!$B$740=\"Sí\",'Base-datos'!$B$741=\"Sí\",'Base-datos'!$B$742=\"\"),IF(AND(F126=\"La actividad sí contribuye sustancialmente a la sostenibilidad\",G126=\"La actividad sí contribuye sustancialmente a la sostenibilidad\"),SUM(B126:D126),0),IF(AND('Base-datos'!$B$740=\"Sí\",'Base-datos'!$B$741=\"Sí\",'Base-datos'!$B$742=\"Sí\"),IF(AND(F126=\"La actividad sí contribuye sustancialmente a la sostenibilidad\",G126=\"La actividad sí contribuye sustancialmente a la sostenibilidad\",E126=\"La actividad sí contribuye sustancialmente a la sostenibilidad\"),SUM(B126:D126),0),IF(AND('Base-datos'!$B$740=\"\",'Base-datos'!$B$741=\"Sí\",'Base-datos'!$B$742=\"\"),IF(G126=\"La actividad sí contribuye sustancialmente a la sostenibilidad\",SUM(B126:D126),0),IF(AND('Base-datos'!$B$740=\"\",'Base-datos'!$B$741=\"\",'Base-datos'!$B$742=\"Sí\"),IF(E126=\"La actividad sí contribuye sustancialmente a la sostenibilidad\",SUM(B126:D126),0),IF(AND('Base-datos'!$B$740=\"\",'Base-datos'!$B$741=\"Sí\",'Base-datos'!$B$742=\"Sí\"),IF(AND(G126=\"La actividad sí contribuye sustancialmente a la sostenibilidad\",E126=\"La actividad sí contribuye sustancialmente a la sostenibilidad\"),SUM(B126:D126),0),IF(AND('Base-datos'!$B$740=\"Sí\",'Base-datos'!$B$741=\"\",'Base-datos'!$B$742=\"Sí\"),IF(AND(F126=\"La actividad sí contribuye sustancialmente a la sostenibilidad\",E126=\"La actividad sí contribuye sustancialmente a la sostenibilidad\"),SUM(B126:D126),0),\"Por definir\"))))))))","v":"Por definir"}]
[{"$f":"Construcción!$C26","v":"Seleccione"},{"$f":"IF(Construcción!$E26=Empresas!B$12,Construcción!$B26,\"\")","v":""},{"$f":"IF(Construcción!$E26=Empresas!C$12,Construcción!$B26,\"\")","v":""},{"$f":"IF(Construcción!$E26=Empresas!D$12,Construcción!$B26,\"\")","v":""},{"$f":"_xlfn.XLOOKUP(A127,'Base-datos'!$B$537:$B$546,'Base-datos'!$F$537:$F$546)","v":{"$error":"#N/A"}},{"$f":"_xlfn.XLOOKUP(A127,'Base-datos'!$B$537:$B$546,'Base-datos'!$C$537:$C$546)","v":{"$error":"#N/A"}},{"$f":"_xlfn.XLOOKUP(A127,'Base-datos'!$B$537:$B$546,'Base-datos'!$D$537:$D$546)","v":{"$error":"#N/A"}},null,null,{"$f":"IF(OR(H$119=\"La actividad no cumple con el total de los criterios de No Daño Significativo\",I$119=\"El sector no cumple con las salvaguardas mínimas\"),\"\",IF(AND('Base-datos'!$B$740=\"Sí\",'Base-datos'!$B$741=\"\",'Base-datos'!$B$742=\"\"),IF(F127=\"La actividad sí contribuye sustancialmente a la sostenibilidad\",SUM(B127:D127),0),IF(AND('Base-datos'!$B$740=\"Sí\",'Base-datos'!$B$741=\"Sí\",'Base-datos'!$B$742=\"\"),IF(AND(F127=\"La actividad sí contribuye sustancialmente a la sostenibilidad\",G127=\"La actividad sí contribuye sustancialmente a la sostenibilidad\"),SUM(B127:D127),0),IF(AND('Base-datos'!$B$740=\"Sí\",'Base-datos'!$B$741=\"Sí\",'Base-datos'!$B$742=\"Sí\"),IF(AND(F127=\"La actividad sí contribuye sustancialmente a la sostenibilidad\",G127=\"La actividad sí contribuye sustancialmente a la sostenibilidad\",E127=\"La actividad sí contribuye sustancialmente a la sostenibilidad\"),SUM(B127:D127),0),IF(AND('Base-datos'!$B$740=\"\",'Base-datos'!$B$741=\"Sí\",'Base-datos'!$B$742=\"\"),IF(G127=\"La actividad sí contribuye sustancialmente a la sostenibilidad\",SUM(B127:D127),0),IF(AND('Base-datos'!$B$740=\"\",'Base-datos'!$B$741=\"\",'Base-datos'!$B$742=\"Sí\"),IF(E127=\"La actividad sí contribuye sustancialmente a la sostenibilidad\",SUM(B127:D127),0),IF(AND('Base-datos'!$B$740=\"\",'Base-datos'!$B$741=\"Sí\",'Base-datos'!$B$742=\"Sí\"),IF(AND(G127=\"La actividad sí contribuye sustancialmente a la sostenibilidad\",E127=\"La actividad sí contribuye sustancialmente a la sostenibilidad\"),SUM(B127:D127),0),IF(AND('Base-datos'!$B$740=\"Sí\",'Base-datos'!$B$741=\"\",'Base-datos'!$B$742=\"Sí\"),IF(AND(F127=\"La actividad sí contribuye sustancialmente a la sostenibilidad\",E127=\"La actividad sí contribuye sustancialmente a la sostenibilidad\"),SUM(B127:D127),0),\"Por definir\"))))))))","v":"Por definir"}]
[{"$f":"Construcción!$C28","v":"Seleccione"},{"$f":"IF(Construcción!$E28=Empresas!B$12,Construcción!$B28,\"\")","v":""},{"$f":"IF(Construcción!$E28=Empresas!C$12,Construcción!$B28,\"\")","v":""},{"$f":"IF(Construcción!$E28=Empresas!D$12,Construcción!$B28,\"\")","v":""},{"$f":"_xlfn.XLOOKUP(A128,'Base-datos'!$B$537:$B$546,'Base-datos'!$F$537:$F$546)","v":{"$error":"#N/A"}},{"$f":"_xlfn.XLOOKUP(A128,'Base-datos'!$B$537:$B$546,'Base-datos'!$C$537:$C$546)","v":{"$error":"#N/A"}},{"$f":"_xlfn.XLOOKUP(A128,'Base-datos'!$B$537:$B$546,'Base-datos'!$D$537:$D$546)","v":{"$error":"#N/A"}},null,null,{"$f":"IF(OR(H$119=\"La actividad no cumple con el total de los criterios de No Daño Significativo\",I$119=\"El sector no cumple con las salvaguardas mínimas\"),\"\",IF(AND('Base-datos'!$B$740=\"Sí\",'Base-datos'!$B$741=\"\",'Base-datos'!$B$742=\"\"),IF(F128=\"La actividad sí contribuye sustancialmente a la sostenibilidad\",SUM(B128:D128),0),IF(AND('Base-datos'!$B$740=\"Sí\",'Base-datos'!$B$741=\"Sí\",'Base-datos'!$B$742=\"\"),IF(AND(F128=\"La actividad sí contribuye sustancialmente a la sostenibilidad\",G128=\"La actividad sí contribuye sustancialmente a la sostenibilidad\"),SUM(B128:D128),0),IF(AND('Base-datos'!$B$740=\"Sí\",'Base-datos'!$B$741=\"Sí\",'Base-datos'!$B$742=\"Sí\"),IF(AND(F128=\"La actividad sí contribuye sustancialmente a la sostenibilidad\",G128=\"La actividad sí contribuye sustancialmente a la sostenibilidad\",E128=\"La actividad sí contribuye sustancialmente a la sostenibilidad\"),SUM(B128:D128),0),IF(AND('Base-datos'!$B$740=\"\",'Base-datos'!$B$741=\"Sí\",'Base-datos'!$B$742=\"\"),IF(G128=\"La actividad sí contribuye sustancialmente a la sostenibilidad\",SUM(B128:D128),0),IF(AND('Base-datos'!$B$740=\"\",'Base-datos'!$B$741=\"\",'Base-datos'!$B$742=\"Sí\"),IF(E128=\"La actividad sí contribuye sustancialmente a la sostenibilidad\",SUM(B128:D128),0),IF(AND('Base-datos'!$B$740=\"\",'Base-datos'!$B$741=\"Sí\",'Base-datos'!$B$742=\"Sí\"),IF(AND(G128=\"La actividad sí contribuye sustancialmente a la sostenibilidad\",E128=\"La actividad sí contribuye sustancialmente a la sostenibilidad\"),SUM(B128:D128),0),IF(AND('Base-datos'!$B$740=\"Sí\",'Base-datos'!$B$741=\"\",'Base-datos'!$B$742=\"Sí\"),IF(AND(F128=\"La actividad sí contribuye sustancialmente a la sostenibilidad\",E128=\"La actividad sí contribuye sustancialmente a la sostenibilidad\"),SUM(B128:D128),0),\"Por definir\"))))))))","v":"Por definir"}]
[{"$f":"Construcción!$C30","v":"Seleccione"},{"$f":"IF(Construcción!$E30=Empresas!B$12,Construcción!$B30,\"\")","v":""},{"$f":"IF(Construcción!$E30=Empresas!C$12,Construcción!$B30,\"\")","v":""},{"$f":"IF(Construcción!$E30=Empresas!D$12,Construcción!$B30,\"\")","v":""},{"$f":"_xlfn.XLOOKUP(A129,'Base-datos'!$B$537:$B$546,'Base-datos'!$F$537:$F$546)","v":{"$error":"#N/A"}},{"$f":"_xlfn.XLOOKUP(A129,'Base-datos'!$B$537:$B$546,'Base-datos'!$C$537:$C$546)","v":{"$error":"#N/A"}},{"$f":"_xlfn.XLOOKUP(A129,'Base-datos'!$B$537:$B$546,'Base-datos'!$D$537:$D$546)","v":{"$error":"#N/A"}},null,null,{"$f":"IF(OR(H$119=\"La actividad no cumple con el total de los criterios de No Daño Significativo\",I$119=\"El sector no cumple con las salvaguardas mínimas\"),\"\",IF(AND('Base-datos'!$B$740=\"Sí\",'Base-datos'!$B$741=\"\",'Base-datos'!$B$742=\"\"),IF(F129=\"La actividad sí contribuye sustancialmente a la sostenibilidad\",SUM(B129:D129),0),IF(AND('Base-datos'!$B$740=\"Sí\",'Base-datos'!$B$741=\"Sí\",'Base-datos'!$B$742=\"\"),IF(AND(F129=\"La actividad sí contribuye sustancialmente a la sostenibilidad\",G129=\"La actividad sí contribuye sustancialmente a la sostenibilidad\"),SUM(B129:D129),0),IF(AND('Base-datos'!$B$740=\"Sí\",'Base-datos'!$B$741=\"Sí\",'Base-datos'!$B$742=\"Sí\"),IF(AND(F129=\"La actividad sí contribuye sustancialmente a la sostenibilidad\",G129=\"La actividad sí contribuye sustancialmente a la sostenibilidad\",E129=\"La actividad sí contribuye sustancialmente a la sostenibilidad\"),SUM(B129:D129),0),IF(AND('Base-datos'!$B$740=\"\",'Base-datos'!$B$741=\"Sí\",'Base-datos'!$B$742=\"\"),IF(G129=\"La actividad sí contribuye sustancialmente a la sostenibilidad\",SUM(B129:D129),0),IF(AND('Base-datos'!$B$740=\"\",'Base-datos'!$B$741=\"\",'Base-datos'!$B$742=\"Sí\"),IF(E129=\"La actividad sí contribuye sustancialmente a la sostenibilidad\",SUM(B129:D129),0),IF(AND('Base-datos'!$B$740=\"\",'Base-datos'!$B$741=\"Sí\",'Base-datos'!$B$742=\"Sí\"),IF(AND(G129=\"La actividad sí contribuye sustancialmente a la sostenibilidad\",E129=\"La actividad sí contribuye sustancialmente a la sostenibilidad\"),SUM(B129:D129),0),IF(AND('Base-datos'!$B$740=\"Sí\",'Base-datos'!$B$741=\"\",'Base-datos'!$B$742=\"Sí\"),IF(AND(F129=\"La actividad sí contribuye sustancialmente a la sostenibilidad\",E129=\"La actividad sí contribuye sustancialmente a la sostenibilidad\"),SUM(B129:D129),0),\"Por definir\"))))))))","v":"Por definir"}]
[{"$f":"Construcción!$C32","v":"Seleccione"},{"$f":"IF(Construcción!$E32=Empresas!B$12,Construcción!$B32,\"\")","v":""},{"$f":"IF(Construcción!$E32=Empresas!C$12,Construcción!$B32,\"\")","v":""},{"$f":"IF(Construcción!$E32=Empresas!D$12,Construcción!$B32,\"\")","v":""},{"$f":"_xlfn.XLOOKUP(A130,'Base-datos'!$B$537:$B$546,'Base-datos'!$F$537:$F$546)","v":{"$error":"#N/A"}},{"$f":"_xlfn.XLOOKUP(A130,'Base-datos'!$B$537:$B$546,'Base-datos'!$C$537:$C$546)","v":{"$error":"#N/A"}},{"$f":"_xlfn.XLOOKUP(A130,'Base-datos'!$B$537:$B$546,'Base-datos'!$D$537:$D$546)","v":{"$error":"#N/A"}},null,null,{"$f":"IF(OR(H$119=\"La actividad no cumple con el total de los criterios de No Daño Significativo\",I$119=\"El sector no cumple con las salvaguardas mínimas\"),\"\",IF(AND('Base-datos'!$B$740=\"Sí\",'Base-datos'!$B$741=\"\",'Base-datos'!$B$742=\"\"),IF(F130=\"La actividad sí contribuye sustancialmente a la sostenibilidad\",SUM(B130:D130),0),IF(AND('Base-datos'!$B$740=\"Sí\",'Base-datos'!$B$741=\"Sí\",'Base-datos'!$B$742=\"\"),IF(AND(F130=\"La actividad sí contribuye sustancialmente a la sostenibilidad\",G130=\"La actividad sí contribuye sustancialmente a la sostenibilidad\"),SUM(B130:D130),0),IF(AND('Base-datos'!$B$740=\"Sí\",'Base-datos'!$B$741=\"Sí\",'Base-datos'!$B$742=\"Sí\"),IF(AND(F130=\"La actividad sí contribuye sustancialmente a la sostenibilidad\",G130=\"La actividad sí contribuye sustancialmente a la sostenibilidad\",E130=\"La actividad sí contribuye sustancialmente a la sostenibilidad\"),SUM(B130:D130),0),IF(AND('Base-datos'!$B$740=\"\",'Base-datos'!$B$741=\"Sí\",'Base-datos'!$B$742=\"\"),IF(G130=\"La actividad sí contribuye sustancialmente a la sostenibilidad\",SUM(B130:D130),0),IF(AND('Base-datos'!$B$740=\"\",'Base-datos'!$B$741=\"\",'Base-datos'!$B$742=\"Sí\"),IF(E130=\"La actividad sí contribuye sustancialmente a la sostenibilidad\",SUM(B130:D130),0),IF(AND('Base-datos'!$B$740=\"\",'Base-datos'!$B$741=\"Sí\",'Base-datos'!$B$742=\"Sí\"),IF(AND(G130=\"La actividad sí contribuye sustancialmente a la sostenibilidad\",E130=\"La actividad sí contribuye sustancialmente a la sostenibilidad\"),SUM(B130:D130),0),IF(AND('Base-datos'!$B$740=\"Sí\",'Base-datos'!$B$741=\"\",'Base-datos'!$B$742=\"Sí\"),IF(AND(F130=\"La actividad sí contribuye sustancialmente a la sostenibilidad\",E130=\"La actividad sí contribuye sustancialmente a la sostenibilidad\"),SUM(B130:D130),0),\"Por definir\"))))))))","v":"Por definir"}]
[{"$f":"Construcción!$C34","v":"Seleccione"},{"$f":"IF(Construcción!$E34=Empresas!B$12,Construcción!$B34,\"\")","v":""},{"$f":"IF(Construcción!$E34=Empresas!C$12,Construcción!$B34,\"\")","v":""},{"$f":"IF(Construcción!$E34=Empresas!D$12,Construcción!$B34,\"\")","v":""},{"$f":"_xlfn.XLOOKUP(A131,'Base-datos'!$B$537:$B$546,'Base-datos'!$F$537:$F$546)","v":{"$error":"#N/A"}},{"$f":"_xlfn.XLOOKUP(A131,'Base-datos'!$B$537:$B$546,'Base-datos'!$C$537:$C$546)","v":{"$error":"#N/A"}},{"$f":"_xlfn.XLOOKUP(A131,'Base-datos'!$B$537:$B$546,'Base-datos'!$D$537:$D$546)","v":{"$error":"#N/A"}},null,null,{"$f":"IF(OR(H$119=\"La actividad no cumple con el total de los criterios de No Daño Significativo\",I$119=\"El sector no cumple con las salvaguardas mínimas\"),\"\",IF(AND('Base-datos'!$B$740=\"Sí\",'Base-datos'!$B$741=\"\",'Base-datos'!$B$742=\"\"),IF(F131=\"La actividad sí contribuye sustancialmente a la sostenibilidad\",SUM(B131:D131),0),IF(AND('Base-datos'!$B$740=\"Sí\",'Base-datos'!$B$741=\"Sí\",'Base-datos'!$B$742=\"\"),IF(AND(F131=\"La actividad sí contribuye sustancialmente a la sostenibilidad\",G131=\"La actividad sí contribuye sustancialmente a la sostenibilidad\"),SUM(B131:D131),0),IF(AND('Base-datos'!$B$740=\"Sí\",'Base-datos'!$B$741=\"Sí\",'Base-datos'!$B$742=\"Sí\"),IF(AND(F131=\"La actividad sí contribuye sustancialmente a la sostenibilidad\",G131=\"La actividad sí contribuye sustancialmente a la sostenibilidad\",E131=\"La actividad sí contribuye sustancialmente a la sostenibilidad\"),SUM(B131:D131),0),IF(AND('Base-datos'!$B$740=\"\",'Base-datos'!$B$741=\"Sí\",'Base-datos'!$B$742=\"\"),IF(G131=\"La actividad sí contribuye sustancialmente a la sostenibilidad\",SUM(B131:D131),0),IF(AND('Base-datos'!$B$740=\"\",'Base-datos'!$B$741=\"\",'Base-datos'!$B$742=\"Sí\"),IF(E131=\"La actividad sí contribuye sustancialmente a la sostenibilidad\",SUM(B131:D131),0),IF(AND('Base-datos'!$B$740=\"\",'Base-datos'!$B$741=\"Sí\",'Base-datos'!$B$742=\"Sí\"),IF(AND(G131=\"La actividad sí contribuye sustancialmente a la sostenibilidad\",E131=\"La actividad sí contribuye sustancialmente a la sostenibilidad\"),SUM(B131:D131),0),IF(AND('Base-datos'!$B$740=\"Sí\",'Base-datos'!$B$741=\"\",'Base-datos'!$B$742=\"Sí\"),IF(AND(F131=\"La actividad sí contribuye sustancialmente a la sostenibilidad\",E131=\"La actividad sí contribuye sustancialmente a la sostenibilidad\"),SUM(B131:D131),0),\"Por definir\"))))))))","v":"Por definir"}]
[{"$f":"Construcción!$C36","v":"Seleccione"},{"$f":"IF(Construcción!$E36=Empresas!B$12,Construcción!$B36,\"\")","v":""},{"$f":"IF(Construcción!$E36=Empresas!C$12,Construcción!$B36,\"\")","v":""},{"$f":"IF(Construcción!$E36=Empresas!D$12,Construcción!$B36,\"\")","v":""},{"$f":"_xlfn.XLOOKUP(A132,'Base-datos'!$B$537:$B$546,'Base-datos'!$F$537:$F$546)","v":{"$error":"#N/A"}},{"$f":"_xlfn.XLOOKUP(A132,'Base-datos'!$B$537:$B$546,'Base-datos'!$C$537:$C$546)","v":{"$error":"#N/A"}},{"$f":"_xlfn.XLOOKUP(A132,'Base-datos'!$B$537:$B$546,'Base-datos'!$D$537:$D$546)","v":{"$error":"#N/A"}},null,null,{"$f":"IF(OR(H$119=\"La actividad no cumple con el total de los criterios de No Daño Significativo\",I$119=\"El sector no cumple con las salvaguardas mínimas\"),\"\",IF(AND('Base-datos'!$B$740=\"Sí\",'Base-datos'!$B$741=\"\",'Base-datos'!$B$742=\"\"),IF(F132=\"La actividad sí contribuye sustancialmente a la sostenibilidad\",SUM(B132:D132),0),IF(AND('Base-datos'!$B$740=\"Sí\",'Base-datos'!$B$741=\"Sí\",'Base-datos'!$B$742=\"\"),IF(AND(F132=\"La actividad sí contribuye sustancialmente a la sostenibilidad\",G132=\"La actividad sí contribuye sustancialmente a la sostenibilidad\"),SUM(B132:D132),0),IF(AND('Base-datos'!$B$740=\"Sí\",'Base-datos'!$B$741=\"Sí\",'Base-datos'!$B$742=\"Sí\"),IF(AND(F132=\"La actividad sí contribuye sustancialmente a la sostenibilidad\",G132=\"La actividad sí contribuye sustancialmente a la sostenibilidad\",E132=\"La actividad sí contribuye sustancialmente a la sostenibilidad\"),SUM(B132:D132),0),IF(AND('Base-datos'!$B$740=\"\",'Base-datos'!$B$741=\"Sí\",'Base-datos'!$B$742=\"\"),IF(G132=\"La actividad sí contribuye sustancialmente a la sostenibilidad\",SUM(B132:D132),0),IF(AND('Base-datos'!$B$740=\"\",'Base-datos'!$B$741=\"\",'Base-datos'!$B$742=\"Sí\"),IF(E132=\"La actividad sí contribuye sustancialmente a la sostenibilidad\",SUM(B132:D132),0),IF(AND('Base-datos'!$B$740=\"\",'Base-datos'!$B$741=\"Sí\",'Base-datos'!$B$742=\"Sí\"),IF(AND(G132=\"La actividad sí contribuye sustancialmente a la sostenibilidad\",E132=\"La actividad sí contribuye sustancialmente a la sostenibilidad\"),SUM(B132:D132),0),IF(AND('Base-datos'!$B$740=\"Sí\",'Base-datos'!$B$741=\"\",'Base-datos'!$B$742=\"Sí\"),IF(AND(F132=\"La actividad sí contribuye sustancialmente a la sostenibilidad\",E132=\"La actividad sí contribuye sustancialmente a la sostenibilidad\"),SUM(B132:D132),0),\"Por definir\"))))))))","v":"Por definir"}]
[{"$f":"Construcción!$C38","v":"Seleccione"},{"$f":"IF(Construcción!$E38=Empresas!B$12,Construcción!$B38,\"\")","v":""},{"$f":"IF(Construcción!$E38=Empresas!C$12,Construcción!$B38,\"\")","v":""},{"$f":"IF(Construcción!$E38=Empresas!D$12,Construcción!$B38,\"\")","v":""},{"$f":"_xlfn.XLOOKUP(A133,'Base-datos'!$B$537:$B$546,'Base-datos'!$F$537:$F$546)","v":{"$error":"#N/A"}},{"$f":"_xlfn.XLOOKUP(A133,'Base-datos'!$B$537:$B$546,'Base-datos'!$C$537:$C$546)","v":{"$error":"#N/A"}},{"$f":"_xlfn.XLOOKUP(A133,'Base-datos'!$B$537:$B$546,'Base-datos'!$D$537:$D$546)","v":{"$error":"#N/A"}},null,null,{"$f":"IF(OR(H$119=\"La actividad no cumple con el total de los criterios de No Daño Significativo\",I$119=\"El sector no cumple con las salvaguardas mínimas\"),\"\",IF(AND('Base-datos'!$B$740=\"Sí\",'Base-datos'!$B$741=\"\",'Base-datos'!$B$742=\"\"),IF(F133=\"La actividad sí contribuye sustancialmente a la sostenibilidad\",SUM(B133:D133),0),IF(AND('Base-datos'!$B$740=\"Sí\",'Base-datos'!$B$741=\"Sí\",'Base-datos'!$B$742=\"\"),IF(AND(F133=\"La actividad sí contribuye sustancialmente a la sostenibilidad\",G133=\"La actividad sí contribuye sustancialmente a la sostenibilidad\"),SUM(B133:D133),0),IF(AND('Base-datos'!$B$740=\"Sí\",'Base-datos'!$B$741=\"Sí\",'Base-datos'!$B$742=\"Sí\"),IF(AND(F133=\"La actividad sí contribuye sustancialmente a la sostenibilidad\",G133=\"La actividad sí contribuye sustancialmente a la sostenibilidad\",E133=\"La actividad sí contribuye sustancialmente a la sostenibilidad\"),SUM(B133:D133),0),IF(AND('Base-datos'!$B$740=\"\",'Base-datos'!$B$741=\"Sí\",'Base-datos'!$B$742=\"\"),IF(G133=\"La actividad sí contribuye sustancialmente a la sostenibilidad\",SUM(B133:D133),0),IF(AND('Base-datos'!$B$740=\"\",'Base-datos'!$B$741=\"\",'Base-datos'!$B$742=\"Sí\"),IF(E133=\"La actividad sí contribuye sustancialmente a la sostenibilidad\",SUM(B133:D133),0),IF(AND('Base-datos'!$B$740=\"\",'Base-datos'!$B$741=\"Sí\",'Base-datos'!$B$742=\"Sí\"),IF(AND(G133=\"La actividad sí contribuye sustancialmente a la sostenibilidad\",E133=\"La actividad sí contribuye sustancialmente a la sostenibilidad\"),SUM(B133:D133),0),IF(AND('Base-datos'!$B$740=\"Sí\",'Base-datos'!$B$741=\"\",'Base-datos'!$B$742=\"Sí\"),IF(AND(F133=\"La actividad sí contribuye sustancialmente a la sostenibilidad\",E133=\"La actividad sí contribuye sustancialmente a la sostenibilidad\"),SUM(B133:D133),0),\"Por definir\"))))))))","v":"Por definir"}]
[{"$f":"Construcción!$C40","v":"Seleccione"},{"$f":"IF(Construcción!$E40=Empresas!B$12,Construcción!$B40,\"\")","v":""},{"$f":"IF(Construcción!$E40=Empresas!C$12,Construcción!$B40,\"\")","v":""},{"$f":"IF(Construcción!$E40=Empresas!D$12,Construcción!$B40,\"\")","v":""},{"$f":"_xlfn.XLOOKUP(A134,'Base-datos'!$B$537:$B$546,'Base-datos'!$F$537:$F$546)","v":{"$error":"#N/A"}},{"$f":"_xlfn.XLOOKUP(A134,'Base-datos'!$B$537:$B$546,'Base-datos'!$C$537:$C$546)","v":{"$error":"#N/A"}},{"$f":"_xlfn.XLOOKUP(A134,'Base-datos'!$B$537:$B$546,'Base-datos'!$D$537:$D$546)","v":{"$error":"#N/A"}},null,null,{"$f":"IF(OR(H$119=\"La actividad no cumple con el total de los criterios de No Daño Significativo\",I$119=\"El sector no cumple con las salvaguardas mínimas\"),\"\",IF(AND('Base-datos'!$B$740=\"Sí\",'Base-datos'!$B$741=\"\",'Base-datos'!$B$742=\"\"),IF(F134=\"La actividad sí contribuye sustancialmente a la sostenibilidad\",SUM(B134:D134),0),IF(AND('Base-datos'!$B$740=\"Sí\",'Base-datos'!$B$741=\"Sí\",'Base-datos'!$B$742=\"\"),IF(AND(F134=\"La actividad sí contribuye sustancialmente a la sostenibilidad\",G134=\"La actividad sí contribuye sustancialmente a la sostenibilidad\"),SUM(B134:D134),0),IF(AND('Base-datos'!$B$740=\"Sí\",'Base-datos'!$B$741=\"Sí\",'Base-datos'!$B$742=\"Sí\"),IF(AND(F134=\"La actividad sí contribuye sustancialmente a la sostenibilidad\",G134=\"La actividad sí contribuye sustancialmente a la sostenibilidad\",E134=\"La actividad sí contribuye sustancialmente a la sostenibilidad\"),SUM(B134:D134),0),IF(AND('Base-datos'!$B$740=\"\",'Base-datos'!$B$741=\"Sí\",'Base-datos'!$B$742=\"\"),IF(G134=\"La actividad sí contribuye sustancialmente a la sostenibilidad\",SUM(B134:D134),0),IF(AND('Base-datos'!$B$740=\"\",'Base-datos'!$B$741=\"\",'Base-datos'!$B$742=\"Sí\"),IF(E134=\"La actividad sí contribuye sustancialmente a la sostenibilidad\",SUM(B134:D134),0),IF(AND('Base-datos'!$B$740=\"\",'Base-datos'!$B$741=\"Sí\",'Base-datos'!$B$742=\"Sí\"),IF(AND(G134=\"La actividad sí contribuye sustancialmente a la sostenibilidad\",E134=\"La actividad sí contribuye sustancialmente a la sostenibilidad\"),SUM(B134:D134),0),IF(AND('Base-datos'!$B$740=\"Sí\",'Base-datos'!$B$741=\"\",'Base-datos'!$B$742=\"Sí\"),IF(AND(F134=\"La actividad sí contribuye sustancialmente a la sostenibilidad\",E134=\"La actividad sí contribuye sustancialmente a la sostenibilidad\"),SUM(B134:D134),0),\"Por definir\"))))))))","v":"Por definir"}]
[{"$f":"Construcción!$C42","v":"Seleccione"},{"$f":"IF(Construcción!$E42=Empresas!B$12,Construcción!$B42,\"\")","v":""},{"$f":"IF(Construcción!$E42=Empresas!C$12,Construcción!$B42,\"\")","v":""},{"$f":"IF(Construcción!$E42=Empresas!D$12,Construcción!$B42,\"\")","v":""},{"$f":"_xlfn.XLOOKUP(A135,'Base-datos'!$B$537:$B$546,'Base-datos'!$F$537:$F$546)","v":{"$error":"#N/A"}},{"$f":"_xlfn.XLOOKUP(A135,'Base-datos'!$B$537:$B$546,'Base-datos'!$C$537:$C$546)","v":{"$error":"#N/A"}},{"$f":"_xlfn.XLOOKUP(A135,'Base-datos'!$B$537:$B$546,'Base-datos'!$D$537:$D$546)","v":{"$error":"#N/A"}},null,null,{"$f":"IF(OR(H$119=\"La actividad no cumple con el total de los criterios de No Daño Significativo\",I$119=\"El sector no cumple con las salvaguardas mínimas\"),\"\",IF(AND('Base-datos'!$B$740=\"Sí\",'Base-datos'!$B$741=\"\",'Base-datos'!$B$742=\"\"),IF(F135=\"La actividad sí contribuye sustancialmente a la sostenibilidad\",SUM(B135:D135),0),IF(AND('Base-datos'!$B$740=\"Sí\",'Base-datos'!$B$741=\"Sí\",'Base-datos'!$B$742=\"\"),IF(AND(F135=\"La actividad sí contribuye sustancialmente a la sostenibilidad\",G135=\"La actividad sí contribuye sustancialmente a la sostenibilidad\"),SUM(B135:D135),0),IF(AND('Base-datos'!$B$740=\"Sí\",'Base-datos'!$B$741=\"Sí\",'Base-datos'!$B$742=\"Sí\"),IF(AND(F135=\"La actividad sí contribuye sustancialmente a la sostenibilidad\",G135=\"La actividad sí contribuye sustancialmente a la sostenibilidad\",E135=\"La actividad sí contribuye sustancialmente a la sostenibilidad\"),SUM(B135:D135),0),IF(AND('Base-datos'!$B$740=\"\",'Base-datos'!$B$741=\"Sí\",'Base-datos'!$B$742=\"\"),IF(G135=\"La actividad sí contribuye sustancialmente a la sostenibilidad\",SUM(B135:D135),0),IF(AND('Base-datos'!$B$740=\"\",'Base-datos'!$B$741=\"\",'Base-datos'!$B$742=\"Sí\"),IF(E135=\"La actividad sí contribuye sustancialmente a la sostenibilidad\",SUM(B135:D135),0),IF(AND('Base-datos'!$B$740=\"\",'Base-datos'!$B$741=\"Sí\",'Base-datos'!$B$742=\"Sí\"),IF(AND(G135=\"La actividad sí contribuye sustancialmente a la sostenibilidad\",E135=\"La actividad sí contribuye sustancialmente a la sostenibilidad\"),SUM(B135:D135),0),IF(AND('Base-datos'!$B$740=\"Sí\",'Base-datos'!$B$741=\"\",'Base-datos'!$B$742=\"Sí\"),IF(AND(F135=\"La actividad sí contribuye sustancialmente a la sostenibilidad\",E135=\"La actividad sí contribuye sustancialmente a la sostenibilidad\"),SUM(B135:D135),0),\"Por definir\"))))))))","v":"Por definir"}]
[{"$f":"Construcción!$C44","v":"Seleccione"},{"$f":"IF(Construcción!$E44=Empresas!B$12,Construcción!$B44,\"\")","v":""},{"$f":"IF(Construcción!$E44=Empresas!C$12,Construcción!$B44,\"\")","v":""},{"$f":"IF(Construcción!$E44=Empresas!D$12,Construcción!$B44,\"\")","v":""},{"$f":"_xlfn.XLOOKUP(A136,'Base-datos'!$B$537:$B$546,'Base-datos'!$F$537:$F$546)","v":{"$error":"#N/A"}},{"$f":"_xlfn.XLOOKUP(A136,'Base-datos'!$B$537:$B$546,'Base-datos'!$C$537:$C$546)","v":{"$error":"#N/A"}},{"$f":"_xlfn.XLOOKUP(A136,'Base-datos'!$B$537:$B$546,'Base-datos'!$D$537:$D$546)","v":{"$error":"#N/A"}},null,null,{"$f":"IF(OR(H$119=\"La actividad no cumple con el total de los criterios de No Daño Significativo\",I$119=\"El sector no cumple con las salvaguardas mínimas\"),\"\",IF(AND('Base-datos'!$B$740=\"Sí\",'Base-datos'!$B$741=\"\",'Base-datos'!$B$742=\"\"),IF(F136=\"La actividad sí contribuye sustancialmente a la sostenibilidad\",SUM(B136:D136),0),IF(AND('Base-datos'!$B$740=\"Sí\",'Base-datos'!$B$741=\"Sí\",'Base-datos'!$B$742=\"\"),IF(AND(F136=\"La actividad sí contribuye sustancialmente a la sostenibilidad\",G136=\"La actividad sí contribuye sustancialmente a la sostenibilidad\"),SUM(B136:D136),0),IF(AND('Base-datos'!$B$740=\"Sí\",'Base-datos'!$B$741=\"Sí\",'Base-datos'!$B$742=\"Sí\"),IF(AND(F136=\"La actividad sí contribuye sustancialmente a la sostenibilidad\",G136=\"La actividad sí contribuye sustancialmente a la sostenibilidad\",E136=\"La actividad sí contribuye sustancialmente a la sostenibilidad\"),SUM(B136:D136),0),IF(AND('Base-datos'!$B$740=\"\",'Base-datos'!$B$741=\"Sí\",'Base-datos'!$B$742=\"\"),IF(G136=\"La actividad sí contribuye sustancialmente a la sostenibilidad\",SUM(B136:D136),0),IF(AND('Base-datos'!$B$740=\"\",'Base-datos'!$B$741=\"\",'Base-datos'!$B$742=\"Sí\"),IF(E136=\"La actividad sí contribuye sustancialmente a la sostenibilidad\",SUM(B136:D136),0),IF(AND('Base-datos'!$B$740=\"\",'Base-datos'!$B$741=\"Sí\",'Base-datos'!$B$742=\"Sí\"),IF(AND(G136=\"La actividad sí contribuye sustancialmente a la sostenibilidad\",E136=\"La actividad sí contribuye sustancialmente a la sostenibilidad\"),SUM(B136:D136),0),IF(AND('Base-datos'!$B$740=\"Sí\",'Base-datos'!$B$741=\"\",'Base-datos'!$B$742=\"Sí\"),IF(AND(F136=\"La actividad sí contribuye sustancialmente a la sostenibilidad\",E136=\"La actividad sí contribuye sustancialmente a la sostenibilidad\"),SUM(B136:D136),0),\"Por definir\"))))))))","v":"Por definir"}]
[{"$f":"Construcción!$C46","v":"Seleccione"},{"$f":"IF(Construcción!$E46=Empresas!B$12,Construcción!$B46,\"\")","v":""},{"$f":"IF(Construcción!$E46=Empresas!C$12,Construcción!$B46,\"\")","v":""},{"$f":"IF(Construcción!$E46=Empresas!D$12,Construcción!$B46,\"\")","v":""},{"$f":"_xlfn.XLOOKUP(A137,'Base-datos'!$B$537:$B$546,'Base-datos'!$F$537:$F$546)","v":{"$error":"#N/A"}},{"$f":"_xlfn.XLOOKUP(A137,'Base-datos'!$B$537:$B$546,'Base-datos'!$C$537:$C$546)","v":{"$error":"#N/A"}},{"$f":"_xlfn.XLOOKUP(A137,'Base-datos'!$B$537:$B$546,'Base-datos'!$D$537:$D$546)","v":{"$error":"#N/A"}},null,null,{"$f":"IF(OR(H$119=\"La actividad no cumple con el total de los criterios de No Daño Significativo\",I$119=\"El sector no cumple con las salvaguardas mínimas\"),\"\",IF(AND('Base-datos'!$B$740=\"Sí\",'Base-datos'!$B$741=\"\",'Base-datos'!$B$742=\"\"),IF(F137=\"La actividad sí contribuye sustancialmente a la sostenibilidad\",SUM(B137:D137),0),IF(AND('Base-datos'!$B$740=\"Sí\",'Base-datos'!$B$741=\"Sí\",'Base-datos'!$B$742=\"\"),IF(AND(F137=\"La actividad sí contribuye sustancialmente a la sostenibilidad\",G137=\"La actividad sí contribuye sustancialmente a la sostenibilidad\"),SUM(B137:D137),0),IF(AND('Base-datos'!$B$740=\"Sí\",'Base-datos'!$B$741=\"Sí\",'Base-datos'!$B$742=\"Sí\"),IF(AND(F137=\"La actividad sí contribuye sustancialmente a la sostenibilidad\",G137=\"La actividad sí contribuye sustancialmente a la sostenibilidad\",E137=\"La actividad sí contribuye sustancialmente a la sostenibilidad\"),SUM(B137:D137),0),IF(AND('Base-datos'!$B$740=\"\",'Base-datos'!$B$741=\"Sí\",'Base-datos'!$B$742=\"\"),IF(G137=\"La actividad sí contribuye sustancialmente a la sostenibilidad\",SUM(B137:D137),0),IF(AND('Base-datos'!$B$740=\"\",'Base-datos'!$B$741=\"\",'Base-datos'!$B$742=\"Sí\"),IF(E137=\"La actividad sí contribuye sustancialmente a la sostenibilidad\",SUM(B137:D137),0),IF(AND('Base-datos'!$B$740=\"\",'Base-datos'!$B$741=\"Sí\",'Base-datos'!$B$742=\"Sí\"),IF(AND(G137=\"La actividad sí contribuye sustancialmente a la sostenibilidad\",E137=\"La actividad sí contribuye sustancialmente a la sostenibilidad\"),SUM(B137:D137),0),IF(AND('Base-datos'!$B$740=\"Sí\",'Base-datos'!$B$741=\"\",'Base-datos'!$B$742=\"Sí\"),IF(AND(F137=\"La actividad sí contribuye sustancialmente a la sostenibilidad\",E137=\"La actividad sí contribuye sustancialmente a la sostenibilidad\"),SUM(B137:D137),0),\"Por definir\"))))))))","v":"Por definir"}]
[{"$f":"Construcción!$C48","v":"Seleccione"},{"$f":"IF(Construcción!$E48=Empresas!B$12,Construcción!$B48,\"\")","v":""},{"$f":"IF(Construcción!$E48=Empresas!C$12,Construcción!$B48,\"\")","v":""},{"$f":"IF(Construcción!$E48=Empresas!D$12,Construcción!$B48,\"\")","v":""},{"$f":"_xlfn.XLOOKUP(A138,'Base-datos'!$B$537:$B$546,'Base-datos'!$F$537:$F$546)","v":{"$error":"#N/A"}},{"$f":"_xlfn.XLOOKUP(A138,'Base-datos'!$B$537:$B$546,'Base-datos'!$C$537:$C$546)","v":{"$error":"#N/A"}},{"$f":"_xlfn.XLOOKUP(A138,'Base-datos'!$B$537:$B$546,'Base-datos'!$D$537:$D$546)","v":{"$error":"#N/A"}},null,null,{"$f":"IF(OR(H$119=\"La actividad no cumple con el total de los criterios de No Daño Significativo\",I$119=\"El sector no cumple con las salvaguardas mínimas\"),\"\",IF(AND('Base-datos'!$B$740=\"Sí\",'Base-datos'!$B$741=\"\",'Base-datos'!$B$742=\"\"),IF(F138=\"La actividad sí contribuye sustancialmente a la sostenibilidad\",SUM(B138:D138),0),IF(AND('Base-datos'!$B$740=\"Sí\",'Base-datos'!$B$741=\"Sí\",'Base-datos'!$B$742=\"\"),IF(AND(F138=\"La actividad sí contribuye sustancialmente a la sostenibilidad\",G138=\"La actividad sí contribuye sustancialmente a la sostenibilidad\"),SUM(B138:D138),0),IF(AND('Base-datos'!$B$740=\"Sí\",'Base-datos'!$B$741=\"Sí\",'Base-datos'!$B$742=\"Sí\"),IF(AND(F138=\"La actividad sí contribuye sustancialmente a la sostenibilidad\",G138=\"La actividad sí contribuye sustancialmente a la sostenibilidad\",E138=\"La actividad sí contribuye sustancialmente a la sostenibilidad\"),SUM(B138:D138),0),IF(AND('Base-datos'!$B$740=\"\",'Base-datos'!$B$741=\"Sí\",'Base-datos'!$B$742=\"\"),IF(G138=\"La actividad sí contribuye sustancialmente a la sostenibilidad\",SUM(B138:D138),0),IF(AND('Base-datos'!$B$740=\"\",'Base-datos'!$B$741=\"\",'Base-datos'!$B$742=\"Sí\"),IF(E138=\"La actividad sí contribuye sustancialmente a la sostenibilidad\",SUM(B138:D138),0),IF(AND('Base-datos'!$B$740=\"\",'Base-datos'!$B$741=\"Sí\",'Base-datos'!$B$742=\"Sí\"),IF(AND(G138=\"La actividad sí contribuye sustancialmente a la sostenibilidad\",E138=\"La actividad sí contribuye sustancialmente a la sostenibilidad\"),SUM(B138:D138),0),IF(AND('Base-datos'!$B$740=\"Sí\",'Base-datos'!$B$741=\"\",'Base-datos'!$B$742=\"Sí\"),IF(AND(F138=\"La actividad sí contribuye sustancialmente a la sostenibilidad\",E138=\"La actividad sí contribuye sustancialmente a la sostenibilidad\"),SUM(B138:D138),0),\"Por definir\"))))))))","v":"Por definir"}]
["Manufactura",null,null,null,null,null,null,null,null,{"$f":"SUM(IF(FREQUENCY(MATCH(A140:A159, A140:A159, 0), MATCH(A140:A159, A140:A159, 0)) > 0, IF(NOT(ISERROR(J140:J159)), J140:J159, 0)))","v":0}]
[{"$f":"Manufactura!$C10","v":"Seleccione"},{"$f":"IF(Manufactura!$E10=Empresas!B$12,Manufactura!$B10,\"\")","v":""},{"$f":"IF(Manufactura!$E10=Empresas!C$12,Manufactura!$B10,\"\")","v":""},{"$f":"IF(Manufactura!$E10=Empresas!D$12,Manufactura!$B10,\"\")","v":""},{"$f":"_xlfn.XLOOKUP(A140,'Base-datos'!$B$547:$B$552,'Base-datos'!$F$547:$F$552)","v":{"$error":"#N/A"}},{"$f":"_xlfn.XLOOKUP(A140,'Base-datos'!$B$547:$B$552,'Base-datos'!$C$547:$C$552)","v":{"$error":"#N/A"}},{"$f":"_xlfn.XLOOKUP(A140,'Base-datos'!$B$547:$B$552,'Base-datos'!$D$547:$D$552)","v":{"$error":"#N/A"}},{"$f":"IF(COUNTIF('Manufactura-NDS'!G9:G85,\"No\")>0,\"La actividad no cumple con el total de los criterios de NDS\",\"La actividad cumple con los criterios de No Daño Significativo\")","v":"La actividad cumple con los criterios de No Daño Significativo"},{"$f":"IF(OR('Salvaguardas mínimas'!$G$10=\"Seleccione\",'Salvaguardas mínimas'!$G$13=\"Seleccione\",'Salvaguardas mínimas'!$G$16=\"Seleccione\",'Salvaguardas mínimas'!$G$7=\"Seleccione\"),\"No se han respondido todas las preguntas\",IF(OR('Salvaguardas mínimas'!$G$10=\"No\",'Salvaguardas mínimas'!$G$13=\"No\",'Salvaguardas mínimas'!$G$16=\"No\",'Salvaguardas mínimas'!$G$7=\"No\"),\"El sector no cumple con las salvaguardas mínimas\",\"La actividad sí cumple con las salvaguardas mínimas\"))","v":"No se han respondido todas las preguntas"},{"$f":"IF(OR(H$140=\"La actividad no cumple con el total de los criterios de No Daño Significativo\",I$140=\"El sector no cumple con las salvaguardas mínimas\"),\"\",IF(AND('Base-datos'!$B$745=\"Sí\",'Base-datos'!$B$746=\"\",'Base-datos'!$B$747=\"\"),IF(F140=\"La actividad sí contribuye sustancialmente a la sostenibilidad\",SUM(B140:D140),0),IF(AND('Base-datos'!$B$745=\"Sí\",'Base-datos'!$B$746=\"Sí\",'Base-datos'!$B$747=\"\"),IF(AND(F140=\"La actividad sí contribuye sustancialmente a la sostenibilidad\",G140=\"La actividad sí contribuye sustancialmente a la sostenibilidad\"),SUM(B140:D140),0),IF(AND('Base-datos'!$B$745=\"Sí\",'Base-datos'!$B$746=\"Sí\",'Base-datos'!$B$747=\"Sí\"),IF(AND(F140=\"La actividad sí contribuye sustancialmente a la sostenibilidad\",G140=\"La actividad sí contribuye sustancialmente a la sostenibilidad\",E140=\"La actividad sí contribuye sustancialmente a la sostenibilidad\"),SUM(B140:D140),0),IF(AND('Base-datos'!$B$745=\"\",'Base-datos'!$B$746=\"Sí\",'Base-datos'!$B$747=\"\"),IF(G140=\"La actividad sí contribuye sustancialmente a la sostenibilidad\",SUM(B140:D140),0),IF(AND('Base-datos'!$B$745=\"\",'Base-datos'!$B$746=\"\",'Base-datos'!$B$747=\"Sí\"),IF(E140=\"La actividad sí contribuye sustancialmente a la sostenibilidad\",SUM(B140:D140),0),IF(AND('Base-datos'!$B$745=\"\",'Base-datos'!$B$746=\"Sí\",'Base-datos'!$B$747=\"Sí\"),IF(AND(G140=\"La actividad sí contribuye sustancialmente a la sostenibilidad\",E140=\"La actividad sí contribuye sustancialmente a la sostenibilidad\"),SUM(B140:D140),0),IF(AND('Base-datos'!$B$745=\"Sí\",'Base-datos'!$B$746=\"\",'Base-datos'!$B$747=\"Sí\"),IF(AND(F140=\"La actividad sí contribuye sustancialmente a la sostenibilidad\",E140=\"La actividad sí contribuye sustancialmente a la sostenibilidad\"),SUM(B140:D140),0),\"Por definir\"))))))))","v":"Por definir"}]
[{"$f":"Manufactura!$C12","v":"Seleccione"},{"$f":"IF(Manufactura!$E12=Empresas!B$12,Manufactura!$B12,\"\")","v":""},{"$f":"IF(Manufactura!$E12=Empresas!C$12,Manufactura!$B12,\"\")","v":""},{"$f":"IF(Manufactura!$E12=Empresas!D$12,Manufactura!$B12,\"\")","v":""},{"$f":"_xlfn.XLOOKUP(A141,'Base-datos'!$B$547:$B$552,'Base-datos'!$F$547:$F$552)","v":{"$error":"#N/A"}},{"$f":"_xlfn.XLOOKUP(A141,'Base-datos'!$B$547:$B$552,'Base-datos'!$C$547:$C$552)","v":{"$error":"#N/A"}},{"$f":"_xlfn.XLOOKUP(A141,'Base-datos'!$B$547:$B$552,'Base-datos'!$D$547:$D$552)","v":{"$error":"#N/A"}},null,null,{"$f":"IF(OR(H$140=\"La actividad no cumple con el total de los criterios de No Daño Significativo\",I$140=\"El sector no cumple con las salvaguardas mínimas\"),\"\",IF(AND('Base-datos'!$B$745=\"Sí\",'Base-datos'!$B$746=\"\",'Base-datos'!$B$747=\"\"),IF(F141=\"La actividad sí contribuye sustancialmente a la sostenibilidad\",SUM(B141:D141),0),IF(AND('Base-datos'!$B$745=\"Sí\",'Base-datos'!$B$746=\"Sí\",'Base-datos'!$B$747=\"\"),IF(AND(F141=\"La actividad sí contribuye sustancialmente a la sostenibilidad\",G141=\"La actividad sí contribuye sustancialmente a la sostenibilidad\"),SUM(B141:D141),0),IF(AND('Base-datos'!$B$745=\"Sí\",'Base-datos'!$B$746=\"Sí\",'Base-datos'!$B$747=\"Sí\"),IF(AND(F141=\"La actividad sí contribuye sustancialmente a la sostenibilidad\",G141=\"La actividad sí contribuye sustancialmente a la sostenibilidad\",E141=\"La actividad sí contribuye sustancialmente a la sostenibilidad\"),SUM(B141:D141),0),IF(AND('Base-datos'!$B$745=\"\",'Base-datos'!$B$746=\"Sí\",'Base-datos'!$B$747=\"\"),IF(G141=\"La actividad sí contribuye sustancialmente a la sostenibilidad\",SUM(B141:D141),0),IF(AND('Base-datos'!$B$745=\"\",'Base-datos'!$B$746=\"\",'Base-datos'!$B$747=\"Sí\"),IF(E141=\"La actividad sí contribuye sustancialmente a la sostenibilidad\",SUM(B141:D141),0),IF(AND('Base-datos'!$B$745=\"\",'Base-datos'!$B$746=\"Sí\",'Base-datos'!$B$747=\"Sí\"),IF(AND(G141=\"La actividad sí contribuye sustancialmente a la sostenibilidad\",E141=\"La actividad sí contribuye sustancialmente a la sostenibilidad\"),SUM(B141:D141),0),IF(AND('Base-datos'!$B$745=\"Sí\",'Base-datos'!$B$746=\"\",'Base-datos'!$B$747=\"Sí\"),IF(AND(F141=\"La actividad sí contribuye sustancialmente a la sostenibilidad\",E141=\"La actividad sí contribuye sustancialmente a la sostenibilidad\"),SUM(B141:D141),0),\"Por definir\"))))))))","v":"Por definir"}]
[{"$f":"Manufactura!$C14","v":"Seleccione"},{"$f":"IF(Manufactura!$E14=Empresas!B$12,Manufactura!$B14,\"\")","v":""},{"$f":"IF(Manufactura!$E14=Empresas!C$12,Manufactura!$B14,\"\")","v":""},{"$f":"IF(Manufactura!$E14=Empresas!D$12,Manufactura!$B14,\"\")","v":""},{"$f":"_xlfn.XLOOKUP(A142,'Base-datos'!$B$547:$B$552,'Base-datos'!$F$547:$F$552)","v":{"$error":"#N/A"}},{"$f":"_xlfn.XLOOKUP(A142,'Base-datos'!$B$547:$B$552,'Base-datos'!$C$547:$C$552)","v":{"$error":"#N/A"}},{"$f":"_xlfn.XLOOKUP(A142,'Base-datos'!$B$547:$B$552,'Base-datos'!$D$547:$D$552)","v":{"$error":"#N/A"}},null,null,{"$f":"IF(OR(H$140=\"La actividad no cumple con el total de los criterios de No Daño Significativo\",I$140=\"El sector no cumple con las salvaguardas mínimas\"),\"\",IF(AND('Base-datos'!$B$745=\"Sí\",'Base-datos'!$B$746=\"\",'Base-datos'!$B$747=\"\"),IF(F142=\"La actividad sí contribuye sustancialmente a la sostenibilidad\",SUM(B142:D142),0),IF(AND('Base-datos'!$B$745=\"Sí\",'Base-datos'!$B$746=\"Sí\",'Base-datos'!$B$747=\"\"),IF(AND(F142=\"La actividad sí contribuye sustancialmente a la sostenibilidad\",G142=\"La actividad sí contribuye sustancialmente a la sostenibilidad\"),SUM(B142:D142),0),IF(AND('Base-datos'!$B$745=\"Sí\",'Base-datos'!$B$746=\"Sí\",'Base-datos'!$B$747=\"Sí\"),IF(AND(F142=\"La actividad sí contribuye sustancialmente a la sostenibilidad\",G142=\"La actividad sí contribuye sustancialmente a la sostenibilidad\",E142=\"La actividad sí contribuye sustancialmente a la sostenibilidad\"),SUM(B142:D142),0),IF(AND('Base-datos'!$B$745=\"\",'Base-datos'!$B$746=\"Sí\",'Base-datos'!$B$747=\"\"),IF(G142=\"La actividad sí contribuye sustancialmente a la sostenibilidad\",SUM(B142:D142),0),IF(AND('Base-datos'!$B$745=\"\",'Base-datos'!$B$746=\"\",'Base-datos'!$B$747=\"Sí\"),IF(E142=\"La actividad sí contribuye sustancialmente a la sostenibilidad\",SUM(B142:D142),0),IF(AND('Base-datos'!$B$745=\"\",'Base-datos'!$B$746=\"Sí\",'Base-datos'!$B$747=\"Sí\"),IF(AND(G142=\"La actividad sí contribuye sustancialmente a la sostenibilidad\",E142=\"La actividad sí contribuye sustancialmente a la sostenibilidad\"),SUM(B142:D142),0),IF(AND('Base-datos'!$B$745=\"Sí\",'Base-datos'!$B$746=\"\",'Base-datos'!$B$747=\"Sí\"),IF(AND(F142=\"La actividad sí contribuye sustancialmente a la sostenibilidad\",E142=\"La actividad sí contribuye sustancialmente a la sostenibilidad\"),SUM(B142:D142),0),\"Por definir\"))))))))","v":"Por definir"}]
[{"$f":"Manufactura!$C16","v":"Seleccione"},{"$f":"IF(Manufactura!$E16=Empresas!B$12,Manufactura!$B16,\"\")","v":""},{"$f":"IF(Manufactura!$E16=Empresas!C$12,Manufactura!$B16,\"\")","v":""},{"$f":"IF(Manufactura!$E16=Empresas!D$12,Manufactura!$B16,\"\")","v":""},{"$f":"_xlfn.XLOOKUP(A143,'Base-datos'!$B$547:$B$552,'Base-datos'!$F$547:$F$552)","v":{"$error":"#N/A"}},{"$f":"_xlfn.XLOOKUP(A143,'Base-datos'!$B$547:$B$552,'Base-datos'!$C$547:$C$552)","v":{"$error":"#N/A"}},{"$f":"_xlfn.XLOOKUP(A143,'Base-datos'!$B$547:$B$552,'Base-datos'!$D$547:$D$552)","v":{"$error":"#N/A"}},null,null,{"$f":"IF(OR(H$140=\"La actividad no cumple con el total de los criterios de No Daño Significativo\",I$140=\"El sector no cumple con las salvaguardas mínimas\"),\"\",IF(AND('Base-datos'!$B$745=\"Sí\",'Base-datos'!$B$746=\"\",'Base-datos'!$B$747=\"\"),IF(F143=\"La actividad sí contribuye sustancialmente a la sostenibilidad\",SUM(B143:D143),0),IF(AND('Base-datos'!$B$745=\"Sí\",'Base-datos'!$B$746=\"Sí\",'Base-datos'!$B$747=\"\"),IF(AND(F143=\"La actividad sí contribuye sustancialmente a la sostenibilidad\",G143=\"La actividad sí contribuye sustancialmente a la sostenibilidad\"),SUM(B143:D143),0),IF(AND('Base-datos'!$B$745=\"Sí\",'Base-datos'!$B$746=\"Sí\",'Base-datos'!$B$747=\"Sí\"),IF(AND(F143=\"La actividad sí contribuye sustancialmente a la sostenibilidad\",G143=\"La actividad sí contribuye sustancialmente a la sostenibilidad\",E143=\"La actividad sí contribuye sustancialmente a la sostenibilidad\"),SUM(B143:D143),0),IF(AND('Base-datos'!$B$745=\"\",'Base-datos'!$B$746=\"Sí\",'Base-datos'!$B$747=\"\"),IF(G143=\"La actividad sí contribuye sustancialmente a la sostenibilidad\",SUM(B143:D143),0),IF(AND('Base-datos'!$B$745=\"\",'Base-datos'!$B$746=\"\",'Base-datos'!$B$747=\"Sí\"),IF(E143=\"La actividad sí contribuye sustancialmente a la sostenibilidad\",SUM(B143:D143),0),IF(AND('Base-datos'!$B$745=\"\",'Base-datos'!$B$746=\"Sí\",'Base-datos'!$B$747=\"Sí\"),IF(AND(G143=\"La actividad sí contribuye sustancialmente a la sostenibilidad\",E143=\"La actividad sí contribuye sustancialmente a la sostenibilidad\"),SUM(B143:D143),0),IF(AND('Base-datos'!$B$745=\"Sí\",'Base-datos'!$B$746=\"\",'Base-datos'!$B$747=\"Sí\"),IF(AND(F143=\"La actividad sí contribuye sustancialmente a la sostenibilidad\",E143=\"La actividad sí contribuye sustancialmente a la sostenibilidad\"),SUM(B143:D143),0),\"Por definir\"))))))))","v":"Por definir"}]
[{"$f":"Manufactura!$C18","v":"Seleccione"},{"$f":"IF(Manufactura!$E18=Empresas!B$12,Manufactura!$B18,\"\")","v":""},{"$f":"IF(Manufactura!$E18=Empresas!C$12,Manufactura!$B18,\"\")","v":""},{"$f":"IF(Manufactura!$E18=Empresas!D$12,Manufactura!$B18,\"\")","v":""},{"$f":"_xlfn.XLOOKUP(A144,'Base-datos'!$B$547:$B$552,'Base-datos'!$F$547:$F$552)","v":{"$error":"#N/A"}},{"$f":"_xlfn.XLOOKUP(A144,'Base-datos'!$B$547:$B$552,'Base-datos'!$C$547:$C$552)","v":{"$error":"#N/A"}},{"$f":"_xlfn.XLOOKUP(A144,'Base-datos'!$B$547:$B$552,'Base-datos'!$D$547:$D$552)","v":{"$error":"#N/A"}},null,null,{"$f":"IF(OR(H$140=\"La actividad no cumple con el total de los criterios de No Daño Significativo\",I$140=\"El sector no cumple con las salvaguardas mínimas\"),\"\",IF(AND('Base-datos'!$B$745=\"Sí\",'Base-datos'!$B$746=\"\",'Base-datos'!$B$747=\"\"),IF(F144=\"La actividad sí contribuye sustancialmente a la sostenibilidad\",SUM(B144:D144),0),IF(AND('Base-datos'!$B$745=\"Sí\",'Base-datos'!$B$746=\"Sí\",'Base-datos'!$B$747=\"\"),IF(AND(F144=\"La actividad sí contribuye sustancialmente a la sostenibilidad\",G144=\"La actividad sí contribuye sustancialmente a la sostenibilidad\"),SUM(B144:D144),0),IF(AND('Base-datos'!$B$745=\"Sí\",'Base-datos'!$B$746=\"Sí\",'Base-datos'!$B$747=\"Sí\"),IF(AND(F144=\"La actividad sí contribuye sustancialmente a la sostenibilidad\",G144=\"La actividad sí contribuye sustancialmente a la sostenibilidad\",E144=\"La actividad sí contribuye sustancialmente a la sostenibilidad\"),SUM(B144:D144),0),IF(AND('Base-datos'!$B$745=\"\",'Base-datos'!$B$746=\"Sí\",'Base-datos'!$B$747=\"\"),IF(G144=\"La actividad sí contribuye sustancialmente a la sostenibilidad\",SUM(B144:D144),0),IF(AND('Base-datos'!$B$745=\"\",'Base-datos'!$B$746=\"\",'Base-datos'!$B$747=\"Sí\"),IF(E144=\"La actividad sí contribuye sustancialmente a la sostenibilidad\",SUM(B144:D144),0),IF(AND('Base-datos'!$B$745=\"\",'Base-datos'!$B$746=\"Sí\",'Base-datos'!$B$747=\"Sí\"),IF(AND(G144=\"La actividad sí contribuye sustancialmente a la sostenibilidad\",E144=\"La actividad sí contribuye sustancialmente a la sostenibilidad\"),SUM(B144:D144),0),IF(AND('Base-datos'!$B$745=\"Sí\",'Base-datos'!$B$746=\"\",'Base-datos'!$B$747=\"Sí\"),IF(AND(F144=\"La actividad sí contribuye sustancialmente a la sostenibilidad\",E144=\"La actividad sí contribuye sustancialmente a la sostenibilidad\"),SUM(B144:D144),0),\"Por definir\"))))))))","v":"Por definir"}]
[{"$f":"Manufactura!$C20","v":"Seleccione"},{"$f":"IF(Manufactura!$E20=Empresas!B$12,Manufactura!$B20,\"\")","v":""},{"$f":"IF(Manufactura!$E20=Empresas!C$12,Manufactura!$B20,\"\")","v":""},{"$f":"IF(Manufactura!$E20=Empresas!D$12,Manufactura!$B20,\"\")","v":""},{"$f":"_xlfn.XLOOKUP(A145,'Base-datos'!$B$547:$B$552,'Base-datos'!$F$547:$F$552)","v":{"$error":"#N/A"}},{"$f":"_xlfn.XLOOKUP(A145,'Base-datos'!$B$547:$B$552,'Base-datos'!$C$547:$C$552)","v":{"$error":"#N/A"}},{"$f":"_xlfn.XLOOKUP(A145,'Base-datos'!$B$547:$B$552,'Base-datos'!$D$547:$D$552)","v":{"$error":"#N/A"}},null,null,{"$f":"IF(OR(H$140=\"La actividad no cumple con el total de los criterios de No Daño Significativo\",I$140=\"El sector no cumple con las salvaguardas mínimas\"),\"\",IF(AND('Base-datos'!$B$745=\"Sí\",'Base-datos'!$B$746=\"\",'Base-datos'!$B$747=\"\"),IF(F145=\"La actividad sí contribuye sustancialmente a la sostenibilidad\",SUM(B145:D145),0),IF(AND('Base-datos'!$B$745=\"Sí\",'Base-datos'!$B$746=\"Sí\",'Base-datos'!$B$747=\"\"),IF(AND(F145=\"La actividad sí contribuye sustancialmente a la sostenibilidad\",G145=\"La actividad sí contribuye sustancialmente a la sostenibilidad\"),SUM(B145:D145),0),IF(AND('Base-datos'!$B$745=\"Sí\",'Base-datos'!$B$746=\"Sí\",'Base-datos'!$B$747=\"Sí\"),IF(AND(F145=\"La actividad sí contribuye sustancialmente a la sostenibilidad\",G145=\"La actividad sí contribuye sustancialmente a la sostenibilidad\",E145=\"La actividad sí contribuye sustancialmente a la sostenibilidad\"),SUM(B145:D145),0),IF(AND('Base-datos'!$B$745=\"\",'Base-datos'!$B$746=\"Sí\",'Base-datos'!$B$747=\"\"),IF(G145=\"La actividad sí contribuye sustancialmente a la sostenibilidad\",SUM(B145:D145),0),IF(AND('Base-datos'!$B$745=\"\",'Base-datos'!$B$746=\"\",'Base-datos'!$B$747=\"Sí\"),IF(E145=\"La actividad sí contribuye sustancialmente a la sostenibilidad\",SUM(B145:D145),0),IF(AND('Base-datos'!$B$745=\"\",'Base-datos'!$B$746=\"Sí\",'Base-datos'!$B$747=\"Sí\"),IF(AND(G145=\"La actividad sí contribuye sustancialmente a la sostenibilidad\",E145=\"La actividad sí contribuye sustancialmente a la sostenibilidad\"),SUM(B145:D145),0),IF(AND('Base-datos'!$B$745=\"Sí\",'Base-datos'!$B$746=\"\",'Base-datos'!$B$747=\"Sí\"),IF(AND(F145=\"La actividad sí contribuye sustancialmente a la sostenibilidad\",E145=\"La actividad sí contribuye sustancialmente a la sostenibilidad\"),SUM(B145:D145),0),\"Por definir\"))))))))","v":"Por definir"}]
[{"$f":"Manufactura!$C22","v":"Seleccione"},{"$f":"IF(Manufactura!$E22=Empresas!B$12,Manufactura!$B22,\"\")","v":""},{"$f":"IF(Manufactura!$E22=Empresas!C$12,Manufactura!$B22,\"\")","v":""},{"$f":"IF(Manufactura!$E22=Empresas!D$12,Manufactura!$B22,\"\")","v":""},{"$f":"_xlfn.XLOOKUP(A146,'Base-datos'!$B$547:$B$552,'Base-datos'!$F$547:$F$552)","v":{"$error":"#N/A"}},{"$f":"_xlfn.XLOOKUP(A146,'Base-datos'!$B$547:$B$552,'Base-datos'!$C$547:$C$552)","v":{"$error":"#N/A"}},{"$f":"_xlfn.XLOOKUP(A146,'Base-datos'!$B$547:$B$552,'Base-datos'!$D$547:$D$552)","v":{"$error":"#N/A"}},null,null,{"$f":"IF(OR(H$140=\"La actividad no cumple con el total de los criterios de No Daño Significativo\",I$140=\"El sector no cumple con las salvaguardas mínimas\"),\"\",IF(AND('Base-datos'!$B$745=\"Sí\",'Base-datos'!$B$746=\"\",'Base-datos'!$B$747=\"\"),IF(F146=\"La actividad sí contribuye sustancialmente a la sostenibilidad\",SUM(B146:D146),0),IF(AND('Base-datos'!$B$745=\"Sí\",'Base-datos'!$B$746=\"Sí\",'Base-datos'!$B$747=\"\"),IF(AND(F146=\"La actividad sí contribuye sustancialmente a la sostenibilidad\",G146=\"La actividad sí contribuye sustancialmente a la sostenibilidad\"),SUM(B146:D146),0),IF(AND('Base-datos'!$B$745=\"Sí\",'Base-datos'!$B$746=\"Sí\",'Base-datos'!$B$747=\"Sí\"),IF(AND(F146=\"La actividad sí contribuye sustancialmente a la sostenibilidad\",G146=\"La actividad sí contribuye sustancialmente a la sostenibilidad\",E146=\"La actividad sí contribuye sustancialmente a la sostenibilidad\"),SUM(B146:D146),0),IF(AND('Base-datos'!$B$745=\"\",'Base-datos'!$B$746=\"Sí\",'Base-datos'!$B$747=\"\"),IF(G146=\"La actividad sí contribuye sustancialmente a la sostenibilidad\",SUM(B146:D146),0),IF(AND('Base-datos'!$B$745=\"\",'Base-datos'!$B$746=\"\",'Base-datos'!$B$747=\"Sí\"),IF(E146=\"La actividad sí contribuye sustancialmente a la sostenibilidad\",SUM(B146:D146),0),IF(AND('Base-datos'!$B$745=\"\",'Base-datos'!$B$746=\"Sí\",'Base-datos'!$B$747=\"Sí\"),IF(AND(G146=\"La actividad sí contribuye sustancialmente a la sostenibilidad\",E146=\"La actividad sí contribuye sustancialmente a la sostenibilidad\"),SUM(B146:D146),0),IF(AND('Base-datos'!$B$745=\"Sí\",'Base-datos'!$B$746=\"\",'Base-datos'!$B$747=\"Sí\"),IF(AND(F146=\"La actividad sí contribuye sustancialmente a la sostenibilidad\",E146=\"La actividad sí contribuye sustancialmente a la sostenibilidad\"),SUM(B146:D146),0),\"Por definir\"))))))))","v":"Por definir"}]
[{"$f":"Manufactura!$C24","v":"Seleccione"},{"$f":"IF(Manufactura!$E24=Empresas!B$12,Manufactura!$B24,\"\")","v":""},{"$f":"IF(Manufactura!$E24=Empresas!C$12,Manufactura!$B24,\"\")","v":""},{"$f":"IF(Manufactura!$E24=Empresas!D$12,Manufactura!$B24,\"\")","v":""},{"$f":"_xlfn.XLOOKUP(A147,'Base-datos'!$B$547:$B$552,'Base-datos'!$F$547:$F$552)","v":{"$error":"#N/A"}},{"$f":"_xlfn.XLOOKUP(A147,'Base-datos'!$B$547:$B$552,'Base-datos'!$C$547:$C$552)","v":{"$error":"#N/A"}},{"$f":"_xlfn.XLOOKUP(A147,'Base-datos'!$B$547:$B$552,'Base-datos'!$D$547:$D$552)","v":{"$error":"#N/A"}},null,null,{"$f":"IF(OR(H$140=\"La actividad no cumple con el total de los criterios de No Daño Significativo\",I$140=\"El sector no cumple con las salvaguardas mínimas\"),\"\",IF(AND('Base-datos'!$B$745=\"Sí\",'Base-datos'!$B$746=\"\",'Base-datos'!$B$747=\"\"),IF(F147=\"La actividad sí contribuye sustancialmente a la sostenibilidad\",SUM(B147:D147),0),IF(AND('Base-datos'!$B$745=\"Sí\",'Base-datos'!$B$746=\"Sí\",'Base-datos'!$B$747=\"\"),IF(AND(F147=\"La actividad sí contribuye sustancialmente a la sostenibilidad\",G147=\"La actividad sí contribuye sustancialmente a la sostenibilidad\"),SUM(B147:D147),0),IF(AND('Base-datos'!$B$745=\"Sí\",'Base-datos'!$B$746=\"Sí\",'Base-datos'!$B$747=\"Sí\"),IF(AND(F147=\"La actividad sí contribuye sustancialmente a la sostenibilidad\",G147=\"La actividad sí contribuye sustancialmente a la sostenibilidad\",E147=\"La actividad sí contribuye sustancialmente a la sostenibilidad\"),SUM(B147:D147),0),IF(AND('Base-datos'!$B$745=\"\",'Base-datos'!$B$746=\"Sí\",'Base-datos'!$B$747=\"\"),IF(G147=\"La actividad sí contribuye sustancialmente a la sostenibilidad\",SUM(B147:D147),0),IF(AND('Base-datos'!$B$745=\"\",'Base-datos'!$B$746=\"\",'Base-datos'!$B$747=\"Sí\"),IF(E147=\"La actividad sí contribuye sustancialmente a la sostenibilidad\",SUM(B147:D147),0),IF(AND('Base-datos'!$B$745=\"\",'Base-datos'!$B$746=\"Sí\",'Base-datos'!$B$747=\"Sí\"),IF(AND(G147=\"La actividad sí contribuye sustancialmente a la sostenibilidad\",E147=\"La actividad sí contribuye sustancialmente a la sostenibilidad\"),SUM(B147:D147),0),IF(AND('Base-datos'!$B$745=\"Sí\",'Base-datos'!$B$746=\"\",'Base-datos'!$B$747=\"Sí\"),IF(AND(F147=\"La actividad sí contribuye sustancialmente a la sostenibilidad\",E147=\"La actividad sí contribuye sustancialmente a la sostenibilidad\"),SUM(B147:D147),0),\"Por definir\"))))))))","v":"Por definir"}]
[{"$f":"Manufactura!$C26","v":"Seleccione"},{"$f":"IF(Manufactura!$E26=Empresas!B$12,Manufactura!$B26,\"\")","v":""},{"$f":"IF(Manufactura!$E26=Empresas!C$12,Manufactura!$B26,\"\")","v":""},{"$f":"IF(Manufactura!$E26=Empresas!D$12,Manufactura!$B26,\"\")","v":""},{"$f":"_xlfn.XLOOKUP(A148,'Base-datos'!$B$547:$B$552,'Base-datos'!$F$547:$F$552)","v":{"$error":"#N/A"}},{"$f":"_xlfn.XLOOKUP(A148,'Base-datos'!$B$547:$B$552,'Base-datos'!$C$547:$C$552)","v":{"$error":"#N/A"}},{"$f":"_xlfn.XLOOKUP(A148,'Base-datos'!$B$547:$B$552,'Base-datos'!$D$547:$D$552)","v":{"$error":"#N/A"}},null,null,{"$f":"IF(OR(H$140=\"La actividad no cumple con el total de los criterios de No Daño Significativo\",I$140=\"El sector no cumple con las salvaguardas mínimas\"),\"\",IF(AND('Base-datos'!$B$745=\"Sí\",'Base-datos'!$B$746=\"\",'Base-datos'!$B$747=\"\"),IF(F148=\"La actividad sí contribuye sustancialmente a la sostenibilidad\",SUM(B148:D148),0),IF(AND('Base-datos'!$B$745=\"Sí\",'Base-datos'!$B$746=\"Sí\",'Base-datos'!$B$747=\"\"),IF(AND(F148=\"La actividad sí contribuye sustancialmente a la sostenibilidad\",G148=\"La actividad sí contribuye sustancialmente a la sostenibilidad\"),SUM(B148:D148),0),IF(AND('Base-datos'!$B$745=\"Sí\",'Base-datos'!$B$746=\"Sí\",'Base-datos'!$B$747=\"Sí\"),IF(AND(F148=\"La actividad sí contribuye sustancialmente a la sostenibilidad\",G148=\"La actividad sí contribuye sustancialmente a la sostenibilidad\",E148=\"La actividad sí contribuye sustancialmente a la sostenibilidad\"),SUM(B148:D148),0),IF(AND('Base-datos'!$B$745=\"\",'Base-datos'!$B$746=\"Sí\",'Base-datos'!$B$747=\"\"),IF(G148=\"La actividad sí contribuye sustancialmente a la sostenibilidad\",SUM(B148:D148),0),IF(AND('Base-datos'!$B$745=\"\",'Base-datos'!$B$746=\"\",'Base-datos'!$B$747=\"Sí\"),IF(E148=\"La actividad sí contribuye sustancialmente a la sostenibilidad\",SUM(B148:D148),0),IF(AND('Base-datos'!$B$745=\"\",'Base-datos'!$B$746=\"Sí\",'Base-datos'!$B$747=\"Sí\"),IF(AND(G148=\"La actividad sí contribuye sustancialmente a la sostenibilidad\",E148=\"La actividad sí contribuye sustancialmente a la sostenibilidad\"),SUM(B148:D148),0),IF(AND('Base-datos'!$B$745=\"Sí\",'Base-datos'!$B$746=\"\",'Base-datos'!$B$747=\"Sí\"),IF(AND(F148=\"La actividad sí contribuye sustancialmente a la sostenibilidad\",E148=\"La actividad sí contribuye sustancialmente a la sostenibilidad\"),SUM(B148:D148),0),\"Por definir\"))))))))","v":"Por definir"}]
[{"$f":"Manufactura!$C28","v":"Seleccione"},{"$f":"IF(Manufactura!$E28=Empresas!B$12,Manufactura!$B28,\"\")","v":""},{"$f":"IF(Manufactura!$E28=Empresas!C$12,Manufactura!$B28,\"\")","v":""},{"$f":"IF(Manufactura!$E28=Empresas!D$12,Manufactura!$B28,\"\")","v":""},{"$f":"_xlfn.XLOOKUP(A149,'Base-datos'!$B$547:$B$552,'Base-datos'!$F$547:$F$552)","v":{"$error":"#N/A"}},{"$f":"_xlfn.XLOOKUP(A149,'Base-datos'!$B$547:$B$552,'Base-datos'!$C$547:$C$552)","v":{"$error":"#N/A"}},{"$f":"_xlfn.XLOOKUP(A149,'Base-datos'!$B$547:$B$552,'Base-datos'!$D$547:$D$552)","v":{"$error":"#N/A"}},null,null,{"$f":"IF(OR(H$140=\"La actividad no cumple con el total de los criterios de No Daño Significativo\",I$140=\"El sector no cumple con las salvaguardas mínimas\"),\"\",IF(AND('Base-datos'!$B$745=\"Sí\",'Base-datos'!$B$746=\"\",'Base-datos'!$B$747=\"\"),IF(F149=\"La actividad sí contribuye sustancialmente a la sostenibilidad\",SUM(B149:D149),0),IF(AND('Base-datos'!$B$745=\"Sí\",'Base-datos'!$B$746=\"Sí\",'Base-datos'!$B$747=\"\"),IF(AND(F149=\"La actividad sí contribuye sustancialmente a la sostenibilidad\",G149=\"La actividad sí contribuye sustancialmente a la sostenibilidad\"),SUM(B149:D149),0),IF(AND('Base-datos'!$B$745=\"Sí\",'Base-datos'!$B$746=\"Sí\",'Base-datos'!$B$747=\"Sí\"),IF(AND(F149=\"La actividad sí contribuye sustancialmente a la sostenibilidad\",G149=\"La actividad sí contribuye sustancialmente a la sostenibilidad\",E149=\"La actividad sí contribuye sustancialmente a la sostenibilidad\"),SUM(B149:D149),0),IF(AND('Base-datos'!$B$745=\"\",'Base-datos'!$B$746=\"Sí\",'Base-datos'!$B$747=\"\"),IF(G149=\"La actividad sí contribuye sustancialmente a la sostenibilidad\",SUM(B149:D149),0),IF(AND('Base-datos'!$B$745=\"\",'Base-datos'!$B$746=\"\",'Base-datos'!$B$747=\"Sí\"),IF(E149=\"La actividad sí contribuye sustancialmente a la sostenibilidad\",SUM(B149:D149),0),IF(AND('Base-datos'!$B$745=\"\",'Base-datos'!$B$746=\"Sí\",'Base-datos'!$B$747=\"Sí\"),IF(AND(G149=\"La actividad sí contribuye sustancialmente a la sostenibilidad\",E149=\"La actividad sí contribuye sustancialmente a la sostenibilidad\"),SUM(B149:D149),0),IF(AND('Base-datos'!$B$745=\"Sí\",'Base-datos'!$B$746=\"\",'Base-datos'!$B$747=\"Sí\"),IF(AND(F149=\"La actividad sí contribuye sustancialmente a la sostenibilidad\",E149=\"La actividad sí contribuye sustancialmente a la sostenibilidad\"),SUM(B149:D149),0),\"Por definir\"))))))))","v":"Por definir"}]
[{"$f":"Manufactura!$C30","v":"Seleccione"},{"$f":"IF(Manufactura!$E30=Empresas!B$12,Manufactura!$B30,\"\")","v":""},{"$f":"IF(Manufactura!$E30=Empresas!C$12,Manufactura!$B30,\"\")","v":""},{"$f":"IF(Manufactura!$E30=Empresas!D$12,Manufactura!$B30,\"\")","v":""},{"$f":"_xlfn.XLOOKUP(A150,'Base-datos'!$B$547:$B$552,'Base-datos'!$F$547:$F$552)","v":{"$error":"#N/A"}},{"$f":"_xlfn.XLOOKUP(A150,'Base-datos'!$B$547:$B$552,'Base-datos'!$C$547:$C$552)","v":{"$error":"#N/A"}},{"$f":"_xlfn.XLOOKUP(A150,'Base-datos'!$B$547:$B$552,'Base-datos'!$D$547:$D$552)","v":{"$error":"#N/A"}},null,null,{"$f":"IF(OR(H$140=\"La actividad no cumple con el total de los criterios de No Daño Significativo\",I$140=\"El sector no cumple con las salvaguardas mínimas\"),\"\",IF(AND('Base-datos'!$B$745=\"Sí\",'Base-datos'!$B$746=\"\",'Base-datos'!$B$747=\"\"),IF(F150=\"La actividad sí contribuye sustancialmente a la sostenibilidad\",SUM(B150:D150),0),IF(AND('Base-datos'!$B$745=\"Sí\",'Base-datos'!$B$746=\"Sí\",'Base-datos'!$B$747=\"\"),IF(AND(F150=\"La actividad sí contribuye sustancialmente a la sostenibilidad\",G150=\"La actividad sí contribuye sustancialmente a la sostenibilidad\"),SUM(B150:D150),0),IF(AND('Base-datos'!$B$745=\"Sí\",'Base-datos'!$B$746=\"Sí\",'Base-datos'!$B$747=\"Sí\"),IF(AND(F150=\"La actividad sí contribuye sustancialmente a la sostenibilidad\",G150=\"La actividad sí contribuye sustancialmente a la sostenibilidad\",E150=\"La actividad sí contribuye sustancialmente a la sostenibilidad\"),SUM(B150:D150),0),IF(AND('Base-datos'!$B$745=\"\",'Base-datos'!$B$746=\"Sí\",'Base-datos'!$B$747=\"\"),IF(G150=\"La actividad sí contribuye sustancialmente a la sostenibilidad\",SUM(B150:D150),0),IF(AND('Base-datos'!$B$745=\"\",'Base-datos'!$B$746=\"\",'Base-datos'!$B$747=\"Sí\"),IF(E150=\"La actividad sí contribuye sustancialmente a la sostenibilidad\",SUM(B150:D150),0),IF(AND('Base-datos'!$B$745=\"\",'Base-datos'!$B$746=\"Sí\",'Base-datos'!$B$747=\"Sí\"),IF(AND(G150=\"La actividad sí contribuye sustancialmente a la sostenibilidad\",E150=\"La actividad sí contribuye sustancialmente a la sostenibilidad\"),SUM(B150:D150),0),IF(AND('Base-datos'!$B$745=\"Sí\",'Base-datos'!$B$746=\"\",'Base-datos'!$B$747=\"Sí\"),IF(AND(F150=\"La actividad sí contribuye sustancialmente a la sostenibilidad\",E150=\"La actividad sí contribuye sustancialmente a la sostenibilidad\"),SUM(B150:D150),0),\"Por definir\"))))))))","v":"Por definir"}]
[{"$f":"Manufactura!$C32","v":"Seleccione"},{"$f":"IF(Manufactura!$E32=Empresas!B$12,Manufactura!$B32,\"\")","v":""},{"$f":"IF(Manufactura!$E32=Empresas!C$12,Manufactura!$B32,\"\")","v":""},{"$f":"IF(Manufactura!$E32=Empresas!D$12,Manufactura!$B32,\"\")","v":""},{"$f":"_xlfn.XLOOKUP(A151,'Base-datos'!$B$547:$B$552,'Base-datos'!$F$547:$F$552)","v":{"$error":"#N/A"}},{"$f":"_xlfn.XLOOKUP(A151,'Base-datos'!$B$547:$B$552,'Base-datos'!$C$547:$C$552)","v":{"$error":"#N/A"}},{"$f":"_xlfn.XLOOKUP(A151,'Base-datos'!$B$547:$B$552,'Base-datos'!$D$547:$D$552)","v":{"$error":"#N/A"}},null,null,{"$f":"IF(OR(H$140=\"La actividad no cumple con el total de los criterios de No Daño Significativo\",I$140=\"El sector no cumple con las salvaguardas mínimas\"),\"\",IF(AND('Base-datos'!$B$745=\"Sí\",'Base-datos'!$B$746=\"\",'Base-datos'!$B$747=\"\"),IF(F151=\"La actividad sí contribuye sustancialmente a la sostenibilidad\",SUM(B151:D151),0),IF(AND('Base-datos'!$B$745=\"Sí\",'Base-datos'!$B$746=\"Sí\",'Base-datos'!$B$747=\"\"),IF(AND(F151=\"La actividad sí contribuye sustancialmente a la sostenibilidad\",G151=\"La actividad sí contribuye sustancialmente a la sostenibilidad\"),SUM(B151:D151),0),IF(AND('Base-datos'!$B$745=\"Sí\",'Base-datos'!$B$746=\"Sí\",'Base-datos'!$B$747=\"Sí\"),IF(AND(F151=\"La actividad sí contribuye sustancialmente a la sostenibilidad\",G151=\"La actividad sí contribuye sustancialmente a la sostenibilidad\",E151=\"La actividad sí contribuye sustancialmente a la sostenibilidad\"),SUM(B151:D151),0),IF(AND('Base-datos'!$B$745=\"\",'Base-datos'!$B$746=\"Sí\",'Base-datos'!$B$747=\"\"),IF(G151=\"La actividad sí contribuye sustancialmente a la sostenibilidad\",SUM(B151:D151),0),IF(AND('Base-datos'!$B$745=\"\",'Base-datos'!$B$746=\"\",'Base-datos'!$B$747=\"Sí\"),IF(E151=\"La actividad sí contribuye sustancialmente a la sostenibilidad\",SUM(B151:D151),0),IF(AND('Base-datos'!$B$745=\"\",'Base-datos'!$B$746=\"Sí\",'Base-datos'!$B$747=\"Sí\"),IF(AND(G151=\"La actividad sí contribuye sustancialmente a la sostenibilidad\",E151=\"La actividad sí contribuye sustancialmente a la sostenibilidad\"),SUM(B151:D151),0),IF(AND('Base-datos'!$B$745=\"Sí\",'Base-datos'!$B$746=\"\",'Base-datos'!$B$747=\"Sí\"),IF(AND(F151=\"La actividad sí contribuye sustancialmente a la sostenibilidad\",E151=\"La actividad sí contribuye sustancialmente a la sostenibilidad\"),SUM(B151:D151),0),\"Por definir\"))))))))","v":"Por definir"}]
[{"$f":"Manufactura!$C34","v":"Seleccione"},{"$f":"IF(Manufactura!$E34=Empresas!B$12,Manufactura!$B34,\"\")","v":""},{"$f":"IF(Manufactura!$E34=Empresas!C$12,Manufactura!$B34,\"\")","v":""},{"$f":"IF(Manufactura!$E34=Empresas!D$12,Manufactura!$B34,\"\")","v":""},{"$f":"_xlfn.XLOOKUP(A152,'Base-datos'!$B$547:$B$552,'Base-datos'!$F$547:$F$552)","v":{"$error":"#N/A"}},{"$f":"_xlfn.XLOOKUP(A152,'Base-datos'!$B$547:$B$552,'Base-datos'!$C$547:$C$552)","v":{"$error":"#N/A"}},{"$f":"_xlfn.XLOOKUP(A152,'Base-datos'!$B$547:$B$552,'Base-datos'!$D$547:$D$552)","v":{"$error":"#N/A"}},null,null,{"$f":"IF(OR(H$140=\"La actividad no cumple con el total de los criterios de No Daño Significativo\",I$140=\"El sector no cumple con las salvaguardas mínimas\"),\"\",IF(AND('Base-datos'!$B$745=\"Sí\",'Base-datos'!$B$746=\"\",'Base-datos'!$B$747=\"\"),IF(F152=\"La actividad sí contribuye sustancialmente a la sostenibilidad\",SUM(B152:D152),0),IF(AND('Base-datos'!$B$745=\"Sí\",'Base-datos'!$B$746=\"Sí\",'Base-datos'!$B$747=\"\"),IF(AND(F152=\"La actividad sí contribuye sustancialmente a la sostenibilidad\",G152=\"La actividad sí contribuye sustancialmente a la sostenibilidad\"),SUM(B152:D152),0),IF(AND('Base-datos'!$B$745=\"Sí\",'Base-datos'!$B$746=\"Sí\",'Base-datos'!$B$747=\"Sí\"),IF(AND(F152=\"La actividad sí contribuye sustancialmente a la sostenibilidad\",G152=\"La actividad sí contribuye sustancialmente a la sostenibilidad\",E152=\"La actividad sí contribuye sustancialmente a la sostenibilidad\"),SUM(B152:D152),0),IF(AND('Base-datos'!$B$745=\"\",'Base-datos'!$B$746=\"Sí\",'Base-datos'!$B$747=\"\"),IF(G152=\"La actividad sí contribuye sustancialmente a la sostenibilidad\",SUM(B152:D152),0),IF(AND('Base-datos'!$B$745=\"\",'Base-datos'!$B$746=\"\",'Base-datos'!$B$747=\"Sí\"),IF(E152=\"La actividad sí contribuye sustancialmente a la sostenibilidad\",SUM(B152:D152),0),IF(AND('Base-datos'!$B$745=\"\",'Base-datos'!$B$746=\"Sí\",'Base-datos'!$B$747=\"Sí\"),IF(AND(G152=\"La actividad sí contribuye sustancialmente a la sostenibilidad\",E152=\"La actividad sí contribuye sustancialmente a la sostenibilidad\"),SUM(B152:D152),0),IF(AND('Base-datos'!$B$745=\"Sí\",'Base-datos'!$B$746=\"\",'Base-datos'!$B$747=\"Sí\"),IF(AND(F152=\"La actividad sí contribuye sustancialmente a la sostenibilidad\",E152=\"La actividad sí contribuye sustancialmente a la sostenibilidad\"),SUM(B152:D152),0),\"Por definir\"))))))))","v":"Por definir"}]
[{"$f":"Manufactura!$C36","v":"Seleccione"},{"$f":"IF(Manufactura!$E36=Empresas!B$12,Manufactura!$B36,\"\")","v":""},{"$f":"IF(Manufactura!$E36=Empresas!C$12,Manufactura!$B36,\"\")","v":""},{"$f":"IF(Manufactura!$E36=Empresas!D$12,Manufactura!$B36,\"\")","v":""},{"$f":"_xlfn.XLOOKUP(A153,'Base-datos'!$B$547:$B$552,'Base-datos'!$F$547:$F$552)","v":{"$error":"#N/A"}},{"$f":"_xlfn.XLOOKUP(A153,'Base-datos'!$B$547:$B$552,'Base-datos'!$C$547:$C$552)","v":{"$error":"#N/A"}},{"$f":"_xlfn.XLOOKUP(A153,'Base-datos'!$B$547:$B$552,'Base-datos'!$D$547:$D$552)","v":{"$error":"#N/A"}},null,null,{"$f":"IF(OR(H$140=\"La actividad no cumple con el total de los criterios de No Daño Significativo\",I$140=\"El sector no cumple con las salvaguardas mínimas\"),\"\",IF(AND('Base-datos'!$B$745=\"Sí\",'Base-datos'!$B$746=\"\",'Base-datos'!$B$747=\"\"),IF(F153=\"La actividad sí contribuye sustancialmente a la sostenibilidad\",SUM(B153:D153),0),IF(AND('Base-datos'!$B$745=\"Sí\",'Base-datos'!$B$746=\"Sí\",'Base-datos'!$B$747=\"\"),IF(AND(F153=\"La actividad sí contribuye sustancialmente a la sostenibilidad\",G153=\"La actividad sí contribuye sustancialmente a la sostenibilidad\"),SUM(B153:D153),0),IF(AND('Base-datos'!$B$745=\"Sí\",'Base-datos'!$B$746=\"Sí\",'Base-datos'!$B$747=\"Sí\"),IF(AND(F153=\"La actividad sí contribuye sustancialmente a la sostenibilidad\",G153=\"La actividad sí contribuye sustancialmente a la sostenibilidad\",E153=\"La actividad sí contribuye sustancialmente a la sostenibilidad\"),SUM(B153:D153),0),IF(AND('Base-datos'!$B$745=\"\",'Base-datos'!$B$746=\"Sí\",'Base-datos'!$B$747=\"\"),IF(G153=\"La actividad sí contribuye sustancialmente a la sostenibilidad\",SUM(B153:D153),0),IF(AND('Base-datos'!$B$745=\"\",'Base-datos'!$B$746=\"\",'Base-datos'!$B$747=\"Sí\"),IF(E153=\"La actividad sí contribuye sustancialmente a la sostenibilidad\",SUM(B153:D153),0),IF(AND('Base-datos'!$B$745=\"\",'Base-datos'!$B$746=\"Sí\",'Base-datos'!$B$747=\"Sí\"),IF(AND(G153=\"La actividad sí contribuye sustancialmente a la sostenibilidad\",E153=\"La actividad sí contribuye sustancialmente a la sostenibilidad\"),SUM(B153:D153),0),IF(AND('Base-datos'!$B$745=\"Sí\",'Base-datos'!$B$746=\"\",'Base-datos'!$B$747=\"Sí\"),IF(AND(F153=\"La actividad sí contribuye sustancialmente a la sostenibilidad\",E153=\"La actividad sí contribuye sustancialmente a la sostenibilidad\"),SUM(B153:D153),0),\"Por definir\"))))))))","v":"Por definir"}]
[{"$f":"Manufactura!$C38","v":"Seleccione"},{"$f":"IF(Manufactura!$E38=Empresas!B$12,Manufactura!$B38,\"\")","v":""},{"$f":"IF(Manufactura!$E38=Empresas!C$12,Manufactura!$B38,\"\")","v":""},{"$f":"IF(Manufactura!$E38=Empresas!D$12,Manufactura!$B38,\"\")","v":""},{"$f":"_xlfn.XLOOKUP(A154,'Base-datos'!$B$547:$B$552,'Base-datos'!$F$547:$F$552)","v":{"$error":"#N/A"}},{"$f":"_xlfn.XLOOKUP(A154,'Base-datos'!$B$547:$B$552,'Base-datos'!$C$547:$C$552)","v":{"$error":"#N/A"}},{"$f":"_xlfn.XLOOKUP(A154,'Base-datos'!$B$547:$B$552,'Base-datos'!$D$547:$D$552)","v":{"$error":"#N/A"}},null,null,{"$f":"IF(OR(H$140=\"La actividad no cumple con el total de los criterios de No Daño Significativo\",I$140=\"El sector no cumple con las salvaguardas mínimas\"),\"\",IF(AND('Base-datos'!$B$745=\"Sí\",'Base-datos'!$B$746=\"\",'Base-datos'!$B$747=\"\"),IF(F154=\"La actividad sí contribuye sustancialmente a la sostenibilidad\",SUM(B154:D154),0),IF(AND('Base-datos'!$B$745=\"Sí\",'Base-datos'!$B$746=\"Sí\",'Base-datos'!$B$747=\"\"),IF(AND(F154=\"La actividad sí contribuye sustancialmente a la sostenibilidad\",G154=\"La actividad sí contribuye sustancialmente a la sostenibilidad\"),SUM(B154:D154),0),IF(AND('Base-datos'!$B$745=\"Sí\",'Base-datos'!$B$746=\"Sí\",'Base-datos'!$B$747=\"Sí\"),IF(AND(F154=\"La actividad sí contribuye sustancialmente a la sostenibilidad\",G154=\"La actividad sí contribuye sustancialmente a la sostenibilidad\",E154=\"La actividad sí contribuye sustancialmente a la sostenibilidad\"),SUM(B154:D154),0),IF(AND('Base-datos'!$B$745=\"\",'Base-datos'!$B$746=\"Sí\",'Base-datos'!$B$747=\"\"),IF(G154=\"La actividad sí contribuye sustancialmente a la sostenibilidad\",SUM(B154:D154),0),IF(AND('Base-datos'!$B$745=\"\",'Base-datos'!$B$746=\"\",'Base-datos'!$B$747=\"Sí\"),IF(E154=\"La actividad sí contribuye sustancialmente a la sostenibilidad\",SUM(B154:D154),0),IF(AND('Base-datos'!$B$745=\"\",'Base-datos'!$B$746=\"Sí\",'Base-datos'!$B$747=\"Sí\"),IF(AND(G154=\"La actividad sí contribuye sustancialmente a la sostenibilidad\",E154=\"La actividad sí contribuye sustancialmente a la sostenibilidad\"),SUM(B154:D154),0),IF(AND('Base-datos'!$B$745=\"Sí\",'Base-datos'!$B$746=\"\",'Base-datos'!$B$747=\"Sí\"),IF(AND(F154=\"La actividad sí contribuye sustancialmente a la sostenibilidad\",E154=\"La actividad sí contribuye sustancialmente a la sostenibilidad\"),SUM(B154:D154),0),\"Por definir\"))))))))","v":"Por definir"}]
[{"$f":"Manufactura!$C40","v":"Seleccione"},{"$f":"IF(Manufactura!$E40=Empresas!B$12,Manufactura!$B40,\"\")","v":""},{"$f":"IF(Manufactura!$E40=Empresas!C$12,Manufactura!$B40,\"\")","v":""},{"$f":"IF(Manufactura!$E40=Empresas!D$12,Manufactura!$B40,\"\")","v":""},{"$f":"_xlfn.XLOOKUP(A155,'Base-datos'!$B$547:$B$552,'Base-datos'!$F$547:$F$552)","v":{"$error":"#N/A"}},{"$f":"_xlfn.XLOOKUP(A155,'Base-datos'!$B$547:$B$552,'Base-datos'!$C$547:$C$552)","v":{"$error":"#N/A"}},{"$f":"_xlfn.XLOOKUP(A155,'Base-datos'!$B$547:$B$552,'Base-datos'!$D$547:$D$552)","v":{"$error":"#N/A"}},null,null,{"$f":"IF(OR(H$140=\"La actividad no cumple con el total de los criterios de No Daño Significativo\",I$140=\"El sector no cumple con las salvaguardas mínimas\"),\"\",IF(AND('Base-datos'!$B$745=\"Sí\",'Base-datos'!$B$746=\"\",'Base-datos'!$B$747=\"\"),IF(F155=\"La actividad sí contribuye sustancialmente a la sostenibilidad\",SUM(B155:D155),0),IF(AND('Base-datos'!$B$745=\"Sí\",'Base-datos'!$B$746=\"Sí\",'Base-datos'!$B$747=\"\"),IF(AND(F155=\"La actividad sí contribuye sustancialmente a la sostenibilidad\",G155=\"La actividad sí contribuye sustancialmente a la sostenibilidad\"),SUM(B155:D155),0),IF(AND('Base-datos'!$B$745=\"Sí\",'Base-datos'!$B$746=\"Sí\",'Base-datos'!$B$747=\"Sí\"),IF(AND(F155=\"La actividad sí contribuye sustancialmente a la sostenibilidad\",G155=\"La actividad sí contribuye sustancialmente a la sostenibilidad\",E155=\"La actividad sí contribuye sustancialmente a la sostenibilidad\"),SUM(B155:D155),0),IF(AND('Base-datos'!$B$745=\"\",'Base-datos'!$B$746=\"Sí\",'Base-datos'!$B$747=\"\"),IF(G155=\"La actividad sí contribuye sustancialmente a la sostenibilidad\",SUM(B155:D155),0),IF(AND('Base-datos'!$B$745=\"\",'Base-datos'!$B$746=\"\",'Base-datos'!$B$747=\"Sí\"),IF(E155=\"La actividad sí contribuye sustancialmente a la sostenibilidad\",SUM(B155:D155),0),IF(AND('Base-datos'!$B$745=\"\",'Base-datos'!$B$746=\"Sí\",'Base-datos'!$B$747=\"Sí\"),IF(AND(G155=\"La actividad sí contribuye sustancialmente a la sostenibilidad\",E155=\"La actividad sí contribuye sustancialmente a la sostenibilidad\"),SUM(B155:D155),0),IF(AND('Base-datos'!$B$745=\"Sí\",'Base-datos'!$B$746=\"\",'Base-datos'!$B$747=\"Sí\"),IF(AND(F155=\"La actividad sí contribuye sustancialmente a la sostenibilidad\",E155=\"La actividad sí contribuye sustancialmente a la sostenibilidad\"),SUM(B155:D155),0),\"Por definir\"))))))))","v":"Por definir"}]
[{"$f":"Manufactura!$C42","v":"Seleccione"},{"$f":"IF(Manufactura!$E42=Empresas!B$12,Manufactura!$B42,\"\")","v":""},{"$f":"IF(Manufactura!$E42=Empresas!C$12,Manufactura!$B42,\"\")","v":""},{"$f":"IF(Manufactura!$E42=Empresas!D$12,Manufactura!$B42,\"\")","v":""},{"$f":"_xlfn.XLOOKUP(A156,'Base-datos'!$B$547:$B$552,'Base-datos'!$F$547:$F$552)","v":{"$error":"#N/A"}},{"$f":"_xlfn.XLOOKUP(A156,'Base-datos'!$B$547:$B$552,'Base-datos'!$C$547:$C$552)","v":{"$error":"#N/A"}},{"$f":"_xlfn.XLOOKUP(A156,'Base-datos'!$B$547:$B$552,'Base-datos'!$D$547:$D$552)","v":{"$error":"#N/A"}},null,null,{"$f":"IF(OR(H$140=\"La actividad no cumple con el total de los criterios de No Daño Significativo\",I$140=\"El sector no cumple con las salvaguardas mínimas\"),\"\",IF(AND('Base-datos'!$B$745=\"Sí\",'Base-datos'!$B$746=\"\",'Base-datos'!$B$747=\"\"),IF(F156=\"La actividad sí contribuye sustancialmente a la sostenibilidad\",SUM(B156:D156),0),IF(AND('Base-datos'!$B$745=\"Sí\",'Base-datos'!$B$746=\"Sí\",'Base-datos'!$B$747=\"\"),IF(AND(F156=\"La actividad sí contribuye sustancialmente a la sostenibilidad\",G156=\"La actividad sí contribuye sustancialmente a la sostenibilidad\"),SUM(B156:D156),0),IF(AND('Base-datos'!$B$745=\"Sí\",'Base-datos'!$B$746=\"Sí\",'Base-datos'!$B$747=\"Sí\"),IF(AND(F156=\"La actividad sí contribuye sustancialmente a la sostenibilidad\",G156=\"La actividad sí contribuye sustancialmente a la sostenibilidad\",E156=\"La actividad sí contribuye sustancialmente a la sostenibilidad\"),SUM(B156:D156),0),IF(AND('Base-datos'!$B$745=\"\",'Base-datos'!$B$746=\"Sí\",'Base-datos'!$B$747=\"\"),IF(G156=\"La actividad sí contribuye sustancialmente a la sostenibilidad\",SUM(B156:D156),0),IF(AND('Base-datos'!$B$745=\"\",'Base-datos'!$B$746=\"\",'Base-datos'!$B$747=\"Sí\"),IF(E156=\"La actividad sí contribuye sustancialmente a la sostenibilidad\",SUM(B156:D156),0),IF(AND('Base-datos'!$B$745=\"\",'Base-datos'!$B$746=\"Sí\",'Base-datos'!$B$747=\"Sí\"),IF(AND(G156=\"La actividad sí contribuye sustancialmente a la sostenibilidad\",E156=\"La actividad sí contribuye sustancialmente a la sostenibilidad\"),SUM(B156:D156),0),IF(AND('Base-datos'!$B$745=\"Sí\",'Base-datos'!$B$746=\"\",'Base-datos'!$B$747=\"Sí\"),IF(AND(F156=\"La actividad sí contribuye sustancialmente a la sostenibilidad\",E156=\"La actividad sí contribuye sustancialmente a la sostenibilidad\"),SUM(B156:D156),0),\"Por definir\"))))))))","v":"Por definir"}]
[{"$f":"Manufactura!$C44","v":"Seleccione"},{"$f":"IF(Manufactura!$E44=Empresas!B$12,Manufactura!$B44,\"\")","v":""},{"$f":"IF(Manufactura!$E44=Empresas!C$12,Manufactura!$B44,\"\")","v":""},{"$f":"IF(Manufactura!$E44=Empresas!D$12,Manufactura!$B44,\"\")","v":""},{"$f":"_xlfn.XLOOKUP(A157,'Base-datos'!$B$547:$B$552,'Base-datos'!$F$547:$F$552)","v":{"$error":"#N/A"}},{"$f":"_xlfn.XLOOKUP(A157,'Base-datos'!$B$547:$B$552,'Base-datos'!$C$547:$C$552)","v":{"$error":"#N/A"}},{"$f":"_xlfn.XLOOKUP(A157,'Base-datos'!$B$547:$B$552,'Base-datos'!$D$547:$D$552)","v":{"$error":"#N/A"}},null,null,{"$f":"IF(OR(H$140=\"La actividad no cumple con el total de los criterios de No Daño Significativo\",I$140=\"El sector no cumple con las salvaguardas mínimas\"),\"\",IF(AND('Base-datos'!$B$745=\"Sí\",'Base-datos'!$B$746=\"\",'Base-datos'!$B$747=\"\"),IF(F157=\"La actividad sí contribuye sustancialmente a la sostenibilidad\",SUM(B157:D157),0),IF(AND('Base-datos'!$B$745=\"Sí\",'Base-datos'!$B$746=\"Sí\",'Base-datos'!$B$747=\"\"),IF(AND(F157=\"La actividad sí contribuye sustancialmente a la sostenibilidad\",G157=\"La actividad sí contribuye sustancialmente a la sostenibilidad\"),SUM(B157:D157),0),IF(AND('Base-datos'!$B$745=\"Sí\",'Base-datos'!$B$746=\"Sí\",'Base-datos'!$B$747=\"Sí\"),IF(AND(F157=\"La actividad sí contribuye sustancialmente a la sostenibilidad\",G157=\"La actividad sí contribuye sustancialmente a la sostenibilidad\",E157=\"La actividad sí contribuye sustancialmente a la sostenibilidad\"),SUM(B157:D157),0),IF(AND('Base-datos'!$B$745=\"\",'Base-datos'!$B$746=\"Sí\",'Base-datos'!$B$747=\"\"),IF(G157=\"La actividad sí contribuye sustancialmente a la sostenibilidad\",SUM(B157:D157),0),IF(AND('Base-datos'!$B$745=\"\",'Base-datos'!$B$746=\"\",'Base-datos'!$B$747=\"Sí\"),IF(E157=\"La actividad sí contribuye sustancialmente a la sostenibilidad\",SUM(B157:D157),0),IF(AND('Base-datos'!$B$745=\"\",'Base-datos'!$B$746=\"Sí\",'Base-datos'!$B$747=\"Sí\"),IF(AND(G157=\"La actividad sí contribuye sustancialmente a la sostenibilidad\",E157=\"La actividad sí contribuye sustancialmente a la sostenibilidad\"),SUM(B157:D157),0),IF(AND('Base-datos'!$B$745=\"Sí\",'Base-datos'!$B$746=\"\",'Base-datos'!$B$747=\"Sí\"),IF(AND(F157=\"La actividad sí contribuye sustancialmente a la sostenibilidad\",E157=\"La actividad sí contribuye sustancialmente a la sostenibilidad\"),SUM(B157:D157),0),\"Por definir\"))))))))","v":"Por definir"}]
[{"$f":"Manufactura!$C46","v":"Seleccione"},{"$f":"IF(Manufactura!$E46=Empresas!B$12,Manufactura!$B46,\"\")","v":""},{"$f":"IF(Manufactura!$E46=Empresas!C$12,Manufactura!$B46,\"\")","v":""},{"$f":"IF(Manufactura!$E46=Empresas!D$12,Manufactura!$B46,\"\")","v":""},{"$f":"_xlfn.XLOOKUP(A158,'Base-datos'!$B$547:$B$552,'Base-datos'!$F$547:$F$552)","v":{"$error":"#N/A"}},{"$f":"_xlfn.XLOOKUP(A158,'Base-datos'!$B$547:$B$552,'Base-datos'!$C$547:$C$552)","v":{"$error":"#N/A"}},{"$f":"_xlfn.XLOOKUP(A158,'Base-datos'!$B$547:$B$552,'Base-datos'!$D$547:$D$552)","v":{"$error":"#N/A"}},null,null,{"$f":"IF(OR(H$140=\"La actividad no cumple con el total de los criterios de No Daño Significativo\",I$140=\"El sector no cumple con las salvaguardas mínimas\"),\"\",IF(AND('Base-datos'!$B$745=\"Sí\",'Base-datos'!$B$746=\"\",'Base-datos'!$B$747=\"\"),IF(F158=\"La actividad sí contribuye sustancialmente a la sostenibilidad\",SUM(B158:D158),0),IF(AND('Base-datos'!$B$745=\"Sí\",'Base-datos'!$B$746=\"Sí\",'Base-datos'!$B$747=\"\"),IF(AND(F158=\"La actividad sí contribuye sustancialmente a la sostenibilidad\",G158=\"La actividad sí contribuye sustancialmente a la sostenibilidad\"),SUM(B158:D158),0),IF(AND('Base-datos'!$B$745=\"Sí\",'Base-datos'!$B$746=\"Sí\",'Base-datos'!$B$747=\"Sí\"),IF(AND(F158=\"La actividad sí contribuye sustancialmente a la sostenibilidad\",G158=\"La actividad sí contribuye sustancialmente a la sostenibilidad\",E158=\"La actividad sí contribuye sustancialmente a la sostenibilidad\"),SUM(B158:D158),0),IF(AND('Base-datos'!$B$745=\"\",'Base-datos'!$B$746=\"Sí\",'Base-datos'!$B$747=\"\"),IF(G158=\"La actividad sí contribuye sustancialmente a la sostenibilidad\",SUM(B158:D158),0),IF(AND('Base-datos'!$B$745=\"\",'Base-datos'!$B$746=\"\",'Base-datos'!$B$747=\"Sí\"),IF(E158=\"La actividad sí contribuye sustancialmente a la sostenibilidad\",SUM(B158:D158),0),IF(AND('Base-datos'!$B$745=\"\",'Base-datos'!$B$746=\"Sí\",'Base-datos'!$B$747=\"Sí\"),IF(AND(G158=\"La actividad sí contribuye sustancialmente a la sostenibilidad\",E158=\"La actividad sí contribuye sustancialmente a la sostenibilidad\"),SUM(B158:D158),0),IF(AND('Base-datos'!$B$745=\"Sí\",'Base-datos'!$B$746=\"\",'Base-datos'!$B$747=\"Sí\"),IF(AND(F158=\"La actividad sí contribuye sustancialmente a la sostenibilidad\",E158=\"La actividad sí contribuye sustancialmente a la sostenibilidad\"),SUM(B158:D158),0),\"Por definir\"))))))))","v":"Por definir"}]
[{"$f":"Manufactura!$C48","v":"Seleccione"},{"$f":"IF(Manufactura!$E48=Empresas!B$12,Manufactura!$B48,\"\")","v":""},{"$f":"IF(Manufactura!$E48=Empresas!C$12,Manufactura!$B48,\"\")","v":""},{"$f":"IF(Manufactura!$E48=Empresas!D$12,Manufactura!$B48,\"\")","v":""},{"$f":"_xlfn.XLOOKUP(A159,'Base-datos'!$B$547:$B$552,'Base-datos'!$F$547:$F$552)","v":{"$error":"#N/A"}},{"$f":"_xlfn.XLOOKUP(A159,'Base-datos'!$B$547:$B$552,'Base-datos'!$C$547:$C$552)","v":{"$error":"#N/A"}},{"$f":"_xlfn.XLOOKUP(A159,'Base-datos'!$B$547:$B$552,'Base-datos'!$D$547:$D$552)","v":{"$error":"#N/A"}},null,null,{"$f":"IF(OR(H$140=\"La actividad no cumple con el total de los criterios de No Daño Significativo\",I$140=\"El sector no cumple con las salvaguardas mínimas\"),\"\",IF(AND('Base-datos'!$B$745=\"Sí\",'Base-datos'!$B$746=\"\",'Base-datos'!$B$747=\"\"),IF(F159=\"La actividad sí contribuye sustancialmente a la sostenibilidad\",SUM(B159:D159),0),IF(AND('Base-datos'!$B$745=\"Sí\",'Base-datos'!$B$746=\"Sí\",'Base-datos'!$B$747=\"\"),IF(AND(F159=\"La actividad sí contribuye sustancialmente a la sostenibilidad\",G159=\"La actividad sí contribuye sustancialmente a la sostenibilidad\"),SUM(B159:D159),0),IF(AND('Base-datos'!$B$745=\"Sí\",'Base-datos'!$B$746=\"Sí\",'Base-datos'!$B$747=\"Sí\"),IF(AND(F159=\"La actividad sí contribuye sustancialmente a la sostenibilidad\",G159=\"La actividad sí contribuye sustancialmente a la sostenibilidad\",E159=\"La actividad sí contribuye sustancialmente a la sostenibilidad\"),SUM(B159:D159),0),IF(AND('Base-datos'!$B$745=\"\",'Base-datos'!$B$746=\"Sí\",'Base-datos'!$B$747=\"\"),IF(G159=\"La actividad sí contribuye sustancialmente a la sostenibilidad\",SUM(B159:D159),0),IF(AND('Base-datos'!$B$745=\"\",'Base-datos'!$B$746=\"\",'Base-datos'!$B$747=\"Sí\"),IF(E159=\"La actividad sí contribuye sustancialmente a la sostenibilidad\",SUM(B159:D159),0),IF(AND('Base-datos'!$B$745=\"\",'Base-datos'!$B$746=\"Sí\",'Base-datos'!$B$747=\"Sí\"),IF(AND(G159=\"La actividad sí contribuye sustancialmente a la sostenibilidad\",E159=\"La actividad sí contribuye sustancialmente a la sostenibilidad\"),SUM(B159:D159),0),IF(AND('Base-datos'!$B$745=\"Sí\",'Base-datos'!$B$746=\"\",'Base-datos'!$B$747=\"Sí\"),IF(AND(F159=\"La actividad sí contribuye sustancialmente a la sostenibilidad\",E159=\"La actividad sí contribuye sustancialmente a la sostenibilidad\"),SUM(B159:D159),0),\"Por definir\"))))))))","v":"Por definir"}]
["Transporte",null,null,null,null,null,null,null,null,{"$f":"SUM(IF(FREQUENCY(MATCH(A161:A180, A161:A180, 0), MATCH(A161:A180, A161:A180, 0)) > 0, IF(NOT(ISERROR(J161:J180)), J161:J180, 0)))","v":0}]
[{"$f":"Transporte!$C10","v":"Seleccione"},{"$f":"IF(Transporte!$E10=Empresas!B$12,Transporte!$B10,\"\")","v":""},{"$f":"IF(Transporte!$E10=Empresas!C$12,Transporte!$B10,\"\")","v":""},{"$f":"IF(Transporte!$E10=Empresas!D$12,Transporte!$B10,\"\")","v":""},{"$f":"_xlfn.XLOOKUP(A161,'Base-datos'!$B$553:$B$570,'Base-datos'!$F$553:$F$570)","v":{"$error":"#N/A"}},{"$f":"_xlfn.XLOOKUP(A161,'Base-datos'!$B$553:$B$570,'Base-datos'!$C$553:$C$570)","v":{"$error":"#N/A"}},{"$f":"_xlfn.XLOOKUP(A161,'Base-datos'!$B$553:$B$570,'Base-datos'!$D$553:$D$570)","v":{"$error":"#N/A"}},{"$f":"IF(COUNTIF('Transporte-NDS'!G9:G84,\"No\")>0,\"La actividad no cumple con el total de los criterios de NDS\",\"La actividad cumple con los criterios de No Daño Significativo\")","v":"La actividad cumple con los criterios de No Daño Significativo"},{"$f":"IF(OR('Salvaguardas mínimas'!$G$10=\"Seleccione\",'Salvaguardas mínimas'!$G$13=\"Seleccione\",'Salvaguardas mínimas'!$G$16=\"Seleccione\",'Salvaguardas mínimas'!$G$7=\"Seleccione\"),\"No se han respondido todas las preguntas\",IF(OR('Salvaguardas mínimas'!$G$10=\"No\",'Salvaguardas mínimas'!$G$13=\"No\",'Salvaguardas mínimas'!$G$16=\"No\",'Salvaguardas mínimas'!$G$7=\"No\"),\"El sector no cumple con las salvaguardas mínimas\",\"La actividad sí cumple con las salvaguardas mínimas\"))","v":"No se han respondido todas las preguntas"},{"$f":"IF(OR(H$161=\"La actividad no cumple con el total de los criterios de No Daño Significativo\",I$161=\"El sector no cumple con las salvaguardas mínimas\"),\"\",IF(AND('Base-datos'!$B$750=\"Sí\",'Base-datos'!$B$751=\"\",'Base-datos'!$B$752=\"\"),IF(F161=\"La actividad sí contribuye sustancialmente a la sostenibilidad\",SUM(B161:D161),0),IF(AND('Base-datos'!$B$750=\"Sí\",'Base-datos'!$B$751=\"Sí\",'Base-datos'!$B$752=\"\"),IF(AND(F161=\"La actividad sí contribuye sustancialmente a la sostenibilidad\",G161=\"La actividad sí contribuye sustancialmente a la sostenibilidad\"),SUM(B161:D161),0),IF(AND('Base-datos'!$B$750=\"Sí\",'Base-datos'!$B$751=\"Sí\",'Base-datos'!$B$752=\"Sí\"),IF(AND(F161=\"La actividad sí contribuye sustancialmente a la sostenibilidad\",G161=\"La actividad sí contribuye sustancialmente a la sostenibilidad\",E161=\"La actividad sí contribuye sustancialmente a la sostenibilidad\"),SUM(B161:D161),0),IF(AND('Base-datos'!$B$750=\"\",'Base-datos'!$B$751=\"Sí\",'Base-datos'!$B$752=\"\"),IF(G161=\"La actividad sí contribuye sustancialmente a la sostenibilidad\",SUM(B161:D161),0),IF(AND('Base-datos'!$B$750=\"\",'Base-datos'!$B$751=\"\",'Base-datos'!$B$752=\"Sí\"),IF(E161=\"La actividad sí contribuye sustancialmente a la sostenibilidad\",SUM(B161:D161),0),IF(AND('Base-datos'!$B$750=\"\",'Base-datos'!$B$751=\"Sí\",'Base-datos'!$B$752=\"Sí\"),IF(AND(G161=\"La actividad sí contribuye sustancialmente a la sostenibilidad\",E161=\"La actividad sí contribuye sustancialmente a la sostenibilidad\"),SUM(B161:D161),0),IF(AND('Base-datos'!$B$750=\"Sí\",'Base-datos'!$B$751=\"\",'Base-datos'!$B$752=\"Sí\"),IF(AND(F161=\"La actividad sí contribuye sustancialmente a la sostenibilidad\",E161=\"La actividad sí contribuye sustancialmente a la sostenibilidad\"),SUM(B161:D161),0),\"Por definir\"))))))))","v":"Por definir"}]
[{"$f":"Transporte!$C12","v":"Seleccione"},{"$f":"IF(Transporte!$E12=Empresas!B$12,Transporte!$B12,\"\")","v":""},{"$f":"IF(Transporte!$E12=Empresas!C$12,Transporte!$B12,\"\")","v":""},{"$f":"IF(Transporte!$E12=Empresas!D$12,Transporte!$B12,\"\")","v":""},{"$f":"_xlfn.XLOOKUP(A162,'Base-datos'!$B$553:$B$570,'Base-datos'!$F$553:$F$570)","v":{"$error":"#N/A"}},{"$f":"_xlfn.XLOOKUP(A162,'Base-datos'!$B$553:$B$570,'Base-datos'!$C$553:$C$570)","v":{"$error":"#N/A"}},{"$f":"_xlfn.XLOOKUP(A162,'Base-datos'!$B$553:$B$570,'Base-datos'!$D$553:$D$570)","v":{"$error":"#N/A"}},null,null,{"$f":"IF(OR(H$161=\"La actividad no cumple con el total de los criterios de No Daño Significativo\",I$161=\"El sector no cumple con las salvaguardas mínimas\"),\"\",IF(AND('Base-datos'!$B$750=\"Sí\",'Base-datos'!$B$751=\"\",'Base-datos'!$B$752=\"\"),IF(F162=\"La actividad sí contribuye sustancialmente a la sostenibilidad\",SUM(B162:D162),0),IF(AND('Base-datos'!$B$750=\"Sí\",'Base-datos'!$B$751=\"Sí\",'Base-datos'!$B$752=\"\"),IF(AND(F162=\"La actividad sí contribuye sustancialmente a la sostenibilidad\",G162=\"La actividad sí contribuye sustancialmente a la sostenibilidad\"),SUM(B162:D162),0),IF(AND('Base-datos'!$B$750=\"Sí\",'Base-datos'!$B$751=\"Sí\",'Base-datos'!$B$752=\"Sí\"),IF(AND(F162=\"La actividad sí contribuye sustancialmente a la sostenibilidad\",G162=\"La actividad sí contribuye sustancialmente a la sostenibilidad\",E162=\"La actividad sí contribuye sustancialmente a la sostenibilidad\"),SUM(B162:D162),0),IF(AND('Base-datos'!$B$750=\"\",'Base-datos'!$B$751=\"Sí\",'Base-datos'!$B$752=\"\"),IF(G162=\"La actividad sí contribuye sustancialmente a la sostenibilidad\",SUM(B162:D162),0),IF(AND('Base-datos'!$B$750=\"\",'Base-datos'!$B$751=\"\",'Base-datos'!$B$752=\"Sí\"),IF(E162=\"La actividad sí contribuye sustancialmente a la sostenibilidad\",SUM(B162:D162),0),IF(AND('Base-datos'!$B$750=\"\",'Base-datos'!$B$751=\"Sí\",'Base-datos'!$B$752=\"Sí\"),IF(AND(G162=\"La actividad sí contribuye sustancialmente a la sostenibilidad\",E162=\"La actividad sí contribuye sustancialmente a la sostenibilidad\"),SUM(B162:D162),0),IF(AND('Base-datos'!$B$750=\"Sí\",'Base-datos'!$B$751=\"\",'Base-datos'!$B$752=\"Sí\"),IF(AND(F162=\"La actividad sí contribuye sustancialmente a la sostenibilidad\",E162=\"La actividad sí contribuye sustancialmente a la sostenibilidad\"),SUM(B162:D162),0),\"Por definir\"))))))))","v":"Por definir"}]
[{"$f":"Transporte!$C14","v":"Seleccione"},{"$f":"IF(Transporte!$E14=Empresas!B$12,Transporte!$B14,\"\")","v":""},{"$f":"IF(Transporte!$E14=Empresas!C$12,Transporte!$B14,\"\")","v":""},{"$f":"IF(Transporte!$E14=Empresas!D$12,Transporte!$B14,\"\")","v":""},{"$f":"_xlfn.XLOOKUP(A163,'Base-datos'!$B$553:$B$570,'Base-datos'!$F$553:$F$570)","v":{"$error":"#N/A"}},{"$f":"_xlfn.XLOOKUP(A163,'Base-datos'!$B$553:$B$570,'Base-datos'!$C$553:$C$570)","v":{"$error":"#N/A"}},{"$f":"_xlfn.XLOOKUP(A163,'Base-datos'!$B$553:$B$570,'Base-datos'!$D$553:$D$570)","v":{"$error":"#N/A"}},null,null,{"$f":"IF(OR(H$161=\"La actividad no cumple con el total de los criterios de No Daño Significativo\",I$161=\"El sector no cumple con las salvaguardas mínimas\"),\"\",IF(AND('Base-datos'!$B$750=\"Sí\",'Base-datos'!$B$751=\"\",'Base-datos'!$B$752=\"\"),IF(F163=\"La actividad sí contribuye sustancialmente a la sostenibilidad\",SUM(B163:D163),0),IF(AND('Base-datos'!$B$750=\"Sí\",'Base-datos'!$B$751=\"Sí\",'Base-datos'!$B$752=\"\"),IF(AND(F163=\"La actividad sí contribuye sustancialmente a la sostenibilidad\",G163=\"La actividad sí contribuye sustancialmente a la sostenibilidad\"),SUM(B163:D163),0),IF(AND('Base-datos'!$B$750=\"Sí\",'Base-datos'!$B$751=\"Sí\",'Base-datos'!$B$752=\"Sí\"),IF(AND(F163=\"La actividad sí contribuye sustancialmente a la sostenibilidad\",G163=\"La actividad sí contribuye sustancialmente a la sostenibilidad\",E163=\"La actividad sí contribuye sustancialmente a la sostenibilidad\"),SUM(B163:D163),0),IF(AND('Base-datos'!$B$750=\"\",'Base-datos'!$B$751=\"Sí\",'Base-datos'!$B$752=\"\"),IF(G163=\"La actividad sí contribuye sustancialmente a la sostenibilidad\",SUM(B163:D163),0),IF(AND('Base-datos'!$B$750=\"\",'Base-datos'!$B$751=\"\",'Base-datos'!$B$752=\"Sí\"),IF(E163=\"La actividad sí contribuye sustancialmente a la sostenibilidad\",SUM(B163:D163),0),IF(AND('Base-datos'!$B$750=\"\",'Base-datos'!$B$751=\"Sí\",'Base-datos'!$B$752=\"Sí\"),IF(AND(G163=\"La actividad sí contribuye sustancialmente a la sostenibilidad\",E163=\"La actividad sí contribuye sustancialmente a la sostenibilidad\"),SUM(B163:D163),0),IF(AND('Base-datos'!$B$750=\"Sí\",'Base-datos'!$B$751=\"\",'Base-datos'!$B$752=\"Sí\"),IF(AND(F163=\"La actividad sí contribuye sustancialmente a la sostenibilidad\",E163=\"La actividad sí contribuye sustancialmente a la sostenibilidad\"),SUM(B163:D163),0),\"Por definir\"))))))))","v":"Por definir"}]
[{"$f":"Transporte!$C16","v":"Seleccione"},{"$f":"IF(Transporte!$E16=Empresas!B$12,Transporte!$B16,\"\")","v":""},{"$f":"IF(Transporte!$E16=Empresas!C$12,Transporte!$B16,\"\")","v":""},{"$f":"IF(Transporte!$E16=Empresas!D$12,Transporte!$B16,\"\")","v":""},{"$f":"_xlfn.XLOOKUP(A164,'Base-datos'!$B$553:$B$570,'Base-datos'!$F$553:$F$570)","v":{"$error":"#N/A"}},{"$f":"_xlfn.XLOOKUP(A164,'Base-datos'!$B$553:$B$570,'Base-datos'!$C$553:$C$570)","v":{"$error":"#N/A"}},{"$f":"_xlfn.XLOOKUP(A164,'Base-datos'!$B$553:$B$570,'Base-datos'!$D$553:$D$570)","v":{"$error":"#N/A"}},null,null,{"$f":"IF(OR(H$161=\"La actividad no cumple con el total de los criterios de No Daño Significativo\",I$161=\"El sector no cumple con las salvaguardas mínimas\"),\"\",IF(AND('Base-datos'!$B$750=\"Sí\",'Base-datos'!$B$751=\"\",'Base-datos'!$B$752=\"\"),IF(F164=\"La actividad sí contribuye sustancialmente a la sostenibilidad\",SUM(B164:D164),0),IF(AND('Base-datos'!$B$750=\"Sí\",'Base-datos'!$B$751=\"Sí\",'Base-datos'!$B$752=\"\"),IF(AND(F164=\"La actividad sí contribuye sustancialmente a la sostenibilidad\",G164=\"La actividad sí contribuye sustancialmente a la sostenibilidad\"),SUM(B164:D164),0),IF(AND('Base-datos'!$B$750=\"Sí\",'Base-datos'!$B$751=\"Sí\",'Base-datos'!$B$752=\"Sí\"),IF(AND(F164=\"La actividad sí contribuye sustancialmente a la sostenibilidad\",G164=\"La actividad sí contribuye sustancialmente a la sostenibilidad\",E164=\"La actividad sí contribuye sustancialmente a la sostenibilidad\"),SUM(B164:D164),0),IF(AND('Base-datos'!$B$750=\"\",'Base-datos'!$B$751=\"Sí\",'Base-datos'!$B$752=\"\"),IF(G164=\"La actividad sí contribuye sustancialmente a la sostenibilidad\",SUM(B164:D164),0),IF(AND('Base-datos'!$B$750=\"\",'Base-datos'!$B$751=\"\",'Base-datos'!$B$752=\"Sí\"),IF(E164=\"La actividad sí contribuye sustancialmente a la sostenibilidad\",SUM(B164:D164),0),IF(AND('Base-datos'!$B$750=\"\",'Base-datos'!$B$751=\"Sí\",'Base-datos'!$B$752=\"Sí\"),IF(AND(G164=\"La actividad sí contribuye sustancialmente a la sostenibilidad\",E164=\"La actividad sí contribuye sustancialmente a la sostenibilidad\"),SUM(B164:D164),0),IF(AND('Base-datos'!$B$750=\"Sí\",'Base-datos'!$B$751=\"\",'Base-datos'!$B$752=\"Sí\"),IF(AND(F164=\"La actividad sí contribuye sustancialmente a la sostenibilidad\",E164=\"La actividad sí contribuye sustancialmente a la sostenibilidad\"),SUM(B164:D164),0),\"Por definir\"))))))))","v":"Por definir"}]
[{"$f":"Transporte!$C18","v":"Seleccione"},{"$f":"IF(Transporte!$E18=Empresas!B$12,Transporte!$B18,\"\")","v":""},{"$f":"IF(Transporte!$E18=Empresas!C$12,Transporte!$B18,\"\")","v":""},{"$f":"IF(Transporte!$E18=Empresas!D$12,Transporte!$B18,\"\")","v":""},{"$f":"_xlfn.XLOOKUP(A165,'Base-datos'!$B$553:$B$570,'Base-datos'!$F$553:$F$570)","v":{"$error":"#N/A"}},{"$f":"_xlfn.XLOOKUP(A165,'Base-datos'!$B$553:$B$570,'Base-datos'!$C$553:$C$570)","v":{"$error":"#N/A"}},{"$f":"_xlfn.XLOOKUP(A165,'Base-datos'!$B$553:$B$570,'Base-datos'!$D$553:$D$570)","v":{"$error":"#N/A"}},null,null,{"$f":"IF(OR(H$161=\"La actividad no cumple con el total de los criterios de No Daño Significativo\",I$161=\"El sector no cumple con las salvaguardas mínimas\"),\"\",IF(AND('Base-datos'!$B$750=\"Sí\",'Base-datos'!$B$751=\"\",'Base-datos'!$B$752=\"\"),IF(F165=\"La actividad sí contribuye sustancialmente a la sostenibilidad\",SUM(B165:D165),0),IF(AND('Base-datos'!$B$750=\"Sí\",'Base-datos'!$B$751=\"Sí\",'Base-datos'!$B$752=\"\"),IF(AND(F165=\"La actividad sí contribuye sustancialmente a la sostenibilidad\",G165=\"La actividad sí contribuye sustancialmente a la sostenibilidad\"),SUM(B165:D165),0),IF(AND('Base-datos'!$B$750=\"Sí\",'Base-datos'!$B$751=\"Sí\",'Base-datos'!$B$752=\"Sí\"),IF(AND(F165=\"La actividad sí contribuye sustancialmente a la sostenibilidad\",G165=\"La actividad sí contribuye sustancialmente a la sostenibilidad\",E165=\"La actividad sí contribuye sustancialmente a la sostenibilidad\"),SUM(B165:D165),0),IF(AND('Base-datos'!$B$750=\"\",'Base-datos'!$B$751=\"Sí\",'Base-datos'!$B$752=\"\"),IF(G165=\"La actividad sí contribuye sustancialmente a la sostenibilidad\",SUM(B165:D165),0),IF(AND('Base-datos'!$B$750=\"\",'Base-datos'!$B$751=\"\",'Base-datos'!$B$752=\"Sí\"),IF(E165=\"La actividad sí contribuye sustancialmente a la sostenibilidad\",SUM(B165:D165),0),IF(AND('Base-datos'!$B$750=\"\",'Base-datos'!$B$751=\"Sí\",'Base-datos'!$B$752=\"Sí\"),IF(AND(G165=\"La actividad sí contribuye sustancialmente a la sostenibilidad\",E165=\"La actividad sí contribuye sustancialmente a la sostenibilidad\"),SUM(B165:D165),0),IF(AND('Base-datos'!$B$750=\"Sí\",'Base-datos'!$B$751=\"\",'Base-datos'!$B$752=\"Sí\"),IF(AND(F165=\"La actividad sí contribuye sustancialmente a la sostenibilidad\",E165=\"La actividad sí contribuye sustancialmente a la sostenibilidad\"),SUM(B165:D165),0),\"Por definir\"))))))))","v":"Por definir"}]
[{"$f":"Transporte!$C20","v":"Seleccione"},{"$f":"IF(Transporte!$E20=Empresas!B$12,Transporte!$B20,\"\")","v":""},{"$f":"IF(Transporte!$E20=Empresas!C$12,Transporte!$B20,\"\")","v":""},{"$f":"IF(Transporte!$E20=Empresas!D$12,Transporte!$B20,\"\")","v":""},{"$f":"_xlfn.XLOOKUP(A166,'Base-datos'!$B$553:$B$570,'Base-datos'!$F$553:$F$570)","v":{"$error":"#N/A"}},{"$f":"_xlfn.XLOOKUP(A166,'Base-datos'!$B$553:$B$570,'Base-datos'!$C$553:$C$570)","v":{"$error":"#N/A"}},{"$f":"_xlfn.XLOOKUP(A166,'Base-datos'!$B$553:$B$570,'Base-datos'!$D$553:$D$570)","v":{"$error":"#N/A"}},null,null,{"$f":"IF(OR(H$161=\"La actividad no cumple con el total de los criterios de No Daño Significativo\",I$161=\"El sector no cumple con las salvaguardas mínimas\"),\"\",IF(AND('Base-datos'!$B$750=\"Sí\",'Base-datos'!$B$751=\"\",'Base-datos'!$B$752=\"\"),IF(F166=\"La actividad sí contribuye sustancialmente a la sostenibilidad\",SUM(B166:D166),0),IF(AND('Base-datos'!$B$750=\"Sí\",'Base-datos'!$B$751=\"Sí\",'Base-datos'!$B$752=\"\"),IF(AND(F166=\"La actividad sí contribuye sustancialmente a la sostenibilidad\",G166=\"La actividad sí contribuye sustancialmente a la sostenibilidad\"),SUM(B166:D166),0),IF(AND('Base-datos'!$B$750=\"Sí\",'Base-datos'!$B$751=\"Sí\",'Base-datos'!$B$752=\"Sí\"),IF(AND(F166=\"La actividad sí contribuye sustancialmente a la sostenibilidad\",G166=\"La actividad sí contribuye sustancialmente a la sostenibilidad\",E166=\"La actividad sí contribuye sustancialmente a la sostenibilidad\"),SUM(B166:D166),0),IF(AND('Base-datos'!$B$750=\"\",'Base-datos'!$B$751=\"Sí\",'Base-datos'!$B$752=\"\"),IF(G166=\"La actividad sí contribuye sustancialmente a la sostenibilidad\",SUM(B166:D166),0),IF(AND('Base-datos'!$B$750=\"\",'Base-datos'!$B$751=\"\",'Base-datos'!$B$752=\"Sí\"),IF(E166=\"La actividad sí contribuye sustancialmente a la sostenibilidad\",SUM(B166:D166),0),IF(AND('Base-datos'!$B$750=\"\",'Base-datos'!$B$751=\"Sí\",'Base-datos'!$B$752=\"Sí\"),IF(AND(G166=\"La actividad sí contribuye sustancialmente a la sostenibilidad\",E166=\"La actividad sí contribuye sustancialmente a la sostenibilidad\"),SUM(B166:D166),0),IF(AND('Base-datos'!$B$750=\"Sí\",'Base-datos'!$B$751=\"\",'Base-datos'!$B$752=\"Sí\"),IF(AND(F166=\"La actividad sí contribuye sustancialmente a la sostenibilidad\",E166=\"La actividad sí contribuye sustancialmente a la sostenibilidad\"),SUM(B166:D166),0),\"Por definir\"))))))))","v":"Por definir"}]
[{"$f":"Transporte!$C22","v":"Seleccione"},{"$f":"IF(Transporte!$E22=Empresas!B$12,Transporte!$B22,\"\")","v":""},{"$f":"IF(Transporte!$E22=Empresas!C$12,Transporte!$B22,\"\")","v":""},{"$f":"IF(Transporte!$E22=Empresas!D$12,Transporte!$B22,\"\")","v":""},{"$f":"_xlfn.XLOOKUP(A167,'Base-datos'!$B$553:$B$570,'Base-datos'!$F$553:$F$570)","v":{"$error":"#N/A"}},{"$f":"_xlfn.XLOOKUP(A167,'Base-datos'!$B$553:$B$570,'Base-datos'!$C$553:$C$570)","v":{"$error":"#N/A"}},{"$f":"_xlfn.XLOOKUP(A167,'Base-datos'!$B$553:$B$570,'Base-datos'!$D$553:$D$570)","v":{"$error":"#N/A"}},null,null,{"$f":"IF(OR(H$161=\"La actividad no cumple con el total de los criterios de No Daño Significativo\",I$161=\"El sector no cumple con las salvaguardas mínimas\"),\"\",IF(AND('Base-datos'!$B$750=\"Sí\",'Base-datos'!$B$751=\"\",'Base-datos'!$B$752=\"\"),IF(F167=\"La actividad sí contribuye sustancialmente a la sostenibilidad\",SUM(B167:D167),0),IF(AND('Base-datos'!$B$750=\"Sí\",'Base-datos'!$B$751=\"Sí\",'Base-datos'!$B$752=\"\"),IF(AND(F167=\"La actividad sí contribuye sustancialmente a la sostenibilidad\",G167=\"La actividad sí contribuye sustancialmente a la sostenibilidad\"),SUM(B167:D167),0),IF(AND('Base-datos'!$B$750=\"Sí\",'Base-datos'!$B$751=\"Sí\",'Base-datos'!$B$752=\"Sí\"),IF(AND(F167=\"La actividad sí contribuye sustancialmente a la sostenibilidad\",G167=\"La actividad sí contribuye sustancialmente a la sostenibilidad\",E167=\"La actividad sí contribuye sustancialmente a la sostenibilidad\"),SUM(B167:D167),0),IF(AND('Base-datos'!$B$750=\"\",'Base-datos'!$B$751=\"Sí\",'Base-datos'!$B$752=\"\"),IF(G167=\"La actividad sí contribuye sustancialmente a la sostenibilidad\",SUM(B167:D167),0),IF(AND('Base-datos'!$B$750=\"\",'Base-datos'!$B$751=\"\",'Base-datos'!$B$752=\"Sí\"),IF(E167=\"La actividad sí contribuye sustancialmente a la sostenibilidad\",SUM(B167:D167),0),IF(AND('Base-datos'!$B$750=\"\",'Base-datos'!$B$751=\"Sí\",'Base-datos'!$B$752=\"Sí\"),IF(AND(G167=\"La actividad sí contribuye sustancialmente a la sostenibilidad\",E167=\"La actividad sí contribuye sustancialmente a la sostenibilidad\"),SUM(B167:D167),0),IF(AND('Base-datos'!$B$750=\"Sí\",'Base-datos'!$B$751=\"\",'Base-datos'!$B$752=\"Sí\"),IF(AND(F167=\"La actividad sí contribuye sustancialmente a la sostenibilidad\",E167=\"La actividad sí contribuye sustancialmente a la sostenibilidad\"),SUM(B167:D167),0),\"Por definir\"))))))))","v":"Por definir"}]
[{"$f":"Transporte!$C24","v":"Seleccione"},{"$f":"IF(Transporte!$E24=Empresas!B$12,Transporte!$B24,\"\")","v":""},{"$f":"IF(Transporte!$E24=Empresas!C$12,Transporte!$B24,\"\")","v":""},{"$f":"IF(Transporte!$E24=Empresas!D$12,Transporte!$B24,\"\")","v":""},{"$f":"_xlfn.XLOOKUP(A168,'Base-datos'!$B$553:$B$570,'Base-datos'!$F$553:$F$570)","v":{"$error":"#N/A"}},{"$f":"_xlfn.XLOOKUP(A168,'Base-datos'!$B$553:$B$570,'Base-datos'!$C$553:$C$570)","v":{"$error":"#N/A"}},{"$f":"_xlfn.XLOOKUP(A168,'Base-datos'!$B$553:$B$570,'Base-datos'!$D$553:$D$570)","v":{"$error":"#N/A"}},null,null,{"$f":"IF(OR(H$161=\"La actividad no cumple con el total de los criterios de No Daño Significativo\",I$161=\"El sector no cumple con las salvaguardas mínimas\"),\"\",IF(AND('Base-datos'!$B$750=\"Sí\",'Base-datos'!$B$751=\"\",'Base-datos'!$B$752=\"\"),IF(F168=\"La actividad sí contribuye sustancialmente a la sostenibilidad\",SUM(B168:D168),0),IF(AND('Base-datos'!$B$750=\"Sí\",'Base-datos'!$B$751=\"Sí\",'Base-datos'!$B$752=\"\"),IF(AND(F168=\"La actividad sí contribuye sustancialmente a la sostenibilidad\",G168=\"La actividad sí contribuye sustancialmente a la sostenibilidad\"),SUM(B168:D168),0),IF(AND('Base-datos'!$B$750=\"Sí\",'Base-datos'!$B$751=\"Sí\",'Base-datos'!$B$752=\"Sí\"),IF(AND(F168=\"La actividad sí contribuye sustancialmente a la sostenibilidad\",G168=\"La actividad sí contribuye sustancialmente a la sostenibilidad\",E168=\"La actividad sí contribuye sustancialmente a la sostenibilidad\"),SUM(B168:D168),0),IF(AND('Base-datos'!$B$750=\"\",'Base-datos'!$B$751=\"Sí\",'Base-datos'!$B$752=\"\"),IF(G168=\"La actividad sí contribuye sustancialmente a la sostenibilidad\",SUM(B168:D168),0),IF(AND('Base-datos'!$B$750=\"\",'Base-datos'!$B$751=\"\",'Base-datos'!$B$752=\"Sí\"),IF(E168=\"La actividad sí contribuye sustancialmente a la sostenibilidad\",SUM(B168:D168),0),IF(AND('Base-datos'!$B$750=\"\",'Base-datos'!$B$751=\"Sí\",'Base-datos'!$B$752=\"Sí\"),IF(AND(G168=\"La actividad sí contribuye sustancialmente a la sostenibilidad\",E168=\"La actividad sí contribuye sustancialmente a la sostenibilidad\"),SUM(B168:D168),0),IF(AND('Base-datos'!$B$750=\"Sí\",'Base-datos'!$B$751=\"\",'Base-datos'!$B$752=\"Sí\"),IF(AND(F168=\"La actividad sí contribuye sustancialmente a la sostenibilidad\",E168=\"La actividad sí contribuye sustancialmente a la sostenibilidad\"),SUM(B168:D168),0),\"Por definir\"))))))))","v":"Por definir"}]
[{"$f":"Transporte!$C26","v":"Seleccione"},{"$f":"IF(Transporte!$E26=Empresas!B$12,Transporte!$B26,\"\")","v":""},{"$f":"IF(Transporte!$E26=Empresas!C$12,Transporte!$B26,\"\")","v":""},{"$f":"IF(Transporte!$E26=Empresas!D$12,Transporte!$B26,\"\")","v":""},{"$f":"_xlfn.XLOOKUP(A169,'Base-datos'!$B$553:$B$570,'Base-datos'!$F$553:$F$570)","v":{"$error":"#N/A"}},{"$f":"_xlfn.XLOOKUP(A169,'Base-datos'!$B$553:$B$570,'Base-datos'!$C$553:$C$570)","v":{"$error":"#N/A"}},{"$f":"_xlfn.XLOOKUP(A169,'Base-datos'!$B$553:$B$570,'Base-datos'!$D$553:$D$570)","v":{"$error":"#N/A"}},null,null,{"$f":"IF(OR(H$161=\"La actividad no cumple con el total de los criterios de No Daño Significativo\",I$161=\"El sector no cumple con las salvaguardas mínimas\"),\"\",IF(AND('Base-datos'!$B$750=\"Sí\",'Base-datos'!$B$751=\"\",'Base-datos'!$B$752=\"\"),IF(F169=\"La actividad sí contribuye sustancialmente a la sostenibilidad\",SUM(B169:D169),0),IF(AND('Base-datos'!$B$750=\"Sí\",'Base-datos'!$B$751=\"Sí\",'Base-datos'!$B$752=\"\"),IF(AND(F169=\"La actividad sí contribuye sustancialmente a la sostenibilidad\",G169=\"La actividad sí contribuye sustancialmente a la sostenibilidad\"),SUM(B169:D169),0),IF(AND('Base-datos'!$B$750=\"Sí\",'Base-datos'!$B$751=\"Sí\",'Base-datos'!$B$752=\"Sí\"),IF(AND(F169=\"La actividad sí contribuye sustancialmente a la sostenibilidad\",G169=\"La actividad sí contribuye sustancialmente a la sostenibilidad\",E169=\"La actividad sí contribuye sustancialmente a la sostenibilidad\"),SUM(B169:D169),0),IF(AND('Base-datos'!$B$750=\"\",'Base-datos'!$B$751=\"Sí\",'Base-datos'!$B$752=\"\"),IF(G169=\"La actividad sí contribuye sustancialmente a la sostenibilidad\",SUM(B169:D169),0),IF(AND('Base-datos'!$B$750=\"\",'Base-datos'!$B$751=\"\",'Base-datos'!$B$752=\"Sí\"),IF(E169=\"La actividad sí contribuye sustancialmente a la sostenibilidad\",SUM(B169:D169),0),IF(AND('Base-datos'!$B$750=\"\",'Base-datos'!$B$751=\"Sí\",'Base-datos'!$B$752=\"Sí\"),IF(AND(G169=\"La actividad sí contribuye sustancialmente a la sostenibilidad\",E169=\"La actividad sí contribuye sustancialmente a la sostenibilidad\"),SUM(B169:D169),0),IF(AND('Base-datos'!$B$750=\"Sí\",'Base-datos'!$B$751=\"\",'Base-datos'!$B$752=\"Sí\"),IF(AND(F169=\"La actividad sí contribuye sustancialmente a la sostenibilidad\",E169=\"La actividad sí contribuye sustancialmente a la sostenibilidad\"),SUM(B169:D169),0),\"Por definir\"))))))))","v":"Por definir"}]
[{"$f":"Transporte!$C28","v":"Seleccione"},{"$f":"IF(Transporte!$E28=Empresas!B$12,Transporte!$B28,\"\")","v":""},{"$f":"IF(Transporte!$E28=Empresas!C$12,Transporte!$B28,\"\")","v":""},{"$f":"IF(Transporte!$E28=Empresas!D$12,Transporte!$B28,\"\")","v":""},{"$f":"_xlfn.XLOOKUP(A170,'Base-datos'!$B$553:$B$570,'Base-datos'!$F$553:$F$570)","v":{"$error":"#N/A"}},{"$f":"_xlfn.XLOOKUP(A170,'Base-datos'!$B$553:$B$570,'Base-datos'!$C$553:$C$570)","v":{"$error":"#N/A"}},{"$f":"_xlfn.XLOOKUP(A170,'Base-datos'!$B$553:$B$570,'Base-datos'!$D$553:$D$570)","v":{"$error":"#N/A"}},null,null,{"$f":"IF(OR(H$161=\"La actividad no cumple con el total de los criterios de No Daño Significativo\",I$161=\"El sector no cumple con las salvaguardas mínimas\"),\"\",IF(AND('Base-datos'!$B$750=\"Sí\",'Base-datos'!$B$751=\"\",'Base-datos'!$B$752=\"\"),IF(F170=\"La actividad sí contribuye sustancialmente a la sostenibilidad\",SUM(B170:D170),0),IF(AND('Base-datos'!$B$750=\"Sí\",'Base-datos'!$B$751=\"Sí\",'Base-datos'!$B$752=\"\"),IF(AND(F170=\"La actividad sí contribuye sustancialmente a la sostenibilidad\",G170=\"La actividad sí contribuye sustancialmente a la sostenibilidad\"),SUM(B170:D170),0),IF(AND('Base-datos'!$B$750=\"Sí\",'Base-datos'!$B$751=\"Sí\",'Base-datos'!$B$752=\"Sí\"),IF(AND(F170=\"La actividad sí contribuye sustancialmente a la sostenibilidad\",G170=\"La actividad sí contribuye sustancialmente a la sostenibilidad\",E170=\"La actividad sí contribuye sustancialmente a la sostenibilidad\"),SUM(B170:D170),0),IF(AND('Base-datos'!$B$750=\"\",'Base-datos'!$B$751=\"Sí\",'Base-datos'!$B$752=\"\"),IF(G170=\"La actividad sí contribuye sustancialmente a la sostenibilidad\",SUM(B170:D170),0),IF(AND('Base-datos'!$B$750=\"\",'Base-datos'!$B$751=\"\",'Base-datos'!$B$752=\"Sí\"),IF(E170=\"La actividad sí contribuye sustancialmente a la sostenibilidad\",SUM(B170:D170),0),IF(AND('Base-datos'!$B$750=\"\",'Base-datos'!$B$751=\"Sí\",'Base-datos'!$B$752=\"Sí\"),IF(AND(G170=\"La actividad sí contribuye sustancialmente a la sostenibilidad\",E170=\"La actividad sí contribuye sustancialmente a la sostenibilidad\"),SUM(B170:D170),0),IF(AND('Base-datos'!$B$750=\"Sí\",'Base-datos'!$B$751=\"\",'Base-datos'!$B$752=\"Sí\"),IF(AND(F170=\"La actividad sí contribuye sustancialmente a la sostenibilidad\",E170=\"La actividad sí contribuye sustancialmente a la sostenibilidad\"),SUM(B170:D170),0),\"Por definir\"))))))))","v":"Por definir"}]
[{"$f":"Transporte!$C30","v":"Seleccione"},{"$f":"IF(Transporte!$E30=Empresas!B$12,Transporte!$B30,\"\")","v":""},{"$f":"IF(Transporte!$E30=Empresas!C$12,Transporte!$B30,\"\")","v":""},{"$f":"IF(Transporte!$E30=Empresas!D$12,Transporte!$B30,\"\")","v":""},{"$f":"_xlfn.XLOOKUP(A171,'Base-datos'!$B$553:$B$570,'Base-datos'!$F$553:$F$570)","v":{"$error":"#N/A"}},{"$f":"_xlfn.XLOOKUP(A171,'Base-datos'!$B$553:$B$570,'Base-datos'!$C$553:$C$570)","v":{"$error":"#N/A"}},{"$f":"_xlfn.XLOOKUP(A171,'Base-datos'!$B$553:$B$570,'Base-datos'!$D$553:$D$570)","v":{"$error":"#N/A"}},null,null,{"$f":"IF(OR(H$161=\"La actividad no cumple con el total de los criterios de No Daño Significativo\",I$161=\"El sector no cumple con las salvaguardas mínimas\"),\"\",IF(AND('Base-datos'!$B$750=\"Sí\",'Base-datos'!$B$751=\"\",'Base-datos'!$B$752=\"\"),IF(F171=\"La actividad sí contribuye sustancialmente a la sostenibilidad\",SUM(B171:D171),0),IF(AND('Base-datos'!$B$750=\"Sí\",'Base-datos'!$B$751=\"Sí\",'Base-datos'!$B$752=\"\"),IF(AND(F171=\"La actividad sí contribuye sustancialmente a la sostenibilidad\",G171=\"La actividad sí contribuye sustancialmente a la sostenibilidad\"),SUM(B171:D171),0),IF(AND('Base-datos'!$B$750=\"Sí\",'Base-datos'!$B$751=\"Sí\",'Base-datos'!$B$752=\"Sí\"),IF(AND(F171=\"La actividad sí contribuye sustancialmente a la sostenibilidad\",G171=\"La actividad sí contribuye sustancialmente a la sostenibilidad\",E171=\"La actividad sí contribuye sustancialmente a la sostenibilidad\"),SUM(B171:D171),0),IF(AND('Base-datos'!$B$750=\"\",'Base-datos'!$B$751=\"Sí\",'Base-datos'!$B$752=\"\"),IF(G171=\"La actividad sí contribuye sustancialmente a la sostenibilidad\",SUM(B171:D171),0),IF(AND('Base-datos'!$B$750=\"\",'Base-datos'!$B$751=\"\",'Base-datos'!$B$752=\"Sí\"),IF(E171=\"La actividad sí contribuye sustancialmente a la sostenibilidad\",SUM(B171:D171),0),IF(AND('Base-datos'!$B$750=\"\",'Base-datos'!$B$751=\"Sí\",'Base-datos'!$B$752=\"Sí\"),IF(AND(G171=\"La actividad sí contribuye sustancialmente a la sostenibilidad\",E171=\"La actividad sí contribuye sustancialmente a la sostenibilidad\"),SUM(B171:D171),0),IF(AND('Base-datos'!$B$750=\"Sí\",'Base-datos'!$B$751=\"\",'Base-datos'!$B$752=\"Sí\"),IF(AND(F171=\"La actividad sí contribuye sustancialmente a la sostenibilidad\",E171=\"La actividad sí contribuye sustancialmente a la sostenibilidad\"),SUM(B171:D171),0),\"Por definir\"))))))))","v":"Por definir"}]
[{"$f":"Transporte!$C32","v":"Seleccione"},{"$f":"IF(Transporte!$E32=Empresas!B$12,Transporte!$B32,\"\")","v":""},{"$f":"IF(Transporte!$E32=Empresas!C$12,Transporte!$B32,\"\")","v":""},{"$f":"IF(Transporte!$E32=Empresas!D$12,Transporte!$B32,\"\")","v":""},{"$f":"_xlfn.XLOOKUP(A172,'Base-datos'!$B$553:$B$570,'Base-datos'!$F$553:$F$570)","v":{"$error":"#N/A"}},{"$f":"_xlfn.XLOOKUP(A172,'Base-datos'!$B$553:$B$570,'Base-datos'!$C$553:$C$570)","v":{"$error":"#N/A"}},{"$f":"_xlfn.XLOOKUP(A172,'Base-datos'!$B$553:$B$570,'Base-datos'!$D$553:$D$570)","v":{"$error":"#N/A"}},null,null,{"$f":"IF(OR(H$161=\"La actividad no cumple con el total de los criterios de No Daño Significativo\",I$161=\"El sector no cumple con las salvaguardas mínimas\"),\"\",IF(AND('Base-datos'!$B$750=\"Sí\",'Base-datos'!$B$751=\"\",'Base-datos'!$B$752=\"\"),IF(F172=\"La actividad sí contribuye sustancialmente a la sostenibilidad\",SUM(B172:D172),0),IF(AND('Base-datos'!$B$750=\"Sí\",'Base-datos'!$B$751=\"Sí\",'Base-datos'!$B$752=\"\"),IF(AND(F172=\"La actividad sí contribuye sustancialmente a la sostenibilidad\",G172=\"La actividad sí contribuye sustancialmente a la sostenibilidad\"),SUM(B172:D172),0),IF(AND('Base-datos'!$B$750=\"Sí\",'Base-datos'!$B$751=\"Sí\",'Base-datos'!$B$752=\"Sí\"),IF(AND(F172=\"La actividad sí contribuye sustancialmente a la sostenibilidad\",G172=\"La actividad sí contribuye sustancialmente a la sostenibilidad\",E172=\"La actividad sí contribuye sustancialmente a la sostenibilidad\"),SUM(B172:D172),0),IF(AND('Base-datos'!$B$750=\"\",'Base-datos'!$B$751=\"Sí\",'Base-datos'!$B$752=\"\"),IF(G172=\"La actividad sí contribuye sustancialmente a la sostenibilidad\",SUM(B172:D172),0),IF(AND('Base-datos'!$B$750=\"\",'Base-datos'!$B$751=\"\",'Base-datos'!$B$752=\"Sí\"),IF(E172=\"La actividad sí contribuye sustancialmente a la sostenibilidad\",SUM(B172:D172),0),IF(AND('Base-datos'!$B$750=\"\",'Base-datos'!$B$751=\"Sí\",'Base-datos'!$B$752=\"Sí\"),IF(AND(G172=\"La actividad sí contribuye sustancialmente a la sostenibilidad\",E172=\"La actividad sí contribuye sustancialmente a la sostenibilidad\"),SUM(B172:D172),0),IF(AND('Base-datos'!$B$750=\"Sí\",'Base-datos'!$B$751=\"\",'Base-datos'!$B$752=\"Sí\"),IF(AND(F172=\"La actividad sí contribuye sustancialmente a la sostenibilidad\",E172=\"La actividad sí contribuye sustancialmente a la sostenibilidad\"),SUM(B172:D172),0),\"Por definir\"))))))))","v":"Por definir"}]
[{"$f":"Transporte!$C34","v":"Seleccione"},{"$f":"IF(Transporte!$E34=Empresas!B$12,Transporte!$B34,\"\")","v":""},{"$f":"IF(Transporte!$E34=Empresas!C$12,Transporte!$B34,\"\")","v":""},{"$f":"IF(Transporte!$E34=Empresas!D$12,Transporte!$B34,\"\")","v":""},{"$f":"_xlfn.XLOOKUP(A173,'Base-datos'!$B$553:$B$570,'Base-datos'!$F$553:$F$570)","v":{"$error":"#N/A"}},{"$f":"_xlfn.XLOOKUP(A173,'Base-datos'!$B$553:$B$570,'Base-datos'!$C$553:$C$570)","v":{"$error":"#N/A"}},{"$f":"_xlfn.XLOOKUP(A173,'Base-datos'!$B$553:$B$570,'Base-datos'!$D$553:$D$570)","v":{"$error":"#N/A"}},null,null,{"$f":"IF(OR(H$161=\"La actividad no cumple con el total de los criterios de No Daño Significativo\",I$161=\"El sector no cumple con las salvaguardas mínimas\"),\"\",IF(AND('Base-datos'!$B$750=\"Sí\",'Base-datos'!$B$751=\"\",'Base-datos'!$B$752=\"\"),IF(F173=\"La actividad sí contribuye sustancialmente a la sostenibilidad\",SUM(B173:D173),0),IF(AND('Base-datos'!$B$750=\"Sí\",'Base-datos'!$B$751=\"Sí\",'Base-datos'!$B$752=\"\"),IF(AND(F173=\"La actividad sí contribuye sustancialmente a la sostenibilidad\",G173=\"La actividad sí contribuye sustancialmente a la sostenibilidad\"),SUM(B173:D173),0),IF(AND('Base-datos'!$B$750=\"Sí\",'Base-datos'!$B$751=\"Sí\",'Base-datos'!$B$752=\"Sí\"),IF(AND(F173=\"La actividad sí contribuye sustancialmente a la sostenibilidad\",G173=\"La actividad sí contribuye sustancialmente a la sostenibilidad\",E173=\"La actividad sí contribuye sustancialmente a la sostenibilidad\"),SUM(B173:D173),0),IF(AND('Base-datos'!$B$750=\"\",'Base-datos'!$B$751=\"Sí\",'Base-datos'!$B$752=\"\"),IF(G173=\"La actividad sí contribuye sustancialmente a la sostenibilidad\",SUM(B173:D173),0),IF(AND('Base-datos'!$B$750=\"\",'Base-datos'!$B$751=\"\",'Base-datos'!$B$752=\"Sí\"),IF(E173=\"La actividad sí contribuye sustancialmente a la sostenibilidad\",SUM(B173:D173),0),IF(AND('Base-datos'!$B$750=\"\",'Base-datos'!$B$751=\"Sí\",'Base-datos'!$B$752=\"Sí\"),IF(AND(G173=\"La actividad sí contribuye sustancialmente a la sostenibilidad\",E173=\"La actividad sí contribuye sustancialmente a la sostenibilidad\"),SUM(B173:D173),0),IF(AND('Base-datos'!$B$750=\"Sí\",'Base-datos'!$B$751=\"\",'Base-datos'!$B$752=\"Sí\"),IF(AND(F173=\"La actividad sí contribuye sustancialmente a la sostenibilidad\",E173=\"La actividad sí contribuye sustancialmente a la sostenibilidad\"),SUM(B173:D173),0),\"Por definir\"))))))))","v":"Por definir"}]
[{"$f":"Transporte!$C36","v":"Seleccione"},{"$f":"IF(Transporte!$E36=Empresas!B$12,Transporte!$B36,\"\")","v":""},{"$f":"IF(Transporte!$E36=Empresas!C$12,Transporte!$B36,\"\")","v":""},{"$f":"IF(Transporte!$E36=Empresas!D$12,Transporte!$B36,\"\")","v":""},{"$f":"_xlfn.XLOOKUP(A174,'Base-datos'!$B$553:$B$570,'Base-datos'!$F$553:$F$570)","v":{"$error":"#N/A"}},{"$f":"_xlfn.XLOOKUP(A174,'Base-datos'!$B$553:$B$570,'Base-datos'!$C$553:$C$570)","v":{"$error":"#N/A"}},{"$f":"_xlfn.XLOOKUP(A174,'Base-datos'!$B$553:$B$570,'Base-datos'!$D$553:$D$570)","v":{"$error":"#N/A"}},null,null,{"$f":"IF(OR(H$161=\"La actividad no cumple con el total de los criterios de No Daño Significativo\",I$161=\"El sector no cumple con las salvaguardas mínimas\"),\"\",IF(AND('Base-datos'!$B$750=\"Sí\",'Base-datos'!$B$751=\"\",'Base-datos'!$B$752=\"\"),IF(F174=\"La actividad sí contribuye sustancialmente a la sostenibilidad\",SUM(B174:D174),0),IF(AND('Base-datos'!$B$750=\"Sí\",'Base-datos'!$B$751=\"Sí\",'Base-datos'!$B$752=\"\"),IF(AND(F174=\"La actividad sí contribuye sustancialmente a la sostenibilidad\",G174=\"La actividad sí contribuye sustancialmente a la sostenibilidad\"),SUM(B174:D174),0),IF(AND('Base-datos'!$B$750=\"Sí\",'Base-datos'!$B$751=\"Sí\",'Base-datos'!$B$752=\"Sí\"),IF(AND(F174=\"La actividad sí contribuye sustancialmente a la sostenibilidad\",G174=\"La actividad sí contribuye sustancialmente a la sostenibilidad\",E174=\"La actividad sí contribuye sustancialmente a la sostenibilidad\"),SUM(B174:D174),0),IF(AND('Base-datos'!$B$750=\"\",'Base-datos'!$B$751=\"Sí\",'Base-datos'!$B$752=\"\"),IF(G174=\"La actividad sí contribuye sustancialmente a la sostenibilidad\",SUM(B174:D174),0),IF(AND('Base-datos'!$B$750=\"\",'Base-datos'!$B$751=\"\",'Base-datos'!$B$752=\"Sí\"),IF(E174=\"La actividad sí contribuye sustancialmente a la sostenibilidad\",SUM(B174:D174),0),IF(AND('Base-datos'!$B$750=\"\",'Base-datos'!$B$751=\"Sí\",'Base-datos'!$B$752=\"Sí\"),IF(AND(G174=\"La actividad sí contribuye sustancialmente a la sostenibilidad\",E174=\"La actividad sí contribuye sustancialmente a la sostenibilidad\"),SUM(B174:D174),0),IF(AND('Base-datos'!$B$750=\"Sí\",'Base-datos'!$B$751=\"\",'Base-datos'!$B$752=\"Sí\"),IF(AND(F174=\"La actividad sí contribuye sustancialmente a la sostenibilidad\",E174=\"La actividad sí contribuye sustancialmente a la sostenibilidad\"),SUM(B174:D174),0),\"Por definir\"))))))))","v":"Por definir"}]
[{"$f":"Transporte!$C38","v":"Seleccione"},{"$f":"IF(Transporte!$E38=Empresas!B$12,Transporte!$B38,\"\")","v":""},{"$f":"IF(Transporte!$E38=Empresas!C$12,Transporte!$B38,\"\")","v":""},{"$f":"IF(Transporte!$E38=Empresas!D$12,Transporte!$B38,\"\")","v":""},{"$f":"_xlfn.XLOOKUP(A175,'Base-datos'!$B$553:$B$570,'Base-datos'!$F$553:$F$570)","v":{"$error":"#N/A"}},{"$f":"_xlfn.XLOOKUP(A175,'Base-datos'!$B$553:$B$570,'Base-datos'!$C$553:$C$570)","v":{"$error":"#N/A"}},{"$f":"_xlfn.XLOOKUP(A175,'Base-datos'!$B$553:$B$570,'Base-datos'!$D$553:$D$570)","v":{"$error":"#N/A"}},null,null,{"$f":"IF(OR(H$161=\"La actividad no cumple con el total de los criterios de No Daño Significativo\",I$161=\"El sector no cumple con las salvaguardas mínimas\"),\"\",IF(AND('Base-datos'!$B$750=\"Sí\",'Base-datos'!$B$751=\"\",'Base-datos'!$B$752=\"\"),IF(F175=\"La actividad sí contribuye sustancialmente a la sostenibilidad\",SUM(B175:D175),0),IF(AND('Base-datos'!$B$750=\"Sí\",'Base-datos'!$B$751=\"Sí\",'Base-datos'!$B$752=\"\"),IF(AND(F175=\"La actividad sí contribuye sustancialmente a la sostenibilidad\",G175=\"La actividad sí contribuye sustancialmente a la sostenibilidad\"),SUM(B175:D175),0),IF(AND('Base-datos'!$B$750=\"Sí\",'Base-datos'!$B$751=\"Sí\",'Base-datos'!$B$752=\"Sí\"),IF(AND(F175=\"La actividad sí contribuye sustancialmente a la sostenibilidad\",G175=\"La actividad sí contribuye sustancialmente a la sostenibilidad\",E175=\"La actividad sí contribuye sustancialmente a la sostenibilidad\"),SUM(B175:D175),0),IF(AND('Base-datos'!$B$750=\"\",'Base-datos'!$B$751=\"Sí\",'Base-datos'!$B$752=\"\"),IF(G175=\"La actividad sí contribuye sustancialmente a la sostenibilidad\",SUM(B175:D175),0),IF(AND('Base-datos'!$B$750=\"\",'Base-datos'!$B$751=\"\",'Base-datos'!$B$752=\"Sí\"),IF(E175=\"La actividad sí contribuye sustancialmente a la sostenibilidad\",SUM(B175:D175),0),IF(AND('Base-datos'!$B$750=\"\",'Base-datos'!$B$751=\"Sí\",'Base-datos'!$B$752=\"Sí\"),IF(AND(G175=\"La actividad sí contribuye sustancialmente a la sostenibilidad\",E175=\"La actividad sí contribuye sustancialmente a la sostenibilidad\"),SUM(B175:D175),0),IF(AND('Base-datos'!$B$750=\"Sí\",'Base-datos'!$B$751=\"\",'Base-datos'!$B$752=\"Sí\"),IF(AND(F175=\"La actividad sí contribuye sustancialmente a la sostenibilidad\",E175=\"La actividad sí contribuye sustancialmente a la sostenibilidad\"),SUM(B175:D175),0),\"Por definir\"))))))))","v":"Por definir"}]
[{"$f":"Transporte!$C40","v":"Seleccione"},{"$f":"IF(Transporte!$E40=Empresas!B$12,Transporte!$B40,\"\")","v":""},{"$f":"IF(Transporte!$E40=Empresas!C$12,Transporte!$B40,\"\")","v":""},{"$f":"IF(Transporte!$E40=Empresas!D$12,Transporte!$B40,\"\")","v":""},{"$f":"_xlfn.XLOOKUP(A176,'Base-datos'!$B$553:$B$570,'Base-datos'!$F$553:$F$570)","v":{"$error":"#N/A"}},{"$f":"_xlfn.XLOOKUP(A176,'Base-datos'!$B$553:$B$570,'Base-datos'!$C$553:$C$570)","v":{"$error":"#N/A"}},{"$f":"_xlfn.XLOOKUP(A176,'Base-datos'!$B$553:$B$570,'Base-datos'!$D$553:$D$570)","v":{"$error":"#N/A"}},null,null,{"$f":"IF(OR(H$161=\"La actividad no cumple con el total de los criterios de No Daño Significativo\",I$161=\"El sector no cumple con las salvaguardas mínimas\"),\"\",IF(AND('Base-datos'!$B$750=\"Sí\",'Base-datos'!$B$751=\"\",'Base-datos'!$B$752=\"\"),IF(F176=\"La actividad sí contribuye sustancialmente a la sostenibilidad\",SUM(B176:D176),0),IF(AND('Base-datos'!$B$750=\"Sí\",'Base-datos'!$B$751=\"Sí\",'Base-datos'!$B$752=\"\"),IF(AND(F176=\"La actividad sí contribuye sustancialmente a la sostenibilidad\",G176=\"La actividad sí contribuye sustancialmente a la sostenibilidad\"),SUM(B176:D176),0),IF(AND('Base-datos'!$B$750=\"Sí\",'Base-datos'!$B$751=\"Sí\",'Base-datos'!$B$752=\"Sí\"),IF(AND(F176=\"La actividad sí contribuye sustancialmente a la sostenibilidad\",G176=\"La actividad sí contribuye sustancialmente a la sostenibilidad\",E176=\"La actividad sí contribuye sustancialmente a la sostenibilidad\"),SUM(B176:D176),0),IF(AND('Base-datos'!$B$750=\"\",'Base-datos'!$B$751=\"Sí\",'Base-datos'!$B$752=\"\"),IF(G176=\"La actividad sí contribuye sustancialmente a la sostenibilidad\",SUM(B176:D176),0),IF(AND('Base-datos'!$B$750=\"\",'Base-datos'!$B$751=\"\",'Base-datos'!$B$752=\"Sí\"),IF(E176=\"La actividad sí contribuye sustancialmente a la sostenibilidad\",SUM(B176:D176),0),IF(AND('Base-datos'!$B$750=\"\",'Base-datos'!$B$751=\"Sí\",'Base-datos'!$B$752=\"Sí\"),IF(AND(G176=\"La actividad sí contribuye sustancialmente a la sostenibilidad\",E176=\"La actividad sí contribuye sustancialmente a la sostenibilidad\"),SUM(B176:D176),0),IF(AND('Base-datos'!$B$750=\"Sí\",'Base-datos'!$B$751=\"\",'Base-datos'!$B$752=\"Sí\"),IF(AND(F176=\"La actividad sí contribuye sustancialmente a la sostenibilidad\",E176=\"La actividad sí contribuye sustancialmente a la sostenibilidad\"),SUM(B176:D176),0),\"Por definir\"))))))))","v":"Por definir"}]
[{"$f":"Transporte!$C42","v":"Seleccione"},{"$f":"IF(Transporte!$E42=Empresas!B$12,Transporte!$B42,\"\")","v":""},{"$f":"IF(Transporte!$E42=Empresas!C$12,Transporte!$B42,\"\")","v":""},{"$f":"IF(Transporte!$E42=Empresas!D$12,Transporte!$B42,\"\")","v":""},{"$f":"_xlfn.XLOOKUP(A177,'Base-datos'!$B$553:$B$570,'Base-datos'!$F$553:$F$570)","v":{"$error":"#N/A"}},{"$f":"_xlfn.XLOOKUP(A177,'Base-datos'!$B$553:$B$570,'Base-datos'!$C$553:$C$570)","v":{"$error":"#N/A"}},{"$f":"_xlfn.XLOOKUP(A177,'Base-datos'!$B$553:$B$570,'Base-datos'!$D$553:$D$570)","v":{"$error":"#N/A"}},null,null,{"$f":"IF(OR(H$161=\"La actividad no cumple con el total de los criterios de No Daño Significativo\",I$161=\"El sector no cumple con las salvaguardas mínimas\"),\"\",IF(AND('Base-datos'!$B$750=\"Sí\",'Base-datos'!$B$751=\"\",'Base-datos'!$B$752=\"\"),IF(F177=\"La actividad sí contribuye sustancialmente a la sostenibilidad\",SUM(B177:D177),0),IF(AND('Base-datos'!$B$750=\"Sí\",'Base-datos'!$B$751=\"Sí\",'Base-datos'!$B$752=\"\"),IF(AND(F177=\"La actividad sí contribuye sustancialmente a la sostenibilidad\",G177=\"La actividad sí contribuye sustancialmente a la sostenibilidad\"),SUM(B177:D177),0),IF(AND('Base-datos'!$B$750=\"Sí\",'Base-datos'!$B$751=\"Sí\",'Base-datos'!$B$752=\"Sí\"),IF(AND(F177=\"La actividad sí contribuye sustancialmente a la sostenibilidad\",G177=\"La actividad sí contribuye sustancialmente a la sostenibilidad\",E177=\"La actividad sí contribuye sustancialmente a la sostenibilidad\"),SUM(B177:D177),0),IF(AND('Base-datos'!$B$750=\"\",'Base-datos'!$B$751=\"Sí\",'Base-datos'!$B$752=\"\"),IF(G177=\"La actividad sí contribuye sustancialmente a la sostenibilidad\",SUM(B177:D177),0),IF(AND('Base-datos'!$B$750=\"\",'Base-datos'!$B$751=\"\",'Base-datos'!$B$752=\"Sí\"),IF(E177=\"La actividad sí contribuye sustancialmente a la sostenibilidad\",SUM(B177:D177),0),IF(AND('Base-datos'!$B$750=\"\",'Base-datos'!$B$751=\"Sí\",'Base-datos'!$B$752=\"Sí\"),IF(AND(G177=\"La actividad sí contribuye sustancialmente a la sostenibilidad\",E177=\"La actividad sí contribuye sustancialmente a la sostenibilidad\"),SUM(B177:D177),0),IF(AND('Base-datos'!$B$750=\"Sí\",'Base-datos'!$B$751=\"\",'Base-datos'!$B$752=\"Sí\"),IF(AND(F177=\"La actividad sí contribuye sustancialmente a la sostenibilidad\",E177=\"La actividad sí contribuye sustancialmente a la sostenibilidad\"),SUM(B177:D177),0),\"Por definir\"))))))))","v":"Por definir"}]
[{"$f":"Transporte!$C44","v":"Seleccione"},{"$f":"IF(Transporte!$E44=Empresas!B$12,Transporte!$B44,\"\")","v":""},{"$f":"IF(Transporte!$E44=Empresas!C$12,Transporte!$B44,\"\")","v":""},{"$f":"IF(Transporte!$E44=Empresas!D$12,Transporte!$B44,\"\")","v":""},{"$f":"_xlfn.XLOOKUP(A178,'Base-datos'!$B$553:$B$570,'Base-datos'!$F$553:$F$570)","v":{"$error":"#N/A"}},{"$f":"_xlfn.XLOOKUP(A178,'Base-datos'!$B$553:$B$570,'Base-datos'!$C$553:$C$570)","v":{"$error":"#N/A"}},{"$f":"_xlfn.XLOOKUP(A178,'Base-datos'!$B$553:$B$570,'Base-datos'!$D$553:$D$570)","v":{"$error":"#N/A"}},null,null,{"$f":"IF(OR(H$161=\"La actividad no cumple con el total de los criterios de No Daño Significativo\",I$161=\"El sector no cumple con las salvaguardas mínimas\"),\"\",IF(AND('Base-datos'!$B$750=\"Sí\",'Base-datos'!$B$751=\"\",'Base-datos'!$B$752=\"\"),IF(F178=\"La actividad sí contribuye sustancialmente a la sostenibilidad\",SUM(B178:D178),0),IF(AND('Base-datos'!$B$750=\"Sí\",'Base-datos'!$B$751=\"Sí\",'Base-datos'!$B$752=\"\"),IF(AND(F178=\"La actividad sí contribuye sustancialmente a la sostenibilidad\",G178=\"La actividad sí contribuye sustancialmente a la sostenibilidad\"),SUM(B178:D178),0),IF(AND('Base-datos'!$B$750=\"Sí\",'Base-datos'!$B$751=\"Sí\",'Base-datos'!$B$752=\"Sí\"),IF(AND(F178=\"La actividad sí contribuye sustancialmente a la sostenibilidad\",G178=\"La actividad sí contribuye sustancialmente a la sostenibilidad\",E178=\"La actividad sí contribuye sustancialmente a la sostenibilidad\"),SUM(B178:D178),0),IF(AND('Base-datos'!$B$750=\"\",'Base-datos'!$B$751=\"Sí\",'Base-datos'!$B$752=\"\"),IF(G178=\"La actividad sí contribuye sustancialmente a la sostenibilidad\",SUM(B178:D178),0),IF(AND('Base-datos'!$B$750=\"\",'Base-datos'!$B$751=\"\",'Base-datos'!$B$752=\"Sí\"),IF(E178=\"La actividad sí contribuye sustancialmente a la sostenibilidad\",SUM(B178:D178),0),IF(AND('Base-datos'!$B$750=\"\",'Base-datos'!$B$751=\"Sí\",'Base-datos'!$B$752=\"Sí\"),IF(AND(G178=\"La actividad sí contribuye sustancialmente a la sostenibilidad\",E178=\"La actividad sí contribuye sustancialmente a la sostenibilidad\"),SUM(B178:D178),0),IF(AND('Base-datos'!$B$750=\"Sí\",'Base-datos'!$B$751=\"\",'Base-datos'!$B$752=\"Sí\"),IF(AND(F178=\"La actividad sí contribuye sustancialmente a la sostenibilidad\",E178=\"La actividad sí contribuye sustancialmente a la sostenibilidad\"),SUM(B178:D178),0),\"Por definir\"))))))))","v":"Por definir"}]
[{"$f":"Transporte!$C46","v":"Seleccione"},{"$f":"IF(Transporte!$E46=Empresas!B$12,Transporte!$B46,\"\")","v":""},{"$f":"IF(Transporte!$E46=Empresas!C$12,Transporte!$B46,\"\")","v":""},{"$f":"IF(Transporte!$E46=Empresas!D$12,Transporte!$B46,\"\")","v":""},{"$f":"_xlfn.XLOOKUP(A179,'Base-datos'!$B$553:$B$570,'Base-datos'!$F$553:$F$570)","v":{"$error":"#N/A"}},{"$f":"_xlfn.XLOOKUP(A179,'Base-datos'!$B$553:$B$570,'Base-datos'!$C$553:$C$570)","v":{"$error":"#N/A"}},{"$f":"_xlfn.XLOOKUP(A179,'Base-datos'!$B$553:$B$570,'Base-datos'!$D$553:$D$570)","v":{"$error":"#N/A"}},null,null,{"$f":"IF(OR(H$161=\"La actividad no cumple con el total de los criterios de No Daño Significativo\",I$161=\"El sector no cumple con las salvaguardas mínimas\"),\"\",IF(AND('Base-datos'!$B$750=\"Sí\",'Base-datos'!$B$751=\"\",'Base-datos'!$B$752=\"\"),IF(F179=\"La actividad sí contribuye sustancialmente a la sostenibilidad\",SUM(B179:D179),0),IF(AND('Base-datos'!$B$750=\"Sí\",'Base-datos'!$B$751=\"Sí\",'Base-datos'!$B$752=\"\"),IF(AND(F179=\"La actividad sí contribuye sustancialmente a la sostenibilidad\",G179=\"La actividad sí contribuye sustancialmente a la sostenibilidad\"),SUM(B179:D179),0),IF(AND('Base-datos'!$B$750=\"Sí\",'Base-datos'!$B$751=\"Sí\",'Base-datos'!$B$752=\"Sí\"),IF(AND(F179=\"La actividad sí contribuye sustancialmente a la sostenibilidad\",G179=\"La actividad sí contribuye sustancialmente a la sostenibilidad\",E179=\"La actividad sí contribuye sustancialmente a la sostenibilidad\"),SUM(B179:D179),0),IF(AND('Base-datos'!$B$750=\"\",'Base-datos'!$B$751=\"Sí\",'Base-datos'!$B$752=\"\"),IF(G179=\"La actividad sí contribuye sustancialmente a la sostenibilidad\",SUM(B179:D179),0),IF(AND('Base-datos'!$B$750=\"\",'Base-datos'!$B$751=\"\",'Base-datos'!$B$752=\"Sí\"),IF(E179=\"La actividad sí contribuye sustancialmente a la sostenibilidad\",SUM(B179:D179),0),IF(AND('Base-datos'!$B$750=\"\",'Base-datos'!$B$751=\"Sí\",'Base-datos'!$B$752=\"Sí\"),IF(AND(G179=\"La actividad sí contribuye sustancialmente a la sostenibilidad\",E179=\"La actividad sí contribuye sustancialmente a la sostenibilidad\"),SUM(B179:D179),0),IF(AND('Base-datos'!$B$750=\"Sí\",'Base-datos'!$B$751=\"\",'Base-datos'!$B$752=\"Sí\"),IF(AND(F179=\"La actividad sí contribuye sustancialmente a la sostenibilidad\",E179=\"La actividad sí contribuye sustancialmente a la sostenibilidad\"),SUM(B179:D179),0),\"Por definir\"))))))))","v":"Por definir"}]
[{"$f":"Transporte!$C48","v":"Seleccione"},{"$f":"IF(Transporte!$E48=Empresas!B$12,Transporte!$B48,\"\")","v":""},{"$f":"IF(Transporte!$E48=Empresas!C$12,Transporte!$B48,\"\")","v":""},{"$f":"IF(Transporte!$E48=Empresas!D$12,Transporte!$B48,\"\")","v":""},{"$f":"_xlfn.XLOOKUP(A180,'Base-datos'!$B$553:$B$570,'Base-datos'!$F$553:$F$570)","v":{"$error":"#N/A"}},{"$f":"_xlfn.XLOOKUP(A180,'Base-datos'!$B$553:$B$570,'Base-datos'!$C$553:$C$570)","v":{"$error":"#N/A"}},{"$f":"_xlfn.XLOOKUP(A180,'Base-datos'!$B$553:$B$570,'Base-datos'!$D$553:$D$570)","v":{"$error":"#N/A"}},null,null,{"$f":"IF(OR(H$161=\"La actividad no cumple con el total de los criterios de No Daño Significativo\",I$161=\"El sector no cumple con las salvaguardas mínimas\"),\"\",IF(AND('Base-datos'!$B$750=\"Sí\",'Base-datos'!$B$751=\"\",'Base-datos'!$B$752=\"\"),IF(F180=\"La actividad sí contribuye sustancialmente a la sostenibilidad\",SUM(B180:D180),0),IF(AND('Base-datos'!$B$750=\"Sí\",'Base-datos'!$B$751=\"Sí\",'Base-datos'!$B$752=\"\"),IF(AND(F180=\"La actividad sí contribuye sustancialmente a la sostenibilidad\",G180=\"La actividad sí contribuye sustancialmente a la sostenibilidad\"),SUM(B180:D180),0),IF(AND('Base-datos'!$B$750=\"Sí\",'Base-datos'!$B$751=\"Sí\",'Base-datos'!$B$752=\"Sí\"),IF(AND(F180=\"La actividad sí contribuye sustancialmente a la sostenibilidad\",G180=\"La actividad sí contribuye sustancialmente a la sostenibilidad\",E180=\"La actividad sí contribuye sustancialmente a la sostenibilidad\"),SUM(B180:D180),0),IF(AND('Base-datos'!$B$750=\"\",'Base-datos'!$B$751=\"Sí\",'Base-datos'!$B$752=\"\"),IF(G180=\"La actividad sí contribuye sustancialmente a la sostenibilidad\",SUM(B180:D180),0),IF(AND('Base-datos'!$B$750=\"\",'Base-datos'!$B$751=\"\",'Base-datos'!$B$752=\"Sí\"),IF(E180=\"La actividad sí contribuye sustancialmente a la sostenibilidad\",SUM(B180:D180),0),IF(AND('Base-datos'!$B$750=\"\",'Base-datos'!$B$751=\"Sí\",'Base-datos'!$B$752=\"Sí\"),IF(AND(G180=\"La actividad sí contribuye sustancialmente a la sostenibilidad\",E180=\"La actividad sí contribuye sustancialmente a la sostenibilidad\"),SUM(B180:D180),0),IF(AND('Base-datos'!$B$750=\"Sí\",'Base-datos'!$B$751=\"\",'Base-datos'!$B$752=\"Sí\"),IF(AND(F180=\"La actividad sí contribuye sustancialmente a la sostenibilidad\",E180=\"La actividad sí contribuye sustancialmente a la sostenibilidad\"),SUM(B180:D180),0),\"Por definir\"))))))))","v":"Por definir"}]
["Residuos",null,null,null,null,null,null,null,null,{"$f":"SUM(IF(FREQUENCY(MATCH(A182:A201, A182:A201, 0), MATCH(A182:A201, A182:A201, 0)) > 0, IF(NOT(ISERROR(J182:J201)), J182:J201, 0)))","v":0}]
[{"$f":"Residuos!$C10","v":"Seleccione"},{"$f":"IF(Residuos!$E10=Empresas!B$12,Residuos!$B10,\"\")","v":""},{"$f":"IF(Residuos!$E10=Empresas!C$12,Residuos!$B10,\"\")","v":""},{"$f":"IF(Residuos!$E10=Empresas!D$12,Residuos!$B10,\"\")","v":""},{"$f":"_xlfn.XLOOKUP(A182,'Base-datos'!$B$571:$B$580,'Base-datos'!$F$571:$F$580)","v":{"$error":"#N/A"}},{"$f":"_xlfn.XLOOKUP(A182,'Base-datos'!$B$571:$B$580,'Base-datos'!$C$571:$C$580)","v":{"$error":"#N/A"}},{"$f":"_xlfn.XLOOKUP(A182,'Base-datos'!$B$571:$B$580,'Base-datos'!$D$571:$D$580)","v":{"$error":"#N/A"}},{"$f":"IF(COUNTIF('Residuos-NDS'!G9:G63,\"No\")>0,\"La actividad no cumple con el total de los criterios de NDS\",\"La actividad cumple con los criterios de No Daño Significativo\")","v":"La actividad cumple con los criterios de No Daño Significativo"},{"$f":"IF(OR('Salvaguardas mínimas'!$G$10=\"Seleccione\",'Salvaguardas mínimas'!$G$13=\"Seleccione\",'Salvaguardas mínimas'!$G$16=\"Seleccione\",'Salvaguardas mínimas'!$G$7=\"Seleccione\"),\"No se han respondido todas las preguntas\",IF(OR('Salvaguardas mínimas'!$G$10=\"No\",'Salvaguardas mínimas'!$G$13=\"No\",'Salvaguardas mínimas'!$G$16=\"No\",'Salvaguardas mínimas'!$G$7=\"No\"),\"El sector no cumple con las salvaguardas mínimas\",\"La actividad sí cumple con las salvaguardas mínimas\"))","v":"No se han respondido todas las preguntas"},{"$f":"IF(OR(H$182=\"La actividad no cumple con el total de los criterios de No Daño Significativo\",I$182=\"El sector no cumple con las salvaguardas mínimas\"),\"\",IF(AND('Base-datos'!$B$755=\"Sí\",'Base-datos'!$B$756=\"\",'Base-datos'!$B$757=\"\"),IF(F182=\"La actividad sí contribuye sustancialmente a la sostenibilidad\",SUM(B182:D182),0),IF(AND('Base-datos'!$B$755=\"Sí\",'Base-datos'!$B$756=\"Sí\",'Base-datos'!$B$757=\"\"),IF(AND(F182=\"La actividad sí contribuye sustancialmente a la sostenibilidad\",G182=\"La actividad sí contribuye sustancialmente a la sostenibilidad\"),SUM(B182:D182),0),IF(AND('Base-datos'!$B$755=\"Sí\",'Base-datos'!$B$756=\"Sí\",'Base-datos'!$B$757=\"Sí\"),IF(AND(F182=\"La actividad sí contribuye sustancialmente a la sostenibilidad\",G182=\"La actividad sí contribuye sustancialmente a la sostenibilidad\",E182=\"La actividad sí contribuye sustancialmente a la sostenibilidad\"),SUM(B182:D182),0),IF(AND('Base-datos'!$B$755=\"\",'Base-datos'!$B$756=\"Sí\",'Base-datos'!$B$757=\"\"),IF(G182=\"La actividad sí contribuye sustancialmente a la sostenibilidad\",SUM(B182:D182),0),IF(AND('Base-datos'!$B$755=\"\",'Base-datos'!$B$756=\"\",'Base-datos'!$B$757=\"Sí\"),IF(E182=\"La actividad sí contribuye sustancialmente a la sostenibilidad\",SUM(B182:D182),0),IF(AND('Base-datos'!$B$755=\"\",'Base-datos'!$B$756=\"Sí\",'Base-datos'!$B$757=\"Sí\"),IF(AND(G182=\"La actividad sí contribuye sustancialmente a la sostenibilidad\",E182=\"La actividad sí contribuye sustancialmente a la sostenibilidad\"),SUM(B182:D182),0),IF(AND('Base-datos'!$B$755=\"Sí\",'Base-datos'!$B$756=\"\",'Base-datos'!$B$757=\"Sí\"),IF(AND(F182=\"La actividad sí contribuye sustancialmente a la sostenibilidad\",E182=\"La actividad sí contribuye sustancialmente a la sostenibilidad\"),SUM(B182:D182),0),\"Por definir\"))))))))","v":"Por definir"}]
[{"$f":"Residuos!$C12","v":"Seleccione"},{"$f":"IF(Residuos!$E12=Empresas!B$12,Residuos!$B12,\"\")","v":""},{"$f":"IF(Residuos!$E12=Empresas!C$12,Residuos!$B12,\"\")","v":""},{"$f":"IF(Residuos!$E12=Empresas!D$12,Residuos!$B12,\"\")","v":""},{"$f":"_xlfn.XLOOKUP(A183,'Base-datos'!$B$571:$B$580,'Base-datos'!$F$571:$F$580)","v":{"$error":"#N/A"}},{"$f":"_xlfn.XLOOKUP(A183,'Base-datos'!$B$571:$B$580,'Base-datos'!$C$571:$C$580)","v":{"$error":"#N/A"}},{"$f":"_xlfn.XLOOKUP(A183,'Base-datos'!$B$571:$B$580,'Base-datos'!$D$571:$D$580)","v":{"$error":"#N/A"}},null,null,{"$f":"IF(OR(H$182=\"La actividad no cumple con el total de los criterios de No Daño Significativo\",I$182=\"El sector no cumple con las salvaguardas mínimas\"),\"\",IF(AND('Base-datos'!$B$755=\"Sí\",'Base-datos'!$B$756=\"\",'Base-datos'!$B$757=\"\"),IF(F183=\"La actividad sí contribuye sustancialmente a la sostenibilidad\",SUM(B183:D183),0),IF(AND('Base-datos'!$B$755=\"Sí\",'Base-datos'!$B$756=\"Sí\",'Base-datos'!$B$757=\"\"),IF(AND(F183=\"La actividad sí contribuye sustancialmente a la sostenibilidad\",G183=\"La actividad sí contribuye sustancialmente a la sostenibilidad\"),SUM(B183:D183),0),IF(AND('Base-datos'!$B$755=\"Sí\",'Base-datos'!$B$756=\"Sí\",'Base-datos'!$B$757=\"Sí\"),IF(AND(F183=\"La actividad sí contribuye sustancialmente a la sostenibilidad\",G183=\"La actividad sí contribuye sustancialmente a la sostenibilidad\",E183=\"La actividad sí contribuye sustancialmente a la sostenibilidad\"),SUM(B183:D183),0),IF(AND('Base-datos'!$B$755=\"\",'Base-datos'!$B$756=\"Sí\",'Base-datos'!$B$757=\"\"),IF(G183=\"La actividad sí contribuye sustancialmente a la sostenibilidad\",SUM(B183:D183),0),IF(AND('Base-datos'!$B$755=\"\",'Base-datos'!$B$756=\"\",'Base-datos'!$B$757=\"Sí\"),IF(E183=\"La actividad sí contribuye sustancialmente a la sostenibilidad\",SUM(B183:D183),0),IF(AND('Base-datos'!$B$755=\"\",'Base-datos'!$B$756=\"Sí\",'Base-datos'!$B$757=\"Sí\"),IF(AND(G183=\"La actividad sí contribuye sustancialmente a la sostenibilidad\",E183=\"La actividad sí contribuye sustancialmente a la sostenibilidad\"),SUM(B183:D183),0),IF(AND('Base-datos'!$B$755=\"Sí\",'Base-datos'!$B$756=\"\",'Base-datos'!$B$757=\"Sí\"),IF(AND(F183=\"La actividad sí contribuye sustancialmente a la sostenibilidad\",E183=\"La actividad sí contribuye sustancialmente a la sostenibilidad\"),SUM(B183:D183),0),\"Por definir\"))))))))","v":"Por definir"}]
[{"$f":"Residuos!$C14","v":"Seleccione"},{"$f":"IF(Residuos!$E14=Empresas!B$12,Residuos!$B14,\"\")","v":""},{"$f":"IF(Residuos!$E14=Empresas!C$12,Residuos!$B14,\"\")","v":""},{"$f":"IF(Residuos!$E14=Empresas!D$12,Residuos!$B14,\"\")","v":""},{"$f":"_xlfn.XLOOKUP(A184,'Base-datos'!$B$571:$B$580,'Base-datos'!$F$571:$F$580)","v":{"$error":"#N/A"}},{"$f":"_xlfn.XLOOKUP(A184,'Base-datos'!$B$571:$B$580,'Base-datos'!$C$571:$C$580)","v":{"$error":"#N/A"}},{"$f":"_xlfn.XLOOKUP(A184,'Base-datos'!$B$571:$B$580,'Base-datos'!$D$571:$D$580)","v":{"$error":"#N/A"}},null,null,{"$f":"IF(OR(H$182=\"La actividad no cumple con el total de los criterios de No Daño Significativo\",I$182=\"El sector no cumple con las salvaguardas mínimas\"),\"\",IF(AND('Base-datos'!$B$755=\"Sí\",'Base-datos'!$B$756=\"\",'Base-datos'!$B$757=\"\"),IF(F184=\"La actividad sí contribuye sustancialmente a la sostenibilidad\",SUM(B184:D184),0),IF(AND('Base-datos'!$B$755=\"Sí\",'Base-datos'!$B$756=\"Sí\",'Base-datos'!$B$757=\"\"),IF(AND(F184=\"La actividad sí contribuye sustancialmente a la sostenibilidad\",G184=\"La actividad sí contribuye sustancialmente a la sostenibilidad\"),SUM(B184:D184),0),IF(AND('Base-datos'!$B$755=\"Sí\",'Base-datos'!$B$756=\"Sí\",'Base-datos'!$B$757=\"Sí\"),IF(AND(F184=\"La actividad sí contribuye sustancialmente a la sostenibilidad\",G184=\"La actividad sí contribuye sustancialmente a la sostenibilidad\",E184=\"La actividad sí contribuye sustancialmente a la sostenibilidad\"),SUM(B184:D184),0),IF(AND('Base-datos'!$B$755=\"\",'Base-datos'!$B$756=\"Sí\",'Base-datos'!$B$757=\"\"),IF(G184=\"La actividad sí contribuye sustancialmente a la sostenibilidad\",SUM(B184:D184),0),IF(AND('Base-datos'!$B$755=\"\",'Base-datos'!$B$756=\"\",'Base-datos'!$B$757=\"Sí\"),IF(E184=\"La actividad sí contribuye sustancialmente a la sostenibilidad\",SUM(B184:D184),0),IF(AND('Base-datos'!$B$755=\"\",'Base-datos'!$B$756=\"Sí\",'Base-datos'!$B$757=\"Sí\"),IF(AND(G184=\"La actividad sí contribuye sustancialmente a la sostenibilidad\",E184=\"La actividad sí contribuye sustancialmente a la sostenibilidad\"),SUM(B184:D184),0),IF(AND('Base-datos'!$B$755=\"Sí\",'Base-datos'!$B$756=\"\",'Base-datos'!$B$757=\"Sí\"),IF(AND(F184=\"La actividad sí contribuye sustancialmente a la sostenibilidad\",E184=\"La actividad sí contribuye sustancialmente a la sostenibilidad\"),SUM(B184:D184),0),\"Por definir\"))))))))","v":"Por definir"}]
[{"$f":"Residuos!$C16","v":"Seleccione"},{"$f":"IF(Residuos!$E16=Empresas!B$12,Residuos!$B16,\"\")","v":""},{"$f":"IF(Residuos!$E16=Empresas!C$12,Residuos!$B16,\"\")","v":""},{"$f":"IF(Residuos!$E16=Empresas!D$12,Residuos!$B16,\"\")","v":""},{"$f":"_xlfn.XLOOKUP(A185,'Base-datos'!$B$571:$B$580,'Base-datos'!$F$571:$F$580)","v":{"$error":"#N/A"}},{"$f":"_xlfn.XLOOKUP(A185,'Base-datos'!$B$571:$B$580,'Base-datos'!$C$571:$C$580)","v":{"$error":"#N/A"}},{"$f":"_xlfn.XLOOKUP(A185,'Base-datos'!$B$571:$B$580,'Base-datos'!$D$571:$D$580)","v":{"$error":"#N/A"}},null,null,{"$f":"IF(OR(H$182=\"La actividad no cumple con el total de los criterios de No Daño Significativo\",I$182=\"El sector no cumple con las salvaguardas mínimas\"),\"\",IF(AND('Base-datos'!$B$755=\"Sí\",'Base-datos'!$B$756=\"\",'Base-datos'!$B$757=\"\"),IF(F185=\"La actividad sí contribuye sustancialmente a la sostenibilidad\",SUM(B185:D185),0),IF(AND('Base-datos'!$B$755=\"Sí\",'Base-datos'!$B$756=\"Sí\",'Base-datos'!$B$757=\"\"),IF(AND(F185=\"La actividad sí contribuye sustancialmente a la sostenibilidad\",G185=\"La actividad sí contribuye sustancialmente a la sostenibilidad\"),SUM(B185:D185),0),IF(AND('Base-datos'!$B$755=\"Sí\",'Base-datos'!$B$756=\"Sí\",'Base-datos'!$B$757=\"Sí\"),IF(AND(F185=\"La actividad sí contribuye sustancialmente a la sostenibilidad\",G185=\"La actividad sí contribuye sustancialmente a la sostenibilidad\",E185=\"La actividad sí contribuye sustancialmente a la sostenibilidad\"),SUM(B185:D185),0),IF(AND('Base-datos'!$B$755=\"\",'Base-datos'!$B$756=\"Sí\",'Base-datos'!$B$757=\"\"),IF(G185=\"La actividad sí contribuye sustancialmente a la sostenibilidad\",SUM(B185:D185),0),IF(AND('Base-datos'!$B$755=\"\",'Base-datos'!$B$756=\"\",'Base-datos'!$B$757=\"Sí\"),IF(E185=\"La actividad sí contribuye sustancialmente a la sostenibilidad\",SUM(B185:D185),0),IF(AND('Base-datos'!$B$755=\"\",'Base-datos'!$B$756=\"Sí\",'Base-datos'!$B$757=\"Sí\"),IF(AND(G185=\"La actividad sí contribuye sustancialmente a la sostenibilidad\",E185=\"La actividad sí contribuye sustancialmente a la sostenibilidad\"),SUM(B185:D185),0),IF(AND('Base-datos'!$B$755=\"Sí\",'Base-datos'!$B$756=\"\",'Base-datos'!$B$757=\"Sí\"),IF(AND(F185=\"La actividad sí contribuye sustancialmente a la sostenibilidad\",E185=\"La actividad sí contribuye sustancialmente a la sostenibilidad\"),SUM(B185:D185),0),\"Por definir\"))))))))","v":"Por definir"}]
[{"$f":"Residuos!$C18","v":"Seleccione"},{"$f":"IF(Residuos!$E18=Empresas!B$12,Residuos!$B18,\"\")","v":""},{"$f":"IF(Residuos!$E18=Empresas!C$12,Residuos!$B18,\"\")","v":""},{"$f":"IF(Residuos!$E18=Empresas!D$12,Residuos!$B18,\"\")","v":""},{"$f":"_xlfn.XLOOKUP(A186,'Base-datos'!$B$571:$B$580,'Base-datos'!$F$571:$F$580)","v":{"$error":"#N/A"}},{"$f":"_xlfn.XLOOKUP(A186,'Base-datos'!$B$571:$B$580,'Base-datos'!$C$571:$C$580)","v":{"$error":"#N/A"}},{"$f":"_xlfn.XLOOKUP(A186,'Base-datos'!$B$571:$B$580,'Base-datos'!$D$571:$D$580)","v":{"$error":"#N/A"}},null,null,{"$f":"IF(OR(H$182=\"La actividad no cumple con el total de los criterios de No Daño Significativo\",I$182=\"El sector no cumple con las salvaguardas mínimas\"),\"\",IF(AND('Base-datos'!$B$755=\"Sí\",'Base-datos'!$B$756=\"\",'Base-datos'!$B$757=\"\"),IF(F186=\"La actividad sí contribuye sustancialmente a la sostenibilidad\",SUM(B186:D186),0),IF(AND('Base-datos'!$B$755=\"Sí\",'Base-datos'!$B$756=\"Sí\",'Base-datos'!$B$757=\"\"),IF(AND(F186=\"La actividad sí contribuye sustancialmente a la sostenibilidad\",G186=\"La actividad sí contribuye sustancialmente a la sostenibilidad\"),SUM(B186:D186),0),IF(AND('Base-datos'!$B$755=\"Sí\",'Base-datos'!$B$756=\"Sí\",'Base-datos'!$B$757=\"Sí\"),IF(AND(F186=\"La actividad sí contribuye sustancialmente a la sostenibilidad\",G186=\"La actividad sí contribuye sustancialmente a la sostenibilidad\",E186=\"La actividad sí contribuye sustancialmente a la sostenibilidad\"),SUM(B186:D186),0),IF(AND('Base-datos'!$B$755=\"\",'Base-datos'!$B$756=\"Sí\",'Base-datos'!$B$757=\"\"),IF(G186=\"La actividad sí contribuye sustancialmente a la sostenibilidad\",SUM(B186:D186),0),IF(AND('Base-datos'!$B$755=\"\",'Base-datos'!$B$756=\"\",'Base-datos'!$B$757=\"Sí\"),IF(E186=\"La actividad sí contribuye sustancialmente a la sostenibilidad\",SUM(B186:D186),0),IF(AND('Base-datos'!$B$755=\"\",'Base-datos'!$B$756=\"Sí\",'Base-datos'!$B$757=\"Sí\"),IF(AND(G186=\"La actividad sí contribuye sustancialmente a la sostenibilidad\",E186=\"La actividad sí contribuye sustancialmente a la sostenibilidad\"),SUM(B186:D186),0),IF(AND('Base-datos'!$B$755=\"Sí\",'Base-datos'!$B$756=\"\",'Base-datos'!$B$757=\"Sí\"),IF(AND(F186=\"La actividad sí contribuye sustancialmente a la sostenibilidad\",E186=\"La actividad sí contribuye sustancialmente a la sostenibilidad\"),SUM(B186:D186),0),\"Por definir\"))))))))","v":"Por definir"}]
[{"$f":"Residuos!$C20","v":"Seleccione"},{"$f":"IF(Residuos!$E20=Empresas!B$12,Residuos!$B20,\"\")","v":""},{"$f":"IF(Residuos!$E20=Empresas!C$12,Residuos!$B20,\"\")","v":""},{"$f":"IF(Residuos!$E20=Empresas!D$12,Residuos!$B20,\"\")","v":""},{"$f":"_xlfn.XLOOKUP(A187,'Base-datos'!$B$571:$B$580,'Base-datos'!$F$571:$F$580)","v":{"$error":"#N/A"}},{"$f":"_xlfn.XLOOKUP(A187,'Base-datos'!$B$571:$B$580,'Base-datos'!$C$571:$C$580)","v":{"$error":"#N/A"}},{"$f":"_xlfn.XLOOKUP(A187,'Base-datos'!$B$571:$B$580,'Base-datos'!$D$571:$D$580)","v":{"$error":"#N/A"}},null,null,{"$f":"IF(OR(H$182=\"La actividad no cumple con el total de los criterios de No Daño Significativo\",I$182=\"El sector no cumple con las salvaguardas mínimas\"),\"\",IF(AND('Base-datos'!$B$755=\"Sí\",'Base-datos'!$B$756=\"\",'Base-datos'!$B$757=\"\"),IF(F187=\"La actividad sí contribuye sustancialmente a la sostenibilidad\",SUM(B187:D187),0),IF(AND('Base-datos'!$B$755=\"Sí\",'Base-datos'!$B$756=\"Sí\",'Base-datos'!$B$757=\"\"),IF(AND(F187=\"La actividad sí contribuye sustancialmente a la sostenibilidad\",G187=\"La actividad sí contribuye sustancialmente a la sostenibilidad\"),SUM(B187:D187),0),IF(AND('Base-datos'!$B$755=\"Sí\",'Base-datos'!$B$756=\"Sí\",'Base-datos'!$B$757=\"Sí\"),IF(AND(F187=\"La actividad sí contribuye sustancialmente a la sostenibilidad\",G187=\"La actividad sí contribuye sustancialmente a la sostenibilidad\",E187=\"La actividad sí contribuye sustancialmente a la sostenibilidad\"),SUM(B187:D187),0),IF(AND('Base-datos'!$B$755=\"\",'Base-datos'!$B$756=\"Sí\",'Base-datos'!$B$757=\"\"),IF(G187=\"La actividad sí contribuye sustancialmente a la sostenibilidad\",SUM(B187:D187),0),IF(AND('Base-datos'!$B$755=\"\",'Base-datos'!$B$756=\"\",'Base-datos'!$B$757=\"Sí\"),IF(E187=\"La actividad sí contribuye sustancialmente a la sostenibilidad\",SUM(B187:D187),0),IF(AND('Base-datos'!$B$755=\"\",'Base-datos'!$B$756=\"Sí\",'Base-datos'!$B$757=\"Sí\"),IF(AND(G187=\"La actividad sí contribuye sustancialmente a la sostenibilidad\",E187=\"La actividad sí contribuye sustancialmente a la sostenibilidad\"),SUM(B187:D187),0),IF(AND('Base-datos'!$B$755=\"Sí\",'Base-datos'!$B$756=\"\",'Base-datos'!$B$757=\"Sí\"),IF(AND(F187=\"La actividad sí contribuye sustancialmente a la sostenibilidad\",E187=\"La actividad sí contribuye sustancialmente a la sostenibilidad\"),SUM(B187:D187),0),\"Por definir\"))))))))","v":"Por definir"}]
[{"$f":"Residuos!$C22","v":"Seleccione"},{"$f":"IF(Residuos!$E22=Empresas!B$12,Residuos!$B22,\"\")","v":""},{"$f":"IF(Residuos!$E22=Empresas!C$12,Residuos!$B22,\"\")","v":""},{"$f":"IF(Residuos!$E22=Empresas!D$12,Residuos!$B22,\"\")","v":""},{"$f":"_xlfn.XLOOKUP(A188,'Base-datos'!$B$571:$B$580,'Base-datos'!$F$571:$F$580)","v":{"$error":"#N/A"}},{"$f":"_xlfn.XLOOKUP(A188,'Base-datos'!$B$571:$B$580,'Base-datos'!$C$571:$C$580)","v":{"$error":"#N/A"}},{"$f":"_xlfn.XLOOKUP(A188,'Base-datos'!$B$571:$B$580,'Base-datos'!$D$571:$D$580)","v":{"$error":"#N/A"}},null,null,{"$f":"IF(OR(H$182=\"La actividad no cumple con el total de los criterios de No Daño Significativo\",I$182=\"El sector no cumple con las salvaguardas mínimas\"),\"\",IF(AND('Base-datos'!$B$755=\"Sí\",'Base-datos'!$B$756=\"\",'Base-datos'!$B$757=\"\"),IF(F188=\"La actividad sí contribuye sustancialmente a la sostenibilidad\",SUM(B188:D188),0),IF(AND('Base-datos'!$B$755=\"Sí\",'Base-datos'!$B$756=\"Sí\",'Base-datos'!$B$757=\"\"),IF(AND(F188=\"La actividad sí contribuye sustancialmente a la sostenibilidad\",G188=\"La actividad sí contribuye sustancialmente a la sostenibilidad\"),SUM(B188:D188),0),IF(AND('Base-datos'!$B$755=\"Sí\",'Base-datos'!$B$756=\"Sí\",'Base-datos'!$B$757=\"Sí\"),IF(AND(F188=\"La actividad sí contribuye sustancialmente a la sostenibilidad\",G188=\"La actividad sí contribuye sustancialmente a la sostenibilidad\",E188=\"La actividad sí contribuye sustancialmente a la sostenibilidad\"),SUM(B188:D188),0),IF(AND('Base-datos'!$B$755=\"\",'Base-datos'!$B$756=\"Sí\",'Base-datos'!$B$757=\"\"),IF(G188=\"La actividad sí contribuye sustancialmente a la sostenibilidad\",SUM(B188:D188),0),IF(AND('Base-datos'!$B$755=\"\",'Base-datos'!$B$756=\"\",'Base-datos'!$B$757=\"Sí\"),IF(E188=\"La actividad sí contribuye sustancialmente a la sostenibilidad\",SUM(B188:D188),0),IF(AND('Base-datos'!$B$755=\"\",'Base-datos'!$B$756=\"Sí\",'Base-datos'!$B$757=\"Sí\"),IF(AND(G188=\"La actividad sí contribuye sustancialmente a la sostenibilidad\",E188=\"La actividad sí contribuye sustancialmente a la sostenibilidad\"),SUM(B188:D188),0),IF(AND('Base-datos'!$B$755=\"Sí\",'Base-datos'!$B$756=\"\",'Base-datos'!$B$757=\"Sí\"),IF(AND(F188=\"La actividad sí contribuye sustancialmente a la sostenibilidad\",E188=\"La actividad sí contribuye sustancialmente a la sostenibilidad\"),SUM(B188:D188),0),\"Por definir\"))))))))","v":"Por definir"}]
[{"$f":"Residuos!$C24","v":"Seleccione"},{"$f":"IF(Residuos!$E24=Empresas!B$12,Residuos!$B24,\"\")","v":""},{"$f":"IF(Residuos!$E24=Empresas!C$12,Residuos!$B24,\"\")","v":""},{"$f":"IF(Residuos!$E24=Empresas!D$12,Residuos!$B24,\"\")","v":""},{"$f":"_xlfn.XLOOKUP(A189,'Base-datos'!$B$571:$B$580,'Base-datos'!$F$571:$F$580)","v":{"$error":"#N/A"}},{"$f":"_xlfn.XLOOKUP(A189,'Base-datos'!$B$571:$B$580,'Base-datos'!$C$571:$C$580)","v":{"$error":"#N/A"}},{"$f":"_xlfn.XLOOKUP(A189,'Base-datos'!$B$571:$B$580,'Base-datos'!$D$571:$D$580)","v":{"$error":"#N/A"}},null,null,{"$f":"IF(OR(H$182=\"La actividad no cumple con el total de los criterios de No Daño Significativo\",I$182=\"El sector no cumple con las salvaguardas mínimas\"),\"\",IF(AND('Base-datos'!$B$755=\"Sí\",'Base-datos'!$B$756=\"\",'Base-datos'!$B$757=\"\"),IF(F189=\"La actividad sí contribuye sustancialmente a la sostenibilidad\",SUM(B189:D189),0),IF(AND('Base-datos'!$B$755=\"Sí\",'Base-datos'!$B$756=\"Sí\",'Base-datos'!$B$757=\"\"),IF(AND(F189=\"La actividad sí contribuye sustancialmente a la sostenibilidad\",G189=\"La actividad sí contribuye sustancialmente a la sostenibilidad\"),SUM(B189:D189),0),IF(AND('Base-datos'!$B$755=\"Sí\",'Base-datos'!$B$756=\"Sí\",'Base-datos'!$B$757=\"Sí\"),IF(AND(F189=\"La actividad sí contribuye sustancialmente a la sostenibilidad\",G189=\"La actividad sí contribuye sustancialmente a la sostenibilidad\",E189=\"La actividad sí contribuye sustancialmente a la sostenibilidad\"),SUM(B189:D189),0),IF(AND('Base-datos'!$B$755=\"\",'Base-datos'!$B$756=\"Sí\",'Base-datos'!$B$757=\"\"),IF(G189=\"La actividad sí contribuye sustancialmente a la sostenibilidad\",SUM(B189:D189),0),IF(AND('Base-datos'!$B$755=\"\",'Base-datos'!$B$756=\"\",'Base-datos'!$B$757=\"Sí\"),IF(E189=\"La actividad sí contribuye sustancialmente a la sostenibilidad\",SUM(B189:D189),0),IF(AND('Base-datos'!$B$755=\"\",'Base-datos'!$B$756=\"Sí\",'Base-datos'!$B$757=\"Sí\"),IF(AND(G189=\"La actividad sí contribuye sustancialmente a la sostenibilidad\",E189=\"La actividad sí contribuye sustancialmente a la sostenibilidad\"),SUM(B189:D189),0),IF(AND('Base-datos'!$B$755=\"Sí\",'Base-datos'!$B$756=\"\",'Base-datos'!$B$757=\"Sí\"),IF(AND(F189=\"La actividad sí contribuye sustancialmente a la sostenibilidad\",E189=\"La actividad sí contribuye sustancialmente a la sostenibilidad\"),SUM(B189:D189),0),\"Por definir\"))))))))","v":"Por definir"}]
[{"$f":"Residuos!$C26","v":"Seleccione"},{"$f":"IF(Residuos!$E26=Empresas!B$12,Residuos!$B26,\"\")","v":""},{"$f":"IF(Residuos!$E26=Empresas!C$12,Residuos!$B26,\"\")","v":""},{"$f":"IF(Residuos!$E26=Empresas!D$12,Residuos!$B26,\"\")","v":""},{"$f":"_xlfn.XLOOKUP(A190,'Base-datos'!$B$571:$B$580,'Base-datos'!$F$571:$F$580)","v":{"$error":"#N/A"}},{"$f":"_xlfn.XLOOKUP(A190,'Base-datos'!$B$571:$B$580,'Base-datos'!$C$571:$C$580)","v":{"$error":"#N/A"}},{"$f":"_xlfn.XLOOKUP(A190,'Base-datos'!$B$571:$B$580,'Base-datos'!$D$571:$D$580)","v":{"$error":"#N/A"}},null,null,{"$f":"IF(OR(H$182=\"La actividad no cumple con el total de los criterios de No Daño Significativo\",I$182=\"El sector no cumple con las salvaguardas mínimas\"),\"\",IF(AND('Base-datos'!$B$755=\"Sí\",'Base-datos'!$B$756=\"\",'Base-datos'!$B$757=\"\"),IF(F190=\"La actividad sí contribuye sustancialmente a la sostenibilidad\",SUM(B190:D190),0),IF(AND('Base-datos'!$B$755=\"Sí\",'Base-datos'!$B$756=\"Sí\",'Base-datos'!$B$757=\"\"),IF(AND(F190=\"La actividad sí contribuye sustancialmente a la sostenibilidad\",G190=\"La actividad sí contribuye sustancialmente a la sostenibilidad\"),SUM(B190:D190),0),IF(AND('Base-datos'!$B$755=\"Sí\",'Base-datos'!$B$756=\"Sí\",'Base-datos'!$B$757=\"Sí\"),IF(AND(F190=\"La actividad sí contribuye sustancialmente a la sostenibilidad\",G190=\"La actividad sí contribuye sustancialmente a la sostenibilidad\",E190=\"La actividad sí contribuye sustancialmente a la sostenibilidad\"),SUM(B190:D190),0),IF(AND('Base-datos'!$B$755=\"\",'Base-datos'!$B$756=\"Sí\",'Base-datos'!$B$757=\"\"),IF(G190=\"La actividad sí contribuye sustancialmente a la sostenibilidad\",SUM(B190:D190),0),IF(AND('Base-datos'!$B$755=\"\",'Base-datos'!$B$756=\"\",'Base-datos'!$B$757=\"Sí\"),IF(E190=\"La actividad sí contribuye sustancialmente a la sostenibilidad\",SUM(B190:D190),0),IF(AND('Base-datos'!$B$755=\"\",'Base-datos'!$B$756=\"Sí\",'Base-datos'!$B$757=\"Sí\"),IF(AND(G190=\"La actividad sí contribuye sustancialmente a la sostenibilidad\",E190=\"La actividad sí contribuye sustancialmente a la sostenibilidad\"),SUM(B190:D190),0),IF(AND('Base-datos'!$B$755=\"Sí\",'Base-datos'!$B$756=\"\",'Base-datos'!$B$757=\"Sí\"),IF(AND(F190=\"La actividad sí contribuye sustancialmente a la sostenibilidad\",E190=\"La actividad sí contribuye sustancialmente a la sostenibilidad\"),SUM(B190:D190),0),\"Por definir\"))))))))","v":"Por definir"}]
[{"$f":"Residuos!$C28","v":"Seleccione"},{"$f":"IF(Residuos!$E28=Empresas!B$12,Residuos!$B28,\"\")","v":""},{"$f":"IF(Residuos!$E28=Empresas!C$12,Residuos!$B28,\"\")","v":""},{"$f":"IF(Residuos!$E28=Empresas!D$12,Residuos!$B28,\"\")","v":""},{"$f":"_xlfn.XLOOKUP(A191,'Base-datos'!$B$571:$B$580,'Base-datos'!$F$571:$F$580)","v":{"$error":"#N/A"}},{"$f":"_xlfn.XLOOKUP(A191,'Base-datos'!$B$571:$B$580,'Base-datos'!$C$571:$C$580)","v":{"$error":"#N/A"}},{"$f":"_xlfn.XLOOKUP(A191,'Base-datos'!$B$571:$B$580,'Base-datos'!$D$571:$D$580)","v":{"$error":"#N/A"}},null,null,{"$f":"IF(OR(H$182=\"La actividad no cumple con el total de los criterios de No Daño Significativo\",I$182=\"El sector no cumple con las salvaguardas mínimas\"),\"\",IF(AND('Base-datos'!$B$755=\"Sí\",'Base-datos'!$B$756=\"\",'Base-datos'!$B$757=\"\"),IF(F191=\"La actividad sí contribuye sustancialmente a la sostenibilidad\",SUM(B191:D191),0),IF(AND('Base-datos'!$B$755=\"Sí\",'Base-datos'!$B$756=\"Sí\",'Base-datos'!$B$757=\"\"),IF(AND(F191=\"La actividad sí contribuye sustancialmente a la sostenibilidad\",G191=\"La actividad sí contribuye sustancialmente a la sostenibilidad\"),SUM(B191:D191),0),IF(AND('Base-datos'!$B$755=\"Sí\",'Base-datos'!$B$756=\"Sí\",'Base-datos'!$B$757=\"Sí\"),IF(AND(F191=\"La actividad sí contribuye sustancialmente a la sostenibilidad\",G191=\"La actividad sí contribuye sustancialmente a la sostenibilidad\",E191=\"La actividad sí contribuye sustancialmente a la sostenibilidad\"),SUM(B191:D191),0),IF(AND('Base-datos'!$B$755=\"\",'Base-datos'!$B$756=\"Sí\",'Base-datos'!$B$757=\"\"),IF(G191=\"La actividad sí contribuye sustancialmente a la sostenibilidad\",SUM(B191:D191),0),IF(AND('Base-datos'!$B$755=\"\",'Base-datos'!$B$756=\"\",'Base-datos'!$B$757=\"Sí\"),IF(E191=\"La actividad sí contribuye sustancialmente a la sostenibilidad\",SUM(B191:D191),0),IF(AND('Base-datos'!$B$755=\"\",'Base-datos'!$B$756=\"Sí\",'Base-datos'!$B$757=\"Sí\"),IF(AND(G191=\"La actividad sí contribuye sustancialmente a la sostenibilidad\",E191=\"La actividad sí contribuye sustancialmente a la sostenibilidad\"),SUM(B191:D191),0),IF(AND('Base-datos'!$B$755=\"Sí\",'Base-datos'!$B$756=\"\",'Base-datos'!$B$757=\"Sí\"),IF(AND(F191=\"La actividad sí contribuye sustancialmente a la sostenibilidad\",E191=\"La actividad sí contribuye sustancialmente a la sostenibilidad\"),SUM(B191:D191),0),\"Por definir\"))))))))","v":"Por definir"}]
[{"$f":"Residuos!$C30","v":"Seleccione"},{"$f":"IF(Residuos!$E30=Empresas!B$12,Residuos!$B30,\"\")","v":""},{"$f":"IF(Residuos!$E30=Empresas!C$12,Residuos!$B30,\"\")","v":""},{"$f":"IF(Residuos!$E30=Empresas!D$12,Residuos!$B30,\"\")","v":""},{"$f":"_xlfn.XLOOKUP(A192,'Base-datos'!$B$571:$B$580,'Base-datos'!$F$571:$F$580)","v":{"$error":"#N/A"}},{"$f":"_xlfn.XLOOKUP(A192,'Base-datos'!$B$571:$B$580,'Base-datos'!$C$571:$C$580)","v":{"$error":"#N/A"}},{"$f":"_xlfn.XLOOKUP(A192,'Base-datos'!$B$571:$B$580,'Base-datos'!$D$571:$D$580)","v":{"$error":"#N/A"}},null,null,{"$f":"IF(OR(H$182=\"La actividad no cumple con el total de los criterios de No Daño Significativo\",I$182=\"El sector no cumple con las salvaguardas mínimas\"),\"\",IF(AND('Base-datos'!$B$755=\"Sí\",'Base-datos'!$B$756=\"\",'Base-datos'!$B$757=\"\"),IF(F192=\"La actividad sí contribuye sustancialmente a la sostenibilidad\",SUM(B192:D192),0),IF(AND('Base-datos'!$B$755=\"Sí\",'Base-datos'!$B$756=\"Sí\",'Base-datos'!$B$757=\"\"),IF(AND(F192=\"La actividad sí contribuye sustancialmente a la sostenibilidad\",G192=\"La actividad sí contribuye sustancialmente a la sostenibilidad\"),SUM(B192:D192),0),IF(AND('Base-datos'!$B$755=\"Sí\",'Base-datos'!$B$756=\"Sí\",'Base-datos'!$B$757=\"Sí\"),IF(AND(F192=\"La actividad sí contribuye sustancialmente a la sostenibilidad\",G192=\"La actividad sí contribuye sustancialmente a la sostenibilidad\",E192=\"La actividad sí contribuye sustancialmente a la sostenibilidad\"),SUM(B192:D192),0),IF(AND('Base-datos'!$B$755=\"\",'Base-datos'!$B$756=\"Sí\",'Base-datos'!$B$757=\"\"),IF(G192=\"La actividad sí contribuye sustancialmente a la sostenibilidad\",SUM(B192:D192),0),IF(AND('Base-datos'!$B$755=\"\",'Base-datos'!$B$756=\"\",'Base-datos'!$B$757=\"Sí\"),IF(E192=\"La actividad sí contribuye sustancialmente a la sostenibilidad\",SUM(B192:D192),0),IF(AND('Base-datos'!$B$755=\"\",'Base-datos'!$B$756=\"Sí\",'Base-datos'!$B$757=\"Sí\"),IF(AND(G192=\"La actividad sí contribuye sustancialmente a la sostenibilidad\",E192=\"La actividad sí contribuye sustancialmente a la sostenibilidad\"),SUM(B192:D192),0),IF(AND('Base-datos'!$B$755=\"Sí\",'Base-datos'!$B$756=\"\",'Base-datos'!$B$757=\"Sí\"),IF(AND(F192=\"La actividad sí contribuye sustancialmente a la sostenibilidad\",E192=\"La actividad sí contribuye sustancialmente a la sostenibilidad\"),SUM(B192:D192),0),\"Por definir\"))))))))","v":"Por definir"}]
[{"$f":"Residuos!$C32","v":"Seleccione"},{"$f":"IF(Residuos!$E32=Empresas!B$12,Residuos!$B32,\"\")","v":""},{"$f":"IF(Residuos!$E32=Empresas!C$12,Residuos!$B32,\"\")","v":""},{"$f":"IF(Residuos!$E32=Empresas!D$12,Residuos!$B32,\"\")","v":""},{"$f":"_xlfn.XLOOKUP(A193,'Base-datos'!$B$571:$B$580,'Base-datos'!$F$571:$F$580)","v":{"$error":"#N/A"}},{"$f":"_xlfn.XLOOKUP(A193,'Base-datos'!$B$571:$B$580,'Base-datos'!$C$571:$C$580)","v":{"$error":"#N/A"}},{"$f":"_xlfn.XLOOKUP(A193,'Base-datos'!$B$571:$B$580,'Base-datos'!$D$571:$D$580)","v":{"$error":"#N/A"}},null,null,{"$f":"IF(OR(H$182=\"La actividad no cumple con el total de los criterios de No Daño Significativo\",I$182=\"El sector no cumple con las salvaguardas mínimas\"),\"\",IF(AND('Base-datos'!$B$755=\"Sí\",'Base-datos'!$B$756=\"\",'Base-datos'!$B$757=\"\"),IF(F193=\"La actividad sí contribuye sustancialmente a la sostenibilidad\",SUM(B193:D193),0),IF(AND('Base-datos'!$B$755=\"Sí\",'Base-datos'!$B$756=\"Sí\",'Base-datos'!$B$757=\"\"),IF(AND(F193=\"La actividad sí contribuye sustancialmente a la sostenibilidad\",G193=\"La actividad sí contribuye sustancialmente a la sostenibilidad\"),SUM(B193:D193),0),IF(AND('Base-datos'!$B$755=\"Sí\",'Base-datos'!$B$756=\"Sí\",'Base-datos'!$B$757=\"Sí\"),IF(AND(F193=\"La actividad sí contribuye sustancialmente a la sostenibilidad\",G193=\"La actividad sí contribuye sustancialmente a la sostenibilidad\",E193=\"La actividad sí contribuye sustancialmente a la sostenibilidad\"),SUM(B193:D193),0),IF(AND('Base-datos'!$B$755=\"\",'Base-datos'!$B$756=\"Sí\",'Base-datos'!$B$757=\"\"),IF(G193=\"La actividad sí contribuye sustancialmente a la sostenibilidad\",SUM(B193:D193),0),IF(AND('Base-datos'!$B$755=\"\",'Base-datos'!$B$756=\"\",'Base-datos'!$B$757=\"Sí\"),IF(E193=\"La actividad sí contribuye sustancialmente a la sostenibilidad\",SUM(B193:D193),0),IF(AND('Base-datos'!$B$755=\"\",'Base-datos'!$B$756=\"Sí\",'Base-datos'!$B$757=\"Sí\"),IF(AND(G193=\"La actividad sí contribuye sustancialmente a la sostenibilidad\",E193=\"La actividad sí contribuye sustancialmente a la sostenibilidad\"),SUM(B193:D193),0),IF(AND('Base-datos'!$B$755=\"Sí\",'Base-datos'!$B$756=\"\",'Base-datos'!$B$757=\"Sí\"),IF(AND(F193=\"La actividad sí contribuye sustancialmente a la sostenibilidad\",E193=\"La actividad sí contribuye sustancialmente a la sostenibilidad\"),SUM(B193:D193),0),\"Por definir\"))))))))","v":"Por definir"}]
[{"$f":"Residuos!$C34","v":"Seleccione"},{"$f":"IF(Residuos!$E34=Empresas!B$12,Residuos!$B34,\"\")","v":""},{"$f":"IF(Residuos!$E34=Empresas!C$12,Residuos!$B34,\"\")","v":""},{"$f":"IF(Residuos!$E34=Empresas!D$12,Residuos!$B34,\"\")","v":""},{"$f":"_xlfn.XLOOKUP(A194,'Base-datos'!$B$571:$B$580,'Base-datos'!$F$571:$F$580)","v":{"$error":"#N/A"}},{"$f":"_xlfn.XLOOKUP(A194,'Base-datos'!$B$571:$B$580,'Base-datos'!$C$571:$C$580)","v":{"$error":"#N/A"}},{"$f":"_xlfn.XLOOKUP(A194,'Base-datos'!$B$571:$B$580,'Base-datos'!$D$571:$D$580)","v":{"$error":"#N/A"}},null,null,{"$f":"IF(OR(H$182=\"La actividad no cumple con el total de los criterios de No Daño Significativo\",I$182=\"El sector no cumple con las salvaguardas mínimas\"),\"\",IF(AND('Base-datos'!$B$755=\"Sí\",'Base-datos'!$B$756=\"\",'Base-datos'!$B$757=\"\"),IF(F194=\"La actividad sí contribuye sustancialmente a la sostenibilidad\",SUM(B194:D194),0),IF(AND('Base-datos'!$B$755=\"Sí\",'Base-datos'!$B$756=\"Sí\",'Base-datos'!$B$757=\"\"),IF(AND(F194=\"La actividad sí contribuye sustancialmente a la sostenibilidad\",G194=\"La actividad sí contribuye sustancialmente a la sostenibilidad\"),SUM(B194:D194),0),IF(AND('Base-datos'!$B$755=\"Sí\",'Base-datos'!$B$756=\"Sí\",'Base-datos'!$B$757=\"Sí\"),IF(AND(F194=\"La actividad sí contribuye sustancialmente a la sostenibilidad\",G194=\"La actividad sí contribuye sustancialmente a la sostenibilidad\",E194=\"La actividad sí contribuye sustancialmente a la sostenibilidad\"),SUM(B194:D194),0),IF(AND('Base-datos'!$B$755=\"\",'Base-datos'!$B$756=\"Sí\",'Base-datos'!$B$757=\"\"),IF(G194=\"La actividad sí contribuye sustancialmente a la sostenibilidad\",SUM(B194:D194),0),IF(AND('Base-datos'!$B$755=\"\",'Base-datos'!$B$756=\"\",'Base-datos'!$B$757=\"Sí\"),IF(E194=\"La actividad sí contribuye sustancialmente a la sostenibilidad\",SUM(B194:D194),0),IF(AND('Base-datos'!$B$755=\"\",'Base-datos'!$B$756=\"Sí\",'Base-datos'!$B$757=\"Sí\"),IF(AND(G194=\"La actividad sí contribuye sustancialmente a la sostenibilidad\",E194=\"La actividad sí contribuye sustancialmente a la sostenibilidad\"),SUM(B194:D194),0),IF(AND('Base-datos'!$B$755=\"Sí\",'Base-datos'!$B$756=\"\",'Base-datos'!$B$757=\"Sí\"),IF(AND(F194=\"La actividad sí contribuye sustancialmente a la sostenibilidad\",E194=\"La actividad sí contribuye sustancialmente a la sostenibilidad\"),SUM(B194:D194),0),\"Por definir\"))))))))","v":"Por definir"}]
[{"$f":"Residuos!$C36","v":"Seleccione"},{"$f":"IF(Residuos!$E36=Empresas!B$12,Residuos!$B36,\"\")","v":""},{"$f":"IF(Residuos!$E36=Empresas!C$12,Residuos!$B36,\"\")","v":""},{"$f":"IF(Residuos!$E36=Empresas!D$12,Residuos!$B36,\"\")","v":""},{"$f":"_xlfn.XLOOKUP(A195,'Base-datos'!$B$571:$B$580,'Base-datos'!$F$571:$F$580)","v":{"$error":"#N/A"}},{"$f":"_xlfn.XLOOKUP(A195,'Base-datos'!$B$571:$B$580,'Base-datos'!$C$571:$C$580)","v":{"$error":"#N/A"}},{"$f":"_xlfn.XLOOKUP(A195,'Base-datos'!$B$571:$B$580,'Base-datos'!$D$571:$D$580)","v":{"$error":"#N/A"}},null,null,{"$f":"IF(OR(H$182=\"La actividad no cumple con el total de los criterios de No Daño Significativo\",I$182=\"El sector no cumple con las salvaguardas mínimas\"),\"\",IF(AND('Base-datos'!$B$755=\"Sí\",'Base-datos'!$B$756=\"\",'Base-datos'!$B$757=\"\"),IF(F195=\"La actividad sí contribuye sustancialmente a la sostenibilidad\",SUM(B195:D195),0),IF(AND('Base-datos'!$B$755=\"Sí\",'Base-datos'!$B$756=\"Sí\",'Base-datos'!$B$757=\"\"),IF(AND(F195=\"La actividad sí contribuye sustancialmente a la sostenibilidad\",G195=\"La actividad sí contribuye sustancialmente a la sostenibilidad\"),SUM(B195:D195),0),IF(AND('Base-datos'!$B$755=\"Sí\",'Base-datos'!$B$756=\"Sí\",'Base-datos'!$B$757=\"Sí\"),IF(AND(F195=\"La actividad sí contribuye sustancialmente a la sostenibilidad\",G195=\"La actividad sí contribuye sustancialmente a la sostenibilidad\",E195=\"La actividad sí contribuye sustancialmente a la sostenibilidad\"),SUM(B195:D195),0),IF(AND('Base-datos'!$B$755=\"\",'Base-datos'!$B$756=\"Sí\",'Base-datos'!$B$757=\"\"),IF(G195=\"La actividad sí contribuye sustancialmente a la sostenibilidad\",SUM(B195:D195),0),IF(AND('Base-datos'!$B$755=\"\",'Base-datos'!$B$756=\"\",'Base-datos'!$B$757=\"Sí\"),IF(E195=\"La actividad sí contribuye sustancialmente a la sostenibilidad\",SUM(B195:D195),0),IF(AND('Base-datos'!$B$755=\"\",'Base-datos'!$B$756=\"Sí\",'Base-datos'!$B$757=\"Sí\"),IF(AND(G195=\"La actividad sí contribuye sustancialmente a la sostenibilidad\",E195=\"La actividad sí contribuye sustancialmente a la sostenibilidad\"),SUM(B195:D195),0),IF(AND('Base-datos'!$B$755=\"Sí\",'Base-datos'!$B$756=\"\",'Base-datos'!$B$757=\"Sí\"),IF(AND(F195=\"La actividad sí contribuye sustancialmente a la sostenibilidad\",E195=\"La actividad sí contribuye sustancialmente a la sostenibilidad\"),SUM(B195:D195),0),\"Por definir\"))))))))","v":"Por definir"}]
[{"$f":"Residuos!$C38","v":"Seleccione"},{"$f":"IF(Residuos!$E38=Empresas!B$12,Residuos!$B38,\"\")","v":""},{"$f":"IF(Residuos!$E38=Empresas!C$12,Residuos!$B38,\"\")","v":""},{"$f":"IF(Residuos!$E38=Empresas!D$12,Residuos!$B38,\"\")","v":""},{"$f":"_xlfn.XLOOKUP(A196,'Base-datos'!$B$571:$B$580,'Base-datos'!$F$571:$F$580)","v":{"$error":"#N/A"}},{"$f":"_xlfn.XLOOKUP(A196,'Base-datos'!$B$571:$B$580,'Base-datos'!$C$571:$C$580)","v":{"$error":"#N/A"}},{"$f":"_xlfn.XLOOKUP(A196,'Base-datos'!$B$571:$B$580,'Base-datos'!$D$571:$D$580)","v":{"$error":"#N/A"}},null,null,{"$f":"IF(OR(H$182=\"La actividad no cumple con el total de los criterios de No Daño Significativo\",I$182=\"El sector no cumple con las salvaguardas mínimas\"),\"\",IF(AND('Base-datos'!$B$755=\"Sí\",'Base-datos'!$B$756=\"\",'Base-datos'!$B$757=\"\"),IF(F196=\"La actividad sí contribuye sustancialmente a la sostenibilidad\",SUM(B196:D196),0),IF(AND('Base-datos'!$B$755=\"Sí\",'Base-datos'!$B$756=\"Sí\",'Base-datos'!$B$757=\"\"),IF(AND(F196=\"La actividad sí contribuye sustancialmente a la sostenibilidad\",G196=\"La actividad sí contribuye sustancialmente a la sostenibilidad\"),SUM(B196:D196),0),IF(AND('Base-datos'!$B$755=\"Sí\",'Base-datos'!$B$756=\"Sí\",'Base-datos'!$B$757=\"Sí\"),IF(AND(F196=\"La actividad sí contribuye sustancialmente a la sostenibilidad\",G196=\"La actividad sí contribuye sustancialmente a la sostenibilidad\",E196=\"La actividad sí contribuye sustancialmente a la sostenibilidad\"),SUM(B196:D196),0),IF(AND('Base-datos'!$B$755=\"\",'Base-datos'!$B$756=\"Sí\",'Base-datos'!$B$757=\"\"),IF(G196=\"La actividad sí contribuye sustancialmente a la sostenibilidad\",SUM(B196:D196),0),IF(AND('Base-datos'!$B$755=\"\",'Base-datos'!$B$756=\"\",'Base-datos'!$B$757=\"Sí\"),IF(E196=\"La actividad sí contribuye sustancialmente a la sostenibilidad\",SUM(B196:D196),0),IF(AND('Base-datos'!$B$755=\"\",'Base-datos'!$B$756=\"Sí\",'Base-datos'!$B$757=\"Sí\"),IF(AND(G196=\"La actividad sí contribuye sustancialmente a la sostenibilidad\",E196=\"La actividad sí contribuye sustancialmente a la sostenibilidad\"),SUM(B196:D196),0),IF(AND('Base-datos'!$B$755=\"Sí\",'Base-datos'!$B$756=\"\",'Base-datos'!$B$757=\"Sí\"),IF(AND(F196=\"La actividad sí contribuye sustancialmente a la sostenibilidad\",E196=\"La actividad sí contribuye sustancialmente a la sostenibilidad\"),SUM(B196:D196),0),\"Por definir\"))))))))","v":"Por definir"}]
[{"$f":"Residuos!$C40","v":"Seleccione"},{"$f":"IF(Residuos!$E40=Empresas!B$12,Residuos!$B40,\"\")","v":""},{"$f":"IF(Residuos!$E40=Empresas!C$12,Residuos!$B40,\"\")","v":""},{"$f":"IF(Residuos!$E40=Empresas!D$12,Residuos!$B40,\"\")","v":""},{"$f":"_xlfn.XLOOKUP(A197,'Base-datos'!$B$571:$B$580,'Base-datos'!$F$571:$F$580)","v":{"$error":"#N/A"}},{"$f":"_xlfn.XLOOKUP(A197,'Base-datos'!$B$571:$B$580,'Base-datos'!$C$571:$C$580)","v":{"$error":"#N/A"}},{"$f":"_xlfn.XLOOKUP(A197,'Base-datos'!$B$571:$B$580,'Base-datos'!$D$571:$D$580)","v":{"$error":"#N/A"}},null,null,{"$f":"IF(OR(H$182=\"La actividad no cumple con el total de los criterios de No Daño Significativo\",I$182=\"El sector no cumple con las salvaguardas mínimas\"),\"\",IF(AND('Base-datos'!$B$755=\"Sí\",'Base-datos'!$B$756=\"\",'Base-datos'!$B$757=\"\"),IF(F197=\"La actividad sí contribuye sustancialmente a la sostenibilidad\",SUM(B197:D197),0),IF(AND('Base-datos'!$B$755=\"Sí\",'Base-datos'!$B$756=\"Sí\",'Base-datos'!$B$757=\"\"),IF(AND(F197=\"La actividad sí contribuye sustancialmente a la sostenibilidad\",G197=\"La actividad sí contribuye sustancialmente a la sostenibilidad\"),SUM(B197:D197),0),IF(AND('Base-datos'!$B$755=\"Sí\",'Base-datos'!$B$756=\"Sí\",'Base-datos'!$B$757=\"Sí\"),IF(AND(F197=\"La actividad sí contribuye sustancialmente a la sostenibilidad\",G197=\"La actividad sí contribuye sustancialmente a la sostenibilidad\",E197=\"La actividad sí contribuye sustancialmente a la sostenibilidad\"),SUM(B197:D197),0),IF(AND('Base-datos'!$B$755=\"\",'Base-datos'!$B$756=\"Sí\",'Base-datos'!$B$757=\"\"),IF(G197=\"La actividad sí contribuye sustancialmente a la sostenibilidad\",SUM(B197:D197),0),IF(AND('Base-datos'!$B$755=\"\",'Base-datos'!$B$756=\"\",'Base-datos'!$B$757=\"Sí\"),IF(E197=\"La actividad sí contribuye sustancialmente a la sostenibilidad\",SUM(B197:D197),0),IF(AND('Base-datos'!$B$755=\"\",'Base-datos'!$B$756=\"Sí\",'Base-datos'!$B$757=\"Sí\"),IF(AND(G197=\"La actividad sí contribuye sustancialmente a la sostenibilidad\",E197=\"La actividad sí contribuye sustancialmente a la sostenibilidad\"),SUM(B197:D197),0),IF(AND('Base-datos'!$B$755=\"Sí\",'Base-datos'!$B$756=\"\",'Base-datos'!$B$757=\"Sí\"),IF(AND(F197=\"La actividad sí contribuye sustancialmente a la sostenibilidad\",E197=\"La actividad sí contribuye sustancialmente a la sostenibilidad\"),SUM(B197:D197),0),\"Por definir\"))))))))","v":"Por definir"}]
[{"$f":"Residuos!$C42","v":"Seleccione"},{"$f":"IF(Residuos!$E42=Empresas!B$12,Residuos!$B42,\"\")","v":""},{"$f":"IF(Residuos!$E42=Empresas!C$12,Residuos!$B42,\"\")","v":""},{"$f":"IF(Residuos!$E42=Empresas!D$12,Residuos!$B42,\"\")","v":""},{"$f":"_xlfn.XLOOKUP(A198,'Base-datos'!$B$571:$B$580,'Base-datos'!$F$571:$F$580)","v":{"$error":"#N/A"}},{"$f":"_xlfn.XLOOKUP(A198,'Base-datos'!$B$571:$B$580,'Base-datos'!$C$571:$C$580)","v":{"$error":"#N/A"}},{"$f":"_xlfn.XLOOKUP(A198,'Base-datos'!$B$571:$B$580,'Base-datos'!$D$571:$D$580)","v":{"$error":"#N/A"}},null,null,{"$f":"IF(OR(H$182=\"La actividad no cumple con el total de los criterios de No Daño Significativo\",I$182=\"El sector no cumple con las salvaguardas mínimas\"),\"\",IF(AND('Base-datos'!$B$755=\"Sí\",'Base-datos'!$B$756=\"\",'Base-datos'!$B$757=\"\"),IF(F198=\"La actividad sí contribuye sustancialmente a la sostenibilidad\",SUM(B198:D198),0),IF(AND('Base-datos'!$B$755=\"Sí\",'Base-datos'!$B$756=\"Sí\",'Base-datos'!$B$757=\"\"),IF(AND(F198=\"La actividad sí contribuye sustancialmente a la sostenibilidad\",G198=\"La actividad sí contribuye sustancialmente a la sostenibilidad\"),SUM(B198:D198),0),IF(AND('Base-datos'!$B$755=\"Sí\",'Base-datos'!$B$756=\"Sí\",'Base-datos'!$B$757=\"Sí\"),IF(AND(F198=\"La actividad sí contribuye sustancialmente a la sostenibilidad\",G198=\"La actividad sí contribuye sustancialmente a la sostenibilidad\",E198=\"La actividad sí contribuye sustancialmente a la sostenibilidad\"),SUM(B198:D198),0),IF(AND('Base-datos'!$B$755=\"\",'Base-datos'!$B$756=\"Sí\",'Base-datos'!$B$757=\"\"),IF(G198=\"La actividad sí contribuye sustancialmente a la sostenibilidad\",SUM(B198:D198),0),IF(AND('Base-datos'!$B$755=\"\",'Base-datos'!$B$756=\"\",'Base-datos'!$B$757=\"Sí\"),IF(E198=\"La actividad sí contribuye sustancialmente a la sostenibilidad\",SUM(B198:D198),0),IF(AND('Base-datos'!$B$755=\"\",'Base-datos'!$B$756=\"Sí\",'Base-datos'!$B$757=\"Sí\"),IF(AND(G198=\"La actividad sí contribuye sustancialmente a la sostenibilidad\",E198=\"La actividad sí contribuye sustancialmente a la sostenibilidad\"),SUM(B198:D198),0),IF(AND('Base-datos'!$B$755=\"Sí\",'Base-datos'!$B$756=\"\",'Base-datos'!$B$757=\"Sí\"),IF(AND(F198=\"La actividad sí contribuye sustancialmente a la sostenibilidad\",E198=\"La actividad sí contribuye sustancialmente a la sostenibilidad\"),SUM(B198:D198),0),\"Por definir\"))))))))","v":"Por definir"}]
[{"$f":"Residuos!$C44","v":"Seleccione"},{"$f":"IF(Residuos!$E44=Empresas!B$12,Residuos!$B44,\"\")","v":""},{"$f":"IF(Residuos!$E44=Empresas!C$12,Residuos!$B44,\"\")","v":""},{"$f":"IF(Residuos!$E44=Empresas!D$12,Residuos!$B44,\"\")","v":""},{"$f":"_xlfn.XLOOKUP(A199,'Base-datos'!$B$571:$B$580,'Base-datos'!$F$571:$F$580)","v":{"$error":"#N/A"}},{"$f":"_xlfn.XLOOKUP(A199,'Base-datos'!$B$571:$B$580,'Base-datos'!$C$571:$C$580)","v":{"$error":"#N/A"}},{"$f":"_xlfn.XLOOKUP(A199,'Base-datos'!$B$571:$B$580,'Base-datos'!$D$571:$D$580)","v":{"$error":"#N/A"}},null,null,{"$f":"IF(OR(H$182=\"La actividad no cumple con el total de los criterios de No Daño Significativo\",I$182=\"El sector no cumple con las salvaguardas mínimas\"),\"\",IF(AND('Base-datos'!$B$755=\"Sí\",'Base-datos'!$B$756=\"\",'Base-datos'!$B$757=\"\"),IF(F199=\"La actividad sí contribuye sustancialmente a la sostenibilidad\",SUM(B199:D199),0),IF(AND('Base-datos'!$B$755=\"Sí\",'Base-datos'!$B$756=\"Sí\",'Base-datos'!$B$757=\"\"),IF(AND(F199=\"La actividad sí contribuye sustancialmente a la sostenibilidad\",G199=\"La actividad sí contribuye sustancialmente a la sostenibilidad\"),SUM(B199:D199),0),IF(AND('Base-datos'!$B$755=\"Sí\",'Base-datos'!$B$756=\"Sí\",'Base-datos'!$B$757=\"Sí\"),IF(AND(F199=\"La actividad sí contribuye sustancialmente a la sostenibilidad\",G199=\"La actividad sí contribuye sustancialmente a la sostenibilidad\",E199=\"La actividad sí contribuye sustancialmente a la sostenibilidad\"),SUM(B199:D199),0),IF(AND('Base-datos'!$B$755=\"\",'Base-datos'!$B$756=\"Sí\",'Base-datos'!$B$757=\"\"),IF(G199=\"La actividad sí contribuye sustancialmente a la sostenibilidad\",SUM(B199:D199),0),IF(AND('Base-datos'!$B$755=\"\",'Base-datos'!$B$756=\"\",'Base-datos'!$B$757=\"Sí\"),IF(E199=\"La actividad sí contribuye sustancialmente a la sostenibilidad\",SUM(B199:D199),0),IF(AND('Base-datos'!$B$755=\"\",'Base-datos'!$B$756=\"Sí\",'Base-datos'!$B$757=\"Sí\"),IF(AND(G199=\"La actividad sí contribuye sustancialmente a la sostenibilidad\",E199=\"La actividad sí contribuye sustancialmente a la sostenibilidad\"),SUM(B199:D199),0),IF(AND('Base-datos'!$B$755=\"Sí\",'Base-datos'!$B$756=\"\",'Base-datos'!$B$757=\"Sí\"),IF(AND(F199=\"La actividad sí contribuye sustancialmente a la sostenibilidad\",E199=\"La actividad sí contribuye sustancialmente a la sostenibilidad\"),SUM(B199:D199),0),\"Por definir\"))))))))","v":"Por definir"}]
[{"$f":"Residuos!$C46","v":"Seleccione"},{"$f":"IF(Residuos!$E46=Empresas!B$12,Residuos!$B46,\"\")","v":""},{"$f":"IF(Residuos!$E46=Empresas!C$12,Residuos!$B46,\"\")","v":""},{"$f":"IF(Residuos!$E46=Empresas!D$12,Residuos!$B46,\"\")","v":""},{"$f":"_xlfn.XLOOKUP(A200,'Base-datos'!$B$571:$B$580,'Base-datos'!$F$571:$F$580)","v":{"$error":"#N/A"}},{"$f":"_xlfn.XLOOKUP(A200,'Base-datos'!$B$571:$B$580,'Base-datos'!$C$571:$C$580)","v":{"$error":"#N/A"}},{"$f":"_xlfn.XLOOKUP(A200,'Base-datos'!$B$571:$B$580,'Base-datos'!$D$571:$D$580)","v":{"$error":"#N/A"}},null,null,{"$f":"IF(OR(H$182=\"La actividad no cumple con el total de los criterios de No Daño Significativo\",I$182=\"El sector no cumple con las salvaguardas mínimas\"),\"\",IF(AND('Base-datos'!$B$755=\"Sí\",'Base-datos'!$B$756=\"\",'Base-datos'!$B$757=\"\"),IF(F200=\"La actividad sí contribuye sustancialmente a la sostenibilidad\",SUM(B200:D200),0),IF(AND('Base-datos'!$B$755=\"Sí\",'Base-datos'!$B$756=\"Sí\",'Base-datos'!$B$757=\"\"),IF(AND(F200=\"La actividad sí contribuye sustancialmente a la sostenibilidad\",G200=\"La actividad sí contribuye sustancialmente a la sostenibilidad\"),SUM(B200:D200),0),IF(AND('Base-datos'!$B$755=\"Sí\",'Base-datos'!$B$756=\"Sí\",'Base-datos'!$B$757=\"Sí\"),IF(AND(F200=\"La actividad sí contribuye sustancialmente a la sostenibilidad\",G200=\"La actividad sí contribuye sustancialmente a la sostenibilidad\",E200=\"La actividad sí contribuye sustancialmente a la sostenibilidad\"),SUM(B200:D200),0),IF(AND('Base-datos'!$B$755=\"\",'Base-datos'!$B$756=\"Sí\",'Base-datos'!$B$757=\"\"),IF(G200=\"La actividad sí contribuye sustancialmente a la sostenibilidad\",SUM(B200:D200),0),IF(AND('Base-datos'!$B$755=\"\",'Base-datos'!$B$756=\"\",'Base-datos'!$B$757=\"Sí\"),IF(E200=\"La actividad sí contribuye sustancialmente a la sostenibilidad\",SUM(B200:D200),0),IF(AND('Base-datos'!$B$755=\"\",'Base-datos'!$B$756=\"Sí\",'Base-datos'!$B$757=\"Sí\"),IF(AND(G200=\"La actividad sí contribuye sustancialmente a la sostenibilidad\",E200=\"La actividad sí contribuye sustancialmente a la sostenibilidad\"),SUM(B200:D200),0),IF(AND('Base-datos'!$B$755=\"Sí\",'Base-datos'!$B$756=\"\",'Base-datos'!$B$757=\"Sí\"),IF(AND(F200=\"La actividad sí contribuye sustancialmente a la sostenibilidad\",E200=\"La actividad sí contribuye sustancialmente a la sostenibilidad\"),SUM(B200:D200),0),\"Por definir\"))))))))","v":"Por definir"}]
[{"$f":"Residuos!$C48","v":"Seleccione"},{"$f":"IF(Residuos!$E48=Empresas!B$12,Residuos!$B48,\"\")","v":""},{"$f":"IF(Residuos!$E48=Empresas!C$12,Residuos!$B48,\"\")","v":""},{"$f":"IF(Residuos!$E48=Empresas!D$12,Residuos!$B48,\"\")","v":""},{"$f":"_xlfn.XLOOKUP(A201,'Base-datos'!$B$571:$B$580,'Base-datos'!$F$571:$F$580)","v":{"$error":"#N/A"}},{"$f":"_xlfn.XLOOKUP(A201,'Base-datos'!$B$571:$B$580,'Base-datos'!$C$571:$C$580)","v":{"$error":"#N/A"}},{"$f":"_xlfn.XLOOKUP(A201,'Base-datos'!$B$571:$B$580,'Base-datos'!$D$571:$D$580)","v":{"$error":"#N/A"}},null,null,{"$f":"IF(OR(H$182=\"La actividad no cumple con el total de los criterios de No Daño Significativo\",I$182=\"El sector no cumple con las salvaguardas mínimas\"),\"\",IF(AND('Base-datos'!$B$755=\"Sí\",'Base-datos'!$B$756=\"\",'Base-datos'!$B$757=\"\"),IF(F201=\"La actividad sí contribuye sustancialmente a la sostenibilidad\",SUM(B201:D201),0),IF(AND('Base-datos'!$B$755=\"Sí\",'Base-datos'!$B$756=\"Sí\",'Base-datos'!$B$757=\"\"),IF(AND(F201=\"La actividad sí contribuye sustancialmente a la sostenibilidad\",G201=\"La actividad sí contribuye sustancialmente a la sostenibilidad\"),SUM(B201:D201),0),IF(AND('Base-datos'!$B$755=\"Sí\",'Base-datos'!$B$756=\"Sí\",'Base-datos'!$B$757=\"Sí\"),IF(AND(F201=\"La actividad sí contribuye sustancialmente a la sostenibilidad\",G201=\"La actividad sí contribuye sustancialmente a la sostenibilidad\",E201=\"La actividad sí contribuye sustancialmente a la sostenibilidad\"),SUM(B201:D201),0),IF(AND('Base-datos'!$B$755=\"\",'Base-datos'!$B$756=\"Sí\",'Base-datos'!$B$757=\"\"),IF(G201=\"La actividad sí contribuye sustancialmente a la sostenibilidad\",SUM(B201:D201),0),IF(AND('Base-datos'!$B$755=\"\",'Base-datos'!$B$756=\"\",'Base-datos'!$B$757=\"Sí\"),IF(E201=\"La actividad sí contribuye sustancialmente a la sostenibilidad\",SUM(B201:D201),0),IF(AND('Base-datos'!$B$755=\"\",'Base-datos'!$B$756=\"Sí\",'Base-datos'!$B$757=\"Sí\"),IF(AND(G201=\"La actividad sí contribuye sustancialmente a la sostenibilidad\",E201=\"La actividad sí contribuye sustancialmente a la sostenibilidad\"),SUM(B201:D201),0),IF(AND('Base-datos'!$B$755=\"Sí\",'Base-datos'!$B$756=\"\",'Base-datos'!$B$757=\"Sí\"),IF(AND(F201=\"La actividad sí contribuye sustancialmente a la sostenibilidad\",E201=\"La actividad sí contribuye sustancialmente a la sostenibilidad\"),SUM(B201:D201),0),\"Por definir\"))))))))","v":"Por definir"}]
["Género",{"$f":"IF('Género-General'!$E10=Empresas!B$12,'Género-General'!$B10,\"\")","v":""},{"$f":"IF('Género-General'!$E10=Empresas!C$12,'Género-General'!$B10,\"\")","v":""},null,{"$f":"'Base-datos'!$F$581","v":"No se han contestado todas las preguntas"},"N/A","N/A",{"$f":"IF(COUNTIF(NDS_Género!E7:E38,\"No\")>0,\"La actividad no cumple con el total de los criterios de NDS\",\"La actividad cumple con los criterios de No Daño Significativo\")","v":"La actividad cumple con los criterios de No Daño Significativo"},{"$f":"IF(OR('Salvaguardas mínimas'!$G$10=\"Seleccione\",'Salvaguardas mínimas'!$G$13=\"Seleccione\",'Salvaguardas mínimas'!$G$16=\"Seleccione\",'Salvaguardas mínimas'!$G$7=\"Seleccione\"),\"No se han respondido todas las preguntas\",IF(OR('Salvaguardas mínimas'!$G$10=\"No\",'Salvaguardas mínimas'!$G$13=\"No\",'Salvaguardas mínimas'!$G$16=\"No\",'Salvaguardas mínimas'!$G$7=\"No\"),\"El sector no cumple con las salvaguardas mínimas\",\"La actividad sí cumple con las salvaguardas mínimas\"))","v":"No se han respondido todas las preguntas"},{"$f":"IF(E202=\"Por definir\",\"Por definir\",IF(E202=\"Sí cumple con el índice de igualdad de género\",'Género-General'!B10,0))","v":0}]
[null,null,null,null,null,null,null,null,null,{"$f":"SUM(J181,J160,J139,J118,J97,J76,J55,J34,J13)","v":0}]

{"sheet":"Seguros_fianzas","index":56,"n_rows":203,"n_cols":21,"rows_kept":203,"cut":false,"hidden":true,"merged":[[10,0,11,0],[10,1,10,11],[10,16,11,16],[10,17,11,17],[0,1,0,4],[0,5,6,5],[1,1,1,4],[2,1,2,4],[3,1,3,4],[4,1,4,4],[6,1,6,4],[10,20,11,20],[12,18,32,18],[34,18,53,18],[55,18,74,18],[76,18,95,18],[10,18,11,18],[160,19,179,19],[181,19,200,19],[10,15,11,15],[12,19,32,19],[34,19,53,19],[55,19,74,19],[76,19,95,19],[97,19,116,19],[118,19,137,19],[97,18,116,18],[118,18,137,18],[139,18,158,18],[160,18,179,18],[181,18,200,18],[10,19,11,19],[139,19,158,19]]}
["Tipo de Institución","Administradores de Fondos e Inversionistas Institucionales",null,null,null,"Esta hoja representa un resumen de las evaluaciones realizadas. Cabe señalar que un proceso de recomendaciones para las cuestiones que no cumplan con contribución sustancial se encuentra en desarrollo. Estos formatos forman parte de la evidencia de reporte que se puede realizar en el contexto de la taxonomía sostenible de México"]
["Fecha de elaboración ",{"$f":"Recursos!B7","v":"00:00:00"}]
["Institución que realiza la evaluación",{"$f":"Recursos!B8","v":0}]
["Nombre del proyecto",{"$f":"Recursos!B9","v":0}]
["Rango de fecha que comprende las operaciones financieras y/o proyectos evaluados",{"$f":"Recursos!B10","v":0}]
[]
["Total de recursos en evaluación sostenible",{"$f":"U203","v":0}]
[]
[]
[]
["1.2 NOMBRE CATEGORÍA","Cantidad de recursos alineados a la sostenibilidad",null,null,null,null,null,null,null,null,null,null,null,null,null,"Grado de cumplimiento a la contribución sustancial (género)","Grado de cumplimiento a la contribución sustancial (mitigación)","Grado de cumplimiento a la contribución sustancial (adaptación)","Grado de cumplimiento a cuestiones de No Daño Significativo ","Grado de cumplimiento con las salvaguardas mínimas","Total recursos que cumple con umbrales"]
[null,"Bonos Gubernamentales","Instrumentos de deuda","Obligaciones","Instrumentos bursatilizados","Títulos estructurados","Valores de renta variable","Instrumentos estructurados y FIBRAS","Fondos de inversión","Fondos de capital privado ","Fideicomisos","Certificados bursátiles ","Créditos","Inmuebles","Otro"]
["Agricultura",null,null,null,null,null,null,null,null,null,null,null,null,null,null,null,null,null,{"$f":"IF(COUNTIF('Agriculltura-NDS'!G9:G57,\"No\")>0,\"La actividad no cumple con el total de los criterios de No Daño Significativo\",\"La actividad cumple con los criterios de No Daño Significativo\")","v":"La actividad cumple con los criterios de No Daño Significativo"},{"$f":"IF(OR('Salvaguardas mínimas'!$G$10=\"Seleccione\",'Salvaguardas mínimas'!$G$13=\"Seleccione\",'Salvaguardas mínimas'!$G$16=\"Seleccione\",'Salvaguardas mínimas'!$G$7=\"Seleccione\"),\"No se han respondido todas las preguntas\",IF(OR('Salvaguardas mínimas'!$G$10=\"No\",'Salvaguardas mínimas'!$G$13=\"No\",'Salvaguardas mínimas'!$G$16=\"No\",'Salvaguardas mínimas'!$G$7=\"No\"),\"El sector no cumple con las salvaguardas mínimas\",\"La actividad sí cumple con las salvaguardas mínimas\"))","v":"No se han respondido todas las preguntas"},{"$f":"SUM(IF(FREQUENCY(MATCH(A14:A33, A14:A33, 0), MATCH(A14:A33, A14:A33, 0)) > 0, IF(NOT(ISERROR(U14:U33)), U14:U33, 0)))","v":0}]
[{"$f":"Agricultura!$C10","v":"Seleccione"},{"$f":"IF(Agricultura!$E10=Seguros_fianzas!B$12,Agricultura!$B10,\"\")","v":""},{"$f":"IF(Agricultura!$E10=Seguros_fianzas!C$12,Agricultura!$B10,\"\")","v":""},{"$f":"IF(Agricultura!$E10=Seguros_fianzas!D$12,Agricultura!$B10,\"\")","v":""},{"$f":"IF(Agricultura!$E10=Seguros_fianzas!E$12,Agricultura!$B10,\"\")","v":""},{"$f":"IF(Agricultura!$E10=Seguros_fianzas!F$12,Agricultura!$B10,\"\")","v":""},{"$f":"IF(Agricultura!$E10=Seguros_fianzas!G$12,Agricultura!$B10,\"\")","v":""},{"$f":"IF(Agricultura!$E10=Seguros_fianzas!H$12,Agricultura!$B10,\"\")","v":""},{"$f":"IF(Agricultura!$E10=Seguros_fianzas!I$12,Agricultura!$B10,\"\")","v":""},{"$f":"IF(Agricultura!$E10=Seguros_fianzas!J$12,Agricultura!$B10,\"\")","v":""},{"$f":"IF(Agricultura!$E10=Seguros_fianzas!K$12,Agricultura!$B10,\"\")","v":""},{"$f":"IF(Agricultura!$E10=Seguros_fianzas!L$12,Agricultura!$B10,\"\")","v":""},{"$f":"IF(Agricultura!$E10=Seguros_fianzas!M$12,Agricultura!$B10,\"\")","v":""},{"$f":"IF(Agricultura!$E10=Seguros_fianzas!N$12,Agricultura!$B10,\"\")","v":""},{"$f":"IF(Agricultura!$E10=Seguros_fianzas!O$12,Agricultura!$B10,\"\")","v":""},{"$f":"_xlfn.XLOOKUP(A14,'Base-datos'!$B$457:$B$509,'Base-datos'!$F$457:$F$509)","v":{"$error":"#N/A"}},{"$f":"_xlfn.XLOOKUP(A14,'Base-datos'!$B$457:$B$509,'Base-datos'!$C$457:$C$509)","v":{"$error":"#N/A"}},{"$f":"_xlfn.XLOOKUP(A14,'Base-datos'!$B$457:$B$509,'Base-datos'!$D$457:$D$509)","v":{"$error":"#N/A"}},null,null,{"$f":"IF(OR(S$13=\"La actividad no cumple con el total de los criterios de No Daño Significativo\",T$13=\"El sector no cumple con las salvaguardas mínimas\"),\"\",IF(AND('Base-datos'!$B$715=\"Sí\",'Base-datos'!$B$716=\"\",'Base-datos'!$B$717=\"\"),IF(Q14=\"La actividad sí contribuye sustancialmente a la sostenibilidad\",SUM(B14:O14),0),IF(AND('Base-datos'!$B$715=\"Sí\",'Base-datos'!$B$716=\"Sí\",'Base-datos'!$B$717=\"\"),IF(AND(Q14=\"La actividad sí contribuye sustancialmente a la sostenibilidad\",R14=\"La actividad sí contribuye sustancialmente a la sostenibilidad\"),SUM(B14:O14),0),IF(AND('Base-datos'!$B$715=\"Sí\",'Base-datos'!$B$716=\"Sí\",'Base-datos'!$B$717=\"Sí\"),IF(AND(Q14=\"La actividad sí contribuye sustancialmente a la sostenibilidad\",R14=\"La actividad sí contribuye sustancialmente a la sostenibilidad\",P14=\"La actividad sí contribuye sustancialmente a la sostenibilidad\"),SUM(B14:O14),0),IF(AND('Base-datos'!$B$715=\"\",'Base-datos'!$B$716=\"Sí\",'Base-datos'!$B$717=\"\"),IF(R14=\"La actividad sí contribuye sustancialmente a la sostenibilidad\",SUM(B14:O14),0),IF(AND('Base-datos'!$B$715=\"\",'Base-datos'!$B$716=\"\",'Base-datos'!$B$717=\"Sí\"),IF(P14=\"La actividad sí contribuye sustancialmente a la sostenibilidad\",U15,0),IF(AND('Base-datos'!$B$715=\"\",'Base-datos'!$B$716=\"Sí\",'Base-datos'!$B$717=\"Sí\"),IF(AND(R14=\"La actividad sí contribuye sustancialmente a la sostenibilidad\",P14=\"La actividad sí contribuye sustancialmente a la sostenibilidad\"),SUM(B14:O14),0),IF(AND('Base-datos'!$B$715=\"Sí\",'Base-datos'!$B$716=\"\",'Base-datos'!$B$717=\"Sí\"),IF(AND(Q14=\"La actividad sí contribuye sustancialmente a la sostenibilidad\",P14=\"La actividad sí contribuye sustancialmente a la sostenibilidad\"),SUM(B14:O14),0),\"Por definir\"))))))))","v":"Por definir"}]
[{"$f":"Agricultura!$C12","v":"Seleccione"},{"$f":"IF(Agricultura!$E12=Seguros_fianzas!B$12,Agricultura!$B12,\"\")","v":""},{"$f":"IF(Agricultura!$E12=Seguros_fianzas!C$12,Agricultura!$B12,\"\")","v":""},{"$f":"IF(Agricultura!$E12=Seguros_fianzas!D$12,Agricultura!$B12,\"\")","v":""},{"$f":"IF(Agricultura!$E12=Seguros_fianzas!E$12,Agricultura!$B12,\"\")","v":""},{"$f":"IF(Agricultura!$E12=Seguros_fianzas!F$12,Agricultura!$B12,\"\")","v":""},{"$f":"IF(Agricultura!$E12=Seguros_fianzas!G$12,Agricultura!$B12,\"\")","v":""},{"$f":"IF(Agricultura!$E12=Seguros_fianzas!H$12,Agricultura!$B12,\"\")","v":""},{"$f":"IF(Agricultura!$E12=Seguros_fianzas!I$12,Agricultura!$B12,\"\")","v":""},{"$f":"IF(Agricultura!$E12=Seguros_fianzas!J$12,Agricultura!$B12,\"\")","v":""},{"$f":"IF(Agricultura!$E12=Seguros_fianzas!K$12,Agricultura!$B12,\"\")","v":""},{"$f":"IF(Agricultura!$E12=Seguros_fianzas!L$12,Agricultura!$B12,\"\")","v":""},{"$f":"IF(Agricultura!$E12=Seguros_fianzas!M$12,Agricultura!$B12,\"\")","v":""},{"$f":"IF(Agricultura!$E12=Seguros_fianzas!N$12,Agricultura!$B12,\"\")","v":""},{"$f":"IF(Agricultura!$E12=Seguros_fianzas!O$12,Agricultura!$B12,\"\")","v":""},{"$f":"_xlfn.XLOOKUP(A15,'Base-datos'!$B$457:$B$509,'Base-datos'!$F$457:$F$509)","v":{"$error":"#N/A"}},{"$f":"_xlfn.XLOOKUP(A15,'Base-datos'!$B$457:$B$509,'Base-datos'!$C$457:$C$509)","v":{"$error":"#N/A"}},{"$f":"_xlfn.XLOOKUP(A15,'Base-datos'!$B$457:$B$509,'Base-datos'!$D$457:$D$509)","v":{"$error":"#N/A"}},null,null,{"$f":"IF(OR(S$13=\"La actividad no cumple con el total de los criterios de No Daño Significativo\",T$13=\"El sector no cumple con las salvaguardas mínimas\"),\"\",IF(AND('Base-datos'!$B$715=\"Sí\",'Base-datos'!$B$716=\"\",'Base-datos'!$B$717=\"\"),IF(Q15=\"La actividad sí contribuye sustancialmente a la sostenibilidad\",SUM(B15:O15),0),IF(AND('Base-datos'!$B$715=\"Sí\",'Base-datos'!$B$716=\"Sí\",'Base-datos'!$B$717=\"\"),IF(AND(Q15=\"La actividad sí contribuye sustancialmente a la sostenibilidad\",R15=\"La actividad sí contribuye sustancialmente a la sostenibilidad\"),SUM(B15:O15),0),IF(AND('Base-datos'!$B$715=\"Sí\",'Base-datos'!$B$716=\"Sí\",'Base-datos'!$B$717=\"Sí\"),IF(AND(Q15=\"La actividad sí contribuye sustancialmente a la sostenibilidad\",R15=\"La actividad sí contribuye sustancialmente a la sostenibilidad\",P15=\"La actividad sí contribuye sustancialmente a la sostenibilidad\"),SUM(B15:O15),0),IF(AND('Base-datos'!$B$715=\"\",'Base-datos'!$B$716=\"Sí\",'Base-datos'!$B$717=\"\"),IF(R15=\"La actividad sí contribuye sustancialmente a la sostenibilidad\",SUM(B15:O15),0),IF(AND('Base-datos'!$B$715=\"\",'Base-datos'!$B$716=\"\",'Base-datos'!$B$717=\"Sí\"),IF(P15=\"La actividad sí contribuye sustancialmente a la sostenibilidad\",U16,0),IF(AND('Base-datos'!$B$715=\"\",'Base-datos'!$B$716=\"Sí\",'Base-datos'!$B$717=\"Sí\"),IF(AND(R15=\"La actividad sí contribuye sustancialmente a la sostenibilidad\",P15=\"La actividad sí contribuye sustancialmente a la sostenibilidad\"),SUM(B15:O15),0),IF(AND('Base-datos'!$B$715=\"Sí\",'Base-datos'!$B$716=\"\",'Base-datos'!$B$717=\"Sí\"),IF(AND(Q15=\"La actividad sí contribuye sustancialmente a la sostenibilidad\",P15=\"La actividad sí contribuye sustancialmente a la sostenibilidad\"),SUM(B15:O15),0),\"Por definir\"))))))))","v":"Por definir"}]
[{"$f":"Agricultura!$C14","v":"Seleccione"},{"$f":"IF(Agricultura!$E14=Seguros_fianzas!B$12,Agricultura!$B14,\"\")","v":""},{"$f":"IF(Agricultura!$E14=Seguros_fianzas!C$12,Agricultura!$B14,\"\")","v":""},{"$f":"IF(Agricultura!$E14=Seguros_fianzas!D$12,Agricultura!$B14,\"\")","v":""},{"$f":"IF(Agricultura!$E14=Seguros_fianzas!E$12,Agricultura!$B14,\"\")","v":""},{"$f":"IF(Agricultura!$E14=Seguros_fianzas!F$12,Agricultura!$B14,\"\")","v":""},{"$f":"IF(Agricultura!$E14=Seguros_fianzas!G$12,Agricultura!$B14,\"\")","v":""},{"$f":"IF(Agricultura!$E14=Seguros_fianzas!H$12,Agricultura!$B14,\"\")","v":""},{"$f":"IF(Agricultura!$E14=Seguros_fianzas!I$12,Agricultura!$B14,\"\")","v":""},{"$f":"IF(Agricultura!$E14=Seguros_fianzas!J$12,Agricultura!$B14,\"\")","v":""},{"$f":"IF(Agricultura!$E14=Seguros_fianzas!K$12,Agricultura!$B14,\"\")","v":""},{"$f":"IF(Agricultura!$E14=Seguros_fianzas!L$12,Agricultura!$B14,\"\")","v":""},{"$f":"IF(Agricultura!$E14=Seguros_fianzas!M$12,Agricultura!$B14,\"\")","v":""},{"$f":"IF(Agricultura!$E14=Seguros_fianzas!N$12,Agricultura!$B14,\"\")","v":""},{"$f":"IF(Agricultura!$E14=Seguros_fianzas!O$12,Agricultura!$B14,\"\")","v":""},{"$f":"_xlfn.XLOOKUP(A16,'Base-datos'!$B$457:$B$509,'Base-datos'!$F$457:$F$509)","v":{"$error":"#N/A"}},{"$f":"_xlfn.XLOOKUP(A16,'Base-datos'!$B$457:$B$509,'Base-datos'!$C$457:$C$509)","v":{"$error":"#N/A"}},{"$f":"_xlfn.XLOOKUP(A16,'Base-datos'!$B$457:$B$509,'Base-datos'!$D$457:$D$509)","v":{"$error":"#N/A"}},null,null,{"$f":"IF(OR(S$13=\"La actividad no cumple con el total de los criterios de No Daño Significativo\",T$13=\"El sector no cumple con las salvaguardas mínimas\"),\"\",IF(AND('Base-datos'!$B$715=\"Sí\",'Base-datos'!$B$716=\"\",'Base-datos'!$B$717=\"\"),IF(Q16=\"La actividad sí contribuye sustancialmente a la sostenibilidad\",SUM(B16:O16),0),IF(AND('Base-datos'!$B$715=\"Sí\",'Base-datos'!$B$716=\"Sí\",'Base-datos'!$B$717=\"\"),IF(AND(Q16=\"La actividad sí contribuye sustancialmente a la sostenibilidad\",R16=\"La actividad sí contribuye sustancialmente a la sostenibilidad\"),SUM(B16:O16),0),IF(AND('Base-datos'!$B$715=\"Sí\",'Base-datos'!$B$716=\"Sí\",'Base-datos'!$B$717=\"Sí\"),IF(AND(Q16=\"La actividad sí contribuye sustancialmente a la sostenibilidad\",R16=\"La actividad sí contribuye sustancialmente a la sostenibilidad\",P16=\"La actividad sí contribuye sustancialmente a la sostenibilidad\"),SUM(B16:O16),0),IF(AND('Base-datos'!$B$715=\"\",'Base-datos'!$B$716=\"Sí\",'Base-datos'!$B$717=\"\"),IF(R16=\"La actividad sí contribuye sustancialmente a la sostenibilidad\",SUM(B16:O16),0),IF(AND('Base-datos'!$B$715=\"\",'Base-datos'!$B$716=\"\",'Base-datos'!$B$717=\"Sí\"),IF(P16=\"La actividad sí contribuye sustancialmente a la sostenibilidad\",U17,0),IF(AND('Base-datos'!$B$715=\"\",'Base-datos'!$B$716=\"Sí\",'Base-datos'!$B$717=\"Sí\"),IF(AND(R16=\"La actividad sí contribuye sustancialmente a la sostenibilidad\",P16=\"La actividad sí contribuye sustancialmente a la sostenibilidad\"),SUM(B16:O16),0),IF(AND('Base-datos'!$B$715=\"Sí\",'Base-datos'!$B$716=\"\",'Base-datos'!$B$717=\"Sí\"),IF(AND(Q16=\"La actividad sí contribuye sustancialmente a la sostenibilidad\",P16=\"La actividad sí contribuye sustancialmente a la sostenibilidad\"),SUM(B16:O16),0),\"Por definir\"))))))))","v":"Por definir"}]
[{"$f":"Agricultura!$C16","v":"Seleccione"},{"$f":"IF(Agricultura!$E16=Seguros_fianzas!B$12,Agricultura!$B16,\"\")","v":""},{"$f":"IF(Agricultura!$E16=Seguros_fianzas!C$12,Agricultura!$B16,\"\")","v":""},{"$f":"IF(Agricultura!$E16=Seguros_fianzas!D$12,Agricultura!$B16,\"\")","v":""},{"$f":"IF(Agricultura!$E16=Seguros_fianzas!E$12,Agricultura!$B16,\"\")","v":""},{"$f":"IF(Agricultura!$E16=Seguros_fianzas!F$12,Agricultura!$B16,\"\")","v":""},{"$f":"IF(Agricultura!$E16=Seguros_fianzas!G$12,Agricultura!$B16,\"\")","v":""},{"$f":"IF(Agricultura!$E16=Seguros_fianzas!H$12,Agricultura!$B16,\"\")","v":""},{"$f":"IF(Agricultura!$E16=Seguros_fianzas!I$12,Agricultura!$B16,\"\")","v":""},{"$f":"IF(Agricultura!$E16=Seguros_fianzas!J$12,Agricultura!$B16,\"\")","v":""},{"$f":"IF(Agricultura!$E16=Seguros_fianzas!K$12,Agricultura!$B16,\"\")","v":""},{"$f":"IF(Agricultura!$E16=Seguros_fianzas!L$12,Agricultura!$B16,\"\")","v":""},{"$f":"IF(Agricultura!$E16=Seguros_fianzas!M$12,Agricultura!$B16,\"\")","v":""},{"$f":"IF(Agricultura!$E16=Seguros_fianzas!N$12,Agricultura!$B16,\"\")","v":""},{"$f":"IF(Agricultura!$E16=Seguros_fianzas!O$12,Agricultura!$B16,\"\")","v":""},{"$f":"_xlfn.XLOOKUP(A17,'Base-datos'!$B$457:$B$509,'Base-datos'!$F$457:$F$509)","v":{"$error":"#N/A"}},{"$f":"_xlfn.XLOOKUP(A17,'Base-datos'!$B$457:$B$509,'Base-datos'!$C$457:$C$509)","v":{"$error":"#N/A"}},{"$f":"_xlfn.XLOOKUP(A17,'Base-datos'!$B$457:$B$509,'Base-datos'!$D$457:$D$509)","v":{"$error":"#N/A"}},null,null,{"$f":"IF(OR(S$13=\"La actividad no cumple con el total de los criterios de No Daño Significativo\",T$13=\"El sector no cumple con las salvaguardas mínimas\"),\"\",IF(AND('Base-datos'!$B$715=\"Sí\",'Base-datos'!$B$716=\"\",'Base-datos'!$B$717=\"\"),IF(Q17=\"La actividad sí contribuye sustancialmente a la sostenibilidad\",SUM(B17:O17),0),IF(AND('Base-datos'!$B$715=\"Sí\",'Base-datos'!$B$716=\"Sí\",'Base-datos'!$B$717=\"\"),IF(AND(Q17=\"La actividad sí contribuye sustancialmente a la sostenibilidad\",R17=\"La actividad sí contribuye sustancialmente a la sostenibilidad\"),SUM(B17:O17),0),IF(AND('Base-datos'!$B$715=\"Sí\",'Base-datos'!$B$716=\"Sí\",'Base-datos'!$B$717=\"Sí\"),IF(AND(Q17=\"La actividad sí contribuye sustancialmente a la sostenibilidad\",R17=\"La actividad sí contribuye sustancialmente a la sostenibilidad\",P17=\"La actividad sí contribuye sustancialmente a la sostenibilidad\"),SUM(B17:O17),0),IF(AND('Base-datos'!$B$715=\"\",'Base-datos'!$B$716=\"Sí\",'Base-datos'!$B$717=\"\"),IF(R17=\"La actividad sí contribuye sustancialmente a la sostenibilidad\",SUM(B17:O17),0),IF(AND('Base-datos'!$B$715=\"\",'Base-datos'!$B$716=\"\",'Base-datos'!$B$717=\"Sí\"),IF(P17=\"La actividad sí contribuye sustancialmente a la sostenibilidad\",U18,0),IF(AND('Base-datos'!$B$715=\"\",'Base-datos'!$B$716=\"Sí\",'Base-datos'!$B$717=\"Sí\"),IF(AND(R17=\"La actividad sí contribuye sustancialmente a la sostenibilidad\",P17=\"La actividad sí contribuye sustancialmente a la sostenibilidad\"),SUM(B17:O17),0),IF(AND('Base-datos'!$B$715=\"Sí\",'Base-datos'!$B$716=\"\",'Base-datos'!$B$717=\"Sí\"),IF(AND(Q17=\"La actividad sí contribuye sustancialmente a la sostenibilidad\",P17=\"La actividad sí contribuye sustancialmente a la sostenibilidad\"),SUM(B17:O17),0),\"Por definir\"))))))))","v":"Por definir"}]
[{"$f":"Agricultura!$C18","v":"Seleccione"},{"$f":"IF(Agricultura!$E18=Seguros_fianzas!B$12,Agricultura!$B18,\"\")","v":""},{"$f":"IF(Agricultura!$E18=Seguros_fianzas!C$12,Agricultura!$B18,\"\")","v":""},{"$f":"IF(Agricultura!$E18=Seguros_fianzas!D$12,Agricultura!$B18,\"\")","v":""},{"$f":"IF(Agricultura!$E18=Seguros_fianzas!E$12,Agricultura!$B18,\"\")","v":""},{"$f":"IF(Agricultura!$E18=Seguros_fianzas!F$12,Agricultura!$B18,\"\")","v":""},{"$f":"IF(Agricultura!$E18=Seguros_fianzas!G$12,Agricultura!$B18,\"\")","v":""},{"$f":"IF(Agricultura!$E18=Seguros_fianzas!H$12,Agricultura!$B18,\"\")","v":""},{"$f":"IF(Agricultura!$E18=Seguros_fianzas!I$12,Agricultura!$B18,\"\")","v":""},{"$f":"IF(Agricultura!$E18=Seguros_fianzas!J$12,Agricultura!$B18,\"\")","v":""},{"$f":"IF(Agricultura!$E18=Seguros_fianzas!K$12,Agricultura!$B18,\"\")","v":""},{"$f":"IF(Agricultura!$E18=Seguros_fianzas!L$12,Agricultura!$B18,\"\")","v":""},{"$f":"IF(Agricultura!$E18=Seguros_fianzas!M$12,Agricultura!$B18,\"\")","v":""},{"$f":"IF(Agricultura!$E18=Seguros_fianzas!N$12,Agricultura!$B18,\"\")","v":""},{"$f":"IF(Agricultura!$E18=Seguros_fianzas!O$12,Agricultura!$B18,\"\")","v":""},{"$f":"_xlfn.XLOOKUP(A18,'Base-datos'!$B$457:$B$509,'Base-datos'!$F$457:$F$509)","v":{"$error":"#N/A"}},{"$f":"_xlfn.XLOOKUP(A18,'Base-datos'!$B$457:$B$509,'Base-datos'!$C$457:$C$509)","v":{"$error":"#N/A"}},{"$f":"_xlfn.XLOOKUP(A18,'Base-datos'!$B$457:$B$509,'Base-datos'!$D$457:$D$509)","v":{"$error":"#N/A"}},null,null,{"$f":"IF(OR(S$13=\"La actividad no cumple con el total de los criterios de No Daño Significativo\",T$13=\"El sector no cumple con las salvaguardas mínimas\"),\"\",IF(AND('Base-datos'!$B$715=\"Sí\",'Base-datos'!$B$716=\"\",'Base-datos'!$B$717=\"\"),IF(Q18=\"La actividad sí contribuye sustancialmente a la sostenibilidad\",SUM(B18:O18),0),IF(AND('Base-datos'!$B$715=\"Sí\",'Base-datos'!$B$716=\"Sí\",'Base-datos'!$B$717=\"\"),IF(AND(Q18=\"La actividad sí contribuye sustancialmente a la sostenibilidad\",R18=\"La actividad sí contribuye sustancialmente a la sostenibilidad\"),SUM(B18:O18),0),IF(AND('Base-datos'!$B$715=\"Sí\",'Base-datos'!$B$716=\"Sí\",'Base-datos'!$B$717=\"Sí\"),IF(AND(Q18=\"La actividad sí contribuye sustancialmente a la sostenibilidad\",R18=\"La actividad sí contribuye sustancialmente a la sostenibilidad\",P18=\"La actividad sí contribuye sustancialmente a la sostenibilidad\"),SUM(B18:O18),0),IF(AND('Base-datos'!$B$715=\"\",'Base-datos'!$B$716=\"Sí\",'Base-datos'!$B$717=\"\"),IF(R18=\"La actividad sí contribuye sustancialmente a la sostenibilidad\",SUM(B18:O18),0),IF(AND('Base-datos'!$B$715=\"\",'Base-datos'!$B$716=\"\",'Base-datos'!$B$717=\"Sí\"),IF(P18=\"La actividad sí contribuye sustancialmente a la sostenibilidad\",U19,0),IF(AND('Base-datos'!$B$715=\"\",'Base-datos'!$B$716=\"Sí\",'Base-datos'!$B$717=\"Sí\"),IF(AND(R18=\"La actividad sí contribuye sustancialmente a la sostenibilidad\",P18=\"La actividad sí contribuye sustancialmente a la sostenibilidad\"),SUM(B18:O18),0),IF(AND('Base-datos'!$B$715=\"Sí\",'Base-datos'!$B$716=\"\",'Base-datos'!$B$717=\"Sí\"),IF(AND(Q18=\"La actividad sí contribuye sustancialmente a la sostenibilidad\",P18=\"La actividad sí contribuye sustancialmente a la sostenibilidad\"),SUM(B18:O18),0),\"Por definir\"))))))))","v":"Por definir"}]
[{"$f":"Agricultura!$C20","v":"Seleccione"},{"$f":"IF(Agricultura!$E20=Seguros_fianzas!B$12,Agricultura!$B20,\"\")","v":""},{"$f":"IF(Agricultura!$E20=Seguros_fianzas!C$12,Agricultura!$B20,\"\")","v":""},{"$f":"IF(Agricultura!$E20=Seguros_fianzas!D$12,Agricultura!$B20,\"\")","v":""},{"$f":"IF(Agricultura!$E20=Seguros_fianzas!E$12,Agricultura!$B20,\"\")","v":""},{"$f":"IF(Agricultura!$E20=Seguros_fianzas!F$12,Agricultura!$B20,\"\")","v":""},{"$f":"IF(Agricultura!$E20=Seguros_fianzas!G$12,Agricultura!$B20,\"\")","v":""},{"$f":"IF(Agricultura!$E20=Seguros_fianzas!H$12,Agricultura!$B20,\"\")","v":""},{"$f":"IF(Agricultura!$E20=Seguros_fianzas!I$12,Agricultura!$B20,\"\")","v":""},{"$f":"IF(Agricultura!$E20=Seguros_fianzas!J$12,Agricultura!$B20,\"\")","v":""},{"$f":"IF(Agricultura!$E20=Seguros_fianzas!K$12,Agricultura!$B20,\"\")","v":""},{"$f":"IF(Agricultura!$E20=Seguros_fianzas!L$12,Agricultura!$B20,\"\")","v":""},{"$f":"IF(Agricultura!$E20=Seguros_fianzas!M$12,Agricultura!$B20,\"\")","v":""},{"$f":"IF(Agricultura!$E20=Seguros_fianzas!N$12,Agricultura!$B20,\"\")","v":""},{"$f":"IF(Agricultura!$E20=Seguros_fianzas!O$12,Agricultura!$B20,\"\")","v":""},{"$f":"_xlfn.XLOOKUP(A19,'Base-datos'!$B$457:$B$509,'Base-datos'!$F$457:$F$509)","v":{"$error":"#N/A"}},{"$f":"_xlfn.XLOOKUP(A19,'Base-datos'!$B$457:$B$509,'Base-datos'!$C$457:$C$509)","v":{"$error":"#N/A"}},{"$f":"_xlfn.XLOOKUP(A19,'Base-datos'!$B$457:$B$509,'Base-datos'!$D$457:$D$509)","v":{"$error":"#N/A"}},null,null,{"$f":"IF(OR(S$13=\"La actividad no cumple con el total de los criterios de No Daño Significativo\",T$13=\"El sector no cumple con las salvaguardas mínimas\"),\"\",IF(AND('Base-datos'!$B$715=\"Sí\",'Base-datos'!$B$716=\"\",'Base-datos'!$B$717=\"\"),IF(Q19=\"La actividad sí contribuye sustancialmente a la sostenibilidad\",SUM(B19:O19),0),IF(AND('Base-datos'!$B$715=\"Sí\",'Base-datos'!$B$716=\"Sí\",'Base-datos'!$B$717=\"\"),IF(AND(Q19=\"La actividad sí contribuye sustancialmente a la sostenibilidad\",R19=\"La actividad sí contribuye sustancialmente a la sostenibilidad\"),SUM(B19:O19),0),IF(AND('Base-datos'!$B$715=\"Sí\",'Base-datos'!$B$716=\"Sí\",'Base-datos'!$B$717=\"Sí\"),IF(AND(Q19=\"La actividad sí contribuye sustancialmente a la sostenibilidad\",R19=\"La actividad sí contribuye sustancialmente a la sostenibilidad\",P19=\"La actividad sí contribuye sustancialmente a la sostenibilidad\"),SUM(B19:O19),0),IF(AND('Base-datos'!$B$715=\"\",'Base-datos'!$B$716=\"Sí\",'Base-datos'!$B$717=\"\"),IF(R19=\"La actividad sí contribuye sustancialmente a la sostenibilidad\",SUM(B19:O19),0),IF(AND('Base-datos'!$B$715=\"\",'Base-datos'!$B$716=\"\",'Base-datos'!$B$717=\"Sí\"),IF(P19=\"La actividad sí contribuye sustancialmente a la sostenibilidad\",U20,0),IF(AND('Base-datos'!$B$715=\"\",'Base-datos'!$B$716=\"Sí\",'Base-datos'!$B$717=\"Sí\"),IF(AND(R19=\"La actividad sí contribuye sustancialmente a la sostenibilidad\",P19=\"La actividad sí contribuye sustancialmente a la sostenibilidad\"),SUM(B19:O19),0),IF(AND('Base-datos'!$B$715=\"Sí\",'Base-datos'!$B$716=\"\",'Base-datos'!$B$717=\"Sí\"),IF(AND(Q19=\"La actividad sí contribuye sustancialmente a la sostenibilidad\",P19=\"La actividad sí contribuye sustancialmente a la sostenibilidad\"),SUM(B19:O19),0),\"Por definir\"))))))))","v":"Por definir"}]
[{"$f":"Agricultura!$C22","v":"Seleccione"},{"$f":"IF(Agricultura!$E22=Seguros_fianzas!B$12,Agricultura!$B22,\"\")","v":""},{"$f":"IF(Agricultura!$E22=Seguros_fianzas!C$12,Agricultura!$B22,\"\")","v":""},{"$f":"IF(Agricultura!$E22=Seguros_fianzas!D$12,Agricultura!$B22,\"\")","v":""},{"$f":"IF(Agricultura!$E22=Seguros_fianzas!E$12,Agricultura!$B22,\"\")","v":""},{"$f":"IF(Agricultura!$E22=Seguros_fianzas!F$12,Agricultura!$B22,\"\")","v":""},{"$f":"IF(Agricultura!$E22=Seguros_fianzas!G$12,Agricultura!$B22,\"\")","v":""},{"$f":"IF(Agricultura!$E22=Seguros_fianzas!H$12,Agricultura!$B22,\"\")","v":""},{"$f":"IF(Agricultura!$E22=Seguros_fianzas!I$12,Agricultura!$B22,\"\")","v":""},{"$f":"IF(Agricultura!$E22=Seguros_fianzas!J$12,Agricultura!$B22,\"\")","v":""},{"$f":"IF(Agricultura!$E22=Seguros_fianzas!K$12,Agricultura!$B22,\"\")","v":""},{"$f":"IF(Agricultura!$E22=Seguros_fianzas!L$12,Agricultura!$B22,\"\")","v":""},{"$f":"IF(Agricultura!$E22=Seguros_fianzas!M$12,Agricultura!$B22,\"\")","v":""},{"$f":"IF(Agricultura!$E22=Seguros_fianzas!N$12,Agricultura!$B22,\"\")","v":""},{"$f":"IF(Agricultura!$E22=Seguros_fianzas!O$12,Agricultura!$B22,\"\")","v":""},{"$f":"_xlfn.XLOOKUP(A20,'Base-datos'!$B$457:$B$509,'Base-datos'!$F$457:$F$509)","v":{"$error":"#N/A"}},{"$f":"_xlfn.XLOOKUP(A20,'Base-datos'!$B$457:$B$509,'Base-datos'!$C$457:$C$509)","v":{"$error":"#N/A"}},{"$f":"_xlfn.XLOOKUP(A20,'Base-datos'!$B$457:$B$509,'Base-datos'!$D$457:$D$509)","v":{"$error":"#N/A"}},null,null,{"$f":"IF(OR(S$13=\"La actividad no cumple con el total de los criterios de No Daño Significativo\",T$13=\"El sector no cumple con las salvaguardas mínimas\"),\"\",IF(AND('Base-datos'!$B$715=\"Sí\",'Base-datos'!$B$716=\"\",'Base-datos'!$B$717=\"\"),IF(Q20=\"La actividad sí contribuye sustancialmente a la sostenibilidad\",SUM(B20:O20),0),IF(AND('Base-datos'!$B$715=\"Sí\",'Base-datos'!$B$716=\"Sí\",'Base-datos'!$B$717=\"\"),IF(AND(Q20=\"La actividad sí contribuye sustancialmente a la sostenibilidad\",R20=\"La actividad sí contribuye sustancialmente a la sostenibilidad\"),SUM(B20:O20),0),IF(AND('Base-datos'!$B$715=\"Sí\",'Base-datos'!$B$716=\"Sí\",'Base-datos'!$B$717=\"Sí\"),IF(AND(Q20=\"La actividad sí contribuye sustancialmente a la sostenibilidad\",R20=\"La actividad sí contribuye sustancialmente a la sostenibilidad\",P20=\"La actividad sí contribuye sustancialmente a la sostenibilidad\"),SUM(B20:O20),0),IF(AND('Base-datos'!$B$715=\"\",'Base-datos'!$B$716=\"Sí\",'Base-datos'!$B$717=\"\"),IF(R20=\"La actividad sí contribuye sustancialmente a la sostenibilidad\",SUM(B20:O20),0),IF(AND('Base-datos'!$B$715=\"\",'Base-datos'!$B$716=\"\",'Base-datos'!$B$717=\"Sí\"),IF(P20=\"La actividad sí contribuye sustancialmente a la sostenibilidad\",U21,0),IF(AND('Base-datos'!$B$715=\"\",'Base-datos'!$B$716=\"Sí\",'Base-datos'!$B$717=\"Sí\"),IF(AND(R20=\"La actividad sí contribuye sustancialmente a la sostenibilidad\",P20=\"La actividad sí contribuye sustancialmente a la sostenibilidad\"),SUM(B20:O20),0),IF(AND('Base-datos'!$B$715=\"Sí\",'Base-datos'!$B$716=\"\",'Base-datos'!$B$717=\"Sí\"),IF(AND(Q20=\"La actividad sí contribuye sustancialmente a la sostenibilidad\",P20=\"La actividad sí contribuye sustancialmente a la sostenibilidad\"),SUM(B20:O20),0),\"Por definir\"))))))))","v":"Por definir"}]
[{"$f":"Agricultura!$C24","v":"Seleccione"},{"$f":"IF(Agricultura!$E24=Seguros_fianzas!B$12,Agricultura!$B24,\"\")","v":""},{"$f":"IF(Agricultura!$E24=Seguros_fianzas!C$12,Agricultura!$B24,\"\")","v":""},{"$f":"IF(Agricultura!$E24=Seguros_fianzas!D$12,Agricultura!$B24,\"\")","v":""},{"$f":"IF(Agricultura!$E24=Seguros_fianzas!E$12,Agricultura!$B24,\"\")","v":""},{"$f":"IF(Agricultura!$E24=Seguros_fianzas!F$12,Agricultura!$B24,\"\")","v":""},{"$f":"IF(Agricultura!$E24=Seguros_fianzas!G$12,Agricultura!$B24,\"\")","v":""},{"$f":"IF(Agricultura!$E24=Seguros_fianzas!H$12,Agricultura!$B24,\"\")","v":""},{"$f":"IF(Agricultura!$E24=Seguros_fianzas!I$12,Agricultura!$B24,\"\")","v":""},{"$f":"IF(Agricultura!$E24=Seguros_fianzas!J$12,Agricultura!$B24,\"\")","v":""},{"$f":"IF(Agricultura!$E24=Seguros_fianzas!K$12,Agricultura!$B24,\"\")","v":""},{"$f":"IF(Agricultura!$E24=Seguros_fianzas!L$12,Agricultura!$B24,\"\")","v":""},{"$f":"IF(Agricultura!$E24=Seguros_fianzas!M$12,Agricultura!$B24,\"\")","v":""},{"$f":"IF(Agricultura!$E24=Seguros_fianzas!N$12,Agricultura!$B24,\"\")","v":""},{"$f":"IF(Agricultura!$E24=Seguros_fianzas!O$12,Agricultura!$B24,\"\")","v":""},{"$f":"_xlfn.XLOOKUP(A21,'Base-datos'!$B$457:$B$509,'Base-datos'!$F$457:$F$509)","v":{"$error":"#N/A"}},{"$f":"_xlfn.XLOOKUP(A21,'Base-datos'!$B$457:$B$509,'Base-datos'!$C$457:$C$509)","v":{"$error":"#N/A"}},{"$f":"_xlfn.XLOOKUP(A21,'Base-datos'!$B$457:$B$509,'Base-datos'!$D$457:$D$509)","v":{"$error":"#N/A"}},null,null,{"$f":"IF(OR(S$13=\"La actividad no cumple con el total de los criterios de No Daño Significativo\",T$13=\"El sector no cumple con las salvaguardas mínimas\"),\"\",IF(AND('Base-datos'!$B$715=\"Sí\",'Base-datos'!$B$716=\"\",'Base-datos'!$B$717=\"\"),IF(Q21=\"La actividad sí contribuye sustancialmente a la sostenibilidad\",SUM(B21:O21),0),IF(AND('Base-datos'!$B$715=\"Sí\",'Base-datos'!$B$716=\"Sí\",'Base-datos'!$B$717=\"\"),IF(AND(Q21=\"La actividad sí contribuye sustancialmente a la sostenibilidad\",R21=\"La actividad sí contribuye sustancialmente a la sostenibilidad\"),SUM(B21:O21),0),IF(AND('Base-datos'!$B$715=\"Sí\",'Base-datos'!$B$716=\"Sí\",'Base-datos'!$B$717=\"Sí\"),IF(AND(Q21=\"La actividad sí contribuye sustancialmente a la sostenibilidad\",R21=\"La actividad sí contribuye sustancialmente a la sostenibilidad\",P21=\"La actividad sí contribuye sustancialmente a la sostenibilidad\"),SUM(B21:O21),0),IF(AND('Base-datos'!$B$715=\"\",'Base-datos'!$B$716=\"Sí\",'Base-datos'!$B$717=\"\"),IF(R21=\"La actividad sí contribuye sustancialmente a la sostenibilidad\",SUM(B21:O21),0),IF(AND('Base-datos'!$B$715=\"\",'Base-datos'!$B$716=\"\",'Base-datos'!$B$717=\"Sí\"),IF(P21=\"La actividad sí contribuye sustancialmente a la sostenibilidad\",U22,0),IF(AND('Base-datos'!$B$715=\"\",'Base-datos'!$B$716=\"Sí\",'Base-datos'!$B$717=\"Sí\"),IF(AND(R21=\"La actividad sí contribuye sustancialmente a la sostenibilidad\",P21=\"La actividad sí contribuye sustancialmente a la sostenibilidad\"),SUM(B21:O21),0),IF(AND('Base-datos'!$B$715=\"Sí\",'Base-datos'!$B$716=\"\",'Base-datos'!$B$717=\"Sí\"),IF(AND(Q21=\"La actividad sí contribuye sustancialmente a la sostenibilidad\",P21=\"La actividad sí contribuye sustancialmente a la sostenibilidad\"),SUM(B21:O21),0),\"Por definir\"))))))))","v":"Por definir"}]
[{"$f":"Agricultura!$C26","v":"Seleccione"},{"$f":"IF(Agricultura!$E26=Seguros_fianzas!B$12,Agricultura!$B26,\"\")","v":""},{"$f":"IF(Agricultura!$E26=Seguros_fianzas!C$12,Agricultura!$B26,\"\")","v":""},{"$f":"IF(Agricultura!$E26=Seguros_fianzas!D$12,Agricultura!$B26,\"\")","v":""},{"$f":"IF(Agricultura!$E26=Seguros_fianzas!E$12,Agricultura!$B26,\"\")","v":""},{"$f":"IF(Agricultura!$E26=Seguros_fianzas!F$12,Agricultura!$B26,\"\")","v":""},{"$f":"IF(Agricultura!$E26=Seguros_fianzas!G$12,Agricultura!$B26,\"\")","v":""},{"$f":"IF(Agricultura!$E26=Seguros_fianzas!H$12,Agricultura!$B26,\"\")","v":""},{"$f":"IF(Agricultura!$E26=Seguros_fianzas!I$12,Agricultura!$B26,\"\")","v":""},{"$f":"IF(Agricultura!$E26=Seguros_fianzas!J$12,Agricultura!$B26,\"\")","v":""},{"$f":"IF(Agricultura!$E26=Seguros_fianzas!K$12,Agricultura!$B26,\"\")","v":""},{"$f":"IF(Agricultura!$E26=Seguros_fianzas!L$12,Agricultura!$B26,\"\")","v":""},{"$f":"IF(Agricultura!$E26=Seguros_fianzas!M$12,Agricultura!$B26,\"\")","v":""},{"$f":"IF(Agricultura!$E26=Seguros_fianzas!N$12,Agricultura!$B26,\"\")","v":""},{"$f":"IF(Agricultura!$E26=Seguros_fianzas!O$12,Agricultura!$B26,\"\")","v":""},{"$f":"_xlfn.XLOOKUP(A22,'Base-datos'!$B$457:$B$509,'Base-datos'!$F$457:$F$509)","v":{"$error":"#N/A"}},{"$f":"_xlfn.XLOOKUP(A22,'Base-datos'!$B$457:$B$509,'Base-datos'!$C$457:$C$509)","v":{"$error":"#N/A"}},{"$f":"_xlfn.XLOOKUP(A22,'Base-datos'!$B$457:$B$509,'Base-datos'!$D$457:$D$509)","v":{"$error":"#N/A"}},null,null,{"$f":"IF(OR(S$13=\"La actividad no cumple con el total de los criterios de No Daño Significativo\",T$13=\"El sector no cumple con las salvaguardas mínimas\"),\"\",IF(AND('Base-datos'!$B$715=\"Sí\",'Base-datos'!$B$716=\"\",'Base-datos'!$B$717=\"\"),IF(Q22=\"La actividad sí contribuye sustancialmente a la sostenibilidad\",SUM(B22:O22),0),IF(AND('Base-datos'!$B$715=\"Sí\",'Base-datos'!$B$716=\"Sí\",'Base-datos'!$B$717=\"\"),IF(AND(Q22=\"La actividad sí contribuye sustancialmente a la sostenibilidad\",R22=\"La actividad sí contribuye sustancialmente a la sostenibilidad\"),SUM(B22:O22),0),IF(AND('Base-datos'!$B$715=\"Sí\",'Base-datos'!$B$716=\"Sí\",'Base-datos'!$B$717=\"Sí\"),IF(AND(Q22=\"La actividad sí contribuye sustancialmente a la sostenibilidad\",R22=\"La actividad sí contribuye sustancialmente a la sostenibilidad\",P22=\"La actividad sí contribuye sustancialmente a la sostenibilidad\"),SUM(B22:O22),0),IF(AND('Base-datos'!$B$715=\"\",'Base-datos'!$B$716=\"Sí\",'Base-datos'!$B$717=\"\"),IF(R22=\"La actividad sí contribuye sustancialmente a la sostenibilidad\",SUM(B22:O22),0),IF(AND('Base-datos'!$B$715=\"\",'Base-datos'!$B$716=\"\",'Base-datos'!$B$717=\"Sí\"),IF(P22=\"La actividad sí contribuye sustancialmente a la sostenibilidad\",U23,0),IF(AND('Base-datos'!$B$715=\"\",'Base-datos'!$B$716=\"Sí\",'Base-datos'!$B$717=\"Sí\"),IF(AND(R22=\"La actividad sí contribuye sustancialmente a la sostenibilidad\",P22=\"La actividad sí contribuye sustancialmente a la sostenibilidad\"),SUM(B22:O22),0),IF(AND('Base-datos'!$B$715=\"Sí\",'Base-datos'!$B$716=\"\",'Base-datos'!$B$717=\"Sí\"),IF(AND(Q22=\"La actividad sí contribuye sustancialmente a la sostenibilidad\",P22=\"La actividad sí contribuye sustancialmente a la sostenibilidad\"),SUM(B22:O22),0),\"Por definir\"))))))))","v":"Por definir"}]
[{"$f":"Agricultura!$C28","v":"Seleccione"},{"$f":"IF(Agricultura!$E28=Seguros_fianzas!B$12,Agricultura!$B28,\"\")","v":""},{"$f":"IF(Agricultura!$E28=Seguros_fianzas!C$12,Agricultura!$B28,\"\")","v":""},{"$f":"IF(Agricultura!$E28=Seguros_fianzas!D$12,Agricultura!$B28,\"\")","v":""},{"$f":"IF(Agricultura!$E28=Seguros_fianzas!E$12,Agricultura!$B28,\"\")","v":""},{"$f":"IF(Agricultura!$E28=Seguros_fianzas!F$12,Agricultura!$B28,\"\")","v":""},{"$f":"IF(Agricultura!$E28=Seguros_fianzas!G$12,Agricultura!$B28,\"\")","v":""},{"$f":"IF(Agricultura!$E28=Seguros_fianzas!H$12,Agricultura!$B28,\"\")","v":""},{"$f":"IF(Agricultura!$E28=Seguros_fianzas!I$12,Agricultura!$B28,\"\")","v":""},{"$f":"IF(Agricultura!$E28=Seguros_fianzas!J$12,Agricultura!$B28,\"\")","v":""},{"$f":"IF(Agricultura!$E28=Seguros_fianzas!K$12,Agricultura!$B28,\"\")","v":""},{"$f":"IF(Agricultura!$E28=Seguros_fianzas!L$12,Agricultura!$B28,\"\")","v":""},{"$f":"IF(Agricultura!$E28=Seguros_fianzas!M$12,Agricultura!$B28,\"\")","v":""},{"$f":"IF(Agricultura!$E28=Seguros_fianzas!N$12,Agricultura!$B28,\"\")","v":""},{"$f":"IF(Agricultura!$E28=Seguros_fianzas!O$12,Agricultura!$B28,\"\")","v":""},{"$f":"_xlfn.XLOOKUP(A23,'Base-datos'!$B$457:$B$509,'Base-datos'!$F$457:$F$509)","v":{"$error":"#N/A"}},{"$f":"_xlfn.XLOOKUP(A23,'Base-datos'!$B$457:$B$509,'Base-datos'!$C$457:$C$509)","v":{"$error":"#N/A"}},{"$f":"_xlfn.XLOOKUP(A23,'Base-datos'!$B$457:$B$509,'Base-datos'!$D$457:$D$509)","v":{"$error":"#N/A"}},null,null,{"$f":"IF(OR(S$13=\"La actividad no cumple con el total de los criterios de No Daño Significativo\",T$13=\"El sector no cumple con las salvaguardas mínimas\"),\"\",IF(AND('Base-datos'!$B$715=\"Sí\",'Base-datos'!$B$716=\"\",'Base-datos'!$B$717=\"\"),IF(Q23=\"La actividad sí contribuye sustancialmente a la sostenibilidad\",SUM(B23:O23),0),IF(AND('Base-datos'!$B$715=\"Sí\",'Base-datos'!$B$716=\"Sí\",'Base-datos'!$B$717=\"\"),IF(AND(Q23=\"La actividad sí contribuye sustancialmente a la sostenibilidad\",R23=\"La actividad sí contribuye sustancialmente a la sostenibilidad\"),SUM(B23:O23),0),IF(AND('Base-datos'!$B$715=\"Sí\",'Base-datos'!$B$716=\"Sí\",'Base-datos'!$B$717=\"Sí\"),IF(AND(Q23=\"La actividad sí contribuye sustancialmente a la sostenibilidad\",R23=\"La actividad sí contribuye sustancialmente a la sostenibilidad\",P23=\"La actividad sí contribuye sustancialmente a la sostenibilidad\"),SUM(B23:O23),0),IF(AND('Base-datos'!$B$715=\"\",'Base-datos'!$B$716=\"Sí\",'Base-datos'!$B$717=\"\"),IF(R23=\"La actividad sí contribuye sustancialmente a la sostenibilidad\",SUM(B23:O23),0),IF(AND('Base-datos'!$B$715=\"\",'Base-datos'!$B$716=\"\",'Base-datos'!$B$717=\"Sí\"),IF(P23=\"La actividad sí contribuye sustancialmente a la sostenibilidad\",U24,0),IF(AND('Base-datos'!$B$715=\"\",'Base-datos'!$B$716=\"Sí\",'Base-datos'!$B$717=\"Sí\"),IF(AND(R23=\"La actividad sí contribuye sustancialmente a la sostenibilidad\",P23=\"La actividad sí contribuye sustancialmente a la sostenibilidad\"),SUM(B23:O23),0),IF(AND('Base-datos'!$B$715=\"Sí\",'Base-datos'!$B$716=\"\",'Base-datos'!$B$717=\"Sí\"),IF(AND(Q23=\"La actividad sí contribuye sustancialmente a la sostenibilidad\",P23=\"La actividad sí contribuye sustancialmente a la sostenibilidad\"),SUM(B23:O23),0),\"Por definir\"))))))))","v":"Por definir"}]
[{"$f":"Agricultura!$C30","v":"Seleccione"},{"$f":"IF(Agricultura!$E30=Seguros_fianzas!B$12,Agricultura!$B30,\"\")","v":""},{"$f":"IF(Agricultura!$E30=Seguros_fianzas!C$12,Agricultura!$B30,\"\")","v":""},{"$f":"IF(Agricultura!$E30=Seguros_fianzas!D$12,Agricultura!$B30,\"\")","v":""},{"$f":"IF(Agricultura!$E30=Seguros_fianzas!E$12,Agricultura!$B30,\"\")","v":""},{"$f":"IF(Agricultura!$E30=Seguros_fianzas!F$12,Agricultura!$B30,\"\")","v":""},{"$f":"IF(Agricultura!$E30=Seguros_fianzas!G$12,Agricultura!$B30,\"\")","v":""},{"$f":"IF(Agricultura!$E30=Seguros_fianzas!H$12,Agricultura!$B30,\"\")","v":""},{"$f":"IF(Agricultura!$E30=Seguros_fianzas!I$12,Agricultura!$B30,\"\")","v":""},{"$f":"IF(Agricultura!$E30=Seguros_fianzas!J$12,Agricultura!$B30,\"\")","v":""},{"$f":"IF(Agricultura!$E30=Seguros_fianzas!K$12,Agricultura!$B30,\"\")","v":""},{"$f":"IF(Agricultura!$E30=Seguros_fianzas!L$12,Agricultura!$B30,\"\")","v":""},{"$f":"IF(Agricultura!$E30=Seguros_fianzas!M$12,Agricultura!$B30,\"\")","v":""},{"$f":"IF(Agricultura!$E30=Seguros_fianzas!N$12,Agricultura!$B30,\"\")","v":""},{"$f":"IF(Agricultura!$E30=Seguros_fianzas!O$12,Agricultura!$B30,\"\")","v":""},{"$f":"_xlfn.XLOOKUP(A24,'Base-datos'!$B$457:$B$509,'Base-datos'!$F$457:$F$509)","v":{"$error":"#N/A"}},{"$f":"_xlfn.XLOOKUP(A24,'Base-datos'!$B$457:$B$509,'Base-datos'!$C$457:$C$509)","v":{"$error":"#N/A"}},{"$f":"_xlfn.XLOOKUP(A24,'Base-datos'!$B$457:$B$509,'Base-datos'!$D$457:$D$509)","v":{"$error":"#N/A"}},null,null,{"$f":"IF(OR(S$13=\"La actividad no cumple con el total de los criterios de No Daño Significativo\",T$13=\"El sector no cumple con las salvaguardas mínimas\"),\"\",IF(AND('Base-datos'!$B$715=\"Sí\",'Base-datos'!$B$716=\"\",'Base-datos'!$B$717=\"\"),IF(Q24=\"La actividad sí contribuye sustancialmente a la sostenibilidad\",SUM(B24:O24),0),IF(AND('Base-datos'!$B$715=\"Sí\",'Base-datos'!$B$716=\"Sí\",'Base-datos'!$B$717=\"\"),IF(AND(Q24=\"La actividad sí contribuye sustancialmente a la sostenibilidad\",R24=\"La actividad sí contribuye sustancialmente a la sostenibilidad\"),SUM(B24:O24),0),IF(AND('Base-datos'!$B$715=\"Sí\",'Base-datos'!$B$716=\"Sí\",'Base-datos'!$B$717=\"Sí\"),IF(AND(Q24=\"La actividad sí contribuye sustancialmente a la sostenibilidad\",R24=\"La actividad sí contribuye sustancialmente a la sostenibilidad\",P24=\"La actividad sí contribuye sustancialmente a la sostenibilidad\"),SUM(B24:O24),0),IF(AND('Base-datos'!$B$715=\"\",'Base-datos'!$B$716=\"Sí\",'Base-datos'!$B$717=\"\"),IF(R24=\"La actividad sí contribuye sustancialmente a la sostenibilidad\",SUM(B24:O24),0),IF(AND('Base-datos'!$B$715=\"\",'Base-datos'!$B$716=\"\",'Base-datos'!$B$717=\"Sí\"),IF(P24=\"La actividad sí contribuye sustancialmente a la sostenibilidad\",U25,0),IF(AND('Base-datos'!$B$715=\"\",'Base-datos'!$B$716=\"Sí\",'Base-datos'!$B$717=\"Sí\"),IF(AND(R24=\"La actividad sí contribuye sustancialmente a la sostenibilidad\",P24=\"La actividad sí contribuye sustancialmente a la sostenibilidad\"),SUM(B24:O24),0),IF(AND('Base-datos'!$B$715=\"Sí\",'Base-datos'!$B$716=\"\",'Base-datos'!$B$717=\"Sí\"),IF(AND(Q24=\"La actividad sí contribuye sustancialmente a la sostenibilidad\",P24=\"La actividad sí contribuye sustancialmente a la sostenibilidad\"),SUM(B24:O24),0),\"Por definir\"))))))))","v":"Por definir"}]
[{"$f":"Agricultura!$C32","v":"Seleccione"},{"$f":"IF(Agricultura!$E32=Seguros_fianzas!B$12,Agricultura!$B32,\"\")","v":""},{"$f":"IF(Agricultura!$E32=Seguros_fianzas!C$12,Agricultura!$B32,\"\")","v":""},{"$f":"IF(Agricultura!$E32=Seguros_fianzas!D$12,Agricultura!$B32,\"\")","v":""},{"$f":"IF(Agricultura!$E32=Seguros_fianzas!E$12,Agricultura!$B32,\"\")","v":""},{"$f":"IF(Agricultura!$E32=Seguros_fianzas!F$12,Agricultura!$B32,\"\")","v":""},{"$f":"IF(Agricultura!$E32=Seguros_fianzas!G$12,Agricultura!$B32,\"\")","v":""},{"$f":"IF(Agricultura!$E32=Seguros_fianzas!H$12,Agricultura!$B32,\"\")","v":""},{"$f":"IF(Agricultura!$E32=Seguros_fianzas!I$12,Agricultura!$B32,\"\")","v":""},{"$f":"IF(Agricultura!$E32=Seguros_fianzas!J$12,Agricultura!$B32,\"\")","v":""},{"$f":"IF(Agricultura!$E32=Seguros_fianzas!K$12,Agricultura!$B32,\"\")","v":""},{"$f":"IF(Agricultura!$E32=Seguros_fianzas!L$12,Agricultura!$B32,\"\")","v":""},{"$f":"IF(Agricultura!$E32=Seguros_fianzas!M$12,Agricultura!$B32,\"\")","v":""},{"$f":"IF(Agricultura!$E32=Seguros_fianzas!N$12,Agricultura!$B32,\"\")","v":""},{"$f":"IF(Agricultura!$E32=Seguros_fianzas!O$12,Agricultura!$B32,\"\")","v":""},{"$f":"_xlfn.XLOOKUP(A25,'Base-datos'!$B$457:$B$509,'Base-datos'!$F$457:$F$509)","v":{"$error":"#N/A"}},{"$f":"_xlfn.XLOOKUP(A25,'Base-datos'!$B$457:$B$509,'Base-datos'!$C$457:$C$509)","v":{"$error":"#N/A"}},{"$f":"_xlfn.XLOOKUP(A25,'Base-datos'!$B$457:$B$509,'Base-datos'!$D$457:$D$509)","v":{"$error":"#N/A"}},null,null,{"$f":"IF(OR(S$13=\"La actividad no cumple con el total de los criterios de No Daño Significativo\",T$13=\"El sector no cumple con las salvaguardas mínimas\"),\"\",IF(AND('Base-datos'!$B$715=\"Sí\",'Base-datos'!$B$716=\"\",'Base-datos'!$B$717=\"\"),IF(Q25=\"La actividad sí contribuye sustancialmente a la sostenibilidad\",SUM(B25:O25),0),IF(AND('Base-datos'!$B$715=\"Sí\",'Base-datos'!$B$716=\"Sí\",'Base-datos'!$B$717=\"\"),IF(AND(Q25=\"La actividad sí contribuye sustancialmente a la sostenibilidad\",R25=\"La actividad sí contribuye sustancialmente a la sostenibilidad\"),SUM(B25:O25),0),IF(AND('Base-datos'!$B$715=\"Sí\",'Base-datos'!$B$716=\"Sí\",'Base-datos'!$B$717=\"Sí\"),IF(AND(Q25=\"La actividad sí contribuye sustancialmente a la sostenibilidad\",R25=\"La actividad sí contribuye sustancialmente a la sostenibilidad\",P25=\"La actividad sí contribuye sustancialmente a la sostenibilidad\"),SUM(B25:O25),0),IF(AND('Base-datos'!$B$715=\"\",'Base-datos'!$B$716=\"Sí\",'Base-datos'!$B$717=\"\"),IF(R25=\"La actividad sí contribuye sustancialmente a la sostenibilidad\",SUM(B25:O25),0),IF(AND('Base-datos'!$B$715=\"\",'Base-datos'!$B$716=\"\",'Base-datos'!$B$717=\"Sí\"),IF(P25=\"La actividad sí contribuye sustancialmente a la sostenibilidad\",U26,0),IF(AND('Base-datos'!$B$715=\"\",'Base-datos'!$B$716=\"Sí\",'Base-datos'!$B$717=\"Sí\"),IF(AND(R25=\"La actividad sí contribuye sustancialmente a la sostenibilidad\",P25=\"La actividad sí contribuye sustancialmente a la sostenibilidad\"),SUM(B25:O25),0),IF(AND('Base-datos'!$B$715=\"Sí\",'Base-datos'!$B$716=\"\",'Base-datos'!$B$717=\"Sí\"),IF(AND(Q25=\"La actividad sí contribuye sustancialmente a la sostenibilidad\",P25=\"La actividad sí contribuye sustancialmente a la sostenibilidad\"),SUM(B25:O25),0),\"Por definir\"))))))))","v":"Por definir"}]
[{"$f":"Agricultura!$C34","v":"Seleccione"},{"$f":"IF(Agricultura!$E34=Seguros_fianzas!B$12,Agricultura!$B34,\"\")","v":""},{"$f":"IF(Agricultura!$E34=Seguros_fianzas!C$12,Agricultura!$B34,\"\")","v":""},{"$f":"IF(Agricultura!$E34=Seguros_fianzas!D$12,Agricultura!$B34,\"\")","v":""},{"$f":"IF(Agricultura!$E34=Seguros_fianzas!E$12,Agricultura!$B34,\"\")","v":""},{"$f":"IF(Agricultura!$E34=Seguros_fianzas!F$12,Agricultura!$B34,\"\")","v":""},{"$f":"IF(Agricultura!$E34=Seguros_fianzas!G$12,Agricultura!$B34,\"\")","v":""},{"$f":"IF(Agricultura!$E34=Seguros_fianzas!H$12,Agricultura!$B34,\"\")","v":""},{"$f":"IF(Agricultura!$E34=Seguros_fianzas!I$12,Agricultura!$B34,\"\")","v":""},{"$f":"IF(Agricultura!$E34=Seguros_fianzas!J$12,Agricultura!$B34,\"\")","v":""},{"$f":"IF(Agricultura!$E34=Seguros_fianzas!K$12,Agricultura!$B34,\"\")","v":""},{"$f":"IF(Agricultura!$E34=Seguros_fianzas!L$12,Agricultura!$B34,\"\")","v":""},{"$f":"IF(Agricultura!$E34=Seguros_fianzas!M$12,Agricultura!$B34,\"\")","v":""},{"$f":"IF(Agricultura!$E34=Seguros_fianzas!N$12,Agricultura!$B34,\"\")","v":""},{"$f":"IF(Agricultura!$E34=Seguros_fianzas!O$12,Agricultura!$B34,\"\")","v":""},{"$f":"_xlfn.XLOOKUP(A26,'Base-datos'!$B$457:$B$509,'Base-datos'!$F$457:$F$509)","v":{"$error":"#N/A"}},{"$f":"_xlfn.XLOOKUP(A26,'Base-datos'!$B$457:$B$509,'Base-datos'!$C$457:$C$509)","v":{"$error":"#N/A"}},{"$f":"_xlfn.XLOOKUP(A26,'Base-datos'!$B$457:$B$509,'Base-datos'!$D$457:$D$509)","v":{"$error":"#N/A"}},null,null,{"$f":"IF(OR(S$13=\"La actividad no cumple con el total de los criterios de No Daño Significativo\",T$13=\"El sector no cumple con las salvaguardas mínimas\"),\"\",IF(AND('Base-datos'!$B$715=\"Sí\",'Base-datos'!$B$716=\"\",'Base-datos'!$B$717=\"\"),IF(Q26=\"La actividad sí contribuye sustancialmente a la sostenibilidad\",SUM(B26:O26),0),IF(AND('Base-datos'!$B$715=\"Sí\",'Base-datos'!$B$716=\"Sí\",'Base-datos'!$B$717=\"\"),IF(AND(Q26=\"La actividad sí contribuye sustancialmente a la sostenibilidad\",R26=\"La actividad sí contribuye sustancialmente a la sostenibilidad\"),SUM(B26:O26),0),IF(AND('Base-datos'!$B$715=\"Sí\",'Base-datos'!$B$716=\"Sí\",'Base-datos'!$B$717=\"Sí\"),IF(AND(Q26=\"La actividad sí contribuye sustancialmente a la sostenibilidad\",R26=\"La actividad sí contribuye sustancialmente a la sostenibilidad\",P26=\"La actividad sí contribuye sustancialmente a la sostenibilidad\"),SUM(B26:O26),0),IF(AND('Base-datos'!$B$715=\"\",'Base-datos'!$B$716=\"Sí\",'Base-datos'!$B$717=\"\"),IF(R26=\"La actividad sí contribuye sustancialmente a la sostenibilidad\",SUM(B26:O26),0),IF(AND('Base-datos'!$B$715=\"\",'Base-datos'!$B$716=\"\",'Base-datos'!$B$717=\"Sí\"),IF(P26=\"La actividad sí contribuye sustancialmente a la sostenibilidad\",U27,0),IF(AND('Base-datos'!$B$715=\"\",'Base-datos'!$B$716=\"Sí\",'Base-datos'!$B$717=\"Sí\"),IF(AND(R26=\"La actividad sí contribuye sustancialmente a la sostenibilidad\",P26=\"La actividad sí contribuye sustancialmente a la sostenibilidad\"),SUM(B26:O26),0),IF(AND('Base-datos'!$B$715=\"Sí\",'Base-datos'!$B$716=\"\",'Base-datos'!$B$717=\"Sí\"),IF(AND(Q26=\"La actividad sí contribuye sustancialmente a la sostenibilidad\",P26=\"La actividad sí contribuye sustancialmente a la sostenibilidad\"),SUM(B26:O26),0),\"Por definir\"))))))))","v":"Por definir"}]
[{"$f":"Agricultura!$C36","v":"Seleccione"},{"$f":"IF(Agricultura!$E36=Seguros_fianzas!B$12,Agricultura!$B36,\"\")","v":""},{"$f":"IF(Agricultura!$E36=Seguros_fianzas!C$12,Agricultura!$B36,\"\")","v":""},{"$f":"IF(Agricultura!$E36=Seguros_fianzas!D$12,Agricultura!$B36,\"\")","v":""},{"$f":"IF(Agricultura!$E36=Seguros_fianzas!E$12,Agricultura!$B36,\"\")","v":""},{"$f":"IF(Agricultura!$E36=Seguros_fianzas!F$12,Agricultura!$B36,\"\")","v":""},{"$f":"IF(Agricultura!$E36=Seguros_fianzas!G$12,Agricultura!$B36,\"\")","v":""},{"$f":"IF(Agricultura!$E36=Seguros_fianzas!H$12,Agricultura!$B36,\"\")","v":""},{"$f":"IF(Agricultura!$E36=Seguros_fianzas!I$12,Agricultura!$B36,\"\")","v":""},{"$f":"IF(Agricultura!$E36=Seguros_fianzas!J$12,Agricultura!$B36,\"\")","v":""},{"$f":"IF(Agricultura!$E36=Seguros_fianzas!K$12,Agricultura!$B36,\"\")","v":""},{"$f":"IF(Agricultura!$E36=Seguros_fianzas!L$12,Agricultura!$B36,\"\")","v":""},{"$f":"IF(Agricultura!$E36=Seguros_fianzas!M$12,Agricultura!$B36,\"\")","v":""},{"$f":"IF(Agricultura!$E36=Seguros_fianzas!N$12,Agricultura!$B36,\"\")","v":""},{"$f":"IF(Agricultura!$E36=Seguros_fianzas!O$12,Agricultura!$B36,\"\")","v":""},{"$f":"_xlfn.XLOOKUP(A27,'Base-datos'!$B$457:$B$509,'Base-datos'!$F$457:$F$509)","v":{"$error":"#N/A"}},{"$f":"_xlfn.XLOOKUP(A27,'Base-datos'!$B$457:$B$509,'Base-datos'!$C$457:$C$509)","v":{"$error":"#N/A"}},{"$f":"_xlfn.XLOOKUP(A27,'Base-datos'!$B$457:$B$509,'Base-datos'!$D$457:$D$509)","v":{"$error":"#N/A"}},null,null,{"$f":"IF(OR(S$13=\"La actividad no cumple con el total de los criterios de No Daño Significativo\",T$13=\"El sector no cumple con las salvaguardas mínimas\"),\"\",IF(AND('Base-datos'!$B$715=\"Sí\",'Base-datos'!$B$716=\"\",'Base-datos'!$B$717=\"\"),IF(Q27=\"La actividad sí contribuye sustancialmente a la sostenibilidad\",SUM(B27:O27),0),IF(AND('Base-datos'!$B$715=\"Sí\",'Base-datos'!$B$716=\"Sí\",'Base-datos'!$B$717=\"\"),IF(AND(Q27=\"La actividad sí contribuye sustancialmente a la sostenibilidad\",R27=\"La actividad sí contribuye sustancialmente a la sostenibilidad\"),SUM(B27:O27),0),IF(AND('Base-datos'!$B$715=\"Sí\",'Base-datos'!$B$716=\"Sí\",'Base-datos'!$B$717=\"Sí\"),IF(AND(Q27=\"La actividad sí contribuye sustancialmente a la sostenibilidad\",R27=\"La actividad sí contribuye sustancialmente a la sostenibilidad\",P27=\"La actividad sí contribuye sustancialmente a la sostenibilidad\"),SUM(B27:O27),0),IF(AND('Base-datos'!$B$715=\"\",'Base-datos'!$B$716=\"Sí\",'Base-datos'!$B$717=\"\"),IF(R27=\"La actividad sí contribuye sustancialmente a la sostenibilidad\",SUM(B27:O27),0),IF(AND('Base-datos'!$B$715=\"\",'Base-datos'!$B$716=\"\",'Base-datos'!$B$717=\"Sí\"),IF(P27=\"La actividad sí contribuye sustancialmente a la sostenibilidad\",U28,0),IF(AND('Base-datos'!$B$715=\"\",'Base-datos'!$B$716=\"Sí\",'Base-datos'!$B$717=\"Sí\"),IF(AND(R27=\"La actividad sí contribuye sustancialmente a la sostenibilidad\",P27=\"La actividad sí contribuye sustancialmente a la sostenibilidad\"),SUM(B27:O27),0),IF(AND('Base-datos'!$B$715=\"Sí\",'Base-datos'!$B$716=\"\",'Base-datos'!$B$717=\"Sí\"),IF(AND(Q27=\"La actividad sí contribuye sustancialmente a la sostenibilidad\",P27=\"La actividad sí contribuye sustancialmente a la sostenibilidad\"),SUM(B27:O27),0),\"Por definir\"))))))))","v":"Por definir"}]
[{"$f":"Agricultura!$C38","v":"Seleccione"},{"$f":"IF(Agricultura!$E38=Seguros_fianzas!B$12,Agricultura!$B38,\"\")","v":""},{"$f":"IF(Agricultura!$E38=Seguros_fianzas!C$12,Agricultura!$B38,\"\")","v":""},{"$f":"IF(Agricultura!$E38=Seguros_fianzas!D$12,Agricultura!$B38,\"\")","v":""},{"$f":"IF(Agricultura!$E38=Seguros_fianzas!E$12,Agricultura!$B38,\"\")","v":""},{"$f":"IF(Agricultura!$E38=Seguros_fianzas!F$12,Agricultura!$B38,\"\")","v":""},{"$f":"IF(Agricultura!$E38=Seguros_fianzas!G$12,Agricultura!$B38,\"\")","v":""},{"$f":"IF(Agricultura!$E38=Seguros_fianzas!H$12,Agricultura!$B38,\"\")","v":""},{"$f":"IF(Agricultura!$E38=Seguros_fianzas!I$12,Agricultura!$B38,\"\")","v":""},{"$f":"IF(Agricultura!$E38=Seguros_fianzas!J$12,Agricultura!$B38,\"\")","v":""},{"$f":"IF(Agricultura!$E38=Seguros_fianzas!K$12,Agricultura!$B38,\"\")","v":""},{"$f":"IF(Agricultura!$E38=Seguros_fianzas!L$12,Agricultura!$B38,\"\")","v":""},{"$f":"IF(Agricultura!$E38=Seguros_fianzas!M$12,Agricultura!$B38,\"\")","v":""},{"$f":"IF(Agricultura!$E38=Seguros_fianzas!N$12,Agricultura!$B38,\"\")","v":""},{"$f":"IF(Agricultura!$E38=Seguros_fianzas!O$12,Agricultura!$B38,\"\")","v":""},{"$f":"_xlfn.XLOOKUP(A28,'Base-datos'!$B$457:$B$509,'Base-datos'!$F$457:$F$509)","v":{"$error":"#N/A"}},{"$f":"_xlfn.XLOOKUP(A28,'Base-datos'!$B$457:$B$509,'Base-datos'!$C$457:$C$509)","v":{"$error":"#N/A"}},{"$f":"_xlfn.XLOOKUP(A28,'Base-datos'!$B$457:$B$509,'Base-datos'!$D$457:$D$509)","v":{"$error":"#N/A"}},null,null,{"$f":"IF(OR(S$13=\"La actividad no cumple con el total de los criterios de No Daño Significativo\",T$13=\"El sector no cumple con las salvaguardas mínimas\"),\"\",IF(AND('Base-datos'!$B$715=\"Sí\",'Base-datos'!$B$716=\"\",'Base-datos'!$B$717=\"\"),IF(Q28=\"La actividad sí contribuye sustancialmente a la sostenibilidad\",SUM(B28:O28),0),IF(AND('Base-datos'!$B$715=\"Sí\",'Base-datos'!$B$716=\"Sí\",'Base-datos'!$B$717=\"\"),IF(AND(Q28=\"La actividad sí contribuye sustancialmente a la sostenibilidad\",R28=\"La actividad sí contribuye sustancialmente a la sostenibilidad\"),SUM(B28:O28),0),IF(AND('Base-datos'!$B$715=\"Sí\",'Base-datos'!$B$716=\"Sí\",'Base-datos'!$B$717=\"Sí\"),IF(AND(Q28=\"La actividad sí contribuye sustancialmente a la sostenibilidad\",R28=\"La actividad sí contribuye sustancialmente a la sostenibilidad\",P28=\"La actividad sí contribuye sustancialmente a la sostenibilidad\"),SUM(B28:O28),0),IF(AND('Base-datos'!$B$715=\"\",'Base-datos'!$B$716=\"Sí\",'Base-datos'!$B$717=\"\"),IF(R28=\"La actividad sí contribuye sustancialmente a la sostenibilidad\",SUM(B28:O28),0),IF(AND('Base-datos'!$B$715=\"\",'Base-datos'!$B$716=\"\",'Base-datos'!$B$717=\"Sí\"),IF(P28=\"La actividad sí contribuye sustancialmente a la sostenibilidad\",U29,0),IF(AND('Base-datos'!$B$715=\"\",'Base-datos'!$B$716=\"Sí\",'Base-datos'!$B$717=\"Sí\"),IF(AND(R28=\"La actividad sí contribuye sustancialmente a la sostenibilidad\",P28=\"La actividad sí contribuye sustancialmente a la sostenibilidad\"),SUM(B28:O28),0),IF(AND('Base-datos'!$B$715=\"Sí\",'Base-datos'!$B$716=\"\",'Base-datos'!$B$717=\"Sí\"),IF(AND(Q28=\"La actividad sí contribuye sustancialmente a la sostenibilidad\",P28=\"La actividad sí contribuye sustancialmente a la sostenibilidad\"),SUM(B28:O28),0),\"Por definir\"))))))))","v":"Por definir"}]
[{"$f":"Agricultura!$C40","v":"Seleccione"},{"$f":"IF(Agricultura!$E40=Seguros_fianzas!B$12,Agricultura!$B40,\"\")","v":""},{"$f":"IF(Agricultura!$E40=Seguros_fianzas!C$12,Agricultura!$B40,\"\")","v":""},{"$f":"IF(Agricultura!$E40=Seguros_fianzas!D$12,Agricultura!$B40,\"\")","v":""},{"$f":"IF(Agricultura!$E40=Seguros_fianzas!E$12,Agricultura!$B40,\"\")","v":""},{"$f":"IF(Agricultura!$E40=Seguros_fianzas!F$12,Agricultura!$B40,\"\")","v":""},{"$f":"IF(Agricultura!$E40=Seguros_fianzas!G$12,Agricultura!$B40,\"\")","v":""},{"$f":"IF(Agricultura!$E40=Seguros_fianzas!H$12,Agricultura!$B40,\"\")","v":""},{"$f":"IF(Agricultura!$E40=Seguros_fianzas!I$12,Agricultura!$B40,\"\")","v":""},{"$f":"IF(Agricultura!$E40=Seguros_fianzas!J$12,Agricultura!$B40,\"\")","v":""},{"$f":"IF(Agricultura!$E40=Seguros_fianzas!K$12,Agricultura!$B40,\"\")","v":""},{"$f":"IF(Agricultura!$E40=Seguros_fianzas!L$12,Agricultura!$B40,\"\")","v":""},{"$f":"IF(Agricultura!$E40=Seguros_fianzas!M$12,Agricultura!$B40,\"\")","v":""},{"$f":"IF(Agricultura!$E40=Seguros_fianzas!N$12,Agricultura!$B40,\"\")","v":""},{"$f":"IF(Agricultura!$E40=Seguros_fianzas!O$12,Agricultura!$B40,\"\")","v":""},{"$f":"_xlfn.XLOOKUP(A29,'Base-datos'!$B$457:$B$509,'Base-datos'!$F$457:$F$509)","v":{"$error":"#N/A"}},{"$f":"_xlfn.XLOOKUP(A29,'Base-datos'!$B$457:$B$509,'Base-datos'!$C$457:$C$509)","v":{"$error":"#N/A"}},{"$f":"_xlfn.XLOOKUP(A29,'Base-datos'!$B$457:$B$509,'Base-datos'!$D$457:$D$509)","v":{"$error":"#N/A"}},null,null,{"$f":"IF(OR(S$13=\"La actividad no cumple con el total de los criterios de No Daño Significativo\",T$13=\"El sector no cumple con las salvaguardas mínimas\"),\"\",IF(AND('Base-datos'!$B$715=\"Sí\",'Base-datos'!$B$716=\"\",'Base-datos'!$B$717=\"\"),IF(Q29=\"La actividad sí contribuye sustancialmente a la sostenibilidad\",SUM(B29:O29),0),IF(AND('Base-datos'!$B$715=\"Sí\",'Base-datos'!$B$716=\"Sí\",'Base-datos'!$B$717=\"\"),IF(AND(Q29=\"La actividad sí contribuye sustancialmente a la sostenibilidad\",R29=\"La actividad sí contribuye sustancialmente a la sostenibilidad\"),SUM(B29:O29),0),IF(AND('Base-datos'!$B$715=\"Sí\",'Base-datos'!$B$716=\"Sí\",'Base-datos'!$B$717=\"Sí\"),IF(AND(Q29=\"La actividad sí contribuye sustancialmente a la sostenibilidad\",R29=\"La actividad sí contribuye sustancialmente a la sostenibilidad\",P29=\"La actividad sí contribuye sustancialmente a la sostenibilidad\"),SUM(B29:O29),0),IF(AND('Base-datos'!$B$715=\"\",'Base-datos'!$B$716=\"Sí\",'Base-datos'!$B$717=\"\"),IF(R29=\"La actividad sí contribuye sustancialmente a la sostenibilidad\",SUM(B29:O29),0),IF(AND('Base-datos'!$B$715=\"\",'Base-datos'!$B$716=\"\",'Base-datos'!$B$717=\"Sí\"),IF(P29=\"La actividad sí contribuye sustancialmente a la sostenibilidad\",U30,0),IF(AND('Base-datos'!$B$715=\"\",'Base-datos'!$B$716=\"Sí\",'Base-datos'!$B$717=\"Sí\"),IF(AND(R29=\"La actividad sí contribuye sustancialmente a la sostenibilidad\",P29=\"La actividad sí contribuye sustancialmente a la sostenibilidad\"),SUM(B29:O29),0),IF(AND('Base-datos'!$B$715=\"Sí\",'Base-datos'!$B$716=\"\",'Base-datos'!$B$717=\"Sí\"),IF(AND(Q29=\"La actividad sí contribuye sustancialmente a la sostenibilidad\",P29=\"La actividad sí contribuye sustancialmente a la sostenibilidad\"),SUM(B29:O29),0),\"Por definir\"))))))))","v":"Por definir"}]
[{"$f":"Agricultura!$C42","v":"Seleccione"},{"$f":"IF(Agricultura!$E42=Seguros_fianzas!B$12,Agricultura!$B42,\"\")","v":""},{"$f":"IF(Agricultura!$E42=Seguros_fianzas!C$12,Agricultura!$B42,\"\")","v":""},{"$f":"IF(Agricultura!$E42=Seguros_fianzas!D$12,Agricultura!$B42,\"\")","v":""},{"$f":"IF(Agricultura!$E42=Seguros_fianzas!E$12,Agricultura!$B42,\"\")","v":""},{"$f":"IF(Agricultura!$E42=Seguros_fianzas!F$12,Agricultura!$B42,\"\")","v":""},{"$f":"IF(Agricultura!$E42=Seguros_fianzas!G$12,Agricultura!$B42,\"\")","v":""},{"$f":"IF(Agricultura!$E42=Seguros_fianzas!H$12,Agricultura!$B42,\"\")","v":""},{"$f":"IF(Agricultura!$E42=Seguros_fianzas!I$12,Agricultura!$B42,\"\")","v":""},{"$f":"IF(Agricultura!$E42=Seguros_fianzas!J$12,Agricultura!$B42,\"\")","v":""},{"$f":"IF(Agricultura!$E42=Seguros_fianzas!K$12,Agricultura!$B42,\"\")","v":""},{"$f":"IF(Agricultura!$E42=Seguros_fianzas!L$12,Agricultura!$B42,\"\")","v":""},{"$f":"IF(Agricultura!$E42=Seguros_fianzas!M$12,Agricultura!$B42,\"\")","v":""},{"$f":"IF(Agricultura!$E42=Seguros_fianzas!N$12,Agricultura!$B42,\"\")","v":""},{"$f":"IF(Agricultura!$E42=Seguros_fianzas!O$12,Agricultura!$B42,\"\")","v":""},{"$f":"_xlfn.XLOOKUP(A30,'Base-datos'!$B$457:$B$509,'Base-datos'!$F$457:$F$509)","v":{"$error":"#N/A"}},{"$f":"_xlfn.XLOOKUP(A30,'Base-datos'!$B$457:$B$509,'Base-datos'!$C$457:$C$509)","v":{"$error":"#N/A"}},{"$f":"_xlfn.XLOOKUP(A30,'Base-datos'!$B$457:$B$509,'Base-datos'!$D$457:$D$509)","v":{"$error":"#N/A"}},null,null,{"$f":"IF(OR(S$13=\"La actividad no cumple con el total de los criterios de No Daño Significativo\",T$13=\"El sector no cumple con las salvaguardas mínimas\"),\"\",IF(AND('Base-datos'!$B$715=\"Sí\",'Base-datos'!$B$716=\"\",'Base-datos'!$B$717=\"\"),IF(Q30=\"La actividad sí contribuye sustancialmente a la sostenibilidad\",SUM(B30:O30),0),IF(AND('Base-datos'!$B$715=\"Sí\",'Base-datos'!$B$716=\"Sí\",'Base-datos'!$B$717=\"\"),IF(AND(Q30=\"La actividad sí contribuye sustancialmente a la sostenibilidad\",R30=\"La actividad sí contribuye sustancialmente a la sostenibilidad\"),SUM(B30:O30),0),IF(AND('Base-datos'!$B$715=\"Sí\",'Base-datos'!$B$716=\"Sí\",'Base-datos'!$B$717=\"Sí\"),IF(AND(Q30=\"La actividad sí contribuye sustancialmente a la sostenibilidad\",R30=\"La actividad sí contribuye sustancialmente a la sostenibilidad\",P30=\"La actividad sí contribuye sustancialmente a la sostenibilidad\"),SUM(B30:O30),0),IF(AND('Base-datos'!$B$715=\"\",'Base-datos'!$B$716=\"Sí\",'Base-datos'!$B$717=\"\"),IF(R30=\"La actividad sí contribuye sustancialmente a la sostenibilidad\",SUM(B30:O30),0),IF(AND('Base-datos'!$B$715=\"\",'Base-datos'!$B$716=\"\",'Base-datos'!$B$717=\"Sí\"),IF(P30=\"La actividad sí contribuye sustancialmente a la sostenibilidad\",U31,0),IF(AND('Base-datos'!$B$715=\"\",'Base-datos'!$B$716=\"Sí\",'Base-datos'!$B$717=\"Sí\"),IF(AND(R30=\"La actividad sí contribuye sustancialmente a la sostenibilidad\",P30=\"La actividad sí contribuye sustancialmente a la sostenibilidad\"),SUM(B30:O30),0),IF(AND('Base-datos'!$B$715=\"Sí\",'Base-datos'!$B$716=\"\",'Base-datos'!$B$717=\"Sí\"),IF(AND(Q30=\"La actividad sí contribuye sustancialmente a la sostenibilidad\",P30=\"La actividad sí contribuye sustancialmente a la sostenibilidad\"),SUM(B30:O30),0),\"Por definir\"))))))))","v":"Por definir"}]
[{"$f":"Agricultura!$C44","v":"Seleccione"},{"$f":"IF(Agricultura!$E44=Seguros_fianzas!B$12,Agricultura!$B44,\"\")","v":""},{"$f":"IF(Agricultura!$E44=Seguros_fianzas!C$12,Agricultura!$B44,\"\")","v":""},{"$f":"IF(Agricultura!$E44=Seguros_fianzas!D$12,Agricultura!$B44,\"\")","v":""},{"$f":"IF(Agricultura!$E44=Seguros_fianzas!E$12,Agricultura!$B44,\"\")","v":""},{"$f":"IF(Agricultura!$E44=Seguros_fianzas!F$12,Agricultura!$B44,\"\")","v":""},{"$f":"IF(Agricultura!$E44=Seguros_fianzas!G$12,Agricultura!$B44,\"\")","v":""},{"$f":"IF(Agricultura!$E44=Seguros_fianzas!H$12,Agricultura!$B44,\"\")","v":""},{"$f":"IF(Agricultura!$E44=Seguros_fianzas!I$12,Agricultura!$B44,\"\")","v":""},{"$f":"IF(Agricultura!$E44=Seguros_fianzas!J$12,Agricultura!$B44,\"\")","v":""},{"$f":"IF(Agricultura!$E44=Seguros_fianzas!K$12,Agricultura!$B44,\"\")","v":""},{"$f":"IF(Agricultura!$E44=Seguros_fianzas!L$12,Agricultura!$B44,\"\")","v":""},{"$f":"IF(Agricultura!$E44=Seguros_fianzas!M$12,Agricultura!$B44,\"\")","v":""},{"$f":"IF(Agricultura!$E44=Seguros_fianzas!N$12,Agricultura!$B44,\"\")","v":""},{"$f":"IF(Agricultura!$E44=Seguros_fianzas!O$12,Agricultura!$B44,\"\")","v":""},{"$f":"_xlfn.XLOOKUP(A31,'Base-datos'!$B$457:$B$509,'Base-datos'!$F$457:$F$509)","v":{"$error":"#N/A"}},{"$f":"_xlfn.XLOOKUP(A31,'Base-datos'!$B$457:$B$509,'Base-datos'!$C$457:$C$509)","v":{"$error":"#N/A"}},{"$f":"_xlfn.XLOOKUP(A31,'Base-datos'!$B$457:$B$509,'Base-datos'!$D$457:$D$509)","v":{"$error":"#N/A"}},null,null,{"$f":"IF(OR(S$13=\"La actividad no cumple con el total de los criterios de No Daño Significativo\",T$13=\"El sector no cumple con las salvaguardas mínimas\"),\"\",IF(AND('Base-datos'!$B$715=\"Sí\",'Base-datos'!$B$716=\"\",'Base-datos'!$B$717=\"\"),IF(Q31=\"La actividad sí contribuye sustancialmente a la sostenibilidad\",SUM(B31:O31),0),IF(AND('Base-datos'!$B$715=\"Sí\",'Base-datos'!$B$716=\"Sí\",'Base-datos'!$B$717=\"\"),IF(AND(Q31=\"La actividad sí contribuye sustancialmente a la sostenibilidad\",R31=\"La actividad sí contribuye sustancialmente a la sostenibilidad\"),SUM(B31:O31),0),IF(AND('Base-datos'!$B$715=\"Sí\",'Base-datos'!$B$716=\"Sí\",'Base-datos'!$B$717=\"Sí\"),IF(AND(Q31=\"La actividad sí contribuye sustancialmente a la sostenibilidad\",R31=\"La actividad sí contribuye sustancialmente a la sostenibilidad\",P31=\"La actividad sí contribuye sustancialmente a la sostenibilidad\"),SUM(B31:O31),0),IF(AND('Base-datos'!$B$715=\"\",'Base-datos'!$B$716=\"Sí\",'Base-datos'!$B$717=\"\"),IF(R31=\"La actividad sí contribuye sustancialmente a la sostenibilidad\",SUM(B31:O31),0),IF(AND('Base-datos'!$B$715=\"\",'Base-datos'!$B$716=\"\",'Base-datos'!$B$717=\"Sí\"),IF(P31=\"La actividad sí contribuye sustancialmente a la sostenibilidad\",U32,0),IF(AND('Base-datos'!$B$715=\"\",'Base-datos'!$B$716=\"Sí\",'Base-datos'!$B$717=\"Sí\"),IF(AND(R31=\"La actividad sí contribuye sustancialmente a la sostenibilidad\",P31=\"La actividad sí contribuye sustancialmente a la sostenibilidad\"),SUM(B31:O31),0),IF(AND('Base-datos'!$B$715=\"Sí\",'Base-datos'!$B$716=\"\",'Base-datos'!$B$717=\"Sí\"),IF(AND(Q31=\"La actividad sí contribuye sustancialmente a la sostenibilidad\",P31=\"La actividad sí contribuye sustancialmente a la sostenibilidad\"),SUM(B31:O31),0),\"Por definir\"))))))))","v":"Por definir"}]
[{"$f":"Agricultura!$C46","v":"Seleccione"},{"$f":"IF(Agricultura!$E46=Seguros_fianzas!B$12,Agricultura!$B46,\"\")","v":""},{"$f":"IF(Agricultura!$E46=Seguros_fianzas!C$12,Agricultura!$B46,\"\")","v":""},{"$f":"IF(Agricultura!$E46=Seguros_fianzas!D$12,Agricultura!$B46,\"\")","v":""},{"$f":"IF(Agricultura!$E46=Seguros_fianzas!E$12,Agricultura!$B46,\"\")","v":""},{"$f":"IF(Agricultura!$E46=Seguros_fianzas!F$12,Agricultura!$B46,\"\")","v":""},{"$f":"IF(Agricultura!$E46=Seguros_fianzas!G$12,Agricultura!$B46,\"\")","v":""},{"$f":"IF(Agricultura!$E46=Seguros_fianzas!H$12,Agricultura!$B46,\"\")","v":""},{"$f":"IF(Agricultura!$E46=Seguros_fianzas!I$12,Agricultura!$B46,\"\")","v":""},{"$f":"IF(Agricultura!$E46=Seguros_fianzas!J$12,Agricultura!$B46,\"\")","v":""},{"$f":"IF(Agricultura!$E46=Seguros_fianzas!K$12,Agricultura!$B46,\"\")","v":""},{"$f":"IF(Agricultura!$E46=Seguros_fianzas!L$12,Agricultura!$B46,\"\")","v":""},{"$f":"IF(Agricultura!$E46=Seguros_fianzas!M$12,Agricultura!$B46,\"\")","v":""},{"$f":"IF(Agricultura!$E46=Seguros_fianzas!N$12,Agricultura!$B46,\"\")","v":""},{"$f":"IF(Agricultura!$E46=Seguros_fianzas!O$12,Agricultura!$B46,\"\")","v":""},{"$f":"_xlfn.XLOOKUP(A32,'Base-datos'!$B$457:$B$509,'Base-datos'!$F$457:$F$509)","v":{"$error":"#N/A"}},{"$f":"_xlfn.XLOOKUP(A32,'Base-datos'!$B$457:$B$509,'Base-datos'!$C$457:$C$509)","v":{"$error":"#N/A"}},{"$f":"_xlfn.XLOOKUP(A32,'Base-datos'!$B$457:$B$509,'Base-datos'!$D$457:$D$509)","v":{"$error":"#N/A"}},null,null,{"$f":"IF(OR(S$13=\"La actividad no cumple con el total de los criterios de No Daño Significativo\",T$13=\"El sector no cumple con las salvaguardas mínimas\"),\"\",IF(AND('Base-datos'!$B$715=\"Sí\",'Base-datos'!$B$716=\"\",'Base-datos'!$B$717=\"\"),IF(Q32=\"La actividad sí contribuye sustancialmente a la sostenibilidad\",SUM(B32:O32),0),IF(AND('Base-datos'!$B$715=\"Sí\",'Base-datos'!$B$716=\"Sí\",'Base-datos'!$B$717=\"\"),IF(AND(Q32=\"La actividad sí contribuye sustancialmente a la sostenibilidad\",R32=\"La actividad sí contribuye sustancialmente a la sostenibilidad\"),SUM(B32:O32),0),IF(AND('Base-datos'!$B$715=\"Sí\",'Base-datos'!$B$716=\"Sí\",'Base-datos'!$B$717=\"Sí\"),IF(AND(Q32=\"La actividad sí contribuye sustancialmente a la sostenibilidad\",R32=\"La actividad sí contribuye sustancialmente a la sostenibilidad\",P32=\"La actividad sí contribuye sustancialmente a la sostenibilidad\"),SUM(B32:O32),0),IF(AND('Base-datos'!$B$715=\"\",'Base-datos'!$B$716=\"Sí\",'Base-datos'!$B$717=\"\"),IF(R32=\"La actividad sí contribuye sustancialmente a la sostenibilidad\",SUM(B32:O32),0),IF(AND('Base-datos'!$B$715=\"\",'Base-datos'!$B$716=\"\",'Base-datos'!$B$717=\"Sí\"),IF(P32=\"La actividad sí contribuye sustancialmente a la sostenibilidad\",U33,0),IF(AND('Base-datos'!$B$715=\"\",'Base-datos'!$B$716=\"Sí\",'Base-datos'!$B$717=\"Sí\"),IF(AND(R32=\"La actividad sí contribuye sustancialmente a la sostenibilidad\",P32=\"La actividad sí contribuye sustancialmente a la sostenibilidad\"),SUM(B32:O32),0),IF(AND('Base-datos'!$B$715=\"Sí\",'Base-datos'!$B$716=\"\",'Base-datos'!$B$717=\"Sí\"),IF(AND(Q32=\"La actividad sí contribuye sustancialmente a la sostenibilidad\",P32=\"La actividad sí contribuye sustancialmente a la sostenibilidad\"),SUM(B32:O32),0),\"Por definir\"))))))))","v":"Por definir"}]
[{"$f":"Agricultura!$C48","v":"Seleccione"},{"$f":"IF(Agricultura!$E48=Seguros_fianzas!B$12,Agricultura!$B48,\"\")","v":""},{"$f":"IF(Agricultura!$E48=Seguros_fianzas!C$12,Agricultura!$B48,\"\")","v":""},{"$f":"IF(Agricultura!$E48=Seguros_fianzas!D$12,Agricultura!$B48,\"\")","v":""},{"$f":"IF(Agricultura!$E48=Seguros_fianzas!E$12,Agricultura!$B48,\"\")","v":""},{"$f":"IF(Agricultura!$E48=Seguros_fianzas!F$12,Agricultura!$B48,\"\")","v":""},{"$f":"IF(Agricultura!$E48=Seguros_fianzas!G$12,Agricultura!$B48,\"\")","v":""},{"$f":"IF(Agricultura!$E48=Seguros_fianzas!H$12,Agricultura!$B48,\"\")","v":""},{"$f":"IF(Agricultura!$E48=Seguros_fianzas!I$12,Agricultura!$B48,\"\")","v":""},{"$f":"IF(Agricultura!$E48=Seguros_fianzas!J$12,Agricultura!$B48,\"\")","v":""},{"$f":"IF(Agricultura!$E48=Seguros_fianzas!K$12,Agricultura!$B48,\"\")","v":""},{"$f":"IF(Agricultura!$E48=Seguros_fianzas!L$12,Agricultura!$B48,\"\")","v":""},{"$f":"IF(Agricultura!$E48=Seguros_fianzas!M$12,Agricultura!$B48,\"\")","v":""},{"$f":"IF(Agricultura!$E48=Seguros_fianzas!N$12,Agricultura!$B48,\"\")","v":""},{"$f":"IF(Agricultura!$E48=Seguros_fianzas!O$12,Agricultura!$B48,\"\")","v":""},{"$f":"_xlfn.XLOOKUP(A33,'Base-datos'!$B$457:$B$509,'Base-datos'!$F$457:$F$509)","v":{"$error":"#N/A"}},{"$f":"_xlfn.XLOOKUP(A33,'Base-datos'!$B$457:$B$509,'Base-datos'!$C$457:$C$509)","v":{"$error":"#N/A"}},{"$f":"_xlfn.XLOOKUP(A33,'Base-datos'!$B$457:$B$509,'Base-datos'!$D$457:$D$509)","v":{"$error":"#N/A"}},null,null,{"$f":"IF(OR(S$13=\"La actividad no cumple con el total de los criterios de No Daño Significativo\",T$13=\"El sector no cumple con las salvaguardas mínimas\"),\"\",IF(AND('Base-datos'!$B$715=\"Sí\",'Base-datos'!$B$716=\"\",'Base-datos'!$B$717=\"\"),IF(Q33=\"La actividad sí contribuye sustancialmente a la sostenibilidad\",SUM(B33:O33),0),IF(AND('Base-datos'!$B$715=\"Sí\",'Base-datos'!$B$716=\"Sí\",'Base-datos'!$B$717=\"\"),IF(AND(Q33=\"La actividad sí contribuye sustancialmente a la sostenibilidad\",R33=\"La actividad sí contribuye sustancialmente a la sostenibilidad\"),SUM(B33:O33),0),IF(AND('Base-datos'!$B$715=\"Sí\",'Base-datos'!$B$716=\"Sí\",'Base-datos'!$B$717=\"Sí\"),IF(AND(Q33=\"La actividad sí contribuye sustancialmente a la sostenibilidad\",R33=\"La actividad sí contribuye sustancialmente a la sostenibilidad\",P33=\"La actividad sí contribuye sustancialmente a la sostenibilidad\"),SUM(B33:O33),0),IF(AND('Base-datos'!$B$715=\"\",'Base-datos'!$B$716=\"Sí\",'Base-datos'!$B$717=\"\"),IF(R33=\"La actividad sí contribuye sustancialmente a la sostenibilidad\",SUM(B33:O33),0),IF(AND('Base-datos'!$B$715=\"\",'Base-datos'!$B$716=\"\",'Base-datos'!$B$717=\"Sí\"),IF(P33=\"La actividad sí contribuye sustancialmente a la sostenibilidad\",U34,0),IF(AND('Base-datos'!$B$715=\"\",'Base-datos'!$B$716=\"Sí\",'Base-datos'!$B$717=\"Sí\"),IF(AND(R33=\"La actividad sí contribuye sustancialmente a la sostenibilidad\",P33=\"La actividad sí contribuye sustancialmente a la sostenibilidad\"),SUM(B33:O33),0),IF(AND('Base-datos'!$B$715=\"Sí\",'Base-datos'!$B$716=\"\",'Base-datos'!$B$717=\"Sí\"),IF(AND(Q33=\"La actividad sí contribuye sustancialmente a la sostenibilidad\",P33=\"La actividad sí contribuye sustancialmente a la sostenibilidad\"),SUM(B33:O33),0),\"Por definir\"))))))))","v":"Por definir"}]
["Forestal",null,null,null,null,null,null,null,null,null,null,null,null,null,null,null,null,null,null,null,{"$f":"SUM(IF(FREQUENCY(MATCH(A35:A54, A35:A54, 0), MATCH(A35:A54, A35:A54, 0)) > 0, IF(NOT(ISERROR(U35:U54)), U35:U54, 0)))","v":0}]
[{"$f":"Forestal!$C10","v":"Seleccione"},{"$f":"IF(Forestal!$E10=Seguros_fianzas!B$12,Forestal!$B10,\"\")","v":""},{"$f":"IF(Forestal!$E10=Seguros_fianzas!C$12,Forestal!$B10,\"\")","v":""},{"$f":"IF(Forestal!$E10=Seguros_fianzas!D$12,Forestal!$B10,\"\")","v":""},{"$f":"IF(Forestal!$E10=Seguros_fianzas!E$12,Forestal!$B10,\"\")","v":""},{"$f":"IF(Forestal!$E10=Seguros_fianzas!F$12,Forestal!$B10,\"\")","v":""},{"$f":"IF(Forestal!$E10=Seguros_fianzas!G$12,Forestal!$B10,\"\")","v":""},{"$f":"IF(Forestal!$E10=Seguros_fianzas!H$12,Forestal!$B10,\"\")","v":""},{"$f":"IF(Forestal!$E10=Seguros_fianzas!I$12,Forestal!$B10,\"\")","v":""},{"$f":"IF(Forestal!$E10=Seguros_fianzas!J$12,Forestal!$B10,\"\")","v":""},{"$f":"IF(Forestal!$E10=Seguros_fianzas!K$12,Forestal!$B10,\"\")","v":""},{"$f":"IF(Forestal!$E10=Seguros_fianzas!L$12,Forestal!$B10,\"\")","v":""},{"$f":"IF(Forestal!$E10=Seguros_fianzas!M$12,Forestal!$B10,\"\")","v":""},{"$f":"IF(Forestal!$E10=Seguros_fianzas!N$12,Forestal!$B10,\"\")","v":""},{"$f":"IF(Forestal!$E10=Seguros_fianzas!O$12,Forestal!$B10,\"\")","v":""},{"$f":"_xlfn.XLOOKUP(A35,'Base-datos'!$B$517:$B$520,'Base-datos'!$F$517:$F$520)","v":{"$error":"#N/A"}},{"$f":"_xlfn.XLOOKUP(A35,'Base-datos'!$B$517:$B$520,'Base-datos'!$C$517:$C$520)","v":{"$error":"#N/A"}},{"$f":"_xlfn.XLOOKUP(A35,'Base-datos'!$B$517:$B$520,'Base-datos'!$D$517:$D$520)","v":{"$error":"#N/A"}},{"$f":"IF(COUNTIF('Forestal-NDS'!I7:I48,\"No\")>0,\"La actividad no cumple con el total de los criterios de NDS\",\"La actividad cumple con los criterios de No Daño Significativo\")","v":"La actividad cumple con los criterios de No Daño Significativo"},{"$f":"IF(OR('Salvaguardas mínimas'!$G$10=\"Seleccione\",'Salvaguardas mínimas'!$G$13=\"Seleccione\",'Salvaguardas mínimas'!$G$16=\"Seleccione\",'Salvaguardas mínimas'!$G$7=\"Seleccione\"),\"No se han respondido todas las preguntas\",IF(OR('Salvaguardas mínimas'!$G$10=\"No\",'Salvaguardas mínimas'!$G$13=\"No\",'Salvaguardas mínimas'!$G$16=\"No\",'Salvaguardas mínimas'!$G$7=\"No\"),\"El sector no cumple con las salvaguardas mínimas\",\"La actividad sí cumple con las salvaguardas mínimas\"))","v":"No se han respondido todas las preguntas"},{"$f":"IF(OR(S$35=\"La actividad no cumple con el total de los criterios de No Daño Significativo\",T$35=\"El sector no cumple con las salvaguardas mínimas\"),\"\",IF(AND('Base-datos'!$B$720=\"Sí\",'Base-datos'!$B$721=\"\",'Base-datos'!$B$722=\"\"),IF(Q35=\"La actividad sí contribuye sustancialmente a la sostenibilidad\",SUM(B35:O35),0),IF(AND('Base-datos'!$B$720=\"Sí\",'Base-datos'!$B$721=\"Sí\",'Base-datos'!$B$722=\"\"),IF(AND(Q35=\"La actividad sí contribuye sustancialmente a la sostenibilidad\",R35=\"La actividad sí contribuye sustancialmente a la sostenibilidad\"),SUM(B35:O35),0),IF(AND('Base-datos'!$B$720=\"Sí\",'Base-datos'!$B$721=\"Sí\",'Base-datos'!$B$722=\"Sí\"),IF(AND(Q35=\"La actividad sí contribuye sustancialmente a la sostenibilidad\",R35=\"La actividad sí contribuye sustancialmente a la sostenibilidad\",P35=\"La actividad sí contribuye sustancialmente a la sostenibilidad\"),SUM(B35:O35),0),IF(AND('Base-datos'!$B$720=\"\",'Base-datos'!$B$721=\"Sí\",'Base-datos'!$B$722=\"\"),IF(R35=\"La actividad sí contribuye sustancialmente a la sostenibilidad\",SUM(B35:O35),0),IF(AND('Base-datos'!$B$720=\"\",'Base-datos'!$B$721=\"\",'Base-datos'!$B$722=\"Sí\"),IF(P35=\"La actividad sí contribuye sustancialmente a la sostenibilidad\",SUM(B35:O35),0),IF(AND('Base-datos'!$B$720=\"\",'Base-datos'!$B$721=\"Sí\",'Base-datos'!$B$722=\"Sí\"),IF(AND(R35=\"La actividad sí contribuye sustancialmente a la sostenibilidad\",P35=\"La actividad sí contribuye sustancialmente a la sostenibilidad\"),SUM(B35:O35),0),IF(AND('Base-datos'!$B$720=\"Sí\",'Base-datos'!$B$721=\"\",'Base-datos'!$B$722=\"Sí\"),IF(AND(Q35=\"La actividad sí contribuye sustancialmente a la sostenibilidad\",P35=\"La actividad sí contribuye sustancialmente a la sostenibilidad\"),SUM(B35:O35),0),\"Por definir\"))))))))","v":"Por definir"}]
[{"$f":"Forestal!$C12","v":"Seleccione"},{"$f":"IF(Forestal!$E12=Seguros_fianzas!B$12,Forestal!$B12,\"\")","v":""},{"$f":"IF(Forestal!$E12=Seguros_fianzas!C$12,Forestal!$B12,\"\")","v":""},{"$f":"IF(Forestal!$E12=Seguros_fianzas!D$12,Forestal!$B12,\"\")","v":""},{"$f":"IF(Forestal!$E12=Seguros_fianzas!E$12,Forestal!$B12,\"\")","v":""},{"$f":"IF(Forestal!$E12=Seguros_fianzas!F$12,Forestal!$B12,\"\")","v":""},{"$f":"IF(Forestal!$E12=Seguros_fianzas!G$12,Forestal!$B12,\"\")","v":""},{"$f":"IF(Forestal!$E12=Seguros_fianzas!H$12,Forestal!$B12,\"\")","v":""},{"$f":"IF(Forestal!$E12=Seguros_fianzas!I$12,Forestal!$B12,\"\")","v":""},{"$f":"IF(Forestal!$E12=Seguros_fianzas!J$12,Forestal!$B12,\"\")","v":""},{"$f":"IF(Forestal!$E12=Seguros_fianzas!K$12,Forestal!$B12,\"\")","v":""},{"$f":"IF(Forestal!$E12=Seguros_fianzas!L$12,Forestal!$B12,\"\")","v":""},{"$f":"IF(Forestal!$E12=Seguros_fianzas!M$12,Forestal!$B12,\"\")","v":""},{"$f":"IF(Forestal!$E12=Seguros_fianzas!N$12,Forestal!$B12,\"\")","v":""},{"$f":"IF(Forestal!$E12=Seguros_fianzas!O$12,Forestal!$B12,\"\")","v":""},{"$f":"_xlfn.XLOOKUP(A36,'Base-datos'!$B$517:$B$520,'Base-datos'!$F$517:$F$520)","v":{"$error":"#N/A"}},{"$f":"_xlfn.XLOOKUP(A36,'Base-datos'!$B$517:$B$520,'Base-datos'!$C$517:$C$520)","v":{"$error":"#N/A"}},{"$f":"_xlfn.XLOOKUP(A36,'Base-datos'!$B$517:$B$520,'Base-datos'!$D$517:$D$520)","v":{"$error":"#N/A"}},null,null,{"$f":"IF(OR(S$35=\"La actividad no cumple con el total de los criterios de No Daño Significativo\",T$35=\"El sector no cumple con las salvaguardas mínimas\"),\"\",IF(AND('Base-datos'!$B$720=\"Sí\",'Base-datos'!$B$721=\"\",'Base-datos'!$B$722=\"\"),IF(Q36=\"La actividad sí contribuye sustancialmente a la sostenibilidad\",SUM(B36:O36),0),IF(AND('Base-datos'!$B$720=\"Sí\",'Base-datos'!$B$721=\"Sí\",'Base-datos'!$B$722=\"\"),IF(AND(Q36=\"La actividad sí contribuye sustancialmente a la sostenibilidad\",R36=\"La actividad sí contribuye sustancialmente a la sostenibilidad\"),SUM(B36:O36),0),IF(AND('Base-datos'!$B$720=\"Sí\",'Base-datos'!$B$721=\"Sí\",'Base-datos'!$B$722=\"Sí\"),IF(AND(Q36=\"La actividad sí contribuye sustancialmente a la sostenibilidad\",R36=\"La actividad sí contribuye sustancialmente a la sostenibilidad\",P36=\"La actividad sí contribuye sustancialmente a la sostenibilidad\"),SUM(B36:O36),0),IF(AND('Base-datos'!$B$720=\"\",'Base-datos'!$B$721=\"Sí\",'Base-datos'!$B$722=\"\"),IF(R36=\"La actividad sí contribuye sustancialmente a la sostenibilidad\",SUM(B36:O36),0),IF(AND('Base-datos'!$B$720=\"\",'Base-datos'!$B$721=\"\",'Base-datos'!$B$722=\"Sí\"),IF(P36=\"La actividad sí contribuye sustancialmente a la sostenibilidad\",SUM(B36:O36),0),IF(AND('Base-datos'!$B$720=\"\",'Base-datos'!$B$721=\"Sí\",'Base-datos'!$B$722=\"Sí\"),IF(AND(R36=\"La actividad sí contribuye sustancialmente a la sostenibilidad\",P36=\"La actividad sí contribuye sustancialmente a la sostenibilidad\"),SUM(B36:O36),0),IF(AND('Base-datos'!$B$720=\"Sí\",'Base-datos'!$B$721=\"\",'Base-datos'!$B$722=\"Sí\"),IF(AND(Q36=\"La actividad sí contribuye sustancialmente a la sostenibilidad\",P36=\"La actividad sí contribuye sustancialmente a la sostenibilidad\"),SUM(B36:O36),0),\"Por definir\"))))))))","v":"Por definir"}]
[{"$f":"Forestal!$C14","v":"Seleccione"},{"$f":"IF(Forestal!$E14=Seguros_fianzas!B$12,Forestal!$B14,\"\")","v":""},{"$f":"IF(Forestal!$E14=Seguros_fianzas!C$12,Forestal!$B14,\"\")","v":""},{"$f":"IF(Forestal!$E14=Seguros_fianzas!D$12,Forestal!$B14,\"\")","v":""},{"$f":"IF(Forestal!$E14=Seguros_fianzas!E$12,Forestal!$B14,\"\")","v":""},{"$f":"IF(Forestal!$E14=Seguros_fianzas!F$12,Forestal!$B14,\"\")","v":""},{"$f":"IF(Forestal!$E14=Seguros_fianzas!G$12,Forestal!$B14,\"\")","v":""},{"$f":"IF(Forestal!$E14=Seguros_fianzas!H$12,Forestal!$B14,\"\")","v":""},{"$f":"IF(Forestal!$E14=Seguros_fianzas!I$12,Forestal!$B14,\"\")","v":""},{"$f":"IF(Forestal!$E14=Seguros_fianzas!J$12,Forestal!$B14,\"\")","v":""},{"$f":"IF(Forestal!$E14=Seguros_fianzas!K$12,Forestal!$B14,\"\")","v":""},{"$f":"IF(Forestal!$E14=Seguros_fianzas!L$12,Forestal!$B14,\"\")","v":""},{"$f":"IF(Forestal!$E14=Seguros_fianzas!M$12,Forestal!$B14,\"\")","v":""},{"$f":"IF(Forestal!$E14=Seguros_fianzas!N$12,Forestal!$B14,\"\")","v":""},{"$f":"IF(Forestal!$E14=Seguros_fianzas!O$12,Forestal!$B14,\"\")","v":""},{"$f":"_xlfn.XLOOKUP(A37,'Base-datos'!$B$517:$B$520,'Base-datos'!$F$517:$F$520)","v":{"$error":"#N/A"}},{"$f":"_xlfn.XLOOKUP(A37,'Base-datos'!$B$517:$B$520,'Base-datos'!$C$517:$C$520)","v":{"$error":"#N/A"}},{"$f":"_xlfn.XLOOKUP(A37,'Base-datos'!$B$517:$B$520,'Base-datos'!$D$517:$D$520)","v":{"$error":"#N/A"}},null,null,{"$f":"IF(OR(S$35=\"La actividad no cumple con el total de los criterios de No Daño Significativo\",T$35=\"El sector no cumple con las salvaguardas mínimas\"),\"\",IF(AND('Base-datos'!$B$720=\"Sí\",'Base-datos'!$B$721=\"\",'Base-datos'!$B$722=\"\"),IF(Q37=\"La actividad sí contribuye sustancialmente a la sostenibilidad\",SUM(B37:O37),0),IF(AND('Base-datos'!$B$720=\"Sí\",'Base-datos'!$B$721=\"Sí\",'Base-datos'!$B$722=\"\"),IF(AND(Q37=\"La actividad sí contribuye sustancialmente a la sostenibilidad\",R37=\"La actividad sí contribuye sustancialmente a la sostenibilidad\"),SUM(B37:O37),0),IF(AND('Base-datos'!$B$720=\"Sí\",'Base-datos'!$B$721=\"Sí\",'Base-datos'!$B$722=\"Sí\"),IF(AND(Q37=\"La actividad sí contribuye sustancialmente a la sostenibilidad\",R37=\"La actividad sí contribuye sustancialmente a la sostenibilidad\",P37=\"La actividad sí contribuye sustancialmente a la sostenibilidad\"),SUM(B37:O37),0),IF(AND('Base-datos'!$B$720=\"\",'Base-datos'!$B$721=\"Sí\",'Base-datos'!$B$722=\"\"),IF(R37=\"La actividad sí contribuye sustancialmente a la sostenibilidad\",SUM(B37:O37),0),IF(AND('Base-datos'!$B$720=\"\",'Base-datos'!$B$721=\"\",'Base-datos'!$B$722=\"Sí\"),IF(P37=\"La actividad sí contribuye sustancialmente a la sostenibilidad\",SUM(B37:O37),0),IF(AND('Base-datos'!$B$720=\"\",'Base-datos'!$B$721=\"Sí\",'Base-datos'!$B$722=\"Sí\"),IF(AND(R37=\"La actividad sí contribuye sustancialmente a la sostenibilidad\",P37=\"La actividad sí contribuye sustancialmente a la sostenibilidad\"),SUM(B37:O37),0),IF(AND('Base-datos'!$B$720=\"Sí\",'Base-datos'!$B$721=\"\",'Base-datos'!$B$722=\"Sí\"),IF(AND(Q37=\"La actividad sí contribuye sustancialmente a la sostenibilidad\",P37=\"La actividad sí contribuye sustancialmente a la sostenibilidad\"),SUM(B37:O37),0),\"Por definir\"))))))))","v":"Por definir"}]
[{"$f":"Forestal!$C16","v":"Seleccione"},{"$f":"IF(Forestal!$E16=Seguros_fianzas!B$12,Forestal!$B16,\"\")","v":""},{"$f":"IF(Forestal!$E16=Seguros_fianzas!C$12,Forestal!$B16,\"\")","v":""},{"$f":"IF(Forestal!$E16=Seguros_fianzas!D$12,Forestal!$B16,\"\")","v":""},{"$f":"IF(Forestal!$E16=Seguros_fianzas!E$12,Forestal!$B16,\"\")","v":""},{"$f":"IF(Forestal!$E16=Seguros_fianzas!F$12,Forestal!$B16,\"\")","v":""},{"$f":"IF(Forestal!$E16=Seguros_fianzas!G$12,Forestal!$B16,\"\")","v":""},{"$f":"IF(Forestal!$E16=Seguros_fianzas!H$12,Forestal!$B16,\"\")","v":""},{"$f":"IF(Forestal!$E16=Seguros_fianzas!I$12,Forestal!$B16,\"\")","v":""},{"$f":"IF(Forestal!$E16=Seguros_fianzas!J$12,Forestal!$B16,\"\")","v":""},{"$f":"IF(Forestal!$E16=Seguros_fianzas!K$12,Forestal!$B16,\"\")","v":""},{"$f":"IF(Forestal!$E16=Seguros_fianzas!L$12,Forestal!$B16,\"\")","v":""},{"$f":"IF(Forestal!$E16=Seguros_fianzas!M$12,Forestal!$B16,\"\")","v":""},{"$f":"IF(Forestal!$E16=Seguros_fianzas!N$12,Forestal!$B16,\"\")","v":""},{"$f":"IF(Forestal!$E16=Seguros_fianzas!O$12,Forestal!$B16,\"\")","v":""},{"$f":"_xlfn.XLOOKUP(A38,'Base-datos'!$B$517:$B$520,'Base-datos'!$F$517:$F$520)","v":{"$error":"#N/A"}},{"$f":"_xlfn.XLOOKUP(A38,'Base-datos'!$B$517:$B$520,'Base-datos'!$C$517:$C$520)","v":{"$error":"#N/A"}},{"$f":"_xlfn.XLOOKUP(A38,'Base-datos'!$B$517:$B$520,'Base-datos'!$D$517:$D$520)","v":{"$error":"#N/A"}},null,null,{"$f":"IF(OR(S$35=\"La actividad no cumple con el total de los criterios de No Daño Significativo\",T$35=\"El sector no cumple con las salvaguardas mínimas\"),\"\",IF(AND('Base-datos'!$B$720=\"Sí\",'Base-datos'!$B$721=\"\",'Base-datos'!$B$722=\"\"),IF(Q38=\"La actividad sí contribuye sustancialmente a la sostenibilidad\",SUM(B38:O38),0),IF(AND('Base-datos'!$B$720=\"Sí\",'Base-datos'!$B$721=\"Sí\",'Base-datos'!$B$722=\"\"),IF(AND(Q38=\"La actividad sí contribuye sustancialmente a la sostenibilidad\",R38=\"La actividad sí contribuye sustancialmente a la sostenibilidad\"),SUM(B38:O38),0),IF(AND('Base-datos'!$B$720=\"Sí\",'Base-datos'!$B$721=\"Sí\",'Base-datos'!$B$722=\"Sí\"),IF(AND(Q38=\"La actividad sí contribuye sustancialmente a la sostenibilidad\",R38=\"La actividad sí contribuye sustancialmente a la sostenibilidad\",P38=\"La actividad sí contribuye sustancialmente a la sostenibilidad\"),SUM(B38:O38),0),IF(AND('Base-datos'!$B$720=\"\",'Base-datos'!$B$721=\"Sí\",'Base-datos'!$B$722=\"\"),IF(R38=\"La actividad sí contribuye sustancialmente a la sostenibilidad\",SUM(B38:O38),0),IF(AND('Base-datos'!$B$720=\"\",'Base-datos'!$B$721=\"\",'Base-datos'!$B$722=\"Sí\"),IF(P38=\"La actividad sí contribuye sustancialmente a la sostenibilidad\",SUM(B38:O38),0),IF(AND('Base-datos'!$B$720=\"\",'Base-datos'!$B$721=\"Sí\",'Base-datos'!$B$722=\"Sí\"),IF(AND(R38=\"La actividad sí contribuye sustancialmente a la sostenibilidad\",P38=\"La actividad sí contribuye sustancialmente a la sostenibilidad\"),SUM(B38:O38),0),IF(AND('Base-datos'!$B$720=\"Sí\",'Base-datos'!$B$721=\"\",'Base-datos'!$B$722=\"Sí\"),IF(AND(Q38=\"La actividad sí contribuye sustancialmente a la sostenibilidad\",P38=\"La actividad sí contribuye sustancialmente a la sostenibilidad\"),SUM(B38:O38),0),\"Por definir\"))))))))","v":"Por definir"}]
[{"$f":"Forestal!$C18","v":"Seleccione"},{"$f":"IF(Forestal!$E18=Seguros_fianzas!B$12,Forestal!$B18,\"\")","v":""},{"$f":"IF(Forestal!$E18=Seguros_fianzas!C$12,Forestal!$B18,\"\")","v":""},{"$f":"IF(Forestal!$E18=Seguros_fianzas!D$12,Forestal!$B18,\"\")","v":""},{"$f":"IF(Forestal!$E18=Seguros_fianzas!E$12,Forestal!$B18,\"\")","v":""},{"$f":"IF(Forestal!$E18=Seguros_fianzas!F$12,Forestal!$B18,\"\")","v":""},{"$f":"IF(Forestal!$E18=Seguros_fianzas!G$12,Forestal!$B18,\"\")","v":""},{"$f":"IF(Forestal!$E18=Seguros_fianzas!H$12,Forestal!$B18,\"\")","v":""},{"$f":"IF(Forestal!$E18=Seguros_fianzas!I$12,Forestal!$B18,\"\")","v":""},{"$f":"IF(Forestal!$E18=Seguros_fianzas!J$12,Forestal!$B18,\"\")","v":""},{"$f":"IF(Forestal!$E18=Seguros_fianzas!K$12,Forestal!$B18,\"\")","v":""},{"$f":"IF(Forestal!$E18=Seguros_fianzas!L$12,Forestal!$B18,\"\")","v":""},{"$f":"IF(Forestal!$E18=Seguros_fianzas!M$12,Forestal!$B18,\"\")","v":""},{"$f":"IF(Forestal!$E18=Seguros_fianzas!N$12,Forestal!$B18,\"\")","v":""},{"$f":"IF(Forestal!$E18=Seguros_fianzas!O$12,Forestal!$B18,\"\")","v":""},{"$f":"_xlfn.XLOOKUP(A39,'Base-datos'!$B$517:$B$520,'Base-datos'!$F$517:$F$520)","v":{"$error":"#N/A"}},{"$f":"_xlfn.XLOOKUP(A39,'Base-datos'!$B$517:$B$520,'Base-datos'!$C$517:$C$520)","v":{"$error":"#N/A"}},{"$f":"_xlfn.XLOOKUP(A39,'Base-datos'!$B$517:$B$520,'Base-datos'!$D$517:$D$520)","v":{"$error":"#N/A"}},null,null,{"$f":"IF(OR(S$35=\"La actividad no cumple con el total de los criterios de No Daño Significativo\",T$35=\"El sector no cumple con las salvaguardas mínimas\"),\"\",IF(AND('Base-datos'!$B$720=\"Sí\",'Base-datos'!$B$721=\"\",'Base-datos'!$B$722=\"\"),IF(Q39=\"La actividad sí contribuye sustancialmente a la sostenibilidad\",SUM(B39:O39),0),IF(AND('Base-datos'!$B$720=\"Sí\",'Base-datos'!$B$721=\"Sí\",'Base-datos'!$B$722=\"\"),IF(AND(Q39=\"La actividad sí contribuye sustancialmente a la sostenibilidad\",R39=\"La actividad sí contribuye sustancialmente a la sostenibilidad\"),SUM(B39:O39),0),IF(AND('Base-datos'!$B$720=\"Sí\",'Base-datos'!$B$721=\"Sí\",'Base-datos'!$B$722=\"Sí\"),IF(AND(Q39=\"La actividad sí contribuye sustancialmente a la sostenibilidad\",R39=\"La actividad sí contribuye sustancialmente a la sostenibilidad\",P39=\"La actividad sí contribuye sustancialmente a la sostenibilidad\"),SUM(B39:O39),0),IF(AND('Base-datos'!$B$720=\"\",'Base-datos'!$B$721=\"Sí\",'Base-datos'!$B$722=\"\"),IF(R39=\"La actividad sí contribuye sustancialmente a la sostenibilidad\",SUM(B39:O39),0),IF(AND('Base-datos'!$B$720=\"\",'Base-datos'!$B$721=\"\",'Base-datos'!$B$722=\"Sí\"),IF(P39=\"La actividad sí contribuye sustancialmente a la sostenibilidad\",SUM(B39:O39),0),IF(AND('Base-datos'!$B$720=\"\",'Base-datos'!$B$721=\"Sí\",'Base-datos'!$B$722=\"Sí\"),IF(AND(R39=\"La actividad sí contribuye sustancialmente a la sostenibilidad\",P39=\"La actividad sí contribuye sustancialmente a la sostenibilidad\"),SUM(B39:O39),0),IF(AND('Base-datos'!$B$720=\"Sí\",'Base-datos'!$B$721=\"\",'Base-datos'!$B$722=\"Sí\"),IF(AND(Q39=\"La actividad sí contribuye sustancialmente a la sostenibilidad\",P39=\"La actividad sí contribuye sustancialmente a la sostenibilidad\"),SUM(B39:O39),0),\"Por definir\"))))))))","v":"Por definir"}]
[{"$f":"Forestal!$C20","v":"Seleccione"},{"$f":"IF(Forestal!$E20=Seguros_fianzas!B$12,Forestal!$B20,\"\")","v":""},{"$f":"IF(Forestal!$E20=Seguros_fianzas!C$12,Forestal!$B20,\"\")","v":""},{"$f":"IF(Forestal!$E20=Seguros_fianzas!D$12,Forestal!$B20,\"\")","v":""},{"$f":"IF(Forestal!$E20=Seguros_fianzas!E$12,Forestal!$B20,\"\")","v":""},{"$f":"IF(Forestal!$E20=Seguros_fianzas!F$12,Forestal!$B20,\"\")","v":""},{"$f":"IF(Forestal!$E20=Seguros_fianzas!G$12,Forestal!$B20,\"\")","v":""},{"$f":"IF(Forestal!$E20=Seguros_fianzas!H$12,Forestal!$B20,\"\")","v":""},{"$f":"IF(Forestal!$E20=Seguros_fianzas!I$12,Forestal!$B20,\"\")","v":""},{"$f":"IF(Forestal!$E20=Seguros_fianzas!J$12,Forestal!$B20,\"\")","v":""},{"$f":"IF(Forestal!$E20=Seguros_fianzas!K$12,Forestal!$B20,\"\")","v":""},{"$f":"IF(Forestal!$E20=Seguros_fianzas!L$12,Forestal!$B20,\"\")","v":""},{"$f":"IF(Forestal!$E20=Seguros_fianzas!M$12,Forestal!$B20,\"\")","v":""},{"$f":"IF(Forestal!$E20=Seguros_fianzas!N$12,Forestal!$B20,\"\")","v":""},{"$f":"IF(Forestal!$E20=Seguros_fianzas!O$12,Forestal!$B20,\"\")","v":""},{"$f":"_xlfn.XLOOKUP(A40,'Base-datos'!$B$517:$B$520,'Base-datos'!$F$517:$F$520)","v":{"$error":"#N/A"}},{"$f":"_xlfn.XLOOKUP(A40,'Base-datos'!$B$517:$B$520,'Base-datos'!$C$517:$C$520)","v":{"$error":"#N/A"}},{"$f":"_xlfn.XLOOKUP(A40,'Base-datos'!$B$517:$B$520,'Base-datos'!$D$517:$D$520)","v":{"$error":"#N/A"}},null,null,{"$f":"IF(OR(S$35=\"La actividad no cumple con el total de los criterios de No Daño Significativo\",T$35=\"El sector no cumple con las salvaguardas mínimas\"),\"\",IF(AND('Base-datos'!$B$720=\"Sí\",'Base-datos'!$B$721=\"\",'Base-datos'!$B$722=\"\"),IF(Q40=\"La actividad sí contribuye sustancialmente a la sostenibilidad\",SUM(B40:O40),0),IF(AND('Base-datos'!$B$720=\"Sí\",'Base-datos'!$B$721=\"Sí\",'Base-datos'!$B$722=\"\"),IF(AND(Q40=\"La actividad sí contribuye sustancialmente a la sostenibilidad\",R40=\"La actividad sí contribuye sustancialmente a la sostenibilidad\"),SUM(B40:O40),0),IF(AND('Base-datos'!$B$720=\"Sí\",'Base-datos'!$B$721=\"Sí\",'Base-datos'!$B$722=\"Sí\"),IF(AND(Q40=\"La actividad sí contribuye sustancialmente a la sostenibilidad\",R40=\"La actividad sí contribuye sustancialmente a la sostenibilidad\",P40=\"La actividad sí contribuye sustancialmente a la sostenibilidad\"),SUM(B40:O40),0),IF(AND('Base-datos'!$B$720=\"\",'Base-datos'!$B$721=\"Sí\",'Base-datos'!$B$722=\"\"),IF(R40=\"La actividad sí contribuye sustancialmente a la sostenibilidad\",SUM(B40:O40),0),IF(AND('Base-datos'!$B$720=\"\",'Base-datos'!$B$721=\"\",'Base-datos'!$B$722=\"Sí\"),IF(P40=\"La actividad sí contribuye sustancialmente a la sostenibilidad\",SUM(B40:O40),0),IF(AND('Base-datos'!$B$720=\"\",'Base-datos'!$B$721=\"Sí\",'Base-datos'!$B$722=\"Sí\"),IF(AND(R40=\"La actividad sí contribuye sustancialmente a la sostenibilidad\",P40=\"La actividad sí contribuye sustancialmente a la sostenibilidad\"),SUM(B40:O40),0),IF(AND('Base-datos'!$B$720=\"Sí\",'Base-datos'!$B$721=\"\",'Base-datos'!$B$722=\"Sí\"),IF(AND(Q40=\"La actividad sí contribuye sustancialmente a la sostenibilidad\",P40=\"La actividad sí contribuye sustancialmente a la sostenibilidad\"),SUM(B40:O40),0),\"Por definir\"))))))))","v":"Por definir"}]
[{"$f":"Forestal!$C22","v":"Seleccione"},{"$f":"IF(Forestal!$E22=Seguros_fianzas!B$12,Forestal!$B22,\"\")","v":""},{"$f":"IF(Forestal!$E22=Seguros_fianzas!C$12,Forestal!$B22,\"\")","v":""},{"$f":"IF(Forestal!$E22=Seguros_fianzas!D$12,Forestal!$B22,\"\")","v":""},{"$f":"IF(Forestal!$E22=Seguros_fianzas!E$12,Forestal!$B22,\"\")","v":""},{"$f":"IF(Forestal!$E22=Seguros_fianzas!F$12,Forestal!$B22,\"\")","v":""},{"$f":"IF(Forestal!$E22=Seguros_fianzas!G$12,Forestal!$B22,\"\")","v":""},{"$f":"IF(Forestal!$E22=Seguros_fianzas!H$12,Forestal!$B22,\"\")","v":""},{"$f":"IF(Forestal!$E22=Seguros_fianzas!I$12,Forestal!$B22,\"\")","v":""},{"$f":"IF(Forestal!$E22=Seguros_fianzas!J$12,Forestal!$B22,\"\")","v":""},{"$f":"IF(Forestal!$E22=Seguros_fianzas!K$12,Forestal!$B22,\"\")","v":""},{"$f":"IF(Forestal!$E22=Seguros_fianzas!L$12,Forestal!$B22,\"\")","v":""},{"$f":"IF(Forestal!$E22=Seguros_fianzas!M$12,Forestal!$B22,\"\")","v":""},{"$f":"IF(Forestal!$E22=Seguros_fianzas!N$12,Forestal!$B22,\"\")","v":""},{"$f":"IF(Forestal!$E22=Seguros_fianzas!O$12,Forestal!$B22,\"\")","v":""},{"$f":"_xlfn.XLOOKUP(A41,'Base-datos'!$B$517:$B$520,'Base-datos'!$F$517:$F$520)","v":{"$error":"#N/A"}},{"$f":"_xlfn.XLOOKUP(A41,'Base-datos'!$B$517:$B$520,'Base-datos'!$C$517:$C$520)","v":{"$error":"#N/A"}},{"$f":"_xlfn.XLOOKUP(A41,'Base-datos'!$B$517:$B$520,'Base-datos'!$D$517:$D$520)","v":{"$error":"#N/A"}},null,null,{"$f":"IF(OR(S$35=\"La actividad no cumple con el total de los criterios de No Daño Significativo\",T$35=\"El sector no cumple con las salvaguardas mínimas\"),\"\",IF(AND('Base-datos'!$B$720=\"Sí\",'Base-datos'!$B$721=\"\",'Base-datos'!$B$722=\"\"),IF(Q41=\"La actividad sí contribuye sustancialmente a la sostenibilidad\",SUM(B41:O41),0),IF(AND('Base-datos'!$B$720=\"Sí\",'Base-datos'!$B$721=\"Sí\",'Base-datos'!$B$722=\"\"),IF(AND(Q41=\"La actividad sí contribuye sustancialmente a la sostenibilidad\",R41=\"La actividad sí contribuye sustancialmente a la sostenibilidad\"),SUM(B41:O41),0),IF(AND('Base-datos'!$B$720=\"Sí\",'Base-datos'!$B$721=\"Sí\",'Base-datos'!$B$722=\"Sí\"),IF(AND(Q41=\"La actividad sí contribuye sustancialmente a la sostenibilidad\",R41=\"La actividad sí contribuye sustancialmente a la sostenibilidad\",P41=\"La actividad sí contribuye sustancialmente a la sostenibilidad\"),SUM(B41:O41),0),IF(AND('Base-datos'!$B$720=\"\",'Base-datos'!$B$721=\"Sí\",'Base-datos'!$B$722=\"\"),IF(R41=\"La actividad sí contribuye sustancialmente a la sostenibilidad\",SUM(B41:O41),0),IF(AND('Base-datos'!$B$720=\"\",'Base-datos'!$B$721=\"\",'Base-datos'!$B$722=\"Sí\"),IF(P41=\"La actividad sí contribuye sustancialmente a la sostenibilidad\",SUM(B41:O41),0),IF(AND('Base-datos'!$B$720=\"\",'Base-datos'!$B$721=\"Sí\",'Base-datos'!$B$722=\"Sí\"),IF(AND(R41=\"La actividad sí contribuye sustancialmente a la sostenibilidad\",P41=\"La actividad sí contribuye sustancialmente a la sostenibilidad\"),SUM(B41:O41),0),IF(AND('Base-datos'!$B$720=\"Sí\",'Base-datos'!$B$721=\"\",'Base-datos'!$B$722=\"Sí\"),IF(AND(Q41=\"La actividad sí contribuye sustancialmente a la sostenibilidad\",P41=\"La actividad sí contribuye sustancialmente a la sostenibilidad\"),SUM(B41:O41),0),\"Por definir\"))))))))","v":"Por definir"}]
[{"$f":"Forestal!$C24","v":"Seleccione"},{"$f":"IF(Forestal!$E24=Seguros_fianzas!B$12,Forestal!$B24,\"\")","v":""},{"$f":"IF(Forestal!$E24=Seguros_fianzas!C$12,Forestal!$B24,\"\")","v":""},{"$f":"IF(Forestal!$E24=Seguros_fianzas!D$12,Forestal!$B24,\"\")","v":""},{"$f":"IF(Forestal!$E24=Seguros_fianzas!E$12,Forestal!$B24,\"\")","v":""},{"$f":"IF(Forestal!$E24=Seguros_fianzas!F$12,Forestal!$B24,\"\")","v":""},{"$f":"IF(Forestal!$E24=Seguros_fianzas!G$12,Forestal!$B24,\"\")","v":""},{"$f":"IF(Forestal!$E24=Seguros_fianzas!H$12,Forestal!$B24,\"\")","v":""},{"$f":"IF(Forestal!$E24=Seguros_fianzas!I$12,Forestal!$B24,\"\")","v":""},{"$f":"IF(Forestal!$E24=Seguros_fianzas!J$12,Forestal!$B24,\"\")","v":""},{"$f":"IF(Forestal!$E24=Seguros_fianzas!K$12,Forestal!$B24,\"\")","v":""},{"$f":"IF(Forestal!$E24=Seguros_fianzas!L$12,Forestal!$B24,\"\")","v":""},{"$f":"IF(Forestal!$E24=Seguros_fianzas!M$12,Forestal!$B24,\"\")","v":""},{"$f":"IF(Forestal!$E24=Seguros_fianzas!N$12,Forestal!$B24,\"\")","v":""},{"$f":"IF(Forestal!$E24=Seguros_fianzas!O$12,Forestal!$B24,\"\")","v":""},{"$f":"_xlfn.XLOOKUP(A42,'Base-datos'!$B$517:$B$520,'Base-datos'!$F$517:$F$520)","v":{"$error":"#N/A"}},{"$f":"_xlfn.XLOOKUP(A42,'Base-datos'!$B$517:$B$520,'Base-datos'!$C$517:$C$520)","v":{"$error":"#N/A"}},{"$f":"_xlfn.XLOOKUP(A42,'Base-datos'!$B$517:$B$520,'Base-datos'!$D$517:$D$520)","v":{"$error":"#N/A"}},null,null,{"$f":"IF(OR(S$35=\"La actividad no cumple con el total de los criterios de No Daño Significativo\",T$35=\"El sector no cumple con las salvaguardas mínimas\"),\"\",IF(AND('Base-datos'!$B$720=\"Sí\",'Base-datos'!$B$721=\"\",'Base-datos'!$B$722=\"\"),IF(Q42=\"La actividad sí contribuye sustancialmente a la sostenibilidad\",SUM(B42:O42),0),IF(AND('Base-datos'!$B$720=\"Sí\",'Base-datos'!$B$721=\"Sí\",'Base-datos'!$B$722=\"\"),IF(AND(Q42=\"La actividad sí contribuye sustancialmente a la sostenibilidad\",R42=\"La actividad sí contribuye sustancialmente a la sostenibilidad\"),SUM(B42:O42),0),IF(AND('Base-datos'!$B$720=\"Sí\",'Base-datos'!$B$721=\"Sí\",'Base-datos'!$B$722=\"Sí\"),IF(AND(Q42=\"La actividad sí contribuye sustancialmente a la sostenibilidad\",R42=\"La actividad sí contribuye sustancialmente a la sostenibilidad\",P42=\"La actividad sí contribuye sustancialmente a la sostenibilidad\"),SUM(B42:O42),0),IF(AND('Base-datos'!$B$720=\"\",'Base-datos'!$B$721=\"Sí\",'Base-datos'!$B$722=\"\"),IF(R42=\"La actividad sí contribuye sustancialmente a la sostenibilidad\",SUM(B42:O42),0),IF(AND('Base-datos'!$B$720=\"\",'Base-datos'!$B$721=\"\",'Base-datos'!$B$722=\"Sí\"),IF(P42=\"La actividad sí contribuye sustancialmente a la sostenibilidad\",SUM(B42:O42),0),IF(AND('Base-datos'!$B$720=\"\",'Base-datos'!$B$721=\"Sí\",'Base-datos'!$B$722=\"Sí\"),IF(AND(R42=\"La actividad sí contribuye sustancialmente a la sostenibilidad\",P42=\"La actividad sí contribuye sustancialmente a la sostenibilidad\"),SUM(B42:O42),0),IF(AND('Base-datos'!$B$720=\"Sí\",'Base-datos'!$B$721=\"\",'Base-datos'!$B$722=\"Sí\"),IF(AND(Q42=\"La actividad sí contribuye sustancialmente a la sostenibilidad\",P42=\"La actividad sí contribuye sustancialmente a la sostenibilidad\"),SUM(B42:O42),0),\"Por definir\"))))))))","v":"Por definir"}]
[{"$f":"Forestal!$C26","v":"Seleccione"},{"$f":"IF(Forestal!$E26=Seguros_fianzas!B$12,Forestal!$B26,\"\")","v":""},{"$f":"IF(Forestal!$E26=Seguros_fianzas!C$12,Forestal!$B26,\"\")","v":""},{"$f":"IF(Forestal!$E26=Seguros_fianzas!D$12,Forestal!$B26,\"\")","v":""},{"$f":"IF(Forestal!$E26=Seguros_fianzas!E$12,Forestal!$B26,\"\")","v":""},{"$f":"IF(Forestal!$E26=Seguros_fianzas!F$12,Forestal!$B26,\"\")","v":""},{"$f":"IF(Forestal!$E26=Seguros_fianzas!G$12,Forestal!$B26,\"\")","v":""},{"$f":"IF(Forestal!$E26=Seguros_fianzas!H$12,Forestal!$B26,\"\")","v":""},{"$f":"IF(Forestal!$E26=Seguros_fianzas!I$12,Forestal!$B26,\"\")","v":""},{"$f":"IF(Forestal!$E26=Seguros_fianzas!J$12,Forestal!$B26,\"\")","v":""},{"$f":"IF(Forestal!$E26=Seguros_fianzas!K$12,Forestal!$B26,\"\")","v":""},{"$f":"IF(Forestal!$E26=Seguros_fianzas!L$12,Forestal!$B26,\"\")","v":""},{"$f":"IF(Forestal!$E26=Seguros_fianzas!M$12,Forestal!$B26,\"\")","v":""},{"$f":"IF(Forestal!$E26=Seguros_fianzas!N$12,Forestal!$B26,\"\")","v":""},{"$f":"IF(Forestal!$E26=Seguros_fianzas!O$12,Forestal!$B26,\"\")","v":""},{"$f":"_xlfn.XLOOKUP(A43,'Base-datos'!$B$517:$B$520,'Base-datos'!$F$517:$F$520)","v":{"$error":"#N/A"}},{"$f":"_xlfn.XLOOKUP(A43,'Base-datos'!$B$517:$B$520,'Base-datos'!$C$517:$C$520)","v":{"$error":"#N/A"}},{"$f":"_xlfn.XLOOKUP(A43,'Base-datos'!$B$517:$B$520,'Base-datos'!$D$517:$D$520)","v":{"$error":"#N/A"}},null,null,{"$f":"IF(OR(S$35=\"La actividad no cumple con el total de los criterios de No Daño Significativo\",T$35=\"El sector no cumple con las salvaguardas mínimas\"),\"\",IF(AND('Base-datos'!$B$720=\"Sí\",'Base-datos'!$B$721=\"\",'Base-datos'!$B$722=\"\"),IF(Q43=\"La actividad sí contribuye sustancialmente a la sostenibilidad\",SUM(B43:O43),0),IF(AND('Base-datos'!$B$720=\"Sí\",'Base-datos'!$B$721=\"Sí\",'Base-datos'!$B$722=\"\"),IF(AND(Q43=\"La actividad sí contribuye sustancialmente a la sostenibilidad\",R43=\"La actividad sí contribuye sustancialmente a la sostenibilidad\"),SUM(B43:O43),0),IF(AND('Base-datos'!$B$720=\"Sí\",'Base-datos'!$B$721=\"Sí\",'Base-datos'!$B$722=\"Sí\"),IF(AND(Q43=\"La actividad sí contribuye sustancialmente a la sostenibilidad\",R43=\"La actividad sí contribuye sustancialmente a la sostenibilidad\",P43=\"La actividad sí contribuye sustancialmente a la sostenibilidad\"),SUM(B43:O43),0),IF(AND('Base-datos'!$B$720=\"\",'Base-datos'!$B$721=\"Sí\",'Base-datos'!$B$722=\"\"),IF(R43=\"La actividad sí contribuye sustancialmente a la sostenibilidad\",SUM(B43:O43),0),IF(AND('Base-datos'!$B$720=\"\",'Base-datos'!$B$721=\"\",'Base-datos'!$B$722=\"Sí\"),IF(P43=\"La actividad sí contribuye sustancialmente a la sostenibilidad\",SUM(B43:O43),0),IF(AND('Base-datos'!$B$720=\"\",'Base-datos'!$B$721=\"Sí\",'Base-datos'!$B$722=\"Sí\"),IF(AND(R43=\"La actividad sí contribuye sustancialmente a la sostenibilidad\",P43=\"La actividad sí contribuye sustancialmente a la sostenibilidad\"),SUM(B43:O43),0),IF(AND('Base-datos'!$B$720=\"Sí\",'Base-datos'!$B$721=\"\",'Base-datos'!$B$722=\"Sí\"),IF(AND(Q43=\"La actividad sí contribuye sustancialmente a la sostenibilidad\",P43=\"La actividad sí contribuye sustancialmente a la sostenibilidad\"),SUM(B43:O43),0),\"Por definir\"))))))))","v":"Por definir"}]
[{"$f":"Forestal!$C28","v":"Seleccione"},{"$f":"IF(Forestal!$E28=Seguros_fianzas!B$12,Forestal!$B28,\"\")","v":""},{"$f":"IF(Forestal!$E28=Seguros_fianzas!C$12,Forestal!$B28,\"\")","v":""},{"$f":"IF(Forestal!$E28=Seguros_fianzas!D$12,Forestal!$B28,\"\")","v":""},{"$f":"IF(Forestal!$E28=Seguros_fianzas!E$12,Forestal!$B28,\"\")","v":""},{"$f":"IF(Forestal!$E28=Seguros_fianzas!F$12,Forestal!$B28,\"\")","v":""},{"$f":"IF(Forestal!$E28=Seguros_fianzas!G$12,Forestal!$B28,\"\")","v":""},{"$f":"IF(Forestal!$E28=Seguros_fianzas!H$12,Forestal!$B28,\"\")","v":""},{"$f":"IF(Forestal!$E28=Seguros_fianzas!I$12,Forestal!$B28,\"\")","v":""},{"$f":"IF(Forestal!$E28=Seguros_fianzas!J$12,Forestal!$B28,\"\")","v":""},{"$f":"IF(Forestal!$E28=Seguros_fianzas!K$12,Forestal!$B28,\"\")","v":""},{"$f":"IF(Forestal!$E28=Seguros_fianzas!L$12,Forestal!$B28,\"\")","v":""},{"$f":"IF(Forestal!$E28=Seguros_fianzas!M$12,Forestal!$B28,\"\")","v":""},{"$f":"IF(Forestal!$E28=Seguros_fianzas!N$12,Forestal!$B28,\"\")","v":""},{"$f":"IF(Forestal!$E28=Seguros_fianzas!O$12,Forestal!$B28,\"\")","v":""},{"$f":"_xlfn.XLOOKUP(A44,'Base-datos'!$B$517:$B$520,'Base-datos'!$F$517:$F$520)","v":{"$error":"#N/A"}},{"$f":"_xlfn.XLOOKUP(A44,'Base-datos'!$B$517:$B$520,'Base-datos'!$C$517:$C$520)","v":{"$error":"#N/A"}},{"$f":"_xlfn.XLOOKUP(A44,'Base-datos'!$B$517:$B$520,'Base-datos'!$D$517:$D$520)","v":{"$error":"#N/A"}},null,null,{"$f":"IF(OR(S$35=\"La actividad no cumple con el total de los criterios de No Daño Significativo\",T$35=\"El sector no cumple con las salvaguardas mínimas\"),\"\",IF(AND('Base-datos'!$B$720=\"Sí\",'Base-datos'!$B$721=\"\",'Base-datos'!$B$722=\"\"),IF(Q44=\"La actividad sí contribuye sustancialmente a la sostenibilidad\",SUM(B44:O44),0),IF(AND('Base-datos'!$B$720=\"Sí\",'Base-datos'!$B$721=\"Sí\",'Base-datos'!$B$722=\"\"),IF(AND(Q44=\"La actividad sí contribuye sustancialmente a la sostenibilidad\",R44=\"La actividad sí contribuye sustancialmente a la sostenibilidad\"),SUM(B44:O44),0),IF(AND('Base-datos'!$B$720=\"Sí\",'Base-datos'!$B$721=\"Sí\",'Base-datos'!$B$722=\"Sí\"),IF(AND(Q44=\"La actividad sí contribuye sustancialmente a la sostenibilidad\",R44=\"La actividad sí contribuye sustancialmente a la sostenibilidad\",P44=\"La actividad sí contribuye sustancialmente a la sostenibilidad\"),SUM(B44:O44),0),IF(AND('Base-datos'!$B$720=\"\",'Base-datos'!$B$721=\"Sí\",'Base-datos'!$B$722=\"\"),IF(R44=\"La actividad sí contribuye sustancialmente a la sostenibilidad\",SUM(B44:O44),0),IF(AND('Base-datos'!$B$720=\"\",'Base-datos'!$B$721=\"\",'Base-datos'!$B$722=\"Sí\"),IF(P44=\"La actividad sí contribuye sustancialmente a la sostenibilidad\",SUM(B44:O44),0),IF(AND('Base-datos'!$B$720=\"\",'Base-datos'!$B$721=\"Sí\",'Base-datos'!$B$722=\"Sí\"),IF(AND(R44=\"La actividad sí contribuye sustancialmente a la sostenibilidad\",P44=\"La actividad sí contribuye sustancialmente a la sostenibilidad\"),SUM(B44:O44),0),IF(AND('Base-datos'!$B$720=\"Sí\",'Base-datos'!$B$721=\"\",'Base-datos'!$B$722=\"Sí\"),IF(AND(Q44=\"La actividad sí contribuye sustancialmente a la sostenibilidad\",P44=\"La actividad sí contribuye sustancialmente a la sostenibilidad\"),SUM(B44:O44),0),\"Por definir\"))))))))","v":"Por definir"}]
[{"$f":"Forestal!$C30","v":"Seleccione"},{"$f":"IF(Forestal!$E30=Seguros_fianzas!B$12,Forestal!$B30,\"\")","v":""},{"$f":"IF(Forestal!$E30=Seguros_fianzas!C$12,Forestal!$B30,\"\")","v":""},{"$f":"IF(Forestal!$E30=Seguros_fianzas!D$12,Forestal!$B30,\"\")","v":""},{"$f":"IF(Forestal!$E30=Seguros_fianzas!E$12,Forestal!$B30,\"\")","v":""},{"$f":"IF(Forestal!$E30=Seguros_fianzas!F$12,Forestal!$B30,\"\")","v":""},{"$f":"IF(Forestal!$E30=Seguros_fianzas!G$12,Forestal!$B30,\"\")","v":""},{"$f":"IF(Forestal!$E30=Seguros_fianzas!H$12,Forestal!$B30,\"\")","v":""},{"$f":"IF(Forestal!$E30=Seguros_fianzas!I$12,Forestal!$B30,\"\")","v":""},{"$f":"IF(Forestal!$E30=Seguros_fianzas!J$12,Forestal!$B30,\"\")","v":""},{"$f":"IF(Forestal!$E30=Seguros_fianzas!K$12,Forestal!$B30,\"\")","v":""},{"$f":"IF(Forestal!$E30=Seguros_fianzas!L$12,Forestal!$B30,\"\")","v":""},{"$f":"IF(Forestal!$E30=Seguros_fianzas!M$12,Forestal!$B30,\"\")","v":""},{"$f":"IF(Forestal!$E30=Seguros_fianzas!N$12,Forestal!$B30,\"\")","v":""},{"$f":"IF(Forestal!$E30=Seguros_fianzas!O$12,Forestal!$B30,\"\")","v":""},{"$f":"_xlfn.XLOOKUP(A45,'Base-datos'!$B$517:$B$520,'Base-datos'!$F$517:$F$520)","v":{"$error":"#N/A"}},{"$f":"_xlfn.XLOOKUP(A45,'Base-datos'!$B$517:$B$520,'Base-datos'!$C$517:$C$520)","v":{"$error":"#N/A"}},{"$f":"_xlfn.XLOOKUP(A45,'Base-datos'!$B$517:$B$520,'Base-datos'!$D$517:$D$520)","v":{"$error":"#N/A"}},null,null,{"$f":"IF(OR(S$35=\"La actividad no cumple con el total de los criterios de No Daño Significativo\",T$35=\"El sector no cumple con las salvaguardas mínimas\"),\"\",IF(AND('Base-datos'!$B$720=\"Sí\",'Base-datos'!$B$721=\"\",'Base-datos'!$B$722=\"\"),IF(Q45=\"La actividad sí contribuye sustancialmente a la sostenibilidad\",SUM(B45:O45),0),IF(AND('Base-datos'!$B$720=\"Sí\",'Base-datos'!$B$721=\"Sí\",'Base-datos'!$B$722=\"\"),IF(AND(Q45=\"La actividad sí contribuye sustancialmente a la sostenibilidad\",R45=\"La actividad sí contribuye sustancialmente a la sostenibilidad\"),SUM(B45:O45),0),IF(AND('Base-datos'!$B$720=\"Sí\",'Base-datos'!$B$721=\"Sí\",'Base-datos'!$B$722=\"Sí\"),IF(AND(Q45=\"La actividad sí contribuye sustancialmente a la sostenibilidad\",R45=\"La actividad sí contribuye sustancialmente a la sostenibilidad\",P45=\"La actividad sí contribuye sustancialmente a la sostenibilidad\"),SUM(B45:O45),0),IF(AND('Base-datos'!$B$720=\"\",'Base-datos'!$B$721=\"Sí\",'Base-datos'!$B$722=\"\"),IF(R45=\"La actividad sí contribuye sustancialmente a la sostenibilidad\",SUM(B45:O45),0),IF(AND('Base-datos'!$B$720=\"\",'Base-datos'!$B$721=\"\",'Base-datos'!$B$722=\"Sí\"),IF(P45=\"La actividad sí contribuye sustancialmente a la sostenibilidad\",SUM(B45:O45),0),IF(AND('Base-datos'!$B$720=\"\",'Base-datos'!$B$721=\"Sí\",'Base-datos'!$B$722=\"Sí\"),IF(AND(R45=\"La actividad sí contribuye sustancialmente a la sostenibilidad\",P45=\"La actividad sí contribuye sustancialmente a la sostenibilidad\"),SUM(B45:O45),0),IF(AND('Base-datos'!$B$720=\"Sí\",'Base-datos'!$B$721=\"\",'Base-datos'!$B$722=\"Sí\"),IF(AND(Q45=\"La actividad sí contribuye sustancialmente a la sostenibilidad\",P45=\"La actividad sí contribuye sustancialmente a la sostenibilidad\"),SUM(B45:O45),0),\"Por definir\"))))))))","v":"Por definir"}]
[{"$f":"Forestal!$C32","v":"Seleccione"},{"$f":"IF(Forestal!$E32=Seguros_fianzas!B$12,Forestal!$B32,\"\")","v":""},{"$f":"IF(Forestal!$E32=Seguros_fianzas!C$12,Forestal!$B32,\"\")","v":""},{"$f":"IF(Forestal!$E32=Seguros_fianzas!D$12,Forestal!$B32,\"\")","v":""},{"$f":"IF(Forestal!$E32=Seguros_fianzas!E$12,Forestal!$B32,\"\")","v":""},{"$f":"IF(Forestal!$E32=Seguros_fianzas!F$12,Forestal!$B32,\"\")","v":""},{"$f":"IF(Forestal!$E32=Seguros_fianzas!G$12,Forestal!$B32,\"\")","v":""},{"$f":"IF(Forestal!$E32=Seguros_fianzas!H$12,Forestal!$B32,\"\")","v":""},{"$f":"IF(Forestal!$E32=Seguros_fianzas!I$12,Forestal!$B32,\"\")","v":""},{"$f":"IF(Forestal!$E32=Seguros_fianzas!J$12,Forestal!$B32,\"\")","v":""},{"$f":"IF(Forestal!$E32=Seguros_fianzas!K$12,Forestal!$B32,\"\")","v":""},{"$f":"IF(Forestal!$E32=Seguros_fianzas!L$12,Forestal!$B32,\"\")","v":""},{"$f":"IF(Forestal!$E32=Seguros_fianzas!M$12,Forestal!$B32,\"\")","v":""},{"$f":"IF(Forestal!$E32=Seguros_fianzas!N$12,Forestal!$B32,\"\")","v":""},{"$f":"IF(Forestal!$E32=Seguros_fianzas!O$12,Forestal!$B32,\"\")","v":""},{"$f":"_xlfn.XLOOKUP(A46,'Base-datos'!$B$517:$B$520,'Base-datos'!$F$517:$F$520)","v":{"$error":"#N/A"}},{"$f":"_xlfn.XLOOKUP(A46,'Base-datos'!$B$517:$B$520,'Base-datos'!$C$517:$C$520)","v":{"$error":"#N/A"}},{"$f":"_xlfn.XLOOKUP(A46,'Base-datos'!$B$517:$B$520,'Base-datos'!$D$517:$D$520)","v":{"$error":"#N/A"}},null,null,{"$f":"IF(OR(S$35=\"La actividad no cumple con el total de los criterios de No Daño Significativo\",T$35=\"El sector no cumple con las salvaguardas mínimas\"),\"\",IF(AND('Base-datos'!$B$720=\"Sí\",'Base-datos'!$B$721=\"\",'Base-datos'!$B$722=\"\"),IF(Q46=\"La actividad sí contribuye sustancialmente a la sostenibilidad\",SUM(B46:O46),0),IF(AND('Base-datos'!$B$720=\"Sí\",'Base-datos'!$B$721=\"Sí\",'Base-datos'!$B$722=\"\"),IF(AND(Q46=\"La actividad sí contribuye sustancialmente a la sostenibilidad\",R46=\"La actividad sí contribuye sustancialmente a la sostenibilidad\"),SUM(B46:O46),0),IF(AND('Base-datos'!$B$720=\"Sí\",'Base-datos'!$B$721=\"Sí\",'Base-datos'!$B$722=\"Sí\"),IF(AND(Q46=\"La actividad sí contribuye sustancialmente a la sostenibilidad\",R46=\"La actividad sí contribuye sustancialmente a la sostenibilidad\",P46=\"La actividad sí contribuye sustancialmente a la sostenibilidad\"),SUM(B46:O46),0),IF(AND('Base-datos'!$B$720=\"\",'Base-datos'!$B$721=\"Sí\",'Base-datos'!$B$722=\"\"),IF(R46=\"La actividad sí contribuye sustancialmente a la sostenibilidad\",SUM(B46:O46),0),IF(AND('Base-datos'!$B$720=\"\",'Base-datos'!$B$721=\"\",'Base-datos'!$B$722=\"Sí\"),IF(P46=\"La actividad sí contribuye sustancialmente a la sostenibilidad\",SUM(B46:O46),0),IF(AND('Base-datos'!$B$720=\"\",'Base-datos'!$B$721=\"Sí\",'Base-datos'!$B$722=\"Sí\"),IF(AND(R46=\"La actividad sí contribuye sustancialmente a la sostenibilidad\",P46=\"La actividad sí contribuye sustancialmente a la sostenibilidad\"),SUM(B46:O46),0),IF(AND('Base-datos'!$B$720=\"Sí\",'Base-datos'!$B$721=\"\",'Base-datos'!$B$722=\"Sí\"),IF(AND(Q46=\"La actividad sí contribuye sustancialmente a la sostenibilidad\",P46=\"La actividad sí contribuye sustancialmente a la sostenibilidad\"),SUM(B46:O46),0),\"Por definir\"))))))))","v":"Por definir"}]
[{"$f":"Forestal!$C34","v":"Seleccione"},{"$f":"IF(Forestal!$E34=Seguros_fianzas!B$12,Forestal!$B34,\"\")","v":""},{"$f":"IF(Forestal!$E34=Seguros_fianzas!C$12,Forestal!$B34,\"\")","v":""},{"$f":"IF(Forestal!$E34=Seguros_fianzas!D$12,Forestal!$B34,\"\")","v":""},{"$f":"IF(Forestal!$E34=Seguros_fianzas!E$12,Forestal!$B34,\"\")","v":""},{"$f":"IF(Forestal!$E34=Seguros_fianzas!F$12,Forestal!$B34,\"\")","v":""},{"$f":"IF(Forestal!$E34=Seguros_fianzas!G$12,Forestal!$B34,\"\")","v":""},{"$f":"IF(Forestal!$E34=Seguros_fianzas!H$12,Forestal!$B34,\"\")","v":""},{"$f":"IF(Forestal!$E34=Seguros_fianzas!I$12,Forestal!$B34,\"\")","v":""},{"$f":"IF(Forestal!$E34=Seguros_fianzas!J$12,Forestal!$B34,\"\")","v":""},{"$f":"IF(Forestal!$E34=Seguros_fianzas!K$12,Forestal!$B34,\"\")","v":""},{"$f":"IF(Forestal!$E34=Seguros_fianzas!L$12,Forestal!$B34,\"\")","v":""},{"$f":"IF(Forestal!$E34=Seguros_fianzas!M$12,Forestal!$B34,\"\")","v":""},{"$f":"IF(Forestal!$E34=Seguros_fianzas!N$12,Forestal!$B34,\"\")","v":""},{"$f":"IF(Forestal!$E34=Seguros_fianzas!O$12,Forestal!$B34,\"\")","v":""},{"$f":"_xlfn.XLOOKUP(A47,'Base-datos'!$B$517:$B$520,'Base-datos'!$F$517:$F$520)","v":{"$error":"#N/A"}},{"$f":"_xlfn.XLOOKUP(A47,'Base-datos'!$B$517:$B$520,'Base-datos'!$C$517:$C$520)","v":{"$error":"#N/A"}},{"$f":"_xlfn.XLOOKUP(A47,'Base-datos'!$B$517:$B$520,'Base-datos'!$D$517:$D$520)","v":{"$error":"#N/A"}},null,null,{"$f":"IF(OR(S$35=\"La actividad no cumple con el total de los criterios de No Daño Significativo\",T$35=\"El sector no cumple con las salvaguardas mínimas\"),\"\",IF(AND('Base-datos'!$B$720=\"Sí\",'Base-datos'!$B$721=\"\",'Base-datos'!$B$722=\"\"),IF(Q47=\"La actividad sí contribuye sustancialmente a la sostenibilidad\",SUM(B47:O47),0),IF(AND('Base-datos'!$B$720=\"Sí\",'Base-datos'!$B$721=\"Sí\",'Base-datos'!$B$722=\"\"),IF(AND(Q47=\"La actividad sí contribuye sustancialmente a la sostenibilidad\",R47=\"La actividad sí contribuye sustancialmente a la sostenibilidad\"),SUM(B47:O47),0),IF(AND('Base-datos'!$B$720=\"Sí\",'Base-datos'!$B$721=\"Sí\",'Base-datos'!$B$722=\"Sí\"),IF(AND(Q47=\"La actividad sí contribuye sustancialmente a la sostenibilidad\",R47=\"La actividad sí contribuye sustancialmente a la sostenibilidad\",P47=\"La actividad sí contribuye sustancialmente a la sostenibilidad\"),SUM(B47:O47),0),IF(AND('Base-datos'!$B$720=\"\",'Base-datos'!$B$721=\"Sí\",'Base-datos'!$B$722=\"\"),IF(R47=\"La actividad sí contribuye sustancialmente a la sostenibilidad\",SUM(B47:O47),0),IF(AND('Base-datos'!$B$720=\"\",'Base-datos'!$B$721=\"\",'Base-datos'!$B$722=\"Sí\"),IF(P47=\"La actividad sí contribuye sustancialmente a la sostenibilidad\",SUM(B47:O47),0),IF(AND('Base-datos'!$B$720=\"\",'Base-datos'!$B$721=\"Sí\",'Base-datos'!$B$722=\"Sí\"),IF(AND(R47=\"La actividad sí contribuye sustancialmente a la sostenibilidad\",P47=\"La actividad sí contribuye sustancialmente a la sostenibilidad\"),SUM(B47:O47),0),IF(AND('Base-datos'!$B$720=\"Sí\",'Base-datos'!$B$721=\"\",'Base-datos'!$B$722=\"Sí\"),IF(AND(Q47=\"La actividad sí contribuye sustancialmente a la sostenibilidad\",P47=\"La actividad sí contribuye sustancialmente a la sostenibilidad\"),SUM(B47:O47),0),\"Por definir\"))))))))","v":"Por definir"}]
[{"$f":"Forestal!$C36","v":"Seleccione"},{"$f":"IF(Forestal!$E36=Seguros_fianzas!B$12,Forestal!$B36,\"\")","v":""},{"$f":"IF(Forestal!$E36=Seguros_fianzas!C$12,Forestal!$B36,\"\")","v":""},{"$f":"IF(Forestal!$E36=Seguros_fianzas!D$12,Forestal!$B36,\"\")","v":""},{"$f":"IF(Forestal!$E36=Seguros_fianzas!E$12,Forestal!$B36,\"\")","v":""},{"$f":"IF(Forestal!$E36=Seguros_fianzas!F$12,Forestal!$B36,\"\")","v":""},{"$f":"IF(Forestal!$E36=Seguros_fianzas!G$12,Forestal!$B36,\"\")","v":""},{"$f":"IF(Forestal!$E36=Seguros_fianzas!H$12,Forestal!$B36,\"\")","v":""},{"$f":"IF(Forestal!$E36=Seguros_fianzas!I$12,Forestal!$B36,\"\")","v":""},{"$f":"IF(Forestal!$E36=Seguros_fianzas!J$12,Forestal!$B36,\"\")","v":""},{"$f":"IF(Forestal!$E36=Seguros_fianzas!K$12,Forestal!$B36,\"\")","v":""},{"$f":"IF(Forestal!$E36=Seguros_fianzas!L$12,Forestal!$B36,\"\")","v":""},{"$f":"IF(Forestal!$E36=Seguros_fianzas!M$12,Forestal!$B36,\"\")","v":""},{"$f":"IF(Forestal!$E36=Seguros_fianzas!N$12,Forestal!$B36,\"\")","v":""},{"$f":"IF(Forestal!$E36=Seguros_fianzas!O$12,Forestal!$B36,\"\")","v":""},{"$f":"_xlfn.XLOOKUP(A48,'Base-datos'!$B$517:$B$520,'Base-datos'!$F$517:$F$520)","v":{"$error":"#N/A"}},{"$f":"_xlfn.XLOOKUP(A48,'Base-datos'!$B$517:$B$520,'Base-datos'!$C$517:$C$520)","v":{"$error":"#N/A"}},{"$f":"_xlfn.XLOOKUP(A48,'Base-datos'!$B$517:$B$520,'Base-datos'!$D$517:$D$520)","v":{"$error":"#N/A"}},null,null,{"$f":"IF(OR(S$35=\"La actividad no cumple con el total de los criterios de No Daño Significativo\",T$35=\"El sector no cumple con las salvaguardas mínimas\"),\"\",IF(AND('Base-datos'!$B$720=\"Sí\",'Base-datos'!$B$721=\"\",'Base-datos'!$B$722=\"\"),IF(Q48=\"La actividad sí contribuye sustancialmente a la sostenibilidad\",SUM(B48:O48),0),IF(AND('Base-datos'!$B$720=\"Sí\",'Base-datos'!$B$721=\"Sí\",'Base-datos'!$B$722=\"\"),IF(AND(Q48=\"La actividad sí contribuye sustancialmente a la sostenibilidad\",R48=\"La actividad sí contribuye sustancialmente a la sostenibilidad\"),SUM(B48:O48),0),IF(AND('Base-datos'!$B$720=\"Sí\",'Base-datos'!$B$721=\"Sí\",'Base-datos'!$B$722=\"Sí\"),IF(AND(Q48=\"La actividad sí contribuye sustancialmente a la sostenibilidad\",R48=\"La actividad sí contribuye sustancialmente a la sostenibilidad\",P48=\"La actividad sí contribuye sustancialmente a la sostenibilidad\"),SUM(B48:O48),0),IF(AND('Base-datos'!$B$720=\"\",'Base-datos'!$B$721=\"Sí\",'Base-datos'!$B$722=\"\"),IF(R48=\"La actividad sí contribuye sustancialmente a la sostenibilidad\",SUM(B48:O48),0),IF(AND('Base-datos'!$B$720=\"\",'Base-datos'!$B$721=\"\",'Base-datos'!$B$722=\"Sí\"),IF(P48=\"La actividad sí contribuye sustancialmente a la sostenibilidad\",SUM(B48:O48),0),IF(AND('Base-datos'!$B$720=\"\",'Base-datos'!$B$721=\"Sí\",'Base-datos'!$B$722=\"Sí\"),IF(AND(R48=\"La actividad sí contribuye sustancialmente a la sostenibilidad\",P48=\"La actividad sí contribuye sustancialmente a la sostenibilidad\"),SUM(B48:O48),0),IF(AND('Base-datos'!$B$720=\"Sí\",'Base-datos'!$B$721=\"\",'Base-datos'!$B$722=\"Sí\"),IF(AND(Q48=\"La actividad sí contribuye sustancialmente a la sostenibilidad\",P48=\"La actividad sí contribuye sustancialmente a la sostenibilidad\"),SUM(B48:O48),0),\"Por definir\"))))))))","v":"Por definir"}]
[{"$f":"Forestal!$C38","v":"Seleccione"},{"$f":"IF(Forestal!$E38=Seguros_fianzas!B$12,Forestal!$B38,\"\")","v":""},{"$f":"IF(Forestal!$E38=Seguros_fianzas!C$12,Forestal!$B38,\"\")","v":""},{"$f":"IF(Forestal!$E38=Seguros_fianzas!D$12,Forestal!$B38,\"\")","v":""},{"$f":"IF(Forestal!$E38=Seguros_fianzas!E$12,Forestal!$B38,\"\")","v":""},{"$f":"IF(Forestal!$E38=Seguros_fianzas!F$12,Forestal!$B38,\"\")","v":""},{"$f":"IF(Forestal!$E38=Seguros_fianzas!G$12,Forestal!$B38,\"\")","v":""},{"$f":"IF(Forestal!$E38=Seguros_fianzas!H$12,Forestal!$B38,\"\")","v":""},{"$f":"IF(Forestal!$E38=Seguros_fianzas!I$12,Forestal!$B38,\"\")","v":""},{"$f":"IF(Forestal!$E38=Seguros_fianzas!J$12,Forestal!$B38,\"\")","v":""},{"$f":"IF(Forestal!$E38=Seguros_fianzas!K$12,Forestal!$B38,\"\")","v":""},{"$f":"IF(Forestal!$E38=Seguros_fianzas!L$12,Forestal!$B38,\"\")","v":""},{"$f":"IF(Forestal!$E38=Seguros_fianzas!M$12,Forestal!$B38,\"\")","v":""},{"$f":"IF(Forestal!$E38=Seguros_fianzas!N$12,Forestal!$B38,\"\")","v":""},{"$f":"IF(Forestal!$E38=Seguros_fianzas!O$12,Forestal!$B38,\"\")","v":""},{"$f":"_xlfn.XLOOKUP(A49,'Base-datos'!$B$517:$B$520,'Base-datos'!$F$517:$F$520)","v":{"$error":"#N/A"}},{"$f":"_xlfn.XLOOKUP(A49,'Base-datos'!$B$517:$B$520,'Base-datos'!$C$517:$C$520)","v":{"$error":"#N/A"}},{"$f":"_xlfn.XLOOKUP(A49,'Base-datos'!$B$517:$B$520,'Base-datos'!$D$517:$D$520)","v":{"$error":"#N/A"}},null,null,{"$f":"IF(OR(S$35=\"La actividad no cumple con el total de los criterios de No Daño Significativo\",T$35=\"El sector no cumple con las salvaguardas mínimas\"),\"\",IF(AND('Base-datos'!$B$720=\"Sí\",'Base-datos'!$B$721=\"\",'Base-datos'!$B$722=\"\"),IF(Q49=\"La actividad sí contribuye sustancialmente a la sostenibilidad\",SUM(B49:O49),0),IF(AND('Base-datos'!$B$720=\"Sí\",'Base-datos'!$B$721=\"Sí\",'Base-datos'!$B$722=\"\"),IF(AND(Q49=\"La actividad sí contribuye sustancialmente a la sostenibilidad\",R49=\"La actividad sí contribuye sustancialmente a la sostenibilidad\"),SUM(B49:O49),0),IF(AND('Base-datos'!$B$720=\"Sí\",'Base-datos'!$B$721=\"Sí\",'Base-datos'!$B$722=\"Sí\"),IF(AND(Q49=\"La actividad sí contribuye sustancialmente a la sostenibilidad\",R49=\"La actividad sí contribuye sustancialmente a la sostenibilidad\",P49=\"La actividad sí contribuye sustancialmente a la sostenibilidad\"),SUM(B49:O49),0),IF(AND('Base-datos'!$B$720=\"\",'Base-datos'!$B$721=\"Sí\",'Base-datos'!$B$722=\"\"),IF(R49=\"La actividad sí contribuye sustancialmente a la sostenibilidad\",SUM(B49:O49),0),IF(AND('Base-datos'!$B$720=\"\",'Base-datos'!$B$721=\"\",'Base-datos'!$B$722=\"Sí\"),IF(P49=\"La actividad sí contribuye sustancialmente a la sostenibilidad\",SUM(B49:O49),0),IF(AND('Base-datos'!$B$720=\"\",'Base-datos'!$B$721=\"Sí\",'Base-datos'!$B$722=\"Sí\"),IF(AND(R49=\"La actividad sí contribuye sustancialmente a la sostenibilidad\",P49=\"La actividad sí contribuye sustancialmente a la sostenibilidad\"),SUM(B49:O49),0),IF(AND('Base-datos'!$B$720=\"Sí\",'Base-datos'!$B$721=\"\",'Base-datos'!$B$722=\"Sí\"),IF(AND(Q49=\"La actividad sí contribuye sustancialmente a la sostenibilidad\",P49=\"La actividad sí contribuye sustancialmente a la sostenibilidad\"),SUM(B49:O49),0),\"Por definir\"))))))))","v":"Por definir"}]
[{"$f":"Forestal!$C40","v":"Seleccione"},{"$f":"IF(Forestal!$E40=Seguros_fianzas!B$12,Forestal!$B40,\"\")","v":""},{"$f":"IF(Forestal!$E40=Seguros_fianzas!C$12,Forestal!$B40,\"\")","v":""},{"$f":"IF(Forestal!$E40=Seguros_fianzas!D$12,Forestal!$B40,\"\")","v":""},{"$f":"IF(Forestal!$E40=Seguros_fianzas!E$12,Forestal!$B40,\"\")","v":""},{"$f":"IF(Forestal!$E40=Seguros_fianzas!F$12,Forestal!$B40,\"\")","v":""},{"$f":"IF(Forestal!$E40=Seguros_fianzas!G$12,Forestal!$B40,\"\")","v":""},{"$f":"IF(Forestal!$E40=Seguros_fianzas!H$12,Forestal!$B40,\"\")","v":""},{"$f":"IF(Forestal!$E40=Seguros_fianzas!I$12,Forestal!$B40,\"\")","v":""},{"$f":"IF(Forestal!$E40=Seguros_fianzas!J$12,Forestal!$B40,\"\")","v":""},{"$f":"IF(Forestal!$E40=Seguros_fianzas!K$12,Forestal!$B40,\"\")","v":""},{"$f":"IF(Forestal!$E40=Seguros_fianzas!L$12,Forestal!$B40,\"\")","v":""},{"$f":"IF(Forestal!$E40=Seguros_fianzas!M$12,Forestal!$B40,\"\")","v":""},{"$f":"IF(Forestal!$E40=Seguros_fianzas!N$12,Forestal!$B40,\"\")","v":""},{"$f":"IF(Forestal!$E40=Seguros_fianzas!O$12,Forestal!$B40,\"\")","v":""},{"$f":"_xlfn.XLOOKUP(A50,'Base-datos'!$B$517:$B$520,'Base-datos'!$F$517:$F$520)","v":{"$error":"#N/A"}},{"$f":"_xlfn.XLOOKUP(A50,'Base-datos'!$B$517:$B$520,'Base-datos'!$C$517:$C$520)","v":{"$error":"#N/A"}},{"$f":"_xlfn.XLOOKUP(A50,'Base-datos'!$B$517:$B$520,'Base-datos'!$D$517:$D$520)","v":{"$error":"#N/A"}},null,null,{"$f":"IF(OR(S$35=\"La actividad no cumple con el total de los criterios de No Daño Significativo\",T$35=\"El sector no cumple con las salvaguardas mínimas\"),\"\",IF(AND('Base-datos'!$B$720=\"Sí\",'Base-datos'!$B$721=\"\",'Base-datos'!$B$722=\"\"),IF(Q50=\"La actividad sí contribuye sustancialmente a la sostenibilidad\",SUM(B50:O50),0),IF(AND('Base-datos'!$B$720=\"Sí\",'Base-datos'!$B$721=\"Sí\",'Base-datos'!$B$722=\"\"),IF(AND(Q50=\"La actividad sí contribuye sustancialmente a la sostenibilidad\",R50=\"La actividad sí contribuye sustancialmente a la sostenibilidad\"),SUM(B50:O50),0),IF(AND('Base-datos'!$B$720=\"Sí\",'Base-datos'!$B$721=\"Sí\",'Base-datos'!$B$722=\"Sí\"),IF(AND(Q50=\"La actividad sí contribuye sustancialmente a la sostenibilidad\",R50=\"La actividad sí contribuye sustancialmente a la sostenibilidad\",P50=\"La actividad sí contribuye sustancialmente a la sostenibilidad\"),SUM(B50:O50),0),IF(AND('Base-datos'!$B$720=\"\",'Base-datos'!$B$721=\"Sí\",'Base-datos'!$B$722=\"\"),IF(R50=\"La actividad sí contribuye sustancialmente a la sostenibilidad\",SUM(B50:O50),0),IF(AND('Base-datos'!$B$720=\"\",'Base-datos'!$B$721=\"\",'Base-datos'!$B$722=\"Sí\"),IF(P50=\"La actividad sí contribuye sustancialmente a la sostenibilidad\",SUM(B50:O50),0),IF(AND('Base-datos'!$B$720=\"\",'Base-datos'!$B$721=\"Sí\",'Base-datos'!$B$722=\"Sí\"),IF(AND(R50=\"La actividad sí contribuye sustancialmente a la sostenibilidad\",P50=\"La actividad sí contribuye sustancialmente a la sostenibilidad\"),SUM(B50:O50),0),IF(AND('Base-datos'!$B$720=\"Sí\",'Base-datos'!$B$721=\"\",'Base-datos'!$B$722=\"Sí\"),IF(AND(Q50=\"La actividad sí contribuye sustancialmente a la sostenibilidad\",P50=\"La actividad sí contribuye sustancialmente a la sostenibilidad\"),SUM(B50:O50),0),\"Por definir\"))))))))","v":"Por definir"}]
[{"$f":"Forestal!$C42","v":"Seleccione"},{"$f":"IF(Forestal!$E42=Seguros_fianzas!B$12,Forestal!$B42,\"\")","v":""},{"$f":"IF(Forestal!$E42=Seguros_fianzas!C$12,Forestal!$B42,\"\")","v":""},{"$f":"IF(Forestal!$E42=Seguros_fianzas!D$12,Forestal!$B42,\"\")","v":""},{"$f":"IF(Forestal!$E42=Seguros_fianzas!E$12,Forestal!$B42,\"\")","v":""},{"$f":"IF(Forestal!$E42=Seguros_fianzas!F$12,Forestal!$B42,\"\")","v":""},{"$f":"IF(Forestal!$E42=Seguros_fianzas!G$12,Forestal!$B42,\"\")","v":""},{"$f":"IF(Forestal!$E42=Seguros_fianzas!H$12,Forestal!$B42,\"\")","v":""},{"$f":"IF(Forestal!$E42=Seguros_fianzas!I$12,Forestal!$B42,\"\")","v":""},{"$f":"IF(Forestal!$E42=Seguros_fianzas!J$12,Forestal!$B42,\"\")","v":""},{"$f":"IF(Forestal!$E42=Seguros_fianzas!K$12,Forestal!$B42,\"\")","v":""},{"$f":"IF(Forestal!$E42=Seguros_fianzas!L$12,Forestal!$B42,\"\")","v":""},{"$f":"IF(Forestal!$E42=Seguros_fianzas!M$12,Forestal!$B42,\"\")","v":""},{"$f":"IF(Forestal!$E42=Seguros_fianzas!N$12,Forestal!$B42,\"\")","v":""},{"$f":"IF(Forestal!$E42=Seguros_fianzas!O$12,Forestal!$B42,\"\")","v":""},{"$f":"_xlfn.XLOOKUP(A51,'Base-datos'!$B$517:$B$520,'Base-datos'!$F$517:$F$520)","v":{"$error":"#N/A"}},{"$f":"_xlfn.XLOOKUP(A51,'Base-datos'!$B$517:$B$520,'Base-datos'!$C$517:$C$520)","v":{"$error":"#N/A"}},{"$f":"_xlfn.XLOOKUP(A51,'Base-datos'!$B$517:$B$520,'Base-datos'!$D$517:$D$520)","v":{"$error":"#N/A"}},null,null,{"$f":"IF(OR(S$35=\"La actividad no cumple con el total de los criterios de No Daño Significativo\",T$35=\"El sector no cumple con las salvaguardas mínimas\"),\"\",IF(AND('Base-datos'!$B$720=\"Sí\",'Base-datos'!$B$721=\"\",'Base-datos'!$B$722=\"\"),IF(Q51=\"La actividad sí contribuye sustancialmente a la sostenibilidad\",SUM(B51:O51),0),IF(AND('Base-datos'!$B$720=\"Sí\",'Base-datos'!$B$721=\"Sí\",'Base-datos'!$B$722=\"\"),IF(AND(Q51=\"La actividad sí contribuye sustancialmente a la sostenibilidad\",R51=\"La actividad sí contribuye sustancialmente a la sostenibilidad\"),SUM(B51:O51),0),IF(AND('Base-datos'!$B$720=\"Sí\",'Base-datos'!$B$721=\"Sí\",'Base-datos'!$B$722=\"Sí\"),IF(AND(Q51=\"La actividad sí contribuye sustancialmente a la sostenibilidad\",R51=\"La actividad sí contribuye sustancialmente a la sostenibilidad\",P51=\"La actividad sí contribuye sustancialmente a la sostenibilidad\"),SUM(B51:O51),0),IF(AND('Base-datos'!$B$720=\"\",'Base-datos'!$B$721=\"Sí\",'Base-datos'!$B$722=\"\"),IF(R51=\"La actividad sí contribuye sustancialmente a la sostenibilidad\",SUM(B51:O51),0),IF(AND('Base-datos'!$B$720=\"\",'Base-datos'!$B$721=\"\",'Base-datos'!$B$722=\"Sí\"),IF(P51=\"La actividad sí contribuye sustancialmente a la sostenibilidad\",SUM(B51:O51),0),IF(AND('Base-datos'!$B$720=\"\",'Base-datos'!$B$721=\"Sí\",'Base-datos'!$B$722=\"Sí\"),IF(AND(R51=\"La actividad sí contribuye sustancialmente a la sostenibilidad\",P51=\"La actividad sí contribuye sustancialmente a la sostenibilidad\"),SUM(B51:O51),0),IF(AND('Base-datos'!$B$720=\"Sí\",'Base-datos'!$B$721=\"\",'Base-datos'!$B$722=\"Sí\"),IF(AND(Q51=\"La actividad sí contribuye sustancialmente a la sostenibilidad\",P51=\"La actividad sí contribuye sustancialmente a la sostenibilidad\"),SUM(B51:O51),0),\"Por definir\"))))))))","v":"Por definir"}]
[{"$f":"Forestal!$C44","v":"Seleccione"},{"$f":"IF(Forestal!$E44=Seguros_fianzas!B$12,Forestal!$B44,\"\")","v":""},{"$f":"IF(Forestal!$E44=Seguros_fianzas!C$12,Forestal!$B44,\"\")","v":""},{"$f":"IF(Forestal!$E44=Seguros_fianzas!D$12,Forestal!$B44,\"\")","v":""},{"$f":"IF(Forestal!$E44=Seguros_fianzas!E$12,Forestal!$B44,\"\")","v":""},{"$f":"IF(Forestal!$E44=Seguros_fianzas!F$12,Forestal!$B44,\"\")","v":""},{"$f":"IF(Forestal!$E44=Seguros_fianzas!G$12,Forestal!$B44,\"\")","v":""},{"$f":"IF(Forestal!$E44=Seguros_fianzas!H$12,Forestal!$B44,\"\")","v":""},{"$f":"IF(Forestal!$E44=Seguros_fianzas!I$12,Forestal!$B44,\"\")","v":""},{"$f":"IF(Forestal!$E44=Seguros_fianzas!J$12,Forestal!$B44,\"\")","v":""},{"$f":"IF(Forestal!$E44=Seguros_fianzas!K$12,Forestal!$B44,\"\")","v":""},{"$f":"IF(Forestal!$E44=Seguros_fianzas!L$12,Forestal!$B44,\"\")","v":""},{"$f":"IF(Forestal!$E44=Seguros_fianzas!M$12,Forestal!$B44,\"\")","v":""},{"$f":"IF(Forestal!$E44=Seguros_fianzas!N$12,Forestal!$B44,\"\")","v":""},{"$f":"IF(Forestal!$E44=Seguros_fianzas!O$12,Forestal!$B44,\"\")","v":""},{"$f":"_xlfn.XLOOKUP(A52,'Base-datos'!$B$517:$B$520,'Base-datos'!$F$517:$F$520)","v":{"$error":"#N/A"}},{"$f":"_xlfn.XLOOKUP(A52,'Base-datos'!$B$517:$B$520,'Base-datos'!$C$517:$C$520)","v":{"$error":"#N/A"}},{"$f":"_xlfn.XLOOKUP(A52,'Base-datos'!$B$517:$B$520,'Base-datos'!$D$517:$D$520)","v":{"$error":"#N/A"}},null,null,{"$f":"IF(OR(S$35=\"La actividad no cumple con el total de los criterios de No Daño Significativo\",T$35=\"El sector no cumple con las salvaguardas mínimas\"),\"\",IF(AND('Base-datos'!$B$720=\"Sí\",'Base-datos'!$B$721=\"\",'Base-datos'!$B$722=\"\"),IF(Q52=\"La actividad sí contribuye sustancialmente a la sostenibilidad\",SUM(B52:O52),0),IF(AND('Base-datos'!$B$720=\"Sí\",'Base-datos'!$B$721=\"Sí\",'Base-datos'!$B$722=\"\"),IF(AND(Q52=\"La actividad sí contribuye sustancialmente a la sostenibilidad\",R52=\"La actividad sí contribuye sustancialmente a la sostenibilidad\"),SUM(B52:O52),0),IF(AND('Base-datos'!$B$720=\"Sí\",'Base-datos'!$B$721=\"Sí\",'Base-datos'!$B$722=\"Sí\"),IF(AND(Q52=\"La actividad sí contribuye sustancialmente a la sostenibilidad\",R52=\"La actividad sí contribuye sustancialmente a la sostenibilidad\",P52=\"La actividad sí contribuye sustancialmente a la sostenibilidad\"),SUM(B52:O52),0),IF(AND('Base-datos'!$B$720=\"\",'Base-datos'!$B$721=\"Sí\",'Base-datos'!$B$722=\"\"),IF(R52=\"La actividad sí contribuye sustancialmente a la sostenibilidad\",SUM(B52:O52),0),IF(AND('Base-datos'!$B$720=\"\",'Base-datos'!$B$721=\"\",'Base-datos'!$B$722=\"Sí\"),IF(P52=\"La actividad sí contribuye sustancialmente a la sostenibilidad\",SUM(B52:O52),0),IF(AND('Base-datos'!$B$720=\"\",'Base-datos'!$B$721=\"Sí\",'Base-datos'!$B$722=\"Sí\"),IF(AND(R52=\"La actividad sí contribuye sustancialmente a la sostenibilidad\",P52=\"La actividad sí contribuye sustancialmente a la sostenibilidad\"),SUM(B52:O52),0),IF(AND('Base-datos'!$B$720=\"Sí\",'Base-datos'!$B$721=\"\",'Base-datos'!$B$722=\"Sí\"),IF(AND(Q52=\"La actividad sí contribuye sustancialmente a la sostenibilidad\",P52=\"La actividad sí contribuye sustancialmente a la sostenibilidad\"),SUM(B52:O52),0),\"Por definir\"))))))))","v":"Por definir"}]
[{"$f":"Forestal!$C46","v":"Seleccione"},{"$f":"IF(Forestal!$E46=Seguros_fianzas!B$12,Forestal!$B46,\"\")","v":""},{"$f":"IF(Forestal!$E46=Seguros_fianzas!C$12,Forestal!$B46,\"\")","v":""},{"$f":"IF(Forestal!$E46=Seguros_fianzas!D$12,Forestal!$B46,\"\")","v":""},{"$f":"IF(Forestal!$E46=Seguros_fianzas!E$12,Forestal!$B46,\"\")","v":""},{"$f":"IF(Forestal!$E46=Seguros_fianzas!F$12,Forestal!$B46,\"\")","v":""},{"$f":"IF(Forestal!$E46=Seguros_fianzas!G$12,Forestal!$B46,\"\")","v":""},{"$f":"IF(Forestal!$E46=Seguros_fianzas!H$12,Forestal!$B46,\"\")","v":""},{"$f":"IF(Forestal!$E46=Seguros_fianzas!I$12,Forestal!$B46,\"\")","v":""},{"$f":"IF(Forestal!$E46=Seguros_fianzas!J$12,Forestal!$B46,\"\")","v":""},{"$f":"IF(Forestal!$E46=Seguros_fianzas!K$12,Forestal!$B46,\"\")","v":""},{"$f":"IF(Forestal!$E46=Seguros_fianzas!L$12,Forestal!$B46,\"\")","v":""},{"$f":"IF(Forestal!$E46=Seguros_fianzas!M$12,Forestal!$B46,\"\")","v":""},{"$f":"IF(Forestal!$E46=Seguros_fianzas!N$12,Forestal!$B46,\"\")","v":""},{"$f":"IF(Forestal!$E46=Seguros_fianzas!O$12,Forestal!$B46,\"\")","v":""},{"$f":"_xlfn.XLOOKUP(A53,'Base-datos'!$B$517:$B$520,'Base-datos'!$F$517:$F$520)","v":{"$error":"#N/A"}},{"$f":"_xlfn.XLOOKUP(A53,'Base-datos'!$B$517:$B$520,'Base-datos'!$C$517:$C$520)","v":{"$error":"#N/A"}},{"$f":"_xlfn.XLOOKUP(A53,'Base-datos'!$B$517:$B$520,'Base-datos'!$D$517:$D$520)","v":{"$error":"#N/A"}},null,null,{"$f":"IF(OR(S$35=\"La actividad no cumple con el total de los criterios de No Daño Significativo\",T$35=\"El sector no cumple con las salvaguardas mínimas\"),\"\",IF(AND('Base-datos'!$B$720=\"Sí\",'Base-datos'!$B$721=\"\",'Base-datos'!$B$722=\"\"),IF(Q53=\"La actividad sí contribuye sustancialmente a la sostenibilidad\",SUM(B53:O53),0),IF(AND('Base-datos'!$B$720=\"Sí\",'Base-datos'!$B$721=\"Sí\",'Base-datos'!$B$722=\"\"),IF(AND(Q53=\"La actividad sí contribuye sustancialmente a la sostenibilidad\",R53=\"La actividad sí contribuye sustancialmente a la sostenibilidad\"),SUM(B53:O53),0),IF(AND('Base-datos'!$B$720=\"Sí\",'Base-datos'!$B$721=\"Sí\",'Base-datos'!$B$722=\"Sí\"),IF(AND(Q53=\"La actividad sí contribuye sustancialmente a la sostenibilidad\",R53=\"La actividad sí contribuye sustancialmente a la sostenibilidad\",P53=\"La actividad sí contribuye sustancialmente a la sostenibilidad\"),SUM(B53:O53),0),IF(AND('Base-datos'!$B$720=\"\",'Base-datos'!$B$721=\"Sí\",'Base-datos'!$B$722=\"\"),IF(R53=\"La actividad sí contribuye sustancialmente a la sostenibilidad\",SUM(B53:O53),0),IF(AND('Base-datos'!$B$720=\"\",'Base-datos'!$B$721=\"\",'Base-datos'!$B$722=\"Sí\"),IF(P53=\"La actividad sí contribuye sustancialmente a la sostenibilidad\",SUM(B53:O53),0),IF(AND('Base-datos'!$B$720=\"\",'Base-datos'!$B$721=\"Sí\",'Base-datos'!$B$722=\"Sí\"),IF(AND(R53=\"La actividad sí contribuye sustancialmente a la sostenibilidad\",P53=\"La actividad sí contribuye sustancialmente a la sostenibilidad\"),SUM(B53:O53),0),IF(AND('Base-datos'!$B$720=\"Sí\",'Base-datos'!$B$721=\"\",'Base-datos'!$B$722=\"Sí\"),IF(AND(Q53=\"La actividad sí contribuye sustancialmente a la sostenibilidad\",P53=\"La actividad sí contribuye sustancialmente a la sostenibilidad\"),SUM(B53:O53),0),\"Por definir\"))))))))","v":"Por definir"}]
[{"$f":"Forestal!$C48","v":"Seleccione"},{"$f":"IF(Forestal!$E48=Seguros_fianzas!B$12,Forestal!$B48,\"\")","v":""},{"$f":"IF(Forestal!$E48=Seguros_fianzas!C$12,Forestal!$B48,\"\")","v":""},{"$f":"IF(Forestal!$E48=Seguros_fianzas!D$12,Forestal!$B48,\"\")","v":""},{"$f":"IF(Forestal!$E48=Seguros_fianzas!E$12,Forestal!$B48,\"\")","v":""},{"$f":"IF(Forestal!$E48=Seguros_fianzas!F$12,Forestal!$B48,\"\")","v":""},{"$f":"IF(Forestal!$E48=Seguros_fianzas!G$12,Forestal!$B48,\"\")","v":""},{"$f":"IF(Forestal!$E48=Seguros_fianzas!H$12,Forestal!$B48,\"\")","v":""},{"$f":"IF(Forestal!$E48=Seguros_fianzas!I$12,Forestal!$B48,\"\")","v":""},{"$f":"IF(Forestal!$E48=Seguros_fianzas!J$12,Forestal!$B48,\"\")","v":""},{"$f":"IF(Forestal!$E48=Seguros_fianzas!K$12,Forestal!$B48,\"\")","v":""},{"$f":"IF(Forestal!$E48=Seguros_fianzas!L$12,Forestal!$B48,\"\")","v":""},{"$f":"IF(Forestal!$E48=Seguros_fianzas!M$12,Forestal!$B48,\"\")","v":""},{"$f":"IF(Forestal!$E48=Seguros_fianzas!N$12,Forestal!$B48,\"\")","v":""},{"$f":"IF(Forestal!$E48=Seguros_fianzas!O$12,Forestal!$B48,\"\")","v":""},{"$f":"_xlfn.XLOOKUP(A54,'Base-datos'!$B$517:$B$520,'Base-datos'!$F$517:$F$520)","v":{"$error":"#N/A"}},{"$f":"_xlfn.XLOOKUP(A54,'Base-datos'!$B$517:$B$520,'Base-datos'!$C$517:$C$520)","v":{"$error":"#N/A"}},{"$f":"_xlfn.XLOOKUP(A54,'Base-datos'!$B$517:$B$520,'Base-datos'!$D$517:$D$520)","v":{"$error":"#N/A"}},null,null,{"$f":"IF(OR(S$35=\"La actividad no cumple con el total de los criterios de No Daño Significativo\",T$35=\"El sector no cumple con las salvaguardas mínimas\"),\"\",IF(AND('Base-datos'!$B$720=\"Sí\",'Base-datos'!$B$721=\"\",'Base-datos'!$B$722=\"\"),IF(Q54=\"La actividad sí contribuye sustancialmente a la sostenibilidad\",SUM(B54:O54),0),IF(AND('Base-datos'!$B$720=\"Sí\",'Base-datos'!$B$721=\"Sí\",'Base-datos'!$B$722=\"\"),IF(AND(Q54=\"La actividad sí contribuye sustancialmente a la sostenibilidad\",R54=\"La actividad sí contribuye sustancialmente a la sostenibilidad\"),SUM(B54:O54),0),IF(AND('Base-datos'!$B$720=\"Sí\",'Base-datos'!$B$721=\"Sí\",'Base-datos'!$B$722=\"Sí\"),IF(AND(Q54=\"La actividad sí contribuye sustancialmente a la sostenibilidad\",R54=\"La actividad sí contribuye sustancialmente a la sostenibilidad\",P54=\"La actividad sí contribuye sustancialmente a la sostenibilidad\"),SUM(B54:O54),0),IF(AND('Base-datos'!$B$720=\"\",'Base-datos'!$B$721=\"Sí\",'Base-datos'!$B$722=\"\"),IF(R54=\"La actividad sí contribuye sustancialmente a la sostenibilidad\",SUM(B54:O54),0),IF(AND('Base-datos'!$B$720=\"\",'Base-datos'!$B$721=\"\",'Base-datos'!$B$722=\"Sí\"),IF(P54=\"La actividad sí contribuye sustancialmente a la sostenibilidad\",SUM(B54:O54),0),IF(AND('Base-datos'!$B$720=\"\",'Base-datos'!$B$721=\"Sí\",'Base-datos'!$B$722=\"Sí\"),IF(AND(R54=\"La actividad sí contribuye sustancialmente a la sostenibilidad\",P54=\"La actividad sí contribuye sustancialmente a la sostenibilidad\"),SUM(B54:O54),0),IF(AND('Base-datos'!$B$720=\"Sí\",'Base-datos'!$B$721=\"\",'Base-datos'!$B$722=\"Sí\"),IF(AND(Q54=\"La actividad sí contribuye sustancialmente a la sostenibilidad\",P54=\"La actividad sí contribuye sustancialmente a la sostenibilidad\"),SUM(B54:O54),0),\"Por definir\"))))))))","v":"Por definir"}]
["Ganadería",null,null,null,null,null,null,null,null,null,null,null,null,null,null,null,null,null,null,null,{"$f":"SUM(IF(FREQUENCY(MATCH(A56:A75, A56:A75, 0), MATCH(A56:A75, A56:A75, 0)) > 0, IF(NOT(ISERROR(U56:U75)), U56:U75, 0)))","v":0}]
[{"$f":"Ganadería!$C10","v":"Seleccione"},{"$f":"IF(Ganadería!$E10=Seguros_fianzas!B$12,Ganadería!$B10,\"\")","v":""},{"$f":"IF(Ganadería!$E10=Seguros_fianzas!C$12,Ganadería!$B10,\"\")","v":""},{"$f":"IF(Ganadería!$E10=Seguros_fianzas!D$12,Ganadería!$B10,\"\")","v":""},{"$f":"IF(Ganadería!$E10=Seguros_fianzas!E$12,Ganadería!$B10,\"\")","v":""},{"$f":"IF(Ganadería!$E10=Seguros_fianzas!F$12,Ganadería!$B10,\"\")","v":""},{"$f":"IF(Ganadería!$E10=Seguros_fianzas!G$12,Ganadería!$B10,\"\")","v":""},{"$f":"IF(Ganadería!$E10=Seguros_fianzas!H$12,Ganadería!$B10,\"\")","v":""},{"$f":"IF(Ganadería!$E10=Seguros_fianzas!I$12,Ganadería!$B10,\"\")","v":""},{"$f":"IF(Ganadería!$E10=Seguros_fianzas!J$12,Ganadería!$B10,\"\")","v":""},{"$f":"IF(Ganadería!$E10=Seguros_fianzas!K$12,Ganadería!$B10,\"\")","v":""},{"$f":"IF(Ganadería!$E10=Seguros_fianzas!L$12,Ganadería!$B10,\"\")","v":""},{"$f":"IF(Ganadería!$E10=Seguros_fianzas!M$12,Ganadería!$B10,\"\")","v":""},{"$f":"IF(Ganadería!$E10=Seguros_fianzas!N$12,Ganadería!$B10,\"\")","v":""},{"$f":"IF(Ganadería!$E10=Seguros_fianzas!O$12,Ganadería!$B10,\"\")","v":""},{"$f":"_xlfn.XLOOKUP(A56,'Base-datos'!$B$510:$B$516,'Base-datos'!$F$510:$F$516)","v":{"$error":"#N/A"}},{"$f":"_xlfn.XLOOKUP(A56,'Base-datos'!$B$510:$B$516,'Base-datos'!$C$510:$C$516)","v":{"$error":"#N/A"}},{"$f":"_xlfn.XLOOKUP(A56,'Base-datos'!$B$510:$B$516,'Base-datos'!$D$510:$D$516)","v":{"$error":"#N/A"}},{"$f":"IF(COUNTIF('Ganadería-NDS'!G9:G59,\"No\")>0,\"La actividad no cumple con el total de los criterios de NDS\",\"La actividad cumple con los criterios de No Daño Significativo\")","v":"La actividad cumple con los criterios de No Daño Significativo"},{"$f":"IF(OR('Salvaguardas mínimas'!$G$10=\"Seleccione\",'Salvaguardas mínimas'!$G$13=\"Seleccione\",'Salvaguardas mínimas'!$G$16=\"Seleccione\",'Salvaguardas mínimas'!$G$7=\"Seleccione\"),\"No se han respondido todas las preguntas\",IF(OR('Salvaguardas mínimas'!$G$10=\"No\",'Salvaguardas mínimas'!$G$13=\"No\",'Salvaguardas mínimas'!$G$16=\"No\",'Salvaguardas mínimas'!$G$7=\"No\"),\"El sector no cumple con las salvaguardas mínimas\",\"La actividad sí cumple con las salvaguardas mínimas\"))","v":"No se han respondido todas las preguntas"},{"$f":"IF(OR(S$56=\"La actividad no cumple con el total de los criterios de No Daño Significativo\",T$56=\"El sector no cumple con las salvaguardas mínimas\"),\"\",IF(AND('Base-datos'!$B$725=\"Sí\",'Base-datos'!$B$726=\"\",'Base-datos'!$B$727=\"\"),IF(Q56=\"La actividad sí contribuye sustancialmente a la sostenibilidad\",SUM(B56:O56),0),IF(AND('Base-datos'!$B$725=\"Sí\",'Base-datos'!$B$726=\"Sí\",'Base-datos'!$B$727=\"\"),IF(AND(Q56=\"La actividad sí contribuye sustancialmente a la sostenibilidad\",R56=\"La actividad sí contribuye sustancialmente a la sostenibilidad\"),SUM(B56:O56),0),IF(AND('Base-datos'!$B$725=\"Sí\",'Base-datos'!$B$726=\"Sí\",'Base-datos'!$B$727=\"Sí\"),IF(AND(Q56=\"La actividad sí contribuye sustancialmente a la sostenibilidad\",R56=\"La actividad sí contribuye sustancialmente a la sostenibilidad\",P56=\"La actividad sí contribuye sustancialmente a la sostenibilidad\"),SUM(B56:O56),0),IF(AND('Base-datos'!$B$725=\"\",'Base-datos'!$B$726=\"Sí\",'Base-datos'!$B$727=\"\"),IF(R56=\"La actividad sí contribuye sustancialmente a la sostenibilidad\",SUM(B56:O56),0),IF(AND('Base-datos'!$B$725=\"\",'Base-datos'!$B$726=\"\",'Base-datos'!$B$727=\"Sí\"),IF(P56=\"La actividad sí contribuye sustancialmente a la sostenibilidad\",SUM(B56:O56),0),IF(AND('Base-datos'!$B$725=\"\",'Base-datos'!$B$726=\"Sí\",'Base-datos'!$B$727=\"Sí\"),IF(AND(R56=\"La actividad sí contribuye sustancialmente a la sostenibilidad\",P56=\"La actividad sí contribuye sustancialmente a la sostenibilidad\"),SUM(B56:O56),0),IF(AND('Base-datos'!$B$725=\"Sí\",'Base-datos'!$B$726=\"\",'Base-datos'!$B$727=\"Sí\"),IF(AND(Q56=\"La actividad sí contribuye sustancialmente a la sostenibilidad\",P56=\"La actividad sí contribuye sustancialmente a la sostenibilidad\"),SUM(B56:O56),0),\"Por definir\"))))))))","v":"Por definir"}]
[{"$f":"Ganadería!$C12","v":"Seleccione"},{"$f":"IF(Ganadería!$E12=Seguros_fianzas!B$12,Ganadería!$B12,\"\")","v":""},{"$f":"IF(Ganadería!$E12=Seguros_fianzas!C$12,Ganadería!$B12,\"\")","v":""},{"$f":"IF(Ganadería!$E12=Seguros_fianzas!D$12,Ganadería!$B12,\"\")","v":""},{"$f":"IF(Ganadería!$E12=Seguros_fianzas!E$12,Ganadería!$B12,\"\")","v":""},{"$f":"IF(Ganadería!$E12=Seguros_fianzas!F$12,Ganadería!$B12,\"\")","v":""},{"$f":"IF(Ganadería!$E12=Seguros_fianzas!G$12,Ganadería!$B12,\"\")","v":""},{"$f":"IF(Ganadería!$E12=Seguros_fianzas!H$12,Ganadería!$B12,\"\")","v":""},{"$f":"IF(Ganadería!$E12=Seguros_fianzas!I$12,Ganadería!$B12,\"\")","v":""},{"$f":"IF(Ganadería!$E12=Seguros_fianzas!J$12,Ganadería!$B12,\"\")","v":""},{"$f":"IF(Ganadería!$E12=Seguros_fianzas!K$12,Ganadería!$B12,\"\")","v":""},{"$f":"IF(Ganadería!$E12=Seguros_fianzas!L$12,Ganadería!$B12,\"\")","v":""},{"$f":"IF(Ganadería!$E12=Seguros_fianzas!M$12,Ganadería!$B12,\"\")","v":""},{"$f":"IF(Ganadería!$E12=Seguros_fianzas!N$12,Ganadería!$B12,\"\")","v":""},{"$f":"IF(Ganadería!$E12=Seguros_fianzas!O$12,Ganadería!$B12,\"\")","v":""},{"$f":"_xlfn.XLOOKUP(A57,'Base-datos'!$B$510:$B$516,'Base-datos'!$F$510:$F$516)","v":{"$error":"#N/A"}},{"$f":"_xlfn.XLOOKUP(A57,'Base-datos'!$B$510:$B$516,'Base-datos'!$C$510:$C$516)","v":{"$error":"#N/A"}},{"$f":"_xlfn.XLOOKUP(A57,'Base-datos'!$B$510:$B$516,'Base-datos'!$D$510:$D$516)","v":{"$error":"#N/A"}},null,null,{"$f":"IF(OR(S$56=\"La actividad no cumple con el total de los criterios de No Daño Significativo\",T$56=\"El sector no cumple con las salvaguardas mínimas\"),\"\",IF(AND('Base-datos'!$B$725=\"Sí\",'Base-datos'!$B$726=\"\",'Base-datos'!$B$727=\"\"),IF(Q57=\"La actividad sí contribuye sustancialmente a la sostenibilidad\",SUM(B57:O57),0),IF(AND('Base-datos'!$B$725=\"Sí\",'Base-datos'!$B$726=\"Sí\",'Base-datos'!$B$727=\"\"),IF(AND(Q57=\"La actividad sí contribuye sustancialmente a la sostenibilidad\",R57=\"La actividad sí contribuye sustancialmente a la sostenibilidad\"),SUM(B57:O57),0),IF(AND('Base-datos'!$B$725=\"Sí\",'Base-datos'!$B$726=\"Sí\",'Base-datos'!$B$727=\"Sí\"),IF(AND(Q57=\"La actividad sí contribuye sustancialmente a la sostenibilidad\",R57=\"La actividad sí contribuye sustancialmente a la sostenibilidad\",P57=\"La actividad sí contribuye sustancialmente a la sostenibilidad\"),SUM(B57:O57),0),IF(AND('Base-datos'!$B$725=\"\",'Base-datos'!$B$726=\"Sí\",'Base-datos'!$B$727=\"\"),IF(R57=\"La actividad sí contribuye sustancialmente a la sostenibilidad\",SUM(B57:O57),0),IF(AND('Base-datos'!$B$725=\"\",'Base-datos'!$B$726=\"\",'Base-datos'!$B$727=\"Sí\"),IF(P57=\"La actividad sí contribuye sustancialmente a la sostenibilidad\",SUM(B57:O57),0),IF(AND('Base-datos'!$B$725=\"\",'Base-datos'!$B$726=\"Sí\",'Base-datos'!$B$727=\"Sí\"),IF(AND(R57=\"La actividad sí contribuye sustancialmente a la sostenibilidad\",P57=\"La actividad sí contribuye sustancialmente a la sostenibilidad\"),SUM(B57:O57),0),IF(AND('Base-datos'!$B$725=\"Sí\",'Base-datos'!$B$726=\"\",'Base-datos'!$B$727=\"Sí\"),IF(AND(Q57=\"La actividad sí contribuye sustancialmente a la sostenibilidad\",P57=\"La actividad sí contribuye sustancialmente a la sostenibilidad\"),SUM(B57:O57),0),\"Por definir\"))))))))","v":"Por definir"}]
[{"$f":"Ganadería!$C14","v":"Seleccione"},{"$f":"IF(Ganadería!$E14=Seguros_fianzas!B$12,Ganadería!$B14,\"\")","v":""},{"$f":"IF(Ganadería!$E14=Seguros_fianzas!C$12,Ganadería!$B14,\"\")","v":""},{"$f":"IF(Ganadería!$E14=Seguros_fianzas!D$12,Ganadería!$B14,\"\")","v":""},{"$f":"IF(Ganadería!$E14=Seguros_fianzas!E$12,Ganadería!$B14,\"\")","v":""},{"$f":"IF(Ganadería!$E14=Seguros_fianzas!F$12,Ganadería!$B14,\"\")","v":""},{"$f":"IF(Ganadería!$E14=Seguros_fianzas!G$12,Ganadería!$B14,\"\")","v":""},{"$f":"IF(Ganadería!$E14=Seguros_fianzas!H$12,Ganadería!$B14,\"\")","v":""},{"$f":"IF(Ganadería!$E14=Seguros_fianzas!I$12,Ganadería!$B14,\"\")","v":""},{"$f":"IF(Ganadería!$E14=Seguros_fianzas!J$12,Ganadería!$B14,\"\")","v":""},{"$f":"IF(Ganadería!$E14=Seguros_fianzas!K$12,Ganadería!$B14,\"\")","v":""},{"$f":"IF(Ganadería!$E14=Seguros_fianzas!L$12,Ganadería!$B14,\"\")","v":""},{"$f":"IF(Ganadería!$E14=Seguros_fianzas!M$12,Ganadería!$B14,\"\")","v":""},{"$f":"IF(Ganadería!$E14=Seguros_fianzas!N$12,Ganadería!$B14,\"\")","v":""},{"$f":"IF(Ganadería!$E14=Seguros_fianzas!O$12,Ganadería!$B14,\"\")","v":""},{"$f":"_xlfn.XLOOKUP(A58,'Base-datos'!$B$510:$B$516,'Base-datos'!$F$510:$F$516)","v":{"$error":"#N/A"}},{"$f":"_xlfn.XLOOKUP(A58,'Base-datos'!$B$510:$B$516,'Base-datos'!$C$510:$C$516)","v":{"$error":"#N/A"}},{"$f":"_xlfn.XLOOKUP(A58,'Base-datos'!$B$510:$B$516,'Base-datos'!$D$510:$D$516)","v":{"$error":"#N/A"}},null,null,{"$f":"IF(OR(S$56=\"La actividad no cumple con el total de los criterios de No Daño Significativo\",T$56=\"El sector no cumple con las salvaguardas mínimas\"),\"\",IF(AND('Base-datos'!$B$725=\"Sí\",'Base-datos'!$B$726=\"\",'Base-datos'!$B$727=\"\"),IF(Q58=\"La actividad sí contribuye sustancialmente a la sostenibilidad\",SUM(B58:O58),0),IF(AND('Base-datos'!$B$725=\"Sí\",'Base-datos'!$B$726=\"Sí\",'Base-datos'!$B$727=\"\"),IF(AND(Q58=\"La actividad sí contribuye sustancialmente a la sostenibilidad\",R58=\"La actividad sí contribuye sustancialmente a la sostenibilidad\"),SUM(B58:O58),0),IF(AND('Base-datos'!$B$725=\"Sí\",'Base-datos'!$B$726=\"Sí\",'Base-datos'!$B$727=\"Sí\"),IF(AND(Q58=\"La actividad sí contribuye sustancialmente a la sostenibilidad\",R58=\"La actividad sí contribuye sustancialmente a la sostenibilidad\",P58=\"La actividad sí contribuye sustancialmente a la sostenibilidad\"),SUM(B58:O58),0),IF(AND('Base-datos'!$B$725=\"\",'Base-datos'!$B$726=\"Sí\",'Base-datos'!$B$727=\"\"),IF(R58=\"La actividad sí contribuye sustancialmente a la sostenibilidad\",SUM(B58:O58),0),IF(AND('Base-datos'!$B$725=\"\",'Base-datos'!$B$726=\"\",'Base-datos'!$B$727=\"Sí\"),IF(P58=\"La actividad sí contribuye sustancialmente a la sostenibilidad\",SUM(B58:O58),0),IF(AND('Base-datos'!$B$725=\"\",'Base-datos'!$B$726=\"Sí\",'Base-datos'!$B$727=\"Sí\"),IF(AND(R58=\"La actividad sí contribuye sustancialmente a la sostenibilidad\",P58=\"La actividad sí contribuye sustancialmente a la sostenibilidad\"),SUM(B58:O58),0),IF(AND('Base-datos'!$B$725=\"Sí\",'Base-datos'!$B$726=\"\",'Base-datos'!$B$727=\"Sí\"),IF(AND(Q58=\"La actividad sí contribuye sustancialmente a la sostenibilidad\",P58=\"La actividad sí contribuye sustancialmente a la sostenibilidad\"),SUM(B58:O58),0),\"Por definir\"))))))))","v":"Por definir"}]
[{"$f":"Ganadería!$C16","v":"Seleccione"},{"$f":"IF(Ganadería!$E16=Seguros_fianzas!B$12,Ganadería!$B16,\"\")","v":""},{"$f":"IF(Ganadería!$E16=Seguros_fianzas!C$12,Ganadería!$B16,\"\")","v":""},{"$f":"IF(Ganadería!$E16=Seguros_fianzas!D$12,Ganadería!$B16,\"\")","v":""},{"$f":"IF(Ganadería!$E16=Seguros_fianzas!E$12,Ganadería!$B16,\"\")","v":""},{"$f":"IF(Ganadería!$E16=Seguros_fianzas!F$12,Ganadería!$B16,\"\")","v":""},{"$f":"IF(Ganadería!$E16=Seguros_fianzas!G$12,Ganadería!$B16,\"\")","v":""},{"$f":"IF(Ganadería!$E16=Seguros_fianzas!H$12,Ganadería!$B16,\"\")","v":""},{"$f":"IF(Ganadería!$E16=Seguros_fianzas!I$12,Ganadería!$B16,\"\")","v":""},{"$f":"IF(Ganadería!$E16=Seguros_fianzas!J$12,Ganadería!$B16,\"\")","v":""},{"$f":"IF(Ganadería!$E16=Seguros_fianzas!K$12,Ganadería!$B16,\"\")","v":""},{"$f":"IF(Ganadería!$E16=Seguros_fianzas!L$12,Ganadería!$B16,\"\")","v":""},{"$f":"IF(Ganadería!$E16=Seguros_fianzas!M$12,Ganadería!$B16,\"\")","v":""},{"$f":"IF(Ganadería!$E16=Seguros_fianzas!N$12,Ganadería!$B16,\"\")","v":""},{"$f":"IF(Ganadería!$E16=Seguros_fianzas!O$12,Ganadería!$B16,\"\")","v":""},{"$f":"_xlfn.XLOOKUP(A59,'Base-datos'!$B$510:$B$516,'Base-datos'!$F$510:$F$516)","v":{"$error":"#N/A"}},{"$f":"_xlfn.XLOOKUP(A59,'Base-datos'!$B$510:$B$516,'Base-datos'!$C$510:$C$516)","v":{"$error":"#N/A"}},{"$f":"_xlfn.XLOOKUP(A59,'Base-datos'!$B$510:$B$516,'Base-datos'!$D$510:$D$516)","v":{"$error":"#N/A"}},null,null,{"$f":"IF(OR(S$56=\"La actividad no cumple con el total de los criterios de No Daño Significativo\",T$56=\"El sector no cumple con las salvaguardas mínimas\"),\"\",IF(AND('Base-datos'!$B$725=\"Sí\",'Base-datos'!$B$726=\"\",'Base-datos'!$B$727=\"\"),IF(Q59=\"La actividad sí contribuye sustancialmente a la sostenibilidad\",SUM(B59:O59),0),IF(AND('Base-datos'!$B$725=\"Sí\",'Base-datos'!$B$726=\"Sí\",'Base-datos'!$B$727=\"\"),IF(AND(Q59=\"La actividad sí contribuye sustancialmente a la sostenibilidad\",R59=\"La actividad sí contribuye sustancialmente a la sostenibilidad\"),SUM(B59:O59),0),IF(AND('Base-datos'!$B$725=\"Sí\",'Base-datos'!$B$726=\"Sí\",'Base-datos'!$B$727=\"Sí\"),IF(AND(Q59=\"La actividad sí contribuye sustancialmente a la sostenibilidad\",R59=\"La actividad sí contribuye sustancialmente a la sostenibilidad\",P59=\"La actividad sí contribuye sustancialmente a la sostenibilidad\"),SUM(B59:O59),0),IF(AND('Base-datos'!$B$725=\"\",'Base-datos'!$B$726=\"Sí\",'Base-datos'!$B$727=\"\"),IF(R59=\"La actividad sí contribuye sustancialmente a la sostenibilidad\",SUM(B59:O59),0),IF(AND('Base-datos'!$B$725=\"\",'Base-datos'!$B$726=\"\",'Base-datos'!$B$727=\"Sí\"),IF(P59=\"La actividad sí contribuye sustancialmente a la sostenibilidad\",SUM(B59:O59),0),IF(AND('Base-datos'!$B$725=\"\",'Base-datos'!$B$726=\"Sí\",'Base-datos'!$B$727=\"Sí\"),IF(AND(R59=\"La actividad sí contribuye sustancialmente a la sostenibilidad\",P59=\"La actividad sí contribuye sustancialmente a la sostenibilidad\"),SUM(B59:O59),0),IF(AND('Base-datos'!$B$725=\"Sí\",'Base-datos'!$B$726=\"\",'Base-datos'!$B$727=\"Sí\"),IF(AND(Q59=\"La actividad sí contribuye sustancialmente a la sostenibilidad\",P59=\"La actividad sí contribuye sustancialmente a la sostenibilidad\"),SUM(B59:O59),0),\"Por definir\"))))))))","v":"Por definir"}]
[{"$f":"Ganadería!$C18","v":"Seleccione"},{"$f":"IF(Ganadería!$E18=Seguros_fianzas!B$12,Ganadería!$B18,\"\")","v":""},{"$f":"IF(Ganadería!$E18=Seguros_fianzas!C$12,Ganadería!$B18,\"\")","v":""},{"$f":"IF(Ganadería!$E18=Seguros_fianzas!D$12,Ganadería!$B18,\"\")","v":""},{"$f":"IF(Ganadería!$E18=Seguros_fianzas!E$12,Ganadería!$B18,\"\")","v":""},{"$f":"IF(Ganadería!$E18=Seguros_fianzas!F$12,Ganadería!$B18,\"\")","v":""},{"$f":"IF(Ganadería!$E18=Seguros_fianzas!G$12,Ganadería!$B18,\"\")","v":""},{"$f":"IF(Ganadería!$E18=Seguros_fianzas!H$12,Ganadería!$B18,\"\")","v":""},{"$f":"IF(Ganadería!$E18=Seguros_fianzas!I$12,Ganadería!$B18,\"\")","v":""},{"$f":"IF(Ganadería!$E18=Seguros_fianzas!J$12,Ganadería!$B18,\"\")","v":""},{"$f":"IF(Ganadería!$E18=Seguros_fianzas!K$12,Ganadería!$B18,\"\")","v":""},{"$f":"IF(Ganadería!$E18=Seguros_fianzas!L$12,Ganadería!$B18,\"\")","v":""},{"$f":"IF(Ganadería!$E18=Seguros_fianzas!M$12,Ganadería!$B18,\"\")","v":""},{"$f":"IF(Ganadería!$E18=Seguros_fianzas!N$12,Ganadería!$B18,\"\")","v":""},{"$f":"IF(Ganadería!$E18=Seguros_fianzas!O$12,Ganadería!$B18,\"\")","v":""},{"$f":"_xlfn.XLOOKUP(A60,'Base-datos'!$B$510:$B$516,'Base-datos'!$F$510:$F$516)","v":{"$error":"#N/A"}},{"$f":"_xlfn.XLOOKUP(A60,'Base-datos'!$B$510:$B$516,'Base-datos'!$C$510:$C$516)","v":{"$error":"#N/A"}},{"$f":"_xlfn.XLOOKUP(A60,'Base-datos'!$B$510:$B$516,'Base-datos'!$D$510:$D$516)","v":{"$error":"#N/A"}},null,null,{"$f":"IF(OR(S$56=\"La actividad no cumple con el total de los criterios de No Daño Significativo\",T$56=\"El sector no cumple con las salvaguardas mínimas\"),\"\",IF(AND('Base-datos'!$B$725=\"Sí\",'Base-datos'!$B$726=\"\",'Base-datos'!$B$727=\"\"),IF(Q60=\"La actividad sí contribuye sustancialmente a la sostenibilidad\",SUM(B60:O60),0),IF(AND('Base-datos'!$B$725=\"Sí\",'Base-datos'!$B$726=\"Sí\",'Base-datos'!$B$727=\"\"),IF(AND(Q60=\"La actividad sí contribuye sustancialmente a la sostenibilidad\",R60=\"La actividad sí contribuye sustancialmente a la sostenibilidad\"),SUM(B60:O60),0),IF(AND('Base-datos'!$B$725=\"Sí\",'Base-datos'!$B$726=\"Sí\",'Base-datos'!$B$727=\"Sí\"),IF(AND(Q60=\"La actividad sí contribuye sustancialmente a la sostenibilidad\",R60=\"La actividad sí contribuye sustancialmente a la sostenibilidad\",P60=\"La actividad sí contribuye sustancialmente a la sostenibilidad\"),SUM(B60:O60),0),IF(AND('Base-datos'!$B$725=\"\",'Base-datos'!$B$726=\"Sí\",'Base-datos'!$B$727=\"\"),IF(R60=\"La actividad sí contribuye sustancialmente a la sostenibilidad\",SUM(B60:O60),0),IF(AND('Base-datos'!$B$725=\"\",'Base-datos'!$B$726=\"\",'Base-datos'!$B$727=\"Sí\"),IF(P60=\"La actividad sí contribuye sustancialmente a la sostenibilidad\",SUM(B60:O60),0),IF(AND('Base-datos'!$B$725=\"\",'Base-datos'!$B$726=\"Sí\",'Base-datos'!$B$727=\"Sí\"),IF(AND(R60=\"La actividad sí contribuye sustancialmente a la sostenibilidad\",P60=\"La actividad sí contribuye sustancialmente a la sostenibilidad\"),SUM(B60:O60),0),IF(AND('Base-datos'!$B$725=\"Sí\",'Base-datos'!$B$726=\"\",'Base-datos'!$B$727=\"Sí\"),IF(AND(Q60=\"La actividad sí contribuye sustancialmente a la sostenibilidad\",P60=\"La actividad sí contribuye sustancialmente a la sostenibilidad\"),SUM(B60:O60),0),\"Por definir\"))))))))","v":"Por definir"}]
[{"$f":"Ganadería!$C20","v":"Seleccione"},{"$f":"IF(Ganadería!$E20=Seguros_fianzas!B$12,Ganadería!$B20,\"\")","v":""},{"$f":"IF(Ganadería!$E20=Seguros_fianzas!C$12,Ganadería!$B20,\"\")","v":""},{"$f":"IF(Ganadería!$E20=Seguros_fianzas!D$12,Ganadería!$B20,\"\")","v":""},{"$f":"IF(Ganadería!$E20=Seguros_fianzas!E$12,Ganadería!$B20,\"\")","v":""},{"$f":"IF(Ganadería!$E20=Seguros_fianzas!F$12,Ganadería!$B20,\"\")","v":""},{"$f":"IF(Ganadería!$E20=Seguros_fianzas!G$12,Ganadería!$B20,\"\")","v":""},{"$f":"IF(Ganadería!$E20=Seguros_fianzas!H$12,Ganadería!$B20,\"\")","v":""},{"$f":"IF(Ganadería!$E20=Seguros_fianzas!I$12,Ganadería!$B20,\"\")","v":""},{"$f":"IF(Ganadería!$E20=Seguros_fianzas!J$12,Ganadería!$B20,\"\")","v":""},{"$f":"IF(Ganadería!$E20=Seguros_fianzas!K$12,Ganadería!$B20,\"\")","v":""},{"$f":"IF(Ganadería!$E20=Seguros_fianzas!L$12,Ganadería!$B20,\"\")","v":""},{"$f":"IF(Ganadería!$E20=Seguros_fianzas!M$12,Ganadería!$B20,\"\")","v":""},{"$f":"IF(Ganadería!$E20=Seguros_fianzas!N$12,Ganadería!$B20,\"\")","v":""},{"$f":"IF(Ganadería!$E20=Seguros_fianzas!O$12,Ganadería!$B20,\"\")","v":""},{"$f":"_xlfn.XLOOKUP(A61,'Base-datos'!$B$510:$B$516,'Base-datos'!$F$510:$F$516)","v":{"$error":"#N/A"}},{"$f":"_xlfn.XLOOKUP(A61,'Base-datos'!$B$510:$B$516,'Base-datos'!$C$510:$C$516)","v":{"$error":"#N/A"}},{"$f":"_xlfn.XLOOKUP(A61,'Base-datos'!$B$510:$B$516,'Base-datos'!$D$510:$D$516)","v":{"$error":"#N/A"}},null,null,{"$f":"IF(OR(S$56=\"La actividad no cumple con el total de los criterios de No Daño Significativo\",T$56=\"El sector no cumple con las salvaguardas mínimas\"),\"\",IF(AND('Base-datos'!$B$725=\"Sí\",'Base-datos'!$B$726=\"\",'Base-datos'!$B$727=\"\"),IF(Q61=\"La actividad sí contribuye sustancialmente a la sostenibilidad\",SUM(B61:O61),0),IF(AND('Base-datos'!$B$725=\"Sí\",'Base-datos'!$B$726=\"Sí\",'Base-datos'!$B$727=\"\"),IF(AND(Q61=\"La actividad sí contribuye sustancialmente a la sostenibilidad\",R61=\"La actividad sí contribuye sustancialmente a la sostenibilidad\"),SUM(B61:O61),0),IF(AND('Base-datos'!$B$725=\"Sí\",'Base-datos'!$B$726=\"Sí\",'Base-datos'!$B$727=\"Sí\"),IF(AND(Q61=\"La actividad sí contribuye sustancialmente a la sostenibilidad\",R61=\"La actividad sí contribuye sustancialmente a la sostenibilidad\",P61=\"La actividad sí contribuye sustancialmente a la sostenibilidad\"),SUM(B61:O61),0),IF(AND('Base-datos'!$B$725=\"\",'Base-datos'!$B$726=\"Sí\",'Base-datos'!$B$727=\"\"),IF(R61=\"La actividad sí contribuye sustancialmente a la sostenibilidad\",SUM(B61:O61),0),IF(AND('Base-datos'!$B$725=\"\",'Base-datos'!$B$726=\"\",'Base-datos'!$B$727=\"Sí\"),IF(P61=\"La actividad sí contribuye sustancialmente a la sostenibilidad\",SUM(B61:O61),0),IF(AND('Base-datos'!$B$725=\"\",'Base-datos'!$B$726=\"Sí\",'Base-datos'!$B$727=\"Sí\"),IF(AND(R61=\"La actividad sí contribuye sustancialmente a la sostenibilidad\",P61=\"La actividad sí contribuye sustancialmente a la sostenibilidad\"),SUM(B61:O61),0),IF(AND('Base-datos'!$B$725=\"Sí\",'Base-datos'!$B$726=\"\",'Base-datos'!$B$727=\"Sí\"),IF(AND(Q61=\"La actividad sí contribuye sustancialmente a la sostenibilidad\",P61=\"La actividad sí contribuye sustancialmente a la sostenibilidad\"),SUM(B61:O61),0),\"Por definir\"))))))))","v":"Por definir"}]
[{"$f":"Ganadería!$C22","v":"Seleccione"},{"$f":"IF(Ganadería!$E22=Seguros_fianzas!B$12,Ganadería!$B22,\"\")","v":""},{"$f":"IF(Ganadería!$E22=Seguros_fianzas!C$12,Ganadería!$B22,\"\")","v":""},{"$f":"IF(Ganadería!$E22=Seguros_fianzas!D$12,Ganadería!$B22,\"\")","v":""},{"$f":"IF(Ganadería!$E22=Seguros_fianzas!E$12,Ganadería!$B22,\"\")","v":""},{"$f":"IF(Ganadería!$E22=Seguros_fianzas!F$12,Ganadería!$B22,\"\")","v":""},{"$f":"IF(Ganadería!$E22=Seguros_fianzas!G$12,Ganadería!$B22,\"\")","v":""},{"$f":"IF(Ganadería!$E22=Seguros_fianzas!H$12,Ganadería!$B22,\"\")","v":""},{"$f":"IF(Ganadería!$E22=Seguros_fianzas!I$12,Ganadería!$B22,\"\")","v":""},{"$f":"IF(Ganadería!$E22=Seguros_fianzas!J$12,Ganadería!$B22,\"\")","v":""},{"$f":"IF(Ganadería!$E22=Seguros_fianzas!K$12,Ganadería!$B22,\"\")","v":""},{"$f":"IF(Ganadería!$E22=Seguros_fianzas!L$12,Ganadería!$B22,\"\")","v":""},{"$f":"IF(Ganadería!$E22=Seguros_fianzas!M$12,Ganadería!$B22,\"\")","v":""},{"$f":"IF(Ganadería!$E22=Seguros_fianzas!N$12,Ganadería!$B22,\"\")","v":""},{"$f":"IF(Ganadería!$E22=Seguros_fianzas!O$12,Ganadería!$B22,\"\")","v":""},{"$f":"_xlfn.XLOOKUP(A62,'Base-datos'!$B$510:$B$516,'Base-datos'!$F$510:$F$516)","v":{"$error":"#N/A"}},{"$f":"_xlfn.XLOOKUP(A62,'Base-datos'!$B$510:$B$516,'Base-datos'!$C$510:$C$516)","v":{"$error":"#N/A"}},{"$f":"_xlfn.XLOOKUP(A62,'Base-datos'!$B$510:$B$516,'Base-datos'!$D$510:$D$516)","v":{"$error":"#N/A"}},null,null,{"$f":"IF(OR(S$56=\"La actividad no cumple con el total de los criterios de No Daño Significativo\",T$56=\"El sector no cumple con las salvaguardas mínimas\"),\"\",IF(AND('Base-datos'!$B$725=\"Sí\",'Base-datos'!$B$726=\"\",'Base-datos'!$B$727=\"\"),IF(Q62=\"La actividad sí contribuye sustancialmente a la sostenibilidad\",SUM(B62:O62),0),IF(AND('Base-datos'!$B$725=\"Sí\",'Base-datos'!$B$726=\"Sí\",'Base-datos'!$B$727=\"\"),IF(AND(Q62=\"La actividad sí contribuye sustancialmente a la sostenibilidad\",R62=\"La actividad sí contribuye sustancialmente a la sostenibilidad\"),SUM(B62:O62),0),IF(AND('Base-datos'!$B$725=\"Sí\",'Base-datos'!$B$726=\"Sí\",'Base-datos'!$B$727=\"Sí\"),IF(AND(Q62=\"La actividad sí contribuye sustancialmente a la sostenibilidad\",R62=\"La actividad sí contribuye sustancialmente a la sostenibilidad\",P62=\"La actividad sí contribuye sustancialmente a la sostenibilidad\"),SUM(B62:O62),0),IF(AND('Base-datos'!$B$725=\"\",'Base-datos'!$B$726=\"Sí\",'Base-datos'!$B$727=\"\"),IF(R62=\"La actividad sí contribuye sustancialmente a la sostenibilidad\",SUM(B62:O62),0),IF(AND('Base-datos'!$B$725=\"\",'Base-datos'!$B$726=\"\",'Base-datos'!$B$727=\"Sí\"),IF(P62=\"La actividad sí contribuye sustancialmente a la sostenibilidad\",SUM(B62:O62),0),IF(AND('Base-datos'!$B$725=\"\",'Base-datos'!$B$726=\"Sí\",'Base-datos'!$B$727=\"Sí\"),IF(AND(R62=\"La actividad sí contribuye sustancialmente a la sostenibilidad\",P62=\"La actividad sí contribuye sustancialmente a la sostenibilidad\"),SUM(B62:O62),0),IF(AND('Base-datos'!$B$725=\"Sí\",'Base-datos'!$B$726=\"\",'Base-datos'!$B$727=\"Sí\"),IF(AND(Q62=\"La actividad sí contribuye sustancialmente a la sostenibilidad\",P62=\"La actividad sí contribuye sustancialmente a la sostenibilidad\"),SUM(B62:O62),0),\"Por definir\"))))))))","v":"Por definir"}]
[{"$f":"Ganadería!$C24","v":"Seleccione"},{"$f":"IF(Ganadería!$E24=Seguros_fianzas!B$12,Ganadería!$B24,\"\")","v":""},{"$f":"IF(Ganadería!$E24=Seguros_fianzas!C$12,Ganadería!$B24,\"\")","v":""},{"$f":"IF(Ganadería!$E24=Seguros_fianzas!D$12,Ganadería!$B24,\"\")","v":""},{"$f":"IF(Ganadería!$E24=Seguros_fianzas!E$12,Ganadería!$B24,\"\")","v":""},{"$f":"IF(Ganadería!$E24=Seguros_fianzas!F$12,Ganadería!$B24,\"\")","v":""},{"$f":"IF(Ganadería!$E24=Seguros_fianzas!G$12,Ganadería!$B24,\"\")","v":""},{"$f":"IF(Ganadería!$E24=Seguros_fianzas!H$12,Ganadería!$B24,\"\")","v":""},{"$f":"IF(Ganadería!$E24=Seguros_fianzas!I$12,Ganadería!$B24,\"\")","v":""},{"$f":"IF(Ganadería!$E24=Seguros_fianzas!J$12,Ganadería!$B24,\"\")","v":""},{"$f":"IF(Ganadería!$E24=Seguros_fianzas!K$12,Ganadería!$B24,\"\")","v":""},{"$f":"IF(Ganadería!$E24=Seguros_fianzas!L$12,Ganadería!$B24,\"\")","v":""},{"$f":"IF(Ganadería!$E24=Seguros_fianzas!M$12,Ganadería!$B24,\"\")","v":""},{"$f":"IF(Ganadería!$E24=Seguros_fianzas!N$12,Ganadería!$B24,\"\")","v":""},{"$f":"IF(Ganadería!$E24=Seguros_fianzas!O$12,Ganadería!$B24,\"\")","v":""},{"$f":"_xlfn.XLOOKUP(A63,'Base-datos'!$B$510:$B$516,'Base-datos'!$F$510:$F$516)","v":{"$error":"#N/A"}},{"$f":"_xlfn.XLOOKUP(A63,'Base-datos'!$B$510:$B$516,'Base-datos'!$C$510:$C$516)","v":{"$error":"#N/A"}},{"$f":"_xlfn.XLOOKUP(A63,'Base-datos'!$B$510:$B$516,'Base-datos'!$D$510:$D$516)","v":{"$error":"#N/A"}},null,null,{"$f":"IF(OR(S$56=\"La actividad no cumple con el total de los criterios de No Daño Significativo\",T$56=\"El sector no cumple con las salvaguardas mínimas\"),\"\",IF(AND('Base-datos'!$B$725=\"Sí\",'Base-datos'!$B$726=\"\",'Base-datos'!$B$727=\"\"),IF(Q63=\"La actividad sí contribuye sustancialmente a la sostenibilidad\",SUM(B63:O63),0),IF(AND('Base-datos'!$B$725=\"Sí\",'Base-datos'!$B$726=\"Sí\",'Base-datos'!$B$727=\"\"),IF(AND(Q63=\"La actividad sí contribuye sustancialmente a la sostenibilidad\",R63=\"La actividad sí contribuye sustancialmente a la sostenibilidad\"),SUM(B63:O63),0),IF(AND('Base-datos'!$B$725=\"Sí\",'Base-datos'!$B$726=\"Sí\",'Base-datos'!$B$727=\"Sí\"),IF(AND(Q63=\"La actividad sí contribuye sustancialmente a la sostenibilidad\",R63=\"La actividad sí contribuye sustancialmente a la sostenibilidad\",P63=\"La actividad sí contribuye sustancialmente a la sostenibilidad\"),SUM(B63:O63),0),IF(AND('Base-datos'!$B$725=\"\",'Base-datos'!$B$726=\"Sí\",'Base-datos'!$B$727=\"\"),IF(R63=\"La actividad sí contribuye sustancialmente a la sostenibilidad\",SUM(B63:O63),0),IF(AND('Base-datos'!$B$725=\"\",'Base-datos'!$B$726=\"\",'Base-datos'!$B$727=\"Sí\"),IF(P63=\"La actividad sí contribuye sustancialmente a la sostenibilidad\",SUM(B63:O63),0),IF(AND('Base-datos'!$B$725=\"\",'Base-datos'!$B$726=\"Sí\",'Base-datos'!$B$727=\"Sí\"),IF(AND(R63=\"La actividad sí contribuye sustancialmente a la sostenibilidad\",P63=\"La actividad sí contribuye sustancialmente a la sostenibilidad\"),SUM(B63:O63),0),IF(AND('Base-datos'!$B$725=\"Sí\",'Base-datos'!$B$726=\"\",'Base-datos'!$B$727=\"Sí\"),IF(AND(Q63=\"La actividad sí contribuye sustancialmente a la sostenibilidad\",P63=\"La actividad sí contribuye sustancialmente a la sostenibilidad\"),SUM(B63:O63),0),\"Por definir\"))))))))","v":"Por definir"}]
[{"$f":"Ganadería!$C26","v":"Seleccione"},{"$f":"IF(Ganadería!$E26=Seguros_fianzas!B$12,Ganadería!$B26,\"\")","v":""},{"$f":"IF(Ganadería!$E26=Seguros_fianzas!C$12,Ganadería!$B26,\"\")","v":""},{"$f":"IF(Ganadería!$E26=Seguros_fianzas!D$12,Ganadería!$B26,\"\")","v":""},{"$f":"IF(Ganadería!$E26=Seguros_fianzas!E$12,Ganadería!$B26,\"\")","v":""},{"$f":"IF(Ganadería!$E26=Seguros_fianzas!F$12,Ganadería!$B26,\"\")","v":""},{"$f":"IF(Ganadería!$E26=Seguros_fianzas!G$12,Ganadería!$B26,\"\")","v":""},{"$f":"IF(Ganadería!$E26=Seguros_fianzas!H$12,Ganadería!$B26,\"\")","v":""},{"$f":"IF(Ganadería!$E26=Seguros_fianzas!I$12,Ganadería!$B26,\"\")","v":""},{"$f":"IF(Ganadería!$E26=Seguros_fianzas!J$12,Ganadería!$B26,\"\")","v":""},{"$f":"IF(Ganadería!$E26=Seguros_fianzas!K$12,Ganadería!$B26,\"\")","v":""},{"$f":"IF(Ganadería!$E26=Seguros_fianzas!L$12,Ganadería!$B26,\"\")","v":""},{"$f":"IF(Ganadería!$E26=Seguros_fianzas!M$12,Ganadería!$B26,\"\")","v":""},{"$f":"IF(Ganadería!$E26=Seguros_fianzas!N$12,Ganadería!$B26,\"\")","v":""},{"$f":"IF(Ganadería!$E26=Seguros_fianzas!O$12,Ganadería!$B26,\"\")","v":""},{"$f":"_xlfn.XLOOKUP(A64,'Base-datos'!$B$510:$B$516,'Base-datos'!$F$510:$F$516)","v":{"$error":"#N/A"}},{"$f":"_xlfn.XLOOKUP(A64,'Base-datos'!$B$510:$B$516,'Base-datos'!$C$510:$C$516)","v":{"$error":"#N/A"}},{"$f":"_xlfn.XLOOKUP(A64,'Base-datos'!$B$510:$B$516,'Base-datos'!$D$510:$D$516)","v":{"$error":"#N/A"}},null,null,{"$f":"IF(OR(S$56=\"La actividad no cumple con el total de los criterios de No Daño Significativo\",T$56=\"El sector no cumple con las salvaguardas mínimas\"),\"\",IF(AND('Base-datos'!$B$725=\"Sí\",'Base-datos'!$B$726=\"\",'Base-datos'!$B$727=\"\"),IF(Q64=\"La actividad sí contribuye sustancialmente a la sostenibilidad\",SUM(B64:O64),0),IF(AND('Base-datos'!$B$725=\"Sí\",'Base-datos'!$B$726=\"Sí\",'Base-datos'!$B$727=\"\"),IF(AND(Q64=\"La actividad sí contribuye sustancialmente a la sostenibilidad\",R64=\"La actividad sí contribuye sustancialmente a la sostenibilidad\"),SUM(B64:O64),0),IF(AND('Base-datos'!$B$725=\"Sí\",'Base-datos'!$B$726=\"Sí\",'Base-datos'!$B$727=\"Sí\"),IF(AND(Q64=\"La actividad sí contribuye sustancialmente a la sostenibilidad\",R64=\"La actividad sí contribuye sustancialmente a la sostenibilidad\",P64=\"La actividad sí contribuye sustancialmente a la sostenibilidad\"),SUM(B64:O64),0),IF(AND('Base-datos'!$B$725=\"\",'Base-datos'!$B$726=\"Sí\",'Base-datos'!$B$727=\"\"),IF(R64=\"La actividad sí contribuye sustancialmente a la sostenibilidad\",SUM(B64:O64),0),IF(AND('Base-datos'!$B$725=\"\",'Base-datos'!$B$726=\"\",'Base-datos'!$B$727=\"Sí\"),IF(P64=\"La actividad sí contribuye sustancialmente a la sostenibilidad\",SUM(B64:O64),0),IF(AND('Base-datos'!$B$725=\"\",'Base-datos'!$B$726=\"Sí\",'Base-datos'!$B$727=\"Sí\"),IF(AND(R64=\"La actividad sí contribuye sustancialmente a la sostenibilidad\",P64=\"La actividad sí contribuye sustancialmente a la sostenibilidad\"),SUM(B64:O64),0),IF(AND('Base-datos'!$B$725=\"Sí\",'Base-datos'!$B$726=\"\",'Base-datos'!$B$727=\"Sí\"),IF(AND(Q64=\"La actividad sí contribuye sustancialmente a la sostenibilidad\",P64=\"La actividad sí contribuye sustancialmente a la sostenibilidad\"),SUM(B64:O64),0),\"Por definir\"))))))))","v":"Por definir"}]
[{"$f":"Ganadería!$C28","v":"Seleccione"},{"$f":"IF(Ganadería!$E28=Seguros_fianzas!B$12,Ganadería!$B28,\"\")","v":""},{"$f":"IF(Ganadería!$E28=Seguros_fianzas!C$12,Ganadería!$B28,\"\")","v":""},{"$f":"IF(Ganadería!$E28=Seguros_fianzas!D$12,Ganadería!$B28,\"\")","v":""},{"$f":"IF(Ganadería!$E28=Seguros_fianzas!E$12,Ganadería!$B28,\"\")","v":""},{"$f":"IF(Ganadería!$E28=Seguros_fianzas!F$12,Ganadería!$B28,\"\")","v":""},{"$f":"IF(Ganadería!$E28=Seguros_fianzas!G$12,Ganadería!$B28,\"\")","v":""},{"$f":"IF(Ganadería!$E28=Seguros_fianzas!H$12,Ganadería!$B28,\"\")","v":""},{"$f":"IF(Ganadería!$E28=Seguros_fianzas!I$12,Ganadería!$B28,\"\")","v":""},{"$f":"IF(Ganadería!$E28=Seguros_fianzas!J$12,Ganadería!$B28,\"\")","v":""},{"$f":"IF(Ganadería!$E28=Seguros_fianzas!K$12,Ganadería!$B28,\"\")","v":""},{"$f":"IF(Ganadería!$E28=Seguros_fianzas!L$12,Ganadería!$B28,\"\")","v":""},{"$f":"IF(Ganadería!$E28=Seguros_fianzas!M$12,Ganadería!$B28,\"\")","v":""},{"$f":"IF(Ganadería!$E28=Seguros_fianzas!N$12,Ganadería!$B28,\"\")","v":""},{"$f":"IF(Ganadería!$E28=Seguros_fianzas!O$12,Ganadería!$B28,\"\")","v":""},{"$f":"_xlfn.XLOOKUP(A65,'Base-datos'!$B$510:$B$516,'Base-datos'!$F$510:$F$516)","v":{"$error":"#N/A"}},{"$f":"_xlfn.XLOOKUP(A65,'Base-datos'!$B$510:$B$516,'Base-datos'!$C$510:$C$516)","v":{"$error":"#N/A"}},{"$f":"_xlfn.XLOOKUP(A65,'Base-datos'!$B$510:$B$516,'Base-datos'!$D$510:$D$516)","v":{"$error":"#N/A"}},null,null,{"$f":"IF(OR(S$56=\"La actividad no cumple con el total de los criterios de No Daño Significativo\",T$56=\"El sector no cumple con las salvaguardas mínimas\"),\"\",IF(AND('Base-datos'!$B$725=\"Sí\",'Base-datos'!$B$726=\"\",'Base-datos'!$B$727=\"\"),IF(Q65=\"La actividad sí contribuye sustancialmente a la sostenibilidad\",SUM(B65:O65),0),IF(AND('Base-datos'!$B$725=\"Sí\",'Base-datos'!$B$726=\"Sí\",'Base-datos'!$B$727=\"\"),IF(AND(Q65=\"La actividad sí contribuye sustancialmente a la sostenibilidad\",R65=\"La actividad sí contribuye sustancialmente a la sostenibilidad\"),SUM(B65:O65),0),IF(AND('Base-datos'!$B$725=\"Sí\",'Base-datos'!$B$726=\"Sí\",'Base-datos'!$B$727=\"Sí\"),IF(AND(Q65=\"La actividad sí contribuye sustancialmente a la sostenibilidad\",R65=\"La actividad sí contribuye sustancialmente a la sostenibilidad\",P65=\"La actividad sí contribuye sustancialmente a la sostenibilidad\"),SUM(B65:O65),0),IF(AND('Base-datos'!$B$725=\"\",'Base-datos'!$B$726=\"Sí\",'Base-datos'!$B$727=\"\"),IF(R65=\"La actividad sí contribuye sustancialmente a la sostenibilidad\",SUM(B65:O65),0),IF(AND('Base-datos'!$B$725=\"\",'Base-datos'!$B$726=\"\",'Base-datos'!$B$727=\"Sí\"),IF(P65=\"La actividad sí contribuye sustancialmente a la sostenibilidad\",SUM(B65:O65),0),IF(AND('Base-datos'!$B$725=\"\",'Base-datos'!$B$726=\"Sí\",'Base-datos'!$B$727=\"Sí\"),IF(AND(R65=\"La actividad sí contribuye sustancialmente a la sostenibilidad\",P65=\"La actividad sí contribuye sustancialmente a la sostenibilidad\"),SUM(B65:O65),0),IF(AND('Base-datos'!$B$725=\"Sí\",'Base-datos'!$B$726=\"\",'Base-datos'!$B$727=\"Sí\"),IF(AND(Q65=\"La actividad sí contribuye sustancialmente a la sostenibilidad\",P65=\"La actividad sí contribuye sustancialmente a la sostenibilidad\"),SUM(B65:O65),0),\"Por definir\"))))))))","v":"Por definir"}]
[{"$f":"Ganadería!$C30","v":"Seleccione"},{"$f":"IF(Ganadería!$E30=Seguros_fianzas!B$12,Ganadería!$B30,\"\")","v":""},{"$f":"IF(Ganadería!$E30=Seguros_fianzas!C$12,Ganadería!$B30,\"\")","v":""},{"$f":"IF(Ganadería!$E30=Seguros_fianzas!D$12,Ganadería!$B30,\"\")","v":""},{"$f":"IF(Ganadería!$E30=Seguros_fianzas!E$12,Ganadería!$B30,\"\")","v":""},{"$f":"IF(Ganadería!$E30=Seguros_fianzas!F$12,Ganadería!$B30,\"\")","v":""},{"$f":"IF(Ganadería!$E30=Seguros_fianzas!G$12,Ganadería!$B30,\"\")","v":""},{"$f":"IF(Ganadería!$E30=Seguros_fianzas!H$12,Ganadería!$B30,\"\")","v":""},{"$f":"IF(Ganadería!$E30=Seguros_fianzas!I$12,Ganadería!$B30,\"\")","v":""},{"$f":"IF(Ganadería!$E30=Seguros_fianzas!J$12,Ganadería!$B30,\"\")","v":""},{"$f":"IF(Ganadería!$E30=Seguros_fianzas!K$12,Ganadería!$B30,\"\")","v":""},{"$f":"IF(Ganadería!$E30=Seguros_fianzas!L$12,Ganadería!$B30,\"\")","v":""},{"$f":"IF(Ganadería!$E30=Seguros_fianzas!M$12,Ganadería!$B30,\"\")","v":""},{"$f":"IF(Ganadería!$E30=Seguros_fianzas!N$12,Ganadería!$B30,\"\")","v":""},{"$f":"IF(Ganadería!$E30=Seguros_fianzas!O$12,Ganadería!$B30,\"\")","v":""},{"$f":"_xlfn.XLOOKUP(A66,'Base-datos'!$B$510:$B$516,'Base-datos'!$F$510:$F$516)","v":{"$error":"#N/A"}},{"$f":"_xlfn.XLOOKUP(A66,'Base-datos'!$B$510:$B$516,'Base-datos'!$C$510:$C$516)","v":{"$error":"#N/A"}},{"$f":"_xlfn.XLOOKUP(A66,'Base-datos'!$B$510:$B$516,'Base-datos'!$D$510:$D$516)","v":{"$error":"#N/A"}},null,null,{"$f":"IF(OR(S$56=\"La actividad no cumple con el total de los criterios de No Daño Significativo\",T$56=\"El sector no cumple con las salvaguardas mínimas\"),\"\",IF(AND('Base-datos'!$B$725=\"Sí\",'Base-datos'!$B$726=\"\",'Base-datos'!$B$727=\"\"),IF(Q66=\"La actividad sí contribuye sustancialmente a la sostenibilidad\",SUM(B66:O66),0),IF(AND('Base-datos'!$B$725=\"Sí\",'Base-datos'!$B$726=\"Sí\",'Base-datos'!$B$727=\"\"),IF(AND(Q66=\"La actividad sí contribuye sustancialmente a la sostenibilidad\",R66=\"La actividad sí contribuye sustancialmente a la sostenibilidad\"),SUM(B66:O66),0),IF(AND('Base-datos'!$B$725=\"Sí\",'Base-datos'!$B$726=\"Sí\",'Base-datos'!$B$727=\"Sí\"),IF(AND(Q66=\"La actividad sí contribuye sustancialmente a la sostenibilidad\",R66=\"La actividad sí contribuye sustancialmente a la sostenibilidad\",P66=\"La actividad sí contribuye sustancialmente a la sostenibilidad\"),SUM(B66:O66),0),IF(AND('Base-datos'!$B$725=\"\",'Base-datos'!$B$726=\"Sí\",'Base-datos'!$B$727=\"\"),IF(R66=\"La actividad sí contribuye sustancialmente a la sostenibilidad\",SUM(B66:O66),0),IF(AND('Base-datos'!$B$725=\"\",'Base-datos'!$B$726=\"\",'Base-datos'!$B$727=\"Sí\"),IF(P66=\"La actividad sí contribuye sustancialmente a la sostenibilidad\",SUM(B66:O66),0),IF(AND('Base-datos'!$B$725=\"\",'Base-datos'!$B$726=\"Sí\",'Base-datos'!$B$727=\"Sí\"),IF(AND(R66=\"La actividad sí contribuye sustancialmente a la sostenibilidad\",P66=\"La actividad sí contribuye sustancialmente a la sostenibilidad\"),SUM(B66:O66),0),IF(AND('Base-datos'!$B$725=\"Sí\",'Base-datos'!$B$726=\"\",'Base-datos'!$B$727=\"Sí\"),IF(AND(Q66=\"La actividad sí contribuye sustancialmente a la sostenibilidad\",P66=\"La actividad sí contribuye sustancialmente a la sostenibilidad\"),SUM(B66:O66),0),\"Por definir\"))))))))","v":"Por definir"}]
[{"$f":"Ganadería!$C32","v":"Seleccione"},{"$f":"IF(Ganadería!$E32=Seguros_fianzas!B$12,Ganadería!$B32,\"\")","v":""},{"$f":"IF(Ganadería!$E32=Seguros_fianzas!C$12,Ganadería!$B32,\"\")","v":""},{"$f":"IF(Ganadería!$E32=Seguros_fianzas!D$12,Ganadería!$B32,\"\")","v":""},{"$f":"IF(Ganadería!$E32=Seguros_fianzas!E$12,Ganadería!$B32,\"\")","v":""},{"$f":"IF(Ganadería!$E32=Seguros_fianzas!F$12,Ganadería!$B32,\"\")","v":""},{"$f":"IF(Ganadería!$E32=Seguros_fianzas!G$12,Ganadería!$B32,\"\")","v":""},{"$f":"IF(Ganadería!$E32=Seguros_fianzas!H$12,Ganadería!$B32,\"\")","v":""},{"$f":"IF(Ganadería!$E32=Seguros_fianzas!I$12,Ganadería!$B32,\"\")","v":""},{"$f":"IF(Ganadería!$E32=Seguros_fianzas!J$12,Ganadería!$B32,\"\")","v":""},{"$f":"IF(Ganadería!$E32=Seguros_fianzas!K$12,Ganadería!$B32,\"\")","v":""},{"$f":"IF(Ganadería!$E32=Seguros_fianzas!L$12,Ganadería!$B32,\"\")","v":""},{"$f":"IF(Ganadería!$E32=Seguros_fianzas!M$12,Ganadería!$B32,\"\")","v":""},{"$f":"IF(Ganadería!$E32=Seguros_fianzas!N$12,Ganadería!$B32,\"\")","v":""},{"$f":"IF(Ganadería!$E32=Seguros_fianzas!O$12,Ganadería!$B32,\"\")","v":""},{"$f":"_xlfn.XLOOKUP(A67,'Base-datos'!$B$510:$B$516,'Base-datos'!$F$510:$F$516)","v":{"$error":"#N/A"}},{"$f":"_xlfn.XLOOKUP(A67,'Base-datos'!$B$510:$B$516,'Base-datos'!$C$510:$C$516)","v":{"$error":"#N/A"}},{"$f":"_xlfn.XLOOKUP(A67,'Base-datos'!$B$510:$B$516,'Base-datos'!$D$510:$D$516)","v":{"$error":"#N/A"}},null,null,{"$f":"IF(OR(S$56=\"La actividad no cumple con el total de los criterios de No Daño Significativo\",T$56=\"El sector no cumple con las salvaguardas mínimas\"),\"\",IF(AND('Base-datos'!$B$725=\"Sí\",'Base-datos'!$B$726=\"\",'Base-datos'!$B$727=\"\"),IF(Q67=\"La actividad sí contribuye sustancialmente a la sostenibilidad\",SUM(B67:O67),0),IF(AND('Base-datos'!$B$725=\"Sí\",'Base-datos'!$B$726=\"Sí\",'Base-datos'!$B$727=\"\"),IF(AND(Q67=\"La actividad sí contribuye sustancialmente a la sostenibilidad\",R67=\"La actividad sí contribuye sustancialmente a la sostenibilidad\"),SUM(B67:O67),0),IF(AND('Base-datos'!$B$725=\"Sí\",'Base-datos'!$B$726=\"Sí\",'Base-datos'!$B$727=\"Sí\"),IF(AND(Q67=\"La actividad sí contribuye sustancialmente a la sostenibilidad\",R67=\"La actividad sí contribuye sustancialmente a la sostenibilidad\",P67=\"La actividad sí contribuye sustancialmente a la sostenibilidad\"),SUM(B67:O67),0),IF(AND('Base-datos'!$B$725=\"\",'Base-datos'!$B$726=\"Sí\",'Base-datos'!$B$727=\"\"),IF(R67=\"La actividad sí contribuye sustancialmente a la sostenibilidad\",SUM(B67:O67),0),IF(AND('Base-datos'!$B$725=\"\",'Base-datos'!$B$726=\"\",'Base-datos'!$B$727=\"Sí\"),IF(P67=\"La actividad sí contribuye sustancialmente a la sostenibilidad\",SUM(B67:O67),0),IF(AND('Base-datos'!$B$725=\"\",'Base-datos'!$B$726=\"Sí\",'Base-datos'!$B$727=\"Sí\"),IF(AND(R67=\"La actividad sí contribuye sustancialmente a la sostenibilidad\",P67=\"La actividad sí contribuye sustancialmente a la sostenibilidad\"),SUM(B67:O67),0),IF(AND('Base-datos'!$B$725=\"Sí\",'Base-datos'!$B$726=\"\",'Base-datos'!$B$727=\"Sí\"),IF(AND(Q67=\"La actividad sí contribuye sustancialmente a la sostenibilidad\",P67=\"La actividad sí contribuye sustancialmente a la sostenibilidad\"),SUM(B67:O67),0),\"Por definir\"))))))))","v":"Por definir"}]
[{"$f":"Ganadería!$C34","v":"Seleccione"},{"$f":"IF(Ganadería!$E34=Seguros_fianzas!B$12,Ganadería!$B34,\"\")","v":""},{"$f":"IF(Ganadería!$E34=Seguros_fianzas!C$12,Ganadería!$B34,\"\")","v":""},{"$f":"IF(Ganadería!$E34=Seguros_fianzas!D$12,Ganadería!$B34,\"\")","v":""},{"$f":"IF(Ganadería!$E34=Seguros_fianzas!E$12,Ganadería!$B34,\"\")","v":""},{"$f":"IF(Ganadería!$E34=Seguros_fianzas!F$12,Ganadería!$B34,\"\")","v":""},{"$f":"IF(Ganadería!$E34=Seguros_fianzas!G$12,Ganadería!$B34,\"\")","v":""},{"$f":"IF(Ganadería!$E34=Seguros_fianzas!H$12,Ganadería!$B34,\"\")","v":""},{"$f":"IF(Ganadería!$E34=Seguros_fianzas!I$12,Ganadería!$B34,\"\")","v":""},{"$f":"IF(Ganadería!$E34=Seguros_fianzas!J$12,Ganadería!$B34,\"\")","v":""},{"$f":"IF(Ganadería!$E34=Seguros_fianzas!K$12,Ganadería!$B34,\"\")","v":""},{"$f":"IF(Ganadería!$E34=Seguros_fianzas!L$12,Ganadería!$B34,\"\")","v":""},{"$f":"IF(Ganadería!$E34=Seguros_fianzas!M$12,Ganadería!$B34,\"\")","v":""},{"$f":"IF(Ganadería!$E34=Seguros_fianzas!N$12,Ganadería!$B34,\"\")","v":""},{"$f":"IF(Ganadería!$E34=Seguros_fianzas!O$12,Ganadería!$B34,\"\")","v":""},{"$f":"_xlfn.XLOOKUP(A68,'Base-datos'!$B$510:$B$516,'Base-datos'!$F$510:$F$516)","v":{"$error":"#N/A"}},{"$f":"_xlfn.XLOOKUP(A68,'Base-datos'!$B$510:$B$516,'Base-datos'!$C$510:$C$516)","v":{"$error":"#N/A"}},{"$f":"_xlfn.XLOOKUP(A68,'Base-datos'!$B$510:$B$516,'Base-datos'!$D$510:$D$516)","v":{"$error":"#N/A"}},null,null,{"$f":"IF(OR(S$56=\"La actividad no cumple con el total de los criterios de No Daño Significativo\",T$56=\"El sector no cumple con las salvaguardas mínimas\"),\"\",IF(AND('Base-datos'!$B$725=\"Sí\",'Base-datos'!$B$726=\"\",'Base-datos'!$B$727=\"\"),IF(Q68=\"La actividad sí contribuye sustancialmente a la sostenibilidad\",SUM(B68:O68),0),IF(AND('Base-datos'!$B$725=\"Sí\",'Base-datos'!$B$726=\"Sí\",'Base-datos'!$B$727=\"\"),IF(AND(Q68=\"La actividad sí contribuye sustancialmente a la sostenibilidad\",R68=\"La actividad sí contribuye sustancialmente a la sostenibilidad\"),SUM(B68:O68),0),IF(AND('Base-datos'!$B$725=\"Sí\",'Base-datos'!$B$726=\"Sí\",'Base-datos'!$B$727=\"Sí\"),IF(AND(Q68=\"La actividad sí contribuye sustancialmente a la sostenibilidad\",R68=\"La actividad sí contribuye sustancialmente a la sostenibilidad\",P68=\"La actividad sí contribuye sustancialmente a la sostenibilidad\"),SUM(B68:O68),0),IF(AND('Base-datos'!$B$725=\"\",'Base-datos'!$B$726=\"Sí\",'Base-datos'!$B$727=\"\"),IF(R68=\"La actividad sí contribuye sustancialmente a la sostenibilidad\",SUM(B68:O68),0),IF(AND('Base-datos'!$B$725=\"\",'Base-datos'!$B$726=\"\",'Base-datos'!$B$727=\"Sí\"),IF(P68=\"La actividad sí contribuye sustancialmente a la sostenibilidad\",SUM(B68:O68),0),IF(AND('Base-datos'!$B$725=\"\",'Base-datos'!$B$726=\"Sí\",'Base-datos'!$B$727=\"Sí\"),IF(AND(R68=\"La actividad sí contribuye sustancialmente a la sostenibilidad\",P68=\"La actividad sí contribuye sustancialmente a la sostenibilidad\"),SUM(B68:O68),0),IF(AND('Base-datos'!$B$725=\"Sí\",'Base-datos'!$B$726=\"\",'Base-datos'!$B$727=\"Sí\"),IF(AND(Q68=\"La actividad sí contribuye sustancialmente a la sostenibilidad\",P68=\"La actividad sí contribuye sustancialmente a la sostenibilidad\"),SUM(B68:O68),0),\"Por definir\"))))))))","v":"Por definir"}]
[{"$f":"Ganadería!$C36","v":"Seleccione"},{"$f":"IF(Ganadería!$E36=Seguros_fianzas!B$12,Ganadería!$B36,\"\")","v":""},{"$f":"IF(Ganadería!$E36=Seguros_fianzas!C$12,Ganadería!$B36,\"\")","v":""},{"$f":"IF(Ganadería!$E36=Seguros_fianzas!D$12,Ganadería!$B36,\"\")","v":""},{"$f":"IF(Ganadería!$E36=Seguros_fianzas!E$12,Ganadería!$B36,\"\")","v":""},{"$f":"IF(Ganadería!$E36=Seguros_fianzas!F$12,Ganadería!$B36,\"\")","v":""},{"$f":"IF(Ganadería!$E36=Seguros_fianzas!G$12,Ganadería!$B36,\"\")","v":""},{"$f":"IF(Ganadería!$E36=Seguros_fianzas!H$12,Ganadería!$B36,\"\")","v":""},{"$f":"IF(Ganadería!$E36=Seguros_fianzas!I$12,Ganadería!$B36,\"\")","v":""},{"$f":"IF(Ganadería!$E36=Seguros_fianzas!J$12,Ganadería!$B36,\"\")","v":""},{"$f":"IF(Ganadería!$E36=Seguros_fianzas!K$12,Ganadería!$B36,\"\")","v":""},{"$f":"IF(Ganadería!$E36=Seguros_fianzas!L$12,Ganadería!$B36,\"\")","v":""},{"$f":"IF(Ganadería!$E36=Seguros_fianzas!M$12,Ganadería!$B36,\"\")","v":""},{"$f":"IF(Ganadería!$E36=Seguros_fianzas!N$12,Ganadería!$B36,\"\")","v":""},{"$f":"IF(Ganadería!$E36=Seguros_fianzas!O$12,Ganadería!$B36,\"\")","v":""},{"$f":"_xlfn.XLOOKUP(A69,'Base-datos'!$B$510:$B$516,'Base-datos'!$F$510:$F$516)","v":{"$error":"#N/A"}},{"$f":"_xlfn.XLOOKUP(A69,'Base-datos'!$B$510:$B$516,'Base-datos'!$C$510:$C$516)","v":{"$error":"#N/A"}},{"$f":"_xlfn.XLOOKUP(A69,'Base-datos'!$B$510:$B$516,'Base-datos'!$D$510:$D$516)","v":{"$error":"#N/A"}},null,null,{"$f":"IF(OR(S$56=\"La actividad no cumple con el total de los criterios de No Daño Significativo\",T$56=\"El sector no cumple con las salvaguardas mínimas\"),\"\",IF(AND('Base-datos'!$B$725=\"Sí\",'Base-datos'!$B$726=\"\",'Base-datos'!$B$727=\"\"),IF(Q69=\"La actividad sí contribuye sustancialmente a la sostenibilidad\",SUM(B69:O69),0),IF(AND('Base-datos'!$B$725=\"Sí\",'Base-datos'!$B$726=\"Sí\",'Base-datos'!$B$727=\"\"),IF(AND(Q69=\"La actividad sí contribuye sustancialmente a la sostenibilidad\",R69=\"La actividad sí contribuye sustancialmente a la sostenibilidad\"),SUM(B69:O69),0),IF(AND('Base-datos'!$B$725=\"Sí\",'Base-datos'!$B$726=\"Sí\",'Base-datos'!$B$727=\"Sí\"),IF(AND(Q69=\"La actividad sí contribuye sustancialmente a la sostenibilidad\",R69=\"La actividad sí contribuye sustancialmente a la sostenibilidad\",P69=\"La actividad sí contribuye sustancialmente a la sostenibilidad\"),SUM(B69:O69),0),IF(AND('Base-datos'!$B$725=\"\",'Base-datos'!$B$726=\"Sí\",'Base-datos'!$B$727=\"\"),IF(R69=\"La actividad sí contribuye sustancialmente a la sostenibilidad\",SUM(B69:O69),0),IF(AND('Base-datos'!$B$725=\"\",'Base-datos'!$B$726=\"\",'Base-datos'!$B$727=\"Sí\"),IF(P69=\"La actividad sí contribuye sustancialmente a la sostenibilidad\",SUM(B69:O69),0),IF(AND('Base-datos'!$B$725=\"\",'Base-datos'!$B$726=\"Sí\",'Base-datos'!$B$727=\"Sí\"),IF(AND(R69=\"La actividad sí contribuye sustancialmente a la sostenibilidad\",P69=\"La actividad sí contribuye sustancialmente a la sostenibilidad\"),SUM(B69:O69),0),IF(AND('Base-datos'!$B$725=\"Sí\",'Base-datos'!$B$726=\"\",'Base-datos'!$B$727=\"Sí\"),IF(AND(Q69=\"La actividad sí contribuye sustancialmente a la sostenibilidad\",P69=\"La actividad sí contribuye sustancialmente a la sostenibilidad\"),SUM(B69:O69),0),\"Por definir\"))))))))","v":"Por definir"}]
[{"$f":"Ganadería!$C38","v":"Seleccione"},{"$f":"IF(Ganadería!$E38=Seguros_fianzas!B$12,Ganadería!$B38,\"\")","v":""},{"$f":"IF(Ganadería!$E38=Seguros_fianzas!C$12,Ganadería!$B38,\"\")","v":""},{"$f":"IF(Ganadería!$E38=Seguros_fianzas!D$12,Ganadería!$B38,\"\")","v":""},{"$f":"IF(Ganadería!$E38=Seguros_fianzas!E$12,Ganadería!$B38,\"\")","v":""},{"$f":"IF(Ganadería!$E38=Seguros_fianzas!F$12,Ganadería!$B38,\"\")","v":""},{"$f":"IF(Ganadería!$E38=Seguros_fianzas!G$12,Ganadería!$B38,\"\")","v":""},{"$f":"IF(Ganadería!$E38=Seguros_fianzas!H$12,Ganadería!$B38,\"\")","v":""},{"$f":"IF(Ganadería!$E38=Seguros_fianzas!I$12,Ganadería!$B38,\"\")","v":""},{"$f":"IF(Ganadería!$E38=Seguros_fianzas!J$12,Ganadería!$B38,\"\")","v":""},{"$f":"IF(Ganadería!$E38=Seguros_fianzas!K$12,Ganadería!$B38,\"\")","v":""},{"$f":"IF(Ganadería!$E38=Seguros_fianzas!L$12,Ganadería!$B38,\"\")","v":""},{"$f":"IF(Ganadería!$E38=Seguros_fianzas!M$12,Ganadería!$B38,\"\")","v":""},{"$f":"IF(Ganadería!$E38=Seguros_fianzas!N$12,Ganadería!$B38,\"\")","v":""},{"$f":"IF(Ganadería!$E38=Seguros_fianzas!O$12,Ganadería!$B38,\"\")","v":""},{"$f":"_xlfn.XLOOKUP(A70,'Base-datos'!$B$510:$B$516,'Base-datos'!$F$510:$F$516)","v":{"$error":"#N/A"}},{"$f":"_xlfn.XLOOKUP(A70,'Base-datos'!$B$510:$B$516,'Base-datos'!$C$510:$C$516)","v":{"$error":"#N/A"}},{"$f":"_xlfn.XLOOKUP(A70,'Base-datos'!$B$510:$B$516,'Base-datos'!$D$510:$D$516)","v":{"$error":"#N/A"}},null,null,{"$f":"IF(OR(S$56=\"La actividad no cumple con el total de los criterios de No Daño Significativo\",T$56=\"El sector no cumple con las salvaguardas mínimas\"),\"\",IF(AND('Base-datos'!$B$725=\"Sí\",'Base-datos'!$B$726=\"\",'Base-datos'!$B$727=\"\"),IF(Q70=\"La actividad sí contribuye sustancialmente a la sostenibilidad\",SUM(B70:O70),0),IF(AND('Base-datos'!$B$725=\"Sí\",'Base-datos'!$B$726=\"Sí\",'Base-datos'!$B$727=\"\"),IF(AND(Q70=\"La actividad sí contribuye sustancialmente a la sostenibilidad\",R70=\"La actividad sí contribuye sustancialmente a la sostenibilidad\"),SUM(B70:O70),0),IF(AND('Base-datos'!$B$725=\"Sí\",'Base-datos'!$B$726=\"Sí\",'Base-datos'!$B$727=\"Sí\"),IF(AND(Q70=\"La actividad sí contribuye sustancialmente a la sostenibilidad\",R70=\"La actividad sí contribuye sustancialmente a la sostenibilidad\",P70=\"La actividad sí contribuye sustancialmente a la sostenibilidad\"),SUM(B70:O70),0),IF(AND('Base-datos'!$B$725=\"\",'Base-datos'!$B$726=\"Sí\",'Base-datos'!$B$727=\"\"),IF(R70=\"La actividad sí contribuye sustancialmente a la sostenibilidad\",SUM(B70:O70),0),IF(AND('Base-datos'!$B$725=\"\",'Base-datos'!$B$726=\"\",'Base-datos'!$B$727=\"Sí\"),IF(P70=\"La actividad sí contribuye sustancialmente a la sostenibilidad\",SUM(B70:O70),0),IF(AND('Base-datos'!$B$725=\"\",'Base-datos'!$B$726=\"Sí\",'Base-datos'!$B$727=\"Sí\"),IF(AND(R70=\"La actividad sí contribuye sustancialmente a la sostenibilidad\",P70=\"La actividad sí contribuye sustancialmente a la sostenibilidad\"),SUM(B70:O70),0),IF(AND('Base-datos'!$B$725=\"Sí\",'Base-datos'!$B$726=\"\",'Base-datos'!$B$727=\"Sí\"),IF(AND(Q70=\"La actividad sí contribuye sustancialmente a la sostenibilidad\",P70=\"La actividad sí contribuye sustancialmente a la sostenibilidad\"),SUM(B70:O70),0),\"Por definir\"))))))))","v":"Por definir"}]
[{"$f":"Ganadería!$C40","v":"Seleccione"},{"$f":"IF(Ganadería!$E40=Seguros_fianzas!B$12,Ganadería!$B40,\"\")","v":""},{"$f":"IF(Ganadería!$E40=Seguros_fianzas!C$12,Ganadería!$B40,\"\")","v":""},{"$f":"IF(Ganadería!$E40=Seguros_fianzas!D$12,Ganadería!$B40,\"\")","v":""},{"$f":"IF(Ganadería!$E40=Seguros_fianzas!E$12,Ganadería!$B40,\"\")","v":""},{"$f":"IF(Ganadería!$E40=Seguros_fianzas!F$12,Ganadería!$B40,\"\")","v":""},{"$f":"IF(Ganadería!$E40=Seguros_fianzas!G$12,Ganadería!$B40,\"\")","v":""},{"$f":"IF(Ganadería!$E40=Seguros_fianzas!H$12,Ganadería!$B40,\"\")","v":""},{"$f":"IF(Ganadería!$E40=Seguros_fianzas!I$12,Ganadería!$B40,\"\")","v":""},{"$f":"IF(Ganadería!$E40=Seguros_fianzas!J$12,Ganadería!$B40,\"\")","v":""},{"$f":"IF(Ganadería!$E40=Seguros_fianzas!K$12,Ganadería!$B40,\"\")","v":""},{"$f":"IF(Ganadería!$E40=Seguros_fianzas!L$12,Ganadería!$B40,\"\")","v":""},{"$f":"IF(Ganadería!$E40=Seguros_fianzas!M$12,Ganadería!$B40,\"\")","v":""},{"$f":"IF(Ganadería!$E40=Seguros_fianzas!N$12,Ganadería!$B40,\"\")","v":""},{"$f":"IF(Ganadería!$E40=Seguros_fianzas!O$12,Ganadería!$B40,\"\")","v":""},{"$f":"_xlfn.XLOOKUP(A71,'Base-datos'!$B$510:$B$516,'Base-datos'!$F$510:$F$516)","v":{"$error":"#N/A"}},{"$f":"_xlfn.XLOOKUP(A71,'Base-datos'!$B$510:$B$516,'Base-datos'!$C$510:$C$516)","v":{"$error":"#N/A"}},{"$f":"_xlfn.XLOOKUP(A71,'Base-datos'!$B$510:$B$516,'Base-datos'!$D$510:$D$516)","v":{"$error":"#N/A"}},null,null,{"$f":"IF(OR(S$56=\"La actividad no cumple con el total de los criterios de No Daño Significativo\",T$56=\"El sector no cumple con las salvaguardas mínimas\"),\"\",IF(AND('Base-datos'!$B$725=\"Sí\",'Base-datos'!$B$726=\"\",'Base-datos'!$B$727=\"\"),IF(Q71=\"La actividad sí contribuye sustancialmente a la sostenibilidad\",SUM(B71:O71),0),IF(AND('Base-datos'!$B$725=\"Sí\",'Base-datos'!$B$726=\"Sí\",'Base-datos'!$B$727=\"\"),IF(AND(Q71=\"La actividad sí contribuye sustancialmente a la sostenibilidad\",R71=\"La actividad sí contribuye sustancialmente a la sostenibilidad\"),SUM(B71:O71),0),IF(AND('Base-datos'!$B$725=\"Sí\",'Base-datos'!$B$726=\"Sí\",'Base-datos'!$B$727=\"Sí\"),IF(AND(Q71=\"La actividad sí contribuye sustancialmente a la sostenibilidad\",R71=\"La actividad sí contribuye sustancialmente a la sostenibilidad\",P71=\"La actividad sí contribuye sustancialmente a la sostenibilidad\"),SUM(B71:O71),0),IF(AND('Base-datos'!$B$725=\"\",'Base-datos'!$B$726=\"Sí\",'Base-datos'!$B$727=\"\"),IF(R71=\"La actividad sí contribuye sustancialmente a la sostenibilidad\",SUM(B71:O71),0),IF(AND('Base-datos'!$B$725=\"\",'Base-datos'!$B$726=\"\",'Base-datos'!$B$727=\"Sí\"),IF(P71=\"La actividad sí contribuye sustancialmente a la sostenibilidad\",SUM(B71:O71),0),IF(AND('Base-datos'!$B$725=\"\",'Base-datos'!$B$726=\"Sí\",'Base-datos'!$B$727=\"Sí\"),IF(AND(R71=\"La actividad sí contribuye sustancialmente a la sostenibilidad\",P71=\"La actividad sí contribuye sustancialmente a la sostenibilidad\"),SUM(B71:O71),0),IF(AND('Base-datos'!$B$725=\"Sí\",'Base-datos'!$B$726=\"\",'Base-datos'!$B$727=\"Sí\"),IF(AND(Q71=\"La actividad sí contribuye sustancialmente a la sostenibilidad\",P71=\"La actividad sí contribuye sustancialmente a la sostenibilidad\"),SUM(B71:O71),0),\"Por definir\"))))))))","v":"Por definir"}]
[{"$f":"Ganadería!$C42","v":"Seleccione"},{"$f":"IF(Ganadería!$E42=Seguros_fianzas!B$12,Ganadería!$B42,\"\")","v":""},{"$f":"IF(Ganadería!$E42=Seguros_fianzas!C$12,Ganadería!$B42,\"\")","v":""},{"$f":"IF(Ganadería!$E42=Seguros_fianzas!D$12,Ganadería!$B42,\"\")","v":""},{"$f":"IF(Ganadería!$E42=Seguros_fianzas!E$12,Ganadería!$B42,\"\")","v":""},{"$f":"IF(Ganadería!$E42=Seguros_fianzas!F$12,Ganadería!$B42,\"\")","v":""},{"$f":"IF(Ganadería!$E42=Seguros_fianzas!G$12,Ganadería!$B42,\"\")","v":""},{"$f":"IF(Ganadería!$E42=Seguros_fianzas!H$12,Ganadería!$B42,\"\")","v":""},{"$f":"IF(Ganadería!$E42=Seguros_fianzas!I$12,Ganadería!$B42,\"\")","v":""},{"$f":"IF(Ganadería!$E42=Seguros_fianzas!J$12,Ganadería!$B42,\"\")","v":""},{"$f":"IF(Ganadería!$E42=Seguros_fianzas!K$12,Ganadería!$B42,\"\")","v":""},{"$f":"IF(Ganadería!$E42=Seguros_fianzas!L$12,Ganadería!$B42,\"\")","v":""},{"$f":"IF(Ganadería!$E42=Seguros_fianzas!M$12,Ganadería!$B42,\"\")","v":""},{"$f":"IF(Ganadería!$E42=Seguros_fianzas!N$12,Ganadería!$B42,\"\")","v":""},{"$f":"IF(Ganadería!$E42=Seguros_fianzas!O$12,Ganadería!$B42,\"\")","v":""},{"$f":"_xlfn.XLOOKUP(A72,'Base-datos'!$B$510:$B$516,'Base-datos'!$F$510:$F$516)","v":{"$error":"#N/A"}},{"$f":"_xlfn.XLOOKUP(A72,'Base-datos'!$B$510:$B$516,'Base-datos'!$C$510:$C$516)","v":{"$error":"#N/A"}},{"$f":"_xlfn.XLOOKUP(A72,'Base-datos'!$B$510:$B$516,'Base-datos'!$D$510:$D$516)","v":{"$error":"#N/A"}},null,null,{"$f":"IF(OR(S$56=\"La actividad no cumple con el total de los criterios de No Daño Significativo\",T$56=\"El sector no cumple con las salvaguardas mínimas\"),\"\",IF(AND('Base-datos'!$B$725=\"Sí\",'Base-datos'!$B$726=\"\",'Base-datos'!$B$727=\"\"),IF(Q72=\"La actividad sí contribuye sustancialmente a la sostenibilidad\",SUM(B72:O72),0),IF(AND('Base-datos'!$B$725=\"Sí\",'Base-datos'!$B$726=\"Sí\",'Base-datos'!$B$727=\"\"),IF(AND(Q72=\"La actividad sí contribuye sustancialmente a la sostenibilidad\",R72=\"La actividad sí contribuye sustancialmente a la sostenibilidad\"),SUM(B72:O72),0),IF(AND('Base-datos'!$B$725=\"Sí\",'Base-datos'!$B$726=\"Sí\",'Base-datos'!$B$727=\"Sí\"),IF(AND(Q72=\"La actividad sí contribuye sustancialmente a la sostenibilidad\",R72=\"La actividad sí contribuye sustancialmente a la sostenibilidad\",P72=\"La actividad sí contribuye sustancialmente a la sostenibilidad\"),SUM(B72:O72),0),IF(AND('Base-datos'!$B$725=\"\",'Base-datos'!$B$726=\"Sí\",'Base-datos'!$B$727=\"\"),IF(R72=\"La actividad sí contribuye sustancialmente a la sostenibilidad\",SUM(B72:O72),0),IF(AND('Base-datos'!$B$725=\"\",'Base-datos'!$B$726=\"\",'Base-datos'!$B$727=\"Sí\"),IF(P72=\"La actividad sí contribuye sustancialmente a la sostenibilidad\",SUM(B72:O72),0),IF(AND('Base-datos'!$B$725=\"\",'Base-datos'!$B$726=\"Sí\",'Base-datos'!$B$727=\"Sí\"),IF(AND(R72=\"La actividad sí contribuye sustancialmente a la sostenibilidad\",P72=\"La actividad sí contribuye sustancialmente a la sostenibilidad\"),SUM(B72:O72),0),IF(AND('Base-datos'!$B$725=\"Sí\",'Base-datos'!$B$726=\"\",'Base-datos'!$B$727=\"Sí\"),IF(AND(Q72=\"La actividad sí contribuye sustancialmente a la sostenibilidad\",P72=\"La actividad sí contribuye sustancialmente a la sostenibilidad\"),SUM(B72:O72),0),\"Por definir\"))))))))","v":"Por definir"}]
[{"$f":"Ganadería!$C44","v":"Seleccione"},{"$f":"IF(Ganadería!$E44=Seguros_fianzas!B$12,Ganadería!$B44,\"\")","v":""},{"$f":"IF(Ganadería!$E44=Seguros_fianzas!C$12,Ganadería!$B44,\"\")","v":""},{"$f":"IF(Ganadería!$E44=Seguros_fianzas!D$12,Ganadería!$B44,\"\")","v":""},{"$f":"IF(Ganadería!$E44=Seguros_fianzas!E$12,Ganadería!$B44,\"\")","v":""},{"$f":"IF(Ganadería!$E44=Seguros_fianzas!F$12,Ganadería!$B44,\"\")","v":""},{"$f":"IF(Ganadería!$E44=Seguros_fianzas!G$12,Ganadería!$B44,\"\")","v":""},{"$f":"IF(Ganadería!$E44=Seguros_fianzas!H$12,Ganadería!$B44,\"\")","v":""},{"$f":"IF(Ganadería!$E44=Seguros_fianzas!I$12,Ganadería!$B44,\"\")","v":""},{"$f":"IF(Ganadería!$E44=Seguros_fianzas!J$12,Ganadería!$B44,\"\")","v":""},{"$f":"IF(Ganadería!$E44=Seguros_fianzas!K$12,Ganadería!$B44,\"\")","v":""},{"$f":"IF(Ganadería!$E44=Seguros_fianzas!L$12,Ganadería!$B44,\"\")","v":""},{"$f":"IF(Ganadería!$E44=Seguros_fianzas!M$12,Ganadería!$B44,\"\")","v":""},{"$f":"IF(Ganadería!$E44=Seguros_fianzas!N$12,Ganadería!$B44,\"\")","v":""},{"$f":"IF(Ganadería!$E44=Seguros_fianzas!O$12,Ganadería!$B44,\"\")","v":""},{"$f":"_xlfn.XLOOKUP(A73,'Base-datos'!$B$510:$B$516,'Base-datos'!$F$510:$F$516)","v":{"$error":"#N/A"}},{"$f":"_xlfn.XLOOKUP(A73,'Base-datos'!$B$510:$B$516,'Base-datos'!$C$510:$C$516)","v":{"$error":"#N/A"}},{"$f":"_xlfn.XLOOKUP(A73,'Base-datos'!$B$510:$B$516,'Base-datos'!$D$510:$D$516)","v":{"$error":"#N/A"}},null,null,{"$f":"IF(OR(S$56=\"La actividad no cumple con el total de los criterios de No Daño Significativo\",T$56=\"El sector no cumple con las salvaguardas mínimas\"),\"\",IF(AND('Base-datos'!$B$725=\"Sí\",'Base-datos'!$B$726=\"\",'Base-datos'!$B$727=\"\"),IF(Q73=\"La actividad sí contribuye sustancialmente a la sostenibilidad\",SUM(B73:O73),0),IF(AND('Base-datos'!$B$725=\"Sí\",'Base-datos'!$B$726=\"Sí\",'Base-datos'!$B$727=\"\"),IF(AND(Q73=\"La actividad sí contribuye sustancialmente a la sostenibilidad\",R73=\"La actividad sí contribuye sustancialmente a la sostenibilidad\"),SUM(B73:O73),0),IF(AND('Base-datos'!$B$725=\"Sí\",'Base-datos'!$B$726=\"Sí\",'Base-datos'!$B$727=\"Sí\"),IF(AND(Q73=\"La actividad sí contribuye sustancialmente a la sostenibilidad\",R73=\"La actividad sí contribuye sustancialmente a la sostenibilidad\",P73=\"La actividad sí contribuye sustancialmente a la sostenibilidad\"),SUM(B73:O73),0),IF(AND('Base-datos'!$B$725=\"\",'Base-datos'!$B$726=\"Sí\",'Base-datos'!$B$727=\"\"),IF(R73=\"La actividad sí contribuye sustancialmente a la sostenibilidad\",SUM(B73:O73),0),IF(AND('Base-datos'!$B$725=\"\",'Base-datos'!$B$726=\"\",'Base-datos'!$B$727=\"Sí\"),IF(P73=\"La actividad sí contribuye sustancialmente a la sostenibilidad\",SUM(B73:O73),0),IF(AND('Base-datos'!$B$725=\"\",'Base-datos'!$B$726=\"Sí\",'Base-datos'!$B$727=\"Sí\"),IF(AND(R73=\"La actividad sí contribuye sustancialmente a la sostenibilidad\",P73=\"La actividad sí contribuye sustancialmente a la sostenibilidad\"),SUM(B73:O73),0),IF(AND('Base-datos'!$B$725=\"Sí\",'Base-datos'!$B$726=\"\",'Base-datos'!$B$727=\"Sí\"),IF(AND(Q73=\"La actividad sí contribuye sustancialmente a la sostenibilidad\",P73=\"La actividad sí contribuye sustancialmente a la sostenibilidad\"),SUM(B73:O73),0),\"Por definir\"))))))))","v":"Por definir"}]
[{"$f":"Ganadería!$C46","v":"Seleccione"},{"$f":"IF(Ganadería!$E46=Seguros_fianzas!B$12,Ganadería!$B46,\"\")","v":""},{"$f":"IF(Ganadería!$E46=Seguros_fianzas!C$12,Ganadería!$B46,\"\")","v":""},{"$f":"IF(Ganadería!$E46=Seguros_fianzas!D$12,Ganadería!$B46,\"\")","v":""},{"$f":"IF(Ganadería!$E46=Seguros_fianzas!E$12,Ganadería!$B46,\"\")","v":""},{"$f":"IF(Ganadería!$E46=Seguros_fianzas!F$12,Ganadería!$B46,\"\")","v":""},{"$f":"IF(Ganadería!$E46=Seguros_fianzas!G$12,Ganadería!$B46,\"\")","v":""},{"$f":"IF(Ganadería!$E46=Seguros_fianzas!H$12,Ganadería!$B46,\"\")","v":""},{"$f":"IF(Ganadería!$E46=Seguros_fianzas!I$12,Ganadería!$B46,\"\")","v":""},{"$f":"IF(Ganadería!$E46=Seguros_fianzas!J$12,Ganadería!$B46,\"\")","v":""},{"$f":"IF(Ganadería!$E46=Seguros_fianzas!K$12,Ganadería!$B46,\"\")","v":""},{"$f":"IF(Ganadería!$E46=Seguros_fianzas!L$12,Ganadería!$B46,\"\")","v":""},{"$f":"IF(Ganadería!$E46=Seguros_fianzas!M$12,Ganadería!$B46,\"\")","v":""},{"$f":"IF(Ganadería!$E46=Seguros_fianzas!N$12,Ganadería!$B46,\"\")","v":""},{"$f":"IF(Ganadería!$E46=Seguros_fianzas!O$12,Ganadería!$B46,\"\")","v":""},{"$f":"_xlfn.XLOOKUP(A74,'Base-datos'!$B$510:$B$516,'Base-datos'!$F$510:$F$516)","v":{"$error":"#N/A"}},{"$f":"_xlfn.XLOOKUP(A74,'Base-datos'!$B$510:$B$516,'Base-datos'!$C$510:$C$516)","v":{"$error":"#N/A"}},{"$f":"_xlfn.XLOOKUP(A74,'Base-datos'!$B$510:$B$516,'Base-datos'!$D$510:$D$516)","v":{"$error":"#N/A"}},null,null,{"$f":"IF(OR(S$56=\"La actividad no cumple con el total de los criterios de No Daño Significativo\",T$56=\"El sector no cumple con las salvaguardas mínimas\"),\"\",IF(AND('Base-datos'!$B$725=\"Sí\",'Base-datos'!$B$726=\"\",'Base-datos'!$B$727=\"\"),IF(Q74=\"La actividad sí contribuye sustancialmente a la sostenibilidad\",SUM(B74:O74),0),IF(AND('Base-datos'!$B$725=\"Sí\",'Base-datos'!$B$726=\"Sí\",'Base-datos'!$B$727=\"\"),IF(AND(Q74=\"La actividad sí contribuye sustancialmente a la sostenibilidad\",R74=\"La actividad sí contribuye sustancialmente a la sostenibilidad\"),SUM(B74:O74),0),IF(AND('Base-datos'!$B$725=\"Sí\",'Base-datos'!$B$726=\"Sí\",'Base-datos'!$B$727=\"Sí\"),IF(AND(Q74=\"La actividad sí contribuye sustancialmente a la sostenibilidad\",R74=\"La actividad sí contribuye sustancialmente a la sostenibilidad\",P74=\"La actividad sí contribuye sustancialmente a la sostenibilidad\"),SUM(B74:O74),0),IF(AND('Base-datos'!$B$725=\"\",'Base-datos'!$B$726=\"Sí\",'Base-datos'!$B$727=\"\"),IF(R74=\"La actividad sí contribuye sustancialmente a la sostenibilidad\",SUM(B74:O74),0),IF(AND('Base-datos'!$B$725=\"\",'Base-datos'!$B$726=\"\",'Base-datos'!$B$727=\"Sí\"),IF(P74=\"La actividad sí contribuye sustancialmente a la sostenibilidad\",SUM(B74:O74),0),IF(AND('Base-datos'!$B$725=\"\",'Base-datos'!$B$726=\"Sí\",'Base-datos'!$B$727=\"Sí\"),IF(AND(R74=\"La actividad sí contribuye sustancialmente a la sostenibilidad\",P74=\"La actividad sí contribuye sustancialmente a la sostenibilidad\"),SUM(B74:O74),0),IF(AND('Base-datos'!$B$725=\"Sí\",'Base-datos'!$B$726=\"\",'Base-datos'!$B$727=\"Sí\"),IF(AND(Q74=\"La actividad sí contribuye sustancialmente a la sostenibilidad\",P74=\"La actividad sí contribuye sustancialmente a la sostenibilidad\"),SUM(B74:O74),0),\"Por definir\"))))))))","v":"Por definir"}]
[{"$f":"Ganadería!$C48","v":"Seleccione"},{"$f":"IF(Ganadería!$E48=Seguros_fianzas!B$12,Ganadería!$B48,\"\")","v":""},{"$f":"IF(Ganadería!$E48=Seguros_fianzas!C$12,Ganadería!$B48,\"\")","v":""},{"$f":"IF(Ganadería!$E48=Seguros_fianzas!D$12,Ganadería!$B48,\"\")","v":""},{"$f":"IF(Ganadería!$E48=Seguros_fianzas!E$12,Ganadería!$B48,\"\")","v":""},{"$f":"IF(Ganadería!$E48=Seguros_fianzas!F$12,Ganadería!$B48,\"\")","v":""},{"$f":"IF(Ganadería!$E48=Seguros_fianzas!G$12,Ganadería!$B48,\"\")","v":""},{"$f":"IF(Ganadería!$E48=Seguros_fianzas!H$12,Ganadería!$B48,\"\")","v":""},{"$f":"IF(Ganadería!$E48=Seguros_fianzas!I$12,Ganadería!$B48,\"\")","v":""},{"$f":"IF(Ganadería!$E48=Seguros_fianzas!J$12,Ganadería!$B48,\"\")","v":""},{"$f":"IF(Ganadería!$E48=Seguros_fianzas!K$12,Ganadería!$B48,\"\")","v":""},{"$f":"IF(Ganadería!$E48=Seguros_fianzas!L$12,Ganadería!$B48,\"\")","v":""},{"$f":"IF(Ganadería!$E48=Seguros_fianzas!M$12,Ganadería!$B48,\"\")","v":""},{"$f":"IF(Ganadería!$E48=Seguros_fianzas!N$12,Ganadería!$B48,\"\")","v":""},{"$f":"IF(Ganadería!$E48=Seguros_fianzas!O$12,Ganadería!$B48,\"\")","v":""},{"$f":"_xlfn.XLOOKUP(A75,'Base-datos'!$B$510:$B$516,'Base-datos'!$F$510:$F$516)","v":{"$error":"#N/A"}},{"$f":"_xlfn.XLOOKUP(A75,'Base-datos'!$B$510:$B$516,'Base-datos'!$C$510:$C$516)","v":{"$error":"#N/A"}},{"$f":"_xlfn.XLOOKUP(A75,'Base-datos'!$B$510:$B$516,'Base-datos'!$D$510:$D$516)","v":{"$error":"#N/A"}},null,null,{"$f":"IF(OR(S$56=\"La actividad no cumple con el total de los criterios de No Daño Significativo\",T$56=\"El sector no cumple con las salvaguardas mínimas\"),\"\",IF(AND('Base-datos'!$B$725=\"Sí\",'Base-datos'!$B$726=\"\",'Base-datos'!$B$727=\"\"),IF(Q75=\"La actividad sí contribuye sustancialmente a la sostenibilidad\",SUM(B75:O75),0),IF(AND('Base-datos'!$B$725=\"Sí\",'Base-datos'!$B$726=\"Sí\",'Base-datos'!$B$727=\"\"),IF(AND(Q75=\"La actividad sí contribuye sustancialmente a la sostenibilidad\",R75=\"La actividad sí contribuye sustancialmente a la sostenibilidad\"),SUM(B75:O75),0),IF(AND('Base-datos'!$B$725=\"Sí\",'Base-datos'!$B$726=\"Sí\",'Base-datos'!$B$727=\"Sí\"),IF(AND(Q75=\"La actividad sí contribuye sustancialmente a la sostenibilidad\",R75=\"La actividad sí contribuye sustancialmente a la sostenibilidad\",P75=\"La actividad sí contribuye sustancialmente a la sostenibilidad\"),SUM(B75:O75),0),IF(AND('Base-datos'!$B$725=\"\",'Base-datos'!$B$726=\"Sí\",'Base-datos'!$B$727=\"\"),IF(R75=\"La actividad sí contribuye sustancialmente a la sostenibilidad\",SUM(B75:O75),0),IF(AND('Base-datos'!$B$725=\"\",'Base-datos'!$B$726=\"\",'Base-datos'!$B$727=\"Sí\"),IF(P75=\"La actividad sí contribuye sustancialmente a la sostenibilidad\",SUM(B75:O75),0),IF(AND('Base-datos'!$B$725=\"\",'Base-datos'!$B$726=\"Sí\",'Base-datos'!$B$727=\"Sí\"),IF(AND(R75=\"La actividad sí contribuye sustancialmente a la sostenibilidad\",P75=\"La actividad sí contribuye sustancialmente a la sostenibilidad\"),SUM(B75:O75),0),IF(AND('Base-datos'!$B$725=\"Sí\",'Base-datos'!$B$726=\"\",'Base-datos'!$B$727=\"Sí\"),IF(AND(Q75=\"La actividad sí contribuye sustancialmente a la sostenibilidad\",P75=\"La actividad sí contribuye sustancialmente a la sostenibilidad\"),SUM(B75:O75),0),\"Por definir\"))))))))","v":"Por definir"}]
["Energía",null,null,null,null,null,null,null,null,null,null,null,null,null,null,null,null,null,null,null,{"$f":"SUM(IF(FREQUENCY(MATCH(A77:A96, A77:A96, 0), MATCH(A77:A96, A77:A96, 0)) > 0, IF(NOT(ISERROR(U77:U96)), U77:U96, 0)))","v":0}]
[{"$f":"Energía!$C10","v":"Seleccione"},{"$f":"IF(Energía!$E10=Seguros_fianzas!B$12,Energía!$B10,\"\")","v":""},{"$f":"IF(Energía!$E10=Seguros_fianzas!C$12,Energía!$B10,\"\")","v":""},{"$f":"IF(Energía!$E10=Seguros_fianzas!D$12,Energía!$B10,\"\")","v":""},{"$f":"IF(Energía!$E10=Seguros_fianzas!E$12,Energía!$B10,\"\")","v":""},{"$f":"IF(Energía!$E10=Seguros_fianzas!F$12,Energía!$B10,\"\")","v":""},{"$f":"IF(Energía!$E10=Seguros_fianzas!G$12,Energía!$B10,\"\")","v":""},{"$f":"IF(Energía!$E10=Seguros_fianzas!H$12,Energía!$B10,\"\")","v":""},{"$f":"IF(Energía!$E10=Seguros_fianzas!I$12,Energía!$B10,\"\")","v":""},{"$f":"IF(Energía!$E10=Seguros_fianzas!J$12,Energía!$B10,\"\")","v":""},{"$f":"IF(Energía!$E10=Seguros_fianzas!K$12,Energía!$B10,\"\")","v":""},{"$f":"IF(Energía!$E10=Seguros_fianzas!L$12,Energía!$B10,\"\")","v":""},{"$f":"IF(Energía!$E10=Seguros_fianzas!M$12,Energía!$B10,\"\")","v":""},{"$f":"IF(Energía!$E10=Seguros_fianzas!N$12,Energía!$B10,\"\")","v":""},{"$f":"IF(Energía!$E10=Seguros_fianzas!O$12,Energía!$B10,\"\")","v":""},{"$f":"_xlfn.XLOOKUP(A77,'Base-datos'!$B$521:$B$531,'Base-datos'!$F$521:$F$531)","v":{"$error":"#N/A"}},{"$f":"_xlfn.XLOOKUP(A77,'Base-datos'!$B$521:$B$531,'Base-datos'!$C$521:$C$531)","v":{"$error":"#N/A"}},{"$f":"_xlfn.XLOOKUP(A77,'Base-datos'!$B$521:$B$531,'Base-datos'!$D$521:$D$531)","v":{"$error":"#N/A"}},{"$f":"IF(COUNTIF('Energía-NDS'!G9:G76,\"No\")>0,\"La actividad no cumple con el total de los criterios de NDS\",\"La actividad cumple con los criterios de No Daño Significativo\")","v":"La actividad cumple con los criterios de No Daño Significativo"},{"$f":"IF(OR('Salvaguardas mínimas'!$G$10=\"Seleccione\",'Salvaguardas mínimas'!$G$13=\"Seleccione\",'Salvaguardas mínimas'!$G$16=\"Seleccione\",'Salvaguardas mínimas'!$G$7=\"Seleccione\"),\"No se han respondido todas las preguntas\",IF(OR('Salvaguardas mínimas'!$G$10=\"No\",'Salvaguardas mínimas'!$G$13=\"No\",'Salvaguardas mínimas'!$G$16=\"No\",'Salvaguardas mínimas'!$G$7=\"No\"),\"El sector no cumple con las salvaguardas mínimas\",\"La actividad sí cumple con las salvaguardas mínimas\"))","v":"No se han respondido todas las preguntas"},{"$f":"IF(OR(S$77=\"La actividad no cumple con el total de los criterios de No Daño Significativo\",T$77=\"El sector no cumple con las salvaguardas mínimas\"),\"\",IF(AND('Base-datos'!$B$730=\"Sí\",'Base-datos'!$B$731=\"\",'Base-datos'!$B$732=\"\"),IF(Q77=\"La actividad sí contribuye sustancialmente a la sostenibilidad\",SUM(B77:O77),0),IF(AND('Base-datos'!$B$730=\"Sí\",'Base-datos'!$B$731=\"Sí\",'Base-datos'!$B$732=\"\"),IF(AND(Q77=\"La actividad sí contribuye sustancialmente a la sostenibilidad\",R77=\"La actividad sí contribuye sustancialmente a la sostenibilidad\"),SUM(B77:O77),0),IF(AND('Base-datos'!$B$730=\"Sí\",'Base-datos'!$B$731=\"Sí\",'Base-datos'!$B$732=\"Sí\"),IF(AND(Q77=\"La actividad sí contribuye sustancialmente a la sostenibilidad\",R77=\"La actividad sí contribuye sustancialmente a la sostenibilidad\",P77=\"La actividad sí contribuye sustancialmente a la sostenibilidad\"),SUM(B77:O77),0),IF(AND('Base-datos'!$B$730=\"\",'Base-datos'!$B$731=\"Sí\",'Base-datos'!$B$732=\"\"),IF(R77=\"La actividad sí contribuye sustancialmente a la sostenibilidad\",SUM(B77:O77),0),IF(AND('Base-datos'!$B$730=\"\",'Base-datos'!$B$731=\"\",'Base-datos'!$B$732=\"Sí\"),IF(P77=\"La actividad sí contribuye sustancialmente a la sostenibilidad\",SUM(B77:O77),0),IF(AND('Base-datos'!$B$730=\"\",'Base-datos'!$B$731=\"Sí\",'Base-datos'!$B$732=\"Sí\"),IF(AND(R77=\"La actividad sí contribuye sustancialmente a la sostenibilidad\",P77=\"La actividad sí contribuye sustancialmente a la sostenibilidad\"),SUM(B77:O77),0),IF(AND('Base-datos'!$B$730=\"Sí\",'Base-datos'!$B$731=\"\",'Base-datos'!$B$732=\"Sí\"),IF(AND(Q77=\"La actividad sí contribuye sustancialmente a la sostenibilidad\",P77=\"La actividad sí contribuye sustancialmente a la sostenibilidad\"),SUM(B77:O77),0),\"Por definir\"))))))))","v":"Por definir"}]
[{"$f":"Energía!$C12","v":"Seleccione"},{"$f":"IF(Energía!$E12=Seguros_fianzas!B$12,Energía!$B12,\"\")","v":""},{"$f":"IF(Energía!$E12=Seguros_fianzas!C$12,Energía!$B12,\"\")","v":""},{"$f":"IF(Energía!$E12=Seguros_fianzas!D$12,Energía!$B12,\"\")","v":""},{"$f":"IF(Energía!$E12=Seguros_fianzas!E$12,Energía!$B12,\"\")","v":""},{"$f":"IF(Energía!$E12=Seguros_fianzas!F$12,Energía!$B12,\"\")","v":""},{"$f":"IF(Energía!$E12=Seguros_fianzas!G$12,Energía!$B12,\"\")","v":""},{"$f":"IF(Energía!$E12=Seguros_fianzas!H$12,Energía!$B12,\"\")","v":""},{"$f":"IF(Energía!$E12=Seguros_fianzas!I$12,Energía!$B12,\"\")","v":""},{"$f":"IF(Energía!$E12=Seguros_fianzas!J$12,Energía!$B12,\"\")","v":""},{"$f":"IF(Energía!$E12=Seguros_fianzas!K$12,Energía!$B12,\"\")","v":""},{"$f":"IF(Energía!$E12=Seguros_fianzas!L$12,Energía!$B12,\"\")","v":""},{"$f":"IF(Energía!$E12=Seguros_fianzas!M$12,Energía!$B12,\"\")","v":""},{"$f":"IF(Energía!$E12=Seguros_fianzas!N$12,Energía!$B12,\"\")","v":""},{"$f":"IF(Energía!$E12=Seguros_fianzas!O$12,Energía!$B12,\"\")","v":""},{"$f":"_xlfn.XLOOKUP(A78,'Base-datos'!$B$521:$B$531,'Base-datos'!$F$521:$F$531)","v":{"$error":"#N/A"}},{"$f":"_xlfn.XLOOKUP(A78,'Base-datos'!$B$521:$B$531,'Base-datos'!$C$521:$C$531)","v":{"$error":"#N/A"}},{"$f":"_xlfn.XLOOKUP(A78,'Base-datos'!$B$521:$B$531,'Base-datos'!$D$521:$D$531)","v":{"$error":"#N/A"}},null,null,{"$f":"IF(OR(S$77=\"La actividad no cumple con el total de los criterios de No Daño Significativo\",T$77=\"El sector no cumple con las salvaguardas mínimas\"),\"\",IF(AND('Base-datos'!$B$730=\"Sí\",'Base-datos'!$B$731=\"\",'Base-datos'!$B$732=\"\"),IF(Q78=\"La actividad sí contribuye sustancialmente a la sostenibilidad\",SUM(B78:O78),0),IF(AND('Base-datos'!$B$730=\"Sí\",'Base-datos'!$B$731=\"Sí\",'Base-datos'!$B$732=\"\"),IF(AND(Q78=\"La actividad sí contribuye sustancialmente a la sostenibilidad\",R78=\"La actividad sí contribuye sustancialmente a la sostenibilidad\"),SUM(B78:O78),0),IF(AND('Base-datos'!$B$730=\"Sí\",'Base-datos'!$B$731=\"Sí\",'Base-datos'!$B$732=\"Sí\"),IF(AND(Q78=\"La actividad sí contribuye sustancialmente a la sostenibilidad\",R78=\"La actividad sí contribuye sustancialmente a la sostenibilidad\",P78=\"La actividad sí contribuye sustancialmente a la sostenibilidad\"),SUM(B78:O78),0),IF(AND('Base-datos'!$B$730=\"\",'Base-datos'!$B$731=\"Sí\",'Base-datos'!$B$732=\"\"),IF(R78=\"La actividad sí contribuye sustancialmente a la sostenibilidad\",SUM(B78:O78),0),IF(AND('Base-datos'!$B$730=\"\",'Base-datos'!$B$731=\"\",'Base-datos'!$B$732=\"Sí\"),IF(P78=\"La actividad sí contribuye sustancialmente a la sostenibilidad\",SUM(B78:O78),0),IF(AND('Base-datos'!$B$730=\"\",'Base-datos'!$B$731=\"Sí\",'Base-datos'!$B$732=\"Sí\"),IF(AND(R78=\"La actividad sí contribuye sustancialmente a la sostenibilidad\",P78=\"La actividad sí contribuye sustancialmente a la sostenibilidad\"),SUM(B78:O78),0),IF(AND('Base-datos'!$B$730=\"Sí\",'Base-datos'!$B$731=\"\",'Base-datos'!$B$732=\"Sí\"),IF(AND(Q78=\"La actividad sí contribuye sustancialmente a la sostenibilidad\",P78=\"La actividad sí contribuye sustancialmente a la sostenibilidad\"),SUM(B78:O78),0),\"Por definir\"))))))))","v":"Por definir"}]
[{"$f":"Energía!$C14","v":"Seleccione"},{"$f":"IF(Energía!$E14=Seguros_fianzas!B$12,Energía!$B14,\"\")","v":""},{"$f":"IF(Energía!$E14=Seguros_fianzas!C$12,Energía!$B14,\"\")","v":""},{"$f":"IF(Energía!$E14=Seguros_fianzas!D$12,Energía!$B14,\"\")","v":""},{"$f":"IF(Energía!$E14=Seguros_fianzas!E$12,Energía!$B14,\"\")","v":""},{"$f":"IF(Energía!$E14=Seguros_fianzas!F$12,Energía!$B14,\"\")","v":""},{"$f":"IF(Energía!$E14=Seguros_fianzas!G$12,Energía!$B14,\"\")","v":""},{"$f":"IF(Energía!$E14=Seguros_fianzas!H$12,Energía!$B14,\"\")","v":""},{"$f":"IF(Energía!$E14=Seguros_fianzas!I$12,Energía!$B14,\"\")","v":""},{"$f":"IF(Energía!$E14=Seguros_fianzas!J$12,Energía!$B14,\"\")","v":""},{"$f":"IF(Energía!$E14=Seguros_fianzas!K$12,Energía!$B14,\"\")","v":""},{"$f":"IF(Energía!$E14=Seguros_fianzas!L$12,Energía!$B14,\"\")","v":""},{"$f":"IF(Energía!$E14=Seguros_fianzas!M$12,Energía!$B14,\"\")","v":""},{"$f":"IF(Energía!$E14=Seguros_fianzas!N$12,Energía!$B14,\"\")","v":""},{"$f":"IF(Energía!$E14=Seguros_fianzas!O$12,Energía!$B14,\"\")","v":""},{"$f":"_xlfn.XLOOKUP(A79,'Base-datos'!$B$521:$B$531,'Base-datos'!$F$521:$F$531)","v":{"$error":"#N/A"}},{"$f":"_xlfn.XLOOKUP(A79,'Base-datos'!$B$521:$B$531,'Base-datos'!$C$521:$C$531)","v":{"$error":"#N/A"}},{"$f":"_xlfn.XLOOKUP(A79,'Base-datos'!$B$521:$B$531,'Base-datos'!$D$521:$D$531)","v":{"$error":"#N/A"}},null,null,{"$f":"IF(OR(S$77=\"La actividad no cumple con el total de los criterios de No Daño Significativo\",T$77=\"El sector no cumple con las salvaguardas mínimas\"),\"\",IF(AND('Base-datos'!$B$730=\"Sí\",'Base-datos'!$B$731=\"\",'Base-datos'!$B$732=\"\"),IF(Q79=\"La actividad sí contribuye sustancialmente a la sostenibilidad\",SUM(B79:O79),0),IF(AND('Base-datos'!$B$730=\"Sí\",'Base-datos'!$B$731=\"Sí\",'Base-datos'!$B$732=\"\"),IF(AND(Q79=\"La actividad sí contribuye sustancialmente a la sostenibilidad\",R79=\"La actividad sí contribuye sustancialmente a la sostenibilidad\"),SUM(B79:O79),0),IF(AND('Base-datos'!$B$730=\"Sí\",'Base-datos'!$B$731=\"Sí\",'Base-datos'!$B$732=\"Sí\"),IF(AND(Q79=\"La actividad sí contribuye sustancialmente a la sostenibilidad\",R79=\"La actividad sí contribuye sustancialmente a la sostenibilidad\",P79=\"La actividad sí contribuye sustancialmente a la sostenibilidad\"),SUM(B79:O79),0),IF(AND('Base-datos'!$B$730=\"\",'Base-datos'!$B$731=\"Sí\",'Base-datos'!$B$732=\"\"),IF(R79=\"La actividad sí contribuye sustancialmente a la sostenibilidad\",SUM(B79:O79),0),IF(AND('Base-datos'!$B$730=\"\",'Base-datos'!$B$731=\"\",'Base-datos'!$B$732=\"Sí\"),IF(P79=\"La actividad sí contribuye sustancialmente a la sostenibilidad\",SUM(B79:O79),0),IF(AND('Base-datos'!$B$730=\"\",'Base-datos'!$B$731=\"Sí\",'Base-datos'!$B$732=\"Sí\"),IF(AND(R79=\"La actividad sí contribuye sustancialmente a la sostenibilidad\",P79=\"La actividad sí contribuye sustancialmente a la sostenibilidad\"),SUM(B79:O79),0),IF(AND('Base-datos'!$B$730=\"Sí\",'Base-datos'!$B$731=\"\",'Base-datos'!$B$732=\"Sí\"),IF(AND(Q79=\"La actividad sí contribuye sustancialmente a la sostenibilidad\",P79=\"La actividad sí contribuye sustancialmente a la sostenibilidad\"),SUM(B79:O79),0),\"Por definir\"))))))))","v":"Por definir"}]
[{"$f":"Energía!$C16","v":"Seleccione"},{"$f":"IF(Energía!$E16=Seguros_fianzas!B$12,Energía!$B16,\"\")","v":""},{"$f":"IF(Energía!$E16=Seguros_fianzas!C$12,Energía!$B16,\"\")","v":""},{"$f":"IF(Energía!$E16=Seguros_fianzas!D$12,Energía!$B16,\"\")","v":""},{"$f":"IF(Energía!$E16=Seguros_fianzas!E$12,Energía!$B16,\"\")","v":""},{"$f":"IF(Energía!$E16=Seguros_fianzas!F$12,Energía!$B16,\"\")","v":""},{"$f":"IF(Energía!$E16=Seguros_fianzas!G$12,Energía!$B16,\"\")","v":""},{"$f":"IF(Energía!$E16=Seguros_fianzas!H$12,Energía!$B16,\"\")","v":""},{"$f":"IF(Energía!$E16=Seguros_fianzas!I$12,Energía!$B16,\"\")","v":""},{"$f":"IF(Energía!$E16=Seguros_fianzas!J$12,Energía!$B16,\"\")","v":""},{"$f":"IF(Energía!$E16=Seguros_fianzas!K$12,Energía!$B16,\"\")","v":""},{"$f":"IF(Energía!$E16=Seguros_fianzas!L$12,Energía!$B16,\"\")","v":""},{"$f":"IF(Energía!$E16=Seguros_fianzas!M$12,Energía!$B16,\"\")","v":""},{"$f":"IF(Energía!$E16=Seguros_fianzas!N$12,Energía!$B16,\"\")","v":""},{"$f":"IF(Energía!$E16=Seguros_fianzas!O$12,Energía!$B16,\"\")","v":""},{"$f":"_xlfn.XLOOKUP(A80,'Base-datos'!$B$521:$B$531,'Base-datos'!$F$521:$F$531)","v":{"$error":"#N/A"}},{"$f":"_xlfn.XLOOKUP(A80,'Base-datos'!$B$521:$B$531,'Base-datos'!$C$521:$C$531)","v":{"$error":"#N/A"}},{"$f":"_xlfn.XLOOKUP(A80,'Base-datos'!$B$521:$B$531,'Base-datos'!$D$521:$D$531)","v":{"$error":"#N/A"}},null,null,{"$f":"IF(OR(S$77=\"La actividad no cumple con el total de los criterios de No Daño Significativo\",T$77=\"El sector no cumple con las salvaguardas mínimas\"),\"\",IF(AND('Base-datos'!$B$730=\"Sí\",'Base-datos'!$B$731=\"\",'Base-datos'!$B$732=\"\"),IF(Q80=\"La actividad sí contribuye sustancialmente a la sostenibilidad\",SUM(B80:O80),0),IF(AND('Base-datos'!$B$730=\"Sí\",'Base-datos'!$B$731=\"Sí\",'Base-datos'!$B$732=\"\"),IF(AND(Q80=\"La actividad sí contribuye sustancialmente a la sostenibilidad\",R80=\"La actividad sí contribuye sustancialmente a la sostenibilidad\"),SUM(B80:O80),0),IF(AND('Base-datos'!$B$730=\"Sí\",'Base-datos'!$B$731=\"Sí\",'Base-datos'!$B$732=\"Sí\"),IF(AND(Q80=\"La actividad sí contribuye sustancialmente a la sostenibilidad\",R80=\"La actividad sí contribuye sustancialmente a la sostenibilidad\",P80=\"La actividad sí contribuye sustancialmente a la sostenibilidad\"),SUM(B80:O80),0),IF(AND('Base-datos'!$B$730=\"\",'Base-datos'!$B$731=\"Sí\",'Base-datos'!$B$732=\"\"),IF(R80=\"La actividad sí contribuye sustancialmente a la sostenibilidad\",SUM(B80:O80),0),IF(AND('Base-datos'!$B$730=\"\",'Base-datos'!$B$731=\"\",'Base-datos'!$B$732=\"Sí\"),IF(P80=\"La actividad sí contribuye sustancialmente a la sostenibilidad\",SUM(B80:O80),0),IF(AND('Base-datos'!$B$730=\"\",'Base-datos'!$B$731=\"Sí\",'Base-datos'!$B$732=\"Sí\"),IF(AND(R80=\"La actividad sí contribuye sustancialmente a la sostenibilidad\",P80=\"La actividad sí contribuye sustancialmente a la sostenibilidad\"),SUM(B80:O80),0),IF(AND('Base-datos'!$B$730=\"Sí\",'Base-datos'!$B$731=\"\",'Base-datos'!$B$732=\"Sí\"),IF(AND(Q80=\"La actividad sí contribuye sustancialmente a la sostenibilidad\",P80=\"La actividad sí contribuye sustancialmente a la sostenibilidad\"),SUM(B80:O80),0),\"Por definir\"))))))))","v":"Por definir"}]
[{"$f":"Energía!$C18","v":"Seleccione"},{"$f":"IF(Energía!$E18=Seguros_fianzas!B$12,Energía!$B18,\"\")","v":""},{"$f":"IF(Energía!$E18=Seguros_fianzas!C$12,Energía!$B18,\"\")","v":""},{"$f":"IF(Energía!$E18=Seguros_fianzas!D$12,Energía!$B18,\"\")","v":""},{"$f":"IF(Energía!$E18=Seguros_fianzas!E$12,Energía!$B18,\"\")","v":""},{"$f":"IF(Energía!$E18=Seguros_fianzas!F$12,Energía!$B18,\"\")","v":""},{"$f":"IF(Energía!$E18=Seguros_fianzas!G$12,Energía!$B18,\"\")","v":""},{"$f":"IF(Energía!$E18=Seguros_fianzas!H$12,Energía!$B18,\"\")","v":""},{"$f":"IF(Energía!$E18=Seguros_fianzas!I$12,Energía!$B18,\"\")","v":""},{"$f":"IF(Energía!$E18=Seguros_fianzas!J$12,Energía!$B18,\"\")","v":""},{"$f":"IF(Energía!$E18=Seguros_fianzas!K$12,Energía!$B18,\"\")","v":""},{"$f":"IF(Energía!$E18=Seguros_fianzas!L$12,Energía!$B18,\"\")","v":""},{"$f":"IF(Energía!$E18=Seguros_fianzas!M$12,Energía!$B18,\"\")","v":""},{"$f":"IF(Energía!$E18=Seguros_fianzas!N$12,Energía!$B18,\"\")","v":""},{"$f":"IF(Energía!$E18=Seguros_fianzas!O$12,Energía!$B18,\"\")","v":""},{"$f":"_xlfn.XLOOKUP(A81,'Base-datos'!$B$521:$B$531,'Base-datos'!$F$521:$F$531)","v":{"$error":"#N/A"}},{"$f":"_xlfn.XLOOKUP(A81,'Base-datos'!$B$521:$B$531,'Base-datos'!$C$521:$C$531)","v":{"$error":"#N/A"}},{"$f":"_xlfn.XLOOKUP(A81,'Base-datos'!$B$521:$B$531,'Base-datos'!$D$521:$D$531)","v":{"$error":"#N/A"}},null,null,{"$f":"IF(OR(S$77=\"La actividad no cumple con el total de los criterios de No Daño Significativo\",T$77=\"El sector no cumple con las salvaguardas mínimas\"),\"\",IF(AND('Base-datos'!$B$730=\"Sí\",'Base-datos'!$B$731=\"\",'Base-datos'!$B$732=\"\"),IF(Q81=\"La actividad sí contribuye sustancialmente a la sostenibilidad\",SUM(B81:O81),0),IF(AND('Base-datos'!$B$730=\"Sí\",'Base-datos'!$B$731=\"Sí\",'Base-datos'!$B$732=\"\"),IF(AND(Q81=\"La actividad sí contribuye sustancialmente a la sostenibilidad\",R81=\"La actividad sí contribuye sustancialmente a la sostenibilidad\"),SUM(B81:O81),0),IF(AND('Base-datos'!$B$730=\"Sí\",'Base-datos'!$B$731=\"Sí\",'Base-datos'!$B$732=\"Sí\"),IF(AND(Q81=\"La actividad sí contribuye sustancialmente a la sostenibilidad\",R81=\"La actividad sí contribuye sustancialmente a la sostenibilidad\",P81=\"La actividad sí contribuye sustancialmente a la sostenibilidad\"),SUM(B81:O81),0),IF(AND('Base-datos'!$B$730=\"\",'Base-datos'!$B$731=\"Sí\",'Base-datos'!$B$732=\"\"),IF(R81=\"La actividad sí contribuye sustancialmente a la sostenibilidad\",SUM(B81:O81),0),IF(AND('Base-datos'!$B$730=\"\",'Base-datos'!$B$731=\"\",'Base-datos'!$B$732=\"Sí\"),IF(P81=\"La actividad sí contribuye sustancialmente a la sostenibilidad\",SUM(B81:O81),0),IF(AND('Base-datos'!$B$730=\"\",'Base-datos'!$B$731=\"Sí\",'Base-datos'!$B$732=\"Sí\"),IF(AND(R81=\"La actividad sí contribuye sustancialmente a la sostenibilidad\",P81=\"La actividad sí contribuye sustancialmente a la sostenibilidad\"),SUM(B81:O81),0),IF(AND('Base-datos'!$B$730=\"Sí\",'Base-datos'!$B$731=\"\",'Base-datos'!$B$732=\"Sí\"),IF(AND(Q81=\"La actividad sí contribuye sustancialmente a la sostenibilidad\",P81=\"La actividad sí contribuye sustancialmente a la sostenibilidad\"),SUM(B81:O81),0),\"Por definir\"))))))))","v":"Por definir"}]
[{"$f":"Energía!$C20","v":"Seleccione"},{"$f":"IF(Energía!$E20=Seguros_fianzas!B$12,Energía!$B20,\"\")","v":""},{"$f":"IF(Energía!$E20=Seguros_fianzas!C$12,Energía!$B20,\"\")","v":""},{"$f":"IF(Energía!$E20=Seguros_fianzas!D$12,Energía!$B20,\"\")","v":""},{"$f":"IF(Energía!$E20=Seguros_fianzas!E$12,Energía!$B20,\"\")","v":""},{"$f":"IF(Energía!$E20=Seguros_fianzas!F$12,Energía!$B20,\"\")","v":""},{"$f":"IF(Energía!$E20=Seguros_fianzas!G$12,Energía!$B20,\"\")","v":""},{"$f":"IF(Energía!$E20=Seguros_fianzas!H$12,Energía!$B20,\"\")","v":""},{"$f":"IF(Energía!$E20=Seguros_fianzas!I$12,Energía!$B20,\"\")","v":""},{"$f":"IF(Energía!$E20=Seguros_fianzas!J$12,Energía!$B20,\"\")","v":""},{"$f":"IF(Energía!$E20=Seguros_fianzas!K$12,Energía!$B20,\"\")","v":""},{"$f":"IF(Energía!$E20=Seguros_fianzas!L$12,Energía!$B20,\"\")","v":""},{"$f":"IF(Energía!$E20=Seguros_fianzas!M$12,Energía!$B20,\"\")","v":""},{"$f":"IF(Energía!$E20=Seguros_fianzas!N$12,Energía!$B20,\"\")","v":""},{"$f":"IF(Energía!$E20=Seguros_fianzas!O$12,Energía!$B20,\"\")","v":""},{"$f":"_xlfn.XLOOKUP(A82,'Base-datos'!$B$521:$B$531,'Base-datos'!$F$521:$F$531)","v":{"$error":"#N/A"}},{"$f":"_xlfn.XLOOKUP(A82,'Base-datos'!$B$521:$B$531,'Base-datos'!$C$521:$C$531)","v":{"$error":"#N/A"}},{"$f":"_xlfn.XLOOKUP(A82,'Base-datos'!$B$521:$B$531,'Base-datos'!$D$521:$D$531)","v":{"$error":"#N/A"}},null,null,{"$f":"IF(OR(S$77=\"La actividad no cumple con el total de los criterios de No Daño Significativo\",T$77=\"El sector no cumple con las salvaguardas mínimas\"),\"\",IF(AND('Base-datos'!$B$730=\"Sí\",'Base-datos'!$B$731=\"\",'Base-datos'!$B$732=\"\"),IF(Q82=\"La actividad sí contribuye sustancialmente a la sostenibilidad\",SUM(B82:O82),0),IF(AND('Base-datos'!$B$730=\"Sí\",'Base-datos'!$B$731=\"Sí\",'Base-datos'!$B$732=\"\"),IF(AND(Q82=\"La actividad sí contribuye sustancialmente a la sostenibilidad\",R82=\"La actividad sí contribuye sustancialmente a la sostenibilidad\"),SUM(B82:O82),0),IF(AND('Base-datos'!$B$730=\"Sí\",'Base-datos'!$B$731=\"Sí\",'Base-datos'!$B$732=\"Sí\"),IF(AND(Q82=\"La actividad sí contribuye sustancialmente a la sostenibilidad\",R82=\"La actividad sí contribuye sustancialmente a la sostenibilidad\",P82=\"La actividad sí contribuye sustancialmente a la sostenibilidad\"),SUM(B82:O82),0),IF(AND('Base-datos'!$B$730=\"\",'Base-datos'!$B$731=\"Sí\",'Base-datos'!$B$732=\"\"),IF(R82=\"La actividad sí contribuye sustancialmente a la sostenibilidad\",SUM(B82:O82),0),IF(AND('Base-datos'!$B$730=\"\",'Base-datos'!$B$731=\"\",'Base-datos'!$B$732=\"Sí\"),IF(P82=\"La actividad sí contribuye sustancialmente a la sostenibilidad\",SUM(B82:O82),0),IF(AND('Base-datos'!$B$730=\"\",'Base-datos'!$B$731=\"Sí\",'Base-datos'!$B$732=\"Sí\"),IF(AND(R82=\"La actividad sí contribuye sustancialmente a la sostenibilidad\",P82=\"La actividad sí contribuye sustancialmente a la sostenibilidad\"),SUM(B82:O82),0),IF(AND('Base-datos'!$B$730=\"Sí\",'Base-datos'!$B$731=\"\",'Base-datos'!$B$732=\"Sí\"),IF(AND(Q82=\"La actividad sí contribuye sustancialmente a la sostenibilidad\",P82=\"La actividad sí contribuye sustancialmente a la sostenibilidad\"),SUM(B82:O82),0),\"Por definir\"))))))))","v":"Por definir"}]
[{"$f":"Energía!$C22","v":"Seleccione"},{"$f":"IF(Energía!$E22=Seguros_fianzas!B$12,Energía!$B22,\"\")","v":""},{"$f":"IF(Energía!$E22=Seguros_fianzas!C$12,Energía!$B22,\"\")","v":""},{"$f":"IF(Energía!$E22=Seguros_fianzas!D$12,Energía!$B22,\"\")","v":""},{"$f":"IF(Energía!$E22=Seguros_fianzas!E$12,Energía!$B22,\"\")","v":""},{"$f":"IF(Energía!$E22=Seguros_fianzas!F$12,Energía!$B22,\"\")","v":""},{"$f":"IF(Energía!$E22=Seguros_fianzas!G$12,Energía!$B22,\"\")","v":""},{"$f":"IF(Energía!$E22=Seguros_fianzas!H$12,Energía!$B22,\"\")","v":""},{"$f":"IF(Energía!$E22=Seguros_fianzas!I$12,Energía!$B22,\"\")","v":""},{"$f":"IF(Energía!$E22=Seguros_fianzas!J$12,Energía!$B22,\"\")","v":""},{"$f":"IF(Energía!$E22=Seguros_fianzas!K$12,Energía!$B22,\"\")","v":""},{"$f":"IF(Energía!$E22=Seguros_fianzas!L$12,Energía!$B22,\"\")","v":""},{"$f":"IF(Energía!$E22=Seguros_fianzas!M$12,Energía!$B22,\"\")","v":""},{"$f":"IF(Energía!$E22=Seguros_fianzas!N$12,Energía!$B22,\"\")","v":""},{"$f":"IF(Energía!$E22=Seguros_fianzas!O$12,Energía!$B22,\"\")","v":""},{"$f":"_xlfn.XLOOKUP(A83,'Base-datos'!$B$521:$B$531,'Base-datos'!$F$521:$F$531)","v":{"$error":"#N/A"}},{"$f":"_xlfn.XLOOKUP(A83,'Base-datos'!$B$521:$B$531,'Base-datos'!$C$521:$C$531)","v":{"$error":"#N/A"}},{"$f":"_xlfn.XLOOKUP(A83,'Base-datos'!$B$521:$B$531,'Base-datos'!$D$521:$D$531)","v":{"$error":"#N/A"}},null,null,{"$f":"IF(OR(S$77=\"La actividad no cumple con el total de los criterios de No Daño Significativo\",T$77=\"El sector no cumple con las salvaguardas mínimas\"),\"\",IF(AND('Base-datos'!$B$730=\"Sí\",'Base-datos'!$B$731=\"\",'Base-datos'!$B$732=\"\"),IF(Q83=\"La actividad sí contribuye sustancialmente a la sostenibilidad\",SUM(B83:O83),0),IF(AND('Base-datos'!$B$730=\"Sí\",'Base-datos'!$B$731=\"Sí\",'Base-datos'!$B$732=\"\"),IF(AND(Q83=\"La actividad sí contribuye sustancialmente a la sostenibilidad\",R83=\"La actividad sí contribuye sustancialmente a la sostenibilidad\"),SUM(B83:O83),0),IF(AND('Base-datos'!$B$730=\"Sí\",'Base-datos'!$B$731=\"Sí\",'Base-datos'!$B$732=\"Sí\"),IF(AND(Q83=\"La actividad sí contribuye sustancialmente a la sostenibilidad\",R83=\"La actividad sí contribuye sustancialmente a la sostenibilidad\",P83=\"La actividad sí contribuye sustancialmente a la sostenibilidad\"),SUM(B83:O83),0),IF(AND('Base-datos'!$B$730=\"\",'Base-datos'!$B$731=\"Sí\",'Base-datos'!$B$732=\"\"),IF(R83=\"La actividad sí contribuye sustancialmente a la sostenibilidad\",SUM(B83:O83),0),IF(AND('Base-datos'!$B$730=\"\",'Base-datos'!$B$731=\"\",'Base-datos'!$B$732=\"Sí\"),IF(P83=\"La actividad sí contribuye sustancialmente a la sostenibilidad\",SUM(B83:O83),0),IF(AND('Base-datos'!$B$730=\"\",'Base-datos'!$B$731=\"Sí\",'Base-datos'!$B$732=\"Sí\"),IF(AND(R83=\"La actividad sí contribuye sustancialmente a la sostenibilidad\",P83=\"La actividad sí contribuye sustancialmente a la sostenibilidad\"),SUM(B83:O83),0),IF(AND('Base-datos'!$B$730=\"Sí\",'Base-datos'!$B$731=\"\",'Base-datos'!$B$732=\"Sí\"),IF(AND(Q83=\"La actividad sí contribuye sustancialmente a la sostenibilidad\",P83=\"La actividad sí contribuye sustancialmente a la sostenibilidad\"),SUM(B83:O83),0),\"Por definir\"))))))))","v":"Por definir"}]
[{"$f":"Energía!$C24","v":"Seleccione"},{"$f":"IF(Energía!$E24=Seguros_fianzas!B$12,Energía!$B24,\"\")","v":""},{"$f":"IF(Energía!$E24=Seguros_fianzas!C$12,Energía!$B24,\"\")","v":""},{"$f":"IF(Energía!$E24=Seguros_fianzas!D$12,Energía!$B24,\"\")","v":""},{"$f":"IF(Energía!$E24=Seguros_fianzas!E$12,Energía!$B24,\"\")","v":""},{"$f":"IF(Energía!$E24=Seguros_fianzas!F$12,Energía!$B24,\"\")","v":""},{"$f":"IF(Energía!$E24=Seguros_fianzas!G$12,Energía!$B24,\"\")","v":""},{"$f":"IF(Energía!$E24=Seguros_fianzas!H$12,Energía!$B24,\"\")","v":""},{"$f":"IF(Energía!$E24=Seguros_fianzas!I$12,Energía!$B24,\"\")","v":""},{"$f":"IF(Energía!$E24=Seguros_fianzas!J$12,Energía!$B24,\"\")","v":""},{"$f":"IF(Energía!$E24=Seguros_fianzas!K$12,Energía!$B24,\"\")","v":""},{"$f":"IF(Energía!$E24=Seguros_fianzas!L$12,Energía!$B24,\"\")","v":""},{"$f":"IF(Energía!$E24=Seguros_fianzas!M$12,Energía!$B24,\"\")","v":""},{"$f":"IF(Energía!$E24=Seguros_fianzas!N$12,Energía!$B24,\"\")","v":""},{"$f":"IF(Energía!$E24=Seguros_fianzas!O$12,Energía!$B24,\"\")","v":""},{"$f":"_xlfn.XLOOKUP(A84,'Base-datos'!$B$521:$B$531,'Base-datos'!$F$521:$F$531)","v":{"$error":"#N/A"}},{"$f":"_xlfn.XLOOKUP(A84,'Base-datos'!$B$521:$B$531,'Base-datos'!$C$521:$C$531)","v":{"$error":"#N/A"}},{"$f":"_xlfn.XLOOKUP(A84,'Base-datos'!$B$521:$B$531,'Base-datos'!$D$521:$D$531)","v":{"$error":"#N/A"}},null,null,{"$f":"IF(OR(S$77=\"La actividad no cumple con el total de los criterios de No Daño Significativo\",T$77=\"El sector no cumple con las salvaguardas mínimas\"),\"\",IF(AND('Base-datos'!$B$730=\"Sí\",'Base-datos'!$B$731=\"\",'Base-datos'!$B$732=\"\"),IF(Q84=\"La actividad sí contribuye sustancialmente a la sostenibilidad\",SUM(B84:O84),0),IF(AND('Base-datos'!$B$730=\"Sí\",'Base-datos'!$B$731=\"Sí\",'Base-datos'!$B$732=\"\"),IF(AND(Q84=\"La actividad sí contribuye sustancialmente a la sostenibilidad\",R84=\"La actividad sí contribuye sustancialmente a la sostenibilidad\"),SUM(B84:O84),0),IF(AND('Base-datos'!$B$730=\"Sí\",'Base-datos'!$B$731=\"Sí\",'Base-datos'!$B$732=\"Sí\"),IF(AND(Q84=\"La actividad sí contribuye sustancialmente a la sostenibilidad\",R84=\"La actividad sí contribuye sustancialmente a la sostenibilidad\",P84=\"La actividad sí contribuye sustancialmente a la sostenibilidad\"),SUM(B84:O84),0),IF(AND('Base-datos'!$B$730=\"\",'Base-datos'!$B$731=\"Sí\",'Base-datos'!$B$732=\"\"),IF(R84=\"La actividad sí contribuye sustancialmente a la sostenibilidad\",SUM(B84:O84),0),IF(AND('Base-datos'!$B$730=\"\",'Base-datos'!$B$731=\"\",'Base-datos'!$B$732=\"Sí\"),IF(P84=\"La actividad sí contribuye sustancialmente a la sostenibilidad\",SUM(B84:O84),0),IF(AND('Base-datos'!$B$730=\"\",'Base-datos'!$B$731=\"Sí\",'Base-datos'!$B$732=\"Sí\"),IF(AND(R84=\"La actividad sí contribuye sustancialmente a la sostenibilidad\",P84=\"La actividad sí contribuye sustancialmente a la sostenibilidad\"),SUM(B84:O84),0),IF(AND('Base-datos'!$B$730=\"Sí\",'Base-datos'!$B$731=\"\",'Base-datos'!$B$732=\"Sí\"),IF(AND(Q84=\"La actividad sí contribuye sustancialmente a la sostenibilidad\",P84=\"La actividad sí contribuye sustancialmente a la sostenibilidad\"),SUM(B84:O84),0),\"Por definir\"))))))))","v":"Por definir"}]
[{"$f":"Energía!$C26","v":"Seleccione"},{"$f":"IF(Energía!$E26=Seguros_fianzas!B$12,Energía!$B26,\"\")","v":""},{"$f":"IF(Energía!$E26=Seguros_fianzas!C$12,Energía!$B26,\"\")","v":""},{"$f":"IF(Energía!$E26=Seguros_fianzas!D$12,Energía!$B26,\"\")","v":""},{"$f":"IF(Energía!$E26=Seguros_fianzas!E$12,Energía!$B26,\"\")","v":""},{"$f":"IF(Energía!$E26=Seguros_fianzas!F$12,Energía!$B26,\"\")","v":""},{"$f":"IF(Energía!$E26=Seguros_fianzas!G$12,Energía!$B26,\"\")","v":""},{"$f":"IF(Energía!$E26=Seguros_fianzas!H$12,Energía!$B26,\"\")","v":""},{"$f":"IF(Energía!$E26=Seguros_fianzas!I$12,Energía!$B26,\"\")","v":""},{"$f":"IF(Energía!$E26=Seguros_fianzas!J$12,Energía!$B26,\"\")","v":""},{"$f":"IF(Energía!$E26=Seguros_fianzas!K$12,Energía!$B26,\"\")","v":""},{"$f":"IF(Energía!$E26=Seguros_fianzas!L$12,Energía!$B26,\"\")","v":""},{"$f":"IF(Energía!$E26=Seguros_fianzas!M$12,Energía!$B26,\"\")","v":""},{"$f":"IF(Energía!$E26=Seguros_fianzas!N$12,Energía!$B26,\"\")","v":""},{"$f":"IF(Energía!$E26=Seguros_fianzas!O$12,Energía!$B26,\"\")","v":""},{"$f":"_xlfn.XLOOKUP(A85,'Base-datos'!$B$521:$B$531,'Base-datos'!$F$521:$F$531)","v":{"$error":"#N/A"}},{"$f":"_xlfn.XLOOKUP(A85,'Base-datos'!$B$521:$B$531,'Base-datos'!$C$521:$C$531)","v":{"$error":"#N/A"}},{"$f":"_xlfn.XLOOKUP(A85,'Base-datos'!$B$521:$B$531,'Base-datos'!$D$521:$D$531)","v":{"$error":"#N/A"}},null,null,{"$f":"IF(OR(S$77=\"La actividad no cumple con el total de los criterios de No Daño Significativo\",T$77=\"El sector no cumple con las salvaguardas mínimas\"),\"\",IF(AND('Base-datos'!$B$730=\"Sí\",'Base-datos'!$B$731=\"\",'Base-datos'!$B$732=\"\"),IF(Q85=\"La actividad sí contribuye sustancialmente a la sostenibilidad\",SUM(B85:O85),0),IF(AND('Base-datos'!$B$730=\"Sí\",'Base-datos'!$B$731=\"Sí\",'Base-datos'!$B$732=\"\"),IF(AND(Q85=\"La actividad sí contribuye sustancialmente a la sostenibilidad\",R85=\"La actividad sí contribuye sustancialmente a la sostenibilidad\"),SUM(B85:O85),0),IF(AND('Base-datos'!$B$730=\"Sí\",'Base-datos'!$B$731=\"Sí\",'Base-datos'!$B$732=\"Sí\"),IF(AND(Q85=\"La actividad sí contribuye sustancialmente a la sostenibilidad\",R85=\"La actividad sí contribuye sustancialmente a la sostenibilidad\",P85=\"La actividad sí contribuye sustancialmente a la sostenibilidad\"),SUM(B85:O85),0),IF(AND('Base-datos'!$B$730=\"\",'Base-datos'!$B$731=\"Sí\",'Base-datos'!$B$732=\"\"),IF(R85=\"La actividad sí contribuye sustancialmente a la sostenibilidad\",SUM(B85:O85),0),IF(AND('Base-datos'!$B$730=\"\",'Base-datos'!$B$731=\"\",'Base-datos'!$B$732=\"Sí\"),IF(P85=\"La actividad sí contribuye sustancialmente a la sostenibilidad\",SUM(B85:O85),0),IF(AND('Base-datos'!$B$730=\"\",'Base-datos'!$B$731=\"Sí\",'Base-datos'!$B$732=\"Sí\"),IF(AND(R85=\"La actividad sí contribuye sustancialmente a la sostenibilidad\",P85=\"La actividad sí contribuye sustancialmente a la sostenibilidad\"),SUM(B85:O85),0),IF(AND('Base-datos'!$B$730=\"Sí\",'Base-datos'!$B$731=\"\",'Base-datos'!$B$732=\"Sí\"),IF(AND(Q85=\"La actividad sí contribuye sustancialmente a la sostenibilidad\",P85=\"La actividad sí contribuye sustancialmente a la sostenibilidad\"),SUM(B85:O85),0),\"Por definir\"))))))))","v":"Por definir"}]
[{"$f":"Energía!$C28","v":"Seleccione"},{"$f":"IF(Energía!$E28=Seguros_fianzas!B$12,Energía!$B28,\"\")","v":""},{"$f":"IF(Energía!$E28=Seguros_fianzas!C$12,Energía!$B28,\"\")","v":""},{"$f":"IF(Energía!$E28=Seguros_fianzas!D$12,Energía!$B28,\"\")","v":""},{"$f":"IF(Energía!$E28=Seguros_fianzas!E$12,Energía!$B28,\"\")","v":""},{"$f":"IF(Energía!$E28=Seguros_fianzas!F$12,Energía!$B28,\"\")","v":""},{"$f":"IF(Energía!$E28=Seguros_fianzas!G$12,Energía!$B28,\"\")","v":""},{"$f":"IF(Energía!$E28=Seguros_fianzas!H$12,Energía!$B28,\"\")","v":""},{"$f":"IF(Energía!$E28=Seguros_fianzas!I$12,Energía!$B28,\"\")","v":""},{"$f":"IF(Energía!$E28=Seguros_fianzas!J$12,Energía!$B28,\"\")","v":""},{"$f":"IF(Energía!$E28=Seguros_fianzas!K$12,Energía!$B28,\"\")","v":""},{"$f":"IF(Energía!$E28=Seguros_fianzas!L$12,Energía!$B28,\"\")","v":""},{"$f":"IF(Energía!$E28=Seguros_fianzas!M$12,Energía!$B28,\"\")","v":""},{"$f":"IF(Energía!$E28=Seguros_fianzas!N$12,Energía!$B28,\"\")","v":""},{"$f":"IF(Energía!$E28=Seguros_fianzas!O$12,Energía!$B28,\"\")","v":""},{"$f":"_xlfn.XLOOKUP(A86,'Base-datos'!$B$521:$B$531,'Base-datos'!$F$521:$F$531)","v":{"$error":"#N/A"}},{"$f":"_xlfn.XLOOKUP(A86,'Base-datos'!$B$521:$B$531,'Base-datos'!$C$521:$C$531)","v":{"$error":"#N/A"}},{"$f":"_xlfn.XLOOKUP(A86,'Base-datos'!$B$521:$B$531,'Base-datos'!$D$521:$D$531)","v":{"$error":"#N/A"}},null,null,{"$f":"IF(OR(S$77=\"La actividad no cumple con el total de los criterios de No Daño Significativo\",T$77=\"El sector no cumple con las salvaguardas mínimas\"),\"\",IF(AND('Base-datos'!$B$730=\"Sí\",'Base-datos'!$B$731=\"\",'Base-datos'!$B$732=\"\"),IF(Q86=\"La actividad sí contribuye sustancialmente a la sostenibilidad\",SUM(B86:O86),0),IF(AND('Base-datos'!$B$730=\"Sí\",'Base-datos'!$B$731=\"Sí\",'Base-datos'!$B$732=\"\"),IF(AND(Q86=\"La actividad sí contribuye sustancialmente a la sostenibilidad\",R86=\"La actividad sí contribuye sustancialmente a la sostenibilidad\"),SUM(B86:O86),0),IF(AND('Base-datos'!$B$730=\"Sí\",'Base-datos'!$B$731=\"Sí\",'Base-datos'!$B$732=\"Sí\"),IF(AND(Q86=\"La actividad sí contribuye sustancialmente a la sostenibilidad\",R86=\"La actividad sí contribuye sustancialmente a la sostenibilidad\",P86=\"La actividad sí contribuye sustancialmente a la sostenibilidad\"),SUM(B86:O86),0),IF(AND('Base-datos'!$B$730=\"\",'Base-datos'!$B$731=\"Sí\",'Base-datos'!$B$732=\"\"),IF(R86=\"La actividad sí contribuye sustancialmente a la sostenibilidad\",SUM(B86:O86),0),IF(AND('Base-datos'!$B$730=\"\",'Base-datos'!$B$731=\"\",'Base-datos'!$B$732=\"Sí\"),IF(P86=\"La actividad sí contribuye sustancialmente a la sostenibilidad\",SUM(B86:O86),0),IF(AND('Base-datos'!$B$730=\"\",'Base-datos'!$B$731=\"Sí\",'Base-datos'!$B$732=\"Sí\"),IF(AND(R86=\"La actividad sí contribuye sustancialmente a la sostenibilidad\",P86=\"La actividad sí contribuye sustancialmente a la sostenibilidad\"),SUM(B86:O86),0),IF(AND('Base-datos'!$B$730=\"Sí\",'Base-datos'!$B$731=\"\",'Base-datos'!$B$732=\"Sí\"),IF(AND(Q86=\"La actividad sí contribuye sustancialmente a la sostenibilidad\",P86=\"La actividad sí contribuye sustancialmente a la sostenibilidad\"),SUM(B86:O86),0),\"Por definir\"))))))))","v":"Por definir"}]
[{"$f":"Energía!$C30","v":"Seleccione"},{"$f":"IF(Energía!$E30=Seguros_fianzas!B$12,Energía!$B30,\"\")","v":""},{"$f":"IF(Energía!$E30=Seguros_fianzas!C$12,Energía!$B30,\"\")","v":""},{"$f":"IF(Energía!$E30=Seguros_fianzas!D$12,Energía!$B30,\"\")","v":""},{"$f":"IF(Energía!$E30=Seguros_fianzas!E$12,Energía!$B30,\"\")","v":""},{"$f":"IF(Energía!$E30=Seguros_fianzas!F$12,Energía!$B30,\"\")","v":""},{"$f":"IF(Energía!$E30=Seguros_fianzas!G$12,Energía!$B30,\"\")","v":""},{"$f":"IF(Energía!$E30=Seguros_fianzas!H$12,Energía!$B30,\"\")","v":""},{"$f":"IF(Energía!$E30=Seguros_fianzas!I$12,Energía!$B30,\"\")","v":""},{"$f":"IF(Energía!$E30=Seguros_fianzas!J$12,Energía!$B30,\"\")","v":""},{"$f":"IF(Energía!$E30=Seguros_fianzas!K$12,Energía!$B30,\"\")","v":""},{"$f":"IF(Energía!$E30=Seguros_fianzas!L$12,Energía!$B30,\"\")","v":""},{"$f":"IF(Energía!$E30=Seguros_fianzas!M$12,Energía!$B30,\"\")","v":""},{"$f":"IF(Energía!$E30=Seguros_fianzas!N$12,Energía!$B30,\"\")","v":""},{"$f":"IF(Energía!$E30=Seguros_fianzas!O$12,Energía!$B30,\"\")","v":""},{"$f":"_xlfn.XLOOKUP(A87,'Base-datos'!$B$521:$B$531,'Base-datos'!$F$521:$F$531)","v":{"$error":"#N/A"}},{"$f":"_xlfn.XLOOKUP(A87,'Base-datos'!$B$521:$B$531,'Base-datos'!$C$521:$C$531)","v":{"$error":"#N/A"}},{"$f":"_xlfn.XLOOKUP(A87,'Base-datos'!$B$521:$B$531,'Base-datos'!$D$521:$D$531)","v":{"$error":"#N/A"}},null,null,{"$f":"IF(OR(S$77=\"La actividad no cumple con el total de los criterios de No Daño Significativo\",T$77=\"El sector no cumple con las salvaguardas mínimas\"),\"\",IF(AND('Base-datos'!$B$730=\"Sí\",'Base-datos'!$B$731=\"\",'Base-datos'!$B$732=\"\"),IF(Q87=\"La actividad sí contribuye sustancialmente a la sostenibilidad\",SUM(B87:O87),0),IF(AND('Base-datos'!$B$730=\"Sí\",'Base-datos'!$B$731=\"Sí\",'Base-datos'!$B$732=\"\"),IF(AND(Q87=\"La actividad sí contribuye sustancialmente a la sostenibilidad\",R87=\"La actividad sí contribuye sustancialmente a la sostenibilidad\"),SUM(B87:O87),0),IF(AND('Base-datos'!$B$730=\"Sí\",'Base-datos'!$B$731=\"Sí\",'Base-datos'!$B$732=\"Sí\"),IF(AND(Q87=\"La actividad sí contribuye sustancialmente a la sostenibilidad\",R87=\"La actividad sí contribuye sustancialmente a la sostenibilidad\",P87=\"La actividad sí contribuye sustancialmente a la sostenibilidad\"),SUM(B87:O87),0),IF(AND('Base-datos'!$B$730=\"\",'Base-datos'!$B$731=\"Sí\",'Base-datos'!$B$732=\"\"),IF(R87=\"La actividad sí contribuye sustancialmente a la sostenibilidad\",SUM(B87:O87),0),IF(AND('Base-datos'!$B$730=\"\",'Base-datos'!$B$731=\"\",'Base-datos'!$B$732=\"Sí\"),IF(P87=\"La actividad sí contribuye sustancialmente a la sostenibilidad\",SUM(B87:O87),0),IF(AND('Base-datos'!$B$730=\"\",'Base-datos'!$B$731=\"Sí\",'Base-datos'!$B$732=\"Sí\"),IF(AND(R87=\"La actividad sí contribuye sustancialmente a la sostenibilidad\",P87=\"La actividad sí contribuye sustancialmente a la sostenibilidad\"),SUM(B87:O87),0),IF(AND('Base-datos'!$B$730=\"Sí\",'Base-datos'!$B$731=\"\",'Base-datos'!$B$732=\"Sí\"),IF(AND(Q87=\"La actividad sí contribuye sustancialmente a la sostenibilidad\",P87=\"La actividad sí contribuye sustancialmente a la sostenibilidad\"),SUM(B87:O87),0),\"Por definir\"))))))))","v":"Por definir"}]
[{"$f":"Energía!$C32","v":"Seleccione"},{"$f":"IF(Energía!$E32=Seguros_fianzas!B$12,Energía!$B32,\"\")","v":""},{"$f":"IF(Energía!$E32=Seguros_fianzas!C$12,Energía!$B32,\"\")","v":""},{"$f":"IF(Energía!$E32=Seguros_fianzas!D$12,Energía!$B32,\"\")","v":""},{"$f":"IF(Energía!$E32=Seguros_fianzas!E$12,Energía!$B32,\"\")","v":""},{"$f":"IF(Energía!$E32=Seguros_fianzas!F$12,Energía!$B32,\"\")","v":""},{"$f":"IF(Energía!$E32=Seguros_fianzas!G$12,Energía!$B32,\"\")","v":""},{"$f":"IF(Energía!$E32=Seguros_fianzas!H$12,Energía!$B32,\"\")","v":""},{"$f":"IF(Energía!$E32=Seguros_fianzas!I$12,Energía!$B32,\"\")","v":""},{"$f":"IF(Energía!$E32=Seguros_fianzas!J$12,Energía!$B32,\"\")","v":""},{"$f":"IF(Energía!$E32=Seguros_fianzas!K$12,Energía!$B32,\"\")","v":""},{"$f":"IF(Energía!$E32=Seguros_fianzas!L$12,Energía!$B32,\"\")","v":""},{"$f":"IF(Energía!$E32=Seguros_fianzas!M$12,Energía!$B32,\"\")","v":""},{"$f":"IF(Energía!$E32=Seguros_fianzas!N$12,Energía!$B32,\"\")","v":""},{"$f":"IF(Energía!$E32=Seguros_fianzas!O$12,Energía!$B32,\"\")","v":""},{"$f":"_xlfn.XLOOKUP(A88,'Base-datos'!$B$521:$B$531,'Base-datos'!$F$521:$F$531)","v":{"$error":"#N/A"}},{"$f":"_xlfn.XLOOKUP(A88,'Base-datos'!$B$521:$B$531,'Base-datos'!$C$521:$C$531)","v":{"$error":"#N/A"}},{"$f":"_xlfn.XLOOKUP(A88,'Base-datos'!$B$521:$B$531,'Base-datos'!$D$521:$D$531)","v":{"$error":"#N/A"}},null,null,{"$f":"IF(OR(S$77=\"La actividad no cumple con el total de los criterios de No Daño Significativo\",T$77=\"El sector no cumple con las salvaguardas mínimas\"),\"\",IF(AND('Base-datos'!$B$730=\"Sí\",'Base-datos'!$B$731=\"\",'Base-datos'!$B$732=\"\"),IF(Q88=\"La actividad sí contribuye sustancialmente a la sostenibilidad\",SUM(B88:O88),0),IF(AND('Base-datos'!$B$730=\"Sí\",'Base-datos'!$B$731=\"Sí\",'Base-datos'!$B$732=\"\"),IF(AND(Q88=\"La actividad sí contribuye sustancialmente a la sostenibilidad\",R88=\"La actividad sí contribuye sustancialmente a la sostenibilidad\"),SUM(B88:O88),0),IF(AND('Base-datos'!$B$730=\"Sí\",'Base-datos'!$B$731=\"Sí\",'Base-datos'!$B$732=\"Sí\"),IF(AND(Q88=\"La actividad sí contribuye sustancialmente a la sostenibilidad\",R88=\"La actividad sí contribuye sustancialmente a la sostenibilidad\",P88=\"La actividad sí contribuye sustancialmente a la sostenibilidad\"),SUM(B88:O88),0),IF(AND('Base-datos'!$B$730=\"\",'Base-datos'!$B$731=\"Sí\",'Base-datos'!$B$732=\"\"),IF(R88=\"La actividad sí contribuye sustancialmente a la sostenibilidad\",SUM(B88:O88),0),IF(AND('Base-datos'!$B$730=\"\",'Base-datos'!$B$731=\"\",'Base-datos'!$B$732=\"Sí\"),IF(P88=\"La actividad sí contribuye sustancialmente a la sostenibilidad\",SUM(B88:O88),0),IF(AND('Base-datos'!$B$730=\"\",'Base-datos'!$B$731=\"Sí\",'Base-datos'!$B$732=\"Sí\"),IF(AND(R88=\"La actividad sí contribuye sustancialmente a la sostenibilidad\",P88=\"La actividad sí contribuye sustancialmente a la sostenibilidad\"),SUM(B88:O88),0),IF(AND('Base-datos'!$B$730=\"Sí\",'Base-datos'!$B$731=\"\",'Base-datos'!$B$732=\"Sí\"),IF(AND(Q88=\"La actividad sí contribuye sustancialmente a la sostenibilidad\",P88=\"La actividad sí contribuye sustancialmente a la sostenibilidad\"),SUM(B88:O88),0),\"Por definir\"))))))))","v":"Por definir"}]
[{"$f":"Energía!$C34","v":"Seleccione"},{"$f":"IF(Energía!$E34=Seguros_fianzas!B$12,Energía!$B34,\"\")","v":""},{"$f":"IF(Energía!$E34=Seguros_fianzas!C$12,Energía!$B34,\"\")","v":""},{"$f":"IF(Energía!$E34=Seguros_fianzas!D$12,Energía!$B34,\"\")","v":""},{"$f":"IF(Energía!$E34=Seguros_fianzas!E$12,Energía!$B34,\"\")","v":""},{"$f":"IF(Energía!$E34=Seguros_fianzas!F$12,Energía!$B34,\"\")","v":""},{"$f":"IF(Energía!$E34=Seguros_fianzas!G$12,Energía!$B34,\"\")","v":""},{"$f":"IF(Energía!$E34=Seguros_fianzas!H$12,Energía!$B34,\"\")","v":""},{"$f":"IF(Energía!$E34=Seguros_fianzas!I$12,Energía!$B34,\"\")","v":""},{"$f":"IF(Energía!$E34=Seguros_fianzas!J$12,Energía!$B34,\"\")","v":""},{"$f":"IF(Energía!$E34=Seguros_fianzas!K$12,Energía!$B34,\"\")","v":""},{"$f":"IF(Energía!$E34=Seguros_fianzas!L$12,Energía!$B34,\"\")","v":""},{"$f":"IF(Energía!$E34=Seguros_fianzas!M$12,Energía!$B34,\"\")","v":""},{"$f":"IF(Energía!$E34=Seguros_fianzas!N$12,Energía!$B34,\"\")","v":""},{"$f":"IF(Energía!$E34=Seguros_fianzas!O$12,Energía!$B34,\"\")","v":""},{"$f":"_xlfn.XLOOKUP(A89,'Base-datos'!$B$521:$B$531,'Base-datos'!$F$521:$F$531)","v":{"$error":"#N/A"}},{"$f":"_xlfn.XLOOKUP(A89,'Base-datos'!$B$521:$B$531,'Base-datos'!$C$521:$C$531)","v":{"$error":"#N/A"}},{"$f":"_xlfn.XLOOKUP(A89,'Base-datos'!$B$521:$B$531,'Base-datos'!$D$521:$D$531)","v":{"$error":"#N/A"}},null,null,{"$f":"IF(OR(S$77=\"La actividad no cumple con el total de los criterios de No Daño Significativo\",T$77=\"El sector no cumple con las salvaguardas mínimas\"),\"\",IF(AND('Base-datos'!$B$730=\"Sí\",'Base-datos'!$B$731=\"\",'Base-datos'!$B$732=\"\"),IF(Q89=\"La actividad sí contribuye sustancialmente a la sostenibilidad\",SUM(B89:O89),0),IF(AND('Base-datos'!$B$730=\"Sí\",'Base-datos'!$B$731=\"Sí\",'Base-datos'!$B$732=\"\"),IF(AND(Q89=\"La actividad sí contribuye sustancialmente a la sostenibilidad\",R89=\"La actividad sí contribuye sustancialmente a la sostenibilidad\"),SUM(B89:O89),0),IF(AND('Base-datos'!$B$730=\"Sí\",'Base-datos'!$B$731=\"Sí\",'Base-datos'!$B$732=\"Sí\"),IF(AND(Q89=\"La actividad sí contribuye sustancialmente a la sostenibilidad\",R89=\"La actividad sí contribuye sustancialmente a la sostenibilidad\",P89=\"La actividad sí contribuye sustancialmente a la sostenibilidad\"),SUM(B89:O89),0),IF(AND('Base-datos'!$B$730=\"\",'Base-datos'!$B$731=\"Sí\",'Base-datos'!$B$732=\"\"),IF(R89=\"La actividad sí contribuye sustancialmente a la sostenibilidad\",SUM(B89:O89),0),IF(AND('Base-datos'!$B$730=\"\",'Base-datos'!$B$731=\"\",'Base-datos'!$B$732=\"Sí\"),IF(P89=\"La actividad sí contribuye sustancialmente a la sostenibilidad\",SUM(B89:O89),0),IF(AND('Base-datos'!$B$730=\"\",'Base-datos'!$B$731=\"Sí\",'Base-datos'!$B$732=\"Sí\"),IF(AND(R89=\"La actividad sí contribuye sustancialmente a la sostenibilidad\",P89=\"La actividad sí contribuye sustancialmente a la sostenibilidad\"),SUM(B89:O89),0),IF(AND('Base-datos'!$B$730=\"Sí\",'Base-datos'!$B$731=\"\",'Base-datos'!$B$732=\"Sí\"),IF(AND(Q89=\"La actividad sí contribuye sustancialmente a la sostenibilidad\",P89=\"La actividad sí contribuye sustancialmente a la sostenibilidad\"),SUM(B89:O89),0),\"Por definir\"))))))))","v":"Por definir"}]
[{"$f":"Energía!$C36","v":"Seleccione"},{"$f":"IF(Energía!$E36=Seguros_fianzas!B$12,Energía!$B36,\"\")","v":""},{"$f":"IF(Energía!$E36=Seguros_fianzas!C$12,Energía!$B36,\"\")","v":""},{"$f":"IF(Energía!$E36=Seguros_fianzas!D$12,Energía!$B36,\"\")","v":""},{"$f":"IF(Energía!$E36=Seguros_fianzas!E$12,Energía!$B36,\"\")","v":""},{"$f":"IF(Energía!$E36=Seguros_fianzas!F$12,Energía!$B36,\"\")","v":""},{"$f":"IF(Energía!$E36=Seguros_fianzas!G$12,Energía!$B36,\"\")","v":""},{"$f":"IF(Energía!$E36=Seguros_fianzas!H$12,Energía!$B36,\"\")","v":""},{"$f":"IF(Energía!$E36=Seguros_fianzas!I$12,Energía!$B36,\"\")","v":""},{"$f":"IF(Energía!$E36=Seguros_fianzas!J$12,Energía!$B36,\"\")","v":""},{"$f":"IF(Energía!$E36=Seguros_fianzas!K$12,Energía!$B36,\"\")","v":""},{"$f":"IF(Energía!$E36=Seguros_fianzas!L$12,Energía!$B36,\"\")","v":""},{"$f":"IF(Energía!$E36=Seguros_fianzas!M$12,Energía!$B36,\"\")","v":""},{"$f":"IF(Energía!$E36=Seguros_fianzas!N$12,Energía!$B36,\"\")","v":""},{"$f":"IF(Energía!$E36=Seguros_fianzas!O$12,Energía!$B36,\"\")","v":""},{"$f":"_xlfn.XLOOKUP(A90,'Base-datos'!$B$521:$B$531,'Base-datos'!$F$521:$F$531)","v":{"$error":"#N/A"}},{"$f":"_xlfn.XLOOKUP(A90,'Base-datos'!$B$521:$B$531,'Base-datos'!$C$521:$C$531)","v":{"$error":"#N/A"}},{"$f":"_xlfn.XLOOKUP(A90,'Base-datos'!$B$521:$B$531,'Base-datos'!$D$521:$D$531)","v":{"$error":"#N/A"}},null,null,{"$f":"IF(OR(S$77=\"La actividad no cumple con el total de los criterios de No Daño Significativo\",T$77=\"El sector no cumple con las salvaguardas mínimas\"),\"\",IF(AND('Base-datos'!$B$730=\"Sí\",'Base-datos'!$B$731=\"\",'Base-datos'!$B$732=\"\"),IF(Q90=\"La actividad sí contribuye sustancialmente a la sostenibilidad\",SUM(B90:O90),0),IF(AND('Base-datos'!$B$730=\"Sí\",'Base-datos'!$B$731=\"Sí\",'Base-datos'!$B$732=\"\"),IF(AND(Q90=\"La actividad sí contribuye sustancialmente a la sostenibilidad\",R90=\"La actividad sí contribuye sustancialmente a la sostenibilidad\"),SUM(B90:O90),0),IF(AND('Base-datos'!$B$730=\"Sí\",'Base-datos'!$B$731=\"Sí\",'Base-datos'!$B$732=\"Sí\"),IF(AND(Q90=\"La actividad sí contribuye sustancialmente a la sostenibilidad\",R90=\"La actividad sí contribuye sustancialmente a la sostenibilidad\",P90=\"La actividad sí contribuye sustancialmente a la sostenibilidad\"),SUM(B90:O90),0),IF(AND('Base-datos'!$B$730=\"\",'Base-datos'!$B$731=\"Sí\",'Base-datos'!$B$732=\"\"),IF(R90=\"La actividad sí contribuye sustancialmente a la sostenibilidad\",SUM(B90:O90),0),IF(AND('Base-datos'!$B$730=\"\",'Base-datos'!$B$731=\"\",'Base-datos'!$B$732=\"Sí\"),IF(P90=\"La actividad sí contribuye sustancialmente a la sostenibilidad\",SUM(B90:O90),0),IF(AND('Base-datos'!$B$730=\"\",'Base-datos'!$B$731=\"Sí\",'Base-datos'!$B$732=\"Sí\"),IF(AND(R90=\"La actividad sí contribuye sustancialmente a la sostenibilidad\",P90=\"La actividad sí contribuye sustancialmente a la sostenibilidad\"),SUM(B90:O90),0),IF(AND('Base-datos'!$B$730=\"Sí\",'Base-datos'!$B$731=\"\",'Base-datos'!$B$732=\"Sí\"),IF(AND(Q90=\"La actividad sí contribuye sustancialmente a la sostenibilidad\",P90=\"La actividad sí contribuye sustancialmente a la sostenibilidad\"),SUM(B90:O90),0),\"Por definir\"))))))))","v":"Por definir"}]
[{"$f":"Energía!$C38","v":"Seleccione"},{"$f":"IF(Energía!$E38=Seguros_fianzas!B$12,Energía!$B38,\"\")","v":""},{"$f":"IF(Energía!$E38=Seguros_fianzas!C$12,Energía!$B38,\"\")","v":""},{"$f":"IF(Energía!$E38=Seguros_fianzas!D$12,Energía!$B38,\"\")","v":""},{"$f":"IF(Energía!$E38=Seguros_fianzas!E$12,Energía!$B38,\"\")","v":""},{"$f":"IF(Energía!$E38=Seguros_fianzas!F$12,Energía!$B38,\"\")","v":""},{"$f":"IF(Energía!$E38=Seguros_fianzas!G$12,Energía!$B38,\"\")","v":""},{"$f":"IF(Energía!$E38=Seguros_fianzas!H$12,Energía!$B38,\"\")","v":""},{"$f":"IF(Energía!$E38=Seguros_fianzas!I$12,Energía!$B38,\"\")","v":""},{"$f":"IF(Energía!$E38=Seguros_fianzas!J$12,Energía!$B38,\"\")","v":""},{"$f":"IF(Energía!$E38=Seguros_fianzas!K$12,Energía!$B38,\"\")","v":""},{"$f":"IF(Energía!$E38=Seguros_fianzas!L$12,Energía!$B38,\"\")","v":""},{"$f":"IF(Energía!$E38=Seguros_fianzas!M$12,Energía!$B38,\"\")","v":""},{"$f":"IF(Energía!$E38=Seguros_fianzas!N$12,Energía!$B38,\"\")","v":""},{"$f":"IF(Energía!$E38=Seguros_fianzas!O$12,Energía!$B38,\"\")","v":""},{"$f":"_xlfn.XLOOKUP(A91,'Base-datos'!$B$521:$B$531,'Base-datos'!$F$521:$F$531)","v":{"$error":"#N/A"}},{"$f":"_xlfn.XLOOKUP(A91,'Base-datos'!$B$521:$B$531,'Base-datos'!$C$521:$C$531)","v":{"$error":"#N/A"}},{"$f":"_xlfn.XLOOKUP(A91,'Base-datos'!$B$521:$B$531,'Base-datos'!$D$521:$D$531)","v":{"$error":"#N/A"}},null,null,{"$f":"IF(OR(S$77=\"La actividad no cumple con el total de los criterios de No Daño Significativo\",T$77=\"El sector no cumple con las salvaguardas mínimas\"),\"\",IF(AND('Base-datos'!$B$730=\"Sí\",'Base-datos'!$B$731=\"\",'Base-datos'!$B$732=\"\"),IF(Q91=\"La actividad sí contribuye sustancialmente a la sostenibilidad\",SUM(B91:O91),0),IF(AND('Base-datos'!$B$730=\"Sí\",'Base-datos'!$B$731=\"Sí\",'Base-datos'!$B$732=\"\"),IF(AND(Q91=\"La actividad sí contribuye sustancialmente a la sostenibilidad\",R91=\"La actividad sí contribuye sustancialmente a la sostenibilidad\"),SUM(B91:O91),0),IF(AND('Base-datos'!$B$730=\"Sí\",'Base-datos'!$B$731=\"Sí\",'Base-datos'!$B$732=\"Sí\"),IF(AND(Q91=\"La actividad sí contribuye sustancialmente a la sostenibilidad\",R91=\"La actividad sí contribuye sustancialmente a la sostenibilidad\",P91=\"La actividad sí contribuye sustancialmente a la sostenibilidad\"),SUM(B91:O91),0),IF(AND('Base-datos'!$B$730=\"\",'Base-datos'!$B$731=\"Sí\",'Base-datos'!$B$732=\"\"),IF(R91=\"La actividad sí contribuye sustancialmente a la sostenibilidad\",SUM(B91:O91),0),IF(AND('Base-datos'!$B$730=\"\",'Base-datos'!$B$731=\"\",'Base-datos'!$B$732=\"Sí\"),IF(P91=\"La actividad sí contribuye sustancialmente a la sostenibilidad\",SUM(B91:O91),0),IF(AND('Base-datos'!$B$730=\"\",'Base-datos'!$B$731=\"Sí\",'Base-datos'!$B$732=\"Sí\"),IF(AND(R91=\"La actividad sí contribuye sustancialmente a la sostenibilidad\",P91=\"La actividad sí contribuye sustancialmente a la sostenibilidad\"),SUM(B91:O91),0),IF(AND('Base-datos'!$B$730=\"Sí\",'Base-datos'!$B$731=\"\",'Base-datos'!$B$732=\"Sí\"),IF(AND(Q91=\"La actividad sí contribuye sustancialmente a la sostenibilidad\",P91=\"La actividad sí contribuye sustancialmente a la sostenibilidad\"),SUM(B91:O91),0),\"Por definir\"))))))))","v":"Por definir"}]
[{"$f":"Energía!$C40","v":"Seleccione"},{"$f":"IF(Energía!$E40=Seguros_fianzas!B$12,Energía!$B40,\"\")","v":""},{"$f":"IF(Energía!$E40=Seguros_fianzas!C$12,Energía!$B40,\"\")","v":""},{"$f":"IF(Energía!$E40=Seguros_fianzas!D$12,Energía!$B40,\"\")","v":""},{"$f":"IF(Energía!$E40=Seguros_fianzas!E$12,Energía!$B40,\"\")","v":""},{"$f":"IF(Energía!$E40=Seguros_fianzas!F$12,Energía!$B40,\"\")","v":""},{"$f":"IF(Energía!$E40=Seguros_fianzas!G$12,Energía!$B40,\"\")","v":""},{"$f":"IF(Energía!$E40=Seguros_fianzas!H$12,Energía!$B40,\"\")","v":""},{"$f":"IF(Energía!$E40=Seguros_fianzas!I$12,Energía!$B40,\"\")","v":""},{"$f":"IF(Energía!$E40=Seguros_fianzas!J$12,Energía!$B40,\"\")","v":""},{"$f":"IF(Energía!$E40=Seguros_fianzas!K$12,Energía!$B40,\"\")","v":""},{"$f":"IF(Energía!$E40=Seguros_fianzas!L$12,Energía!$B40,\"\")","v":""},{"$f":"IF(Energía!$E40=Seguros_fianzas!M$12,Energía!$B40,\"\")","v":""},{"$f":"IF(Energía!$E40=Seguros_fianzas!N$12,Energía!$B40,\"\")","v":""},{"$f":"IF(Energía!$E40=Seguros_fianzas!O$12,Energía!$B40,\"\")","v":""},{"$f":"_xlfn.XLOOKUP(A92,'Base-datos'!$B$521:$B$531,'Base-datos'!$F$521:$F$531)","v":{"$error":"#N/A"}},{"$f":"_xlfn.XLOOKUP(A92,'Base-datos'!$B$521:$B$531,'Base-datos'!$C$521:$C$531)","v":{"$error":"#N/A"}},{"$f":"_xlfn.XLOOKUP(A92,'Base-datos'!$B$521:$B$531,'Base-datos'!$D$521:$D$531)","v":{"$error":"#N/A"}},null,null,{"$f":"IF(OR(S$77=\"La actividad no cumple con el total de los criterios de No Daño Significativo\",T$77=\"El sector no cumple con las salvaguardas mínimas\"),\"\",IF(AND('Base-datos'!$B$730=\"Sí\",'Base-datos'!$B$731=\"\",'Base-datos'!$B$732=\"\"),IF(Q92=\"La actividad sí contribuye sustancialmente a la sostenibilidad\",SUM(B92:O92),0),IF(AND('Base-datos'!$B$730=\"Sí\",'Base-datos'!$B$731=\"Sí\",'Base-datos'!$B$732=\"\"),IF(AND(Q92=\"La actividad sí contribuye sustancialmente a la sostenibilidad\",R92=\"La actividad sí contribuye sustancialmente a la sostenibilidad\"),SUM(B92:O92),0),IF(AND('Base-datos'!$B$730=\"Sí\",'Base-datos'!$B$731=\"Sí\",'Base-datos'!$B$732=\"Sí\"),IF(AND(Q92=\"La actividad sí contribuye sustancialmente a la sostenibilidad\",R92=\"La actividad sí contribuye sustancialmente a la sostenibilidad\",P92=\"La actividad sí contribuye sustancialmente a la sostenibilidad\"),SUM(B92:O92),0),IF(AND('Base-datos'!$B$730=\"\",'Base-datos'!$B$731=\"Sí\",'Base-datos'!$B$732=\"\"),IF(R92=\"La actividad sí contribuye sustancialmente a la sostenibilidad\",SUM(B92:O92),0),IF(AND('Base-datos'!$B$730=\"\",'Base-datos'!$B$731=\"\",'Base-datos'!$B$732=\"Sí\"),IF(P92=\"La actividad sí contribuye sustancialmente a la sostenibilidad\",SUM(B92:O92),0),IF(AND('Base-datos'!$B$730=\"\",'Base-datos'!$B$731=\"Sí\",'Base-datos'!$B$732=\"Sí\"),IF(AND(R92=\"La actividad sí contribuye sustancialmente a la sostenibilidad\",P92=\"La actividad sí contribuye sustancialmente a la sostenibilidad\"),SUM(B92:O92),0),IF(AND('Base-datos'!$B$730=\"Sí\",'Base-datos'!$B$731=\"\",'Base-datos'!$B$732=\"Sí\"),IF(AND(Q92=\"La actividad sí contribuye sustancialmente a la sostenibilidad\",P92=\"La actividad sí contribuye sustancialmente a la sostenibilidad\"),SUM(B92:O92),0),\"Por definir\"))))))))","v":"Por definir"}]
[{"$f":"Energía!$C42","v":"Seleccione"},{"$f":"IF(Energía!$E42=Seguros_fianzas!B$12,Energía!$B42,\"\")","v":""},{"$f":"IF(Energía!$E42=Seguros_fianzas!C$12,Energía!$B42,\"\")","v":""},{"$f":"IF(Energía!$E42=Seguros_fianzas!D$12,Energía!$B42,\"\")","v":""},{"$f":"IF(Energía!$E42=Seguros_fianzas!E$12,Energía!$B42,\"\")","v":""},{"$f":"IF(Energía!$E42=Seguros_fianzas!F$12,Energía!$B42,\"\")","v":""},{"$f":"IF(Energía!$E42=Seguros_fianzas!G$12,Energía!$B42,\"\")","v":""},{"$f":"IF(Energía!$E42=Seguros_fianzas!H$12,Energía!$B42,\"\")","v":""},{"$f":"IF(Energía!$E42=Seguros_fianzas!I$12,Energía!$B42,\"\")","v":""},{"$f":"IF(Energía!$E42=Seguros_fianzas!J$12,Energía!$B42,\"\")","v":""},{"$f":"IF(Energía!$E42=Seguros_fianzas!K$12,Energía!$B42,\"\")","v":""},{"$f":"IF(Energía!$E42=Seguros_fianzas!L$12,Energía!$B42,\"\")","v":""},{"$f":"IF(Energía!$E42=Seguros_fianzas!M$12,Energía!$B42,\"\")","v":""},{"$f":"IF(Energía!$E42=Seguros_fianzas!N$12,Energía!$B42,\"\")","v":""},{"$f":"IF(Energía!$E42=Seguros_fianzas!O$12,Energía!$B42,\"\")","v":""},{"$f":"_xlfn.XLOOKUP(A93,'Base-datos'!$B$521:$B$531,'Base-datos'!$F$521:$F$531)","v":{"$error":"#N/A"}},{"$f":"_xlfn.XLOOKUP(A93,'Base-datos'!$B$521:$B$531,'Base-datos'!$C$521:$C$531)","v":{"$error":"#N/A"}},{"$f":"_xlfn.XLOOKUP(A93,'Base-datos'!$B$521:$B$531,'Base-datos'!$D$521:$D$531)","v":{"$error":"#N/A"}},null,null,{"$f":"IF(OR(S$77=\"La actividad no cumple con el total de los criterios de No Daño Significativo\",T$77=\"El sector no cumple con las salvaguardas mínimas\"),\"\",IF(AND('Base-datos'!$B$730=\"Sí\",'Base-datos'!$B$731=\"\",'Base-datos'!$B$732=\"\"),IF(Q93=\"La actividad sí contribuye sustancialmente a la sostenibilidad\",SUM(B93:O93),0),IF(AND('Base-datos'!$B$730=\"Sí\",'Base-datos'!$B$731=\"Sí\",'Base-datos'!$B$732=\"\"),IF(AND(Q93=\"La actividad sí contribuye sustancialmente a la sostenibilidad\",R93=\"La actividad sí contribuye sustancialmente a la sostenibilidad\"),SUM(B93:O93),0),IF(AND('Base-datos'!$B$730=\"Sí\",'Base-datos'!$B$731=\"Sí\",'Base-datos'!$B$732=\"Sí\"),IF(AND(Q93=\"La actividad sí contribuye sustancialmente a la sostenibilidad\",R93=\"La actividad sí contribuye sustancialmente a la sostenibilidad\",P93=\"La actividad sí contribuye sustancialmente a la sostenibilidad\"),SUM(B93:O93),0),IF(AND('Base-datos'!$B$730=\"\",'Base-datos'!$B$731=\"Sí\",'Base-datos'!$B$732=\"\"),IF(R93=\"La actividad sí contribuye sustancialmente a la sostenibilidad\",SUM(B93:O93),0),IF(AND('Base-datos'!$B$730=\"\",'Base-datos'!$B$731=\"\",'Base-datos'!$B$732=\"Sí\"),IF(P93=\"La actividad sí contribuye sustancialmente a la sostenibilidad\",SUM(B93:O93),0),IF(AND('Base-datos'!$B$730=\"\",'Base-datos'!$B$731=\"Sí\",'Base-datos'!$B$732=\"Sí\"),IF(AND(R93=\"La actividad sí contribuye sustancialmente a la sostenibilidad\",P93=\"La actividad sí contribuye sustancialmente a la sostenibilidad\"),SUM(B93:O93),0),IF(AND('Base-datos'!$B$730=\"Sí\",'Base-datos'!$B$731=\"\",'Base-datos'!$B$732=\"Sí\"),IF(AND(Q93=\"La actividad sí contribuye sustancialmente a la sostenibilidad\",P93=\"La actividad sí contribuye sustancialmente a la sostenibilidad\"),SUM(B93:O93),0),\"Por definir\"))))))))","v":"Por definir"}]
[{"$f":"Energía!$C44","v":"Seleccione"},{"$f":"IF(Energía!$E44=Seguros_fianzas!B$12,Energía!$B44,\"\")","v":""},{"$f":"IF(Energía!$E44=Seguros_fianzas!C$12,Energía!$B44,\"\")","v":""},{"$f":"IF(Energía!$E44=Seguros_fianzas!D$12,Energía!$B44,\"\")","v":""},{"$f":"IF(Energía!$E44=Seguros_fianzas!E$12,Energía!$B44,\"\")","v":""},{"$f":"IF(Energía!$E44=Seguros_fianzas!F$12,Energía!$B44,\"\")","v":""},{"$f":"IF(Energía!$E44=Seguros_fianzas!G$12,Energía!$B44,\"\")","v":""},{"$f":"IF(Energía!$E44=Seguros_fianzas!H$12,Energía!$B44,\"\")","v":""},{"$f":"IF(Energía!$E44=Seguros_fianzas!I$12,Energía!$B44,\"\")","v":""},{"$f":"IF(Energía!$E44=Seguros_fianzas!J$12,Energía!$B44,\"\")","v":""},{"$f":"IF(Energía!$E44=Seguros_fianzas!K$12,Energía!$B44,\"\")","v":""},{"$f":"IF(Energía!$E44=Seguros_fianzas!L$12,Energía!$B44,\"\")","v":""},{"$f":"IF(Energía!$E44=Seguros_fianzas!M$12,Energía!$B44,\"\")","v":""},{"$f":"IF(Energía!$E44=Seguros_fianzas!N$12,Energía!$B44,\"\")","v":""},{"$f":"IF(Energía!$E44=Seguros_fianzas!O$12,Energía!$B44,\"\")","v":""},{"$f":"_xlfn.XLOOKUP(A94,'Base-datos'!$B$521:$B$531,'Base-datos'!$F$521:$F$531)","v":{"$error":"#N/A"}},{"$f":"_xlfn.XLOOKUP(A94,'Base-datos'!$B$521:$B$531,'Base-datos'!$C$521:$C$531)","v":{"$error":"#N/A"}},{"$f":"_xlfn.XLOOKUP(A94,'Base-datos'!$B$521:$B$531,'Base-datos'!$D$521:$D$531)","v":{"$error":"#N/A"}},null,null,{"$f":"IF(OR(S$77=\"La actividad no cumple con el total de los criterios de No Daño Significativo\",T$77=\"El sector no cumple con las salvaguardas mínimas\"),\"\",IF(AND('Base-datos'!$B$730=\"Sí\",'Base-datos'!$B$731=\"\",'Base-datos'!$B$732=\"\"),IF(Q94=\"La actividad sí contribuye sustancialmente a la sostenibilidad\",SUM(B94:O94),0),IF(AND('Base-datos'!$B$730=\"Sí\",'Base-datos'!$B$731=\"Sí\",'Base-datos'!$B$732=\"\"),IF(AND(Q94=\"La actividad sí contribuye sustancialmente a la sostenibilidad\",R94=\"La actividad sí contribuye sustancialmente a la sostenibilidad\"),SUM(B94:O94),0),IF(AND('Base-datos'!$B$730=\"Sí\",'Base-datos'!$B$731=\"Sí\",'Base-datos'!$B$732=\"Sí\"),IF(AND(Q94=\"La actividad sí contribuye sustancialmente a la sostenibilidad\",R94=\"La actividad sí contribuye sustancialmente a la sostenibilidad\",P94=\"La actividad sí contribuye sustancialmente a la sostenibilidad\"),SUM(B94:O94),0),IF(AND('Base-datos'!$B$730=\"\",'Base-datos'!$B$731=\"Sí\",'Base-datos'!$B$732=\"\"),IF(R94=\"La actividad sí contribuye sustancialmente a la sostenibilidad\",SUM(B94:O94),0),IF(AND('Base-datos'!$B$730=\"\",'Base-datos'!$B$731=\"\",'Base-datos'!$B$732=\"Sí\"),IF(P94=\"La actividad sí contribuye sustancialmente a la sostenibilidad\",SUM(B94:O94),0),IF(AND('Base-datos'!$B$730=\"\",'Base-datos'!$B$731=\"Sí\",'Base-datos'!$B$732=\"Sí\"),IF(AND(R94=\"La actividad sí contribuye sustancialmente a la sostenibilidad\",P94=\"La actividad sí contribuye sustancialmente a la sostenibilidad\"),SUM(B94:O94),0),IF(AND('Base-datos'!$B$730=\"Sí\",'Base-datos'!$B$731=\"\",'Base-datos'!$B$732=\"Sí\"),IF(AND(Q94=\"La actividad sí contribuye sustancialmente a la sostenibilidad\",P94=\"La actividad sí contribuye sustancialmente a la sostenibilidad\"),SUM(B94:O94),0),\"Por definir\"))))))))","v":"Por definir"}]
[{"$f":"Energía!$C46","v":"Seleccione"},{"$f":"IF(Energía!$E46=Seguros_fianzas!B$12,Energía!$B46,\"\")","v":""},{"$f":"IF(Energía!$E46=Seguros_fianzas!C$12,Energía!$B46,\"\")","v":""},{"$f":"IF(Energía!$E46=Seguros_fianzas!D$12,Energía!$B46,\"\")","v":""},{"$f":"IF(Energía!$E46=Seguros_fianzas!E$12,Energía!$B46,\"\")","v":""},{"$f":"IF(Energía!$E46=Seguros_fianzas!F$12,Energía!$B46,\"\")","v":""},{"$f":"IF(Energía!$E46=Seguros_fianzas!G$12,Energía!$B46,\"\")","v":""},{"$f":"IF(Energía!$E46=Seguros_fianzas!H$12,Energía!$B46,\"\")","v":""},{"$f":"IF(Energía!$E46=Seguros_fianzas!I$12,Energía!$B46,\"\")","v":""},{"$f":"IF(Energía!$E46=Seguros_fianzas!J$12,Energía!$B46,\"\")","v":""},{"$f":"IF(Energía!$E46=Seguros_fianzas!K$12,Energía!$B46,\"\")","v":""},{"$f":"IF(Energía!$E46=Seguros_fianzas!L$12,Energía!$B46,\"\")","v":""},{"$f":"IF(Energía!$E46=Seguros_fianzas!M$12,Energía!$B46,\"\")","v":""},{"$f":"IF(Energía!$E46=Seguros_fianzas!N$12,Energía!$B46,\"\")","v":""},{"$f":"IF(Energía!$E46=Seguros_fianzas!O$12,Energía!$B46,\"\")","v":""},{"$f":"_xlfn.XLOOKUP(A95,'Base-datos'!$B$521:$B$531,'Base-datos'!$F$521:$F$531)","v":{"$error":"#N/A"}},{"$f":"_xlfn.XLOOKUP(A95,'Base-datos'!$B$521:$B$531,'Base-datos'!$C$521:$C$531)","v":{"$error":"#N/A"}},{"$f":"_xlfn.XLOOKUP(A95,'Base-datos'!$B$521:$B$531,'Base-datos'!$D$521:$D$531)","v":{"$error":"#N/A"}},null,null,{"$f":"IF(OR(S$77=\"La actividad no cumple con el total de los criterios de No Daño Significativo\",T$77=\"El sector no cumple con las salvaguardas mínimas\"),\"\",IF(AND('Base-datos'!$B$730=\"Sí\",'Base-datos'!$B$731=\"\",'Base-datos'!$B$732=\"\"),IF(Q95=\"La actividad sí contribuye sustancialmente a la sostenibilidad\",SUM(B95:O95),0),IF(AND('Base-datos'!$B$730=\"Sí\",'Base-datos'!$B$731=\"Sí\",'Base-datos'!$B$732=\"\"),IF(AND(Q95=\"La actividad sí contribuye sustancialmente a la sostenibilidad\",R95=\"La actividad sí contribuye sustancialmente a la sostenibilidad\"),SUM(B95:O95),0),IF(AND('Base-datos'!$B$730=\"Sí\",'Base-datos'!$B$731=\"Sí\",'Base-datos'!$B$732=\"Sí\"),IF(AND(Q95=\"La actividad sí contribuye sustancialmente a la sostenibilidad\",R95=\"La actividad sí contribuye sustancialmente a la sostenibilidad\",P95=\"La actividad sí contribuye sustancialmente a la sostenibilidad\"),SUM(B95:O95),0),IF(AND('Base-datos'!$B$730=\"\",'Base-datos'!$B$731=\"Sí\",'Base-datos'!$B$732=\"\"),IF(R95=\"La actividad sí contribuye sustancialmente a la sostenibilidad\",SUM(B95:O95),0),IF(AND('Base-datos'!$B$730=\"\",'Base-datos'!$B$731=\"\",'Base-datos'!$B$732=\"Sí\"),IF(P95=\"La actividad sí contribuye sustancialmente a la sostenibilidad\",SUM(B95:O95),0),IF(AND('Base-datos'!$B$730=\"\",'Base-datos'!$B$731=\"Sí\",'Base-datos'!$B$732=\"Sí\"),IF(AND(R95=\"La actividad sí contribuye sustancialmente a la sostenibilidad\",P95=\"La actividad sí contribuye sustancialmente a la sostenibilidad\"),SUM(B95:O95),0),IF(AND('Base-datos'!$B$730=\"Sí\",'Base-datos'!$B$731=\"\",'Base-datos'!$B$732=\"Sí\"),IF(AND(Q95=\"La actividad sí contribuye sustancialmente a la sostenibilidad\",P95=\"La actividad sí contribuye sustancialmente a la sostenibilidad\"),SUM(B95:O95),0),\"Por definir\"))))))))","v":"Por definir"}]
[{"$f":"Energía!$C48","v":"Seleccione"},{"$f":"IF(Energía!$E48=Seguros_fianzas!B$12,Energía!$B48,\"\")","v":""},{"$f":"IF(Energía!$E48=Seguros_fianzas!C$12,Energía!$B48,\"\")","v":""},{"$f":"IF(Energía!$E48=Seguros_fianzas!D$12,Energía!$B48,\"\")","v":""},{"$f":"IF(Energía!$E48=Seguros_fianzas!E$12,Energía!$B48,\"\")","v":""},{"$f":"IF(Energía!$E48=Seguros_fianzas!F$12,Energía!$B48,\"\")","v":""},{"$f":"IF(Energía!$E48=Seguros_fianzas!G$12,Energía!$B48,\"\")","v":""},{"$f":"IF(Energía!$E48=Seguros_fianzas!H$12,Energía!$B48,\"\")","v":""},{"$f":"IF(Energía!$E48=Seguros_fianzas!I$12,Energía!$B48,\"\")","v":""},{"$f":"IF(Energía!$E48=Seguros_fianzas!J$12,Energía!$B48,\"\")","v":""},{"$f":"IF(Energía!$E48=Seguros_fianzas!K$12,Energía!$B48,\"\")","v":""},{"$f":"IF(Energía!$E48=Seguros_fianzas!L$12,Energía!$B48,\"\")","v":""},{"$f":"IF(Energía!$E48=Seguros_fianzas!M$12,Energía!$B48,\"\")","v":""},{"$f":"IF(Energía!$E48=Seguros_fianzas!N$12,Energía!$B48,\"\")","v":""},{"$f":"IF(Energía!$E48=Seguros_fianzas!O$12,Energía!$B48,\"\")","v":""},{"$f":"_xlfn.XLOOKUP(A96,'Base-datos'!$B$521:$B$531,'Base-datos'!$F$521:$F$531)","v":{"$error":"#N/A"}},{"$f":"_xlfn.XLOOKUP(A96,'Base-datos'!$B$521:$B$531,'Base-datos'!$C$521:$C$531)","v":{"$error":"#N/A"}},{"$f":"_xlfn.XLOOKUP(A96,'Base-datos'!$B$521:$B$531,'Base-datos'!$D$521:$D$531)","v":{"$error":"#N/A"}},null,null,{"$f":"IF(OR(S$77=\"La actividad no cumple con el total de los criterios de No Daño Significativo\",T$77=\"El sector no cumple con las salvaguardas mínimas\"),\"\",IF(AND('Base-datos'!$B$730=\"Sí\",'Base-datos'!$B$731=\"\",'Base-datos'!$B$732=\"\"),IF(Q96=\"La actividad sí contribuye sustancialmente a la sostenibilidad\",SUM(B96:O96),0),IF(AND('Base-datos'!$B$730=\"Sí\",'Base-datos'!$B$731=\"Sí\",'Base-datos'!$B$732=\"\"),IF(AND(Q96=\"La actividad sí contribuye sustancialmente a la sostenibilidad\",R96=\"La actividad sí contribuye sustancialmente a la sostenibilidad\"),SUM(B96:O96),0),IF(AND('Base-datos'!$B$730=\"Sí\",'Base-datos'!$B$731=\"Sí\",'Base-datos'!$B$732=\"Sí\"),IF(AND(Q96=\"La actividad sí contribuye sustancialmente a la sostenibilidad\",R96=\"La actividad sí contribuye sustancialmente a la sostenibilidad\",P96=\"La actividad sí contribuye sustancialmente a la sostenibilidad\"),SUM(B96:O96),0),IF(AND('Base-datos'!$B$730=\"\",'Base-datos'!$B$731=\"Sí\",'Base-datos'!$B$732=\"\"),IF(R96=\"La actividad sí contribuye sustancialmente a la sostenibilidad\",SUM(B96:O96),0),IF(AND('Base-datos'!$B$730=\"\",'Base-datos'!$B$731=\"\",'Base-datos'!$B$732=\"Sí\"),IF(P96=\"La actividad sí contribuye sustancialmente a la sostenibilidad\",SUM(B96:O96),0),IF(AND('Base-datos'!$B$730=\"\",'Base-datos'!$B$731=\"Sí\",'Base-datos'!$B$732=\"Sí\"),IF(AND(R96=\"La actividad sí contribuye sustancialmente a la sostenibilidad\",P96=\"La actividad sí contribuye sustancialmente a la sostenibilidad\"),SUM(B96:O96),0),IF(AND('Base-datos'!$B$730=\"Sí\",'Base-datos'!$B$731=\"\",'Base-datos'!$B$732=\"Sí\"),IF(AND(Q96=\"La actividad sí contribuye sustancialmente a la sostenibilidad\",P96=\"La actividad sí contribuye sustancialmente a la sostenibilidad\"),SUM(B96:O96),0),\"Por definir\"))))))))","v":"Por definir"}]
["Agua",null,null,null,null,null,null,null,null,null,null,null,null,null,null,null,null,null,null,null,{"$f":"SUM(IF(FREQUENCY(MATCH(A98:A117, A98:A117, 0), MATCH(A98:A117, A98:A117, 0)) > 0, IF(NOT(ISERROR(U98:U117)), U98:U117, 0)))","v":0}]
[{"$f":"Agua!$C10","v":"Seleccione"},{"$f":"IF(Agua!$E10=Seguros_fianzas!B$12,Agua!$B10,\"\")","v":""},{"$f":"IF(Agua!$E10=Seguros_fianzas!C$12,Agua!$B10,\"\")","v":""},{"$f":"IF(Agua!$E10=Seguros_fianzas!D$12,Agua!$B10,\"\")","v":""},{"$f":"IF(Agua!$E10=Seguros_fianzas!E$12,Agua!$B10,\"\")","v":""},{"$f":"IF(Agua!$E10=Seguros_fianzas!F$12,Agua!$B10,\"\")","v":""},{"$f":"IF(Agua!$E10=Seguros_fianzas!G$12,Agua!$B10,\"\")","v":""},{"$f":"IF(Agua!$E10=Seguros_fianzas!H$12,Agua!$B10,\"\")","v":""},{"$f":"IF(Agua!$E10=Seguros_fianzas!I$12,Agua!$B10,\"\")","v":""},{"$f":"IF(Agua!$E10=Seguros_fianzas!J$12,Agua!$B10,\"\")","v":""},{"$f":"IF(Agua!$E10=Seguros_fianzas!K$12,Agua!$B10,\"\")","v":""},{"$f":"IF(Agua!$E10=Seguros_fianzas!L$12,Agua!$B10,\"\")","v":""},{"$f":"IF(Agua!$E10=Seguros_fianzas!M$12,Agua!$B10,\"\")","v":""},{"$f":"IF(Agua!$E10=Seguros_fianzas!N$12,Agua!$B10,\"\")","v":""},{"$f":"IF(Agua!$E10=Seguros_fianzas!O$12,Agua!$B10,\"\")","v":""},{"$f":"_xlfn.XLOOKUP(A98,'Base-datos'!$B$532:$B$536,'Base-datos'!$F$532:$F$536)","v":{"$error":"#N/A"}},{"$f":"_xlfn.XLOOKUP(A98,'Base-datos'!$B$532:$B$536,'Base-datos'!$C$532:$C$536)","v":{"$error":"#N/A"}},{"$f":"_xlfn.XLOOKUP(A98,'Base-datos'!$B$532:$B$536,'Base-datos'!$D$532:$D$536)","v":{"$error":"#N/A"}},{"$f":"IF(COUNTIF('Agua-NDS'!G9:G45,\"No\")>0,\"La actividad no cumple con el total de los criterios de NDS\",\"La actividad cumple con los criterios de No Daño Significativo\")","v":"La actividad cumple con los criterios de No Daño Significativo"},{"$f":"IF(OR('Salvaguardas mínimas'!$G$10=\"Seleccione\",'Salvaguardas mínimas'!$G$13=\"Seleccione\",'Salvaguardas mínimas'!$G$16=\"Seleccione\",'Salvaguardas mínimas'!$G$7=\"Seleccione\"),\"No se han respondido todas las preguntas\",IF(OR('Salvaguardas mínimas'!$G$10=\"No\",'Salvaguardas mínimas'!$G$13=\"No\",'Salvaguardas mínimas'!$G$16=\"No\",'Salvaguardas mínimas'!$G$7=\"No\"),\"El sector no cumple con las salvaguardas mínimas\",\"La actividad sí cumple con las salvaguardas mínimas\"))","v":"No se han respondido todas las preguntas"},{"$f":"IF(OR(S$98=\"La actividad no cumple con el total de los criterios de No Daño Significativo\",T$98=\"El sector no cumple con las salvaguardas mínimas\"),\"\",IF(AND('Base-datos'!$B$735=\"Sí\",'Base-datos'!$B$736=\"\",'Base-datos'!$B$737=\"\"),IF(Q98=\"La actividad sí contribuye sustancialmente a la sostenibilidad\",SUM(B98:O98),0),IF(AND('Base-datos'!$B$735=\"Sí\",'Base-datos'!$B$736=\"Sí\",'Base-datos'!$B$737=\"\"),IF(AND(Q98=\"La actividad sí contribuye sustancialmente a la sostenibilidad\",R98=\"La actividad sí contribuye sustancialmente a la sostenibilidad\"),SUM(B98:O98),0),IF(AND('Base-datos'!$B$735=\"Sí\",'Base-datos'!$B$736=\"Sí\",'Base-datos'!$B$737=\"Sí\"),IF(AND(Q98=\"La actividad sí contribuye sustancialmente a la sostenibilidad\",R98=\"La actividad sí contribuye sustancialmente a la sostenibilidad\",P98=\"La actividad sí contribuye sustancialmente a la sostenibilidad\"),SUM(B98:O98),0),IF(AND('Base-datos'!$B$735=\"\",'Base-datos'!$B$736=\"Sí\",'Base-datos'!$B$737=\"\"),IF(R98=\"La actividad sí contribuye sustancialmente a la sostenibilidad\",SUM(B98:O98),0),IF(AND('Base-datos'!$B$735=\"\",'Base-datos'!$B$736=\"\",'Base-datos'!$B$737=\"Sí\"),IF(P98=\"La actividad sí contribuye sustancialmente a la sostenibilidad\",SUM(B98:O98),0),IF(AND('Base-datos'!$B$735=\"\",'Base-datos'!$B$736=\"Sí\",'Base-datos'!$B$737=\"Sí\"),IF(AND(R98=\"La actividad sí contribuye sustancialmente a la sostenibilidad\",P98=\"La actividad sí contribuye sustancialmente a la sostenibilidad\"),SUM(B98:O98),0),IF(AND('Base-datos'!$B$735=\"Sí\",'Base-datos'!$B$736=\"\",'Base-datos'!$B$737=\"Sí\"),IF(AND(Q98=\"La actividad sí contribuye sustancialmente a la sostenibilidad\",P98=\"La actividad sí contribuye sustancialmente a la sostenibilidad\"),SUM(B98:O98),0),\"Por definir\"))))))))","v":"Por definir"}]
[{"$f":"Agua!$C12","v":"Seleccione"},{"$f":"IF(Agua!$E12=Seguros_fianzas!B$12,Agua!$B12,\"\")","v":""},{"$f":"IF(Agua!$E12=Seguros_fianzas!C$12,Agua!$B12,\"\")","v":""},{"$f":"IF(Agua!$E12=Seguros_fianzas!D$12,Agua!$B12,\"\")","v":""},{"$f":"IF(Agua!$E12=Seguros_fianzas!E$12,Agua!$B12,\"\")","v":""},{"$f":"IF(Agua!$E12=Seguros_fianzas!F$12,Agua!$B12,\"\")","v":""},{"$f":"IF(Agua!$E12=Seguros_fianzas!G$12,Agua!$B12,\"\")","v":""},{"$f":"IF(Agua!$E12=Seguros_fianzas!H$12,Agua!$B12,\"\")","v":""},{"$f":"IF(Agua!$E12=Seguros_fianzas!I$12,Agua!$B12,\"\")","v":""},{"$f":"IF(Agua!$E12=Seguros_fianzas!J$12,Agua!$B12,\"\")","v":""},{"$f":"IF(Agua!$E12=Seguros_fianzas!K$12,Agua!$B12,\"\")","v":""},{"$f":"IF(Agua!$E12=Seguros_fianzas!L$12,Agua!$B12,\"\")","v":""},{"$f":"IF(Agua!$E12=Seguros_fianzas!M$12,Agua!$B12,\"\")","v":""},{"$f":"IF(Agua!$E12=Seguros_fianzas!N$12,Agua!$B12,\"\")","v":""},{"$f":"IF(Agua!$E12=Seguros_fianzas!O$12,Agua!$B12,\"\")","v":""},{"$f":"_xlfn.XLOOKUP(A99,'Base-datos'!$B$532:$B$536,'Base-datos'!$F$532:$F$536)","v":{"$error":"#N/A"}},{"$f":"_xlfn.XLOOKUP(A99,'Base-datos'!$B$532:$B$536,'Base-datos'!$C$532:$C$536)","v":{"$error":"#N/A"}},{"$f":"_xlfn.XLOOKUP(A99,'Base-datos'!$B$532:$B$536,'Base-datos'!$D$532:$D$536)","v":{"$error":"#N/A"}},null,null,{"$f":"IF(OR(S$98=\"La actividad no cumple con el total de los criterios de No Daño Significativo\",T$98=\"El sector no cumple con las salvaguardas mínimas\"),\"\",IF(AND('Base-datos'!$B$735=\"Sí\",'Base-datos'!$B$736=\"\",'Base-datos'!$B$737=\"\"),IF(Q99=\"La actividad sí contribuye sustancialmente a la sostenibilidad\",SUM(B99:O99),0),IF(AND('Base-datos'!$B$735=\"Sí\",'Base-datos'!$B$736=\"Sí\",'Base-datos'!$B$737=\"\"),IF(AND(Q99=\"La actividad sí contribuye sustancialmente a la sostenibilidad\",R99=\"La actividad sí contribuye sustancialmente a la sostenibilidad\"),SUM(B99:O99),0),IF(AND('Base-datos'!$B$735=\"Sí\",'Base-datos'!$B$736=\"Sí\",'Base-datos'!$B$737=\"Sí\"),IF(AND(Q99=\"La actividad sí contribuye sustancialmente a la sostenibilidad\",R99=\"La actividad sí contribuye sustancialmente a la sostenibilidad\",P99=\"La actividad sí contribuye sustancialmente a la sostenibilidad\"),SUM(B99:O99),0),IF(AND('Base-datos'!$B$735=\"\",'Base-datos'!$B$736=\"Sí\",'Base-datos'!$B$737=\"\"),IF(R99=\"La actividad sí contribuye sustancialmente a la sostenibilidad\",SUM(B99:O99),0),IF(AND('Base-datos'!$B$735=\"\",'Base-datos'!$B$736=\"\",'Base-datos'!$B$737=\"Sí\"),IF(P99=\"La actividad sí contribuye sustancialmente a la sostenibilidad\",SUM(B99:O99),0),IF(AND('Base-datos'!$B$735=\"\",'Base-datos'!$B$736=\"Sí\",'Base-datos'!$B$737=\"Sí\"),IF(AND(R99=\"La actividad sí contribuye sustancialmente a la sostenibilidad\",P99=\"La actividad sí contribuye sustancialmente a la sostenibilidad\"),SUM(B99:O99),0),IF(AND('Base-datos'!$B$735=\"Sí\",'Base-datos'!$B$736=\"\",'Base-datos'!$B$737=\"Sí\"),IF(AND(Q99=\"La actividad sí contribuye sustancialmente a la sostenibilidad\",P99=\"La actividad sí contribuye sustancialmente a la sostenibilidad\"),SUM(B99:O99),0),\"Por definir\"))))))))","v":"Por definir"}]
[{"$f":"Agua!$C14","v":"Seleccione"},{"$f":"IF(Agua!$E14=Seguros_fianzas!B$12,Agua!$B14,\"\")","v":""},{"$f":"IF(Agua!$E14=Seguros_fianzas!C$12,Agua!$B14,\"\")","v":""},{"$f":"IF(Agua!$E14=Seguros_fianzas!D$12,Agua!$B14,\"\")","v":""},{"$f":"IF(Agua!$E14=Seguros_fianzas!E$12,Agua!$B14,\"\")","v":""},{"$f":"IF(Agua!$E14=Seguros_fianzas!F$12,Agua!$B14,\"\")","v":""},{"$f":"IF(Agua!$E14=Seguros_fianzas!G$12,Agua!$B14,\"\")","v":""},{"$f":"IF(Agua!$E14=Seguros_fianzas!H$12,Agua!$B14,\"\")","v":""},{"$f":"IF(Agua!$E14=Seguros_fianzas!I$12,Agua!$B14,\"\")","v":""},{"$f":"IF(Agua!$E14=Seguros_fianzas!J$12,Agua!$B14,\"\")","v":""},{"$f":"IF(Agua!$E14=Seguros_fianzas!K$12,Agua!$B14,\"\")","v":""},{"$f":"IF(Agua!$E14=Seguros_fianzas!L$12,Agua!$B14,\"\")","v":""},{"$f":"IF(Agua!$E14=Seguros_fianzas!M$12,Agua!$B14,\"\")","v":""},{"$f":"IF(Agua!$E14=Seguros_fianzas!N$12,Agua!$B14,\"\")","v":""},{"$f":"IF(Agua!$E14=Seguros_fianzas!O$12,Agua!$B14,\"\")","v":""},{"$f":"_xlfn.XLOOKUP(A100,'Base-datos'!$B$532:$B$536,'Base-datos'!$F$532:$F$536)","v":{"$error":"#N/A"}},{"$f":"_xlfn.XLOOKUP(A100,'Base-datos'!$B$532:$B$536,'Base-datos'!$C$532:$C$536)","v":{"$error":"#N/A"}},{"$f":"_xlfn.XLOOKUP(A100,'Base-datos'!$B$532:$B$536,'Base-datos'!$D$532:$D$536)","v":{"$error":"#N/A"}},null,null,{"$f":"IF(OR(S$98=\"La actividad no cumple con el total de los criterios de No Daño Significativo\",T$98=\"El sector no cumple con las salvaguardas mínimas\"),\"\",IF(AND('Base-datos'!$B$735=\"Sí\",'Base-datos'!$B$736=\"\",'Base-datos'!$B$737=\"\"),IF(Q100=\"La actividad sí contribuye sustancialmente a la sostenibilidad\",SUM(B100:O100),0),IF(AND('Base-datos'!$B$735=\"Sí\",'Base-datos'!$B$736=\"Sí\",'Base-datos'!$B$737=\"\"),IF(AND(Q100=\"La actividad sí contribuye sustancialmente a la sostenibilidad\",R100=\"La actividad sí contribuye sustancialmente a la sostenibilidad\"),SUM(B100:O100),0),IF(AND('Base-datos'!$B$735=\"Sí\",'Base-datos'!$B$736=\"Sí\",'Base-datos'!$B$737=\"Sí\"),IF(AND(Q100=\"La actividad sí contribuye sustancialmente a la sostenibilidad\",R100=\"La actividad sí contribuye sustancialmente a la sostenibilidad\",P100=\"La actividad sí contribuye sustancialmente a la sostenibilidad\"),SUM(B100:O100),0),IF(AND('Base-datos'!$B$735=\"\",'Base-datos'!$B$736=\"Sí\",'Base-datos'!$B$737=\"\"),IF(R100=\"La actividad sí contribuye sustancialmente a la sostenibilidad\",SUM(B100:O100),0),IF(AND('Base-datos'!$B$735=\"\",'Base-datos'!$B$736=\"\",'Base-datos'!$B$737=\"Sí\"),IF(P100=\"La actividad sí contribuye sustancialmente a la sostenibilidad\",SUM(B100:O100),0),IF(AND('Base-datos'!$B$735=\"\",'Base-datos'!$B$736=\"Sí\",'Base-datos'!$B$737=\"Sí\"),IF(AND(R100=\"La actividad sí contribuye sustancialmente a la sostenibilidad\",P100=\"La actividad sí contribuye sustancialmente a la sostenibilidad\"),SUM(B100:O100),0),IF(AND('Base-datos'!$B$735=\"Sí\",'Base-datos'!$B$736=\"\",'Base-datos'!$B$737=\"Sí\"),IF(AND(Q100=\"La actividad sí contribuye sustancialmente a la sostenibilidad\",P100=\"La actividad sí contribuye sustancialmente a la sostenibilidad\"),SUM(B100:O100),0),\"Por definir\"))))))))","v":"Por definir"}]
[{"$f":"Agua!$C16","v":"Seleccione"},{"$f":"IF(Agua!$E16=Seguros_fianzas!B$12,Agua!$B16,\"\")","v":""},{"$f":"IF(Agua!$E16=Seguros_fianzas!C$12,Agua!$B16,\"\")","v":""},{"$f":"IF(Agua!$E16=Seguros_fianzas!D$12,Agua!$B16,\"\")","v":""},{"$f":"IF(Agua!$E16=Seguros_fianzas!E$12,Agua!$B16,\"\")","v":""},{"$f":"IF(Agua!$E16=Seguros_fianzas!F$12,Agua!$B16,\"\")","v":""},{"$f":"IF(Agua!$E16=Seguros_fianzas!G$12,Agua!$B16,\"\")","v":""},{"$f":"IF(Agua!$E16=Seguros_fianzas!H$12,Agua!$B16,\"\")","v":""},{"$f":"IF(Agua!$E16=Seguros_fianzas!I$12,Agua!$B16,\"\")","v":""},{"$f":"IF(Agua!$E16=Seguros_fianzas!J$12,Agua!$B16,\"\")","v":""},{"$f":"IF(Agua!$E16=Seguros_fianzas!K$12,Agua!$B16,\"\")","v":""},{"$f":"IF(Agua!$E16=Seguros_fianzas!L$12,Agua!$B16,\"\")","v":""},{"$f":"IF(Agua!$E16=Seguros_fianzas!M$12,Agua!$B16,\"\")","v":""},{"$f":"IF(Agua!$E16=Seguros_fianzas!N$12,Agua!$B16,\"\")","v":""},{"$f":"IF(Agua!$E16=Seguros_fianzas!O$12,Agua!$B16,\"\")","v":""},{"$f":"_xlfn.XLOOKUP(A101,'Base-datos'!$B$532:$B$536,'Base-datos'!$F$532:$F$536)","v":{"$error":"#N/A"}},{"$f":"_xlfn.XLOOKUP(A101,'Base-datos'!$B$532:$B$536,'Base-datos'!$C$532:$C$536)","v":{"$error":"#N/A"}},{"$f":"_xlfn.XLOOKUP(A101,'Base-datos'!$B$532:$B$536,'Base-datos'!$D$532:$D$536)","v":{"$error":"#N/A"}},null,null,{"$f":"IF(OR(S$98=\"La actividad no cumple con el total de los criterios de No Daño Significativo\",T$98=\"El sector no cumple con las salvaguardas mínimas\"),\"\",IF(AND('Base-datos'!$B$735=\"Sí\",'Base-datos'!$B$736=\"\",'Base-datos'!$B$737=\"\"),IF(Q101=\"La actividad sí contribuye sustancialmente a la sostenibilidad\",SUM(B101:O101),0),IF(AND('Base-datos'!$B$735=\"Sí\",'Base-datos'!$B$736=\"Sí\",'Base-datos'!$B$737=\"\"),IF(AND(Q101=\"La actividad sí contribuye sustancialmente a la sostenibilidad\",R101=\"La actividad sí contribuye sustancialmente a la sostenibilidad\"),SUM(B101:O101),0),IF(AND('Base-datos'!$B$735=\"Sí\",'Base-datos'!$B$736=\"Sí\",'Base-datos'!$B$737=\"Sí\"),IF(AND(Q101=\"La actividad sí contribuye sustancialmente a la sostenibilidad\",R101=\"La actividad sí contribuye sustancialmente a la sostenibilidad\",P101=\"La actividad sí contribuye sustancialmente a la sostenibilidad\"),SUM(B101:O101),0),IF(AND('Base-datos'!$B$735=\"\",'Base-datos'!$B$736=\"Sí\",'Base-datos'!$B$737=\"\"),IF(R101=\"La actividad sí contribuye sustancialmente a la sostenibilidad\",SUM(B101:O101),0),IF(AND('Base-datos'!$B$735=\"\",'Base-datos'!$B$736=\"\",'Base-datos'!$B$737=\"Sí\"),IF(P101=\"La actividad sí contribuye sustancialmente a la sostenibilidad\",SUM(B101:O101),0),IF(AND('Base-datos'!$B$735=\"\",'Base-datos'!$B$736=\"Sí\",'Base-datos'!$B$737=\"Sí\"),IF(AND(R101=\"La actividad sí contribuye sustancialmente a la sostenibilidad\",P101=\"La actividad sí contribuye sustancialmente a la sostenibilidad\"),SUM(B101:O101),0),IF(AND('Base-datos'!$B$735=\"Sí\",'Base-datos'!$B$736=\"\",'Base-datos'!$B$737=\"Sí\"),IF(AND(Q101=\"La actividad sí contribuye sustancialmente a la sostenibilidad\",P101=\"La actividad sí contribuye sustancialmente a la sostenibilidad\"),SUM(B101:O101),0),\"Por definir\"))))))))","v":"Por definir"}]
[{"$f":"Agua!$C18","v":"Seleccione"},{"$f":"IF(Agua!$E18=Seguros_fianzas!B$12,Agua!$B18,\"\")","v":""},{"$f":"IF(Agua!$E18=Seguros_fianzas!C$12,Agua!$B18,\"\")","v":""},{"$f":"IF(Agua!$E18=Seguros_fianzas!D$12,Agua!$B18,\"\")","v":""},{"$f":"IF(Agua!$E18=Seguros_fianzas!E$12,Agua!$B18,\"\")","v":""},{"$f":"IF(Agua!$E18=Seguros_fianzas!F$12,Agua!$B18,\"\")","v":""},{"$f":"IF(Agua!$E18=Seguros_fianzas!G$12,Agua!$B18,\"\")","v":""},{"$f":"IF(Agua!$E18=Seguros_fianzas!H$12,Agua!$B18,\"\")","v":""},{"$f":"IF(Agua!$E18=Seguros_fianzas!I$12,Agua!$B18,\"\")","v":""},{"$f":"IF(Agua!$E18=Seguros_fianzas!J$12,Agua!$B18,\"\")","v":""},{"$f":"IF(Agua!$E18=Seguros_fianzas!K$12,Agua!$B18,\"\")","v":""},{"$f":"IF(Agua!$E18=Seguros_fianzas!L$12,Agua!$B18,\"\")","v":""},{"$f":"IF(Agua!$E18=Seguros_fianzas!M$12,Agua!$B18,\"\")","v":""},{"$f":"IF(Agua!$E18=Seguros_fianzas!N$12,Agua!$B18,\"\")","v":""},{"$f":"IF(Agua!$E18=Seguros_fianzas!O$12,Agua!$B18,\"\")","v":""},{"$f":"_xlfn.XLOOKUP(A102,'Base-datos'!$B$532:$B$536,'Base-datos'!$F$532:$F$536)","v":{"$error":"#N/A"}},{"$f":"_xlfn.XLOOKUP(A102,'Base-datos'!$B$532:$B$536,'Base-datos'!$C$532:$C$536)","v":{"$error":"#N/A"}},{"$f":"_xlfn.XLOOKUP(A102,'Base-datos'!$B$532:$B$536,'Base-datos'!$D$532:$D$536)","v":{"$error":"#N/A"}},null,null,{"$f":"IF(OR(S$98=\"La actividad no cumple con el total de los criterios de No Daño Significativo\",T$98=\"El sector no cumple con las salvaguardas mínimas\"),\"\",IF(AND('Base-datos'!$B$735=\"Sí\",'Base-datos'!$B$736=\"\",'Base-datos'!$B$737=\"\"),IF(Q102=\"La actividad sí contribuye sustancialmente a la sostenibilidad\",SUM(B102:O102),0),IF(AND('Base-datos'!$B$735=\"Sí\",'Base-datos'!$B$736=\"Sí\",'Base-datos'!$B$737=\"\"),IF(AND(Q102=\"La actividad sí contribuye sustancialmente a la sostenibilidad\",R102=\"La actividad sí contribuye sustancialmente a la sostenibilidad\"),SUM(B102:O102),0),IF(AND('Base-datos'!$B$735=\"Sí\",'Base-datos'!$B$736=\"Sí\",'Base-datos'!$B$737=\"Sí\"),IF(AND(Q102=\"La actividad sí contribuye sustancialmente a la sostenibilidad\",R102=\"La actividad sí contribuye sustancialmente a la sostenibilidad\",P102=\"La actividad sí contribuye sustancialmente a la sostenibilidad\"),SUM(B102:O102),0),IF(AND('Base-datos'!$B$735=\"\",'Base-datos'!$B$736=\"Sí\",'Base-datos'!$B$737=\"\"),IF(R102=\"La actividad sí contribuye sustancialmente a la sostenibilidad\",SUM(B102:O102),0),IF(AND('Base-datos'!$B$735=\"\",'Base-datos'!$B$736=\"\",'Base-datos'!$B$737=\"Sí\"),IF(P102=\"La actividad sí contribuye sustancialmente a la sostenibilidad\",SUM(B102:O102),0),IF(AND('Base-datos'!$B$735=\"\",'Base-datos'!$B$736=\"Sí\",'Base-datos'!$B$737=\"Sí\"),IF(AND(R102=\"La actividad sí contribuye sustancialmente a la sostenibilidad\",P102=\"La actividad sí contribuye sustancialmente a la sostenibilidad\"),SUM(B102:O102),0),IF(AND('Base-datos'!$B$735=\"Sí\",'Base-datos'!$B$736=\"\",'Base-datos'!$B$737=\"Sí\"),IF(AND(Q102=\"La actividad sí contribuye sustancialmente a la sostenibilidad\",P102=\"La actividad sí contribuye sustancialmente a la sostenibilidad\"),SUM(B102:O102),0),\"Por definir\"))))))))","v":"Por definir"}]
[{"$f":"Agua!$C20","v":"Seleccione"},{"$f":"IF(Agua!$E20=Seguros_fianzas!B$12,Agua!$B20,\"\")","v":""},{"$f":"IF(Agua!$E20=Seguros_fianzas!C$12,Agua!$B20,\"\")","v":""},{"$f":"IF(Agua!$E20=Seguros_fianzas!D$12,Agua!$B20,\"\")","v":""},{"$f":"IF(Agua!$E20=Seguros_fianzas!E$12,Agua!$B20,\"\")","v":""},{"$f":"IF(Agua!$E20=Seguros_fianzas!F$12,Agua!$B20,\"\")","v":""},{"$f":"IF(Agua!$E20=Seguros_fianzas!G$12,Agua!$B20,\"\")","v":""},{"$f":"IF(Agua!$E20=Seguros_fianzas!H$12,Agua!$B20,\"\")","v":""},{"$f":"IF(Agua!$E20=Seguros_fianzas!I$12,Agua!$B20,\"\")","v":""},{"$f":"IF(Agua!$E20=Seguros_fianzas!J$12,Agua!$B20,\"\")","v":""},{"$f":"IF(Agua!$E20=Seguros_fianzas!K$12,Agua!$B20,\"\")","v":""},{"$f":"IF(Agua!$E20=Seguros_fianzas!L$12,Agua!$B20,\"\")","v":""},{"$f":"IF(Agua!$E20=Seguros_fianzas!M$12,Agua!$B20,\"\")","v":""},{"$f":"IF(Agua!$E20=Seguros_fianzas!N$12,Agua!$B20,\"\")","v":""},{"$f":"IF(Agua!$E20=Seguros_fianzas!O$12,Agua!$B20,\"\")","v":""},{"$f":"_xlfn.XLOOKUP(A103,'Base-datos'!$B$532:$B$536,'Base-datos'!$F$532:$F$536)","v":{"$error":"#N/A"}},{"$f":"_xlfn.XLOOKUP(A103,'Base-datos'!$B$532:$B$536,'Base-datos'!$C$532:$C$536)","v":{"$error":"#N/A"}},{"$f":"_xlfn.XLOOKUP(A103,'Base-datos'!$B$532:$B$536,'Base-datos'!$D$532:$D$536)","v":{"$error":"#N/A"}},null,null,{"$f":"IF(OR(S$98=\"La actividad no cumple con el total de los criterios de No Daño Significativo\",T$98=\"El sector no cumple con las salvaguardas mínimas\"),\"\",IF(AND('Base-datos'!$B$735=\"Sí\",'Base-datos'!$B$736=\"\",'Base-datos'!$B$737=\"\"),IF(Q103=\"La actividad sí contribuye sustancialmente a la sostenibilidad\",SUM(B103:O103),0),IF(AND('Base-datos'!$B$735=\"Sí\",'Base-datos'!$B$736=\"Sí\",'Base-datos'!$B$737=\"\"),IF(AND(Q103=\"La actividad sí contribuye sustancialmente a la sostenibilidad\",R103=\"La actividad sí contribuye sustancialmente a la sostenibilidad\"),SUM(B103:O103),0),IF(AND('Base-datos'!$B$735=\"Sí\",'Base-datos'!$B$736=\"Sí\",'Base-datos'!$B$737=\"Sí\"),IF(AND(Q103=\"La actividad sí contribuye sustancialmente a la sostenibilidad\",R103=\"La actividad sí contribuye sustancialmente a la sostenibilidad\",P103=\"La actividad sí contribuye sustancialmente a la sostenibilidad\"),SUM(B103:O103),0),IF(AND('Base-datos'!$B$735=\"\",'Base-datos'!$B$736=\"Sí\",'Base-datos'!$B$737=\"\"),IF(R103=\"La actividad sí contribuye sustancialmente a la sostenibilidad\",SUM(B103:O103),0),IF(AND('Base-datos'!$B$735=\"\",'Base-datos'!$B$736=\"\",'Base-datos'!$B$737=\"Sí\"),IF(P103=\"La actividad sí contribuye sustancialmente a la sostenibilidad\",SUM(B103:O103),0),IF(AND('Base-datos'!$B$735=\"\",'Base-datos'!$B$736=\"Sí\",'Base-datos'!$B$737=\"Sí\"),IF(AND(R103=\"La actividad sí contribuye sustancialmente a la sostenibilidad\",P103=\"La actividad sí contribuye sustancialmente a la sostenibilidad\"),SUM(B103:O103),0),IF(AND('Base-datos'!$B$735=\"Sí\",'Base-datos'!$B$736=\"\",'Base-datos'!$B$737=\"Sí\"),IF(AND(Q103=\"La actividad sí contribuye sustancialmente a la sostenibilidad\",P103=\"La actividad sí contribuye sustancialmente a la sostenibilidad\"),SUM(B103:O103),0),\"Por definir\"))))))))","v":"Por definir"}]
[{"$f":"Agua!$C22","v":"Seleccione"},{"$f":"IF(Agua!$E22=Seguros_fianzas!B$12,Agua!$B22,\"\")","v":""},{"$f":"IF(Agua!$E22=Seguros_fianzas!C$12,Agua!$B22,\"\")","v":""},{"$f":"IF(Agua!$E22=Seguros_fianzas!D$12,Agua!$B22,\"\")","v":""},{"$f":"IF(Agua!$E22=Seguros_fianzas!E$12,Agua!$B22,\"\")","v":""},{"$f":"IF(Agua!$E22=Seguros_fianzas!F$12,Agua!$B22,\"\")","v":""},{"$f":"IF(Agua!$E22=Seguros_fianzas!G$12,Agua!$B22,\"\")","v":""},{"$f":"IF(Agua!$E22=Seguros_fianzas!H$12,Agua!$B22,\"\")","v":""},{"$f":"IF(Agua!$E22=Seguros_fianzas!I$12,Agua!$B22,\"\")","v":""},{"$f":"IF(Agua!$E22=Seguros_fianzas!J$12,Agua!$B22,\"\")","v":""},{"$f":"IF(Agua!$E22=Seguros_fianzas!K$12,Agua!$B22,\"\")","v":""},{"$f":"IF(Agua!$E22=Seguros_fianzas!L$12,Agua!$B22,\"\")","v":""},{"$f":"IF(Agua!$E22=Seguros_fianzas!M$12,Agua!$B22,\"\")","v":""},{"$f":"IF(Agua!$E22=Seguros_fianzas!N$12,Agua!$B22,\"\")","v":""},{"$f":"IF(Agua!$E22=Seguros_fianzas!O$12,Agua!$B22,\"\")","v":""},{"$f":"_xlfn.XLOOKUP(A104,'Base-datos'!$B$532:$B$536,'Base-datos'!$F$532:$F$536)","v":{"$error":"#N/A"}},{"$f":"_xlfn.XLOOKUP(A104,'Base-datos'!$B$532:$B$536,'Base-datos'!$C$532:$C$536)","v":{"$error":"#N/A"}},{"$f":"_xlfn.XLOOKUP(A104,'Base-datos'!$B$532:$B$536,'Base-datos'!$D$532:$D$536)","v":{"$error":"#N/A"}},null,null,{"$f":"IF(OR(S$98=\"La actividad no cumple con el total de los criterios de No Daño Significativo\",T$98=\"El sector no cumple con las salvaguardas mínimas\"),\"\",IF(AND('Base-datos'!$B$735=\"Sí\",'Base-datos'!$B$736=\"\",'Base-datos'!$B$737=\"\"),IF(Q104=\"La actividad sí contribuye sustancialmente a la sostenibilidad\",SUM(B104:O104),0),IF(AND('Base-datos'!$B$735=\"Sí\",'Base-datos'!$B$736=\"Sí\",'Base-datos'!$B$737=\"\"),IF(AND(Q104=\"La actividad sí contribuye sustancialmente a la sostenibilidad\",R104=\"La actividad sí contribuye sustancialmente a la sostenibilidad\"),SUM(B104:O104),0),IF(AND('Base-datos'!$B$735=\"Sí\",'Base-datos'!$B$736=\"Sí\",'Base-datos'!$B$737=\"Sí\"),IF(AND(Q104=\"La actividad sí contribuye sustancialmente a la sostenibilidad\",R104=\"La actividad sí contribuye sustancialmente a la sostenibilidad\",P104=\"La actividad sí contribuye sustancialmente a la sostenibilidad\"),SUM(B104:O104),0),IF(AND('Base-datos'!$B$735=\"\",'Base-datos'!$B$736=\"Sí\",'Base-datos'!$B$737=\"\"),IF(R104=\"La actividad sí contribuye sustancialmente a la sostenibilidad\",SUM(B104:O104),0),IF(AND('Base-datos'!$B$735=\"\",'Base-datos'!$B$736=\"\",'Base-datos'!$B$737=\"Sí\"),IF(P104=\"La actividad sí contribuye sustancialmente a la sostenibilidad\",SUM(B104:O104),0),IF(AND('Base-datos'!$B$735=\"\",'Base-datos'!$B$736=\"Sí\",'Base-datos'!$B$737=\"Sí\"),IF(AND(R104=\"La actividad sí contribuye sustancialmente a la sostenibilidad\",P104=\"La actividad sí contribuye sustancialmente a la sostenibilidad\"),SUM(B104:O104),0),IF(AND('Base-datos'!$B$735=\"Sí\",'Base-datos'!$B$736=\"\",'Base-datos'!$B$737=\"Sí\"),IF(AND(Q104=\"La actividad sí contribuye sustancialmente a la sostenibilidad\",P104=\"La actividad sí contribuye sustancialmente a la sostenibilidad\"),SUM(B104:O104),0),\"Por definir\"))))))))","v":"Por definir"}]
[{"$f":"Agua!$C24","v":"Seleccione"},{"$f":"IF(Agua!$E24=Seguros_fianzas!B$12,Agua!$B24,\"\")","v":""},{"$f":"IF(Agua!$E24=Seguros_fianzas!C$12,Agua!$B24,\"\")","v":""},{"$f":"IF(Agua!$E24=Seguros_fianzas!D$12,Agua!$B24,\"\")","v":""},{"$f":"IF(Agua!$E24=Seguros_fianzas!E$12,Agua!$B24,\"\")","v":""},{"$f":"IF(Agua!$E24=Seguros_fianzas!F$12,Agua!$B24,\"\")","v":""},{"$f":"IF(Agua!$E24=Seguros_fianzas!G$12,Agua!$B24,\"\")","v":""},{"$f":"IF(Agua!$E24=Seguros_fianzas!H$12,Agua!$B24,\"\")","v":""},{"$f":"IF(Agua!$E24=Seguros_fianzas!I$12,Agua!$B24,\"\")","v":""},{"$f":"IF(Agua!$E24=Seguros_fianzas!J$12,Agua!$B24,\"\")","v":""},{"$f":"IF(Agua!$E24=Seguros_fianzas!K$12,Agua!$B24,\"\")","v":""},{"$f":"IF(Agua!$E24=Seguros_fianzas!L$12,Agua!$B24,\"\")","v":""},{"$f":"IF(Agua!$E24=Seguros_fianzas!M$12,Agua!$B24,\"\")","v":""},{"$f":"IF(Agua!$E24=Seguros_fianzas!N$12,Agua!$B24,\"\")","v":""},{"$f":"IF(Agua!$E24=Seguros_fianzas!O$12,Agua!$B24,\"\")","v":""},{"$f":"_xlfn.XLOOKUP(A105,'Base-datos'!$B$532:$B$536,'Base-datos'!$F$532:$F$536)","v":{"$error":"#N/A"}},{"$f":"_xlfn.XLOOKUP(A105,'Base-datos'!$B$532:$B$536,'Base-datos'!$C$532:$C$536)","v":{"$error":"#N/A"}},{"$f":"_xlfn.XLOOKUP(A105,'Base-datos'!$B$532:$B$536,'Base-datos'!$D$532:$D$536)","v":{"$error":"#N/A"}},null,null,{"$f":"IF(OR(S$98=\"La actividad no cumple con el total de los criterios de No Daño Significativo\",T$98=\"El sector no cumple con las salvaguardas mínimas\"),\"\",IF(AND('Base-datos'!$B$735=\"Sí\",'Base-datos'!$B$736=\"\",'Base-datos'!$B$737=\"\"),IF(Q105=\"La actividad sí contribuye sustancialmente a la sostenibilidad\",SUM(B105:O105),0),IF(AND('Base-datos'!$B$735=\"Sí\",'Base-datos'!$B$736=\"Sí\",'Base-datos'!$B$737=\"\"),IF(AND(Q105=\"La actividad sí contribuye sustancialmente a la sostenibilidad\",R105=\"La actividad sí contribuye sustancialmente a la sostenibilidad\"),SUM(B105:O105),0),IF(AND('Base-datos'!$B$735=\"Sí\",'Base-datos'!$B$736=\"Sí\",'Base-datos'!$B$737=\"Sí\"),IF(AND(Q105=\"La actividad sí contribuye sustancialmente a la sostenibilidad\",R105=\"La actividad sí contribuye sustancialmente a la sostenibilidad\",P105=\"La actividad sí contribuye sustancialmente a la sostenibilidad\"),SUM(B105:O105),0),IF(AND('Base-datos'!$B$735=\"\",'Base-datos'!$B$736=\"Sí\",'Base-datos'!$B$737=\"\"),IF(R105=\"La actividad sí contribuye sustancialmente a la sostenibilidad\",SUM(B105:O105),0),IF(AND('Base-datos'!$B$735=\"\",'Base-datos'!$B$736=\"\",'Base-datos'!$B$737=\"Sí\"),IF(P105=\"La actividad sí contribuye sustancialmente a la sostenibilidad\",SUM(B105:O105),0),IF(AND('Base-datos'!$B$735=\"\",'Base-datos'!$B$736=\"Sí\",'Base-datos'!$B$737=\"Sí\"),IF(AND(R105=\"La actividad sí contribuye sustancialmente a la sostenibilidad\",P105=\"La actividad sí contribuye sustancialmente a la sostenibilidad\"),SUM(B105:O105),0),IF(AND('Base-datos'!$B$735=\"Sí\",'Base-datos'!$B$736=\"\",'Base-datos'!$B$737=\"Sí\"),IF(AND(Q105=\"La actividad sí contribuye sustancialmente a la sostenibilidad\",P105=\"La actividad sí contribuye sustancialmente a la sostenibilidad\"),SUM(B105:O105),0),\"Por definir\"))))))))","v":"Por definir"}]
[{"$f":"Agua!$C26","v":"Seleccione"},{"$f":"IF(Agua!$E26=Seguros_fianzas!B$12,Agua!$B26,\"\")","v":""},{"$f":"IF(Agua!$E26=Seguros_fianzas!C$12,Agua!$B26,\"\")","v":""},{"$f":"IF(Agua!$E26=Seguros_fianzas!D$12,Agua!$B26,\"\")","v":""},{"$f":"IF(Agua!$E26=Seguros_fianzas!E$12,Agua!$B26,\"\")","v":""},{"$f":"IF(Agua!$E26=Seguros_fianzas!F$12,Agua!$B26,\"\")","v":""},{"$f":"IF(Agua!$E26=Seguros_fianzas!G$12,Agua!$B26,\"\")","v":""},{"$f":"IF(Agua!$E26=Seguros_fianzas!H$12,Agua!$B26,\"\")","v":""},{"$f":"IF(Agua!$E26=Seguros_fianzas!I$12,Agua!$B26,\"\")","v":""},{"$f":"IF(Agua!$E26=Seguros_fianzas!J$12,Agua!$B26,\"\")","v":""},{"$f":"IF(Agua!$E26=Seguros_fianzas!K$12,Agua!$B26,\"\")","v":""},{"$f":"IF(Agua!$E26=Seguros_fianzas!L$12,Agua!$B26,\"\")","v":""},{"$f":"IF(Agua!$E26=Seguros_fianzas!M$12,Agua!$B26,\"\")","v":""},{"$f":"IF(Agua!$E26=Seguros_fianzas!N$12,Agua!$B26,\"\")","v":""},{"$f":"IF(Agua!$E26=Seguros_fianzas!O$12,Agua!$B26,\"\")","v":""},{"$f":"_xlfn.XLOOKUP(A106,'Base-datos'!$B$532:$B$536,'Base-datos'!$F$532:$F$536)","v":{"$error":"#N/A"}},{"$f":"_xlfn.XLOOKUP(A106,'Base-datos'!$B$532:$B$536,'Base-datos'!$C$532:$C$536)","v":{"$error":"#N/A"}},{"$f":"_xlfn.XLOOKUP(A106,'Base-datos'!$B$532:$B$536,'Base-datos'!$D$532:$D$536)","v":{"$error":"#N/A"}},null,null,{"$f":"IF(OR(S$98=\"La actividad no cumple con el total de los criterios de No Daño Significativo\",T$98=\"El sector no cumple con las salvaguardas mínimas\"),\"\",IF(AND('Base-datos'!$B$735=\"Sí\",'Base-datos'!$B$736=\"\",'Base-datos'!$B$737=\"\"),IF(Q106=\"La actividad sí contribuye sustancialmente a la sostenibilidad\",SUM(B106:O106),0),IF(AND('Base-datos'!$B$735=\"Sí\",'Base-datos'!$B$736=\"Sí\",'Base-datos'!$B$737=\"\"),IF(AND(Q106=\"La actividad sí contribuye sustancialmente a la sostenibilidad\",R106=\"La actividad sí contribuye sustancialmente a la sostenibilidad\"),SUM(B106:O106),0),IF(AND('Base-datos'!$B$735=\"Sí\",'Base-datos'!$B$736=\"Sí\",'Base-datos'!$B$737=\"Sí\"),IF(AND(Q106=\"La actividad sí contribuye sustancialmente a la sostenibilidad\",R106=\"La actividad sí contribuye sustancialmente a la sostenibilidad\",P106=\"La actividad sí contribuye sustancialmente a la sostenibilidad\"),SUM(B106:O106),0),IF(AND('Base-datos'!$B$735=\"\",'Base-datos'!$B$736=\"Sí\",'Base-datos'!$B$737=\"\"),IF(R106=\"La actividad sí contribuye sustancialmente a la sostenibilidad\",SUM(B106:O106),0),IF(AND('Base-datos'!$B$735=\"\",'Base-datos'!$B$736=\"\",'Base-datos'!$B$737=\"Sí\"),IF(P106=\"La actividad sí contribuye sustancialmente a la sostenibilidad\",SUM(B106:O106),0),IF(AND('Base-datos'!$B$735=\"\",'Base-datos'!$B$736=\"Sí\",'Base-datos'!$B$737=\"Sí\"),IF(AND(R106=\"La actividad sí contribuye sustancialmente a la sostenibilidad\",P106=\"La actividad sí contribuye sustancialmente a la sostenibilidad\"),SUM(B106:O106),0),IF(AND('Base-datos'!$B$735=\"Sí\",'Base-datos'!$B$736=\"\",'Base-datos'!$B$737=\"Sí\"),IF(AND(Q106=\"La actividad sí contribuye sustancialmente a la sostenibilidad\",P106=\"La actividad sí contribuye sustancialmente a la sostenibilidad\"),SUM(B106:O106),0),\"Por definir\"))))))))","v":"Por definir"}]
[{"$f":"Agua!$C28","v":"Seleccione"},{"$f":"IF(Agua!$E28=Seguros_fianzas!B$12,Agua!$B28,\"\")","v":""},{"$f":"IF(Agua!$E28=Seguros_fianzas!C$12,Agua!$B28,\"\")","v":""},{"$f":"IF(Agua!$E28=Seguros_fianzas!D$12,Agua!$B28,\"\")","v":""},{"$f":"IF(Agua!$E28=Seguros_fianzas!E$12,Agua!$B28,\"\")","v":""},{"$f":"IF(Agua!$E28=Seguros_fianzas!F$12,Agua!$B28,\"\")","v":""},{"$f":"IF(Agua!$E28=Seguros_fianzas!G$12,Agua!$B28,\"\")","v":""},{"$f":"IF(Agua!$E28=Seguros_fianzas!H$12,Agua!$B28,\"\")","v":""},{"$f":"IF(Agua!$E28=Seguros_fianzas!I$12,Agua!$B28,\"\")","v":""},{"$f":"IF(Agua!$E28=Seguros_fianzas!J$12,Agua!$B28,\"\")","v":""},{"$f":"IF(Agua!$E28=Seguros_fianzas!K$12,Agua!$B28,\"\")","v":""},{"$f":"IF(Agua!$E28=Seguros_fianzas!L$12,Agua!$B28,\"\")","v":""},{"$f":"IF(Agua!$E28=Seguros_fianzas!M$12,Agua!$B28,\"\")","v":""},{"$f":"IF(Agua!$E28=Seguros_fianzas!N$12,Agua!$B28,\"\")","v":""},{"$f":"IF(Agua!$E28=Seguros_fianzas!O$12,Agua!$B28,\"\")","v":""},{"$f":"_xlfn.XLOOKUP(A107,'Base-datos'!$B$532:$B$536,'Base-datos'!$F$532:$F$536)","v":{"$error":"#N/A"}},{"$f":"_xlfn.XLOOKUP(A107,'Base-datos'!$B$532:$B$536,'Base-datos'!$C$532:$C$536)","v":{"$error":"#N/A"}},{"$f":"_xlfn.XLOOKUP(A107,'Base-datos'!$B$532:$B$536,'Base-datos'!$D$532:$D$536)","v":{"$error":"#N/A"}},null,null,{"$f":"IF(OR(S$98=\"La actividad no cumple con el total de los criterios de No Daño Significativo\",T$98=\"El sector no cumple con las salvaguardas mínimas\"),\"\",IF(AND('Base-datos'!$B$735=\"Sí\",'Base-datos'!$B$736=\"\",'Base-datos'!$B$737=\"\"),IF(Q107=\"La actividad sí contribuye sustancialmente a la sostenibilidad\",SUM(B107:O107),0),IF(AND('Base-datos'!$B$735=\"Sí\",'Base-datos'!$B$736=\"Sí\",'Base-datos'!$B$737=\"\"),IF(AND(Q107=\"La actividad sí contribuye sustancialmente a la sostenibilidad\",R107=\"La actividad sí contribuye sustancialmente a la sostenibilidad\"),SUM(B107:O107),0),IF(AND('Base-datos'!$B$735=\"Sí\",'Base-datos'!$B$736=\"Sí\",'Base-datos'!$B$737=\"Sí\"),IF(AND(Q107=\"La actividad sí contribuye sustancialmente a la sostenibilidad\",R107=\"La actividad sí contribuye sustancialmente a la sostenibilidad\",P107=\"La actividad sí contribuye sustancialmente a la sostenibilidad\"),SUM(B107:O107),0),IF(AND('Base-datos'!$B$735=\"\",'Base-datos'!$B$736=\"Sí\",'Base-datos'!$B$737=\"\"),IF(R107=\"La actividad sí contribuye sustancialmente a la sostenibilidad\",SUM(B107:O107),0),IF(AND('Base-datos'!$B$735=\"\",'Base-datos'!$B$736=\"\",'Base-datos'!$B$737=\"Sí\"),IF(P107=\"La actividad sí contribuye sustancialmente a la sostenibilidad\",SUM(B107:O107),0),IF(AND('Base-datos'!$B$735=\"\",'Base-datos'!$B$736=\"Sí\",'Base-datos'!$B$737=\"Sí\"),IF(AND(R107=\"La actividad sí contribuye sustancialmente a la sostenibilidad\",P107=\"La actividad sí contribuye sustancialmente a la sostenibilidad\"),SUM(B107:O107),0),IF(AND('Base-datos'!$B$735=\"Sí\",'Base-datos'!$B$736=\"\",'Base-datos'!$B$737=\"Sí\"),IF(AND(Q107=\"La actividad sí contribuye sustancialmente a la sostenibilidad\",P107=\"La actividad sí contribuye sustancialmente a la sostenibilidad\"),SUM(B107:O107),0),\"Por definir\"))))))))","v":"Por definir"}]
[{"$f":"Agua!$C30","v":"Seleccione"},{"$f":"IF(Agua!$E30=Seguros_fianzas!B$12,Agua!$B30,\"\")","v":""},{"$f":"IF(Agua!$E30=Seguros_fianzas!C$12,Agua!$B30,\"\")","v":""},{"$f":"IF(Agua!$E30=Seguros_fianzas!D$12,Agua!$B30,\"\")","v":""},{"$f":"IF(Agua!$E30=Seguros_fianzas!E$12,Agua!$B30,\"\")","v":""},{"$f":"IF(Agua!$E30=Seguros_fianzas!F$12,Agua!$B30,\"\")","v":""},{"$f":"IF(Agua!$E30=Seguros_fianzas!G$12,Agua!$B30,\"\")","v":""},{"$f":"IF(Agua!$E30=Seguros_fianzas!H$12,Agua!$B30,\"\")","v":""},{"$f":"IF(Agua!$E30=Seguros_fianzas!I$12,Agua!$B30,\"\")","v":""},{"$f":"IF(Agua!$E30=Seguros_fianzas!J$12,Agua!$B30,\"\")","v":""},{"$f":"IF(Agua!$E30=Seguros_fianzas!K$12,Agua!$B30,\"\")","v":""},{"$f":"IF(Agua!$E30=Seguros_fianzas!L$12,Agua!$B30,\"\")","v":""},{"$f":"IF(Agua!$E30=Seguros_fianzas!M$12,Agua!$B30,\"\")","v":""},{"$f":"IF(Agua!$E30=Seguros_fianzas!N$12,Agua!$B30,\"\")","v":""},{"$f":"IF(Agua!$E30=Seguros_fianzas!O$12,Agua!$B30,\"\")","v":""},{"$f":"_xlfn.XLOOKUP(A108,'Base-datos'!$B$532:$B$536,'Base-datos'!$F$532:$F$536)","v":{"$error":"#N/A"}},{"$f":"_xlfn.XLOOKUP(A108,'Base-datos'!$B$532:$B$536,'Base-datos'!$C$532:$C$536)","v":{"$error":"#N/A"}},{"$f":"_xlfn.XLOOKUP(A108,'Base-datos'!$B$532:$B$536,'Base-datos'!$D$532:$D$536)","v":{"$error":"#N/A"}},null,null,{"$f":"IF(OR(S$98=\"La actividad no cumple con el total de los criterios de No Daño Significativo\",T$98=\"El sector no cumple con las salvaguardas mínimas\"),\"\",IF(AND('Base-datos'!$B$735=\"Sí\",'Base-datos'!$B$736=\"\",'Base-datos'!$B$737=\"\"),IF(Q108=\"La actividad sí contribuye sustancialmente a la sostenibilidad\",SUM(B108:O108),0),IF(AND('Base-datos'!$B$735=\"Sí\",'Base-datos'!$B$736=\"Sí\",'Base-datos'!$B$737=\"\"),IF(AND(Q108=\"La actividad sí contribuye sustancialmente a la sostenibilidad\",R108=\"La actividad sí contribuye sustancialmente a la sostenibilidad\"),SUM(B108:O108),0),IF(AND('Base-datos'!$B$735=\"Sí\",'Base-datos'!$B$736=\"Sí\",'Base-datos'!$B$737=\"Sí\"),IF(AND(Q108=\"La actividad sí contribuye sustancialmente a la sostenibilidad\",R108=\"La actividad sí contribuye sustancialmente a la sostenibilidad\",P108=\"La actividad sí contribuye sustancialmente a la sostenibilidad\"),SUM(B108:O108),0),IF(AND('Base-datos'!$B$735=\"\",'Base-datos'!$B$736=\"Sí\",'Base-datos'!$B$737=\"\"),IF(R108=\"La actividad sí contribuye sustancialmente a la sostenibilidad\",SUM(B108:O108),0),IF(AND('Base-datos'!$B$735=\"\",'Base-datos'!$B$736=\"\",'Base-datos'!$B$737=\"Sí\"),IF(P108=\"La actividad sí contribuye sustancialmente a la sostenibilidad\",SUM(B108:O108),0),IF(AND('Base-datos'!$B$735=\"\",'Base-datos'!$B$736=\"Sí\",'Base-datos'!$B$737=\"Sí\"),IF(AND(R108=\"La actividad sí contribuye sustancialmente a la sostenibilidad\",P108=\"La actividad sí contribuye sustancialmente a la sostenibilidad\"),SUM(B108:O108),0),IF(AND('Base-datos'!$B$735=\"Sí\",'Base-datos'!$B$736=\"\",'Base-datos'!$B$737=\"Sí\"),IF(AND(Q108=\"La actividad sí contribuye sustancialmente a la sostenibilidad\",P108=\"La actividad sí contribuye sustancialmente a la sostenibilidad\"),SUM(B108:O108),0),\"Por definir\"))))))))","v":"Por definir"}]
[{"$f":"Agua!$C32","v":"Seleccione"},{"$f":"IF(Agua!$E32=Seguros_fianzas!B$12,Agua!$B32,\"\")","v":""},{"$f":"IF(Agua!$E32=Seguros_fianzas!C$12,Agua!$B32,\"\")","v":""},{"$f":"IF(Agua!$E32=Seguros_fianzas!D$12,Agua!$B32,\"\")","v":""},{"$f":"IF(Agua!$E32=Seguros_fianzas!E$12,Agua!$B32,\"\")","v":""},{"$f":"IF(Agua!$E32=Seguros_fianzas!F$12,Agua!$B32,\"\")","v":""},{"$f":"IF(Agua!$E32=Seguros_fianzas!G$12,Agua!$B32,\"\")","v":""},{"$f":"IF(Agua!$E32=Seguros_fianzas!H$12,Agua!$B32,\"\")","v":""},{"$f":"IF(Agua!$E32=Seguros_fianzas!I$12,Agua!$B32,\"\")","v":""},{"$f":"IF(Agua!$E32=Seguros_fianzas!J$12,Agua!$B32,\"\")","v":""},{"$f":"IF(Agua!$E32=Seguros_fianzas!K$12,Agua!$B32,\"\")","v":""},{"$f":"IF(Agua!$E32=Seguros_fianzas!L$12,Agua!$B32,\"\")","v":""},{"$f":"IF(Agua!$E32=Seguros_fianzas!M$12,Agua!$B32,\"\")","v":""},{"$f":"IF(Agua!$E32=Seguros_fianzas!N$12,Agua!$B32,\"\")","v":""},{"$f":"IF(Agua!$E32=Seguros_fianzas!O$12,Agua!$B32,\"\")","v":""},{"$f":"_xlfn.XLOOKUP(A109,'Base-datos'!$B$532:$B$536,'Base-datos'!$F$532:$F$536)","v":{"$error":"#N/A"}},{"$f":"_xlfn.XLOOKUP(A109,'Base-datos'!$B$532:$B$536,'Base-datos'!$C$532:$C$536)","v":{"$error":"#N/A"}},{"$f":"_xlfn.XLOOKUP(A109,'Base-datos'!$B$532:$B$536,'Base-datos'!$D$532:$D$536)","v":{"$error":"#N/A"}},null,null,{"$f":"IF(OR(S$98=\"La actividad no cumple con el total de los criterios de No Daño Significativo\",T$98=\"El sector no cumple con las salvaguardas mínimas\"),\"\",IF(AND('Base-datos'!$B$735=\"Sí\",'Base-datos'!$B$736=\"\",'Base-datos'!$B$737=\"\"),IF(Q109=\"La actividad sí contribuye sustancialmente a la sostenibilidad\",SUM(B109:O109),0),IF(AND('Base-datos'!$B$735=\"Sí\",'Base-datos'!$B$736=\"Sí\",'Base-datos'!$B$737=\"\"),IF(AND(Q109=\"La actividad sí contribuye sustancialmente a la sostenibilidad\",R109=\"La actividad sí contribuye sustancialmente a la sostenibilidad\"),SUM(B109:O109),0),IF(AND('Base-datos'!$B$735=\"Sí\",'Base-datos'!$B$736=\"Sí\",'Base-datos'!$B$737=\"Sí\"),IF(AND(Q109=\"La actividad sí contribuye sustancialmente a la sostenibilidad\",R109=\"La actividad sí contribuye sustancialmente a la sostenibilidad\",P109=\"La actividad sí contribuye sustancialmente a la sostenibilidad\"),SUM(B109:O109),0),IF(AND('Base-datos'!$B$735=\"\",'Base-datos'!$B$736=\"Sí\",'Base-datos'!$B$737=\"\"),IF(R109=\"La actividad sí contribuye sustancialmente a la sostenibilidad\",SUM(B109:O109),0),IF(AND('Base-datos'!$B$735=\"\",'Base-datos'!$B$736=\"\",'Base-datos'!$B$737=\"Sí\"),IF(P109=\"La actividad sí contribuye sustancialmente a la sostenibilidad\",SUM(B109:O109),0),IF(AND('Base-datos'!$B$735=\"\",'Base-datos'!$B$736=\"Sí\",'Base-datos'!$B$737=\"Sí\"),IF(AND(R109=\"La actividad sí contribuye sustancialmente a la sostenibilidad\",P109=\"La actividad sí contribuye sustancialmente a la sostenibilidad\"),SUM(B109:O109),0),IF(AND('Base-datos'!$B$735=\"Sí\",'Base-datos'!$B$736=\"\",'Base-datos'!$B$737=\"Sí\"),IF(AND(Q109=\"La actividad sí contribuye sustancialmente a la sostenibilidad\",P109=\"La actividad sí contribuye sustancialmente a la sostenibilidad\"),SUM(B109:O109),0),\"Por definir\"))))))))","v":"Por definir"}]
[{"$f":"Agua!$C34","v":"Seleccione"},{"$f":"IF(Agua!$E34=Seguros_fianzas!B$12,Agua!$B34,\"\")","v":""},{"$f":"IF(Agua!$E34=Seguros_fianzas!C$12,Agua!$B34,\"\")","v":""},{"$f":"IF(Agua!$E34=Seguros_fianzas!D$12,Agua!$B34,\"\")","v":""},{"$f":"IF(Agua!$E34=Seguros_fianzas!E$12,Agua!$B34,\"\")","v":""},{"$f":"IF(Agua!$E34=Seguros_fianzas!F$12,Agua!$B34,\"\")","v":""},{"$f":"IF(Agua!$E34=Seguros_fianzas!G$12,Agua!$B34,\"\")","v":""},{"$f":"IF(Agua!$E34=Seguros_fianzas!H$12,Agua!$B34,\"\")","v":""},{"$f":"IF(Agua!$E34=Seguros_fianzas!I$12,Agua!$B34,\"\")","v":""},{"$f":"IF(Agua!$E34=Seguros_fianzas!J$12,Agua!$B34,\"\")","v":""},{"$f":"IF(Agua!$E34=Seguros_fianzas!K$12,Agua!$B34,\"\")","v":""},{"$f":"IF(Agua!$E34=Seguros_fianzas!L$12,Agua!$B34,\"\")","v":""},{"$f":"IF(Agua!$E34=Seguros_fianzas!M$12,Agua!$B34,\"\")","v":""},{"$f":"IF(Agua!$E34=Seguros_fianzas!N$12,Agua!$B34,\"\")","v":""},{"$f":"IF(Agua!$E34=Seguros_fianzas!O$12,Agua!$B34,\"\")","v":""},{"$f":"_xlfn.XLOOKUP(A110,'Base-datos'!$B$532:$B$536,'Base-datos'!$F$532:$F$536)","v":{"$error":"#N/A"}},{"$f":"_xlfn.XLOOKUP(A110,'Base-datos'!$B$532:$B$536,'Base-datos'!$C$532:$C$536)","v":{"$error":"#N/A"}},{"$f":"_xlfn.XLOOKUP(A110,'Base-datos'!$B$532:$B$536,'Base-datos'!$D$532:$D$536)","v":{"$error":"#N/A"}},null,null,{"$f":"IF(OR(S$98=\"La actividad no cumple con el total de los criterios de No Daño Significativo\",T$98=\"El sector no cumple con las salvaguardas mínimas\"),\"\",IF(AND('Base-datos'!$B$735=\"Sí\",'Base-datos'!$B$736=\"\",'Base-datos'!$B$737=\"\"),IF(Q110=\"La actividad sí contribuye sustancialmente a la sostenibilidad\",SUM(B110:O110),0),IF(AND('Base-datos'!$B$735=\"Sí\",'Base-datos'!$B$736=\"Sí\",'Base-datos'!$B$737=\"\"),IF(AND(Q110=\"La actividad sí contribuye sustancialmente a la sostenibilidad\",R110=\"La actividad sí contribuye sustancialmente a la sostenibilidad\"),SUM(B110:O110),0),IF(AND('Base-datos'!$B$735=\"Sí\",'Base-datos'!$B$736=\"Sí\",'Base-datos'!$B$737=\"Sí\"),IF(AND(Q110=\"La actividad sí contribuye sustancialmente a la sostenibilidad\",R110=\"La actividad sí contribuye sustancialmente a la sostenibilidad\",P110=\"La actividad sí contribuye sustancialmente a la sostenibilidad\"),SUM(B110:O110),0),IF(AND('Base-datos'!$B$735=\"\",'Base-datos'!$B$736=\"Sí\",'Base-datos'!$B$737=\"\"),IF(R110=\"La actividad sí contribuye sustancialmente a la sostenibilidad\",SUM(B110:O110),0),IF(AND('Base-datos'!$B$735=\"\",'Base-datos'!$B$736=\"\",'Base-datos'!$B$737=\"Sí\"),IF(P110=\"La actividad sí contribuye sustancialmente a la sostenibilidad\",SUM(B110:O110),0),IF(AND('Base-datos'!$B$735=\"\",'Base-datos'!$B$736=\"Sí\",'Base-datos'!$B$737=\"Sí\"),IF(AND(R110=\"La actividad sí contribuye sustancialmente a la sostenibilidad\",P110=\"La actividad sí contribuye sustancialmente a la sostenibilidad\"),SUM(B110:O110),0),IF(AND('Base-datos'!$B$735=\"Sí\",'Base-datos'!$B$736=\"\",'Base-datos'!$B$737=\"Sí\"),IF(AND(Q110=\"La actividad sí contribuye sustancialmente a la sostenibilidad\",P110=\"La actividad sí contribuye sustancialmente a la sostenibilidad\"),SUM(B110:O110),0),\"Por definir\"))))))))","v":"Por definir"}]
[{"$f":"Agua!$C36","v":"Seleccione"},{"$f":"IF(Agua!$E36=Seguros_fianzas!B$12,Agua!$B36,\"\")","v":""},{"$f":"IF(Agua!$E36=Seguros_fianzas!C$12,Agua!$B36,\"\")","v":""},{"$f":"IF(Agua!$E36=Seguros_fianzas!D$12,Agua!$B36,\"\")","v":""},{"$f":"IF(Agua!$E36=Seguros_fianzas!E$12,Agua!$B36,\"\")","v":""},{"$f":"IF(Agua!$E36=Seguros_fianzas!F$12,Agua!$B36,\"\")","v":""},{"$f":"IF(Agua!$E36=Seguros_fianzas!G$12,Agua!$B36,\"\")","v":""},{"$f":"IF(Agua!$E36=Seguros_fianzas!H$12,Agua!$B36,\"\")","v":""},{"$f":"IF(Agua!$E36=Seguros_fianzas!I$12,Agua!$B36,\"\")","v":""},{"$f":"IF(Agua!$E36=Seguros_fianzas!J$12,Agua!$B36,\"\")","v":""},{"$f":"IF(Agua!$E36=Seguros_fianzas!K$12,Agua!$B36,\"\")","v":""},{"$f":"IF(Agua!$E36=Seguros_fianzas!L$12,Agua!$B36,\"\")","v":""},{"$f":"IF(Agua!$E36=Seguros_fianzas!M$12,Agua!$B36,\"\")","v":""},{"$f":"IF(Agua!$E36=Seguros_fianzas!N$12,Agua!$B36,\"\")","v":""},{"$f":"IF(Agua!$E36=Seguros_fianzas!O$12,Agua!$B36,\"\")","v":""},{"$f":"_xlfn.XLOOKUP(A111,'Base-datos'!$B$532:$B$536,'Base-datos'!$F$532:$F$536)","v":{"$error":"#N/A"}},{"$f":"_xlfn.XLOOKUP(A111,'Base-datos'!$B$532:$B$536,'Base-datos'!$C$532:$C$536)","v":{"$error":"#N/A"}},{"$f":"_xlfn.XLOOKUP(A111,'Base-datos'!$B$532:$B$536,'Base-datos'!$D$532:$D$536)","v":{"$error":"#N/A"}},null,null,{"$f":"IF(OR(S$98=\"La actividad no cumple con el total de los criterios de No Daño Significativo\",T$98=\"El sector no cumple con las salvaguardas mínimas\"),\"\",IF(AND('Base-datos'!$B$735=\"Sí\",'Base-datos'!$B$736=\"\",'Base-datos'!$B$737=\"\"),IF(Q111=\"La actividad sí contribuye sustancialmente a la sostenibilidad\",SUM(B111:O111),0),IF(AND('Base-datos'!$B$735=\"Sí\",'Base-datos'!$B$736=\"Sí\",'Base-datos'!$B$737=\"\"),IF(AND(Q111=\"La actividad sí contribuye sustancialmente a la sostenibilidad\",R111=\"La actividad sí contribuye sustancialmente a la sostenibilidad\"),SUM(B111:O111),0),IF(AND('Base-datos'!$B$735=\"Sí\",'Base-datos'!$B$736=\"Sí\",'Base-datos'!$B$737=\"Sí\"),IF(AND(Q111=\"La actividad sí contribuye sustancialmente a la sostenibilidad\",R111=\"La actividad sí contribuye sustancialmente a la sostenibilidad\",P111=\"La actividad sí contribuye sustancialmente a la sostenibilidad\"),SUM(B111:O111),0),IF(AND('Base-datos'!$B$735=\"\",'Base-datos'!$B$736=\"Sí\",'Base-datos'!$B$737=\"\"),IF(R111=\"La actividad sí contribuye sustancialmente a la sostenibilidad\",SUM(B111:O111),0),IF(AND('Base-datos'!$B$735=\"\",'Base-datos'!$B$736=\"\",'Base-datos'!$B$737=\"Sí\"),IF(P111=\"La actividad sí contribuye sustancialmente a la sostenibilidad\",SUM(B111:O111),0),IF(AND('Base-datos'!$B$735=\"\",'Base-datos'!$B$736=\"Sí\",'Base-datos'!$B$737=\"Sí\"),IF(AND(R111=\"La actividad sí contribuye sustancialmente a la sostenibilidad\",P111=\"La actividad sí contribuye sustancialmente a la sostenibilidad\"),SUM(B111:O111),0),IF(AND('Base-datos'!$B$735=\"Sí\",'Base-datos'!$B$736=\"\",'Base-datos'!$B$737=\"Sí\"),IF(AND(Q111=\"La actividad sí contribuye sustancialmente a la sostenibilidad\",P111=\"La actividad sí contribuye sustancialmente a la sostenibilidad\"),SUM(B111:O111),0),\"Por definir\"))))))))","v":"Por definir"}]
[{"$f":"Agua!$C38","v":"Seleccione"},{"$f":"IF(Agua!$E38=Seguros_fianzas!B$12,Agua!$B38,\"\")","v":""},{"$f":"IF(Agua!$E38=Seguros_fianzas!C$12,Agua!$B38,\"\")","v":""},{"$f":"IF(Agua!$E38=Seguros_fianzas!D$12,Agua!$B38,\"\")","v":""},{"$f":"IF(Agua!$E38=Seguros_fianzas!E$12,Agua!$B38,\"\")","v":""},{"$f":"IF(Agua!$E38=Seguros_fianzas!F$12,Agua!$B38,\"\")","v":""},{"$f":"IF(Agua!$E38=Seguros_fianzas!G$12,Agua!$B38,\"\")","v":""},{"$f":"IF(Agua!$E38=Seguros_fianzas!H$12,Agua!$B38,\"\")","v":""},{"$f":"IF(Agua!$E38=Seguros_fianzas!I$12,Agua!$B38,\"\")","v":""},{"$f":"IF(Agua!$E38=Seguros_fianzas!J$12,Agua!$B38,\"\")","v":""},{"$f":"IF(Agua!$E38=Seguros_fianzas!K$12,Agua!$B38,\"\")","v":""},{"$f":"IF(Agua!$E38=Seguros_fianzas!L$12,Agua!$B38,\"\")","v":""},{"$f":"IF(Agua!$E38=Seguros_fianzas!M$12,Agua!$B38,\"\")","v":""},{"$f":"IF(Agua!$E38=Seguros_fianzas!N$12,Agua!$B38,\"\")","v":""},{"$f":"IF(Agua!$E38=Seguros_fianzas!O$12,Agua!$B38,\"\")","v":""},{"$f":"_xlfn.XLOOKUP(A112,'Base-datos'!$B$532:$B$536,'Base-datos'!$F$532:$F$536)","v":{"$error":"#N/A"}},{"$f":"_xlfn.XLOOKUP(A112,'Base-datos'!$B$532:$B$536,'Base-datos'!$C$532:$C$536)","v":{"$error":"#N/A"}},{"$f":"_xlfn.XLOOKUP(A112,'Base-datos'!$B$532:$B$536,'Base-datos'!$D$532:$D$536)","v":{"$error":"#N/A"}},null,null,{"$f":"IF(OR(S$98=\"La actividad no cumple con el total de los criterios de No Daño Significativo\",T$98=\"El sector no cumple con las salvaguardas mínimas\"),\"\",IF(AND('Base-datos'!$B$735=\"Sí\",'Base-datos'!$B$736=\"\",'Base-datos'!$B$737=\"\"),IF(Q112=\"La actividad sí contribuye sustancialmente a la sostenibilidad\",SUM(B112:O112),0),IF(AND('Base-datos'!$B$735=\"Sí\",'Base-datos'!$B$736=\"Sí\",'Base-datos'!$B$737=\"\"),IF(AND(Q112=\"La actividad sí contribuye sustancialmente a la sostenibilidad\",R112=\"La actividad sí contribuye sustancialmente a la sostenibilidad\"),SUM(B112:O112),0),IF(AND('Base-datos'!$B$735=\"Sí\",'Base-datos'!$B$736=\"Sí\",'Base-datos'!$B$737=\"Sí\"),IF(AND(Q112=\"La actividad sí contribuye sustancialmente a la sostenibilidad\",R112=\"La actividad sí contribuye sustancialmente a la sostenibilidad\",P112=\"La actividad sí contribuye sustancialmente a la sostenibilidad\"),SUM(B112:O112),0),IF(AND('Base-datos'!$B$735=\"\",'Base-datos'!$B$736=\"Sí\",'Base-datos'!$B$737=\"\"),IF(R112=\"La actividad sí contribuye sustancialmente a la sostenibilidad\",SUM(B112:O112),0),IF(AND('Base-datos'!$B$735=\"\",'Base-datos'!$B$736=\"\",'Base-datos'!$B$737=\"Sí\"),IF(P112=\"La actividad sí contribuye sustancialmente a la sostenibilidad\",SUM(B112:O112),0),IF(AND('Base-datos'!$B$735=\"\",'Base-datos'!$B$736=\"Sí\",'Base-datos'!$B$737=\"Sí\"),IF(AND(R112=\"La actividad sí contribuye sustancialmente a la sostenibilidad\",P112=\"La actividad sí contribuye sustancialmente a la sostenibilidad\"),SUM(B112:O112),0),IF(AND('Base-datos'!$B$735=\"Sí\",'Base-datos'!$B$736=\"\",'Base-datos'!$B$737=\"Sí\"),IF(AND(Q112=\"La actividad sí contribuye sustancialmente a la sostenibilidad\",P112=\"La actividad sí contribuye sustancialmente a la sostenibilidad\"),SUM(B112:O112),0),\"Por definir\"))))))))","v":"Por definir"}]
[{"$f":"Agua!$C40","v":"Seleccione"},{"$f":"IF(Agua!$E40=Seguros_fianzas!B$12,Agua!$B40,\"\")","v":""},{"$f":"IF(Agua!$E40=Seguros_fianzas!C$12,Agua!$B40,\"\")","v":""},{"$f":"IF(Agua!$E40=Seguros_fianzas!D$12,Agua!$B40,\"\")","v":""},{"$f":"IF(Agua!$E40=Seguros_fianzas!E$12,Agua!$B40,\"\")","v":""},{"$f":"IF(Agua!$E40=Seguros_fianzas!F$12,Agua!$B40,\"\")","v":""},{"$f":"IF(Agua!$E40=Seguros_fianzas!G$12,Agua!$B40,\"\")","v":""},{"$f":"IF(Agua!$E40=Seguros_fianzas!H$12,Agua!$B40,\"\")","v":""},{"$f":"IF(Agua!$E40=Seguros_fianzas!I$12,Agua!$B40,\"\")","v":""},{"$f":"IF(Agua!$E40=Seguros_fianzas!J$12,Agua!$B40,\"\")","v":""},{"$f":"IF(Agua!$E40=Seguros_fianzas!K$12,Agua!$B40,\"\")","v":""},{"$f":"IF(Agua!$E40=Seguros_fianzas!L$12,Agua!$B40,\"\")","v":""},{"$f":"IF(Agua!$E40=Seguros_fianzas!M$12,Agua!$B40,\"\")","v":""},{"$f":"IF(Agua!$E40=Seguros_fianzas!N$12,Agua!$B40,\"\")","v":""},{"$f":"IF(Agua!$E40=Seguros_fianzas!O$12,Agua!$B40,\"\")","v":""},{"$f":"_xlfn.XLOOKUP(A113,'Base-datos'!$B$532:$B$536,'Base-datos'!$F$532:$F$536)","v":{"$error":"#N/A"}},{"$f":"_xlfn.XLOOKUP(A113,'Base-datos'!$B$532:$B$536,'Base-datos'!$C$532:$C$536)","v":{"$error":"#N/A"}},{"$f":"_xlfn.XLOOKUP(A113,'Base-datos'!$B$532:$B$536,'Base-datos'!$D$532:$D$536)","v":{"$error":"#N/A"}},null,null,{"$f":"IF(OR(S$98=\"La actividad no cumple con el total de los criterios de No Daño Significativo\",T$98=\"El sector no cumple con las salvaguardas mínimas\"),\"\",IF(AND('Base-datos'!$B$735=\"Sí\",'Base-datos'!$B$736=\"\",'Base-datos'!$B$737=\"\"),IF(Q113=\"La actividad sí contribuye sustancialmente a la sostenibilidad\",SUM(B113:O113),0),IF(AND('Base-datos'!$B$735=\"Sí\",'Base-datos'!$B$736=\"Sí\",'Base-datos'!$B$737=\"\"),IF(AND(Q113=\"La actividad sí contribuye sustancialmente a la sostenibilidad\",R113=\"La actividad sí contribuye sustancialmente a la sostenibilidad\"),SUM(B113:O113),0),IF(AND('Base-datos'!$B$735=\"Sí\",'Base-datos'!$B$736=\"Sí\",'Base-datos'!$B$737=\"Sí\"),IF(AND(Q113=\"La actividad sí contribuye sustancialmente a la sostenibilidad\",R113=\"La actividad sí contribuye sustancialmente a la sostenibilidad\",P113=\"La actividad sí contribuye sustancialmente a la sostenibilidad\"),SUM(B113:O113),0),IF(AND('Base-datos'!$B$735=\"\",'Base-datos'!$B$736=\"Sí\",'Base-datos'!$B$737=\"\"),IF(R113=\"La actividad sí contribuye sustancialmente a la sostenibilidad\",SUM(B113:O113),0),IF(AND('Base-datos'!$B$735=\"\",'Base-datos'!$B$736=\"\",'Base-datos'!$B$737=\"Sí\"),IF(P113=\"La actividad sí contribuye sustancialmente a la sostenibilidad\",SUM(B113:O113),0),IF(AND('Base-datos'!$B$735=\"\",'Base-datos'!$B$736=\"Sí\",'Base-datos'!$B$737=\"Sí\"),IF(AND(R113=\"La actividad sí contribuye sustancialmente a la sostenibilidad\",P113=\"La actividad sí contribuye sustancialmente a la sostenibilidad\"),SUM(B113:O113),0),IF(AND('Base-datos'!$B$735=\"Sí\",'Base-datos'!$B$736=\"\",'Base-datos'!$B$737=\"Sí\"),IF(AND(Q113=\"La actividad sí contribuye sustancialmente a la sostenibilidad\",P113=\"La actividad sí contribuye sustancialmente a la sostenibilidad\"),SUM(B113:O113),0),\"Por definir\"))))))))","v":"Por definir"}]
[{"$f":"Agua!$C42","v":"Seleccione"},{"$f":"IF(Agua!$E42=Seguros_fianzas!B$12,Agua!$B42,\"\")","v":""},{"$f":"IF(Agua!$E42=Seguros_fianzas!C$12,Agua!$B42,\"\")","v":""},{"$f":"IF(Agua!$E42=Seguros_fianzas!D$12,Agua!$B42,\"\")","v":""},{"$f":"IF(Agua!$E42=Seguros_fianzas!E$12,Agua!$B42,\"\")","v":""},{"$f":"IF(Agua!$E42=Seguros_fianzas!F$12,Agua!$B42,\"\")","v":""},{"$f":"IF(Agua!$E42=Seguros_fianzas!G$12,Agua!$B42,\"\")","v":""},{"$f":"IF(Agua!$E42=Seguros_fianzas!H$12,Agua!$B42,\"\")","v":""},{"$f":"IF(Agua!$E42=Seguros_fianzas!I$12,Agua!$B42,\"\")","v":""},{"$f":"IF(Agua!$E42=Seguros_fianzas!J$12,Agua!$B42,\"\")","v":""},{"$f":"IF(Agua!$E42=Seguros_fianzas!K$12,Agua!$B42,\"\")","v":""},{"$f":"IF(Agua!$E42=Seguros_fianzas!L$12,Agua!$B42,\"\")","v":""},{"$f":"IF(Agua!$E42=Seguros_fianzas!M$12,Agua!$B42,\"\")","v":""},{"$f":"IF(Agua!$E42=Seguros_fianzas!N$12,Agua!$B42,\"\")","v":""},{"$f":"IF(Agua!$E42=Seguros_fianzas!O$12,Agua!$B42,\"\")","v":""},{"$f":"_xlfn.XLOOKUP(A114,'Base-datos'!$B$532:$B$536,'Base-datos'!$F$532:$F$536)","v":{"$error":"#N/A"}},{"$f":"_xlfn.XLOOKUP(A114,'Base-datos'!$B$532:$B$536,'Base-datos'!$C$532:$C$536)","v":{"$error":"#N/A"}},{"$f":"_xlfn.XLOOKUP(A114,'Base-datos'!$B$532:$B$536,'Base-datos'!$D$532:$D$536)","v":{"$error":"#N/A"}},null,null,{"$f":"IF(OR(S$98=\"La actividad no cumple con el total de los criterios de No Daño Significativo\",T$98=\"El sector no cumple con las salvaguardas mínimas\"),\"\",IF(AND('Base-datos'!$B$735=\"Sí\",'Base-datos'!$B$736=\"\",'Base-datos'!$B$737=\"\"),IF(Q114=\"La actividad sí contribuye sustancialmente a la sostenibilidad\",SUM(B114:O114),0),IF(AND('Base-datos'!$B$735=\"Sí\",'Base-datos'!$B$736=\"Sí\",'Base-datos'!$B$737=\"\"),IF(AND(Q114=\"La actividad sí contribuye sustancialmente a la sostenibilidad\",R114=\"La actividad sí contribuye sustancialmente a la sostenibilidad\"),SUM(B114:O114),0),IF(AND('Base-datos'!$B$735=\"Sí\",'Base-datos'!$B$736=\"Sí\",'Base-datos'!$B$737=\"Sí\"),IF(AND(Q114=\"La actividad sí contribuye sustancialmente a la sostenibilidad\",R114=\"La actividad sí contribuye sustancialmente a la sostenibilidad\",P114=\"La actividad sí contribuye sustancialmente a la sostenibilidad\"),SUM(B114:O114),0),IF(AND('Base-datos'!$B$735=\"\",'Base-datos'!$B$736=\"Sí\",'Base-datos'!$B$737=\"\"),IF(R114=\"La actividad sí contribuye sustancialmente a la sostenibilidad\",SUM(B114:O114),0),IF(AND('Base-datos'!$B$735=\"\",'Base-datos'!$B$736=\"\",'Base-datos'!$B$737=\"Sí\"),IF(P114=\"La actividad sí contribuye sustancialmente a la sostenibilidad\",SUM(B114:O114),0),IF(AND('Base-datos'!$B$735=\"\",'Base-datos'!$B$736=\"Sí\",'Base-datos'!$B$737=\"Sí\"),IF(AND(R114=\"La actividad sí contribuye sustancialmente a la sostenibilidad\",P114=\"La actividad sí contribuye sustancialmente a la sostenibilidad\"),SUM(B114:O114),0),IF(AND('Base-datos'!$B$735=\"Sí\",'Base-datos'!$B$736=\"\",'Base-datos'!$B$737=\"Sí\"),IF(AND(Q114=\"La actividad sí contribuye sustancialmente a la sostenibilidad\",P114=\"La actividad sí contribuye sustancialmente a la sostenibilidad\"),SUM(B114:O114),0),\"Por definir\"))))))))","v":"Por definir"}]
[{"$f":"Agua!$C44","v":"Seleccione"},{"$f":"IF(Agua!$E44=Seguros_fianzas!B$12,Agua!$B44,\"\")","v":""},{"$f":"IF(Agua!$E44=Seguros_fianzas!C$12,Agua!$B44,\"\")","v":""},{"$f":"IF(Agua!$E44=Seguros_fianzas!D$12,Agua!$B44,\"\")","v":""},{"$f":"IF(Agua!$E44=Seguros_fianzas!E$12,Agua!$B44,\"\")","v":""},{"$f":"IF(Agua!$E44=Seguros_fianzas!F$12,Agua!$B44,\"\")","v":""},{"$f":"IF(Agua!$E44=Seguros_fianzas!G$12,Agua!$B44,\"\")","v":""},{"$f":"IF(Agua!$E44=Seguros_fianzas!H$12,Agua!$B44,\"\")","v":""},{"$f":"IF(Agua!$E44=Seguros_fianzas!I$12,Agua!$B44,\"\")","v":""},{"$f":"IF(Agua!$E44=Seguros_fianzas!J$12,Agua!$B44,\"\")","v":""},{"$f":"IF(Agua!$E44=Seguros_fianzas!K$12,Agua!$B44,\"\")","v":""},{"$f":"IF(Agua!$E44=Seguros_fianzas!L$12,Agua!$B44,\"\")","v":""},{"$f":"IF(Agua!$E44=Seguros_fianzas!M$12,Agua!$B44,\"\")","v":""},{"$f":"IF(Agua!$E44=Seguros_fianzas!N$12,Agua!$B44,\"\")","v":""},{"$f":"IF(Agua!$E44=Seguros_fianzas!O$12,Agua!$B44,\"\")","v":""},{"$f":"_xlfn.XLOOKUP(A115,'Base-datos'!$B$532:$B$536,'Base-datos'!$F$532:$F$536)","v":{"$error":"#N/A"}},{"$f":"_xlfn.XLOOKUP(A115,'Base-datos'!$B$532:$B$536,'Base-datos'!$C$532:$C$536)","v":{"$error":"#N/A"}},{"$f":"_xlfn.XLOOKUP(A115,'Base-datos'!$B$532:$B$536,'Base-datos'!$D$532:$D$536)","v":{"$error":"#N/A"}},null,null,{"$f":"IF(OR(S$98=\"La actividad no cumple con el total de los criterios de No Daño Significativo\",T$98=\"El sector no cumple con las salvaguardas mínimas\"),\"\",IF(AND('Base-datos'!$B$735=\"Sí\",'Base-datos'!$B$736=\"\",'Base-datos'!$B$737=\"\"),IF(Q115=\"La actividad sí contribuye sustancialmente a la sostenibilidad\",SUM(B115:O115),0),IF(AND('Base-datos'!$B$735=\"Sí\",'Base-datos'!$B$736=\"Sí\",'Base-datos'!$B$737=\"\"),IF(AND(Q115=\"La actividad sí contribuye sustancialmente a la sostenibilidad\",R115=\"La actividad sí contribuye sustancialmente a la sostenibilidad\"),SUM(B115:O115),0),IF(AND('Base-datos'!$B$735=\"Sí\",'Base-datos'!$B$736=\"Sí\",'Base-datos'!$B$737=\"Sí\"),IF(AND(Q115=\"La actividad sí contribuye sustancialmente a la sostenibilidad\",R115=\"La actividad sí contribuye sustancialmente a la sostenibilidad\",P115=\"La actividad sí contribuye sustancialmente a la sostenibilidad\"),SUM(B115:O115),0),IF(AND('Base-datos'!$B$735=\"\",'Base-datos'!$B$736=\"Sí\",'Base-datos'!$B$737=\"\"),IF(R115=\"La actividad sí contribuye sustancialmente a la sostenibilidad\",SUM(B115:O115),0),IF(AND('Base-datos'!$B$735=\"\",'Base-datos'!$B$736=\"\",'Base-datos'!$B$737=\"Sí\"),IF(P115=\"La actividad sí contribuye sustancialmente a la sostenibilidad\",SUM(B115:O115),0),IF(AND('Base-datos'!$B$735=\"\",'Base-datos'!$B$736=\"Sí\",'Base-datos'!$B$737=\"Sí\"),IF(AND(R115=\"La actividad sí contribuye sustancialmente a la sostenibilidad\",P115=\"La actividad sí contribuye sustancialmente a la sostenibilidad\"),SUM(B115:O115),0),IF(AND('Base-datos'!$B$735=\"Sí\",'Base-datos'!$B$736=\"\",'Base-datos'!$B$737=\"Sí\"),IF(AND(Q115=\"La actividad sí contribuye sustancialmente a la sostenibilidad\",P115=\"La actividad sí contribuye sustancialmente a la sostenibilidad\"),SUM(B115:O115),0),\"Por definir\"))))))))","v":"Por definir"}]
[{"$f":"Agua!$C46","v":"Seleccione"},{"$f":"IF(Agua!$E46=Seguros_fianzas!B$12,Agua!$B46,\"\")","v":""},{"$f":"IF(Agua!$E46=Seguros_fianzas!C$12,Agua!$B46,\"\")","v":""},{"$f":"IF(Agua!$E46=Seguros_fianzas!D$12,Agua!$B46,\"\")","v":""},{"$f":"IF(Agua!$E46=Seguros_fianzas!E$12,Agua!$B46,\"\")","v":""},{"$f":"IF(Agua!$E46=Seguros_fianzas!F$12,Agua!$B46,\"\")","v":""},{"$f":"IF(Agua!$E46=Seguros_fianzas!G$12,Agua!$B46,\"\")","v":""},{"$f":"IF(Agua!$E46=Seguros_fianzas!H$12,Agua!$B46,\"\")","v":""},{"$f":"IF(Agua!$E46=Seguros_fianzas!I$12,Agua!$B46,\"\")","v":""},{"$f":"IF(Agua!$E46=Seguros_fianzas!J$12,Agua!$B46,\"\")","v":""},{"$f":"IF(Agua!$E46=Seguros_fianzas!K$12,Agua!$B46,\"\")","v":""},{"$f":"IF(Agua!$E46=Seguros_fianzas!L$12,Agua!$B46,\"\")","v":""},{"$f":"IF(Agua!$E46=Seguros_fianzas!M$12,Agua!$B46,\"\")","v":""},{"$f":"IF(Agua!$E46=Seguros_fianzas!N$12,Agua!$B46,\"\")","v":""},{"$f":"IF(Agua!$E46=Seguros_fianzas!O$12,Agua!$B46,\"\")","v":""},{"$f":"_xlfn.XLOOKUP(A116,'Base-datos'!$B$532:$B$536,'Base-datos'!$F$532:$F$536)","v":{"$error":"#N/A"}},{"$f":"_xlfn.XLOOKUP(A116,'Base-datos'!$B$532:$B$536,'Base-datos'!$C$532:$C$536)","v":{"$error":"#N/A"}},{"$f":"_xlfn.XLOOKUP(A116,'Base-datos'!$B$532:$B$536,'Base-datos'!$D$532:$D$536)","v":{"$error":"#N/A"}},null,null,{"$f":"IF(OR(S$98=\"La actividad no cumple con el total de los criterios de No Daño Significativo\",T$98=\"El sector no cumple con las salvaguardas mínimas\"),\"\",IF(AND('Base-datos'!$B$735=\"Sí\",'Base-datos'!$B$736=\"\",'Base-datos'!$B$737=\"\"),IF(Q116=\"La actividad sí contribuye sustancialmente a la sostenibilidad\",SUM(B116:O116),0),IF(AND('Base-datos'!$B$735=\"Sí\",'Base-datos'!$B$736=\"Sí\",'Base-datos'!$B$737=\"\"),IF(AND(Q116=\"La actividad sí contribuye sustancialmente a la sostenibilidad\",R116=\"La actividad sí contribuye sustancialmente a la sostenibilidad\"),SUM(B116:O116),0),IF(AND('Base-datos'!$B$735=\"Sí\",'Base-datos'!$B$736=\"Sí\",'Base-datos'!$B$737=\"Sí\"),IF(AND(Q116=\"La actividad sí contribuye sustancialmente a la sostenibilidad\",R116=\"La actividad sí contribuye sustancialmente a la sostenibilidad\",P116=\"La actividad sí contribuye sustancialmente a la sostenibilidad\"),SUM(B116:O116),0),IF(AND('Base-datos'!$B$735=\"\",'Base-datos'!$B$736=\"Sí\",'Base-datos'!$B$737=\"\"),IF(R116=\"La actividad sí contribuye sustancialmente a la sostenibilidad\",SUM(B116:O116),0),IF(AND('Base-datos'!$B$735=\"\",'Base-datos'!$B$736=\"\",'Base-datos'!$B$737=\"Sí\"),IF(P116=\"La actividad sí contribuye sustancialmente a la sostenibilidad\",SUM(B116:O116),0),IF(AND('Base-datos'!$B$735=\"\",'Base-datos'!$B$736=\"Sí\",'Base-datos'!$B$737=\"Sí\"),IF(AND(R116=\"La actividad sí contribuye sustancialmente a la sostenibilidad\",P116=\"La actividad sí contribuye sustancialmente a la sostenibilidad\"),SUM(B116:O116),0),IF(AND('Base-datos'!$B$735=\"Sí\",'Base-datos'!$B$736=\"\",'Base-datos'!$B$737=\"Sí\"),IF(AND(Q116=\"La actividad sí contribuye sustancialmente a la sostenibilidad\",P116=\"La actividad sí contribuye sustancialmente a la sostenibilidad\"),SUM(B116:O116),0),\"Por definir\"))))))))","v":"Por definir"}]
[{"$f":"Agua!$C48","v":"Seleccione"},{"$f":"IF(Agua!$E48=Seguros_fianzas!B$12,Agua!$B48,\"\")","v":""},{"$f":"IF(Agua!$E48=Seguros_fianzas!C$12,Agua!$B48,\"\")","v":""},{"$f":"IF(Agua!$E48=Seguros_fianzas!D$12,Agua!$B48,\"\")","v":""},{"$f":"IF(Agua!$E48=Seguros_fianzas!E$12,Agua!$B48,\"\")","v":""},{"$f":"IF(Agua!$E48=Seguros_fianzas!F$12,Agua!$B48,\"\")","v":""},{"$f":"IF(Agua!$E48=Seguros_fianzas!G$12,Agua!$B48,\"\")","v":""},{"$f":"IF(Agua!$E48=Seguros_fianzas!H$12,Agua!$B48,\"\")","v":""},{"$f":"IF(Agua!$E48=Seguros_fianzas!I$12,Agua!$B48,\"\")","v":""},{"$f":"IF(Agua!$E48=Seguros_fianzas!J$12,Agua!$B48,\"\")","v":""},{"$f":"IF(Agua!$E48=Seguros_fianzas!K$12,Agua!$B48,\"\")","v":""},{"$f":"IF(Agua!$E48=Seguros_fianzas!L$12,Agua!$B48,\"\")","v":""},{"$f":"IF(Agua!$E48=Seguros_fianzas!M$12,Agua!$B48,\"\")","v":""},{"$f":"IF(Agua!$E48=Seguros_fianzas!N$12,Agua!$B48,\"\")","v":""},{"$f":"IF(Agua!$E48=Seguros_fianzas!O$12,Agua!$B48,\"\")","v":""},{"$f":"_xlfn.XLOOKUP(A117,'Base-datos'!$B$532:$B$536,'Base-datos'!$F$532:$F$536)","v":{"$error":"#N/A"}},{"$f":"_xlfn.XLOOKUP(A117,'Base-datos'!$B$532:$B$536,'Base-datos'!$C$532:$C$536)","v":{"$error":"#N/A"}},{"$f":"_xlfn.XLOOKUP(A117,'Base-datos'!$B$532:$B$536,'Base-datos'!$D$532:$D$536)","v":{"$error":"#N/A"}},null,null,{"$f":"IF(OR(S$98=\"La actividad no cumple con el total de los criterios de No Daño Significativo\",T$98=\"El sector no cumple con las salvaguardas mínimas\"),\"\",IF(AND('Base-datos'!$B$735=\"Sí\",'Base-datos'!$B$736=\"\",'Base-datos'!$B$737=\"\"),IF(Q117=\"La actividad sí contribuye sustancialmente a la sostenibilidad\",SUM(B117:O117),0),IF(AND('Base-datos'!$B$735=\"Sí\",'Base-datos'!$B$736=\"Sí\",'Base-datos'!$B$737=\"\"),IF(AND(Q117=\"La actividad sí contribuye sustancialmente a la sostenibilidad\",R117=\"La actividad sí contribuye sustancialmente a la sostenibilidad\"),SUM(B117:O117),0),IF(AND('Base-datos'!$B$735=\"Sí\",'Base-datos'!$B$736=\"Sí\",'Base-datos'!$B$737=\"Sí\"),IF(AND(Q117=\"La actividad sí contribuye sustancialmente a la sostenibilidad\",R117=\"La actividad sí contribuye sustancialmente a la sostenibilidad\",P117=\"La actividad sí contribuye sustancialmente a la sostenibilidad\"),SUM(B117:O117),0),IF(AND('Base-datos'!$B$735=\"\",'Base-datos'!$B$736=\"Sí\",'Base-datos'!$B$737=\"\"),IF(R117=\"La actividad sí contribuye sustancialmente a la sostenibilidad\",SUM(B117:O117),0),IF(AND('Base-datos'!$B$735=\"\",'Base-datos'!$B$736=\"\",'Base-datos'!$B$737=\"Sí\"),IF(P117=\"La actividad sí contribuye sustancialmente a la sostenibilidad\",SUM(B117:O117),0),IF(AND('Base-datos'!$B$735=\"\",'Base-datos'!$B$736=\"Sí\",'Base-datos'!$B$737=\"Sí\"),IF(AND(R117=\"La actividad sí contribuye sustancialmente a la sostenibilidad\",P117=\"La actividad sí contribuye sustancialmente a la sostenibilidad\"),SUM(B117:O117),0),IF(AND('Base-datos'!$B$735=\"Sí\",'Base-datos'!$B$736=\"\",'Base-datos'!$B$737=\"Sí\"),IF(AND(Q117=\"La actividad sí contribuye sustancialmente a la sostenibilidad\",P117=\"La actividad sí contribuye sustancialmente a la sostenibilidad\"),SUM(B117:O117),0),\"Por definir\"))))))))","v":"Por definir"}]
["Construcción",null,null,null,null,null,null,null,null,null,null,null,null,null,null,null,null,null,null,null,{"$f":"SUM(IF(FREQUENCY(MATCH(A119:A138, A119:A138, 0), MATCH(A119:A138, A119:A138, 0)) > 0, IF(NOT(ISERROR(U119:U138)), U119:U138, 0)))","v":0}]
[{"$f":"Construcción!$C10","v":"Seleccione"},{"$f":"IF(Construcción!$E10=Seguros_fianzas!B$12,Construcción!$B10,\"\")","v":""},{"$f":"IF(Construcción!$E10=Seguros_fianzas!C$12,Construcción!$B10,\"\")","v":""},{"$f":"IF(Construcción!$E10=Seguros_fianzas!D$12,Construcción!$B10,\"\")","v":""},{"$f":"IF(Construcción!$E10=Seguros_fianzas!E$12,Construcción!$B10,\"\")","v":""},{"$f":"IF(Construcción!$E10=Seguros_fianzas!F$12,Construcción!$B10,\"\")","v":""},{"$f":"IF(Construcción!$E10=Seguros_fianzas!G$12,Construcción!$B10,\"\")","v":""},{"$f":"IF(Construcción!$E10=Seguros_fianzas!H$12,Construcción!$B10,\"\")","v":""},{"$f":"IF(Construcción!$E10=Seguros_fianzas!I$12,Construcción!$B10,\"\")","v":""},{"$f":"IF(Construcción!$E10=Seguros_fianzas!J$12,Construcción!$B10,\"\")","v":""},{"$f":"IF(Construcción!$E10=Seguros_fianzas!K$12,Construcción!$B10,\"\")","v":""},{"$f":"IF(Construcción!$E10=Seguros_fianzas!L$12,Construcción!$B10,\"\")","v":""},{"$f":"IF(Construcción!$E10=Seguros_fianzas!M$12,Construcción!$B10,\"\")","v":""},{"$f":"IF(Construcción!$E10=Seguros_fianzas!N$12,Construcción!$B10,\"\")","v":""},{"$f":"IF(Construcción!$E10=Seguros_fianzas!O$12,Construcción!$B10,\"\")","v":""},{"$f":"_xlfn.XLOOKUP(A119,'Base-datos'!$B$537:$B$546,'Base-datos'!$F$537:$F$546)","v":{"$error":"#N/A"}},{"$f":"_xlfn.XLOOKUP(A119,'Base-datos'!$B$537:$B$546,'Base-datos'!$C$537:$C$546)","v":{"$error":"#N/A"}},{"$f":"_xlfn.XLOOKUP(A119,'Base-datos'!$B$537:$B$546,'Base-datos'!$D$537:$D$546)","v":{"$error":"#N/A"}},{"$f":"IF(COUNTIF('Construcción-NDS'!G8:G138,\"No\")>0,\"La actividad no cumple con el total de los criterios de NDS\",\"La actividad cumple con los criterios de No Daño Significativo\")","v":"La actividad cumple con los criterios de No Daño Significativo"},{"$f":"IF(OR('Salvaguardas mínimas'!$G$10=\"Seleccione\",'Salvaguardas mínimas'!$G$13=\"Seleccione\",'Salvaguardas mínimas'!$G$16=\"Seleccione\",'Salvaguardas mínimas'!$G$7=\"Seleccione\"),\"No se han respondido todas las preguntas\",IF(OR('Salvaguardas mínimas'!$G$10=\"No\",'Salvaguardas mínimas'!$G$13=\"No\",'Salvaguardas mínimas'!$G$16=\"No\",'Salvaguardas mínimas'!$G$7=\"No\"),\"El sector no cumple con las salvaguardas mínimas\",\"La actividad sí cumple con las salvaguardas mínimas\"))","v":"No se han respondido todas las preguntas"},{"$f":"IF(OR(S$119=\"La actividad no cumple con el total de los criterios de No Daño Significativo\",T$119=\"El sector no cumple con las salvaguardas mínimas\"),\"\",IF(AND('Base-datos'!$B$740=\"Sí\",'Base-datos'!$B$741=\"\",'Base-datos'!$B$742=\"\"),IF(Q119=\"La actividad sí contribuye sustancialmente a la sostenibilidad\",SUM(B119:O119),0),IF(AND('Base-datos'!$B$740=\"Sí\",'Base-datos'!$B$741=\"Sí\",'Base-datos'!$B$742=\"\"),IF(AND(Q119=\"La actividad sí contribuye sustancialmente a la sostenibilidad\",R119=\"La actividad sí contribuye sustancialmente a la sostenibilidad\"),SUM(B119:O119),0),IF(AND('Base-datos'!$B$740=\"Sí\",'Base-datos'!$B$741=\"Sí\",'Base-datos'!$B$742=\"Sí\"),IF(AND(Q119=\"La actividad sí contribuye sustancialmente a la sostenibilidad\",R119=\"La actividad sí contribuye sustancialmente a la sostenibilidad\",P119=\"La actividad sí contribuye sustancialmente a la sostenibilidad\"),SUM(B119:O119),0),IF(AND('Base-datos'!$B$740=\"\",'Base-datos'!$B$741=\"Sí\",'Base-datos'!$B$742=\"\"),IF(R119=\"La actividad sí contribuye sustancialmente a la sostenibilidad\",SUM(B119:O119),0),IF(AND('Base-datos'!$B$740=\"\",'Base-datos'!$B$741=\"\",'Base-datos'!$B$742=\"Sí\"),IF(P119=\"La actividad sí contribuye sustancialmente a la sostenibilidad\",SUM(B119:O119),0),IF(AND('Base-datos'!$B$740=\"\",'Base-datos'!$B$741=\"Sí\",'Base-datos'!$B$742=\"Sí\"),IF(AND(R119=\"La actividad sí contribuye sustancialmente a la sostenibilidad\",P119=\"La actividad sí contribuye sustancialmente a la sostenibilidad\"),SUM(B119:O119),0),IF(AND('Base-datos'!$B$740=\"Sí\",'Base-datos'!$B$741=\"\",'Base-datos'!$B$742=\"Sí\"),IF(AND(Q119=\"La actividad sí contribuye sustancialmente a la sostenibilidad\",P119=\"La actividad sí contribuye sustancialmente a la sostenibilidad\"),SUM(B119:O119),0),\"Por definir\"))))))))","v":"Por definir"}]
[{"$f":"Construcción!$C12","v":"Seleccione"},{"$f":"IF(Construcción!$E12=Seguros_fianzas!B$12,Construcción!$B12,\"\")","v":""},{"$f":"IF(Construcción!$E12=Seguros_fianzas!C$12,Construcción!$B12,\"\")","v":""},{"$f":"IF(Construcción!$E12=Seguros_fianzas!D$12,Construcción!$B12,\"\")","v":""},{"$f":"IF(Construcción!$E12=Seguros_fianzas!E$12,Construcción!$B12,\"\")","v":""},{"$f":"IF(Construcción!$E12=Seguros_fianzas!F$12,Construcción!$B12,\"\")","v":""},{"$f":"IF(Construcción!$E12=Seguros_fianzas!G$12,Construcción!$B12,\"\")","v":""},{"$f":"IF(Construcción!$E12=Seguros_fianzas!H$12,Construcción!$B12,\"\")","v":""},{"$f":"IF(Construcción!$E12=Seguros_fianzas!I$12,Construcción!$B12,\"\")","v":""},{"$f":"IF(Construcción!$E12=Seguros_fianzas!J$12,Construcción!$B12,\"\")","v":""},{"$f":"IF(Construcción!$E12=Seguros_fianzas!K$12,Construcción!$B12,\"\")","v":""},{"$f":"IF(Construcción!$E12=Seguros_fianzas!L$12,Construcción!$B12,\"\")","v":""},{"$f":"IF(Construcción!$E12=Seguros_fianzas!M$12,Construcción!$B12,\"\")","v":""},{"$f":"IF(Construcción!$E12=Seguros_fianzas!N$12,Construcción!$B12,\"\")","v":""},{"$f":"IF(Construcción!$E12=Seguros_fianzas!O$12,Construcción!$B12,\"\")","v":""},{"$f":"_xlfn.XLOOKUP(A120,'Base-datos'!$B$537:$B$546,'Base-datos'!$F$537:$F$546)","v":{"$error":"#N/A"}},{"$f":"_xlfn.XLOOKUP(A120,'Base-datos'!$B$537:$B$546,'Base-datos'!$C$537:$C$546)","v":{"$error":"#N/A"}},{"$f":"_xlfn.XLOOKUP(A120,'Base-datos'!$B$537:$B$546,'Base-datos'!$D$537:$D$546)","v":{"$error":"#N/A"}},null,null,{"$f":"IF(OR(S$119=\"La actividad no cumple con el total de los criterios de No Daño Significativo\",T$119=\"El sector no cumple con las salvaguardas mínimas\"),\"\",IF(AND('Base-datos'!$B$740=\"Sí\",'Base-datos'!$B$741=\"\",'Base-datos'!$B$742=\"\"),IF(Q120=\"La actividad sí contribuye sustancialmente a la sostenibilidad\",SUM(B120:O120),0),IF(AND('Base-datos'!$B$740=\"Sí\",'Base-datos'!$B$741=\"Sí\",'Base-datos'!$B$742=\"\"),IF(AND(Q120=\"La actividad sí contribuye sustancialmente a la sostenibilidad\",R120=\"La actividad sí contribuye sustancialmente a la sostenibilidad\"),SUM(B120:O120),0),IF(AND('Base-datos'!$B$740=\"Sí\",'Base-datos'!$B$741=\"Sí\",'Base-datos'!$B$742=\"Sí\"),IF(AND(Q120=\"La actividad sí contribuye sustancialmente a la sostenibilidad\",R120=\"La actividad sí contribuye sustancialmente a la sostenibilidad\",P120=\"La actividad sí contribuye sustancialmente a la sostenibilidad\"),SUM(B120:O120),0),IF(AND('Base-datos'!$B$740=\"\",'Base-datos'!$B$741=\"Sí\",'Base-datos'!$B$742=\"\"),IF(R120=\"La actividad sí contribuye sustancialmente a la sostenibilidad\",SUM(B120:O120),0),IF(AND('Base-datos'!$B$740=\"\",'Base-datos'!$B$741=\"\",'Base-datos'!$B$742=\"Sí\"),IF(P120=\"La actividad sí contribuye sustancialmente a la sostenibilidad\",SUM(B120:O120),0),IF(AND('Base-datos'!$B$740=\"\",'Base-datos'!$B$741=\"Sí\",'Base-datos'!$B$742=\"Sí\"),IF(AND(R120=\"La actividad sí contribuye sustancialmente a la sostenibilidad\",P120=\"La actividad sí contribuye sustancialmente a la sostenibilidad\"),SUM(B120:O120),0),IF(AND('Base-datos'!$B$740=\"Sí\",'Base-datos'!$B$741=\"\",'Base-datos'!$B$742=\"Sí\"),IF(AND(Q120=\"La actividad sí contribuye sustancialmente a la sostenibilidad\",P120=\"La actividad sí contribuye sustancialmente a la sostenibilidad\"),SUM(B120:O120),0),\"Por definir\"))))))))","v":"Por definir"}]
[{"$f":"Construcción!$C14","v":"Seleccione"},{"$f":"IF(Construcción!$E14=Seguros_fianzas!B$12,Construcción!$B14,\"\")","v":""},{"$f":"IF(Construcción!$E14=Seguros_fianzas!C$12,Construcción!$B14,\"\")","v":""},{"$f":"IF(Construcción!$E14=Seguros_fianzas!D$12,Construcción!$B14,\"\")","v":""},{"$f":"IF(Construcción!$E14=Seguros_fianzas!E$12,Construcción!$B14,\"\")","v":""},{"$f":"IF(Construcción!$E14=Seguros_fianzas!F$12,Construcción!$B14,\"\")","v":""},{"$f":"IF(Construcción!$E14=Seguros_fianzas!G$12,Construcción!$B14,\"\")","v":""},{"$f":"IF(Construcción!$E14=Seguros_fianzas!H$12,Construcción!$B14,\"\")","v":""},{"$f":"IF(Construcción!$E14=Seguros_fianzas!I$12,Construcción!$B14,\"\")","v":""},{"$f":"IF(Construcción!$E14=Seguros_fianzas!J$12,Construcción!$B14,\"\")","v":""},{"$f":"IF(Construcción!$E14=Seguros_fianzas!K$12,Construcción!$B14,\"\")","v":""},{"$f":"IF(Construcción!$E14=Seguros_fianzas!L$12,Construcción!$B14,\"\")","v":""},{"$f":"IF(Construcción!$E14=Seguros_fianzas!M$12,Construcción!$B14,\"\")","v":""},{"$f":"IF(Construcción!$E14=Seguros_fianzas!N$12,Construcción!$B14,\"\")","v":""},{"$f":"IF(Construcción!$E14=Seguros_fianzas!O$12,Construcción!$B14,\"\")","v":""},{"$f":"_xlfn.XLOOKUP(A121,'Base-datos'!$B$537:$B$546,'Base-datos'!$F$537:$F$546)","v":{"$error":"#N/A"}},{"$f":"_xlfn.XLOOKUP(A121,'Base-datos'!$B$537:$B$546,'Base-datos'!$C$537:$C$546)","v":{"$error":"#N/A"}},{"$f":"_xlfn.XLOOKUP(A121,'Base-datos'!$B$537:$B$546,'Base-datos'!$D$537:$D$546)","v":{"$error":"#N/A"}},null,null,{"$f":"IF(OR(S$119=\"La actividad no cumple con el total de los criterios de No Daño Significativo\",T$119=\"El sector no cumple con las salvaguardas mínimas\"),\"\",IF(AND('Base-datos'!$B$740=\"Sí\",'Base-datos'!$B$741=\"\",'Base-datos'!$B$742=\"\"),IF(Q121=\"La actividad sí contribuye sustancialmente a la sostenibilidad\",SUM(B121:O121),0),IF(AND('Base-datos'!$B$740=\"Sí\",'Base-datos'!$B$741=\"Sí\",'Base-datos'!$B$742=\"\"),IF(AND(Q121=\"La actividad sí contribuye sustancialmente a la sostenibilidad\",R121=\"La actividad sí contribuye sustancialmente a la sostenibilidad\"),SUM(B121:O121),0),IF(AND('Base-datos'!$B$740=\"Sí\",'Base-datos'!$B$741=\"Sí\",'Base-datos'!$B$742=\"Sí\"),IF(AND(Q121=\"La actividad sí contribuye sustancialmente a la sostenibilidad\",R121=\"La actividad sí contribuye sustancialmente a la sostenibilidad\",P121=\"La actividad sí contribuye sustancialmente a la sostenibilidad\"),SUM(B121:O121),0),IF(AND('Base-datos'!$B$740=\"\",'Base-datos'!$B$741=\"Sí\",'Base-datos'!$B$742=\"\"),IF(R121=\"La actividad sí contribuye sustancialmente a la sostenibilidad\",SUM(B121:O121),0),IF(AND('Base-datos'!$B$740=\"\",'Base-datos'!$B$741=\"\",'Base-datos'!$B$742=\"Sí\"),IF(P121=\"La actividad sí contribuye sustancialmente a la sostenibilidad\",SUM(B121:O121),0),IF(AND('Base-datos'!$B$740=\"\",'Base-datos'!$B$741=\"Sí\",'Base-datos'!$B$742=\"Sí\"),IF(AND(R121=\"La actividad sí contribuye sustancialmente a la sostenibilidad\",P121=\"La actividad sí contribuye sustancialmente a la sostenibilidad\"),SUM(B121:O121),0),IF(AND('Base-datos'!$B$740=\"Sí\",'Base-datos'!$B$741=\"\",'Base-datos'!$B$742=\"Sí\"),IF(AND(Q121=\"La actividad sí contribuye sustancialmente a la sostenibilidad\",P121=\"La actividad sí contribuye sustancialmente a la sostenibilidad\"),SUM(B121:O121),0),\"Por definir\"))))))))","v":"Por definir"}]
[{"$f":"Construcción!$C16","v":"Seleccione"},{"$f":"IF(Construcción!$E16=Seguros_fianzas!B$12,Construcción!$B16,\"\")","v":""},{"$f":"IF(Construcción!$E16=Seguros_fianzas!C$12,Construcción!$B16,\"\")","v":""},{"$f":"IF(Construcción!$E16=Seguros_fianzas!D$12,Construcción!$B16,\"\")","v":""},{"$f":"IF(Construcción!$E16=Seguros_fianzas!E$12,Construcción!$B16,\"\")","v":""},{"$f":"IF(Construcción!$E16=Seguros_fianzas!F$12,Construcción!$B16,\"\")","v":""},{"$f":"IF(Construcción!$E16=Seguros_fianzas!G$12,Construcción!$B16,\"\")","v":""},{"$f":"IF(Construcción!$E16=Seguros_fianzas!H$12,Construcción!$B16,\"\")","v":""},{"$f":"IF(Construcción!$E16=Seguros_fianzas!I$12,Construcción!$B16,\"\")","v":""},{"$f":"IF(Construcción!$E16=Seguros_fianzas!J$12,Construcción!$B16,\"\")","v":""},{"$f":"IF(Construcción!$E16=Seguros_fianzas!K$12,Construcción!$B16,\"\")","v":""},{"$f":"IF(Construcción!$E16=Seguros_fianzas!L$12,Construcción!$B16,\"\")","v":""},{"$f":"IF(Construcción!$E16=Seguros_fianzas!M$12,Construcción!$B16,\"\")","v":""},{"$f":"IF(Construcción!$E16=Seguros_fianzas!N$12,Construcción!$B16,\"\")","v":""},{"$f":"IF(Construcción!$E16=Seguros_fianzas!O$12,Construcción!$B16,\"\")","v":""},{"$f":"_xlfn.XLOOKUP(A122,'Base-datos'!$B$537:$B$546,'Base-datos'!$F$537:$F$546)","v":{"$error":"#N/A"}},{"$f":"_xlfn.XLOOKUP(A122,'Base-datos'!$B$537:$B$546,'Base-datos'!$C$537:$C$546)","v":{"$error":"#N/A"}},{"$f":"_xlfn.XLOOKUP(A122,'Base-datos'!$B$537:$B$546,'Base-datos'!$D$537:$D$546)","v":{"$error":"#N/A"}},null,null,{"$f":"IF(OR(S$119=\"La actividad no cumple con el total de los criterios de No Daño Significativo\",T$119=\"El sector no cumple con las salvaguardas mínimas\"),\"\",IF(AND('Base-datos'!$B$740=\"Sí\",'Base-datos'!$B$741=\"\",'Base-datos'!$B$742=\"\"),IF(Q122=\"La actividad sí contribuye sustancialmente a la sostenibilidad\",SUM(B122:O122),0),IF(AND('Base-datos'!$B$740=\"Sí\",'Base-datos'!$B$741=\"Sí\",'Base-datos'!$B$742=\"\"),IF(AND(Q122=\"La actividad sí contribuye sustancialmente a la sostenibilidad\",R122=\"La actividad sí contribuye sustancialmente a la sostenibilidad\"),SUM(B122:O122),0),IF(AND('Base-datos'!$B$740=\"Sí\",'Base-datos'!$B$741=\"Sí\",'Base-datos'!$B$742=\"Sí\"),IF(AND(Q122=\"La actividad sí contribuye sustancialmente a la sostenibilidad\",R122=\"La actividad sí contribuye sustancialmente a la sostenibilidad\",P122=\"La actividad sí contribuye sustancialmente a la sostenibilidad\"),SUM(B122:O122),0),IF(AND('Base-datos'!$B$740=\"\",'Base-datos'!$B$741=\"Sí\",'Base-datos'!$B$742=\"\"),IF(R122=\"La actividad sí contribuye sustancialmente a la sostenibilidad\",SUM(B122:O122),0),IF(AND('Base-datos'!$B$740=\"\",'Base-datos'!$B$741=\"\",'Base-datos'!$B$742=\"Sí\"),IF(P122=\"La actividad sí contribuye sustancialmente a la sostenibilidad\",SUM(B122:O122),0),IF(AND('Base-datos'!$B$740=\"\",'Base-datos'!$B$741=\"Sí\",'Base-datos'!$B$742=\"Sí\"),IF(AND(R122=\"La actividad sí contribuye sustancialmente a la sostenibilidad\",P122=\"La actividad sí contribuye sustancialmente a la sostenibilidad\"),SUM(B122:O122),0),IF(AND('Base-datos'!$B$740=\"Sí\",'Base-datos'!$B$741=\"\",'Base-datos'!$B$742=\"Sí\"),IF(AND(Q122=\"La actividad sí contribuye sustancialmente a la sostenibilidad\",P122=\"La actividad sí contribuye sustancialmente a la sostenibilidad\"),SUM(B122:O122),0),\"Por definir\"))))))))","v":"Por definir"}]
[{"$f":"Construcción!$C18","v":"Seleccione"},{"$f":"IF(Construcción!$E18=Seguros_fianzas!B$12,Construcción!$B18,\"\")","v":""},{"$f":"IF(Construcción!$E18=Seguros_fianzas!C$12,Construcción!$B18,\"\")","v":""},{"$f":"IF(Construcción!$E18=Seguros_fianzas!D$12,Construcción!$B18,\"\")","v":""},{"$f":"IF(Construcción!$E18=Seguros_fianzas!E$12,Construcción!$B18,\"\")","v":""},{"$f":"IF(Construcción!$E18=Seguros_fianzas!F$12,Construcción!$B18,\"\")","v":""},{"$f":"IF(Construcción!$E18=Seguros_fianzas!G$12,Construcción!$B18,\"\")","v":""},{"$f":"IF(Construcción!$E18=Seguros_fianzas!H$12,Construcción!$B18,\"\")","v":""},{"$f":"IF(Construcción!$E18=Seguros_fianzas!I$12,Construcción!$B18,\"\")","v":""},{"$f":"IF(Construcción!$E18=Seguros_fianzas!J$12,Construcción!$B18,\"\")","v":""},{"$f":"IF(Construcción!$E18=Seguros_fianzas!K$12,Construcción!$B18,\"\")","v":""},{"$f":"IF(Construcción!$E18=Seguros_fianzas!L$12,Construcción!$B18,\"\")","v":""},{"$f":"IF(Construcción!$E18=Seguros_fianzas!M$12,Construcción!$B18,\"\")","v":""},{"$f":"IF(Construcción!$E18=Seguros_fianzas!N$12,Construcción!$B18,\"\")","v":""},{"$f":"IF(Construcción!$E18=Seguros_fianzas!O$12,Construcción!$B18,\"\")","v":""},{"$f":"_xlfn.XLOOKUP(A123,'Base-datos'!$B$537:$B$546,'Base-datos'!$F$537:$F$546)","v":{"$error":"#N/A"}},{"$f":"_xlfn.XLOOKUP(A123,'Base-datos'!$B$537:$B$546,'Base-datos'!$C$537:$C$546)","v":{"$error":"#N/A"}},{"$f":"_xlfn.XLOOKUP(A123,'Base-datos'!$B$537:$B$546,'Base-datos'!$D$537:$D$546)","v":{"$error":"#N/A"}},null,null,{"$f":"IF(OR(S$119=\"La actividad no cumple con el total de los criterios de No Daño Significativo\",T$119=\"El sector no cumple con las salvaguardas mínimas\"),\"\",IF(AND('Base-datos'!$B$740=\"Sí\",'Base-datos'!$B$741=\"\",'Base-datos'!$B$742=\"\"),IF(Q123=\"La actividad sí contribuye sustancialmente a la sostenibilidad\",SUM(B123:O123),0),IF(AND('Base-datos'!$B$740=\"Sí\",'Base-datos'!$B$741=\"Sí\",'Base-datos'!$B$742=\"\"),IF(AND(Q123=\"La actividad sí contribuye sustancialmente a la sostenibilidad\",R123=\"La actividad sí contribuye sustancialmente a la sostenibilidad\"),SUM(B123:O123),0),IF(AND('Base-datos'!$B$740=\"Sí\",'Base-datos'!$B$741=\"Sí\",'Base-datos'!$B$742=\"Sí\"),IF(AND(Q123=\"La actividad sí contribuye sustancialmente a la sostenibilidad\",R123=\"La actividad sí contribuye sustancialmente a la sostenibilidad\",P123=\"La actividad sí contribuye sustancialmente a la sostenibilidad\"),SUM(B123:O123),0),IF(AND('Base-datos'!$B$740=\"\",'Base-datos'!$B$741=\"Sí\",'Base-datos'!$B$742=\"\"),IF(R123=\"La actividad sí contribuye sustancialmente a la sostenibilidad\",SUM(B123:O123),0),IF(AND('Base-datos'!$B$740=\"\",'Base-datos'!$B$741=\"\",'Base-datos'!$B$742=\"Sí\"),IF(P123=\"La actividad sí contribuye sustancialmente a la sostenibilidad\",SUM(B123:O123),0),IF(AND('Base-datos'!$B$740=\"\",'Base-datos'!$B$741=\"Sí\",'Base-datos'!$B$742=\"Sí\"),IF(AND(R123=\"La actividad sí contribuye sustancialmente a la sostenibilidad\",P123=\"La actividad sí contribuye sustancialmente a la sostenibilidad\"),SUM(B123:O123),0),IF(AND('Base-datos'!$B$740=\"Sí\",'Base-datos'!$B$741=\"\",'Base-datos'!$B$742=\"Sí\"),IF(AND(Q123=\"La actividad sí contribuye sustancialmente a la sostenibilidad\",P123=\"La actividad sí contribuye sustancialmente a la sostenibilidad\"),SUM(B123:O123),0),\"Por definir\"))))))))","v":"Por definir"}]
[{"$f":"Construcción!$C20","v":"Seleccione"},{"$f":"IF(Construcción!$E20=Seguros_fianzas!B$12,Construcción!$B20,\"\")","v":""},{"$f":"IF(Construcción!$E20=Seguros_fianzas!C$12,Construcción!$B20,\"\")","v":""},{"$f":"IF(Construcción!$E20=Seguros_fianzas!D$12,Construcción!$B20,\"\")","v":""},{"$f":"IF(Construcción!$E20=Seguros_fianzas!E$12,Construcción!$B20,\"\")","v":""},{"$f":"IF(Construcción!$E20=Seguros_fianzas!F$12,Construcción!$B20,\"\")","v":""},{"$f":"IF(Construcción!$E20=Seguros_fianzas!G$12,Construcción!$B20,\"\")","v":""},{"$f":"IF(Construcción!$E20=Seguros_fianzas!H$12,Construcción!$B20,\"\")","v":""},{"$f":"IF(Construcción!$E20=Seguros_fianzas!I$12,Construcción!$B20,\"\")","v":""},{"$f":"IF(Construcción!$E20=Seguros_fianzas!J$12,Construcción!$B20,\"\")","v":""},{"$f":"IF(Construcción!$E20=Seguros_fianzas!K$12,Construcción!$B20,\"\")","v":""},{"$f":"IF(Construcción!$E20=Seguros_fianzas!L$12,Construcción!$B20,\"\")","v":""},{"$f":"IF(Construcción!$E20=Seguros_fianzas!M$12,Construcción!$B20,\"\")","v":""},{"$f":"IF(Construcción!$E20=Seguros_fianzas!N$12,Construcción!$B20,\"\")","v":""},{"$f":"IF(Construcción!$E20=Seguros_fianzas!O$12,Construcción!$B20,\"\")","v":""},{"$f":"_xlfn.XLOOKUP(A124,'Base-datos'!$B$537:$B$546,'Base-datos'!$F$537:$F$546)","v":{"$error":"#N/A"}},{"$f":"_xlfn.XLOOKUP(A124,'Base-datos'!$B$537:$B$546,'Base-datos'!$C$537:$C$546)","v":{"$error":"#N/A"}},{"$f":"_xlfn.XLOOKUP(A124,'Base-datos'!$B$537:$B$546,'Base-datos'!$D$537:$D$546)","v":{"$error":"#N/A"}},null,null,{"$f":"IF(OR(S$119=\"La actividad no cumple con el total de los criterios de No Daño Significativo\",T$119=\"El sector no cumple con las salvaguardas mínimas\"),\"\",IF(AND('Base-datos'!$B$740=\"Sí\",'Base-datos'!$B$741=\"\",'Base-datos'!$B$742=\"\"),IF(Q124=\"La actividad sí contribuye sustancialmente a la sostenibilidad\",SUM(B124:O124),0),IF(AND('Base-datos'!$B$740=\"Sí\",'Base-datos'!$B$741=\"Sí\",'Base-datos'!$B$742=\"\"),IF(AND(Q124=\"La actividad sí contribuye sustancialmente a la sostenibilidad\",R124=\"La actividad sí contribuye sustancialmente a la sostenibilidad\"),SUM(B124:O124),0),IF(AND('Base-datos'!$B$740=\"Sí\",'Base-datos'!$B$741=\"Sí\",'Base-datos'!$B$742=\"Sí\"),IF(AND(Q124=\"La actividad sí contribuye sustancialmente a la sostenibilidad\",R124=\"La actividad sí contribuye sustancialmente a la sostenibilidad\",P124=\"La actividad sí contribuye sustancialmente a la sostenibilidad\"),SUM(B124:O124),0),IF(AND('Base-datos'!$B$740=\"\",'Base-datos'!$B$741=\"Sí\",'Base-datos'!$B$742=\"\"),IF(R124=\"La actividad sí contribuye sustancialmente a la sostenibilidad\",SUM(B124:O124),0),IF(AND('Base-datos'!$B$740=\"\",'Base-datos'!$B$741=\"\",'Base-datos'!$B$742=\"Sí\"),IF(P124=\"La actividad sí contribuye sustancialmente a la sostenibilidad\",SUM(B124:O124),0),IF(AND('Base-datos'!$B$740=\"\",'Base-datos'!$B$741=\"Sí\",'Base-datos'!$B$742=\"Sí\"),IF(AND(R124=\"La actividad sí contribuye sustancialmente a la sostenibilidad\",P124=\"La actividad sí contribuye sustancialmente a la sostenibilidad\"),SUM(B124:O124),0),IF(AND('Base-datos'!$B$740=\"Sí\",'Base-datos'!$B$741=\"\",'Base-datos'!$B$742=\"Sí\"),IF(AND(Q124=\"La actividad sí contribuye sustancialmente a la sostenibilidad\",P124=\"La actividad sí contribuye sustancialmente a la sostenibilidad\"),SUM(B124:O124),0),\"Por definir\"))))))))","v":"Por definir"}]
[{"$f":"Construcción!$C22","v":"Seleccione"},{"$f":"IF(Construcción!$E22=Seguros_fianzas!B$12,Construcción!$B22,\"\")","v":""},{"$f":"IF(Construcción!$E22=Seguros_fianzas!C$12,Construcción!$B22,\"\")","v":""},{"$f":"IF(Construcción!$E22=Seguros_fianzas!D$12,Construcción!$B22,\"\")","v":""},{"$f":"IF(Construcción!$E22=Seguros_fianzas!E$12,Construcción!$B22,\"\")","v":""},{"$f":"IF(Construcción!$E22=Seguros_fianzas!F$12,Construcción!$B22,\"\")","v":""},{"$f":"IF(Construcción!$E22=Seguros_fianzas!G$12,Construcción!$B22,\"\")","v":""},{"$f":"IF(Construcción!$E22=Seguros_fianzas!H$12,Construcción!$B22,\"\")","v":""},{"$f":"IF(Construcción!$E22=Seguros_fianzas!I$12,Construcción!$B22,\"\")","v":""},{"$f":"IF(Construcción!$E22=Seguros_fianzas!J$12,Construcción!$B22,\"\")","v":""},{"$f":"IF(Construcción!$E22=Seguros_fianzas!K$12,Construcción!$B22,\"\")","v":""},{"$f":"IF(Construcción!$E22=Seguros_fianzas!L$12,Construcción!$B22,\"\")","v":""},{"$f":"IF(Construcción!$E22=Seguros_fianzas!M$12,Construcción!$B22,\"\")","v":""},{"$f":"IF(Construcción!$E22=Seguros_fianzas!N$12,Construcción!$B22,\"\")","v":""},{"$f":"IF(Construcción!$E22=Seguros_fianzas!O$12,Construcción!$B22,\"\")","v":""},{"$f":"_xlfn.XLOOKUP(A125,'Base-datos'!$B$537:$B$546,'Base-datos'!$F$537:$F$546)","v":{"$error":"#N/A"}},{"$f":"_xlfn.XLOOKUP(A125,'Base-datos'!$B$537:$B$546,'Base-datos'!$C$537:$C$546)","v":{"$error":"#N/A"}},{"$f":"_xlfn.XLOOKUP(A125,'Base-datos'!$B$537:$B$546,'Base-datos'!$D$537:$D$546)","v":{"$error":"#N/A"}},null,null,{"$f":"IF(OR(S$119=\"La actividad no cumple con el total de los criterios de No Daño Significativo\",T$119=\"El sector no cumple con las salvaguardas mínimas\"),\"\",IF(AND('Base-datos'!$B$740=\"Sí\",'Base-datos'!$B$741=\"\",'Base-datos'!$B$742=\"\"),IF(Q125=\"La actividad sí contribuye sustancialmente a la sostenibilidad\",SUM(B125:O125),0),IF(AND('Base-datos'!$B$740=\"Sí\",'Base-datos'!$B$741=\"Sí\",'Base-datos'!$B$742=\"\"),IF(AND(Q125=\"La actividad sí contribuye sustancialmente a la sostenibilidad\",R125=\"La actividad sí contribuye sustancialmente a la sostenibilidad\"),SUM(B125:O125),0),IF(AND('Base-datos'!$B$740=\"Sí\",'Base-datos'!$B$741=\"Sí\",'Base-datos'!$B$742=\"Sí\"),IF(AND(Q125=\"La actividad sí contribuye sustancialmente a la sostenibilidad\",R125=\"La actividad sí contribuye sustancialmente a la sostenibilidad\",P125=\"La actividad sí contribuye sustancialmente a la sostenibilidad\"),SUM(B125:O125),0),IF(AND('Base-datos'!$B$740=\"\",'Base-datos'!$B$741=\"Sí\",'Base-datos'!$B$742=\"\"),IF(R125=\"La actividad sí contribuye sustancialmente a la sostenibilidad\",SUM(B125:O125),0),IF(AND('Base-datos'!$B$740=\"\",'Base-datos'!$B$741=\"\",'Base-datos'!$B$742=\"Sí\"),IF(P125=\"La actividad sí contribuye sustancialmente a la sostenibilidad\",SUM(B125:O125),0),IF(AND('Base-datos'!$B$740=\"\",'Base-datos'!$B$741=\"Sí\",'Base-datos'!$B$742=\"Sí\"),IF(AND(R125=\"La actividad sí contribuye sustancialmente a la sostenibilidad\",P125=\"La actividad sí contribuye sustancialmente a la sostenibilidad\"),SUM(B125:O125),0),IF(AND('Base-datos'!$B$740=\"Sí\",'Base-datos'!$B$741=\"\",'Base-datos'!$B$742=\"Sí\"),IF(AND(Q125=\"La actividad sí contribuye sustancialmente a la sostenibilidad\",P125=\"La actividad sí contribuye sustancialmente a la sostenibilidad\"),SUM(B125:O125),0),\"Por definir\"))))))))","v":"Por definir"}]
[{"$f":"Construcción!$C24","v":"Seleccione"},{"$f":"IF(Construcción!$E24=Seguros_fianzas!B$12,Construcción!$B24,\"\")","v":""},{"$f":"IF(Construcción!$E24=Seguros_fianzas!C$12,Construcción!$B24,\"\")","v":""},{"$f":"IF(Construcción!$E24=Seguros_fianzas!D$12,Construcción!$B24,\"\")","v":""},{"$f":"IF(Construcción!$E24=Seguros_fianzas!E$12,Construcción!$B24,\"\")","v":""},{"$f":"IF(Construcción!$E24=Seguros_fianzas!F$12,Construcción!$B24,\"\")","v":""},{"$f":"IF(Construcción!$E24=Seguros_fianzas!G$12,Construcción!$B24,\"\")","v":""},{"$f":"IF(Construcción!$E24=Seguros_fianzas!H$12,Construcción!$B24,\"\")","v":""},{"$f":"IF(Construcción!$E24=Seguros_fianzas!I$12,Construcción!$B24,\"\")","v":""},{"$f":"IF(Construcción!$E24=Seguros_fianzas!J$12,Construcción!$B24,\"\")","v":""},{"$f":"IF(Construcción!$E24=Seguros_fianzas!K$12,Construcción!$B24,\"\")","v":""},{"$f":"IF(Construcción!$E24=Seguros_fianzas!L$12,Construcción!$B24,\"\")","v":""},{"$f":"IF(Construcción!$E24=Seguros_fianzas!M$12,Construcción!$B24,\"\")","v":""},{"$f":"IF(Construcción!$E24=Seguros_fianzas!N$12,Construcción!$B24,\"\")","v":""},{"$f":"IF(Construcción!$E24=Seguros_fianzas!O$12,Construcción!$B24,\"\")","v":""},{"$f":"_xlfn.XLOOKUP(A126,'Base-datos'!$B$537:$B$546,'Base-datos'!$F$537:$F$546)","v":{"$error":"#N/A"}},{"$f":"_xlfn.XLOOKUP(A126,'Base-datos'!$B$537:$B$546,'Base-datos'!$C$537:$C$546)","v":{"$error":"#N/A"}},{"$f":"_xlfn.XLOOKUP(A126,'Base-datos'!$B$537:$B$546,'Base-datos'!$D$537:$D$546)","v":{"$error":"#N/A"}},null,null,{"$f":"IF(OR(S$119=\"La actividad no cumple con el total de los criterios de No Daño Significativo\",T$119=\"El sector no cumple con las salvaguardas mínimas\"),\"\",IF(AND('Base-datos'!$B$740=\"Sí\",'Base-datos'!$B$741=\"\",'Base-datos'!$B$742=\"\"),IF(Q126=\"La actividad sí contribuye sustancialmente a la sostenibilidad\",SUM(B126:O126),0),IF(AND('Base-datos'!$B$740=\"Sí\",'Base-datos'!$B$741=\"Sí\",'Base-datos'!$B$742=\"\"),IF(AND(Q126=\"La actividad sí contribuye sustancialmente a la sostenibilidad\",R126=\"La actividad sí contribuye sustancialmente a la sostenibilidad\"),SUM(B126:O126),0),IF(AND('Base-datos'!$B$740=\"Sí\",'Base-datos'!$B$741=\"Sí\",'Base-datos'!$B$742=\"Sí\"),IF(AND(Q126=\"La actividad sí contribuye sustancialmente a la sostenibilidad\",R126=\"La actividad sí contribuye sustancialmente a la sostenibilidad\",P126=\"La actividad sí contribuye sustancialmente a la sostenibilidad\"),SUM(B126:O126),0),IF(AND('Base-datos'!$B$740=\"\",'Base-datos'!$B$741=\"Sí\",'Base-datos'!$B$742=\"\"),IF(R126=\"La actividad sí contribuye sustancialmente a la sostenibilidad\",SUM(B126:O126),0),IF(AND('Base-datos'!$B$740=\"\",'Base-datos'!$B$741=\"\",'Base-datos'!$B$742=\"Sí\"),IF(P126=\"La actividad sí contribuye sustancialmente a la sostenibilidad\",SUM(B126:O126),0),IF(AND('Base-datos'!$B$740=\"\",'Base-datos'!$B$741=\"Sí\",'Base-datos'!$B$742=\"Sí\"),IF(AND(R126=\"La actividad sí contribuye sustancialmente a la sostenibilidad\",P126=\"La actividad sí contribuye sustancialmente a la sostenibilidad\"),SUM(B126:O126),0),IF(AND('Base-datos'!$B$740=\"Sí\",'Base-datos'!$B$741=\"\",'Base-datos'!$B$742=\"Sí\"),IF(AND(Q126=\"La actividad sí contribuye sustancialmente a la sostenibilidad\",P126=\"La actividad sí contribuye sustancialmente a la sostenibilidad\"),SUM(B126:O126),0),\"Por definir\"))))))))","v":"Por definir"}]
[{"$f":"Construcción!$C26","v":"Seleccione"},{"$f":"IF(Construcción!$E26=Seguros_fianzas!B$12,Construcción!$B26,\"\")","v":""},{"$f":"IF(Construcción!$E26=Seguros_fianzas!C$12,Construcción!$B26,\"\")","v":""},{"$f":"IF(Construcción!$E26=Seguros_fianzas!D$12,Construcción!$B26,\"\")","v":""},{"$f":"IF(Construcción!$E26=Seguros_fianzas!E$12,Construcción!$B26,\"\")","v":""},{"$f":"IF(Construcción!$E26=Seguros_fianzas!F$12,Construcción!$B26,\"\")","v":""},{"$f":"IF(Construcción!$E26=Seguros_fianzas!G$12,Construcción!$B26,\"\")","v":""},{"$f":"IF(Construcción!$E26=Seguros_fianzas!H$12,Construcción!$B26,\"\")","v":""},{"$f":"IF(Construcción!$E26=Seguros_fianzas!I$12,Construcción!$B26,\"\")","v":""},{"$f":"IF(Construcción!$E26=Seguros_fianzas!J$12,Construcción!$B26,\"\")","v":""},{"$f":"IF(Construcción!$E26=Seguros_fianzas!K$12,Construcción!$B26,\"\")","v":""},{"$f":"IF(Construcción!$E26=Seguros_fianzas!L$12,Construcción!$B26,\"\")","v":""},{"$f":"IF(Construcción!$E26=Seguros_fianzas!M$12,Construcción!$B26,\"\")","v":""},{"$f":"IF(Construcción!$E26=Seguros_fianzas!N$12,Construcción!$B26,\"\")","v":""},{"$f":"IF(Construcción!$E26=Seguros_fianzas!O$12,Construcción!$B26,\"\")","v":""},{"$f":"_xlfn.XLOOKUP(A127,'Base-datos'!$B$537:$B$546,'Base-datos'!$F$537:$F$546)","v":{"$error":"#N/A"}},{"$f":"_xlfn.XLOOKUP(A127,'Base-datos'!$B$537:$B$546,'Base-datos'!$C$537:$C$546)","v":{"$error":"#N/A"}},{"$f":"_xlfn.XLOOKUP(A127,'Base-datos'!$B$537:$B$546,'Base-datos'!$D$537:$D$546)","v":{"$error":"#N/A"}},null,null,{"$f":"IF(OR(S$119=\"La actividad no cumple con el total de los criterios de No Daño Significativo\",T$119=\"El sector no cumple con las salvaguardas mínimas\"),\"\",IF(AND('Base-datos'!$B$740=\"Sí\",'Base-datos'!$B$741=\"\",'Base-datos'!$B$742=\"\"),IF(Q127=\"La actividad sí contribuye sustancialmente a la sostenibilidad\",SUM(B127:O127),0),IF(AND('Base-datos'!$B$740=\"Sí\",'Base-datos'!$B$741=\"Sí\",'Base-datos'!$B$742=\"\"),IF(AND(Q127=\"La actividad sí contribuye sustancialmente a la sostenibilidad\",R127=\"La actividad sí contribuye sustancialmente a la sostenibilidad\"),SUM(B127:O127),0),IF(AND('Base-datos'!$B$740=\"Sí\",'Base-datos'!$B$741=\"Sí\",'Base-datos'!$B$742=\"Sí\"),IF(AND(Q127=\"La actividad sí contribuye sustancialmente a la sostenibilidad\",R127=\"La actividad sí contribuye sustancialmente a la sostenibilidad\",P127=\"La actividad sí contribuye sustancialmente a la sostenibilidad\"),SUM(B127:O127),0),IF(AND('Base-datos'!$B$740=\"\",'Base-datos'!$B$741=\"Sí\",'Base-datos'!$B$742=\"\"),IF(R127=\"La actividad sí contribuye sustancialmente a la sostenibilidad\",SUM(B127:O127),0),IF(AND('Base-datos'!$B$740=\"\",'Base-datos'!$B$741=\"\",'Base-datos'!$B$742=\"Sí\"),IF(P127=\"La actividad sí contribuye sustancialmente a la sostenibilidad\",SUM(B127:O127),0),IF(AND('Base-datos'!$B$740=\"\",'Base-datos'!$B$741=\"Sí\",'Base-datos'!$B$742=\"Sí\"),IF(AND(R127=\"La actividad sí contribuye sustancialmente a la sostenibilidad\",P127=\"La actividad sí contribuye sustancialmente a la sostenibilidad\"),SUM(B127:O127),0),IF(AND('Base-datos'!$B$740=\"Sí\",'Base-datos'!$B$741=\"\",'Base-datos'!$B$742=\"Sí\"),IF(AND(Q127=\"La actividad sí contribuye sustancialmente a la sostenibilidad\",P127=\"La actividad sí contribuye sustancialmente a la sostenibilidad\"),SUM(B127:O127),0),\"Por definir\"))))))))","v":"Por definir"}]
[{"$f":"Construcción!$C28","v":"Seleccione"},{"$f":"IF(Construcción!$E28=Seguros_fianzas!B$12,Construcción!$B28,\"\")","v":""},{"$f":"IF(Construcción!$E28=Seguros_fianzas!C$12,Construcción!$B28,\"\")","v":""},{"$f":"IF(Construcción!$E28=Seguros_fianzas!D$12,Construcción!$B28,\"\")","v":""},{"$f":"IF(Construcción!$E28=Seguros_fianzas!E$12,Construcción!$B28,\"\")","v":""},{"$f":"IF(Construcción!$E28=Seguros_fianzas!F$12,Construcción!$B28,\"\")","v":""},{"$f":"IF(Construcción!$E28=Seguros_fianzas!G$12,Construcción!$B28,\"\")","v":""},{"$f":"IF(Construcción!$E28=Seguros_fianzas!H$12,Construcción!$B28,\"\")","v":""},{"$f":"IF(Construcción!$E28=Seguros_fianzas!I$12,Construcción!$B28,\"\")","v":""},{"$f":"IF(Construcción!$E28=Seguros_fianzas!J$12,Construcción!$B28,\"\")","v":""},{"$f":"IF(Construcción!$E28=Seguros_fianzas!K$12,Construcción!$B28,\"\")","v":""},{"$f":"IF(Construcción!$E28=Seguros_fianzas!L$12,Construcción!$B28,\"\")","v":""},{"$f":"IF(Construcción!$E28=Seguros_fianzas!M$12,Construcción!$B28,\"\")","v":""},{"$f":"IF(Construcción!$E28=Seguros_fianzas!N$12,Construcción!$B28,\"\")","v":""},{"$f":"IF(Construcción!$E28=Seguros_fianzas!O$12,Construcción!$B28,\"\")","v":""},{"$f":"_xlfn.XLOOKUP(A128,'Base-datos'!$B$537:$B$546,'Base-datos'!$F$537:$F$546)","v":{"$error":"#N/A"}},{"$f":"_xlfn.XLOOKUP(A128,'Base-datos'!$B$537:$B$546,'Base-datos'!$C$537:$C$546)","v":{"$error":"#N/A"}},{"$f":"_xlfn.XLOOKUP(A128,'Base-datos'!$B$537:$B$546,'Base-datos'!$D$537:$D$546)","v":{"$error":"#N/A"}},null,null,{"$f":"IF(OR(S$119=\"La actividad no cumple con el total de los criterios de No Daño Significativo\",T$119=\"El sector no cumple con las salvaguardas mínimas\"),\"\",IF(AND('Base-datos'!$B$740=\"Sí\",'Base-datos'!$B$741=\"\",'Base-datos'!$B$742=\"\"),IF(Q128=\"La actividad sí contribuye sustancialmente a la sostenibilidad\",SUM(B128:O128),0),IF(AND('Base-datos'!$B$740=\"Sí\",'Base-datos'!$B$741=\"Sí\",'Base-datos'!$B$742=\"\"),IF(AND(Q128=\"La actividad sí contribuye sustancialmente a la sostenibilidad\",R128=\"La actividad sí contribuye sustancialmente a la sostenibilidad\"),SUM(B128:O128),0),IF(AND('Base-datos'!$B$740=\"Sí\",'Base-datos'!$B$741=\"Sí\",'Base-datos'!$B$742=\"Sí\"),IF(AND(Q128=\"La actividad sí contribuye sustancialmente a la sostenibilidad\",R128=\"La actividad sí contribuye sustancialmente a la sostenibilidad\",P128=\"La actividad sí contribuye sustancialmente a la sostenibilidad\"),SUM(B128:O128),0),IF(AND('Base-datos'!$B$740=\"\",'Base-datos'!$B$741=\"Sí\",'Base-datos'!$B$742=\"\"),IF(R128=\"La actividad sí contribuye sustancialmente a la sostenibilidad\",SUM(B128:O128),0),IF(AND('Base-datos'!$B$740=\"\",'Base-datos'!$B$741=\"\",'Base-datos'!$B$742=\"Sí\"),IF(P128=\"La actividad sí contribuye sustancialmente a la sostenibilidad\",SUM(B128:O128),0),IF(AND('Base-datos'!$B$740=\"\",'Base-datos'!$B$741=\"Sí\",'Base-datos'!$B$742=\"Sí\"),IF(AND(R128=\"La actividad sí contribuye sustancialmente a la sostenibilidad\",P128=\"La actividad sí contribuye sustancialmente a la sostenibilidad\"),SUM(B128:O128),0),IF(AND('Base-datos'!$B$740=\"Sí\",'Base-datos'!$B$741=\"\",'Base-datos'!$B$742=\"Sí\"),IF(AND(Q128=\"La actividad sí contribuye sustancialmente a la sostenibilidad\",P128=\"La actividad sí contribuye sustancialmente a la sostenibilidad\"),SUM(B128:O128),0),\"Por definir\"))))))))","v":"Por definir"}]
[{"$f":"Construcción!$C30","v":"Seleccione"},{"$f":"IF(Construcción!$E30=Seguros_fianzas!B$12,Construcción!$B30,\"\")","v":""},{"$f":"IF(Construcción!$E30=Seguros_fianzas!C$12,Construcción!$B30,\"\")","v":""},{"$f":"IF(Construcción!$E30=Seguros_fianzas!D$12,Construcción!$B30,\"\")","v":""},{"$f":"IF(Construcción!$E30=Seguros_fianzas!E$12,Construcción!$B30,\"\")","v":""},{"$f":"IF(Construcción!$E30=Seguros_fianzas!F$12,Construcción!$B30,\"\")","v":""},{"$f":"IF(Construcción!$E30=Seguros_fianzas!G$12,Construcción!$B30,\"\")","v":""},{"$f":"IF(Construcción!$E30=Seguros_fianzas!H$12,Construcción!$B30,\"\")","v":""},{"$f":"IF(Construcción!$E30=Seguros_fianzas!I$12,Construcción!$B30,\"\")","v":""},{"$f":"IF(Construcción!$E30=Seguros_fianzas!J$12,Construcción!$B30,\"\")","v":""},{"$f":"IF(Construcción!$E30=Seguros_fianzas!K$12,Construcción!$B30,\"\")","v":""},{"$f":"IF(Construcción!$E30=Seguros_fianzas!L$12,Construcción!$B30,\"\")","v":""},{"$f":"IF(Construcción!$E30=Seguros_fianzas!M$12,Construcción!$B30,\"\")","v":""},{"$f":"IF(Construcción!$E30=Seguros_fianzas!N$12,Construcción!$B30,\"\")","v":""},{"$f":"IF(Construcción!$E30=Seguros_fianzas!O$12,Construcción!$B30,\"\")","v":""},{"$f":"_xlfn.XLOOKUP(A129,'Base-datos'!$B$537:$B$546,'Base-datos'!$F$537:$F$546)","v":{"$error":"#N/A"}},{"$f":"_xlfn.XLOOKUP(A129,'Base-datos'!$B$537:$B$546,'Base-datos'!$C$537:$C$546)","v":{"$error":"#N/A"}},{"$f":"_xlfn.XLOOKUP(A129,'Base-datos'!$B$537:$B$546,'Base-datos'!$D$537:$D$546)","v":{"$error":"#N/A"}},null,null,{"$f":"IF(OR(S$119=\"La actividad no cumple con el total de los criterios de No Daño Significativo\",T$119=\"El sector no cumple con las salvaguardas mínimas\"),\"\",IF(AND('Base-datos'!$B$740=\"Sí\",'Base-datos'!$B$741=\"\",'Base-datos'!$B$742=\"\"),IF(Q129=\"La actividad sí contribuye sustancialmente a la sostenibilidad\",SUM(B129:O129),0),IF(AND('Base-datos'!$B$740=\"Sí\",'Base-datos'!$B$741=\"Sí\",'Base-datos'!$B$742=\"\"),IF(AND(Q129=\"La actividad sí contribuye sustancialmente a la sostenibilidad\",R129=\"La actividad sí contribuye sustancialmente a la sostenibilidad\"),SUM(B129:O129),0),IF(AND('Base-datos'!$B$740=\"Sí\",'Base-datos'!$B$741=\"Sí\",'Base-datos'!$B$742=\"Sí\"),IF(AND(Q129=\"La actividad sí contribuye sustancialmente a la sostenibilidad\",R129=\"La actividad sí contribuye sustancialmente a la sostenibilidad\",P129=\"La actividad sí contribuye sustancialmente a la sostenibilidad\"),SUM(B129:O129),0),IF(AND('Base-datos'!$B$740=\"\",'Base-datos'!$B$741=\"Sí\",'Base-datos'!$B$742=\"\"),IF(R129=\"La actividad sí contribuye sustancialmente a la sostenibilidad\",SUM(B129:O129),0),IF(AND('Base-datos'!$B$740=\"\",'Base-datos'!$B$741=\"\",'Base-datos'!$B$742=\"Sí\"),IF(P129=\"La actividad sí contribuye sustancialmente a la sostenibilidad\",SUM(B129:O129),0),IF(AND('Base-datos'!$B$740=\"\",'Base-datos'!$B$741=\"Sí\",'Base-datos'!$B$742=\"Sí\"),IF(AND(R129=\"La actividad sí contribuye sustancialmente a la sostenibilidad\",P129=\"La actividad sí contribuye sustancialmente a la sostenibilidad\"),SUM(B129:O129),0),IF(AND('Base-datos'!$B$740=\"Sí\",'Base-datos'!$B$741=\"\",'Base-datos'!$B$742=\"Sí\"),IF(AND(Q129=\"La actividad sí contribuye sustancialmente a la sostenibilidad\",P129=\"La actividad sí contribuye sustancialmente a la sostenibilidad\"),SUM(B129:O129),0),\"Por definir\"))))))))","v":"Por definir"}]
[{"$f":"Construcción!$C32","v":"Seleccione"},{"$f":"IF(Construcción!$E32=Seguros_fianzas!B$12,Construcción!$B32,\"\")","v":""},{"$f":"IF(Construcción!$E32=Seguros_fianzas!C$12,Construcción!$B32,\"\")","v":""},{"$f":"IF(Construcción!$E32=Seguros_fianzas!D$12,Construcción!$B32,\"\")","v":""},{"$f":"IF(Construcción!$E32=Seguros_fianzas!E$12,Construcción!$B32,\"\")","v":""},{"$f":"IF(Construcción!$E32=Seguros_fianzas!F$12,Construcción!$B32,\"\")","v":""},{"$f":"IF(Construcción!$E32=Seguros_fianzas!G$12,Construcción!$B32,\"\")","v":""},{"$f":"IF(Construcción!$E32=Seguros_fianzas!H$12,Construcción!$B32,\"\")","v":""},{"$f":"IF(Construcción!$E32=Seguros_fianzas!I$12,Construcción!$B32,\"\")","v":""},{"$f":"IF(Construcción!$E32=Seguros_fianzas!J$12,Construcción!$B32,\"\")","v":""},{"$f":"IF(Construcción!$E32=Seguros_fianzas!K$12,Construcción!$B32,\"\")","v":""},{"$f":"IF(Construcción!$E32=Seguros_fianzas!L$12,Construcción!$B32,\"\")","v":""},{"$f":"IF(Construcción!$E32=Seguros_fianzas!M$12,Construcción!$B32,\"\")","v":""},{"$f":"IF(Construcción!$E32=Seguros_fianzas!N$12,Construcción!$B32,\"\")","v":""},{"$f":"IF(Construcción!$E32=Seguros_fianzas!O$12,Construcción!$B32,\"\")","v":""},{"$f":"_xlfn.XLOOKUP(A130,'Base-datos'!$B$537:$B$546,'Base-datos'!$F$537:$F$546)","v":{"$error":"#N/A"}},{"$f":"_xlfn.XLOOKUP(A130,'Base-datos'!$B$537:$B$546,'Base-datos'!$C$537:$C$546)","v":{"$error":"#N/A"}},{"$f":"_xlfn.XLOOKUP(A130,'Base-datos'!$B$537:$B$546,'Base-datos'!$D$537:$D$546)","v":{"$error":"#N/A"}},null,null,{"$f":"IF(OR(S$119=\"La actividad no cumple con el total de los criterios de No Daño Significativo\",T$119=\"El sector no cumple con las salvaguardas mínimas\"),\"\",IF(AND('Base-datos'!$B$740=\"Sí\",'Base-datos'!$B$741=\"\",'Base-datos'!$B$742=\"\"),IF(Q130=\"La actividad sí contribuye sustancialmente a la sostenibilidad\",SUM(B130:O130),0),IF(AND('Base-datos'!$B$740=\"Sí\",'Base-datos'!$B$741=\"Sí\",'Base-datos'!$B$742=\"\"),IF(AND(Q130=\"La actividad sí contribuye sustancialmente a la sostenibilidad\",R130=\"La actividad sí contribuye sustancialmente a la sostenibilidad\"),SUM(B130:O130),0),IF(AND('Base-datos'!$B$740=\"Sí\",'Base-datos'!$B$741=\"Sí\",'Base-datos'!$B$742=\"Sí\"),IF(AND(Q130=\"La actividad sí contribuye sustancialmente a la sostenibilidad\",R130=\"La actividad sí contribuye sustancialmente a la sostenibilidad\",P130=\"La actividad sí contribuye sustancialmente a la sostenibilidad\"),SUM(B130:O130),0),IF(AND('Base-datos'!$B$740=\"\",'Base-datos'!$B$741=\"Sí\",'Base-datos'!$B$742=\"\"),IF(R130=\"La actividad sí contribuye sustancialmente a la sostenibilidad\",SUM(B130:O130),0),IF(AND('Base-datos'!$B$740=\"\",'Base-datos'!$B$741=\"\",'Base-datos'!$B$742=\"Sí\"),IF(P130=\"La actividad sí contribuye sustancialmente a la sostenibilidad\",SUM(B130:O130),0),IF(AND('Base-datos'!$B$740=\"\",'Base-datos'!$B$741=\"Sí\",'Base-datos'!$B$742=\"Sí\"),IF(AND(R130=\"La actividad sí contribuye sustancialmente a la sostenibilidad\",P130=\"La actividad sí contribuye sustancialmente a la sostenibilidad\"),SUM(B130:O130),0),IF(AND('Base-datos'!$B$740=\"Sí\",'Base-datos'!$B$741=\"\",'Base-datos'!$B$742=\"Sí\"),IF(AND(Q130=\"La actividad sí contribuye sustancialmente a la sostenibilidad\",P130=\"La actividad sí contribuye sustancialmente a la sostenibilidad\"),SUM(B130:O130),0),\"Por definir\"))))))))","v":"Por definir"}]
[{"$f":"Construcción!$C34","v":"Seleccione"},{"$f":"IF(Construcción!$E34=Seguros_fianzas!B$12,Construcción!$B34,\"\")","v":""},{"$f":"IF(Construcción!$E34=Seguros_fianzas!C$12,Construcción!$B34,\"\")","v":""},{"$f":"IF(Construcción!$E34=Seguros_fianzas!D$12,Construcción!$B34,\"\")","v":""},{"$f":"IF(Construcción!$E34=Seguros_fianzas!E$12,Construcción!$B34,\"\")","v":""},{"$f":"IF(Construcción!$E34=Seguros_fianzas!F$12,Construcción!$B34,\"\")","v":""},{"$f":"IF(Construcción!$E34=Seguros_fianzas!G$12,Construcción!$B34,\"\")","v":""},{"$f":"IF(Construcción!$E34=Seguros_fianzas!H$12,Construcción!$B34,\"\")","v":""},{"$f":"IF(Construcción!$E34=Seguros_fianzas!I$12,Construcción!$B34,\"\")","v":""},{"$f":"IF(Construcción!$E34=Seguros_fianzas!J$12,Construcción!$B34,\"\")","v":""},{"$f":"IF(Construcción!$E34=Seguros_fianzas!K$12,Construcción!$B34,\"\")","v":""},{"$f":"IF(Construcción!$E34=Seguros_fianzas!L$12,Construcción!$B34,\"\")","v":""},{"$f":"IF(Construcción!$E34=Seguros_fianzas!M$12,Construcción!$B34,\"\")","v":""},{"$f":"IF(Construcción!$E34=Seguros_fianzas!N$12,Construcción!$B34,\"\")","v":""},{"$f":"IF(Construcción!$E34=Seguros_fianzas!O$12,Construcción!$B34,\"\")","v":""},{"$f":"_xlfn.XLOOKUP(A131,'Base-datos'!$B$537:$B$546,'Base-datos'!$F$537:$F$546)","v":{"$error":"#N/A"}},{"$f":"_xlfn.XLOOKUP(A131,'Base-datos'!$B$537:$B$546,'Base-datos'!$C$537:$C$546)","v":{"$error":"#N/A"}},{"$f":"_xlfn.XLOOKUP(A131,'Base-datos'!$B$537:$B$546,'Base-datos'!$D$537:$D$546)","v":{"$error":"#N/A"}},null,null,{"$f":"IF(OR(S$119=\"La actividad no cumple con el total de los criterios de No Daño Significativo\",T$119=\"El sector no cumple con las salvaguardas mínimas\"),\"\",IF(AND('Base-datos'!$B$740=\"Sí\",'Base-datos'!$B$741=\"\",'Base-datos'!$B$742=\"\"),IF(Q131=\"La actividad sí contribuye sustancialmente a la sostenibilidad\",SUM(B131:O131),0),IF(AND('Base-datos'!$B$740=\"Sí\",'Base-datos'!$B$741=\"Sí\",'Base-datos'!$B$742=\"\"),IF(AND(Q131=\"La actividad sí contribuye sustancialmente a la sostenibilidad\",R131=\"La actividad sí contribuye sustancialmente a la sostenibilidad\"),SUM(B131:O131),0),IF(AND('Base-datos'!$B$740=\"Sí\",'Base-datos'!$B$741=\"Sí\",'Base-datos'!$B$742=\"Sí\"),IF(AND(Q131=\"La actividad sí contribuye sustancialmente a la sostenibilidad\",R131=\"La actividad sí contribuye sustancialmente a la sostenibilidad\",P131=\"La actividad sí contribuye sustancialmente a la sostenibilidad\"),SUM(B131:O131),0),IF(AND('Base-datos'!$B$740=\"\",'Base-datos'!$B$741=\"Sí\",'Base-datos'!$B$742=\"\"),IF(R131=\"La actividad sí contribuye sustancialmente a la sostenibilidad\",SUM(B131:O131),0),IF(AND('Base-datos'!$B$740=\"\",'Base-datos'!$B$741=\"\",'Base-datos'!$B$742=\"Sí\"),IF(P131=\"La actividad sí contribuye sustancialmente a la sostenibilidad\",SUM(B131:O131),0),IF(AND('Base-datos'!$B$740=\"\",'Base-datos'!$B$741=\"Sí\",'Base-datos'!$B$742=\"Sí\"),IF(AND(R131=\"La actividad sí contribuye sustancialmente a la sostenibilidad\",P131=\"La actividad sí contribuye sustancialmente a la sostenibilidad\"),SUM(B131:O131),0),IF(AND('Base-datos'!$B$740=\"Sí\",'Base-datos'!$B$741=\"\",'Base-datos'!$B$742=\"Sí\"),IF(AND(Q131=\"La actividad sí contribuye sustancialmente a la sostenibilidad\",P131=\"La actividad sí contribuye sustancialmente a la sostenibilidad\"),SUM(B131:O131),0),\"Por definir\"))))))))","v":"Por definir"}]
[{"$f":"Construcción!$C36","v":"Seleccione"},{"$f":"IF(Construcción!$E36=Seguros_fianzas!B$12,Construcción!$B36,\"\")","v":""},{"$f":"IF(Construcción!$E36=Seguros_fianzas!C$12,Construcción!$B36,\"\")","v":""},{"$f":"IF(Construcción!$E36=Seguros_fianzas!D$12,Construcción!$B36,\"\")","v":""},{"$f":"IF(Construcción!$E36=Seguros_fianzas!E$12,Construcción!$B36,\"\")","v":""},{"$f":"IF(Construcción!$E36=Seguros_fianzas!F$12,Construcción!$B36,\"\")","v":""},{"$f":"IF(Construcción!$E36=Seguros_fianzas!G$12,Construcción!$B36,\"\")","v":""},{"$f":"IF(Construcción!$E36=Seguros_fianzas!H$12,Construcción!$B36,\"\")","v":""},{"$f":"IF(Construcción!$E36=Seguros_fianzas!I$12,Construcción!$B36,\"\")","v":""},{"$f":"IF(Construcción!$E36=Seguros_fianzas!J$12,Construcción!$B36,\"\")","v":""},{"$f":"IF(Construcción!$E36=Seguros_fianzas!K$12,Construcción!$B36,\"\")","v":""},{"$f":"IF(Construcción!$E36=Seguros_fianzas!L$12,Construcción!$B36,\"\")","v":""},{"$f":"IF(Construcción!$E36=Seguros_fianzas!M$12,Construcción!$B36,\"\")","v":""},{"$f":"IF(Construcción!$E36=Seguros_fianzas!N$12,Construcción!$B36,\"\")","v":""},{"$f":"IF(Construcción!$E36=Seguros_fianzas!O$12,Construcción!$B36,\"\")","v":""},{"$f":"_xlfn.XLOOKUP(A132,'Base-datos'!$B$537:$B$546,'Base-datos'!$F$537:$F$546)","v":{"$error":"#N/A"}},{"$f":"_xlfn.XLOOKUP(A132,'Base-datos'!$B$537:$B$546,'Base-datos'!$C$537:$C$546)","v":{"$error":"#N/A"}},{"$f":"_xlfn.XLOOKUP(A132,'Base-datos'!$B$537:$B$546,'Base-datos'!$D$537:$D$546)","v":{"$error":"#N/A"}},null,null,{"$f":"IF(OR(S$119=\"La actividad no cumple con el total de los criterios de No Daño Significativo\",T$119=\"El sector no cumple con las salvaguardas mínimas\"),\"\",IF(AND('Base-datos'!$B$740=\"Sí\",'Base-datos'!$B$741=\"\",'Base-datos'!$B$742=\"\"),IF(Q132=\"La actividad sí contribuye sustancialmente a la sostenibilidad\",SUM(B132:O132),0),IF(AND('Base-datos'!$B$740=\"Sí\",'Base-datos'!$B$741=\"Sí\",'Base-datos'!$B$742=\"\"),IF(AND(Q132=\"La actividad sí contribuye sustancialmente a la sostenibilidad\",R132=\"La actividad sí contribuye sustancialmente a la sostenibilidad\"),SUM(B132:O132),0),IF(AND('Base-datos'!$B$740=\"Sí\",'Base-datos'!$B$741=\"Sí\",'Base-datos'!$B$742=\"Sí\"),IF(AND(Q132=\"La actividad sí contribuye sustancialmente a la sostenibilidad\",R132=\"La actividad sí contribuye sustancialmente a la sostenibilidad\",P132=\"La actividad sí contribuye sustancialmente a la sostenibilidad\"),SUM(B132:O132),0),IF(AND('Base-datos'!$B$740=\"\",'Base-datos'!$B$741=\"Sí\",'Base-datos'!$B$742=\"\"),IF(R132=\"La actividad sí contribuye sustancialmente a la sostenibilidad\",SUM(B132:O132),0),IF(AND('Base-datos'!$B$740=\"\",'Base-datos'!$B$741=\"\",'Base-datos'!$B$742=\"Sí\"),IF(P132=\"La actividad sí contribuye sustancialmente a la sostenibilidad\",SUM(B132:O132),0),IF(AND('Base-datos'!$B$740=\"\",'Base-datos'!$B$741=\"Sí\",'Base-datos'!$B$742=\"Sí\"),IF(AND(R132=\"La actividad sí contribuye sustancialmente a la sostenibilidad\",P132=\"La actividad sí contribuye sustancialmente a la sostenibilidad\"),SUM(B132:O132),0),IF(AND('Base-datos'!$B$740=\"Sí\",'Base-datos'!$B$741=\"\",'Base-datos'!$B$742=\"Sí\"),IF(AND(Q132=\"La actividad sí contribuye sustancialmente a la sostenibilidad\",P132=\"La actividad sí contribuye sustancialmente a la sostenibilidad\"),SUM(B132:O132),0),\"Por definir\"))))))))","v":"Por definir"}]
[{"$f":"Construcción!$C38","v":"Seleccione"},{"$f":"IF(Construcción!$E38=Seguros_fianzas!B$12,Construcción!$B38,\"\")","v":""},{"$f":"IF(Construcción!$E38=Seguros_fianzas!C$12,Construcción!$B38,\"\")","v":""},{"$f":"IF(Construcción!$E38=Seguros_fianzas!D$12,Construcción!$B38,\"\")","v":""},{"$f":"IF(Construcción!$E38=Seguros_fianzas!E$12,Construcción!$B38,\"\")","v":""},{"$f":"IF(Construcción!$E38=Seguros_fianzas!F$12,Construcción!$B38,\"\")","v":""},{"$f":"IF(Construcción!$E38=Seguros_fianzas!G$12,Construcción!$B38,\"\")","v":""},{"$f":"IF(Construcción!$E38=Seguros_fianzas!H$12,Construcción!$B38,\"\")","v":""},{"$f":"IF(Construcción!$E38=Seguros_fianzas!I$12,Construcción!$B38,\"\")","v":""},{"$f":"IF(Construcción!$E38=Seguros_fianzas!J$12,Construcción!$B38,\"\")","v":""},{"$f":"IF(Construcción!$E38=Seguros_fianzas!K$12,Construcción!$B38,\"\")","v":""},{"$f":"IF(Construcción!$E38=Seguros_fianzas!L$12,Construcción!$B38,\"\")","v":""},{"$f":"IF(Construcción!$E38=Seguros_fianzas!M$12,Construcción!$B38,\"\")","v":""},{"$f":"IF(Construcción!$E38=Seguros_fianzas!N$12,Construcción!$B38,\"\")","v":""},{"$f":"IF(Construcción!$E38=Seguros_fianzas!O$12,Construcción!$B38,\"\")","v":""},{"$f":"_xlfn.XLOOKUP(A133,'Base-datos'!$B$537:$B$546,'Base-datos'!$F$537:$F$546)","v":{"$error":"#N/A"}},{"$f":"_xlfn.XLOOKUP(A133,'Base-datos'!$B$537:$B$546,'Base-datos'!$C$537:$C$546)","v":{"$error":"#N/A"}},{"$f":"_xlfn.XLOOKUP(A133,'Base-datos'!$B$537:$B$546,'Base-datos'!$D$537:$D$546)","v":{"$error":"#N/A"}},null,null,{"$f":"IF(OR(S$119=\"La actividad no cumple con el total de los criterios de No Daño Significativo\",T$119=\"El sector no cumple con las salvaguardas mínimas\"),\"\",IF(AND('Base-datos'!$B$740=\"Sí\",'Base-datos'!$B$741=\"\",'Base-datos'!$B$742=\"\"),IF(Q133=\"La actividad sí contribuye sustancialmente a la sostenibilidad\",SUM(B133:O133),0),IF(AND('Base-datos'!$B$740=\"Sí\",'Base-datos'!$B$741=\"Sí\",'Base-datos'!$B$742=\"\"),IF(AND(Q133=\"La actividad sí contribuye sustancialmente a la sostenibilidad\",R133=\"La actividad sí contribuye sustancialmente a la sostenibilidad\"),SUM(B133:O133),0),IF(AND('Base-datos'!$B$740=\"Sí\",'Base-datos'!$B$741=\"Sí\",'Base-datos'!$B$742=\"Sí\"),IF(AND(Q133=\"La actividad sí contribuye sustancialmente a la sostenibilidad\",R133=\"La actividad sí contribuye sustancialmente a la sostenibilidad\",P133=\"La actividad sí contribuye sustancialmente a la sostenibilidad\"),SUM(B133:O133),0),IF(AND('Base-datos'!$B$740=\"\",'Base-datos'!$B$741=\"Sí\",'Base-datos'!$B$742=\"\"),IF(R133=\"La actividad sí contribuye sustancialmente a la sostenibilidad\",SUM(B133:O133),0),IF(AND('Base-datos'!$B$740=\"\",'Base-datos'!$B$741=\"\",'Base-datos'!$B$742=\"Sí\"),IF(P133=\"La actividad sí contribuye sustancialmente a la sostenibilidad\",SUM(B133:O133),0),IF(AND('Base-datos'!$B$740=\"\",'Base-datos'!$B$741=\"Sí\",'Base-datos'!$B$742=\"Sí\"),IF(AND(R133=\"La actividad sí contribuye sustancialmente a la sostenibilidad\",P133=\"La actividad sí contribuye sustancialmente a la sostenibilidad\"),SUM(B133:O133),0),IF(AND('Base-datos'!$B$740=\"Sí\",'Base-datos'!$B$741=\"\",'Base-datos'!$B$742=\"Sí\"),IF(AND(Q133=\"La actividad sí contribuye sustancialmente a la sostenibilidad\",P133=\"La actividad sí contribuye sustancialmente a la sostenibilidad\"),SUM(B133:O133),0),\"Por definir\"))))))))","v":"Por definir"}]
[{"$f":"Construcción!$C40","v":"Seleccione"},{"$f":"IF(Construcción!$E40=Seguros_fianzas!B$12,Construcción!$B40,\"\")","v":""},{"$f":"IF(Construcción!$E40=Seguros_fianzas!C$12,Construcción!$B40,\"\")","v":""},{"$f":"IF(Construcción!$E40=Seguros_fianzas!D$12,Construcción!$B40,\"\")","v":""},{"$f":"IF(Construcción!$E40=Seguros_fianzas!E$12,Construcción!$B40,\"\")","v":""},{"$f":"IF(Construcción!$E40=Seguros_fianzas!F$12,Construcción!$B40,\"\")","v":""},{"$f":"IF(Construcción!$E40=Seguros_fianzas!G$12,Construcción!$B40,\"\")","v":""},{"$f":"IF(Construcción!$E40=Seguros_fianzas!H$12,Construcción!$B40,\"\")","v":""},{"$f":"IF(Construcción!$E40=Seguros_fianzas!I$12,Construcción!$B40,\"\")","v":""},{"$f":"IF(Construcción!$E40=Seguros_fianzas!J$12,Construcción!$B40,\"\")","v":""},{"$f":"IF(Construcción!$E40=Seguros_fianzas!K$12,Construcción!$B40,\"\")","v":""},{"$f":"IF(Construcción!$E40=Seguros_fianzas!L$12,Construcción!$B40,\"\")","v":""},{"$f":"IF(Construcción!$E40=Seguros_fianzas!M$12,Construcción!$B40,\"\")","v":""},{"$f":"IF(Construcción!$E40=Seguros_fianzas!N$12,Construcción!$B40,\"\")","v":""},{"$f":"IF(Construcción!$E40=Seguros_fianzas!O$12,Construcción!$B40,\"\")","v":""},{"$f":"_xlfn.XLOOKUP(A134,'Base-datos'!$B$537:$B$546,'Base-datos'!$F$537:$F$546)","v":{"$error":"#N/A"}},{"$f":"_xlfn.XLOOKUP(A134,'Base-datos'!$B$537:$B$546,'Base-datos'!$C$537:$C$546)","v":{"$error":"#N/A"}},{"$f":"_xlfn.XLOOKUP(A134,'Base-datos'!$B$537:$B$546,'Base-datos'!$D$537:$D$546)","v":{"$error":"#N/A"}},null,null,{"$f":"IF(OR(S$119=\"La actividad no cumple con el total de los criterios de No Daño Significativo\",T$119=\"El sector no cumple con las salvaguardas mínimas\"),\"\",IF(AND('Base-datos'!$B$740=\"Sí\",'Base-datos'!$B$741=\"\",'Base-datos'!$B$742=\"\"),IF(Q134=\"La actividad sí contribuye sustancialmente a la sostenibilidad\",SUM(B134:O134),0),IF(AND('Base-datos'!$B$740=\"Sí\",'Base-datos'!$B$741=\"Sí\",'Base-datos'!$B$742=\"\"),IF(AND(Q134=\"La actividad sí contribuye sustancialmente a la sostenibilidad\",R134=\"La actividad sí contribuye sustancialmente a la sostenibilidad\"),SUM(B134:O134),0),IF(AND('Base-datos'!$B$740=\"Sí\",'Base-datos'!$B$741=\"Sí\",'Base-datos'!$B$742=\"Sí\"),IF(AND(Q134=\"La actividad sí contribuye sustancialmente a la sostenibilidad\",R134=\"La actividad sí contribuye sustancialmente a la sostenibilidad\",P134=\"La actividad sí contribuye sustancialmente a la sostenibilidad\"),SUM(B134:O134),0),IF(AND('Base-datos'!$B$740=\"\",'Base-datos'!$B$741=\"Sí\",'Base-datos'!$B$742=\"\"),IF(R134=\"La actividad sí contribuye sustancialmente a la sostenibilidad\",SUM(B134:O134),0),IF(AND('Base-datos'!$B$740=\"\",'Base-datos'!$B$741=\"\",'Base-datos'!$B$742=\"Sí\"),IF(P134=\"La actividad sí contribuye sustancialmente a la sostenibilidad\",SUM(B134:O134),0),IF(AND('Base-datos'!$B$740=\"\",'Base-datos'!$B$741=\"Sí\",'Base-datos'!$B$742=\"Sí\"),IF(AND(R134=\"La actividad sí contribuye sustancialmente a la sostenibilidad\",P134=\"La actividad sí contribuye sustancialmente a la sostenibilidad\"),SUM(B134:O134),0),IF(AND('Base-datos'!$B$740=\"Sí\",'Base-datos'!$B$741=\"\",'Base-datos'!$B$742=\"Sí\"),IF(AND(Q134=\"La actividad sí contribuye sustancialmente a la sostenibilidad\",P134=\"La actividad sí contribuye sustancialmente a la sostenibilidad\"),SUM(B134:O134),0),\"Por definir\"))))))))","v":"Por definir"}]
[{"$f":"Construcción!$C42","v":"Seleccione"},{"$f":"IF(Construcción!$E42=Seguros_fianzas!B$12,Construcción!$B42,\"\")","v":""},{"$f":"IF(Construcción!$E42=Seguros_fianzas!C$12,Construcción!$B42,\"\")","v":""},{"$f":"IF(Construcción!$E42=Seguros_fianzas!D$12,Construcción!$B42,\"\")","v":""},{"$f":"IF(Construcción!$E42=Seguros_fianzas!E$12,Construcción!$B42,\"\")","v":""},{"$f":"IF(Construcción!$E42=Seguros_fianzas!F$12,Construcción!$B42,\"\")","v":""},{"$f":"IF(Construcción!$E42=Seguros_fianzas!G$12,Construcción!$B42,\"\")","v":""},{"$f":"IF(Construcción!$E42=Seguros_fianzas!H$12,Construcción!$B42,\"\")","v":""},{"$f":"IF(Construcción!$E42=Seguros_fianzas!I$12,Construcción!$B42,\"\")","v":""},{"$f":"IF(Construcción!$E42=Seguros_fianzas!J$12,Construcción!$B42,\"\")","v":""},{"$f":"IF(Construcción!$E42=Seguros_fianzas!K$12,Construcción!$B42,\"\")","v":""},{"$f":"IF(Construcción!$E42=Seguros_fianzas!L$12,Construcción!$B42,\"\")","v":""},{"$f":"IF(Construcción!$E42=Seguros_fianzas!M$12,Construcción!$B42,\"\")","v":""},{"$f":"IF(Construcción!$E42=Seguros_fianzas!N$12,Construcción!$B42,\"\")","v":""},{"$f":"IF(Construcción!$E42=Seguros_fianzas!O$12,Construcción!$B42,\"\")","v":""},{"$f":"_xlfn.XLOOKUP(A135,'Base-datos'!$B$537:$B$546,'Base-datos'!$F$537:$F$546)","v":{"$error":"#N/A"}},{"$f":"_xlfn.XLOOKUP(A135,'Base-datos'!$B$537:$B$546,'Base-datos'!$C$537:$C$546)","v":{"$error":"#N/A"}},{"$f":"_xlfn.XLOOKUP(A135,'Base-datos'!$B$537:$B$546,'Base-datos'!$D$537:$D$546)","v":{"$error":"#N/A"}},null,null,{"$f":"IF(OR(S$119=\"La actividad no cumple con el total de los criterios de No Daño Significativo\",T$119=\"El sector no cumple con las salvaguardas mínimas\"),\"\",IF(AND('Base-datos'!$B$740=\"Sí\",'Base-datos'!$B$741=\"\",'Base-datos'!$B$742=\"\"),IF(Q135=\"La actividad sí contribuye sustancialmente a la sostenibilidad\",SUM(B135:O135),0),IF(AND('Base-datos'!$B$740=\"Sí\",'Base-datos'!$B$741=\"Sí\",'Base-datos'!$B$742=\"\"),IF(AND(Q135=\"La actividad sí contribuye sustancialmente a la sostenibilidad\",R135=\"La actividad sí contribuye sustancialmente a la sostenibilidad\"),SUM(B135:O135),0),IF(AND('Base-datos'!$B$740=\"Sí\",'Base-datos'!$B$741=\"Sí\",'Base-datos'!$B$742=\"Sí\"),IF(AND(Q135=\"La actividad sí contribuye sustancialmente a la sostenibilidad\",R135=\"La actividad sí contribuye sustancialmente a la sostenibilidad\",P135=\"La actividad sí contribuye sustancialmente a la sostenibilidad\"),SUM(B135:O135),0),IF(AND('Base-datos'!$B$740=\"\",'Base-datos'!$B$741=\"Sí\",'Base-datos'!$B$742=\"\"),IF(R135=\"La actividad sí contribuye sustancialmente a la sostenibilidad\",SUM(B135:O135),0),IF(AND('Base-datos'!$B$740=\"\",'Base-datos'!$B$741=\"\",'Base-datos'!$B$742=\"Sí\"),IF(P135=\"La actividad sí contribuye sustancialmente a la sostenibilidad\",SUM(B135:O135),0),IF(AND('Base-datos'!$B$740=\"\",'Base-datos'!$B$741=\"Sí\",'Base-datos'!$B$742=\"Sí\"),IF(AND(R135=\"La actividad sí contribuye sustancialmente a la sostenibilidad\",P135=\"La actividad sí contribuye sustancialmente a la sostenibilidad\"),SUM(B135:O135),0),IF(AND('Base-datos'!$B$740=\"Sí\",'Base-datos'!$B$741=\"\",'Base-datos'!$B$742=\"Sí\"),IF(AND(Q135=\"La actividad sí contribuye sustancialmente a la sostenibilidad\",P135=\"La actividad sí contribuye sustancialmente a la sostenibilidad\"),SUM(B135:O135),0),\"Por definir\"))))))))","v":"Por definir"}]
[{"$f":"Construcción!$C44","v":"Seleccione"},{"$f":"IF(Construcción!$E44=Seguros_fianzas!B$12,Construcción!$B44,\"\")","v":""},{"$f":"IF(Construcción!$E44=Seguros_fianzas!C$12,Construcción!$B44,\"\")","v":""},{"$f":"IF(Construcción!$E44=Seguros_fianzas!D$12,Construcción!$B44,\"\")","v":""},{"$f":"IF(Construcción!$E44=Seguros_fianzas!E$12,Construcción!$B44,\"\")","v":""},{"$f":"IF(Construcción!$E44=Seguros_fianzas!F$12,Construcción!$B44,\"\")","v":""},{"$f":"IF(Construcción!$E44=Seguros_fianzas!G$12,Construcción!$B44,\"\")","v":""},{"$f":"IF(Construcción!$E44=Seguros_fianzas!H$12,Construcción!$B44,\"\")","v":""},{"$f":"IF(Construcción!$E44=Seguros_fianzas!I$12,Construcción!$B44,\"\")","v":""},{"$f":"IF(Construcción!$E44=Seguros_fianzas!J$12,Construcción!$B44,\"\")","v":""},{"$f":"IF(Construcción!$E44=Seguros_fianzas!K$12,Construcción!$B44,\"\")","v":""},{"$f":"IF(Construcción!$E44=Seguros_fianzas!L$12,Construcción!$B44,\"\")","v":""},{"$f":"IF(Construcción!$E44=Seguros_fianzas!M$12,Construcción!$B44,\"\")","v":""},{"$f":"IF(Construcción!$E44=Seguros_fianzas!N$12,Construcción!$B44,\"\")","v":""},{"$f":"IF(Construcción!$E44=Seguros_fianzas!O$12,Construcción!$B44,\"\")","v":""},{"$f":"_xlfn.XLOOKUP(A136,'Base-datos'!$B$537:$B$546,'Base-datos'!$F$537:$F$546)","v":{"$error":"#N/A"}},{"$f":"_xlfn.XLOOKUP(A136,'Base-datos'!$B$537:$B$546,'Base-datos'!$C$537:$C$546)","v":{"$error":"#N/A"}},{"$f":"_xlfn.XLOOKUP(A136,'Base-datos'!$B$537:$B$546,'Base-datos'!$D$537:$D$546)","v":{"$error":"#N/A"}},null,null,{"$f":"IF(OR(S$119=\"La actividad no cumple con el total de los criterios de No Daño Significativo\",T$119=\"El sector no cumple con las salvaguardas mínimas\"),\"\",IF(AND('Base-datos'!$B$740=\"Sí\",'Base-datos'!$B$741=\"\",'Base-datos'!$B$742=\"\"),IF(Q136=\"La actividad sí contribuye sustancialmente a la sostenibilidad\",SUM(B136:O136),0),IF(AND('Base-datos'!$B$740=\"Sí\",'Base-datos'!$B$741=\"Sí\",'Base-datos'!$B$742=\"\"),IF(AND(Q136=\"La actividad sí contribuye sustancialmente a la sostenibilidad\",R136=\"La actividad sí contribuye sustancialmente a la sostenibilidad\"),SUM(B136:O136),0),IF(AND('Base-datos'!$B$740=\"Sí\",'Base-datos'!$B$741=\"Sí\",'Base-datos'!$B$742=\"Sí\"),IF(AND(Q136=\"La actividad sí contribuye sustancialmente a la sostenibilidad\",R136=\"La actividad sí contribuye sustancialmente a la sostenibilidad\",P136=\"La actividad sí contribuye sustancialmente a la sostenibilidad\"),SUM(B136:O136),0),IF(AND('Base-datos'!$B$740=\"\",'Base-datos'!$B$741=\"Sí\",'Base-datos'!$B$742=\"\"),IF(R136=\"La actividad sí contribuye sustancialmente a la sostenibilidad\",SUM(B136:O136),0),IF(AND('Base-datos'!$B$740=\"\",'Base-datos'!$B$741=\"\",'Base-datos'!$B$742=\"Sí\"),IF(P136=\"La actividad sí contribuye sustancialmente a la sostenibilidad\",SUM(B136:O136),0),IF(AND('Base-datos'!$B$740=\"\",'Base-datos'!$B$741=\"Sí\",'Base-datos'!$B$742=\"Sí\"),IF(AND(R136=\"La actividad sí contribuye sustancialmente a la sostenibilidad\",P136=\"La actividad sí contribuye sustancialmente a la sostenibilidad\"),SUM(B136:O136),0),IF(AND('Base-datos'!$B$740=\"Sí\",'Base-datos'!$B$741=\"\",'Base-datos'!$B$742=\"Sí\"),IF(AND(Q136=\"La actividad sí contribuye sustancialmente a la sostenibilidad\",P136=\"La actividad sí contribuye sustancialmente a la sostenibilidad\"),SUM(B136:O136),0),\"Por definir\"))))))))","v":"Por definir"}]
[{"$f":"Construcción!$C46","v":"Seleccione"},{"$f":"IF(Construcción!$E46=Seguros_fianzas!B$12,Construcción!$B46,\"\")","v":""},{"$f":"IF(Construcción!$E46=Seguros_fianzas!C$12,Construcción!$B46,\"\")","v":""},{"$f":"IF(Construcción!$E46=Seguros_fianzas!D$12,Construcción!$B46,\"\")","v":""},{"$f":"IF(Construcción!$E46=Seguros_fianzas!E$12,Construcción!$B46,\"\")","v":""},{"$f":"IF(Construcción!$E46=Seguros_fianzas!F$12,Construcción!$B46,\"\")","v":""},{"$f":"IF(Construcción!$E46=Seguros_fianzas!G$12,Construcción!$B46,\"\")","v":""},{"$f":"IF(Construcción!$E46=Seguros_fianzas!H$12,Construcción!$B46,\"\")","v":""},{"$f":"IF(Construcción!$E46=Seguros_fianzas!I$12,Construcción!$B46,\"\")","v":""},{"$f":"IF(Construcción!$E46=Seguros_fianzas!J$12,Construcción!$B46,\"\")","v":""},{"$f":"IF(Construcción!$E46=Seguros_fianzas!K$12,Construcción!$B46,\"\")","v":""},{"$f":"IF(Construcción!$E46=Seguros_fianzas!L$12,Construcción!$B46,\"\")","v":""},{"$f":"IF(Construcción!$E46=Seguros_fianzas!M$12,Construcción!$B46,\"\")","v":""},{"$f":"IF(Construcción!$E46=Seguros_fianzas!N$12,Construcción!$B46,\"\")","v":""},{"$f":"IF(Construcción!$E46=Seguros_fianzas!O$12,Construcción!$B46,\"\")","v":""},{"$f":"_xlfn.XLOOKUP(A137,'Base-datos'!$B$537:$B$546,'Base-datos'!$F$537:$F$546)","v":{"$error":"#N/A"}},{"$f":"_xlfn.XLOOKUP(A137,'Base-datos'!$B$537:$B$546,'Base-datos'!$C$537:$C$546)","v":{"$error":"#N/A"}},{"$f":"_xlfn.XLOOKUP(A137,'Base-datos'!$B$537:$B$546,'Base-datos'!$D$537:$D$546)","v":{"$error":"#N/A"}},null,null,{"$f":"IF(OR(S$119=\"La actividad no cumple con el total de los criterios de No Daño Significativo\",T$119=\"El sector no cumple con las salvaguardas mínimas\"),\"\",IF(AND('Base-datos'!$B$740=\"Sí\",'Base-datos'!$B$741=\"\",'Base-datos'!$B$742=\"\"),IF(Q137=\"La actividad sí contribuye sustancialmente a la sostenibilidad\",SUM(B137:O137),0),IF(AND('Base-datos'!$B$740=\"Sí\",'Base-datos'!$B$741=\"Sí\",'Base-datos'!$B$742=\"\"),IF(AND(Q137=\"La actividad sí contribuye sustancialmente a la sostenibilidad\",R137=\"La actividad sí contribuye sustancialmente a la sostenibilidad\"),SUM(B137:O137),0),IF(AND('Base-datos'!$B$740=\"Sí\",'Base-datos'!$B$741=\"Sí\",'Base-datos'!$B$742=\"Sí\"),IF(AND(Q137=\"La actividad sí contribuye sustancialmente a la sostenibilidad\",R137=\"La actividad sí contribuye sustancialmente a la sostenibilidad\",P137=\"La actividad sí contribuye sustancialmente a la sostenibilidad\"),SUM(B137:O137),0),IF(AND('Base-datos'!$B$740=\"\",'Base-datos'!$B$741=\"Sí\",'Base-datos'!$B$742=\"\"),IF(R137=\"La actividad sí contribuye sustancialmente a la sostenibilidad\",SUM(B137:O137),0),IF(AND('Base-datos'!$B$740=\"\",'Base-datos'!$B$741=\"\",'Base-datos'!$B$742=\"Sí\"),IF(P137=\"La actividad sí contribuye sustancialmente a la sostenibilidad\",SUM(B137:O137),0),IF(AND('Base-datos'!$B$740=\"\",'Base-datos'!$B$741=\"Sí\",'Base-datos'!$B$742=\"Sí\"),IF(AND(R137=\"La actividad sí contribuye sustancialmente a la sostenibilidad\",P137=\"La actividad sí contribuye sustancialmente a la sostenibilidad\"),SUM(B137:O137),0),IF(AND('Base-datos'!$B$740=\"Sí\",'Base-datos'!$B$741=\"\",'Base-datos'!$B$742=\"Sí\"),IF(AND(Q137=\"La actividad sí contribuye sustancialmente a la sostenibilidad\",P137=\"La actividad sí contribuye sustancialmente a la sostenibilidad\"),SUM(B137:O137),0),\"Por definir\"))))))))","v":"Por definir"}]
[{"$f":"Construcción!$C48","v":"Seleccione"},{"$f":"IF(Construcción!$E48=Seguros_fianzas!B$12,Construcción!$B48,\"\")","v":""},{"$f":"IF(Construcción!$E48=Seguros_fianzas!C$12,Construcción!$B48,\"\")","v":""},{"$f":"IF(Construcción!$E48=Seguros_fianzas!D$12,Construcción!$B48,\"\")","v":""},{"$f":"IF(Construcción!$E48=Seguros_fianzas!E$12,Construcción!$B48,\"\")","v":""},{"$f":"IF(Construcción!$E48=Seguros_fianzas!F$12,Construcción!$B48,\"\")","v":""},{"$f":"IF(Construcción!$E48=Seguros_fianzas!G$12,Construcción!$B48,\"\")","v":""},{"$f":"IF(Construcción!$E48=Seguros_fianzas!H$12,Construcción!$B48,\"\")","v":""},{"$f":"IF(Construcción!$E48=Seguros_fianzas!I$12,Construcción!$B48,\"\")","v":""},{"$f":"IF(Construcción!$E48=Seguros_fianzas!J$12,Construcción!$B48,\"\")","v":""},{"$f":"IF(Construcción!$E48=Seguros_fianzas!K$12,Construcción!$B48,\"\")","v":""},{"$f":"IF(Construcción!$E48=Seguros_fianzas!L$12,Construcción!$B48,\"\")","v":""},{"$f":"IF(Construcción!$E48=Seguros_fianzas!M$12,Construcción!$B48,\"\")","v":""},{"$f":"IF(Construcción!$E48=Seguros_fianzas!N$12,Construcción!$B48,\"\")","v":""},{"$f":"IF(Construcción!$E48=Seguros_fianzas!O$12,Construcción!$B48,\"\")","v":""},{"$f":"_xlfn.XLOOKUP(A138,'Base-datos'!$B$537:$B$546,'Base-datos'!$F$537:$F$546)","v":{"$error":"#N/A"}},{"$f":"_xlfn.XLOOKUP(A138,'Base-datos'!$B$537:$B$546,'Base-datos'!$C$537:$C$546)","v":{"$error":"#N/A"}},{"$f":"_xlfn.XLOOKUP(A138,'Base-datos'!$B$537:$B$546,'Base-datos'!$D$537:$D$546)","v":{"$error":"#N/A"}},null,null,{"$f":"IF(OR(S$119=\"La actividad no cumple con el total de los criterios de No Daño Significativo\",T$119=\"El sector no cumple con las salvaguardas mínimas\"),\"\",IF(AND('Base-datos'!$B$740=\"Sí\",'Base-datos'!$B$741=\"\",'Base-datos'!$B$742=\"\"),IF(Q138=\"La actividad sí contribuye sustancialmente a la sostenibilidad\",SUM(B138:O138),0),IF(AND('Base-datos'!$B$740=\"Sí\",'Base-datos'!$B$741=\"Sí\",'Base-datos'!$B$742=\"\"),IF(AND(Q138=\"La actividad sí contribuye sustancialmente a la sostenibilidad\",R138=\"La actividad sí contribuye sustancialmente a la sostenibilidad\"),SUM(B138:O138),0),IF(AND('Base-datos'!$B$740=\"Sí\",'Base-datos'!$B$741=\"Sí\",'Base-datos'!$B$742=\"Sí\"),IF(AND(Q138=\"La actividad sí contribuye sustancialmente a la sostenibilidad\",R138=\"La actividad sí contribuye sustancialmente a la sostenibilidad\",P138=\"La actividad sí contribuye sustancialmente a la sostenibilidad\"),SUM(B138:O138),0),IF(AND('Base-datos'!$B$740=\"\",'Base-datos'!$B$741=\"Sí\",'Base-datos'!$B$742=\"\"),IF(R138=\"La actividad sí contribuye sustancialmente a la sostenibilidad\",SUM(B138:O138),0),IF(AND('Base-datos'!$B$740=\"\",'Base-datos'!$B$741=\"\",'Base-datos'!$B$742=\"Sí\"),IF(P138=\"La actividad sí contribuye sustancialmente a la sostenibilidad\",SUM(B138:O138),0),IF(AND('Base-datos'!$B$740=\"\",'Base-datos'!$B$741=\"Sí\",'Base-datos'!$B$742=\"Sí\"),IF(AND(R138=\"La actividad sí contribuye sustancialmente a la sostenibilidad\",P138=\"La actividad sí contribuye sustancialmente a la sostenibilidad\"),SUM(B138:O138),0),IF(AND('Base-datos'!$B$740=\"Sí\",'Base-datos'!$B$741=\"\",'Base-datos'!$B$742=\"Sí\"),IF(AND(Q138=\"La actividad sí contribuye sustancialmente a la sostenibilidad\",P138=\"La actividad sí contribuye sustancialmente a la sostenibilidad\"),SUM(B138:O138),0),\"Por definir\"))))))))","v":"Por definir"}]
["Manufactura",null,null,null,null,null,null,null,null,null,null,null,null,null,null,null,null,null,null,null,{"$f":"SUM(IF(FREQUENCY(MATCH(A140:A159, A140:A159, 0), MATCH(A140:A159, A140:A159, 0)) > 0, IF(NOT(ISERROR(U140:U159)), U140:U159, 0)))","v":0}]
[{"$f":"Manufactura!$C10","v":"Seleccione"},{"$f":"IF(Manufactura!$E10=Seguros_fianzas!B$12,Manufactura!$B10,\"\")","v":""},{"$f":"IF(Manufactura!$E10=Seguros_fianzas!C$12,Manufactura!$B10,\"\")","v":""},{"$f":"IF(Manufactura!$E10=Seguros_fianzas!D$12,Manufactura!$B10,\"\")","v":""},{"$f":"IF(Manufactura!$E10=Seguros_fianzas!E$12,Manufactura!$B10,\"\")","v":""},{"$f":"IF(Manufactura!$E10=Seguros_fianzas!F$12,Manufactura!$B10,\"\")","v":""},{"$f":"IF(Manufactura!$E10=Seguros_fianzas!G$12,Manufactura!$B10,\"\")","v":""},{"$f":"IF(Manufactura!$E10=Seguros_fianzas!H$12,Manufactura!$B10,\"\")","v":""},{"$f":"IF(Manufactura!$E10=Seguros_fianzas!I$12,Manufactura!$B10,\"\")","v":""},{"$f":"IF(Manufactura!$E10=Seguros_fianzas!J$12,Manufactura!$B10,\"\")","v":""},{"$f":"IF(Manufactura!$E10=Seguros_fianzas!K$12,Manufactura!$B10,\"\")","v":""},{"$f":"IF(Manufactura!$E10=Seguros_fianzas!L$12,Manufactura!$B10,\"\")","v":""},{"$f":"IF(Manufactura!$E10=Seguros_fianzas!M$12,Manufactura!$B10,\"\")","v":""},{"$f":"IF(Manufactura!$E10=Seguros_fianzas!N$12,Manufactura!$B10,\"\")","v":""},{"$f":"IF(Manufactura!$E10=Seguros_fianzas!O$12,Manufactura!$B10,\"\")","v":""},{"$f":"_xlfn.XLOOKUP(A140,'Base-datos'!$B$547:$B$552,'Base-datos'!$F$547:$F$552)","v":{"$error":"#N/A"}},{"$f":"_xlfn.XLOOKUP(A140,'Base-datos'!$B$547:$B$552,'Base-datos'!$C$547:$C$552)","v":{"$error":"#N/A"}},{"$f":"_xlfn.XLOOKUP(A140,'Base-datos'!$B$547:$B$552,'Base-datos'!$D$547:$D$552)","v":{"$error":"#N/A"}},{"$f":"IF(COUNTIF('Manufactura-NDS'!G9:G85,\"No\")>0,\"La actividad no cumple con el total de los criterios de NDS\",\"La actividad cumple con los criterios de No Daño Significativo\")","v":"La actividad cumple con los criterios de No Daño Significativo"},{"$f":"IF(OR('Salvaguardas mínimas'!$G$10=\"Seleccione\",'Salvaguardas mínimas'!$G$13=\"Seleccione\",'Salvaguardas mínimas'!$G$16=\"Seleccione\",'Salvaguardas mínimas'!$G$7=\"Seleccione\"),\"No se han respondido todas las preguntas\",IF(OR('Salvaguardas mínimas'!$G$10=\"No\",'Salvaguardas mínimas'!$G$13=\"No\",'Salvaguardas mínimas'!$G$16=\"No\",'Salvaguardas mínimas'!$G$7=\"No\"),\"El sector no cumple con las salvaguardas mínimas\",\"La actividad sí cumple con las salvaguardas mínimas\"))","v":"No se han respondido todas las preguntas"},{"$f":"IF(OR(S$140=\"La actividad no cumple con el total de los criterios de No Daño Significativo\",T$140=\"El sector no cumple con las salvaguardas mínimas\"),\"\",IF(AND('Base-datos'!$B$745=\"Sí\",'Base-datos'!$B$746=\"\",'Base-datos'!$B$747=\"\"),IF(Q140=\"La actividad sí contribuye sustancialmente a la sostenibilidad\",SUM(B140:O140),0),IF(AND('Base-datos'!$B$745=\"Sí\",'Base-datos'!$B$746=\"Sí\",'Base-datos'!$B$747=\"\"),IF(AND(Q140=\"La actividad sí contribuye sustancialmente a la sostenibilidad\",R140=\"La actividad sí contribuye sustancialmente a la sostenibilidad\"),SUM(B140:O140),0),IF(AND('Base-datos'!$B$745=\"Sí\",'Base-datos'!$B$746=\"Sí\",'Base-datos'!$B$747=\"Sí\"),IF(AND(Q140=\"La actividad sí contribuye sustancialmente a la sostenibilidad\",R140=\"La actividad sí contribuye sustancialmente a la sostenibilidad\",P140=\"La actividad sí contribuye sustancialmente a la sostenibilidad\"),SUM(B140:O140),0),IF(AND('Base-datos'!$B$745=\"\",'Base-datos'!$B$746=\"Sí\",'Base-datos'!$B$747=\"\"),IF(R140=\"La actividad sí contribuye sustancialmente a la sostenibilidad\",SUM(B140:O140),0),IF(AND('Base-datos'!$B$745=\"\",'Base-datos'!$B$746=\"\",'Base-datos'!$B$747=\"Sí\"),IF(P140=\"La actividad sí contribuye sustancialmente a la sostenibilidad\",SUM(B140:O140),0),IF(AND('Base-datos'!$B$745=\"\",'Base-datos'!$B$746=\"Sí\",'Base-datos'!$B$747=\"Sí\"),IF(AND(R140=\"La actividad sí contribuye sustancialmente a la sostenibilidad\",P140=\"La actividad sí contribuye sustancialmente a la sostenibilidad\"),SUM(B140:O140),0),IF(AND('Base-datos'!$B$745=\"Sí\",'Base-datos'!$B$746=\"\",'Base-datos'!$B$747=\"Sí\"),IF(AND(Q140=\"La actividad sí contribuye sustancialmente a la sostenibilidad\",P140=\"La actividad sí contribuye sustancialmente a la sostenibilidad\"),SUM(B140:O140),0),\"Por definir\"))))))))","v":"Por definir"}]
[{"$f":"Manufactura!$C12","v":"Seleccione"},{"$f":"IF(Manufactura!$E12=Seguros_fianzas!B$12,Manufactura!$B12,\"\")","v":""},{"$f":"IF(Manufactura!$E12=Seguros_fianzas!C$12,Manufactura!$B12,\"\")","v":""},{"$f":"IF(Manufactura!$E12=Seguros_fianzas!D$12,Manufactura!$B12,\"\")","v":""},{"$f":"IF(Manufactura!$E12=Seguros_fianzas!E$12,Manufactura!$B12,\"\")","v":""},{"$f":"IF(Manufactura!$E12=Seguros_fianzas!F$12,Manufactura!$B12,\"\")","v":""},{"$f":"IF(Manufactura!$E12=Seguros_fianzas!G$12,Manufactura!$B12,\"\")","v":""},{"$f":"IF(Manufactura!$E12=Seguros_fianzas!H$12,Manufactura!$B12,\"\")","v":""},{"$f":"IF(Manufactura!$E12=Seguros_fianzas!I$12,Manufactura!$B12,\"\")","v":""},{"$f":"IF(Manufactura!$E12=Seguros_fianzas!J$12,Manufactura!$B12,\"\")","v":""},{"$f":"IF(Manufactura!$E12=Seguros_fianzas!K$12,Manufactura!$B12,\"\")","v":""},{"$f":"IF(Manufactura!$E12=Seguros_fianzas!L$12,Manufactura!$B12,\"\")","v":""},{"$f":"IF(Manufactura!$E12=Seguros_fianzas!M$12,Manufactura!$B12,\"\")","v":""},{"$f":"IF(Manufactura!$E12=Seguros_fianzas!N$12,Manufactura!$B12,\"\")","v":""},{"$f":"IF(Manufactura!$E12=Seguros_fianzas!O$12,Manufactura!$B12,\"\")","v":""},{"$f":"_xlfn.XLOOKUP(A141,'Base-datos'!$B$547:$B$552,'Base-datos'!$F$547:$F$552)","v":{"$error":"#N/A"}},{"$f":"_xlfn.XLOOKUP(A141,'Base-datos'!$B$547:$B$552,'Base-datos'!$C$547:$C$552)","v":{"$error":"#N/A"}},{"$f":"_xlfn.XLOOKUP(A141,'Base-datos'!$B$547:$B$552,'Base-datos'!$D$547:$D$552)","v":{"$error":"#N/A"}},null,null,{"$f":"IF(OR(S$140=\"La actividad no cumple con el total de los criterios de No Daño Significativo\",T$140=\"El sector no cumple con las salvaguardas mínimas\"),\"\",IF(AND('Base-datos'!$B$745=\"Sí\",'Base-datos'!$B$746=\"\",'Base-datos'!$B$747=\"\"),IF(Q141=\"La actividad sí contribuye sustancialmente a la sostenibilidad\",SUM(B141:O141),0),IF(AND('Base-datos'!$B$745=\"Sí\",'Base-datos'!$B$746=\"Sí\",'Base-datos'!$B$747=\"\"),IF(AND(Q141=\"La actividad sí contribuye sustancialmente a la sostenibilidad\",R141=\"La actividad sí contribuye sustancialmente a la sostenibilidad\"),SUM(B141:O141),0),IF(AND('Base-datos'!$B$745=\"Sí\",'Base-datos'!$B$746=\"Sí\",'Base-datos'!$B$747=\"Sí\"),IF(AND(Q141=\"La actividad sí contribuye sustancialmente a la sostenibilidad\",R141=\"La actividad sí contribuye sustancialmente a la sostenibilidad\",P141=\"La actividad sí contribuye sustancialmente a la sostenibilidad\"),SUM(B141:O141),0),IF(AND('Base-datos'!$B$745=\"\",'Base-datos'!$B$746=\"Sí\",'Base-datos'!$B$747=\"\"),IF(R141=\"La actividad sí contribuye sustancialmente a la sostenibilidad\",SUM(B141:O141),0),IF(AND('Base-datos'!$B$745=\"\",'Base-datos'!$B$746=\"\",'Base-datos'!$B$747=\"Sí\"),IF(P141=\"La actividad sí contribuye sustancialmente a la sostenibilidad\",SUM(B141:O141),0),IF(AND('Base-datos'!$B$745=\"\",'Base-datos'!$B$746=\"Sí\",'Base-datos'!$B$747=\"Sí\"),IF(AND(R141=\"La actividad sí contribuye sustancialmente a la sostenibilidad\",P141=\"La actividad sí contribuye sustancialmente a la sostenibilidad\"),SUM(B141:O141),0),IF(AND('Base-datos'!$B$745=\"Sí\",'Base-datos'!$B$746=\"\",'Base-datos'!$B$747=\"Sí\"),IF(AND(Q141=\"La actividad sí contribuye sustancialmente a la sostenibilidad\",P141=\"La actividad sí contribuye sustancialmente a la sostenibilidad\"),SUM(B141:O141),0),\"Por definir\"))))))))","v":"Por definir"}]
[{"$f":"Manufactura!$C14","v":"Seleccione"},{"$f":"IF(Manufactura!$E14=Seguros_fianzas!B$12,Manufactura!$B14,\"\")","v":""},{"$f":"IF(Manufactura!$E14=Seguros_fianzas!C$12,Manufactura!$B14,\"\")","v":""},{"$f":"IF(Manufactura!$E14=Seguros_fianzas!D$12,Manufactura!$B14,\"\")","v":""},{"$f":"IF(Manufactura!$E14=Seguros_fianzas!E$12,Manufactura!$B14,\"\")","v":""},{"$f":"IF(Manufactura!$E14=Seguros_fianzas!F$12,Manufactura!$B14,\"\")","v":""},{"$f":"IF(Manufactura!$E14=Seguros_fianzas!G$12,Manufactura!$B14,\"\")","v":""},{"$f":"IF(Manufactura!$E14=Seguros_fianzas!H$12,Manufactura!$B14,\"\")","v":""},{"$f":"IF(Manufactura!$E14=Seguros_fianzas!I$12,Manufactura!$B14,\"\")","v":""},{"$f":"IF(Manufactura!$E14=Seguros_fianzas!J$12,Manufactura!$B14,\"\")","v":""},{"$f":"IF(Manufactura!$E14=Seguros_fianzas!K$12,Manufactura!$B14,\"\")","v":""},{"$f":"IF(Manufactura!$E14=Seguros_fianzas!L$12,Manufactura!$B14,\"\")","v":""},{"$f":"IF(Manufactura!$E14=Seguros_fianzas!M$12,Manufactura!$B14,\"\")","v":""},{"$f":"IF(Manufactura!$E14=Seguros_fianzas!N$12,Manufactura!$B14,\"\")","v":""},{"$f":"IF(Manufactura!$E14=Seguros_fianzas!O$12,Manufactura!$B14,\"\")","v":""},{"$f":"_xlfn.XLOOKUP(A142,'Base-datos'!$B$547:$B$552,'Base-datos'!$F$547:$F$552)","v":{"$error":"#N/A"}},{"$f":"_xlfn.XLOOKUP(A142,'Base-datos'!$B$547:$B$552,'Base-datos'!$C$547:$C$552)","v":{"$error":"#N/A"}},{"$f":"_xlfn.XLOOKUP(A142,'Base-datos'!$B$547:$B$552,'Base-datos'!$D$547:$D$552)","v":{"$error":"#N/A"}},null,null,{"$f":"IF(OR(S$140=\"La actividad no cumple con el total de los criterios de No Daño Significativo\",T$140=\"El sector no cumple con las salvaguardas mínimas\"),\"\",IF(AND('Base-datos'!$B$745=\"Sí\",'Base-datos'!$B$746=\"\",'Base-datos'!$B$747=\"\"),IF(Q142=\"La actividad sí contribuye sustancialmente a la sostenibilidad\",SUM(B142:O142),0),IF(AND('Base-datos'!$B$745=\"Sí\",'Base-datos'!$B$746=\"Sí\",'Base-datos'!$B$747=\"\"),IF(AND(Q142=\"La actividad sí contribuye sustancialmente a la sostenibilidad\",R142=\"La actividad sí contribuye sustancialmente a la sostenibilidad\"),SUM(B142:O142),0),IF(AND('Base-datos'!$B$745=\"Sí\",'Base-datos'!$B$746=\"Sí\",'Base-datos'!$B$747=\"Sí\"),IF(AND(Q142=\"La actividad sí contribuye sustancialmente a la sostenibilidad\",R142=\"La actividad sí contribuye sustancialmente a la sostenibilidad\",P142=\"La actividad sí contribuye sustancialmente a la sostenibilidad\"),SUM(B142:O142),0),IF(AND('Base-datos'!$B$745=\"\",'Base-datos'!$B$746=\"Sí\",'Base-datos'!$B$747=\"\"),IF(R142=\"La actividad sí contribuye sustancialmente a la sostenibilidad\",SUM(B142:O142),0),IF(AND('Base-datos'!$B$745=\"\",'Base-datos'!$B$746=\"\",'Base-datos'!$B$747=\"Sí\"),IF(P142=\"La actividad sí contribuye sustancialmente a la sostenibilidad\",SUM(B142:O142),0),IF(AND('Base-datos'!$B$745=\"\",'Base-datos'!$B$746=\"Sí\",'Base-datos'!$B$747=\"Sí\"),IF(AND(R142=\"La actividad sí contribuye sustancialmente a la sostenibilidad\",P142=\"La actividad sí contribuye sustancialmente a la sostenibilidad\"),SUM(B142:O142),0),IF(AND('Base-datos'!$B$745=\"Sí\",'Base-datos'!$B$746=\"\",'Base-datos'!$B$747=\"Sí\"),IF(AND(Q142=\"La actividad sí contribuye sustancialmente a la sostenibilidad\",P142=\"La actividad sí contribuye sustancialmente a la sostenibilidad\"),SUM(B142:O142),0),\"Por definir\"))))))))","v":"Por definir"}]
[{"$f":"Manufactura!$C16","v":"Seleccione"},{"$f":"IF(Manufactura!$E16=Seguros_fianzas!B$12,Manufactura!$B16,\"\")","v":""},{"$f":"IF(Manufactura!$E16=Seguros_fianzas!C$12,Manufactura!$B16,\"\")","v":""},{"$f":"IF(Manufactura!$E16=Seguros_fianzas!D$12,Manufactura!$B16,\"\")","v":""},{"$f":"IF(Manufactura!$E16=Seguros_fianzas!E$12,Manufactura!$B16,\"\")","v":""},{"$f":"IF(Manufactura!$E16=Seguros_fianzas!F$12,Manufactura!$B16,\"\")","v":""},{"$f":"IF(Manufactura!$E16=Seguros_fianzas!G$12,Manufactura!$B16,\"\")","v":""},{"$f":"IF(Manufactura!$E16=Seguros_fianzas!H$12,Manufactura!$B16,\"\")","v":""},{"$f":"IF(Manufactura!$E16=Seguros_fianzas!I$12,Manufactura!$B16,\"\")","v":""},{"$f":"IF(Manufactura!$E16=Seguros_fianzas!J$12,Manufactura!$B16,\"\")","v":""},{"$f":"IF(Manufactura!$E16=Seguros_fianzas!K$12,Manufactura!$B16,\"\")","v":""},{"$f":"IF(Manufactura!$E16=Seguros_fianzas!L$12,Manufactura!$B16,\"\")","v":""},{"$f":"IF(Manufactura!$E16=Seguros_fianzas!M$12,Manufactura!$B16,\"\")","v":""},{"$f":"IF(Manufactura!$E16=Seguros_fianzas!N$12,Manufactura!$B16,\"\")","v":""},{"$f":"IF(Manufactura!$E16=Seguros_fianzas!O$12,Manufactura!$B16,\"\")","v":""},{"$f":"_xlfn.XLOOKUP(A143,'Base-datos'!$B$547:$B$552,'Base-datos'!$F$547:$F$552)","v":{"$error":"#N/A"}},{"$f":"_xlfn.XLOOKUP(A143,'Base-datos'!$B$547:$B$552,'Base-datos'!$C$547:$C$552)","v":{"$error":"#N/A"}},{"$f":"_xlfn.XLOOKUP(A143,'Base-datos'!$B$547:$B$552,'Base-datos'!$D$547:$D$552)","v":{"$error":"#N/A"}},null,null,{"$f":"IF(OR(S$140=\"La actividad no cumple con el total de los criterios de No Daño Significativo\",T$140=\"El sector no cumple con las salvaguardas mínimas\"),\"\",IF(AND('Base-datos'!$B$745=\"Sí\",'Base-datos'!$B$746=\"\",'Base-datos'!$B$747=\"\"),IF(Q143=\"La actividad sí contribuye sustancialmente a la sostenibilidad\",SUM(B143:O143),0),IF(AND('Base-datos'!$B$745=\"Sí\",'Base-datos'!$B$746=\"Sí\",'Base-datos'!$B$747=\"\"),IF(AND(Q143=\"La actividad sí contribuye sustancialmente a la sostenibilidad\",R143=\"La actividad sí contribuye sustancialmente a la sostenibilidad\"),SUM(B143:O143),0),IF(AND('Base-datos'!$B$745=\"Sí\",'Base-datos'!$B$746=\"Sí\",'Base-datos'!$B$747=\"Sí\"),IF(AND(Q143=\"La actividad sí contribuye sustancialmente a la sostenibilidad\",R143=\"La actividad sí contribuye sustancialmente a la sostenibilidad\",P143=\"La actividad sí contribuye sustancialmente a la sostenibilidad\"),SUM(B143:O143),0),IF(AND('Base-datos'!$B$745=\"\",'Base-datos'!$B$746=\"Sí\",'Base-datos'!$B$747=\"\"),IF(R143=\"La actividad sí contribuye sustancialmente a la sostenibilidad\",SUM(B143:O143),0),IF(AND('Base-datos'!$B$745=\"\",'Base-datos'!$B$746=\"\",'Base-datos'!$B$747=\"Sí\"),IF(P143=\"La actividad sí contribuye sustancialmente a la sostenibilidad\",SUM(B143:O143),0),IF(AND('Base-datos'!$B$745=\"\",'Base-datos'!$B$746=\"Sí\",'Base-datos'!$B$747=\"Sí\"),IF(AND(R143=\"La actividad sí contribuye sustancialmente a la sostenibilidad\",P143=\"La actividad sí contribuye sustancialmente a la sostenibilidad\"),SUM(B143:O143),0),IF(AND('Base-datos'!$B$745=\"Sí\",'Base-datos'!$B$746=\"\",'Base-datos'!$B$747=\"Sí\"),IF(AND(Q143=\"La actividad sí contribuye sustancialmente a la sostenibilidad\",P143=\"La actividad sí contribuye sustancialmente a la sostenibilidad\"),SUM(B143:O143),0),\"Por definir\"))))))))","v":"Por definir"}]
[{"$f":"Manufactura!$C18","v":"Seleccione"},{"$f":"IF(Manufactura!$E18=Seguros_fianzas!B$12,Manufactura!$B18,\"\")","v":""},{"$f":"IF(Manufactura!$E18=Seguros_fianzas!C$12,Manufactura!$B18,\"\")","v":""},{"$f":"IF(Manufactura!$E18=Seguros_fianzas!D$12,Manufactura!$B18,\"\")","v":""},{"$f":"IF(Manufactura!$E18=Seguros_fianzas!E$12,Manufactura!$B18,\"\")","v":""},{"$f":"IF(Manufactura!$E18=Seguros_fianzas!F$12,Manufactura!$B18,\"\")","v":""},{"$f":"IF(Manufactura!$E18=Seguros_fianzas!G$12,Manufactura!$B18,\"\")","v":""},{"$f":"IF(Manufactura!$E18=Seguros_fianzas!H$12,Manufactura!$B18,\"\")","v":""},{"$f":"IF(Manufactura!$E18=Seguros_fianzas!I$12,Manufactura!$B18,\"\")","v":""},{"$f":"IF(Manufactura!$E18=Seguros_fianzas!J$12,Manufactura!$B18,\"\")","v":""},{"$f":"IF(Manufactura!$E18=Seguros_fianzas!K$12,Manufactura!$B18,\"\")","v":""},{"$f":"IF(Manufactura!$E18=Seguros_fianzas!L$12,Manufactura!$B18,\"\")","v":""},{"$f":"IF(Manufactura!$E18=Seguros_fianzas!M$12,Manufactura!$B18,\"\")","v":""},{"$f":"IF(Manufactura!$E18=Seguros_fianzas!N$12,Manufactura!$B18,\"\")","v":""},{"$f":"IF(Manufactura!$E18=Seguros_fianzas!O$12,Manufactura!$B18,\"\")","v":""},{"$f":"_xlfn.XLOOKUP(A144,'Base-datos'!$B$547:$B$552,'Base-datos'!$F$547:$F$552)","v":{"$error":"#N/A"}},{"$f":"_xlfn.XLOOKUP(A144,'Base-datos'!$B$547:$B$552,'Base-datos'!$C$547:$C$552)","v":{"$error":"#N/A"}},{"$f":"_xlfn.XLOOKUP(A144,'Base-datos'!$B$547:$B$552,'Base-datos'!$D$547:$D$552)","v":{"$error":"#N/A"}},null,null,{"$f":"IF(OR(S$140=\"La actividad no cumple con el total de los criterios de No Daño Significativo\",T$140=\"El sector no cumple con las salvaguardas mínimas\"),\"\",IF(AND('Base-datos'!$B$745=\"Sí\",'Base-datos'!$B$746=\"\",'Base-datos'!$B$747=\"\"),IF(Q144=\"La actividad sí contribuye sustancialmente a la sostenibilidad\",SUM(B144:O144),0),IF(AND('Base-datos'!$B$745=\"Sí\",'Base-datos'!$B$746=\"Sí\",'Base-datos'!$B$747=\"\"),IF(AND(Q144=\"La actividad sí contribuye sustancialmente a la sostenibilidad\",R144=\"La actividad sí contribuye sustancialmente a la sostenibilidad\"),SUM(B144:O144),0),IF(AND('Base-datos'!$B$745=\"Sí\",'Base-datos'!$B$746=\"Sí\",'Base-datos'!$B$747=\"Sí\"),IF(AND(Q144=\"La actividad sí contribuye sustancialmente a la sostenibilidad\",R144=\"La actividad sí contribuye sustancialmente a la sostenibilidad\",P144=\"La actividad sí contribuye sustancialmente a la sostenibilidad\"),SUM(B144:O144),0),IF(AND('Base-datos'!$B$745=\"\",'Base-datos'!$B$746=\"Sí\",'Base-datos'!$B$747=\"\"),IF(R144=\"La actividad sí contribuye sustancialmente a la sostenibilidad\",SUM(B144:O144),0),IF(AND('Base-datos'!$B$745=\"\",'Base-datos'!$B$746=\"\",'Base-datos'!$B$747=\"Sí\"),IF(P144=\"La actividad sí contribuye sustancialmente a la sostenibilidad\",SUM(B144:O144),0),IF(AND('Base-datos'!$B$745=\"\",'Base-datos'!$B$746=\"Sí\",'Base-datos'!$B$747=\"Sí\"),IF(AND(R144=\"La actividad sí contribuye sustancialmente a la sostenibilidad\",P144=\"La actividad sí contribuye sustancialmente a la sostenibilidad\"),SUM(B144:O144),0),IF(AND('Base-datos'!$B$745=\"Sí\",'Base-datos'!$B$746=\"\",'Base-datos'!$B$747=\"Sí\"),IF(AND(Q144=\"La actividad sí contribuye sustancialmente a la sostenibilidad\",P144=\"La actividad sí contribuye sustancialmente a la sostenibilidad\"),SUM(B144:O144),0),\"Por definir\"))))))))","v":"Por definir"}]
[{"$f":"Manufactura!$C20","v":"Seleccione"},{"$f":"IF(Manufactura!$E20=Seguros_fianzas!B$12,Manufactura!$B20,\"\")","v":""},{"$f":"IF(Manufactura!$E20=Seguros_fianzas!C$12,Manufactura!$B20,\"\")","v":""},{"$f":"IF(Manufactura!$E20=Seguros_fianzas!D$12,Manufactura!$B20,\"\")","v":""},{"$f":"IF(Manufactura!$E20=Seguros_fianzas!E$12,Manufactura!$B20,\"\")","v":""},{"$f":"IF(Manufactura!$E20=Seguros_fianzas!F$12,Manufactura!$B20,\"\")","v":""},{"$f":"IF(Manufactura!$E20=Seguros_fianzas!G$12,Manufactura!$B20,\"\")","v":""},{"$f":"IF(Manufactura!$E20=Seguros_fianzas!H$12,Manufactura!$B20,\"\")","v":""},{"$f":"IF(Manufactura!$E20=Seguros_fianzas!I$12,Manufactura!$B20,\"\")","v":""},{"$f":"IF(Manufactura!$E20=Seguros_fianzas!J$12,Manufactura!$B20,\"\")","v":""},{"$f":"IF(Manufactura!$E20=Seguros_fianzas!K$12,Manufactura!$B20,\"\")","v":""},{"$f":"IF(Manufactura!$E20=Seguros_fianzas!L$12,Manufactura!$B20,\"\")","v":""},{"$f":"IF(Manufactura!$E20=Seguros_fianzas!M$12,Manufactura!$B20,\"\")","v":""},{"$f":"IF(Manufactura!$E20=Seguros_fianzas!N$12,Manufactura!$B20,\"\")","v":""},{"$f":"IF(Manufactura!$E20=Seguros_fianzas!O$12,Manufactura!$B20,\"\")","v":""},{"$f":"_xlfn.XLOOKUP(A145,'Base-datos'!$B$547:$B$552,'Base-datos'!$F$547:$F$552)","v":{"$error":"#N/A"}},{"$f":"_xlfn.XLOOKUP(A145,'Base-datos'!$B$547:$B$552,'Base-datos'!$C$547:$C$552)","v":{"$error":"#N/A"}},{"$f":"_xlfn.XLOOKUP(A145,'Base-datos'!$B$547:$B$552,'Base-datos'!$D$547:$D$552)","v":{"$error":"#N/A"}},null,null,{"$f":"IF(OR(S$140=\"La actividad no cumple con el total de los criterios de No Daño Significativo\",T$140=\"El sector no cumple con las salvaguardas mínimas\"),\"\",IF(AND('Base-datos'!$B$745=\"Sí\",'Base-datos'!$B$746=\"\",'Base-datos'!$B$747=\"\"),IF(Q145=\"La actividad sí contribuye sustancialmente a la sostenibilidad\",SUM(B145:O145),0),IF(AND('Base-datos'!$B$745=\"Sí\",'Base-datos'!$B$746=\"Sí\",'Base-datos'!$B$747=\"\"),IF(AND(Q145=\"La actividad sí contribuye sustancialmente a la sostenibilidad\",R145=\"La actividad sí contribuye sustancialmente a la sostenibilidad\"),SUM(B145:O145),0),IF(AND('Base-datos'!$B$745=\"Sí\",'Base-datos'!$B$746=\"Sí\",'Base-datos'!$B$747=\"Sí\"),IF(AND(Q145=\"La actividad sí contribuye sustancialmente a la sostenibilidad\",R145=\"La actividad sí contribuye sustancialmente a la sostenibilidad\",P145=\"La actividad sí contribuye sustancialmente a la sostenibilidad\"),SUM(B145:O145),0),IF(AND('Base-datos'!$B$745=\"\",'Base-datos'!$B$746=\"Sí\",'Base-datos'!$B$747=\"\"),IF(R145=\"La actividad sí contribuye sustancialmente a la sostenibilidad\",SUM(B145:O145),0),IF(AND('Base-datos'!$B$745=\"\",'Base-datos'!$B$746=\"\",'Base-datos'!$B$747=\"Sí\"),IF(P145=\"La actividad sí contribuye sustancialmente a la sostenibilidad\",SUM(B145:O145),0),IF(AND('Base-datos'!$B$745=\"\",'Base-datos'!$B$746=\"Sí\",'Base-datos'!$B$747=\"Sí\"),IF(AND(R145=\"La actividad sí contribuye sustancialmente a la sostenibilidad\",P145=\"La actividad sí contribuye sustancialmente a la sostenibilidad\"),SUM(B145:O145),0),IF(AND('Base-datos'!$B$745=\"Sí\",'Base-datos'!$B$746=\"\",'Base-datos'!$B$747=\"Sí\"),IF(AND(Q145=\"La actividad sí contribuye sustancialmente a la sostenibilidad\",P145=\"La actividad sí contribuye sustancialmente a la sostenibilidad\"),SUM(B145:O145),0),\"Por definir\"))))))))","v":"Por definir"}]
[{"$f":"Manufactura!$C22","v":"Seleccione"},{"$f":"IF(Manufactura!$E22=Seguros_fianzas!B$12,Manufactura!$B22,\"\")","v":""},{"$f":"IF(Manufactura!$E22=Seguros_fianzas!C$12,Manufactura!$B22,\"\")","v":""},{"$f":"IF(Manufactura!$E22=Seguros_fianzas!D$12,Manufactura!$B22,\"\")","v":""},{"$f":"IF(Manufactura!$E22=Seguros_fianzas!E$12,Manufactura!$B22,\"\")","v":""},{"$f":"IF(Manufactura!$E22=Seguros_fianzas!F$12,Manufactura!$B22,\"\")","v":""},{"$f":"IF(Manufactura!$E22=Seguros_fianzas!G$12,Manufactura!$B22,\"\")","v":""},{"$f":"IF(Manufactura!$E22=Seguros_fianzas!H$12,Manufactura!$B22,\"\")","v":""},{"$f":"IF(Manufactura!$E22=Seguros_fianzas!I$12,Manufactura!$B22,\"\")","v":""},{"$f":"IF(Manufactura!$E22=Seguros_fianzas!J$12,Manufactura!$B22,\"\")","v":""},{"$f":"IF(Manufactura!$E22=Seguros_fianzas!K$12,Manufactura!$B22,\"\")","v":""},{"$f":"IF(Manufactura!$E22=Seguros_fianzas!L$12,Manufactura!$B22,\"\")","v":""},{"$f":"IF(Manufactura!$E22=Seguros_fianzas!M$12,Manufactura!$B22,\"\")","v":""},{"$f":"IF(Manufactura!$E22=Seguros_fianzas!N$12,Manufactura!$B22,\"\")","v":""},{"$f":"IF(Manufactura!$E22=Seguros_fianzas!O$12,Manufactura!$B22,\"\")","v":""},{"$f":"_xlfn.XLOOKUP(A146,'Base-datos'!$B$547:$B$552,'Base-datos'!$F$547:$F$552)","v":{"$error":"#N/A"}},{"$f":"_xlfn.XLOOKUP(A146,'Base-datos'!$B$547:$B$552,'Base-datos'!$C$547:$C$552)","v":{"$error":"#N/A"}},{"$f":"_xlfn.XLOOKUP(A146,'Base-datos'!$B$547:$B$552,'Base-datos'!$D$547:$D$552)","v":{"$error":"#N/A"}},null,null,{"$f":"IF(OR(S$140=\"La actividad no cumple con el total de los criterios de No Daño Significativo\",T$140=\"El sector no cumple con las salvaguardas mínimas\"),\"\",IF(AND('Base-datos'!$B$745=\"Sí\",'Base-datos'!$B$746=\"\",'Base-datos'!$B$747=\"\"),IF(Q146=\"La actividad sí contribuye sustancialmente a la sostenibilidad\",SUM(B146:O146),0),IF(AND('Base-datos'!$B$745=\"Sí\",'Base-datos'!$B$746=\"Sí\",'Base-datos'!$B$747=\"\"),IF(AND(Q146=\"La actividad sí contribuye sustancialmente a la sostenibilidad\",R146=\"La actividad sí contribuye sustancialmente a la sostenibilidad\"),SUM(B146:O146),0),IF(AND('Base-datos'!$B$745=\"Sí\",'Base-datos'!$B$746=\"Sí\",'Base-datos'!$B$747=\"Sí\"),IF(AND(Q146=\"La actividad sí contribuye sustancialmente a la sostenibilidad\",R146=\"La actividad sí contribuye sustancialmente a la sostenibilidad\",P146=\"La actividad sí contribuye sustancialmente a la sostenibilidad\"),SUM(B146:O146),0),IF(AND('Base-datos'!$B$745=\"\",'Base-datos'!$B$746=\"Sí\",'Base-datos'!$B$747=\"\"),IF(R146=\"La actividad sí contribuye sustancialmente a la sostenibilidad\",SUM(B146:O146),0),IF(AND('Base-datos'!$B$745=\"\",'Base-datos'!$B$746=\"\",'Base-datos'!$B$747=\"Sí\"),IF(P146=\"La actividad sí contribuye sustancialmente a la sostenibilidad\",SUM(B146:O146),0),IF(AND('Base-datos'!$B$745=\"\",'Base-datos'!$B$746=\"Sí\",'Base-datos'!$B$747=\"Sí\"),IF(AND(R146=\"La actividad sí contribuye sustancialmente a la sostenibilidad\",P146=\"La actividad sí contribuye sustancialmente a la sostenibilidad\"),SUM(B146:O146),0),IF(AND('Base-datos'!$B$745=\"Sí\",'Base-datos'!$B$746=\"\",'Base-datos'!$B$747=\"Sí\"),IF(AND(Q146=\"La actividad sí contribuye sustancialmente a la sostenibilidad\",P146=\"La actividad sí contribuye sustancialmente a la sostenibilidad\"),SUM(B146:O146),0),\"Por definir\"))))))))","v":"Por definir"}]
[{"$f":"Manufactura!$C24","v":"Seleccione"},{"$f":"IF(Manufactura!$E24=Seguros_fianzas!B$12,Manufactura!$B24,\"\")","v":""},{"$f":"IF(Manufactura!$E24=Seguros_fianzas!C$12,Manufactura!$B24,\"\")","v":""},{"$f":"IF(Manufactura!$E24=Seguros_fianzas!D$12,Manufactura!$B24,\"\")","v":""},{"$f":"IF(Manufactura!$E24=Seguros_fianzas!E$12,Manufactura!$B24,\"\")","v":""},{"$f":"IF(Manufactura!$E24=Seguros_fianzas!F$12,Manufactura!$B24,\"\")","v":""},{"$f":"IF(Manufactura!$E24=Seguros_fianzas!G$12,Manufactura!$B24,\"\")","v":""},{"$f":"IF(Manufactura!$E24=Seguros_fianzas!H$12,Manufactura!$B24,\"\")","v":""},{"$f":"IF(Manufactura!$E24=Seguros_fianzas!I$12,Manufactura!$B24,\"\")","v":""},{"$f":"IF(Manufactura!$E24=Seguros_fianzas!J$12,Manufactura!$B24,\"\")","v":""},{"$f":"IF(Manufactura!$E24=Seguros_fianzas!K$12,Manufactura!$B24,\"\")","v":""},{"$f":"IF(Manufactura!$E24=Seguros_fianzas!L$12,Manufactura!$B24,\"\")","v":""},{"$f":"IF(Manufactura!$E24=Seguros_fianzas!M$12,Manufactura!$B24,\"\")","v":""},{"$f":"IF(Manufactura!$E24=Seguros_fianzas!N$12,Manufactura!$B24,\"\")","v":""},{"$f":"IF(Manufactura!$E24=Seguros_fianzas!O$12,Manufactura!$B24,\"\")","v":""},{"$f":"_xlfn.XLOOKUP(A147,'Base-datos'!$B$547:$B$552,'Base-datos'!$F$547:$F$552)","v":{"$error":"#N/A"}},{"$f":"_xlfn.XLOOKUP(A147,'Base-datos'!$B$547:$B$552,'Base-datos'!$C$547:$C$552)","v":{"$error":"#N/A"}},{"$f":"_xlfn.XLOOKUP(A147,'Base-datos'!$B$547:$B$552,'Base-datos'!$D$547:$D$552)","v":{"$error":"#N/A"}},null,null,{"$f":"IF(OR(S$140=\"La actividad no cumple con el total de los criterios de No Daño Significativo\",T$140=\"El sector no cumple con las salvaguardas mínimas\"),\"\",IF(AND('Base-datos'!$B$745=\"Sí\",'Base-datos'!$B$746=\"\",'Base-datos'!$B$747=\"\"),IF(Q147=\"La actividad sí contribuye sustancialmente a la sostenibilidad\",SUM(B147:O147),0),IF(AND('Base-datos'!$B$745=\"Sí\",'Base-datos'!$B$746=\"Sí\",'Base-datos'!$B$747=\"\"),IF(AND(Q147=\"La actividad sí contribuye sustancialmente a la sostenibilidad\",R147=\"La actividad sí contribuye sustancialmente a la sostenibilidad\"),SUM(B147:O147),0),IF(AND('Base-datos'!$B$745=\"Sí\",'Base-datos'!$B$746=\"Sí\",'Base-datos'!$B$747=\"Sí\"),IF(AND(Q147=\"La actividad sí contribuye sustancialmente a la sostenibilidad\",R147=\"La actividad sí contribuye sustancialmente a la sostenibilidad\",P147=\"La actividad sí contribuye sustancialmente a la sostenibilidad\"),SUM(B147:O147),0),IF(AND('Base-datos'!$B$745=\"\",'Base-datos'!$B$746=\"Sí\",'Base-datos'!$B$747=\"\"),IF(R147=\"La actividad sí contribuye sustancialmente a la sostenibilidad\",SUM(B147:O147),0),IF(AND('Base-datos'!$B$745=\"\",'Base-datos'!$B$746=\"\",'Base-datos'!$B$747=\"Sí\"),IF(P147=\"La actividad sí contribuye sustancialmente a la sostenibilidad\",SUM(B147:O147),0),IF(AND('Base-datos'!$B$745=\"\",'Base-datos'!$B$746=\"Sí\",'Base-datos'!$B$747=\"Sí\"),IF(AND(R147=\"La actividad sí contribuye sustancialmente a la sostenibilidad\",P147=\"La actividad sí contribuye sustancialmente a la sostenibilidad\"),SUM(B147:O147),0),IF(AND('Base-datos'!$B$745=\"Sí\",'Base-datos'!$B$746=\"\",'Base-datos'!$B$747=\"Sí\"),IF(AND(Q147=\"La actividad sí contribuye sustancialmente a la sostenibilidad\",P147=\"La actividad sí contribuye sustancialmente a la sostenibilidad\"),SUM(B147:O147),0),\"Por definir\"))))))))","v":"Por definir"}]
[{"$f":"Manufactura!$C26","v":"Seleccione"},{"$f":"IF(Manufactura!$E26=Seguros_fianzas!B$12,Manufactura!$B26,\"\")","v":""},{"$f":"IF(Manufactura!$E26=Seguros_fianzas!C$12,Manufactura!$B26,\"\")","v":""},{"$f":"IF(Manufactura!$E26=Seguros_fianzas!D$12,Manufactura!$B26,\"\")","v":""},{"$f":"IF(Manufactura!$E26=Seguros_fianzas!E$12,Manufactura!$B26,\"\")","v":""},{"$f":"IF(Manufactura!$E26=Seguros_fianzas!F$12,Manufactura!$B26,\"\")","v":""},{"$f":"IF(Manufactura!$E26=Seguros_fianzas!G$12,Manufactura!$B26,\"\")","v":""},{"$f":"IF(Manufactura!$E26=Seguros_fianzas!H$12,Manufactura!$B26,\"\")","v":""},{"$f":"IF(Manufactura!$E26=Seguros_fianzas!I$12,Manufactura!$B26,\"\")","v":""},{"$f":"IF(Manufactura!$E26=Seguros_fianzas!J$12,Manufactura!$B26,\"\")","v":""},{"$f":"IF(Manufactura!$E26=Seguros_fianzas!K$12,Manufactura!$B26,\"\")","v":""},{"$f":"IF(Manufactura!$E26=Seguros_fianzas!L$12,Manufactura!$B26,\"\")","v":""},{"$f":"IF(Manufactura!$E26=Seguros_fianzas!M$12,Manufactura!$B26,\"\")","v":""},{"$f":"IF(Manufactura!$E26=Seguros_fianzas!N$12,Manufactura!$B26,\"\")","v":""},{"$f":"IF(Manufactura!$E26=Seguros_fianzas!O$12,Manufactura!$B26,\"\")","v":""},{"$f":"_xlfn.XLOOKUP(A148,'Base-datos'!$B$547:$B$552,'Base-datos'!$F$547:$F$552)","v":{"$error":"#N/A"}},{"$f":"_xlfn.XLOOKUP(A148,'Base-datos'!$B$547:$B$552,'Base-datos'!$C$547:$C$552)","v":{"$error":"#N/A"}},{"$f":"_xlfn.XLOOKUP(A148,'Base-datos'!$B$547:$B$552,'Base-datos'!$D$547:$D$552)","v":{"$error":"#N/A"}},null,null,{"$f":"IF(OR(S$140=\"La actividad no cumple con el total de los criterios de No Daño Significativo\",T$140=\"El sector no cumple con las salvaguardas mínimas\"),\"\",IF(AND('Base-datos'!$B$745=\"Sí\",'Base-datos'!$B$746=\"\",'Base-datos'!$B$747=\"\"),IF(Q148=\"La actividad sí contribuye sustancialmente a la sostenibilidad\",SUM(B148:O148),0),IF(AND('Base-datos'!$B$745=\"Sí\",'Base-datos'!$B$746=\"Sí\",'Base-datos'!$B$747=\"\"),IF(AND(Q148=\"La actividad sí contribuye sustancialmente a la sostenibilidad\",R148=\"La actividad sí contribuye sustancialmente a la sostenibilidad\"),SUM(B148:O148),0),IF(AND('Base-datos'!$B$745=\"Sí\",'Base-datos'!$B$746=\"Sí\",'Base-datos'!$B$747=\"Sí\"),IF(AND(Q148=\"La actividad sí contribuye sustancialmente a la sostenibilidad\",R148=\"La actividad sí contribuye sustancialmente a la sostenibilidad\",P148=\"La actividad sí contribuye sustancialmente a la sostenibilidad\"),SUM(B148:O148),0),IF(AND('Base-datos'!$B$745=\"\",'Base-datos'!$B$746=\"Sí\",'Base-datos'!$B$747=\"\"),IF(R148=\"La actividad sí contribuye sustancialmente a la sostenibilidad\",SUM(B148:O148),0),IF(AND('Base-datos'!$B$745=\"\",'Base-datos'!$B$746=\"\",'Base-datos'!$B$747=\"Sí\"),IF(P148=\"La actividad sí contribuye sustancialmente a la sostenibilidad\",SUM(B148:O148),0),IF(AND('Base-datos'!$B$745=\"\",'Base-datos'!$B$746=\"Sí\",'Base-datos'!$B$747=\"Sí\"),IF(AND(R148=\"La actividad sí contribuye sustancialmente a la sostenibilidad\",P148=\"La actividad sí contribuye sustancialmente a la sostenibilidad\"),SUM(B148:O148),0),IF(AND('Base-datos'!$B$745=\"Sí\",'Base-datos'!$B$746=\"\",'Base-datos'!$B$747=\"Sí\"),IF(AND(Q148=\"La actividad sí contribuye sustancialmente a la sostenibilidad\",P148=\"La actividad sí contribuye sustancialmente a la sostenibilidad\"),SUM(B148:O148),0),\"Por definir\"))))))))","v":"Por definir"}]
[{"$f":"Manufactura!$C28","v":"Seleccione"},{"$f":"IF(Manufactura!$E28=Seguros_fianzas!B$12,Manufactura!$B28,\"\")","v":""},{"$f":"IF(Manufactura!$E28=Seguros_fianzas!C$12,Manufactura!$B28,\"\")","v":""},{"$f":"IF(Manufactura!$E28=Seguros_fianzas!D$12,Manufactura!$B28,\"\")","v":""},{"$f":"IF(Manufactura!$E28=Seguros_fianzas!E$12,Manufactura!$B28,\"\")","v":""},{"$f":"IF(Manufactura!$E28=Seguros_fianzas!F$12,Manufactura!$B28,\"\")","v":""},{"$f":"IF(Manufactura!$E28=Seguros_fianzas!G$12,Manufactura!$B28,\"\")","v":""},{"$f":"IF(Manufactura!$E28=Seguros_fianzas!H$12,Manufactura!$B28,\"\")","v":""},{"$f":"IF(Manufactura!$E28=Seguros_fianzas!I$12,Manufactura!$B28,\"\")","v":""},{"$f":"IF(Manufactura!$E28=Seguros_fianzas!J$12,Manufactura!$B28,\"\")","v":""},{"$f":"IF(Manufactura!$E28=Seguros_fianzas!K$12,Manufactura!$B28,\"\")","v":""},{"$f":"IF(Manufactura!$E28=Seguros_fianzas!L$12,Manufactura!$B28,\"\")","v":""},{"$f":"IF(Manufactura!$E28=Seguros_fianzas!M$12,Manufactura!$B28,\"\")","v":""},{"$f":"IF(Manufactura!$E28=Seguros_fianzas!N$12,Manufactura!$B28,\"\")","v":""},{"$f":"IF(Manufactura!$E28=Seguros_fianzas!O$12,Manufactura!$B28,\"\")","v":""},{"$f":"_xlfn.XLOOKUP(A149,'Base-datos'!$B$547:$B$552,'Base-datos'!$F$547:$F$552)","v":{"$error":"#N/A"}},{"$f":"_xlfn.XLOOKUP(A149,'Base-datos'!$B$547:$B$552,'Base-datos'!$C$547:$C$552)","v":{"$error":"#N/A"}},{"$f":"_xlfn.XLOOKUP(A149,'Base-datos'!$B$547:$B$552,'Base-datos'!$D$547:$D$552)","v":{"$error":"#N/A"}},null,null,{"$f":"IF(OR(S$140=\"La actividad no cumple con el total de los criterios de No Daño Significativo\",T$140=\"El sector no cumple con las salvaguardas mínimas\"),\"\",IF(AND('Base-datos'!$B$745=\"Sí\",'Base-datos'!$B$746=\"\",'Base-datos'!$B$747=\"\"),IF(Q149=\"La actividad sí contribuye sustancialmente a la sostenibilidad\",SUM(B149:O149),0),IF(AND('Base-datos'!$B$745=\"Sí\",'Base-datos'!$B$746=\"Sí\",'Base-datos'!$B$747=\"\"),IF(AND(Q149=\"La actividad sí contribuye sustancialmente a la sostenibilidad\",R149=\"La actividad sí contribuye sustancialmente a la sostenibilidad\"),SUM(B149:O149),0),IF(AND('Base-datos'!$B$745=\"Sí\",'Base-datos'!$B$746=\"Sí\",'Base-datos'!$B$747=\"Sí\"),IF(AND(Q149=\"La actividad sí contribuye sustancialmente a la sostenibilidad\",R149=\"La actividad sí contribuye sustancialmente a la sostenibilidad\",P149=\"La actividad sí contribuye sustancialmente a la sostenibilidad\"),SUM(B149:O149),0),IF(AND('Base-datos'!$B$745=\"\",'Base-datos'!$B$746=\"Sí\",'Base-datos'!$B$747=\"\"),IF(R149=\"La actividad sí contribuye sustancialmente a la sostenibilidad\",SUM(B149:O149),0),IF(AND('Base-datos'!$B$745=\"\",'Base-datos'!$B$746=\"\",'Base-datos'!$B$747=\"Sí\"),IF(P149=\"La actividad sí contribuye sustancialmente a la sostenibilidad\",SUM(B149:O149),0),IF(AND('Base-datos'!$B$745=\"\",'Base-datos'!$B$746=\"Sí\",'Base-datos'!$B$747=\"Sí\"),IF(AND(R149=\"La actividad sí contribuye sustancialmente a la sostenibilidad\",P149=\"La actividad sí contribuye sustancialmente a la sostenibilidad\"),SUM(B149:O149),0),IF(AND('Base-datos'!$B$745=\"Sí\",'Base-datos'!$B$746=\"\",'Base-datos'!$B$747=\"Sí\"),IF(AND(Q149=\"La actividad sí contribuye sustancialmente a la sostenibilidad\",P149=\"La actividad sí contribuye sustancialmente a la sostenibilidad\"),SUM(B149:O149),0),\"Por definir\"))))))))","v":"Por definir"}]
[{"$f":"Manufactura!$C30","v":"Seleccione"},{"$f":"IF(Manufactura!$E30=Seguros_fianzas!B$12,Manufactura!$B30,\"\")","v":""},{"$f":"IF(Manufactura!$E30=Seguros_fianzas!C$12,Manufactura!$B30,\"\")","v":""},{"$f":"IF(Manufactura!$E30=Seguros_fianzas!D$12,Manufactura!$B30,\"\")","v":""},{"$f":"IF(Manufactura!$E30=Seguros_fianzas!E$12,Manufactura!$B30,\"\")","v":""},{"$f":"IF(Manufactura!$E30=Seguros_fianzas!F$12,Manufactura!$B30,\"\")","v":""},{"$f":"IF(Manufactura!$E30=Seguros_fianzas!G$12,Manufactura!$B30,\"\")","v":""},{"$f":"IF(Manufactura!$E30=Seguros_fianzas!H$12,Manufactura!$B30,\"\")","v":""},{"$f":"IF(Manufactura!$E30=Seguros_fianzas!I$12,Manufactura!$B30,\"\")","v":""},{"$f":"IF(Manufactura!$E30=Seguros_fianzas!J$12,Manufactura!$B30,\"\")","v":""},{"$f":"IF(Manufactura!$E30=Seguros_fianzas!K$12,Manufactura!$B30,\"\")","v":""},{"$f":"IF(Manufactura!$E30=Seguros_fianzas!L$12,Manufactura!$B30,\"\")","v":""},{"$f":"IF(Manufactura!$E30=Seguros_fianzas!M$12,Manufactura!$B30,\"\")","v":""},{"$f":"IF(Manufactura!$E30=Seguros_fianzas!N$12,Manufactura!$B30,\"\")","v":""},{"$f":"IF(Manufactura!$E30=Seguros_fianzas!O$12,Manufactura!$B30,\"\")","v":""},{"$f":"_xlfn.XLOOKUP(A150,'Base-datos'!$B$547:$B$552,'Base-datos'!$F$547:$F$552)","v":{"$error":"#N/A"}},{"$f":"_xlfn.XLOOKUP(A150,'Base-datos'!$B$547:$B$552,'Base-datos'!$C$547:$C$552)","v":{"$error":"#N/A"}},{"$f":"_xlfn.XLOOKUP(A150,'Base-datos'!$B$547:$B$552,'Base-datos'!$D$547:$D$552)","v":{"$error":"#N/A"}},null,null,{"$f":"IF(OR(S$140=\"La actividad no cumple con el total de los criterios de No Daño Significativo\",T$140=\"El sector no cumple con las salvaguardas mínimas\"),\"\",IF(AND('Base-datos'!$B$745=\"Sí\",'Base-datos'!$B$746=\"\",'Base-datos'!$B$747=\"\"),IF(Q150=\"La actividad sí contribuye sustancialmente a la sostenibilidad\",SUM(B150:O150),0),IF(AND('Base-datos'!$B$745=\"Sí\",'Base-datos'!$B$746=\"Sí\",'Base-datos'!$B$747=\"\"),IF(AND(Q150=\"La actividad sí contribuye sustancialmente a la sostenibilidad\",R150=\"La actividad sí contribuye sustancialmente a la sostenibilidad\"),SUM(B150:O150),0),IF(AND('Base-datos'!$B$745=\"Sí\",'Base-datos'!$B$746=\"Sí\",'Base-datos'!$B$747=\"Sí\"),IF(AND(Q150=\"La actividad sí contribuye sustancialmente a la sostenibilidad\",R150=\"La actividad sí contribuye sustancialmente a la sostenibilidad\",P150=\"La actividad sí contribuye sustancialmente a la sostenibilidad\"),SUM(B150:O150),0),IF(AND('Base-datos'!$B$745=\"\",'Base-datos'!$B$746=\"Sí\",'Base-datos'!$B$747=\"\"),IF(R150=\"La actividad sí contribuye sustancialmente a la sostenibilidad\",SUM(B150:O150),0),IF(AND('Base-datos'!$B$745=\"\",'Base-datos'!$B$746=\"\",'Base-datos'!$B$747=\"Sí\"),IF(P150=\"La actividad sí contribuye sustancialmente a la sostenibilidad\",SUM(B150:O150),0),IF(AND('Base-datos'!$B$745=\"\",'Base-datos'!$B$746=\"Sí\",'Base-datos'!$B$747=\"Sí\"),IF(AND(R150=\"La actividad sí contribuye sustancialmente a la sostenibilidad\",P150=\"La actividad sí contribuye sustancialmente a la sostenibilidad\"),SUM(B150:O150),0),IF(AND('Base-datos'!$B$745=\"Sí\",'Base-datos'!$B$746=\"\",'Base-datos'!$B$747=\"Sí\"),IF(AND(Q150=\"La actividad sí contribuye sustancialmente a la sostenibilidad\",P150=\"La actividad sí contribuye sustancialmente a la sostenibilidad\"),SUM(B150:O150),0),\"Por definir\"))))))))","v":"Por definir"}]
[{"$f":"Manufactura!$C32","v":"Seleccione"},{"$f":"IF(Manufactura!$E32=Seguros_fianzas!B$12,Manufactura!$B32,\"\")","v":""},{"$f":"IF(Manufactura!$E32=Seguros_fianzas!C$12,Manufactura!$B32,\"\")","v":""},{"$f":"IF(Manufactura!$E32=Seguros_fianzas!D$12,Manufactura!$B32,\"\")","v":""},{"$f":"IF(Manufactura!$E32=Seguros_fianzas!E$12,Manufactura!$B32,\"\")","v":""},{"$f":"IF(Manufactura!$E32=Seguros_fianzas!F$12,Manufactura!$B32,\"\")","v":""},{"$f":"IF(Manufactura!$E32=Seguros_fianzas!G$12,Manufactura!$B32,\"\")","v":""},{"$f":"IF(Manufactura!$E32=Seguros_fianzas!H$12,Manufactura!$B32,\"\")","v":""},{"$f":"IF(Manufactura!$E32=Seguros_fianzas!I$12,Manufactura!$B32,\"\")","v":""},{"$f":"IF(Manufactura!$E32=Seguros_fianzas!J$12,Manufactura!$B32,\"\")","v":""},{"$f":"IF(Manufactura!$E32=Seguros_fianzas!K$12,Manufactura!$B32,\"\")","v":""},{"$f":"IF(Manufactura!$E32=Seguros_fianzas!L$12,Manufactura!$B32,\"\")","v":""},{"$f":"IF(Manufactura!$E32=Seguros_fianzas!M$12,Manufactura!$B32,\"\")","v":""},{"$f":"IF(Manufactura!$E32=Seguros_fianzas!N$12,Manufactura!$B32,\"\")","v":""},{"$f":"IF(Manufactura!$E32=Seguros_fianzas!O$12,Manufactura!$B32,\"\")","v":""},{"$f":"_xlfn.XLOOKUP(A151,'Base-datos'!$B$547:$B$552,'Base-datos'!$F$547:$F$552)","v":{"$error":"#N/A"}},{"$f":"_xlfn.XLOOKUP(A151,'Base-datos'!$B$547:$B$552,'Base-datos'!$C$547:$C$552)","v":{"$error":"#N/A"}},{"$f":"_xlfn.XLOOKUP(A151,'Base-datos'!$B$547:$B$552,'Base-datos'!$D$547:$D$552)","v":{"$error":"#N/A"}},null,null,{"$f":"IF(OR(S$140=\"La actividad no cumple con el total de los criterios de No Daño Significativo\",T$140=\"El sector no cumple con las salvaguardas mínimas\"),\"\",IF(AND('Base-datos'!$B$745=\"Sí\",'Base-datos'!$B$746=\"\",'Base-datos'!$B$747=\"\"),IF(Q151=\"La actividad sí contribuye sustancialmente a la sostenibilidad\",SUM(B151:O151),0),IF(AND('Base-datos'!$B$745=\"Sí\",'Base-datos'!$B$746=\"Sí\",'Base-datos'!$B$747=\"\"),IF(AND(Q151=\"La actividad sí contribuye sustancialmente a la sostenibilidad\",R151=\"La actividad sí contribuye sustancialmente a la sostenibilidad\"),SUM(B151:O151),0),IF(AND('Base-datos'!$B$745=\"Sí\",'Base-datos'!$B$746=\"Sí\",'Base-datos'!$B$747=\"Sí\"),IF(AND(Q151=\"La actividad sí contribuye sustancialmente a la sostenibilidad\",R151=\"La actividad sí contribuye sustancialmente a la sostenibilidad\",P151=\"La actividad sí contribuye sustancialmente a la sostenibilidad\"),SUM(B151:O151),0),IF(AND('Base-datos'!$B$745=\"\",'Base-datos'!$B$746=\"Sí\",'Base-datos'!$B$747=\"\"),IF(R151=\"La actividad sí contribuye sustancialmente a la sostenibilidad\",SUM(B151:O151),0),IF(AND('Base-datos'!$B$745=\"\",'Base-datos'!$B$746=\"\",'Base-datos'!$B$747=\"Sí\"),IF(P151=\"La actividad sí contribuye sustancialmente a la sostenibilidad\",SUM(B151:O151),0),IF(AND('Base-datos'!$B$745=\"\",'Base-datos'!$B$746=\"Sí\",'Base-datos'!$B$747=\"Sí\"),IF(AND(R151=\"La actividad sí contribuye sustancialmente a la sostenibilidad\",P151=\"La actividad sí contribuye sustancialmente a la sostenibilidad\"),SUM(B151:O151),0),IF(AND('Base-datos'!$B$745=\"Sí\",'Base-datos'!$B$746=\"\",'Base-datos'!$B$747=\"Sí\"),IF(AND(Q151=\"La actividad sí contribuye sustancialmente a la sostenibilidad\",P151=\"La actividad sí contribuye sustancialmente a la sostenibilidad\"),SUM(B151:O151),0),\"Por definir\"))))))))","v":"Por definir"}]
[{"$f":"Manufactura!$C34","v":"Seleccione"},{"$f":"IF(Manufactura!$E34=Seguros_fianzas!B$12,Manufactura!$B34,\"\")","v":""},{"$f":"IF(Manufactura!$E34=Seguros_fianzas!C$12,Manufactura!$B34,\"\")","v":""},{"$f":"IF(Manufactura!$E34=Seguros_fianzas!D$12,Manufactura!$B34,\"\")","v":""},{"$f":"IF(Manufactura!$E34=Seguros_fianzas!E$12,Manufactura!$B34,\"\")","v":""},{"$f":"IF(Manufactura!$E34=Seguros_fianzas!F$12,Manufactura!$B34,\"\")","v":""},{"$f":"IF(Manufactura!$E34=Seguros_fianzas!G$12,Manufactura!$B34,\"\")","v":""},{"$f":"IF(Manufactura!$E34=Seguros_fianzas!H$12,Manufactura!$B34,\"\")","v":""},{"$f":"IF(Manufactura!$E34=Seguros_fianzas!I$12,Manufactura!$B34,\"\")","v":""},{"$f":"IF(Manufactura!$E34=Seguros_fianzas!J$12,Manufactura!$B34,\"\")","v":""},{"$f":"IF(Manufactura!$E34=Seguros_fianzas!K$12,Manufactura!$B34,\"\")","v":""},{"$f":"IF(Manufactura!$E34=Seguros_fianzas!L$12,Manufactura!$B34,\"\")","v":""},{"$f":"IF(Manufactura!$E34=Seguros_fianzas!M$12,Manufactura!$B34,\"\")","v":""},{"$f":"IF(Manufactura!$E34=Seguros_fianzas!N$12,Manufactura!$B34,\"\")","v":""},{"$f":"IF(Manufactura!$E34=Seguros_fianzas!O$12,Manufactura!$B34,\"\")","v":""},{"$f":"_xlfn.XLOOKUP(A152,'Base-datos'!$B$547:$B$552,'Base-datos'!$F$547:$F$552)","v":{"$error":"#N/A"}},{"$f":"_xlfn.XLOOKUP(A152,'Base-datos'!$B$547:$B$552,'Base-datos'!$C$547:$C$552)","v":{"$error":"#N/A"}},{"$f":"_xlfn.XLOOKUP(A152,'Base-datos'!$B$547:$B$552,'Base-datos'!$D$547:$D$552)","v":{"$error":"#N/A"}},null,null,{"$f":"IF(OR(S$140=\"La actividad no cumple con el total de los criterios de No Daño Significativo\",T$140=\"El sector no cumple con las salvaguardas mínimas\"),\"\",IF(AND('Base-datos'!$B$745=\"Sí\",'Base-datos'!$B$746=\"\",'Base-datos'!$B$747=\"\"),IF(Q152=\"La actividad sí contribuye sustancialmente a la sostenibilidad\",SUM(B152:O152),0),IF(AND('Base-datos'!$B$745=\"Sí\",'Base-datos'!$B$746=\"Sí\",'Base-datos'!$B$747=\"\"),IF(AND(Q152=\"La actividad sí contribuye sustancialmente a la sostenibilidad\",R152=\"La actividad sí contribuye sustancialmente a la sostenibilidad\"),SUM(B152:O152),0),IF(AND('Base-datos'!$B$745=\"Sí\",'Base-datos'!$B$746=\"Sí\",'Base-datos'!$B$747=\"Sí\"),IF(AND(Q152=\"La actividad sí contribuye sustancialmente a la sostenibilidad\",R152=\"La actividad sí contribuye sustancialmente a la sostenibilidad\",P152=\"La actividad sí contribuye sustancialmente a la sostenibilidad\"),SUM(B152:O152),0),IF(AND('Base-datos'!$B$745=\"\",'Base-datos'!$B$746=\"Sí\",'Base-datos'!$B$747=\"\"),IF(R152=\"La actividad sí contribuye sustancialmente a la sostenibilidad\",SUM(B152:O152),0),IF(AND('Base-datos'!$B$745=\"\",'Base-datos'!$B$746=\"\",'Base-datos'!$B$747=\"Sí\"),IF(P152=\"La actividad sí contribuye sustancialmente a la sostenibilidad\",SUM(B152:O152),0),IF(AND('Base-datos'!$B$745=\"\",'Base-datos'!$B$746=\"Sí\",'Base-datos'!$B$747=\"Sí\"),IF(AND(R152=\"La actividad sí contribuye sustancialmente a la sostenibilidad\",P152=\"La actividad sí contribuye sustancialmente a la sostenibilidad\"),SUM(B152:O152),0),IF(AND('Base-datos'!$B$745=\"Sí\",'Base-datos'!$B$746=\"\",'Base-datos'!$B$747=\"Sí\"),IF(AND(Q152=\"La actividad sí contribuye sustancialmente a la sostenibilidad\",P152=\"La actividad sí contribuye sustancialmente a la sostenibilidad\"),SUM(B152:O152),0),\"Por definir\"))))))))","v":"Por definir"}]
[{"$f":"Manufactura!$C36","v":"Seleccione"},{"$f":"IF(Manufactura!$E36=Seguros_fianzas!B$12,Manufactura!$B36,\"\")","v":""},{"$f":"IF(Manufactura!$E36=Seguros_fianzas!C$12,Manufactura!$B36,\"\")","v":""},{"$f":"IF(Manufactura!$E36=Seguros_fianzas!D$12,Manufactura!$B36,\"\")","v":""},{"$f":"IF(Manufactura!$E36=Seguros_fianzas!E$12,Manufactura!$B36,\"\")","v":""},{"$f":"IF(Manufactura!$E36=Seguros_fianzas!F$12,Manufactura!$B36,\"\")","v":""},{"$f":"IF(Manufactura!$E36=Seguros_fianzas!G$12,Manufactura!$B36,\"\")","v":""},{"$f":"IF(Manufactura!$E36=Seguros_fianzas!H$12,Manufactura!$B36,\"\")","v":""},{"$f":"IF(Manufactura!$E36=Seguros_fianzas!I$12,Manufactura!$B36,\"\")","v":""},{"$f":"IF(Manufactura!$E36=Seguros_fianzas!J$12,Manufactura!$B36,\"\")","v":""},{"$f":"IF(Manufactura!$E36=Seguros_fianzas!K$12,Manufactura!$B36,\"\")","v":""},{"$f":"IF(Manufactura!$E36=Seguros_fianzas!L$12,Manufactura!$B36,\"\")","v":""},{"$f":"IF(Manufactura!$E36=Seguros_fianzas!M$12,Manufactura!$B36,\"\")","v":""},{"$f":"IF(Manufactura!$E36=Seguros_fianzas!N$12,Manufactura!$B36,\"\")","v":""},{"$f":"IF(Manufactura!$E36=Seguros_fianzas!O$12,Manufactura!$B36,\"\")","v":""},{"$f":"_xlfn.XLOOKUP(A153,'Base-datos'!$B$547:$B$552,'Base-datos'!$F$547:$F$552)","v":{"$error":"#N/A"}},{"$f":"_xlfn.XLOOKUP(A153,'Base-datos'!$B$547:$B$552,'Base-datos'!$C$547:$C$552)","v":{"$error":"#N/A"}},{"$f":"_xlfn.XLOOKUP(A153,'Base-datos'!$B$547:$B$552,'Base-datos'!$D$547:$D$552)","v":{"$error":"#N/A"}},null,null,{"$f":"IF(OR(S$140=\"La actividad no cumple con el total de los criterios de No Daño Significativo\",T$140=\"El sector no cumple con las salvaguardas mínimas\"),\"\",IF(AND('Base-datos'!$B$745=\"Sí\",'Base-datos'!$B$746=\"\",'Base-datos'!$B$747=\"\"),IF(Q153=\"La actividad sí contribuye sustancialmente a la sostenibilidad\",SUM(B153:O153),0),IF(AND('Base-datos'!$B$745=\"Sí\",'Base-datos'!$B$746=\"Sí\",'Base-datos'!$B$747=\"\"),IF(AND(Q153=\"La actividad sí contribuye sustancialmente a la sostenibilidad\",R153=\"La actividad sí contribuye sustancialmente a la sostenibilidad\"),SUM(B153:O153),0),IF(AND('Base-datos'!$B$745=\"Sí\",'Base-datos'!$B$746=\"Sí\",'Base-datos'!$B$747=\"Sí\"),IF(AND(Q153=\"La actividad sí contribuye sustancialmente a la sostenibilidad\",R153=\"La actividad sí contribuye sustancialmente a la sostenibilidad\",P153=\"La actividad sí contribuye sustancialmente a la sostenibilidad\"),SUM(B153:O153),0),IF(AND('Base-datos'!$B$745=\"\",'Base-datos'!$B$746=\"Sí\",'Base-datos'!$B$747=\"\"),IF(R153=\"La actividad sí contribuye sustancialmente a la sostenibilidad\",SUM(B153:O153),0),IF(AND('Base-datos'!$B$745=\"\",'Base-datos'!$B$746=\"\",'Base-datos'!$B$747=\"Sí\"),IF(P153=\"La actividad sí contribuye sustancialmente a la sostenibilidad\",SUM(B153:O153),0),IF(AND('Base-datos'!$B$745=\"\",'Base-datos'!$B$746=\"Sí\",'Base-datos'!$B$747=\"Sí\"),IF(AND(R153=\"La actividad sí contribuye sustancialmente a la sostenibilidad\",P153=\"La actividad sí contribuye sustancialmente a la sostenibilidad\"),SUM(B153:O153),0),IF(AND('Base-datos'!$B$745=\"Sí\",'Base-datos'!$B$746=\"\",'Base-datos'!$B$747=\"Sí\"),IF(AND(Q153=\"La actividad sí contribuye sustancialmente a la sostenibilidad\",P153=\"La actividad sí contribuye sustancialmente a la sostenibilidad\"),SUM(B153:O153),0),\"Por definir\"))))))))","v":"Por definir"}]
[{"$f":"Manufactura!$C38","v":"Seleccione"},{"$f":"IF(Manufactura!$E38=Seguros_fianzas!B$12,Manufactura!$B38,\"\")","v":""},{"$f":"IF(Manufactura!$E38=Seguros_fianzas!C$12,Manufactura!$B38,\"\")","v":""},{"$f":"IF(Manufactura!$E38=Seguros_fianzas!D$12,Manufactura!$B38,\"\")","v":""},{"$f":"IF(Manufactura!$E38=Seguros_fianzas!E$12,Manufactura!$B38,\"\")","v":""},{"$f":"IF(Manufactura!$E38=Seguros_fianzas!F$12,Manufactura!$B38,\"\")","v":""},{"$f":"IF(Manufactura!$E38=Seguros_fianzas!G$12,Manufactura!$B38,\"\")","v":""},{"$f":"IF(Manufactura!$E38=Seguros_fianzas!H$12,Manufactura!$B38,\"\")","v":""},{"$f":"IF(Manufactura!$E38=Seguros_fianzas!I$12,Manufactura!$B38,\"\")","v":""},{"$f":"IF(Manufactura!$E38=Seguros_fianzas!J$12,Manufactura!$B38,\"\")","v":""},{"$f":"IF(Manufactura!$E38=Seguros_fianzas!K$12,Manufactura!$B38,\"\")","v":""},{"$f":"IF(Manufactura!$E38=Seguros_fianzas!L$12,Manufactura!$B38,\"\")","v":""},{"$f":"IF(Manufactura!$E38=Seguros_fianzas!M$12,Manufactura!$B38,\"\")","v":""},{"$f":"IF(Manufactura!$E38=Seguros_fianzas!N$12,Manufactura!$B38,\"\")","v":""},{"$f":"IF(Manufactura!$E38=Seguros_fianzas!O$12,Manufactura!$B38,\"\")","v":""},{"$f":"_xlfn.XLOOKUP(A154,'Base-datos'!$B$547:$B$552,'Base-datos'!$F$547:$F$552)","v":{"$error":"#N/A"}},{"$f":"_xlfn.XLOOKUP(A154,'Base-datos'!$B$547:$B$552,'Base-datos'!$C$547:$C$552)","v":{"$error":"#N/A"}},{"$f":"_xlfn.XLOOKUP(A154,'Base-datos'!$B$547:$B$552,'Base-datos'!$D$547:$D$552)","v":{"$error":"#N/A"}},null,null,{"$f":"IF(OR(S$140=\"La actividad no cumple con el total de los criterios de No Daño Significativo\",T$140=\"El sector no cumple con las salvaguardas mínimas\"),\"\",IF(AND('Base-datos'!$B$745=\"Sí\",'Base-datos'!$B$746=\"\",'Base-datos'!$B$747=\"\"),IF(Q154=\"La actividad sí contribuye sustancialmente a la sostenibilidad\",SUM(B154:O154),0),IF(AND('Base-datos'!$B$745=\"Sí\",'Base-datos'!$B$746=\"Sí\",'Base-datos'!$B$747=\"\"),IF(AND(Q154=\"La actividad sí contribuye sustancialmente a la sostenibilidad\",R154=\"La actividad sí contribuye sustancialmente a la sostenibilidad\"),SUM(B154:O154),0),IF(AND('Base-datos'!$B$745=\"Sí\",'Base-datos'!$B$746=\"Sí\",'Base-datos'!$B$747=\"Sí\"),IF(AND(Q154=\"La actividad sí contribuye sustancialmente a la sostenibilidad\",R154=\"La actividad sí contribuye sustancialmente a la sostenibilidad\",P154=\"La actividad sí contribuye sustancialmente a la sostenibilidad\"),SUM(B154:O154),0),IF(AND('Base-datos'!$B$745=\"\",'Base-datos'!$B$746=\"Sí\",'Base-datos'!$B$747=\"\"),IF(R154=\"La actividad sí contribuye sustancialmente a la sostenibilidad\",SUM(B154:O154),0),IF(AND('Base-datos'!$B$745=\"\",'Base-datos'!$B$746=\"\",'Base-datos'!$B$747=\"Sí\"),IF(P154=\"La actividad sí contribuye sustancialmente a la sostenibilidad\",SUM(B154:O154),0),IF(AND('Base-datos'!$B$745=\"\",'Base-datos'!$B$746=\"Sí\",'Base-datos'!$B$747=\"Sí\"),IF(AND(R154=\"La actividad sí contribuye sustancialmente a la sostenibilidad\",P154=\"La actividad sí contribuye sustancialmente a la sostenibilidad\"),SUM(B154:O154),0),IF(AND('Base-datos'!$B$745=\"Sí\",'Base-datos'!$B$746=\"\",'Base-datos'!$B$747=\"Sí\"),IF(AND(Q154=\"La actividad sí contribuye sustancialmente a la sostenibilidad\",P154=\"La actividad sí contribuye sustancialmente a la sostenibilidad\"),SUM(B154:O154),0),\"Por definir\"))))))))","v":"Por definir"}]
[{"$f":"Manufactura!$C40","v":"Seleccione"},{"$f":"IF(Manufactura!$E40=Seguros_fianzas!B$12,Manufactura!$B40,\"\")","v":""},{"$f":"IF(Manufactura!$E40=Seguros_fianzas!C$12,Manufactura!$B40,\"\")","v":""},{"$f":"IF(Manufactura!$E40=Seguros_fianzas!D$12,Manufactura!$B40,\"\")","v":""},{"$f":"IF(Manufactura!$E40=Seguros_fianzas!E$12,Manufactura!$B40,\"\")","v":""},{"$f":"IF(Manufactura!$E40=Seguros_fianzas!F$12,Manufactura!$B40,\"\")","v":""},{"$f":"IF(Manufactura!$E40=Seguros_fianzas!G$12,Manufactura!$B40,\"\")","v":""},{"$f":"IF(Manufactura!$E40=Seguros_fianzas!H$12,Manufactura!$B40,\"\")","v":""},{"$f":"IF(Manufactura!$E40=Seguros_fianzas!I$12,Manufactura!$B40,\"\")","v":""},{"$f":"IF(Manufactura!$E40=Seguros_fianzas!J$12,Manufactura!$B40,\"\")","v":""},{"$f":"IF(Manufactura!$E40=Seguros_fianzas!K$12,Manufactura!$B40,\"\")","v":""},{"$f":"IF(Manufactura!$E40=Seguros_fianzas!L$12,Manufactura!$B40,\"\")","v":""},{"$f":"IF(Manufactura!$E40=Seguros_fianzas!M$12,Manufactura!$B40,\"\")","v":""},{"$f":"IF(Manufactura!$E40=Seguros_fianzas!N$12,Manufactura!$B40,\"\")","v":""},{"$f":"IF(Manufactura!$E40=Seguros_fianzas!O$12,Manufactura!$B40,\"\")","v":""},{"$f":"_xlfn.XLOOKUP(A155,'Base-datos'!$B$547:$B$552,'Base-datos'!$F$547:$F$552)","v":{"$error":"#N/A"}},{"$f":"_xlfn.XLOOKUP(A155,'Base-datos'!$B$547:$B$552,'Base-datos'!$C$547:$C$552)","v":{"$error":"#N/A"}},{"$f":"_xlfn.XLOOKUP(A155,'Base-datos'!$B$547:$B$552,'Base-datos'!$D$547:$D$552)","v":{"$error":"#N/A"}},null,null,{"$f":"IF(OR(S$140=\"La actividad no cumple con el total de los criterios de No Daño Significativo\",T$140=\"El sector no cumple con las salvaguardas mínimas\"),\"\",IF(AND('Base-datos'!$B$745=\"Sí\",'Base-datos'!$B$746=\"\",'Base-datos'!$B$747=\"\"),IF(Q155=\"La actividad sí contribuye sustancialmente a la sostenibilidad\",SUM(B155:O155),0),IF(AND('Base-datos'!$B$745=\"Sí\",'Base-datos'!$B$746=\"Sí\",'Base-datos'!$B$747=\"\"),IF(AND(Q155=\"La actividad sí contribuye sustancialmente a la sostenibilidad\",R155=\"La actividad sí contribuye sustancialmente a la sostenibilidad\"),SUM(B155:O155),0),IF(AND('Base-datos'!$B$745=\"Sí\",'Base-datos'!$B$746=\"Sí\",'Base-datos'!$B$747=\"Sí\"),IF(AND(Q155=\"La actividad sí contribuye sustancialmente a la sostenibilidad\",R155=\"La actividad sí contribuye sustancialmente a la sostenibilidad\",P155=\"La actividad sí contribuye sustancialmente a la sostenibilidad\"),SUM(B155:O155),0),IF(AND('Base-datos'!$B$745=\"\",'Base-datos'!$B$746=\"Sí\",'Base-datos'!$B$747=\"\"),IF(R155=\"La actividad sí contribuye sustancialmente a la sostenibilidad\",SUM(B155:O155),0),IF(AND('Base-datos'!$B$745=\"\",'Base-datos'!$B$746=\"\",'Base-datos'!$B$747=\"Sí\"),IF(P155=\"La actividad sí contribuye sustancialmente a la sostenibilidad\",SUM(B155:O155),0),IF(AND('Base-datos'!$B$745=\"\",'Base-datos'!$B$746=\"Sí\",'Base-datos'!$B$747=\"Sí\"),IF(AND(R155=\"La actividad sí contribuye sustancialmente a la sostenibilidad\",P155=\"La actividad sí contribuye sustancialmente a la sostenibilidad\"),SUM(B155:O155),0),IF(AND('Base-datos'!$B$745=\"Sí\",'Base-datos'!$B$746=\"\",'Base-datos'!$B$747=\"Sí\"),IF(AND(Q155=\"La actividad sí contribuye sustancialmente a la sostenibilidad\",P155=\"La actividad sí contribuye sustancialmente a la sostenibilidad\"),SUM(B155:O155),0),\"Por definir\"))))))))","v":"Por definir"}]
[{"$f":"Manufactura!$C42","v":"Seleccione"},{"$f":"IF(Manufactura!$E42=Seguros_fianzas!B$12,Manufactura!$B42,\"\")","v":""},{"$f":"IF(Manufactura!$E42=Seguros_fianzas!C$12,Manufactura!$B42,\"\")","v":""},{"$f":"IF(Manufactura!$E42=Seguros_fianzas!D$12,Manufactura!$B42,\"\")","v":""},{"$f":"IF(Manufactura!$E42=Seguros_fianzas!E$12,Manufactura!$B42,\"\")","v":""},{"$f":"IF(Manufactura!$E42=Seguros_fianzas!F$12,Manufactura!$B42,\"\")","v":""},{"$f":"IF(Manufactura!$E42=Seguros_fianzas!G$12,Manufactura!$B42,\"\")","v":""},{"$f":"IF(Manufactura!$E42=Seguros_fianzas!H$12,Manufactura!$B42,\"\")","v":""},{"$f":"IF(Manufactura!$E42=Seguros_fianzas!I$12,Manufactura!$B42,\"\")","v":""},{"$f":"IF(Manufactura!$E42=Seguros_fianzas!J$12,Manufactura!$B42,\"\")","v":""},{"$f":"IF(Manufactura!$E42=Seguros_fianzas!K$12,Manufactura!$B42,\"\")","v":""},{"$f":"IF(Manufactura!$E42=Seguros_fianzas!L$12,Manufactura!$B42,\"\")","v":""},{"$f":"IF(Manufactura!$E42=Seguros_fianzas!M$12,Manufactura!$B42,\"\")","v":""},{"$f":"IF(Manufactura!$E42=Seguros_fianzas!N$12,Manufactura!$B42,\"\")","v":""},{"$f":"IF(Manufactura!$E42=Seguros_fianzas!O$12,Manufactura!$B42,\"\")","v":""},{"$f":"_xlfn.XLOOKUP(A156,'Base-datos'!$B$547:$B$552,'Base-datos'!$F$547:$F$552)","v":{"$error":"#N/A"}},{"$f":"_xlfn.XLOOKUP(A156,'Base-datos'!$B$547:$B$552,'Base-datos'!$C$547:$C$552)","v":{"$error":"#N/A"}},{"$f":"_xlfn.XLOOKUP(A156,'Base-datos'!$B$547:$B$552,'Base-datos'!$D$547:$D$552)","v":{"$error":"#N/A"}},null,null,{"$f":"IF(OR(S$140=\"La actividad no cumple con el total de los criterios de No Daño Significativo\",T$140=\"El sector no cumple con las salvaguardas mínimas\"),\"\",IF(AND('Base-datos'!$B$745=\"Sí\",'Base-datos'!$B$746=\"\",'Base-datos'!$B$747=\"\"),IF(Q156=\"La actividad sí contribuye sustancialmente a la sostenibilidad\",SUM(B156:O156),0),IF(AND('Base-datos'!$B$745=\"Sí\",'Base-datos'!$B$746=\"Sí\",'Base-datos'!$B$747=\"\"),IF(AND(Q156=\"La actividad sí contribuye sustancialmente a la sostenibilidad\",R156=\"La actividad sí contribuye sustancialmente a la sostenibilidad\"),SUM(B156:O156),0),IF(AND('Base-datos'!$B$745=\"Sí\",'Base-datos'!$B$746=\"Sí\",'Base-datos'!$B$747=\"Sí\"),IF(AND(Q156=\"La actividad sí contribuye sustancialmente a la sostenibilidad\",R156=\"La actividad sí contribuye sustancialmente a la sostenibilidad\",P156=\"La actividad sí contribuye sustancialmente a la sostenibilidad\"),SUM(B156:O156),0),IF(AND('Base-datos'!$B$745=\"\",'Base-datos'!$B$746=\"Sí\",'Base-datos'!$B$747=\"\"),IF(R156=\"La actividad sí contribuye sustancialmente a la sostenibilidad\",SUM(B156:O156),0),IF(AND('Base-datos'!$B$745=\"\",'Base-datos'!$B$746=\"\",'Base-datos'!$B$747=\"Sí\"),IF(P156=\"La actividad sí contribuye sustancialmente a la sostenibilidad\",SUM(B156:O156),0),IF(AND('Base-datos'!$B$745=\"\",'Base-datos'!$B$746=\"Sí\",'Base-datos'!$B$747=\"Sí\"),IF(AND(R156=\"La actividad sí contribuye sustancialmente a la sostenibilidad\",P156=\"La actividad sí contribuye sustancialmente a la sostenibilidad\"),SUM(B156:O156),0),IF(AND('Base-datos'!$B$745=\"Sí\",'Base-datos'!$B$746=\"\",'Base-datos'!$B$747=\"Sí\"),IF(AND(Q156=\"La actividad sí contribuye sustancialmente a la sostenibilidad\",P156=\"La actividad sí contribuye sustancialmente a la sostenibilidad\"),SUM(B156:O156),0),\"Por definir\"))))))))","v":"Por definir"}]
[{"$f":"Manufactura!$C44","v":"Seleccione"},{"$f":"IF(Manufactura!$E44=Seguros_fianzas!B$12,Manufactura!$B44,\"\")","v":""},{"$f":"IF(Manufactura!$E44=Seguros_fianzas!C$12,Manufactura!$B44,\"\")","v":""},{"$f":"IF(Manufactura!$E44=Seguros_fianzas!D$12,Manufactura!$B44,\"\")","v":""},{"$f":"IF(Manufactura!$E44=Seguros_fianzas!E$12,Manufactura!$B44,\"\")","v":""},{"$f":"IF(Manufactura!$E44=Seguros_fianzas!F$12,Manufactura!$B44,\"\")","v":""},{"$f":"IF(Manufactura!$E44=Seguros_fianzas!G$12,Manufactura!$B44,\"\")","v":""},{"$f":"IF(Manufactura!$E44=Seguros_fianzas!H$12,Manufactura!$B44,\"\")","v":""},{"$f":"IF(Manufactura!$E44=Seguros_fianzas!I$12,Manufactura!$B44,\"\")","v":""},{"$f":"IF(Manufactura!$E44=Seguros_fianzas!J$12,Manufactura!$B44,\"\")","v":""},{"$f":"IF(Manufactura!$E44=Seguros_fianzas!K$12,Manufactura!$B44,\"\")","v":""},{"$f":"IF(Manufactura!$E44=Seguros_fianzas!L$12,Manufactura!$B44,\"\")","v":""},{"$f":"IF(Manufactura!$E44=Seguros_fianzas!M$12,Manufactura!$B44,\"\")","v":""},{"$f":"IF(Manufactura!$E44=Seguros_fianzas!N$12,Manufactura!$B44,\"\")","v":""},{"$f":"IF(Manufactura!$E44=Seguros_fianzas!O$12,Manufactura!$B44,\"\")","v":""},{"$f":"_xlfn.XLOOKUP(A157,'Base-datos'!$B$547:$B$552,'Base-datos'!$F$547:$F$552)","v":{"$error":"#N/A"}},{"$f":"_xlfn.XLOOKUP(A157,'Base-datos'!$B$547:$B$552,'Base-datos'!$C$547:$C$552)","v":{"$error":"#N/A"}},{"$f":"_xlfn.XLOOKUP(A157,'Base-datos'!$B$547:$B$552,'Base-datos'!$D$547:$D$552)","v":{"$error":"#N/A"}},null,null,{"$f":"IF(OR(S$140=\"La actividad no cumple con el total de los criterios de No Daño Significativo\",T$140=\"El sector no cumple con las salvaguardas mínimas\"),\"\",IF(AND('Base-datos'!$B$745=\"Sí\",'Base-datos'!$B$746=\"\",'Base-datos'!$B$747=\"\"),IF(Q157=\"La actividad sí contribuye sustancialmente a la sostenibilidad\",SUM(B157:O157),0),IF(AND('Base-datos'!$B$745=\"Sí\",'Base-datos'!$B$746=\"Sí\",'Base-datos'!$B$747=\"\"),IF(AND(Q157=\"La actividad sí contribuye sustancialmente a la sostenibilidad\",R157=\"La actividad sí contribuye sustancialmente a la sostenibilidad\"),SUM(B157:O157),0),IF(AND('Base-datos'!$B$745=\"Sí\",'Base-datos'!$B$746=\"Sí\",'Base-datos'!$B$747=\"Sí\"),IF(AND(Q157=\"La actividad sí contribuye sustancialmente a la sostenibilidad\",R157=\"La actividad sí contribuye sustancialmente a la sostenibilidad\",P157=\"La actividad sí contribuye sustancialmente a la sostenibilidad\"),SUM(B157:O157),0),IF(AND('Base-datos'!$B$745=\"\",'Base-datos'!$B$746=\"Sí\",'Base-datos'!$B$747=\"\"),IF(R157=\"La actividad sí contribuye sustancialmente a la sostenibilidad\",SUM(B157:O157),0),IF(AND('Base-datos'!$B$745=\"\",'Base-datos'!$B$746=\"\",'Base-datos'!$B$747=\"Sí\"),IF(P157=\"La actividad sí contribuye sustancialmente a la sostenibilidad\",SUM(B157:O157),0),IF(AND('Base-datos'!$B$745=\"\",'Base-datos'!$B$746=\"Sí\",'Base-datos'!$B$747=\"Sí\"),IF(AND(R157=\"La actividad sí contribuye sustancialmente a la sostenibilidad\",P157=\"La actividad sí contribuye sustancialmente a la sostenibilidad\"),SUM(B157:O157),0),IF(AND('Base-datos'!$B$745=\"Sí\",'Base-datos'!$B$746=\"\",'Base-datos'!$B$747=\"Sí\"),IF(AND(Q157=\"La actividad sí contribuye sustancialmente a la sostenibilidad\",P157=\"La actividad sí contribuye sustancialmente a la sostenibilidad\"),SUM(B157:O157),0),\"Por definir\"))))))))","v":"Por definir"}]
[{"$f":"Manufactura!$C46","v":"Seleccione"},{"$f":"IF(Manufactura!$E46=Seguros_fianzas!B$12,Manufactura!$B46,\"\")","v":""},{"$f":"IF(Manufactura!$E46=Seguros_fianzas!C$12,Manufactura!$B46,\"\")","v":""},{"$f":"IF(Manufactura!$E46=Seguros_fianzas!D$12,Manufactura!$B46,\"\")","v":""},{"$f":"IF(Manufactura!$E46=Seguros_fianzas!E$12,Manufactura!$B46,\"\")","v":""},{"$f":"IF(Manufactura!$E46=Seguros_fianzas!F$12,Manufactura!$B46,\"\")","v":""},{"$f":"IF(Manufactura!$E46=Seguros_fianzas!G$12,Manufactura!$B46,\"\")","v":""},{"$f":"IF(Manufactura!$E46=Seguros_fianzas!H$12,Manufactura!$B46,\"\")","v":""},{"$f":"IF(Manufactura!$E46=Seguros_fianzas!I$12,Manufactura!$B46,\"\")","v":""},{"$f":"IF(Manufactura!$E46=Seguros_fianzas!J$12,Manufactura!$B46,\"\")","v":""},{"$f":"IF(Manufactura!$E46=Seguros_fianzas!K$12,Manufactura!$B46,\"\")","v":""},{"$f":"IF(Manufactura!$E46=Seguros_fianzas!L$12,Manufactura!$B46,\"\")","v":""},{"$f":"IF(Manufactura!$E46=Seguros_fianzas!M$12,Manufactura!$B46,\"\")","v":""},{"$f":"IF(Manufactura!$E46=Seguros_fianzas!N$12,Manufactura!$B46,\"\")","v":""},{"$f":"IF(Manufactura!$E46=Seguros_fianzas!O$12,Manufactura!$B46,\"\")","v":""},{"$f":"_xlfn.XLOOKUP(A158,'Base-datos'!$B$547:$B$552,'Base-datos'!$F$547:$F$552)","v":{"$error":"#N/A"}},{"$f":"_xlfn.XLOOKUP(A158,'Base-datos'!$B$547:$B$552,'Base-datos'!$C$547:$C$552)","v":{"$error":"#N/A"}},{"$f":"_xlfn.XLOOKUP(A158,'Base-datos'!$B$547:$B$552,'Base-datos'!$D$547:$D$552)","v":{"$error":"#N/A"}},null,null,{"$f":"IF(OR(S$140=\"La actividad no cumple con el total de los criterios de No Daño Significativo\",T$140=\"El sector no cumple con las salvaguardas mínimas\"),\"\",IF(AND('Base-datos'!$B$745=\"Sí\",'Base-datos'!$B$746=\"\",'Base-datos'!$B$747=\"\"),IF(Q158=\"La actividad sí contribuye sustancialmente a la sostenibilidad\",SUM(B158:O158),0),IF(AND('Base-datos'!$B$745=\"Sí\",'Base-datos'!$B$746=\"Sí\",'Base-datos'!$B$747=\"\"),IF(AND(Q158=\"La actividad sí contribuye sustancialmente a la sostenibilidad\",R158=\"La actividad sí contribuye sustancialmente a la sostenibilidad\"),SUM(B158:O158),0),IF(AND('Base-datos'!$B$745=\"Sí\",'Base-datos'!$B$746=\"Sí\",'Base-datos'!$B$747=\"Sí\"),IF(AND(Q158=\"La actividad sí contribuye sustancialmente a la sostenibilidad\",R158=\"La actividad sí contribuye sustancialmente a la sostenibilidad\",P158=\"La actividad sí contribuye sustancialmente a la sostenibilidad\"),SUM(B158:O158),0),IF(AND('Base-datos'!$B$745=\"\",'Base-datos'!$B$746=\"Sí\",'Base-datos'!$B$747=\"\"),IF(R158=\"La actividad sí contribuye sustancialmente a la sostenibilidad\",SUM(B158:O158),0),IF(AND('Base-datos'!$B$745=\"\",'Base-datos'!$B$746=\"\",'Base-datos'!$B$747=\"Sí\"),IF(P158=\"La actividad sí contribuye sustancialmente a la sostenibilidad\",SUM(B158:O158),0),IF(AND('Base-datos'!$B$745=\"\",'Base-datos'!$B$746=\"Sí\",'Base-datos'!$B$747=\"Sí\"),IF(AND(R158=\"La actividad sí contribuye sustancialmente a la sostenibilidad\",P158=\"La actividad sí contribuye sustancialmente a la sostenibilidad\"),SUM(B158:O158),0),IF(AND('Base-datos'!$B$745=\"Sí\",'Base-datos'!$B$746=\"\",'Base-datos'!$B$747=\"Sí\"),IF(AND(Q158=\"La actividad sí contribuye sustancialmente a la sostenibilidad\",P158=\"La actividad sí contribuye sustancialmente a la sostenibilidad\"),SUM(B158:O158),0),\"Por definir\"))))))))","v":"Por definir"}]
[{"$f":"Manufactura!$C48","v":"Seleccione"},{"$f":"IF(Manufactura!$E48=Seguros_fianzas!B$12,Manufactura!$B48,\"\")","v":""},{"$f":"IF(Manufactura!$E48=Seguros_fianzas!C$12,Manufactura!$B48,\"\")","v":""},{"$f":"IF(Manufactura!$E48=Seguros_fianzas!D$12,Manufactura!$B48,\"\")","v":""},{"$f":"IF(Manufactura!$E48=Seguros_fianzas!E$12,Manufactura!$B48,\"\")","v":""},{"$f":"IF(Manufactura!$E48=Seguros_fianzas!F$12,Manufactura!$B48,\"\")","v":""},{"$f":"IF(Manufactura!$E48=Seguros_fianzas!G$12,Manufactura!$B48,\"\")","v":""},{"$f":"IF(Manufactura!$E48=Seguros_fianzas!H$12,Manufactura!$B48,\"\")","v":""},{"$f":"IF(Manufactura!$E48=Seguros_fianzas!I$12,Manufactura!$B48,\"\")","v":""},{"$f":"IF(Manufactura!$E48=Seguros_fianzas!J$12,Manufactura!$B48,\"\")","v":""},{"$f":"IF(Manufactura!$E48=Seguros_fianzas!K$12,Manufactura!$B48,\"\")","v":""},{"$f":"IF(Manufactura!$E48=Seguros_fianzas!L$12,Manufactura!$B48,\"\")","v":""},{"$f":"IF(Manufactura!$E48=Seguros_fianzas!M$12,Manufactura!$B48,\"\")","v":""},{"$f":"IF(Manufactura!$E48=Seguros_fianzas!N$12,Manufactura!$B48,\"\")","v":""},{"$f":"IF(Manufactura!$E48=Seguros_fianzas!O$12,Manufactura!$B48,\"\")","v":""},{"$f":"_xlfn.XLOOKUP(A159,'Base-datos'!$B$547:$B$552,'Base-datos'!$F$547:$F$552)","v":{"$error":"#N/A"}},{"$f":"_xlfn.XLOOKUP(A159,'Base-datos'!$B$547:$B$552,'Base-datos'!$C$547:$C$552)","v":{"$error":"#N/A"}},{"$f":"_xlfn.XLOOKUP(A159,'Base-datos'!$B$547:$B$552,'Base-datos'!$D$547:$D$552)","v":{"$error":"#N/A"}},null,null,{"$f":"IF(OR(S$140=\"La actividad no cumple con el total de los criterios de No Daño Significativo\",T$140=\"El sector no cumple con las salvaguardas mínimas\"),\"\",IF(AND('Base-datos'!$B$745=\"Sí\",'Base-datos'!$B$746=\"\",'Base-datos'!$B$747=\"\"),IF(Q159=\"La actividad sí contribuye sustancialmente a la sostenibilidad\",SUM(B159:O159),0),IF(AND('Base-datos'!$B$745=\"Sí\",'Base-datos'!$B$746=\"Sí\",'Base-datos'!$B$747=\"\"),IF(AND(Q159=\"La actividad sí contribuye sustancialmente a la sostenibilidad\",R159=\"La actividad sí contribuye sustancialmente a la sostenibilidad\"),SUM(B159:O159),0),IF(AND('Base-datos'!$B$745=\"Sí\",'Base-datos'!$B$746=\"Sí\",'Base-datos'!$B$747=\"Sí\"),IF(AND(Q159=\"La actividad sí contribuye sustancialmente a la sostenibilidad\",R159=\"La actividad sí contribuye sustancialmente a la sostenibilidad\",P159=\"La actividad sí contribuye sustancialmente a la sostenibilidad\"),SUM(B159:O159),0),IF(AND('Base-datos'!$B$745=\"\",'Base-datos'!$B$746=\"Sí\",'Base-datos'!$B$747=\"\"),IF(R159=\"La actividad sí contribuye sustancialmente a la sostenibilidad\",SUM(B159:O159),0),IF(AND('Base-datos'!$B$745=\"\",'Base-datos'!$B$746=\"\",'Base-datos'!$B$747=\"Sí\"),IF(P159=\"La actividad sí contribuye sustancialmente a la sostenibilidad\",SUM(B159:O159),0),IF(AND('Base-datos'!$B$745=\"\",'Base-datos'!$B$746=\"Sí\",'Base-datos'!$B$747=\"Sí\"),IF(AND(R159=\"La actividad sí contribuye sustancialmente a la sostenibilidad\",P159=\"La actividad sí contribuye sustancialmente a la sostenibilidad\"),SUM(B159:O159),0),IF(AND('Base-datos'!$B$745=\"Sí\",'Base-datos'!$B$746=\"\",'Base-datos'!$B$747=\"Sí\"),IF(AND(Q159=\"La actividad sí contribuye sustancialmente a la sostenibilidad\",P159=\"La actividad sí contribuye sustancialmente a la sostenibilidad\"),SUM(B159:O159),0),\"Por definir\"))))))))","v":"Por definir"}]
["Transporte",null,null,null,null,null,null,null,null,null,null,null,null,null,null,null,null,null,null,null,{"$f":"SUM(IF(FREQUENCY(MATCH(A161:A180, A161:A180, 0), MATCH(A161:A180, A161:A180, 0)) > 0, IF(NOT(ISERROR(U161:U180)), U161:U180, 0)))","v":0}]
[{"$f":"Transporte!$C10","v":"Seleccione"},{"$f":"IF(Transporte!$E10=Seguros_fianzas!B$12,Transporte!$B10,\"\")","v":""},{"$f":"IF(Transporte!$E10=Seguros_fianzas!C$12,Transporte!$B10,\"\")","v":""},{"$f":"IF(Transporte!$E10=Seguros_fianzas!D$12,Transporte!$B10,\"\")","v":""},{"$f":"IF(Transporte!$E10=Seguros_fianzas!E$12,Transporte!$B10,\"\")","v":""},{"$f":"IF(Transporte!$E10=Seguros_fianzas!F$12,Transporte!$B10,\"\")","v":""},{"$f":"IF(Transporte!$E10=Seguros_fianzas!G$12,Transporte!$B10,\"\")","v":""},{"$f":"IF(Transporte!$E10=Seguros_fianzas!H$12,Transporte!$B10,\"\")","v":""},{"$f":"IF(Transporte!$E10=Seguros_fianzas!I$12,Transporte!$B10,\"\")","v":""},{"$f":"IF(Transporte!$E10=Seguros_fianzas!J$12,Transporte!$B10,\"\")","v":""},{"$f":"IF(Transporte!$E10=Seguros_fianzas!K$12,Transporte!$B10,\"\")","v":""},{"$f":"IF(Transporte!$E10=Seguros_fianzas!L$12,Transporte!$B10,\"\")","v":""},{"$f":"IF(Transporte!$E10=Seguros_fianzas!M$12,Transporte!$B10,\"\")","v":""},{"$f":"IF(Transporte!$E10=Seguros_fianzas!N$12,Transporte!$B10,\"\")","v":""},{"$f":"IF(Transporte!$E10=Seguros_fianzas!O$12,Transporte!$B10,\"\")","v":""},{"$f":"_xlfn.XLOOKUP(A161,'Base-datos'!$B$553:$B$570,'Base-datos'!$F$553:$F$570)","v":{"$error":"#N/A"}},{"$f":"_xlfn.XLOOKUP(A161,'Base-datos'!$B$553:$B$570,'Base-datos'!$C$553:$C$570)","v":{"$error":"#N/A"}},{"$f":"_xlfn.XLOOKUP(A161,'Base-datos'!$B$553:$B$570,'Base-datos'!$D$553:$D$570)","v":{"$error":"#N/A"}},{"$f":"IF(COUNTIF('Transporte-NDS'!G9:G84,\"No\")>0,\"La actividad no cumple con el total de los criterios de NDS\",\"La actividad cumple con los criterios de No Daño Significativo\")","v":"La actividad cumple con los criterios de No Daño Significativo"},{"$f":"IF(OR('Salvaguardas mínimas'!$G$10=\"Seleccione\",'Salvaguardas mínimas'!$G$13=\"Seleccione\",'Salvaguardas mínimas'!$G$16=\"Seleccione\",'Salvaguardas mínimas'!$G$7=\"Seleccione\"),\"No se han respondido todas las preguntas\",IF(OR('Salvaguardas mínimas'!$G$10=\"No\",'Salvaguardas mínimas'!$G$13=\"No\",'Salvaguardas mínimas'!$G$16=\"No\",'Salvaguardas mínimas'!$G$7=\"No\"),\"El sector no cumple con las salvaguardas mínimas\",\"La actividad sí cumple con las salvaguardas mínimas\"))","v":"No se han respondido todas las preguntas"},{"$f":"IF(OR(S$161=\"La actividad no cumple con el total de los criterios de No Daño Significativo\",T$161=\"El sector no cumple con las salvaguardas mínimas\"),\"\",IF(AND('Base-datos'!$B$750=\"Sí\",'Base-datos'!$B$751=\"\",'Base-datos'!$B$752=\"\"),IF(Q161=\"La actividad sí contribuye sustancialmente a la sostenibilidad\",SUM(B161:O161),0),IF(AND('Base-datos'!$B$750=\"Sí\",'Base-datos'!$B$751=\"Sí\",'Base-datos'!$B$752=\"\"),IF(AND(Q161=\"La actividad sí contribuye sustancialmente a la sostenibilidad\",R161=\"La actividad sí contribuye sustancialmente a la sostenibilidad\"),SUM(B161:O161),0),IF(AND('Base-datos'!$B$750=\"Sí\",'Base-datos'!$B$751=\"Sí\",'Base-datos'!$B$752=\"Sí\"),IF(AND(Q161=\"La actividad sí contribuye sustancialmente a la sostenibilidad\",R161=\"La actividad sí contribuye sustancialmente a la sostenibilidad\",P161=\"La actividad sí contribuye sustancialmente a la sostenibilidad\"),SUM(B161:O161),0),IF(AND('Base-datos'!$B$750=\"\",'Base-datos'!$B$751=\"Sí\",'Base-datos'!$B$752=\"\"),IF(R161=\"La actividad sí contribuye sustancialmente a la sostenibilidad\",SUM(B161:O161),0),IF(AND('Base-datos'!$B$750=\"\",'Base-datos'!$B$751=\"\",'Base-datos'!$B$752=\"Sí\"),IF(P161=\"La actividad sí contribuye sustancialmente a la sostenibilidad\",SUM(B161:O161),0),IF(AND('Base-datos'!$B$750=\"\",'Base-datos'!$B$751=\"Sí\",'Base-datos'!$B$752=\"Sí\"),IF(AND(R161=\"La actividad sí contribuye sustancialmente a la sostenibilidad\",P161=\"La actividad sí contribuye sustancialmente a la sostenibilidad\"),SUM(B161:O161),0),IF(AND('Base-datos'!$B$750=\"Sí\",'Base-datos'!$B$751=\"\",'Base-datos'!$B$752=\"Sí\"),IF(AND(Q161=\"La actividad sí contribuye sustancialmente a la sostenibilidad\",P161=\"La actividad sí contribuye sustancialmente a la sostenibilidad\"),SUM(B161:O161),0),\"Por definir\"))))))))","v":"Por definir"}]
[{"$f":"Transporte!$C12","v":"Seleccione"},{"$f":"IF(Transporte!$E12=Seguros_fianzas!B$12,Transporte!$B12,\"\")","v":""},{"$f":"IF(Transporte!$E12=Seguros_fianzas!C$12,Transporte!$B12,\"\")","v":""},{"$f":"IF(Transporte!$E12=Seguros_fianzas!D$12,Transporte!$B12,\"\")","v":""},{"$f":"IF(Transporte!$E12=Seguros_fianzas!E$12,Transporte!$B12,\"\")","v":""},{"$f":"IF(Transporte!$E12=Seguros_fianzas!F$12,Transporte!$B12,\"\")","v":""},{"$f":"IF(Transporte!$E12=Seguros_fianzas!G$12,Transporte!$B12,\"\")","v":""},{"$f":"IF(Transporte!$E12=Seguros_fianzas!H$12,Transporte!$B12,\"\")","v":""},{"$f":"IF(Transporte!$E12=Seguros_fianzas!I$12,Transporte!$B12,\"\")","v":""},{"$f":"IF(Transporte!$E12=Seguros_fianzas!J$12,Transporte!$B12,\"\")","v":""},{"$f":"IF(Transporte!$E12=Seguros_fianzas!K$12,Transporte!$B12,\"\")","v":""},{"$f":"IF(Transporte!$E12=Seguros_fianzas!L$12,Transporte!$B12,\"\")","v":""},{"$f":"IF(Transporte!$E12=Seguros_fianzas!M$12,Transporte!$B12,\"\")","v":""},{"$f":"IF(Transporte!$E12=Seguros_fianzas!N$12,Transporte!$B12,\"\")","v":""},{"$f":"IF(Transporte!$E12=Seguros_fianzas!O$12,Transporte!$B12,\"\")","v":""},{"$f":"_xlfn.XLOOKUP(A162,'Base-datos'!$B$553:$B$570,'Base-datos'!$F$553:$F$570)","v":{"$error":"#N/A"}},{"$f":"_xlfn.XLOOKUP(A162,'Base-datos'!$B$553:$B$570,'Base-datos'!$C$553:$C$570)","v":{"$error":"#N/A"}},{"$f":"_xlfn.XLOOKUP(A162,'Base-datos'!$B$553:$B$570,'Base-datos'!$D$553:$D$570)","v":{"$error":"#N/A"}},null,null,{"$f":"IF(OR(S$161=\"La actividad no cumple con el total de los criterios de No Daño Significativo\",T$161=\"El sector no cumple con las salvaguardas mínimas\"),\"\",IF(AND('Base-datos'!$B$750=\"Sí\",'Base-datos'!$B$751=\"\",'Base-datos'!$B$752=\"\"),IF(Q162=\"La actividad sí contribuye sustancialmente a la sostenibilidad\",SUM(B162:O162),0),IF(AND('Base-datos'!$B$750=\"Sí\",'Base-datos'!$B$751=\"Sí\",'Base-datos'!$B$752=\"\"),IF(AND(Q162=\"La actividad sí contribuye sustancialmente a la sostenibilidad\",R162=\"La actividad sí contribuye sustancialmente a la sostenibilidad\"),SUM(B162:O162),0),IF(AND('Base-datos'!$B$750=\"Sí\",'Base-datos'!$B$751=\"Sí\",'Base-datos'!$B$752=\"Sí\"),IF(AND(Q162=\"La actividad sí contribuye sustancialmente a la sostenibilidad\",R162=\"La actividad sí contribuye sustancialmente a la sostenibilidad\",P162=\"La actividad sí contribuye sustancialmente a la sostenibilidad\"),SUM(B162:O162),0),IF(AND('Base-datos'!$B$750=\"\",'Base-datos'!$B$751=\"Sí\",'Base-datos'!$B$752=\"\"),IF(R162=\"La actividad sí contribuye sustancialmente a la sostenibilidad\",SUM(B162:O162),0),IF(AND('Base-datos'!$B$750=\"\",'Base-datos'!$B$751=\"\",'Base-datos'!$B$752=\"Sí\"),IF(P162=\"La actividad sí contribuye sustancialmente a la sostenibilidad\",SUM(B162:O162),0),IF(AND('Base-datos'!$B$750=\"\",'Base-datos'!$B$751=\"Sí\",'Base-datos'!$B$752=\"Sí\"),IF(AND(R162=\"La actividad sí contribuye sustancialmente a la sostenibilidad\",P162=\"La actividad sí contribuye sustancialmente a la sostenibilidad\"),SUM(B162:O162),0),IF(AND('Base-datos'!$B$750=\"Sí\",'Base-datos'!$B$751=\"\",'Base-datos'!$B$752=\"Sí\"),IF(AND(Q162=\"La actividad sí contribuye sustancialmente a la sostenibilidad\",P162=\"La actividad sí contribuye sustancialmente a la sostenibilidad\"),SUM(B162:O162),0),\"Por definir\"))))))))","v":"Por definir"}]
[{"$f":"Transporte!$C14","v":"Seleccione"},{"$f":"IF(Transporte!$E14=Seguros_fianzas!B$12,Transporte!$B14,\"\")","v":""},{"$f":"IF(Transporte!$E14=Seguros_fianzas!C$12,Transporte!$B14,\"\")","v":""},{"$f":"IF(Transporte!$E14=Seguros_fianzas!D$12,Transporte!$B14,\"\")","v":""},{"$f":"IF(Transporte!$E14=Seguros_fianzas!E$12,Transporte!$B14,\"\")","v":""},{"$f":"IF(Transporte!$E14=Seguros_fianzas!F$12,Transporte!$B14,\"\")","v":""},{"$f":"IF(Transporte!$E14=Seguros_fianzas!G$12,Transporte!$B14,\"\")","v":""},{"$f":"IF(Transporte!$E14=Seguros_fianzas!H$12,Transporte!$B14,\"\")","v":""},{"$f":"IF(Transporte!$E14=Seguros_fianzas!I$12,Transporte!$B14,\"\")","v":""},{"$f":"IF(Transporte!$E14=Seguros_fianzas!J$12,Transporte!$B14,\"\")","v":""},{"$f":"IF(Transporte!$E14=Seguros_fianzas!K$12,Transporte!$B14,\"\")","v":""},{"$f":"IF(Transporte!$E14=Seguros_fianzas!L$12,Transporte!$B14,\"\")","v":""},{"$f":"IF(Transporte!$E14=Seguros_fianzas!M$12,Transporte!$B14,\"\")","v":""},{"$f":"IF(Transporte!$E14=Seguros_fianzas!N$12,Transporte!$B14,\"\")","v":""},{"$f":"IF(Transporte!$E14=Seguros_fianzas!O$12,Transporte!$B14,\"\")","v":""},{"$f":"_xlfn.XLOOKUP(A163,'Base-datos'!$B$553:$B$570,'Base-datos'!$F$553:$F$570)","v":{"$error":"#N/A"}},{"$f":"_xlfn.XLOOKUP(A163,'Base-datos'!$B$553:$B$570,'Base-datos'!$C$553:$C$570)","v":{"$error":"#N/A"}},{"$f":"_xlfn.XLOOKUP(A163,'Base-datos'!$B$553:$B$570,'Base-datos'!$D$553:$D$570)","v":{"$error":"#N/A"}},null,null,{"$f":"IF(OR(S$161=\"La actividad no cumple con el total de los criterios de No Daño Significativo\",T$161=\"El sector no cumple con las salvaguardas mínimas\"),\"\",IF(AND('Base-datos'!$B$750=\"Sí\",'Base-datos'!$B$751=\"\",'Base-datos'!$B$752=\"\"),IF(Q163=\"La actividad sí contribuye sustancialmente a la sostenibilidad\",SUM(B163:O163),0),IF(AND('Base-datos'!$B$750=\"Sí\",'Base-datos'!$B$751=\"Sí\",'Base-datos'!$B$752=\"\"),IF(AND(Q163=\"La actividad sí contribuye sustancialmente a la sostenibilidad\",R163=\"La actividad sí contribuye sustancialmente a la sostenibilidad\"),SUM(B163:O163),0),IF(AND('Base-datos'!$B$750=\"Sí\",'Base-datos'!$B$751=\"Sí\",'Base-datos'!$B$752=\"Sí\"),IF(AND(Q163=\"La actividad sí contribuye sustancialmente a la sostenibilidad\",R163=\"La actividad sí contribuye sustancialmente a la sostenibilidad\",P163=\"La actividad sí contribuye sustancialmente a la sostenibilidad\"),SUM(B163:O163),0),IF(AND('Base-datos'!$B$750=\"\",'Base-datos'!$B$751=\"Sí\",'Base-datos'!$B$752=\"\"),IF(R163=\"La actividad sí contribuye sustancialmente a la sostenibilidad\",SUM(B163:O163),0),IF(AND('Base-datos'!$B$750=\"\",'Base-datos'!$B$751=\"\",'Base-datos'!$B$752=\"Sí\"),IF(P163=\"La actividad sí contribuye sustancialmente a la sostenibilidad\",SUM(B163:O163),0),IF(AND('Base-datos'!$B$750=\"\",'Base-datos'!$B$751=\"Sí\",'Base-datos'!$B$752=\"Sí\"),IF(AND(R163=\"La actividad sí contribuye sustancialmente a la sostenibilidad\",P163=\"La actividad sí contribuye sustancialmente a la sostenibilidad\"),SUM(B163:O163),0),IF(AND('Base-datos'!$B$750=\"Sí\",'Base-datos'!$B$751=\"\",'Base-datos'!$B$752=\"Sí\"),IF(AND(Q163=\"La actividad sí contribuye sustancialmente a la sostenibilidad\",P163=\"La actividad sí contribuye sustancialmente a la sostenibilidad\"),SUM(B163:O163),0),\"Por definir\"))))))))","v":"Por definir"}]
[{"$f":"Transporte!$C16","v":"Seleccione"},{"$f":"IF(Transporte!$E16=Seguros_fianzas!B$12,Transporte!$B16,\"\")","v":""},{"$f":"IF(Transporte!$E16=Seguros_fianzas!C$12,Transporte!$B16,\"\")","v":""},{"$f":"IF(Transporte!$E16=Seguros_fianzas!D$12,Transporte!$B16,\"\")","v":""},{"$f":"IF(Transporte!$E16=Seguros_fianzas!E$12,Transporte!$B16,\"\")","v":""},{"$f":"IF(Transporte!$E16=Seguros_fianzas!F$12,Transporte!$B16,\"\")","v":""},{"$f":"IF(Transporte!$E16=Seguros_fianzas!G$12,Transporte!$B16,\"\")","v":""},{"$f":"IF(Transporte!$E16=Seguros_fianzas!H$12,Transporte!$B16,\"\")","v":""},{"$f":"IF(Transporte!$E16=Seguros_fianzas!I$12,Transporte!$B16,\"\")","v":""},{"$f":"IF(Transporte!$E16=Seguros_fianzas!J$12,Transporte!$B16,\"\")","v":""},{"$f":"IF(Transporte!$E16=Seguros_fianzas!K$12,Transporte!$B16,\"\")","v":""},{"$f":"IF(Transporte!$E16=Seguros_fianzas!L$12,Transporte!$B16,\"\")","v":""},{"$f":"IF(Transporte!$E16=Seguros_fianzas!M$12,Transporte!$B16,\"\")","v":""},{"$f":"IF(Transporte!$E16=Seguros_fianzas!N$12,Transporte!$B16,\"\")","v":""},{"$f":"IF(Transporte!$E16=Seguros_fianzas!O$12,Transporte!$B16,\"\")","v":""},{"$f":"_xlfn.XLOOKUP(A164,'Base-datos'!$B$553:$B$570,'Base-datos'!$F$553:$F$570)","v":{"$error":"#N/A"}},{"$f":"_xlfn.XLOOKUP(A164,'Base-datos'!$B$553:$B$570,'Base-datos'!$C$553:$C$570)","v":{"$error":"#N/A"}},{"$f":"_xlfn.XLOOKUP(A164,'Base-datos'!$B$553:$B$570,'Base-datos'!$D$553:$D$570)","v":{"$error":"#N/A"}},null,null,{"$f":"IF(OR(S$161=\"La actividad no cumple con el total de los criterios de No Daño Significativo\",T$161=\"El sector no cumple con las salvaguardas mínimas\"),\"\",IF(AND('Base-datos'!$B$750=\"Sí\",'Base-datos'!$B$751=\"\",'Base-datos'!$B$752=\"\"),IF(Q164=\"La actividad sí contribuye sustancialmente a la sostenibilidad\",SUM(B164:O164),0),IF(AND('Base-datos'!$B$750=\"Sí\",'Base-datos'!$B$751=\"Sí\",'Base-datos'!$B$752=\"\"),IF(AND(Q164=\"La actividad sí contribuye sustancialmente a la sostenibilidad\",R164=\"La actividad sí contribuye sustancialmente a la sostenibilidad\"),SUM(B164:O164),0),IF(AND('Base-datos'!$B$750=\"Sí\",'Base-datos'!$B$751=\"Sí\",'Base-datos'!$B$752=\"Sí\"),IF(AND(Q164=\"La actividad sí contribuye sustancialmente a la sostenibilidad\",R164=\"La actividad sí contribuye sustancialmente a la sostenibilidad\",P164=\"La actividad sí contribuye sustancialmente a la sostenibilidad\"),SUM(B164:O164),0),IF(AND('Base-datos'!$B$750=\"\",'Base-datos'!$B$751=\"Sí\",'Base-datos'!$B$752=\"\"),IF(R164=\"La actividad sí contribuye sustancialmente a la sostenibilidad\",SUM(B164:O164),0),IF(AND('Base-datos'!$B$750=\"\",'Base-datos'!$B$751=\"\",'Base-datos'!$B$752=\"Sí\"),IF(P164=\"La actividad sí contribuye sustancialmente a la sostenibilidad\",SUM(B164:O164),0),IF(AND('Base-datos'!$B$750=\"\",'Base-datos'!$B$751=\"Sí\",'Base-datos'!$B$752=\"Sí\"),IF(AND(R164=\"La actividad sí contribuye sustancialmente a la sostenibilidad\",P164=\"La actividad sí contribuye sustancialmente a la sostenibilidad\"),SUM(B164:O164),0),IF(AND('Base-datos'!$B$750=\"Sí\",'Base-datos'!$B$751=\"\",'Base-datos'!$B$752=\"Sí\"),IF(AND(Q164=\"La actividad sí contribuye sustancialmente a la sostenibilidad\",P164=\"La actividad sí contribuye sustancialmente a la sostenibilidad\"),SUM(B164:O164),0),\"Por definir\"))))))))","v":"Por definir"}]
[{"$f":"Transporte!$C18","v":"Seleccione"},{"$f":"IF(Transporte!$E18=Seguros_fianzas!B$12,Transporte!$B18,\"\")","v":""},{"$f":"IF(Transporte!$E18=Seguros_fianzas!C$12,Transporte!$B18,\"\")","v":""},{"$f":"IF(Transporte!$E18=Seguros_fianzas!D$12,Transporte!$B18,\"\")","v":""},{"$f":"IF(Transporte!$E18=Seguros_fianzas!E$12,Transporte!$B18,\"\")","v":""},{"$f":"IF(Transporte!$E18=Seguros_fianzas!F$12,Transporte!$B18,\"\")","v":""},{"$f":"IF(Transporte!$E18=Seguros_fianzas!G$12,Transporte!$B18,\"\")","v":""},{"$f":"IF(Transporte!$E18=Seguros_fianzas!H$12,Transporte!$B18,\"\")","v":""},{"$f":"IF(Transporte!$E18=Seguros_fianzas!I$12,Transporte!$B18,\"\")","v":""},{"$f":"IF(Transporte!$E18=Seguros_fianzas!J$12,Transporte!$B18,\"\")","v":""},{"$f":"IF(Transporte!$E18=Seguros_fianzas!K$12,Transporte!$B18,\"\")","v":""},{"$f":"IF(Transporte!$E18=Seguros_fianzas!L$12,Transporte!$B18,\"\")","v":""},{"$f":"IF(Transporte!$E18=Seguros_fianzas!M$12,Transporte!$B18,\"\")","v":""},{"$f":"IF(Transporte!$E18=Seguros_fianzas!N$12,Transporte!$B18,\"\")","v":""},{"$f":"IF(Transporte!$E18=Seguros_fianzas!O$12,Transporte!$B18,\"\")","v":""},{"$f":"_xlfn.XLOOKUP(A165,'Base-datos'!$B$553:$B$570,'Base-datos'!$F$553:$F$570)","v":{"$error":"#N/A"}},{"$f":"_xlfn.XLOOKUP(A165,'Base-datos'!$B$553:$B$570,'Base-datos'!$C$553:$C$570)","v":{"$error":"#N/A"}},{"$f":"_xlfn.XLOOKUP(A165,'Base-datos'!$B$553:$B$570,'Base-datos'!$D$553:$D$570)","v":{"$error":"#N/A"}},null,null,{"$f":"IF(OR(S$161=\"La actividad no cumple con el total de los criterios de No Daño Significativo\",T$161=\"El sector no cumple con las salvaguardas mínimas\"),\"\",IF(AND('Base-datos'!$B$750=\"Sí\",'Base-datos'!$B$751=\"\",'Base-datos'!$B$752=\"\"),IF(Q165=\"La actividad sí contribuye sustancialmente a la sostenibilidad\",SUM(B165:O165),0),IF(AND('Base-datos'!$B$750=\"Sí\",'Base-datos'!$B$751=\"Sí\",'Base-datos'!$B$752=\"\"),IF(AND(Q165=\"La actividad sí contribuye sustancialmente a la sostenibilidad\",R165=\"La actividad sí contribuye sustancialmente a la sostenibilidad\"),SUM(B165:O165),0),IF(AND('Base-datos'!$B$750=\"Sí\",'Base-datos'!$B$751=\"Sí\",'Base-datos'!$B$752=\"Sí\"),IF(AND(Q165=\"La actividad sí contribuye sustancialmente a la sostenibilidad\",R165=\"La actividad sí contribuye sustancialmente a la sostenibilidad\",P165=\"La actividad sí contribuye sustancialmente a la sostenibilidad\"),SUM(B165:O165),0),IF(AND('Base-datos'!$B$750=\"\",'Base-datos'!$B$751=\"Sí\",'Base-datos'!$B$752=\"\"),IF(R165=\"La actividad sí contribuye sustancialmente a la sostenibilidad\",SUM(B165:O165),0),IF(AND('Base-datos'!$B$750=\"\",'Base-datos'!$B$751=\"\",'Base-datos'!$B$752=\"Sí\"),IF(P165=\"La actividad sí contribuye sustancialmente a la sostenibilidad\",SUM(B165:O165),0),IF(AND('Base-datos'!$B$750=\"\",'Base-datos'!$B$751=\"Sí\",'Base-datos'!$B$752=\"Sí\"),IF(AND(R165=\"La actividad sí contribuye sustancialmente a la sostenibilidad\",P165=\"La actividad sí contribuye sustancialmente a la sostenibilidad\"),SUM(B165:O165),0),IF(AND('Base-datos'!$B$750=\"Sí\",'Base-datos'!$B$751=\"\",'Base-datos'!$B$752=\"Sí\"),IF(AND(Q165=\"La actividad sí contribuye sustancialmente a la sostenibilidad\",P165=\"La actividad sí contribuye sustancialmente a la sostenibilidad\"),SUM(B165:O165),0),\"Por definir\"))))))))","v":"Por definir"}]
[{"$f":"Transporte!$C20","v":"Seleccione"},{"$f":"IF(Transporte!$E20=Seguros_fianzas!B$12,Transporte!$B20,\"\")","v":""},{"$f":"IF(Transporte!$E20=Seguros_fianzas!C$12,Transporte!$B20,\"\")","v":""},{"$f":"IF(Transporte!$E20=Seguros_fianzas!D$12,Transporte!$B20,\"\")","v":""},{"$f":"IF(Transporte!$E20=Seguros_fianzas!E$12,Transporte!$B20,\"\")","v":""},{"$f":"IF(Transporte!$E20=Seguros_fianzas!F$12,Transporte!$B20,\"\")","v":""},{"$f":"IF(Transporte!$E20=Seguros_fianzas!G$12,Transporte!$B20,\"\")","v":""},{"$f":"IF(Transporte!$E20=Seguros_fianzas!H$12,Transporte!$B20,\"\")","v":""},{"$f":"IF(Transporte!$E20=Seguros_fianzas!I$12,Transporte!$B20,\"\")","v":""},{"$f":"IF(Transporte!$E20=Seguros_fianzas!J$12,Transporte!$B20,\"\")","v":""},{"$f":"IF(Transporte!$E20=Seguros_fianzas!K$12,Transporte!$B20,\"\")","v":""},{"$f":"IF(Transporte!$E20=Seguros_fianzas!L$12,Transporte!$B20,\"\")","v":""},{"$f":"IF(Transporte!$E20=Seguros_fianzas!M$12,Transporte!$B20,\"\")","v":""},{"$f":"IF(Transporte!$E20=Seguros_fianzas!N$12,Transporte!$B20,\"\")","v":""},{"$f":"IF(Transporte!$E20=Seguros_fianzas!O$12,Transporte!$B20,\"\")","v":""},{"$f":"_xlfn.XLOOKUP(A166,'Base-datos'!$B$553:$B$570,'Base-datos'!$F$553:$F$570)","v":{"$error":"#N/A"}},{"$f":"_xlfn.XLOOKUP(A166,'Base-datos'!$B$553:$B$570,'Base-datos'!$C$553:$C$570)","v":{"$error":"#N/A"}},{"$f":"_xlfn.XLOOKUP(A166,'Base-datos'!$B$553:$B$570,'Base-datos'!$D$553:$D$570)","v":{"$error":"#N/A"}},null,null,{"$f":"IF(OR(S$161=\"La actividad no cumple con el total de los criterios de No Daño Significativo\",T$161=\"El sector no cumple con las salvaguardas mínimas\"),\"\",IF(AND('Base-datos'!$B$750=\"Sí\",'Base-datos'!$B$751=\"\",'Base-datos'!$B$752=\"\"),IF(Q166=\"La actividad sí contribuye sustancialmente a la sostenibilidad\",SUM(B166:O166),0),IF(AND('Base-datos'!$B$750=\"Sí\",'Base-datos'!$B$751=\"Sí\",'Base-datos'!$B$752=\"\"),IF(AND(Q166=\"La actividad sí contribuye sustancialmente a la sostenibilidad\",R166=\"La actividad sí contribuye sustancialmente a la sostenibilidad\"),SUM(B166:O166),0),IF(AND('Base-datos'!$B$750=\"Sí\",'Base-datos'!$B$751=\"Sí\",'Base-datos'!$B$752=\"Sí\"),IF(AND(Q166=\"La actividad sí contribuye sustancialmente a la sostenibilidad\",R166=\"La actividad sí contribuye sustancialmente a la sostenibilidad\",P166=\"La actividad sí contribuye sustancialmente a la sostenibilidad\"),SUM(B166:O166),0),IF(AND('Base-datos'!$B$750=\"\",'Base-datos'!$B$751=\"Sí\",'Base-datos'!$B$752=\"\"),IF(R166=\"La actividad sí contribuye sustancialmente a la sostenibilidad\",SUM(B166:O166),0),IF(AND('Base-datos'!$B$750=\"\",'Base-datos'!$B$751=\"\",'Base-datos'!$B$752=\"Sí\"),IF(P166=\"La actividad sí contribuye sustancialmente a la sostenibilidad\",SUM(B166:O166),0),IF(AND('Base-datos'!$B$750=\"\",'Base-datos'!$B$751=\"Sí\",'Base-datos'!$B$752=\"Sí\"),IF(AND(R166=\"La actividad sí contribuye sustancialmente a la sostenibilidad\",P166=\"La actividad sí contribuye sustancialmente a la sostenibilidad\"),SUM(B166:O166),0),IF(AND('Base-datos'!$B$750=\"Sí\",'Base-datos'!$B$751=\"\",'Base-datos'!$B$752=\"Sí\"),IF(AND(Q166=\"La actividad sí contribuye sustancialmente a la sostenibilidad\",P166=\"La actividad sí contribuye sustancialmente a la sostenibilidad\"),SUM(B166:O166),0),\"Por definir\"))))))))","v":"Por definir"}]
[{"$f":"Transporte!$C22","v":"Seleccione"},{"$f":"IF(Transporte!$E22=Seguros_fianzas!B$12,Transporte!$B22,\"\")","v":""},{"$f":"IF(Transporte!$E22=Seguros_fianzas!C$12,Transporte!$B22,\"\")","v":""},{"$f":"IF(Transporte!$E22=Seguros_fianzas!D$12,Transporte!$B22,\"\")","v":""},{"$f":"IF(Transporte!$E22=Seguros_fianzas!E$12,Transporte!$B22,\"\")","v":""},{"$f":"IF(Transporte!$E22=Seguros_fianzas!F$12,Transporte!$B22,\"\")","v":""},{"$f":"IF(Transporte!$E22=Seguros_fianzas!G$12,Transporte!$B22,\"\")","v":""},{"$f":"IF(Transporte!$E22=Seguros_fianzas!H$12,Transporte!$B22,\"\")","v":""},{"$f":"IF(Transporte!$E22=Seguros_fianzas!I$12,Transporte!$B22,\"\")","v":""},{"$f":"IF(Transporte!$E22=Seguros_fianzas!J$12,Transporte!$B22,\"\")","v":""},{"$f":"IF(Transporte!$E22=Seguros_fianzas!K$12,Transporte!$B22,\"\")","v":""},{"$f":"IF(Transporte!$E22=Seguros_fianzas!L$12,Transporte!$B22,\"\")","v":""},{"$f":"IF(Transporte!$E22=Seguros_fianzas!M$12,Transporte!$B22,\"\")","v":""},{"$f":"IF(Transporte!$E22=Seguros_fianzas!N$12,Transporte!$B22,\"\")","v":""},{"$f":"IF(Transporte!$E22=Seguros_fianzas!O$12,Transporte!$B22,\"\")","v":""},{"$f":"_xlfn.XLOOKUP(A167,'Base-datos'!$B$553:$B$570,'Base-datos'!$F$553:$F$570)","v":{"$error":"#N/A"}},{"$f":"_xlfn.XLOOKUP(A167,'Base-datos'!$B$553:$B$570,'Base-datos'!$C$553:$C$570)","v":{"$error":"#N/A"}},{"$f":"_xlfn.XLOOKUP(A167,'Base-datos'!$B$553:$B$570,'Base-datos'!$D$553:$D$570)","v":{"$error":"#N/A"}},null,null,{"$f":"IF(OR(S$161=\"La actividad no cumple con el total de los criterios de No Daño Significativo\",T$161=\"El sector no cumple con las salvaguardas mínimas\"),\"\",IF(AND('Base-datos'!$B$750=\"Sí\",'Base-datos'!$B$751=\"\",'Base-datos'!$B$752=\"\"),IF(Q167=\"La actividad sí contribuye sustancialmente a la sostenibilidad\",SUM(B167:O167),0),IF(AND('Base-datos'!$B$750=\"Sí\",'Base-datos'!$B$751=\"Sí\",'Base-datos'!$B$752=\"\"),IF(AND(Q167=\"La actividad sí contribuye sustancialmente a la sostenibilidad\",R167=\"La actividad sí contribuye sustancialmente a la sostenibilidad\"),SUM(B167:O167),0),IF(AND('Base-datos'!$B$750=\"Sí\",'Base-datos'!$B$751=\"Sí\",'Base-datos'!$B$752=\"Sí\"),IF(AND(Q167=\"La actividad sí contribuye sustancialmente a la sostenibilidad\",R167=\"La actividad sí contribuye sustancialmente a la sostenibilidad\",P167=\"La actividad sí contribuye sustancialmente a la sostenibilidad\"),SUM(B167:O167),0),IF(AND('Base-datos'!$B$750=\"\",'Base-datos'!$B$751=\"Sí\",'Base-datos'!$B$752=\"\"),IF(R167=\"La actividad sí contribuye sustancialmente a la sostenibilidad\",SUM(B167:O167),0),IF(AND('Base-datos'!$B$750=\"\",'Base-datos'!$B$751=\"\",'Base-datos'!$B$752=\"Sí\"),IF(P167=\"La actividad sí contribuye sustancialmente a la sostenibilidad\",SUM(B167:O167),0),IF(AND('Base-datos'!$B$750=\"\",'Base-datos'!$B$751=\"Sí\",'Base-datos'!$B$752=\"Sí\"),IF(AND(R167=\"La actividad sí contribuye sustancialmente a la sostenibilidad\",P167=\"La actividad sí contribuye sustancialmente a la sostenibilidad\"),SUM(B167:O167),0),IF(AND('Base-datos'!$B$750=\"Sí\",'Base-datos'!$B$751=\"\",'Base-datos'!$B$752=\"Sí\"),IF(AND(Q167=\"La actividad sí contribuye sustancialmente a la sostenibilidad\",P167=\"La actividad sí contribuye sustancialmente a la sostenibilidad\"),SUM(B167:O167),0),\"Por definir\"))))))))","v":"Por definir"}]
[{"$f":"Transporte!$C24","v":"Seleccione"},{"$f":"IF(Transporte!$E24=Seguros_fianzas!B$12,Transporte!$B24,\"\")","v":""},{"$f":"IF(Transporte!$E24=Seguros_fianzas!C$12,Transporte!$B24,\"\")","v":""},{"$f":"IF(Transporte!$E24=Seguros_fianzas!D$12,Transporte!$B24,\"\")","v":""},{"$f":"IF(Transporte!$E24=Seguros_fianzas!E$12,Transporte!$B24,\"\")","v":""},{"$f":"IF(Transporte!$E24=Seguros_fianzas!F$12,Transporte!$B24,\"\")","v":""},{"$f":"IF(Transporte!$E24=Seguros_fianzas!G$12,Transporte!$B24,\"\")","v":""},{"$f":"IF(Transporte!$E24=Seguros_fianzas!H$12,Transporte!$B24,\"\")","v":""},{"$f":"IF(Transporte!$E24=Seguros_fianzas!I$12,Transporte!$B24,\"\")","v":""},{"$f":"IF(Transporte!$E24=Seguros_fianzas!J$12,Transporte!$B24,\"\")","v":""},{"$f":"IF(Transporte!$E24=Seguros_fianzas!K$12,Transporte!$B24,\"\")","v":""},{"$f":"IF(Transporte!$E24=Seguros_fianzas!L$12,Transporte!$B24,\"\")","v":""},{"$f":"IF(Transporte!$E24=Seguros_fianzas!M$12,Transporte!$B24,\"\")","v":""},{"$f":"IF(Transporte!$E24=Seguros_fianzas!N$12,Transporte!$B24,\"\")","v":""},{"$f":"IF(Transporte!$E24=Seguros_fianzas!O$12,Transporte!$B24,\"\")","v":""},{"$f":"_xlfn.XLOOKUP(A168,'Base-datos'!$B$553:$B$570,'Base-datos'!$F$553:$F$570)","v":{"$error":"#N/A"}},{"$f":"_xlfn.XLOOKUP(A168,'Base-datos'!$B$553:$B$570,'Base-datos'!$C$553:$C$570)","v":{"$error":"#N/A"}},{"$f":"_xlfn.XLOOKUP(A168,'Base-datos'!$B$553:$B$570,'Base-datos'!$D$553:$D$570)","v":{"$error":"#N/A"}},null,null,{"$f":"IF(OR(S$161=\"La actividad no cumple con el total de los criterios de No Daño Significativo\",T$161=\"El sector no cumple con las salvaguardas mínimas\"),\"\",IF(AND('Base-datos'!$B$750=\"Sí\",'Base-datos'!$B$751=\"\",'Base-datos'!$B$752=\"\"),IF(Q168=\"La actividad sí contribuye sustancialmente a la sostenibilidad\",SUM(B168:O168),0),IF(AND('Base-datos'!$B$750=\"Sí\",'Base-datos'!$B$751=\"Sí\",'Base-datos'!$B$752=\"\"),IF(AND(Q168=\"La actividad sí contribuye sustancialmente a la sostenibilidad\",R168=\"La actividad sí contribuye sustancialmente a la sostenibilidad\"),SUM(B168:O168),0),IF(AND('Base-datos'!$B$750=\"Sí\",'Base-datos'!$B$751=\"Sí\",'Base-datos'!$B$752=\"Sí\"),IF(AND(Q168=\"La actividad sí contribuye sustancialmente a la sostenibilidad\",R168=\"La actividad sí contribuye sustancialmente a la sostenibilidad\",P168=\"La actividad sí contribuye sustancialmente a la sostenibilidad\"),SUM(B168:O168),0),IF(AND('Base-datos'!$B$750=\"\",'Base-datos'!$B$751=\"Sí\",'Base-datos'!$B$752=\"\"),IF(R168=\"La actividad sí contribuye sustancialmente a la sostenibilidad\",SUM(B168:O168),0),IF(AND('Base-datos'!$B$750=\"\",'Base-datos'!$B$751=\"\",'Base-datos'!$B$752=\"Sí\"),IF(P168=\"La actividad sí contribuye sustancialmente a la sostenibilidad\",SUM(B168:O168),0),IF(AND('Base-datos'!$B$750=\"\",'Base-datos'!$B$751=\"Sí\",'Base-datos'!$B$752=\"Sí\"),IF(AND(R168=\"La actividad sí contribuye sustancialmente a la sostenibilidad\",P168=\"La actividad sí contribuye sustancialmente a la sostenibilidad\"),SUM(B168:O168),0),IF(AND('Base-datos'!$B$750=\"Sí\",'Base-datos'!$B$751=\"\",'Base-datos'!$B$752=\"Sí\"),IF(AND(Q168=\"La actividad sí contribuye sustancialmente a la sostenibilidad\",P168=\"La actividad sí contribuye sustancialmente a la sostenibilidad\"),SUM(B168:O168),0),\"Por definir\"))))))))","v":"Por definir"}]
[{"$f":"Transporte!$C26","v":"Seleccione"},{"$f":"IF(Transporte!$E26=Seguros_fianzas!B$12,Transporte!$B26,\"\")","v":""},{"$f":"IF(Transporte!$E26=Seguros_fianzas!C$12,Transporte!$B26,\"\")","v":""},{"$f":"IF(Transporte!$E26=Seguros_fianzas!D$12,Transporte!$B26,\"\")","v":""},{"$f":"IF(Transporte!$E26=Seguros_fianzas!E$12,Transporte!$B26,\"\")","v":""},{"$f":"IF(Transporte!$E26=Seguros_fianzas!F$12,Transporte!$B26,\"\")","v":""},{"$f":"IF(Transporte!$E26=Seguros_fianzas!G$12,Transporte!$B26,\"\")","v":""},{"$f":"IF(Transporte!$E26=Seguros_fianzas!H$12,Transporte!$B26,\"\")","v":""},{"$f":"IF(Transporte!$E26=Seguros_fianzas!I$12,Transporte!$B26,\"\")","v":""},{"$f":"IF(Transporte!$E26=Seguros_fianzas!J$12,Transporte!$B26,\"\")","v":""},{"$f":"IF(Transporte!$E26=Seguros_fianzas!K$12,Transporte!$B26,\"\")","v":""},{"$f":"IF(Transporte!$E26=Seguros_fianzas!L$12,Transporte!$B26,\"\")","v":""},{"$f":"IF(Transporte!$E26=Seguros_fianzas!M$12,Transporte!$B26,\"\")","v":""},{"$f":"IF(Transporte!$E26=Seguros_fianzas!N$12,Transporte!$B26,\"\")","v":""},{"$f":"IF(Transporte!$E26=Seguros_fianzas!O$12,Transporte!$B26,\"\")","v":""},{"$f":"_xlfn.XLOOKUP(A169,'Base-datos'!$B$553:$B$570,'Base-datos'!$F$553:$F$570)","v":{"$error":"#N/A"}},{"$f":"_xlfn.XLOOKUP(A169,'Base-datos'!$B$553:$B$570,'Base-datos'!$C$553:$C$570)","v":{"$error":"#N/A"}},{"$f":"_xlfn.XLOOKUP(A169,'Base-datos'!$B$553:$B$570,'Base-datos'!$D$553:$D$570)","v":{"$error":"#N/A"}},null,null,{"$f":"IF(OR(S$161=\"La actividad no cumple con el total de los criterios de No Daño Significativo\",T$161=\"El sector no cumple con las salvaguardas mínimas\"),\"\",IF(AND('Base-datos'!$B$750=\"Sí\",'Base-datos'!$B$751=\"\",'Base-datos'!$B$752=\"\"),IF(Q169=\"La actividad sí contribuye sustancialmente a la sostenibilidad\",SUM(B169:O169),0),IF(AND('Base-datos'!$B$750=\"Sí\",'Base-datos'!$B$751=\"Sí\",'Base-datos'!$B$752=\"\"),IF(AND(Q169=\"La actividad sí contribuye sustancialmente a la sostenibilidad\",R169=\"La actividad sí contribuye sustancialmente a la sostenibilidad\"),SUM(B169:O169),0),IF(AND('Base-datos'!$B$750=\"Sí\",'Base-datos'!$B$751=\"Sí\",'Base-datos'!$B$752=\"Sí\"),IF(AND(Q169=\"La actividad sí contribuye sustancialmente a la sostenibilidad\",R169=\"La actividad sí contribuye sustancialmente a la sostenibilidad\",P169=\"La actividad sí contribuye sustancialmente a la sostenibilidad\"),SUM(B169:O169),0),IF(AND('Base-datos'!$B$750=\"\",'Base-datos'!$B$751=\"Sí\",'Base-datos'!$B$752=\"\"),IF(R169=\"La actividad sí contribuye sustancialmente a la sostenibilidad\",SUM(B169:O169),0),IF(AND('Base-datos'!$B$750=\"\",'Base-datos'!$B$751=\"\",'Base-datos'!$B$752=\"Sí\"),IF(P169=\"La actividad sí contribuye sustancialmente a la sostenibilidad\",SUM(B169:O169),0),IF(AND('Base-datos'!$B$750=\"\",'Base-datos'!$B$751=\"Sí\",'Base-datos'!$B$752=\"Sí\"),IF(AND(R169=\"La actividad sí contribuye sustancialmente a la sostenibilidad\",P169=\"La actividad sí contribuye sustancialmente a la sostenibilidad\"),SUM(B169:O169),0),IF(AND('Base-datos'!$B$750=\"Sí\",'Base-datos'!$B$751=\"\",'Base-datos'!$B$752=\"Sí\"),IF(AND(Q169=\"La actividad sí contribuye sustancialmente a la sostenibilidad\",P169=\"La actividad sí contribuye sustancialmente a la sostenibilidad\"),SUM(B169:O169),0),\"Por definir\"))))))))","v":"Por definir"}]
[{"$f":"Transporte!$C28","v":"Seleccione"},{"$f":"IF(Transporte!$E28=Seguros_fianzas!B$12,Transporte!$B28,\"\")","v":""},{"$f":"IF(Transporte!$E28=Seguros_fianzas!C$12,Transporte!$B28,\"\")","v":""},{"$f":"IF(Transporte!$E28=Seguros_fianzas!D$12,Transporte!$B28,\"\")","v":""},{"$f":"IF(Transporte!$E28=Seguros_fianzas!E$12,Transporte!$B28,\"\")","v":""},{"$f":"IF(Transporte!$E28=Seguros_fianzas!F$12,Transporte!$B28,\"\")","v":""},{"$f":"IF(Transporte!$E28=Seguros_fianzas!G$12,Transporte!$B28,\"\")","v":""},{"$f":"IF(Transporte!$E28=Seguros_fianzas!H$12,Transporte!$B28,\"\")","v":""},{"$f":"IF(Transporte!$E28=Seguros_fianzas!I$12,Transporte!$B28,\"\")","v":""},{"$f":"IF(Transporte!$E28=Seguros_fianzas!J$12,Transporte!$B28,\"\")","v":""},{"$f":"IF(Transporte!$E28=Seguros_fianzas!K$12,Transporte!$B28,\"\")","v":""},{"$f":"IF(Transporte!$E28=Seguros_fianzas!L$12,Transporte!$B28,\"\")","v":""},{"$f":"IF(Transporte!$E28=Seguros_fianzas!M$12,Transporte!$B28,\"\")","v":""},{"$f":"IF(Transporte!$E28=Seguros_fianzas!N$12,Transporte!$B28,\"\")","v":""},{"$f":"IF(Transporte!$E28=Seguros_fianzas!O$12,Transporte!$B28,\"\")","v":""},{"$f":"_xlfn.XLOOKUP(A170,'Base-datos'!$B$553:$B$570,'Base-datos'!$F$553:$F$570)","v":{"$error":"#N/A"}},{"$f":"_xlfn.XLOOKUP(A170,'Base-datos'!$B$553:$B$570,'Base-datos'!$C$553:$C$570)","v":{"$error":"#N/A"}},{"$f":"_xlfn.XLOOKUP(A170,'Base-datos'!$B$553:$B$570,'Base-datos'!$D$553:$D$570)","v":{"$error":"#N/A"}},null,null,{"$f":"IF(OR(S$161=\"La actividad no cumple con el total de los criterios de No Daño Significativo\",T$161=\"El sector no cumple con las salvaguardas mínimas\"),\"\",IF(AND('Base-datos'!$B$750=\"Sí\",'Base-datos'!$B$751=\"\",'Base-datos'!$B$752=\"\"),IF(Q170=\"La actividad sí contribuye sustancialmente a la sostenibilidad\",SUM(B170:O170),0),IF(AND('Base-datos'!$B$750=\"Sí\",'Base-datos'!$B$751=\"Sí\",'Base-datos'!$B$752=\"\"),IF(AND(Q170=\"La actividad sí contribuye sustancialmente a la sostenibilidad\",R170=\"La actividad sí contribuye sustancialmente a la sostenibilidad\"),SUM(B170:O170),0),IF(AND('Base-datos'!$B$750=\"Sí\",'Base-datos'!$B$751=\"Sí\",'Base-datos'!$B$752=\"Sí\"),IF(AND(Q170=\"La actividad sí contribuye sustancialmente a la sostenibilidad\",R170=\"La actividad sí contribuye sustancialmente a la sostenibilidad\",P170=\"La actividad sí contribuye sustancialmente a la sostenibilidad\"),SUM(B170:O170),0),IF(AND('Base-datos'!$B$750=\"\",'Base-datos'!$B$751=\"Sí\",'Base-datos'!$B$752=\"\"),IF(R170=\"La actividad sí contribuye sustancialmente a la sostenibilidad\",SUM(B170:O170),0),IF(AND('Base-datos'!$B$750=\"\",'Base-datos'!$B$751=\"\",'Base-datos'!$B$752=\"Sí\"),IF(P170=\"La actividad sí contribuye sustancialmente a la sostenibilidad\",SUM(B170:O170),0),IF(AND('Base-datos'!$B$750=\"\",'Base-datos'!$B$751=\"Sí\",'Base-datos'!$B$752=\"Sí\"),IF(AND(R170=\"La actividad sí contribuye sustancialmente a la sostenibilidad\",P170=\"La actividad sí contribuye sustancialmente a la sostenibilidad\"),SUM(B170:O170),0),IF(AND('Base-datos'!$B$750=\"Sí\",'Base-datos'!$B$751=\"\",'Base-datos'!$B$752=\"Sí\"),IF(AND(Q170=\"La actividad sí contribuye sustancialmente a la sostenibilidad\",P170=\"La actividad sí contribuye sustancialmente a la sostenibilidad\"),SUM(B170:O170),0),\"Por definir\"))))))))","v":"Por definir"}]
[{"$f":"Transporte!$C30","v":"Seleccione"},{"$f":"IF(Transporte!$E30=Seguros_fianzas!B$12,Transporte!$B30,\"\")","v":""},{"$f":"IF(Transporte!$E30=Seguros_fianzas!C$12,Transporte!$B30,\"\")","v":""},{"$f":"IF(Transporte!$E30=Seguros_fianzas!D$12,Transporte!$B30,\"\")","v":""},{"$f":"IF(Transporte!$E30=Seguros_fianzas!E$12,Transporte!$B30,\"\")","v":""},{"$f":"IF(Transporte!$E30=Seguros_fianzas!F$12,Transporte!$B30,\"\")","v":""},{"$f":"IF(Transporte!$E30=Seguros_fianzas!G$12,Transporte!$B30,\"\")","v":""},{"$f":"IF(Transporte!$E30=Seguros_fianzas!H$12,Transporte!$B30,\"\")","v":""},{"$f":"IF(Transporte!$E30=Seguros_fianzas!I$12,Transporte!$B30,\"\")","v":""},{"$f":"IF(Transporte!$E30=Seguros_fianzas!J$12,Transporte!$B30,\"\")","v":""},{"$f":"IF(Transporte!$E30=Seguros_fianzas!K$12,Transporte!$B30,\"\")","v":""},{"$f":"IF(Transporte!$E30=Seguros_fianzas!L$12,Transporte!$B30,\"\")","v":""},{"$f":"IF(Transporte!$E30=Seguros_fianzas!M$12,Transporte!$B30,\"\")","v":""},{"$f":"IF(Transporte!$E30=Seguros_fianzas!N$12,Transporte!$B30,\"\")","v":""},{"$f":"IF(Transporte!$E30=Seguros_fianzas!O$12,Transporte!$B30,\"\")","v":""},{"$f":"_xlfn.XLOOKUP(A171,'Base-datos'!$B$553:$B$570,'Base-datos'!$F$553:$F$570)","v":{"$error":"#N/A"}},{"$f":"_xlfn.XLOOKUP(A171,'Base-datos'!$B$553:$B$570,'Base-datos'!$C$553:$C$570)","v":{"$error":"#N/A"}},{"$f":"_xlfn.XLOOKUP(A171,'Base-datos'!$B$553:$B$570,'Base-datos'!$D$553:$D$570)","v":{"$error":"#N/A"}},null,null,{"$f":"IF(OR(S$161=\"La actividad no cumple con el total de los criterios de No Daño Significativo\",T$161=\"El sector no cumple con las salvaguardas mínimas\"),\"\",IF(AND('Base-datos'!$B$750=\"Sí\",'Base-datos'!$B$751=\"\",'Base-datos'!$B$752=\"\"),IF(Q171=\"La actividad sí contribuye sustancialmente a la sostenibilidad\",SUM(B171:O171),0),IF(AND('Base-datos'!$B$750=\"Sí\",'Base-datos'!$B$751=\"Sí\",'Base-datos'!$B$752=\"\"),IF(AND(Q171=\"La actividad sí contribuye sustancialmente a la sostenibilidad\",R171=\"La actividad sí contribuye sustancialmente a la sostenibilidad\"),SUM(B171:O171),0),IF(AND('Base-datos'!$B$750=\"Sí\",'Base-datos'!$B$751=\"Sí\",'Base-datos'!$B$752=\"Sí\"),IF(AND(Q171=\"La actividad sí contribuye sustancialmente a la sostenibilidad\",R171=\"La actividad sí contribuye sustancialmente a la sostenibilidad\",P171=\"La actividad sí contribuye sustancialmente a la sostenibilidad\"),SUM(B171:O171),0),IF(AND('Base-datos'!$B$750=\"\",'Base-datos'!$B$751=\"Sí\",'Base-datos'!$B$752=\"\"),IF(R171=\"La actividad sí contribuye sustancialmente a la sostenibilidad\",SUM(B171:O171),0),IF(AND('Base-datos'!$B$750=\"\",'Base-datos'!$B$751=\"\",'Base-datos'!$B$752=\"Sí\"),IF(P171=\"La actividad sí contribuye sustancialmente a la sostenibilidad\",SUM(B171:O171),0),IF(AND('Base-datos'!$B$750=\"\",'Base-datos'!$B$751=\"Sí\",'Base-datos'!$B$752=\"Sí\"),IF(AND(R171=\"La actividad sí contribuye sustancialmente a la sostenibilidad\",P171=\"La actividad sí contribuye sustancialmente a la sostenibilidad\"),SUM(B171:O171),0),IF(AND('Base-datos'!$B$750=\"Sí\",'Base-datos'!$B$751=\"\",'Base-datos'!$B$752=\"Sí\"),IF(AND(Q171=\"La actividad sí contribuye sustancialmente a la sostenibilidad\",P171=\"La actividad sí contribuye sustancialmente a la sostenibilidad\"),SUM(B171:O171),0),\"Por definir\"))))))))","v":"Por definir"}]
[{"$f":"Transporte!$C32","v":"Seleccione"},{"$f":"IF(Transporte!$E32=Seguros_fianzas!B$12,Transporte!$B32,\"\")","v":""},{"$f":"IF(Transporte!$E32=Seguros_fianzas!C$12,Transporte!$B32,\"\")","v":""},{"$f":"IF(Transporte!$E32=Seguros_fianzas!D$12,Transporte!$B32,\"\")","v":""},{"$f":"IF(Transporte!$E32=Seguros_fianzas!E$12,Transporte!$B32,\"\")","v":""},{"$f":"IF(Transporte!$E32=Seguros_fianzas!F$12,Transporte!$B32,\"\")","v":""},{"$f":"IF(Transporte!$E32=Seguros_fianzas!G$12,Transporte!$B32,\"\")","v":""},{"$f":"IF(Transporte!$E32=Seguros_fianzas!H$12,Transporte!$B32,\"\")","v":""},{"$f":"IF(Transporte!$E32=Seguros_fianzas!I$12,Transporte!$B32,\"\")","v":""},{"$f":"IF(Transporte!$E32=Seguros_fianzas!J$12,Transporte!$B32,\"\")","v":""},{"$f":"IF(Transporte!$E32=Seguros_fianzas!K$12,Transporte!$B32,\"\")","v":""},{"$f":"IF(Transporte!$E32=Seguros_fianzas!L$12,Transporte!$B32,\"\")","v":""},{"$f":"IF(Transporte!$E32=Seguros_fianzas!M$12,Transporte!$B32,\"\")","v":""},{"$f":"IF(Transporte!$E32=Seguros_fianzas!N$12,Transporte!$B32,\"\")","v":""},{"$f":"IF(Transporte!$E32=Seguros_fianzas!O$12,Transporte!$B32,\"\")","v":""},{"$f":"_xlfn.XLOOKUP(A172,'Base-datos'!$B$553:$B$570,'Base-datos'!$F$553:$F$570)","v":{"$error":"#N/A"}},{"$f":"_xlfn.XLOOKUP(A172,'Base-datos'!$B$553:$B$570,'Base-datos'!$C$553:$C$570)","v":{"$error":"#N/A"}},{"$f":"_xlfn.XLOOKUP(A172,'Base-datos'!$B$553:$B$570,'Base-datos'!$D$553:$D$570)","v":{"$error":"#N/A"}},null,null,{"$f":"IF(OR(S$161=\"La actividad no cumple con el total de los criterios de No Daño Significativo\",T$161=\"El sector no cumple con las salvaguardas mínimas\"),\"\",IF(AND('Base-datos'!$B$750=\"Sí\",'Base-datos'!$B$751=\"\",'Base-datos'!$B$752=\"\"),IF(Q172=\"La actividad sí contribuye sustancialmente a la sostenibilidad\",SUM(B172:O172),0),IF(AND('Base-datos'!$B$750=\"Sí\",'Base-datos'!$B$751=\"Sí\",'Base-datos'!$B$752=\"\"),IF(AND(Q172=\"La actividad sí contribuye sustancialmente a la sostenibilidad\",R172=\"La actividad sí contribuye sustancialmente a la sostenibilidad\"),SUM(B172:O172),0),IF(AND('Base-datos'!$B$750=\"Sí\",'Base-datos'!$B$751=\"Sí\",'Base-datos'!$B$752=\"Sí\"),IF(AND(Q172=\"La actividad sí contribuye sustancialmente a la sostenibilidad\",R172=\"La actividad sí contribuye sustancialmente a la sostenibilidad\",P172=\"La actividad sí contribuye sustancialmente a la sostenibilidad\"),SUM(B172:O172),0),IF(AND('Base-datos'!$B$750=\"\",'Base-datos'!$B$751=\"Sí\",'Base-datos'!$B$752=\"\"),IF(R172=\"La actividad sí contribuye sustancialmente a la sostenibilidad\",SUM(B172:O172),0),IF(AND('Base-datos'!$B$750=\"\",'Base-datos'!$B$751=\"\",'Base-datos'!$B$752=\"Sí\"),IF(P172=\"La actividad sí contribuye sustancialmente a la sostenibilidad\",SUM(B172:O172),0),IF(AND('Base-datos'!$B$750=\"\",'Base-datos'!$B$751=\"Sí\",'Base-datos'!$B$752=\"Sí\"),IF(AND(R172=\"La actividad sí contribuye sustancialmente a la sostenibilidad\",P172=\"La actividad sí contribuye sustancialmente a la sostenibilidad\"),SUM(B172:O172),0),IF(AND('Base-datos'!$B$750=\"Sí\",'Base-datos'!$B$751=\"\",'Base-datos'!$B$752=\"Sí\"),IF(AND(Q172=\"La actividad sí contribuye sustancialmente a la sostenibilidad\",P172=\"La actividad sí contribuye sustancialmente a la sostenibilidad\"),SUM(B172:O172),0),\"Por definir\"))))))))","v":"Por definir"}]
[{"$f":"Transporte!$C34","v":"Seleccione"},{"$f":"IF(Transporte!$E34=Seguros_fianzas!B$12,Transporte!$B34,\"\")","v":""},{"$f":"IF(Transporte!$E34=Seguros_fianzas!C$12,Transporte!$B34,\"\")","v":""},{"$f":"IF(Transporte!$E34=Seguros_fianzas!D$12,Transporte!$B34,\"\")","v":""},{"$f":"IF(Transporte!$E34=Seguros_fianzas!E$12,Transporte!$B34,\"\")","v":""},{"$f":"IF(Transporte!$E34=Seguros_fianzas!F$12,Transporte!$B34,\"\")","v":""},{"$f":"IF(Transporte!$E34=Seguros_fianzas!G$12,Transporte!$B34,\"\")","v":""},{"$f":"IF(Transporte!$E34=Seguros_fianzas!H$12,Transporte!$B34,\"\")","v":""},{"$f":"IF(Transporte!$E34=Seguros_fianzas!I$12,Transporte!$B34,\"\")","v":""},{"$f":"IF(Transporte!$E34=Seguros_fianzas!J$12,Transporte!$B34,\"\")","v":""},{"$f":"IF(Transporte!$E34=Seguros_fianzas!K$12,Transporte!$B34,\"\")","v":""},{"$f":"IF(Transporte!$E34=Seguros_fianzas!L$12,Transporte!$B34,\"\")","v":""},{"$f":"IF(Transporte!$E34=Seguros_fianzas!M$12,Transporte!$B34,\"\")","v":""},{"$f":"IF(Transporte!$E34=Seguros_fianzas!N$12,Transporte!$B34,\"\")","v":""},{"$f":"IF(Transporte!$E34=Seguros_fianzas!O$12,Transporte!$B34,\"\")","v":""},{"$f":"_xlfn.XLOOKUP(A173,'Base-datos'!$B$553:$B$570,'Base-datos'!$F$553:$F$570)","v":{"$error":"#N/A"}},{"$f":"_xlfn.XLOOKUP(A173,'Base-datos'!$B$553:$B$570,'Base-datos'!$C$553:$C$570)","v":{"$error":"#N/A"}},{"$f":"_xlfn.XLOOKUP(A173,'Base-datos'!$B$553:$B$570,'Base-datos'!$D$553:$D$570)","v":{"$error":"#N/A"}},null,null,{"$f":"IF(OR(S$161=\"La actividad no cumple con el total de los criterios de No Daño Significativo\",T$161=\"El sector no cumple con las salvaguardas mínimas\"),\"\",IF(AND('Base-datos'!$B$750=\"Sí\",'Base-datos'!$B$751=\"\",'Base-datos'!$B$752=\"\"),IF(Q173=\"La actividad sí contribuye sustancialmente a la sostenibilidad\",SUM(B173:O173),0),IF(AND('Base-datos'!$B$750=\"Sí\",'Base-datos'!$B$751=\"Sí\",'Base-datos'!$B$752=\"\"),IF(AND(Q173=\"La actividad sí contribuye sustancialmente a la sostenibilidad\",R173=\"La actividad sí contribuye sustancialmente a la sostenibilidad\"),SUM(B173:O173),0),IF(AND('Base-datos'!$B$750=\"Sí\",'Base-datos'!$B$751=\"Sí\",'Base-datos'!$B$752=\"Sí\"),IF(AND(Q173=\"La actividad sí contribuye sustancialmente a la sostenibilidad\",R173=\"La actividad sí contribuye sustancialmente a la sostenibilidad\",P173=\"La actividad sí contribuye sustancialmente a la sostenibilidad\"),SUM(B173:O173),0),IF(AND('Base-datos'!$B$750=\"\",'Base-datos'!$B$751=\"Sí\",'Base-datos'!$B$752=\"\"),IF(R173=\"La actividad sí contribuye sustancialmente a la sostenibilidad\",SUM(B173:O173),0),IF(AND('Base-datos'!$B$750=\"\",'Base-datos'!$B$751=\"\",'Base-datos'!$B$752=\"Sí\"),IF(P173=\"La actividad sí contribuye sustancialmente a la sostenibilidad\",SUM(B173:O173),0),IF(AND('Base-datos'!$B$750=\"\",'Base-datos'!$B$751=\"Sí\",'Base-datos'!$B$752=\"Sí\"),IF(AND(R173=\"La actividad sí contribuye sustancialmente a la sostenibilidad\",P173=\"La actividad sí contribuye sustancialmente a la sostenibilidad\"),SUM(B173:O173),0),IF(AND('Base-datos'!$B$750=\"Sí\",'Base-datos'!$B$751=\"\",'Base-datos'!$B$752=\"Sí\"),IF(AND(Q173=\"La actividad sí contribuye sustancialmente a la sostenibilidad\",P173=\"La actividad sí contribuye sustancialmente a la sostenibilidad\"),SUM(B173:O173),0),\"Por definir\"))))))))","v":"Por definir"}]
[{"$f":"Transporte!$C36","v":"Seleccione"},{"$f":"IF(Transporte!$E36=Seguros_fianzas!B$12,Transporte!$B36,\"\")","v":""},{"$f":"IF(Transporte!$E36=Seguros_fianzas!C$12,Transporte!$B36,\"\")","v":""},{"$f":"IF(Transporte!$E36=Seguros_fianzas!D$12,Transporte!$B36,\"\")","v":""},{"$f":"IF(Transporte!$E36=Seguros_fianzas!E$12,Transporte!$B36,\"\")","v":""},{"$f":"IF(Transporte!$E36=Seguros_fianzas!F$12,Transporte!$B36,\"\")","v":""},{"$f":"IF(Transporte!$E36=Seguros_fianzas!G$12,Transporte!$B36,\"\")","v":""},{"$f":"IF(Transporte!$E36=Seguros_fianzas!H$12,Transporte!$B36,\"\")","v":""},{"$f":"IF(Transporte!$E36=Seguros_fianzas!I$12,Transporte!$B36,\"\")","v":""},{"$f":"IF(Transporte!$E36=Seguros_fianzas!J$12,Transporte!$B36,\"\")","v":""},{"$f":"IF(Transporte!$E36=Seguros_fianzas!K$12,Transporte!$B36,\"\")","v":""},{"$f":"IF(Transporte!$E36=Seguros_fianzas!L$12,Transporte!$B36,\"\")","v":""},{"$f":"IF(Transporte!$E36=Seguros_fianzas!M$12,Transporte!$B36,\"\")","v":""},{"$f":"IF(Transporte!$E36=Seguros_fianzas!N$12,Transporte!$B36,\"\")","v":""},{"$f":"IF(Transporte!$E36=Seguros_fianzas!O$12,Transporte!$B36,\"\")","v":""},{"$f":"_xlfn.XLOOKUP(A174,'Base-datos'!$B$553:$B$570,'Base-datos'!$F$553:$F$570)","v":{"$error":"#N/A"}},{"$f":"_xlfn.XLOOKUP(A174,'Base-datos'!$B$553:$B$570,'Base-datos'!$C$553:$C$570)","v":{"$error":"#N/A"}},{"$f":"_xlfn.XLOOKUP(A174,'Base-datos'!$B$553:$B$570,'Base-datos'!$D$553:$D$570)","v":{"$error":"#N/A"}},null,null,{"$f":"IF(OR(S$161=\"La actividad no cumple con el total de los criterios de No Daño Significativo\",T$161=\"El sector no cumple con las salvaguardas mínimas\"),\"\",IF(AND('Base-datos'!$B$750=\"Sí\",'Base-datos'!$B$751=\"\",'Base-datos'!$B$752=\"\"),IF(Q174=\"La actividad sí contribuye sustancialmente a la sostenibilidad\",SUM(B174:O174),0),IF(AND('Base-datos'!$B$750=\"Sí\",'Base-datos'!$B$751=\"Sí\",'Base-datos'!$B$752=\"\"),IF(AND(Q174=\"La actividad sí contribuye sustancialmente a la sostenibilidad\",R174=\"La actividad sí contribuye sustancialmente a la sostenibilidad\"),SUM(B174:O174),0),IF(AND('Base-datos'!$B$750=\"Sí\",'Base-datos'!$B$751=\"Sí\",'Base-datos'!$B$752=\"Sí\"),IF(AND(Q174=\"La actividad sí contribuye sustancialmente a la sostenibilidad\",R174=\"La actividad sí contribuye sustancialmente a la sostenibilidad\",P174=\"La actividad sí contribuye sustancialmente a la sostenibilidad\"),SUM(B174:O174),0),IF(AND('Base-datos'!$B$750=\"\",'Base-datos'!$B$751=\"Sí\",'Base-datos'!$B$752=\"\"),IF(R174=\"La actividad sí contribuye sustancialmente a la sostenibilidad\",SUM(B174:O174),0),IF(AND('Base-datos'!$B$750=\"\",'Base-datos'!$B$751=\"\",'Base-datos'!$B$752=\"Sí\"),IF(P174=\"La actividad sí contribuye sustancialmente a la sostenibilidad\",SUM(B174:O174),0),IF(AND('Base-datos'!$B$750=\"\",'Base-datos'!$B$751=\"Sí\",'Base-datos'!$B$752=\"Sí\"),IF(AND(R174=\"La actividad sí contribuye sustancialmente a la sostenibilidad\",P174=\"La actividad sí contribuye sustancialmente a la sostenibilidad\"),SUM(B174:O174),0),IF(AND('Base-datos'!$B$750=\"Sí\",'Base-datos'!$B$751=\"\",'Base-datos'!$B$752=\"Sí\"),IF(AND(Q174=\"La actividad sí contribuye sustancialmente a la sostenibilidad\",P174=\"La actividad sí contribuye sustancialmente a la sostenibilidad\"),SUM(B174:O174),0),\"Por definir\"))))))))","v":"Por definir"}]
[{"$f":"Transporte!$C38","v":"Seleccione"},{"$f":"IF(Transporte!$E38=Seguros_fianzas!B$12,Transporte!$B38,\"\")","v":""},{"$f":"IF(Transporte!$E38=Seguros_fianzas!C$12,Transporte!$B38,\"\")","v":""},{"$f":"IF(Transporte!$E38=Seguros_fianzas!D$12,Transporte!$B38,\"\")","v":""},{"$f":"IF(Transporte!$E38=Seguros_fianzas!E$12,Transporte!$B38,\"\")","v":""},{"$f":"IF(Transporte!$E38=Seguros_fianzas!F$12,Transporte!$B38,\"\")","v":""},{"$f":"IF(Transporte!$E38=Seguros_fianzas!G$12,Transporte!$B38,\"\")","v":""},{"$f":"IF(Transporte!$E38=Seguros_fianzas!H$12,Transporte!$B38,\"\")","v":""},{"$f":"IF(Transporte!$E38=Seguros_fianzas!I$12,Transporte!$B38,\"\")","v":""},{"$f":"IF(Transporte!$E38=Seguros_fianzas!J$12,Transporte!$B38,\"\")","v":""},{"$f":"IF(Transporte!$E38=Seguros_fianzas!K$12,Transporte!$B38,\"\")","v":""},{"$f":"IF(Transporte!$E38=Seguros_fianzas!L$12,Transporte!$B38,\"\")","v":""},{"$f":"IF(Transporte!$E38=Seguros_fianzas!M$12,Transporte!$B38,\"\")","v":""},{"$f":"IF(Transporte!$E38=Seguros_fianzas!N$12,Transporte!$B38,\"\")","v":""},{"$f":"IF(Transporte!$E38=Seguros_fianzas!O$12,Transporte!$B38,\"\")","v":""},{"$f":"_xlfn.XLOOKUP(A175,'Base-datos'!$B$553:$B$570,'Base-datos'!$F$553:$F$570)","v":{"$error":"#N/A"}},{"$f":"_xlfn.XLOOKUP(A175,'Base-datos'!$B$553:$B$570,'Base-datos'!$C$553:$C$570)","v":{"$error":"#N/A"}},{"$f":"_xlfn.XLOOKUP(A175,'Base-datos'!$B$553:$B$570,'Base-datos'!$D$553:$D$570)","v":{"$error":"#N/A"}},null,null,{"$f":"IF(OR(S$161=\"La actividad no cumple con el total de los criterios de No Daño Significativo\",T$161=\"El sector no cumple con las salvaguardas mínimas\"),\"\",IF(AND('Base-datos'!$B$750=\"Sí\",'Base-datos'!$B$751=\"\",'Base-datos'!$B$752=\"\"),IF(Q175=\"La actividad sí contribuye sustancialmente a la sostenibilidad\",SUM(B175:O175),0),IF(AND('Base-datos'!$B$750=\"Sí\",'Base-datos'!$B$751=\"Sí\",'Base-datos'!$B$752=\"\"),IF(AND(Q175=\"La actividad sí contribuye sustancialmente a la sostenibilidad\",R175=\"La actividad sí contribuye sustancialmente a la sostenibilidad\"),SUM(B175:O175),0),IF(AND('Base-datos'!$B$750=\"Sí\",'Base-datos'!$B$751=\"Sí\",'Base-datos'!$B$752=\"Sí\"),IF(AND(Q175=\"La actividad sí contribuye sustancialmente a la sostenibilidad\",R175=\"La actividad sí contribuye sustancialmente a la sostenibilidad\",P175=\"La actividad sí contribuye sustancialmente a la sostenibilidad\"),SUM(B175:O175),0),IF(AND('Base-datos'!$B$750=\"\",'Base-datos'!$B$751=\"Sí\",'Base-datos'!$B$752=\"\"),IF(R175=\"La actividad sí contribuye sustancialmente a la sostenibilidad\",SUM(B175:O175),0),IF(AND('Base-datos'!$B$750=\"\",'Base-datos'!$B$751=\"\",'Base-datos'!$B$752=\"Sí\"),IF(P175=\"La actividad sí contribuye sustancialmente a la sostenibilidad\",SUM(B175:O175),0),IF(AND('Base-datos'!$B$750=\"\",'Base-datos'!$B$751=\"Sí\",'Base-datos'!$B$752=\"Sí\"),IF(AND(R175=\"La actividad sí contribuye sustancialmente a la sostenibilidad\",P175=\"La actividad sí contribuye sustancialmente a la sostenibilidad\"),SUM(B175:O175),0),IF(AND('Base-datos'!$B$750=\"Sí\",'Base-datos'!$B$751=\"\",'Base-datos'!$B$752=\"Sí\"),IF(AND(Q175=\"La actividad sí contribuye sustancialmente a la sostenibilidad\",P175=\"La actividad sí contribuye sustancialmente a la sostenibilidad\"),SUM(B175:O175),0),\"Por definir\"))))))))","v":"Por definir"}]
[{"$f":"Transporte!$C40","v":"Seleccione"},{"$f":"IF(Transporte!$E40=Seguros_fianzas!B$12,Transporte!$B40,\"\")","v":""},{"$f":"IF(Transporte!$E40=Seguros_fianzas!C$12,Transporte!$B40,\"\")","v":""},{"$f":"IF(Transporte!$E40=Seguros_fianzas!D$12,Transporte!$B40,\"\")","v":""},{"$f":"IF(Transporte!$E40=Seguros_fianzas!E$12,Transporte!$B40,\"\")","v":""},{"$f":"IF(Transporte!$E40=Seguros_fianzas!F$12,Transporte!$B40,\"\")","v":""},{"$f":"IF(Transporte!$E40=Seguros_fianzas!G$12,Transporte!$B40,\"\")","v":""},{"$f":"IF(Transporte!$E40=Seguros_fianzas!H$12,Transporte!$B40,\"\")","v":""},{"$f":"IF(Transporte!$E40=Seguros_fianzas!I$12,Transporte!$B40,\"\")","v":""},{"$f":"IF(Transporte!$E40=Seguros_fianzas!J$12,Transporte!$B40,\"\")","v":""},{"$f":"IF(Transporte!$E40=Seguros_fianzas!K$12,Transporte!$B40,\"\")","v":""},{"$f":"IF(Transporte!$E40=Seguros_fianzas!L$12,Transporte!$B40,\"\")","v":""},{"$f":"IF(Transporte!$E40=Seguros_fianzas!M$12,Transporte!$B40,\"\")","v":""},{"$f":"IF(Transporte!$E40=Seguros_fianzas!N$12,Transporte!$B40,\"\")","v":""},{"$f":"IF(Transporte!$E40=Seguros_fianzas!O$12,Transporte!$B40,\"\")","v":""},{"$f":"_xlfn.XLOOKUP(A176,'Base-datos'!$B$553:$B$570,'Base-datos'!$F$553:$F$570)","v":{"$error":"#N/A"}},{"$f":"_xlfn.XLOOKUP(A176,'Base-datos'!$B$553:$B$570,'Base-datos'!$C$553:$C$570)","v":{"$error":"#N/A"}},{"$f":"_xlfn.XLOOKUP(A176,'Base-datos'!$B$553:$B$570,'Base-datos'!$D$553:$D$570)","v":{"$error":"#N/A"}},null,null,{"$f":"IF(OR(S$161=\"La actividad no cumple con el total de los criterios de No Daño Significativo\",T$161=\"El sector no cumple con las salvaguardas mínimas\"),\"\",IF(AND('Base-datos'!$B$750=\"Sí\",'Base-datos'!$B$751=\"\",'Base-datos'!$B$752=\"\"),IF(Q176=\"La actividad sí contribuye sustancialmente a la sostenibilidad\",SUM(B176:O176),0),IF(AND('Base-datos'!$B$750=\"Sí\",'Base-datos'!$B$751=\"Sí\",'Base-datos'!$B$752=\"\"),IF(AND(Q176=\"La actividad sí contribuye sustancialmente a la sostenibilidad\",R176=\"La actividad sí contribuye sustancialmente a la sostenibilidad\"),SUM(B176:O176),0),IF(AND('Base-datos'!$B$750=\"Sí\",'Base-datos'!$B$751=\"Sí\",'Base-datos'!$B$752=\"Sí\"),IF(AND(Q176=\"La actividad sí contribuye sustancialmente a la sostenibilidad\",R176=\"La actividad sí contribuye sustancialmente a la sostenibilidad\",P176=\"La actividad sí contribuye sustancialmente a la sostenibilidad\"),SUM(B176:O176),0),IF(AND('Base-datos'!$B$750=\"\",'Base-datos'!$B$751=\"Sí\",'Base-datos'!$B$752=\"\"),IF(R176=\"La actividad sí contribuye sustancialmente a la sostenibilidad\",SUM(B176:O176),0),IF(AND('Base-datos'!$B$750=\"\",'Base-datos'!$B$751=\"\",'Base-datos'!$B$752=\"Sí\"),IF(P176=\"La actividad sí contribuye sustancialmente a la sostenibilidad\",SUM(B176:O176),0),IF(AND('Base-datos'!$B$750=\"\",'Base-datos'!$B$751=\"Sí\",'Base-datos'!$B$752=\"Sí\"),IF(AND(R176=\"La actividad sí contribuye sustancialmente a la sostenibilidad\",P176=\"La actividad sí contribuye sustancialmente a la sostenibilidad\"),SUM(B176:O176),0),IF(AND('Base-datos'!$B$750=\"Sí\",'Base-datos'!$B$751=\"\",'Base-datos'!$B$752=\"Sí\"),IF(AND(Q176=\"La actividad sí contribuye sustancialmente a la sostenibilidad\",P176=\"La actividad sí contribuye sustancialmente a la sostenibilidad\"),SUM(B176:O176),0),\"Por definir\"))))))))","v":"Por definir"}]
[{"$f":"Transporte!$C42","v":"Seleccione"},{"$f":"IF(Transporte!$E42=Seguros_fianzas!B$12,Transporte!$B42,\"\")","v":""},{"$f":"IF(Transporte!$E42=Seguros_fianzas!C$12,Transporte!$B42,\"\")","v":""},{"$f":"IF(Transporte!$E42=Seguros_fianzas!D$12,Transporte!$B42,\"\")","v":""},{"$f":"IF(Transporte!$E42=Seguros_fianzas!E$12,Transporte!$B42,\"\")","v":""},{"$f":"IF(Transporte!$E42=Seguros_fianzas!F$12,Transporte!$B42,\"\")","v":""},{"$f":"IF(Transporte!$E42=Seguros_fianzas!G$12,Transporte!$B42,\"\")","v":""},{"$f":"IF(Transporte!$E42=Seguros_fianzas!H$12,Transporte!$B42,\"\")","v":""},{"$f":"IF(Transporte!$E42=Seguros_fianzas!I$12,Transporte!$B42,\"\")","v":""},{"$f":"IF(Transporte!$E42=Seguros_fianzas!J$12,Transporte!$B42,\"\")","v":""},{"$f":"IF(Transporte!$E42=Seguros_fianzas!K$12,Transporte!$B42,\"\")","v":""},{"$f":"IF(Transporte!$E42=Seguros_fianzas!L$12,Transporte!$B42,\"\")","v":""},{"$f":"IF(Transporte!$E42=Seguros_fianzas!M$12,Transporte!$B42,\"\")","v":""},{"$f":"IF(Transporte!$E42=Seguros_fianzas!N$12,Transporte!$B42,\"\")","v":""},{"$f":"IF(Transporte!$E42=Seguros_fianzas!O$12,Transporte!$B42,\"\")","v":""},{"$f":"_xlfn.XLOOKUP(A177,'Base-datos'!$B$553:$B$570,'Base-datos'!$F$553:$F$570)","v":{"$error":"#N/A"}},{"$f":"_xlfn.XLOOKUP(A177,'Base-datos'!$B$553:$B$570,'Base-datos'!$C$553:$C$570)","v":{"$error":"#N/A"}},{"$f":"_xlfn.XLOOKUP(A177,'Base-datos'!$B$553:$B$570,'Base-datos'!$D$553:$D$570)","v":{"$error":"#N/A"}},null,null,{"$f":"IF(OR(S$161=\"La actividad no cumple con el total de los criterios de No Daño Significativo\",T$161=\"El sector no cumple con las salvaguardas mínimas\"),\"\",IF(AND('Base-datos'!$B$750=\"Sí\",'Base-datos'!$B$751=\"\",'Base-datos'!$B$752=\"\"),IF(Q177=\"La actividad sí contribuye sustancialmente a la sostenibilidad\",SUM(B177:O177),0),IF(AND('Base-datos'!$B$750=\"Sí\",'Base-datos'!$B$751=\"Sí\",'Base-datos'!$B$752=\"\"),IF(AND(Q177=\"La actividad sí contribuye sustancialmente a la sostenibilidad\",R177=\"La actividad sí contribuye sustancialmente a la sostenibilidad\"),SUM(B177:O177),0),IF(AND('Base-datos'!$B$750=\"Sí\",'Base-datos'!$B$751=\"Sí\",'Base-datos'!$B$752=\"Sí\"),IF(AND(Q177=\"La actividad sí contribuye sustancialmente a la sostenibilidad\",R177=\"La actividad sí contribuye sustancialmente a la sostenibilidad\",P177=\"La actividad sí contribuye sustancialmente a la sostenibilidad\"),SUM(B177:O177),0),IF(AND('Base-datos'!$B$750=\"\",'Base-datos'!$B$751=\"Sí\",'Base-datos'!$B$752=\"\"),IF(R177=\"La actividad sí contribuye sustancialmente a la sostenibilidad\",SUM(B177:O177),0),IF(AND('Base-datos'!$B$750=\"\",'Base-datos'!$B$751=\"\",'Base-datos'!$B$752=\"Sí\"),IF(P177=\"La actividad sí contribuye sustancialmente a la sostenibilidad\",SUM(B177:O177),0),IF(AND('Base-datos'!$B$750=\"\",'Base-datos'!$B$751=\"Sí\",'Base-datos'!$B$752=\"Sí\"),IF(AND(R177=\"La actividad sí contribuye sustancialmente a la sostenibilidad\",P177=\"La actividad sí contribuye sustancialmente a la sostenibilidad\"),SUM(B177:O177),0),IF(AND('Base-datos'!$B$750=\"Sí\",'Base-datos'!$B$751=\"\",'Base-datos'!$B$752=\"Sí\"),IF(AND(Q177=\"La actividad sí contribuye sustancialmente a la sostenibilidad\",P177=\"La actividad sí contribuye sustancialmente a la sostenibilidad\"),SUM(B177:O177),0),\"Por definir\"))))))))","v":"Por definir"}]
[{"$f":"Transporte!$C44","v":"Seleccione"},{"$f":"IF(Transporte!$E44=Seguros_fianzas!B$12,Transporte!$B44,\"\")","v":""},{"$f":"IF(Transporte!$E44=Seguros_fianzas!C$12,Transporte!$B44,\"\")","v":""},{"$f":"IF(Transporte!$E44=Seguros_fianzas!D$12,Transporte!$B44,\"\")","v":""},{"$f":"IF(Transporte!$E44=Seguros_fianzas!E$12,Transporte!$B44,\"\")","v":""},{"$f":"IF(Transporte!$E44=Seguros_fianzas!F$12,Transporte!$B44,\"\")","v":""},{"$f":"IF(Transporte!$E44=Seguros_fianzas!G$12,Transporte!$B44,\"\")","v":""},{"$f":"IF(Transporte!$E44=Seguros_fianzas!H$12,Transporte!$B44,\"\")","v":""},{"$f":"IF(Transporte!$E44=Seguros_fianzas!I$12,Transporte!$B44,\"\")","v":""},{"$f":"IF(Transporte!$E44=Seguros_fianzas!J$12,Transporte!$B44,\"\")","v":""},{"$f":"IF(Transporte!$E44=Seguros_fianzas!K$12,Transporte!$B44,\"\")","v":""},{"$f":"IF(Transporte!$E44=Seguros_fianzas!L$12,Transporte!$B44,\"\")","v":""},{"$f":"IF(Transporte!$E44=Seguros_fianzas!M$12,Transporte!$B44,\"\")","v":""},{"$f":"IF(Transporte!$E44=Seguros_fianzas!N$12,Transporte!$B44,\"\")","v":""},{"$f":"IF(Transporte!$E44=Seguros_fianzas!O$12,Transporte!$B44,\"\")","v":""},{"$f":"_xlfn.XLOOKUP(A178,'Base-datos'!$B$553:$B$570,'Base-datos'!$F$553:$F$570)","v":{"$error":"#N/A"}},{"$f":"_xlfn.XLOOKUP(A178,'Base-datos'!$B$553:$B$570,'Base-datos'!$C$553:$C$570)","v":{"$error":"#N/A"}},{"$f":"_xlfn.XLOOKUP(A178,'Base-datos'!$B$553:$B$570,'Base-datos'!$D$553:$D$570)","v":{"$error":"#N/A"}},null,null,{"$f":"IF(OR(S$161=\"La actividad no cumple con el total de los criterios de No Daño Significativo\",T$161=\"El sector no cumple con las salvaguardas mínimas\"),\"\",IF(AND('Base-datos'!$B$750=\"Sí\",'Base-datos'!$B$751=\"\",'Base-datos'!$B$752=\"\"),IF(Q178=\"La actividad sí contribuye sustancialmente a la sostenibilidad\",SUM(B178:O178),0),IF(AND('Base-datos'!$B$750=\"Sí\",'Base-datos'!$B$751=\"Sí\",'Base-datos'!$B$752=\"\"),IF(AND(Q178=\"La actividad sí contribuye sustancialmente a la sostenibilidad\",R178=\"La actividad sí contribuye sustancialmente a la sostenibilidad\"),SUM(B178:O178),0),IF(AND('Base-datos'!$B$750=\"Sí\",'Base-datos'!$B$751=\"Sí\",'Base-datos'!$B$752=\"Sí\"),IF(AND(Q178=\"La actividad sí contribuye sustancialmente a la sostenibilidad\",R178=\"La actividad sí contribuye sustancialmente a la sostenibilidad\",P178=\"La actividad sí contribuye sustancialmente a la sostenibilidad\"),SUM(B178:O178),0),IF(AND('Base-datos'!$B$750=\"\",'Base-datos'!$B$751=\"Sí\",'Base-datos'!$B$752=\"\"),IF(R178=\"La actividad sí contribuye sustancialmente a la sostenibilidad\",SUM(B178:O178),0),IF(AND('Base-datos'!$B$750=\"\",'Base-datos'!$B$751=\"\",'Base-datos'!$B$752=\"Sí\"),IF(P178=\"La actividad sí contribuye sustancialmente a la sostenibilidad\",SUM(B178:O178),0),IF(AND('Base-datos'!$B$750=\"\",'Base-datos'!$B$751=\"Sí\",'Base-datos'!$B$752=\"Sí\"),IF(AND(R178=\"La actividad sí contribuye sustancialmente a la sostenibilidad\",P178=\"La actividad sí contribuye sustancialmente a la sostenibilidad\"),SUM(B178:O178),0),IF(AND('Base-datos'!$B$750=\"Sí\",'Base-datos'!$B$751=\"\",'Base-datos'!$B$752=\"Sí\"),IF(AND(Q178=\"La actividad sí contribuye sustancialmente a la sostenibilidad\",P178=\"La actividad sí contribuye sustancialmente a la sostenibilidad\"),SUM(B178:O178),0),\"Por definir\"))))))))","v":"Por definir"}]
[{"$f":"Transporte!$C46","v":"Seleccione"},{"$f":"IF(Transporte!$E46=Seguros_fianzas!B$12,Transporte!$B46,\"\")","v":""},{"$f":"IF(Transporte!$E46=Seguros_fianzas!C$12,Transporte!$B46,\"\")","v":""},{"$f":"IF(Transporte!$E46=Seguros_fianzas!D$12,Transporte!$B46,\"\")","v":""},{"$f":"IF(Transporte!$E46=Seguros_fianzas!E$12,Transporte!$B46,\"\")","v":""},{"$f":"IF(Transporte!$E46=Seguros_fianzas!F$12,Transporte!$B46,\"\")","v":""},{"$f":"IF(Transporte!$E46=Seguros_fianzas!G$12,Transporte!$B46,\"\")","v":""},{"$f":"IF(Transporte!$E46=Seguros_fianzas!H$12,Transporte!$B46,\"\")","v":""},{"$f":"IF(Transporte!$E46=Seguros_fianzas!I$12,Transporte!$B46,\"\")","v":""},{"$f":"IF(Transporte!$E46=Seguros_fianzas!J$12,Transporte!$B46,\"\")","v":""},{"$f":"IF(Transporte!$E46=Seguros_fianzas!K$12,Transporte!$B46,\"\")","v":""},{"$f":"IF(Transporte!$E46=Seguros_fianzas!L$12,Transporte!$B46,\"\")","v":""},{"$f":"IF(Transporte!$E46=Seguros_fianzas!M$12,Transporte!$B46,\"\")","v":""},{"$f":"IF(Transporte!$E46=Seguros_fianzas!N$12,Transporte!$B46,\"\")","v":""},{"$f":"IF(Transporte!$E46=Seguros_fianzas!O$12,Transporte!$B46,\"\")","v":""},{"$f":"_xlfn.XLOOKUP(A179,'Base-datos'!$B$553:$B$570,'Base-datos'!$F$553:$F$570)","v":{"$error":"#N/A"}},{"$f":"_xlfn.XLOOKUP(A179,'Base-datos'!$B$553:$B$570,'Base-datos'!$C$553:$C$570)","v":{"$error":"#N/A"}},{"$f":"_xlfn.XLOOKUP(A179,'Base-datos'!$B$553:$B$570,'Base-datos'!$D$553:$D$570)","v":{"$error":"#N/A"}},null,null,{"$f":"IF(OR(S$161=\"La actividad no cumple con el total de los criterios de No Daño Significativo\",T$161=\"El sector no cumple con las salvaguardas mínimas\"),\"\",IF(AND('Base-datos'!$B$750=\"Sí\",'Base-datos'!$B$751=\"\",'Base-datos'!$B$752=\"\"),IF(Q179=\"La actividad sí contribuye sustancialmente a la sostenibilidad\",SUM(B179:O179),0),IF(AND('Base-datos'!$B$750=\"Sí\",'Base-datos'!$B$751=\"Sí\",'Base-datos'!$B$752=\"\"),IF(AND(Q179=\"La actividad sí contribuye sustancialmente a la sostenibilidad\",R179=\"La actividad sí contribuye sustancialmente a la sostenibilidad\"),SUM(B179:O179),0),IF(AND('Base-datos'!$B$750=\"Sí\",'Base-datos'!$B$751=\"Sí\",'Base-datos'!$B$752=\"Sí\"),IF(AND(Q179=\"La actividad sí contribuye sustancialmente a la sostenibilidad\",R179=\"La actividad sí contribuye sustancialmente a la sostenibilidad\",P179=\"La actividad sí contribuye sustancialmente a la sostenibilidad\"),SUM(B179:O179),0),IF(AND('Base-datos'!$B$750=\"\",'Base-datos'!$B$751=\"Sí\",'Base-datos'!$B$752=\"\"),IF(R179=\"La actividad sí contribuye sustancialmente a la sostenibilidad\",SUM(B179:O179),0),IF(AND('Base-datos'!$B$750=\"\",'Base-datos'!$B$751=\"\",'Base-datos'!$B$752=\"Sí\"),IF(P179=\"La actividad sí contribuye sustancialmente a la sostenibilidad\",SUM(B179:O179),0),IF(AND('Base-datos'!$B$750=\"\",'Base-datos'!$B$751=\"Sí\",'Base-datos'!$B$752=\"Sí\"),IF(AND(R179=\"La actividad sí contribuye sustancialmente a la sostenibilidad\",P179=\"La actividad sí contribuye sustancialmente a la sostenibilidad\"),SUM(B179:O179),0),IF(AND('Base-datos'!$B$750=\"Sí\",'Base-datos'!$B$751=\"\",'Base-datos'!$B$752=\"Sí\"),IF(AND(Q179=\"La actividad sí contribuye sustancialmente a la sostenibilidad\",P179=\"La actividad sí contribuye sustancialmente a la sostenibilidad\"),SUM(B179:O179),0),\"Por definir\"))))))))","v":"Por definir"}]
[{"$f":"Transporte!$C48","v":"Seleccione"},{"$f":"IF(Transporte!$E48=Seguros_fianzas!B$12,Transporte!$B48,\"\")","v":""},{"$f":"IF(Transporte!$E48=Seguros_fianzas!C$12,Transporte!$B48,\"\")","v":""},{"$f":"IF(Transporte!$E48=Seguros_fianzas!D$12,Transporte!$B48,\"\")","v":""},{"$f":"IF(Transporte!$E48=Seguros_fianzas!E$12,Transporte!$B48,\"\")","v":""},{"$f":"IF(Transporte!$E48=Seguros_fianzas!F$12,Transporte!$B48,\"\")","v":""},{"$f":"IF(Transporte!$E48=Seguros_fianzas!G$12,Transporte!$B48,\"\")","v":""},{"$f":"IF(Transporte!$E48=Seguros_fianzas!H$12,Transporte!$B48,\"\")","v":""},{"$f":"IF(Transporte!$E48=Seguros_fianzas!I$12,Transporte!$B48,\"\")","v":""},{"$f":"IF(Transporte!$E48=Seguros_fianzas!J$12,Transporte!$B48,\"\")","v":""},{"$f":"IF(Transporte!$E48=Seguros_fianzas!K$12,Transporte!$B48,\"\")","v":""},{"$f":"IF(Transporte!$E48=Seguros_fianzas!L$12,Transporte!$B48,\"\")","v":""},{"$f":"IF(Transporte!$E48=Seguros_fianzas!M$12,Transporte!$B48,\"\")","v":""},{"$f":"IF(Transporte!$E48=Seguros_fianzas!N$12,Transporte!$B48,\"\")","v":""},{"$f":"IF(Transporte!$E48=Seguros_fianzas!O$12,Transporte!$B48,\"\")","v":""},{"$f":"_xlfn.XLOOKUP(A180,'Base-datos'!$B$553:$B$570,'Base-datos'!$F$553:$F$570)","v":{"$error":"#N/A"}},{"$f":"_xlfn.XLOOKUP(A180,'Base-datos'!$B$553:$B$570,'Base-datos'!$C$553:$C$570)","v":{"$error":"#N/A"}},{"$f":"_xlfn.XLOOKUP(A180,'Base-datos'!$B$553:$B$570,'Base-datos'!$D$553:$D$570)","v":{"$error":"#N/A"}},null,null,{"$f":"IF(OR(S$161=\"La actividad no cumple con el total de los criterios de No Daño Significativo\",T$161=\"El sector no cumple con las salvaguardas mínimas\"),\"\",IF(AND('Base-datos'!$B$750=\"Sí\",'Base-datos'!$B$751=\"\",'Base-datos'!$B$752=\"\"),IF(Q180=\"La actividad sí contribuye sustancialmente a la sostenibilidad\",SUM(B180:O180),0),IF(AND('Base-datos'!$B$750=\"Sí\",'Base-datos'!$B$751=\"Sí\",'Base-datos'!$B$752=\"\"),IF(AND(Q180=\"La actividad sí contribuye sustancialmente a la sostenibilidad\",R180=\"La actividad sí contribuye sustancialmente a la sostenibilidad\"),SUM(B180:O180),0),IF(AND('Base-datos'!$B$750=\"Sí\",'Base-datos'!$B$751=\"Sí\",'Base-datos'!$B$752=\"Sí\"),IF(AND(Q180=\"La actividad sí contribuye sustancialmente a la sostenibilidad\",R180=\"La actividad sí contribuye sustancialmente a la sostenibilidad\",P180=\"La actividad sí contribuye sustancialmente a la sostenibilidad\"),SUM(B180:O180),0),IF(AND('Base-datos'!$B$750=\"\",'Base-datos'!$B$751=\"Sí\",'Base-datos'!$B$752=\"\"),IF(R180=\"La actividad sí contribuye sustancialmente a la sostenibilidad\",SUM(B180:O180),0),IF(AND('Base-datos'!$B$750=\"\",'Base-datos'!$B$751=\"\",'Base-datos'!$B$752=\"Sí\"),IF(P180=\"La actividad sí contribuye sustancialmente a la sostenibilidad\",SUM(B180:O180),0),IF(AND('Base-datos'!$B$750=\"\",'Base-datos'!$B$751=\"Sí\",'Base-datos'!$B$752=\"Sí\"),IF(AND(R180=\"La actividad sí contribuye sustancialmente a la sostenibilidad\",P180=\"La actividad sí contribuye sustancialmente a la sostenibilidad\"),SUM(B180:O180),0),IF(AND('Base-datos'!$B$750=\"Sí\",'Base-datos'!$B$751=\"\",'Base-datos'!$B$752=\"Sí\"),IF(AND(Q180=\"La actividad sí contribuye sustancialmente a la sostenibilidad\",P180=\"La actividad sí contribuye sustancialmente a la sostenibilidad\"),SUM(B180:O180),0),\"Por definir\"))))))))","v":"Por definir"}]
["Residuos",null,null,null,null,null,null,null,null,null,null,null,null,null,null,null,null,null,null,null,{"$f":"SUM(IF(FREQUENCY(MATCH(A182:A201, A182:A201, 0), MATCH(A182:A201, A182:A201, 0)) > 0, IF(NOT(ISERROR(U182:U201)), U182:U201, 0)))","v":0}]
[{"$f":"Residuos!$C10","v":"Seleccione"},{"$f":"IF(Residuos!$E10=Seguros_fianzas!B$12,Residuos!$B10,\"\")","v":""},{"$f":"IF(Residuos!$E10=Seguros_fianzas!C$12,Residuos!$B10,\"\")","v":""},{"$f":"IF(Residuos!$E10=Seguros_fianzas!D$12,Residuos!$B10,\"\")","v":""},{"$f":"IF(Residuos!$E10=Seguros_fianzas!E$12,Residuos!$B10,\"\")","v":""},{"$f":"IF(Residuos!$E10=Seguros_fianzas!F$12,Residuos!$B10,\"\")","v":""},{"$f":"IF(Residuos!$E10=Seguros_fianzas!G$12,Residuos!$B10,\"\")","v":""},{"$f":"IF(Residuos!$E10=Seguros_fianzas!H$12,Residuos!$B10,\"\")","v":""},{"$f":"IF(Residuos!$E10=Seguros_fianzas!I$12,Residuos!$B10,\"\")","v":""},{"$f":"IF(Residuos!$E10=Seguros_fianzas!J$12,Residuos!$B10,\"\")","v":""},{"$f":"IF(Residuos!$E10=Seguros_fianzas!K$12,Residuos!$B10,\"\")","v":""},{"$f":"IF(Residuos!$E10=Seguros_fianzas!L$12,Residuos!$B10,\"\")","v":""},{"$f":"IF(Residuos!$E10=Seguros_fianzas!M$12,Residuos!$B10,\"\")","v":""},{"$f":"IF(Residuos!$E10=Seguros_fianzas!N$12,Residuos!$B10,\"\")","v":""},{"$f":"IF(Residuos!$E10=Seguros_fianzas!O$12,Residuos!$B10,\"\")","v":""},{"$f":"_xlfn.XLOOKUP(A182,'Base-datos'!$B$571:$B$580,'Base-datos'!$F$571:$F$580)","v":{"$error":"#N/A"}},{"$f":"_xlfn.XLOOKUP(A182,'Base-datos'!$B$571:$B$580,'Base-datos'!$C$571:$C$580)","v":{"$error":"#N/A"}},{"$f":"_xlfn.XLOOKUP(A182,'Base-datos'!$B$571:$B$580,'Base-datos'!$D$571:$D$580)","v":{"$error":"#N/A"}},{"$f":"IF(COUNTIF('Residuos-NDS'!G9:G63,\"No\")>0,\"La actividad no cumple con el total de los criterios de NDS\",\"La actividad cumple con los criterios de No Daño Significativo\")","v":"La actividad cumple con los criterios de No Daño Significativo"},{"$f":"IF(OR('Salvaguardas mínimas'!$G$10=\"Seleccione\",'Salvaguardas mínimas'!$G$13=\"Seleccione\",'Salvaguardas mínimas'!$G$16=\"Seleccione\",'Salvaguardas mínimas'!$G$7=\"Seleccione\"),\"No se han respondido todas las preguntas\",IF(OR('Salvaguardas mínimas'!$G$10=\"No\",'Salvaguardas mínimas'!$G$13=\"No\",'Salvaguardas mínimas'!$G$16=\"No\",'Salvaguardas mínimas'!$G$7=\"No\"),\"El sector no cumple con las salvaguardas mínimas\",\"La actividad sí cumple con las salvaguardas mínimas\"))","v":"No se han respondido todas las preguntas"},{"$f":"IF(OR(S$182=\"La actividad no cumple con el total de los criterios de No Daño Significativo\",T$182=\"El sector no cumple con las salvaguardas mínimas\"),\"\",IF(AND('Base-datos'!$B$755=\"Sí\",'Base-datos'!$B$756=\"\",'Base-datos'!$B$757=\"\"),IF(Q182=\"La actividad sí contribuye sustancialmente a la sostenibilidad\",SUM(B182:O182),0),IF(AND('Base-datos'!$B$755=\"Sí\",'Base-datos'!$B$756=\"Sí\",'Base-datos'!$B$757=\"\"),IF(AND(Q182=\"La actividad sí contribuye sustancialmente a la sostenibilidad\",R182=\"La actividad sí contribuye sustancialmente a la sostenibilidad\"),SUM(B182:O182),0),IF(AND('Base-datos'!$B$755=\"Sí\",'Base-datos'!$B$756=\"Sí\",'Base-datos'!$B$757=\"Sí\"),IF(AND(Q182=\"La actividad sí contribuye sustancialmente a la sostenibilidad\",R182=\"La actividad sí contribuye sustancialmente a la sostenibilidad\",P182=\"La actividad sí contribuye sustancialmente a la sostenibilidad\"),SUM(B182:O182),0),IF(AND('Base-datos'!$B$755=\"\",'Base-datos'!$B$756=\"Sí\",'Base-datos'!$B$757=\"\"),IF(R182=\"La actividad sí contribuye sustancialmente a la sostenibilidad\",SUM(B182:O182),0),IF(AND('Base-datos'!$B$755=\"\",'Base-datos'!$B$756=\"\",'Base-datos'!$B$757=\"Sí\"),IF(P182=\"La actividad sí contribuye sustancialmente a la sostenibilidad\",SUM(B182:O182),0),IF(AND('Base-datos'!$B$755=\"\",'Base-datos'!$B$756=\"Sí\",'Base-datos'!$B$757=\"Sí\"),IF(AND(R182=\"La actividad sí contribuye sustancialmente a la sostenibilidad\",P182=\"La actividad sí contribuye sustancialmente a la sostenibilidad\"),SUM(B182:O182),0),IF(AND('Base-datos'!$B$755=\"Sí\",'Base-datos'!$B$756=\"\",'Base-datos'!$B$757=\"Sí\"),IF(AND(Q182=\"La actividad sí contribuye sustancialmente a la sostenibilidad\",P182=\"La actividad sí contribuye sustancialmente a la sostenibilidad\"),SUM(B182:O182),0),\"Por definir\"))))))))","v":"Por definir"}]
[{"$f":"Residuos!$C12","v":"Seleccione"},{"$f":"IF(Residuos!$E12=Seguros_fianzas!B$12,Residuos!$B12,\"\")","v":""},{"$f":"IF(Residuos!$E12=Seguros_fianzas!C$12,Residuos!$B12,\"\")","v":""},{"$f":"IF(Residuos!$E12=Seguros_fianzas!D$12,Residuos!$B12,\"\")","v":""},{"$f":"IF(Residuos!$E12=Seguros_fianzas!E$12,Residuos!$B12,\"\")","v":""},{"$f":"IF(Residuos!$E12=Seguros_fianzas!F$12,Residuos!$B12,\"\")","v":""},{"$f":"IF(Residuos!$E12=Seguros_fianzas!G$12,Residuos!$B12,\"\")","v":""},{"$f":"IF(Residuos!$E12=Seguros_fianzas!H$12,Residuos!$B12,\"\")","v":""},{"$f":"IF(Residuos!$E12=Seguros_fianzas!I$12,Residuos!$B12,\"\")","v":""},{"$f":"IF(Residuos!$E12=Seguros_fianzas!J$12,Residuos!$B12,\"\")","v":""},{"$f":"IF(Residuos!$E12=Seguros_fianzas!K$12,Residuos!$B12,\"\")","v":""},{"$f":"IF(Residuos!$E12=Seguros_fianzas!L$12,Residuos!$B12,\"\")","v":""},{"$f":"IF(Residuos!$E12=Seguros_fianzas!M$12,Residuos!$B12,\"\")","v":""},{"$f":"IF(Residuos!$E12=Seguros_fianzas!N$12,Residuos!$B12,\"\")","v":""},{"$f":"IF(Residuos!$E12=Seguros_fianzas!O$12,Residuos!$B12,\"\")","v":""},{"$f":"_xlfn.XLOOKUP(A183,'Base-datos'!$B$571:$B$580,'Base-datos'!$F$571:$F$580)","v":{"$error":"#N/A"}},{"$f":"_xlfn.XLOOKUP(A183,'Base-datos'!$B$571:$B$580,'Base-datos'!$C$571:$C$580)","v":{"$error":"#N/A"}},{"$f":"_xlfn.XLOOKUP(A183,'Base-datos'!$B$571:$B$580,'Base-datos'!$D$571:$D$580)","v":{"$error":"#N/A"}},null,null,{"$f":"IF(OR(S$182=\"La actividad no cumple con el total de los criterios de No Daño Significativo\",T$182=\"El sector no cumple con las salvaguardas mínimas\"),\"\",IF(AND('Base-datos'!$B$755=\"Sí\",'Base-datos'!$B$756=\"\",'Base-datos'!$B$757=\"\"),IF(Q183=\"La actividad sí contribuye sustancialmente a la sostenibilidad\",SUM(B183:O183),0),IF(AND('Base-datos'!$B$755=\"Sí\",'Base-datos'!$B$756=\"Sí\",'Base-datos'!$B$757=\"\"),IF(AND(Q183=\"La actividad sí contribuye sustancialmente a la sostenibilidad\",R183=\"La actividad sí contribuye sustancialmente a la sostenibilidad\"),SUM(B183:O183),0),IF(AND('Base-datos'!$B$755=\"Sí\",'Base-datos'!$B$756=\"Sí\",'Base-datos'!$B$757=\"Sí\"),IF(AND(Q183=\"La actividad sí contribuye sustancialmente a la sostenibilidad\",R183=\"La actividad sí contribuye sustancialmente a la sostenibilidad\",P183=\"La actividad sí contribuye sustancialmente a la sostenibilidad\"),SUM(B183:O183),0),IF(AND('Base-datos'!$B$755=\"\",'Base-datos'!$B$756=\"Sí\",'Base-datos'!$B$757=\"\"),IF(R183=\"La actividad sí contribuye sustancialmente a la sostenibilidad\",SUM(B183:O183),0),IF(AND('Base-datos'!$B$755=\"\",'Base-datos'!$B$756=\"\",'Base-datos'!$B$757=\"Sí\"),IF(P183=\"La actividad sí contribuye sustancialmente a la sostenibilidad\",SUM(B183:O183),0),IF(AND('Base-datos'!$B$755=\"\",'Base-datos'!$B$756=\"Sí\",'Base-datos'!$B$757=\"Sí\"),IF(AND(R183=\"La actividad sí contribuye sustancialmente a la sostenibilidad\",P183=\"La actividad sí contribuye sustancialmente a la sostenibilidad\"),SUM(B183:O183),0),IF(AND('Base-datos'!$B$755=\"Sí\",'Base-datos'!$B$756=\"\",'Base-datos'!$B$757=\"Sí\"),IF(AND(Q183=\"La actividad sí contribuye sustancialmente a la sostenibilidad\",P183=\"La actividad sí contribuye sustancialmente a la sostenibilidad\"),SUM(B183:O183),0),\"Por definir\"))))))))","v":"Por definir"}]
[{"$f":"Residuos!$C14","v":"Seleccione"},{"$f":"IF(Residuos!$E14=Seguros_fianzas!B$12,Residuos!$B14,\"\")","v":""},{"$f":"IF(Residuos!$E14=Seguros_fianzas!C$12,Residuos!$B14,\"\")","v":""},{"$f":"IF(Residuos!$E14=Seguros_fianzas!D$12,Residuos!$B14,\"\")","v":""},{"$f":"IF(Residuos!$E14=Seguros_fianzas!E$12,Residuos!$B14,\"\")","v":""},{"$f":"IF(Residuos!$E14=Seguros_fianzas!F$12,Residuos!$B14,\"\")","v":""},{"$f":"IF(Residuos!$E14=Seguros_fianzas!G$12,Residuos!$B14,\"\")","v":""},{"$f":"IF(Residuos!$E14=Seguros_fianzas!H$12,Residuos!$B14,\"\")","v":""},{"$f":"IF(Residuos!$E14=Seguros_fianzas!I$12,Residuos!$B14,\"\")","v":""},{"$f":"IF(Residuos!$E14=Seguros_fianzas!J$12,Residuos!$B14,\"\")","v":""},{"$f":"IF(Residuos!$E14=Seguros_fianzas!K$12,Residuos!$B14,\"\")","v":""},{"$f":"IF(Residuos!$E14=Seguros_fianzas!L$12,Residuos!$B14,\"\")","v":""},{"$f":"IF(Residuos!$E14=Seguros_fianzas!M$12,Residuos!$B14,\"\")","v":""},{"$f":"IF(Residuos!$E14=Seguros_fianzas!N$12,Residuos!$B14,\"\")","v":""},{"$f":"IF(Residuos!$E14=Seguros_fianzas!O$12,Residuos!$B14,\"\")","v":""},{"$f":"_xlfn.XLOOKUP(A184,'Base-datos'!$B$571:$B$580,'Base-datos'!$F$571:$F$580)","v":{"$error":"#N/A"}},{"$f":"_xlfn.XLOOKUP(A184,'Base-datos'!$B$571:$B$580,'Base-datos'!$C$571:$C$580)","v":{"$error":"#N/A"}},{"$f":"_xlfn.XLOOKUP(A184,'Base-datos'!$B$571:$B$580,'Base-datos'!$D$571:$D$580)","v":{"$error":"#N/A"}},null,null,{"$f":"IF(OR(S$182=\"La actividad no cumple con el total de los criterios de No Daño Significativo\",T$182=\"El sector no cumple con las salvaguardas mínimas\"),\"\",IF(AND('Base-datos'!$B$755=\"Sí\",'Base-datos'!$B$756=\"\",'Base-datos'!$B$757=\"\"),IF(Q184=\"La actividad sí contribuye sustancialmente a la sostenibilidad\",SUM(B184:O184),0),IF(AND('Base-datos'!$B$755=\"Sí\",'Base-datos'!$B$756=\"Sí\",'Base-datos'!$B$757=\"\"),IF(AND(Q184=\"La actividad sí contribuye sustancialmente a la sostenibilidad\",R184=\"La actividad sí contribuye sustancialmente a la sostenibilidad\"),SUM(B184:O184),0),IF(AND('Base-datos'!$B$755=\"Sí\",'Base-datos'!$B$756=\"Sí\",'Base-datos'!$B$757=\"Sí\"),IF(AND(Q184=\"La actividad sí contribuye sustancialmente a la sostenibilidad\",R184=\"La actividad sí contribuye sustancialmente a la sostenibilidad\",P184=\"La actividad sí contribuye sustancialmente a la sostenibilidad\"),SUM(B184:O184),0),IF(AND('Base-datos'!$B$755=\"\",'Base-datos'!$B$756=\"Sí\",'Base-datos'!$B$757=\"\"),IF(R184=\"La actividad sí contribuye sustancialmente a la sostenibilidad\",SUM(B184:O184),0),IF(AND('Base-datos'!$B$755=\"\",'Base-datos'!$B$756=\"\",'Base-datos'!$B$757=\"Sí\"),IF(P184=\"La actividad sí contribuye sustancialmente a la sostenibilidad\",SUM(B184:O184),0),IF(AND('Base-datos'!$B$755=\"\",'Base-datos'!$B$756=\"Sí\",'Base-datos'!$B$757=\"Sí\"),IF(AND(R184=\"La actividad sí contribuye sustancialmente a la sostenibilidad\",P184=\"La actividad sí contribuye sustancialmente a la sostenibilidad\"),SUM(B184:O184),0),IF(AND('Base-datos'!$B$755=\"Sí\",'Base-datos'!$B$756=\"\",'Base-datos'!$B$757=\"Sí\"),IF(AND(Q184=\"La actividad sí contribuye sustancialmente a la sostenibilidad\",P184=\"La actividad sí contribuye sustancialmente a la sostenibilidad\"),SUM(B184:O184),0),\"Por definir\"))))))))","v":"Por definir"}]
[{"$f":"Residuos!$C16","v":"Seleccione"},{"$f":"IF(Residuos!$E16=Seguros_fianzas!B$12,Residuos!$B16,\"\")","v":""},{"$f":"IF(Residuos!$E16=Seguros_fianzas!C$12,Residuos!$B16,\"\")","v":""},{"$f":"IF(Residuos!$E16=Seguros_fianzas!D$12,Residuos!$B16,\"\")","v":""},{"$f":"IF(Residuos!$E16=Seguros_fianzas!E$12,Residuos!$B16,\"\")","v":""},{"$f":"IF(Residuos!$E16=Seguros_fianzas!F$12,Residuos!$B16,\"\")","v":""},{"$f":"IF(Residuos!$E16=Seguros_fianzas!G$12,Residuos!$B16,\"\")","v":""},{"$f":"IF(Residuos!$E16=Seguros_fianzas!H$12,Residuos!$B16,\"\")","v":""},{"$f":"IF(Residuos!$E16=Seguros_fianzas!I$12,Residuos!$B16,\"\")","v":""},{"$f":"IF(Residuos!$E16=Seguros_fianzas!J$12,Residuos!$B16,\"\")","v":""},{"$f":"IF(Residuos!$E16=Seguros_fianzas!K$12,Residuos!$B16,\"\")","v":""},{"$f":"IF(Residuos!$E16=Seguros_fianzas!L$12,Residuos!$B16,\"\")","v":""},{"$f":"IF(Residuos!$E16=Seguros_fianzas!M$12,Residuos!$B16,\"\")","v":""},{"$f":"IF(Residuos!$E16=Seguros_fianzas!N$12,Residuos!$B16,\"\")","v":""},{"$f":"IF(Residuos!$E16=Seguros_fianzas!O$12,Residuos!$B16,\"\")","v":""},{"$f":"_xlfn.XLOOKUP(A185,'Base-datos'!$B$571:$B$580,'Base-datos'!$F$571:$F$580)","v":{"$error":"#N/A"}},{"$f":"_xlfn.XLOOKUP(A185,'Base-datos'!$B$571:$B$580,'Base-datos'!$C$571:$C$580)","v":{"$error":"#N/A"}},{"$f":"_xlfn.XLOOKUP(A185,'Base-datos'!$B$571:$B$580,'Base-datos'!$D$571:$D$580)","v":{"$error":"#N/A"}},null,null,{"$f":"IF(OR(S$182=\"La actividad no cumple con el total de los criterios de No Daño Significativo\",T$182=\"El sector no cumple con las salvaguardas mínimas\"),\"\",IF(AND('Base-datos'!$B$755=\"Sí\",'Base-datos'!$B$756=\"\",'Base-datos'!$B$757=\"\"),IF(Q185=\"La actividad sí contribuye sustancialmente a la sostenibilidad\",SUM(B185:O185),0),IF(AND('Base-datos'!$B$755=\"Sí\",'Base-datos'!$B$756=\"Sí\",'Base-datos'!$B$757=\"\"),IF(AND(Q185=\"La actividad sí contribuye sustancialmente a la sostenibilidad\",R185=\"La actividad sí contribuye sustancialmente a la sostenibilidad\"),SUM(B185:O185),0),IF(AND('Base-datos'!$B$755=\"Sí\",'Base-datos'!$B$756=\"Sí\",'Base-datos'!$B$757=\"Sí\"),IF(AND(Q185=\"La actividad sí contribuye sustancialmente a la sostenibilidad\",R185=\"La actividad sí contribuye sustancialmente a la sostenibilidad\",P185=\"La actividad sí contribuye sustancialmente a la sostenibilidad\"),SUM(B185:O185),0),IF(AND('Base-datos'!$B$755=\"\",'Base-datos'!$B$756=\"Sí\",'Base-datos'!$B$757=\"\"),IF(R185=\"La actividad sí contribuye sustancialmente a la sostenibilidad\",SUM(B185:O185),0),IF(AND('Base-datos'!$B$755=\"\",'Base-datos'!$B$756=\"\",'Base-datos'!$B$757=\"Sí\"),IF(P185=\"La actividad sí contribuye sustancialmente a la sostenibilidad\",SUM(B185:O185),0),IF(AND('Base-datos'!$B$755=\"\",'Base-datos'!$B$756=\"Sí\",'Base-datos'!$B$757=\"Sí\"),IF(AND(R185=\"La actividad sí contribuye sustancialmente a la sostenibilidad\",P185=\"La actividad sí contribuye sustancialmente a la sostenibilidad\"),SUM(B185:O185),0),IF(AND('Base-datos'!$B$755=\"Sí\",'Base-datos'!$B$756=\"\",'Base-datos'!$B$757=\"Sí\"),IF(AND(Q185=\"La actividad sí contribuye sustancialmente a la sostenibilidad\",P185=\"La actividad sí contribuye sustancialmente a la sostenibilidad\"),SUM(B185:O185),0),\"Por definir\"))))))))","v":"Por definir"}]
[{"$f":"Residuos!$C18","v":"Seleccione"},{"$f":"IF(Residuos!$E18=Seguros_fianzas!B$12,Residuos!$B18,\"\")","v":""},{"$f":"IF(Residuos!$E18=Seguros_fianzas!C$12,Residuos!$B18,\"\")","v":""},{"$f":"IF(Residuos!$E18=Seguros_fianzas!D$12,Residuos!$B18,\"\")","v":""},{"$f":"IF(Residuos!$E18=Seguros_fianzas!E$12,Residuos!$B18,\"\")","v":""},{"$f":"IF(Residuos!$E18=Seguros_fianzas!F$12,Residuos!$B18,\"\")","v":""},{"$f":"IF(Residuos!$E18=Seguros_fianzas!G$12,Residuos!$B18,\"\")","v":""},{"$f":"IF(Residuos!$E18=Seguros_fianzas!H$12,Residuos!$B18,\"\")","v":""},{"$f":"IF(Residuos!$E18=Seguros_fianzas!I$12,Residuos!$B18,\"\")","v":""},{"$f":"IF(Residuos!$E18=Seguros_fianzas!J$12,Residuos!$B18,\"\")","v":""},{"$f":"IF(Residuos!$E18=Seguros_fianzas!K$12,Residuos!$B18,\"\")","v":""},{"$f":"IF(Residuos!$E18=Seguros_fianzas!L$12,Residuos!$B18,\"\")","v":""},{"$f":"IF(Residuos!$E18=Seguros_fianzas!M$12,Residuos!$B18,\"\")","v":""},{"$f":"IF(Residuos!$E18=Seguros_fianzas!N$12,Residuos!$B18,\"\")","v":""},{"$f":"IF(Residuos!$E18=Seguros_fianzas!O$12,Residuos!$B18,\"\")","v":""},{"$f":"_xlfn.XLOOKUP(A186,'Base-datos'!$B$571:$B$580,'Base-datos'!$F$571:$F$580)","v":{"$error":"#N/A"}},{"$f":"_xlfn.XLOOKUP(A186,'Base-datos'!$B$571:$B$580,'Base-datos'!$C$571:$C$580)","v":{"$error":"#N/A"}},{"$f":"_xlfn.XLOOKUP(A186,'Base-datos'!$B$571:$B$580,'Base-datos'!$D$571:$D$580)","v":{"$error":"#N/A"}},null,null,{"$f":"IF(OR(S$182=\"La actividad no cumple con el total de los criterios de No Daño Significativo\",T$182=\"El sector no cumple con las salvaguardas mínimas\"),\"\",IF(AND('Base-datos'!$B$755=\"Sí\",'Base-datos'!$B$756=\"\",'Base-datos'!$B$757=\"\"),IF(Q186=\"La actividad sí contribuye sustancialmente a la sostenibilidad\",SUM(B186:O186),0),IF(AND('Base-datos'!$B$755=\"Sí\",'Base-datos'!$B$756=\"Sí\",'Base-datos'!$B$757=\"\"),IF(AND(Q186=\"La actividad sí contribuye sustancialmente a la sostenibilidad\",R186=\"La actividad sí contribuye sustancialmente a la sostenibilidad\"),SUM(B186:O186),0),IF(AND('Base-datos'!$B$755=\"Sí\",'Base-datos'!$B$756=\"Sí\",'Base-datos'!$B$757=\"Sí\"),IF(AND(Q186=\"La actividad sí contribuye sustancialmente a la sostenibilidad\",R186=\"La actividad sí contribuye sustancialmente a la sostenibilidad\",P186=\"La actividad sí contribuye sustancialmente a la sostenibilidad\"),SUM(B186:O186),0),IF(AND('Base-datos'!$B$755=\"\",'Base-datos'!$B$756=\"Sí\",'Base-datos'!$B$757=\"\"),IF(R186=\"La actividad sí contribuye sustancialmente a la sostenibilidad\",SUM(B186:O186),0),IF(AND('Base-datos'!$B$755=\"\",'Base-datos'!$B$756=\"\",'Base-datos'!$B$757=\"Sí\"),IF(P186=\"La actividad sí contribuye sustancialmente a la sostenibilidad\",SUM(B186:O186),0),IF(AND('Base-datos'!$B$755=\"\",'Base-datos'!$B$756=\"Sí\",'Base-datos'!$B$757=\"Sí\"),IF(AND(R186=\"La actividad sí contribuye sustancialmente a la sostenibilidad\",P186=\"La actividad sí contribuye sustancialmente a la sostenibilidad\"),SUM(B186:O186),0),IF(AND('Base-datos'!$B$755=\"Sí\",'Base-datos'!$B$756=\"\",'Base-datos'!$B$757=\"Sí\"),IF(AND(Q186=\"La actividad sí contribuye sustancialmente a la sostenibilidad\",P186=\"La actividad sí contribuye sustancialmente a la sostenibilidad\"),SUM(B186:O186),0),\"Por definir\"))))))))","v":"Por definir"}]
[{"$f":"Residuos!$C20","v":"Seleccione"},{"$f":"IF(Residuos!$E20=Seguros_fianzas!B$12,Residuos!$B20,\"\")","v":""},{"$f":"IF(Residuos!$E20=Seguros_fianzas!C$12,Residuos!$B20,\"\")","v":""},{"$f":"IF(Residuos!$E20=Seguros_fianzas!D$12,Residuos!$B20,\"\")","v":""},{"$f":"IF(Residuos!$E20=Seguros_fianzas!E$12,Residuos!$B20,\"\")","v":""},{"$f":"IF(Residuos!$E20=Seguros_fianzas!F$12,Residuos!$B20,\"\")","v":""},{"$f":"IF(Residuos!$E20=Seguros_fianzas!G$12,Residuos!$B20,\"\")","v":""},{"$f":"IF(Residuos!$E20=Seguros_fianzas!H$12,Residuos!$B20,\"\")","v":""},{"$f":"IF(Residuos!$E20=Seguros_fianzas!I$12,Residuos!$B20,\"\")","v":""},{"$f":"IF(Residuos!$E20=Seguros_fianzas!J$12,Residuos!$B20,\"\")","v":""},{"$f":"IF(Residuos!$E20=Seguros_fianzas!K$12,Residuos!$B20,\"\")","v":""},{"$f":"IF(Residuos!$E20=Seguros_fianzas!L$12,Residuos!$B20,\"\")","v":""},{"$f":"IF(Residuos!$E20=Seguros_fianzas!M$12,Residuos!$B20,\"\")","v":""},{"$f":"IF(Residuos!$E20=Seguros_fianzas!N$12,Residuos!$B20,\"\")","v":""},{"$f":"IF(Residuos!$E20=Seguros_fianzas!O$12,Residuos!$B20,\"\")","v":""},{"$f":"_xlfn.XLOOKUP(A187,'Base-datos'!$B$571:$B$580,'Base-datos'!$F$571:$F$580)","v":{"$error":"#N/A"}},{"$f":"_xlfn.XLOOKUP(A187,'Base-datos'!$B$571:$B$580,'Base-datos'!$C$571:$C$580)","v":{"$error":"#N/A"}},{"$f":"_xlfn.XLOOKUP(A187,'Base-datos'!$B$571:$B$580,'Base-datos'!$D$571:$D$580)","v":{"$error":"#N/A"}},null,null,{"$f":"IF(OR(S$182=\"La actividad no cumple con el total de los criterios de No Daño Significativo\",T$182=\"El sector no cumple con las salvaguardas mínimas\"),\"\",IF(AND('Base-datos'!$B$755=\"Sí\",'Base-datos'!$B$756=\"\",'Base-datos'!$B$757=\"\"),IF(Q187=\"La actividad sí contribuye sustancialmente a la sostenibilidad\",SUM(B187:O187),0),IF(AND('Base-datos'!$B$755=\"Sí\",'Base-datos'!$B$756=\"Sí\",'Base-datos'!$B$757=\"\"),IF(AND(Q187=\"La actividad sí contribuye sustancialmente a la sostenibilidad\",R187=\"La actividad sí contribuye sustancialmente a la sostenibilidad\"),SUM(B187:O187),0),IF(AND('Base-datos'!$B$755=\"Sí\",'Base-datos'!$B$756=\"Sí\",'Base-datos'!$B$757=\"Sí\"),IF(AND(Q187=\"La actividad sí contribuye sustancialmente a la sostenibilidad\",R187=\"La actividad sí contribuye sustancialmente a la sostenibilidad\",P187=\"La actividad sí contribuye sustancialmente a la sostenibilidad\"),SUM(B187:O187),0),IF(AND('Base-datos'!$B$755=\"\",'Base-datos'!$B$756=\"Sí\",'Base-datos'!$B$757=\"\"),IF(R187=\"La actividad sí contribuye sustancialmente a la sostenibilidad\",SUM(B187:O187),0),IF(AND('Base-datos'!$B$755=\"\",'Base-datos'!$B$756=\"\",'Base-datos'!$B$757=\"Sí\"),IF(P187=\"La actividad sí contribuye sustancialmente a la sostenibilidad\",SUM(B187:O187),0),IF(AND('Base-datos'!$B$755=\"\",'Base-datos'!$B$756=\"Sí\",'Base-datos'!$B$757=\"Sí\"),IF(AND(R187=\"La actividad sí contribuye sustancialmente a la sostenibilidad\",P187=\"La actividad sí contribuye sustancialmente a la sostenibilidad\"),SUM(B187:O187),0),IF(AND('Base-datos'!$B$755=\"Sí\",'Base-datos'!$B$756=\"\",'Base-datos'!$B$757=\"Sí\"),IF(AND(Q187=\"La actividad sí contribuye sustancialmente a la sostenibilidad\",P187=\"La actividad sí contribuye sustancialmente a la sostenibilidad\"),SUM(B187:O187),0),\"Por definir\"))))))))","v":"Por definir"}]
[{"$f":"Residuos!$C22","v":"Seleccione"},{"$f":"IF(Residuos!$E22=Seguros_fianzas!B$12,Residuos!$B22,\"\")","v":""},{"$f":"IF(Residuos!$E22=Seguros_fianzas!C$12,Residuos!$B22,\"\")","v":""},{"$f":"IF(Residuos!$E22=Seguros_fianzas!D$12,Residuos!$B22,\"\")","v":""},{"$f":"IF(Residuos!$E22=Seguros_fianzas!E$12,Residuos!$B22,\"\")","v":""},{"$f":"IF(Residuos!$E22=Seguros_fianzas!F$12,Residuos!$B22,\"\")","v":""},{"$f":"IF(Residuos!$E22=Seguros_fianzas!G$12,Residuos!$B22,\"\")","v":""},{"$f":"IF(Residuos!$E22=Seguros_fianzas!H$12,Residuos!$B22,\"\")","v":""},{"$f":"IF(Residuos!$E22=Seguros_fianzas!I$12,Residuos!$B22,\"\")","v":""},{"$f":"IF(Residuos!$E22=Seguros_fianzas!J$12,Residuos!$B22,\"\")","v":""},{"$f":"IF(Residuos!$E22=Seguros_fianzas!K$12,Residuos!$B22,\"\")","v":""},{"$f":"IF(Residuos!$E22=Seguros_fianzas!L$12,Residuos!$B22,\"\")","v":""},{"$f":"IF(Residuos!$E22=Seguros_fianzas!M$12,Residuos!$B22,\"\")","v":""},{"$f":"IF(Residuos!$E22=Seguros_fianzas!N$12,Residuos!$B22,\"\")","v":""},{"$f":"IF(Residuos!$E22=Seguros_fianzas!O$12,Residuos!$B22,\"\")","v":""},{"$f":"_xlfn.XLOOKUP(A188,'Base-datos'!$B$571:$B$580,'Base-datos'!$F$571:$F$580)","v":{"$error":"#N/A"}},{"$f":"_xlfn.XLOOKUP(A188,'Base-datos'!$B$571:$B$580,'Base-datos'!$C$571:$C$580)","v":{"$error":"#N/A"}},{"$f":"_xlfn.XLOOKUP(A188,'Base-datos'!$B$571:$B$580,'Base-datos'!$D$571:$D$580)","v":{"$error":"#N/A"}},null,null,{"$f":"IF(OR(S$182=\"La actividad no cumple con el total de los criterios de No Daño Significativo\",T$182=\"El sector no cumple con las salvaguardas mínimas\"),\"\",IF(AND('Base-datos'!$B$755=\"Sí\",'Base-datos'!$B$756=\"\",'Base-datos'!$B$757=\"\"),IF(Q188=\"La actividad sí contribuye sustancialmente a la sostenibilidad\",SUM(B188:O188),0),IF(AND('Base-datos'!$B$755=\"Sí\",'Base-datos'!$B$756=\"Sí\",'Base-datos'!$B$757=\"\"),IF(AND(Q188=\"La actividad sí contribuye sustancialmente a la sostenibilidad\",R188=\"La actividad sí contribuye sustancialmente a la sostenibilidad\"),SUM(B188:O188),0),IF(AND('Base-datos'!$B$755=\"Sí\",'Base-datos'!$B$756=\"Sí\",'Base-datos'!$B$757=\"Sí\"),IF(AND(Q188=\"La actividad sí contribuye sustancialmente a la sostenibilidad\",R188=\"La actividad sí contribuye sustancialmente a la sostenibilidad\",P188=\"La actividad sí contribuye sustancialmente a la sostenibilidad\"),SUM(B188:O188),0),IF(AND('Base-datos'!$B$755=\"\",'Base-datos'!$B$756=\"Sí\",'Base-datos'!$B$757=\"\"),IF(R188=\"La actividad sí contribuye sustancialmente a la sostenibilidad\",SUM(B188:O188),0),IF(AND('Base-datos'!$B$755=\"\",'Base-datos'!$B$756=\"\",'Base-datos'!$B$757=\"Sí\"),IF(P188=\"La actividad sí contribuye sustancialmente a la sostenibilidad\",SUM(B188:O188),0),IF(AND('Base-datos'!$B$755=\"\",'Base-datos'!$B$756=\"Sí\",'Base-datos'!$B$757=\"Sí\"),IF(AND(R188=\"La actividad sí contribuye sustancialmente a la sostenibilidad\",P188=\"La actividad sí contribuye sustancialmente a la sostenibilidad\"),SUM(B188:O188),0),IF(AND('Base-datos'!$B$755=\"Sí\",'Base-datos'!$B$756=\"\",'Base-datos'!$B$757=\"Sí\"),IF(AND(Q188=\"La actividad sí contribuye sustancialmente a la sostenibilidad\",P188=\"La actividad sí contribuye sustancialmente a la sostenibilidad\"),SUM(B188:O188),0),\"Por definir\"))))))))","v":"Por definir"}]
[{"$f":"Residuos!$C24","v":"Seleccione"},{"$f":"IF(Residuos!$E24=Seguros_fianzas!B$12,Residuos!$B24,\"\")","v":""},{"$f":"IF(Residuos!$E24=Seguros_fianzas!C$12,Residuos!$B24,\"\")","v":""},{"$f":"IF(Residuos!$E24=Seguros_fianzas!D$12,Residuos!$B24,\"\")","v":""},{"$f":"IF(Residuos!$E24=Seguros_fianzas!E$12,Residuos!$B24,\"\")","v":""},{"$f":"IF(Residuos!$E24=Seguros_fianzas!F$12,Residuos!$B24,\"\")","v":""},{"$f":"IF(Residuos!$E24=Seguros_fianzas!G$12,Residuos!$B24,\"\")","v":""},{"$f":"IF(Residuos!$E24=Seguros_fianzas!H$12,Residuos!$B24,\"\")","v":""},{"$f":"IF(Residuos!$E24=Seguros_fianzas!I$12,Residuos!$B24,\"\")","v":""},{"$f":"IF(Residuos!$E24=Seguros_fianzas!J$12,Residuos!$B24,\"\")","v":""},{"$f":"IF(Residuos!$E24=Seguros_fianzas!K$12,Residuos!$B24,\"\")","v":""},{"$f":"IF(Residuos!$E24=Seguros_fianzas!L$12,Residuos!$B24,\"\")","v":""},{"$f":"IF(Residuos!$E24=Seguros_fianzas!M$12,Residuos!$B24,\"\")","v":""},{"$f":"IF(Residuos!$E24=Seguros_fianzas!N$12,Residuos!$B24,\"\")","v":""},{"$f":"IF(Residuos!$E24=Seguros_fianzas!O$12,Residuos!$B24,\"\")","v":""},{"$f":"_xlfn.XLOOKUP(A189,'Base-datos'!$B$571:$B$580,'Base-datos'!$F$571:$F$580)","v":{"$error":"#N/A"}},{"$f":"_xlfn.XLOOKUP(A189,'Base-datos'!$B$571:$B$580,'Base-datos'!$C$571:$C$580)","v":{"$error":"#N/A"}},{"$f":"_xlfn.XLOOKUP(A189,'Base-datos'!$B$571:$B$580,'Base-datos'!$D$571:$D$580)","v":{"$error":"#N/A"}},null,null,{"$f":"IF(OR(S$182=\"La actividad no cumple con el total de los criterios de No Daño Significativo\",T$182=\"El sector no cumple con las salvaguardas mínimas\"),\"\",IF(AND('Base-datos'!$B$755=\"Sí\",'Base-datos'!$B$756=\"\",'Base-datos'!$B$757=\"\"),IF(Q189=\"La actividad sí contribuye sustancialmente a la sostenibilidad\",SUM(B189:O189),0),IF(AND('Base-datos'!$B$755=\"Sí\",'Base-datos'!$B$756=\"Sí\",'Base-datos'!$B$757=\"\"),IF(AND(Q189=\"La actividad sí contribuye sustancialmente a la sostenibilidad\",R189=\"La actividad sí contribuye sustancialmente a la sostenibilidad\"),SUM(B189:O189),0),IF(AND('Base-datos'!$B$755=\"Sí\",'Base-datos'!$B$756=\"Sí\",'Base-datos'!$B$757=\"Sí\"),IF(AND(Q189=\"La actividad sí contribuye sustancialmente a la sostenibilidad\",R189=\"La actividad sí contribuye sustancialmente a la sostenibilidad\",P189=\"La actividad sí contribuye sustancialmente a la sostenibilidad\"),SUM(B189:O189),0),IF(AND('Base-datos'!$B$755=\"\",'Base-datos'!$B$756=\"Sí\",'Base-datos'!$B$757=\"\"),IF(R189=\"La actividad sí contribuye sustancialmente a la sostenibilidad\",SUM(B189:O189),0),IF(AND('Base-datos'!$B$755=\"\",'Base-datos'!$B$756=\"\",'Base-datos'!$B$757=\"Sí\"),IF(P189=\"La actividad sí contribuye sustancialmente a la sostenibilidad\",SUM(B189:O189),0),IF(AND('Base-datos'!$B$755=\"\",'Base-datos'!$B$756=\"Sí\",'Base-datos'!$B$757=\"Sí\"),IF(AND(R189=\"La actividad sí contribuye sustancialmente a la sostenibilidad\",P189=\"La actividad sí contribuye sustancialmente a la sostenibilidad\"),SUM(B189:O189),0),IF(AND('Base-datos'!$B$755=\"Sí\",'Base-datos'!$B$756=\"\",'Base-datos'!$B$757=\"Sí\"),IF(AND(Q189=\"La actividad sí contribuye sustancialmente a la sostenibilidad\",P189=\"La actividad sí contribuye sustancialmente a la sostenibilidad\"),SUM(B189:O189),0),\"Por definir\"))))))))","v":"Por definir"}]
[{"$f":"Residuos!$C26","v":"Seleccione"},{"$f":"IF(Residuos!$E26=Seguros_fianzas!B$12,Residuos!$B26,\"\")","v":""},{"$f":"IF(Residuos!$E26=Seguros_fianzas!C$12,Residuos!$B26,\"\")","v":""},{"$f":"IF(Residuos!$E26=Seguros_fianzas!D$12,Residuos!$B26,\"\")","v":""},{"$f":"IF(Residuos!$E26=Seguros_fianzas!E$12,Residuos!$B26,\"\")","v":""},{"$f":"IF(Residuos!$E26=Seguros_fianzas!F$12,Residuos!$B26,\"\")","v":""},{"$f":"IF(Residuos!$E26=Seguros_fianzas!G$12,Residuos!$B26,\"\")","v":""},{"$f":"IF(Residuos!$E26=Seguros_fianzas!H$12,Residuos!$B26,\"\")","v":""},{"$f":"IF(Residuos!$E26=Seguros_fianzas!I$12,Residuos!$B26,\"\")","v":""},{"$f":"IF(Residuos!$E26=Seguros_fianzas!J$12,Residuos!$B26,\"\")","v":""},{"$f":"IF(Residuos!$E26=Seguros_fianzas!K$12,Residuos!$B26,\"\")","v":""},{"$f":"IF(Residuos!$E26=Seguros_fianzas!L$12,Residuos!$B26,\"\")","v":""},{"$f":"IF(Residuos!$E26=Seguros_fianzas!M$12,Residuos!$B26,\"\")","v":""},{"$f":"IF(Residuos!$E26=Seguros_fianzas!N$12,Residuos!$B26,\"\")","v":""},{"$f":"IF(Residuos!$E26=Seguros_fianzas!O$12,Residuos!$B26,\"\")","v":""},{"$f":"_xlfn.XLOOKUP(A190,'Base-datos'!$B$571:$B$580,'Base-datos'!$F$571:$F$580)","v":{"$error":"#N/A"}},{"$f":"_xlfn.XLOOKUP(A190,'Base-datos'!$B$571:$B$580,'Base-datos'!$C$571:$C$580)","v":{"$error":"#N/A"}},{"$f":"_xlfn.XLOOKUP(A190,'Base-datos'!$B$571:$B$580,'Base-datos'!$D$571:$D$580)","v":{"$error":"#N/A"}},null,null,{"$f":"IF(OR(S$182=\"La actividad no cumple con el total de los criterios de No Daño Significativo\",T$182=\"El sector no cumple con las salvaguardas mínimas\"),\"\",IF(AND('Base-datos'!$B$755=\"Sí\",'Base-datos'!$B$756=\"\",'Base-datos'!$B$757=\"\"),IF(Q190=\"La actividad sí contribuye sustancialmente a la sostenibilidad\",SUM(B190:O190),0),IF(AND('Base-datos'!$B$755=\"Sí\",'Base-datos'!$B$756=\"Sí\",'Base-datos'!$B$757=\"\"),IF(AND(Q190=\"La actividad sí contribuye sustancialmente a la sostenibilidad\",R190=\"La actividad sí contribuye sustancialmente a la sostenibilidad\"),SUM(B190:O190),0),IF(AND('Base-datos'!$B$755=\"Sí\",'Base-datos'!$B$756=\"Sí\",'Base-datos'!$B$757=\"Sí\"),IF(AND(Q190=\"La actividad sí contribuye sustancialmente a la sostenibilidad\",R190=\"La actividad sí contribuye sustancialmente a la sostenibilidad\",P190=\"La actividad sí contribuye sustancialmente a la sostenibilidad\"),SUM(B190:O190),0),IF(AND('Base-datos'!$B$755=\"\",'Base-datos'!$B$756=\"Sí\",'Base-datos'!$B$757=\"\"),IF(R190=\"La actividad sí contribuye sustancialmente a la sostenibilidad\",SUM(B190:O190),0),IF(AND('Base-datos'!$B$755=\"\",'Base-datos'!$B$756=\"\",'Base-datos'!$B$757=\"Sí\"),IF(P190=\"La actividad sí contribuye sustancialmente a la sostenibilidad\",SUM(B190:O190),0),IF(AND('Base-datos'!$B$755=\"\",'Base-datos'!$B$756=\"Sí\",'Base-datos'!$B$757=\"Sí\"),IF(AND(R190=\"La actividad sí contribuye sustancialmente a la sostenibilidad\",P190=\"La actividad sí contribuye sustancialmente a la sostenibilidad\"),SUM(B190:O190),0),IF(AND('Base-datos'!$B$755=\"Sí\",'Base-datos'!$B$756=\"\",'Base-datos'!$B$757=\"Sí\"),IF(AND(Q190=\"La actividad sí contribuye sustancialmente a la sostenibilidad\",P190=\"La actividad sí contribuye sustancialmente a la sostenibilidad\"),SUM(B190:O190),0),\"Por definir\"))))))))","v":"Por definir"}]
[{"$f":"Residuos!$C28","v":"Seleccione"},{"$f":"IF(Residuos!$E28=Seguros_fianzas!B$12,Residuos!$B28,\"\")","v":""},{"$f":"IF(Residuos!$E28=Seguros_fianzas!C$12,Residuos!$B28,\"\")","v":""},{"$f":"IF(Residuos!$E28=Seguros_fianzas!D$12,Residuos!$B28,\"\")","v":""},{"$f":"IF(Residuos!$E28=Seguros_fianzas!E$12,Residuos!$B28,\"\")","v":""},{"$f":"IF(Residuos!$E28=Seguros_fianzas!F$12,Residuos!$B28,\"\")","v":""},{"$f":"IF(Residuos!$E28=Seguros_fianzas!G$12,Residuos!$B28,\"\")","v":""},{"$f":"IF(Residuos!$E28=Seguros_fianzas!H$12,Residuos!$B28,\"\")","v":""},{"$f":"IF(Residuos!$E28=Seguros_fianzas!I$12,Residuos!$B28,\"\")","v":""},{"$f":"IF(Residuos!$E28=Seguros_fianzas!J$12,Residuos!$B28,\"\")","v":""},{"$f":"IF(Residuos!$E28=Seguros_fianzas!K$12,Residuos!$B28,\"\")","v":""},{"$f":"IF(Residuos!$E28=Seguros_fianzas!L$12,Residuos!$B28,\"\")","v":""},{"$f":"IF(Residuos!$E28=Seguros_fianzas!M$12,Residuos!$B28,\"\")","v":""},{"$f":"IF(Residuos!$E28=Seguros_fianzas!N$12,Residuos!$B28,\"\")","v":""},{"$f":"IF(Residuos!$E28=Seguros_fianzas!O$12,Residuos!$B28,\"\")","v":""},{"$f":"_xlfn.XLOOKUP(A191,'Base-datos'!$B$571:$B$580,'Base-datos'!$F$571:$F$580)","v":{"$error":"#N/A"}},{"$f":"_xlfn.XLOOKUP(A191,'Base-datos'!$B$571:$B$580,'Base-datos'!$C$571:$C$580)","v":{"$error":"#N/A"}},{"$f":"_xlfn.XLOOKUP(A191,'Base-datos'!$B$571:$B$580,'Base-datos'!$D$571:$D$580)","v":{"$error":"#N/A"}},null,null,{"$f":"IF(OR(S$182=\"La actividad no cumple con el total de los criterios de No Daño Significativo\",T$182=\"El sector no cumple con las salvaguardas mínimas\"),\"\",IF(AND('Base-datos'!$B$755=\"Sí\",'Base-datos'!$B$756=\"\",'Base-datos'!$B$757=\"\"),IF(Q191=\"La actividad sí contribuye sustancialmente a la sostenibilidad\",SUM(B191:O191),0),IF(AND('Base-datos'!$B$755=\"Sí\",'Base-datos'!$B$756=\"Sí\",'Base-datos'!$B$757=\"\"),IF(AND(Q191=\"La actividad sí contribuye sustancialmente a la sostenibilidad\",R191=\"La actividad sí contribuye sustancialmente a la sostenibilidad\"),SUM(B191:O191),0),IF(AND('Base-datos'!$B$755=\"Sí\",'Base-datos'!$B$756=\"Sí\",'Base-datos'!$B$757=\"Sí\"),IF(AND(Q191=\"La actividad sí contribuye sustancialmente a la sostenibilidad\",R191=\"La actividad sí contribuye sustancialmente a la sostenibilidad\",P191=\"La actividad sí contribuye sustancialmente a la sostenibilidad\"),SUM(B191:O191),0),IF(AND('Base-datos'!$B$755=\"\",'Base-datos'!$B$756=\"Sí\",'Base-datos'!$B$757=\"\"),IF(R191=\"La actividad sí contribuye sustancialmente a la sostenibilidad\",SUM(B191:O191),0),IF(AND('Base-datos'!$B$755=\"\",'Base-datos'!$B$756=\"\",'Base-datos'!$B$757=\"Sí\"),IF(P191=\"La actividad sí contribuye sustancialmente a la sostenibilidad\",SUM(B191:O191),0),IF(AND('Base-datos'!$B$755=\"\",'Base-datos'!$B$756=\"Sí\",'Base-datos'!$B$757=\"Sí\"),IF(AND(R191=\"La actividad sí contribuye sustancialmente a la sostenibilidad\",P191=\"La actividad sí contribuye sustancialmente a la sostenibilidad\"),SUM(B191:O191),0),IF(AND('Base-datos'!$B$755=\"Sí\",'Base-datos'!$B$756=\"\",'Base-datos'!$B$757=\"Sí\"),IF(AND(Q191=\"La actividad sí contribuye sustancialmente a la sostenibilidad\",P191=\"La actividad sí contribuye sustancialmente a la sostenibilidad\"),SUM(B191:O191),0),\"Por definir\"))))))))","v":"Por definir"}]
[{"$f":"Residuos!$C30","v":"Seleccione"},{"$f":"IF(Residuos!$E30=Seguros_fianzas!B$12,Residuos!$B30,\"\")","v":""},{"$f":"IF(Residuos!$E30=Seguros_fianzas!C$12,Residuos!$B30,\"\")","v":""},{"$f":"IF(Residuos!$E30=Seguros_fianzas!D$12,Residuos!$B30,\"\")","v":""},{"$f":"IF(Residuos!$E30=Seguros_fianzas!E$12,Residuos!$B30,\"\")","v":""},{"$f":"IF(Residuos!$E30=Seguros_fianzas!F$12,Residuos!$B30,\"\")","v":""},{"$f":"IF(Residuos!$E30=Seguros_fianzas!G$12,Residuos!$B30,\"\")","v":""},{"$f":"IF(Residuos!$E30=Seguros_fianzas!H$12,Residuos!$B30,\"\")","v":""},{"$f":"IF(Residuos!$E30=Seguros_fianzas!I$12,Residuos!$B30,\"\")","v":""},{"$f":"IF(Residuos!$E30=Seguros_fianzas!J$12,Residuos!$B30,\"\")","v":""},{"$f":"IF(Residuos!$E30=Seguros_fianzas!K$12,Residuos!$B30,\"\")","v":""},{"$f":"IF(Residuos!$E30=Seguros_fianzas!L$12,Residuos!$B30,\"\")","v":""},{"$f":"IF(Residuos!$E30=Seguros_fianzas!M$12,Residuos!$B30,\"\")","v":""},{"$f":"IF(Residuos!$E30=Seguros_fianzas!N$12,Residuos!$B30,\"\")","v":""},{"$f":"IF(Residuos!$E30=Seguros_fianzas!O$12,Residuos!$B30,\"\")","v":""},{"$f":"_xlfn.XLOOKUP(A192,'Base-datos'!$B$571:$B$580,'Base-datos'!$F$571:$F$580)","v":{"$error":"#N/A"}},{"$f":"_xlfn.XLOOKUP(A192,'Base-datos'!$B$571:$B$580,'Base-datos'!$C$571:$C$580)","v":{"$error":"#N/A"}},{"$f":"_xlfn.XLOOKUP(A192,'Base-datos'!$B$571:$B$580,'Base-datos'!$D$571:$D$580)","v":{"$error":"#N/A"}},null,null,{"$f":"IF(OR(S$182=\"La actividad no cumple con el total de los criterios de No Daño Significativo\",T$182=\"El sector no cumple con las salvaguardas mínimas\"),\"\",IF(AND('Base-datos'!$B$755=\"Sí\",'Base-datos'!$B$756=\"\",'Base-datos'!$B$757=\"\"),IF(Q192=\"La actividad sí contribuye sustancialmente a la sostenibilidad\",SUM(B192:O192),0),IF(AND('Base-datos'!$B$755=\"Sí\",'Base-datos'!$B$756=\"Sí\",'Base-datos'!$B$757=\"\"),IF(AND(Q192=\"La actividad sí contribuye sustancialmente a la sostenibilidad\",R192=\"La actividad sí contribuye sustancialmente a la sostenibilidad\"),SUM(B192:O192),0),IF(AND('Base-datos'!$B$755=\"Sí\",'Base-datos'!$B$756=\"Sí\",'Base-datos'!$B$757=\"Sí\"),IF(AND(Q192=\"La actividad sí contribuye sustancialmente a la sostenibilidad\",R192=\"La actividad sí contribuye sustancialmente a la sostenibilidad\",P192=\"La actividad sí contribuye sustancialmente a la sostenibilidad\"),SUM(B192:O192),0),IF(AND('Base-datos'!$B$755=\"\",'Base-datos'!$B$756=\"Sí\",'Base-datos'!$B$757=\"\"),IF(R192=\"La actividad sí contribuye sustancialmente a la sostenibilidad\",SUM(B192:O192),0),IF(AND('Base-datos'!$B$755=\"\",'Base-datos'!$B$756=\"\",'Base-datos'!$B$757=\"Sí\"),IF(P192=\"La actividad sí contribuye sustancialmente a la sostenibilidad\",SUM(B192:O192),0),IF(AND('Base-datos'!$B$755=\"\",'Base-datos'!$B$756=\"Sí\",'Base-datos'!$B$757=\"Sí\"),IF(AND(R192=\"La actividad sí contribuye sustancialmente a la sostenibilidad\",P192=\"La actividad sí contribuye sustancialmente a la sostenibilidad\"),SUM(B192:O192),0),IF(AND('Base-datos'!$B$755=\"Sí\",'Base-datos'!$B$756=\"\",'Base-datos'!$B$757=\"Sí\"),IF(AND(Q192=\"La actividad sí contribuye sustancialmente a la sostenibilidad\",P192=\"La actividad sí contribuye sustancialmente a la sostenibilidad\"),SUM(B192:O192),0),\"Por definir\"))))))))","v":"Por definir"}]
[{"$f":"Residuos!$C32","v":"Seleccione"},{"$f":"IF(Residuos!$E32=Seguros_fianzas!B$12,Residuos!$B32,\"\")","v":""},{"$f":"IF(Residuos!$E32=Seguros_fianzas!C$12,Residuos!$B32,\"\")","v":""},{"$f":"IF(Residuos!$E32=Seguros_fianzas!D$12,Residuos!$B32,\"\")","v":""},{"$f":"IF(Residuos!$E32=Seguros_fianzas!E$12,Residuos!$B32,\"\")","v":""},{"$f":"IF(Residuos!$E32=Seguros_fianzas!F$12,Residuos!$B32,\"\")","v":""},{"$f":"IF(Residuos!$E32=Seguros_fianzas!G$12,Residuos!$B32,\"\")","v":""},{"$f":"IF(Residuos!$E32=Seguros_fianzas!H$12,Residuos!$B32,\"\")","v":""},{"$f":"IF(Residuos!$E32=Seguros_fianzas!I$12,Residuos!$B32,\"\")","v":""},{"$f":"IF(Residuos!$E32=Seguros_fianzas!J$12,Residuos!$B32,\"\")","v":""},{"$f":"IF(Residuos!$E32=Seguros_fianzas!K$12,Residuos!$B32,\"\")","v":""},{"$f":"IF(Residuos!$E32=Seguros_fianzas!L$12,Residuos!$B32,\"\")","v":""},{"$f":"IF(Residuos!$E32=Seguros_fianzas!M$12,Residuos!$B32,\"\")","v":""},{"$f":"IF(Residuos!$E32=Seguros_fianzas!N$12,Residuos!$B32,\"\")","v":""},{"$f":"IF(Residuos!$E32=Seguros_fianzas!O$12,Residuos!$B32,\"\")","v":""},{"$f":"_xlfn.XLOOKUP(A193,'Base-datos'!$B$571:$B$580,'Base-datos'!$F$571:$F$580)","v":{"$error":"#N/A"}},{"$f":"_xlfn.XLOOKUP(A193,'Base-datos'!$B$571:$B$580,'Base-datos'!$C$571:$C$580)","v":{"$error":"#N/A"}},{"$f":"_xlfn.XLOOKUP(A193,'Base-datos'!$B$571:$B$580,'Base-datos'!$D$571:$D$580)","v":{"$error":"#N/A"}},null,null,{"$f":"IF(OR(S$182=\"La actividad no cumple con el total de los criterios de No Daño Significativo\",T$182=\"El sector no cumple con las salvaguardas mínimas\"),\"\",IF(AND('Base-datos'!$B$755=\"Sí\",'Base-datos'!$B$756=\"\",'Base-datos'!$B$757=\"\"),IF(Q193=\"La actividad sí contribuye sustancialmente a la sostenibilidad\",SUM(B193:O193),0),IF(AND('Base-datos'!$B$755=\"Sí\",'Base-datos'!$B$756=\"Sí\",'Base-datos'!$B$757=\"\"),IF(AND(Q193=\"La actividad sí contribuye sustancialmente a la sostenibilidad\",R193=\"La actividad sí contribuye sustancialmente a la sostenibilidad\"),SUM(B193:O193),0),IF(AND('Base-datos'!$B$755=\"Sí\",'Base-datos'!$B$756=\"Sí\",'Base-datos'!$B$757=\"Sí\"),IF(AND(Q193=\"La actividad sí contribuye sustancialmente a la sostenibilidad\",R193=\"La actividad sí contribuye sustancialmente a la sostenibilidad\",P193=\"La actividad sí contribuye sustancialmente a la sostenibilidad\"),SUM(B193:O193),0),IF(AND('Base-datos'!$B$755=\"\",'Base-datos'!$B$756=\"Sí\",'Base-datos'!$B$757=\"\"),IF(R193=\"La actividad sí contribuye sustancialmente a la sostenibilidad\",SUM(B193:O193),0),IF(AND('Base-datos'!$B$755=\"\",'Base-datos'!$B$756=\"\",'Base-datos'!$B$757=\"Sí\"),IF(P193=\"La actividad sí contribuye sustancialmente a la sostenibilidad\",SUM(B193:O193),0),IF(AND('Base-datos'!$B$755=\"\",'Base-datos'!$B$756=\"Sí\",'Base-datos'!$B$757=\"Sí\"),IF(AND(R193=\"La actividad sí contribuye sustancialmente a la sostenibilidad\",P193=\"La actividad sí contribuye sustancialmente a la sostenibilidad\"),SUM(B193:O193),0),IF(AND('Base-datos'!$B$755=\"Sí\",'Base-datos'!$B$756=\"\",'Base-datos'!$B$757=\"Sí\"),IF(AND(Q193=\"La actividad sí contribuye sustancialmente a la sostenibilidad\",P193=\"La actividad sí contribuye sustancialmente a la sostenibilidad\"),SUM(B193:O193),0),\"Por definir\"))))))))","v":"Por definir"}]
[{"$f":"Residuos!$C34","v":"Seleccione"},{"$f":"IF(Residuos!$E34=Seguros_fianzas!B$12,Residuos!$B34,\"\")","v":""},{"$f":"IF(Residuos!$E34=Seguros_fianzas!C$12,Residuos!$B34,\"\")","v":""},{"$f":"IF(Residuos!$E34=Seguros_fianzas!D$12,Residuos!$B34,\"\")","v":""},{"$f":"IF(Residuos!$E34=Seguros_fianzas!E$12,Residuos!$B34,\"\")","v":""},{"$f":"IF(Residuos!$E34=Seguros_fianzas!F$12,Residuos!$B34,\"\")","v":""},{"$f":"IF(Residuos!$E34=Seguros_fianzas!G$12,Residuos!$B34,\"\")","v":""},{"$f":"IF(Residuos!$E34=Seguros_fianzas!H$12,Residuos!$B34,\"\")","v":""},{"$f":"IF(Residuos!$E34=Seguros_fianzas!I$12,Residuos!$B34,\"\")","v":""},{"$f":"IF(Residuos!$E34=Seguros_fianzas!J$12,Residuos!$B34,\"\")","v":""},{"$f":"IF(Residuos!$E34=Seguros_fianzas!K$12,Residuos!$B34,\"\")","v":""},{"$f":"IF(Residuos!$E34=Seguros_fianzas!L$12,Residuos!$B34,\"\")","v":""},{"$f":"IF(Residuos!$E34=Seguros_fianzas!M$12,Residuos!$B34,\"\")","v":""},{"$f":"IF(Residuos!$E34=Seguros_fianzas!N$12,Residuos!$B34,\"\")","v":""},{"$f":"IF(Residuos!$E34=Seguros_fianzas!O$12,Residuos!$B34,\"\")","v":""},{"$f":"_xlfn.XLOOKUP(A194,'Base-datos'!$B$571:$B$580,'Base-datos'!$F$571:$F$580)","v":{"$error":"#N/A"}},{"$f":"_xlfn.XLOOKUP(A194,'Base-datos'!$B$571:$B$580,'Base-datos'!$C$571:$C$580)","v":{"$error":"#N/A"}},{"$f":"_xlfn.XLOOKUP(A194,'Base-datos'!$B$571:$B$580,'Base-datos'!$D$571:$D$580)","v":{"$error":"#N/A"}},null,null,{"$f":"IF(OR(S$182=\"La actividad no cumple con el total de los criterios de No Daño Significativo\",T$182=\"El sector no cumple con las salvaguardas mínimas\"),\"\",IF(AND('Base-datos'!$B$755=\"Sí\",'Base-datos'!$B$756=\"\",'Base-datos'!$B$757=\"\"),IF(Q194=\"La actividad sí contribuye sustancialmente a la sostenibilidad\",SUM(B194:O194),0),IF(AND('Base-datos'!$B$755=\"Sí\",'Base-datos'!$B$756=\"Sí\",'Base-datos'!$B$757=\"\"),IF(AND(Q194=\"La actividad sí contribuye sustancialmente a la sostenibilidad\",R194=\"La actividad sí contribuye sustancialmente a la sostenibilidad\"),SUM(B194:O194),0),IF(AND('Base-datos'!$B$755=\"Sí\",'Base-datos'!$B$756=\"Sí\",'Base-datos'!$B$757=\"Sí\"),IF(AND(Q194=\"La actividad sí contribuye sustancialmente a la sostenibilidad\",R194=\"La actividad sí contribuye sustancialmente a la sostenibilidad\",P194=\"La actividad sí contribuye sustancialmente a la sostenibilidad\"),SUM(B194:O194),0),IF(AND('Base-datos'!$B$755=\"\",'Base-datos'!$B$756=\"Sí\",'Base-datos'!$B$757=\"\"),IF(R194=\"La actividad sí contribuye sustancialmente a la sostenibilidad\",SUM(B194:O194),0),IF(AND('Base-datos'!$B$755=\"\",'Base-datos'!$B$756=\"\",'Base-datos'!$B$757=\"Sí\"),IF(P194=\"La actividad sí contribuye sustancialmente a la sostenibilidad\",SUM(B194:O194),0),IF(AND('Base-datos'!$B$755=\"\",'Base-datos'!$B$756=\"Sí\",'Base-datos'!$B$757=\"Sí\"),IF(AND(R194=\"La actividad sí contribuye sustancialmente a la sostenibilidad\",P194=\"La actividad sí contribuye sustancialmente a la sostenibilidad\"),SUM(B194:O194),0),IF(AND('Base-datos'!$B$755=\"Sí\",'Base-datos'!$B$756=\"\",'Base-datos'!$B$757=\"Sí\"),IF(AND(Q194=\"La actividad sí contribuye sustancialmente a la sostenibilidad\",P194=\"La actividad sí contribuye sustancialmente a la sostenibilidad\"),SUM(B194:O194),0),\"Por definir\"))))))))","v":"Por definir"}]
[{"$f":"Residuos!$C36","v":"Seleccione"},{"$f":"IF(Residuos!$E36=Seguros_fianzas!B$12,Residuos!$B36,\"\")","v":""},{"$f":"IF(Residuos!$E36=Seguros_fianzas!C$12,Residuos!$B36,\"\")","v":""},{"$f":"IF(Residuos!$E36=Seguros_fianzas!D$12,Residuos!$B36,\"\")","v":""},{"$f":"IF(Residuos!$E36=Seguros_fianzas!E$12,Residuos!$B36,\"\")","v":""},{"$f":"IF(Residuos!$E36=Seguros_fianzas!F$12,Residuos!$B36,\"\")","v":""},{"$f":"IF(Residuos!$E36=Seguros_fianzas!G$12,Residuos!$B36,\"\")","v":""},{"$f":"IF(Residuos!$E36=Seguros_fianzas!H$12,Residuos!$B36,\"\")","v":""},{"$f":"IF(Residuos!$E36=Seguros_fianzas!I$12,Residuos!$B36,\"\")","v":""},{"$f":"IF(Residuos!$E36=Seguros_fianzas!J$12,Residuos!$B36,\"\")","v":""},{"$f":"IF(Residuos!$E36=Seguros_fianzas!K$12,Residuos!$B36,\"\")","v":""},{"$f":"IF(Residuos!$E36=Seguros_fianzas!L$12,Residuos!$B36,\"\")","v":""},{"$f":"IF(Residuos!$E36=Seguros_fianzas!M$12,Residuos!$B36,\"\")","v":""},{"$f":"IF(Residuos!$E36=Seguros_fianzas!N$12,Residuos!$B36,\"\")","v":""},{"$f":"IF(Residuos!$E36=Seguros_fianzas!O$12,Residuos!$B36,\"\")","v":""},{"$f":"_xlfn.XLOOKUP(A195,'Base-datos'!$B$571:$B$580,'Base-datos'!$F$571:$F$580)","v":{"$error":"#N/A"}},{"$f":"_xlfn.XLOOKUP(A195,'Base-datos'!$B$571:$B$580,'Base-datos'!$C$571:$C$580)","v":{"$error":"#N/A"}},{"$f":"_xlfn.XLOOKUP(A195,'Base-datos'!$B$571:$B$580,'Base-datos'!$D$571:$D$580)","v":{"$error":"#N/A"}},null,null,{"$f":"IF(OR(S$182=\"La actividad no cumple con el total de los criterios de No Daño Significativo\",T$182=\"El sector no cumple con las salvaguardas mínimas\"),\"\",IF(AND('Base-datos'!$B$755=\"Sí\",'Base-datos'!$B$756=\"\",'Base-datos'!$B$757=\"\"),IF(Q195=\"La actividad sí contribuye sustancialmente a la sostenibilidad\",SUM(B195:O195),0),IF(AND('Base-datos'!$B$755=\"Sí\",'Base-datos'!$B$756=\"Sí\",'Base-datos'!$B$757=\"\"),IF(AND(Q195=\"La actividad sí contribuye sustancialmente a la sostenibilidad\",R195=\"La actividad sí contribuye sustancialmente a la sostenibilidad\"),SUM(B195:O195),0),IF(AND('Base-datos'!$B$755=\"Sí\",'Base-datos'!$B$756=\"Sí\",'Base-datos'!$B$757=\"Sí\"),IF(AND(Q195=\"La actividad sí contribuye sustancialmente a la sostenibilidad\",R195=\"La actividad sí contribuye sustancialmente a la sostenibilidad\",P195=\"La actividad sí contribuye sustancialmente a la sostenibilidad\"),SUM(B195:O195),0),IF(AND('Base-datos'!$B$755=\"\",'Base-datos'!$B$756=\"Sí\",'Base-datos'!$B$757=\"\"),IF(R195=\"La actividad sí contribuye sustancialmente a la sostenibilidad\",SUM(B195:O195),0),IF(AND('Base-datos'!$B$755=\"\",'Base-datos'!$B$756=\"\",'Base-datos'!$B$757=\"Sí\"),IF(P195=\"La actividad sí contribuye sustancialmente a la sostenibilidad\",SUM(B195:O195),0),IF(AND('Base-datos'!$B$755=\"\",'Base-datos'!$B$756=\"Sí\",'Base-datos'!$B$757=\"Sí\"),IF(AND(R195=\"La actividad sí contribuye sustancialmente a la sostenibilidad\",P195=\"La actividad sí contribuye sustancialmente a la sostenibilidad\"),SUM(B195:O195),0),IF(AND('Base-datos'!$B$755=\"Sí\",'Base-datos'!$B$756=\"\",'Base-datos'!$B$757=\"Sí\"),IF(AND(Q195=\"La actividad sí contribuye sustancialmente a la sostenibilidad\",P195=\"La actividad sí contribuye sustancialmente a la sostenibilidad\"),SUM(B195:O195),0),\"Por definir\"))))))))","v":"Por definir"}]
[{"$f":"Residuos!$C38","v":"Seleccione"},{"$f":"IF(Residuos!$E38=Seguros_fianzas!B$12,Residuos!$B38,\"\")","v":""},{"$f":"IF(Residuos!$E38=Seguros_fianzas!C$12,Residuos!$B38,\"\")","v":""},{"$f":"IF(Residuos!$E38=Seguros_fianzas!D$12,Residuos!$B38,\"\")","v":""},{"$f":"IF(Residuos!$E38=Seguros_fianzas!E$12,Residuos!$B38,\"\")","v":""},{"$f":"IF(Residuos!$E38=Seguros_fianzas!F$12,Residuos!$B38,\"\")","v":""},{"$f":"IF(Residuos!$E38=Seguros_fianzas!G$12,Residuos!$B38,\"\")","v":""},{"$f":"IF(Residuos!$E38=Seguros_fianzas!H$12,Residuos!$B38,\"\")","v":""},{"$f":"IF(Residuos!$E38=Seguros_fianzas!I$12,Residuos!$B38,\"\")","v":""},{"$f":"IF(Residuos!$E38=Seguros_fianzas!J$12,Residuos!$B38,\"\")","v":""},{"$f":"IF(Residuos!$E38=Seguros_fianzas!K$12,Residuos!$B38,\"\")","v":""},{"$f":"IF(Residuos!$E38=Seguros_fianzas!L$12,Residuos!$B38,\"\")","v":""},{"$f":"IF(Residuos!$E38=Seguros_fianzas!M$12,Residuos!$B38,\"\")","v":""},{"$f":"IF(Residuos!$E38=Seguros_fianzas!N$12,Residuos!$B38,\"\")","v":""},{"$f":"IF(Residuos!$E38=Seguros_fianzas!O$12,Residuos!$B38,\"\")","v":""},{"$f":"_xlfn.XLOOKUP(A196,'Base-datos'!$B$571:$B$580,'Base-datos'!$F$571:$F$580)","v":{"$error":"#N/A"}},{"$f":"_xlfn.XLOOKUP(A196,'Base-datos'!$B$571:$B$580,'Base-datos'!$C$571:$C$580)","v":{"$error":"#N/A"}},{"$f":"_xlfn.XLOOKUP(A196,'Base-datos'!$B$571:$B$580,'Base-datos'!$D$571:$D$580)","v":{"$error":"#N/A"}},null,null,{"$f":"IF(OR(S$182=\"La actividad no cumple con el total de los criterios de No Daño Significativo\",T$182=\"El sector no cumple con las salvaguardas mínimas\"),\"\",IF(AND('Base-datos'!$B$755=\"Sí\",'Base-datos'!$B$756=\"\",'Base-datos'!$B$757=\"\"),IF(Q196=\"La actividad sí contribuye sustancialmente a la sostenibilidad\",SUM(B196:O196),0),IF(AND('Base-datos'!$B$755=\"Sí\",'Base-datos'!$B$756=\"Sí\",'Base-datos'!$B$757=\"\"),IF(AND(Q196=\"La actividad sí contribuye sustancialmente a la sostenibilidad\",R196=\"La actividad sí contribuye sustancialmente a la sostenibilidad\"),SUM(B196:O196),0),IF(AND('Base-datos'!$B$755=\"Sí\",'Base-datos'!$B$756=\"Sí\",'Base-datos'!$B$757=\"Sí\"),IF(AND(Q196=\"La actividad sí contribuye sustancialmente a la sostenibilidad\",R196=\"La actividad sí contribuye sustancialmente a la sostenibilidad\",P196=\"La actividad sí contribuye sustancialmente a la sostenibilidad\"),SUM(B196:O196),0),IF(AND('Base-datos'!$B$755=\"\",'Base-datos'!$B$756=\"Sí\",'Base-datos'!$B$757=\"\"),IF(R196=\"La actividad sí contribuye sustancialmente a la sostenibilidad\",SUM(B196:O196),0),IF(AND('Base-datos'!$B$755=\"\",'Base-datos'!$B$756=\"\",'Base-datos'!$B$757=\"Sí\"),IF(P196=\"La actividad sí contribuye sustancialmente a la sostenibilidad\",SUM(B196:O196),0),IF(AND('Base-datos'!$B$755=\"\",'Base-datos'!$B$756=\"Sí\",'Base-datos'!$B$757=\"Sí\"),IF(AND(R196=\"La actividad sí contribuye sustancialmente a la sostenibilidad\",P196=\"La actividad sí contribuye sustancialmente a la sostenibilidad\"),SUM(B196:O196),0),IF(AND('Base-datos'!$B$755=\"Sí\",'Base-datos'!$B$756=\"\",'Base-datos'!$B$757=\"Sí\"),IF(AND(Q196=\"La actividad sí contribuye sustancialmente a la sostenibilidad\",P196=\"La actividad sí contribuye sustancialmente a la sostenibilidad\"),SUM(B196:O196),0),\"Por definir\"))))))))","v":"Por definir"}]
[{"$f":"Residuos!$C40","v":"Seleccione"},{"$f":"IF(Residuos!$E40=Seguros_fianzas!B$12,Residuos!$B40,\"\")","v":""},{"$f":"IF(Residuos!$E40=Seguros_fianzas!C$12,Residuos!$B40,\"\")","v":""},{"$f":"IF(Residuos!$E40=Seguros_fianzas!D$12,Residuos!$B40,\"\")","v":""},{"$f":"IF(Residuos!$E40=Seguros_fianzas!E$12,Residuos!$B40,\"\")","v":""},{"$f":"IF(Residuos!$E40=Seguros_fianzas!F$12,Residuos!$B40,\"\")","v":""},{"$f":"IF(Residuos!$E40=Seguros_fianzas!G$12,Residuos!$B40,\"\")","v":""},{"$f":"IF(Residuos!$E40=Seguros_fianzas!H$12,Residuos!$B40,\"\")","v":""},{"$f":"IF(Residuos!$E40=Seguros_fianzas!I$12,Residuos!$B40,\"\")","v":""},{"$f":"IF(Residuos!$E40=Seguros_fianzas!J$12,Residuos!$B40,\"\")","v":""},{"$f":"IF(Residuos!$E40=Seguros_fianzas!K$12,Residuos!$B40,\"\")","v":""},{"$f":"IF(Residuos!$E40=Seguros_fianzas!L$12,Residuos!$B40,\"\")","v":""},{"$f":"IF(Residuos!$E40=Seguros_fianzas!M$12,Residuos!$B40,\"\")","v":""},{"$f":"IF(Residuos!$E40=Seguros_fianzas!N$12,Residuos!$B40,\"\")","v":""},{"$f":"IF(Residuos!$E40=Seguros_fianzas!O$12,Residuos!$B40,\"\")","v":""},{"$f":"_xlfn.XLOOKUP(A197,'Base-datos'!$B$571:$B$580,'Base-datos'!$F$571:$F$580)","v":{"$error":"#N/A"}},{"$f":"_xlfn.XLOOKUP(A197,'Base-datos'!$B$571:$B$580,'Base-datos'!$C$571:$C$580)","v":{"$error":"#N/A"}},{"$f":"_xlfn.XLOOKUP(A197,'Base-datos'!$B$571:$B$580,'Base-datos'!$D$571:$D$580)","v":{"$error":"#N/A"}},null,null,{"$f":"IF(OR(S$182=\"La actividad no cumple con el total de los criterios de No Daño Significativo\",T$182=\"El sector no cumple con las salvaguardas mínimas\"),\"\",IF(AND('Base-datos'!$B$755=\"Sí\",'Base-datos'!$B$756=\"\",'Base-datos'!$B$757=\"\"),IF(Q197=\"La actividad sí contribuye sustancialmente a la sostenibilidad\",SUM(B197:O197),0),IF(AND('Base-datos'!$B$755=\"Sí\",'Base-datos'!$B$756=\"Sí\",'Base-datos'!$B$757=\"\"),IF(AND(Q197=\"La actividad sí contribuye sustancialmente a la sostenibilidad\",R197=\"La actividad sí contribuye sustancialmente a la sostenibilidad\"),SUM(B197:O197),0),IF(AND('Base-datos'!$B$755=\"Sí\",'Base-datos'!$B$756=\"Sí\",'Base-datos'!$B$757=\"Sí\"),IF(AND(Q197=\"La actividad sí contribuye sustancialmente a la sostenibilidad\",R197=\"La actividad sí contribuye sustancialmente a la sostenibilidad\",P197=\"La actividad sí contribuye sustancialmente a la sostenibilidad\"),SUM(B197:O197),0),IF(AND('Base-datos'!$B$755=\"\",'Base-datos'!$B$756=\"Sí\",'Base-datos'!$B$757=\"\"),IF(R197=\"La actividad sí contribuye sustancialmente a la sostenibilidad\",SUM(B197:O197),0),IF(AND('Base-datos'!$B$755=\"\",'Base-datos'!$B$756=\"\",'Base-datos'!$B$757=\"Sí\"),IF(P197=\"La actividad sí contribuye sustancialmente a la sostenibilidad\",SUM(B197:O197),0),IF(AND('Base-datos'!$B$755=\"\",'Base-datos'!$B$756=\"Sí\",'Base-datos'!$B$757=\"Sí\"),IF(AND(R197=\"La actividad sí contribuye sustancialmente a la sostenibilidad\",P197=\"La actividad sí contribuye sustancialmente a la sostenibilidad\"),SUM(B197:O197),0),IF(AND('Base-datos'!$B$755=\"Sí\",'Base-datos'!$B$756=\"\",'Base-datos'!$B$757=\"Sí\"),IF(AND(Q197=\"La actividad sí contribuye sustancialmente a la sostenibilidad\",P197=\"La actividad sí contribuye sustancialmente a la sostenibilidad\"),SUM(B197:O197),0),\"Por definir\"))))))))","v":"Por definir"}]
[{"$f":"Residuos!$C42","v":"Seleccione"},{"$f":"IF(Residuos!$E42=Seguros_fianzas!B$12,Residuos!$B42,\"\")","v":""},{"$f":"IF(Residuos!$E42=Seguros_fianzas!C$12,Residuos!$B42,\"\")","v":""},{"$f":"IF(Residuos!$E42=Seguros_fianzas!D$12,Residuos!$B42,\"\")","v":""},{"$f":"IF(Residuos!$E42=Seguros_fianzas!E$12,Residuos!$B42,\"\")","v":""},{"$f":"IF(Residuos!$E42=Seguros_fianzas!F$12,Residuos!$B42,\"\")","v":""},{"$f":"IF(Residuos!$E42=Seguros_fianzas!G$12,Residuos!$B42,\"\")","v":""},{"$f":"IF(Residuos!$E42=Seguros_fianzas!H$12,Residuos!$B42,\"\")","v":""},{"$f":"IF(Residuos!$E42=Seguros_fianzas!I$12,Residuos!$B42,\"\")","v":""},{"$f":"IF(Residuos!$E42=Seguros_fianzas!J$12,Residuos!$B42,\"\")","v":""},{"$f":"IF(Residuos!$E42=Seguros_fianzas!K$12,Residuos!$B42,\"\")","v":""},{"$f":"IF(Residuos!$E42=Seguros_fianzas!L$12,Residuos!$B42,\"\")","v":""},{"$f":"IF(Residuos!$E42=Seguros_fianzas!M$12,Residuos!$B42,\"\")","v":""},{"$f":"IF(Residuos!$E42=Seguros_fianzas!N$12,Residuos!$B42,\"\")","v":""},{"$f":"IF(Residuos!$E42=Seguros_fianzas!O$12,Residuos!$B42,\"\")","v":""},{"$f":"_xlfn.XLOOKUP(A198,'Base-datos'!$B$571:$B$580,'Base-datos'!$F$571:$F$580)","v":{"$error":"#N/A"}},{"$f":"_xlfn.XLOOKUP(A198,'Base-datos'!$B$571:$B$580,'Base-datos'!$C$571:$C$580)","v":{"$error":"#N/A"}},{"$f":"_xlfn.XLOOKUP(A198,'Base-datos'!$B$571:$B$580,'Base-datos'!$D$571:$D$580)","v":{"$error":"#N/A"}},null,null,{"$f":"IF(OR(S$182=\"La actividad no cumple con el total de los criterios de No Daño Significativo\",T$182=\"El sector no cumple con las salvaguardas mínimas\"),\"\",IF(AND('Base-datos'!$B$755=\"Sí\",'Base-datos'!$B$756=\"\",'Base-datos'!$B$757=\"\"),IF(Q198=\"La actividad sí contribuye sustancialmente a la sostenibilidad\",SUM(B198:O198),0),IF(AND('Base-datos'!$B$755=\"Sí\",'Base-datos'!$B$756=\"Sí\",'Base-datos'!$B$757=\"\"),IF(AND(Q198=\"La actividad sí contribuye sustancialmente a la sostenibilidad\",R198=\"La actividad sí contribuye sustancialmente a la sostenibilidad\"),SUM(B198:O198),0),IF(AND('Base-datos'!$B$755=\"Sí\",'Base-datos'!$B$756=\"Sí\",'Base-datos'!$B$757=\"Sí\"),IF(AND(Q198=\"La actividad sí contribuye sustancialmente a la sostenibilidad\",R198=\"La actividad sí contribuye sustancialmente a la sostenibilidad\",P198=\"La actividad sí contribuye sustancialmente a la sostenibilidad\"),SUM(B198:O198),0),IF(AND('Base-datos'!$B$755=\"\",'Base-datos'!$B$756=\"Sí\",'Base-datos'!$B$757=\"\"),IF(R198=\"La actividad sí contribuye sustancialmente a la sostenibilidad\",SUM(B198:O198),0),IF(AND('Base-datos'!$B$755=\"\",'Base-datos'!$B$756=\"\",'Base-datos'!$B$757=\"Sí\"),IF(P198=\"La actividad sí contribuye sustancialmente a la sostenibilidad\",SUM(B198:O198),0),IF(AND('Base-datos'!$B$755=\"\",'Base-datos'!$B$756=\"Sí\",'Base-datos'!$B$757=\"Sí\"),IF(AND(R198=\"La actividad sí contribuye sustancialmente a la sostenibilidad\",P198=\"La actividad sí contribuye sustancialmente a la sostenibilidad\"),SUM(B198:O198),0),IF(AND('Base-datos'!$B$755=\"Sí\",'Base-datos'!$B$756=\"\",'Base-datos'!$B$757=\"Sí\"),IF(AND(Q198=\"La actividad sí contribuye sustancialmente a la sostenibilidad\",P198=\"La actividad sí contribuye sustancialmente a la sostenibilidad\"),SUM(B198:O198),0),\"Por definir\"))))))))","v":"Por definir"}]
[{"$f":"Residuos!$C44","v":"Seleccione"},{"$f":"IF(Residuos!$E44=Seguros_fianzas!B$12,Residuos!$B44,\"\")","v":""},{"$f":"IF(Residuos!$E44=Seguros_fianzas!C$12,Residuos!$B44,\"\")","v":""},{"$f":"IF(Residuos!$E44=Seguros_fianzas!D$12,Residuos!$B44,\"\")","v":""},{"$f":"IF(Residuos!$E44=Seguros_fianzas!E$12,Residuos!$B44,\"\")","v":""},{"$f":"IF(Residuos!$E44=Seguros_fianzas!F$12,Residuos!$B44,\"\")","v":""},{"$f":"IF(Residuos!$E44=Seguros_fianzas!G$12,Residuos!$B44,\"\")","v":""},{"$f":"IF(Residuos!$E44=Seguros_fianzas!H$12,Residuos!$B44,\"\")","v":""},{"$f":"IF(Residuos!$E44=Seguros_fianzas!I$12,Residuos!$B44,\"\")","v":""},{"$f":"IF(Residuos!$E44=Seguros_fianzas!J$12,Residuos!$B44,\"\")","v":""},{"$f":"IF(Residuos!$E44=Seguros_fianzas!K$12,Residuos!$B44,\"\")","v":""},{"$f":"IF(Residuos!$E44=Seguros_fianzas!L$12,Residuos!$B44,\"\")","v":""},{"$f":"IF(Residuos!$E44=Seguros_fianzas!M$12,Residuos!$B44,\"\")","v":""},{"$f":"IF(Residuos!$E44=Seguros_fianzas!N$12,Residuos!$B44,\"\")","v":""},{"$f":"IF(Residuos!$E44=Seguros_fianzas!O$12,Residuos!$B44,\"\")","v":""},{"$f":"_xlfn.XLOOKUP(A199,'Base-datos'!$B$571:$B$580,'Base-datos'!$F$571:$F$580)","v":{"$error":"#N/A"}},{"$f":"_xlfn.XLOOKUP(A199,'Base-datos'!$B$571:$B$580,'Base-datos'!$C$571:$C$580)","v":{"$error":"#N/A"}},{"$f":"_xlfn.XLOOKUP(A199,'Base-datos'!$B$571:$B$580,'Base-datos'!$D$571:$D$580)","v":{"$error":"#N/A"}},null,null,{"$f":"IF(OR(S$182=\"La actividad no cumple con el total de los criterios de No Daño Significativo\",T$182=\"El sector no cumple con las salvaguardas mínimas\"),\"\",IF(AND('Base-datos'!$B$755=\"Sí\",'Base-datos'!$B$756=\"\",'Base-datos'!$B$757=\"\"),IF(Q199=\"La actividad sí contribuye sustancialmente a la sostenibilidad\",SUM(B199:O199),0),IF(AND('Base-datos'!$B$755=\"Sí\",'Base-datos'!$B$756=\"Sí\",'Base-datos'!$B$757=\"\"),IF(AND(Q199=\"La actividad sí contribuye sustancialmente a la sostenibilidad\",R199=\"La actividad sí contribuye sustancialmente a la sostenibilidad\"),SUM(B199:O199),0),IF(AND('Base-datos'!$B$755=\"Sí\",'Base-datos'!$B$756=\"Sí\",'Base-datos'!$B$757=\"Sí\"),IF(AND(Q199=\"La actividad sí contribuye sustancialmente a la sostenibilidad\",R199=\"La actividad sí contribuye sustancialmente a la sostenibilidad\",P199=\"La actividad sí contribuye sustancialmente a la sostenibilidad\"),SUM(B199:O199),0),IF(AND('Base-datos'!$B$755=\"\",'Base-datos'!$B$756=\"Sí\",'Base-datos'!$B$757=\"\"),IF(R199=\"La actividad sí contribuye sustancialmente a la sostenibilidad\",SUM(B199:O199),0),IF(AND('Base-datos'!$B$755=\"\",'Base-datos'!$B$756=\"\",'Base-datos'!$B$757=\"Sí\"),IF(P199=\"La actividad sí contribuye sustancialmente a la sostenibilidad\",SUM(B199:O199),0),IF(AND('Base-datos'!$B$755=\"\",'Base-datos'!$B$756=\"Sí\",'Base-datos'!$B$757=\"Sí\"),IF(AND(R199=\"La actividad sí contribuye sustancialmente a la sostenibilidad\",P199=\"La actividad sí contribuye sustancialmente a la sostenibilidad\"),SUM(B199:O199),0),IF(AND('Base-datos'!$B$755=\"Sí\",'Base-datos'!$B$756=\"\",'Base-datos'!$B$757=\"Sí\"),IF(AND(Q199=\"La actividad sí contribuye sustancialmente a la sostenibilidad\",P199=\"La actividad sí contribuye sustancialmente a la sostenibilidad\"),SUM(B199:O199),0),\"Por definir\"))))))))","v":"Por definir"}]
[{"$f":"Residuos!$C46","v":"Seleccione"},{"$f":"IF(Residuos!$E46=Seguros_fianzas!B$12,Residuos!$B46,\"\")","v":""},{"$f":"IF(Residuos!$E46=Seguros_fianzas!C$12,Residuos!$B46,\"\")","v":""},{"$f":"IF(Residuos!$E46=Seguros_fianzas!D$12,Residuos!$B46,\"\")","v":""},{"$f":"IF(Residuos!$E46=Seguros_fianzas!E$12,Residuos!$B46,\"\")","v":""},{"$f":"IF(Residuos!$E46=Seguros_fianzas!F$12,Residuos!$B46,\"\")","v":""},{"$f":"IF(Residuos!$E46=Seguros_fianzas!G$12,Residuos!$B46,\"\")","v":""},{"$f":"IF(Residuos!$E46=Seguros_fianzas!H$12,Residuos!$B46,\"\")","v":""},{"$f":"IF(Residuos!$E46=Seguros_fianzas!I$12,Residuos!$B46,\"\")","v":""},{"$f":"IF(Residuos!$E46=Seguros_fianzas!J$12,Residuos!$B46,\"\")","v":""},{"$f":"IF(Residuos!$E46=Seguros_fianzas!K$12,Residuos!$B46,\"\")","v":""},{"$f":"IF(Residuos!$E46=Seguros_fianzas!L$12,Residuos!$B46,\"\")","v":""},{"$f":"IF(Residuos!$E46=Seguros_fianzas!M$12,Residuos!$B46,\"\")","v":""},{"$f":"IF(Residuos!$E46=Seguros_fianzas!N$12,Residuos!$B46,\"\")","v":""},{"$f":"IF(Residuos!$E46=Seguros_fianzas!O$12,Residuos!$B46,\"\")","v":""},{"$f":"_xlfn.XLOOKUP(A200,'Base-datos'!$B$571:$B$580,'Base-datos'!$F$571:$F$580)","v":{"$error":"#N/A"}},{"$f":"_xlfn.XLOOKUP(A200,'Base-datos'!$B$571:$B$580,'Base-datos'!$C$571:$C$580)","v":{"$error":"#N/A"}},{"$f":"_xlfn.XLOOKUP(A200,'Base-datos'!$B$571:$B$580,'Base-datos'!$D$571:$D$580)","v":{"$error":"#N/A"}},null,null,{"$f":"IF(OR(S$182=\"La actividad no cumple con el total de los criterios de No Daño Significativo\",T$182=\"El sector no cumple con las salvaguardas mínimas\"),\"\",IF(AND('Base-datos'!$B$755=\"Sí\",'Base-datos'!$B$756=\"\",'Base-datos'!$B$757=\"\"),IF(Q200=\"La actividad sí contribuye sustancialmente a la sostenibilidad\",SUM(B200:O200),0),IF(AND('Base-datos'!$B$755=\"Sí\",'Base-datos'!$B$756=\"Sí\",'Base-datos'!$B$757=\"\"),IF(AND(Q200=\"La actividad sí contribuye sustancialmente a la sostenibilidad\",R200=\"La actividad sí contribuye sustancialmente a la sostenibilidad\"),SUM(B200:O200),0),IF(AND('Base-datos'!$B$755=\"Sí\",'Base-datos'!$B$756=\"Sí\",'Base-datos'!$B$757=\"Sí\"),IF(AND(Q200=\"La actividad sí contribuye sustancialmente a la sostenibilidad\",R200=\"La actividad sí contribuye sustancialmente a la sostenibilidad\",P200=\"La actividad sí contribuye sustancialmente a la sostenibilidad\"),SUM(B200:O200),0),IF(AND('Base-datos'!$B$755=\"\",'Base-datos'!$B$756=\"Sí\",'Base-datos'!$B$757=\"\"),IF(R200=\"La actividad sí contribuye sustancialmente a la sostenibilidad\",SUM(B200:O200),0),IF(AND('Base-datos'!$B$755=\"\",'Base-datos'!$B$756=\"\",'Base-datos'!$B$757=\"Sí\"),IF(P200=\"La actividad sí contribuye sustancialmente a la sostenibilidad\",SUM(B200:O200),0),IF(AND('Base-datos'!$B$755=\"\",'Base-datos'!$B$756=\"Sí\",'Base-datos'!$B$757=\"Sí\"),IF(AND(R200=\"La actividad sí contribuye sustancialmente a la sostenibilidad\",P200=\"La actividad sí contribuye sustancialmente a la sostenibilidad\"),SUM(B200:O200),0),IF(AND('Base-datos'!$B$755=\"Sí\",'Base-datos'!$B$756=\"\",'Base-datos'!$B$757=\"Sí\"),IF(AND(Q200=\"La actividad sí contribuye sustancialmente a la sostenibilidad\",P200=\"La actividad sí contribuye sustancialmente a la sostenibilidad\"),SUM(B200:O200),0),\"Por definir\"))))))))","v":"Por definir"}]
[{"$f":"Residuos!$C48","v":"Seleccione"},{"$f":"IF(Residuos!$E48=Seguros_fianzas!B$12,Residuos!$B48,\"\")","v":""},{"$f":"IF(Residuos!$E48=Seguros_fianzas!C$12,Residuos!$B48,\"\")","v":""},{"$f":"IF(Residuos!$E48=Seguros_fianzas!D$12,Residuos!$B48,\"\")","v":""},{"$f":"IF(Residuos!$E48=Seguros_fianzas!E$12,Residuos!$B48,\"\")","v":""},{"$f":"IF(Residuos!$E48=Seguros_fianzas!F$12,Residuos!$B48,\"\")","v":""},{"$f":"IF(Residuos!$E48=Seguros_fianzas!G$12,Residuos!$B48,\"\")","v":""},{"$f":"IF(Residuos!$E48=Seguros_fianzas!H$12,Residuos!$B48,\"\")","v":""},{"$f":"IF(Residuos!$E48=Seguros_fianzas!I$12,Residuos!$B48,\"\")","v":""},{"$f":"IF(Residuos!$E48=Seguros_fianzas!J$12,Residuos!$B48,\"\")","v":""},{"$f":"IF(Residuos!$E48=Seguros_fianzas!K$12,Residuos!$B48,\"\")","v":""},{"$f":"IF(Residuos!$E48=Seguros_fianzas!L$12,Residuos!$B48,\"\")","v":""},{"$f":"IF(Residuos!$E48=Seguros_fianzas!M$12,Residuos!$B48,\"\")","v":""},{"$f":"IF(Residuos!$E48=Seguros_fianzas!N$12,Residuos!$B48,\"\")","v":""},{"$f":"IF(Residuos!$E48=Seguros_fianzas!O$12,Residuos!$B48,\"\")","v":""},{"$f":"_xlfn.XLOOKUP(A201,'Base-datos'!$B$571:$B$580,'Base-datos'!$F$571:$F$580)","v":{"$error":"#N/A"}},{"$f":"_xlfn.XLOOKUP(A201,'Base-datos'!$B$571:$B$580,'Base-datos'!$C$571:$C$580)","v":{"$error":"#N/A"}},{"$f":"_xlfn.XLOOKUP(A201,'Base-datos'!$B$571:$B$580,'Base-datos'!$D$571:$D$580)","v":{"$error":"#N/A"}},null,null,{"$f":"IF(OR(S$182=\"La actividad no cumple con el total de los criterios de No Daño Significativo\",T$182=\"El sector no cumple con las salvaguardas mínimas\"),\"\",IF(AND('Base-datos'!$B$755=\"Sí\",'Base-datos'!$B$756=\"\",'Base-datos'!$B$757=\"\"),IF(Q201=\"La actividad sí contribuye sustancialmente a la sostenibilidad\",SUM(B201:O201),0),IF(AND('Base-datos'!$B$755=\"Sí\",'Base-datos'!$B$756=\"Sí\",'Base-datos'!$B$757=\"\"),IF(AND(Q201=\"La actividad sí contribuye sustancialmente a la sostenibilidad\",R201=\"La actividad sí contribuye sustancialmente a la sostenibilidad\"),SUM(B201:O201),0),IF(AND('Base-datos'!$B$755=\"Sí\",'Base-datos'!$B$756=\"Sí\",'Base-datos'!$B$757=\"Sí\"),IF(AND(Q201=\"La actividad sí contribuye sustancialmente a la sostenibilidad\",R201=\"La actividad sí contribuye sustancialmente a la sostenibilidad\",P201=\"La actividad sí contribuye sustancialmente a la sostenibilidad\"),SUM(B201:O201),0),IF(AND('Base-datos'!$B$755=\"\",'Base-datos'!$B$756=\"Sí\",'Base-datos'!$B$757=\"\"),IF(R201=\"La actividad sí contribuye sustancialmente a la sostenibilidad\",SUM(B201:O201),0),IF(AND('Base-datos'!$B$755=\"\",'Base-datos'!$B$756=\"\",'Base-datos'!$B$757=\"Sí\"),IF(P201=\"La actividad sí contribuye sustancialmente a la sostenibilidad\",SUM(B201:O201),0),IF(AND('Base-datos'!$B$755=\"\",'Base-datos'!$B$756=\"Sí\",'Base-datos'!$B$757=\"Sí\"),IF(AND(R201=\"La actividad sí contribuye sustancialmente a la sostenibilidad\",P201=\"La actividad sí contribuye sustancialmente a la sostenibilidad\"),SUM(B201:O201),0),IF(AND('Base-datos'!$B$755=\"Sí\",'Base-datos'!$B$756=\"\",'Base-datos'!$B$757=\"Sí\"),IF(AND(Q201=\"La actividad sí contribuye sustancialmente a la sostenibilidad\",P201=\"La actividad sí contribuye sustancialmente a la sostenibilidad\"),SUM(B201:O201),0),\"Por definir\"))))))))","v":"Por definir"}]
["Género",{"$f":"IF('Género-General'!$E10=B12,'Género-General'!$B10,\"\")","v":""},{"$f":"IF('Género-General'!$E10=C12,'Género-General'!$B10,\"\")","v":""},{"$f":"IF('Género-General'!$E10=D12,'Género-General'!$B10,\"\")","v":""},{"$f":"IF('Género-General'!$E10=E12,'Género-General'!$B10,\"\")","v":""},{"$f":"IF('Género-General'!$E10=F12,'Género-General'!$B10,\"\")","v":""},{"$f":"IF('Género-General'!$E10=G12,'Género-General'!$B10,\"\")","v":""},{"$f":"IF('Género-General'!$E10=H12,'Género-General'!$B10,\"\")","v":""},{"$f":"IF('Género-General'!$E10=I12,'Género-General'!$B10,\"\")","v":""},{"$f":"IF('Género-General'!$E10=J12,'Género-General'!$B10,\"\")","v":""},{"$f":"IF('Género-General'!$E10=K12,'Género-General'!$B10,\"\")","v":""},{"$f":"IF('Género-General'!$E10=L12,'Género-General'!$B10,\"\")","v":""},{"$f":"IF('Género-General'!$E10=M12,'Género-General'!$B10,\"\")","v":""},{"$f":"IF('Género-General'!$E10=N12,'Género-General'!$B10,\"\")","v":""},{"$f":"IF('Género-General'!$E10=O12,'Género-General'!$B10,\"\")","v":""},{"$f":"'Base-datos'!$F$581","v":"No se han contestado todas las preguntas"},"N/A","N/A",{"$f":"IF(COUNTIF(NDS_Género!P7:P38,\"No\")>0,\"La actividad no cumple con el total de los criterios de NDS\",\"La actividad cumple con los criterios de No Daño Significativo\")","v":"La actividad cumple con los criterios de No Daño Significativo"},{"$f":"IF(OR('Salvaguardas mínimas'!$G$10=\"Seleccione\",'Salvaguardas mínimas'!$G$13=\"Seleccione\",'Salvaguardas mínimas'!$G$16=\"Seleccione\",'Salvaguardas mínimas'!$G$7=\"Seleccione\"),\"No se han respondido todas las preguntas\",IF(OR('Salvaguardas mínimas'!$G$10=\"No\",'Salvaguardas mínimas'!$G$13=\"No\",'Salvaguardas mínimas'!$G$16=\"No\",'Salvaguardas mínimas'!$G$7=\"No\"),\"El sector no cumple con las salvaguardas mínimas\",\"La actividad sí cumple con las salvaguardas mínimas\"))","v":"No se han respondido todas las preguntas"},{"$f":"IF(P202=\"Por definir\",\"Por definir\",IF(P202=\"Sí cumple con el índice de igualdad de género\",'Género-General'!B10,0))","v":0}]
[null,null,null,null,null,null,null,null,null,null,null,null,null,null,null,null,null,null,null,null,{"$f":"SUM(U181,U160,U139,U118,U97,U76,U55,U34,U13)","v":0}]

{"sheet":"Otro","index":57,"n_rows":203,"n_cols":8,"rows_kept":203,"cut":false,"hidden":true,"merged":[[10,7,11,7],[10,6,11,6],[10,0,11,0],[10,5,11,5],[10,4,11,4],[0,2,8,5],[12,6,32,6],[34,6,53,6],[55,6,74,6],[76,6,95,6],[12,5,32,5],[34,5,53,5],[10,3,11,3],[10,2,11,2],[97,6,116,6],[181,5,200,5],[55,5,74,5],[76,5,95,5],[97,5,116,5],[118,5,137,5],[139,5,158,5],[160,5,179,5],[118,6,137,6],[139,6,158,6],[160,6,179,6],[181,6,200,6]]}
["Tipo de institución desde donde se evalua la operación financiera y/o proyecto","Empresas Cotizadas y Grandes Empresas","Esta hoja representa un resumen de las evaluaciones realizadas. Cabe señalar que un proceso de recomendaciones para las cuestiones que no cumplan con contribución sustancial se encuentra en desarrollo. Estos formatos forman parte de la evidencia de reporte que se puede realizar en el contexto de la taxonomía sostenible de México"]
["Fecha de elaboración ",{"$f":"Recursos!B7","v":"00:00:00"}]
["Institución que realiza la evaluación",{"$f":"Recursos!B8","v":0}]
["Nombre del proyecto",{"$f":"Recursos!B9","v":0}]
["Rango de fecha que comprende las operaciones financieras y/o proyectos evaluados",{"$f":"Recursos!B10","v":0}]
[]
["Total de recursos en evaluación sostenible",{"$f":"H203","v":0}]
[]
[]
[]
["1.2 NOMBRE CATEGORÍA","Cantidad de recursos alineados a la sostenibilidad","Grado de cumplimiento a la contribución sustancial (género)","Grado de cumplimiento a la contribución sustancial (mitigación)","Grado de cumplimiento a la contribución sustancial (adaptación)","Grado de cumplimiento a cuestiones de No Daño Significativo ","Grado de cumplimiento con las salvaguardas mínimas","Total recursos que cumple con umbrales"]
[null,"Otro"]
["Agricultura",null,null,null,null,{"$f":"IF(COUNTIF('Agriculltura-NDS'!G9:G57,\"No\")>0,\"La actividad no cumple con el total de los criterios de No Daño Significativo\",\"La actividad cumple con los criterios de No Daño Significativo\")","v":"La actividad cumple con los criterios de No Daño Significativo"},{"$f":"IF(OR('Salvaguardas mínimas'!$G$10=\"Seleccione\",'Salvaguardas mínimas'!$G$13=\"Seleccione\",'Salvaguardas mínimas'!$G$16=\"Seleccione\",'Salvaguardas mínimas'!$G$7=\"Seleccione\"),\"No se han respondido todas las preguntas\",IF(OR('Salvaguardas mínimas'!$G$10=\"No\",'Salvaguardas mínimas'!$G$13=\"No\",'Salvaguardas mínimas'!$G$16=\"No\",'Salvaguardas mínimas'!$G$7=\"No\"),\"El sector no cumple con las salvaguardas mínimas\",\"La actividad sí cumple con las salvaguardas mínimas\"))","v":"No se han respondido todas las preguntas"},{"$f":"SUM(IF(FREQUENCY(MATCH(A14:A33, A14:A33, 0), MATCH(A14:A33, A14:A33, 0)) > 0, IF(NOT(ISERROR(H14:H33)), H14:H33, 0)))","v":0}]
[{"$f":"Agricultura!$C10","v":"Seleccione"},{"$f":"IF(Agricultura!$E10=Otro!B$12,Agricultura!$B10,\"\")","v":""},{"$f":"_xlfn.XLOOKUP(A14,'Base-datos'!$B$457:$B$509,'Base-datos'!$F$457:$F$509)","v":{"$error":"#N/A"}},{"$f":"_xlfn.XLOOKUP(A14,'Base-datos'!$B$457:$B$509,'Base-datos'!$C$457:$C$509)","v":{"$error":"#N/A"}},{"$f":"_xlfn.XLOOKUP(A14,'Base-datos'!$B$457:$B$509,'Base-datos'!$D$457:$D$509)","v":{"$error":"#N/A"}},null,null,{"$f":"IF(OR(F$13=\"La actividad no cumple con el total de los criterios de No Daño Significativo\",G$13=\"El sector no cumple con las salvaguardas mínimas\"),\"\",IF(AND('Base-datos'!$B$715=\"Sí\",'Base-datos'!$B$716=\"\",'Base-datos'!$B$717=\"\"),IF(D14=\"La actividad sí contribuye sustancialmente a la sostenibilidad\",B14,0),IF(AND('Base-datos'!$B$715=\"Sí\",'Base-datos'!$B$716=\"Sí\",'Base-datos'!$B$717=\"\"),IF(AND(D14=\"La actividad sí contribuye sustancialmente a la sostenibilidad\",E14=\"La actividad sí contribuye sustancialmente a la sostenibilidad\"),B14,0),IF(AND('Base-datos'!$B$715=\"Sí\",'Base-datos'!$B$716=\"Sí\",'Base-datos'!$B$717=\"Sí\"),IF(AND(D14=\"La actividad sí contribuye sustancialmente a la sostenibilidad\",E14=\"La actividad sí contribuye sustancialmente a la sostenibilidad\",C14=\"La actividad sí contribuye sustancialmente a la sostenibilidad\"),B14,0),IF(AND('Base-datos'!$B$715=\"\",'Base-datos'!$B$716=\"Sí\",'Base-datos'!$B$717=\"\"),IF(E14=\"La actividad sí contribuye sustancialmente a la sostenibilidad\",B14,0),IF(AND('Base-datos'!$B$715=\"\",'Base-datos'!$B$716=\"\",'Base-datos'!$B$717=\"Sí\"),IF(C14=\"La actividad sí contribuye sustancialmente a la sostenibilidad\",H15,0),IF(AND('Base-datos'!$B$715=\"\",'Base-datos'!$B$716=\"Sí\",'Base-datos'!$B$717=\"Sí\"),IF(AND(E14=\"La actividad sí contribuye sustancialmente a la sostenibilidad\",C14=\"La actividad sí contribuye sustancialmente a la sostenibilidad\"),B14,0),IF(AND('Base-datos'!$B$715=\"Sí\",'Base-datos'!$B$716=\"\",'Base-datos'!$B$717=\"Sí\"),IF(AND(D14=\"La actividad sí contribuye sustancialmente a la sostenibilidad\",C14=\"La actividad sí contribuye sustancialmente a la sostenibilidad\"),B14,0),\"Por definir\"))))))))","v":"Por definir"}]
[{"$f":"Agricultura!$C12","v":"Seleccione"},{"$f":"IF(Agricultura!$E12=Otro!B$12,Agricultura!$B12,\"\")","v":""},{"$f":"_xlfn.XLOOKUP(A15,'Base-datos'!$B$457:$B$509,'Base-datos'!$F$457:$F$509)","v":{"$error":"#N/A"}},{"$f":"_xlfn.XLOOKUP(A15,'Base-datos'!$B$457:$B$509,'Base-datos'!$C$457:$C$509)","v":{"$error":"#N/A"}},{"$f":"_xlfn.XLOOKUP(A15,'Base-datos'!$B$457:$B$509,'Base-datos'!$D$457:$D$509)","v":{"$error":"#N/A"}},null,null,{"$f":"IF(OR(F$13=\"La actividad no cumple con el total de los criterios de No Daño Significativo\",G$13=\"El sector no cumple con las salvaguardas mínimas\"),\"\",IF(AND('Base-datos'!$B$715=\"Sí\",'Base-datos'!$B$716=\"\",'Base-datos'!$B$717=\"\"),IF(D15=\"La actividad sí contribuye sustancialmente a la sostenibilidad\",B15,0),IF(AND('Base-datos'!$B$715=\"Sí\",'Base-datos'!$B$716=\"Sí\",'Base-datos'!$B$717=\"\"),IF(AND(D15=\"La actividad sí contribuye sustancialmente a la sostenibilidad\",E15=\"La actividad sí contribuye sustancialmente a la sostenibilidad\"),B15,0),IF(AND('Base-datos'!$B$715=\"Sí\",'Base-datos'!$B$716=\"Sí\",'Base-datos'!$B$717=\"Sí\"),IF(AND(D15=\"La actividad sí contribuye sustancialmente a la sostenibilidad\",E15=\"La actividad sí contribuye sustancialmente a la sostenibilidad\",C15=\"La actividad sí contribuye sustancialmente a la sostenibilidad\"),B15,0),IF(AND('Base-datos'!$B$715=\"\",'Base-datos'!$B$716=\"Sí\",'Base-datos'!$B$717=\"\"),IF(E15=\"La actividad sí contribuye sustancialmente a la sostenibilidad\",B15,0),IF(AND('Base-datos'!$B$715=\"\",'Base-datos'!$B$716=\"\",'Base-datos'!$B$717=\"Sí\"),IF(C15=\"La actividad sí contribuye sustancialmente a la sostenibilidad\",H16,0),IF(AND('Base-datos'!$B$715=\"\",'Base-datos'!$B$716=\"Sí\",'Base-datos'!$B$717=\"Sí\"),IF(AND(E15=\"La actividad sí contribuye sustancialmente a la sostenibilidad\",C15=\"La actividad sí contribuye sustancialmente a la sostenibilidad\"),B15,0),IF(AND('Base-datos'!$B$715=\"Sí\",'Base-datos'!$B$716=\"\",'Base-datos'!$B$717=\"Sí\"),IF(AND(D15=\"La actividad sí contribuye sustancialmente a la sostenibilidad\",C15=\"La actividad sí contribuye sustancialmente a la sostenibilidad\"),B15,0),\"Por definir\"))))))))","v":"Por definir"}]
[{"$f":"Agricultura!$C14","v":"Seleccione"},{"$f":"IF(Agricultura!$E14=Otro!B$12,Agricultura!$B14,\"\")","v":""},{"$f":"_xlfn.XLOOKUP(A16,'Base-datos'!$B$457:$B$509,'Base-datos'!$F$457:$F$509)","v":{"$error":"#N/A"}},{"$f":"_xlfn.XLOOKUP(A16,'Base-datos'!$B$457:$B$509,'Base-datos'!$C$457:$C$509)","v":{"$error":"#N/A"}},{"$f":"_xlfn.XLOOKUP(A16,'Base-datos'!$B$457:$B$509,'Base-datos'!$D$457:$D$509)","v":{"$error":"#N/A"}},null,null,{"$f":"IF(OR(F$13=\"La actividad no cumple con el total de los criterios de No Daño Significativo\",G$13=\"El sector no cumple con las salvaguardas mínimas\"),\"\",IF(AND('Base-datos'!$B$715=\"Sí\",'Base-datos'!$B$716=\"\",'Base-datos'!$B$717=\"\"),IF(D16=\"La actividad sí contribuye sustancialmente a la sostenibilidad\",B16,0),IF(AND('Base-datos'!$B$715=\"Sí\",'Base-datos'!$B$716=\"Sí\",'Base-datos'!$B$717=\"\"),IF(AND(D16=\"La actividad sí contribuye sustancialmente a la sostenibilidad\",E16=\"La actividad sí contribuye sustancialmente a la sostenibilidad\"),B16,0),IF(AND('Base-datos'!$B$715=\"Sí\",'Base-datos'!$B$716=\"Sí\",'Base-datos'!$B$717=\"Sí\"),IF(AND(D16=\"La actividad sí contribuye sustancialmente a la sostenibilidad\",E16=\"La actividad sí contribuye sustancialmente a la sostenibilidad\",C16=\"La actividad sí contribuye sustancialmente a la sostenibilidad\"),B16,0),IF(AND('Base-datos'!$B$715=\"\",'Base-datos'!$B$716=\"Sí\",'Base-datos'!$B$717=\"\"),IF(E16=\"La actividad sí contribuye sustancialmente a la sostenibilidad\",B16,0),IF(AND('Base-datos'!$B$715=\"\",'Base-datos'!$B$716=\"\",'Base-datos'!$B$717=\"Sí\"),IF(C16=\"La actividad sí contribuye sustancialmente a la sostenibilidad\",H17,0),IF(AND('Base-datos'!$B$715=\"\",'Base-datos'!$B$716=\"Sí\",'Base-datos'!$B$717=\"Sí\"),IF(AND(E16=\"La actividad sí contribuye sustancialmente a la sostenibilidad\",C16=\"La actividad sí contribuye sustancialmente a la sostenibilidad\"),B16,0),IF(AND('Base-datos'!$B$715=\"Sí\",'Base-datos'!$B$716=\"\",'Base-datos'!$B$717=\"Sí\"),IF(AND(D16=\"La actividad sí contribuye sustancialmente a la sostenibilidad\",C16=\"La actividad sí contribuye sustancialmente a la sostenibilidad\"),B16,0),\"Por definir\"))))))))","v":"Por definir"}]
[{"$f":"Agricultura!$C16","v":"Seleccione"},{"$f":"IF(Agricultura!$E16=Otro!B$12,Agricultura!$B16,\"\")","v":""},{"$f":"_xlfn.XLOOKUP(A17,'Base-datos'!$B$457:$B$509,'Base-datos'!$F$457:$F$509)","v":{"$error":"#N/A"}},{"$f":"_xlfn.XLOOKUP(A17,'Base-datos'!$B$457:$B$509,'Base-datos'!$C$457:$C$509)","v":{"$error":"#N/A"}},{"$f":"_xlfn.XLOOKUP(A17,'Base-datos'!$B$457:$B$509,'Base-datos'!$D$457:$D$509)","v":{"$error":"#N/A"}},null,null,{"$f":"IF(OR(F$13=\"La actividad no cumple con el total de los criterios de No Daño Significativo\",G$13=\"El sector no cumple con las salvaguardas mínimas\"),\"\",IF(AND('Base-datos'!$B$715=\"Sí\",'Base-datos'!$B$716=\"\",'Base-datos'!$B$717=\"\"),IF(D17=\"La actividad sí contribuye sustancialmente a la sostenibilidad\",B17,0),IF(AND('Base-datos'!$B$715=\"Sí\",'Base-datos'!$B$716=\"Sí\",'Base-datos'!$B$717=\"\"),IF(AND(D17=\"La actividad sí contribuye sustancialmente a la sostenibilidad\",E17=\"La actividad sí contribuye sustancialmente a la sostenibilidad\"),B17,0),IF(AND('Base-datos'!$B$715=\"Sí\",'Base-datos'!$B$716=\"Sí\",'Base-datos'!$B$717=\"Sí\"),IF(AND(D17=\"La actividad sí contribuye sustancialmente a la sostenibilidad\",E17=\"La actividad sí contribuye sustancialmente a la sostenibilidad\",C17=\"La actividad sí contribuye sustancialmente a la sostenibilidad\"),B17,0),IF(AND('Base-datos'!$B$715=\"\",'Base-datos'!$B$716=\"Sí\",'Base-datos'!$B$717=\"\"),IF(E17=\"La actividad sí contribuye sustancialmente a la sostenibilidad\",B17,0),IF(AND('Base-datos'!$B$715=\"\",'Base-datos'!$B$716=\"\",'Base-datos'!$B$717=\"Sí\"),IF(C17=\"La actividad sí contribuye sustancialmente a la sostenibilidad\",H18,0),IF(AND('Base-datos'!$B$715=\"\",'Base-datos'!$B$716=\"Sí\",'Base-datos'!$B$717=\"Sí\"),IF(AND(E17=\"La actividad sí contribuye sustancialmente a la sostenibilidad\",C17=\"La actividad sí contribuye sustancialmente a la sostenibilidad\"),B17,0),IF(AND('Base-datos'!$B$715=\"Sí\",'Base-datos'!$B$716=\"\",'Base-datos'!$B$717=\"Sí\"),IF(AND(D17=\"La actividad sí contribuye sustancialmente a la sostenibilidad\",C17=\"La actividad sí contribuye sustancialmente a la sostenibilidad\"),B17,0),\"Por definir\"))))))))","v":"Por definir"}]
[{"$f":"Agricultura!$C18","v":"Seleccione"},{"$f":"IF(Agricultura!$E18=Otro!B$12,Agricultura!$B18,\"\")","v":""},{"$f":"_xlfn.XLOOKUP(A18,'Base-datos'!$B$457:$B$509,'Base-datos'!$F$457:$F$509)","v":{"$error":"#N/A"}},{"$f":"_xlfn.XLOOKUP(A18,'Base-datos'!$B$457:$B$509,'Base-datos'!$C$457:$C$509)","v":{"$error":"#N/A"}},{"$f":"_xlfn.XLOOKUP(A18,'Base-datos'!$B$457:$B$509,'Base-datos'!$D$457:$D$509)","v":{"$error":"#N/A"}},null,null,{"$f":"IF(OR(F$13=\"La actividad no cumple con el total de los criterios de No Daño Significativo\",G$13=\"El sector no cumple con las salvaguardas mínimas\"),\"\",IF(AND('Base-datos'!$B$715=\"Sí\",'Base-datos'!$B$716=\"\",'Base-datos'!$B$717=\"\"),IF(D18=\"La actividad sí contribuye sustancialmente a la sostenibilidad\",B18,0),IF(AND('Base-datos'!$B$715=\"Sí\",'Base-datos'!$B$716=\"Sí\",'Base-datos'!$B$717=\"\"),IF(AND(D18=\"La actividad sí contribuye sustancialmente a la sostenibilidad\",E18=\"La actividad sí contribuye sustancialmente a la sostenibilidad\"),B18,0),IF(AND('Base-datos'!$B$715=\"Sí\",'Base-datos'!$B$716=\"Sí\",'Base-datos'!$B$717=\"Sí\"),IF(AND(D18=\"La actividad sí contribuye sustancialmente a la sostenibilidad\",E18=\"La actividad sí contribuye sustancialmente a la sostenibilidad\",C18=\"La actividad sí contribuye sustancialmente a la sostenibilidad\"),B18,0),IF(AND('Base-datos'!$B$715=\"\",'Base-datos'!$B$716=\"Sí\",'Base-datos'!$B$717=\"\"),IF(E18=\"La actividad sí contribuye sustancialmente a la sostenibilidad\",B18,0),IF(AND('Base-datos'!$B$715=\"\",'Base-datos'!$B$716=\"\",'Base-datos'!$B$717=\"Sí\"),IF(C18=\"La actividad sí contribuye sustancialmente a la sostenibilidad\",H19,0),IF(AND('Base-datos'!$B$715=\"\",'Base-datos'!$B$716=\"Sí\",'Base-datos'!$B$717=\"Sí\"),IF(AND(E18=\"La actividad sí contribuye sustancialmente a la sostenibilidad\",C18=\"La actividad sí contribuye sustancialmente a la sostenibilidad\"),B18,0),IF(AND('Base-datos'!$B$715=\"Sí\",'Base-datos'!$B$716=\"\",'Base-datos'!$B$717=\"Sí\"),IF(AND(D18=\"La actividad sí contribuye sustancialmente a la sostenibilidad\",C18=\"La actividad sí contribuye sustancialmente a la sostenibilidad\"),B18,0),\"Por definir\"))))))))","v":"Por definir"}]
[{"$f":"Agricultura!$C20","v":"Seleccione"},{"$f":"IF(Agricultura!$E20=Otro!B$12,Agricultura!$B20,\"\")","v":""},{"$f":"_xlfn.XLOOKUP(A19,'Base-datos'!$B$457:$B$509,'Base-datos'!$F$457:$F$509)","v":{"$error":"#N/A"}},{"$f":"_xlfn.XLOOKUP(A19,'Base-datos'!$B$457:$B$509,'Base-datos'!$C$457:$C$509)","v":{"$error":"#N/A"}},{"$f":"_xlfn.XLOOKUP(A19,'Base-datos'!$B$457:$B$509,'Base-datos'!$D$457:$D$509)","v":{"$error":"#N/A"}},null,null,{"$f":"IF(OR(F$13=\"La actividad no cumple con el total de los criterios de No Daño Significativo\",G$13=\"El sector no cumple con las salvaguardas mínimas\"),\"\",IF(AND('Base-datos'!$B$715=\"Sí\",'Base-datos'!$B$716=\"\",'Base-datos'!$B$717=\"\"),IF(D19=\"La actividad sí contribuye sustancialmente a la sostenibilidad\",B19,0),IF(AND('Base-datos'!$B$715=\"Sí\",'Base-datos'!$B$716=\"Sí\",'Base-datos'!$B$717=\"\"),IF(AND(D19=\"La actividad sí contribuye sustancialmente a la sostenibilidad\",E19=\"La actividad sí contribuye sustancialmente a la sostenibilidad\"),B19,0),IF(AND('Base-datos'!$B$715=\"Sí\",'Base-datos'!$B$716=\"Sí\",'Base-datos'!$B$717=\"Sí\"),IF(AND(D19=\"La actividad sí contribuye sustancialmente a la sostenibilidad\",E19=\"La actividad sí contribuye sustancialmente a la sostenibilidad\",C19=\"La actividad sí contribuye sustancialmente a la sostenibilidad\"),B19,0),IF(AND('Base-datos'!$B$715=\"\",'Base-datos'!$B$716=\"Sí\",'Base-datos'!$B$717=\"\"),IF(E19=\"La actividad sí contribuye sustancialmente a la sostenibilidad\",B19,0),IF(AND('Base-datos'!$B$715=\"\",'Base-datos'!$B$716=\"\",'Base-datos'!$B$717=\"Sí\"),IF(C19=\"La actividad sí contribuye sustancialmente a la sostenibilidad\",H20,0),IF(AND('Base-datos'!$B$715=\"\",'Base-datos'!$B$716=\"Sí\",'Base-datos'!$B$717=\"Sí\"),IF(AND(E19=\"La actividad sí contribuye sustancialmente a la sostenibilidad\",C19=\"La actividad sí contribuye sustancialmente a la sostenibilidad\"),B19,0),IF(AND('Base-datos'!$B$715=\"Sí\",'Base-datos'!$B$716=\"\",'Base-datos'!$B$717=\"Sí\"),IF(AND(D19=\"La actividad sí contribuye sustancialmente a la sostenibilidad\",C19=\"La actividad sí contribuye sustancialmente a la sostenibilidad\"),B19,0),\"Por definir\"))))))))","v":"Por definir"}]
[{"$f":"Agricultura!$C22","v":"Seleccione"},{"$f":"IF(Agricultura!$E22=Otro!B$12,Agricultura!$B22,\"\")","v":""},{"$f":"_xlfn.XLOOKUP(A20,'Base-datos'!$B$457:$B$509,'Base-datos'!$F$457:$F$509)","v":{"$error":"#N/A"}},{"$f":"_xlfn.XLOOKUP(A20,'Base-datos'!$B$457:$B$509,'Base-datos'!$C$457:$C$509)","v":{"$error":"#N/A"}},{"$f":"_xlfn.XLOOKUP(A20,'Base-datos'!$B$457:$B$509,'Base-datos'!$D$457:$D$509)","v":{"$error":"#N/A"}},null,null,{"$f":"IF(OR(F$13=\"La actividad no cumple con el total de los criterios de No Daño Significativo\",G$13=\"El sector no cumple con las salvaguardas mínimas\"),\"\",IF(AND('Base-datos'!$B$715=\"Sí\",'Base-datos'!$B$716=\"\",'Base-datos'!$B$717=\"\"),IF(D20=\"La actividad sí contribuye sustancialmente a la sostenibilidad\",B20,0),IF(AND('Base-datos'!$B$715=\"Sí\",'Base-datos'!$B$716=\"Sí\",'Base-datos'!$B$717=\"\"),IF(AND(D20=\"La actividad sí contribuye sustancialmente a la sostenibilidad\",E20=\"La actividad sí contribuye sustancialmente a la sostenibilidad\"),B20,0),IF(AND('Base-datos'!$B$715=\"Sí\",'Base-datos'!$B$716=\"Sí\",'Base-datos'!$B$717=\"Sí\"),IF(AND(D20=\"La actividad sí contribuye sustancialmente a la sostenibilidad\",E20=\"La actividad sí contribuye sustancialmente a la sostenibilidad\",C20=\"La actividad sí contribuye sustancialmente a la sostenibilidad\"),B20,0),IF(AND('Base-datos'!$B$715=\"\",'Base-datos'!$B$716=\"Sí\",'Base-datos'!$B$717=\"\"),IF(E20=\"La actividad sí contribuye sustancialmente a la sostenibilidad\",B20,0),IF(AND('Base-datos'!$B$715=\"\",'Base-datos'!$B$716=\"\",'Base-datos'!$B$717=\"Sí\"),IF(C20=\"La actividad sí contribuye sustancialmente a la sostenibilidad\",H21,0),IF(AND('Base-datos'!$B$715=\"\",'Base-datos'!$B$716=\"Sí\",'Base-datos'!$B$717=\"Sí\"),IF(AND(E20=\"La actividad sí contribuye sustancialmente a la sostenibilidad\",C20=\"La actividad sí contribuye sustancialmente a la sostenibilidad\"),B20,0),IF(AND('Base-datos'!$B$715=\"Sí\",'Base-datos'!$B$716=\"\",'Base-datos'!$B$717=\"Sí\"),IF(AND(D20=\"La actividad sí contribuye sustancialmente a la sostenibilidad\",C20=\"La actividad sí contribuye sustancialmente a la sostenibilidad\"),B20,0),\"Por definir\"))))))))","v":"Por definir"}]
[{"$f":"Agricultura!$C24","v":"Seleccione"},{"$f":"IF(Agricultura!$E24=Otro!B$12,Agricultura!$B24,\"\")","v":""},{"$f":"_xlfn.XLOOKUP(A21,'Base-datos'!$B$457:$B$509,'Base-datos'!$F$457:$F$509)","v":{"$error":"#N/A"}},{"$f":"_xlfn.XLOOKUP(A21,'Base-datos'!$B$457:$B$509,'Base-datos'!$C$457:$C$509)","v":{"$error":"#N/A"}},{"$f":"_xlfn.XLOOKUP(A21,'Base-datos'!$B$457:$B$509,'Base-datos'!$D$457:$D$509)","v":{"$error":"#N/A"}},null,null,{"$f":"IF(OR(F$13=\"La actividad no cumple con el total de los criterios de No Daño Significativo\",G$13=\"El sector no cumple con las salvaguardas mínimas\"),\"\",IF(AND('Base-datos'!$B$715=\"Sí\",'Base-datos'!$B$716=\"\",'Base-datos'!$B$717=\"\"),IF(D21=\"La actividad sí contribuye sustancialmente a la sostenibilidad\",B21,0),IF(AND('Base-datos'!$B$715=\"Sí\",'Base-datos'!$B$716=\"Sí\",'Base-datos'!$B$717=\"\"),IF(AND(D21=\"La actividad sí contribuye sustancialmente a la sostenibilidad\",E21=\"La actividad sí contribuye sustancialmente a la sostenibilidad\"),B21,0),IF(AND('Base-datos'!$B$715=\"Sí\",'Base-datos'!$B$716=\"Sí\",'Base-datos'!$B$717=\"Sí\"),IF(AND(D21=\"La actividad sí contribuye sustancialmente a la sostenibilidad\",E21=\"La actividad sí contribuye sustancialmente a la sostenibilidad\",C21=\"La actividad sí contribuye sustancialmente a la sostenibilidad\"),B21,0),IF(AND('Base-datos'!$B$715=\"\",'Base-datos'!$B$716=\"Sí\",'Base-datos'!$B$717=\"\"),IF(E21=\"La actividad sí contribuye sustancialmente a la sostenibilidad\",B21,0),IF(AND('Base-datos'!$B$715=\"\",'Base-datos'!$B$716=\"\",'Base-datos'!$B$717=\"Sí\"),IF(C21=\"La actividad sí contribuye sustancialmente a la sostenibilidad\",H22,0),IF(AND('Base-datos'!$B$715=\"\",'Base-datos'!$B$716=\"Sí\",'Base-datos'!$B$717=\"Sí\"),IF(AND(E21=\"La actividad sí contribuye sustancialmente a la sostenibilidad\",C21=\"La actividad sí contribuye sustancialmente a la sostenibilidad\"),B21,0),IF(AND('Base-datos'!$B$715=\"Sí\",'Base-datos'!$B$716=\"\",'Base-datos'!$B$717=\"Sí\"),IF(AND(D21=\"La actividad sí contribuye sustancialmente a la sostenibilidad\",C21=\"La actividad sí contribuye sustancialmente a la sostenibilidad\"),B21,0),\"Por definir\"))))))))","v":"Por definir"}]
[{"$f":"Agricultura!$C26","v":"Seleccione"},{"$f":"IF(Agricultura!$E26=Otro!B$12,Agricultura!$B26,\"\")","v":""},{"$f":"_xlfn.XLOOKUP(A22,'Base-datos'!$B$457:$B$509,'Base-datos'!$F$457:$F$509)","v":{"$error":"#N/A"}},{"$f":"_xlfn.XLOOKUP(A22,'Base-datos'!$B$457:$B$509,'Base-datos'!$C$457:$C$509)","v":{"$error":"#N/A"}},{"$f":"_xlfn.XLOOKUP(A22,'Base-datos'!$B$457:$B$509,'Base-datos'!$D$457:$D$509)","v":{"$error":"#N/A"}},null,null,{"$f":"IF(OR(F$13=\"La actividad no cumple con el total de los criterios de No Daño Significativo\",G$13=\"El sector no cumple con las salvaguardas mínimas\"),\"\",IF(AND('Base-datos'!$B$715=\"Sí\",'Base-datos'!$B$716=\"\",'Base-datos'!$B$717=\"\"),IF(D22=\"La actividad sí contribuye sustancialmente a la sostenibilidad\",B22,0),IF(AND('Base-datos'!$B$715=\"Sí\",'Base-datos'!$B$716=\"Sí\",'Base-datos'!$B$717=\"\"),IF(AND(D22=\"La actividad sí contribuye sustancialmente a la sostenibilidad\",E22=\"La actividad sí contribuye sustancialmente a la sostenibilidad\"),B22,0),IF(AND('Base-datos'!$B$715=\"Sí\",'Base-datos'!$B$716=\"Sí\",'Base-datos'!$B$717=\"Sí\"),IF(AND(D22=\"La actividad sí contribuye sustancialmente a la sostenibilidad\",E22=\"La actividad sí contribuye sustancialmente a la sostenibilidad\",C22=\"La actividad sí contribuye sustancialmente a la sostenibilidad\"),B22,0),IF(AND('Base-datos'!$B$715=\"\",'Base-datos'!$B$716=\"Sí\",'Base-datos'!$B$717=\"\"),IF(E22=\"La actividad sí contribuye sustancialmente a la sostenibilidad\",B22,0),IF(AND('Base-datos'!$B$715=\"\",'Base-datos'!$B$716=\"\",'Base-datos'!$B$717=\"Sí\"),IF(C22=\"La actividad sí contribuye sustancialmente a la sostenibilidad\",H23,0),IF(AND('Base-datos'!$B$715=\"\",'Base-datos'!$B$716=\"Sí\",'Base-datos'!$B$717=\"Sí\"),IF(AND(E22=\"La actividad sí contribuye sustancialmente a la sostenibilidad\",C22=\"La actividad sí contribuye sustancialmente a la sostenibilidad\"),B22,0),IF(AND('Base-datos'!$B$715=\"Sí\",'Base-datos'!$B$716=\"\",'Base-datos'!$B$717=\"Sí\"),IF(AND(D22=\"La actividad sí contribuye sustancialmente a la sostenibilidad\",C22=\"La actividad sí contribuye sustancialmente a la sostenibilidad\"),B22,0),\"Por definir\"))))))))","v":"Por definir"}]
[{"$f":"Agricultura!$C28","v":"Seleccione"},{"$f":"IF(Agricultura!$E28=Otro!B$12,Agricultura!$B28,\"\")","v":""},{"$f":"_xlfn.XLOOKUP(A23,'Base-datos'!$B$457:$B$509,'Base-datos'!$F$457:$F$509)","v":{"$error":"#N/A"}},{"$f":"_xlfn.XLOOKUP(A23,'Base-datos'!$B$457:$B$509,'Base-datos'!$C$457:$C$509)","v":{"$error":"#N/A"}},{"$f":"_xlfn.XLOOKUP(A23,'Base-datos'!$B$457:$B$509,'Base-datos'!$D$457:$D$509)","v":{"$error":"#N/A"}},null,null,{"$f":"IF(OR(F$13=\"La actividad no cumple con el total de los criterios de No Daño Significativo\",G$13=\"El sector no cumple con las salvaguardas mínimas\"),\"\",IF(AND('Base-datos'!$B$715=\"Sí\",'Base-datos'!$B$716=\"\",'Base-datos'!$B$717=\"\"),IF(D23=\"La actividad sí contribuye sustancialmente a la sostenibilidad\",B23,0),IF(AND('Base-datos'!$B$715=\"Sí\",'Base-datos'!$B$716=\"Sí\",'Base-datos'!$B$717=\"\"),IF(AND(D23=\"La actividad sí contribuye sustancialmente a la sostenibilidad\",E23=\"La actividad sí contribuye sustancialmente a la sostenibilidad\"),B23,0),IF(AND('Base-datos'!$B$715=\"Sí\",'Base-datos'!$B$716=\"Sí\",'Base-datos'!$B$717=\"Sí\"),IF(AND(D23=\"La actividad sí contribuye sustancialmente a la sostenibilidad\",E23=\"La actividad sí contribuye sustancialmente a la sostenibilidad\",C23=\"La actividad sí contribuye sustancialmente a la sostenibilidad\"),B23,0),IF(AND('Base-datos'!$B$715=\"\",'Base-datos'!$B$716=\"Sí\",'Base-datos'!$B$717=\"\"),IF(E23=\"La actividad sí contribuye sustancialmente a la sostenibilidad\",B23,0),IF(AND('Base-datos'!$B$715=\"\",'Base-datos'!$B$716=\"\",'Base-datos'!$B$717=\"Sí\"),IF(C23=\"La actividad sí contribuye sustancialmente a la sostenibilidad\",H24,0),IF(AND('Base-datos'!$B$715=\"\",'Base-datos'!$B$716=\"Sí\",'Base-datos'!$B$717=\"Sí\"),IF(AND(E23=\"La actividad sí contribuye sustancialmente a la sostenibilidad\",C23=\"La actividad sí contribuye sustancialmente a la sostenibilidad\"),B23,0),IF(AND('Base-datos'!$B$715=\"Sí\",'Base-datos'!$B$716=\"\",'Base-datos'!$B$717=\"Sí\"),IF(AND(D23=\"La actividad sí contribuye sustancialmente a la sostenibilidad\",C23=\"La actividad sí contribuye sustancialmente a la sostenibilidad\"),B23,0),\"Por definir\"))))))))","v":"Por definir"}]
[{"$f":"Agricultura!$C30","v":"Seleccione"},{"$f":"IF(Agricultura!$E30=Otro!B$12,Agricultura!$B30,\"\")","v":""},{"$f":"_xlfn.XLOOKUP(A24,'Base-datos'!$B$457:$B$509,'Base-datos'!$F$457:$F$509)","v":{"$error":"#N/A"}},{"$f":"_xlfn.XLOOKUP(A24,'Base-datos'!$B$457:$B$509,'Base-datos'!$C$457:$C$509)","v":{"$error":"#N/A"}},{"$f":"_xlfn.XLOOKUP(A24,'Base-datos'!$B$457:$B$509,'Base-datos'!$D$457:$D$509)","v":{"$error":"#N/A"}},null,null,{"$f":"IF(OR(F$13=\"La actividad no cumple con el total de los criterios de No Daño Significativo\",G$13=\"El sector no cumple con las salvaguardas mínimas\"),\"\",IF(AND('Base-datos'!$B$715=\"Sí\",'Base-datos'!$B$716=\"\",'Base-datos'!$B$717=\"\"),IF(D24=\"La actividad sí contribuye sustancialmente a la sostenibilidad\",B24,0),IF(AND('Base-datos'!$B$715=\"Sí\",'Base-datos'!$B$716=\"Sí\",'Base-datos'!$B$717=\"\"),IF(AND(D24=\"La actividad sí contribuye sustancialmente a la sostenibilidad\",E24=\"La actividad sí contribuye sustancialmente a la sostenibilidad\"),B24,0),IF(AND('Base-datos'!$B$715=\"Sí\",'Base-datos'!$B$716=\"Sí\",'Base-datos'!$B$717=\"Sí\"),IF(AND(D24=\"La actividad sí contribuye sustancialmente a la sostenibilidad\",E24=\"La actividad sí contribuye sustancialmente a la sostenibilidad\",C24=\"La actividad sí contribuye sustancialmente a la sostenibilidad\"),B24,0),IF(AND('Base-datos'!$B$715=\"\",'Base-datos'!$B$716=\"Sí\",'Base-datos'!$B$717=\"\"),IF(E24=\"La actividad sí contribuye sustancialmente a la sostenibilidad\",B24,0),IF(AND('Base-datos'!$B$715=\"\",'Base-datos'!$B$716=\"\",'Base-datos'!$B$717=\"Sí\"),IF(C24=\"La actividad sí contribuye sustancialmente a la sostenibilidad\",H25,0),IF(AND('Base-datos'!$B$715=\"\",'Base-datos'!$B$716=\"Sí\",'Base-datos'!$B$717=\"Sí\"),IF(AND(E24=\"La actividad sí contribuye sustancialmente a la sostenibilidad\",C24=\"La actividad sí contribuye sustancialmente a la sostenibilidad\"),B24,0),IF(AND('Base-datos'!$B$715=\"Sí\",'Base-datos'!$B$716=\"\",'Base-datos'!$B$717=\"Sí\"),IF(AND(D24=\"La actividad sí contribuye sustancialmente a la sostenibilidad\",C24=\"La actividad sí contribuye sustancialmente a la sostenibilidad\"),B24,0),\"Por definir\"))))))))","v":"Por definir"}]
[{"$f":"Agricultura!$C32","v":"Seleccione"},{"$f":"IF(Agricultura!$E32=Otro!B$12,Agricultura!$B32,\"\")","v":""},{"$f":"_xlfn.XLOOKUP(A25,'Base-datos'!$B$457:$B$509,'Base-datos'!$F$457:$F$509)","v":{"$error":"#N/A"}},{"$f":"_xlfn.XLOOKUP(A25,'Base-datos'!$B$457:$B$509,'Base-datos'!$C$457:$C$509)","v":{"$error":"#N/A"}},{"$f":"_xlfn.XLOOKUP(A25,'Base-datos'!$B$457:$B$509,'Base-datos'!$D$457:$D$509)","v":{"$error":"#N/A"}},null,null,{"$f":"IF(OR(F$13=\"La actividad no cumple con el total de los criterios de No Daño Significativo\",G$13=\"El sector no cumple con las salvaguardas mínimas\"),\"\",IF(AND('Base-datos'!$B$715=\"Sí\",'Base-datos'!$B$716=\"\",'Base-datos'!$B$717=\"\"),IF(D25=\"La actividad sí contribuye sustancialmente a la sostenibilidad\",B25,0),IF(AND('Base-datos'!$B$715=\"Sí\",'Base-datos'!$B$716=\"Sí\",'Base-datos'!$B$717=\"\"),IF(AND(D25=\"La actividad sí contribuye sustancialmente a la sostenibilidad\",E25=\"La actividad sí contribuye sustancialmente a la sostenibilidad\"),B25,0),IF(AND('Base-datos'!$B$715=\"Sí\",'Base-datos'!$B$716=\"Sí\",'Base-datos'!$B$717=\"Sí\"),IF(AND(D25=\"La actividad sí contribuye sustancialmente a la sostenibilidad\",E25=\"La actividad sí contribuye sustancialmente a la sostenibilidad\",C25=\"La actividad sí contribuye sustancialmente a la sostenibilidad\"),B25,0),IF(AND('Base-datos'!$B$715=\"\",'Base-datos'!$B$716=\"Sí\",'Base-datos'!$B$717=\"\"),IF(E25=\"La actividad sí contribuye sustancialmente a la sostenibilidad\",B25,0),IF(AND('Base-datos'!$B$715=\"\",'Base-datos'!$B$716=\"\",'Base-datos'!$B$717=\"Sí\"),IF(C25=\"La actividad sí contribuye sustancialmente a la sostenibilidad\",H26,0),IF(AND('Base-datos'!$B$715=\"\",'Base-datos'!$B$716=\"Sí\",'Base-datos'!$B$717=\"Sí\"),IF(AND(E25=\"La actividad sí contribuye sustancialmente a la sostenibilidad\",C25=\"La actividad sí contribuye sustancialmente a la sostenibilidad\"),B25,0),IF(AND('Base-datos'!$B$715=\"Sí\",'Base-datos'!$B$716=\"\",'Base-datos'!$B$717=\"Sí\"),IF(AND(D25=\"La actividad sí contribuye sustancialmente a la sostenibilidad\",C25=\"La actividad sí contribuye sustancialmente a la sostenibilidad\"),B25,0),\"Por definir\"))))))))","v":"Por definir"}]
[{"$f":"Agricultura!$C34","v":"Seleccione"},{"$f":"IF(Agricultura!$E34=Otro!B$12,Agricultura!$B34,\"\")","v":""},{"$f":"_xlfn.XLOOKUP(A26,'Base-datos'!$B$457:$B$509,'Base-datos'!$F$457:$F$509)","v":{"$error":"#N/A"}},{"$f":"_xlfn.XLOOKUP(A26,'Base-datos'!$B$457:$B$509,'Base-datos'!$C$457:$C$509)","v":{"$error":"#N/A"}},{"$f":"_xlfn.XLOOKUP(A26,'Base-datos'!$B$457:$B$509,'Base-datos'!$D$457:$D$509)","v":{"$error":"#N/A"}},null,null,{"$f":"IF(OR(F$13=\"La actividad no cumple con el total de los criterios de No Daño Significativo\",G$13=\"El sector no cumple con las salvaguardas mínimas\"),\"\",IF(AND('Base-datos'!$B$715=\"Sí\",'Base-datos'!$B$716=\"\",'Base-datos'!$B$717=\"\"),IF(D26=\"La actividad sí contribuye sustancialmente a la sostenibilidad\",B26,0),IF(AND('Base-datos'!$B$715=\"Sí\",'Base-datos'!$B$716=\"Sí\",'Base-datos'!$B$717=\"\"),IF(AND(D26=\"La actividad sí contribuye sustancialmente a la sostenibilidad\",E26=\"La actividad sí contribuye sustancialmente a la sostenibilidad\"),B26,0),IF(AND('Base-datos'!$B$715=\"Sí\",'Base-datos'!$B$716=\"Sí\",'Base-datos'!$B$717=\"Sí\"),IF(AND(D26=\"La actividad sí contribuye sustancialmente a la sostenibilidad\",E26=\"La actividad sí contribuye sustancialmente a la sostenibilidad\",C26=\"La actividad sí contribuye sustancialmente a la sostenibilidad\"),B26,0),IF(AND('Base-datos'!$B$715=\"\",'Base-datos'!$B$716=\"Sí\",'Base-datos'!$B$717=\"\"),IF(E26=\"La actividad sí contribuye sustancialmente a la sostenibilidad\",B26,0),IF(AND('Base-datos'!$B$715=\"\",'Base-datos'!$B$716=\"\",'Base-datos'!$B$717=\"Sí\"),IF(C26=\"La actividad sí contribuye sustancialmente a la sostenibilidad\",H27,0),IF(AND('Base-datos'!$B$715=\"\",'Base-datos'!$B$716=\"Sí\",'Base-datos'!$B$717=\"Sí\"),IF(AND(E26=\"La actividad sí contribuye sustancialmente a la sostenibilidad\",C26=\"La actividad sí contribuye sustancialmente a la sostenibilidad\"),B26,0),IF(AND('Base-datos'!$B$715=\"Sí\",'Base-datos'!$B$716=\"\",'Base-datos'!$B$717=\"Sí\"),IF(AND(D26=\"La actividad sí contribuye sustancialmente a la sostenibilidad\",C26=\"La actividad sí contribuye sustancialmente a la sostenibilidad\"),B26,0),\"Por definir\"))))))))","v":"Por definir"}]
[{"$f":"Agricultura!$C36","v":"Seleccione"},{"$f":"IF(Agricultura!$E36=Otro!B$12,Agricultura!$B36,\"\")","v":""},{"$f":"_xlfn.XLOOKUP(A27,'Base-datos'!$B$457:$B$509,'Base-datos'!$F$457:$F$509)","v":{"$error":"#N/A"}},{"$f":"_xlfn.XLOOKUP(A27,'Base-datos'!$B$457:$B$509,'Base-datos'!$C$457:$C$509)","v":{"$error":"#N/A"}},{"$f":"_xlfn.XLOOKUP(A27,'Base-datos'!$B$457:$B$509,'Base-datos'!$D$457:$D$509)","v":{"$error":"#N/A"}},null,null,{"$f":"IF(OR(F$13=\"La actividad no cumple con el total de los criterios de No Daño Significativo\",G$13=\"El sector no cumple con las salvaguardas mínimas\"),\"\",IF(AND('Base-datos'!$B$715=\"Sí\",'Base-datos'!$B$716=\"\",'Base-datos'!$B$717=\"\"),IF(D27=\"La actividad sí contribuye sustancialmente a la sostenibilidad\",B27,0),IF(AND('Base-datos'!$B$715=\"Sí\",'Base-datos'!$B$716=\"Sí\",'Base-datos'!$B$717=\"\"),IF(AND(D27=\"La actividad sí contribuye sustancialmente a la sostenibilidad\",E27=\"La actividad sí contribuye sustancialmente a la sostenibilidad\"),B27,0),IF(AND('Base-datos'!$B$715=\"Sí\",'Base-datos'!$B$716=\"Sí\",'Base-datos'!$B$717=\"Sí\"),IF(AND(D27=\"La actividad sí contribuye sustancialmente a la sostenibilidad\",E27=\"La actividad sí contribuye sustancialmente a la sostenibilidad\",C27=\"La actividad sí contribuye sustancialmente a la sostenibilidad\"),B27,0),IF(AND('Base-datos'!$B$715=\"\",'Base-datos'!$B$716=\"Sí\",'Base-datos'!$B$717=\"\"),IF(E27=\"La actividad sí contribuye sustancialmente a la sostenibilidad\",B27,0),IF(AND('Base-datos'!$B$715=\"\",'Base-datos'!$B$716=\"\",'Base-datos'!$B$717=\"Sí\"),IF(C27=\"La actividad sí contribuye sustancialmente a la sostenibilidad\",H28,0),IF(AND('Base-datos'!$B$715=\"\",'Base-datos'!$B$716=\"Sí\",'Base-datos'!$B$717=\"Sí\"),IF(AND(E27=\"La actividad sí contribuye sustancialmente a la sostenibilidad\",C27=\"La actividad sí contribuye sustancialmente a la sostenibilidad\"),B27,0),IF(AND('Base-datos'!$B$715=\"Sí\",'Base-datos'!$B$716=\"\",'Base-datos'!$B$717=\"Sí\"),IF(AND(D27=\"La actividad sí contribuye sustancialmente a la sostenibilidad\",C27=\"La actividad sí contribuye sustancialmente a la sostenibilidad\"),B27,0),\"Por definir\"))))))))","v":"Por definir"}]
[{"$f":"Agricultura!$C38","v":"Seleccione"},{"$f":"IF(Agricultura!$E38=Otro!B$12,Agricultura!$B38,\"\")","v":""},{"$f":"_xlfn.XLOOKUP(A28,'Base-datos'!$B$457:$B$509,'Base-datos'!$F$457:$F$509)","v":{"$error":"#N/A"}},{"$f":"_xlfn.XLOOKUP(A28,'Base-datos'!$B$457:$B$509,'Base-datos'!$C$457:$C$509)","v":{"$error":"#N/A"}},{"$f":"_xlfn.XLOOKUP(A28,'Base-datos'!$B$457:$B$509,'Base-datos'!$D$457:$D$509)","v":{"$error":"#N/A"}},null,null,{"$f":"IF(OR(F$13=\"La actividad no cumple con el total de los criterios de No Daño Significativo\",G$13=\"El sector no cumple con las salvaguardas mínimas\"),\"\",IF(AND('Base-datos'!$B$715=\"Sí\",'Base-datos'!$B$716=\"\",'Base-datos'!$B$717=\"\"),IF(D28=\"La actividad sí contribuye sustancialmente a la sostenibilidad\",B28,0),IF(AND('Base-datos'!$B$715=\"Sí\",'Base-datos'!$B$716=\"Sí\",'Base-datos'!$B$717=\"\"),IF(AND(D28=\"La actividad sí contribuye sustancialmente a la sostenibilidad\",E28=\"La actividad sí contribuye sustancialmente a la sostenibilidad\"),B28,0),IF(AND('Base-datos'!$B$715=\"Sí\",'Base-datos'!$B$716=\"Sí\",'Base-datos'!$B$717=\"Sí\"),IF(AND(D28=\"La actividad sí contribuye sustancialmente a la sostenibilidad\",E28=\"La actividad sí contribuye sustancialmente a la sostenibilidad\",C28=\"La actividad sí contribuye sustancialmente a la sostenibilidad\"),B28,0),IF(AND('Base-datos'!$B$715=\"\",'Base-datos'!$B$716=\"Sí\",'Base-datos'!$B$717=\"\"),IF(E28=\"La actividad sí contribuye sustancialmente a la sostenibilidad\",B28,0),IF(AND('Base-datos'!$B$715=\"\",'Base-datos'!$B$716=\"\",'Base-datos'!$B$717=\"Sí\"),IF(C28=\"La actividad sí contribuye sustancialmente a la sostenibilidad\",H29,0),IF(AND('Base-datos'!$B$715=\"\",'Base-datos'!$B$716=\"Sí\",'Base-datos'!$B$717=\"Sí\"),IF(AND(E28=\"La actividad sí contribuye sustancialmente a la sostenibilidad\",C28=\"La actividad sí contribuye sustancialmente a la sostenibilidad\"),B28,0),IF(AND('Base-datos'!$B$715=\"Sí\",'Base-datos'!$B$716=\"\",'Base-datos'!$B$717=\"Sí\"),IF(AND(D28=\"La actividad sí contribuye sustancialmente a la sostenibilidad\",C28=\"La actividad sí contribuye sustancialmente a la sostenibilidad\"),B28,0),\"Por definir\"))))))))","v":"Por definir"}]
[{"$f":"Agricultura!$C40","v":"Seleccione"},{"$f":"IF(Agricultura!$E40=Otro!B$12,Agricultura!$B40,\"\")","v":""},{"$f":"_xlfn.XLOOKUP(A29,'Base-datos'!$B$457:$B$509,'Base-datos'!$F$457:$F$509)","v":{"$error":"#N/A"}},{"$f":"_xlfn.XLOOKUP(A29,'Base-datos'!$B$457:$B$509,'Base-datos'!$C$457:$C$509)","v":{"$error":"#N/A"}},{"$f":"_xlfn.XLOOKUP(A29,'Base-datos'!$B$457:$B$509,'Base-datos'!$D$457:$D$509)","v":{"$error":"#N/A"}},null,null,{"$f":"IF(OR(F$13=\"La actividad no cumple con el total de los criterios de No Daño Significativo\",G$13=\"El sector no cumple con las salvaguardas mínimas\"),\"\",IF(AND('Base-datos'!$B$715=\"Sí\",'Base-datos'!$B$716=\"\",'Base-datos'!$B$717=\"\"),IF(D29=\"La actividad sí contribuye sustancialmente a la sostenibilidad\",B29,0),IF(AND('Base-datos'!$B$715=\"Sí\",'Base-datos'!$B$716=\"Sí\",'Base-datos'!$B$717=\"\"),IF(AND(D29=\"La actividad sí contribuye sustancialmente a la sostenibilidad\",E29=\"La actividad sí contribuye sustancialmente a la sostenibilidad\"),B29,0),IF(AND('Base-datos'!$B$715=\"Sí\",'Base-datos'!$B$716=\"Sí\",'Base-datos'!$B$717=\"Sí\"),IF(AND(D29=\"La actividad sí contribuye sustancialmente a la sostenibilidad\",E29=\"La actividad sí contribuye sustancialmente a la sostenibilidad\",C29=\"La actividad sí contribuye sustancialmente a la sostenibilidad\"),B29,0),IF(AND('Base-datos'!$B$715=\"\",'Base-datos'!$B$716=\"Sí\",'Base-datos'!$B$717=\"\"),IF(E29=\"La actividad sí contribuye sustancialmente a la sostenibilidad\",B29,0),IF(AND('Base-datos'!$B$715=\"\",'Base-datos'!$B$716=\"\",'Base-datos'!$B$717=\"Sí\"),IF(C29=\"La actividad sí contribuye sustancialmente a la sostenibilidad\",H30,0),IF(AND('Base-datos'!$B$715=\"\",'Base-datos'!$B$716=\"Sí\",'Base-datos'!$B$717=\"Sí\"),IF(AND(E29=\"La actividad sí contribuye sustancialmente a la sostenibilidad\",C29=\"La actividad sí contribuye sustancialmente a la sostenibilidad\"),B29,0),IF(AND('Base-datos'!$B$715=\"Sí\",'Base-datos'!$B$716=\"\",'Base-datos'!$B$717=\"Sí\"),IF(AND(D29=\"La actividad sí contribuye sustancialmente a la sostenibilidad\",C29=\"La actividad sí contribuye sustancialmente a la sostenibilidad\"),B29,0),\"Por definir\"))))))))","v":"Por definir"}]
[{"$f":"Agricultura!$C42","v":"Seleccione"},{"$f":"IF(Agricultura!$E42=Otro!B$12,Agricultura!$B42,\"\")","v":""},{"$f":"_xlfn.XLOOKUP(A30,'Base-datos'!$B$457:$B$509,'Base-datos'!$F$457:$F$509)","v":{"$error":"#N/A"}},{"$f":"_xlfn.XLOOKUP(A30,'Base-datos'!$B$457:$B$509,'Base-datos'!$C$457:$C$509)","v":{"$error":"#N/A"}},{"$f":"_xlfn.XLOOKUP(A30,'Base-datos'!$B$457:$B$509,'Base-datos'!$D$457:$D$509)","v":{"$error":"#N/A"}},null,null,{"$f":"IF(OR(F$13=\"La actividad no cumple con el total de los criterios de No Daño Significativo\",G$13=\"El sector no cumple con las salvaguardas mínimas\"),\"\",IF(AND('Base-datos'!$B$715=\"Sí\",'Base-datos'!$B$716=\"\",'Base-datos'!$B$717=\"\"),IF(D30=\"La actividad sí contribuye sustancialmente a la sostenibilidad\",B30,0),IF(AND('Base-datos'!$B$715=\"Sí\",'Base-datos'!$B$716=\"Sí\",'Base-datos'!$B$717=\"\"),IF(AND(D30=\"La actividad sí contribuye sustancialmente a la sostenibilidad\",E30=\"La actividad sí contribuye sustancialmente a la sostenibilidad\"),B30,0),IF(AND('Base-datos'!$B$715=\"Sí\",'Base-datos'!$B$716=\"Sí\",'Base-datos'!$B$717=\"Sí\"),IF(AND(D30=\"La actividad sí contribuye sustancialmente a la sostenibilidad\",E30=\"La actividad sí contribuye sustancialmente a la sostenibilidad\",C30=\"La actividad sí contribuye sustancialmente a la sostenibilidad\"),B30,0),IF(AND('Base-datos'!$B$715=\"\",'Base-datos'!$B$716=\"Sí\",'Base-datos'!$B$717=\"\"),IF(E30=\"La actividad sí contribuye sustancialmente a la sostenibilidad\",B30,0),IF(AND('Base-datos'!$B$715=\"\",'Base-datos'!$B$716=\"\",'Base-datos'!$B$717=\"Sí\"),IF(C30=\"La actividad sí contribuye sustancialmente a la sostenibilidad\",H31,0),IF(AND('Base-datos'!$B$715=\"\",'Base-datos'!$B$716=\"Sí\",'Base-datos'!$B$717=\"Sí\"),IF(AND(E30=\"La actividad sí contribuye sustancialmente a la sostenibilidad\",C30=\"La actividad sí contribuye sustancialmente a la sostenibilidad\"),B30,0),IF(AND('Base-datos'!$B$715=\"Sí\",'Base-datos'!$B$716=\"\",'Base-datos'!$B$717=\"Sí\"),IF(AND(D30=\"La actividad sí contribuye sustancialmente a la sostenibilidad\",C30=\"La actividad sí contribuye sustancialmente a la sostenibilidad\"),B30,0),\"Por definir\"))))))))","v":"Por definir"}]
[{"$f":"Agricultura!$C44","v":"Seleccione"},{"$f":"IF(Agricultura!$E44=Otro!B$12,Agricultura!$B44,\"\")","v":""},{"$f":"_xlfn.XLOOKUP(A31,'Base-datos'!$B$457:$B$509,'Base-datos'!$F$457:$F$509)","v":{"$error":"#N/A"}},{"$f":"_xlfn.XLOOKUP(A31,'Base-datos'!$B$457:$B$509,'Base-datos'!$C$457:$C$509)","v":{"$error":"#N/A"}},{"$f":"_xlfn.XLOOKUP(A31,'Base-datos'!$B$457:$B$509,'Base-datos'!$D$457:$D$509)","v":{"$error":"#N/A"}},null,null,{"$f":"IF(OR(F$13=\"La actividad no cumple con el total de los criterios de No Daño Significativo\",G$13=\"El sector no cumple con las salvaguardas mínimas\"),\"\",IF(AND('Base-datos'!$B$715=\"Sí\",'Base-datos'!$B$716=\"\",'Base-datos'!$B$717=\"\"),IF(D31=\"La actividad sí contribuye sustancialmente a la sostenibilidad\",B31,0),IF(AND('Base-datos'!$B$715=\"Sí\",'Base-datos'!$B$716=\"Sí\",'Base-datos'!$B$717=\"\"),IF(AND(D31=\"La actividad sí contribuye sustancialmente a la sostenibilidad\",E31=\"La actividad sí contribuye sustancialmente a la sostenibilidad\"),B31,0),IF(AND('Base-datos'!$B$715=\"Sí\",'Base-datos'!$B$716=\"Sí\",'Base-datos'!$B$717=\"Sí\"),IF(AND(D31=\"La actividad sí contribuye sustancialmente a la sostenibilidad\",E31=\"La actividad sí contribuye sustancialmente a la sostenibilidad\",C31=\"La actividad sí contribuye sustancialmente a la sostenibilidad\"),B31,0),IF(AND('Base-datos'!$B$715=\"\",'Base-datos'!$B$716=\"Sí\",'Base-datos'!$B$717=\"\"),IF(E31=\"La actividad sí contribuye sustancialmente a la sostenibilidad\",B31,0),IF(AND('Base-datos'!$B$715=\"\",'Base-datos'!$B$716=\"\",'Base-datos'!$B$717=\"Sí\"),IF(C31=\"La actividad sí contribuye sustancialmente a la sostenibilidad\",H32,0),IF(AND('Base-datos'!$B$715=\"\",'Base-datos'!$B$716=\"Sí\",'Base-datos'!$B$717=\"Sí\"),IF(AND(E31=\"La actividad sí contribuye sustancialmente a la sostenibilidad\",C31=\"La actividad sí contribuye sustancialmente a la sostenibilidad\"),B31,0),IF(AND('Base-datos'!$B$715=\"Sí\",'Base-datos'!$B$716=\"\",'Base-datos'!$B$717=\"Sí\"),IF(AND(D31=\"La actividad sí contribuye sustancialmente a la sostenibilidad\",C31=\"La actividad sí contribuye sustancialmente a la sostenibilidad\"),B31,0),\"Por definir\"))))))))","v":"Por definir"}]
[{"$f":"Agricultura!$C46","v":"Seleccione"},{"$f":"IF(Agricultura!$E46=Otro!B$12,Agricultura!$B46,\"\")","v":""},{"$f":"_xlfn.XLOOKUP(A32,'Base-datos'!$B$457:$B$509,'Base-datos'!$F$457:$F$509)","v":{"$error":"#N/A"}},{"$f":"_xlfn.XLOOKUP(A32,'Base-datos'!$B$457:$B$509,'Base-datos'!$C$457:$C$509)","v":{"$error":"#N/A"}},{"$f":"_xlfn.XLOOKUP(A32,'Base-datos'!$B$457:$B$509,'Base-datos'!$D$457:$D$509)","v":{"$error":"#N/A"}},null,null,{"$f":"IF(OR(F$13=\"La actividad no cumple con el total de los criterios de No Daño Significativo\",G$13=\"El sector no cumple con las salvaguardas mínimas\"),\"\",IF(AND('Base-datos'!$B$715=\"Sí\",'Base-datos'!$B$716=\"\",'Base-datos'!$B$717=\"\"),IF(D32=\"La actividad sí contribuye sustancialmente a la sostenibilidad\",B32,0),IF(AND('Base-datos'!$B$715=\"Sí\",'Base-datos'!$B$716=\"Sí\",'Base-datos'!$B$717=\"\"),IF(AND(D32=\"La actividad sí contribuye sustancialmente a la sostenibilidad\",E32=\"La actividad sí contribuye sustancialmente a la sostenibilidad\"),B32,0),IF(AND('Base-datos'!$B$715=\"Sí\",'Base-datos'!$B$716=\"Sí\",'Base-datos'!$B$717=\"Sí\"),IF(AND(D32=\"La actividad sí contribuye sustancialmente a la sostenibilidad\",E32=\"La actividad sí contribuye sustancialmente a la sostenibilidad\",C32=\"La actividad sí contribuye sustancialmente a la sostenibilidad\"),B32,0),IF(AND('Base-datos'!$B$715=\"\",'Base-datos'!$B$716=\"Sí\",'Base-datos'!$B$717=\"\"),IF(E32=\"La actividad sí contribuye sustancialmente a la sostenibilidad\",B32,0),IF(AND('Base-datos'!$B$715=\"\",'Base-datos'!$B$716=\"\",'Base-datos'!$B$717=\"Sí\"),IF(C32=\"La actividad sí contribuye sustancialmente a la sostenibilidad\",H33,0),IF(AND('Base-datos'!$B$715=\"\",'Base-datos'!$B$716=\"Sí\",'Base-datos'!$B$717=\"Sí\"),IF(AND(E32=\"La actividad sí contribuye sustancialmente a la sostenibilidad\",C32=\"La actividad sí contribuye sustancialmente a la sostenibilidad\"),B32,0),IF(AND('Base-datos'!$B$715=\"Sí\",'Base-datos'!$B$716=\"\",'Base-datos'!$B$717=\"Sí\"),IF(AND(D32=\"La actividad sí contribuye sustancialmente a la sostenibilidad\",C32=\"La actividad sí contribuye sustancialmente a la sostenibilidad\"),B32,0),\"Por definir\"))))))))","v":"Por definir"}]
[{"$f":"Agricultura!$C48","v":"Seleccione"},{"$f":"IF(Agricultura!$E48=Otro!B$12,Agricultura!$B48,\"\")","v":""},{"$f":"_xlfn.XLOOKUP(A33,'Base-datos'!$B$457:$B$509,'Base-datos'!$F$457:$F$509)","v":{"$error":"#N/A"}},{"$f":"_xlfn.XLOOKUP(A33,'Base-datos'!$B$457:$B$509,'Base-datos'!$C$457:$C$509)","v":{"$error":"#N/A"}},{"$f":"_xlfn.XLOOKUP(A33,'Base-datos'!$B$457:$B$509,'Base-datos'!$D$457:$D$509)","v":{"$error":"#N/A"}},null,null,{"$f":"IF(OR(F$13=\"La actividad no cumple con el total de los criterios de No Daño Significativo\",G$13=\"El sector no cumple con las salvaguardas mínimas\"),\"\",IF(AND('Base-datos'!$B$715=\"Sí\",'Base-datos'!$B$716=\"\",'Base-datos'!$B$717=\"\"),IF(D33=\"La actividad sí contribuye sustancialmente a la sostenibilidad\",B33,0),IF(AND('Base-datos'!$B$715=\"Sí\",'Base-datos'!$B$716=\"Sí\",'Base-datos'!$B$717=\"\"),IF(AND(D33=\"La actividad sí contribuye sustancialmente a la sostenibilidad\",E33=\"La actividad sí contribuye sustancialmente a la sostenibilidad\"),B33,0),IF(AND('Base-datos'!$B$715=\"Sí\",'Base-datos'!$B$716=\"Sí\",'Base-datos'!$B$717=\"Sí\"),IF(AND(D33=\"La actividad sí contribuye sustancialmente a la sostenibilidad\",E33=\"La actividad sí contribuye sustancialmente a la sostenibilidad\",C33=\"La actividad sí contribuye sustancialmente a la sostenibilidad\"),B33,0),IF(AND('Base-datos'!$B$715=\"\",'Base-datos'!$B$716=\"Sí\",'Base-datos'!$B$717=\"\"),IF(E33=\"La actividad sí contribuye sustancialmente a la sostenibilidad\",B33,0),IF(AND('Base-datos'!$B$715=\"\",'Base-datos'!$B$716=\"\",'Base-datos'!$B$717=\"Sí\"),IF(C33=\"La actividad sí contribuye sustancialmente a la sostenibilidad\",H34,0),IF(AND('Base-datos'!$B$715=\"\",'Base-datos'!$B$716=\"Sí\",'Base-datos'!$B$717=\"Sí\"),IF(AND(E33=\"La actividad sí contribuye sustancialmente a la sostenibilidad\",C33=\"La actividad sí contribuye sustancialmente a la sostenibilidad\"),B33,0),IF(AND('Base-datos'!$B$715=\"Sí\",'Base-datos'!$B$716=\"\",'Base-datos'!$B$717=\"Sí\"),IF(AND(D33=\"La actividad sí contribuye sustancialmente a la sostenibilidad\",C33=\"La actividad sí contribuye sustancialmente a la sostenibilidad\"),B33,0),\"Por definir\"))))))))","v":"Por definir"}]
["Forestal",null,null,null,null,null,null,{"$f":"SUM(IF(FREQUENCY(MATCH(A35:A54, A35:A54, 0), MATCH(A35:A54, A35:A54, 0)) > 0, IF(NOT(ISERROR(H35:H54)), H35:H54, 0)))","v":0}]
[{"$f":"Forestal!$C10","v":"Seleccione"},{"$f":"IF(Forestal!$E10=Otro!B$12,Forestal!$B10,\"\")","v":""},{"$f":"_xlfn.XLOOKUP(A35,'Base-datos'!$B$517:$B$520,'Base-datos'!$F$517:$F$520)","v":{"$error":"#N/A"}},{"$f":"_xlfn.XLOOKUP(A35,'Base-datos'!$B$517:$B$520,'Base-datos'!$C$517:$C$520)","v":{"$error":"#N/A"}},{"$f":"_xlfn.XLOOKUP(A35,'Base-datos'!$B$517:$B$520,'Base-datos'!$D$517:$D$520)","v":{"$error":"#N/A"}},{"$f":"IF(COUNTIF('Forestal-NDS'!I7:I48,\"No\")>0,\"La actividad no cumple con el total de los criterios de NDS\",\"La actividad cumple con los criterios de No Daño Significativo\")","v":"La actividad cumple con los criterios de No Daño Significativo"},{"$f":"IF(OR('Salvaguardas mínimas'!$G$10=\"Seleccione\",'Salvaguardas mínimas'!$G$13=\"Seleccione\",'Salvaguardas mínimas'!$G$16=\"Seleccione\",'Salvaguardas mínimas'!$G$7=\"Seleccione\"),\"No se han respondido todas las preguntas\",IF(OR('Salvaguardas mínimas'!$G$10=\"No\",'Salvaguardas mínimas'!$G$13=\"No\",'Salvaguardas mínimas'!$G$16=\"No\",'Salvaguardas mínimas'!$G$7=\"No\"),\"El sector no cumple con las salvaguardas mínimas\",\"La actividad sí cumple con las salvaguardas mínimas\"))","v":"No se han respondido todas las preguntas"},{"$f":"IF(OR(F$35=\"La actividad no cumple con el total de los criterios de No Daño Significativo\",G$35=\"El sector no cumple con las salvaguardas mínimas\"),\"\",IF(AND('Base-datos'!$B$720=\"Sí\",'Base-datos'!$B$721=\"\",'Base-datos'!$B$722=\"\"),IF(D35=\"La actividad sí contribuye sustancialmente a la sostenibilidad\",B35,0),IF(AND('Base-datos'!$B$720=\"Sí\",'Base-datos'!$B$721=\"Sí\",'Base-datos'!$B$722=\"\"),IF(AND(D35=\"La actividad sí contribuye sustancialmente a la sostenibilidad\",E35=\"La actividad sí contribuye sustancialmente a la sostenibilidad\"),B35,0),IF(AND('Base-datos'!$B$720=\"Sí\",'Base-datos'!$B$721=\"Sí\",'Base-datos'!$B$722=\"Sí\"),IF(AND(D35=\"La actividad sí contribuye sustancialmente a la sostenibilidad\",E35=\"La actividad sí contribuye sustancialmente a la sostenibilidad\",C35=\"La actividad sí contribuye sustancialmente a la sostenibilidad\"),B35,0),IF(AND('Base-datos'!$B$720=\"\",'Base-datos'!$B$721=\"Sí\",'Base-datos'!$B$722=\"\"),IF(E35=\"La actividad sí contribuye sustancialmente a la sostenibilidad\",B35,0),IF(AND('Base-datos'!$B$720=\"\",'Base-datos'!$B$721=\"\",'Base-datos'!$B$722=\"Sí\"),IF(C35=\"La actividad sí contribuye sustancialmente a la sostenibilidad\",B35,0),IF(AND('Base-datos'!$B$720=\"\",'Base-datos'!$B$721=\"Sí\",'Base-datos'!$B$722=\"Sí\"),IF(AND(E35=\"La actividad sí contribuye sustancialmente a la sostenibilidad\",C35=\"La actividad sí contribuye sustancialmente a la sostenibilidad\"),B35,0),IF(AND('Base-datos'!$B$720=\"Sí\",'Base-datos'!$B$721=\"\",'Base-datos'!$B$722=\"Sí\"),IF(AND(D35=\"La actividad sí contribuye sustancialmente a la sostenibilidad\",C35=\"La actividad sí contribuye sustancialmente a la sostenibilidad\"),B35,0),\"Por definir\"))))))))","v":"Por definir"}]
[{"$f":"Forestal!$C12","v":"Seleccione"},{"$f":"IF(Forestal!$E12=Otro!B$12,Forestal!$B12,\"\")","v":""},{"$f":"_xlfn.XLOOKUP(A36,'Base-datos'!$B$517:$B$520,'Base-datos'!$F$517:$F$520)","v":{"$error":"#N/A"}},{"$f":"_xlfn.XLOOKUP(A36,'Base-datos'!$B$517:$B$520,'Base-datos'!$C$517:$C$520)","v":{"$error":"#N/A"}},{"$f":"_xlfn.XLOOKUP(A36,'Base-datos'!$B$517:$B$520,'Base-datos'!$D$517:$D$520)","v":{"$error":"#N/A"}},null,null,{"$f":"IF(OR(F$35=\"La actividad no cumple con el total de los criterios de No Daño Significativo\",G$35=\"El sector no cumple con las salvaguardas mínimas\"),\"\",IF(AND('Base-datos'!$B$720=\"Sí\",'Base-datos'!$B$721=\"\",'Base-datos'!$B$722=\"\"),IF(D36=\"La actividad sí contribuye sustancialmente a la sostenibilidad\",B36,0),IF(AND('Base-datos'!$B$720=\"Sí\",'Base-datos'!$B$721=\"Sí\",'Base-datos'!$B$722=\"\"),IF(AND(D36=\"La actividad sí contribuye sustancialmente a la sostenibilidad\",E36=\"La actividad sí contribuye sustancialmente a la sostenibilidad\"),B36,0),IF(AND('Base-datos'!$B$720=\"Sí\",'Base-datos'!$B$721=\"Sí\",'Base-datos'!$B$722=\"Sí\"),IF(AND(D36=\"La actividad sí contribuye sustancialmente a la sostenibilidad\",E36=\"La actividad sí contribuye sustancialmente a la sostenibilidad\",C36=\"La actividad sí contribuye sustancialmente a la sostenibilidad\"),B36,0),IF(AND('Base-datos'!$B$720=\"\",'Base-datos'!$B$721=\"Sí\",'Base-datos'!$B$722=\"\"),IF(E36=\"La actividad sí contribuye sustancialmente a la sostenibilidad\",B36,0),IF(AND('Base-datos'!$B$720=\"\",'Base-datos'!$B$721=\"\",'Base-datos'!$B$722=\"Sí\"),IF(C36=\"La actividad sí contribuye sustancialmente a la sostenibilidad\",B36,0),IF(AND('Base-datos'!$B$720=\"\",'Base-datos'!$B$721=\"Sí\",'Base-datos'!$B$722=\"Sí\"),IF(AND(E36=\"La actividad sí contribuye sustancialmente a la sostenibilidad\",C36=\"La actividad sí contribuye sustancialmente a la sostenibilidad\"),B36,0),IF(AND('Base-datos'!$B$720=\"Sí\",'Base-datos'!$B$721=\"\",'Base-datos'!$B$722=\"Sí\"),IF(AND(D36=\"La actividad sí contribuye sustancialmente a la sostenibilidad\",C36=\"La actividad sí contribuye sustancialmente a la sostenibilidad\"),B36,0),\"Por definir\"))))))))","v":"Por definir"}]
[{"$f":"Forestal!$C14","v":"Seleccione"},{"$f":"IF(Forestal!$E14=Otro!B$12,Forestal!$B14,\"\")","v":""},{"$f":"_xlfn.XLOOKUP(A37,'Base-datos'!$B$517:$B$520,'Base-datos'!$F$517:$F$520)","v":{"$error":"#N/A"}},{"$f":"_xlfn.XLOOKUP(A37,'Base-datos'!$B$517:$B$520,'Base-datos'!$C$517:$C$520)","v":{"$error":"#N/A"}},{"$f":"_xlfn.XLOOKUP(A37,'Base-datos'!$B$517:$B$520,'Base-datos'!$D$517:$D$520)","v":{"$error":"#N/A"}},null,null,{"$f":"IF(OR(F$35=\"La actividad no cumple con el total de los criterios de No Daño Significativo\",G$35=\"El sector no cumple con las salvaguardas mínimas\"),\"\",IF(AND('Base-datos'!$B$720=\"Sí\",'Base-datos'!$B$721=\"\",'Base-datos'!$B$722=\"\"),IF(D37=\"La actividad sí contribuye sustancialmente a la sostenibilidad\",B37,0),IF(AND('Base-datos'!$B$720=\"Sí\",'Base-datos'!$B$721=\"Sí\",'Base-datos'!$B$722=\"\"),IF(AND(D37=\"La actividad sí contribuye sustancialmente a la sostenibilidad\",E37=\"La actividad sí contribuye sustancialmente a la sostenibilidad\"),B37,0),IF(AND('Base-datos'!$B$720=\"Sí\",'Base-datos'!$B$721=\"Sí\",'Base-datos'!$B$722=\"Sí\"),IF(AND(D37=\"La actividad sí contribuye sustancialmente a la sostenibilidad\",E37=\"La actividad sí contribuye sustancialmente a la sostenibilidad\",C37=\"La actividad sí contribuye sustancialmente a la sostenibilidad\"),B37,0),IF(AND('Base-datos'!$B$720=\"\",'Base-datos'!$B$721=\"Sí\",'Base-datos'!$B$722=\"\"),IF(E37=\"La actividad sí contribuye sustancialmente a la sostenibilidad\",B37,0),IF(AND('Base-datos'!$B$720=\"\",'Base-datos'!$B$721=\"\",'Base-datos'!$B$722=\"Sí\"),IF(C37=\"La actividad sí contribuye sustancialmente a la sostenibilidad\",B37,0),IF(AND('Base-datos'!$B$720=\"\",'Base-datos'!$B$721=\"Sí\",'Base-datos'!$B$722=\"Sí\"),IF(AND(E37=\"La actividad sí contribuye sustancialmente a la sostenibilidad\",C37=\"La actividad sí contribuye sustancialmente a la sostenibilidad\"),B37,0),IF(AND('Base-datos'!$B$720=\"Sí\",'Base-datos'!$B$721=\"\",'Base-datos'!$B$722=\"Sí\"),IF(AND(D37=\"La actividad sí contribuye sustancialmente a la sostenibilidad\",C37=\"La actividad sí contribuye sustancialmente a la sostenibilidad\"),B37,0),\"Por definir\"))))))))","v":"Por definir"}]
[{"$f":"Forestal!$C16","v":"Seleccione"},{"$f":"IF(Forestal!$E16=Otro!B$12,Forestal!$B16,\"\")","v":""},{"$f":"_xlfn.XLOOKUP(A38,'Base-datos'!$B$517:$B$520,'Base-datos'!$F$517:$F$520)","v":{"$error":"#N/A"}},{"$f":"_xlfn.XLOOKUP(A38,'Base-datos'!$B$517:$B$520,'Base-datos'!$C$517:$C$520)","v":{"$error":"#N/A"}},{"$f":"_xlfn.XLOOKUP(A38,'Base-datos'!$B$517:$B$520,'Base-datos'!$D$517:$D$520)","v":{"$error":"#N/A"}},null,null,{"$f":"IF(OR(F$35=\"La actividad no cumple con el total de los criterios de No Daño Significativo\",G$35=\"El sector no cumple con las salvaguardas mínimas\"),\"\",IF(AND('Base-datos'!$B$720=\"Sí\",'Base-datos'!$B$721=\"\",'Base-datos'!$B$722=\"\"),IF(D38=\"La actividad sí contribuye sustancialmente a la sostenibilidad\",B38,0),IF(AND('Base-datos'!$B$720=\"Sí\",'Base-datos'!$B$721=\"Sí\",'Base-datos'!$B$722=\"\"),IF(AND(D38=\"La actividad sí contribuye sustancialmente a la sostenibilidad\",E38=\"La actividad sí contribuye sustancialmente a la sostenibilidad\"),B38,0),IF(AND('Base-datos'!$B$720=\"Sí\",'Base-datos'!$B$721=\"Sí\",'Base-datos'!$B$722=\"Sí\"),IF(AND(D38=\"La actividad sí contribuye sustancialmente a la sostenibilidad\",E38=\"La actividad sí contribuye sustancialmente a la sostenibilidad\",C38=\"La actividad sí contribuye sustancialmente a la sostenibilidad\"),B38,0),IF(AND('Base-datos'!$B$720=\"\",'Base-datos'!$B$721=\"Sí\",'Base-datos'!$B$722=\"\"),IF(E38=\"La actividad sí contribuye sustancialmente a la sostenibilidad\",B38,0),IF(AND('Base-datos'!$B$720=\"\",'Base-datos'!$B$721=\"\",'Base-datos'!$B$722=\"Sí\"),IF(C38=\"La actividad sí contribuye sustancialmente a la sostenibilidad\",B38,0),IF(AND('Base-datos'!$B$720=\"\",'Base-datos'!$B$721=\"Sí\",'Base-datos'!$B$722=\"Sí\"),IF(AND(E38=\"La actividad sí contribuye sustancialmente a la sostenibilidad\",C38=\"La actividad sí contribuye sustancialmente a la sostenibilidad\"),B38,0),IF(AND('Base-datos'!$B$720=\"Sí\",'Base-datos'!$B$721=\"\",'Base-datos'!$B$722=\"Sí\"),IF(AND(D38=\"La actividad sí contribuye sustancialmente a la sostenibilidad\",C38=\"La actividad sí contribuye sustancialmente a la sostenibilidad\"),B38,0),\"Por definir\"))))))))","v":"Por definir"}]
[{"$f":"Forestal!$C18","v":"Seleccione"},{"$f":"IF(Forestal!$E18=Otro!B$12,Forestal!$B18,\"\")","v":""},{"$f":"_xlfn.XLOOKUP(A39,'Base-datos'!$B$517:$B$520,'Base-datos'!$F$517:$F$520)","v":{"$error":"#N/A"}},{"$f":"_xlfn.XLOOKUP(A39,'Base-datos'!$B$517:$B$520,'Base-datos'!$C$517:$C$520)","v":{"$error":"#N/A"}},{"$f":"_xlfn.XLOOKUP(A39,'Base-datos'!$B$517:$B$520,'Base-datos'!$D$517:$D$520)","v":{"$error":"#N/A"}},null,null,{"$f":"IF(OR(F$35=\"La actividad no cumple con el total de los criterios de No Daño Significativo\",G$35=\"El sector no cumple con las salvaguardas mínimas\"),\"\",IF(AND('Base-datos'!$B$720=\"Sí\",'Base-datos'!$B$721=\"\",'Base-datos'!$B$722=\"\"),IF(D39=\"La actividad sí contribuye sustancialmente a la sostenibilidad\",B39,0),IF(AND('Base-datos'!$B$720=\"Sí\",'Base-datos'!$B$721=\"Sí\",'Base-datos'!$B$722=\"\"),IF(AND(D39=\"La actividad sí contribuye sustancialmente a la sostenibilidad\",E39=\"La actividad sí contribuye sustancialmente a la sostenibilidad\"),B39,0),IF(AND('Base-datos'!$B$720=\"Sí\",'Base-datos'!$B$721=\"Sí\",'Base-datos'!$B$722=\"Sí\"),IF(AND(D39=\"La actividad sí contribuye sustancialmente a la sostenibilidad\",E39=\"La actividad sí contribuye sustancialmente a la sostenibilidad\",C39=\"La actividad sí contribuye sustancialmente a la sostenibilidad\"),B39,0),IF(AND('Base-datos'!$B$720=\"\",'Base-datos'!$B$721=\"Sí\",'Base-datos'!$B$722=\"\"),IF(E39=\"La actividad sí contribuye sustancialmente a la sostenibilidad\",B39,0),IF(AND('Base-datos'!$B$720=\"\",'Base-datos'!$B$721=\"\",'Base-datos'!$B$722=\"Sí\"),IF(C39=\"La actividad sí contribuye sustancialmente a la sostenibilidad\",B39,0),IF(AND('Base-datos'!$B$720=\"\",'Base-datos'!$B$721=\"Sí\",'Base-datos'!$B$722=\"Sí\"),IF(AND(E39=\"La actividad sí contribuye sustancialmente a la sostenibilidad\",C39=\"La actividad sí contribuye sustancialmente a la sostenibilidad\"),B39,0),IF(AND('Base-datos'!$B$720=\"Sí\",'Base-datos'!$B$721=\"\",'Base-datos'!$B$722=\"Sí\"),IF(AND(D39=\"La actividad sí contribuye sustancialmente a la sostenibilidad\",C39=\"La actividad sí contribuye sustancialmente a la sostenibilidad\"),B39,0),\"Por definir\"))))))))","v":"Por definir"}]
[{"$f":"Forestal!$C20","v":"Seleccione"},{"$f":"IF(Forestal!$E20=Otro!B$12,Forestal!$B20,\"\")","v":""},{"$f":"_xlfn.XLOOKUP(A40,'Base-datos'!$B$517:$B$520,'Base-datos'!$F$517:$F$520)","v":{"$error":"#N/A"}},{"$f":"_xlfn.XLOOKUP(A40,'Base-datos'!$B$517:$B$520,'Base-datos'!$C$517:$C$520)","v":{"$error":"#N/A"}},{"$f":"_xlfn.XLOOKUP(A40,'Base-datos'!$B$517:$B$520,'Base-datos'!$D$517:$D$520)","v":{"$error":"#N/A"}},null,null,{"$f":"IF(OR(F$35=\"La actividad no cumple con el total de los criterios de No Daño Significativo\",G$35=\"El sector no cumple con las salvaguardas mínimas\"),\"\",IF(AND('Base-datos'!$B$720=\"Sí\",'Base-datos'!$B$721=\"\",'Base-datos'!$B$722=\"\"),IF(D40=\"La actividad sí contribuye sustancialmente a la sostenibilidad\",B40,0),IF(AND('Base-datos'!$B$720=\"Sí\",'Base-datos'!$B$721=\"Sí\",'Base-datos'!$B$722=\"\"),IF(AND(D40=\"La actividad sí contribuye sustancialmente a la sostenibilidad\",E40=\"La actividad sí contribuye sustancialmente a la sostenibilidad\"),B40,0),IF(AND('Base-datos'!$B$720=\"Sí\",'Base-datos'!$B$721=\"Sí\",'Base-datos'!$B$722=\"Sí\"),IF(AND(D40=\"La actividad sí contribuye sustancialmente a la sostenibilidad\",E40=\"La actividad sí contribuye sustancialmente a la sostenibilidad\",C40=\"La actividad sí contribuye sustancialmente a la sostenibilidad\"),B40,0),IF(AND('Base-datos'!$B$720=\"\",'Base-datos'!$B$721=\"Sí\",'Base-datos'!$B$722=\"\"),IF(E40=\"La actividad sí contribuye sustancialmente a la sostenibilidad\",B40,0),IF(AND('Base-datos'!$B$720=\"\",'Base-datos'!$B$721=\"\",'Base-datos'!$B$722=\"Sí\"),IF(C40=\"La actividad sí contribuye sustancialmente a la sostenibilidad\",B40,0),IF(AND('Base-datos'!$B$720=\"\",'Base-datos'!$B$721=\"Sí\",'Base-datos'!$B$722=\"Sí\"),IF(AND(E40=\"La actividad sí contribuye sustancialmente a la sostenibilidad\",C40=\"La actividad sí contribuye sustancialmente a la sostenibilidad\"),B40,0),IF(AND('Base-datos'!$B$720=\"Sí\",'Base-datos'!$B$721=\"\",'Base-datos'!$B$722=\"Sí\"),IF(AND(D40=\"La actividad sí contribuye sustancialmente a la sostenibilidad\",C40=\"La actividad sí contribuye sustancialmente a la sostenibilidad\"),B40,0),\"Por definir\"))))))))","v":"Por definir"}]
[{"$f":"Forestal!$C22","v":"Seleccione"},{"$f":"IF(Forestal!$E22=Otro!B$12,Forestal!$B22,\"\")","v":""},{"$f":"_xlfn.XLOOKUP(A41,'Base-datos'!$B$517:$B$520,'Base-datos'!$F$517:$F$520)","v":{"$error":"#N/A"}},{"$f":"_xlfn.XLOOKUP(A41,'Base-datos'!$B$517:$B$520,'Base-datos'!$C$517:$C$520)","v":{"$error":"#N/A"}},{"$f":"_xlfn.XLOOKUP(A41,'Base-datos'!$B$517:$B$520,'Base-datos'!$D$517:$D$520)","v":{"$error":"#N/A"}},null,null,{"$f":"IF(OR(F$35=\"La actividad no cumple con el total de los criterios de No Daño Significativo\",G$35=\"El sector no cumple con las salvaguardas mínimas\"),\"\",IF(AND('Base-datos'!$B$720=\"Sí\",'Base-datos'!$B$721=\"\",'Base-datos'!$B$722=\"\"),IF(D41=\"La actividad sí contribuye sustancialmente a la sostenibilidad\",B41,0),IF(AND('Base-datos'!$B$720=\"Sí\",'Base-datos'!$B$721=\"Sí\",'Base-datos'!$B$722=\"\"),IF(AND(D41=\"La actividad sí contribuye sustancialmente a la sostenibilidad\",E41=\"La actividad sí contribuye sustancialmente a la sostenibilidad\"),B41,0),IF(AND('Base-datos'!$B$720=\"Sí\",'Base-datos'!$B$721=\"Sí\",'Base-datos'!$B$722=\"Sí\"),IF(AND(D41=\"La actividad sí contribuye sustancialmente a la sostenibilidad\",E41=\"La actividad sí contribuye sustancialmente a la sostenibilidad\",C41=\"La actividad sí contribuye sustancialmente a la sostenibilidad\"),B41,0),IF(AND('Base-datos'!$B$720=\"\",'Base-datos'!$B$721=\"Sí\",'Base-datos'!$B$722=\"\"),IF(E41=\"La actividad sí contribuye sustancialmente a la sostenibilidad\",B41,0),IF(AND('Base-datos'!$B$720=\"\",'Base-datos'!$B$721=\"\",'Base-datos'!$B$722=\"Sí\"),IF(C41=\"La actividad sí contribuye sustancialmente a la sostenibilidad\",B41,0),IF(AND('Base-datos'!$B$720=\"\",'Base-datos'!$B$721=\"Sí\",'Base-datos'!$B$722=\"Sí\"),IF(AND(E41=\"La actividad sí contribuye sustancialmente a la sostenibilidad\",C41=\"La actividad sí contribuye sustancialmente a la sostenibilidad\"),B41,0),IF(AND('Base-datos'!$B$720=\"Sí\",'Base-datos'!$B$721=\"\",'Base-datos'!$B$722=\"Sí\"),IF(AND(D41=\"La actividad sí contribuye sustancialmente a la sostenibilidad\",C41=\"La actividad sí contribuye sustancialmente a la sostenibilidad\"),B41,0),\"Por definir\"))))))))","v":"Por definir"}]
[{"$f":"Forestal!$C24","v":"Seleccione"},{"$f":"IF(Forestal!$E24=Otro!B$12,Forestal!$B24,\"\")","v":""},{"$f":"_xlfn.XLOOKUP(A42,'Base-datos'!$B$517:$B$520,'Base-datos'!$F$517:$F$520)","v":{"$error":"#N/A"}},{"$f":"_xlfn.XLOOKUP(A42,'Base-datos'!$B$517:$B$520,'Base-datos'!$C$517:$C$520)","v":{"$error":"#N/A"}},{"$f":"_xlfn.XLOOKUP(A42,'Base-datos'!$B$517:$B$520,'Base-datos'!$D$517:$D$520)","v":{"$error":"#N/A"}},null,null,{"$f":"IF(OR(F$35=\"La actividad no cumple con el total de los criterios de No Daño Significativo\",G$35=\"El sector no cumple con las salvaguardas mínimas\"),\"\",IF(AND('Base-datos'!$B$720=\"Sí\",'Base-datos'!$B$721=\"\",'Base-datos'!$B$722=\"\"),IF(D42=\"La actividad sí contribuye sustancialmente a la sostenibilidad\",B42,0),IF(AND('Base-datos'!$B$720=\"Sí\",'Base-datos'!$B$721=\"Sí\",'Base-datos'!$B$722=\"\"),IF(AND(D42=\"La actividad sí contribuye sustancialmente a la sostenibilidad\",E42=\"La actividad sí contribuye sustancialmente a la sostenibilidad\"),B42,0),IF(AND('Base-datos'!$B$720=\"Sí\",'Base-datos'!$B$721=\"Sí\",'Base-datos'!$B$722=\"Sí\"),IF(AND(D42=\"La actividad sí contribuye sustancialmente a la sostenibilidad\",E42=\"La actividad sí contribuye sustancialmente a la sostenibilidad\",C42=\"La actividad sí contribuye sustancialmente a la sostenibilidad\"),B42,0),IF(AND('Base-datos'!$B$720=\"\",'Base-datos'!$B$721=\"Sí\",'Base-datos'!$B$722=\"\"),IF(E42=\"La actividad sí contribuye sustancialmente a la sostenibilidad\",B42,0),IF(AND('Base-datos'!$B$720=\"\",'Base-datos'!$B$721=\"\",'Base-datos'!$B$722=\"Sí\"),IF(C42=\"La actividad sí contribuye sustancialmente a la sostenibilidad\",B42,0),IF(AND('Base-datos'!$B$720=\"\",'Base-datos'!$B$721=\"Sí\",'Base-datos'!$B$722=\"Sí\"),IF(AND(E42=\"La actividad sí contribuye sustancialmente a la sostenibilidad\",C42=\"La actividad sí contribuye sustancialmente a la sostenibilidad\"),B42,0),IF(AND('Base-datos'!$B$720=\"Sí\",'Base-datos'!$B$721=\"\",'Base-datos'!$B$722=\"Sí\"),IF(AND(D42=\"La actividad sí contribuye sustancialmente a la sostenibilidad\",C42=\"La actividad sí contribuye sustancialmente a la sostenibilidad\"),B42,0),\"Por definir\"))))))))","v":"Por definir"}]
[{"$f":"Forestal!$C26","v":"Seleccione"},{"$f":"IF(Forestal!$E26=Otro!B$12,Forestal!$B26,\"\")","v":""},{"$f":"_xlfn.XLOOKUP(A43,'Base-datos'!$B$517:$B$520,'Base-datos'!$F$517:$F$520)","v":{"$error":"#N/A"}},{"$f":"_xlfn.XLOOKUP(A43,'Base-datos'!$B$517:$B$520,'Base-datos'!$C$517:$C$520)","v":{"$error":"#N/A"}},{"$f":"_xlfn.XLOOKUP(A43,'Base-datos'!$B$517:$B$520,'Base-datos'!$D$517:$D$520)","v":{"$error":"#N/A"}},null,null,{"$f":"IF(OR(F$35=\"La actividad no cumple con el total de los criterios de No Daño Significativo\",G$35=\"El sector no cumple con las salvaguardas mínimas\"),\"\",IF(AND('Base-datos'!$B$720=\"Sí\",'Base-datos'!$B$721=\"\",'Base-datos'!$B$722=\"\"),IF(D43=\"La actividad sí contribuye sustancialmente a la sostenibilidad\",B43,0),IF(AND('Base-datos'!$B$720=\"Sí\",'Base-datos'!$B$721=\"Sí\",'Base-datos'!$B$722=\"\"),IF(AND(D43=\"La actividad sí contribuye sustancialmente a la sostenibilidad\",E43=\"La actividad sí contribuye sustancialmente a la sostenibilidad\"),B43,0),IF(AND('Base-datos'!$B$720=\"Sí\",'Base-datos'!$B$721=\"Sí\",'Base-datos'!$B$722=\"Sí\"),IF(AND(D43=\"La actividad sí contribuye sustancialmente a la sostenibilidad\",E43=\"La actividad sí contribuye sustancialmente a la sostenibilidad\",C43=\"La actividad sí contribuye sustancialmente a la sostenibilidad\"),B43,0),IF(AND('Base-datos'!$B$720=\"\",'Base-datos'!$B$721=\"Sí\",'Base-datos'!$B$722=\"\"),IF(E43=\"La actividad sí contribuye sustancialmente a la sostenibilidad\",B43,0),IF(AND('Base-datos'!$B$720=\"\",'Base-datos'!$B$721=\"\",'Base-datos'!$B$722=\"Sí\"),IF(C43=\"La actividad sí contribuye sustancialmente a la sostenibilidad\",B43,0),IF(AND('Base-datos'!$B$720=\"\",'Base-datos'!$B$721=\"Sí\",'Base-datos'!$B$722=\"Sí\"),IF(AND(E43=\"La actividad sí contribuye sustancialmente a la sostenibilidad\",C43=\"La actividad sí contribuye sustancialmente a la sostenibilidad\"),B43,0),IF(AND('Base-datos'!$B$720=\"Sí\",'Base-datos'!$B$721=\"\",'Base-datos'!$B$722=\"Sí\"),IF(AND(D43=\"La actividad sí contribuye sustancialmente a la sostenibilidad\",C43=\"La actividad sí contribuye sustancialmente a la sostenibilidad\"),B43,0),\"Por definir\"))))))))","v":"Por definir"}]
[{"$f":"Forestal!$C28","v":"Seleccione"},{"$f":"IF(Forestal!$E28=Otro!B$12,Forestal!$B28,\"\")","v":""},{"$f":"_xlfn.XLOOKUP(A44,'Base-datos'!$B$517:$B$520,'Base-datos'!$F$517:$F$520)","v":{"$error":"#N/A"}},{"$f":"_xlfn.XLOOKUP(A44,'Base-datos'!$B$517:$B$520,'Base-datos'!$C$517:$C$520)","v":{"$error":"#N/A"}},{"$f":"_xlfn.XLOOKUP(A44,'Base-datos'!$B$517:$B$520,'Base-datos'!$D$517:$D$520)","v":{"$error":"#N/A"}},null,null,{"$f":"IF(OR(F$35=\"La actividad no cumple con el total de los criterios de No Daño Significativo\",G$35=\"El sector no cumple con las salvaguardas mínimas\"),\"\",IF(AND('Base-datos'!$B$720=\"Sí\",'Base-datos'!$B$721=\"\",'Base-datos'!$B$722=\"\"),IF(D44=\"La actividad sí contribuye sustancialmente a la sostenibilidad\",B44,0),IF(AND('Base-datos'!$B$720=\"Sí\",'Base-datos'!$B$721=\"Sí\",'Base-datos'!$B$722=\"\"),IF(AND(D44=\"La actividad sí contribuye sustancialmente a la sostenibilidad\",E44=\"La actividad sí contribuye sustancialmente a la sostenibilidad\"),B44,0),IF(AND('Base-datos'!$B$720=\"Sí\",'Base-datos'!$B$721=\"Sí\",'Base-datos'!$B$722=\"Sí\"),IF(AND(D44=\"La actividad sí contribuye sustancialmente a la sostenibilidad\",E44=\"La actividad sí contribuye sustancialmente a la sostenibilidad\",C44=\"La actividad sí contribuye sustancialmente a la sostenibilidad\"),B44,0),IF(AND('Base-datos'!$B$720=\"\",'Base-datos'!$B$721=\"Sí\",'Base-datos'!$B$722=\"\"),IF(E44=\"La actividad sí contribuye sustancialmente a la sostenibilidad\",B44,0),IF(AND('Base-datos'!$B$720=\"\",'Base-datos'!$B$721=\"\",'Base-datos'!$B$722=\"Sí\"),IF(C44=\"La actividad sí contribuye sustancialmente a la sostenibilidad\",B44,0),IF(AND('Base-datos'!$B$720=\"\",'Base-datos'!$B$721=\"Sí\",'Base-datos'!$B$722=\"Sí\"),IF(AND(E44=\"La actividad sí contribuye sustancialmente a la sostenibilidad\",C44=\"La actividad sí contribuye sustancialmente a la sostenibilidad\"),B44,0),IF(AND('Base-datos'!$B$720=\"Sí\",'Base-datos'!$B$721=\"\",'Base-datos'!$B$722=\"Sí\"),IF(AND(D44=\"La actividad sí contribuye sustancialmente a la sostenibilidad\",C44=\"La actividad sí contribuye sustancialmente a la sostenibilidad\"),B44,0),\"Por definir\"))))))))","v":"Por definir"}]
[{"$f":"Forestal!$C30","v":"Seleccione"},{"$f":"IF(Forestal!$E30=Otro!B$12,Forestal!$B30,\"\")","v":""},{"$f":"_xlfn.XLOOKUP(A45,'Base-datos'!$B$517:$B$520,'Base-datos'!$F$517:$F$520)","v":{"$error":"#N/A"}},{"$f":"_xlfn.XLOOKUP(A45,'Base-datos'!$B$517:$B$520,'Base-datos'!$C$517:$C$520)","v":{"$error":"#N/A"}},{"$f":"_xlfn.XLOOKUP(A45,'Base-datos'!$B$517:$B$520,'Base-datos'!$D$517:$D$520)","v":{"$error":"#N/A"}},null,null,{"$f":"IF(OR(F$35=\"La actividad no cumple con el total de los criterios de No Daño Significativo\",G$35=\"El sector no cumple con las salvaguardas mínimas\"),\"\",IF(AND('Base-datos'!$B$720=\"Sí\",'Base-datos'!$B$721=\"\",'Base-datos'!$B$722=\"\"),IF(D45=\"La actividad sí contribuye sustancialmente a la sostenibilidad\",B45,0),IF(AND('Base-datos'!$B$720=\"Sí\",'Base-datos'!$B$721=\"Sí\",'Base-datos'!$B$722=\"\"),IF(AND(D45=\"La actividad sí contribuye sustancialmente a la sostenibilidad\",E45=\"La actividad sí contribuye sustancialmente a la sostenibilidad\"),B45,0),IF(AND('Base-datos'!$B$720=\"Sí\",'Base-datos'!$B$721=\"Sí\",'Base-datos'!$B$722=\"Sí\"),IF(AND(D45=\"La actividad sí contribuye sustancialmente a la sostenibilidad\",E45=\"La actividad sí contribuye sustancialmente a la sostenibilidad\",C45=\"La actividad sí contribuye sustancialmente a la sostenibilidad\"),B45,0),IF(AND('Base-datos'!$B$720=\"\",'Base-datos'!$B$721=\"Sí\",'Base-datos'!$B$722=\"\"),IF(E45=\"La actividad sí contribuye sustancialmente a la sostenibilidad\",B45,0),IF(AND('Base-datos'!$B$720=\"\",'Base-datos'!$B$721=\"\",'Base-datos'!$B$722=\"Sí\"),IF(C45=\"La actividad sí contribuye sustancialmente a la sostenibilidad\",B45,0),IF(AND('Base-datos'!$B$720=\"\",'Base-datos'!$B$721=\"Sí\",'Base-datos'!$B$722=\"Sí\"),IF(AND(E45=\"La actividad sí contribuye sustancialmente a la sostenibilidad\",C45=\"La actividad sí contribuye sustancialmente a la sostenibilidad\"),B45,0),IF(AND('Base-datos'!$B$720=\"Sí\",'Base-datos'!$B$721=\"\",'Base-datos'!$B$722=\"Sí\"),IF(AND(D45=\"La actividad sí contribuye sustancialmente a la sostenibilidad\",C45=\"La actividad sí contribuye sustancialmente a la sostenibilidad\"),B45,0),\"Por definir\"))))))))","v":"Por definir"}]
[{"$f":"Forestal!$C32","v":"Seleccione"},{"$f":"IF(Forestal!$E32=Otro!B$12,Forestal!$B32,\"\")","v":""},{"$f":"_xlfn.XLOOKUP(A46,'Base-datos'!$B$517:$B$520,'Base-datos'!$F$517:$F$520)","v":{"$error":"#N/A"}},{"$f":"_xlfn.XLOOKUP(A46,'Base-datos'!$B$517:$B$520,'Base-datos'!$C$517:$C$520)","v":{"$error":"#N/A"}},{"$f":"_xlfn.XLOOKUP(A46,'Base-datos'!$B$517:$B$520,'Base-datos'!$D$517:$D$520)","v":{"$error":"#N/A"}},null,null,{"$f":"IF(OR(F$35=\"La actividad no cumple con el total de los criterios de No Daño Significativo\",G$35=\"El sector no cumple con las salvaguardas mínimas\"),\"\",IF(AND('Base-datos'!$B$720=\"Sí\",'Base-datos'!$B$721=\"\",'Base-datos'!$B$722=\"\"),IF(D46=\"La actividad sí contribuye sustancialmente a la sostenibilidad\",B46,0),IF(AND('Base-datos'!$B$720=\"Sí\",'Base-datos'!$B$721=\"Sí\",'Base-datos'!$B$722=\"\"),IF(AND(D46=\"La actividad sí contribuye sustancialmente a la sostenibilidad\",E46=\"La actividad sí contribuye sustancialmente a la sostenibilidad\"),B46,0),IF(AND('Base-datos'!$B$720=\"Sí\",'Base-datos'!$B$721=\"Sí\",'Base-datos'!$B$722=\"Sí\"),IF(AND(D46=\"La actividad sí contribuye sustancialmente a la sostenibilidad\",E46=\"La actividad sí contribuye sustancialmente a la sostenibilidad\",C46=\"La actividad sí contribuye sustancialmente a la sostenibilidad\"),B46,0),IF(AND('Base-datos'!$B$720=\"\",'Base-datos'!$B$721=\"Sí\",'Base-datos'!$B$722=\"\"),IF(E46=\"La actividad sí contribuye sustancialmente a la sostenibilidad\",B46,0),IF(AND('Base-datos'!$B$720=\"\",'Base-datos'!$B$721=\"\",'Base-datos'!$B$722=\"Sí\"),IF(C46=\"La actividad sí contribuye sustancialmente a la sostenibilidad\",B46,0),IF(AND('Base-datos'!$B$720=\"\",'Base-datos'!$B$721=\"Sí\",'Base-datos'!$B$722=\"Sí\"),IF(AND(E46=\"La actividad sí contribuye sustancialmente a la sostenibilidad\",C46=\"La actividad sí contribuye sustancialmente a la sostenibilidad\"),B46,0),IF(AND('Base-datos'!$B$720=\"Sí\",'Base-datos'!$B$721=\"\",'Base-datos'!$B$722=\"Sí\"),IF(AND(D46=\"La actividad sí contribuye sustancialmente a la sostenibilidad\",C46=\"La actividad sí contribuye sustancialmente a la sostenibilidad\"),B46,0),\"Por definir\"))))))))","v":"Por definir"}]
[{"$f":"Forestal!$C34","v":"Seleccione"},{"$f":"IF(Forestal!$E34=Otro!B$12,Forestal!$B34,\"\")","v":""},{"$f":"_xlfn.XLOOKUP(A47,'Base-datos'!$B$517:$B$520,'Base-datos'!$F$517:$F$520)","v":{"$error":"#N/A"}},{"$f":"_xlfn.XLOOKUP(A47,'Base-datos'!$B$517:$B$520,'Base-datos'!$C$517:$C$520)","v":{"$error":"#N/A"}},{"$f":"_xlfn.XLOOKUP(A47,'Base-datos'!$B$517:$B$520,'Base-datos'!$D$517:$D$520)","v":{"$error":"#N/A"}},null,null,{"$f":"IF(OR(F$35=\"La actividad no cumple con el total de los criterios de No Daño Significativo\",G$35=\"El sector no cumple con las salvaguardas mínimas\"),\"\",IF(AND('Base-datos'!$B$720=\"Sí\",'Base-datos'!$B$721=\"\",'Base-datos'!$B$722=\"\"),IF(D47=\"La actividad sí contribuye sustancialmente a la sostenibilidad\",B47,0),IF(AND('Base-datos'!$B$720=\"Sí\",'Base-datos'!$B$721=\"Sí\",'Base-datos'!$B$722=\"\"),IF(AND(D47=\"La actividad sí contribuye sustancialmente a la sostenibilidad\",E47=\"La actividad sí contribuye sustancialmente a la sostenibilidad\"),B47,0),IF(AND('Base-datos'!$B$720=\"Sí\",'Base-datos'!$B$721=\"Sí\",'Base-datos'!$B$722=\"Sí\"),IF(AND(D47=\"La actividad sí contribuye sustancialmente a la sostenibilidad\",E47=\"La actividad sí contribuye sustancialmente a la sostenibilidad\",C47=\"La actividad sí contribuye sustancialmente a la sostenibilidad\"),B47,0),IF(AND('Base-datos'!$B$720=\"\",'Base-datos'!$B$721=\"Sí\",'Base-datos'!$B$722=\"\"),IF(E47=\"La actividad sí contribuye sustancialmente a la sostenibilidad\",B47,0),IF(AND('Base-datos'!$B$720=\"\",'Base-datos'!$B$721=\"\",'Base-datos'!$B$722=\"Sí\"),IF(C47=\"La actividad sí contribuye sustancialmente a la sostenibilidad\",B47,0),IF(AND('Base-datos'!$B$720=\"\",'Base-datos'!$B$721=\"Sí\",'Base-datos'!$B$722=\"Sí\"),IF(AND(E47=\"La actividad sí contribuye sustancialmente a la sostenibilidad\",C47=\"La actividad sí contribuye sustancialmente a la sostenibilidad\"),B47,0),IF(AND('Base-datos'!$B$720=\"Sí\",'Base-datos'!$B$721=\"\",'Base-datos'!$B$722=\"Sí\"),IF(AND(D47=\"La actividad sí contribuye sustancialmente a la sostenibilidad\",C47=\"La actividad sí contribuye sustancialmente a la sostenibilidad\"),B47,0),\"Por definir\"))))))))","v":"Por definir"}]
[{"$f":"Forestal!$C36","v":"Seleccione"},{"$f":"IF(Forestal!$E36=Otro!B$12,Forestal!$B36,\"\")","v":""},{"$f":"_xlfn.XLOOKUP(A48,'Base-datos'!$B$517:$B$520,'Base-datos'!$F$517:$F$520)","v":{"$error":"#N/A"}},{"$f":"_xlfn.XLOOKUP(A48,'Base-datos'!$B$517:$B$520,'Base-datos'!$C$517:$C$520)","v":{"$error":"#N/A"}},{"$f":"_xlfn.XLOOKUP(A48,'Base-datos'!$B$517:$B$520,'Base-datos'!$D$517:$D$520)","v":{"$error":"#N/A"}},null,null,{"$f":"IF(OR(F$35=\"La actividad no cumple con el total de los criterios de No Daño Significativo\",G$35=\"El sector no cumple con las salvaguardas mínimas\"),\"\",IF(AND('Base-datos'!$B$720=\"Sí\",'Base-datos'!$B$721=\"\",'Base-datos'!$B$722=\"\"),IF(D48=\"La actividad sí contribuye sustancialmente a la sostenibilidad\",B48,0),IF(AND('Base-datos'!$B$720=\"Sí\",'Base-datos'!$B$721=\"Sí\",'Base-datos'!$B$722=\"\"),IF(AND(D48=\"La actividad sí contribuye sustancialmente a la sostenibilidad\",E48=\"La actividad sí contribuye sustancialmente a la sostenibilidad\"),B48,0),IF(AND('Base-datos'!$B$720=\"Sí\",'Base-datos'!$B$721=\"Sí\",'Base-datos'!$B$722=\"Sí\"),IF(AND(D48=\"La actividad sí contribuye sustancialmente a la sostenibilidad\",E48=\"La actividad sí contribuye sustancialmente a la sostenibilidad\",C48=\"La actividad sí contribuye sustancialmente a la sostenibilidad\"),B48,0),IF(AND('Base-datos'!$B$720=\"\",'Base-datos'!$B$721=\"Sí\",'Base-datos'!$B$722=\"\"),IF(E48=\"La actividad sí contribuye sustancialmente a la sostenibilidad\",B48,0),IF(AND('Base-datos'!$B$720=\"\",'Base-datos'!$B$721=\"\",'Base-datos'!$B$722=\"Sí\"),IF(C48=\"La actividad sí contribuye sustancialmente a la sostenibilidad\",B48,0),IF(AND('Base-datos'!$B$720=\"\",'Base-datos'!$B$721=\"Sí\",'Base-datos'!$B$722=\"Sí\"),IF(AND(E48=\"La actividad sí contribuye sustancialmente a la sostenibilidad\",C48=\"La actividad sí contribuye sustancialmente a la sostenibilidad\"),B48,0),IF(AND('Base-datos'!$B$720=\"Sí\",'Base-datos'!$B$721=\"\",'Base-datos'!$B$722=\"Sí\"),IF(AND(D48=\"La actividad sí contribuye sustancialmente a la sostenibilidad\",C48=\"La actividad sí contribuye sustancialmente a la sostenibilidad\"),B48,0),\"Por definir\"))))))))","v":"Por definir"}]
[{"$f":"Forestal!$C38","v":"Seleccione"},{"$f":"IF(Forestal!$E38=Otro!B$12,Forestal!$B38,\"\")","v":""},{"$f":"_xlfn.XLOOKUP(A49,'Base-datos'!$B$517:$B$520,'Base-datos'!$F$517:$F$520)","v":{"$error":"#N/A"}},{"$f":"_xlfn.XLOOKUP(A49,'Base-datos'!$B$517:$B$520,'Base-datos'!$C$517:$C$520)","v":{"$error":"#N/A"}},{"$f":"_xlfn.XLOOKUP(A49,'Base-datos'!$B$517:$B$520,'Base-datos'!$D$517:$D$520)","v":{"$error":"#N/A"}},null,null,{"$f":"IF(OR(F$35=\"La actividad no cumple con el total de los criterios de No Daño Significativo\",G$35=\"El sector no cumple con las salvaguardas mínimas\"),\"\",IF(AND('Base-datos'!$B$720=\"Sí\",'Base-datos'!$B$721=\"\",'Base-datos'!$B$722=\"\"),IF(D49=\"La actividad sí contribuye sustancialmente a la sostenibilidad\",B49,0),IF(AND('Base-datos'!$B$720=\"Sí\",'Base-datos'!$B$721=\"Sí\",'Base-datos'!$B$722=\"\"),IF(AND(D49=\"La actividad sí contribuye sustancialmente a la sostenibilidad\",E49=\"La actividad sí contribuye sustancialmente a la sostenibilidad\"),B49,0),IF(AND('Base-datos'!$B$720=\"Sí\",'Base-datos'!$B$721=\"Sí\",'Base-datos'!$B$722=\"Sí\"),IF(AND(D49=\"La actividad sí contribuye sustancialmente a la sostenibilidad\",E49=\"La actividad sí contribuye sustancialmente a la sostenibilidad\",C49=\"La actividad sí contribuye sustancialmente a la sostenibilidad\"),B49,0),IF(AND('Base-datos'!$B$720=\"\",'Base-datos'!$B$721=\"Sí\",'Base-datos'!$B$722=\"\"),IF(E49=\"La actividad sí contribuye sustancialmente a la sostenibilidad\",B49,0),IF(AND('Base-datos'!$B$720=\"\",'Base-datos'!$B$721=\"\",'Base-datos'!$B$722=\"Sí\"),IF(C49=\"La actividad sí contribuye sustancialmente a la sostenibilidad\",B49,0),IF(AND('Base-datos'!$B$720=\"\",'Base-datos'!$B$721=\"Sí\",'Base-datos'!$B$722=\"Sí\"),IF(AND(E49=\"La actividad sí contribuye sustancialmente a la sostenibilidad\",C49=\"La actividad sí contribuye sustancialmente a la sostenibilidad\"),B49,0),IF(AND('Base-datos'!$B$720=\"Sí\",'Base-datos'!$B$721=\"\",'Base-datos'!$B$722=\"Sí\"),IF(AND(D49=\"La actividad sí contribuye sustancialmente a la sostenibilidad\",C49=\"La actividad sí contribuye sustancialmente a la sostenibilidad\"),B49,0),\"Por definir\"))))))))","v":"Por definir"}]
[{"$f":"Forestal!$C40","v":"Seleccione"},{"$f":"IF(Forestal!$E40=Otro!B$12,Forestal!$B40,\"\")","v":""},{"$f":"_xlfn.XLOOKUP(A50,'Base-datos'!$B$517:$B$520,'Base-datos'!$F$517:$F$520)","v":{"$error":"#N/A"}},{"$f":"_xlfn.XLOOKUP(A50,'Base-datos'!$B$517:$B$520,'Base-datos'!$C$517:$C$520)","v":{"$error":"#N/A"}},{"$f":"_xlfn.XLOOKUP(A50,'Base-datos'!$B$517:$B$520,'Base-datos'!$D$517:$D$520)","v":{"$error":"#N/A"}},null,null,{"$f":"IF(OR(F$35=\"La actividad no cumple con el total de los criterios de No Daño Significativo\",G$35=\"El sector no cumple con las salvaguardas mínimas\"),\"\",IF(AND('Base-datos'!$B$720=\"Sí\",'Base-datos'!$B$721=\"\",'Base-datos'!$B$722=\"\"),IF(D50=\"La actividad sí contribuye sustancialmente a la sostenibilidad\",B50,0),IF(AND('Base-datos'!$B$720=\"Sí\",'Base-datos'!$B$721=\"Sí\",'Base-datos'!$B$722=\"\"),IF(AND(D50=\"La actividad sí contribuye sustancialmente a la sostenibilidad\",E50=\"La actividad sí contribuye sustancialmente a la sostenibilidad\"),B50,0),IF(AND('Base-datos'!$B$720=\"Sí\",'Base-datos'!$B$721=\"Sí\",'Base-datos'!$B$722=\"Sí\"),IF(AND(D50=\"La actividad sí contribuye sustancialmente a la sostenibilidad\",E50=\"La actividad sí contribuye sustancialmente a la sostenibilidad\",C50=\"La actividad sí contribuye sustancialmente a la sostenibilidad\"),B50,0),IF(AND('Base-datos'!$B$720=\"\",'Base-datos'!$B$721=\"Sí\",'Base-datos'!$B$722=\"\"),IF(E50=\"La actividad sí contribuye sustancialmente a la sostenibilidad\",B50,0),IF(AND('Base-datos'!$B$720=\"\",'Base-datos'!$B$721=\"\",'Base-datos'!$B$722=\"Sí\"),IF(C50=\"La actividad sí contribuye sustancialmente a la sostenibilidad\",B50,0),IF(AND('Base-datos'!$B$720=\"\",'Base-datos'!$B$721=\"Sí\",'Base-datos'!$B$722=\"Sí\"),IF(AND(E50=\"La actividad sí contribuye sustancialmente a la sostenibilidad\",C50=\"La actividad sí contribuye sustancialmente a la sostenibilidad\"),B50,0),IF(AND('Base-datos'!$B$720=\"Sí\",'Base-datos'!$B$721=\"\",'Base-datos'!$B$722=\"Sí\"),IF(AND(D50=\"La actividad sí contribuye sustancialmente a la sostenibilidad\",C50=\"La actividad sí contribuye sustancialmente a la sostenibilidad\"),B50,0),\"Por definir\"))))))))","v":"Por definir"}]
[{"$f":"Forestal!$C42","v":"Seleccione"},{"$f":"IF(Forestal!$E42=Otro!B$12,Forestal!$B42,\"\")","v":""},{"$f":"_xlfn.XLOOKUP(A51,'Base-datos'!$B$517:$B$520,'Base-datos'!$F$517:$F$520)","v":{"$error":"#N/A"}},{"$f":"_xlfn.XLOOKUP(A51,'Base-datos'!$B$517:$B$520,'Base-datos'!$C$517:$C$520)","v":{"$error":"#N/A"}},{"$f":"_xlfn.XLOOKUP(A51,'Base-datos'!$B$517:$B$520,'Base-datos'!$D$517:$D$520)","v":{"$error":"#N/A"}},null,null,{"$f":"IF(OR(F$35=\"La actividad no cumple con el total de los criterios de No Daño Significativo\",G$35=\"El sector no cumple con las salvaguardas mínimas\"),\"\",IF(AND('Base-datos'!$B$720=\"Sí\",'Base-datos'!$B$721=\"\",'Base-datos'!$B$722=\"\"),IF(D51=\"La actividad sí contribuye sustancialmente a la sostenibilidad\",B51,0),IF(AND('Base-datos'!$B$720=\"Sí\",'Base-datos'!$B$721=\"Sí\",'Base-datos'!$B$722=\"\"),IF(AND(D51=\"La actividad sí contribuye sustancialmente a la sostenibilidad\",E51=\"La actividad sí contribuye sustancialmente a la sostenibilidad\"),B51,0),IF(AND('Base-datos'!$B$720=\"Sí\",'Base-datos'!$B$721=\"Sí\",'Base-datos'!$B$722=\"Sí\"),IF(AND(D51=\"La actividad sí contribuye sustancialmente a la sostenibilidad\",E51=\"La actividad sí contribuye sustancialmente a la sostenibilidad\",C51=\"La actividad sí contribuye sustancialmente a la sostenibilidad\"),B51,0),IF(AND('Base-datos'!$B$720=\"\",'Base-datos'!$B$721=\"Sí\",'Base-datos'!$B$722=\"\"),IF(E51=\"La actividad sí contribuye sustancialmente a la sostenibilidad\",B51,0),IF(AND('Base-datos'!$B$720=\"\",'Base-datos'!$B$721=\"\",'Base-datos'!$B$722=\"Sí\"),IF(C51=\"La actividad sí contribuye sustancialmente a la sostenibilidad\",B51,0),IF(AND('Base-datos'!$B$720=\"\",'Base-datos'!$B$721=\"Sí\",'Base-datos'!$B$722=\"Sí\"),IF(AND(E51=\"La actividad sí contribuye sustancialmente a la sostenibilidad\",C51=\"La actividad sí contribuye sustancialmente a la sostenibilidad\"),B51,0),IF(AND('Base-datos'!$B$720=\"Sí\",'Base-datos'!$B$721=\"\",'Base-datos'!$B$722=\"Sí\"),IF(AND(D51=\"La actividad sí contribuye sustancialmente a la sostenibilidad\",C51=\"La actividad sí contribuye sustancialmente a la sostenibilidad\"),B51,0),\"Por definir\"))))))))","v":"Por definir"}]
[{"$f":"Forestal!$C44","v":"Seleccione"},{"$f":"IF(Forestal!$E44=Otro!B$12,Forestal!$B44,\"\")","v":""},{"$f":"_xlfn.XLOOKUP(A52,'Base-datos'!$B$517:$B$520,'Base-datos'!$F$517:$F$520)","v":{"$error":"#N/A"}},{"$f":"_xlfn.XLOOKUP(A52,'Base-datos'!$B$517:$B$520,'Base-datos'!$C$517:$C$520)","v":{"$error":"#N/A"}},{"$f":"_xlfn.XLOOKUP(A52,'Base-datos'!$B$517:$B$520,'Base-datos'!$D$517:$D$520)","v":{"$error":"#N/A"}},null,null,{"$f":"IF(OR(F$35=\"La actividad no cumple con el total de los criterios de No Daño Significativo\",G$35=\"El sector no cumple con las salvaguardas mínimas\"),\"\",IF(AND('Base-datos'!$B$720=\"Sí\",'Base-datos'!$B$721=\"\",'Base-datos'!$B$722=\"\"),IF(D52=\"La actividad sí contribuye sustancialmente a la sostenibilidad\",B52,0),IF(AND('Base-datos'!$B$720=\"Sí\",'Base-datos'!$B$721=\"Sí\",'Base-datos'!$B$722=\"\"),IF(AND(D52=\"La actividad sí contribuye sustancialmente a la sostenibilidad\",E52=\"La actividad sí contribuye sustancialmente a la sostenibilidad\"),B52,0),IF(AND('Base-datos'!$B$720=\"Sí\",'Base-datos'!$B$721=\"Sí\",'Base-datos'!$B$722=\"Sí\"),IF(AND(D52=\"La actividad sí contribuye sustancialmente a la sostenibilidad\",E52=\"La actividad sí contribuye sustancialmente a la sostenibilidad\",C52=\"La actividad sí contribuye sustancialmente a la sostenibilidad\"),B52,0),IF(AND('Base-datos'!$B$720=\"\",'Base-datos'!$B$721=\"Sí\",'Base-datos'!$B$722=\"\"),IF(E52=\"La actividad sí contribuye sustancialmente a la sostenibilidad\",B52,0),IF(AND('Base-datos'!$B$720=\"\",'Base-datos'!$B$721=\"\",'Base-datos'!$B$722=\"Sí\"),IF(C52=\"La actividad sí contribuye sustancialmente a la sostenibilidad\",B52,0),IF(AND('Base-datos'!$B$720=\"\",'Base-datos'!$B$721=\"Sí\",'Base-datos'!$B$722=\"Sí\"),IF(AND(E52=\"La actividad sí contribuye sustancialmente a la sostenibilidad\",C52=\"La actividad sí contribuye sustancialmente a la sostenibilidad\"),B52,0),IF(AND('Base-datos'!$B$720=\"Sí\",'Base-datos'!$B$721=\"\",'Base-datos'!$B$722=\"Sí\"),IF(AND(D52=\"La actividad sí contribuye sustancialmente a la sostenibilidad\",C52=\"La actividad sí contribuye sustancialmente a la sostenibilidad\"),B52,0),\"Por definir\"))))))))","v":"Por definir"}]
[{"$f":"Forestal!$C46","v":"Seleccione"},{"$f":"IF(Forestal!$E46=Otro!B$12,Forestal!$B46,\"\")","v":""},{"$f":"_xlfn.XLOOKUP(A53,'Base-datos'!$B$517:$B$520,'Base-datos'!$F$517:$F$520)","v":{"$error":"#N/A"}},{"$f":"_xlfn.XLOOKUP(A53,'Base-datos'!$B$517:$B$520,'Base-datos'!$C$517:$C$520)","v":{"$error":"#N/A"}},{"$f":"_xlfn.XLOOKUP(A53,'Base-datos'!$B$517:$B$520,'Base-datos'!$D$517:$D$520)","v":{"$error":"#N/A"}},null,null,{"$f":"IF(OR(F$35=\"La actividad no cumple con el total de los criterios de No Daño Significativo\",G$35=\"El sector no cumple con las salvaguardas mínimas\"),\"\",IF(AND('Base-datos'!$B$720=\"Sí\",'Base-datos'!$B$721=\"\",'Base-datos'!$B$722=\"\"),IF(D53=\"La actividad sí contribuye sustancialmente a la sostenibilidad\",B53,0),IF(AND('Base-datos'!$B$720=\"Sí\",'Base-datos'!$B$721=\"Sí\",'Base-datos'!$B$722=\"\"),IF(AND(D53=\"La actividad sí contribuye sustancialmente a la sostenibilidad\",E53=\"La actividad sí contribuye sustancialmente a la sostenibilidad\"),B53,0),IF(AND('Base-datos'!$B$720=\"Sí\",'Base-datos'!$B$721=\"Sí\",'Base-datos'!$B$722=\"Sí\"),IF(AND(D53=\"La actividad sí contribuye sustancialmente a la sostenibilidad\",E53=\"La actividad sí contribuye sustancialmente a la sostenibilidad\",C53=\"La actividad sí contribuye sustancialmente a la sostenibilidad\"),B53,0),IF(AND('Base-datos'!$B$720=\"\",'Base-datos'!$B$721=\"Sí\",'Base-datos'!$B$722=\"\"),IF(E53=\"La actividad sí contribuye sustancialmente a la sostenibilidad\",B53,0),IF(AND('Base-datos'!$B$720=\"\",'Base-datos'!$B$721=\"\",'Base-datos'!$B$722=\"Sí\"),IF(C53=\"La actividad sí contribuye sustancialmente a la sostenibilidad\",B53,0),IF(AND('Base-datos'!$B$720=\"\",'Base-datos'!$B$721=\"Sí\",'Base-datos'!$B$722=\"Sí\"),IF(AND(E53=\"La actividad sí contribuye sustancialmente a la sostenibilidad\",C53=\"La actividad sí contribuye sustancialmente a la sostenibilidad\"),B53,0),IF(AND('Base-datos'!$B$720=\"Sí\",'Base-datos'!$B$721=\"\",'Base-datos'!$B$722=\"Sí\"),IF(AND(D53=\"La actividad sí contribuye sustancialmente a la sostenibilidad\",C53=\"La actividad sí contribuye sustancialmente a la sostenibilidad\"),B53,0),\"Por definir\"))))))))","v":"Por definir"}]
[{"$f":"Forestal!$C48","v":"Seleccione"},{"$f":"IF(Forestal!$E48=Otro!B$12,Forestal!$B48,\"\")","v":""},{"$f":"_xlfn.XLOOKUP(A54,'Base-datos'!$B$517:$B$520,'Base-datos'!$F$517:$F$520)","v":{"$error":"#N/A"}},{"$f":"_xlfn.XLOOKUP(A54,'Base-datos'!$B$517:$B$520,'Base-datos'!$C$517:$C$520)","v":{"$error":"#N/A"}},{"$f":"_xlfn.XLOOKUP(A54,'Base-datos'!$B$517:$B$520,'Base-datos'!$D$517:$D$520)","v":{"$error":"#N/A"}},null,null,{"$f":"IF(OR(F$35=\"La actividad no cumple con el total de los criterios de No Daño Significativo\",G$35=\"El sector no cumple con las salvaguardas mínimas\"),\"\",IF(AND('Base-datos'!$B$720=\"Sí\",'Base-datos'!$B$721=\"\",'Base-datos'!$B$722=\"\"),IF(D54=\"La actividad sí contribuye sustancialmente a la sostenibilidad\",B54,0),IF(AND('Base-datos'!$B$720=\"Sí\",'Base-datos'!$B$721=\"Sí\",'Base-datos'!$B$722=\"\"),IF(AND(D54=\"La actividad sí contribuye sustancialmente a la sostenibilidad\",E54=\"La actividad sí contribuye sustancialmente a la sostenibilidad\"),B54,0),IF(AND('Base-datos'!$B$720=\"Sí\",'Base-datos'!$B$721=\"Sí\",'Base-datos'!$B$722=\"Sí\"),IF(AND(D54=\"La actividad sí contribuye sustancialmente a la sostenibilidad\",E54=\"La actividad sí contribuye sustancialmente a la sostenibilidad\",C54=\"La actividad sí contribuye sustancialmente a la sostenibilidad\"),B54,0),IF(AND('Base-datos'!$B$720=\"\",'Base-datos'!$B$721=\"Sí\",'Base-datos'!$B$722=\"\"),IF(E54=\"La actividad sí contribuye sustancialmente a la sostenibilidad\",B54,0),IF(AND('Base-datos'!$B$720=\"\",'Base-datos'!$B$721=\"\",'Base-datos'!$B$722=\"Sí\"),IF(C54=\"La actividad sí contribuye sustancialmente a la sostenibilidad\",B54,0),IF(AND('Base-datos'!$B$720=\"\",'Base-datos'!$B$721=\"Sí\",'Base-datos'!$B$722=\"Sí\"),IF(AND(E54=\"La actividad sí contribuye sustancialmente a la sostenibilidad\",C54=\"La actividad sí contribuye sustancialmente a la sostenibilidad\"),B54,0),IF(AND('Base-datos'!$B$720=\"Sí\",'Base-datos'!$B$721=\"\",'Base-datos'!$B$722=\"Sí\"),IF(AND(D54=\"La actividad sí contribuye sustancialmente a la sostenibilidad\",C54=\"La actividad sí contribuye sustancialmente a la sostenibilidad\"),B54,0),\"Por definir\"))))))))","v":"Por definir"}]
["Ganadería",null,null,null,null,null,null,{"$f":"SUM(IF(FREQUENCY(MATCH(A56:A75, A56:A75, 0), MATCH(A56:A75, A56:A75, 0)) > 0, IF(NOT(ISERROR(H56:H75)), H56:H75, 0)))","v":0}]
[{"$f":"Ganadería!$C10","v":"Seleccione"},{"$f":"IF(Ganadería!$E10=Otro!B$12,Ganadería!$B10,\"\")","v":""},{"$f":"_xlfn.XLOOKUP(A56,'Base-datos'!$B$510:$B$516,'Base-datos'!$F$510:$F$516)","v":{"$error":"#N/A"}},{"$f":"_xlfn.XLOOKUP(A56,'Base-datos'!$B$510:$B$516,'Base-datos'!$C$510:$C$516)","v":{"$error":"#N/A"}},{"$f":"_xlfn.XLOOKUP(A56,'Base-datos'!$B$510:$B$516,'Base-datos'!$D$510:$D$516)","v":{"$error":"#N/A"}},{"$f":"IF(COUNTIF('Ganadería-NDS'!G9:G59,\"No\")>0,\"La actividad no cumple con el total de los criterios de NDS\",\"La actividad cumple con los criterios de No Daño Significativo\")","v":"La actividad cumple con los criterios de No Daño Significativo"},{"$f":"IF(OR('Salvaguardas mínimas'!$G$10=\"Seleccione\",'Salvaguardas mínimas'!$G$13=\"Seleccione\",'Salvaguardas mínimas'!$G$16=\"Seleccione\",'Salvaguardas mínimas'!$G$7=\"Seleccione\"),\"No se han respondido todas las preguntas\",IF(OR('Salvaguardas mínimas'!$G$10=\"No\",'Salvaguardas mínimas'!$G$13=\"No\",'Salvaguardas mínimas'!$G$16=\"No\",'Salvaguardas mínimas'!$G$7=\"No\"),\"El sector no cumple con las salvaguardas mínimas\",\"La actividad sí cumple con las salvaguardas mínimas\"))","v":"No se han respondido todas las preguntas"},{"$f":"IF(OR(F$56=\"La actividad no cumple con el total de los criterios de No Daño Significativo\",G$56=\"El sector no cumple con las salvaguardas mínimas\"),\"\",IF(AND('Base-datos'!$B$725=\"Sí\",'Base-datos'!$B$726=\"\",'Base-datos'!$B$727=\"\"),IF(D56=\"La actividad sí contribuye sustancialmente a la sostenibilidad\",B56,0),IF(AND('Base-datos'!$B$725=\"Sí\",'Base-datos'!$B$726=\"Sí\",'Base-datos'!$B$727=\"\"),IF(AND(D56=\"La actividad sí contribuye sustancialmente a la sostenibilidad\",E56=\"La actividad sí contribuye sustancialmente a la sostenibilidad\"),B56,0),IF(AND('Base-datos'!$B$725=\"Sí\",'Base-datos'!$B$726=\"Sí\",'Base-datos'!$B$727=\"Sí\"),IF(AND(D56=\"La actividad sí contribuye sustancialmente a la sostenibilidad\",E56=\"La actividad sí contribuye sustancialmente a la sostenibilidad\",C56=\"La actividad sí contribuye sustancialmente a la sostenibilidad\"),B56,0),IF(AND('Base-datos'!$B$725=\"\",'Base-datos'!$B$726=\"Sí\",'Base-datos'!$B$727=\"\"),IF(E56=\"La actividad sí contribuye sustancialmente a la sostenibilidad\",B56,0),IF(AND('Base-datos'!$B$725=\"\",'Base-datos'!$B$726=\"\",'Base-datos'!$B$727=\"Sí\"),IF(C56=\"La actividad sí contribuye sustancialmente a la sostenibilidad\",B56,0),IF(AND('Base-datos'!$B$725=\"\",'Base-datos'!$B$726=\"Sí\",'Base-datos'!$B$727=\"Sí\"),IF(AND(E56=\"La actividad sí contribuye sustancialmente a la sostenibilidad\",C56=\"La actividad sí contribuye sustancialmente a la sostenibilidad\"),B56,0),IF(AND('Base-datos'!$B$725=\"Sí\",'Base-datos'!$B$726=\"\",'Base-datos'!$B$727=\"Sí\"),IF(AND(D56=\"La actividad sí contribuye sustancialmente a la sostenibilidad\",C56=\"La actividad sí contribuye sustancialmente a la sostenibilidad\"),B56,0),\"Por definir\"))))))))","v":"Por definir"}]
[{"$f":"Ganadería!$C12","v":"Seleccione"},{"$f":"IF(Ganadería!$E12=Otro!B$12,Ganadería!$B12,\"\")","v":""},{"$f":"_xlfn.XLOOKUP(A57,'Base-datos'!$B$510:$B$516,'Base-datos'!$F$510:$F$516)","v":{"$error":"#N/A"}},{"$f":"_xlfn.XLOOKUP(A57,'Base-datos'!$B$510:$B$516,'Base-datos'!$C$510:$C$516)","v":{"$error":"#N/A"}},{"$f":"_xlfn.XLOOKUP(A57,'Base-datos'!$B$510:$B$516,'Base-datos'!$D$510:$D$516)","v":{"$error":"#N/A"}},null,null,{"$f":"IF(OR(F$56=\"La actividad no cumple con el total de los criterios de No Daño Significativo\",G$56=\"El sector no cumple con las salvaguardas mínimas\"),\"\",IF(AND('Base-datos'!$B$725=\"Sí\",'Base-datos'!$B$726=\"\",'Base-datos'!$B$727=\"\"),IF(D57=\"La actividad sí contribuye sustancialmente a la sostenibilidad\",B57,0),IF(AND('Base-datos'!$B$725=\"Sí\",'Base-datos'!$B$726=\"Sí\",'Base-datos'!$B$727=\"\"),IF(AND(D57=\"La actividad sí contribuye sustancialmente a la sostenibilidad\",E57=\"La actividad sí contribuye sustancialmente a la sostenibilidad\"),B57,0),IF(AND('Base-datos'!$B$725=\"Sí\",'Base-datos'!$B$726=\"Sí\",'Base-datos'!$B$727=\"Sí\"),IF(AND(D57=\"La actividad sí contribuye sustancialmente a la sostenibilidad\",E57=\"La actividad sí contribuye sustancialmente a la sostenibilidad\",C57=\"La actividad sí contribuye sustancialmente a la sostenibilidad\"),B57,0),IF(AND('Base-datos'!$B$725=\"\",'Base-datos'!$B$726=\"Sí\",'Base-datos'!$B$727=\"\"),IF(E57=\"La actividad sí contribuye sustancialmente a la sostenibilidad\",B57,0),IF(AND('Base-datos'!$B$725=\"\",'Base-datos'!$B$726=\"\",'Base-datos'!$B$727=\"Sí\"),IF(C57=\"La actividad sí contribuye sustancialmente a la sostenibilidad\",B57,0),IF(AND('Base-datos'!$B$725=\"\",'Base-datos'!$B$726=\"Sí\",'Base-datos'!$B$727=\"Sí\"),IF(AND(E57=\"La actividad sí contribuye sustancialmente a la sostenibilidad\",C57=\"La actividad sí contribuye sustancialmente a la sostenibilidad\"),B57,0),IF(AND('Base-datos'!$B$725=\"Sí\",'Base-datos'!$B$726=\"\",'Base-datos'!$B$727=\"Sí\"),IF(AND(D57=\"La actividad sí contribuye sustancialmente a la sostenibilidad\",C57=\"La actividad sí contribuye sustancialmente a la sostenibilidad\"),B57,0),\"Por definir\"))))))))","v":"Por definir"}]
[{"$f":"Ganadería!$C14","v":"Seleccione"},{"$f":"IF(Ganadería!$E14=Otro!B$12,Ganadería!$B14,\"\")","v":""},{"$f":"_xlfn.XLOOKUP(A58,'Base-datos'!$B$510:$B$516,'Base-datos'!$F$510:$F$516)","v":{"$error":"#N/A"}},{"$f":"_xlfn.XLOOKUP(A58,'Base-datos'!$B$510:$B$516,'Base-datos'!$C$510:$C$516)","v":{"$error":"#N/A"}},{"$f":"_xlfn.XLOOKUP(A58,'Base-datos'!$B$510:$B$516,'Base-datos'!$D$510:$D$516)","v":{"$error":"#N/A"}},null,null,{"$f":"IF(OR(F$56=\"La actividad no cumple con el total de los criterios de No Daño Significativo\",G$56=\"El sector no cumple con las salvaguardas mínimas\"),\"\",IF(AND('Base-datos'!$B$725=\"Sí\",'Base-datos'!$B$726=\"\",'Base-datos'!$B$727=\"\"),IF(D58=\"La actividad sí contribuye sustancialmente a la sostenibilidad\",B58,0),IF(AND('Base-datos'!$B$725=\"Sí\",'Base-datos'!$B$726=\"Sí\",'Base-datos'!$B$727=\"\"),IF(AND(D58=\"La actividad sí contribuye sustancialmente a la sostenibilidad\",E58=\"La actividad sí contribuye sustancialmente a la sostenibilidad\"),B58,0),IF(AND('Base-datos'!$B$725=\"Sí\",'Base-datos'!$B$726=\"Sí\",'Base-datos'!$B$727=\"Sí\"),IF(AND(D58=\"La actividad sí contribuye sustancialmente a la sostenibilidad\",E58=\"La actividad sí contribuye sustancialmente a la sostenibilidad\",C58=\"La actividad sí contribuye sustancialmente a la sostenibilidad\"),B58,0),IF(AND('Base-datos'!$B$725=\"\",'Base-datos'!$B$726=\"Sí\",'Base-datos'!$B$727=\"\"),IF(E58=\"La actividad sí contribuye sustancialmente a la sostenibilidad\",B58,0),IF(AND('Base-datos'!$B$725=\"\",'Base-datos'!$B$726=\"\",'Base-datos'!$B$727=\"Sí\"),IF(C58=\"La actividad sí contribuye sustancialmente a la sostenibilidad\",B58,0),IF(AND('Base-datos'!$B$725=\"\",'Base-datos'!$B$726=\"Sí\",'Base-datos'!$B$727=\"Sí\"),IF(AND(E58=\"La actividad sí contribuye sustancialmente a la sostenibilidad\",C58=\"La actividad sí contribuye sustancialmente a la sostenibilidad\"),B58,0),IF(AND('Base-datos'!$B$725=\"Sí\",'Base-datos'!$B$726=\"\",'Base-datos'!$B$727=\"Sí\"),IF(AND(D58=\"La actividad sí contribuye sustancialmente a la sostenibilidad\",C58=\"La actividad sí contribuye sustancialmente a la sostenibilidad\"),B58,0),\"Por definir\"))))))))","v":"Por definir"}]
[{"$f":"Ganadería!$C16","v":"Seleccione"},{"$f":"IF(Ganadería!$E16=Otro!B$12,Ganadería!$B16,\"\")","v":""},{"$f":"_xlfn.XLOOKUP(A59,'Base-datos'!$B$510:$B$516,'Base-datos'!$F$510:$F$516)","v":{"$error":"#N/A"}},{"$f":"_xlfn.XLOOKUP(A59,'Base-datos'!$B$510:$B$516,'Base-datos'!$C$510:$C$516)","v":{"$error":"#N/A"}},{"$f":"_xlfn.XLOOKUP(A59,'Base-datos'!$B$510:$B$516,'Base-datos'!$D$510:$D$516)","v":{"$error":"#N/A"}},null,null,{"$f":"IF(OR(F$56=\"La actividad no cumple con el total de los criterios de No Daño Significativo\",G$56=\"El sector no cumple con las salvaguardas mínimas\"),\"\",IF(AND('Base-datos'!$B$725=\"Sí\",'Base-datos'!$B$726=\"\",'Base-datos'!$B$727=\"\"),IF(D59=\"La actividad sí contribuye sustancialmente a la sostenibilidad\",B59,0),IF(AND('Base-datos'!$B$725=\"Sí\",'Base-datos'!$B$726=\"Sí\",'Base-datos'!$B$727=\"\"),IF(AND(D59=\"La actividad sí contribuye sustancialmente a la sostenibilidad\",E59=\"La actividad sí contribuye sustancialmente a la sostenibilidad\"),B59,0),IF(AND('Base-datos'!$B$725=\"Sí\",'Base-datos'!$B$726=\"Sí\",'Base-datos'!$B$727=\"Sí\"),IF(AND(D59=\"La actividad sí contribuye sustancialmente a la sostenibilidad\",E59=\"La actividad sí contribuye sustancialmente a la sostenibilidad\",C59=\"La actividad sí contribuye sustancialmente a la sostenibilidad\"),B59,0),IF(AND('Base-datos'!$B$725=\"\",'Base-datos'!$B$726=\"Sí\",'Base-datos'!$B$727=\"\"),IF(E59=\"La actividad sí contribuye sustancialmente a la sostenibilidad\",B59,0),IF(AND('Base-datos'!$B$725=\"\",'Base-datos'!$B$726=\"\",'Base-datos'!$B$727=\"Sí\"),IF(C59=\"La actividad sí contribuye sustancialmente a la sostenibilidad\",B59,0),IF(AND('Base-datos'!$B$725=\"\",'Base-datos'!$B$726=\"Sí\",'Base-datos'!$B$727=\"Sí\"),IF(AND(E59=\"La actividad sí contribuye sustancialmente a la sostenibilidad\",C59=\"La actividad sí contribuye sustancialmente a la sostenibilidad\"),B59,0),IF(AND('Base-datos'!$B$725=\"Sí\",'Base-datos'!$B$726=\"\",'Base-datos'!$B$727=\"Sí\"),IF(AND(D59=\"La actividad sí contribuye sustancialmente a la sostenibilidad\",C59=\"La actividad sí contribuye sustancialmente a la sostenibilidad\"),B59,0),\"Por definir\"))))))))","v":"Por definir"}]
[{"$f":"Ganadería!$C18","v":"Seleccione"},{"$f":"IF(Ganadería!$E18=Otro!B$12,Ganadería!$B18,\"\")","v":""},{"$f":"_xlfn.XLOOKUP(A60,'Base-datos'!$B$510:$B$516,'Base-datos'!$F$510:$F$516)","v":{"$error":"#N/A"}},{"$f":"_xlfn.XLOOKUP(A60,'Base-datos'!$B$510:$B$516,'Base-datos'!$C$510:$C$516)","v":{"$error":"#N/A"}},{"$f":"_xlfn.XLOOKUP(A60,'Base-datos'!$B$510:$B$516,'Base-datos'!$D$510:$D$516)","v":{"$error":"#N/A"}},null,null,{"$f":"IF(OR(F$56=\"La actividad no cumple con el total de los criterios de No Daño Significativo\",G$56=\"El sector no cumple con las salvaguardas mínimas\"),\"\",IF(AND('Base-datos'!$B$725=\"Sí\",'Base-datos'!$B$726=\"\",'Base-datos'!$B$727=\"\"),IF(D60=\"La actividad sí contribuye sustancialmente a la sostenibilidad\",B60,0),IF(AND('Base-datos'!$B$725=\"Sí\",'Base-datos'!$B$726=\"Sí\",'Base-datos'!$B$727=\"\"),IF(AND(D60=\"La actividad sí contribuye sustancialmente a la sostenibilidad\",E60=\"La actividad sí contribuye sustancialmente a la sostenibilidad\"),B60,0),IF(AND('Base-datos'!$B$725=\"Sí\",'Base-datos'!$B$726=\"Sí\",'Base-datos'!$B$727=\"Sí\"),IF(AND(D60=\"La actividad sí contribuye sustancialmente a la sostenibilidad\",E60=\"La actividad sí contribuye sustancialmente a la sostenibilidad\",C60=\"La actividad sí contribuye sustancialmente a la sostenibilidad\"),B60,0),IF(AND('Base-datos'!$B$725=\"\",'Base-datos'!$B$726=\"Sí\",'Base-datos'!$B$727=\"\"),IF(E60=\"La actividad sí contribuye sustancialmente a la sostenibilidad\",B60,0),IF(AND('Base-datos'!$B$725=\"\",'Base-datos'!$B$726=\"\",'Base-datos'!$B$727=\"Sí\"),IF(C60=\"La actividad sí contribuye sustancialmente a la sostenibilidad\",B60,0),IF(AND('Base-datos'!$B$725=\"\",'Base-datos'!$B$726=\"Sí\",'Base-datos'!$B$727=\"Sí\"),IF(AND(E60=\"La actividad sí contribuye sustancialmente a la sostenibilidad\",C60=\"La actividad sí contribuye sustancialmente a la sostenibilidad\"),B60,0),IF(AND('Base-datos'!$B$725=\"Sí\",'Base-datos'!$B$726=\"\",'Base-datos'!$B$727=\"Sí\"),IF(AND(D60=\"La actividad sí contribuye sustancialmente a la sostenibilidad\",C60=\"La actividad sí contribuye sustancialmente a la sostenibilidad\"),B60,0),\"Por definir\"))))))))","v":"Por definir"}]
[{"$f":"Ganadería!$C20","v":"Seleccione"},{"$f":"IF(Ganadería!$E20=Otro!B$12,Ganadería!$B20,\"\")","v":""},{"$f":"_xlfn.XLOOKUP(A61,'Base-datos'!$B$510:$B$516,'Base-datos'!$F$510:$F$516)","v":{"$error":"#N/A"}},{"$f":"_xlfn.XLOOKUP(A61,'Base-datos'!$B$510:$B$516,'Base-datos'!$C$510:$C$516)","v":{"$error":"#N/A"}},{"$f":"_xlfn.XLOOKUP(A61,'Base-datos'!$B$510:$B$516,'Base-datos'!$D$510:$D$516)","v":{"$error":"#N/A"}},null,null,{"$f":"IF(OR(F$56=\"La actividad no cumple con el total de los criterios de No Daño Significativo\",G$56=\"El sector no cumple con las salvaguardas mínimas\"),\"\",IF(AND('Base-datos'!$B$725=\"Sí\",'Base-datos'!$B$726=\"\",'Base-datos'!$B$727=\"\"),IF(D61=\"La actividad sí contribuye sustancialmente a la sostenibilidad\",B61,0),IF(AND('Base-datos'!$B$725=\"Sí\",'Base-datos'!$B$726=\"Sí\",'Base-datos'!$B$727=\"\"),IF(AND(D61=\"La actividad sí contribuye sustancialmente a la sostenibilidad\",E61=\"La actividad sí contribuye sustancialmente a la sostenibilidad\"),B61,0),IF(AND('Base-datos'!$B$725=\"Sí\",'Base-datos'!$B$726=\"Sí\",'Base-datos'!$B$727=\"Sí\"),IF(AND(D61=\"La actividad sí contribuye sustancialmente a la sostenibilidad\",E61=\"La actividad sí contribuye sustancialmente a la sostenibilidad\",C61=\"La actividad sí contribuye sustancialmente a la sostenibilidad\"),B61,0),IF(AND('Base-datos'!$B$725=\"\",'Base-datos'!$B$726=\"Sí\",'Base-datos'!$B$727=\"\"),IF(E61=\"La actividad sí contribuye sustancialmente a la sostenibilidad\",B61,0),IF(AND('Base-datos'!$B$725=\"\",'Base-datos'!$B$726=\"\",'Base-datos'!$B$727=\"Sí\"),IF(C61=\"La actividad sí contribuye sustancialmente a la sostenibilidad\",B61,0),IF(AND('Base-datos'!$B$725=\"\",'Base-datos'!$B$726=\"Sí\",'Base-datos'!$B$727=\"Sí\"),IF(AND(E61=\"La actividad sí contribuye sustancialmente a la sostenibilidad\",C61=\"La actividad sí contribuye sustancialmente a la sostenibilidad\"),B61,0),IF(AND('Base-datos'!$B$725=\"Sí\",'Base-datos'!$B$726=\"\",'Base-datos'!$B$727=\"Sí\"),IF(AND(D61=\"La actividad sí contribuye sustancialmente a la sostenibilidad\",C61=\"La actividad sí contribuye sustancialmente a la sostenibilidad\"),B61,0),\"Por definir\"))))))))","v":"Por definir"}]
[{"$f":"Ganadería!$C22","v":"Seleccione"},{"$f":"IF(Ganadería!$E22=Otro!B$12,Ganadería!$B22,\"\")","v":""},{"$f":"_xlfn.XLOOKUP(A62,'Base-datos'!$B$510:$B$516,'Base-datos'!$F$510:$F$516)","v":{"$error":"#N/A"}},{"$f":"_xlfn.XLOOKUP(A62,'Base-datos'!$B$510:$B$516,'Base-datos'!$C$510:$C$516)","v":{"$error":"#N/A"}},{"$f":"_xlfn.XLOOKUP(A62,'Base-datos'!$B$510:$B$516,'Base-datos'!$D$510:$D$516)","v":{"$error":"#N/A"}},null,null,{"$f":"IF(OR(F$56=\"La actividad no cumple con el total de los criterios de No Daño Significativo\",G$56=\"El sector no cumple con las salvaguardas mínimas\"),\"\",IF(AND('Base-datos'!$B$725=\"Sí\",'Base-datos'!$B$726=\"\",'Base-datos'!$B$727=\"\"),IF(D62=\"La actividad sí contribuye sustancialmente a la sostenibilidad\",B62,0),IF(AND('Base-datos'!$B$725=\"Sí\",'Base-datos'!$B$726=\"Sí\",'Base-datos'!$B$727=\"\"),IF(AND(D62=\"La actividad sí contribuye sustancialmente a la sostenibilidad\",E62=\"La actividad sí contribuye sustancialmente a la sostenibilidad\"),B62,0),IF(AND('Base-datos'!$B$725=\"Sí\",'Base-datos'!$B$726=\"Sí\",'Base-datos'!$B$727=\"Sí\"),IF(AND(D62=\"La actividad sí contribuye sustancialmente a la sostenibilidad\",E62=\"La actividad sí contribuye sustancialmente a la sostenibilidad\",C62=\"La actividad sí contribuye sustancialmente a la sostenibilidad\"),B62,0),IF(AND('Base-datos'!$B$725=\"\",'Base-datos'!$B$726=\"Sí\",'Base-datos'!$B$727=\"\"),IF(E62=\"La actividad sí contribuye sustancialmente a la sostenibilidad\",B62,0),IF(AND('Base-datos'!$B$725=\"\",'Base-datos'!$B$726=\"\",'Base-datos'!$B$727=\"Sí\"),IF(C62=\"La actividad sí contribuye sustancialmente a la sostenibilidad\",B62,0),IF(AND('Base-datos'!$B$725=\"\",'Base-datos'!$B$726=\"Sí\",'Base-datos'!$B$727=\"Sí\"),IF(AND(E62=\"La actividad sí contribuye sustancialmente a la sostenibilidad\",C62=\"La actividad sí contribuye sustancialmente a la sostenibilidad\"),B62,0),IF(AND('Base-datos'!$B$725=\"Sí\",'Base-datos'!$B$726=\"\",'Base-datos'!$B$727=\"Sí\"),IF(AND(D62=\"La actividad sí contribuye sustancialmente a la sostenibilidad\",C62=\"La actividad sí contribuye sustancialmente a la sostenibilidad\"),B62,0),\"Por definir\"))))))))","v":"Por definir"}]
[{"$f":"Ganadería!$C24","v":"Seleccione"},{"$f":"IF(Ganadería!$E24=Otro!B$12,Ganadería!$B24,\"\")","v":""},{"$f":"_xlfn.XLOOKUP(A63,'Base-datos'!$B$510:$B$516,'Base-datos'!$F$510:$F$516)","v":{"$error":"#N/A"}},{"$f":"_xlfn.XLOOKUP(A63,'Base-datos'!$B$510:$B$516,'Base-datos'!$C$510:$C$516)","v":{"$error":"#N/A"}},{"$f":"_xlfn.XLOOKUP(A63,'Base-datos'!$B$510:$B$516,'Base-datos'!$D$510:$D$516)","v":{"$error":"#N/A"}},null,null,{"$f":"IF(OR(F$56=\"La actividad no cumple con el total de los criterios de No Daño Significativo\",G$56=\"El sector no cumple con las salvaguardas mínimas\"),\"\",IF(AND('Base-datos'!$B$725=\"Sí\",'Base-datos'!$B$726=\"\",'Base-datos'!$B$727=\"\"),IF(D63=\"La actividad sí contribuye sustancialmente a la sostenibilidad\",B63,0),IF(AND('Base-datos'!$B$725=\"Sí\",'Base-datos'!$B$726=\"Sí\",'Base-datos'!$B$727=\"\"),IF(AND(D63=\"La actividad sí contribuye sustancialmente a la sostenibilidad\",E63=\"La actividad sí contribuye sustancialmente a la sostenibilidad\"),B63,0),IF(AND('Base-datos'!$B$725=\"Sí\",'Base-datos'!$B$726=\"Sí\",'Base-datos'!$B$727=\"Sí\"),IF(AND(D63=\"La actividad sí contribuye sustancialmente a la sostenibilidad\",E63=\"La actividad sí contribuye sustancialmente a la sostenibilidad\",C63=\"La actividad sí contribuye sustancialmente a la sostenibilidad\"),B63,0),IF(AND('Base-datos'!$B$725=\"\",'Base-datos'!$B$726=\"Sí\",'Base-datos'!$B$727=\"\"),IF(E63=\"La actividad sí contribuye sustancialmente a la sostenibilidad\",B63,0),IF(AND('Base-datos'!$B$725=\"\",'Base-datos'!$B$726=\"\",'Base-datos'!$B$727=\"Sí\"),IF(C63=\"La actividad sí contribuye sustancialmente a la sostenibilidad\",B63,0),IF(AND('Base-datos'!$B$725=\"\",'Base-datos'!$B$726=\"Sí\",'Base-datos'!$B$727=\"Sí\"),IF(AND(E63=\"La actividad sí contribuye sustancialmente a la sostenibilidad\",C63=\"La actividad sí contribuye sustancialmente a la sostenibilidad\"),B63,0),IF(AND('Base-datos'!$B$725=\"Sí\",'Base-datos'!$B$726=\"\",'Base-datos'!$B$727=\"Sí\"),IF(AND(D63=\"La actividad sí contribuye sustancialmente a la sostenibilidad\",C63=\"La actividad sí contribuye sustancialmente a la sostenibilidad\"),B63,0),\"Por definir\"))))))))","v":"Por definir"}]
[{"$f":"Ganadería!$C26","v":"Seleccione"},{"$f":"IF(Ganadería!$E26=Otro!B$12,Ganadería!$B26,\"\")","v":""},{"$f":"_xlfn.XLOOKUP(A64,'Base-datos'!$B$510:$B$516,'Base-datos'!$F$510:$F$516)","v":{"$error":"#N/A"}},{"$f":"_xlfn.XLOOKUP(A64,'Base-datos'!$B$510:$B$516,'Base-datos'!$C$510:$C$516)","v":{"$error":"#N/A"}},{"$f":"_xlfn.XLOOKUP(A64,'Base-datos'!$B$510:$B$516,'Base-datos'!$D$510:$D$516)","v":{"$error":"#N/A"}},null,null,{"$f":"IF(OR(F$56=\"La actividad no cumple con el total de los criterios de No Daño Significativo\",G$56=\"El sector no cumple con las salvaguardas mínimas\"),\"\",IF(AND('Base-datos'!$B$725=\"Sí\",'Base-datos'!$B$726=\"\",'Base-datos'!$B$727=\"\"),IF(D64=\"La actividad sí contribuye sustancialmente a la sostenibilidad\",B64,0),IF(AND('Base-datos'!$B$725=\"Sí\",'Base-datos'!$B$726=\"Sí\",'Base-datos'!$B$727=\"\"),IF(AND(D64=\"La actividad sí contribuye sustancialmente a la sostenibilidad\",E64=\"La actividad sí contribuye sustancialmente a la sostenibilidad\"),B64,0),IF(AND('Base-datos'!$B$725=\"Sí\",'Base-datos'!$B$726=\"Sí\",'Base-datos'!$B$727=\"Sí\"),IF(AND(D64=\"La actividad sí contribuye sustancialmente a la sostenibilidad\",E64=\"La actividad sí contribuye sustancialmente a la sostenibilidad\",C64=\"La actividad sí contribuye sustancialmente a la sostenibilidad\"),B64,0),IF(AND('Base-datos'!$B$725=\"\",'Base-datos'!$B$726=\"Sí\",'Base-datos'!$B$727=\"\"),IF(E64=\"La actividad sí contribuye sustancialmente a la sostenibilidad\",B64,0),IF(AND('Base-datos'!$B$725=\"\",'Base-datos'!$B$726=\"\",'Base-datos'!$B$727=\"Sí\"),IF(C64=\"La actividad sí contribuye sustancialmente a la sostenibilidad\",B64,0),IF(AND('Base-datos'!$B$725=\"\",'Base-datos'!$B$726=\"Sí\",'Base-datos'!$B$727=\"Sí\"),IF(AND(E64=\"La actividad sí contribuye sustancialmente a la sostenibilidad\",C64=\"La actividad sí contribuye sustancialmente a la sostenibilidad\"),B64,0),IF(AND('Base-datos'!$B$725=\"Sí\",'Base-datos'!$B$726=\"\",'Base-datos'!$B$727=\"Sí\"),IF(AND(D64=\"La actividad sí contribuye sustancialmente a la sostenibilidad\",C64=\"La actividad sí contribuye sustancialmente a la sostenibilidad\"),B64,0),\"Por definir\"))))))))","v":"Por definir"}]
[{"$f":"Ganadería!$C28","v":"Seleccione"},{"$f":"IF(Ganadería!$E28=Otro!B$12,Ganadería!$B28,\"\")","v":""},{"$f":"_xlfn.XLOOKUP(A65,'Base-datos'!$B$510:$B$516,'Base-datos'!$F$510:$F$516)","v":{"$error":"#N/A"}},{"$f":"_xlfn.XLOOKUP(A65,'Base-datos'!$B$510:$B$516,'Base-datos'!$C$510:$C$516)","v":{"$error":"#N/A"}},{"$f":"_xlfn.XLOOKUP(A65,'Base-datos'!$B$510:$B$516,'Base-datos'!$D$510:$D$516)","v":{"$error":"#N/A"}},null,null,{"$f":"IF(OR(F$56=\"La actividad no cumple con el total de los criterios de No Daño Significativo\",G$56=\"El sector no cumple con las salvaguardas mínimas\"),\"\",IF(AND('Base-datos'!$B$725=\"Sí\",'Base-datos'!$B$726=\"\",'Base-datos'!$B$727=\"\"),IF(D65=\"La actividad sí contribuye sustancialmente a la sostenibilidad\",B65,0),IF(AND('Base-datos'!$B$725=\"Sí\",'Base-datos'!$B$726=\"Sí\",'Base-datos'!$B$727=\"\"),IF(AND(D65=\"La actividad sí contribuye sustancialmente a la sostenibilidad\",E65=\"La actividad sí contribuye sustancialmente a la sostenibilidad\"),B65,0),IF(AND('Base-datos'!$B$725=\"Sí\",'Base-datos'!$B$726=\"Sí\",'Base-datos'!$B$727=\"Sí\"),IF(AND(D65=\"La actividad sí contribuye sustancialmente a la sostenibilidad\",E65=\"La actividad sí contribuye sustancialmente a la sostenibilidad\",C65=\"La actividad sí contribuye sustancialmente a la sostenibilidad\"),B65,0),IF(AND('Base-datos'!$B$725=\"\",'Base-datos'!$B$726=\"Sí\",'Base-datos'!$B$727=\"\"),IF(E65=\"La actividad sí contribuye sustancialmente a la sostenibilidad\",B65,0),IF(AND('Base-datos'!$B$725=\"\",'Base-datos'!$B$726=\"\",'Base-datos'!$B$727=\"Sí\"),IF(C65=\"La actividad sí contribuye sustancialmente a la sostenibilidad\",B65,0),IF(AND('Base-datos'!$B$725=\"\",'Base-datos'!$B$726=\"Sí\",'Base-datos'!$B$727=\"Sí\"),IF(AND(E65=\"La actividad sí contribuye sustancialmente a la sostenibilidad\",C65=\"La actividad sí contribuye sustancialmente a la sostenibilidad\"),B65,0),IF(AND('Base-datos'!$B$725=\"Sí\",'Base-datos'!$B$726=\"\",'Base-datos'!$B$727=\"Sí\"),IF(AND(D65=\"La actividad sí contribuye sustancialmente a la sostenibilidad\",C65=\"La actividad sí contribuye sustancialmente a la sostenibilidad\"),B65,0),\"Por definir\"))))))))","v":"Por definir"}]
[{"$f":"Ganadería!$C30","v":"Seleccione"},{"$f":"IF(Ganadería!$E30=Otro!B$12,Ganadería!$B30,\"\")","v":""},{"$f":"_xlfn.XLOOKUP(A66,'Base-datos'!$B$510:$B$516,'Base-datos'!$F$510:$F$516)","v":{"$error":"#N/A"}},{"$f":"_xlfn.XLOOKUP(A66,'Base-datos'!$B$510:$B$516,'Base-datos'!$C$510:$C$516)","v":{"$error":"#N/A"}},{"$f":"_xlfn.XLOOKUP(A66,'Base-datos'!$B$510:$B$516,'Base-datos'!$D$510:$D$516)","v":{"$error":"#N/A"}},null,null,{"$f":"IF(OR(F$56=\"La actividad no cumple con el total de los criterios de No Daño Significativo\",G$56=\"El sector no cumple con las salvaguardas mínimas\"),\"\",IF(AND('Base-datos'!$B$725=\"Sí\",'Base-datos'!$B$726=\"\",'Base-datos'!$B$727=\"\"),IF(D66=\"La actividad sí contribuye sustancialmente a la sostenibilidad\",B66,0),IF(AND('Base-datos'!$B$725=\"Sí\",'Base-datos'!$B$726=\"Sí\",'Base-datos'!$B$727=\"\"),IF(AND(D66=\"La actividad sí contribuye sustancialmente a la sostenibilidad\",E66=\"La actividad sí contribuye sustancialmente a la sostenibilidad\"),B66,0),IF(AND('Base-datos'!$B$725=\"Sí\",'Base-datos'!$B$726=\"Sí\",'Base-datos'!$B$727=\"Sí\"),IF(AND(D66=\"La actividad sí contribuye sustancialmente a la sostenibilidad\",E66=\"La actividad sí contribuye sustancialmente a la sostenibilidad\",C66=\"La actividad sí contribuye sustancialmente a la sostenibilidad\"),B66,0),IF(AND('Base-datos'!$B$725=\"\",'Base-datos'!$B$726=\"Sí\",'Base-datos'!$B$727=\"\"),IF(E66=\"La actividad sí contribuye sustancialmente a la sostenibilidad\",B66,0),IF(AND('Base-datos'!$B$725=\"\",'Base-datos'!$B$726=\"\",'Base-datos'!$B$727=\"Sí\"),IF(C66=\"La actividad sí contribuye sustancialmente a la sostenibilidad\",B66,0),IF(AND('Base-datos'!$B$725=\"\",'Base-datos'!$B$726=\"Sí\",'Base-datos'!$B$727=\"Sí\"),IF(AND(E66=\"La actividad sí contribuye sustancialmente a la sostenibilidad\",C66=\"La actividad sí contribuye sustancialmente a la sostenibilidad\"),B66,0),IF(AND('Base-datos'!$B$725=\"Sí\",'Base-datos'!$B$726=\"\",'Base-datos'!$B$727=\"Sí\"),IF(AND(D66=\"La actividad sí contribuye sustancialmente a la sostenibilidad\",C66=\"La actividad sí contribuye sustancialmente a la sostenibilidad\"),B66,0),\"Por definir\"))))))))","v":"Por definir"}]
[{"$f":"Ganadería!$C32","v":"Seleccione"},{"$f":"IF(Ganadería!$E32=Otro!B$12,Ganadería!$B32,\"\")","v":""},{"$f":"_xlfn.XLOOKUP(A67,'Base-datos'!$B$510:$B$516,'Base-datos'!$F$510:$F$516)","v":{"$error":"#N/A"}},{"$f":"_xlfn.XLOOKUP(A67,'Base-datos'!$B$510:$B$516,'Base-datos'!$C$510:$C$516)","v":{"$error":"#N/A"}},{"$f":"_xlfn.XLOOKUP(A67,'Base-datos'!$B$510:$B$516,'Base-datos'!$D$510:$D$516)","v":{"$error":"#N/A"}},null,null,{"$f":"IF(OR(F$56=\"La actividad no cumple con el total de los criterios de No Daño Significativo\",G$56=\"El sector no cumple con las salvaguardas mínimas\"),\"\",IF(AND('Base-datos'!$B$725=\"Sí\",'Base-datos'!$B$726=\"\",'Base-datos'!$B$727=\"\"),IF(D67=\"La actividad sí contribuye sustancialmente a la sostenibilidad\",B67,0),IF(AND('Base-datos'!$B$725=\"Sí\",'Base-datos'!$B$726=\"Sí\",'Base-datos'!$B$727=\"\"),IF(AND(D67=\"La actividad sí contribuye sustancialmente a la sostenibilidad\",E67=\"La actividad sí contribuye sustancialmente a la sostenibilidad\"),B67,0),IF(AND('Base-datos'!$B$725=\"Sí\",'Base-datos'!$B$726=\"Sí\",'Base-datos'!$B$727=\"Sí\"),IF(AND(D67=\"La actividad sí contribuye sustancialmente a la sostenibilidad\",E67=\"La actividad sí contribuye sustancialmente a la sostenibilidad\",C67=\"La actividad sí contribuye sustancialmente a la sostenibilidad\"),B67,0),IF(AND('Base-datos'!$B$725=\"\",'Base-datos'!$B$726=\"Sí\",'Base-datos'!$B$727=\"\"),IF(E67=\"La actividad sí contribuye sustancialmente a la sostenibilidad\",B67,0),IF(AND('Base-datos'!$B$725=\"\",'Base-datos'!$B$726=\"\",'Base-datos'!$B$727=\"Sí\"),IF(C67=\"La actividad sí contribuye sustancialmente a la sostenibilidad\",B67,0),IF(AND('Base-datos'!$B$725=\"\",'Base-datos'!$B$726=\"Sí\",'Base-datos'!$B$727=\"Sí\"),IF(AND(E67=\"La actividad sí contribuye sustancialmente a la sostenibilidad\",C67=\"La actividad sí contribuye sustancialmente a la sostenibilidad\"),B67,0),IF(AND('Base-datos'!$B$725=\"Sí\",'Base-datos'!$B$726=\"\",'Base-datos'!$B$727=\"Sí\"),IF(AND(D67=\"La actividad sí contribuye sustancialmente a la sostenibilidad\",C67=\"La actividad sí contribuye sustancialmente a la sostenibilidad\"),B67,0),\"Por definir\"))))))))","v":"Por definir"}]
[{"$f":"Ganadería!$C34","v":"Seleccione"},{"$f":"IF(Ganadería!$E34=Otro!B$12,Ganadería!$B34,\"\")","v":""},{"$f":"_xlfn.XLOOKUP(A68,'Base-datos'!$B$510:$B$516,'Base-datos'!$F$510:$F$516)","v":{"$error":"#N/A"}},{"$f":"_xlfn.XLOOKUP(A68,'Base-datos'!$B$510:$B$516,'Base-datos'!$C$510:$C$516)","v":{"$error":"#N/A"}},{"$f":"_xlfn.XLOOKUP(A68,'Base-datos'!$B$510:$B$516,'Base-datos'!$D$510:$D$516)","v":{"$error":"#N/A"}},null,null,{"$f":"IF(OR(F$56=\"La actividad no cumple con el total de los criterios de No Daño Significativo\",G$56=\"El sector no cumple con las salvaguardas mínimas\"),\"\",IF(AND('Base-datos'!$B$725=\"Sí\",'Base-datos'!$B$726=\"\",'Base-datos'!$B$727=\"\"),IF(D68=\"La actividad sí contribuye sustancialmente a la sostenibilidad\",B68,0),IF(AND('Base-datos'!$B$725=\"Sí\",'Base-datos'!$B$726=\"Sí\",'Base-datos'!$B$727=\"\"),IF(AND(D68=\"La actividad sí contribuye sustancialmente a la sostenibilidad\",E68=\"La actividad sí contribuye sustancialmente a la sostenibilidad\"),B68,0),IF(AND('Base-datos'!$B$725=\"Sí\",'Base-datos'!$B$726=\"Sí\",'Base-datos'!$B$727=\"Sí\"),IF(AND(D68=\"La actividad sí contribuye sustancialmente a la sostenibilidad\",E68=\"La actividad sí contribuye sustancialmente a la sostenibilidad\",C68=\"La actividad sí contribuye sustancialmente a la sostenibilidad\"),B68,0),IF(AND('Base-datos'!$B$725=\"\",'Base-datos'!$B$726=\"Sí\",'Base-datos'!$B$727=\"\"),IF(E68=\"La actividad sí contribuye sustancialmente a la sostenibilidad\",B68,0),IF(AND('Base-datos'!$B$725=\"\",'Base-datos'!$B$726=\"\",'Base-datos'!$B$727=\"Sí\"),IF(C68=\"La actividad sí contribuye sustancialmente a la sostenibilidad\",B68,0),IF(AND('Base-datos'!$B$725=\"\",'Base-datos'!$B$726=\"Sí\",'Base-datos'!$B$727=\"Sí\"),IF(AND(E68=\"La actividad sí contribuye sustancialmente a la sostenibilidad\",C68=\"La actividad sí contribuye sustancialmente a la sostenibilidad\"),B68,0),IF(AND('Base-datos'!$B$725=\"Sí\",'Base-datos'!$B$726=\"\",'Base-datos'!$B$727=\"Sí\"),IF(AND(D68=\"La actividad sí contribuye sustancialmente a la sostenibilidad\",C68=\"La actividad sí contribuye sustancialmente a la sostenibilidad\"),B68,0),\"Por definir\"))))))))","v":"Por definir"}]
[{"$f":"Ganadería!$C36","v":"Seleccione"},{"$f":"IF(Ganadería!$E36=Otro!B$12,Ganadería!$B36,\"\")","v":""},{"$f":"_xlfn.XLOOKUP(A69,'Base-datos'!$B$510:$B$516,'Base-datos'!$F$510:$F$516)","v":{"$error":"#N/A"}},{"$f":"_xlfn.XLOOKUP(A69,'Base-datos'!$B$510:$B$516,'Base-datos'!$C$510:$C$516)","v":{"$error":"#N/A"}},{"$f":"_xlfn.XLOOKUP(A69,'Base-datos'!$B$510:$B$516,'Base-datos'!$D$510:$D$516)","v":{"$error":"#N/A"}},null,null,{"$f":"IF(OR(F$56=\"La actividad no cumple con el total de los criterios de No Daño Significativo\",G$56=\"El sector no cumple con las salvaguardas mínimas\"),\"\",IF(AND('Base-datos'!$B$725=\"Sí\",'Base-datos'!$B$726=\"\",'Base-datos'!$B$727=\"\"),IF(D69=\"La actividad sí contribuye sustancialmente a la sostenibilidad\",B69,0),IF(AND('Base-datos'!$B$725=\"Sí\",'Base-datos'!$B$726=\"Sí\",'Base-datos'!$B$727=\"\"),IF(AND(D69=\"La actividad sí contribuye sustancialmente a la sostenibilidad\",E69=\"La actividad sí contribuye sustancialmente a la sostenibilidad\"),B69,0),IF(AND('Base-datos'!$B$725=\"Sí\",'Base-datos'!$B$726=\"Sí\",'Base-datos'!$B$727=\"Sí\"),IF(AND(D69=\"La actividad sí contribuye sustancialmente a la sostenibilidad\",E69=\"La actividad sí contribuye sustancialmente a la sostenibilidad\",C69=\"La actividad sí contribuye sustancialmente a la sostenibilidad\"),B69,0),IF(AND('Base-datos'!$B$725=\"\",'Base-datos'!$B$726=\"Sí\",'Base-datos'!$B$727=\"\"),IF(E69=\"La actividad sí contribuye sustancialmente a la sostenibilidad\",B69,0),IF(AND('Base-datos'!$B$725=\"\",'Base-datos'!$B$726=\"\",'Base-datos'!$B$727=\"Sí\"),IF(C69=\"La actividad sí contribuye sustancialmente a la sostenibilidad\",B69,0),IF(AND('Base-datos'!$B$725=\"\",'Base-datos'!$B$726=\"Sí\",'Base-datos'!$B$727=\"Sí\"),IF(AND(E69=\"La actividad sí contribuye sustancialmente a la sostenibilidad\",C69=\"La actividad sí contribuye sustancialmente a la sostenibilidad\"),B69,0),IF(AND('Base-datos'!$B$725=\"Sí\",'Base-datos'!$B$726=\"\",'Base-datos'!$B$727=\"Sí\"),IF(AND(D69=\"La actividad sí contribuye sustancialmente a la sostenibilidad\",C69=\"La actividad sí contribuye sustancialmente a la sostenibilidad\"),B69,0),\"Por definir\"))))))))","v":"Por definir"}]
[{"$f":"Ganadería!$C38","v":"Seleccione"},{"$f":"IF(Ganadería!$E38=Otro!B$12,Ganadería!$B38,\"\")","v":""},{"$f":"_xlfn.XLOOKUP(A70,'Base-datos'!$B$510:$B$516,'Base-datos'!$F$510:$F$516)","v":{"$error":"#N/A"}},{"$f":"_xlfn.XLOOKUP(A70,'Base-datos'!$B$510:$B$516,'Base-datos'!$C$510:$C$516)","v":{"$error":"#N/A"}},{"$f":"_xlfn.XLOOKUP(A70,'Base-datos'!$B$510:$B$516,'Base-datos'!$D$510:$D$516)","v":{"$error":"#N/A"}},null,null,{"$f":"IF(OR(F$56=\"La actividad no cumple con el total de los criterios de No Daño Significativo\",G$56=\"El sector no cumple con las salvaguardas mínimas\"),\"\",IF(AND('Base-datos'!$B$725=\"Sí\",'Base-datos'!$B$726=\"\",'Base-datos'!$B$727=\"\"),IF(D70=\"La actividad sí contribuye sustancialmente a la sostenibilidad\",B70,0),IF(AND('Base-datos'!$B$725=\"Sí\",'Base-datos'!$B$726=\"Sí\",'Base-datos'!$B$727=\"\"),IF(AND(D70=\"La actividad sí contribuye sustancialmente a la sostenibilidad\",E70=\"La actividad sí contribuye sustancialmente a la sostenibilidad\"),B70,0),IF(AND('Base-datos'!$B$725=\"Sí\",'Base-datos'!$B$726=\"Sí\",'Base-datos'!$B$727=\"Sí\"),IF(AND(D70=\"La actividad sí contribuye sustancialmente a la sostenibilidad\",E70=\"La actividad sí contribuye sustancialmente a la sostenibilidad\",C70=\"La actividad sí contribuye sustancialmente a la sostenibilidad\"),B70,0),IF(AND('Base-datos'!$B$725=\"\",'Base-datos'!$B$726=\"Sí\",'Base-datos'!$B$727=\"\"),IF(E70=\"La actividad sí contribuye sustancialmente a la sostenibilidad\",B70,0),IF(AND('Base-datos'!$B$725=\"\",'Base-datos'!$B$726=\"\",'Base-datos'!$B$727=\"Sí\"),IF(C70=\"La actividad sí contribuye sustancialmente a la sostenibilidad\",B70,0),IF(AND('Base-datos'!$B$725=\"\",'Base-datos'!$B$726=\"Sí\",'Base-datos'!$B$727=\"Sí\"),IF(AND(E70=\"La actividad sí contribuye sustancialmente a la sostenibilidad\",C70=\"La actividad sí contribuye sustancialmente a la sostenibilidad\"),B70,0),IF(AND('Base-datos'!$B$725=\"Sí\",'Base-datos'!$B$726=\"\",'Base-datos'!$B$727=\"Sí\"),IF(AND(D70=\"La actividad sí contribuye sustancialmente a la sostenibilidad\",C70=\"La actividad sí contribuye sustancialmente a la sostenibilidad\"),B70,0),\"Por definir\"))))))))","v":"Por definir"}]
[{"$f":"Ganadería!$C40","v":"Seleccione"},{"$f":"IF(Ganadería!$E40=Otro!B$12,Ganadería!$B40,\"\")","v":""},{"$f":"_xlfn.XLOOKUP(A71,'Base-datos'!$B$510:$B$516,'Base-datos'!$F$510:$F$516)","v":{"$error":"#N/A"}},{"$f":"_xlfn.XLOOKUP(A71,'Base-datos'!$B$510:$B$516,'Base-datos'!$C$510:$C$516)","v":{"$error":"#N/A"}},{"$f":"_xlfn.XLOOKUP(A71,'Base-datos'!$B$510:$B$516,'Base-datos'!$D$510:$D$516)","v":{"$error":"#N/A"}},null,null,{"$f":"IF(OR(F$56=\"La actividad no cumple con el total de los criterios de No Daño Significativo\",G$56=\"El sector no cumple con las salvaguardas mínimas\"),\"\",IF(AND('Base-datos'!$B$725=\"Sí\",'Base-datos'!$B$726=\"\",'Base-datos'!$B$727=\"\"),IF(D71=\"La actividad sí contribuye sustancialmente a la sostenibilidad\",B71,0),IF(AND('Base-datos'!$B$725=\"Sí\",'Base-datos'!$B$726=\"Sí\",'Base-datos'!$B$727=\"\"),IF(AND(D71=\"La actividad sí contribuye sustancialmente a la sostenibilidad\",E71=\"La actividad sí contribuye sustancialmente a la sostenibilidad\"),B71,0),IF(AND('Base-datos'!$B$725=\"Sí\",'Base-datos'!$B$726=\"Sí\",'Base-datos'!$B$727=\"Sí\"),IF(AND(D71=\"La actividad sí contribuye sustancialmente a la sostenibilidad\",E71=\"La actividad sí contribuye sustancialmente a la sostenibilidad\",C71=\"La actividad sí contribuye sustancialmente a la sostenibilidad\"),B71,0),IF(AND('Base-datos'!$B$725=\"\",'Base-datos'!$B$726=\"Sí\",'Base-datos'!$B$727=\"\"),IF(E71=\"La actividad sí contribuye sustancialmente a la sostenibilidad\",B71,0),IF(AND('Base-datos'!$B$725=\"\",'Base-datos'!$B$726=\"\",'Base-datos'!$B$727=\"Sí\"),IF(C71=\"La actividad sí contribuye sustancialmente a la sostenibilidad\",B71,0),IF(AND('Base-datos'!$B$725=\"\",'Base-datos'!$B$726=\"Sí\",'Base-datos'!$B$727=\"Sí\"),IF(AND(E71=\"La actividad sí contribuye sustancialmente a la sostenibilidad\",C71=\"La actividad sí contribuye sustancialmente a la sostenibilidad\"),B71,0),IF(AND('Base-datos'!$B$725=\"Sí\",'Base-datos'!$B$726=\"\",'Base-datos'!$B$727=\"Sí\"),IF(AND(D71=\"La actividad sí contribuye sustancialmente a la sostenibilidad\",C71=\"La actividad sí contribuye sustancialmente a la sostenibilidad\"),B71,0),\"Por definir\"))))))))","v":"Por definir"}]
[{"$f":"Ganadería!$C42","v":"Seleccione"},{"$f":"IF(Ganadería!$E42=Otro!B$12,Ganadería!$B42,\"\")","v":""},{"$f":"_xlfn.XLOOKUP(A72,'Base-datos'!$B$510:$B$516,'Base-datos'!$F$510:$F$516)","v":{"$error":"#N/A"}},{"$f":"_xlfn.XLOOKUP(A72,'Base-datos'!$B$510:$B$516,'Base-datos'!$C$510:$C$516)","v":{"$error":"#N/A"}},{"$f":"_xlfn.XLOOKUP(A72,'Base-datos'!$B$510:$B$516,'Base-datos'!$D$510:$D$516)","v":{"$error":"#N/A"}},null,null,{"$f":"IF(OR(F$56=\"La actividad no cumple con el total de los criterios de No Daño Significativo\",G$56=\"El sector no cumple con las salvaguardas mínimas\"),\"\",IF(AND('Base-datos'!$B$725=\"Sí\",'Base-datos'!$B$726=\"\",'Base-datos'!$B$727=\"\"),IF(D72=\"La actividad sí contribuye sustancialmente a la sostenibilidad\",B72,0),IF(AND('Base-datos'!$B$725=\"Sí\",'Base-datos'!$B$726=\"Sí\",'Base-datos'!$B$727=\"\"),IF(AND(D72=\"La actividad sí contribuye sustancialmente a la sostenibilidad\",E72=\"La actividad sí contribuye sustancialmente a la sostenibilidad\"),B72,0),IF(AND('Base-datos'!$B$725=\"Sí\",'Base-datos'!$B$726=\"Sí\",'Base-datos'!$B$727=\"Sí\"),IF(AND(D72=\"La actividad sí contribuye sustancialmente a la sostenibilidad\",E72=\"La actividad sí contribuye sustancialmente a la sostenibilidad\",C72=\"La actividad sí contribuye sustancialmente a la sostenibilidad\"),B72,0),IF(AND('Base-datos'!$B$725=\"\",'Base-datos'!$B$726=\"Sí\",'Base-datos'!$B$727=\"\"),IF(E72=\"La actividad sí contribuye sustancialmente a la sostenibilidad\",B72,0),IF(AND('Base-datos'!$B$725=\"\",'Base-datos'!$B$726=\"\",'Base-datos'!$B$727=\"Sí\"),IF(C72=\"La actividad sí contribuye sustancialmente a la sostenibilidad\",B72,0),IF(AND('Base-datos'!$B$725=\"\",'Base-datos'!$B$726=\"Sí\",'Base-datos'!$B$727=\"Sí\"),IF(AND(E72=\"La actividad sí contribuye sustancialmente a la sostenibilidad\",C72=\"La actividad sí contribuye sustancialmente a la sostenibilidad\"),B72,0),IF(AND('Base-datos'!$B$725=\"Sí\",'Base-datos'!$B$726=\"\",'Base-datos'!$B$727=\"Sí\"),IF(AND(D72=\"La actividad sí contribuye sustancialmente a la sostenibilidad\",C72=\"La actividad sí contribuye sustancialmente a la sostenibilidad\"),B72,0),\"Por definir\"))))))))","v":"Por definir"}]
[{"$f":"Ganadería!$C44","v":"Seleccione"},{"$f":"IF(Ganadería!$E44=Otro!B$12,Ganadería!$B44,\"\")","v":""},{"$f":"_xlfn.XLOOKUP(A73,'Base-datos'!$B$510:$B$516,'Base-datos'!$F$510:$F$516)","v":{"$error":"#N/A"}},{"$f":"_xlfn.XLOOKUP(A73,'Base-datos'!$B$510:$B$516,'Base-datos'!$C$510:$C$516)","v":{"$error":"#N/A"}},{"$f":"_xlfn.XLOOKUP(A73,'Base-datos'!$B$510:$B$516,'Base-datos'!$D$510:$D$516)","v":{"$error":"#N/A"}},null,null,{"$f":"IF(OR(F$56=\"La actividad no cumple con el total de los criterios de No Daño Significativo\",G$56=\"El sector no cumple con las salvaguardas mínimas\"),\"\",IF(AND('Base-datos'!$B$725=\"Sí\",'Base-datos'!$B$726=\"\",'Base-datos'!$B$727=\"\"),IF(D73=\"La actividad sí contribuye sustancialmente a la sostenibilidad\",B73,0),IF(AND('Base-datos'!$B$725=\"Sí\",'Base-datos'!$B$726=\"Sí\",'Base-datos'!$B$727=\"\"),IF(AND(D73=\"La actividad sí contribuye sustancialmente a la sostenibilidad\",E73=\"La actividad sí contribuye sustancialmente a la sostenibilidad\"),B73,0),IF(AND('Base-datos'!$B$725=\"Sí\",'Base-datos'!$B$726=\"Sí\",'Base-datos'!$B$727=\"Sí\"),IF(AND(D73=\"La actividad sí contribuye sustancialmente a la sostenibilidad\",E73=\"La actividad sí contribuye sustancialmente a la sostenibilidad\",C73=\"La actividad sí contribuye sustancialmente a la sostenibilidad\"),B73,0),IF(AND('Base-datos'!$B$725=\"\",'Base-datos'!$B$726=\"Sí\",'Base-datos'!$B$727=\"\"),IF(E73=\"La actividad sí contribuye sustancialmente a la sostenibilidad\",B73,0),IF(AND('Base-datos'!$B$725=\"\",'Base-datos'!$B$726=\"\",'Base-datos'!$B$727=\"Sí\"),IF(C73=\"La actividad sí contribuye sustancialmente a la sostenibilidad\",B73,0),IF(AND('Base-datos'!$B$725=\"\",'Base-datos'!$B$726=\"Sí\",'Base-datos'!$B$727=\"Sí\"),IF(AND(E73=\"La actividad sí contribuye sustancialmente a la sostenibilidad\",C73=\"La actividad sí contribuye sustancialmente a la sostenibilidad\"),B73,0),IF(AND('Base-datos'!$B$725=\"Sí\",'Base-datos'!$B$726=\"\",'Base-datos'!$B$727=\"Sí\"),IF(AND(D73=\"La actividad sí contribuye sustancialmente a la sostenibilidad\",C73=\"La actividad sí contribuye sustancialmente a la sostenibilidad\"),B73,0),\"Por definir\"))))))))","v":"Por definir"}]
[{"$f":"Ganadería!$C46","v":"Seleccione"},{"$f":"IF(Ganadería!$E46=Otro!B$12,Ganadería!$B46,\"\")","v":""},{"$f":"_xlfn.XLOOKUP(A74,'Base-datos'!$B$510:$B$516,'Base-datos'!$F$510:$F$516)","v":{"$error":"#N/A"}},{"$f":"_xlfn.XLOOKUP(A74,'Base-datos'!$B$510:$B$516,'Base-datos'!$C$510:$C$516)","v":{"$error":"#N/A"}},{"$f":"_xlfn.XLOOKUP(A74,'Base-datos'!$B$510:$B$516,'Base-datos'!$D$510:$D$516)","v":{"$error":"#N/A"}},null,null,{"$f":"IF(OR(F$56=\"La actividad no cumple con el total de los criterios de No Daño Significativo\",G$56=\"El sector no cumple con las salvaguardas mínimas\"),\"\",IF(AND('Base-datos'!$B$725=\"Sí\",'Base-datos'!$B$726=\"\",'Base-datos'!$B$727=\"\"),IF(D74=\"La actividad sí contribuye sustancialmente a la sostenibilidad\",B74,0),IF(AND('Base-datos'!$B$725=\"Sí\",'Base-datos'!$B$726=\"Sí\",'Base-datos'!$B$727=\"\"),IF(AND(D74=\"La actividad sí contribuye sustancialmente a la sostenibilidad\",E74=\"La actividad sí contribuye sustancialmente a la sostenibilidad\"),B74,0),IF(AND('Base-datos'!$B$725=\"Sí\",'Base-datos'!$B$726=\"Sí\",'Base-datos'!$B$727=\"Sí\"),IF(AND(D74=\"La actividad sí contribuye sustancialmente a la sostenibilidad\",E74=\"La actividad sí contribuye sustancialmente a la sostenibilidad\",C74=\"La actividad sí contribuye sustancialmente a la sostenibilidad\"),B74,0),IF(AND('Base-datos'!$B$725=\"\",'Base-datos'!$B$726=\"Sí\",'Base-datos'!$B$727=\"\"),IF(E74=\"La actividad sí contribuye sustancialmente a la sostenibilidad\",B74,0),IF(AND('Base-datos'!$B$725=\"\",'Base-datos'!$B$726=\"\",'Base-datos'!$B$727=\"Sí\"),IF(C74=\"La actividad sí contribuye sustancialmente a la sostenibilidad\",B74,0),IF(AND('Base-datos'!$B$725=\"\",'Base-datos'!$B$726=\"Sí\",'Base-datos'!$B$727=\"Sí\"),IF(AND(E74=\"La actividad sí contribuye sustancialmente a la sostenibilidad\",C74=\"La actividad sí contribuye sustancialmente a la sostenibilidad\"),B74,0),IF(AND('Base-datos'!$B$725=\"Sí\",'Base-datos'!$B$726=\"\",'Base-datos'!$B$727=\"Sí\"),IF(AND(D74=\"La actividad sí contribuye sustancialmente a la sostenibilidad\",C74=\"La actividad sí contribuye sustancialmente a la sostenibilidad\"),B74,0),\"Por definir\"))))))))","v":"Por definir"}]
[{"$f":"Ganadería!$C48","v":"Seleccione"},{"$f":"IF(Ganadería!$E48=Otro!B$12,Ganadería!$B48,\"\")","v":""},{"$f":"_xlfn.XLOOKUP(A75,'Base-datos'!$B$510:$B$516,'Base-datos'!$F$510:$F$516)","v":{"$error":"#N/A"}},{"$f":"_xlfn.XLOOKUP(A75,'Base-datos'!$B$510:$B$516,'Base-datos'!$C$510:$C$516)","v":{"$error":"#N/A"}},{"$f":"_xlfn.XLOOKUP(A75,'Base-datos'!$B$510:$B$516,'Base-datos'!$D$510:$D$516)","v":{"$error":"#N/A"}},null,null,{"$f":"IF(OR(F$56=\"La actividad no cumple con el total de los criterios de No Daño Significativo\",G$56=\"El sector no cumple con las salvaguardas mínimas\"),\"\",IF(AND('Base-datos'!$B$725=\"Sí\",'Base-datos'!$B$726=\"\",'Base-datos'!$B$727=\"\"),IF(D75=\"La actividad sí contribuye sustancialmente a la sostenibilidad\",B75,0),IF(AND('Base-datos'!$B$725=\"Sí\",'Base-datos'!$B$726=\"Sí\",'Base-datos'!$B$727=\"\"),IF(AND(D75=\"La actividad sí contribuye sustancialmente a la sostenibilidad\",E75=\"La actividad sí contribuye sustancialmente a la sostenibilidad\"),B75,0),IF(AND('Base-datos'!$B$725=\"Sí\",'Base-datos'!$B$726=\"Sí\",'Base-datos'!$B$727=\"Sí\"),IF(AND(D75=\"La actividad sí contribuye sustancialmente a la sostenibilidad\",E75=\"La actividad sí contribuye sustancialmente a la sostenibilidad\",C75=\"La actividad sí contribuye sustancialmente a la sostenibilidad\"),B75,0),IF(AND('Base-datos'!$B$725=\"\",'Base-datos'!$B$726=\"Sí\",'Base-datos'!$B$727=\"\"),IF(E75=\"La actividad sí contribuye sustancialmente a la sostenibilidad\",B75,0),IF(AND('Base-datos'!$B$725=\"\",'Base-datos'!$B$726=\"\",'Base-datos'!$B$727=\"Sí\"),IF(C75=\"La actividad sí contribuye sustancialmente a la sostenibilidad\",B75,0),IF(AND('Base-datos'!$B$725=\"\",'Base-datos'!$B$726=\"Sí\",'Base-datos'!$B$727=\"Sí\"),IF(AND(E75=\"La actividad sí contribuye sustancialmente a la sostenibilidad\",C75=\"La actividad sí contribuye sustancialmente a la sostenibilidad\"),B75,0),IF(AND('Base-datos'!$B$725=\"Sí\",'Base-datos'!$B$726=\"\",'Base-datos'!$B$727=\"Sí\"),IF(AND(D75=\"La actividad sí contribuye sustancialmente a la sostenibilidad\",C75=\"La actividad sí contribuye sustancialmente a la sostenibilidad\"),B75,0),\"Por definir\"))))))))","v":"Por definir"}]
["Energía",null,null,null,null,null,null,{"$f":"SUM(IF(FREQUENCY(MATCH(A77:A96, A77:A96, 0), MATCH(A77:A96, A77:A96, 0)) > 0, IF(NOT(ISERROR(H77:H96)), H77:H96, 0)))","v":0}]
[{"$f":"Energía!$C10","v":"Seleccione"},{"$f":"IF(Energía!$E10=Otro!B$12,Energía!$B10,\"\")","v":""},{"$f":"_xlfn.XLOOKUP(A77,'Base-datos'!$B$521:$B$531,'Base-datos'!$F$521:$F$531)","v":{"$error":"#N/A"}},{"$f":"_xlfn.XLOOKUP(A77,'Base-datos'!$B$521:$B$531,'Base-datos'!$C$521:$C$531)","v":{"$error":"#N/A"}},{"$f":"_xlfn.XLOOKUP(A77,'Base-datos'!$B$521:$B$531,'Base-datos'!$D$521:$D$531)","v":{"$error":"#N/A"}},{"$f":"IF(COUNTIF('Energía-NDS'!G9:G76,\"No\")>0,\"La actividad no cumple con el total de los criterios de NDS\",\"La actividad cumple con los criterios de No Daño Significativo\")","v":"La actividad cumple con los criterios de No Daño Significativo"},{"$f":"IF(OR('Salvaguardas mínimas'!$G$10=\"Seleccione\",'Salvaguardas mínimas'!$G$13=\"Seleccione\",'Salvaguardas mínimas'!$G$16=\"Seleccione\",'Salvaguardas mínimas'!$G$7=\"Seleccione\"),\"No se han respondido todas las preguntas\",IF(OR('Salvaguardas mínimas'!$G$10=\"No\",'Salvaguardas mínimas'!$G$13=\"No\",'Salvaguardas mínimas'!$G$16=\"No\",'Salvaguardas mínimas'!$G$7=\"No\"),\"El sector no cumple con las salvaguardas mínimas\",\"La actividad sí cumple con las salvaguardas mínimas\"))","v":"No se han respondido todas las preguntas"},{"$f":"IF(OR(F$77=\"La actividad no cumple con el total de los criterios de No Daño Significativo\",G$77=\"El sector no cumple con las salvaguardas mínimas\"),\"\",IF(AND('Base-datos'!$B$730=\"Sí\",'Base-datos'!$B$731=\"\",'Base-datos'!$B$732=\"\"),IF(D77=\"La actividad sí contribuye sustancialmente a la sostenibilidad\",B77,0),IF(AND('Base-datos'!$B$730=\"Sí\",'Base-datos'!$B$731=\"Sí\",'Base-datos'!$B$732=\"\"),IF(AND(D77=\"La actividad sí contribuye sustancialmente a la sostenibilidad\",E77=\"La actividad sí contribuye sustancialmente a la sostenibilidad\"),B77,0),IF(AND('Base-datos'!$B$730=\"Sí\",'Base-datos'!$B$731=\"Sí\",'Base-datos'!$B$732=\"Sí\"),IF(AND(D77=\"La actividad sí contribuye sustancialmente a la sostenibilidad\",E77=\"La actividad sí contribuye sustancialmente a la sostenibilidad\",C77=\"La actividad sí contribuye sustancialmente a la sostenibilidad\"),B77,0),IF(AND('Base-datos'!$B$730=\"\",'Base-datos'!$B$731=\"Sí\",'Base-datos'!$B$732=\"\"),IF(E77=\"La actividad sí contribuye sustancialmente a la sostenibilidad\",B77,0),IF(AND('Base-datos'!$B$730=\"\",'Base-datos'!$B$731=\"\",'Base-datos'!$B$732=\"Sí\"),IF(C77=\"La actividad sí contribuye sustancialmente a la sostenibilidad\",B77,0),IF(AND('Base-datos'!$B$730=\"\",'Base-datos'!$B$731=\"Sí\",'Base-datos'!$B$732=\"Sí\"),IF(AND(E77=\"La actividad sí contribuye sustancialmente a la sostenibilidad\",C77=\"La actividad sí contribuye sustancialmente a la sostenibilidad\"),B77,0),IF(AND('Base-datos'!$B$730=\"Sí\",'Base-datos'!$B$731=\"\",'Base-datos'!$B$732=\"Sí\"),IF(AND(D77=\"La actividad sí contribuye sustancialmente a la sostenibilidad\",C77=\"La actividad sí contribuye sustancialmente a la sostenibilidad\"),B77,0),\"Por definir\"))))))))","v":"Por definir"}]
[{"$f":"Energía!$C12","v":"Seleccione"},{"$f":"IF(Energía!$E12=Otro!B$12,Energía!$B12,\"\")","v":""},{"$f":"_xlfn.XLOOKUP(A78,'Base-datos'!$B$521:$B$531,'Base-datos'!$F$521:$F$531)","v":{"$error":"#N/A"}},{"$f":"_xlfn.XLOOKUP(A78,'Base-datos'!$B$521:$B$531,'Base-datos'!$C$521:$C$531)","v":{"$error":"#N/A"}},{"$f":"_xlfn.XLOOKUP(A78,'Base-datos'!$B$521:$B$531,'Base-datos'!$D$521:$D$531)","v":{"$error":"#N/A"}},null,null,{"$f":"IF(OR(F$77=\"La actividad no cumple con el total de los criterios de No Daño Significativo\",G$77=\"El sector no cumple con las salvaguardas mínimas\"),\"\",IF(AND('Base-datos'!$B$730=\"Sí\",'Base-datos'!$B$731=\"\",'Base-datos'!$B$732=\"\"),IF(D78=\"La actividad sí contribuye sustancialmente a la sostenibilidad\",B78,0),IF(AND('Base-datos'!$B$730=\"Sí\",'Base-datos'!$B$731=\"Sí\",'Base-datos'!$B$732=\"\"),IF(AND(D78=\"La actividad sí contribuye sustancialmente a la sostenibilidad\",E78=\"La actividad sí contribuye sustancialmente a la sostenibilidad\"),B78,0),IF(AND('Base-datos'!$B$730=\"Sí\",'Base-datos'!$B$731=\"Sí\",'Base-datos'!$B$732=\"Sí\"),IF(AND(D78=\"La actividad sí contribuye sustancialmente a la sostenibilidad\",E78=\"La actividad sí contribuye sustancialmente a la sostenibilidad\",C78=\"La actividad sí contribuye sustancialmente a la sostenibilidad\"),B78,0),IF(AND('Base-datos'!$B$730=\"\",'Base-datos'!$B$731=\"Sí\",'Base-datos'!$B$732=\"\"),IF(E78=\"La actividad sí contribuye sustancialmente a la sostenibilidad\",B78,0),IF(AND('Base-datos'!$B$730=\"\",'Base-datos'!$B$731=\"\",'Base-datos'!$B$732=\"Sí\"),IF(C78=\"La actividad sí contribuye sustancialmente a la sostenibilidad\",B78,0),IF(AND('Base-datos'!$B$730=\"\",'Base-datos'!$B$731=\"Sí\",'Base-datos'!$B$732=\"Sí\"),IF(AND(E78=\"La actividad sí contribuye sustancialmente a la sostenibilidad\",C78=\"La actividad sí contribuye sustancialmente a la sostenibilidad\"),B78,0),IF(AND('Base-datos'!$B$730=\"Sí\",'Base-datos'!$B$731=\"\",'Base-datos'!$B$732=\"Sí\"),IF(AND(D78=\"La actividad sí contribuye sustancialmente a la sostenibilidad\",C78=\"La actividad sí contribuye sustancialmente a la sostenibilidad\"),B78,0),\"Por definir\"))))))))","v":"Por definir"}]
[{"$f":"Energía!$C14","v":"Seleccione"},{"$f":"IF(Energía!$E14=Otro!B$12,Energía!$B14,\"\")","v":""},{"$f":"_xlfn.XLOOKUP(A79,'Base-datos'!$B$521:$B$531,'Base-datos'!$F$521:$F$531)","v":{"$error":"#N/A"}},{"$f":"_xlfn.XLOOKUP(A79,'Base-datos'!$B$521:$B$531,'Base-datos'!$C$521:$C$531)","v":{"$error":"#N/A"}},{"$f":"_xlfn.XLOOKUP(A79,'Base-datos'!$B$521:$B$531,'Base-datos'!$D$521:$D$531)","v":{"$error":"#N/A"}},null,null,{"$f":"IF(OR(F$77=\"La actividad no cumple con el total de los criterios de No Daño Significativo\",G$77=\"El sector no cumple con las salvaguardas mínimas\"),\"\",IF(AND('Base-datos'!$B$730=\"Sí\",'Base-datos'!$B$731=\"\",'Base-datos'!$B$732=\"\"),IF(D79=\"La actividad sí contribuye sustancialmente a la sostenibilidad\",B79,0),IF(AND('Base-datos'!$B$730=\"Sí\",'Base-datos'!$B$731=\"Sí\",'Base-datos'!$B$732=\"\"),IF(AND(D79=\"La actividad sí contribuye sustancialmente a la sostenibilidad\",E79=\"La actividad sí contribuye sustancialmente a la sostenibilidad\"),B79,0),IF(AND('Base-datos'!$B$730=\"Sí\",'Base-datos'!$B$731=\"Sí\",'Base-datos'!$B$732=\"Sí\"),IF(AND(D79=\"La actividad sí contribuye sustancialmente a la sostenibilidad\",E79=\"La actividad sí contribuye sustancialmente a la sostenibilidad\",C79=\"La actividad sí contribuye sustancialmente a la sostenibilidad\"),B79,0),IF(AND('Base-datos'!$B$730=\"\",'Base-datos'!$B$731=\"Sí\",'Base-datos'!$B$732=\"\"),IF(E79=\"La actividad sí contribuye sustancialmente a la sostenibilidad\",B79,0),IF(AND('Base-datos'!$B$730=\"\",'Base-datos'!$B$731=\"\",'Base-datos'!$B$732=\"Sí\"),IF(C79=\"La actividad sí contribuye sustancialmente a la sostenibilidad\",B79,0),IF(AND('Base-datos'!$B$730=\"\",'Base-datos'!$B$731=\"Sí\",'Base-datos'!$B$732=\"Sí\"),IF(AND(E79=\"La actividad sí contribuye sustancialmente a la sostenibilidad\",C79=\"La actividad sí contribuye sustancialmente a la sostenibilidad\"),B79,0),IF(AND('Base-datos'!$B$730=\"Sí\",'Base-datos'!$B$731=\"\",'Base-datos'!$B$732=\"Sí\"),IF(AND(D79=\"La actividad sí contribuye sustancialmente a la sostenibilidad\",C79=\"La actividad sí contribuye sustancialmente a la sostenibilidad\"),B79,0),\"Por definir\"))))))))","v":"Por definir"}]
[{"$f":"Energía!$C16","v":"Seleccione"},{"$f":"IF(Energía!$E16=Otro!B$12,Energía!$B16,\"\")","v":""},{"$f":"_xlfn.XLOOKUP(A80,'Base-datos'!$B$521:$B$531,'Base-datos'!$F$521:$F$531)","v":{"$error":"#N/A"}},{"$f":"_xlfn.XLOOKUP(A80,'Base-datos'!$B$521:$B$531,'Base-datos'!$C$521:$C$531)","v":{"$error":"#N/A"}},{"$f":"_xlfn.XLOOKUP(A80,'Base-datos'!$B$521:$B$531,'Base-datos'!$D$521:$D$531)","v":{"$error":"#N/A"}},null,null,{"$f":"IF(OR(F$77=\"La actividad no cumple con el total de los criterios de No Daño Significativo\",G$77=\"El sector no cumple con las salvaguardas mínimas\"),\"\",IF(AND('Base-datos'!$B$730=\"Sí\",'Base-datos'!$B$731=\"\",'Base-datos'!$B$732=\"\"),IF(D80=\"La actividad sí contribuye sustancialmente a la sostenibilidad\",B80,0),IF(AND('Base-datos'!$B$730=\"Sí\",'Base-datos'!$B$731=\"Sí\",'Base-datos'!$B$732=\"\"),IF(AND(D80=\"La actividad sí contribuye sustancialmente a la sostenibilidad\",E80=\"La actividad sí contribuye sustancialmente a la sostenibilidad\"),B80,0),IF(AND('Base-datos'!$B$730=\"Sí\",'Base-datos'!$B$731=\"Sí\",'Base-datos'!$B$732=\"Sí\"),IF(AND(D80=\"La actividad sí contribuye sustancialmente a la sostenibilidad\",E80=\"La actividad sí contribuye sustancialmente a la sostenibilidad\",C80=\"La actividad sí contribuye sustancialmente a la sostenibilidad\"),B80,0),IF(AND('Base-datos'!$B$730=\"\",'Base-datos'!$B$731=\"Sí\",'Base-datos'!$B$732=\"\"),IF(E80=\"La actividad sí contribuye sustancialmente a la sostenibilidad\",B80,0),IF(AND('Base-datos'!$B$730=\"\",'Base-datos'!$B$731=\"\",'Base-datos'!$B$732=\"Sí\"),IF(C80=\"La actividad sí contribuye sustancialmente a la sostenibilidad\",B80,0),IF(AND('Base-datos'!$B$730=\"\",'Base-datos'!$B$731=\"Sí\",'Base-datos'!$B$732=\"Sí\"),IF(AND(E80=\"La actividad sí contribuye sustancialmente a la sostenibilidad\",C80=\"La actividad sí contribuye sustancialmente a la sostenibilidad\"),B80,0),IF(AND('Base-datos'!$B$730=\"Sí\",'Base-datos'!$B$731=\"\",'Base-datos'!$B$732=\"Sí\"),IF(AND(D80=\"La actividad sí contribuye sustancialmente a la sostenibilidad\",C80=\"La actividad sí contribuye sustancialmente a la sostenibilidad\"),B80,0),\"Por definir\"))))))))","v":"Por definir"}]
[{"$f":"Energía!$C18","v":"Seleccione"},{"$f":"IF(Energía!$E18=Otro!B$12,Energía!$B18,\"\")","v":""},{"$f":"_xlfn.XLOOKUP(A81,'Base-datos'!$B$521:$B$531,'Base-datos'!$F$521:$F$531)","v":{"$error":"#N/A"}},{"$f":"_xlfn.XLOOKUP(A81,'Base-datos'!$B$521:$B$531,'Base-datos'!$C$521:$C$531)","v":{"$error":"#N/A"}},{"$f":"_xlfn.XLOOKUP(A81,'Base-datos'!$B$521:$B$531,'Base-datos'!$D$521:$D$531)","v":{"$error":"#N/A"}},null,null,{"$f":"IF(OR(F$77=\"La actividad no cumple con el total de los criterios de No Daño Significativo\",G$77=\"El sector no cumple con las salvaguardas mínimas\"),\"\",IF(AND('Base-datos'!$B$730=\"Sí\",'Base-datos'!$B$731=\"\",'Base-datos'!$B$732=\"\"),IF(D81=\"La actividad sí contribuye sustancialmente a la sostenibilidad\",B81,0),IF(AND('Base-datos'!$B$730=\"Sí\",'Base-datos'!$B$731=\"Sí\",'Base-datos'!$B$732=\"\"),IF(AND(D81=\"La actividad sí contribuye sustancialmente a la sostenibilidad\",E81=\"La actividad sí contribuye sustancialmente a la sostenibilidad\"),B81,0),IF(AND('Base-datos'!$B$730=\"Sí\",'Base-datos'!$B$731=\"Sí\",'Base-datos'!$B$732=\"Sí\"),IF(AND(D81=\"La actividad sí contribuye sustancialmente a la sostenibilidad\",E81=\"La actividad sí contribuye sustancialmente a la sostenibilidad\",C81=\"La actividad sí contribuye sustancialmente a la sostenibilidad\"),B81,0),IF(AND('Base-datos'!$B$730=\"\",'Base-datos'!$B$731=\"Sí\",'Base-datos'!$B$732=\"\"),IF(E81=\"La actividad sí contribuye sustancialmente a la sostenibilidad\",B81,0),IF(AND('Base-datos'!$B$730=\"\",'Base-datos'!$B$731=\"\",'Base-datos'!$B$732=\"Sí\"),IF(C81=\"La actividad sí contribuye sustancialmente a la sostenibilidad\",B81,0),IF(AND('Base-datos'!$B$730=\"\",'Base-datos'!$B$731=\"Sí\",'Base-datos'!$B$732=\"Sí\"),IF(AND(E81=\"La actividad sí contribuye sustancialmente a la sostenibilidad\",C81=\"La actividad sí contribuye sustancialmente a la sostenibilidad\"),B81,0),IF(AND('Base-datos'!$B$730=\"Sí\",'Base-datos'!$B$731=\"\",'Base-datos'!$B$732=\"Sí\"),IF(AND(D81=\"La actividad sí contribuye sustancialmente a la sostenibilidad\",C81=\"La actividad sí contribuye sustancialmente a la sostenibilidad\"),B81,0),\"Por definir\"))))))))","v":"Por definir"}]
[{"$f":"Energía!$C20","v":"Seleccione"},{"$f":"IF(Energía!$E20=Otro!B$12,Energía!$B20,\"\")","v":""},{"$f":"_xlfn.XLOOKUP(A82,'Base-datos'!$B$521:$B$531,'Base-datos'!$F$521:$F$531)","v":{"$error":"#N/A"}},{"$f":"_xlfn.XLOOKUP(A82,'Base-datos'!$B$521:$B$531,'Base-datos'!$C$521:$C$531)","v":{"$error":"#N/A"}},{"$f":"_xlfn.XLOOKUP(A82,'Base-datos'!$B$521:$B$531,'Base-datos'!$D$521:$D$531)","v":{"$error":"#N/A"}},null,null,{"$f":"IF(OR(F$77=\"La actividad no cumple con el total de los criterios de No Daño Significativo\",G$77=\"El sector no cumple con las salvaguardas mínimas\"),\"\",IF(AND('Base-datos'!$B$730=\"Sí\",'Base-datos'!$B$731=\"\",'Base-datos'!$B$732=\"\"),IF(D82=\"La actividad sí contribuye sustancialmente a la sostenibilidad\",B82,0),IF(AND('Base-datos'!$B$730=\"Sí\",'Base-datos'!$B$731=\"Sí\",'Base-datos'!$B$732=\"\"),IF(AND(D82=\"La actividad sí contribuye sustancialmente a la sostenibilidad\",E82=\"La actividad sí contribuye sustancialmente a la sostenibilidad\"),B82,0),IF(AND('Base-datos'!$B$730=\"Sí\",'Base-datos'!$B$731=\"Sí\",'Base-datos'!$B$732=\"Sí\"),IF(AND(D82=\"La actividad sí contribuye sustancialmente a la sostenibilidad\",E82=\"La actividad sí contribuye sustancialmente a la sostenibilidad\",C82=\"La actividad sí contribuye sustancialmente a la sostenibilidad\"),B82,0),IF(AND('Base-datos'!$B$730=\"\",'Base-datos'!$B$731=\"Sí\",'Base-datos'!$B$732=\"\"),IF(E82=\"La actividad sí contribuye sustancialmente a la sostenibilidad\",B82,0),IF(AND('Base-datos'!$B$730=\"\",'Base-datos'!$B$731=\"\",'Base-datos'!$B$732=\"Sí\"),IF(C82=\"La actividad sí contribuye sustancialmente a la sostenibilidad\",B82,0),IF(AND('Base-datos'!$B$730=\"\",'Base-datos'!$B$731=\"Sí\",'Base-datos'!$B$732=\"Sí\"),IF(AND(E82=\"La actividad sí contribuye sustancialmente a la sostenibilidad\",C82=\"La actividad sí contribuye sustancialmente a la sostenibilidad\"),B82,0),IF(AND('Base-datos'!$B$730=\"Sí\",'Base-datos'!$B$731=\"\",'Base-datos'!$B$732=\"Sí\"),IF(AND(D82=\"La actividad sí contribuye sustancialmente a la sostenibilidad\",C82=\"La actividad sí contribuye sustancialmente a la sostenibilidad\"),B82,0),\"Por definir\"))))))))","v":"Por definir"}]
[{"$f":"Energía!$C22","v":"Seleccione"},{"$f":"IF(Energía!$E22=Otro!B$12,Energía!$B22,\"\")","v":""},{"$f":"_xlfn.XLOOKUP(A83,'Base-datos'!$B$521:$B$531,'Base-datos'!$F$521:$F$531)","v":{"$error":"#N/A"}},{"$f":"_xlfn.XLOOKUP(A83,'Base-datos'!$B$521:$B$531,'Base-datos'!$C$521:$C$531)","v":{"$error":"#N/A"}},{"$f":"_xlfn.XLOOKUP(A83,'Base-datos'!$B$521:$B$531,'Base-datos'!$D$521:$D$531)","v":{"$error":"#N/A"}},null,null,{"$f":"IF(OR(F$77=\"La actividad no cumple con el total de los criterios de No Daño Significativo\",G$77=\"El sector no cumple con las salvaguardas mínimas\"),\"\",IF(AND('Base-datos'!$B$730=\"Sí\",'Base-datos'!$B$731=\"\",'Base-datos'!$B$732=\"\"),IF(D83=\"La actividad sí contribuye sustancialmente a la sostenibilidad\",B83,0),IF(AND('Base-datos'!$B$730=\"Sí\",'Base-datos'!$B$731=\"Sí\",'Base-datos'!$B$732=\"\"),IF(AND(D83=\"La actividad sí contribuye sustancialmente a la sostenibilidad\",E83=\"La actividad sí contribuye sustancialmente a la sostenibilidad\"),B83,0),IF(AND('Base-datos'!$B$730=\"Sí\",'Base-datos'!$B$731=\"Sí\",'Base-datos'!$B$732=\"Sí\"),IF(AND(D83=\"La actividad sí contribuye sustancialmente a la sostenibilidad\",E83=\"La actividad sí contribuye sustancialmente a la sostenibilidad\",C83=\"La actividad sí contribuye sustancialmente a la sostenibilidad\"),B83,0),IF(AND('Base-datos'!$B$730=\"\",'Base-datos'!$B$731=\"Sí\",'Base-datos'!$B$732=\"\"),IF(E83=\"La actividad sí contribuye sustancialmente a la sostenibilidad\",B83,0),IF(AND('Base-datos'!$B$730=\"\",'Base-datos'!$B$731=\"\",'Base-datos'!$B$732=\"Sí\"),IF(C83=\"La actividad sí contribuye sustancialmente a la sostenibilidad\",B83,0),IF(AND('Base-datos'!$B$730=\"\",'Base-datos'!$B$731=\"Sí\",'Base-datos'!$B$732=\"Sí\"),IF(AND(E83=\"La actividad sí contribuye sustancialmente a la sostenibilidad\",C83=\"La actividad sí contribuye sustancialmente a la sostenibilidad\"),B83,0),IF(AND('Base-datos'!$B$730=\"Sí\",'Base-datos'!$B$731=\"\",'Base-datos'!$B$732=\"Sí\"),IF(AND(D83=\"La actividad sí contribuye sustancialmente a la sostenibilidad\",C83=\"La actividad sí contribuye sustancialmente a la sostenibilidad\"),B83,0),\"Por definir\"))))))))","v":"Por definir"}]
[{"$f":"Energía!$C24","v":"Seleccione"},{"$f":"IF(Energía!$E24=Otro!B$12,Energía!$B24,\"\")","v":""},{"$f":"_xlfn.XLOOKUP(A84,'Base-datos'!$B$521:$B$531,'Base-datos'!$F$521:$F$531)","v":{"$error":"#N/A"}},{"$f":"_xlfn.XLOOKUP(A84,'Base-datos'!$B$521:$B$531,'Base-datos'!$C$521:$C$531)","v":{"$error":"#N/A"}},{"$f":"_xlfn.XLOOKUP(A84,'Base-datos'!$B$521:$B$531,'Base-datos'!$D$521:$D$531)","v":{"$error":"#N/A"}},null,null,{"$f":"IF(OR(F$77=\"La actividad no cumple con el total de los criterios de No Daño Significativo\",G$77=\"El sector no cumple con las salvaguardas mínimas\"),\"\",IF(AND('Base-datos'!$B$730=\"Sí\",'Base-datos'!$B$731=\"\",'Base-datos'!$B$732=\"\"),IF(D84=\"La actividad sí contribuye sustancialmente a la sostenibilidad\",B84,0),IF(AND('Base-datos'!$B$730=\"Sí\",'Base-datos'!$B$731=\"Sí\",'Base-datos'!$B$732=\"\"),IF(AND(D84=\"La actividad sí contribuye sustancialmente a la sostenibilidad\",E84=\"La actividad sí contribuye sustancialmente a la sostenibilidad\"),B84,0),IF(AND('Base-datos'!$B$730=\"Sí\",'Base-datos'!$B$731=\"Sí\",'Base-datos'!$B$732=\"Sí\"),IF(AND(D84=\"La actividad sí contribuye sustancialmente a la sostenibilidad\",E84=\"La actividad sí contribuye sustancialmente a la sostenibilidad\",C84=\"La actividad sí contribuye sustancialmente a la sostenibilidad\"),B84,0),IF(AND('Base-datos'!$B$730=\"\",'Base-datos'!$B$731=\"Sí\",'Base-datos'!$B$732=\"\"),IF(E84=\"La actividad sí contribuye sustancialmente a la sostenibilidad\",B84,0),IF(AND('Base-datos'!$B$730=\"\",'Base-datos'!$B$731=\"\",'Base-datos'!$B$732=\"Sí\"),IF(C84=\"La actividad sí contribuye sustancialmente a la sostenibilidad\",B84,0),IF(AND('Base-datos'!$B$730=\"\",'Base-datos'!$B$731=\"Sí\",'Base-datos'!$B$732=\"Sí\"),IF(AND(E84=\"La actividad sí contribuye sustancialmente a la sostenibilidad\",C84=\"La actividad sí contribuye sustancialmente a la sostenibilidad\"),B84,0),IF(AND('Base-datos'!$B$730=\"Sí\",'Base-datos'!$B$731=\"\",'Base-datos'!$B$732=\"Sí\"),IF(AND(D84=\"La actividad sí contribuye sustancialmente a la sostenibilidad\",C84=\"La actividad sí contribuye sustancialmente a la sostenibilidad\"),B84,0),\"Por definir\"))))))))","v":"Por definir"}]
[{"$f":"Energía!$C26","v":"Seleccione"},{"$f":"IF(Energía!$E26=Otro!B$12,Energía!$B26,\"\")","v":""},{"$f":"_xlfn.XLOOKUP(A85,'Base-datos'!$B$521:$B$531,'Base-datos'!$F$521:$F$531)","v":{"$error":"#N/A"}},{"$f":"_xlfn.XLOOKUP(A85,'Base-datos'!$B$521:$B$531,'Base-datos'!$C$521:$C$531)","v":{"$error":"#N/A"}},{"$f":"_xlfn.XLOOKUP(A85,'Base-datos'!$B$521:$B$531,'Base-datos'!$D$521:$D$531)","v":{"$error":"#N/A"}},null,null,{"$f":"IF(OR(F$77=\"La actividad no cumple con el total de los criterios de No Daño Significativo\",G$77=\"El sector no cumple con las salvaguardas mínimas\"),\"\",IF(AND('Base-datos'!$B$730=\"Sí\",'Base-datos'!$B$731=\"\",'Base-datos'!$B$732=\"\"),IF(D85=\"La actividad sí contribuye sustancialmente a la sostenibilidad\",B85,0),IF(AND('Base-datos'!$B$730=\"Sí\",'Base-datos'!$B$731=\"Sí\",'Base-datos'!$B$732=\"\"),IF(AND(D85=\"La actividad sí contribuye sustancialmente a la sostenibilidad\",E85=\"La actividad sí contribuye sustancialmente a la sostenibilidad\"),B85,0),IF(AND('Base-datos'!$B$730=\"Sí\",'Base-datos'!$B$731=\"Sí\",'Base-datos'!$B$732=\"Sí\"),IF(AND(D85=\"La actividad sí contribuye sustancialmente a la sostenibilidad\",E85=\"La actividad sí contribuye sustancialmente a la sostenibilidad\",C85=\"La actividad sí contribuye sustancialmente a la sostenibilidad\"),B85,0),IF(AND('Base-datos'!$B$730=\"\",'Base-datos'!$B$731=\"Sí\",'Base-datos'!$B$732=\"\"),IF(E85=\"La actividad sí contribuye sustancialmente a la sostenibilidad\",B85,0),IF(AND('Base-datos'!$B$730=\"\",'Base-datos'!$B$731=\"\",'Base-datos'!$B$732=\"Sí\"),IF(C85=\"La actividad sí contribuye sustancialmente a la sostenibilidad\",B85,0),IF(AND('Base-datos'!$B$730=\"\",'Base-datos'!$B$731=\"Sí\",'Base-datos'!$B$732=\"Sí\"),IF(AND(E85=\"La actividad sí contribuye sustancialmente a la sostenibilidad\",C85=\"La actividad sí contribuye sustancialmente a la sostenibilidad\"),B85,0),IF(AND('Base-datos'!$B$730=\"Sí\",'Base-datos'!$B$731=\"\",'Base-datos'!$B$732=\"Sí\"),IF(AND(D85=\"La actividad sí contribuye sustancialmente a la sostenibilidad\",C85=\"La actividad sí contribuye sustancialmente a la sostenibilidad\"),B85,0),\"Por definir\"))))))))","v":"Por definir"}]
[{"$f":"Energía!$C28","v":"Seleccione"},{"$f":"IF(Energía!$E28=Otro!B$12,Energía!$B28,\"\")","v":""},{"$f":"_xlfn.XLOOKUP(A86,'Base-datos'!$B$521:$B$531,'Base-datos'!$F$521:$F$531)","v":{"$error":"#N/A"}},{"$f":"_xlfn.XLOOKUP(A86,'Base-datos'!$B$521:$B$531,'Base-datos'!$C$521:$C$531)","v":{"$error":"#N/A"}},{"$f":"_xlfn.XLOOKUP(A86,'Base-datos'!$B$521:$B$531,'Base-datos'!$D$521:$D$531)","v":{"$error":"#N/A"}},null,null,{"$f":"IF(OR(F$77=\"La actividad no cumple con el total de los criterios de No Daño Significativo\",G$77=\"El sector no cumple con las salvaguardas mínimas\"),\"\",IF(AND('Base-datos'!$B$730=\"Sí\",'Base-datos'!$B$731=\"\",'Base-datos'!$B$732=\"\"),IF(D86=\"La actividad sí contribuye sustancialmente a la sostenibilidad\",B86,0),IF(AND('Base-datos'!$B$730=\"Sí\",'Base-datos'!$B$731=\"Sí\",'Base-datos'!$B$732=\"\"),IF(AND(D86=\"La actividad sí contribuye sustancialmente a la sostenibilidad\",E86=\"La actividad sí contribuye sustancialmente a la sostenibilidad\"),B86,0),IF(AND('Base-datos'!$B$730=\"Sí\",'Base-datos'!$B$731=\"Sí\",'Base-datos'!$B$732=\"Sí\"),IF(AND(D86=\"La actividad sí contribuye sustancialmente a la sostenibilidad\",E86=\"La actividad sí contribuye sustancialmente a la sostenibilidad\",C86=\"La actividad sí contribuye sustancialmente a la sostenibilidad\"),B86,0),IF(AND('Base-datos'!$B$730=\"\",'Base-datos'!$B$731=\"Sí\",'Base-datos'!$B$732=\"\"),IF(E86=\"La actividad sí contribuye sustancialmente a la sostenibilidad\",B86,0),IF(AND('Base-datos'!$B$730=\"\",'Base-datos'!$B$731=\"\",'Base-datos'!$B$732=\"Sí\"),IF(C86=\"La actividad sí contribuye sustancialmente a la sostenibilidad\",B86,0),IF(AND('Base-datos'!$B$730=\"\",'Base-datos'!$B$731=\"Sí\",'Base-datos'!$B$732=\"Sí\"),IF(AND(E86=\"La actividad sí contribuye sustancialmente a la sostenibilidad\",C86=\"La actividad sí contribuye sustancialmente a la sostenibilidad\"),B86,0),IF(AND('Base-datos'!$B$730=\"Sí\",'Base-datos'!$B$731=\"\",'Base-datos'!$B$732=\"Sí\"),IF(AND(D86=\"La actividad sí contribuye sustancialmente a la sostenibilidad\",C86=\"La actividad sí contribuye sustancialmente a la sostenibilidad\"),B86,0),\"Por definir\"))))))))","v":"Por definir"}]
[{"$f":"Energía!$C30","v":"Seleccione"},{"$f":"IF(Energía!$E30=Otro!B$12,Energía!$B30,\"\")","v":""},{"$f":"_xlfn.XLOOKUP(A87,'Base-datos'!$B$521:$B$531,'Base-datos'!$F$521:$F$531)","v":{"$error":"#N/A"}},{"$f":"_xlfn.XLOOKUP(A87,'Base-datos'!$B$521:$B$531,'Base-datos'!$C$521:$C$531)","v":{"$error":"#N/A"}},{"$f":"_xlfn.XLOOKUP(A87,'Base-datos'!$B$521:$B$531,'Base-datos'!$D$521:$D$531)","v":{"$error":"#N/A"}},null,null,{"$f":"IF(OR(F$77=\"La actividad no cumple con el total de los criterios de No Daño Significativo\",G$77=\"El sector no cumple con las salvaguardas mínimas\"),\"\",IF(AND('Base-datos'!$B$730=\"Sí\",'Base-datos'!$B$731=\"\",'Base-datos'!$B$732=\"\"),IF(D87=\"La actividad sí contribuye sustancialmente a la sostenibilidad\",B87,0),IF(AND('Base-datos'!$B$730=\"Sí\",'Base-datos'!$B$731=\"Sí\",'Base-datos'!$B$732=\"\"),IF(AND(D87=\"La actividad sí contribuye sustancialmente a la sostenibilidad\",E87=\"La actividad sí contribuye sustancialmente a la sostenibilidad\"),B87,0),IF(AND('Base-datos'!$B$730=\"Sí\",'Base-datos'!$B$731=\"Sí\",'Base-datos'!$B$732=\"Sí\"),IF(AND(D87=\"La actividad sí contribuye sustancialmente a la sostenibilidad\",E87=\"La actividad sí contribuye sustancialmente a la sostenibilidad\",C87=\"La actividad sí contribuye sustancialmente a la sostenibilidad\"),B87,0),IF(AND('Base-datos'!$B$730=\"\",'Base-datos'!$B$731=\"Sí\",'Base-datos'!$B$732=\"\"),IF(E87=\"La actividad sí contribuye sustancialmente a la sostenibilidad\",B87,0),IF(AND('Base-datos'!$B$730=\"\",'Base-datos'!$B$731=\"\",'Base-datos'!$B$732=\"Sí\"),IF(C87=\"La actividad sí contribuye sustancialmente a la sostenibilidad\",B87,0),IF(AND('Base-datos'!$B$730=\"\",'Base-datos'!$B$731=\"Sí\",'Base-datos'!$B$732=\"Sí\"),IF(AND(E87=\"La actividad sí contribuye sustancialmente a la sostenibilidad\",C87=\"La actividad sí contribuye sustancialmente a la sostenibilidad\"),B87,0),IF(AND('Base-datos'!$B$730=\"Sí\",'Base-datos'!$B$731=\"\",'Base-datos'!$B$732=\"Sí\"),IF(AND(D87=\"La actividad sí contribuye sustancialmente a la sostenibilidad\",C87=\"La actividad sí contribuye sustancialmente a la sostenibilidad\"),B87,0),\"Por definir\"))))))))","v":"Por definir"}]
[{"$f":"Energía!$C32","v":"Seleccione"},{"$f":"IF(Energía!$E32=Otro!B$12,Energía!$B32,\"\")","v":""},{"$f":"_xlfn.XLOOKUP(A88,'Base-datos'!$B$521:$B$531,'Base-datos'!$F$521:$F$531)","v":{"$error":"#N/A"}},{"$f":"_xlfn.XLOOKUP(A88,'Base-datos'!$B$521:$B$531,'Base-datos'!$C$521:$C$531)","v":{"$error":"#N/A"}},{"$f":"_xlfn.XLOOKUP(A88,'Base-datos'!$B$521:$B$531,'Base-datos'!$D$521:$D$531)","v":{"$error":"#N/A"}},null,null,{"$f":"IF(OR(F$77=\"La actividad no cumple con el total de los criterios de No Daño Significativo\",G$77=\"El sector no cumple con las salvaguardas mínimas\"),\"\",IF(AND('Base-datos'!$B$730=\"Sí\",'Base-datos'!$B$731=\"\",'Base-datos'!$B$732=\"\"),IF(D88=\"La actividad sí contribuye sustancialmente a la sostenibilidad\",B88,0),IF(AND('Base-datos'!$B$730=\"Sí\",'Base-datos'!$B$731=\"Sí\",'Base-datos'!$B$732=\"\"),IF(AND(D88=\"La actividad sí contribuye sustancialmente a la sostenibilidad\",E88=\"La actividad sí contribuye sustancialmente a la sostenibilidad\"),B88,0),IF(AND('Base-datos'!$B$730=\"Sí\",'Base-datos'!$B$731=\"Sí\",'Base-datos'!$B$732=\"Sí\"),IF(AND(D88=\"La actividad sí contribuye sustancialmente a la sostenibilidad\",E88=\"La actividad sí contribuye sustancialmente a la sostenibilidad\",C88=\"La actividad sí contribuye sustancialmente a la sostenibilidad\"),B88,0),IF(AND('Base-datos'!$B$730=\"\",'Base-datos'!$B$731=\"Sí\",'Base-datos'!$B$732=\"\"),IF(E88=\"La actividad sí contribuye sustancialmente a la sostenibilidad\",B88,0),IF(AND('Base-datos'!$B$730=\"\",'Base-datos'!$B$731=\"\",'Base-datos'!$B$732=\"Sí\"),IF(C88=\"La actividad sí contribuye sustancialmente a la sostenibilidad\",B88,0),IF(AND('Base-datos'!$B$730=\"\",'Base-datos'!$B$731=\"Sí\",'Base-datos'!$B$732=\"Sí\"),IF(AND(E88=\"La actividad sí contribuye sustancialmente a la sostenibilidad\",C88=\"La actividad sí contribuye sustancialmente a la sostenibilidad\"),B88,0),IF(AND('Base-datos'!$B$730=\"Sí\",'Base-datos'!$B$731=\"\",'Base-datos'!$B$732=\"Sí\"),IF(AND(D88=\"La actividad sí contribuye sustancialmente a la sostenibilidad\",C88=\"La actividad sí contribuye sustancialmente a la sostenibilidad\"),B88,0),\"Por definir\"))))))))","v":"Por definir"}]
[{"$f":"Energía!$C34","v":"Seleccione"},{"$f":"IF(Energía!$E34=Otro!B$12,Energía!$B34,\"\")","v":""},{"$f":"_xlfn.XLOOKUP(A89,'Base-datos'!$B$521:$B$531,'Base-datos'!$F$521:$F$531)","v":{"$error":"#N/A"}},{"$f":"_xlfn.XLOOKUP(A89,'Base-datos'!$B$521:$B$531,'Base-datos'!$C$521:$C$531)","v":{"$error":"#N/A"}},{"$f":"_xlfn.XLOOKUP(A89,'Base-datos'!$B$521:$B$531,'Base-datos'!$D$521:$D$531)","v":{"$error":"#N/A"}},null,null,{"$f":"IF(OR(F$77=\"La actividad no cumple con el total de los criterios de No Daño Significativo\",G$77=\"El sector no cumple con las salvaguardas mínimas\"),\"\",IF(AND('Base-datos'!$B$730=\"Sí\",'Base-datos'!$B$731=\"\",'Base-datos'!$B$732=\"\"),IF(D89=\"La actividad sí contribuye sustancialmente a la sostenibilidad\",B89,0),IF(AND('Base-datos'!$B$730=\"Sí\",'Base-datos'!$B$731=\"Sí\",'Base-datos'!$B$732=\"\"),IF(AND(D89=\"La actividad sí contribuye sustancialmente a la sostenibilidad\",E89=\"La actividad sí contribuye sustancialmente a la sostenibilidad\"),B89,0),IF(AND('Base-datos'!$B$730=\"Sí\",'Base-datos'!$B$731=\"Sí\",'Base-datos'!$B$732=\"Sí\"),IF(AND(D89=\"La actividad sí contribuye sustancialmente a la sostenibilidad\",E89=\"La actividad sí contribuye sustancialmente a la sostenibilidad\",C89=\"La actividad sí contribuye sustancialmente a la sostenibilidad\"),B89,0),IF(AND('Base-datos'!$B$730=\"\",'Base-datos'!$B$731=\"Sí\",'Base-datos'!$B$732=\"\"),IF(E89=\"La actividad sí contribuye sustancialmente a la sostenibilidad\",B89,0),IF(AND('Base-datos'!$B$730=\"\",'Base-datos'!$B$731=\"\",'Base-datos'!$B$732=\"Sí\"),IF(C89=\"La actividad sí contribuye sustancialmente a la sostenibilidad\",B89,0),IF(AND('Base-datos'!$B$730=\"\",'Base-datos'!$B$731=\"Sí\",'Base-datos'!$B$732=\"Sí\"),IF(AND(E89=\"La actividad sí contribuye sustancialmente a la sostenibilidad\",C89=\"La actividad sí contribuye sustancialmente a la sostenibilidad\"),B89,0),IF(AND('Base-datos'!$B$730=\"Sí\",'Base-datos'!$B$731=\"\",'Base-datos'!$B$732=\"Sí\"),IF(AND(D89=\"La actividad sí contribuye sustancialmente a la sostenibilidad\",C89=\"La actividad sí contribuye sustancialmente a la sostenibilidad\"),B89,0),\"Por definir\"))))))))","v":"Por definir"}]
[{"$f":"Energía!$C36","v":"Seleccione"},{"$f":"IF(Energía!$E36=Otro!B$12,Energía!$B36,\"\")","v":""},{"$f":"_xlfn.XLOOKUP(A90,'Base-datos'!$B$521:$B$531,'Base-datos'!$F$521:$F$531)","v":{"$error":"#N/A"}},{"$f":"_xlfn.XLOOKUP(A90,'Base-datos'!$B$521:$B$531,'Base-datos'!$C$521:$C$531)","v":{"$error":"#N/A"}},{"$f":"_xlfn.XLOOKUP(A90,'Base-datos'!$B$521:$B$531,'Base-datos'!$D$521:$D$531)","v":{"$error":"#N/A"}},null,null,{"$f":"IF(OR(F$77=\"La actividad no cumple con el total de los criterios de No Daño Significativo\",G$77=\"El sector no cumple con las salvaguardas mínimas\"),\"\",IF(AND('Base-datos'!$B$730=\"Sí\",'Base-datos'!$B$731=\"\",'Base-datos'!$B$732=\"\"),IF(D90=\"La actividad sí contribuye sustancialmente a la sostenibilidad\",B90,0),IF(AND('Base-datos'!$B$730=\"Sí\",'Base-datos'!$B$731=\"Sí\",'Base-datos'!$B$732=\"\"),IF(AND(D90=\"La actividad sí contribuye sustancialmente a la sostenibilidad\",E90=\"La actividad sí contribuye sustancialmente a la sostenibilidad\"),B90,0),IF(AND('Base-datos'!$B$730=\"Sí\",'Base-datos'!$B$731=\"Sí\",'Base-datos'!$B$732=\"Sí\"),IF(AND(D90=\"La actividad sí contribuye sustancialmente a la sostenibilidad\",E90=\"La actividad sí contribuye sustancialmente a la sostenibilidad\",C90=\"La actividad sí contribuye sustancialmente a la sostenibilidad\"),B90,0),IF(AND('Base-datos'!$B$730=\"\",'Base-datos'!$B$731=\"Sí\",'Base-datos'!$B$732=\"\"),IF(E90=\"La actividad sí contribuye sustancialmente a la sostenibilidad\",B90,0),IF(AND('Base-datos'!$B$730=\"\",'Base-datos'!$B$731=\"\",'Base-datos'!$B$732=\"Sí\"),IF(C90=\"La actividad sí contribuye sustancialmente a la sostenibilidad\",B90,0),IF(AND('Base-datos'!$B$730=\"\",'Base-datos'!$B$731=\"Sí\",'Base-datos'!$B$732=\"Sí\"),IF(AND(E90=\"La actividad sí contribuye sustancialmente a la sostenibilidad\",C90=\"La actividad sí contribuye sustancialmente a la sostenibilidad\"),B90,0),IF(AND('Base-datos'!$B$730=\"Sí\",'Base-datos'!$B$731=\"\",'Base-datos'!$B$732=\"Sí\"),IF(AND(D90=\"La actividad sí contribuye sustancialmente a la sostenibilidad\",C90=\"La actividad sí contribuye sustancialmente a la sostenibilidad\"),B90,0),\"Por definir\"))))))))","v":"Por definir"}]
[{"$f":"Energía!$C38","v":"Seleccione"},{"$f":"IF(Energía!$E38=Otro!B$12,Energía!$B38,\"\")","v":""},{"$f":"_xlfn.XLOOKUP(A91,'Base-datos'!$B$521:$B$531,'Base-datos'!$F$521:$F$531)","v":{"$error":"#N/A"}},{"$f":"_xlfn.XLOOKUP(A91,'Base-datos'!$B$521:$B$531,'Base-datos'!$C$521:$C$531)","v":{"$error":"#N/A"}},{"$f":"_xlfn.XLOOKUP(A91,'Base-datos'!$B$521:$B$531,'Base-datos'!$D$521:$D$531)","v":{"$error":"#N/A"}},null,null,{"$f":"IF(OR(F$77=\"La actividad no cumple con el total de los criterios de No Daño Significativo\",G$77=\"El sector no cumple con las salvaguardas mínimas\"),\"\",IF(AND('Base-datos'!$B$730=\"Sí\",'Base-datos'!$B$731=\"\",'Base-datos'!$B$732=\"\"),IF(D91=\"La actividad sí contribuye sustancialmente a la sostenibilidad\",B91,0),IF(AND('Base-datos'!$B$730=\"Sí\",'Base-datos'!$B$731=\"Sí\",'Base-datos'!$B$732=\"\"),IF(AND(D91=\"La actividad sí contribuye sustancialmente a la sostenibilidad\",E91=\"La actividad sí contribuye sustancialmente a la sostenibilidad\"),B91,0),IF(AND('Base-datos'!$B$730=\"Sí\",'Base-datos'!$B$731=\"Sí\",'Base-datos'!$B$732=\"Sí\"),IF(AND(D91=\"La actividad sí contribuye sustancialmente a la sostenibilidad\",E91=\"La actividad sí contribuye sustancialmente a la sostenibilidad\",C91=\"La actividad sí contribuye sustancialmente a la sostenibilidad\"),B91,0),IF(AND('Base-datos'!$B$730=\"\",'Base-datos'!$B$731=\"Sí\",'Base-datos'!$B$732=\"\"),IF(E91=\"La actividad sí contribuye sustancialmente a la sostenibilidad\",B91,0),IF(AND('Base-datos'!$B$730=\"\",'Base-datos'!$B$731=\"\",'Base-datos'!$B$732=\"Sí\"),IF(C91=\"La actividad sí contribuye sustancialmente a la sostenibilidad\",B91,0),IF(AND('Base-datos'!$B$730=\"\",'Base-datos'!$B$731=\"Sí\",'Base-datos'!$B$732=\"Sí\"),IF(AND(E91=\"La actividad sí contribuye sustancialmente a la sostenibilidad\",C91=\"La actividad sí contribuye sustancialmente a la sostenibilidad\"),B91,0),IF(AND('Base-datos'!$B$730=\"Sí\",'Base-datos'!$B$731=\"\",'Base-datos'!$B$732=\"Sí\"),IF(AND(D91=\"La actividad sí contribuye sustancialmente a la sostenibilidad\",C91=\"La actividad sí contribuye sustancialmente a la sostenibilidad\"),B91,0),\"Por definir\"))))))))","v":"Por definir"}]
[{"$f":"Energía!$C40","v":"Seleccione"},{"$f":"IF(Energía!$E40=Otro!B$12,Energía!$B40,\"\")","v":""},{"$f":"_xlfn.XLOOKUP(A92,'Base-datos'!$B$521:$B$531,'Base-datos'!$F$521:$F$531)","v":{"$error":"#N/A"}},{"$f":"_xlfn.XLOOKUP(A92,'Base-datos'!$B$521:$B$531,'Base-datos'!$C$521:$C$531)","v":{"$error":"#N/A"}},{"$f":"_xlfn.XLOOKUP(A92,'Base-datos'!$B$521:$B$531,'Base-datos'!$D$521:$D$531)","v":{"$error":"#N/A"}},null,null,{"$f":"IF(OR(F$77=\"La actividad no cumple con el total de los criterios de No Daño Significativo\",G$77=\"El sector no cumple con las salvaguardas mínimas\"),\"\",IF(AND('Base-datos'!$B$730=\"Sí\",'Base-datos'!$B$731=\"\",'Base-datos'!$B$732=\"\"),IF(D92=\"La actividad sí contribuye sustancialmente a la sostenibilidad\",B92,0),IF(AND('Base-datos'!$B$730=\"Sí\",'Base-datos'!$B$731=\"Sí\",'Base-datos'!$B$732=\"\"),IF(AND(D92=\"La actividad sí contribuye sustancialmente a la sostenibilidad\",E92=\"La actividad sí contribuye sustancialmente a la sostenibilidad\"),B92,0),IF(AND('Base-datos'!$B$730=\"Sí\",'Base-datos'!$B$731=\"Sí\",'Base-datos'!$B$732=\"Sí\"),IF(AND(D92=\"La actividad sí contribuye sustancialmente a la sostenibilidad\",E92=\"La actividad sí contribuye sustancialmente a la sostenibilidad\",C92=\"La actividad sí contribuye sustancialmente a la sostenibilidad\"),B92,0),IF(AND('Base-datos'!$B$730=\"\",'Base-datos'!$B$731=\"Sí\",'Base-datos'!$B$732=\"\"),IF(E92=\"La actividad sí contribuye sustancialmente a la sostenibilidad\",B92,0),IF(AND('Base-datos'!$B$730=\"\",'Base-datos'!$B$731=\"\",'Base-datos'!$B$732=\"Sí\"),IF(C92=\"La actividad sí contribuye sustancialmente a la sostenibilidad\",B92,0),IF(AND('Base-datos'!$B$730=\"\",'Base-datos'!$B$731=\"Sí\",'Base-datos'!$B$732=\"Sí\"),IF(AND(E92=\"La actividad sí contribuye sustancialmente a la sostenibilidad\",C92=\"La actividad sí contribuye sustancialmente a la sostenibilidad\"),B92,0),IF(AND('Base-datos'!$B$730=\"Sí\",'Base-datos'!$B$731=\"\",'Base-datos'!$B$732=\"Sí\"),IF(AND(D92=\"La actividad sí contribuye sustancialmente a la sostenibilidad\",C92=\"La actividad sí contribuye sustancialmente a la sostenibilidad\"),B92,0),\"Por definir\"))))))))","v":"Por definir"}]
[{"$f":"Energía!$C42","v":"Seleccione"},{"$f":"IF(Energía!$E42=Otro!B$12,Energía!$B42,\"\")","v":""},{"$f":"_xlfn.XLOOKUP(A93,'Base-datos'!$B$521:$B$531,'Base-datos'!$F$521:$F$531)","v":{"$error":"#N/A"}},{"$f":"_xlfn.XLOOKUP(A93,'Base-datos'!$B$521:$B$531,'Base-datos'!$C$521:$C$531)","v":{"$error":"#N/A"}},{"$f":"_xlfn.XLOOKUP(A93,'Base-datos'!$B$521:$B$531,'Base-datos'!$D$521:$D$531)","v":{"$error":"#N/A"}},null,null,{"$f":"IF(OR(F$77=\"La actividad no cumple con el total de los criterios de No Daño Significativo\",G$77=\"El sector no cumple con las salvaguardas mínimas\"),\"\",IF(AND('Base-datos'!$B$730=\"Sí\",'Base-datos'!$B$731=\"\",'Base-datos'!$B$732=\"\"),IF(D93=\"La actividad sí contribuye sustancialmente a la sostenibilidad\",B93,0),IF(AND('Base-datos'!$B$730=\"Sí\",'Base-datos'!$B$731=\"Sí\",'Base-datos'!$B$732=\"\"),IF(AND(D93=\"La actividad sí contribuye sustancialmente a la sostenibilidad\",E93=\"La actividad sí contribuye sustancialmente a la sostenibilidad\"),B93,0),IF(AND('Base-datos'!$B$730=\"Sí\",'Base-datos'!$B$731=\"Sí\",'Base-datos'!$B$732=\"Sí\"),IF(AND(D93=\"La actividad sí contribuye sustancialmente a la sostenibilidad\",E93=\"La actividad sí contribuye sustancialmente a la sostenibilidad\",C93=\"La actividad sí contribuye sustancialmente a la sostenibilidad\"),B93,0),IF(AND('Base-datos'!$B$730=\"\",'Base-datos'!$B$731=\"Sí\",'Base-datos'!$B$732=\"\"),IF(E93=\"La actividad sí contribuye sustancialmente a la sostenibilidad\",B93,0),IF(AND('Base-datos'!$B$730=\"\",'Base-datos'!$B$731=\"\",'Base-datos'!$B$732=\"Sí\"),IF(C93=\"La actividad sí contribuye sustancialmente a la sostenibilidad\",B93,0),IF(AND('Base-datos'!$B$730=\"\",'Base-datos'!$B$731=\"Sí\",'Base-datos'!$B$732=\"Sí\"),IF(AND(E93=\"La actividad sí contribuye sustancialmente a la sostenibilidad\",C93=\"La actividad sí contribuye sustancialmente a la sostenibilidad\"),B93,0),IF(AND('Base-datos'!$B$730=\"Sí\",'Base-datos'!$B$731=\"\",'Base-datos'!$B$732=\"Sí\"),IF(AND(D93=\"La actividad sí contribuye sustancialmente a la sostenibilidad\",C93=\"La actividad sí contribuye sustancialmente a la sostenibilidad\"),B93,0),\"Por definir\"))))))))","v":"Por definir"}]
[{"$f":"Energía!$C44","v":"Seleccione"},{"$f":"IF(Energía!$E44=Otro!B$12,Energía!$B44,\"\")","v":""},{"$f":"_xlfn.XLOOKUP(A94,'Base-datos'!$B$521:$B$531,'Base-datos'!$F$521:$F$531)","v":{"$error":"#N/A"}},{"$f":"_xlfn.XLOOKUP(A94,'Base-datos'!$B$521:$B$531,'Base-datos'!$C$521:$C$531)","v":{"$error":"#N/A"}},{"$f":"_xlfn.XLOOKUP(A94,'Base-datos'!$B$521:$B$531,'Base-datos'!$D$521:$D$531)","v":{"$error":"#N/A"}},null,null,{"$f":"IF(OR(F$77=\"La actividad no cumple con el total de los criterios de No Daño Significativo\",G$77=\"El sector no cumple con las salvaguardas mínimas\"),\"\",IF(AND('Base-datos'!$B$730=\"Sí\",'Base-datos'!$B$731=\"\",'Base-datos'!$B$732=\"\"),IF(D94=\"La actividad sí contribuye sustancialmente a la sostenibilidad\",B94,0),IF(AND('Base-datos'!$B$730=\"Sí\",'Base-datos'!$B$731=\"Sí\",'Base-datos'!$B$732=\"\"),IF(AND(D94=\"La actividad sí contribuye sustancialmente a la sostenibilidad\",E94=\"La actividad sí contribuye sustancialmente a la sostenibilidad\"),B94,0),IF(AND('Base-datos'!$B$730=\"Sí\",'Base-datos'!$B$731=\"Sí\",'Base-datos'!$B$732=\"Sí\"),IF(AND(D94=\"La actividad sí contribuye sustancialmente a la sostenibilidad\",E94=\"La actividad sí contribuye sustancialmente a la sostenibilidad\",C94=\"La actividad sí contribuye sustancialmente a la sostenibilidad\"),B94,0),IF(AND('Base-datos'!$B$730=\"\",'Base-datos'!$B$731=\"Sí\",'Base-datos'!$B$732=\"\"),IF(E94=\"La actividad sí contribuye sustancialmente a la sostenibilidad\",B94,0),IF(AND('Base-datos'!$B$730=\"\",'Base-datos'!$B$731=\"\",'Base-datos'!$B$732=\"Sí\"),IF(C94=\"La actividad sí contribuye sustancialmente a la sostenibilidad\",B94,0),IF(AND('Base-datos'!$B$730=\"\",'Base-datos'!$B$731=\"Sí\",'Base-datos'!$B$732=\"Sí\"),IF(AND(E94=\"La actividad sí contribuye sustancialmente a la sostenibilidad\",C94=\"La actividad sí contribuye sustancialmente a la sostenibilidad\"),B94,0),IF(AND('Base-datos'!$B$730=\"Sí\",'Base-datos'!$B$731=\"\",'Base-datos'!$B$732=\"Sí\"),IF(AND(D94=\"La actividad sí contribuye sustancialmente a la sostenibilidad\",C94=\"La actividad sí contribuye sustancialmente a la sostenibilidad\"),B94,0),\"Por definir\"))))))))","v":"Por definir"}]
[{"$f":"Energía!$C46","v":"Seleccione"},{"$f":"IF(Energía!$E46=Otro!B$12,Energía!$B46,\"\")","v":""},{"$f":"_xlfn.XLOOKUP(A95,'Base-datos'!$B$521:$B$531,'Base-datos'!$F$521:$F$531)","v":{"$error":"#N/A"}},{"$f":"_xlfn.XLOOKUP(A95,'Base-datos'!$B$521:$B$531,'Base-datos'!$C$521:$C$531)","v":{"$error":"#N/A"}},{"$f":"_xlfn.XLOOKUP(A95,'Base-datos'!$B$521:$B$531,'Base-datos'!$D$521:$D$531)","v":{"$error":"#N/A"}},null,null,{"$f":"IF(OR(F$77=\"La actividad no cumple con el total de los criterios de No Daño Significativo\",G$77=\"El sector no cumple con las salvaguardas mínimas\"),\"\",IF(AND('Base-datos'!$B$730=\"Sí\",'Base-datos'!$B$731=\"\",'Base-datos'!$B$732=\"\"),IF(D95=\"La actividad sí contribuye sustancialmente a la sostenibilidad\",B95,0),IF(AND('Base-datos'!$B$730=\"Sí\",'Base-datos'!$B$731=\"Sí\",'Base-datos'!$B$732=\"\"),IF(AND(D95=\"La actividad sí contribuye sustancialmente a la sostenibilidad\",E95=\"La actividad sí contribuye sustancialmente a la sostenibilidad\"),B95,0),IF(AND('Base-datos'!$B$730=\"Sí\",'Base-datos'!$B$731=\"Sí\",'Base-datos'!$B$732=\"Sí\"),IF(AND(D95=\"La actividad sí contribuye sustancialmente a la sostenibilidad\",E95=\"La actividad sí contribuye sustancialmente a la sostenibilidad\",C95=\"La actividad sí contribuye sustancialmente a la sostenibilidad\"),B95,0),IF(AND('Base-datos'!$B$730=\"\",'Base-datos'!$B$731=\"Sí\",'Base-datos'!$B$732=\"\"),IF(E95=\"La actividad sí contribuye sustancialmente a la sostenibilidad\",B95,0),IF(AND('Base-datos'!$B$730=\"\",'Base-datos'!$B$731=\"\",'Base-datos'!$B$732=\"Sí\"),IF(C95=\"La actividad sí contribuye sustancialmente a la sostenibilidad\",B95,0),IF(AND('Base-datos'!$B$730=\"\",'Base-datos'!$B$731=\"Sí\",'Base-datos'!$B$732=\"Sí\"),IF(AND(E95=\"La actividad sí contribuye sustancialmente a la sostenibilidad\",C95=\"La actividad sí contribuye sustancialmente a la sostenibilidad\"),B95,0),IF(AND('Base-datos'!$B$730=\"Sí\",'Base-datos'!$B$731=\"\",'Base-datos'!$B$732=\"Sí\"),IF(AND(D95=\"La actividad sí contribuye sustancialmente a la sostenibilidad\",C95=\"La actividad sí contribuye sustancialmente a la sostenibilidad\"),B95,0),\"Por definir\"))))))))","v":"Por definir"}]
[{"$f":"Energía!$C48","v":"Seleccione"},{"$f":"IF(Energía!$E48=Otro!B$12,Energía!$B48,\"\")","v":""},{"$f":"_xlfn.XLOOKUP(A96,'Base-datos'!$B$521:$B$531,'Base-datos'!$F$521:$F$531)","v":{"$error":"#N/A"}},{"$f":"_xlfn.XLOOKUP(A96,'Base-datos'!$B$521:$B$531,'Base-datos'!$C$521:$C$531)","v":{"$error":"#N/A"}},{"$f":"_xlfn.XLOOKUP(A96,'Base-datos'!$B$521:$B$531,'Base-datos'!$D$521:$D$531)","v":{"$error":"#N/A"}},null,null,{"$f":"IF(OR(F$77=\"La actividad no cumple con el total de los criterios de No Daño Significativo\",G$77=\"El sector no cumple con las salvaguardas mínimas\"),\"\",IF(AND('Base-datos'!$B$730=\"Sí\",'Base-datos'!$B$731=\"\",'Base-datos'!$B$732=\"\"),IF(D96=\"La actividad sí contribuye sustancialmente a la sostenibilidad\",B96,0),IF(AND('Base-datos'!$B$730=\"Sí\",'Base-datos'!$B$731=\"Sí\",'Base-datos'!$B$732=\"\"),IF(AND(D96=\"La actividad sí contribuye sustancialmente a la sostenibilidad\",E96=\"La actividad sí contribuye sustancialmente a la sostenibilidad\"),B96,0),IF(AND('Base-datos'!$B$730=\"Sí\",'Base-datos'!$B$731=\"Sí\",'Base-datos'!$B$732=\"Sí\"),IF(AND(D96=\"La actividad sí contribuye sustancialmente a la sostenibilidad\",E96=\"La actividad sí contribuye sustancialmente a la sostenibilidad\",C96=\"La actividad sí contribuye sustancialmente a la sostenibilidad\"),B96,0),IF(AND('Base-datos'!$B$730=\"\",'Base-datos'!$B$731=\"Sí\",'Base-datos'!$B$732=\"\"),IF(E96=\"La actividad sí contribuye sustancialmente a la sostenibilidad\",B96,0),IF(AND('Base-datos'!$B$730=\"\",'Base-datos'!$B$731=\"\",'Base-datos'!$B$732=\"Sí\"),IF(C96=\"La actividad sí contribuye sustancialmente a la sostenibilidad\",B96,0),IF(AND('Base-datos'!$B$730=\"\",'Base-datos'!$B$731=\"Sí\",'Base-datos'!$B$732=\"Sí\"),IF(AND(E96=\"La actividad sí contribuye sustancialmente a la sostenibilidad\",C96=\"La actividad sí contribuye sustancialmente a la sostenibilidad\"),B96,0),IF(AND('Base-datos'!$B$730=\"Sí\",'Base-datos'!$B$731=\"\",'Base-datos'!$B$732=\"Sí\"),IF(AND(D96=\"La actividad sí contribuye sustancialmente a la sostenibilidad\",C96=\"La actividad sí contribuye sustancialmente a la sostenibilidad\"),B96,0),\"Por definir\"))))))))","v":"Por definir"}]
["Agua",null,null,null,null,null,null,{"$f":"SUM(IF(FREQUENCY(MATCH(A98:A117, A98:A117, 0), MATCH(A98:A117, A98:A117, 0)) > 0, IF(NOT(ISERROR(H98:H117)), H98:H117, 0)))","v":0}]
[{"$f":"Agua!$C10","v":"Seleccione"},{"$f":"IF(Agua!$E10=Otro!B$12,Agua!$B10,\"\")","v":""},{"$f":"_xlfn.XLOOKUP(A98,'Base-datos'!$B$532:$B$536,'Base-datos'!$F$532:$F$536)","v":{"$error":"#N/A"}},{"$f":"_xlfn.XLOOKUP(A98,'Base-datos'!$B$532:$B$536,'Base-datos'!$C$532:$C$536)","v":{"$error":"#N/A"}},{"$f":"_xlfn.XLOOKUP(A98,'Base-datos'!$B$532:$B$536,'Base-datos'!$D$532:$D$536)","v":{"$error":"#N/A"}},{"$f":"IF(COUNTIF('Agua-NDS'!G9:G45,\"No\")>0,\"La actividad no cumple con el total de los criterios de NDS\",\"La actividad cumple con los criterios de No Daño Significativo\")","v":"La actividad cumple con los criterios de No Daño Significativo"},{"$f":"IF(OR('Salvaguardas mínimas'!$G$10=\"Seleccione\",'Salvaguardas mínimas'!$G$13=\"Seleccione\",'Salvaguardas mínimas'!$G$16=\"Seleccione\",'Salvaguardas mínimas'!$G$7=\"Seleccione\"),\"No se han respondido todas las preguntas\",IF(OR('Salvaguardas mínimas'!$G$10=\"No\",'Salvaguardas mínimas'!$G$13=\"No\",'Salvaguardas mínimas'!$G$16=\"No\",'Salvaguardas mínimas'!$G$7=\"No\"),\"El sector no cumple con las salvaguardas mínimas\",\"La actividad sí cumple con las salvaguardas mínimas\"))","v":"No se han respondido todas las preguntas"},{"$f":"IF(OR(F$98=\"La actividad no cumple con el total de los criterios de No Daño Significativo\",G$98=\"El sector no cumple con las salvaguardas mínimas\"),\"\",IF(AND('Base-datos'!$B$735=\"Sí\",'Base-datos'!$B$736=\"\",'Base-datos'!$B$737=\"\"),IF(D98=\"La actividad sí contribuye sustancialmente a la sostenibilidad\",B98,0),IF(AND('Base-datos'!$B$735=\"Sí\",'Base-datos'!$B$736=\"Sí\",'Base-datos'!$B$737=\"\"),IF(AND(D98=\"La actividad sí contribuye sustancialmente a la sostenibilidad\",E98=\"La actividad sí contribuye sustancialmente a la sostenibilidad\"),B98,0),IF(AND('Base-datos'!$B$735=\"Sí\",'Base-datos'!$B$736=\"Sí\",'Base-datos'!$B$737=\"Sí\"),IF(AND(D98=\"La actividad sí contribuye sustancialmente a la sostenibilidad\",E98=\"La actividad sí contribuye sustancialmente a la sostenibilidad\",C98=\"La actividad sí contribuye sustancialmente a la sostenibilidad\"),B98,0),IF(AND('Base-datos'!$B$735=\"\",'Base-datos'!$B$736=\"Sí\",'Base-datos'!$B$737=\"\"),IF(E98=\"La actividad sí contribuye sustancialmente a la sostenibilidad\",B98,0),IF(AND('Base-datos'!$B$735=\"\",'Base-datos'!$B$736=\"\",'Base-datos'!$B$737=\"Sí\"),IF(C98=\"La actividad sí contribuye sustancialmente a la sostenibilidad\",B98,0),IF(AND('Base-datos'!$B$735=\"\",'Base-datos'!$B$736=\"Sí\",'Base-datos'!$B$737=\"Sí\"),IF(AND(E98=\"La actividad sí contribuye sustancialmente a la sostenibilidad\",C98=\"La actividad sí contribuye sustancialmente a la sostenibilidad\"),B98,0),IF(AND('Base-datos'!$B$735=\"Sí\",'Base-datos'!$B$736=\"\",'Base-datos'!$B$737=\"Sí\"),IF(AND(D98=\"La actividad sí contribuye sustancialmente a la sostenibilidad\",C98=\"La actividad sí contribuye sustancialmente a la sostenibilidad\"),B98,0),\"Por definir\"))))))))","v":"Por definir"}]
[{"$f":"Agua!$C12","v":"Seleccione"},{"$f":"IF(Agua!$E12=Otro!B$12,Agua!$B12,\"\")","v":""},{"$f":"_xlfn.XLOOKUP(A99,'Base-datos'!$B$532:$B$536,'Base-datos'!$F$532:$F$536)","v":{"$error":"#N/A"}},{"$f":"_xlfn.XLOOKUP(A99,'Base-datos'!$B$532:$B$536,'Base-datos'!$C$532:$C$536)","v":{"$error":"#N/A"}},{"$f":"_xlfn.XLOOKUP(A99,'Base-datos'!$B$532:$B$536,'Base-datos'!$D$532:$D$536)","v":{"$error":"#N/A"}},null,null,{"$f":"IF(OR(F$98=\"La actividad no cumple con el total de los criterios de No Daño Significativo\",G$98=\"El sector no cumple con las salvaguardas mínimas\"),\"\",IF(AND('Base-datos'!$B$735=\"Sí\",'Base-datos'!$B$736=\"\",'Base-datos'!$B$737=\"\"),IF(D99=\"La actividad sí contribuye sustancialmente a la sostenibilidad\",B99,0),IF(AND('Base-datos'!$B$735=\"Sí\",'Base-datos'!$B$736=\"Sí\",'Base-datos'!$B$737=\"\"),IF(AND(D99=\"La actividad sí contribuye sustancialmente a la sostenibilidad\",E99=\"La actividad sí contribuye sustancialmente a la sostenibilidad\"),B99,0),IF(AND('Base-datos'!$B$735=\"Sí\",'Base-datos'!$B$736=\"Sí\",'Base-datos'!$B$737=\"Sí\"),IF(AND(D99=\"La actividad sí contribuye sustancialmente a la sostenibilidad\",E99=\"La actividad sí contribuye sustancialmente a la sostenibilidad\",C99=\"La actividad sí contribuye sustancialmente a la sostenibilidad\"),B99,0),IF(AND('Base-datos'!$B$735=\"\",'Base-datos'!$B$736=\"Sí\",'Base-datos'!$B$737=\"\"),IF(E99=\"La actividad sí contribuye sustancialmente a la sostenibilidad\",B99,0),IF(AND('Base-datos'!$B$735=\"\",'Base-datos'!$B$736=\"\",'Base-datos'!$B$737=\"Sí\"),IF(C99=\"La actividad sí contribuye sustancialmente a la sostenibilidad\",B99,0),IF(AND('Base-datos'!$B$735=\"\",'Base-datos'!$B$736=\"Sí\",'Base-datos'!$B$737=\"Sí\"),IF(AND(E99=\"La actividad sí contribuye sustancialmente a la sostenibilidad\",C99=\"La actividad sí contribuye sustancialmente a la sostenibilidad\"),B99,0),IF(AND('Base-datos'!$B$735=\"Sí\",'Base-datos'!$B$736=\"\",'Base-datos'!$B$737=\"Sí\"),IF(AND(D99=\"La actividad sí contribuye sustancialmente a la sostenibilidad\",C99=\"La actividad sí contribuye sustancialmente a la sostenibilidad\"),B99,0),\"Por definir\"))))))))","v":"Por definir"}]
[{"$f":"Agua!$C14","v":"Seleccione"},{"$f":"IF(Agua!$E14=Otro!B$12,Agua!$B14,\"\")","v":""},{"$f":"_xlfn.XLOOKUP(A100,'Base-datos'!$B$532:$B$536,'Base-datos'!$F$532:$F$536)","v":{"$error":"#N/A"}},{"$f":"_xlfn.XLOOKUP(A100,'Base-datos'!$B$532:$B$536,'Base-datos'!$C$532:$C$536)","v":{"$error":"#N/A"}},{"$f":"_xlfn.XLOOKUP(A100,'Base-datos'!$B$532:$B$536,'Base-datos'!$D$532:$D$536)","v":{"$error":"#N/A"}},null,null,{"$f":"IF(OR(F$98=\"La actividad no cumple con el total de los criterios de No Daño Significativo\",G$98=\"El sector no cumple con las salvaguardas mínimas\"),\"\",IF(AND('Base-datos'!$B$735=\"Sí\",'Base-datos'!$B$736=\"\",'Base-datos'!$B$737=\"\"),IF(D100=\"La actividad sí contribuye sustancialmente a la sostenibilidad\",B100,0),IF(AND('Base-datos'!$B$735=\"Sí\",'Base-datos'!$B$736=\"Sí\",'Base-datos'!$B$737=\"\"),IF(AND(D100=\"La actividad sí contribuye sustancialmente a la sostenibilidad\",E100=\"La actividad sí contribuye sustancialmente a la sostenibilidad\"),B100,0),IF(AND('Base-datos'!$B$735=\"Sí\",'Base-datos'!$B$736=\"Sí\",'Base-datos'!$B$737=\"Sí\"),IF(AND(D100=\"La actividad sí contribuye sustancialmente a la sostenibilidad\",E100=\"La actividad sí contribuye sustancialmente a la sostenibilidad\",C100=\"La actividad sí contribuye sustancialmente a la sostenibilidad\"),B100,0),IF(AND('Base-datos'!$B$735=\"\",'Base-datos'!$B$736=\"Sí\",'Base-datos'!$B$737=\"\"),IF(E100=\"La actividad sí contribuye sustancialmente a la sostenibilidad\",B100,0),IF(AND('Base-datos'!$B$735=\"\",'Base-datos'!$B$736=\"\",'Base-datos'!$B$737=\"Sí\"),IF(C100=\"La actividad sí contribuye sustancialmente a la sostenibilidad\",B100,0),IF(AND('Base-datos'!$B$735=\"\",'Base-datos'!$B$736=\"Sí\",'Base-datos'!$B$737=\"Sí\"),IF(AND(E100=\"La actividad sí contribuye sustancialmente a la sostenibilidad\",C100=\"La actividad sí contribuye sustancialmente a la sostenibilidad\"),B100,0),IF(AND('Base-datos'!$B$735=\"Sí\",'Base-datos'!$B$736=\"\",'Base-datos'!$B$737=\"Sí\"),IF(AND(D100=\"La actividad sí contribuye sustancialmente a la sostenibilidad\",C100=\"La actividad sí contribuye sustancialmente a la sostenibilidad\"),B100,0),\"Por definir\"))))))))","v":"Por definir"}]
[{"$f":"Agua!$C16","v":"Seleccione"},{"$f":"IF(Agua!$E16=Otro!B$12,Agua!$B16,\"\")","v":""},{"$f":"_xlfn.XLOOKUP(A101,'Base-datos'!$B$532:$B$536,'Base-datos'!$F$532:$F$536)","v":{"$error":"#N/A"}},{"$f":"_xlfn.XLOOKUP(A101,'Base-datos'!$B$532:$B$536,'Base-datos'!$C$532:$C$536)","v":{"$error":"#N/A"}},{"$f":"_xlfn.XLOOKUP(A101,'Base-datos'!$B$532:$B$536,'Base-datos'!$D$532:$D$536)","v":{"$error":"#N/A"}},null,null,{"$f":"IF(OR(F$98=\"La actividad no cumple con el total de los criterios de No Daño Significativo\",G$98=\"El sector no cumple con las salvaguardas mínimas\"),\"\",IF(AND('Base-datos'!$B$735=\"Sí\",'Base-datos'!$B$736=\"\",'Base-datos'!$B$737=\"\"),IF(D101=\"La actividad sí contribuye sustancialmente a la sostenibilidad\",B101,0),IF(AND('Base-datos'!$B$735=\"Sí\",'Base-datos'!$B$736=\"Sí\",'Base-datos'!$B$737=\"\"),IF(AND(D101=\"La actividad sí contribuye sustancialmente a la sostenibilidad\",E101=\"La actividad sí contribuye sustancialmente a la sostenibilidad\"),B101,0),IF(AND('Base-datos'!$B$735=\"Sí\",'Base-datos'!$B$736=\"Sí\",'Base-datos'!$B$737=\"Sí\"),IF(AND(D101=\"La actividad sí contribuye sustancialmente a la sostenibilidad\",E101=\"La actividad sí contribuye sustancialmente a la sostenibilidad\",C101=\"La actividad sí contribuye sustancialmente a la sostenibilidad\"),B101,0),IF(AND('Base-datos'!$B$735=\"\",'Base-datos'!$B$736=\"Sí\",'Base-datos'!$B$737=\"\"),IF(E101=\"La actividad sí contribuye sustancialmente a la sostenibilidad\",B101,0),IF(AND('Base-datos'!$B$735=\"\",'Base-datos'!$B$736=\"\",'Base-datos'!$B$737=\"Sí\"),IF(C101=\"La actividad sí contribuye sustancialmente a la sostenibilidad\",B101,0),IF(AND('Base-datos'!$B$735=\"\",'Base-datos'!$B$736=\"Sí\",'Base-datos'!$B$737=\"Sí\"),IF(AND(E101=\"La actividad sí contribuye sustancialmente a la sostenibilidad\",C101=\"La actividad sí contribuye sustancialmente a la sostenibilidad\"),B101,0),IF(AND('Base-datos'!$B$735=\"Sí\",'Base-datos'!$B$736=\"\",'Base-datos'!$B$737=\"Sí\"),IF(AND(D101=\"La actividad sí contribuye sustancialmente a la sostenibilidad\",C101=\"La actividad sí contribuye sustancialmente a la sostenibilidad\"),B101,0),\"Por definir\"))))))))","v":"Por definir"}]
[{"$f":"Agua!$C18","v":"Seleccione"},{"$f":"IF(Agua!$E18=Otro!B$12,Agua!$B18,\"\")","v":""},{"$f":"_xlfn.XLOOKUP(A102,'Base-datos'!$B$532:$B$536,'Base-datos'!$F$532:$F$536)","v":{"$error":"#N/A"}},{"$f":"_xlfn.XLOOKUP(A102,'Base-datos'!$B$532:$B$536,'Base-datos'!$C$532:$C$536)","v":{"$error":"#N/A"}},{"$f":"_xlfn.XLOOKUP(A102,'Base-datos'!$B$532:$B$536,'Base-datos'!$D$532:$D$536)","v":{"$error":"#N/A"}},null,null,{"$f":"IF(OR(F$98=\"La actividad no cumple con el total de los criterios de No Daño Significativo\",G$98=\"El sector no cumple con las salvaguardas mínimas\"),\"\",IF(AND('Base-datos'!$B$735=\"Sí\",'Base-datos'!$B$736=\"\",'Base-datos'!$B$737=\"\"),IF(D102=\"La actividad sí contribuye sustancialmente a la sostenibilidad\",B102,0),IF(AND('Base-datos'!$B$735=\"Sí\",'Base-datos'!$B$736=\"Sí\",'Base-datos'!$B$737=\"\"),IF(AND(D102=\"La actividad sí contribuye sustancialmente a la sostenibilidad\",E102=\"La actividad sí contribuye sustancialmente a la sostenibilidad\"),B102,0),IF(AND('Base-datos'!$B$735=\"Sí\",'Base-datos'!$B$736=\"Sí\",'Base-datos'!$B$737=\"Sí\"),IF(AND(D102=\"La actividad sí contribuye sustancialmente a la sostenibilidad\",E102=\"La actividad sí contribuye sustancialmente a la sostenibilidad\",C102=\"La actividad sí contribuye sustancialmente a la sostenibilidad\"),B102,0),IF(AND('Base-datos'!$B$735=\"\",'Base-datos'!$B$736=\"Sí\",'Base-datos'!$B$737=\"\"),IF(E102=\"La actividad sí contribuye sustancialmente a la sostenibilidad\",B102,0),IF(AND('Base-datos'!$B$735=\"\",'Base-datos'!$B$736=\"\",'Base-datos'!$B$737=\"Sí\"),IF(C102=\"La actividad sí contribuye sustancialmente a la sostenibilidad\",B102,0),IF(AND('Base-datos'!$B$735=\"\",'Base-datos'!$B$736=\"Sí\",'Base-datos'!$B$737=\"Sí\"),IF(AND(E102=\"La actividad sí contribuye sustancialmente a la sostenibilidad\",C102=\"La actividad sí contribuye sustancialmente a la sostenibilidad\"),B102,0),IF(AND('Base-datos'!$B$735=\"Sí\",'Base-datos'!$B$736=\"\",'Base-datos'!$B$737=\"Sí\"),IF(AND(D102=\"La actividad sí contribuye sustancialmente a la sostenibilidad\",C102=\"La actividad sí contribuye sustancialmente a la sostenibilidad\"),B102,0),\"Por definir\"))))))))","v":"Por definir"}]
[{"$f":"Agua!$C20","v":"Seleccione"},{"$f":"IF(Agua!$E20=Otro!B$12,Agua!$B20,\"\")","v":""},{"$f":"_xlfn.XLOOKUP(A103,'Base-datos'!$B$532:$B$536,'Base-datos'!$F$532:$F$536)","v":{"$error":"#N/A"}},{"$f":"_xlfn.XLOOKUP(A103,'Base-datos'!$B$532:$B$536,'Base-datos'!$C$532:$C$536)","v":{"$error":"#N/A"}},{"$f":"_xlfn.XLOOKUP(A103,'Base-datos'!$B$532:$B$536,'Base-datos'!$D$532:$D$536)","v":{"$error":"#N/A"}},null,null,{"$f":"IF(OR(F$98=\"La actividad no cumple con el total de los criterios de No Daño Significativo\",G$98=\"El sector no cumple con las salvaguardas mínimas\"),\"\",IF(AND('Base-datos'!$B$735=\"Sí\",'Base-datos'!$B$736=\"\",'Base-datos'!$B$737=\"\"),IF(D103=\"La actividad sí contribuye sustancialmente a la sostenibilidad\",B103,0),IF(AND('Base-datos'!$B$735=\"Sí\",'Base-datos'!$B$736=\"Sí\",'Base-datos'!$B$737=\"\"),IF(AND(D103=\"La actividad sí contribuye sustancialmente a la sostenibilidad\",E103=\"La actividad sí contribuye sustancialmente a la sostenibilidad\"),B103,0),IF(AND('Base-datos'!$B$735=\"Sí\",'Base-datos'!$B$736=\"Sí\",'Base-datos'!$B$737=\"Sí\"),IF(AND(D103=\"La actividad sí contribuye sustancialmente a la sostenibilidad\",E103=\"La actividad sí contribuye sustancialmente a la sostenibilidad\",C103=\"La actividad sí contribuye sustancialmente a la sostenibilidad\"),B103,0),IF(AND('Base-datos'!$B$735=\"\",'Base-datos'!$B$736=\"Sí\",'Base-datos'!$B$737=\"\"),IF(E103=\"La actividad sí contribuye sustancialmente a la sostenibilidad\",B103,0),IF(AND('Base-datos'!$B$735=\"\",'Base-datos'!$B$736=\"\",'Base-datos'!$B$737=\"Sí\"),IF(C103=\"La actividad sí contribuye sustancialmente a la sostenibilidad\",B103,0),IF(AND('Base-datos'!$B$735=\"\",'Base-datos'!$B$736=\"Sí\",'Base-datos'!$B$737=\"Sí\"),IF(AND(E103=\"La actividad sí contribuye sustancialmente a la sostenibilidad\",C103=\"La actividad sí contribuye sustancialmente a la sostenibilidad\"),B103,0),IF(AND('Base-datos'!$B$735=\"Sí\",'Base-datos'!$B$736=\"\",'Base-datos'!$B$737=\"Sí\"),IF(AND(D103=\"La actividad sí contribuye sustancialmente a la sostenibilidad\",C103=\"La actividad sí contribuye sustancialmente a la sostenibilidad\"),B103,0),\"Por definir\"))))))))","v":"Por definir"}]
[{"$f":"Agua!$C22","v":"Seleccione"},{"$f":"IF(Agua!$E22=Otro!B$12,Agua!$B22,\"\")","v":""},{"$f":"_xlfn.XLOOKUP(A104,'Base-datos'!$B$532:$B$536,'Base-datos'!$F$532:$F$536)","v":{"$error":"#N/A"}},{"$f":"_xlfn.XLOOKUP(A104,'Base-datos'!$B$532:$B$536,'Base-datos'!$C$532:$C$536)","v":{"$error":"#N/A"}},{"$f":"_xlfn.XLOOKUP(A104,'Base-datos'!$B$532:$B$536,'Base-datos'!$D$532:$D$536)","v":{"$error":"#N/A"}},null,null,{"$f":"IF(OR(F$98=\"La actividad no cumple con el total de los criterios de No Daño Significativo\",G$98=\"El sector no cumple con las salvaguardas mínimas\"),\"\",IF(AND('Base-datos'!$B$735=\"Sí\",'Base-datos'!$B$736=\"\",'Base-datos'!$B$737=\"\"),IF(D104=\"La actividad sí contribuye sustancialmente a la sostenibilidad\",B104,0),IF(AND('Base-datos'!$B$735=\"Sí\",'Base-datos'!$B$736=\"Sí\",'Base-datos'!$B$737=\"\"),IF(AND(D104=\"La actividad sí contribuye sustancialmente a la sostenibilidad\",E104=\"La actividad sí contribuye sustancialmente a la sostenibilidad\"),B104,0),IF(AND('Base-datos'!$B$735=\"Sí\",'Base-datos'!$B$736=\"Sí\",'Base-datos'!$B$737=\"Sí\"),IF(AND(D104=\"La actividad sí contribuye sustancialmente a la sostenibilidad\",E104=\"La actividad sí contribuye sustancialmente a la sostenibilidad\",C104=\"La actividad sí contribuye sustancialmente a la sostenibilidad\"),B104,0),IF(AND('Base-datos'!$B$735=\"\",'Base-datos'!$B$736=\"Sí\",'Base-datos'!$B$737=\"\"),IF(E104=\"La actividad sí contribuye sustancialmente a la sostenibilidad\",B104,0),IF(AND('Base-datos'!$B$735=\"\",'Base-datos'!$B$736=\"\",'Base-datos'!$B$737=\"Sí\"),IF(C104=\"La actividad sí contribuye sustancialmente a la sostenibilidad\",B104,0),IF(AND('Base-datos'!$B$735=\"\",'Base-datos'!$B$736=\"Sí\",'Base-datos'!$B$737=\"Sí\"),IF(AND(E104=\"La actividad sí contribuye sustancialmente a la sostenibilidad\",C104=\"La actividad sí contribuye sustancialmente a la sostenibilidad\"),B104,0),IF(AND('Base-datos'!$B$735=\"Sí\",'Base-datos'!$B$736=\"\",'Base-datos'!$B$737=\"Sí\"),IF(AND(D104=\"La actividad sí contribuye sustancialmente a la sostenibilidad\",C104=\"La actividad sí contribuye sustancialmente a la sostenibilidad\"),B104,0),\"Por definir\"))))))))","v":"Por definir"}]
[{"$f":"Agua!$C24","v":"Seleccione"},{"$f":"IF(Agua!$E24=Otro!B$12,Agua!$B24,\"\")","v":""},{"$f":"_xlfn.XLOOKUP(A105,'Base-datos'!$B$532:$B$536,'Base-datos'!$F$532:$F$536)","v":{"$error":"#N/A"}},{"$f":"_xlfn.XLOOKUP(A105,'Base-datos'!$B$532:$B$536,'Base-datos'!$C$532:$C$536)","v":{"$error":"#N/A"}},{"$f":"_xlfn.XLOOKUP(A105,'Base-datos'!$B$532:$B$536,'Base-datos'!$D$532:$D$536)","v":{"$error":"#N/A"}},null,null,{"$f":"IF(OR(F$98=\"La actividad no cumple con el total de los criterios de No Daño Significativo\",G$98=\"El sector no cumple con las salvaguardas mínimas\"),\"\",IF(AND('Base-datos'!$B$735=\"Sí\",'Base-datos'!$B$736=\"\",'Base-datos'!$B$737=\"\"),IF(D105=\"La actividad sí contribuye sustancialmente a la sostenibilidad\",B105,0),IF(AND('Base-datos'!$B$735=\"Sí\",'Base-datos'!$B$736=\"Sí\",'Base-datos'!$B$737=\"\"),IF(AND(D105=\"La actividad sí contribuye sustancialmente a la sostenibilidad\",E105=\"La actividad sí contribuye sustancialmente a la sostenibilidad\"),B105,0),IF(AND('Base-datos'!$B$735=\"Sí\",'Base-datos'!$B$736=\"Sí\",'Base-datos'!$B$737=\"Sí\"),IF(AND(D105=\"La actividad sí contribuye sustancialmente a la sostenibilidad\",E105=\"La actividad sí contribuye sustancialmente a la sostenibilidad\",C105=\"La actividad sí contribuye sustancialmente a la sostenibilidad\"),B105,0),IF(AND('Base-datos'!$B$735=\"\",'Base-datos'!$B$736=\"Sí\",'Base-datos'!$B$737=\"\"),IF(E105=\"La actividad sí contribuye sustancialmente a la sostenibilidad\",B105,0),IF(AND('Base-datos'!$B$735=\"\",'Base-datos'!$B$736=\"\",'Base-datos'!$B$737=\"Sí\"),IF(C105=\"La actividad sí contribuye sustancialmente a la sostenibilidad\",B105,0),IF(AND('Base-datos'!$B$735=\"\",'Base-datos'!$B$736=\"Sí\",'Base-datos'!$B$737=\"Sí\"),IF(AND(E105=\"La actividad sí contribuye sustancialmente a la sostenibilidad\",C105=\"La actividad sí contribuye sustancialmente a la sostenibilidad\"),B105,0),IF(AND('Base-datos'!$B$735=\"Sí\",'Base-datos'!$B$736=\"\",'Base-datos'!$B$737=\"Sí\"),IF(AND(D105=\"La actividad sí contribuye sustancialmente a la sostenibilidad\",C105=\"La actividad sí contribuye sustancialmente a la sostenibilidad\"),B105,0),\"Por definir\"))))))))","v":"Por definir"}]
[{"$f":"Agua!$C26","v":"Seleccione"},{"$f":"IF(Agua!$E26=Otro!B$12,Agua!$B26,\"\")","v":""},{"$f":"_xlfn.XLOOKUP(A106,'Base-datos'!$B$532:$B$536,'Base-datos'!$F$532:$F$536)","v":{"$error":"#N/A"}},{"$f":"_xlfn.XLOOKUP(A106,'Base-datos'!$B$532:$B$536,'Base-datos'!$C$532:$C$536)","v":{"$error":"#N/A"}},{"$f":"_xlfn.XLOOKUP(A106,'Base-datos'!$B$532:$B$536,'Base-datos'!$D$532:$D$536)","v":{"$error":"#N/A"}},null,null,{"$f":"IF(OR(F$98=\"La actividad no cumple con el total de los criterios de No Daño Significativo\",G$98=\"El sector no cumple con las salvaguardas mínimas\"),\"\",IF(AND('Base-datos'!$B$735=\"Sí\",'Base-datos'!$B$736=\"\",'Base-datos'!$B$737=\"\"),IF(D106=\"La actividad sí contribuye sustancialmente a la sostenibilidad\",B106,0),IF(AND('Base-datos'!$B$735=\"Sí\",'Base-datos'!$B$736=\"Sí\",'Base-datos'!$B$737=\"\"),IF(AND(D106=\"La actividad sí contribuye sustancialmente a la sostenibilidad\",E106=\"La actividad sí contribuye sustancialmente a la sostenibilidad\"),B106,0),IF(AND('Base-datos'!$B$735=\"Sí\",'Base-datos'!$B$736=\"Sí\",'Base-datos'!$B$737=\"Sí\"),IF(AND(D106=\"La actividad sí contribuye sustancialmente a la sostenibilidad\",E106=\"La actividad sí contribuye sustancialmente a la sostenibilidad\",C106=\"La actividad sí contribuye sustancialmente a la sostenibilidad\"),B106,0),IF(AND('Base-datos'!$B$735=\"\",'Base-datos'!$B$736=\"Sí\",'Base-datos'!$B$737=\"\"),IF(E106=\"La actividad sí contribuye sustancialmente a la sostenibilidad\",B106,0),IF(AND('Base-datos'!$B$735=\"\",'Base-datos'!$B$736=\"\",'Base-datos'!$B$737=\"Sí\"),IF(C106=\"La actividad sí contribuye sustancialmente a la sostenibilidad\",B106,0),IF(AND('Base-datos'!$B$735=\"\",'Base-datos'!$B$736=\"Sí\",'Base-datos'!$B$737=\"Sí\"),IF(AND(E106=\"La actividad sí contribuye sustancialmente a la sostenibilidad\",C106=\"La actividad sí contribuye sustancialmente a la sostenibilidad\"),B106,0),IF(AND('Base-datos'!$B$735=\"Sí\",'Base-datos'!$B$736=\"\",'Base-datos'!$B$737=\"Sí\"),IF(AND(D106=\"La actividad sí contribuye sustancialmente a la sostenibilidad\",C106=\"La actividad sí contribuye sustancialmente a la sostenibilidad\"),B106,0),\"Por definir\"))))))))","v":"Por definir"}]
[{"$f":"Agua!$C28","v":"Seleccione"},{"$f":"IF(Agua!$E28=Otro!B$12,Agua!$B28,\"\")","v":""},{"$f":"_xlfn.XLOOKUP(A107,'Base-datos'!$B$532:$B$536,'Base-datos'!$F$532:$F$536)","v":{"$error":"#N/A"}},{"$f":"_xlfn.XLOOKUP(A107,'Base-datos'!$B$532:$B$536,'Base-datos'!$C$532:$C$536)","v":{"$error":"#N/A"}},{"$f":"_xlfn.XLOOKUP(A107,'Base-datos'!$B$532:$B$536,'Base-datos'!$D$532:$D$536)","v":{"$error":"#N/A"}},null,null,{"$f":"IF(OR(F$98=\"La actividad no cumple con el total de los criterios de No Daño Significativo\",G$98=\"El sector no cumple con las salvaguardas mínimas\"),\"\",IF(AND('Base-datos'!$B$735=\"Sí\",'Base-datos'!$B$736=\"\",'Base-datos'!$B$737=\"\"),IF(D107=\"La actividad sí contribuye sustancialmente a la sostenibilidad\",B107,0),IF(AND('Base-datos'!$B$735=\"Sí\",'Base-datos'!$B$736=\"Sí\",'Base-datos'!$B$737=\"\"),IF(AND(D107=\"La actividad sí contribuye sustancialmente a la sostenibilidad\",E107=\"La actividad sí contribuye sustancialmente a la sostenibilidad\"),B107,0),IF(AND('Base-datos'!$B$735=\"Sí\",'Base-datos'!$B$736=\"Sí\",'Base-datos'!$B$737=\"Sí\"),IF(AND(D107=\"La actividad sí contribuye sustancialmente a la sostenibilidad\",E107=\"La actividad sí contribuye sustancialmente a la sostenibilidad\",C107=\"La actividad sí contribuye sustancialmente a la sostenibilidad\"),B107,0),IF(AND('Base-datos'!$B$735=\"\",'Base-datos'!$B$736=\"Sí\",'Base-datos'!$B$737=\"\"),IF(E107=\"La actividad sí contribuye sustancialmente a la sostenibilidad\",B107,0),IF(AND('Base-datos'!$B$735=\"\",'Base-datos'!$B$736=\"\",'Base-datos'!$B$737=\"Sí\"),IF(C107=\"La actividad sí contribuye sustancialmente a la sostenibilidad\",B107,0),IF(AND('Base-datos'!$B$735=\"\",'Base-datos'!$B$736=\"Sí\",'Base-datos'!$B$737=\"Sí\"),IF(AND(E107=\"La actividad sí contribuye sustancialmente a la sostenibilidad\",C107=\"La actividad sí contribuye sustancialmente a la sostenibilidad\"),B107,0),IF(AND('Base-datos'!$B$735=\"Sí\",'Base-datos'!$B$736=\"\",'Base-datos'!$B$737=\"Sí\"),IF(AND(D107=\"La actividad sí contribuye sustancialmente a la sostenibilidad\",C107=\"La actividad sí contribuye sustancialmente a la sostenibilidad\"),B107,0),\"Por definir\"))))))))","v":"Por definir"}]
[{"$f":"Agua!$C30","v":"Seleccione"},{"$f":"IF(Agua!$E30=Otro!B$12,Agua!$B30,\"\")","v":""},{"$f":"_xlfn.XLOOKUP(A108,'Base-datos'!$B$532:$B$536,'Base-datos'!$F$532:$F$536)","v":{"$error":"#N/A"}},{"$f":"_xlfn.XLOOKUP(A108,'Base-datos'!$B$532:$B$536,'Base-datos'!$C$532:$C$536)","v":{"$error":"#N/A"}},{"$f":"_xlfn.XLOOKUP(A108,'Base-datos'!$B$532:$B$536,'Base-datos'!$D$532:$D$536)","v":{"$error":"#N/A"}},null,null,{"$f":"IF(OR(F$98=\"La actividad no cumple con el total de los criterios de No Daño Significativo\",G$98=\"El sector no cumple con las salvaguardas mínimas\"),\"\",IF(AND('Base-datos'!$B$735=\"Sí\",'Base-datos'!$B$736=\"\",'Base-datos'!$B$737=\"\"),IF(D108=\"La actividad sí contribuye sustancialmente a la sostenibilidad\",B108,0),IF(AND('Base-datos'!$B$735=\"Sí\",'Base-datos'!$B$736=\"Sí\",'Base-datos'!$B$737=\"\"),IF(AND(D108=\"La actividad sí contribuye sustancialmente a la sostenibilidad\",E108=\"La actividad sí contribuye sustancialmente a la sostenibilidad\"),B108,0),IF(AND('Base-datos'!$B$735=\"Sí\",'Base-datos'!$B$736=\"Sí\",'Base-datos'!$B$737=\"Sí\"),IF(AND(D108=\"La actividad sí contribuye sustancialmente a la sostenibilidad\",E108=\"La actividad sí contribuye sustancialmente a la sostenibilidad\",C108=\"La actividad sí contribuye sustancialmente a la sostenibilidad\"),B108,0),IF(AND('Base-datos'!$B$735=\"\",'Base-datos'!$B$736=\"Sí\",'Base-datos'!$B$737=\"\"),IF(E108=\"La actividad sí contribuye sustancialmente a la sostenibilidad\",B108,0),IF(AND('Base-datos'!$B$735=\"\",'Base-datos'!$B$736=\"\",'Base-datos'!$B$737=\"Sí\"),IF(C108=\"La actividad sí contribuye sustancialmente a la sostenibilidad\",B108,0),IF(AND('Base-datos'!$B$735=\"\",'Base-datos'!$B$736=\"Sí\",'Base-datos'!$B$737=\"Sí\"),IF(AND(E108=\"La actividad sí contribuye sustancialmente a la sostenibilidad\",C108=\"La actividad sí contribuye sustancialmente a la sostenibilidad\"),B108,0),IF(AND('Base-datos'!$B$735=\"Sí\",'Base-datos'!$B$736=\"\",'Base-datos'!$B$737=\"Sí\"),IF(AND(D108=\"La actividad sí contribuye sustancialmente a la sostenibilidad\",C108=\"La actividad sí contribuye sustancialmente a la sostenibilidad\"),B108,0),\"Por definir\"))))))))","v":"Por definir"}]
[{"$f":"Agua!$C32","v":"Seleccione"},{"$f":"IF(Agua!$E32=Otro!B$12,Agua!$B32,\"\")","v":""},{"$f":"_xlfn.XLOOKUP(A109,'Base-datos'!$B$532:$B$536,'Base-datos'!$F$532:$F$536)","v":{"$error":"#N/A"}},{"$f":"_xlfn.XLOOKUP(A109,'Base-datos'!$B$532:$B$536,'Base-datos'!$C$532:$C$536)","v":{"$error":"#N/A"}},{"$f":"_xlfn.XLOOKUP(A109,'Base-datos'!$B$532:$B$536,'Base-datos'!$D$532:$D$536)","v":{"$error":"#N/A"}},null,null,{"$f":"IF(OR(F$98=\"La actividad no cumple con el total de los criterios de No Daño Significativo\",G$98=\"El sector no cumple con las salvaguardas mínimas\"),\"\",IF(AND('Base-datos'!$B$735=\"Sí\",'Base-datos'!$B$736=\"\",'Base-datos'!$B$737=\"\"),IF(D109=\"La actividad sí contribuye sustancialmente a la sostenibilidad\",B109,0),IF(AND('Base-datos'!$B$735=\"Sí\",'Base-datos'!$B$736=\"Sí\",'Base-datos'!$B$737=\"\"),IF(AND(D109=\"La actividad sí contribuye sustancialmente a la sostenibilidad\",E109=\"La actividad sí contribuye sustancialmente a la sostenibilidad\"),B109,0),IF(AND('Base-datos'!$B$735=\"Sí\",'Base-datos'!$B$736=\"Sí\",'Base-datos'!$B$737=\"Sí\"),IF(AND(D109=\"La actividad sí contribuye sustancialmente a la sostenibilidad\",E109=\"La actividad sí contribuye sustancialmente a la sostenibilidad\",C109=\"La actividad sí contribuye sustancialmente a la sostenibilidad\"),B109,0),IF(AND('Base-datos'!$B$735=\"\",'Base-datos'!$B$736=\"Sí\",'Base-datos'!$B$737=\"\"),IF(E109=\"La actividad sí contribuye sustancialmente a la sostenibilidad\",B109,0),IF(AND('Base-datos'!$B$735=\"\",'Base-datos'!$B$736=\"\",'Base-datos'!$B$737=\"Sí\"),IF(C109=\"La actividad sí contribuye sustancialmente a la sostenibilidad\",B109,0),IF(AND('Base-datos'!$B$735=\"\",'Base-datos'!$B$736=\"Sí\",'Base-datos'!$B$737=\"Sí\"),IF(AND(E109=\"La actividad sí contribuye sustancialmente a la sostenibilidad\",C109=\"La actividad sí contribuye sustancialmente a la sostenibilidad\"),B109,0),IF(AND('Base-datos'!$B$735=\"Sí\",'Base-datos'!$B$736=\"\",'Base-datos'!$B$737=\"Sí\"),IF(AND(D109=\"La actividad sí contribuye sustancialmente a la sostenibilidad\",C109=\"La actividad sí contribuye sustancialmente a la sostenibilidad\"),B109,0),\"Por definir\"))))))))","v":"Por definir"}]
[{"$f":"Agua!$C34","v":"Seleccione"},{"$f":"IF(Agua!$E34=Otro!B$12,Agua!$B34,\"\")","v":""},{"$f":"_xlfn.XLOOKUP(A110,'Base-datos'!$B$532:$B$536,'Base-datos'!$F$532:$F$536)","v":{"$error":"#N/A"}},{"$f":"_xlfn.XLOOKUP(A110,'Base-datos'!$B$532:$B$536,'Base-datos'!$C$532:$C$536)","v":{"$error":"#N/A"}},{"$f":"_xlfn.XLOOKUP(A110,'Base-datos'!$B$532:$B$536,'Base-datos'!$D$532:$D$536)","v":{"$error":"#N/A"}},null,null,{"$f":"IF(OR(F$98=\"La actividad no cumple con el total de los criterios de No Daño Significativo\",G$98=\"El sector no cumple con las salvaguardas mínimas\"),\"\",IF(AND('Base-datos'!$B$735=\"Sí\",'Base-datos'!$B$736=\"\",'Base-datos'!$B$737=\"\"),IF(D110=\"La actividad sí contribuye sustancialmente a la sostenibilidad\",B110,0),IF(AND('Base-datos'!$B$735=\"Sí\",'Base-datos'!$B$736=\"Sí\",'Base-datos'!$B$737=\"\"),IF(AND(D110=\"La actividad sí contribuye sustancialmente a la sostenibilidad\",E110=\"La actividad sí contribuye sustancialmente a la sostenibilidad\"),B110,0),IF(AND('Base-datos'!$B$735=\"Sí\",'Base-datos'!$B$736=\"Sí\",'Base-datos'!$B$737=\"Sí\"),IF(AND(D110=\"La actividad sí contribuye sustancialmente a la sostenibilidad\",E110=\"La actividad sí contribuye sustancialmente a la sostenibilidad\",C110=\"La actividad sí contribuye sustancialmente a la sostenibilidad\"),B110,0),IF(AND('Base-datos'!$B$735=\"\",'Base-datos'!$B$736=\"Sí\",'Base-datos'!$B$737=\"\"),IF(E110=\"La actividad sí contribuye sustancialmente a la sostenibilidad\",B110,0),IF(AND('Base-datos'!$B$735=\"\",'Base-datos'!$B$736=\"\",'Base-datos'!$B$737=\"Sí\"),IF(C110=\"La actividad sí contribuye sustancialmente a la sostenibilidad\",B110,0),IF(AND('Base-datos'!$B$735=\"\",'Base-datos'!$B$736=\"Sí\",'Base-datos'!$B$737=\"Sí\"),IF(AND(E110=\"La actividad sí contribuye sustancialmente a la sostenibilidad\",C110=\"La actividad sí contribuye sustancialmente a la sostenibilidad\"),B110,0),IF(AND('Base-datos'!$B$735=\"Sí\",'Base-datos'!$B$736=\"\",'Base-datos'!$B$737=\"Sí\"),IF(AND(D110=\"La actividad sí contribuye sustancialmente a la sostenibilidad\",C110=\"La actividad sí contribuye sustancialmente a la sostenibilidad\"),B110,0),\"Por definir\"))))))))","v":"Por definir"}]
[{"$f":"Agua!$C36","v":"Seleccione"},{"$f":"IF(Agua!$E36=Otro!B$12,Agua!$B36,\"\")","v":""},{"$f":"_xlfn.XLOOKUP(A111,'Base-datos'!$B$532:$B$536,'Base-datos'!$F$532:$F$536)","v":{"$error":"#N/A"}},{"$f":"_xlfn.XLOOKUP(A111,'Base-datos'!$B$532:$B$536,'Base-datos'!$C$532:$C$536)","v":{"$error":"#N/A"}},{"$f":"_xlfn.XLOOKUP(A111,'Base-datos'!$B$532:$B$536,'Base-datos'!$D$532:$D$536)","v":{"$error":"#N/A"}},null,null,{"$f":"IF(OR(F$98=\"La actividad no cumple con el total de los criterios de No Daño Significativo\",G$98=\"El sector no cumple con las salvaguardas mínimas\"),\"\",IF(AND('Base-datos'!$B$735=\"Sí\",'Base-datos'!$B$736=\"\",'Base-datos'!$B$737=\"\"),IF(D111=\"La actividad sí contribuye sustancialmente a la sostenibilidad\",B111,0),IF(AND('Base-datos'!$B$735=\"Sí\",'Base-datos'!$B$736=\"Sí\",'Base-datos'!$B$737=\"\"),IF(AND(D111=\"La actividad sí contribuye sustancialmente a la sostenibilidad\",E111=\"La actividad sí contribuye sustancialmente a la sostenibilidad\"),B111,0),IF(AND('Base-datos'!$B$735=\"Sí\",'Base-datos'!$B$736=\"Sí\",'Base-datos'!$B$737=\"Sí\"),IF(AND(D111=\"La actividad sí contribuye sustancialmente a la sostenibilidad\",E111=\"La actividad sí contribuye sustancialmente a la sostenibilidad\",C111=\"La actividad sí contribuye sustancialmente a la sostenibilidad\"),B111,0),IF(AND('Base-datos'!$B$735=\"\",'Base-datos'!$B$736=\"Sí\",'Base-datos'!$B$737=\"\"),IF(E111=\"La actividad sí contribuye sustancialmente a la sostenibilidad\",B111,0),IF(AND('Base-datos'!$B$735=\"\",'Base-datos'!$B$736=\"\",'Base-datos'!$B$737=\"Sí\"),IF(C111=\"La actividad sí contribuye sustancialmente a la sostenibilidad\",B111,0),IF(AND('Base-datos'!$B$735=\"\",'Base-datos'!$B$736=\"Sí\",'Base-datos'!$B$737=\"Sí\"),IF(AND(E111=\"La actividad sí contribuye sustancialmente a la sostenibilidad\",C111=\"La actividad sí contribuye sustancialmente a la sostenibilidad\"),B111,0),IF(AND('Base-datos'!$B$735=\"Sí\",'Base-datos'!$B$736=\"\",'Base-datos'!$B$737=\"Sí\"),IF(AND(D111=\"La actividad sí contribuye sustancialmente a la sostenibilidad\",C111=\"La actividad sí contribuye sustancialmente a la sostenibilidad\"),B111,0),\"Por definir\"))))))))","v":"Por definir"}]
[{"$f":"Agua!$C38","v":"Seleccione"},{"$f":"IF(Agua!$E38=Otro!B$12,Agua!$B38,\"\")","v":""},{"$f":"_xlfn.XLOOKUP(A112,'Base-datos'!$B$532:$B$536,'Base-datos'!$F$532:$F$536)","v":{"$error":"#N/A"}},{"$f":"_xlfn.XLOOKUP(A112,'Base-datos'!$B$532:$B$536,'Base-datos'!$C$532:$C$536)","v":{"$error":"#N/A"}},{"$f":"_xlfn.XLOOKUP(A112,'Base-datos'!$B$532:$B$536,'Base-datos'!$D$532:$D$536)","v":{"$error":"#N/A"}},null,null,{"$f":"IF(OR(F$98=\"La actividad no cumple con el total de los criterios de No Daño Significativo\",G$98=\"El sector no cumple con las salvaguardas mínimas\"),\"\",IF(AND('Base-datos'!$B$735=\"Sí\",'Base-datos'!$B$736=\"\",'Base-datos'!$B$737=\"\"),IF(D112=\"La actividad sí contribuye sustancialmente a la sostenibilidad\",B112,0),IF(AND('Base-datos'!$B$735=\"Sí\",'Base-datos'!$B$736=\"Sí\",'Base-datos'!$B$737=\"\"),IF(AND(D112=\"La actividad sí contribuye sustancialmente a la sostenibilidad\",E112=\"La actividad sí contribuye sustancialmente a la sostenibilidad\"),B112,0),IF(AND('Base-datos'!$B$735=\"Sí\",'Base-datos'!$B$736=\"Sí\",'Base-datos'!$B$737=\"Sí\"),IF(AND(D112=\"La actividad sí contribuye sustancialmente a la sostenibilidad\",E112=\"La actividad sí contribuye sustancialmente a la sostenibilidad\",C112=\"La actividad sí contribuye sustancialmente a la sostenibilidad\"),B112,0),IF(AND('Base-datos'!$B$735=\"\",'Base-datos'!$B$736=\"Sí\",'Base-datos'!$B$737=\"\"),IF(E112=\"La actividad sí contribuye sustancialmente a la sostenibilidad\",B112,0),IF(AND('Base-datos'!$B$735=\"\",'Base-datos'!$B$736=\"\",'Base-datos'!$B$737=\"Sí\"),IF(C112=\"La actividad sí contribuye sustancialmente a la sostenibilidad\",B112,0),IF(AND('Base-datos'!$B$735=\"\",'Base-datos'!$B$736=\"Sí\",'Base-datos'!$B$737=\"Sí\"),IF(AND(E112=\"La actividad sí contribuye sustancialmente a la sostenibilidad\",C112=\"La actividad sí contribuye sustancialmente a la sostenibilidad\"),B112,0),IF(AND('Base-datos'!$B$735=\"Sí\",'Base-datos'!$B$736=\"\",'Base-datos'!$B$737=\"Sí\"),IF(AND(D112=\"La actividad sí contribuye sustancialmente a la sostenibilidad\",C112=\"La actividad sí contribuye sustancialmente a la sostenibilidad\"),B112,0),\"Por definir\"))))))))","v":"Por definir"}]
[{"$f":"Agua!$C40","v":"Seleccione"},{"$f":"IF(Agua!$E40=Otro!B$12,Agua!$B40,\"\")","v":""},{"$f":"_xlfn.XLOOKUP(A113,'Base-datos'!$B$532:$B$536,'Base-datos'!$F$532:$F$536)","v":{"$error":"#N/A"}},{"$f":"_xlfn.XLOOKUP(A113,'Base-datos'!$B$532:$B$536,'Base-datos'!$C$532:$C$536)","v":{"$error":"#N/A"}},{"$f":"_xlfn.XLOOKUP(A113,'Base-datos'!$B$532:$B$536,'Base-datos'!$D$532:$D$536)","v":{"$error":"#N/A"}},null,null,{"$f":"IF(OR(F$98=\"La actividad no cumple con el total de los criterios de No Daño Significativo\",G$98=\"El sector no cumple con las salvaguardas mínimas\"),\"\",IF(AND('Base-datos'!$B$735=\"Sí\",'Base-datos'!$B$736=\"\",'Base-datos'!$B$737=\"\"),IF(D113=\"La actividad sí contribuye sustancialmente a la sostenibilidad\",B113,0),IF(AND('Base-datos'!$B$735=\"Sí\",'Base-datos'!$B$736=\"Sí\",'Base-datos'!$B$737=\"\"),IF(AND(D113=\"La actividad sí contribuye sustancialmente a la sostenibilidad\",E113=\"La actividad sí contribuye sustancialmente a la sostenibilidad\"),B113,0),IF(AND('Base-datos'!$B$735=\"Sí\",'Base-datos'!$B$736=\"Sí\",'Base-datos'!$B$737=\"Sí\"),IF(AND(D113=\"La actividad sí contribuye sustancialmente a la sostenibilidad\",E113=\"La actividad sí contribuye sustancialmente a la sostenibilidad\",C113=\"La actividad sí contribuye sustancialmente a la sostenibilidad\"),B113,0),IF(AND('Base-datos'!$B$735=\"\",'Base-datos'!$B$736=\"Sí\",'Base-datos'!$B$737=\"\"),IF(E113=\"La actividad sí contribuye sustancialmente a la sostenibilidad\",B113,0),IF(AND('Base-datos'!$B$735=\"\",'Base-datos'!$B$736=\"\",'Base-datos'!$B$737=\"Sí\"),IF(C113=\"La actividad sí contribuye sustancialmente a la sostenibilidad\",B113,0),IF(AND('Base-datos'!$B$735=\"\",'Base-datos'!$B$736=\"Sí\",'Base-datos'!$B$737=\"Sí\"),IF(AND(E113=\"La actividad sí contribuye sustancialmente a la sostenibilidad\",C113=\"La actividad sí contribuye sustancialmente a la sostenibilidad\"),B113,0),IF(AND('Base-datos'!$B$735=\"Sí\",'Base-datos'!$B$736=\"\",'Base-datos'!$B$737=\"Sí\"),IF(AND(D113=\"La actividad sí contribuye sustancialmente a la sostenibilidad\",C113=\"La actividad sí contribuye sustancialmente a la sostenibilidad\"),B113,0),\"Por definir\"))))))))","v":"Por definir"}]
[{"$f":"Agua!$C42","v":"Seleccione"},{"$f":"IF(Agua!$E42=Otro!B$12,Agua!$B42,\"\")","v":""},{"$f":"_xlfn.XLOOKUP(A114,'Base-datos'!$B$532:$B$536,'Base-datos'!$F$532:$F$536)","v":{"$error":"#N/A"}},{"$f":"_xlfn.XLOOKUP(A114,'Base-datos'!$B$532:$B$536,'Base-datos'!$C$532:$C$536)","v":{"$error":"#N/A"}},{"$f":"_xlfn.XLOOKUP(A114,'Base-datos'!$B$532:$B$536,'Base-datos'!$D$532:$D$536)","v":{"$error":"#N/A"}},null,null,{"$f":"IF(OR(F$98=\"La actividad no cumple con el total de los criterios de No Daño Significativo\",G$98=\"El sector no cumple con las salvaguardas mínimas\"),\"\",IF(AND('Base-datos'!$B$735=\"Sí\",'Base-datos'!$B$736=\"\",'Base-datos'!$B$737=\"\"),IF(D114=\"La actividad sí contribuye sustancialmente a la sostenibilidad\",B114,0),IF(AND('Base-datos'!$B$735=\"Sí\",'Base-datos'!$B$736=\"Sí\",'Base-datos'!$B$737=\"\"),IF(AND(D114=\"La actividad sí contribuye sustancialmente a la sostenibilidad\",E114=\"La actividad sí contribuye sustancialmente a la sostenibilidad\"),B114,0),IF(AND('Base-datos'!$B$735=\"Sí\",'Base-datos'!$B$736=\"Sí\",'Base-datos'!$B$737=\"Sí\"),IF(AND(D114=\"La actividad sí contribuye sustancialmente a la sostenibilidad\",E114=\"La actividad sí contribuye sustancialmente a la sostenibilidad\",C114=\"La actividad sí contribuye sustancialmente a la sostenibilidad\"),B114,0),IF(AND('Base-datos'!$B$735=\"\",'Base-datos'!$B$736=\"Sí\",'Base-datos'!$B$737=\"\"),IF(E114=\"La actividad sí contribuye sustancialmente a la sostenibilidad\",B114,0),IF(AND('Base-datos'!$B$735=\"\",'Base-datos'!$B$736=\"\",'Base-datos'!$B$737=\"Sí\"),IF(C114=\"La actividad sí contribuye sustancialmente a la sostenibilidad\",B114,0),IF(AND('Base-datos'!$B$735=\"\",'Base-datos'!$B$736=\"Sí\",'Base-datos'!$B$737=\"Sí\"),IF(AND(E114=\"La actividad sí contribuye sustancialmente a la sostenibilidad\",C114=\"La actividad sí contribuye sustancialmente a la sostenibilidad\"),B114,0),IF(AND('Base-datos'!$B$735=\"Sí\",'Base-datos'!$B$736=\"\",'Base-datos'!$B$737=\"Sí\"),IF(AND(D114=\"La actividad sí contribuye sustancialmente a la sostenibilidad\",C114=\"La actividad sí contribuye sustancialmente a la sostenibilidad\"),B114,0),\"Por definir\"))))))))","v":"Por definir"}]
[{"$f":"Agua!$C44","v":"Seleccione"},{"$f":"IF(Agua!$E44=Otro!B$12,Agua!$B44,\"\")","v":""},{"$f":"_xlfn.XLOOKUP(A115,'Base-datos'!$B$532:$B$536,'Base-datos'!$F$532:$F$536)","v":{"$error":"#N/A"}},{"$f":"_xlfn.XLOOKUP(A115,'Base-datos'!$B$532:$B$536,'Base-datos'!$C$532:$C$536)","v":{"$error":"#N/A"}},{"$f":"_xlfn.XLOOKUP(A115,'Base-datos'!$B$532:$B$536,'Base-datos'!$D$532:$D$536)","v":{"$error":"#N/A"}},null,null,{"$f":"IF(OR(F$98=\"La actividad no cumple con el total de los criterios de No Daño Significativo\",G$98=\"El sector no cumple con las salvaguardas mínimas\"),\"\",IF(AND('Base-datos'!$B$735=\"Sí\",'Base-datos'!$B$736=\"\",'Base-datos'!$B$737=\"\"),IF(D115=\"La actividad sí contribuye sustancialmente a la sostenibilidad\",B115,0),IF(AND('Base-datos'!$B$735=\"Sí\",'Base-datos'!$B$736=\"Sí\",'Base-datos'!$B$737=\"\"),IF(AND(D115=\"La actividad sí contribuye sustancialmente a la sostenibilidad\",E115=\"La actividad sí contribuye sustancialmente a la sostenibilidad\"),B115,0),IF(AND('Base-datos'!$B$735=\"Sí\",'Base-datos'!$B$736=\"Sí\",'Base-datos'!$B$737=\"Sí\"),IF(AND(D115=\"La actividad sí contribuye sustancialmente a la sostenibilidad\",E115=\"La actividad sí contribuye sustancialmente a la sostenibilidad\",C115=\"La actividad sí contribuye sustancialmente a la sostenibilidad\"),B115,0),IF(AND('Base-datos'!$B$735=\"\",'Base-datos'!$B$736=\"Sí\",'Base-datos'!$B$737=\"\"),IF(E115=\"La actividad sí contribuye sustancialmente a la sostenibilidad\",B115,0),IF(AND('Base-datos'!$B$735=\"\",'Base-datos'!$B$736=\"\",'Base-datos'!$B$737=\"Sí\"),IF(C115=\"La actividad sí contribuye sustancialmente a la sostenibilidad\",B115,0),IF(AND('Base-datos'!$B$735=\"\",'Base-datos'!$B$736=\"Sí\",'Base-datos'!$B$737=\"Sí\"),IF(AND(E115=\"La actividad sí contribuye sustancialmente a la sostenibilidad\",C115=\"La actividad sí contribuye sustancialmente a la sostenibilidad\"),B115,0),IF(AND('Base-datos'!$B$735=\"Sí\",'Base-datos'!$B$736=\"\",'Base-datos'!$B$737=\"Sí\"),IF(AND(D115=\"La actividad sí contribuye sustancialmente a la sostenibilidad\",C115=\"La actividad sí contribuye sustancialmente a la sostenibilidad\"),B115,0),\"Por definir\"))))))))","v":"Por definir"}]
[{"$f":"Agua!$C46","v":"Seleccione"},{"$f":"IF(Agua!$E46=Otro!B$12,Agua!$B46,\"\")","v":""},{"$f":"_xlfn.XLOOKUP(A116,'Base-datos'!$B$532:$B$536,'Base-datos'!$F$532:$F$536)","v":{"$error":"#N/A"}},{"$f":"_xlfn.XLOOKUP(A116,'Base-datos'!$B$532:$B$536,'Base-datos'!$C$532:$C$536)","v":{"$error":"#N/A"}},{"$f":"_xlfn.XLOOKUP(A116,'Base-datos'!$B$532:$B$536,'Base-datos'!$D$532:$D$536)","v":{"$error":"#N/A"}},null,null,{"$f":"IF(OR(F$98=\"La actividad no cumple con el total de los criterios de No Daño Significativo\",G$98=\"El sector no cumple con las salvaguardas mínimas\"),\"\",IF(AND('Base-datos'!$B$735=\"Sí\",'Base-datos'!$B$736=\"\",'Base-datos'!$B$737=\"\"),IF(D116=\"La actividad sí contribuye sustancialmente a la sostenibilidad\",B116,0),IF(AND('Base-datos'!$B$735=\"Sí\",'Base-datos'!$B$736=\"Sí\",'Base-datos'!$B$737=\"\"),IF(AND(D116=\"La actividad sí contribuye sustancialmente a la sostenibilidad\",E116=\"La actividad sí contribuye sustancialmente a la sostenibilidad\"),B116,0),IF(AND('Base-datos'!$B$735=\"Sí\",'Base-datos'!$B$736=\"Sí\",'Base-datos'!$B$737=\"Sí\"),IF(AND(D116=\"La actividad sí contribuye sustancialmente a la sostenibilidad\",E116=\"La actividad sí contribuye sustancialmente a la sostenibilidad\",C116=\"La actividad sí contribuye sustancialmente a la sostenibilidad\"),B116,0),IF(AND('Base-datos'!$B$735=\"\",'Base-datos'!$B$736=\"Sí\",'Base-datos'!$B$737=\"\"),IF(E116=\"La actividad sí contribuye sustancialmente a la sostenibilidad\",B116,0),IF(AND('Base-datos'!$B$735=\"\",'Base-datos'!$B$736=\"\",'Base-datos'!$B$737=\"Sí\"),IF(C116=\"La actividad sí contribuye sustancialmente a la sostenibilidad\",B116,0),IF(AND('Base-datos'!$B$735=\"\",'Base-datos'!$B$736=\"Sí\",'Base-datos'!$B$737=\"Sí\"),IF(AND(E116=\"La actividad sí contribuye sustancialmente a la sostenibilidad\",C116=\"La actividad sí contribuye sustancialmente a la sostenibilidad\"),B116,0),IF(AND('Base-datos'!$B$735=\"Sí\",'Base-datos'!$B$736=\"\",'Base-datos'!$B$737=\"Sí\"),IF(AND(D116=\"La actividad sí contribuye sustancialmente a la sostenibilidad\",C116=\"La actividad sí contribuye sustancialmente a la sostenibilidad\"),B116,0),\"Por definir\"))))))))","v":"Por definir"}]
[{"$f":"Agua!$C48","v":"Seleccione"},{"$f":"IF(Agua!$E48=Otro!B$12,Agua!$B48,\"\")","v":""},{"$f":"_xlfn.XLOOKUP(A117,'Base-datos'!$B$532:$B$536,'Base-datos'!$F$532:$F$536)","v":{"$error":"#N/A"}},{"$f":"_xlfn.XLOOKUP(A117,'Base-datos'!$B$532:$B$536,'Base-datos'!$C$532:$C$536)","v":{"$error":"#N/A"}},{"$f":"_xlfn.XLOOKUP(A117,'Base-datos'!$B$532:$B$536,'Base-datos'!$D$532:$D$536)","v":{"$error":"#N/A"}},null,null,{"$f":"IF(OR(F$98=\"La actividad no cumple con el total de los criterios de No Daño Significativo\",G$98=\"El sector no cumple con las salvaguardas mínimas\"),\"\",IF(AND('Base-datos'!$B$735=\"Sí\",'Base-datos'!$B$736=\"\",'Base-datos'!$B$737=\"\"),IF(D117=\"La actividad sí contribuye sustancialmente a la sostenibilidad\",B117,0),IF(AND('Base-datos'!$B$735=\"Sí\",'Base-datos'!$B$736=\"Sí\",'Base-datos'!$B$737=\"\"),IF(AND(D117=\"La actividad sí contribuye sustancialmente a la sostenibilidad\",E117=\"La actividad sí contribuye sustancialmente a la sostenibilidad\"),B117,0),IF(AND('Base-datos'!$B$735=\"Sí\",'Base-datos'!$B$736=\"Sí\",'Base-datos'!$B$737=\"Sí\"),IF(AND(D117=\"La actividad sí contribuye sustancialmente a la sostenibilidad\",E117=\"La actividad sí contribuye sustancialmente a la sostenibilidad\",C117=\"La actividad sí contribuye sustancialmente a la sostenibilidad\"),B117,0),IF(AND('Base-datos'!$B$735=\"\",'Base-datos'!$B$736=\"Sí\",'Base-datos'!$B$737=\"\"),IF(E117=\"La actividad sí contribuye sustancialmente a la sostenibilidad\",B117,0),IF(AND('Base-datos'!$B$735=\"\",'Base-datos'!$B$736=\"\",'Base-datos'!$B$737=\"Sí\"),IF(C117=\"La actividad sí contribuye sustancialmente a la sostenibilidad\",B117,0),IF(AND('Base-datos'!$B$735=\"\",'Base-datos'!$B$736=\"Sí\",'Base-datos'!$B$737=\"Sí\"),IF(AND(E117=\"La actividad sí contribuye sustancialmente a la sostenibilidad\",C117=\"La actividad sí contribuye sustancialmente a la sostenibilidad\"),B117,0),IF(AND('Base-datos'!$B$735=\"Sí\",'Base-datos'!$B$736=\"\",'Base-datos'!$B$737=\"Sí\"),IF(AND(D117=\"La actividad sí contribuye sustancialmente a la sostenibilidad\",C117=\"La actividad sí contribuye sustancialmente a la sostenibilidad\"),B117,0),\"Por definir\"))))))))","v":"Por definir"}]
["Construcción",null,null,null,null,null,null,{"$f":"SUM(IF(FREQUENCY(MATCH(A119:A138, A119:A138, 0), MATCH(A119:A138, A119:A138, 0)) > 0, IF(NOT(ISERROR(H119:H138)), H119:H138, 0)))","v":0}]
[{"$f":"Construcción!$C10","v":"Seleccione"},{"$f":"IF(Construcción!$E10=Otro!B$12,Construcción!$B10,\"\")","v":""},{"$f":"_xlfn.XLOOKUP(A119,'Base-datos'!$B$537:$B$546,'Base-datos'!$F$537:$F$546)","v":{"$error":"#N/A"}},{"$f":"_xlfn.XLOOKUP(A119,'Base-datos'!$B$537:$B$546,'Base-datos'!$C$537:$C$546)","v":{"$error":"#N/A"}},{"$f":"_xlfn.XLOOKUP(A119,'Base-datos'!$B$537:$B$546,'Base-datos'!$D$537:$D$546)","v":{"$error":"#N/A"}},{"$f":"IF(COUNTIF('Construcción-NDS'!G8:G138,\"No\")>0,\"La actividad no cumple con el total de los criterios de NDS\",\"La actividad cumple con los criterios de No Daño Significativo\")","v":"La actividad cumple con los criterios de No Daño Significativo"},{"$f":"IF(OR('Salvaguardas mínimas'!$G$10=\"Seleccione\",'Salvaguardas mínimas'!$G$13=\"Seleccione\",'Salvaguardas mínimas'!$G$16=\"Seleccione\",'Salvaguardas mínimas'!$G$7=\"Seleccione\"),\"No se han respondido todas las preguntas\",IF(OR('Salvaguardas mínimas'!$G$10=\"No\",'Salvaguardas mínimas'!$G$13=\"No\",'Salvaguardas mínimas'!$G$16=\"No\",'Salvaguardas mínimas'!$G$7=\"No\"),\"El sector no cumple con las salvaguardas mínimas\",\"La actividad sí cumple con las salvaguardas mínimas\"))","v":"No se han respondido todas las preguntas"},{"$f":"IF(OR(F$119=\"La actividad no cumple con el total de los criterios de No Daño Significativo\",G$119=\"El sector no cumple con las salvaguardas mínimas\"),\"\",IF(AND('Base-datos'!$B$740=\"Sí\",'Base-datos'!$B$741=\"\",'Base-datos'!$B$742=\"\"),IF(D119=\"La actividad sí contribuye sustancialmente a la sostenibilidad\",B119,0),IF(AND('Base-datos'!$B$740=\"Sí\",'Base-datos'!$B$741=\"Sí\",'Base-datos'!$B$742=\"\"),IF(AND(D119=\"La actividad sí contribuye sustancialmente a la sostenibilidad\",E119=\"La actividad sí contribuye sustancialmente a la sostenibilidad\"),B119,0),IF(AND('Base-datos'!$B$740=\"Sí\",'Base-datos'!$B$741=\"Sí\",'Base-datos'!$B$742=\"Sí\"),IF(AND(D119=\"La actividad sí contribuye sustancialmente a la sostenibilidad\",E119=\"La actividad sí contribuye sustancialmente a la sostenibilidad\",C119=\"La actividad sí contribuye sustancialmente a la sostenibilidad\"),B119,0),IF(AND('Base-datos'!$B$740=\"\",'Base-datos'!$B$741=\"Sí\",'Base-datos'!$B$742=\"\"),IF(E119=\"La actividad sí contribuye sustancialmente a la sostenibilidad\",B119,0),IF(AND('Base-datos'!$B$740=\"\",'Base-datos'!$B$741=\"\",'Base-datos'!$B$742=\"Sí\"),IF(C119=\"La actividad sí contribuye sustancialmente a la sostenibilidad\",B119,0),IF(AND('Base-datos'!$B$740=\"\",'Base-datos'!$B$741=\"Sí\",'Base-datos'!$B$742=\"Sí\"),IF(AND(E119=\"La actividad sí contribuye sustancialmente a la sostenibilidad\",C119=\"La actividad sí contribuye sustancialmente a la sostenibilidad\"),B119,0),IF(AND('Base-datos'!$B$740=\"Sí\",'Base-datos'!$B$741=\"\",'Base-datos'!$B$742=\"Sí\"),IF(AND(D119=\"La actividad sí contribuye sustancialmente a la sostenibilidad\",C119=\"La actividad sí contribuye sustancialmente a la sostenibilidad\"),B119,0),\"Por definir\"))))))))","v":"Por definir"}]
[{"$f":"Construcción!$C12","v":"Seleccione"},{"$f":"IF(Construcción!$E12=Otro!B$12,Construcción!$B12,\"\")","v":""},{"$f":"_xlfn.XLOOKUP(A120,'Base-datos'!$B$537:$B$546,'Base-datos'!$F$537:$F$546)","v":{"$error":"#N/A"}},{"$f":"_xlfn.XLOOKUP(A120,'Base-datos'!$B$537:$B$546,'Base-datos'!$C$537:$C$546)","v":{"$error":"#N/A"}},{"$f":"_xlfn.XLOOKUP(A120,'Base-datos'!$B$537:$B$546,'Base-datos'!$D$537:$D$546)","v":{"$error":"#N/A"}},null,null,{"$f":"IF(OR(F$119=\"La actividad no cumple con el total de los criterios de No Daño Significativo\",G$119=\"El sector no cumple con las salvaguardas mínimas\"),\"\",IF(AND('Base-datos'!$B$740=\"Sí\",'Base-datos'!$B$741=\"\",'Base-datos'!$B$742=\"\"),IF(D120=\"La actividad sí contribuye sustancialmente a la sostenibilidad\",B120,0),IF(AND('Base-datos'!$B$740=\"Sí\",'Base-datos'!$B$741=\"Sí\",'Base-datos'!$B$742=\"\"),IF(AND(D120=\"La actividad sí contribuye sustancialmente a la sostenibilidad\",E120=\"La actividad sí contribuye sustancialmente a la sostenibilidad\"),B120,0),IF(AND('Base-datos'!$B$740=\"Sí\",'Base-datos'!$B$741=\"Sí\",'Base-datos'!$B$742=\"Sí\"),IF(AND(D120=\"La actividad sí contribuye sustancialmente a la sostenibilidad\",E120=\"La actividad sí contribuye sustancialmente a la sostenibilidad\",C120=\"La actividad sí contribuye sustancialmente a la sostenibilidad\"),B120,0),IF(AND('Base-datos'!$B$740=\"\",'Base-datos'!$B$741=\"Sí\",'Base-datos'!$B$742=\"\"),IF(E120=\"La actividad sí contribuye sustancialmente a la sostenibilidad\",B120,0),IF(AND('Base-datos'!$B$740=\"\",'Base-datos'!$B$741=\"\",'Base-datos'!$B$742=\"Sí\"),IF(C120=\"La actividad sí contribuye sustancialmente a la sostenibilidad\",B120,0),IF(AND('Base-datos'!$B$740=\"\",'Base-datos'!$B$741=\"Sí\",'Base-datos'!$B$742=\"Sí\"),IF(AND(E120=\"La actividad sí contribuye sustancialmente a la sostenibilidad\",C120=\"La actividad sí contribuye sustancialmente a la sostenibilidad\"),B120,0),IF(AND('Base-datos'!$B$740=\"Sí\",'Base-datos'!$B$741=\"\",'Base-datos'!$B$742=\"Sí\"),IF(AND(D120=\"La actividad sí contribuye sustancialmente a la sostenibilidad\",C120=\"La actividad sí contribuye sustancialmente a la sostenibilidad\"),B120,0),\"Por definir\"))))))))","v":"Por definir"}]
[{"$f":"Construcción!$C14","v":"Seleccione"},{"$f":"IF(Construcción!$E14=Otro!B$12,Construcción!$B14,\"\")","v":""},{"$f":"_xlfn.XLOOKUP(A121,'Base-datos'!$B$537:$B$546,'Base-datos'!$F$537:$F$546)","v":{"$error":"#N/A"}},{"$f":"_xlfn.XLOOKUP(A121,'Base-datos'!$B$537:$B$546,'Base-datos'!$C$537:$C$546)","v":{"$error":"#N/A"}},{"$f":"_xlfn.XLOOKUP(A121,'Base-datos'!$B$537:$B$546,'Base-datos'!$D$537:$D$546)","v":{"$error":"#N/A"}},null,null,{"$f":"IF(OR(F$119=\"La actividad no cumple con el total de los criterios de No Daño Significativo\",G$119=\"El sector no cumple con las salvaguardas mínimas\"),\"\",IF(AND('Base-datos'!$B$740=\"Sí\",'Base-datos'!$B$741=\"\",'Base-datos'!$B$742=\"\"),IF(D121=\"La actividad sí contribuye sustancialmente a la sostenibilidad\",B121,0),IF(AND('Base-datos'!$B$740=\"Sí\",'Base-datos'!$B$741=\"Sí\",'Base-datos'!$B$742=\"\"),IF(AND(D121=\"La actividad sí contribuye sustancialmente a la sostenibilidad\",E121=\"La actividad sí contribuye sustancialmente a la sostenibilidad\"),B121,0),IF(AND('Base-datos'!$B$740=\"Sí\",'Base-datos'!$B$741=\"Sí\",'Base-datos'!$B$742=\"Sí\"),IF(AND(D121=\"La actividad sí contribuye sustancialmente a la sostenibilidad\",E121=\"La actividad sí contribuye sustancialmente a la sostenibilidad\",C121=\"La actividad sí contribuye sustancialmente a la sostenibilidad\"),B121,0),IF(AND('Base-datos'!$B$740=\"\",'Base-datos'!$B$741=\"Sí\",'Base-datos'!$B$742=\"\"),IF(E121=\"La actividad sí contribuye sustancialmente a la sostenibilidad\",B121,0),IF(AND('Base-datos'!$B$740=\"\",'Base-datos'!$B$741=\"\",'Base-datos'!$B$742=\"Sí\"),IF(C121=\"La actividad sí contribuye sustancialmente a la sostenibilidad\",B121,0),IF(AND('Base-datos'!$B$740=\"\",'Base-datos'!$B$741=\"Sí\",'Base-datos'!$B$742=\"Sí\"),IF(AND(E121=\"La actividad sí contribuye sustancialmente a la sostenibilidad\",C121=\"La actividad sí contribuye sustancialmente a la sostenibilidad\"),B121,0),IF(AND('Base-datos'!$B$740=\"Sí\",'Base-datos'!$B$741=\"\",'Base-datos'!$B$742=\"Sí\"),IF(AND(D121=\"La actividad sí contribuye sustancialmente a la sostenibilidad\",C121=\"La actividad sí contribuye sustancialmente a la sostenibilidad\"),B121,0),\"Por definir\"))))))))","v":"Por definir"}]
[{"$f":"Construcción!$C16","v":"Seleccione"},{"$f":"IF(Construcción!$E16=Otro!B$12,Construcción!$B16,\"\")","v":""},{"$f":"_xlfn.XLOOKUP(A122,'Base-datos'!$B$537:$B$546,'Base-datos'!$F$537:$F$546)","v":{"$error":"#N/A"}},{"$f":"_xlfn.XLOOKUP(A122,'Base-datos'!$B$537:$B$546,'Base-datos'!$C$537:$C$546)","v":{"$error":"#N/A"}},{"$f":"_xlfn.XLOOKUP(A122,'Base-datos'!$B$537:$B$546,'Base-datos'!$D$537:$D$546)","v":{"$error":"#N/A"}},null,null,{"$f":"IF(OR(F$119=\"La actividad no cumple con el total de los criterios de No Daño Significativo\",G$119=\"El sector no cumple con las salvaguardas mínimas\"),\"\",IF(AND('Base-datos'!$B$740=\"Sí\",'Base-datos'!$B$741=\"\",'Base-datos'!$B$742=\"\"),IF(D122=\"La actividad sí contribuye sustancialmente a la sostenibilidad\",B122,0),IF(AND('Base-datos'!$B$740=\"Sí\",'Base-datos'!$B$741=\"Sí\",'Base-datos'!$B$742=\"\"),IF(AND(D122=\"La actividad sí contribuye sustancialmente a la sostenibilidad\",E122=\"La actividad sí contribuye sustancialmente a la sostenibilidad\"),B122,0),IF(AND('Base-datos'!$B$740=\"Sí\",'Base-datos'!$B$741=\"Sí\",'Base-datos'!$B$742=\"Sí\"),IF(AND(D122=\"La actividad sí contribuye sustancialmente a la sostenibilidad\",E122=\"La actividad sí contribuye sustancialmente a la sostenibilidad\",C122=\"La actividad sí contribuye sustancialmente a la sostenibilidad\"),B122,0),IF(AND('Base-datos'!$B$740=\"\",'Base-datos'!$B$741=\"Sí\",'Base-datos'!$B$742=\"\"),IF(E122=\"La actividad sí contribuye sustancialmente a la sostenibilidad\",B122,0),IF(AND('Base-datos'!$B$740=\"\",'Base-datos'!$B$741=\"\",'Base-datos'!$B$742=\"Sí\"),IF(C122=\"La actividad sí contribuye sustancialmente a la sostenibilidad\",B122,0),IF(AND('Base-datos'!$B$740=\"\",'Base-datos'!$B$741=\"Sí\",'Base-datos'!$B$742=\"Sí\"),IF(AND(E122=\"La actividad sí contribuye sustancialmente a la sostenibilidad\",C122=\"La actividad sí contribuye sustancialmente a la sostenibilidad\"),B122,0),IF(AND('Base-datos'!$B$740=\"Sí\",'Base-datos'!$B$741=\"\",'Base-datos'!$B$742=\"Sí\"),IF(AND(D122=\"La actividad sí contribuye sustancialmente a la sostenibilidad\",C122=\"La actividad sí contribuye sustancialmente a la sostenibilidad\"),B122,0),\"Por definir\"))))))))","v":"Por definir"}]
[{"$f":"Construcción!$C18","v":"Seleccione"},{"$f":"IF(Construcción!$E18=Otro!B$12,Construcción!$B18,\"\")","v":""},{"$f":"_xlfn.XLOOKUP(A123,'Base-datos'!$B$537:$B$546,'Base-datos'!$F$537:$F$546)","v":{"$error":"#N/A"}},{"$f":"_xlfn.XLOOKUP(A123,'Base-datos'!$B$537:$B$546,'Base-datos'!$C$537:$C$546)","v":{"$error":"#N/A"}},{"$f":"_xlfn.XLOOKUP(A123,'Base-datos'!$B$537:$B$546,'Base-datos'!$D$537:$D$546)","v":{"$error":"#N/A"}},null,null,{"$f":"IF(OR(F$119=\"La actividad no cumple con el total de los criterios de No Daño Significativo\",G$119=\"El sector no cumple con las salvaguardas mínimas\"),\"\",IF(AND('Base-datos'!$B$740=\"Sí\",'Base-datos'!$B$741=\"\",'Base-datos'!$B$742=\"\"),IF(D123=\"La actividad sí contribuye sustancialmente a la sostenibilidad\",B123,0),IF(AND('Base-datos'!$B$740=\"Sí\",'Base-datos'!$B$741=\"Sí\",'Base-datos'!$B$742=\"\"),IF(AND(D123=\"La actividad sí contribuye sustancialmente a la sostenibilidad\",E123=\"La actividad sí contribuye sustancialmente a la sostenibilidad\"),B123,0),IF(AND('Base-datos'!$B$740=\"Sí\",'Base-datos'!$B$741=\"Sí\",'Base-datos'!$B$742=\"Sí\"),IF(AND(D123=\"La actividad sí contribuye sustancialmente a la sostenibilidad\",E123=\"La actividad sí contribuye sustancialmente a la sostenibilidad\",C123=\"La actividad sí contribuye sustancialmente a la sostenibilidad\"),B123,0),IF(AND('Base-datos'!$B$740=\"\",'Base-datos'!$B$741=\"Sí\",'Base-datos'!$B$742=\"\"),IF(E123=\"La actividad sí contribuye sustancialmente a la sostenibilidad\",B123,0),IF(AND('Base-datos'!$B$740=\"\",'Base-datos'!$B$741=\"\",'Base-datos'!$B$742=\"Sí\"),IF(C123=\"La actividad sí contribuye sustancialmente a la sostenibilidad\",B123,0),IF(AND('Base-datos'!$B$740=\"\",'Base-datos'!$B$741=\"Sí\",'Base-datos'!$B$742=\"Sí\"),IF(AND(E123=\"La actividad sí contribuye sustancialmente a la sostenibilidad\",C123=\"La actividad sí contribuye sustancialmente a la sostenibilidad\"),B123,0),IF(AND('Base-datos'!$B$740=\"Sí\",'Base-datos'!$B$741=\"\",'Base-datos'!$B$742=\"Sí\"),IF(AND(D123=\"La actividad sí contribuye sustancialmente a la sostenibilidad\",C123=\"La actividad sí contribuye sustancialmente a la sostenibilidad\"),B123,0),\"Por definir\"))))))))","v":"Por definir"}]
[{"$f":"Construcción!$C20","v":"Seleccione"},{"$f":"IF(Construcción!$E20=Otro!B$12,Construcción!$B20,\"\")","v":""},{"$f":"_xlfn.XLOOKUP(A124,'Base-datos'!$B$537:$B$546,'Base-datos'!$F$537:$F$546)","v":{"$error":"#N/A"}},{"$f":"_xlfn.XLOOKUP(A124,'Base-datos'!$B$537:$B$546,'Base-datos'!$C$537:$C$546)","v":{"$error":"#N/A"}},{"$f":"_xlfn.XLOOKUP(A124,'Base-datos'!$B$537:$B$546,'Base-datos'!$D$537:$D$546)","v":{"$error":"#N/A"}},null,null,{"$f":"IF(OR(F$119=\"La actividad no cumple con el total de los criterios de No Daño Significativo\",G$119=\"El sector no cumple con las salvaguardas mínimas\"),\"\",IF(AND('Base-datos'!$B$740=\"Sí\",'Base-datos'!$B$741=\"\",'Base-datos'!$B$742=\"\"),IF(D124=\"La actividad sí contribuye sustancialmente a la sostenibilidad\",B124,0),IF(AND('Base-datos'!$B$740=\"Sí\",'Base-datos'!$B$741=\"Sí\",'Base-datos'!$B$742=\"\"),IF(AND(D124=\"La actividad sí contribuye sustancialmente a la sostenibilidad\",E124=\"La actividad sí contribuye sustancialmente a la sostenibilidad\"),B124,0),IF(AND('Base-datos'!$B$740=\"Sí\",'Base-datos'!$B$741=\"Sí\",'Base-datos'!$B$742=\"Sí\"),IF(AND(D124=\"La actividad sí contribuye sustancialmente a la sostenibilidad\",E124=\"La actividad sí contribuye sustancialmente a la sostenibilidad\",C124=\"La actividad sí contribuye sustancialmente a la sostenibilidad\"),B124,0),IF(AND('Base-datos'!$B$740=\"\",'Base-datos'!$B$741=\"Sí\",'Base-datos'!$B$742=\"\"),IF(E124=\"La actividad sí contribuye sustancialmente a la sostenibilidad\",B124,0),IF(AND('Base-datos'!$B$740=\"\",'Base-datos'!$B$741=\"\",'Base-datos'!$B$742=\"Sí\"),IF(C124=\"La actividad sí contribuye sustancialmente a la sostenibilidad\",B124,0),IF(AND('Base-datos'!$B$740=\"\",'Base-datos'!$B$741=\"Sí\",'Base-datos'!$B$742=\"Sí\"),IF(AND(E124=\"La actividad sí contribuye sustancialmente a la sostenibilidad\",C124=\"La actividad sí contribuye sustancialmente a la sostenibilidad\"),B124,0),IF(AND('Base-datos'!$B$740=\"Sí\",'Base-datos'!$B$741=\"\",'Base-datos'!$B$742=\"Sí\"),IF(AND(D124=\"La actividad sí contribuye sustancialmente a la sostenibilidad\",C124=\"La actividad sí contribuye sustancialmente a la sostenibilidad\"),B124,0),\"Por definir\"))))))))","v":"Por definir"}]
[{"$f":"Construcción!$C22","v":"Seleccione"},{"$f":"IF(Construcción!$E22=Otro!B$12,Construcción!$B22,\"\")","v":""},{"$f":"_xlfn.XLOOKUP(A125,'Base-datos'!$B$537:$B$546,'Base-datos'!$F$537:$F$546)","v":{"$error":"#N/A"}},{"$f":"_xlfn.XLOOKUP(A125,'Base-datos'!$B$537:$B$546,'Base-datos'!$C$537:$C$546)","v":{"$error":"#N/A"}},{"$f":"_xlfn.XLOOKUP(A125,'Base-datos'!$B$537:$B$546,'Base-datos'!$D$537:$D$546)","v":{"$error":"#N/A"}},null,null,{"$f":"IF(OR(F$119=\"La actividad no cumple con el total de los criterios de No Daño Significativo\",G$119=\"El sector no cumple con las salvaguardas mínimas\"),\"\",IF(AND('Base-datos'!$B$740=\"Sí\",'Base-datos'!$B$741=\"\",'Base-datos'!$B$742=\"\"),IF(D125=\"La actividad sí contribuye sustancialmente a la sostenibilidad\",B125,0),IF(AND('Base-datos'!$B$740=\"Sí\",'Base-datos'!$B$741=\"Sí\",'Base-datos'!$B$742=\"\"),IF(AND(D125=\"La actividad sí contribuye sustancialmente a la sostenibilidad\",E125=\"La actividad sí contribuye sustancialmente a la sostenibilidad\"),B125,0),IF(AND('Base-datos'!$B$740=\"Sí\",'Base-datos'!$B$741=\"Sí\",'Base-datos'!$B$742=\"Sí\"),IF(AND(D125=\"La actividad sí contribuye sustancialmente a la sostenibilidad\",E125=\"La actividad sí contribuye sustancialmente a la sostenibilidad\",C125=\"La actividad sí contribuye sustancialmente a la sostenibilidad\"),B125,0),IF(AND('Base-datos'!$B$740=\"\",'Base-datos'!$B$741=\"Sí\",'Base-datos'!$B$742=\"\"),IF(E125=\"La actividad sí contribuye sustancialmente a la sostenibilidad\",B125,0),IF(AND('Base-datos'!$B$740=\"\",'Base-datos'!$B$741=\"\",'Base-datos'!$B$742=\"Sí\"),IF(C125=\"La actividad sí contribuye sustancialmente a la sostenibilidad\",B125,0),IF(AND('Base-datos'!$B$740=\"\",'Base-datos'!$B$741=\"Sí\",'Base-datos'!$B$742=\"Sí\"),IF(AND(E125=\"La actividad sí contribuye sustancialmente a la sostenibilidad\",C125=\"La actividad sí contribuye sustancialmente a la sostenibilidad\"),B125,0),IF(AND('Base-datos'!$B$740=\"Sí\",'Base-datos'!$B$741=\"\",'Base-datos'!$B$742=\"Sí\"),IF(AND(D125=\"La actividad sí contribuye sustancialmente a la sostenibilidad\",C125=\"La actividad sí contribuye sustancialmente a la sostenibilidad\"),B125,0),\"Por definir\"))))))))","v":"Por definir"}]
[{"$f":"Construcción!$C24","v":"Seleccione"},{"$f":"IF(Construcción!$E24=Otro!B$12,Construcción!$B24,\"\")","v":""},{"$f":"_xlfn.XLOOKUP(A126,'Base-datos'!$B$537:$B$546,'Base-datos'!$F$537:$F$546)","v":{"$error":"#N/A"}},{"$f":"_xlfn.XLOOKUP(A126,'Base-datos'!$B$537:$B$546,'Base-datos'!$C$537:$C$546)","v":{"$error":"#N/A"}},{"$f":"_xlfn.XLOOKUP(A126,'Base-datos'!$B$537:$B$546,'Base-datos'!$D$537:$D$546)","v":{"$error":"#N/A"}},null,null,{"$f":"IF(OR(F$119=\"La actividad no cumple con el total de los criterios de No Daño Significativo\",G$119=\"El sector no cumple con las salvaguardas mínimas\"),\"\",IF(AND('Base-datos'!$B$740=\"Sí\",'Base-datos'!$B$741=\"\",'Base-datos'!$B$742=\"\"),IF(D126=\"La actividad sí contribuye sustancialmente a la sostenibilidad\",B126,0),IF(AND('Base-datos'!$B$740=\"Sí\",'Base-datos'!$B$741=\"Sí\",'Base-datos'!$B$742=\"\"),IF(AND(D126=\"La actividad sí contribuye sustancialmente a la sostenibilidad\",E126=\"La actividad sí contribuye sustancialmente a la sostenibilidad\"),B126,0),IF(AND('Base-datos'!$B$740=\"Sí\",'Base-datos'!$B$741=\"Sí\",'Base-datos'!$B$742=\"Sí\"),IF(AND(D126=\"La actividad sí contribuye sustancialmente a la sostenibilidad\",E126=\"La actividad sí contribuye sustancialmente a la sostenibilidad\",C126=\"La actividad sí contribuye sustancialmente a la sostenibilidad\"),B126,0),IF(AND('Base-datos'!$B$740=\"\",'Base-datos'!$B$741=\"Sí\",'Base-datos'!$B$742=\"\"),IF(E126=\"La actividad sí contribuye sustancialmente a la sostenibilidad\",B126,0),IF(AND('Base-datos'!$B$740=\"\",'Base-datos'!$B$741=\"\",'Base-datos'!$B$742=\"Sí\"),IF(C126=\"La actividad sí contribuye sustancialmente a la sostenibilidad\",B126,0),IF(AND('Base-datos'!$B$740=\"\",'Base-datos'!$B$741=\"Sí\",'Base-datos'!$B$742=\"Sí\"),IF(AND(E126=\"La actividad sí contribuye sustancialmente a la sostenibilidad\",C126=\"La actividad sí contribuye sustancialmente a la sostenibilidad\"),B126,0),IF(AND('Base-datos'!$B$740=\"Sí\",'Base-datos'!$B$741=\"\",'Base-datos'!$B$742=\"Sí\"),IF(AND(D126=\"La actividad sí contribuye sustancialmente a la sostenibilidad\",C126=\"La actividad sí contribuye sustancialmente a la sostenibilidad\"),B126,0),\"Por definir\"))))))))","v":"Por definir"}]
[{"$f":"Construcción!$C26","v":"Seleccione"},{"$f":"IF(Construcción!$E26=Otro!B$12,Construcción!$B26,\"\")","v":""},{"$f":"_xlfn.XLOOKUP(A127,'Base-datos'!$B$537:$B$546,'Base-datos'!$F$537:$F$546)","v":{"$error":"#N/A"}},{"$f":"_xlfn.XLOOKUP(A127,'Base-datos'!$B$537:$B$546,'Base-datos'!$C$537:$C$546)","v":{"$error":"#N/A"}},{"$f":"_xlfn.XLOOKUP(A127,'Base-datos'!$B$537:$B$546,'Base-datos'!$D$537:$D$546)","v":{"$error":"#N/A"}},null,null,{"$f":"IF(OR(F$119=\"La actividad no cumple con el total de los criterios de No Daño Significativo\",G$119=\"El sector no cumple con las salvaguardas mínimas\"),\"\",IF(AND('Base-datos'!$B$740=\"Sí\",'Base-datos'!$B$741=\"\",'Base-datos'!$B$742=\"\"),IF(D127=\"La actividad sí contribuye sustancialmente a la sostenibilidad\",B127,0),IF(AND('Base-datos'!$B$740=\"Sí\",'Base-datos'!$B$741=\"Sí\",'Base-datos'!$B$742=\"\"),IF(AND(D127=\"La actividad sí contribuye sustancialmente a la sostenibilidad\",E127=\"La actividad sí contribuye sustancialmente a la sostenibilidad\"),B127,0),IF(AND('Base-datos'!$B$740=\"Sí\",'Base-datos'!$B$741=\"Sí\",'Base-datos'!$B$742=\"Sí\"),IF(AND(D127=\"La actividad sí contribuye sustancialmente a la sostenibilidad\",E127=\"La actividad sí contribuye sustancialmente a la sostenibilidad\",C127=\"La actividad sí contribuye sustancialmente a la sostenibilidad\"),B127,0),IF(AND('Base-datos'!$B$740=\"\",'Base-datos'!$B$741=\"Sí\",'Base-datos'!$B$742=\"\"),IF(E127=\"La actividad sí contribuye sustancialmente a la sostenibilidad\",B127,0),IF(AND('Base-datos'!$B$740=\"\",'Base-datos'!$B$741=\"\",'Base-datos'!$B$742=\"Sí\"),IF(C127=\"La actividad sí contribuye sustancialmente a la sostenibilidad\",B127,0),IF(AND('Base-datos'!$B$740=\"\",'Base-datos'!$B$741=\"Sí\",'Base-datos'!$B$742=\"Sí\"),IF(AND(E127=\"La actividad sí contribuye sustancialmente a la sostenibilidad\",C127=\"La actividad sí contribuye sustancialmente a la sostenibilidad\"),B127,0),IF(AND('Base-datos'!$B$740=\"Sí\",'Base-datos'!$B$741=\"\",'Base-datos'!$B$742=\"Sí\"),IF(AND(D127=\"La actividad sí contribuye sustancialmente a la sostenibilidad\",C127=\"La actividad sí contribuye sustancialmente a la sostenibilidad\"),B127,0),\"Por definir\"))))))))","v":"Por definir"}]
[{"$f":"Construcción!$C28","v":"Seleccione"},{"$f":"IF(Construcción!$E28=Otro!B$12,Construcción!$B28,\"\")","v":""},{"$f":"_xlfn.XLOOKUP(A128,'Base-datos'!$B$537:$B$546,'Base-datos'!$F$537:$F$546)","v":{"$error":"#N/A"}},{"$f":"_xlfn.XLOOKUP(A128,'Base-datos'!$B$537:$B$546,'Base-datos'!$C$537:$C$546)","v":{"$error":"#N/A"}},{"$f":"_xlfn.XLOOKUP(A128,'Base-datos'!$B$537:$B$546,'Base-datos'!$D$537:$D$546)","v":{"$error":"#N/A"}},null,null,{"$f":"IF(OR(F$119=\"La actividad no cumple con el total de los criterios de No Daño Significativo\",G$119=\"El sector no cumple con las salvaguardas mínimas\"),\"\",IF(AND('Base-datos'!$B$740=\"Sí\",'Base-datos'!$B$741=\"\",'Base-datos'!$B$742=\"\"),IF(D128=\"La actividad sí contribuye sustancialmente a la sostenibilidad\",B128,0),IF(AND('Base-datos'!$B$740=\"Sí\",'Base-datos'!$B$741=\"Sí\",'Base-datos'!$B$742=\"\"),IF(AND(D128=\"La actividad sí contribuye sustancialmente a la sostenibilidad\",E128=\"La actividad sí contribuye sustancialmente a la sostenibilidad\"),B128,0),IF(AND('Base-datos'!$B$740=\"Sí\",'Base-datos'!$B$741=\"Sí\",'Base-datos'!$B$742=\"Sí\"),IF(AND(D128=\"La actividad sí contribuye sustancialmente a la sostenibilidad\",E128=\"La actividad sí contribuye sustancialmente a la sostenibilidad\",C128=\"La actividad sí contribuye sustancialmente a la sostenibilidad\"),B128,0),IF(AND('Base-datos'!$B$740=\"\",'Base-datos'!$B$741=\"Sí\",'Base-datos'!$B$742=\"\"),IF(E128=\"La actividad sí contribuye sustancialmente a la sostenibilidad\",B128,0),IF(AND('Base-datos'!$B$740=\"\",'Base-datos'!$B$741=\"\",'Base-datos'!$B$742=\"Sí\"),IF(C128=\"La actividad sí contribuye sustancialmente a la sostenibilidad\",B128,0),IF(AND('Base-datos'!$B$740=\"\",'Base-datos'!$B$741=\"Sí\",'Base-datos'!$B$742=\"Sí\"),IF(AND(E128=\"La actividad sí contribuye sustancialmente a la sostenibilidad\",C128=\"La actividad sí contribuye sustancialmente a la sostenibilidad\"),B128,0),IF(AND('Base-datos'!$B$740=\"Sí\",'Base-datos'!$B$741=\"\",'Base-datos'!$B$742=\"Sí\"),IF(AND(D128=\"La actividad sí contribuye sustancialmente a la sostenibilidad\",C128=\"La actividad sí contribuye sustancialmente a la sostenibilidad\"),B128,0),\"Por definir\"))))))))","v":"Por definir"}]
[{"$f":"Construcción!$C30","v":"Seleccione"},{"$f":"IF(Construcción!$E30=Otro!B$12,Construcción!$B30,\"\")","v":""},{"$f":"_xlfn.XLOOKUP(A129,'Base-datos'!$B$537:$B$546,'Base-datos'!$F$537:$F$546)","v":{"$error":"#N/A"}},{"$f":"_xlfn.XLOOKUP(A129,'Base-datos'!$B$537:$B$546,'Base-datos'!$C$537:$C$546)","v":{"$error":"#N/A"}},{"$f":"_xlfn.XLOOKUP(A129,'Base-datos'!$B$537:$B$546,'Base-datos'!$D$537:$D$546)","v":{"$error":"#N/A"}},null,null,{"$f":"IF(OR(F$119=\"La actividad no cumple con el total de los criterios de No Daño Significativo\",G$119=\"El sector no cumple con las salvaguardas mínimas\"),\"\",IF(AND('Base-datos'!$B$740=\"Sí\",'Base-datos'!$B$741=\"\",'Base-datos'!$B$742=\"\"),IF(D129=\"La actividad sí contribuye sustancialmente a la sostenibilidad\",B129,0),IF(AND('Base-datos'!$B$740=\"Sí\",'Base-datos'!$B$741=\"Sí\",'Base-datos'!$B$742=\"\"),IF(AND(D129=\"La actividad sí contribuye sustancialmente a la sostenibilidad\",E129=\"La actividad sí contribuye sustancialmente a la sostenibilidad\"),B129,0),IF(AND('Base-datos'!$B$740=\"Sí\",'Base-datos'!$B$741=\"Sí\",'Base-datos'!$B$742=\"Sí\"),IF(AND(D129=\"La actividad sí contribuye sustancialmente a la sostenibilidad\",E129=\"La actividad sí contribuye sustancialmente a la sostenibilidad\",C129=\"La actividad sí contribuye sustancialmente a la sostenibilidad\"),B129,0),IF(AND('Base-datos'!$B$740=\"\",'Base-datos'!$B$741=\"Sí\",'Base-datos'!$B$742=\"\"),IF(E129=\"La actividad sí contribuye sustancialmente a la sostenibilidad\",B129,0),IF(AND('Base-datos'!$B$740=\"\",'Base-datos'!$B$741=\"\",'Base-datos'!$B$742=\"Sí\"),IF(C129=\"La actividad sí contribuye sustancialmente a la sostenibilidad\",B129,0),IF(AND('Base-datos'!$B$740=\"\",'Base-datos'!$B$741=\"Sí\",'Base-datos'!$B$742=\"Sí\"),IF(AND(E129=\"La actividad sí contribuye sustancialmente a la sostenibilidad\",C129=\"La actividad sí contribuye sustancialmente a la sostenibilidad\"),B129,0),IF(AND('Base-datos'!$B$740=\"Sí\",'Base-datos'!$B$741=\"\",'Base-datos'!$B$742=\"Sí\"),IF(AND(D129=\"La actividad sí contribuye sustancialmente a la sostenibilidad\",C129=\"La actividad sí contribuye sustancialmente a la sostenibilidad\"),B129,0),\"Por definir\"))))))))","v":"Por definir"}]
[{"$f":"Construcción!$C32","v":"Seleccione"},{"$f":"IF(Construcción!$E32=Otro!B$12,Construcción!$B32,\"\")","v":""},{"$f":"_xlfn.XLOOKUP(A130,'Base-datos'!$B$537:$B$546,'Base-datos'!$F$537:$F$546)","v":{"$error":"#N/A"}},{"$f":"_xlfn.XLOOKUP(A130,'Base-datos'!$B$537:$B$546,'Base-datos'!$C$537:$C$546)","v":{"$error":"#N/A"}},{"$f":"_xlfn.XLOOKUP(A130,'Base-datos'!$B$537:$B$546,'Base-datos'!$D$537:$D$546)","v":{"$error":"#N/A"}},null,null,{"$f":"IF(OR(F$119=\"La actividad no cumple con el total de los criterios de No Daño Significativo\",G$119=\"El sector no cumple con las salvaguardas mínimas\"),\"\",IF(AND('Base-datos'!$B$740=\"Sí\",'Base-datos'!$B$741=\"\",'Base-datos'!$B$742=\"\"),IF(D130=\"La actividad sí contribuye sustancialmente a la sostenibilidad\",B130,0),IF(AND('Base-datos'!$B$740=\"Sí\",'Base-datos'!$B$741=\"Sí\",'Base-datos'!$B$742=\"\"),IF(AND(D130=\"La actividad sí contribuye sustancialmente a la sostenibilidad\",E130=\"La actividad sí contribuye sustancialmente a la sostenibilidad\"),B130,0),IF(AND('Base-datos'!$B$740=\"Sí\",'Base-datos'!$B$741=\"Sí\",'Base-datos'!$B$742=\"Sí\"),IF(AND(D130=\"La actividad sí contribuye sustancialmente a la sostenibilidad\",E130=\"La actividad sí contribuye sustancialmente a la sostenibilidad\",C130=\"La actividad sí contribuye sustancialmente a la sostenibilidad\"),B130,0),IF(AND('Base-datos'!$B$740=\"\",'Base-datos'!$B$741=\"Sí\",'Base-datos'!$B$742=\"\"),IF(E130=\"La actividad sí contribuye sustancialmente a la sostenibilidad\",B130,0),IF(AND('Base-datos'!$B$740=\"\",'Base-datos'!$B$741=\"\",'Base-datos'!$B$742=\"Sí\"),IF(C130=\"La actividad sí contribuye sustancialmente a la sostenibilidad\",B130,0),IF(AND('Base-datos'!$B$740=\"\",'Base-datos'!$B$741=\"Sí\",'Base-datos'!$B$742=\"Sí\"),IF(AND(E130=\"La actividad sí contribuye sustancialmente a la sostenibilidad\",C130=\"La actividad sí contribuye sustancialmente a la sostenibilidad\"),B130,0),IF(AND('Base-datos'!$B$740=\"Sí\",'Base-datos'!$B$741=\"\",'Base-datos'!$B$742=\"Sí\"),IF(AND(D130=\"La actividad sí contribuye sustancialmente a la sostenibilidad\",C130=\"La actividad sí contribuye sustancialmente a la sostenibilidad\"),B130,0),\"Por definir\"))))))))","v":"Por definir"}]
[{"$f":"Construcción!$C34","v":"Seleccione"},{"$f":"IF(Construcción!$E34=Otro!B$12,Construcción!$B34,\"\")","v":""},{"$f":"_xlfn.XLOOKUP(A131,'Base-datos'!$B$537:$B$546,'Base-datos'!$F$537:$F$546)","v":{"$error":"#N/A"}},{"$f":"_xlfn.XLOOKUP(A131,'Base-datos'!$B$537:$B$546,'Base-datos'!$C$537:$C$546)","v":{"$error":"#N/A"}},{"$f":"_xlfn.XLOOKUP(A131,'Base-datos'!$B$537:$B$546,'Base-datos'!$D$537:$D$546)","v":{"$error":"#N/A"}},null,null,{"$f":"IF(OR(F$119=\"La actividad no cumple con el total de los criterios de No Daño Significativo\",G$119=\"El sector no cumple con las salvaguardas mínimas\"),\"\",IF(AND('Base-datos'!$B$740=\"Sí\",'Base-datos'!$B$741=\"\",'Base-datos'!$B$742=\"\"),IF(D131=\"La actividad sí contribuye sustancialmente a la sostenibilidad\",B131,0),IF(AND('Base-datos'!$B$740=\"Sí\",'Base-datos'!$B$741=\"Sí\",'Base-datos'!$B$742=\"\"),IF(AND(D131=\"La actividad sí contribuye sustancialmente a la sostenibilidad\",E131=\"La actividad sí contribuye sustancialmente a la sostenibilidad\"),B131,0),IF(AND('Base-datos'!$B$740=\"Sí\",'Base-datos'!$B$741=\"Sí\",'Base-datos'!$B$742=\"Sí\"),IF(AND(D131=\"La actividad sí contribuye sustancialmente a la sostenibilidad\",E131=\"La actividad sí contribuye sustancialmente a la sostenibilidad\",C131=\"La actividad sí contribuye sustancialmente a la sostenibilidad\"),B131,0),IF(AND('Base-datos'!$B$740=\"\",'Base-datos'!$B$741=\"Sí\",'Base-datos'!$B$742=\"\"),IF(E131=\"La actividad sí contribuye sustancialmente a la sostenibilidad\",B131,0),IF(AND('Base-datos'!$B$740=\"\",'Base-datos'!$B$741=\"\",'Base-datos'!$B$742=\"Sí\"),IF(C131=\"La actividad sí contribuye sustancialmente a la sostenibilidad\",B131,0),IF(AND('Base-datos'!$B$740=\"\",'Base-datos'!$B$741=\"Sí\",'Base-datos'!$B$742=\"Sí\"),IF(AND(E131=\"La actividad sí contribuye sustancialmente a la sostenibilidad\",C131=\"La actividad sí contribuye sustancialmente a la sostenibilidad\"),B131,0),IF(AND('Base-datos'!$B$740=\"Sí\",'Base-datos'!$B$741=\"\",'Base-datos'!$B$742=\"Sí\"),IF(AND(D131=\"La actividad sí contribuye sustancialmente a la sostenibilidad\",C131=\"La actividad sí contribuye sustancialmente a la sostenibilidad\"),B131,0),\"Por definir\"))))))))","v":"Por definir"}]
[{"$f":"Construcción!$C36","v":"Seleccione"},{"$f":"IF(Construcción!$E36=Otro!B$12,Construcción!$B36,\"\")","v":""},{"$f":"_xlfn.XLOOKUP(A132,'Base-datos'!$B$537:$B$546,'Base-datos'!$F$537:$F$546)","v":{"$error":"#N/A"}},{"$f":"_xlfn.XLOOKUP(A132,'Base-datos'!$B$537:$B$546,'Base-datos'!$C$537:$C$546)","v":{"$error":"#N/A"}},{"$f":"_xlfn.XLOOKUP(A132,'Base-datos'!$B$537:$B$546,'Base-datos'!$D$537:$D$546)","v":{"$error":"#N/A"}},null,null,{"$f":"IF(OR(F$119=\"La actividad no cumple con el total de los criterios de No Daño Significativo\",G$119=\"El sector no cumple con las salvaguardas mínimas\"),\"\",IF(AND('Base-datos'!$B$740=\"Sí\",'Base-datos'!$B$741=\"\",'Base-datos'!$B$742=\"\"),IF(D132=\"La actividad sí contribuye sustancialmente a la sostenibilidad\",B132,0),IF(AND('Base-datos'!$B$740=\"Sí\",'Base-datos'!$B$741=\"Sí\",'Base-datos'!$B$742=\"\"),IF(AND(D132=\"La actividad sí contribuye sustancialmente a la sostenibilidad\",E132=\"La actividad sí contribuye sustancialmente a la sostenibilidad\"),B132,0),IF(AND('Base-datos'!$B$740=\"Sí\",'Base-datos'!$B$741=\"Sí\",'Base-datos'!$B$742=\"Sí\"),IF(AND(D132=\"La actividad sí contribuye sustancialmente a la sostenibilidad\",E132=\"La actividad sí contribuye sustancialmente a la sostenibilidad\",C132=\"La actividad sí contribuye sustancialmente a la sostenibilidad\"),B132,0),IF(AND('Base-datos'!$B$740=\"\",'Base-datos'!$B$741=\"Sí\",'Base-datos'!$B$742=\"\"),IF(E132=\"La actividad sí contribuye sustancialmente a la sostenibilidad\",B132,0),IF(AND('Base-datos'!$B$740=\"\",'Base-datos'!$B$741=\"\",'Base-datos'!$B$742=\"Sí\"),IF(C132=\"La actividad sí contribuye sustancialmente a la sostenibilidad\",B132,0),IF(AND('Base-datos'!$B$740=\"\",'Base-datos'!$B$741=\"Sí\",'Base-datos'!$B$742=\"Sí\"),IF(AND(E132=\"La actividad sí contribuye sustancialmente a la sostenibilidad\",C132=\"La actividad sí contribuye sustancialmente a la sostenibilidad\"),B132,0),IF(AND('Base-datos'!$B$740=\"Sí\",'Base-datos'!$B$741=\"\",'Base-datos'!$B$742=\"Sí\"),IF(AND(D132=\"La actividad sí contribuye sustancialmente a la sostenibilidad\",C132=\"La actividad sí contribuye sustancialmente a la sostenibilidad\"),B132,0),\"Por definir\"))))))))","v":"Por definir"}]
[{"$f":"Construcción!$C38","v":"Seleccione"},{"$f":"IF(Construcción!$E38=Otro!B$12,Construcción!$B38,\"\")","v":""},{"$f":"_xlfn.XLOOKUP(A133,'Base-datos'!$B$537:$B$546,'Base-datos'!$F$537:$F$546)","v":{"$error":"#N/A"}},{"$f":"_xlfn.XLOOKUP(A133,'Base-datos'!$B$537:$B$546,'Base-datos'!$C$537:$C$546)","v":{"$error":"#N/A"}},{"$f":"_xlfn.XLOOKUP(A133,'Base-datos'!$B$537:$B$546,'Base-datos'!$D$537:$D$546)","v":{"$error":"#N/A"}},null,null,{"$f":"IF(OR(F$119=\"La actividad no cumple con el total de los criterios de No Daño Significativo\",G$119=\"El sector no cumple con las salvaguardas mínimas\"),\"\",IF(AND('Base-datos'!$B$740=\"Sí\",'Base-datos'!$B$741=\"\",'Base-datos'!$B$742=\"\"),IF(D133=\"La actividad sí contribuye sustancialmente a la sostenibilidad\",B133,0),IF(AND('Base-datos'!$B$740=\"Sí\",'Base-datos'!$B$741=\"Sí\",'Base-datos'!$B$742=\"\"),IF(AND(D133=\"La actividad sí contribuye sustancialmente a la sostenibilidad\",E133=\"La actividad sí contribuye sustancialmente a la sostenibilidad\"),B133,0),IF(AND('Base-datos'!$B$740=\"Sí\",'Base-datos'!$B$741=\"Sí\",'Base-datos'!$B$742=\"Sí\"),IF(AND(D133=\"La actividad sí contribuye sustancialmente a la sostenibilidad\",E133=\"La actividad sí contribuye sustancialmente a la sostenibilidad\",C133=\"La actividad sí contribuye sustancialmente a la sostenibilidad\"),B133,0),IF(AND('Base-datos'!$B$740=\"\",'Base-datos'!$B$741=\"Sí\",'Base-datos'!$B$742=\"\"),IF(E133=\"La actividad sí contribuye sustancialmente a la sostenibilidad\",B133,0),IF(AND('Base-datos'!$B$740=\"\",'Base-datos'!$B$741=\"\",'Base-datos'!$B$742=\"Sí\"),IF(C133=\"La actividad sí contribuye sustancialmente a la sostenibilidad\",B133,0),IF(AND('Base-datos'!$B$740=\"\",'Base-datos'!$B$741=\"Sí\",'Base-datos'!$B$742=\"Sí\"),IF(AND(E133=\"La actividad sí contribuye sustancialmente a la sostenibilidad\",C133=\"La actividad sí contribuye sustancialmente a la sostenibilidad\"),B133,0),IF(AND('Base-datos'!$B$740=\"Sí\",'Base-datos'!$B$741=\"\",'Base-datos'!$B$742=\"Sí\"),IF(AND(D133=\"La actividad sí contribuye sustancialmente a la sostenibilidad\",C133=\"La actividad sí contribuye sustancialmente a la sostenibilidad\"),B133,0),\"Por definir\"))))))))","v":"Por definir"}]
[{"$f":"Construcción!$C40","v":"Seleccione"},{"$f":"IF(Construcción!$E40=Otro!B$12,Construcción!$B40,\"\")","v":""},{"$f":"_xlfn.XLOOKUP(A134,'Base-datos'!$B$537:$B$546,'Base-datos'!$F$537:$F$546)","v":{"$error":"#N/A"}},{"$f":"_xlfn.XLOOKUP(A134,'Base-datos'!$B$537:$B$546,'Base-datos'!$C$537:$C$546)","v":{"$error":"#N/A"}},{"$f":"_xlfn.XLOOKUP(A134,'Base-datos'!$B$537:$B$546,'Base-datos'!$D$537:$D$546)","v":{"$error":"#N/A"}},null,null,{"$f":"IF(OR(F$119=\"La actividad no cumple con el total de los criterios de No Daño Significativo\",G$119=\"El sector no cumple con las salvaguardas mínimas\"),\"\",IF(AND('Base-datos'!$B$740=\"Sí\",'Base-datos'!$B$741=\"\",'Base-datos'!$B$742=\"\"),IF(D134=\"La actividad sí contribuye sustancialmente a la sostenibilidad\",B134,0),IF(AND('Base-datos'!$B$740=\"Sí\",'Base-datos'!$B$741=\"Sí\",'Base-datos'!$B$742=\"\"),IF(AND(D134=\"La actividad sí contribuye sustancialmente a la sostenibilidad\",E134=\"La actividad sí contribuye sustancialmente a la sostenibilidad\"),B134,0),IF(AND('Base-datos'!$B$740=\"Sí\",'Base-datos'!$B$741=\"Sí\",'Base-datos'!$B$742=\"Sí\"),IF(AND(D134=\"La actividad sí contribuye sustancialmente a la sostenibilidad\",E134=\"La actividad sí contribuye sustancialmente a la sostenibilidad\",C134=\"La actividad sí contribuye sustancialmente a la sostenibilidad\"),B134,0),IF(AND('Base-datos'!$B$740=\"\",'Base-datos'!$B$741=\"Sí\",'Base-datos'!$B$742=\"\"),IF(E134=\"La actividad sí contribuye sustancialmente a la sostenibilidad\",B134,0),IF(AND('Base-datos'!$B$740=\"\",'Base-datos'!$B$741=\"\",'Base-datos'!$B$742=\"Sí\"),IF(C134=\"La actividad sí contribuye sustancialmente a la sostenibilidad\",B134,0),IF(AND('Base-datos'!$B$740=\"\",'Base-datos'!$B$741=\"Sí\",'Base-datos'!$B$742=\"Sí\"),IF(AND(E134=\"La actividad sí contribuye sustancialmente a la sostenibilidad\",C134=\"La actividad sí contribuye sustancialmente a la sostenibilidad\"),B134,0),IF(AND('Base-datos'!$B$740=\"Sí\",'Base-datos'!$B$741=\"\",'Base-datos'!$B$742=\"Sí\"),IF(AND(D134=\"La actividad sí contribuye sustancialmente a la sostenibilidad\",C134=\"La actividad sí contribuye sustancialmente a la sostenibilidad\"),B134,0),\"Por definir\"))))))))","v":"Por definir"}]
[{"$f":"Construcción!$C42","v":"Seleccione"},{"$f":"IF(Construcción!$E42=Otro!B$12,Construcción!$B42,\"\")","v":""},{"$f":"_xlfn.XLOOKUP(A135,'Base-datos'!$B$537:$B$546,'Base-datos'!$F$537:$F$546)","v":{"$error":"#N/A"}},{"$f":"_xlfn.XLOOKUP(A135,'Base-datos'!$B$537:$B$546,'Base-datos'!$C$537:$C$546)","v":{"$error":"#N/A"}},{"$f":"_xlfn.XLOOKUP(A135,'Base-datos'!$B$537:$B$546,'Base-datos'!$D$537:$D$546)","v":{"$error":"#N/A"}},null,null,{"$f":"IF(OR(F$119=\"La actividad no cumple con el total de los criterios de No Daño Significativo\",G$119=\"El sector no cumple con las salvaguardas mínimas\"),\"\",IF(AND('Base-datos'!$B$740=\"Sí\",'Base-datos'!$B$741=\"\",'Base-datos'!$B$742=\"\"),IF(D135=\"La actividad sí contribuye sustancialmente a la sostenibilidad\",B135,0),IF(AND('Base-datos'!$B$740=\"Sí\",'Base-datos'!$B$741=\"Sí\",'Base-datos'!$B$742=\"\"),IF(AND(D135=\"La actividad sí contribuye sustancialmente a la sostenibilidad\",E135=\"La actividad sí contribuye sustancialmente a la sostenibilidad\"),B135,0),IF(AND('Base-datos'!$B$740=\"Sí\",'Base-datos'!$B$741=\"Sí\",'Base-datos'!$B$742=\"Sí\"),IF(AND(D135=\"La actividad sí contribuye sustancialmente a la sostenibilidad\",E135=\"La actividad sí contribuye sustancialmente a la sostenibilidad\",C135=\"La actividad sí contribuye sustancialmente a la sostenibilidad\"),B135,0),IF(AND('Base-datos'!$B$740=\"\",'Base-datos'!$B$741=\"Sí\",'Base-datos'!$B$742=\"\"),IF(E135=\"La actividad sí contribuye sustancialmente a la sostenibilidad\",B135,0),IF(AND('Base-datos'!$B$740=\"\",'Base-datos'!$B$741=\"\",'Base-datos'!$B$742=\"Sí\"),IF(C135=\"La actividad sí contribuye sustancialmente a la sostenibilidad\",B135,0),IF(AND('Base-datos'!$B$740=\"\",'Base-datos'!$B$741=\"Sí\",'Base-datos'!$B$742=\"Sí\"),IF(AND(E135=\"La actividad sí contribuye sustancialmente a la sostenibilidad\",C135=\"La actividad sí contribuye sustancialmente a la sostenibilidad\"),B135,0),IF(AND('Base-datos'!$B$740=\"Sí\",'Base-datos'!$B$741=\"\",'Base-datos'!$B$742=\"Sí\"),IF(AND(D135=\"La actividad sí contribuye sustancialmente a la sostenibilidad\",C135=\"La actividad sí contribuye sustancialmente a la sostenibilidad\"),B135,0),\"Por definir\"))))))))","v":"Por definir"}]
[{"$f":"Construcción!$C44","v":"Seleccione"},{"$f":"IF(Construcción!$E44=Otro!B$12,Construcción!$B44,\"\")","v":""},{"$f":"_xlfn.XLOOKUP(A136,'Base-datos'!$B$537:$B$546,'Base-datos'!$F$537:$F$546)","v":{"$error":"#N/A"}},{"$f":"_xlfn.XLOOKUP(A136,'Base-datos'!$B$537:$B$546,'Base-datos'!$C$537:$C$546)","v":{"$error":"#N/A"}},{"$f":"_xlfn.XLOOKUP(A136,'Base-datos'!$B$537:$B$546,'Base-datos'!$D$537:$D$546)","v":{"$error":"#N/A"}},null,null,{"$f":"IF(OR(F$119=\"La actividad no cumple con el total de los criterios de No Daño Significativo\",G$119=\"El sector no cumple con las salvaguardas mínimas\"),\"\",IF(AND('Base-datos'!$B$740=\"Sí\",'Base-datos'!$B$741=\"\",'Base-datos'!$B$742=\"\"),IF(D136=\"La actividad sí contribuye sustancialmente a la sostenibilidad\",B136,0),IF(AND('Base-datos'!$B$740=\"Sí\",'Base-datos'!$B$741=\"Sí\",'Base-datos'!$B$742=\"\"),IF(AND(D136=\"La actividad sí contribuye sustancialmente a la sostenibilidad\",E136=\"La actividad sí contribuye sustancialmente a la sostenibilidad\"),B136,0),IF(AND('Base-datos'!$B$740=\"Sí\",'Base-datos'!$B$741=\"Sí\",'Base-datos'!$B$742=\"Sí\"),IF(AND(D136=\"La actividad sí contribuye sustancialmente a la sostenibilidad\",E136=\"La actividad sí contribuye sustancialmente a la sostenibilidad\",C136=\"La actividad sí contribuye sustancialmente a la sostenibilidad\"),B136,0),IF(AND('Base-datos'!$B$740=\"\",'Base-datos'!$B$741=\"Sí\",'Base-datos'!$B$742=\"\"),IF(E136=\"La actividad sí contribuye sustancialmente a la sostenibilidad\",B136,0),IF(AND('Base-datos'!$B$740=\"\",'Base-datos'!$B$741=\"\",'Base-datos'!$B$742=\"Sí\"),IF(C136=\"La actividad sí contribuye sustancialmente a la sostenibilidad\",B136,0),IF(AND('Base-datos'!$B$740=\"\",'Base-datos'!$B$741=\"Sí\",'Base-datos'!$B$742=\"Sí\"),IF(AND(E136=\"La actividad sí contribuye sustancialmente a la sostenibilidad\",C136=\"La actividad sí contribuye sustancialmente a la sostenibilidad\"),B136,0),IF(AND('Base-datos'!$B$740=\"Sí\",'Base-datos'!$B$741=\"\",'Base-datos'!$B$742=\"Sí\"),IF(AND(D136=\"La actividad sí contribuye sustancialmente a la sostenibilidad\",C136=\"La actividad sí contribuye sustancialmente a la sostenibilidad\"),B136,0),\"Por definir\"))))))))","v":"Por definir"}]
[{"$f":"Construcción!$C46","v":"Seleccione"},{"$f":"IF(Construcción!$E46=Otro!B$12,Construcción!$B46,\"\")","v":""},{"$f":"_xlfn.XLOOKUP(A137,'Base-datos'!$B$537:$B$546,'Base-datos'!$F$537:$F$546)","v":{"$error":"#N/A"}},{"$f":"_xlfn.XLOOKUP(A137,'Base-datos'!$B$537:$B$546,'Base-datos'!$C$537:$C$546)","v":{"$error":"#N/A"}},{"$f":"_xlfn.XLOOKUP(A137,'Base-datos'!$B$537:$B$546,'Base-datos'!$D$537:$D$546)","v":{"$error":"#N/A"}},null,null,{"$f":"IF(OR(F$119=\"La actividad no cumple con el total de los criterios de No Daño Significativo\",G$119=\"El sector no cumple con las salvaguardas mínimas\"),\"\",IF(AND('Base-datos'!$B$740=\"Sí\",'Base-datos'!$B$741=\"\",'Base-datos'!$B$742=\"\"),IF(D137=\"La actividad sí contribuye sustancialmente a la sostenibilidad\",B137,0),IF(AND('Base-datos'!$B$740=\"Sí\",'Base-datos'!$B$741=\"Sí\",'Base-datos'!$B$742=\"\"),IF(AND(D137=\"La actividad sí contribuye sustancialmente a la sostenibilidad\",E137=\"La actividad sí contribuye sustancialmente a la sostenibilidad\"),B137,0),IF(AND('Base-datos'!$B$740=\"Sí\",'Base-datos'!$B$741=\"Sí\",'Base-datos'!$B$742=\"Sí\"),IF(AND(D137=\"La actividad sí contribuye sustancialmente a la sostenibilidad\",E137=\"La actividad sí contribuye sustancialmente a la sostenibilidad\",C137=\"La actividad sí contribuye sustancialmente a la sostenibilidad\"),B137,0),IF(AND('Base-datos'!$B$740=\"\",'Base-datos'!$B$741=\"Sí\",'Base-datos'!$B$742=\"\"),IF(E137=\"La actividad sí contribuye sustancialmente a la sostenibilidad\",B137,0),IF(AND('Base-datos'!$B$740=\"\",'Base-datos'!$B$741=\"\",'Base-datos'!$B$742=\"Sí\"),IF(C137=\"La actividad sí contribuye sustancialmente a la sostenibilidad\",B137,0),IF(AND('Base-datos'!$B$740=\"\",'Base-datos'!$B$741=\"Sí\",'Base-datos'!$B$742=\"Sí\"),IF(AND(E137=\"La actividad sí contribuye sustancialmente a la sostenibilidad\",C137=\"La actividad sí contribuye sustancialmente a la sostenibilidad\"),B137,0),IF(AND('Base-datos'!$B$740=\"Sí\",'Base-datos'!$B$741=\"\",'Base-datos'!$B$742=\"Sí\"),IF(AND(D137=\"La actividad sí contribuye sustancialmente a la sostenibilidad\",C137=\"La actividad sí contribuye sustancialmente a la sostenibilidad\"),B137,0),\"Por definir\"))))))))","v":"Por definir"}]
[{"$f":"Construcción!$C48","v":"Seleccione"},{"$f":"IF(Construcción!$E48=Otro!B$12,Construcción!$B48,\"\")","v":""},{"$f":"_xlfn.XLOOKUP(A138,'Base-datos'!$B$537:$B$546,'Base-datos'!$F$537:$F$546)","v":{"$error":"#N/A"}},{"$f":"_xlfn.XLOOKUP(A138,'Base-datos'!$B$537:$B$546,'Base-datos'!$C$537:$C$546)","v":{"$error":"#N/A"}},{"$f":"_xlfn.XLOOKUP(A138,'Base-datos'!$B$537:$B$546,'Base-datos'!$D$537:$D$546)","v":{"$error":"#N/A"}},null,null,{"$f":"IF(OR(F$119=\"La actividad no cumple con el total de los criterios de No Daño Significativo\",G$119=\"El sector no cumple con las salvaguardas mínimas\"),\"\",IF(AND('Base-datos'!$B$740=\"Sí\",'Base-datos'!$B$741=\"\",'Base-datos'!$B$742=\"\"),IF(D138=\"La actividad sí contribuye sustancialmente a la sostenibilidad\",B138,0),IF(AND('Base-datos'!$B$740=\"Sí\",'Base-datos'!$B$741=\"Sí\",'Base-datos'!$B$742=\"\"),IF(AND(D138=\"La actividad sí contribuye sustancialmente a la sostenibilidad\",E138=\"La actividad sí contribuye sustancialmente a la sostenibilidad\"),B138,0),IF(AND('Base-datos'!$B$740=\"Sí\",'Base-datos'!$B$741=\"Sí\",'Base-datos'!$B$742=\"Sí\"),IF(AND(D138=\"La actividad sí contribuye sustancialmente a la sostenibilidad\",E138=\"La actividad sí contribuye sustancialmente a la sostenibilidad\",C138=\"La actividad sí contribuye sustancialmente a la sostenibilidad\"),B138,0),IF(AND('Base-datos'!$B$740=\"\",'Base-datos'!$B$741=\"Sí\",'Base-datos'!$B$742=\"\"),IF(E138=\"La actividad sí contribuye sustancialmente a la sostenibilidad\",B138,0),IF(AND('Base-datos'!$B$740=\"\",'Base-datos'!$B$741=\"\",'Base-datos'!$B$742=\"Sí\"),IF(C138=\"La actividad sí contribuye sustancialmente a la sostenibilidad\",B138,0),IF(AND('Base-datos'!$B$740=\"\",'Base-datos'!$B$741=\"Sí\",'Base-datos'!$B$742=\"Sí\"),IF(AND(E138=\"La actividad sí contribuye sustancialmente a la sostenibilidad\",C138=\"La actividad sí contribuye sustancialmente a la sostenibilidad\"),B138,0),IF(AND('Base-datos'!$B$740=\"Sí\",'Base-datos'!$B$741=\"\",'Base-datos'!$B$742=\"Sí\"),IF(AND(D138=\"La actividad sí contribuye sustancialmente a la sostenibilidad\",C138=\"La actividad sí contribuye sustancialmente a la sostenibilidad\"),B138,0),\"Por definir\"))))))))","v":"Por definir"}]
["Manufactura",null,null,null,null,null,null,{"$f":"SUM(IF(FREQUENCY(MATCH(A140:A159, A140:A159, 0), MATCH(A140:A159, A140:A159, 0)) > 0, IF(NOT(ISERROR(H140:H159)), H140:H159, 0)))","v":0}]
[{"$f":"Manufactura!$C10","v":"Seleccione"},{"$f":"IF(Manufactura!$E10=Otro!B$12,Manufactura!$B10,\"\")","v":""},{"$f":"_xlfn.XLOOKUP(A140,'Base-datos'!$B$547:$B$552,'Base-datos'!$F$547:$F$552)","v":{"$error":"#N/A"}},{"$f":"_xlfn.XLOOKUP(A140,'Base-datos'!$B$547:$B$552,'Base-datos'!$C$547:$C$552)","v":{"$error":"#N/A"}},{"$f":"_xlfn.XLOOKUP(A140,'Base-datos'!$B$547:$B$552,'Base-datos'!$D$547:$D$552)","v":{"$error":"#N/A"}},{"$f":"IF(COUNTIF('Manufactura-NDS'!G9:G85,\"No\")>0,\"La actividad no cumple con el total de los criterios de NDS\",\"La actividad cumple con los criterios de No Daño Significativo\")","v":"La actividad cumple con los criterios de No Daño Significativo"},{"$f":"IF(OR('Salvaguardas mínimas'!$G$10=\"Seleccione\",'Salvaguardas mínimas'!$G$13=\"Seleccione\",'Salvaguardas mínimas'!$G$16=\"Seleccione\",'Salvaguardas mínimas'!$G$7=\"Seleccione\"),\"No se han respondido todas las preguntas\",IF(OR('Salvaguardas mínimas'!$G$10=\"No\",'Salvaguardas mínimas'!$G$13=\"No\",'Salvaguardas mínimas'!$G$16=\"No\",'Salvaguardas mínimas'!$G$7=\"No\"),\"El sector no cumple con las salvaguardas mínimas\",\"La actividad sí cumple con las salvaguardas mínimas\"))","v":"No se han respondido todas las preguntas"},{"$f":"IF(OR(F$140=\"La actividad no cumple con el total de los criterios de No Daño Significativo\",G$140=\"El sector no cumple con las salvaguardas mínimas\"),\"\",IF(AND('Base-datos'!$B$745=\"Sí\",'Base-datos'!$B$746=\"\",'Base-datos'!$B$747=\"\"),IF(D140=\"La actividad sí contribuye sustancialmente a la sostenibilidad\",B140,0),IF(AND('Base-datos'!$B$745=\"Sí\",'Base-datos'!$B$746=\"Sí\",'Base-datos'!$B$747=\"\"),IF(AND(D140=\"La actividad sí contribuye sustancialmente a la sostenibilidad\",E140=\"La actividad sí contribuye sustancialmente a la sostenibilidad\"),B140,0),IF(AND('Base-datos'!$B$745=\"Sí\",'Base-datos'!$B$746=\"Sí\",'Base-datos'!$B$747=\"Sí\"),IF(AND(D140=\"La actividad sí contribuye sustancialmente a la sostenibilidad\",E140=\"La actividad sí contribuye sustancialmente a la sostenibilidad\",C140=\"La actividad sí contribuye sustancialmente a la sostenibilidad\"),B140,0),IF(AND('Base-datos'!$B$745=\"\",'Base-datos'!$B$746=\"Sí\",'Base-datos'!$B$747=\"\"),IF(E140=\"La actividad sí contribuye sustancialmente a la sostenibilidad\",B140,0),IF(AND('Base-datos'!$B$745=\"\",'Base-datos'!$B$746=\"\",'Base-datos'!$B$747=\"Sí\"),IF(C140=\"La actividad sí contribuye sustancialmente a la sostenibilidad\",B140,0),IF(AND('Base-datos'!$B$745=\"\",'Base-datos'!$B$746=\"Sí\",'Base-datos'!$B$747=\"Sí\"),IF(AND(E140=\"La actividad sí contribuye sustancialmente a la sostenibilidad\",C140=\"La actividad sí contribuye sustancialmente a la sostenibilidad\"),B140,0),IF(AND('Base-datos'!$B$745=\"Sí\",'Base-datos'!$B$746=\"\",'Base-datos'!$B$747=\"Sí\"),IF(AND(D140=\"La actividad sí contribuye sustancialmente a la sostenibilidad\",C140=\"La actividad sí contribuye sustancialmente a la sostenibilidad\"),B140,0),\"Por definir\"))))))))","v":"Por definir"}]
[{"$f":"Manufactura!$C12","v":"Seleccione"},{"$f":"IF(Manufactura!$E12=Otro!B$12,Manufactura!$B12,\"\")","v":""},{"$f":"_xlfn.XLOOKUP(A141,'Base-datos'!$B$547:$B$552,'Base-datos'!$F$547:$F$552)","v":{"$error":"#N/A"}},{"$f":"_xlfn.XLOOKUP(A141,'Base-datos'!$B$547:$B$552,'Base-datos'!$C$547:$C$552)","v":{"$error":"#N/A"}},{"$f":"_xlfn.XLOOKUP(A141,'Base-datos'!$B$547:$B$552,'Base-datos'!$D$547:$D$552)","v":{"$error":"#N/A"}},null,null,{"$f":"IF(OR(F$140=\"La actividad no cumple con el total de los criterios de No Daño Significativo\",G$140=\"El sector no cumple con las salvaguardas mínimas\"),\"\",IF(AND('Base-datos'!$B$745=\"Sí\",'Base-datos'!$B$746=\"\",'Base-datos'!$B$747=\"\"),IF(D141=\"La actividad sí contribuye sustancialmente a la sostenibilidad\",B141,0),IF(AND('Base-datos'!$B$745=\"Sí\",'Base-datos'!$B$746=\"Sí\",'Base-datos'!$B$747=\"\"),IF(AND(D141=\"La actividad sí contribuye sustancialmente a la sostenibilidad\",E141=\"La actividad sí contribuye sustancialmente a la sostenibilidad\"),B141,0),IF(AND('Base-datos'!$B$745=\"Sí\",'Base-datos'!$B$746=\"Sí\",'Base-datos'!$B$747=\"Sí\"),IF(AND(D141=\"La actividad sí contribuye sustancialmente a la sostenibilidad\",E141=\"La actividad sí contribuye sustancialmente a la sostenibilidad\",C141=\"La actividad sí contribuye sustancialmente a la sostenibilidad\"),B141,0),IF(AND('Base-datos'!$B$745=\"\",'Base-datos'!$B$746=\"Sí\",'Base-datos'!$B$747=\"\"),IF(E141=\"La actividad sí contribuye sustancialmente a la sostenibilidad\",B141,0),IF(AND('Base-datos'!$B$745=\"\",'Base-datos'!$B$746=\"\",'Base-datos'!$B$747=\"Sí\"),IF(C141=\"La actividad sí contribuye sustancialmente a la sostenibilidad\",B141,0),IF(AND('Base-datos'!$B$745=\"\",'Base-datos'!$B$746=\"Sí\",'Base-datos'!$B$747=\"Sí\"),IF(AND(E141=\"La actividad sí contribuye sustancialmente a la sostenibilidad\",C141=\"La actividad sí contribuye sustancialmente a la sostenibilidad\"),B141,0),IF(AND('Base-datos'!$B$745=\"Sí\",'Base-datos'!$B$746=\"\",'Base-datos'!$B$747=\"Sí\"),IF(AND(D141=\"La actividad sí contribuye sustancialmente a la sostenibilidad\",C141=\"La actividad sí contribuye sustancialmente a la sostenibilidad\"),B141,0),\"Por definir\"))))))))","v":"Por definir"}]
[{"$f":"Manufactura!$C14","v":"Seleccione"},{"$f":"IF(Manufactura!$E14=Otro!B$12,Manufactura!$B14,\"\")","v":""},{"$f":"_xlfn.XLOOKUP(A142,'Base-datos'!$B$547:$B$552,'Base-datos'!$F$547:$F$552)","v":{"$error":"#N/A"}},{"$f":"_xlfn.XLOOKUP(A142,'Base-datos'!$B$547:$B$552,'Base-datos'!$C$547:$C$552)","v":{"$error":"#N/A"}},{"$f":"_xlfn.XLOOKUP(A142,'Base-datos'!$B$547:$B$552,'Base-datos'!$D$547:$D$552)","v":{"$error":"#N/A"}},null,null,{"$f":"IF(OR(F$140=\"La actividad no cumple con el total de los criterios de No Daño Significativo\",G$140=\"El sector no cumple con las salvaguardas mínimas\"),\"\",IF(AND('Base-datos'!$B$745=\"Sí\",'Base-datos'!$B$746=\"\",'Base-datos'!$B$747=\"\"),IF(D142=\"La actividad sí contribuye sustancialmente a la sostenibilidad\",B142,0),IF(AND('Base-datos'!$B$745=\"Sí\",'Base-datos'!$B$746=\"Sí\",'Base-datos'!$B$747=\"\"),IF(AND(D142=\"La actividad sí contribuye sustancialmente a la sostenibilidad\",E142=\"La actividad sí contribuye sustancialmente a la sostenibilidad\"),B142,0),IF(AND('Base-datos'!$B$745=\"Sí\",'Base-datos'!$B$746=\"Sí\",'Base-datos'!$B$747=\"Sí\"),IF(AND(D142=\"La actividad sí contribuye sustancialmente a la sostenibilidad\",E142=\"La actividad sí contribuye sustancialmente a la sostenibilidad\",C142=\"La actividad sí contribuye sustancialmente a la sostenibilidad\"),B142,0),IF(AND('Base-datos'!$B$745=\"\",'Base-datos'!$B$746=\"Sí\",'Base-datos'!$B$747=\"\"),IF(E142=\"La actividad sí contribuye sustancialmente a la sostenibilidad\",B142,0),IF(AND('Base-datos'!$B$745=\"\",'Base-datos'!$B$746=\"\",'Base-datos'!$B$747=\"Sí\"),IF(C142=\"La actividad sí contribuye sustancialmente a la sostenibilidad\",B142,0),IF(AND('Base-datos'!$B$745=\"\",'Base-datos'!$B$746=\"Sí\",'Base-datos'!$B$747=\"Sí\"),IF(AND(E142=\"La actividad sí contribuye sustancialmente a la sostenibilidad\",C142=\"La actividad sí contribuye sustancialmente a la sostenibilidad\"),B142,0),IF(AND('Base-datos'!$B$745=\"Sí\",'Base-datos'!$B$746=\"\",'Base-datos'!$B$747=\"Sí\"),IF(AND(D142=\"La actividad sí contribuye sustancialmente a la sostenibilidad\",C142=\"La actividad sí contribuye sustancialmente a la sostenibilidad\"),B142,0),\"Por definir\"))))))))","v":"Por definir"}]
[{"$f":"Manufactura!$C16","v":"Seleccione"},{"$f":"IF(Manufactura!$E16=Otro!B$12,Manufactura!$B16,\"\")","v":""},{"$f":"_xlfn.XLOOKUP(A143,'Base-datos'!$B$547:$B$552,'Base-datos'!$F$547:$F$552)","v":{"$error":"#N/A"}},{"$f":"_xlfn.XLOOKUP(A143,'Base-datos'!$B$547:$B$552,'Base-datos'!$C$547:$C$552)","v":{"$error":"#N/A"}},{"$f":"_xlfn.XLOOKUP(A143,'Base-datos'!$B$547:$B$552,'Base-datos'!$D$547:$D$552)","v":{"$error":"#N/A"}},null,null,{"$f":"IF(OR(F$140=\"La actividad no cumple con el total de los criterios de No Daño Significativo\",G$140=\"El sector no cumple con las salvaguardas mínimas\"),\"\",IF(AND('Base-datos'!$B$745=\"Sí\",'Base-datos'!$B$746=\"\",'Base-datos'!$B$747=\"\"),IF(D143=\"La actividad sí contribuye sustancialmente a la sostenibilidad\",B143,0),IF(AND('Base-datos'!$B$745=\"Sí\",'Base-datos'!$B$746=\"Sí\",'Base-datos'!$B$747=\"\"),IF(AND(D143=\"La actividad sí contribuye sustancialmente a la sostenibilidad\",E143=\"La actividad sí contribuye sustancialmente a la sostenibilidad\"),B143,0),IF(AND('Base-datos'!$B$745=\"Sí\",'Base-datos'!$B$746=\"Sí\",'Base-datos'!$B$747=\"Sí\"),IF(AND(D143=\"La actividad sí contribuye sustancialmente a la sostenibilidad\",E143=\"La actividad sí contribuye sustancialmente a la sostenibilidad\",C143=\"La actividad sí contribuye sustancialmente a la sostenibilidad\"),B143,0),IF(AND('Base-datos'!$B$745=\"\",'Base-datos'!$B$746=\"Sí\",'Base-datos'!$B$747=\"\"),IF(E143=\"La actividad sí contribuye sustancialmente a la sostenibilidad\",B143,0),IF(AND('Base-datos'!$B$745=\"\",'Base-datos'!$B$746=\"\",'Base-datos'!$B$747=\"Sí\"),IF(C143=\"La actividad sí contribuye sustancialmente a la sostenibilidad\",B143,0),IF(AND('Base-datos'!$B$745=\"\",'Base-datos'!$B$746=\"Sí\",'Base-datos'!$B$747=\"Sí\"),IF(AND(E143=\"La actividad sí contribuye sustancialmente a la sostenibilidad\",C143=\"La actividad sí contribuye sustancialmente a la sostenibilidad\"),B143,0),IF(AND('Base-datos'!$B$745=\"Sí\",'Base-datos'!$B$746=\"\",'Base-datos'!$B$747=\"Sí\"),IF(AND(D143=\"La actividad sí contribuye sustancialmente a la sostenibilidad\",C143=\"La actividad sí contribuye sustancialmente a la sostenibilidad\"),B143,0),\"Por definir\"))))))))","v":"Por definir"}]
[{"$f":"Manufactura!$C18","v":"Seleccione"},{"$f":"IF(Manufactura!$E18=Otro!B$12,Manufactura!$B18,\"\")","v":""},{"$f":"_xlfn.XLOOKUP(A144,'Base-datos'!$B$547:$B$552,'Base-datos'!$F$547:$F$552)","v":{"$error":"#N/A"}},{"$f":"_xlfn.XLOOKUP(A144,'Base-datos'!$B$547:$B$552,'Base-datos'!$C$547:$C$552)","v":{"$error":"#N/A"}},{"$f":"_xlfn.XLOOKUP(A144,'Base-datos'!$B$547:$B$552,'Base-datos'!$D$547:$D$552)","v":{"$error":"#N/A"}},null,null,{"$f":"IF(OR(F$140=\"La actividad no cumple con el total de los criterios de No Daño Significativo\",G$140=\"El sector no cumple con las salvaguardas mínimas\"),\"\",IF(AND('Base-datos'!$B$745=\"Sí\",'Base-datos'!$B$746=\"\",'Base-datos'!$B$747=\"\"),IF(D144=\"La actividad sí contribuye sustancialmente a la sostenibilidad\",B144,0),IF(AND('Base-datos'!$B$745=\"Sí\",'Base-datos'!$B$746=\"Sí\",'Base-datos'!$B$747=\"\"),IF(AND(D144=\"La actividad sí contribuye sustancialmente a la sostenibilidad\",E144=\"La actividad sí contribuye sustancialmente a la sostenibilidad\"),B144,0),IF(AND('Base-datos'!$B$745=\"Sí\",'Base-datos'!$B$746=\"Sí\",'Base-datos'!$B$747=\"Sí\"),IF(AND(D144=\"La actividad sí contribuye sustancialmente a la sostenibilidad\",E144=\"La actividad sí contribuye sustancialmente a la sostenibilidad\",C144=\"La actividad sí contribuye sustancialmente a la sostenibilidad\"),B144,0),IF(AND('Base-datos'!$B$745=\"\",'Base-datos'!$B$746=\"Sí\",'Base-datos'!$B$747=\"\"),IF(E144=\"La actividad sí contribuye sustancialmente a la sostenibilidad\",B144,0),IF(AND('Base-datos'!$B$745=\"\",'Base-datos'!$B$746=\"\",'Base-datos'!$B$747=\"Sí\"),IF(C144=\"La actividad sí contribuye sustancialmente a la sostenibilidad\",B144,0),IF(AND('Base-datos'!$B$745=\"\",'Base-datos'!$B$746=\"Sí\",'Base-datos'!$B$747=\"Sí\"),IF(AND(E144=\"La actividad sí contribuye sustancialmente a la sostenibilidad\",C144=\"La actividad sí contribuye sustancialmente a la sostenibilidad\"),B144,0),IF(AND('Base-datos'!$B$745=\"Sí\",'Base-datos'!$B$746=\"\",'Base-datos'!$B$747=\"Sí\"),IF(AND(D144=\"La actividad sí contribuye sustancialmente a la sostenibilidad\",C144=\"La actividad sí contribuye sustancialmente a la sostenibilidad\"),B144,0),\"Por definir\"))))))))","v":"Por definir"}]
[{"$f":"Manufactura!$C20","v":"Seleccione"},{"$f":"IF(Manufactura!$E20=Otro!B$12,Manufactura!$B20,\"\")","v":""},{"$f":"_xlfn.XLOOKUP(A145,'Base-datos'!$B$547:$B$552,'Base-datos'!$F$547:$F$552)","v":{"$error":"#N/A"}},{"$f":"_xlfn.XLOOKUP(A145,'Base-datos'!$B$547:$B$552,'Base-datos'!$C$547:$C$552)","v":{"$error":"#N/A"}},{"$f":"_xlfn.XLOOKUP(A145,'Base-datos'!$B$547:$B$552,'Base-datos'!$D$547:$D$552)","v":{"$error":"#N/A"}},null,null,{"$f":"IF(OR(F$140=\"La actividad no cumple con el total de los criterios de No Daño Significativo\",G$140=\"El sector no cumple con las salvaguardas mínimas\"),\"\",IF(AND('Base-datos'!$B$745=\"Sí\",'Base-datos'!$B$746=\"\",'Base-datos'!$B$747=\"\"),IF(D145=\"La actividad sí contribuye sustancialmente a la sostenibilidad\",B145,0),IF(AND('Base-datos'!$B$745=\"Sí\",'Base-datos'!$B$746=\"Sí\",'Base-datos'!$B$747=\"\"),IF(AND(D145=\"La actividad sí contribuye sustancialmente a la sostenibilidad\",E145=\"La actividad sí contribuye sustancialmente a la sostenibilidad\"),B145,0),IF(AND('Base-datos'!$B$745=\"Sí\",'Base-datos'!$B$746=\"Sí\",'Base-datos'!$B$747=\"Sí\"),IF(AND(D145=\"La actividad sí contribuye sustancialmente a la sostenibilidad\",E145=\"La actividad sí contribuye sustancialmente a la sostenibilidad\",C145=\"La actividad sí contribuye sustancialmente a la sostenibilidad\"),B145,0),IF(AND('Base-datos'!$B$745=\"\",'Base-datos'!$B$746=\"Sí\",'Base-datos'!$B$747=\"\"),IF(E145=\"La actividad sí contribuye sustancialmente a la sostenibilidad\",B145,0),IF(AND('Base-datos'!$B$745=\"\",'Base-datos'!$B$746=\"\",'Base-datos'!$B$747=\"Sí\"),IF(C145=\"La actividad sí contribuye sustancialmente a la sostenibilidad\",B145,0),IF(AND('Base-datos'!$B$745=\"\",'Base-datos'!$B$746=\"Sí\",'Base-datos'!$B$747=\"Sí\"),IF(AND(E145=\"La actividad sí contribuye sustancialmente a la sostenibilidad\",C145=\"La actividad sí contribuye sustancialmente a la sostenibilidad\"),B145,0),IF(AND('Base-datos'!$B$745=\"Sí\",'Base-datos'!$B$746=\"\",'Base-datos'!$B$747=\"Sí\"),IF(AND(D145=\"La actividad sí contribuye sustancialmente a la sostenibilidad\",C145=\"La actividad sí contribuye sustancialmente a la sostenibilidad\"),B145,0),\"Por definir\"))))))))","v":"Por definir"}]
[{"$f":"Manufactura!$C22","v":"Seleccione"},{"$f":"IF(Manufactura!$E22=Otro!B$12,Manufactura!$B22,\"\")","v":""},{"$f":"_xlfn.XLOOKUP(A146,'Base-datos'!$B$547:$B$552,'Base-datos'!$F$547:$F$552)","v":{"$error":"#N/A"}},{"$f":"_xlfn.XLOOKUP(A146,'Base-datos'!$B$547:$B$552,'Base-datos'!$C$547:$C$552)","v":{"$error":"#N/A"}},{"$f":"_xlfn.XLOOKUP(A146,'Base-datos'!$B$547:$B$552,'Base-datos'!$D$547:$D$552)","v":{"$error":"#N/A"}},null,null,{"$f":"IF(OR(F$140=\"La actividad no cumple con el total de los criterios de No Daño Significativo\",G$140=\"El sector no cumple con las salvaguardas mínimas\"),\"\",IF(AND('Base-datos'!$B$745=\"Sí\",'Base-datos'!$B$746=\"\",'Base-datos'!$B$747=\"\"),IF(D146=\"La actividad sí contribuye sustancialmente a la sostenibilidad\",B146,0),IF(AND('Base-datos'!$B$745=\"Sí\",'Base-datos'!$B$746=\"Sí\",'Base-datos'!$B$747=\"\"),IF(AND(D146=\"La actividad sí contribuye sustancialmente a la sostenibilidad\",E146=\"La actividad sí contribuye sustancialmente a la sostenibilidad\"),B146,0),IF(AND('Base-datos'!$B$745=\"Sí\",'Base-datos'!$B$746=\"Sí\",'Base-datos'!$B$747=\"Sí\"),IF(AND(D146=\"La actividad sí contribuye sustancialmente a la sostenibilidad\",E146=\"La actividad sí contribuye sustancialmente a la sostenibilidad\",C146=\"La actividad sí contribuye sustancialmente a la sostenibilidad\"),B146,0),IF(AND('Base-datos'!$B$745=\"\",'Base-datos'!$B$746=\"Sí\",'Base-datos'!$B$747=\"\"),IF(E146=\"La actividad sí contribuye sustancialmente a la sostenibilidad\",B146,0),IF(AND('Base-datos'!$B$745=\"\",'Base-datos'!$B$746=\"\",'Base-datos'!$B$747=\"Sí\"),IF(C146=\"La actividad sí contribuye sustancialmente a la sostenibilidad\",B146,0),IF(AND('Base-datos'!$B$745=\"\",'Base-datos'!$B$746=\"Sí\",'Base-datos'!$B$747=\"Sí\"),IF(AND(E146=\"La actividad sí contribuye sustancialmente a la sostenibilidad\",C146=\"La actividad sí contribuye sustancialmente a la sostenibilidad\"),B146,0),IF(AND('Base-datos'!$B$745=\"Sí\",'Base-datos'!$B$746=\"\",'Base-datos'!$B$747=\"Sí\"),IF(AND(D146=\"La actividad sí contribuye sustancialmente a la sostenibilidad\",C146=\"La actividad sí contribuye sustancialmente a la sostenibilidad\"),B146,0),\"Por definir\"))))))))","v":"Por definir"}]
[{"$f":"Manufactura!$C24","v":"Seleccione"},{"$f":"IF(Manufactura!$E24=Otro!B$12,Manufactura!$B24,\"\")","v":""},{"$f":"_xlfn.XLOOKUP(A147,'Base-datos'!$B$547:$B$552,'Base-datos'!$F$547:$F$552)","v":{"$error":"#N/A"}},{"$f":"_xlfn.XLOOKUP(A147,'Base-datos'!$B$547:$B$552,'Base-datos'!$C$547:$C$552)","v":{"$error":"#N/A"}},{"$f":"_xlfn.XLOOKUP(A147,'Base-datos'!$B$547:$B$552,'Base-datos'!$D$547:$D$552)","v":{"$error":"#N/A"}},null,null,{"$f":"IF(OR(F$140=\"La actividad no cumple con el total de los criterios de No Daño Significativo\",G$140=\"El sector no cumple con las salvaguardas mínimas\"),\"\",IF(AND('Base-datos'!$B$745=\"Sí\",'Base-datos'!$B$746=\"\",'Base-datos'!$B$747=\"\"),IF(D147=\"La actividad sí contribuye sustancialmente a la sostenibilidad\",B147,0),IF(AND('Base-datos'!$B$745=\"Sí\",'Base-datos'!$B$746=\"Sí\",'Base-datos'!$B$747=\"\"),IF(AND(D147=\"La actividad sí contribuye sustancialmente a la sostenibilidad\",E147=\"La actividad sí contribuye sustancialmente a la sostenibilidad\"),B147,0),IF(AND('Base-datos'!$B$745=\"Sí\",'Base-datos'!$B$746=\"Sí\",'Base-datos'!$B$747=\"Sí\"),IF(AND(D147=\"La actividad sí contribuye sustancialmente a la sostenibilidad\",E147=\"La actividad sí contribuye sustancialmente a la sostenibilidad\",C147=\"La actividad sí contribuye sustancialmente a la sostenibilidad\"),B147,0),IF(AND('Base-datos'!$B$745=\"\",'Base-datos'!$B$746=\"Sí\",'Base-datos'!$B$747=\"\"),IF(E147=\"La actividad sí contribuye sustancialmente a la sostenibilidad\",B147,0),IF(AND('Base-datos'!$B$745=\"\",'Base-datos'!$B$746=\"\",'Base-datos'!$B$747=\"Sí\"),IF(C147=\"La actividad sí contribuye sustancialmente a la sostenibilidad\",B147,0),IF(AND('Base-datos'!$B$745=\"\",'Base-datos'!$B$746=\"Sí\",'Base-datos'!$B$747=\"Sí\"),IF(AND(E147=\"La actividad sí contribuye sustancialmente a la sostenibilidad\",C147=\"La actividad sí contribuye sustancialmente a la sostenibilidad\"),B147,0),IF(AND('Base-datos'!$B$745=\"Sí\",'Base-datos'!$B$746=\"\",'Base-datos'!$B$747=\"Sí\"),IF(AND(D147=\"La actividad sí contribuye sustancialmente a la sostenibilidad\",C147=\"La actividad sí contribuye sustancialmente a la sostenibilidad\"),B147,0),\"Por definir\"))))))))","v":"Por definir"}]
[{"$f":"Manufactura!$C26","v":"Seleccione"},{"$f":"IF(Manufactura!$E26=Otro!B$12,Manufactura!$B26,\"\")","v":""},{"$f":"_xlfn.XLOOKUP(A148,'Base-datos'!$B$547:$B$552,'Base-datos'!$F$547:$F$552)","v":{"$error":"#N/A"}},{"$f":"_xlfn.XLOOKUP(A148,'Base-datos'!$B$547:$B$552,'Base-datos'!$C$547:$C$552)","v":{"$error":"#N/A"}},{"$f":"_xlfn.XLOOKUP(A148,'Base-datos'!$B$547:$B$552,'Base-datos'!$D$547:$D$552)","v":{"$error":"#N/A"}},null,null,{"$f":"IF(OR(F$140=\"La actividad no cumple con el total de los criterios de No Daño Significativo\",G$140=\"El sector no cumple con las salvaguardas mínimas\"),\"\",IF(AND('Base-datos'!$B$745=\"Sí\",'Base-datos'!$B$746=\"\",'Base-datos'!$B$747=\"\"),IF(D148=\"La actividad sí contribuye sustancialmente a la sostenibilidad\",B148,0),IF(AND('Base-datos'!$B$745=\"Sí\",'Base-datos'!$B$746=\"Sí\",'Base-datos'!$B$747=\"\"),IF(AND(D148=\"La actividad sí contribuye sustancialmente a la sostenibilidad\",E148=\"La actividad sí contribuye sustancialmente a la sostenibilidad\"),B148,0),IF(AND('Base-datos'!$B$745=\"Sí\",'Base-datos'!$B$746=\"Sí\",'Base-datos'!$B$747=\"Sí\"),IF(AND(D148=\"La actividad sí contribuye sustancialmente a la sostenibilidad\",E148=\"La actividad sí contribuye sustancialmente a la sostenibilidad\",C148=\"La actividad sí contribuye sustancialmente a la sostenibilidad\"),B148,0),IF(AND('Base-datos'!$B$745=\"\",'Base-datos'!$B$746=\"Sí\",'Base-datos'!$B$747=\"\"),IF(E148=\"La actividad sí contribuye sustancialmente a la sostenibilidad\",B148,0),IF(AND('Base-datos'!$B$745=\"\",'Base-datos'!$B$746=\"\",'Base-datos'!$B$747=\"Sí\"),IF(C148=\"La actividad sí contribuye sustancialmente a la sostenibilidad\",B148,0),IF(AND('Base-datos'!$B$745=\"\",'Base-datos'!$B$746=\"Sí\",'Base-datos'!$B$747=\"Sí\"),IF(AND(E148=\"La actividad sí contribuye sustancialmente a la sostenibilidad\",C148=\"La actividad sí contribuye sustancialmente a la sostenibilidad\"),B148,0),IF(AND('Base-datos'!$B$745=\"Sí\",'Base-datos'!$B$746=\"\",'Base-datos'!$B$747=\"Sí\"),IF(AND(D148=\"La actividad sí contribuye sustancialmente a la sostenibilidad\",C148=\"La actividad sí contribuye sustancialmente a la sostenibilidad\"),B148,0),\"Por definir\"))))))))","v":"Por definir"}]
[{"$f":"Manufactura!$C28","v":"Seleccione"},{"$f":"IF(Manufactura!$E28=Otro!B$12,Manufactura!$B28,\"\")","v":""},{"$f":"_xlfn.XLOOKUP(A149,'Base-datos'!$B$547:$B$552,'Base-datos'!$F$547:$F$552)","v":{"$error":"#N/A"}},{"$f":"_xlfn.XLOOKUP(A149,'Base-datos'!$B$547:$B$552,'Base-datos'!$C$547:$C$552)","v":{"$error":"#N/A"}},{"$f":"_xlfn.XLOOKUP(A149,'Base-datos'!$B$547:$B$552,'Base-datos'!$D$547:$D$552)","v":{"$error":"#N/A"}},null,null,{"$f":"IF(OR(F$140=\"La actividad no cumple con el total de los criterios de No Daño Significativo\",G$140=\"El sector no cumple con las salvaguardas mínimas\"),\"\",IF(AND('Base-datos'!$B$745=\"Sí\",'Base-datos'!$B$746=\"\",'Base-datos'!$B$747=\"\"),IF(D149=\"La actividad sí contribuye sustancialmente a la sostenibilidad\",B149,0),IF(AND('Base-datos'!$B$745=\"Sí\",'Base-datos'!$B$746=\"Sí\",'Base-datos'!$B$747=\"\"),IF(AND(D149=\"La actividad sí contribuye sustancialmente a la sostenibilidad\",E149=\"La actividad sí contribuye sustancialmente a la sostenibilidad\"),B149,0),IF(AND('Base-datos'!$B$745=\"Sí\",'Base-datos'!$B$746=\"Sí\",'Base-datos'!$B$747=\"Sí\"),IF(AND(D149=\"La actividad sí contribuye sustancialmente a la sostenibilidad\",E149=\"La actividad sí contribuye sustancialmente a la sostenibilidad\",C149=\"La actividad sí contribuye sustancialmente a la sostenibilidad\"),B149,0),IF(AND('Base-datos'!$B$745=\"\",'Base-datos'!$B$746=\"Sí\",'Base-datos'!$B$747=\"\"),IF(E149=\"La actividad sí contribuye sustancialmente a la sostenibilidad\",B149,0),IF(AND('Base-datos'!$B$745=\"\",'Base-datos'!$B$746=\"\",'Base-datos'!$B$747=\"Sí\"),IF(C149=\"La actividad sí contribuye sustancialmente a la sostenibilidad\",B149,0),IF(AND('Base-datos'!$B$745=\"\",'Base-datos'!$B$746=\"Sí\",'Base-datos'!$B$747=\"Sí\"),IF(AND(E149=\"La actividad sí contribuye sustancialmente a la sostenibilidad\",C149=\"La actividad sí contribuye sustancialmente a la sostenibilidad\"),B149,0),IF(AND('Base-datos'!$B$745=\"Sí\",'Base-datos'!$B$746=\"\",'Base-datos'!$B$747=\"Sí\"),IF(AND(D149=\"La actividad sí contribuye sustancialmente a la sostenibilidad\",C149=\"La actividad sí contribuye sustancialmente a la sostenibilidad\"),B149,0),\"Por definir\"))))))))","v":"Por definir"}]
[{"$f":"Manufactura!$C30","v":"Seleccione"},{"$f":"IF(Manufactura!$E30=Otro!B$12,Manufactura!$B30,\"\")","v":""},{"$f":"_xlfn.XLOOKUP(A150,'Base-datos'!$B$547:$B$552,'Base-datos'!$F$547:$F$552)","v":{"$error":"#N/A"}},{"$f":"_xlfn.XLOOKUP(A150,'Base-datos'!$B$547:$B$552,'Base-datos'!$C$547:$C$552)","v":{"$error":"#N/A"}},{"$f":"_xlfn.XLOOKUP(A150,'Base-datos'!$B$547:$B$552,'Base-datos'!$D$547:$D$552)","v":{"$error":"#N/A"}},null,null,{"$f":"IF(OR(F$140=\"La actividad no cumple con el total de los criterios de No Daño Significativo\",G$140=\"El sector no cumple con las salvaguardas mínimas\"),\"\",IF(AND('Base-datos'!$B$745=\"Sí\",'Base-datos'!$B$746=\"\",'Base-datos'!$B$747=\"\"),IF(D150=\"La actividad sí contribuye sustancialmente a la sostenibilidad\",B150,0),IF(AND('Base-datos'!$B$745=\"Sí\",'Base-datos'!$B$746=\"Sí\",'Base-datos'!$B$747=\"\"),IF(AND(D150=\"La actividad sí contribuye sustancialmente a la sostenibilidad\",E150=\"La actividad sí contribuye sustancialmente a la sostenibilidad\"),B150,0),IF(AND('Base-datos'!$B$745=\"Sí\",'Base-datos'!$B$746=\"Sí\",'Base-datos'!$B$747=\"Sí\"),IF(AND(D150=\"La actividad sí contribuye sustancialmente a la sostenibilidad\",E150=\"La actividad sí contribuye sustancialmente a la sostenibilidad\",C150=\"La actividad sí contribuye sustancialmente a la sostenibilidad\"),B150,0),IF(AND('Base-datos'!$B$745=\"\",'Base-datos'!$B$746=\"Sí\",'Base-datos'!$B$747=\"\"),IF(E150=\"La actividad sí contribuye sustancialmente a la sostenibilidad\",B150,0),IF(AND('Base-datos'!$B$745=\"\",'Base-datos'!$B$746=\"\",'Base-datos'!$B$747=\"Sí\"),IF(C150=\"La actividad sí contribuye sustancialmente a la sostenibilidad\",B150,0),IF(AND('Base-datos'!$B$745=\"\",'Base-datos'!$B$746=\"Sí\",'Base-datos'!$B$747=\"Sí\"),IF(AND(E150=\"La actividad sí contribuye sustancialmente a la sostenibilidad\",C150=\"La actividad sí contribuye sustancialmente a la sostenibilidad\"),B150,0),IF(AND('Base-datos'!$B$745=\"Sí\",'Base-datos'!$B$746=\"\",'Base-datos'!$B$747=\"Sí\"),IF(AND(D150=\"La actividad sí contribuye sustancialmente a la sostenibilidad\",C150=\"La actividad sí contribuye sustancialmente a la sostenibilidad\"),B150,0),\"Por definir\"))))))))","v":"Por definir"}]
[{"$f":"Manufactura!$C32","v":"Seleccione"},{"$f":"IF(Manufactura!$E32=Otro!B$12,Manufactura!$B32,\"\")","v":""},{"$f":"_xlfn.XLOOKUP(A151,'Base-datos'!$B$547:$B$552,'Base-datos'!$F$547:$F$552)","v":{"$error":"#N/A"}},{"$f":"_xlfn.XLOOKUP(A151,'Base-datos'!$B$547:$B$552,'Base-datos'!$C$547:$C$552)","v":{"$error":"#N/A"}},{"$f":"_xlfn.XLOOKUP(A151,'Base-datos'!$B$547:$B$552,'Base-datos'!$D$547:$D$552)","v":{"$error":"#N/A"}},null,null,{"$f":"IF(OR(F$140=\"La actividad no cumple con el total de los criterios de No Daño Significativo\",G$140=\"El sector no cumple con las salvaguardas mínimas\"),\"\",IF(AND('Base-datos'!$B$745=\"Sí\",'Base-datos'!$B$746=\"\",'Base-datos'!$B$747=\"\"),IF(D151=\"La actividad sí contribuye sustancialmente a la sostenibilidad\",B151,0),IF(AND('Base-datos'!$B$745=\"Sí\",'Base-datos'!$B$746=\"Sí\",'Base-datos'!$B$747=\"\"),IF(AND(D151=\"La actividad sí contribuye sustancialmente a la sostenibilidad\",E151=\"La actividad sí contribuye sustancialmente a la sostenibilidad\"),B151,0),IF(AND('Base-datos'!$B$745=\"Sí\",'Base-datos'!$B$746=\"Sí\",'Base-datos'!$B$747=\"Sí\"),IF(AND(D151=\"La actividad sí contribuye sustancialmente a la sostenibilidad\",E151=\"La actividad sí contribuye sustancialmente a la sostenibilidad\",C151=\"La actividad sí contribuye sustancialmente a la sostenibilidad\"),B151,0),IF(AND('Base-datos'!$B$745=\"\",'Base-datos'!$B$746=\"Sí\",'Base-datos'!$B$747=\"\"),IF(E151=\"La actividad sí contribuye sustancialmente a la sostenibilidad\",B151,0),IF(AND('Base-datos'!$B$745=\"\",'Base-datos'!$B$746=\"\",'Base-datos'!$B$747=\"Sí\"),IF(C151=\"La actividad sí contribuye sustancialmente a la sostenibilidad\",B151,0),IF(AND('Base-datos'!$B$745=\"\",'Base-datos'!$B$746=\"Sí\",'Base-datos'!$B$747=\"Sí\"),IF(AND(E151=\"La actividad sí contribuye sustancialmente a la sostenibilidad\",C151=\"La actividad sí contribuye sustancialmente a la sostenibilidad\"),B151,0),IF(AND('Base-datos'!$B$745=\"Sí\",'Base-datos'!$B$746=\"\",'Base-datos'!$B$747=\"Sí\"),IF(AND(D151=\"La actividad sí contribuye sustancialmente a la sostenibilidad\",C151=\"La actividad sí contribuye sustancialmente a la sostenibilidad\"),B151,0),\"Por definir\"))))))))","v":"Por definir"}]
[{"$f":"Manufactura!$C34","v":"Seleccione"},{"$f":"IF(Manufactura!$E34=Otro!B$12,Manufactura!$B34,\"\")","v":""},{"$f":"_xlfn.XLOOKUP(A152,'Base-datos'!$B$547:$B$552,'Base-datos'!$F$547:$F$552)","v":{"$error":"#N/A"}},{"$f":"_xlfn.XLOOKUP(A152,'Base-datos'!$B$547:$B$552,'Base-datos'!$C$547:$C$552)","v":{"$error":"#N/A"}},{"$f":"_xlfn.XLOOKUP(A152,'Base-datos'!$B$547:$B$552,'Base-datos'!$D$547:$D$552)","v":{"$error":"#N/A"}},null,null,{"$f":"IF(OR(F$140=\"La actividad no cumple con el total de los criterios de No Daño Significativo\",G$140=\"El sector no cumple con las salvaguardas mínimas\"),\"\",IF(AND('Base-datos'!$B$745=\"Sí\",'Base-datos'!$B$746=\"\",'Base-datos'!$B$747=\"\"),IF(D152=\"La actividad sí contribuye sustancialmente a la sostenibilidad\",B152,0),IF(AND('Base-datos'!$B$745=\"Sí\",'Base-datos'!$B$746=\"Sí\",'Base-datos'!$B$747=\"\"),IF(AND(D152=\"La actividad sí contribuye sustancialmente a la sostenibilidad\",E152=\"La actividad sí contribuye sustancialmente a la sostenibilidad\"),B152,0),IF(AND('Base-datos'!$B$745=\"Sí\",'Base-datos'!$B$746=\"Sí\",'Base-datos'!$B$747=\"Sí\"),IF(AND(D152=\"La actividad sí contribuye sustancialmente a la sostenibilidad\",E152=\"La actividad sí contribuye sustancialmente a la sostenibilidad\",C152=\"La actividad sí contribuye sustancialmente a la sostenibilidad\"),B152,0),IF(AND('Base-datos'!$B$745=\"\",'Base-datos'!$B$746=\"Sí\",'Base-datos'!$B$747=\"\"),IF(E152=\"La actividad sí contribuye sustancialmente a la sostenibilidad\",B152,0),IF(AND('Base-datos'!$B$745=\"\",'Base-datos'!$B$746=\"\",'Base-datos'!$B$747=\"Sí\"),IF(C152=\"La actividad sí contribuye sustancialmente a la sostenibilidad\",B152,0),IF(AND('Base-datos'!$B$745=\"\",'Base-datos'!$B$746=\"Sí\",'Base-datos'!$B$747=\"Sí\"),IF(AND(E152=\"La actividad sí contribuye sustancialmente a la sostenibilidad\",C152=\"La actividad sí contribuye sustancialmente a la sostenibilidad\"),B152,0),IF(AND('Base-datos'!$B$745=\"Sí\",'Base-datos'!$B$746=\"\",'Base-datos'!$B$747=\"Sí\"),IF(AND(D152=\"La actividad sí contribuye sustancialmente a la sostenibilidad\",C152=\"La actividad sí contribuye sustancialmente a la sostenibilidad\"),B152,0),\"Por definir\"))))))))","v":"Por definir"}]
[{"$f":"Manufactura!$C36","v":"Seleccione"},{"$f":"IF(Manufactura!$E36=Otro!B$12,Manufactura!$B36,\"\")","v":""},{"$f":"_xlfn.XLOOKUP(A153,'Base-datos'!$B$547:$B$552,'Base-datos'!$F$547:$F$552)","v":{"$error":"#N/A"}},{"$f":"_xlfn.XLOOKUP(A153,'Base-datos'!$B$547:$B$552,'Base-datos'!$C$547:$C$552)","v":{"$error":"#N/A"}},{"$f":"_xlfn.XLOOKUP(A153,'Base-datos'!$B$547:$B$552,'Base-datos'!$D$547:$D$552)","v":{"$error":"#N/A"}},null,null,{"$f":"IF(OR(F$140=\"La actividad no cumple con el total de los criterios de No Daño Significativo\",G$140=\"El sector no cumple con las salvaguardas mínimas\"),\"\",IF(AND('Base-datos'!$B$745=\"Sí\",'Base-datos'!$B$746=\"\",'Base-datos'!$B$747=\"\"),IF(D153=\"La actividad sí contribuye sustancialmente a la sostenibilidad\",B153,0),IF(AND('Base-datos'!$B$745=\"Sí\",'Base-datos'!$B$746=\"Sí\",'Base-datos'!$B$747=\"\"),IF(AND(D153=\"La actividad sí contribuye sustancialmente a la sostenibilidad\",E153=\"La actividad sí contribuye sustancialmente a la sostenibilidad\"),B153,0),IF(AND('Base-datos'!$B$745=\"Sí\",'Base-datos'!$B$746=\"Sí\",'Base-datos'!$B$747=\"Sí\"),IF(AND(D153=\"La actividad sí contribuye sustancialmente a la sostenibilidad\",E153=\"La actividad sí contribuye sustancialmente a la sostenibilidad\",C153=\"La actividad sí contribuye sustancialmente a la sostenibilidad\"),B153,0),IF(AND('Base-datos'!$B$745=\"\",'Base-datos'!$B$746=\"Sí\",'Base-datos'!$B$747=\"\"),IF(E153=\"La actividad sí contribuye sustancialmente a la sostenibilidad\",B153,0),IF(AND('Base-datos'!$B$745=\"\",'Base-datos'!$B$746=\"\",'Base-datos'!$B$747=\"Sí\"),IF(C153=\"La actividad sí contribuye sustancialmente a la sostenibilidad\",B153,0),IF(AND('Base-datos'!$B$745=\"\",'Base-datos'!$B$746=\"Sí\",'Base-datos'!$B$747=\"Sí\"),IF(AND(E153=\"La actividad sí contribuye sustancialmente a la sostenibilidad\",C153=\"La actividad sí contribuye sustancialmente a la sostenibilidad\"),B153,0),IF(AND('Base-datos'!$B$745=\"Sí\",'Base-datos'!$B$746=\"\",'Base-datos'!$B$747=\"Sí\"),IF(AND(D153=\"La actividad sí contribuye sustancialmente a la sostenibilidad\",C153=\"La actividad sí contribuye sustancialmente a la sostenibilidad\"),B153,0),\"Por definir\"))))))))","v":"Por definir"}]
[{"$f":"Manufactura!$C38","v":"Seleccione"},{"$f":"IF(Manufactura!$E38=Otro!B$12,Manufactura!$B38,\"\")","v":""},{"$f":"_xlfn.XLOOKUP(A154,'Base-datos'!$B$547:$B$552,'Base-datos'!$F$547:$F$552)","v":{"$error":"#N/A"}},{"$f":"_xlfn.XLOOKUP(A154,'Base-datos'!$B$547:$B$552,'Base-datos'!$C$547:$C$552)","v":{"$error":"#N/A"}},{"$f":"_xlfn.XLOOKUP(A154,'Base-datos'!$B$547:$B$552,'Base-datos'!$D$547:$D$552)","v":{"$error":"#N/A"}},null,null,{"$f":"IF(OR(F$140=\"La actividad no cumple con el total de los criterios de No Daño Significativo\",G$140=\"El sector no cumple con las salvaguardas mínimas\"),\"\",IF(AND('Base-datos'!$B$745=\"Sí\",'Base-datos'!$B$746=\"\",'Base-datos'!$B$747=\"\"),IF(D154=\"La actividad sí contribuye sustancialmente a la sostenibilidad\",B154,0),IF(AND('Base-datos'!$B$745=\"Sí\",'Base-datos'!$B$746=\"Sí\",'Base-datos'!$B$747=\"\"),IF(AND(D154=\"La actividad sí contribuye sustancialmente a la sostenibilidad\",E154=\"La actividad sí contribuye sustancialmente a la sostenibilidad\"),B154,0),IF(AND('Base-datos'!$B$745=\"Sí\",'Base-datos'!$B$746=\"Sí\",'Base-datos'!$B$747=\"Sí\"),IF(AND(D154=\"La actividad sí contribuye sustancialmente a la sostenibilidad\",E154=\"La actividad sí contribuye sustancialmente a la sostenibilidad\",C154=\"La actividad sí contribuye sustancialmente a la sostenibilidad\"),B154,0),IF(AND('Base-datos'!$B$745=\"\",'Base-datos'!$B$746=\"Sí\",'Base-datos'!$B$747=\"\"),IF(E154=\"La actividad sí contribuye sustancialmente a la sostenibilidad\",B154,0),IF(AND('Base-datos'!$B$745=\"\",'Base-datos'!$B$746=\"\",'Base-datos'!$B$747=\"Sí\"),IF(C154=\"La actividad sí contribuye sustancialmente a la sostenibilidad\",B154,0),IF(AND('Base-datos'!$B$745=\"\",'Base-datos'!$B$746=\"Sí\",'Base-datos'!$B$747=\"Sí\"),IF(AND(E154=\"La actividad sí contribuye sustancialmente a la sostenibilidad\",C154=\"La actividad sí contribuye sustancialmente a la sostenibilidad\"),B154,0),IF(AND('Base-datos'!$B$745=\"Sí\",'Base-datos'!$B$746=\"\",'Base-datos'!$B$747=\"Sí\"),IF(AND(D154=\"La actividad sí contribuye sustancialmente a la sostenibilidad\",C154=\"La actividad sí contribuye sustancialmente a la sostenibilidad\"),B154,0),\"Por definir\"))))))))","v":"Por definir"}]
[{"$f":"Manufactura!$C40","v":"Seleccione"},{"$f":"IF(Manufactura!$E40=Otro!B$12,Manufactura!$B40,\"\")","v":""},{"$f":"_xlfn.XLOOKUP(A155,'Base-datos'!$B$547:$B$552,'Base-datos'!$F$547:$F$552)","v":{"$error":"#N/A"}},{"$f":"_xlfn.XLOOKUP(A155,'Base-datos'!$B$547:$B$552,'Base-datos'!$C$547:$C$552)","v":{"$error":"#N/A"}},{"$f":"_xlfn.XLOOKUP(A155,'Base-datos'!$B$547:$B$552,'Base-datos'!$D$547:$D$552)","v":{"$error":"#N/A"}},null,null,{"$f":"IF(OR(F$140=\"La actividad no cumple con el total de los criterios de No Daño Significativo\",G$140=\"El sector no cumple con las salvaguardas mínimas\"),\"\",IF(AND('Base-datos'!$B$745=\"Sí\",'Base-datos'!$B$746=\"\",'Base-datos'!$B$747=\"\"),IF(D155=\"La actividad sí contribuye sustancialmente a la sostenibilidad\",B155,0),IF(AND('Base-datos'!$B$745=\"Sí\",'Base-datos'!$B$746=\"Sí\",'Base-datos'!$B$747=\"\"),IF(AND(D155=\"La actividad sí contribuye sustancialmente a la sostenibilidad\",E155=\"La actividad sí contribuye sustancialmente a la sostenibilidad\"),B155,0),IF(AND('Base-datos'!$B$745=\"Sí\",'Base-datos'!$B$746=\"Sí\",'Base-datos'!$B$747=\"Sí\"),IF(AND(D155=\"La actividad sí contribuye sustancialmente a la sostenibilidad\",E155=\"La actividad sí contribuye sustancialmente a la sostenibilidad\",C155=\"La actividad sí contribuye sustancialmente a la sostenibilidad\"),B155,0),IF(AND('Base-datos'!$B$745=\"\",'Base-datos'!$B$746=\"Sí\",'Base-datos'!$B$747=\"\"),IF(E155=\"La actividad sí contribuye sustancialmente a la sostenibilidad\",B155,0),IF(AND('Base-datos'!$B$745=\"\",'Base-datos'!$B$746=\"\",'Base-datos'!$B$747=\"Sí\"),IF(C155=\"La actividad sí contribuye sustancialmente a la sostenibilidad\",B155,0),IF(AND('Base-datos'!$B$745=\"\",'Base-datos'!$B$746=\"Sí\",'Base-datos'!$B$747=\"Sí\"),IF(AND(E155=\"La actividad sí contribuye sustancialmente a la sostenibilidad\",C155=\"La actividad sí contribuye sustancialmente a la sostenibilidad\"),B155,0),IF(AND('Base-datos'!$B$745=\"Sí\",'Base-datos'!$B$746=\"\",'Base-datos'!$B$747=\"Sí\"),IF(AND(D155=\"La actividad sí contribuye sustancialmente a la sostenibilidad\",C155=\"La actividad sí contribuye sustancialmente a la sostenibilidad\"),B155,0),\"Por definir\"))))))))","v":"Por definir"}]
[{"$f":"Manufactura!$C42","v":"Seleccione"},{"$f":"IF(Manufactura!$E42=Otro!B$12,Manufactura!$B42,\"\")","v":""},{"$f":"_xlfn.XLOOKUP(A156,'Base-datos'!$B$547:$B$552,'Base-datos'!$F$547:$F$552)","v":{"$error":"#N/A"}},{"$f":"_xlfn.XLOOKUP(A156,'Base-datos'!$B$547:$B$552,'Base-datos'!$C$547:$C$552)","v":{"$error":"#N/A"}},{"$f":"_xlfn.XLOOKUP(A156,'Base-datos'!$B$547:$B$552,'Base-datos'!$D$547:$D$552)","v":{"$error":"#N/A"}},null,null,{"$f":"IF(OR(F$140=\"La actividad no cumple con el total de los criterios de No Daño Significativo\",G$140=\"El sector no cumple con las salvaguardas mínimas\"),\"\",IF(AND('Base-datos'!$B$745=\"Sí\",'Base-datos'!$B$746=\"\",'Base-datos'!$B$747=\"\"),IF(D156=\"La actividad sí contribuye sustancialmente a la sostenibilidad\",B156,0),IF(AND('Base-datos'!$B$745=\"Sí\",'Base-datos'!$B$746=\"Sí\",'Base-datos'!$B$747=\"\"),IF(AND(D156=\"La actividad sí contribuye sustancialmente a la sostenibilidad\",E156=\"La actividad sí contribuye sustancialmente a la sostenibilidad\"),B156,0),IF(AND('Base-datos'!$B$745=\"Sí\",'Base-datos'!$B$746=\"Sí\",'Base-datos'!$B$747=\"Sí\"),IF(AND(D156=\"La actividad sí contribuye sustancialmente a la sostenibilidad\",E156=\"La actividad sí contribuye sustancialmente a la sostenibilidad\",C156=\"La actividad sí contribuye sustancialmente a la sostenibilidad\"),B156,0),IF(AND('Base-datos'!$B$745=\"\",'Base-datos'!$B$746=\"Sí\",'Base-datos'!$B$747=\"\"),IF(E156=\"La actividad sí contribuye sustancialmente a la sostenibilidad\",B156,0),IF(AND('Base-datos'!$B$745=\"\",'Base-datos'!$B$746=\"\",'Base-datos'!$B$747=\"Sí\"),IF(C156=\"La actividad sí contribuye sustancialmente a la sostenibilidad\",B156,0),IF(AND('Base-datos'!$B$745=\"\",'Base-datos'!$B$746=\"Sí\",'Base-datos'!$B$747=\"Sí\"),IF(AND(E156=\"La actividad sí contribuye sustancialmente a la sostenibilidad\",C156=\"La actividad sí contribuye sustancialmente a la sostenibilidad\"),B156,0),IF(AND('Base-datos'!$B$745=\"Sí\",'Base-datos'!$B$746=\"\",'Base-datos'!$B$747=\"Sí\"),IF(AND(D156=\"La actividad sí contribuye sustancialmente a la sostenibilidad\",C156=\"La actividad sí contribuye sustancialmente a la sostenibilidad\"),B156,0),\"Por definir\"))))))))","v":"Por definir"}]
[{"$f":"Manufactura!$C44","v":"Seleccione"},{"$f":"IF(Manufactura!$E44=Otro!B$12,Manufactura!$B44,\"\")","v":""},{"$f":"_xlfn.XLOOKUP(A157,'Base-datos'!$B$547:$B$552,'Base-datos'!$F$547:$F$552)","v":{"$error":"#N/A"}},{"$f":"_xlfn.XLOOKUP(A157,'Base-datos'!$B$547:$B$552,'Base-datos'!$C$547:$C$552)","v":{"$error":"#N/A"}},{"$f":"_xlfn.XLOOKUP(A157,'Base-datos'!$B$547:$B$552,'Base-datos'!$D$547:$D$552)","v":{"$error":"#N/A"}},null,null,{"$f":"IF(OR(F$140=\"La actividad no cumple con el total de los criterios de No Daño Significativo\",G$140=\"El sector no cumple con las salvaguardas mínimas\"),\"\",IF(AND('Base-datos'!$B$745=\"Sí\",'Base-datos'!$B$746=\"\",'Base-datos'!$B$747=\"\"),IF(D157=\"La actividad sí contribuye sustancialmente a la sostenibilidad\",B157,0),IF(AND('Base-datos'!$B$745=\"Sí\",'Base-datos'!$B$746=\"Sí\",'Base-datos'!$B$747=\"\"),IF(AND(D157=\"La actividad sí contribuye sustancialmente a la sostenibilidad\",E157=\"La actividad sí contribuye sustancialmente a la sostenibilidad\"),B157,0),IF(AND('Base-datos'!$B$745=\"Sí\",'Base-datos'!$B$746=\"Sí\",'Base-datos'!$B$747=\"Sí\"),IF(AND(D157=\"La actividad sí contribuye sustancialmente a la sostenibilidad\",E157=\"La actividad sí contribuye sustancialmente a la sostenibilidad\",C157=\"La actividad sí contribuye sustancialmente a la sostenibilidad\"),B157,0),IF(AND('Base-datos'!$B$745=\"\",'Base-datos'!$B$746=\"Sí\",'Base-datos'!$B$747=\"\"),IF(E157=\"La actividad sí contribuye sustancialmente a la sostenibilidad\",B157,0),IF(AND('Base-datos'!$B$745=\"\",'Base-datos'!$B$746=\"\",'Base-datos'!$B$747=\"Sí\"),IF(C157=\"La actividad sí contribuye sustancialmente a la sostenibilidad\",B157,0),IF(AND('Base-datos'!$B$745=\"\",'Base-datos'!$B$746=\"Sí\",'Base-datos'!$B$747=\"Sí\"),IF(AND(E157=\"La actividad sí contribuye sustancialmente a la sostenibilidad\",C157=\"La actividad sí contribuye sustancialmente a la sostenibilidad\"),B157,0),IF(AND('Base-datos'!$B$745=\"Sí\",'Base-datos'!$B$746=\"\",'Base-datos'!$B$747=\"Sí\"),IF(AND(D157=\"La actividad sí contribuye sustancialmente a la sostenibilidad\",C157=\"La actividad sí contribuye sustancialmente a la sostenibilidad\"),B157,0),\"Por definir\"))))))))","v":"Por definir"}]
[{"$f":"Manufactura!$C46","v":"Seleccione"},{"$f":"IF(Manufactura!$E46=Otro!B$12,Manufactura!$B46,\"\")","v":""},{"$f":"_xlfn.XLOOKUP(A158,'Base-datos'!$B$547:$B$552,'Base-datos'!$F$547:$F$552)","v":{"$error":"#N/A"}},{"$f":"_xlfn.XLOOKUP(A158,'Base-datos'!$B$547:$B$552,'Base-datos'!$C$547:$C$552)","v":{"$error":"#N/A"}},{"$f":"_xlfn.XLOOKUP(A158,'Base-datos'!$B$547:$B$552,'Base-datos'!$D$547:$D$552)","v":{"$error":"#N/A"}},null,null,{"$f":"IF(OR(F$140=\"La actividad no cumple con el total de los criterios de No Daño Significativo\",G$140=\"El sector no cumple con las salvaguardas mínimas\"),\"\",IF(AND('Base-datos'!$B$745=\"Sí\",'Base-datos'!$B$746=\"\",'Base-datos'!$B$747=\"\"),IF(D158=\"La actividad sí contribuye sustancialmente a la sostenibilidad\",B158,0),IF(AND('Base-datos'!$B$745=\"Sí\",'Base-datos'!$B$746=\"Sí\",'Base-datos'!$B$747=\"\"),IF(AND(D158=\"La actividad sí contribuye sustancialmente a la sostenibilidad\",E158=\"La actividad sí contribuye sustancialmente a la sostenibilidad\"),B158,0),IF(AND('Base-datos'!$B$745=\"Sí\",'Base-datos'!$B$746=\"Sí\",'Base-datos'!$B$747=\"Sí\"),IF(AND(D158=\"La actividad sí contribuye sustancialmente a la sostenibilidad\",E158=\"La actividad sí contribuye sustancialmente a la sostenibilidad\",C158=\"La actividad sí contribuye sustancialmente a la sostenibilidad\"),B158,0),IF(AND('Base-datos'!$B$745=\"\",'Base-datos'!$B$746=\"Sí\",'Base-datos'!$B$747=\"\"),IF(E158=\"La actividad sí contribuye sustancialmente a la sostenibilidad\",B158,0),IF(AND('Base-datos'!$B$745=\"\",'Base-datos'!$B$746=\"\",'Base-datos'!$B$747=\"Sí\"),IF(C158=\"La actividad sí contribuye sustancialmente a la sostenibilidad\",B158,0),IF(AND('Base-datos'!$B$745=\"\",'Base-datos'!$B$746=\"Sí\",'Base-datos'!$B$747=\"Sí\"),IF(AND(E158=\"La actividad sí contribuye sustancialmente a la sostenibilidad\",C158=\"La actividad sí contribuye sustancialmente a la sostenibilidad\"),B158,0),IF(AND('Base-datos'!$B$745=\"Sí\",'Base-datos'!$B$746=\"\",'Base-datos'!$B$747=\"Sí\"),IF(AND(D158=\"La actividad sí contribuye sustancialmente a la sostenibilidad\",C158=\"La actividad sí contribuye sustancialmente a la sostenibilidad\"),B158,0),\"Por definir\"))))))))","v":"Por definir"}]
[{"$f":"Manufactura!$C48","v":"Seleccione"},{"$f":"IF(Manufactura!$E48=Otro!B$12,Manufactura!$B48,\"\")","v":""},{"$f":"_xlfn.XLOOKUP(A159,'Base-datos'!$B$547:$B$552,'Base-datos'!$F$547:$F$552)","v":{"$error":"#N/A"}},{"$f":"_xlfn.XLOOKUP(A159,'Base-datos'!$B$547:$B$552,'Base-datos'!$C$547:$C$552)","v":{"$error":"#N/A"}},{"$f":"_xlfn.XLOOKUP(A159,'Base-datos'!$B$547:$B$552,'Base-datos'!$D$547:$D$552)","v":{"$error":"#N/A"}},null,null,{"$f":"IF(OR(F$140=\"La actividad no cumple con el total de los criterios de No Daño Significativo\",G$140=\"El sector no cumple con las salvaguardas mínimas\"),\"\",IF(AND('Base-datos'!$B$745=\"Sí\",'Base-datos'!$B$746=\"\",'Base-datos'!$B$747=\"\"),IF(D159=\"La actividad sí contribuye sustancialmente a la sostenibilidad\",B159,0),IF(AND('Base-datos'!$B$745=\"Sí\",'Base-datos'!$B$746=\"Sí\",'Base-datos'!$B$747=\"\"),IF(AND(D159=\"La actividad sí contribuye sustancialmente a la sostenibilidad\",E159=\"La actividad sí contribuye sustancialmente a la sostenibilidad\"),B159,0),IF(AND('Base-datos'!$B$745=\"Sí\",'Base-datos'!$B$746=\"Sí\",'Base-datos'!$B$747=\"Sí\"),IF(AND(D159=\"La actividad sí contribuye sustancialmente a la sostenibilidad\",E159=\"La actividad sí contribuye sustancialmente a la sostenibilidad\",C159=\"La actividad sí contribuye sustancialmente a la sostenibilidad\"),B159,0),IF(AND('Base-datos'!$B$745=\"\",'Base-datos'!$B$746=\"Sí\",'Base-datos'!$B$747=\"\"),IF(E159=\"La actividad sí contribuye sustancialmente a la sostenibilidad\",B159,0),IF(AND('Base-datos'!$B$745=\"\",'Base-datos'!$B$746=\"\",'Base-datos'!$B$747=\"Sí\"),IF(C159=\"La actividad sí contribuye sustancialmente a la sostenibilidad\",B159,0),IF(AND('Base-datos'!$B$745=\"\",'Base-datos'!$B$746=\"Sí\",'Base-datos'!$B$747=\"Sí\"),IF(AND(E159=\"La actividad sí contribuye sustancialmente a la sostenibilidad\",C159=\"La actividad sí contribuye sustancialmente a la sostenibilidad\"),B159,0),IF(AND('Base-datos'!$B$745=\"Sí\",'Base-datos'!$B$746=\"\",'Base-datos'!$B$747=\"Sí\"),IF(AND(D159=\"La actividad sí contribuye sustancialmente a la sostenibilidad\",C159=\"La actividad sí contribuye sustancialmente a la sostenibilidad\"),B159,0),\"Por definir\"))))))))","v":"Por definir"}]
["Transporte",null,null,null,null,null,null,{"$f":"SUM(IF(FREQUENCY(MATCH(A161:A180, A161:A180, 0), MATCH(A161:A180, A161:A180, 0)) > 0, IF(NOT(ISERROR(H161:H180)), H161:H180, 0)))","v":0}]
[{"$f":"Transporte!$C10","v":"Seleccione"},{"$f":"IF(Transporte!$E10=Otro!B$12,Transporte!$B10,\"\")","v":""},{"$f":"_xlfn.XLOOKUP(A161,'Base-datos'!$B$553:$B$570,'Base-datos'!$F$553:$F$570)","v":{"$error":"#N/A"}},{"$f":"_xlfn.XLOOKUP(A161,'Base-datos'!$B$553:$B$570,'Base-datos'!$C$553:$C$570)","v":{"$error":"#N/A"}},{"$f":"_xlfn.XLOOKUP(A161,'Base-datos'!$B$553:$B$570,'Base-datos'!$D$553:$D$570)","v":{"$error":"#N/A"}},{"$f":"IF(COUNTIF('Transporte-NDS'!G9:G84,\"No\")>0,\"La actividad no cumple con el total de los criterios de NDS\",\"La actividad cumple con los criterios de No Daño Significativo\")","v":"La actividad cumple con los criterios de No Daño Significativo"},{"$f":"IF(OR('Salvaguardas mínimas'!$G$10=\"Seleccione\",'Salvaguardas mínimas'!$G$13=\"Seleccione\",'Salvaguardas mínimas'!$G$16=\"Seleccione\",'Salvaguardas mínimas'!$G$7=\"Seleccione\"),\"No se han respondido todas las preguntas\",IF(OR('Salvaguardas mínimas'!$G$10=\"No\",'Salvaguardas mínimas'!$G$13=\"No\",'Salvaguardas mínimas'!$G$16=\"No\",'Salvaguardas mínimas'!$G$7=\"No\"),\"El sector no cumple con las salvaguardas mínimas\",\"La actividad sí cumple con las salvaguardas mínimas\"))","v":"No se han respondido todas las preguntas"},{"$f":"IF(OR(F$161=\"La actividad no cumple con el total de los criterios de No Daño Significativo\",G$161=\"El sector no cumple con las salvaguardas mínimas\"),\"\",IF(AND('Base-datos'!$B$750=\"Sí\",'Base-datos'!$B$751=\"\",'Base-datos'!$B$752=\"\"),IF(D161=\"La actividad sí contribuye sustancialmente a la sostenibilidad\",B161,0),IF(AND('Base-datos'!$B$750=\"Sí\",'Base-datos'!$B$751=\"Sí\",'Base-datos'!$B$752=\"\"),IF(AND(D161=\"La actividad sí contribuye sustancialmente a la sostenibilidad\",E161=\"La actividad sí contribuye sustancialmente a la sostenibilidad\"),B161,0),IF(AND('Base-datos'!$B$750=\"Sí\",'Base-datos'!$B$751=\"Sí\",'Base-datos'!$B$752=\"Sí\"),IF(AND(D161=\"La actividad sí contribuye sustancialmente a la sostenibilidad\",E161=\"La actividad sí contribuye sustancialmente a la sostenibilidad\",C161=\"La actividad sí contribuye sustancialmente a la sostenibilidad\"),B161,0),IF(AND('Base-datos'!$B$750=\"\",'Base-datos'!$B$751=\"Sí\",'Base-datos'!$B$752=\"\"),IF(E161=\"La actividad sí contribuye sustancialmente a la sostenibilidad\",B161,0),IF(AND('Base-datos'!$B$750=\"\",'Base-datos'!$B$751=\"\",'Base-datos'!$B$752=\"Sí\"),IF(C161=\"La actividad sí contribuye sustancialmente a la sostenibilidad\",B161,0),IF(AND('Base-datos'!$B$750=\"\",'Base-datos'!$B$751=\"Sí\",'Base-datos'!$B$752=\"Sí\"),IF(AND(E161=\"La actividad sí contribuye sustancialmente a la sostenibilidad\",C161=\"La actividad sí contribuye sustancialmente a la sostenibilidad\"),B161,0),IF(AND('Base-datos'!$B$750=\"Sí\",'Base-datos'!$B$751=\"\",'Base-datos'!$B$752=\"Sí\"),IF(AND(D161=\"La actividad sí contribuye sustancialmente a la sostenibilidad\",C161=\"La actividad sí contribuye sustancialmente a la sostenibilidad\"),B161,0),\"Por definir\"))))))))","v":"Por definir"}]
[{"$f":"Transporte!$C12","v":"Seleccione"},{"$f":"IF(Transporte!$E12=Otro!B$12,Transporte!$B12,\"\")","v":""},{"$f":"_xlfn.XLOOKUP(A162,'Base-datos'!$B$553:$B$570,'Base-datos'!$F$553:$F$570)","v":{"$error":"#N/A"}},{"$f":"_xlfn.XLOOKUP(A162,'Base-datos'!$B$553:$B$570,'Base-datos'!$C$553:$C$570)","v":{"$error":"#N/A"}},{"$f":"_xlfn.XLOOKUP(A162,'Base-datos'!$B$553:$B$570,'Base-datos'!$D$553:$D$570)","v":{"$error":"#N/A"}},null,null,{"$f":"IF(OR(F$161=\"La actividad no cumple con el total de los criterios de No Daño Significativo\",G$161=\"El sector no cumple con las salvaguardas mínimas\"),\"\",IF(AND('Base-datos'!$B$750=\"Sí\",'Base-datos'!$B$751=\"\",'Base-datos'!$B$752=\"\"),IF(D162=\"La actividad sí contribuye sustancialmente a la sostenibilidad\",B162,0),IF(AND('Base-datos'!$B$750=\"Sí\",'Base-datos'!$B$751=\"Sí\",'Base-datos'!$B$752=\"\"),IF(AND(D162=\"La actividad sí contribuye sustancialmente a la sostenibilidad\",E162=\"La actividad sí contribuye sustancialmente a la sostenibilidad\"),B162,0),IF(AND('Base-datos'!$B$750=\"Sí\",'Base-datos'!$B$751=\"Sí\",'Base-datos'!$B$752=\"Sí\"),IF(AND(D162=\"La actividad sí contribuye sustancialmente a la sostenibilidad\",E162=\"La actividad sí contribuye sustancialmente a la sostenibilidad\",C162=\"La actividad sí contribuye sustancialmente a la sostenibilidad\"),B162,0),IF(AND('Base-datos'!$B$750=\"\",'Base-datos'!$B$751=\"Sí\",'Base-datos'!$B$752=\"\"),IF(E162=\"La actividad sí contribuye sustancialmente a la sostenibilidad\",B162,0),IF(AND('Base-datos'!$B$750=\"\",'Base-datos'!$B$751=\"\",'Base-datos'!$B$752=\"Sí\"),IF(C162=\"La actividad sí contribuye sustancialmente a la sostenibilidad\",B162,0),IF(AND('Base-datos'!$B$750=\"\",'Base-datos'!$B$751=\"Sí\",'Base-datos'!$B$752=\"Sí\"),IF(AND(E162=\"La actividad sí contribuye sustancialmente a la sostenibilidad\",C162=\"La actividad sí contribuye sustancialmente a la sostenibilidad\"),B162,0),IF(AND('Base-datos'!$B$750=\"Sí\",'Base-datos'!$B$751=\"\",'Base-datos'!$B$752=\"Sí\"),IF(AND(D162=\"La actividad sí contribuye sustancialmente a la sostenibilidad\",C162=\"La actividad sí contribuye sustancialmente a la sostenibilidad\"),B162,0),\"Por definir\"))))))))","v":"Por definir"}]
[{"$f":"Transporte!$C14","v":"Seleccione"},{"$f":"IF(Transporte!$E14=Otro!B$12,Transporte!$B14,\"\")","v":""},{"$f":"_xlfn.XLOOKUP(A163,'Base-datos'!$B$553:$B$570,'Base-datos'!$F$553:$F$570)","v":{"$error":"#N/A"}},{"$f":"_xlfn.XLOOKUP(A163,'Base-datos'!$B$553:$B$570,'Base-datos'!$C$553:$C$570)","v":{"$error":"#N/A"}},{"$f":"_xlfn.XLOOKUP(A163,'Base-datos'!$B$553:$B$570,'Base-datos'!$D$553:$D$570)","v":{"$error":"#N/A"}},null,null,{"$f":"IF(OR(F$161=\"La actividad no cumple con el total de los criterios de No Daño Significativo\",G$161=\"El sector no cumple con las salvaguardas mínimas\"),\"\",IF(AND('Base-datos'!$B$750=\"Sí\",'Base-datos'!$B$751=\"\",'Base-datos'!$B$752=\"\"),IF(D163=\"La actividad sí contribuye sustancialmente a la sostenibilidad\",B163,0),IF(AND('Base-datos'!$B$750=\"Sí\",'Base-datos'!$B$751=\"Sí\",'Base-datos'!$B$752=\"\"),IF(AND(D163=\"La actividad sí contribuye sustancialmente a la sostenibilidad\",E163=\"La actividad sí contribuye sustancialmente a la sostenibilidad\"),B163,0),IF(AND('Base-datos'!$B$750=\"Sí\",'Base-datos'!$B$751=\"Sí\",'Base-datos'!$B$752=\"Sí\"),IF(AND(D163=\"La actividad sí contribuye sustancialmente a la sostenibilidad\",E163=\"La actividad sí contribuye sustancialmente a la sostenibilidad\",C163=\"La actividad sí contribuye sustancialmente a la sostenibilidad\"),B163,0),IF(AND('Base-datos'!$B$750=\"\",'Base-datos'!$B$751=\"Sí\",'Base-datos'!$B$752=\"\"),IF(E163=\"La actividad sí contribuye sustancialmente a la sostenibilidad\",B163,0),IF(AND('Base-datos'!$B$750=\"\",'Base-datos'!$B$751=\"\",'Base-datos'!$B$752=\"Sí\"),IF(C163=\"La actividad sí contribuye sustancialmente a la sostenibilidad\",B163,0),IF(AND('Base-datos'!$B$750=\"\",'Base-datos'!$B$751=\"Sí\",'Base-datos'!$B$752=\"Sí\"),IF(AND(E163=\"La actividad sí contribuye sustancialmente a la sostenibilidad\",C163=\"La actividad sí contribuye sustancialmente a la sostenibilidad\"),B163,0),IF(AND('Base-datos'!$B$750=\"Sí\",'Base-datos'!$B$751=\"\",'Base-datos'!$B$752=\"Sí\"),IF(AND(D163=\"La actividad sí contribuye sustancialmente a la sostenibilidad\",C163=\"La actividad sí contribuye sustancialmente a la sostenibilidad\"),B163,0),\"Por definir\"))))))))","v":"Por definir"}]
[{"$f":"Transporte!$C16","v":"Seleccione"},{"$f":"IF(Transporte!$E16=Otro!B$12,Transporte!$B16,\"\")","v":""},{"$f":"_xlfn.XLOOKUP(A164,'Base-datos'!$B$553:$B$570,'Base-datos'!$F$553:$F$570)","v":{"$error":"#N/A"}},{"$f":"_xlfn.XLOOKUP(A164,'Base-datos'!$B$553:$B$570,'Base-datos'!$C$553:$C$570)","v":{"$error":"#N/A"}},{"$f":"_xlfn.XLOOKUP(A164,'Base-datos'!$B$553:$B$570,'Base-datos'!$D$553:$D$570)","v":{"$error":"#N/A"}},null,null,{"$f":"IF(OR(F$161=\"La actividad no cumple con el total de los criterios de No Daño Significativo\",G$161=\"El sector no cumple con las salvaguardas mínimas\"),\"\",IF(AND('Base-datos'!$B$750=\"Sí\",'Base-datos'!$B$751=\"\",'Base-datos'!$B$752=\"\"),IF(D164=\"La actividad sí contribuye sustancialmente a la sostenibilidad\",B164,0),IF(AND('Base-datos'!$B$750=\"Sí\",'Base-datos'!$B$751=\"Sí\",'Base-datos'!$B$752=\"\"),IF(AND(D164=\"La actividad sí contribuye sustancialmente a la sostenibilidad\",E164=\"La actividad sí contribuye sustancialmente a la sostenibilidad\"),B164,0),IF(AND('Base-datos'!$B$750=\"Sí\",'Base-datos'!$B$751=\"Sí\",'Base-datos'!$B$752=\"Sí\"),IF(AND(D164=\"La actividad sí contribuye sustancialmente a la sostenibilidad\",E164=\"La actividad sí contribuye sustancialmente a la sostenibilidad\",C164=\"La actividad sí contribuye sustancialmente a la sostenibilidad\"),B164,0),IF(AND('Base-datos'!$B$750=\"\",'Base-datos'!$B$751=\"Sí\",'Base-datos'!$B$752=\"\"),IF(E164=\"La actividad sí contribuye sustancialmente a la sostenibilidad\",B164,0),IF(AND('Base-datos'!$B$750=\"\",'Base-datos'!$B$751=\"\",'Base-datos'!$B$752=\"Sí\"),IF(C164=\"La actividad sí contribuye sustancialmente a la sostenibilidad\",B164,0),IF(AND('Base-datos'!$B$750=\"\",'Base-datos'!$B$751=\"Sí\",'Base-datos'!$B$752=\"Sí\"),IF(AND(E164=\"La actividad sí contribuye sustancialmente a la sostenibilidad\",C164=\"La actividad sí contribuye sustancialmente a la sostenibilidad\"),B164,0),IF(AND('Base-datos'!$B$750=\"Sí\",'Base-datos'!$B$751=\"\",'Base-datos'!$B$752=\"Sí\"),IF(AND(D164=\"La actividad sí contribuye sustancialmente a la sostenibilidad\",C164=\"La actividad sí contribuye sustancialmente a la sostenibilidad\"),B164,0),\"Por definir\"))))))))","v":"Por definir"}]
[{"$f":"Transporte!$C18","v":"Seleccione"},{"$f":"IF(Transporte!$E18=Otro!B$12,Transporte!$B18,\"\")","v":""},{"$f":"_xlfn.XLOOKUP(A165,'Base-datos'!$B$553:$B$570,'Base-datos'!$F$553:$F$570)","v":{"$error":"#N/A"}},{"$f":"_xlfn.XLOOKUP(A165,'Base-datos'!$B$553:$B$570,'Base-datos'!$C$553:$C$570)","v":{"$error":"#N/A"}},{"$f":"_xlfn.XLOOKUP(A165,'Base-datos'!$B$553:$B$570,'Base-datos'!$D$553:$D$570)","v":{"$error":"#N/A"}},null,null,{"$f":"IF(OR(F$161=\"La actividad no cumple con el total de los criterios de No Daño Significativo\",G$161=\"El sector no cumple con las salvaguardas mínimas\"),\"\",IF(AND('Base-datos'!$B$750=\"Sí\",'Base-datos'!$B$751=\"\",'Base-datos'!$B$752=\"\"),IF(D165=\"La actividad sí contribuye sustancialmente a la sostenibilidad\",B165,0),IF(AND('Base-datos'!$B$750=\"Sí\",'Base-datos'!$B$751=\"Sí\",'Base-datos'!$B$752=\"\"),IF(AND(D165=\"La actividad sí contribuye sustancialmente a la sostenibilidad\",E165=\"La actividad sí contribuye sustancialmente a la sostenibilidad\"),B165,0),IF(AND('Base-datos'!$B$750=\"Sí\",'Base-datos'!$B$751=\"Sí\",'Base-datos'!$B$752=\"Sí\"),IF(AND(D165=\"La actividad sí contribuye sustancialmente a la sostenibilidad\",E165=\"La actividad sí contribuye sustancialmente a la sostenibilidad\",C165=\"La actividad sí contribuye sustancialmente a la sostenibilidad\"),B165,0),IF(AND('Base-datos'!$B$750=\"\",'Base-datos'!$B$751=\"Sí\",'Base-datos'!$B$752=\"\"),IF(E165=\"La actividad sí contribuye sustancialmente a la sostenibilidad\",B165,0),IF(AND('Base-datos'!$B$750=\"\",'Base-datos'!$B$751=\"\",'Base-datos'!$B$752=\"Sí\"),IF(C165=\"La actividad sí contribuye sustancialmente a la sostenibilidad\",B165,0),IF(AND('Base-datos'!$B$750=\"\",'Base-datos'!$B$751=\"Sí\",'Base-datos'!$B$752=\"Sí\"),IF(AND(E165=\"La actividad sí contribuye sustancialmente a la sostenibilidad\",C165=\"La actividad sí contribuye sustancialmente a la sostenibilidad\"),B165,0),IF(AND('Base-datos'!$B$750=\"Sí\",'Base-datos'!$B$751=\"\",'Base-datos'!$B$752=\"Sí\"),IF(AND(D165=\"La actividad sí contribuye sustancialmente a la sostenibilidad\",C165=\"La actividad sí contribuye sustancialmente a la sostenibilidad\"),B165,0),\"Por definir\"))))))))","v":"Por definir"}]
[{"$f":"Transporte!$C20","v":"Seleccione"},{"$f":"IF(Transporte!$E20=Otro!B$12,Transporte!$B20,\"\")","v":""},{"$f":"_xlfn.XLOOKUP(A166,'Base-datos'!$B$553:$B$570,'Base-datos'!$F$553:$F$570)","v":{"$error":"#N/A"}},{"$f":"_xlfn.XLOOKUP(A166,'Base-datos'!$B$553:$B$570,'Base-datos'!$C$553:$C$570)","v":{"$error":"#N/A"}},{"$f":"_xlfn.XLOOKUP(A166,'Base-datos'!$B$553:$B$570,'Base-datos'!$D$553:$D$570)","v":{"$error":"#N/A"}},null,null,{"$f":"IF(OR(F$161=\"La actividad no cumple con el total de los criterios de No Daño Significativo\",G$161=\"El sector no cumple con las salvaguardas mínimas\"),\"\",IF(AND('Base-datos'!$B$750=\"Sí\",'Base-datos'!$B$751=\"\",'Base-datos'!$B$752=\"\"),IF(D166=\"La actividad sí contribuye sustancialmente a la sostenibilidad\",B166,0),IF(AND('Base-datos'!$B$750=\"Sí\",'Base-datos'!$B$751=\"Sí\",'Base-datos'!$B$752=\"\"),IF(AND(D166=\"La actividad sí contribuye sustancialmente a la sostenibilidad\",E166=\"La actividad sí contribuye sustancialmente a la sostenibilidad\"),B166,0),IF(AND('Base-datos'!$B$750=\"Sí\",'Base-datos'!$B$751=\"Sí\",'Base-datos'!$B$752=\"Sí\"),IF(AND(D166=\"La actividad sí contribuye sustancialmente a la sostenibilidad\",E166=\"La actividad sí contribuye sustancialmente a la sostenibilidad\",C166=\"La actividad sí contribuye sustancialmente a la sostenibilidad\"),B166,0),IF(AND('Base-datos'!$B$750=\"\",'Base-datos'!$B$751=\"Sí\",'Base-datos'!$B$752=\"\"),IF(E166=\"La actividad sí contribuye sustancialmente a la sostenibilidad\",B166,0),IF(AND('Base-datos'!$B$750=\"\",'Base-datos'!$B$751=\"\",'Base-datos'!$B$752=\"Sí\"),IF(C166=\"La actividad sí contribuye sustancialmente a la sostenibilidad\",B166,0),IF(AND('Base-datos'!$B$750=\"\",'Base-datos'!$B$751=\"Sí\",'Base-datos'!$B$752=\"Sí\"),IF(AND(E166=\"La actividad sí contribuye sustancialmente a la sostenibilidad\",C166=\"La actividad sí contribuye sustancialmente a la sostenibilidad\"),B166,0),IF(AND('Base-datos'!$B$750=\"Sí\",'Base-datos'!$B$751=\"\",'Base-datos'!$B$752=\"Sí\"),IF(AND(D166=\"La actividad sí contribuye sustancialmente a la sostenibilidad\",C166=\"La actividad sí contribuye sustancialmente a la sostenibilidad\"),B166,0),\"Por definir\"))))))))","v":"Por definir"}]
[{"$f":"Transporte!$C22","v":"Seleccione"},{"$f":"IF(Transporte!$E22=Otro!B$12,Transporte!$B22,\"\")","v":""},{"$f":"_xlfn.XLOOKUP(A167,'Base-datos'!$B$553:$B$570,'Base-datos'!$F$553:$F$570)","v":{"$error":"#N/A"}},{"$f":"_xlfn.XLOOKUP(A167,'Base-datos'!$B$553:$B$570,'Base-datos'!$C$553:$C$570)","v":{"$error":"#N/A"}},{"$f":"_xlfn.XLOOKUP(A167,'Base-datos'!$B$553:$B$570,'Base-datos'!$D$553:$D$570)","v":{"$error":"#N/A"}},null,null,{"$f":"IF(OR(F$161=\"La actividad no cumple con el total de los criterios de No Daño Significativo\",G$161=\"El sector no cumple con las salvaguardas mínimas\"),\"\",IF(AND('Base-datos'!$B$750=\"Sí\",'Base-datos'!$B$751=\"\",'Base-datos'!$B$752=\"\"),IF(D167=\"La actividad sí contribuye sustancialmente a la sostenibilidad\",B167,0),IF(AND('Base-datos'!$B$750=\"Sí\",'Base-datos'!$B$751=\"Sí\",'Base-datos'!$B$752=\"\"),IF(AND(D167=\"La actividad sí contribuye sustancialmente a la sostenibilidad\",E167=\"La actividad sí contribuye sustancialmente a la sostenibilidad\"),B167,0),IF(AND('Base-datos'!$B$750=\"Sí\",'Base-datos'!$B$751=\"Sí\",'Base-datos'!$B$752=\"Sí\"),IF(AND(D167=\"La actividad sí contribuye sustancialmente a la sostenibilidad\",E167=\"La actividad sí contribuye sustancialmente a la sostenibilidad\",C167=\"La actividad sí contribuye sustancialmente a la sostenibilidad\"),B167,0),IF(AND('Base-datos'!$B$750=\"\",'Base-datos'!$B$751=\"Sí\",'Base-datos'!$B$752=\"\"),IF(E167=\"La actividad sí contribuye sustancialmente a la sostenibilidad\",B167,0),IF(AND('Base-datos'!$B$750=\"\",'Base-datos'!$B$751=\"\",'Base-datos'!$B$752=\"Sí\"),IF(C167=\"La actividad sí contribuye sustancialmente a la sostenibilidad\",B167,0),IF(AND('Base-datos'!$B$750=\"\",'Base-datos'!$B$751=\"Sí\",'Base-datos'!$B$752=\"Sí\"),IF(AND(E167=\"La actividad sí contribuye sustancialmente a la sostenibilidad\",C167=\"La actividad sí contribuye sustancialmente a la sostenibilidad\"),B167,0),IF(AND('Base-datos'!$B$750=\"Sí\",'Base-datos'!$B$751=\"\",'Base-datos'!$B$752=\"Sí\"),IF(AND(D167=\"La actividad sí contribuye sustancialmente a la sostenibilidad\",C167=\"La actividad sí contribuye sustancialmente a la sostenibilidad\"),B167,0),\"Por definir\"))))))))","v":"Por definir"}]
[{"$f":"Transporte!$C24","v":"Seleccione"},{"$f":"IF(Transporte!$E24=Otro!B$12,Transporte!$B24,\"\")","v":""},{"$f":"_xlfn.XLOOKUP(A168,'Base-datos'!$B$553:$B$570,'Base-datos'!$F$553:$F$570)","v":{"$error":"#N/A"}},{"$f":"_xlfn.XLOOKUP(A168,'Base-datos'!$B$553:$B$570,'Base-datos'!$C$553:$C$570)","v":{"$error":"#N/A"}},{"$f":"_xlfn.XLOOKUP(A168,'Base-datos'!$B$553:$B$570,'Base-datos'!$D$553:$D$570)","v":{"$error":"#N/A"}},null,null,{"$f":"IF(OR(F$161=\"La actividad no cumple con el total de los criterios de No Daño Significativo\",G$161=\"El sector no cumple con las salvaguardas mínimas\"),\"\",IF(AND('Base-datos'!$B$750=\"Sí\",'Base-datos'!$B$751=\"\",'Base-datos'!$B$752=\"\"),IF(D168=\"La actividad sí contribuye sustancialmente a la sostenibilidad\",B168,0),IF(AND('Base-datos'!$B$750=\"Sí\",'Base-datos'!$B$751=\"Sí\",'Base-datos'!$B$752=\"\"),IF(AND(D168=\"La actividad sí contribuye sustancialmente a la sostenibilidad\",E168=\"La actividad sí contribuye sustancialmente a la sostenibilidad\"),B168,0),IF(AND('Base-datos'!$B$750=\"Sí\",'Base-datos'!$B$751=\"Sí\",'Base-datos'!$B$752=\"Sí\"),IF(AND(D168=\"La actividad sí contribuye sustancialmente a la sostenibilidad\",E168=\"La actividad sí contribuye sustancialmente a la sostenibilidad\",C168=\"La actividad sí contribuye sustancialmente a la sostenibilidad\"),B168,0),IF(AND('Base-datos'!$B$750=\"\",'Base-datos'!$B$751=\"Sí\",'Base-datos'!$B$752=\"\"),IF(E168=\"La actividad sí contribuye sustancialmente a la sostenibilidad\",B168,0),IF(AND('Base-datos'!$B$750=\"\",'Base-datos'!$B$751=\"\",'Base-datos'!$B$752=\"Sí\"),IF(C168=\"La actividad sí contribuye sustancialmente a la sostenibilidad\",B168,0),IF(AND('Base-datos'!$B$750=\"\",'Base-datos'!$B$751=\"Sí\",'Base-datos'!$B$752=\"Sí\"),IF(AND(E168=\"La actividad sí contribuye sustancialmente a la sostenibilidad\",C168=\"La actividad sí contribuye sustancialmente a la sostenibilidad\"),B168,0),IF(AND('Base-datos'!$B$750=\"Sí\",'Base-datos'!$B$751=\"\",'Base-datos'!$B$752=\"Sí\"),IF(AND(D168=\"La actividad sí contribuye sustancialmente a la sostenibilidad\",C168=\"La actividad sí contribuye sustancialmente a la sostenibilidad\"),B168,0),\"Por definir\"))))))))","v":"Por definir"}]
[{"$f":"Transporte!$C26","v":"Seleccione"},{"$f":"IF(Transporte!$E26=Otro!B$12,Transporte!$B26,\"\")","v":""},{"$f":"_xlfn.XLOOKUP(A169,'Base-datos'!$B$553:$B$570,'Base-datos'!$F$553:$F$570)","v":{"$error":"#N/A"}},{"$f":"_xlfn.XLOOKUP(A169,'Base-datos'!$B$553:$B$570,'Base-datos'!$C$553:$C$570)","v":{"$error":"#N/A"}},{"$f":"_xlfn.XLOOKUP(A169,'Base-datos'!$B$553:$B$570,'Base-datos'!$D$553:$D$570)","v":{"$error":"#N/A"}},null,null,{"$f":"IF(OR(F$161=\"La actividad no cumple con el total de los criterios de No Daño Significativo\",G$161=\"El sector no cumple con las salvaguardas mínimas\"),\"\",IF(AND('Base-datos'!$B$750=\"Sí\",'Base-datos'!$B$751=\"\",'Base-datos'!$B$752=\"\"),IF(D169=\"La actividad sí contribuye sustancialmente a la sostenibilidad\",B169,0),IF(AND('Base-datos'!$B$750=\"Sí\",'Base-datos'!$B$751=\"Sí\",'Base-datos'!$B$752=\"\"),IF(AND(D169=\"La actividad sí contribuye sustancialmente a la sostenibilidad\",E169=\"La actividad sí contribuye sustancialmente a la sostenibilidad\"),B169,0),IF(AND('Base-datos'!$B$750=\"Sí\",'Base-datos'!$B$751=\"Sí\",'Base-datos'!$B$752=\"Sí\"),IF(AND(D169=\"La actividad sí contribuye sustancialmente a la sostenibilidad\",E169=\"La actividad sí contribuye sustancialmente a la sostenibilidad\",C169=\"La actividad sí contribuye sustancialmente a la sostenibilidad\"),B169,0),IF(AND('Base-datos'!$B$750=\"\",'Base-datos'!$B$751=\"Sí\",'Base-datos'!$B$752=\"\"),IF(E169=\"La actividad sí contribuye sustancialmente a la sostenibilidad\",B169,0),IF(AND('Base-datos'!$B$750=\"\",'Base-datos'!$B$751=\"\",'Base-datos'!$B$752=\"Sí\"),IF(C169=\"La actividad sí contribuye sustancialmente a la sostenibilidad\",B169,0),IF(AND('Base-datos'!$B$750=\"\",'Base-datos'!$B$751=\"Sí\",'Base-datos'!$B$752=\"Sí\"),IF(AND(E169=\"La actividad sí contribuye sustancialmente a la sostenibilidad\",C169=\"La actividad sí contribuye sustancialmente a la sostenibilidad\"),B169,0),IF(AND('Base-datos'!$B$750=\"Sí\",'Base-datos'!$B$751=\"\",'Base-datos'!$B$752=\"Sí\"),IF(AND(D169=\"La actividad sí contribuye sustancialmente a la sostenibilidad\",C169=\"La actividad sí contribuye sustancialmente a la sostenibilidad\"),B169,0),\"Por definir\"))))))))","v":"Por definir"}]
[{"$f":"Transporte!$C28","v":"Seleccione"},{"$f":"IF(Transporte!$E28=Otro!B$12,Transporte!$B28,\"\")","v":""},{"$f":"_xlfn.XLOOKUP(A170,'Base-datos'!$B$553:$B$570,'Base-datos'!$F$553:$F$570)","v":{"$error":"#N/A"}},{"$f":"_xlfn.XLOOKUP(A170,'Base-datos'!$B$553:$B$570,'Base-datos'!$C$553:$C$570)","v":{"$error":"#N/A"}},{"$f":"_xlfn.XLOOKUP(A170,'Base-datos'!$B$553:$B$570,'Base-datos'!$D$553:$D$570)","v":{"$error":"#N/A"}},null,null,{"$f":"IF(OR(F$161=\"La actividad no cumple con el total de los criterios de No Daño Significativo\",G$161=\"El sector no cumple con las salvaguardas mínimas\"),\"\",IF(AND('Base-datos'!$B$750=\"Sí\",'Base-datos'!$B$751=\"\",'Base-datos'!$B$752=\"\"),IF(D170=\"La actividad sí contribuye sustancialmente a la sostenibilidad\",B170,0),IF(AND('Base-datos'!$B$750=\"Sí\",'Base-datos'!$B$751=\"Sí\",'Base-datos'!$B$752=\"\"),IF(AND(D170=\"La actividad sí contribuye sustancialmente a la sostenibilidad\",E170=\"La actividad sí contribuye sustancialmente a la sostenibilidad\"),B170,0),IF(AND('Base-datos'!$B$750=\"Sí\",'Base-datos'!$B$751=\"Sí\",'Base-datos'!$B$752=\"Sí\"),IF(AND(D170=\"La actividad sí contribuye sustancialmente a la sostenibilidad\",E170=\"La actividad sí contribuye sustancialmente a la sostenibilidad\",C170=\"La actividad sí contribuye sustancialmente a la sostenibilidad\"),B170,0),IF(AND('Base-datos'!$B$750=\"\",'Base-datos'!$B$751=\"Sí\",'Base-datos'!$B$752=\"\"),IF(E170=\"La actividad sí contribuye sustancialmente a la sostenibilidad\",B170,0),IF(AND('Base-datos'!$B$750=\"\",'Base-datos'!$B$751=\"\",'Base-datos'!$B$752=\"Sí\"),IF(C170=\"La actividad sí contribuye sustancialmente a la sostenibilidad\",B170,0),IF(AND('Base-datos'!$B$750=\"\",'Base-datos'!$B$751=\"Sí\",'Base-datos'!$B$752=\"Sí\"),IF(AND(E170=\"La actividad sí contribuye sustancialmente a la sostenibilidad\",C170=\"La actividad sí contribuye sustancialmente a la sostenibilidad\"),B170,0),IF(AND('Base-datos'!$B$750=\"Sí\",'Base-datos'!$B$751=\"\",'Base-datos'!$B$752=\"Sí\"),IF(AND(D170=\"La actividad sí contribuye sustancialmente a la sostenibilidad\",C170=\"La actividad sí contribuye sustancialmente a la sostenibilidad\"),B170,0),\"Por definir\"))))))))","v":"Por definir"}]
[{"$f":"Transporte!$C30","v":"Seleccione"},{"$f":"IF(Transporte!$E30=Otro!B$12,Transporte!$B30,\"\")","v":""},{"$f":"_xlfn.XLOOKUP(A171,'Base-datos'!$B$553:$B$570,'Base-datos'!$F$553:$F$570)","v":{"$error":"#N/A"}},{"$f":"_xlfn.XLOOKUP(A171,'Base-datos'!$B$553:$B$570,'Base-datos'!$C$553:$C$570)","v":{"$error":"#N/A"}},{"$f":"_xlfn.XLOOKUP(A171,'Base-datos'!$B$553:$B$570,'Base-datos'!$D$553:$D$570)","v":{"$error":"#N/A"}},null,null,{"$f":"IF(OR(F$161=\"La actividad no cumple con el total de los criterios de No Daño Significativo\",G$161=\"El sector no cumple con las salvaguardas mínimas\"),\"\",IF(AND('Base-datos'!$B$750=\"Sí\",'Base-datos'!$B$751=\"\",'Base-datos'!$B$752=\"\"),IF(D171=\"La actividad sí contribuye sustancialmente a la sostenibilidad\",B171,0),IF(AND('Base-datos'!$B$750=\"Sí\",'Base-datos'!$B$751=\"Sí\",'Base-datos'!$B$752=\"\"),IF(AND(D171=\"La actividad sí contribuye sustancialmente a la sostenibilidad\",E171=\"La actividad sí contribuye sustancialmente a la sostenibilidad\"),B171,0),IF(AND('Base-datos'!$B$750=\"Sí\",'Base-datos'!$B$751=\"Sí\",'Base-datos'!$B$752=\"Sí\"),IF(AND(D171=\"La actividad sí contribuye sustancialmente a la sostenibilidad\",E171=\"La actividad sí contribuye sustancialmente a la sostenibilidad\",C171=\"La actividad sí contribuye sustancialmente a la sostenibilidad\"),B171,0),IF(AND('Base-datos'!$B$750=\"\",'Base-datos'!$B$751=\"Sí\",'Base-datos'!$B$752=\"\"),IF(E171=\"La actividad sí contribuye sustancialmente a la sostenibilidad\",B171,0),IF(AND('Base-datos'!$B$750=\"\",'Base-datos'!$B$751=\"\",'Base-datos'!$B$752=\"Sí\"),IF(C171=\"La actividad sí contribuye sustancialmente a la sostenibilidad\",B171,0),IF(AND('Base-datos'!$B$750=\"\",'Base-datos'!$B$751=\"Sí\",'Base-datos'!$B$752=\"Sí\"),IF(AND(E171=\"La actividad sí contribuye sustancialmente a la sostenibilidad\",C171=\"La actividad sí contribuye sustancialmente a la sostenibilidad\"),B171,0),IF(AND('Base-datos'!$B$750=\"Sí\",'Base-datos'!$B$751=\"\",'Base-datos'!$B$752=\"Sí\"),IF(AND(D171=\"La actividad sí contribuye sustancialmente a la sostenibilidad\",C171=\"La actividad sí contribuye sustancialmente a la sostenibilidad\"),B171,0),\"Por definir\"))))))))","v":"Por definir"}]
[{"$f":"Transporte!$C32","v":"Seleccione"},{"$f":"IF(Transporte!$E32=Otro!B$12,Transporte!$B32,\"\")","v":""},{"$f":"_xlfn.XLOOKUP(A172,'Base-datos'!$B$553:$B$570,'Base-datos'!$F$553:$F$570)","v":{"$error":"#N/A"}},{"$f":"_xlfn.XLOOKUP(A172,'Base-datos'!$B$553:$B$570,'Base-datos'!$C$553:$C$570)","v":{"$error":"#N/A"}},{"$f":"_xlfn.XLOOKUP(A172,'Base-datos'!$B$553:$B$570,'Base-datos'!$D$553:$D$570)","v":{"$error":"#N/A"}},null,null,{"$f":"IF(OR(F$161=\"La actividad no cumple con el total de los criterios de No Daño Significativo\",G$161=\"El sector no cumple con las salvaguardas mínimas\"),\"\",IF(AND('Base-datos'!$B$750=\"Sí\",'Base-datos'!$B$751=\"\",'Base-datos'!$B$752=\"\"),IF(D172=\"La actividad sí contribuye sustancialmente a la sostenibilidad\",B172,0),IF(AND('Base-datos'!$B$750=\"Sí\",'Base-datos'!$B$751=\"Sí\",'Base-datos'!$B$752=\"\"),IF(AND(D172=\"La actividad sí contribuye sustancialmente a la sostenibilidad\",E172=\"La actividad sí contribuye sustancialmente a la sostenibilidad\"),B172,0),IF(AND('Base-datos'!$B$750=\"Sí\",'Base-datos'!$B$751=\"Sí\",'Base-datos'!$B$752=\"Sí\"),IF(AND(D172=\"La actividad sí contribuye sustancialmente a la sostenibilidad\",E172=\"La actividad sí contribuye sustancialmente a la sostenibilidad\",C172=\"La actividad sí contribuye sustancialmente a la sostenibilidad\"),B172,0),IF(AND('Base-datos'!$B$750=\"\",'Base-datos'!$B$751=\"Sí\",'Base-datos'!$B$752=\"\"),IF(E172=\"La actividad sí contribuye sustancialmente a la sostenibilidad\",B172,0),IF(AND('Base-datos'!$B$750=\"\",'Base-datos'!$B$751=\"\",'Base-datos'!$B$752=\"Sí\"),IF(C172=\"La actividad sí contribuye sustancialmente a la sostenibilidad\",B172,0),IF(AND('Base-datos'!$B$750=\"\",'Base-datos'!$B$751=\"Sí\",'Base-datos'!$B$752=\"Sí\"),IF(AND(E172=\"La actividad sí contribuye sustancialmente a la sostenibilidad\",C172=\"La actividad sí contribuye sustancialmente a la sostenibilidad\"),B172,0),IF(AND('Base-datos'!$B$750=\"Sí\",'Base-datos'!$B$751=\"\",'Base-datos'!$B$752=\"Sí\"),IF(AND(D172=\"La actividad sí contribuye sustancialmente a la sostenibilidad\",C172=\"La actividad sí contribuye sustancialmente a la sostenibilidad\"),B172,0),\"Por definir\"))))))))","v":"Por definir"}]
[{"$f":"Transporte!$C34","v":"Seleccione"},{"$f":"IF(Transporte!$E34=Otro!B$12,Transporte!$B34,\"\")","v":""},{"$f":"_xlfn.XLOOKUP(A173,'Base-datos'!$B$553:$B$570,'Base-datos'!$F$553:$F$570)","v":{"$error":"#N/A"}},{"$f":"_xlfn.XLOOKUP(A173,'Base-datos'!$B$553:$B$570,'Base-datos'!$C$553:$C$570)","v":{"$error":"#N/A"}},{"$f":"_xlfn.XLOOKUP(A173,'Base-datos'!$B$553:$B$570,'Base-datos'!$D$553:$D$570)","v":{"$error":"#N/A"}},null,null,{"$f":"IF(OR(F$161=\"La actividad no cumple con el total de los criterios de No Daño Significativo\",G$161=\"El sector no cumple con las salvaguardas mínimas\"),\"\",IF(AND('Base-datos'!$B$750=\"Sí\",'Base-datos'!$B$751=\"\",'Base-datos'!$B$752=\"\"),IF(D173=\"La actividad sí contribuye sustancialmente a la sostenibilidad\",B173,0),IF(AND('Base-datos'!$B$750=\"Sí\",'Base-datos'!$B$751=\"Sí\",'Base-datos'!$B$752=\"\"),IF(AND(D173=\"La actividad sí contribuye sustancialmente a la sostenibilidad\",E173=\"La actividad sí contribuye sustancialmente a la sostenibilidad\"),B173,0),IF(AND('Base-datos'!$B$750=\"Sí\",'Base-datos'!$B$751=\"Sí\",'Base-datos'!$B$752=\"Sí\"),IF(AND(D173=\"La actividad sí contribuye sustancialmente a la sostenibilidad\",E173=\"La actividad sí contribuye sustancialmente a la sostenibilidad\",C173=\"La actividad sí contribuye sustancialmente a la sostenibilidad\"),B173,0),IF(AND('Base-datos'!$B$750=\"\",'Base-datos'!$B$751=\"Sí\",'Base-datos'!$B$752=\"\"),IF(E173=\"La actividad sí contribuye sustancialmente a la sostenibilidad\",B173,0),IF(AND('Base-datos'!$B$750=\"\",'Base-datos'!$B$751=\"\",'Base-datos'!$B$752=\"Sí\"),IF(C173=\"La actividad sí contribuye sustancialmente a la sostenibilidad\",B173,0),IF(AND('Base-datos'!$B$750=\"\",'Base-datos'!$B$751=\"Sí\",'Base-datos'!$B$752=\"Sí\"),IF(AND(E173=\"La actividad sí contribuye sustancialmente a la sostenibilidad\",C173=\"La actividad sí contribuye sustancialmente a la sostenibilidad\"),B173,0),IF(AND('Base-datos'!$B$750=\"Sí\",'Base-datos'!$B$751=\"\",'Base-datos'!$B$752=\"Sí\"),IF(AND(D173=\"La actividad sí contribuye sustancialmente a la sostenibilidad\",C173=\"La actividad sí contribuye sustancialmente a la sostenibilidad\"),B173,0),\"Por definir\"))))))))","v":"Por definir"}]
[{"$f":"Transporte!$C36","v":"Seleccione"},{"$f":"IF(Transporte!$E36=Otro!B$12,Transporte!$B36,\"\")","v":""},{"$f":"_xlfn.XLOOKUP(A174,'Base-datos'!$B$553:$B$570,'Base-datos'!$F$553:$F$570)","v":{"$error":"#N/A"}},{"$f":"_xlfn.XLOOKUP(A174,'Base-datos'!$B$553:$B$570,'Base-datos'!$C$553:$C$570)","v":{"$error":"#N/A"}},{"$f":"_xlfn.XLOOKUP(A174,'Base-datos'!$B$553:$B$570,'Base-datos'!$D$553:$D$570)","v":{"$error":"#N/A"}},null,null,{"$f":"IF(OR(F$161=\"La actividad no cumple con el total de los criterios de No Daño Significativo\",G$161=\"El sector no cumple con las salvaguardas mínimas\"),\"\",IF(AND('Base-datos'!$B$750=\"Sí\",'Base-datos'!$B$751=\"\",'Base-datos'!$B$752=\"\"),IF(D174=\"La actividad sí contribuye sustancialmente a la sostenibilidad\",B174,0),IF(AND('Base-datos'!$B$750=\"Sí\",'Base-datos'!$B$751=\"Sí\",'Base-datos'!$B$752=\"\"),IF(AND(D174=\"La actividad sí contribuye sustancialmente a la sostenibilidad\",E174=\"La actividad sí contribuye sustancialmente a la sostenibilidad\"),B174,0),IF(AND('Base-datos'!$B$750=\"Sí\",'Base-datos'!$B$751=\"Sí\",'Base-datos'!$B$752=\"Sí\"),IF(AND(D174=\"La actividad sí contribuye sustancialmente a la sostenibilidad\",E174=\"La actividad sí contribuye sustancialmente a la sostenibilidad\",C174=\"La actividad sí contribuye sustancialmente a la sostenibilidad\"),B174,0),IF(AND('Base-datos'!$B$750=\"\",'Base-datos'!$B$751=\"Sí\",'Base-datos'!$B$752=\"\"),IF(E174=\"La actividad sí contribuye sustancialmente a la sostenibilidad\",B174,0),IF(AND('Base-datos'!$B$750=\"\",'Base-datos'!$B$751=\"\",'Base-datos'!$B$752=\"Sí\"),IF(C174=\"La actividad sí contribuye sustancialmente a la sostenibilidad\",B174,0),IF(AND('Base-datos'!$B$750=\"\",'Base-datos'!$B$751=\"Sí\",'Base-datos'!$B$752=\"Sí\"),IF(AND(E174=\"La actividad sí contribuye sustancialmente a la sostenibilidad\",C174=\"La actividad sí contribuye sustancialmente a la sostenibilidad\"),B174,0),IF(AND('Base-datos'!$B$750=\"Sí\",'Base-datos'!$B$751=\"\",'Base-datos'!$B$752=\"Sí\"),IF(AND(D174=\"La actividad sí contribuye sustancialmente a la sostenibilidad\",C174=\"La actividad sí contribuye sustancialmente a la sostenibilidad\"),B174,0),\"Por definir\"))))))))","v":"Por definir"}]
[{"$f":"Transporte!$C38","v":"Seleccione"},{"$f":"IF(Transporte!$E38=Otro!B$12,Transporte!$B38,\"\")","v":""},{"$f":"_xlfn.XLOOKUP(A175,'Base-datos'!$B$553:$B$570,'Base-datos'!$F$553:$F$570)","v":{"$error":"#N/A"}},{"$f":"_xlfn.XLOOKUP(A175,'Base-datos'!$B$553:$B$570,'Base-datos'!$C$553:$C$570)","v":{"$error":"#N/A"}},{"$f":"_xlfn.XLOOKUP(A175,'Base-datos'!$B$553:$B$570,'Base-datos'!$D$553:$D$570)","v":{"$error":"#N/A"}},null,null,{"$f":"IF(OR(F$161=\"La actividad no cumple con el total de los criterios de No Daño Significativo\",G$161=\"El sector no cumple con las salvaguardas mínimas\"),\"\",IF(AND('Base-datos'!$B$750=\"Sí\",'Base-datos'!$B$751=\"\",'Base-datos'!$B$752=\"\"),IF(D175=\"La actividad sí contribuye sustancialmente a la sostenibilidad\",B175,0),IF(AND('Base-datos'!$B$750=\"Sí\",'Base-datos'!$B$751=\"Sí\",'Base-datos'!$B$752=\"\"),IF(AND(D175=\"La actividad sí contribuye sustancialmente a la sostenibilidad\",E175=\"La actividad sí contribuye sustancialmente a la sostenibilidad\"),B175,0),IF(AND('Base-datos'!$B$750=\"Sí\",'Base-datos'!$B$751=\"Sí\",'Base-datos'!$B$752=\"Sí\"),IF(AND(D175=\"La actividad sí contribuye sustancialmente a la sostenibilidad\",E175=\"La actividad sí contribuye sustancialmente a la sostenibilidad\",C175=\"La actividad sí contribuye sustancialmente a la sostenibilidad\"),B175,0),IF(AND('Base-datos'!$B$750=\"\",'Base-datos'!$B$751=\"Sí\",'Base-datos'!$B$752=\"\"),IF(E175=\"La actividad sí contribuye sustancialmente a la sostenibilidad\",B175,0),IF(AND('Base-datos'!$B$750=\"\",'Base-datos'!$B$751=\"\",'Base-datos'!$B$752=\"Sí\"),IF(C175=\"La actividad sí contribuye sustancialmente a la sostenibilidad\",B175,0),IF(AND('Base-datos'!$B$750=\"\",'Base-datos'!$B$751=\"Sí\",'Base-datos'!$B$752=\"Sí\"),IF(AND(E175=\"La actividad sí contribuye sustancialmente a la sostenibilidad\",C175=\"La actividad sí contribuye sustancialmente a la sostenibilidad\"),B175,0),IF(AND('Base-datos'!$B$750=\"Sí\",'Base-datos'!$B$751=\"\",'Base-datos'!$B$752=\"Sí\"),IF(AND(D175=\"La actividad sí contribuye sustancialmente a la sostenibilidad\",C175=\"La actividad sí contribuye sustancialmente a la sostenibilidad\"),B175,0),\"Por definir\"))))))))","v":"Por definir"}]
[{"$f":"Transporte!$C40","v":"Seleccione"},{"$f":"IF(Transporte!$E40=Otro!B$12,Transporte!$B40,\"\")","v":""},{"$f":"_xlfn.XLOOKUP(A176,'Base-datos'!$B$553:$B$570,'Base-datos'!$F$553:$F$570)","v":{"$error":"#N/A"}},{"$f":"_xlfn.XLOOKUP(A176,'Base-datos'!$B$553:$B$570,'Base-datos'!$C$553:$C$570)","v":{"$error":"#N/A"}},{"$f":"_xlfn.XLOOKUP(A176,'Base-datos'!$B$553:$B$570,'Base-datos'!$D$553:$D$570)","v":{"$error":"#N/A"}},null,null,{"$f":"IF(OR(F$161=\"La actividad no cumple con el total de los criterios de No Daño Significativo\",G$161=\"El sector no cumple con las salvaguardas mínimas\"),\"\",IF(AND('Base-datos'!$B$750=\"Sí\",'Base-datos'!$B$751=\"\",'Base-datos'!$B$752=\"\"),IF(D176=\"La actividad sí contribuye sustancialmente a la sostenibilidad\",B176,0),IF(AND('Base-datos'!$B$750=\"Sí\",'Base-datos'!$B$751=\"Sí\",'Base-datos'!$B$752=\"\"),IF(AND(D176=\"La actividad sí contribuye sustancialmente a la sostenibilidad\",E176=\"La actividad sí contribuye sustancialmente a la sostenibilidad\"),B176,0),IF(AND('Base-datos'!$B$750=\"Sí\",'Base-datos'!$B$751=\"Sí\",'Base-datos'!$B$752=\"Sí\"),IF(AND(D176=\"La actividad sí contribuye sustancialmente a la sostenibilidad\",E176=\"La actividad sí contribuye sustancialmente a la sostenibilidad\",C176=\"La actividad sí contribuye sustancialmente a la sostenibilidad\"),B176,0),IF(AND('Base-datos'!$B$750=\"\",'Base-datos'!$B$751=\"Sí\",'Base-datos'!$B$752=\"\"),IF(E176=\"La actividad sí contribuye sustancialmente a la sostenibilidad\",B176,0),IF(AND('Base-datos'!$B$750=\"\",'Base-datos'!$B$751=\"\",'Base-datos'!$B$752=\"Sí\"),IF(C176=\"La actividad sí contribuye sustancialmente a la sostenibilidad\",B176,0),IF(AND('Base-datos'!$B$750=\"\",'Base-datos'!$B$751=\"Sí\",'Base-datos'!$B$752=\"Sí\"),IF(AND(E176=\"La actividad sí contribuye sustancialmente a la sostenibilidad\",C176=\"La actividad sí contribuye sustancialmente a la sostenibilidad\"),B176,0),IF(AND('Base-datos'!$B$750=\"Sí\",'Base-datos'!$B$751=\"\",'Base-datos'!$B$752=\"Sí\"),IF(AND(D176=\"La actividad sí contribuye sustancialmente a la sostenibilidad\",C176=\"La actividad sí contribuye sustancialmente a la sostenibilidad\"),B176,0),\"Por definir\"))))))))","v":"Por definir"}]
[{"$f":"Transporte!$C42","v":"Seleccione"},{"$f":"IF(Transporte!$E42=Otro!B$12,Transporte!$B42,\"\")","v":""},{"$f":"_xlfn.XLOOKUP(A177,'Base-datos'!$B$553:$B$570,'Base-datos'!$F$553:$F$570)","v":{"$error":"#N/A"}},{"$f":"_xlfn.XLOOKUP(A177,'Base-datos'!$B$553:$B$570,'Base-datos'!$C$553:$C$570)","v":{"$error":"#N/A"}},{"$f":"_xlfn.XLOOKUP(A177,'Base-datos'!$B$553:$B$570,'Base-datos'!$D$553:$D$570)","v":{"$error":"#N/A"}},null,null,{"$f":"IF(OR(F$161=\"La actividad no cumple con el total de los criterios de No Daño Significativo\",G$161=\"El sector no cumple con las salvaguardas mínimas\"),\"\",IF(AND('Base-datos'!$B$750=\"Sí\",'Base-datos'!$B$751=\"\",'Base-datos'!$B$752=\"\"),IF(D177=\"La actividad sí contribuye sustancialmente a la sostenibilidad\",B177,0),IF(AND('Base-datos'!$B$750=\"Sí\",'Base-datos'!$B$751=\"Sí\",'Base-datos'!$B$752=\"\"),IF(AND(D177=\"La actividad sí contribuye sustancialmente a la sostenibilidad\",E177=\"La actividad sí contribuye sustancialmente a la sostenibilidad\"),B177,0),IF(AND('Base-datos'!$B$750=\"Sí\",'Base-datos'!$B$751=\"Sí\",'Base-datos'!$B$752=\"Sí\"),IF(AND(D177=\"La actividad sí contribuye sustancialmente a la sostenibilidad\",E177=\"La actividad sí contribuye sustancialmente a la sostenibilidad\",C177=\"La actividad sí contribuye sustancialmente a la sostenibilidad\"),B177,0),IF(AND('Base-datos'!$B$750=\"\",'Base-datos'!$B$751=\"Sí\",'Base-datos'!$B$752=\"\"),IF(E177=\"La actividad sí contribuye sustancialmente a la sostenibilidad\",B177,0),IF(AND('Base-datos'!$B$750=\"\",'Base-datos'!$B$751=\"\",'Base-datos'!$B$752=\"Sí\"),IF(C177=\"La actividad sí contribuye sustancialmente a la sostenibilidad\",B177,0),IF(AND('Base-datos'!$B$750=\"\",'Base-datos'!$B$751=\"Sí\",'Base-datos'!$B$752=\"Sí\"),IF(AND(E177=\"La actividad sí contribuye sustancialmente a la sostenibilidad\",C177=\"La actividad sí contribuye sustancialmente a la sostenibilidad\"),B177,0),IF(AND('Base-datos'!$B$750=\"Sí\",'Base-datos'!$B$751=\"\",'Base-datos'!$B$752=\"Sí\"),IF(AND(D177=\"La actividad sí contribuye sustancialmente a la sostenibilidad\",C177=\"La actividad sí contribuye sustancialmente a la sostenibilidad\"),B177,0),\"Por definir\"))))))))","v":"Por definir"}]
[{"$f":"Transporte!$C44","v":"Seleccione"},{"$f":"IF(Transporte!$E44=Otro!B$12,Transporte!$B44,\"\")","v":""},{"$f":"_xlfn.XLOOKUP(A178,'Base-datos'!$B$553:$B$570,'Base-datos'!$F$553:$F$570)","v":{"$error":"#N/A"}},{"$f":"_xlfn.XLOOKUP(A178,'Base-datos'!$B$553:$B$570,'Base-datos'!$C$553:$C$570)","v":{"$error":"#N/A"}},{"$f":"_xlfn.XLOOKUP(A178,'Base-datos'!$B$553:$B$570,'Base-datos'!$D$553:$D$570)","v":{"$error":"#N/A"}},null,null,{"$f":"IF(OR(F$161=\"La actividad no cumple con el total de los criterios de No Daño Significativo\",G$161=\"El sector no cumple con las salvaguardas mínimas\"),\"\",IF(AND('Base-datos'!$B$750=\"Sí\",'Base-datos'!$B$751=\"\",'Base-datos'!$B$752=\"\"),IF(D178=\"La actividad sí contribuye sustancialmente a la sostenibilidad\",B178,0),IF(AND('Base-datos'!$B$750=\"Sí\",'Base-datos'!$B$751=\"Sí\",'Base-datos'!$B$752=\"\"),IF(AND(D178=\"La actividad sí contribuye sustancialmente a la sostenibilidad\",E178=\"La actividad sí contribuye sustancialmente a la sostenibilidad\"),B178,0),IF(AND('Base-datos'!$B$750=\"Sí\",'Base-datos'!$B$751=\"Sí\",'Base-datos'!$B$752=\"Sí\"),IF(AND(D178=\"La actividad sí contribuye sustancialmente a la sostenibilidad\",E178=\"La actividad sí contribuye sustancialmente a la sostenibilidad\",C178=\"La actividad sí contribuye sustancialmente a la sostenibilidad\"),B178,0),IF(AND('Base-datos'!$B$750=\"\",'Base-datos'!$B$751=\"Sí\",'Base-datos'!$B$752=\"\"),IF(E178=\"La actividad sí contribuye sustancialmente a la sostenibilidad\",B178,0),IF(AND('Base-datos'!$B$750=\"\",'Base-datos'!$B$751=\"\",'Base-datos'!$B$752=\"Sí\"),IF(C178=\"La actividad sí contribuye sustancialmente a la sostenibilidad\",B178,0),IF(AND('Base-datos'!$B$750=\"\",'Base-datos'!$B$751=\"Sí\",'Base-datos'!$B$752=\"Sí\"),IF(AND(E178=\"La actividad sí contribuye sustancialmente a la sostenibilidad\",C178=\"La actividad sí contribuye sustancialmente a la sostenibilidad\"),B178,0),IF(AND('Base-datos'!$B$750=\"Sí\",'Base-datos'!$B$751=\"\",'Base-datos'!$B$752=\"Sí\"),IF(AND(D178=\"La actividad sí contribuye sustancialmente a la sostenibilidad\",C178=\"La actividad sí contribuye sustancialmente a la sostenibilidad\"),B178,0),\"Por definir\"))))))))","v":"Por definir"}]
[{"$f":"Transporte!$C46","v":"Seleccione"},{"$f":"IF(Transporte!$E46=Otro!B$12,Transporte!$B46,\"\")","v":""},{"$f":"_xlfn.XLOOKUP(A179,'Base-datos'!$B$553:$B$570,'Base-datos'!$F$553:$F$570)","v":{"$error":"#N/A"}},{"$f":"_xlfn.XLOOKUP(A179,'Base-datos'!$B$553:$B$570,'Base-datos'!$C$553:$C$570)","v":{"$error":"#N/A"}},{"$f":"_xlfn.XLOOKUP(A179,'Base-datos'!$B$553:$B$570,'Base-datos'!$D$553:$D$570)","v":{"$error":"#N/A"}},null,null,{"$f":"IF(OR(F$161=\"La actividad no cumple con el total de los criterios de No Daño Significativo\",G$161=\"El sector no cumple con las salvaguardas mínimas\"),\"\",IF(AND('Base-datos'!$B$750=\"Sí\",'Base-datos'!$B$751=\"\",'Base-datos'!$B$752=\"\"),IF(D179=\"La actividad sí contribuye sustancialmente a la sostenibilidad\",B179,0),IF(AND('Base-datos'!$B$750=\"Sí\",'Base-datos'!$B$751=\"Sí\",'Base-datos'!$B$752=\"\"),IF(AND(D179=\"La actividad sí contribuye sustancialmente a la sostenibilidad\",E179=\"La actividad sí contribuye sustancialmente a la sostenibilidad\"),B179,0),IF(AND('Base-datos'!$B$750=\"Sí\",'Base-datos'!$B$751=\"Sí\",'Base-datos'!$B$752=\"Sí\"),IF(AND(D179=\"La actividad sí contribuye sustancialmente a la sostenibilidad\",E179=\"La actividad sí contribuye sustancialmente a la sostenibilidad\",C179=\"La actividad sí contribuye sustancialmente a la sostenibilidad\"),B179,0),IF(AND('Base-datos'!$B$750=\"\",'Base-datos'!$B$751=\"Sí\",'Base-datos'!$B$752=\"\"),IF(E179=\"La actividad sí contribuye sustancialmente a la sostenibilidad\",B179,0),IF(AND('Base-datos'!$B$750=\"\",'Base-datos'!$B$751=\"\",'Base-datos'!$B$752=\"Sí\"),IF(C179=\"La actividad sí contribuye sustancialmente a la sostenibilidad\",B179,0),IF(AND('Base-datos'!$B$750=\"\",'Base-datos'!$B$751=\"Sí\",'Base-datos'!$B$752=\"Sí\"),IF(AND(E179=\"La actividad sí contribuye sustancialmente a la sostenibilidad\",C179=\"La actividad sí contribuye sustancialmente a la sostenibilidad\"),B179,0),IF(AND('Base-datos'!$B$750=\"Sí\",'Base-datos'!$B$751=\"\",'Base-datos'!$B$752=\"Sí\"),IF(AND(D179=\"La actividad sí contribuye sustancialmente a la sostenibilidad\",C179=\"La actividad sí contribuye sustancialmente a la sostenibilidad\"),B179,0),\"Por definir\"))))))))","v":"Por definir"}]
[{"$f":"Transporte!$C48","v":"Seleccione"},{"$f":"IF(Transporte!$E48=Otro!B$12,Transporte!$B48,\"\")","v":""},{"$f":"_xlfn.XLOOKUP(A180,'Base-datos'!$B$553:$B$570,'Base-datos'!$F$553:$F$570)","v":{"$error":"#N/A"}},{"$f":"_xlfn.XLOOKUP(A180,'Base-datos'!$B$553:$B$570,'Base-datos'!$C$553:$C$570)","v":{"$error":"#N/A"}},{"$f":"_xlfn.XLOOKUP(A180,'Base-datos'!$B$553:$B$570,'Base-datos'!$D$553:$D$570)","v":{"$error":"#N/A"}},null,null,{"$f":"IF(OR(F$161=\"La actividad no cumple con el total de los criterios de No Daño Significativo\",G$161=\"El sector no cumple con las salvaguardas mínimas\"),\"\",IF(AND('Base-datos'!$B$750=\"Sí\",'Base-datos'!$B$751=\"\",'Base-datos'!$B$752=\"\"),IF(D180=\"La actividad sí contribuye sustancialmente a la sostenibilidad\",B180,0),IF(AND('Base-datos'!$B$750=\"Sí\",'Base-datos'!$B$751=\"Sí\",'Base-datos'!$B$752=\"\"),IF(AND(D180=\"La actividad sí contribuye sustancialmente a la sostenibilidad\",E180=\"La actividad sí contribuye sustancialmente a la sostenibilidad\"),B180,0),IF(AND('Base-datos'!$B$750=\"Sí\",'Base-datos'!$B$751=\"Sí\",'Base-datos'!$B$752=\"Sí\"),IF(AND(D180=\"La actividad sí contribuye sustancialmente a la sostenibilidad\",E180=\"La actividad sí contribuye sustancialmente a la sostenibilidad\",C180=\"La actividad sí contribuye sustancialmente a la sostenibilidad\"),B180,0),IF(AND('Base-datos'!$B$750=\"\",'Base-datos'!$B$751=\"Sí\",'Base-datos'!$B$752=\"\"),IF(E180=\"La actividad sí contribuye sustancialmente a la sostenibilidad\",B180,0),IF(AND('Base-datos'!$B$750=\"\",'Base-datos'!$B$751=\"\",'Base-datos'!$B$752=\"Sí\"),IF(C180=\"La actividad sí contribuye sustancialmente a la sostenibilidad\",B180,0),IF(AND('Base-datos'!$B$750=\"\",'Base-datos'!$B$751=\"Sí\",'Base-datos'!$B$752=\"Sí\"),IF(AND(E180=\"La actividad sí contribuye sustancialmente a la sostenibilidad\",C180=\"La actividad sí contribuye sustancialmente a la sostenibilidad\"),B180,0),IF(AND('Base-datos'!$B$750=\"Sí\",'Base-datos'!$B$751=\"\",'Base-datos'!$B$752=\"Sí\"),IF(AND(D180=\"La actividad sí contribuye sustancialmente a la sostenibilidad\",C180=\"La actividad sí contribuye sustancialmente a la sostenibilidad\"),B180,0),\"Por definir\"))))))))","v":"Por definir"}]
["Residuos",null,null,null,null,null,null,{"$f":"SUM(IF(FREQUENCY(MATCH(A182:A201, A182:A201, 0), MATCH(A182:A201, A182:A201, 0)) > 0, IF(NOT(ISERROR(H182:H201)), H182:H201, 0)))","v":0}]
[{"$f":"Residuos!$C10","v":"Seleccione"},{"$f":"IF(Residuos!$E10=Otro!B$12,Residuos!$B10,\"\")","v":""},{"$f":"_xlfn.XLOOKUP(A182,'Base-datos'!$B$571:$B$580,'Base-datos'!$F$571:$F$580)","v":{"$error":"#N/A"}},{"$f":"_xlfn.XLOOKUP(A182,'Base-datos'!$B$571:$B$580,'Base-datos'!$C$571:$C$580)","v":{"$error":"#N/A"}},{"$f":"_xlfn.XLOOKUP(A182,'Base-datos'!$B$571:$B$580,'Base-datos'!$D$571:$D$580)","v":{"$error":"#N/A"}},{"$f":"IF(COUNTIF('Residuos-NDS'!G9:G63,\"No\")>0,\"La actividad no cumple con el total de los criterios de NDS\",\"La actividad cumple con los criterios de No Daño Significativo\")","v":"La actividad cumple con los criterios de No Daño Significativo"},{"$f":"IF(OR('Salvaguardas mínimas'!$G$10=\"Seleccione\",'Salvaguardas mínimas'!$G$13=\"Seleccione\",'Salvaguardas mínimas'!$G$16=\"Seleccione\",'Salvaguardas mínimas'!$G$7=\"Seleccione\"),\"No se han respondido todas las preguntas\",IF(OR('Salvaguardas mínimas'!$G$10=\"No\",'Salvaguardas mínimas'!$G$13=\"No\",'Salvaguardas mínimas'!$G$16=\"No\",'Salvaguardas mínimas'!$G$7=\"No\"),\"El sector no cumple con las salvaguardas mínimas\",\"La actividad sí cumple con las salvaguardas mínimas\"))","v":"No se han respondido todas las preguntas"},{"$f":"IF(OR(F$182=\"La actividad no cumple con el total de los criterios de No Daño Significativo\",G$182=\"El sector no cumple con las salvaguardas mínimas\"),\"\",IF(AND('Base-datos'!$B$755=\"Sí\",'Base-datos'!$B$756=\"\",'Base-datos'!$B$757=\"\"),IF(D182=\"La actividad sí contribuye sustancialmente a la sostenibilidad\",B182,0),IF(AND('Base-datos'!$B$755=\"Sí\",'Base-datos'!$B$756=\"Sí\",'Base-datos'!$B$757=\"\"),IF(AND(D182=\"La actividad sí contribuye sustancialmente a la sostenibilidad\",E182=\"La actividad sí contribuye sustancialmente a la sostenibilidad\"),B182,0),IF(AND('Base-datos'!$B$755=\"Sí\",'Base-datos'!$B$756=\"Sí\",'Base-datos'!$B$757=\"Sí\"),IF(AND(D182=\"La actividad sí contribuye sustancialmente a la sostenibilidad\",E182=\"La actividad sí contribuye sustancialmente a la sostenibilidad\",C182=\"La actividad sí contribuye sustancialmente a la sostenibilidad\"),B182,0),IF(AND('Base-datos'!$B$755=\"\",'Base-datos'!$B$756=\"Sí\",'Base-datos'!$B$757=\"\"),IF(E182=\"La actividad sí contribuye sustancialmente a la sostenibilidad\",B182,0),IF(AND('Base-datos'!$B$755=\"\",'Base-datos'!$B$756=\"\",'Base-datos'!$B$757=\"Sí\"),IF(C182=\"La actividad sí contribuye sustancialmente a la sostenibilidad\",B182,0),IF(AND('Base-datos'!$B$755=\"\",'Base-datos'!$B$756=\"Sí\",'Base-datos'!$B$757=\"Sí\"),IF(AND(E182=\"La actividad sí contribuye sustancialmente a la sostenibilidad\",C182=\"La actividad sí contribuye sustancialmente a la sostenibilidad\"),B182,0),IF(AND('Base-datos'!$B$755=\"Sí\",'Base-datos'!$B$756=\"\",'Base-datos'!$B$757=\"Sí\"),IF(AND(D182=\"La actividad sí contribuye sustancialmente a la sostenibilidad\",C182=\"La actividad sí contribuye sustancialmente a la sostenibilidad\"),B182,0),\"Por definir\"))))))))","v":"Por definir"}]
[{"$f":"Residuos!$C12","v":"Seleccione"},{"$f":"IF(Residuos!$E12=Otro!B$12,Residuos!$B12,\"\")","v":""},{"$f":"_xlfn.XLOOKUP(A183,'Base-datos'!$B$571:$B$580,'Base-datos'!$F$571:$F$580)","v":{"$error":"#N/A"}},{"$f":"_xlfn.XLOOKUP(A183,'Base-datos'!$B$571:$B$580,'Base-datos'!$C$571:$C$580)","v":{"$error":"#N/A"}},{"$f":"_xlfn.XLOOKUP(A183,'Base-datos'!$B$571:$B$580,'Base-datos'!$D$571:$D$580)","v":{"$error":"#N/A"}},null,null,{"$f":"IF(OR(F$182=\"La actividad no cumple con el total de los criterios de No Daño Significativo\",G$182=\"El sector no cumple con las salvaguardas mínimas\"),\"\",IF(AND('Base-datos'!$B$755=\"Sí\",'Base-datos'!$B$756=\"\",'Base-datos'!$B$757=\"\"),IF(D183=\"La actividad sí contribuye sustancialmente a la sostenibilidad\",B183,0),IF(AND('Base-datos'!$B$755=\"Sí\",'Base-datos'!$B$756=\"Sí\",'Base-datos'!$B$757=\"\"),IF(AND(D183=\"La actividad sí contribuye sustancialmente a la sostenibilidad\",E183=\"La actividad sí contribuye sustancialmente a la sostenibilidad\"),B183,0),IF(AND('Base-datos'!$B$755=\"Sí\",'Base-datos'!$B$756=\"Sí\",'Base-datos'!$B$757=\"Sí\"),IF(AND(D183=\"La actividad sí contribuye sustancialmente a la sostenibilidad\",E183=\"La actividad sí contribuye sustancialmente a la sostenibilidad\",C183=\"La actividad sí contribuye sustancialmente a la sostenibilidad\"),B183,0),IF(AND('Base-datos'!$B$755=\"\",'Base-datos'!$B$756=\"Sí\",'Base-datos'!$B$757=\"\"),IF(E183=\"La actividad sí contribuye sustancialmente a la sostenibilidad\",B183,0),IF(AND('Base-datos'!$B$755=\"\",'Base-datos'!$B$756=\"\",'Base-datos'!$B$757=\"Sí\"),IF(C183=\"La actividad sí contribuye sustancialmente a la sostenibilidad\",B183,0),IF(AND('Base-datos'!$B$755=\"\",'Base-datos'!$B$756=\"Sí\",'Base-datos'!$B$757=\"Sí\"),IF(AND(E183=\"La actividad sí contribuye sustancialmente a la sostenibilidad\",C183=\"La actividad sí contribuye sustancialmente a la sostenibilidad\"),B183,0),IF(AND('Base-datos'!$B$755=\"Sí\",'Base-datos'!$B$756=\"\",'Base-datos'!$B$757=\"Sí\"),IF(AND(D183=\"La actividad sí contribuye sustancialmente a la sostenibilidad\",C183=\"La actividad sí contribuye sustancialmente a la sostenibilidad\"),B183,0),\"Por definir\"))))))))","v":"Por definir"}]
[{"$f":"Residuos!$C14","v":"Seleccione"},{"$f":"IF(Residuos!$E14=Otro!B$12,Residuos!$B14,\"\")","v":""},{"$f":"_xlfn.XLOOKUP(A184,'Base-datos'!$B$571:$B$580,'Base-datos'!$F$571:$F$580)","v":{"$error":"#N/A"}},{"$f":"_xlfn.XLOOKUP(A184,'Base-datos'!$B$571:$B$580,'Base-datos'!$C$571:$C$580)","v":{"$error":"#N/A"}},{"$f":"_xlfn.XLOOKUP(A184,'Base-datos'!$B$571:$B$580,'Base-datos'!$D$571:$D$580)","v":{"$error":"#N/A"}},null,null,{"$f":"IF(OR(F$182=\"La actividad no cumple con el total de los criterios de No Daño Significativo\",G$182=\"El sector no cumple con las salvaguardas mínimas\"),\"\",IF(AND('Base-datos'!$B$755=\"Sí\",'Base-datos'!$B$756=\"\",'Base-datos'!$B$757=\"\"),IF(D184=\"La actividad sí contribuye sustancialmente a la sostenibilidad\",B184,0),IF(AND('Base-datos'!$B$755=\"Sí\",'Base-datos'!$B$756=\"Sí\",'Base-datos'!$B$757=\"\"),IF(AND(D184=\"La actividad sí contribuye sustancialmente a la sostenibilidad\",E184=\"La actividad sí contribuye sustancialmente a la sostenibilidad\"),B184,0),IF(AND('Base-datos'!$B$755=\"Sí\",'Base-datos'!$B$756=\"Sí\",'Base-datos'!$B$757=\"Sí\"),IF(AND(D184=\"La actividad sí contribuye sustancialmente a la sostenibilidad\",E184=\"La actividad sí contribuye sustancialmente a la sostenibilidad\",C184=\"La actividad sí contribuye sustancialmente a la sostenibilidad\"),B184,0),IF(AND('Base-datos'!$B$755=\"\",'Base-datos'!$B$756=\"Sí\",'Base-datos'!$B$757=\"\"),IF(E184=\"La actividad sí contribuye sustancialmente a la sostenibilidad\",B184,0),IF(AND('Base-datos'!$B$755=\"\",'Base-datos'!$B$756=\"\",'Base-datos'!$B$757=\"Sí\"),IF(C184=\"La actividad sí contribuye sustancialmente a la sostenibilidad\",B184,0),IF(AND('Base-datos'!$B$755=\"\",'Base-datos'!$B$756=\"Sí\",'Base-datos'!$B$757=\"Sí\"),IF(AND(E184=\"La actividad sí contribuye sustancialmente a la sostenibilidad\",C184=\"La actividad sí contribuye sustancialmente a la sostenibilidad\"),B184,0),IF(AND('Base-datos'!$B$755=\"Sí\",'Base-datos'!$B$756=\"\",'Base-datos'!$B$757=\"Sí\"),IF(AND(D184=\"La actividad sí contribuye sustancialmente a la sostenibilidad\",C184=\"La actividad sí contribuye sustancialmente a la sostenibilidad\"),B184,0),\"Por definir\"))))))))","v":"Por definir"}]
[{"$f":"Residuos!$C16","v":"Seleccione"},{"$f":"IF(Residuos!$E16=Otro!B$12,Residuos!$B16,\"\")","v":""},{"$f":"_xlfn.XLOOKUP(A185,'Base-datos'!$B$571:$B$580,'Base-datos'!$F$571:$F$580)","v":{"$error":"#N/A"}},{"$f":"_xlfn.XLOOKUP(A185,'Base-datos'!$B$571:$B$580,'Base-datos'!$C$571:$C$580)","v":{"$error":"#N/A"}},{"$f":"_xlfn.XLOOKUP(A185,'Base-datos'!$B$571:$B$580,'Base-datos'!$D$571:$D$580)","v":{"$error":"#N/A"}},null,null,{"$f":"IF(OR(F$182=\"La actividad no cumple con el total de los criterios de No Daño Significativo\",G$182=\"El sector no cumple con las salvaguardas mínimas\"),\"\",IF(AND('Base-datos'!$B$755=\"Sí\",'Base-datos'!$B$756=\"\",'Base-datos'!$B$757=\"\"),IF(D185=\"La actividad sí contribuye sustancialmente a la sostenibilidad\",B185,0),IF(AND('Base-datos'!$B$755=\"Sí\",'Base-datos'!$B$756=\"Sí\",'Base-datos'!$B$757=\"\"),IF(AND(D185=\"La actividad sí contribuye sustancialmente a la sostenibilidad\",E185=\"La actividad sí contribuye sustancialmente a la sostenibilidad\"),B185,0),IF(AND('Base-datos'!$B$755=\"Sí\",'Base-datos'!$B$756=\"Sí\",'Base-datos'!$B$757=\"Sí\"),IF(AND(D185=\"La actividad sí contribuye sustancialmente a la sostenibilidad\",E185=\"La actividad sí contribuye sustancialmente a la sostenibilidad\",C185=\"La actividad sí contribuye sustancialmente a la sostenibilidad\"),B185,0),IF(AND('Base-datos'!$B$755=\"\",'Base-datos'!$B$756=\"Sí\",'Base-datos'!$B$757=\"\"),IF(E185=\"La actividad sí contribuye sustancialmente a la sostenibilidad\",B185,0),IF(AND('Base-datos'!$B$755=\"\",'Base-datos'!$B$756=\"\",'Base-datos'!$B$757=\"Sí\"),IF(C185=\"La actividad sí contribuye sustancialmente a la sostenibilidad\",B185,0),IF(AND('Base-datos'!$B$755=\"\",'Base-datos'!$B$756=\"Sí\",'Base-datos'!$B$757=\"Sí\"),IF(AND(E185=\"La actividad sí contribuye sustancialmente a la sostenibilidad\",C185=\"La actividad sí contribuye sustancialmente a la sostenibilidad\"),B185,0),IF(AND('Base-datos'!$B$755=\"Sí\",'Base-datos'!$B$756=\"\",'Base-datos'!$B$757=\"Sí\"),IF(AND(D185=\"La actividad sí contribuye sustancialmente a la sostenibilidad\",C185=\"La actividad sí contribuye sustancialmente a la sostenibilidad\"),B185,0),\"Por definir\"))))))))","v":"Por definir"}]
[{"$f":"Residuos!$C18","v":"Seleccione"},{"$f":"IF(Residuos!$E18=Otro!B$12,Residuos!$B18,\"\")","v":""},{"$f":"_xlfn.XLOOKUP(A186,'Base-datos'!$B$571:$B$580,'Base-datos'!$F$571:$F$580)","v":{"$error":"#N/A"}},{"$f":"_xlfn.XLOOKUP(A186,'Base-datos'!$B$571:$B$580,'Base-datos'!$C$571:$C$580)","v":{"$error":"#N/A"}},{"$f":"_xlfn.XLOOKUP(A186,'Base-datos'!$B$571:$B$580,'Base-datos'!$D$571:$D$580)","v":{"$error":"#N/A"}},null,null,{"$f":"IF(OR(F$182=\"La actividad no cumple con el total de los criterios de No Daño Significativo\",G$182=\"El sector no cumple con las salvaguardas mínimas\"),\"\",IF(AND('Base-datos'!$B$755=\"Sí\",'Base-datos'!$B$756=\"\",'Base-datos'!$B$757=\"\"),IF(D186=\"La actividad sí contribuye sustancialmente a la sostenibilidad\",B186,0),IF(AND('Base-datos'!$B$755=\"Sí\",'Base-datos'!$B$756=\"Sí\",'Base-datos'!$B$757=\"\"),IF(AND(D186=\"La actividad sí contribuye sustancialmente a la sostenibilidad\",E186=\"La actividad sí contribuye sustancialmente a la sostenibilidad\"),B186,0),IF(AND('Base-datos'!$B$755=\"Sí\",'Base-datos'!$B$756=\"Sí\",'Base-datos'!$B$757=\"Sí\"),IF(AND(D186=\"La actividad sí contribuye sustancialmente a la sostenibilidad\",E186=\"La actividad sí contribuye sustancialmente a la sostenibilidad\",C186=\"La actividad sí contribuye sustancialmente a la sostenibilidad\"),B186,0),IF(AND('Base-datos'!$B$755=\"\",'Base-datos'!$B$756=\"Sí\",'Base-datos'!$B$757=\"\"),IF(E186=\"La actividad sí contribuye sustancialmente a la sostenibilidad\",B186,0),IF(AND('Base-datos'!$B$755=\"\",'Base-datos'!$B$756=\"\",'Base-datos'!$B$757=\"Sí\"),IF(C186=\"La actividad sí contribuye sustancialmente a la sostenibilidad\",B186,0),IF(AND('Base-datos'!$B$755=\"\",'Base-datos'!$B$756=\"Sí\",'Base-datos'!$B$757=\"Sí\"),IF(AND(E186=\"La actividad sí contribuye sustancialmente a la sostenibilidad\",C186=\"La actividad sí contribuye sustancialmente a la sostenibilidad\"),B186,0),IF(AND('Base-datos'!$B$755=\"Sí\",'Base-datos'!$B$756=\"\",'Base-datos'!$B$757=\"Sí\"),IF(AND(D186=\"La actividad sí contribuye sustancialmente a la sostenibilidad\",C186=\"La actividad sí contribuye sustancialmente a la sostenibilidad\"),B186,0),\"Por definir\"))))))))","v":"Por definir"}]
[{"$f":"Residuos!$C20","v":"Seleccione"},{"$f":"IF(Residuos!$E20=Otro!B$12,Residuos!$B20,\"\")","v":""},{"$f":"_xlfn.XLOOKUP(A187,'Base-datos'!$B$571:$B$580,'Base-datos'!$F$571:$F$580)","v":{"$error":"#N/A"}},{"$f":"_xlfn.XLOOKUP(A187,'Base-datos'!$B$571:$B$580,'Base-datos'!$C$571:$C$580)","v":{"$error":"#N/A"}},{"$f":"_xlfn.XLOOKUP(A187,'Base-datos'!$B$571:$B$580,'Base-datos'!$D$571:$D$580)","v":{"$error":"#N/A"}},null,null,{"$f":"IF(OR(F$182=\"La actividad no cumple con el total de los criterios de No Daño Significativo\",G$182=\"El sector no cumple con las salvaguardas mínimas\"),\"\",IF(AND('Base-datos'!$B$755=\"Sí\",'Base-datos'!$B$756=\"\",'Base-datos'!$B$757=\"\"),IF(D187=\"La actividad sí contribuye sustancialmente a la sostenibilidad\",B187,0),IF(AND('Base-datos'!$B$755=\"Sí\",'Base-datos'!$B$756=\"Sí\",'Base-datos'!$B$757=\"\"),IF(AND(D187=\"La actividad sí contribuye sustancialmente a la sostenibilidad\",E187=\"La actividad sí contribuye sustancialmente a la sostenibilidad\"),B187,0),IF(AND('Base-datos'!$B$755=\"Sí\",'Base-datos'!$B$756=\"Sí\",'Base-datos'!$B$757=\"Sí\"),IF(AND(D187=\"La actividad sí contribuye sustancialmente a la sostenibilidad\",E187=\"La actividad sí contribuye sustancialmente a la sostenibilidad\",C187=\"La actividad sí contribuye sustancialmente a la sostenibilidad\"),B187,0),IF(AND('Base-datos'!$B$755=\"\",'Base-datos'!$B$756=\"Sí\",'Base-datos'!$B$757=\"\"),IF(E187=\"La actividad sí contribuye sustancialmente a la sostenibilidad\",B187,0),IF(AND('Base-datos'!$B$755=\"\",'Base-datos'!$B$756=\"\",'Base-datos'!$B$757=\"Sí\"),IF(C187=\"La actividad sí contribuye sustancialmente a la sostenibilidad\",B187,0),IF(AND('Base-datos'!$B$755=\"\",'Base-datos'!$B$756=\"Sí\",'Base-datos'!$B$757=\"Sí\"),IF(AND(E187=\"La actividad sí contribuye sustancialmente a la sostenibilidad\",C187=\"La actividad sí contribuye sustancialmente a la sostenibilidad\"),B187,0),IF(AND('Base-datos'!$B$755=\"Sí\",'Base-datos'!$B$756=\"\",'Base-datos'!$B$757=\"Sí\"),IF(AND(D187=\"La actividad sí contribuye sustancialmente a la sostenibilidad\",C187=\"La actividad sí contribuye sustancialmente a la sostenibilidad\"),B187,0),\"Por definir\"))))))))","v":"Por definir"}]
[{"$f":"Residuos!$C22","v":"Seleccione"},{"$f":"IF(Residuos!$E22=Otro!B$12,Residuos!$B22,\"\")","v":""},{"$f":"_xlfn.XLOOKUP(A188,'Base-datos'!$B$571:$B$580,'Base-datos'!$F$571:$F$580)","v":{"$error":"#N/A"}},{"$f":"_xlfn.XLOOKUP(A188,'Base-datos'!$B$571:$B$580,'Base-datos'!$C$571:$C$580)","v":{"$error":"#N/A"}},{"$f":"_xlfn.XLOOKUP(A188,'Base-datos'!$B$571:$B$580,'Base-datos'!$D$571:$D$580)","v":{"$error":"#N/A"}},null,null,{"$f":"IF(OR(F$182=\"La actividad no cumple con el total de los criterios de No Daño Significativo\",G$182=\"El sector no cumple con las salvaguardas mínimas\"),\"\",IF(AND('Base-datos'!$B$755=\"Sí\",'Base-datos'!$B$756=\"\",'Base-datos'!$B$757=\"\"),IF(D188=\"La actividad sí contribuye sustancialmente a la sostenibilidad\",B188,0),IF(AND('Base-datos'!$B$755=\"Sí\",'Base-datos'!$B$756=\"Sí\",'Base-datos'!$B$757=\"\"),IF(AND(D188=\"La actividad sí contribuye sustancialmente a la sostenibilidad\",E188=\"La actividad sí contribuye sustancialmente a la sostenibilidad\"),B188,0),IF(AND('Base-datos'!$B$755=\"Sí\",'Base-datos'!$B$756=\"Sí\",'Base-datos'!$B$757=\"Sí\"),IF(AND(D188=\"La actividad sí contribuye sustancialmente a la sostenibilidad\",E188=\"La actividad sí contribuye sustancialmente a la sostenibilidad\",C188=\"La actividad sí contribuye sustancialmente a la sostenibilidad\"),B188,0),IF(AND('Base-datos'!$B$755=\"\",'Base-datos'!$B$756=\"Sí\",'Base-datos'!$B$757=\"\"),IF(E188=\"La actividad sí contribuye sustancialmente a la sostenibilidad\",B188,0),IF(AND('Base-datos'!$B$755=\"\",'Base-datos'!$B$756=\"\",'Base-datos'!$B$757=\"Sí\"),IF(C188=\"La actividad sí contribuye sustancialmente a la sostenibilidad\",B188,0),IF(AND('Base-datos'!$B$755=\"\",'Base-datos'!$B$756=\"Sí\",'Base-datos'!$B$757=\"Sí\"),IF(AND(E188=\"La actividad sí contribuye sustancialmente a la sostenibilidad\",C188=\"La actividad sí contribuye sustancialmente a la sostenibilidad\"),B188,0),IF(AND('Base-datos'!$B$755=\"Sí\",'Base-datos'!$B$756=\"\",'Base-datos'!$B$757=\"Sí\"),IF(AND(D188=\"La actividad sí contribuye sustancialmente a la sostenibilidad\",C188=\"La actividad sí contribuye sustancialmente a la sostenibilidad\"),B188,0),\"Por definir\"))))))))","v":"Por definir"}]
[{"$f":"Residuos!$C24","v":"Seleccione"},{"$f":"IF(Residuos!$E24=Otro!B$12,Residuos!$B24,\"\")","v":""},{"$f":"_xlfn.XLOOKUP(A189,'Base-datos'!$B$571:$B$580,'Base-datos'!$F$571:$F$580)","v":{"$error":"#N/A"}},{"$f":"_xlfn.XLOOKUP(A189,'Base-datos'!$B$571:$B$580,'Base-datos'!$C$571:$C$580)","v":{"$error":"#N/A"}},{"$f":"_xlfn.XLOOKUP(A189,'Base-datos'!$B$571:$B$580,'Base-datos'!$D$571:$D$580)","v":{"$error":"#N/A"}},null,null,{"$f":"IF(OR(F$182=\"La actividad no cumple con el total de los criterios de No Daño Significativo\",G$182=\"El sector no cumple con las salvaguardas mínimas\"),\"\",IF(AND('Base-datos'!$B$755=\"Sí\",'Base-datos'!$B$756=\"\",'Base-datos'!$B$757=\"\"),IF(D189=\"La actividad sí contribuye sustancialmente a la sostenibilidad\",B189,0),IF(AND('Base-datos'!$B$755=\"Sí\",'Base-datos'!$B$756=\"Sí\",'Base-datos'!$B$757=\"\"),IF(AND(D189=\"La actividad sí contribuye sustancialmente a la sostenibilidad\",E189=\"La actividad sí contribuye sustancialmente a la sostenibilidad\"),B189,0),IF(AND('Base-datos'!$B$755=\"Sí\",'Base-datos'!$B$756=\"Sí\",'Base-datos'!$B$757=\"Sí\"),IF(AND(D189=\"La actividad sí contribuye sustancialmente a la sostenibilidad\",E189=\"La actividad sí contribuye sustancialmente a la sostenibilidad\",C189=\"La actividad sí contribuye sustancialmente a la sostenibilidad\"),B189,0),IF(AND('Base-datos'!$B$755=\"\",'Base-datos'!$B$756=\"Sí\",'Base-datos'!$B$757=\"\"),IF(E189=\"La actividad sí contribuye sustancialmente a la sostenibilidad\",B189,0),IF(AND('Base-datos'!$B$755=\"\",'Base-datos'!$B$756=\"\",'Base-datos'!$B$757=\"Sí\"),IF(C189=\"La actividad sí contribuye sustancialmente a la sostenibilidad\",B189,0),IF(AND('Base-datos'!$B$755=\"\",'Base-datos'!$B$756=\"Sí\",'Base-datos'!$B$757=\"Sí\"),IF(AND(E189=\"La actividad sí contribuye sustancialmente a la sostenibilidad\",C189=\"La actividad sí contribuye sustancialmente a la sostenibilidad\"),B189,0),IF(AND('Base-datos'!$B$755=\"Sí\",'Base-datos'!$B$756=\"\",'Base-datos'!$B$757=\"Sí\"),IF(AND(D189=\"La actividad sí contribuye sustancialmente a la sostenibilidad\",C189=\"La actividad sí contribuye sustancialmente a la sostenibilidad\"),B189,0),\"Por definir\"))))))))","v":"Por definir"}]
[{"$f":"Residuos!$C26","v":"Seleccione"},{"$f":"IF(Residuos!$E26=Otro!B$12,Residuos!$B26,\"\")","v":""},{"$f":"_xlfn.XLOOKUP(A190,'Base-datos'!$B$571:$B$580,'Base-datos'!$F$571:$F$580)","v":{"$error":"#N/A"}},{"$f":"_xlfn.XLOOKUP(A190,'Base-datos'!$B$571:$B$580,'Base-datos'!$C$571:$C$580)","v":{"$error":"#N/A"}},{"$f":"_xlfn.XLOOKUP(A190,'Base-datos'!$B$571:$B$580,'Base-datos'!$D$571:$D$580)","v":{"$error":"#N/A"}},null,null,{"$f":"IF(OR(F$182=\"La actividad no cumple con el total de los criterios de No Daño Significativo\",G$182=\"El sector no cumple con las salvaguardas mínimas\"),\"\",IF(AND('Base-datos'!$B$755=\"Sí\",'Base-datos'!$B$756=\"\",'Base-datos'!$B$757=\"\"),IF(D190=\"La actividad sí contribuye sustancialmente a la sostenibilidad\",B190,0),IF(AND('Base-datos'!$B$755=\"Sí\",'Base-datos'!$B$756=\"Sí\",'Base-datos'!$B$757=\"\"),IF(AND(D190=\"La actividad sí contribuye sustancialmente a la sostenibilidad\",E190=\"La actividad sí contribuye sustancialmente a la sostenibilidad\"),B190,0),IF(AND('Base-datos'!$B$755=\"Sí\",'Base-datos'!$B$756=\"Sí\",'Base-datos'!$B$757=\"Sí\"),IF(AND(D190=\"La actividad sí contribuye sustancialmente a la sostenibilidad\",E190=\"La actividad sí contribuye sustancialmente a la sostenibilidad\",C190=\"La actividad sí contribuye sustancialmente a la sostenibilidad\"),B190,0),IF(AND('Base-datos'!$B$755=\"\",'Base-datos'!$B$756=\"Sí\",'Base-datos'!$B$757=\"\"),IF(E190=\"La actividad sí contribuye sustancialmente a la sostenibilidad\",B190,0),IF(AND('Base-datos'!$B$755=\"\",'Base-datos'!$B$756=\"\",'Base-datos'!$B$757=\"Sí\"),IF(C190=\"La actividad sí contribuye sustancialmente a la sostenibilidad\",B190,0),IF(AND('Base-datos'!$B$755=\"\",'Base-datos'!$B$756=\"Sí\",'Base-datos'!$B$757=\"Sí\"),IF(AND(E190=\"La actividad sí contribuye sustancialmente a la sostenibilidad\",C190=\"La actividad sí contribuye sustancialmente a la sostenibilidad\"),B190,0),IF(AND('Base-datos'!$B$755=\"Sí\",'Base-datos'!$B$756=\"\",'Base-datos'!$B$757=\"Sí\"),IF(AND(D190=\"La actividad sí contribuye sustancialmente a la sostenibilidad\",C190=\"La actividad sí contribuye sustancialmente a la sostenibilidad\"),B190,0),\"Por definir\"))))))))","v":"Por definir"}]
[{"$f":"Residuos!$C28","v":"Seleccione"},{"$f":"IF(Residuos!$E28=Otro!B$12,Residuos!$B28,\"\")","v":""},{"$f":"_xlfn.XLOOKUP(A191,'Base-datos'!$B$571:$B$580,'Base-datos'!$F$571:$F$580)","v":{"$error":"#N/A"}},{"$f":"_xlfn.XLOOKUP(A191,'Base-datos'!$B$571:$B$580,'Base-datos'!$C$571:$C$580)","v":{"$error":"#N/A"}},{"$f":"_xlfn.XLOOKUP(A191,'Base-datos'!$B$571:$B$580,'Base-datos'!$D$571:$D$580)","v":{"$error":"#N/A"}},null,null,{"$f":"IF(OR(F$182=\"La actividad no cumple con el total de los criterios de No Daño Significativo\",G$182=\"El sector no cumple con las salvaguardas mínimas\"),\"\",IF(AND('Base-datos'!$B$755=\"Sí\",'Base-datos'!$B$756=\"\",'Base-datos'!$B$757=\"\"),IF(D191=\"La actividad sí contribuye sustancialmente a la sostenibilidad\",B191,0),IF(AND('Base-datos'!$B$755=\"Sí\",'Base-datos'!$B$756=\"Sí\",'Base-datos'!$B$757=\"\"),IF(AND(D191=\"La actividad sí contribuye sustancialmente a la sostenibilidad\",E191=\"La actividad sí contribuye sustancialmente a la sostenibilidad\"),B191,0),IF(AND('Base-datos'!$B$755=\"Sí\",'Base-datos'!$B$756=\"Sí\",'Base-datos'!$B$757=\"Sí\"),IF(AND(D191=\"La actividad sí contribuye sustancialmente a la sostenibilidad\",E191=\"La actividad sí contribuye sustancialmente a la sostenibilidad\",C191=\"La actividad sí contribuye sustancialmente a la sostenibilidad\"),B191,0),IF(AND('Base-datos'!$B$755=\"\",'Base-datos'!$B$756=\"Sí\",'Base-datos'!$B$757=\"\"),IF(E191=\"La actividad sí contribuye sustancialmente a la sostenibilidad\",B191,0),IF(AND('Base-datos'!$B$755=\"\",'Base-datos'!$B$756=\"\",'Base-datos'!$B$757=\"Sí\"),IF(C191=\"La actividad sí contribuye sustancialmente a la sostenibilidad\",B191,0),IF(AND('Base-datos'!$B$755=\"\",'Base-datos'!$B$756=\"Sí\",'Base-datos'!$B$757=\"Sí\"),IF(AND(E191=\"La actividad sí contribuye sustancialmente a la sostenibilidad\",C191=\"La actividad sí contribuye sustancialmente a la sostenibilidad\"),B191,0),IF(AND('Base-datos'!$B$755=\"Sí\",'Base-datos'!$B$756=\"\",'Base-datos'!$B$757=\"Sí\"),IF(AND(D191=\"La actividad sí contribuye sustancialmente a la sostenibilidad\",C191=\"La actividad sí contribuye sustancialmente a la sostenibilidad\"),B191,0),\"Por definir\"))))))))","v":"Por definir"}]
[{"$f":"Residuos!$C30","v":"Seleccione"},{"$f":"IF(Residuos!$E30=Otro!B$12,Residuos!$B30,\"\")","v":""},{"$f":"_xlfn.XLOOKUP(A192,'Base-datos'!$B$571:$B$580,'Base-datos'!$F$571:$F$580)","v":{"$error":"#N/A"}},{"$f":"_xlfn.XLOOKUP(A192,'Base-datos'!$B$571:$B$580,'Base-datos'!$C$571:$C$580)","v":{"$error":"#N/A"}},{"$f":"_xlfn.XLOOKUP(A192,'Base-datos'!$B$571:$B$580,'Base-datos'!$D$571:$D$580)","v":{"$error":"#N/A"}},null,null,{"$f":"IF(OR(F$182=\"La actividad no cumple con el total de los criterios de No Daño Significativo\",G$182=\"El sector no cumple con las salvaguardas mínimas\"),\"\",IF(AND('Base-datos'!$B$755=\"Sí\",'Base-datos'!$B$756=\"\",'Base-datos'!$B$757=\"\"),IF(D192=\"La actividad sí contribuye sustancialmente a la sostenibilidad\",B192,0),IF(AND('Base-datos'!$B$755=\"Sí\",'Base-datos'!$B$756=\"Sí\",'Base-datos'!$B$757=\"\"),IF(AND(D192=\"La actividad sí contribuye sustancialmente a la sostenibilidad\",E192=\"La actividad sí contribuye sustancialmente a la sostenibilidad\"),B192,0),IF(AND('Base-datos'!$B$755=\"Sí\",'Base-datos'!$B$756=\"Sí\",'Base-datos'!$B$757=\"Sí\"),IF(AND(D192=\"La actividad sí contribuye sustancialmente a la sostenibilidad\",E192=\"La actividad sí contribuye sustancialmente a la sostenibilidad\",C192=\"La actividad sí contribuye sustancialmente a la sostenibilidad\"),B192,0),IF(AND('Base-datos'!$B$755=\"\",'Base-datos'!$B$756=\"Sí\",'Base-datos'!$B$757=\"\"),IF(E192=\"La actividad sí contribuye sustancialmente a la sostenibilidad\",B192,0),IF(AND('Base-datos'!$B$755=\"\",'Base-datos'!$B$756=\"\",'Base-datos'!$B$757=\"Sí\"),IF(C192=\"La actividad sí contribuye sustancialmente a la sostenibilidad\",B192,0),IF(AND('Base-datos'!$B$755=\"\",'Base-datos'!$B$756=\"Sí\",'Base-datos'!$B$757=\"Sí\"),IF(AND(E192=\"La actividad sí contribuye sustancialmente a la sostenibilidad\",C192=\"La actividad sí contribuye sustancialmente a la sostenibilidad\"),B192,0),IF(AND('Base-datos'!$B$755=\"Sí\",'Base-datos'!$B$756=\"\",'Base-datos'!$B$757=\"Sí\"),IF(AND(D192=\"La actividad sí contribuye sustancialmente a la sostenibilidad\",C192=\"La actividad sí contribuye sustancialmente a la sostenibilidad\"),B192,0),\"Por definir\"))))))))","v":"Por definir"}]
[{"$f":"Residuos!$C32","v":"Seleccione"},{"$f":"IF(Residuos!$E32=Otro!B$12,Residuos!$B32,\"\")","v":""},{"$f":"_xlfn.XLOOKUP(A193,'Base-datos'!$B$571:$B$580,'Base-datos'!$F$571:$F$580)","v":{"$error":"#N/A"}},{"$f":"_xlfn.XLOOKUP(A193,'Base-datos'!$B$571:$B$580,'Base-datos'!$C$571:$C$580)","v":{"$error":"#N/A"}},{"$f":"_xlfn.XLOOKUP(A193,'Base-datos'!$B$571:$B$580,'Base-datos'!$D$571:$D$580)","v":{"$error":"#N/A"}},null,null,{"$f":"IF(OR(F$182=\"La actividad no cumple con el total de los criterios de No Daño Significativo\",G$182=\"El sector no cumple con las salvaguardas mínimas\"),\"\",IF(AND('Base-datos'!$B$755=\"Sí\",'Base-datos'!$B$756=\"\",'Base-datos'!$B$757=\"\"),IF(D193=\"La actividad sí contribuye sustancialmente a la sostenibilidad\",B193,0),IF(AND('Base-datos'!$B$755=\"Sí\",'Base-datos'!$B$756=\"Sí\",'Base-datos'!$B$757=\"\"),IF(AND(D193=\"La actividad sí contribuye sustancialmente a la sostenibilidad\",E193=\"La actividad sí contribuye sustancialmente a la sostenibilidad\"),B193,0),IF(AND('Base-datos'!$B$755=\"Sí\",'Base-datos'!$B$756=\"Sí\",'Base-datos'!$B$757=\"Sí\"),IF(AND(D193=\"La actividad sí contribuye sustancialmente a la sostenibilidad\",E193=\"La actividad sí contribuye sustancialmente a la sostenibilidad\",C193=\"La actividad sí contribuye sustancialmente a la sostenibilidad\"),B193,0),IF(AND('Base-datos'!$B$755=\"\",'Base-datos'!$B$756=\"Sí\",'Base-datos'!$B$757=\"\"),IF(E193=\"La actividad sí contribuye sustancialmente a la sostenibilidad\",B193,0),IF(AND('Base-datos'!$B$755=\"\",'Base-datos'!$B$756=\"\",'Base-datos'!$B$757=\"Sí\"),IF(C193=\"La actividad sí contribuye sustancialmente a la sostenibilidad\",B193,0),IF(AND('Base-datos'!$B$755=\"\",'Base-datos'!$B$756=\"Sí\",'Base-datos'!$B$757=\"Sí\"),IF(AND(E193=\"La actividad sí contribuye sustancialmente a la sostenibilidad\",C193=\"La actividad sí contribuye sustancialmente a la sostenibilidad\"),B193,0),IF(AND('Base-datos'!$B$755=\"Sí\",'Base-datos'!$B$756=\"\",'Base-datos'!$B$757=\"Sí\"),IF(AND(D193=\"La actividad sí contribuye sustancialmente a la sostenibilidad\",C193=\"La actividad sí contribuye sustancialmente a la sostenibilidad\"),B193,0),\"Por definir\"))))))))","v":"Por definir"}]
[{"$f":"Residuos!$C34","v":"Seleccione"},{"$f":"IF(Residuos!$E34=Otro!B$12,Residuos!$B34,\"\")","v":""},{"$f":"_xlfn.XLOOKUP(A194,'Base-datos'!$B$571:$B$580,'Base-datos'!$F$571:$F$580)","v":{"$error":"#N/A"}},{"$f":"_xlfn.XLOOKUP(A194,'Base-datos'!$B$571:$B$580,'Base-datos'!$C$571:$C$580)","v":{"$error":"#N/A"}},{"$f":"_xlfn.XLOOKUP(A194,'Base-datos'!$B$571:$B$580,'Base-datos'!$D$571:$D$580)","v":{"$error":"#N/A"}},null,null,{"$f":"IF(OR(F$182=\"La actividad no cumple con el total de los criterios de No Daño Significativo\",G$182=\"El sector no cumple con las salvaguardas mínimas\"),\"\",IF(AND('Base-datos'!$B$755=\"Sí\",'Base-datos'!$B$756=\"\",'Base-datos'!$B$757=\"\"),IF(D194=\"La actividad sí contribuye sustancialmente a la sostenibilidad\",B194,0),IF(AND('Base-datos'!$B$755=\"Sí\",'Base-datos'!$B$756=\"Sí\",'Base-datos'!$B$757=\"\"),IF(AND(D194=\"La actividad sí contribuye sustancialmente a la sostenibilidad\",E194=\"La actividad sí contribuye sustancialmente a la sostenibilidad\"),B194,0),IF(AND('Base-datos'!$B$755=\"Sí\",'Base-datos'!$B$756=\"Sí\",'Base-datos'!$B$757=\"Sí\"),IF(AND(D194=\"La actividad sí contribuye sustancialmente a la sostenibilidad\",E194=\"La actividad sí contribuye sustancialmente a la sostenibilidad\",C194=\"La actividad sí contribuye sustancialmente a la sostenibilidad\"),B194,0),IF(AND('Base-datos'!$B$755=\"\",'Base-datos'!$B$756=\"Sí\",'Base-datos'!$B$757=\"\"),IF(E194=\"La actividad sí contribuye sustancialmente a la sostenibilidad\",B194,0),IF(AND('Base-datos'!$B$755=\"\",'Base-datos'!$B$756=\"\",'Base-datos'!$B$757=\"Sí\"),IF(C194=\"La actividad sí contribuye sustancialmente a la sostenibilidad\",B194,0),IF(AND('Base-datos'!$B$755=\"\",'Base-datos'!$B$756=\"Sí\",'Base-datos'!$B$757=\"Sí\"),IF(AND(E194=\"La actividad sí contribuye sustancialmente a la sostenibilidad\",C194=\"La actividad sí contribuye sustancialmente a la sostenibilidad\"),B194,0),IF(AND('Base-datos'!$B$755=\"Sí\",'Base-datos'!$B$756=\"\",'Base-datos'!$B$757=\"Sí\"),IF(AND(D194=\"La actividad sí contribuye sustancialmente a la sostenibilidad\",C194=\"La actividad sí contribuye sustancialmente a la sostenibilidad\"),B194,0),\"Por definir\"))))))))","v":"Por definir"}]
[{"$f":"Residuos!$C36","v":"Seleccione"},{"$f":"IF(Residuos!$E36=Otro!B$12,Residuos!$B36,\"\")","v":""},{"$f":"_xlfn.XLOOKUP(A195,'Base-datos'!$B$571:$B$580,'Base-datos'!$F$571:$F$580)","v":{"$error":"#N/A"}},{"$f":"_xlfn.XLOOKUP(A195,'Base-datos'!$B$571:$B$580,'Base-datos'!$C$571:$C$580)","v":{"$error":"#N/A"}},{"$f":"_xlfn.XLOOKUP(A195,'Base-datos'!$B$571:$B$580,'Base-datos'!$D$571:$D$580)","v":{"$error":"#N/A"}},null,null,{"$f":"IF(OR(F$182=\"La actividad no cumple con el total de los criterios de No Daño Significativo\",G$182=\"El sector no cumple con las salvaguardas mínimas\"),\"\",IF(AND('Base-datos'!$B$755=\"Sí\",'Base-datos'!$B$756=\"\",'Base-datos'!$B$757=\"\"),IF(D195=\"La actividad sí contribuye sustancialmente a la sostenibilidad\",B195,0),IF(AND('Base-datos'!$B$755=\"Sí\",'Base-datos'!$B$756=\"Sí\",'Base-datos'!$B$757=\"\"),IF(AND(D195=\"La actividad sí contribuye sustancialmente a la sostenibilidad\",E195=\"La actividad sí contribuye sustancialmente a la sostenibilidad\"),B195,0),IF(AND('Base-datos'!$B$755=\"Sí\",'Base-datos'!$B$756=\"Sí\",'Base-datos'!$B$757=\"Sí\"),IF(AND(D195=\"La actividad sí contribuye sustancialmente a la sostenibilidad\",E195=\"La actividad sí contribuye sustancialmente a la sostenibilidad\",C195=\"La actividad sí contribuye sustancialmente a la sostenibilidad\"),B195,0),IF(AND('Base-datos'!$B$755=\"\",'Base-datos'!$B$756=\"Sí\",'Base-datos'!$B$757=\"\"),IF(E195=\"La actividad sí contribuye sustancialmente a la sostenibilidad\",B195,0),IF(AND('Base-datos'!$B$755=\"\",'Base-datos'!$B$756=\"\",'Base-datos'!$B$757=\"Sí\"),IF(C195=\"La actividad sí contribuye sustancialmente a la sostenibilidad\",B195,0),IF(AND('Base-datos'!$B$755=\"\",'Base-datos'!$B$756=\"Sí\",'Base-datos'!$B$757=\"Sí\"),IF(AND(E195=\"La actividad sí contribuye sustancialmente a la sostenibilidad\",C195=\"La actividad sí contribuye sustancialmente a la sostenibilidad\"),B195,0),IF(AND('Base-datos'!$B$755=\"Sí\",'Base-datos'!$B$756=\"\",'Base-datos'!$B$757=\"Sí\"),IF(AND(D195=\"La actividad sí contribuye sustancialmente a la sostenibilidad\",C195=\"La actividad sí contribuye sustancialmente a la sostenibilidad\"),B195,0),\"Por definir\"))))))))","v":"Por definir"}]
[{"$f":"Residuos!$C38","v":"Seleccione"},{"$f":"IF(Residuos!$E38=Otro!B$12,Residuos!$B38,\"\")","v":""},{"$f":"_xlfn.XLOOKUP(A196,'Base-datos'!$B$571:$B$580,'Base-datos'!$F$571:$F$580)","v":{"$error":"#N/A"}},{"$f":"_xlfn.XLOOKUP(A196,'Base-datos'!$B$571:$B$580,'Base-datos'!$C$571:$C$580)","v":{"$error":"#N/A"}},{"$f":"_xlfn.XLOOKUP(A196,'Base-datos'!$B$571:$B$580,'Base-datos'!$D$571:$D$580)","v":{"$error":"#N/A"}},null,null,{"$f":"IF(OR(F$182=\"La actividad no cumple con el total de los criterios de No Daño Significativo\",G$182=\"El sector no cumple con las salvaguardas mínimas\"),\"\",IF(AND('Base-datos'!$B$755=\"Sí\",'Base-datos'!$B$756=\"\",'Base-datos'!$B$757=\"\"),IF(D196=\"La actividad sí contribuye sustancialmente a la sostenibilidad\",B196,0),IF(AND('Base-datos'!$B$755=\"Sí\",'Base-datos'!$B$756=\"Sí\",'Base-datos'!$B$757=\"\"),IF(AND(D196=\"La actividad sí contribuye sustancialmente a la sostenibilidad\",E196=\"La actividad sí contribuye sustancialmente a la sostenibilidad\"),B196,0),IF(AND('Base-datos'!$B$755=\"Sí\",'Base-datos'!$B$756=\"Sí\",'Base-datos'!$B$757=\"Sí\"),IF(AND(D196=\"La actividad sí contribuye sustancialmente a la sostenibilidad\",E196=\"La actividad sí contribuye sustancialmente a la sostenibilidad\",C196=\"La actividad sí contribuye sustancialmente a la sostenibilidad\"),B196,0),IF(AND('Base-datos'!$B$755=\"\",'Base-datos'!$B$756=\"Sí\",'Base-datos'!$B$757=\"\"),IF(E196=\"La actividad sí contribuye sustancialmente a la sostenibilidad\",B196,0),IF(AND('Base-datos'!$B$755=\"\",'Base-datos'!$B$756=\"\",'Base-datos'!$B$757=\"Sí\"),IF(C196=\"La actividad sí contribuye sustancialmente a la sostenibilidad\",B196,0),IF(AND('Base-datos'!$B$755=\"\",'Base-datos'!$B$756=\"Sí\",'Base-datos'!$B$757=\"Sí\"),IF(AND(E196=\"La actividad sí contribuye sustancialmente a la sostenibilidad\",C196=\"La actividad sí contribuye sustancialmente a la sostenibilidad\"),B196,0),IF(AND('Base-datos'!$B$755=\"Sí\",'Base-datos'!$B$756=\"\",'Base-datos'!$B$757=\"Sí\"),IF(AND(D196=\"La actividad sí contribuye sustancialmente a la sostenibilidad\",C196=\"La actividad sí contribuye sustancialmente a la sostenibilidad\"),B196,0),\"Por definir\"))))))))","v":"Por definir"}]
[{"$f":"Residuos!$C40","v":"Seleccione"},{"$f":"IF(Residuos!$E40=Otro!B$12,Residuos!$B40,\"\")","v":""},{"$f":"_xlfn.XLOOKUP(A197,'Base-datos'!$B$571:$B$580,'Base-datos'!$F$571:$F$580)","v":{"$error":"#N/A"}},{"$f":"_xlfn.XLOOKUP(A197,'Base-datos'!$B$571:$B$580,'Base-datos'!$C$571:$C$580)","v":{"$error":"#N/A"}},{"$f":"_xlfn.XLOOKUP(A197,'Base-datos'!$B$571:$B$580,'Base-datos'!$D$571:$D$580)","v":{"$error":"#N/A"}},null,null,{"$f":"IF(OR(F$182=\"La actividad no cumple con el total de los criterios de No Daño Significativo\",G$182=\"El sector no cumple con las salvaguardas mínimas\"),\"\",IF(AND('Base-datos'!$B$755=\"Sí\",'Base-datos'!$B$756=\"\",'Base-datos'!$B$757=\"\"),IF(D197=\"La actividad sí contribuye sustancialmente a la sostenibilidad\",B197,0),IF(AND('Base-datos'!$B$755=\"Sí\",'Base-datos'!$B$756=\"Sí\",'Base-datos'!$B$757=\"\"),IF(AND(D197=\"La actividad sí contribuye sustancialmente a la sostenibilidad\",E197=\"La actividad sí contribuye sustancialmente a la sostenibilidad\"),B197,0),IF(AND('Base-datos'!$B$755=\"Sí\",'Base-datos'!$B$756=\"Sí\",'Base-datos'!$B$757=\"Sí\"),IF(AND(D197=\"La actividad sí contribuye sustancialmente a la sostenibilidad\",E197=\"La actividad sí contribuye sustancialmente a la sostenibilidad\",C197=\"La actividad sí contribuye sustancialmente a la sostenibilidad\"),B197,0),IF(AND('Base-datos'!$B$755=\"\",'Base-datos'!$B$756=\"Sí\",'Base-datos'!$B$757=\"\"),IF(E197=\"La actividad sí contribuye sustancialmente a la sostenibilidad\",B197,0),IF(AND('Base-datos'!$B$755=\"\",'Base-datos'!$B$756=\"\",'Base-datos'!$B$757=\"Sí\"),IF(C197=\"La actividad sí contribuye sustancialmente a la sostenibilidad\",B197,0),IF(AND('Base-datos'!$B$755=\"\",'Base-datos'!$B$756=\"Sí\",'Base-datos'!$B$757=\"Sí\"),IF(AND(E197=\"La actividad sí contribuye sustancialmente a la sostenibilidad\",C197=\"La actividad sí contribuye sustancialmente a la sostenibilidad\"),B197,0),IF(AND('Base-datos'!$B$755=\"Sí\",'Base-datos'!$B$756=\"\",'Base-datos'!$B$757=\"Sí\"),IF(AND(D197=\"La actividad sí contribuye sustancialmente a la sostenibilidad\",C197=\"La actividad sí contribuye sustancialmente a la sostenibilidad\"),B197,0),\"Por definir\"))))))))","v":"Por definir"}]
[{"$f":"Residuos!$C42","v":"Seleccione"},{"$f":"IF(Residuos!$E42=Otro!B$12,Residuos!$B42,\"\")","v":""},{"$f":"_xlfn.XLOOKUP(A198,'Base-datos'!$B$571:$B$580,'Base-datos'!$F$571:$F$580)","v":{"$error":"#N/A"}},{"$f":"_xlfn.XLOOKUP(A198,'Base-datos'!$B$571:$B$580,'Base-datos'!$C$571:$C$580)","v":{"$error":"#N/A"}},{"$f":"_xlfn.XLOOKUP(A198,'Base-datos'!$B$571:$B$580,'Base-datos'!$D$571:$D$580)","v":{"$error":"#N/A"}},null,null,{"$f":"IF(OR(F$182=\"La actividad no cumple con el total de los criterios de No Daño Significativo\",G$182=\"El sector no cumple con las salvaguardas mínimas\"),\"\",IF(AND('Base-datos'!$B$755=\"Sí\",'Base-datos'!$B$756=\"\",'Base-datos'!$B$757=\"\"),IF(D198=\"La actividad sí contribuye sustancialmente a la sostenibilidad\",B198,0),IF(AND('Base-datos'!$B$755=\"Sí\",'Base-datos'!$B$756=\"Sí\",'Base-datos'!$B$757=\"\"),IF(AND(D198=\"La actividad sí contribuye sustancialmente a la sostenibilidad\",E198=\"La actividad sí contribuye sustancialmente a la sostenibilidad\"),B198,0),IF(AND('Base-datos'!$B$755=\"Sí\",'Base-datos'!$B$756=\"Sí\",'Base-datos'!$B$757=\"Sí\"),IF(AND(D198=\"La actividad sí contribuye sustancialmente a la sostenibilidad\",E198=\"La actividad sí contribuye sustancialmente a la sostenibilidad\",C198=\"La actividad sí contribuye sustancialmente a la sostenibilidad\"),B198,0),IF(AND('Base-datos'!$B$755=\"\",'Base-datos'!$B$756=\"Sí\",'Base-datos'!$B$757=\"\"),IF(E198=\"La actividad sí contribuye sustancialmente a la sostenibilidad\",B198,0),IF(AND('Base-datos'!$B$755=\"\",'Base-datos'!$B$756=\"\",'Base-datos'!$B$757=\"Sí\"),IF(C198=\"La actividad sí contribuye sustancialmente a la sostenibilidad\",B198,0),IF(AND('Base-datos'!$B$755=\"\",'Base-datos'!$B$756=\"Sí\",'Base-datos'!$B$757=\"Sí\"),IF(AND(E198=\"La actividad sí contribuye sustancialmente a la sostenibilidad\",C198=\"La actividad sí contribuye sustancialmente a la sostenibilidad\"),B198,0),IF(AND('Base-datos'!$B$755=\"Sí\",'Base-datos'!$B$756=\"\",'Base-datos'!$B$757=\"Sí\"),IF(AND(D198=\"La actividad sí contribuye sustancialmente a la sostenibilidad\",C198=\"La actividad sí contribuye sustancialmente a la sostenibilidad\"),B198,0),\"Por definir\"))))))))","v":"Por definir"}]
[{"$f":"Residuos!$C44","v":"Seleccione"},{"$f":"IF(Residuos!$E44=Otro!B$12,Residuos!$B44,\"\")","v":""},{"$f":"_xlfn.XLOOKUP(A199,'Base-datos'!$B$571:$B$580,'Base-datos'!$F$571:$F$580)","v":{"$error":"#N/A"}},{"$f":"_xlfn.XLOOKUP(A199,'Base-datos'!$B$571:$B$580,'Base-datos'!$C$571:$C$580)","v":{"$error":"#N/A"}},{"$f":"_xlfn.XLOOKUP(A199,'Base-datos'!$B$571:$B$580,'Base-datos'!$D$571:$D$580)","v":{"$error":"#N/A"}},null,null,{"$f":"IF(OR(F$182=\"La actividad no cumple con el total de los criterios de No Daño Significativo\",G$182=\"El sector no cumple con las salvaguardas mínimas\"),\"\",IF(AND('Base-datos'!$B$755=\"Sí\",'Base-datos'!$B$756=\"\",'Base-datos'!$B$757=\"\"),IF(D199=\"La actividad sí contribuye sustancialmente a la sostenibilidad\",B199,0),IF(AND('Base-datos'!$B$755=\"Sí\",'Base-datos'!$B$756=\"Sí\",'Base-datos'!$B$757=\"\"),IF(AND(D199=\"La actividad sí contribuye sustancialmente a la sostenibilidad\",E199=\"La actividad sí contribuye sustancialmente a la sostenibilidad\"),B199,0),IF(AND('Base-datos'!$B$755=\"Sí\",'Base-datos'!$B$756=\"Sí\",'Base-datos'!$B$757=\"Sí\"),IF(AND(D199=\"La actividad sí contribuye sustancialmente a la sostenibilidad\",E199=\"La actividad sí contribuye sustancialmente a la sostenibilidad\",C199=\"La actividad sí contribuye sustancialmente a la sostenibilidad\"),B199,0),IF(AND('Base-datos'!$B$755=\"\",'Base-datos'!$B$756=\"Sí\",'Base-datos'!$B$757=\"\"),IF(E199=\"La actividad sí contribuye sustancialmente a la sostenibilidad\",B199,0),IF(AND('Base-datos'!$B$755=\"\",'Base-datos'!$B$756=\"\",'Base-datos'!$B$757=\"Sí\"),IF(C199=\"La actividad sí contribuye sustancialmente a la sostenibilidad\",B199,0),IF(AND('Base-datos'!$B$755=\"\",'Base-datos'!$B$756=\"Sí\",'Base-datos'!$B$757=\"Sí\"),IF(AND(E199=\"La actividad sí contribuye sustancialmente a la sostenibilidad\",C199=\"La actividad sí contribuye sustancialmente a la sostenibilidad\"),B199,0),IF(AND('Base-datos'!$B$755=\"Sí\",'Base-datos'!$B$756=\"\",'Base-datos'!$B$757=\"Sí\"),IF(AND(D199=\"La actividad sí contribuye sustancialmente a la sostenibilidad\",C199=\"La actividad sí contribuye sustancialmente a la sostenibilidad\"),B199,0),\"Por definir\"))))))))","v":"Por definir"}]
[{"$f":"Residuos!$C46","v":"Seleccione"},{"$f":"IF(Residuos!$E46=Otro!B$12,Residuos!$B46,\"\")","v":""},{"$f":"_xlfn.XLOOKUP(A200,'Base-datos'!$B$571:$B$580,'Base-datos'!$F$571:$F$580)","v":{"$error":"#N/A"}},{"$f":"_xlfn.XLOOKUP(A200,'Base-datos'!$B$571:$B$580,'Base-datos'!$C$571:$C$580)","v":{"$error":"#N/A"}},{"$f":"_xlfn.XLOOKUP(A200,'Base-datos'!$B$571:$B$580,'Base-datos'!$D$571:$D$580)","v":{"$error":"#N/A"}},null,null,{"$f":"IF(OR(F$182=\"La actividad no cumple con el total de los criterios de No Daño Significativo\",G$182=\"El sector no cumple con las salvaguardas mínimas\"),\"\",IF(AND('Base-datos'!$B$755=\"Sí\",'Base-datos'!$B$756=\"\",'Base-datos'!$B$757=\"\"),IF(D200=\"La actividad sí contribuye sustancialmente a la sostenibilidad\",B200,0),IF(AND('Base-datos'!$B$755=\"Sí\",'Base-datos'!$B$756=\"Sí\",'Base-datos'!$B$757=\"\"),IF(AND(D200=\"La actividad sí contribuye sustancialmente a la sostenibilidad\",E200=\"La actividad sí contribuye sustancialmente a la sostenibilidad\"),B200,0),IF(AND('Base-datos'!$B$755=\"Sí\",'Base-datos'!$B$756=\"Sí\",'Base-datos'!$B$757=\"Sí\"),IF(AND(D200=\"La actividad sí contribuye sustancialmente a la sostenibilidad\",E200=\"La actividad sí contribuye sustancialmente a la sostenibilidad\",C200=\"La actividad sí contribuye sustancialmente a la sostenibilidad\"),B200,0),IF(AND('Base-datos'!$B$755=\"\",'Base-datos'!$B$756=\"Sí\",'Base-datos'!$B$757=\"\"),IF(E200=\"La actividad sí contribuye sustancialmente a la sostenibilidad\",B200,0),IF(AND('Base-datos'!$B$755=\"\",'Base-datos'!$B$756=\"\",'Base-datos'!$B$757=\"Sí\"),IF(C200=\"La actividad sí contribuye sustancialmente a la sostenibilidad\",B200,0),IF(AND('Base-datos'!$B$755=\"\",'Base-datos'!$B$756=\"Sí\",'Base-datos'!$B$757=\"Sí\"),IF(AND(E200=\"La actividad sí contribuye sustancialmente a la sostenibilidad\",C200=\"La actividad sí contribuye sustancialmente a la sostenibilidad\"),B200,0),IF(AND('Base-datos'!$B$755=\"Sí\",'Base-datos'!$B$756=\"\",'Base-datos'!$B$757=\"Sí\"),IF(AND(D200=\"La actividad sí contribuye sustancialmente a la sostenibilidad\",C200=\"La actividad sí contribuye sustancialmente a la sostenibilidad\"),B200,0),\"Por definir\"))))))))","v":"Por definir"}]
[{"$f":"Residuos!$C48","v":"Seleccione"},{"$f":"IF(Residuos!$E48=Otro!B$12,Residuos!$B48,\"\")","v":""},{"$f":"_xlfn.XLOOKUP(A201,'Base-datos'!$B$571:$B$580,'Base-datos'!$F$571:$F$580)","v":{"$error":"#N/A"}},{"$f":"_xlfn.XLOOKUP(A201,'Base-datos'!$B$571:$B$580,'Base-datos'!$C$571:$C$580)","v":{"$error":"#N/A"}},{"$f":"_xlfn.XLOOKUP(A201,'Base-datos'!$B$571:$B$580,'Base-datos'!$D$571:$D$580)","v":{"$error":"#N/A"}},null,null,{"$f":"IF(OR(F$182=\"La actividad no cumple con el total de los criterios de No Daño Significativo\",G$182=\"El sector no cumple con las salvaguardas mínimas\"),\"\",IF(AND('Base-datos'!$B$755=\"Sí\",'Base-datos'!$B$756=\"\",'Base-datos'!$B$757=\"\"),IF(D201=\"La actividad sí contribuye sustancialmente a la sostenibilidad\",B201,0),IF(AND('Base-datos'!$B$755=\"Sí\",'Base-datos'!$B$756=\"Sí\",'Base-datos'!$B$757=\"\"),IF(AND(D201=\"La actividad sí contribuye sustancialmente a la sostenibilidad\",E201=\"La actividad sí contribuye sustancialmente a la sostenibilidad\"),B201,0),IF(AND('Base-datos'!$B$755=\"Sí\",'Base-datos'!$B$756=\"Sí\",'Base-datos'!$B$757=\"Sí\"),IF(AND(D201=\"La actividad sí contribuye sustancialmente a la sostenibilidad\",E201=\"La actividad sí contribuye sustancialmente a la sostenibilidad\",C201=\"La actividad sí contribuye sustancialmente a la sostenibilidad\"),B201,0),IF(AND('Base-datos'!$B$755=\"\",'Base-datos'!$B$756=\"Sí\",'Base-datos'!$B$757=\"\"),IF(E201=\"La actividad sí contribuye sustancialmente a la sostenibilidad\",B201,0),IF(AND('Base-datos'!$B$755=\"\",'Base-datos'!$B$756=\"\",'Base-datos'!$B$757=\"Sí\"),IF(C201=\"La actividad sí contribuye sustancialmente a la sostenibilidad\",B201,0),IF(AND('Base-datos'!$B$755=\"\",'Base-datos'!$B$756=\"Sí\",'Base-datos'!$B$757=\"Sí\"),IF(AND(E201=\"La actividad sí contribuye sustancialmente a la sostenibilidad\",C201=\"La actividad sí contribuye sustancialmente a la sostenibilidad\"),B201,0),IF(AND('Base-datos'!$B$755=\"Sí\",'Base-datos'!$B$756=\"\",'Base-datos'!$B$757=\"Sí\"),IF(AND(D201=\"La actividad sí contribuye sustancialmente a la sostenibilidad\",C201=\"La actividad sí contribuye sustancialmente a la sostenibilidad\"),B201,0),\"Por definir\"))))))))","v":"Por definir"}]
["Género",{"$f":"IF('Género-General'!$E10=Otro!B$12,'Género-General'!$B10,\"\")","v":""},{"$f":"'Base-datos'!$F$581","v":"No se han contestado todas las preguntas"},"N/A","N/A",{"$f":"IF(COUNTIF(NDS_Género!C7:C38,\"No\")>0,\"La actividad no cumple con el total de los criterios de NDS\",\"La actividad cumple con los criterios de No Daño Significativo\")","v":"La actividad cumple con los criterios de No Daño Significativo"},{"$f":"IF(OR('Salvaguardas mínimas'!$G$10=\"Seleccione\",'Salvaguardas mínimas'!$G$13=\"Seleccione\",'Salvaguardas mínimas'!$G$16=\"Seleccione\",'Salvaguardas mínimas'!$G$7=\"Seleccione\"),\"No se han respondido todas las preguntas\",IF(OR('Salvaguardas mínimas'!$G$10=\"No\",'Salvaguardas mínimas'!$G$13=\"No\",'Salvaguardas mínimas'!$G$16=\"No\",'Salvaguardas mínimas'!$G$7=\"No\"),\"El sector no cumple con las salvaguardas mínimas\",\"La actividad sí cumple con las salvaguardas mínimas\"))","v":"No se han respondido todas las preguntas"},{"$f":"IF(C202=\"Por definir\",\"Por definir\",IF(C202=\"Sí cumple con el índice de igualdad de género\",'Género-General'!B10,0))","v":0}]
[null,null,null,null,null,null,null,{"$f":"SUM(H181,H160,H139,H118,H97,H76,H55,H34,H13,H202)","v":0}]